{"text_format":"1","workbook":"xlsx","n_sheets":74,"sheets":["ACS_Notes","StartInstruction","ACS_B08303","EmploymentAndWages","PopulationCharacteristics","SchoolEnrolEduAttain","HousingCharacteristics","CntyDataLink","CntyQuery","BuildingPermitsSince2000","EmpVsHUxCounty","HHIncome-10YearComparison","HHIncomeByAge","HHIncomeByTenure","Updates","CntyDataLinkPrior5YearEstimates","CntyDataLinkPrior10YearEstimate","StatisticallySignificantCalcs","ACS_Source_Table_List","ACS_Table_B01001","ACS_Table_B01002","ACS_Tbl_B11001_B11002_B25010","ACS_Table_B19001","ACS_Table_B19037","DisabilityByAge","DisabilityByAgePrior5YearEst","ACS_Table_B18101","ACS_Table_B18102","ACS_Table_B18103","ACS_Table_B18104","ACS_Table_B18105","ACS_Table_B18106","ACS_Table_B18107","ACS_Table_C18108","ACS_TableB19201_ACS_Tbl_B19202","ACS_Table_B19049","ACS_Table_B25118","ACS_TableB19101_ACS_Tbl_B19113","ACS_Table_B25119","ACS_Table_B25001","ACS_Table_B25003","ACS_Table_B25004","ACS_Table_B25008","ACS_Table_B25024","ACS_Table_B25032","ACS_Table_B25034","ACS_Table_B25041","PovertyCharacteristics","ACS_Table_ B17001","ACS_Table_B17010","ACS_Table_B17017","ACS_Table_B03002","RentalHousingCost","RentalHousingCost-Prior5Yr","ACS_Table_B25063_&_B25064","ACS_Table_B25070","ACS_Table_B25074","OwnerHousingCost","OwnerHousingCostPrior5Year","ACS_Table_B25075_&_B25077","ACS_Table_B25088","ACS_Table_B25091","ACS_Table_B25106","PlaceOfBirthAndPriorRes","ACS_Table_B05002","ACS_Table_B07003","ACS_Table_B14001","ACS_Table_B15002","PopComparison","HousingComparison","Housing_EmploymentComparison","DropDownList","CntyQryCensus","SmallTownEmploymentandWages"],"not_rendered":{"charts":193,"images":158,"macros":1,"external_links":0,"defined_names":64,"comments":0,"pivot_tables":0},"unopened":[],"bounds":{"document_bytes":16777216,"sheet_cells":100000,"rows_first":2000,"rows_last":500,"rows_between":2000,"halvings":0,"cell_chars":16384,"cell_head_chars":4096},"cells_cut":0,"cells_raw":0,"read":"whole","date_system":"1900"}

{"sheet":"ACS_Notes","index":0,"n_rows":28,"n_cols":1,"rows_kept":28,"cut":false,"hidden":true,"merged":[[10,0,12,14],[14,0,14,14],[18,0,19,14],[3,0,5,14],[7,0,8,14],[20,0,21,14],[22,0,22,14],[23,0,23,14],[24,0,24,14],[31,60,31,74],[29,0,29,14],[31,15,31,29],[31,30,31,44],[31,45,31,59],[25,0,25,14],[31,75,31,89],[31,90,31,104],[31,105,31,119],[31,120,31,134],[31,135,31,149],[31,150,31,164],[31,165,31,179],[31,240,31,254],[31,180,31,194],[31,195,31,209],[31,210,31,224],[31,225,31,239]]}
["NOTES:"]
[]
[]
["Data are based on a sample and are subject to sampling variability. The degree of uncertainty for an estimate arising from sampling variability is represented through the use of a margin of error. The value shown here is the 90 percent margin of error. The margin of error can be interpreted roughly as providing a 90 percent probability that the interval defined by the estimate minus the margin of error and the estimate plus the margin of error (the lower and upper confidence bounds) contains the true value. In addition to sampling variability, the ACS estimates are subject to nonsampling error (for a discussion of nonsampling variability, see Accuracy of the Data). The effect of nonsampling error is not represented in these tables."]
[]
[]
[]
["In addition to sampling variability, the ACS estimates are subject to nonsampling error (for a discussion of nonsampling variability, see Accuracy of the Data. The link is located at the end of this worksheet.).  The effect of nonsampling error is not represented in these tables."]
[]
[]
["While the 2005-2009 American Community Survey (ACS) data generally reflect the November 2008 Office of Management and Budget (OMB) definitions of metropolitan and micropolitan statistical areas; in certain instances the names, codes, and boundaries of the principal cities shown in ACS tables may differ from the OMB definitions due to differences in the effective dates of the geographic entities."]
[]
[]
[]
["Estimates of urban and rural population, housing units, and characteristics reflect boundaries of urban areas defined based on Census 2000 data.  Boundaries for urban areas have not been updated since Census 2000.  As a result, data for urban and rural areas from the ACS do not necessarily reflect the results of ongoing urbanization."]
[]
["Explanation of Symbols:"]
[]
["1. An '**' entry in the margin of error column indicates that either no sample observations or too few sample observations were available to compute a standard error and thus the margin of error. A statistical test is not appropriate."]
[]
["2. An '-' entry in the estimate column indicates that either no sample observations or too few sample observations were available to compute an estimate, or a ratio of medians cannot be calculated because one or both of the median estimates falls in the lowest interval or upper interval of an open-ended distribution."]
[]
["3. An '-' following a median estimate means the median falls in the lowest interval of an open-ended distribution."]
["4. An '+' following a median estimate means the median falls in the upper interval of an open-ended distribution."]
["5. An '***' entry in the margin of error column indicates that the median falls in the lowest interval or upper interval of an open-ended distribution. A statistical test is not appropriate."]
["6. An '*****' entry in the margin of error column indicates that the estimate is controlled. A statistical test for sampling variability is not appropriate."]
[]
["Accuracy of Data "]

{"sheet":"StartInstruction","index":1,"n_rows":30,"n_cols":16,"rows_kept":30,"cut":false,"hidden":false,"merged":[[30,1,32,3],[29,15,31,18]]}
["Demographic Profiles for Municipalities in Merrimack County"]
[]
["To view or print a Demographic Profile follow the steps below"]
[]
[]
["Step 1. ",null,"Select the municipality you wish to"]
[null,null,"Profile from the drop down box below. "]
[]
[]
[]
[]
["Step 2. ",null,"Click one of the profile topic buttons below to review or print"]
[null,null,"the information for the selected geography."]
[null,null,"Don't forget to adjust the axis on charts as necessary. "]
[]
[]
[]
[]
[]
[]
[]
[]
[]
[]
[]
[]
[]
[null,null,null,null,null,null,null,null,null,null,null,null,null,"Updated:",null,"2020-12-18"]
[]
[null,null,null,null,null,null,null,null,null,null,null,null,null,"Next Update:",null,"Spring 2021 - Annual Labor Force and Unemployment Rate Data"]

{"sheet":"ACS_B08303","index":2,"n_rows":19,"n_cols":56,"rows_kept":19,"cut":false,"hidden":true,"merged":[]}
[null,"B08303: TRAVEL TIME TO WORK"]
[null,"Universe: Workers 16 years and over who did not work at home"]
[null,"Data Set: 2008-2010 American Community Survey 3-Year Estimates"]
[]
[null,null,"Allenstown",null,"Andover",null,"Boscawen",null,"Bow",null,"Bradford",null,"Canterbury",null,"Chichester",null,"Concord",null,"Danbury",null,"Dunbarton",null,"Epsom",null,"Franklin",null,"Henniker",null,"Hill",null,"Hooksett",null,"Hopkinton",null,"Loudon",null,"Newbury",null,"New London",null,"Northfield",null,"Pembroke",null,"Pittsfield",null,"Salisbury",null,"Sutton",null,"Warner",null,"Webster",null,"Wilmot"]
[null,null,"Esitimate","Margin Of Error","Esitimate","Margin Of Error","Esitimate","Margin Of Error","Esitimate","Margin Of Error","Esitimate","Margin Of Error","Esitimate","Margin Of Error","Esitimate","Margin Of Error","Esitimate","Margin Of Error","Esitimate","Margin Of Error","Esitimate","Margin Of Error","Esitimate","Margin Of Error","Esitimate","Margin Of Error","Esitimate","Margin Of Error","Esitimate","Margin Of Error","Esitimate","Margin Of Error","Esitimate","Margin Of Error","Esitimate","Margin Of Error","Esitimate","Margin Of Error","Esitimate","Margin Of Error","Esitimate","Margin Of Error","Esitimate","Margin Of Error","Esitimate","Margin Of Error","Esitimate","Margin Of Error","Esitimate","Margin Of Error","Esitimate","Margin Of Error","Esitimate","Margin Of Error","Esitimate"]
[null,"Population Older than 16 not working at hom",2282,239,1429,198,1855,192,3829,203,815,143,1180,116,1360,114,20605,653,574,105,1511,93,2280,218,4180,293,2289,225,487,81,7562,361,2605,233,2624,299,1112,178,1540,164,2780,269,3856,351,1619,233,649,101,894,143,1333,113,1028,123,876,135]
[null,"Less than 5 minutes",63,51,92,57,10,18,67,61,37,24,45,33,32,23,730,170,0,11,8,9,56,37,374,139,155,96,3,5,83,53,196,107,108,150,70,41,172,81,118,73,65,60,90,50,9,9,14,19,52,35,19,18,46,31]
[null,"5 to 9 minutes",113,66,132,52,49,47,55,40,43,28,35,24,48,26,3714,424,40,37,43,25,83,59,706,196,334,115,8,8,453,184,126,72,110,88,72,41,290,106,355,114,244,115,164,87,40,18,103,54,36,36,25,12,54,30]
[null,"10 to 14 minutes",248,122,163,68,181,103,568,123,63,28,72,33,92,43,3445,350,51,36,123,52,129,64,456,151,135,82,17,10,932,218,248,114,342,142,51,29,223,89,484,134,236,116,98,71,24,23,116,45,88,39,61,30,141,47]
[null,"15 to 19 minutes",255,96,94,62,298,101,901,129,78,53,143,47,295,84,3215,376,64,28,130,39,233,98,466,157,170,84,57,24,1405,291,462,143,419,173,136,51,54,37,238,104,720,187,100,54,70,26,70,33,137,58,76,50,160,62]
[null,"20 to 24 minutes",413,119,131,48,472,150,468,95,129,45,209,68,206,68,2539,306,38,23,367,77,423,151,365,206,212,79,55,20,1459,256,459,141,340,148,140,45,165,81,179,76,648,175,118,70,40,27,63,34,209,77,181,52,41,23]
[null,"25 to 29 minutes",205,100,108,80,205,132,255,84,49,22,97,42,95,43,1093,179,24,14,225,62,165,66,339,161,145,73,33,18,797,212,177,88,239,87,67,45,73,42,412,135,197,105,87,82,85,35,20,22,124,43,124,28,42,32]
[null,"30 to 34 minutes",414,138,106,39,305,111,640,141,86,35,122,54,224,68,2049,323,53,26,254,71,359,143,576,134,422,167,53,29,848,172,467,176,566,204,95,41,191,92,430,146,475,185,175,88,112,36,104,35,218,76,220,59,103,38]
[null,"35 to 39 minutes",64,47,55,32,44,35,146,63,41,26,47,24,30,27,540,138,40,23,47,24,128,71,117,54,144,76,19,16,168,90,92,74,52,67,77,47,119,62,137,87,205,93,142,69,49,26,73,37,82,36,37,18,61,28]
[null,"40 to 44 minutes",137,84,50,25,70,53,87,56,68,27,75,34,92,49,574,144,42,26,33,20,83,46,179,94,51,43,41,20,241,98,21,32,52,49,111,55,50,46,117,68,239,138,147,76,34,22,85,46,97,38,62,27,52,25]
[null,"45 to 59 minutes",216,82,336,137,85,61,369,112,145,42,163,62,134,52,1399,217,133,46,70,29,338,101,301,108,160,86,98,33,606,192,222,114,279,133,131,63,80,51,112,77,359,137,250,107,107,41,157,56,93,40,101,32,95,35]
[null,"60 to 89 minutes",118,59,61,28,81,63,184,71,44,41,122,52,96,51,751,158,73,31,149,46,221,92,192,89,304,123,85,40,317,124,99,76,77,59,115,51,88,52,124,61,192,142,135,68,33,18,79,38,127,84,95,41,60,26]
[null,"90 or more minutes",36,34,101,56,55,36,89,46,32,20,50,35,16,12,556,181,16,11,62,31,62,49,109,83,57,47,18,12,253,94,36,41,40,42,47,35,35,33,74,44,276,150,113,64,46,31,10,9,70,34,27,25,21,15]

{"sheet":"EmploymentAndWages","index":3,"n_rows":115,"n_cols":14,"rows_kept":115,"cut":false,"hidden":true,"merged":[[3,1,3,3],[35,1,35,2],[73,1,73,2],[66,1,67,3]]}
[]
[null,{"$f":"CntyDataLink!A35","v":"Allenstown"}]
[]
[null,"EMPLOYMENT CHARACTERISTICS"]
[]
[]
[]
[]
[]
[]
[]
[]
[]
[]
[]
[]
[]
[]
[]
[]
[]
[]
[]
[]
[]
[]
[]
[]
[null,"Annual Average Covered Private Employment "]
[null,null,null,null,"Source: NH Department of Employment Security, Covered Private Employment by location of employment"]
[null,null,2009,{"$f":"C31+1","v":2010},{"$f":"D31+1","v":2011},2012,2013,2014,2015,2016,2017,2018,2019,"Total Change  "]
[null,"Goods Producing",{"$f":"IF((CntyDataLink!$BQ$25)=\"n\",NA(),IF(VALUE(CntyDataLink!$BQ$25)=\"\",NA(),VALUE(CntyDataLink!$BQ$25)))","v":137},{"$f":"IF((CntyDataLink!$BY$25)=\"n\",NA(),IF(VALUE(CntyDataLink!$BY$25)=\"\",NA(),VALUE(CntyDataLink!$BY$25)))","v":147},{"$f":"IF((CntyDataLink!$CG$25)=\"n\",NA(),IF(VALUE(CntyDataLink!$CG$25)=\"\",NA(),VALUE(CntyDataLink!$CG$25)))","v":147},{"$f":"IF((CntyDataLink!$CO$25)=\"n\",NA(),IF(VALUE(CntyDataLink!$CO$25)=\"\",NA(),VALUE(CntyDataLink!$CO$25)))","v":157},{"$f":"IF((CntyDataLink!$CW$25)=\"n\",NA(),IF(VALUE(CntyDataLink!$CW$25)=\"\",NA(),VALUE(CntyDataLink!$CW$25)))","v":197},{"$f":"IF((CntyDataLink!$DE$25)=\"n\",NA(),IF(VALUE(CntyDataLink!$DE$25)=\"\",NA(),VALUE(CntyDataLink!$DE$25)))","v":182},{"$f":"IF((CntyDataLink!$DM$25)=\"n\",NA(),IF(VALUE(CntyDataLink!$DM$25)=\"\",NA(),VALUE(CntyDataLink!$DM$25)))","v":170},{"$f":"IF((CntyDataLink!$DU$25)=\"n\",NA(),IF(VALUE(CntyDataLink!$DU$25)=\"\",NA(),VALUE(CntyDataLink!$DU$25)))","v":127},{"$f":"IF((CntyDataLink!$EC$25)=\"n\",NA(),IF(VALUE(CntyDataLink!$EC$25)=\"\",NA(),VALUE(CntyDataLink!$EC$25)))","v":126},{"$f":"IF((CntyDataLink!$EK$25)=\"n\",NA(),IF(VALUE(CntyDataLink!$EK$25)=\"\",NA(),VALUE(CntyDataLink!$EK$25)))","v":114},{"$f":"IF((CntyDataLink!$ET$25)=\"n\",NA(),IF(VALUE(CntyDataLink!$ET$25)=\"\",NA(),VALUE(CntyDataLink!$ET$25)))","v":117},{"$f":"$M32-C32","v":-20}]
[null,"Service Providing",{"$f":"IF((CntyDataLink!$BR$25)=\"n\",NA(),IF(VALUE(CntyDataLink!$BR$25)=\"\",NA(),VALUE(CntyDataLink!$BR$25)))","v":329},{"$f":"IF((CntyDataLink!$BZ$25)=\"n\",NA(),IF(VALUE(CntyDataLink!$BZ$25)=\"\",NA(),VALUE(CntyDataLink!$BZ$25)))","v":325},{"$f":"IF((CntyDataLink!$CH$25)=\"n\",NA(),IF(VALUE(CntyDataLink!$CH$25)=\"\",NA(),VALUE(CntyDataLink!$CH$25)))","v":341},{"$f":"IF((CntyDataLink!$CP$25)=\"n\",NA(),IF(VALUE(CntyDataLink!$CP$25)=\"\",NA(),VALUE(CntyDataLink!$CP$25)))","v":372},{"$f":"IF((CntyDataLink!$CX$25)=\"n\",NA(),IF(VALUE(CntyDataLink!$CX$25)=\"\",NA(),VALUE(CntyDataLink!$CX$25)))","v":379},{"$f":"IF((CntyDataLink!$DF$25)=\"n\",NA(),IF(VALUE(CntyDataLink!$DF$25)=\"\",NA(),VALUE(CntyDataLink!$DF$25)))","v":373},{"$f":"IF((CntyDataLink!$DN$25)=\"n\",NA(),IF(VALUE(CntyDataLink!$DN$25)=\"\",NA(),VALUE(CntyDataLink!$DN$25)))","v":310},{"$f":"IF((CntyDataLink!$DV$25)=\"n\",NA(),IF(VALUE(CntyDataLink!$DV$25)=\"\",NA(),VALUE(CntyDataLink!$DV$25)))","v":320},{"$f":"IF((CntyDataLink!$ED$25)=\"n\",NA(),IF(VALUE(CntyDataLink!$ED$25)=\"\",NA(),VALUE(CntyDataLink!$ED$25)))","v":264},{"$f":"IF((CntyDataLink!$EL$25)=\"n\",NA(),IF(VALUE(CntyDataLink!$EL$25)=\"\",NA(),VALUE(CntyDataLink!$EL$25)))","v":256},{"$f":"IF((CntyDataLink!$EU$25)=\"n\",NA(),IF(VALUE(CntyDataLink!$EU$25)=\"\",NA(),VALUE(CntyDataLink!$EU$25)))","v":277},{"$f":"$M33-C33","v":-52}]
[null,"Total Private Emp",{"$f":"IF((CntyDataLink!$BP$25)=\"n\",NA(),IF(VALUE(CntyDataLink!$BP$25)=\"\",NA(),VALUE(CntyDataLink!$BP$25)))","v":466},{"$f":"IF((CntyDataLink!$BX$25)=\"n\",NA(),IF(VALUE(CntyDataLink!$BX$25)=\"\",NA(),VALUE(CntyDataLink!$BX$25)))","v":472},{"$f":"IF((CntyDataLink!$CF$25)=\"n\",NA(),IF(VALUE(CntyDataLink!$CF$25)=\"\",NA(),VALUE(CntyDataLink!$CF$25)))","v":487},{"$f":"IF((CntyDataLink!$CN$25)=\"n\",NA(),IF(VALUE(CntyDataLink!$CN$25)=\"\",NA(),VALUE(CntyDataLink!$CN$25)))","v":528},{"$f":"IF((CntyDataLink!$CV$25)=\"n\",NA(),IF(VALUE(CntyDataLink!$CV$25)=\"\",NA(),VALUE(CntyDataLink!$CV$25)))","v":576},{"$f":"IF((CntyDataLink!$DD$25)=\"n\",NA(),IF(VALUE(CntyDataLink!$DD$25)=\"\",NA(),VALUE(CntyDataLink!$DD$25)))","v":555},{"$f":"IF((CntyDataLink!$DL$25)=\"n\",NA(),IF(VALUE(CntyDataLink!$DL$25)=\"\",NA(),VALUE(CntyDataLink!$DL$25)))","v":480},{"$f":"IF((CntyDataLink!$DT$25)=\"n\",NA(),IF(VALUE(CntyDataLink!$DT$25)=\"\",NA(),VALUE(CntyDataLink!$DT$25)))","v":447},{"$f":"IF((CntyDataLink!$EB$25)=\"n\",NA(),IF(VALUE(CntyDataLink!$EB$25)=\"\",NA(),VALUE(CntyDataLink!$EB$25)))","v":390},{"$f":"IF((CntyDataLink!$EJ$25)=\"n\",NA(),IF(VALUE(CntyDataLink!$EJ$25)=\"\",NA(),VALUE(CntyDataLink!$EJ$25)))","v":370},{"$f":"IF((CntyDataLink!$ER$25)=\"n\",NA(),IF(VALUE(CntyDataLink!$ER$25)=\"\",NA(),VALUE(CntyDataLink!$ER$25)))","v":394},{"$f":"$M34-C34","v":-72}]
[]
[null,"% Change from prior Year",null,"09-10","10-11","11-12","12-13","13-14","14-15","15-16","16-17","17-18","18-19","Total % Change"]
[null,"Goods Producing",null,{"$f":"(D32-C32)/C32","v":7.2992700729927001E-2},0,6.8027210884353748E-2,0.25477707006369427,-7.6142131979695438E-2,{"$f":"(I32-H32)/H32","v":-6.5934065934065936E-2},-0.25294117647058822,-7.874015748031496E-3,-9.5238095238095233E-2,2.6315789473684209E-2,{"$f":"N32/C32","v":-0.145985401459854}]
[null,"Service Providing",null,-1.2158054711246201E-2,4.9230769230769231E-2,9.0909090909090912E-2,{"$f":"(G33-F33)/F33","v":1.8817204301075269E-2},-1.5831134564643801E-2,-0.16890080428954424,3.2258064516129031E-2,-0.17499999999999999,-3.0303030303030304E-2,8.203125E-2,{"$f":"N33/C33","v":-0.1580547112462006}]
[null,"Total Private Emp",null,1.2875536480686695E-2,3.1779661016949151E-2,8.4188911704312114E-2,9.0909090909090912E-2,-3.6458333333333336E-2,-0.13513513513513514,-6.8750000000000006E-2,-0.12751677852348994,-5.128205128205128E-2,6.4864864864864868E-2,{"$f":"N34/C34","v":-0.15450643776824036}]
[]
[]
[null,"EMPLOYMENT CHARACTERISTICS"]
[]
[]
[]
[]
[]
[]
[]
[]
[]
[]
[]
[]
[]
[]
[]
[]
[]
[]
[]
[]
[]
[]
[]
[]
[null,"Covered Private Employment Average Wages",null,null,null,null,"Source: NH Department of Employment Security, Covered Private Employment"]
[]
[null,null,2009,{"$f":"C69+1","v":2010},{"$f":"D69+1","v":2011},{"$f":"E69+1","v":2012},2013,2014,2015,2016,2017,2018,2019,"Total $ Change"]
[null,"Goods Producing",{"$f":"IF((CntyDataLink!$BU$25)=\"n\",NA(),IF(VALUE(CntyDataLink!$BU$25)=\"\",NA(),VALUE(CntyDataLink!$BU$25)))","v":615.41999999999996},{"$f":"IF((CntyDataLink!$CC$25)=\"n\",NA(),IF(VALUE(CntyDataLink!$CC$25)=\"\",NA(),VALUE(CntyDataLink!$CC$25)))","v":630.44000000000005},{"$f":"IF((CntyDataLink!$CK$25)=\"n\",NA(),IF(VALUE(CntyDataLink!$CK$25)=\"\",NA(),VALUE(CntyDataLink!$CK$25)))","v":628.24},{"$f":"IF((CntyDataLink!$CS$25)=\"n\",NA(),IF(VALUE(CntyDataLink!$CS$25)=\"\",NA(),VALUE(CntyDataLink!$CS$25)))","v":653.44000000000005},{"$f":"IF((CntyDataLink!$DA$25)=\"n\",NA(),IF(VALUE(CntyDataLink!$DA$25)=\"\",NA(),VALUE(CntyDataLink!$DA$25)))","v":655.93},{"$f":"IF((CntyDataLink!$DI$25)=\"n\",NA(),IF(VALUE(CntyDataLink!$DI$25)=\"\",NA(),VALUE(CntyDataLink!$DI$25)))","v":730.28},{"$f":"IF((CntyDataLink!$DQ$25)=\"n\",NA(),IF(VALUE(CntyDataLink!$DQ$25)=\"\",NA(),VALUE(CntyDataLink!$DQ$25)))","v":809.33},{"$f":"IF((CntyDataLink!$DY$25)=\"n\",NA(),IF(VALUE(CntyDataLink!$DY$25)=\"\",NA(),VALUE(CntyDataLink!$DY$25)))","v":998.41},{"$f":"IF((CntyDataLink!$EG$25)=\"n\",NA(),IF(VALUE(CntyDataLink!$EG$25)=\"\",NA(),VALUE(CntyDataLink!$EG$25)))","v":985.01},{"$f":"IF((CntyDataLink!$EO$25)=\"n\",NA(),IF(VALUE(CntyDataLink!$EO$25)=\"\",NA(),VALUE(CntyDataLink!$EO$25)))","v":1084.3599999999999},{"$f":"IF((CntyDataLink!$EY$25)=\"n\",NA(),IF(VALUE(CntyDataLink!$EY$25)=\"\",NA(),VALUE(CntyDataLink!$EY$25)))","v":1054.58},{"$f":"M70-C70","v":439.15999999999997}]
[null,"Service Providing",{"$f":"IF((CntyDataLink!$BV$25)=\"n\",NA(),IF(VALUE(CntyDataLink!$BV$25)=\"\",NA(),VALUE(CntyDataLink!$BV$25)))","v":609.76},{"$f":"IF((CntyDataLink!$CD$25)=\"n\",NA(),IF(VALUE(CntyDataLink!$CD$25)=\"\",NA(),VALUE(CntyDataLink!$CD$25)))","v":627.57000000000005},{"$f":"IF((CntyDataLink!$CL$25)=\"n\",NA(),IF(VALUE(CntyDataLink!$CL$25)=\"\",NA(),VALUE(CntyDataLink!$CL$25)))","v":656.56},{"$f":"IF((CntyDataLink!$CT$25)=\"n\",NA(),IF(VALUE(CntyDataLink!$CT$25)=\"\",NA(),VALUE(CntyDataLink!$CT$25)))","v":663.82},{"$f":"IF((CntyDataLink!$DB$25)=\"n\",NA(),IF(VALUE(CntyDataLink!$DB$25)=\"\",NA(),VALUE(CntyDataLink!$DB$25)))","v":687.74},{"$f":"IF((CntyDataLink!$DJ$25)=\"n\",NA(),IF(VALUE(CntyDataLink!$DJ$25)=\"\",NA(),VALUE(CntyDataLink!$DJ$25)))","v":679.41},{"$f":"IF((CntyDataLink!$DR$25)=\"n\",NA(),IF(VALUE(CntyDataLink!$DR$25)=\"\",NA(),VALUE(CntyDataLink!$DR$25)))","v":651.65},{"$f":"IF((CntyDataLink!$DZ$25)=\"n\",NA(),IF(VALUE(CntyDataLink!$DZ$25)=\"\",NA(),VALUE(CntyDataLink!$DZ$25)))","v":662.94},{"$f":"IF((CntyDataLink!EG$25)=\"n\",NA(),IF(VALUE(CntyDataLink!$EH$25)=\"\",NA(),VALUE(CntyDataLink!$EH$25)))","v":726.91},{"$f":"IF((CntyDataLink!EO$25)=\"n\",NA(),IF(VALUE(CntyDataLink!$EP$25)=\"\",NA(),VALUE(CntyDataLink!$EP$25)))","v":785.18},{"$f":"IF((CntyDataLink!EZ$25)=\"n\",NA(),IF(VALUE(CntyDataLink!$EZ$25)=\"\",NA(),VALUE(CntyDataLink!$EZ$25)))","v":744.63},{"$f":"M71-C71","v":134.87}]
[null,"Total Private Emp",{"$f":"IF((CntyDataLink!$BT$25)=\"n\",NA(),IF(VALUE(CntyDataLink!$BT$25)=\"\",NA(),VALUE(CntyDataLink!$BT$25)))","v":611.41999999999996},{"$f":"IF((CntyDataLink!$CB$25)=\"n\",NA(),IF(VALUE(CntyDataLink!$CB$25)=\"\",NA(),VALUE(CntyDataLink!$CB$25)))","v":628.46},{"$f":"IF((CntyDataLink!$CJ$25)=\"n\",NA(),IF(VALUE(CntyDataLink!$CJ$25)=\"\",NA(),VALUE(CntyDataLink!$CJ$25)))","v":648.04999999999995},{"$f":"IF((CntyDataLink!$CR$25)=\"n\",NA(),IF(VALUE(CntyDataLink!$CR$25)=\"\",NA(),VALUE(CntyDataLink!$CR$25)))","v":660.75},{"$f":"IF((CntyDataLink!$CZ$25)=\"n\",NA(),IF(VALUE(CntyDataLink!$CZ$25)=\"\",NA(),VALUE(CntyDataLink!$CZ$25)))","v":676.87},{"$f":"IF((CntyDataLink!$DH$25)=\"n\",NA(),IF(VALUE(CntyDataLink!$DH$25)=\"\",NA(),VALUE(CntyDataLink!$DH$25)))","v":696.05},{"$f":"IF((CntyDataLink!$DP$25)=\"n\",NA(),IF(VALUE(CntyDataLink!$DP$25)=\"\",NA(),VALUE(CntyDataLink!$DP$25)))","v":707.52},{"$f":"IF((CntyDataLink!$DX$25)=\"n\",NA(),IF(VALUE(CntyDataLink!$DX$25)=\"\",NA(),VALUE(CntyDataLink!$DX$25)))","v":758.48},{"$f":"IF((CntyDataLink!$EF$25)=\"n\",NA(),IF(VALUE(CntyDataLink!$EF$25)=\"\",NA(),VALUE(CntyDataLink!$EF$25)))","v":810.13},{"$f":"IF((CntyDataLink!$EN$25)=\"n\",NA(),IF(VALUE(CntyDataLink!$EN$25)=\"\",NA(),VALUE(CntyDataLink!$EN$25)))","v":877.59},{"$f":"IF((CntyDataLink!$EW$25)=\"n\",NA(),IF(VALUE(CntyDataLink!$EW$25)=\"\",NA(),VALUE(CntyDataLink!$EW$25)))","v":836.77},{"$f":"M72-C72","v":225.35000000000002}]
[]
[null,"% Change from prior Year",null,{"$f":"D36","v":"09-10"},"10-11","11-12","12-13","13-14","14-15","15-16","16-17","17-18","18-19","Total % Change"]
[null,"Goods Producing",null,{"$f":"(D70-C70)/C70","v":2.4406096649442814E-2},-3.4896262927479938E-3,4.0112059085699807E-2,3.8106023506364706E-3,0.11335050996295341,0.10824615216081512,0.23362534442069355,-1.3421339930489455E-2,0.10086192018355135,-2.7463204101958738E-2,{"$f":"N70/C70","v":0.7135939683468201}]
[null,"Service Providing",null,2.9208213067436466E-2,4.6194050066127909E-2,1.1057633727306119E-2,3.6033864601849833E-2,-1.2112135400005875E-2,-4.0858980586096751E-2,1.7325251285199229E-2,9.6494403716776644E-2,8.0161230413668794E-2,-5.1644208971191263E-2,{"$f":"N71/C71","v":0.22118538441353977}]
[null,"Total Private Emp",null,2.7869549573124985E-2,3.1171434936193104E-2,1.9597253298356678E-2,2.4396519107075298E-2,2.8336312733611993E-2,1.6478701242726854E-2,7.2026232473993715E-2,6.8096719755300045E-2,8.3270586202214503E-2,-4.6513747877710607E-2,{"$f":"N72/C72","v":0.36856825095678919}]
[]
[]
[null,"LABOR FORCE AND UNEMPLOYMENT CHARACTERISTICS"]
[]
[]
[]
[]
[]
[]
[]
[]
[]
[]
[]
[]
[]
[]
[]
[]
[]
[]
[]
[]
[]
[]
[]
[]
[]
[]
[]
[]
[]
[null,"Annual Average Labor Force and Unemployment ",null,null,null,null,"Source: NH Department of Employment Security, Local Area Unemployment Statistics"]
[null,null,2009,{"$f":"C111+1","v":2010},{"$f":"D111+1","v":2011},2012,2013,2014,2015,2016,2017,2018,2019,"Total Change  "]
[null,"Civilian Labor Force",{"$f":"CntyDataLink!$BZ30","v":{"$error":"#N/A"}},{"$f":"CntyDataLink!$CD30","v":{"$error":"#N/A"}},{"$f":"CntyDataLink!$CH30","v":{"$error":"#N/A"}},{"$f":"CntyDataLink!$CL30","v":{"$error":"#N/A"}},{"$f":"CntyDataLink!$CP30","v":{"$error":"#N/A"}},{"$f":"CntyDataLink!$CT30","v":{"$error":"#N/A"}},{"$f":"CntyDataLink!$CX30","v":{"$error":"#N/A"}},{"$f":"CntyDataLink!$DB$30","v":{"$error":"#N/A"}},{"$f":"CntyDataLink!$DF$30","v":{"$error":"#N/A"}},{"$f":"CntyDataLink!$DJ$30","v":{"$error":"#N/A"}},{"$f":"CntyDataLink!$DN$30","v":{"$error":"#N/A"}},{"$f":"$M112-C112","v":{"$error":"#N/A"}}]
[null,"Employed Labor Force",{"$f":"CntyDataLink!$CA$30","v":{"$error":"#N/A"}},{"$f":"CntyDataLink!$CE$30","v":{"$error":"#N/A"}},{"$f":"CntyDataLink!$CI$30","v":{"$error":"#N/A"}},{"$f":"CntyDataLink!$CM$30","v":{"$error":"#N/A"}},{"$f":"CntyDataLink!$CQ$30","v":{"$error":"#N/A"}},{"$f":"CntyDataLink!$CU$30","v":{"$error":"#N/A"}},{"$f":"CntyDataLink!$CY$30","v":{"$error":"#N/A"}},{"$f":"CntyDataLink!$DC$30","v":{"$error":"#N/A"}},{"$f":"CntyDataLink!$DG$30","v":{"$error":"#N/A"}},{"$f":"CntyDataLink!$DK$30","v":{"$error":"#N/A"}},{"$f":"CntyDataLink!$DO$30","v":{"$error":"#N/A"}},{"$f":"$M113-C113","v":{"$error":"#N/A"}}]
[null,"Unemployed Labor Force",{"$f":"CntyDataLink!$CB$30","v":{"$error":"#N/A"}},{"$f":"CntyDataLink!$CF$30","v":{"$error":"#N/A"}},{"$f":"CntyDataLink!$CJ$30","v":{"$error":"#N/A"}},{"$f":"CntyDataLink!$CN$30","v":{"$error":"#N/A"}},{"$f":"CntyDataLink!$CR$30","v":{"$error":"#N/A"}},{"$f":"CntyDataLink!$CV$30","v":{"$error":"#N/A"}},{"$f":"CntyDataLink!$CZ$30","v":{"$error":"#N/A"}},{"$f":"CntyDataLink!$DD$30","v":{"$error":"#N/A"}},{"$f":"CntyDataLink!$DH$30","v":{"$error":"#N/A"}},{"$f":"CntyDataLink!$DL$30","v":{"$error":"#N/A"}},{"$f":"CntyDataLink!$DP$30","v":{"$error":"#N/A"}},{"$f":"$M114-C114","v":{"$error":"#N/A"}}]
[null,"Unemployment Rate",{"$f":"CntyDataLink!$CC$30","v":{"$error":"#N/A"}},{"$f":"CntyDataLink!$CG$30","v":{"$error":"#N/A"}},{"$f":"CntyDataLink!$CK$30","v":{"$error":"#N/A"}},{"$f":"CntyDataLink!$CO$30","v":{"$error":"#N/A"}},{"$f":"CntyDataLink!$CS$30","v":{"$error":"#N/A"}},{"$f":"CntyDataLink!$CW$30","v":{"$error":"#N/A"}},{"$f":"CntyDataLink!$DA$30","v":{"$error":"#N/A"}},{"$f":"CntyDataLink!$DE$30","v":{"$error":"#N/A"}},{"$f":"CntyDataLink!$DI$30","v":{"$error":"#N/A"}},{"$f":"CntyDataLink!$DM$30","v":{"$error":"#N/A"}},{"$f":"CntyDataLink!$DQ$30","v":{"$error":"#N/A"}}]

{"sheet":"PopulationCharacteristics","index":4,"n_rows":64,"n_cols":23,"rows_kept":64,"cut":false,"hidden":true,"merged":[[3,1,3,3],[19,15,19,17],[2,8,2,12],[18,2,18,12],[18,15,18,21],[62,1,62,8],[63,1,63,3],[19,11,19,13],[19,18,19,20],[45,1,45,8],[48,3,48,4],[48,6,48,7],[48,9,48,10],[33,11,33,12]]}
[]
[null,{"$f":"CntyDataLink!$A35","v":"Allenstown"}]
[null,null,null,null,null,null,"Land Area:",null,{"$f":"((CntyDataLink!F35*10.764)/43560)/640","v":20.525904820506195},null,"Water Area:",{"$f":"((CntyDataLink!G35*10.764)/43560)/640","v":0.10725698347107437}]
[null,"POPULATION CHARACTERISTICS"]
[]
[]
[]
[]
[]
[]
[]
[]
[]
[]
[]
[]
[]
[]
[null,"Population ",{"$f":"\"Source:  US Census; New Hampshire Office of Strategic Initiatives; \"& L20&\", \"&P20&\", and \"&S20&\" American Community Survey Table B01001\"","v":"Source:  US Census; New Hampshire Office of Strategic Initiatives; 2005-2009, 2010-2014, and 2015-2019 American Community Survey Table B01001"},null,null,null,null,null,null,null,null,null,null,"Population by Age ",null,{"$f":"\"Source: \"& L20&\", \"&P20&\", and \"&S20&\"  American Community Survey Tables B01001 and B01002\"","v":"Source: 2005-2009, 2010-2014, and 2015-2019  American Community Survey Tables B01001 and B01002"}]
[null,null,null,null,null,null,null,null,null,null,null,"2005-2009",null,null,null,"2010-2014",null,null,"2015-2019"]
[null,null,1980,1990,2000,"2015-2019",2025,2030,null,null,null,"Estimate",null,"Margin of Error","Percent Change","Estimate","Margin of Error","Percent Change","Estimate","Margin of Error",null,"Percent Change","Statistically Significant Change"]
[null,null,{"$f":"CntyDataLink!$E$20","v":4398},{"$f":"CntyDataLink!$F$20","v":4649},{"$f":"CntyDataLink!$G$20","v":4843},{"$f":"CntyDataLink!$B$132","v":4390},{"$f":"CntyDataLink!$I$20","v":3623},{"$f":"CntyDataLink!$K$20","v":3752},null,null,"Under 15 yrs.",{"$f":"CntyDataLinkPrior10YearEstimate!$D$132","v":1076},null,{"$f":"CntyDataLinkPrior10YearEstimate!$E$132","v":253.14817795117546},{"$f":"L22/SUM($L$22:$L$29)","v":0.21711057304277642},{"$f":"CntyDataLinkPrior5YearEstimates!$D$132","v":719},{"$f":"CntyDataLinkPrior5YearEstimates!$E$132","v":156.50239614779065},{"$f":"P22/SUM($P$22:$P$29)","v":0.16709272600511271},{"$f":"CntyDataLink!$D$132","v":695},{"$f":"CntyDataLink!$E$132","v":167.05687654209268},{"$f":"S22/SUM($S$22:$S$29)","v":0.15831435079726652},{"$f":"(S22-P22)/P22","v":-3.3379694019471488E-2},{"$f":"StatisticallySignificantCalcs!$A3","v":"Y"}]
[null,null,null,null,null,null,null,null,null,null,"15 to 24 yrs.",{"$f":"CntyDataLinkPrior10YearEstimate!$F$132","v":637},null,{"$f":"CntyDataLinkPrior10YearEstimate!$G$132","v":223.99776784602119},{"$f":"L23/SUM($L$22:$L$29)","v":0.12853107344632769},{"$f":"CntyDataLinkPrior5YearEstimates!$F$132","v":510},{"$f":"CntyDataLinkPrior5YearEstimates!$G$132","v":124.31009613060397},0.11852196142226354,{"$f":"CntyDataLink!$F$132","v":592},{"$f":"CntyDataLink!$G$132","v":159.30787802240039},0.1348519362186788,0.16078431372549021,{"$f":"StatisticallySignificantCalcs!$A4","v":"Y"}]
[null,"Percent Change",null,null,null,null,null,null,null,null,"25 to 34 yrs.",{"$f":"CntyDataLinkPrior10YearEstimate!$H$132","v":808},null,{"$f":"CntyDataLinkPrior10YearEstimate!$I$132","v":179.4993036198191},{"$f":"L24/SUM($L$22:$L$29)","v":0.16303470540758677},{"$f":"CntyDataLinkPrior5YearEstimates!$H$132","v":479},{"$f":"CntyDataLinkPrior5YearEstimates!$I$132","v":107.87492757819122},0.11131768533581222,{"$f":"CntyDataLink!$H$132","v":519},{"$f":"CntyDataLink!$I$132","v":124.24974849069112},0.11822323462414579,8.3507306889352817E-2,{"$f":"StatisticallySignificantCalcs!$A5","v":"Y"}]
[null,null,null,{"$f":"C21&\"-\"&(D21-1900)","v":"1980-90"},"1990-2000",{"$f":"E21&\"-19\"","v":"2000-19"},{"$f":"2019&\"-\"&(G21)","v":"2019-2025"},{"$f":"G21&\"-\"&(H21)","v":"2025-2030"},null,null,"35 to 44 yrs.",{"$f":"CntyDataLinkPrior10YearEstimate!$J$132","v":756},null,{"$f":"CntyDataLinkPrior10YearEstimate!$K$132","v":180.69310999592651},0.15254237288135594,{"$f":"CntyDataLinkPrior5YearEstimates!$J$132","v":665},{"$f":"CntyDataLinkPrior5YearEstimates!$K$132","v":160.59265238484605},0.15454334185452009,{"$f":"CntyDataLink!$J$132","v":577},{"$f":"CntyDataLink!$K$132","v":120.76009274590675},0.13143507972665147,-0.13233082706766916,{"$f":"StatisticallySignificantCalcs!$A6","v":"Y"}]
[null,null,null,{"$f":"(D22-C22)/C22","v":5.7071396089131421E-2},{"$f":"(E22-D22)/D22","v":4.1729404172940417E-2},{"$f":"(F22-E22)/E22","v":-9.3537063803427634E-2},{"$f":"(G22-F22)/F22","v":-0.17471526195899773},{"$f":"(H22-G22)/G22","v":3.5605851504278224E-2},null,null,"45 to 54 yrs.",{"$f":"CntyDataLinkPrior10YearEstimate!$L$132","v":718},null,{"$f":"CntyDataLinkPrior10YearEstimate!$M$132","v":162.26829634897879},0.14487489911218726,{"$f":"CntyDataLinkPrior5YearEstimates!$L$132","v":810},{"$f":"CntyDataLinkPrior5YearEstimates!$M$132","v":165.84028461142967},0.18824076225888914,{"$f":"CntyDataLink!$L$132","v":713},{"$f":"CntyDataLink!$M$132","v":142.65693113199933},0.16241457858769931,-0.11975308641975309,{"$f":"StatisticallySignificantCalcs!$A7","v":"Y"}]
[null,null,null,null,null,null,null,null,null,null,"55 to 64 yrs.",{"$f":"CntyDataLinkPrior10YearEstimate!$N$132","v":504},null,{"$f":"CntyDataLinkPrior10YearEstimate!$O$132","v":131.32783406422266},0.10169491525423729,{"$f":"CntyDataLinkPrior5YearEstimates!$N$132","v":544},{"$f":"CntyDataLinkPrior5YearEstimates!$O$132","v":119.94165248152953},0.12642342551708111,{"$f":"CntyDataLink!$N$132","v":601},{"$f":"CntyDataLink!$O$132","v":144.48529336925608},0.13690205011389522,0.10477941176470588,{"$f":"StatisticallySignificantCalcs!$A8","v":"Y"}]
[null,null,null,null,null,null,null,null,null,null,"65 to 74 yrs.",{"$f":"CntyDataLinkPrior10YearEstimate!$P$132","v":263},null,{"$f":"CntyDataLinkPrior10YearEstimate!$Q$132","v":82.079230015881606},5.3066989507667472E-2,{"$f":"CntyDataLinkPrior5YearEstimates!$P$132","v":315},{"$f":"CntyDataLinkPrior5YearEstimates!$Q$132","v":94.334511182281531},7.3204740878456895E-2,{"$f":"CntyDataLink!$P$132","v":327},{"$f":"CntyDataLink!$Q$132","v":106.33908030446756},7.4487471526195906E-2,3.8095238095238099E-2,{"$f":"StatisticallySignificantCalcs!$A9","v":"Y"}]
[null,null,null,null,null,null,null,null,null,null,"Over 74 yrs. ",{"$f":"CntyDataLinkPrior10YearEstimate!$R$132","v":194},null,{"$f":"CntyDataLinkPrior10YearEstimate!$S$132","v":78.377292629944805},3.9144471347861177E-2,{"$f":"CntyDataLinkPrior5YearEstimates!$R$132","v":261},{"$f":"CntyDataLinkPrior5YearEstimates!$S$132","v":94.894678459858852},6.0655356727864283E-2,{"$f":"CntyDataLink!$R$132","v":366},{"$f":"CntyDataLink!$S$132","v":127.37739202856997},8.3371298405466976E-2,0.40229885057471265,{"$f":"StatisticallySignificantCalcs!$A10","v":"Y"}]
[null,null,null,null,null,null,null,null,null,null,"Median Age (years)",{"$f":"CntyDataLinkPrior10YearEstimate!$AX$132","v":34.700000000000003},null,{"$f":"CntyDataLinkPrior10YearEstimate!$AY$132","v":3},null,{"$f":"CntyDataLinkPrior5YearEstimates!$AX132","v":41},{"$f":"CntyDataLinkPrior5YearEstimates!$AY$132","v":2},null,{"$f":"CntyDataLink!$AX$132","v":42.2},{"$f":"CntyDataLink!$AY$132","v":3.5}]
[]
[null,"Population By Race",null,null,null,null,null,null,null,null,null,null,"Statistically Significant Change"]
[null,null,null,null,null,null,null,null,null,null,null,null,{"$f":"IF(L36=\"\",\"-\",StatisticallySignificantCalcs!A20)","v":"Y"}]
[null,null,"2005-2009",null,null,"2010-2014",null,null,"2015-2019",null,null,"Statistically Significant Change"]
[null,null,"Estimate","Margin of Error",null,"Estimate","Margin of Error",null,"Estimate","Margin of Error",null,"2009-2019","2014-2019"]
[null,"White",{"$f":"CntyDataLinkPrior10YearEstimate!$AL$132","v":4401},{"$f":"CntyDataLinkPrior10YearEstimate!$AM$132","v":199},{"$f":"IF(C$36=\"-\",\"-\",VALUE(C36/$C$41))","v":0.88801452784503632},{"$f":"CntyDataLinkPrior5YearEstimates!$AL$132","v":4154},{"$f":"CntyDataLinkPrior5YearEstimates!$AM$132","v":91},{"$f":"IF(F$36=\"-\",\"-\",VALUE(F36/$F$41))","v":0.96537299558447598},{"$f":"CntyDataLink!$AL$132","v":4093},{"$f":"CntyDataLink!$AM$132","v":142},{"$f":"IF(I$36=\"-\",\"-\",VALUE(I36/$I$41))","v":0.93234624145785872},{"$f":"StatisticallySignificantCalcs!A20","v":"Y"},{"$f":"StatisticallySignificantCalcs!J20","v":"N"}]
[null,"Black",{"$f":"CntyDataLinkPrior10YearEstimate!$AN132","v":0},{"$f":"CntyDataLinkPrior10YearEstimate!$AO$132","v":114},{"$f":"IF(C$37=\"-\",\"-\",VALUE(C37/$C$41))","v":0},{"$f":"CntyDataLinkPrior5YearEstimates!$AN132","v":36},{"$f":"CntyDataLinkPrior5YearEstimates!$AO$132","v":33},{"$f":"IF(F$37=\"-\",\"-\",VALUE(F37/$F$41))","v":8.3662561003950732E-3},{"$f":"CntyDataLink!$AN$132","v":15},{"$f":"CntyDataLink!$AO$132","v":18},{"$f":"IF(I$37=\"-\",\"-\",VALUE(I37/$I$41))","v":3.4168564920273349E-3},{"$f":"StatisticallySignificantCalcs!A21","v":"N"},{"$f":"StatisticallySignificantCalcs!J21","v":"N"}]
[null,"American Indian",{"$f":"CntyDataLinkPrior10YearEstimate!$AP$132","v":47},{"$f":"CntyDataLinkPrior10YearEstimate!$AQ$132","v":61},{"$f":"IF(C$38=\"-\",\"-\",VALUE(C38/$C$41))","v":9.4834543987086361E-3},{"$f":"CntyDataLinkPrior5YearEstimates!$AP$132","v":0},{"$f":"CntyDataLinkPrior5YearEstimates!$AQ$132","v":11},{"$f":"IF(F$38=\"-\",\"-\",VALUE(F38/$F$41))","v":0},{"$f":"CntyDataLink!$AP$132","v":0},{"$f":"CntyDataLink!$AQ$132","v":11},{"$f":"IF(I$38=\"-\",\"-\",VALUE(I38/$I$41))","v":0},{"$f":"StatisticallySignificantCalcs!A22","v":"N"},{"$f":"StatisticallySignificantCalcs!J22","v":"N"}]
[null,"Asian &Pacific Is.",{"$f":"CntyDataLinkPrior10YearEstimate!$AR$132","v":96},{"$f":"CntyDataLinkPrior10YearEstimate!$AS$132","v":89.560035730229586},{"$f":"IF(C$39=\"-\",\"-\",VALUE(C39/$C$41))","v":1.9370460048426151E-2},{"$f":"CntyDataLinkPrior5YearEstimates!$AR$132","v":18},{"$f":"CntyDataLinkPrior5YearEstimates!$AS$132","v":27.313000567495326},{"$f":"IF(F$39=\"-\",\"-\",VALUE(F39/$F$41))","v":4.1831280501975366E-3},{"$f":"CntyDataLink!$AR$132","v":14},{"$f":"CntyDataLink!$AS$132","v":24.596747752497688},{"$f":"IF(I$39=\"-\",\"-\",VALUE(I39/$I$41))","v":3.1890660592255125E-3},{"$f":"StatisticallySignificantCalcs!A23","v":"N"},{"$f":"StatisticallySignificantCalcs!J23","v":"N"}]
[null,"Other*",{"$f":"CntyDataLinkPrior10YearEstimate!$AT$132","v":64},{"$f":"CntyDataLinkPrior10YearEstimate!$AU$132","v":126.14277624977183},{"$f":"IF(C$40=\"-\",\"-\",VALUE(C40/$C$41))","v":1.29136400322841E-2},{"$f":"CntyDataLinkPrior5YearEstimates!$AT$132","v":19},{"$f":"CntyDataLinkPrior5YearEstimates!$AU$132","v":15},{"$f":"IF(F$40=\"-\",\"-\",VALUE(F40/$F$41))","v":4.4155240529862886E-3},{"$f":"CntyDataLink!$AT$132","v":50},{"$f":"CntyDataLink!$AU$132","v":47.296934361541872},{"$f":"IF(I$40=\"-\",\"-\",VALUE(I40/$I$41))","v":1.1389521640091117E-2},{"$f":"StatisticallySignificantCalcs!A24","v":"N"},{"$f":"StatisticallySignificantCalcs!J24","v":"N"}]
[null,"Total Population",{"$f":"CntyDataLinkPrior10YearEstimate!$B$132","v":4956},{"$f":"CntyDataLinkPrior10YearEstimate!$C$132","v":29},null,{"$f":"CntyDataLinkPrior5YearEstimates!$B$132","v":4303},{"$f":"CntyDataLinkPrior5YearEstimates!$C$132","v":22},null,{"$f":"CntyDataLink!$B$132","v":4390},{"$f":"CntyDataLink!$C$132","v":22}]
[null,"Hispanic",{"$f":"CntyDataLinkPrior10YearEstimate!$AV$132","v":348},{"$f":"CntyDataLinkPrior10YearEstimate!$AW$132","v":164},{"$f":"IF(C$42=\"-\",\"-\",VALUE(C42/$C$41))","v":7.0217917675544791E-2},{"$f":"CntyDataLinkPrior5YearEstimates!$AV132","v":76},{"$f":"CntyDataLinkPrior5YearEstimates!$AW$132","v":73},{"$f":"IF(F$42=\"-\",\"-\",VALUE(F42/$F$41))","v":1.7662096211945155E-2},{"$f":"CntyDataLink!$AV$132","v":192},{"$f":"CntyDataLink!$AW$132","v":131},{"$f":"IF(I$42=\"-\",\"-\",VALUE(I42/$I$41))","v":4.3735763097949888E-2},{"$f":"StatisticallySignificantCalcs!A26","v":"Y"},{"$f":"StatisticallySignificantCalcs!J26","v":"N"}]
[]
[null,"*","Other includes population of 2 or more races"]
[]
[null,{"$f":"\"Source: \"& L20&\", \"&P20&\", and \"&S20&\" American Community Survey Table B03002\"","v":"Source: 2005-2009, 2010-2014, and 2015-2019 American Community Survey Table B03002"}]
[]
[null,null,"Households and Families"]
[null,null,null,"2005-2009",null,null,"2010-2014",null,null,"2015-2019",null,null,null,"Percent Change 2009-2019",null,"Percent Change 2010-2019"]
[null,null,null,"Estimate","Margin of Error",null,"Estimate","Margin of Error",null,"Estimate","Margin of Error"]
[null,null,"Total Households",{"$f":"CntyDataLinkPrior10YearEstimate!$T$132","v":1824},{"$f":"CntyDataLinkPrior10YearEstimate!$U$132","v":124},null,{"$f":"CntyDataLinkPrior5YearEstimates!$T$132","v":1787},{"$f":"CntyDataLinkPrior5YearEstimates!$U$132","v":88},null,{"$f":"CntyDataLink!$T$132","v":1788},{"$f":"CntyDataLink!$U$132","v":107},null,null,{"$f":"(J51-D51)/D51","v":-1.9736842105263157E-2},null,{"$f":"(J51-G51)/G51","v":5.5959709009513155E-4}]
[null,null,"Persons per Household",{"$f":"CntyDataLinkPrior10YearEstimate!$BD$132","v":2.7171052631578947},{"$f":"CntyDataLinkPrior10YearEstimate!$BE$132","v":0.18},null,{"$f":"CntyDataLinkPrior5YearEstimates!$BD$132","v":2.3928371572467824},{"$f":"CntyDataLinkPrior5YearEstimates!$BE$132","v":0.12},null,{"$f":"CntyDataLink!$BD$132","v":2.4356823266219241},{"$f":"CntyDataLink!$BE$132","v":0.15},null,null,-0.10357454322873495,null,1.7905593468984619E-2]
[null,null,"Family Households",{"$f":"CntyDataLinkPrior10YearEstimate!$V$132","v":1259},{"$f":"CntyDataLinkPrior10YearEstimate!$U$132","v":124},null,{"$f":"CntyDataLinkPrior5YearEstimates!$V$132","v":1182},{"$f":"CntyDataLinkPrior5YearEstimates!$U$132","v":88},null,{"$f":"CntyDataLink!$V$132","v":1160},{"$f":"CntyDataLink!$U$132","v":107},null,null,-7.8633836378077845E-2,null,-1.8612521150592216E-2]
[null,null,"Persons per Family Household",{"$f":"CntyDataLinkPrior10YearEstimate!$BF$132","v":3.3582208101667992},{"$f":"CntyDataLinkPrior10YearEstimate!$BG$132","v":0.29494474476547644},null,{"$f":"CntyDataLinkPrior5YearEstimates!$BF$132","v":2.967005076142132},{"$f":"CntyDataLinkPrior5YearEstimates!$BG$132","v":0.26800997818607214},null,{"$f":"CntyDataLink!$BF$132","v":3.1491379310344829},{"$f":"CntyDataLink!$BG$132","v":0.25787734654857719},null,null,-6.2260015332920096E-2,null,6.1386094805462997E-2]
[null,null,"Married-Couple Family Hh",{"$f":"CntyDataLinkPrior10YearEstimate!$X$132","v":1004},{"$f":"CntyDataLinkPrior10YearEstimate!$Y$132","v":123},null,{"$f":"CntyDataLinkPrior5YearEstimates!$X$132","v":902},{"$f":"CntyDataLinkPrior5YearEstimates!$Y$132","v":101},null,{"$f":"CntyDataLink!$X$132","v":866},{"$f":"CntyDataLink!$Y$132","v":108},null,null,-0.13745019920318724,null,-3.9911308203991129E-2]
[null,null,"Single-Parent Family Hh",{"$f":"CntyDataLinkPrior10YearEstimate!$Z$132","v":255},{"$f":"CntyDataLinkPrior10YearEstimate!$AA$132","v":96},null,{"$f":"CntyDataLinkPrior5YearEstimates!$Z$132","v":280},{"$f":"CntyDataLinkPrior5YearEstimates!$AA$132","v":80},null,{"$f":"CntyDataLink!$Z$132","v":294},{"$f":"CntyDataLink!$AA$132","v":84},null,null,0.15294117647058825,null,0.05]
[null,null,"Non-Family Households*",{"$f":"CntyDataLinkPrior10YearEstimate!$AF$132","v":565},{"$f":"CntyDataLinkPrior10YearEstimate!$AG$132","v":133},null,{"$f":"CntyDataLinkPrior5YearEstimates!$AF$132","v":605},{"$f":"CntyDataLinkPrior5YearEstimates!$AG$132","v":123},null,{"$f":"CntyDataLink!$AF$132","v":628},{"$f":"CntyDataLink!$AG$132","v":124},null,null,0.11150442477876106,null,3.8016528925619832E-2]
[null,null,"Persons per Non-Family Hh",{"$f":"CntyDataLinkPrior10YearEstimate!$BH$132","v":1.288495575221239},{"$f":"CntyDataLinkPrior10YearEstimate!$BI$132","v":0.47155320965641617},null,{"$f":"CntyDataLinkPrior5YearEstimates!$BH$132","v":1.2710743801652893},{"$f":"CntyDataLinkPrior5YearEstimates!$BI$132","v":0.38297155938367283},null,{"$f":"CntyDataLink!$BH$132","v":1.1178343949044587},{"$f":"CntyDataLink!$BI$132","v":0.32057085899609483},null,null,-0.13244995450409464,null,-0.12055941623251303]
[]
[]
[null,"As a result of changes in the American Community Survey, direct comparisons between the data should be made with caution."]
[]
[null,"Source: 2005-2009, 2010-2014, and 2015-2019 American Community Survey Table B11001"]
[null,"POPULATION CHARACTERISTICS"]

{"sheet":"SchoolEnrolEduAttain","index":5,"n_rows":67,"n_cols":17,"rows_kept":67,"cut":false,"hidden":true,"merged":[[20,15,20,16],[49,15,49,16],[49,5,49,7],[20,5,20,7],[20,8,20,10],[20,11,20,13],[49,8,49,10]]}
[]
[null,null,{"$f":"CntyDataLink!A50","v":"Allenstown"}]
[null,null,"SOCIAL CHARACTERISTICS"]
[]
[]
[]
[]
[]
[]
[]
[]
[]
[]
[]
[]
[]
[]
[]
[]
[]
[null,null,"School Enrollment",null,null,"2005-2009",null,null,"2010-2014",null,null,"2015-2019",null,null,null,"Statistically Significant Change"]
[null,null,null,null,null,"Estimate"," Margin of Error","Percent of Population","Estimate"," Margin of Error","Percent of Population","Estimate"," Margin of Error","Percent of Population",null,"2009-2019","2014-2019"]
[null,null,"Population 3 years and over",null,null,{"$f":"CntyDataLinkPrior10YearEstimate!$B$140","v":4878},{"$f":"CntyDataLinkPrior10YearEstimate!$C$140","v":65},null,{"$f":"CntyDataLinkPrior5YearEstimates!$B$140","v":4192},{"$f":"CntyDataLinkPrior5YearEstimates!$C$140","v":56},null,{"$f":"CntyDataLink!$B$140","v":4251},{"$f":"CntyDataLink!$C$140","v":69},null,null,{"$f":"StatisticallySignificantCalcs!$A$45","v":"Y"},{"$f":"StatisticallySignificantCalcs!$J$45","v":"N"}]
[null,null,"Population 3 years & over enrolled in school",null,null,{"$f":"CntyDataLinkPrior10YearEstimate!$D$140","v":1291},{"$f":"CntyDataLinkPrior10YearEstimate!$E$140","v":215},{"$f":"F24/$F$23","v":0.26465764657646579},{"$f":"CntyDataLinkPrior5YearEstimates!$D$140","v":850},{"$f":"CntyDataLinkPrior5YearEstimates!$E$140","v":152},{"$f":"I24/$I$23","v":0.20276717557251908},{"$f":"CntyDataLink!$D$140","v":840},{"$f":"CntyDataLink!$E$140","v":131},{"$f":"L24/$L$23","v":0.19760056457304165},null,{"$f":"StatisticallySignificantCalcs!$A$46","v":"Y"},{"$f":"StatisticallySignificantCalcs!$J$46","v":"N"}]
[null,null,"Preprimary (Nursery, Preschool, Kindergarten)",null,null,{"$f":"CntyDataLinkPrior10YearEstimate!$F$140","v":158},{"$f":"CntyDataLinkPrior10YearEstimate!$G$140","v":94.339811320566042},3.2390323903239031E-2,{"$f":"CntyDataLinkPrior5YearEstimates!$F$140","v":55},{"$f":"CntyDataLinkPrior5YearEstimates!$G$140","v":39.66106403010388},{"$f":"I25/$I$23","v":1.3120229007633587E-2},{"$f":"CntyDataLink!$F$140","v":114},{"$f":"CntyDataLink!$G$140","v":65.299310869258036},2.6817219477769938E-2,null,{"$f":"StatisticallySignificantCalcs!$A$47","v":"N"},{"$f":"StatisticallySignificantCalcs!$J$47","v":"N"}]
[null,null,"        Nursery school and Preschool",null,null,{"$f":"CntyDataLinkPrior10YearEstimate!$H$140","v":59},{"$f":"CntyDataLinkPrior10YearEstimate!$I$140","v":50},1.2095120951209511E-2,{"$f":"CntyDataLinkPrior5YearEstimates!$H$140","v":32},{"$f":"CntyDataLinkPrior5YearEstimates!$I$140","v":33},7.6335877862595417E-3,{"$f":"CntyDataLink!$H$140","v":67},{"$f":"CntyDataLink!$I$140","v":58},1.5760997412373558E-2,null,{"$f":"StatisticallySignificantCalcs!$A$48","v":"N"},{"$f":"StatisticallySignificantCalcs!$J$48","v":"N"}]
[null,null,"        Kindergarten",null,null,{"$f":"CntyDataLinkPrior10YearEstimate!$J$140","v":99},{"$f":"CntyDataLinkPrior10YearEstimate!$K$140","v":80},2.0295202952029519E-2,{"$f":"CntyDataLinkPrior5YearEstimates!$J$140","v":23},{"$f":"CntyDataLinkPrior5YearEstimates!$K$140","v":22},5.4866412213740454E-3,{"$f":"CntyDataLink!$J$140","v":47},{"$f":"CntyDataLink!$K$140","v":30},1.1056222065396377E-2,null,{"$f":"StatisticallySignificantCalcs!$A$49","v":"N"},{"$f":"StatisticallySignificantCalcs!$J$49","v":"N"}]
[null,null,"Elementary through High school",null,null,{"$f":"CntyDataLinkPrior10YearEstimate!$P$140","v":911},{"$f":"CntyDataLinkPrior10YearEstimate!$Q$140","v":273.2965422393778},0.18675686756867568,{"$f":"CntyDataLinkPrior5YearEstimates!$P$140","v":546},{"$f":"CntyDataLinkPrior5YearEstimates!$Q$140","v":111.35977729862789},0.13024809160305342,{"$f":"CntyDataLink!$P$140","v":553},{"$f":"CntyDataLink!$Q$140","v":137.29166034395533},0.13008703834391908,null,{"$f":"StatisticallySignificantCalcs!$A$50","v":"Y"},{"$f":"StatisticallySignificantCalcs!$J$50","v":"N"}]
[null,null,"        Elementary school (grades 1-8)",null,null,{"$f":"CntyDataLinkPrior10YearEstimate!$L$140","v":630},{"$f":"CntyDataLinkPrior10YearEstimate!$M$140","v":222.28360263411244},0.12915129151291513,{"$f":"CntyDataLinkPrior5YearEstimates!$L$140","v":382},{"$f":"CntyDataLinkPrior5YearEstimates!$M$140","v":96.829747495281637},9.1125954198473288E-2,{"$f":"CntyDataLink!$L$140","v":350},{"$f":"CntyDataLink!$M$140","v":119.26860441876563},8.2333568572100682E-2,null,{"$f":"StatisticallySignificantCalcs!$A$51","v":"Y"},{"$f":"StatisticallySignificantCalcs!$J$51","v":"N"}]
[null,null,"        High school (grades 9-12)",null,null,{"$f":"CntyDataLinkPrior10YearEstimate!$N$140","v":281},{"$f":"CntyDataLinkPrior10YearEstimate!$O$140","v":159},5.7605576055760555E-2,{"$f":"CntyDataLinkPrior5YearEstimates!$N$140","v":164},{"$f":"CntyDataLinkPrior5YearEstimates!$O$140","v":55},3.9122137404580155E-2,{"$f":"CntyDataLink!$N$140","v":203},{"$f":"CntyDataLink!$O$140","v":68},4.7753469771818394E-2,null,{"$f":"StatisticallySignificantCalcs!$A$52","v":"N"},{"$f":"StatisticallySignificantCalcs!$J$52","v":"N"}]
[null,null,"College or Graduate School",null,null,{"$f":"CntyDataLinkPrior10YearEstimate!$R$140","v":222},{"$f":"CntyDataLinkPrior10YearEstimate!$S$140","v":90.354855984612144},4.5510455104551047E-2,{"$f":"CntyDataLinkPrior5YearEstimates!$R$140","v":249},{"$f":"CntyDataLinkPrior5YearEstimates!$S$140","v":101.53324578678651},5.9398854961832059E-2,{"$f":"CntyDataLink!$R$140","v":173},{"$f":"CntyDataLink!$S$140","v":70.661163307718056},4.0696306751352621E-2,null,{"$f":"StatisticallySignificantCalcs!$A$53","v":"N"},{"$f":"StatisticallySignificantCalcs!$J$53","v":"N"}]
[]
[null,null,{"$f":"\"Source: \"&F21&\", \"& I21&\" and \"&L21&\" American Community Survey Table B14001\"","v":"Source: 2005-2009, 2010-2014 and 2015-2019 American Community Survey Table B14001"}]
[]
[]
[]
[]
[]
[]
[]
[]
[]
[]
[]
[]
[]
[]
[]
[]
[null,null,"Educational Attainment",null,null,"2005-2009",null,null,"2010-2014",null,null,"2015.-2019",null,null,null,"Statistically Significant Change"]
[null,null,null,null,null,"Estimate"," Margin of Error","Percent of Population","Estimate"," Margin of Error","Percent of Population","Estimate"," Margin of Error","Percent of Population",null,"2009-2019","2014-2019"]
[null,null,"Population 25 years and over",null,null,{"$f":"CntyDataLinkPrior10YearEstimate!$V$140","v":3243},{"$f":"CntyDataLinkPrior10YearEstimate!$W$140","v":175},null,{"$f":"CntyDataLinkPrior5YearEstimates!$V$140","v":3074},{"$f":"CntyDataLinkPrior5YearEstimates!$W$140","v":145},null,{"$f":"CntyDataLink!$V$140","v":3152},{"$f":"CntyDataLink!$W$140","v":147},null,null,{"$f":"StatisticallySignificantCalcs!A54","v":"N"},{"$f":"StatisticallySignificantCalcs!$J$54","v":"N"}]
[null,null,"Less than 9th Grade",null,null,{"$f":"CntyDataLinkPrior10YearEstimate!$X$140","v":97},{"$f":"CntyDataLinkPrior10YearEstimate!$Y$140","v":171.66828478201791},{"$f":"F53/$F$52","v":2.9910576626580327E-2},{"$f":"CntyDataLinkPrior5YearEstimates!$X$140","v":92},{"$f":"CntyDataLinkPrior5YearEstimates!$Y$140","v":63.678881899731877},{"$f":"I53/$I$52","v":2.992843201040989E-2},{"$f":"CntyDataLink!$X$140","v":51},{"$f":"CntyDataLink!$Y$140","v":62.080592780675026},{"$f":"L53/$L$52","v":1.6180203045685279E-2},null,{"$f":"StatisticallySignificantCalcs!A55","v":"N"},{"$f":"StatisticallySignificantCalcs!$J$55","v":"N"}]
[null,null,"9th to 12th Grade, no Diploma",null,null,{"$f":"CntyDataLinkPrior10YearEstimate!$Z$140","v":355},{"$f":"CntyDataLinkPrior10YearEstimate!$AA$140","v":176.62106329653889},{"$f":"F54/$F$52","v":0.10946654332408264},{"$f":"CntyDataLinkPrior5YearEstimates!$Z$140","v":145},{"$f":"CntyDataLinkPrior5YearEstimates!$AA$140","v":62.489999199871974},4.716981132075472E-2,{"$f":"CntyDataLink!$Z$140","v":283},{"$f":"CntyDataLink!$AA$140","v":100.01999800039989},8.9784263959390861E-2,null,{"$f":"StatisticallySignificantCalcs!A56","v":"N"},{"$f":"StatisticallySignificantCalcs!$J$56","v":"Y"}]
[null,null,"High School Graduate ",null,null,{"$f":"CntyDataLinkPrior10YearEstimate!$AB$140","v":1096},{"$f":"CntyDataLinkPrior10YearEstimate!$AC$140","v":200.11246837716035},0.33795868023435088,{"$f":"CntyDataLinkPrior5YearEstimates!$AB$140","v":1543},{"$f":"CntyDataLinkPrior5YearEstimates!$AC$140","v":191.00261778310789},0.50195185426154842,{"$f":"CntyDataLink!$AB$140","v":1397},{"$f":"CntyDataLink!$AC$140","v":181.57092278225608},0.44321065989847713,null,{"$f":"StatisticallySignificantCalcs!A57","v":"N"},{"$f":"StatisticallySignificantCalcs!$J$57","v":"N"}]
[null,null,"Some College, No Degree",null,null,{"$f":"CntyDataLinkPrior10YearEstimate!$AD$140","v":884},{"$f":"CntyDataLinkPrior10YearEstimate!$AE$140","v":178.70926109186397},0.27258711069996916,{"$f":"CntyDataLinkPrior5YearEstimates!$AD$140","v":583},{"$f":"CntyDataLinkPrior5YearEstimates!$AE$140","v":134.20134127496641},0.18965517241379309,{"$f":"CntyDataLink!$AD$140","v":495},{"$f":"CntyDataLink!$AE$140","v":122.15154522149935},0.15704314720812182,null,{"$f":"StatisticallySignificantCalcs!A58","v":"N"},{"$f":"StatisticallySignificantCalcs!$J$58","v":"N"}]
[null,null,"Associate Degree",null,null,{"$f":"CntyDataLinkPrior10YearEstimate!$AF$140","v":276},{"$f":"CntyDataLinkPrior10YearEstimate!$AG$140","v":108.46658471621571},8.5106382978723402E-2,{"$f":"CntyDataLinkPrior5YearEstimates!$AF$140","v":312},{"$f":"CntyDataLinkPrior5YearEstimates!$AG$140","v":107.20074626605917},0.1014964216005205,{"$f":"CntyDataLink!$AF$140","v":399},{"$f":"CntyDataLink!$AG$140","v":111.75866856758807},0.12658629441624367,null,{"$f":"StatisticallySignificantCalcs!A59","v":"N"},{"$f":"StatisticallySignificantCalcs!$J$59","v":"N"}]
[null,null,"Bachelor's Degree",null,null,{"$f":"CntyDataLinkPrior10YearEstimate!$AH$140","v":412},{"$f":"CntyDataLinkPrior10YearEstimate!$AI$140","v":151.48927354766738},0.12704286154794944,{"$f":"CntyDataLinkPrior5YearEstimates!$AH$140","v":275},{"$f":"CntyDataLinkPrior5YearEstimates!$AI$140","v":86.95401083331349},8.9459986987638254E-2,{"$f":"CntyDataLink!$AH$140","v":369},{"$f":"CntyDataLink!$AI$140","v":109.85900054160332},0.11706852791878172,null,{"$f":"StatisticallySignificantCalcs!A60","v":"N"},{"$f":"StatisticallySignificantCalcs!$J$60","v":"N"}]
[null,null,"Graduate or Professional Degree",null,null,{"$f":"CntyDataLinkPrior10YearEstimate!$AJ$140","v":73},{"$f":"CntyDataLinkPrior10YearEstimate!$AK$140","v":170.49633427144408},2.2510021584952206E-2,{"$f":"CntyDataLinkPrior5YearEstimates!$AJ$140","v":115},{"$f":"CntyDataLinkPrior5YearEstimates!$AK$140","v":59.38013135721409},3.7410540013012361E-2,{"$f":"CntyDataLink!$AJ$140","v":143},{"$f":"CntyDataLink!$AK$140","v":65.12296062065974},4.5368020304568525E-2,null,{"$f":"StatisticallySignificantCalcs!A61","v":"N"},{"$f":"StatisticallySignificantCalcs!$J$61","v":"N"}]
[]
[null,null,"Percent of High School Graduate or Higher",null,null,null,null,{"$f":"SUM(F55:F59)/F52","v":0.84520505704594506},null,null,{"$f":"SUM(I55:I59)/I52","v":0.9199739752765127},null,null,{"$f":"SUM(L55:L59)/L52","v":0.88927664974619292}]
[null,null,"Percent of Bachelor's Degree or Higher",null,null,null,null,{"$f":"SUM(F58:F59)/F52","v":0.14955288313290163},null,null,{"$f":"SUM(I58:I59)/I52","v":0.12687052700065063},null,null,{"$f":"SUM(L58:L59)/L52","v":0.16243654822335024}]
[]
[null,null,{"$f":"\"Source: \"&F21&\", \"&I21&\" and \"&L21&\" American Community Survey Table B15002\"","v":"Source: 2005-2009, 2010-2014 and 2015-2019 American Community Survey Table B15002"},null,null,null,null,"Data from the American Community Survey are estimates"]
[]
[null,null,"As a result of changes in the American Community Survey, direct comparisons between the data should be made with caution."]
[null,null,"be made with caution."]

{"sheet":"HousingCharacteristics","index":6,"n_rows":112,"n_cols":16,"rows_kept":112,"cut":false,"hidden":true,"merged":[[85,2,85,4],[85,6,85,8],[85,10,85,12],[29,2,29,4],[29,5,29,7],[29,8,29,10],[68,3,68,5],[68,6,68,8],[29,11,29,12],[29,14,29,15],[68,9,68,11],[68,12,68,13],[68,14,68,15],[85,14,85,15]]}
[]
[null,{"$f":"CntyDataLink!$A35","v":"Allenstown"}]
[]
[null,"HOUSING CHARACTERISTICS"]
[]
[]
[]
[]
[]
[]
[]
[]
[]
[]
[]
[]
[]
[]
[]
[]
[]
[]
[]
[]
[]
[]
[null,null,null,{"$f":"\"Source:  \"& \" \"&D69&\", \"&G69&\" and \"&J69& \" American Community Survey Table B25024; B25032\"","v":"Source:   2005-2009, 2010-2014 and 2015-2019 American Community Survey Table B25024; B25032"}]
[null,"Units by Tenure & Vacancy"]
[]
[null,null,"2005-2009",null,null,"2010-2014",null,null,"2015-2019",null,null,"Percent Change",null,null,"Statistically Significant Change"]
[null,null,"Estimate","Margin of Error","%","Estimate","Margin of Error","%","Estimate","Margin of Error","%","2009-2019","2014-2019",null,"2009-2019","2014-2019"]
[null,"Total Units",{"$f":"CntyDataLinkPrior10YearEstimate!$B$108","v":1897},{"$f":"CntyDataLinkPrior5YearEstimates!$C$108","v":101},null,{"$f":"CntyDataLinkPrior5YearEstimates!$B$108","v":1812},{"$f":"CntyDataLinkPrior5YearEstimates!$C$108","v":101},null,{"$f":"CntyDataLink!$B$108","v":1858},{"$f":"CntyDataLink!$C$108","v":120},null,{"$f":"IF(I32=\"-\",\"-\",(I32-C32)/C32)","v":-2.0558777016341592E-2},{"$f":"IF(I32=\"-\",\"-\",(I32-F32)/F32)","v":2.5386313465783666E-2},null,{"$f":"StatisticallySignificantCalcs!$A62","v":"N"},{"$f":"StatisticallySignificantCalcs!$J62","v":"N"}]
[null,"Occupied Units",{"$f":"CntyDataLinkPrior10YearEstimate!$D$108","v":1824},{"$f":"CntyDataLinkPrior5YearEstimates!$E$108","v":88},{"$f":"ROUND(C33/C32,2)*100&\"% of Total\"","v":"96% of Total"},{"$f":"CntyDataLinkPrior5YearEstimates!$D$108","v":1787},{"$f":"CntyDataLinkPrior5YearEstimates!$E$108","v":88},{"$f":"ROUND(F33/F32,2)*100&\"% of Total\"","v":"99% of Total"},{"$f":"CntyDataLink!$D$108","v":1788},{"$f":"CntyDataLink!$E$108","v":107},{"$f":"ROUND(I33/I32,2)*100&\"% of Total\"","v":"96% of Total"},{"$f":"IF(I33=\"-\",\"-\",(I33-C33)/C33)","v":-1.9736842105263157E-2},5.5959709009513155E-4,null,{"$f":"StatisticallySignificantCalcs!$A63","v":"N"},{"$f":"StatisticallySignificantCalcs!$J63","v":"N"}]
[null,"Owner Occupied",{"$f":"CntyDataLinkPrior10YearEstimate!$F$108","v":1176},{"$f":"CntyDataLinkPrior5YearEstimates!$G$108","v":116},{"$f":"ROUND(C34/C33,2)*100&\"% of Occ.\"","v":"64% of Occ."},{"$f":"CntyDataLinkPrior5YearEstimates!$F$108","v":1252},{"$f":"CntyDataLinkPrior5YearEstimates!$G$108","v":116},{"$f":"ROUND(F34/F33,2)*100&\"% of Occ.\"","v":"70% of Occ."},{"$f":"CntyDataLink!$F$108","v":1379},{"$f":"CntyDataLink!$G$108","v":114},{"$f":"ROUND(I34/I33,2)*100&\"% of Occ.\"","v":"77% of Occ."},{"$f":"IF(I34=\"-\",\"-\",(I34-C34)/C34)","v":0.17261904761904762},0.10143769968051118,null,{"$f":"StatisticallySignificantCalcs!$A64","v":"Y"},{"$f":"StatisticallySignificantCalcs!$J64","v":"N"}]
[null,"Renter Occupied",{"$f":"CntyDataLinkPrior10YearEstimate!$H$108","v":648},{"$f":"CntyDataLinkPrior5YearEstimates!$I$108","v":128},{"$f":"ROUND(C35/C33,2)*100&\"% of Occ.\"","v":"36% of Occ."},{"$f":"CntyDataLinkPrior5YearEstimates!$H$108","v":535},{"$f":"CntyDataLinkPrior5YearEstimates!$I$108","v":128},{"$f":"ROUND(F35/F33,2)*100&\"% of Occ.\"","v":"30% of Occ."},{"$f":"CntyDataLink!$H$108","v":409},{"$f":"CntyDataLink!$I$108","v":114},{"$f":"ROUND(I35/I33,2)*100&\"% of Occ.\"","v":"23% of Occ."},{"$f":"IF(I35=\"-\",\"-\",(I35-C35)/C35)","v":-0.36882716049382713},-0.23551401869158878,null,{"$f":"StatisticallySignificantCalcs!$A65","v":"Y"},{"$f":"StatisticallySignificantCalcs!$J65","v":"N"}]
[null,"Vacant Units",{"$f":"CntyDataLinkPrior10YearEstimate!$J$108","v":318},{"$f":"CntyDataLinkPrior5YearEstimates!$K$108","v":39},{"$f":"ROUND(C36/C32,2)*100&\"% of Total\"","v":"17% of Total"},{"$f":"CntyDataLinkPrior5YearEstimates!$J$108","v":25},{"$f":"CntyDataLinkPrior5YearEstimates!$K$108","v":39},{"$f":"ROUND(F36/F32,2)*100&\"% of Total\"","v":"1% of Total"},{"$f":"CntyDataLink!$J$108","v":70},{"$f":"CntyDataLink!$K$108","v":62},{"$f":"ROUND(I36/I32,2)*100&\"% of Total\"","v":"4% of Total"},{"$f":"IF(I36=\"-\",I36,VALUE((I36-C36)/C36))","v":-0.77987421383647804},1.8,null,{"$f":"StatisticallySignificantCalcs!$A66","v":"Y"},{"$f":"StatisticallySignificantCalcs!$J66","v":"N"}]
[null,"Vacant For Sale",{"$f":"CntyDataLinkPrior10YearEstimate!$P$108","v":35},{"$f":"CntyDataLinkPrior5YearEstimates!$Q$108","v":11},{"$f":"ROUND(C37/(C34+C37),3)*100&\"% Vac.\"","v":"2.9% Vac."},{"$f":"CntyDataLinkPrior5YearEstimates!$P$108","v":0},{"$f":"CntyDataLinkPrior5YearEstimates!$Q$108","v":11},{"$f":"ROUND(F37/(F34+F37),3)*100&\"% Vac.\"","v":"0% Vac."},{"$f":"CntyDataLink!$P$108","v":37},{"$f":"CntyDataLink!$Q$108","v":45},{"$f":"ROUND(I37/(I34+I37),3)*100&\"% Vac.\"","v":"2.6% Vac."},{"$f":"IF(I37=\"-\",I37,VALUE((I37-C37)/C37))","v":5.7142857142857141E-2},{"$error":"#DIV/0!"},null,{"$f":"StatisticallySignificantCalcs!$A67","v":"N"},{"$f":"StatisticallySignificantCalcs!$J67","v":"N"}]
[null,"Vacant For Rent",{"$f":"CntyDataLinkPrior10YearEstimate!$L$108","v":0},{"$f":"CntyDataLinkPrior5YearEstimates!$M$108","v":11},{"$f":"ROUND(C38/(C35+C38),3)*100&\"% Vac.\"","v":"0% Vac."},{"$f":"CntyDataLinkPrior5YearEstimates!$L$108","v":0},{"$f":"CntyDataLinkPrior5YearEstimates!$M$108","v":11},{"$f":"ROUND(F38/(F35+F38),3)*100&\"% Vac.\"","v":"0% Vac."},{"$f":"CntyDataLink!$L$108","v":0},{"$f":"CntyDataLink!$M$108","v":11},{"$f":"ROUND(I38/(I35+I38),3)*100&\"% Vac.\"","v":"0% Vac."},{"$f":"IF(I38=\"-\",I38,VALUE((I38-C38)/C38))","v":{"$error":"#DIV/0!"}},{"$error":"#DIV/0!"},null,{"$f":"StatisticallySignificantCalcs!$A68","v":"N"},{"$f":"StatisticallySignificantCalcs!$J68","v":"N"}]
[null,"Vacant Seasonal",{"$f":"CntyDataLinkPrior10YearEstimate!$T$108","v":0},{"$f":"CntyDataLinkPrior5YearEstimates!$U$108","v":11},{"$f":"ROUND(C39/C32,2)*100&\"% of Total\"","v":"0% of Total"},{"$f":"CntyDataLinkPrior5YearEstimates!$T$108","v":0},{"$f":"CntyDataLinkPrior5YearEstimates!$U$108","v":11},{"$f":"ROUND(F39/F32,2)*100&\"% of Total\"","v":"0% of Total"},{"$f":"CntyDataLink!$T$108","v":0},{"$f":"CntyDataLink!$U$108","v":11},{"$f":"ROUND(I39/I32,2)*100&\"% of Total\"","v":"0% of Total"},{"$f":"IF(I39=\"-\",I39,VALUE((I39-C39)/C39))","v":{"$error":"#DIV/0!"}},{"$error":"#DIV/0!"},null,{"$f":"StatisticallySignificantCalcs!$A69","v":"N"},{"$f":"StatisticallySignificantCalcs!$J69","v":"N"}]
[]
[null,"Data from the American Community Survey are estimates"]
[]
[]
[null,"HOUSING CHARACTERISTICS"]
[]
[]
[]
[]
[]
[]
[]
[]
[]
[]
[]
[]
[]
[]
[]
[]
[]
[]
[]
[]
[null,null,null,{"$f":"\"Source: \"& \" \"&D69&\", \"&G69&\" and \"&J69& \"  American Community Survey Table B25024; B25032\"","v":"Source:  2005-2009, 2010-2014 and 2015-2019  American Community Survey Table B25024; B25032"}]
[]
[null,null,"Units by Type"]
[]
[null,null,null,"2005-2009",null,null,"2010-2014",null,null,"2015-2019",null,null,"Percent Change",null,"Statistically Significant Change"]
[null,null,null,"Estimate","Margin of Error","% of Total","Estimate","Margin of Error","% of Total","Estimate","Margin of Error","% of Total","2009-2019","2014-2019","2009-2019","2014-2019"]
[null,null,"Total Units",{"$f":"CntyDataLinkPrior10YearEstimate!$B$108","v":1897},{"$f":"CntyDataLinkPrior10YearEstimate!$C$108","v":142},null,{"$f":"CntyDataLinkPrior5YearEstimates!$B$108","v":1812},{"$f":"CntyDataLinkPrior5YearEstimates!$C$108","v":101},null,{"$f":"CntyDataLink!$B$108","v":1858},{"$f":"CntyDataLink!$C$108","v":120},null,null,null,{"$f":"StatisticallySignificantCalcs!$A70","v":"N"},{"$f":"StatisticallySignificantCalcs!$J70","v":"N"}]
[null,null,"Single Family Units",{"$f":"CntyDataLinkPrior10YearEstimate!$AT$108","v":896},{"$f":"CntyDataLinkPrior10YearEstimate!$AU$108","v":146},{"$f":"IF(D72=\"-\",\"-\",($D$72/$D$71))","v":0.47232472324723246},{"$f":"CntyDataLinkPrior5YearEstimates!$AT$108","v":741},{"$f":"CntyDataLinkPrior5YearEstimates!$AU$108","v":108},{"$f":"IF(G72=\"-\",\"-\",($G$72/$G$71))","v":0.40894039735099336},{"$f":"CntyDataLink!$AT$108","v":1297},{"$f":"CntyDataLink!$AU$108","v":192.64475077198443},{"$f":"IF(J72=\"-\",\"-\",($J$72/$J$71))","v":0.69806243272335844},{"$f":"IF(J72=\"-\",\"-\",($J72-$D72)/$D72)","v":0.44754464285714285},{"$f":"IF(J72=\"-\",\"-\",($J72-$G72)/$G72)","v":0.75033738191632926},{"$f":"StatisticallySignificantCalcs!$A71","v":"Y"},{"$f":"StatisticallySignificantCalcs!$J71","v":"Y"}]
[null,null,"SF Owner Occ.",{"$f":"CntyDataLinkPrior10YearEstimate!$AF$108","v":803},{"$f":"CntyDataLinkPrior10YearEstimate!$AG$108","v":149},null,{"$f":"CntyDataLinkPrior5YearEstimates!$AF$108","v":634},{"$f":"CntyDataLinkPrior5YearEstimates!$AG$108","v":90},null,{"$f":"CntyDataLink!$AF$108","v":620},{"$f":"CntyDataLink!$AG$108","v":107},null,null,null,{"$f":"StatisticallySignificantCalcs!$A72","v":"N"},{"$f":"StatisticallySignificantCalcs!$J72","v":"N"}]
[null,null,"SF Renter Occ.",{"$f":"CntyDataLinkPrior10YearEstimate!$AN$108","v":58},{"$f":"CntyDataLinkPrior10YearEstimate!$AO$108","v":56},null,{"$f":"CntyDataLinkPrior5YearEstimates!$AN$108","v":82},{"$f":"CntyDataLinkPrior5YearEstimates!$AO$108","v":61},null,{"$f":"CntyDataLink!$AN$108","v":48},{"$f":"CntyDataLink!$AO$108","v":41},null,null,null,{"$f":"StatisticallySignificantCalcs!$A73","v":"N"},{"$f":"StatisticallySignificantCalcs!$J73","v":"N"}]
[null,null,"Multi-family Units",{"$f":"CntyDataLinkPrior10YearEstimate!$AV$108","v":701},{"$f":"CntyDataLinkPrior10YearEstimate!$AW$108","v":207.10383868967759},{"$f":"IF(D75=\"-\",\"-\",$D$75/$D$71)","v":0.36953083816552451},{"$f":"CntyDataLinkPrior5YearEstimates!$AV$108","v":570},{"$f":"CntyDataLinkPrior5YearEstimates!$AW$108","v":154.83216720048841},{"$f":"IF(G75=\"-\",\"-\",$G$75/$G$71)","v":0.31456953642384106},{"$f":"CntyDataLink!$AV$108","v":561},{"$f":"CntyDataLink!$AW$108","v":107.22872749408155},{"$f":"IF(J75=\"-\",\"-\",$J$75/$J$71)","v":0.30193756727664156},{"$f":"IF(J75=\"-\",\"-\",($J75-$D75)/$D75)","v":-0.19971469329529243},{"$f":"IF(J75=\"-\",\"-\",($J75-$G75)/$G75)","v":-1.5789473684210527E-2},{"$f":"StatisticallySignificantCalcs!$A74","v":"N"},{"$f":"StatisticallySignificantCalcs!$J74","v":"N"}]
[null,null,"MF Owner Occ.",{"$f":"CntyDataLinkPrior10YearEstimate!$AH$108","v":112},{"$f":"CntyDataLinkPrior10YearEstimate!$AI$108","v":207.27517941133232},null,{"$f":"CntyDataLinkPrior5YearEstimates!$AH$108","v":182},{"$f":"CntyDataLinkPrior5YearEstimates!$AI$108","v":78.943017423962203},null,{"$f":"CntyDataLink!$AH$108","v":238},{"$f":"CntyDataLink!$AI$108","v":95.524865872714003},null,null,null,{"$f":"StatisticallySignificantCalcs!$A75","v":"N"},{"$f":"StatisticallySignificantCalcs!$J75","v":"N"}]
[null,null,"MF Renter Occ.",{"$f":"CntyDataLinkPrior10YearEstimate!$AP$108","v":551},{"$f":"CntyDataLinkPrior10YearEstimate!$AQ$108","v":197.81304304822774},null,{"$f":"CntyDataLinkPrior5YearEstimates!$AP$108","v":388},{"$f":"CntyDataLinkPrior5YearEstimates!$AQ$108","v":136.90872872099865},null,{"$f":"CntyDataLink!$AP$108","v":350},{"$f":"CntyDataLink!$AQ$108","v":122.42548754242313},null,null,null,{"$f":"StatisticallySignificantCalcs!$A76","v":"N"},{"$f":"StatisticallySignificantCalcs!$J76","v":"N"}]
[null,null,"Mobile Home & Other",{"$f":"CntyDataLinkPrior10YearEstimate!$AX$108","v":300},{"$f":"CntyDataLinkPrior10YearEstimate!$AY$108","v":141.01418368376991},{"$f":"IF(D78=\"-\",\"-\",($D$78/$D$71))","v":0.158144438587243},{"$f":"CntyDataLinkPrior5YearEstimates!$AX$108","v":501},{"$f":"CntyDataLinkPrior5YearEstimates!$AY$108","v":93.648278147545241},{"$f":"IF(G78=\"-\",\"-\",($G$78/$G$71))","v":0.27649006622516559},{"$f":"CntyDataLink!$AX$108","v":0},{"$f":"CntyDataLink!$AY$108","v":0},{"$f":"IF(J78=\"-\",\"-\",($J$78/$J$71))","v":0},{"$f":"IF(J78=\"-\",\"-\",($J78-$D78)/$D78)","v":-1},{"$f":"IF(J78=\"-\",\"-\",($J78-$G78)/$G78)","v":-1},{"$f":"StatisticallySignificantCalcs!$A77","v":"Y"},{"$f":"StatisticallySignificantCalcs!$J77","v":"Y"}]
[]
[null,"Data from the American Community Survey are estimates"]
[]
[]
[null,"Units by Number of Bedrooms "]
[null,null,null,{"$f":"\"Source: \"& \" \"&D69&\", \"&G69&\" and \"&J69& \" American Community Survey Table B25041\"","v":"Source:  2005-2009, 2010-2014 and 2015-2019 American Community Survey Table B25041"}]
[]
[null,null,"2005-2009",null,null,null,"2010-2014",null,null,null,"2015-2019",null,null,null,"Statistically Significant Change"]
[null,"Bedrooms","Estimate","Margin of Error","% of Total",null,"Estimate","Margin of Error","% of Total",null,"Estimate","Margin of Error","% of Total",null,"2009-2019","2014-2019"]
[null,"No Bedrooms",{"$f":"CntyDataLinkPrior10YearEstimate!$BR$108","v":106},{"$f":"CntyDataLinkPrior10YearEstimate!$BS$108","v":84},{"$f":"C88/SUM($C$88:$C$92)","v":5.5877701634159199E-2},null,{"$f":"CntyDataLinkPrior5YearEstimates!$BR$108","v":56},{"$f":"CntyDataLinkPrior5YearEstimates!$BS$108","v":75},{"$f":"G88/SUM($G$88:$G$92)","v":3.0905077262693158E-2},null,{"$f":"CntyDataLink!$BT$108","v":38},{"$f":"CntyDataLink!$BU$108","v":21},{"$f":"K88/SUM($K$88:$K$92)","v":2.0452099031216361E-2},null,{"$f":"StatisticallySignificantCalcs!$A78","v":"N"},{"$f":"StatisticallySignificantCalcs!$J78","v":"N"}]
[null,"1 Bedroom",{"$f":"CntyDataLinkPrior10YearEstimate!$BT$108","v":325},{"$f":"CntyDataLinkPrior10YearEstimate!$BU$108","v":108},{"$f":"C89/SUM($C$88:$C$92)","v":0.17132314180284661},null,{"$f":"CntyDataLinkPrior5YearEstimates!$BT$108","v":266},{"$f":"CntyDataLinkPrior5YearEstimates!$BU$108","v":100},{"$f":"G89/SUM($G$88:$G$92)","v":0.14679911699779249},null,{"$f":"CntyDataLink!$BV$108","v":259},{"$f":"CntyDataLink!$BW$108","v":108},{"$f":"K89/SUM($K$88:$K$92)","v":0.13939720129171151},null,{"$f":"StatisticallySignificantCalcs!$A79","v":"N"},{"$f":"StatisticallySignificantCalcs!$J79","v":"N"}]
[null,"2 Bedrooms",{"$f":"CntyDataLinkPrior10YearEstimate!$BV$108","v":451},{"$f":"CntyDataLinkPrior10YearEstimate!$BW$108","v":151},{"$f":"C90/SUM($C$88:$C$92)","v":0.23774380600948866},null,{"$f":"CntyDataLinkPrior5YearEstimates!$BV$108","v":610},{"$f":"CntyDataLinkPrior5YearEstimates!$BW$108","v":120},{"$f":"G90/SUM($G$88:$G$92)","v":0.33664459161147903},null,{"$f":"CntyDataLink!$BX$108","v":592},{"$f":"CntyDataLink!$BY$108","v":125},{"$f":"K90/SUM($K$88:$K$92)","v":0.31862217438105489},null,{"$f":"StatisticallySignificantCalcs!$A80","v":"Y"},{"$f":"StatisticallySignificantCalcs!$J80","v":"N"}]
[null,"3 Bedrooms",{"$f":"CntyDataLinkPrior10YearEstimate!$BX$108","v":705},{"$f":"CntyDataLinkPrior10YearEstimate!$BY$108","v":154},{"$f":"C91/SUM($C$88:$C$92)","v":0.37163943068002109},null,{"$f":"CntyDataLinkPrior5YearEstimates!$BX$108","v":696},{"$f":"CntyDataLinkPrior5YearEstimates!$BY$108","v":113},{"$f":"G91/SUM($G$88:$G$92)","v":0.38410596026490068},null,{"$f":"CntyDataLink!$BZ$108","v":790},{"$f":"CntyDataLink!$CA$108","v":119},{"$f":"K91/SUM($K$88:$K$92)","v":0.42518837459634012},null,{"$f":"StatisticallySignificantCalcs!$A81","v":"Y"},{"$f":"StatisticallySignificantCalcs!$J81","v":"N"}]
[null,"4+ Bedrooms",{"$f":"CntyDataLinkPrior10YearEstimate!$BZ$108","v":310},{"$f":"CntyDataLinkPrior10YearEstimate!$CA$108","v":140.24621207005913},{"$f":"C92/SUM($C$88:$C$92)","v":0.16341591987348444},null,{"$f":"CntyDataLinkPrior5YearEstimates!$BZ$108","v":184},{"$f":"CntyDataLinkPrior5YearEstimates!$CA$108","v":73.23933369440222},{"$f":"G92/SUM($G$88:$G$92)","v":0.10154525386313466},null,{"$f":"CntyDataLink!$CB$108","v":179},{"$f":"CntyDataLink!$CC$108","v":76.295478240849903},{"$f":"K92/SUM($K$88:$K$92)","v":9.6340150699677066E-2},null,{"$f":"StatisticallySignificantCalcs!$A82","v":"N"},{"$f":"StatisticallySignificantCalcs!$J82","v":"N"}]
[]
[null,"As a result of changes in the American Community Survey, direct comparisons between the 2009-2013 and 2015-2019 data should be made with caution."]
[null,"Data from the American Community Survey are estimates"]
[]
[null,"Units by Year Built   "]
[null,{"$f":"\"Source: \"&K86& \" American Community Survey Table B25034\"","v":"Source: 2015-2019 American Community Survey Table B25034"}]
[]
[null,null,null,"Year Built",null,null,"Units  ",null,"% of Total",null,"Margin of Error"]
[null,null,null,null,null,"2014 or later",{"$f":"CntyDataLink!$AZ$108","v":67},null,{"$f":"G101/SUM($G$101:$G$110)","v":3.6060279870828847E-2},null,{"$f":"CntyDataLink!$BA$108","v":51}]
[null,null,null,null,null,"2010 through 2013",{"$f":"CntyDataLink!$BB$108","v":17},null,9.1496232508073202E-3,null,{"$f":"CntyDataLink!$BC$108","v":19}]
[null,null,null,null,null,"2000 through 2009",{"$f":"CntyDataLink!$BD$108","v":197},null,0.10602798708288483,null,{"$f":"CntyDataLink!$BE$108","v":65}]
[null,null,null,null,null,"1990 through 1999",{"$f":"CntyDataLink!$BF$108","v":139},null,7.4811625403659848E-2,null,{"$f":"CntyDataLink!$BG$108","v":64}]
[null,null,null,null,null,"1980 through 1989",{"$f":"CntyDataLink!$BH$108","v":337},null,0.18137782561894511,null,{"$f":"CntyDataLink!$BI$108","v":101}]
[null,null,null,null,null,"1970 through 1979",{"$f":"CntyDataLink!$BJ$108","v":417},null,0.22443487621097954,null,{"$f":"CntyDataLink!$BK$108","v":109}]
[null,null,null,null,null,"1960 through 1969",{"$f":"CntyDataLink!$BL$108","v":131},null,7.0505920344456408E-2,null,{"$f":"CntyDataLink!$BM$108","v":50}]
[null,null,null,null,null,"1950 through 1959",{"$f":"CntyDataLink!$BN$108","v":183},null,9.84930032292788E-2,null,{"$f":"CntyDataLink!$BO$108","v":89}]
[null,null,null,null,null,"1940 through 1949",{"$f":"CntyDataLink!$BP$108","v":146},null,7.8579117330462869E-2,null,{"$f":"CntyDataLink!$BQ$108","v":95}]
[null,null,null,null,null,"1939 and earlier",{"$f":"CntyDataLink!$BR$108","v":224},null,0.12055974165769645,null,{"$f":"CntyDataLink!$BS$108","v":95}]
[]
[null,"Data from the American Community Survey are estimates"]

{"sheet":"CntyDataLink","index":7,"n_rows":167,"n_cols":255,"rows_kept":167,"cut":false,"hidden":true,"merged":[]}
[1,{"$f":"A1+1","v":2},{"$f":"B1+1","v":3},4,5,6,7,8,9,10,11,12,13,14,15,{"$f":"O1+1","v":16},17,18,19,20,21,22,23,24,25,26,27,28,29,30,31,32,33,34,35,36,37,38,39,40,41,42,43,44,45,46,47,48,49,50,51,52,53,54,55,56,57,58,59,60,61,62,63,64,65,66,{"$f":"BN1+1","v":67},68,69,70,71,72,73,74,75,76,77,78,79,80,81,82,83,84,85,86,87,88,89,90,91,92,93,94,95,96,97,98,99,100,101,102,103,104,105,106,107,108,109,110,111,112,113,114,115,116,117,118,119,120,121,122,123,124,125,126,127,128,129,130,{"$f":"DZ1+1","v":131},132,133,134,135,136,137,138,139,140,141,142,143,144,145,146,147,148,149,150,151,152,153,154,155,156,157,158,159,160,161,162,163,164,165,166,167,168,169,170,171,172,173,174,175,176,177,178,179,180,181,182,183,184,185,186,187,188,189,190,191,192,193,194,{"$f":"GL1+1","v":195},196,197,198,199,200,201,202,203,204,205,206,207,208,209,210,211,212,213,214,215,216,217,218,219,220,221,222,223,224,225,226,227,228,229,230,231,232,233,234,235,236,237,238,239,240,241,242,243,244,245,246,247,248,249,250,251,252,253,254,255]
[]
["Census 1990 Data -           Query Name:  DPCnty90Census"]
["TownName","Cnty_Code","Census_Cnty_Code","LandAcres","WaterAcres","HousingUnits90Cen","Persons90Cen","Families90Cen","Households90cen","MalePop90cen","FemalePop90cen","WhitePop","BlackPop","AmerIndianPop","AsianPIPop","OtherRacePop","HispanicOrPop","AgeUnder15_90cen","Age15to24_90cen","Age25to34_90cen","Age35to44_90cen","Age45to54_90cen","Age55to64_90cen","Age65to74_90cen","Age75andOver_90cen","PersonsInHH90cen","PersonsInFamHH90cen","PersonsInGC","PersonsPerHH90cen","PersonsPerFam90Cen","SinglePersonHH90cen","MarriedCoupleHH90cen","SingleParentHH90cen","NonFamilyHH90cen","TotalHousingUnits","OccupiedHousingUnits","VacantHousingUnits","OwnerOccHU","RenterOccHU","VacantForRent90","VacantForSale90","VacantSeasonalRec","SingFamHU90cen","MultiFamHU90cen","MobileHom90cen","SingFamOwnHU90cen","MultiFamOwnHU90cen","MobileHomOwnHU90cen","SingFamRntrHU90cen","MultiFamRntrHU90cen","MobileHomRntrHU90cen","HU<5yrs90cen","HU5to20yrs90cen","HU20to50yrs90cen","HU>50yrs90cen","Units0Bedroom90cen","Units1Bedroom90cen","Units2Bedroom90cen","Units3Bedroom90cen","Units4+Bedroom90cen","HI<5K","HI5Kto10K","HI10Kto15K","HI15Kto25K","HI25Kto35K","HI35Kto50K","HI50Kto75K","HI75Kto100K","HI>100K","MedHI","HH<25HI<5K","HH<25HI5Kto10K","HH<25HI10Kto15K","HH<25HI15Kto25K","HH<25HI25Kto35K","HH<25HI35Kto50K","HH<25HI50Kto75K","HH<25HI75Kto100K","HH<25HI>100K","HH25to34HI<5K","HH25to34HI5Kto10K","HH25to34HI10Kto15K","HH25to34HI15Kto25K","HH25to34HI25Kto35K","HH25to34HI35Kto50K","HH25to34HI50Kto75K","HH25to34HI75Kto100K","HH25to34HI>100K","HH35to44HI<5K","HH35to44HI5Kto10K","HH35to44HI10Kto15K","HH35to44HI15Kto25K","HH35to44HI25Kto35K","HH35to44HI35Kto50K","HH35to44HI50Kto75K","HH35to44HI75Kto100K","HH35to44HI>100K","HH45to54HI<5K","HH45to54HI5Kto10K","HH45to54HI10Kto15K","HH45to54HI15Kto25K","HH45to54HI25Kto35K","HH45to54HI35Kto50K","HH45to54HI50Kto75K","HH45to54HI75Kto100K","HH45to54HI>100K","HH55to64HI<5K","HH55to64HI5Kto10K","HH55to64HI10Kto15K","HH55to64HI15Kto25K","HH55to64HI25Kto35K","HH55to64HI35Kto50K","HH55to64HI50Kto75K","HH55to64HI75Kto100K","HH55to64HI>100K","HH65to74HI<5K","HH65to74HI5Kto10K","HH65to74HI10Kto15K","HH65to74HI15Kto25K","HH65to74HI25Kto35K","HH65to74HI35Kto50K","HH65to74HI50Kto75K","HH65to74HI75Kto100K","HH65to74HI>100K","HH>75HI<5K","HH>75HI5Kto10K","HH>75HI10Kto15K","HH>75HI15Kto25K","HH>75HI25Kto35K","HH>75HI35Kto50K","HH>75HI50Kto75K","HH>75HI75Kto100K","HH>75HI>100K","SchoolEnrollment1thru12","Pop25andOver","HSGradorHigher","CollGradorHigher","NativePop","ForeignBornPop","BornStateOfRes","NativePop2","ForeignBornPop2","DroveAlone","CarPooled","PublicTranspt","Walked","OtherMeans","WorkedAtHome","HHInc<10K","HHInc10to15K","HHInc15to25K","HHInc25to35K","HHInc35to50K","HHInc50to75K","HHInc75to100K","HHInc100to150K","HHInc>150K"]
[{"$f":"VLOOKUP(DropDownList!$A$47,CntyQuery!$A$4:$FI$46,A1)","v":"Allenstown"},{"$f":"VLOOKUP(DropDownList!$A$47,CntyQuery!$A$4:$FA$46,B1)","v":13005},{"$f":"VLOOKUP(DropDownList!$A$47,CntyQuery!$A$4:$FA$46,C1)","v":"00660"},{"$f":"VLOOKUP(DropDownList!$A$47,CntyQuery!$A$4:$FA$46,D1)","v":13097.95},{"$f":"VLOOKUP(DropDownList!$A$47,CntyQuery!$A$4:$FA$46,E1)","v":69.48},{"$f":"VLOOKUP(DropDownList!$A$47,CntyQuery!$A$4:$FA$46,F1)","v":1868},{"$f":"VLOOKUP(DropDownList!$A$47,CntyQuery!$A$4:$FA$46,G1)","v":4649},{"$f":"VLOOKUP(DropDownList!$A$47,CntyQuery!$A$4:$FA$46,H1)","v":1253},{"$f":"VLOOKUP(DropDownList!$A$47,CntyQuery!$A$4:$FA$46,I1)","v":1762},{"$f":"VLOOKUP(DropDownList!$A$47,CntyQuery!$A$4:$FA$46,J1)","v":2301},{"$f":"VLOOKUP(DropDownList!$A$47,CntyQuery!$A$4:$FA$46,K1)","v":2348},{"$f":"VLOOKUP(DropDownList!$A$47,CntyQuery!$A$4:$FA$46,L1)","v":4587},{"$f":"VLOOKUP(DropDownList!$A$47,CntyQuery!$A$4:$FA$46,M1)","v":24},{"$f":"VLOOKUP(DropDownList!$A$47,CntyQuery!$A$4:$FA$46,N1)","v":9},{"$f":"VLOOKUP(DropDownList!$A$47,CntyQuery!$A$4:$FA$46,O1)","v":24},{"$f":"VLOOKUP(DropDownList!$A$47,CntyQuery!$A$4:$FA$46,P1)","v":5},{"$f":"VLOOKUP(DropDownList!$A$47,CntyQuery!$A$4:$FA$46,Q1)","v":25},{"$f":"VLOOKUP(DropDownList!$A$47,CntyQuery!$A$4:$FA$46,R1)","v":1104},{"$f":"VLOOKUP(DropDownList!$A$47,CntyQuery!$A$4:$FA$46,S1)","v":557},{"$f":"VLOOKUP(DropDownList!$A$47,CntyQuery!$A$4:$FA$46,T1)","v":1093},{"$f":"VLOOKUP(DropDownList!$A$47,CntyQuery!$A$4:$FA$46,U1)","v":692},{"$f":"VLOOKUP(DropDownList!$A$47,CntyQuery!$A$4:$FA$46,V1)","v":426},{"$f":"VLOOKUP(DropDownList!$A$47,CntyQuery!$A$4:$FA$46,W1)","v":360},{"$f":"VLOOKUP(DropDownList!$A$47,CntyQuery!$A$4:$FA$46,X1)","v":238},{"$f":"VLOOKUP(DropDownList!$A$47,CntyQuery!$A$4:$FA$46,Y1)","v":179},{"$f":"VLOOKUP(DropDownList!$A$47,CntyQuery!$A$4:$FA$46,Z1)","v":4649},{"$f":"VLOOKUP(DropDownList!$A$47,CntyQuery!$A$4:$FA$46,AA1)","v":3987},{"$f":"VLOOKUP(DropDownList!$A$47,CntyQuery!$A$4:$FA$46,AB1)","v":0},{"$f":"VLOOKUP(DropDownList!$A$47,CntyQuery!$A$4:$FA$46,AC1)","v":2.6384790011350736},{"$f":"VLOOKUP(DropDownList!$A$47,CntyQuery!$A$4:$FA$46,AD1)","v":3.1819632881085393},{"$f":"VLOOKUP(DropDownList!$A$47,CntyQuery!$A$4:$FA$46,AE1)","v":399},{"$f":"VLOOKUP(DropDownList!$A$47,CntyQuery!$A$4:$FA$46,AF1)","v":1035},{"$f":"VLOOKUP(DropDownList!$A$47,CntyQuery!$A$4:$FA$46,AG1)","v":218},{"$f":"VLOOKUP(DropDownList!$A$47,CntyQuery!$A$4:$FA$46,AH1)","v":110},{"$f":"VLOOKUP(DropDownList!$A$47,CntyQuery!$A$4:$FA$46,AI1)","v":1868},{"$f":"VLOOKUP(DropDownList!$A$47,CntyQuery!$A$4:$FA$46,AJ1)","v":1762},{"$f":"VLOOKUP(DropDownList!$A$47,CntyQuery!$A$4:$FA$46,AK1)","v":106},{"$f":"VLOOKUP(DropDownList!$A$47,CntyQuery!$A$4:$FA$46,AL1)","v":1305},{"$f":"VLOOKUP(DropDownList!$A$47,CntyQuery!$A$4:$FA$46,AM1)","v":457},{"$f":"VLOOKUP(DropDownList!$A$47,CntyQuery!$A$4:$FA$46,AN1)","v":33},{"$f":"VLOOKUP(DropDownList!$A$47,CntyQuery!$A$4:$FA$46,AO1)","v":46},{"$f":"VLOOKUP(DropDownList!$A$47,CntyQuery!$A$4:$FA$46,AP1)","v":8},{"$f":"VLOOKUP(DropDownList!$A$47,CntyQuery!$A$4:$FA$46,AQ1)","v":701},{"$f":"VLOOKUP(DropDownList!$A$47,CntyQuery!$A$4:$FA$46,AR1)","v":542},{"$f":"VLOOKUP(DropDownList!$A$47,CntyQuery!$A$4:$FA$46,AS1)","v":625},{"$f":"VLOOKUP(DropDownList!$A$47,CntyQuery!$A$4:$FA$46,AT1)","v":645},{"$f":"VLOOKUP(DropDownList!$A$47,CntyQuery!$A$4:$FA$46,AU1)","v":113},{"$f":"VLOOKUP(DropDownList!$A$47,CntyQuery!$A$4:$FA$46,AV1)","v":625},{"$f":"VLOOKUP(DropDownList!$A$47,CntyQuery!$A$4:$FA$46,AW1)","v":38},{"$f":"VLOOKUP(DropDownList!$A$47,CntyQuery!$A$4:$FA$46,AX1)","v":392},{"$f":"VLOOKUP(DropDownList!$A$47,CntyQuery!$A$4:$FA$46,AY1)","v":27},{"$f":"VLOOKUP(DropDownList!$A$47,CntyQuery!$A$4:$FA$46,AZ1)","v":339},{"$f":"VLOOKUP(DropDownList!$A$47,CntyQuery!$A$4:$FA$46,BA1)","v":843},{"$f":"VLOOKUP(DropDownList!$A$47,CntyQuery!$A$4:$FA$46,BB1)","v":426},{"$f":"VLOOKUP(DropDownList!$A$47,CntyQuery!$A$4:$FA$46,BC1)","v":296},{"$f":"VLOOKUP(DropDownList!$A$47,CntyQuery!$A$4:$FA$46,BD1)","v":62},{"$f":"VLOOKUP(DropDownList!$A$47,CntyQuery!$A$4:$FA$46,BE1)","v":274},{"$f":"VLOOKUP(DropDownList!$A$47,CntyQuery!$A$4:$FA$46,BF1)","v":707},{"$f":"VLOOKUP(DropDownList!$A$47,CntyQuery!$A$4:$FA$46,BG1)","v":638},{"$f":"VLOOKUP(DropDownList!$A$47,CntyQuery!$A$4:$FA$46,BH1)","v":223},{"$f":"VLOOKUP(DropDownList!$A$47,CntyQuery!$A$4:$FA$46,BI1)","v":87},{"$f":"VLOOKUP(DropDownList!$A$47,CntyQuery!$A$4:$FA$46,BJ1)","v":118},{"$f":"VLOOKUP(DropDownList!$A$47,CntyQuery!$A$4:$FA$46,BK1)","v":115},{"$f":"VLOOKUP(DropDownList!$A$47,CntyQuery!$A$4:$FA$46,BL1)","v":304},{"$f":"VLOOKUP(DropDownList!$A$47,CntyQuery!$A$4:$FA$46,BM1)","v":326},{"$f":"VLOOKUP(DropDownList!$A$47,CntyQuery!$A$4:$FA$46,BN1)","v":489},{"$f":"VLOOKUP(DropDownList!$A$47,CntyQuery!$A$4:$FA$46,BO1)","v":271},{"$f":"VLOOKUP(DropDownList!$A$47,CntyQuery!$A$4:$FA$46,BP1)","v":21},{"$f":"VLOOKUP(DropDownList!$A$47,CntyQuery!$A$4:$FA$46,BQ1)","v":49},{"$f":"VLOOKUP(DropDownList!$A$47,CntyQuery!$A$4:$FA$46,BR1)","v":33469},{"$f":"VLOOKUP(DropDownList!$A$47,CntyQuery!$A$4:$FA$46,BS1)","v":18},{"$f":"VLOOKUP(DropDownList!$A$47,CntyQuery!$A$4:$FA$46,BT1)","v":0},{"$f":"VLOOKUP(DropDownList!$A$47,CntyQuery!$A$4:$FA$46,BU1)","v":0},{"$f":"VLOOKUP(DropDownList!$A$47,CntyQuery!$A$4:$FA$46,BV1)","v":17},{"$f":"VLOOKUP(DropDownList!$A$47,CntyQuery!$A$4:$FA$46,BW1)","v":18},{"$f":"VLOOKUP(DropDownList!$A$47,CntyQuery!$A$4:$FA$46,BX1)","v":29},{"$f":"VLOOKUP(DropDownList!$A$47,CntyQuery!$A$4:$FA$46,BY1)","v":8},{"$f":"VLOOKUP(DropDownList!$A$47,CntyQuery!$A$4:$FA$46,BZ1)","v":0},{"$f":"VLOOKUP(DropDownList!$A$47,CntyQuery!$A$4:$FA$46,CA1)","v":0},{"$f":"VLOOKUP(DropDownList!$A$47,CntyQuery!$A$4:$FA$46,CB1)","v":4},{"$f":"VLOOKUP(DropDownList!$A$47,CntyQuery!$A$4:$FA$46,CC1)","v":12},{"$f":"VLOOKUP(DropDownList!$A$47,CntyQuery!$A$4:$FA$46,CD1)","v":14},{"$f":"VLOOKUP(DropDownList!$A$47,CntyQuery!$A$4:$FA$46,CE1)","v":76},{"$f":"VLOOKUP(DropDownList!$A$47,CntyQuery!$A$4:$FA$46,CF1)","v":117},{"$f":"VLOOKUP(DropDownList!$A$47,CntyQuery!$A$4:$FA$46,CG1)","v":189},{"$f":"VLOOKUP(DropDownList!$A$47,CntyQuery!$A$4:$FA$46,CH1)","v":71},{"$f":"VLOOKUP(DropDownList!$A$47,CntyQuery!$A$4:$FA$46,CI1)","v":7},{"$f":"VLOOKUP(DropDownList!$A$47,CntyQuery!$A$4:$FA$46,CJ1)","v":13},{"$f":"VLOOKUP(DropDownList!$A$47,CntyQuery!$A$4:$FA$46,CK1)","v":13},{"$f":"VLOOKUP(DropDownList!$A$47,CntyQuery!$A$4:$FA$46,CL1)","v":9},{"$f":"VLOOKUP(DropDownList!$A$47,CntyQuery!$A$4:$FA$46,CM1)","v":14},{"$f":"VLOOKUP(DropDownList!$A$47,CntyQuery!$A$4:$FA$46,CN1)","v":69},{"$f":"VLOOKUP(DropDownList!$A$47,CntyQuery!$A$4:$FA$46,CO1)","v":82},{"$f":"VLOOKUP(DropDownList!$A$47,CntyQuery!$A$4:$FA$46,CP1)","v":148},{"$f":"VLOOKUP(DropDownList!$A$47,CntyQuery!$A$4:$FA$46,CQ1)","v":96},{"$f":"VLOOKUP(DropDownList!$A$47,CntyQuery!$A$4:$FA$46,CR1)","v":0},{"$f":"VLOOKUP(DropDownList!$A$47,CntyQuery!$A$4:$FA$46,CS1)","v":9},{"$f":"VLOOKUP(DropDownList!$A$47,CntyQuery!$A$4:$FA$46,CT1)","v":14},{"$f":"VLOOKUP(DropDownList!$A$47,CntyQuery!$A$4:$FA$46,CU1)","v":12},{"$f":"VLOOKUP(DropDownList!$A$47,CntyQuery!$A$4:$FA$46,CV1)","v":6},{"$f":"VLOOKUP(DropDownList!$A$47,CntyQuery!$A$4:$FA$46,CW1)","v":33},{"$f":"VLOOKUP(DropDownList!$A$47,CntyQuery!$A$4:$FA$46,CX1)","v":22},{"$f":"VLOOKUP(DropDownList!$A$47,CntyQuery!$A$4:$FA$46,CY1)","v":53},{"$f":"VLOOKUP(DropDownList!$A$47,CntyQuery!$A$4:$FA$46,CZ1)","v":76},{"$f":"VLOOKUP(DropDownList!$A$47,CntyQuery!$A$4:$FA$46,DA1)","v":12},{"$f":"VLOOKUP(DropDownList!$A$47,CntyQuery!$A$4:$FA$46,DB1)","v":27},{"$f":"VLOOKUP(DropDownList!$A$47,CntyQuery!$A$4:$FA$46,DC1)","v":24},{"$f":"VLOOKUP(DropDownList!$A$47,CntyQuery!$A$4:$FA$46,DD1)","v":0},{"$f":"VLOOKUP(DropDownList!$A$47,CntyQuery!$A$4:$FA$46,DE1)","v":26},{"$f":"VLOOKUP(DropDownList!$A$47,CntyQuery!$A$4:$FA$46,DF1)","v":48},{"$f":"VLOOKUP(DropDownList!$A$47,CntyQuery!$A$4:$FA$46,DG1)","v":33},{"$f":"VLOOKUP(DropDownList!$A$47,CntyQuery!$A$4:$FA$46,DH1)","v":59},{"$f":"VLOOKUP(DropDownList!$A$47,CntyQuery!$A$4:$FA$46,DI1)","v":20},{"$f":"VLOOKUP(DropDownList!$A$47,CntyQuery!$A$4:$FA$46,DJ1)","v":2},{"$f":"VLOOKUP(DropDownList!$A$47,CntyQuery!$A$4:$FA$46,DK1)","v":0},{"$f":"VLOOKUP(DropDownList!$A$47,CntyQuery!$A$4:$FA$46,DL1)","v":7},{"$f":"VLOOKUP(DropDownList!$A$47,CntyQuery!$A$4:$FA$46,DM1)","v":44},{"$f":"VLOOKUP(DropDownList!$A$47,CntyQuery!$A$4:$FA$46,DN1)","v":37},{"$f":"VLOOKUP(DropDownList!$A$47,CntyQuery!$A$4:$FA$46,DO1)","v":35},{"$f":"VLOOKUP(DropDownList!$A$47,CntyQuery!$A$4:$FA$46,DP1)","v":42},{"$f":"VLOOKUP(DropDownList!$A$47,CntyQuery!$A$4:$FA$46,DQ1)","v":6},{"$f":"VLOOKUP(DropDownList!$A$47,CntyQuery!$A$4:$FA$46,DR1)","v":0},{"$f":"VLOOKUP(DropDownList!$A$47,CntyQuery!$A$4:$FA$46,DS1)","v":0},{"$f":"VLOOKUP(DropDownList!$A$47,CntyQuery!$A$4:$FA$46,DT1)","v":0},{"$f":"VLOOKUP(DropDownList!$A$47,CntyQuery!$A$4:$FA$46,DU1)","v":7},{"$f":"VLOOKUP(DropDownList!$A$47,CntyQuery!$A$4:$FA$46,DV1)","v":41},{"$f":"VLOOKUP(DropDownList!$A$47,CntyQuery!$A$4:$FA$46,DW1)","v":18},{"$f":"VLOOKUP(DropDownList!$A$47,CntyQuery!$A$4:$FA$46,DX1)","v":26},{"$f":"VLOOKUP(DropDownList!$A$47,CntyQuery!$A$4:$FA$46,DY1)","v":12},{"$f":"VLOOKUP(DropDownList!$A$47,CntyQuery!$A$4:$FA$46,DZ1)","v":5},{"$f":"VLOOKUP(DropDownList!$A$47,CntyQuery!$A$4:$FA$46,EA1)","v":0},{"$f":"VLOOKUP(DropDownList!$A$47,CntyQuery!$A$4:$FA$46,EB1)","v":0},{"$f":"VLOOKUP(DropDownList!$A$47,CntyQuery!$A$4:$FA$46,EC1)","v":0},{"$f":"VLOOKUP(DropDownList!$A$47,CntyQuery!$A$4:$FA$46,ED1)","v":774},{"$f":"VLOOKUP(DropDownList!$A$47,CntyQuery!$A$4:$FA$46,EE1)","v":2967},{"$f":"VLOOKUP(DropDownList!$A$47,CntyQuery!$A$4:$FA$46,EF1)","v":2088},{"$f":"VLOOKUP(DropDownList!$A$47,CntyQuery!$A$4:$FA$46,EG1)","v":243},{"$f":"VLOOKUP(DropDownList!$A$47,CntyQuery!$A$4:$FA$46,EH1)","v":4618},{"$f":"VLOOKUP(DropDownList!$A$47,CntyQuery!$A$4:$FA$46,EI1)","v":94},{"$f":"VLOOKUP(DropDownList!$A$47,CntyQuery!$A$4:$FA$46,EJ1)","v":2913},{"$f":"VLOOKUP(DropDownList!$A$47,CntyQuery!$A$4:$FA$46,EK1)","v":4618},{"$f":"VLOOKUP(DropDownList!$A$47,CntyQuery!$A$4:$FA$46,EL1)","v":94},{"$f":"VLOOKUP(DropDownList!$A$47,CntyQuery!$A$4:$FA$46,EM1)","v":1908},{"$f":"VLOOKUP(DropDownList!$A$47,CntyQuery!$A$4:$FA$46,EN1)","v":399},{"$f":"VLOOKUP(DropDownList!$A$47,CntyQuery!$A$4:$FA$46,EO1)","v":6},{"$f":"VLOOKUP(DropDownList!$A$47,CntyQuery!$A$4:$FA$46,EP1)","v":15},{"$f":"VLOOKUP(DropDownList!$A$47,CntyQuery!$A$4:$FA$46,EQ1)","v":20},{"$f":"VLOOKUP(DropDownList!$A$47,CntyQuery!$A$4:$FA$46,ER1)","v":31},{"$f":"VLOOKUP(DropDownList!$A$47,CntyQuery!$A$4:$FA$46,ES1)","v":205},{"$f":"VLOOKUP(DropDownList!$A$47,CntyQuery!$A$4:$FA$46,ET1)","v":115},{"$f":"VLOOKUP(DropDownList!$A$47,CntyQuery!$A$4:$FA$46,EU1)","v":304},{"$f":"VLOOKUP(DropDownList!$A$47,CntyQuery!$A$4:$FA$46,EV1)","v":326},{"$f":"VLOOKUP(DropDownList!$A$47,CntyQuery!$A$4:$FA$46,EW1)","v":489},{"$f":"VLOOKUP(DropDownList!$A$47,CntyQuery!$A$4:$FA$46,EX1)","v":271},{"$f":"VLOOKUP(DropDownList!$A$47,CntyQuery!$A$4:$FA$46,EY1)","v":21},{"$f":"VLOOKUP(DropDownList!$A$47,CntyQuery!$A$4:$FA$46,EZ1)","v":33},{"$f":"VLOOKUP(DropDownList!$A$47,CntyQuery!$A$4:$FA$46,FA1)","v":16}]
[]
[]
["Census 1990 Data -    Query Name:  TownSTF1Qry1"]
["NAME","COUSUBFP","Census_Cnty_Code","FIPS","LandAcres","WaterAcres","HousingUnits90Cen","P01Persons90Cen","P02Families90Cen","P03Households90cen","P05MalePop90cen","P05FemalePop90cen","P06WhitePop","P06BlackPop","P06AmerIndianPop","P06AsianPIPop","P06OtherRacePop","P08HispanicOrPop","P11AgeUnder15_90cen","P11Age15to24_90cen","P11Age25to34_90cen","P11Age35to44_90cen","P11Age45to54_90cen","P11Age55to64_90cen","P11Age65to74_90cen","P11Age75andOver_90cen","P15PersonsInHH90cen","P15PersonsInFamHH90cen","P15PersonsInGC","PersonsPerHH90cen","PersonsPerFam90Cen","P16SinglePersonHH90cen","P16MarriedCoupleHH90cen","P16SingleParentHH90cen","P16NonFamilyHH90cen","H01TotalHousingUnits","H02OccupiedHousingUnits","H02VacantHousingUnits","H03OwnerOccHU","H03RenterOccHU","H05VacantForRent90","H05VacantForSale90","H05VacantSeasonalRec","H23OOHUVal<15k","H23OOHUVal15to19k","H23OOHUVal20to24k","H23OOHUVal25to29k","H23OOHUVal30to34k","H23OOHUVal35to39k","H23OOHUVal40to44k","H23OOHUVal45to49k","H23OOHUVal50to59k","H23OOHUVal60to74k","H23OOHUVal75to99k","H23OOHUVal100to124k","H23OOHUVal125to149k","H23OOHUVal150to174k","H23OOHUVal175to199k","H23OOHUVal200to249k","H23OOHUVal250to299k","H23OOHUVal300to399k","H23OOHUVal400to499k","H23OOHUVal500kOrMore","H23BOOHUMedVal","H41SingFamHU90cen","H41MultiFamHU90cen","H41MobileHom90cen","H43SingFamOwnHU90cen","H43MultiFamOwnHU90cen","H43MobileHomOwnHU90cen","H43SingFamRntrHU90cen","H43MultiFamRntrHU90cen","H43MobileHomRntrHU90cen","H41HU1UnitDet","H41HU1UnitAtt","H41HU2Unit","H41HU3to4Unit","H41HU5to9Unit","H41HU10to19Unit","H41HU20to49Unit","H41HU50PlusUnit","H41HUMobilH","H41HUOther"]
[{"$f":"VLOOKUP(DropDownList!$B$47,CntyQuery!$A$51:$CE$93,A$1)","v":"Allenstown"},{"$f":"VLOOKUP(DropDownList!$B$47,CntyQuery!$A$51:$CE$93,B$1)","v":701},{"$f":"VLOOKUP(DropDownList!$B$47,CntyQuery!$A$51:$CE$93,C$1)","v":13005},{"$f":"VLOOKUP(DropDownList!$B$47,CntyQuery!$A$51:$CE$93,D$1)","v":"00660"},{"$f":"VLOOKUP(DropDownList!$B$47,CntyQuery!$A$51:$CE$93,E$1)","v":13097.95},{"$f":"VLOOKUP(DropDownList!$B$47,CntyQuery!$A$51:$CE$93,F$1)","v":69.48},{"$f":"VLOOKUP(DropDownList!$B$47,CntyQuery!$A$51:$CE$93,G$1)","v":1868},{"$f":"VLOOKUP(DropDownList!$B$47,CntyQuery!$A$51:$CE$93,H$1)","v":4649},{"$f":"VLOOKUP(DropDownList!$B$47,CntyQuery!$A$51:$CE$93,I$1)","v":1253},{"$f":"VLOOKUP(DropDownList!$B$47,CntyQuery!$A$51:$CE$93,J$1)","v":1762},{"$f":"VLOOKUP(DropDownList!$B$47,CntyQuery!$A$51:$CE$93,K$1)","v":2301},{"$f":"VLOOKUP(DropDownList!$B$47,CntyQuery!$A$51:$CE$93,L$1)","v":2348},{"$f":"VLOOKUP(DropDownList!$B$47,CntyQuery!$A$51:$CE$93,M$1)","v":4587},{"$f":"VLOOKUP(DropDownList!$B$47,CntyQuery!$A$51:$CE$93,N$1)","v":24},{"$f":"VLOOKUP(DropDownList!$B$47,CntyQuery!$A$51:$CE$93,O$1)","v":9},{"$f":"VLOOKUP(DropDownList!$B$47,CntyQuery!$A$51:$CE$93,P$1)","v":24},{"$f":"VLOOKUP(DropDownList!$B$47,CntyQuery!$A$51:$CE$93,Q$1)","v":5},{"$f":"VLOOKUP(DropDownList!$B$47,CntyQuery!$A$51:$CE$93,R$1)","v":25},{"$f":"VLOOKUP(DropDownList!$B$47,CntyQuery!$A$51:$CE$93,S$1)","v":1104},{"$f":"VLOOKUP(DropDownList!$B$47,CntyQuery!$A$51:$CE$93,T$1)","v":557},{"$f":"VLOOKUP(DropDownList!$B$47,CntyQuery!$A$51:$CE$93,U$1)","v":1093},{"$f":"VLOOKUP(DropDownList!$B$47,CntyQuery!$A$51:$CE$93,V$1)","v":692},{"$f":"VLOOKUP(DropDownList!$B$47,CntyQuery!$A$51:$CE$93,W$1)","v":426},{"$f":"VLOOKUP(DropDownList!$B$47,CntyQuery!$A$51:$CE$93,X$1)","v":360},{"$f":"VLOOKUP(DropDownList!$B$47,CntyQuery!$A$51:$CE$93,Y$1)","v":238},{"$f":"VLOOKUP(DropDownList!$B$47,CntyQuery!$A$51:$CE$93,Z$1)","v":179},{"$f":"VLOOKUP(DropDownList!$B$47,CntyQuery!$A$51:$CE$93,AA$1)","v":4649},{"$f":"VLOOKUP(DropDownList!$B$47,CntyQuery!$A$51:$CE$93,AB$1)","v":3987},{"$f":"VLOOKUP(DropDownList!$B$47,CntyQuery!$A$51:$CE$93,AC$1)","v":0},{"$f":"VLOOKUP(DropDownList!$B$47,CntyQuery!$A$51:$CE$93,AD$1)","v":2.6384790011350736},{"$f":"VLOOKUP(DropDownList!$B$47,CntyQuery!$A$51:$CE$93,AE$1)","v":3.1819632881085393},{"$f":"VLOOKUP(DropDownList!$B$47,CntyQuery!$A$51:$CE$93,AF$1)","v":399},{"$f":"VLOOKUP(DropDownList!$B$47,CntyQuery!$A$51:$CE$93,AG$1)","v":1035},{"$f":"VLOOKUP(DropDownList!$B$47,CntyQuery!$A$51:$CE$93,AH$1)","v":218},{"$f":"VLOOKUP(DropDownList!$B$47,CntyQuery!$A$51:$CE$93,AI$1)","v":110},{"$f":"VLOOKUP(DropDownList!$B$47,CntyQuery!$A$51:$CE$93,AJ$1)","v":1868},{"$f":"VLOOKUP(DropDownList!$B$47,CntyQuery!$A$51:$CE$93,AK$1)","v":1762},{"$f":"VLOOKUP(DropDownList!$B$47,CntyQuery!$A$51:$CE$93,AL$1)","v":106},{"$f":"VLOOKUP(DropDownList!$B$47,CntyQuery!$A$51:$CE$93,AM$1)","v":1305},{"$f":"VLOOKUP(DropDownList!$B$47,CntyQuery!$A$51:$CE$93,AN$1)","v":457},{"$f":"VLOOKUP(DropDownList!$B$47,CntyQuery!$A$51:$CE$93,AO$1)","v":33},{"$f":"VLOOKUP(DropDownList!$B$47,CntyQuery!$A$51:$CE$93,AP$1)","v":46},{"$f":"VLOOKUP(DropDownList!$B$47,CntyQuery!$A$51:$CE$93,AQ$1)","v":8},{"$f":"VLOOKUP(DropDownList!$B$47,CntyQuery!$A$51:$CE$93,AR$1)","v":1},{"$f":"VLOOKUP(DropDownList!$B$47,CntyQuery!$A$51:$CE$93,AS$1)","v":1},{"$f":"VLOOKUP(DropDownList!$B$47,CntyQuery!$A$51:$CE$93,AT$1)","v":0},{"$f":"VLOOKUP(DropDownList!$B$47,CntyQuery!$A$51:$CE$93,AU$1)","v":0},{"$f":"VLOOKUP(DropDownList!$B$47,CntyQuery!$A$51:$CE$93,AV$1)","v":3},{"$f":"VLOOKUP(DropDownList!$B$47,CntyQuery!$A$51:$CE$93,AW$1)","v":1},{"$f":"VLOOKUP(DropDownList!$B$47,CntyQuery!$A$51:$CE$93,AX$1)","v":2},{"$f":"VLOOKUP(DropDownList!$B$47,CntyQuery!$A$51:$CE$93,AY$1)","v":1},{"$f":"VLOOKUP(DropDownList!$B$47,CntyQuery!$A$51:$CE$93,AZ$1)","v":5},{"$f":"VLOOKUP(DropDownList!$B$47,CntyQuery!$A$51:$CE$93,BA$1)","v":30},{"$f":"VLOOKUP(DropDownList!$B$47,CntyQuery!$A$51:$CE$93,BB$1)","v":200},{"$f":"VLOOKUP(DropDownList!$B$47,CntyQuery!$A$51:$CE$93,BC$1)","v":200},{"$f":"VLOOKUP(DropDownList!$B$47,CntyQuery!$A$51:$CE$93,BD$1)","v":107},{"$f":"VLOOKUP(DropDownList!$B$47,CntyQuery!$A$51:$CE$93,BE$1)","v":32},{"$f":"VLOOKUP(DropDownList!$B$47,CntyQuery!$A$51:$CE$93,BF$1)","v":12},{"$f":"VLOOKUP(DropDownList!$B$47,CntyQuery!$A$51:$CE$93,BG$1)","v":7},{"$f":"VLOOKUP(DropDownList!$B$47,CntyQuery!$A$51:$CE$93,BH$1)","v":4},{"$f":"VLOOKUP(DropDownList!$B$47,CntyQuery!$A$51:$CE$93,BI$1)","v":1},{"$f":"VLOOKUP(DropDownList!$B$47,CntyQuery!$A$51:$CE$93,BJ$1)","v":0},{"$f":"VLOOKUP(DropDownList!$B$47,CntyQuery!$A$51:$CE$93,BK$1)","v":0},{"$f":"VLOOKUP(DropDownList!$B$47,CntyQuery!$A$51:$CE$93,BL$1)","v":107400},{"$f":"VLOOKUP(DropDownList!$B$47,CntyQuery!$A$51:$CE$93,BM$1)","v":701},{"$f":"VLOOKUP(DropDownList!$B$47,CntyQuery!$A$51:$CE$93,BN$1)","v":542},{"$f":"VLOOKUP(DropDownList!$B$47,CntyQuery!$A$51:$CE$93,BO$1)","v":625},{"$f":"VLOOKUP(DropDownList!$B$47,CntyQuery!$A$51:$CE$93,BP$1)","v":645},{"$f":"VLOOKUP(DropDownList!$B$47,CntyQuery!$A$51:$CE$93,BQ$1)","v":113},{"$f":"VLOOKUP(DropDownList!$B$47,CntyQuery!$A$51:$CE$93,BR$1)","v":547},{"$f":"VLOOKUP(DropDownList!$B$47,CntyQuery!$A$51:$CE$93,BS$1)","v":38},{"$f":"VLOOKUP(DropDownList!$B$47,CntyQuery!$A$51:$CE$93,BT$1)","v":392},{"$f":"VLOOKUP(DropDownList!$B$47,CntyQuery!$A$51:$CE$93,BU$1)","v":27},{"$f":"VLOOKUP(DropDownList!$B$47,CntyQuery!$A$51:$CE$93,BV$1)","v":701},{"$f":"VLOOKUP(DropDownList!$B$47,CntyQuery!$A$51:$CE$93,BW$1)","v":42},{"$f":"VLOOKUP(DropDownList!$B$47,CntyQuery!$A$51:$CE$93,BX$1)","v":185},{"$f":"VLOOKUP(DropDownList!$B$47,CntyQuery!$A$51:$CE$93,BY$1)","v":106},{"$f":"VLOOKUP(DropDownList!$B$47,CntyQuery!$A$51:$CE$93,BZ$1)","v":158},{"$f":"VLOOKUP(DropDownList!$B$47,CntyQuery!$A$51:$CE$93,CA$1)","v":10},{"$f":"VLOOKUP(DropDownList!$B$47,CntyQuery!$A$51:$CE$93,CB$1)","v":41},{"$f":"VLOOKUP(DropDownList!$B$47,CntyQuery!$A$51:$CE$93,CC$1)","v":0},{"$f":"VLOOKUP(DropDownList!$B$47,CntyQuery!$A$51:$CE$93,CD$1)","v":610},{"$f":"VLOOKUP(DropDownList!$B$47,CntyQuery!$A$51:$CE$93,CE$1)","v":15}]
[]
[]
["Census 1990 Data -          Query Name: TownSTF3Qry1"]
["NAME","FIPS","COUSUBFP","LandAcres","WaterAcres","HousingUnits90Cen","P01Persons90Cen","P02Families90Cen","P03Households90cen","H25HU<5yrs90cen","H25HU5to20yrs90cen","H25HU20to50yrs90cen","H25HU>50yrs90cen","H31Units0Bedroom90cen","H31Units1Bedroom90cen","H31Units2Bedroom90cen","H31Units3Bedroom90cen","H31Units4Bedroom90cen","H31Units5+Bedroom90cen","P80HI<5K","P80HI5Kto10K","P80HI10Kto15K","P80HI15Kto25K","P80HI25Kto35K","P80HI35Kto50K","P80HI50Kto75K","P80HI75Kto100K","P80HI>100K","P80AMedHI","P86HH<25HI<5K","P86HH<25HI5Kto10K","P86HH<25HI10Kto15K","P86HH<25HI15Kto25K","P86HH<25HI25Kto35K","P86HH<25HI35Kto50K","P86HH<25HI50Kto75K","P86HH<25HI75Kto100K","P86HH<25HI>100K","P86HH25to34HI<5K","P86HH25to34HI5Kto10K","P86HH25to34HI10Kto15K","P86HH25to34HI15Kto25K","P86HH25to34HI25Kto35K","P86HH25to34HI35Kto50K","P86HH25to34HI50Kto75K","P86HH25to34HI75Kto100K","P86HH25to34HI>100K","P86HH35to44HI<5K","P86HH35to44HI5Kto10K","P86HH35to44HI10Kto15K","P86HH35to44HI15Kto25K","P86HH35to44HI25Kto35K","P86HH35to44HI35Kto50K","P86HH35to44HI50Kto75K","P86HH35to44HI75Kto100K","P86HH35to44HI>100K","P86HH45to54HI<5K","P86HH45to54HI5Kto10K","P86HH45to54HI10Kto15K","P86HH45to54HI15Kto25K","P86HH45to54HI25Kto35K","P86HH45to54HI35Kto50K","P86HH45to54HI50Kto75K","P86HH45to54HI75Kto100K","P86HH45to54HI>100K","P86HH55to64HI<5K","P86HH55to64HI5Kto10K","P86HH55to64HI10Kto15K","P86HH55to64HI15Kto25K","P86HH55to64HI25Kto35K","P86HH55to64HI35Kto50K","P86HH55to64HI50Kto75K","P86HH55to64HI75Kto100K","P86HH55to64HI>100K","P86HH65to74HI<5K","P86HH65to74HI5Kto10K","P86HH65to74HI10Kto15K","P86HH65to74HI15Kto25K","P86HH65to74HI25Kto35K","P86HH65to74HI35Kto50K","P86HH65to74HI50Kto75K","P86HH65to74HI75Kto100K","P86HH65to74HI>100K","P86HH>75HI<5K","P86HH>75HI5Kto10K","P86HH>75HI10Kto15K","P86HH>75HI15Kto25K","P86HH>75HI25Kto35K","P86HH>75HI35Kto50K","P86HH>75HI50Kto75K","P86HH>75HI75Kto100K","P86HH>75HI>100K","P54SchlEnrlPrePrim","P54SchlEnrlElemThrHS","P54SchlEnrlCollege","P54NotEnrlInSch","P57Pop25andOver","P57LessThan9thGrade","P579thto12thNoDip","P57HSGrad","P57SomeCollege","P57AssocDeg","P57BachelDeg","P57GradorProfDeg","P57HSGradorHigher","P57CollGradorHigher","P42NativePop","P42ForeignBornPop","P42BornStateOfRes","P37NativePop2","P37ForeignBornPop2","P49DroveAlone","P49CarPooled","P49PublicTranspt","P49Walked","P49OtherMeans","P49WorkedAtHome","P80HHInc<10K","P80HHInc10to15K","P80HHInc15to25K","P80HHInc25to35K","P80HHInc35to50K","P80HHInc50to75K","P80HHInc75to100K","P80HHInc100to150K","P80HHInc>150K","H25YearStBlt89to90","H25YearStBlt85to88","H25YearStBlt80to84","H25YearStBlt70to79","H25YearStBlt60to69","H25YearStBlt50to59","H25YearStBlt40to49","H25YearStBlt39earlier","P107FamInc<10K","P107FamInc10to15K","P107FamInc15to25K","P107FamInc25to35K","P107FamInc35to50K","P107FamInc50to75K","P107FamInc75to100K","P107FamInc100to150K","P107FamInc>150K","P107AMedFamInc","P110NonFamInc<10K","P110NonFamInc10to15K","P110NonFamInc15to25K","P110NonFamInc25to35K","P110NonFamInc35to50K","P110NonFamInc50to75K","P110NonFamInc75to100K","P110NonFamInc100to150K","P110NonFamInc>150K","P110AMedNonFamInc","H16HU1Room","H16HU2Room","H16HU3Room","H16HU4Room","H16HU5Room","H16HU6Room","H16HU7Room","H16HU8Room","H16HU9+Room","H43GrossRnt<100","H43GrossRnt100to149","H43GrossRnt150to199","H43GrossRnt200to249","H43GrossRnt250to299","H43GrossRnt300to349","H43GrossRnt350to399","H43GrossRnt400to449","H43GrossRnt450to499","H43GrossRnt500to549","H43GrossRnt550to599","H43GrossRnt600to649","H43GrossRnt650to699","H43GrossRnt700to749","H43GrossRnt750to999","H43GrossRnt1000Plus","H43NoCashRent","H43MedGrossRent","H51GrossRnt<20PctHHInc","H51GrossRnt20to24PctHHInc","H51GrossRnt25to29PctHHInc","H51GrossRnt30to34PctHHInc","H51GrossRnt35PctOrMoreHHInc","H51GrossRntAsPctHHIncNotComp","H52HUwMtgMoOwnCst<200","H52HUwMtgMoOwnCst200to299","H52HUwMtgMoOwnCst300to399","H52HUwMtgMoOwnCst400to499","H52HUwMtgMoOwnCst500to599","H52HUwMtgMoOwnCst600to699","H52HUwMtgMoOwnCst700to799","H52HUwMtgMoOwnCst800to899","H52HUwMtgMoOwnCst900to999","H52HUwMtgMoOwnCst1000to1249","H52HUwMtgMoOwnCst1250to1499","H52HUwMtgMoOwnCst1500to1999","H52HUwMtgMoOwnCst2000More","H52HUwNoMtgMoOwnCst<100","H52HUwNoMtgMoOwnCst100to149","H52HUwNoMtgMoOwnCst150to199","H52HUwNoMtgMoOwnCst200to249","H52HUwNoMtgMoOwnCst250to299","H52HUwNoMtgMoOwnCst300to349","H52HUwNoMtgMoOwnCst350to399","H52HUwNoMtgMoOwnCst400More","H52AMedMoOwnCstWMortg","H52AMedMoOwnCstWNoMortg","H58HUwMtgMOC<20pHHInc","H58HUwMtgMOC20to24pHHInc","H58HUwMtgMOC25to29pHHInc","H58HUwMtgMOC30to34pHHInc","H58wMtgMOC>35pHHInc","H58HUwMtgMOCNotComp","H58HUwNoMtgMOC<20pHHInc","H58HUwNoMtgMOC20to24pHHInc","H58HUwNoMtgMOC25to29pHHInc","H58HUwNoMtgMOC30to34pHHInc","H58wNoMtgMOC>35pHHInc","H58HUwNoMtgMOCNotComp","H61OOHUVal<15k","H61OOHUVal15to19k","H61OOHUVal20to24k","H61OOHUVal25to29k","H61OOHUVal30to34k","H61OOHUVal35to39k","H61OOHUVal40to44k","H61OOHUVal45to49k","H61OOHUVal50to59k","H61OOHUVal60to74k","H61OOHUVal75to99k","H61OOHUVal100to124k","H61OOHUVal125to149k","H61OOHUVal150to174k","H61OOHUVal175to199k","H61OOHUVal200to249k","H61OOHUVal250to299k","H61OOHUVal300to399k","H61OOHUVal400to499k","H61OOHUVal500kOrMore","H61aOOHUMedVal"]
[]
[]
[]
["Other Demo Data -             Query Name: QryAllTowns-ACSDemographicSheet"]
["TOWN_NAME","FIPS","TOWNCNTY","COUSUB","POP80","POP90CDCEN","POP2000CEN","POP2010CEN","POP2025-Proj","POP2030-Proj","POP2040-Proj","SF80","MF80","MH80","SF81","MF81","MH81","SF82","MF82","MH82","SF83","MF83","MH83","SF84_OSP","MF84_OSP","MH84_OSP","SF85_OSP","MF85_OSP","MH85_OSP","SF86_OSP","MF86_OSP","MH86_OSP","SF87_OSP","MF87_OSP","MH87_OSP","SF88_OSP","MF88_OSP","MH88_OSP","SF89_OSP","MF89_OSP","MH89_OSP","SF90_OSP","MF90_OSP","MH90_OSP","SF91_OSP","MF91_OSP","MH91_OSP","SF92_OSP","MF92_OSP","MH92_OSP","SF93_OSP","MF93_OSP","MH93_OSP","SF94_OSP","MF94_OSP","MH94_OSP","SF95_OSP","MF95_OSP","MH95_OSP","SF96_OSP","MF96_OSP","MH96_OSP","SF97_OSP","MF97_OSP","MH97_OSP","SF98_OSP","MF98_OSP","MH98_OSP","SF99_OSP","MF99_OSP","MH99_OSP","SF00_OSP","MF00_OSP","MH00_OSP","SF01_OSP","MF01_OSP","MH01_OSP","SF02_OSP","MF02_OSP","MH02_OSP","SF03_OSP","MF03_OSP","MH03_OSP","SF04_OSP","MF04_OSP","MH04_OSP","SF05_OSP","MF05_OSP","MH05_OSP","SF06_OSP","MF06_OSP","MH06_OSP","SF07_OSP","MF07_OSP","MH07_OSP","SF08_OSP","MF08_OSP","MH08_OSP","SF09_OSP","MF09_OSP","MH09_OSP","SF10_OSP","MF10_OSP","MH10_OSP","SF11_OSP","MF11_OSP","MH11_OSP","SF12_OSP","MF12_OSP","MH12_OSP","SF13_OSP","MF13_OSP","MH13_OSP","SF14_OSP","MF14_OSP","MH14_OSP","SF15_OSP","MF15_OSP","MH15_OSP","SF16_OSP","MF16_OSP","MH16_OSP","SF17_OSP","MF17_OSP","MH17_OSP","SF18_OSP","MF18_OSP","MH18_OSP","SF19_OSP","MF19_OSP","MH19_OSP","COMMENTS","CNTY_CODE"]
[{"$f":"VLOOKUP(DropDownList!$B$47,CntyQuery!$A$118:$FZ$144,A$1)","v":"Allenstown"},{"$f":"VLOOKUP(DropDownList!$B$47,CntyQuery!$A$118:$FZ$144,B$1)","v":13005},{"$f":"VLOOKUP(DropDownList!$B$47,CntyQuery!$A$118:$FZ$144,C$1)","v":701},{"$f":"VLOOKUP(DropDownList!$B$47,CntyQuery!$A$118:$FZ$144,D$1)","v":"00660"},{"$f":"VLOOKUP(DropDownList!$B$47,CntyQuery!$A$118:$FZ$144,E$1)","v":4398},{"$f":"VLOOKUP(DropDownList!$B$47,CntyQuery!$A$118:$FZ$144,F$1)","v":4649},{"$f":"VLOOKUP(DropDownList!$B$47,CntyQuery!$A$118:$FZ$144,G$1)","v":4843},{"$f":"VLOOKUP(DropDownList!$B$47,CntyQuery!$A$118:$FZ$144,H$1)","v":4322},{"$f":"VLOOKUP(DropDownList!$B$47,CntyQuery!$A$118:$FZ$144,I$1)","v":3623},{"$f":"VLOOKUP(DropDownList!$B$47,CntyQuery!$A$118:$FZ$144,J$1)","v":3697},{"$f":"VLOOKUP(DropDownList!$B$47,CntyQuery!$A$118:$FZ$144,K$1)","v":3752},{"$f":"VLOOKUP(DropDownList!$B$47,CntyQuery!$A$118:$FZ$144,L$1)","v":4},{"$f":"VLOOKUP(DropDownList!$B$47,CntyQuery!$A$118:$FZ$144,M$1)","v":0},{"$f":"VLOOKUP(DropDownList!$B$47,CntyQuery!$A$118:$FZ$144,N$1)","v":0},{"$f":"VLOOKUP(DropDownList!$B$47,CntyQuery!$A$118:$FZ$144,O$1)","v":2},{"$f":"VLOOKUP(DropDownList!$B$47,CntyQuery!$A$118:$FZ$144,P$1)","v":0},{"$f":"VLOOKUP(DropDownList!$B$47,CntyQuery!$A$118:$FZ$144,Q$1)","v":0},{"$f":"VLOOKUP(DropDownList!$B$47,CntyQuery!$A$118:$FZ$144,R$1)","v":2},{"$f":"VLOOKUP(DropDownList!$B$47,CntyQuery!$A$118:$FZ$144,S$1)","v":0},{"$f":"VLOOKUP(DropDownList!$B$47,CntyQuery!$A$118:$FZ$144,T$1)","v":2},{"$f":"VLOOKUP(DropDownList!$B$47,CntyQuery!$A$118:$FZ$144,U$1)","v":3},{"$f":"VLOOKUP(DropDownList!$B$47,CntyQuery!$A$118:$FZ$144,V$1)","v":0},{"$f":"VLOOKUP(DropDownList!$B$47,CntyQuery!$A$118:$FZ$144,W$1)","v":0},{"$f":"VLOOKUP(DropDownList!$B$47,CntyQuery!$A$118:$FZ$144,X$1)","v":2},{"$f":"VLOOKUP(DropDownList!$B$47,CntyQuery!$A$118:$FZ$144,Y$1)","v":74},{"$f":"VLOOKUP(DropDownList!$B$47,CntyQuery!$A$118:$FZ$144,Z$1)","v":3},{"$f":"VLOOKUP(DropDownList!$B$47,CntyQuery!$A$118:$FZ$144,AA$1)","v":24},{"$f":"VLOOKUP(DropDownList!$B$47,CntyQuery!$A$118:$FZ$144,AB$1)","v":76},{"$f":"VLOOKUP(DropDownList!$B$47,CntyQuery!$A$118:$FZ$144,AC$1)","v":3},{"$f":"VLOOKUP(DropDownList!$B$47,CntyQuery!$A$118:$FZ$144,AD$1)","v":52},{"$f":"VLOOKUP(DropDownList!$B$47,CntyQuery!$A$118:$FZ$144,AE$1)","v":35},{"$f":"VLOOKUP(DropDownList!$B$47,CntyQuery!$A$118:$FZ$144,AF$1)","v":0},{"$f":"VLOOKUP(DropDownList!$B$47,CntyQuery!$A$118:$FZ$144,AG$1)","v":11},{"$f":"VLOOKUP(DropDownList!$B$47,CntyQuery!$A$118:$FZ$144,AH$1)","v":2},{"$f":"VLOOKUP(DropDownList!$B$47,CntyQuery!$A$118:$FZ$144,AI$1)","v":0},{"$f":"VLOOKUP(DropDownList!$B$47,CntyQuery!$A$118:$FZ$144,AJ$1)","v":29},{"$f":"VLOOKUP(DropDownList!$B$47,CntyQuery!$A$118:$FZ$144,AK$1)","v":7},{"$f":"VLOOKUP(DropDownList!$B$47,CntyQuery!$A$118:$FZ$144,AL$1)","v":17},{"$f":"VLOOKUP(DropDownList!$B$47,CntyQuery!$A$118:$FZ$144,AM$1)","v":13},{"$f":"VLOOKUP(DropDownList!$B$47,CntyQuery!$A$118:$FZ$144,AN$1)","v":1},{"$f":"VLOOKUP(DropDownList!$B$47,CntyQuery!$A$118:$FZ$144,AO$1)","v":0},{"$f":"VLOOKUP(DropDownList!$B$47,CntyQuery!$A$118:$FZ$144,AP$1)","v":3},{"$f":"VLOOKUP(DropDownList!$B$47,CntyQuery!$A$118:$FZ$144,AQ$1)","v":1},{"$f":"VLOOKUP(DropDownList!$B$47,CntyQuery!$A$118:$FZ$144,AR$1)","v":0},{"$f":"VLOOKUP(DropDownList!$B$47,CntyQuery!$A$118:$FZ$144,AS$1)","v":4},{"$f":"VLOOKUP(DropDownList!$B$47,CntyQuery!$A$118:$FZ$144,AT$1)","v":0},{"$f":"VLOOKUP(DropDownList!$B$47,CntyQuery!$A$118:$FZ$144,AU$1)","v":0},{"$f":"VLOOKUP(DropDownList!$B$47,CntyQuery!$A$118:$FZ$144,AV$1)","v":4},{"$f":"VLOOKUP(DropDownList!$B$47,CntyQuery!$A$118:$FZ$144,AW$1)","v":0},{"$f":"VLOOKUP(DropDownList!$B$47,CntyQuery!$A$118:$FZ$144,AX$1)","v":0},{"$f":"VLOOKUP(DropDownList!$B$47,CntyQuery!$A$118:$FZ$144,AY$1)","v":17},{"$f":"VLOOKUP(DropDownList!$B$47,CntyQuery!$A$118:$FZ$144,AZ$1)","v":0},{"$f":"VLOOKUP(DropDownList!$B$47,CntyQuery!$A$118:$FZ$144,BA$1)","v":2},{"$f":"VLOOKUP(DropDownList!$B$47,CntyQuery!$A$118:$FZ$144,BB$1)","v":6},{"$f":"VLOOKUP(DropDownList!$B$47,CntyQuery!$A$118:$FZ$144,BC$1)","v":0},{"$f":"VLOOKUP(DropDownList!$B$47,CntyQuery!$A$118:$FZ$144,BD$1)","v":11},{"$f":"VLOOKUP(DropDownList!$B$47,CntyQuery!$A$118:$FZ$144,BE$1)","v":5},{"$f":"VLOOKUP(DropDownList!$B$47,CntyQuery!$A$118:$FZ$144,BF$1)","v":0},{"$f":"VLOOKUP(DropDownList!$B$47,CntyQuery!$A$118:$FZ$144,BG$1)","v":18},{"$f":"VLOOKUP(DropDownList!$B$47,CntyQuery!$A$118:$FZ$144,BH$1)","v":2},{"$f":"VLOOKUP(DropDownList!$B$47,CntyQuery!$A$118:$FZ$144,BI$1)","v":0},{"$f":"VLOOKUP(DropDownList!$B$47,CntyQuery!$A$118:$FZ$144,BJ$1)","v":40},{"$f":"VLOOKUP(DropDownList!$B$47,CntyQuery!$A$118:$FZ$144,BK$1)","v":2},{"$f":"VLOOKUP(DropDownList!$B$47,CntyQuery!$A$118:$FZ$144,BL$1)","v":0},{"$f":"VLOOKUP(DropDownList!$B$47,CntyQuery!$A$118:$FZ$144,BM$1)","v":15},{"$f":"VLOOKUP(DropDownList!$B$47,CntyQuery!$A$118:$FZ$144,BN$1)","v":10},{"$f":"VLOOKUP(DropDownList!$B$47,CntyQuery!$A$118:$FZ$144,BO$1)","v":7},{"$f":"VLOOKUP(DropDownList!$B$47,CntyQuery!$A$118:$FZ$144,BP$1)","v":38},{"$f":"VLOOKUP(DropDownList!$B$47,CntyQuery!$A$118:$FZ$144,BQ$1)","v":9},{"$f":"VLOOKUP(DropDownList!$B$47,CntyQuery!$A$118:$FZ$144,BR$1)","v":1},{"$f":"VLOOKUP(DropDownList!$B$47,CntyQuery!$A$118:$FZ$144,BS$1)","v":30},{"$f":"VLOOKUP(DropDownList!$B$47,CntyQuery!$A$118:$FZ$144,BT$1)","v":3},{"$f":"VLOOKUP(DropDownList!$B$47,CntyQuery!$A$118:$FZ$144,BU$1)","v":0},{"$f":"VLOOKUP(DropDownList!$B$47,CntyQuery!$A$118:$FZ$144,BV$1)","v":24},{"$f":"VLOOKUP(DropDownList!$B$47,CntyQuery!$A$118:$FZ$144,BW$1)","v":8},{"$f":"VLOOKUP(DropDownList!$B$47,CntyQuery!$A$118:$FZ$144,BX$1)","v":2},{"$f":"VLOOKUP(DropDownList!$B$47,CntyQuery!$A$118:$FZ$144,BY$1)","v":17},{"$f":"VLOOKUP(DropDownList!$B$47,CntyQuery!$A$118:$FZ$144,BZ$1)","v":7},{"$f":"VLOOKUP(DropDownList!$B$47,CntyQuery!$A$118:$FZ$144,CA$1)","v":1},{"$f":"VLOOKUP(DropDownList!$B$47,CntyQuery!$A$118:$FZ$144,CB$1)","v":14},{"$f":"VLOOKUP(DropDownList!$B$47,CntyQuery!$A$118:$FZ$144,CC$1)","v":1},{"$f":"VLOOKUP(DropDownList!$B$47,CntyQuery!$A$118:$FZ$144,CD$1)","v":2},{"$f":"VLOOKUP(DropDownList!$B$47,CntyQuery!$A$118:$FZ$144,CE$1)","v":7},{"$f":"VLOOKUP(DropDownList!$B$47,CntyQuery!$A$118:$FZ$144,CF$1)","v":9},{"$f":"VLOOKUP(DropDownList!$B$47,CntyQuery!$A$118:$FZ$144,CG$1)","v":0},{"$f":"VLOOKUP(DropDownList!$B$47,CntyQuery!$A$118:$FZ$144,CH$1)","v":7},{"$f":"VLOOKUP(DropDownList!$B$47,CntyQuery!$A$118:$FZ$144,CI$1)","v":9},{"$f":"VLOOKUP(DropDownList!$B$47,CntyQuery!$A$118:$FZ$144,CJ$1)","v":0},{"$f":"VLOOKUP(DropDownList!$B$47,CntyQuery!$A$118:$FZ$144,CK$1)","v":0},{"$f":"VLOOKUP(DropDownList!$B$47,CntyQuery!$A$118:$FZ$144,CL$1)","v":16},{"$f":"VLOOKUP(DropDownList!$B$47,CntyQuery!$A$118:$FZ$144,CM$1)","v":0},{"$f":"VLOOKUP(DropDownList!$B$47,CntyQuery!$A$118:$FZ$144,CN$1)","v":11},{"$f":"VLOOKUP(DropDownList!$B$47,CntyQuery!$A$118:$FZ$144,CO$1)","v":9},{"$f":"VLOOKUP(DropDownList!$B$47,CntyQuery!$A$118:$FZ$144,CP$1)","v":0},{"$f":"VLOOKUP(DropDownList!$B$47,CntyQuery!$A$118:$FZ$144,CQ$1)","v":14},{"$f":"VLOOKUP(DropDownList!$B$47,CntyQuery!$A$118:$FZ$144,CR$1)","v":-3},{"$f":"VLOOKUP(DropDownList!$B$47,CntyQuery!$A$118:$FZ$144,CS$1)","v":0},{"$f":"VLOOKUP(DropDownList!$B$47,CntyQuery!$A$118:$FZ$144,CT$1)","v":11},{"$f":"VLOOKUP(DropDownList!$B$47,CntyQuery!$A$118:$FZ$144,CU$1)","v":4},{"$f":"VLOOKUP(DropDownList!$B$47,CntyQuery!$A$118:$FZ$144,CV$1)","v":0},{"$f":"VLOOKUP(DropDownList!$B$47,CntyQuery!$A$118:$FZ$144,CW$1)","v":5},{"$f":"VLOOKUP(DropDownList!$B$47,CntyQuery!$A$118:$FZ$144,CX$1)","v":3},{"$f":"VLOOKUP(DropDownList!$B$47,CntyQuery!$A$118:$FZ$144,CY$1)","v":0},{"$f":"VLOOKUP(DropDownList!$B$47,CntyQuery!$A$118:$FZ$144,CZ$1)","v":3},{"$f":"VLOOKUP(DropDownList!$B$47,CntyQuery!$A$118:$FZ$144,DA$1)","v":-1},{"$f":"VLOOKUP(DropDownList!$B$47,CntyQuery!$A$118:$FZ$144,DB$1)","v":2},{"$f":"VLOOKUP(DropDownList!$B$47,CntyQuery!$A$118:$FZ$144,DC$1)","v":3},{"$f":"VLOOKUP(DropDownList!$B$47,CntyQuery!$A$118:$FZ$144,DD$1)","v":1},{"$f":"VLOOKUP(DropDownList!$B$47,CntyQuery!$A$118:$FZ$144,DE$1)","v":0},{"$f":"VLOOKUP(DropDownList!$B$47,CntyQuery!$A$118:$FZ$144,DF$1)","v":1},{"$f":"VLOOKUP(DropDownList!$B$47,CntyQuery!$A$118:$FZ$144,DG$1)","v":3},{"$f":"VLOOKUP(DropDownList!$B$47,CntyQuery!$A$118:$FZ$144,DH$1)","v":-6},{"$f":"VLOOKUP(DropDownList!$B$47,CntyQuery!$A$118:$FZ$144,DI$1)","v":0},{"$f":"VLOOKUP(DropDownList!$B$47,CntyQuery!$A$118:$FZ$144,DJ$1)","v":0},{"$f":"VLOOKUP(DropDownList!$B$47,CntyQuery!$A$118:$FZ$144,DK$1)","v":0},{"$f":"VLOOKUP(DropDownList!$B$47,CntyQuery!$A$118:$FZ$144,DL$1)","v":2},{"$f":"VLOOKUP(DropDownList!$B$47,CntyQuery!$A$118:$FZ$144,DM$1)","v":1},{"$f":"VLOOKUP(DropDownList!$B$47,CntyQuery!$A$118:$FZ$144,DN$1)","v":8},{"$f":"VLOOKUP(DropDownList!$B$47,CntyQuery!$A$118:$FZ$144,DO$1)","v":-1},{"$f":"VLOOKUP(DropDownList!$B$47,CntyQuery!$A$118:$FZ$144,DP$1)","v":1},{"$f":"VLOOKUP(DropDownList!$B$47,CntyQuery!$A$118:$FZ$144,DQ$1)","v":0},{"$f":"VLOOKUP(DropDownList!$B$47,CntyQuery!$A$118:$FZ$144,DR$1)","v":9},{"$f":"VLOOKUP(DropDownList!$B$47,CntyQuery!$A$118:$FZ$144,DS$1)","v":9},{"$f":"VLOOKUP(DropDownList!$B$47,CntyQuery!$A$118:$FZ$144,DT$1)","v":0},{"$f":"VLOOKUP(DropDownList!$B$47,CntyQuery!$A$118:$FZ$144,DU$1)","v":-3},{"$f":"VLOOKUP(DropDownList!$B$47,CntyQuery!$A$118:$FZ$144,DV$1)","v":8},{"$f":"VLOOKUP(DropDownList!$B$47,CntyQuery!$A$118:$FZ$144,DW$1)","v":0},{"$f":"VLOOKUP(DropDownList!$B$47,CntyQuery!$A$118:$FZ$144,DX$1)","v":0},{"$f":"VLOOKUP(DropDownList!$B$47,CntyQuery!$A$118:$FZ$144,DY$1)","v":5},{"$f":"VLOOKUP(DropDownList!$B$47,CntyQuery!$A$118:$FZ$144,DZ$1)","v":0},{"$f":"VLOOKUP(DropDownList!$B$47,CntyQuery!$A$118:$FZ$144,EA$1)","v":2},{"$f":"VLOOKUP(DropDownList!$B$47,CntyQuery!$A$118:$FZ$144,EB$1)","v":""},{"$f":"VLOOKUP(DropDownList!$B$47,CntyQuery!$A$118:$FZ$144,EC$1)","v":7},{"$f":"VLOOKUP(DropDownList!$B$47,CntyQuery!$A$118:$FZ$144,ED$1)","v":0}]
[]
[]
["NH Employment Data","Query Name: DPQryEmploymentByCnty"]
["AreaName","COUNTYCODE","TOTP & G2001","TOT2001","GOODPRO2001","SERVICEPROMAN2001","WAGEP & G2001","WAGETOT2001","WAGEGOODPRO2001","WAGESERVICEPRO2001","TOTP & G2002","TOT2002","GOODPRO2002","SERVICEPROMAN2002","WAGEP & G2002","WAGETOT2002","WAGEGOODPRO2002","WAGESERVICEPRO2002","TOTP & G2003","TOT2003","GOODPRO2003","SERVICEPROMAN2003","WAGEP & G2003","WAGETOT2003","WAGEGOODPRO2003","WAGESERVICEPRO2003","TOTP & G2004","TOT2004","GOODPRO2004","SERVICEPROMAN2004","WAGEP & G2004","WAGETOT2004","WAGEGOODPRO2004","WAGESERVICEPRO2004","TOTP & G2005","TOT2005","GOODPRO2005","SERVICEPROMAN2005","WAGEP & G2005","WAGETOT2005","WAGEGOODPRO2005","WAGESERVICEPRO2005","TOTP & G2006","TOT2006","GOODPRO2006","SERVICEPROMAN2006","WAGEP & G2006","WAGETOT2006","WAGEGOODPRO2006","WAGESERVICEPRO2006","TOTP & G2007","TOT2007","GOODPRO2007","SERVICEPROMAN2007","WAGEP & G2007","WAGETOT2007","WAGEGOODPRO2007","WAGESERVICEPRO2007","TOTP & G2008","TOT2008","GOODPRO2008","SERVICEPROMAN2008","WAGEP & G2008","WAGETOT2008","WAGEGOODPRO2008","WAGESERVICEPRO2008","TOTP & G2009","TOT2009","GOODPRO2009","SERVICEPROMAN2009","WAGEP & G2009","WAGETOT2009","WAGEGOODPRO2009","WAGESERVICEPRO2009","TOTP & G2010","TOT2010","GOODPRO2010","SERVICEPROMAN2010","WAGEP & G2010","WAGETOT2010","WAGEGOODPRO2010","WAGESERVICEPRO2010","TOTP & G2011","TOT2011","GOODPRO2011","SERVICEPROMAN2011","WAGEP & G2011","WAGETOT2011","WAGEGOODPRO2011","WAGESERVICEPRO2011","TOTP & G2012","TOT2012","GOODPRO2012","SERVICEPROMAN2012","WAGEP & G2012","WAGETOT2012","WAGEGOODPRO2012","WAGESERVICEPRO2012","TOTP & G2013","TOT2013","GOODPRO2013","SERVICEPROMAN2013","WAGEP & G2013","WAGETOT2013","WAGEGOODPRO2013","WAGESERVICEPRO2013","TOTP & G2014","TOT2014","GOODPRO2014","SERVICEPROMAN2014","WAGEP & G2014","WAGETOT2014","WAGEGOODPRO2014","WAGESERVICEPRO2014","TOTP & G2015","TOT2015","GOODPRO2015","SERVICEPROMAN2015","WAGEP & G2014","WAGETOT2015","WAGEGOODPRO2015","WAGESERVICEPRO2015","TOTP & G2016","TOT2016","GOODPRO2016","SERVICEPROMAN2016","WAGEP & G2014","WAGETOT2016","WAGEGOODPRO2016","WAGESERVICEPRO2016","TOTP & G2017","TOT2017","GOODPRO2017","SERVICEPROMAN2017","WAGEP & G2014","WAGETOT2017","WAGEGOODPRO2017","WAGESERVICEPRO2017","TOTP & G2018","TOT2018","GOODPRO2018","SERVICEPROMAN2018","WAGEP & G2014","WAGETOT2018","WAGEGOODPRO2018","WAGESERVICEPRO2018","TOTP & G2019","TOT2019","TOTGov2019","GOODPRO2019","SERVICEPROMAN2019","WAGEP & G2019","WAGETOT2019","WAGEGov2019","WAGEGOODPRO2019","WAGESERVICEPRO2019","SummaryLevel"]
[{"$f":"VLOOKUP(DropDownList!$B$47,CntyQuery!$A$170:$FJ$213,A$1)","v":"Allenstown"},{"$f":"VLOOKUP(DropDownList!$B$47,CntyQuery!$A$170:$FJ$213,B$1)","v":7},{"$f":"VLOOKUP(DropDownList!$B$47,CntyQuery!$A$170:$FJ$213,C$1)","v":567},{"$f":"VLOOKUP(DropDownList!$B$47,CntyQuery!$A$170:$FJ$213,D$1)","v":420},{"$f":"VLOOKUP(DropDownList!$B$47,CntyQuery!$A$170:$FJ$213,E$1)","v":75},{"$f":"VLOOKUP(DropDownList!$B$47,CntyQuery!$A$170:$FJ$213,F$1)","v":345},{"$f":"VLOOKUP(DropDownList!$B$47,CntyQuery!$A$170:$FJ$213,G$1)","v":458.23},{"$f":"VLOOKUP(DropDownList!$B$47,CntyQuery!$A$170:$FJ$213,H$1)","v":450.68},{"$f":"VLOOKUP(DropDownList!$B$47,CntyQuery!$A$170:$FJ$213,I$1)","v":690.66},{"$f":"VLOOKUP(DropDownList!$B$47,CntyQuery!$A$170:$FJ$213,J$1)","v":398.54},{"$f":"VLOOKUP(DropDownList!$B$47,CntyQuery!$A$170:$FJ$213,K$1)","v":547},{"$f":"VLOOKUP(DropDownList!$B$47,CntyQuery!$A$170:$FJ$213,L$1)","v":394},{"$f":"VLOOKUP(DropDownList!$B$47,CntyQuery!$A$170:$FJ$213,M$1)","v":75},{"$f":"VLOOKUP(DropDownList!$B$47,CntyQuery!$A$170:$FJ$213,N$1)","v":319},{"$f":"VLOOKUP(DropDownList!$B$47,CntyQuery!$A$170:$FJ$213,O$1)","v":467.99},{"$f":"VLOOKUP(DropDownList!$B$47,CntyQuery!$A$170:$FJ$213,P$1)","v":451.45},{"$f":"VLOOKUP(DropDownList!$B$47,CntyQuery!$A$170:$FJ$213,Q$1)","v":650.45000000000005},{"$f":"VLOOKUP(DropDownList!$B$47,CntyQuery!$A$170:$FJ$213,R$1)","v":404.38},{"$f":"VLOOKUP(DropDownList!$B$47,CntyQuery!$A$170:$FJ$213,S$1)","v":575},{"$f":"VLOOKUP(DropDownList!$B$47,CntyQuery!$A$170:$FJ$213,T$1)","v":417},{"$f":"VLOOKUP(DropDownList!$B$47,CntyQuery!$A$170:$FJ$213,U$1)","v":85},{"$f":"VLOOKUP(DropDownList!$B$47,CntyQuery!$A$170:$FJ$213,V$1)","v":332},{"$f":"VLOOKUP(DropDownList!$B$47,CntyQuery!$A$170:$FJ$213,W$1)","v":481.57},{"$f":"VLOOKUP(DropDownList!$B$47,CntyQuery!$A$170:$FJ$213,X$1)","v":465.16},{"$f":"VLOOKUP(DropDownList!$B$47,CntyQuery!$A$170:$FJ$213,Y$1)","v":625.29999999999995},{"$f":"VLOOKUP(DropDownList!$B$47,CntyQuery!$A$170:$FJ$213,Z$1)","v":424.06},{"$f":"VLOOKUP(DropDownList!$B$47,CntyQuery!$A$170:$FJ$213,AA$1)","v":580},{"$f":"VLOOKUP(DropDownList!$B$47,CntyQuery!$A$170:$FJ$213,AB$1)","v":414},{"$f":"VLOOKUP(DropDownList!$B$47,CntyQuery!$A$170:$FJ$213,AC$1)","v":79},{"$f":"VLOOKUP(DropDownList!$B$47,CntyQuery!$A$170:$FJ$213,AD$1)","v":335},{"$f":"VLOOKUP(DropDownList!$B$47,CntyQuery!$A$170:$FJ$213,AE$1)","v":559.34},{"$f":"VLOOKUP(DropDownList!$B$47,CntyQuery!$A$170:$FJ$213,AF$1)","v":570.74},{"$f":"VLOOKUP(DropDownList!$B$47,CntyQuery!$A$170:$FJ$213,AG$1)","v":713.84},{"$f":"VLOOKUP(DropDownList!$B$47,CntyQuery!$A$170:$FJ$213,AH$1)","v":536.88},{"$f":"VLOOKUP(DropDownList!$B$47,CntyQuery!$A$170:$FJ$213,AI$1)","v":783},{"$f":"VLOOKUP(DropDownList!$B$47,CntyQuery!$A$170:$FJ$213,AJ$1)","v":609},{"$f":"VLOOKUP(DropDownList!$B$47,CntyQuery!$A$170:$FJ$213,AK$1)","v":"n"},{"$f":"VLOOKUP(DropDownList!$B$47,CntyQuery!$A$170:$FJ$213,AL$1)","v":"n"},{"$f":"VLOOKUP(DropDownList!$B$47,CntyQuery!$A$170:$FJ$213,AM$1)","v":541.73},{"$f":"VLOOKUP(DropDownList!$B$47,CntyQuery!$A$170:$FJ$213,AN$1)","v":541.84},{"$f":"VLOOKUP(DropDownList!$B$47,CntyQuery!$A$170:$FJ$213,AO$1)","v":"n"},{"$f":"VLOOKUP(DropDownList!$B$47,CntyQuery!$A$170:$FJ$213,AP$1)","v":"n"},{"$f":"VLOOKUP(DropDownList!$B$47,CntyQuery!$A$170:$FJ$213,AQ$1)","v":722},{"$f":"VLOOKUP(DropDownList!$B$47,CntyQuery!$A$170:$FJ$213,AR$1)","v":535},{"$f":"VLOOKUP(DropDownList!$B$47,CntyQuery!$A$170:$FJ$213,AS$1)","v":165},{"$f":"VLOOKUP(DropDownList!$B$47,CntyQuery!$A$170:$FJ$213,AT$1)","v":370},{"$f":"VLOOKUP(DropDownList!$B$47,CntyQuery!$A$170:$FJ$213,AU$1)","v":542.58000000000004},{"$f":"VLOOKUP(DropDownList!$B$47,CntyQuery!$A$170:$FJ$213,AV$1)","v":544.84},{"$f":"VLOOKUP(DropDownList!$B$47,CntyQuery!$A$170:$FJ$213,AW$1)","v":526.5},{"$f":"VLOOKUP(DropDownList!$B$47,CntyQuery!$A$170:$FJ$213,AX$1)","v":553},{"$f":"VLOOKUP(DropDownList!$B$47,CntyQuery!$A$170:$FJ$213,AY$1)","v":709},{"$f":"VLOOKUP(DropDownList!$B$47,CntyQuery!$A$170:$FJ$213,AZ$1)","v":516},{"$f":"VLOOKUP(DropDownList!$B$47,CntyQuery!$A$170:$FJ$213,BA$1)","v":120},{"$f":"VLOOKUP(DropDownList!$B$47,CntyQuery!$A$170:$FJ$213,BB$1)","v":395},{"$f":"VLOOKUP(DropDownList!$B$47,CntyQuery!$A$170:$FJ$213,BC$1)","v":566.6},{"$f":"VLOOKUP(DropDownList!$B$47,CntyQuery!$A$170:$FJ$213,BD$1)","v":574.70000000000005},{"$f":"VLOOKUP(DropDownList!$B$47,CntyQuery!$A$170:$FJ$213,BE$1)","v":577.92999999999995},{"$f":"VLOOKUP(DropDownList!$B$47,CntyQuery!$A$170:$FJ$213,BF$1)","v":573.71},{"$f":"VLOOKUP(DropDownList!$B$47,CntyQuery!$A$170:$FJ$213,BG$1)","v":720},{"$f":"VLOOKUP(DropDownList!$B$47,CntyQuery!$A$170:$FJ$213,BH$1)","v":525},{"$f":"VLOOKUP(DropDownList!$B$47,CntyQuery!$A$170:$FJ$213,BI$1)","v":141},{"$f":"VLOOKUP(DropDownList!$B$47,CntyQuery!$A$170:$FJ$213,BJ$1)","v":385},{"$f":"VLOOKUP(DropDownList!$B$47,CntyQuery!$A$170:$FJ$213,BK$1)","v":603.02},{"$f":"VLOOKUP(DropDownList!$B$47,CntyQuery!$A$170:$FJ$213,BL$1)","v":610.47},{"$f":"VLOOKUP(DropDownList!$B$47,CntyQuery!$A$170:$FJ$213,BM$1)","v":623.51},{"$f":"VLOOKUP(DropDownList!$B$47,CntyQuery!$A$170:$FJ$213,BN$1)","v":605.70000000000005},{"$f":"VLOOKUP(DropDownList!$B$47,CntyQuery!$A$170:$FJ$213,BO$1)","v":630},{"$f":"VLOOKUP(DropDownList!$B$47,CntyQuery!$A$170:$FJ$213,BP$1)","v":466},{"$f":"VLOOKUP(DropDownList!$B$47,CntyQuery!$A$170:$FJ$213,BQ$1)","v":137},{"$f":"VLOOKUP(DropDownList!$B$47,CntyQuery!$A$170:$FJ$213,BR$1)","v":329},{"$f":"VLOOKUP(DropDownList!$B$47,CntyQuery!$A$170:$FJ$213,BS$1)","v":632.92999999999995},{"$f":"VLOOKUP(DropDownList!$B$47,CntyQuery!$A$170:$FJ$213,BT$1)","v":611.41999999999996},{"$f":"VLOOKUP(DropDownList!$B$47,CntyQuery!$A$170:$FJ$213,BU$1)","v":615.41999999999996},{"$f":"VLOOKUP(DropDownList!$B$47,CntyQuery!$A$170:$FJ$213,BV$1)","v":609.76},{"$f":"VLOOKUP(DropDownList!$B$47,CntyQuery!$A$170:$FJ$213,BW$1)","v":646},{"$f":"VLOOKUP(DropDownList!$B$47,CntyQuery!$A$170:$FJ$213,BX$1)","v":472},{"$f":"VLOOKUP(DropDownList!$B$47,CntyQuery!$A$170:$FJ$213,BY$1)","v":147},{"$f":"VLOOKUP(DropDownList!$B$47,CntyQuery!$A$170:$FJ$213,BZ$1)","v":325},{"$f":"VLOOKUP(DropDownList!$B$47,CntyQuery!$A$170:$FJ$213,CA$1)","v":628.92999999999995},{"$f":"VLOOKUP(DropDownList!$B$47,CntyQuery!$A$170:$FJ$213,CB$1)","v":628.46},{"$f":"VLOOKUP(DropDownList!$B$47,CntyQuery!$A$170:$FJ$213,CC$1)","v":630.44000000000005},{"$f":"VLOOKUP(DropDownList!$B$47,CntyQuery!$A$170:$FJ$213,CD$1)","v":627.57000000000005},{"$f":"VLOOKUP(DropDownList!$B$47,CntyQuery!$A$170:$FJ$213,CE$1)","v":669},{"$f":"VLOOKUP(DropDownList!$B$47,CntyQuery!$A$170:$FJ$213,CF$1)","v":487},{"$f":"VLOOKUP(DropDownList!$B$47,CntyQuery!$A$170:$FJ$213,CG$1)","v":147},{"$f":"VLOOKUP(DropDownList!$B$47,CntyQuery!$A$170:$FJ$213,CH$1)","v":341},{"$f":"VLOOKUP(DropDownList!$B$47,CntyQuery!$A$170:$FJ$213,CI$1)","v":644.14},{"$f":"VLOOKUP(DropDownList!$B$47,CntyQuery!$A$170:$FJ$213,CJ$1)","v":648.04999999999995},{"$f":"VLOOKUP(DropDownList!$B$47,CntyQuery!$A$170:$FJ$213,CK$1)","v":628.24},{"$f":"VLOOKUP(DropDownList!$B$47,CntyQuery!$A$170:$FJ$213,CL$1)","v":656.56},{"$f":"VLOOKUP(DropDownList!$B$47,CntyQuery!$A$170:$FJ$213,CM$1)","v":708},{"$f":"VLOOKUP(DropDownList!$B$47,CntyQuery!$A$170:$FJ$213,CN$1)","v":528},{"$f":"VLOOKUP(DropDownList!$B$47,CntyQuery!$A$170:$FJ$213,CO$1)","v":157},{"$f":"VLOOKUP(DropDownList!$B$47,CntyQuery!$A$170:$FJ$213,CP$1)","v":372},{"$f":"VLOOKUP(DropDownList!$B$47,CntyQuery!$A$170:$FJ$213,CQ$1)","v":648.84},{"$f":"VLOOKUP(DropDownList!$B$47,CntyQuery!$A$170:$FJ$213,CR$1)","v":660.75},{"$f":"VLOOKUP(DropDownList!$B$47,CntyQuery!$A$170:$FJ$213,CS$1)","v":653.44000000000005},{"$f":"VLOOKUP(DropDownList!$B$47,CntyQuery!$A$170:$FJ$213,CT$1)","v":663.82},{"$f":"VLOOKUP(DropDownList!$B$47,CntyQuery!$A$170:$FJ$213,CU$1)","v":735},{"$f":"VLOOKUP(DropDownList!$B$47,CntyQuery!$A$170:$FJ$213,CV$1)","v":576},{"$f":"VLOOKUP(DropDownList!$B$47,CntyQuery!$A$170:$FJ$213,CW$1)","v":197},{"$f":"VLOOKUP(DropDownList!$B$47,CntyQuery!$A$170:$FJ$213,CX$1)","v":379},{"$f":"VLOOKUP(DropDownList!$B$47,CntyQuery!$A$170:$FJ$213,CY$1)","v":681.85},{"$f":"VLOOKUP(DropDownList!$B$47,CntyQuery!$A$170:$FJ$213,CZ$1)","v":676.87},{"$f":"VLOOKUP(DropDownList!$B$47,CntyQuery!$A$170:$FJ$213,DA$1)","v":655.93},{"$f":"VLOOKUP(DropDownList!$B$47,CntyQuery!$A$170:$FJ$213,DB$1)","v":687.74},{"$f":"VLOOKUP(DropDownList!$B$47,CntyQuery!$A$170:$FJ$213,DC$1)","v":719},{"$f":"VLOOKUP(DropDownList!$B$47,CntyQuery!$A$170:$FJ$213,DD$1)","v":555},{"$f":"VLOOKUP(DropDownList!$B$47,CntyQuery!$A$170:$FJ$213,DE$1)","v":182},{"$f":"VLOOKUP(DropDownList!$B$47,CntyQuery!$A$170:$FJ$213,DF$1)","v":373},{"$f":"VLOOKUP(DropDownList!$B$47,CntyQuery!$A$170:$FJ$213,DG$1)","v":697.28},{"$f":"VLOOKUP(DropDownList!$B$47,CntyQuery!$A$170:$FJ$213,DH$1)","v":696.05},{"$f":"VLOOKUP(DropDownList!$B$47,CntyQuery!$A$170:$FJ$213,DI$1)","v":730.28},{"$f":"VLOOKUP(DropDownList!$B$47,CntyQuery!$A$170:$FJ$213,DJ$1)","v":679.41},{"$f":"VLOOKUP(DropDownList!$B$47,CntyQuery!$A$170:$FJ$213,DK$1)","v":649},{"$f":"VLOOKUP(DropDownList!$B$47,CntyQuery!$A$170:$FJ$213,DL$1)","v":480},{"$f":"VLOOKUP(DropDownList!$B$47,CntyQuery!$A$170:$FJ$213,DM$1)","v":170},{"$f":"VLOOKUP(DropDownList!$B$47,CntyQuery!$A$170:$FJ$213,DN$1)","v":310},{"$f":"VLOOKUP(DropDownList!$B$47,CntyQuery!$A$170:$FJ$213,DO$1)","v":714.69},{"$f":"VLOOKUP(DropDownList!$B$47,CntyQuery!$A$170:$FJ$213,DP$1)","v":707.52},{"$f":"VLOOKUP(DropDownList!$B$47,CntyQuery!$A$170:$FJ$213,DQ$1)","v":809.33},{"$f":"VLOOKUP(DropDownList!$B$47,CntyQuery!$A$170:$FJ$213,DR$1)","v":651.65},{"$f":"VLOOKUP(DropDownList!$B$47,CntyQuery!$A$170:$FJ$213,DS$1)","v":618},{"$f":"VLOOKUP(DropDownList!$B$47,CntyQuery!$A$170:$FJ$213,DT$1)","v":447},{"$f":"VLOOKUP(DropDownList!$B$47,CntyQuery!$A$170:$FJ$213,DU$1)","v":127},{"$f":"VLOOKUP(DropDownList!$B$47,CntyQuery!$A$170:$FJ$213,DV$1)","v":320},{"$f":"VLOOKUP(DropDownList!$B$47,CntyQuery!$A$170:$FJ$213,DW$1)","v":744.13},{"$f":"VLOOKUP(DropDownList!$B$47,CntyQuery!$A$170:$FJ$213,DX$1)","v":758.48},{"$f":"VLOOKUP(DropDownList!$B$47,CntyQuery!$A$170:$FJ$213,DY$1)","v":998.41},{"$f":"VLOOKUP(DropDownList!$B$47,CntyQuery!$A$170:$FJ$213,DZ$1)","v":662.94},{"$f":"VLOOKUP(DropDownList!$B$47,CntyQuery!$A$170:$FJ$213,EA$1)","v":555},{"$f":"VLOOKUP(DropDownList!$B$47,CntyQuery!$A$170:$FJ$213,EB$1)","v":390},{"$f":"VLOOKUP(DropDownList!$B$47,CntyQuery!$A$170:$FJ$213,EC$1)","v":126},{"$f":"VLOOKUP(DropDownList!$B$47,CntyQuery!$A$170:$FJ$213,ED$1)","v":264},{"$f":"VLOOKUP(DropDownList!$B$47,CntyQuery!$A$170:$FJ$213,EE$1)","v":787.98},{"$f":"VLOOKUP(DropDownList!$B$47,CntyQuery!$A$170:$FJ$213,EF$1)","v":810.13},{"$f":"VLOOKUP(DropDownList!$B$47,CntyQuery!$A$170:$FJ$213,EG$1)","v":985.01},{"$f":"VLOOKUP(DropDownList!$B$47,CntyQuery!$A$170:$FJ$213,EH$1)","v":726.91},{"$f":"VLOOKUP(DropDownList!$B$47,CntyQuery!$A$170:$FJ$213,EI$1)","v":704},{"$f":"VLOOKUP(DropDownList!$B$47,CntyQuery!$A$170:$FJ$213,EJ$1)","v":370},{"$f":"VLOOKUP(DropDownList!$B$47,CntyQuery!$A$170:$FJ$213,EK$1)","v":114},{"$f":"VLOOKUP(DropDownList!$B$47,CntyQuery!$A$170:$FJ$213,EL$1)","v":256},{"$f":"VLOOKUP(DropDownList!$B$47,CntyQuery!$A$170:$FJ$213,EM$1)","v":881.97},{"$f":"VLOOKUP(DropDownList!$B$47,CntyQuery!$A$170:$FJ$213,EN$1)","v":877.59},{"$f":"VLOOKUP(DropDownList!$B$47,CntyQuery!$A$170:$FJ$213,EO$1)","v":1084.3599999999999},{"$f":"VLOOKUP(DropDownList!$B$47,CntyQuery!$A$170:$FJ$213,EP$1)","v":785.18},{"$f":"VLOOKUP(DropDownList!$B$47,CntyQuery!$A$170:$FJ$213,EQ$1)","v":741},{"$f":"VLOOKUP(DropDownList!$B$47,CntyQuery!$A$170:$FJ$213,ER$1)","v":394},{"$f":"VLOOKUP(DropDownList!$B$47,CntyQuery!$A$170:$FJ$213,ES$1)","v":348},{"$f":"VLOOKUP(DropDownList!$B$47,CntyQuery!$A$170:$FJ$213,ET$1)","v":117},{"$f":"VLOOKUP(DropDownList!$B$47,CntyQuery!$A$170:$FJ$213,EU$1)","v":277},{"$f":"VLOOKUP(DropDownList!$B$47,CntyQuery!$A$170:$FJ$213,EV$1)","v":851.29},{"$f":"VLOOKUP(DropDownList!$B$47,CntyQuery!$A$170:$FJ$213,EW$1)","v":836.77},{"$f":"VLOOKUP(DropDownList!$B$47,CntyQuery!$A$170:$FJ$213,EX$1)","v":867.73},{"$f":"VLOOKUP(DropDownList!$B$47,CntyQuery!$A$170:$FJ$213,EY$1)","v":1054.58},{"$f":"VLOOKUP(DropDownList!$B$47,CntyQuery!$A$170:$FJ$213,EZ$1)","v":744.63},{"$f":"VLOOKUP(DropDownList!$B$47,CntyQuery!$A$170:$FJ$213,FA$1)","v":60},{"$f":"VLOOKUP(DropDownList!$B$47,CntyQuery!$A$170:$FJ$213,FB$1)","v":744.63},{"$f":"VLOOKUP(DropDownList!$B$47,CntyQuery!$A$170:$FJ$213,FC$1)","v":60},{"$f":"VLOOKUP(DropDownList!$B$47,CntyQuery!$A$170:$FJ$213,FD$1)","v":0}]
[]
[]
[]
["PlaceName","LaborForce1990","LaborForce1991","LaborForce1992","LaborForce1993","LaborForce1994","LaborForce1995","LaborForce1996","LaborForce1997","LaborForce1998","LaborForce1999","LaborForce2000","LaborForce2001","LaborForce2002","LaborForce2003","NumbEmployed1990","NumbEmployed1991","NumbEmployed1992","NumbEmployed1993","NumbEmployed1994","NumbEmployed1995","NumbEmployed1996","NumbEmployed1997","NumbEmployed1998","NumbEmployed1999","NumbEmployed2000","NumbEmployed2001","NumbEmployed2002","NumbEmployed2003","UnempRate1990","UnempRate1991","UnempRate1992","UnempRate1993","UnempRate1994","UnempRate1995","UnempRate1996","UnempRate1997","UnempRate1998","UnempRate1999","UnempRate2000","UnempRate2001","UnempRate2002","UnempRate2003","NumbUnEmp1990","NumbUnEmp1991","NumbUnEmp1992","NumbUnEmp1993","NumbUnEmp1994","NumbUnEmp1995","NumbUnEmp1996","NumbUnEmp1997","NumbUnEmp1998","NumbUnEmp1999","NumbUnEmp2000","NumbUnEmp2001","NumbUnEmp2002","NumbUnEmp2003","LaborForce2004","NumbEmployed2004","UnempRate2004","NumbUnEmp2004","LaborForce2005","NumbEmployed2005","NumbUnEmp2005","UnempRate2005","LaborForce2006","NumbEmployed2006","NumbUnEmp2006","UnempRate2006","LaborForce2007","NumbEmployed2007","NumbUnEmp2007","UnempRate2007","LaborForce2008","NumbEmployed2008","NumbUnEmp2008","UnempRate2008","LaborForce2009","NumbEmployed2009","NumbUnEmp2009","UnempRate2009","LaborForce2010","NumbEmployed2010","NumbUnEmp2010","UnempRate2010","LaborForce2011","NumbEmployed2011","NumbUnEmp2011","UnempRate2011","LaborForce2012","NumbEmployed2012","NumbUnEmp2012","UnempRate2012","LaborForce2013","NumbEmployed2013","NumbUnEmp2013","UnempRate2013","LaborForce2014","NumbEmployed2014","NumbUnEmp2014","UnempRate2014","LaborForce2015","NumbEmployed2015","NumbUnEmp2015","UnempRate2015","LaborForce2016","NumbEmployed2016","NumbUnEmp2016","UnempRate2016","LaborForce2017","NumbEmployed2017","NumbUnEmp2017","UnempRate2017","LaborForce2018","NumbEmployed2018","NumbUnEmp2018","UnempRate2018","LaborForce2019","NumbEmployed2019","NumbUnEmp2019","UnempRate2019","Place-TownIDNumber"]
[{"$f":"VLOOKUP(DropDownList!$B$47,CntyQryCensus!$A$4:$EF$46,A$1)","v":"Allenstown"},{"$f":"VLOOKUP(DropDownList!$B$47,CntyQuery!$A$220:$EF$229,B$1)","v":{"$error":"#N/A"}},{"$f":"VLOOKUP(DropDownList!$B$47,CntyQuery!$A$220:$EF$229,C$1)","v":{"$error":"#N/A"}},{"$f":"VLOOKUP(DropDownList!$B$47,CntyQuery!$A$220:$EF$229,D$1)","v":{"$error":"#N/A"}},{"$f":"VLOOKUP(DropDownList!$B$47,CntyQuery!$A$220:$EF$229,E$1)","v":{"$error":"#N/A"}},{"$f":"VLOOKUP(DropDownList!$B$47,CntyQuery!$A$220:$EF$229,F$1)","v":{"$error":"#N/A"}},{"$f":"VLOOKUP(DropDownList!$B$47,CntyQuery!$A$220:$EF$229,G$1)","v":{"$error":"#N/A"}},{"$f":"VLOOKUP(DropDownList!$B$47,CntyQuery!$A$220:$EF$229,H$1)","v":{"$error":"#N/A"}},{"$f":"VLOOKUP(DropDownList!$B$47,CntyQuery!$A$220:$EF$229,I$1)","v":{"$error":"#N/A"}},{"$f":"VLOOKUP(DropDownList!$B$47,CntyQuery!$A$220:$EF$229,J$1)","v":{"$error":"#N/A"}},{"$f":"VLOOKUP(DropDownList!$B$47,CntyQuery!$A$220:$EF$229,K$1)","v":{"$error":"#N/A"}},{"$f":"VLOOKUP(DropDownList!$B$47,CntyQuery!$A$220:$EF$229,L$1)","v":{"$error":"#N/A"}},{"$f":"VLOOKUP(DropDownList!$B$47,CntyQuery!$A$220:$EF$229,M$1)","v":{"$error":"#N/A"}},{"$f":"VLOOKUP(DropDownList!$B$47,CntyQuery!$A$220:$EF$229,N$1)","v":{"$error":"#N/A"}},{"$f":"VLOOKUP(DropDownList!$B$47,CntyQuery!$A$220:$EF$229,O$1)","v":{"$error":"#N/A"}},{"$f":"VLOOKUP(DropDownList!$B$47,CntyQuery!$A$220:$EF$229,P$1)","v":{"$error":"#N/A"}},{"$f":"VLOOKUP(DropDownList!$B$47,CntyQuery!$A$220:$EF$229,Q$1)","v":{"$error":"#N/A"}},{"$f":"VLOOKUP(DropDownList!$B$47,CntyQuery!$A$220:$EF$229,R$1)","v":{"$error":"#N/A"}},{"$f":"VLOOKUP(DropDownList!$B$47,CntyQuery!$A$220:$EF$229,S$1)","v":{"$error":"#N/A"}},{"$f":"VLOOKUP(DropDownList!$B$47,CntyQuery!$A$220:$EF$229,T$1)","v":{"$error":"#N/A"}},{"$f":"VLOOKUP(DropDownList!$B$47,CntyQuery!$A$220:$EF$229,U$1)","v":{"$error":"#N/A"}},{"$f":"VLOOKUP(DropDownList!$B$47,CntyQuery!$A$220:$EF$229,V$1)","v":{"$error":"#N/A"}},{"$f":"VLOOKUP(DropDownList!$B$47,CntyQuery!$A$220:$EF$229,W$1)","v":{"$error":"#N/A"}},{"$f":"VLOOKUP(DropDownList!$B$47,CntyQuery!$A$220:$EF$229,X$1)","v":{"$error":"#N/A"}},{"$f":"VLOOKUP(DropDownList!$B$47,CntyQuery!$A$220:$EF$229,Y$1)","v":{"$error":"#N/A"}},{"$f":"VLOOKUP(DropDownList!$B$47,CntyQuery!$A$220:$EF$229,Z$1)","v":{"$error":"#N/A"}},{"$f":"VLOOKUP(DropDownList!$B$47,CntyQuery!$A$220:$EF$229,AA$1)","v":{"$error":"#N/A"}},{"$f":"VLOOKUP(DropDownList!$B$47,CntyQuery!$A$220:$EF$229,AB$1)","v":{"$error":"#N/A"}},{"$f":"VLOOKUP(DropDownList!$B$47,CntyQuery!$A$220:$EF$229,AC$1)","v":{"$error":"#N/A"}},{"$f":"VLOOKUP(DropDownList!$B$47,CntyQuery!$A$220:$EF$229,AD$1)","v":{"$error":"#N/A"}},{"$f":"VLOOKUP(DropDownList!$B$47,CntyQuery!$A$220:$EF$229,AE$1)","v":{"$error":"#N/A"}},{"$f":"VLOOKUP(DropDownList!$B$47,CntyQuery!$A$220:$EF$229,AF$1)","v":{"$error":"#N/A"}},{"$f":"VLOOKUP(DropDownList!$B$47,CntyQuery!$A$220:$EF$229,AG$1)","v":{"$error":"#N/A"}},{"$f":"VLOOKUP(DropDownList!$B$47,CntyQuery!$A$220:$EF$229,AH$1)","v":{"$error":"#N/A"}},{"$f":"VLOOKUP(DropDownList!$B$47,CntyQuery!$A$220:$EF$229,AI$1)","v":{"$error":"#N/A"}},{"$f":"VLOOKUP(DropDownList!$B$47,CntyQuery!$A$220:$EF$229,AJ$1)","v":{"$error":"#N/A"}},{"$f":"VLOOKUP(DropDownList!$B$47,CntyQuery!$A$220:$EF$229,AK$1)","v":{"$error":"#N/A"}},{"$f":"VLOOKUP(DropDownList!$B$47,CntyQuery!$A$220:$EF$229,AL$1)","v":{"$error":"#N/A"}},{"$f":"VLOOKUP(DropDownList!$B$47,CntyQuery!$A$220:$EF$229,AM$1)","v":{"$error":"#N/A"}},{"$f":"VLOOKUP(DropDownList!$B$47,CntyQuery!$A$220:$EF$229,AN$1)","v":{"$error":"#N/A"}},{"$f":"VLOOKUP(DropDownList!$B$47,CntyQuery!$A$220:$EF$229,AO$1)","v":{"$error":"#N/A"}},{"$f":"VLOOKUP(DropDownList!$B$47,CntyQuery!$A$220:$EF$229,AP$1)","v":{"$error":"#N/A"}},{"$f":"VLOOKUP(DropDownList!$B$47,CntyQuery!$A$220:$EF$229,AQ$1)","v":{"$error":"#N/A"}},{"$f":"VLOOKUP(DropDownList!$B$47,CntyQuery!$A$220:$EF$229,AR$1)","v":{"$error":"#N/A"}},{"$f":"VLOOKUP(DropDownList!$B$47,CntyQuery!$A$220:$EF$229,AS$1)","v":{"$error":"#N/A"}},{"$f":"VLOOKUP(DropDownList!$B$47,CntyQuery!$A$220:$EF$229,AT$1)","v":{"$error":"#N/A"}},{"$f":"VLOOKUP(DropDownList!$B$47,CntyQuery!$A$220:$EF$229,AU$1)","v":{"$error":"#N/A"}},{"$f":"VLOOKUP(DropDownList!$B$47,CntyQuery!$A$220:$EF$229,AV$1)","v":{"$error":"#N/A"}},{"$f":"VLOOKUP(DropDownList!$B$47,CntyQuery!$A$220:$EF$229,AW$1)","v":{"$error":"#N/A"}},{"$f":"VLOOKUP(DropDownList!$B$47,CntyQuery!$A$220:$EF$229,AX$1)","v":{"$error":"#N/A"}},{"$f":"VLOOKUP(DropDownList!$B$47,CntyQuery!$A$220:$EF$229,AY$1)","v":{"$error":"#N/A"}},{"$f":"VLOOKUP(DropDownList!$B$47,CntyQuery!$A$220:$EF$229,AZ$1)","v":{"$error":"#N/A"}},{"$f":"VLOOKUP(DropDownList!$B$47,CntyQuery!$A$220:$EF$229,BA$1)","v":{"$error":"#N/A"}},{"$f":"VLOOKUP(DropDownList!$B$47,CntyQuery!$A$220:$EF$229,BB$1)","v":{"$error":"#N/A"}},{"$f":"VLOOKUP(DropDownList!$B$47,CntyQuery!$A$220:$EF$229,BC$1)","v":{"$error":"#N/A"}},{"$f":"VLOOKUP(DropDownList!$B$47,CntyQuery!$A$220:$EF$229,BD$1)","v":{"$error":"#N/A"}},{"$f":"VLOOKUP(DropDownList!$B$47,CntyQuery!$A$220:$EF$229,BE$1)","v":{"$error":"#N/A"}},{"$f":"VLOOKUP(DropDownList!$B$47,CntyQuery!$A$220:$EF$229,BF$1)","v":{"$error":"#N/A"}},{"$f":"VLOOKUP(DropDownList!$B$47,CntyQuery!$A$220:$EF$229,BG$1)","v":{"$error":"#N/A"}},{"$f":"VLOOKUP(DropDownList!$B$47,CntyQuery!$A$220:$EF$229,BH$1)","v":{"$error":"#N/A"}},{"$f":"VLOOKUP(DropDownList!$B$47,CntyQuery!$A$220:$EF$229,BI$1)","v":{"$error":"#N/A"}},{"$f":"VLOOKUP(DropDownList!$B$47,CntyQuery!$A$220:$EF$229,BJ$1)","v":{"$error":"#N/A"}},{"$f":"VLOOKUP(DropDownList!$B$47,CntyQuery!$A$220:$EF$229,BK$1)","v":{"$error":"#N/A"}},{"$f":"VLOOKUP(DropDownList!$B$47,CntyQuery!$A$220:$EF$229,BL$1)","v":{"$error":"#N/A"}},{"$f":"VLOOKUP(DropDownList!$B$47,CntyQuery!$A$220:$EF$229,BM$1)","v":{"$error":"#N/A"}},{"$f":"VLOOKUP(DropDownList!$B$47,CntyQuery!$A$220:$EF$229,BN$1)","v":{"$error":"#N/A"}},{"$f":"VLOOKUP(DropDownList!$B$47,CntyQuery!$A$220:$EF$229,BO$1)","v":{"$error":"#N/A"}},{"$f":"VLOOKUP(DropDownList!$B$47,CntyQuery!$A$220:$EF$229,BP$1)","v":{"$error":"#N/A"}},{"$f":"VLOOKUP(DropDownList!$B$47,CntyQuery!$A$220:$EF$229,BQ$1)","v":{"$error":"#N/A"}},{"$f":"VLOOKUP(DropDownList!$B$47,CntyQuery!$A$220:$EF$229,BR$1)","v":{"$error":"#N/A"}},{"$f":"VLOOKUP(DropDownList!$B$47,CntyQuery!$A$220:$EF$229,BS$1)","v":{"$error":"#N/A"}},{"$f":"VLOOKUP(DropDownList!$B$47,CntyQuery!$A$220:$EF$229,BT$1)","v":{"$error":"#N/A"}},{"$f":"VLOOKUP(DropDownList!$B$47,CntyQuery!$A$220:$EF$229,BU$1)","v":{"$error":"#N/A"}},{"$f":"VLOOKUP(DropDownList!$B$47,CntyQuery!$A$220:$EF$229,BV$1)","v":{"$error":"#N/A"}},{"$f":"VLOOKUP(DropDownList!$B$47,CntyQuery!$A$220:$EF$229,BW$1)","v":{"$error":"#N/A"}},{"$f":"VLOOKUP(DropDownList!$B$47,CntyQuery!$A$220:$EF$229,BX$1)","v":{"$error":"#N/A"}},{"$f":"VLOOKUP(DropDownList!$B$47,CntyQuery!$A$220:$EF$229,BY$1)","v":{"$error":"#N/A"}},{"$f":"VLOOKUP(DropDownList!$B$47,CntyQuery!$A$220:$EF$229,BZ$1)","v":{"$error":"#N/A"}},{"$f":"VLOOKUP(DropDownList!$B$47,CntyQuery!$A$220:$EF$229,CA$1)","v":{"$error":"#N/A"}},{"$f":"VLOOKUP(DropDownList!$B$47,CntyQuery!$A$220:$EF$229,CB$1)","v":{"$error":"#N/A"}},{"$f":"VLOOKUP(DropDownList!$B$47,CntyQuery!$A$220:$EF$229,CC$1)","v":{"$error":"#N/A"}},{"$f":"VLOOKUP(DropDownList!$B$47,CntyQuery!$A$220:$EF$229,CD$1)","v":{"$error":"#N/A"}},{"$f":"VLOOKUP(DropDownList!$B$47,CntyQuery!$A$220:$EF$229,CE$1)","v":{"$error":"#N/A"}},{"$f":"VLOOKUP(DropDownList!$B$47,CntyQuery!$A$220:$EF$229,CF$1)","v":{"$error":"#N/A"}},{"$f":"VLOOKUP(DropDownList!$B$47,CntyQuery!$A$220:$EF$229,CG$1)","v":{"$error":"#N/A"}},{"$f":"VLOOKUP(DropDownList!$B$47,CntyQuery!$A$220:$EF$229,CH$1)","v":{"$error":"#N/A"}},{"$f":"VLOOKUP(DropDownList!$B$47,CntyQuery!$A$220:$EF$229,CI$1)","v":{"$error":"#N/A"}},{"$f":"VLOOKUP(DropDownList!$B$47,CntyQuery!$A$220:$EF$229,CJ$1)","v":{"$error":"#N/A"}},{"$f":"VLOOKUP(DropDownList!$B$47,CntyQuery!$A$220:$EF$229,CK$1)","v":{"$error":"#N/A"}},{"$f":"VLOOKUP(DropDownList!$B$47,CntyQuery!$A$220:$EF$229,CL$1)","v":{"$error":"#N/A"}},{"$f":"VLOOKUP(DropDownList!$B$47,CntyQuery!$A$220:$EF$229,CM$1)","v":{"$error":"#N/A"}},{"$f":"VLOOKUP(DropDownList!$B$47,CntyQuery!$A$220:$EF$229,CN$1)","v":{"$error":"#N/A"}},{"$f":"VLOOKUP(DropDownList!$B$47,CntyQuery!$A$220:$EF$229,CO$1)","v":{"$error":"#N/A"}},{"$f":"VLOOKUP(DropDownList!$B$47,CntyQuery!$A$220:$EF$229,CP$1)","v":{"$error":"#N/A"}},{"$f":"VLOOKUP(DropDownList!$B$47,CntyQuery!$A$220:$EF$229,CQ$1)","v":{"$error":"#N/A"}},{"$f":"VLOOKUP(DropDownList!$B$47,CntyQuery!$A$220:$EF$229,CR$1)","v":{"$error":"#N/A"}},{"$f":"VLOOKUP(DropDownList!$B$47,CntyQuery!$A$220:$EF$229,CS$1)","v":{"$error":"#N/A"}},{"$f":"VLOOKUP(DropDownList!$B$47,CntyQuery!$A$220:$EF$229,CT$1)","v":{"$error":"#N/A"}},{"$f":"VLOOKUP(DropDownList!$B$47,CntyQuery!$A$220:$EF$229,CU$1)","v":{"$error":"#N/A"}},{"$f":"VLOOKUP(DropDownList!$B$47,CntyQuery!$A$220:$EF$229,CV$1)","v":{"$error":"#N/A"}},{"$f":"VLOOKUP(DropDownList!$B$47,CntyQuery!$A$220:$EF$229,CW$1)","v":{"$error":"#N/A"}},{"$f":"VLOOKUP(DropDownList!$B$47,CntyQuery!$A$220:$EF$229,CX$1)","v":{"$error":"#N/A"}},{"$f":"VLOOKUP(DropDownList!$B$47,CntyQuery!$A$220:$EF$229,CY$1)","v":{"$error":"#N/A"}},{"$f":"VLOOKUP(DropDownList!$B$47,CntyQuery!$A$220:$EF$229,CZ$1)","v":{"$error":"#N/A"}},{"$f":"VLOOKUP(DropDownList!$B$47,CntyQuery!$A$220:$EF$229,DA$1)","v":{"$error":"#N/A"}},{"$f":"VLOOKUP(DropDownList!$B$47,CntyQuery!$A$220:$EF$229,DB$1)","v":{"$error":"#N/A"}},{"$f":"VLOOKUP(DropDownList!$B$47,CntyQuery!$A$220:$EF$229,DC$1)","v":{"$error":"#N/A"}},{"$f":"VLOOKUP(DropDownList!$B$47,CntyQuery!$A$220:$EF$229,DD$1)","v":{"$error":"#N/A"}},{"$f":"VLOOKUP(DropDownList!$B$47,CntyQuery!$A$220:$EF$229,DE$1)","v":{"$error":"#N/A"}},{"$f":"VLOOKUP(DropDownList!$B$47,CntyQuery!$A$220:$EF$229,DF$1)","v":{"$error":"#N/A"}},{"$f":"VLOOKUP(DropDownList!$B$47,CntyQuery!$A$220:$EF$229,DG$1)","v":{"$error":"#N/A"}},{"$f":"VLOOKUP(DropDownList!$B$47,CntyQuery!$A$220:$EF$229,DH$1)","v":{"$error":"#N/A"}},{"$f":"VLOOKUP(DropDownList!$B$47,CntyQuery!$A$220:$EF$229,DI$1)","v":{"$error":"#N/A"}},{"$f":"VLOOKUP(DropDownList!$B$47,CntyQuery!$A$220:$EF$229,DJ$1)","v":{"$error":"#N/A"}},{"$f":"VLOOKUP(DropDownList!$B$47,CntyQuery!$A$220:$EF$229,DK$1)","v":{"$error":"#N/A"}},{"$f":"VLOOKUP(DropDownList!$B$47,CntyQuery!$A$220:$EF$229,DL$1)","v":{"$error":"#N/A"}},{"$f":"VLOOKUP(DropDownList!$B$47,CntyQuery!$A$220:$EF$229,DM$1)","v":{"$error":"#N/A"}},{"$f":"VLOOKUP(DropDownList!$B$47,CntyQuery!$A$220:$EF$229,DN$1)","v":{"$error":"#N/A"}},{"$f":"VLOOKUP(DropDownList!$B$47,CntyQuery!$A$220:$EF$229,DO$1)","v":{"$error":"#N/A"}},{"$f":"VLOOKUP(DropDownList!$B$47,CntyQuery!$A$220:$EF$229,DP$1)","v":{"$error":"#N/A"}},{"$f":"VLOOKUP(DropDownList!$B$47,CntyQuery!$A$220:$EF$229,DQ$1)","v":{"$error":"#N/A"}},{"$f":"VLOOKUP(DropDownList!$B$47,CntyQuery!$A$220:$EF$229,DR$1)","v":{"$error":"#N/A"}}]
[]
[null,null,null,null,null,null,null,null,null,null,null,null,{"$f":"IF((CntyDataLink!$BL$25)=\"n\",NA(),IF(VALUE(CntyDataLink!$BL$25)=\"\",NA(),VALUE(CntyDataLink!$BL$25)))","v":610.47}]
["Census 2000   -           Query Name:  TownAllQuery3",2,{"$f":"B33+1","v":3},{"$f":"C33+1","v":4},5,6,7,8,9,10,11,12,13,14,15,16,17,18,19,20,21,22,23,24,25,26,27,28,29,30,31,32,33,34,35,36,37,38,39,40,41,42,43,44,45,46,47,48,49,50,51,52,53,54,55,56,57,58,59,60,61,62,63,64,65,66,67,{"$f":"BO33+1","v":68},69,70,71,72,73,74,75,76,77,78,79,80,81,82,83,84,85,86,87,88,89,90,91,92,93,94,95,96,97,98,99,100,101,102]
["NAME","COUNTY","LOGRECNO","COUSUB","TRACT","AREALAND","AREAWATR","POP100","HU100","2000Population","PopOfOneRace","PopWhite","PopBlack","PopAmIndian","PopAsian","PopHawaiian","PopOtherRace","Pop2orMoreRaces","PopHispanicLatino","PopNotHispanicLatino","PopMale","PopMale<15","PopMale15to24","PopMale25to34","PopMale35to44","PopMale45to54","PopMale55to64","PopMale65to74","PopMale75to84","PopMale85andOver","PopFemale","PopFemale<15","PopFemale15to24","PopFemale25to34","PopFemale35t44","PopFemale45to54","PopFemale55to64","PopFemale65to74","PopFemale75to84","PopFemale85andOver","Households2000","PopInHH","AvgHHSize","HHs1Person","HHs2orMorePerson","HHsFamily","HHMarriedCoupleFam","HHSingleParentFam","HHsNonFamily","Families","PopInFam","AvgFamSize","TotHsUnits","OccHsUnits","OwnerOccHU","RenterOccHU","VctHsUnits","VctHUForRent","VctHUForSale","VctHUSeasonal","PopInOccHU","PopInOwnOccHU","PopInRntOccHU","AvgHHSize2","AvgHHSizOwnOcc","AvgHHSizRntOcc","OwnOccWhtHsHldr","OwnOccBlkHsHldr","OwnOccAmIHsHldr","OwnOccAsnHsHldr","OwnOccPIsHsHldr","OwnOccORHsHldr","OwnOcc2RcHsHldr","RntOccWhtHsHldr","RntOccBlkHsHldr","RntOccAmIHsHldr","RntOccAsnHsHldr","RntOccPIsHsHldr","RntOccORHsHldr","RntOcc2RcHsHldr","OwnOccHH15to24","OwnOccHH25to34","OwnOccHH35to44","OwnOccHH45to54","OwnOccHH55to64","OwnOccHH65to74","OwnOccHH75to84","OwnOccHH85Over","RntOccHH15to24","RntOccHH25to34","RntOccHH35to44","RntOccHH45to54","RntOccHH55to64","RntOccHH65to74","RntOccHH75to84","RntOccHH85Over","P27TotalPop","P27PopInHseHlds","P27PopInGrpQtrs","Median Age Total","Median Age (Male)","Median Age (Female)"]
[{"$f":"VLOOKUP(DropDownList!$B$47,CntyQryCensus!$A$4:$CW$46,A$1)","v":"Allenstown"},{"$f":"VLOOKUP(DropDownList!$B$47,CntyQryCensus!$A$4:$CW$46,B$1)","v":"013"},{"$f":"VLOOKUP(DropDownList!$B$47,CntyQryCensus!$A$4:$CW$46,C$1)","v":"0022469"},{"$f":"VLOOKUP(DropDownList!$B$47,CntyQryCensus!$A$4:$CW$46,D$1)","v":"00660"},{"$f":"VLOOKUP(DropDownList!$B$47,CntyQryCensus!$A$4:$CW$46,E$1)","v":""},{"$f":"VLOOKUP(DropDownList!$B$47,CntyQryCensus!$A$4:$CW$46,F$1)","v":"      53161407"},{"$f":"VLOOKUP(DropDownList!$B$47,CntyQryCensus!$A$4:$CW$46,G$1)","v":"        277792"},{"$f":"VLOOKUP(DropDownList!$B$47,CntyQryCensus!$A$4:$CW$46,H$1)","v":4843},{"$f":"VLOOKUP(DropDownList!$B$47,CntyQryCensus!$A$4:$CW$46,I$1)","v":1962},{"$f":"VLOOKUP(DropDownList!$B$47,CntyQryCensus!$A$4:$CW$46,J$1)","v":4843},{"$f":"VLOOKUP(DropDownList!$B$47,CntyQryCensus!$A$4:$CW$46,K$1)","v":4804},{"$f":"VLOOKUP(DropDownList!$B$47,CntyQryCensus!$A$4:$CW$46,L$1)","v":4738},{"$f":"VLOOKUP(DropDownList!$B$47,CntyQryCensus!$A$4:$CW$46,M$1)","v":24},{"$f":"VLOOKUP(DropDownList!$B$47,CntyQryCensus!$A$4:$CW$46,N$1)","v":11},{"$f":"VLOOKUP(DropDownList!$B$47,CntyQryCensus!$A$4:$CW$46,O$1)","v":18},{"$f":"VLOOKUP(DropDownList!$B$47,CntyQryCensus!$A$4:$CW$46,P$1)","v":0},{"$f":"VLOOKUP(DropDownList!$B$47,CntyQryCensus!$A$4:$CW$46,Q$1)","v":13},{"$f":"VLOOKUP(DropDownList!$B$47,CntyQryCensus!$A$4:$CW$46,R$1)","v":39},{"$f":"VLOOKUP(DropDownList!$B$47,CntyQryCensus!$A$4:$CW$46,S$1)","v":57},{"$f":"VLOOKUP(DropDownList!$B$47,CntyQryCensus!$A$4:$CW$46,T$1)","v":4786},{"$f":"VLOOKUP(DropDownList!$B$47,CntyQryCensus!$A$4:$CW$46,U$1)","v":2343},{"$f":"VLOOKUP(DropDownList!$B$47,CntyQryCensus!$A$4:$CW$46,V$1)","v":565},{"$f":"VLOOKUP(DropDownList!$B$47,CntyQryCensus!$A$4:$CW$46,W$1)","v":266},{"$f":"VLOOKUP(DropDownList!$B$47,CntyQryCensus!$A$4:$CW$46,X$1)","v":347},{"$f":"VLOOKUP(DropDownList!$B$47,CntyQryCensus!$A$4:$CW$46,Y$1)","v":477},{"$f":"VLOOKUP(DropDownList!$B$47,CntyQryCensus!$A$4:$CW$46,Z$1)","v":318},{"$f":"VLOOKUP(DropDownList!$B$47,CntyQryCensus!$A$4:$CW$46,AA$1)","v":192},{"$f":"VLOOKUP(DropDownList!$B$47,CntyQryCensus!$A$4:$CW$46,AB$1)","v":109},{"$f":"VLOOKUP(DropDownList!$B$47,CntyQryCensus!$A$4:$CW$46,AC$1)","v":62},{"$f":"VLOOKUP(DropDownList!$B$47,CntyQryCensus!$A$4:$CW$46,AD$1)","v":7},{"$f":"VLOOKUP(DropDownList!$B$47,CntyQryCensus!$A$4:$CW$46,AE$1)","v":2500},{"$f":"VLOOKUP(DropDownList!$B$47,CntyQryCensus!$A$4:$CW$46,AF$1)","v":563},{"$f":"VLOOKUP(DropDownList!$B$47,CntyQryCensus!$A$4:$CW$46,AG$1)","v":251},{"$f":"VLOOKUP(DropDownList!$B$47,CntyQryCensus!$A$4:$CW$46,AH$1)","v":387},{"$f":"VLOOKUP(DropDownList!$B$47,CntyQryCensus!$A$4:$CW$46,AI$1)","v":450},{"$f":"VLOOKUP(DropDownList!$B$47,CntyQryCensus!$A$4:$CW$46,AJ$1)","v":313},{"$f":"VLOOKUP(DropDownList!$B$47,CntyQryCensus!$A$4:$CW$46,AK$1)","v":201},{"$f":"VLOOKUP(DropDownList!$B$47,CntyQryCensus!$A$4:$CW$46,AL$1)","v":153},{"$f":"VLOOKUP(DropDownList!$B$47,CntyQryCensus!$A$4:$CW$46,AM$1)","v":127},{"$f":"VLOOKUP(DropDownList!$B$47,CntyQryCensus!$A$4:$CW$46,AN$1)","v":55},{"$f":"VLOOKUP(DropDownList!$B$47,CntyQryCensus!$A$4:$CW$46,AO$1)","v":1902},{"$f":"VLOOKUP(DropDownList!$B$47,CntyQryCensus!$A$4:$CW$46,AP$1)","v":4808},{"$f":"VLOOKUP(DropDownList!$B$47,CntyQryCensus!$A$4:$CW$46,AQ$1)","v":2.5299999999999998},{"$f":"VLOOKUP(DropDownList!$B$47,CntyQryCensus!$A$4:$CW$46,AR$1)","v":517},{"$f":"VLOOKUP(DropDownList!$B$47,CntyQryCensus!$A$4:$CW$46,AS$1)","v":1385},{"$f":"VLOOKUP(DropDownList!$B$47,CntyQryCensus!$A$4:$CW$46,AT$1)","v":1254},{"$f":"VLOOKUP(DropDownList!$B$47,CntyQryCensus!$A$4:$CW$46,AU$1)","v":965},{"$f":"VLOOKUP(DropDownList!$B$47,CntyQryCensus!$A$4:$CW$46,AV$1)","v":289},{"$f":"VLOOKUP(DropDownList!$B$47,CntyQryCensus!$A$4:$CW$46,AW$1)","v":131},{"$f":"VLOOKUP(DropDownList!$B$47,CntyQryCensus!$A$4:$CW$46,AX$1)","v":1254},{"$f":"VLOOKUP(DropDownList!$B$47,CntyQryCensus!$A$4:$CW$46,AY$1)","v":3831},{"$f":"VLOOKUP(DropDownList!$B$47,CntyQryCensus!$A$4:$CW$46,AZ$1)","v":3.06},{"$f":"VLOOKUP(DropDownList!$B$47,CntyQryCensus!$A$4:$CW$46,BA$1)","v":1962},{"$f":"VLOOKUP(DropDownList!$B$47,CntyQryCensus!$A$4:$CW$46,BB$1)","v":1902},{"$f":"VLOOKUP(DropDownList!$B$47,CntyQryCensus!$A$4:$CW$46,BC$1)","v":1356},{"$f":"VLOOKUP(DropDownList!$B$47,CntyQryCensus!$A$4:$CW$46,BD$1)","v":546},{"$f":"VLOOKUP(DropDownList!$B$47,CntyQryCensus!$A$4:$CW$46,BE$1)","v":60},{"$f":"VLOOKUP(DropDownList!$B$47,CntyQryCensus!$A$4:$CW$46,BF$1)","v":6},{"$f":"VLOOKUP(DropDownList!$B$47,CntyQryCensus!$A$4:$CW$46,BG$1)","v":7},{"$f":"VLOOKUP(DropDownList!$B$47,CntyQryCensus!$A$4:$CW$46,BH$1)","v":23},{"$f":"VLOOKUP(DropDownList!$B$47,CntyQryCensus!$A$4:$CW$46,BI$1)","v":4808},{"$f":"VLOOKUP(DropDownList!$B$47,CntyQryCensus!$A$4:$CW$46,BJ$1)","v":3736},{"$f":"VLOOKUP(DropDownList!$B$47,CntyQryCensus!$A$4:$CW$46,BK$1)","v":1072},{"$f":"VLOOKUP(DropDownList!$B$47,CntyQryCensus!$A$4:$CW$46,BL$1)","v":2.5299999999999998},{"$f":"VLOOKUP(DropDownList!$B$47,CntyQryCensus!$A$4:$CW$46,BM$1)","v":2.76},{"$f":"VLOOKUP(DropDownList!$B$47,CntyQryCensus!$A$4:$CW$46,BN$1)","v":1.96},{"$f":"VLOOKUP(DropDownList!$B$47,CntyQryCensus!$A$4:$CW$46,BO$1)","v":1335},{"$f":"VLOOKUP(DropDownList!$B$47,CntyQryCensus!$A$4:$CW$46,BP$1)","v":2},{"$f":"VLOOKUP(DropDownList!$B$47,CntyQryCensus!$A$4:$CW$46,BQ$1)","v":3},{"$f":"VLOOKUP(DropDownList!$B$47,CntyQryCensus!$A$4:$CW$46,BR$1)","v":4},{"$f":"VLOOKUP(DropDownList!$B$47,CntyQryCensus!$A$4:$CW$46,BS$1)","v":0},{"$f":"VLOOKUP(DropDownList!$B$47,CntyQryCensus!$A$4:$CW$46,BT$1)","v":3},{"$f":"VLOOKUP(DropDownList!$B$47,CntyQryCensus!$A$4:$CW$46,BU$1)","v":9},{"$f":"VLOOKUP(DropDownList!$B$47,CntyQryCensus!$A$4:$CW$46,BV$1)","v":532},{"$f":"VLOOKUP(DropDownList!$B$47,CntyQryCensus!$A$4:$CW$46,BW$1)","v":4},{"$f":"VLOOKUP(DropDownList!$B$47,CntyQryCensus!$A$4:$CW$46,BX$1)","v":2},{"$f":"VLOOKUP(DropDownList!$B$47,CntyQryCensus!$A$4:$CW$46,BY$1)","v":4},{"$f":"VLOOKUP(DropDownList!$B$47,CntyQryCensus!$A$4:$CW$46,BZ$1)","v":0},{"$f":"VLOOKUP(DropDownList!$B$47,CntyQryCensus!$A$4:$CW$46,CA$1)","v":0},{"$f":"VLOOKUP(DropDownList!$B$47,CntyQryCensus!$A$4:$CW$46,CB$1)","v":4},{"$f":"VLOOKUP(DropDownList!$B$47,CntyQryCensus!$A$4:$CW$46,CC$1)","v":27},{"$f":"VLOOKUP(DropDownList!$B$47,CntyQryCensus!$A$4:$CW$46,CD$1)","v":225},{"$f":"VLOOKUP(DropDownList!$B$47,CntyQryCensus!$A$4:$CW$46,CE$1)","v":393},{"$f":"VLOOKUP(DropDownList!$B$47,CntyQryCensus!$A$4:$CW$46,CF$1)","v":294},{"$f":"VLOOKUP(DropDownList!$B$47,CntyQryCensus!$A$4:$CW$46,CG$1)","v":188},{"$f":"VLOOKUP(DropDownList!$B$47,CntyQryCensus!$A$4:$CW$46,CH$1)","v":143},{"$f":"VLOOKUP(DropDownList!$B$47,CntyQryCensus!$A$4:$CW$46,CI$1)","v":68},{"$f":"VLOOKUP(DropDownList!$B$47,CntyQryCensus!$A$4:$CW$46,CJ$1)","v":18},{"$f":"VLOOKUP(DropDownList!$B$47,CntyQryCensus!$A$4:$CW$46,CK$1)","v":37},{"$f":"VLOOKUP(DropDownList!$B$47,CntyQryCensus!$A$4:$CW$46,CL$1)","v":133},{"$f":"VLOOKUP(DropDownList!$B$47,CntyQryCensus!$A$4:$CW$46,CM$1)","v":127},{"$f":"VLOOKUP(DropDownList!$B$47,CntyQryCensus!$A$4:$CW$46,CN$1)","v":66},{"$f":"VLOOKUP(DropDownList!$B$47,CntyQryCensus!$A$4:$CW$46,CO$1)","v":43},{"$f":"VLOOKUP(DropDownList!$B$47,CntyQryCensus!$A$4:$CW$46,CP$1)","v":40},{"$f":"VLOOKUP(DropDownList!$B$47,CntyQryCensus!$A$4:$CW$46,CQ$1)","v":76},{"$f":"VLOOKUP(DropDownList!$B$47,CntyQryCensus!$A$4:$CW$46,CR$1)","v":24},{"$f":"VLOOKUP(DropDownList!$B$47,CntyQryCensus!$A$4:$CW$46,CS$1)","v":4843},{"$f":"VLOOKUP(DropDownList!$B$47,CntyQryCensus!$A$4:$CW$46,CT$1)","v":4808},{"$f":"VLOOKUP(DropDownList!$B$47,CntyQryCensus!$A$4:$CW$46,CU$1)","v":35},{"$f":"VLOOKUP(DropDownList!$B$47,CntyQryCensus!$A$4:$CW$46,CV$1)","v":35.5},{"$f":"VLOOKUP(DropDownList!$B$47,CntyQryCensus!$A$4:$CW$46,CW$1)","v":34.9},{"$f":"VLOOKUP(DropDownList!$B$47,CntyQryCensus!$A$4:$CW$46,CX$1)","v":{"$error":"#REF!"}}]
[]
[]
["Census 2000 DemoProfile Sample Data Tables 2&3   -  DPTab23TownQry"]
["NAME","COUSUB","AREANAME","PopInSchool","Preschool","Kindergarten","Elementary","HighSchool","College","Pop25andOver","HighSchoolGrad","SomeCollege","AssocDegree","BachelDegree","GradDegree","HSGradorHigher","CollegeGradorHigher","Pop5to20yrs","Pop5to20wDis","Pop21to64","Pop21to64wDis","Pop65over","Pop65overwDis","Pop5yrsOver","SameHUin95","DiffHUinUSin95","HUinSameCountyin95","HUinSameStatein95","TotalPop","NativePop","NatPopBornUS","NatPopBornInStatRes","NatPopBornDiffState","NatPopBornOutUS","FornBornPop","FornPopEnt90to00","FornPopNatCit","FornPopNotCit","Households","HHIncLessThn10k","HHInc10to15K","HHInc15to25K","HHInc25to35K","HHInc35to50K","HHInc50to75K","HHInc75to100K","HHInc100to150K","HHInc150to200K","HHIncOver200K","MedianHHInc","HHwithPubAssistInc","MeanPubAssist","FamilyHH","FHHIncLessThn10k","FHHInc10to15K","FHHInc15to25K","FHHInc25to35K","FHHInc35to50K","FHHInc50to75K","FHHInc75to100K","FHHInc100to150K","FHHInc150to200K","FHHIncOver200K","MedianFHHInc","PerCapitaInc","PovStatFamilies","PovStatFHHwChilUnd18","PovStatFHHwChilUnd5","PovStFmalHH","DP3088","DP3089","PovStatIndiv","PovStatIndiv18yrOver","PovStatIndiv65yrOver","DP3093","DP3094","DP3095"]
[{"$f":"VLOOKUP(DropDownList!$B$47,CntyQryCensus!$A$53:$BY$96,A$1)","v":"Allenstown"},{"$f":"VLOOKUP(DropDownList!$B$47,CntyQryCensus!$A$53:$BY$96,B$1)","v":"00660"},{"$f":"VLOOKUP(DropDownList!$B$47,CntyQryCensus!$A$53:$BY$96,C$1)","v":"Allenstown town, Merrimack County, New Hampshire"},{"$f":"VLOOKUP(DropDownList!$B$47,CntyQryCensus!$A$53:$BY$96,D$1)","v":1228},{"$f":"VLOOKUP(DropDownList!$B$47,CntyQryCensus!$A$53:$BY$96,E$1)","v":89},{"$f":"VLOOKUP(DropDownList!$B$47,CntyQryCensus!$A$53:$BY$96,F$1)","v":44},{"$f":"VLOOKUP(DropDownList!$B$47,CntyQryCensus!$A$53:$BY$96,G$1)","v":682},{"$f":"VLOOKUP(DropDownList!$B$47,CntyQryCensus!$A$53:$BY$96,H$1)","v":302},{"$f":"VLOOKUP(DropDownList!$B$47,CntyQryCensus!$A$53:$BY$96,I$1)","v":111},{"$f":"VLOOKUP(DropDownList!$B$47,CntyQryCensus!$A$53:$BY$96,J$1)","v":3202},{"$f":"VLOOKUP(DropDownList!$B$47,CntyQryCensus!$A$53:$BY$96,K$1)","v":1283},{"$f":"VLOOKUP(DropDownList!$B$47,CntyQryCensus!$A$53:$BY$96,L$1)","v":755},{"$f":"VLOOKUP(DropDownList!$B$47,CntyQryCensus!$A$53:$BY$96,M$1)","v":207},{"$f":"VLOOKUP(DropDownList!$B$47,CntyQryCensus!$A$53:$BY$96,N$1)","v":219},{"$f":"VLOOKUP(DropDownList!$B$47,CntyQryCensus!$A$53:$BY$96,O$1)","v":92},{"$f":"VLOOKUP(DropDownList!$B$47,CntyQryCensus!$A$53:$BY$96,P$1)","v":2556},{"$f":"VLOOKUP(DropDownList!$B$47,CntyQryCensus!$A$53:$BY$96,Q$1)","v":311},{"$f":"VLOOKUP(DropDownList!$B$47,CntyQryCensus!$A$53:$BY$96,R$1)","v":1138},{"$f":"VLOOKUP(DropDownList!$B$47,CntyQryCensus!$A$53:$BY$96,S$1)","v":140},{"$f":"VLOOKUP(DropDownList!$B$47,CntyQryCensus!$A$53:$BY$96,T$1)","v":2853},{"$f":"VLOOKUP(DropDownList!$B$47,CntyQryCensus!$A$53:$BY$96,U$1)","v":577},{"$f":"VLOOKUP(DropDownList!$B$47,CntyQryCensus!$A$53:$BY$96,V$1)","v":506},{"$f":"VLOOKUP(DropDownList!$B$47,CntyQryCensus!$A$53:$BY$96,W$1)","v":219},{"$f":"VLOOKUP(DropDownList!$B$47,CntyQryCensus!$A$53:$BY$96,X$1)","v":4524},{"$f":"VLOOKUP(DropDownList!$B$47,CntyQryCensus!$A$53:$BY$96,Y$1)","v":2494},{"$f":"VLOOKUP(DropDownList!$B$47,CntyQryCensus!$A$53:$BY$96,Z$1)","v":1996},{"$f":"VLOOKUP(DropDownList!$B$47,CntyQryCensus!$A$53:$BY$96,AA$1)","v":875},{"$f":"VLOOKUP(DropDownList!$B$47,CntyQryCensus!$A$53:$BY$96,AB$1)","v":1121},{"$f":"VLOOKUP(DropDownList!$B$47,CntyQryCensus!$A$53:$BY$96,AC$1)","v":4843},{"$f":"VLOOKUP(DropDownList!$B$47,CntyQryCensus!$A$53:$BY$96,AD$1)","v":4727},{"$f":"VLOOKUP(DropDownList!$B$47,CntyQryCensus!$A$53:$BY$96,AE$1)","v":4689},{"$f":"VLOOKUP(DropDownList!$B$47,CntyQryCensus!$A$53:$BY$96,AF$1)","v":2983},{"$f":"VLOOKUP(DropDownList!$B$47,CntyQryCensus!$A$53:$BY$96,AG$1)","v":1706},{"$f":"VLOOKUP(DropDownList!$B$47,CntyQryCensus!$A$53:$BY$96,AH$1)","v":38},{"$f":"VLOOKUP(DropDownList!$B$47,CntyQryCensus!$A$53:$BY$96,AI$1)","v":116},{"$f":"VLOOKUP(DropDownList!$B$47,CntyQryCensus!$A$53:$BY$96,AJ$1)","v":24},{"$f":"VLOOKUP(DropDownList!$B$47,CntyQryCensus!$A$53:$BY$96,AK$1)","v":72},{"$f":"VLOOKUP(DropDownList!$B$47,CntyQryCensus!$A$53:$BY$96,AL$1)","v":44},{"$f":"VLOOKUP(DropDownList!$B$47,CntyQryCensus!$A$53:$BY$96,AM$1)","v":1901},{"$f":"VLOOKUP(DropDownList!$B$47,CntyQryCensus!$A$53:$BY$96,AN$1)","v":121},{"$f":"VLOOKUP(DropDownList!$B$47,CntyQryCensus!$A$53:$BY$96,AO$1)","v":100},{"$f":"VLOOKUP(DropDownList!$B$47,CntyQryCensus!$A$53:$BY$96,AP$1)","v":208},{"$f":"VLOOKUP(DropDownList!$B$47,CntyQryCensus!$A$53:$BY$96,AQ$1)","v":292},{"$f":"VLOOKUP(DropDownList!$B$47,CntyQryCensus!$A$53:$BY$96,AR$1)","v":381},{"$f":"VLOOKUP(DropDownList!$B$47,CntyQryCensus!$A$53:$BY$96,AS$1)","v":497},{"$f":"VLOOKUP(DropDownList!$B$47,CntyQryCensus!$A$53:$BY$96,AT$1)","v":182},{"$f":"VLOOKUP(DropDownList!$B$47,CntyQryCensus!$A$53:$BY$96,AU$1)","v":114},{"$f":"VLOOKUP(DropDownList!$B$47,CntyQryCensus!$A$53:$BY$96,AV$1)","v":6},{"$f":"VLOOKUP(DropDownList!$B$47,CntyQryCensus!$A$53:$BY$96,AW$1)","v":0},{"$f":"VLOOKUP(DropDownList!$B$47,CntyQryCensus!$A$53:$BY$96,AX$1)","v":41958},{"$f":"VLOOKUP(DropDownList!$B$47,CntyQryCensus!$A$53:$BY$96,AY$1)","v":61},{"$f":"VLOOKUP(DropDownList!$B$47,CntyQryCensus!$A$53:$BY$96,AZ$1)","v":1997},{"$f":"VLOOKUP(DropDownList!$B$47,CntyQryCensus!$A$53:$BY$96,BA$1)","v":1277},{"$f":"VLOOKUP(DropDownList!$B$47,CntyQryCensus!$A$53:$BY$96,BB$1)","v":5},{"$f":"VLOOKUP(DropDownList!$B$47,CntyQryCensus!$A$53:$BY$96,BC$1)","v":48},{"$f":"VLOOKUP(DropDownList!$B$47,CntyQryCensus!$A$53:$BY$96,BD$1)","v":116},{"$f":"VLOOKUP(DropDownList!$B$47,CntyQryCensus!$A$53:$BY$96,BE$1)","v":195},{"$f":"VLOOKUP(DropDownList!$B$47,CntyQryCensus!$A$53:$BY$96,BF$1)","v":240},{"$f":"VLOOKUP(DropDownList!$B$47,CntyQryCensus!$A$53:$BY$96,BG$1)","v":413},{"$f":"VLOOKUP(DropDownList!$B$47,CntyQryCensus!$A$53:$BY$96,BH$1)","v":165},{"$f":"VLOOKUP(DropDownList!$B$47,CntyQryCensus!$A$53:$BY$96,BI$1)","v":89},{"$f":"VLOOKUP(DropDownList!$B$47,CntyQryCensus!$A$53:$BY$96,BJ$1)","v":6},{"$f":"VLOOKUP(DropDownList!$B$47,CntyQryCensus!$A$53:$BY$96,BK$1)","v":0},{"$f":"VLOOKUP(DropDownList!$B$47,CntyQryCensus!$A$53:$BY$96,BL$1)","v":51659},{"$f":"VLOOKUP(DropDownList!$B$47,CntyQryCensus!$A$53:$BY$96,BM$1)","v":18851},{"$f":"VLOOKUP(DropDownList!$B$47,CntyQryCensus!$A$53:$BY$96,BN$1)","v":28},{"$f":"VLOOKUP(DropDownList!$B$47,CntyQryCensus!$A$53:$BY$96,BO$1)","v":28},{"$f":"VLOOKUP(DropDownList!$B$47,CntyQryCensus!$A$53:$BY$96,BP$1)","v":8},{"$f":"VLOOKUP(DropDownList!$B$47,CntyQryCensus!$A$53:$BY$96,BQ$1)","v":11},{"$f":"VLOOKUP(DropDownList!$B$47,CntyQryCensus!$A$53:$BY$96,BR$1)","v":11},{"$f":"VLOOKUP(DropDownList!$B$47,CntyQryCensus!$A$53:$BY$96,BS$1)","v":0},{"$f":"VLOOKUP(DropDownList!$B$47,CntyQryCensus!$A$53:$BY$96,BT$1)","v":184},{"$f":"VLOOKUP(DropDownList!$B$47,CntyQryCensus!$A$53:$BY$96,BU$1)","v":129},{"$f":"VLOOKUP(DropDownList!$B$47,CntyQryCensus!$A$53:$BY$96,BV$1)","v":24},{"$f":"VLOOKUP(DropDownList!$B$47,CntyQryCensus!$A$53:$BY$96,BW$1)","v":47},{"$f":"VLOOKUP(DropDownList!$B$47,CntyQryCensus!$A$53:$BY$96,BX$1)","v":40},{"$f":"VLOOKUP(DropDownList!$B$47,CntyQryCensus!$A$53:$BY$96,BY$1)","v":94}]
[]
[]
["Census 2000 DemoProfile Sample Data Table 4   -  DPTab4TownQry"]
["NAME","COUSUB","TotHousingUnits","1UnitDet","1UnitAtt","2Units","3to4Units","5to9Units","10to19Units","20orMoreUnits","MobileHomes","BoatRvVan","SingleFamilyUnits","MultiFamUnits","MobileHomeUnits","YearBuilt99to00","YearBuilt95to98","YearBUilt90to94","YearBuilt80to89","YearBuilt70to79","YearBuilt60to69","YearBuilt40to59","YearBuilt39orEarlier","Rooms1","Rooms2","Rooms3","Rooms4","Rooms5","Rooms6","Rooms7","Rooms8","Rooms9orMore","MedianRooms","OccHU1","YrHHMvdIn99to00","YrHHMvdIn95to98","YrHHMvdIn90to94","YrHHMvdIn80to89","YrHHMvdIn70to79","YrHHMvdIn69orBefore","HeatFuelNatGas","HeatFuelBotGas","HeatFuelElectric","HeatFuelOil","HeatFuelCoal","HeatFuelWood","HeatFuelSolar","HeatFuelOther","HeatFuelNone","LackCompPlumb","LackCompKit","NoTelephone","OccHU","OccPerRm1orLess","OccPerRm1to1_5","OccPerRm1_5orMore","SpecOwnOccUnits","Value<50K","Value50to100K","Value100to150K","Value150to200K","Value200to300K","Value300to500K","Value500Kto1mil","Value1MilorMore","MedianValue","WithMortg","MnthOwnCst<300","MnthOwnCst300to500","MnthOwnCst500to700","MnthOwnCst700to1000","MnthOwnCst1000to1500","MnthOwnCst1500to2000","MnthOwnCst2000orMore","MediMnthOwnCst","NotMrtg","NotMrtgMediMnthOwnCst","OwnCst%HHInc<15","OwnCst%HHInc15to20","OwnCst%HHInc20to25","OwnCst%HHInc25to30","OwnCst%HHInc30to35","OwnCst%HHInc35orMor","NotComputed","SpecRntOccUnits","Rnt<200","Rnt200to300","Rnt300to500","Rnt500to750","Rnt750to1000","Rnt1000to1500","Rnt1500orMore","NoRent","MedianRent","Rnt%HHInc<15","Rnt%HHInc15to20","Rnt%HHInc20to25","Rnt%HHInc25to30","Rnt%HHInc30to35","Rnt%HHInc35orMore","Rnt%NotCompute"]
[{"$f":"VLOOKUP(DropDownList!$B$47,CntyQryCensus!$A$103:$CX$146,A$1)","v":"Allenstown"},{"$f":"VLOOKUP(DropDownList!$B$47,CntyQryCensus!$A$103:$CX$146,B$1)","v":"00660"},{"$f":"VLOOKUP(DropDownList!$B$47,CntyQryCensus!$A$103:$CX$146,C$1)","v":1962},{"$f":"VLOOKUP(DropDownList!$B$47,CntyQryCensus!$A$103:$CX$146,D$1)","v":829},{"$f":"VLOOKUP(DropDownList!$B$47,CntyQryCensus!$A$103:$CX$146,E$1)","v":42},{"$f":"VLOOKUP(DropDownList!$B$47,CntyQryCensus!$A$103:$CX$146,F$1)","v":136},{"$f":"VLOOKUP(DropDownList!$B$47,CntyQryCensus!$A$103:$CX$146,G$1)","v":116},{"$f":"VLOOKUP(DropDownList!$B$47,CntyQryCensus!$A$103:$CX$146,H$1)","v":193},{"$f":"VLOOKUP(DropDownList!$B$47,CntyQryCensus!$A$103:$CX$146,I$1)","v":6},{"$f":"VLOOKUP(DropDownList!$B$47,CntyQryCensus!$A$103:$CX$146,J$1)","v":14},{"$f":"VLOOKUP(DropDownList!$B$47,CntyQryCensus!$A$103:$CX$146,K$1)","v":626},{"$f":"VLOOKUP(DropDownList!$B$47,CntyQryCensus!$A$103:$CX$146,L$1)","v":0},{"$f":"VLOOKUP(DropDownList!$B$47,CntyQryCensus!$A$103:$CX$146,M$1)","v":829},{"$f":"VLOOKUP(DropDownList!$B$47,CntyQryCensus!$A$103:$CX$146,N$1)","v":507},{"$f":"VLOOKUP(DropDownList!$B$47,CntyQryCensus!$A$103:$CX$146,O$1)","v":626},{"$f":"VLOOKUP(DropDownList!$B$47,CntyQryCensus!$A$103:$CX$146,P$1)","v":81},{"$f":"VLOOKUP(DropDownList!$B$47,CntyQryCensus!$A$103:$CX$146,Q$1)","v":159},{"$f":"VLOOKUP(DropDownList!$B$47,CntyQryCensus!$A$103:$CX$146,R$1)","v":75},{"$f":"VLOOKUP(DropDownList!$B$47,CntyQryCensus!$A$103:$CX$146,S$1)","v":338},{"$f":"VLOOKUP(DropDownList!$B$47,CntyQryCensus!$A$103:$CX$146,T$1)","v":596},{"$f":"VLOOKUP(DropDownList!$B$47,CntyQryCensus!$A$103:$CX$146,U$1)","v":258},{"$f":"VLOOKUP(DropDownList!$B$47,CntyQryCensus!$A$103:$CX$146,V$1)","v":196},{"$f":"VLOOKUP(DropDownList!$B$47,CntyQryCensus!$A$103:$CX$146,W$1)","v":259},{"$f":"VLOOKUP(DropDownList!$B$47,CntyQryCensus!$A$103:$CX$146,X$1)","v":0},{"$f":"VLOOKUP(DropDownList!$B$47,CntyQryCensus!$A$103:$CX$146,Y$1)","v":73},{"$f":"VLOOKUP(DropDownList!$B$47,CntyQryCensus!$A$103:$CX$146,Z$1)","v":162},{"$f":"VLOOKUP(DropDownList!$B$47,CntyQryCensus!$A$103:$CX$146,AA$1)","v":419},{"$f":"VLOOKUP(DropDownList!$B$47,CntyQryCensus!$A$103:$CX$146,AB$1)","v":634},{"$f":"VLOOKUP(DropDownList!$B$47,CntyQryCensus!$A$103:$CX$146,AC$1)","v":336},{"$f":"VLOOKUP(DropDownList!$B$47,CntyQryCensus!$A$103:$CX$146,AD$1)","v":197},{"$f":"VLOOKUP(DropDownList!$B$47,CntyQryCensus!$A$103:$CX$146,AE$1)","v":51},{"$f":"VLOOKUP(DropDownList!$B$47,CntyQryCensus!$A$103:$CX$146,AF$1)","v":90},{"$f":"VLOOKUP(DropDownList!$B$47,CntyQryCensus!$A$103:$CX$146,AG$1)","v":5},{"$f":"VLOOKUP(DropDownList!$B$47,CntyQryCensus!$A$103:$CX$146,AH$1)","v":1902},{"$f":"VLOOKUP(DropDownList!$B$47,CntyQryCensus!$A$103:$CX$146,AI$1)","v":432},{"$f":"VLOOKUP(DropDownList!$B$47,CntyQryCensus!$A$103:$CX$146,AJ$1)","v":448},{"$f":"VLOOKUP(DropDownList!$B$47,CntyQryCensus!$A$103:$CX$146,AK$1)","v":247},{"$f":"VLOOKUP(DropDownList!$B$47,CntyQryCensus!$A$103:$CX$146,AL$1)","v":389},{"$f":"VLOOKUP(DropDownList!$B$47,CntyQryCensus!$A$103:$CX$146,AM$1)","v":213},{"$f":"VLOOKUP(DropDownList!$B$47,CntyQryCensus!$A$103:$CX$146,AN$1)","v":173},{"$f":"VLOOKUP(DropDownList!$B$47,CntyQryCensus!$A$103:$CX$146,AO$1)","v":254},{"$f":"VLOOKUP(DropDownList!$B$47,CntyQryCensus!$A$103:$CX$146,AP$1)","v":192},{"$f":"VLOOKUP(DropDownList!$B$47,CntyQryCensus!$A$103:$CX$146,AQ$1)","v":161},{"$f":"VLOOKUP(DropDownList!$B$47,CntyQryCensus!$A$103:$CX$146,AR$1)","v":1233},{"$f":"VLOOKUP(DropDownList!$B$47,CntyQryCensus!$A$103:$CX$146,AS$1)","v":6},{"$f":"VLOOKUP(DropDownList!$B$47,CntyQryCensus!$A$103:$CX$146,AT$1)","v":56},{"$f":"VLOOKUP(DropDownList!$B$47,CntyQryCensus!$A$103:$CX$146,AU$1)","v":0},{"$f":"VLOOKUP(DropDownList!$B$47,CntyQryCensus!$A$103:$CX$146,AV$1)","v":0},{"$f":"VLOOKUP(DropDownList!$B$47,CntyQryCensus!$A$103:$CX$146,AW$1)","v":0},{"$f":"VLOOKUP(DropDownList!$B$47,CntyQryCensus!$A$103:$CX$146,AX$1)","v":15},{"$f":"VLOOKUP(DropDownList!$B$47,CntyQryCensus!$A$103:$CX$146,AY$1)","v":8},{"$f":"VLOOKUP(DropDownList!$B$47,CntyQryCensus!$A$103:$CX$146,AZ$1)","v":15},{"$f":"VLOOKUP(DropDownList!$B$47,CntyQryCensus!$A$103:$CX$146,BA$1)","v":1902},{"$f":"VLOOKUP(DropDownList!$B$47,CntyQryCensus!$A$103:$CX$146,BB$1)","v":1850},{"$f":"VLOOKUP(DropDownList!$B$47,CntyQryCensus!$A$103:$CX$146,BC$1)","v":45},{"$f":"VLOOKUP(DropDownList!$B$47,CntyQryCensus!$A$103:$CX$146,BD$1)","v":7},{"$f":"VLOOKUP(DropDownList!$B$47,CntyQryCensus!$A$103:$CX$146,BE$1)","v":735},{"$f":"VLOOKUP(DropDownList!$B$47,CntyQryCensus!$A$103:$CX$146,BF$1)","v":14},{"$f":"VLOOKUP(DropDownList!$B$47,CntyQryCensus!$A$103:$CX$146,BG$1)","v":390},{"$f":"VLOOKUP(DropDownList!$B$47,CntyQryCensus!$A$103:$CX$146,BH$1)","v":247},{"$f":"VLOOKUP(DropDownList!$B$47,CntyQryCensus!$A$103:$CX$146,BI$1)","v":63},{"$f":"VLOOKUP(DropDownList!$B$47,CntyQryCensus!$A$103:$CX$146,BJ$1)","v":21},{"$f":"VLOOKUP(DropDownList!$B$47,CntyQryCensus!$A$103:$CX$146,BK$1)","v":0},{"$f":"VLOOKUP(DropDownList!$B$47,CntyQryCensus!$A$103:$CX$146,BL$1)","v":0},{"$f":"VLOOKUP(DropDownList!$B$47,CntyQryCensus!$A$103:$CX$146,BM$1)","v":0},{"$f":"VLOOKUP(DropDownList!$B$47,CntyQryCensus!$A$103:$CX$146,BN$1)","v":97900},{"$f":"VLOOKUP(DropDownList!$B$47,CntyQryCensus!$A$103:$CX$146,BO$1)","v":510},{"$f":"VLOOKUP(DropDownList!$B$47,CntyQryCensus!$A$103:$CX$146,BP$1)","v":0},{"$f":"VLOOKUP(DropDownList!$B$47,CntyQryCensus!$A$103:$CX$146,BQ$1)","v":7},{"$f":"VLOOKUP(DropDownList!$B$47,CntyQryCensus!$A$103:$CX$146,BR$1)","v":41},{"$f":"VLOOKUP(DropDownList!$B$47,CntyQryCensus!$A$103:$CX$146,BS$1)","v":179},{"$f":"VLOOKUP(DropDownList!$B$47,CntyQryCensus!$A$103:$CX$146,BT$1)","v":250},{"$f":"VLOOKUP(DropDownList!$B$47,CntyQryCensus!$A$103:$CX$146,BU$1)","v":26},{"$f":"VLOOKUP(DropDownList!$B$47,CntyQryCensus!$A$103:$CX$146,BV$1)","v":7},{"$f":"VLOOKUP(DropDownList!$B$47,CntyQryCensus!$A$103:$CX$146,BW$1)","v":1041},{"$f":"VLOOKUP(DropDownList!$B$47,CntyQryCensus!$A$103:$CX$146,BX$1)","v":225},{"$f":"VLOOKUP(DropDownList!$B$47,CntyQryCensus!$A$103:$CX$146,BY$1)","v":409},{"$f":"VLOOKUP(DropDownList!$B$47,CntyQryCensus!$A$103:$CX$146,BZ$1)","v":201},{"$f":"VLOOKUP(DropDownList!$B$47,CntyQryCensus!$A$103:$CX$146,CA$1)","v":214},{"$f":"VLOOKUP(DropDownList!$B$47,CntyQryCensus!$A$103:$CX$146,CB$1)","v":125},{"$f":"VLOOKUP(DropDownList!$B$47,CntyQryCensus!$A$103:$CX$146,CC$1)","v":63},{"$f":"VLOOKUP(DropDownList!$B$47,CntyQryCensus!$A$103:$CX$146,CD$1)","v":48},{"$f":"VLOOKUP(DropDownList!$B$47,CntyQryCensus!$A$103:$CX$146,CE$1)","v":84},{"$f":"VLOOKUP(DropDownList!$B$47,CntyQryCensus!$A$103:$CX$146,CF$1)","v":0},{"$f":"VLOOKUP(DropDownList!$B$47,CntyQryCensus!$A$103:$CX$146,CG$1)","v":536},{"$f":"VLOOKUP(DropDownList!$B$47,CntyQryCensus!$A$103:$CX$146,CH$1)","v":33},{"$f":"VLOOKUP(DropDownList!$B$47,CntyQryCensus!$A$103:$CX$146,CI$1)","v":14},{"$f":"VLOOKUP(DropDownList!$B$47,CntyQryCensus!$A$103:$CX$146,CJ$1)","v":101},{"$f":"VLOOKUP(DropDownList!$B$47,CntyQryCensus!$A$103:$CX$146,CK$1)","v":232},{"$f":"VLOOKUP(DropDownList!$B$47,CntyQryCensus!$A$103:$CX$146,CL$1)","v":91},{"$f":"VLOOKUP(DropDownList!$B$47,CntyQryCensus!$A$103:$CX$146,CM$1)","v":43},{"$f":"VLOOKUP(DropDownList!$B$47,CntyQryCensus!$A$103:$CX$146,CN$1)","v":0},{"$f":"VLOOKUP(DropDownList!$B$47,CntyQryCensus!$A$103:$CX$146,CO$1)","v":22},{"$f":"VLOOKUP(DropDownList!$B$47,CntyQryCensus!$A$103:$CX$146,CP$1)","v":597},{"$f":"VLOOKUP(DropDownList!$B$47,CntyQryCensus!$A$103:$CX$146,CQ$1)","v":88},{"$f":"VLOOKUP(DropDownList!$B$47,CntyQryCensus!$A$103:$CX$146,CR$1)","v":89},{"$f":"VLOOKUP(DropDownList!$B$47,CntyQryCensus!$A$103:$CX$146,CS$1)","v":91},{"$f":"VLOOKUP(DropDownList!$B$47,CntyQryCensus!$A$103:$CX$146,CT$1)","v":36},{"$f":"VLOOKUP(DropDownList!$B$47,CntyQryCensus!$A$103:$CX$146,CU$1)","v":69},{"$f":"VLOOKUP(DropDownList!$B$47,CntyQryCensus!$A$103:$CX$146,CV$1)","v":141},{"$f":"VLOOKUP(DropDownList!$B$47,CntyQryCensus!$A$103:$CX$146,CW$1)","v":22}]
[]
[]
["Census 2000 SummaryFile3 Sample Data  -  SF3TownQry1SocialChar"]
["NAME","LOGRECNO","COUNTY","P01TotalPopulation","P02SampleCountOfPop","P03Pop100pctCount","P05UrbanPopulation","P05RuralPopulation","P06WhiteAlone","P06BlackOrAfAm","P06AmIndAlone","P06AsianAlone","P06HawaiianOrPI","P06OtherRace","P06TwoPlusRaces","P07NotHispanicOrLatino","P07HispanicOrLatino","P08MalePop","P08FemalePop","P09PopInHouseholds","P09PopInFamHH","P09PopInNonFamHH","P09PopInGroupQtr","P13TotalHH","P13FamilyHH","P13FamHHolder15to24yrs","P13FamHHolder25to34yrs","P13FamHHolder35to44yrs","P13FamHHolder45to54yrs","P13FamHHolder55to64yrs","P13FamHHolder65to74yrs","P13FamHHolder75to84yrs","P13FamHHolder85yrsOver","P13NonFamilyHH","P13NonFamHHolder15to24yrs","P13NonFamHHolder25to34yrs","P13NonFamHHolder35to44yrs","P13NonFamHHolder45to54yrs","P13NonFamHHolder55to64yrs","P13NonFamHHolder65to74yrs","P13NonFamHHolder75to84yrs","P13NonFamHHolder85yrsOver","P18Pop15yrsOver","P18MaritalStatNeverMarried","P18MaritalStatNowMarried","P18MaritalStatSeparated","P18MaritalStatWidowed","P18MaritalStatWidowFemale","P18MaritalStatDivorced","P18MaritalStatDivorcedFemale","P21NativeBornPop","P21NatPopBornInState","P21NatPopBornOtherState","P021005","P021006","P021007","P021008","P21NatPopBornOutUS","P21ForeignBornPop","P021014","P021015","P24Pop5YrsPlus","P24ResSameHouseIn95","P24ResDiffHouseIn95","P24ResDiffHouseInUSIn95","P24ResDiffHouseSameCountyIn95","P24ResDiffHouseDiffCountyIn95","P24ResDiffHouseDiffCntySamStIn95","P24ResDiffHouseDiffCntyDifStIn95","P24ResDiffHouseDiffCntyNEStIn95","P24ResDiffHouseDiffCntyMWStIn95","P24ResDiffHouseDiffCntySoStIn95","P24ResDiffHouseDiffCntyWstStIn95","P24ResDiffInPR","P24ResDiffElsewhereIn95","P26Workers16yrsOver","P26WorkedInState","P26WorkedInCnty","P26WorkedOutsideCnty","P26WorkedOutsideState","P30Workers16Over","P30TranspToWrkCar","P30TranspToWrkPublic","P30TranspToWrkOther","P30WrkdAtHome","P31WrkrsNotWrkAtHom","P31TravTim<5min","P31TravTim5to9Min","P31TravTim10to14Min","P31TravTim15to19Min","P31TravTim20to24Min","P31TravTim25to29Min","P31TravTim30to34Min","P31TravTim35to39Min","P31TravTim40to44Min","P31TravTim45to59Min","P31TravTim60to89Min","P31TravTim90MinMore","P31WorkAtHome","P36SchEnrlPop3yrOver","P36NurserSchEnrl","P36KinderSchEnrl","P36ElemSchEnrl","P36HighSchEnrl","P36CollGradSchEnrl","P37Pop25yrsOver","P37EduAtain<9grd","P37EduAtainHSnoDip","P37EduAtainHSgrad","P37EduAtainCollNoDeg","P37EduAtainAssocDeg","P37EduAtainBachDeg","P37EduAtainGradProfDeg","P42NIPop5to15","P42NIPop5to15wDisabl","P42NIPop16to20","P42NIPop16to20wDisab","P42NIPop16to20wDisEmp","P42NIPop16to21NoDis","P42NIPop16to21NoDisEmpl","P42NIPop21to64","P42NIPop21to64wDis","P42NIPop21to64wDisEmp","P42NIPop21to64NoDis","P42NIPop21to64NoDisEmp","P42NIPop65to74","P42NIPop65to74wDis","P42NIPop75Over","P42NIPop75OverwDis","P43Pop16YrsOver","P43Pop16OvrInLaborForce","P43Pop16OvrCivlLabFrc","P43Pop16OvrCivlLbrFrcEmp","P48Families","P48MarriedFam","P48MarrFamNoWorkers","P48MarrFam1Worker","P48MarrFam2Worker","P48MarrFamHusbWifeWorked","P48MarrFamOther","P48MarrFam3PlusWorker","P48MarrFam3WorkHsbWif","P48MarrFam3PlsWrkOther","P48OtherFam","P48MaleHHNoWif","P48MaleHHNoWifNoWorker","P48MaleHHNoWif1Worker","P48MaleHHNoWif2Worker","P48MaleHHNoWif3PlusWorker","P48FemaleHHNoHsb","P48FemaleHHNoHsbNoWorker","P48FemaleHHNoHsb1Worker","P48FemaleHHNoHsb2Worker","P48FemaleHHNoHsb3Worker","P49EmpCivPop16YrOver","P49IndustAgricult","P49IndustConst","P49IndustMnftg","P49IndustWhlslTrd","P49IndustRtlTrd","P49IndustTrspWrhsUtlt","P49IndustInfrm","P49IndustFinInsRE","P49IndustPrfsScntfMngmt","P49IndustEduHlthSocSrv","P49IndustArtsEntRec","P49IndustOthrSrvc","P49IndustPubAdm","P50OccupMngmtProfs","P50OccupService","P50OccupSalesOff","P50OccupFarmFishForest","P50OccupConstExtrctMaint","P50OccupPrdctTrnspMatMv"]
[{"$f":"VLOOKUP(DropDownList!$B$47,CntyQryCensus!$A$156:$FR$198,A$1)","v":"Allenstown"},{"$f":"VLOOKUP(DropDownList!$B$47,CntyQryCensus!$A$156:$FR$198,B$1)","v":"0002575"},{"$f":"VLOOKUP(DropDownList!$B$47,CntyQryCensus!$A$156:$FR$198,C$1)","v":"00660"},{"$f":"VLOOKUP(DropDownList!$B$47,CntyQryCensus!$A$156:$FR$198,D$1)","v":4843},{"$f":"VLOOKUP(DropDownList!$B$47,CntyQryCensus!$A$156:$FR$198,E$1)","v":707},{"$f":"VLOOKUP(DropDownList!$B$47,CntyQryCensus!$A$156:$FR$198,F$1)","v":4843},{"$f":"VLOOKUP(DropDownList!$B$47,CntyQryCensus!$A$156:$FR$198,G$1)","v":2951},{"$f":"VLOOKUP(DropDownList!$B$47,CntyQryCensus!$A$156:$FR$198,H$1)","v":1892},{"$f":"VLOOKUP(DropDownList!$B$47,CntyQryCensus!$A$156:$FR$198,I$1)","v":4695},{"$f":"VLOOKUP(DropDownList!$B$47,CntyQryCensus!$A$156:$FR$198,J$1)","v":44},{"$f":"VLOOKUP(DropDownList!$B$47,CntyQryCensus!$A$156:$FR$198,K$1)","v":7},{"$f":"VLOOKUP(DropDownList!$B$47,CntyQryCensus!$A$156:$FR$198,L$1)","v":0},{"$f":"VLOOKUP(DropDownList!$B$47,CntyQryCensus!$A$156:$FR$198,M$1)","v":0},{"$f":"VLOOKUP(DropDownList!$B$47,CntyQryCensus!$A$156:$FR$198,N$1)","v":16},{"$f":"VLOOKUP(DropDownList!$B$47,CntyQryCensus!$A$156:$FR$198,O$1)","v":81},{"$f":"VLOOKUP(DropDownList!$B$47,CntyQryCensus!$A$156:$FR$198,P$1)","v":4812},{"$f":"VLOOKUP(DropDownList!$B$47,CntyQryCensus!$A$156:$FR$198,Q$1)","v":31},{"$f":"VLOOKUP(DropDownList!$B$47,CntyQryCensus!$A$156:$FR$198,R$1)","v":2344},{"$f":"VLOOKUP(DropDownList!$B$47,CntyQryCensus!$A$156:$FR$198,S$1)","v":2499},{"$f":"VLOOKUP(DropDownList!$B$47,CntyQryCensus!$A$156:$FR$198,T$1)","v":4808},{"$f":"VLOOKUP(DropDownList!$B$47,CntyQryCensus!$A$156:$FR$198,U$1)","v":4014},{"$f":"VLOOKUP(DropDownList!$B$47,CntyQryCensus!$A$156:$FR$198,V$1)","v":794},{"$f":"VLOOKUP(DropDownList!$B$47,CntyQryCensus!$A$156:$FR$198,W$1)","v":35},{"$f":"VLOOKUP(DropDownList!$B$47,CntyQryCensus!$A$156:$FR$198,X$1)","v":1901},{"$f":"VLOOKUP(DropDownList!$B$47,CntyQryCensus!$A$156:$FR$198,Y$1)","v":1277},{"$f":"VLOOKUP(DropDownList!$B$47,CntyQryCensus!$A$156:$FR$198,Z$1)","v":29},{"$f":"VLOOKUP(DropDownList!$B$47,CntyQryCensus!$A$156:$FR$198,AA$1)","v":259},{"$f":"VLOOKUP(DropDownList!$B$47,CntyQryCensus!$A$156:$FR$198,AB$1)","v":413},{"$f":"VLOOKUP(DropDownList!$B$47,CntyQryCensus!$A$156:$FR$198,AC$1)","v":305},{"$f":"VLOOKUP(DropDownList!$B$47,CntyQryCensus!$A$156:$FR$198,AD$1)","v":121},{"$f":"VLOOKUP(DropDownList!$B$47,CntyQryCensus!$A$156:$FR$198,AE$1)","v":105},{"$f":"VLOOKUP(DropDownList!$B$47,CntyQryCensus!$A$156:$FR$198,AF$1)","v":36},{"$f":"VLOOKUP(DropDownList!$B$47,CntyQryCensus!$A$156:$FR$198,AG$1)","v":9},{"$f":"VLOOKUP(DropDownList!$B$47,CntyQryCensus!$A$156:$FR$198,AH$1)","v":624},{"$f":"VLOOKUP(DropDownList!$B$47,CntyQryCensus!$A$156:$FR$198,AI$1)","v":17},{"$f":"VLOOKUP(DropDownList!$B$47,CntyQryCensus!$A$156:$FR$198,AJ$1)","v":99},{"$f":"VLOOKUP(DropDownList!$B$47,CntyQryCensus!$A$156:$FR$198,AK$1)","v":89},{"$f":"VLOOKUP(DropDownList!$B$47,CntyQryCensus!$A$156:$FR$198,AL$1)","v":91},{"$f":"VLOOKUP(DropDownList!$B$47,CntyQryCensus!$A$156:$FR$198,AM$1)","v":101},{"$f":"VLOOKUP(DropDownList!$B$47,CntyQryCensus!$A$156:$FR$198,AN$1)","v":96},{"$f":"VLOOKUP(DropDownList!$B$47,CntyQryCensus!$A$156:$FR$198,AO$1)","v":83},{"$f":"VLOOKUP(DropDownList!$B$47,CntyQryCensus!$A$156:$FR$198,AP$1)","v":48},{"$f":"VLOOKUP(DropDownList!$B$47,CntyQryCensus!$A$156:$FR$198,AQ$1)","v":3705},{"$f":"VLOOKUP(DropDownList!$B$47,CntyQryCensus!$A$156:$FR$198,AR$1)","v":820},{"$f":"VLOOKUP(DropDownList!$B$47,CntyQryCensus!$A$156:$FR$198,AS$1)","v":2029},{"$f":"VLOOKUP(DropDownList!$B$47,CntyQryCensus!$A$156:$FR$198,AT$1)","v":66},{"$f":"VLOOKUP(DropDownList!$B$47,CntyQryCensus!$A$156:$FR$198,AU$1)","v":311},{"$f":"VLOOKUP(DropDownList!$B$47,CntyQryCensus!$A$156:$FR$198,AV$1)","v":275},{"$f":"VLOOKUP(DropDownList!$B$47,CntyQryCensus!$A$156:$FR$198,AW$1)","v":479},{"$f":"VLOOKUP(DropDownList!$B$47,CntyQryCensus!$A$156:$FR$198,AX$1)","v":245},{"$f":"VLOOKUP(DropDownList!$B$47,CntyQryCensus!$A$156:$FR$198,AY$1)","v":4727},{"$f":"VLOOKUP(DropDownList!$B$47,CntyQryCensus!$A$156:$FR$198,AZ$1)","v":2983},{"$f":"VLOOKUP(DropDownList!$B$47,CntyQryCensus!$A$156:$FR$198,BA$1)","v":1706},{"$f":"VLOOKUP(DropDownList!$B$47,CntyQryCensus!$A$156:$FR$198,BB$1)","v":1484},{"$f":"VLOOKUP(DropDownList!$B$47,CntyQryCensus!$A$156:$FR$198,BC$1)","v":89},{"$f":"VLOOKUP(DropDownList!$B$47,CntyQryCensus!$A$156:$FR$198,BD$1)","v":62},{"$f":"VLOOKUP(DropDownList!$B$47,CntyQryCensus!$A$156:$FR$198,BE$1)","v":71},{"$f":"VLOOKUP(DropDownList!$B$47,CntyQryCensus!$A$156:$FR$198,BF$1)","v":38},{"$f":"VLOOKUP(DropDownList!$B$47,CntyQryCensus!$A$156:$FR$198,BG$1)","v":116},{"$f":"VLOOKUP(DropDownList!$B$47,CntyQryCensus!$A$156:$FR$198,BH$1)","v":72},{"$f":"VLOOKUP(DropDownList!$B$47,CntyQryCensus!$A$156:$FR$198,BI$1)","v":44},{"$f":"VLOOKUP(DropDownList!$B$47,CntyQryCensus!$A$156:$FR$198,BJ$1)","v":4524},{"$f":"VLOOKUP(DropDownList!$B$47,CntyQryCensus!$A$156:$FR$198,BK$1)","v":2494},{"$f":"VLOOKUP(DropDownList!$B$47,CntyQryCensus!$A$156:$FR$198,BL$1)","v":2030},{"$f":"VLOOKUP(DropDownList!$B$47,CntyQryCensus!$A$156:$FR$198,BM$1)","v":1996},{"$f":"VLOOKUP(DropDownList!$B$47,CntyQryCensus!$A$156:$FR$198,BN$1)","v":875},{"$f":"VLOOKUP(DropDownList!$B$47,CntyQryCensus!$A$156:$FR$198,BO$1)","v":1121},{"$f":"VLOOKUP(DropDownList!$B$47,CntyQryCensus!$A$156:$FR$198,BP$1)","v":900},{"$f":"VLOOKUP(DropDownList!$B$47,CntyQryCensus!$A$156:$FR$198,BQ$1)","v":221},{"$f":"VLOOKUP(DropDownList!$B$47,CntyQryCensus!$A$156:$FR$198,BR$1)","v":121},{"$f":"VLOOKUP(DropDownList!$B$47,CntyQryCensus!$A$156:$FR$198,BS$1)","v":16},{"$f":"VLOOKUP(DropDownList!$B$47,CntyQryCensus!$A$156:$FR$198,BT$1)","v":63},{"$f":"VLOOKUP(DropDownList!$B$47,CntyQryCensus!$A$156:$FR$198,BU$1)","v":21},{"$f":"VLOOKUP(DropDownList!$B$47,CntyQryCensus!$A$156:$FR$198,BV$1)","v":0},{"$f":"VLOOKUP(DropDownList!$B$47,CntyQryCensus!$A$156:$FR$198,BW$1)","v":34},{"$f":"VLOOKUP(DropDownList!$B$47,CntyQryCensus!$A$156:$FR$198,BX$1)","v":2647},{"$f":"VLOOKUP(DropDownList!$B$47,CntyQryCensus!$A$156:$FR$198,BY$1)","v":2582},{"$f":"VLOOKUP(DropDownList!$B$47,CntyQryCensus!$A$156:$FR$198,BZ$1)","v":1592},{"$f":"VLOOKUP(DropDownList!$B$47,CntyQryCensus!$A$156:$FR$198,CA$1)","v":990},{"$f":"VLOOKUP(DropDownList!$B$47,CntyQryCensus!$A$156:$FR$198,CB$1)","v":65},{"$f":"VLOOKUP(DropDownList!$B$47,CntyQryCensus!$A$156:$FR$198,CC$1)","v":2647},{"$f":"VLOOKUP(DropDownList!$B$47,CntyQryCensus!$A$156:$FR$198,CD$1)","v":2537},{"$f":"VLOOKUP(DropDownList!$B$47,CntyQryCensus!$A$156:$FR$198,CE$1)","v":0},{"$f":"VLOOKUP(DropDownList!$B$47,CntyQryCensus!$A$156:$FR$198,CF$1)","v":642},{"$f":"VLOOKUP(DropDownList!$B$47,CntyQryCensus!$A$156:$FR$198,CG$1)","v":74},{"$f":"VLOOKUP(DropDownList!$B$47,CntyQryCensus!$A$156:$FR$198,CH$1)","v":2573},{"$f":"VLOOKUP(DropDownList!$B$47,CntyQryCensus!$A$156:$FR$198,CI$1)","v":65},{"$f":"VLOOKUP(DropDownList!$B$47,CntyQryCensus!$A$156:$FR$198,CJ$1)","v":113},{"$f":"VLOOKUP(DropDownList!$B$47,CntyQryCensus!$A$156:$FR$198,CK$1)","v":213},{"$f":"VLOOKUP(DropDownList!$B$47,CntyQryCensus!$A$156:$FR$198,CL$1)","v":366},{"$f":"VLOOKUP(DropDownList!$B$47,CntyQryCensus!$A$156:$FR$198,CM$1)","v":591},{"$f":"VLOOKUP(DropDownList!$B$47,CntyQryCensus!$A$156:$FR$198,CN$1)","v":167},{"$f":"VLOOKUP(DropDownList!$B$47,CntyQryCensus!$A$156:$FR$198,CO$1)","v":486},{"$f":"VLOOKUP(DropDownList!$B$47,CntyQryCensus!$A$156:$FR$198,CP$1)","v":80},{"$f":"VLOOKUP(DropDownList!$B$47,CntyQryCensus!$A$156:$FR$198,CQ$1)","v":63},{"$f":"VLOOKUP(DropDownList!$B$47,CntyQryCensus!$A$156:$FR$198,CR$1)","v":226},{"$f":"VLOOKUP(DropDownList!$B$47,CntyQryCensus!$A$156:$FR$198,CS$1)","v":144},{"$f":"VLOOKUP(DropDownList!$B$47,CntyQryCensus!$A$156:$FR$198,CT$1)","v":59},{"$f":"VLOOKUP(DropDownList!$B$47,CntyQryCensus!$A$156:$FR$198,CU$1)","v":74},{"$f":"VLOOKUP(DropDownList!$B$47,CntyQryCensus!$A$156:$FR$198,CV$1)","v":4676},{"$f":"VLOOKUP(DropDownList!$B$47,CntyQryCensus!$A$156:$FR$198,CW$1)","v":89},{"$f":"VLOOKUP(DropDownList!$B$47,CntyQryCensus!$A$156:$FR$198,CX$1)","v":44},{"$f":"VLOOKUP(DropDownList!$B$47,CntyQryCensus!$A$156:$FR$198,CY$1)","v":682},{"$f":"VLOOKUP(DropDownList!$B$47,CntyQryCensus!$A$156:$FR$198,CZ$1)","v":302},{"$f":"VLOOKUP(DropDownList!$B$47,CntyQryCensus!$A$156:$FR$198,DA$1)","v":111},{"$f":"VLOOKUP(DropDownList!$B$47,CntyQryCensus!$A$156:$FR$198,DB$1)","v":3202},{"$f":"VLOOKUP(DropDownList!$B$47,CntyQryCensus!$A$156:$FR$198,DC$1)","v":323},{"$f":"VLOOKUP(DropDownList!$B$47,CntyQryCensus!$A$156:$FR$198,DD$1)","v":323},{"$f":"VLOOKUP(DropDownList!$B$47,CntyQryCensus!$A$156:$FR$198,DE$1)","v":1283},{"$f":"VLOOKUP(DropDownList!$B$47,CntyQryCensus!$A$156:$FR$198,DF$1)","v":755},{"$f":"VLOOKUP(DropDownList!$B$47,CntyQryCensus!$A$156:$FR$198,DG$1)","v":207},{"$f":"VLOOKUP(DropDownList!$B$47,CntyQryCensus!$A$156:$FR$198,DH$1)","v":219},{"$f":"VLOOKUP(DropDownList!$B$47,CntyQryCensus!$A$156:$FR$198,DI$1)","v":92},{"$f":"VLOOKUP(DropDownList!$B$47,CntyQryCensus!$A$156:$FR$198,DJ$1)","v":882},{"$f":"VLOOKUP(DropDownList!$B$47,CntyQryCensus!$A$156:$FR$198,DK$1)","v":115},{"$f":"VLOOKUP(DropDownList!$B$47,CntyQryCensus!$A$156:$FR$198,DL$1)","v":256},{"$f":"VLOOKUP(DropDownList!$B$47,CntyQryCensus!$A$156:$FR$198,DM$1)","v":25},{"$f":"VLOOKUP(DropDownList!$B$47,CntyQryCensus!$A$156:$FR$198,DN$1)","v":25},{"$f":"VLOOKUP(DropDownList!$B$47,CntyQryCensus!$A$156:$FR$198,DO$1)","v":231},{"$f":"VLOOKUP(DropDownList!$B$47,CntyQryCensus!$A$156:$FR$198,DP$1)","v":190},{"$f":"VLOOKUP(DropDownList!$B$47,CntyQryCensus!$A$156:$FR$198,DQ$1)","v":2853},{"$f":"VLOOKUP(DropDownList!$B$47,CntyQryCensus!$A$156:$FR$198,DR$1)","v":577},{"$f":"VLOOKUP(DropDownList!$B$47,CntyQryCensus!$A$156:$FR$198,DS$1)","v":425},{"$f":"VLOOKUP(DropDownList!$B$47,CntyQryCensus!$A$156:$FR$198,DT$1)","v":2276},{"$f":"VLOOKUP(DropDownList!$B$47,CntyQryCensus!$A$156:$FR$198,DU$1)","v":1964},{"$f":"VLOOKUP(DropDownList!$B$47,CntyQryCensus!$A$156:$FR$198,DV$1)","v":267},{"$f":"VLOOKUP(DropDownList!$B$47,CntyQryCensus!$A$156:$FR$198,DW$1)","v":99},{"$f":"VLOOKUP(DropDownList!$B$47,CntyQryCensus!$A$156:$FR$198,DX$1)","v":239},{"$f":"VLOOKUP(DropDownList!$B$47,CntyQryCensus!$A$156:$FR$198,DY$1)","v":120},{"$f":"VLOOKUP(DropDownList!$B$47,CntyQryCensus!$A$156:$FR$198,DZ$1)","v":3615},{"$f":"VLOOKUP(DropDownList!$B$47,CntyQryCensus!$A$156:$FR$198,EA$1)","v":2731},{"$f":"VLOOKUP(DropDownList!$B$47,CntyQryCensus!$A$156:$FR$198,EB$1)","v":2731},{"$f":"VLOOKUP(DropDownList!$B$47,CntyQryCensus!$A$156:$FR$198,EC$1)","v":2664},{"$f":"VLOOKUP(DropDownList!$B$47,CntyQryCensus!$A$156:$FR$198,ED$1)","v":1277},{"$f":"VLOOKUP(DropDownList!$B$47,CntyQryCensus!$A$156:$FR$198,EE$1)","v":998},{"$f":"VLOOKUP(DropDownList!$B$47,CntyQryCensus!$A$156:$FR$198,EF$1)","v":107},{"$f":"VLOOKUP(DropDownList!$B$47,CntyQryCensus!$A$156:$FR$198,EG$1)","v":197},{"$f":"VLOOKUP(DropDownList!$B$47,CntyQryCensus!$A$156:$FR$198,EH$1)","v":552},{"$f":"VLOOKUP(DropDownList!$B$47,CntyQryCensus!$A$156:$FR$198,EI$1)","v":533},{"$f":"VLOOKUP(DropDownList!$B$47,CntyQryCensus!$A$156:$FR$198,EJ$1)","v":19},{"$f":"VLOOKUP(DropDownList!$B$47,CntyQryCensus!$A$156:$FR$198,EK$1)","v":142},{"$f":"VLOOKUP(DropDownList!$B$47,CntyQryCensus!$A$156:$FR$198,EL$1)","v":124},{"$f":"VLOOKUP(DropDownList!$B$47,CntyQryCensus!$A$156:$FR$198,EM$1)","v":18},{"$f":"VLOOKUP(DropDownList!$B$47,CntyQryCensus!$A$156:$FR$198,EN$1)","v":279},{"$f":"VLOOKUP(DropDownList!$B$47,CntyQryCensus!$A$156:$FR$198,EO$1)","v":102},{"$f":"VLOOKUP(DropDownList!$B$47,CntyQryCensus!$A$156:$FR$198,EP$1)","v":0},{"$f":"VLOOKUP(DropDownList!$B$47,CntyQryCensus!$A$156:$FR$198,EQ$1)","v":72},{"$f":"VLOOKUP(DropDownList!$B$47,CntyQryCensus!$A$156:$FR$198,ER$1)","v":27},{"$f":"VLOOKUP(DropDownList!$B$47,CntyQryCensus!$A$156:$FR$198,ES$1)","v":3},{"$f":"VLOOKUP(DropDownList!$B$47,CntyQryCensus!$A$156:$FR$198,ET$1)","v":177},{"$f":"VLOOKUP(DropDownList!$B$47,CntyQryCensus!$A$156:$FR$198,EU$1)","v":4},{"$f":"VLOOKUP(DropDownList!$B$47,CntyQryCensus!$A$156:$FR$198,EV$1)","v":97},{"$f":"VLOOKUP(DropDownList!$B$47,CntyQryCensus!$A$156:$FR$198,EW$1)","v":37},{"$f":"VLOOKUP(DropDownList!$B$47,CntyQryCensus!$A$156:$FR$198,EX$1)","v":39},{"$f":"VLOOKUP(DropDownList!$B$47,CntyQryCensus!$A$156:$FR$198,EY$1)","v":2664},{"$f":"VLOOKUP(DropDownList!$B$47,CntyQryCensus!$A$156:$FR$198,EZ$1)","v":21},{"$f":"VLOOKUP(DropDownList!$B$47,CntyQryCensus!$A$156:$FR$198,FA$1)","v":327},{"$f":"VLOOKUP(DropDownList!$B$47,CntyQryCensus!$A$156:$FR$198,FB$1)","v":506},{"$f":"VLOOKUP(DropDownList!$B$47,CntyQryCensus!$A$156:$FR$198,FC$1)","v":71},{"$f":"VLOOKUP(DropDownList!$B$47,CntyQryCensus!$A$156:$FR$198,FD$1)","v":470},{"$f":"VLOOKUP(DropDownList!$B$47,CntyQryCensus!$A$156:$FR$198,FE$1)","v":46},{"$f":"VLOOKUP(DropDownList!$B$47,CntyQryCensus!$A$156:$FR$198,FF$1)","v":52},{"$f":"VLOOKUP(DropDownList!$B$47,CntyQryCensus!$A$156:$FR$198,FG$1)","v":227},{"$f":"VLOOKUP(DropDownList!$B$47,CntyQryCensus!$A$156:$FR$198,FH$1)","v":191},{"$f":"VLOOKUP(DropDownList!$B$47,CntyQryCensus!$A$156:$FR$198,FI$1)","v":362},{"$f":"VLOOKUP(DropDownList!$B$47,CntyQryCensus!$A$156:$FR$198,FJ$1)","v":112},{"$f":"VLOOKUP(DropDownList!$B$47,CntyQryCensus!$A$156:$FR$198,FK$1)","v":90},{"$f":"VLOOKUP(DropDownList!$B$47,CntyQryCensus!$A$156:$FR$198,FL$1)","v":189},{"$f":"VLOOKUP(DropDownList!$B$47,CntyQryCensus!$A$156:$FR$198,FM$1)","v":581},{"$f":"VLOOKUP(DropDownList!$B$47,CntyQryCensus!$A$156:$FR$198,FN$1)","v":376},{"$f":"VLOOKUP(DropDownList!$B$47,CntyQryCensus!$A$156:$FR$198,FO$1)","v":794},{"$f":"VLOOKUP(DropDownList!$B$47,CntyQryCensus!$A$156:$FR$198,FP$1)","v":8},{"$f":"VLOOKUP(DropDownList!$B$47,CntyQryCensus!$A$156:$FR$198,FQ$1)","v":417},{"$f":"VLOOKUP(DropDownList!$B$47,CntyQryCensus!$A$156:$FR$198,FR$1)","v":488}]
[]
[]
["Census 2000 SummaryFile3 Sample Data  -  SF3TownQry2aIncomeChar"]
["NAME","LOGRECNO","COUNTY","TotalPop","P52Households1","P52HHInc<10K","P52HHInc10to15K","P52HHInc15to20K","P52HHInc20to25K","P52HHInc25to30K","P52HHInc30to35K","P52HHInc35to40K","P52HHInc40to45K","P52HHInc45to50K","P52HHInc50to60K","P52HHInc60to75K","P52HHInc75to100K","P52HHInc100to125K","P52HHInc125to150K","P52HHInc150to200K","P52HHInc>200K","P53MedianHHInc","P54AggregHHInc","P55Households2","P55HHUnder25yrs","P55HH<25HHInc<10K","P55HH<25HHInc10to15K","P55HH<25HHInc15to20K","P55HH<25HHInc20to25K","P55HH<25HHInc25to30K","P55HH<25HHInc30to35K","P55HH<25HHInc35to40K","P55HH<25HHInc40to45K","P55HH<25HHInc45to50K","P55HH<25HHInc50to60K","P55HH<25HHInc60to75K","P55HH<25HHInc75to100K","P55HH<25HHInc100to125K","P55HH<25HHInc125to150K","P55HH<25HHInc150to200K","P55HH<25HHInc>200K","P55HH25to34yrs","P55HH25to34HHInc<10K","P55HH25to34HHInc10to15K","P55HH25to34HHInc15to20K","P55HH25to34HHInc20to25K","P55HH25to34HHInc25to30K","P55HH25to34HHInc30to35K","P55HH25to34HHInc35to40K","P55HH25to34HHInc40to45K","P55HH25to34HHInc45to50K","P55HH25to34HHInc50to60K","P55HH25to34HHInc60to75K","P55HH25to34HHInc75to100K","P55HH25to34HHInc100to125K","P55HH25to34HHInc125to150K","P55HH25to34HHInc150to200K","P55HH25to34HHInc>200K","P55HH35to44yrs","P55HH35to44HHInc<10K","P55HH35to44HHInc10to15K","P55HH35to44HHInc15to20K","P55HH35to44HHInc20to25K","P55HH35to44HHInc25to30K","P55HH35to44HHInc30to35K","P55HH35to44HHInc35to40K","P55HH35to44HHInc40to45K","P55HH35to44HHInc45to50K","P55HH35to44HHInc50to60K","P55HH35to44HHInc60to75K","P55HH35to44HHInc75to100K","P55HH35to44HHInc100to125K","P55HH35to44HHInc125to150K","P55HH35to44HHInc150to200K","P55HH35to44HHInc>200K","P55HH45to54yrs","P55HH45to55HHInc<10K","P55HH45to55HHInc10to15K","P55HH45to55HHInc15to20K","P55HH45to55HHInc20to25K","P55HH45to55HHInc25to30K","P55HH45to55HHInc30to35K","P55HH45to55HHInc35to40K","P55HH45to55HHInc40to45K","P55HH45to55HHInc45to50K","P55HH45to55HHInc50to60K","P55HH45to55HHInc60to75K","P55HH45to55HHInc75to100K","P55HH45to55HHInc100to125K","P55HH45to55HHInc125to150K","P55HH45to55HHInc150to200K","P55HH45to55HHInc>200K","P55HH55to64yrs","P55HH55to64HHInc<10K","P55HH55to64HHInc10to15K","P55HH55to64HHInc15to20K","P55HH55to64HHInc20to25K","P55HH55to64HHInc25to30K","P55HH55to64HHInc30to35K","P55HH55to64HHInc35to40K","P55HH55to64HHInc40to45K","P55HH55to64HHInc45to50K","P55HH55to64HHInc50to60K","P55HH55to64HHInc60to75K","P55HH55to64HHInc75to100K","P55HH55to64HHInc100to125K","P55HH55to64HHInc125to150K","P55HH55to64HHInc150to200K","P55HH55to64HHInc>200K","P55HH65to74yrs","P55HH65to74HHInc<10K","P55HH65to74HHInc10to15K","P55HH65to74HHInc15to20K","P55HH65to74HHInc20to25K","P55HH65to74HHInc25to30K","P55HH65to74HHInc30to35K","P55HH65to74HHInc35to40K","P55HH65to74HHInc40to45K","P55HH65to74HHInc45to50K","P55HH65to74HHInc50to60K","P55HH65to74HHInc60to75K","P55HH65to74HHInc75to100K","P55HH65to74HHInc100to125K","P55HH65to74HHInc125to150K","P55HH65to74HHInc150to200K","P55HH65to74HHInc>200K","P55HH>75yrs","P55HH>75HHInc<10K","P55HH>75HHInc10to15K","P55HH>75HHInc15to20K","P55HH>75HHInc20to25K","P55HH>75HHInc25to30K","P55HH>75HHInc30to35K","P55HH>75HHInc35to40K","P55HH>75HHInc40to45K","P55HH>75HHInc45to50K","P55HH>75HHInc50to60K","P55HH>75HHInc60to75K","P55HH>75HHInc75to100K","P55HH>75HHInc100to125K","P55HH>75HHInc125to150K","P55HH>75HHInc150to200K","P55HH>75HHInc>200K","P56MedHHInc","P56MedHHIncHH<25y","P56MedHHIncHH25to34y","P56MedHHIncHH35to44y","P56MedHHIncHH45to54y","P56MedHHIncHH55to64y","P56MedHHIncHH65to74y","P56MedHHIncHH>75y","P58Households3","P58HHwithEarnings","P58HHNoEarnings","P59HHwWageSalInc","P59HHNoWageSalInc","P60HHwSelfEmpInc","P60HHNoSelfEmpInc","P61HHwIndDivInc","P61HHNoIndDivInc","P62HHwSocSecInc","P62HHNoSocSecInc","P63HHwSSI","P63HHNoSSI","P64HHwPubAssInc","P64HHNoPubAssInc","P65HHwRetInc","P65HHNoRetInc","P66HHwOtherTypInc","P66HHNoOtherTypInc","P67AggregEarnings","P68AggregWageSalInc","P69AggregSelfEmpInc","P70AggregIntDivInc","P71AggregSocSecInc","P72AggregSSIInc","P73AggregPublicAssInc","P74AggregRetireInc","P76Families1","P76FamInc<10K","P76FamInc10to15K","P76FamInc15to20K","P76FamInc20to25K","P76FamInc25to30K","P76FamInc30to35K","P76FamInc35to40K","P76FamInc40to45K","P76FamInc45to50K","P76FamInc50to60K","P76FamInc60to75K","P76FamInc75to100K","P76FamInc100to125K","P76FamInc125to150K","P76FamInc150to200K","P76FamInc>200K","P77MedFamInc","P78AggregFamInc","P79NonFamHH","P79NonFamHHwInc<10K","P79NonFamHHwInc10to15K","P79NonFamHHwInc15to20K","P79NonFamHHwInc20to25K","P79NonFamHHwInc25to30K","P79NonFamHHwInc30to35K","P79NonFamHHwInc35to40K","P79NonFamHHwInc40to45K","P79NonFamHHwInc45to50K","P79NonFamHHwInc50to60K","P79NonFamHHwInc60to75K","P79NonFamHHwInc75to100K","P79NonFamHHwInc100to125K","P79NonFamHHwInc125to150K","P79NonFamHHwInc150to200K","P79NonFamHHwInc200KorMore","P80MedNonFamInc","P82PerCapitaInc"]
[{"$f":"VLOOKUP(DropDownList!$B$47,CntyQryCensus!$A$206:$HH$248,A$1)","v":"Allenstown"},{"$f":"VLOOKUP(DropDownList!$B$47,CntyQryCensus!$A$206:$HH$248,B$1)","v":"0002575"},{"$f":"VLOOKUP(DropDownList!$B$47,CntyQryCensus!$A$206:$HH$248,C$1)","v":"00660"},{"$f":"VLOOKUP(DropDownList!$B$47,CntyQryCensus!$A$206:$HH$248,D$1)","v":4843},{"$f":"VLOOKUP(DropDownList!$B$47,CntyQryCensus!$A$206:$HH$248,E$1)","v":1901},{"$f":"VLOOKUP(DropDownList!$B$47,CntyQryCensus!$A$206:$HH$248,F$1)","v":121},{"$f":"VLOOKUP(DropDownList!$B$47,CntyQryCensus!$A$206:$HH$248,G$1)","v":100},{"$f":"VLOOKUP(DropDownList!$B$47,CntyQryCensus!$A$206:$HH$248,H$1)","v":91},{"$f":"VLOOKUP(DropDownList!$B$47,CntyQryCensus!$A$206:$HH$248,I$1)","v":117},{"$f":"VLOOKUP(DropDownList!$B$47,CntyQryCensus!$A$206:$HH$248,J$1)","v":174},{"$f":"VLOOKUP(DropDownList!$B$47,CntyQryCensus!$A$206:$HH$248,K$1)","v":118},{"$f":"VLOOKUP(DropDownList!$B$47,CntyQryCensus!$A$206:$HH$248,L$1)","v":159},{"$f":"VLOOKUP(DropDownList!$B$47,CntyQryCensus!$A$206:$HH$248,M$1)","v":146},{"$f":"VLOOKUP(DropDownList!$B$47,CntyQryCensus!$A$206:$HH$248,N$1)","v":76},{"$f":"VLOOKUP(DropDownList!$B$47,CntyQryCensus!$A$206:$HH$248,O$1)","v":234},{"$f":"VLOOKUP(DropDownList!$B$47,CntyQryCensus!$A$206:$HH$248,P$1)","v":263},{"$f":"VLOOKUP(DropDownList!$B$47,CntyQryCensus!$A$206:$HH$248,Q$1)","v":182},{"$f":"VLOOKUP(DropDownList!$B$47,CntyQryCensus!$A$206:$HH$248,R$1)","v":81},{"$f":"VLOOKUP(DropDownList!$B$47,CntyQryCensus!$A$206:$HH$248,S$1)","v":33},{"$f":"VLOOKUP(DropDownList!$B$47,CntyQryCensus!$A$206:$HH$248,T$1)","v":6},{"$f":"VLOOKUP(DropDownList!$B$47,CntyQryCensus!$A$206:$HH$248,U$1)","v":0},{"$f":"VLOOKUP(DropDownList!$B$47,CntyQryCensus!$A$206:$HH$248,V$1)","v":41958},{"$f":"VLOOKUP(DropDownList!$B$47,CntyQryCensus!$A$206:$HH$248,W$1)","v":90891700},{"$f":"VLOOKUP(DropDownList!$B$47,CntyQryCensus!$A$206:$HH$248,X$1)","v":1901},{"$f":"VLOOKUP(DropDownList!$B$47,CntyQryCensus!$A$206:$HH$248,Y$1)","v":46},{"$f":"VLOOKUP(DropDownList!$B$47,CntyQryCensus!$A$206:$HH$248,Z$1)","v":0},{"$f":"VLOOKUP(DropDownList!$B$47,CntyQryCensus!$A$206:$HH$248,AA$1)","v":0},{"$f":"VLOOKUP(DropDownList!$B$47,CntyQryCensus!$A$206:$HH$248,AB$1)","v":16},{"$f":"VLOOKUP(DropDownList!$B$47,CntyQryCensus!$A$206:$HH$248,AC$1)","v":8},{"$f":"VLOOKUP(DropDownList!$B$47,CntyQryCensus!$A$206:$HH$248,AD$1)","v":0},{"$f":"VLOOKUP(DropDownList!$B$47,CntyQryCensus!$A$206:$HH$248,AE$1)","v":0},{"$f":"VLOOKUP(DropDownList!$B$47,CntyQryCensus!$A$206:$HH$248,AF$1)","v":10},{"$f":"VLOOKUP(DropDownList!$B$47,CntyQryCensus!$A$206:$HH$248,AG$1)","v":0},{"$f":"VLOOKUP(DropDownList!$B$47,CntyQryCensus!$A$206:$HH$248,AH$1)","v":0},{"$f":"VLOOKUP(DropDownList!$B$47,CntyQryCensus!$A$206:$HH$248,AI$1)","v":12},{"$f":"VLOOKUP(DropDownList!$B$47,CntyQryCensus!$A$206:$HH$248,AJ$1)","v":0},{"$f":"VLOOKUP(DropDownList!$B$47,CntyQryCensus!$A$206:$HH$248,AK$1)","v":0},{"$f":"VLOOKUP(DropDownList!$B$47,CntyQryCensus!$A$206:$HH$248,AL$1)","v":0},{"$f":"VLOOKUP(DropDownList!$B$47,CntyQryCensus!$A$206:$HH$248,AM$1)","v":0},{"$f":"VLOOKUP(DropDownList!$B$47,CntyQryCensus!$A$206:$HH$248,AN$1)","v":0},{"$f":"VLOOKUP(DropDownList!$B$47,CntyQryCensus!$A$206:$HH$248,AO$1)","v":0},{"$f":"VLOOKUP(DropDownList!$B$47,CntyQryCensus!$A$206:$HH$248,AP$1)","v":358},{"$f":"VLOOKUP(DropDownList!$B$47,CntyQryCensus!$A$206:$HH$248,AQ$1)","v":8},{"$f":"VLOOKUP(DropDownList!$B$47,CntyQryCensus!$A$206:$HH$248,AR$1)","v":8},{"$f":"VLOOKUP(DropDownList!$B$47,CntyQryCensus!$A$206:$HH$248,AS$1)","v":0},{"$f":"VLOOKUP(DropDownList!$B$47,CntyQryCensus!$A$206:$HH$248,AT$1)","v":27},{"$f":"VLOOKUP(DropDownList!$B$47,CntyQryCensus!$A$206:$HH$248,AU$1)","v":46},{"$f":"VLOOKUP(DropDownList!$B$47,CntyQryCensus!$A$206:$HH$248,AV$1)","v":19},{"$f":"VLOOKUP(DropDownList!$B$47,CntyQryCensus!$A$206:$HH$248,AW$1)","v":44},{"$f":"VLOOKUP(DropDownList!$B$47,CntyQryCensus!$A$206:$HH$248,AX$1)","v":57},{"$f":"VLOOKUP(DropDownList!$B$47,CntyQryCensus!$A$206:$HH$248,AY$1)","v":10},{"$f":"VLOOKUP(DropDownList!$B$47,CntyQryCensus!$A$206:$HH$248,AZ$1)","v":48},{"$f":"VLOOKUP(DropDownList!$B$47,CntyQryCensus!$A$206:$HH$248,BA$1)","v":40},{"$f":"VLOOKUP(DropDownList!$B$47,CntyQryCensus!$A$206:$HH$248,BB$1)","v":51},{"$f":"VLOOKUP(DropDownList!$B$47,CntyQryCensus!$A$206:$HH$248,BC$1)","v":0},{"$f":"VLOOKUP(DropDownList!$B$47,CntyQryCensus!$A$206:$HH$248,BD$1)","v":0},{"$f":"VLOOKUP(DropDownList!$B$47,CntyQryCensus!$A$206:$HH$248,BE$1)","v":0},{"$f":"VLOOKUP(DropDownList!$B$47,CntyQryCensus!$A$206:$HH$248,BF$1)","v":0},{"$f":"VLOOKUP(DropDownList!$B$47,CntyQryCensus!$A$206:$HH$248,BG$1)","v":502},{"$f":"VLOOKUP(DropDownList!$B$47,CntyQryCensus!$A$206:$HH$248,BH$1)","v":17},{"$f":"VLOOKUP(DropDownList!$B$47,CntyQryCensus!$A$206:$HH$248,BI$1)","v":21},{"$f":"VLOOKUP(DropDownList!$B$47,CntyQryCensus!$A$206:$HH$248,BJ$1)","v":0},{"$f":"VLOOKUP(DropDownList!$B$47,CntyQryCensus!$A$206:$HH$248,BK$1)","v":24},{"$f":"VLOOKUP(DropDownList!$B$47,CntyQryCensus!$A$206:$HH$248,BL$1)","v":19},{"$f":"VLOOKUP(DropDownList!$B$47,CntyQryCensus!$A$206:$HH$248,BM$1)","v":24},{"$f":"VLOOKUP(DropDownList!$B$47,CntyQryCensus!$A$206:$HH$248,BN$1)","v":55},{"$f":"VLOOKUP(DropDownList!$B$47,CntyQryCensus!$A$206:$HH$248,BO$1)","v":24},{"$f":"VLOOKUP(DropDownList!$B$47,CntyQryCensus!$A$206:$HH$248,BP$1)","v":34},{"$f":"VLOOKUP(DropDownList!$B$47,CntyQryCensus!$A$206:$HH$248,BQ$1)","v":91},{"$f":"VLOOKUP(DropDownList!$B$47,CntyQryCensus!$A$206:$HH$248,BR$1)","v":111},{"$f":"VLOOKUP(DropDownList!$B$47,CntyQryCensus!$A$206:$HH$248,BS$1)","v":41},{"$f":"VLOOKUP(DropDownList!$B$47,CntyQryCensus!$A$206:$HH$248,BT$1)","v":35},{"$f":"VLOOKUP(DropDownList!$B$47,CntyQryCensus!$A$206:$HH$248,BU$1)","v":6},{"$f":"VLOOKUP(DropDownList!$B$47,CntyQryCensus!$A$206:$HH$248,BV$1)","v":0},{"$f":"VLOOKUP(DropDownList!$B$47,CntyQryCensus!$A$206:$HH$248,BW$1)","v":0},{"$f":"VLOOKUP(DropDownList!$B$47,CntyQryCensus!$A$206:$HH$248,BX$1)","v":396},{"$f":"VLOOKUP(DropDownList!$B$47,CntyQryCensus!$A$206:$HH$248,BY$1)","v":13},{"$f":"VLOOKUP(DropDownList!$B$47,CntyQryCensus!$A$206:$HH$248,BZ$1)","v":7},{"$f":"VLOOKUP(DropDownList!$B$47,CntyQryCensus!$A$206:$HH$248,CA$1)","v":9},{"$f":"VLOOKUP(DropDownList!$B$47,CntyQryCensus!$A$206:$HH$248,CB$1)","v":12},{"$f":"VLOOKUP(DropDownList!$B$47,CntyQryCensus!$A$206:$HH$248,CC$1)","v":37},{"$f":"VLOOKUP(DropDownList!$B$47,CntyQryCensus!$A$206:$HH$248,CD$1)","v":44},{"$f":"VLOOKUP(DropDownList!$B$47,CntyQryCensus!$A$206:$HH$248,CE$1)","v":21},{"$f":"VLOOKUP(DropDownList!$B$47,CntyQryCensus!$A$206:$HH$248,CF$1)","v":37},{"$f":"VLOOKUP(DropDownList!$B$47,CntyQryCensus!$A$206:$HH$248,CG$1)","v":15},{"$f":"VLOOKUP(DropDownList!$B$47,CntyQryCensus!$A$206:$HH$248,CH$1)","v":69},{"$f":"VLOOKUP(DropDownList!$B$47,CntyQryCensus!$A$206:$HH$248,CI$1)","v":48},{"$f":"VLOOKUP(DropDownList!$B$47,CntyQryCensus!$A$206:$HH$248,CJ$1)","v":49},{"$f":"VLOOKUP(DropDownList!$B$47,CntyQryCensus!$A$206:$HH$248,CK$1)","v":35},{"$f":"VLOOKUP(DropDownList!$B$47,CntyQryCensus!$A$206:$HH$248,CL$1)","v":0},{"$f":"VLOOKUP(DropDownList!$B$47,CntyQryCensus!$A$206:$HH$248,CM$1)","v":0},{"$f":"VLOOKUP(DropDownList!$B$47,CntyQryCensus!$A$206:$HH$248,CN$1)","v":0},{"$f":"VLOOKUP(DropDownList!$B$47,CntyQryCensus!$A$206:$HH$248,CO$1)","v":222},{"$f":"VLOOKUP(DropDownList!$B$47,CntyQryCensus!$A$206:$HH$248,CP$1)","v":0},{"$f":"VLOOKUP(DropDownList!$B$47,CntyQryCensus!$A$206:$HH$248,CQ$1)","v":7},{"$f":"VLOOKUP(DropDownList!$B$47,CntyQryCensus!$A$206:$HH$248,CR$1)","v":0},{"$f":"VLOOKUP(DropDownList!$B$47,CntyQryCensus!$A$206:$HH$248,CS$1)","v":14},{"$f":"VLOOKUP(DropDownList!$B$47,CntyQryCensus!$A$206:$HH$248,CT$1)","v":27},{"$f":"VLOOKUP(DropDownList!$B$47,CntyQryCensus!$A$206:$HH$248,CU$1)","v":23},{"$f":"VLOOKUP(DropDownList!$B$47,CntyQryCensus!$A$206:$HH$248,CV$1)","v":20},{"$f":"VLOOKUP(DropDownList!$B$47,CntyQryCensus!$A$206:$HH$248,CW$1)","v":28},{"$f":"VLOOKUP(DropDownList!$B$47,CntyQryCensus!$A$206:$HH$248,CX$1)","v":4},{"$f":"VLOOKUP(DropDownList!$B$47,CntyQryCensus!$A$206:$HH$248,CY$1)","v":14},{"$f":"VLOOKUP(DropDownList!$B$47,CntyQryCensus!$A$206:$HH$248,CZ$1)","v":36},{"$f":"VLOOKUP(DropDownList!$B$47,CntyQryCensus!$A$206:$HH$248,DA$1)","v":20},{"$f":"VLOOKUP(DropDownList!$B$47,CntyQryCensus!$A$206:$HH$248,DB$1)","v":11},{"$f":"VLOOKUP(DropDownList!$B$47,CntyQryCensus!$A$206:$HH$248,DC$1)","v":12},{"$f":"VLOOKUP(DropDownList!$B$47,CntyQryCensus!$A$206:$HH$248,DD$1)","v":6},{"$f":"VLOOKUP(DropDownList!$B$47,CntyQryCensus!$A$206:$HH$248,DE$1)","v":0},{"$f":"VLOOKUP(DropDownList!$B$47,CntyQryCensus!$A$206:$HH$248,DF$1)","v":201},{"$f":"VLOOKUP(DropDownList!$B$47,CntyQryCensus!$A$206:$HH$248,DG$1)","v":12},{"$f":"VLOOKUP(DropDownList!$B$47,CntyQryCensus!$A$206:$HH$248,DH$1)","v":30},{"$f":"VLOOKUP(DropDownList!$B$47,CntyQryCensus!$A$206:$HH$248,DI$1)","v":41},{"$f":"VLOOKUP(DropDownList!$B$47,CntyQryCensus!$A$206:$HH$248,DJ$1)","v":20},{"$f":"VLOOKUP(DropDownList!$B$47,CntyQryCensus!$A$206:$HH$248,DK$1)","v":33},{"$f":"VLOOKUP(DropDownList!$B$47,CntyQryCensus!$A$206:$HH$248,DL$1)","v":8},{"$f":"VLOOKUP(DropDownList!$B$47,CntyQryCensus!$A$206:$HH$248,DM$1)","v":9},{"$f":"VLOOKUP(DropDownList!$B$47,CntyQryCensus!$A$206:$HH$248,DN$1)","v":0},{"$f":"VLOOKUP(DropDownList!$B$47,CntyQryCensus!$A$206:$HH$248,DO$1)","v":6},{"$f":"VLOOKUP(DropDownList!$B$47,CntyQryCensus!$A$206:$HH$248,DP$1)","v":0},{"$f":"VLOOKUP(DropDownList!$B$47,CntyQryCensus!$A$206:$HH$248,DQ$1)","v":19},{"$f":"VLOOKUP(DropDownList!$B$47,CntyQryCensus!$A$206:$HH$248,DR$1)","v":15},{"$f":"VLOOKUP(DropDownList!$B$47,CntyQryCensus!$A$206:$HH$248,DS$1)","v":0},{"$f":"VLOOKUP(DropDownList!$B$47,CntyQryCensus!$A$206:$HH$248,DT$1)","v":8},{"$f":"VLOOKUP(DropDownList!$B$47,CntyQryCensus!$A$206:$HH$248,DU$1)","v":0},{"$f":"VLOOKUP(DropDownList!$B$47,CntyQryCensus!$A$206:$HH$248,DV$1)","v":0},{"$f":"VLOOKUP(DropDownList!$B$47,CntyQryCensus!$A$206:$HH$248,DW$1)","v":176},{"$f":"VLOOKUP(DropDownList!$B$47,CntyQryCensus!$A$206:$HH$248,DX$1)","v":71},{"$f":"VLOOKUP(DropDownList!$B$47,CntyQryCensus!$A$206:$HH$248,DY$1)","v":27},{"$f":"VLOOKUP(DropDownList!$B$47,CntyQryCensus!$A$206:$HH$248,DZ$1)","v":25},{"$f":"VLOOKUP(DropDownList!$B$47,CntyQryCensus!$A$206:$HH$248,EA$1)","v":12},{"$f":"VLOOKUP(DropDownList!$B$47,CntyQryCensus!$A$206:$HH$248,EB$1)","v":12},{"$f":"VLOOKUP(DropDownList!$B$47,CntyQryCensus!$A$206:$HH$248,EC$1)","v":0},{"$f":"VLOOKUP(DropDownList!$B$47,CntyQryCensus!$A$206:$HH$248,ED$1)","v":0},{"$f":"VLOOKUP(DropDownList!$B$47,CntyQryCensus!$A$206:$HH$248,EE$1)","v":0},{"$f":"VLOOKUP(DropDownList!$B$47,CntyQryCensus!$A$206:$HH$248,EF$1)","v":7},{"$f":"VLOOKUP(DropDownList!$B$47,CntyQryCensus!$A$206:$HH$248,EG$1)","v":0},{"$f":"VLOOKUP(DropDownList!$B$47,CntyQryCensus!$A$206:$HH$248,EH$1)","v":9},{"$f":"VLOOKUP(DropDownList!$B$47,CntyQryCensus!$A$206:$HH$248,EI$1)","v":6},{"$f":"VLOOKUP(DropDownList!$B$47,CntyQryCensus!$A$206:$HH$248,EJ$1)","v":0},{"$f":"VLOOKUP(DropDownList!$B$47,CntyQryCensus!$A$206:$HH$248,EK$1)","v":7},{"$f":"VLOOKUP(DropDownList!$B$47,CntyQryCensus!$A$206:$HH$248,EL$1)","v":0},{"$f":"VLOOKUP(DropDownList!$B$47,CntyQryCensus!$A$206:$HH$248,EM$1)","v":0},{"$f":"VLOOKUP(DropDownList!$B$47,CntyQryCensus!$A$206:$HH$248,EN$1)","v":41958},{"$f":"VLOOKUP(DropDownList!$B$47,CntyQryCensus!$A$206:$HH$248,EO$1)","v":22188},{"$f":"VLOOKUP(DropDownList!$B$47,CntyQryCensus!$A$206:$HH$248,EP$1)","v":41378},{"$f":"VLOOKUP(DropDownList!$B$47,CntyQryCensus!$A$206:$HH$248,EQ$1)","v":52292},{"$f":"VLOOKUP(DropDownList!$B$47,CntyQryCensus!$A$206:$HH$248,ER$1)","v":50395},{"$f":"VLOOKUP(DropDownList!$B$47,CntyQryCensus!$A$206:$HH$248,ES$1)","v":44091},{"$f":"VLOOKUP(DropDownList!$B$47,CntyQryCensus!$A$206:$HH$248,ET$1)","v":24583},{"$f":"VLOOKUP(DropDownList!$B$47,CntyQryCensus!$A$206:$HH$248,EU$1)","v":12917},{"$f":"VLOOKUP(DropDownList!$B$47,CntyQryCensus!$A$206:$HH$248,EV$1)","v":1901},{"$f":"VLOOKUP(DropDownList!$B$47,CntyQryCensus!$A$206:$HH$248,EW$1)","v":1564},{"$f":"VLOOKUP(DropDownList!$B$47,CntyQryCensus!$A$206:$HH$248,EX$1)","v":337},{"$f":"VLOOKUP(DropDownList!$B$47,CntyQryCensus!$A$206:$HH$248,EY$1)","v":1512},{"$f":"VLOOKUP(DropDownList!$B$47,CntyQryCensus!$A$206:$HH$248,EZ$1)","v":389},{"$f":"VLOOKUP(DropDownList!$B$47,CntyQryCensus!$A$206:$HH$248,FA$1)","v":198},{"$f":"VLOOKUP(DropDownList!$B$47,CntyQryCensus!$A$206:$HH$248,FB$1)","v":1703},{"$f":"VLOOKUP(DropDownList!$B$47,CntyQryCensus!$A$206:$HH$248,FC$1)","v":534},{"$f":"VLOOKUP(DropDownList!$B$47,CntyQryCensus!$A$206:$HH$248,FD$1)","v":1367},{"$f":"VLOOKUP(DropDownList!$B$47,CntyQryCensus!$A$206:$HH$248,FE$1)","v":514},{"$f":"VLOOKUP(DropDownList!$B$47,CntyQryCensus!$A$206:$HH$248,FF$1)","v":1387},{"$f":"VLOOKUP(DropDownList!$B$47,CntyQryCensus!$A$206:$HH$248,FG$1)","v":27},{"$f":"VLOOKUP(DropDownList!$B$47,CntyQryCensus!$A$206:$HH$248,FH$1)","v":1874},{"$f":"VLOOKUP(DropDownList!$B$47,CntyQryCensus!$A$206:$HH$248,FI$1)","v":61},{"$f":"VLOOKUP(DropDownList!$B$47,CntyQryCensus!$A$206:$HH$248,FJ$1)","v":1840},{"$f":"VLOOKUP(DropDownList!$B$47,CntyQryCensus!$A$206:$HH$248,FK$1)","v":270},{"$f":"VLOOKUP(DropDownList!$B$47,CntyQryCensus!$A$206:$HH$248,FL$1)","v":1631},{"$f":"VLOOKUP(DropDownList!$B$47,CntyQryCensus!$A$206:$HH$248,FM$1)","v":243},{"$f":"VLOOKUP(DropDownList!$B$47,CntyQryCensus!$A$206:$HH$248,FN$1)","v":1658},{"$f":"VLOOKUP(DropDownList!$B$47,CntyQryCensus!$A$206:$HH$248,FO$1)","v":76573000},{"$f":"VLOOKUP(DropDownList!$B$47,CntyQryCensus!$A$206:$HH$248,FP$1)","v":70553900},{"$f":"VLOOKUP(DropDownList!$B$47,CntyQryCensus!$A$206:$HH$248,FQ$1)","v":6019100},{"$f":"VLOOKUP(DropDownList!$B$47,CntyQryCensus!$A$206:$HH$248,FR$1)","v":1634700},{"$f":"VLOOKUP(DropDownList!$B$47,CntyQryCensus!$A$206:$HH$248,FS$1)","v":5806400},{"$f":"VLOOKUP(DropDownList!$B$47,CntyQryCensus!$A$206:$HH$248,FT$1)","v":156000},{"$f":"VLOOKUP(DropDownList!$B$47,CntyQryCensus!$A$206:$HH$248,FU$1)","v":121800},{"$f":"VLOOKUP(DropDownList!$B$47,CntyQryCensus!$A$206:$HH$248,FV$1)","v":4808300},{"$f":"VLOOKUP(DropDownList!$B$47,CntyQryCensus!$A$206:$HH$248,FW$1)","v":1277},{"$f":"VLOOKUP(DropDownList!$B$47,CntyQryCensus!$A$206:$HH$248,FX$1)","v":5},{"$f":"VLOOKUP(DropDownList!$B$47,CntyQryCensus!$A$206:$HH$248,FY$1)","v":48},{"$f":"VLOOKUP(DropDownList!$B$47,CntyQryCensus!$A$206:$HH$248,FZ$1)","v":44},{"$f":"VLOOKUP(DropDownList!$B$47,CntyQryCensus!$A$206:$HH$248,GA$1)","v":72},{"$f":"VLOOKUP(DropDownList!$B$47,CntyQryCensus!$A$206:$HH$248,GB$1)","v":101},{"$f":"VLOOKUP(DropDownList!$B$47,CntyQryCensus!$A$206:$HH$248,GC$1)","v":94},{"$f":"VLOOKUP(DropDownList!$B$47,CntyQryCensus!$A$206:$HH$248,GD$1)","v":92},{"$f":"VLOOKUP(DropDownList!$B$47,CntyQryCensus!$A$206:$HH$248,GE$1)","v":78},{"$f":"VLOOKUP(DropDownList!$B$47,CntyQryCensus!$A$206:$HH$248,GF$1)","v":70},{"$f":"VLOOKUP(DropDownList!$B$47,CntyQryCensus!$A$206:$HH$248,GG$1)","v":196},{"$f":"VLOOKUP(DropDownList!$B$47,CntyQryCensus!$A$206:$HH$248,GH$1)","v":217},{"$f":"VLOOKUP(DropDownList!$B$47,CntyQryCensus!$A$206:$HH$248,GI$1)","v":165},{"$f":"VLOOKUP(DropDownList!$B$47,CntyQryCensus!$A$206:$HH$248,GJ$1)","v":56},{"$f":"VLOOKUP(DropDownList!$B$47,CntyQryCensus!$A$206:$HH$248,GK$1)","v":33},{"$f":"VLOOKUP(DropDownList!$B$47,CntyQryCensus!$A$206:$HH$248,GL$1)","v":6},{"$f":"VLOOKUP(DropDownList!$B$47,CntyQryCensus!$A$206:$HH$248,GM$1)","v":0},{"$f":"VLOOKUP(DropDownList!$B$47,CntyQryCensus!$A$206:$HH$248,GN$1)","v":51659},{"$f":"VLOOKUP(DropDownList!$B$47,CntyQryCensus!$A$206:$HH$248,GO$1)","v":69787400},{"$f":"VLOOKUP(DropDownList!$B$47,CntyQryCensus!$A$206:$HH$248,GP$1)","v":624},{"$f":"VLOOKUP(DropDownList!$B$47,CntyQryCensus!$A$206:$HH$248,GQ$1)","v":116},{"$f":"VLOOKUP(DropDownList!$B$47,CntyQryCensus!$A$206:$HH$248,GR$1)","v":62},{"$f":"VLOOKUP(DropDownList!$B$47,CntyQryCensus!$A$206:$HH$248,GS$1)","v":53},{"$f":"VLOOKUP(DropDownList!$B$47,CntyQryCensus!$A$206:$HH$248,GT$1)","v":59},{"$f":"VLOOKUP(DropDownList!$B$47,CntyQryCensus!$A$206:$HH$248,GU$1)","v":85},{"$f":"VLOOKUP(DropDownList!$B$47,CntyQryCensus!$A$206:$HH$248,GV$1)","v":30},{"$f":"VLOOKUP(DropDownList!$B$47,CntyQryCensus!$A$206:$HH$248,GW$1)","v":62},{"$f":"VLOOKUP(DropDownList!$B$47,CntyQryCensus!$A$206:$HH$248,GX$1)","v":40},{"$f":"VLOOKUP(DropDownList!$B$47,CntyQryCensus!$A$206:$HH$248,GY$1)","v":6},{"$f":"VLOOKUP(DropDownList!$B$47,CntyQryCensus!$A$206:$HH$248,GZ$1)","v":42},{"$f":"VLOOKUP(DropDownList!$B$47,CntyQryCensus!$A$206:$HH$248,HA$1)","v":47},{"$f":"VLOOKUP(DropDownList!$B$47,CntyQryCensus!$A$206:$HH$248,HB$1)","v":15},{"$f":"VLOOKUP(DropDownList!$B$47,CntyQryCensus!$A$206:$HH$248,HC$1)","v":7},{"$f":"VLOOKUP(DropDownList!$B$47,CntyQryCensus!$A$206:$HH$248,HD$1)","v":0},{"$f":"VLOOKUP(DropDownList!$B$47,CntyQryCensus!$A$206:$HH$248,HE$1)","v":0},{"$f":"VLOOKUP(DropDownList!$B$47,CntyQryCensus!$A$206:$HH$248,HF$1)","v":0},{"$f":"VLOOKUP(DropDownList!$B$47,CntyQryCensus!$A$206:$HH$248,HG$1)","v":26375},{"$f":"VLOOKUP(DropDownList!$B$47,CntyQryCensus!$A$206:$HH$248,HH$1)","v":18851}]
[]
[]
["Census 2000 SummaryFile3 Sample Data  -  SF3TownQry2bPovertyChar"]
["NAME","LOGRECNO","COUNTY","TotalPop","P52Households1","P82PerCapitaInc","P87PopForPovStatus","P87PopWIncBelowPovStatus","P87PopUnder5yrBelowPoverty","P87Pop5yrBelowPoverty","P87Pop5to11yrBelowPoverty","P87Pop12to17yrBelowPoverty","P87Pop18to64yrBelowPoverty","P87Pop65to74yrBelowPoverty","P87PopOver75yrBelowPoverty","P87PopWIncAbovePovStatus","P87PopUnder5yrAbovePoverty","P87Pop5yrAbovePoverty","P87Pop5to11yrAbovePoverty","P87Pop12to17yrAbovePoverty","P87Pop18to64yrAbovePoverty","P87Pop65to74yrAbovePoverty","P87PopOver75yrAbovePoverty","P90Families","P90FamWIncBelowPov","P90MarCupFamWIncBelowPov","P90MCFamWRltdChld<18WIncBelowPov","P90MCFamWRltdChld<5WIncBelowPov","P90MaleHhlrWIncBelowPov","P90MaleHhlrWRltdChld<18yrWIncBelowPov","P90MaleHhlrWRltdChld<5yrWIncBelowPov","P90FemaleHhlrWIncBelowPov","P90FemaleHhlrWRltdChld<18yWIncBelowPov","P90FemaleHhlrWRltdChld<5yWIncBelowPov","P90FamWIncAbovePov","P90MarCupFamWIncAbovePov","P90MCFamWRltdChld<18WIncAbovePov","P90MCFamWRltdChld<5WIncAbovePov","P90MaleHhlrWIncAbovePov","P90MaleHhlrWRltdChld<18yrWIncAbovePov","P90MaleHhlrWRltdChld<5yrWIncAbovePov","P90FemaleHhlrWIncAbovePov","P90FemaleHhlrWRltdChld<18yWIncAbovePov","P90FemaleHhlrWRltdChld<5yWIncAbovePov","P92Households","P92HHwIncBelowPov","P92FamHHwIncBelowPov","P92MCFamHHwIncBelowPov","P92MaleFamHHwIncBelowPov","P92FemaleFamHHwIncBelowPov","P92NonFamHHwIncBelowPov","P92NonFamMaleHHwIncBelowPov","P92NonFamFemaleHHwIncBelowPov","P92HHwIncAbovePov","P92FamHHwIncAbovePov","P92MCFamHHwIncAbovePov","P92MaleFamHHwIncAbovePov","P92FemaleFamHHwIncAbovePov","P92NonFamHHwIncAbovePov","P92NonFamMaleHHwIncAbovePov","P92NonFamFemaleHHwIncAbovePov"]
[{"$f":"VLOOKUP(DropDownList!$B$47,CntyQryCensus!$A$256:$BI$298,A$1)","v":"Allenstown"},{"$f":"VLOOKUP(DropDownList!$B$47,CntyQryCensus!$A$256:$BI$298,B$1)","v":"0002575"},{"$f":"VLOOKUP(DropDownList!$B$47,CntyQryCensus!$A$256:$BI$298,C$1)","v":"00660"},{"$f":"VLOOKUP(DropDownList!$B$47,CntyQryCensus!$A$256:$BI$298,D$1)","v":4843},{"$f":"VLOOKUP(DropDownList!$B$47,CntyQryCensus!$A$256:$BI$298,E$1)","v":1901},{"$f":"VLOOKUP(DropDownList!$B$47,CntyQryCensus!$A$256:$BI$298,F$1)","v":18851},{"$f":"VLOOKUP(DropDownList!$B$47,CntyQryCensus!$A$256:$BI$298,G$1)","v":4772},{"$f":"VLOOKUP(DropDownList!$B$47,CntyQryCensus!$A$256:$BI$298,H$1)","v":184},{"$f":"VLOOKUP(DropDownList!$B$47,CntyQryCensus!$A$256:$BI$298,I$1)","v":7},{"$f":"VLOOKUP(DropDownList!$B$47,CntyQryCensus!$A$256:$BI$298,J$1)","v":8},{"$f":"VLOOKUP(DropDownList!$B$47,CntyQryCensus!$A$256:$BI$298,K$1)","v":19},{"$f":"VLOOKUP(DropDownList!$B$47,CntyQryCensus!$A$256:$BI$298,L$1)","v":21},{"$f":"VLOOKUP(DropDownList!$B$47,CntyQryCensus!$A$256:$BI$298,M$1)","v":105},{"$f":"VLOOKUP(DropDownList!$B$47,CntyQryCensus!$A$256:$BI$298,N$1)","v":12},{"$f":"VLOOKUP(DropDownList!$B$47,CntyQryCensus!$A$256:$BI$298,O$1)","v":12},{"$f":"VLOOKUP(DropDownList!$B$47,CntyQryCensus!$A$256:$BI$298,P$1)","v":4588},{"$f":"VLOOKUP(DropDownList!$B$47,CntyQryCensus!$A$256:$BI$298,Q$1)","v":312},{"$f":"VLOOKUP(DropDownList!$B$47,CntyQryCensus!$A$256:$BI$298,R$1)","v":55},{"$f":"VLOOKUP(DropDownList!$B$47,CntyQryCensus!$A$256:$BI$298,S$1)","v":392},{"$f":"VLOOKUP(DropDownList!$B$47,CntyQryCensus!$A$256:$BI$298,T$1)","v":443},{"$f":"VLOOKUP(DropDownList!$B$47,CntyQryCensus!$A$256:$BI$298,U$1)","v":2904},{"$f":"VLOOKUP(DropDownList!$B$47,CntyQryCensus!$A$256:$BI$298,V$1)","v":255},{"$f":"VLOOKUP(DropDownList!$B$47,CntyQryCensus!$A$256:$BI$298,W$1)","v":227},{"$f":"VLOOKUP(DropDownList!$B$47,CntyQryCensus!$A$256:$BI$298,X$1)","v":1277},{"$f":"VLOOKUP(DropDownList!$B$47,CntyQryCensus!$A$256:$BI$298,Y$1)","v":28},{"$f":"VLOOKUP(DropDownList!$B$47,CntyQryCensus!$A$256:$BI$298,Z$1)","v":17},{"$f":"VLOOKUP(DropDownList!$B$47,CntyQryCensus!$A$256:$BI$298,AA$1)","v":17},{"$f":"VLOOKUP(DropDownList!$B$47,CntyQryCensus!$A$256:$BI$298,AB$1)","v":0},{"$f":"VLOOKUP(DropDownList!$B$47,CntyQryCensus!$A$256:$BI$298,AC$1)","v":0},{"$f":"VLOOKUP(DropDownList!$B$47,CntyQryCensus!$A$256:$BI$298,AD$1)","v":0},{"$f":"VLOOKUP(DropDownList!$B$47,CntyQryCensus!$A$256:$BI$298,AE$1)","v":0},{"$f":"VLOOKUP(DropDownList!$B$47,CntyQryCensus!$A$256:$BI$298,AF$1)","v":11},{"$f":"VLOOKUP(DropDownList!$B$47,CntyQryCensus!$A$256:$BI$298,AG$1)","v":11},{"$f":"VLOOKUP(DropDownList!$B$47,CntyQryCensus!$A$256:$BI$298,AH$1)","v":0},{"$f":"VLOOKUP(DropDownList!$B$47,CntyQryCensus!$A$256:$BI$298,AI$1)","v":1249},{"$f":"VLOOKUP(DropDownList!$B$47,CntyQryCensus!$A$256:$BI$298,AJ$1)","v":981},{"$f":"VLOOKUP(DropDownList!$B$47,CntyQryCensus!$A$256:$BI$298,AK$1)","v":475},{"$f":"VLOOKUP(DropDownList!$B$47,CntyQryCensus!$A$256:$BI$298,AL$1)","v":82},{"$f":"VLOOKUP(DropDownList!$B$47,CntyQryCensus!$A$256:$BI$298,AM$1)","v":102},{"$f":"VLOOKUP(DropDownList!$B$47,CntyQryCensus!$A$256:$BI$298,AN$1)","v":75},{"$f":"VLOOKUP(DropDownList!$B$47,CntyQryCensus!$A$256:$BI$298,AO$1)","v":23},{"$f":"VLOOKUP(DropDownList!$B$47,CntyQryCensus!$A$256:$BI$298,AP$1)","v":166},{"$f":"VLOOKUP(DropDownList!$B$47,CntyQryCensus!$A$256:$BI$298,AQ$1)","v":114},{"$f":"VLOOKUP(DropDownList!$B$47,CntyQryCensus!$A$256:$BI$298,AR$1)","v":12},{"$f":"VLOOKUP(DropDownList!$B$47,CntyQryCensus!$A$256:$BI$298,AS$1)","v":1901},{"$f":"VLOOKUP(DropDownList!$B$47,CntyQryCensus!$A$256:$BI$298,AT$1)","v":80},{"$f":"VLOOKUP(DropDownList!$B$47,CntyQryCensus!$A$256:$BI$298,AU$1)","v":28},{"$f":"VLOOKUP(DropDownList!$B$47,CntyQryCensus!$A$256:$BI$298,AV$1)","v":17},{"$f":"VLOOKUP(DropDownList!$B$47,CntyQryCensus!$A$256:$BI$298,AW$1)","v":0},{"$f":"VLOOKUP(DropDownList!$B$47,CntyQryCensus!$A$256:$BI$298,AX$1)","v":11},{"$f":"VLOOKUP(DropDownList!$B$47,CntyQryCensus!$A$256:$BI$298,AY$1)","v":52},{"$f":"VLOOKUP(DropDownList!$B$47,CntyQryCensus!$A$256:$BI$298,AZ$1)","v":8},{"$f":"VLOOKUP(DropDownList!$B$47,CntyQryCensus!$A$256:$BI$298,BA$1)","v":44},{"$f":"VLOOKUP(DropDownList!$B$47,CntyQryCensus!$A$256:$BI$298,BB$1)","v":1821},{"$f":"VLOOKUP(DropDownList!$B$47,CntyQryCensus!$A$256:$BI$298,BC$1)","v":1249},{"$f":"VLOOKUP(DropDownList!$B$47,CntyQryCensus!$A$256:$BI$298,BD$1)","v":981},{"$f":"VLOOKUP(DropDownList!$B$47,CntyQryCensus!$A$256:$BI$298,BE$1)","v":102},{"$f":"VLOOKUP(DropDownList!$B$47,CntyQryCensus!$A$256:$BI$298,BF$1)","v":166},{"$f":"VLOOKUP(DropDownList!$B$47,CntyQryCensus!$A$256:$BI$298,BG$1)","v":572},{"$f":"VLOOKUP(DropDownList!$B$47,CntyQryCensus!$A$256:$BI$298,BH$1)","v":232},{"$f":"VLOOKUP(DropDownList!$B$47,CntyQryCensus!$A$256:$BI$298,BI$1)","v":340}]
[null,null,null,null,null,null,null,null,null,null,null,null,null,null,null,null,null,null,{"$f":"SUM(R60:T60)","v":890}]
[]
["Census 2000 SummaryFile3 Sample Data  -  SF3TownQry7HousingA"]
["NAME","LOGRECNO","COUNTY","TotalPop","H1HousingUnitsTotal","H2SampleHU","H2SampleOccHU","H2SampleVacHU","H3HU100pctCount","H5HUTotal","H5HUUrban","H5HUUrbanInUrbanAreas","H5HUUrbanInUrbanClusters","H5HURural","H5HURuralFarm","H5HURuralNonFarm","H7HUOcc","H7HUOwnrOcc","H7HURentrOcc","H8HUVacant","H8HUVacantForRent","H8HUVacantForSale","H8HUVacRentedorSold","H8HUVacSeasonal","H8HUVacForMigrantWrkrs","H8HUOtherVacant","H14OccHUa","H14OwnerOccHU","H14OwnOccHuHh15to24","H14OwnOccHuHh25to34","H14OwnOccHuHh35to44","H14OwnOccHuHh45to54","H14OwnOccHuHh55to59","H14OwnOccHuHh60to64","H14OwnOccHuHh65to74","H14OwnOccHuHh75to84","H14OwnOccHuHh85Over","H14RenterOccHU1","H14RntrOccHuHh15to24","H14RntrOccHuHh25to34","H14RntrOccHuHh35to44","H14RntrOccHuHh45to54","H14RntrOccHuHh55to59","H14RntrOccHuHh60to64","H14RntrOccHuHh65to74","H14RntrOccHuHh75to84","H14RntrOccHuHh85Over","H15PopInOccHU","H15PopInOwnOccHU1","H15PopInRentOccHU1","H17OccupHUb","H17OwnOccHU2","H17OwnOccHU1PersonHH","H17OwnOccHU2PersonHH","H17OwnOccHU3PersonHH","H17OwnOccHU4PersonHH","H17OwnOccHU5PersonHH","H17OwnOccHU6PersonHH","H17OwnOccHU7PlusPersonHH","H17RentOccHU2","H17RntOccHU1PersonHH","H17RntOccHU2PersonHH","H17RntOccHU3PersonHH","H17RntOccHU4PersonHH","H17RntOccHU5PersonHH","H17RntOccHU6PersonHH","H17RntOccHU7PlusPersonHH","H18AvgHHSize","H18AvgHHSizeOwnOcc","H18AvgHHSizeRentOcc","H23TotHU","H23HU1Room","H23HU2Room","H23HU3Room","H23HU4Room","H23HU5Room","H23HU6Room","H23HU7Room","H23HU8Room","H23HU9orMoreRoom","H24MedianNumRooms","H25AggregNumRooms","H30TotalHU","H30Det1HU","H30Att1HU","H30Units2","H30Units3or4","H30Units5to9","H30Units10to19","H30Units20to49","H30Units50orMore","H30UnitsMobileHome","H30UnitsBoatRv","H32OccHUcTotal","H32OwnerOccHU3","H32OwnOccHU1Det","H32OwnOccHU1Att","H32OwnOccHU2Unit","H32OwnOccHU3to4Unit","H32OwnOccHU5to9Unit","H32OwnOccHU10to19Unit","H32OwnOccHU20to49Unit","H32OwnOccHU50plusUnit","H32OwnOccHUMobHom","H32OwnOccHUBoatRVOth","H32RentrOccHU3","H32RntrOccHU1Det","H32RntrOccHU1Att","H32RntrOccHU2Unit","H32RntrOccHU3to4Unit","H32RntrOccHU5to9Unit","H32RntrOccHU10to19Unit","H32RntrOccHU20to49Unit","H32RntrOccHU50PlusUnit","H32RntrOccHUMobHom","H32RntrOccHUBoatRVOth","H33TotPopInOccHU","H33PopInOwnOccHU2","H33PopInOOHU1Det","H33PopInOOHU1Att","H33PopInOOHU2unit","H33PopInOOHU3to4Unit","H33PopInOOHU5to9Unit","H33PopInOOHU10to19Unit","H33PopInOOHU20to49Unit","H33PopInOOHU50PlusUnit","H33PopInOOHUMobilHome","H33PopInOOHUOtherUnit","H33PopInRentOccHU2","H33PopInROHU1Det","H33PopInROHU1Att","H33PopInROHU2Unit","H33PopInROHU3to4Unit","H33PopInROHU5to9Unit","H33PopInROHU10to19Unit","H33PopInROHU20to49Unit","H33PopInROHU50PlusUnit","H33PopInROHUMobilHome","H33PopInROHUOtherUnit","H36OccHousingUnitsdTotal","H36OwnerOccHU4","H36OOHUBuilt99to0300","H36OOHUBuilt95to98","H36OOHUBuilt90to94","H36OOHUBuilt80to89","H36OOHUBuilt70to79","H36OOHUBuilt60to69","H36OOHUBuilt50to59","H36OOHUBuilt40to49","H36OOHUBuilt39Earlier","H36RentOccHU4","H36ROHUBuilt99to0300","H36ROHUBuilt95to98","H36ROHUBuilt90to94","H36ROHUBuilt80to89","H36ROHUBuilt70to79","H36ROHUBuilt60to69","H36ROHUBuilt50to59","H36ROHUBuilt40to49","H36ROHUBuilt39Earlier","H40OccupHousUnitse","H40HeatFuelUtilGas","H40HeatFuelBotGas","H40HeatFuelElect","H40HeatFuelOilKero","H40HeatFuelCoal","H40HeatFuelWood","H40HeatFuelSolar","H40HeatFuelOther","H40HeatFuelNone","H41TotalHU","H41HUNoBdrm","H41HU1Bdrm","H41HU2Bdrm","H41HU3Bdrm","H41HU4Bdrm","H41HU5MoreBdrm","H42OccuHousUnitf","H42OwnerOccHU5","H42OOHUNoBdrm","H42OOHU1Bdrm","H42OOHU2Bdrm","H42OOHU3Bdrm","H42OOHU4Bdrm","H42OOHU5PlusBdrm","H42RentOccHU5","H42ROHUNoBdrm","H42ROHU1Bdrm","H42ROHU2Bdrm","H42ROHU3Bdrm","H42ROHU4Bdrm","H42ROHU5PlusBdrm","H48OccupHousUnitsg","H48OwnerOccHU6","H48OOHUwCompltPlumFacil","H48OOHULackCompltPlumFacil","H48RentOccHU6","H48ROHUwCompltPlumFacil","H48ROHULackCompltPlumFacil","H51OccupHousUnitf","H51OwnerOccHU7","H51OOHUwCompleteKitFacil","H51OOHULackCompleteKitFacil","H51RenterOccHU7","H51ROHUwCompleteKitFacil","H51ROHULackCompleteKitFacil"]
[{"$f":"VLOOKUP(DropDownList!$B47,CntyQryCensus!$A$306:$GX$348,A$1)","v":"Allenstown"},{"$f":"VLOOKUP(DropDownList!$B47,CntyQryCensus!$A$306:$GX$348,B$1)","v":"0002575"},{"$f":"VLOOKUP(DropDownList!$B47,CntyQryCensus!$A$306:$GX$348,C$1)","v":"00660"},{"$f":"VLOOKUP(DropDownList!$B47,CntyQryCensus!$A$306:$GX$348,D$1)","v":4843},{"$f":"VLOOKUP(DropDownList!$B47,CntyQryCensus!$A$306:$GX$348,E$1)","v":1962},{"$f":"VLOOKUP(DropDownList!$B47,CntyQryCensus!$A$306:$GX$348,F$1)","v":278},{"$f":"VLOOKUP(DropDownList!$B47,CntyQryCensus!$A$306:$GX$348,G$1)","v":274},{"$f":"VLOOKUP(DropDownList!$B47,CntyQryCensus!$A$306:$GX$348,H$1)","v":4},{"$f":"VLOOKUP(DropDownList!$B47,CntyQryCensus!$A$306:$GX$348,I$1)","v":1962},{"$f":"VLOOKUP(DropDownList!$B47,CntyQryCensus!$A$306:$GX$348,J$1)","v":1962},{"$f":"VLOOKUP(DropDownList!$B47,CntyQryCensus!$A$306:$GX$348,K$1)","v":1277},{"$f":"VLOOKUP(DropDownList!$B47,CntyQryCensus!$A$306:$GX$348,L$1)","v":0},{"$f":"VLOOKUP(DropDownList!$B47,CntyQryCensus!$A$306:$GX$348,M$1)","v":1277},{"$f":"VLOOKUP(DropDownList!$B47,CntyQryCensus!$A$306:$GX$348,N$1)","v":685},{"$f":"VLOOKUP(DropDownList!$B47,CntyQryCensus!$A$306:$GX$348,O$1)","v":0},{"$f":"VLOOKUP(DropDownList!$B47,CntyQryCensus!$A$306:$GX$348,P$1)","v":685},{"$f":"VLOOKUP(DropDownList!$B47,CntyQryCensus!$A$306:$GX$348,Q$1)","v":1902},{"$f":"VLOOKUP(DropDownList!$B47,CntyQryCensus!$A$306:$GX$348,R$1)","v":1356},{"$f":"VLOOKUP(DropDownList!$B47,CntyQryCensus!$A$306:$GX$348,S$1)","v":546},{"$f":"VLOOKUP(DropDownList!$B47,CntyQryCensus!$A$306:$GX$348,T$1)","v":60},{"$f":"VLOOKUP(DropDownList!$B47,CntyQryCensus!$A$306:$GX$348,U$1)","v":0},{"$f":"VLOOKUP(DropDownList!$B47,CntyQryCensus!$A$306:$GX$348,V$1)","v":15},{"$f":"VLOOKUP(DropDownList!$B47,CntyQryCensus!$A$306:$GX$348,W$1)","v":15},{"$f":"VLOOKUP(DropDownList!$B47,CntyQryCensus!$A$306:$GX$348,X$1)","v":0},{"$f":"VLOOKUP(DropDownList!$B47,CntyQryCensus!$A$306:$GX$348,Y$1)","v":0},{"$f":"VLOOKUP(DropDownList!$B47,CntyQryCensus!$A$306:$GX$348,Z$1)","v":30},{"$f":"VLOOKUP(DropDownList!$B47,CntyQryCensus!$A$306:$GX$348,AA$1)","v":1902},{"$f":"VLOOKUP(DropDownList!$B47,CntyQryCensus!$A$306:$GX$348,AB$1)","v":1356},{"$f":"VLOOKUP(DropDownList!$B47,CntyQryCensus!$A$306:$GX$348,AC$1)","v":34},{"$f":"VLOOKUP(DropDownList!$B47,CntyQryCensus!$A$306:$GX$348,AD$1)","v":204},{"$f":"VLOOKUP(DropDownList!$B47,CntyQryCensus!$A$306:$GX$348,AE$1)","v":386},{"$f":"VLOOKUP(DropDownList!$B47,CntyQryCensus!$A$306:$GX$348,AF$1)","v":297},{"$f":"VLOOKUP(DropDownList!$B47,CntyQryCensus!$A$306:$GX$348,AG$1)","v":86},{"$f":"VLOOKUP(DropDownList!$B47,CntyQryCensus!$A$306:$GX$348,AH$1)","v":90},{"$f":"VLOOKUP(DropDownList!$B47,CntyQryCensus!$A$306:$GX$348,AI$1)","v":180},{"$f":"VLOOKUP(DropDownList!$B47,CntyQryCensus!$A$306:$GX$348,AJ$1)","v":60},{"$f":"VLOOKUP(DropDownList!$B47,CntyQryCensus!$A$306:$GX$348,AK$1)","v":19},{"$f":"VLOOKUP(DropDownList!$B47,CntyQryCensus!$A$306:$GX$348,AL$1)","v":546},{"$f":"VLOOKUP(DropDownList!$B47,CntyQryCensus!$A$306:$GX$348,AM$1)","v":10},{"$f":"VLOOKUP(DropDownList!$B47,CntyQryCensus!$A$306:$GX$348,AN$1)","v":116},{"$f":"VLOOKUP(DropDownList!$B47,CntyQryCensus!$A$306:$GX$348,AO$1)","v":144},{"$f":"VLOOKUP(DropDownList!$B47,CntyQryCensus!$A$306:$GX$348,AP$1)","v":87},{"$f":"VLOOKUP(DropDownList!$B47,CntyQryCensus!$A$306:$GX$348,AQ$1)","v":32},{"$f":"VLOOKUP(DropDownList!$B47,CntyQryCensus!$A$306:$GX$348,AR$1)","v":29},{"$f":"VLOOKUP(DropDownList!$B47,CntyQryCensus!$A$306:$GX$348,AS$1)","v":28},{"$f":"VLOOKUP(DropDownList!$B47,CntyQryCensus!$A$306:$GX$348,AT$1)","v":60},{"$f":"VLOOKUP(DropDownList!$B47,CntyQryCensus!$A$306:$GX$348,AU$1)","v":40},{"$f":"VLOOKUP(DropDownList!$B47,CntyQryCensus!$A$306:$GX$348,AV$1)","v":4808},{"$f":"VLOOKUP(DropDownList!$B47,CntyQryCensus!$A$306:$GX$348,AW$1)","v":3709},{"$f":"VLOOKUP(DropDownList!$B47,CntyQryCensus!$A$306:$GX$348,AX$1)","v":1099},{"$f":"VLOOKUP(DropDownList!$B47,CntyQryCensus!$A$306:$GX$348,AY$1)","v":1902},{"$f":"VLOOKUP(DropDownList!$B47,CntyQryCensus!$A$306:$GX$348,AZ$1)","v":1356},{"$f":"VLOOKUP(DropDownList!$B47,CntyQryCensus!$A$306:$GX$348,BA$1)","v":276},{"$f":"VLOOKUP(DropDownList!$B47,CntyQryCensus!$A$306:$GX$348,BB$1)","v":383},{"$f":"VLOOKUP(DropDownList!$B47,CntyQryCensus!$A$306:$GX$348,BC$1)","v":301},{"$f":"VLOOKUP(DropDownList!$B47,CntyQryCensus!$A$306:$GX$348,BD$1)","v":288},{"$f":"VLOOKUP(DropDownList!$B47,CntyQryCensus!$A$306:$GX$348,BE$1)","v":84},{"$f":"VLOOKUP(DropDownList!$B47,CntyQryCensus!$A$306:$GX$348,BF$1)","v":18},{"$f":"VLOOKUP(DropDownList!$B47,CntyQryCensus!$A$306:$GX$348,BG$1)","v":6},{"$f":"VLOOKUP(DropDownList!$B47,CntyQryCensus!$A$306:$GX$348,BH$1)","v":546},{"$f":"VLOOKUP(DropDownList!$B47,CntyQryCensus!$A$306:$GX$348,BI$1)","v":243},{"$f":"VLOOKUP(DropDownList!$B47,CntyQryCensus!$A$306:$GX$348,BJ$1)","v":176},{"$f":"VLOOKUP(DropDownList!$B47,CntyQryCensus!$A$306:$GX$348,BK$1)","v":31},{"$f":"VLOOKUP(DropDownList!$B47,CntyQryCensus!$A$306:$GX$348,BL$1)","v":50},{"$f":"VLOOKUP(DropDownList!$B47,CntyQryCensus!$A$306:$GX$348,BM$1)","v":28},{"$f":"VLOOKUP(DropDownList!$B47,CntyQryCensus!$A$306:$GX$348,BN$1)","v":18},{"$f":"VLOOKUP(DropDownList!$B47,CntyQryCensus!$A$306:$GX$348,BO$1)","v":0},{"$f":"VLOOKUP(DropDownList!$B47,CntyQryCensus!$A$306:$GX$348,BP$1)","v":3},{"$f":"VLOOKUP(DropDownList!$B47,CntyQryCensus!$A$306:$GX$348,BQ$1)","v":3},{"$f":"VLOOKUP(DropDownList!$B47,CntyQryCensus!$A$306:$GX$348,BR$1)","v":2},{"$f":"VLOOKUP(DropDownList!$B47,CntyQryCensus!$A$306:$GX$348,BS$1)","v":1962},{"$f":"VLOOKUP(DropDownList!$B47,CntyQryCensus!$A$306:$GX$348,BT$1)","v":0},{"$f":"VLOOKUP(DropDownList!$B47,CntyQryCensus!$A$306:$GX$348,BU$1)","v":73},{"$f":"VLOOKUP(DropDownList!$B47,CntyQryCensus!$A$306:$GX$348,BV$1)","v":162},{"$f":"VLOOKUP(DropDownList!$B47,CntyQryCensus!$A$306:$GX$348,BW$1)","v":419},{"$f":"VLOOKUP(DropDownList!$B47,CntyQryCensus!$A$306:$GX$348,BX$1)","v":634},{"$f":"VLOOKUP(DropDownList!$B47,CntyQryCensus!$A$306:$GX$348,BY$1)","v":336},{"$f":"VLOOKUP(DropDownList!$B47,CntyQryCensus!$A$306:$GX$348,BZ$1)","v":197},{"$f":"VLOOKUP(DropDownList!$B47,CntyQryCensus!$A$306:$GX$348,CA$1)","v":51},{"$f":"VLOOKUP(DropDownList!$B47,CntyQryCensus!$A$306:$GX$348,CB$1)","v":90},{"$f":"VLOOKUP(DropDownList!$B47,CntyQryCensus!$A$306:$GX$348,CC$1)","v":5},{"$f":"VLOOKUP(DropDownList!$B47,CntyQryCensus!$A$306:$GX$348,CD$1)","v":10181},{"$f":"VLOOKUP(DropDownList!$B47,CntyQryCensus!$A$306:$GX$348,CE$1)","v":1962},{"$f":"VLOOKUP(DropDownList!$B47,CntyQryCensus!$A$306:$GX$348,CF$1)","v":829},{"$f":"VLOOKUP(DropDownList!$B47,CntyQryCensus!$A$306:$GX$348,CG$1)","v":42},{"$f":"VLOOKUP(DropDownList!$B47,CntyQryCensus!$A$306:$GX$348,CH$1)","v":136},{"$f":"VLOOKUP(DropDownList!$B47,CntyQryCensus!$A$306:$GX$348,CI$1)","v":116},{"$f":"VLOOKUP(DropDownList!$B47,CntyQryCensus!$A$306:$GX$348,CJ$1)","v":193},{"$f":"VLOOKUP(DropDownList!$B47,CntyQryCensus!$A$306:$GX$348,CK$1)","v":6},{"$f":"VLOOKUP(DropDownList!$B47,CntyQryCensus!$A$306:$GX$348,CL$1)","v":14},{"$f":"VLOOKUP(DropDownList!$B47,CntyQryCensus!$A$306:$GX$348,CM$1)","v":0},{"$f":"VLOOKUP(DropDownList!$B47,CntyQryCensus!$A$306:$GX$348,CN$1)","v":626},{"$f":"VLOOKUP(DropDownList!$B47,CntyQryCensus!$A$306:$GX$348,CO$1)","v":0},{"$f":"VLOOKUP(DropDownList!$B47,CntyQryCensus!$A$306:$GX$348,CP$1)","v":1902},{"$f":"VLOOKUP(DropDownList!$B47,CntyQryCensus!$A$306:$GX$348,CQ$1)","v":1356},{"$f":"VLOOKUP(DropDownList!$B47,CntyQryCensus!$A$306:$GX$348,CR$1)","v":769},{"$f":"VLOOKUP(DropDownList!$B47,CntyQryCensus!$A$306:$GX$348,CS$1)","v":13},{"$f":"VLOOKUP(DropDownList!$B47,CntyQryCensus!$A$306:$GX$348,CT$1)","v":22},{"$f":"VLOOKUP(DropDownList!$B47,CntyQryCensus!$A$306:$GX$348,CU$1)","v":14},{"$f":"VLOOKUP(DropDownList!$B47,CntyQryCensus!$A$306:$GX$348,CV$1)","v":25},{"$f":"VLOOKUP(DropDownList!$B47,CntyQryCensus!$A$306:$GX$348,CW$1)","v":0},{"$f":"VLOOKUP(DropDownList!$B47,CntyQryCensus!$A$306:$GX$348,CX$1)","v":0},{"$f":"VLOOKUP(DropDownList!$B47,CntyQryCensus!$A$306:$GX$348,CY$1)","v":0},{"$f":"VLOOKUP(DropDownList!$B47,CntyQryCensus!$A$306:$GX$348,CZ$1)","v":513},{"$f":"VLOOKUP(DropDownList!$B47,CntyQryCensus!$A$306:$GX$348,DA$1)","v":0},{"$f":"VLOOKUP(DropDownList!$B47,CntyQryCensus!$A$306:$GX$348,DB$1)","v":546},{"$f":"VLOOKUP(DropDownList!$B47,CntyQryCensus!$A$306:$GX$348,DC$1)","v":60},{"$f":"VLOOKUP(DropDownList!$B47,CntyQryCensus!$A$306:$GX$348,DD$1)","v":29},{"$f":"VLOOKUP(DropDownList!$B47,CntyQryCensus!$A$306:$GX$348,DE$1)","v":114},{"$f":"VLOOKUP(DropDownList!$B47,CntyQryCensus!$A$306:$GX$348,DF$1)","v":102},{"$f":"VLOOKUP(DropDownList!$B47,CntyQryCensus!$A$306:$GX$348,DG$1)","v":153},{"$f":"VLOOKUP(DropDownList!$B47,CntyQryCensus!$A$306:$GX$348,DH$1)","v":6},{"$f":"VLOOKUP(DropDownList!$B47,CntyQryCensus!$A$306:$GX$348,DI$1)","v":14},{"$f":"VLOOKUP(DropDownList!$B47,CntyQryCensus!$A$306:$GX$348,DJ$1)","v":0},{"$f":"VLOOKUP(DropDownList!$B47,CntyQryCensus!$A$306:$GX$348,DK$1)","v":68},{"$f":"VLOOKUP(DropDownList!$B47,CntyQryCensus!$A$306:$GX$348,DL$1)","v":0},{"$f":"VLOOKUP(DropDownList!$B47,CntyQryCensus!$A$306:$GX$348,DM$1)","v":4808},{"$f":"VLOOKUP(DropDownList!$B47,CntyQryCensus!$A$306:$GX$348,DN$1)","v":3709},{"$f":"VLOOKUP(DropDownList!$B47,CntyQryCensus!$A$306:$GX$348,DO$1)","v":2157},{"$f":"VLOOKUP(DropDownList!$B47,CntyQryCensus!$A$306:$GX$348,DP$1)","v":36},{"$f":"VLOOKUP(DropDownList!$B47,CntyQryCensus!$A$306:$GX$348,DQ$1)","v":56},{"$f":"VLOOKUP(DropDownList!$B47,CntyQryCensus!$A$306:$GX$348,DR$1)","v":20},{"$f":"VLOOKUP(DropDownList!$B47,CntyQryCensus!$A$306:$GX$348,DS$1)","v":25},{"$f":"VLOOKUP(DropDownList!$B47,CntyQryCensus!$A$306:$GX$348,DT$1)","v":0},{"$f":"VLOOKUP(DropDownList!$B47,CntyQryCensus!$A$306:$GX$348,DU$1)","v":0},{"$f":"VLOOKUP(DropDownList!$B47,CntyQryCensus!$A$306:$GX$348,DV$1)","v":0},{"$f":"VLOOKUP(DropDownList!$B47,CntyQryCensus!$A$306:$GX$348,DW$1)","v":1415},{"$f":"VLOOKUP(DropDownList!$B47,CntyQryCensus!$A$306:$GX$348,DX$1)","v":0},{"$f":"VLOOKUP(DropDownList!$B47,CntyQryCensus!$A$306:$GX$348,DY$1)","v":1099},{"$f":"VLOOKUP(DropDownList!$B47,CntyQryCensus!$A$306:$GX$348,DZ$1)","v":178},{"$f":"VLOOKUP(DropDownList!$B47,CntyQryCensus!$A$306:$GX$348,EA$1)","v":60},{"$f":"VLOOKUP(DropDownList!$B47,CntyQryCensus!$A$306:$GX$348,EB$1)","v":223},{"$f":"VLOOKUP(DropDownList!$B47,CntyQryCensus!$A$306:$GX$348,EC$1)","v":257},{"$f":"VLOOKUP(DropDownList!$B47,CntyQryCensus!$A$306:$GX$348,ED$1)","v":239},{"$f":"VLOOKUP(DropDownList!$B47,CntyQryCensus!$A$306:$GX$348,EE$1)","v":6},{"$f":"VLOOKUP(DropDownList!$B47,CntyQryCensus!$A$306:$GX$348,EF$1)","v":13},{"$f":"VLOOKUP(DropDownList!$B47,CntyQryCensus!$A$306:$GX$348,EG$1)","v":0},{"$f":"VLOOKUP(DropDownList!$B47,CntyQryCensus!$A$306:$GX$348,EH$1)","v":123},{"$f":"VLOOKUP(DropDownList!$B47,CntyQryCensus!$A$306:$GX$348,EI$1)","v":0},{"$f":"VLOOKUP(DropDownList!$B47,CntyQryCensus!$A$306:$GX$348,EJ$1)","v":1902},{"$f":"VLOOKUP(DropDownList!$B47,CntyQryCensus!$A$306:$GX$348,EK$1)","v":1356},{"$f":"VLOOKUP(DropDownList!$B47,CntyQryCensus!$A$306:$GX$348,EL$1)","v":66},{"$f":"VLOOKUP(DropDownList!$B47,CntyQryCensus!$A$306:$GX$348,EM$1)","v":114},{"$f":"VLOOKUP(DropDownList!$B47,CntyQryCensus!$A$306:$GX$348,EN$1)","v":54},{"$f":"VLOOKUP(DropDownList!$B47,CntyQryCensus!$A$306:$GX$348,EO$1)","v":200},{"$f":"VLOOKUP(DropDownList!$B47,CntyQryCensus!$A$306:$GX$348,EP$1)","v":417},{"$f":"VLOOKUP(DropDownList!$B47,CntyQryCensus!$A$306:$GX$348,EQ$1)","v":209},{"$f":"VLOOKUP(DropDownList!$B47,CntyQryCensus!$A$306:$GX$348,ER$1)","v":91},{"$f":"VLOOKUP(DropDownList!$B47,CntyQryCensus!$A$306:$GX$348,ES$1)","v":52},{"$f":"VLOOKUP(DropDownList!$B47,CntyQryCensus!$A$306:$GX$348,ET$1)","v":153},{"$f":"VLOOKUP(DropDownList!$B47,CntyQryCensus!$A$306:$GX$348,EU$1)","v":546},{"$f":"VLOOKUP(DropDownList!$B47,CntyQryCensus!$A$306:$GX$348,EV$1)","v":0},{"$f":"VLOOKUP(DropDownList!$B47,CntyQryCensus!$A$306:$GX$348,EW$1)","v":30},{"$f":"VLOOKUP(DropDownList!$B47,CntyQryCensus!$A$306:$GX$348,EX$1)","v":21},{"$f":"VLOOKUP(DropDownList!$B47,CntyQryCensus!$A$306:$GX$348,EY$1)","v":138},{"$f":"VLOOKUP(DropDownList!$B47,CntyQryCensus!$A$306:$GX$348,EZ$1)","v":164},{"$f":"VLOOKUP(DropDownList!$B47,CntyQryCensus!$A$306:$GX$348,FA$1)","v":49},{"$f":"VLOOKUP(DropDownList!$B47,CntyQryCensus!$A$306:$GX$348,FB$1)","v":24},{"$f":"VLOOKUP(DropDownList!$B47,CntyQryCensus!$A$306:$GX$348,FC$1)","v":14},{"$f":"VLOOKUP(DropDownList!$B47,CntyQryCensus!$A$306:$GX$348,FD$1)","v":106},{"$f":"VLOOKUP(DropDownList!$B47,CntyQryCensus!$A$306:$GX$348,FE$1)","v":1902},{"$f":"VLOOKUP(DropDownList!$B47,CntyQryCensus!$A$306:$GX$348,FF$1)","v":254},{"$f":"VLOOKUP(DropDownList!$B47,CntyQryCensus!$A$306:$GX$348,FG$1)","v":192},{"$f":"VLOOKUP(DropDownList!$B47,CntyQryCensus!$A$306:$GX$348,FH$1)","v":161},{"$f":"VLOOKUP(DropDownList!$B47,CntyQryCensus!$A$306:$GX$348,FI$1)","v":1233},{"$f":"VLOOKUP(DropDownList!$B47,CntyQryCensus!$A$306:$GX$348,FJ$1)","v":6},{"$f":"VLOOKUP(DropDownList!$B47,CntyQryCensus!$A$306:$GX$348,FK$1)","v":56},{"$f":"VLOOKUP(DropDownList!$B47,CntyQryCensus!$A$306:$GX$348,FL$1)","v":0},{"$f":"VLOOKUP(DropDownList!$B47,CntyQryCensus!$A$306:$GX$348,FM$1)","v":0},{"$f":"VLOOKUP(DropDownList!$B47,CntyQryCensus!$A$306:$GX$348,FN$1)","v":0},{"$f":"VLOOKUP(DropDownList!$B47,CntyQryCensus!$A$306:$GX$348,FO$1)","v":1962},{"$f":"VLOOKUP(DropDownList!$B47,CntyQryCensus!$A$306:$GX$348,FP$1)","v":0},{"$f":"VLOOKUP(DropDownList!$B47,CntyQryCensus!$A$306:$GX$348,FQ$1)","v":245},{"$f":"VLOOKUP(DropDownList!$B47,CntyQryCensus!$A$306:$GX$348,FR$1)","v":674},{"$f":"VLOOKUP(DropDownList!$B47,CntyQryCensus!$A$306:$GX$348,FS$1)","v":854},{"$f":"VLOOKUP(DropDownList!$B47,CntyQryCensus!$A$306:$GX$348,FT$1)","v":163},{"$f":"VLOOKUP(DropDownList!$B47,CntyQryCensus!$A$306:$GX$348,FU$1)","v":26},{"$f":"VLOOKUP(DropDownList!$B47,CntyQryCensus!$A$306:$GX$348,FV$1)","v":1902},{"$f":"VLOOKUP(DropDownList!$B47,CntyQryCensus!$A$306:$GX$348,FW$1)","v":1356},{"$f":"VLOOKUP(DropDownList!$B47,CntyQryCensus!$A$306:$GX$348,FX$1)","v":0},{"$f":"VLOOKUP(DropDownList!$B47,CntyQryCensus!$A$306:$GX$348,FY$1)","v":34},{"$f":"VLOOKUP(DropDownList!$B47,CntyQryCensus!$A$306:$GX$348,FZ$1)","v":401},{"$f":"VLOOKUP(DropDownList!$B47,CntyQryCensus!$A$306:$GX$348,GA$1)","v":753},{"$f":"VLOOKUP(DropDownList!$B47,CntyQryCensus!$A$306:$GX$348,GB$1)","v":142},{"$f":"VLOOKUP(DropDownList!$B47,CntyQryCensus!$A$306:$GX$348,GC$1)","v":26},{"$f":"VLOOKUP(DropDownList!$B47,CntyQryCensus!$A$306:$GX$348,GD$1)","v":546},{"$f":"VLOOKUP(DropDownList!$B47,CntyQryCensus!$A$306:$GX$348,GE$1)","v":0},{"$f":"VLOOKUP(DropDownList!$B47,CntyQryCensus!$A$306:$GX$348,GF$1)","v":211},{"$f":"VLOOKUP(DropDownList!$B47,CntyQryCensus!$A$306:$GX$348,GG$1)","v":228},{"$f":"VLOOKUP(DropDownList!$B47,CntyQryCensus!$A$306:$GX$348,GH$1)","v":86},{"$f":"VLOOKUP(DropDownList!$B47,CntyQryCensus!$A$306:$GX$348,GI$1)","v":21},{"$f":"VLOOKUP(DropDownList!$B47,CntyQryCensus!$A$306:$GX$348,GJ$1)","v":0},{"$f":"VLOOKUP(DropDownList!$B47,CntyQryCensus!$A$306:$GX$348,GK$1)","v":1902},{"$f":"VLOOKUP(DropDownList!$B47,CntyQryCensus!$A$306:$GX$348,GL$1)","v":1356},{"$f":"VLOOKUP(DropDownList!$B47,CntyQryCensus!$A$306:$GX$348,GM$1)","v":1349},{"$f":"VLOOKUP(DropDownList!$B47,CntyQryCensus!$A$306:$GX$348,GN$1)","v":7},{"$f":"VLOOKUP(DropDownList!$B47,CntyQryCensus!$A$306:$GX$348,GO$1)","v":546},{"$f":"VLOOKUP(DropDownList!$B47,CntyQryCensus!$A$306:$GX$348,GP$1)","v":538},{"$f":"VLOOKUP(DropDownList!$B47,CntyQryCensus!$A$306:$GX$348,GQ$1)","v":8},{"$f":"VLOOKUP(DropDownList!$B47,CntyQryCensus!$A$306:$GX$348,GR$1)","v":1902},{"$f":"VLOOKUP(DropDownList!$B47,CntyQryCensus!$A$306:$GX$348,GS$1)","v":1356},{"$f":"VLOOKUP(DropDownList!$B47,CntyQryCensus!$A$306:$GX$348,GT$1)","v":1356},{"$f":"VLOOKUP(DropDownList!$B47,CntyQryCensus!$A$306:$GX$348,GU$1)","v":0},{"$f":"VLOOKUP(DropDownList!$B47,CntyQryCensus!$A$306:$GX$348,GV$1)","v":546},{"$f":"VLOOKUP(DropDownList!$B47,CntyQryCensus!$A$306:$GX$348,GW$1)","v":538},{"$f":"VLOOKUP(DropDownList!$B47,CntyQryCensus!$A$306:$GX$348,GX$1)","v":8}]
[]
[]
["Census 2000 SummaryFile3 Sample Data  -  SF3TownQry8HousingCostA"]
["NAME","LOGRECNO","COUNTY","TotalPop","H62RntrOccHU","H62RntrOccHUwRent","H62ROHUGRent<100","H62ROHUGRent100to149","H62ROHUGRent150to199","H62ROHUGRent200to249","H62ROHUGRent250to299","H62ROHUGRent300to349","H62ROHUGRent350to399","H62ROHUGRent400to449","H62ROHUGRent450to499","H62ROHUGRent500to549","H62ROHUGRent550to599","H62ROHUGRent600to649","H62ROHUGRent650to699","H62ROHUGRent700to749","H62ROHUGRent750to799","H62ROHUGRent800to899","H62ROHUGRent900to999","H62ROHUGRent1000to1249","H62ROHUGRent1250to1499","H62ROHUGRent1500to1999","H62ROHUGRent2000>","H62ROHUNoGRent","H63MedianGrossRnt","H69RenterOccHsU","H69GRnt<10PctHHInc","H69GRnt10to15PctHHInc","H69GRnt15to20PctHHInc","H69GRnt20to25PctHHInc","H69GRnt25to30PctHHInc","H69GRnt30to35PctHHInc","H69GRnt35to40PctHHInc","H69GRnt40to50PctHHInc","H69GRnt>50PctHHInc","H69GRntPctNotcomputed","H73RenterOccHU","H73ROHUHhInc<10k","H73ROHUHhInc<10kRnt<20pct","H73ROHUHhInc<10kRnt20to25pct","H73ROHUHhInc<10kRnt25to30pct","H73ROHUHhInc<10kRnt30to35pct","H73ROHUHhInc<10kRnt>35pct","H73ROHUHhInc<10kPctNotComput","H73ROHUHhInc10to20k","H73ROHUHhInc10to20kRnt<20pct","H73ROHUHhInc10to20kRnt20to25pct","H73ROHUHhInc10to20kRnt25to30pct","H73ROHUHhInc10to20kRnt30to35pct","H73ROHUHhInc10to20kRnt>35pct","H73ROHUHhInc10to20kRntPctNC","H73ROHUHhInc20to35k","H73ROHUHhInc20to35kRnt<20pct","H73ROHUHhInc20to35kRnt20to25pct","H73ROHUHhInc20to35kRnt25to30pct","H73ROHUHhInc20to35kRnt30to35pct","H73ROHUHhInc20to35kRnt>35pct","H73ROHUHhInc20to35kRntPctNC","H73ROHUHhInc35to40k","H73ROHUHhInc35to40kRnt<20pct","H73ROHUHhInc35to40kRnt20to25pct","H73ROHUHhInc35to40kRnt25to30pct","H73ROHUHhInc35to40kRnt30to35pct","H73ROHUHhInc35to40kRnt>35pct","H73ROHUHhInc35to40kRntPctNC","H73ROHUHhInc50to75k","H73ROHUHhInc50to75kRnt<20pct","H73ROHUHhInc50to75kRnt20to25pct","H73ROHUHhInc50to75kRnt25to30pct","H73ROHUHhInc50to75kRnt30to35pct","H73ROHUHhInc50to75kRnt>35pct","H73ROHUHhInc50to75kRntPctNC","H73ROHUHhInc75to100k","H73ROHUHhInc75to100kRnt<20pct","H73ROHUHhInc75to100kRnt20to25pct","H73ROHUHhInc75to100kRnt25to30pct","H73ROHUHhInc75to100kRnt30to35pct","H73ROHUHhInc75to100kRnt>35pct","H73ROHUHhInc75to100kRntPctNC","H73ROHUHhInc>100k","H73ROHUHhInc>100kRnt<20pct","H73ROHUHhInc>100kRnt20to25pct","H73ROHUHhInc>100kRnt25to30pct","H73ROHUHhInc>100kRnt30to35pct","H73ROHUHhInc>100kRnt>35pct","H73ROHUHhInc>100kRntPctNC","H73ROHUHhInc>100kRntPctNC"]
[{"$f":"VLOOKUP(DropDownList!$B$47,CntyQryCensus!$A$357:$CM$399,A$1)","v":"Allenstown"},{"$f":"VLOOKUP(DropDownList!$B$47,CntyQryCensus!$A$357:$CM$399,B$1)","v":"0002575"},{"$f":"VLOOKUP(DropDownList!$B$47,CntyQryCensus!$A$357:$CM$399,C$1)","v":"00660"},{"$f":"VLOOKUP(DropDownList!$B$47,CntyQryCensus!$A$357:$CM$399,D$1)","v":4843},{"$f":"VLOOKUP(DropDownList!$B$47,CntyQryCensus!$A$357:$CM$399,E$1)","v":536},{"$f":"VLOOKUP(DropDownList!$B$47,CntyQryCensus!$A$357:$CM$399,F$1)","v":514},{"$f":"VLOOKUP(DropDownList!$B$47,CntyQryCensus!$A$357:$CM$399,G$1)","v":12},{"$f":"VLOOKUP(DropDownList!$B$47,CntyQryCensus!$A$357:$CM$399,H$1)","v":14},{"$f":"VLOOKUP(DropDownList!$B$47,CntyQryCensus!$A$357:$CM$399,I$1)","v":7},{"$f":"VLOOKUP(DropDownList!$B$47,CntyQryCensus!$A$357:$CM$399,J$1)","v":8},{"$f":"VLOOKUP(DropDownList!$B$47,CntyQryCensus!$A$357:$CM$399,K$1)","v":6},{"$f":"VLOOKUP(DropDownList!$B$47,CntyQryCensus!$A$357:$CM$399,L$1)","v":0},{"$f":"VLOOKUP(DropDownList!$B$47,CntyQryCensus!$A$357:$CM$399,M$1)","v":24},{"$f":"VLOOKUP(DropDownList!$B$47,CntyQryCensus!$A$357:$CM$399,N$1)","v":42},{"$f":"VLOOKUP(DropDownList!$B$47,CntyQryCensus!$A$357:$CM$399,O$1)","v":35},{"$f":"VLOOKUP(DropDownList!$B$47,CntyQryCensus!$A$357:$CM$399,P$1)","v":54},{"$f":"VLOOKUP(DropDownList!$B$47,CntyQryCensus!$A$357:$CM$399,Q$1)","v":58},{"$f":"VLOOKUP(DropDownList!$B$47,CntyQryCensus!$A$357:$CM$399,R$1)","v":49},{"$f":"VLOOKUP(DropDownList!$B$47,CntyQryCensus!$A$357:$CM$399,S$1)","v":18},{"$f":"VLOOKUP(DropDownList!$B$47,CntyQryCensus!$A$357:$CM$399,T$1)","v":53},{"$f":"VLOOKUP(DropDownList!$B$47,CntyQryCensus!$A$357:$CM$399,U$1)","v":46},{"$f":"VLOOKUP(DropDownList!$B$47,CntyQryCensus!$A$357:$CM$399,V$1)","v":12},{"$f":"VLOOKUP(DropDownList!$B$47,CntyQryCensus!$A$357:$CM$399,W$1)","v":33},{"$f":"VLOOKUP(DropDownList!$B$47,CntyQryCensus!$A$357:$CM$399,X$1)","v":36},{"$f":"VLOOKUP(DropDownList!$B$47,CntyQryCensus!$A$357:$CM$399,Y$1)","v":7},{"$f":"VLOOKUP(DropDownList!$B$47,CntyQryCensus!$A$357:$CM$399,Z$1)","v":0},{"$f":"VLOOKUP(DropDownList!$B$47,CntyQryCensus!$A$357:$CM$399,AA$1)","v":0},{"$f":"VLOOKUP(DropDownList!$B$47,CntyQryCensus!$A$357:$CM$399,AB$1)","v":22},{"$f":"VLOOKUP(DropDownList!$B$47,CntyQryCensus!$A$357:$CM$399,AC$1)","v":597},{"$f":"VLOOKUP(DropDownList!$B$47,CntyQryCensus!$A$357:$CM$399,AD$1)","v":536},{"$f":"VLOOKUP(DropDownList!$B$47,CntyQryCensus!$A$357:$CM$399,AE$1)","v":35},{"$f":"VLOOKUP(DropDownList!$B$47,CntyQryCensus!$A$357:$CM$399,AF$1)","v":53},{"$f":"VLOOKUP(DropDownList!$B$47,CntyQryCensus!$A$357:$CM$399,AG$1)","v":89},{"$f":"VLOOKUP(DropDownList!$B$47,CntyQryCensus!$A$357:$CM$399,AH$1)","v":91},{"$f":"VLOOKUP(DropDownList!$B$47,CntyQryCensus!$A$357:$CM$399,AI$1)","v":36},{"$f":"VLOOKUP(DropDownList!$B$47,CntyQryCensus!$A$357:$CM$399,AJ$1)","v":69},{"$f":"VLOOKUP(DropDownList!$B$47,CntyQryCensus!$A$357:$CM$399,AK$1)","v":36},{"$f":"VLOOKUP(DropDownList!$B$47,CntyQryCensus!$A$357:$CM$399,AL$1)","v":55},{"$f":"VLOOKUP(DropDownList!$B$47,CntyQryCensus!$A$357:$CM$399,AM$1)","v":50},{"$f":"VLOOKUP(DropDownList!$B$47,CntyQryCensus!$A$357:$CM$399,AN$1)","v":22},{"$f":"VLOOKUP(DropDownList!$B$47,CntyQryCensus!$A$357:$CM$399,AO$1)","v":536},{"$f":"VLOOKUP(DropDownList!$B$47,CntyQryCensus!$A$357:$CM$399,AP$1)","v":82},{"$f":"VLOOKUP(DropDownList!$B$47,CntyQryCensus!$A$357:$CM$399,AQ$1)","v":12},{"$f":"VLOOKUP(DropDownList!$B$47,CntyQryCensus!$A$357:$CM$399,AR$1)","v":14},{"$f":"VLOOKUP(DropDownList!$B$47,CntyQryCensus!$A$357:$CM$399,AS$1)","v":0},{"$f":"VLOOKUP(DropDownList!$B$47,CntyQryCensus!$A$357:$CM$399,AT$1)","v":21},{"$f":"VLOOKUP(DropDownList!$B$47,CntyQryCensus!$A$357:$CM$399,AU$1)","v":28},{"$f":"VLOOKUP(DropDownList!$B$47,CntyQryCensus!$A$357:$CM$399,AV$1)","v":7},{"$f":"VLOOKUP(DropDownList!$B$47,CntyQryCensus!$A$357:$CM$399,AW$1)","v":70},{"$f":"VLOOKUP(DropDownList!$B$47,CntyQryCensus!$A$357:$CM$399,AX$1)","v":0},{"$f":"VLOOKUP(DropDownList!$B$47,CntyQryCensus!$A$357:$CM$399,AY$1)","v":0},{"$f":"VLOOKUP(DropDownList!$B$47,CntyQryCensus!$A$357:$CM$399,AZ$1)","v":0},{"$f":"VLOOKUP(DropDownList!$B$47,CntyQryCensus!$A$357:$CM$399,BA$1)","v":6},{"$f":"VLOOKUP(DropDownList!$B$47,CntyQryCensus!$A$357:$CM$399,BB$1)","v":64},{"$f":"VLOOKUP(DropDownList!$B$47,CntyQryCensus!$A$357:$CM$399,BC$1)","v":0},{"$f":"VLOOKUP(DropDownList!$B$47,CntyQryCensus!$A$357:$CM$399,BD$1)","v":163},{"$f":"VLOOKUP(DropDownList!$B$47,CntyQryCensus!$A$357:$CM$399,BE$1)","v":17},{"$f":"VLOOKUP(DropDownList!$B$47,CntyQryCensus!$A$357:$CM$399,BF$1)","v":26},{"$f":"VLOOKUP(DropDownList!$B$47,CntyQryCensus!$A$357:$CM$399,BG$1)","v":36},{"$f":"VLOOKUP(DropDownList!$B$47,CntyQryCensus!$A$357:$CM$399,BH$1)","v":35},{"$f":"VLOOKUP(DropDownList!$B$47,CntyQryCensus!$A$357:$CM$399,BI$1)","v":49},{"$f":"VLOOKUP(DropDownList!$B$47,CntyQryCensus!$A$357:$CM$399,BJ$1)","v":0},{"$f":"VLOOKUP(DropDownList!$B$47,CntyQryCensus!$A$357:$CM$399,BK$1)","v":104},{"$f":"VLOOKUP(DropDownList!$B$47,CntyQryCensus!$A$357:$CM$399,BL$1)","v":50},{"$f":"VLOOKUP(DropDownList!$B$47,CntyQryCensus!$A$357:$CM$399,BM$1)","v":32},{"$f":"VLOOKUP(DropDownList!$B$47,CntyQryCensus!$A$357:$CM$399,BN$1)","v":0},{"$f":"VLOOKUP(DropDownList!$B$47,CntyQryCensus!$A$357:$CM$399,BO$1)","v":7},{"$f":"VLOOKUP(DropDownList!$B$47,CntyQryCensus!$A$357:$CM$399,BP$1)","v":0},{"$f":"VLOOKUP(DropDownList!$B$47,CntyQryCensus!$A$357:$CM$399,BQ$1)","v":15},{"$f":"VLOOKUP(DropDownList!$B$47,CntyQryCensus!$A$357:$CM$399,BR$1)","v":80},{"$f":"VLOOKUP(DropDownList!$B$47,CntyQryCensus!$A$357:$CM$399,BS$1)","v":61},{"$f":"VLOOKUP(DropDownList!$B$47,CntyQryCensus!$A$357:$CM$399,BT$1)","v":19},{"$f":"VLOOKUP(DropDownList!$B$47,CntyQryCensus!$A$357:$CM$399,BU$1)","v":0},{"$f":"VLOOKUP(DropDownList!$B$47,CntyQryCensus!$A$357:$CM$399,BV$1)","v":0},{"$f":"VLOOKUP(DropDownList!$B$47,CntyQryCensus!$A$357:$CM$399,BW$1)","v":0},{"$f":"VLOOKUP(DropDownList!$B$47,CntyQryCensus!$A$357:$CM$399,BX$1)","v":0},{"$f":"VLOOKUP(DropDownList!$B$47,CntyQryCensus!$A$357:$CM$399,BY$1)","v":21},{"$f":"VLOOKUP(DropDownList!$B$47,CntyQryCensus!$A$357:$CM$399,BZ$1)","v":21},{"$f":"VLOOKUP(DropDownList!$B$47,CntyQryCensus!$A$357:$CM$399,CA$1)","v":0},{"$f":"VLOOKUP(DropDownList!$B$47,CntyQryCensus!$A$357:$CM$399,CB$1)","v":0},{"$f":"VLOOKUP(DropDownList!$B$47,CntyQryCensus!$A$357:$CM$399,CC$1)","v":0},{"$f":"VLOOKUP(DropDownList!$B$47,CntyQryCensus!$A$357:$CM$399,CD$1)","v":0},{"$f":"VLOOKUP(DropDownList!$B$47,CntyQryCensus!$A$357:$CM$399,CE$1)","v":0},{"$f":"VLOOKUP(DropDownList!$B$47,CntyQryCensus!$A$357:$CM$399,CF$1)","v":16},{"$f":"VLOOKUP(DropDownList!$B$47,CntyQryCensus!$A$357:$CM$399,CG$1)","v":16},{"$f":"VLOOKUP(DropDownList!$B$47,CntyQryCensus!$A$357:$CM$399,CH$1)","v":0},{"$f":"VLOOKUP(DropDownList!$B$47,CntyQryCensus!$A$357:$CM$399,CI$1)","v":0},{"$f":"VLOOKUP(DropDownList!$B$47,CntyQryCensus!$A$357:$CM$399,CJ$1)","v":0},{"$f":"VLOOKUP(DropDownList!$B$47,CntyQryCensus!$A$357:$CM$399,CK$1)","v":0},{"$f":"VLOOKUP(DropDownList!$B$47,CntyQryCensus!$A$357:$CM$399,CL$1)","v":0},{"$f":"VLOOKUP(DropDownList!$B$47,CntyQryCensus!$A$357:$CM$399,CM$1)","v":0}]
[]
[]
["Census 2000 SummaryFile3 Sample Data  -  SF3TownQry8HousingCostB"]
["NAME","LOGRECNO","COUNTY","TotalPop","H74SpecOwnerOccHU","H74OOHU<10k","H74OOHU10to15k","H74OOHU15to20k","H74OOHU20to25k","H74OOHU25to30k","H74OOHU30to35k","H74OOHU35to40k","H74OOHU40to50k","H74OOHU50to60k","H74OOHU60to70k","H74OOHU70to80k","H74OOHU80to90k","H74OOHU90to100k","H74OOHU100to125k","H74OOHU125to150k","H74OOHU150to175k","H74OOHU175to200k","H74OOHU200to250k","H74OOHU250to300k","H74OOHU300to400k","H74OOHU400to500k","H74OOHU500to750k","H74OOHU750to1000k","H74OOHU1000kmore","H76OOHUMedianVal","H84OwnerOccHU","H84AllOOHU<10k","H84AllOOHU10to15k","H84AllOOHU15to20k","H84AllOOHU20to25k","H84AllOOHU25to30k","H84AllOOHU30to35k","H84AllOOHU35to40k","H84AllOOHU40to50k","H84AllOOHU50to60k","H84AllOOHU60to70k","H84AllOOHU70to80k","H84AllOOHU80to90k","H84AllOOHU90to100k","H84AllOOHU100to125k","H84AllOOHU125to150k","H84AllOOHU150to175k","H84AllOOHU175to200k","H84AllOOHU200to250k","H84AllOOHU250to300k","H84AllOOHU300to400k","H84AllOOHU400to500k","H84AllOOHU500to750k","H84AllOOHU750to1000k","H84AllOOHU1000kmore","H85OOHUMedVal","H90SOOHU","H90HUwMorgt","H90HUwMtgHC<200","H90HUwMtgHC200to300","H90HUwMtgHC300to400","H90HUwMtgHC400to500","H90HUwMtgHC500to600","H90HUwMtgHC600to700","H90HUwMtgHC700to800","H90HUwMtgHC800to900","H90HUwMtgHC900to1000","H90HUwMtgHC1000to1250","H90HUwMtgHC1250to1500","H90HUwMtgHC1500to2000","H90HUwMtgHC2000to2500","H90HUwMtgHC2500to3000","H90HUwMtgHC3000orMore","H90HUwOutMorgt","H90HUwOutMtgHC<100","H90HUwOutMtgHC100to150","H90HUwOutMtgHC150to200","H90HUwOutMtgHC200to250","H90HUwOutMtgHC250to300","H90HUwOutMtgHC300to350","H90HUwOutMtgHC350to400","H90HUwOutMtgHC400to500","H90HUwOutMtgHC500to600","H90HUwOutMtgHC600to700","H90HUwOutMtgHC700to800","H90HUwOutMtgHC800to900","H90HUwOutMtgHC900to1000","H90HUwOutMtgHC1000orMore","H91MedianOCHUwMtg","H91MedianOCHUwOutMtg","H94SpecOOHU","H94HUwMortg","H94HUwMtgHC<10pct","H94HUwMtgHC10to15pct","H94HUwMtgHC15to20pct","H94HUwMtgHC20to25pct","H94HUwMtgHC25to30pct","H94HUwMtgHC30to35pct","H94HUwMtgHC35to40pct","H94HUwMtgHC40to50pct","H94HUwMtgHC50pctOrMore","H94HUwMtgHCpctNotComp","H94HUWOutMortg","H94HUWOutMortgHC<10pct","H94HUWOutMortgHC10to15pct","H94HUWOutMortgHC15to20pct","H94HUWOutMortgHC20to25pct","H94HUWOutMortgHC25to30pct","H94HUWOutMortgHC30to35pct","H94HUWOutMortgHC35to40pct","H94HUWOutMortgHC40to50pct","H94HUWOutMortgHC50pctOrMore","H94HUWOutMortgHCpctNotComp","H97SpecifOwnOccHU","H97SOOHUInc<10k","H97SOOHUInc<10kHC<20pct","H97SOOHUInc<10kHC20to25pct","H97SOOHUInc<10kHC25to30pct","H97SOOHUInc<10kHC30to35pct","H97SOOHUInc<10kHC>35pct","H97SOOHUInc<10kHCpctNotComput","H97SOOHUInc10to20k","H97SOOHUInc10to20kHC<20pct","H97SOOHUInc10to20kHC20to25pct","H97SOOHUInc10to20kHC25to30pct","H97SOOHUInc10to20kHC30to35pct","H97SOOHUInc10to20kHC>35pct","H97SOOHUInc10to20kHCpctNotComput","H97SOOHUInc20to35k","H97SOOHUInc20to35kRC<20pct","H97SOOHUInc20to35kRC20to25pct","H97SOOHUInc20to35kRC25to30pct","H97SOOHUInc20to35kRC30to35pct","H97SOOHUInc20to35kRC>35pct","H97SOOHUInc20to35kRCpctNotComput","H97SOOHUInc35to50k","H97SOOHUInc35to50kRC<20pct","H97SOOHUInc35to50kRC20to25pct","H97SOOHUInc35to50kRC25to30pct","H97SOOHUInc35to50kRC30to35pct","H97SOOHUInc35to50kRC>35pct","H97SOOHUInc35to50kRCpctNotCompute","H97SOOHUInc50to75k","H97SOOHUInc50to75kRC<20pct","H97SOOHUInc50to75kRC20to25pct","H97SOOHUInc50to75kRC25to30pct","H97SOOHUInc50to75kRC30to35pct","H97SOOHUInc50to75kRC>35pct","H97SOOHUInc50to75kRCpctNotComput","H97SOOHUInc75to100k","H97SOOHUInc75to100kRC<20pct","H97SOOHUInc75to100kRC20to25pct","H97SOOHUInc75to100kRC25to30pct","H97SOOHUInc75to100kRC30to35pct","H97SOOHUInc75to100kRC>35pct","H97SOOHUInc75to100kRCpctNotCompute","H97SOOHUInc100to150k","H97SOOHUInc100to150kRC<20pct","H97SOOHUInc100to150kRC20to25pct","H97SOOHUInc100to150kRC25to30pct","H97SOOHUInc100to150kRC30to35pct","H97SOOHUInc100to150kRC>35pct","H97SOOHUInc100to150kRCpctNotCompute","H97SOOHUInc>150k","H97SOOHUInc>150kRC<20pct","H97SOOHUInc>150kRC20to25pct","H97SOOHUInc>150kRC25to30pct","H97SOOHUInc>150kRC30to35pct","H97SOOHUInc>150kRC>35pct","H97SOOHUInc>150kRCpctNotCompute"]
[{"$f":"VLOOKUP(DropDownList!$B$47,CntyQryCensus!$A$408:$FN$450,A$1)","v":"Allenstown"},{"$f":"VLOOKUP(DropDownList!$B$47,CntyQryCensus!$A$408:$FN$450,B$1)","v":"0002575"},{"$f":"VLOOKUP(DropDownList!$B$47,CntyQryCensus!$A$408:$FN$450,C$1)","v":"00660"},{"$f":"VLOOKUP(DropDownList!$B$47,CntyQryCensus!$A$408:$FN$450,D$1)","v":4843},{"$f":"VLOOKUP(DropDownList!$B$47,CntyQryCensus!$A$408:$FN$450,E$1)","v":735},{"$f":"VLOOKUP(DropDownList!$B$47,CntyQryCensus!$A$408:$FN$450,F$1)","v":0},{"$f":"VLOOKUP(DropDownList!$B$47,CntyQryCensus!$A$408:$FN$450,G$1)","v":7},{"$f":"VLOOKUP(DropDownList!$B$47,CntyQryCensus!$A$408:$FN$450,H$1)","v":0},{"$f":"VLOOKUP(DropDownList!$B$47,CntyQryCensus!$A$408:$FN$450,I$1)","v":0},{"$f":"VLOOKUP(DropDownList!$B$47,CntyQryCensus!$A$408:$FN$450,J$1)","v":0},{"$f":"VLOOKUP(DropDownList!$B$47,CntyQryCensus!$A$408:$FN$450,K$1)","v":0},{"$f":"VLOOKUP(DropDownList!$B$47,CntyQryCensus!$A$408:$FN$450,L$1)","v":0},{"$f":"VLOOKUP(DropDownList!$B$47,CntyQryCensus!$A$408:$FN$450,M$1)","v":7},{"$f":"VLOOKUP(DropDownList!$B$47,CntyQryCensus!$A$408:$FN$450,N$1)","v":7},{"$f":"VLOOKUP(DropDownList!$B$47,CntyQryCensus!$A$408:$FN$450,O$1)","v":33},{"$f":"VLOOKUP(DropDownList!$B$47,CntyQryCensus!$A$408:$FN$450,P$1)","v":84},{"$f":"VLOOKUP(DropDownList!$B$47,CntyQryCensus!$A$408:$FN$450,Q$1)","v":94},{"$f":"VLOOKUP(DropDownList!$B$47,CntyQryCensus!$A$408:$FN$450,R$1)","v":172},{"$f":"VLOOKUP(DropDownList!$B$47,CntyQryCensus!$A$408:$FN$450,S$1)","v":225},{"$f":"VLOOKUP(DropDownList!$B$47,CntyQryCensus!$A$408:$FN$450,T$1)","v":22},{"$f":"VLOOKUP(DropDownList!$B$47,CntyQryCensus!$A$408:$FN$450,U$1)","v":28},{"$f":"VLOOKUP(DropDownList!$B$47,CntyQryCensus!$A$408:$FN$450,V$1)","v":35},{"$f":"VLOOKUP(DropDownList!$B$47,CntyQryCensus!$A$408:$FN$450,W$1)","v":15},{"$f":"VLOOKUP(DropDownList!$B$47,CntyQryCensus!$A$408:$FN$450,X$1)","v":6},{"$f":"VLOOKUP(DropDownList!$B$47,CntyQryCensus!$A$408:$FN$450,Y$1)","v":0},{"$f":"VLOOKUP(DropDownList!$B$47,CntyQryCensus!$A$408:$FN$450,Z$1)","v":0},{"$f":"VLOOKUP(DropDownList!$B$47,CntyQryCensus!$A$408:$FN$450,AA$1)","v":0},{"$f":"VLOOKUP(DropDownList!$B$47,CntyQryCensus!$A$408:$FN$450,AB$1)","v":0},{"$f":"VLOOKUP(DropDownList!$B$47,CntyQryCensus!$A$408:$FN$450,AC$1)","v":0},{"$f":"VLOOKUP(DropDownList!$B$47,CntyQryCensus!$A$408:$FN$450,AD$1)","v":97900},{"$f":"VLOOKUP(DropDownList!$B$47,CntyQryCensus!$A$408:$FN$450,AE$1)","v":1356},{"$f":"VLOOKUP(DropDownList!$B$47,CntyQryCensus!$A$408:$FN$450,AF$1)","v":92},{"$f":"VLOOKUP(DropDownList!$B$47,CntyQryCensus!$A$408:$FN$450,AG$1)","v":62},{"$f":"VLOOKUP(DropDownList!$B$47,CntyQryCensus!$A$408:$FN$450,AH$1)","v":109},{"$f":"VLOOKUP(DropDownList!$B$47,CntyQryCensus!$A$408:$FN$450,AI$1)","v":66},{"$f":"VLOOKUP(DropDownList!$B$47,CntyQryCensus!$A$408:$FN$450,AJ$1)","v":57},{"$f":"VLOOKUP(DropDownList!$B$47,CntyQryCensus!$A$408:$FN$450,AK$1)","v":59},{"$f":"VLOOKUP(DropDownList!$B$47,CntyQryCensus!$A$408:$FN$450,AL$1)","v":43},{"$f":"VLOOKUP(DropDownList!$B$47,CntyQryCensus!$A$408:$FN$450,AM$1)","v":17},{"$f":"VLOOKUP(DropDownList!$B$47,CntyQryCensus!$A$408:$FN$450,AN$1)","v":27},{"$f":"VLOOKUP(DropDownList!$B$47,CntyQryCensus!$A$408:$FN$450,AO$1)","v":73},{"$f":"VLOOKUP(DropDownList!$B$47,CntyQryCensus!$A$408:$FN$450,AP$1)","v":93},{"$f":"VLOOKUP(DropDownList!$B$47,CntyQryCensus!$A$408:$FN$450,AQ$1)","v":94},{"$f":"VLOOKUP(DropDownList!$B$47,CntyQryCensus!$A$408:$FN$450,AR$1)","v":172},{"$f":"VLOOKUP(DropDownList!$B$47,CntyQryCensus!$A$408:$FN$450,AS$1)","v":264},{"$f":"VLOOKUP(DropDownList!$B$47,CntyQryCensus!$A$408:$FN$450,AT$1)","v":36},{"$f":"VLOOKUP(DropDownList!$B$47,CntyQryCensus!$A$408:$FN$450,AU$1)","v":36},{"$f":"VLOOKUP(DropDownList!$B$47,CntyQryCensus!$A$408:$FN$450,AV$1)","v":35},{"$f":"VLOOKUP(DropDownList!$B$47,CntyQryCensus!$A$408:$FN$450,AW$1)","v":15},{"$f":"VLOOKUP(DropDownList!$B$47,CntyQryCensus!$A$408:$FN$450,AX$1)","v":6},{"$f":"VLOOKUP(DropDownList!$B$47,CntyQryCensus!$A$408:$FN$450,AY$1)","v":0},{"$f":"VLOOKUP(DropDownList!$B$47,CntyQryCensus!$A$408:$FN$450,AZ$1)","v":0},{"$f":"VLOOKUP(DropDownList!$B$47,CntyQryCensus!$A$408:$FN$450,BA$1)","v":0},{"$f":"VLOOKUP(DropDownList!$B$47,CntyQryCensus!$A$408:$FN$450,BB$1)","v":0},{"$f":"VLOOKUP(DropDownList!$B$47,CntyQryCensus!$A$408:$FN$450,BC$1)","v":0},{"$f":"VLOOKUP(DropDownList!$B$47,CntyQryCensus!$A$408:$FN$450,BD$1)","v":77800},{"$f":"VLOOKUP(DropDownList!$B$47,CntyQryCensus!$A$408:$FN$450,BE$1)","v":735},{"$f":"VLOOKUP(DropDownList!$B$47,CntyQryCensus!$A$408:$FN$450,BF$1)","v":510},{"$f":"VLOOKUP(DropDownList!$B$47,CntyQryCensus!$A$408:$FN$450,BG$1)","v":0},{"$f":"VLOOKUP(DropDownList!$B$47,CntyQryCensus!$A$408:$FN$450,BH$1)","v":0},{"$f":"VLOOKUP(DropDownList!$B$47,CntyQryCensus!$A$408:$FN$450,BI$1)","v":0},{"$f":"VLOOKUP(DropDownList!$B$47,CntyQryCensus!$A$408:$FN$450,BJ$1)","v":7},{"$f":"VLOOKUP(DropDownList!$B$47,CntyQryCensus!$A$408:$FN$450,BK$1)","v":13},{"$f":"VLOOKUP(DropDownList!$B$47,CntyQryCensus!$A$408:$FN$450,BL$1)","v":28},{"$f":"VLOOKUP(DropDownList!$B$47,CntyQryCensus!$A$408:$FN$450,BM$1)","v":70},{"$f":"VLOOKUP(DropDownList!$B$47,CntyQryCensus!$A$408:$FN$450,BN$1)","v":60},{"$f":"VLOOKUP(DropDownList!$B$47,CntyQryCensus!$A$408:$FN$450,BO$1)","v":49},{"$f":"VLOOKUP(DropDownList!$B$47,CntyQryCensus!$A$408:$FN$450,BP$1)","v":170},{"$f":"VLOOKUP(DropDownList!$B$47,CntyQryCensus!$A$408:$FN$450,BQ$1)","v":80},{"$f":"VLOOKUP(DropDownList!$B$47,CntyQryCensus!$A$408:$FN$450,BR$1)","v":26},{"$f":"VLOOKUP(DropDownList!$B$47,CntyQryCensus!$A$408:$FN$450,BS$1)","v":0},{"$f":"VLOOKUP(DropDownList!$B$47,CntyQryCensus!$A$408:$FN$450,BT$1)","v":7},{"$f":"VLOOKUP(DropDownList!$B$47,CntyQryCensus!$A$408:$FN$450,BU$1)","v":0},{"$f":"VLOOKUP(DropDownList!$B$47,CntyQryCensus!$A$408:$FN$450,BV$1)","v":225},{"$f":"VLOOKUP(DropDownList!$B$47,CntyQryCensus!$A$408:$FN$450,BW$1)","v":0},{"$f":"VLOOKUP(DropDownList!$B$47,CntyQryCensus!$A$408:$FN$450,BX$1)","v":0},{"$f":"VLOOKUP(DropDownList!$B$47,CntyQryCensus!$A$408:$FN$450,BY$1)","v":0},{"$f":"VLOOKUP(DropDownList!$B$47,CntyQryCensus!$A$408:$FN$450,BZ$1)","v":0},{"$f":"VLOOKUP(DropDownList!$B$47,CntyQryCensus!$A$408:$FN$450,CA$1)","v":18},{"$f":"VLOOKUP(DropDownList!$B$47,CntyQryCensus!$A$408:$FN$450,CB$1)","v":33},{"$f":"VLOOKUP(DropDownList!$B$47,CntyQryCensus!$A$408:$FN$450,CC$1)","v":57},{"$f":"VLOOKUP(DropDownList!$B$47,CntyQryCensus!$A$408:$FN$450,CD$1)","v":48},{"$f":"VLOOKUP(DropDownList!$B$47,CntyQryCensus!$A$408:$FN$450,CE$1)","v":42},{"$f":"VLOOKUP(DropDownList!$B$47,CntyQryCensus!$A$408:$FN$450,CF$1)","v":15},{"$f":"VLOOKUP(DropDownList!$B$47,CntyQryCensus!$A$408:$FN$450,CG$1)","v":6},{"$f":"VLOOKUP(DropDownList!$B$47,CntyQryCensus!$A$408:$FN$450,CH$1)","v":6},{"$f":"VLOOKUP(DropDownList!$B$47,CntyQryCensus!$A$408:$FN$450,CI$1)","v":0},{"$f":"VLOOKUP(DropDownList!$B$47,CntyQryCensus!$A$408:$FN$450,CJ$1)","v":0},{"$f":"VLOOKUP(DropDownList!$B$47,CntyQryCensus!$A$408:$FN$450,CK$1)","v":1041},{"$f":"VLOOKUP(DropDownList!$B$47,CntyQryCensus!$A$408:$FN$450,CL$1)","v":409},{"$f":"VLOOKUP(DropDownList!$B$47,CntyQryCensus!$A$408:$FN$450,CM$1)","v":735},{"$f":"VLOOKUP(DropDownList!$B$47,CntyQryCensus!$A$408:$FN$450,CN$1)","v":510},{"$f":"VLOOKUP(DropDownList!$B$47,CntyQryCensus!$A$408:$FN$450,CO$1)","v":13},{"$f":"VLOOKUP(DropDownList!$B$47,CntyQryCensus!$A$408:$FN$450,CP$1)","v":70},{"$f":"VLOOKUP(DropDownList!$B$47,CntyQryCensus!$A$408:$FN$450,CQ$1)","v":166},{"$f":"VLOOKUP(DropDownList!$B$47,CntyQryCensus!$A$408:$FN$450,CR$1)","v":98},{"$f":"VLOOKUP(DropDownList!$B$47,CntyQryCensus!$A$408:$FN$450,CS$1)","v":57},{"$f":"VLOOKUP(DropDownList!$B$47,CntyQryCensus!$A$408:$FN$450,CT$1)","v":35},{"$f":"VLOOKUP(DropDownList!$B$47,CntyQryCensus!$A$408:$FN$450,CU$1)","v":14},{"$f":"VLOOKUP(DropDownList!$B$47,CntyQryCensus!$A$408:$FN$450,CV$1)","v":19},{"$f":"VLOOKUP(DropDownList!$B$47,CntyQryCensus!$A$408:$FN$450,CW$1)","v":38},{"$f":"VLOOKUP(DropDownList!$B$47,CntyQryCensus!$A$408:$FN$450,CX$1)","v":0},{"$f":"VLOOKUP(DropDownList!$B$47,CntyQryCensus!$A$408:$FN$450,CY$1)","v":225},{"$f":"VLOOKUP(DropDownList!$B$47,CntyQryCensus!$A$408:$FN$450,CZ$1)","v":77},{"$f":"VLOOKUP(DropDownList!$B$47,CntyQryCensus!$A$408:$FN$450,DA$1)","v":41},{"$f":"VLOOKUP(DropDownList!$B$47,CntyQryCensus!$A$408:$FN$450,DB$1)","v":48},{"$f":"VLOOKUP(DropDownList!$B$47,CntyQryCensus!$A$408:$FN$450,DC$1)","v":27},{"$f":"VLOOKUP(DropDownList!$B$47,CntyQryCensus!$A$408:$FN$450,DD$1)","v":6},{"$f":"VLOOKUP(DropDownList!$B$47,CntyQryCensus!$A$408:$FN$450,DE$1)","v":13},{"$f":"VLOOKUP(DropDownList!$B$47,CntyQryCensus!$A$408:$FN$450,DF$1)","v":6},{"$f":"VLOOKUP(DropDownList!$B$47,CntyQryCensus!$A$408:$FN$450,DG$1)","v":0},{"$f":"VLOOKUP(DropDownList!$B$47,CntyQryCensus!$A$408:$FN$450,DH$1)","v":7},{"$f":"VLOOKUP(DropDownList!$B$47,CntyQryCensus!$A$408:$FN$450,DI$1)","v":0},{"$f":"VLOOKUP(DropDownList!$B$47,CntyQryCensus!$A$408:$FN$450,DJ$1)","v":735},{"$f":"VLOOKUP(DropDownList!$B$47,CntyQryCensus!$A$408:$FN$450,DK$1)","v":9},{"$f":"VLOOKUP(DropDownList!$B$47,CntyQryCensus!$A$408:$FN$450,DL$1)","v":0},{"$f":"VLOOKUP(DropDownList!$B$47,CntyQryCensus!$A$408:$FN$450,DM$1)","v":0},{"$f":"VLOOKUP(DropDownList!$B$47,CntyQryCensus!$A$408:$FN$450,DN$1)","v":0},{"$f":"VLOOKUP(DropDownList!$B$47,CntyQryCensus!$A$408:$FN$450,DO$1)","v":0},{"$f":"VLOOKUP(DropDownList!$B$47,CntyQryCensus!$A$408:$FN$450,DP$1)","v":9},{"$f":"VLOOKUP(DropDownList!$B$47,CntyQryCensus!$A$408:$FN$450,DQ$1)","v":0},{"$f":"VLOOKUP(DropDownList!$B$47,CntyQryCensus!$A$408:$FN$450,DR$1)","v":45},{"$f":"VLOOKUP(DropDownList!$B$47,CntyQryCensus!$A$408:$FN$450,DS$1)","v":0},{"$f":"VLOOKUP(DropDownList!$B$47,CntyQryCensus!$A$408:$FN$450,DT$1)","v":13},{"$f":"VLOOKUP(DropDownList!$B$47,CntyQryCensus!$A$408:$FN$450,DU$1)","v":6},{"$f":"VLOOKUP(DropDownList!$B$47,CntyQryCensus!$A$408:$FN$450,DV$1)","v":13},{"$f":"VLOOKUP(DropDownList!$B$47,CntyQryCensus!$A$408:$FN$450,DW$1)","v":13},{"$f":"VLOOKUP(DropDownList!$B$47,CntyQryCensus!$A$408:$FN$450,DX$1)","v":0},{"$f":"VLOOKUP(DropDownList!$B$47,CntyQryCensus!$A$408:$FN$450,DY$1)","v":116},{"$f":"VLOOKUP(DropDownList!$B$47,CntyQryCensus!$A$408:$FN$450,DZ$1)","v":52},{"$f":"VLOOKUP(DropDownList!$B$47,CntyQryCensus!$A$408:$FN$450,EA$1)","v":8},{"$f":"VLOOKUP(DropDownList!$B$47,CntyQryCensus!$A$408:$FN$450,EB$1)","v":7},{"$f":"VLOOKUP(DropDownList!$B$47,CntyQryCensus!$A$408:$FN$450,EC$1)","v":0},{"$f":"VLOOKUP(DropDownList!$B$47,CntyQryCensus!$A$408:$FN$450,ED$1)","v":49},{"$f":"VLOOKUP(DropDownList!$B$47,CntyQryCensus!$A$408:$FN$450,EE$1)","v":0},{"$f":"VLOOKUP(DropDownList!$B$47,CntyQryCensus!$A$408:$FN$450,EF$1)","v":124},{"$f":"VLOOKUP(DropDownList!$B$47,CntyQryCensus!$A$408:$FN$450,EG$1)","v":41},{"$f":"VLOOKUP(DropDownList!$B$47,CntyQryCensus!$A$408:$FN$450,EH$1)","v":24},{"$f":"VLOOKUP(DropDownList!$B$47,CntyQryCensus!$A$408:$FN$450,EI$1)","v":18},{"$f":"VLOOKUP(DropDownList!$B$47,CntyQryCensus!$A$408:$FN$450,EJ$1)","v":28},{"$f":"VLOOKUP(DropDownList!$B$47,CntyQryCensus!$A$408:$FN$450,EK$1)","v":13},{"$f":"VLOOKUP(DropDownList!$B$47,CntyQryCensus!$A$408:$FN$450,EL$1)","v":0},{"$f":"VLOOKUP(DropDownList!$B$47,CntyQryCensus!$A$408:$FN$450,EM$1)","v":247},{"$f":"VLOOKUP(DropDownList!$B$47,CntyQryCensus!$A$408:$FN$450,EN$1)","v":149},{"$f":"VLOOKUP(DropDownList!$B$47,CntyQryCensus!$A$408:$FN$450,EO$1)","v":66},{"$f":"VLOOKUP(DropDownList!$B$47,CntyQryCensus!$A$408:$FN$450,EP$1)","v":32},{"$f":"VLOOKUP(DropDownList!$B$47,CntyQryCensus!$A$408:$FN$450,EQ$1)","v":0},{"$f":"VLOOKUP(DropDownList!$B$47,CntyQryCensus!$A$408:$FN$450,ER$1)","v":0},{"$f":"VLOOKUP(DropDownList!$B$47,CntyQryCensus!$A$408:$FN$450,ES$1)","v":0},{"$f":"VLOOKUP(DropDownList!$B$47,CntyQryCensus!$A$408:$FN$450,ET$1)","v":105},{"$f":"VLOOKUP(DropDownList!$B$47,CntyQryCensus!$A$408:$FN$450,EU$1)","v":91},{"$f":"VLOOKUP(DropDownList!$B$47,CntyQryCensus!$A$408:$FN$450,EV$1)","v":14},{"$f":"VLOOKUP(DropDownList!$B$47,CntyQryCensus!$A$408:$FN$450,EW$1)","v":0},{"$f":"VLOOKUP(DropDownList!$B$47,CntyQryCensus!$A$408:$FN$450,EX$1)","v":0},{"$f":"VLOOKUP(DropDownList!$B$47,CntyQryCensus!$A$408:$FN$450,EY$1)","v":0},{"$f":"VLOOKUP(DropDownList!$B$47,CntyQryCensus!$A$408:$FN$450,EZ$1)","v":0},{"$f":"VLOOKUP(DropDownList!$B$47,CntyQryCensus!$A$408:$FN$450,FA$1)","v":89},{"$f":"VLOOKUP(DropDownList!$B$47,CntyQryCensus!$A$408:$FN$450,FB$1)","v":82},{"$f":"VLOOKUP(DropDownList!$B$47,CntyQryCensus!$A$408:$FN$450,FC$1)","v":0},{"$f":"VLOOKUP(DropDownList!$B$47,CntyQryCensus!$A$408:$FN$450,FD$1)","v":0},{"$f":"VLOOKUP(DropDownList!$B$47,CntyQryCensus!$A$408:$FN$450,FE$1)","v":7},{"$f":"VLOOKUP(DropDownList!$B$47,CntyQryCensus!$A$408:$FN$450,FF$1)","v":0},{"$f":"VLOOKUP(DropDownList!$B$47,CntyQryCensus!$A$408:$FN$450,FG$1)","v":0},{"$f":"VLOOKUP(DropDownList!$B$47,CntyQryCensus!$A$408:$FN$450,FH$1)","v":0},{"$f":"VLOOKUP(DropDownList!$B$47,CntyQryCensus!$A$408:$FN$450,FI$1)","v":0},{"$f":"VLOOKUP(DropDownList!$B$47,CntyQryCensus!$A$408:$FN$450,FJ$1)","v":0},{"$f":"VLOOKUP(DropDownList!$B$47,CntyQryCensus!$A$408:$FN$450,FK$1)","v":0},{"$f":"VLOOKUP(DropDownList!$B$47,CntyQryCensus!$A$408:$FN$450,FL$1)","v":0},{"$f":"VLOOKUP(DropDownList!$B$47,CntyQryCensus!$A$408:$FN$450,FM$1)","v":0},{"$f":"VLOOKUP(DropDownList!$B$47,CntyQryCensus!$A$408:$FN$450,FN$1)","v":0}]
[]
[]
["Census 2000 SummaryFile3 Sample Data  -  SF3TownQry9HHIncomeByTenure"]
["NAME","LOGRECNO","COUNTY","TotalPop","HCT11OccHU","HCT11OwnOccHU","HCT11OOHUInc<5K","HCT11OOHUInc5to10K","HCT11OOHUInc10to15K","HCT11OOHUInc15to20K","HCT11OOHUInc20to25K","HCT11OOHUInc25to35K","HCT11OOHUInc35to50K","HCT11OOHUInc50to75K","HCT11OOHUInc75to100K","HCT11OOHUInc100to150K","HCT11OOHUInc>150K","HCT11RentOccHU","HCT11ROHUInc<5K","HCT11ROHUInc5to10K","HCT11ROHUInc10to15K","HCT11ROHUInc15to20K","HCT11ROHUInc20to25K","HCT11ROHUInc25to35K","HCT11ROHUInc35to50K","HCT11ROHUInc50to75K","HCT11ROHUInc75to100K","HCT11ROHUInc100to150K","HCT11ROHUInc>150K","HCT12MedHHInc","HCT12MedOwnOccHHInc","HCT12MedRentOccHHInc","Summary Level"]
[{"$f":"VLOOKUP(DropDownList!$B$47,CntyQryCensus!$A$459:$AG$501,A$1)","v":"Allenstown"},{"$f":"VLOOKUP(DropDownList!$B$47,CntyQryCensus!$A$459:$AG$501,B$1)","v":"0002575"},{"$f":"VLOOKUP(DropDownList!$B$47,CntyQryCensus!$A$459:$AG$501,C$1)","v":"00660"},{"$f":"VLOOKUP(DropDownList!$B$47,CntyQryCensus!$A$459:$AG$501,D$1)","v":"Allenstown town"},{"$f":"VLOOKUP(DropDownList!$B$47,CntyQryCensus!$A$459:$AG$501,E$1)","v":"013"},{"$f":"VLOOKUP(DropDownList!$B$47,CntyQryCensus!$A$459:$AG$501,F$1)","v":4843},{"$f":"VLOOKUP(DropDownList!$B$47,CntyQryCensus!$A$459:$AG$501,G$1)","v":1902},{"$f":"VLOOKUP(DropDownList!$B$47,CntyQryCensus!$A$459:$AG$501,H$1)","v":1356},{"$f":"VLOOKUP(DropDownList!$B$47,CntyQryCensus!$A$459:$AG$501,I$1)","v":6},{"$f":"VLOOKUP(DropDownList!$B$47,CntyQryCensus!$A$459:$AG$501,J$1)","v":41},{"$f":"VLOOKUP(DropDownList!$B$47,CntyQryCensus!$A$459:$AG$501,K$1)","v":59},{"$f":"VLOOKUP(DropDownList!$B$47,CntyQryCensus!$A$459:$AG$501,L$1)","v":61},{"$f":"VLOOKUP(DropDownList!$B$47,CntyQryCensus!$A$459:$AG$501,M$1)","v":57},{"$f":"VLOOKUP(DropDownList!$B$47,CntyQryCensus!$A$459:$AG$501,N$1)","v":186},{"$f":"VLOOKUP(DropDownList!$B$47,CntyQryCensus!$A$459:$AG$501,O$1)","v":278},{"$f":"VLOOKUP(DropDownList!$B$47,CntyQryCensus!$A$459:$AG$501,P$1)","v":416},{"$f":"VLOOKUP(DropDownList!$B$47,CntyQryCensus!$A$459:$AG$501,Q$1)","v":141},{"$f":"VLOOKUP(DropDownList!$B$47,CntyQryCensus!$A$459:$AG$501,R$1)","v":103},{"$f":"VLOOKUP(DropDownList!$B$47,CntyQryCensus!$A$459:$AG$501,S$1)","v":8},{"$f":"VLOOKUP(DropDownList!$B$47,CntyQryCensus!$A$459:$AG$501,T$1)","v":546},{"$f":"VLOOKUP(DropDownList!$B$47,CntyQryCensus!$A$459:$AG$501,U$1)","v":7},{"$f":"VLOOKUP(DropDownList!$B$47,CntyQryCensus!$A$459:$AG$501,V$1)","v":75},{"$f":"VLOOKUP(DropDownList!$B$47,CntyQryCensus!$A$459:$AG$501,W$1)","v":44},{"$f":"VLOOKUP(DropDownList!$B$47,CntyQryCensus!$A$459:$AG$501,X$1)","v":26},{"$f":"VLOOKUP(DropDownList!$B$47,CntyQryCensus!$A$459:$AG$501,Y$1)","v":64},{"$f":"VLOOKUP(DropDownList!$B$47,CntyQryCensus!$A$459:$AG$501,Z$1)","v":109},{"$f":"VLOOKUP(DropDownList!$B$47,CntyQryCensus!$A$459:$AG$501,AA$1)","v":104},{"$f":"VLOOKUP(DropDownList!$B$47,CntyQryCensus!$A$459:$AG$501,AB$1)","v":80},{"$f":"VLOOKUP(DropDownList!$B$47,CntyQryCensus!$A$459:$AG$501,AC$1)","v":21},{"$f":"VLOOKUP(DropDownList!$B$47,CntyQryCensus!$A$459:$AG$501,AD$1)","v":16},{"$f":"VLOOKUP(DropDownList!$B$47,CntyQryCensus!$A$459:$AG$501,AE$1)","v":0},{"$f":"VLOOKUP(DropDownList!$B$47,CntyQryCensus!$A$459:$AG$501,AF$1)","v":41875},{"$f":"VLOOKUP(DropDownList!$B$47,CntyQryCensus!$A$459:$AG$501,AG$1)","v":49138}]
[]
[]
[]
[]
[]
[{"$f":"VLOOKUP(DropDownList!$B$47,CntyQryCensus!$A$510:$DA$552,A$1)","v":"Allenstown"}]
[]
[]
[]
[]
[]
[]
[]
["Census 2000 SummaryFile3 Sample Data - SF3TownQry10Disabil"]
["NAME","LOGRECNO","COUNTY","TotalPop","PCT026001-NonInstPop5yrs+","PCT026002-MaleNonInstPop5yrs+","PCT026003","PCT026004","PCT026005","PCT026006","PCT026007","PCT026008","PCT026009","PCT026010","PCT026011","PCT026012","PCT026013","PCT026014","PCT026015","PCT026016","PCT026017","PCT026018","PCT026019","PCT026020","PCT026021","PCT026022","PCT026023","PCT026024","PCT026025","PCT026026","PCT026027","PCT026028","PCT026029","PCT026030","PCT026031","PCT026032","PCT026033","PCT026034","PCT026035","PCT026036","PCT026037","PCT026038","PCT026039","PCT026040","PCT026041","PCT026042","PCT026043","PCT026044","PCT026045","PCT026046","PCT026047","PCT026048","PCT026049","PCT026050","PCT026051","PCT026052","PCT026053","PCT026054","PCT026055","PCT026056","PCT026057","PCT026058","PCT026059","PCT026060","PCT026061","PCT026062","PCT026063","PCT026064","PCT026065","PCT026066","PCT026067","PCT026068","PCT026069","PCT026070","PCT026071","PCT026072","PCT026073","PCT026074","PCT026075","PCT026076","PCT026077","PCT026078","PCT026079","PCT026080","PCT026081","PCT026082","PCT026083","PCT026084","PCT026085","PCT026086","PCT026087","PCT026088","PCT026089","PCT026090","PCT026091","PCT026092","PCT026093","PCT026094","PCT026095","PCT026096","PCT026097","PCT026098","PCT026099","PCT026100","PCT026101"]
[{"$f":"VLOOKUP(DropDownList!$B$47,CntyQryCensus!$A$510:$DA$552,A$1)","v":"Allenstown"},{"$f":"VLOOKUP(DropDownList!$B$47,CntyQryCensus!$A$510:$DA$552,B$1)","v":"0002575"},{"$f":"VLOOKUP(DropDownList!$B$47,CntyQryCensus!$A$510:$DA$552,C$1)","v":"00660"},{"$f":"VLOOKUP(DropDownList!$B$47,CntyQryCensus!$A$510:$DA$552,D$1)","v":4843},{"$f":"VLOOKUP(DropDownList!$B$47,CntyQryCensus!$A$510:$DA$552,E$1)","v":4497},{"$f":"VLOOKUP(DropDownList!$B$47,CntyQryCensus!$A$510:$DA$552,F$1)","v":2142},{"$f":"VLOOKUP(DropDownList!$B$47,CntyQryCensus!$A$510:$DA$552,G$1)","v":429},{"$f":"VLOOKUP(DropDownList!$B$47,CntyQryCensus!$A$510:$DA$552,H$1)","v":52},{"$f":"VLOOKUP(DropDownList!$B$47,CntyQryCensus!$A$510:$DA$552,I$1)","v":9},{"$f":"VLOOKUP(DropDownList!$B$47,CntyQryCensus!$A$510:$DA$552,J$1)","v":0},{"$f":"VLOOKUP(DropDownList!$B$47,CntyQryCensus!$A$510:$DA$552,K$1)","v":43},{"$f":"VLOOKUP(DropDownList!$B$47,CntyQryCensus!$A$510:$DA$552,L$1)","v":0},{"$f":"VLOOKUP(DropDownList!$B$47,CntyQryCensus!$A$510:$DA$552,M$1)","v":13},{"$f":"VLOOKUP(DropDownList!$B$47,CntyQryCensus!$A$510:$DA$552,N$1)","v":7},{"$f":"VLOOKUP(DropDownList!$B$47,CntyQryCensus!$A$510:$DA$552,O$1)","v":6},{"$f":"VLOOKUP(DropDownList!$B$47,CntyQryCensus!$A$510:$DA$552,P$1)","v":364},{"$f":"VLOOKUP(DropDownList!$B$47,CntyQryCensus!$A$510:$DA$552,Q$1)","v":133},{"$f":"VLOOKUP(DropDownList!$B$47,CntyQryCensus!$A$510:$DA$552,R$1)","v":8},{"$f":"VLOOKUP(DropDownList!$B$47,CntyQryCensus!$A$510:$DA$552,S$1)","v":5},{"$f":"VLOOKUP(DropDownList!$B$47,CntyQryCensus!$A$510:$DA$552,T$1)","v":0},{"$f":"VLOOKUP(DropDownList!$B$47,CntyQryCensus!$A$510:$DA$552,U$1)","v":0},{"$f":"VLOOKUP(DropDownList!$B$47,CntyQryCensus!$A$510:$DA$552,V$1)","v":0},{"$f":"VLOOKUP(DropDownList!$B$47,CntyQryCensus!$A$510:$DA$552,W$1)","v":0},{"$f":"VLOOKUP(DropDownList!$B$47,CntyQryCensus!$A$510:$DA$552,X$1)","v":3},{"$f":"VLOOKUP(DropDownList!$B$47,CntyQryCensus!$A$510:$DA$552,Y$1)","v":0},{"$f":"VLOOKUP(DropDownList!$B$47,CntyQryCensus!$A$510:$DA$552,Z$1)","v":0},{"$f":"VLOOKUP(DropDownList!$B$47,CntyQryCensus!$A$510:$DA$552,AA$1)","v":0},{"$f":"VLOOKUP(DropDownList!$B$47,CntyQryCensus!$A$510:$DA$552,AB$1)","v":0},{"$f":"VLOOKUP(DropDownList!$B$47,CntyQryCensus!$A$510:$DA$552,AC$1)","v":0},{"$f":"VLOOKUP(DropDownList!$B$47,CntyQryCensus!$A$510:$DA$552,AD$1)","v":125},{"$f":"VLOOKUP(DropDownList!$B$47,CntyQryCensus!$A$510:$DA$552,AE$1)","v":1401},{"$f":"VLOOKUP(DropDownList!$B$47,CntyQryCensus!$A$510:$DA$552,AF$1)","v":129},{"$f":"VLOOKUP(DropDownList!$B$47,CntyQryCensus!$A$510:$DA$552,AG$1)","v":30},{"$f":"VLOOKUP(DropDownList!$B$47,CntyQryCensus!$A$510:$DA$552,AH$1)","v":18},{"$f":"VLOOKUP(DropDownList!$B$47,CntyQryCensus!$A$510:$DA$552,AI$1)","v":0},{"$f":"VLOOKUP(DropDownList!$B$47,CntyQryCensus!$A$510:$DA$552,AJ$1)","v":0},{"$f":"VLOOKUP(DropDownList!$B$47,CntyQryCensus!$A$510:$DA$552,AK$1)","v":0},{"$f":"VLOOKUP(DropDownList!$B$47,CntyQryCensus!$A$510:$DA$552,AL$1)","v":81},{"$f":"VLOOKUP(DropDownList!$B$47,CntyQryCensus!$A$510:$DA$552,AM$1)","v":165},{"$f":"VLOOKUP(DropDownList!$B$47,CntyQryCensus!$A$510:$DA$552,AN$1)","v":3},{"$f":"VLOOKUP(DropDownList!$B$47,CntyQryCensus!$A$510:$DA$552,AO$1)","v":162},{"$f":"VLOOKUP(DropDownList!$B$47,CntyQryCensus!$A$510:$DA$552,AP$1)","v":46},{"$f":"VLOOKUP(DropDownList!$B$47,CntyQryCensus!$A$510:$DA$552,AQ$1)","v":116},{"$f":"VLOOKUP(DropDownList!$B$47,CntyQryCensus!$A$510:$DA$552,AR$1)","v":1107},{"$f":"VLOOKUP(DropDownList!$B$47,CntyQryCensus!$A$510:$DA$552,AS$1)","v":179},{"$f":"VLOOKUP(DropDownList!$B$47,CntyQryCensus!$A$510:$DA$552,AT$1)","v":7},{"$f":"VLOOKUP(DropDownList!$B$47,CntyQryCensus!$A$510:$DA$552,AU$1)","v":0},{"$f":"VLOOKUP(DropDownList!$B$47,CntyQryCensus!$A$510:$DA$552,AV$1)","v":7},{"$f":"VLOOKUP(DropDownList!$B$47,CntyQryCensus!$A$510:$DA$552,AW$1)","v":0},{"$f":"VLOOKUP(DropDownList!$B$47,CntyQryCensus!$A$510:$DA$552,AX$1)","v":0},{"$f":"VLOOKUP(DropDownList!$B$47,CntyQryCensus!$A$510:$DA$552,AY$1)","v":0},{"$f":"VLOOKUP(DropDownList!$B$47,CntyQryCensus!$A$510:$DA$552,AZ$1)","v":57},{"$f":"VLOOKUP(DropDownList!$B$47,CntyQryCensus!$A$510:$DA$552,BA$1)","v":41},{"$f":"VLOOKUP(DropDownList!$B$47,CntyQryCensus!$A$510:$DA$552,BB$1)","v":16},{"$f":"VLOOKUP(DropDownList!$B$47,CntyQryCensus!$A$510:$DA$552,BC$1)","v":115},{"$f":"VLOOKUP(DropDownList!$B$47,CntyQryCensus!$A$510:$DA$552,BD$1)","v":2355},{"$f":"VLOOKUP(DropDownList!$B$47,CntyQryCensus!$A$510:$DA$552,BE$1)","v":453},{"$f":"VLOOKUP(DropDownList!$B$47,CntyQryCensus!$A$510:$DA$552,BF$1)","v":39},{"$f":"VLOOKUP(DropDownList!$B$47,CntyQryCensus!$A$510:$DA$552,BG$1)","v":7},{"$f":"VLOOKUP(DropDownList!$B$47,CntyQryCensus!$A$510:$DA$552,BH$1)","v":0},{"$f":"VLOOKUP(DropDownList!$B$47,CntyQryCensus!$A$510:$DA$552,BI$1)","v":32},{"$f":"VLOOKUP(DropDownList!$B$47,CntyQryCensus!$A$510:$DA$552,BJ$1)","v":0},{"$f":"VLOOKUP(DropDownList!$B$47,CntyQryCensus!$A$510:$DA$552,BK$1)","v":11},{"$f":"VLOOKUP(DropDownList!$B$47,CntyQryCensus!$A$510:$DA$552,BL$1)","v":5},{"$f":"VLOOKUP(DropDownList!$B$47,CntyQryCensus!$A$510:$DA$552,BM$1)","v":6},{"$f":"VLOOKUP(DropDownList!$B$47,CntyQryCensus!$A$510:$DA$552,BN$1)","v":403},{"$f":"VLOOKUP(DropDownList!$B$47,CntyQryCensus!$A$510:$DA$552,BO$1)","v":123},{"$f":"VLOOKUP(DropDownList!$B$47,CntyQryCensus!$A$510:$DA$552,BP$1)","v":17},{"$f":"VLOOKUP(DropDownList!$B$47,CntyQryCensus!$A$510:$DA$552,BQ$1)","v":0},{"$f":"VLOOKUP(DropDownList!$B$47,CntyQryCensus!$A$510:$DA$552,BR$1)","v":6},{"$f":"VLOOKUP(DropDownList!$B$47,CntyQryCensus!$A$510:$DA$552,BS$1)","v":0},{"$f":"VLOOKUP(DropDownList!$B$47,CntyQryCensus!$A$510:$DA$552,BT$1)","v":0},{"$f":"VLOOKUP(DropDownList!$B$47,CntyQryCensus!$A$510:$DA$552,BU$1)","v":6},{"$f":"VLOOKUP(DropDownList!$B$47,CntyQryCensus!$A$510:$DA$552,BV$1)","v":5},{"$f":"VLOOKUP(DropDownList!$B$47,CntyQryCensus!$A$510:$DA$552,BW$1)","v":0},{"$f":"VLOOKUP(DropDownList!$B$47,CntyQryCensus!$A$510:$DA$552,BX$1)","v":0},{"$f":"VLOOKUP(DropDownList!$B$47,CntyQryCensus!$A$510:$DA$552,BY$1)","v":0},{"$f":"VLOOKUP(DropDownList!$B$47,CntyQryCensus!$A$510:$DA$552,BZ$1)","v":0},{"$f":"VLOOKUP(DropDownList!$B$47,CntyQryCensus!$A$510:$DA$552,CA$1)","v":0},{"$f":"VLOOKUP(DropDownList!$B$47,CntyQryCensus!$A$510:$DA$552,CB$1)","v":106},{"$f":"VLOOKUP(DropDownList!$B$47,CntyQryCensus!$A$510:$DA$552,CC$1)","v":1452},{"$f":"VLOOKUP(DropDownList!$B$47,CntyQryCensus!$A$510:$DA$552,CD$1)","v":153},{"$f":"VLOOKUP(DropDownList!$B$47,CntyQryCensus!$A$510:$DA$552,CE$1)","v":8},{"$f":"VLOOKUP(DropDownList!$B$47,CntyQryCensus!$A$510:$DA$552,CF$1)","v":73},{"$f":"VLOOKUP(DropDownList!$B$47,CntyQryCensus!$A$510:$DA$552,CG$1)","v":34},{"$f":"VLOOKUP(DropDownList!$B$47,CntyQryCensus!$A$510:$DA$552,CH$1)","v":0},{"$f":"VLOOKUP(DropDownList!$B$47,CntyQryCensus!$A$510:$DA$552,CI$1)","v":7},{"$f":"VLOOKUP(DropDownList!$B$47,CntyQryCensus!$A$510:$DA$552,CJ$1)","v":31},{"$f":"VLOOKUP(DropDownList!$B$47,CntyQryCensus!$A$510:$DA$552,CK$1)","v":130},{"$f":"VLOOKUP(DropDownList!$B$47,CntyQryCensus!$A$510:$DA$552,CL$1)","v":29},{"$f":"VLOOKUP(DropDownList!$B$47,CntyQryCensus!$A$510:$DA$552,CM$1)","v":101},{"$f":"VLOOKUP(DropDownList!$B$47,CntyQryCensus!$A$510:$DA$552,CN$1)","v":12},{"$f":"VLOOKUP(DropDownList!$B$47,CntyQryCensus!$A$510:$DA$552,CO$1)","v":89},{"$f":"VLOOKUP(DropDownList!$B$47,CntyQryCensus!$A$510:$DA$552,CP$1)","v":1169},{"$f":"VLOOKUP(DropDownList!$B$47,CntyQryCensus!$A$510:$DA$552,CQ$1)","v":327},{"$f":"VLOOKUP(DropDownList!$B$47,CntyQryCensus!$A$510:$DA$552,CR$1)","v":52},{"$f":"VLOOKUP(DropDownList!$B$47,CntyQryCensus!$A$510:$DA$552,CS$1)","v":6},{"$f":"VLOOKUP(DropDownList!$B$47,CntyQryCensus!$A$510:$DA$552,CT$1)","v":21},{"$f":"VLOOKUP(DropDownList!$B$47,CntyQryCensus!$A$510:$DA$552,CU$1)","v":0},{"$f":"VLOOKUP(DropDownList!$B$47,CntyQryCensus!$A$510:$DA$552,CV$1)","v":0},{"$f":"VLOOKUP(DropDownList!$B$47,CntyQryCensus!$A$510:$DA$552,CW$1)","v":25},{"$f":"VLOOKUP(DropDownList!$B$47,CntyQryCensus!$A$510:$DA$552,CX$1)","v":103},{"$f":"VLOOKUP(DropDownList!$B$47,CntyQryCensus!$A$510:$DA$552,CY$1)","v":26},{"$f":"VLOOKUP(DropDownList!$B$47,CntyQryCensus!$A$510:$DA$552,CZ$1)","v":77},{"$f":"VLOOKUP(DropDownList!$B$47,CntyQryCensus!$A$510:$DA$552,DA$1)","v":172}]
[]
[]
[]
[]
[{"$f":"VLOOKUP(DropDownList!$B$47,CntyQryCensus!$A$510:$DA$552,A$1)","v":"Allenstown"}]
[]
[]
[]
["ACS",2,{"$f":"B105+1","v":3},{"$f":"C105+1","v":4},5,6,7,8,9,10,11,{"$f":"K105+1","v":12},13,14,15,{"$f":"O105+1","v":16},17,18,19,20,21,22,23,24,25,26,27,28,29,30,31,32,33,34,35,36,37,38,39,40,41,42,43,44,45,46,47,48,49,50,51,52,53,54,55,56,57,58,59,60,61,62,63,64,65,66,67,{"$f":"BO105+1","v":68},69,70,71,72,73,74,75,76,77,78,79,80,81,82,83,84,85,86,87,88,89,90,91,92,93,94,95,96,97,98,99,100,101,102,103,104,105,106,107,108,109,110,111,112,113,114,115,116,117,118,119,120,121,122,123,124,125]
["Househould Data (Housing Unit Type)"]
["NAME","TotalHU",{"$f":"\"MOE \"&B107","v":"MOE TotalHU"},"TotalOccHU",{"$f":"\"MOE \"&D107","v":"MOE TotalOccHU"},"TotalOwnerOccUn",{"$f":"\"MOE \"&F107","v":"MOE TotalOwnerOccUn"},"TotalRenterOccn",{"$f":"\"MOE \"&H107","v":"MOE TotalRenterOccn"},"TotalVacantUntis",{"$f":"\"MOE \"&J107","v":"MOE TotalVacantUntis"},"VacantUnitsForRent",{"$f":"\"MOE \"&L107","v":"MOE VacantUnitsForRent"},"VacantUnitRentedNotOcc",{"$f":"\"MOE \"&N107","v":"MOE VacantUnitRentedNotOcc"},"VacantUnitForSale",{"$f":"\"MOE \"&P107","v":"MOE VacantUnitForSale"},"VacantUnitSoldNotOcc",{"$f":"\"MOE \"&R107","v":"MOE VacantUnitSoldNotOcc"},"VacantUnitSeasonalRec",{"$f":"\"MOE \"&T107","v":"MOE VacantUnitSeasonalRec"},"TotalPopInHousingUnits",{"$f":"\"MOE \"&V107","v":"MOE TotalPopInHousingUnits"},"OwnerOccPopHousingUnits",{"$f":"\"MOE \"&X107","v":"MOE OwnerOccPopHousingUnits"},"RenterOccPopHousingUnits",{"$f":"\"MOE \"&Z107","v":"MOE RenterOccPopHousingUnits"},"TotalUntis",{"$f":"\"MOE \"&AB107","v":"MOE TotalUntis"},"TotalOwnerOccUnits",{"$f":"\"MOE \"&AD107","v":"MOE TotalOwnerOccUnits"},"SigFamOwnerOcc",{"$f":"\"MOE \"&AF107","v":"MOE SigFamOwnerOcc"},"MultiFamOwnerOcc",{"$f":"\"MOE \"&AH107","v":"MOE MultiFamOwnerOcc"},"MobileOwnerOcc",{"$f":"\"MOE \"&AJ107","v":"MOE MobileOwnerOcc"},"TotalRenterOccUnits",{"$f":"\"MOE \"&AL107","v":"MOE TotalRenterOccUnits"},"SigFamRenterOcc",{"$f":"\"MOE \"&AN107","v":"MOE SigFamRenterOcc"},"MultiFamRenterOcc",{"$f":"\"MOE \"&AP107","v":"MOE MultiFamRenterOcc"},"MobileRenterOcc",{"$f":"\"MOE \"&AR107","v":"MOE MobileRenterOcc"},"TotalSigFamilyUnits",{"$f":"\"MOE \"&AT107","v":"MOE TotalSigFamilyUnits"},"TotalMultiFamilyUnits",{"$f":"\"MOE \"&AV107","v":"MOE TotalMultiFamilyUnits"},"TotalMobileUnits",{"$f":"\"MOE \"&AX107","v":"MOE TotalMobileUnits"},"YrHouseBuilt2014Later",{"$f":"\"MOE \"&AZ107","v":"MOE YrHouseBuilt2014Later"},"YrHouseBuilt2010-2013",{"$f":"\"MOE \"&BB107","v":"MOE YrHouseBuilt2010-2013"},"YrHouseBuilt2000-2009",{"$f":"\"MOE \"&BD107","v":"MOE YrHouseBuilt2000-2009"},"YrHouseBuilt1990-1999",{"$f":"\"MOE \"&BF107","v":"MOE YrHouseBuilt1990-1999"},"YrHouseBuilt1980-1989",{"$f":"\"MOE \"&BH107","v":"MOE YrHouseBuilt1980-1989"},"YrHouseBuilt1970-1979",{"$f":"\"MOE \"&BJ107","v":"MOE YrHouseBuilt1970-1979"},"YrHouseBuilt1960-1969",{"$f":"\"MOE \"&BL107","v":"MOE YrHouseBuilt1960-1969"},"YrHouseBuilt1950-1959",{"$f":"\"MOE \"&BN107","v":"MOE YrHouseBuilt1950-1959"},"YrHouseBuilt1940-1949",{"$f":"\"MOE \"&BP107","v":"MOE YrHouseBuilt1940-1949"},"YrHouseBuilt1939orEarlier",{"$f":"\"MOE \"&BR107","v":"MOE YrHouseBuilt1939orEarlier"},"NoBedrooms",{"$f":"\"MOE \"&BT107","v":"MOE NoBedrooms"},"1Bedroom",{"$f":"\"MOE \"&BV107","v":"MOE 1Bedroom"},"2Bedroom",{"$f":"\"MOE \"&BX107","v":"MOE 2Bedroom"},"3Bedroom",{"$f":"\"MOE \"&BZ107","v":"MOE 3Bedroom"},"4+Bedroom",{"$f":"\"MOE \"&CB107","v":"MOE 4+Bedroom"}]
[{"$f":"VLOOKUP(DropDownList!$B$47,CntyQryCensus!$A$510:$DA$552,A$1)","v":"Allenstown"},1858,120,1788,107,1379,114,409,114,70,62,0,11,9,15,37,45,0,11,0,11,4355,34,3659,241,696,237,1788,107,1379,114,620,107,238,95.524865872714003,521,101.59724405711013,409,114,48,41,350,122.42548754242313,11,19.416487838947599,1297,192.64475077198443,561,107.22872749408155,null,null,67,51,17,19,197,65,139,64,337,101,417,109,131,50,183,89,146,95,224,95,38,21,259,108,592,125,790,119,179,76.295478240849903,81,79,36,74,28,76,114,30,114,142,91,44,40,134,119,76,105,14,132,142,84,108,151,154,137,30,701,207.10383868967759,300,141.01418368376991,207.27517941133232,197.81304304822774]
[]
["Disability Data"]
["NAME","TotalPop",{"$f":"\"MOE \"&B111","v":"MOE TotalPop"},"PopUnder 5 years:",{"$f":"\"MOE \"&D111","v":"MOE PopUnder 5 years:"},{"$f":"D$111&\"-WithDisability\"","v":"PopUnder 5 years:-WithDisability"},{"$f":"\"MOE \"&F111","v":"MOE PopUnder 5 years:-WithDisability"},{"$f":"D111&\"-NoDisability\"","v":"PopUnder 5 years:-NoDisability"},{"$f":"\"MOE \"&H111","v":"MOE PopUnder 5 years:-NoDisability"},"PopUnder 5 to 17years:",{"$f":"\"MOE \"&J111","v":"MOE PopUnder 5 to 17years:"},{"$f":"J$111&\"-WithDisability\"","v":"PopUnder 5 to 17years:-WithDisability"},{"$f":"\"MOE \"&L111","v":"MOE PopUnder 5 to 17years:-WithDisability"},{"$f":"J111&\"-NoDisability\"","v":"PopUnder 5 to 17years:-NoDisability"},{"$f":"\"MOE \"&N111","v":"MOE PopUnder 5 to 17years:-NoDisability"},"PopUnder 18 to 34 years:",{"$f":"\"MOE \"&P111","v":"MOE PopUnder 18 to 34 years:"},{"$f":"P$111&\"-WithDisability\"","v":"PopUnder 18 to 34 years:-WithDisability"},{"$f":"\"MOE \"&R111","v":"MOE PopUnder 18 to 34 years:-WithDisability"},{"$f":"P111&\"-NoDisability\"","v":"PopUnder 18 to 34 years:-NoDisability"},{"$f":"\"MOE \"&T111","v":"MOE PopUnder 18 to 34 years:-NoDisability"},"Pop 35 years to 64:",{"$f":"\"MOE \"&V111","v":"MOE Pop 35 years to 64:"},{"$f":"$V$111&\"-WithDisability\"","v":"Pop 35 years to 64:-WithDisability"},{"$f":"\"MOE \"&X111","v":"MOE Pop 35 years to 64:-WithDisability"},{"$f":"$V$111&\"-NoDisability\"","v":"Pop 35 years to 64:-NoDisability"},{"$f":"\"MOE \"&Z111","v":"MOE Pop 35 years to 64:-NoDisability"},"Pop 65 years to 74:",{"$f":"\"MOE \"&AB111","v":"MOE Pop 65 years to 74:"},{"$f":"$AB$111&\"-WithDisability\"","v":"Pop 65 years to 74:-WithDisability"},{"$f":"\"MOE \"&AD111","v":"MOE Pop 65 years to 74:-WithDisability"},{"$f":"$AB$111&\"-NoDisability\"","v":"Pop 65 years to 74:-NoDisability"},{"$f":"\"MOE \"&AF111","v":"MOE Pop 65 years to 74:-NoDisability"},"Pop 75 and older:",{"$f":"\"MOE \"&AH111","v":"MOE Pop 75 and older:"},{"$f":"$AH$111&\"-WithDisability\"","v":"Pop 75 and older:-WithDisability"},{"$f":"\"MOE \"&AJ111","v":"MOE Pop 75 and older:-WithDisability"},{"$f":"$AH$111&\"-NoDisability\"","v":"Pop 75 and older:-NoDisability"},{"$f":"\"MOE \"&AL111","v":"MOE Pop 75 and older:-NoDisability"},"TotalPopUnder5_HearingDisability",{"$f":"\"MOE \"&AN111","v":"MOE TotalPopUnder5_HearingDisability"},"TotalPopUnder5_HearingDisability",{"$f":"\"MOE \"&AP111","v":"MOE TotalPopUnder5_HearingDisability"},"TotalPop18To34_HearingDisability",{"$f":"\"MOE \"&AR111","v":"MOE TotalPop18To34_HearingDisability"},"TotalPop35To64_HearingDisability",{"$f":"\"MOE \"&AT111","v":"MOE TotalPop35To64_HearingDisability"},"TotalPop65To74_HearingDisability",{"$f":"\"MOE \"&AV111","v":"MOE TotalPop65To74_HearingDisability"},"TotalPop75andOlder_HearingDisability",{"$f":"\"MOE \"&AX111","v":"MOE TotalPop75andOlder_HearingDisability"},"TotalPopUnder5_VisionDisability",{"$f":"\"MOE \"&AZ111","v":"MOE TotalPopUnder5_VisionDisability"},"TotalPop5To17_VisionDisability",{"$f":"\"MOE \"&BB111","v":"MOE TotalPop5To17_VisionDisability"},"TotalPop18To34_VisionDisability",{"$f":"\"MOE \"&BD111","v":"MOE TotalPop18To34_VisionDisability"},"TotalPop35To64_VisionDisability",{"$f":"\"MOE \"&BF111","v":"MOE TotalPop35To64_VisionDisability"},"TotalPop65To74_VisionDisability",{"$f":"\"MOE \"&BH111","v":"MOE TotalPop65To74_VisionDisability"},"TotalPop75andOlder_VisionDisability",{"$f":"\"MOE \"&BJ111","v":"MOE TotalPop75andOlder_VisionDisability"},"TotalPop5To17_CongnitiveDisability",{"$f":"\"MOE \"&BL111","v":"MOE TotalPop5To17_CongnitiveDisability"},"TotalPop18To34_CongnitiveDisability",{"$f":"\"MOE \"&BN111","v":"MOE TotalPop18To34_CongnitiveDisability"},"TotalPop35To64_CongnitiveDisability",{"$f":"\"MOE \"&BP111","v":"MOE TotalPop35To64_CongnitiveDisability"},"TotalPop65To74_CongnitiveDisability",{"$f":"\"MOE \"&BR111","v":"MOE TotalPop65To74_CongnitiveDisability"},"TotalPop75andOlder_CongnitiveDisability",{"$f":"\"MOE \"&BT111","v":"MOE TotalPop75andOlder_CongnitiveDisability"},"TotalPop5To17_AmbulatoryDisability",{"$f":"\"MOE \"&BV111","v":"MOE TotalPop5To17_AmbulatoryDisability"},"TotalPop18To34_AmbulatoryDisability",{"$f":"\"MOE \"&BX111","v":"MOE TotalPop18To34_AmbulatoryDisability"},"TotalPop35To64_AmbulatoryDisability",{"$f":"\"MOE \"&BZ111","v":"MOE TotalPop35To64_AmbulatoryDisability"},"TotalPop65To74_AmbulatoryDisability",{"$f":"\"MOE \"&CB111","v":"MOE TotalPop65To74_AmbulatoryDisability"},"TotalPop75andOlder_AmbulatoryDisability",{"$f":"\"MOE \"&CD111","v":"MOE TotalPop75andOlder_AmbulatoryDisability"},"TotalPop5To17_SelfCareDisability",{"$f":"\"MOE \"&CF111","v":"MOE TotalPop5To17_SelfCareDisability"},"TotalPop18To34_SelfCareDisability",{"$f":"\"MOE \"&CH111","v":"MOE TotalPop18To34_SelfCareDisability"},"TotalPop35To64_SelfCareDisability",{"$f":"\"MOE \"&CJ111","v":"MOE TotalPop35To64_SelfCareDisability"},"TotalPop65To74_SelfCareDisability",{"$f":"\"MOE \"&CL111","v":"MOE TotalPop65To74_SelfCareDisability"},"TotalPop75andOlder_SelfCareDisability",{"$f":"\"MOE \"&CN111","v":"MOE TotalPop75andOlder_SelfCareDisability"},"TotalPop18To34_IndependantLivingDisability",{"$f":"\"MOE \"&CP111","v":"MOE TotalPop18To34_IndependantLivingDisability"},"TotalPop35To64_IndependantLivingDisability",{"$f":"\"MOE \"&CR111","v":"MOE TotalPop35To64_IndependantLivingDisability"},"TotalPop65To74_IndependantLivingDisability",{"$f":"\"MOE \"&CT111","v":"MOE TotalPop65To74_IndependantLivingDisability"},"TotalPop75andOlder_IndependantLivingDisability",{"$f":"\"MOE \"&CV111","v":"MOE TotalPop75andOlder_IndependantLivingDisability"},"TotalUnder5_HearingorVisionDisability",{"$f":"\"MOE \"&CX111","v":"MOE TotalUnder5_HearingorVisionDisability"},"TotalUnder5_HearingandVisionDisability",{"$f":"\"MOE \"&CZ111","v":"MOE TotalUnder5_HearingandVisionDisability"},"5to17YearWIthOneDisability",{"$f":"\"MOE \"&DB111","v":"MOE 5to17YearWIthOneDisability"},"5to17YearWIthTwoOrMoreDisability",{"$f":"\"MOE \"&DD111","v":"MOE 5to17YearWIthTwoOrMoreDisability"},"18to34YearWIthOneDisability",{"$f":"\"MOE \"&DF111","v":"MOE 18to34YearWIthOneDisability"},"18to34YearWIthTwoOrMoreDisability",{"$f":"\"MOE \"&DH111","v":"MOE 18to34YearWIthTwoOrMoreDisability"},"35to64YearWIthOneDisability",{"$f":"\"MOE \"&DJ111","v":"MOE 35to64YearWIthOneDisability"},"35to64YearWIthTwoOrMoreDisability",{"$f":"\"MOE \"&DL111","v":"MOE 35to64YearWIthTwoOrMoreDisability"},"65to74YearWIthOneDisability",{"$f":"\"MOE \"&DN111","v":"MOE 65to74YearWIthOneDisability"},"65to74YearWIthTwoOrMoreDisability",{"$f":"\"MOE \"&DP111","v":"MOE 65to74YearWIthTwoOrMoreDisability"},"75AndOlderWIthOneDisability",{"$f":"\"MOE \"&DR111","v":"MOE 75AndOlderWIthOneDisability"},"75AndOlderWIthTwoOrMoreDisability",{"$f":"\"MOE \"&DT111","v":"MOE 75AndOlderWIthTwoOrMoreDisability"}]
[{"$f":"VLOOKUP(DropDownList!$B$47,CntyQryCensus!$A$510:$DA$552,A$1)","v":"Allenstown"},4347,43,228,96.79876032264049,0,15.556349186104045,228,96.79876032264049,593,118.56221995222593,87,50.990195135927848,506,113.56936206565572,922,152.83978539634239,149,79.649231006959511,773,141.22676800097071,1972,145.7737973711325,287,90.801982357215081,1685,155.62133529821674,322,78.230428862431779,111,45.276925690687087,211,76.026311234992846,310,92.962357973536797,176,73,134,58.668560575490517,0,15.556349186104045,9,19.416487838947599,17,21.95449840010015,12,19.416487838947599,48,27.202941017470888,61,36.878177829171548,0,15.556349186104045,0,15.556349186104045,0,15.556349186104045,29,32.649655434629018,0,15.556349186104045,26,42.449970553582247,126,89.442719099991592,38,30.528675044947494,162,99.403219263764285,46,51.244511901275828,28,30.413812651491099,0,15.556349186104045,30,50.219518117958877,146,63.63961030678928,82,41.773197148410844,95,48.846698967279252,37,47.296934361541872,0,15.556349186104045,22,26.40075756488817,8,17.029386365926403,56,46.141087980237309,67,57.314919523628397,69,46.61544808322666,50,31.384709652950431,43,55.036351623268054,56,41,52,59,185,78,246,110,73,56,121,56]
[]
["Househould Income By Age"]
["NAME","TotalHouseholds",{"$f":"\"MOE \"&B115","v":"MOE TotalHouseholds"},"HHInc<10K",{"$f":"\"MOE \"&D115","v":"MOE HHInc<10K"},"HHInc10to15K",{"$f":"\"MOE \"&F115","v":"MOE HHInc10to15K"},"HHInc15to20K",{"$f":"\"MOE \"&H115","v":"MOE HHInc15to20K"},"HHInc20to25K",{"$f":"\"MOE \"&J115","v":"MOE HHInc20to25K"},"HHInc25to30K",{"$f":"\"MOE \"&L115","v":"MOE HHInc25to30K"},"HHInc30to35K",{"$f":"\"MOE \"&N115","v":"MOE HHInc30to35K"},"HHInc35to40K",{"$f":"\"MOE \"&P115","v":"MOE HHInc35to40K"},"HHInc40to45K",{"$f":"\"MOE \"&R115","v":"MOE HHInc40to45K"},"HHInc45to50K",{"$f":"\"MOE \"&T115","v":"MOE HHInc45to50K"},"HHInc50to60K",{"$f":"\"MOE \"&V115","v":"MOE HHInc50to60K"},"HHInc60to75K",{"$f":"\"MOE \"&X115","v":"MOE HHInc60to75K"},"HHInc75to100K",{"$f":"\"MOE \"&Z115","v":"MOE HHInc75to100K"},"HHInc100to125K",{"$f":"\"MOE \"&AB115","v":"MOE HHInc100to125K"},"HHInc125to150K",{"$f":"\"MOE \"&AD115","v":"MOE HHInc125to150K"},"HHInc150to200K",{"$f":"\"MOE \"&AF115","v":"MOE HHInc150to200K"},"HHInc>200K",{"$f":"\"MOE \"&AH115","v":"MOE HHInc>200K"},"TotalHH",{"$f":"\"MOE \"&AJ115","v":"MOE TotalHH"},"HHAgeHHUnder25yrs",{"$f":"\"MOE \"&AL115","v":"MOE HHAgeHHUnder25yrs"},"HHAgeHH<25HHInc<10K",{"$f":"\"MOE \"&AN115","v":"MOE HHAgeHH<25HHInc<10K"},"HHAgeHH<25HHInc10to15K",{"$f":"\"MOE \"&AP115","v":"MOE HHAgeHH<25HHInc10to15K"},"HHAgeHH<25HHInc15to20K",{"$f":"\"MOE \"&AR115","v":"MOE HHAgeHH<25HHInc15to20K"},"HHAgeHH<25HHInc20to25K",{"$f":"\"MOE \"&AT115","v":"MOE HHAgeHH<25HHInc20to25K"},"HHAgeHH<25HHInc25to30K",{"$f":"\"MOE \"&AV115","v":"MOE HHAgeHH<25HHInc25to30K"},"HHAgeHH<25HHInc30to35K",{"$f":"\"MOE \"&AX115","v":"MOE HHAgeHH<25HHInc30to35K"},"HHAgeHH<25HHInc35to40K",{"$f":"\"MOE \"&AZ115","v":"MOE HHAgeHH<25HHInc35to40K"},"HHAgeHH<25HHInc40to45K",{"$f":"\"MOE \"&BB115","v":"MOE HHAgeHH<25HHInc40to45K"},"HHAgeHH<25HHInc45to50K",{"$f":"\"MOE \"&BD115","v":"MOE HHAgeHH<25HHInc45to50K"},"HHAgeHH<25HHInc50to60K",{"$f":"\"MOE \"&BF115","v":"MOE HHAgeHH<25HHInc50to60K"},"HHAgeHH<25HHInc60to75K",{"$f":"\"MOE \"&BH115","v":"MOE HHAgeHH<25HHInc60to75K"},"HHAgeHH<25HHInc75to100K",{"$f":"\"MOE \"&BJ115","v":"MOE HHAgeHH<25HHInc75to100K"},"HHAgeHH<25HHInc100to125K",{"$f":"\"MOE \"&BL115","v":"MOE HHAgeHH<25HHInc100to125K"},"HHAgeHH<25HHInc125to150K",{"$f":"\"MOE \"&BN115","v":"MOE HHAgeHH<25HHInc125to150K"},"HHAgeHH<25HHInc150to200K",{"$f":"\"MOE \"&BP115","v":"MOE HHAgeHH<25HHInc150to200K"},"HHAge<25HHInc>200K",{"$f":"\"MOE \"&BR115","v":"MOE HHAge<25HHInc>200K"},"HHAgeHH25to44yrs",{"$f":"\"MOE \"&BT115","v":"MOE HHAgeHH25to44yrs"},"HHAgeHH25To44yrsHHInc<10K",{"$f":"\"MOE \"&BV115","v":"MOE HHAgeHH25To44yrsHHInc<10K"},"HHAgeHH25To44yrsHHInc10to15K",{"$f":"\"MOE \"&BX115","v":"MOE HHAgeHH25To44yrsHHInc10to15K"},"HHAgeHH25To44yrsHHInc15to20K",{"$f":"\"MOE \"&BZ115","v":"MOE HHAgeHH25To44yrsHHInc15to20K"},"HHAgeHH25To44yrsHHInc20to25K",{"$f":"\"MOE \"&CB115","v":"MOE HHAgeHH25To44yrsHHInc20to25K"},"HHAgeHH25To44yrsHHInc25to30K",{"$f":"\"MOE \"&CD115","v":"MOE HHAgeHH25To44yrsHHInc25to30K"},"HHAgeHH25To44yrsHHInc30to35K",{"$f":"\"MOE \"&CF115","v":"MOE HHAgeHH25To44yrsHHInc30to35K"},"HHAgeHH25To44yrsHHInc35to40K",{"$f":"\"MOE \"&CH115","v":"MOE HHAgeHH25To44yrsHHInc35to40K"},"HHAgeHH25To44yrsHHInc40to45K",{"$f":"\"MOE \"&CJ115","v":"MOE HHAgeHH25To44yrsHHInc40to45K"},"HHAgeHH25To44yrsHHInc45to50K",{"$f":"\"MOE \"&CL115","v":"MOE HHAgeHH25To44yrsHHInc45to50K"},"HHAgeHH25To44yrsHHInc50to60K",{"$f":"\"MOE \"&CN115","v":"MOE HHAgeHH25To44yrsHHInc50to60K"},"HHAgeHH25To44yrsHHInc60to75K",{"$f":"\"MOE \"&CP115","v":"MOE HHAgeHH25To44yrsHHInc60to75K"},"HHAgeHH25To44yrsHHInc75to100K",{"$f":"\"MOE \"&CR115","v":"MOE HHAgeHH25To44yrsHHInc75to100K"},"HHAgeHH25To44yrsHHInc100to125K",{"$f":"\"MOE \"&CT115","v":"MOE HHAgeHH25To44yrsHHInc100to125K"},"HHAgeHH25To44yrsHHInc125to150K",{"$f":"\"MOE \"&CV115","v":"MOE HHAgeHH25To44yrsHHInc125to150K"},"HHAgeHH25To44yrsHHInc150to200K",{"$f":"\"MOE \"&CX115","v":"MOE HHAgeHH25To44yrsHHInc150to200K"},"HHAge25To44yrsHHInc>200K",{"$f":"\"MOE \"&CZ115","v":"MOE HHAge25To44yrsHHInc>200K"},"HHAgeHH45To64yrs",{"$f":"\"MOE \"&DB115","v":"MOE HHAgeHH45To64yrs"},"HHAgeHH45To64yrsHHInc<10K",{"$f":"\"MOE \"&DD115","v":"MOE HHAgeHH45To64yrsHHInc<10K"},"HHAgeHH45To64yrsHHInc10to15K",{"$f":"\"MOE \"&DF115","v":"MOE HHAgeHH45To64yrsHHInc10to15K"},"HHAgeHH45To64yrsHHInc15to20K",{"$f":"\"MOE \"&DH115","v":"MOE HHAgeHH45To64yrsHHInc15to20K"},"HHAgeHH45To64yrsHHInc20to25K",{"$f":"\"MOE \"&DJ115","v":"MOE HHAgeHH45To64yrsHHInc20to25K"},"HHAgeHH45To64yrsHHInc25to30K",{"$f":"\"MOE \"&DL115","v":"MOE HHAgeHH45To64yrsHHInc25to30K"},"HHAgeHH45To64yrsHHInc30to35K",{"$f":"\"MOE \"&DN115","v":"MOE HHAgeHH45To64yrsHHInc30to35K"},"HHAgeHH45To64yrsHHInc35to40K",{"$f":"\"MOE \"&DP115","v":"MOE HHAgeHH45To64yrsHHInc35to40K"},"HHAgeHH45To64yrsHHInc40to45K",{"$f":"\"MOE \"&DR115","v":"MOE HHAgeHH45To64yrsHHInc40to45K"},"HHAgeHH45To64yrsHHInc45to50K",{"$f":"\"MOE \"&DT115","v":"MOE HHAgeHH45To64yrsHHInc45to50K"},"HHAgeHH45To64yrsHHInc50to60K",{"$f":"\"MOE \"&DV115","v":"MOE HHAgeHH45To64yrsHHInc50to60K"},"HHAgeHH45To64yrsHHInc60to75K",{"$f":"\"MOE \"&DX115","v":"MOE HHAgeHH45To64yrsHHInc60to75K"},"HHAgeHH45To64yrsHHInc75to100K",{"$f":"\"MOE \"&DZ115","v":"MOE HHAgeHH45To64yrsHHInc75to100K"},"HHAgeHH45To64yrsHHInc100to125K",{"$f":"\"MOE \"&EB115","v":"MOE HHAgeHH45To64yrsHHInc100to125K"},"HHAgeHH45To64yrsHHInc125to150K",{"$f":"\"MOE \"&ED115","v":"MOE HHAgeHH45To64yrsHHInc125to150K"},"HHAgeHH45To64yrsHHInc150to200K",{"$f":"\"MOE \"&EF115","v":"MOE HHAgeHH45To64yrsHHInc150to200K"},"HHAge45To64yrsHHInc>200K",{"$f":"\"MOE \"&EH115","v":"MOE HHAge45To64yrsHHInc>200K"},"HHAgeHH65yrsorOlder",{"$f":"\"MOE \"&EJ115","v":"MOE HHAgeHH65yrsorOlder"},"HHAgeHH65yrsorOlderHHInc<10K",{"$f":"\"MOE \"&EL115","v":"MOE HHAgeHH65yrsorOlderHHInc<10K"},"HHAgeHH65yrsorOlderHHInc10to15K",{"$f":"\"MOE \"&EN115","v":"MOE HHAgeHH65yrsorOlderHHInc10to15K"},"HHAgeHH65yrsorOlderHHInc15to20K",{"$f":"\"MOE \"&EP115","v":"MOE HHAgeHH65yrsorOlderHHInc15to20K"},"HHAgeHH65yrsorOlderHHInc20to25K",{"$f":"\"MOE \"&ER115","v":"MOE HHAgeHH65yrsorOlderHHInc20to25K"},"HHAgeHH65yrsorOlderHHInc25to30K",{"$f":"\"MOE \"&ET115","v":"MOE HHAgeHH65yrsorOlderHHInc25to30K"},"HHAgeHH65yrsorOlderHHInc30to35K",{"$f":"\"MOE \"&EV115","v":"MOE HHAgeHH65yrsorOlderHHInc30to35K"},"HHAgeHH65yrsorOlderHHInc35to40K",{"$f":"\"MOE \"&EX115","v":"MOE HHAgeHH65yrsorOlderHHInc35to40K"},"HHAgeHH65yrsorOlderHHInc40to45K",{"$f":"\"MOE \"&EZ115","v":"MOE HHAgeHH65yrsorOlderHHInc40to45K"},"HHAgeHH65yrsorOlderHHInc45to50K",{"$f":"\"MOE \"&FB115","v":"MOE HHAgeHH65yrsorOlderHHInc45to50K"},"HHAgeHH65yrsorOlderHHInc50to60K",{"$f":"\"MOE \"&FD115","v":"MOE HHAgeHH65yrsorOlderHHInc50to60K"},"HHAgeHH65yrsorOlderHHInc60to75K",{"$f":"\"MOE \"&FF115","v":"MOE HHAgeHH65yrsorOlderHHInc60to75K"},"HHAgeHH65yrsorOlderHHInc75to100K",{"$f":"\"MOE \"&FH115","v":"MOE HHAgeHH65yrsorOlderHHInc75to100K"},"HHAgeHH65yrsorOlderHHInc100to125K",{"$f":"\"MOE \"&FJ115","v":"MOE HHAgeHH65yrsorOlderHHInc100to125K"},"HHAgeHH65yrsorOlderHHInc125to150K",{"$f":"\"MOE \"&FL115","v":"MOE HHAgeHH65yrsorOlderHHInc125to150K"},"HHAgeHH65yrsorOlderHHInc150to200K",{"$f":"\"MOE \"&FN115","v":"MOE HHAgeHH65yrsorOlderHHInc150to200K"},"HHAge65yrsorOlderHHInc>200K",{"$f":"\"MOE \"&FP115","v":"MOE HHAge65yrsorOlderHHInc>200K"},"MedianHHInc",{"$f":"\"MOE \"&FR115","v":"MOE MedianHHInc"},"HH under 25 years",{"$f":"\"MOE \"&FT115","v":"MOE HH under 25 years"},"Householder 25 to 44 years",{"$f":"\"MOE \"&FV115","v":"MOE Householder 25 to 44 years"},"Householder 45 to 64 years",{"$f":"\"MOE \"&FX115","v":"MOE Householder 45 to 64 years"},"Householder 65 years and over",{"$f":"\"MOE \"&FZ115","v":"MOE Householder 65 years and over"}]
[{"$f":"VLOOKUP(DropDownList!$B$47,CntyQryCensus!$A$510:$DA$552,A$1)","v":"Allenstown"},1809,114,63,42,186,74,25,17,23,24,87,62,158,81,92,59,109,53,42,29,208,94,204,73,251,78,120,62,107,45,119,64,15,17,1809,114,46,42,13,20,0,11,0,11,0,11,0,11,0,11,0,11,0,11,0,11,24,35,9,13,0,11,0,11,0,11,0,11,0,11,496,85,31,35,32,50,0,11,9,14,7,13,46,37,49,52,67,45,0,11,35,44,72,51,71,32,20,25,24,25,27,28,6,10,846,104,3,7,26,28,0,11,14,20,54,43,89,75,34,30,19,21,33,26,85,48,82,51,169,70,93,59,48,30,88,57,9,13,421,85,16,19,128,61,25,17,0,11,26,41,23,20,9,16,23,19,9,13,64,51,41,26,11,14,7,12,35,31,4,8,0,11,56046,4058,56042,52443,55086,24220,72000,16753,32656,16994]
[]
["Number of Households by Income"]
["NAME","HHIncLessThn10k",{"$f":"\"MOE \"&B119","v":"MOE HHIncLessThn10k"},"HHInc10to15K",{"$f":"\"MOE \"&D119","v":"MOE HHInc10to15K"},"HHInc15to25K",{"$f":"\"MOE \"&F119","v":"MOE HHInc15to25K"},"HHInc25to35K",{"$f":"\"MOE \"&H119","v":"MOE HHInc25to35K"},"HHInc35to50K",{"$f":"\"MOE \"&J119","v":"MOE HHInc35to50K"},"HHInc50to75K",{"$f":"\"MOE \"&L119","v":"MOE HHInc50to75K"},"HHInc75to100K",{"$f":"\"MOE \"&N119","v":"MOE HHInc75to100K"},"HHInc100to150K",{"$f":"\"MOE \"&P119","v":"MOE HHInc100to150K"},"HHInc150to200K",{"$f":"\"MOE \"&R119","v":"MOE HHInc150to200K"},"HHIncOver200K",{"$f":"\"MOE \"&T119","v":"MOE HHIncOver200K"}]
[{"$f":"VLOOKUP(DropDownList!$B$47,CntyQryCensus!$A$510:$DA$552,A$1)","v":"Allenstown"},63,42,186,74,48,29.410882339705484,245,102.00490184299969,243,84.445248534183378,412,119.01680553602503,251,78,227,76.609398901179219,119,64,15,17,181,74,234,105,177,68,91,60,57,63,20,32]
[]
[]
["NAME","TotalPop",{"$f":"\"MOE \"&B123","v":"MOE TotalPop"},"Total Individuals living in Poverty",{"$f":"\"MOE \"&D123","v":"MOE Total Individuals living in Poverty"},"Under 5 yrs.",{"$f":"\"MOE \"&F123","v":"MOE Under 5 yrs."},"5 to 17 yrs.",{"$f":"\"MOE \"&H123","v":"MOE 5 to 17 yrs."},"18 to 64 yrs.",{"$f":"\"MOE \"&J123","v":"MOE 18 to 64 yrs."},"65 to 74 yrs.",{"$f":"\"MOE \"&L123","v":"MOE 65 to 74 yrs."},"75 yrs. & Over",{"$f":"\"MOE \"&N123","v":"MOE 75 yrs. & Over"},"Total Individuals  Not living Poverty",{"$f":"\"MOE \"&P123","v":"MOE Total Individuals  Not living Poverty"},"Under 5 yrs.",{"$f":"\"MOE \"&R123","v":"MOE Under 5 yrs."},"5 to 17 yrs.",{"$f":"\"MOE \"&T123","v":"MOE 5 to 17 yrs."},"18 to 64 yrs.",{"$f":"\"MOE \"&V123","v":"MOE 18 to 64 yrs."},"65 to 74 yrs.",{"$f":"\"MOE \"&X123","v":"MOE 65 to 74 yrs."},"75 yrs. & Over",{"$f":"\"MOE \"&Z123","v":"MOE 75 yrs. & Over"},"Total HH",{"$f":"\"MOE \"&AB123","v":"MOE Total HH"},"Total Households Below Poverty",{"$f":"\"MOE \"&AD123","v":"MOE Total Households Below Poverty"},"Family Households in Poverty",{"$f":"\"MOE \"&AF123","v":"MOE Family Households in Poverty"},"Married Couple Fam HH",{"$f":"\"MOE \"&AH123","v":"MOE Married Couple Fam HH"},"Other Family",{"$f":"\"MOE \"&AJ123","v":"MOE Other Family"},"Male Head of Family HH no wife",{"$f":"\"MOE \"&AL123","v":"MOE Male Head of Family HH no wife"},"Female Head of Family HH no husband",{"$f":"\"MOE \"&AN123","v":"MOE Female Head of Family HH no husband"},"Non-Family HH",{"$f":"\"MOE \"&AP123","v":"MOE Non-Family HH"},"Non-Family Male HH",{"$f":"\"MOE \"&AR123","v":"MOE Non-Family Male HH"},"Non-Family Female HH",{"$f":"\"MOE \"&AT123","v":"MOE Non-Family Female HH"},"Total Households at or Above Poverty",{"$f":"\"MOE \"&AV123","v":"MOE Total Households at or Above Poverty"},"Family Households above Poverty",{"$f":"\"MOE \"&AX123","v":"MOE Family Households above Poverty"},"Married Couple Fam HH",{"$f":"\"MOE \"&AZ123","v":"MOE Married Couple Fam HH"},"Other Family",{"$f":"\"MOE \"&BB123","v":"MOE Other Family"},"Male Head of Family HH no wife",{"$f":"\"MOE \"&BD123","v":"MOE Male Head of Family HH no wife"},"Female Head of Family HH no husband",{"$f":"\"MOE \"&BF123","v":"MOE Female Head of Family HH no husband"},"Non-Family HH",{"$f":"\"MOE \"&BH123","v":"MOE Non-Family HH"},"Non-Family Male HH",{"$f":"\"MOE \"&BJ123","v":"MOE Non-Family Male HH"},"Non-Family Female HH",{"$f":"\"MOE \"&BL123","v":"MOE Non-Family Female HH"},"Married Couple with Children Below Poverty",{"$f":"\"MOE \"&BN123","v":"MOE Married Couple with Children Below Poverty"},"Male HH with children below poverty",{"$f":"\"MOE \"&BP123","v":"MOE Male HH with children below poverty"},"Female HH with children below poverty",{"$f":"\"MOE \"&BR123","v":"MOE Female HH with children below poverty"},"Married Couple with Children At or Above Poverty",{"$f":"\"MOE \"&BT123","v":"MOE Married Couple with Children At or Above Poverty"},"Male HH with children at or above poverty",{"$f":"\"MOE \"&BV123","v":"MOE Male HH with children at or above poverty"},"Female HH with children at or above poverty",{"$f":"\"MOE \"&BX123","v":"MOE Female HH with children at or above poverty"}]
[{"$f":"VLOOKUP(DropDownList!$B$47,CntyQryCensus!$A$510:$DA$552,A$1)","v":"Allenstown"},4260,90,401,147,12,27.202941017470888,117,69.957129729570809,247,97.123632551506233,0,15.556349186104045,25,23.706539182259394,3859,179,165,80,440,121.1156472137271,2647,256.97665263599339,322,78.230428862431779,285,89.044932477934978,194,82,99,58,13,17,13,17,86,55,0,11,86,55,95,65,16,27,79,57,1615,124,1048,92,855,107,193,74,66,52,127,58,567,118,292,89,275,80,6,14,0,11,71,50,349,88,44,49,34,28]
[]
["Household Income By Tenure"]
["NAME","TotalOccHU",{"$f":"\"MOE \"&B127","v":"MOE TotalOccHU"},"OwnOccHU",{"$f":"\"MOE \"&D127","v":"MOE OwnOccHU"},"OOHUInc<5K",{"$f":"\"MOE \"&F127","v":"MOE OOHUInc<5K"},"OOHUInc5to10K",{"$f":"\"MOE \"&H127","v":"MOE OOHUInc5to10K"},"OOHUInc10to15K",{"$f":"\"MOE \"&J127","v":"MOE OOHUInc10to15K"},"OOHUInc15to20K",{"$f":"\"MOE \"&L127","v":"MOE OOHUInc15to20K"},"OOHUInc20to25K",{"$f":"\"MOE \"&N127","v":"MOE OOHUInc20to25K"},"OOHUInc25to35K",{"$f":"\"MOE \"&P127","v":"MOE OOHUInc25to35K"},"OOHUInc35to50K",{"$f":"\"MOE \"&R127","v":"MOE OOHUInc35to50K"},"OOHUInc50to75K",{"$f":"\"MOE \"&T127","v":"MOE OOHUInc50to75K"},"OOHUInc75to100K",{"$f":"\"MOE \"&V127","v":"MOE OOHUInc75to100K"},"OOHUInc100to150K",{"$f":"\"MOE \"&X127","v":"MOE OOHUInc100to150K"},"OOHUInc>150K",{"$f":"\"MOE \"&Z127","v":"MOE OOHUInc>150K"},"RentOccHU",{"$f":"\"MOE \"&AB127","v":"MOE RentOccHU"},"ROHUInc<5K",{"$f":"\"MOE \"&AD127","v":"MOE ROHUInc<5K"},"ROHUInc5to10K",{"$f":"\"MOE \"&AF127","v":"MOE ROHUInc5to10K"},"ROHUInc10to15K",{"$f":"\"MOE \"&AH127","v":"MOE ROHUInc10to15K"},"ROHUInc15to20K",{"$f":"\"MOE \"&AJ127","v":"MOE ROHUInc15to20K"},"ROHUInc20to25K",{"$f":"\"MOE \"&AL127","v":"MOE ROHUInc20to25K"},"ROHUInc25to35K",{"$f":"\"MOE \"&AN127","v":"MOE ROHUInc25to35K"},"ROHUInc35to50K",{"$f":"\"MOE \"&AP127","v":"MOE ROHUInc35to50K"},"ROHUInc50to75K",{"$f":"\"MOE \"&AR127","v":"MOE ROHUInc50to75K"},"ROHUInc75to100K",{"$f":"\"MOE \"&AT127","v":"MOE ROHUInc75to100K"},"ROHUInc100to150K",{"$f":"\"MOE \"&AV127","v":"MOE ROHUInc100to150K"},"ROHUInc>150K",{"$f":"\"MOE \"&AX127","v":"MOE ROHUInc>150K"},"Total OCC HUInc<5K",{"$f":"\"MOE \"&AZ127","v":"MOE Total OCC HUInc<5K"},"Total OCC HUInc5to10K",{"$f":"\"MOE \"&BB127","v":"MOE Total OCC HUInc5to10K"},"Total OCC HUInc10to15K",{"$f":"\"MOE \"&BD127","v":"MOE Total OCC HUInc10to15K"},"Total OCC HUInc15to20K",{"$f":"\"MOE \"&BF127","v":"MOE Total OCC HUInc15to20K"},"Total OCC HUInc20to25K",{"$f":"\"MOE \"&BH127","v":"MOE Total OCC HUInc20to25K"},"Total OCC HUInc25to35K",{"$f":"\"MOE \"&BJ127","v":"MOE Total OCC HUInc25to35K"},"Total OCC HUInc35to50K",{"$f":"\"MOE \"&BL127","v":"MOE Total OCC HUInc35to50K"},"Total OCC HUInc50to75K",{"$f":"\"MOE \"&BN127","v":"MOE Total OCC HUInc50to75K"},"Total OCC HUInc75to100K",{"$f":"\"MOE \"&BP127","v":"MOE Total OCC HUInc75to100K"},"Total OCC HUInc100to150K",{"$f":"\"MOE \"&BR127","v":"MOE Total OCC HUInc100to150K"},"Total OCC HUInc>150K",{"$f":"\"MOE \"&BT127","v":"MOE Total OCC HUInc>150K"},"MedHHInc",{"$f":"\"MOE \"&BV127","v":"MOE MedHHInc"},"MedOwnOccHHInc",{"$f":"\"MOE \"&BX127","v":"MOE MedOwnOccHHInc"},"MedRentOccHHInc",{"$f":"\"MOE \"&BZ127","v":"MOE MedRentOccHHInc"}]
[{"$f":"VLOOKUP(DropDownList!$B$47,CntyQryCensus!$A$510:$DA$552,A$1)","v":"Allenstown"},1809,114,1333,125,32,31,15,23,29,28,18,19,14,20,208,91,162,66,303,96,226,79,192,67,134,66,476,112,16,20,0,11,157,67,7,12,9,14,37,28,81,56,109,61,25,23,35,40,0,11,48,36.891733491393431,15,25.495097567963924,186,72.615425358528341,25,22.472205054244231,23,24.413111231467404,245,95.210293561148106,243,86.556340033529608,412,113.74093370462545,251,82.28000972289685,227,78.03204469959762,134,66.91038783328041,56046,4058,64869,7492,36200,8277,344,101.25709851659784,245,87.31551981177229,268,86.092973000123536,70,43.416586692184822,null,null,null,null,null,null,null,null,null,null,null,null,null,null,null,null,null,null,null,null,null,null,null,null,null,null,null,null,null,null,null,null,null,null,null,null,null,null,null,null,"Allenstown",null,"Estimate","Margin Of Error",1824,124,34,38.626415831655933,55,52.55473337388365,105,51.429563482495162,77,64.327288144301562,152,98.716766559688324,200,88.617154095581284,133,72.862884927787476,424,122.5275479229059,352,133.68993978605869,259,101.55294185792945,33,121.49074038789952,33,42,648,178,9,14,44,49,80,46,69,63,132,96,85,58,51,53,38,33,80,73,60,43,0,114,null,null,null,null,null,null,null,null,null,null,null,null,null,null,null,null,"Allenstown",null,"Estimate","Margin Of Error",1824,124,34,38.626415831655933,55,52.55473337388365,105,51.429563482495162,77,64.327288144301562,152,98.716766559688324,200,88.617154095581284,133,72.862884927787476,424,122.5275479229059,352,133.68993978605869,259,101.55294185792945,33,121.49074038789952]
[]
["Population Data"]
["NAME","Total Population","MOE Total Population","Under 15 Years","MOE Under 15 yrs.","15 to 24 yrs.","MOE 15 to 24 yrs.","25 to 34 yrs.","MOE 25 to 34 yrs.","35 to 44 yrs.","MOE 35 to 44 yrs.","45 to 54 yrs.","MOE 45 to 54 yrs.","55 to 64 yrs.","MOE 55 to 64 yrs.","65 to 74 yrs.","MOE 65 to 74 yrs.","Over 74 yrs. ","MOE Over 74 yrs. ","TotalHH","MOE TotalHH","FamilyHH","MOE FamilyHH","MarriedFamilyHH","MOE MarriedFamilyHH","SingleFamilyHH","MOE SingleFamilyHH","Sfamily-MaleHH","MOE Sfamily-MaleHH","Sfamily-FemaleHH","MOE Sfamily-FemaleHH","NonFamilyHH","MOE NonFamilyHH","NonFamilyHH-LivingAlone","MOE NonFamilyHH-LivingAlone","NonFamilyHH-NotLivingAlone","MOE NonFamilyHH-NotLivingAlone","PopRaceWhite","MOE PopRaceWhite","PopRaceBlack","MOE PopRaceBlack","PopRaceAmerican Indian","MOE PopRaceAmerican Indian","PopRaceAsian &Pacific Is.","MOE PopRaceAsian &Pacific Is.","PopRaceOther*","MOE PopRaceOther*","PopRaceHispanic or Latino:","MOE PopRaceHispanic or Latino:","MedianAgeTotalPop","MOE MedianAgeTotalPop","MedianAgeMale","MOE MedianAgeMale","MedianAgeFemale","MOE MedianAgeFemale","AvgHHSizeTotal","MOE AvgHHSizeTotal","AvgHHSizeFamilyHH","MOE AvgHHSizeFamilyHH","AvgHHSizeNonFamilyHH","MOE AvgHHSizeNonFamilyHH"]
[{"$f":"VLOOKUP(DropDownList!$B$47,CntyQryCensus!$A$510:$DA$552,A$1)","v":"Allenstown"},4390,22,695,167.05687654209268,592,159.30787802240039,519,124.24974849069112,577,120.76009274590675,713,142.65693113199933,601,144.48529336925608,327,106.33908030446756,366,127.37739202856997,1788,107,1160,82,866,108,294,84,66,57,228,67,628,124,544,118,84,51,4093,142,15,18,0,11,14,24.596747752497688,50,47.296934361541872,192,131,42.2,3.5,40.799999999999997,3,44.8,6.8,2.4356823266219241,0.15,3.1491379310344829,0.25787734654857719,1.1178343949044587,0.32057085899609483]
[]
["Nativity and Prior Place of Residence"]
["NAME","TotalPop",{"$f":"\"MOE \"&B135","v":"MOE TotalPop"},"Native:",{"$f":"\"MOE \"&D135","v":"MOE Native:"},"NatBornInStateOfResidence",{"$f":"\"MOE \"&F135","v":"MOE NatBornInStateOfResidence"},"Born in other state in the United States:",{"$f":"\"MOE \"&H135","v":"MOE Born in other state in the United States:"},"Northeast",{"$f":"\"MOE \"&J135","v":"MOE Northeast"},"Midwest",{"$f":"\"MOE \"&L135","v":"MOE Midwest"},"South",{"$f":"\"MOE \"&N135","v":"MOE South"},"West",{"$f":"\"MOE \"&P135","v":"MOE West"},"Born outside the United States:",{"$f":"\"MOE \"&R135","v":"MOE Born outside the United States:"},"Puerto Rico",{"$f":"\"MOE \"&T135","v":"MOE Puerto Rico"},"U.S. Island Areas",{"$f":"\"MOE \"&V135","v":"MOE U.S. Island Areas"},"Born abroad of American parent(s)",{"$f":"\"MOE \"&X135","v":"MOE Born abroad of American parent(s)"},"Foreign born:",{"$f":"\"MOE \"&Z135","v":"MOE Foreign born:"},"Naturalized U.S. citizen",{"$f":"\"MOE \"&AB135","v":"MOE Naturalized U.S. citizen"},"Not a U.S. citizen",{"$f":"\"MOE \"&AD135","v":"MOE Not a U.S. citizen"},"CurrentResidenceTotal:",{"$f":"\"MOE \"&AF135","v":"MOE CurrentResidenceTotal:"},"SameHouse:",{"$f":"\"MOE \"&AH135","v":"MOE SameHouse:"},"DifferentHouse:",{"$f":"\"MOE \"&AJ135","v":"MOE DifferentHouse:"},"DiffHouseInNH",{"$f":"\"MOE \"&AL135","v":"MOE DiffHouseInNH"},"DiffHouseInNHSameCnty",{"$f":"\"MOE \"&AN135","v":"MOE DiffHouseInNHSameCnty"},"DiffHouseInNHDiffCnty",{"$f":"\"MOE \"&AP135","v":"MOE DiffHouseInNHDiffCnty"},"DiffHouseInDiffState",{"$f":"\"MOE \"&AR135","v":"MOE DiffHouseInDiffState"},"DiffHouseInElsewhere",{"$f":"\"MOE \"&AT135","v":"MOE DiffHouseInElsewhere"}]
[{"$f":"VLOOKUP(DropDownList!$B$47,CntyQryCensus!$A$510:$DA$552,A$1)","v":"Allenstown"},4370,26,4094,112,2897,207,1190,195,967,168,52,54,129,106,42,35,7,11,0,11,0,11,7,11,276,114,248,116,28,26,4309,50,3885,158,424,166.35504200354134,347,154.76756766196203,135,87,212,128,77,60,0,11]
[]
["School Enrollment - Education"]
["NAME","Total Pop 3 Years and Older","MOE Total Pop 3 Years and Older","SchEnrlPop3yrOver",{"$f":"\"MOE \"&D139","v":"MOE SchEnrlPop3yrOver"},"TotalEnrollNursy&Kinder",{"$f":"\"MOE \"&F139","v":"MOE TotalEnrollNursy&Kinder"},"NurserSchEnrl",{"$f":"\"MOE \"&H139","v":"MOE NurserSchEnrl"},"KinderSchEnrl",{"$f":"\"MOE \"&J139","v":"MOE KinderSchEnrl"},"ElemSchEnrl (1-8)",{"$f":"\"MOE \"&L139","v":"MOE ElemSchEnrl (1-8)"},"HighSchEnrl(9-12)",{"$f":"\"MOE \"&N139","v":"MOE HighSchEnrl(9-12)"},"TotalElementry&HSEnroll",{"$f":"\"MOE \"&P139","v":"MOE TotalElementry&HSEnroll"},"CollGradSchEnrl",{"$f":"\"MOE \"&R139","v":"MOE CollGradSchEnrl"},"PopNotEnrolled","MOE PopNotEnrolled","Pop25yrsOver",{"$f":"\"MOE \"&V139","v":"MOE Pop25yrsOver"},"EduAtain<9grd",{"$f":"\"MOE \"&X139","v":"MOE EduAtain<9grd"},"EduAtainHSnoDip",{"$f":"\"MOE \"&Z139","v":"MOE EduAtainHSnoDip"},"EduAtainHSgrad",{"$f":"\"MOE \"&AB139","v":"MOE EduAtainHSgrad"},"EduAtainCollNoDeg",{"$f":"\"MOE \"&AD139","v":"MOE EduAtainCollNoDeg"},"EduAtainAssocDeg",{"$f":"\"MOE \"&AF139","v":"MOE EduAtainAssocDeg"},"EduAtainBachDeg",{"$f":"\"MOE \"&AH139","v":"MOE EduAtainBachDeg"},"EduAtainGradProfDeg",{"$f":"\"MOE \"&AJ139","v":"MOE EduAtainGradProfDeg"}]
[{"$f":"VLOOKUP(DropDownList!$B$47,CntyQryCensus!$A$510:$DA$552,A$1)","v":"Allenstown"},4251,69,840,131,114,65.299310869258036,67,58,47,30,350,119.26860441876563,203,68,553,137.29166034395533,173,70.661163307718056,3411,149,3152,147,51,62.080592780675026,283,100.01999800039989,1397,181.57092278225608,495,122.15154522149935,399,111.75866856758807,369,109.85900054160332,143,65.12296062065974]
[]
["Occupied Owner Housing Value"]
["NAME","Estimate; Total:","Margin of Error; Total:","Estimate; Total: - Less than $10,000","Margin of Error; Total: - Less than $10,000","Estimate; Total: - $10,000 to $14,999","Margin of Error; Total: - $10,000 to $14,999","Estimate; Total: - $15,000 to $19,999","Margin of Error; Total: - $15,000 to $19,999","Estimate; Total: - $20,000 to $24,999","Margin of Error; Total: - $20,000 to $24,999","Estimate; Total: - $25,000 to $29,999","Margin of Error; Total: - $25,000 to $29,999","Estimate; Total: - $30,000 to $34,999","Margin of Error; Total: - $30,000 to $34,999","Estimate; Total: - $35,000 to $39,999","Margin of Error; Total: - $35,000 to $39,999","Estimate; Total: - $40,000 to $49,999","Margin of Error; Total: - $40,000 to $49,999","Estimate; Total: - $50,000 to $59,999","Margin of Error; Total: - $50,000 to $59,999","Estimate; Total: - $60,000 to $69,999","Margin of Error; Total: - $60,000 to $69,999","Estimate; Total: - $70,000 to $79,999","Margin of Error; Total: - $70,000 to $79,999","Estimate; Total: - $80,000 to $89,999","Margin of Error; Total: - $80,000 to $89,999","Estimate; Total: - $90,000 to $99,999","Margin of Error; Total: - $90,000 to $99,999","Estimate; Total: - $100,000 to $124,999","Margin of Error; Total: - $100,000 to $124,999","Estimate; Total: - $125,000 to $149,999","Margin of Error; Total: - $125,000 to $149,999","Estimate; Total: - $150,000 to $174,999","Margin of Error; Total: - $150,000 to $174,999","Estimate; Total: - $175,000 to $199,999","Margin of Error; Total: - $175,000 to $199,999","Estimate; Total: - $200,000 to $249,999","Margin of Error; Total: - $200,000 to $249,999","Estimate; Total: - $250,000 to $299,999","Margin of Error; Total: - $250,000 to $299,999","Estimate; Total: - $300,000 to $399,999","Margin of Error; Total: - $300,000 to $399,999","Estimate; Total: - $400,000 to $499,999","Margin of Error; Total: - $400,000 to $499,999","Estimate; Total: - $500,000 to $749,999","Margin of Error; Total: - $500,000 to $749,999","Estimate; Total: - $750,000 to $999,999","Margin of Error; Total: - $750,000 to $999,999","Estimate; Total: - $1,000,000 to $1,499,999","Margin of Error; Total: - $1,000,000 to $1,499,999","Estimate; Total: - $1,500,000 to $1,999,999","Margin of Error; Total: - $1,500,000 to $1,999,999","Estimate; Total: - $2,000,000 or more","Margin of Error; Total: - $2,000,000 or more","MedianOwnOCCHomeValue","MOE MedianOwnOCCHomeValue","OnwerOccHsU","MOE OnwerOccHsU","OwnerCosts>20PctHHInc","MOE OwnerCosts>20PctHHInc","OwnerCosts20to29.9PctHHInc","MOE OwnerCosts20to29.9PctHHInc","OwnerCosts<30PctHHInc","MOE OwnerCosts<30PctHHInc","OwnerCosts>30PctHHInc","MOE OwnerCosts>30PctHHInc","OwnerCosts30to34.9PctHHInc","MOE OwnerCosts30to34.9PctHHInc","OwnerCosts<35PctHHInc","MOE OwnerCosts<35PctHHInc","OwnerCosts>35PctHHInc","MOE OwnerCosts>35PctHHInc","OwnerCosts>50PctHHInc","MOE OwnerCosts>50PctHHInc","OwnerCostsPctNotcomputed","MOE OwnerCostsPctNotcomputed","OwnerOHUHhInc<20k","MOE OwnerOHUHhInc<20k","OwnerOHUHhInc<20kHCosts<20pct","MOE OwnerOHUHhInc<20kHCosts<20pct","OwnerOHUHhInc<20kHCosts20to29pct","MOE OwnerOHUHhInc<20kHCosts20to29pct","OwnerOHUHhInc>20kHCosts30pct","MOE OwnerOHUHhInc>20kHCosts30pct","OwnerOHUHhInc20kTo34999","MOE OwnerOHUHhInc20kTo34999","OwnerOHUHhInc20kTo34999HCosts<20pct","MOE OwnerOHUHhInc20kTo34999HCosts<20pct","OwnerOHUHhInc20kTo34999HCosts20to29pct","MOE OwnerOHUHhInc20kTo34999HCosts20to29pct","OwnerOHUHhInc20kTo34999HCosts30pct","MOE OwnerOHUHhInc20kTo34999HCosts30pct","OwnerOHUHhInc35kTo49999","MOE OwnerOHUHhInc35kTo49999","OwnerOHUHhInc35kTo49999HCosts<20pct","MOE OwnerOHUHhInc35kTo49999HCosts<20pct","OwnerOHUHhInc35kTo49999HCosts20to29pct","MOE OwnerOHUHhInc35kTo49999HCosts20to29pct","OwnerOHUHhInc35kTo49999HCosts30pct","MOE OwnerOHUHhInc35kTo49999HCosts30pct","OwnerOHUHhInc50kTo74999","MOE OwnerOHUHhInc50kTo74999","OwnerOHUHhInc50kTo74999HCosts<20pct","MOE OwnerOHUHhInc50kTo74999HCosts<20pct","OwnerOHUHhInc50kTo74999HCosts20to29pct","MOE OwnerOHUHhInc50kTo74999HCosts20to29pct","OwnerOHUHhInc50kTo74999HCosts30pct","MOE OwnerOHUHhInc50kTo74999HCosts30pct","OwnerOHUHhInc>75000","MOE OwnerOHUHhInc>75000","OwnerOHUHhInc>75000HCosts<20pct","MOE OwnerOHUHhInc>75000HCosts<20pct","OwnerOHUHhInc>75000HCosts20to29pct","MOE OwnerOHUHhInc>75000HCosts20to29pct","OwnerOHUHhInc>75000HCosts30pct","MOE OwnerOHUHhInc>75000HCosts30pct","ZeroOrNegativeIncome","MOE ZeroOrNegativeIncome"]
[{"$f":"VLOOKUP(DropDownList!$B$47,CntyQryCensus!$A$510:$DA$552,A$1)","v":"Allenstown"},1333,125,38,26,46,47,52,55,33,31,14,17,9,14,43,50,67,49,43,25,93,45,47,35,35,30,33,29,43,25,50,32,159,66,99,55,283,100,113,73,23,21,0,11,0,11,0,11,10,15,0,11,0,11,153200,21957,1163,163,332,89.727364833700534,414,122.74770873625299,746,152.04604565722846,417,115.98275733918383,80,46.097722286464439,826,158.88045820679145,337,106.42837967384452,211,84.899941107164494,0,15.556349186104045,62,44,12,18,0,11,50,36,222,95,78,66,25,34,119,67,162,66,18,16,41,27,103,56,303,96,131,62,48,32,124,64,552,104,340,88,123,54,89,55,32,31]
[]
["Occupied Rental Housing Value"]
["NAME","RntrOccHU","MOE RntrOccHU","RntrOccHUwRent","MOE RntrOccHUwRent","ROHUGRent<100","MOE ROHUGRent<100","ROHUGRent100to149","MOE ROHUGRent100to149","ROHUGRent150to199","MOE ROHUGRent150to199","ROHUGRent200to249","MOE ROHUGRent200to249","ROHUGRent250to299","MOE ROHUGRent250to299","ROHUGRent300to349","MOE ROHUGRent300to349","ROHUGRent350to399","MOE ROHUGRent350to399","ROHUGRent400to449","MOE ROHUGRent400to449","ROHUGRent450to499","MOE ROHUGRent450to499","ROHUGRent500to549","MOE ROHUGRent500to549","ROHUGRent550to599","MOE ROHUGRent550to599","ROHUGRent600to649","MOE ROHUGRent600to649","ROHUGRent650to699","MOE ROHUGRent650to699","ROHUGRent700to749","MOE ROHUGRent700to749","ROHUGRent750to799","MOE ROHUGRent750to799","ROHUGRent800to899","MOE ROHUGRent800to899","ROHUGRent900to999","MOE ROHUGRent900to999","ROHUGRent1000to1249","MOE ROHUGRent1000to1249","ROHUGRent1250to1499","MOE ROHUGRent1250to1499","ROHUGRent1500to1999","MOE ROHUGRent1500to1999","ROHUGRent2000-2499","MOE ROHUGRent2000-2499","ROHUGRent2500-2999","MOE ROHUGRent2500-2999","ROHUGRent3000-3499","MOE ROHUGRent3000-3499","ROHUGRent3500<","MOE ROHUGRent3500<","ROHUNoGRent","MOE ROHUNoGRent","MedianGrossRnt","MOE MedianGrossRnt","H73RenterOccHU","MOE H73RenterOccHU","H73ROHUHhInc<10k","MOE H73ROHUHhInc<10k","H73ROHUHhInc<10kRnt<20pct","MOE H73ROHUHhInc<10kRnt<20pct","H73ROHUHhInc<10kRnt20to25pct","MOE H73ROHUHhInc<10kRnt20to25pct","H73ROHUHhInc<10kRnt25to30pct","MOE H73ROHUHhInc<10kRnt25to30pct","H73ROHUHhInc<10kRnt30to35pct","MOE H73ROHUHhInc<10kRnt30to35pct","H73ROHUHhInc<10kRnt35to39.9","MOE H73ROHUHhInc<10kRnt35to39.9","H73ROHUHhInc<10kRnt40to49.9","MOE H73ROHUHhInc<10kRnt40to49.9","H73ROHUHhInc<10kRnt>50pct","MOE H73ROHUHhInc<10kRnt>50pct","H73ROHUHhInc<10kPctNotComput","MOE H73ROHUHhInc<10kPctNotComput","H73ROHUHhInc10to20k","MOE H73ROHUHhInc10to20k","H73ROHUHhInc10to20kRnt<20pct","MOE H73ROHUHhInc10to20kRnt<20pct","H73ROHUHhInc10to20kRnt20to25pct","MOE H73ROHUHhInc10to20kRnt20to25pct","H73ROHUHhInc10to20kRnt25to30pct","MOE H73ROHUHhInc10to20kRnt25to30pct","H73ROHUHhInc10to20kRnt30to35pct","MOE H73ROHUHhInc10to20kRnt30to35pct","H73ROHUHhInc10to20kRnt35to39.9","MOE H73ROHUHhInc10to20kRnt35to39.9","H73ROHUHhInc10to20kRnt40to49.9","MOE H73ROHUHhInc10to20kRnt40to49.9","H73ROHUHhInc10to20kRnt>50pct","MOE H73ROHUHhInc10to20kRnt>50pct","H73ROHUHhInc10to20kRntPctNC","MOE H73ROHUHhInc10to20kRntPctNC","H73ROHUHhInc20to34.9k","MOE H73ROHUHhInc20to34.9k","H73ROHUHhInc20to34.9kRnt<20pct","MOE H73ROHUHhInc20to34.9kRnt<20pct","H73ROHUHhInc20to34.9kRnt20to25pct","MOE H73ROHUHhInc20to34.9kRnt20to25pct","H73ROHUHhInc20to34.9kRnt25to30pct","MOE H73ROHUHhInc20to34.9kRnt25to30pct","H73ROHUHhInc20to34.9kRnt30to35pct","MOE H73ROHUHhInc20to34.9kRnt30to35pct","H73ROHUHhInc20to34.9kRnt35to39.9","MOE H73ROHUHhInc20to34.9kRnt35to39.9","H73ROHUHhInc20to34.9kRnt40to49.9","MOE H73ROHUHhInc20to34.9kRnt40to49.9","H73ROHUHhInc20to34.9kRnt>50pct","MOE H73ROHUHhInc20to34.9kRnt>50pct","H73ROHUHhInc20to34.9kRntPctNC","MOE H73ROHUHhInc20to34.9kRntPctNC","H73ROHUHhInc35to49.9k","MOE H73ROHUHhInc35to49.9k","H73ROHUHhInc35to49.9kRnt<20pct","MOE H73ROHUHhInc35to49.9kRnt<20pct","H73ROHUHhInc35to49.9kRnt20to25pct","MOE H73ROHUHhInc35to49.9kRnt20to25pct","H73ROHUHhInc35to49.9kRnt25to30pct","MOE H73ROHUHhInc35to49.9kRnt25to30pct","H73ROHUHhInc35to49.9kRnt30to35pct","MOE H73ROHUHhInc35to49.9kRnt30to35pct","H73ROHUHhInc35to49.9kRnt35to39.9","MOE H73ROHUHhInc35to49.9kRnt35to39.9","H73ROHUHhInc35to49.9kRnt40to49.9","MOE H73ROHUHhInc35to49.9kRnt40to49.9","H73ROHUHhInc35to49.9kRnt>50pct","MOE H73ROHUHhInc35to49.9kRnt>50pct","H73ROHUHhInc35to49.9kRntPctNC","MOE H73ROHUHhInc35to49.9kRntPctNC","H73ROHUHhInc50to74.9k","MOE H73ROHUHhInc50to74.9k","H73ROHUHhInc50to74.9kRnt<20pct","MOE H73ROHUHhInc50to74.9kRnt<20pct","H73ROHUHhInc50to74.9kRnt20to25pct","MOE H73ROHUHhInc50to74.9kRnt20to25pct","H73ROHUHhInc50to74.9kRnt25to30pct","MOE H73ROHUHhInc50to74.9kRnt25to30pct","H73ROHUHhInc50to74.9kRnt30to35pct","MOE H73ROHUHhInc50to74.9kRnt30to35pct","H73ROHUHhInc50to74.9kRnt35to39.9","MOE H73ROHUHhInc50to74.9kRnt35to39.9","H73ROHUHhInc50to74.9kRnt40to49.9","MOE H73ROHUHhInc50to74.9kRnt40to49.9","H73ROHUHhInc50to74.9kRnt>50pct","MOE H73ROHUHhInc50to74.9kRnt>50pct","H73ROHUHhInc50to74.9kRntPctNC","MOE H73ROHUHhInc50to74.9kRntPctNC","H73ROHUHhInc75to99.9k","MOE H73ROHUHhInc75to99.9k","H73ROHUHhInc75to99.9kRnt<20pct","MOE H73ROHUHhInc75to99.9kRnt<20pct","H73ROHUHhInc75to99.9kRnt20to25pct","MOE H73ROHUHhInc75to99.9kRnt20to25pct","H73ROHUHhInc75to99.9kRnt25to30pct","MOE H73ROHUHhInc75to99.9kRnt25to30pct","H73ROHUHhInc75to99.9kRnt30to35pct","MOE H73ROHUHhInc75to99.9kRnt30to35pct","H73ROHUHhInc75to99.9kRnt35to39.9","MOE H73ROHUHhInc75to99.9kRnt35to39.9","H73ROHUHhInc75to99.9kRnt40to49.9","MOE H73ROHUHhInc75to99.9kRnt40to49.9","H73ROHUHhInc75to99.9kRnt>50pct","MOE H73ROHUHhInc75to99.9kRnt>50pct","H73ROHUHhInc75to99.9kRntPctNC","MOE H73ROHUHhInc75to99.9kRntPctNC","H73ROHUHhInc>100k","MOE H73ROHUHhInc>100k","H73ROHUHhInc>100kRnt<20pct","MOE H73ROHUHhInc>100kRnt<20pct","H73ROHUHhInc>100kRnt20to25pct","MOE H73ROHUHhInc>100kRnt20to25pct","H73ROHUHhInc>100kRnt25to30pct","MOE H73ROHUHhInc>100kRnt25to30pct","H73ROHUHhInc>100kRnt30to35pct","MOE H73ROHUHhInc>100kRnt30to35pct","H73ROHUHhInc>100kRnt35to39.9","MOE H73ROHUHhInc>100kRnt35to39.9","H73ROHUHhInc>100kRnt40to49.9","MOE H73ROHUHhInc>100kRnt40to49.9","H73ROHUHhInc>100kRnt>50pct","MOE H73ROHUHhInc>100kRnt>50pct","H73ROHUHhInc>100kRntPctNC","MOE H73ROHUHhInc>100kRntPctNC"]
[{"$f":"VLOOKUP(DropDownList!$B$47,CntyQryCensus!$A$510:$DA$552,A$1)","v":"Allenstown"},476,112,455,110,0,11,0,11,30,49,13,20,11,17,3,7,7,12,0,11,0,11,0,11,30,47,15,23,13,20,45,27,31,48,35,30,10,15,91,74,78,57,43,48,0,11,0,11,0,11,0,11,21,23,884,295,476,112,16,20,0,11,0,11,0,11,0,11,0,11,0,11,16,20,0,11,164,67,30,49,20,24,11,17,0,11,0,11,0,11,103,62,0,11,46,31,0,11,0,11,11,16,0,11,10,15,17,18,8,12,0,11,81,56,0,11,15,23,15,18,0,11,41,49,0,11,0,11,10,15,109,61,46,32,10,15,0,11,24,30,29,43,0,11,0,11,0,11,25,23,0,11,6,9,8,13,0,11,0,11,0,11,0,11,11,17,35,40,35,40,0,11,0,11,0,11,0,11,0,11,0,11,0,11,775,75]
[]
[]
[null,34.700000000000003,33,39.200000000000003,3,4.0999999999999996,2.7]
[]
[]
["Occupied Rental Housing Cost Burdern All Incomes"]
["NAME","RenterOccHsU",{"$f":"\"MOE \"&B155","v":"MOE RenterOccHsU"},"GRnt<20PctHHInc",{"$f":"\"MOE \"&D155","v":"MOE GRnt<20PctHHInc"},"GRnt20to249PctHHInc",{"$f":"\"MOE \"&F155","v":"MOE GRnt20to249PctHHInc"},"GRnt25to29.9PctHHInc",{"$f":"\"MOE \"&H155","v":"MOE GRnt25to29.9PctHHInc"},"GRnt<30PctHHInc",{"$f":"\"MOE \"&J155","v":"MOE GRnt<30PctHHInc"},"GRnt>30PctHHInc",{"$f":"\"MOE \"&L155","v":"MOE GRnt>30PctHHInc"},"GRnt30to349PctHHInc",{"$f":"\"MOE \"&N155","v":"MOE GRnt30to349PctHHInc"},"GRnt<35PctHHInc",{"$f":"\"MOE \"&P155","v":"MOE GRnt<35PctHHInc"},"GRnt>35PctHHInc",{"$f":"\"MOE \"&R155","v":"MOE GRnt>35PctHHInc"},"GRnt>50PctHHInc",{"$f":"\"MOE \"&T155","v":"MOE GRnt>50PctHHInc"},"HCB Not Calculated",{"$f":"\"MOE \"&V155","v":"MOE HCB Not Calculated"}]
[{"$f":"VLOOKUP(DropDownList!$B$47,CntyQryCensus!$A$510:$DA$552,A$1)","v":"Allenstown"},476,112,111,70.242437315343778,51,39,45,33,207,86.856203002433858,248,99.679486355016891,24,30,231,91.891240061281138,224,95.057877106529162,127,66,21,23]
[]
["Income By Household Type and Tenure"]
["NAME","TotalFamilyHouseholds",{"$f":"\"MOE \"&B159","v":"MOE TotalFamilyHouseholds"},"FamInc<10K",{"$f":"\"MOE \"&D159","v":"MOE FamInc<10K"},"FamInc10to15K",{"$f":"\"MOE \"&F159","v":"MOE FamInc10to15K"},"FamInc15to20K",{"$f":"\"MOE \"&H159","v":"MOE FamInc15to20K"},"FamInc20to25K",{"$f":"\"MOE \"&J159","v":"MOE FamInc20to25K"},"FamInc25to30K",{"$f":"\"MOE \"&L159","v":"MOE FamInc25to30K"},"FamInc30to35K",{"$f":"\"MOE \"&N159","v":"MOE FamInc30to35K"},"FamInc35to40K",{"$f":"\"MOE \"&P159","v":"MOE FamInc35to40K"},"FamInc40to45K",{"$f":"\"MOE \"&R159","v":"MOE FamInc40to45K"},"FamInc45to50K",{"$f":"\"MOE \"&T159","v":"MOE FamInc45to50K"},"FamInc50to60K",{"$f":"\"MOE \"&V159","v":"MOE FamInc50to60K"},"FamInc60to75K",{"$f":"\"MOE \"&X159","v":"MOE FamInc60to75K"},"FamInc75to100K",{"$f":"\"MOE \"&Z159","v":"MOE FamInc75to100K"},"FamInc100to125K",{"$f":"\"MOE \"&AB159","v":"MOE FamInc100to125K"},"FamInc125to150K",{"$f":"\"MOE \"&AD159","v":"MOE FamInc125to150K"},"FamInc150to200K",{"$f":"\"MOE \"&AF159","v":"MOE FamInc150to200K"},"FamInc>200K",{"$f":"\"MOE \"&AH159","v":"MOE FamInc>200K"},"MedFamInc",{"$f":"\"MOE \"&AJ159","v":"MOE MedFamInc"},"TotalNonNonFamilyHouseholds",{"$f":"\"MOE \"&AL159","v":"MOE TotalNonNonFamilyHouseholds"},"NonFamInc<10K",{"$f":"\"MOE \"&AN159","v":"MOE NonFamInc<10K"},"NonFamInc10to15K",{"$f":"\"MOE \"&AP159","v":"MOE NonFamInc10to15K"},"NonFamInc15to20K",{"$f":"\"MOE \"&AR159","v":"MOE NonFamInc15to20K"},"NonFamInc20to25K",{"$f":"\"MOE \"&AT159","v":"MOE NonFamInc20to25K"},"NonFamInc25to30K",{"$f":"\"MOE \"&AV159","v":"MOE NonFamInc25to30K"},"NonFamInc30to35K",{"$f":"\"MOE \"&AX159","v":"MOE NonFamInc30to35K"},"NonFamInc35to40K",{"$f":"\"MOE \"&AZ159","v":"MOE NonFamInc35to40K"},"NonFamInc40to45K",{"$f":"\"MOE \"&BB159","v":"MOE NonFamInc40to45K"},"NonFamInc45to50K",{"$f":"\"MOE \"&BD159","v":"MOE NonFamInc45to50K"},"NonFamInc50to60K",{"$f":"\"MOE \"&BF159","v":"MOE NonFamInc50to60K"},"NonFamInc60to75K",{"$f":"\"MOE \"&BH159","v":"MOE NonFamInc60to75K"},"NonFamInc75to100K",{"$f":"\"MOE \"&BJ159","v":"MOE NonFamInc75to100K"},"NonFamInc100to125K",{"$f":"\"MOE \"&BL159","v":"MOE NonFamInc100to125K"},"NonFamInc125to150K",{"$f":"\"MOE \"&BN159","v":"MOE NonFamInc125to150K"},"NonFamInc150to200K",{"$f":"\"MOE \"&BP159","v":"MOE NonFamInc150to200K"},"NonFamInc>200K",{"$f":"\"MOE \"&BR159","v":"MOE NonFamInc>200K"},"MedNonFamInc",{"$f":"\"MOE \"&BT159","v":"MOE MedNonFamInc"},"PerCapitaIncome","MOE PerCapitaIncome"]
[{"$f":"VLOOKUP(DropDownList!$B$47,CntyQryCensus!$A$510:$DA$552,A$1)","v":"Allenstown"},1147,92,30,30,65,51,8,11,12,17,51,52,49,53,66,53,77,43,15,19,120,75,149,62,218,82,76,40,87,41,109,61,15,17,68177,9462,662,137,41,36,128,61,17,15,19,20,29,26,93,66,34,31,40,32,19,20,94,60,61,42,20,23,37,45,20,22,10,15,0,11,35345,6331]
[]
[]
[]
["2010 Census"]
[]
["TownName","LOGRECNO","COUNTY","TotalPop","TotalPop1Race","TotalPopWhite","TotalPopAfricanAmerican","TotalPopAmericanIndAlaska","TotalPopAsian","TotalPopNativeHawaiianPIsland","TotalPopSomeOtherRace","TotalPopTwoOrMoreRaces","TotalPopHispanicLatino","TotalNonHispanicLatino","TotPopUnder15yrs","TotPop15to24yrs","TotPop25to34yrs","TotPop35to44yrs","TotPop45to54yrs","TotPop55to64yrs","TotPop65to74yrs","TotPopOver74yrs","MedianAge","MedianAgeMale","MedianAgeFemale","TotalHH","TotalPopInHouseholds","TotalPopInFamilyHH","TotalPopInNonFamilyHH","AvgHHSize","TotalFamilyHH","TotalFamilyHHSpouse","TotalSingleParentHH","TotalNonFamilyHH","AvgFamilyHHSize","AvgNonFamilyHHSize","AverageHHSizeOwnerOccupied","AverageHHSizeRentalOccupied","TotalHousingUnits","TotalOccupiedHU","TotalOwnerOccupiedHUs","TotalRentalOccupiedHU","TotalVacantHU","VacantHUForRent","VacantHURentNotOccupied","VacantHUForSale","VacantHUsSoldNotOccupied","VacantHUSeasonalRecreational","VacantHUsAllOtherVacants","HomeOwnerVacancyRate","HomeRentalVacancyRate","Total HH","Total Single Family HU","Total Multi-Family HU","Total Manufacture HU"]
[{"$f":"VLOOKUP(DropDownList!$B$47,CntyQryCensus!$A$542:$DA$568,A$1)","v":"Allenstown"},{"$f":"VLOOKUP(DropDownList!$B$47,CntyQryCensus!$A$542:$DA$568,B$1)","v":"0000153"},{"$f":"VLOOKUP(DropDownList!$B$47,CntyQryCensus!$A$542:$DA$568,C$1)","v":"013"},{"$f":"VLOOKUP(DropDownList!$B$47,CntyQryCensus!$A$542:$DA$568,D$1)","v":4322},{"$f":"VLOOKUP(DropDownList!$B$47,CntyQryCensus!$A$542:$DA$568,E$1)","v":4245},{"$f":"VLOOKUP(DropDownList!$B$47,CntyQryCensus!$A$542:$DA$568,F$1)","v":4142},{"$f":"VLOOKUP(DropDownList!$B$47,CntyQryCensus!$A$542:$DA$568,G$1)","v":35},{"$f":"VLOOKUP(DropDownList!$B$47,CntyQryCensus!$A$542:$DA$568,H$1)","v":15},{"$f":"VLOOKUP(DropDownList!$B$47,CntyQryCensus!$A$542:$DA$568,I$1)","v":34},{"$f":"VLOOKUP(DropDownList!$B$47,CntyQryCensus!$A$542:$DA$568,J$1)","v":2},{"$f":"VLOOKUP(DropDownList!$B$47,CntyQryCensus!$A$542:$DA$568,K$1)","v":17},{"$f":"VLOOKUP(DropDownList!$B$47,CntyQryCensus!$A$542:$DA$568,L$1)","v":77},{"$f":"VLOOKUP(DropDownList!$B$47,CntyQryCensus!$A$542:$DA$568,M$1)","v":79},{"$f":"VLOOKUP(DropDownList!$B$47,CntyQryCensus!$A$542:$DA$568,N$1)","v":4243},{"$f":"VLOOKUP(DropDownList!$B$47,CntyQryCensus!$A$542:$DA$568,O$1)","v":755},{"$f":"VLOOKUP(DropDownList!$B$47,CntyQryCensus!$A$542:$DA$568,P$1)","v":513},{"$f":"VLOOKUP(DropDownList!$B$47,CntyQryCensus!$A$542:$DA$568,Q$1)","v":546},{"$f":"VLOOKUP(DropDownList!$B$47,CntyQryCensus!$A$542:$DA$568,R$1)","v":604},{"$f":"VLOOKUP(DropDownList!$B$47,CntyQryCensus!$A$542:$DA$568,S$1)","v":798},{"$f":"VLOOKUP(DropDownList!$B$47,CntyQryCensus!$A$542:$DA$568,T$1)","v":582},{"$f":"VLOOKUP(DropDownList!$B$47,CntyQryCensus!$A$542:$DA$568,U$1)","v":295},{"$f":"VLOOKUP(DropDownList!$B$47,CntyQryCensus!$A$542:$DA$568,V$1)","v":229},{"$f":"VLOOKUP(DropDownList!$B$47,CntyQryCensus!$A$542:$DA$568,W$1)","v":41},{"$f":"VLOOKUP(DropDownList!$B$47,CntyQryCensus!$A$542:$DA$568,X$1)","v":39.799999999999997},{"$f":"VLOOKUP(DropDownList!$B$47,CntyQryCensus!$A$542:$DA$568,Y$1)","v":42.2},{"$f":"VLOOKUP(DropDownList!$B$47,CntyQryCensus!$A$542:$DA$568,Z$1)","v":1756},{"$f":"VLOOKUP(DropDownList!$B$47,CntyQryCensus!$A$542:$DA$568,AA$1)","v":4299},{"$f":"VLOOKUP(DropDownList!$B$47,CntyQryCensus!$A$542:$DA$568,AB$1)","v":2219},{"$f":"VLOOKUP(DropDownList!$B$47,CntyQryCensus!$A$542:$DA$568,AC$1)","v":2080},{"$f":"VLOOKUP(DropDownList!$B$47,CntyQryCensus!$A$542:$DA$568,AD$1)","v":2.4500000000000002},{"$f":"VLOOKUP(DropDownList!$B$47,CntyQryCensus!$A$542:$DA$568,AE$1)","v":1150},{"$f":"VLOOKUP(DropDownList!$B$47,CntyQryCensus!$A$542:$DA$568,AF$1)","v":846},{"$f":"VLOOKUP(DropDownList!$B$47,CntyQryCensus!$A$542:$DA$568,AG$1)","v":304},{"$f":"VLOOKUP(DropDownList!$B$47,CntyQryCensus!$A$542:$DA$568,AH$1)","v":606},{"$f":"VLOOKUP(DropDownList!$B$47,CntyQryCensus!$A$542:$DA$568,AI$1)","v":2.93},{"$f":"VLOOKUP(DropDownList!$B$47,CntyQryCensus!$A$542:$DA$568,AJ$1)","v":3.4323432343234321},{"$f":"VLOOKUP(DropDownList!$B$47,CntyQryCensus!$A$542:$DA$568,AK$1)","v":2.6},{"$f":"VLOOKUP(DropDownList!$B$47,CntyQryCensus!$A$542:$DA$568,AL$1)","v":1.98},{"$f":"VLOOKUP(DropDownList!$B$47,CntyQryCensus!$A$542:$DA$568,AM$1)","v":1881},{"$f":"VLOOKUP(DropDownList!$B$47,CntyQryCensus!$A$542:$DA$568,AN$1)","v":1756},{"$f":"VLOOKUP(DropDownList!$B$47,CntyQryCensus!$A$542:$DA$568,AO$1)","v":1324},{"$f":"VLOOKUP(DropDownList!$B$47,CntyQryCensus!$A$542:$DA$568,AP$1)","v":432},{"$f":"VLOOKUP(DropDownList!$B$47,CntyQryCensus!$A$542:$DA$568,AQ$1)","v":125},{"$f":"VLOOKUP(DropDownList!$B$47,CntyQryCensus!$A$542:$DA$568,AR$1)","v":43},{"$f":"VLOOKUP(DropDownList!$B$47,CntyQryCensus!$A$542:$DA$568,AS$1)","v":1},{"$f":"VLOOKUP(DropDownList!$B$47,CntyQryCensus!$A$542:$DA$568,AT$1)","v":32},{"$f":"VLOOKUP(DropDownList!$B$47,CntyQryCensus!$A$542:$DA$568,AU$1)","v":3},{"$f":"VLOOKUP(DropDownList!$B$47,CntyQryCensus!$A$542:$DA$568,AV$1)","v":14},{"$f":"VLOOKUP(DropDownList!$B$47,CntyQryCensus!$A$542:$DA$568,AW$1)","v":32},{"$f":"VLOOKUP(DropDownList!$B$47,CntyQryCensus!$A$542:$DA$568,AX$1)","v":2.4},{"$f":"VLOOKUP(DropDownList!$B$47,CntyQryCensus!$A$542:$DA$568,AY$1)","v":9},{"$f":"VLOOKUP(DropDownList!$B$47,CntyQryCensus!$A$542:$DA$568,AZ$1)","v":1881},{"$f":"VLOOKUP(DropDownList!$B$47,CntyQryCensus!$A$542:$DA$568,BA$1)","v":806},{"$f":"VLOOKUP(DropDownList!$B$47,CntyQryCensus!$A$542:$DA$568,BB$1)","v":679},{"$f":"VLOOKUP(DropDownList!$B$47,CntyQryCensus!$A$542:$DA$568,BC$1)","v":396}]

{"sheet":"CntyQuery","index":8,"n_rows":245,"n_cols":243,"rows_kept":245,"cut":false,"hidden":true,"merged":[]}
["CountyName","Cnty_Code","Census_Cnty_Code","LandAcres","WaterAcres","HousingUnits90Cen","Persons90Cen","Families90Cen","Households90cen","MalePop90cen","FemalePop90cen","WhitePop","BlackPop","AmerIndianPop","AsianPIPop","OtherRacePop","HispanicOrPop","AgeUnder15_90cen","Age15to24_90cen","Age25to34_90cen","Age35to44_90cen","Age45to54_90cen","Age55to64_90cen","Age65to74_90cen","Age75andOver_90cen","PersonsInHH90cen","PersonsInFamHH90cen","PersonsInGC","PersonsPerHH90cen","PersonsPerFam90Cen","SinglePersonHH90cen","MarriedCoupleHH90cen","SingleParentHH90cen","NonFamilyHH90cen","TotalHousingUnits","OccupiedHousingUnits","VacantHousingUnits","OwnerOccHU","RenterOccHU","VacantForRent90","VacantForSale90","VacantSeasonalRec","SingFamHU90cen","MultiFamHU90cen","MobileHom90cen","SingFamOwnHU90cen","MultiFamOwnHU90cen","MobileHomOwnHU90cen","SingFamRntrHU90cen","MultiFamRntrHU90cen","MobileHomRntrHU90cen","HU<5yrs90cen","HU5to20yrs90cen","HU20to50yrs90cen","HU>50yrs90cen","Units0Bedroom90cen","Units1Bedroom90cen","Units2Bedroom90cen","Units3Bedroom90cen","Units4+Bedroom90cen","HI<5K","HI5Kto10K","HI10Kto15K","HI15Kto25K","HI25Kto35K","HI35Kto50K","HI50Kto75K","HI75Kto100K","HI>100K","MedHI","HH<25HI<5K","HH<25HI5Kto10K","HH<25HI10Kto15K","HH<25HI15Kto25K","HH<25HI25Kto35K","HH<25HI35Kto50K","HH<25HI50Kto75K","HH<25HI75Kto100K","HH<25HI>100K","HH25to34HI<5K","HH25to34HI5Kto10K","HH25to34HI10Kto15K","HH25to34HI15Kto25K","HH25to34HI25Kto35K","HH25to34HI35Kto50K","HH25to34HI50Kto75K","HH25to34HI75Kto100K","HH25to34HI>100K","HH35to44HI<5K","HH35to44HI5Kto10K","HH35to44HI10Kto15K","HH35to44HI15Kto25K","HH35to44HI25Kto35K","HH35to44HI35Kto50K","HH35to44HI50Kto75K","HH35to44HI75Kto100K","HH35to44HI>100K","HH45to54HI<5K","HH45to54HI5Kto10K","HH45to54HI10Kto15K","HH45to54HI15Kto25K","HH45to54HI25Kto35K","HH45to54HI35Kto50K","HH45to54HI50Kto75K","HH45to54HI75Kto100K","HH45to54HI>100K","HH55to64HI<5K","HH55to64HI5Kto10K","HH55to64HI10Kto15K","HH55to64HI15Kto25K","HH55to64HI25Kto35K","HH55to64HI35Kto50K","HH55to64HI50Kto75K","HH55to64HI75Kto100K","HH55to64HI>100K","HH65to74HI<5K","HH65to74HI5Kto10K","HH65to74HI10Kto15K","HH65to74HI15Kto25K","HH65to74HI25Kto35K","HH65to74HI35Kto50K","HH65to74HI50Kto75K","HH65to74HI75Kto100K","HH65to74HI>100K","HH>75HI<5K","HH>75HI5Kto10K","HH>75HI10Kto15K","HH>75HI15Kto25K","HH>75HI25Kto35K","HH>75HI35Kto50K","HH>75HI50Kto75K","HH>75HI75Kto100K","HH>75HI>100K","SchoolEnrollment1thru12","Pop25andOver","HSGradorHigher","CollGradorHigher","NativePop","ForeignBornPop","BornStateOfRes","NativePop2","ForeignBornPop2","DroveAlone","CarPooled","PublicTranspt","Walked","OtherMeans","WorkedAtHome","HHInc<10K","HHInc10to15K","HHInc15to25K","HHInc25to35K","HHInc35to50K","HHInc50to75K","HHInc75to100K","HHInc100to150K","HHInc>150K"]
["Census 1990 Data -           Query Name:  DPCnty90Census"]
["NAME","FIPS","COUSUBFP","LandAcres","WaterAcres","HousingUnits90Cen","Persons90Cen","Families90Cen","Households90cen","MalePop90cen","FemalePop90cen","WhitePop","BlackPop","AmerIndianPop","AsianPIPop","OtherRacePop","HispanicOrPop","AgeUnder15_90cen","Age15to24_90cen","Age25to34_90cen","Age35to44_90cen","Age45to54_90cen","Age55to64_90cen","Age65to74_90cen","Age75andOver_90cen","PersonsInHH90cen","PersonsInFamHH90cen","PersonsInGC","PersonsPerHH90cen","PersonsPerFam90Cen","SinglePersonHH90cen","MarriedCoupleHH90cen","SingleParentHH90cen","NonFamilyHH90cen","TotalHousingUnits","OccupiedHousingUnits","VacantHousingUnits","OwnerOccHU","RenterOccHU","VacantForRent90","VacantForSale90","VacantSeasonalRec","SingFamHU90cen","MultiFamHU90cen","MobileHom90cen","SingFamOwnHU90cen","MultiFamOwnHU90cen","MobileHomOwnHU90cen","SingFamRntrHU90cen","MultiFamRntrHU90cen","MobileHomRntrHU90cen","HU<5yrs90cen","HU5to20yrs90cen","HU20to50yrs90cen","HU>50yrs90cen","Units0Bedroom90cen","Units1Bedroom90cen","Units2Bedroom90cen","Units3Bedroom90cen","Units4+Bedroom90cen","HI<5K","HI5Kto10K","HI10Kto15K","HI15Kto25K","HI25Kto35K","HI35Kto50K","HI50Kto75K","HI75Kto100K","HI>100K","MedHI","HH<25HI<5K","HH<25HI5Kto10K","HH<25HI10Kto15K","HH<25HI15Kto25K","HH<25HI25Kto35K","HH<25HI35Kto50K","HH<25HI50Kto75K","HH<25HI75Kto100K","HH<25HI>100K","HH25to34HI<5K","HH25to34HI5Kto10K","HH25to34HI10Kto15K","HH25to34HI15Kto25K","HH25to34HI25Kto35K","HH25to34HI35Kto50K","HH25to34HI50Kto75K","HH25to34HI75Kto100K","HH25to34HI>100K","HH35to44HI<5K","HH35to44HI5Kto10K","HH35to44HI10Kto15K","HH35to44HI15Kto25K","HH35to44HI25Kto35K","HH35to44HI35Kto50K","HH35to44HI50Kto75K","HH35to44HI75Kto100K","HH35to44HI>100K","HH45to54HI<5K","HH45to54HI5Kto10K","HH45to54HI10Kto15K","HH45to54HI15Kto25K","HH45to54HI25Kto35K","HH45to54HI35Kto50K","HH45to54HI50Kto75K","HH45to54HI75Kto100K","HH45to54HI>100K","HH55to64HI<5K","HH55to64HI5Kto10K","HH55to64HI10Kto15K","HH55to64HI15Kto25K","HH55to64HI25Kto35K","HH55to64HI35Kto50K","HH55to64HI50Kto75K","HH55to64HI75Kto100K","HH55to64HI>100K","HH65to74HI<5K","HH65to74HI5Kto10K","HH65to74HI10Kto15K","HH65to74HI15Kto25K","HH65to74HI25Kto35K","HH65to74HI35Kto50K","HH65to74HI50Kto75K","HH65to74HI75Kto100K","HH65to74HI>100K","HH>75HI<5K","HH>75HI5Kto10K","HH>75HI10Kto15K","HH>75HI15Kto25K","HH>75HI25Kto35K","HH>75HI35Kto50K","HH>75HI50Kto75K","HH>75HI75Kto100K","HH>75HI>100K","SchoolEnrollment1thru12","Pop25andOver","HSGradorHigher","CollGradorHigher","NativePop","ForeignBornPop","BornStateOfRes","NativePop2","ForeignBornPop2","DroveAlone","CarPooled","PublicTranspt","Walked","OtherMeans","WorkedAtHome","HHInc<10K","HHInc10to15K","HHInc15to25K","HHInc25to35K","HHInc35to50K","HHInc50to75K","HHInc75to100K","HHInc100to150K","HHInc>150K"]
["Allenstown",13005,"00660",13097.95,69.48,1868,4649,1253,1762,2301,2348,4587,24,9,24,5,25,1104,557,1093,692,426,360,238,179,4649,3987,0,2.6384790011350736,3.1819632881085393,399,1035,218,110,1868,1762,106,1305,457,33,46,8,701,542,625,645,113,625,38,392,27,339,843,426,296,62,274,707,638,223,87,118,115,304,326,489,271,21,49,33469,18,0,0,17,18,29,8,0,0,4,12,14,76,117,189,71,7,13,13,9,14,69,82,148,96,0,9,14,12,6,33,22,53,76,12,27,24,0,26,48,33,59,20,2,0,7,44,37,35,42,6,0,0,0,7,41,18,26,12,5,0,0,0,774,2967,2088,243,4618,94,2913,4618,94,1908,399,6,15,20,31,205,115,304,326,489,271,21,33,16,73,266,189,654,221,134,71,296]
["Andover",13010,"01460",25720.11,551.4,855,1883,524,686,931,952,1856,4,5,17,1,12,416,224,278,334,216,159,147,109,1874,1658,9,2.7317784256559765,3.16412213740458,122,459,65,40,855,686,169,581,105,8,11,123,693,59,103,492,14,103,62,35,8,108,167,218,362,8,78,225,373,171,25,35,48,96,136,168,108,26,38,35000,0,0,5,2,8,7,0,0,0,2,3,4,21,27,39,17,0,0,2,0,4,17,35,48,32,8,11,0,3,2,8,19,43,31,9,12,3,3,5,12,21,16,16,7,4,6,11,14,24,14,15,5,2,7,12,15,14,12,12,0,7,0,4,341,1243,1014,316,1854,29,1101,1854,29,688,145,0,49,11,64,60,48,96,136,168,108,26,21,17,11,97,70,97,89,83,46,362]
["Boscawen",13015,"06260",15912.75,339.31,1221,3586,887,1153,1751,1835,3544,16,9,16,1,20,680,458,630,520,336,305,275,382,3095,2743,491,2.6843018213356462,3.0924464487034951,197,719,168,69,1221,1153,68,866,287,21,17,5,742,266,213,662,45,213,55,192,40,118,348,417,338,0,70,517,518,116,52,65,134,231,193,258,174,39,6,31304,0,0,0,5,25,15,12,0,0,6,0,37,78,50,67,50,0,0,13,6,11,44,32,97,57,17,6,0,0,16,33,21,25,31,18,0,8,0,25,44,33,44,8,4,0,7,24,26,27,22,10,13,0,0,18,35,19,0,10,0,3,0,0,537,2448,1769,333,3524,62,2373,3524,62,1258,234,0,68,4,85,117,134,231,193,258,174,39,0,6,6,112,122,226,243,99,75,338]
["Bow",13020,"06500",18029.64,239.65,1860,5500,1613,1813,2744,2756,5454,9,2,26,9,17,1338,607,657,1192,762,481,287,176,5500,5252,0,3.033645890788748,3.2560446373217609,160,1482,131,40,1860,1813,47,1739,74,3,26,4,1825,30,5,1717,17,5,62,12,0,470,725,512,153,0,32,202,975,651,27,44,59,132,196,284,562,225,258,54633,5,0,0,0,6,0,0,0,0,8,0,9,0,15,35,97,22,34,0,8,14,17,45,88,237,60,117,0,0,7,10,43,85,157,68,80,0,0,0,47,39,22,58,69,21,0,7,21,53,31,36,8,6,6,14,29,8,5,17,18,5,0,0,1041,3555,3272,1392,5409,91,2855,5409,91,2471,324,12,21,17,103,71,59,132,196,284,562,225,218,40,64,406,146,579,373,86,53,153]
["Bradford",13025,"06980",22549.14,444.54,757,1405,389,514,718,687,1401,1,1,0,2,9,335,167,235,258,131,128,91,60,1405,1242,0,2.7334630350194553,3.1928020565552697,97,339,50,28,757,514,243,409,105,16,7,184,634,70,53,372,11,53,60,40,5,110,208,192,247,25,71,258,263,140,11,33,25,84,94,126,92,18,35,36667,0,2,2,7,2,5,3,0,0,0,7,0,10,18,50,15,3,3,0,7,13,23,31,31,41,4,8,0,2,4,4,16,13,11,2,7,8,2,2,12,5,15,14,9,12,0,7,4,13,11,10,3,0,5,3,6,0,15,11,2,5,0,0,224,903,794,286,1364,41,579,1364,41,511,85,7,26,0,56,44,25,84,94,126,92,18,21,14,14,96,62,146,91,74,27,247]
["Canterbury",13030,"09860",28123.99,572.6,724,1687,484,606,848,839,1671,6,2,8,0,4,393,150,223,426,197,137,94,67,1680,1510,7,2.7722772277227721,3.1198347107438016,85,428,56,37,724,606,118,535,71,2,15,89,663,35,26,511,11,26,46,22,3,122,273,161,168,2,66,170,325,161,9,27,43,52,76,135,149,67,51,45724,0,0,0,0,1,0,0,0,0,2,0,11,14,15,15,27,3,0,0,2,2,18,27,44,74,29,23,2,3,2,3,13,20,30,30,18,0,0,10,0,9,32,14,2,5,2,8,7,5,6,21,2,3,5,3,14,11,12,5,3,2,0,0,280,1144,1032,419,1673,14,938,1673,14,720,115,0,29,0,52,36,43,52,76,135,149,67,33,18,16,106,94,179,75,45,41,168]
["Chichester",13035,"12420",13564.57,63.53,724,1942,545,679,964,978,1928,1,5,8,0,5,467,219,324,366,233,173,85,75,1942,1776,0,2.8600883652430045,3.2587155963302754,109,484,61,25,724,679,45,606,73,13,9,8,607,61,56,544,19,56,38,31,4,114,254,154,202,6,46,182,343,147,5,26,42,86,117,191,157,38,17,39957,0,0,2,0,3,3,0,0,0,0,0,0,21,39,43,22,7,2,2,0,6,16,32,60,63,7,4,0,2,10,14,8,44,30,20,6,0,4,3,12,17,31,33,4,3,0,4,9,17,14,5,5,0,2,3,16,12,6,4,5,4,0,0,373,1256,1081,271,1907,35,1222,1907,35,868,97,0,45,6,47,31,42,86,117,191,157,38,9,8,4,110,83,171,93,47,14,202]
["Concord",13040,"14200",40933.93,2065.85,15697,36006,8782,14222,17466,18540,35350,226,101,243,86,356,6996,4970,7373,5805,3117,2690,2445,2610,33471,26684,2535,2.3534664604134439,3.0384878159872466,4321,6944,1838,1119,15697,14222,1475,7443,6779,996,210,72,6014,8439,1244,5262,1215,1244,549,6037,193,2790,4100,2929,5878,289,2978,5770,4750,1910,545,963,1040,2538,2496,3121,2421,581,476,32733,39,72,102,161,219,229,50,0,0,110,145,142,691,836,969,538,99,54,85,52,48,359,467,959,868,229,163,37,32,89,310,274,397,462,98,107,13,66,139,276,259,259,307,100,107,112,245,214,347,271,209,124,31,38,149,351,306,394,170,99,72,24,7,5328,24144,20401,6792,34935,1071,19729,34935,1071,13352,2417,171,1045,266,524,1508,1040,2538,2496,3121,2421,581,316,160,69,2721,1669,2431,1343,922,664,5878]
["Danbury",13045,"16980",24161.8,181.59,541,881,245,333,450,431,872,2,3,0,4,9,203,95,157,145,82,88,68,43,881,769,0,2.6456456456456459,3.1387755102040815,68,205,40,20,541,333,208,296,37,10,17,166,444,18,79,251,3,79,22,9,6,97,204,77,163,22,84,220,126,89,18,41,36,52,74,68,35,2,9,27768,2,0,0,4,1,4,0,0,0,2,4,4,11,25,17,13,0,0,6,3,2,10,20,35,8,1,0,2,6,3,2,5,8,14,1,2,3,8,6,2,14,1,0,0,4,0,8,14,15,2,3,0,0,3,3,12,7,8,7,0,0,0,0,154,583,428,95,873,8,486,873,8,287,46,1,13,3,11,59,36,52,74,68,35,2,7,2,8,89,98,106,46,20,11,163]
["Dunbarton",13050,"19460",19734.04,311.60000000000002,685,1759,501,642,904,855,1746,0,8,5,0,6,393,191,319,357,219,142,88,50,1759,1587,0,2.7398753894080996,3.1676646706586826,117,448,53,24,685,642,43,568,74,10,11,16,619,43,23,539,10,23,43,27,4,117,197,213,158,0,30,157,329,169,16,28,24,63,84,164,144,70,39,44250,0,6,0,5,0,0,0,0,0,0,3,0,3,38,55,31,6,3,7,0,0,10,12,54,56,36,16,0,0,7,13,18,20,38,17,8,3,7,0,15,8,20,12,6,10,6,3,15,3,2,12,7,2,2,0,9,2,14,6,3,0,3,0,300,1186,1031,417,1704,55,909,1704,55,815,67,3,2,6,59,44,24,63,84,164,144,70,33,6,11,106,54,143,81,97,35,158]
["Epsom",13055,"24900",22066.77,85.96,1396,3591,968,1251,1755,1836,3565,8,10,8,0,18,783,467,621,605,347,272,236,260,3493,3130,98,2.7921662669864107,3.2334710743801653,222,857,111,61,1396,1251,145,1024,227,31,32,73,927,162,307,769,14,307,65,127,35,285,613,238,254,8,143,410,583,246,30,53,83,197,204,299,278,74,20,36398,0,0,0,7,7,21,0,0,0,8,6,0,33,64,132,68,22,0,0,7,15,26,62,73,107,33,14,0,7,8,21,5,23,64,19,6,0,0,8,52,42,24,26,0,0,6,6,19,29,15,6,6,0,0,16,27,33,29,9,20,7,0,0,649,2316,1914,438,3397,98,2039,3397,98,1287,270,14,46,7,82,83,83,197,204,299,278,74,20,0,51,234,217,396,137,63,38,254]
["Franklin",13060,"27380",17708.91,952.65,3744,8304,2162,3143,3941,4363,8230,15,10,43,6,53,1916,1098,1394,1164,741,709,616,666,8109,6936,195,2.5800190900413615,3.208140610545791,836,1707,455,145,3744,3143,601,1876,1267,289,33,191,1951,1547,246,1552,166,246,143,1076,48,467,772,961,1544,26,734,1111,1257,616,145,358,256,660,541,667,386,122,28,27011,35,58,0,21,69,9,0,0,0,17,26,32,137,135,197,78,17,17,0,8,0,108,117,199,138,18,0,24,29,53,103,50,124,56,35,11,0,10,15,93,81,88,71,26,0,0,96,104,84,52,33,43,16,0,69,131,52,114,37,17,0,10,0,1498,5290,3835,642,8118,186,5794,8118,186,2970,617,17,102,9,85,503,256,660,541,667,386,122,17,11,23,444,215,557,378,304,279,1544]
["Henniker",13065,"35540",28231.91,439.83,1558,4151,905,1405,2132,2019,4087,20,6,25,13,48,822,1099,685,709,292,224,187,133,3580,2866,571,2.5480427046263343,3.1668508287292818,351,758,147,149,1558,1405,153,949,456,34,27,54,998,441,119,819,57,119,87,339,30,357,524,247,425,13,264,482,536,258,52,122,119,220,188,325,330,77,33,36951,19,26,10,23,0,0,6,0,0,6,0,15,62,52,95,100,15,13,6,18,7,70,41,126,108,37,13,0,0,12,19,35,38,57,6,0,0,0,12,15,17,26,53,19,0,6,35,40,23,14,33,6,0,7,15,43,23,8,29,7,0,0,0,464,2358,2096,895,4042,152,1654,4042,152,1411,204,6,204,21,145,174,119,220,188,325,330,77,27,6,78,279,199,325,125,67,55,425]
["Hill",13070,"35860",17068.46,38.61,360,814,237,300,395,419,812,0,0,2,0,3,188,83,143,144,77,79,62,38,814,743,0,2.7133333333333334,3.1350210970464136,55,197,40,8,360,300,60,278,22,1,2,48,310,12,38,240,7,38,14,5,3,51,112,136,54,2,30,104,161,56,14,44,18,39,66,82,46,4,3,31591,0,0,0,3,0,9,0,0,0,0,5,3,3,18,16,8,0,0,0,4,2,14,26,34,15,0,3,3,3,0,2,2,8,10,0,0,4,10,0,6,10,8,10,2,0,2,9,10,0,7,7,0,2,0,5,13,3,11,3,0,3,0,0,135,543,467,82,814,10,490,814,10,351,43,0,2,0,20,58,18,39,66,82,46,4,3,0,2,49,23,89,43,30,63,54]
["Hooksett",13075,"37300",23164.34,596.23,3484,8767,2492,3253,4365,4402,8618,48,5,89,7,42,1852,1062,1738,1530,1004,740,537,304,8767,7748,0,2.695050722410083,3.1091492776886036,553,2127,365,208,3484,3253,231,2551,702,129,70,13,2043,1102,339,1843,431,339,148,521,33,976,1115,1016,379,19,264,1209,1396,598,67,168,223,313,446,783,853,247,140,42715,26,11,23,23,0,19,22,0,0,0,8,21,81,100,242,218,84,15,0,0,19,39,158,211,341,71,32,0,21,8,34,65,111,147,52,59,14,24,42,37,47,109,104,29,17,27,69,52,72,56,61,21,11,17,0,35,58,27,20,30,0,0,0,1418,5858,4806,1293,8407,355,5337,8407,355,4235,333,26,65,19,143,235,223,313,446,783,853,247,98,42,95,881,365,750,622,289,105,379]
["Hopkinton",13080,"37540",27698.32,1153.29,1924,4806,1390,1759,2358,2448,4782,6,1,16,1,10,1036,522,597,930,660,418,396,247,4806,4339,0,2.7322342239909041,3.1215827338129496,293,1263,127,76,1924,1759,165,1525,234,21,28,91,1658,179,87,1425,42,87,112,107,15,263,620,599,442,0,88,433,825,578,17,58,68,243,221,324,406,149,276,46810,0,0,0,0,8,0,0,4,0,10,14,0,66,45,60,89,6,8,0,0,2,26,78,115,63,55,108,0,0,8,25,8,62,100,51,102,0,7,9,30,28,40,76,33,36,0,7,36,62,33,23,66,0,15,7,30,13,34,21,24,12,0,7,828,3248,3073,1378,4705,101,2140,4705,101,1907,251,22,21,8,188,75,68,243,221,324,406,149,174,102,32,231,229,391,334,197,68,442]
["Loudon",13085,"43380",29452.44,444.13,1476,4114,1156,1376,2045,2069,4095,5,8,6,0,18,1063,473,886,716,416,299,160,101,4114,3814,0,2.9898255813953489,3.2993079584775087,151,1014,142,69,1476,1376,100,1237,139,14,22,41,1106,99,271,965,32,271,65,60,14,355,552,270,285,14,72,398,716,262,42,38,72,155,300,430,297,74,18,38923,0,0,0,24,0,27,0,0,0,17,0,14,51,73,147,52,15,6,7,0,12,13,115,96,120,26,7,7,6,6,11,47,93,76,21,0,11,6,11,26,40,36,49,12,0,0,20,14,15,16,26,0,0,5,0,6,15,15,9,5,0,0,0,784,2588,2101,339,4159,52,2802,4159,52,1912,264,11,35,6,129,80,72,155,300,430,297,74,6,12,63,292,229,323,153,52,65,285]
["Newbury",13090,"50900",22917.85,1464.69,1184,1347,389,506,680,667,1338,3,4,2,0,2,319,120,226,248,143,122,112,57,1347,1204,0,2.6620553359683794,3.0951156812339331,95,342,47,22,1184,506,678,425,81,14,52,548,1137,23,24,414,3,24,71,9,1,275,363,275,278,11,57,337,477,309,8,23,27,79,100,123,92,23,22,35821,0,0,0,3,0,0,0,0,0,0,3,2,15,22,27,22,0,0,2,2,2,14,33,61,34,15,1,4,5,3,3,11,16,17,4,13,2,4,3,18,14,12,17,2,6,0,6,13,17,14,4,0,2,2,0,3,4,9,6,3,2,0,0,261,864,805,281,1306,39,569,1306,39,507,92,2,6,11,46,31,27,79,100,123,92,23,12,10,25,250,85,278,129,63,83,278]
["New London",13095,"52100",14304.58,1963.28,1806,3180,876,1265,1323,1857,3157,7,0,16,0,11,426,518,259,406,307,397,425,442,2844,2409,336,2.2482213438735177,2.75,352,776,100,37,1806,1265,541,1031,234,20,25,461,1425,355,26,848,171,26,103,123,8,375,581,451,391,8,118,448,732,492,25,27,67,148,172,155,251,146,162,46681,0,8,0,0,0,0,0,0,0,0,5,0,7,6,14,37,30,0,0,0,6,16,57,26,64,22,54,0,0,6,13,14,6,31,12,18,7,0,14,28,36,21,60,10,32,6,7,0,33,26,57,19,50,38,12,7,41,51,33,31,40,22,20,412,2121,1964,990,2997,101,840,2997,101,949,140,14,125,0,35,52,67,148,172,155,251,146,74,88,58,317,104,477,212,131,108,391]
["Northfield",13100,"54260",18299.62,186.06,1671,4263,1165,1514,2080,2183,4240,13,2,8,0,16,1088,531,865,740,397,286,209,147,4252,3785,11,2.8084544253632759,3.2489270386266096,253,961,204,96,1671,1514,157,1074,440,59,14,65,960,478,233,847,49,233,55,347,38,367,547,348,416,11,204,632,562,269,20,84,96,320,311,368,236,61,15,31563,0,0,9,26,21,15,8,0,0,6,14,19,56,111,112,61,0,0,0,0,5,96,86,129,96,13,15,8,0,0,53,47,66,40,17,0,0,5,17,24,24,22,31,18,0,6,45,35,60,13,10,0,13,0,0,20,11,5,9,14,0,0,0,812,2701,2066,478,4219,83,2629,4219,83,1831,264,8,79,25,110,104,96,320,311,368,236,61,15,0,39,328,166,381,235,35,78,416]
["Pembroke",13105,"60020",14486.98,110.27,2536,6561,1812,2444,3250,3311,6502,22,15,12,10,39,1544,812,1385,1127,648,492,336,217,6561,5734,0,2.6845335515548281,3.1644591611479029,474,1527,285,158,2536,2444,92,1658,786,52,19,3,1472,948,116,1348,235,116,94,658,34,558,704,568,668,8,311,750,1062,367,28,123,131,350,420,535,553,170,85,39059,0,18,9,38,17,11,0,0,0,0,25,9,92,182,180,193,44,9,8,7,6,77,93,161,195,16,25,10,0,0,44,71,79,102,62,19,0,11,23,36,39,88,46,22,20,0,9,39,47,18,10,17,19,12,10,53,45,16,0,6,0,7,0,1151,4221,3549,1018,6301,202,3734,6301,202,3107,332,11,82,8,76,151,131,350,420,535,553,170,58,27,18,540,168,536,208,208,152,668]
["Pittsfield",13110,"61940",15440.24,118.46,1527,3701,1010,1337,1789,1912,3682,8,5,3,3,25,885,553,680,544,352,311,197,179,3680,3268,21,2.7524308152580406,3.2356435643564359,256,798,212,71,1527,1337,190,843,494,114,31,26,776,591,160,667,53,160,42,426,26,338,408,228,573,25,181,561,498,282,61,140,87,282,267,277,174,40,5,29627,0,9,6,32,22,24,9,0,0,0,50,9,52,75,62,75,12,0,5,0,13,50,68,84,37,8,5,7,8,9,35,24,55,29,13,0,6,0,21,41,49,25,18,7,0,15,20,19,57,20,16,6,0,0,28,53,10,15,9,11,0,0,0,656,2278,1646,255,3675,25,2395,3675,25,1204,326,0,122,0,74,201,87,282,267,277,174,40,5,0,97,241,152,256,88,85,55,573]
["Salisbury",13115,"66980",25318.42,149.87,422,1061,306,378,547,514,1060,0,1,0,0,7,244,126,181,204,135,77,59,35,1061,974,0,2.806878306878307,3.1830065359477122,58,275,31,14,422,378,44,350,28,2,1,33,385,10,27,322,6,27,23,2,3,89,127,92,113,0,21,142,171,87,12,21,22,51,66,112,80,6,8,36771,0,0,0,9,0,0,0,0,0,0,3,0,7,19,26,12,2,2,6,3,3,8,11,45,19,4,2,3,0,2,3,15,16,28,0,2,3,2,2,9,11,15,12,0,0,0,2,4,8,8,3,7,0,2,0,11,11,7,2,7,2,0,0,193,695,580,131,1056,7,639,1056,7,444,59,0,4,0,20,33,22,51,66,112,80,6,8,0,9,80,40,87,43,31,18,113]
["Sutton",13120,"75460",27233.59,501.19,776,1457,423,559,743,714,1440,3,2,6,6,4,316,132,247,264,170,159,109,60,1457,1284,0,2.6064400715563507,3.0354609929078014,104,374,49,32,776,559,217,485,74,9,6,185,722,28,26,461,11,26,55,14,5,152,187,154,283,8,52,199,329,188,17,14,37,88,116,125,89,37,30,35536,0,0,0,0,0,3,2,5,0,3,0,0,12,27,41,14,3,3,5,2,12,26,18,40,29,10,2,3,3,3,12,18,16,23,4,19,4,0,0,7,28,13,18,13,6,0,1,17,22,21,6,3,0,0,2,8,5,9,4,6,0,2,0,234,1009,891,307,1434,23,523,1434,23,583,81,9,20,10,43,31,37,88,116,125,89,37,20,10,15,137,37,150,101,26,27,283]
["Warner",13125,"78580",35352.339999999997,149.68,1039,2250,627,845,1120,1130,2243,1,1,4,1,15,503,220,414,400,267,213,140,93,2239,1970,11,2.6497041420118341,3.1419457735247209,173,545,82,45,1039,845,194,675,170,21,20,127,758,133,148,583,12,148,53,102,15,150,203,193,493,29,93,349,360,208,18,49,53,162,102,179,203,46,32,37917,2,3,0,6,0,6,2,0,0,0,3,8,46,39,34,50,3,7,0,4,2,35,29,65,50,16,13,3,11,7,18,12,29,45,14,6,5,2,13,16,10,29,38,10,2,5,14,11,24,8,15,12,2,2,3,12,12,17,4,1,6,1,2,363,1527,1298,424,2205,45,1037,2205,45,930,122,7,68,12,53,67,53,162,102,179,203,46,21,11,11,139,62,141,94,62,37,493]
["Webster",13130,"80020",18089.45,336.32,577,1405,392,491,680,725,1399,1,2,3,0,5,328,143,275,282,156,94,74,53,1393,1259,12,2.8370672097759675,3.2117346938775508,74,345,47,25,577,491,86,440,51,0,5,65,529,11,37,408,6,37,39,5,7,115,163,170,129,8,38,123,302,106,5,21,27,70,82,153,111,13,15,40043,0,2,0,7,0,3,0,0,0,0,0,3,15,30,27,30,4,0,0,0,3,14,16,67,38,3,7,0,2,0,7,5,38,27,3,8,5,2,5,8,15,10,10,0,0,0,8,9,15,14,6,0,0,0,0,7,7,4,2,2,6,3,0,262,941,847,225,1387,18,833,1387,18,579,112,6,2,6,50,26,27,70,82,153,111,13,13,2,31,84,45,118,125,29,16,129]
["Wilmot",13135,"84900",18819.189999999999,136.19,458,935,268,359,463,472,921,2,7,5,0,1,204,85,145,174,121,85,63,58,935,823,0,2.604456824512535,3.0708955223880596,74,232,36,17,458,359,99,319,40,5,8,73,417,22,19,301,8,19,23,13,4,67,157,72,169,10,43,130,168,114,15,31,17,52,50,55,93,24,9,37000,0,0,0,2,0,0,0,0,0,3,0,2,18,10,14,13,0,2,2,2,4,5,14,28,33,6,0,7,7,0,8,11,6,19,4,7,0,2,4,9,0,1,20,11,0,1,2,4,8,6,6,3,3,0,2,18,3,2,9,0,5,0,0,186,646,559,212,915,10,411,915,10,374,34,2,10,0,47,46,17,52,50,55,93,24,4,5,0,67,45,112,30,36,6,169]
[]
[]
[]
[]
[]
[]
[]
[]
[]
[]
[]
[]
[]
[]
[]
[]
[]
[]
["Census 1990 Data -    Query Name:  CountySTF1Qry1"]
["NAME","COUSUBFP","Census_Cnty_Code","FIPS","LandAcres","WaterAcres","HousingUnits90Cen","P01Persons90Cen","P02Families90Cen","P03Households90cen","P05MalePop90cen","P05FemalePop90cen","P06WhitePop","P06BlackPop","P06AmerIndianPop","P06AsianPIPop","P06OtherRacePop","P08HispanicOrPop","P11AgeUnder15_90cen","P11Age15to24_90cen","P11Age25to34_90cen","P11Age35to44_90cen","P11Age45to54_90cen","P11Age55to64_90cen","P11Age65to74_90cen","P11Age75andOver_90cen","P15PersonsInHH90cen","P15PersonsInFamHH90cen","P15PersonsInGC","PersonsPerHH90cen","PersonsPerFam90Cen","P16SinglePersonHH90cen","P16MarriedCoupleHH90cen","P16SingleParentHH90cen","P16NonFamilyHH90cen","H01TotalHousingUnits","H02OccupiedHousingUnits","H02VacantHousingUnits","H03OwnerOccHU","H03RenterOccHU","H05VacantForRent90","H05VacantForSale90","H05VacantSeasonalRec","H23OOHUVal<15k","H23OOHUVal15to19k","H23OOHUVal20to24k","H23OOHUVal25to29k","H23OOHUVal30to34k","H23OOHUVal35to39k","H23OOHUVal40to44k","H23OOHUVal45to49k","H23OOHUVal50to59k","H23OOHUVal60to74k","H23OOHUVal75to99k","H23OOHUVal100to124k","H23OOHUVal125to149k","H23OOHUVal150to174k","H23OOHUVal175to199k","H23OOHUVal200to249k","H23OOHUVal250to299k","H23OOHUVal300to399k","H23OOHUVal400to499k","H23OOHUVal500kOrMore","H23BOOHUMedVal","H41SingFamHU90cen","H41MultiFamHU90cen","H41MobileHom90cen","H43SingFamOwnHU90cen","H43MultiFamOwnHU90cen","H43MobileHomOwnHU90cen","H43SingFamRntrHU90cen","H43MultiFamRntrHU90cen","H43MobileHomRntrHU90cen","H41HU1UnitDet","H41HU1UnitAtt","H41HU2Unit","H41HU3to4Unit","H41HU5to9Unit","H41HU10to19Unit","H41HU20to49Unit","H41HU50PlusUnit","H41HUMobilH","H41HUOther"]
["Allenstown",701,13005,"00660",13097.95,69.48,1868,4649,1253,1762,2301,2348,4587,24,9,24,5,25,1104,557,1093,692,426,360,238,179,4649,3987,0,2.6384790011350736,3.1819632881085393,399,1035,218,110,1868,1762,106,1305,457,33,46,8,1,1,0,0,3,1,2,1,5,30,200,200,107,32,12,7,4,1,0,0,107400,701,542,625,645,113,547,38,392,27,701,42,185,106,158,10,41,0,610,15]
["Andover",702,13010,"01460",25720.11,551.4,855,1883,524,686,931,952,1856,4,5,17,1,12,416,224,278,334,216,159,147,109,1874,1658,9,2.7317784256559765,3.16412213740458,122,459,65,40,855,686,169,581,105,8,11,123,1,0,1,0,1,1,5,5,11,33,100,75,37,25,15,8,4,1,0,0,101200,693,59,103,492,14,75,62,35,8,693,11,29,13,6,0,0,0,84,19]
["Boscawen",703,13015,"06260",15912.75,339.31,1221,3586,887,1153,1751,1835,3544,16,9,16,1,20,680,458,630,520,336,305,275,382,3095,2743,491,2.6843018213356462,3.0924464487034951,197,719,168,69,1221,1153,68,866,287,21,17,5,1,0,0,2,2,2,8,2,7,35,190,158,72,38,16,7,1,2,0,0,103600,742,266,213,662,45,159,55,192,40,742,18,99,85,50,14,0,0,200,13]
["Bow",704,13020,"06500",18029.64,239.65,1860,5500,1613,1813,2744,2756,5454,9,2,26,9,17,1338,607,657,1192,762,481,287,176,5500,5252,0,3.033645890788748,3.2560446373217609,160,1482,131,40,1860,1813,47,1739,74,3,26,4,2,3,0,5,4,3,2,2,7,22,84,175,281,284,240,280,75,34,8,7,164900,1825,30,5,1717,17,5,62,12,0,1825,12,8,9,1,0,0,0,4,1]
["Bradford",705,13025,"06980",22549.14,444.54,757,1405,389,514,718,687,1401,1,1,0,2,9,335,167,235,258,131,128,91,60,1405,1242,0,2.7334630350194553,3.1928020565552697,97,339,50,28,757,514,243,409,105,16,7,184,2,2,0,0,0,0,3,4,10,19,58,53,38,25,5,8,5,2,0,0,109000,634,70,53,372,11,26,60,40,5,634,7,18,31,11,3,0,0,37,16]
["Canterbury",706,13030,"09860",28123.99,572.6,724,1687,484,606,848,839,1671,6,2,8,0,4,393,150,223,426,197,137,94,67,1680,1510,7,2.7722772277227721,3.1198347107438016,85,428,56,37,724,606,118,535,71,2,15,89,2,2,3,0,3,1,0,1,6,14,39,68,50,40,37,18,3,4,0,0,128300,663,35,26,511,11,13,46,22,3,663,12,21,1,0,1,0,0,20,6]
["Chichester",707,13035,"12420",13564.57,63.53,724,1942,545,679,964,978,1928,1,5,8,0,5,467,219,324,366,233,173,85,75,1942,1776,0,2.8600883652430045,3.2587155963302754,109,484,61,25,724,679,45,606,73,13,9,8,1,1,0,0,0,1,1,1,7,15,83,109,83,43,16,16,3,1,0,0,118500,607,61,56,544,19,43,38,31,4,607,12,26,23,0,0,0,0,52,4]
["Concord",708,13040,"14200",40933.93,2065.85,15697,36006,8782,14222,17466,18540,35350,226,101,243,86,356,6996,4970,7373,5805,3117,2690,2445,2610,33471,26684,2535,2.3534664604134439,3.0384878159872466,4321,6944,1838,1119,15697,14222,1475,7443,6779,996,210,72,15,12,19,22,17,14,24,29,79,330,1227,1589,771,393,216,199,106,62,16,10,112400,6014,8439,1244,5262,1215,966,549,6037,193,6014,685,1819,1496,1058,1250,1750,381,1046,198]
["Danbury",709,13045,"16980",24161.8,181.59,541,881,245,333,450,431,872,2,3,0,4,9,203,95,157,145,82,88,68,43,881,769,0,2.6456456456456459,3.1387755102040815,68,205,40,20,541,333,208,296,37,10,17,166,3,3,1,0,4,2,4,6,19,35,55,17,10,4,1,3,1,0,0,1,78400,444,18,79,251,3,42,22,9,6,444,4,5,9,0,0,0,0,71,8]
["Dunbarton",710,13050,"19460",19734.04,311.60000000000002,685,1759,501,642,904,855,1746,0,8,5,0,6,393,191,319,357,219,142,88,50,1759,1587,0,2.7398753894080996,3.1676646706586826,117,448,53,24,685,642,43,568,74,10,11,16,0,0,0,1,1,4,1,3,14,8,47,73,89,49,31,32,7,6,0,3,134100,619,43,23,539,10,19,43,27,4,619,8,14,20,1,0,0,0,18,5]
["Epsom",711,13055,"24900",22066.77,85.96,1396,3591,968,1251,1755,1836,3565,8,10,8,0,18,783,467,621,605,347,272,236,260,3493,3130,98,2.7921662669864107,3.2334710743801653,222,857,111,61,1396,1251,145,1024,227,31,32,73,1,1,1,1,2,1,4,4,9,19,137,182,108,64,23,15,4,3,1,0,115100,927,162,307,769,14,241,65,127,35,927,17,58,24,14,12,37,0,284,23]
["Franklin",712,13060,"27380",17708.91,952.65,3744,8304,2162,3143,3941,4363,8230,15,10,43,6,53,1916,1098,1394,1164,741,709,616,666,8109,6936,195,2.5800190900413615,3.208140610545791,836,1707,455,145,3744,3143,601,1876,1267,289,33,191,6,1,7,5,3,9,12,13,87,213,603,247,101,49,24,16,6,3,2,1,89400,1951,1547,246,1552,166,158,143,1076,48,1951,47,382,329,316,322,151,0,218,28]
["Henniker",713,13065,"35540",28231.91,439.83,1558,4151,905,1405,2132,2019,4087,20,6,25,13,48,822,1099,685,709,292,224,187,133,3580,2866,571,2.5480427046263343,3.1668508287292818,351,758,147,149,1558,1405,153,949,456,34,27,54,0,1,1,2,3,3,1,1,5,20,108,181,146,73,35,36,11,5,2,3,124000,998,441,119,819,57,73,87,339,30,998,52,74,99,137,79,0,0,95,24]
["Hill",714,13070,"35860",17068.46,38.61,360,814,237,300,395,419,812,0,0,2,0,3,188,83,143,144,77,79,62,38,814,743,0,2.7133333333333334,3.1350210970464136,55,197,40,8,360,300,60,278,22,1,2,48,0,0,2,0,4,6,2,4,11,17,71,37,16,7,2,1,0,2,0,0,90800,310,12,38,240,7,31,14,5,3,310,7,1,3,1,0,0,0,35,3]
["Hooksett",715,13075,"37300",23164.34,596.23,3484,8767,2492,3253,4365,4402,8618,48,5,89,7,42,1852,1062,1738,1530,1004,740,537,304,8767,7748,0,2.695050722410083,3.1091492776886036,553,2127,365,208,3484,3253,231,2551,702,129,70,13,8,0,4,1,1,2,3,6,14,31,245,569,452,261,156,92,31,11,0,4,128400,2043,1102,339,1843,431,277,148,521,33,2043,311,237,176,72,20,286,0,270,69]
["Hopkinton",716,13080,"37540",27698.32,1153.29,1924,4806,1390,1759,2358,2448,4782,6,1,16,1,10,1036,522,597,930,660,418,396,247,4806,4339,0,2.7322342239909041,3.1215827338129496,293,1263,127,76,1924,1759,165,1525,234,21,28,91,1,1,2,5,2,4,2,6,17,34,141,198,186,137,103,123,69,74,11,6,144900,1658,179,87,1425,42,58,112,107,15,1658,42,52,32,53,0,0,0,57,30]
["Loudon",717,13085,"43380",29452.44,444.13,1476,4114,1156,1376,2045,2069,4095,5,8,6,0,18,1063,473,886,716,416,299,160,101,4114,3814,0,2.9898255813953489,3.2993079584775087,151,1014,142,69,1476,1376,100,1237,139,14,22,41,1,1,0,1,1,1,5,6,13,48,171,241,133,48,26,15,6,8,1,1,112000,1106,99,271,965,32,240,65,60,14,1106,17,37,13,19,13,0,0,260,11]
["Newbury",718,13090,"50900",22917.85,1464.69,1184,1347,389,506,680,667,1338,3,4,2,0,2,319,120,226,248,143,122,112,57,1347,1204,0,2.6620553359683794,3.0951156812339331,95,342,47,22,1184,506,678,425,81,14,52,548,0,0,1,1,0,3,1,0,3,18,58,51,40,43,30,25,9,17,9,7,138800,1137,23,24,414,3,8,71,9,1,1137,15,5,2,0,1,0,0,17,7]
["New London",719,13095,"52100",14304.58,1963.28,1806,3180,876,1265,1323,1857,3157,7,0,16,0,11,426,518,259,406,307,397,425,442,2844,2409,336,2.2482213438735177,2.75,352,776,100,37,1806,1265,541,1031,234,20,25,461,0,0,0,0,0,0,0,0,1,6,17,46,96,105,89,117,112,83,22,46,204300,1425,355,26,848,171,12,103,123,8,1425,137,75,42,49,24,28,0,0,26]
["Northfield",720,13100,"54260",18299.62,186.06,1671,4263,1165,1514,2080,2183,4240,13,2,8,0,16,1088,531,865,740,397,286,209,147,4252,3785,11,2.8084544253632759,3.2489270386266096,253,961,204,96,1671,1514,157,1074,440,59,14,65,0,0,2,0,2,4,6,6,26,64,277,172,95,32,14,12,1,2,0,0,97300,960,478,233,847,49,178,55,347,38,960,30,69,72,119,16,172,0,231,2]
["Pembroke",721,13105,"60020",14486.98,110.27,2536,6561,1812,2444,3250,3311,6502,22,15,12,10,39,1544,812,1385,1127,648,492,336,217,6561,5734,0,2.6845335515548281,3.1644591611479029,474,1527,285,158,2536,2444,92,1658,786,52,19,3,5,0,0,0,1,2,2,5,9,24,234,438,280,130,70,46,13,5,0,0,120000,1472,948,116,1348,235,75,94,658,34,1472,117,328,216,192,27,6,62,99,17]
["Pittsfield",722,13110,"61940",15440.24,118.46,1527,3701,1010,1337,1789,1912,3682,8,5,3,3,25,885,553,680,544,352,311,197,179,3680,3268,21,2.7524308152580406,3.2356435643564359,256,798,212,71,1527,1337,190,843,494,114,31,26,2,2,0,5,5,3,6,5,19,44,189,121,63,29,8,9,3,4,0,0,97200,776,591,160,667,53,123,42,426,26,776,18,99,189,122,105,58,0,152,8]
["Salisbury",723,13115,"66980",25318.42,149.87,422,1061,306,378,547,514,1060,0,1,0,0,7,244,126,181,204,135,77,59,35,1061,974,0,2.806878306878307,3.1830065359477122,58,275,31,14,422,378,44,350,28,2,1,33,1,1,0,3,1,1,2,2,4,9,62,53,37,24,4,2,4,0,0,0,109000,385,10,27,322,6,22,23,2,3,385,2,5,3,0,0,0,0,20,7]
["Sutton",724,13120,"75460",27233.59,501.19,776,1457,423,559,743,714,1440,3,2,6,6,4,316,132,247,264,170,159,109,60,1457,1284,0,2.6064400715563507,3.0354609929078014,104,374,49,32,776,559,217,485,74,9,6,185,1,0,0,1,3,1,3,1,16,19,62,64,43,40,22,27,14,7,3,7,123400,722,28,26,461,11,13,55,14,5,722,7,19,1,0,1,0,0,12,14]
["Warner",725,13125,"78580",35352.339999999997,149.68,1039,2250,627,845,1120,1130,2243,1,1,4,1,15,503,220,414,400,267,213,140,93,2239,1970,11,2.6497041420118341,3.1419457735247209,173,545,82,45,1039,845,194,675,170,21,20,127,3,1,3,2,4,6,4,7,14,26,85,78,76,49,21,30,4,1,1,0,116800,758,133,148,583,12,80,53,102,15,758,11,19,53,31,19,0,0,134,14]
["Webster",726,13130,"80020",18089.45,336.32,577,1405,392,491,680,725,1399,1,2,3,0,5,328,143,275,282,156,94,74,53,1393,1259,12,2.8370672097759675,3.2117346938775508,74,345,47,25,577,491,86,440,51,0,5,65,0,0,0,1,1,2,2,2,4,6,71,73,66,34,11,14,7,1,0,0,120000,529,11,37,408,6,26,39,5,7,529,5,4,1,0,1,0,0,32,5]
["Wilmot",727,13135,"84900",18819.189999999999,136.19,458,935,268,359,463,472,921,2,7,5,0,1,204,85,145,174,121,85,63,58,935,823,0,2.604456824512535,3.0708955223880596,74,232,36,17,458,359,99,319,40,5,8,73,1,0,3,1,5,1,3,2,4,12,28,33,47,21,13,11,8,5,0,0,128200,417,22,19,301,8,10,23,13,4,417,4,4,4,10,0,0,0,14,5]
[]
[]
[]
[]
[]
[]
[]
[]
[]
[]
[]
[]
[]
[]
[]
[]
[]
[]
[]
["Census 1990 Data -          Query Name: CountySTF3Qry1"]
[]
["NAME","FIPS","COUSUBFP","LandAcres","WaterAcres","HousingUnits90Cen","P01Persons90Cen","P02Families90Cen","P03Households90cen","H25HU<5yrs90cen","H25HU5to20yrs90cen","H25HU20to50yrs90cen","H25HU>50yrs90cen","H31Units0Bedroom90cen","H31Units1Bedroom90cen","H31Units2Bedroom90cen","H31Units3Bedroom90cen","H31Units4Bedroom90cen","H31Units5+Bedroom90cen","P80HI<5K","P80HI5Kto10K","P80HI10Kto15K","P80HI15Kto25K","P80HI25Kto35K","P80HI35Kto50K","P80HI50Kto75K","P80HI75Kto100K","P80HI>100K","P80AMedHI","P86HH<25HI<5K","P86HH<25HI5Kto10K","P86HH<25HI10Kto15K","P86HH<25HI15Kto25K","P86HH<25HI25Kto35K","P86HH<25HI35Kto50K","P86HH<25HI50Kto75K","P86HH<25HI75Kto100K","P86HH<25HI>100K","P86HH25to34HI<5K","P86HH25to34HI5Kto10K","P86HH25to34HI10Kto15K","P86HH25to34HI15Kto25K","P86HH25to34HI25Kto35K","P86HH25to34HI35Kto50K","P86HH25to34HI50Kto75K","P86HH25to34HI75Kto100K","P86HH25to34HI>100K","P86HH35to44HI<5K","P86HH35to44HI5Kto10K","P86HH35to44HI10Kto15K","P86HH35to44HI15Kto25K","P86HH35to44HI25Kto35K","P86HH35to44HI35Kto50K","P86HH35to44HI50Kto75K","P86HH35to44HI75Kto100K","P86HH35to44HI>100K","P86HH45to54HI<5K","P86HH45to54HI5Kto10K","P86HH45to54HI10Kto15K","P86HH45to54HI15Kto25K","P86HH45to54HI25Kto35K","P86HH45to54HI35Kto50K","P86HH45to54HI50Kto75K","P86HH45to54HI75Kto100K","P86HH45to54HI>100K","P86HH55to64HI<5K","P86HH55to64HI5Kto10K","P86HH55to64HI10Kto15K","P86HH55to64HI15Kto25K","P86HH55to64HI25Kto35K","P86HH55to64HI35Kto50K","P86HH55to64HI50Kto75K","P86HH55to64HI75Kto100K","P86HH55to64HI>100K","P86HH65to74HI<5K","P86HH65to74HI5Kto10K","P86HH65to74HI10Kto15K","P86HH65to74HI15Kto25K","P86HH65to74HI25Kto35K","P86HH65to74HI35Kto50K","P86HH65to74HI50Kto75K","P86HH65to74HI75Kto100K","P86HH65to74HI>100K","P86HH>75HI<5K","P86HH>75HI5Kto10K","P86HH>75HI10Kto15K","P86HH>75HI15Kto25K","P86HH>75HI25Kto35K","P86HH>75HI35Kto50K","P86HH>75HI50Kto75K","P86HH>75HI75Kto100K","P86HH>75HI>100K","P54SchlEnrlPrePrim","P54SchlEnrlElemThrHS","P54SchlEnrlCollege","P54NotEnrlInSch","P57Pop25andOver","P57LessThan9thGrade","P579thto12thNoDip","P57HSGrad","P57SomeCollege","P57AssocDeg","P57BachelDeg","P57GradorProfDeg","P57HSGradorHigher","P57CollGradorHigher","P42NativePop","P42ForeignBornPop","P42BornStateOfRes","P37NativePop2","P37ForeignBornPop2","P49DroveAlone","P49CarPooled","P49PublicTranspt","P49Walked","P49OtherMeans","P49WorkedAtHome","P80HHInc<10K","P80HHInc10to15K","P80HHInc15to25K","P80HHInc25to35K","P80HHInc35to50K","P80HHInc50to75K","P80HHInc75to100K","P80HHInc100to150K","P80HHInc>150K","H25YearStBlt89to90","H25YearStBlt85to88","H25YearStBlt80to84","H25YearStBlt70to79","H25YearStBlt60to69","H25YearStBlt50to59","H25YearStBlt40to49","H25YearStBlt39earlier","P107FamInc<10K","P107FamInc10to15K","P107FamInc15to25K","P107FamInc25to35K","P107FamInc35to50K","P107FamInc50to75K","P107FamInc75to100K","P107FamInc100to150K","P107FamInc>150K","P107AMedFamInc","P110NonFamInc<10K","P110NonFamInc10to15K","P110NonFamInc15to25K","P110NonFamInc25to35K","P110NonFamInc35to50K","P110NonFamInc50to75K","P110NonFamInc75to100K","P110NonFamInc100to150K","P110NonFamInc>150K","P110AMedNonFamInc","H16HU1Room","H16HU2Room","H16HU3Room","H16HU4Room","H16HU5Room","H16HU6Room","H16HU7Room","H16HU8Room","H16HU9+Room","H43GrossRnt<100","H43GrossRnt100to149","H43GrossRnt150to199","H43GrossRnt200to249","H43GrossRnt250to299","H43GrossRnt300to349","H43GrossRnt350to399","H43GrossRnt400to449","H43GrossRnt450to499","H43GrossRnt500to549","H43GrossRnt550to599","H43GrossRnt600to649","H43GrossRnt650to699","H43GrossRnt700to749","H43GrossRnt750to999","H43GrossRnt1000Plus","H43NoCashRent","H43MedGrossRent","H51GrossRnt<20PctHHInc","H51GrossRnt20to24PctHHInc","H51GrossRnt25to29PctHHInc","H51GrossRnt30to34PctHHInc","H51GrossRnt35PctOrMoreHHInc","H51GrossRntAsPctHHIncNotComp","H52HUwMtgMoOwnCst<200","H52HUwMtgMoOwnCst200to299","H52HUwMtgMoOwnCst300to399","H52HUwMtgMoOwnCst400to499","H52HUwMtgMoOwnCst500to599","H52HUwMtgMoOwnCst600to699","H52HUwMtgMoOwnCst700to799","H52HUwMtgMoOwnCst800to899","H52HUwMtgMoOwnCst900to999","H52HUwMtgMoOwnCst1000to1249","H52HUwMtgMoOwnCst1250to1499","H52HUwMtgMoOwnCst1500to1999","H52HUwMtgMoOwnCst2000More","H52HUwNoMtgMoOwnCst<100","H52HUwNoMtgMoOwnCst100to149","H52HUwNoMtgMoOwnCst150to199","H52HUwNoMtgMoOwnCst200to249","H52HUwNoMtgMoOwnCst250to299","H52HUwNoMtgMoOwnCst300to349","H52HUwNoMtgMoOwnCst350to399","H52HUwNoMtgMoOwnCst400More","H52AMedMoOwnCstWMortg","H52AMedMoOwnCstWNoMortg","H58HUwMtgMOC<20pHHInc","H58HUwMtgMOC20to24pHHInc","H58HUwMtgMOC25to29pHHInc","H58HUwMtgMOC30to34pHHInc","H58wMtgMOC>35pHHInc","H58HUwMtgMOCNotComp","H58HUwNoMtgMOC<20pHHInc","H58HUwNoMtgMOC20to24pHHInc","H58HUwNoMtgMOC25to29pHHInc","H58HUwNoMtgMOC30to34pHHInc","H58wNoMtgMOC>35pHHInc","H58HUwNoMtgMOCNotComp","H61OOHUVal<15k","H61OOHUVal15to19k","H61OOHUVal20to24k","H61OOHUVal25to29k","H61OOHUVal30to34k","H61OOHUVal35to39k","H61OOHUVal40to44k","H61OOHUVal45to49k","H61OOHUVal50to59k","H61OOHUVal60to74k","H61OOHUVal75to99k","H61OOHUVal100to124k","H61OOHUVal125to149k","H61OOHUVal150to174k","H61OOHUVal175to199k","H61OOHUVal200to249k","H61OOHUVal250to299k","H61OOHUVal300to399k","H61OOHUVal400to499k","H61OOHUVal500kOrMore","H61aOOHUMedVal"]
[]
[]
[]
[]
[]
[]
[]
[]
[]
[]
[]
[]
[]
[]
[]
["Other Demo Data -             Query Name: QryAllTowns-ACSDemographicSheet",null,null,null,"2020-12-18"]
[]
["TOWN_NAME","FIPS","TOWNCNTY","COUSUB","POP80","POP90CDCEN","POP2000CEN","POP2010CEN","POP2025-Proj","POP2030-Proj","POP2040-Proj","SF80","MF80","MH80","SF81","MF81","MH81","SF82","MF82","MH82","SF83","MF83","MH83","SF84_OSP","MF84_OSP","MH84_OSP","SF85_OSP","MF85_OSP","MH85_OSP","SF86_OSP","MF86_OSP","MH86_OSP","SF87_OSP","MF87_OSP","MH87_OSP","SF88_OSP","MF88_OSP","MH88_OSP","SF89_OSP","MF89_OSP","MH89_OSP","SF90_OSP","MF90_OSP","MH90_OSP","SF91_OSP","MF91_OSP","MH91_OSP","SF92_OSP","MF92_OSP","MH92_OSP","SF93_OSP","MF93_OSP","MH93_OSP","SF94_OSP","MF94_OSP","MH94_OSP","SF95_OSP","MF95_OSP","MH95_OSP","SF96_OSP","MF96_OSP","MH96_OSP","SF97_OSP","MF97_OSP","MH97_OSP","SF98_OSP","MF98_OSP","MH98_OSP","SF99_OSP","MF99_OSP","MH99_OSP","SF00_OSP","MF00_OSP","MH00_OSP","SF01_OSP","MF01_OSP","MH01_OSP","SF02_OSP","MF02_OSP","MH02_OSP","SF03_OSP","MF03_OSP","MH03_OSP","SF04_OSP","MF04_OSP","MH04_OSP","SF05_OSP","MF05_OSP","MH05_OSP","SF06_OSP","MF06_OSP","MH06_OSP","SF07_OSP","MF07_OSP","MH07_OSP","SF08_OSP","MF08_OSP","MH08_OSP","SF09_OSP","MF09_OSP","MH09_OSP","SF10_OSP","MF10_OSP","MH10_OSP","SF11_OSP","MF11_OSP","MH11_OSP","SF12_OSP","MF12_OSP","MH12_OSP","SF13_OSP","MF13_OSP","MH13_OSP","SF14_OSP","MF14_OSP","MH14_OSP","SF15_OSP","MF15_OSP","MH15_OSP","SF16_OSP","MF16_OSP","MH16_OSP","SF17_OSP","MF17_OSP","MH17_OSP","SF18_OSP","MF18_OSP","MH18_OSP","SF19_OSP","MF19_OSP","MH19_OSP","COMMENTS","CNTY_CODE"]
["Allenstown",13005,701,"00660",4398,4649,4843,4322,3623,3697,3752,4,0,0,2,0,0,2,0,2,3,0,0,2,74,3,24,76,3,52,35,0,11,2,0,29,7,17,13,1,0,3,1,0,4,0,0,4,0,0,17,0,2,6,0,11,5,0,18,2,0,40,2,0,15,10,7,38,9,1,30,3,0,24,8,2,17,7,1,14,1,2,7,9,0,7,9,0,0,16,0,11,9,0,14,-3,0,11,4,0,5,3,0,3,-1,2,3,1,0,1,3,-6,0,0,0,2,1,8,-1,1,0,9,9,0,-3,8,0,0,5,0,2,"",7]
["Andover",13010,702,"01460",1587,1883,2109,2371,2608,2662,2701,3,0,1,7,0,1,5,0,1,8,0,2,2,0,3,3,2,1,22,2,-2,37,3,4,25,1,2,13,0,15,10,3,1,10,0,4,5,0,5,-1,0,2,0,2,4,7,0,9,11,0,0,9,-1,0,8,0,1,8,0,2,7,0,6,16,0,0,10,0,-1,14,2,-2,17,0,0,18,0,-5,11,0,0,6,1,-2,5,0,0,2,0,1,3,0,0,1,0,0,0,0,0,1,0,0,1,0,0,2,0,0,4,0,1,1,0,0,1,0,0,4,0,0,"",7]
["Boscawen",13015,703,"06260",3435,3586,3672,3965,4198,4283,4347,4,0,0,3,0,0,1,0,0,16,1,4,8,0,9,43,0,3,16,0,11,8,0,3,2,0,2,7,0,5,5,0,4,3,0,3,4,0,3,3,0,-2,3,3,4,3,3,11,1,0,3,8,2,1,6,0,2,6,0,0,12,0,0,16,0,0,10,6,-1,8,4,0,18,0,7,21,3,0,22,0,2,5,0,0,4,0,0,0,0,0,2,0,0,1,1,-1,0,0,0,4,-2,0,7,-1,0,3,0,-4,0,50,0,6,0,0,5,1,-5,7,0,-1,"",7]
["Bow",13020,704,"06500",4015,5500,7138,7519,7762,7920,8038,33,0,0,17,0,0,27,0,0,35,0,0,58,0,0,117,0,0,157,0,0,109,63,0,46,0,0,45,0,0,31,0,0,31,0,0,37,0,0,47,0,0,49,0,0,65,0,0,91,0,0,54,0,0,42,0,0,32,1,0,34,0,0,30,1,0,56,75,0,28,56,0,22,9,0,17,20,0,11,0,0,4,12,0,11,0,0,0,0,0,31,0,0,5,0,0,19,0,0,16,0,0,9,16,0,16,0,0,27,0,0,18,5,0,17,0,0,20,0,0,"",7]
["Bradford",13025,705,"06980",1115,1405,1454,1650,1831,1868,1896,0,0,0,4,0,0,0,0,0,6,0,2,3,0,2,6,0,0,11,0,0,17,0,0,7,0,3,5,0,1,4,0,3,8,0,0,4,0,0,0,0,0,1,0,0,1,0,0,1,0,2,0,0,2,8,0,1,10,0,1,10,0,4,6,0,7,16,0,2,14,0,0,9,0,0,17,0,1,7,0,0,12,0,0,0,0,0,1,0,0,4,0,0,1,0,0,5,0,0,4,0,0,2,0,1,5,0,0,2,0,0,2,0,0,3,0,0,5,0,0,"",7]
["Canterbury",13030,706,"09860",1410,1687,1979,2352,2716,2771,2812,17,0,0,14,2,0,18,0,0,14,0,0,16,0,0,25,0,0,25,0,0,22,0,0,24,0,0,25,0,0,5,1,0,12,0,0,10,0,0,4,0,0,12,0,0,13,0,0,7,0,0,7,0,0,18,0,0,20,0,0,20,0,0,15,0,0,27,0,0,32,2,0,24,0,0,14,0,0,12,2,0,13,0,0,5,0,0,4,1,0,2,1,0,4,0,-1,0,0,0,4,0,0,4,0,0,2,0,0,5,0,0,5,0,0,6,0,0,8,0,0,"",7]
["Chichester",13035,707,"12420",1492,1942,2236,2523,2785,2842,2884,21,0,0,7,0,0,7,0,0,16,2,2,12,0,0,37,0,5,41,2,0,29,0,0,24,0,0,5,0,0,8,0,3,10,0,1,8,0,1,6,0,1,8,0,0,9,0,2,8,0,0,19,0,4,15,0,0,41,0,2,33,0,0,28,0,1,16,0,0,12,0,3,13,0,0,7,1,0,5,0,0,20,0,0,15,0,0,5,1,0,8,3,0,0,0,0,2,0,1,5,0,0,9,0,0,3,-1,1,3,0,0,5,0,2,10,0,0,3,0,0,"",7]
["Concord",13040,708,"14200",30400,36006,40687,42695,43900,44793,45462,93,89,0,49,37,3,41,22,1,81,76,6,97,465,11,496,903,13,442,544,25,395,383,1,82,42,0,39,171,0,69,14,0,58,18,0,40,40,0,49,10,1,67,1,4,43,19,3,31,62,2,29,38,0,62,3,0,73,210,1,99,44,0,111,5,0,155,39,0,100,161,0,131,49,0,76,38,0,58,89,0,52,109,0,16,85,0,20,9,0,10,77,0,-1,16,0,11,-14,0,26,-35,0,31,49,-9,30,140,-1,31,38,10,20,6,8,22,18,6,26,45,14,"",7]
["Danbury",13045,709,"16980",680,881,1071,1164,1240,1265,1284,7,0,6,6,0,2,0,0,0,3,0,2,0,0,0,0,2,3,0,0,0,6,2,5,4,0,3,0,0,0,3,0,0,2,1,2,8,0,4,4,0,2,9,0,4,8,0,5,6,0,4,5,0,4,4,0,1,2,0,4,4,0,1,7,4,0,2,0,7,18,0,0,24,0,0,7,0,0,8,0,2,12,0,0,3,-4,2,-1,0,0,2,0,1,1,0,-3,3,1,1,1,0,0,3,0,0,4,0,0,5,0,2,4,0,1,2,0,0,4,0,2,"",7]
["Dunbarton",13050,710,"19460",1174,1759,2226,2758,3292,3359,3409,5,0,0,8,0,-1,9,0,0,7,0,0,12,0,0,43,11,0,25,4,0,24,1,0,14,1,0,21,0,0,13,0,0,12,2,0,11,0,0,14,0,0,9,0,0,27,0,0,23,0,0,37,4,0,30,2,0,25,2,27,30,2,0,18,0,0,27,0,0,20,0,0,28,0,0,20,0,0,19,0,0,9,2,2,9,0,0,3,0,0,4,0,0,5,0,0,1,0,1,4,2,0,10,0,0,4,0,0,8,0,0,20,2,0,10,0,1,9,3,0,"",7]
["Epsom",13055,711,"24900",2743,3591,4021,4566,5069,5172,5249,13,2,2,8,0,0,26,0,2,21,0,0,40,1,3,59,0,4,45,6,10,31,4,2,19,2,0,30,10,3,16,1,6,18,1,6,16,0,4,17,0,0,12,1,1,16,0,0,21,0,10,15,0,8,18,2,12,19,-2,17,38,2,12,39,0,18,31,0,0,31,1,7,31,0,8,40,0,10,25,12,4,24,4,0,7,2,5,13,2,0,12,1,5,10,3,2,8,2,2,8,5,1,10,2,1,11,2,5,7,0,6,9,2,0,2,0,1,29,1,8,"2002 Did not submit data to OEP. Used Census Data",7]
["Franklin",13060,712,"27380",7901,8304,8405,8477,8346,8516,8643,43,0,1,13,0,1,9,0,0,10,40,1,14,0,2,37,100,2,24,98,5,86,39,6,17,8,0,8,26,2,5,1,3,2,0,2,5,-4,1,2,-2,0,-1,-5,4,2,-3,6,1,2,7,3,0,6,10,0,9,18,0,10,11,0,8,28,0,0,24,2,5,42,-5,7,49,2,9,36,4,3,23,1,7,12,-1,0,11,0,3,4,1,2,2,0,2,3,2,2,3,1,5,0,0,10,9,1,6,0,0,21,1,48,16,2,0,11,5,-6,0,5,-4,2,"",7]
["Henniker",13065,713,"35540",3246,4151,4433,4836,5171,5277,5355,25,0,3,0,0,0,0,0,0,21,0,0,15,1,2,32,6,2,117,13,3,38,4,0,59,3,6,22,10,0,7,2,0,10,0,0,5,0,3,6,1,1,6,4,3,3,5,0,3,13,3,8,3,2,9,2,3,14,2,0,15,0,0,37,0,4,25,4,1,9,0,0,24,2,0,32,2,1,15,4,0,6,0,0,6,0,0,0,-8,0,-1,1,0,3,0,0,1,0,0,4,0,0,-1,3,-1,5,0,-1,5,0,0,10,14,1,9,0,0,15,0,-1,"",7]
["Hill",13070,714,"35860",736,814,992,1089,1172,1195,1213,9,0,0,2,0,0,6,0,0,3,0,1,4,0,0,5,0,0,9,0,0,12,0,1,11,0,5,3,0,1,3,0,-1,2,0,3,8,0,4,3,2,0,0,0,0,5,0,0,3,0,1,2,0,2,4,0,0,5,0,0,8,0,7,3,0,1,7,0,2,10,0,1,6,0,2,3,0,0,4,0,2,7,0,0,2,0,-2,1,0,0,2,0,0,1,0,0,0,0,0,2,0,0,1,0,1,1,0,0,0,0,0,0,1,2,0,0,1,3,0,0,"",7]
["Hooksett",13075,715,"37300",7303,8767,11721,13451,15074,15381,15610,26,4,0,16,3,0,9,50,1,47,41,6,29,83,9,65,187,0,581,88,0,113,6,0,209,12,0,49,10,0,23,4,1,22,0,0,23,0,0,20,0,0,55,0,0,45,0,0,50,8,0,99,33,0,124,31,3,89,14,0,75,4,0,125,0,0,140,12,0,82,32,0,42,50,22,36,0,19,40,8,24,49,2,23,16,12,0,10,0,1,29,0,0,27,16,0,14,192,-1,33,2,0,15,6,-17,26,0,-1,14,7,0,31,0,0,36,6,0,64,10,0,"",7]
["Hopkinton",13080,716,"37540",3861,4806,5399,5589,5664,5779,5866,23,4,0,20,8,0,19,0,2,39,0,8,40,3,0,53,8,0,45,0,4,57,0,8,59,0,21,9,2,4,3,31,1,11,0,2,14,0,1,11,1,2,11,0,5,14,2,3,15,2,11,18,2,21,19,6,26,21,0,17,16,2,8,19,2,0,21,10,0,29,0,0,18,2,0,13,1,0,10,15,0,8,1,0,8,0,0,8,0,0,5,0,0,4,0,0,3,0,0,8,5,0,5,-1,0,10,0,0,11,0,0,10,0,0,10,9,0,13,0,0,"",7]
["Loudon",13085,717,"43380",2454,4114,4481,5317,6131,6256,6349,43,0,0,46,0,0,29,0,0,64,0,0,45,0,5,45,0,2,52,12,31,44,0,30,44,0,0,45,9,29,40,0,19,15,0,0,17,2,0,10,0,1,15,0,0,21,2,4,29,0,6,24,0,7,25,0,2,42,0,5,41,0,3,48,2,3,47,0,1,47,0,2,36,0,0,32,0,0,32,0,0,37,0,1,38,2,3,13,2,3,6,0,0,1,4,0,10,0,2,20,2,0,20,2,0,24,0,0,29,0,9,30,2,-2,12,4,0,15,8,0,"",7]
["New London",13095,719,"52100",2935,3180,4116,4397,4605,4699,4769,11,0,0,7,32,0,13,0,0,21,0,0,17,8,0,48,0,0,64,4,0,46,0,0,68,3,0,11,4,0,12,3,0,13,0,0,10,0,0,20,0,0,16,2,0,25,0,0,23,0,0,20,0,0,33,0,0,33,0,0,24,0,0,15,0,0,42,0,0,29,0,0,33,0,0,16,0,0,12,0,0,9,0,0,6,0,0,3,2,0,9,0,0,12,0,0,7,0,0,8,0,0,7,34,0,7,0,0,7,0,0,7,0,0,13,4,0,8,0,1,"",7]
["Newbury",13090,718,"50900",961,1347,1702,2072,2439,2489,2526,15,0,0,11,0,0,3,0,0,8,0,0,6,0,0,14,0,1,27,0,0,40,0,0,40,0,1,17,0,0,13,0,0,20,0,0,12,0,0,17,0,0,11,0,1,14,0,0,16,4,1,15,0,0,16,3,0,26,6,0,24,4,0,24,5,0,28,52,0,47,0,0,36,0,0,22,2,0,23,1,0,17,0,0,14,0,0,8,0,0,7,0,0,0,0,0,2,4,0,-1,4,0,9,1,0,3,0,0,3,0,0,4,0,0,-1,6,0,10,13,0,"",7]
["Northfield",13100,720,"54260",3051,4263,4548,4829,5026,5129,5205,0,0,0,11,0,1,17,0,4,22,0,6,20,1,6,29,240,3,91,13,4,0,0,0,37,2,3,23,17,6,12,17,6,11,0,0,8,0,0,14,0,3,14,2,2,6,1,5,12,0,1,8,0,1,8,1,0,15,0,3,28,0,0,33,0,7,27,0,2,36,0,1,30,2,0,26,70,0,8,0,0,6,0,0,2,0,1,2,0,1,0,0,0,2,0,0,0,1,1,1,1,0,4,2,0,3,0,1,4,1,0,10,2,-1,8,2,2,6,0,2,"",7]
["Pembroke",13105,721,"60020",4861,6561,6897,7115,7184,7330,7439,19,2,6,9,0,3,9,40,2,49,4,1,61,6,0,117,117,0,65,24,0,56,10,0,70,9,2,30,0,0,7,0,0,8,0,0,7,0,0,7,-1,0,11,0,0,9,0,0,9,0,1,10,0,0,12,0,0,31,0,0,26,1,0,40,2,0,40,4,0,27,0,0,28,29,0,28,0,0,10,8,0,8,8,0,1,16,0,4,44,-1,1,-2,0,0,0,1,2,4,0,2,0,0,8,2,0,1,0,0,2,2,1,-2,0,0,1,0,0,1,0,0,"",7]
["Pittsfield",13110,722,"61940",2889,3701,3931,4106,4201,4287,4351,6,5,3,8,0,2,0,0,0,5,0,6,11,-10,10,0,0,0,12,-2,2,29,6,6,28,75,0,15,0,2,14,0,4,14,1,2,10,1,1,7,0,0,6,2,1,10,-2,6,10,2,1,7,0,7,9,0,2,13,2,6,36,-1,0,40,0,1,32,0,0,35,-3,1,32,3,-3,23,1,0,8,2,0,8,0,1,1,0,0,1,-4,1,-2,0,1,2,0,0,1,0,0,1,0,1,1,0,0,3,0,0,-1,0,0,1,0,2,0,2,-1,5,4,1,"2002 Did not submit data to OEP. Used Census Data",7]
["Salisbury",13115,723,"66980",781,1061,1137,1382,1625,1658,1683,8,1,1,6,0,0,4,0,1,3,0,0,9,0,0,9,1,0,27,0,1,23,2,0,17,0,0,7,0,0,4,0,0,6,0,0,1,0,0,5,0,0,5,0,0,5,0,1,7,0,0,6,1,2,2,0,0,9,0,0,11,0,0,11,0,0,9,0,5,10,1,3,10,0,2,12,0,0,6,2,0,2,1,0,2,0,0,2,1,0,2,0,0,4,0,0,2,0,0,2,0,0,2,0,1,4,0,0,2,0,0,6,0,0,2,0,0,7,0,0,"",7]
["Sutton",13120,724,"75460",1091,1457,1544,1837,2123,2166,2198,8,0,0,7,0,0,5,0,0,4,0,1,0,0,0,8,2,0,19,3,0,25,2,0,35,3,0,13,0,0,9,0,0,5,0,0,7,0,0,6,0,0,6,0,0,2,0,0,4,0,0,0,0,0,10,0,0,11,0,0,25,0,0,17,0,0,33,0,0,30,0,0,27,0,0,20,2,0,13,0,0,9,0,0,13,0,0,8,0,0,3,0,0,2,0,0,5,0,0,3,0,0,3,0,0,3,0,0,4,0,0,8,0,0,5,0,0,6,0,-2,"",7]
["Warner",13125,725,"78580",1963,2250,2760,2833,2845,2903,2946,7,0,0,9,0,0,2,0,0,10,0,0,7,0,3,10,2,4,15,0,2,25,6,4,25,2,6,23,2,2,9,0,1,6,0,0,5,0,0,4,32,2,2,0,3,3,0,6,10,0,0,11,0,2,14,0,1,12,2,1,11,4,0,23,0,0,14,2,6,24,0,0,19,0,0,14,2,0,11,0,0,0,0,0,3,0,0,8,0,0,6,0,0,5,0,0,7,0,1,2,0,0,4,0,0,5,0,0,3,0,0,3,0,1,3,0,1,6,2,1,"",7]
["Webster",13130,726,"80020",1095,1405,1579,1872,2157,2201,2234,6,0,0,5,0,1,5,0,1,3,0,1,4,0,0,15,0,0,18,0,0,16,0,1,17,0,2,18,0,2,4,0,2,3,0,0,1,0,0,4,0,0,7,0,0,8,0,3,10,0,1,10,0,4,10,5,1,4,0,3,16,2,1,17,1,1,8,1,0,23,0,-2,19,0,-1,14,2,0,7,0,1,12,-1,0,7,0,0,2,0,0,3,0,0,2,0,0,0,0,-1,0,0,0,2,0,0,3,0,0,3,0,-1,6,0,0,3,0,0,4,0,0,"",7]
["Wilmot",13135,727,"84900",725,935,1144,1358,1566,1598,1622,1,0,2,6,0,0,3,0,1,9,0,1,5,0,0,6,1,0,12,0,2,27,0,2,12,0,0,6,0,0,3,0,1,2,0,0,5,0,0,9,0,0,12,0,0,3,0,0,7,0,0,3,2,0,8,0,1,12,0,0,8,0,0,12,-1,0,8,0,1,26,0,0,13,0,1,10,0,1,10,0,0,12,0,0,4,1,0,1,2,0,4,0,0,2,0,0,0,0,0,1,0,0,0,0,0,4,0,0,4,0,0,3,0,0,2,0,0,2,0,1,"",7]
[]
[]
[]
[]
[]
[]
[]
[]
[]
[]
[]
[]
[]
[]
[]
[]
[]
[]
[]
[]
[]
[]
[]
["NH Employment Data","Query Name: DPQryEmploymentByCnty-Good-Serv-Total","Updated:","2020-09-30"]
[]
["AreaName","COUNTYCODE","TOTP & G2001","TOT2001","GOODPRO2001","SERVICEPROMAN2001","WAGEP & G2001","WAGETOT2001","WAGEGOODPRO2001","WAGESERVICEPRO2001","TOTP & G2002","TOT2002","GOODPRO2002","SERVICEPROMAN2002","WAGEP & G2002","WAGETOT2002","WAGEGOODPRO2002","WAGESERVICEPRO2002","TOTP & G2003","TOT2003","GOODPRO2003","SERVICEPROMAN2003","WAGEP & G2003","WAGETOT2003","WAGEGOODPRO2003","WAGESERVICEPRO2003","TOTP & G2004","TOT2004","GOODPRO2004","SERVICEPROMAN2004","WAGEP & G2004","WAGETOT2004","WAGEGOODPRO2004","WAGESERVICEPRO2004","TOTP & G2005","TOT2005","GOODPRO2005","SERVICEPROMAN2005","WAGEP & G2005","WAGETOT2005","WAGEGOODPRO2005","WAGESERVICEPRO2005","TOTP & G2006","TOT2006","GOODPRO2006","SERVICEPROMAN2006","WAGEP & G2006","WAGETOT2006","WAGEGOODPRO2006","WAGESERVICEPRO2006","TOTP & G2007","TOT2007","GOODPRO2007","SERVICEPROMAN2007","WAGEP & G2007","WAGETOT2007","WAGEGOODPRO2007","WAGESERVICEPRO2007","TOTP & G2008","TOT2008","GOODPRO2008","SERVICEPROMAN2008","WAGEP & G2008","WAGETOT2008","WAGEGOODPRO2008","WAGESERVICEPRO2008","TOTP & G2009","TOT2009","GOODPRO2009","SERVICEPROMAN2009","WAGEP & G2009","WAGETOT2009","WAGEGOODPRO2009","WAGESERVICEPRO2009","TOTP & G2010","TOT2010","GOODPRO2010","SERVICEPROMAN2010","WAGEP & G2010","WAGETOT2010","WAGEGOODPRO2010","WAGESERVICEPRO2010","TOTP & G2011","TOT2011","GOODPRO2011","SERVICEPROMAN2011","WAGEP & G2011","WAGETOT2011","WAGEGOODPRO2011","WAGESERVICEPRO2011","TOTP & G2012","TOT2012","GOODPRO2012","SERVICEPROMAN2012","WAGEP & G2012","WAGETOT2012","WAGEGOODPRO2012","WAGESERVICEPRO2012","TOTP & G2013","TOT2013","GOODPRO2013","SERVICEPROMAN2013","WAGEP & G2013","WAGETOT2013","WAGEGOODPRO2013","WAGESERVICEPRO2013","TOTP & G2014","TOT2014","GOODPRO2014","SERVICEPROMAN2014","WAGEP & G2014","WAGETOT2014","WAGEGOODPRO2014","WAGESERVICEPRO2014","TOTP & G2015","TOT2015","GOODPRO2015","SERVICEPROMAN2015","WAGEP & G2015","WAGETOT2015","WAGEGOODPRO2015","WAGESERVICEPRO2015","TOTP & G2016","TOT2016","GOODPRO2016","SERVICEPROMAN2016","WAGEP & G2016","WAGETOT2016","WAGEGOODPRO2016","WAGESERVICEPRO2016","TOTP & G2017","TOT2017","GOODPRO2017","SERVICEPROMAN2017","WAGEP & G2017","WAGETOT2017","WAGEGOODPRO2017","WAGESERVICEPRO2017","TOTP & G2018","TOT2018","GOODPRO2018","SERVICEPROMAN2018","WAGEP & G2018","WAGETOT2018","WAGEGOODPRO2018","WAGESERVICEPRO2018","TOTP & G2019","TOT2019","TOTGov2019","GOODPRO2019","SERVICEPROMAN2019","WAGEP & G2019","WAGETOT2019","WAGEGov2019","WAGEGOODPRO2019","WAGESERVICEPRO2019","SummaryLevel","WAGESERVICEPRO2019","SummaryLevel"]
["Allenstown",7,567,420,75,345,458.23,450.68,690.66,398.54,547,394,75,319,467.99,451.45,650.45000000000005,404.38,575,417,85,332,481.57,465.16,625.29999999999995,424.06,580,414,79,335,559.34,570.74,713.84,536.88,783,609,"n","n",541.73,541.84,"n","n",722,535,165,370,542.58000000000004,544.84,526.5,553,709,516,120,395,566.6,574.70000000000005,577.92999999999995,573.71,720,525,141,385,603.02,610.47,623.51,605.70000000000005,630,466,137,329,632.92999999999995,611.41999999999996,615.41999999999996,609.76,646,472,147,325,628.92999999999995,628.46,630.44000000000005,627.57000000000005,669,487,147,341,644.14,648.04999999999995,628.24,656.56,708,528,157,372,648.84,660.75,653.44000000000005,663.82,735,576,197,379,681.85,676.87,655.93,687.74,719,555,182,373,697.28,696.05,730.28,679.41,649,480,170,310,714.69,707.52,809.33,651.65,618,447,127,320,744.13,758.48,998.41,662.94,555,390,126,264,787.98,810.13,985.01,726.91,704,370,114,256,881.97,877.59,1084.3599999999999,785.18,741,394,348,117,277,851.29,836.77,867.73,1054.58,744.63,60,744.63,60]
["Andover",7,545,482,81,401,542.46,561.54,680.45,537.42999999999995,582,516,91,425,535.96,552.24,635.95000000000005,534.30999999999995,593,528,78,450,540.49,551.05999999999995,662.67,531.66999999999996,595,528,80,449,581.61,597.5,716.85,576.26,581,515,89,426,608.52,622.59,764.44,592.85,520,452,84,368,686.74,714.5,1018.03,644.92999999999995,567,495,92,403,654.64,671.31,780.15,646.36,567,493,88,405,671.1,686.24,791.26,663.39,550,474,71,403,690.48,703.66,943.68,661.41,531,459,76,383,709.36,719.72,941.5,675.74,507,433,67,366,711.59,723.36,969.38,678.42,522,452,79,373,750.76,767.32,1133.05,689.98,541,468,92,376,743.17,757.89,971,705.63,539,466,96,370,755.46,768.62,984.2,712.97,550,474,102,372,766.96,782.02,933.65,740.33,550,475,103,372,768.17,776.55,1003.55,713.42,543,470,103,367,806.98,812.78,1055.08,744.55,545,468,107,362,864.33,879.94,1110.42,811.99,584,508,77,107,401,884.92,901.25,776.61,1269.0999999999999,803.31,60,803.31,60]
["Boscawen",7,644,583,307,277,617.42999999999995,632.52,825.82,418.09,721,662,294,369,643.62,654.28,813.08,527.85,766,704,293,411,654.63,663.13,825.04,547.53,781,718,278,440,680.56,690.41,870.07,577.08000000000004,744,681,273,408,695.51,703.69,882.78,583.83000000000004,709,639,246,393,732.01,747.66,916.66,641.65,711,638,247,391,733,746.51,951.43,617.03,670,595,244,351,717.4,726.05,931.7,583.36,1307,578,241,338,716.48,733.93,926.66,596.54,1349,602,254,348,758.3,808.9,950.13,705.85,1408,662,266,396,759.33,799.11,929.95,711.09,1418,664,255,409,769.62,831.77,992.23,731.86,1418,657,271,386,807.99,912.23,1012.14,842.22,1450,676,271,405,808.86,869.07,1035.6300000000001,757.64,1461,690,263,427,832.76,930.66,1097.57,827.77,1474,720,268,451,857.31,956.36,1084.5,880.25,1465,717,278,439,901.16,1013.3,1134.33,936.7,1373,642,286,356,878.82,949.43,1164.76,776.23,1356,635,720,294,342,922.21,1016.33,839.21,1212.05,848.07,60,848.07,60]
["Bow",7,3245,2757,1411,1346,729.04,752.6,751.83,753.41,3269,2777,1357,1420,780.06,809.08,837.56,781.87,3411,2863,1417,1445,847.64,893.3,973.74,814.42,3256,2749,1351,1398,838.52,867.34,878.33,856.71,3089,2636,1222,1414,853.47,861.07,881.9,843.06,3223,2752,1117,1635,926.55,943.68,950.81,938.81,3238,2755,993,1762,1078.3599999999999,1121.17,1375.24,977.91,3305,2812,1022,1790,1013.63,1030.94,1140.8499999999999,968.2,3340,2820,1011,1808,976.86,986.4,1052.28,949.55,3201,2743,1163,1580,1006.7,1034.05,1006.76,1054.1300000000001,3349,2905,1238,1666,990.84,1007.51,963.88,1039.93,3482,3022,1219,1804,983.28,1002.33,986.7,1012.89,3603,3159,1269,1890,969.16,979.76,975.69,982.49,3830,3373,1329,2044,994.05,1008.17,1045.3900000000001,983.97,3894,3452,1332,2120,1005.67,1013.41,1016.91,1011.2,4016,3561,1469,2092,997.05,1006.59,1047.45,977.9,4020,3560,1421,2139,1047.3499999999999,1062.32,1099,1037.94,3996,3539,1358,2181,1068.49,1081.24,1148.72,1039.24,4004,3566,438,1316,2250,1117.1600000000001,1128.1500000000001,1027.74,1204.81,1083.3399999999999,60,1083.3399999999999,60]
["Bradford",7,278,195,72,123,512.55999999999995,539.63,652.58000000000004,473.99,301,212,84,128,569.32000000000005,606.92999999999995,675.34,561.82000000000005,327,236,82,155,488.43,498.35,700.77,391.63,335,249,85,164,514.80999999999995,516.92999999999995,741.01,400.17,328,245,98,148,557.38,558.38,748.66,432.27,377,291,101,190,553.49,555.30999999999995,774.88,438.78,370,283,100,183,639.87,644.62,899.91,505.59,377,283,92,191,619.99,631.38,870.13,516.23,325,237,74,164,629.14,646.65,863.22,549.44000000000005,337,254,68,186,579.91999999999996,572.24,813.47,483.77,359,273,67,206,549.64,530.42999999999995,843.71,429.2,377,295,83,213,564.91999999999996,547.48,862.31,424.81,376,299,77,222,543.54999999999995,512.80999999999995,839.35,400.12,360,285,59,226,548.73,506.85,758.87,440.66,367,297,57,240,593.79,554.29999999999995,752.09,507.12,340,271,56,215,670.64,647.41,810.51,605.28,381,315,"n","n",674.57,648.17999999999995,"n","n",368,303,"n","n",720.45,699.58,"n","n",383,317,15,48,270,718.97,692.85,1630.65,779.48,677.51,60,677.51,60]
["Canterbury",7,268,223,55,167,461.87,489.57,471.91,495.4,304,229,56,172,496.06,527.12,478.71,542.92999999999995,303,229,51,177,493.37,503.61,480.44,510.33,275,208,43,166,523.19000000000005,533.76,532.65,534.04,279,211,44,167,499.02,500.13,531.79999999999995,491.87,282,207,47,160,522.54999999999995,537.54,513.27,544.65,288,210,34,176,550.80999999999995,576.36,557.05999999999995,580.11,267,186,24,162,508.56,517.39,516.59,517.51,272,201,19,182,537.69000000000005,527.22,454.49,534.71,263,191,18,172,563.70000000000005,564.63,472.53,574.47,258,191,18,173,592.78,592,493.32,602.01,283,216,23,193,647.9,661.92,555.9,674.61,265,199,37,162,723.21,752.09,554.04,797.67,284,221,45,176,788.44,820.6,511.29,899.21,292,231,48,183,903.89,961.27,569.44000000000005,1063.68,318,257,52,205,828.66,859.47,536.38,941.83,348,285,54,231,807.27,826.81,520.5,898.54,329,267,48,219,833.11,858.91,602.16999999999996,914.61,316,255,61,56,200,833.15,846.45,777.15,592.78,917.45,60,917.45,60]
["Chichester",7,460,374,80,294,585.84,629.01,506.38,662.12,521,443,81,362,644.94000000000005,671.12,463.17,717.64,991,908,54,855,688.02,703.73,552.05999999999995,713.25,562,482,50,432,678.47,699.39,551.45000000000005,716.6,580,499,41,459,651.76,663.82,575.21,671.64,612,533,53,479,698.6,705.76,604.74,716.94,638,549,57,492,687.82,697.74,524.34,717.69,608,520,105,414,679.28,680.19,587.1,703.84,508,422,83,339,681.89,672.45,607.15,688.51,520,435,67,368,655.86,645.77,714.66,633.21,529,436,72,364,644.55999999999995,636.07000000000005,669.23,629.51,552,467,76,391,673.07,665.11,642.66,669.5,605,524,78,446,706.53,706.22,622.88,720.69,624,541,80,461,765.66,777.13,825.8,768.63,654,570,114,456,811.96,831.84,868.45,822.71,702,619,157,462,869.39,896.96,943.49,881.13,708,628,"n",0,886.99,902.77,"n",0,788,703,"n",0,893.27,916.41,"n",0,808,707,0,"n",0,930.13,971.5,0,"n",0,60,0,60]
["Concord",7,40212,28898,2591,26307,644.67999999999995,636.65,824.25,618.16999999999996,40321,28715,2321,26394,664.57,654.45000000000005,823.12,639.62,40370,28529,2156,26372,682.63,670.6,815.48,658.76,40010,28509,2066,26443,701.69,686.68,805.7,677.38,40546,28855,2050,26805,717.32,707.43,816.15,699.11,40963,29115,2002,27113,744.7,732.05,858.11,722.74,41069,29205,1944,27261,782.82,764.44,914.87,753.72,41267,29264,1855,27409,819.59,800.52,996.41,787.26,40199,28900,1766,27135,850.6,808.25,981.71,796.96,40179,28965,1691,27274,854.9,819.23,999.77,808.04,39526,28600,1700,26900,878.75,847.1,1035.08,835.22,39575,28881,1778,27103,892.89,867.75,1083.28,853.6,39226,28710,1686,27023,906.45,881.12,1116.21,866.45,39653,28803,1626,27177,933.23,903.03,1097.1199999999999,891.42,39959,29086,1630,27456,968.67,933.45,1160.68,919.97,40396,29381,1589,27793,989.69,957.51,1134.3599999999999,947.4,40503,29403,1659,27744,1026.1300000000001,994.89,1205.3800000000001,982.3,40594,29665,1686,27979,1064.6199999999999,1037.03,1219.81,1026.01,40427,29393,11035,1650,27742,1089.6300000000001,1059.29,1170.46,1219.99,1049.73,60,1049.73,60]
["Danbury",7,136,104,18,85,387.84,388.93,444.58,376.98,149,111,23,88,437.33,467.74,486.09,463.04,168,130,26,104,439.62,440.31,619.97,395.76,164,126,26,99,478.43,498.25,710.99,442.03,155,120,29,92,630.54999999999995,673.41,719.83,658.96,136,101,"n","n",481.12,456.66,"n","n",133,93,25,68,572.49,570.61,834.67,472.29,166,127,29,98,597.14,603.96,775.9,553,167,132,31,101,586.41999999999996,582.07000000000005,817.68,509.12,159,126,"n","n",503.51,483.62,"n","n",142,110,"n","n",517.39,500.1,"n","n",138,108,25,83,523.33000000000004,524.26,899.07,413.1,160,128,32,96,516.33000000000004,520.97,897,394.86,192,154,64,90,669.59,726.55,781.45,687.72,227,188,93,95,653.83000000000004,687.55,898.53,481.91,214,175,"n","n",690.88,731.23,"n","n",232,196,94,102,712.18,753.57,1105.29,430.25,223,190,86,104,713.74,749.3,1183.9000000000001,387.65,213,177,36,73,105,715.71,764.05,475.3,1222.1099999999999,446.28,60,446.28,60]
["Dunbarton",7,203,146,93,53,657.96,768.32,828.52,662.65,193,137,88,49,706.17,782.63,860.95,643.1,207,146,92,54,698.12,802.47,920.17,600.70000000000005,227,168,99,69,793.75,899.26,1129.52,570.9,242,178,106,72,756.83,853.79,1050.53,563.37,245,176,105,72,788.14,907.48,1156.94,542.29,246,175,104,71,704.77,791.81,912.3,614.62,185,122,60,62,700.55,759.88,839.57,682.33,166,102,38,64,713.22,793.34,953.31,698.19,173,105,40,65,743.91,854.39,1022.01,751.93,184,122,54,69,873.19,974.66,1178.47,815.19,195,132,60,72,949.79,1078.1099999999999,1431.06,783.1,203,138,69,69,924.73,1040.1500000000001,1243.47,835.35,242,174,81,93,999.25,1141.9000000000001,1615.41,726.3,272,203,81,122,980.01,1094.07,1553.33,786.85,311,231,103,128,977.88,1124.1600000000001,1488.41,829.09,341,257,119,138,1023.96,1173.96,1467.39,920.93,355,266,125,140,1103.7,1273.47,1507.82,1063.6500000000001,382,299,83,141,158,1079.5,1188.9100000000001,686.06,1513.19,900.32,60,900.32,60]
["Epsom",7,958,860,335,525,543.05999999999995,549.29999999999995,797.73,390.68,1050,947,283,664,554.23,559.12,865.46,428.32,990,879,206,673,528.29999999999995,531.28,763.45,460.14,987,877,190,686,566.74,571.02,856.97,491.68,992,882,175,706,551.35,549.22,905,460.93,980,863,175,688,564.64,565.16,904.37,479.01,1005,871,162,709,572.29,572.97,894.43,499.47,843,717,171,546,695.57,705.87,1188.8900000000001,554.14,862,740,169,572,714.33,716.56,1143.54,590.53,902,779,180,599,705.23,707.09,1191.8900000000001,561.75,965,840,175,665,724.71,728.63,1260.83,588.54,1103,977,172,805,698.85,699.41,1027.8,629.23,1133,1009,162,847,683.83,678.06,1065.04,603.83000000000004,1110,983,167,815,706.29,701.97,1050.22,630.51,1078,953,146,807,736.03,728.26,1138.26,654.15,1102,980,152,828,731.63,724.99,1002.58,673.92,1138,1008,165,842,779.9,778.12,1095.03,715.93,1205,1072,167,904,806.73,807.31,1147.8699999999999,744.26,1233,1096,137,170,926,842.42,849.64,784.75,1225.8399999999999,780.34,60,780.34,60]
["Franklin",7,3494,3131,1622,1509,589.45000000000005,592.69000000000005,717.52,458.52,3270,2885,1411,1474,609.17999999999995,614.52,737.34,496.97,3091,2689,1241,1447,634.66999999999996,642.98,776.63,528.35,2938,2510,1069,1440,668.35,684.66,818.44,585.32000000000005,2884,2468,1078,1390,684.55,700.25,829.47,600.05999999999995,3024,2576,1174,1403,713.47,735.35,885.52,609.74,2893,2435,1033,1402,719.58,734.53,868.73,635.67999999999995,2875,2401,959,1441,710.33,725.83,830.44,656.2,2722,2254,842,1413,709.31,723.78,809.64,672.63,2563,2088,754,1334,738.82,762.01,896.02,686.3,2589,2144,818,1326,742.76,754.54,904.12,662.25,2609,2165,842,1323,757.25,776.34,922.82,683.17,2590,2167,842,1326,797.18,814.34,963.73,719.49,2701,2289,912,1377,817.03,835.29,951,758.63,2691,2283,916,1367,847.96,866.28,1012.52,768.28,2615,2226,846,1379,858.58,872.55,1014.48,785.46,2546,2173,778,1395,864.14,874.36,961.47,825.74,2548,2196,789,1407,898.23,904.7,971.95,866.96,2517,2171,346,796,1375,914.93,920.33,881.01,1004.49,871.63,60,871.63,60]
["Henniker",7,1799,1640,457,1183,587.95000000000005,592.75,795.15,514.66999999999996,1709,1511,443,1067,512.45000000000005,510.44,871.96,360.28,1716,1518,443,1076,523.63,517.22,833.7,386.99,1735,1546,"n","n",561,555.33000000000004,"n","n",1752,1570,"n","n",589.32000000000005,580.15,"n","n",1753,1576,"n","n",596.72,584.15,"n","n",1731,1549,"n","n",602.25,585.54999999999995,"n","n",1756,1555,"n","n",596.12,579.55999999999995,"n","n",1693,1502,"n","n",575.95000000000005,552.46,"n","n",1684,1482,"n","n",594.99,575.79,"n","n",1728,1516,"n","n",582.88,563.66,"n","n",1673,1455,307,1149,608.84,594.23,870.97,520.38,1700,1476,"n","n",623.85,614.75,"n","n",1648,1427,"n","n",652.64,641.88,"n","n",1627,1410,"n","n",716.68,712.73,"n","n",1623,1407,"n","n",733.74,732.41,"n","n",1606,1390,"n","n",734.85,729.41,"n","n",1632,1414,283,1131,760.05,757.86,1054.05,683.86,1626,1416,210,293,1123,857.38,860.96,833.15,1097.79,799.22,60,799.22,60]
["Hill",7,68,38,20,19,531.09,614.28,945.6,269.70999999999998,83,52,26,26,654.6,796.68,1271.19,329.76,96,65,30,35,635.91,707.39,1041.71,422.86,93,58,31,27,804.92,1066.05,1617.32,445.66,86,51,23,28,654.59,838.11,1375.42,406.37,100,62,23,39,745.52,965.72,1795.86,472.61,104,63,"n","n",686.59,846.42,"n","n",87,45,"n","n",682.7,920.23,"n","n",77,37,"n","n",600.32000000000005,825.54,"n","n",64,28,14,15,795.91,1253.02,2269.71,327.72,49,16,"n","n",444.52,423.38,"n","n",54,18,5,13,450.77,526.70000000000005,600.01,499.92,60,23,"n","n",444.44,520.99,"n","n",58,23,5,19,489.82,537.53,472,554.64,55,22,4,18,545.54999999999995,580.16,560.49,584.9,60,29,4,25,569.77,663.08,599.94000000000005,674.06,68,33,5,27,558.4,658.41,502.16,689.47,69,30,"n","n",601.59,746.65,"n","n",54,18,37,"n","n",543.86,601.9,516.09,"n","n",60,"n",60]
["Hooksett",7,6906,6381,1901,4480,728.81,744.47,930.4,665.56,6814,6283,1693,4590,769.14,787.93,991.47,712.86,7248,6688,1690,4998,723.13,736.12,1002.42,646.09,7761,7181,1715,5466,760.15,773.4,1043.7,688.6,7999,7420,1900,5521,781.19,793.85,1066.49,700.05,8034,7444,1890,5554,802.99,814.28,1113.73,712.41,8033,7426,1842,5584,834.06,846.77,1178.99,737.18,8105,7497,1828,5670,864.56,876.25,1229.68,762.32,7793,7164,1607,5557,843.95,853.71,1261.3599999999999,735.82,7722,7087,1515,5572,853.87,864.06,1269.93,753.7,7934,7310,1607,5703,867.74,877.55,1292.97,760.47,8337,7716,1696,6019,882.17,893.5,1318.47,773.75,8845,8221,1792,6430,918.82,930.63,1322.57,821.42,9286,8646,1763,6883,934.42,946.47,1409.63,827.85,9518,8865,"n",7106,990.09,1007.48,"n",895.17,9767,9132,1852,7280,1014.91,1031.5,1455.82,923.55,9908,9291,1941,7350,1055.99,1071.45,1493.47,959.98,10179,9567,1996,7570,1089.55,1105.03,1530.8,992.74,10407,9805,602,2081,7724,1126.6099999999999,1141.8499999999999,878.33,1525.09,1038.6099999999999,60,1038.6099999999999,60]
["Hopkinton",7,1715,1446,344,1103,643.74,655.48,617.71,667.26,1905,1636,296,1340,701.7,713.28,609.04,736.31,1821,1523,271,1252,647.15,653.74,612.05999999999995,662.75,1785,1497,297,1201,689.73,693.97,614.27,713.66,1623,1327,301,1026,674.63,667.47,642.53,674.79,1698,1373,325,1048,685.44,686.23,629.69000000000005,703.76,1678,1380,285,1096,697.5,678.42,623.24,692.76,1664,1366,289,1077,724.32,703.11,660.92,714.44,1579,1281,238,1043,729.79,701.59,617.91999999999996,720.71,1540,1239,259,980,746.63,727.47,635.5,751.78,1552,1253,277,977,767.34,750.57,745.95,751.87,1611,1312,306,1006,783.17,769.33,827.4,751.64,1638,1341,312,1029,800.06,786.36,907.07,749.75,1635,1335,326,1009,815.95,800.23,929.34,758.52,1605,1318,290,1028,902.87,893.42,890.17,894.33,1664,1381,291,1090,900,891.01,905.65,887.1,1673,1397,303,1094,937.83,931.8,932.85,931.51,1688,1419,324,1095,956.42,942.52,903.07,954.2,1751,1454,297,373,1080,951.3,946.11,976.73,909.43,958.79,60,958.79,60]
["Loudon",7,1373,1244,322,922,441.97,453.52,711.13,363.49,1389,1256,414,842,462.92,474.61,657.43,384.75,1281,1149,389,760,614.47,639.59,658.67,629.80999999999995,1344,1200,387,813,640.37,670.31,725.07,644.23,1063,922,391,532,844.1,909.27,735.8,1036.76,1031,881,384,497,936.61,1024.42,802.07,1196.25,928,801,346,455,1041.95,1123.0899999999999,770.2,1391.07,937,806,337,469,626.75,641.04,723.26,582.04,852,745,301,444,636.28,632.98,712.2,579.29,833,724,288,436,626.6,627.98,718.75,567.95000000000005,961,845,310,535,573.92999999999995,571.78,685.7,505.69,944,835,312,523,683.55,690.5,710.32,678.68,947,842,314,528,648.04999999999995,647.87,719.79,605.11,916,816,322,495,745.36,748.11,803.5,712.09,921,819,330,489,821.57,833.63,833.26,833.88,998,889,368,521,750.07,756.06,866.93,677.64,979,875,380,496,832.99,842.1,953.66,756.64,950,852,380,472,901.64,909.87,999.9,837.37,955,860,95,392,468,952.83,964.35,848.7,1068,877.52,60,877.52,60]
["New London",7,2682,2423,160,2263,554.04,560.47,659.61,553.45000000000005,2649,2382,138,2244,556.38,562.58000000000004,605.07000000000005,559.97,2701,2442,122,2321,563.55999999999995,564.16,713.56,556.32000000000005,2712,2457,127,2330,583.05999999999995,578.5,682.94,572.82000000000005,2879,2640,212,2427,616.22,609.78,794.45,593.62,2842,2591,208,2383,656.66,655.61,824.16,640.89,2831,2568,201,2366,702.76,705.91,831,695.27,2753,2466,196,2270,713.53,716.11,816.3,707.47,2665,2437,161,2276,715.95,721.57,754.1,719.27,2625,2376,147,2229,755.67,768.25,833.02,763.96,2600,2362,143,2219,760.22,769.78,869.43,763.35,2564,2341,141,2201,789.14,799.93,931.32,791.54,2603,2396,145,2251,809.7,816.69,925.26,809.69,2688,2462,155,2307,822.01,833.5,1034.43,819.98,2698,2466,167,2299,842.82,854.74,1011.15,843.4,2745,2513,174,2339,884.61,896.83,1083.6600000000001,882.94,2701,2465,164,2301,885.69,899.92,1015.47,891.67,2690,2462,145,2317,905.25,916.24,1071.58,906.52,2734,2506,227,153,2354,915.83,924.76,817.4,1134.3800000000001,911.17,60,911.17,60]
["Newbury",7,482,447,20,427,317.11,307.27999999999997,448.11,300.69,457,425,16,409,319.52,301.23,540.95000000000005,291.60000000000002,486,449,19,430,330.68,314.12,689.72,297.68,519,482,21,461,354.99,341.06,708.55,324.24,532,489,15,474,357.71,346.22,606.36,337.93,543,496,21,476,364.85,348.02,573.32000000000005,338.23,589,530,30,499,365.17,350.26,540.79999999999995,338.65,573,509,31,478,380.99,364.46,542.66,352.97,575,509,28,480,397.46,384.72,520.91,376.69,575,510,25,485,404.43,389.98,476.69,385.48,626,563,26,536,394.97,380.63,492.45,375.12,555,493,"n","n",419.34,411.04,"n","n",596,532,25,507,386.03,370.17,537.83000000000004,362.05,591,524,29,495,419.6,408.82,607.88,397.2,621,560,27,532,413.13,396.91,562.75,388.37,586,518,27,491,407.62,390.54,553.91,381.59,606,537,27,510,444.02,430.98,549.91999999999996,424.61,570,503,25,479,454.84,445.09,667.82,433.61,564,498,66,"n","n",494.34,480.89,596.30999999999995,"n","n",60,"n",60]
["Northfield",7,774,628,320,308,575.04,584.4,755.14,406.73,897,742,426,316,595.33000000000004,605.35,718.75,452.46,956,796,482,314,605.07000000000005,613.72,717.39,454.54,902,734,401,333,652.80999999999995,675.76,836.09,482.89,1035,861,535,326,631.75,646.02,729.52,508.93,1027,900,513,387,674.95,681.14,822.49,494,998,868,461,407,682.38,692.66,847.99,517.05999999999995,1010,881,475,406,719.47,731.32,870.31,568.75,904,782,376,406,774.64,788.58,962.18,627.47,1045,930,508,422,871.79,891.99,1048.17,703.85,1184,1074,558,516,827.01,839.37,1013.15,651.34,1137,1023,576,447,855.51,873.19,1014.71,690.77,1114,996,580,417,874.66,896.83,1055.57,676.1,1167,1050,619,431,916.9,939.13,1107.7,696.69,1199,1087,658,428,887.67,896.65,1023.12,702.22,1178,1073,642,431,886.97,892.65,1011.82,715.36,1178,1070,618,452,914.76,918.55,1062.17,722.33,1304,1199,"n","n",944.91,947.66,"n","n",1370,1266,104,"n","n",930.64,930.21,935.84,"n","n",60,"n",60]
["Pembroke",7,1995,1598,787,811,645.39,663.55,639.48,686.91,1985,1554,753,801,662.66,691.14,682.88,698.91,2041,1613,806,807,662.11,681.25,696.6,665.91,2127,1716,907,809,679.53,687.54,705.56,667.33,1935,1526,707,818,736.43,754.56,801.21,714.25,2304,1892,641,1251,767.81,781.97,837.97,753.25,2287,1804,553,1250,759.92,809.11,835.22,797.55,2237,1767,486,1281,787.86,812.17,813.98,811.48,2106,1666,358,1309,812.46,818.44,793.9,825.15,2204,1638,302,1336,800.43,814.95,825.89,812.48,2239,1662,327,1334,801.73,824.31,818.09,825.84,2267,1712,354,1358,832.73,860.4,926.33,843.19,2244,1693,373,1320,854.16,874.26,969.2,847.42,2303,1748,448,1300,884.62,912.01,992.25,884.35,2316,1729,422,1307,920.74,961.92,1024.47,941.74,2287,1723,358,1365,912.94,952.51,1062.1500000000001,923.75,2381,1815,368,1447,926.88,953.76,1089.72,919.24,2395,1866,354,1512,951,967.61,1073.82,942.75,2405,1844,561,369,1474,974.58,1013.11,847.99,1156.0999999999999,977.29,60,977.29,60]
["Pittsfield",7,1089,870,588,282,564.09,596.25,669.02,444.66,1086,869,595,274,621.24,662.98,749.25,475.44,1087,862,584,278,631.5,675.1,757.99,501.05,1042,816,548,268,687.75,742.83,836.17,552.04999999999995,1046,819,539,280,756.05,818.11,932.57,597.62,1076,853,558,295,723.62,767.01,872.6,567.19000000000005,1092,873,521,352,696.24,720.02,852.7,523.30999999999995,1106,870,534,336,756.55,798.82,941.09,572.82000000000005,1048,802,489,313,688.8,715.24,820.13,551.04999999999995,965,721,438,283,735.17,780.62,908.56,583.01,946,718,441,277,772.84,817.53,958.45,593.41999999999996,1019,789,453,336,741.96,779.61,919.78,590.87,1124,893,463,430,823.2,876.82,968.93,777.71,1163,936,482,454,835.9,887.8,1020.66,746.89,1211,980,500,479,863.33,917.2,1038.3599999999999,790.76,1137,914,522,392,954.89,1026.74,1058.43,984.57,1195,984,544,440,982.56,1048.3900000000001,1127.47,950.53,1207,1003,540,464,952.53,1008.02,987.48,1031.92,1224,1020,204,544,475,973.96,1029.42,696.87,1020.83,1039.26,60,1039.26,60]
["Salisbury",7,82,46,"n","n",450.72,588.42999999999995,"n","n",89,51,"n","n",471.54,602.83000000000004,"n","n",86,55,21,34,559.95000000000005,644.72,496.64,737.5,97,62,24,38,559.13,674.6,572.57000000000005,739.16,115,78,"n","n",587.14,701.6,"n","n",123,85,35,50,564.03,652.48,613.79,680.02,127,88,39,49,577.59,654.99,602.66999999999996,696.95,122,82,32,50,576.65,667.8,624.02,695.16,112,75,22,52,641.24,722.63,667.06,746.12,114,73,20,53,627.85,724.31,652.33000000000004,750.71,94,58,16,42,564.70000000000005,606.16999999999996,651.04999999999995,589.15,103,64,15,49,571.66999999999996,623.87,685.17,604.69000000000005,109,74,20,54,627.6,670.74,671.77,670.35,102,65,"n","n",641.91,719.97,"n","n",103,69,"n","n",687.56,758.71,"n","n",102,66,23,43,661.82,728.43,809.01,684.46,113,78,24,53,701,757.88,860.56,711.42,126,84,29,55,697.35,788.85,912.43,725.3,134,85,49,32,54,667.59,759.02,507.12,896.45,677.03,60,677.03,60]
["Sutton",7,387,224,"n","n",630.24,734.46,"n","n",352,197,"n","n",661.21,787.11,"n","n",329,180,102,78,677.17,791.82,977.09,550.14,327,167,"n","n",716.72,845.21,"n","n",306,146,89,57,744.59,864.02,977.97,684.9,325,157,90,66,782.41,884.13,1034.3599999999999,678.84,379,202,82,120,721.36,741.89,1127.42,478.54,377,196,"n","n",724.76,748.28,"n","n",441,180,75,106,811.75,823.84,1159.05,586.07000000000005,452,201,"n","n",829.85,848.05,"n","n",461,211,"n","n",861.38,913.35,"n","n",457,221,"n","n",875.09,897.82,"n","n",450,219,"n","n",863.34,834.99,"n","n",446,218,96,122,877.28,831.25,1292.1600000000001,467.87,446,219,100,120,898.76,871.49,1314.35,501.21,431,209,"n","n",942.91,919.19,"n","n",446,220,"n","n",937.34,911.93,"n","n",444,221,"n","n",988.97,992.72,"n","n",422,200,222,"n","n",992.72,980.24,1003.98,"n","n",60,"n",60]
["Warner",7,893,773,193,580,468.51,470.18,702.2,393.06,910,792,183,609,456.14,452.16,711.33,374.48,900,782,187,595,494.88,497.37,758.97,415.24,927,810,205,605,525.54999999999995,534.04,807.36,441.59,1072,962,210,752,618.5,629.86,833.9,572.94000000000005,1104,999,231,768,664.73,673.46,866.81,615.26,1084,978,254,725,703.89,710.98,945.35,628.95000000000005,1051,941,247,694,707.95,713.89,954.36,628.52,932,828,171,657,683.04,678.67,987.94,597.91999999999996,925,839,182,657,714.8,707.46,1089.81,601.4,946,861,207,653,754.62,754.02,1187.03,616.61,907,816,151,664,754.47,759.7,1244.19,649.28,906,818,142,677,736.43,735.55,1154.56,647.71,852,773,133,640,759.92,758.11,1126.6099999999999,681.54,935,854,168,687,804.2,804.99,1302.04,683.49,862,772,181,591,691.98,682.67,1287.83,497.44,852,756,171,586,698.88,685.98,1224.4100000000001,529,876,775,176,599,697.62,687.79,1125.05,559.45000000000005,901,801,100,173,627,708.39,698.26,789.59,1198.94,560.01,60,560.01,60]
["Webster",7,147,111,66,45,505.83,559.85,740.37,290.42,142,109,63,46,518.71,549.80999999999995,755.43,268.58,151,117,58,59,569.70000000000005,613.53,906.77,327.72,152,116,58,58,557,598.69000000000005,824.61,374.4,153,117,59,58,566.69000000000005,607.88,859.63,350.68,153,110,58,51,639.16,733.41,1071.8800000000001,349.4,160,113,61,52,651.04999999999995,753.65,1106.54,342.98,157,112,66,46,696.52,796.9,1062.1300000000001,417.92,141,99,58,41,612.91,679.9,884.04,386.3,156,109,57,52,670.16,784.01,1057.28,485.73,173,122,56,66,896.85,1110.49,1645.04,658.08,149,97,26,70,667.35,825.22,1225.6300000000001,676.43,159,107,33,74,736.14,907.46,1123.4100000000001,809.76,157,108,"n","n",833.84,1002.03,"n","n",148,104,"n","n",944.82,1120.49,"n","n",149,106,51,55,853.28,992.57,1193.3499999999999,806.13,148,107,56,52,933.77,1081.73,1221.8599999999999,931.94,145,106,54,52,958.65,1075,1230.47,915.55,146,105,41,49,56,901.89,1021.94,596.29999999999995,1261.73,810.11,60,810.11,60]
["Wilmot",7,139,127,47,81,450.77,462.51,591.84,387.98,155,140,47,93,437.31,452.43,567.47,395.07,149,136,52,84,527.39,548.75,663.35,477.92,150,137,"n","n",522.55999999999995,541.13,"n","n",167,153,41,112,504.92,518.09,657.49,466.39,174,159,42,117,527.53,545.70000000000005,725.67,481.95,182,163,40,123,597.76,619.85,741.39,580.03,175,156,"n","n",582.91,597.76,"n","n",169,148,35,114,558.65,581.78,663.15,557.1,155,133,"n","n",609.53,649.14,"n","n",163,139,"n","n",577.28,614.29,"n","n",167,146,40,106,630.73,663.1,681.7,656.11,161,143,"n","n",617.83000000000004,635.30999999999995,"n","n",169,150,36,114,629.07000000000005,653.97,722.07,632.83000000000004,174,155,35,120,637.67999999999995,664.35,753.23,638.27,165,145,36,109,660.99,689.51,738.65,673.15,170,149,36,113,695.56,728.84,716.56,732.73,166,146,35,111,657.48,677.19,772.76,647.53,160,140,20,39,101,682.62,700.06,560.84,773.07,672.09,60,672.09,60]
[]
[]
[]
[]
[]
[]
[]
[]
[]
[]
[]
[]
[]
[]
[]
[]
[]
[]
[]
["Labor Force and Unemployment Rate","Query Name: DPQryUnempByTown",null,"2020-07-10"]
[]
["PlaceName","LaborForce1990","LaborForce1991","LaborForce1992","LaborForce1993","LaborForce1994","LaborForce1995","LaborForce1996","LaborForce1997","LaborForce1998","LaborForce1999","LaborForce2000","LaborForce2001","LaborForce2002","LaborForce2003","NumbEmployed1990","NumbEmployed1991","NumbEmployed1992","NumbEmployed1993","NumbEmployed1994","NumbEmployed1995","NumbEmployed1996","NumbEmployed1997","NumbEmployed1998","NumbEmployed1999","NumbEmployed2000","NumbEmployed2001","NumbEmployed2002","NumbEmployed2003","UnempRate1990","UnempRate1991","UnempRate1992","UnempRate1993","UnempRate1994","UnempRate1995","UnempRate1996","UnempRate1997","UnempRate1998","UnempRate1999","UnempRate2000","UnempRate2001","UnempRate2002","UnempRate2003","NumbUnEmp1990","NumbUnEmp1991","NumbUnEmp1992","NumbUnEmp1993","NumbUnEmp1994","NumbUnEmp1995","NumbUnEmp1996","NumbUnEmp1997","NumbUnEmp1998","NumbUnEmp1999","NumbUnEmp2000","NumbUnEmp2001","NumbUnEmp2002","NumbUnEmp2003","LaborForce2004","NumbEmployed2004","UnempRate2004","NumbUnEmp2004","LaborForce2005","NumbEmployed2005","NumbUnEmp2005","UnempRate2005","LaborForce2006","NumbEmployed2006","NumbUnEmp2006","UnempRate2006","LaborForce2007","NumbEmployed2007","NumbUnEmp2007","UnempRate2007","LaborForce2008","NumbEmployed2008","NumbUnEmp2008","UnempRate2008","LaborForce2009","NumbEmployed2009","NumbUnEmp2009","UnempRate2009","LaborForce2010","NumbEmployed2010","NumbUnEmp2010","UnempRate2010","LaborForce2011","NumbEmployed2011","NumbUnEmp2011","UnempRate2011","LaborForce2012","NumbEmployed2012","NumbUnEmp2012","UnempRate2012","LaborForce2013","NumbEmployed2013","NumbUnEmp2013","UnempRate2013","LaborForce2014","NumbEmployed2014","NumbUnEmp2014","UnempRate2014","LaborForce2015","NumbEmployed2015","NumbUnEmp2015","UnempRate2015","LaborForce2016","NumbEmployed2016","NumbUnEmp2016","UnempRate2016","LaborForce2017","NumbEmployed2017","NumbUnEmp2017","UnempRate2017","LaborForce2018","NumbEmployed2018","NumbUnEmp2018","UnempRate2018","LaborForce2019","NumbEmployed2019","NumbUnEmp2019","UnempRate2019","Place-TownIDNumber"]
["Concord",17158,19156,19345,19473,20493,20901,20846,21269,21945,22040,21450,21610,21650,21670,16236,17796,18081,18604,19817,20347,20327,20750,21448,21597,20940,20990,20950,20910,5.4,7.1000000000000005,6.5,4.5,3.3000000000000003,2.7,2.5,2.4,2.3000000000000003,2,2.4,2.9,3.2,3.5000000000000004,922,1360,1264,869,676,554,519,519,497,443,510,620,700,760,21380,20700,3.2,680,21470,20780,690,3.2,21760,21080,680,3.1,21910,21160,750,3.4000000000000004,22110,21300,810,3.7000000000000006,22350,21100,1250,5.6,22810,21650,1160,5.0999999999999996,22550,21470,1080,4.8,22600,21520,1080,4.8,22470,21450,1020,4.5,22380,21540,840,3.7000000000000006,22440,21760,680,3,22630,22060,570,2.5,22590,22060,530,2.4,22730,22220,510,2.2000000000000002,22930,22420,510,2.2000000000000002,708]
["Derry",17958,17746,18152,18497,18838,18314,18802,19008,19268,21920,19660,19960,19850,20060,16803,16278,16445,16998,17576,17406,17960,18213,18522,21159,19050,19020,18590,18830,6.4,8.3000000000000007,9.4,8.1,6.7,5,4.5,4.2,3.9,3.5,3.1,4.7,6.3,6.1,1155,1468,1707,1499,1262,908,842,795,746,761,610,940,1260,1230,20040,19040,5,1000,20230,19300,930,4.5999999999999996,19950,19140,810,4.0999999999999996,20050,19250,800,4,20240,19350,890,4.4000000000000004,20170,18770,1400,7.0000000000000009,19780,18450,1330,6.7,19590,18370,1220,6.2,19910,18600,1310,6.6000000000000005,19900,18710,1190,6,19920,18890,1030,5.2,19820,19010,810,4.0999999999999996,19960,19250,710,3.6000000000000005,20110,19410,700,3.5000000000000004,20250,19600,650,3.2,20630,20040,590,2.9,808]
["Dover",14442,14804,14525,14590,14159,14543,14597,14771,14778,14852,15820,15990,16200,16680,13728,13847,13574,13803,13638,14026,14138,14390,14439,14536,15420,15520,15600,16060,4.9000000000000004,6.5,6.5,5.4,3.7,3.6,3.1,2.6,2.3000000000000003,2.1,2.5,2.9,3.7000000000000006,3.7000000000000006,714,957,951,787,521,517,459,381,339,316,400,470,600,620,16980,16440,3.2,540,16980,16460,520,3.1,16890,16410,480,2.9,17220,16720,500,2.9,17420,16870,550,3.2,17280,16330,950,5.5,17370,16480,890,5.0999999999999996,17400,16580,820,4.7,17500,16660,840,4.8,17570,16840,730,4.2,17730,17090,640,3.6000000000000005,17840,17330,510,2.8,18210,17780,430,2.2999999999999998,18220,17810,410,2.2999999999999998,18490,18080,410,2.2000000000000002,18730,18330,400,2.1,902]
["Hudson",12484,12026,12188,12214,12119,12078,12442,12876,13125,13345,13500,13680,13660,14010,11727,11098,11160,11343,11344,11442,11918,12438,12722,12888,13130,13130,12920,13300,6.1000000000000005,7.7,8.4,7.1000000000000005,6.4,5.3,4.2,3.4,3.1,3.4,2.8,4,5.4,5.0999999999999996,757,928,1028,871,775,636,524,438,403,457,370,550,740,710,14420,13770,4.5,650,14750,14150,600,4.0999999999999996,14750,14200,550,3.8,14920,14350,570,3.8,14950,14330,620,4.0999999999999996,14930,13930,1000,6.7,14240,13290,950,6.7,14150,13280,870,6.1,14320,13400,920,6.5,14360,13500,860,6,14460,13690,770,5.3,14510,13890,620,4.2,14660,14160,500,3.4000000000000004,14710,14210,500,3.4000000000000004,14970,14490,480,3.2,31590,14810,480,3.1,614]
["Londonderry",11797,11497,11671,11945,12109,11969,12248,12747,13057,13288,13370,13700,13730,13880,11223,10806,10886,11198,11492,11495,11820,12345,12706,12914,13030,13180,13020,13200,4.9000000000000004,6,6.7,6.3,5.1000000000000005,4,3.5,3.2,2.7,2.8000000000000003,2.5,3.8,5.2,4.9000000000000004,574,691,785,747,617,474,428,402,351,374,340,520,710,680,14070,13500,4.0999999999999996,570,14490,13960,530,3.7000000000000006,14430,13940,490,3.4000000000000004,14620,14120,500,3.4000000000000004,14670,14120,550,3.7000000000000006,14540,13680,860,5.9,14270,13470,800,5.6,14160,13420,740,5.2,14410,13600,810,5.6,14440,13690,750,5.2,14510,13850,660,4.5,14960,14440,520,3.5000000000000004,15420,14980,440,2.8,15610,15180,430,2.8,15780,15330,450,2.8,16110,15670,440,2.8,819]
["Manchester",57227,54398,53484,53029,52584,54444,54748,56302,57027,57867,58440,59230,59350,60270,53493,49879,48873,49490,49803,52144,52888,54663,55481,56389,56950,57140,56610,57550,6.5,8.3000000000000007,8.6,6.7,5.3,4.2,3.4,2.9,2.7,2.6,2.6,3.5000000000000004,4.5999999999999996,4.5,3734,4519,4611,3539,2781,2300,1860,1639,1546,1478,1490,2090,2740,2720,60940,58510,4,2430,61140,58810,2330,3.8,61080,58710,2370,3.9,61520,59130,2390,3.9,61910,59230,2680,4.3,62170,57720,4450,7.2000000000000011,61300,57130,4170,6.8000000000000007,60990,57330,3660,6,61290,57460,3830,6.3,61390,57990,3400,5.5,61890,59020,2870,4.5999999999999996,61940,59690,2250,3.6000000000000005,62620,60720,1900,3,63530,61710,1820,2.9,64700,63010,1690,2.6,65780,64080,1700,2.6,617]
["Merrimack",13981,13473,13706,13893,13686,13315,13754,14250,14570,14810,15420,15760,15890,16040,13416,12714,12773,12999,12979,12783,13294,13866,14217,14403,15070,15270,15160,15360,4,5.6000000000000005,6.8,6.4,5.2,4,3.3000000000000003,2.7,2.4,2.7,2.2999999999999998,3.1,4.5999999999999996,4.2,565,759,933,894,707,532,460,384,353,407,350,490,730,680,16250,15710,3.3000000000000003,540,16520,16020,500,3,16440,15950,490,3,16550,16060,490,3,16510,15970,540,3.3000000000000003,16470,15520,950,5.8,61300,57130,4170,6.8000000000000007,60990,57330,3660,6,61290,57460,3830,6.3,61390,57990,3400,5.5,61890,59020,2870,4.5999999999999996,61940,59690,2250,3.6000000000000005,62620,60720,1900,3,15790,15380,410,2.6,16020,15610,410,2.5,16360,15960,400,2.4,619]
["Nashua",48381,45637,45669,45204,43405,44276,45430,46753,47362,48054,48150,48730,48350,48550,45749,42390,42064,41756,40901,42188,43654,45410,45982,46581,46830,46750,45610,46000,5.4,7.1000000000000005,7.9,7.6000000000000005,5.8,4.7,3.9,2.9,2.9,3.1,2.7,4.0999999999999996,5.7,5.2,2632,3247,3605,3448,2504,2088,1776,1343,1380,1473,1320,1980,2740,2550,48910,46770,4.4000000000000004,2140,49460,47490,1970,4,49190,47270,1920,3.9,49360,47510,1850,3.7000000000000006,49270,47280,1990,4,49520,46070,3450,7.0000000000000009,48410,45220,3190,6.6000000000000005,48090,45080,3010,6.2,48600,45500,3100,6.4,48830,45940,2890,5.9,48860,46380,2480,5.0999999999999996,49150,47210,1940,3.9,49370,47680,1690,3.4000000000000004,49680,48060,1620,3.3000000000000003,50200,48700,1500,3,51280,49770,1510,3,622]
["Rochester",14242,14280,14153,14123,13917,14056,14172,14407,14297,14288,15280,15450,15670,15900,13158,12952,12771,13032,13177,13387,13529,13825,13799,13892,14820,14880,14870,15210,7.6000000000000005,9.3000000000000007,9.8000000000000007,7.7,5.3,4.8,4.5,4,3.5,2.8000000000000003,3,3.7000000000000006,5.0999999999999996,4.3,1084,1328,1382,1091,740,669,643,582,498,396,460,570,800,690,16150,15550,3.7000000000000006,600,16360,15740,620,3.8,16340,15790,550,3.3000000000000003,16700,16100,600,3.6000000000000005,17120,16410,710,4.0999999999999996,17210,15950,1260,7.3,16910,15840,1070,6.3,16850,15890,960,5.7,16850,15860,990,5.9,16810,15920,890,5.3,16910,16210,700,4.2,16910,16360,550,3.2,17240,16800,440,2.5,17350,16940,410,2.4,17730,17310,420,2.4,17990,17560,430,2.4,910]
["Salem",15853,15251,15792,16067,15973,15983,16536,16695,17028,19224,16440,16840,17070,17060,14545,13832,14010,14242,14652,14897,15474,15785,16115,18409,15780,15940,15860,15880,8.3000000000000007,9.3000000000000007,11.3,11.4,8.3000000000000007,6.8,6.4,5.5,5.4,4.2,4,5.3,7.1,6.9,1308,1419,1782,1825,1321,1086,1062,910,913,815,660,900,1210,1180,17300,16210,6.3,1090,17440,16490,950,5.5,17510,16680,830,4.7,17840,16970,870,4.9000000000000004,17830,16880,950,5.3,17830,16410,1420,8,17320,16110,1210,7.0000000000000009,17300,16160,1140,6.6000000000000005,17530,16330,1200,6.8000000000000007,17580,16480,1100,6.2,17660,16730,930,5.2,17680,16920,760,4.3,17750,17110,640,3.6000000000000005,17840,17190,650,3.6000000000000005,18210,17610,600,3.3000000000000003,18410,17790,620,3.4000000000000004,832]
[]
[]
["NH Employment Data","Query Name: DPQryEmploymentByCnty-Good-Serv-Total","Updated:","2020-09-30"]
[]
["AreaName","COUNTYCODE","TOTP & G2001","TOT2001","GOODPRO2001","SERVICEPROMAN2001","WAGEP & G2001","WAGETOT2001","WAGEGOODPRO2001","WAGESERVICEPRO2001","TOTP & G2002","TOT2002","GOODPRO2002","SERVICEPROMAN2002","WAGEP & G2002","WAGETOT2002","WAGEGOODPRO2002","WAGESERVICEPRO2002","TOTP & G2003","TOT2003","GOODPRO2003","SERVICEPROMAN2003","WAGEP & G2003","WAGETOT2003","WAGEGOODPRO2003","WAGESERVICEPRO2003","TOTP & G2004","TOT2004","GOODPRO2004","SERVICEPROMAN2004","WAGEP & G2004","WAGETOT2004","WAGEGOODPRO2004","WAGESERVICEPRO2004","TOTP & G2005","TOT2005","GOODPRO2005","SERVICEPROMAN2005","WAGEP & G2005","WAGETOT2005","WAGEGOODPRO2005","WAGESERVICEPRO2005","TOTP & G2006","TOT2006","GOODPRO2006","SERVICEPROMAN2006","WAGEP & G2006","WAGETOT2006","WAGEGOODPRO2006","WAGESERVICEPRO2006","TOTP & G2007","TOT2007","GOODPRO2007","SERVICEPROMAN2007","WAGEP & G2007","WAGETOT2007","WAGEGOODPRO2007","WAGESERVICEPRO2007","TOTP & G2008","TOT2008","GOODPRO2008","SERVICEPROMAN2008","WAGEP & G2008","WAGETOT2008","WAGEGOODPRO2008","WAGESERVICEPRO2008","TOTP & G2009","TOT2009","GOODPRO2009","SERVICEPROMAN2009","WAGEP & G2009","WAGETOT2009","WAGEGOODPRO2009","WAGESERVICEPRO2009","TOTP & G2010","TOT2010","GOODPRO2010","SERVICEPROMAN2010","WAGEP & G2010","WAGETOT2010","WAGEGOODPRO2010","WAGESERVICEPRO2010","TOTP & G2011","TOT2011","GOODPRO2011","SERVICEPROMAN2011","WAGEP & G2011","WAGETOT2011","WAGEGOODPRO2011","WAGESERVICEPRO2011","TOTP & G2012","TOT2012","GOODPRO2012","SERVICEPROMAN2012","WAGEP & G2012","WAGETOT2012","WAGEGOODPRO2012","WAGESERVICEPRO2012","TOTP & G2013","TOT2013","GOODPRO2013","SERVICEPROMAN2013","WAGEP & G2013","WAGETOT2013","WAGEGOODPRO2013","WAGESERVICEPRO2013","TOTP & G2014","TOT2014","GOODPRO2014","SERVICEPROMAN2014","WAGEP & G2014","WAGETOT2014","WAGEGOODPRO2014","WAGESERVICEPRO2014","TOTP & G2015","TOT2015","GOODPRO2015","SERVICEPROMAN2015","WAGEP & G2015","WAGETOT2015","WAGEGOODPRO2015","WAGESERVICEPRO2015","TOTP & G2016","TOT2016","GOODPRO2016","SERVICEPROMAN2016","WAGEP & G2016","WAGETOT2016","WAGEGOODPRO2016","WAGESERVICEPRO2016","TOTP & G2017","TOT2017","GOODPRO2017","SERVICEPROMAN2017","WAGEP & G2017","WAGETOT2017","WAGEGOODPRO2017","WAGESERVICEPRO2017","TOTP & G2018","TOT2018","GOODPRO2018","SERVICEPROMAN2018","WAGEP & G2018","WAGETOT2018","WAGEGOODPRO2018","WAGESERVICEPRO2018","TOTP & G2019","TOT2019","TOTGov2019","GOODPRO2019","SERVICEPROMAN2019","WAGEP & G2019","WAGETOT2019","WAGEGov2019"]
["Belknap County",1,26173,22708,6138,16570,541.07000000000005,538.34,689.88,482.21,26052,22334,5408,16926,561.11,555.84,731.15,499.83,26286,22376,5281,17095,579.91,573.04,754.28,517.04999999999995,26931,23030,5431,17599,610.04,602.01,777.41,547.89,26940,22891,5467,17424,636.41999999999996,634.14,819.42,576,27237,23042,5133,17909,657.93,655.07000000000005,862.32,595.66999999999996,27266,23032,4820,18212,674.29,668.31,921.91,601.17999999999995,26793,22507,4572,17935,689.74,680.53,938.61,614.74,25570,21280,3944,17337,692.98,680.87,934.72,623.12,24943,20713,3480,17234,698.61,690.71,945.91,639.19000000000005,24953,20748,3411,17337,706.01,697.17,959.24,645.61,25196,20972,3400,17572,708.66,703.81,960.55,654.13,25517,21311,3517,17794,718.36,714.81,997.67,658.89,25490,21315,3554,17761,748.41,745.98,1036.05,687.93,25584,21457,3597,17859,776.57,774.35,1066.24,715.55,25708,21577,3626,17951,797.95,796.89,1088.81,737.93,25829,21725,3676,18049,823.13,823.31,1139.79,758.85,25898,21803,3774,18029,851.06,851.82,1167.98,785.64,26080,22008,4072,3799,18209,854.12,849.87,877.08]
["Carroll County",2,19495,16938,2563,14374,467.52,460.32,627.98,430.42,19756,17153,2497,14656,481.01,472.65,645.74,443.16,20167,17534,2567,14967,492.28,481.72,647.55999999999995,453.27,20405,17701,2526,15175,519.72,511.1,687.06,481.81,20205,17448,2541,14906,533.86,524.08000000000004,703.81,493.43,20294,17504,2588,14916,575.59,568.1,737.84,538.66,20402,17510,2544,14966,573.29999999999995,562.55999999999995,760.1,528.99,20584,17636,2552,15084,584.17999999999995,570.32000000000005,770.38,536.47,19942,16904,2265,14639,587.36,570.99,765.31,540.91999999999996,19810,16754,2124,14630,600.19000000000005,586.5,775.97,558.99,19997,17005,2189,14816,617.28,603.41999999999996,798.39,574.61,20082,17083,2162,14921,627.16999999999996,615.41,800.29,588.62,19971,16958,2084,14874,645.66999999999996,633.79,805.62,609.71,20015,16952,2024,14928,640.24,627.02,843.7,597.64,19806,16828,1996,14832,667.3,653.87,884.26,622.86,19997,17053,2030,15023,686.74,674.21,909.04,642.48,20005,17047,2057,14991,692.33,677.15,941.62,640.87,20015,17037,2078,14959,710.33,694.81,905.58,665.54,20228,17268,2960,2128,15140,735.27,721.26,816.99]
["Cheshire County",3,32349,27819,"n","n",571.92999999999995,577.30999999999995,"n","n",32369,27595,7795,19800,584.33000000000004,590.97,743.2,531.04,32548,27626,7754,19873,598.89,603.04,763.11,540.59,33075,28132,7648,20484,631.09,634.67999999999995,807.42,570.17999999999995,33995,28886,8110,20776,656.03,666.98,828.9,603.78,34194,29151,7889,21262,723.95,741.43,987.42,650.15,33638,28601,7473,21128,707.44,717.07,867.3,663.94,33220,28351,7351,21000,746.75,752.8,902.94,700.24,32207,27212,6761,20451,742.41,745.7,870.79,704.34,31527,26585,6300,20286,754.45,756.21,900.6,711.38,31690,26854,6240,20614,768.13,768.69,935.64,718.15,32021,27158,6245,20914,790.24,793.9,933.87,752.11,31923,27008,6032,20975,796.52,797.61,965.3,749.39,31904,26935,6025,20910,810.83,815.88,993.69,764.64,32067,27097,6073,21024,830.63,834.25,1010.79,783.25,32005,27109,6177,20932,838.96,843.47,1028.03,789.01,31743,26953,6194,20759,867.06,873.07,1043.75,822.14,31642,26825,6445,20380,895.81,907.01,1090.07,849.12,31737,26923,4814,6652,20272,913.17,927.09,835.36]
["Coos County",4,13872,11234,"n","n",489.02,487.7,"n","n",13737,11021,2332,8689,490.8,484.33,650.88,439.63,13946,11225,2578,8647,525.08000000000004,519.66,703.37,464.89,14103,11341,2590,8751,542.98,540.59,726.42,485.6,14026,11222,2533,8689,556.04,552.64,754.89,493.68,13898,10991,2334,8657,572.86,571.41999999999996,766.73,518.76,13876,11050,2184,8866,583.63,572.30999999999995,758.88,526.34,13566,10747,1988,8759,602.53,587.51,755.51,549.38,13002,10134,1720,8414,609.67999999999995,592.77,751.35,560.36,12832,9977,1593,8384,608.57000000000005,589.54,744.88,560.02,12555,9785,1473,8312,620.23,600.46,757.95,572.54,12371,9564,1568,7995,640.94000000000005,622.74,825.56,582.97,12515,9564,1649,7915,667.37,647.75,855.89,604.39,12064,9083,1293,7789,675.59,651.58000000000004,777.89,630.61,11974,9046,1222,7824,694.46,666.94,788.97,647.89,11990,9038,1167,7870,706.62,682.98,853.55,657.68,11999,9070,1223,7846,729.45,705.37,867.99,680.02,11970,9060,1296,7764,749.69,723.06,852.68,701.43,12083,9226,2857,1304,7921,766.79,735.31,868.44]
["Grafton County",5,49352,43256,8085,35171,617.73,624.04999999999995,672.45,612.92999999999995,49690,43362,7763,35599,658.93,668.77,701.81,661.56,50615,44009,7790,36220,704.15,717.01,753.77,709.11,51355,44704,7636,37069,728.96,740.6,770.78,734.38,51541,44954,7698,37256,768.82,783.94,809.26,778.7,52267,45531,7761,37770,803.4,820.96,855.22,813.92,52729,45992,7672,38320,843.04,860.73,901.98,852.47,52901,46166,7347,38819,867.61,884.82,928.14,876.62,51401,44646,6446,38200,879.4,895.26,899.95,894.47,51256,44376,6289,38086,905.77,925.54,949.83,921.53,51663,44867,6681,38186,926.58,946.3,981.6,940.12,52026,45246,6818,38428,950.95,973.52,996.15,969.5,52153,45454,6717,38736,965.05,986.68,1028.75,979.39,52226,45565,6778,38787,1004.06,1029.1500000000001,1069.54,1022.09,52654,46056,6882,39174,1037.55,1061.83,1078.8900000000001,1058.83,53361,46686,6801,39885,1058.5999999999999,1086.92,1082.4000000000001,1087.69,53790,47161,6781,40380,1079.6300000000001,1108.6099999999999,1125.3,1105.81,54119,47417,6926,40491,1105.33,1135.81,1167.74,1130.3399999999999,54388,47685,6703,6855,40830,1142.8,1174.8,915.17]
["Hillsborough County",6,192842,173003,47169,125834,756.14,762.49,941.37,695.43,188573,168164,42086,126078,768.52,773.3,968.23,708.23,190864,169969,41006,128962,801.91,806.79,1014.82,740.64,193543,172567,40910,131656,839.56,844.4,1064.01,776.16,196190,174854,40181,134673,866.71,873.18,1101.58,805.03,196502,175094,39123,135971,897.24,904,1171.1600000000001,827.13,197183,175821,38588,137233,946.54,951.14,1248.82,867.44,195976,174253,36628,137625,973.54,979.17,1267.17,902.52,187240,165260,33003,132257,959.3,962.96,1236.24,894.76,184628,162829,32117,130712,980.99,986.25,1287.9100000000001,912.12,186437,165030,32694,132336,1013.7,1018.86,1329.81,942.03,188425,167133,31642,135492,1029.82,1035.95,1325.69,968.28,190568,169383,30861,138522,1038.74,1045.24,1365.43,973.9,193565,172574,31422,141152,1092.9000000000001,1101.22,1393.55,1036.1500000000001,196842,175848,31842,144005,1099.51,1106.52,1401.46,1041.3,199729,178867,32654,146213,1118.6300000000001,1126.21,1436.51,1056.9100000000001,201740,180839,33513,147327,1147.78,1156.08,1490.14,1080.0899999999999,203961,182874,34296,148577,1182,1189.98,1525.57,1112.51,205989,184819,21170,35047,149772,1219.73,1229.8399999999999,1131.48]
["Merrimack County",7,71543,56168,12137,44031,631.86,633.92999999999995,772.48,595.74,71850,56025,11403,44622,653.27,655.12,799.93,618.12,72840,56631,11036,45595,667.06,666.91,826.68,628.24,72381,56515,10742,45773,690.51,689.4,845.49,652.77,72963,56979,11012,45967,710.07,710.67,861.87,674.44,74077,57818,10760,47058,739.28,739.89,906.79,701.73,74070,57629,10051,47579,774.05,772.96,972.47,730.82,73959,57295,9822,47472,795.3,789.49,978.78,750.33,72134,55582,8724,46857,810.16,788.36,966.04,755.28,71882,55306,8662,46645,821.15,806.64,998.67,770.98,72140,55913,9059,46854,835.3,821.63,1012.78,784.67,72901,56946,9282,47664,850.4,842.26,1036.72,804.39,73510,57805,9457,48348,866.04,857.51,1050.8699999999999,819.69,74884,58800,9698,49103,892.44,882.46,1086.78,842.11,75670,59563,9801,49762,929.04,918.53,1114.06,880.02,76413,60219,9936,50283,946.35,937.29,1126.3800000000001,899.92,76803,60570,10042,50528,980.03,971.23,1164.72,932.78,77469,61326,10142,51184,1012.33,1004.39,1186.1199999999999,968.39,77816,61536,16281,10313,51222,1038.6300000000001,1030.98,1067.56]
["New Hampshire",1026,610446,531225,127190,404035,682.38,691.51,842.11,644.1,603100,521320,115244,406076,695.8,703.84,868.13,657.22,604198,520362,111472,408890,717.94,724.91,888.81,680.22,613327,529515,111893,417622,753.7,760.58,928.63,715.56,620909,536173,112033,424140,779.84,788.93,958.48,744.15,627301,541435,110189,431246,816.3,827.48,1013.11,780.04,630171,543800,107673,436127,843.46,852.45,1054.1600000000001,802.65,628819,541768,104441,437326,863.66,870.64,1074.5999999999999,821.93,604915,517658,92952,424706,864.05,867.37,1066.42,823.81,600540,513386,89428,423957,883.88,890.13,1119.47,841.75,605864,520338,90996,429342,909.31,916.27,1140.95,868.65,612432,527263,90404,436858,928.33,938.02,1152.07,893.72,618756,534106,90890,443216,941.75,950.79,1173.1099999999999,905.2,626567,541441,92176,449265,983.96,996.35,1200.71,954.42,636798,552276,93968,458308,1010.64,1021.89,1224.55,980.34,647375,562836,96138,466699,1030.04,1042.6300000000001,1251.03,999.7,653496,569023,97995,471029,1060.3399999999999,1073.99,1294.46,1028.1199999999999,658816,574044,100089,473955,1091.97,1106.44,1317.59,1061.8499999999999,665374,580394,84980,101907,478487,1128.27,1145.04,1013.77]
["Rockingham County",8,130960,117604,24384,93220,704.6,714.62,913.02,662.73,130242,116589,22286,94302,712.56,720.57,945.47,667.42,130329,116466,21075,95392,725.68,731.51,920.38,689.79,133803,119786,21944,97841,774.11,781.14,964.22,740.08,136154,122028,22051,99976,796.86,803.2,996.54,760.55,138063,123549,22274,101275,842.13,851.8,1013.05,816.33,138382,123679,22407,101273,849.04,856.27,1052.77,812.8,137191,122378,22407,99970,839.01,841.86,1081.82,788.07,131375,116492,19644,96848,839.06,840.45,1104.3599999999999,786.93,131892,117079,18689,98391,862.17,865.32,1199.72,801.8,133444,119079,18941,100138,880.6,883.65,1146.49,833.93,135396,121125,18942,102183,907.06,912.95,1200.98,859.56,137505,123255,19558,103698,919.22,924.42,1204.8699999999999,871.53,139972,125705,20107,105598,967.99,976.63,1214.5999999999999,931.32,143650,129571,20954,108617,999.45,1007.52,1260.8800000000001,958.65,146926,132843,21711,111132,1008.63,1016.49,1289.1199999999999,963.24,149059,134948,22384,112564,1040.5999999999999,1049.82,1335.62,992.99,149817,135525,22957,112568,1068.69,1079.1600000000001,1345.67,1024.8,151694,137342,14352,23611,113731,1110.28,1122.81,990.42]
["Strafford County",9,43645,34821,9068,25753,655.37,655.92,770.85,615.45000000000005,42874,33684,7630,26054,655.35,652.99,800.21,609.88,43046,33530,7366,26164,668.52,656.47,806.84,614.13,43436,33873,7230,26643,693.72,673.65,820.17,633.9,43773,34267,7211,27056,709.03,692.76,828.02,656.71,44557,35064,7140,27925,723.22,705.71,858.22,666.71,45570,35960,6960,29000,746.96,729.16,880.17,692.91,46580,36991,6754,30237,803.35,784.14,900.05,758.25,44375,35115,5981,29133,822.2,798.7,916.04,774.61,44144,34793,5960,28833,843.68,824.98,964.85,796.07,44154,34870,6008,28863,879.87,868.02,1098.93,819.95,45017,35667,6036,29631,875.8,864.35,1039.17,828.73,45379,36187,6365,29822,896.63,880.93,1050.44,844.76,46249,36899,6431,30469,915.86,906.58,1082.2,869.52,46826,37517,6657,30860,954.37,941.53,1121.8,902.65,47632,38313,6879,31434,967.61,953.88,1119.03,917.74,48165,38780,6935,31845,990.95,980.7,1148.01,944.26,48371,39036,6997,32039,1004.47,991.1,1131.83,960.36,48714,39366,9348,7127,32239,1034.79,1028.5999999999999,1060.8599999999999]
["Sullivan County",10,14086,11544,"n","n",536.78,549.33000000000004,"n","n",13793,11231,4452,6779,561.15,569.74,685.65,493.64,13370,10809,4059,6750,577.41,588.45000000000005,688.92,528.03,13551,11127,4066,7061,602.70000000000005,607.34,721.67,541.5,13862,11386,4086,7300,615.79,621.85,741.34,554.98,13826,11306,3928,7377,642.61,650.96,800.27,571.45000000000005,13873,11351,3958,7393,676.8,687.32,843.22,603.85,13799,11227,3909,7318,687.34,698.53,866.24,608.95000000000005,13185,10586,3466,7121,698.02,705.82,887.35,617.47,13076,10479,3303,7176,714.38,723.66,917.55,634.42999999999995,13190,10617,3204,7413,723.57,732.12,955.94,635.39,13597,11070,3448,7622,757.15,771.77,1038.8399999999999,650.94000000000005,13793,11373,3704,7670,768.35,784.88,1012.65,674.88,13873,11439,3932,7507,795.94,816.28,1039.17,699.53,14090,11709,3948,7761,803.2,815.31,1021.57,710.37,14204,11783,4061,7722,810.76,830.28,1066.2,706.22,13997,11636,4031,7605,821.95,836.22,1048.48,723.72,13966,11628,3919,7708,836.09,849.04,1063.6199999999999,739.94,13735,11390,2344,3818,7573,854.16,864.16,805.53]

{"sheet":"BuildingPermitsSince2000","index":9,"n_rows":41,"n_cols":23,"rows_kept":41,"cut":false,"hidden":true,"merged":[[3,1,3,3]]}
[]
[null,{"$f":"CntyDataLink!A35","v":"Allenstown"}]
[]
[null,"HOUSING CHARACTERISTICS"]
[]
[]
[]
[]
[]
[]
[]
[]
[]
[]
[]
[]
[]
[]
[]
[]
[]
[]
[]
[]
[]
[]
[]
[]
[]
[]
[]
[]
[]
[]
[null,"Housing Units Authorized by Permit",null,null,null,"Source: New Hampshire Office of Strategic Initiatives"]
[]
[null,"Year",2000,{"$f":"C37+1","v":2001},{"$f":"D37+1","v":2002},2003,2004,2005,2006,2007,2008,2009,2010,2011,2012,2013,2014,2015,2016,2017,2018,2019,"Total"]
[null,"Single Family",{"$f":"CntyDataLink!$BT$20","v":3},{"$f":"CntyDataLink!$BW$20","v":8},{"$f":"CntyDataLink!$BZ$20","v":7},{"$f":"CntyDataLink!$CC$20","v":1},{"$f":"CntyDataLink!$CF$20","v":9},{"$f":"CntyDataLink!$CI$20","v":9},{"$f":"CntyDataLink!$CL$20","v":16},{"$f":"CntyDataLink!$CO$20","v":9},{"$f":"CntyDataLink!$CR$20","v":-3},{"$f":"CntyDataLink!$CU$20","v":4},{"$f":"CntyDataLink!$CX$20","v":3},{"$f":"CntyDataLink!$DA$20","v":-1},{"$f":"CntyDataLink!$DD$20","v":1},{"$f":"CntyDataLink!$DG$20","v":3},{"$f":"CntyDataLink!$DJ$20","v":0},{"$f":"CntyDataLink!$DM$20","v":1},{"$f":"CntyDataLink!$DP$20","v":1},{"$f":"CntyDataLink!$DS$20","v":9},{"$f":"CntyDataLink!$DV$20","v":8},{"$f":"CntyDataLink!$DY$20","v":5},{"$f":"SUM(C38:V38)","v":93}]
[null,"Multi-family",{"$f":"CntyDataLink!$BU$20","v":0},{"$f":"CntyDataLink!$BX$20","v":2},{"$f":"CntyDataLink!$CA$20","v":1},{"$f":"CntyDataLink!$CD$20","v":2},{"$f":"CntyDataLink!$CG$20","v":0},{"$f":"CntyDataLink!$CJ$20","v":0},{"$f":"CntyDataLink!$CM$20","v":0},{"$f":"CntyDataLink!$CP$20","v":0},{"$f":"CntyDataLink!$CS$20","v":0},{"$f":"CntyDataLink!$CV$20","v":0},{"$f":"CntyDataLink!$CY$20","v":0},{"$f":"CntyDataLink!$DB$20","v":2},{"$f":"CntyDataLink!$DE$20","v":0},{"$f":"CntyDataLink!$DH$20","v":-6},{"$f":"CntyDataLink!$DK$20","v":0},{"$f":"CntyDataLink!$DN$20","v":8},{"$f":"CntyDataLink!$DQ$20","v":0},{"$f":"CntyDataLink!$DT$20","v":0},{"$f":"CntyDataLink!$DW$20","v":0},{"$f":"CntyDataLink!$DZ$20","v":0},{"$f":"SUM(C39:V39)","v":9}]
[null,"Mobile Home",{"$f":"CntyDataLink!$BV$20","v":24},{"$f":"CntyDataLink!$BY$20","v":17},{"$f":"CntyDataLink!$CB$20","v":14},{"$f":"CntyDataLink!$CE$20","v":7},{"$f":"CntyDataLink!$CH$20","v":7},{"$f":"CntyDataLink!$CK$20","v":0},{"$f":"CntyDataLink!$CN$20","v":11},{"$f":"CntyDataLink!$CQ$20","v":14},{"$f":"CntyDataLink!$CT$20","v":11},{"$f":"CntyDataLink!$CW$20","v":5},{"$f":"CntyDataLink!$CZ$20","v":3},{"$f":"CntyDataLink!$DC$20","v":3},{"$f":"CntyDataLink!$DF$20","v":1},{"$f":"CntyDataLink!$DI$20","v":0},{"$f":"CntyDataLink!$DL$20","v":2},{"$f":"CntyDataLink!$DO$20","v":-1},{"$f":"CntyDataLink!$DR$20","v":9},{"$f":"CntyDataLink!$DU$20","v":-3},{"$f":"CntyDataLink!$DX$20","v":0},{"$f":"CntyDataLink!$EA$20","v":2},{"$f":"SUM(C40:V40)","v":126}]
[null,"Total",{"$f":"SUM(C38:C40)","v":27},{"$f":"SUM(D38:D40)","v":27},22,10,16,9,27,23,8,9,6,4,2,-3,2,8,10,6,{"$f":"SUM(U38:U40)","v":8},7,{"$f":"SUM(W38:W40)","v":228}]

{"sheet":"EmpVsHUxCounty","index":10,"n_rows":124,"n_cols":15,"rows_kept":124,"cut":false,"hidden":true,"merged":[[64,0,64,11],[79,0,80,9]]}
[]
[{"$f":"A45","v":"Allenstown"}]
[]
[]
[]
[]
[]
[]
[]
[]
[]
[]
[]
[]
[]
[]
[]
[]
[]
[]
[]
[]
[]
[]
[]
[]
[]
[]
[]
[]
[]
[]
[]
[]
[]
[]
[]
[]
[]
[]
[]
[]
[]
["Housing Units "]
[{"$f":"CntyDataLink!A20","v":"Allenstown"}]
[null,null,null,"Source: New Hampshire Office of Strategic Initiatives"]
["Units Authorized By Permit",2008,{"$f":"B47+1","v":2009},{"$f":"C47+1","v":2010},2011,2012,2013,2014,2015,2016,2017,2018,2019]
["Single Family",{"$f":"CntyDataLink!$CR$20","v":-3},{"$f":"CntyDataLink!$CU$20","v":4},{"$f":"CntyDataLink!$CX$20","v":3},{"$f":"CntyDataLink!$DA$20","v":-1},{"$f":"CntyDataLink!$DD$20","v":1},{"$f":"CntyDataLink!$DG$20","v":3},{"$f":"CntyDataLink!$DJ$20","v":0},{"$f":"CntyDataLink!$DM$20","v":1},{"$f":"CntyDataLink!$DP$20","v":1},{"$f":"CntyDataLink!$DS$20","v":9},{"$f":"CntyDataLink!$DV$20","v":8},{"$f":"CntyDataLink!$DY$20","v":5}]
["Multi-family",{"$f":"CntyDataLink!$CS$20","v":0},{"$f":"CntyDataLink!$CV$20","v":0},{"$f":"CntyDataLink!$CY$20","v":0},{"$f":"CntyDataLink!$DB$20","v":2},{"$f":"CntyDataLink!$DE$20","v":0},{"$f":"CntyDataLink!$DH$20","v":-6},{"$f":"CntyDataLink!$DK$20","v":0},{"$f":"CntyDataLink!$DN$20","v":8},{"$f":"CntyDataLink!$DQ$20","v":0},{"$f":"CntyDataLink!$DT$20","v":0},{"$f":"CntyDataLink!$DW$20","v":0},{"$f":"CntyDataLink!$DZ$20","v":0}]
["Mobile Home",{"$f":"CntyDataLink!$CT$20","v":11},{"$f":"CntyDataLink!$CW$20","v":5},{"$f":"CntyDataLink!$CZ$20","v":3},{"$f":"CntyDataLink!$DC$20","v":3},{"$f":"CntyDataLink!$DF$20","v":1},{"$f":"CntyDataLink!$DI$20","v":0},{"$f":"CntyDataLink!$DL$20","v":2},{"$f":"CntyDataLink!$DO$20","v":-1},{"$f":"CntyDataLink!$DR$20","v":9},{"$f":"CntyDataLink!$DU$20","v":-3},{"$f":"CntyDataLink!$DX$20","v":0},{"$f":"CntyDataLink!$EA$20","v":2}]
["Total",{"$f":"SUM(B48:B50)","v":8},9,6,4,2,-3,2,8,10,6,{"$f":"SUM(L48:L50)","v":8},{"$f":"SUM(M48:M50)","v":7}]
[]
["Total Housing Units",2008,{"$f":"B53+1","v":2009},2010,"2010 Census",2011,{"$f":"F53+1","v":2012},2013,2014,2015,2016,2017,2018,2019,2020]
["Single Family",{"$f":"CntyDataLink!CF65+CntyDataLink!$BT$20+CntyDataLink!$BW$20+CntyDataLink!$BZ$20+CntyDataLink!$CC$20+CntyDataLink!$CF$20+CntyDataLink!$CI$20+CntyDataLink!$CO$20+CntyDataLink!$CR$20","v":872},{"$f":"B54+B48","v":869},{"$f":"C54+C48","v":873},{"$f":"CntyDataLink!$BA$167","v":806},{"$f":"D48+E54","v":809},{"$f":"F54+E48","v":808},809,812,812,813,814,823,831,836]
["Multi Family",{"$f":"SUM(CntyDataLink!CG65:CM65)+CntyDataLink!$BU$20+CntyDataLink!$BX$20+CntyDataLink!$CA$20+CntyDataLink!$CD$20+CntyDataLink!$CG$20+CntyDataLink!$CJ$20+CntyDataLink!$CP$20+CntyDataLink!$CS$20","v":512},{"$f":"B55+B49","v":512},{"$f":"C55+C49","v":512},{"$f":"CntyDataLink!$BB$167","v":679},{"$f":"D49+E55","v":679},681,681,675,675,683,683,683,683,683]
["Mobile Home",{"$f":"SUM(CntyDataLink!CN65:CO65)+CntyDataLink!$BV$20+CntyDataLink!$BY$20+CntyDataLink!$CB$20+CntyDataLink!$CE$20+CntyDataLink!$CH$20+CntyDataLink!$CK$20+CntyDataLink!$CQ$20+CntyDataLink!$CT$20","v":720},731,{"$f":"C56+C50","v":736},{"$f":"CntyDataLink!$BC$167","v":396},{"$f":"D50+E56","v":399},402,403,403,405,404,413,410,410,412]
["Total",{"$f":"SUM(B54:B56)","v":2104},{"$f":"SUM(C54:C56)","v":2112},{"$f":"C57+C51","v":2121},{"$f":"SUM(E54:E56)","v":1881},{"$f":"SUM(F54:F56)","v":1887},1891,1893,1890,1892,1900,1910,1916,1924,1931]
[]
["Percent Change",null,"08-09","09-10","2000-2010 Census"," 10-11"," 11-12","12-13","13-14","14-15","15-16","16-17","17-18","18-19","19-20"]
["Single Family",null,{"$f":"(C54-B54)/B54","v":-3.4403669724770644E-3},{"$f":"(D54-C54)/C54","v":4.6029919447640967E-3},{"$f":"(E54-CntyDataLink!CF$65)/CntyDataLink!CF$65","v":-2.7744270205066344E-2},{"$f":"(F54-E54)/E54","v":3.7220843672456576E-3},-1.2360939431396785E-3,1.2376237623762376E-3,3.708281829419036E-3,0,1.2315270935960591E-3,1.2300123001230013E-3,1.1056511056511056E-2,9.7205346294046164E-3,6.0168471720818293E-3]
["Multi Family",null,{"$f":"(C55-B55)/B55","v":0},0,{"$f":"(E55-SUM(CntyDataLink!CG65:CM65))/SUM(CntyDataLink!CG65:CM65)","v":0.33925049309664695},0,2.9455081001472753E-3,0,-8.8105726872246704E-3,0,1.1851851851851851E-2,0,0,0,0]
["Mobile Home",null,1.5277777777777777E-2,6.8399452804377564E-3,{"$f":"(E56-SUM(CntyDataLink!CM65:CN65))/SUM(CntyDataLink!CM65:CN65)","v":-0.36741214057507987},7.575757575757576E-3,7.5187969924812026E-3,2.4875621890547263E-3,0,4.9627791563275434E-3,-2.4691358024691358E-3,2.2277227722772276E-2,-7.2639225181598066E-3,0,4.8780487804878049E-3]
["Total",null,3.8022813688212928E-3,4.261363636363636E-3,{"$f":"(E57-CntyDataLink!$CE65)/CntyDataLink!$CE65","v":-4.1284403669724773E-2},3.189792663476874E-3,2.1197668256491787E-3,1.0576414595452142E-3,-1.5847860538827259E-3,1.0582010582010583E-3,4.2283298097251587E-3,5.263157894736842E-3,3.1413612565445027E-3,4.1753653444676405E-3,3.6382536382536385E-3]
[]
[]
[]
[]
["Private Employment"]
[{"$f":"CntyDataLink!A25","v":"Allenstown"}]
[null,null,2008,{"$f":"C70+1","v":2009},2010,2011,2012,2013,2014,2015,2016,2017,2018,2019]
["Goods Producing",null,{"$f":"IF((CntyDataLink!$BI$25)=\"n\",NA(),IF(VALUE(CntyDataLink!$BI$25)=\"\",NA(),VALUE(CntyDataLink!$BI$25)))","v":141},{"$f":"IF((CntyDataLink!$BQ$25)=\"n\",NA(),IF(VALUE(CntyDataLink!$BQ$25)=\"\",NA(),VALUE(CntyDataLink!$BQ$25)))","v":137},{"$f":"IF((CntyDataLink!$BY$25)=\"n\",NA(),IF(VALUE(CntyDataLink!$BY$25)=\"\",NA(),VALUE(CntyDataLink!$BY$25)))","v":147},{"$f":"IF((CntyDataLink!$CG$25)=\"n\",NA(),IF(VALUE(CntyDataLink!$CG$25)=\"\",NA(),VALUE(CntyDataLink!$CG$25)))","v":147},{"$f":"IF((CntyDataLink!$CO$25)=\"n\",NA(),IF(VALUE(CntyDataLink!$CO$25)=\"\",NA(),VALUE(CntyDataLink!$CO$25)))","v":157},{"$f":"IF((CntyDataLink!$CW$25)=\"n\",NA(),IF(VALUE(CntyDataLink!$CW$25)=\"\",NA(),VALUE(CntyDataLink!$CW$25)))","v":197},{"$f":"IF((CntyDataLink!$DE$25)=\"n\",NA(),IF(VALUE(CntyDataLink!$DE$25)=\"\",NA(),VALUE(CntyDataLink!$DE$25)))","v":182},{"$f":"IF((CntyDataLink!$DM$25)=\"n\",NA(),IF(VALUE(CntyDataLink!$DM$25)=\"\",NA(),VALUE(CntyDataLink!$DM$25)))","v":170},{"$f":"IF((CntyDataLink!$DU$25)=\"n\",NA(),IF(VALUE(CntyDataLink!$DU$25)=\"\",NA(),VALUE(CntyDataLink!$DU$25)))","v":127},{"$f":"IF((CntyDataLink!$EC$25)=\"n\",NA(),IF(VALUE(CntyDataLink!$EC$25)=\"\",NA(),VALUE(CntyDataLink!$EC$25)))","v":126},{"$f":"IF((CntyDataLink!$EK$25)=\"n\",NA(),IF(VALUE(CntyDataLink!$EK$25)=\"\",NA(),VALUE(CntyDataLink!$EK$25)))","v":114},{"$f":"IF((CntyDataLink!$ET$25)=\"n\",NA(),IF(VALUE(CntyDataLink!$ET$25)=\"\",NA(),VALUE(CntyDataLink!$ET$25)))","v":117}]
["Service Providing",null,{"$f":"IF((CntyDataLink!$BJ$25)=\"n\",NA(),IF(VALUE(CntyDataLink!$BJ$25)=\"\",NA(),VALUE(CntyDataLink!$BJ$25)))","v":385},{"$f":"IF((CntyDataLink!$BR$25)=\"n\",NA(),IF(VALUE(CntyDataLink!$BR$25)=\"\",NA(),VALUE(CntyDataLink!$BR$25)))","v":329},{"$f":"IF((CntyDataLink!$BZ$25)=\"n\",NA(),IF(VALUE(CntyDataLink!$BZ$25)=\"\",NA(),VALUE(CntyDataLink!$BZ$25)))","v":325},{"$f":"IF((CntyDataLink!$CH$25)=\"n\",NA(),IF(VALUE(CntyDataLink!$CH$25)=\"\",NA(),VALUE(CntyDataLink!$CH$25)))","v":341},{"$f":"IF((CntyDataLink!$CP$25)=\"n\",NA(),IF(VALUE(CntyDataLink!$CP$25)=\"\",NA(),VALUE(CntyDataLink!$CP$25)))","v":372},{"$f":"IF((CntyDataLink!$CX$25)=\"n\",NA(),IF(VALUE(CntyDataLink!$CX$25)=\"\",NA(),VALUE(CntyDataLink!$CX$25)))","v":379},{"$f":"IF((CntyDataLink!$DF$25)=\"n\",NA(),IF(VALUE(CntyDataLink!$DF$25)=\"\",NA(),VALUE(CntyDataLink!$DF$25)))","v":373},{"$f":"IF((CntyDataLink!$DN$25)=\"n\",NA(),IF(VALUE(CntyDataLink!$DN$25)=\"\",NA(),VALUE(CntyDataLink!$DN$25)))","v":310},{"$f":"IF((CntyDataLink!$DV$25)=\"n\",NA(),IF(VALUE(CntyDataLink!$DV$25)=\"\",NA(),VALUE(CntyDataLink!$DV$25)))","v":320},{"$f":"IF((CntyDataLink!$ED$25)=\"n\",NA(),IF(VALUE(CntyDataLink!$ED$25)=\"\",NA(),VALUE(CntyDataLink!$ED$25)))","v":264},{"$f":"IF((CntyDataLink!$EL$25)=\"n\",NA(),IF(VALUE(CntyDataLink!$EL$25)=\"\",NA(),VALUE(CntyDataLink!$EL$25)))","v":256},{"$f":"IF((CntyDataLink!$EU$25)=\"n\",NA(),IF(VALUE(CntyDataLink!$EU$25)=\"\",NA(),VALUE(CntyDataLink!$EU$25)))","v":277}]
["Total Private Emp",null,{"$f":"IF((CntyDataLink!$BH$25)=\"n\",NA(),IF(VALUE(CntyDataLink!$BH$25)=\"\",NA(),VALUE(CntyDataLink!$BH$25)))","v":525},{"$f":"IF((CntyDataLink!$BP$25)=\"n\",NA(),IF(VALUE(CntyDataLink!$BP$25)=\"\",NA(),VALUE(CntyDataLink!$BP$25)))","v":466},{"$f":"IF((CntyDataLink!$BX$25)=\"n\",NA(),IF(VALUE(CntyDataLink!$BX$25)=\"\",NA(),VALUE(CntyDataLink!$BX$25)))","v":472},{"$f":"IF((CntyDataLink!$CF$25)=\"n\",NA(),IF(VALUE(CntyDataLink!$CF$25)=\"\",NA(),VALUE(CntyDataLink!$CF$25)))","v":487},{"$f":"IF((CntyDataLink!$CN$25)=\"n\",NA(),IF(VALUE(CntyDataLink!$CN$25)=\"\",NA(),VALUE(CntyDataLink!$CN$25)))","v":528},{"$f":"IF((CntyDataLink!$CV$25)=\"n\",NA(),IF(VALUE(CntyDataLink!$CV$25)=\"\",NA(),VALUE(CntyDataLink!$CV$25)))","v":576},{"$f":"IF((CntyDataLink!$DD$25)=\"n\",NA(),IF(VALUE(CntyDataLink!$DD$25)=\"\",NA(),VALUE(CntyDataLink!$DD$25)))","v":555},{"$f":"IF((CntyDataLink!$DL$25)=\"n\",NA(),IF(VALUE(CntyDataLink!$DL$25)=\"\",NA(),VALUE(CntyDataLink!$DL$25)))","v":480},{"$f":"IF((CntyDataLink!$DT$25)=\"n\",NA(),IF(VALUE(CntyDataLink!$DT$25)=\"\",NA(),VALUE(CntyDataLink!$DT$25)))","v":447},{"$f":"IF((CntyDataLink!$EB$25)=\"n\",NA(),IF(VALUE(CntyDataLink!$EB$25)=\"\",NA(),VALUE(CntyDataLink!$EB$25)))","v":390},{"$f":"IF((CntyDataLink!$EJ$25)=\"n\",NA(),IF(VALUE(CntyDataLink!$EJ$25)=\"\",NA(),VALUE(CntyDataLink!$EJ$25)))","v":370},{"$f":"IF((CntyDataLink!$ER$25)=\"n\",NA(),IF(VALUE(CntyDataLink!$ER$25)=\"\",NA(),VALUE(CntyDataLink!$ER$25)))","v":394}]
[]
["Percent Change",null,null,"08-09","09-10","10-11","11-12","12-13","13-14","14-15","15-16","16-17","17-18","18-19"]
["Goods Producing",null,null,{"$f":"(D71-C71)/C71","v":-2.8368794326241134E-2},7.2992700729927001E-2,0,6.8027210884353748E-2,0.25477707006369427,-7.6142131979695438E-2,-6.5934065934065936E-2,-0.25294117647058822,-7.874015748031496E-3,-9.5238095238095233E-2,{"$f":"(N71-M71)/M71","v":2.6315789473684209E-2}]
["Service Providing",null,null,-0.14545454545454545,-1.2158054711246201E-2,4.9230769230769231E-2,9.0909090909090912E-2,1.8817204301075269E-2,-1.5831134564643801E-2,-0.16890080428954424,3.2258064516129031E-2,-0.17499999999999999,-3.0303030303030304E-2,8.203125E-2]
["Total Private Emp",null,null,-0.11238095238095239,{"$f":"(E73-D73)/D73","v":1.2875536480686695E-2},3.1779661016949151E-2,8.4188911704312114E-2,9.0909090909090912E-2,-3.6458333333333336E-2,-0.13513513513513514,-6.8750000000000006E-2,-0.12751677852348994,-5.128205128205128E-2,{"$f":"(N73-M73)/M73","v":6.4864864864864868E-2}]
[]
["Source: New Hampshire Department of Employment Security"]
[]
[]
[]
[{"$f":"A2","v":"Allenstown"}]
[]
[]
[]
[]
[]
[]
[]
[]
[]
[]
[]
[]
[]
[]
[]
[]
[]
[]
[]
[]
[]
[]
[]
[]
[]
[]
[]
[]
[]
[]
[]
[]
[]
[]
[]
[null,null,2008,{"$f":"C120+1","v":2009},2010,2011,2012,2013,2014,2015,2016,2017,2018,2019]
["Total Housing Units",null,{"$f":"B$57","v":2104},2112,{"$f":"$E$57","v":1881},{"$f":"F57","v":1887},1891,1893,1890,1892,1900,1910,1916,1924]
["Private & Government Emp.",null,{"$f":"VALUE(CntyDataLink!$BG$25)","v":720},{"$f":"VALUE(CntyDataLink!$BO$25)","v":630},{"$f":"VALUE(CntyDataLink!$BW$25)","v":646},{"$f":"VALUE(CntyDataLink!$CE$25)","v":669},{"$f":"VALUE(CntyDataLink!$CM$25)","v":708},{"$f":"VALUE(CntyDataLink!$CU$25)","v":735},{"$f":"VALUE(CntyDataLink!$DC$25)","v":719},{"$f":"VALUE(CntyDataLink!$DK$25)","v":649},{"$f":"VALUE(CntyDataLink!$DS$25)","v":618},{"$f":"VALUE(CntyDataLink!$EA$25)","v":555},{"$f":"VALUE(CntyDataLink!$EI$25)","v":704},{"$f":"VALUE(CntyDataLink!$EQ$25)","v":741}]
[]
["Source: New Hampshire Department of Employment Security and New Hampshire Office of Strategic Initiatives"]

{"sheet":"HHIncome-10YearComparison","index":11,"n_rows":50,"n_cols":17,"rows_kept":50,"cut":false,"hidden":true,"merged":[[28,1,28,2],[27,15,27,16],[3,1,3,3],[26,1,26,4],[27,4,27,7],[27,8,27,10],[27,11,27,13]]}
[]
[null,{"$f":"CntyDataLink!A35","v":"Allenstown"}]
[]
[null,"INCOME CHARACTERISTICS"]
[]
[]
[]
[]
[]
[]
[]
[]
[]
[]
[]
[]
[]
[]
[]
[]
[]
[]
[]
[]
[]
[]
[null,"Households By Household Income"]
[null,null,null,null,"2005-2009",null,null,null,"2010-2014",null,null,"2015-2019",null,null,null,"Statistically Significant Change"]
[null,"Household Income",null,null,"Estimate","Margin of Error",null,null,"Estimate"," Margin of Error",null,"Estimate"," Margin of Error",null,null,"2009-2019","2014-2019"]
[null,"Less than $10,000",null,null,{"$f":"CntyDataLinkPrior10YearEstimate!$B$120","v":89},{"$f":"CntyDataLinkPrior10YearEstimate!$C$120","v":67},{"$f":"E30/SUM($E$30:$E$39)","v":8.820614469772052E-2},null,{"$f":"CntyDataLinkPrior5YearEstimates!$B$120","v":63},{"$f":"CntyDataLinkPrior5YearEstimates!$C$120","v":42},{"$f":"I30/SUM($I$30:$I$39)","v":3.482587064676617E-2},{"$f":"CntyDataLink!$B$120","v":63},{"$f":"CntyDataLink!$C$120","v":42},{"$f":"L30/SUM($L$30:$L$39)","v":3.482587064676617E-2},null,{"$f":"StatisticallySignificantCalcs!$A$83","v":"N"},{"$f":"StatisticallySignificantCalcs!$J$83","v":"N"}]
[null,"$10,000 to $14,999",null,null,{"$f":"CntyDataLinkPrior10YearEstimate!$D$120","v":105},{"$f":"CntyDataLinkPrior10YearEstimate!$E$120","v":51},{"$f":"E31/SUM($E$30:$E$39)","v":0.10406342913776016},null,{"$f":"CntyDataLinkPrior5YearEstimates!$D$120","v":186},{"$f":"CntyDataLinkPrior5YearEstimates!$E$120","v":74},0.10281923714759536,{"$f":"CntyDataLink!$D$120","v":186},{"$f":"CntyDataLink!$E$120","v":74},0.10281923714759536,null,{"$f":"StatisticallySignificantCalcs!$A$84","v":"N"},{"$f":"StatisticallySignificantCalcs!$J$84","v":"N"}]
[null,"$15,000 to $24,999",null,null,{"$f":"CntyDataLinkPrior10YearEstimate!$F$120","v":77},{"$f":"CntyDataLinkPrior10YearEstimate!$G$120","v":64},7.6313181367690788E-2,null,{"$f":"CntyDataLinkPrior5YearEstimates!$F$120","v":48},{"$f":"CntyDataLinkPrior5YearEstimates!$G$120","v":29.410882339705484},2.6533996683250415E-2,{"$f":"CntyDataLink!$F$120","v":48},{"$f":"CntyDataLink!$G$120","v":29.410882339705484},2.6533996683250415E-2,null,{"$f":"StatisticallySignificantCalcs!$A$85","v":"N"},{"$f":"StatisticallySignificantCalcs!$J$85","v":"N"}]
[null,"$25,000 to $34,999",null,null,{"$f":"CntyDataLinkPrior10YearEstimate!$H$120","v":152},{"$f":"CntyDataLinkPrior10YearEstimate!$I$120","v":97},0.15064420218037661,null,{"$f":"CntyDataLinkPrior5YearEstimates!$H$120","v":245},{"$f":"CntyDataLinkPrior5YearEstimates!$I$120","v":102.00490184299969},0.13543394140409065,{"$f":"CntyDataLink!$H$120","v":245},{"$f":"CntyDataLink!$I$120","v":102.00490184299969},0.13543394140409065,null,{"$f":"StatisticallySignificantCalcs!$A$86","v":"N"},{"$f":"StatisticallySignificantCalcs!$J$86","v":"N"}]
[null,"$35,000 to $49,999",null,null,{"$f":"CntyDataLinkPrior10YearEstimate!$J$120","v":45},{"$f":"CntyDataLinkPrior10YearEstimate!$K$120","v":38},4.4598612487611496E-2,null,{"$f":"CntyDataLinkPrior5YearEstimates!$J$120","v":243},{"$f":"CntyDataLinkPrior5YearEstimates!$K$120","v":84.445248534183378},0.13432835820895522,{"$f":"CntyDataLink!$J$120","v":243},{"$f":"CntyDataLink!$K$120","v":84.445248534183378},0.13432835820895522,null,{"$f":"StatisticallySignificantCalcs!$A$87","v":"Y"},{"$f":"StatisticallySignificantCalcs!$J$87","v":"Y"}]
[null,"$50,000 to $74,999",null,null,{"$f":"CntyDataLinkPrior10YearEstimate!$L$120","v":155},{"$f":"CntyDataLinkPrior10YearEstimate!$M$120","v":65},0.15361744301288405,null,{"$f":"CntyDataLinkPrior5YearEstimates!$L$120","v":412},{"$f":"CntyDataLinkPrior5YearEstimates!$M$120","v":119.01680553602503},0.22775013819789938,{"$f":"CntyDataLink!$L$120","v":412},{"$f":"CntyDataLink!$M$120","v":119.01680553602503},0.22775013819789938,null,{"$f":"StatisticallySignificantCalcs!$A$88","v":"Y"},{"$f":"StatisticallySignificantCalcs!$J$88","v":"Y"}]
[null,"$75,000 to $99,999",null,null,{"$f":"CntyDataLinkPrior10YearEstimate!$N$120","v":8},{"$f":"CntyDataLinkPrior10YearEstimate!$O$120","v":13},7.9286422200198214E-3,null,{"$f":"CntyDataLinkPrior5YearEstimates!$N$120","v":251},{"$f":"CntyDataLinkPrior5YearEstimates!$O$120","v":78},0.13875069098949697,{"$f":"CntyDataLink!$N$120","v":251},{"$f":"CntyDataLink!$O$120","v":78},0.13875069098949697,null,{"$f":"StatisticallySignificantCalcs!$A$89","v":"Y"},{"$f":"StatisticallySignificantCalcs!$J$89","v":"Y"}]
[null,"$100,000 to $149,999",null,null,{"$f":"CntyDataLinkPrior10YearEstimate!$P$120","v":77},{"$f":"CntyDataLinkPrior10YearEstimate!$Q$120","v":50},7.6313181367690788E-2,null,{"$f":"CntyDataLinkPrior5YearEstimates!$P$120","v":227},{"$f":"CntyDataLinkPrior5YearEstimates!$Q$120","v":76.609398901179219},0.12548369264787176,{"$f":"CntyDataLink!$P$120","v":227},{"$f":"CntyDataLink!$Q$120","v":76.609398901179219},0.12548369264787176,null,{"$f":"StatisticallySignificantCalcs!$A$90","v":"Y"},{"$f":"StatisticallySignificantCalcs!$J$90","v":"Y"}]
[null,"$150,000 to $199,999",null,null,{"$f":"CntyDataLinkPrior10YearEstimate!$R$120","v":48},{"$f":"CntyDataLinkPrior10YearEstimate!$S$120","v":52},4.7571853320118929E-2,null,{"$f":"CntyDataLinkPrior5YearEstimates!$R$120","v":119},{"$f":"CntyDataLinkPrior5YearEstimates!$S$120","v":64},6.5782200110558325E-2,{"$f":"CntyDataLink!$R$120","v":119},{"$f":"CntyDataLink!$S$120","v":64},6.5782200110558325E-2,null,{"$f":"StatisticallySignificantCalcs!$A$91","v":"N"},{"$f":"StatisticallySignificantCalcs!$J$91","v":"N"}]
[null,"Greater than $200,000",null,null,{"$f":"CntyDataLinkPrior10YearEstimate!$T$120","v":253},{"$f":"CntyDataLinkPrior10YearEstimate!$U$120","v":115},0.25074331020812685,null,{"$f":"CntyDataLinkPrior5YearEstimates!$T$120","v":15},{"$f":"CntyDataLinkPrior5YearEstimates!$U$120","v":17},8.291873963515755E-3,{"$f":"CntyDataLink!$T$120","v":15},{"$f":"CntyDataLink!$U$120","v":17},8.291873963515755E-3,null,{"$f":"StatisticallySignificantCalcs!$A$92","v":"Y"},{"$f":"StatisticallySignificantCalcs!$J$92","v":"Y"}]
[null,null,null,null,491895,null,null,null,491895]
[null,null,"Median HH Income",null,{"$f":"CntyDataLinkPrior10YearEstimate!$BV$128","v":55752},null,{"$f":"CntyDataLinkPrior10YearEstimate!$BW$128","v":4919},null,{"$f":"CntyDataLinkPrior5YearEstimates!$BV$128","v":52750},{"$f":"CntyDataLinkPrior5YearEstimates!$BW$128","v":5886},null,{"$f":"CntyDataLink!$BV$128","v":56046},{"$f":"CntyDataLink!$BW$128","v":4058}]
[null,null,"HH Income in 2019 Dollars",null,{"$f":"($E$50)*E41","v":65787.360000000001},null,null,null,{"$f":"($E$49)*I41","v":56442.5}]
[]
[null,{"$f":"\"Source:  \"& \" \"&E28&\", \"&I28&\" and \"&L28& \"  American Community Survey; Tables B25119; B19001\"","v":"Source:   2005-2009, 2010-2014 and 2015-2019  American Community Survey; Tables B25119; B19001"}]
[]
[null,"Data from the American Community Survey are estimates."]
[]
[null,"CPI Adjustment Factor"]
[null,"2010-2014",null,null,1.07]
[null,"2005-2009",null,null,1.18]

{"sheet":"HHIncomeByAge","index":12,"n_rows":80,"n_cols":22,"rows_kept":80,"cut":false,"hidden":true,"merged":[[21,6,21,15]]}
[]
[null,null,{"$f":"CntyDataLink!A55","v":"Allenstown"}]
[null,null,"INCOME CHARACTERISTICS"]
[]
[]
[]
[]
[]
[]
[]
[]
[]
[]
[]
[]
[]
[]
[]
[]
[]
[null,null,{"$f":"HHIncomeByAge!C2","v":"Allenstown"},"Household Income in 2019"]
[null,null,null,null,null,null,"Households by Age of Householder "]
[null,null,null,"Households","Margin of Error Households",null,"Under 25","Margin of Error Under 25",null,"25 to 44","Margin of Error 25 to 44",null,"45 to 64","Margin of Error 45 to 64",null,"65 & Over","Margin of Error 65 & Over",null,"Family Households","MOE Family HH","Non-Family HH","MOE Non-Family HH"]
[null,null,"Less Than $10,000",{"$f":"CntyDataLink!$D$116","v":63},{"$f":"CntyDataLink!$E$116","v":42},null,{"$f":"CntyDataLink!$AN$116","v":13},{"$f":"CntyDataLink!$AO$116","v":20},null,{"$f":"CntyDataLink!$BV$116","v":31},{"$f":"CntyDataLink!$BW$116","v":35},null,{"$f":"CntyDataLink!$DD$116","v":3},{"$f":"CntyDataLink!$DE$116","v":7},null,{"$f":"CntyDataLink!$EL$116","v":16},{"$f":"CntyDataLink!$EM$116","v":19},null,{"$f":"CntyDataLink!$D$160","v":30},{"$f":"CntyDataLink!$E$160","v":30},{"$f":"CntyDataLink!$AN$160","v":41},{"$f":"CntyDataLink!$AO$160","v":36}]
[null,null,"$10,000 to $14,999",{"$f":"CntyDataLink!$F$116","v":186},{"$f":"CntyDataLink!$G$116","v":74},null,{"$f":"CntyDataLink!$AP$116","v":0},{"$f":"CntyDataLink!$AQ$116","v":11},null,{"$f":"CntyDataLink!$BX$116","v":32},{"$f":"CntyDataLink!$BY$116","v":50},null,{"$f":"CntyDataLink!$DF$116","v":26},{"$f":"CntyDataLink!$DG$116","v":28},null,{"$f":"CntyDataLink!$EN$116","v":128},{"$f":"CntyDataLink!$EO$116","v":61},null,{"$f":"CntyDataLink!$F$160","v":65},{"$f":"CntyDataLink!$G$160","v":51},{"$f":"CntyDataLink!$AP$160","v":128},{"$f":"CntyDataLink!$AQ$160","v":61}]
[null,null,"$15,000 to $19,999",{"$f":"CntyDataLink!$H$116","v":25},{"$f":"CntyDataLink!$I$116","v":17},null,{"$f":"CntyDataLink!$AR$116","v":0},{"$f":"CntyDataLink!$AS$116","v":11},null,{"$f":"CntyDataLink!$BZ$116","v":0},{"$f":"CntyDataLink!$CA$116","v":11},null,{"$f":"CntyDataLink!$DH$116","v":0},{"$f":"CntyDataLink!$DI$116","v":11},null,{"$f":"CntyDataLink!$EP$116","v":25},{"$f":"CntyDataLink!$EQ$116","v":17},null,{"$f":"CntyDataLink!$H$160","v":8},{"$f":"CntyDataLink!$I$160","v":11},{"$f":"CntyDataLink!$AR$160","v":17},{"$f":"CntyDataLink!$AS$160","v":15}]
[null,null,"$20,000 to $24,999",{"$f":"CntyDataLink!$J$116","v":23},{"$f":"CntyDataLink!$K$116","v":24},null,{"$f":"CntyDataLink!$AT$116","v":0},{"$f":"CntyDataLink!$AU$116","v":11},null,{"$f":"CntyDataLink!$CB$116","v":9},{"$f":"CntyDataLink!$CC$116","v":14},null,{"$f":"CntyDataLink!$DJ$116","v":14},{"$f":"CntyDataLink!$DK$116","v":20},null,{"$f":"CntyDataLink!$ER$116","v":0},{"$f":"CntyDataLink!$ES$116","v":11},null,{"$f":"CntyDataLink!$J$160","v":12},{"$f":"CntyDataLink!$K$160","v":17},{"$f":"CntyDataLink!$AT$160","v":19},{"$f":"CntyDataLink!$AU$160","v":20}]
[null,null,"$25,000 to $29,999",{"$f":"CntyDataLink!$L$116","v":87},{"$f":"CntyDataLink!$M$116","v":62},null,{"$f":"CntyDataLink!$AV$116","v":0},{"$f":"CntyDataLink!$AW$116","v":11},null,{"$f":"CntyDataLink!$CD$116","v":7},{"$f":"CntyDataLink!$CE$116","v":13},null,{"$f":"CntyDataLink!$DL$116","v":54},{"$f":"CntyDataLink!$DM$116","v":43},null,{"$f":"CntyDataLink!$ET$116","v":26},{"$f":"CntyDataLink!$EU$116","v":41},null,{"$f":"CntyDataLink!$L$160","v":51},{"$f":"CntyDataLink!$M$160","v":52},{"$f":"CntyDataLink!$AV$160","v":29},{"$f":"CntyDataLink!$AW$160","v":26}]
[null,null,"$30,000 to $34,999",{"$f":"CntyDataLink!$N$116","v":158},{"$f":"CntyDataLink!$O$116","v":81},null,{"$f":"CntyDataLink!$AX$116","v":0},{"$f":"CntyDataLink!$AY$116","v":11},null,{"$f":"CntyDataLink!$CF$116","v":46},{"$f":"CntyDataLink!$CG$116","v":37},null,{"$f":"CntyDataLink!$DN$116","v":89},{"$f":"CntyDataLink!$DO$116","v":75},null,{"$f":"CntyDataLink!$EV$116","v":23},{"$f":"CntyDataLink!$EW$116","v":20},null,{"$f":"CntyDataLink!$N$160","v":49},{"$f":"CntyDataLink!$O$160","v":53},{"$f":"CntyDataLink!$AX$160","v":93},{"$f":"CntyDataLink!$AY$160","v":66}]
[null,null,"$35,000 to $39,999",{"$f":"CntyDataLink!$P$116","v":92},{"$f":"CntyDataLink!$Q$116","v":59},null,{"$f":"CntyDataLink!$AZ$116","v":0},{"$f":"CntyDataLink!$BA$116","v":11},null,{"$f":"CntyDataLink!$CH$116","v":49},{"$f":"CntyDataLink!$CI$116","v":52},null,{"$f":"CntyDataLink!$DP$116","v":34},{"$f":"CntyDataLink!$DQ$116","v":30},null,{"$f":"CntyDataLink!$EX$116","v":9},{"$f":"CntyDataLink!$EY$116","v":16},null,{"$f":"CntyDataLink!$P$160","v":66},{"$f":"CntyDataLink!$Q$160","v":53},{"$f":"CntyDataLink!$AZ$160","v":34},{"$f":"CntyDataLink!$BA$160","v":31}]
[null,null,"$40,000 to $44,999",{"$f":"CntyDataLink!$R$116","v":109},{"$f":"CntyDataLink!$S$116","v":53},null,{"$f":"CntyDataLink!$BB$116","v":0},{"$f":"CntyDataLink!$BC$116","v":11},null,{"$f":"CntyDataLink!$CJ$116","v":67},{"$f":"CntyDataLink!$CK$116","v":45},null,{"$f":"CntyDataLink!$DR$116","v":19},{"$f":"CntyDataLink!$DS$116","v":21},null,{"$f":"CntyDataLink!$EZ$116","v":23},{"$f":"CntyDataLink!$FA$116","v":19},null,{"$f":"CntyDataLink!$R$160","v":77},{"$f":"CntyDataLink!$S$160","v":43},{"$f":"CntyDataLink!$BB$160","v":40},{"$f":"CntyDataLink!$BC$160","v":32}]
[null,null,"$45,000 to $49,999",{"$f":"CntyDataLink!$T$116","v":42},{"$f":"CntyDataLink!$U$116","v":29},null,{"$f":"CntyDataLink!$BD$116","v":0},{"$f":"CntyDataLink!$BE$116","v":11},null,{"$f":"CntyDataLink!$CL$116","v":0},{"$f":"CntyDataLink!$CM$116","v":11},null,{"$f":"CntyDataLink!$DT$116","v":33},{"$f":"CntyDataLink!$DU$116","v":26},null,{"$f":"CntyDataLink!$FB$116","v":9},{"$f":"CntyDataLink!$FC$116","v":13},null,{"$f":"CntyDataLink!$T$160","v":15},{"$f":"CntyDataLink!$U$160","v":19},{"$f":"CntyDataLink!$BD$160","v":19},{"$f":"CntyDataLink!$BE$160","v":20}]
[null,null,"$50,000 to $59,999",{"$f":"CntyDataLink!$V$116","v":208},{"$f":"CntyDataLink!$W$116","v":94},null,{"$f":"CntyDataLink!$BF$116","v":24},{"$f":"CntyDataLink!$BG$116","v":35},null,{"$f":"CntyDataLink!$CN$116","v":35},{"$f":"CntyDataLink!$CO$116","v":44},null,{"$f":"CntyDataLink!$DV$116","v":85},{"$f":"CntyDataLink!$DW$116","v":48},null,{"$f":"CntyDataLink!$FD$116","v":64},{"$f":"CntyDataLink!$FE$116","v":51},null,{"$f":"CntyDataLink!$V$160","v":120},{"$f":"CntyDataLink!$W$160","v":75},{"$f":"CntyDataLink!$BF$160","v":94},{"$f":"CntyDataLink!$BG$160","v":60}]
[null,null,"$60,000 to $74,999",{"$f":"CntyDataLink!$X$116","v":204},{"$f":"CntyDataLink!$Y$116","v":73},null,{"$f":"CntyDataLink!$BH$116","v":9},{"$f":"CntyDataLink!$BI$116","v":13},null,{"$f":"CntyDataLink!$CP$116","v":72},{"$f":"CntyDataLink!$CQ$116","v":51},null,{"$f":"CntyDataLink!$DX$116","v":82},{"$f":"CntyDataLink!$DY$116","v":51},null,{"$f":"CntyDataLink!$FF$116","v":41},{"$f":"CntyDataLink!$FG$116","v":26},null,{"$f":"CntyDataLink!$X$160","v":149},{"$f":"CntyDataLink!$Y$160","v":62},{"$f":"CntyDataLink!$BH$160","v":61},{"$f":"CntyDataLink!$BI$160","v":42}]
[null,null,"$75,000 to $99,999",{"$f":"CntyDataLink!$Z$116","v":251},{"$f":"CntyDataLink!$AA$116","v":78},null,{"$f":"CntyDataLink!$BJ$116","v":0},{"$f":"CntyDataLink!$BK$116","v":11},null,{"$f":"CntyDataLink!$CR$116","v":71},{"$f":"CntyDataLink!$CS$116","v":32},null,{"$f":"CntyDataLink!$DZ$116","v":169},{"$f":"CntyDataLink!$EA$116","v":70},null,{"$f":"CntyDataLink!$FH$116","v":11},{"$f":"CntyDataLink!$FI$116","v":14},null,{"$f":"CntyDataLink!$Z$160","v":218},{"$f":"CntyDataLink!$AA$160","v":82},{"$f":"CntyDataLink!$BJ$160","v":20},{"$f":"CntyDataLink!$BK$160","v":23}]
[null,null,"$100,000 to $124,999",{"$f":"CntyDataLink!$AB$116","v":120},{"$f":"CntyDataLink!$AC$116","v":62},null,{"$f":"CntyDataLink!$BL$116","v":0},{"$f":"CntyDataLink!$BM$116","v":11},null,{"$f":"CntyDataLink!$CT$116","v":20},{"$f":"CntyDataLink!$CU$116","v":25},null,{"$f":"CntyDataLink!$EB$116","v":93},{"$f":"CntyDataLink!$EC$116","v":59},null,{"$f":"CntyDataLink!$FJ$116","v":7},{"$f":"CntyDataLink!$FK$116","v":12},null,{"$f":"CntyDataLink!$AB$160","v":76},{"$f":"CntyDataLink!$AC$160","v":40},{"$f":"CntyDataLink!$BL$160","v":37},{"$f":"CntyDataLink!$BM$160","v":45}]
[null,null,"$125,000 to $149,999",{"$f":"CntyDataLink!$AD$116","v":107},{"$f":"CntyDataLink!$AE$116","v":45},null,{"$f":"CntyDataLink!$BN$116","v":0},{"$f":"CntyDataLink!$BO$116","v":11},null,{"$f":"CntyDataLink!$CV$116","v":24},{"$f":"CntyDataLink!$CW$116","v":25},null,{"$f":"CntyDataLink!$ED$116","v":48},{"$f":"CntyDataLink!$EE$116","v":30},null,{"$f":"CntyDataLink!$FL$116","v":35},{"$f":"CntyDataLink!$FM$116","v":31},null,{"$f":"CntyDataLink!$AD$160","v":87},{"$f":"CntyDataLink!$AE$160","v":41},{"$f":"CntyDataLink!$BN$160","v":20},{"$f":"CntyDataLink!$BO$160","v":22}]
[null,null,"$150,000 to $199,999",{"$f":"CntyDataLink!$AF$116","v":119},{"$f":"CntyDataLink!$AG$116","v":64},null,{"$f":"CntyDataLink!$BP$116","v":0},{"$f":"CntyDataLink!$BQ$116","v":11},null,{"$f":"CntyDataLink!$CX$116","v":27},{"$f":"CntyDataLink!$CY$116","v":28},null,{"$f":"CntyDataLink!$EF$116","v":88},{"$f":"CntyDataLink!$EG$116","v":57},null,{"$f":"CntyDataLink!$FN$116","v":4},{"$f":"CntyDataLink!$FO$116","v":8},null,{"$f":"CntyDataLink!$AF$160","v":109},{"$f":"CntyDataLink!$AG$160","v":61},{"$f":"CntyDataLink!$BP$160","v":10},{"$f":"CntyDataLink!$BQ$160","v":15}]
[null,null,"$200,000 or More",{"$f":"CntyDataLink!$AH$116","v":15},{"$f":"CntyDataLink!$AI$116","v":17},null,{"$f":"CntyDataLink!$BR$116","v":0},{"$f":"CntyDataLink!$BS$116","v":11},null,{"$f":"CntyDataLink!$CZ$116","v":6},{"$f":"CntyDataLink!$DA$116","v":10},null,{"$f":"CntyDataLink!$EH$116","v":9},{"$f":"CntyDataLink!$EI$116","v":13},null,{"$f":"CntyDataLink!$FP$116","v":0},{"$f":"CntyDataLink!$FQ$116","v":11},null,{"$f":"CntyDataLink!$AH$160","v":15},{"$f":"CntyDataLink!$AI$160","v":17},{"$f":"CntyDataLink!$BR$160","v":0},{"$f":"CntyDataLink!$BS$160","v":11}]
[]
[null,null,"Total Households",{"$f":"CntyDataLink!$B$116","v":1809},{"$f":"CntyDataLink!$C$116","v":114},null,{"$f":"CntyDataLink!$AL$116","v":46},{"$f":"CntyDataLink!$AM$116","v":42},null,{"$f":"CntyDataLink!$BT$116","v":496},{"$f":"CntyDataLink!$BU$116","v":85},null,{"$f":"CntyDataLink!$DB$116","v":846},{"$f":"CntyDataLink!$DC$116","v":104},null,{"$f":"CntyDataLink!$EJ$116","v":421},{"$f":"CntyDataLink!$EK$116","v":85},null,{"$f":"CntyDataLink!$B$160","v":1147},{"$f":"CntyDataLink!$C$160","v":92},{"$f":"CntyDataLink!$AL$160","v":662},{"$f":"CntyDataLink!$AM$160","v":137}]
[null,null,"Median Household Inc ",{"$f":"CntyDataLink!$FR$116","v":56046},{"$f":"CntyDataLink!$FS$116","v":4058},null,{"$f":"CntyDataLink!$FT$116","v":56042},{"$f":"CntyDataLink!$FU$116","v":52443},null,{"$f":"CntyDataLink!$FV$116","v":55086},{"$f":"CntyDataLink!$FW$116","v":24220},null,{"$f":"CntyDataLink!$FX$116","v":72000},{"$f":"CntyDataLink!$FY$116","v":16753},null,{"$f":"CntyDataLink!$FZ$116","v":32656},{"$f":"CntyDataLink!$GA$116","v":16994},null,{"$f":"CntyDataLink!$AJ$160","v":68177},{"$f":"CntyDataLink!$AK$160","v":9462},{"$f":"CntyDataLink!BT$160","v":35345},{"$f":"CntyDataLink!$BU$160","v":6331}]
[]
[null,null,"Source: 2015-2019 American Community Survey Table B19001; B19037; B19101;  B19102; B19112; B19113; B19049"]
[null,null,"Data from the American Community Survey are estimates"]
[]
[null,null,{"$f":"C2","v":"Allenstown"}]
[null,null,"INCOME CHARACTERISTICS"]
[]
[]
[]
[]
[]
[]
[]
[]
[]
[]
[]
[]
[]
[]
[]
[]
[]
[]
[]
[]
[]
[]
[]
[]
[]
[]
[]
[]
[]
[]
[]
[null,null,"Source: 2015-2019 American Community Survey Tables B19001; B19102",null,null,null,null,null,null,null,null,null,null,null,null,"Data from the American Community Survey are estimates"]

{"sheet":"HHIncomeByTenure","index":13,"n_rows":64,"n_cols":17,"rows_kept":64,"cut":false,"hidden":true,"merged":[[2,3,2,5],[58,3,58,6],[58,8,58,11],[58,13,58,16],[59,3,59,6],[59,8,59,11],[59,13,59,16],[63,3,63,4],[63,8,63,9],[63,13,63,14],[61,3,61,4],[61,8,61,9],[61,13,61,14],[62,3,62,4],[62,8,62,9],[62,13,62,14]]}
[]
[null,null,null,{"$f":"CntyDataLink!A80","v":"Allenstown"}]
[null,null,null,"INCOME CHARACTERISTICS"]
[]
[]
[]
[]
[]
[]
[]
[]
[]
[]
[]
[]
[]
[]
[]
[]
[]
[]
[]
[]
[]
[]
[]
[]
[null,null,null,{"$f":"D2","v":"Allenstown"}]
[null,null,null,"Household Income By Tenure"]
[null,null,null,null,null,"2019 Household Income 1",null,"Occupied Housing Units","Margin of Error Occupied Housing Units","Owner Occupied Housing Units","Margin of Error Owner Occupied Housing Units","Renter Occupied Housing Units","Margin of Error Renter Occupied Housing Units"]
[]
[null,null,null,null,null,"Total",null,{"$f":"CntyDataLink!$B$128","v":1809},{"$f":"CntyDataLink!$C$128","v":114},{"$f":"CntyDataLink!$D$128","v":1333},{"$f":"CntyDataLink!$E$128","v":125},{"$f":"CntyDataLink!$AB$128","v":476},{"$f":"CntyDataLink!$AC$128","v":112}]
[null,null,null,4999,{"$f":"VALUE(RIGHT(F33,7))","v":5000},"Less Than $5,000",null,{"$f":"CntyDataLink!$AZ$128","v":48},{"$f":"CntyDataLink!$BA$128","v":36.891733491393431},{"$f":"CntyDataLink!$F$128","v":32},{"$f":"CntyDataLink!$G$128","v":31},{"$f":"CntyDataLink!$AD$128","v":16},{"$f":"CntyDataLink!$AE$128","v":20}]
[null,null,{"$f":"VALUE(RIGHT($F33,7))","v":5000},4999,10000,"$5,000 to $10,000",null,{"$f":"CntyDataLink!$BB$128","v":15},{"$f":"CntyDataLink!$BC$128","v":25.495097567963924},{"$f":"CntyDataLink!$H$128","v":15},{"$f":"CntyDataLink!$I$128","v":23},{"$f":"CntyDataLink!$AF$128","v":0},{"$f":"CntyDataLink!$AG$128","v":11}]
[null,null,10000,4999,15000,"$10,000 to $15,000",null,{"$f":"CntyDataLink!$BD$128","v":186},{"$f":"CntyDataLink!$BE$128","v":72.615425358528341},{"$f":"CntyDataLink!$J$128","v":29},{"$f":"CntyDataLink!$K$128","v":28},{"$f":"CntyDataLink!$AH$128","v":157},{"$f":"CntyDataLink!$AI$128","v":67}]
[null,null,15000,4999,20000,"$15,000 to $20,000",null,{"$f":"CntyDataLink!$BF$128","v":25},{"$f":"CntyDataLink!$BG$128","v":22.472205054244231},{"$f":"CntyDataLink!$L$128","v":18},{"$f":"CntyDataLink!$M$128","v":19},{"$f":"CntyDataLink!$AJ$128","v":7},{"$f":"CntyDataLink!$AK$128","v":12}]
[null,null,20000,4999,25000,"$20,000 to $25,000",null,{"$f":"CntyDataLink!$BH$128","v":23},{"$f":"CntyDataLink!$BI$128","v":24.413111231467404},{"$f":"CntyDataLink!$N$128","v":14},{"$f":"CntyDataLink!$O$128","v":20},{"$f":"CntyDataLink!$AL$128","v":9},{"$f":"CntyDataLink!$AM$128","v":14}]
[null,null,25000,9999,35000,"$25,000 to $35,000",null,{"$f":"CntyDataLink!$BJ$128","v":245},{"$f":"CntyDataLink!$BK$128","v":95.210293561148106},{"$f":"CntyDataLink!$P$128","v":208},{"$f":"CntyDataLink!$Q$128","v":91},{"$f":"CntyDataLink!$AN$128","v":37},{"$f":"CntyDataLink!$AO$128","v":28}]
[null,null,35000,14999,50000,"$35,000 to $50,000",null,{"$f":"CntyDataLink!$BL$128","v":243},{"$f":"CntyDataLink!$BM$128","v":86.556340033529608},{"$f":"CntyDataLink!$R$128","v":162},{"$f":"CntyDataLink!$S$128","v":66},{"$f":"CntyDataLink!$AP$128","v":81},{"$f":"CntyDataLink!$AQ$128","v":56}]
[null,null,50000,24999,75000,"$50,000 to $75,000",null,{"$f":"CntyDataLink!$BN$128","v":412},{"$f":"CntyDataLink!$BO$128","v":113.74093370462545},{"$f":"CntyDataLink!$T$128","v":303},{"$f":"CntyDataLink!$U$128","v":96},{"$f":"CntyDataLink!$AR$128","v":109},{"$f":"CntyDataLink!$AS$128","v":61}]
[null,null,75000,24999,100000,"$75,000 to $100,000",null,{"$f":"CntyDataLink!$BP$128","v":251},{"$f":"CntyDataLink!$BQ$128","v":82.28000972289685},{"$f":"CntyDataLink!$V$128","v":226},{"$f":"CntyDataLink!$W$128","v":79},{"$f":"CntyDataLink!$AT$128","v":25},{"$f":"CntyDataLink!$AU$128","v":23}]
[null,null,100000,49999,150000,"$100,000 to $150,000",null,{"$f":"CntyDataLink!$BR$128","v":227},{"$f":"CntyDataLink!$BS$128","v":78.03204469959762},{"$f":"CntyDataLink!$X$128","v":192},{"$f":"CntyDataLink!$Y$128","v":67},{"$f":"CntyDataLink!$AV$128","v":35},{"$f":"CntyDataLink!$AW$128","v":40}]
[null,null,150000,null,null,"$150,000 and More",null,{"$f":"CntyDataLink!$BT$128","v":134},{"$f":"CntyDataLink!$BU$128","v":66.91038783328041},{"$f":"CntyDataLink!$Z$128","v":134},{"$f":"CntyDataLink!$AA$128","v":66},{"$f":"CntyDataLink!$AX$128","v":0},{"$f":"CntyDataLink!$AY$128","v":11}]
[]
[]
[null,null,null,null,null,"Median Household Income 2",null,{"$f":"CntyDataLink!$BV$128","v":56046},{"$f":"CntyDataLink!$BW$128","v":4058},{"$f":"CntyDataLink!$BX$128","v":64869},{"$f":"CntyDataLink!$BY$128","v":7492},{"$f":"CntyDataLink!$BZ$128","v":36200},{"$f":"CntyDataLink!$CA$128","v":8277}]
[]
[]
[null,null,null,null,null,"Data from the American Community Survey are estimates"]
[]
[null,null,null,"Source:",1,"2015-2019 American Community Survey Table B25118;  2019 Inflation Adjusted dollars"]
[null,null,null,null,2,"2015-2019 American Community Survey Table B25119;  2019 Inflation Adjusted dollars"]
[]
[]
[]
[null,null,null,"HOUSEHOLD INCOME IN THE PAST 12 MONTHS BY PERCENT OF MEDIAN THRESHOLD"]
[]
[]
[null,null,null,"All Occupied Housing Units",null,null,null,null,"Owner Occupied Households",null,null,null,null,"Renter Occupied Households"]
[]
[null,null,null,"HOUSEHOLD INCOME",null,"Estimate","Margin Of Error",null,"HOUSEHOLD INCOME",null,"Estimate","Margin Of Error",null,"HOUSEHOLD INCOME",null,"Estimate","Margin Of Error"]
[null,null,{"$f":"$H$46*0.3","v":16813.8},"30% of Median Household Income",null,{"$f":"IF($C$62<$C$36,((($C$62-$C$35)/$D$35)*$H$35)+SUM($H$33:$H$34),IF($C$62<$C$37,((($C$62-$C$36)/$D$36)*$H$36)+SUM($H$33:$H$35),IF($C$62<$C$38,((($C$62-$C$37)/$D$37)*$H$37)+SUM($H$33:$H$36),IF($C$62<$C$39,((($C$62-$C$38)/$D$38)*$H$38)+SUM($H$33:$H$37),IF($C$62<$C$40,((($C$62-$C$39)/$D$39)*$H$39)+SUM($H$33:$H$38),IF($C$62<$C$41,((($C$62-$C$40)/$D$40)*$H$40)+SUM($H$33:$H$39),IF($C$62<$C$42,((($C$62-$C$41)/$D$41)*$H$41)+SUM($H$33:$H$40),\"False\")))))))","v":258.07081416283256},{"$f":"IF($C$62<$C$36,((($C$62-$C$35)/$D$35)*$I$35)+SQRT(SUM(($I$33^2),($I$34^2))),IF($C$62<$C$37,((($C$62-$C$36)/$D$36)*$I$36)+SQRT(SUM(($I$33^2),($I$34^2),($I$35^2))),IF($C$62<$C$38,((($C$62-$C$37)/$D$37)*$I$37)+SQRT(SUM(($I$33^2),($I$34^2),($I$35^2),($I$36^2))),IF($C$62<$C$39,((($C$62-$C$38)/$D$38)*$I$38)+SQRT(SUM(($I$33^2),($I$34^2),($I$35^2),($I$36^2),($I$37^2))),IF($C$62<$C$40,((($C$62-$C$39)/$D$39)*$I$39)+SQRT(SUM(($I$33^2),($I$34^2),($I$35^2),($I$36^2),($I$37^2),($I$38^2))),IF($C$62<$C$41,((($C$62-$C$40)/$D$40)*$I$40)+SQRT(SUM(($I$33^2),($I$34^2),($I$35^2),($I$36^2),($I$37^2),($I$38^2),($I$39^2))),IF($C$62<$C$42,((($C$62-$C$41)/$D$41)*$I$41)+SQRT((($I$33^2)+($I$34^2)+($I$35^2)+($I$36^2)+($I$37^2)+($I$38^2)+($I$39^2)+($I$40^2))),\"False\")))))))","v":93.500001008452116},{"$f":"$J$46*0.3","v":19460.7},"30% of Median Household Income",null,{"$f":"IF($H$62<$C$36,((($H$62-$C$35)/$D$35)*$J$35)+SUM($J$33:$J$34),IF($H$62<$C$37,((($H$62-$C$36)/$D$36)*$J$36)+SUM($J$33:$J$35),IF($H$62<$C$38,((($H$62-$C$37)/$D$37)*$J$37)+SUM($J$33:$J$36),IF($H$62<$C$39,((($H$62-$C$38)/$D$38)*$J$38)+SUM($J$33:$J$37),IF($H$62<$C$40,((($H$62-$C$39)/$D$39)*$J$39)+SUM($J$33:$J$38),IF($H$62<$C$41,((($H$62-$C$40)/$D$40)*$J$40)+SUM($J$33:$J$39),IF($H$62<$C$42,((($H$62-$C$41)/$D$41)*$J$41)+SUM($J$33:$J$40),\"False\")))))))","v":92.061732346469299},{"$f":"IF($H$62<$C$36,((($H$62-$C$35)/$D$35)*$K$35)+SQRT(SUM(($K$33^2),($K$34^2))),IF($H$62<$C$37,((($H$62-$C$36)/$D$36)*$K$36)+SQRT(SUM(($K$33^2),($K$34^2),($K$35^2))),IF($H$62<$C$38,((($H$62-$C$37)/$D$37)*$K$37)+SQRT(SUM(($K$33^2),($K$34^2),($K$35^2),($K$36^2))),IF($H$62<$C$39,((($H$62-$C$38)/$D$38)*$K$38)+SQRT(SUM(($K$33^2),($K$34^2),($K$35^2),($K$36^2),($K$37^2))),IF($H$62<$C$40,((($H$62-$C$39)/$D$39)*$K$39)+SQRT(SUM(($K$33^2),($K$34^2),($K$35^2),($K$36^2),($K$37^2),($K$38^2))),IF($H$62<$C$41,((($H$62-$C$40)/$D$40)*$K$40)+SQRT(SUM(($K$33^2),($K$34^2),($K$35^2),($K$36^2),($K$37^2),($K$38^2),($K$39^2))),IF($H$62<$C$42,((($H$62-$C$41)/$D$41)*$K$41)+SQRT((($K$33^2)+($K$34^2)+($K$35^2)+($K$36^2)+($K$37^2)+($K$38^2)+($K$39^2)+($K$40^2))),\"False\")))))))","v":64.640526880427487},{"$f":"$L$46*0.3","v":10860},"30% of Median Household Income",null,{"$f":"IF($M$62<$C$36,((($M$62-$C$35)/$D$35)*$L$35)+SUM($L$33:$L$34),IF($M$62<$C$37,((($M$62-$C$36)/$D$36)*$L$36)+SUM($L$33:$L$35),IF($M$62<$C$38,((($M$62-$C$37)/$D$37)*$L$37)+SUM($L$33:$L$36),IF($M$62<$C$39,((($M$62-$C$38)/$D$38)*$L$38)+SUM($L$33:$L$37),IF($M$62<$C$40,((($M$62-$C$39)/$D$39)*$L$39)+SUM($L$33:$L$38),IF($M$62<$C$41,((($M$62-$C$40)/$D$40)*$L$40)+SUM($L$33:$L$39),IF($M$62<$C$42,((($M$62-$C$41)/$D$41)*$L$41)+SUM($L$33:$L$40),\"False\")))))))","v":43.009401880376075},{"$f":"IF($M$62<$C$36,((($M$62-$C$35)/$D$35)*$M$35)+SQRT(SUM(($M$33^2),($M$34^2))),IF($M$62<$C$37,((($M$62-$C$36)/$D$36)*$M$36)+SQRT(SUM(($M$33^2),($M$34^2),($M$35^2))),IF($M$62<$C$38,((($M$62-$C$37)/$D$37)*$M$37)+SQRT(SUM(($M$33^2),($M$34^2),($M$35^2),($M$36^2))),IF($M$62<$C$39,((($M$62-$C$38)/$D$38)*$M$38)+SQRT(SUM(($M$33^2),($M$34^2),($M$35^2),($M$36^2),($M$37^2))),IF($M$62<$C$40,((($M$62-$C$39)/$D$39)*$M$39)+SQRT(SUM(($M$33^2),($M$34^2),($M$35^2),($M$36^2),($M$37^2),($M$38^2))),IF($M$62<$C$41,((($M$62-$C$40)/$D$40)*$M$40)+SQRT(SUM(($M$33^2),($M$34^2),($M$35^2),($M$36^2),($M$37^2),($M$38^2),($M$39^2))),IF($M$62<$C$42,((($M$62-$C$41)/$D$41)*$M$41)+SQRT((($M$33^2)+($M$34^2)+($M$35^2)+($M$36^2)+($M$37^2)+($M$38^2)+($M$39^2)+($M$40^2))),\"False\")))))))","v":34.351729682078862}]
[490,null,{"$f":"$H$46*0.5","v":28023},"50% of Median Household Income",null,{"$f":"IF($C$63<$C$36,((($C$63-$C$35)/$D$35)*$H$35)+SUM($H$33:$H$34),IF($C$63<$C$37,((($C$63-$C$36)/$D$36)*$H$36)+SUM($H$33:$H$35),IF($C$63<$C$38,((($C$63-$C$37)/$D$37)*$H$37)+SUM($H$33:$H$36),IF($C$63<$C$39,((($C$63-$C$38)/$D$38)*$H$38)+SUM($H$33:$H$37),IF($C$63<$C$40,((($C$63-$C$39)/$D$39)*$H$39)+SUM($H$33:$H$38),IF($C$63<$C$41,((($C$63-$C$40)/$D$40)*$H$40)+SUM($H$33:$H$39),IF($C$63<$C$42,((($C$63-$C$41)/$D$41)*$H$41)+SUM($H$33:$H$40),\"False\")))))))","v":371.07090709070906},{"$f":"IF($C$63<$C$36,((($C$63-$C$35)/$D$35)*$I$35)+SQRT(SUM(($I$33^2),($I$34^2))),IF($C$63<$C$37,((($C$63-$C$36)/$D$36)*$I$36)+SQRT(SUM(($I$33^2),($I$34^2),($I$35^2))),IF($C$63<$C$38,((($C$63-$C$37)/$D$37)*$I$37)+SQRT(SUM(($I$33^2),($I$34^2),($I$35^2),($I$36^2))),IF($C$63<$C$39,((($C$63-$C$38)/$D$38)*$I$38)+SQRT(SUM(($I$33^2),($I$34^2),($I$35^2),($I$36^2),($I$37^2))),IF($C$63<$C$40,((($C$63-$C$39)/$D$39)*$I$39)+SQRT(SUM(($I$33^2),($I$34^2),($I$35^2),($I$36^2),($I$37^2),($I$38^2))),IF($C$63<$C$41,((($C$63-$C$40)/$D$40)*$I$40)+SQRT(SUM(($I$33^2),($I$34^2),($I$35^2),($I$36^2),($I$37^2),($I$38^2),($I$39^2))),IF($C$63<$C$42,((($C$63-$C$41)/$D$41)*$I$41)+SQRT((($I$33^2)+($I$34^2)+($I$35^2)+($I$36^2)+($I$37^2)+($I$38^2)+($I$39^2)+($I$40^2))),\"False\")))))))","v":120.35459586417005},{"$f":"$J$46*0.5","v":32434.5},"50% of Median Household Income",null,{"$f":"IF($H$63<$C$36,((($H$63-$C$35)/$D$35)*$J$35)+SUM($J$33:$J$34),IF($H$63<$C$37,((($H$63-$C$36)/$D$36)*$J$36)+SUM($J$33:$J$35),IF($H$63<$C$38,((($H$63-$C$37)/$D$37)*$J$37)+SUM($J$33:$J$36),IF($H$63<$C$39,((($H$63-$C$38)/$D$38)*$J$38)+SUM($J$33:$J$37),IF($H$63<$C$40,((($H$63-$C$39)/$D$39)*$J$39)+SUM($J$33:$J$38),IF($H$63<$C$41,((($H$63-$C$40)/$D$40)*$J$40)+SUM($J$33:$J$39),IF($H$63<$C$42,((($H$63-$C$41)/$D$41)*$J$41)+SUM($J$33:$J$40),\"False\")))))))","v":262.65306530653066},{"$f":"IF($H$63<$C$36,((($H$63-$C$35)/$D$35)*$K$35)+SQRT(SUM(($K$33^2),($K$34^2))),IF($H$63<$C$37,((($H$63-$C$36)/$D$36)*$K$36)+SQRT(SUM(($K$33^2),($K$34^2),($K$35^2))),IF($H$63<$C$38,((($H$63-$C$37)/$D$37)*$K$37)+SQRT(SUM(($K$33^2),($K$34^2),($K$35^2),($K$36^2))),IF($H$63<$C$39,((($H$63-$C$38)/$D$38)*$K$38)+SQRT(SUM(($K$33^2),($K$34^2),($K$35^2),($K$36^2),($K$37^2))),IF($H$63<$C$40,((($H$63-$C$39)/$D$39)*$K$39)+SQRT(SUM(($K$33^2),($K$34^2),($K$35^2),($K$36^2),($K$37^2),($K$38^2))),IF($H$63<$C$41,((($H$63-$C$40)/$D$40)*$K$40)+SQRT(SUM(($K$33^2),($K$34^2),($K$35^2),($K$36^2),($K$37^2),($K$38^2),($K$39^2))),IF($H$63<$C$42,((($H$63-$C$41)/$D$41)*$K$41)+SQRT((($K$33^2)+($K$34^2)+($K$35^2)+($K$36^2)+($K$37^2)+($K$38^2)+($K$39^2)+($K$40^2))),\"False\")))))))","v":122.75155015496443},{"$f":"$L$46*0.5","v":18100},"50% of Median Household Income",null,{"$f":"IF($M$63<$C$36,((($M$63-$C$35)/$D$35)*$L$35)+SUM($L$33:$L$34),IF($M$63<$C$37,((($M$63-$C$36)/$D$36)*$L$36)+SUM($L$33:$L$35),IF($M$63<$C$38,((($M$63-$C$37)/$D$37)*$L$37)+SUM($L$33:$L$36),IF($M$63<$C$39,((($M$63-$C$38)/$D$38)*$L$38)+SUM($L$33:$L$37),IF($M$63<$C$40,((($M$63-$C$39)/$D$39)*$L$39)+SUM($L$33:$L$38),IF($M$63<$C$41,((($M$63-$C$40)/$D$40)*$L$40)+SUM($L$33:$L$39),IF($M$63<$C$42,((($M$63-$C$41)/$D$41)*$L$41)+SUM($L$33:$L$40),\"False\")))))))","v":177.34086817363473},{"$f":"IF($M$63<$C$36,((($M$63-$C$35)/$D$35)*$M$35)+SQRT(SUM(($M$33^2),($M$34^2))),IF($M$63<$C$37,((($M$63-$C$36)/$D$36)*$M$36)+SQRT(SUM(($M$33^2),($M$34^2),($M$35^2))),IF($M$63<$C$38,((($M$63-$C$37)/$D$37)*$M$37)+SQRT(SUM(($M$33^2),($M$34^2),($M$35^2),($M$36^2))),IF($M$63<$C$39,((($M$63-$C$38)/$D$38)*$M$38)+SQRT(SUM(($M$33^2),($M$34^2),($M$35^2),($M$36^2),($M$37^2))),IF($M$63<$C$40,((($M$63-$C$39)/$D$39)*$M$39)+SQRT(SUM(($M$33^2),($M$34^2),($M$35^2),($M$36^2),($M$37^2),($M$38^2))),IF($M$63<$C$41,((($M$63-$C$40)/$D$40)*$M$40)+SQRT(SUM(($M$33^2),($M$34^2),($M$35^2),($M$36^2),($M$37^2),($M$38^2),($M$39^2))),IF($M$63<$C$42,((($M$63-$C$41)/$D$41)*$M$41)+SQRT((($M$33^2)+($M$34^2)+($M$35^2)+($M$36^2)+($M$37^2)+($M$38^2)+($M$39^2)+($M$40^2))),\"False\")))))))","v":78.222841774405083}]
[null,null,{"$f":"$H$46*0.8","v":44836.800000000003},"80% of Median Household Income",null,{"$f":"IF($C$64<$C$36,((($C$64-$C$35)/$D$35)*$H$35)+SUM($H$33:$H$34),IF($C$64<$C$37,((($C$64-$C$36)/$D$36)*$H$36)+SUM($H$33:$H$35),IF($C$64<$C$38,((($C$64-$C$37)/$D$37)*$H$37)+SUM($H$33:$H$36),IF($C$64<$C$39,((($C$64-$C$38)/$D$38)*$H$38)+SUM($H$33:$H$37),IF($C$64<$C$40,((($C$64-$C$39)/$D$39)*$H$39)+SUM($H$33:$H$38),IF($C$64<$C$41,((($C$64-$C$40)/$D$40)*$H$40)+SUM($H$33:$H$39),IF($C$64<$C$42,((($C$64-$C$41)/$D$41)*$H$41)+SUM($H$33:$H$40),\"False\")))))))","v":701.36678445229688},{"$f":"IF($C$64<$C$36,((($C$64-$C$35)/$D$35)*$I$35)+SQRT(SUM(($I$33^2),($I$34^2))),IF($C$64<$C$37,((($C$64-$C$36)/$D$36)*$I$36)+SQRT(SUM(($I$33^2),($I$34^2),($I$35^2))),IF($C$64<$C$38,((($C$64-$C$37)/$D$37)*$I$37)+SQRT(SUM(($I$33^2),($I$34^2),($I$35^2),($I$36^2))),IF($C$64<$C$39,((($C$64-$C$38)/$D$38)*$I$38)+SQRT(SUM(($I$33^2),($I$34^2),($I$35^2),($I$36^2),($I$37^2))),IF($C$64<$C$40,((($C$64-$C$39)/$D$39)*$I$39)+SQRT(SUM(($I$33^2),($I$34^2),($I$35^2),($I$36^2),($I$37^2),($I$38^2))),IF($C$64<$C$41,((($C$64-$C$40)/$D$40)*$I$40)+SQRT(SUM(($I$33^2),($I$34^2),($I$35^2),($I$36^2),($I$37^2),($I$38^2),($I$39^2))),IF($C$64<$C$42,((($C$64-$C$41)/$D$41)*$I$41)+SQRT((($I$33^2)+($I$34^2)+($I$35^2)+($I$36^2)+($I$37^2)+($I$38^2)+($I$39^2)+($I$40^2))),\"False\")))))))","v":188.86472626422588},{"$f":"$J$46*0.8","v":51895.200000000004},"80% of Median Household Income",null,{"$f":"IF($H$64<$C$36,((($H$64-$C$35)/$D$35)*$J$35)+SUM($J$33:$J$34),IF($H$64<$C$37,((($H$64-$C$36)/$D$36)*$J$36)+SUM($J$33:$J$35),IF($H$64<$C$38,((($H$64-$C$37)/$D$37)*$J$37)+SUM($J$33:$J$36),IF($H$64<$C$39,((($H$64-$C$38)/$D$38)*$J$38)+SUM($J$33:$J$37),IF($H$64<$C$40,((($H$64-$C$39)/$D$39)*$J$39)+SUM($J$33:$J$38),IF($H$64<$C$41,((($H$64-$C$40)/$D$40)*$J$40)+SUM($J$33:$J$39),IF($H$64<$C$42,((($H$64-$C$41)/$D$41)*$J$41)+SUM($J$33:$J$40),\"False\")))))))","v":500.97074282971323},{"$f":"IF($H$64<$C$36,((($H$64-$C$35)/$D$35)*$K$35)+SQRT(SUM(($K$33^2),($K$34^2))),IF($H$64<$C$37,((($H$64-$C$36)/$D$36)*$K$36)+SQRT(SUM(($K$33^2),($K$34^2),($K$35^2))),IF($H$64<$C$38,((($H$64-$C$37)/$D$37)*$K$37)+SQRT(SUM(($K$33^2),($K$34^2),($K$35^2),($K$36^2))),IF($H$64<$C$39,((($H$64-$C$38)/$D$38)*$K$38)+SQRT(SUM(($K$33^2),($K$34^2),($K$35^2),($K$36^2),($K$37^2))),IF($H$64<$C$40,((($H$64-$C$39)/$D$39)*$K$39)+SQRT(SUM(($K$33^2),($K$34^2),($K$35^2),($K$36^2),($K$37^2),($K$38^2))),IF($H$64<$C$41,((($H$64-$C$40)/$D$40)*$K$40)+SQRT(SUM(($K$33^2),($K$34^2),($K$35^2),($K$36^2),($K$37^2),($K$38^2),($K$39^2))),IF($H$64<$C$42,((($H$64-$C$41)/$D$41)*$K$41)+SQRT((($K$33^2)+($K$34^2)+($K$35^2)+($K$36^2)+($K$37^2)+($K$38^2)+($K$39^2)+($K$40^2))),\"False\")))))))","v":132.46571795059521},{"$f":"$L$46*0.8","v":28960},"80% of Median Household Income",null,{"$f":"IF($M$64<$C$36,((($M$64-$C$35)/$D$35)*$L$35)+SUM($L$33:$L$34),IF($M$64<$C$37,((($M$64-$C$36)/$D$36)*$L$36)+SUM($L$33:$L$35),IF($M$64<$C$38,((($M$64-$C$37)/$D$37)*$L$37)+SUM($L$33:$L$36),IF($M$64<$C$39,((($M$64-$C$38)/$D$38)*$L$38)+SUM($L$33:$L$37),IF($M$64<$C$40,((($M$64-$C$39)/$D$39)*$L$39)+SUM($L$33:$L$38),IF($M$64<$C$41,((($M$64-$C$40)/$D$40)*$L$40)+SUM($L$33:$L$39),IF($M$64<$C$42,((($M$64-$C$41)/$D$41)*$L$41)+SUM($L$33:$L$40),\"False\")))))))","v":203.65346534653466},{"$f":"IF($M$64<$C$36,((($M$64-$C$35)/$D$35)*$M$35)+SQRT(SUM(($M$33^2),($M$34^2))),IF($M$64<$C$37,((($M$64-$C$36)/$D$36)*$M$36)+SQRT(SUM(($M$33^2),($M$34^2),($M$35^2))),IF($M$64<$C$38,((($M$64-$C$37)/$D$37)*$M$37)+SQRT(SUM(($M$33^2),($M$34^2),($M$35^2),($M$36^2))),IF($M$64<$C$39,((($M$64-$C$38)/$D$38)*$M$38)+SQRT(SUM(($M$33^2),($M$34^2),($M$35^2),($M$36^2),($M$37^2))),IF($M$64<$C$40,((($M$64-$C$39)/$D$39)*$M$39)+SQRT(SUM(($M$33^2),($M$34^2),($M$35^2),($M$36^2),($M$37^2),($M$38^2))),IF($M$64<$C$41,((($M$64-$C$40)/$D$40)*$M$40)+SQRT(SUM(($M$33^2),($M$34^2),($M$35^2),($M$36^2),($M$37^2),($M$38^2),($M$39^2))),IF($M$64<$C$42,((($M$64-$C$41)/$D$41)*$M$41)+SQRT((($M$33^2)+($M$34^2)+($M$35^2)+($M$36^2)+($M$37^2)+($M$38^2)+($M$39^2)+($M$40^2))),\"False\")))))))","v":84.232803102530056}]

{"sheet":"Updates","index":14,"n_rows":50,"n_cols":3,"rows_kept":50,"cut":false,"hidden":false,"merged":[[39,2,39,11],[40,2,40,11],[38,2,38,11],[47,2,47,11],[48,2,48,11],[49,2,49,11],[41,2,41,11],[42,2,42,11],[43,2,43,11],[44,2,44,11],[45,2,45,11],[46,2,46,11],[34,2,34,11],[35,2,35,11],[36,2,36,11],[37,2,37,11],[33,2,33,11],[32,2,32,11],[30,2,30,11],[28,2,28,11],[24,2,24,12],[17,2,17,11],[18,2,18,11],[19,2,19,11],[20,2,20,11],[29,2,29,11],[27,2,27,11],[26,2,26,11],[25,2,25,11],[23,2,23,11],[22,2,22,11],[21,2,21,11],[10,2,10,11],[0,2,0,11],[1,2,1,11],[31,2,31,11],[13,2,13,11],[14,2,14,11],[15,2,15,11],[2,2,2,11],[16,2,16,11],[12,2,12,11],[11,2,11,11],[9,2,9,11],[8,2,8,11],[7,2,7,11],[6,2,6,11],[5,2,5,11]]}
["Important Notes"]
[]
["Date",null,"Task"]
[]
[]
["2020-12-18",null,"Updated 2015-2019 ACS data and 2019 NH Permit Data"]
["2020-09-10",null,"Updated 2005-2009 amd 2010-2014 Historical Data"]
["2020-07-10",null,"Updated 2019 Unemployment Rate and Labor Force Data to Employment, Wages, LaborForce & Unemp. Worksheet for large communities."]
["2019-12-31",null,"Updated Visual Basic Code changing the footer font from Gotham Medium to Verdana."]
["2019-12-27",null,"Updated with 2014-2018 ACS Data. Updated 2018 Permit data. Updated CPI Adjustment Factor (1.02437673) to the 2009-2013 and 2014-2018 Income Comparison Table. This factor was provided by Census"]
["2019-11-27",null,"Updated the 2009-2013 ACS data for comparison purposes."]
["2019-09-17",null,"Updated 2018 Annual Employment and Wage data; updated Housing and Employment worksheet."]
["2018-12-19",null,"Updated 2017 Annual Employment and Wage data; updated Housing and Employment worksheet. Updated 2017 Permit data"]
["2018-12-13",null,"Updated the 2008-2012 ACS data for comparison purposes. Updated CPI Adjustment Factor (1.0676) to the 2008-2012 and 2013-2017  Income Comparison Table. This factor was provided by Census."]
["2018-12-06",null,"Updated labels in workbook to reflect 2013-2017 data set and 2008-2012 comparison data set. Updated footer text.; updated 2013-2017 ACS Data"]
["2018-08-16",null,"Updated Charts with new format."]
["2018-05-09",null,"Updated 2017 Unemployment Rate and Labor Force Data to Employment, Wages, LaborForce & Unemp. Worksheet for large communities."]
["2017-12-18",null,"Updated 2016 NH Permit Data"]
["2017-12-12",null,"Updated Charts with 2012-2016 data; updated code to reflect additional data points in various tables. Updated CPI Adjustment Factor (1.06686838) to the 2007-2011 and 2012-2016 Income Comparison Table. This factor was provided by Census."]
["2017-11-16",null,"Updated the 2007-2011 ACS data for comparison purposes."]
["2017-10-13",null,"Updated 2016 Annual Employment and Wage data; updated Housing and Employment worksheet"]
["2017-05-15",null,"Updated 2016 Unemployment Rate and Labor Force Data to Employment, Wages, LaborForce & Unemp. Worksheet for large communities."]
["2017-01-05",null,"Verified Charts; Added 2015 Permit Data; Updated Housing and Permit data"]
["2016-12-29",null,"Updated the 2006-2010 ACS data for comparison purposes."]
["2016-12-23",null,"Updated Town Comparisons: Employment and Housing with 2015 data"]
["2016-12-20",null,"Updated Charts with 2011-2015 data; updated code to reflect additional data points in various tables. Updated CPI Adjustment Factor (1.08710584) to the 2006-2010 and 2011-2015 Income Comparison Table. This factor was provided by Census."]
["2016-12-16",null,"Updated 2011-2015 ACS Data"]
["2016-10-31",null,"Updated 2015 Annual Employment and Wage data"]
["2016-08-09",null,"Updated Labor Force and Unemployment data for the specific towns: Concord; Derry; Dover; Hudson; Londonderry; Manchester; Merrimack; Nashua; Rochester; and Salem"]
["2016-01-14",null,"Fixed error in School Attainment worksheet - Graduate or Professional Degree data."]
["2016-01-07",null,"Fixed formula in Poverty worksheet; fixed Non-Family Persons per Household data; fixed legend of Rental Cost Charts."]
["2015-12-23",null,"Fixed Table ACS_B25074"]
["2015-12-17",null,"Updated Code to correct an error on the OwnerHousingCost "]
["2015-12-11",null,"Updated Code to correct an error on the RentalHousingCost worksheet; updated column names on CntyDataLink."]
["2015-12-09",null,"Updated 2010-2014 ACS Data"]
["2015-12-07",null,"Updated Permit Data and all appropriate charts."]
["2015-12-03",null,"Updated the CPI Adjustment Factor (1.1034264) to the 2005-2009 and 2011-2015 Income Comparison Table."]
["2015-12-02",null,"Updated Color scheme on charts and added correct logo to the charts; Updated RentalHousingCost and OwnerCost worksheet to eliminate a printed page. Charts were moved and reduced in size."]
["2015-10-06",null,"Added County Comparison Employment and Housing data. Added Visual basic code to automatically update footer. Visual basic code will run when Ctrl-j is selected. "]
["2015-09-29",null,"Updated Employment Data"]
["2015-09-18",null,"Updated RentalHousingCost worksheet to accommodate changes to Table B25074; Updated Charts and code to allow for prior 5 year estimates to be update."]
["2015-09-01",null,"Updated   Prior 5 year estimate code on worksheets."]
["2015-08-18",null,"Updated Owner Cost Chart and data. Added Table B25106. Housing Cost burden by Income. Updated 2006-2010 ACS Estimate data."]
["2015-08-06",null,"Corrected the Employment vs. Housing worksheet."]
["2015-03-17",null,"Added Labor Force Data"]
["2014-12-30",null,"Corrected Rental Cost formula."]
["2014-12-17",null,"Corrected and verified household pie charts. All Permit data and employment data has been updated through 2013."]
["2011-10-14",null,"Reformatted the code in the worksheet and corrected an error in the Income Comparison Sheet"]
["2010-12-21",null,"Added Margin of Error information on all applicable ACS Sheets"]
["2010-12-07",null,"Created a calculated Table B19001 in anticipation for the 5 year data.  Table C19001 will not be provided"]

{"sheet":"CntyDataLinkPrior5YearEstimates","index":15,"n_rows":167,"n_cols":183,"rows_kept":167,"cut":false,"hidden":true,"merged":[]}
[1,{"$f":"A1+1","v":2},3,4,5,6,7,8,9,10,11,12,13,14,15,16,17,18,19,20,21,22,23,24,25,26,27,28,29,30,31,32,33,34,35,36,37,38,39,40,41,42,43,44,45,46,47,48,49,50,51,52,53,54,55,56,57,58,59,60,61,62,63,64,65,{"$f":"BM1+1","v":66},67,68,69,70,71,72,73,74,75,76,77,78,79,80,81,82,83,84,85,86,87,88,89,90,91,92,93,94,95,96,97,98,99,100,101,102,103,104,105,106,107,108,109,110,111,112,113,114,115,116,117,118,119,120,121,122,123,124,125,126,127,128,129,{"$f":"DY1+1","v":130},131,132,133,134,135,136,137,138,139,140,141,142,143,144,145,146,147,148,149,150,151,152,153,154,155,156,157,158,159,160,161,162,163,164,165,166,167,168,169,170,171,172,173,174,175,176,177,178,179,180,181,182,183]
[]
["Census 1990 Data -           Query Name:  DPCnty90Census"]
["TownName"]
[{"$f":"VLOOKUP(DropDownList!$A$47,CntyQuery!$A$4:$FI$46,A1)","v":"Allenstown"}]
[]
[]
["Census 1990 Data -    Query Name:  TownSTF1Qry1"]
["NAME"]
[{"$f":"VLOOKUP(DropDownList!$B$47,CntyQuery!$A$51:$CE$93,A$1)","v":"Allenstown"}]
[]
[]
["Census 1990 Data -          Query Name: TownSTF3Qry1"]
["NAME"]
[]
[]
[]
["Other Demo Data -             Query Name: QryAllTowns-ACSDemographicSheet"]
["TOWN_NAME"]
[{"$f":"VLOOKUP(DropDownList!$B$47,CntyQuery!$A$118:$DZ$144,A$1)","v":"Allenstown"}]
[]
[]
["NH Employment Data"]
["AreaName"]
[{"$f":"VLOOKUP(DropDownList!$B$47,CntyQuery!$A$170:$FJ$213,A$1)","v":"Allenstown"}]
[]
[]
[]
["PlaceName"]
[{"$f":"VLOOKUP(DropDownList!$B$47,CntyQryCensus!$A$4:$EF$46,A$1)","v":"Allenstown"}]
[]
[]
["Census 2000   -           Query Name:  TownAllQuery3"]
["NAME"]
[{"$f":"VLOOKUP(DropDownList!$B$47,CntyQryCensus!$A$4:$CW$46,A$1)","v":"Allenstown"}]
[]
[]
["Census 2000 DemoProfile Sample Data Tables 2&3   -  DPTab23TownQry"]
["NAME"]
[{"$f":"VLOOKUP(DropDownList!$B$47,CntyQryCensus!$A$53:$BY$96,A$1)","v":"Allenstown"}]
[]
[]
["Census 2000 DemoProfile Sample Data Table 4   -  DPTab4TownQry"]
["NAME"]
[{"$f":"VLOOKUP(DropDownList!$B$47,CntyQryCensus!$A$103:$CX$146,A$1)","v":"Allenstown"}]
[]
[]
["Census 2000 SummaryFile3 Sample Data  -  SF3TownQry1SocialChar"]
["NAME"]
[{"$f":"VLOOKUP(DropDownList!$B$47,CntyQryCensus!$A$156:$FR$198,A$1)","v":"Allenstown"}]
[]
[]
["Census 2000 SummaryFile3 Sample Data  -  SF3TownQry2aIncomeChar"]
["NAME"]
[{"$f":"VLOOKUP(DropDownList!$B$47,CntyQryCensus!$A$206:$HH$248,A$1)","v":"Allenstown"}]
[]
[]
["Census 2000 SummaryFile3 Sample Data  -  SF3TownQry2bPovertyChar"]
["NAME"]
[{"$f":"VLOOKUP(DropDownList!$B$47,CntyQryCensus!$A$256:$BI$298,A$1)","v":"Allenstown"}]
[]
[]
["Census 2000 SummaryFile3 Sample Data  -  SF3TownQry7HousingA"]
["NAME"]
[{"$f":"VLOOKUP(DropDownList!$B47,CntyQryCensus!$A$306:$GX$348,A$1)","v":"Allenstown"}]
[]
[]
["Census 2000 SummaryFile3 Sample Data  -  SF3TownQry8HousingCostA"]
["NAME"]
[{"$f":"VLOOKUP(DropDownList!$B$47,CntyQryCensus!$A$357:$CM$399,A$1)","v":"Allenstown"}]
[]
[]
["Census 2000 SummaryFile3 Sample Data  -  SF3TownQry8HousingCostB"]
["NAME"]
[{"$f":"VLOOKUP(DropDownList!$B$47,CntyQryCensus!$A$408:$FN$450,A$1)","v":"Allenstown"}]
[]
[]
["Census 2000 SummaryFile3 Sample Data  -  SF3TownQry9HHIncomeByTenure"]
["NAME"]
[{"$f":"VLOOKUP(DropDownList!$B$47,CntyQryCensus!$A$459:$AG$501,A$1)","v":"Allenstown"}]
[]
[]
[]
[]
[]
[{"$f":"VLOOKUP(DropDownList!$B$47,CntyQryCensus!$A$510:$DA$552,A$1)","v":"Allenstown"}]
[]
[]
[]
[]
[]
[]
[]
["Census 2000 SummaryFile3 Sample Data - SF3TownQry10Disabil"]
["NAME"]
[{"$f":"VLOOKUP(DropDownList!$B$47,CntyQryCensus!$A$510:$DA$552,A$1)","v":"Allenstown"}]
[]
[]
[]
[]
[{"$f":"VLOOKUP(DropDownList!$B$47,CntyQryCensus!$A$510:$DA$552,A$1)","v":"Allenstown"}]
[]
[]
[]
["ACS",2,{"$f":"B105+1","v":3},{"$f":"C105+1","v":4},5,6,7,8,9,10,11,{"$f":"K105+1","v":12},13,14,15,{"$f":"O105+1","v":16},17,18,19,20,21,22,23,24,25,26,27,28,29,30,31,32,33,34,35,36,37,38,39,40,41,42,43,44,45,46,47,48,49,50,51,52,53,54,55,56,57,58,59,60,61,62,63,64,65,66,67,{"$f":"BO105+1","v":68},69,70,71,72,73,74,75,76,77,78,79,80,81,82,83,84,85,86,87,88,89,90,91,92,93,94,95,96,97,98,99,100,101,102,103,104,105,106,107,108,109,110,111,112,113,114,115,116,117,118,119,120,121,122,123,124,125]
["Househould Data (Housing Unit Type)"]
["NAME","TotalHU",{"$f":"\"MOE \"&B107","v":"MOE TotalHU"},"TotalOccHU",{"$f":"\"MOE \"&D107","v":"MOE TotalOccHU"},"TotalOwnerOccUn",{"$f":"\"MOE \"&F107","v":"MOE TotalOwnerOccUn"},"TotalRenterOccn",{"$f":"\"MOE \"&H107","v":"MOE TotalRenterOccn"},"TotalVacantUntis",{"$f":"\"MOE \"&J107","v":"MOE TotalVacantUntis"},"VacantUnitsForRent",{"$f":"\"MOE \"&L107","v":"MOE VacantUnitsForRent"},"VacantUnitRentedNotOcc",{"$f":"\"MOE \"&N107","v":"MOE VacantUnitRentedNotOcc"},"VacantUnitForSale",{"$f":"\"MOE \"&P107","v":"MOE VacantUnitForSale"},"VacantUnitSoldNotOcc",{"$f":"\"MOE \"&R107","v":"MOE VacantUnitSoldNotOcc"},"VacantUnitSeasonalRec",{"$f":"\"MOE \"&T107","v":"MOE VacantUnitSeasonalRec"},"TotalPopInHousingUnits",{"$f":"\"MOE \"&V107","v":"MOE TotalPopInHousingUnits"},"OwnerOccPopHousingUnits",{"$f":"\"MOE \"&X107","v":"MOE OwnerOccPopHousingUnits"},"RenterOccPopHousingUnits",{"$f":"\"MOE \"&Z107","v":"MOE RenterOccPopHousingUnits"},"TotalUntis",{"$f":"\"MOE \"&AB107","v":"MOE TotalUntis"},"TotalOwnerOccUnits",{"$f":"\"MOE \"&AD107","v":"MOE TotalOwnerOccUnits"},"SigFamOwnerOcc",{"$f":"\"MOE \"&AF107","v":"MOE SigFamOwnerOcc"},"MultiFamOwnerOcc",{"$f":"\"MOE \"&AH107","v":"MOE MultiFamOwnerOcc"},"MobileOwnerOcc",{"$f":"\"MOE \"&AJ107","v":"MOE MobileOwnerOcc"},"TotalRenterOccUnits",{"$f":"\"MOE \"&AL107","v":"MOE TotalRenterOccUnits"},"SigFamRenterOcc",{"$f":"\"MOE \"&AN107","v":"MOE SigFamRenterOcc"},"MultiFamRenterOcc",{"$f":"\"MOE \"&AP107","v":"MOE MultiFamRenterOcc"},"MobileRenterOcc",{"$f":"\"MOE \"&AR107","v":"MOE MobileRenterOcc"},"TotalSigFamilyUnits",{"$f":"\"MOE \"&AT107","v":"MOE TotalSigFamilyUnits"},"TotalMultiFamilyUnits",{"$f":"\"MOE \"&AV107","v":"MOE TotalMultiFamilyUnits"},"TotalMobileUnits",{"$f":"\"MOE \"&AX107","v":"MOE TotalMobileUnits"},"YrHouseBuilt2005Later",{"$f":"\"MOE \"&AZ107","v":"MOE YrHouseBuilt2005Later"},"YrHouseBuilt2000-2004",{"$f":"\"MOE \"&BB107","v":"MOE YrHouseBuilt2000-2004"},"YrHouseBuilt1990-1999",{"$f":"\"MOE \"&BD107","v":"MOE YrHouseBuilt1990-1999"},"YrHouseBuilt1980-1989",{"$f":"\"MOE \"&BF107","v":"MOE YrHouseBuilt1980-1989"},"YrHouseBuilt1970-1979",{"$f":"\"MOE \"&BH107","v":"MOE YrHouseBuilt1970-1979"},"YrHouseBuilt1960-1969",{"$f":"\"MOE \"&BJ107","v":"MOE YrHouseBuilt1960-1969"},"YrHouseBuilt1950-1959",{"$f":"\"MOE \"&BL107","v":"MOE YrHouseBuilt1950-1959"},"YrHouseBuilt1940-1949",{"$f":"\"MOE \"&BN107","v":"MOE YrHouseBuilt1940-1949"},"YrHouseBuilt1939orEarlier",{"$f":"\"MOE \"&BP107","v":"MOE YrHouseBuilt1939orEarlier"},"NoBedrooms",{"$f":"\"MOE \"&BR107","v":"MOE NoBedrooms"},"1Bedroom",{"$f":"\"MOE \"&BT107","v":"MOE 1Bedroom"},"2Bedroom",{"$f":"\"MOE \"&BV107","v":"MOE 2Bedroom"},"3Bedroom",{"$f":"\"MOE \"&BX107","v":"MOE 3Bedroom"},"4+Bedroom",{"$f":"\"MOE \"&BZ107","v":"MOE 4+Bedroom"}]
[{"$f":"VLOOKUP(DropDownList!$B$47,CntyQryCensus!$A$510:$DA$552,A$1)","v":"Allenstown"},1812,101,1787,88,1252,116,535,128,25,39,0,11,0,11,0,11,0,11,0,11,4276,42,3114,293,1162,288,1787,88,1252,116,634,90,182,78.943017423962203,436,75.802374632988901,535,128,82,61,388,136.90872872099865,65,77.781745930520231,741,108,570,154.83216720048841,501,93.648278147545241,27,42,149,67,174,63,332,78,382,104,152,76,203,99,57,48,336,106,56,75,266,100,610,120,696,113,184,73.23933369440222]
[]
["Disability Data"]
["NAME","TotalPop",{"$f":"\"MOE \"&B111","v":"MOE TotalPop"},"PopUnder 5 years:",{"$f":"\"MOE \"&D111","v":"MOE PopUnder 5 years:"},{"$f":"D$111&\"-WithDisability\"","v":"PopUnder 5 years:-WithDisability"},{"$f":"\"MOE \"&F111","v":"MOE PopUnder 5 years:-WithDisability"},{"$f":"D111&\"-NoDisability\"","v":"PopUnder 5 years:-NoDisability"},{"$f":"\"MOE \"&H111","v":"MOE PopUnder 5 years:-NoDisability"},"PopUnder 5 to 17years:",{"$f":"\"MOE \"&J111","v":"MOE PopUnder 5 to 17years:"},{"$f":"J$111&\"-WithDisability\"","v":"PopUnder 5 to 17years:-WithDisability"},{"$f":"\"MOE \"&L111","v":"MOE PopUnder 5 to 17years:-WithDisability"},{"$f":"J111&\"-NoDisability\"","v":"PopUnder 5 to 17years:-NoDisability"},{"$f":"\"MOE \"&N111","v":"MOE PopUnder 5 to 17years:-NoDisability"},"PopUnder 18 to 34 years:",{"$f":"\"MOE \"&P111","v":"MOE PopUnder 18 to 34 years:"},{"$f":"P$111&\"-WithDisability\"","v":"PopUnder 18 to 34 years:-WithDisability"},{"$f":"\"MOE \"&R111","v":"MOE PopUnder 18 to 34 years:-WithDisability"},{"$f":"P111&\"-NoDisability\"","v":"PopUnder 18 to 34 years:-NoDisability"},{"$f":"\"MOE \"&T111","v":"MOE PopUnder 18 to 34 years:-NoDisability"},"Pop 35 years to 64:",{"$f":"\"MOE \"&V111","v":"MOE Pop 35 years to 64:"},{"$f":"$V$111&\"-WithDisability\"","v":"Pop 35 years to 64:-WithDisability"},{"$f":"\"MOE \"&X111","v":"MOE Pop 35 years to 64:-WithDisability"},{"$f":"$V$111&\"-NoDisability\"","v":"Pop 35 years to 64:-NoDisability"},{"$f":"\"MOE \"&Z111","v":"MOE Pop 35 years to 64:-NoDisability"},"Pop 65 years to 74:",{"$f":"\"MOE \"&AB111","v":"MOE Pop 65 years to 74:"},{"$f":"$AB$111&\"-WithDisability\"","v":"Pop 65 years to 74:-WithDisability"},{"$f":"\"MOE \"&AD111","v":"MOE Pop 65 years to 74:-WithDisability"},{"$f":"$AB$111&\"-NoDisability\"","v":"Pop 65 years to 74:-NoDisability"},{"$f":"\"MOE \"&AF111","v":"MOE Pop 65 years to 74:-NoDisability"},"Pop 75 and older:",{"$f":"\"MOE \"&AH111","v":"MOE Pop 75 and older:"},{"$f":"$AH$111&\"-WithDisability\"","v":"Pop 75 and older:-WithDisability"},{"$f":"\"MOE \"&AJ111","v":"MOE Pop 75 and older:-WithDisability"},{"$f":"$AH$111&\"-NoDisability\"","v":"Pop 75 and older:-NoDisability"},{"$f":"\"MOE \"&AL111","v":"MOE Pop 75 and older:-NoDisability"},"TotalPopUnder5_HearingDisability",{"$f":"\"MOE \"&AN111","v":"MOE TotalPopUnder5_HearingDisability"},"TotalUnder5_HearingDisability",{"$f":"\"MOE \"&AP111","v":"MOE TotalUnder5_HearingDisability"},"TotalPop18To34_HearingDisability",{"$f":"\"MOE \"&AR111","v":"MOE TotalPop18To34_HearingDisability"},"TotalPop35To64_HearingDisability",{"$f":"\"MOE \"&AT111","v":"MOE TotalPop35To64_HearingDisability"},"TotalPop65To74_HearingDisability",{"$f":"\"MOE \"&AV111","v":"MOE TotalPop65To74_HearingDisability"},"TotalPop75andOlder_HearingDisability",{"$f":"\"MOE \"&AX111","v":"MOE TotalPop75andOlder_HearingDisability"},"TotalUnder5_VisionDisability",{"$f":"\"MOE \"&AZ111","v":"MOE TotalUnder5_VisionDisability"},"Total5To17_VisionDisability",{"$f":"\"MOE \"&BB111","v":"MOE Total5To17_VisionDisability"},"Total18To34_VisionDisability",{"$f":"\"MOE \"&BD111","v":"MOE Total18To34_VisionDisability"},"Total35To64_VisionDisability",{"$f":"\"MOE \"&BF111","v":"MOE Total35To64_VisionDisability"},"Total65To74_VisionDisability",{"$f":"\"MOE \"&BH111","v":"MOE Total65To74_VisionDisability"},"Total75andOlder_VisionDisability",{"$f":"\"MOE \"&BJ111","v":"MOE Total75andOlder_VisionDisability"},"Total5To17_CongnitiveDisability",{"$f":"\"MOE \"&BL111","v":"MOE Total5To17_CongnitiveDisability"},"Total18To34_CongnitiveDisability",{"$f":"\"MOE \"&BN111","v":"MOE Total18To34_CongnitiveDisability"},"Total35To64_CongnitiveDisability",{"$f":"\"MOE \"&BP111","v":"MOE Total35To64_CongnitiveDisability"},"Total65To74_CongnitiveDisability",{"$f":"\"MOE \"&BR111","v":"MOE Total65To74_CongnitiveDisability"},"Total75andOlder_CongnitiveDisability",{"$f":"\"MOE \"&BT111","v":"MOE Total75andOlder_CongnitiveDisability"},"Total5To17_AmbulatoryDisability",{"$f":"\"MOE \"&BV111","v":"MOE Total5To17_AmbulatoryDisability"},"Total18To34_AmbulatoryDisability",{"$f":"\"MOE \"&BX111","v":"MOE Total18To34_AmbulatoryDisability"},"Total35To64_AmbulatoryDisability",{"$f":"\"MOE \"&BZ111","v":"MOE Total35To64_AmbulatoryDisability"},"Total65To74_AmbulatoryDisability",{"$f":"\"MOE \"&CB111","v":"MOE Total65To74_AmbulatoryDisability"},"Total75andOlder_AmbulatoryDisability",{"$f":"\"MOE \"&CD111","v":"MOE Total75andOlder_AmbulatoryDisability"},"Total5To17_SelfCareDisability",{"$f":"\"MOE \"&CF111","v":"MOE Total5To17_SelfCareDisability"},"Total18To34_SelfCareDisability",{"$f":"\"MOE \"&CH111","v":"MOE Total18To34_SelfCareDisability"},"Total35To64_SelfCareDisability",{"$f":"\"MOE \"&CJ111","v":"MOE Total35To64_SelfCareDisability"},"Total65To74_SelfCareDisability",{"$f":"\"MOE \"&CL111","v":"MOE Total65To74_SelfCareDisability"},"Total75andOlder_SelfCareDisability",{"$f":"\"MOE \"&CN111","v":"MOE Total75andOlder_SelfCareDisability"},"Total18To34_IndependantLivingDisability",{"$f":"\"MOE \"&CP111","v":"MOE Total18To34_IndependantLivingDisability"},"Total35To64_IndependantLivingDisability",{"$f":"\"MOE \"&CR111","v":"MOE Total35To64_IndependantLivingDisability"},"Total65To74_IndependantLivingDisability",{"$f":"\"MOE \"&CT111","v":"MOE Total65To74_IndependantLivingDisability"},"Total75andOlder_IndependantLivingDisability",{"$f":"\"MOE \"&CV111","v":"MOE Total75andOlder_IndependantLivingDisability"},"TotalUnder18_OneDisability",{"$f":"\"MOE \"&CX111","v":"MOE TotalUnder18_OneDisability"},"TotalUnder18_TwoDisability",{"$f":"\"MOE \"&CZ111","v":"MOE TotalUnder18_TwoDisability"},"18to6YearWIthOneDisability",{"$f":"\"MOE \"&DB111","v":"MOE 18to6YearWIthOneDisability"},"18to64YearWIthTwoOrMoreDisability",{"$f":"\"MOE \"&DD111","v":"MOE 18to64YearWIthTwoOrMoreDisability"},"Over64YearsWIthOneDisability",{"$f":"\"MOE \"&DF111","v":"MOE Over64YearsWIthOneDisability"},"Over64YearsWIthTwoOrMoreDisability",{"$f":"\"MOE \"&DH111","v":"MOE Over64YearsWIthTwoOrMoreDisability"}]
[{"$f":"VLOOKUP(DropDownList!$B$47,CntyQryCensus!$A$510:$DA$552,A$1)","v":"Allenstown"},4283,41,298,111.89280584559492,0,15.556349186104045,298,111.89280584559492,538,119.75391434103521,126,89.442719099991592,412,99.488692824863264,856,121.69634341261039,64,38.013155617496423,792,123.10970717209915,2019,169.70562748477141,396,124.01612798341996,1623,172.07265907168403,315,86.284413424441851,121,69.462219947249025,194,57.688820407423826,257,84.504437753291981,162,66.603303221386852,95,57.008771254956898,0,15.556349186104045,25,38.600518131237564,0,15.556349186104045,134,72.006944109578768,27,22.360679774997898,58,42.5205832509386,0,15.556349186104045,26,42.449970553582247,0,15.556349186104045,113,89.067390216621931,10,19.416487838947599,64,53.075418038862395,97,81.394102980498531,33,29.732137494637012,174,96.519428096109237,27,45.354161881794269,46,39.357337308308857,34,43.416586692184822,13,16.492422502470642,187,74.625732827222535,57,41.182520563948003,122,51.61395160225576,26,42.449970553582247,0,15.556349186104045,29,40.521599178709621,19,19.849433241279208,35,32.557641192199412,51,34,161,100,40,29.732137494637012,76,47.423622805517503,0,15,11,18,56,46,89,65,88,53,77,56]
[]
["Househould Income By Age"]
["NAME","TotalHouseholds",{"$f":"\"MOE \"&B115","v":"MOE TotalHouseholds"},"HHInc<10K",{"$f":"\"MOE \"&D115","v":"MOE HHInc<10K"},"HHInc10to15K",{"$f":"\"MOE \"&F115","v":"MOE HHInc10to15K"},"HHInc15to20K",{"$f":"\"MOE \"&H115","v":"MOE HHInc15to20K"},"HHInc20to25K",{"$f":"\"MOE \"&J115","v":"MOE HHInc20to25K"},"HHInc25to30K",{"$f":"\"MOE \"&L115","v":"MOE HHInc25to30K"},"HHInc30to35K",{"$f":"\"MOE \"&N115","v":"MOE HHInc30to35K"},"HHInc35to40K",{"$f":"\"MOE \"&P115","v":"MOE HHInc35to40K"},"HHInc40to45K",{"$f":"\"MOE \"&R115","v":"MOE HHInc40to45K"},"HHInc45to50K",{"$f":"\"MOE \"&T115","v":"MOE HHInc45to50K"},"HHInc50to60K",{"$f":"\"MOE \"&V115","v":"MOE HHInc50to60K"},"HHInc60to75K",{"$f":"\"MOE \"&X115","v":"MOE HHInc60to75K"},"HHInc75to100K",{"$f":"\"MOE \"&Z115","v":"MOE HHInc75to100K"},"HHInc100to125K",{"$f":"\"MOE \"&AB115","v":"MOE HHInc100to125K"},"HHInc125to150K",{"$f":"\"MOE \"&AD115","v":"MOE HHInc125to150K"},"HHInc150to200K",{"$f":"\"MOE \"&AF115","v":"MOE HHInc150to200K"},"HHInc>200K",{"$f":"\"MOE \"&AH115","v":"MOE HHInc>200K"},"TotalHH",{"$f":"\"MOE \"&AJ115","v":"MOE TotalHH"},"HHAgeHHUnder25yrs",{"$f":"\"MOE \"&AL115","v":"MOE HHAgeHHUnder25yrs"},"HHAgeHH<25HHInc<10K",{"$f":"\"MOE \"&AN115","v":"MOE HHAgeHH<25HHInc<10K"},"HHAgeHH<25HHInc10to15K",{"$f":"\"MOE \"&AP115","v":"MOE HHAgeHH<25HHInc10to15K"},"HHAgeHH<25HHInc15to20K",{"$f":"\"MOE \"&AR115","v":"MOE HHAgeHH<25HHInc15to20K"},"HHAgeHH<25HHInc20to25K",{"$f":"\"MOE \"&AT115","v":"MOE HHAgeHH<25HHInc20to25K"},"HHAgeHH<25HHInc25to30K",{"$f":"\"MOE \"&AV115","v":"MOE HHAgeHH<25HHInc25to30K"},"HHAgeHH<25HHInc30to35K",{"$f":"\"MOE \"&AX115","v":"MOE HHAgeHH<25HHInc30to35K"},"HHAgeHH<25HHInc35to40K",{"$f":"\"MOE \"&AZ115","v":"MOE HHAgeHH<25HHInc35to40K"},"HHAgeHH<25HHInc40to45K",{"$f":"\"MOE \"&BB115","v":"MOE HHAgeHH<25HHInc40to45K"},"HHAgeHH<25HHInc45to50K",{"$f":"\"MOE \"&BD115","v":"MOE HHAgeHH<25HHInc45to50K"},"HHAgeHH<25HHInc50to60K",{"$f":"\"MOE \"&BF115","v":"MOE HHAgeHH<25HHInc50to60K"},"HHAgeHH<25HHInc60to75K",{"$f":"\"MOE \"&BH115","v":"MOE HHAgeHH<25HHInc60to75K"},"HHAgeHH<25HHInc75to100K",{"$f":"\"MOE \"&BJ115","v":"MOE HHAgeHH<25HHInc75to100K"},"HHAgeHH<25HHInc100to125K",{"$f":"\"MOE \"&BL115","v":"MOE HHAgeHH<25HHInc100to125K"},"HHAgeHH<25HHInc125to150K",{"$f":"\"MOE \"&BN115","v":"MOE HHAgeHH<25HHInc125to150K"},"HHAgeHH<25HHInc150to200K",{"$f":"\"MOE \"&BP115","v":"MOE HHAgeHH<25HHInc150to200K"},"HHAge<25HHInc>200K",{"$f":"\"MOE \"&BR115","v":"MOE HHAge<25HHInc>200K"},"HHAgeHH25to44yrs",{"$f":"\"MOE \"&BT115","v":"MOE HHAgeHH25to44yrs"},"HHAgeHH25To44yrsHHInc<10K",{"$f":"\"MOE \"&BV115","v":"MOE HHAgeHH25To44yrsHHInc<10K"},"HHAgeHH25To44yrsHHInc10to15K",{"$f":"\"MOE \"&BX115","v":"MOE HHAgeHH25To44yrsHHInc10to15K"},"HHAgeHH25To44yrsHHInc15to20K",{"$f":"\"MOE \"&BZ115","v":"MOE HHAgeHH25To44yrsHHInc15to20K"},"HHAgeHH25To44yrsHHInc20to25K",{"$f":"\"MOE \"&CB115","v":"MOE HHAgeHH25To44yrsHHInc20to25K"},"HHAgeHH25To44yrsHHInc25to30K",{"$f":"\"MOE \"&CD115","v":"MOE HHAgeHH25To44yrsHHInc25to30K"},"HHAgeHH25To44yrsHHInc30to35K",{"$f":"\"MOE \"&CF115","v":"MOE HHAgeHH25To44yrsHHInc30to35K"},"HHAgeHH25To44yrsHHInc35to40K",{"$f":"\"MOE \"&CH115","v":"MOE HHAgeHH25To44yrsHHInc35to40K"},"HHAgeHH25To44yrsHHInc40to45K",{"$f":"\"MOE \"&CJ115","v":"MOE HHAgeHH25To44yrsHHInc40to45K"},"HHAgeHH25To44yrsHHInc45to50K",{"$f":"\"MOE \"&CL115","v":"MOE HHAgeHH25To44yrsHHInc45to50K"},"HHAgeHH25To44yrsHHInc50to60K",{"$f":"\"MOE \"&CN115","v":"MOE HHAgeHH25To44yrsHHInc50to60K"},"HHAgeHH25To44yrsHHInc60to75K",{"$f":"\"MOE \"&CP115","v":"MOE HHAgeHH25To44yrsHHInc60to75K"},"HHAgeHH25To44yrsHHInc75to100K",{"$f":"\"MOE \"&CR115","v":"MOE HHAgeHH25To44yrsHHInc75to100K"},"HHAgeHH25To44yrsHHInc100to125K",{"$f":"\"MOE \"&CT115","v":"MOE HHAgeHH25To44yrsHHInc100to125K"},"HHAgeHH25To44yrsHHInc125to150K",{"$f":"\"MOE \"&CV115","v":"MOE HHAgeHH25To44yrsHHInc125to150K"},"HHAgeHH25To44yrsHHInc150to200K",{"$f":"\"MOE \"&CX115","v":"MOE HHAgeHH25To44yrsHHInc150to200K"},"HHAge25To44yrsHHInc>200K",{"$f":"\"MOE \"&CZ115","v":"MOE HHAge25To44yrsHHInc>200K"},"HHAgeHH45To64yrs",{"$f":"\"MOE \"&DB115","v":"MOE HHAgeHH45To64yrs"},"HHAgeHH45To64yrsHHInc<10K",{"$f":"\"MOE \"&DD115","v":"MOE HHAgeHH45To64yrsHHInc<10K"},"HHAgeHH45To64yrsHHInc10to15K",{"$f":"\"MOE \"&DF115","v":"MOE HHAgeHH45To64yrsHHInc10to15K"},"HHAgeHH45To64yrsHHInc15to20K",{"$f":"\"MOE \"&DH115","v":"MOE HHAgeHH45To64yrsHHInc15to20K"},"HHAgeHH45To64yrsHHInc20to25K",{"$f":"\"MOE \"&DJ115","v":"MOE HHAgeHH45To64yrsHHInc20to25K"},"HHAgeHH45To64yrsHHInc25to30K",{"$f":"\"MOE \"&DL115","v":"MOE HHAgeHH45To64yrsHHInc25to30K"},"HHAgeHH45To64yrsHHInc30to35K",{"$f":"\"MOE \"&DN115","v":"MOE HHAgeHH45To64yrsHHInc30to35K"},"HHAgeHH45To64yrsHHInc35to40K",{"$f":"\"MOE \"&DP115","v":"MOE HHAgeHH45To64yrsHHInc35to40K"},"HHAgeHH45To64yrsHHInc40to45K",{"$f":"\"MOE \"&DR115","v":"MOE HHAgeHH45To64yrsHHInc40to45K"},"HHAgeHH45To64yrsHHInc45to50K",{"$f":"\"MOE \"&DT115","v":"MOE HHAgeHH45To64yrsHHInc45to50K"},"HHAgeHH45To64yrsHHInc50to60K",{"$f":"\"MOE \"&DV115","v":"MOE HHAgeHH45To64yrsHHInc50to60K"},"HHAgeHH45To64yrsHHInc60to75K",{"$f":"\"MOE \"&DX115","v":"MOE HHAgeHH45To64yrsHHInc60to75K"},"HHAgeHH45To64yrsHHInc75to100K",{"$f":"\"MOE \"&DZ115","v":"MOE HHAgeHH45To64yrsHHInc75to100K"},"HHAgeHH45To64yrsHHInc100to125K",{"$f":"\"MOE \"&EB115","v":"MOE HHAgeHH45To64yrsHHInc100to125K"},"HHAgeHH45To64yrsHHInc125to150K",{"$f":"\"MOE \"&ED115","v":"MOE HHAgeHH45To64yrsHHInc125to150K"},"HHAgeHH45To64yrsHHInc150to200K",{"$f":"\"MOE \"&EF115","v":"MOE HHAgeHH45To64yrsHHInc150to200K"},"HHAge45To64yrsHHInc>200K",{"$f":"\"MOE \"&EH115","v":"MOE HHAge45To64yrsHHInc>200K"},"HHAgeHH65yrsorOlder",{"$f":"\"MOE \"&EJ115","v":"MOE HHAgeHH65yrsorOlder"},"HHAgeHH65yrsorOlderHHInc<10K",{"$f":"\"MOE \"&EL115","v":"MOE HHAgeHH65yrsorOlderHHInc<10K"},"HHAgeHH65yrsorOlderHHInc10to15K",{"$f":"\"MOE \"&EN115","v":"MOE HHAgeHH65yrsorOlderHHInc10to15K"},"HHAgeHH65yrsorOlderHHInc15to20K",{"$f":"\"MOE \"&EP115","v":"MOE HHAgeHH65yrsorOlderHHInc15to20K"},"HHAgeHH65yrsorOlderHHInc20to25K",{"$f":"\"MOE \"&ER115","v":"MOE HHAgeHH65yrsorOlderHHInc20to25K"},"HHAgeHH65yrsorOlderHHInc25to30K",{"$f":"\"MOE \"&ET115","v":"MOE HHAgeHH65yrsorOlderHHInc25to30K"},"HHAgeHH65yrsorOlderHHInc30to35K",{"$f":"\"MOE \"&EV115","v":"MOE HHAgeHH65yrsorOlderHHInc30to35K"},"HHAgeHH65yrsorOlderHHInc35to40K",{"$f":"\"MOE \"&EX115","v":"MOE HHAgeHH65yrsorOlderHHInc35to40K"},"HHAgeHH65yrsorOlderHHInc40to45K",{"$f":"\"MOE \"&EZ115","v":"MOE HHAgeHH65yrsorOlderHHInc40to45K"},"HHAgeHH65yrsorOlderHHInc45to50K",{"$f":"\"MOE \"&FB115","v":"MOE HHAgeHH65yrsorOlderHHInc45to50K"},"HHAgeHH65yrsorOlderHHInc50to60K",{"$f":"\"MOE \"&FD115","v":"MOE HHAgeHH65yrsorOlderHHInc50to60K"},"HHAgeHH65yrsorOlderHHInc60to75K",{"$f":"\"MOE \"&FF115","v":"MOE HHAgeHH65yrsorOlderHHInc60to75K"},"HHAgeHH65yrsorOlderHHInc75to100K",{"$f":"\"MOE \"&FH115","v":"MOE HHAgeHH65yrsorOlderHHInc75to100K"},"HHAgeHH65yrsorOlderHHInc100to125K",{"$f":"\"MOE \"&FJ115","v":"MOE HHAgeHH65yrsorOlderHHInc100to125K"},"HHAgeHH65yrsorOlderHHInc125to150K",{"$f":"\"MOE \"&FL115","v":"MOE HHAgeHH65yrsorOlderHHInc125to150K"},"HHAgeHH65yrsorOlderHHInc150to200K",{"$f":"\"MOE \"&FN115","v":"MOE HHAgeHH65yrsorOlderHHInc150to200K"},"HHAge65yrsorOlderHHInc>200K",{"$f":"\"MOE \"&FP115","v":"MOE HHAge65yrsorOlderHHInc>200K"},"MedianHHInc",{"$f":"\"MOE \"&FR115","v":"MOE MedianHHInc"},"HH under 25 years",{"$f":"\"MOE \"&FT115","v":"MOE HH under 25 years"},"Householder 25 to 44 years",{"$f":"\"MOE \"&FV115","v":"MOE Householder 25 to 44 years"},"Householder 45 to 64 years",{"$f":"\"MOE \"&FX115","v":"MOE Householder 45 to 64 years"},"Householder 65 years and over",{"$f":"\"MOE \"&FZ115","v":"MOE Householder 65 years and over"}]
[{"$f":"VLOOKUP(DropDownList!$B$47,CntyQryCensus!$A$510:$DA$552,A$1)","v":"Allenstown"},1787,88,100,102,105,75,42,31,161,83,77,61,106,59,106,61,92,43,71,43,166,71,178,77,245,85,183,72,85,48,70,42,0,11,1787,88,71,44,0,11,11,18,0,11,8,14,0,11,8,13,0,11,0,11,0,11,0,11,29,39,15,24,0,11,0,11,0,11,0,11,554,98,51,75,0,11,0,11,71,65,8,14,31,31,32,38,13,15,6,10,80,49,87,58,86,44,58,34,17,19,14,20,0,11,792,89,40,46,43,44,8,13,18,20,18,19,23,28,59,40,59,37,51,42,86,47,50,44,126,69,112,63,47,41,52,32,0,11,370,62,9,13,51,56,34,27,64,49,51,54,44,30,15,18,20,17,14,16,0,11,12,14,18,22,13,16,21,21,4,7,0,11,52750,5886,63233,36657,54949,12248,59224,18732,26607,5381]
[]
["Number of Households by Income"]
["NAME","HHIncLessThn10k",{"$f":"\"MOE \"&B119","v":"MOE HHIncLessThn10k"},"HHInc10to15K",{"$f":"\"MOE \"&D119","v":"MOE HHInc10to15K"},"HHInc15to25K",{"$f":"\"MOE \"&F119","v":"MOE HHInc15to25K"},"HHInc25to35K",{"$f":"\"MOE \"&H119","v":"MOE HHInc25to35K"},"HHInc35to50K",{"$f":"\"MOE \"&J119","v":"MOE HHInc35to50K"},"HHInc50to75K",{"$f":"\"MOE \"&L119","v":"MOE HHInc50to75K"},"HHInc75to100K",{"$f":"\"MOE \"&N119","v":"MOE HHInc75to100K"},"HHInc100to150K",{"$f":"\"MOE \"&P119","v":"MOE HHInc100to150K"},"HHInc150to200K",{"$f":"\"MOE \"&R119","v":"MOE HHInc150to200K"},"HHIncOver200K",{"$f":"\"MOE \"&T119","v":"MOE HHIncOver200K"}]
[{"$f":"VLOOKUP(DropDownList!$B$47,CntyQryCensus!$A$510:$DA$552,A$1)","v":"Allenstown"},63,42,186,74,48,29.410882339705484,245,102.00490184299969,243,84.445248534183378,412,119.01680553602503,251,78,227,76.609398901179219,119,64,15,17]
[]
[]
["NAME","TotalPop",{"$f":"\"MOE \"&B123","v":"MOE TotalPop"},"Total Individuals living in Poverty",{"$f":"\"MOE \"&D123","v":"MOE Total Individuals living in Poverty"},"Under 5 yrs.",{"$f":"\"MOE \"&F123","v":"MOE Under 5 yrs."},"5 to 17 yrs.",{"$f":"\"MOE \"&H123","v":"MOE 5 to 17 yrs."},"18 to 64 yrs.",{"$f":"\"MOE \"&J123","v":"MOE 18 to 64 yrs."},"65 to 74 yrs.",{"$f":"\"MOE \"&L123","v":"MOE 65 to 74 yrs."},"75 yrs. & Over",{"$f":"\"MOE \"&N123","v":"MOE 75 yrs. & Over"},"Total Individuals  Not living Poverty",{"$f":"\"MOE \"&P123","v":"MOE Total Individuals  Not living Poverty"},"Under 5 yrs.",{"$f":"\"MOE \"&R123","v":"MOE Under 5 yrs."},"5 to 17 yrs.",{"$f":"\"MOE \"&T123","v":"MOE 5 to 17 yrs."},"18 to 64 yrs.",{"$f":"\"MOE \"&V123","v":"MOE 18 to 64 yrs."},"65 to 74 yrs.",{"$f":"\"MOE \"&X123","v":"MOE 65 to 74 yrs."},"75 yrs. & Over",{"$f":"\"MOE \"&Z123","v":"MOE 75 yrs. & Over"},"Total HH",{"$f":"\"MOE \"&AB123","v":"MOE Total HH"},"Total Households Below Poverty",{"$f":"\"MOE \"&AD123","v":"MOE Total Households Below Poverty"},"Family Households in Poverty",{"$f":"\"MOE \"&AF123","v":"MOE Family Households in Poverty"},"Married Couple Fam HH",{"$f":"\"MOE \"&AH123","v":"MOE Married Couple Fam HH"},"Other Family",{"$f":"\"MOE \"&AJ123","v":"MOE Other Family"},"Male Head of Family HH no wife",{"$f":"\"MOE \"&AL123","v":"MOE Male Head of Family HH no wife"},"Female Head of Family HH no husband",{"$f":"\"MOE \"&AN123","v":"MOE Female Head of Family HH no husband"},"Non-Family HH",{"$f":"\"MOE \"&AP123","v":"MOE Non-Family HH"},"Non-Family Male HH",{"$f":"\"MOE \"&AR123","v":"MOE Non-Family Male HH"},"Non-Family Female HH",{"$f":"\"MOE \"&AT123","v":"MOE Non-Family Female HH"},"Total Households at or Above Poverty",{"$f":"\"MOE \"&AV123","v":"MOE Total Households at or Above Poverty"},"Family Households above Poverty",{"$f":"\"MOE \"&AX123","v":"MOE Family Households above Poverty"},"Married Couple Fam HH",{"$f":"\"MOE \"&AZ123","v":"MOE Married Couple Fam HH"},"Other Family",{"$f":"\"MOE \"&BB123","v":"MOE Other Family"},"Male Head of Family HH no wife",{"$f":"\"MOE \"&BD123","v":"MOE Male Head of Family HH no wife"},"Female Head of Family HH no husband",{"$f":"\"MOE \"&BF123","v":"MOE Female Head of Family HH no husband"},"Non-Family HH",{"$f":"\"MOE \"&BH123","v":"MOE Non-Family HH"},"Non-Family Male HH",{"$f":"\"MOE \"&BJ123","v":"MOE Non-Family Male HH"},"Non-Family Female HH",{"$f":"\"MOE \"&BL123","v":"MOE Non-Family Female HH"},"Married Couple with Children Below Poverty",{"$f":"\"MOE \"&BN123","v":"MOE Married Couple with Children Below Poverty"},"Male HH with children below poverty",{"$f":"\"MOE \"&BP123","v":"MOE Male HH with children below poverty"},"Female HH with children below poverty",{"$f":"\"MOE \"&BR123","v":"MOE Female HH with children below poverty"},"Married Couple with Children At or Above Poverty",{"$f":"\"MOE \"&BT123","v":"MOE Married Couple with Children At or Above Poverty"},"Male HH with children at or above poverty",{"$f":"\"MOE \"&BV123","v":"MOE Male HH with children at or above poverty"},"Female HH with children at or above poverty",{"$f":"\"MOE \"&BX123","v":"MOE Female HH with children at or above poverty"}]
[{"$f":"VLOOKUP(DropDownList!$B$47,CntyQryCensus!$A$510:$DA$552,A$1)","v":"Allenstown"},4248,51,375,189,43,49.040799340956916,42,41.509035161034518,272,119.06720791217035,0,15.556349186104045,18,18.384776310850235,3873,198,255,101.35580891098448,461,122.43365550370535,2603,251.90474390134062,315,86.284413424441851,239,80.808415403347695,179,112,76,56,64,53,11,18,12,20,0,11,12,20,103,91,8,13,95,90,1608,131,1106,106,838,113,268,79,104,56,164,65,502,116,502,116,319,97,17,26,0,11,12,20,297,68,60,45,123,61]
[]
["Household Income By Tenure"]
["NAME","TotalOccHU",{"$f":"\"MOE \"&B127","v":"MOE TotalOccHU"},"OwnOccHU",{"$f":"\"MOE \"&D127","v":"MOE OwnOccHU"},"OOHUInc<5K",{"$f":"\"MOE \"&F127","v":"MOE OOHUInc<5K"},"OOHUInc5to10K",{"$f":"\"MOE \"&H127","v":"MOE OOHUInc5to10K"},"OOHUInc10to15K",{"$f":"\"MOE \"&J127","v":"MOE OOHUInc10to15K"},"OOHUInc15to20K",{"$f":"\"MOE \"&L127","v":"MOE OOHUInc15to20K"},"OOHUInc20to25K",{"$f":"\"MOE \"&N127","v":"MOE OOHUInc20to25K"},"OOHUInc25to35K",{"$f":"\"MOE \"&P127","v":"MOE OOHUInc25to35K"},"OOHUInc35to50K",{"$f":"\"MOE \"&R127","v":"MOE OOHUInc35to50K"},"OOHUInc50to75K",{"$f":"\"MOE \"&T127","v":"MOE OOHUInc50to75K"},"OOHUInc75to100K",{"$f":"\"MOE \"&V127","v":"MOE OOHUInc75to100K"},"OOHUInc100to150K",{"$f":"\"MOE \"&X127","v":"MOE OOHUInc100to150K"},"OOHUInc>150K",{"$f":"\"MOE \"&Z127","v":"MOE OOHUInc>150K"},"RentOccHU",{"$f":"\"MOE \"&AB127","v":"MOE RentOccHU"},"ROHUInc<5K",{"$f":"\"MOE \"&AD127","v":"MOE ROHUInc<5K"},"ROHUInc5to10K",{"$f":"\"MOE \"&AF127","v":"MOE ROHUInc5to10K"},"ROHUInc10to15K",{"$f":"\"MOE \"&AH127","v":"MOE ROHUInc10to15K"},"ROHUInc15to20K",{"$f":"\"MOE \"&AJ127","v":"MOE ROHUInc15to20K"},"ROHUInc20to25K",{"$f":"\"MOE \"&AL127","v":"MOE ROHUInc20to25K"},"ROHUInc25to35K",{"$f":"\"MOE \"&AN127","v":"MOE ROHUInc25to35K"},"ROHUInc35to50K",{"$f":"\"MOE \"&AP127","v":"MOE ROHUInc35to50K"},"ROHUInc50to75K",{"$f":"\"MOE \"&AR127","v":"MOE ROHUInc50to75K"},"ROHUInc75to100K",{"$f":"\"MOE \"&AT127","v":"MOE ROHUInc75to100K"},"ROHUInc100to150K",{"$f":"\"MOE \"&AV127","v":"MOE ROHUInc100to150K"},"ROHUInc>150K",{"$f":"\"MOE \"&AX127","v":"MOE ROHUInc>150K"},"Total OCC HUInc<5K",{"$f":"\"MOE \"&AZ127","v":"MOE Total OCC HUInc<5K"},"Total OCC HUInc5to10K",{"$f":"\"MOE \"&BB127","v":"MOE Total OCC HUInc5to10K"},"Total OCC HUInc10to15K",{"$f":"\"MOE \"&BD127","v":"MOE Total OCC HUInc10to15K"},"Total OCC HUInc15to20K",{"$f":"\"MOE \"&BF127","v":"MOE Total OCC HUInc15to20K"},"Total OCC HUInc20to25K",{"$f":"\"MOE \"&BH127","v":"MOE Total OCC HUInc20to25K"},"Total OCC HUInc25to35K",{"$f":"\"MOE \"&BJ127","v":"MOE Total OCC HUInc25to35K"},"Total OCC HUInc35to50K",{"$f":"\"MOE \"&BL127","v":"MOE Total OCC HUInc35to50K"},"Total OCC HUInc50to75K",{"$f":"\"MOE \"&BN127","v":"MOE Total OCC HUInc50to75K"},"Total OCC HUInc75to100K",{"$f":"\"MOE \"&BP127","v":"MOE Total OCC HUInc75to100K"},"Total OCC HUInc100to150K",{"$f":"\"MOE \"&BR127","v":"MOE Total OCC HUInc100to150K"},"Total OCC HUInc>150K",{"$f":"\"MOE \"&BT127","v":"MOE Total OCC HUInc>150K"},"MedHHInc",{"$f":"\"MOE \"&BV127","v":"MOE MedHHInc"},"MedOwnOccHHInc",{"$f":"\"MOE \"&BX127","v":"MOE MedOwnOccHHInc"},"MedRentOccHHInc",{"$f":"\"MOE \"&BZ127","v":"MOE MedRentOccHHInc"}]
[{"$f":"VLOOKUP(DropDownList!$B$47,CntyQryCensus!$A$510:$DA$552,A$1)","v":"Allenstown"},1787,88,1252,116,0,11,49,47,31,29,35,30,71,51,71,46,236,82,258,83,201,82,230,74,70,42,535,128,51,75,0,11,74,70,7,11,90,66,112,72,33,35,86,58,44,30,38,44,0,11,51,75.802374632988901,49,48.270073544588683,105,75.769386958058462,42,31.953090617340916,161,83.408632646747066,183,85.440037453175307,269,89.157164602739584,344,101.25709851659784,245,87.31551981177229,268,86.092973000123536,70,43.416586692184822,52750,5886,58488,8511,27275,9184]
[]
["Population Data"]
["NAME","Total Population","MOE Total Population","Under 15 Years","MOE Under 15 yrs.","15 to 24 yrs.","MOE 15 to 24 yrs.","25 to 34 yrs.","MOE 25 to 34 yrs.","35 to 44 yrs.","MOE 35 to 44 yrs.","45 to 54 yrs.","MOE 45 to 54 yrs.","55 to 64 yrs.","MOE 55 to 64 yrs.","65 to 74 yrs.","MOE 65 to 74 yrs.","Over 74 yrs. ","MOE Over 74 yrs. ","TotalHH","MOE TotalHH","FamilyHH","MOE FamilyHH","MarriedFamilyHH","MOE MarriedFamilyHH","SingleFamilyHH","MOE SingleFamilyHH","Sfamily-MaleHH","MOE Sfamily-MaleHH","Sfamily-FemaleHH","MOE Sfamily-FemaleHH","NonFamilyHH","MOE NonFamilyHH","NonFamilyHH-LivingAlone","MOE NonFamilyHH-LivingAlone","NonFamilyHH-NotLivingAlone","MOE NonFamilyHH-NotLivingAlone","PopRaceWhite","MOE PopRaceWhite","PopRaceBlack","MOE PopRaceBlack","PopRaceAmerican Indian","MOE PopRaceAmerican Indian","PopRaceAsian &Pacific Is.","MOE PopRaceAsian &Pacific Is.","PopRaceOther*","MOE PopRaceOther*","PopRaceHispanic or Latino:","MOE PopRaceHispanic or Latino:","AvgAgeTotalPop","MOE AvgAgeTotalPop","AvgAgeMale","MOE AvgAgeMale","AvgAgeFemale","MOE AvgAgeFemale","AvgHHSizeTotal","MOE AvgHHSizeTotal","AvgHHSizeFamilyHH","MOE AvgHHSizeFamilyHH","AvgHHSizeNonFamilyHH","MOE AvgHHSizeNonFamilyHH"]
[{"$f":"VLOOKUP(DropDownList!$B$47,CntyQryCensus!$A$510:$DA$552,A$1)","v":"Allenstown"},4303,22,719,156.50239614779065,510,124.31009613060397,479,107.87492757819122,665,160.59265238484605,810,165.84028461142967,544,119.94165248152953,315,94.334511182281531,261,94.894678459858852,1787,88,1182,89,902,101,280,80,104,56,176,67,605,123,478,111,127,64,4154,91,36,33,0,11,18,27.313000567495326,19,15,76,73,41,2,40.799999999999997,2.4,41.4,3.6,2.3928371572467824,0.12,2.967005076142132,0.26800997818607214,1.2710743801652893,0.38297155938367283]
[]
["Nativity and Prior Place of Residence"]
["NAME","TotalPop",{"$f":"\"MOE \"&B135","v":"MOE TotalPop"},"Native:",{"$f":"\"MOE \"&D135","v":"MOE Native:"},"NatBornInStateOfResidence",{"$f":"\"MOE \"&F135","v":"MOE NatBornInStateOfResidence"},"Born in other state in the United States:",{"$f":"\"MOE \"&H135","v":"MOE Born in other state in the United States:"},"Northeast",{"$f":"\"MOE \"&J135","v":"MOE Northeast"},"Midwest",{"$f":"\"MOE \"&L135","v":"MOE Midwest"},"South",{"$f":"\"MOE \"&N135","v":"MOE South"},"West",{"$f":"\"MOE \"&P135","v":"MOE West"},"Born outside the United States:",{"$f":"\"MOE \"&R135","v":"MOE Born outside the United States:"},"Puerto Rico",{"$f":"\"MOE \"&T135","v":"MOE Puerto Rico"},"U.S. Island Areas",{"$f":"\"MOE \"&V135","v":"MOE U.S. Island Areas"},"Born abroad of American parent(s)",{"$f":"\"MOE \"&X135","v":"MOE Born abroad of American parent(s)"},"Foreign born:",{"$f":"\"MOE \"&Z135","v":"MOE Foreign born:"},"Naturalized U.S. citizen",{"$f":"\"MOE \"&AB135","v":"MOE Naturalized U.S. citizen"},"Not a U.S. citizen",{"$f":"\"MOE \"&AD135","v":"MOE Not a U.S. citizen"},"CurrentResideneTotal:",{"$f":"\"MOE \"&AF135","v":"MOE CurrentResideneTotal:"},"SameHouse:",{"$f":"\"MOE \"&AH135","v":"MOE SameHouse:"},"DifferentHouse:",{"$f":"\"MOE \"&AJ135","v":"MOE DifferentHouse:"},"DiffHouseInNH",{"$f":"\"MOE \"&AL135","v":"MOE DiffHouseInNH"},"DiffHouseInNHSameCnty",{"$f":"\"MOE \"&AN135","v":"MOE DiffHouseInNHSameCnty"},"DiffHouseInNHDiffCnty",{"$f":"\"MOE \"&AP135","v":"MOE DiffHouseInNHDiffCnty"},"DiffHouseInDiffState",{"$f":"\"MOE \"&AR135","v":"MOE DiffHouseInDiffState"},"DiffHouseInElsewhere",{"$f":"\"MOE \"&AT135","v":"MOE DiffHouseInElsewhere"}]
[{"$f":"VLOOKUP(DropDownList!$B$47,CntyQryCensus!$A$510:$DA$552,A$1)","v":"Allenstown"},4303,22,4062,120,2510,260,1515,251,1340,256,35,29,68,45,72,54,37,32,11,17,0,11,26,27,241,119,116,75,125,104,4249,53,3494,234,755,248.39887278327171,699,242.4396832203837,441,204,258,131,44,51,12,18,35,43]
[]
["School Enrollment - Education"]
["NAME","Total Pop 3 Years and Older","MOE Total Pop 3 Years and Older","SchEnrlPop3yrOver",{"$f":"\"MOE \"&D139","v":"MOE SchEnrlPop3yrOver"},"TotalEnrollNursy&Kinder",{"$f":"\"MOE \"&F139","v":"MOE TotalEnrollNursy&Kinder"},"NurserSchEnrl",{"$f":"\"MOE \"&H139","v":"MOE NurserSchEnrl"},"KinderSchEnrl",{"$f":"\"MOE \"&J139","v":"MOE KinderSchEnrl"},"ElemSchEnrl (1-8)",{"$f":"\"MOE \"&L139","v":"MOE ElemSchEnrl (1-8)"},"HighSchEnrl(9-12)",{"$f":"\"MOE \"&N139","v":"MOE HighSchEnrl(9-12)"},"TotalElementry&HSEnroll",{"$f":"\"MOE \"&P139","v":"MOE TotalElementry&HSEnroll"},"CollGradSchEnrl",{"$f":"\"MOE \"&R139","v":"MOE CollGradSchEnrl"},"PopNotEnrolled","MOE PopNotEnrolled","Pop25yrsOver",{"$f":"\"MOE \"&V139","v":"MOE Pop25yrsOver"},"EduAtain<9grd",{"$f":"\"MOE \"&X139","v":"MOE EduAtain<9grd"},"EduAtainHSnoDip",{"$f":"\"MOE \"&Z139","v":"MOE EduAtainHSnoDip"},"EduAtainHSgrad",{"$f":"\"MOE \"&AB139","v":"MOE EduAtainHSgrad"},"EduAtainCollNoDeg",{"$f":"\"MOE \"&AD139","v":"MOE EduAtainCollNoDeg"},"EduAtainAssocDeg",{"$f":"\"MOE \"&AF139","v":"MOE EduAtainAssocDeg"},"EduAtainBachDeg",{"$f":"\"MOE \"&AH139","v":"MOE EduAtainBachDeg"},"EduAtainGradProfDeg",{"$f":"\"MOE \"&AJ139","v":"MOE EduAtainGradProfDeg"}]
[{"$f":"VLOOKUP(DropDownList!$B$47,CntyQryCensus!$A$510:$DA$552,A$1)","v":"Allenstown"},4192,56,850,152,55,39.66106403010388,32,33,23,22,382,96.829747495281637,164,55,546,111.35977729862789,249,101.53324578678651,3342,145,3074,145,92,63.678881899731877,145,62.489999199871974,1543,191.00261778310789,583,134.20134127496641,312,107.20074626605917,275,86.95401083331349,115,59.38013135721409]
[]
["Occupied Owner Housing Value"]
["NAME","Estimate; Total:","Margin of Error; Total:","Estimate; Total: - Less than $10,000","Margin of Error; Total: - Less than $10,000","Estimate; Total: - $10,000 to $14,999","Margin of Error; Total: - $10,000 to $14,999","Estimate; Total: - $15,000 to $19,999","Margin of Error; Total: - $15,000 to $19,999","Estimate; Total: - $20,000 to $24,999","Margin of Error; Total: - $20,000 to $24,999","Estimate; Total: - $25,000 to $29,999","Margin of Error; Total: - $25,000 to $29,999","Estimate; Total: - $30,000 to $34,999","Margin of Error; Total: - $30,000 to $34,999","Estimate; Total: - $35,000 to $39,999","Margin of Error; Total: - $35,000 to $39,999","Estimate; Total: - $40,000 to $49,999","Margin of Error; Total: - $40,000 to $49,999","Estimate; Total: - $50,000 to $59,999","Margin of Error; Total: - $50,000 to $59,999","Estimate; Total: - $60,000 to $69,999","Margin of Error; Total: - $60,000 to $69,999","Estimate; Total: - $70,000 to $79,999","Margin of Error; Total: - $70,000 to $79,999","Estimate; Total: - $80,000 to $89,999","Margin of Error; Total: - $80,000 to $89,999","Estimate; Total: - $90,000 to $99,999","Margin of Error; Total: - $90,000 to $99,999","Estimate; Total: - $100,000 to $124,999","Margin of Error; Total: - $100,000 to $124,999","Estimate; Total: - $125,000 to $149,999","Margin of Error; Total: - $125,000 to $149,999","Estimate; Total: - $150,000 to $174,999","Margin of Error; Total: - $150,000 to $174,999","Estimate; Total: - $175,000 to $199,999","Margin of Error; Total: - $175,000 to $199,999","Estimate; Total: - $200,000 to $249,999","Margin of Error; Total: - $200,000 to $249,999","Estimate; Total: - $250,000 to $299,999","Margin of Error; Total: - $250,000 to $299,999","Estimate; Total: - $300,000 to $399,999","Margin of Error; Total: - $300,000 to $399,999","Estimate; Total: - $400,000 to $499,999","Margin of Error; Total: - $400,000 to $499,999","Estimate; Total: - $500,000 to $749,999","Margin of Error; Total: - $500,000 to $749,999","Estimate; Total: - $750,000 to $999,999","Margin of Error; Total: - $750,000 to $999,999","Estimate; Total: - $1,000,000 to $1,499,999","Margin of Error; Total: - $1,000,000 to $1,499,999","Estimate; Total: - $1,500,000 to $1,999,999","Margin of Error; Total: - $1,500,000 to $1,999,999","Estimate; Total: - $2,000,000 or more","Margin of Error; Total: - $2,000,000 or more","MedianOwnOCCHomeValue","MOE MedianOwnOCCHomeValue","OnwerOccHsU","MOE OnwerOccHsU","OwnerCosts>20PctHHInc","MOE OwnerCosts>20PctHHInc","OwnerCosts20to29.9PctHHInc","MOE OwnerCosts20to29.9PctHHInc","OwnerCosts<30PctHHInc","MOE OwnerCosts<30PctHHInc","OwnerCosts>30PctHHInc","MOE OwnerCosts>30PctHHInc","OwnerCosts30to34.9PctHHInc","MOE OwnerCosts30to34.9PctHHInc","OwnerCosts<35PctHHInc","MOE OwnerCosts<35PctHHInc","OwnerCosts>35PctHHInc","MOE OwnerCosts>35PctHHInc","OwnerCosts>50PctHHInc","MOE OwnerCosts>50PctHHInc","OwnerCostsPctNotcomputed","MOE OwnerCostsPctNotcomputed","OwnerOHUHhInc<20k","MOE OwnerOHUHhInc<20k","OwnerOHUHhInc<20kHCosts<20pct","MOE OwnerOHUHhInc<20kHCosts<20pct","OwnerOHUHhInc<20kHCosts20to29pct","MOE OwnerOHUHhInc<20kHCosts20to29pct","OwnerOHUHhInc>20kHCosts30pct","MOE OwnerOHUHhInc>20kHCosts30pct","OwnerOHUHhInc20kTo34999","MOE OwnerOHUHhInc20kTo34999","OwnerOHUHhInc20kTo34999HCosts<20pct","MOE OwnerOHUHhInc20kTo34999HCosts<20pct","OwnerOHUHhInc20kTo34999HCosts20to29pct","MOE OwnerOHUHhInc20kTo34999HCosts20to29pct","OwnerOHUHhInc20kTo34999HCosts30pct","MOE OwnerOHUHhInc20kTo34999HCosts30pct","OwnerOHUHhInc35kTo49999","MOE OwnerOHUHhInc35kTo49999","OwnerOHUHhInc35kTo49999HCosts<20pct","MOE OwnerOHUHhInc35kTo49999HCosts<20pct","OwnerOHUHhInc35kTo49999HCosts20to29pct","MOE OwnerOHUHhInc35kTo49999HCosts20to29pct","OwnerOHUHhInc35kTo49999HCosts30pct","MOE OwnerOHUHhInc35kTo49999HCosts30pct","OwnerOHUHhInc50kTo74999","MOE OwnerOHUHhInc50kTo74999","OwnerOHUHhInc50kTo74999HCosts<20pct","MOE OwnerOHUHhInc50kTo74999HCosts<20pct","OwnerOHUHhInc50kTo74999HCosts20to29pct","MOE OwnerOHUHhInc50kTo74999HCosts20to29pct","OwnerOHUHhInc50kTo74999HCosts30pct","MOE OwnerOHUHhInc50kTo74999HCosts30pct","OwnerOHUHhInc>75000","MOE OwnerOHUHhInc>75000","OwnerOHUHhInc>75000HCosts<20pct","MOE OwnerOHUHhInc>75000HCosts<20pct","OwnerOHUHhInc>75000HCosts20to29pct","MOE OwnerOHUHhInc>75000HCosts20to29pct","OwnerOHUHhInc>75000HCosts30pct","MOE OwnerOHUHhInc>75000HCosts30pct","ZeroOrNegativeIncome","MOE ZeroOrNegativeIncome"]
[{"$f":"VLOOKUP(DropDownList!$B$47,CntyQryCensus!$A$510:$DA$552,A$1)","v":"Allenstown"},1252,116,87,51,10,15,90,52,22,24,49,37,51,33,37,41,24,23,35,44,20,22,29,25,35,41,20,24,53,35,87,48,84,47,126,53,204,82,124,62,57,39,0,11,0,11,0,11,8,13,null,null,null,null,145800,24883,"Estimate","Margin Of Error",1252,116,88,48.507731342539614,125,59.481089431852205,232,69.641941385920603,172,70.434366611761334,172,57.384666941614292,130,72.069410986909006,65,41.036569057366385,69,52.345009313209601,115,63,0,11,0,11,115,63,142,71,31,37,35,35,76,49,236,82,76,45,52,31,108,61,258,83,53,35,106,53,99,54,501,95,285,66,151,52,65,60,0,11]
[]
["Occupied Rental Housing Value"]
["NAME","RntrOccHU","MOE RntrOccHU","RntrOccHUwRent","MOE RntrOccHUwRent","ROHUGRent<100","MOE ROHUGRent<100","ROHUGRent100to149","MOE ROHUGRent100to149","ROHUGRent150to199","MOE ROHUGRent150to199","ROHUGRent200to249","MOE ROHUGRent200to249","ROHUGRent250to299","MOE ROHUGRent250to299","ROHUGRent300to349","MOE ROHUGRent300to349","ROHUGRent350to399","MOE ROHUGRent350to399","ROHUGRent400to449","MOE ROHUGRent400to449","ROHUGRent450to499","MOE ROHUGRent450to499","ROHUGRent500to549","MOE ROHUGRent500to549","ROHUGRent550to599","MOE ROHUGRent550to599","ROHUGRent600to649","MOE ROHUGRent600to649","ROHUGRent650to699","MOE ROHUGRent650to699","ROHUGRent700to749","MOE ROHUGRent700to749","ROHUGRent750to799","MOE ROHUGRent750to799","ROHUGRent800to899","MOE ROHUGRent800to899","ROHUGRent900to999","MOE ROHUGRent900to999","ROHUGRent1000to1249","MOE ROHUGRent1000to1249","ROHUGRent1250to1499","MOE ROHUGRent1250to1499","ROHUGRent1500to1999","MOE ROHUGRent1500to1999","ROHUGRent2000>","MOE ROHUGRent2000>","ROHUNoGRent","MOE ROHUNoGRent","MedianGrossRnt","MOE MedianGrossRnt","H73RenterOccHU","MOE H73RenterOccHU","H73ROHUHhInc<10k","MOE H73ROHUHhInc<10k","H73ROHUHhInc<10kRnt<20pct","MOE H73ROHUHhInc<10kRnt<20pct","H73ROHUHhInc<10kRnt20to25pct","MOE H73ROHUHhInc<10kRnt20to25pct","H73ROHUHhInc<10kRnt25to30pct","MOE H73ROHUHhInc<10kRnt25to30pct","H73ROHUHhInc<10kRnt30to35pct","MOE H73ROHUHhInc<10kRnt30to35pct","H73ROHUHhInc<10kRnt35to39.9","MOE H73ROHUHhInc<10kRnt35to39.9","H73ROHUHhInc<10kRnt40to49.9","MOE H73ROHUHhInc<10kRnt40to49.9","H73ROHUHhInc<10kRnt>50pct","MOE H73ROHUHhInc<10kRnt>50pct","H73ROHUHhInc<10kPctNotComput","MOE H73ROHUHhInc<10kPctNotComput","H73ROHUHhInc10to20k","MOE H73ROHUHhInc10to20k","H73ROHUHhInc10to20kRnt<20pct","MOE H73ROHUHhInc10to20kRnt<20pct","H73ROHUHhInc10to20kRnt20to25pct","MOE H73ROHUHhInc10to20kRnt20to25pct","H73ROHUHhInc10to20kRnt25to30pct","MOE H73ROHUHhInc10to20kRnt25to30pct","H73ROHUHhInc10to20kRnt30to35pct","MOE H73ROHUHhInc10to20kRnt30to35pct","H73ROHUHhInc10to20kRnt35to39.9","MOE H73ROHUHhInc10to20kRnt35to39.9","H73ROHUHhInc10to20kRnt40to49.9","MOE H73ROHUHhInc10to20kRnt40to49.9","H73ROHUHhInc10to20kRnt>50pct","MOE H73ROHUHhInc10to20kRnt>50pct","H73ROHUHhInc10to20kRntPctNC","MOE H73ROHUHhInc10to20kRntPctNC","H73ROHUHhInc20to34.9k","MOE H73ROHUHhInc20to34.9k","H73ROHUHhInc20to34.9kRnt<20pct","MOE H73ROHUHhInc20to34.9kRnt<20pct","H73ROHUHhInc20to34.9kRnt20to25pct","MOE H73ROHUHhInc20to34.9kRnt20to25pct","H73ROHUHhInc20to34.9kRnt25to30pct","MOE H73ROHUHhInc20to34.9kRnt25to30pct","H73ROHUHhInc20to34.9kRnt30to35pct","MOE H73ROHUHhInc20to34.9kRnt30to35pct","H73ROHUHhInc20to34.9kRnt35to39.9","MOE H73ROHUHhInc20to34.9kRnt35to39.9","H73ROHUHhInc20to34.9kRnt40to49.9","MOE H73ROHUHhInc20to34.9kRnt40to49.9","H73ROHUHhInc20to34.9kRnt>50pct","MOE H73ROHUHhInc20to34.9kRnt>50pct","H73ROHUHhInc20to34.9kRntPctNC","MOE H73ROHUHhInc20to34.9kRntPctNC","H73ROHUHhInc35to49.9k","MOE H73ROHUHhInc35to49.9k","H73ROHUHhInc35to49.9kRnt<20pct","MOE H73ROHUHhInc35to49.9kRnt<20pct","H73ROHUHhInc35to49.9kRnt20to25pct","MOE H73ROHUHhInc35to49.9kRnt20to25pct","H73ROHUHhInc35to49.9kRnt25to30pct","MOE H73ROHUHhInc35to49.9kRnt25to30pct","H73ROHUHhInc35to49.9kRnt30to35pct","MOE H73ROHUHhInc35to49.9kRnt30to35pct","H73ROHUHhInc35to49.9kRnt35to39.9","MOE H73ROHUHhInc35to49.9kRnt35to39.9","H73ROHUHhInc35to49.9kRnt40to49.9","MOE H73ROHUHhInc35to49.9kRnt40to49.9","H73ROHUHhInc35to49.9kRnt>50pct","MOE H73ROHUHhInc35to49.9kRnt>50pct","H73ROHUHhInc35to49.9kRntPctNC","MOE H73ROHUHhInc35to49.9kRntPctNC","H73ROHUHhInc50to74.9k","MOE H73ROHUHhInc50to74.9k","H73ROHUHhInc50to74.9kRnt<20pct","MOE H73ROHUHhInc50to74.9kRnt<20pct","H73ROHUHhInc50to74.9kRnt20to25pct","MOE H73ROHUHhInc50to74.9kRnt20to25pct","H73ROHUHhInc50to74.9kRnt25to30pct","MOE H73ROHUHhInc50to74.9kRnt25to30pct","H73ROHUHhInc50to74.9kRnt30to35pct","MOE H73ROHUHhInc50to74.9kRnt30to35pct","H73ROHUHhInc50to74.9kRnt35to39.9","MOE H73ROHUHhInc50to74.9kRnt35to39.9","H73ROHUHhInc50to74.9kRnt40to49.9","MOE H73ROHUHhInc50to74.9kRnt40to49.9","H73ROHUHhInc50to74.9kRnt>50pct","MOE H73ROHUHhInc50to74.9kRnt>50pct","H73ROHUHhInc50to74.9kRntPctNC","MOE H73ROHUHhInc50to74.9kRntPctNC","H73ROHUHhInc75to99.9k","MOE H73ROHUHhInc75to99.9k","H73ROHUHhInc75to99.9kRnt<20pct","MOE H73ROHUHhInc75to99.9kRnt<20pct","H73ROHUHhInc75to99.9kRnt20to25pct","MOE H73ROHUHhInc75to99.9kRnt20to25pct","H73ROHUHhInc75to99.9kRnt25to30pct","MOE H73ROHUHhInc75to99.9kRnt25to30pct","H73ROHUHhInc75to99.9kRnt30to35pct","MOE H73ROHUHhInc75to99.9kRnt30to35pct","H73ROHUHhInc75to99.9kRnt35to39.9","MOE H73ROHUHhInc75to99.9kRnt35to39.9","H73ROHUHhInc75to99.9kRnt40to49.9","MOE H73ROHUHhInc75to99.9kRnt40to49.9","H73ROHUHhInc75to99.9kRnt>50pct","MOE H73ROHUHhInc75to99.9kRnt>50pct","H73ROHUHhInc75to99.9kRntPctNC","MOE H73ROHUHhInc75to99.9kRntPctNC","H73ROHUHhInc>100k","MOE H73ROHUHhInc>100k","H73ROHUHhInc>100kRnt<20pct","MOE H73ROHUHhInc>100kRnt<20pct","H73ROHUHhInc>100kRnt20to25pct","MOE H73ROHUHhInc>100kRnt20to25pct","H73ROHUHhInc>100kRnt25to30pct","MOE H73ROHUHhInc>100kRnt25to30pct","H73ROHUHhInc>100kRnt30to35pct","MOE H73ROHUHhInc>100kRnt30to35pct","H73ROHUHhInc>100kRnt35to39.9","MOE H73ROHUHhInc>100kRnt35to39.9","H73ROHUHhInc>100kRnt40to49.9","MOE H73ROHUHhInc>100kRnt40to49.9","H73ROHUHhInc>100kRnt>50pct","MOE H73ROHUHhInc>100kRnt>50pct","H73ROHUHhInc>100kRntPctNC","MOE H73ROHUHhInc>100kRntPctNC"]
[{"$f":"VLOOKUP(DropDownList!$B$47,CntyQryCensus!$A$510:$DA$552,A$1)","v":"Allenstown"},3001,266,2901,278,13,22,28,45,28,25,95,66,66,61,12,18,89,59,31,33,74,72,43,30,0,17,95,62,151,75,140,94,202,104,529,147,301,146,579,193,291,113,103,54,31,30,100,67,872,211,535,128,51,75,0,11,0,11,0,11,0,11,0,11,0,11,0,11,51,75,81,67,0,11,0,11,18,20,0,11,0,11,0,11,63,61,0,11,202,101,53,54,14,24,0,11,18,25,48,74,52,39,17,26,0,11,33,35,5,8,0,11,6,10,22,34,0,11,0,11,0,11,0,11,86,58,43,43,0,11,6,10,7,11,30,40,0,11,0,11,0,11,44,30,11,13,20,21,13,14,0,11,0,11,0,11,0,11,0,11,38,44,38,44,0,11,0,11,0,11,0,11,0,11,0,11,0,11]
[]
[]
[]
[]
[]
["Occupied Rental Housing Cost Burdern All Incomes"]
["NAME","RntrOccHU","MOE RntrOccHU","RntrOccHUwRent","MOE RntrOccHUwRent","ROHUGRent<100","MOE ROHUGRent<100","ROHUGRent100to149","MOE ROHUGRent100to149","ROHUGRent150to199","MOE ROHUGRent150to199","ROHUGRent200to249","MOE ROHUGRent200to249","ROHUGRent250to299","MOE ROHUGRent250to299","ROHUGRent300to349","MOE ROHUGRent300to349","ROHUGRent350to399","MOE ROHUGRent350to399","ROHUGRent400to449","MOE ROHUGRent400to449","ROHUGRent450to499","MOE ROHUGRent450to499","ROHUGRent500to549","MOE ROHUGRent500to549","ROHUGRent550to599","MOE ROHUGRent550to599","ROHUGRent600to649","MOE ROHUGRent600to649","ROHUGRent650to699","MOE ROHUGRent650to699","ROHUGRent700to749","MOE ROHUGRent700to749","ROHUGRent750to799","MOE ROHUGRent750to799","ROHUGRent800to899","MOE ROHUGRent800to899","ROHUGRent900to999","MOE ROHUGRent900to999","ROHUGRent1000to1249","MOE ROHUGRent1000to1249","ROHUGRent1250to1499","MOE ROHUGRent1250to1499","ROHUGRent1500to1999","MOE ROHUGRent1500to1999","ROHUGRent2000>","MOE ROHUGRent2000>","ROHUNoGRent","MOE ROHUNoGRent","MedianGrossRnt","MOE MedianGrossRnt","H73RenterOccHU","MOE H73RenterOccHU","H73ROHUHhInc<10k","MOE H73ROHUHhInc<10k","H73ROHUHhInc<10kRnt<20pct","MOE H73ROHUHhInc<10kRnt<20pct","H73ROHUHhInc<10kRnt20to25pct","MOE H73ROHUHhInc<10kRnt20to25pct","H73ROHUHhInc<10kRnt25to30pct","MOE H73ROHUHhInc<10kRnt25to30pct","H73ROHUHhInc<10kRnt30to35pct","MOE H73ROHUHhInc<10kRnt30to35pct","H73ROHUHhInc<10kRnt35to39.9","MOE H73ROHUHhInc<10kRnt35to39.9","H73ROHUHhInc<10kRnt40to49.9","MOE H73ROHUHhInc<10kRnt40to49.9","H73ROHUHhInc<10kRnt>50pct","MOE H73ROHUHhInc<10kRnt>50pct","H73ROHUHhInc<10kPctNotComput","MOE H73ROHUHhInc<10kPctNotComput","H73ROHUHhInc10to20k","MOE H73ROHUHhInc10to20k","H73ROHUHhInc10to20kRnt<20pct","MOE H73ROHUHhInc10to20kRnt<20pct","H73ROHUHhInc10to20kRnt20to25pct","MOE H73ROHUHhInc10to20kRnt20to25pct","H73ROHUHhInc10to20kRnt25to30pct","MOE H73ROHUHhInc10to20kRnt25to30pct","H73ROHUHhInc10to20kRnt30to35pct","MOE H73ROHUHhInc10to20kRnt30to35pct","H73ROHUHhInc10to20kRnt35to39.9","MOE H73ROHUHhInc10to20kRnt35to39.9","H73ROHUHhInc10to20kRnt40to49.9","MOE H73ROHUHhInc10to20kRnt40to49.9","H73ROHUHhInc10to20kRnt>50pct","MOE H73ROHUHhInc10to20kRnt>50pct","H73ROHUHhInc10to20kRntPctNC","MOE H73ROHUHhInc10to20kRntPctNC","H73ROHUHhInc20to34.9k","MOE H73ROHUHhInc20to34.9k","H73ROHUHhInc20to34.9kRnt<20pct","MOE H73ROHUHhInc20to34.9kRnt<20pct","H73ROHUHhInc20to34.9kRnt20to25pct","MOE H73ROHUHhInc20to34.9kRnt20to25pct","H73ROHUHhInc20to34.9kRnt25to30pct","MOE H73ROHUHhInc20to34.9kRnt25to30pct","H73ROHUHhInc20to34.9kRnt30to35pct","MOE H73ROHUHhInc20to34.9kRnt30to35pct","H73ROHUHhInc20to34.9kRnt35to39.9","MOE H73ROHUHhInc20to34.9kRnt35to39.9","H73ROHUHhInc20to34.9kRnt40to49.9","MOE H73ROHUHhInc20to34.9kRnt40to49.9","H73ROHUHhInc20to34.9kRnt>50pct","MOE H73ROHUHhInc20to34.9kRnt>50pct","H73ROHUHhInc20to34.9kRntPctNC","MOE H73ROHUHhInc20to34.9kRntPctNC","H73ROHUHhInc35to49.9k","MOE H73ROHUHhInc35to49.9k","H73ROHUHhInc35to49.9kRnt<20pct","MOE H73ROHUHhInc35to49.9kRnt<20pct","H73ROHUHhInc35to49.9kRnt20to25pct","MOE H73ROHUHhInc35to49.9kRnt20to25pct","H73ROHUHhInc35to49.9kRnt25to30pct","MOE H73ROHUHhInc35to49.9kRnt25to30pct","H73ROHUHhInc35to49.9kRnt30to35pct","MOE H73ROHUHhInc35to49.9kRnt30to35pct","H73ROHUHhInc35to49.9kRnt35to39.9","MOE H73ROHUHhInc35to49.9kRnt35to39.9","H73ROHUHhInc35to49.9kRnt40to49.9","MOE H73ROHUHhInc35to49.9kRnt40to49.9","H73ROHUHhInc35to49.9kRnt>50pct","MOE H73ROHUHhInc35to49.9kRnt>50pct","H73ROHUHhInc35to49.9kRntPctNC","MOE H73ROHUHhInc35to49.9kRntPctNC","H73ROHUHhInc50to74.9k","MOE H73ROHUHhInc50to74.9k","H73ROHUHhInc50to74.9kRnt<20pct","MOE H73ROHUHhInc50to74.9kRnt<20pct","H73ROHUHhInc50to74.9kRnt20to25pct","MOE H73ROHUHhInc50to74.9kRnt20to25pct","H73ROHUHhInc50to74.9kRnt25to30pct","MOE H73ROHUHhInc50to74.9kRnt25to30pct","H73ROHUHhInc50to74.9kRnt30to35pct","MOE H73ROHUHhInc50to74.9kRnt30to35pct","H73ROHUHhInc50to74.9kRnt35to39.9","MOE H73ROHUHhInc50to74.9kRnt35to39.9","H73ROHUHhInc50to74.9kRnt40to49.9","MOE H73ROHUHhInc50to74.9kRnt40to49.9","H73ROHUHhInc50to74.9kRnt>50pct","MOE H73ROHUHhInc50to74.9kRnt>50pct","H73ROHUHhInc50to74.9kRntPctNC","MOE H73ROHUHhInc50to74.9kRntPctNC","H73ROHUHhInc75to99.9k","MOE H73ROHUHhInc75to99.9k","H73ROHUHhInc75to99.9kRnt<20pct","MOE H73ROHUHhInc75to99.9kRnt<20pct","H73ROHUHhInc75to99.9kRnt20to25pct","MOE H73ROHUHhInc75to99.9kRnt20to25pct","H73ROHUHhInc75to99.9kRnt25to30pct","MOE H73ROHUHhInc75to99.9kRnt25to30pct","H73ROHUHhInc75to99.9kRnt30to35pct","MOE H73ROHUHhInc75to99.9kRnt30to35pct","H73ROHUHhInc75to99.9kRnt35to39.9","MOE H73ROHUHhInc75to99.9kRnt35to39.9","H73ROHUHhInc75to99.9kRnt40to49.9","MOE H73ROHUHhInc75to99.9kRnt40to49.9","H73ROHUHhInc75to99.9kRnt>50pct","MOE H73ROHUHhInc75to99.9kRnt>50pct","H73ROHUHhInc75to99.9kRntPctNC","MOE H73ROHUHhInc75to99.9kRntPctNC","H73ROHUHhInc>100k","MOE H73ROHUHhInc>100k","H73ROHUHhInc>100kRnt<20pct","MOE H73ROHUHhInc>100kRnt<20pct","H73ROHUHhInc>100kRnt20to25pct","MOE H73ROHUHhInc>100kRnt20to25pct","H73ROHUHhInc>100kRnt25to30pct","MOE H73ROHUHhInc>100kRnt25to30pct","H73ROHUHhInc>100kRnt30to35pct","MOE H73ROHUHhInc>100kRnt30to35pct","H73ROHUHhInc>100kRnt35to39.9","MOE H73ROHUHhInc>100kRnt35to39.9","H73ROHUHhInc>100kRnt40to49.9","MOE H73ROHUHhInc>100kRnt40to49.9","H73ROHUHhInc>100kRnt>50pct","MOE H73ROHUHhInc>100kRnt>50pct","H73ROHUHhInc>100kRntPctNC","MOE H73ROHUHhInc>100kRntPctNC"]
[{"$f":"VLOOKUP(DropDownList!$B$47,CntyQryCensus!$A$510:$DA$552,A$1)","v":"Allenstown"},535,128,17,20,29,39,104,68,34,33,43,27,47,45,78,86,52,39,80,65,51,75]
[]
["Income By Household Type and Tenure"]
["NAME","TotalFamilyHouseholds",{"$f":"\"MOE \"&B159","v":"MOE TotalFamilyHouseholds"},"FamInc<10K",{"$f":"\"MOE \"&D159","v":"MOE FamInc<10K"},"FamInc10to15K",{"$f":"\"MOE \"&F159","v":"MOE FamInc10to15K"},"FamInc15to20K",{"$f":"\"MOE \"&H159","v":"MOE FamInc15to20K"},"FamInc20to25K",{"$f":"\"MOE \"&J159","v":"MOE FamInc20to25K"},"FamInc25to30K",{"$f":"\"MOE \"&L159","v":"MOE FamInc25to30K"},"FamInc30to35K",{"$f":"\"MOE \"&N159","v":"MOE FamInc30to35K"},"FamInc35to40K",{"$f":"\"MOE \"&P159","v":"MOE FamInc35to40K"},"FamInc40to45K",{"$f":"\"MOE \"&R159","v":"MOE FamInc40to45K"},"FamInc45to50K",{"$f":"\"MOE \"&T159","v":"MOE FamInc45to50K"},"FamInc50to60K",{"$f":"\"MOE \"&V159","v":"MOE FamInc50to60K"},"FamInc60to75K",{"$f":"\"MOE \"&X159","v":"MOE FamInc60to75K"},"FamInc75to100K",{"$f":"\"MOE \"&Z159","v":"MOE FamInc75to100K"},"FamInc100to125K",{"$f":"\"MOE \"&AB159","v":"MOE FamInc100to125K"},"FamInc125to150K",{"$f":"\"MOE \"&AD159","v":"MOE FamInc125to150K"},"FamInc150to200K",{"$f":"\"MOE \"&AF159","v":"MOE FamInc150to200K"},"FamInc>200K",{"$f":"\"MOE \"&AH159","v":"MOE FamInc>200K"},"MedFamInc",{"$f":"\"MOE \"&AJ159","v":"MOE MedFamInc"},"TotalNonNonFamilyHouseholds",{"$f":"\"MOE \"&AL159","v":"MOE TotalNonNonFamilyHouseholds"},"NonFamInc<10K",{"$f":"\"MOE \"&AN159","v":"MOE NonFamInc<10K"},"NonFamInc10to15K",{"$f":"\"MOE \"&AP159","v":"MOE NonFamInc10to15K"},"NonFamInc15to20K",{"$f":"\"MOE \"&AR159","v":"MOE NonFamInc15to20K"},"NonFamInc20to25K",{"$f":"\"MOE \"&AT159","v":"MOE NonFamInc20to25K"},"NonFamInc25to30K",{"$f":"\"MOE \"&AV159","v":"MOE NonFamInc25to30K"},"NonFamInc30to35K",{"$f":"\"MOE \"&AX159","v":"MOE NonFamInc30to35K"},"NonFamInc35to40K",{"$f":"\"MOE \"&AZ159","v":"MOE NonFamInc35to40K"},"NonFamInc40to45K",{"$f":"\"MOE \"&BB159","v":"MOE NonFamInc40to45K"},"NonFamInc45to50K",{"$f":"\"MOE \"&BD159","v":"MOE NonFamInc45to50K"},"NonFamInc50to60K",{"$f":"\"MOE \"&BF159","v":"MOE NonFamInc50to60K"},"NonFamInc60to75K",{"$f":"\"MOE \"&BH159","v":"MOE NonFamInc60to75K"},"NonFamInc75to100K",{"$f":"\"MOE \"&BJ159","v":"MOE NonFamInc75to100K"},"NonFamInc100to125K",{"$f":"\"MOE \"&BL159","v":"MOE NonFamInc100to125K"},"NonFamInc125to150K",{"$f":"\"MOE \"&BN159","v":"MOE NonFamInc125to150K"},"NonFamInc150to200K",{"$f":"\"MOE \"&BP159","v":"MOE NonFamInc150to200K"},"NonFamInc>200K",{"$f":"\"MOE \"&BR159","v":"MOE NonFamInc>200K"},"MedNonFamInc",{"$f":"\"MOE \"&BT159","v":"MOE MedNonFamInc"}]
[{"$f":"VLOOKUP(DropDownList!$B$47,CntyQryCensus!$A$510:$DA$552,A$1)","v":"Allenstown"},1182,89,48,47,11,18,10,17,103,74,17,19,67,55,78,42,42,29,63,37,108,56,155,64,210,82,136,54,64,41,70,42,0,11,64167,6154,605,123,64,77,94,74,32,32,58,45,60,57,51,41,21,26,62,40,22,34,44,36,34,27,9,15,42,46,12,18,0,11,0,11,null,null,29236,6507]
[]
[]
[]
["2010 Census"]
[]
["TownName"]
[{"$f":"VLOOKUP(DropDownList!$B$47,CntyQryCensus!$A$542:$DA$568,A$1)","v":"Allenstown"}]

{"sheet":"CntyDataLinkPrior10YearEstimate","index":16,"n_rows":167,"n_cols":183,"rows_kept":167,"cut":false,"hidden":true,"merged":[]}
[1,{"$f":"A1+1","v":2},3,4,5,6,7,8,9,10,11,12,13,14,15,16,17,18,19,20,21,22,23,24,25,26,27,28,29,30,31,32,33,34,35,36,37,38,39,40,41,42,43,44,45,46,47,48,49,50,51,52,53,54,55,56,57,58,59,60,61,62,63,64,65,{"$f":"BM1+1","v":66},67,68,69,70,71,72,73,74,75,76,77,78,79,80,81,82,83,84,85,86,87,88,89,90,91,92,93,94,95,96,97,98,99,100,101,102,103,104,105,106,107,108,109,110,111,112,113,114,115,116,117,118,119,120,121,122,123,124,125,126,127,128,129,{"$f":"DY1+1","v":130},131,132,133,134,135,136,137,138,139,140,141,142,143,144,145,146,147,148,149,150,151,152,153,154,155,156,157,158,159,160,161,162,163,164,165,166,167,168,169,170,171,172,173,174,175,176,177,178,179,180,181,182,183]
[]
["Census 1990 Data -           Query Name:  DPCnty90Census"]
["TownName"]
[{"$f":"VLOOKUP(DropDownList!$A$47,CntyQuery!$A$4:$FI$46,A1)","v":"Allenstown"}]
[]
[]
["Census 1990 Data -    Query Name:  TownSTF1Qry1"]
["NAME"]
[{"$f":"VLOOKUP(DropDownList!$B$47,CntyQuery!$A$51:$CE$93,A$1)","v":"Allenstown"}]
[]
[]
["Census 1990 Data -          Query Name: TownSTF3Qry1"]
["NAME"]
[]
[]
[]
["Other Demo Data -             Query Name: QryAllTowns-ACSDemographicSheet"]
["TOWN_NAME"]
[{"$f":"VLOOKUP(DropDownList!$B$47,CntyQuery!$A$118:$DZ$144,A$1)","v":"Allenstown"}]
[]
[]
["NH Employment Data"]
["AreaName"]
[{"$f":"VLOOKUP(DropDownList!$B$47,CntyQuery!$A$170:$FJ$213,A$1)","v":"Allenstown"}]
[]
[]
[]
["PlaceName"]
[{"$f":"VLOOKUP(DropDownList!$B$47,CntyQryCensus!$A$4:$EF$46,A$1)","v":"Allenstown"}]
[]
[]
["Census 2000   -           Query Name:  TownAllQuery3"]
["NAME"]
[{"$f":"VLOOKUP(DropDownList!$B$47,CntyQryCensus!$A$4:$CW$46,A$1)","v":"Allenstown"}]
[]
[]
["Census 2000 DemoProfile Sample Data Tables 2&3   -  DPTab23TownQry"]
["NAME"]
[{"$f":"VLOOKUP(DropDownList!$B$47,CntyQryCensus!$A$53:$BY$96,A$1)","v":"Allenstown"}]
[]
[]
["Census 2000 DemoProfile Sample Data Table 4   -  DPTab4TownQry"]
["NAME"]
[{"$f":"VLOOKUP(DropDownList!$B$47,CntyQryCensus!$A$103:$CX$146,A$1)","v":"Allenstown"}]
[]
[]
["Census 2000 SummaryFile3 Sample Data  -  SF3TownQry1SocialChar"]
["NAME"]
[{"$f":"VLOOKUP(DropDownList!$B$47,CntyQryCensus!$A$156:$FR$198,A$1)","v":"Allenstown"}]
[]
[]
["Census 2000 SummaryFile3 Sample Data  -  SF3TownQry2aIncomeChar"]
["NAME"]
[{"$f":"VLOOKUP(DropDownList!$B$47,CntyQryCensus!$A$206:$HH$248,A$1)","v":"Allenstown"}]
[]
[]
["Census 2000 SummaryFile3 Sample Data  -  SF3TownQry2bPovertyChar"]
["NAME"]
[{"$f":"VLOOKUP(DropDownList!$B$47,CntyQryCensus!$A$256:$BI$298,A$1)","v":"Allenstown"}]
[]
[]
["Census 2000 SummaryFile3 Sample Data  -  SF3TownQry7HousingA"]
["NAME"]
[{"$f":"VLOOKUP(DropDownList!$B47,CntyQryCensus!$A$306:$GX$348,A$1)","v":"Allenstown"}]
[]
[]
["Census 2000 SummaryFile3 Sample Data  -  SF3TownQry8HousingCostA"]
["NAME"]
[{"$f":"VLOOKUP(DropDownList!$B$47,CntyQryCensus!$A$357:$CM$399,A$1)","v":"Allenstown"}]
[]
[]
["Census 2000 SummaryFile3 Sample Data  -  SF3TownQry8HousingCostB"]
["NAME"]
[{"$f":"VLOOKUP(DropDownList!$B$47,CntyQryCensus!$A$408:$FN$450,A$1)","v":"Allenstown"}]
[]
[]
["Census 2000 SummaryFile3 Sample Data  -  SF3TownQry9HHIncomeByTenure"]
["NAME"]
[{"$f":"VLOOKUP(DropDownList!$B$47,CntyQryCensus!$A$459:$AG$501,A$1)","v":"Allenstown"}]
[]
[]
[]
[]
[]
[{"$f":"VLOOKUP(DropDownList!$B$47,CntyQryCensus!$A$510:$DA$552,A$1)","v":"Allenstown"}]
[]
[]
[]
[]
[]
[]
[]
["Census 2000 SummaryFile3 Sample Data - SF3TownQry10Disabil"]
["NAME"]
[{"$f":"VLOOKUP(DropDownList!$B$47,CntyQryCensus!$A$510:$DA$552,A$1)","v":"Allenstown"}]
[]
[]
[]
[]
[{"$f":"VLOOKUP(DropDownList!$B$47,CntyQryCensus!$A$510:$DA$552,A$1)","v":"Allenstown"}]
[]
[]
[]
["ACS",2,{"$f":"B105+1","v":3},{"$f":"C105+1","v":4},5,6,7,8,9,10,11,{"$f":"K105+1","v":12},13,14,15,{"$f":"O105+1","v":16},17,18,19,20,21,22,23,24,25,26,27,28,29,30,31,32,33,34,35,36,37,38,39,40,41,42,43,44,45,46,47,48,49,50,51,52,53,54,55,56,57,58,59,60,61,62,63,64,65,66,67,{"$f":"BO105+1","v":68},69,70,71,72,73,74,75,76,77,78,79,80,81,82,83,84,85,86,87,88,89,90,91,92,93,94,95,96,97,98,99,100,101,102,103,104,105,106,107,108,109,110,111,112,113,114,115,116,117,118,119,120,121,122,123,124,125]
["Househould Data (Housing Unit Type)"]
["NAME","TotalHU",{"$f":"\"MOE \"&B107","v":"MOE TotalHU"},"TotalOccHU",{"$f":"\"MOE \"&D107","v":"MOE TotalOccHU"},"TotalOwnerOccUn",{"$f":"\"MOE \"&F107","v":"MOE TotalOwnerOccUn"},"TotalRenterOccn",{"$f":"\"MOE \"&H107","v":"MOE TotalRenterOccn"},"TotalVacantUntis",{"$f":"\"MOE \"&J107","v":"MOE TotalVacantUntis"},"VacantUnitsForRent",{"$f":"\"MOE \"&L107","v":"MOE VacantUnitsForRent"},"VacantUnitRentedNotOcc",{"$f":"\"MOE \"&N107","v":"MOE VacantUnitRentedNotOcc"},"VacantUnitForSale",{"$f":"\"MOE \"&P107","v":"MOE VacantUnitForSale"},"VacantUnitSoldNotOcc",{"$f":"\"MOE \"&R107","v":"MOE VacantUnitSoldNotOcc"},"VacantUnitSeasonalRec",{"$f":"\"MOE \"&T107","v":"MOE VacantUnitSeasonalRec"},"TotalPopInHousingUnits",{"$f":"\"MOE \"&V107","v":"MOE TotalPopInHousingUnits"},"OwnerOccPopHousingUnits",{"$f":"\"MOE \"&X107","v":"MOE OwnerOccPopHousingUnits"},"RenterOccPopHousingUnits",{"$f":"\"MOE \"&Z107","v":"MOE RenterOccPopHousingUnits"},"TotalUntis",{"$f":"\"MOE \"&AB107","v":"MOE TotalUntis"},"TotalOwnerOccUnits",{"$f":"\"MOE \"&AD107","v":"MOE TotalOwnerOccUnits"},"SigFamOwnerOcc",{"$f":"\"MOE \"&AF107","v":"MOE SigFamOwnerOcc"},"MultiFamOwnerOcc",{"$f":"\"MOE \"&AH107","v":"MOE MultiFamOwnerOcc"},"MobileOwnerOcc",{"$f":"\"MOE \"&AJ107","v":"MOE MobileOwnerOcc"},"TotalRenterOccUnits",{"$f":"\"MOE \"&AL107","v":"MOE TotalRenterOccUnits"},"SigFamRenterOcc",{"$f":"\"MOE \"&AN107","v":"MOE SigFamRenterOcc"},"MultiFamRenterOcc",{"$f":"\"MOE \"&AP107","v":"MOE MultiFamRenterOcc"},"MobileRenterOcc",{"$f":"\"MOE \"&AR107","v":"MOE MobileRenterOcc"},"TotalSigFamilyUnits",{"$f":"\"MOE \"&AT107","v":"MOE TotalSigFamilyUnits"},"TotalMultiFamilyUnits",{"$f":"\"MOE \"&AV107","v":"MOE TotalMultiFamilyUnits"},"TotalMobileUnits",{"$f":"\"MOE \"&AX107","v":"MOE TotalMobileUnits"},"YrHouseBuilt2005Later",{"$f":"\"MOE \"&AZ107","v":"MOE YrHouseBuilt2005Later"},"YrHouseBuilt2000-2004",{"$f":"\"MOE \"&BB107","v":"MOE YrHouseBuilt2000-2004"},"YrHouseBuilt1990-1999",{"$f":"\"MOE \"&BD107","v":"MOE YrHouseBuilt1990-1999"},"YrHouseBuilt1980-1989",{"$f":"\"MOE \"&BF107","v":"MOE YrHouseBuilt1980-1989"},"YrHouseBuilt1970-1979",{"$f":"\"MOE \"&BH107","v":"MOE YrHouseBuilt1970-1979"},"YrHouseBuilt1960-1969",{"$f":"\"MOE \"&BJ107","v":"MOE YrHouseBuilt1960-1969"},"YrHouseBuilt1950-1959",{"$f":"\"MOE \"&BL107","v":"MOE YrHouseBuilt1950-1959"},"YrHouseBuilt1940-1949",{"$f":"\"MOE \"&BN107","v":"MOE YrHouseBuilt1940-1949"},"YrHouseBuilt1939orEarlier",{"$f":"\"MOE \"&BP107","v":"MOE YrHouseBuilt1939orEarlier"},"NoBedrooms",{"$f":"\"MOE \"&BR107","v":"MOE NoBedrooms"},"1Bedroom",{"$f":"\"MOE \"&BT107","v":"MOE 1Bedroom"},"2Bedroom",{"$f":"\"MOE \"&BV107","v":"MOE 2Bedroom"},"3Bedroom",{"$f":"\"MOE \"&BX107","v":"MOE 3Bedroom"},"4+Bedroom",{"$f":"\"MOE \"&BZ107","v":"MOE 4+Bedroom"}]
[{"$f":"VLOOKUP(DropDownList!$B$47,CntyQryCensus!$A$510:$DA$552,A$1)","v":"Allenstown"},1897,142,1824,124,1176,172,648,178,318,73,0,114,38,59,35,56,0,114,0,114,4956,29,3337,535,1619,534,1824,124,1176,172,803,149,112,207.27517941133232,261,143.40502083260543,648,178,58,56,551,197.81304304822774,39,117.881296226331,896,146,701,207.10383868967759,300,141.01418368376991,134,91,57,44,75,40,552,134,414,119,140,76,112,105,9,14,404,132,106,84,325,108,451,151,705,154,310,140.24621207005913]
[]
["Disability Data"]
["NAME","TotalPop",{"$f":"\"MOE \"&B111","v":"MOE TotalPop"},"PopUnder 5 years:",{"$f":"\"MOE \"&D111","v":"MOE PopUnder 5 years:"},{"$f":"D$111&\"-WithDisability\"","v":"PopUnder 5 years:-WithDisability"},{"$f":"\"MOE \"&F111","v":"MOE PopUnder 5 years:-WithDisability"},{"$f":"D111&\"-NoDisability\"","v":"PopUnder 5 years:-NoDisability"},{"$f":"\"MOE \"&H111","v":"MOE PopUnder 5 years:-NoDisability"},"PopUnder 5 to 17years:",{"$f":"\"MOE \"&J111","v":"MOE PopUnder 5 to 17years:"},{"$f":"J$111&\"-WithDisability\"","v":"PopUnder 5 to 17years:-WithDisability"},{"$f":"\"MOE \"&L111","v":"MOE PopUnder 5 to 17years:-WithDisability"},{"$f":"J111&\"-NoDisability\"","v":"PopUnder 5 to 17years:-NoDisability"},{"$f":"\"MOE \"&N111","v":"MOE PopUnder 5 to 17years:-NoDisability"},"PopUnder 18 to 34 years:",{"$f":"\"MOE \"&P111","v":"MOE PopUnder 18 to 34 years:"},{"$f":"P$111&\"-WithDisability\"","v":"PopUnder 18 to 34 years:-WithDisability"},{"$f":"\"MOE \"&R111","v":"MOE PopUnder 18 to 34 years:-WithDisability"},{"$f":"P111&\"-NoDisability\"","v":"PopUnder 18 to 34 years:-NoDisability"},{"$f":"\"MOE \"&T111","v":"MOE PopUnder 18 to 34 years:-NoDisability"},"Pop 35 years to 64:",{"$f":"\"MOE \"&V111","v":"MOE Pop 35 years to 64:"},{"$f":"$V$111&\"-WithDisability\"","v":"Pop 35 years to 64:-WithDisability"},{"$f":"\"MOE \"&X111","v":"MOE Pop 35 years to 64:-WithDisability"},{"$f":"$V$111&\"-NoDisability\"","v":"Pop 35 years to 64:-NoDisability"},{"$f":"\"MOE \"&Z111","v":"MOE Pop 35 years to 64:-NoDisability"},"Pop 65 years to 74:",{"$f":"\"MOE \"&AB111","v":"MOE Pop 65 years to 74:"},{"$f":"$AB$111&\"-WithDisability\"","v":"Pop 65 years to 74:-WithDisability"},{"$f":"\"MOE \"&AD111","v":"MOE Pop 65 years to 74:-WithDisability"},{"$f":"$AB$111&\"-NoDisability\"","v":"Pop 65 years to 74:-NoDisability"},{"$f":"\"MOE \"&AF111","v":"MOE Pop 65 years to 74:-NoDisability"},"Pop 75 and older:",{"$f":"\"MOE \"&AH111","v":"MOE Pop 75 and older:"},{"$f":"$AH$111&\"-WithDisability\"","v":"Pop 75 and older:-WithDisability"},{"$f":"\"MOE \"&AJ111","v":"MOE Pop 75 and older:-WithDisability"},{"$f":"$AH$111&\"-NoDisability\"","v":"Pop 75 and older:-NoDisability"},{"$f":"\"MOE \"&AL111","v":"MOE Pop 75 and older:-NoDisability"},"TotalPopUnder5_HearingDisability",{"$f":"\"MOE \"&AN111","v":"MOE TotalPopUnder5_HearingDisability"},"TotalPopUnder5_HearingDisability",{"$f":"\"MOE \"&AP111","v":"MOE TotalPopUnder5_HearingDisability"},"TotalPop18To34_HearingDisability",{"$f":"\"MOE \"&AR111","v":"MOE TotalPop18To34_HearingDisability"},"TotalPop35To64_HearingDisability",{"$f":"\"MOE \"&AT111","v":"MOE TotalPop35To64_HearingDisability"},"TotalPop65To74_HearingDisability",{"$f":"\"MOE \"&AV111","v":"MOE TotalPop65To74_HearingDisability"},"TotalPop75andOlder_HearingDisability",{"$f":"\"MOE \"&AX111","v":"MOE TotalPop75andOlder_HearingDisability"},"TotalPopUnder5_VisionDisability",{"$f":"\"MOE \"&AZ111","v":"MOE TotalPopUnder5_VisionDisability"},"TotalPop5To17_VisionDisability",{"$f":"\"MOE \"&BB111","v":"MOE TotalPop5To17_VisionDisability"},"TotalPop18To34_VisionDisability",{"$f":"\"MOE \"&BD111","v":"MOE TotalPop18To34_VisionDisability"},"TotalPop35To64_VisionDisability",{"$f":"\"MOE \"&BF111","v":"MOE TotalPop35To64_VisionDisability"},"TotalPop65To74_VisionDisability",{"$f":"\"MOE \"&BH111","v":"MOE TotalPop65To74_VisionDisability"},"TotalPop75andOlder_VisionDisability",{"$f":"\"MOE \"&BJ111","v":"MOE TotalPop75andOlder_VisionDisability"},"TotalPop5To17_CongnitiveDisability",{"$f":"\"MOE \"&BL111","v":"MOE TotalPop5To17_CongnitiveDisability"},"TotalPop18To34_CongnitiveDisability",{"$f":"\"MOE \"&BN111","v":"MOE TotalPop18To34_CongnitiveDisability"},"TotalPop35To64_CongnitiveDisability",{"$f":"\"MOE \"&BP111","v":"MOE TotalPop35To64_CongnitiveDisability"},"TotalPop65To74_CongnitiveDisability",{"$f":"\"MOE \"&BR111","v":"MOE TotalPop65To74_CongnitiveDisability"},"TotalPop75andOlder_CongnitiveDisability",{"$f":"\"MOE \"&BT111","v":"MOE TotalPop75andOlder_CongnitiveDisability"},"TotalPop5To17_AmbulatoryDisability",{"$f":"\"MOE \"&BV111","v":"MOE TotalPop5To17_AmbulatoryDisability"},"TotalPop18To34_AmbulatoryDisability",{"$f":"\"MOE \"&BX111","v":"MOE TotalPop18To34_AmbulatoryDisability"},"TotalPop35To64_AmbulatoryDisability",{"$f":"\"MOE \"&BZ111","v":"MOE TotalPop35To64_AmbulatoryDisability"},"TotalPop65To74_AmbulatoryDisability",{"$f":"\"MOE \"&CB111","v":"MOE TotalPop65To74_AmbulatoryDisability"},"TotalPop75andOlder_AmbulatoryDisability",{"$f":"\"MOE \"&CD111","v":"MOE TotalPop75andOlder_AmbulatoryDisability"},"TotalPop5To17_SelfCareDisability",{"$f":"\"MOE \"&CF111","v":"MOE TotalPop5To17_SelfCareDisability"},"TotalPop18To34_SelfCareDisability",{"$f":"\"MOE \"&CH111","v":"MOE TotalPop18To34_SelfCareDisability"},"TotalPop35To64_SelfCareDisability",{"$f":"\"MOE \"&CJ111","v":"MOE TotalPop35To64_SelfCareDisability"},"TotalPop65To74_SelfCareDisability",{"$f":"\"MOE \"&CL111","v":"MOE TotalPop65To74_SelfCareDisability"},"TotalPop75andOlder_SelfCareDisability",{"$f":"\"MOE \"&CN111","v":"MOE TotalPop75andOlder_SelfCareDisability"},"TotalPop18To34_IndependantLivingDisability",{"$f":"\"MOE \"&CP111","v":"MOE TotalPop18To34_IndependantLivingDisability"},"TotalPop35To64_IndependantLivingDisability",{"$f":"\"MOE \"&CR111","v":"MOE TotalPop35To64_IndependantLivingDisability"},"TotalPop65To74_IndependantLivingDisability",{"$f":"\"MOE \"&CT111","v":"MOE TotalPop65To74_IndependantLivingDisability"},"TotalPop75andOlder_IndependantLivingDisability",{"$f":"\"MOE \"&CV111","v":"MOE TotalPop75andOlder_IndependantLivingDisability"},"TotalUnder18",{"$f":"\"MOE \"&CX111","v":"MOE TotalUnder18"},"Under 18_Total",{"$f":"\"MOE \"&CZ111","v":"MOE Under 18_Total"},"Under18_OneDisability",{"$f":"\"MOE \"&DB111","v":"MOE Under18_OneDisability"},"Under18_TwoDisability",{"$f":"\"MOE \"&DD111","v":"MOE Under18_TwoDisability"},"Under18_NoDisability",{"$f":"\"MOE \"&DF111","v":"MOE Under18_NoDisability"},"18-64._Total",{"$f":"\"MOE \"&DH111","v":"MOE 18-64._Total"},"18-64._OneDisability",{"$f":"\"MOE \"&DJ111","v":"MOE 18-64._OneDisability"},"18-64_TwoDisability",{"$f":"\"MOE \"&DL111","v":"MOE 18-64_TwoDisability"},"18-64_NoDisability",{"$f":"\"MOE \"&DN111","v":"MOE 18-64_NoDisability"},"64 and Over_Total",{"$f":"\"MOE \"&DP111","v":"MOE 64 and Over_Total"},"64 and Over_OneDisability",{"$f":"\"MOE \"&DR111","v":"MOE 64 and Over_OneDisability"},"64 and Over_TwoDisability",{"$f":"\"MOE \"&DT111","v":"MOE 64 and Over_TwoDisability"},"64 and Over_NoDisability",{"$f":"\"MOE \"&DV111","v":"MOE 64 and Over_NoDisability"}]
[{"$f":"VLOOKUP(DropDownList!$B$47,CntyQryCensus!$A$510:$DA$552,A$1)","v":"Allenstown"}]
[]
["Househould Income By Age"]
["NAME","TotalHouseholds",{"$f":"\"MOE \"&B115","v":"MOE TotalHouseholds"},"HHInc<10K",{"$f":"\"MOE \"&D115","v":"MOE HHInc<10K"},"HHInc10to15K",{"$f":"\"MOE \"&F115","v":"MOE HHInc10to15K"},"HHInc15to20K",{"$f":"\"MOE \"&H115","v":"MOE HHInc15to20K"},"HHInc20to25K",{"$f":"\"MOE \"&J115","v":"MOE HHInc20to25K"},"HHInc25to30K",{"$f":"\"MOE \"&L115","v":"MOE HHInc25to30K"},"HHInc30to35K",{"$f":"\"MOE \"&N115","v":"MOE HHInc30to35K"},"HHInc35to40K",{"$f":"\"MOE \"&P115","v":"MOE HHInc35to40K"},"HHInc40to45K",{"$f":"\"MOE \"&R115","v":"MOE HHInc40to45K"},"HHInc45to50K",{"$f":"\"MOE \"&T115","v":"MOE HHInc45to50K"},"HHInc50to60K",{"$f":"\"MOE \"&V115","v":"MOE HHInc50to60K"},"HHInc60to75K",{"$f":"\"MOE \"&X115","v":"MOE HHInc60to75K"},"HHInc75to100K",{"$f":"\"MOE \"&Z115","v":"MOE HHInc75to100K"},"HHInc100to125K",{"$f":"\"MOE \"&AB115","v":"MOE HHInc100to125K"},"HHInc125to150K",{"$f":"\"MOE \"&AD115","v":"MOE HHInc125to150K"},"HHInc150to200K",{"$f":"\"MOE \"&AF115","v":"MOE HHInc150to200K"},"HHInc>200K",{"$f":"\"MOE \"&AH115","v":"MOE HHInc>200K"},"TotalHH",{"$f":"\"MOE \"&AJ115","v":"MOE TotalHH"},"HHAgeHHUnder25yrs",{"$f":"\"MOE \"&AL115","v":"MOE HHAgeHHUnder25yrs"},"HHAgeHH<25HHInc<10K",{"$f":"\"MOE \"&AN115","v":"MOE HHAgeHH<25HHInc<10K"},"HHAgeHH<25HHInc10to15K",{"$f":"\"MOE \"&AP115","v":"MOE HHAgeHH<25HHInc10to15K"},"HHAgeHH<25HHInc15to20K",{"$f":"\"MOE \"&AR115","v":"MOE HHAgeHH<25HHInc15to20K"},"HHAgeHH<25HHInc20to25K",{"$f":"\"MOE \"&AT115","v":"MOE HHAgeHH<25HHInc20to25K"},"HHAgeHH<25HHInc25to30K",{"$f":"\"MOE \"&AV115","v":"MOE HHAgeHH<25HHInc25to30K"},"HHAgeHH<25HHInc30to35K",{"$f":"\"MOE \"&AX115","v":"MOE HHAgeHH<25HHInc30to35K"},"HHAgeHH<25HHInc35to40K",{"$f":"\"MOE \"&AZ115","v":"MOE HHAgeHH<25HHInc35to40K"},"HHAgeHH<25HHInc40to45K",{"$f":"\"MOE \"&BB115","v":"MOE HHAgeHH<25HHInc40to45K"},"HHAgeHH<25HHInc45to50K",{"$f":"\"MOE \"&BD115","v":"MOE HHAgeHH<25HHInc45to50K"},"HHAgeHH<25HHInc50to60K",{"$f":"\"MOE \"&BF115","v":"MOE HHAgeHH<25HHInc50to60K"},"HHAgeHH<25HHInc60to75K",{"$f":"\"MOE \"&BH115","v":"MOE HHAgeHH<25HHInc60to75K"},"HHAgeHH<25HHInc75to100K",{"$f":"\"MOE \"&BJ115","v":"MOE HHAgeHH<25HHInc75to100K"},"HHAgeHH<25HHInc100to125K",{"$f":"\"MOE \"&BL115","v":"MOE HHAgeHH<25HHInc100to125K"},"HHAgeHH<25HHInc125to150K",{"$f":"\"MOE \"&BN115","v":"MOE HHAgeHH<25HHInc125to150K"},"HHAgeHH<25HHInc150to200K",{"$f":"\"MOE \"&BP115","v":"MOE HHAgeHH<25HHInc150to200K"},"HHAge<25HHInc>200K",{"$f":"\"MOE \"&BR115","v":"MOE HHAge<25HHInc>200K"},"HHAgeHH25to44yrs",{"$f":"\"MOE \"&BT115","v":"MOE HHAgeHH25to44yrs"},"HHAgeHH25To44yrsHHInc<10K",{"$f":"\"MOE \"&BV115","v":"MOE HHAgeHH25To44yrsHHInc<10K"},"HHAgeHH25To44yrsHHInc10to15K",{"$f":"\"MOE \"&BX115","v":"MOE HHAgeHH25To44yrsHHInc10to15K"},"HHAgeHH25To44yrsHHInc15to20K",{"$f":"\"MOE \"&BZ115","v":"MOE HHAgeHH25To44yrsHHInc15to20K"},"HHAgeHH25To44yrsHHInc20to25K",{"$f":"\"MOE \"&CB115","v":"MOE HHAgeHH25To44yrsHHInc20to25K"},"HHAgeHH25To44yrsHHInc25to30K",{"$f":"\"MOE \"&CD115","v":"MOE HHAgeHH25To44yrsHHInc25to30K"},"HHAgeHH25To44yrsHHInc30to35K",{"$f":"\"MOE \"&CF115","v":"MOE HHAgeHH25To44yrsHHInc30to35K"},"HHAgeHH25To44yrsHHInc35to40K",{"$f":"\"MOE \"&CH115","v":"MOE HHAgeHH25To44yrsHHInc35to40K"},"HHAgeHH25To44yrsHHInc40to45K",{"$f":"\"MOE \"&CJ115","v":"MOE HHAgeHH25To44yrsHHInc40to45K"},"HHAgeHH25To44yrsHHInc45to50K",{"$f":"\"MOE \"&CL115","v":"MOE HHAgeHH25To44yrsHHInc45to50K"},"HHAgeHH25To44yrsHHInc50to60K",{"$f":"\"MOE \"&CN115","v":"MOE HHAgeHH25To44yrsHHInc50to60K"},"HHAgeHH25To44yrsHHInc60to75K",{"$f":"\"MOE \"&CP115","v":"MOE HHAgeHH25To44yrsHHInc60to75K"},"HHAgeHH25To44yrsHHInc75to100K",{"$f":"\"MOE \"&CR115","v":"MOE HHAgeHH25To44yrsHHInc75to100K"},"HHAgeHH25To44yrsHHInc100to125K",{"$f":"\"MOE \"&CT115","v":"MOE HHAgeHH25To44yrsHHInc100to125K"},"HHAgeHH25To44yrsHHInc125to150K",{"$f":"\"MOE \"&CV115","v":"MOE HHAgeHH25To44yrsHHInc125to150K"},"HHAgeHH25To44yrsHHInc150to200K",{"$f":"\"MOE \"&CX115","v":"MOE HHAgeHH25To44yrsHHInc150to200K"},"HHAge25To44yrsHHInc>200K",{"$f":"\"MOE \"&CZ115","v":"MOE HHAge25To44yrsHHInc>200K"},"HHAgeHH45To64yrs",{"$f":"\"MOE \"&DB115","v":"MOE HHAgeHH45To64yrs"},"HHAgeHH45To64yrsHHInc<10K",{"$f":"\"MOE \"&DD115","v":"MOE HHAgeHH45To64yrsHHInc<10K"},"HHAgeHH45To64yrsHHInc10to15K",{"$f":"\"MOE \"&DF115","v":"MOE HHAgeHH45To64yrsHHInc10to15K"},"HHAgeHH45To64yrsHHInc15to20K",{"$f":"\"MOE \"&DH115","v":"MOE HHAgeHH45To64yrsHHInc15to20K"},"HHAgeHH45To64yrsHHInc20to25K",{"$f":"\"MOE \"&DJ115","v":"MOE HHAgeHH45To64yrsHHInc20to25K"},"HHAgeHH45To64yrsHHInc25to30K",{"$f":"\"MOE \"&DL115","v":"MOE HHAgeHH45To64yrsHHInc25to30K"},"HHAgeHH45To64yrsHHInc30to35K",{"$f":"\"MOE \"&DN115","v":"MOE HHAgeHH45To64yrsHHInc30to35K"},"HHAgeHH45To64yrsHHInc35to40K",{"$f":"\"MOE \"&DP115","v":"MOE HHAgeHH45To64yrsHHInc35to40K"},"HHAgeHH45To64yrsHHInc40to45K",{"$f":"\"MOE \"&DR115","v":"MOE HHAgeHH45To64yrsHHInc40to45K"},"HHAgeHH45To64yrsHHInc45to50K",{"$f":"\"MOE \"&DT115","v":"MOE HHAgeHH45To64yrsHHInc45to50K"},"HHAgeHH45To64yrsHHInc50to60K",{"$f":"\"MOE \"&DV115","v":"MOE HHAgeHH45To64yrsHHInc50to60K"},"HHAgeHH45To64yrsHHInc60to75K",{"$f":"\"MOE \"&DX115","v":"MOE HHAgeHH45To64yrsHHInc60to75K"},"HHAgeHH45To64yrsHHInc75to100K",{"$f":"\"MOE \"&DZ115","v":"MOE HHAgeHH45To64yrsHHInc75to100K"},"HHAgeHH45To64yrsHHInc100to125K",{"$f":"\"MOE \"&EB115","v":"MOE HHAgeHH45To64yrsHHInc100to125K"},"HHAgeHH45To64yrsHHInc125to150K",{"$f":"\"MOE \"&ED115","v":"MOE HHAgeHH45To64yrsHHInc125to150K"},"HHAgeHH45To64yrsHHInc150to200K",{"$f":"\"MOE \"&EF115","v":"MOE HHAgeHH45To64yrsHHInc150to200K"},"HHAge45To64yrsHHInc>200K",{"$f":"\"MOE \"&EH115","v":"MOE HHAge45To64yrsHHInc>200K"},"HHAgeHH65yrsorOlder",{"$f":"\"MOE \"&EJ115","v":"MOE HHAgeHH65yrsorOlder"},"HHAgeHH65yrsorOlderHHInc<10K",{"$f":"\"MOE \"&EL115","v":"MOE HHAgeHH65yrsorOlderHHInc<10K"},"HHAgeHH65yrsorOlderHHInc10to15K",{"$f":"\"MOE \"&EN115","v":"MOE HHAgeHH65yrsorOlderHHInc10to15K"},"HHAgeHH65yrsorOlderHHInc15to20K",{"$f":"\"MOE \"&EP115","v":"MOE HHAgeHH65yrsorOlderHHInc15to20K"},"HHAgeHH65yrsorOlderHHInc20to25K",{"$f":"\"MOE \"&ER115","v":"MOE HHAgeHH65yrsorOlderHHInc20to25K"},"HHAgeHH65yrsorOlderHHInc25to30K",{"$f":"\"MOE \"&ET115","v":"MOE HHAgeHH65yrsorOlderHHInc25to30K"},"HHAgeHH65yrsorOlderHHInc30to35K",{"$f":"\"MOE \"&EV115","v":"MOE HHAgeHH65yrsorOlderHHInc30to35K"},"HHAgeHH65yrsorOlderHHInc35to40K",{"$f":"\"MOE \"&EX115","v":"MOE HHAgeHH65yrsorOlderHHInc35to40K"},"HHAgeHH65yrsorOlderHHInc40to45K",{"$f":"\"MOE \"&EZ115","v":"MOE HHAgeHH65yrsorOlderHHInc40to45K"},"HHAgeHH65yrsorOlderHHInc45to50K",{"$f":"\"MOE \"&FB115","v":"MOE HHAgeHH65yrsorOlderHHInc45to50K"},"HHAgeHH65yrsorOlderHHInc50to60K",{"$f":"\"MOE \"&FD115","v":"MOE HHAgeHH65yrsorOlderHHInc50to60K"},"HHAgeHH65yrsorOlderHHInc60to75K",{"$f":"\"MOE \"&FF115","v":"MOE HHAgeHH65yrsorOlderHHInc60to75K"},"HHAgeHH65yrsorOlderHHInc75to100K",{"$f":"\"MOE \"&FH115","v":"MOE HHAgeHH65yrsorOlderHHInc75to100K"},"HHAgeHH65yrsorOlderHHInc100to125K",{"$f":"\"MOE \"&FJ115","v":"MOE HHAgeHH65yrsorOlderHHInc100to125K"},"HHAgeHH65yrsorOlderHHInc125to150K",{"$f":"\"MOE \"&FL115","v":"MOE HHAgeHH65yrsorOlderHHInc125to150K"},"HHAgeHH65yrsorOlderHHInc150to200K",{"$f":"\"MOE \"&FN115","v":"MOE HHAgeHH65yrsorOlderHHInc150to200K"},"HHAge65yrsorOlderHHInc>200K",{"$f":"\"MOE \"&FP115","v":"MOE HHAge65yrsorOlderHHInc>200K"},"MedianHHInc",{"$f":"\"MOE \"&FR115","v":"MOE MedianHHInc"},"HH under 25 years",{"$f":"\"MOE \"&FT115","v":"MOE HH under 25 years"},"Householder 25 to 44 years",{"$f":"\"MOE \"&FV115","v":"MOE Householder 25 to 44 years"},"Householder 45 to 64 years",{"$f":"\"MOE \"&FX115","v":"MOE Householder 45 to 64 years"},"Householder 65 years and over",{"$f":"\"MOE \"&FZ115","v":"MOE Householder 65 years and over"}]
[{"$f":"VLOOKUP(DropDownList!$B$47,CntyQryCensus!$A$510:$DA$552,A$1)","v":"Allenstown"},1824,124,89,67,105,51,77,64,152,97,45,38,155,65,8,13,77,50,48,52,253,115,171,73,352,112,194,92,65,53,8,12,25,40,1824,124,75,67,8,14,0,114,0,114,0,114,0,114,0,114,0,114,0,114,0,114,0,114,10,16,57,63,0,114,0,114,0,114,0,114,693,117,31,39,0,114,0,114,110,91,13,24,49,53,0,114,32,37,0,114,94,57,46,41,162,91,103,79,28,41,0,114,25,40,748,106,22,26,18,20,38,55,31,31,16,18,66,54,8,13,20,22,48,52,122,101,102,56,133,70,79,52,270,80,328,85,462,114,709,119,68,46,34,31,59,73,15,25,35,55,33,32,39,32,12,19,24,28,65,50,44,28,110,67,46,37,58,53,54,44,13,20,55752,4919,76037,3653,64625,26980,58500,9117,20000,13131]
[]
["Number of Households by Income"]
["NAME","HHIncLessThn10k",{"$f":"\"MOE \"&B119","v":"MOE HHIncLessThn10k"},"HHInc10to15K",{"$f":"\"MOE \"&D119","v":"MOE HHInc10to15K"},"HHInc15to25K",{"$f":"\"MOE \"&F119","v":"MOE HHInc15to25K"},"HHInc25to35K",{"$f":"\"MOE \"&H119","v":"MOE HHInc25to35K"},"HHInc35to50K",{"$f":"\"MOE \"&J119","v":"MOE HHInc35to50K"},"HHInc50to75K",{"$f":"\"MOE \"&L119","v":"MOE HHInc50to75K"},"HHInc75to100K",{"$f":"\"MOE \"&N119","v":"MOE HHInc75to100K"},"HHInc100to150K",{"$f":"\"MOE \"&P119","v":"MOE HHInc100to150K"},"HHInc150to200K",{"$f":"\"MOE \"&R119","v":"MOE HHInc150to200K"},"HHIncOver200K",{"$f":"\"MOE \"&T119","v":"MOE HHIncOver200K"}]
[{"$f":"VLOOKUP(DropDownList!$B$47,CntyQryCensus!$A$510:$DA$552,A$1)","v":"Allenstown"},89,67,105,51,77,64,152,97,45,38,155,65,8,13,77,50,48,52,253,115,171,73,352,112,194,92,65,53,8,12,25,40]
[]
[]
["NAME","TotalPop",{"$f":"\"MOE \"&B123","v":"MOE TotalPop"},"Total Individuals living in Poverty",{"$f":"\"MOE \"&D123","v":"MOE Total Individuals living in Poverty"},"Under 5 yrs.",{"$f":"\"MOE \"&F123","v":"MOE Under 5 yrs."},"5 to 17 yrs.",{"$f":"\"MOE \"&H123","v":"MOE 5 to 17 yrs."},"18 to 64 yrs.",{"$f":"\"MOE \"&J123","v":"MOE 18 to 64 yrs."},"65 to 74 yrs.",{"$f":"\"MOE \"&L123","v":"MOE 65 to 74 yrs."},"75 yrs. & Over",{"$f":"\"MOE \"&N123","v":"MOE 75 yrs. & Over"},"Total Individuals  Not living Poverty",{"$f":"\"MOE \"&P123","v":"MOE Total Individuals  Not living Poverty"},"Under 5 yrs.",{"$f":"\"MOE \"&R123","v":"MOE Under 5 yrs."},"5 to 17 yrs.",{"$f":"\"MOE \"&T123","v":"MOE 5 to 17 yrs."},"18 to 64 yrs.",{"$f":"\"MOE \"&V123","v":"MOE 18 to 64 yrs."},"65 to 74 yrs.",{"$f":"\"MOE \"&X123","v":"MOE 65 to 74 yrs."},"75 yrs. & Over",{"$f":"\"MOE \"&Z123","v":"MOE 75 yrs. & Over"},"Total HH",{"$f":"\"MOE \"&AB123","v":"MOE Total HH"},"Total Households Below Poverty",{"$f":"\"MOE \"&AD123","v":"MOE Total Households Below Poverty"},"Family Households in Poverty",{"$f":"\"MOE \"&AF123","v":"MOE Family Households in Poverty"},"Married Couple Fam HH",{"$f":"\"MOE \"&AH123","v":"MOE Married Couple Fam HH"},"Other Family",{"$f":"\"MOE \"&AJ123","v":"MOE Other Family"},"Male Head of Family HH no wife",{"$f":"\"MOE \"&AL123","v":"MOE Male Head of Family HH no wife"},"Female Head of Family HH no husband",{"$f":"\"MOE \"&AN123","v":"MOE Female Head of Family HH no husband"},"Non-Family HH",{"$f":"\"MOE \"&AP123","v":"MOE Non-Family HH"},"Non-Family Male HH",{"$f":"\"MOE \"&AR123","v":"MOE Non-Family Male HH"},"Non-Family Female HH",{"$f":"\"MOE \"&AT123","v":"MOE Non-Family Female HH"},"Total Households at or Above Poverty",{"$f":"\"MOE \"&AV123","v":"MOE Total Households at or Above Poverty"},"Family Households above Poverty",{"$f":"\"MOE \"&AX123","v":"MOE Family Households above Poverty"},"Married Couple Fam HH",{"$f":"\"MOE \"&AZ123","v":"MOE Married Couple Fam HH"},"Other Family",{"$f":"\"MOE \"&BB123","v":"MOE Other Family"},"Male Head of Family HH no wife",{"$f":"\"MOE \"&BD123","v":"MOE Male Head of Family HH no wife"},"Female Head of Family HH no husband",{"$f":"\"MOE \"&BF123","v":"MOE Female Head of Family HH no husband"},"Non-Family HH",{"$f":"\"MOE \"&BH123","v":"MOE Non-Family HH"},"Non-Family Male HH",{"$f":"\"MOE \"&BJ123","v":"MOE Non-Family Male HH"},"Non-Family Female HH",{"$f":"\"MOE \"&BL123","v":"MOE Non-Family Female HH"},"Married Couple with Children Below Poverty",{"$f":"\"MOE \"&BN123","v":"MOE Married Couple with Children Below Poverty"},"Male HH with children below poverty",{"$f":"\"MOE \"&BP123","v":"MOE Male HH with children below poverty"},"Female HH with children below poverty",{"$f":"\"MOE \"&BR123","v":"MOE Female HH with children below poverty"},"Married Couple with Children At or Above Poverty",{"$f":"\"MOE \"&BT123","v":"MOE Married Couple with Children At or Above Poverty"},"Male HH with children at or above poverty",{"$f":"\"MOE \"&BV123","v":"MOE Male HH with children at or above poverty"},"Female HH with children at or above poverty",{"$f":"\"MOE \"&BX123","v":"MOE Female HH with children at or above poverty"}]
[{"$f":"VLOOKUP(DropDownList!$B$47,CntyQryCensus!$A$510:$DA$552,A$1)","v":"Allenstown"},4885,102,276,272,21,42.190046219457976,102,292.54572292207587,113,208.56653614614211,24,27.586228448267445,16,117.38824472663352,4609,288,224,102.00490184299969,873,237.14341652257605,3095,347.20743079605887,239,70.767224051816527,178,70.724818840347695,100,74,32,38,12,20,null,null,20,33,0,114,20,33,68,53,21,28,47,40,1724,135,1227,107,1074,172,497,123,56,41,179,89,247,90,497,123,250,79,null,null,32,38,12,20,297,68,1227,107,485,95]
[]
["Household Income By Tenure"]
["NAME","TotalOccHU",{"$f":"\"MOE \"&B127","v":"MOE TotalOccHU"},"OwnOccHU",{"$f":"\"MOE \"&D127","v":"MOE OwnOccHU"},"OOHUInc<5K",{"$f":"\"MOE \"&F127","v":"MOE OOHUInc<5K"},"OOHUInc5to10K",{"$f":"\"MOE \"&H127","v":"MOE OOHUInc5to10K"},"OOHUInc10to15K",{"$f":"\"MOE \"&J127","v":"MOE OOHUInc10to15K"},"OOHUInc15to20K",{"$f":"\"MOE \"&L127","v":"MOE OOHUInc15to20K"},"OOHUInc20to25K",{"$f":"\"MOE \"&N127","v":"MOE OOHUInc20to25K"},"OOHUInc25to35K",{"$f":"\"MOE \"&P127","v":"MOE OOHUInc25to35K"},"OOHUInc35to50K",{"$f":"\"MOE \"&R127","v":"MOE OOHUInc35to50K"},"OOHUInc50to75K",{"$f":"\"MOE \"&T127","v":"MOE OOHUInc50to75K"},"OOHUInc75to100K",{"$f":"\"MOE \"&V127","v":"MOE OOHUInc75to100K"},"OOHUInc100to150K",{"$f":"\"MOE \"&X127","v":"MOE OOHUInc100to150K"},"OOHUInc>150K",{"$f":"\"MOE \"&Z127","v":"MOE OOHUInc>150K"},"RentOccHU",{"$f":"\"MOE \"&AB127","v":"MOE RentOccHU"},"ROHUInc<5K",{"$f":"\"MOE \"&AD127","v":"MOE ROHUInc<5K"},"ROHUInc5to10K",{"$f":"\"MOE \"&AF127","v":"MOE ROHUInc5to10K"},"ROHUInc10to15K",{"$f":"\"MOE \"&AH127","v":"MOE ROHUInc10to15K"},"ROHUInc15to20K",{"$f":"\"MOE \"&AJ127","v":"MOE ROHUInc15to20K"},"ROHUInc20to25K",{"$f":"\"MOE \"&AL127","v":"MOE ROHUInc20to25K"},"ROHUInc25to35K",{"$f":"\"MOE \"&AN127","v":"MOE ROHUInc25to35K"},"ROHUInc35to50K",{"$f":"\"MOE \"&AP127","v":"MOE ROHUInc35to50K"},"ROHUInc50to75K",{"$f":"\"MOE \"&AR127","v":"MOE ROHUInc50to75K"},"ROHUInc75to100K",{"$f":"\"MOE \"&AT127","v":"MOE ROHUInc75to100K"},"ROHUInc100to150K",{"$f":"\"MOE \"&AV127","v":"MOE ROHUInc100to150K"},"ROHUInc>150K",{"$f":"\"MOE \"&AX127","v":"MOE ROHUInc>150K"},"Total OCC HUInc<5K",{"$f":"\"MOE \"&AZ127","v":"MOE Total OCC HUInc<5K"},"Total OCC HUInc5to10K",{"$f":"\"MOE \"&BB127","v":"MOE Total OCC HUInc5to10K"},"Total OCC HUInc10to15K",{"$f":"\"MOE \"&BD127","v":"MOE Total OCC HUInc10to15K"},"Total OCC HUInc15to20K",{"$f":"\"MOE \"&BF127","v":"MOE Total OCC HUInc15to20K"},"Total OCC HUInc20to25K",{"$f":"\"MOE \"&BH127","v":"MOE Total OCC HUInc20to25K"},"Total OCC HUInc25to35K",{"$f":"\"MOE \"&BJ127","v":"MOE Total OCC HUInc25to35K"},"Total OCC HUInc35to50K",{"$f":"\"MOE \"&BL127","v":"MOE Total OCC HUInc35to50K"},"Total OCC HUInc50to75K",{"$f":"\"MOE \"&BN127","v":"MOE Total OCC HUInc50to75K"},"Total OCC HUInc75to100K",{"$f":"\"MOE \"&BP127","v":"MOE Total OCC HUInc75to100K"},"Total OCC HUInc100to150K",{"$f":"\"MOE \"&BR127","v":"MOE Total OCC HUInc100to150K"},"Total OCC HUInc>150K",{"$f":"\"MOE \"&BT127","v":"MOE Total OCC HUInc>150K"},"MedHHInc",{"$f":"\"MOE \"&BV127","v":"MOE MedHHInc"},"MedOwnOccHHInc",{"$f":"\"MOE \"&BX127","v":"MOE MedOwnOccHHInc"},"MedRentOccHHInc",{"$f":"\"MOE \"&BZ127","v":"MOE MedRentOccHHInc"}]
[{"$f":"VLOOKUP(DropDownList!$B$47,CntyQryCensus!$A$510:$DA$552,A$1)","v":"Allenstown"},1824,124,34,38.626415831655933,55,52.55473337388365,105,51.429563482495162,77,64.327288144301562,152,98.716766559688324,200,88.617154095581284,133,72.862884927787476,424,122.5275479229059,352,133.68993978605869,259,101.55294185792945,33,121.49074038789952,33,42,648,178,9,14,44,49,80,46,69,63,132,96,85,58,51,53,38,33,80,73,60,43,0,114,34,38.626415831655933,55,52.55473337388365,105,51.429563482495162,77,64.327288144301562,152,98.716766559688324,200,88.617154095581284,133,72.862884927787476,424,122.5275479229059,352,133.68993978605869,259,101.55294185792945,33,121.49074038789952,55752,4919,64773,14181,24632,6501,131,60.207972893961475,97,130.24976007655445,256,116.97008164483771,418,127.05904139414872,510,129.71121771072848,449,123.0690862889621,508,128.41339493993607,207,136.45878498652991]
[]
["Population Data"]
["NAME","Total Population","MOE Total Population","Under 15 Years","MOE Under 15 yrs.","15 to 24 yrs.","MOE 15 to 24 yrs.","25 to 34 yrs.","MOE 25 to 34 yrs.","35 to 44 yrs.","MOE 35 to 44 yrs.","45 to 54 yrs.","MOE 45 to 54 yrs.","55 to 64 yrs.","MOE 55 to 64 yrs.","65 to 74 yrs.","MOE 65 to 74 yrs.","Over 74 yrs. ","MOE Over 74 yrs. ","TotalHH","MOE TotalHH","FamilyHH","MOE FamilyHH","MarriedFamilyHH","MOE MarriedFamilyHH","SingleFamilyHH","MOE SingleFamilyHH","Sfamily-MaleHH","MOE Sfamily-MaleHH","Sfamily-FemaleHH","MOE Sfamily-FemaleHH","NonFamilyHH","MOE NonFamilyHH","NonFamilyHH-LivingAlone","MOE NonFamilyHH-LivingAlone","NonFamilyHH-NotLivingAlone","MOE NonFamilyHH-NotLivingAlone","PopRaceWhite","MOE PopRaceWhite","PopRaceBlack","MOE PopRaceBlack","PopRaceAmerican Indian","MOE PopRaceAmerican Indian","PopRaceAsian &Pacific Is.","MOE PopRaceAsian &Pacific Is.","PopRaceOther*","MOE PopRaceOther*","PopRaceHispanic or Latino:","MOE PopRaceHispanic or Latino:","AvgAgeTotalPop","MOE AvgAgeTotalPop","AvgAgeMale","MOE AvgAgeMale","AvgAgeFemale","MOE AvgAgeFemale","AvgHHSizeTotal","MOE AvgHHSizeTotal","AvgHHSizeFamilyHH","MOE AvgHHSizeFamilyHH","AvgHHSizeNonFamilyHH","MOE AvgHHSizeNonFamilyHH"]
[{"$f":"VLOOKUP(DropDownList!$B$47,CntyQryCensus!$A$510:$DA$552,A$1)","v":"Allenstown"},4956,29,1076,253.14817795117546,637,223.99776784602119,808,179.4993036198191,756,180.69310999592651,718,162.26829634897879,504,131.32783406422266,263,82.079230015881606,194,78.377292629944805,1824,124,1259,92,1004,123,255,96,56,41,199,94,565,133,478,127,87,52,4401,199,0,114,47,61,96,89.560035730229586,64,126.14277624977183,348,164,34.700000000000003,3,33,4.0999999999999996,39.200000000000003,2.7,2.7171052631578947,0.18,3.3582208101667992,0.29494474476547644,1.288495575221239,0.47155320965641617]
[]
["Nativity and Prior Place of Residence"]
["NAME","TotalPop",{"$f":"\"MOE \"&B135","v":"MOE TotalPop"},"Native:",{"$f":"\"MOE \"&D135","v":"MOE Native:"},"NatBornInStateOfResidence",{"$f":"\"MOE \"&F135","v":"MOE NatBornInStateOfResidence"},"Born in other state in the United States:",{"$f":"\"MOE \"&H135","v":"MOE Born in other state in the United States:"},"Northeast",{"$f":"\"MOE \"&J135","v":"MOE Northeast"},"Midwest",{"$f":"\"MOE \"&L135","v":"MOE Midwest"},"South",{"$f":"\"MOE \"&N135","v":"MOE South"},"West",{"$f":"\"MOE \"&P135","v":"MOE West"},"Born outside the United States:",{"$f":"\"MOE \"&R135","v":"MOE Born outside the United States:"},"Puerto Rico",{"$f":"\"MOE \"&T135","v":"MOE Puerto Rico"},"U.S. Island Areas",{"$f":"\"MOE \"&V135","v":"MOE U.S. Island Areas"},"Born abroad of American parent(s)",{"$f":"\"MOE \"&X135","v":"MOE Born abroad of American parent(s)"},"Foreign born:",{"$f":"\"MOE \"&Z135","v":"MOE Foreign born:"},"Naturalized U.S. citizen",{"$f":"\"MOE \"&AB135","v":"MOE Naturalized U.S. citizen"},"Not a U.S. citizen",{"$f":"\"MOE \"&AD135","v":"MOE Not a U.S. citizen"},"CurrentResideneTotal:",{"$f":"\"MOE \"&AF135","v":"MOE CurrentResideneTotal:"},"SameHouse:",{"$f":"\"MOE \"&AH135","v":"MOE SameHouse:"},"DifferentHouse:",{"$f":"\"MOE \"&AJ135","v":"MOE DifferentHouse:"},"DiffHouseInNH",{"$f":"\"MOE \"&AL135","v":"MOE DiffHouseInNH"},"DiffHouseInNHSameCnty",{"$f":"\"MOE \"&AN135","v":"MOE DiffHouseInNHSameCnty"},"DiffHouseInNHDiffCnty",{"$f":"\"MOE \"&AP135","v":"MOE DiffHouseInNHDiffCnty"},"DiffHouseInDiffState",{"$f":"\"MOE \"&AR135","v":"MOE DiffHouseInDiffState"},"DiffHouseInElsewhere",{"$f":"\"MOE \"&AT135","v":"MOE DiffHouseInElsewhere"}]
[{"$f":"VLOOKUP(DropDownList!$B$47,CntyQryCensus!$A$510:$DA$552,A$1)","v":"Allenstown"},4956,29,4749,114,2802,336,1931,332,1449,386,148,119,264,269,70,62,16,24,0,114,0,114,16,24,207,112,129,91,78,53,4917,54,4009,434,908,451.83293372661535,856,449.36065693382636,493,330,363,305,20,28,32,38]
[]
["School Enrollment - Education"]
["NAME","Total Pop 3 Years and Older","MOE Total Pop 3 Years and Older","SchEnrlPop3yrOver",{"$f":"\"MOE \"&D139","v":"MOE SchEnrlPop3yrOver"},"TotalEnrollNursy&Kinder",{"$f":"\"MOE \"&F139","v":"MOE TotalEnrollNursy&Kinder"},"NurserSchEnrl",{"$f":"\"MOE \"&H139","v":"MOE NurserSchEnrl"},"KinderSchEnrl",{"$f":"\"MOE \"&J139","v":"MOE KinderSchEnrl"},"ElemSchEnrl (1-8)",{"$f":"\"MOE \"&L139","v":"MOE ElemSchEnrl (1-8)"},"HighSchEnrl(9-12)",{"$f":"\"MOE \"&N139","v":"MOE HighSchEnrl(9-12)"},"TotalElementry&HSEnroll",{"$f":"\"MOE \"&P139","v":"MOE TotalElementry&HSEnroll"},"CollGradSchEnrl",{"$f":"\"MOE \"&R139","v":"MOE CollGradSchEnrl"},"PopNotEnrolled","MOE PopNotEnrolled","Pop25yrsOver",{"$f":"\"MOE \"&V139","v":"MOE Pop25yrsOver"},"EduAtain<9grd",{"$f":"\"MOE \"&X139","v":"MOE EduAtain<9grd"},"EduAtainHSnoDip",{"$f":"\"MOE \"&Z139","v":"MOE EduAtainHSnoDip"},"EduAtainHSgrad",{"$f":"\"MOE \"&AB139","v":"MOE EduAtainHSgrad"},"EduAtainCollNoDeg",{"$f":"\"MOE \"&AD139","v":"MOE EduAtainCollNoDeg"},"EduAtainAssocDeg",{"$f":"\"MOE \"&AF139","v":"MOE EduAtainAssocDeg"},"EduAtainBachDeg",{"$f":"\"MOE \"&AH139","v":"MOE EduAtainBachDeg"},"EduAtainGradProfDeg",{"$f":"\"MOE \"&AJ139","v":"MOE EduAtainGradProfDeg"}]
[{"$f":"VLOOKUP(DropDownList!$B$47,CntyQryCensus!$A$510:$DA$552,A$1)","v":"Allenstown"},4878,65,1291,215,158,94.339811320566042,59,50,99,80,630,222.28360263411244,281,159,911,273.2965422393778,222,90.354855984612144,3587,216,3243,175,97,171.66828478201791,355,176.62106329653889,1096,200.11246837716035,884,178.70926109186397,276,108.46658471621571,412,151.48927354766738,73,170.49633427144408]
[]
["Occupied Owner Housing Value"]
["NAME","Estimate; Total:","Margin of Error; Total:","Estimate; Total: - Less than $10,000","Margin of Error; Total: - Less than $10,000","Estimate; Total: - $10,000 to $14,999","Margin of Error; Total: - $10,000 to $14,999","Estimate; Total: - $15,000 to $19,999","Margin of Error; Total: - $15,000 to $19,999","Estimate; Total: - $20,000 to $24,999","Margin of Error; Total: - $20,000 to $24,999","Estimate; Total: - $25,000 to $29,999","Margin of Error; Total: - $25,000 to $29,999","Estimate; Total: - $30,000 to $34,999","Margin of Error; Total: - $30,000 to $34,999","Estimate; Total: - $35,000 to $39,999","Margin of Error; Total: - $35,000 to $39,999","Estimate; Total: - $40,000 to $49,999","Margin of Error; Total: - $40,000 to $49,999","Estimate; Total: - $50,000 to $59,999","Margin of Error; Total: - $50,000 to $59,999","Estimate; Total: - $60,000 to $69,999","Margin of Error; Total: - $60,000 to $69,999","Estimate; Total: - $70,000 to $79,999","Margin of Error; Total: - $70,000 to $79,999","Estimate; Total: - $80,000 to $89,999","Margin of Error; Total: - $80,000 to $89,999","Estimate; Total: - $90,000 to $99,999","Margin of Error; Total: - $90,000 to $99,999","Estimate; Total: - $100,000 to $124,999","Margin of Error; Total: - $100,000 to $124,999","Estimate; Total: - $125,000 to $149,999","Margin of Error; Total: - $125,000 to $149,999","Estimate; Total: - $150,000 to $174,999","Margin of Error; Total: - $150,000 to $174,999","Estimate; Total: - $175,000 to $199,999","Margin of Error; Total: - $175,000 to $199,999","Estimate; Total: - $200,000 to $249,999","Margin of Error; Total: - $200,000 to $249,999","Estimate; Total: - $250,000 to $299,999","Margin of Error; Total: - $250,000 to $299,999","Estimate; Total: - $300,000 to $399,999","Margin of Error; Total: - $300,000 to $399,999","Estimate; Total: - $400,000 to $499,999","Margin of Error; Total: - $400,000 to $499,999","Estimate; Total: - $500,000 to $749,999","Margin of Error; Total: - $500,000 to $749,999","Estimate; Total: - $750,000 to $999,999","Margin of Error; Total: - $750,000 to $999,999","Estimate; Total: - $1,000,000 to $1,499,999","Margin of Error; Total: - $1,000,000 to $1,499,999","Estimate; Total: - $1,500,000 to $1,999,999","Margin of Error; Total: - $1,500,000 to $1,999,999","Estimate; Total: - $2,000,000 or more","Margin of Error; Total: - $2,000,000 or more","MedianOwnOCCHomeValue","MOE MedianOwnOCCHomeValue","OnwerOccHsU","MOE OnwerOccHsU","OwnerCosts>20PctHHInc","MOE OwnerCosts>20PctHHInc","OwnerCosts20to29.9PctHHInc","MOE OwnerCosts20to29.9PctHHInc","OwnerCosts<30PctHHInc","MOE OwnerCosts<30PctHHInc","OwnerCosts>30PctHHInc","MOE OwnerCosts>30PctHHInc","OwnerCosts30to34.9PctHHInc","MOE OwnerCosts30to34.9PctHHInc","OwnerCosts<35PctHHInc","MOE OwnerCosts<35PctHHInc","OwnerCosts>35PctHHInc","MOE OwnerCosts>35PctHHInc","OwnerCosts>50PctHHInc","MOE OwnerCosts>50PctHHInc","OwnerCostsPctNotcomputed","MOE OwnerCostsPctNotcomputed","OwnerOHUHhInc<20k","MOE OwnerOHUHhInc<20k","OwnerOHUHhInc<20kHCosts<20pct","MOE OwnerOHUHhInc<20kHCosts<20pct","OwnerOHUHhInc<20kHCosts20to29pct","MOE OwnerOHUHhInc<20kHCosts20to29pct","OwnerOHUHhInc>20kHCosts30pct","MOE OwnerOHUHhInc>20kHCosts30pct","OwnerOHUHhInc20kTo34999","MOE OwnerOHUHhInc20kTo34999","OwnerOHUHhInc20kTo34999HCosts<20pct","MOE OwnerOHUHhInc20kTo34999HCosts<20pct","OwnerOHUHhInc20kTo34999HCosts20to29pct","MOE OwnerOHUHhInc20kTo34999HCosts20to29pct","OwnerOHUHhInc20kTo34999HCosts30pct","MOE OwnerOHUHhInc20kTo34999HCosts30pct","OwnerOHUHhInc35kTo49999","MOE OwnerOHUHhInc35kTo49999","OwnerOHUHhInc35kTo49999HCosts<20pct","MOE OwnerOHUHhInc35kTo49999HCosts<20pct","OwnerOHUHhInc35kTo49999HCosts20to29pct","MOE OwnerOHUHhInc35kTo49999HCosts20to29pct","OwnerOHUHhInc35kTo49999HCosts30pct","MOE OwnerOHUHhInc35kTo49999HCosts30pct","OwnerOHUHhInc50kTo74999","MOE OwnerOHUHhInc50kTo74999","OwnerOHUHhInc50kTo74999HCosts<20pct","MOE OwnerOHUHhInc50kTo74999HCosts<20pct","OwnerOHUHhInc50kTo74999HCosts20to29pct","MOE OwnerOHUHhInc50kTo74999HCosts20to29pct","OwnerOHUHhInc50kTo74999HCosts30pct","MOE OwnerOHUHhInc50kTo74999HCosts30pct","OwnerOHUHhInc>75000","MOE OwnerOHUHhInc>75000","OwnerOHUHhInc>75000HCosts<20pct","MOE OwnerOHUHhInc>75000HCosts<20pct","OwnerOHUHhInc>75000HCosts20to29pct","MOE OwnerOHUHhInc>75000HCosts20to29pct","OwnerOHUHhInc>75000HCosts30pct","MOE OwnerOHUHhInc>75000HCosts30pct","ZeroOrNegativeIncome","MOE ZeroOrNegativeIncome"]
[{"$f":"VLOOKUP(DropDownList!$B$47,CntyQryCensus!$A$510:$DA$552,A$1)","v":"Allenstown"},null,null,null,null,null,null,null,null,null,null,null,null,null,null,null,null,null,null,null,null,null,null,null,null,null,null,null,null,null,null,null,null,null,null,null,null,null,null,"Allenstown",null,"Estimate","Margin Of Error",1176,172,0,114,35,33,17,18,34,42,62,57,22,34,"Estimate","Margin Of Error",1176,172,41,42.544094772365298,102,62.241465278381739,122,52.801515129776341,377,157.05094714773293,112,67.675697262754525,116,80.062475604992386,132,139.26952286842948,62,45.310043036836767]
[]
["Occupied Rental Housing Value"]
["NAME","RntrOccHU","MOE RntrOccHU","RntrOccHUwRent","MOE RntrOccHUwRent","ROHUGRent<100","MOE ROHUGRent<100","ROHUGRent100to149","MOE ROHUGRent100to149","ROHUGRent150to199","MOE ROHUGRent150to199","ROHUGRent200to249","MOE ROHUGRent200to249","ROHUGRent250to299","MOE ROHUGRent250to299","ROHUGRent300to349","MOE ROHUGRent300to349","ROHUGRent350to399","MOE ROHUGRent350to399","ROHUGRent400to449","MOE ROHUGRent400to449","ROHUGRent450to499","MOE ROHUGRent450to499","ROHUGRent500to549","MOE ROHUGRent500to549","ROHUGRent550to599","MOE ROHUGRent550to599","ROHUGRent600to649","MOE ROHUGRent600to649","ROHUGRent650to699","MOE ROHUGRent650to699","ROHUGRent700to749","MOE ROHUGRent700to749","ROHUGRent750to799","MOE ROHUGRent750to799","ROHUGRent800to899","MOE ROHUGRent800to899","ROHUGRent900to999","MOE ROHUGRent900to999","ROHUGRent1000to1249","MOE ROHUGRent1000to1249","ROHUGRent1250to1499","MOE ROHUGRent1250to1499","ROHUGRent1500to1999","MOE ROHUGRent1500to1999","ROHUGRent2000>","MOE ROHUGRent2000>","ROHUNoGRent","MOE ROHUNoGRent","MedianGrossRnt","MOE MedianGrossRnt","H73RenterOccHU","MOE H73RenterOccHU","H73ROHUHhInc<10k","MOE H73ROHUHhInc<10k","H73ROHUHhInc<10kRnt<20pct","MOE H73ROHUHhInc<10kRnt<20pct","H73ROHUHhInc<10kRnt20to25pct","MOE H73ROHUHhInc<10kRnt20to25pct","H73ROHUHhInc<10kRnt25to30pct","MOE H73ROHUHhInc<10kRnt25to30pct","H73ROHUHhInc<10kRnt30to35pct","MOE H73ROHUHhInc<10kRnt30to35pct","H73ROHUHhInc<10kRnt35to39.9","MOE H73ROHUHhInc<10kRnt35to39.9","H73ROHUHhInc<10kRnt40to49.9","MOE H73ROHUHhInc<10kRnt40to49.9","H73ROHUHhInc<10kRnt>50pct","MOE H73ROHUHhInc<10kRnt>50pct","H73ROHUHhInc<10kPctNotComput","MOE H73ROHUHhInc<10kPctNotComput","H73ROHUHhInc10to20k","MOE H73ROHUHhInc10to20k","H73ROHUHhInc10to20kRnt<20pct","MOE H73ROHUHhInc10to20kRnt<20pct","H73ROHUHhInc10to20kRnt20to25pct","MOE H73ROHUHhInc10to20kRnt20to25pct","H73ROHUHhInc10to20kRnt25to30pct","MOE H73ROHUHhInc10to20kRnt25to30pct","H73ROHUHhInc10to20kRnt30to35pct","MOE H73ROHUHhInc10to20kRnt30to35pct","H73ROHUHhInc10to20kRnt35to39.9","MOE H73ROHUHhInc10to20kRnt35to39.9","H73ROHUHhInc10to20kRnt40to49.9","MOE H73ROHUHhInc10to20kRnt40to49.9","H73ROHUHhInc10to20kRnt>50pct","MOE H73ROHUHhInc10to20kRnt>50pct","H73ROHUHhInc10to20kRntPctNC","MOE H73ROHUHhInc10to20kRntPctNC","H73ROHUHhInc20to34.9k","MOE H73ROHUHhInc20to34.9k","H73ROHUHhInc20to34.9kRnt<20pct","MOE H73ROHUHhInc20to34.9kRnt<20pct","H73ROHUHhInc20to34.9kRnt20to25pct","MOE H73ROHUHhInc20to34.9kRnt20to25pct","H73ROHUHhInc20to34.9kRnt25to30pct","MOE H73ROHUHhInc20to34.9kRnt25to30pct","H73ROHUHhInc20to34.9kRnt30to35pct","MOE H73ROHUHhInc20to34.9kRnt30to35pct","H73ROHUHhInc20to34.9kRnt35to39.9","MOE H73ROHUHhInc20to34.9kRnt35to39.9","H73ROHUHhInc20to34.9kRnt40to49.9","MOE H73ROHUHhInc20to34.9kRnt40to49.9","H73ROHUHhInc20to34.9kRnt>50pct","MOE H73ROHUHhInc20to34.9kRnt>50pct","H73ROHUHhInc20to34.9kRntPctNC","MOE H73ROHUHhInc20to34.9kRntPctNC","H73ROHUHhInc35to49.9k","MOE H73ROHUHhInc35to49.9k","H73ROHUHhInc35to49.9kRnt<20pct","MOE H73ROHUHhInc35to49.9kRnt<20pct","H73ROHUHhInc35to49.9kRnt20to25pct","MOE H73ROHUHhInc35to49.9kRnt20to25pct","H73ROHUHhInc35to49.9kRnt25to30pct","MOE H73ROHUHhInc35to49.9kRnt25to30pct","H73ROHUHhInc35to49.9kRnt30to35pct","MOE H73ROHUHhInc35to49.9kRnt30to35pct","H73ROHUHhInc35to49.9kRnt35to39.9","MOE H73ROHUHhInc35to49.9kRnt35to39.9","H73ROHUHhInc35to49.9kRnt40to49.9","MOE H73ROHUHhInc35to49.9kRnt40to49.9","H73ROHUHhInc35to49.9kRnt>50pct","MOE H73ROHUHhInc35to49.9kRnt>50pct","H73ROHUHhInc35to49.9kRntPctNC","MOE H73ROHUHhInc35to49.9kRntPctNC","H73ROHUHhInc50to74.9k","MOE H73ROHUHhInc50to74.9k","H73ROHUHhInc50to74.9kRnt<20pct","MOE H73ROHUHhInc50to74.9kRnt<20pct","H73ROHUHhInc50to74.9kRnt20to25pct","MOE H73ROHUHhInc50to74.9kRnt20to25pct","H73ROHUHhInc50to74.9kRnt25to30pct","MOE H73ROHUHhInc50to74.9kRnt25to30pct","H73ROHUHhInc50to74.9kRnt30to35pct","MOE H73ROHUHhInc50to74.9kRnt30to35pct","H73ROHUHhInc50to74.9kRnt35to39.9","MOE H73ROHUHhInc50to74.9kRnt35to39.9","H73ROHUHhInc50to74.9kRnt40to49.9","MOE H73ROHUHhInc50to74.9kRnt40to49.9","H73ROHUHhInc50to74.9kRnt>50pct","MOE H73ROHUHhInc50to74.9kRnt>50pct","H73ROHUHhInc50to74.9kRntPctNC","MOE H73ROHUHhInc50to74.9kRntPctNC","H73ROHUHhInc75to99.9k","MOE H73ROHUHhInc75to99.9k","H73ROHUHhInc75to99.9kRnt<20pct","MOE H73ROHUHhInc75to99.9kRnt<20pct","H73ROHUHhInc75to99.9kRnt20to25pct","MOE H73ROHUHhInc75to99.9kRnt20to25pct","H73ROHUHhInc75to99.9kRnt25to30pct","MOE H73ROHUHhInc75to99.9kRnt25to30pct","H73ROHUHhInc75to99.9kRnt30to35pct","MOE H73ROHUHhInc75to99.9kRnt30to35pct","H73ROHUHhInc75to99.9kRnt35to39.9","MOE H73ROHUHhInc75to99.9kRnt35to39.9","H73ROHUHhInc75to99.9kRnt40to49.9","MOE H73ROHUHhInc75to99.9kRnt40to49.9","H73ROHUHhInc75to99.9kRnt>50pct","MOE H73ROHUHhInc75to99.9kRnt>50pct","H73ROHUHhInc75to99.9kRntPctNC","MOE H73ROHUHhInc75to99.9kRntPctNC","H73ROHUHhInc>100k","MOE H73ROHUHhInc>100k","H73ROHUHhInc>100kRnt<20pct","MOE H73ROHUHhInc>100kRnt<20pct","H73ROHUHhInc>100kRnt20to25pct","MOE H73ROHUHhInc>100kRnt20to25pct","H73ROHUHhInc>100kRnt25to30pct","MOE H73ROHUHhInc>100kRnt25to30pct","H73ROHUHhInc>100kRnt30to35pct","MOE H73ROHUHhInc>100kRnt30to35pct","H73ROHUHhInc>100kRnt35to39.9","MOE H73ROHUHhInc>100kRnt35to39.9","H73ROHUHhInc>100kRnt40to49.9","MOE H73ROHUHhInc>100kRnt40to49.9","H73ROHUHhInc>100kRnt>50pct","MOE H73ROHUHhInc>100kRnt>50pct","H73ROHUHhInc>100kRntPctNC","MOE H73ROHUHhInc>100kRntPctNC"]
[{"$f":"VLOOKUP(DropDownList!$B$47,CntyQryCensus!$A$510:$DA$552,A$1)","v":"Allenstown"},null,null,null,null,null,null,null,null,null,null,null,null,null,null,null,null,null,null,null,null,null,null,null,null,null,null,null,null,null,null,null,null,null,null,null,null,null,null,null,null,null,null,null,null,null,null,null,null,54,60,null,null,null,null,null,null,null,null,null,null,"Allenstown",null,"Estimate","Margin Of Error",648,178,53,51,0,114,0,114,0,114,0,114,44,49,9,14,149,72,32,31,10,16,26,41,12,19,69,59,0,114,217,113,8,15,0,114,39,32,60,69,102,81,8,12,51,53,42,50,0,114,0,114,0,114,0,114,9,17,38,33,10,17,9,15,9,15,10,17,0,114,0,114,80,73,47,61,0,114,0,114,0,114,0,114,33,48,0,114,0,114,0,114]
[]
[]
[]
[]
[]
["Occupied Rental Housing Cost Burdern All Incomes"]
["NAME","RenterOccHsU",{"$f":"\"MOE \"&B155","v":"MOE RenterOccHsU"},"GRnt<20PctHHInc",{"$f":"\"MOE \"&D155","v":"MOE GRnt<20PctHHInc"},"GRnt20to249PctHHInc",{"$f":"\"MOE \"&F155","v":"MOE GRnt20to249PctHHInc"},"GRnt25to29.9PctHHInc",{"$f":"\"MOE \"&H155","v":"MOE GRnt25to29.9PctHHInc"},"GRnt<30PctHHInc",{"$f":"\"MOE \"&J155","v":"MOE GRnt<30PctHHInc"},"GRnt>30PctHHInc",{"$f":"\"MOE \"&L155","v":"MOE GRnt>30PctHHInc"},"GRnt30to349PctHHInc",{"$f":"\"MOE \"&N155","v":"MOE GRnt30to349PctHHInc"},"GRnt<35PctHHInc",{"$f":"\"MOE \"&P155","v":"MOE GRnt<35PctHHInc"},"GRnt>35PctHHInc",{"$f":"\"MOE \"&R155","v":"MOE GRnt>35PctHHInc"},"GRnt>50PctHHInc",{"$f":"\"MOE \"&T155","v":"MOE GRnt>50PctHHInc"},"HCB Not Calculated",{"$f":"\"MOE \"&V155","v":"MOE HCB Not Calculated"}]
[{"$f":"VLOOKUP(DropDownList!$B$47,CntyQryCensus!$A$510:$DA$552,A$1)","v":"Allenstown"}]
[]
["Income By Household Type and Tenure"]
["NAME","TotalFamilyHouseholds",{"$f":"\"MOE \"&B159","v":"MOE TotalFamilyHouseholds"},"FamInc<10K",{"$f":"\"MOE \"&D159","v":"MOE FamInc<10K"},"FamInc10to15K",{"$f":"\"MOE \"&F159","v":"MOE FamInc10to15K"},"FamInc15to20K",{"$f":"\"MOE \"&H159","v":"MOE FamInc15to20K"},"FamInc20to25K",{"$f":"\"MOE \"&J159","v":"MOE FamInc20to25K"},"FamInc25to30K",{"$f":"\"MOE \"&L159","v":"MOE FamInc25to30K"},"FamInc30to35K",{"$f":"\"MOE \"&N159","v":"MOE FamInc30to35K"},"FamInc35to40K",{"$f":"\"MOE \"&P159","v":"MOE FamInc35to40K"},"FamInc40to45K",{"$f":"\"MOE \"&R159","v":"MOE FamInc40to45K"},"FamInc45to50K",{"$f":"\"MOE \"&T159","v":"MOE FamInc45to50K"},"FamInc50to60K",{"$f":"\"MOE \"&V159","v":"MOE FamInc50to60K"},"FamInc60to75K",{"$f":"\"MOE \"&X159","v":"MOE FamInc60to75K"},"FamInc75to100K",{"$f":"\"MOE \"&Z159","v":"MOE FamInc75to100K"},"FamInc100to125K",{"$f":"\"MOE \"&AB159","v":"MOE FamInc100to125K"},"FamInc125to150K",{"$f":"\"MOE \"&AD159","v":"MOE FamInc125to150K"},"FamInc150to200K",{"$f":"\"MOE \"&AF159","v":"MOE FamInc150to200K"},"FamInc>200K",{"$f":"\"MOE \"&AH159","v":"MOE FamInc>200K"},"MedFamInc",{"$f":"\"MOE \"&AJ159","v":"MOE MedFamInc"},"TotalNonNonFamilyHouseholds",{"$f":"\"MOE \"&AL159","v":"MOE TotalNonNonFamilyHouseholds"},"NonFamInc<10K",{"$f":"\"MOE \"&AN159","v":"MOE NonFamInc<10K"},"NonFamInc10to15K",{"$f":"\"MOE \"&AP159","v":"MOE NonFamInc10to15K"},"NonFamInc15to20K",{"$f":"\"MOE \"&AR159","v":"MOE NonFamInc15to20K"},"NonFamInc20to25K",{"$f":"\"MOE \"&AT159","v":"MOE NonFamInc20to25K"},"NonFamInc25to30K",{"$f":"\"MOE \"&AV159","v":"MOE NonFamInc25to30K"},"NonFamInc30to35K",{"$f":"\"MOE \"&AX159","v":"MOE NonFamInc30to35K"},"NonFamInc35to40K",{"$f":"\"MOE \"&AZ159","v":"MOE NonFamInc35to40K"},"NonFamInc40to45K",{"$f":"\"MOE \"&BB159","v":"MOE NonFamInc40to45K"},"NonFamInc45to50K",{"$f":"\"MOE \"&BD159","v":"MOE NonFamInc45to50K"},"NonFamInc50to60K",{"$f":"\"MOE \"&BF159","v":"MOE NonFamInc50to60K"},"NonFamInc60to75K",{"$f":"\"MOE \"&BH159","v":"MOE NonFamInc60to75K"},"NonFamInc75to100K",{"$f":"\"MOE \"&BJ159","v":"MOE NonFamInc75to100K"},"NonFamInc100to125K",{"$f":"\"MOE \"&BL159","v":"MOE NonFamInc100to125K"},"NonFamInc125to150K",{"$f":"\"MOE \"&BN159","v":"MOE NonFamInc125to150K"},"NonFamInc150to200K",{"$f":"\"MOE \"&BP159","v":"MOE NonFamInc150to200K"},"NonFamInc>200K",{"$f":"\"MOE \"&BR159","v":"MOE NonFamInc>200K"},"MedNonFamInc",{"$f":"\"MOE \"&BT159","v":"MOE MedNonFamInc"}]
[{"$f":"VLOOKUP(DropDownList!$B$47,CntyQryCensus!$A$510:$DA$552,A$1)","v":"Allenstown"},1259,92,32,38,8,14,0,114,86,69,0,114,86,60,9,15,55,42,48,52,246,117,112,62,322,105,193,89,29,31,8,12,25,40,68007,15536,"Allenstown",null,"Estimate","Margin Of Error",565,133,57,47,97,50,77,64,66,66,45,38,69,46,8,13,46,41,0,114,40,43,41,34,10,15,9,14,0,114,"Allenstown"]
[]
[]
[]
["2010 Census"]
[]
["TownName"]
[{"$f":"VLOOKUP(DropDownList!$B$47,CntyQryCensus!$A$542:$DA$568,A$1)","v":"Allenstown"}]

{"sheet":"StatisticallySignificantCalcs","index":17,"n_rows":271,"n_cols":16,"rows_kept":271,"cut":false,"hidden":true,"merged":[]}
[]
["Statistically Significant Change  10 Year","Standard Error Estimate  1","Standard Error Estimate  2","Square Root of Sum of Squared SE","Difference between the estimates","Value","Test Statistic (90%) Confidence Interval",null,null,"Statistically Significant Change  5Year","Standard Error Estimate  1","Standard Error Estimate  2","Square Root of Sum of Squared SE","Difference between the estimates","Value","Test Statistic (90%) Confidence Interval"]
[{"$f":"IF(F3>G3,\"Y\",\"N\")","v":"Y"},{"$f":"PopulationCharacteristics!Q22/1.645","v":95.138234740298259},{"$f":"PopulationCharacteristics!T22/1.645","v":101.55433224443324},{"$f":"SQRT((B3^2)+(C3^2))","v":139.15662437380703},{"$f":"(PopulationCharacteristics!M22-PopulationCharacteristics!S22)","v":-695},{"$f":"ABS((E3/D3))","v":4.9943723708981933},1.645,"Population By Age Under 15 yrs.",null,{"$f":"IF(O3>P3,\"Y\",\"N\")","v":"N"},{"$f":"PopulationCharacteristics!P22/1.645","v":437.08206686930089},{"$f":"PopulationCharacteristics!T22/1.645","v":101.55433224443324},{"$f":"SQRT((K3^2)+(L3^2))","v":448.72487737627466},{"$f":"(PopulationCharacteristics!P22-PopulationCharacteristics!S22)","v":24},{"$f":"ABS((N3/M3))","v":5.3484888425018147E-2},1.645]
["Y",{"$f":"PopulationCharacteristics!Q23/1.645","v":75.568447495807888},{"$f":"PopulationCharacteristics!T23/1.645","v":96.843694846444009},122.83847723102824,{"$f":"(PopulationCharacteristics!M23-PopulationCharacteristics!S23)","v":-592},4.8193368506725882,1.645,"Population By Age 15 to 24 yrs.",null,{"$f":"IF(O4>P4,\"Y\",\"N\")","v":"N"},{"$f":"PopulationCharacteristics!P23/1.645","v":310.03039513677811},{"$f":"PopulationCharacteristics!T23/1.645","v":96.843694846444009},324.8038594908902,{"$f":"(PopulationCharacteristics!P23-PopulationCharacteristics!S23)","v":-82},0.25246005428793206,1.645]
["Y",{"$f":"PopulationCharacteristics!Q24/1.645","v":65.577463573368519},{"$f":"PopulationCharacteristics!T24/1.645","v":75.53176200042013},100.02725028513272,{"$f":"(PopulationCharacteristics!M24-PopulationCharacteristics!S24)","v":-519},5.188586095494621,1.645,"Population By Age 25 to 34 yrs.",null,"N",{"$f":"PopulationCharacteristics!P24/1.645","v":291.1854103343465},{"$f":"PopulationCharacteristics!T24/1.645","v":75.53176200042013},300.82219044224422,{"$f":"(PopulationCharacteristics!P24-PopulationCharacteristics!S24)","v":-40},0.13296891409904057,1.645]
["Y",{"$f":"PopulationCharacteristics!Q25/1.645","v":97.62471269595504},{"$f":"PopulationCharacteristics!T25/1.645","v":73.410390726994976},122.14610102519782,{"$f":"(PopulationCharacteristics!M25-PopulationCharacteristics!S25)","v":-577},4.7238511516709751,1.645,"Population By Age 35 to 44 yrs.",null,"N",{"$f":"PopulationCharacteristics!P25/1.645","v":404.25531914893617},{"$f":"PopulationCharacteristics!T25/1.645","v":73.410390726994976},410.8667040864936,{"$f":"(PopulationCharacteristics!P25-PopulationCharacteristics!S25)","v":88},0.21418138565317935,1.645]
["Y",{"$f":"PopulationCharacteristics!Q26/1.645","v":100.81476268172015},{"$f":"PopulationCharacteristics!T26/1.645","v":86.721538682066466},132.98211024779499,{"$f":"(PopulationCharacteristics!M26-PopulationCharacteristics!S26)","v":-713},5.3616234444724675,1.645,"Population By Age 45 to 54 yrs.",null,"N",{"$f":"PopulationCharacteristics!P26/1.645","v":492.40121580547111},{"$f":"PopulationCharacteristics!T26/1.645","v":86.721538682066466},499.97958218120397,{"$f":"(PopulationCharacteristics!P26-PopulationCharacteristics!S26)","v":97},0.19400792243721063,1.645]
["Y",{"$f":"PopulationCharacteristics!Q27/1.645","v":72.912858651385733},{"$f":"PopulationCharacteristics!T27/1.645","v":87.833005087693664},114.15306276859933,{"$f":"(PopulationCharacteristics!M27-PopulationCharacteristics!S27)","v":-601},5.2648609281582956,1.645,"Population By Age 55 to 64 yrs.",null,"N",{"$f":"PopulationCharacteristics!P27/1.645","v":330.69908814589667},{"$f":"PopulationCharacteristics!T27/1.645","v":87.833005087693664},342.16446876211791,{"$f":"(PopulationCharacteristics!P27-PopulationCharacteristics!S27)","v":-57},0.16658655472385697,1.645]
["Y",{"$f":"PopulationCharacteristics!Q28/1.645","v":57.346207405642268},{"$f":"PopulationCharacteristics!T28/1.645","v":64.643817814265986},86.414181043477768,{"$f":"(PopulationCharacteristics!M28-PopulationCharacteristics!S28)","v":-327},3.7841011284418204,1.645,"Population By Age 65 to 74 yrs.",null,"N",{"$f":"PopulationCharacteristics!P28/1.645","v":191.48936170212767},{"$f":"PopulationCharacteristics!T28/1.645","v":64.643817814265986},202.1064047146757,{"$f":"(PopulationCharacteristics!P28-PopulationCharacteristics!S28)","v":-12},5.9374664632429804E-2,1.645]
["Y",{"$f":"PopulationCharacteristics!Q29/1.645","v":57.686734626054012},{"$f":"PopulationCharacteristics!T29/1.645","v":77.433065062960466},96.558991900606784,{"$f":"(PopulationCharacteristics!M29-PopulationCharacteristics!S29)","v":-366},3.7904289677831655,1.645,"Population By Age Over 74 yrs. ",null,"N",{"$f":"PopulationCharacteristics!P29/1.645","v":158.66261398176292},{"$f":"PopulationCharacteristics!T29/1.645","v":77.433065062960466},176.54943964955137,{"$f":"(PopulationCharacteristics!P29-PopulationCharacteristics!S29)","v":-105},0.59473425805498903,1.645]
["N",{"$f":"PopulationCharacteristics!Q$30/1.645","v":1.21580547112462},{"$f":"PopulationCharacteristics!T$30/1.645","v":2.1276595744680851},2.4505342699995589,{"$f":"(PopulationCharacteristics!P30-PopulationCharacteristics!S30)","v":-1.2000000000000028},0.48968913215819621,1.645,"Population By Age Median Age        ",null,"N",{"$f":"PopulationCharacteristics!P30/1.645","v":24.924012158054712},{"$f":"PopulationCharacteristics!T30/1.645","v":2.1276595744680851},{"$f":"SQRT((K11^2)+(L11^2))","v":25.014662046881323},{"$f":"(PopulationCharacteristics!P30-PopulationCharacteristics!S30)","v":-1.2000000000000028},4.797186537043828E-2,1.645]
["N",{"$f":"PopulationCharacteristics!E51/1.645","v":75.379939209726444},{"$f":"PopulationCharacteristics!K51/1.645","v":65.045592705167167},99.564372973612151,{"$f":"PopulationCharacteristics!D51-PopulationCharacteristics!J51","v":36},0.36157511893879141,1.645,"Total Households",null,"N",{"$f":"PopulationCharacteristics!H51/1.645","v":53.495440729483285},{"$f":"PopulationCharacteristics!K51/1.645","v":65.045592705167167},84.218117464166554,{"$f":"PopulationCharacteristics!G51-PopulationCharacteristics!J51","v":-1},1.1873929625955886E-2,1.645]
["Y",{"$f":"PopulationCharacteristics!E52/1.645","v":0.10942249240121581},{"$f":"PopulationCharacteristics!K52/1.645","v":9.1185410334346503E-2},0.14243616430224904,{"$f":"PopulationCharacteristics!D52-PopulationCharacteristics!J52","v":0.28142293653597061},1.9757828913364455,1.645,"Persons per Household",null,"N",{"$f":"PopulationCharacteristics!H52/1.645","v":7.29483282674772E-2},{"$f":"PopulationCharacteristics!K52/1.645","v":9.1185410334346503E-2},0.11677430220242277,{"$f":"PopulationCharacteristics!G52-PopulationCharacteristics!J52","v":-4.2845169375141712E-2},0.36690580519052574,1.645]
["N",{"$f":"PopulationCharacteristics!E53/1.645","v":75.379939209726444},{"$f":"PopulationCharacteristics!K53/1.645","v":65.045592705167167},99.564372973612151,{"$f":"PopulationCharacteristics!D53-PopulationCharacteristics!J53","v":99},0.9943315770816763,1.645,"Family Households",null,"N",{"$f":"PopulationCharacteristics!H53/1.645","v":53.495440729483285},{"$f":"PopulationCharacteristics!K53/1.645","v":65.045592705167167},84.218117464166554,{"$f":"PopulationCharacteristics!G53-PopulationCharacteristics!J53","v":22},0.26122645177102949,1.645]
["N",{"$f":"PopulationCharacteristics!E54/1.645","v":0.17929771718266044},{"$f":"PopulationCharacteristics!K54/1.645","v":0.15676434440642989},0.23816534396106218,{"$f":"PopulationCharacteristics!D54-PopulationCharacteristics!J54","v":0.20908287913231627},0.87788960247087577,1.645,"Persons per Family Household",null,"N",{"$f":"PopulationCharacteristics!H54/1.645","v":0.1629239988973083},{"$f":"PopulationCharacteristics!K54/1.645","v":0.15676434440642989},0.22609575204737459,{"$f":"PopulationCharacteristics!G54-PopulationCharacteristics!J54","v":-0.18213285489235087},0.80555628862141548,1.645]
["N",{"$f":"PopulationCharacteristics!E55/1.645","v":74.772036474164139},{"$f":"PopulationCharacteristics!K55/1.645","v":65.653495440729486},99.504969233097185,{"$f":"PopulationCharacteristics!D55-PopulationCharacteristics!J55","v":138},1.3868654104773961,1.645,"Married-Couple Family Hh",null,"N",{"$f":"PopulationCharacteristics!H55/1.645","v":61.398176291793312},{"$f":"PopulationCharacteristics!K55/1.645","v":65.653495440729486},89.889473886234413,{"$f":"PopulationCharacteristics!G55-PopulationCharacteristics!J55","v":36},0.40049183117438408,1.645]
["N",{"$f":"PopulationCharacteristics!E56/1.645","v":58.358662613981764},{"$f":"PopulationCharacteristics!K56/1.645","v":51.063829787234042},77.545136627851548,{"$f":"PopulationCharacteristics!D56-PopulationCharacteristics!J56","v":-39},0.50293289425958065,1.645,"Single-Parent Family Hh",null,"N",{"$f":"PopulationCharacteristics!H56/1.645","v":48.632218844984799},{"$f":"PopulationCharacteristics!K56/1.645","v":51.063829787234042},70.516717325227958,{"$f":"PopulationCharacteristics!G56-PopulationCharacteristics!J56","v":-14},0.19853448275862071,1.645]
["N",{"$f":"PopulationCharacteristics!E57/1.645","v":80.851063829787236},{"$f":"PopulationCharacteristics!K57/1.645","v":75.379939209726444},110.5397202713594,{"$f":"PopulationCharacteristics!D57-PopulationCharacteristics!J57","v":-63},0.56993087955482336,1.645,"Non-Family Households*",null,"N",{"$f":"PopulationCharacteristics!H57/1.645","v":74.772036474164139},{"$f":"PopulationCharacteristics!K57/1.645","v":75.379939209726444},106.17435035711679,{"$f":"PopulationCharacteristics!G57-PopulationCharacteristics!J57","v":-23},0.21662482438215669,1.645]
["N",{"$f":"PopulationCharacteristics!E58/1.645","v":0.2866584861133229},{"$f":"PopulationCharacteristics!K58/1.645","v":0.1948759021252856},0.34662617455974964,{"$f":"PopulationCharacteristics!D58-PopulationCharacteristics!J58","v":0.17066118031678035},0.49234937475087487,1.645,"Persons per Non-Family Hh",null,"N",{"$f":"PopulationCharacteristics!H58/1.645","v":0.23280945859189839},{"$f":"PopulationCharacteristics!K58/1.645","v":0.1948759021252856},0.30360642489742662,{"$f":"PopulationCharacteristics!G58-PopulationCharacteristics!J58","v":0.1532399852608306},0.50473235312000631,1.645]
["Y",{"$f":"PopulationCharacteristics!D36/1.645","v":120.97264437689969},{"$f":"PopulationCharacteristics!J36/1.645","v":86.322188449848028},148.613259523876,{"$f":"PopulationCharacteristics!C36-PopulationCharacteristics!I36","v":308},2.0724934032586586,1.645,"Ethnicity -White",null,"N",{"$f":"PopulationCharacteristics!G36/1.645","v":55.319148936170215},{"$f":"PopulationCharacteristics!J36/1.645","v":86.322188449848028},102.5267207014506,{"$f":"PopulationCharacteristics!F36-PopulationCharacteristics!I36","v":61},{"$f":"ABS((N20/M20))","v":0.59496684944822331},1.645]
["N",{"$f":"PopulationCharacteristics!D37/1.645","v":69.300911854103347},{"$f":"PopulationCharacteristics!J37/1.645","v":10.94224924012158},70.159455544090022,{"$f":"PopulationCharacteristics!C37-PopulationCharacteristics!I37","v":-15},0.21379869446925243,1.645,"Ethnicity -Black",null,"N",{"$f":"PopulationCharacteristics!G37/1.645","v":20.060790273556229},{"$f":"PopulationCharacteristics!J37/1.645","v":10.94224924012158},22.850998333389057,{"$f":"PopulationCharacteristics!F37-PopulationCharacteristics!I37","v":21},{"$f":"ABS((N21/M21))","v":0.91899704746446698},1.645]
["N",{"$f":"PopulationCharacteristics!D38/1.645","v":37.08206686930091},{"$f":"PopulationCharacteristics!J38/1.645","v":6.6869300911854106},37.680163446350718,{"$f":"PopulationCharacteristics!C38-PopulationCharacteristics!I38","v":47},1.2473406615371754,1.645,"Ethnicity -American Indian",null,"N",{"$f":"PopulationCharacteristics!G38/1.645","v":6.6869300911854106},{"$f":"PopulationCharacteristics!J38/1.645","v":6.6869300911854106},9.4567472255951639,{"$f":"PopulationCharacteristics!F38-PopulationCharacteristics!I38","v":0},0,1.645]
["N",{"$f":"PopulationCharacteristics!D39/1.645","v":54.443790717464793},{"$f":"PopulationCharacteristics!J39/1.645","v":14.952430244679446},56.45973359757474,{"$f":"PopulationCharacteristics!C39-PopulationCharacteristics!I39","v":82},1.4523625028851068,1.645,"Ethnicity -Asian &Pacific Is",null,"N",{"$f":"PopulationCharacteristics!G39/1.645","v":16.603647761395333},{"$f":"PopulationCharacteristics!J39/1.645","v":14.952430244679446},22.344043707585538,{"$f":"PopulationCharacteristics!F39-PopulationCharacteristics!I39","v":4},0.17901862582922032,1.645]
["N",{"$f":"PopulationCharacteristics!D40/1.645","v":76.68253875366068},{"$f":"PopulationCharacteristics!J40/1.645","v":28.751935782092325},81.895577175597424,{"$f":"PopulationCharacteristics!C40-PopulationCharacteristics!I40","v":14},0.17094940267630968,1.645,"Ethnicity -Other*",null,"N",{"$f":"PopulationCharacteristics!G40/1.645","v":9.1185410334346511},{"$f":"PopulationCharacteristics!J40/1.645","v":28.751935782092325},30.163249191623777,{"$f":"PopulationCharacteristics!F40-PopulationCharacteristics!I40","v":-31},1.0277407385079915,1.645]
["N",{"$f":"PopulationCharacteristics!D42/1.645","v":99.696048632218847},{"$f":"PopulationCharacteristics!J42/1.645","v":79.635258358662611},127.59732162835037,{"$f":"PopulationCharacteristics!C42-PopulationCharacteristics!I42","v":156},1.2225961956660611,1.645,"Ethnicity -Hispanic",null,"Y",{"$f":"PopulationCharacteristics!G42/1.645","v":44.376899696048632},{"$f":"PopulationCharacteristics!J42/1.645","v":79.635258358662611},91.165144657835668,{"$f":"PopulationCharacteristics!F42-PopulationCharacteristics!I41","v":-4314},47.320716883535496,1.645]
["Y",{"$f":"PlaceOfBirthAndPriorRes!E8/1.645","v":69.300911854103347},{"$f":"PlaceOfBirthAndPriorRes!M8/1.645","v":68.085106382978722},97.15038906248256,{"$f":"PlaceOfBirthAndPriorRes!D8-PlaceOfBirthAndPriorRes!L8","v":655},6.7421243118103709,1.645,"Place of Birth - United States Native",null,"N",{"$f":"PlaceOfBirthAndPriorRes!I8/1.645","v":72.948328267477208},{"$f":"PlaceOfBirthAndPriorRes!M8/1.645","v":68.085106382978722},99.784970352258682,{"$f":"PlaceOfBirthAndPriorRes!H8-PlaceOfBirthAndPriorRes!L8","v":-32},0.32068957766920519,1.645]
["N",{"$f":"PlaceOfBirthAndPriorRes!E9/1.645","v":204.25531914893617},{"$f":"PlaceOfBirthAndPriorRes!M9/1.645","v":125.83586626139818},239.90602459794599,{"$f":"PlaceOfBirthAndPriorRes!D9-PlaceOfBirthAndPriorRes!L9","v":-95},0.39598838819995757,1.645,"Place of Birth - New Hampshire Native",null,"Y",{"$f":"PlaceOfBirthAndPriorRes!I9/1.645","v":158.05471124620061},{"$f":"PlaceOfBirthAndPriorRes!M9/1.645","v":125.83586626139818},202.02959432933667,{"$f":"PlaceOfBirthAndPriorRes!H9-PlaceOfBirthAndPriorRes!L9","v":-387},1.9155609418743649,1.645]
["Y",{"$f":"PlaceOfBirthAndPriorRes!E10/1.645","v":201.82370820668692},{"$f":"PlaceOfBirthAndPriorRes!M10/1.645","v":118.54103343465046},234.06150004230261,{"$f":"PlaceOfBirthAndPriorRes!D10-PlaceOfBirthAndPriorRes!L10","v":741},3.165834619816061,1.645,"Place of Birth - Born in Different State",null,"Y",{"$f":"PlaceOfBirthAndPriorRes!I10/1.645","v":152.58358662613981},{"$f":"PlaceOfBirthAndPriorRes!M10/1.645","v":118.54103343465046},193.21937665630645,{"$f":"PlaceOfBirthAndPriorRes!H10-PlaceOfBirthAndPriorRes!L10","v":325},1.6820259211274728,1.645]
["Y",{"$f":"PlaceOfBirthAndPriorRes!E11/1.645","v":234.65045592705167},{"$f":"PlaceOfBirthAndPriorRes!M11/1.645","v":102.12765957446808},255.91188975296097,{"$f":"PlaceOfBirthAndPriorRes!D11-PlaceOfBirthAndPriorRes!L11","v":482},1.8834607507501442,1.645,"Place of Birth - Northeast",null,"Y",{"$f":"PlaceOfBirthAndPriorRes!I11/1.645","v":155.62310030395136},{"$f":"PlaceOfBirthAndPriorRes!M11/1.645","v":102.12765957446808},186.14136616661045,{"$f":"PlaceOfBirthAndPriorRes!H11-PlaceOfBirthAndPriorRes!L11","v":373},2.003853349105309,1.645]
["N",{"$f":"PlaceOfBirthAndPriorRes!E12/1.645","v":72.340425531914889},{"$f":"PlaceOfBirthAndPriorRes!M12/1.645","v":32.826747720364743},79.440119159244688,{"$f":"PlaceOfBirthAndPriorRes!D12-PlaceOfBirthAndPriorRes!L12","v":96},1.2084574018268979,1.645,"Place of Birth - Midwest",null,"N",{"$f":"PlaceOfBirthAndPriorRes!I12/1.645","v":17.62917933130699},{"$f":"PlaceOfBirthAndPriorRes!M12/1.645","v":32.826747720364743},37.261016220600496,{"$f":"PlaceOfBirthAndPriorRes!H12-PlaceOfBirthAndPriorRes!L12","v":-17},0.45624091139525097,1.645]
["N",{"$f":"PlaceOfBirthAndPriorRes!E13/1.645","v":163.52583586626139},{"$f":"PlaceOfBirthAndPriorRes!M13/1.645","v":64.437689969604861},175.76380424984654,{"$f":"PlaceOfBirthAndPriorRes!D13-PlaceOfBirthAndPriorRes!L13","v":135},0.76807622921098595,1.645,"Place of Birth - South",null,"N",{"$f":"PlaceOfBirthAndPriorRes!I13/1.645","v":27.355623100303951},{"$f":"PlaceOfBirthAndPriorRes!M13/1.645","v":64.437689969604861},70.003899918681654,{"$f":"PlaceOfBirthAndPriorRes!H13-PlaceOfBirthAndPriorRes!L13","v":-61},0.87138002412521565,1.645]
["N",{"$f":"PlaceOfBirthAndPriorRes!E14/1.645","v":37.689969604863222},{"$f":"PlaceOfBirthAndPriorRes!M14/1.645","v":21.276595744680851},43.280796380127811,{"$f":"PlaceOfBirthAndPriorRes!D14-PlaceOfBirthAndPriorRes!L14","v":28},0.64693818833832917,1.645,"Place of Birth - West",null,"N",{"$f":"PlaceOfBirthAndPriorRes!I14/1.645","v":32.826747720364743},{"$f":"PlaceOfBirthAndPriorRes!M14/1.645","v":21.276595744680851},39.118907095917734,{"$f":"PlaceOfBirthAndPriorRes!H14-PlaceOfBirthAndPriorRes!L14","v":30},0.76689259049189185,1.645]
["N",{"$f":"PlaceOfBirthAndPriorRes!E15/1.645","v":14.589665653495441},{"$f":"PlaceOfBirthAndPriorRes!M15/1.645","v":6.6869300911854106},16.049092744612871,{"$f":"PlaceOfBirthAndPriorRes!D15-PlaceOfBirthAndPriorRes!L15","v":9},0.5607793626229115,1.645,"Place of Birth - Native Born Outside US",null,"N",{"$f":"PlaceOfBirthAndPriorRes!I15/1.645","v":19.45288753799392},{"$f":"PlaceOfBirthAndPriorRes!M15/1.645","v":6.6869300911854106},20.570120748557606,{"$f":"PlaceOfBirthAndPriorRes!H15-PlaceOfBirthAndPriorRes!L15","v":30},1.458426052365474,1.645]
["N",{"$f":"PlaceOfBirthAndPriorRes!E16/1.645","v":68.085106382978722},{"$f":"PlaceOfBirthAndPriorRes!M16/1.645","v":69.300911854103347},97.15038906248256,{"$f":"PlaceOfBirthAndPriorRes!D16-PlaceOfBirthAndPriorRes!L16","v":-69},0.71023904964109252,1.645,"Place of Birth - Foreign Born",null,"N",{"$f":"PlaceOfBirthAndPriorRes!I16/1.645","v":72.340425531914889},{"$f":"PlaceOfBirthAndPriorRes!M16/1.645","v":69.300911854103347},100.17860824521733,{"$f":"PlaceOfBirthAndPriorRes!H16-PlaceOfBirthAndPriorRes!L16","v":-35},0.34937598568276124,1.645]
["N",{"$f":"PlaceOfBirthAndPriorRes!E17/1.645","v":55.319148936170215},{"$f":"PlaceOfBirthAndPriorRes!M17/1.645","v":70.516717325227958},89.625976487557935,{"$f":"PlaceOfBirthAndPriorRes!D17-PlaceOfBirthAndPriorRes!L17","v":-119},1.3277400667039854,1.645,"Place of Birth - Naturalized Citizen",null,"N",{"$f":"PlaceOfBirthAndPriorRes!I17/1.645","v":45.59270516717325},{"$f":"PlaceOfBirthAndPriorRes!M17/1.645","v":70.516717325227958},83.972032170163004,{"$f":"PlaceOfBirthAndPriorRes!H17-PlaceOfBirthAndPriorRes!L17","v":-132},1.5719519533898136,1.645]
["N",{"$f":"PlaceOfBirthAndPriorRes!E18/1.645","v":32.218844984802431},{"$f":"PlaceOfBirthAndPriorRes!M18/1.645","v":15.805471124620061},35.886862354153045,{"$f":"PlaceOfBirthAndPriorRes!D18-PlaceOfBirthAndPriorRes!L18","v":50},1.3932675280042612,1.645,"Place of Birth - Not a Citizen",null,"N",{"$f":"PlaceOfBirthAndPriorRes!I18/1.645","v":63.221884498480243},{"$f":"PlaceOfBirthAndPriorRes!M18/1.645","v":15.805471124620061},65.167626909458463,{"$f":"PlaceOfBirthAndPriorRes!H18-PlaceOfBirthAndPriorRes!L18","v":97},1.4884691157277874,1.645]
["Y",{"$f":"PlaceOfBirthAndPriorRes!E43/1.645","v":32.826747720364743},{"$f":"PlaceOfBirthAndPriorRes!I43/1.645","v":32.218844984802431},45.996188299153658,{"$f":"PlaceOfBirthAndPriorRes!D43-PlaceOfBirthAndPriorRes!H43","v":668},14.522942545921602,1.645,"Place of Residence for Population Total:",null,"N",{"$f":"PlaceOfBirthAndPriorRes!I43/1.645","v":32.218844984802431},{"$f":"PlaceOfBirthAndPriorRes!M43/1.645","v":30.3951367781155},{"$f":"SQRT((K37^2)+(L37^2))","v":44.293547068563811},{"$f":"PlaceOfBirthAndPriorRes!H43-PlaceOfBirthAndPriorRes!L43","v":-60},1.3545991226921501,1.645]
["Y",{"$f":"PlaceOfBirthAndPriorRes!E44/1.645","v":263.82978723404256},{"$f":"PlaceOfBirthAndPriorRes!I44/1.645","v":142.24924012158056},299.73488777105553,{"$f":"PlaceOfBirthAndPriorRes!D44-PlaceOfBirthAndPriorRes!H44","v":515},1.7181850395519156,1.645,"Place of Residence for Population  Same house ",null,"N",{"$f":"PlaceOfBirthAndPriorRes!I8/1.645","v":72.948328267477208},{"$f":"PlaceOfBirthAndPriorRes!M8/1.645","v":68.085106382978722},{"$f":"SQRT((K38^2)+(L38^2))","v":99.784970352258682},{"$f":"PlaceOfBirthAndPriorRes!H8-PlaceOfBirthAndPriorRes!L8","v":-32},0.32068957766920519,1.645]
["N",{"$f":"PlaceOfBirthAndPriorRes!E45/1.645","v":274.67047642955339},{"$f":"PlaceOfBirthAndPriorRes!I45/1.645","v":151.00235427554512},313.44151227748227,{"$f":"PlaceOfBirthAndPriorRes!D45-PlaceOfBirthAndPriorRes!H45","v":153},0.48812934473259162,1.645,"Place of Residence for Population  Different house",null,"Y",{"$f":"PlaceOfBirthAndPriorRes!I9/1.645","v":158.05471124620061},{"$f":"PlaceOfBirthAndPriorRes!M9/1.645","v":125.83586626139818},202.02959432933667,{"$f":"PlaceOfBirthAndPriorRes!H9-PlaceOfBirthAndPriorRes!L9","v":-387},1.9155609418743649,1.645]
["N",{"$f":"PlaceOfBirthAndPriorRes!E46/1.645","v":273.16757260414977},{"$f":"PlaceOfBirthAndPriorRes!I46/1.645","v":147.37974663853112},310.38896958764667,{"$f":"PlaceOfBirthAndPriorRes!D46-PlaceOfBirthAndPriorRes!H46","v":157},0.50581694384492881,1.645,"Place of Residence for Population in New Hampshire",null,"Y",{"$f":"PlaceOfBirthAndPriorRes!I10/1.645","v":152.58358662613981},{"$f":"PlaceOfBirthAndPriorRes!M10/1.645","v":118.54103343465046},193.21937665630645,{"$f":"PlaceOfBirthAndPriorRes!H10-PlaceOfBirthAndPriorRes!L10","v":325},1.6820259211274728,1.645]
["N",{"$f":"PlaceOfBirthAndPriorRes!E47/1.645","v":200.60790273556231},{"$f":"PlaceOfBirthAndPriorRes!I47/1.645","v":124.01215805471125},235.84432574337569,{"$f":"PlaceOfBirthAndPriorRes!D47-PlaceOfBirthAndPriorRes!H47","v":52},0.22048442266353976,1.645,"Place of Residence for Population Same county",null,"Y",{"$f":"PlaceOfBirthAndPriorRes!I11/1.645","v":155.62310030395136},{"$f":"PlaceOfBirthAndPriorRes!M11/1.645","v":102.12765957446808},186.14136616661045,{"$f":"PlaceOfBirthAndPriorRes!H11-PlaceOfBirthAndPriorRes!L11","v":373},2.003853349105309,1.645]
["N",{"$f":"PlaceOfBirthAndPriorRes!E48/1.645","v":185.41033434650456},{"$f":"PlaceOfBirthAndPriorRes!I48/1.645","v":79.635258358662611},201.78891559333368,{"$f":"PlaceOfBirthAndPriorRes!D48-PlaceOfBirthAndPriorRes!H48","v":105},0.52034572707455884,1.645,"Place of Residence for Population Different county",null,"N",{"$f":"PlaceOfBirthAndPriorRes!I12/1.645","v":17.62917933130699},{"$f":"PlaceOfBirthAndPriorRes!M12/1.645","v":32.826747720364743},37.261016220600496,{"$f":"PlaceOfBirthAndPriorRes!H12-PlaceOfBirthAndPriorRes!L12","v":-17},0.45624091139525097,1.645]
["N",{"$f":"PlaceOfBirthAndPriorRes!E49/1.645","v":17.021276595744681},{"$f":"PlaceOfBirthAndPriorRes!I49/1.645","v":31.003039513677813},35.368238803133998,{"$f":"PlaceOfBirthAndPriorRes!D49-PlaceOfBirthAndPriorRes!H49","v":-24},0.67857492519173301,1.645,"Place of Residence for Population in Different state",null,"N",{"$f":"PlaceOfBirthAndPriorRes!I13/1.645","v":27.355623100303951},{"$f":"PlaceOfBirthAndPriorRes!M13/1.645","v":64.437689969604861},70.003899918681654,{"$f":"PlaceOfBirthAndPriorRes!H13-PlaceOfBirthAndPriorRes!L13","v":-61},0.87138002412521565,1.645]
["N",{"$f":"PlaceOfBirthAndPriorRes!E50/1.645","v":23.100303951367781},{"$f":"PlaceOfBirthAndPriorRes!I50/1.645","v":10.94224924012158},25.560846251220227,{"$f":"PlaceOfBirthAndPriorRes!D50-PlaceOfBirthAndPriorRes!H50","v":20},0.78244670788414283,1.645,"Place of Residence for Population Elsewhere",null,"N",{"$f":"PlaceOfBirthAndPriorRes!I14/1.645","v":32.826747720364743},{"$f":"PlaceOfBirthAndPriorRes!M14/1.645","v":21.276595744680851},39.118907095917734,{"$f":"PlaceOfBirthAndPriorRes!H14-PlaceOfBirthAndPriorRes!L14","v":30},0.76689259049189185,1.645]
["Y",{"$f":"SchoolEnrolEduAttain!G23/1.645","v":39.513677811550153},{"$f":"SchoolEnrolEduAttain!M23/1.645","v":41.945288753799389},{"$f":"SQRT((B45^2)+(C45^2))","v":57.625844747253815},{"$f":"SchoolEnrolEduAttain!F23-SchoolEnrolEduAttain!L23","v":627},10.880534641184239,1.645,"Total Population 3 years & over",null,"N",{"$f":"SchoolEnrolEduAttain!J23/1.645","v":34.042553191489361},{"$f":"SchoolEnrolEduAttain!M23/1.645","v":41.945288753799389},{"$f":"SQRT((K45^2)+(L45^2))","v":54.021316870611287},{"$f":"SchoolEnrolEduAttain!I23-SchoolEnrolEduAttain!L23","v":-59},1.0921614543627909,1.645]
["Y",{"$f":"SchoolEnrolEduAttain!G24/1.645","v":130.69908814589667},{"$f":"SchoolEnrolEduAttain!M24/1.645","v":79.635258358662611},{"$f":"SQRT((B46^2)+(C46^2))","v":153.04909675009458},{"$f":"SchoolEnrolEduAttain!F24-SchoolEnrolEduAttain!L24","v":451},2.9467668191234937,1.645,"Population 3 years & over enrolled in school",null,"N",{"$f":"SchoolEnrolEduAttain!J24/1.645","v":92.401215805471125},{"$f":"SchoolEnrolEduAttain!M24/1.645","v":79.635258358662611},{"$f":"SQRT((K46^2)+(L46^2))","v":121.98261784442974},{"$f":"SchoolEnrolEduAttain!I24-SchoolEnrolEduAttain!L24","v":10},8.1978893195696761E-2,1.645]
["N",{"$f":"SchoolEnrolEduAttain!G25/1.645","v":57.349429374204277},{"$f":"SchoolEnrolEduAttain!M25/1.645","v":39.695629707755643},69.747401868758502,{"$f":"SchoolEnrolEduAttain!F25-SchoolEnrolEduAttain!L25","v":44},0.6308478713342387,1.645,"Preprimary (Nursery, Preschool, Kindergarten)",null,"N",{"$f":"SchoolEnrolEduAttain!J25/1.645","v":24.110069319212084},{"$f":"SchoolEnrolEduAttain!M25/1.645","v":39.695629707755643},46.443928133529617,{"$f":"SchoolEnrolEduAttain!I25-SchoolEnrolEduAttain!L25","v":-59},1.2703490503725434,1.645]
["N",{"$f":"SchoolEnrolEduAttain!G26/1.645","v":30.3951367781155},{"$f":"SchoolEnrolEduAttain!M26/1.645","v":35.258358662613979},46.551221201402178,{"$f":"SchoolEnrolEduAttain!F26-SchoolEnrolEduAttain!L26","v":-8},0.17185370852868259,1.645,"Nursery school and Preschool",null,"N",{"$f":"SchoolEnrolEduAttain!J26/1.645","v":20.060790273556229},{"$f":"SchoolEnrolEduAttain!M26/1.645","v":35.258358662613979},40.565837375569288,{"$f":"SchoolEnrolEduAttain!I26-SchoolEnrolEduAttain!L26","v":-35},0.86279495911697102,1.645]
["N",{"$f":"SchoolEnrolEduAttain!G27/1.645","v":48.632218844984799},{"$f":"SchoolEnrolEduAttain!M27/1.645","v":18.237082066869302},51.939232494331492,{"$f":"SchoolEnrolEduAttain!F27-SchoolEnrolEduAttain!L27","v":52},1.0011699731157009,1.645,"Kindergarten",null,"N",{"$f":"SchoolEnrolEduAttain!J27/1.645","v":13.373860182370821},{"$f":"SchoolEnrolEduAttain!M27/1.645","v":18.237082066869302},22.615289042842889,{"$f":"SchoolEnrolEduAttain!I27-SchoolEnrolEduAttain!L27","v":-24},1.0612289745461083,1.645]
["Y",{"$f":"SchoolEnrolEduAttain!G28/1.645","v":166.13771564703816},{"$f":"SchoolEnrolEduAttain!M28/1.645","v":83.459975892981959},185.92285533648962,{"$f":"SchoolEnrolEduAttain!F28-SchoolEnrolEduAttain!L28","v":358},1.9255298083287244,1.645,"Elementary through High school",null,"N",{"$f":"SchoolEnrolEduAttain!J28/1.645","v":67.695913251445532},{"$f":"SchoolEnrolEduAttain!M28/1.645","v":83.459975892981959},107.46303665449051,{"$f":"SchoolEnrolEduAttain!I28-SchoolEnrolEduAttain!L28","v":-7},6.5138676682904753E-2,1.645]
["Y",{"$f":"SchoolEnrolEduAttain!G29/1.645","v":135.12681011192245},{"$f":"SchoolEnrolEduAttain!M29/1.645","v":72.50371089286665},153.34941442424858,{"$f":"SchoolEnrolEduAttain!F29-SchoolEnrolEduAttain!L29","v":280},1.8258954626678028,1.645,"Elementary school (grades 1-8)",null,"N",{"$f":"SchoolEnrolEduAttain!J29/1.645","v":58.863068386189447},{"$f":"SchoolEnrolEduAttain!M29/1.645","v":72.50371089286665},93.389768781561969,{"$f":"SchoolEnrolEduAttain!I29-SchoolEnrolEduAttain!L29","v":32},0.34264995424549965,1.645]
["N",{"$f":"SchoolEnrolEduAttain!G30/1.645","v":96.656534954407292},{"$f":"SchoolEnrolEduAttain!M30/1.645","v":41.337386018237083},105.12499813181117,{"$f":"SchoolEnrolEduAttain!F30-SchoolEnrolEduAttain!L30","v":78},0.74197385385157921,1.645,"High school (grades 9-12)",null,"N",{"$f":"SchoolEnrolEduAttain!J30/1.645","v":33.434650455927049},{"$f":"SchoolEnrolEduAttain!M30/1.645","v":41.337386018237083},53.166298854920925,{"$f":"SchoolEnrolEduAttain!I30-SchoolEnrolEduAttain!L30","v":-39},0.73354739449556905,1.645]
["N",{"$f":"SchoolEnrolEduAttain!G31/1.645","v":54.926964124384284},{"$f":"SchoolEnrolEduAttain!M31/1.645","v":42.955114472776934},69.72885519848127,{"$f":"SchoolEnrolEduAttain!F31-SchoolEnrolEduAttain!L31","v":49},0.70272199164209492,1.645,"College or Graduate School",null,"N",{"$f":"SchoolEnrolEduAttain!J31/1.645","v":61.72233786430791},{"$f":"SchoolEnrolEduAttain!M31/1.645","v":42.955114472776934},75.198330106493373,{"$f":"SchoolEnrolEduAttain!I31-SchoolEnrolEduAttain!L31","v":76},1.0106607406357473,1.645]
["N",{"$f":"SchoolEnrolEduAttain!G52/1.645","v":106.38297872340425},{"$f":"SchoolEnrolEduAttain!M52/1.645","v":89.361702127659569},{"$f":"SQRT((B54^2)+(C54^2))","v":138.93470397714475},{"$f":"SchoolEnrolEduAttain!I52-SchoolEnrolEduAttain!L52","v":-78},0.56141480686374279,1.645,"Population 25 years and over",null,"N",{"$f":"SchoolEnrolEduAttain!J52/1.645","v":88.145896656534958},{"$f":"SchoolEnrolEduAttain!M52/1.645","v":89.361702127659569},{"$f":"SQRT((K54^2)+(L54^2))","v":125.51977097070045},{"$f":"SchoolEnrolEduAttain!I52-SchoolEnrolEduAttain!L52","v":-78},0.6214160478209223,1.645]
["N",{"$f":"SchoolEnrolEduAttain!G53/1.645","v":104.35761992827837},{"$f":"SchoolEnrolEduAttain!M53/1.645","v":37.738962176702145},{"$f":"SQRT((B55^2)+(C55^2))","v":110.97180769578171},{"$f":"SchoolEnrolEduAttain!I53-SchoolEnrolEduAttain!L53","v":41},0.36946320737963884,1.645,"Less than 9th Grade",null,"N",{"$f":"SchoolEnrolEduAttain!J53/1.645","v":38.710566504396276},{"$f":"SchoolEnrolEduAttain!M53/1.645","v":37.738962176702145},{"$f":"SQRT((K55^2)+(L55^2))","v":54.062345724781885},{"$f":"SchoolEnrolEduAttain!I53-SchoolEnrolEduAttain!L53","v":41},0.75838366704842819,1.645]
["N",{"$f":"SchoolEnrolEduAttain!G54/1.645","v":107.36842753588991},{"$f":"SchoolEnrolEduAttain!M54/1.645","v":60.802430395379872},123.38928143690057,{"$f":"SchoolEnrolEduAttain!I54-SchoolEnrolEduAttain!L54","v":-138},1.1184115702186914,1.645,"9th to 12th Grade, no Diploma",null,"Y",{"$f":"SchoolEnrolEduAttain!J54/1.645","v":37.987841458888738},{"$f":"SchoolEnrolEduAttain!M54/1.645","v":60.802430395379872},71.693874499085908,{"$f":"SchoolEnrolEduAttain!I54-SchoolEnrolEduAttain!L54","v":-138},1.9248506370200356,1.645]
["N",{"$f":"SchoolEnrolEduAttain!G55/1.645","v":121.64891694660204},{"$f":"SchoolEnrolEduAttain!M55/1.645","v":110.37746065790643},164.26089862036238,{"$f":"SchoolEnrolEduAttain!I55-SchoolEnrolEduAttain!L55","v":146},0.88882991159955405,1.645,"High School Graduate ",null,"N",{"$f":"SchoolEnrolEduAttain!J55/1.645","v":116.11101384991362},{"$f":"SchoolEnrolEduAttain!M55/1.645","v":110.37746065790643},160.20284441464364,{"$f":"SchoolEnrolEduAttain!I55-SchoolEnrolEduAttain!L55","v":146},0.91134461771550546,1.645]
["N",{"$f":"SchoolEnrolEduAttain!G56/1.645","v":108.6378486880632},{"$f":"SchoolEnrolEduAttain!M56/1.645","v":74.256258493312671},131.59093469155155,{"$f":"SchoolEnrolEduAttain!I56-SchoolEnrolEduAttain!L56","v":88},0.66873907542545796,1.645,"Some College, No Degree",null,"N",{"$f":"SchoolEnrolEduAttain!J56/1.645","v":81.581362477183234},{"$f":"SchoolEnrolEduAttain!M56/1.645","v":74.256258493312671},110.31550493497834,{"$f":"SchoolEnrolEduAttain!I56-SchoolEnrolEduAttain!L56","v":88},0.79771198121124098,1.645]
["N",{"$f":"SchoolEnrolEduAttain!G57/1.645","v":65.937133566088576},{"$f":"SchoolEnrolEduAttain!M57/1.645","v":67.938400345038346},94.674874303348886,{"$f":"SchoolEnrolEduAttain!I57-SchoolEnrolEduAttain!L57","v":-87},0.91893441253739894,1.645,"Associate Degree",null,"N",{"$f":"SchoolEnrolEduAttain!J57/1.645","v":65.167626909458463},{"$f":"SchoolEnrolEduAttain!M57/1.645","v":67.938400345038346},94.140564256079756,{"$f":"SchoolEnrolEduAttain!I57-SchoolEnrolEduAttain!L57","v":-87},0.92414997389800957,1.645]
["N",{"$f":"SchoolEnrolEduAttain!G58/1.645","v":92.090743797974085},{"$f":"SchoolEnrolEduAttain!M58/1.645","v":66.783586955381963},113.75742868002584,{"$f":"SchoolEnrolEduAttain!I58-SchoolEnrolEduAttain!L58","v":-94},0.82631966185171912,1.645,"Bachelor's Degree",null,"N",{"$f":"SchoolEnrolEduAttain!J58/1.645","v":52.859581053686014},{"$f":"SchoolEnrolEduAttain!M58/1.645","v":66.783586955381963},85.171490510606105,{"$f":"SchoolEnrolEduAttain!I58-SchoolEnrolEduAttain!L58","v":-94},1.1036556884993636,1.645]
["N",{"$f":"SchoolEnrolEduAttain!G59/1.645","v":103.64518800695689},{"$f":"SchoolEnrolEduAttain!M59/1.645","v":39.588425909215644},110.94849464038209,{"$f":"SchoolEnrolEduAttain!I59-SchoolEnrolEduAttain!L59","v":-28},0.25236935472406846,1.645,"Graduate or Professional Degree",null,"N",{"$f":"SchoolEnrolEduAttain!J59/1.645","v":36.097344290099748},{"$f":"SchoolEnrolEduAttain!M59/1.645","v":39.588425909215644},53.574823665295007,{"$f":"SchoolEnrolEduAttain!I59-SchoolEnrolEduAttain!L59","v":-28},0.52263354472108126,1.645]
["N",{"$f":"HousingCharacteristics!D32/1.645","v":61.398176291793312},{"$f":"HousingCharacteristics!J32/1.645","v":72.948328267477208},95.347756391945296,{"$f":"HousingCharacteristics!C32-HousingCharacteristics!I32","v":39},0.40902902675216601,1.645,"Total Housing Units",null,"N",{"$f":"HousingCharacteristics!G32/1.645","v":61.398176291793312},{"$f":"HousingCharacteristics!J32/1.645","v":72.948328267477208},{"$f":"SQRT((K62^2)+(L62^2))","v":95.347756391945296},{"$f":"HousingCharacteristics!F32-HousingCharacteristics!I32","v":-46},{"$f":"ABS((N62/M62))","v":0.48244449309229837},1.645]
["N",{"$f":"HousingCharacteristics!D33/1.645","v":53.495440729483285},{"$f":"HousingCharacteristics!J33/1.645","v":65.045592705167167},84.218117464166554,{"$f":"HousingCharacteristics!C33-HousingCharacteristics!I33","v":36},0.42746146653441186,1.645,"Occupied Units",null,"N",{"$f":"HousingCharacteristics!G33/1.645","v":53.495440729483285},{"$f":"HousingCharacteristics!J33/1.645","v":65.045592705167167},{"$f":"SQRT((K63^2)+(L63^2))","v":84.218117464166554},{"$f":"HousingCharacteristics!F33-HousingCharacteristics!I33","v":-1},{"$f":"ABS((N63/M63))","v":1.1873929625955886E-2},1.645]
["Y",{"$f":"HousingCharacteristics!D34/1.645","v":70.516717325227958},{"$f":"HousingCharacteristics!J34/1.645","v":69.300911854103347},98.869731496228439,{"$f":"HousingCharacteristics!C34-HousingCharacteristics!I34","v":-203},2.0532067492035599,1.645,"Owner Occupied",null,"N",{"$f":"HousingCharacteristics!G34/1.645","v":70.516717325227958},{"$f":"HousingCharacteristics!J34/1.645","v":69.300911854103347},98.869731496228439,{"$f":"HousingCharacteristics!F34-HousingCharacteristics!I34","v":-127},1.2845185081224242,1.645]
["Y",{"$f":"HousingCharacteristics!D35/1.645","v":77.81155015197568},{"$f":"HousingCharacteristics!J35/1.645","v":69.300911854103347},104.19814643679429,{"$f":"HousingCharacteristics!C35-HousingCharacteristics!I35","v":239},2.2937068285084647,1.645,"Renter Occupied",null,"N",{"$f":"HousingCharacteristics!G35/1.645","v":77.81155015197568},{"$f":"HousingCharacteristics!J35/1.645","v":69.300911854103347},104.19814643679429,{"$f":"HousingCharacteristics!F35-HousingCharacteristics!I35","v":126},1.2092345623099019,1.645]
["Y",{"$f":"HousingCharacteristics!D36/1.645","v":23.70820668693009},{"$f":"HousingCharacteristics!J36/1.645","v":37.689969604863222},44.52654122122793,{"$f":"HousingCharacteristics!C36-HousingCharacteristics!I36","v":248},5.5697117538913297,1.645,"Vacant Units",null,"N",{"$f":"HousingCharacteristics!G36/1.645","v":23.70820668693009},{"$f":"HousingCharacteristics!J36/1.645","v":37.689969604863222},44.52654122122793,{"$f":"HousingCharacteristics!F36-HousingCharacteristics!I36","v":-45},1.0106331811496365,1.645]
["N",{"$f":"HousingCharacteristics!D37/1.645","v":6.6869300911854106},{"$f":"HousingCharacteristics!J37/1.645","v":27.355623100303951},28.16105731769111,{"$f":"HousingCharacteristics!C37-HousingCharacteristics!I37","v":-2},7.1020060697208842E-2,1.645,"Vacant For Sale",null,"N",{"$f":"HousingCharacteristics!G37/1.645","v":6.6869300911854106},{"$f":"HousingCharacteristics!J37/1.645","v":27.355623100303951},28.16105731769111,{"$f":"HousingCharacteristics!F37-HousingCharacteristics!I37","v":-37},1.3138711228983637,1.645]
[{"$f":"IF(F68>G68,\"Y\",\"N\")","v":"N"},{"$f":"HousingCharacteristics!D38/1.645","v":6.6869300911854106},{"$f":"HousingCharacteristics!J38/1.645","v":6.6869300911854106},9.4567472255951639,{"$f":"HousingCharacteristics!C38-HousingCharacteristics!I38","v":0},{"$f":"ABS((E68/D68))","v":0},1.645,"Vacant For Rent",null,"N",{"$f":"HousingCharacteristics!G38/1.645","v":6.6869300911854106},{"$f":"HousingCharacteristics!J38/1.645","v":6.6869300911854106},9.4567472255951639,{"$f":"HousingCharacteristics!F38-HousingCharacteristics!I38","v":0},0,1.645]
["N",{"$f":"HousingCharacteristics!D39/1.645","v":6.6869300911854106},{"$f":"HousingCharacteristics!J39/1.645","v":6.6869300911854106},9.4567472255951639,{"$f":"HousingCharacteristics!C39-HousingCharacteristics!I39","v":0},0,1.645,"Vacant Seasonal",null,{"$f":"IF(O69>P69,\"Y\",\"N\")","v":"N"},{"$f":"HousingCharacteristics!G39/1.645","v":6.6869300911854106},{"$f":"HousingCharacteristics!J39/1.645","v":6.6869300911854106},9.4567472255951639,{"$f":"HousingCharacteristics!F39-HousingCharacteristics!I39","v":0},0,1.645]
["N",{"$f":"HousingCharacteristics!E71/1.645","v":86.322188449848028},{"$f":"HousingCharacteristics!K71/1.645","v":72.948328267477208},113.01760400836098,{"$f":"HousingCharacteristics!D71-HousingCharacteristics!J71","v":39},0.34507898430685896,1.645,"Total Housing Units",null,"N",{"$f":"HousingCharacteristics!H71/1.645","v":61.398176291793312},{"$f":"HousingCharacteristics!K71/1.645","v":72.948328267477208},95.347756391945296,{"$f":"HousingCharacteristics!G71-HousingCharacteristics!J71","v":-46},0.48244449309229837,1.645]
["Y",{"$f":"HousingCharacteristics!E72/1.645","v":88.753799392097264},{"$f":"HousingCharacteristics!K72/1.645","v":117.10927098600877},146.94154707708464,{"$f":"HousingCharacteristics!D72-HousingCharacteristics!J72","v":-401},2.7289763036837895,1.645,"Single Family Units",null,"Y",{"$f":"HousingCharacteristics!H72/1.645","v":65.653495440729486},{"$f":"HousingCharacteristics!K72/1.645","v":117.10927098600877},134.25707733471751,{"$f":"HousingCharacteristics!G72-HousingCharacteristics!J72","v":-556},4.1413086821027054,1.645]
["N",{"$f":"HousingCharacteristics!E73/1.645","v":90.577507598784194},{"$f":"HousingCharacteristics!K73/1.645","v":65.045592705167167},111.51329074677288,{"$f":"HousingCharacteristics!D73-HousingCharacteristics!J73","v":183},1.64105999181354,1.645,"SF Owner Occ.",null,"N",{"$f":"HousingCharacteristics!H73/1.645","v":54.711246200607903},{"$f":"HousingCharacteristics!K73/1.645","v":65.045592705167167},84.995585715906614,{"$f":"HousingCharacteristics!G73-HousingCharacteristics!J73","v":14},0.16471443642725497,1.645]
["N",{"$f":"HousingCharacteristics!E74/1.645","v":34.042553191489361},{"$f":"HousingCharacteristics!K74/1.645","v":24.924012158054712},42.19125276464591,{"$f":"HousingCharacteristics!D74-HousingCharacteristics!J74","v":10},0.23701595342007675,1.645,"SF Renter Occ.",null,"N",{"$f":"HousingCharacteristics!H74/1.645","v":37.08206686930091},{"$f":"HousingCharacteristics!K74/1.645","v":24.924012158054712},44.67981720367893,{"$f":"HousingCharacteristics!G74-HousingCharacteristics!J74","v":34},0.76096998886558664,1.645]
["N",{"$f":"HousingCharacteristics!E75/1.645","v":125.89899008491038},{"$f":"HousingCharacteristics!K75/1.645","v":65.184636774517656},141.77303190602282,{"$f":"HousingCharacteristics!D75-HousingCharacteristics!J75","v":140},0.98749387043370762,1.645,"Multi-family Units",null,"N",{"$f":"HousingCharacteristics!H75/1.645","v":94.12289799421788},{"$f":"HousingCharacteristics!K75/1.645","v":65.184636774517656},114.49085901614916,{"$f":"HousingCharacteristics!G75-HousingCharacteristics!J75","v":9},7.8608895743637774E-2,1.645]
["N",{"$f":"HousingCharacteristics!E76/1.645","v":126.00314857831752},{"$f":"HousingCharacteristics!K76/1.645","v":58.06982727824559},138.74039891745605,{"$f":"HousingCharacteristics!D76-HousingCharacteristics!J76","v":-126},0.90817095080549692,1.645,"MF Owner Occ.",null,"N",{"$f":"HousingCharacteristics!H76/1.645","v":47.989676245569726},{"$f":"HousingCharacteristics!K76/1.645","v":58.06982727824559},75.333351619849452,{"$f":"HousingCharacteristics!G76-HousingCharacteristics!J76","v":-56},0.74336265141354285,1.645]
["N",{"$f":"HousingCharacteristics!E77/1.645","v":120.25108999892264},{"$f":"HousingCharacteristics!K77/1.645","v":74.422788779588529},141.41808984589008,{"$f":"HousingCharacteristics!D77-HousingCharacteristics!J77","v":201},1.4213174581769499,1.645,"MF Renter Occ.",null,"N",{"$f":"HousingCharacteristics!H77/1.645","v":83.227190711853282},{"$f":"HousingCharacteristics!K77/1.645","v":74.422788779588529},111.64907865055783,{"$f":"HousingCharacteristics!G77-HousingCharacteristics!J77","v":38},0.34035211449378266,1.645]
["Y",{"$f":"HousingCharacteristics!E78/1.645","v":85.7229080144498},{"$f":"HousingCharacteristics!K78/1.645","v":0},85.7229080144498,{"$f":"HousingCharacteristics!D78-HousingCharacteristics!J78","v":300},3.4996479581564217,1.645,"Mobile Home & Other",null,"Y",{"$f":"HousingCharacteristics!H78/1.645","v":56.929044466592849},{"$f":"HousingCharacteristics!K78/1.645","v":0},56.929044466592849,{"$f":"HousingCharacteristics!G78-HousingCharacteristics!J78","v":501},8.8004287564320052,1.645]
["N",{"$f":"HousingCharacteristics!$D88/1.645","v":51.063829787234042},{"$f":"HousingCharacteristics!L88/1.645","v":12.76595744680851},52.635390965331837,{"$f":"HousingCharacteristics!$D88-HousingCharacteristics!$K88","v":46},0.87393670221425312,1.645,"No Bedrooms",null,"N",{"$f":"HousingCharacteristics!H88/1.645","v":45.59270516717325},{"$f":"HousingCharacteristics!L88/1.645","v":12.76595744680851},47.346218792998791,{"$f":"HousingCharacteristics!G88-HousingCharacteristics!K88","v":18},0.38017819498315897,1.645]
["N",{"$f":"HousingCharacteristics!$D89/1.645","v":65.653495440729486},{"$f":"HousingCharacteristics!L89/1.645","v":65.653495440729486},92.848063669479799,{"$f":"HousingCharacteristics!$D89-HousingCharacteristics!$K89","v":-151},1.6263128603040042,1.645,"1 Bedroom",null,"N",{"$f":"HousingCharacteristics!H89/1.645","v":60.790273556231},{"$f":"HousingCharacteristics!L89/1.645","v":65.653495440729486},89.475353157320839,{"$f":"HousingCharacteristics!G89-HousingCharacteristics!K89","v":7},7.8233834827029822E-2,1.645]
["Y",{"$f":"HousingCharacteristics!$D90/1.645","v":91.79331306990882},{"$f":"HousingCharacteristics!L90/1.645","v":75.98784194528875},119.1644428839932,{"$f":"HousingCharacteristics!$D90-HousingCharacteristics!$K90","v":-441},3.7007683611571474,1.645,"2 Bedrooms",null,"N",{"$f":"HousingCharacteristics!H90/1.645","v":72.948328267477208},{"$f":"HousingCharacteristics!L90/1.645","v":75.98784194528875},105.33570487029458,{"$f":"HousingCharacteristics!G90-HousingCharacteristics!K90","v":18},0.17088222860581179,1.645]
["Y",{"$f":"HousingCharacteristics!$D91/1.645","v":93.61702127659575},{"$f":"HousingCharacteristics!L91/1.645","v":72.340425531914889},118.31011722942846,{"$f":"HousingCharacteristics!$D91-HousingCharacteristics!$K91","v":-636},5.3757025594578769,1.645,"3 Bedrooms",null,"N",{"$f":"HousingCharacteristics!H91/1.645","v":68.693009118541028},{"$f":"HousingCharacteristics!L91/1.645","v":72.340425531914889},99.759043038205235,{"$f":"HousingCharacteristics!G91-HousingCharacteristics!K91","v":-94},0.94227046628745559,1.645]
["N",{"$f":"HousingCharacteristics!$D92/1.645","v":85.256055969640812},{"$f":"HousingCharacteristics!L92/1.645","v":46.380229933647357},97.055246165246146,{"$f":"HousingCharacteristics!$D92-HousingCharacteristics!$K92","v":-38.75378792994087},0.39929616853434918,1.645,"4+ Bedrooms",null,"N",{"$f":"HousingCharacteristics!H92/1.645","v":44.522391303587973},{"$f":"HousingCharacteristics!L92/1.645","v":46.380229933647357},64.291282893467013,{"$f":"HousingCharacteristics!G92-HousingCharacteristics!K92","v":5},7.777104103343499E-2,1.645]
["N",{"$f":"'HHIncome-10YearComparison'!$F$30/1.645","v":40.729483282674771},{"$f":"'HHIncome-10YearComparison'!$M$30/1.645","v":25.531914893617021},{"$f":"SQRT((B83^2)+(C83^2))","v":48.070463765274681},{"$f":"'HHIncome-10YearComparison'!$E$30-'HHIncome-10YearComparison'!$L$30","v":26},0.54087266823462554,1.645,"Household Income Less than $10,000",null,"N",{"$f":"'HHIncome-10YearComparison'!$F$30/1.645","v":40.729483282674771},{"$f":"'HHIncome-10YearComparison'!$J$30/1.645","v":25.531914893617021},{"$f":"SQRT((K83^2)+(L83^2))","v":48.070463765274681},{"$f":"'HHIncome-10YearComparison'!$E$30-'HHIncome-10YearComparison'!$I$30","v":26},0.54087266823462554,1.645]
["N",{"$f":"'HHIncome-10YearComparison'!$F$31/1.645","v":31.003039513677813},{"$f":"'HHIncome-10YearComparison'!$M$31/1.645","v":44.984802431610944},{"$f":"SQRT((B84^2)+(C84^2))","v":54.633514520829955},{"$f":"'HHIncome-10YearComparison'!$E$31-'HHIncome-10YearComparison'!$L$31","v":-81},1.4826064314262151,1.645,"Household Income $10,000 to $14,999",null,"N",{"$f":"'HHIncome-10YearComparison'!$F$31/1.645","v":31.003039513677813},{"$f":"'HHIncome-10YearComparison'!$J$31/1.645","v":44.984802431610944},{"$f":"SQRT((K84^2)+(L84^2))","v":54.633514520829955},{"$f":"'HHIncome-10YearComparison'!$E$31-'HHIncome-10YearComparison'!$I$31","v":-81},1.4826064314262151,1.645]
["N",{"$f":"'HHIncome-10YearComparison'!$F$32/1.645","v":38.90577507598784},{"$f":"'HHIncome-10YearComparison'!$M$32/1.645","v":17.878955829608199},42.817244140888349,{"$f":"'HHIncome-10YearComparison'!$E$32-'HHIncome-10YearComparison'!$L$32","v":29},0.67729721008145027,1.645,"Household Income $15,000 to $24,999",null,"N",{"$f":"'HHIncome-10YearComparison'!$F$32/1.645","v":38.90577507598784},{"$f":"'HHIncome-10YearComparison'!$J$32/1.645","v":17.878955829608199},42.817244140888349,{"$f":"'HHIncome-10YearComparison'!$E$32-'HHIncome-10YearComparison'!$I$32","v":29},0.67729721008145027,1.645]
["N",{"$f":"'HHIncome-10YearComparison'!$F$33/1.645","v":58.966565349544069},{"$f":"'HHIncome-10YearComparison'!$M$33/1.645","v":62.009058871124431},85.569733032215467,{"$f":"'HHIncome-10YearComparison'!$E$33-'HHIncome-10YearComparison'!$L$33","v":-93},1.086832887102583,1.645,"Household Income $25,000 to $34,999",null,"N",{"$f":"'HHIncome-10YearComparison'!$F$33/1.645","v":58.966565349544069},{"$f":"'HHIncome-10YearComparison'!$J$33/1.645","v":62.009058871124431},85.569733032215467,{"$f":"'HHIncome-10YearComparison'!$E$33-'HHIncome-10YearComparison'!$I$33","v":-93},1.086832887102583,1.645]
["Y",{"$f":"'HHIncome-10YearComparison'!$F$34/1.645","v":23.100303951367781},{"$f":"'HHIncome-10YearComparison'!$M$34/1.645","v":51.334497589169224},56.292581086480652,{"$f":"'HHIncome-10YearComparison'!$E$34-'HHIncome-10YearComparison'!$L$34","v":-198},3.5173373858238683,1.645,"Household Income $35,000 to $49,999",null,"Y",{"$f":"'HHIncome-10YearComparison'!$F$34/1.645","v":23.100303951367781},{"$f":"'HHIncome-10YearComparison'!$J$34/1.645","v":51.334497589169224},56.292581086480652,{"$f":"'HHIncome-10YearComparison'!$E$34-'HHIncome-10YearComparison'!$I$34","v":-198},3.5173373858238683,1.645]
["Y",{"$f":"'HHIncome-10YearComparison'!$F$35/1.645","v":39.513677811550153},{"$f":"'HHIncome-10YearComparison'!$M$35/1.645","v":72.350641663237099},82.437528367104335,{"$f":"'HHIncome-10YearComparison'!$E$35-'HHIncome-10YearComparison'!$L$35","v":-257},3.1175121948774076,1.645,"Household Income $50,000 to $74,999",null,"Y",{"$f":"'HHIncome-10YearComparison'!$F$35/1.645","v":39.513677811550153},{"$f":"'HHIncome-10YearComparison'!$J$35/1.645","v":72.350641663237099},82.437528367104335,{"$f":"'HHIncome-10YearComparison'!$E$35-'HHIncome-10YearComparison'!$I$35","v":-257},3.1175121948774076,1.645]
["Y",{"$f":"'HHIncome-10YearComparison'!$F$36/1.645","v":7.9027355623100304},{"$f":"'HHIncome-10YearComparison'!$M$36/1.645","v":47.416413373860181},48.070463765274681,{"$f":"'HHIncome-10YearComparison'!$E$36-'HHIncome-10YearComparison'!$L$36","v":-243},5.0550791685005381,1.645,"Household Income $75,000 to $99,999",null,"Y",{"$f":"'HHIncome-10YearComparison'!$F$36/1.645","v":7.9027355623100304},{"$f":"'HHIncome-10YearComparison'!$J$36/1.645","v":47.416413373860181},48.070463765274681,{"$f":"'HHIncome-10YearComparison'!$E$36-'HHIncome-10YearComparison'!$I$36","v":-243},5.0550791685005381,1.645]
["Y",{"$f":"'HHIncome-10YearComparison'!$F$37/1.645","v":30.3951367781155},{"$f":"'HHIncome-10YearComparison'!$M$37/1.645","v":46.571063161811075},55.612303169188614,{"$f":"'HHIncome-10YearComparison'!$E$37-'HHIncome-10YearComparison'!$L$37","v":-150},2.6972448802139497,1.645,"Household Income $100,000 to $149,999",null,"Y",{"$f":"'HHIncome-10YearComparison'!$F$37/1.645","v":30.3951367781155},{"$f":"'HHIncome-10YearComparison'!$J$37/1.645","v":46.571063161811075},55.612303169188614,{"$f":"'HHIncome-10YearComparison'!$E$37-'HHIncome-10YearComparison'!$I$37","v":-150},2.6972448802139497,1.645]
["N",{"$f":"'HHIncome-10YearComparison'!$F$38/1.645","v":31.610942249240122},{"$f":"'HHIncome-10YearComparison'!$M$38/1.645","v":38.90577507598784},50.12894377650651,{"$f":"'HHIncome-10YearComparison'!$E$38-'HHIncome-10YearComparison'!$L$38","v":-71},1.4163474163059255,1.645,"Household Income $150,000 to $199,999",null,"N",{"$f":"'HHIncome-10YearComparison'!$F$38/1.645","v":31.610942249240122},{"$f":"'HHIncome-10YearComparison'!$J$38/1.645","v":38.90577507598784},50.12894377650651,{"$f":"'HHIncome-10YearComparison'!$E$38-'HHIncome-10YearComparison'!$I$38","v":-71},1.4163474163059255,1.645]
["Y",{"$f":"'HHIncome-10YearComparison'!$F$39/1.645","v":69.908814589665653},{"$f":"'HHIncome-10YearComparison'!$M$39/1.645","v":10.334346504559271},70.668529594215741,{"$f":"'HHIncome-10YearComparison'!$E$39-'HHIncome-10YearComparison'!$L$39","v":238},3.367835744802032,1.645,"Household Income Greater than $200,000",null,"Y",{"$f":"'HHIncome-10YearComparison'!$F$39/1.645","v":69.908814589665653},{"$f":"'HHIncome-10YearComparison'!$J$39/1.645","v":10.334346504559271},70.668529594215741,{"$f":"'HHIncome-10YearComparison'!$E$39-'HHIncome-10YearComparison'!$I$39","v":238},3.367835744802032,1.645]
["N",{"$f":"'HHIncome-10YearComparison'!$F$41/1.645","v":0},{"$f":"'HHIncome-10YearComparison'!$M$41/1.645","v":2466.8693009118542},2466.8693009118542,{"$f":"'HHIncome-10YearComparison'!$E$41-'HHIncome-10YearComparison'!$I$41","v":3002},1.2169270576638738,1.645,"Median Household Income",null,"N",{"$f":"'HHIncome-10YearComparison'!$F$41/1.645","v":0},{"$f":"'HHIncome-10YearComparison'!$J$41/1.645","v":3578.1155015197569},3578.1155015197569,{"$f":"'HHIncome-10YearComparison'!$E$41-'HHIncome-10YearComparison'!$I$41","v":3002},0.83898912674142034,1.645]
["N",{"$f":"PovertyCharacteristics!$E$54/1.645","v":23.100303951367781},{"$f":"PovertyCharacteristics!$M54/1.645","v":35.258358662613979},42.151819631269824,{"$f":"PovertyCharacteristics!$D54-PovertyCharacteristics!$L54","v":-67},1.5894924723557331,1.645,"Total Households Below Poverty Level",null,"N",{"$f":"PovertyCharacteristics!$I$54/1.645","v":34.042553191489361},{"$f":"PovertyCharacteristics!$M54/1.645","v":35.258358662613979},49.010685399991182,{"$f":"PovertyCharacteristics!$H54-PovertyCharacteristics!$L54","v":-23},0.4692854183182702,1.645]
["N",{"$f":"PovertyCharacteristics!$E$55/1.645","v":12.1580547112462},{"$f":"PovertyCharacteristics!$M55/1.645","v":10.334346504559271},15.956723098366792,{"$f":"PovertyCharacteristics!$D55-PovertyCharacteristics!$L55","v":-1},6.2669508885715527E-2,1.645,"Family Households Below Poverty Level",null,"N",{"$f":"PovertyCharacteristics!$I$55/1.645","v":32.218844984802431},{"$f":"PovertyCharacteristics!$M55/1.645","v":10.334346504559271},33.835671854287526,{"$f":"PovertyCharacteristics!$H55-PovertyCharacteristics!$L55","v":51},1.5072849807632083,1.645]
["N",{"$f":"PovertyCharacteristics!$E$56/1.645","v":0},{"$f":"PovertyCharacteristics!$M56/1.645","v":10.334346504559271},10.334346504559271,{"$f":"PovertyCharacteristics!$D56-PovertyCharacteristics!$L56","v":-13},1.2579411764705881,1.645,"Married Couple Fam HH Below Poverty Level",null,"N",{"$f":"PovertyCharacteristics!$I$56/1.645","v":10.94224924012158},{"$f":"PovertyCharacteristics!$M56/1.645","v":10.334346504559271},15.050964623878356,{"$f":"PovertyCharacteristics!$H56-PovertyCharacteristics!$L56","v":-2},0.13288184843827219,1.645]
["N",{"$f":"PovertyCharacteristics!$E$57/1.645","v":0},{"$f":"PovertyCharacteristics!$M57/1.645","v":8.5106382978723403},8.5106382978723403,{"$f":"PovertyCharacteristics!$D57-PovertyCharacteristics!$L57","v":-6},0.70499999999999996,1.645,"M C Fam HH w/Children Below Poverty Level",null,"N",{"$f":"PovertyCharacteristics!$I$57/1.645","v":15.805471124620061},{"$f":"PovertyCharacteristics!$M57/1.645","v":8.5106382978723403},17.951152656818724,{"$f":"PovertyCharacteristics!$H57-PovertyCharacteristics!$L57","v":11},0.61277402127276004,1.645]
["N",{"$f":"PovertyCharacteristics!$E$58/1.645","v":69.300911854103347},{"$f":"PovertyCharacteristics!$M58/1.645","v":6.6869300911854106},69.6227794464901,{"$f":"PovertyCharacteristics!$D58-PovertyCharacteristics!$L58","v":0},0,1.645,"Male Head of Family HH  Below Poverty Level",null,"N",{"$f":"PovertyCharacteristics!$I$58/1.645","v":6.6869300911854106},{"$f":"PovertyCharacteristics!$M58/1.645","v":6.6869300911854106},9.4567472255951639,{"$f":"PovertyCharacteristics!$H58-PovertyCharacteristics!$L58","v":0},0,1.645]
["N",{"$f":"PovertyCharacteristics!$E$59/1.645","v":23.100303951367781},{"$f":"PovertyCharacteristics!$M59/1.645","v":6.6869300911854106},24.04868139191791,{"$f":"PovertyCharacteristics!$D59-PovertyCharacteristics!$L59","v":32},1.3306342862837506,1.645,"Male Head of HH w/Children Below Poverty Level",null,"N",{"$f":"PovertyCharacteristics!$I$59/1.645","v":6.6869300911854106},{"$f":"PovertyCharacteristics!$M59/1.645","v":6.6869300911854106},9.4567472255951639,{"$f":"PovertyCharacteristics!$H59-PovertyCharacteristics!$L59","v":0},0,1.645]
["Y",{"$f":"PovertyCharacteristics!$E$60/1.645","v":20.060790273556229},{"$f":"PovertyCharacteristics!$M60/1.645","v":33.434650455927049},38.991167685895618,{"$f":"PovertyCharacteristics!$D60-PovertyCharacteristics!$L60","v":-66},1.6926910353565625,1.645,"Female Head of Family HH  Below Poverty Level",null,"Y",{"$f":"PovertyCharacteristics!$I$60/1.645","v":12.1580547112462},{"$f":"PovertyCharacteristics!$M60/1.645","v":33.434650455927049},35.576595473311926,{"$f":"PovertyCharacteristics!$H60-PovertyCharacteristics!$L60","v":-74},2.0800191534772265,1.645]
["Y",{"$f":"PovertyCharacteristics!$E$61/1.645","v":12.1580547112462},{"$f":"PovertyCharacteristics!$M61/1.645","v":30.3951367781155},32.736564177109443,{"$f":"PovertyCharacteristics!$D61-PovertyCharacteristics!$L61","v":-59},1.8022661046773771,1.645,"Female Head of HH w/Children Below Poverty Level",null,"Y",{"$f":"PovertyCharacteristics!$I$61/1.645","v":12.1580547112462},{"$f":"PovertyCharacteristics!$M61/1.645","v":30.3951367781155},32.736564177109443,{"$f":"PovertyCharacteristics!$H61-PovertyCharacteristics!$L61","v":-59},1.8022661046773771,1.645]
["N",{"$f":"PovertyCharacteristics!$E$62/1.645","v":32.218844984802431},{"$f":"PovertyCharacteristics!$M62/1.645","v":39.513677811550153},50.984161328296061,{"$f":"PovertyCharacteristics!$D62-PovertyCharacteristics!$L62","v":-27},0.52957623106011709,1.645,"Non-Family HH  Below Poverty Level",null,"N",{"$f":"PovertyCharacteristics!$I$62/1.645","v":55.319148936170215},{"$f":"PovertyCharacteristics!$M62/1.645","v":39.513677811550153},67.981901806415905,{"$f":"PovertyCharacteristics!$H62-PovertyCharacteristics!$L62","v":8},0.11767837891297396,1.645]
["N",{"$f":"PovertyCharacteristics!$E$68/1.645","v":82.066869300911847},{"$f":"PovertyCharacteristics!$M68/1.645","v":75.379939209726444},111.43207021371811,{"$f":"PovertyCharacteristics!$D68-PovertyCharacteristics!$L68","v":109},0.97817441416054118,1.645,"Total Households At or Above Poverty Level",null,"N",{"$f":"PovertyCharacteristics!$I$68/1.645","v":79.635258358662611},{"$f":"PovertyCharacteristics!$M68/1.645","v":75.379939209726444},109.65358913010097,{"$f":"PovertyCharacteristics!$H68-PovertyCharacteristics!$L68","v":-7},6.3837399719718177E-2,1.645]
["Y",{"$f":"PovertyCharacteristics!$E$69/1.645","v":65.045592705167167},{"$f":"PovertyCharacteristics!$M69/1.645","v":55.927051671732521},85.783239849396779,{"$f":"PovertyCharacteristics!$D69-PovertyCharacteristics!$L69","v":179},2.086654692854419,1.645,"Family Households At or Above Poverty Level",null,"N",{"$f":"PovertyCharacteristics!$I$69/1.645","v":64.437689969604861},{"$f":"PovertyCharacteristics!$M69/1.645","v":55.927051671732521},85.323214879137993,{"$f":"PovertyCharacteristics!$H69-PovertyCharacteristics!$L69","v":58},0.67976810393464593,1.645]
["Y",{"$f":"PovertyCharacteristics!$E$70/1.645","v":104.55927051671732},{"$f":"PovertyCharacteristics!$M70/1.645","v":65.045592705167167},123.14044900581843,{"$f":"PovertyCharacteristics!$D70-PovertyCharacteristics!$L70","v":219},1.7784570526428094,1.645,"Married Couple Fam HH At or Above Poverty Level",null,"N",{"$f":"PovertyCharacteristics!$I$70/1.645","v":68.693009118541028},{"$f":"PovertyCharacteristics!$M70/1.645","v":65.045592705167167},94.602635439645425,{"$f":"PovertyCharacteristics!$H70-PovertyCharacteristics!$L70","v":-17},0.17969901071990385,1.645]
["N",{"$f":"PovertyCharacteristics!$E$71/1.645","v":41.337386018237083},{"$f":"PovertyCharacteristics!$M71/1.645","v":53.495440729483285},67.605781273959124,{"$f":"PovertyCharacteristics!$D71-PovertyCharacteristics!$L71","v":-52},0.76916498885324958,1.645,"M C Fam HH w/Children At or Above Poverty Level",null,"N",{"$f":"PovertyCharacteristics!$I$71/1.645","v":41.337386018237083},{"$f":"PovertyCharacteristics!$M71/1.645","v":53.495440729483285},67.605781273959124,{"$f":"PovertyCharacteristics!$H71-PovertyCharacteristics!$L71","v":-52},0.76916498885324958,1.645]
["N",{"$f":"PovertyCharacteristics!$E$72/1.645","v":24.924012158054712},{"$f":"PovertyCharacteristics!$M72/1.645","v":31.610942249240122},40.254913388798307,{"$f":"PovertyCharacteristics!$D72-PovertyCharacteristics!$L72","v":-10},0.24841688028032596,1.645,"Male Head of Family HH  At or Above Poverty Level",null,"N",{"$f":"PovertyCharacteristics!$I$72/1.645","v":34.042553191489361},{"$f":"PovertyCharacteristics!$M72/1.645","v":31.610942249240122},46.455861822596475,{"$f":"PovertyCharacteristics!$H72-PovertyCharacteristics!$L72","v":38},0.81798073502785651,1.645]
["Y",{"$f":"PovertyCharacteristics!$E$73/1.645","v":65.045592705167167},{"$f":"PovertyCharacteristics!$M73/1.645","v":29.787234042553191},71.541655294466977,{"$f":"PovertyCharacteristics!$D73-PovertyCharacteristics!$L73","v":1183},16.535820916230506,1.645,"Male Head of HH w/Children At or Above Poverty Level",null,"N",{"$f":"PovertyCharacteristics!$I$73/1.645","v":27.355623100303951},{"$f":"PovertyCharacteristics!$M73/1.645","v":29.787234042553191},40.442668397519505,{"$f":"PovertyCharacteristics!$H73-PovertyCharacteristics!$L73","v":16},0.39562176864129317,1.645]
["N",{"$f":"PovertyCharacteristics!$E$74/1.645","v":54.10334346504559},{"$f":"PovertyCharacteristics!$M74/1.645","v":35.258358662613979},64.57804293781453,{"$f":"PovertyCharacteristics!$D74-PovertyCharacteristics!$L74","v":52},0.80522725115831451,1.645,"Female Head of Family HH  At or Above Poverty Level",null,"N",{"$f":"PovertyCharacteristics!$I$74/1.645","v":39.513677811550153},{"$f":"PovertyCharacteristics!$M74/1.645","v":35.258358662613979},52.957365774522025,{"$f":"PovertyCharacteristics!$H74-PovertyCharacteristics!$L74","v":37},0.69867523542496202,1.645]
["Y",{"$f":"PovertyCharacteristics!$E$75/1.645","v":57.750759878419451},{"$f":"PovertyCharacteristics!$M75/1.645","v":17.021276595744681},60.206927537316723,{"$f":"PovertyCharacteristics!$D75-PovertyCharacteristics!$L75","v":451},7.4908323418508056,1.645,"Female Head of HH w/Children At or Above Poverty Level",null,"Y",{"$f":"PovertyCharacteristics!$I$75/1.645","v":37.08206686930091},{"$f":"PovertyCharacteristics!$M75/1.645","v":17.021276595744681},40.802004120485918,{"$f":"PovertyCharacteristics!$H75-PovertyCharacteristics!$L75","v":89},2.1812654039538901,1.645]
["Y",{"$f":"PovertyCharacteristics!$E$76/1.645","v":54.711246200607903},{"$f":"PovertyCharacteristics!$M76/1.645","v":71.732522796352583},90.215715302561208,{"$f":"PovertyCharacteristics!$D76-PovertyCharacteristics!$L76","v":-320},3.5470538467361159,1.645,"Non-Family HH  At or Above Poverty Level",null,"N",{"$f":"PovertyCharacteristics!$I$76/1.645","v":70.516717325227958},{"$f":"PovertyCharacteristics!$M76/1.645","v":71.732522796352583},100.5890761914799,{"$f":"PovertyCharacteristics!$H76-PovertyCharacteristics!$L76","v":-65},0.64619342836260807,1.645]
["N",{"$f":"PovertyCharacteristics!$E24/1.645","v":165.34954407294833},{"$f":"PovertyCharacteristics!M24/1.645","v":89.361702127659569},187.95208307514028,{"$f":"PovertyCharacteristics!H24-PovertyCharacteristics!L24","v":-26},0.13833313030963115,1.645,"Total Individuals Living in Poverty",null,{"$f":"IF(O112>P112,\"Y\",\"N\")","v":"N"},{"$f":"PovertyCharacteristics!$I24/1.645","v":114.8936170212766},{"$f":"PovertyCharacteristics!$M24/1.645","v":89.361702127659569},145.55430958712401,{"$f":"PovertyCharacteristics!$H24-PovertyCharacteristics!$L24","v":-26},0.1786274832655316,1.645]
["N",{"$f":"PovertyCharacteristics!$E25/1.645","v":25.647444510308798},{"$f":"PovertyCharacteristics!M25/1.645","v":16.536742259860723},30.516475131941966,{"$f":"PovertyCharacteristics!H25-PovertyCharacteristics!L25","v":31},1.0158447155501233,1.645,"Individuals Under 5 yrs. Living in Poverty",null,"N",{"$f":"PovertyCharacteristics!$I25/1.645","v":29.812036073530038},{"$f":"PovertyCharacteristics!$M25/1.645","v":16.536742259860723},34.091367520510524,{"$f":"PovertyCharacteristics!$H25-PovertyCharacteristics!$L25","v":31},0.90932110544844957,1.645]
["N",{"$f":"PovertyCharacteristics!$E26/1.645","v":177.83934524138351},{"$f":"PovertyCharacteristics!M26/1.645","v":42.527130534693498},182.85346468524696,{"$f":"PovertyCharacteristics!H26-PovertyCharacteristics!L26","v":-75},0.41016450045997499,1.645,"Individuals 5 to 17 yrs. Living in Poverty",null,"N",{"$f":"PovertyCharacteristics!$I26/1.645","v":25.233456024944996},{"$f":"PovertyCharacteristics!$M26/1.645","v":42.527130534693498},49.44981430175136,{"$f":"PovertyCharacteristics!$H26-PovertyCharacteristics!$L26","v":-75},1.5166892142877821,1.645]
["N",{"$f":"PovertyCharacteristics!$E27/1.645","v":126.78816786999521},{"$f":"PovertyCharacteristics!M27/1.645","v":59.041721915809262},139.86123279384404,{"$f":"PovertyCharacteristics!H27-PovertyCharacteristics!L27","v":25},0.17874860317333316,1.645,"Individuals 18 to 64 yrs. Living in Poverty",null,"N",{"$f":"PovertyCharacteristics!$I27/1.645","v":72.381281405574683},{"$f":"PovertyCharacteristics!$M27/1.645","v":59.041721915809262},93.4075737009411,{"$f":"PovertyCharacteristics!$H27-PovertyCharacteristics!$L27","v":25},0.26764424991961994,1.645]
["N",{"$f":"PovertyCharacteristics!$E28/1.645","v":16.769743737548598},{"$f":"PovertyCharacteristics!M28/1.645","v":9.4567472255951639},19.252386166702877,{"$f":"PovertyCharacteristics!H28-PovertyCharacteristics!L28","v":0},0,1.645,"Individuals 65 to 74 yrs. Living in Poverty",null,"N",{"$f":"PovertyCharacteristics!$I28/1.645","v":9.4567472255951639},{"$f":"PovertyCharacteristics!$M28/1.645","v":9.4567472255951639},13.373860182370819,{"$f":"PovertyCharacteristics!$H28-PovertyCharacteristics!$L28","v":0},0,1.645]
["N",{"$f":"PovertyCharacteristics!$E29/1.645","v":71.360635092178427},{"$f":"PovertyCharacteristics!M29/1.645","v":14.411270019610575},72.801270211014682,{"$f":"PovertyCharacteristics!H29-PovertyCharacteristics!L29","v":-7},9.6152168495281479E-2,1.645,"Individuals 75 yrs. & Over Living in Poverty",null,"N",{"$f":"PovertyCharacteristics!$I29/1.645","v":11.176155812067012},{"$f":"PovertyCharacteristics!$M29/1.645","v":14.411270019610575},18.237082066869299,{"$f":"PovertyCharacteristics!$H29-PovertyCharacteristics!$L29","v":-7},0.38383333333333336,1.645]
[null,null,null,null,null,null,null,"Under 5",null,"N",{"$f":"DisabilityByAgePrior5YearEst!$E$31/1.645","v":68.019942763279587},{"$f":"DisabilityByAge!$E$31/1.645","v":58.844231199173549},{"$f":"SQRT((K118^2)+(L118^2))","v":89.940848111086993},{"$f":"DisabilityByAge!$D$31-DisabilityByAgePrior5YearEst!$D$31","v":-70},0.77828930313779321,1.645]
[null,null,null,null,null,null,null,"5 to 17",null,"N",{"$f":"DisabilityByAgePrior5YearEst!$F$31/1.645","v":327.05167173252278},{"$f":"DisabilityByAge!$F$31/1.645","v":360.48632218844983},{"$f":"SQRT((K119^2)+(L119^2))","v":486.73728485497458},{"$f":"DisabilityByAge!$D$31-DisabilityByAgePrior5YearEst!$D$31","v":-70},0.14381474807473768,1.645]
[null,null,null,null,null,null,null,"18 to 34",null,"N",{"$f":"DisabilityByAgePrior5YearEst!$I$31/1.645","v":73.97954006845616},{"$f":"DisabilityByAge!$I$31/1.645","v":92.911723645192936},118.76683349934449,{"$f":"DisabilityByAge!$D$31-DisabilityByAgePrior5YearEst!$D$31","v":-70},0.5893901347499203,1.645]
[null,null,null,null,null,null,null,"35 to 64",null,"N",{"$f":"DisabilityByAgePrior5YearEst!$K$31/1.645","v":103.16451518831089},{"$f":"DisabilityByAge!$K$31/1.645","v":88.616290195217331},135.99913265165407,{"$f":"DisabilityByAge!$D$31-DisabilityByAgePrior5YearEst!$D$31","v":-70},0.51470916494222685,1.645]
[null,null,null,null,null,null,null,"65 to 74",null,"N",{"$f":"DisabilityByAgePrior5YearEst!$M$31/1.645","v":52.452530957107506},{"$f":"DisabilityByAge!$M$31/1.645","v":47.55649170968497},70.801750737814785,{"$f":"DisabilityByAge!$D$31-DisabilityByAgePrior5YearEst!$D$31","v":-70},0.98867611705275849,1.645]
[null,null,null,null,null,null,null,"75 and Over",null,"N",{"$f":"DisabilityByAgePrior5YearEst!$O$31/1.645","v":51.370478877381146},{"$f":"DisabilityByAge!$O$31/1.645","v":56.512071716435742},76.371070110186622,{"$f":"DisabilityByAge!$D$31-DisabilityByAgePrior5YearEst!$D$31","v":-70},0.91657744089490201,1.645]
[null,null,null,null,null,null,null,"With a Disability -Under 5",null,"Y",{"$f":"DisabilityByAgePrior5YearEst!$E$33/1.645","v":9.4567472255951639},{"$f":"DisabilityByAge!$E$33/1.645","v":9.4567472255951639},13.373860182370819,{"$f":"DisabilityByAge!$D$31-DisabilityByAgePrior5YearEst!$D$31","v":-70},5.2340909090909093,1.645]
[null,null,null,null,null,null,null,"With a Disability -5 to 17",null,"N",{"$f":"DisabilityByAgePrior5YearEst!$F$33/1.645","v":76.59574468085107},{"$f":"DisabilityByAge!$F$33/1.645","v":52.887537993920972},93.080609034710122,{"$f":"DisabilityByAge!$D$31-DisabilityByAgePrior5YearEst!$D$31","v":-70},0.75203633416168048,1.645]
[null,null,null,null,null,null,null,"With a Disability -18 to 34",null,"N",{"$f":"DisabilityByAgePrior5YearEst!$I$33/1.645","v":23.108301287231868},{"$f":"DisabilityByAge!$I$33/1.645","v":48.41898541456505},53.650645261332549,{"$f":"DisabilityByAge!$D$31-DisabilityByAgePrior5YearEst!$D$31","v":-70},1.3047373365041495,1.645]
[null,null,null,null,null,null,null,"With a Disability -35 to 64",null,"N",{"$f":"DisabilityByAgePrior5YearEst!$K$33/1.645","v":75.389743454966549},{"$f":"DisabilityByAge!$K$33/1.645","v":55.198773469431657},93.437241026987223,{"$f":"DisabilityByAge!$D$31-DisabilityByAgePrior5YearEst!$D$31","v":-70},{"$f":"ABS((N127/M127))","v":0.74916595600015723},1.645]
[null,null,null,null,null,null,null,"With a Disability -65 to 74",null,"N",{"$f":"DisabilityByAgePrior5YearEst!$M$33/1.645","v":42.226273524163538},{"$f":"DisabilityByAge!$M$33/1.645","v":27.523966985220113},50.404632072270516,{"$f":"DisabilityByAge!$D$31-DisabilityByAgePrior5YearEst!$D$31","v":-70},1.3887612531251792,1.645]
[null,null,null,null,null,null,null,"With a Disability -75 and Over",null,"N",{"$f":"DisabilityByAgePrior5YearEst!$O$33/1.645","v":40.488330225767086},{"$f":"DisabilityByAge!$O$33/1.645","v":44.376899696048632},60.07174136899917,{"$f":"DisabilityByAge!$D$31-DisabilityByAgePrior5YearEst!$D$31","v":-70},1.1652733615630533,1.645]
[null,null,null,null,null,null,null,"Hearing Disability - Under 5",null,"Y",{"$f":"DisabilityByAgePrior5YearEst!$E$38/1.645","v":9.4567472255951639},{"$f":"DisabilityByAge!$E$38/1.645","v":9.4567472255951639},13.373860182370819,{"$f":"DisabilityByAge!$D$31-DisabilityByAgePrior5YearEst!$D$31","v":-70},5.2340909090909093,1.645]
[null,null,null,null,null,null,null,"Hearing Disability - 5 to 17",null,"Y",{"$f":"DisabilityByAgePrior5YearEst!$F$38/1.645","v":15.19756838905775},{"$f":"DisabilityByAge!$F$38/1.645","v":5.4711246200607899},16.152377210439418,{"$f":"DisabilityByAge!$D$31-DisabilityByAgePrior5YearEst!$D$31","v":-70},4.3337274190673556,1.645]
[null,null,null,null,null,null,null,"Hearing Disability - 18 to 34",null,"Y",{"$f":"DisabilityByAgePrior5YearEst!$I$38/1.645","v":9.4567472255951639},{"$f":"DisabilityByAge!$I$38/1.645","v":13.346199635319239},16.35698972288597,{"$f":"DisabilityByAge!$D$31-DisabilityByAgePrior5YearEst!$D$31","v":-70},4.2795160470180598,1.645]
[null,null,null,null,null,null,null,"Hearing Disability - 35 to 64",null,"N",{"$f":"DisabilityByAgePrior5YearEst!$K$38/1.645","v":43.773218303695302},{"$f":"DisabilityByAge!$K$38/1.645","v":11.803336072308571},45.336667092970409,{"$f":"DisabilityByAge!$D$31-DisabilityByAgePrior5YearEst!$D$31","v":-70},1.5440041028259379,1.645]
[null,null,null,null,null,null,null,"Hearing Disability - 65 to 74",null,"Y",{"$f":"DisabilityByAgePrior5YearEst!$M$38/1.645","v":13.59311840425404},{"$f":"DisabilityByAge!$M$38/1.645","v":16.536742259860723},21.406464269494236,{"$f":"DisabilityByAge!$D$31-DisabilityByAgePrior5YearEst!$D$31","v":-70},3.2700402606774754,1.645]
[null,null,null,null,null,null,null,"Hearing Disability - 75 and Over",null,"Y",{"$f":"DisabilityByAgePrior5YearEst!$O$38/1.645","v":25.848378875950516},{"$f":"DisabilityByAge!$O$38/1.645","v":22.418345184906716},34.215798855854807,{"$f":"DisabilityByAge!$D$31-DisabilityByAgePrior5YearEst!$D$31","v":-70},2.0458385406957116,1.645]
[null,null,null,null,null,null,null,"Visual Disability - Under 5",null,"Y",{"$f":"DisabilityByAgePrior5YearEst!$E$39/1.645","v":9.4567472255951639},{"$f":"DisabilityByAge!$E$39/1.645","v":9.4567472255951639},13.373860182370819,{"$f":"DisabilityByAge!$D$31-DisabilityByAgePrior5YearEst!$D$31","v":-70},5.2340909090909093,1.645]
[null,null,null,null,null,null,null,"Visual Disability - 5 to 17",null,"Y",{"$f":"DisabilityByAgePrior5YearEst!$F$39/1.645","v":15.805471124620061},{"$f":"DisabilityByAge!$F$39/1.645","v":0},15.805471124620061,{"$f":"DisabilityByAge!$D$31-DisabilityByAgePrior5YearEst!$D$31","v":-70},4.4288461538461537,1.645]
[null,null,null,null,null,null,null,"Visual Disability - 18 to 34",null,"Y",{"$f":"DisabilityByAgePrior5YearEst!$I$39/1.645","v":9.4567472255951639},{"$f":"DisabilityByAge!$I$39/1.645","v":9.4567472255951639},13.373860182370819,{"$f":"DisabilityByAge!$D$31-DisabilityByAgePrior5YearEst!$D$31","v":-70},5.2340909090909093,1.645]
[null,null,null,null,null,null,null,"Visual Disability - 35 to 64",null,"Y",{"$f":"DisabilityByAgePrior5YearEst!$K$39/1.645","v":54.144310162080203},{"$f":"DisabilityByAge!$K$39/1.645","v":19.847814853877821},{"$f":"SQRT((K140^2)+(L140^2))","v":15.124444139361373},{"$f":"DisabilityByAge!$D$31-DisabilityByAgePrior5YearEst!$D$31","v":-70},{"$f":"ABS((N140/M140))","v":4.6282692676172452},1.645]
[null,null,null,null,null,null,null,"Visual Disability - 65 to 74",null,"Y",{"$f":"DisabilityByAgePrior5YearEst!$M$39/1.645","v":11.803336072308571},{"$f":"DisabilityByAge!$M$39/1.645","v":9.4567472255951639},15.124444139361373,{"$f":"DisabilityByAge!$D$31-DisabilityByAgePrior5YearEst!$D$31","v":-70},4.6282692676172452,1.645]
[null,null,null,null,null,null,null,"Visual Disability - 75 and Over",null,"Y",{"$f":"DisabilityByAgePrior5YearEst!$O$39/1.645","v":32.264691816937628},{"$f":"DisabilityByAge!$O$39/1.645","v":25.805453224062155},41.315030608015064,{"$f":"DisabilityByAge!$D$31-DisabilityByAgePrior5YearEst!$D$31","v":-70},1.6942986358678889,1.645]
[null,null,null,null,null,null,null,"Cognative Disability - 5 to 17",null,"N",{"$f":"DisabilityByAgePrior5YearEst!$F$40/1.645","v":58.966565349544069},{"$f":"DisabilityByAge!$F$40/1.645","v":76.59574468085107},96.664181227257998,{"$f":"DisabilityByAge!$D$31-DisabilityByAgePrior5YearEst!$D$31","v":-70},0.72415655014373559,1.645]
[null,null,null,null,null,null,null,"Cognative Disability - 18 to 34",null,"Y",{"$f":"DisabilityByAgePrior5YearEst!$I$40/1.645","v":18.074247717104566},{"$f":"DisabilityByAge!$I$40/1.645","v":18.558465072916409},25.905502434848042,{"$f":"DisabilityByAge!$D$31-DisabilityByAgePrior5YearEst!$D$31","v":-70},2.7021286375760893,1.645]
[null,null,null,null,null,null,null,"Cognative Disability - 35 to 64",null,{"$f":"IF(O144>P144,\"Y\",\"N\")","v":"Y"},{"$f":"DisabilityByAgePrior5YearEst!$K$40/1.645","v":58.674424374534489},{"$f":"DisabilityByAge!$K$40/1.645","v":60.427488914142423},{"$f":"SQRT((K145^2)+(L145^2))","v":41.600272610153496},{"$f":"DisabilityByAge!$D$31-DisabilityByAgePrior5YearEst!$D$31","v":-70},{"$f":"ABS((N145/M145))","v":1.6826812808653302},1.645]
[null,null,null,null,null,null,null,"Cognative Disability - 65 to 74",null,"Y",{"$f":"DisabilityByAgePrior5YearEst!$M$40/1.645","v":27.570919077078582},{"$f":"DisabilityByAge!$M$40/1.645","v":31.151678967340928},{"$f":"SQRT((K145^2)+(L145^2))","v":41.600272610153496},{"$f":"DisabilityByAge!$D$31-DisabilityByAgePrior5YearEst!$D$31","v":-70},{"$f":"ABS((N145/M145))","v":1.6826812808653302},1.645]
[null,null,null,null,null,null,null,"Cognative Disability - 75 and Over",null,"Y",{"$f":"DisabilityByAgePrior5YearEst!$O$40/1.645","v":23.925433014169517},{"$f":"DisabilityByAge!$O$40/1.645","v":18.488639909721034},{"$f":"SQRT((K146^2)+(L146^2))","v":30.236668973728605},{"$f":"DisabilityByAge!$D$31-DisabilityByAgePrior5YearEst!$D$31","v":-70},{"$f":"ABS((N146/M146))","v":2.3150698266670879},1.645]
[null,null,null,null,null,null,null,"Amblatory Disability - 5 to 17",null,"Y",{"$f":"DisabilityByAgePrior5YearEst!$F$41/1.645","v":20.668693009118542},{"$f":"DisabilityByAge!$F$41/1.645","v":0},{"$f":"SQRT((K147^2)+(L147^2))","v":20.668693009118542},{"$f":"DisabilityByAge!$D$31-DisabilityByAgePrior5YearEst!$D$31","v":-70},{"$f":"ABS((N147/M147))","v":3.3867647058823529},1.645]
[null,null,null,null,null,null,null,"Amblatory Disability - 18 to 34",null,"Y",{"$f":"DisabilityByAgePrior5YearEst!$I$41/1.645","v":10.025788755301303},{"$f":"DisabilityByAge!$I$41/1.645","v":30.528582442528194},{"$f":"SQRT((K148^2)+(L148^2))","v":32.132705863592733},{"$f":"DisabilityByAge!$D$31-DisabilityByAgePrior5YearEst!$D$31","v":-70},{"$f":"ABS((N148/M148))","v":2.1784657755608432},1.645]
[null,null,null,null,null,null,null,"Amblatory Disability - 35 to 64",null,"Y",{"$f":"DisabilityByAgePrior5YearEst!$K$41/1.645","v":45.365187129010657},{"$f":"DisabilityByAge!$K$41/1.645","v":38.686693195616584},{"$f":"SQRT((K150^2)+(L150^2))","v":35.659597267021191},{"$f":"DisabilityByAge!$D$31-DisabilityByAgePrior5YearEst!$D$31","v":-70},{"$f":"ABS((N150/M150))","v":1.9630059048574169},1.645]
[null,null,null,null,null,null,null,"Amblatory Disability - 65 to 74",null,"Y",{"$f":"DisabilityByAgePrior5YearEst!$M$41/1.645","v":25.034966908175079},{"$f":"DisabilityByAge!$M$41/1.645","v":25.394040819702642},{"$f":"SQRT((K150^2)+(L150^2))","v":35.659597267021191},{"$f":"DisabilityByAge!$D$31-DisabilityByAgePrior5YearEst!$D$31","v":-70},{"$f":"ABS((N150/M150))","v":1.9630059048574169},1.645]
[null,null,null,null,null,null,null,"Amblatory Disability - 75 and Over",null,"N",{"$f":"DisabilityByAgePrior5YearEst!$O$41/1.645","v":31.376262372191952},{"$f":"DisabilityByAge!$O$41/1.645","v":29.69404192539772},{"$f":"SQRT((K151^2)+(L151^2))","v":43.199606089823391},{"$f":"DisabilityByAge!$D$31-DisabilityByAgePrior5YearEst!$D$31","v":-70},{"$f":"ABS((N151/M151))","v":1.620385145513862},1.645]
[null,null,null,null,null,null,null,"Self Care Disability - 5 to 17",null,"Y",{"$f":"DisabilityByAgePrior5YearEst!$F$42/1.645","v":15.805471124620061},{"$f":"DisabilityByAge!$F$42/1.645","v":22.492401215805472},{"$f":"SQRT((K152^2)+(L152^2))","v":27.490380679866295},{"$f":"DisabilityByAge!$D$31-DisabilityByAgePrior5YearEst!$D$31","v":-70},{"$f":"ABS((N152/M152))","v":2.5463452403650186},1.645]
[null,null,null,null,null,null,null,"Self Care Disability - 18 to 34",null,"Y",{"$f":"DisabilityByAgePrior5YearEst!$I$42/1.645","v":9.4567472255951639},{"$f":"DisabilityByAge!$I$42/1.645","v":9.4567472255951639},{"$f":"SQRT((K153^2)+(L153^2))","v":13.373860182370819},{"$f":"DisabilityByAge!$D$31-DisabilityByAgePrior5YearEst!$D$31","v":-70},{"$f":"ABS((N153/M153))","v":5.2340909090909093},1.645]
[null,null,null,null,null,null,null,"Self Care Disability - 35 to 64",null,"Y",{"$f":"DisabilityByAgePrior5YearEst!$K$42/1.645","v":24.633190990097035},{"$f":"DisabilityByAge!$K$42/1.645","v":16.049092744612871},{"$f":"SQRT((K155^2)+(L155^2))","v":15.898719550908233},{"$f":"DisabilityByAge!$D$31-DisabilityByAgePrior5YearEst!$D$31","v":-70},{"$f":"ABS((N155/M155))","v":4.4028702925325307},1.645]
[null,null,null,null,null,null,null,"Self Care Disability - 65 to 74",null,"Y",{"$f":"DisabilityByAgePrior5YearEst!$M$42/1.645","v":12.06652476673508},{"$f":"DisabilityByAge!$M$42/1.645","v":10.352210556794166},{"$f":"SQRT((K155^2)+(L155^2))","v":15.898719550908233},{"$f":"DisabilityByAge!$D$31-DisabilityByAgePrior5YearEst!$D$31","v":-70},{"$f":"ABS((N155/M155))","v":4.4028702925325307},1.645]
[null,null,null,null,null,null,null,"Self Care Disability - 75 and Over",null,"Y",{"$f":"DisabilityByAgePrior5YearEst!$O$42/1.645","v":19.791879144194173},{"$f":"DisabilityByAge!$O$42/1.645","v":28.049293605007481},{"$f":"SQRT((K156^2)+(L156^2))","v":34.329016178712457},{"$f":"DisabilityByAge!$D$31-DisabilityByAgePrior5YearEst!$D$31","v":-70},{"$f":"ABS((N156/M156))","v":2.0390913516306139},1.645]
[null,null,null,null,null,null,null,"Independant Living Disability - 18 to 34",null,"Y",{"$f":"DisabilityByAgePrior5YearEst!$I$43/1.645","v":20.668693009118542},{"$f":"DisabilityByAge!$I$43/1.645","v":34.841896366947353},{"$f":"SQRT((K157^2)+(L157^2))","v":40.511141839625857},{"$f":"DisabilityByAge!$D$31-DisabilityByAgePrior5YearEst!$D$31","v":-70},{"$f":"ABS((N157/M157))","v":1.7279196986624974},1.645]
[null,null,null,null,null,null,null,"Independant Living Disability - 35 to 64",null,"Y",{"$f":"DisabilityByAgePrior5YearEst!$K$43/1.645","v":60.790273556231},{"$f":"DisabilityByAge!$K$43/1.645","v":28.337658409256328},{"$f":"SQRT((K159^2)+(L159^2))","v":26.280810116981502},{"$f":"DisabilityByAge!$D$31-DisabilityByAgePrior5YearEst!$D$31","v":-70},{"$f":"ABS((N159/M159))","v":2.663540419355988},1.645]
[null,null,null,null,null,null,null,"Independant Living Disability - 65 to 74",null,"Y",{"$f":"DisabilityByAgePrior5YearEst!$M$43/1.645","v":18.074247717104566},{"$f":"DisabilityByAge!$M$43/1.645","v":19.078850852857403},{"$f":"SQRT((K159^2)+(L159^2))","v":26.280810116981502},{"$f":"DisabilityByAge!$D$31-DisabilityByAgePrior5YearEst!$D$31","v":-70},{"$f":"ABS((N159/M159))","v":2.663540419355988},1.645]
[null,null,null,null,null,null,null,"Independant Living Disability - 75 and Over",null,"N",{"$f":"DisabilityByAgePrior5YearEst!$O$43/1.645","v":28.828950033749241},{"$f":"DisabilityByAge!$O$43/1.645","v":33.456748707153835},{"$f":"SQRT((K160^2)+(L160^2))","v":44.164039603528686},{"$f":"DisabilityByAge!$D$31-DisabilityByAgePrior5YearEst!$D$31","v":-70},1.5849999372432189,1.645]
[null,null,null,null,null,null,null,"No Disability - Under 5",null,"N",{"$f":"DisabilityByAgePrior5YearEst!$E$47/1.645","v":68.019942763279587},{"$f":"DisabilityByAge!$E$47/1.645","v":58.844231199173549},{"$f":"SQRT((K161^2)+(L161^2))","v":89.940848111086993},{"$f":"DisabilityByAge!$D$47-DisabilityByAgePrior5YearEst!$D$47","v":-70},0.77828930313779321,1.645]
[null,null,null,null,null,null,null,"No Disability - 5 to 17",null,"N",{"$f":"DisabilityByAgePrior5YearEst!$F$47/1.645","v":250.45592705167172},{"$f":"DisabilityByAge!$F$47/1.645","v":307.59878419452889},{"$f":"SQRT((K162^2)+(L162^2))","v":396.6675981640858},{"$f":"DisabilityByAge!$D$47-DisabilityByAgePrior5YearEst!$D$47","v":-70},0.17647017382812233,1.645]
[null,null,null,null,null,null,null,"No Disability - 18 to 34",null,"N",{"$f":"DisabilityByAgePrior5YearEst!$I$47/1.645","v":74.838727764194005},{"$f":"DisabilityByAge!$I$47/1.645","v":85.852138602413802},113.8921633650499,{"$f":"DisabilityByAge!$D$47-DisabilityByAgePrior5YearEst!$D$47","v":-70},0.6146164751971066,1.645]
[null,null,null,null,null,null,null,"No Disability - 35 to 64",null,"N",{"$f":"DisabilityByAgePrior5YearEst!$K$47/1.645","v":104.60344016515747},{"$f":"DisabilityByAge!$K$47/1.645","v":94.602635439645425},141.03736500130785,{"$f":"DisabilityByAge!$D$47-DisabilityByAgePrior5YearEst!$D$47","v":-70},0.49632237527516831,1.645]
[null,null,null,null,null,null,null,"No Disability - 65 to 74",null,{"$f":"IF(O165>P165,\"Y\",\"N\")","v":"N"},{"$f":"DisabilityByAgePrior5YearEst!$M$47/1.645","v":35.069191737035759},{"$f":"DisabilityByAge!$M$47/1.645","v":46.216602574463735},58.015709619161818,{"$f":"DisabilityByAge!$D$47-DisabilityByAgePrior5YearEst!$D$47","v":-70},1.2065697456690236,1.645]
[null,null,null,null,null,null,null,"No Disability - 75 and Over",null,"N",{"$f":"DisabilityByAgePrior5YearEst!$O$47/1.645","v":34.655787996934286},{"$f":"DisabilityByAge!$O$47/1.645","v":35.66477846534378},49.729267686851209,{"$f":"DisabilityByAge!$D$47-DisabilityByAgePrior5YearEst!$D$47","v":-70},{"$f":"ABS((N166/M166))","v":1.4076217739781542},1.645]
[{"$f":"IF(F167>G167,\"Y\",\"N\")","v":"N"},null,null,null,null,null,null,"Renter Total:",null,"N",{"$f":"'RentalHousingCost-Prior5Yr'!$F$52/1.645","v":77.81155015197568},{"$f":"RentalHousingCost!$F$52/1.645","v":68.085106382978722},103.39351550380205,{"$f":"'RentalHousingCost-Prior5Yr'!$E$52-RentalHousingCost!$E$52","v":59},{"$f":"ABS((N167/M167))","v":0.57063539925606277},1.645]
["N",null,null,null,null,null,null,"Renter Less than 20.0 percent",null,"Y",{"$f":"'RentalHousingCost-Prior5Yr'!$F$53/1.645","v":12.1580547112462},{"$f":"RentalHousingCost!$F$53/1.645","v":42.700569796561567},44.397713401848549,{"$f":"'RentalHousingCost-Prior5Yr'!$E$53-RentalHousingCost!$E$53","v":-94},2.1172261541759085,1.645]
["N",null,null,null,null,null,null,"Renter 20.0 to 24.9 percent",null,"N",{"$f":"'RentalHousingCost-Prior5Yr'!$F$54/1.645","v":23.70820668693009},{"$f":"RentalHousingCost!$F$54/1.645","v":23.70820668693009},33.528467436201034,{"$f":"'RentalHousingCost-Prior5Yr'!$E$54-RentalHousingCost!$E$54","v":-22},0.65615883105490147,1.645]
["N",null,null,null,null,null,null,"Renter 25.0 to 29.9 percent",null,"N",{"$f":"'RentalHousingCost-Prior5Yr'!$F$55/1.645","v":41.337386018237083},{"$f":"RentalHousingCost!$F$55/1.645","v":20.060790273556229},45.947957399870901,{"$f":"'RentalHousingCost-Prior5Yr'!$E$55-RentalHousingCost!$E$55","v":59},1.2840614325146424,1.645]
["N",null,null,null,null,null,null,"Renter 30.0 to 34.9 percent",null,"Y",{"$f":"'RentalHousingCost-Prior5Yr'!$F$56/1.645","v":20.060790273556229},{"$f":"RentalHousingCost!$F$56/1.645","v":52.800123405734865},56.482637492068648,{"$f":"'RentalHousingCost-Prior5Yr'!$E$56-RentalHousingCost!$E$56","v":-173},3.0628881313181036,1.645]
["N",null,null,null,null,null,null,"Renter 35.0 to 39.9 percent",null,"Y",{"$f":"'RentalHousingCost-Prior5Yr'!$F$57/1.645","v":16.413373860182372},{"$f":"RentalHousingCost!$F$57/1.645","v":60.595432434660722},62.779019372857768,{"$f":"'RentalHousingCost-Prior5Yr'!$E$57-RentalHousingCost!$E$57","v":-205},3.2654221433829984,1.645]
["N",null,null,null,null,null,null,"Renter 40.0 to 49.9 percent",null,"N",{"$f":"'RentalHousingCost-Prior5Yr'!$F$58/1.645","v":27.355623100303951},{"$f":"RentalHousingCost!$F$58/1.645","v":18.237082066869302},32.877367253471029,{"$f":"'RentalHousingCost-Prior5Yr'!$E$58-RentalHousingCost!$E$58","v":23},0.69956939747271807,1.645]
["N",null,null,null,null,null,null,"Renter 50.0 percent or more",null,"Y",{"$f":"'RentalHousingCost-Prior5Yr'!$F$59/1.645","v":52.27963525835866},{"$f":"RentalHousingCost!$F$59/1.645","v":55.860936207465734},76.508852146150872,{"$f":"'RentalHousingCost-Prior5Yr'!$E$59-RentalHousingCost!$E$59","v":-153},1.9997685981189741,1.645]
["N",null,null,null,null,null,null,"Renter Not computed",null,"Y",{"$f":"'RentalHousingCost-Prior5Yr'!$F$60/1.645","v":23.70820668693009},{"$f":"RentalHousingCost!$F$60/1.645","v":57.78594352980496},{"$f":"SQRT((K175^2)+(L175^2))","v":62.460342089521127},{"$f":"'RentalHousingCost-Prior5Yr'!$E$60-RentalHousingCost!$E$60","v":-172},2.7537473258388729,1.645]
["N",null,null,null,null,null,null,"Renter Less than $10,000:",null,"N",{"$f":"'RentalHousingCost-Prior5Yr'!$I$52/1.645","v":45.59270516717325},{"$f":"RentalHousingCost!$I$52/1.645","v":12.1580547112462},{"$f":"SQRT((K176^2)+(L176^2))","v":47.185941326018302},{"$f":"'RentalHousingCost-Prior5Yr'!$H$52-RentalHousingCost!$H$52","v":35},0.74174635530055688,1.645]
["N",null,null,null,null,null,null,"Renter Less than 20.0 percent",null,"N",{"$f":"'RentalHousingCost-Prior5Yr'!$I$53/1.645","v":6.6869300911854106},{"$f":"RentalHousingCost!$I$53/1.645","v":6.6869300911854106},9.4567472255951639,{"$f":"'RentalHousingCost-Prior5Yr'!$H$53-RentalHousingCost!$H$53","v":0},0,1.645]
["N",null,null,null,null,null,null,"Renter 20.0 to 24.9 percent",null,"N",{"$f":"'RentalHousingCost-Prior5Yr'!$I$54/1.645","v":6.6869300911854106},{"$f":"RentalHousingCost!$I$54/1.645","v":6.6869300911854106},9.4567472255951639,{"$f":"'RentalHousingCost-Prior5Yr'!$H$54-RentalHousingCost!$H$54","v":0},0,1.645]
["N",null,null,null,null,null,null,"Renter 25.0 to 29.9 percent",null,"N",{"$f":"'RentalHousingCost-Prior5Yr'!$I$55/1.645","v":6.6869300911854106},{"$f":"RentalHousingCost!$I$55/1.645","v":6.6869300911854106},9.4567472255951639,{"$f":"'RentalHousingCost-Prior5Yr'!$H$55-RentalHousingCost!$H$55","v":0},0,1.645]
["N",null,null,null,null,null,null,"Renter 30.0 to 34.9 percent",null,"N",{"$f":"'RentalHousingCost-Prior5Yr'!$I$56/1.645","v":11.582102664594316},{"$f":"RentalHousingCost!$I$56/1.645","v":11.582102664594316},16.379566669066843,{"$f":"'RentalHousingCost-Prior5Yr'!$H$56-RentalHousingCost!$H$56","v":0},0,1.645]
["N",null,null,null,null,null,null,"Renter 35.0 to 39.9 percent",null,"N",{"$f":"'RentalHousingCost-Prior5Yr'!$I$57/1.645","v":13.373860182370821},{"$f":"RentalHousingCost!$I$57/1.645","v":16.79176573487311},21.466800708826231,{"$f":"'RentalHousingCost-Prior5Yr'!$H$57-RentalHousingCost!$H$57","v":-16},0.74533696087379631,1.645]
["N",null,null,null,null,null,null,"Renter 40.0 to 49.9 percent",null,"N",{"$f":"'RentalHousingCost-Prior5Yr'!$I$58/1.645","v":6.6869300911854106},{"$f":"RentalHousingCost!$I$58/1.645","v":6.6869300911854106},9.4567472255951639,{"$f":"'RentalHousingCost-Prior5Yr'!$H$58-RentalHousingCost!$H$58","v":0},0,1.645]
["N",null,null,null,null,null,null,"Renter 50.0 percent or more",null,"N",{"$f":"'RentalHousingCost-Prior5Yr'!$I$59/1.645","v":13.373860182370821},{"$f":"RentalHousingCost!$I$59/1.645","v":13.373860182370821},18.913494451190328,{"$f":"'RentalHousingCost-Prior5Yr'!$H$59-RentalHousingCost!$H$59","v":0},0,1.645]
["N",null,null,null,null,null,null,"Renter Not computed",null,"N",{"$f":"'RentalHousingCost-Prior5Yr'!$I$60/1.645","v":11.582102664594316},{"$f":"RentalHousingCost!$I$60/1.645","v":15.402868643550063},{"$f":"SQRT((K184^2)+(L184^2))","v":19.2715714092977},{"$f":"'RentalHousingCost-Prior5Yr'!$H$60-RentalHousingCost!$H$60","v":-16},0.8302384720054895,1.645]
["N",null,null,null,null,null,null,"Renter $10,000 to $19,999:",null,"N",{"$f":"'RentalHousingCost-Prior5Yr'!$K$52/1.645","v":40.729483282674771},{"$f":"RentalHousingCost!$K$52/1.645","v":40.729483282674771},{"$f":"SQRT((K185^2)+(L185^2))","v":57.600187646806909},{"$f":"'RentalHousingCost-Prior5Yr'!$J$52-RentalHousingCost!$J$52","v":-83},1.4409675279000786,1.645]
["N",null,null,null,null,null,null,"Renter Less than 20.0 percent",null,"N",{"$f":"'RentalHousingCost-Prior5Yr'!$K$53/1.645","v":6.6869300911854106},{"$f":"RentalHousingCost!$K$53/1.645","v":29.787234042553191},30.52858244252819,{"$f":"'RentalHousingCost-Prior5Yr'!$J$53-RentalHousingCost!$J$53","v":-30},0.98268565389423901,1.645]
["N",null,null,null,null,null,null,"Renter 20.0 to 24.9 percent",null,"N",{"$f":"'RentalHousingCost-Prior5Yr'!$K$54/1.645","v":6.6869300911854106},{"$f":"RentalHousingCost!$K$54/1.645","v":14.589665653495441},16.049092744612871,{"$f":"'RentalHousingCost-Prior5Yr'!$J$54-RentalHousingCost!$J$54","v":-20},1.2461763613842478,1.645]
["N",null,null,null,null,null,null,"Renter 25.0 to 29.9 percent",null,"N",{"$f":"'RentalHousingCost-Prior5Yr'!$K$55/1.645","v":12.1580547112462},{"$f":"RentalHousingCost!$K$55/1.645","v":10.334346504559271},15.956723098366792,{"$f":"'RentalHousingCost-Prior5Yr'!$J$55-RentalHousingCost!$J$55","v":7},0.43868656220000873,1.645]
["N",null,null,null,null,null,null,"Renter 30.0 to 34.9 percent",null,"N",{"$f":"'RentalHousingCost-Prior5Yr'!$K$56/1.645","v":15.402868643550063},{"$f":"RentalHousingCost!$K$56/1.645","v":34.740989816971549},38.002430657964219,{"$f":"'RentalHousingCost-Prior5Yr'!$J$56-RentalHousingCost!$J$56","v":-43},1.1315065709089962,1.645]
["N",null,null,null,null,null,null,"Renter 35.0 to 39.9 percent",null,"N",{"$f":"'RentalHousingCost-Prior5Yr'!$K$57/1.645","v":38.848742391903848},{"$f":"RentalHousingCost!$K$57/1.645","v":39.429416822325898},55.352540107760397,{"$f":"'RentalHousingCost-Prior5Yr'!$J$57-RentalHousingCost!$J$57","v":-40},0.72264073016573305,1.645]
["N",null,null,null,null,null,null,"Renter 40.0 to 49.9 percent",null,"N",{"$f":"'RentalHousingCost-Prior5Yr'!$K$58/1.645","v":6.6869300911854106},{"$f":"RentalHousingCost!$K$58/1.645","v":6.6869300911854106},9.4567472255951639,{"$f":"'RentalHousingCost-Prior5Yr'!$J$58-RentalHousingCost!$J$58","v":0},0,1.645]
["N",null,null,null,null,null,null,"Renter 50.0 percent or more",null,"N",{"$f":"'RentalHousingCost-Prior5Yr'!$K$59/1.645","v":16.79176573487311},{"$f":"RentalHousingCost!$K$59/1.645","v":35.378685779821183},39.161394306155394,{"$f":"'RentalHousingCost-Prior5Yr'!$J$59-RentalHousingCost!$J$59","v":-43},1.0980201487167491,1.645]
["N",null,null,null,null,null,null,"Renter Not computed",null,"N",{"$f":"'RentalHousingCost-Prior5Yr'!$K$60/1.645","v":38.268913642643504},{"$f":"RentalHousingCost!$K$60/1.645","v":38.858253652272069},{"$f":"SQRT((K193^2)+(L193^2))","v":54.538735118193031},{"$f":"'RentalHousingCost-Prior5Yr'!$J$60-RentalHousingCost!$J$60","v":-40},0.7334236834300325,1.645]
["N",null,null,null,null,null,null,"Renter $20,000 to $34,999:",null,"Y",{"$f":"'RentalHousingCost-Prior5Yr'!$M$52/1.645","v":61.398176291793312},{"$f":"RentalHousingCost!$M$52/1.645","v":18.844984802431611},{"$f":"SQRT((K194^2)+(L194^2))","v":64.225146976569917},{"$f":"'RentalHousingCost-Prior5Yr'!$L$52-RentalHousingCost!$L$52","v":156},2.4289551265162634,1.645]
["N",null,null,null,null,null,null,"Renter Less than 20.0 percent",null,"N",{"$f":"'RentalHousingCost-Prior5Yr'!$M$53/1.645","v":32.826747720364743},{"$f":"RentalHousingCost!$M$53/1.645","v":6.6869300911854106},33.500901479525481,{"$f":"'RentalHousingCost-Prior5Yr'!$L$53-RentalHousingCost!$L$53","v":53},1.5820469796131202,1.645]
["N",null,null,null,null,null,null,"Renter 20.0 to 24.9 percent",null,"N",{"$f":"'RentalHousingCost-Prior5Yr'!$M$54/1.645","v":14.589665653495441},{"$f":"RentalHousingCost!$M$54/1.645","v":6.6869300911854106},16.049092744612871,{"$f":"'RentalHousingCost-Prior5Yr'!$L$54-RentalHousingCost!$L$54","v":14},0.87232345296897351,1.645]
["N",null,null,null,null,null,null,"Renter 25.0 to 29.9 percent",null,"N",{"$f":"'RentalHousingCost-Prior5Yr'!$M$55/1.645","v":6.6869300911854106},{"$f":"RentalHousingCost!$M$55/1.645","v":9.7264437689969601},11.803336072308571,{"$f":"'RentalHousingCost-Prior5Yr'!$L$55-RentalHousingCost!$L$55","v":-11},0.93193991364922224,1.645]
["N",null,null,null,null,null,null,"Renter 30.0 to 34.9 percent",null,"N",{"$f":"'RentalHousingCost-Prior5Yr'!$M$56/1.645","v":36.53996091707895},{"$f":"RentalHousingCost!$M$56/1.645","v":13.565904926699938},38.976948576074022,{"$f":"'RentalHousingCost-Prior5Yr'!$L$56-RentalHousingCost!$L$56","v":56},1.4367466424597324,1.645]
["N",null,null,null,null,null,null,"Renter 35.0 to 39.9 percent",null,"Y",{"$f":"'RentalHousingCost-Prior5Yr'!$M$57/1.645","v":55.375901947801736},{"$f":"RentalHousingCost!$M$57/1.645","v":17.343881602051191},58.028447726598046,{"$f":"'RentalHousingCost-Prior5Yr'!$L$57-RentalHousingCost!$L$57","v":100},1.7232926938034185,1.645]
["N",null,null,null,null,null,null,"Renter 40.0 to 49.9 percent",null,"N",{"$f":"'RentalHousingCost-Prior5Yr'!$M$58/1.645","v":15.19756838905775},{"$f":"RentalHousingCost!$M$58/1.645","v":6.6869300911854106},16.603647761395333,{"$f":"'RentalHousingCost-Prior5Yr'!$L$58-RentalHousingCost!$L$58","v":18},1.0840991244015237,1.645]
["N",null,null,null,null,null,null,"Renter 50.0 percent or more",null,"Y",{"$f":"'RentalHousingCost-Prior5Yr'!$M$59/1.645","v":39.574421395160599},{"$f":"RentalHousingCost!$M$59/1.645","v":15.124444139361373},42.366067073619277,{"$f":"'RentalHousingCost-Prior5Yr'!$L$59-RentalHousingCost!$L$59","v":74},1.7466808960909828,1.645]
["N",null,null,null,null,null,null,"Renter Not computed",null,"N",{"$f":"'RentalHousingCost-Prior5Yr'!$M$60/1.645","v":53.24964254896426},{"$f":"RentalHousingCost!$M$60/1.645","v":16.002974566672563},55.602334722330085,{"$f":"'RentalHousingCost-Prior5Yr'!$L$60-RentalHousingCost!$L$60","v":82},1.4747582167097117,1.645]
["N",null,null,null,null,null,null,"Renter $35,000 to $49,999:",null,"N",{"$f":"'RentalHousingCost-Prior5Yr'!$O$52/1.645","v":21.276595744680851},{"$f":"RentalHousingCost!$O$52/1.645","v":34.042553191489361},40.144600561942994,{"$f":"'RentalHousingCost-Prior5Yr'!$N$52-RentalHousingCost!$N$52","v":-48},1.1956776086471741,1.645]
["N",null,null,null,null,null,null,"Renter Less than 20.0 percent",null,"N",{"$f":"'RentalHousingCost-Prior5Yr'!$O$53/1.645","v":4.86322188449848},{"$f":"RentalHousingCost!$O$53/1.645","v":6.6869300911854106},8.2683711299303617,{"$f":"'RentalHousingCost-Prior5Yr'!$N$53-RentalHousingCost!$N$53","v":5},0.60471402667215679,1.645]
["N",null,null,null,null,null,null,"Renter 20.0 to 24.9 percent",null,"N",{"$f":"'RentalHousingCost-Prior5Yr'!$O$54/1.645","v":6.6869300911854106},{"$f":"RentalHousingCost!$O$54/1.645","v":13.98176291793313},15.498539554993267,{"$f":"'RentalHousingCost-Prior5Yr'!$N$54-RentalHousingCost!$N$54","v":-15},0.96783312690693823,1.645]
["N",null,null,null,null,null,null,"Renter 25.0 to 29.9 percent",null,"N",{"$f":"'RentalHousingCost-Prior5Yr'!$O$55/1.645","v":6.0790273556230998},{"$f":"RentalHousingCost!$O$55/1.645","v":10.94224924012158},12.517483454087538,{"$f":"'RentalHousingCost-Prior5Yr'!$N$55-RentalHousingCost!$N$55","v":-9},0.71899435960996483,1.645]
["N",null,null,null,null,null,null,"Renter 30.0 to 34.9 percent",null,"N",{"$f":"'RentalHousingCost-Prior5Yr'!$O$56/1.645","v":10.262579341114975},{"$f":"RentalHousingCost!$O$56/1.645","v":18.972020102525512},21.569841944328477,{"$f":"'RentalHousingCost-Prior5Yr'!$N$56-RentalHousingCost!$N$56","v":-19},0.88085949118397755,1.645]
["N",null,null,null,null,null,null,"Renter 35.0 to 39.9 percent",null,{"$f":"IF(O208>P208,\"Y\",\"N\")","v":"N"},{"$f":"'RentalHousingCost-Prior5Yr'!$O$57/1.645","v":23.692614309914987},{"$f":"RentalHousingCost!$O$57/1.645","v":31.959731132145688},39.783971481960307,{"$f":"'RentalHousingCost-Prior5Yr'!$N$57-RentalHousingCost!$N$57","v":-19},0.47757926854073335,1.645]
["N",null,null,null,null,null,null,"Renter 40.0 to 49.9 percent",null,"N",{"$f":"'RentalHousingCost-Prior5Yr'!$O$58/1.645","v":20.668693009118542},{"$f":"RentalHousingCost!$O$58/1.645","v":6.6869300911854106},21.723487398426307,{"$f":"'RentalHousingCost-Prior5Yr'!$N$58-RentalHousingCost!$N$58","v":22},1.0127287390142397,1.645]
["N",null,null,null,null,null,null,"Renter 50.0 percent or more",null,"N",{"$f":"'RentalHousingCost-Prior5Yr'!$O$59/1.645","v":30.931272350233513},{"$f":"RentalHousingCost!$O$59/1.645","v":25.658950193710925},40.188621950095005,{"$f":"'RentalHousingCost-Prior5Yr'!$N$59-RentalHousingCost!$N$59","v":3},7.4647993746222691E-2,1.645]
["N",null,null,null,null,null,null,"Renter Not computed",null,"N",{"$f":"'RentalHousingCost-Prior5Yr'!$O$60/1.645","v":11.582102664594316},{"$f":"RentalHousingCost!$O$60/1.645","v":31.252349991554901},33.329483676286443,{"$f":"'RentalHousingCost-Prior5Yr'!$N$60-RentalHousingCost!$N$60","v":-41},1.2301420687525095,1.645]
["N",null,null,null,null,null,null,"Renter $50,000 to $74,999:",null,"N",{"$f":"'RentalHousingCost-Prior5Yr'!$Q$52/1.645","v":35.258358662613979},{"$f":"RentalHousingCost!$Q$52/1.645","v":37.08206686930091},51.168657778769514,{"$f":"'RentalHousingCost-Prior5Yr'!$P$52-RentalHousingCost!$P$52","v":-23},0.44949390893624286,1.645]
["N",null,null,null,null,null,null,"Renter Less than 20.0 percent",null,"N",{"$f":"'RentalHousingCost-Prior5Yr'!$Q$53/1.645","v":26.13981762917933},{"$f":"RentalHousingCost!$Q$53/1.645","v":19.45288753799392},32.583813454729231,{"$f":"'RentalHousingCost-Prior5Yr'!$P$53-RentalHousingCost!$P$53","v":-3},9.2070254581100255E-2,1.645]
["N",null,null,null,null,null,null,"Renter 20.0 to 24.9 percent",null,"N",{"$f":"'RentalHousingCost-Prior5Yr'!$Q$54/1.645","v":6.6869300911854106},{"$f":"RentalHousingCost!$Q$54/1.645","v":9.1185410334346511},11.307644521421444,{"$f":"'RentalHousingCost-Prior5Yr'!$P$54-RentalHousingCost!$P$54","v":-10},0.88435747878842363,1.645]
["N",null,null,null,null,null,null,"Renter 25.0 to 29.9 percent",null,"N",{"$f":"'RentalHousingCost-Prior5Yr'!$Q$55/1.645","v":6.0790273556230998},{"$f":"RentalHousingCost!$Q$55/1.645","v":6.6869300911854106},9.0371238585522828,{"$f":"'RentalHousingCost-Prior5Yr'!$P$55-RentalHousingCost!$P$55","v":6},0.66392804767436042,1.645]
["N",null,null,null,null,null,null,"Renter 30.0 to 34.9 percent",null,"N",{"$f":"'RentalHousingCost-Prior5Yr'!$Q$56/1.645","v":27.657904355203222},{"$f":"RentalHousingCost!$Q$56/1.645","v":22.500614618020361},35.654415315781591,{"$f":"'RentalHousingCost-Prior5Yr'!$P$56-RentalHousingCost!$P$56","v":-7},0.19632912047506257,1.645]
["N",null,null,null,null,null,null,"Renter 35.0 to 39.9 percent",null,"N",{"$f":"'RentalHousingCost-Prior5Yr'!$Q$57/1.645","v":26.933590172493275},{"$f":"RentalHousingCost!$Q$57/1.645","v":33.246222282979495},42.787025786669361,{"$f":"'RentalHousingCost-Prior5Yr'!$P$57-RentalHousingCost!$P$57","v":-16},0.37394513186716821,1.645]
["N",null,null,null,null,null,null,"Renter 40.0 to 49.9 percent",null,"N",{"$f":"'RentalHousingCost-Prior5Yr'!$Q$58/1.645","v":6.6869300911854106},{"$f":"RentalHousingCost!$Q$58/1.645","v":18.237082066869302},19.424371195951924,{"$f":"'RentalHousingCost-Prior5Yr'!$P$58-RentalHousingCost!$P$58","v":-17},0.87518920579230042,1.645]
["N",null,null,null,null,null,null,"Renter 50.0 percent or more",null,"N",{"$f":"'RentalHousingCost-Prior5Yr'!$Q$59/1.645","v":28.454783558585898},{"$f":"RentalHousingCost!$Q$59/1.645","v":28.963232217803274},40.602260132514395,{"$f":"'RentalHousingCost-Prior5Yr'!$P$59-RentalHousingCost!$P$59","v":-24},0.59110009939522401,1.645]
["N",null,null,null,null,null,null,"Renter Not computed",null,"N",{"$f":"'RentalHousingCost-Prior5Yr'!$Q$60/1.645","v":26.090290253951288},{"$f":"RentalHousingCost!$Q$60/1.645","v":27.797844049054532},38.123790201276968,{"$f":"'RentalHousingCost-Prior5Yr'!$P$60-RentalHousingCost!$P$60","v":1},2.6230340549049203E-2,1.645]
["N",null,null,null,null,null,null,"Renter $75,000 to $99,999:",null,"N",{"$f":"'RentalHousingCost-Prior5Yr'!$S$52/1.645","v":18.237082066869302},{"$f":"RentalHousingCost!$S$52/1.645","v":13.98176291793313},22.980009934876353,{"$f":"'RentalHousingCost-Prior5Yr'!$R$52-RentalHousingCost!$R$52","v":19},0.82680556073929445,1.645]
["N",null,null,null,null,null,null,"Renter Less than 20.0 percent",null,"N",{"$f":"'RentalHousingCost-Prior5Yr'!$S$53/1.645","v":7.9027355623100304},{"$f":"RentalHousingCost!$S$53/1.645","v":6.6869300911854106},10.352210556794166,{"$f":"'RentalHousingCost-Prior5Yr'!$R$53-RentalHousingCost!$R$53","v":11},1.0625749872118559,1.645]
["N",null,null,null,null,null,null,"Renter 20.0 to 24.9 percent",null,"N",{"$f":"'RentalHousingCost-Prior5Yr'!$S$54/1.645","v":12.76595744680851},{"$f":"RentalHousingCost!$S$54/1.645","v":5.4711246200607899},13.88894791342962,{"$f":"'RentalHousingCost-Prior5Yr'!$R$54-RentalHousingCost!$R$54","v":14},1.0079957162531368,1.645]
["N",null,null,null,null,null,null,"Renter 25.0 to 29.9 percent",null,"N",{"$f":"'RentalHousingCost-Prior5Yr'!$S$55/1.645","v":8.5106382978723403},{"$f":"RentalHousingCost!$S$55/1.645","v":7.9027355623100304},11.613965455649119,{"$f":"'RentalHousingCost-Prior5Yr'!$R$55-RentalHousingCost!$R$55","v":5},0.43051617633045075,1.645]
["N",null,null,null,null,null,null,"Renter 30.0 to 34.9 percent",null,"N",{"$f":"'RentalHousingCost-Prior5Yr'!$S$56/1.645","v":17.258443242040595},{"$f":"RentalHousingCost!$S$56/1.645","v":11.709033607451808},20.855582733627287,{"$f":"'RentalHousingCost-Prior5Yr'!$R$56-RentalHousingCost!$R$56","v":30},1.4384637621095269,1.645]
["N",null,null,null,null,null,null,"Renter 35.0 to 39.9 percent",null,"N",{"$f":"'RentalHousingCost-Prior5Yr'!$S$57/1.645","v":13.373860182370821},{"$f":"RentalHousingCost!$S$57/1.645","v":13.373860182370821},18.913494451190328,{"$f":"'RentalHousingCost-Prior5Yr'!$R$57-RentalHousingCost!$R$57","v":0},0,1.645]
["N",null,null,null,null,null,null,"Renter 40.0 to 49.9 percent",null,"N",{"$f":"'RentalHousingCost-Prior5Yr'!$S$58/1.645","v":6.6869300911854106},{"$f":"RentalHousingCost!$S$58/1.645","v":6.6869300911854106},9.4567472255951639,{"$f":"'RentalHousingCost-Prior5Yr'!$R$58-RentalHousingCost!$R$58","v":0},0,1.645]
["N",null,null,null,null,null,null,"Renter 50.0 percent or more",null,"N",{"$f":"'RentalHousingCost-Prior5Yr'!$S$59/1.645","v":18.508616836034442},{"$f":"RentalHousingCost!$S$59/1.645","v":13.4839349621999},22.899462859376733,{"$f":"'RentalHousingCost-Prior5Yr'!$R$59-RentalHousingCost!$R$59","v":30},1.3100743971256854,1.645]
["N",null,null,null,null,null,null,"Renter Not computed",null,"N",{"$f":"'RentalHousingCost-Prior5Yr'!$S$60/1.645","v":11.582102664594316},{"$f":"RentalHousingCost!$S$60/1.645","v":11.582102664594316},16.379566669066843,{"$f":"'RentalHousingCost-Prior5Yr'!$R$60-RentalHousingCost!$R$60","v":0},0,1.645]
["N",null,null,null,null,null,null,"Renter $100,000 or more:",null,"N",{"$f":"'RentalHousingCost-Prior5Yr'!$U$52/1.645","v":26.747720364741642},{"$f":"RentalHousingCost!$U$52/1.645","v":24.316109422492399},36.148495434209131,{"$f":"'RentalHousingCost-Prior5Yr'!$T$52-RentalHousingCost!$T$52","v":3},8.2991005959295053E-2,1.645]
[{"$f":"IF(F231>G231,\"Y\",\"N\")","v":"N"},null,null,null,null,null,null,"Renter Less than 20.0 percent",null,"N",{"$f":"'RentalHousingCost-Prior5Yr'!$U$53/1.645","v":26.747720364741642},{"$f":"RentalHousingCost!$U$53/1.645","v":24.316109422492399},36.148495434209131,{"$f":"'RentalHousingCost-Prior5Yr'!$T$53-RentalHousingCost!$T$53","v":3},{"$f":"ABS((N231/M231))","v":8.2991005959295053E-2},1.645]
["N",null,null,null,null,null,null,"Renter 20.0 to 24.9 percent",null,"N",{"$f":"'RentalHousingCost-Prior5Yr'!$U$54/1.645","v":6.6869300911854106},{"$f":"RentalHousingCost!$U$54/1.645","v":6.6869300911854106},9.4567472255951639,{"$f":"'RentalHousingCost-Prior5Yr'!$T$54-RentalHousingCost!$T$54","v":0},0,1.645]
["N",null,null,null,null,null,null,"Renter 25.0 to 29.9 percent",null,"N",{"$f":"'RentalHousingCost-Prior5Yr'!$U$55/1.645","v":6.6869300911854106},{"$f":"RentalHousingCost!$U$55/1.645","v":6.6869300911854106},9.4567472255951639,{"$f":"'RentalHousingCost-Prior5Yr'!$T$55-RentalHousingCost!$T$55","v":0},0,1.645]
["N",null,null,null,null,null,null,"Renter 30.0 to 34.9 percent",null,"N",{"$f":"'RentalHousingCost-Prior5Yr'!$U$56/1.645","v":28.370241676785493},{"$f":"RentalHousingCost!$U$56/1.645","v":26.090290253951288},38.543142818595399,{"$f":"'RentalHousingCost-Prior5Yr'!$T$56-RentalHousingCost!$T$56","v":3},7.7834856750514644E-2,1.645]
["N",null,null,null,null,null,null,"Renter 35.0 to 39.9 percent",null,"N",{"$f":"'RentalHousingCost-Prior5Yr'!$U$57/1.645","v":13.373860182370821},{"$f":"RentalHousingCost!$U$57/1.645","v":13.373860182370821},18.913494451190328,{"$f":"'RentalHousingCost-Prior5Yr'!$T$57-RentalHousingCost!$T$57","v":0},0,1.645]
["N",null,null,null,null,null,null,"Renter 40.0 to 49.9 percent",null,"N",{"$f":"'RentalHousingCost-Prior5Yr'!$U$58/1.645","v":6.6869300911854106},{"$f":"RentalHousingCost!$U$58/1.645","v":6.6869300911854106},9.4567472255951639,{"$f":"'RentalHousingCost-Prior5Yr'!$T$58-RentalHousingCost!$T$58","v":0},0,1.645]
["N",null,null,null,null,null,null,"Renter 50.0 percent or more",null,"N",{"$f":"'RentalHousingCost-Prior5Yr'!$U$59/1.645","v":29.147652509998426},{"$f":"RentalHousingCost!$U$59/1.645","v":26.933590172493275},39.686319134223623,{"$f":"'RentalHousingCost-Prior5Yr'!$T$59-RentalHousingCost!$T$59","v":3},7.559280037671573E-2,1.645]
["N",null,null,null,null,null,null,"Renter Not computed",null,"N",{"$f":"'RentalHousingCost-Prior5Yr'!$U$60/1.645","v":11.582102664594316},{"$f":"RentalHousingCost!$U$60/1.645","v":11.582102664594316},16.379566669066843,{"$f":"'RentalHousingCost-Prior5Yr'!$T$60-RentalHousingCost!$T$60","v":0},0,1.645]
[null,null,null,null,null,null,null,"Total Owner Housing",null,{"$error":"#VALUE!"},{"$f":"OwnerHousingCostPrior5Year!$F$50/1.645","v":{"$error":"#VALUE!"}},{"$f":"OwnerHousingCost!$F$50/1.645","v":99.088145896656528},{"$error":"#VALUE!"},{"$f":"OwnerHousingCostPrior5Year!$E$50-OwnerHousingCost!$E$50","v":{"$error":"#VALUE!"}},{"$error":"#VALUE!"},1.645]
[null,null,null,null,null,null,null,"Monthly Costs Less than 20% of HH Income",null,"Y",{"$f":"OwnerHousingCostPrior5Year!$F$51/1.645","v":70.516717325227958},{"$f":"OwnerHousingCost!$F$51/1.645","v":54.545510537203974},89.150547626418629,{"$f":"OwnerHousingCostPrior5Year!$E$51-OwnerHousingCost!$E$51","v":920},10.319622531711401,1.645]
[null,null,null,null,null,null,null,"Monthly Costs 20% to 29.9% of HH Income",null,"Y",{"$f":"OwnerHousingCostPrior5Year!$F$52/1.645","v":29.487982579051437},{"$f":"OwnerHousingCost!$F$52/1.645","v":74.618667924773845},80.233949918037283,{"$f":"OwnerHousingCostPrior5Year!$E$52-OwnerHousingCost!$E$52","v":-326},4.063117923684727,1.645]
[null,null,null,null,null,null,null,"Monthly Costs Less Than 30% of HH Income",null,"Y",{"$f":"OwnerHousingCostPrior5Year!$F$53/1.645","v":36.158716979849366},{"$f":"OwnerHousingCost!$F$53/1.645","v":92.429207086461076},99.250245018643426,{"$f":"OwnerHousingCostPrior5Year!$E$53-OwnerHousingCost!$E$53","v":-621},6.2569115056930062,1.645]
[null,null,null,null,null,null,null,"Monthly Costs 30% or More of HH Income",null,"Y",{"$f":"OwnerHousingCostPrior5Year!$F$54/1.645","v":42.335526678371188},{"$f":"OwnerHousingCost!$F$54/1.645","v":70.506235464549448},82.240051425795983,{"$f":"OwnerHousingCostPrior5Year!$E$54-OwnerHousingCost!$E$54","v":-185},2.2495122120263122,1.645]
[null,null,null,null,null,null,null,"Monthly Costs 35% or More of HH Income",null,"Y",{"$f":"OwnerHousingCostPrior5Year!$F$56/1.645","v":43.811192089306388},{"$f":"OwnerHousingCost!$F$56/1.645","v":64.698103145194239},78.13619585616064,{"$f":"OwnerHousingCostPrior5Year!$E$56-OwnerHousingCost!$E$56","v":-207},2.649220348288547,1.645]
[null,null,null,null,null,null,null,"Monthly Costs 50% or More of HH Income",null,"Y",{"$f":"OwnerHousingCostPrior5Year!$F$57/1.645","v":24.946242588064671},{"$f":"OwnerHousingCost!$F$57/1.645","v":51.610906448124311},57.323648555021435,{"$f":"OwnerHousingCostPrior5Year!$E$57-OwnerHousingCost!$E$57","v":-146},2.5469418587315427,1.645]
[null,null,null,null,null,null,null,"Percent not computed",null,"Y",{"$f":"OwnerHousingCostPrior5Year!$F$58/1.645","v":31.820674354534713},{"$f":"OwnerHousingCost!$F$58/1.645","v":9.4567472255951639},33.196165207236589,{"$f":"OwnerHousingCostPrior5Year!$E$58-OwnerHousingCost!$E$58","v":69},2.0785533379909302,1.645]
[null,null,null,null,null,null,null,"Owner Less than $20,000:",null,"N",{"$f":"OwnerHousingCostPrior5Year!$I$50/1.645","v":38.297872340425535},{"$f":"OwnerHousingCost!$I$50/1.645","v":26.747720364741642},46.71367648252432,{"$f":"OwnerHousingCostPrior5Year!$H$50-OwnerHousingCost!$H$50","v":53},1.1345713716159207,1.645]
[null,null,null,null,null,null,null,"Owner Less than 20.0 percent",null,"N",{"$f":"OwnerHousingCostPrior5Year!$I$51/1.645","v":6.6869300911854106},{"$f":"OwnerHousingCost!$I$51/1.645","v":10.94224924012158},12.823722255154399,{"$f":"OwnerHousingCostPrior5Year!$H$51-OwnerHousingCost!$H$51","v":-12},0.93576574423831504,1.645]
[null,null,null,null,null,null,null,"Owner 20.0 to 24.9 percent",null,"N",{"$f":"OwnerHousingCostPrior5Year!$I$52/1.645","v":6.6869300911854106},{"$f":"OwnerHousingCost!$I$52/1.645","v":6.6869300911854106},9.4567472255951639,{"$f":"OwnerHousingCostPrior5Year!$H$52-OwnerHousingCost!$H$52","v":0},0,1.645]
[null,null,null,null,null,null,null,"Owner 25.0 to 29.9 percent",null,"N",{"$f":"OwnerHousingCostPrior5Year!$I$53/1.645","v":9.4567472255951639},{"$f":"OwnerHousingCost!$I$53/1.645","v":12.823722255154399},15.93354701772785,{"$f":"OwnerHousingCostPrior5Year!$H$53-OwnerHousingCost!$H$53","v":-12},0.75312797499820094,1.645]
[null,null,null,null,null,null,null,"Owner 30.0 or more",null,"N",{"$f":"OwnerHousingCostPrior5Year!$I$54/1.645","v":38.297872340425535},{"$f":"OwnerHousingCost!$I$54/1.645","v":21.88449848024316},44.109616859992066,{"$f":"OwnerHousingCostPrior5Year!$H$54-OwnerHousingCost!$H$54","v":65},1.4736015551056794,1.645]
[null,null,null,null,null,null,null,"Owner $20,000 to $34,999:",null,"N",{"$f":"OwnerHousingCostPrior5Year!$J$50/1.645","v":86.322188449848028},{"$f":"OwnerHousingCost!$J$50/1.645","v":134.95440729483283},160.20053766161556,{"$f":"OwnerHousingCostPrior5Year!$K$50-OwnerHousingCost!$K$50","v":-24},0.14981223128410548,1.645]
[null,null,null,null,null,null,null,"Owner Less than 20.0 percent",null,"N",{"$f":"OwnerHousingCostPrior5Year!$J$51/1.645","v":18.844984802431611},{"$f":"OwnerHousingCost!$J$51/1.645","v":47.416413373860181},51.024011106974577,{"$f":"OwnerHousingCostPrior5Year!$K$51-OwnerHousingCost!$K$51","v":-29},0.56835986373552527,1.645]
[null,null,null,null,null,null,null,"Owner 20.0 to 24.9 percent",null,"N",{"$f":"OwnerHousingCostPrior5Year!$J$52/1.645","v":21.276595744680851},{"$f":"OwnerHousingCost!$J$52/1.645","v":15.19756838905775},26.146885310159959,{"$f":"OwnerHousingCostPrior5Year!$K$52-OwnerHousingCost!$K$52","v":1},3.8245473146716544E-2,1.645]
[null,null,null,null,null,null,null,"Owner 25.0 to 29.9 percent",null,"N",{"$f":"OwnerHousingCostPrior5Year!$J$53/1.645","v":40.121580547112458},{"$f":"OwnerHousingCost!$J$53/1.645","v":62.61398176291793},74.365663701774707,{"$f":"OwnerHousingCostPrior5Year!$K$53-OwnerHousingCost!$K$53","v":-23.311518460094966},0.313471531076225,1.645]
[null,null,null,null,null,null,null,"Owner 30.0 or more",null,"N",{"$f":"OwnerHousingCostPrior5Year!$J$54/1.645","v":46.200607902735563},{"$f":"OwnerHousingCost!$J$54/1.645","v":72.340425531914889},85.8349190989357,{"$f":"OwnerHousingCostPrior5Year!$K$54-OwnerHousingCost!$K$54","v":-18},0.20970486357950316,1.645]
[null,null,null,null,null,null,null,"Owner $35,000 to $49,999:",null,"N",{"$f":"OwnerHousingCostPrior5Year!$M$50/1.645","v":49.848024316109424},{"$f":"OwnerHousingCost!$M$50/1.645","v":40.121580547112458},63.988801784514365,{"$f":"OwnerHousingCostPrior5Year!$L$50-OwnerHousingCost!$L$50","v":74},1.1564523469153067,1.645]
[null,null,null,null,null,null,null,"Owner Less than 20.0 percent",null,"Y",{"$f":"OwnerHousingCostPrior5Year!$M$51/1.645","v":27.355623100303951},{"$f":"OwnerHousingCost!$M$51/1.645","v":9.7264437689969601},{"$f":"SQRT((K258^2)+(L258^2))","v":29.033322641360616},{"$f":"OwnerHousingCostPrior5Year!$L$51-OwnerHousingCost!$L$51","v":58},1.9977045244340621,1.645]
[null,null,null,null,null,null,null,"Owner 20.0 to 24.9 percent",null,"N",{"$f":"OwnerHousingCostPrior5Year!$M$52/1.645","v":18.844984802431611},{"$f":"OwnerHousingCost!$M$52/1.645","v":16.413373860182372},24.990644122911206,{"$f":"OwnerHousingCostPrior5Year!$L$52-OwnerHousingCost!$L$52","v":11},0.44016472508266785,1.645]
[null,null,null,null,null,null,null,"Owner 25.0 to 29.9 percent",null,"Y",{"$f":"OwnerHousingCostPrior5Year!$M$53/1.645","v":33.21842210897082},{"$f":"OwnerHousingCost!$M$53/1.645","v":19.078850852857403},38.307520374925588,{"$f":"OwnerHousingCostPrior5Year!$L$53-OwnerHousingCost!$L$53","v":69},1.8012129034894244,1.645]
[null,null,null,null,null,null,null,"Owner 30.0 or more",null,"N",{"$f":"OwnerHousingCostPrior5Year!$M$54/1.645","v":37.08206686930091},{"$f":"OwnerHousingCost!$M$54/1.645","v":34.042553191489361},50.338604580328671,{"$f":"OwnerHousingCostPrior5Year!$L$54-OwnerHousingCost!$L$54","v":5},9.9327346113084372E-2,1.645]
[null,null,null,null,null,null,null,"Owner $50,000 to $74,999:",null,"N",{"$f":"OwnerHousingCostPrior5Year!$O$50/1.645","v":50.455927051671729},{"$f":"OwnerHousingCost!$O$50/1.645","v":58.358662613981764},77.146186404359426,{"$f":"OwnerHousingCostPrior5Year!$N$50-OwnerHousingCost!$N$50","v":-45},0.58330815944852865,1.645]
[null,null,null,null,null,null,null,"Owner Less than 20.0 percent",null,"Y",{"$f":"OwnerHousingCostPrior5Year!$O$51/1.645","v":21.276595744680851},{"$f":"OwnerHousingCost!$O$51/1.645","v":37.689969604863222},43.280796380127811,{"$f":"OwnerHousingCostPrior5Year!$N$51-OwnerHousingCost!$N$51","v":-78},1.8021849532282026,1.645]
[null,null,null,null,null,null,null,"Owner 20.0 to 24.9 percent",null,"N",{"$f":"OwnerHousingCostPrior5Year!$O$52/1.645","v":32.218844984802431},{"$f":"OwnerHousingCost!$O$52/1.645","v":19.45288753799392},37.636004114684752,{"$f":"OwnerHousingCostPrior5Year!$N$52-OwnerHousingCost!$N$52","v":58},1.5410775230883147,1.645]
[null,null,null,null,null,null,null,"Owner 25.0 to 29.9 percent",null,"N",{"$f":"OwnerHousingCostPrior5Year!$O$53/1.645","v":38.610199412037488},{"$f":"OwnerHousingCost!$O$53/1.645","v":42.414014693039292},57.355872768345641,{"$f":"OwnerHousingCostPrior5Year!$N$53-OwnerHousingCost!$N$53","v":-20},0.3487001249336385,1.645]
[null,null,null,null,null,null,null,"Owner 30.0 or more",null,"N",{"$f":"OwnerHousingCostPrior5Year!$O$54/1.645","v":32.826747720364743},{"$f":"OwnerHousingCost!$O$54/1.645","v":38.90577507598784},50.904368183485282,{"$f":"OwnerHousingCostPrior5Year!$N$54-OwnerHousingCost!$N$54","v":-25},0.4911169884259689,1.645]
[null,null,null,null,null,null,null,"Owner $75,000 or more",null,"N",{"$f":"OwnerHousingCostPrior5Year!$Q$50/1.645","v":57.750759878419451},{"$f":"OwnerHousingCost!$Q$50/1.645","v":63.221884498480243},85.628014960490802,{"$f":"OwnerHousingCostPrior5Year!$P$50-OwnerHousingCost!$P$50","v":-51},0.59559946617391113,1.645]
[null,null,null,null,null,null,null,"Owner Less than 20.0 percent",null,"N",{"$f":"OwnerHousingCostPrior5Year!$Q$51/1.645","v":40.121580547112458},{"$f":"OwnerHousingCost!$Q$51/1.645","v":53.495440729483285},66.869300911854097,{"$f":"OwnerHousingCostPrior5Year!$P$51-OwnerHousingCost!$P$51","v":-55},0.82250000000000012,1.645]
[null,null,null,null,null,null,null,"Owner 20.0 to 24.9 percent",null,"N",{"$f":"OwnerHousingCostPrior5Year!$Q$52/1.645","v":31.610942249240122},{"$f":"OwnerHousingCost!$Q$52/1.645","v":32.826747720364743},45.572437237668844,{"$f":"OwnerHousingCostPrior5Year!$P$52-OwnerHousingCost!$P$52","v":28},0.61440646358180773,1.645]
[null,null,null,null,null,null,null,"Owner 25.0 to 29.9 percent",null,"N",{"$f":"OwnerHousingCostPrior5Year!$Q$53/1.645","v":51.078301611185424},{"$f":"OwnerHousingCost!$Q$53/1.645","v":62.764301515575958},80.921878625136713,{"$f":"OwnerHousingCostPrior5Year!$P$53-OwnerHousingCost!$P$53","v":-27},0.3336551308339622,1.645]
[null,null,null,null,null,null,null,"Owner 30.0 or more",null,"N",{"$f":"OwnerHousingCostPrior5Year!$Q$54/1.645","v":36.474164133738604},{"$f":"OwnerHousingCost!$Q$54/1.645","v":33.434650455927049},49.47969786048543,{"$f":"OwnerHousingCostPrior5Year!$P$54-OwnerHousingCost!$P$54","v":-24},0.48504742425208786,1.645]

{"sheet":"ACS_Source_Table_List","index":18,"n_rows":45,"n_cols":4,"rows_kept":45,"cut":false,"hidden":true,"merged":[]}
[]
["ACS Table B01001","x"]
["ACS Table B01002","x"]
["ACS Table B03002","x"]
["ACS Table B05002 ","x"]
["ACS Table B07003","x","Replaces C07001"]
["ACS Table B11001","x"]
["ACS Table B11002","x"]
["ACS Table B14001 & B15002","x","Replaces C15002"]
["ACS Table B17001 ","x"]
["ACS Table B17010 ","x","Replaces C17010","Poverty Status by family type"]
["ACS Table B17017","x","Replaces C17017","Poverty Status by HH type"]
["ACS Table B18001 ",null,"Removed Disability Tables"]
["ACS Table C18001 ",null,"Removed Disability Tables"]
["ACS Table B18003",null,"Removed Disability Tables"]
["ACS Table B18004",null,"Removed Disability Tables"]
["ACS Table B18005",null,"Removed Disability Tables"]
["ACS Table B18006",null,"Removed Disability Tables"]
["ACS Table B18007",null,"Removed Disability Tables"]
["ACS Table B18008",null,"Removed Disability Tables"]
["ACS Table B19001","x"]
["ACS Table B19037 ","x"]
["ACS Table B19049 ","x"]
["ACS Table B19101& B19113 ","s"]
["ACS Table B19201 & B19202","s"]
["ACS Table B25001, B25003 & B25004 ","x"]
["ACS Table B25008","x"]
["ACS Table B25010","x"]
["ACS Table B25024","x"]
["ACS Table B25075 & B25077","x"]
["ACS Table B25088","x"]
["ACS Table B25091","x"]
["ACS Table B25118 & B25119","x"]
[]
[]
[]
[]
[]
[]
["Tables Removed from 5 Year Estimates"]
["ACS Table C19001 ","x","May have to consolidate this table from Table B19001. This has already been done. For 5 year estimates remove worksheet."]
["ACS Table B25094","x","No Comparison Table for B25094 Removed"]
["ACS Table B25101",null,"No Comparison Table for B25101 Removed"]
["ACS Table B25104 & B25105",null,"No Comparison Table for B25104 & B25105 Removed"]
["ACS Table B25106","x","No Comparison Table for  B25106 Removed"]

{"sheet":"ACS_Table_B01001","index":19,"n_rows":265,"n_cols":56,"rows_kept":265,"cut":false,"hidden":true,"merged":[[65103,16,65103,17],[65103,18,65103,19],[65103,20,65103,21],[65103,22,65103,23],[65083,16,65083,17],[65083,18,65083,19],[65083,20,65083,21],[65083,22,65083,23],[65021,16,65021,17],[65021,18,65021,19],[65021,20,65021,21],[65021,22,65021,23],[65001,16,65001,17],[65001,18,65001,19],[65001,20,65001,21],[65001,22,65001,23],[64939,16,64939,17],[64939,18,64939,19],[64939,20,64939,21],[64939,22,64939,23],[64919,16,64919,17],[64919,18,64919,19],[64919,20,64919,21],[64919,22,64919,23],[64857,16,64857,17],[64857,18,64857,19],[64857,20,64857,21],[64857,22,64857,23],[64837,16,64837,17],[64837,18,64837,19],[64837,20,64837,21],[64837,22,64837,23],[64775,16,64775,17],[64775,18,64775,19],[64775,20,64775,21],[64775,22,64775,23],[64755,16,64755,17],[64755,18,64755,19],[64755,20,64755,21],[64755,22,64755,23],[64693,16,64693,17],[64693,18,64693,19],[64693,20,64693,21],[64693,22,64693,23],[64673,16,64673,17],[64673,18,64673,19],[64673,20,64673,21],[64673,22,64673,23],[64611,16,64611,17],[64611,18,64611,19],[64611,20,64611,21],[64611,22,64611,23],[64591,16,64591,17],[64591,18,64591,19],[64591,20,64591,21],[64591,22,64591,23],[64529,16,64529,17],[64529,18,64529,19],[64529,20,64529,21],[64529,22,64529,23],[64509,16,64509,17],[64509,18,64509,19],[64509,20,64509,21],[64509,22,64509,23],[64447,16,64447,17],[64447,18,64447,19],[64447,20,64447,21],[64447,22,64447,23],[64427,16,64427,17],[64427,18,64427,19],[64427,20,64427,21],[64427,22,64427,23],[64365,16,64365,17],[64365,18,64365,19],[64365,20,64365,21],[64365,22,64365,23],[64345,16,64345,17],[64345,18,64345,19],[64345,20,64345,21],[64345,22,64345,23],[64283,16,64283,17],[64283,18,64283,19],[64283,20,64283,21],[64283,22,64283,23],[64263,16,64263,17],[64263,18,64263,19],[64263,20,64263,21],[64263,22,64263,23],[64201,16,64201,17],[64201,18,64201,19],[64201,20,64201,21],[64201,22,64201,23],[64181,16,64181,17],[64181,18,64181,19],[64181,20,64181,21],[64181,22,64181,23],[64119,16,64119,17],[64119,18,64119,19],[64119,20,64119,21],[64119,22,64119,23],[64099,16,64099,17],[64099,18,64099,19],[64099,20,64099,21],[64099,22,64099,23],[64037,16,64037,17],[64037,18,64037,19],[64037,20,64037,21],[64037,22,64037,23],[64017,16,64017,17],[64017,18,64017,19],[64017,20,64017,21],[64017,22,64017,23],[63955,16,63955,17],[63955,18,63955,19],[63955,20,63955,21],[63955,22,63955,23],[63935,16,63935,17],[63935,18,63935,19],[63935,20,63935,21],[63935,22,63935,23],[63873,16,63873,17],[63873,18,63873,19],[63873,20,63873,21],[63873,22,63873,23],[63853,16,63853,17],[63853,18,63853,19],[63853,20,63853,21],[63853,22,63853,23],[63791,16,63791,17],[63791,18,63791,19],[63791,20,63791,21],[63791,22,63791,23],[63771,16,63771,17],[63771,18,63771,19],[63771,20,63771,21],[63771,22,63771,23],[63709,16,63709,17],[63709,18,63709,19],[63709,20,63709,21],[63709,22,63709,23],[63689,16,63689,17],[63689,18,63689,19],[63689,20,63689,21],[63689,22,63689,23],[63627,16,63627,17],[63627,18,63627,19],[63627,20,63627,21],[63627,22,63627,23],[63607,16,63607,17],[63607,18,63607,19],[63607,20,63607,21],[63607,22,63607,23],[63545,16,63545,17],[63545,18,63545,19],[63545,20,63545,21],[63545,22,63545,23],[63525,16,63525,17],[63525,18,63525,19],[63525,20,63525,21],[63525,22,63525,23],[63463,16,63463,17],[63463,18,63463,19],[63463,20,63463,21],[63463,22,63463,23],[63443,16,63443,17],[63443,18,63443,19],[63443,20,63443,21],[63443,22,63443,23],[63381,16,63381,17],[63381,18,63381,19],[63381,20,63381,21],[63381,22,63381,23],[63361,16,63361,17],[63361,18,63361,19],[63361,20,63361,21],[63361,22,63361,23],[63299,16,63299,17],[63299,18,63299,19],[63299,20,63299,21],[63299,22,63299,23],[63279,16,63279,17],[63279,18,63279,19],[63279,20,63279,21],[63279,22,63279,23],[63217,16,63217,17],[63217,18,63217,19],[63217,20,63217,21],[63217,22,63217,23],[63197,16,63197,17],[63197,18,63197,19],[63197,20,63197,21],[63197,22,63197,23],[63135,16,63135,17],[63135,18,63135,19],[63135,20,63135,21],[63135,22,63135,23],[63115,16,63115,17],[63115,18,63115,19],[63115,20,63115,21],[63115,22,63115,23],[63053,16,63053,17],[63053,18,63053,19],[63053,20,63053,21],[63053,22,63053,23],[63033,16,63033,17],[63033,18,63033,19],[63033,20,63033,21],[63033,22,63033,23],[62971,16,62971,17],[62971,18,62971,19],[62971,20,62971,21],[62971,22,62971,23],[62951,16,62951,17],[62951,18,62951,19],[62951,20,62951,21],[62951,22,62951,23],[62889,16,62889,17],[62889,18,62889,19],[62889,20,62889,21],[62889,22,62889,23],[62869,16,62869,17],[62869,18,62869,19],[62869,20,62869,21],[62869,22,62869,23],[62807,16,62807,17],[62807,18,62807,19],[62807,20,62807,21],[62807,22,62807,23],[62787,16,62787,17],[62787,18,62787,19],[62787,20,62787,21],[62787,22,62787,23],[62725,16,62725,17],[62725,18,62725,19],[62725,20,62725,21],[62725,22,62725,23],[62705,16,62705,17],[62705,18,62705,19],[62705,20,62705,21],[62705,22,62705,23],[62643,16,62643,17],[62643,18,62643,19],[62643,20,62643,21],[62643,22,62643,23],[62623,16,62623,17],[62623,18,62623,19],[62623,20,62623,21],[62623,22,62623,23],[62561,16,62561,17],[62561,18,62561,19],[62561,20,62561,21],[62561,22,62561,23],[62541,16,62541,17],[62541,18,62541,19],[62541,20,62541,21],[62541,22,62541,23],[62479,16,62479,17],[62479,18,62479,19],[62479,20,62479,21],[62479,22,62479,23],[62459,16,62459,17],[62459,18,62459,19],[62459,20,62459,21],[62459,22,62459,23],[62397,16,62397,17],[62397,18,62397,19],[62397,20,62397,21],[62397,22,62397,23],[62377,16,62377,17],[62377,18,62377,19],[62377,20,62377,21],[62377,22,62377,23],[62315,16,62315,17],[62315,18,62315,19],[62315,20,62315,21],[62315,22,62315,23],[62295,16,62295,17],[62295,18,62295,19],[62295,20,62295,21],[62295,22,62295,23],[62233,16,62233,17],[62233,18,62233,19],[62233,20,62233,21],[62233,22,62233,23],[62213,16,62213,17],[62213,18,62213,19],[62213,20,62213,21],[62213,22,62213,23],[62151,16,62151,17],[62151,18,62151,19],[62151,20,62151,21],[62151,22,62151,23],[62131,16,62131,17],[62131,18,62131,19],[62131,20,62131,21],[62131,22,62131,23],[62069,16,62069,17],[62069,18,62069,19],[62069,20,62069,21],[62069,22,62069,23],[62049,16,62049,17],[62049,18,62049,19],[62049,20,62049,21],[62049,22,62049,23],[61987,16,61987,17],[61987,18,61987,19],[61987,20,61987,21],[61987,22,61987,23],[61967,16,61967,17],[61967,18,61967,19],[61967,20,61967,21],[61967,22,61967,23],[61905,16,61905,17],[61905,18,61905,19],[61905,20,61905,21],[61905,22,61905,23],[61885,16,61885,17],[61885,18,61885,19],[61885,20,61885,21],[61885,22,61885,23],[61823,16,61823,17],[61823,18,61823,19],[61823,20,61823,21],[61823,22,61823,23],[61803,16,61803,17],[61803,18,61803,19],[61803,20,61803,21],[61803,22,61803,23],[61741,16,61741,17],[61741,18,61741,19],[61741,20,61741,21],[61741,22,61741,23],[61721,16,61721,17],[61721,18,61721,19],[61721,20,61721,21],[61721,22,61721,23],[61659,16,61659,17],[61659,18,61659,19],[61659,20,61659,21],[61659,22,61659,23],[61639,16,61639,17],[61639,18,61639,19],[61639,20,61639,21],[61639,22,61639,23],[61577,16,61577,17],[61577,18,61577,19],[61577,20,61577,21],[61577,22,61577,23],[61557,16,61557,17],[61557,18,61557,19],[61557,20,61557,21],[61557,22,61557,23],[61495,16,61495,17],[61495,18,61495,19],[61495,20,61495,21],[61495,22,61495,23],[61475,16,61475,17],[61475,18,61475,19],[61475,20,61475,21],[61475,22,61475,23],[61413,16,61413,17],[61413,18,61413,19],[61413,20,61413,21],[61413,22,61413,23],[61393,16,61393,17],[61393,18,61393,19],[61393,20,61393,21],[61393,22,61393,23],[61331,16,61331,17],[61331,18,61331,19],[61331,20,61331,21],[61331,22,61331,23],[61311,16,61311,17],[61311,18,61311,19],[61311,20,61311,21],[61311,22,61311,23],[61249,16,61249,17],[61249,18,61249,19],[61249,20,61249,21],[61249,22,61249,23],[61229,16,61229,17],[61229,18,61229,19],[61229,20,61229,21],[61229,22,61229,23],[61167,16,61167,17],[61167,18,61167,19],[61167,20,61167,21],[61167,22,61167,23],[61147,16,61147,17],[61147,18,61147,19],[61147,20,61147,21],[61147,22,61147,23],[61085,16,61085,17],[61085,18,61085,19],[61085,20,61085,21],[61085,22,61085,23],[61065,16,61065,17],[61065,18,61065,19],[61065,20,61065,21],[61065,22,61065,23],[61003,16,61003,17],[61003,18,61003,19],[61003,20,61003,21],[61003,22,61003,23],[60983,16,60983,17],[60983,18,60983,19],[60983,20,60983,21],[60983,22,60983,23],[60921,16,60921,17],[60921,18,60921,19],[60921,20,60921,21],[60921,22,60921,23],[60901,16,60901,17],[60901,18,60901,19],[60901,20,60901,21],[60901,22,60901,23],[60839,16,60839,17],[60839,18,60839,19],[60839,20,60839,21],[60839,22,60839,23],[60819,16,60819,17],[60819,18,60819,19],[60819,20,60819,21],[60819,22,60819,23],[60757,16,60757,17],[60757,18,60757,19],[60757,20,60757,21],[60757,22,60757,23],[60737,16,60737,17],[60737,18,60737,19],[60737,20,60737,21],[60737,22,60737,23],[60675,16,60675,17],[60675,18,60675,19],[60675,20,60675,21],[60675,22,60675,23],[60655,16,60655,17],[60655,18,60655,19],[60655,20,60655,21],[60655,22,60655,23],[60593,16,60593,17],[60593,18,60593,19],[60593,20,60593,21],[60593,22,60593,23],[60573,16,60573,17],[60573,18,60573,19],[60573,20,60573,21],[60573,22,60573,23],[60511,16,60511,17],[60511,18,60511,19],[60511,20,60511,21],[60511,22,60511,23],[60491,16,60491,17],[60491,18,60491,19],[60491,20,60491,21],[60491,22,60491,23],[60429,16,60429,17],[60429,18,60429,19],[60429,20,60429,21],[60429,22,60429,23],[60409,16,60409,17],[60409,18,60409,19],[60409,20,60409,21],[60409,22,60409,23],[60347,16,60347,17],[60347,18,60347,19],[60347,20,60347,21],[60347,22,60347,23],[60327,16,60327,17],[60327,18,60327,19],[60327,20,60327,21],[60327,22,60327,23],[60265,16,60265,17],[60265,18,60265,19],[60265,20,60265,21],[60265,22,60265,23],[60245,16,60245,17],[60245,18,60245,19],[60245,20,60245,21],[60245,22,60245,23],[60183,16,60183,17],[60183,18,60183,19],[60183,20,60183,21],[60183,22,60183,23],[60163,16,60163,17],[60163,18,60163,19],[60163,20,60163,21],[60163,22,60163,23],[60101,16,60101,17],[60101,18,60101,19],[60101,20,60101,21],[60101,22,60101,23],[60081,16,60081,17],[60081,18,60081,19],[60081,20,60081,21],[60081,22,60081,23],[60019,16,60019,17],[60019,18,60019,19],[60019,20,60019,21],[60019,22,60019,23],[59999,16,59999,17],[59999,18,59999,19],[59999,20,59999,21],[59999,22,59999,23],[59937,16,59937,17],[59937,18,59937,19],[59937,20,59937,21],[59937,22,59937,23],[59917,16,59917,17],[59917,18,59917,19],[59917,20,59917,21],[59917,22,59917,23],[59855,16,59855,17],[59855,18,59855,19],[59855,20,59855,21],[59855,22,59855,23],[59835,16,59835,17],[59835,18,59835,19],[59835,20,59835,21],[59835,22,59835,23],[59773,16,59773,17],[59773,18,59773,19],[59773,20,59773,21],[59773,22,59773,23],[59753,16,59753,17],[59753,18,59753,19],[59753,20,59753,21],[59753,22,59753,23],[59691,16,59691,17],[59691,18,59691,19],[59691,20,59691,21],[59691,22,59691,23],[59671,16,59671,17],[59671,18,59671,19],[59671,20,59671,21],[59671,22,59671,23],[59609,16,59609,17],[59609,18,59609,19],[59609,20,59609,21],[59609,22,59609,23],[59589,16,59589,17],[59589,18,59589,19],[59589,20,59589,21],[59589,22,59589,23],[59527,16,59527,17],[59527,18,59527,19],[59527,20,59527,21],[59527,22,59527,23],[59507,16,59507,17],[59507,18,59507,19],[59507,20,59507,21],[59507,22,59507,23],[59445,16,59445,17],[59445,18,59445,19],[59445,20,59445,21],[59445,22,59445,23],[59425,16,59425,17],[59425,18,59425,19],[59425,20,59425,21],[59425,22,59425,23],[59363,16,59363,17],[59363,18,59363,19],[59363,20,59363,21],[59363,22,59363,23],[59343,16,59343,17],[59343,18,59343,19],[59343,20,59343,21],[59343,22,59343,23],[59281,16,59281,17],[59281,18,59281,19],[59281,20,59281,21],[59281,22,59281,23],[59261,16,59261,17],[59261,18,59261,19],[59261,20,59261,21],[59261,22,59261,23],[59199,16,59199,17],[59199,18,59199,19],[59199,20,59199,21],[59199,22,59199,23],[59179,16,59179,17],[59179,18,59179,19],[59179,20,59179,21],[59179,22,59179,23],[59117,16,59117,17],[59117,18,59117,19],[59117,20,59117,21],[59117,22,59117,23],[59097,16,59097,17],[59097,18,59097,19],[59097,20,59097,21],[59097,22,59097,23],[59035,16,59035,17],[59035,18,59035,19],[59035,20,59035,21],[59035,22,59035,23],[59015,16,59015,17],[59015,18,59015,19],[59015,20,59015,21],[59015,22,59015,23],[58953,16,58953,17],[58953,18,58953,19],[58953,20,58953,21],[58953,22,58953,23],[58933,16,58933,17],[58933,18,58933,19],[58933,20,58933,21],[58933,22,58933,23],[58871,16,58871,17],[58871,18,58871,19],[58871,20,58871,21],[58871,22,58871,23],[58851,16,58851,17],[58851,18,58851,19],[58851,20,58851,21],[58851,22,58851,23],[58789,16,58789,17],[58789,18,58789,19],[58789,20,58789,21],[58789,22,58789,23],[58769,16,58769,17],[58769,18,58769,19],[58769,20,58769,21],[58769,22,58769,23],[58707,16,58707,17],[58707,18,58707,19],[58707,20,58707,21],[58707,22,58707,23],[58687,16,58687,17],[58687,18,58687,19],[58687,20,58687,21],[58687,22,58687,23],[58625,16,58625,17],[58625,18,58625,19],[58625,20,58625,21],[58625,22,58625,23],[58605,16,58605,17],[58605,18,58605,19],[58605,20,58605,21],[58605,22,58605,23],[58543,16,58543,17],[58543,18,58543,19],[58543,20,58543,21],[58543,22,58543,23],[58523,16,58523,17],[58523,18,58523,19],[58523,20,58523,21],[58523,22,58523,23],[58461,16,58461,17],[58461,18,58461,19],[58461,20,58461,21],[58461,22,58461,23],[58441,16,58441,17],[58441,18,58441,19],[58441,20,58441,21],[58441,22,58441,23],[58379,16,58379,17],[58379,18,58379,19],[58379,20,58379,21],[58379,22,58379,23],[58359,16,58359,17],[58359,18,58359,19],[58359,20,58359,21],[58359,22,58359,23],[58297,16,58297,17],[58297,18,58297,19],[58297,20,58297,21],[58297,22,58297,23],[58277,16,58277,17],[58277,18,58277,19],[58277,20,58277,21],[58277,22,58277,23],[58215,16,58215,17],[58215,18,58215,19],[58215,20,58215,21],[58215,22,58215,23],[58195,16,58195,17],[58195,18,58195,19],[58195,20,58195,21],[58195,22,58195,23],[58133,16,58133,17],[58133,18,58133,19],[58133,20,58133,21],[58133,22,58133,23],[58113,16,58113,17],[58113,18,58113,19],[58113,20,58113,21],[58113,22,58113,23],[58051,16,58051,17],[58051,18,58051,19],[58051,20,58051,21],[58051,22,58051,23],[58031,16,58031,17],[58031,18,58031,19],[58031,20,58031,21],[58031,22,58031,23],[57969,16,57969,17],[57969,18,57969,19],[57969,20,57969,21],[57969,22,57969,23],[57949,16,57949,17],[57949,18,57949,19],[57949,20,57949,21],[57949,22,57949,23],[57887,16,57887,17],[57887,18,57887,19],[57887,20,57887,21],[57887,22,57887,23],[57867,16,57867,17],[57867,18,57867,19],[57867,20,57867,21],[57867,22,57867,23],[57805,16,57805,17],[57805,18,57805,19],[57805,20,57805,21],[57805,22,57805,23],[57785,16,57785,17],[57785,18,57785,19],[57785,20,57785,21],[57785,22,57785,23],[57723,16,57723,17],[57723,18,57723,19],[57723,20,57723,21],[57723,22,57723,23],[57703,16,57703,17],[57703,18,57703,19],[57703,20,57703,21],[57703,22,57703,23],[57641,16,57641,17],[57641,18,57641,19],[57641,20,57641,21],[57641,22,57641,23],[57621,16,57621,17],[57621,18,57621,19],[57621,20,57621,21],[57621,22,57621,23],[57559,16,57559,17],[57559,18,57559,19],[57559,20,57559,21],[57559,22,57559,23],[57539,16,57539,17],[57539,18,57539,19],[57539,20,57539,21],[57539,22,57539,23],[57477,16,57477,17],[57477,18,57477,19],[57477,20,57477,21],[57477,22,57477,23],[57457,16,57457,17],[57457,18,57457,19],[57457,20,57457,21],[57457,22,57457,23],[57395,16,57395,17],[57395,18,57395,19],[57395,20,57395,21],[57395,22,57395,23],[57375,16,57375,17],[57375,18,57375,19],[57375,20,57375,21],[57375,22,57375,23],[57313,16,57313,17],[57313,18,57313,19],[57313,20,57313,21],[57313,22,57313,23],[57293,16,57293,17],[57293,18,57293,19],[57293,20,57293,21],[57293,22,57293,23],[57231,16,57231,17],[57231,18,57231,19],[57231,20,57231,21],[57231,22,57231,23],[57211,16,57211,17],[57211,18,57211,19],[57211,20,57211,21],[57211,22,57211,23],[57149,16,57149,17],[57149,18,57149,19],[57149,20,57149,21],[57149,22,57149,23],[57129,16,57129,17],[57129,18,57129,19],[57129,20,57129,21],[57129,22,57129,23],[57067,16,57067,17],[57067,18,57067,19],[57067,20,57067,21],[57067,22,57067,23],[57047,16,57047,17],[57047,18,57047,19],[57047,20,57047,21],[57047,22,57047,23],[56985,16,56985,17],[56985,18,56985,19],[56985,20,56985,21],[56985,22,56985,23],[56965,16,56965,17],[56965,18,56965,19],[56965,20,56965,21],[56965,22,56965,23],[56903,16,56903,17],[56903,18,56903,19],[56903,20,56903,21],[56903,22,56903,23],[56883,16,56883,17],[56883,18,56883,19],[56883,20,56883,21],[56883,22,56883,23],[56821,16,56821,17],[56821,18,56821,19],[56821,20,56821,21],[56821,22,56821,23],[56801,16,56801,17],[56801,18,56801,19],[56801,20,56801,21],[56801,22,56801,23],[56739,16,56739,17],[56739,18,56739,19],[56739,20,56739,21],[56739,22,56739,23],[56719,16,56719,17],[56719,18,56719,19],[56719,20,56719,21],[56719,22,56719,23],[56657,16,56657,17],[56657,18,56657,19],[56657,20,56657,21],[56657,22,56657,23],[56637,16,56637,17],[56637,18,56637,19],[56637,20,56637,21],[56637,22,56637,23],[56575,16,56575,17],[56575,18,56575,19],[56575,20,56575,21],[56575,22,56575,23],[56555,16,56555,17],[56555,18,56555,19],[56555,20,56555,21],[56555,22,56555,23],[56493,16,56493,17],[56493,18,56493,19],[56493,20,56493,21],[56493,22,56493,23],[56473,16,56473,17],[56473,18,56473,19],[56473,20,56473,21],[56473,22,56473,23],[56411,16,56411,17],[56411,18,56411,19],[56411,20,56411,21],[56411,22,56411,23],[56391,16,56391,17],[56391,18,56391,19],[56391,20,56391,21],[56391,22,56391,23],[56329,16,56329,17],[56329,18,56329,19],[56329,20,56329,21],[56329,22,56329,23],[56309,16,56309,17],[56309,18,56309,19],[56309,20,56309,21],[56309,22,56309,23],[56247,16,56247,17],[56247,18,56247,19],[56247,20,56247,21],[56247,22,56247,23],[56227,16,56227,17],[56227,18,56227,19],[56227,20,56227,21],[56227,22,56227,23],[56165,16,56165,17],[56165,18,56165,19],[56165,20,56165,21],[56165,22,56165,23],[56145,16,56145,17],[56145,18,56145,19],[56145,20,56145,21],[56145,22,56145,23],[56083,16,56083,17],[56083,18,56083,19],[56083,20,56083,21],[56083,22,56083,23],[56063,16,56063,17],[56063,18,56063,19],[56063,20,56063,21],[56063,22,56063,23],[56001,16,56001,17],[56001,18,56001,19],[56001,20,56001,21],[56001,22,56001,23],[55981,16,55981,17],[55981,18,55981,19],[55981,20,55981,21],[55981,22,55981,23],[55919,16,55919,17],[55919,18,55919,19],[55919,20,55919,21],[55919,22,55919,23],[55899,16,55899,17],[55899,18,55899,19],[55899,20,55899,21],[55899,22,55899,23],[55837,16,55837,17],[55837,18,55837,19],[55837,20,55837,21],[55837,22,55837,23],[55817,16,55817,17],[55817,18,55817,19],[55817,20,55817,21],[55817,22,55817,23],[55755,16,55755,17],[55755,18,55755,19],[55755,20,55755,21],[55755,22,55755,23],[55735,16,55735,17],[55735,18,55735,19],[55735,20,55735,21],[55735,22,55735,23],[55673,16,55673,17],[55673,18,55673,19],[55673,20,55673,21],[55673,22,55673,23],[55653,16,55653,17],[55653,18,55653,19],[55653,20,55653,21],[55653,22,55653,23],[55591,16,55591,17],[55591,18,55591,19],[55591,20,55591,21],[55591,22,55591,23],[55571,16,55571,17],[55571,18,55571,19],[55571,20,55571,21],[55571,22,55571,23],[55509,16,55509,17],[55509,18,55509,19],[55509,20,55509,21],[55509,22,55509,23],[55489,16,55489,17],[55489,18,55489,19],[55489,20,55489,21],[55489,22,55489,23],[55427,16,55427,17],[55427,18,55427,19],[55427,20,55427,21],[55427,22,55427,23],[55407,16,55407,17],[55407,18,55407,19],[55407,20,55407,21],[55407,22,55407,23],[55345,16,55345,17],[55345,18,55345,19],[55345,20,55345,21],[55345,22,55345,23],[55325,16,55325,17],[55325,18,55325,19],[55325,20,55325,21],[55325,22,55325,23],[55263,16,55263,17],[55263,18,55263,19],[55263,20,55263,21],[55263,22,55263,23],[55243,16,55243,17],[55243,18,55243,19],[55243,20,55243,21],[55243,22,55243,23],[55181,16,55181,17],[55181,18,55181,19],[55181,20,55181,21],[55181,22,55181,23],[55161,16,55161,17],[55161,18,55161,19],[55161,20,55161,21],[55161,22,55161,23],[55099,16,55099,17],[55099,18,55099,19],[55099,20,55099,21],[55099,22,55099,23],[55079,16,55079,17],[55079,18,55079,19],[55079,20,55079,21],[55079,22,55079,23],[55017,16,55017,17],[55017,18,55017,19],[55017,20,55017,21],[55017,22,55017,23],[54997,16,54997,17],[54997,18,54997,19],[54997,20,54997,21],[54997,22,54997,23],[54935,16,54935,17],[54935,18,54935,19],[54935,20,54935,21],[54935,22,54935,23],[54915,16,54915,17],[54915,18,54915,19],[54915,20,54915,21],[54915,22,54915,23]],"merged_total":17446,"flags":["merged_cut"]}
[null,"B01001. GENDER BY AGE"]
[null,"Universe:  TOTAL POPULATION"]
[null,"Data Set: 2015-2019 American Community Survey 5-Year Estimates"]
[]
[null,null,"Allenstown",null,"Andover",null,"Boscawen",null,"Bow",null,"Bradford",null,"Canterbury",null,"Chichester",null,"Concord",null,"Danbury",null,"Dunbarton",null,"Epsom",null,"Franklin",null,"Henniker",null,"Hill",null,"Hooksett",null,"Hopkinton",null,"Loudon",null,"Newbury",null,"New London",null,"Northfield",null,"Pembroke",null,"Pittsfield",null,"Salisbury",null,"Sutton",null,"Warner",null,"Webster",null,"Wilmot"]
[null,null,"Estimate","Margin Of Error","Estimate","Margin Of Error","Estimate","Margin Of Error","Estimate","Margin Of Error","Estimate","Margin Of Error","Estimate","Margin Of Error","Estimate","Margin Of Error","Estimate","Margin Of Error","Estimate","Margin Of Error","Estimate","Margin Of Error","Estimate","Margin Of Error","Estimate","Margin Of Error","Estimate","Margin Of Error","Estimate","Margin Of Error","Estimate","Margin Of Error","Estimate","Margin Of Error","Estimate","Margin Of Error","Estimate","Margin Of Error","Estimate","Margin Of Error","Estimate","Margin Of Error","Estimate","Margin Of Error","Estimate","Margin Of Error","Estimate","Margin Of Error","Estimate","Margin Of Error","Estimate","Margin Of Error","Estimate","Margin Of Error","Estimate","Margin Of Error"]
[null,"Total:",4390,22,2782,321,4004,15,7862,25,1587,214,2357,148,2662,29,43244,42,1129,165,2827,19,4722,18,8623,31,4962,17,920,148,14289,30,5691,29,5534,19,2096,214,4390,16,4881,26,7187,32,4117,16,1422,182,1905,279,2910,20,1781,185,1643,215]
[null,"Male:",2249,147,1493,284,1851,141,4040,168,802,130,1157,102,1335,83,21740,407,554,89,1428,73,2360,146,4053,204,2590,175,473,84,6893,296,2793,159,2394,351,1056,123,1948,162,2366,142,3467,220,2133,164,731,100,942,158,1324,89,909,108,779,125]
[null,"Under 5 years",125,82,20,17,93,71,244,78,16,12,56,27,101,48,1140,193,43,24,62,43,172,92,168,85,172,67,31,19,222,90,158,88,77,75,29,16,104,71,187,97,159,87,68,77,17,14,36,26,66,38,29,15,19,23]
[null,"5 to 9 years",109,54,57,57,96,54,324,98,65,38,37,24,94,47,1309,238,20,14,124,50,146,65,283,124,154,76,15,10,265,115,194,103,40,39,6,8,86,48,122,62,158,74,163,81,26,16,90,48,91,42,39,19,68,57]
[null,"10 to 14 years",145,83,96,39,153,94,261,85,42,20,6,9,114,37,1013,193,26,13,87,39,131,69,306,97,170,97,32,23,428,129,152,95,78,60,71,37,37,28,98,58,176,90,266,85,33,24,87,40,51,25,53,33,10,9]
[null,"15 to 17 years",59,32,156,89,55,47,282,97,62,29,35,21,50,26,829,147,3,5,71,30,69,63,82,59,82,57,18,13,302,102,71,62,131,104,28,20,65,39,84,59,52,47,53,42,30,19,54,32,52,30,37,21,14,16]
[null,"18 and 19 years",82,59,72,72,18,26,246,81,17,13,50,29,26,24,551,109,15,13,23,19,43,46,97,67,100,57,10,10,269,107,30,47,23,40,22,17,143,57,51,50,152,83,49,56,20,24,6,9,12,16,17,12,21,18]
[null,"20 years",41,32,52,31,0,11,0,16,0,11,14,15,0,11,253,106,0,11,29,19,18,29,77,80,90,65,8,9,277,262,53,57,41,65,23,35,97,50,74,105,53,66,0,11,5,8,21,16,47,33,6,8,28,27]
[null,"21 years",16,25,0,11,0,11,18,28,4,8,6,11,0,11,170,89,0,11,11,11,30,34,28,35,110,69,0,11,222,142,0,16,21,39,9,12,58,38,33,46,0,16,27,30,19,15,5,7,17,17,4,7,5,6]
[null,"22 to 24 years",114,70,49,41,70,45,150,78,66,46,25,21,30,25,1056,242,13,13,42,22,94,68,55,46,165,82,5,7,374,124,81,57,26,45,47,38,106,75,91,79,123,91,49,51,31,27,20,24,38,27,61,40,10,10]
[null,"25 to 29 years",177,82,113,56,83,46,148,80,37,25,64,25,82,36,2044,216,35,19,68,35,112,57,215,97,150,125,21,22,294,106,63,53,124,96,47,43,74,53,130,68,329,127,53,31,33,24,36,27,53,31,31,17,34,19]
[null,"30 to 34 years",102,43,53,38,115,73,115,50,23,14,66,26,82,31,1804,209,31,17,56,46,178,83,260,104,131,69,34,15,447,124,128,58,64,67,53,32,87,48,161,80,168,113,142,96,64,33,46,23,137,56,29,19,49,27]
[null,"35 to 39 years",111,65,66,44,93,52,193,61,42,21,78,39,30,21,1464,215,42,18,76,41,130,62,205,94,123,62,30,14,416,106,166,69,213,79,43,22,76,40,159,75,249,96,213,88,37,24,70,35,74,39,58,25,21,15]
[null,"40 to 44 years",222,62,133,42,166,84,279,82,38,22,103,42,100,44,1130,208,20,16,84,37,134,69,189,97,129,71,15,10,379,115,199,81,174,104,62,37,78,43,173,63,195,104,77,53,34,17,41,26,69,35,71,25,46,31]
[null,"45 to 49 years",192,74,162,167,151,49,311,82,46,18,76,33,99,39,1618,205,48,23,136,49,174,73,323,116,148,65,32,20,488,114,240,120,82,60,52,24,77,49,83,62,254,90,108,63,20,15,46,27,70,39,36,18,41,27]
[null,"50 to 54 years",164,69,46,22,137,59,218,75,33,16,60,25,152,46,1599,190,52,25,141,31,213,89,425,118,109,62,37,21,601,131,347,106,146,76,76,34,39,36,246,82,208,112,212,89,61,21,27,17,87,41,72,37,86,33]
[null,"55 to 59 years",211,71,96,46,185,78,398,82,62,33,145,44,106,45,1402,184,62,29,141,35,129,61,326,128,225,93,43,20,465,120,265,120,400,152,142,47,81,43,208,74,306,135,211,92,71,26,82,42,76,28,106,36,69,25]
[null,"60 and 61 years",104,80,45,34,21,23,68,37,33,16,75,41,31,19,545,119,30,21,45,22,59,72,90,53,50,45,14,10,185,95,138,77,92,78,12,12,50,35,64,42,150,112,69,55,40,21,33,25,53,25,42,22,36,31]
[null,"62 to 64 years",3,8,77,33,54,47,210,68,49,26,34,24,39,22,851,150,23,12,51,20,91,66,121,57,117,64,46,22,278,96,52,47,134,82,64,40,104,56,135,55,213,121,51,36,37,26,54,29,80,33,87,28,43,28]
[null,"65 and 66 years",28,32,35,20,93,67,61,35,64,28,25,24,17,15,350,85,27,27,22,15,105,60,163,81,147,72,17,12,208,87,57,44,157,129,33,19,77,45,100,64,145,59,47,36,30,21,45,27,45,33,26,13,10,9]
[null,"67 to 69 years",26,23,27,27,54,33,122,56,36,19,58,26,45,23,687,130,12,9,37,18,94,55,172,62,45,43,25,18,168,68,78,44,53,46,32,15,96,49,63,30,114,67,95,56,40,24,11,8,67,30,55,19,37,23]
[null,"70 to 74 years",101,67,31,29,71,43,155,52,25,15,86,30,97,35,666,142,15,11,82,29,103,44,168,68,65,37,8,8,290,104,159,76,188,95,123,47,62,42,53,32,113,61,65,52,47,26,40,24,75,28,28,14,56,22]
[null,"75 to 79 years",78,40,37,29,60,37,108,42,22,14,17,15,22,14,440,112,30,20,15,11,35,25,64,41,102,49,19,18,129,52,68,63,109,70,33,19,118,53,26,21,97,54,36,44,30,16,41,32,17,13,12,9,35,24]
[null,"80 to 84 years",28,24,16,13,27,26,63,32,13,11,31,29,14,13,376,121,7,7,14,10,52,43,84,48,0,11,9,15,115,57,12,21,0,16,20,14,97,51,7,12,26,32,44,30,0,11,41,20,28,21,0,11,25,20]
[null,"85 years and over",11,13,54,40,56,57,66,36,7,7,10,10,4,7,443,103,0,11,11,10,48,35,152,59,6,10,4,5,71,57,82,55,21,34,29,22,136,62,18,19,27,22,35,31,6,6,10,6,19,16,10,9,16,15]
[null,"Female:",2141,147,1289,134,2153,139,3822,172,785,111,1200,95,1327,81,21504,405,575,96,1399,74,2362,147,4570,205,2372,172,447,73,7396,298,2898,158,3140,353,1040,122,2442,160,2515,144,3720,221,1984,165,691,100,963,148,1586,89,872,104,864,117]
[null,"Under 5 years",111,77,60,40,88,57,237,113,28,16,68,36,100,44,949,187,49,24,61,31,47,39,54,39,116,71,21,16,343,145,160,82,159,89,26,18,123,60,161,70,184,96,111,119,22,21,58,32,92,51,34,20,58,31]
[null,"5 to 9 years",65,31,93,52,125,71,219,69,39,24,62,28,37,27,1117,183,36,20,135,41,139,68,210,89,119,66,16,14,388,118,250,93,17,27,39,33,67,41,168,75,369,180,79,62,65,43,40,24,95,38,25,12,52,30]
[null,"10 to 14 years",140,67,81,34,93,66,263,88,48,23,58,34,58,26,840,166,30,16,134,42,120,55,191,89,75,58,17,14,411,130,151,87,291,174,58,35,145,77,142,66,225,140,173,98,34,19,51,34,128,61,24,19,4,6]
[null,"15 to 17 years",61,41,32,20,52,57,229,87,43,24,39,23,37,23,745,144,40,26,59,28,138,82,135,70,33,38,11,9,329,90,54,50,127,98,52,28,0,11,97,63,204,102,72,57,26,18,39,32,19,20,22,13,40,24]
[null,"18 and 19 years",19,27,19,22,117,90,36,37,17,19,37,22,17,18,402,118,0,11,30,22,14,22,221,111,228,75,7,8,356,103,16,18,0,16,7,10,303,113,62,49,47,57,41,38,3,6,9,10,24,17,23,20,24,20]
[null,"20 years",96,77,59,55,21,37,19,29,5,7,11,16,19,20,295,86,10,10,11,15,0,11,71,56,74,62,0,11,132,82,0,16,0,16,9,12,101,61,93,111,42,46,0,11,0,11,4,7,15,15,19,23,6,8]
[null,"21 years",73,69,0,11,17,27,15,24,0,11,23,19,18,18,192,120,6,7,21,29,35,41,12,20,74,63,0,11,190,88,29,43,168,105,0,11,167,67,33,47,0,16,21,37,0,11,0,11,17,21,5,7,17,28]
[null,"22 to 24 years",31,35,35,41,38,39,17,26,10,9,53,38,60,48,1117,261,9,13,22,17,63,52,196,166,124,89,17,24,161,87,82,68,184,121,33,23,59,48,108,76,72,71,35,34,6,11,4,7,76,67,4,8,5,7]
[null,"25 to 29 years",74,41,65,35,149,71,106,54,53,32,67,30,49,28,1393,200,26,22,40,26,139,59,243,104,94,69,15,11,455,139,169,73,51,62,50,33,72,45,226,92,355,125,53,31,23,15,41,29,172,48,56,24,49,27]
[null,"30 to 34 years",166,72,23,14,43,29,206,73,20,12,40,25,112,48,1669,229,25,15,51,37,168,65,155,60,210,96,20,12,600,125,79,60,118,65,22,14,85,48,172,62,61,51,119,78,42,22,49,26,49,25,48,24,50,25]
[null,"35 to 39 years",171,67,64,35,163,89,233,73,25,18,48,30,83,36,1178,182,29,14,92,40,82,56,260,99,71,52,29,14,361,94,134,65,276,111,26,16,50,34,81,51,373,148,199,109,35,16,60,30,45,25,61,26,8,8]
[null,"40 to 44 years",73,45,110,37,174,64,212,64,46,19,76,32,71,34,1416,204,24,13,110,39,173,89,235,81,171,68,25,13,382,123,172,64,184,108,88,36,95,48,87,59,170,95,64,49,30,20,69,32,78,32,35,13,78,45]
[null,"45 to 49 years",191,67,85,38,74,49,298,93,69,28,93,35,119,45,1439,203,33,23,129,42,157,64,287,114,168,76,30,23,678,136,171,90,125,92,48,24,80,54,141,80,195,92,246,134,33,18,46,28,112,43,74,35,29,15]
[null,"50 to 54 years",166,75,140,49,186,67,320,88,51,24,88,43,120,48,1696,198,60,27,134,34,196,83,411,147,52,36,48,20,384,106,269,91,154,73,71,38,126,54,214,77,328,103,119,67,81,28,71,37,110,48,73,31,108,40]
[null,"55 to 59 years",197,77,106,43,225,79,366,94,70,32,119,29,113,37,1655,183,79,34,124,31,184,68,427,140,152,71,33,16,462,109,343,118,395,161,158,47,105,51,285,80,229,108,224,82,58,20,116,51,142,44,92,32,86,39]
[null,"60 and 61 years",31,29,28,28,71,48,110,45,35,21,72,33,77,29,613,135,23,14,24,16,116,66,246,108,117,59,19,15,273,97,103,53,129,78,43,30,69,58,105,55,103,72,54,50,34,18,30,20,21,17,43,21,40,17]
[null,"62 to 64 years",55,51,17,14,25,29,180,68,34,15,48,27,31,20,665,132,28,20,72,27,112,64,145,69,88,53,51,25,271,78,89,62,133,83,22,16,85,44,81,46,188,87,75,44,54,32,77,43,74,34,53,17,21,15]
[null,"65 and 66 years",19,21,50,33,9,14,52,29,47,23,19,15,29,20,492,107,11,9,37,15,92,64,99,47,73,53,24,18,222,85,106,61,112,82,44,24,59,35,57,37,159,102,38,31,23,19,36,21,54,43,36,21,12,10]
[null,"67 to 69 years",79,60,55,39,70,36,169,64,27,12,49,24,40,20,564,115,12,11,28,13,69,37,250,88,124,67,15,10,218,75,96,72,141,77,66,35,73,47,81,40,104,54,48,35,33,23,23,18,54,30,64,27,34,17]
[null,"70 to 74 years",74,35,34,21,99,54,187,65,49,20,34,20,58,25,960,166,19,19,33,16,128,53,281,116,125,58,29,23,280,79,198,105,201,109,90,38,194,68,56,34,133,78,89,59,31,14,81,42,56,39,36,20,39,21]
[null,"75 to 79 years",59,34,80,44,84,49,169,58,48,33,47,28,22,14,611,156,19,13,21,11,83,45,131,63,75,50,11,18,199,80,75,56,126,83,27,19,196,68,17,24,104,69,43,33,21,13,41,31,57,26,20,12,82,39]
[null,"80 to 84 years",77,68,0,11,67,42,54,38,9,9,19,16,35,24,495,132,7,8,18,14,41,33,110,63,0,11,0,11,162,88,46,44,0,16,11,11,53,30,19,21,30,35,11,17,15,10,18,15,53,40,9,8,17,14]
[null,"85 years and over",113,90,53,42,163,91,125,49,12,11,30,21,22,16,1001,251,0,11,13,10,66,49,200,87,9,13,9,9,139,86,106,67,49,45,50,31,135,80,29,25,45,41,70,76,22,22,0,11,43,35,16,12,5,7]
[]
[]
[]
[]
[]
[]
[]
[]
[]
[]
[]
[]
[]
[null,"Calculated B01001. GENDER BY AGE"]
[null,"Universe:  TOTAL POPULATION"]
[null,"Data Set: 2015-2019 American Community Survey 5-Year Estimates"]
[]
[null,null,"Allenstown",null,"Andover",null,"Boscawen",null,"Bow",null,"Bradford",null,"Canterbury",null,"Chichester",null,"Concord",null,"Danbury",null,"Dunbarton",null,"Epsom",null,"Franklin",null,"Henniker",null,"Hill",null,"Hooksett",null,"Hopkinton",null,"Loudon",null,"Newbury",null,"New London",null,"Northfield",null,"Pembroke",null,"Pittsfield",null,"Salisbury",null,"Sutton",null,"Warner",null,"Webster",null,"Wilmot"]
[null,null,"Estimate","Margin Of Error","Estimate","Margin Of Error","Estimate","Margin Of Error","Estimate","Margin Of Error","Estimate","Margin Of Error","Estimate","Margin Of Error","Estimate","Margin Of Error","Estimate","Margin Of Error","Estimate","Margin Of Error","Estimate","Margin Of Error","Estimate","Margin Of Error","Estimate","Margin Of Error","Estimate","Margin Of Error","Estimate","Margin Of Error","Estimate","Margin Of Error","Estimate","Margin Of Error","Estimate","Margin Of Error","Estimate","Margin Of Error","Estimate","Margin Of Error","Estimate","Margin Of Error","Estimate","Margin Of Error","Estimate","Margin Of Error","Estimate","Margin Of Error","Estimate","Margin Of Error","Estimate","Margin Of Error","Estimate","Margin Of Error","Estimate","Margin Of Error"]
[null,"Total",{"$f":"C7","v":4390},22,2782,321,4004,15,7862,25,1587,214,2357,148,2662,29,43244,42,1129,165,2827,19,4722,18,{"$f":"Y7","v":8623},31,4962,17,920,148,14289,30,5691,29,5534,19,2096,214,4390,16,{"$f":"AO7","v":4881},26,7187,32,4117,16,1422,182,1905,279,2910,20,1781,185,1643,{"$f":"BD7","v":215}]
[null,"Under 15 yrs.",{"$f":"C9+C10+C11+C33+C34+C35","v":695},{"$f":"SQRT((D9^2)+(D10^2)+(D11^2)+(D33^2)+(D34^2)+(D35^2))","v":167.05687654209268},{"$f":"E9+E10+E11+E33+E34+E35","v":407},{"$f":"SQRT((F9^2)+(F10^2)+(F11^2)+(F33^2)+(F34^2)+(F35^2))","v":102.56217626396194},{"$f":"G9+G10+G11+G33+G34+G35","v":648},{"$f":"SQRT((H9^2)+(H10^2)+(H11^2)+(H33^2)+(H34^2)+(H35^2))","v":171.57797061394567},{"$f":"I9+I10+I11+I33+I34+I35","v":1548},{"$f":"SQRT((J9^2)+(J10^2)+(J11^2)+(J33^2)+(J34^2)+(J35^2))","v":219.51537531571677},{"$f":"K9+K10+K11+K33+K34+K35","v":238},{"$f":"SQRT((L9^2)+(L10^2)+(L11^2)+(L33^2)+(L34^2)+(L35^2))","v":57.870545184921149},{"$f":"M9+M10+M11+M33+M34+M35","v":287},{"$f":"SQRT((N9^2)+(N10^2)+(N11^2)+(N33^2)+(N34^2)+(N35^2))","v":67.985292527134135},{"$f":"O9+O10+O11+O33+O34+O35","v":504},{"$f":"SQRT((P9^2)+(P10^2)+(P11^2)+(P33^2)+(P34^2)+(P35^2))","v":96.036451412992136},{"$f":"Q9+Q10+Q11+Q33+Q34+Q35","v":6368},{"$f":"SQRT((R9^2)+(R10^2)+(R11^2)+(R33^2)+(R34^2)+(R35^2))","v":476.60885430298083},{"$f":"S9+S10+S11+S33+S34+S35","v":204},{"$f":"SQRT((T9^2)+(T10^2)+(T11^2)+(T33^2)+(T34^2)+(T35^2))","v":46.61544808322666},{"$f":"U9+U10+U11+U33+U34+U35","v":603},{"$f":"SQRT((V9^2)+(V10^2)+(V11^2)+(V33^2)+(V34^2)+(V35^2))","v":101.3706071797935},{"$f":"W9+W10+W11+W33+W34+W35","v":755},{"$f":"SQRT((X9^2)+(X10^2)+(X11^2)+(X33^2)+(X34^2)+(X35^2))","v":163.15636671610457},{"$f":"Y9+Y10+Y11+Y33+Y34+Y35","v":1212},{"$f":"SQRT((Z9^2)+(Z10^2)+(Z11^2)+(Z33^2)+(Z34^2)+(Z35^2))","v":222.20036003571192},{"$f":"AA9+AA10+AA11+AA33+AA34+AA35","v":806},{"$f":"SQRT((AB9^2)+(AB10^2)+(AB11^2)+(AB33^2)+(AB34^2)+(AB35^2))","v":180.09719598039277},{"$f":"AC9+AC10+AC11+AC33+AC34+AC35","v":132},{"$f":"SQRT((AD9^2)+(AD10^2)+(AD11^2)+(AD33^2)+(AD34^2)+(AD35^2))","v":40.472212689696121},{"$f":"AE9+AE10+AE11+AE33+AE34+AE35","v":2057},{"$f":"SQRT((AF9^2)+(AF10^2)+(AF11^2)+(AF33^2)+(AF34^2)+(AF35^2))","v":299.69150805453262},{"$f":"AG9+AG10+AG11+AG33+AG34+AG35","v":1065},{"$f":"SQRT((AH9^2)+(AH10^2)+(AH11^2)+(AH33^2)+(AH34^2)+(AH35^2))","v":224.32119828495925},{"$f":"AI9+AI10+AI11+AI33+AI34+AI35","v":662},{"$f":"SQRT((AJ9^2)+(AJ10^2)+(AJ11^2)+(AJ33^2)+(AJ34^2)+(AJ35^2))","v":222.87216066615409},{"$f":"AK9+AK10+AK11+AK33+AK34+AK35","v":229},{"$f":"SQRT((AL9^2)+(AL10^2)+(AL11^2)+(AL33^2)+(AL34^2)+(AL35^2))","v":65.779936150774731},{"$f":"AM9+AM10+AM11+AM33+AM34+AM35","v":562},{"$f":"SQRT((AN9^2)+(AN10^2)+(AN11^2)+(AN33^2)+(AN34^2)+(AN35^2))","v":139.06473312813714},{"$f":"AO9+AO10+AO11+AO33+AO34+AO35","v":878},{"$f":"SQRT((AP9^2)+(AP10^2)+(AP11^2)+(AP33^2)+(AP34^2)+(AP35^2))","v":177.47675904185314},{"$f":"AQ9+AQ10+AQ11+AQ33+AQ34+AQ35","v":1271},{"$f":"SQRT((AR9^2)+(AR10^2)+(AR11^2)+(AR33^2)+(AR34^2)+(AR35^2))","v":286.98606237934274},{"$f":"AS9+AS10+AS11+AS33+AS34+AS35","v":860},{"$f":"SQRT((AT9^2)+(AT10^2)+(AT11^2)+(AT33^2)+(AT34^2)+(AT35^2))","v":217.54080077079794},{"$f":"AU9+AU10+AU11+AU33+AU34+AU35","v":197},{"$f":"SQRT((AV9^2)+(AV10^2)+(AV11^2)+(AV33^2)+(AV34^2)+(AV35^2))","v":60.654760736482999},{"$f":"AW9+AW10+AW11+AW33+AW34+AW35","v":362},{"$f":"SQRT((AX9^2)+(AX10^2)+(AX11^2)+(AX33^2)+(AX34^2)+(AX35^2))","v":85.650452421455427},{"$f":"AY9+AY10+AY11+AY33+AY34+AY35","v":523},{"$f":"SQRT((AZ9^2)+(AZ10^2)+(AZ11^2)+(AZ33^2)+(AZ34^2)+(AZ35^2))","v":107.69865365917997},{"$f":"BA9+BA10+BA11+BA33+BA34+BA35","v":204},{"$f":"SQRT((BB9^2)+(BB10^2)+(BB11^2)+(BB33^2)+(BB34^2)+(BB35^2))","v":50.793700396801178},{"$f":"BC9+BC10+BC11+BC33+BC34+BC35","v":211},{"$f":"SQRT((BD9^2)+(BD10^2)+(BD11^2)+(BD33^2)+(BD34^2)+(BD35^2))","v":75.868306953562637}]
[null,"15 to 24 yrs.",{"$f":"C12+C13+C14+C15+C16+C36+C37+C38+C39+C40","v":592},{"$f":"SQRT((D12^2)+(D13^2)+(D14^2)+(D15^2)+(D16^2)+(D36^2)+(D37^2)+(D38^2)+(D39^2)+(D40^2))","v":159.30787802240039},{"$f":"E12+E13+E14+E15+E16+E36+E37+E38+E39+E40","v":474},{"$f":"SQRT((F12^2)+(F13^2)+(F14^2)+(F15^2)+(F16^2)+(F36^2)+(F37^2)+(F38^2)+(F39^2)+(F40^2))","v":146.89792374298557},{"$f":"G12+G13+G14+G15+G16+G36+G37+G38+G39+G40","v":388},{"$f":"SQRT((H12^2)+(H13^2)+(H14^2)+(H15^2)+(H16^2)+(H36^2)+(H37^2)+(H38^2)+(H39^2)+(H40^2))","v":141.84498581197715},{"$f":"I12+I13+I14+I15+I16+I36+I37+I38+I39+I40","v":1012},{"$f":"SQRT((J12^2)+(J13^2)+(J14^2)+(J15^2)+(J16^2)+(J36^2)+(J37^2)+(J38^2)+(J39^2)+(J40^2))","v":184.72953201911167},{"$f":"K12+K13+K14+K15+K16+K36+K37+K38+K39+K40","v":224},{"$f":"SQRT((L12^2)+(L13^2)+(L14^2)+(L15^2)+(L16^2)+(L36^2)+(L37^2)+(L38^2)+(L39^2)+(L40^2))","v":67.074585350936019},{"$f":"M12+M13+M14+M15+M16+M36+M37+M38+M39+M40","v":293},{"$f":"SQRT((N12^2)+(N13^2)+(N14^2)+(N15^2)+(N16^2)+(N36^2)+(N37^2)+(N38^2)+(N39^2)+(N40^2))","v":71.714712576987992},{"$f":"O12+O13+O14+O15+O16+O36+O37+O38+O39+O40","v":257},{"$f":"SQRT((P12^2)+(P13^2)+(P14^2)+(P15^2)+(P16^2)+(P36^2)+(P37^2)+(P38^2)+(P39^2)+(P40^2))","v":77.459666924148337},{"$f":"Q12+Q13+Q14+Q15+Q16+Q36+Q37+Q38+Q39+Q40","v":5610},{"$f":"SQRT((R12^2)+(R13^2)+(R14^2)+(R15^2)+(R16^2)+(R36^2)+(R37^2)+(R38^2)+(R39^2)+(R40^2))","v":485.58006548868951},{"$f":"S12+S13+S14+S15+S16+S36+S37+S38+S39+S40","v":96},{"$f":"SQRT((T12^2)+(T13^2)+(T14^2)+(T15^2)+(T16^2)+(T36^2)+(T37^2)+(T38^2)+(T39^2)+(T40^2))","v":41.47288270665544},{"$f":"U12+U13+U14+U15+U16+U36+U37+U38+U39+U40","v":319},{"$f":"SQRT((V12^2)+(V13^2)+(V14^2)+(V15^2)+(V16^2)+(V36^2)+(V37^2)+(V38^2)+(V39^2)+(V40^2))","v":69.641941385920603},{"$f":"W12+W13+W14+W15+W16+W36+W37+W38+W39+W40","v":504},{"$f":"SQRT((X12^2)+(X13^2)+(X14^2)+(X15^2)+(X16^2)+(X36^2)+(X37^2)+(X38^2)+(X39^2)+(X40^2))","v":156.26899884494046},{"$f":"Y12+Y13+Y14+Y15+Y16+Y36+Y37+Y38+Y39+Y40","v":974},{"$f":"SQRT((Z12^2)+(Z13^2)+(Z14^2)+(Z15^2)+(Z16^2)+(Z36^2)+(Z37^2)+(Z38^2)+(Z39^2)+(Z40^2))","v":256.95135726436627},{"$f":"AA12+AA13+AA14+AA15+AA16+AA36+AA37+AA38+AA39+AA40","v":1080},{"$f":"SQRT((AB12^2)+(AB13^2)+(AB14^2)+(AB15^2)+(AB16^2)+(AB36^2)+(AB37^2)+(AB38^2)+(AB39^2)+(AB40^2))","v":212.15796002035842},{"$f":"AC12+AC13+AC14+AC15+AC16+AC36+AC37+AC38+AC39+AC40","v":76},{"$f":"SQRT((AD12^2)+(AD13^2)+(AD14^2)+(AD15^2)+(AD16^2)+(AD36^2)+(AD37^2)+(AD38^2)+(AD39^2)+(AD40^2))","v":38.509739027939411},{"$f":"AE12+AE13+AE14+AE15+AE16+AE36+AE37+AE38+AE39+AE40","v":2612},{"$f":"SQRT((AF12^2)+(AF13^2)+(AF14^2)+(AF15^2)+(AF16^2)+(AF36^2)+(AF37^2)+(AF38^2)+(AF39^2)+(AF40^2))","v":408.39074426338311},{"$f":"AG12+AG13+AG14+AG15+AG16+AG36+AG37+AG38+AG39+AG40","v":416},{"$f":"SQRT((AH12^2)+(AH13^2)+(AH14^2)+(AH15^2)+(AH16^2)+(AH36^2)+(AH37^2)+(AH38^2)+(AH39^2)+(AH40^2))","v":149.53260514014994},{"$f":"AI12+AI13+AI14+AI15+AI16+AI36+AI37+AI38+AI39+AI40","v":721},{"$f":"SQRT((AJ12^2)+(AJ13^2)+(AJ14^2)+(AJ15^2)+(AJ16^2)+(AJ36^2)+(AJ37^2)+(AJ38^2)+(AJ39^2)+(AJ40^2))","v":236.57768280207665},{"$f":"AK12+AK13+AK14+AK15+AK16+AK36+AK37+AK38+AK39+AK40","v":230},{"$f":"SQRT((AL12^2)+(AL13^2)+(AL14^2)+(AL15^2)+(AL16^2)+(AL36^2)+(AL37^2)+(AL38^2)+(AL39^2)+(AL40^2))","v":71.972216861786322},{"$f":"AM12+AM13+AM14+AM15+AM16+AM36+AM37+AM38+AM39+AM40","v":1099},{"$f":"SQRT((AN12^2)+(AN13^2)+(AN14^2)+(AN15^2)+(AN16^2)+(AN36^2)+(AN37^2)+(AN38^2)+(AN39^2)+(AN40^2))","v":194.27557746664917},{"$f":"AO12+AO13+AO14+AO15+AO16+AO36+AO37+AO38+AO39+AO40","v":726},{"$f":"SQRT((AP12^2)+(AP13^2)+(AP14^2)+(AP15^2)+(AP16^2)+(AP36^2)+(AP37^2)+(AP38^2)+(AP39^2)+(AP40^2))","v":228.12058214900296},{"$f":"AQ12+AQ13+AQ14+AQ15+AQ16+AQ36+AQ37+AQ38+AQ39+AQ40","v":745},{"$f":"SQRT((AR12^2)+(AR13^2)+(AR14^2)+(AR15^2)+(AR16^2)+(AR36^2)+(AR37^2)+(AR38^2)+(AR39^2)+(AR40^2))","v":207.50180722104568},{"$f":"AS12+AS13+AS14+AS15+AS16+AS36+AS37+AS38+AS39+AS40","v":347},{"$f":"SQRT((AT12^2)+(AT13^2)+(AT14^2)+(AT15^2)+(AT16^2)+(AT36^2)+(AT37^2)+(AT38^2)+(AT39^2)+(AT40^2))","v":125.94046212397349},{"$f":"AU12+AU13+AU14+AU15+AU16+AU36+AU37+AU38+AU39+AU40","v":140},{"$f":"SQRT((AV12^2)+(AV13^2)+(AV14^2)+(AV15^2)+(AV16^2)+(AV36^2)+(AV37^2)+(AV38^2)+(AV39^2)+(AV40^2))","v":51.749396131742444},{"$f":"AW12+AW13+AW14+AW15+AW16+AW36+AW37+AW38+AW39+AW40","v":162},{"$f":"SQRT((AX12^2)+(AX13^2)+(AX14^2)+(AX15^2)+(AX16^2)+(AX36^2)+(AX37^2)+(AX38^2)+(AX39^2)+(AX40^2))","v":57.697486947006624},{"$f":"AY12+AY13+AY14+AY15+AY16+AY36+AY37+AY38+AY39+AY40","v":317},{"$f":"SQRT((AZ12^2)+(AZ13^2)+(AZ14^2)+(AZ15^2)+(AZ16^2)+(AZ36^2)+(AZ37^2)+(AZ38^2)+(AZ39^2)+(AZ40^2))","v":95.430603057928963},{"$f":"BA12+BA13+BA14+BA15+BA16+BA36+BA37+BA38+BA39+BA40","v":198},{"$f":"SQRT((BB12^2)+(BB13^2)+(BB14^2)+(BB15^2)+(BB16^2)+(BB36^2)+(BB37^2)+(BB38^2)+(BB39^2)+(BB40^2))","v":59.236812878479547},{"$f":"BC12+BC13+BC14+BC15+BC16+BC36+BC37+BC38+BC39+BC40","v":170},{"$f":"SQRT((BD12^2)+(BD13^2)+(BD14^2)+(BD15^2)+(BD16^2)+(BD36^2)+(BD37^2)+(BD38^2)+(BD39^2)+(BD40^2))","v":57.602083295658673}]
[null,"25 to 34 yrs.",{"$f":"C17+C18+C41+C42","v":519},{"$f":"SQRT((D17^2)+(D18^2)+(D41^2)+(D42^2))","v":124.24974849069112},{"$f":"E17+E18+E41+E42","v":254},{"$f":"SQRT((F17^2)+(F18^2)+(F41^2)+(F42^2))","v":77.466121627457255},{"$f":"G17+G18+G41+G42","v":390},{"$f":"SQRT((H17^2)+(H18^2)+(H41^2)+(H42^2))","v":115.4426264427486},{"$f":"I17+I18+I41+I42","v":575},{"$f":"SQRT((J17^2)+(J18^2)+(J41^2)+(J42^2))","v":130.93891705677117},{"$f":"K17+K18+K41+K42","v":133},{"$f":"SQRT((L17^2)+(L18^2)+(L41^2)+(L42^2))","v":44.598206241955516},{"$f":"M17+M18+M41+M42","v":237},{"$f":"SQRT((N17^2)+(N18^2)+(N41^2)+(N42^2))","v":53.160135440008048},{"$f":"O17+O18+O41+O42","v":325},{"$f":"SQRT((P17^2)+(P18^2)+(P41^2)+(P42^2))","v":73.109506905736964},{"$f":"Q17+Q18+Q41+Q42","v":6910},{"$f":"SQRT((R17^2)+(R18^2)+(R41^2)+(R42^2))","v":427.5254378396682},{"$f":"S17+S18+S41+S42","v":117},{"$f":"SQRT((T17^2)+(T18^2)+(T41^2)+(T42^2))","v":36.864617182333525},{"$f":"U17+U18+U41+U42","v":215},{"$f":"SQRT((V17^2)+(V18^2)+(V41^2)+(V42^2))","v":73.389372527635089},{"$f":"W17+W18+W41+W42","v":597},{"$f":"SQRT((X17^2)+(X18^2)+(X41^2)+(X42^2))","v":133.58143583597237},{"$f":"Y17+Y18+Y41+Y42","v":873},{"$f":"SQRT((Z17^2)+(Z18^2)+(Z41^2)+(Z42^2))","v":186.1209284309532},{"$f":"AA17+AA18+AA41+AA42","v":585},{"$f":"SQRT((AB17^2)+(AB18^2)+(AB41^2)+(AB42^2))","v":185.37259775921575},{"$f":"AC17+AC18+AC41+AC42","v":90},{"$f":"SQRT((AD17^2)+(AD18^2)+(AD41^2)+(AD42^2))","v":31.208973068654469},{"$f":"AE17+AE18+AE41+AE42","v":1796},{"$f":"SQRT((AF17^2)+(AF18^2)+(AF41^2)+(AF42^2))","v":248.108847081276},{"$f":"AG17+AG18+AG41+AG42","v":439},{"$f":"SQRT((AH17^2)+(AH18^2)+(AH41^2)+(AH42^2))","v":122.89019488958425},{"$f":"AI17+AI18+AI41+AI42","v":357},{"$f":"SQRT((AJ17^2)+(AJ18^2)+(AJ41^2)+(AJ42^2))","v":147.56015722409623},{"$f":"AK17+AK18+AK41+AK42","v":172},{"$f":"SQRT((AL17^2)+(AL18^2)+(AL41^2)+(AL42^2))","v":64.482555780614035},{"$f":"AM17+AM18+AM41+AM42","v":318},{"$f":"SQRT((AN17^2)+(AN18^2)+(AN41^2)+(AN42^2))","v":97.169954203961623},{"$f":"AO17+AO18+AO41+AO42","v":689},{"$f":"SQRT((AP17^2)+(AP18^2)+(AP41^2)+(AP42^2))","v":152.7481587450402},{"$f":"AQ17+AQ18+AQ41+AQ42","v":913},{"$f":"SQRT((AR17^2)+(AR18^2)+(AR41^2)+(AR42^2))","v":217.08063018150654},{"$f":"AS17+AS18+AS41+AS42","v":367},{"$f":"SQRT((AT17^2)+(AT18^2)+(AT41^2)+(AT42^2))","v":131.23261789661899},{"$f":"AU17+AU18+AU41+AU42","v":162},{"$f":"SQRT((AV17^2)+(AV18^2)+(AV41^2)+(AV42^2))","v":48.723710860319329},{"$f":"AW17+AW18+AW41+AW42","v":172},{"$f":"SQRT((AX17^2)+(AX18^2)+(AX41^2)+(AX42^2))","v":52.678268764263692},{"$f":"AY17+AY18+AY41+AY42","v":411},{"$f":"SQRT((AZ17^2)+(AZ18^2)+(AZ41^2)+(AZ42^2))","v":83.821238358783503},{"$f":"BA17+BA18+BA41+BA42","v":164},{"$f":"SQRT((BB17^2)+(BB18^2)+(BB41^2)+(BB42^2))","v":42.449970553582247},{"$f":"BC17+BC18+BC41+BC42","v":182},{"$f":"SQRT((BD17^2)+(BD18^2)+(BD41^2)+(BD42^2))","v":49.436828377233098}]
[null,"35 to 44 yrs.",{"$f":"C19+C20+C43+C44","v":577},{"$f":"SQRT((D19^2)+(D20^2)+(D43^2)+(D44^2))","v":120.76009274590675},{"$f":"E19+E20+E43+E44","v":373},{"$f":"SQRT((F19^2)+(F20^2)+(F43^2)+(F44^2))","v":79.334733881194808},{"$f":"G19+G20+G43+G44","v":596},{"$f":"SQRT((H19^2)+(H20^2)+(H43^2)+(H44^2))","v":147.57032221961163},{"$f":"I19+I20+I43+I44","v":917},{"$f":"SQRT((J19^2)+(J20^2)+(J43^2)+(J44^2))","v":140.96098751072935},{"$f":"K19+K20+K43+K44","v":151},{"$f":"SQRT((L19^2)+(L20^2)+(L43^2)+(L44^2))","v":40.124805295477756},{"$f":"M19+M20+M43+M44","v":305},{"$f":"SQRT((N19^2)+(N20^2)+(N43^2)+(N44^2))","v":72.17340230306452},{"$f":"O19+O20+O43+O44","v":284},{"$f":"SQRT((P19^2)+(P20^2)+(P43^2)+(P44^2))","v":69.49100661236676},{"$f":"Q19+Q20+Q43+Q44","v":5188},{"$f":"SQRT((R19^2)+(R20^2)+(R43^2)+(R44^2))","v":405.25177359266422},{"$f":"S19+S20+S43+S44","v":115},{"$f":"SQRT((T19^2)+(T20^2)+(T43^2)+(T44^2))","v":30.740852297878796},{"$f":"U19+U20+U43+U44","v":362},{"$f":"SQRT((V19^2)+(V20^2)+(V43^2)+(V44^2))","v":78.555712713971346},{"$f":"W19+W20+W43+W44","v":519},{"$f":"SQRT((X19^2)+(X20^2)+(X43^2)+(X44^2))","v":140.22125373851142},{"$f":"Y19+Y20+Y43+Y44","v":889},{"$f":"SQRT((Z19^2)+(Z20^2)+(Z43^2)+(Z44^2))","v":186.02956754236678},{"$f":"AA19+AA20+AA43+AA44","v":494},{"$f":"SQRT((AB19^2)+(AB20^2)+(AB43^2)+(AB44^2))","v":127.33027919548437},{"$f":"AC19+AC20+AC43+AC44","v":99},{"$f":"SQRT((AD19^2)+(AD20^2)+(AD43^2)+(AD44^2))","v":25.709920264364882},{"$f":"AE19+AE20+AE43+AE44","v":1538},{"$f":"SQRT((AF19^2)+(AF20^2)+(AF43^2)+(AF44^2))","v":220.05908297545912},{"$f":"AG19+AG20+AG43+AG44","v":671},{"$f":"SQRT((AH19^2)+(AH20^2)+(AH43^2)+(AH44^2))","v":140.15348729161184},{"$f":"AI19+AI20+AI43+AI44","v":847},{"$f":"SQRT((AJ19^2)+(AJ20^2)+(AJ43^2)+(AJ44^2))","v":202.58825237411966},{"$f":"AK19+AK20+AK43+AK44","v":219},{"$f":"SQRT((AL19^2)+(AL20^2)+(AL43^2)+(AL44^2))","v":58.352377843580634},{"$f":"AM19+AM20+AM43+AM44","v":299},{"$f":"SQRT((AN19^2)+(AN20^2)+(AN43^2)+(AN44^2))","v":83.120394609265418},{"$f":"AO19+AO20+AO43+AO44","v":500},{"$f":"SQRT((AP19^2)+(AP20^2)+(AP43^2)+(AP44^2))","v":125.20383380711631},{"$f":"AQ19+AQ20+AQ43+AQ44","v":987},{"$f":"SQRT((AR19^2)+(AR20^2)+(AR43^2)+(AR44^2))","v":225.74543184746841},{"$f":"AS19+AS20+AS43+AS44","v":553},{"$f":"SQRT((AT19^2)+(AT20^2)+(AT43^2)+(AT44^2))","v":157.59124341155507},{"$f":"AU19+AU20+AU43+AU44","v":136},{"$f":"SQRT((AV19^2)+(AV20^2)+(AV43^2)+(AV44^2))","v":39},{"$f":"AW19+AW20+AW43+AW44","v":240},{"$f":"SQRT((AX19^2)+(AX20^2)+(AX43^2)+(AX44^2))","v":61.846584384264908},{"$f":"AY19+AY20+AY43+AY44","v":266},{"$f":"SQRT((AZ19^2)+(AZ20^2)+(AZ43^2)+(AZ44^2))","v":66.294796175868882},{"$f":"BA19+BA20+BA43+BA44","v":225},{"$f":"SQRT((BB19^2)+(BB20^2)+(BB43^2)+(BB44^2))","v":45.77116996538323},{"$f":"BC19+BC20+BC43+BC44","v":153},{"$f":"SQRT((BD19^2)+(BD20^2)+(BD43^2)+(BD44^2))","v":57.227615711297986}]
[null,"45 to 54 yrs.",{"$f":"C21+C22+C45+C46","v":713},{"$f":"SQRT((D21^2)+(D22^2)+(D45^2)+(D46^2))","v":142.65693113199933},{"$f":"E21+E22+E45+E46","v":433},{"$f":"SQRT((F21^2)+(F22^2)+(F45^2)+(F46^2))","v":179.49373248110922},{"$f":"G21+G22+G45+G46","v":548},{"$f":"SQRT((H21^2)+(H22^2)+(H45^2)+(H46^2))","v":113.01327355669333},{"$f":"I21+I22+I45+I46","v":1147},{"$f":"SQRT((J21^2)+(J22^2)+(J45^2)+(J46^2))","v":169.53465722382549},{"$f":"K21+K22+K45+K46","v":199},{"$f":"SQRT((L21^2)+(L22^2)+(L45^2)+(L46^2))","v":44.045431091090478},{"$f":"M21+M22+M45+M46","v":317},{"$f":"SQRT((N21^2)+(N22^2)+(N45^2)+(N46^2))","v":69.195375568024772},{"$f":"O21+O22+O45+O46","v":490},{"$f":"SQRT((P21^2)+(P22^2)+(P45^2)+(P46^2))","v":89.252450946738719},{"$f":"Q21+Q22+Q45+Q46","v":6352},{"$f":"SQRT((R21^2)+(R22^2)+(R45^2)+(R46^2))","v":398.16830612192126},{"$f":"S21+S22+S45+S46","v":193},{"$f":"SQRT((T21^2)+(T22^2)+(T45^2)+(T46^2))","v":49.112116631234699},{"$f":"U21+U22+U45+U46","v":540},{"$f":"SQRT((V21^2)+(V22^2)+(V45^2)+(V46^2))","v":79.259068881737434},{"$f":"W21+W22+W45+W46","v":740},{"$f":"SQRT((X21^2)+(X22^2)+(X45^2)+(X46^2))","v":155.67594547649293},{"$f":"Y21+Y22+Y45+Y46","v":1446},{"$f":"SQRT((Z21^2)+(Z22^2)+(Z45^2)+(Z46^2))","v":248.96786941290236},{"$f":"AA21+AA22+AA45+AA46","v":477},{"$f":"SQRT((AB21^2)+(AB22^2)+(AB45^2)+(AB46^2))","v":123.04877081872861},{"$f":"AC21+AC22+AC45+AC46","v":147},{"$f":"SQRT((AD21^2)+(AD22^2)+(AD45^2)+(AD46^2))","v":42.071367935925259},{"$f":"AE21+AE22+AE45+AE46","v":2151},{"$f":"SQRT((AF21^2)+(AF22^2)+(AF45^2)+(AF46^2))","v":244.72229158783227},{"$f":"AG21+AG22+AG45+AG46","v":1027},{"$f":"SQRT((AH21^2)+(AH22^2)+(AH45^2)+(AH46^2))","v":204.98048687619024},{"$f":"AI21+AI22+AI45+AI46","v":507},{"$f":"SQRT((AJ21^2)+(AJ22^2)+(AJ45^2)+(AJ46^2))","v":152.2136656151477},{"$f":"AK21+AK22+AK45+AK46","v":247},{"$f":"SQRT((AL21^2)+(AL22^2)+(AL45^2)+(AL46^2))","v":61.253571324454221},{"$f":"AM21+AM22+AM45+AM46","v":322},{"$f":"SQRT((AN21^2)+(AN22^2)+(AN45^2)+(AN46^2))","v":97.616596949494195},{"$f":"AO21+AO22+AO45+AO46","v":684},{"$f":"SQRT((AP21^2)+(AP22^2)+(AP45^2)+(AP46^2))","v":151.3175469005495},{"$f":"AQ21+AQ22+AQ45+AQ46","v":985},{"$f":"SQRT((AR21^2)+(AR22^2)+(AR45^2)+(AR46^2))","v":199.29124416290847},{"$f":"AS21+AS22+AS45+AS46","v":685},{"$f":"SQRT((AT21^2)+(AT22^2)+(AT45^2)+(AT46^2))","v":185.2970588001871},{"$f":"AU21+AU22+AU45+AU46","v":195},{"$f":"SQRT((AV21^2)+(AV22^2)+(AV45^2)+(AV46^2))","v":42.118879377305376},{"$f":"AW21+AW22+AW45+AW46","v":190},{"$f":"SQRT((AX21^2)+(AX22^2)+(AX45^2)+(AX46^2))","v":56.311632901204348},{"$f":"AY21+AY22+AY45+AY46","v":379},{"$f":"SQRT((AZ21^2)+(AZ22^2)+(AZ45^2)+(AZ46^2))","v":85.761296631988955},{"$f":"BA21+BA22+BA45+BA46","v":255},{"$f":"SQRT((BB21^2)+(BB22^2)+(BB45^2)+(BB46^2))","v":62.281618476080084},{"$f":"BC21+BC22+BC45+BC46","v":264},{"$f":"SQRT((BD21^2)+(BD22^2)+(BD45^2)+(BD46^2))","v":60.357269653290317}]
[null,"55 to 64 yrs.",{"$f":"C23+C24+C25+C47+C48+C49","v":601},{"$f":"SQRT((D23^2)+(D24^2)+(D25^2)+(D47^2)+(D48^2)+(D49^2))","v":144.48529336925608},{"$f":"E23+E24+E25+E47+E48+E49","v":369},{"$f":"SQRT((F23^2)+(F24^2)+(F25^2)+(F47^2)+(F48^2)+(F49^2))","v":84.793867702800299},{"$f":"G23+G24+G25+G47+G48+G49","v":581},{"$f":"SQRT((H23^2)+(H24^2)+(H25^2)+(H47^2)+(H48^2)+(H49^2))","v":134.93702234746399},{"$f":"I23+I24+I25+I47+I48+I49","v":1332},{"$f":"SQRT((J23^2)+(J24^2)+(J25^2)+(J47^2)+(J48^2)+(J49^2))","v":167.93451104522859},{"$f":"K23+K24+K25+K47+K48+K49","v":283},{"$f":"SQRT((L23^2)+(L24^2)+(L25^2)+(L47^2)+(L48^2)+(L49^2))","v":60.917977642072131},{"$f":"M23+M24+M25+M47+M48+M49","v":493},{"$f":"SQRT((N23^2)+(N24^2)+(N25^2)+(N47^2)+(N48^2)+(N49^2))","v":82.776808346299504},{"$f":"O23+O24+O25+O47+O48+O49","v":397},{"$f":"SQRT((P23^2)+(P24^2)+(P25^2)+(P47^2)+(P48^2)+(P49^2))","v":74.027022093286988},{"$f":"Q23+Q24+Q25+Q47+Q48+Q49","v":5731},{"$f":"SQRT((R23^2)+(R24^2)+(R25^2)+(R47^2)+(R48^2)+(R49^2))","v":373.70442865987019},{"$f":"S23+S24+S25+S47+S48+S49","v":245},{"$f":"SQRT((T23^2)+(T24^2)+(T25^2)+(T47^2)+(T48^2)+(T49^2))","v":56.373752757821613},{"$f":"U23+U24+U25+U47+U48+U49","v":457},{"$f":"SQRT((V23^2)+(V24^2)+(V25^2)+(V47^2)+(V48^2)+(V49^2))","v":63.678881899731877},{"$f":"W23+W24+W25+W47+W48+W49","v":691},{"$f":"SQRT((X23^2)+(X24^2)+(X25^2)+(X47^2)+(X48^2)+(X49^2))","v":162.28678319567493},{"$f":"Y23+Y24+Y25+Y47+Y48+Y49","v":1355},{"$f":"SQRT((Z23^2)+(Z24^2)+(Z25^2)+(Z47^2)+(Z48^2)+(Z49^2))","v":241.79950372157506},{"$f":"AA23+AA24+AA25+AA47+AA48+AA49","v":749},{"$f":"SQRT((AB23^2)+(AB24^2)+(AB25^2)+(AB47^2)+(AB48^2)+(AB49^2))","v":161.5580391066938},{"$f":"AC23+AC24+AC25+AC47+AC48+AC49","v":206},{"$f":"SQRT((AD23^2)+(AD24^2)+(AD25^2)+(AD47^2)+(AD48^2)+(AD49^2))","v":45.71651780264984},{"$f":"AE23+AE24+AE25+AE47+AE48+AE49","v":1934},{"$f":"SQRT((AF23^2)+(AF24^2)+(AF25^2)+(AF47^2)+(AF48^2)+(AF49^2))","v":244.97959098667792},{"$f":"AG23+AG24+AG25+AG47+AG48+AG49","v":990},{"$f":"SQRT((AH23^2)+(AH24^2)+(AH25^2)+(AH47^2)+(AH48^2)+(AH49^2))","v":207.64151800639485},{"$f":"AI23+AI24+AI25+AI47+AI48+AI49","v":1283},{"$f":"SQRT((AJ23^2)+(AJ24^2)+(AJ25^2)+(AJ47^2)+(AJ48^2)+(AJ49^2))","v":273.50685548994926},{"$f":"AK23+AK24+AK25+AK47+AK48+AK49","v":441},{"$f":"SQRT((AL23^2)+(AL24^2)+(AL25^2)+(AL47^2)+(AL48^2)+(AL49^2))","v":85.545309631796883},{"$f":"AM23+AM24+AM25+AM47+AM48+AM49","v":494},{"$f":"SQRT((AN23^2)+(AN24^2)+(AN25^2)+(AN47^2)+(AN48^2)+(AN49^2))","v":118.78973019583806},{"$f":"AO23+AO24+AO25+AO47+AO48+AO49","v":878},{"$f":"SQRT((AP23^2)+(AP24^2)+(AP25^2)+(AP47^2)+(AP48^2)+(AP49^2))","v":147.66854776830439},{"$f":"AQ23+AQ24+AQ25+AQ47+AQ48+AQ49","v":1189},{"$f":"SQRT((AR23^2)+(AR24^2)+(AR25^2)+(AR47^2)+(AR48^2)+(AR49^2))","v":264.24798958554067},{"$f":"AS23+AS24+AS25+AS47+AS48+AS49","v":684},{"$f":"SQRT((AT23^2)+(AT24^2)+(AT25^2)+(AT47^2)+(AT48^2)+(AT49^2))","v":154.74172029546526},{"$f":"AU23+AU24+AU25+AU47+AU48+AU49","v":294},{"$f":"SQRT((AV23^2)+(AV24^2)+(AV25^2)+(AV47^2)+(AV48^2)+(AV49^2))","v":59.506302187247357},{"$f":"AW23+AW24+AW25+AW47+AW48+AW49","v":392},{"$f":"SQRT((AX23^2)+(AX24^2)+(AX25^2)+(AX47^2)+(AX48^2)+(AX49^2))","v":89.888820216976924},{"$f":"AY23+AY24+AY25+AY47+AY48+AY49","v":446},{"$f":"SQRT((AZ23^2)+(AZ24^2)+(AZ25^2)+(AZ47^2)+(AZ48^2)+(AZ49^2))","v":76.674637266830288},{"$f":"BA23+BA24+BA25+BA47+BA48+BA49","v":423},{"$f":"SQRT((BB23^2)+(BB24^2)+(BB25^2)+(BB47^2)+(BB48^2)+(BB49^2))","v":65.711490623786645},{"$f":"BC23+BC24+BC25+BC47+BC48+BC49","v":295},{"$f":"SQRT((BD23^2)+(BD24^2)+(BD25^2)+(BD47^2)+(BD48^2)+(BD49^2))","v":66.370174024180471}]
[null,"65 to 74 yrs.",{"$f":"C26+C27+C28+C50+C51+C52","v":327},{"$f":"SQRT((D26^2)+(D27^2)+(D28^2)+(D50^2)+(D51^2)+(D52^2))","v":106.33908030446756},{"$f":"E26+E27+E28+E50+E51+E52","v":232},{"$f":"SQRT((F26^2)+(F27^2)+(F28^2)+(F50^2)+(F51^2)+(F52^2))","v":70.859014952227497},{"$f":"G26+G27+G28+G50+G51+G52","v":396},{"$f":"SQRT((H26^2)+(H27^2)+(H28^2)+(H50^2)+(H51^2)+(H52^2))","v":108.78878618681247},{"$f":"I26+I27+I28+I50+I51+I52","v":746},{"$f":"SQRT((J26^2)+(J27^2)+(J28^2)+(J50^2)+(J51^2)+(J52^2))","v":127.38524247337287},{"$f":"K26+K27+K28+K50+K51+K52","v":248},{"$f":"SQRT((L26^2)+(L27^2)+(L28^2)+(L50^2)+(L51^2)+(L52^2))","v":49.42671342502959},{"$f":"M26+M27+M28+M50+M51+M52","v":271},{"$f":"SQRT((N26^2)+(N27^2)+(N28^2)+(N50^2)+(N51^2)+(N52^2))","v":57.905094767213704},{"$f":"O26+O27+O28+O50+O51+O52","v":286},{"$f":"SQRT((P26^2)+(P27^2)+(P28^2)+(P50^2)+(P51^2)+(P52^2))","v":58.343808583259289},{"$f":"Q26+Q27+Q28+Q50+Q51+Q52","v":3719},{"$f":"SQRT((R26^2)+(R27^2)+(R28^2)+(R50^2)+(R51^2)+(R52^2))","v":310.6750714170675},{"$f":"S26+S27+S28+S50+S51+S52","v":96},{"$f":"SQRT((T26^2)+(T27^2)+(T28^2)+(T50^2)+(T51^2)+(T52^2))","v":38.652296180175377},{"$f":"U26+U27+U28+U50+U51+U52","v":239},{"$f":"SQRT((V26^2)+(V27^2)+(V28^2)+(V50^2)+(V51^2)+(V52^2))","v":45.166359162544857},{"$f":"W26+W27+W28+W50+W51+W52","v":591},{"$f":"SQRT((X26^2)+(X27^2)+(X28^2)+(X50^2)+(X51^2)+(X52^2))","v":129.74975915199227},{"$f":"Y26+Y27+Y28+Y50+Y51+Y52","v":1133},{"$f":"SQRT((Z26^2)+(Z27^2)+(Z28^2)+(Z50^2)+(Z51^2)+(Z52^2))","v":196.05611441625584},{"$f":"AA26+AA27+AA28+AA50+AA51+AA52","v":579},{"$f":"SQRT((AB26^2)+(AB27^2)+(AB28^2)+(AB50^2)+(AB51^2)+(AB52^2))","v":138.07244475274564},{"$f":"AC26+AC27+AC28+AC50+AC51+AC52","v":118},{"$f":"SQRT((AD26^2)+(AD27^2)+(AD28^2)+(AD50^2)+(AD51^2)+(AD52^2))","v":38.535697735995385},{"$f":"AE26+AE27+AE28+AE50+AE51+AE52","v":1386},{"$f":"SQRT((AF26^2)+(AF27^2)+(AF28^2)+(AF50^2)+(AF51^2)+(AF52^2))","v":205.18284528683191},{"$f":"AG26+AG27+AG28+AG50+AG51+AG52","v":694},{"$f":"SQRT((AH26^2)+(AH27^2)+(AH28^2)+(AH50^2)+(AH51^2)+(AH52^2))","v":171.98255725508909},{"$f":"AI26+AI27+AI28+AI50+AI51+AI52","v":852},{"$f":"SQRT((AJ26^2)+(AJ27^2)+(AJ28^2)+(AJ50^2)+(AJ51^2)+(AJ52^2))","v":228.72691140309661},{"$f":"AK26+AK27+AK28+AK50+AK51+AK52","v":388},{"$f":"SQRT((AL26^2)+(AL27^2)+(AL28^2)+(AL50^2)+(AL51^2)+(AL52^2))","v":77.717436910901796},{"$f":"AM26+AM27+AM28+AM50+AM51+AM52","v":561},{"$f":"SQRT((AN26^2)+(AN27^2)+(AN28^2)+(AN50^2)+(AN51^2)+(AN52^2))","v":119.36498649101419},{"$f":"AO26+AO27+AO28+AO50+AO51+AO52","v":410},{"$f":"SQRT((AP26^2)+(AP27^2)+(AP28^2)+(AP50^2)+(AP51^2)+(AP52^2))","v":100.72239075796404},{"$f":"AQ26+AQ27+AQ28+AQ50+AQ51+AQ52","v":768},{"$f":"SQRT((AR26^2)+(AR27^2)+(AR28^2)+(AR50^2)+(AR51^2)+(AR52^2))","v":176.33774411622713},{"$f":"AS26+AS27+AS28+AS50+AS51+AS52","v":382},{"$f":"SQRT((AT26^2)+(AT27^2)+(AT28^2)+(AT50^2)+(AT51^2)+(AT52^2))","v":113.15034246523517},{"$f":"AU26+AU27+AU28+AU50+AU51+AU52","v":204},{"$f":"SQRT((AV26^2)+(AV27^2)+(AV28^2)+(AV50^2)+(AV51^2)+(AV52^2))","v":52.716221412388805},{"$f":"AW26+AW27+AW28+AW50+AW51+AW52","v":236},{"$f":"SQRT((AX26^2)+(AX27^2)+(AX28^2)+(AX50^2)+(AX51^2)+(AX52^2))","v":62.433965115151864},{"$f":"AY26+AY27+AY28+AY50+AY51+AY52","v":351},{"$f":"SQRT((AZ26^2)+(AZ27^2)+(AZ28^2)+(AZ50^2)+(AZ51^2)+(AZ52^2))","v":83.922583373011108},{"$f":"BA26+BA27+BA28+BA50+BA51+BA52","v":245},{"$f":"SQRT((BB26^2)+(BB27^2)+(BB28^2)+(BB50^2)+(BB51^2)+(BB52^2))","v":47.916594202843754},{"$f":"BC26+BC27+BC28+BC50+BC51+BC52","v":188},{"$f":"SQRT((BD26^2)+(BD27^2)+(BD28^2)+(BD50^2)+(BD51^2)+(BD52^2))","v":43.863424398922618}]
[null,"Over 74 yrs. ",{"$f":"C29+C30+C31+C53+C54+C55","v":366},{"$f":"SQRT((D29^2)+(D30^2)+(D31^2)+(D53^2)+(D54^2)+(D55^2))","v":127.37739202856997},{"$f":"E29+E30+E31+E53+E54+E55","v":240},{"$f":"SQRT((F29^2)+(F30^2)+(F31^2)+(F53^2)+(F54^2)+(F55^2))","v":80.193515947363224},{"$f":"G29+G30+G31+G53+G54+G55","v":457},{"$f":"SQRT((H29^2)+(H30^2)+(H31^2)+(H53^2)+(H54^2)+(H55^2))","v":133.19159132617943},{"$f":"I29+I30+I31+I53+I54+I55","v":585},{"$f":"SQRT((J29^2)+(J30^2)+(J31^2)+(J53^2)+(J54^2)+(J55^2))","v":106.268527796333},{"$f":"K29+K30+K31+K53+K54+K55","v":111},{"$f":"SQRT((L29^2)+(L30^2)+(L31^2)+(L53^2)+(L54^2)+(L55^2))","v":40.70626487409524},{"$f":"M29+M30+M31+M53+M54+M55","v":154},{"$f":"SQRT((N29^2)+(N30^2)+(N31^2)+(N53^2)+(N54^2)+(N55^2))","v":51.44900387762624},{"$f":"O29+O30+O31+O53+O54+O55","v":119},{"$f":"SQRT((P29^2)+(P30^2)+(P31^2)+(P53^2)+(P54^2)+(P55^2))","v":37.97367509209505},{"$f":"Q29+Q30+Q31+Q53+Q54+Q55","v":3366},{"$f":"SQRT((R29^2)+(R30^2)+(R31^2)+(R53^2)+(R54^2)+(R55^2))","v":377.56456401521581},{"$f":"S29+S30+S31+S53+S54+S55","v":63},{"$f":"SQRT((T29^2)+(T30^2)+(T31^2)+(T53^2)+(T54^2)+(T55^2))","v":30.397368307141328},{"$f":"U29+U30+U31+U53+U54+U55","v":92},{"$f":"SQRT((V29^2)+(V30^2)+(V31^2)+(V53^2)+(V54^2)+(V55^2))","v":27.166155414412248},{"$f":"W29+W30+W31+W53+W54+W55","v":325},{"$f":"SQRT((X29^2)+(X30^2)+(X31^2)+(X53^2)+(X54^2)+(X55^2))","v":95.989582768131669},{"$f":"Y29+Y30+Y31+Y53+Y54+Y55","v":741},{"$f":"SQRT((Z29^2)+(Z30^2)+(Z31^2)+(Z53^2)+(Z54^2)+(Z55^2))","v":151.56846637740978},{"$f":"AA29+AA30+AA31+AA53+AA54+AA55","v":192},{"$f":"SQRT((AB29^2)+(AB30^2)+(AB31^2)+(AB53^2)+(AB54^2)+(AB55^2))","v":73.566296630998082},{"$f":"AC29+AC30+AC31+AC53+AC54+AC55","v":52},{"$f":"SQRT((AD29^2)+(AD30^2)+(AD31^2)+(AD53^2)+(AD54^2)+(AD55^2))","v":33.166247903554002},{"$f":"AE29+AE30+AE31+AE53+AE54+AE55","v":815},{"$f":"SQRT((AF29^2)+(AF30^2)+(AF31^2)+(AF53^2)+(AF54^2)+(AF55^2))","v":175.33396704574957},{"$f":"AG29+AG30+AG31+AG53+AG54+AG55","v":389},{"$f":"SQRT((AH29^2)+(AH30^2)+(AH31^2)+(AH53^2)+(AH54^2)+(AH55^2))","v":130.3687079018581},{"$f":"AI29+AI30+AI31+AI53+AI54+AI55","v":305},{"$f":"SQRT((AJ29^2)+(AJ30^2)+(AJ31^2)+(AJ53^2)+(AJ54^2)+(AJ55^2))","v":124.42668524074729},{"$f":"AK29+AK30+AK31+AK53+AK54+AK55","v":170},{"$f":"SQRT((AL29^2)+(AL30^2)+(AL31^2)+(AL53^2)+(AL54^2)+(AL55^2))","v":49.839743177508446},{"$f":"AM29+AM30+AM31+AM53+AM54+AM55","v":735},{"$f":"SQRT((AN29^2)+(AN30^2)+(AN31^2)+(AN53^2)+(AN54^2)+(AN55^2))","v":145.52662986546483},{"$f":"AO29+AO30+AO31+AO53+AO54+AO55","v":116},{"$f":"SQRT((AP29^2)+(AP30^2)+(AP31^2)+(AP53^2)+(AP54^2)+(AP55^2))","v":50.872389367907616},{"$f":"AQ29+AQ30+AQ31+AQ53+AQ54+AQ55","v":329},{"$f":"SQRT((AR29^2)+(AR30^2)+(AR31^2)+(AR53^2)+(AR54^2)+(AR55^2))","v":109.95908329919816},{"$f":"AS29+AS30+AS31+AS53+AS54+AS55","v":239},{"$f":"SQRT((AT29^2)+(AT30^2)+(AT31^2)+(AT53^2)+(AT54^2)+(AT55^2))","v":104.64702575802143},{"$f":"AU29+AU30+AU31+AU53+AU54+AU55","v":94},{"$f":"SQRT((AV29^2)+(AV30^2)+(AV31^2)+(AV53^2)+(AV54^2)+(AV55^2))","v":34.146742157927747},{"$f":"AW29+AW30+AW31+AW53+AW54+AW55","v":151},{"$f":"SQRT((AX29^2)+(AX30^2)+(AX31^2)+(AX53^2)+(AX54^2)+(AX55^2))","v":52.602281319349636},{"$f":"AY29+AY30+AY31+AY53+AY54+AY55","v":217},{"$f":"SQRT((AZ29^2)+(AZ30^2)+(AZ31^2)+(AZ53^2)+(AZ54^2)+(AZ55^2))","v":66.083280790227121},{"$f":"BA29+BA30+BA31+BA53+BA54+BA55","v":67},{"$f":"SQRT((BB29^2)+(BB30^2)+(BB31^2)+(BB53^2)+(BB54^2)+(BB55^2))","v":25.199206336708304},{"$f":"BC29+BC30+BC31+BC53+BC54+BC55","v":180},{"$f":"SQRT((BD29^2)+(BD30^2)+(BD31^2)+(BD53^2)+(BD54^2)+(BD55^2))","v":54.470175325585288}]
[]
[]
[]
[]
[]
[]
[]
[]
[]
[]
[]
[]
[]
[]
[]
[]
[]
[]
[]
[]
[]
[]
[]
[]
[]
[]
[]
[]
[]
[]
[]
[]
[]
[]
[]
[]
[]
[]
[]
[]
[]
[]
[]
[]
[]
[]
[]
[]
[]
[]
[]
[]
[]
[]
[]
[]
[]
[]
[]
[]
[]
[]
[]
[]
[]
[]
[]
[]
[]
[]
[]
[]
[]
[]
[]
[]
[null,"Calculated B01001. GENDER BY AGE"]
[null,"Universe:  TOTAL POPULATION"]
[null,"Data Set: 2010-2014 American Community Survey 5-Year Estimates"]
[]
[null,null,"Allenstown",null,"Andover",null,"Boscawen",null,"Bow",null,"Bradford",null,"Canterbury",null,"Chichester",null,"Concord",null,"Danbury",null,"Dunbarton",null,"Epsom",null,"Franklin",null,"Henniker",null,"Hill",null,"Hooksett",null,"Hopkinton",null,"Loudon",null,"Newbury",null,"New London",null,"Northfield",null,"Pembroke",null,"Pittsfield",null,"Salisbury",null,"Sutton",null,"Warner",null,"Webster",null,"Wilmot"]
[null,null,"Estimate","Margin Of Error","Estimate","Margin Of Error","Estimate","Margin Of Error","Estimate","Margin Of Error","Estimate","Margin Of Error","Estimate","Margin Of Error","Estimate","Margin Of Error","Estimate","Margin Of Error","Estimate","Margin Of Error","Estimate","Margin Of Error","Estimate","Margin Of Error","Estimate","Margin Of Error","Estimate","Margin Of Error","Estimate","Margin Of Error","Estimate","Margin Of Error","Estimate","Margin Of Error","Estimate","Margin Of Error","Estimate","Margin Of Error","Estimate","Margin Of Error","Estimate","Margin Of Error","Estimate","Margin Of Error","Estimate","Margin Of Error","Estimate","Margin Of Error","Estimate","Margin Of Error","Estimate","Margin Of Error","Estimate","Margin Of Error","Estimate"]
[null,"Total",4303,22,2428,252,3962,17,7611,29,1706,205,2291,204,2552,18,42514,41,1243,186,2779,17,4597,18,8462,36,4822,22,1164,184,13669,50,5591,23,5343,19,1749,234,4539,17,4823,17,7121,29,4082,28,1406,161,2014,287,2851,20,1891,199,1367]
[null,"Under 15 yrs.",719,156.50239614779065,302,82.267855204812534,730,183.95379854735265,1420,199.94249173199779,273,63.387695966961914,384,79.899937421752711,343,93.589529328873112,7049,479.56647088803027,218,65.023072828035438,488,82.079230015881606,774,179.65800844938698,1618,271.29135629429845,1008,223.1748193681357,165,49.264591747014407,2020,316.67017541915754,995,214.66019658986619,860,182.33485678827293,228,61.204574992397426,338,101.13851887386922,952,202.66474779793353,1282,253.92321674080927,818,161.80543872194161,238,61.838499334961227,372,99.53391381835641,382,97.826376811164792,353,74.020267494788214,208]
[null,"15 to 24 yrs.",510,124.31009613060397,289,100.35935432235502,336,99.799799598997197,968,194.13139879988503,121,39.268307832143719,224,68.01470429252781,295,77.032460690283031,5620,478.63138217212628,89,41.352146256270665,275,77.498387079990252,269,97.267671916212734,919,189.20095137181525,1134,250.70899465316356,166,55.054518434003214,2329,352.03550957254299,847,207.40298937093456,703,168.11008298136076,178,57.40209055426466,1349,227.22235805483578,518,136.0404351654316,1057,253.47583711273151,538,152.12494864419841,177,59.22837157984339,177,62.681735776859277,397,98.427638394914254,196,55.181518645285578,173]
[null,"25 to 34 yrs.",479,107.87492757819122,165,58.711157372342782,645,149.63622556052394,397,117.36268572250722,191,46.636895265444075,151,43.220365569948619,238,78.721026416072604,6386,437.0160180130701,212,60.183054093324309,285,94.567436255827516,447,129.63795740445775,984,182.63077506269309,458,137.68805322176649,93,33.496268448888451,1507,279.73916422267371,378,156.56627989449069,437,126.34476641317598,97,46.151923036857305,221,87.34987120768983,549,138.74797295816614,662,211.14450028357356,481,141.25862805506785,132,44.754888001200491,212,68.454364360499326,225,68.454364360499326,186,54.203320931470607,100]
[null,"35 to 44 yrs.",665,160.59265238484605,325,80.268300094121841,362,109.02293336725076,959,170.23219436992522,190,51.35172830587107,253,58.309518948453004,329,69.15200647848188,5560,384.72067789501517,122,42.166337284616027,361,64.288412641781719,743,137.25159379766779,1069,204.06371554002442,565,144.0416606402467,118,31.859064644147981,1945,291.47041016199228,530,142.71299870719557,620,160.65490966665163,215,59.615434243155519,237,72.794230540613583,596,133.99253710561644,1085,262.58332011001767,524,117.5457357797381,144,42.696604080418389,229,63.765194267719437,363,80.087452200703694,278,51.43928459844674,195]
[null,"45 to 54 yrs.",810,165.84028461142967,384,103.72077901751413,574,135.55072851150598,1455,188.88091486436633,261,61.180062111769715,457,79.183331579316615,451,81.694553062000409,6718,406.96560051188601,231,57.801384066473702,589,88.079509535419191,829,169.84993376507393,1167,207.18108021728239,701,172.19465729226329,300,59.991666087882571,2213,279.82137159266443,1085,210.83405796976919,1176,182.93441447688295,341,64.730209330729039,286,76.909037180295002,874,179.49373248110922,1122,202.26467808295149,759,151.47607071745688,258,55.946402922797461,265,60.901559914340453,394,79.831071645068121,367,65.383484153110103,187]
[null,"55 to 64 yrs.",544,119.94165248152953,448,94.461632422904913,501,121.79080425056729,1337,178.2105496316085,405,65.688659599659971,461,77.768888380894325,550,102.26925246622271,5327,408.69303884455871,197,52.364109846344185,491,83.803341222173231,768,171.64789541383837,1417,194.30131239906746,657,146.31472926537506,163,38.131351929875237,1876,268.54794730178071,789,193.40372281835735,830,165.85837331892532,279,68.388595540484673,565,118.54534997206765,780,136.02940858505562,1101,200.54675265383881,476,118.31314381758267,294,58.215118311311535,333,73.11634564172364,611,113.47686988985905,276,52.32590180780452,198]
[null,"65 to 74 yrs.",315,94.334511182281531,322,82.352899159653148,328,105.49407566304374,697,147.36349615830918,145,41.940433951021539,246,55.506756345511668,265,59.732738092272314,2901,270.91142463912445,109,34.322004603461025,225,58.881236400062114,451,123.3450444890268,613,143.78803844548406,105,47.265209192385896,113,35.860842154082214,1138,191.11776474205635,705,156.24339986060212,409,110.56219968868203,223,51.594573358057723,656,126.24975247500488,316,93.706990134141009,467,139.79628035108803,302,82.35897036753191,110,31.701734968294716,260,70.178344238091,262,72.862884927787476,164,30.822070014844883,162]
[null,"Over 74 yrs. ",261,94.894678459858852,193,72.553428588868215,486,216.349254678633,378,107.67543823918248,120,35.057096285916209,115,37.509998667022103,81,38.768543949960254,2953,323.86262519778353,65,24.79919353527449,65,33.630343441600473,316,102.04900783447137,675,130.96946208945045,194,74.699397587932395,46,25.553864678361276,641,150.8575487007528,262,82.625661873294547,308,112.06248257110852,188,64.210591026714582,887,153.31666576077109,238,73.088986858486422,345,117.38398527908311,184,66.007575322836999,53,22.248595461286989,166,48.062459362791664,217,71.686818872091123,71,30.347981810987037,144]
[]
[]
[]
[]
[]
[]
[]
[]
[]
[]
[]
[]
[]
[]
[]
[]
[]
[]
[]
[]
[]
[]
[]
[]
[]
[]
[]
[]
[]
[]
[]
[]
[]
[]
[]
[]
[]
[]
[]
[]
[]
[]
[]
[]
[]
[]
[]
[]
[]
[]
[]
[]
[]
[]
[]
[]
[]
[]
[]
[]
[]
[]
[]
[]
[]
[]
[]
[]
[]
[]
[]
[]
[]
[]
[]
[]
[null,"Calculated B01001. GENDER BY AGE"]
[null,"Universe:  TOTAL POPULATION"]
[null,"Data Set: 2005-2009 American Community Survey 5-Year Estimates"]
[]
[null,null,"Allenstown",null,"Andover",null,"Boscawen",null,"Bow",null,"Bradford",null,"Canterbury",null,"Chichester",null,"Concord",null,"Danbury",null,"Dunbarton",null,"Epsom",null,"Franklin",null,"Henniker",null,"Hill",null,"Hooksett",null,"Hopkinton",null,"Loudon",null,"Newbury",null,"New London",null,"Northfield",null,"Pembroke",null,"Pittsfield",null,"Salisbury",null,"Sutton",null,"Warner",null,"Webster",null,"Wilmot"]
[null,null,"Estimate","Margin Of Error","Estimate","Margin Of Error","Estimate","Margin Of Error","Estimate","Margin Of Error","Estimate","Margin Of Error","Estimate","Margin Of Error","Estimate","Margin Of Error","Estimate","Margin Of Error","Estimate","Margin Of Error","Estimate","Margin Of Error","Estimate","Margin Of Error","Estimate","Margin Of Error","Estimate","Margin Of Error","Estimate","Margin Of Error","Estimate","Margin Of Error","Estimate","Margin Of Error","Estimate","Margin Of Error","Estimate","Margin Of Error","Estimate","Margin Of Error","Estimate","Margin Of Error","Estimate","Margin Of Error","Estimate","Margin Of Error","Estimate","Margin Of Error","Estimate","Margin Of Error","Estimate","Margin Of Error","Estimate","Margin Of Error","Estimate"]
[null,"Total",4956,29,2279,210,3931,25,8053,35,1237,178,2347,168,2533,28,42397,26,1351,245,2624,62,4563,45,8748,25,5015,42,1174,186,13724,19,5603,25,5141,17,2293,294,4447,22,5101,24,7335,40,4367,25,1203,126,1700,303,2960,17,1807,147,1267]
[null,"Under 15 yrs.",1076,253.14817795117546,408,93.220169491371337,852,188.9417899777601,1532,251.04382087595783,148,42.154477816715982,454,96.943282387177291,501,104.84750831564858,7093,550.59604066865575,272,71.042240955645539,517,111.8704608017684,1018,206.44369692485165,1693,281.79779984946651,724,189.82623633207291,315,74.746237363495425,2393,318.15090758946451,1051,238.37365626259961,916,190.82714691573628,407,105.21406750050109,672,227.35434897973693,1127,278.36127604248406,1398,292.10956848415628,642,162.86190469228831,201,45.022216737961713,392,123.32477447779907,439,96.752260955493952,283,51.429563482495162,203]
[null,"15 to 24 yrs.",637,223.99776784602119,189,130.6713434537198,224,148.8052418431555,1108,226.26533097229014,163,48.877397639399746,227,62.681735776859277,311,140.17845768876185,5757,493.27173038802863,166,128.51848116127113,251,212.06131188880258,709,175.76973573399945,1056,214.03737991294884,1321,320.67584879438613,106,165.85837331892532,2730,383.65088296522919,570,213.99065400152409,728,177.39503938949363,339,202.16082706597734,879,217.43964679883013,694,237.89913829183996,1189,312.21146679774591,638,175.91475208179671,169,167.64247671756701,95,200.43452796362209,526,197.40567367732874,196,47.381430961928537,136]
[null,"25 to 34 yrs.",808,179.4993036198191,279,84.130850465212816,548,163.8596960817394,346,133.16906547693424,72,24.083189157584592,268,70.611613775638915,146,56.877060402239493,6426,421.89809196060605,117,47.613023428469653,209,59.749476985158623,380,124.26584406022437,1149,218.16049138191818,467,162.04320411544572,128,44.609416046390926,1390,224.38805672316875,281,132.63860674780929,452,133.67871932360814,150,50.109879265470198,154,78.070480977127332,502,140.24264686606568,820,186.96256309753565,546,159.48981158682207,119,36.359317925395686,176,86.73522929006414,259,72.869746808946715,180,43.011626335213137,35]
[null,"35 to 44 yrs.",756,180.69310999592651,298,73.280283842245041,493,122.98780427343192,1116,170.37605465557652,133,41.484937025383083,343,78.523881717602322,470,92.940841399247077,5865,429.397251970713,221,55.839054433254866,490,85.656289903310665,708,141.09571219565817,1338,195.40214942523022,618,162.18199653475722,143,39.484174044799268,1965,253.03557062199772,860,151.14562514343575,832,152.16438479486584,372,101.20276676059801,542,172.68178826963774,984,185.71752744423452,1157,245.17340801971164,891,173.69225659193907,155,36.905284174491868,200,52.316345438113316,375,80.907354424675134,298,57.497826045860201,188]
[null,"45 to 54 yrs.",718,162.26829634897879,447,105.50829351287983,638,163.05213890041429,2004,261.13215045260131,328,59.312730505347666,409,75.345869163478369,559,100.98514742277698,6724,402.32449589852217,216,60.860496218811754,599,101.20276676059801,581,121.63880959627976,1547,214.62059547023907,864,196.08416560242696,201,45.596052460711988,2130,247.62471605233594,953,209.41107898103195,914,188.01595676963166,393,107.4616210560775,347,104.75686135046239,860,164.34415109762804,1270,223.23306206742762,674,152.11508800904662,241,56.098128311022997,296,103.21337122679407,645,107.63828315241747,377,80.517078933602647,303]
[null,"55 to 64 yrs.",504,131.32783406422266,279,82.286086308682826,391,113.6837719289785,943,213.98831743812559,244,52.564246403805697,344,65.207361547604421,298,76.157731058639087,4414,370.88812329326481,230,68.249542123006222,353,66.625820820459694,620,117.99576263578281,959,169.97352735058479,658,159.21055241409096,129,33.570820663189039,1643,261.50908206026037,976,169.42845097562571,784,139.71757226634023,306,73.844431069648039,455,174.8828179095934,588,136.26077939010918,817,165.92468170829801,622,151.31424255502191,168,41.133927602406267,246,57.56735185849702,339,80.09993757800315,253,50.289163842720633,261]
[null,"65 to 74 yrs.",263,82.079230015881606,266,77.910204723129823,218,89.649316784903604,569,140.53825102085196,91,29.748949561287034,184,51.107729356722551,176,60.901559914340453,2716,301.88242744485808,89,120.31209415515964,150,43.577517139001849,397,97.087589320159765,508,115.54652742510265,128,172.37749273034458,94,28.26658805020514,869,160.32155188869649,545,126.82271089990152,332,101.73494974687902,211,52.526183946675587,442,123.27205684987982,242,80.888812576276578,315,104.72344532147517,213,66.090846567433218,85,24.041630560342615,146,47.275786614291256,137,44.687805943008662,122,34.176014981270121,71]
[null,"Over 74 yrs. ",194,78.377292629944805,113,129.76131935210893,567,140.18559127100045,435,127.91794244749249,58,116.46029366269003,118,121.18580774991764,72,118.82339836917643,3402,389.68833700792226,40,116.40017182117903,55,199.67223141939391,150,71.168813394632338,498,168.94969665554299,235,108.36973747315253,58,116.74759098157016,604,132.12494087037467,367,106.13199329137279,183,77.813880509842207,115,46.421977553740639,956,236.06355076546654,104,49.919935897394737,369,168.34191397272397,141,125.01999840025594,65,26.532998322843198,149,53.553711355983538,240,99.080775128175091,98,118.21167455035902,70]

{"sheet":"ACS_Table_B01002","index":20,"n_rows":49,"n_cols":56,"rows_kept":49,"cut":false,"hidden":true,"merged":[[64938,10,64938,11],[64938,12,64938,13],[64938,14,64938,15],[64938,2,64938,3],[64938,4,64938,5],[64938,6,64938,7],[64938,8,64938,9],[64856,14,64856,15],[64918,2,64918,3],[64918,4,64918,5],[64918,6,64918,7],[64918,8,64918,9],[64918,10,64918,11],[64918,12,64918,13],[64918,14,64918,15],[64856,2,64856,3],[64856,4,64856,5],[64856,6,64856,7],[64856,8,64856,9],[64774,10,64774,11],[64774,12,64774,13],[64774,6,64774,7],[64774,8,64774,9],[64856,10,64856,11],[64856,12,64856,13],[64774,14,64774,15],[64836,2,64836,3],[64836,4,64836,5],[64836,6,64836,7],[64836,8,64836,9],[64836,10,64836,11],[64836,12,64836,13],[64836,14,64836,15],[64774,2,64774,3],[64774,4,64774,5],[64692,14,64692,15],[64754,2,64754,3],[64754,4,64754,5],[64754,6,64754,7],[64754,8,64754,9],[64754,10,64754,11],[64754,12,64754,13],[64754,14,64754,15],[64692,2,64692,3],[64692,4,64692,5],[64692,6,64692,7],[64692,8,64692,9],[64610,10,64610,11],[64610,12,64610,13],[64610,6,64610,7],[64610,8,64610,9],[64692,10,64692,11],[64692,12,64692,13],[64610,14,64610,15],[64672,2,64672,3],[64672,4,64672,5],[64672,6,64672,7],[64672,8,64672,9],[64672,10,64672,11],[64672,12,64672,13],[64672,14,64672,15],[64610,2,64610,3],[64610,4,64610,5],[64528,14,64528,15],[64590,2,64590,3],[64590,4,64590,5],[64590,6,64590,7],[64590,8,64590,9],[64590,10,64590,11],[64590,12,64590,13],[64590,14,64590,15],[64528,2,64528,3],[64528,4,64528,5],[64528,6,64528,7],[64528,8,64528,9],[64446,10,64446,11],[64446,12,64446,13],[64446,6,64446,7],[64446,8,64446,9],[64528,10,64528,11],[64528,12,64528,13],[64446,14,64446,15],[64508,2,64508,3],[64508,4,64508,5],[64508,6,64508,7],[64508,8,64508,9],[64508,10,64508,11],[64508,12,64508,13],[64508,14,64508,15],[64446,2,64446,3],[64446,4,64446,5],[64364,14,64364,15],[64426,2,64426,3],[64426,4,64426,5],[64426,6,64426,7],[64426,8,64426,9],[64426,10,64426,11],[64426,12,64426,13],[64426,14,64426,15],[64364,2,64364,3],[64364,4,64364,5],[64364,6,64364,7],[64364,8,64364,9],[64282,10,64282,11],[64282,12,64282,13],[64282,6,64282,7],[64282,8,64282,9],[64364,10,64364,11],[64364,12,64364,13],[64282,14,64282,15],[64344,2,64344,3],[64344,4,64344,5],[64344,6,64344,7],[64344,8,64344,9],[64344,10,64344,11],[64344,12,64344,13],[64344,14,64344,15],[64282,2,64282,3],[64282,4,64282,5],[64200,14,64200,15],[64262,2,64262,3],[64262,4,64262,5],[64262,6,64262,7],[64262,8,64262,9],[64262,10,64262,11],[64262,12,64262,13],[64262,14,64262,15],[64200,2,64200,3],[64200,4,64200,5],[64200,6,64200,7],[64200,8,64200,9],[64118,10,64118,11],[64118,12,64118,13],[64118,6,64118,7],[64118,8,64118,9],[64200,10,64200,11],[64200,12,64200,13],[64118,14,64118,15],[64180,2,64180,3],[64180,4,64180,5],[64180,6,64180,7],[64180,8,64180,9],[64180,10,64180,11],[64180,12,64180,13],[64180,14,64180,15],[64118,2,64118,3],[64118,4,64118,5],[64036,14,64036,15],[64098,2,64098,3],[64098,4,64098,5],[64098,6,64098,7],[64098,8,64098,9],[64098,10,64098,11],[64098,12,64098,13],[64098,14,64098,15],[64036,2,64036,3],[64036,4,64036,5],[64036,6,64036,7],[64036,8,64036,9],[63954,10,63954,11],[63954,12,63954,13],[63954,6,63954,7],[63954,8,63954,9],[64036,10,64036,11],[64036,12,64036,13],[63954,14,63954,15],[64016,2,64016,3],[64016,4,64016,5],[64016,6,64016,7],[64016,8,64016,9],[64016,10,64016,11],[64016,12,64016,13],[64016,14,64016,15],[63954,2,63954,3],[63954,4,63954,5],[63872,14,63872,15],[63934,2,63934,3],[63934,4,63934,5],[63934,6,63934,7],[63934,8,63934,9],[63934,10,63934,11],[63934,12,63934,13],[63934,14,63934,15],[63872,2,63872,3],[63872,4,63872,5],[63872,6,63872,7],[63872,8,63872,9],[63790,10,63790,11],[63790,12,63790,13],[63790,6,63790,7],[63790,8,63790,9],[63872,10,63872,11],[63872,12,63872,13],[63790,14,63790,15],[63852,2,63852,3],[63852,4,63852,5],[63852,6,63852,7],[63852,8,63852,9],[63852,10,63852,11],[63852,12,63852,13],[63852,14,63852,15],[63790,2,63790,3],[63790,4,63790,5],[63708,14,63708,15],[63770,2,63770,3],[63770,4,63770,5],[63770,6,63770,7],[63770,8,63770,9],[63770,10,63770,11],[63770,12,63770,13],[63770,14,63770,15],[63708,2,63708,3],[63708,4,63708,5],[63708,6,63708,7],[63708,8,63708,9],[63626,10,63626,11],[63626,12,63626,13],[63626,6,63626,7],[63626,8,63626,9],[63708,10,63708,11],[63708,12,63708,13],[63626,14,63626,15],[63688,2,63688,3],[63688,4,63688,5],[63688,6,63688,7],[63688,8,63688,9],[63688,10,63688,11],[63688,12,63688,13],[63688,14,63688,15],[63626,2,63626,3],[63626,4,63626,5],[63544,14,63544,15],[63606,2,63606,3],[63606,4,63606,5],[63606,6,63606,7],[63606,8,63606,9],[63606,10,63606,11],[63606,12,63606,13],[63606,14,63606,15],[63544,2,63544,3],[63544,4,63544,5],[63544,6,63544,7],[63544,8,63544,9],[63462,10,63462,11],[63462,12,63462,13],[63462,6,63462,7],[63462,8,63462,9],[63544,10,63544,11],[63544,12,63544,13],[63462,14,63462,15],[63524,2,63524,3],[63524,4,63524,5],[63524,6,63524,7],[63524,8,63524,9],[63524,10,63524,11],[63524,12,63524,13],[63524,14,63524,15],[63462,2,63462,3],[63462,4,63462,5],[63380,14,63380,15],[63442,2,63442,3],[63442,4,63442,5],[63442,6,63442,7],[63442,8,63442,9],[63442,10,63442,11],[63442,12,63442,13],[63442,14,63442,15],[63380,2,63380,3],[63380,4,63380,5],[63380,6,63380,7],[63380,8,63380,9],[63298,10,63298,11],[63298,12,63298,13],[63298,6,63298,7],[63298,8,63298,9],[63380,10,63380,11],[63380,12,63380,13],[63298,14,63298,15],[63360,2,63360,3],[63360,4,63360,5],[63360,6,63360,7],[63360,8,63360,9],[63360,10,63360,11],[63360,12,63360,13],[63360,14,63360,15],[63298,2,63298,3],[63298,4,63298,5],[63216,14,63216,15],[63278,2,63278,3],[63278,4,63278,5],[63278,6,63278,7],[63278,8,63278,9],[63278,10,63278,11],[63278,12,63278,13],[63278,14,63278,15],[63216,2,63216,3],[63216,4,63216,5],[63216,6,63216,7],[63216,8,63216,9],[63134,10,63134,11],[63134,12,63134,13],[63134,6,63134,7],[63134,8,63134,9],[63216,10,63216,11],[63216,12,63216,13],[63134,14,63134,15],[63196,2,63196,3],[63196,4,63196,5],[63196,6,63196,7],[63196,8,63196,9],[63196,10,63196,11],[63196,12,63196,13],[63196,14,63196,15],[63134,2,63134,3],[63134,4,63134,5],[63052,14,63052,15],[63114,2,63114,3],[63114,4,63114,5],[63114,6,63114,7],[63114,8,63114,9],[63114,10,63114,11],[63114,12,63114,13],[63114,14,63114,15],[63052,2,63052,3],[63052,4,63052,5],[63052,6,63052,7],[63052,8,63052,9],[62970,10,62970,11],[62970,12,62970,13],[62970,6,62970,7],[62970,8,62970,9],[63052,10,63052,11],[63052,12,63052,13],[62970,14,62970,15],[63032,2,63032,3],[63032,4,63032,5],[63032,6,63032,7],[63032,8,63032,9],[63032,10,63032,11],[63032,12,63032,13],[63032,14,63032,15],[62970,2,62970,3],[62970,4,62970,5],[62888,14,62888,15],[62950,2,62950,3],[62950,4,62950,5],[62950,6,62950,7],[62950,8,62950,9],[62950,10,62950,11],[62950,12,62950,13],[62950,14,62950,15],[62888,2,62888,3],[62888,4,62888,5],[62888,6,62888,7],[62888,8,62888,9],[62806,10,62806,11],[62806,12,62806,13],[62806,6,62806,7],[62806,8,62806,9],[62888,10,62888,11],[62888,12,62888,13],[62806,14,62806,15],[62868,2,62868,3],[62868,4,62868,5],[62868,6,62868,7],[62868,8,62868,9],[62868,10,62868,11],[62868,12,62868,13],[62868,14,62868,15],[62806,2,62806,3],[62806,4,62806,5],[62724,14,62724,15],[62786,2,62786,3],[62786,4,62786,5],[62786,6,62786,7],[62786,8,62786,9],[62786,10,62786,11],[62786,12,62786,13],[62786,14,62786,15],[62724,2,62724,3],[62724,4,62724,5],[62724,6,62724,7],[62724,8,62724,9],[62642,10,62642,11],[62642,12,62642,13],[62642,6,62642,7],[62642,8,62642,9],[62724,10,62724,11],[62724,12,62724,13],[62642,14,62642,15],[62704,2,62704,3],[62704,4,62704,5],[62704,6,62704,7],[62704,8,62704,9],[62704,10,62704,11],[62704,12,62704,13],[62704,14,62704,15],[62642,2,62642,3],[62642,4,62642,5],[62560,14,62560,15],[62622,2,62622,3],[62622,4,62622,5],[62622,6,62622,7],[62622,8,62622,9],[62622,10,62622,11],[62622,12,62622,13],[62622,14,62622,15],[62560,2,62560,3],[62560,4,62560,5],[62560,6,62560,7],[62560,8,62560,9],[62478,10,62478,11],[62478,12,62478,13],[62478,6,62478,7],[62478,8,62478,9],[62560,10,62560,11],[62560,12,62560,13],[62478,14,62478,15],[62540,2,62540,3],[62540,4,62540,5],[62540,6,62540,7],[62540,8,62540,9],[62540,10,62540,11],[62540,12,62540,13],[62540,14,62540,15],[62478,2,62478,3],[62478,4,62478,5],[62396,14,62396,15],[62458,2,62458,3],[62458,4,62458,5],[62458,6,62458,7],[62458,8,62458,9],[62458,10,62458,11],[62458,12,62458,13],[62458,14,62458,15],[62396,2,62396,3],[62396,4,62396,5],[62396,6,62396,7],[62396,8,62396,9],[62314,10,62314,11],[62314,12,62314,13],[62314,6,62314,7],[62314,8,62314,9],[62396,10,62396,11],[62396,12,62396,13],[62314,14,62314,15],[62376,2,62376,3],[62376,4,62376,5],[62376,6,62376,7],[62376,8,62376,9],[62376,10,62376,11],[62376,12,62376,13],[62376,14,62376,15],[62314,2,62314,3],[62314,4,62314,5],[62232,14,62232,15],[62294,2,62294,3],[62294,4,62294,5],[62294,6,62294,7],[62294,8,62294,9],[62294,10,62294,11],[62294,12,62294,13],[62294,14,62294,15],[62232,2,62232,3],[62232,4,62232,5],[62232,6,62232,7],[62232,8,62232,9],[62150,10,62150,11],[62150,12,62150,13],[62150,6,62150,7],[62150,8,62150,9],[62232,10,62232,11],[62232,12,62232,13],[62150,14,62150,15],[62212,2,62212,3],[62212,4,62212,5],[62212,6,62212,7],[62212,8,62212,9],[62212,10,62212,11],[62212,12,62212,13],[62212,14,62212,15],[62150,2,62150,3],[62150,4,62150,5],[62068,14,62068,15],[62130,2,62130,3],[62130,4,62130,5],[62130,6,62130,7],[62130,8,62130,9],[62130,10,62130,11],[62130,12,62130,13],[62130,14,62130,15],[62068,2,62068,3],[62068,4,62068,5],[62068,6,62068,7],[62068,8,62068,9],[61986,10,61986,11],[61986,12,61986,13],[61986,6,61986,7],[61986,8,61986,9],[62068,10,62068,11],[62068,12,62068,13],[61986,14,61986,15],[62048,2,62048,3],[62048,4,62048,5],[62048,6,62048,7],[62048,8,62048,9],[62048,10,62048,11],[62048,12,62048,13],[62048,14,62048,15],[61986,2,61986,3],[61986,4,61986,5],[61904,14,61904,15],[61966,2,61966,3],[61966,4,61966,5],[61966,6,61966,7],[61966,8,61966,9],[61966,10,61966,11],[61966,12,61966,13],[61966,14,61966,15],[61904,2,61904,3],[61904,4,61904,5],[61904,6,61904,7],[61904,8,61904,9],[61822,10,61822,11],[61822,12,61822,13],[61822,6,61822,7],[61822,8,61822,9],[61904,10,61904,11],[61904,12,61904,13],[61822,14,61822,15],[61884,2,61884,3],[61884,4,61884,5],[61884,6,61884,7],[61884,8,61884,9],[61884,10,61884,11],[61884,12,61884,13],[61884,14,61884,15],[61822,2,61822,3],[61822,4,61822,5],[61740,14,61740,15],[61802,2,61802,3],[61802,4,61802,5],[61802,6,61802,7],[61802,8,61802,9],[61802,10,61802,11],[61802,12,61802,13],[61802,14,61802,15],[61740,2,61740,3],[61740,4,61740,5],[61740,6,61740,7],[61740,8,61740,9],[61658,10,61658,11],[61658,12,61658,13],[61658,6,61658,7],[61658,8,61658,9],[61740,10,61740,11],[61740,12,61740,13],[61658,14,61658,15],[61720,2,61720,3],[61720,4,61720,5],[61720,6,61720,7],[61720,8,61720,9],[61720,10,61720,11],[61720,12,61720,13],[61720,14,61720,15],[61658,2,61658,3],[61658,4,61658,5],[61576,14,61576,15],[61638,2,61638,3],[61638,4,61638,5],[61638,6,61638,7],[61638,8,61638,9],[61638,10,61638,11],[61638,12,61638,13],[61638,14,61638,15],[61576,2,61576,3],[61576,4,61576,5],[61576,6,61576,7],[61576,8,61576,9],[61494,10,61494,11],[61494,12,61494,13],[61494,6,61494,7],[61494,8,61494,9],[61576,10,61576,11],[61576,12,61576,13],[61494,14,61494,15],[61556,2,61556,3],[61556,4,61556,5],[61556,6,61556,7],[61556,8,61556,9],[61556,10,61556,11],[61556,12,61556,13],[61556,14,61556,15],[61494,2,61494,3],[61494,4,61494,5],[61412,14,61412,15],[61474,2,61474,3],[61474,4,61474,5],[61474,6,61474,7],[61474,8,61474,9],[61474,10,61474,11],[61474,12,61474,13],[61474,14,61474,15],[61412,2,61412,3],[61412,4,61412,5],[61412,6,61412,7],[61412,8,61412,9],[61330,10,61330,11],[61330,12,61330,13],[61330,6,61330,7],[61330,8,61330,9],[61412,10,61412,11],[61412,12,61412,13],[61330,14,61330,15],[61392,2,61392,3],[61392,4,61392,5],[61392,6,61392,7],[61392,8,61392,9],[61392,10,61392,11],[61392,12,61392,13],[61392,14,61392,15],[61330,2,61330,3],[61330,4,61330,5],[61248,14,61248,15],[61310,2,61310,3],[61310,4,61310,5],[61310,6,61310,7],[61310,8,61310,9],[61310,10,61310,11],[61310,12,61310,13],[61310,14,61310,15],[61248,2,61248,3],[61248,4,61248,5],[61248,6,61248,7],[61248,8,61248,9],[61166,10,61166,11],[61166,12,61166,13],[61166,6,61166,7],[61166,8,61166,9],[61248,10,61248,11],[61248,12,61248,13],[61166,14,61166,15],[61228,2,61228,3],[61228,4,61228,5],[61228,6,61228,7],[61228,8,61228,9],[61228,10,61228,11],[61228,12,61228,13],[61228,14,61228,15],[61166,2,61166,3],[61166,4,61166,5],[61084,14,61084,15],[61146,2,61146,3],[61146,4,61146,5],[61146,6,61146,7],[61146,8,61146,9],[61146,10,61146,11],[61146,12,61146,13],[61146,14,61146,15],[61084,2,61084,3],[61084,4,61084,5],[61084,6,61084,7],[61084,8,61084,9],[61002,10,61002,11],[61002,12,61002,13],[61002,6,61002,7],[61002,8,61002,9],[61084,10,61084,11],[61084,12,61084,13],[61002,14,61002,15],[61064,2,61064,3],[61064,4,61064,5],[61064,6,61064,7],[61064,8,61064,9],[61064,10,61064,11],[61064,12,61064,13],[61064,14,61064,15],[61002,2,61002,3],[61002,4,61002,5],[60920,14,60920,15],[60982,2,60982,3],[60982,4,60982,5],[60982,6,60982,7],[60982,8,60982,9],[60982,10,60982,11],[60982,12,60982,13],[60982,14,60982,15],[60920,2,60920,3],[60920,4,60920,5],[60920,6,60920,7],[60920,8,60920,9],[60838,10,60838,11],[60838,12,60838,13],[60838,6,60838,7],[60838,8,60838,9],[60920,10,60920,11],[60920,12,60920,13],[60838,14,60838,15],[60900,2,60900,3],[60900,4,60900,5],[60900,6,60900,7],[60900,8,60900,9],[60900,10,60900,11],[60900,12,60900,13],[60900,14,60900,15],[60838,2,60838,3],[60838,4,60838,5],[60756,14,60756,15],[60818,2,60818,3],[60818,4,60818,5],[60818,6,60818,7],[60818,8,60818,9],[60818,10,60818,11],[60818,12,60818,13],[60818,14,60818,15],[60756,2,60756,3],[60756,4,60756,5],[60756,6,60756,7],[60756,8,60756,9],[60674,10,60674,11],[60674,12,60674,13],[60674,6,60674,7],[60674,8,60674,9],[60756,10,60756,11],[60756,12,60756,13],[60674,14,60674,15],[60736,2,60736,3],[60736,4,60736,5],[60736,6,60736,7],[60736,8,60736,9],[60736,10,60736,11],[60736,12,60736,13],[60736,14,60736,15],[60674,2,60674,3],[60674,4,60674,5],[60592,14,60592,15],[60654,2,60654,3],[60654,4,60654,5],[60654,6,60654,7],[60654,8,60654,9],[60654,10,60654,11],[60654,12,60654,13],[60654,14,60654,15],[60592,2,60592,3],[60592,4,60592,5],[60592,6,60592,7],[60592,8,60592,9],[60510,10,60510,11],[60510,12,60510,13],[60510,6,60510,7],[60510,8,60510,9],[60592,10,60592,11],[60592,12,60592,13],[60510,14,60510,15],[60572,2,60572,3],[60572,4,60572,5],[60572,6,60572,7],[60572,8,60572,9],[60572,10,60572,11],[60572,12,60572,13],[60572,14,60572,15],[60510,2,60510,3],[60510,4,60510,5],[60428,14,60428,15],[60490,2,60490,3],[60490,4,60490,5],[60490,6,60490,7],[60490,8,60490,9],[60490,10,60490,11],[60490,12,60490,13],[60490,14,60490,15],[60428,2,60428,3],[60428,4,60428,5],[60428,6,60428,7],[60428,8,60428,9],[60346,10,60346,11],[60346,12,60346,13],[60346,6,60346,7],[60346,8,60346,9],[60428,10,60428,11],[60428,12,60428,13],[60346,14,60346,15],[60408,2,60408,3],[60408,4,60408,5],[60408,6,60408,7],[60408,8,60408,9],[60408,10,60408,11],[60408,12,60408,13],[60408,14,60408,15],[60346,2,60346,3],[60346,4,60346,5],[60264,14,60264,15],[60326,2,60326,3],[60326,4,60326,5],[60326,6,60326,7],[60326,8,60326,9],[60326,10,60326,11],[60326,12,60326,13],[60326,14,60326,15],[60264,2,60264,3],[60264,4,60264,5],[60264,6,60264,7],[60264,8,60264,9],[60182,10,60182,11],[60182,12,60182,13],[60182,6,60182,7],[60182,8,60182,9],[60264,10,60264,11],[60264,12,60264,13],[60182,14,60182,15],[60244,2,60244,3],[60244,4,60244,5],[60244,6,60244,7],[60244,8,60244,9],[60244,10,60244,11],[60244,12,60244,13],[60244,14,60244,15],[60182,2,60182,3],[60182,4,60182,5],[60100,14,60100,15],[60162,2,60162,3],[60162,4,60162,5],[60162,6,60162,7],[60162,8,60162,9],[60162,10,60162,11],[60162,12,60162,13],[60162,14,60162,15],[60100,2,60100,3],[60100,4,60100,5],[60100,6,60100,7],[60100,8,60100,9],[60018,10,60018,11],[60018,12,60018,13],[60018,6,60018,7],[60018,8,60018,9],[60100,10,60100,11],[60100,12,60100,13],[60018,14,60018,15],[60080,2,60080,3],[60080,4,60080,5],[60080,6,60080,7],[60080,8,60080,9],[60080,10,60080,11],[60080,12,60080,13],[60080,14,60080,15],[60018,2,60018,3],[60018,4,60018,5],[59936,14,59936,15],[59998,2,59998,3],[59998,4,59998,5],[59998,6,59998,7],[59998,8,59998,9],[59998,10,59998,11],[59998,12,59998,13],[59998,14,59998,15],[59936,2,59936,3],[59936,4,59936,5],[59936,6,59936,7],[59936,8,59936,9],[59854,10,59854,11],[59854,12,59854,13],[59854,6,59854,7],[59854,8,59854,9],[59936,10,59936,11],[59936,12,59936,13],[59854,14,59854,15],[59916,2,59916,3],[59916,4,59916,5],[59916,6,59916,7],[59916,8,59916,9],[59916,10,59916,11],[59916,12,59916,13],[59916,14,59916,15],[59854,2,59854,3],[59854,4,59854,5],[59772,14,59772,15],[59834,2,59834,3],[59834,4,59834,5],[59834,6,59834,7],[59834,8,59834,9],[59834,10,59834,11],[59834,12,59834,13],[59834,14,59834,15],[59772,2,59772,3],[59772,4,59772,5],[59772,6,59772,7],[59772,8,59772,9],[59690,10,59690,11],[59690,12,59690,13],[59690,6,59690,7],[59690,8,59690,9],[59772,10,59772,11],[59772,12,59772,13],[59690,14,59690,15],[59752,2,59752,3],[59752,4,59752,5],[59752,6,59752,7],[59752,8,59752,9],[59752,10,59752,11],[59752,12,59752,13],[59752,14,59752,15],[59690,2,59690,3],[59690,4,59690,5],[59608,14,59608,15],[59670,2,59670,3],[59670,4,59670,5],[59670,6,59670,7],[59670,8,59670,9],[59670,10,59670,11],[59670,12,59670,13],[59670,14,59670,15],[59608,2,59608,3],[59608,4,59608,5],[59608,6,59608,7],[59608,8,59608,9],[59526,10,59526,11],[59526,12,59526,13],[59526,6,59526,7],[59526,8,59526,9],[59608,10,59608,11],[59608,12,59608,13],[59526,14,59526,15],[59588,2,59588,3],[59588,4,59588,5],[59588,6,59588,7],[59588,8,59588,9],[59588,10,59588,11],[59588,12,59588,13],[59588,14,59588,15],[59526,2,59526,3],[59526,4,59526,5],[59444,14,59444,15],[59506,2,59506,3],[59506,4,59506,5],[59506,6,59506,7],[59506,8,59506,9],[59506,10,59506,11],[59506,12,59506,13],[59506,14,59506,15],[59444,2,59444,3],[59444,4,59444,5],[59444,6,59444,7],[59444,8,59444,9],[59362,10,59362,11],[59362,12,59362,13],[59362,6,59362,7],[59362,8,59362,9],[59444,10,59444,11],[59444,12,59444,13],[59362,14,59362,15],[59424,2,59424,3],[59424,4,59424,5],[59424,6,59424,7],[59424,8,59424,9],[59424,10,59424,11],[59424,12,59424,13],[59424,14,59424,15],[59362,2,59362,3],[59362,4,59362,5],[59280,14,59280,15],[59342,2,59342,3],[59342,4,59342,5],[59342,6,59342,7],[59342,8,59342,9],[59342,10,59342,11],[59342,12,59342,13],[59342,14,59342,15],[59280,2,59280,3],[59280,4,59280,5],[59280,6,59280,7],[59280,8,59280,9],[59198,10,59198,11],[59198,12,59198,13],[59198,6,59198,7],[59198,8,59198,9],[59280,10,59280,11],[59280,12,59280,13],[59198,14,59198,15],[59260,2,59260,3],[59260,4,59260,5],[59260,6,59260,7],[59260,8,59260,9],[59260,10,59260,11],[59260,12,59260,13],[59260,14,59260,15],[59198,2,59198,3],[59198,4,59198,5],[59116,14,59116,15],[59178,2,59178,3],[59178,4,59178,5],[59178,6,59178,7],[59178,8,59178,9],[59178,10,59178,11],[59178,12,59178,13],[59178,14,59178,15],[59116,2,59116,3],[59116,4,59116,5],[59116,6,59116,7],[59116,8,59116,9],[59034,10,59034,11]],"merged_total":42768,"flags":["merged_cut"]}
[null,"B01001. GENDER BY AGE"]
[null,"Universe:  TOTAL POPULATION, Median Age"]
[null,"Data Set: 2015-2019 American Community Survey 5-Year Estimates"]
[]
[null,null,"Allenstown",null,"Andover",null,"Boscawen",null,"Bow",null,"Bradford",null,"Canterbury",null,"Chichester",null,"Concord",null,"Danbury",null,"Dunbarton",null,"Epsom",null,"Franklin",null,"Henniker",null,"Hill",null,"Hooksett",null,"Hopkinton",null,"Loudon",null,"Newbury",null,"New London",null,"Northfield",null,"Pembroke",null,"Pittsfield",null,"Salisbury",null,"Sutton",null,"Warner",null,"Webster",null,"Wilmot"]
[null,null,"Estimate","Margin Of Error","Estimate","Margin Of Error","Estimate","Margin Of Error","Estimate","Margin Of Error","Estimate","Margin Of Error","Estimate","Margin Of Error","Estimate","Margin Of Error","Estimate","Margin Of Error","Estimate","Margin Of Error","Estimate","Margin Of Error","Estimate","Margin Of Error","Estimate","Margin Of Error","Estimate","Margin Of Error","Estimate","Margin Of Error","Estimate","Margin Of Error","Estimate","Margin Of Error","Estimate","Margin Of Error","Estimate","Margin Of Error","Estimate","Margin Of Error","Estimate","Margin Of Error","Estimate","Margin Of Error","Estimate","Margin Of Error","Estimate","Margin Of Error","Estimate","Margin Of Error","Estimate","Margin Of Error","Estimate","Margin Of Error","Estimate","Margin Of Error"]
[null,"Total:",42.2,3.5,42.2,3.8,44.7,2.8,44,2.5,48.3,5.3,47.6,2.6,44.2,2.7,40.200000000000003,1.2,46.7,4.2,42.5,3,44.9,2,48.1,2.4,36.200000000000003,6.5,50.1,7.5,39.4,2.2000000000000002,49.1,3.4,49.7,4.5999999999999996,53.7,3,42,7.7,37.5,5.4,40.299999999999997,4.2,44,6.2,51.1,4.7,45.9,8.9,42.1,4.7,49.3,5.2,51.5,5.0999999999999996]
[null,"Male:",40.799999999999997,3,40.799999999999997,9.8000000000000007,43.8,3.8,40.9,2.2999999999999998,44.2,8.9,48.6,2.1,43.6,4.8,37.4,1.7,48.2,3.6,44,4.0999999999999996,43.4,6.3,46.8,4,32.799999999999997,7.7,47.4,8.1999999999999993,39.4,2.7,47.7,3.1,53.3,7.1,53.1,3.5,41.5,10.4,39.799999999999997,6.6,41,6.9,39,10,49.7,10.1,40,7.6,41.6,4.5,47.7,6,51.3,4.5]
[null,"Female:",44.8,6.8,45.1,5.3,44.9,5.9,46.6,1.6,49.5,4.0999999999999996,46.4,3.3,45.1,3.4,43.1,1.3,45.3,6.3,40.9,3.4,46.6,4,50.2,3.1,39.4,7.9,52,6.1,39.299999999999997,3.3,49.7,4.9000000000000004,44.7,10.4,54.7,3.2,42.3,9,34.799999999999997,6.4,37.9,5.0999999999999996,45.9,4.5999999999999996,52.3,4.5999999999999996,51.2,7,42.8,6.6,51.2,5.4,52.1,9.6999999999999993]
[]
[]
[]
[]
[]
[]
[]
[]
[]
[]
[]
[null,"B01001. GENDER BY AGE"]
[null,"Universe:  TOTAL POPULATION, Median Age"]
[null,"Data Set: 2010-2014 American Community Survey 5-Year Estimates"]
[]
[null,null,"Allenstown",null,"Andover",null,"Boscawen",null,"Bow",null,"Bradford",null,"Canterbury",null,"Chichester",null,"Concord",null,"Danbury",null,"Dunbarton",null,"Epsom",null,"Franklin",null,"Henniker",null,"Hill",null,"Hooksett",null,"Hopkinton",null,"Loudon",null,"Newbury",null,"New London",null,"Northfield",null,"Pembroke",null,"Pittsfield",null,"Salisbury",null,"Sutton",null,"Warner",null,"Webster",null,"Wilmot"]
[null,null,"Estimate","Margin Of Error","Estimate","Margin Of Error","Estimate","Margin Of Error","Estimate","Margin Of Error","Estimate","Margin Of Error","Estimate","Margin Of Error","Estimate","Margin Of Error","Estimate","Margin Of Error","Estimate","Margin Of Error","Estimate","Margin Of Error","Estimate","Margin Of Error","Estimate","Margin Of Error","Estimate","Margin Of Error","Estimate","Margin Of Error","Estimate","Margin Of Error","Estimate","Margin Of Error","Estimate","Margin Of Error","Estimate","Margin Of Error","Estimate","Margin Of Error","Estimate","Margin Of Error","Estimate","Margin Of Error","Estimate","Margin Of Error","Estimate","Margin Of Error","Estimate","Margin Of Error","Estimate","Margin Of Error","Estimate","Margin Of Error","Estimate","Margin Of Error"]
[null,"Total:",41,2,48.6,5,42.7,6,45.4,1.5,47.9,4.2,48.7,2.7,48.4,4.9000000000000004,39.5,0.9,42.8,8.5,44.3,2.2000000000000002,45.6,1.8,41.5,3.7,30.9,6.5,46.9,3,40.6,2.2999999999999998,45.3,1.7,45.7,2.8,49.7,2.9,50.4,6.7,40.5,3.2,39.299999999999997,2.6,38.6,2.8,45.4,4,45.4,4.3,46.6,3.9,42.1,4.5999999999999996,45.6,5.5]
[null,"Male:",40.799999999999997,2.4,47.4,5.8,39.5,6.8,43.8,1.8,48.3,4.3,50.4,2.2999999999999998,46.2,4.5,38.5,1.3,42.9,9.5,46.4,2.1,41.9,3.1,38.6,3.9,30.5,8.9,46.8,3.9,40.799999999999997,2.9,45.1,3.3,44.8,3.4,47.3,2.4,49,12,40.299999999999997,4.8,35.799999999999997,4.9000000000000004,37.9,6.5,44,5.4,45.2,5.0999999999999996,46.8,5.6,40.6,4.5999999999999996,46.1,5]
[null,"Female:",41.4,3.6,50.3,6.1,47.2,9.4,46.1,2.2000000000000002,47.4,6.8,46.7,3.3,49.5,4.5999999999999996,40.5,1.2,42.7,12.4,42.5,2.8,48.9,4.3,44.4,4,31.4,6.6,47,3.6,40.4,2.9,45.3,2.1,46.8,2.8,52.3,2.2999999999999998,51.5,7.5,40.6,3.4,40.6,3.9,39,3,46.1,3.9,45.6,4.8,46.5,4.4000000000000004,44.3,5.2,45.2,9.1]
[]
[]
[]
[]
[]
[]
[]
[]
[]
[]
[]
[null,"B01001. GENDER BY AGE"]
[null,"Universe:  TOTAL POPULATION, Median Age"]
[null,"Data Set: 2005-2009 American Community Survey 5-Year Estimates"]
[]
[null,null,"Allenstown",null,"Andover",null,"Boscawen",null,"Bow",null,"Bradford",null,"Canterbury",null,"Chichester",null,"Concord",null,"Danbury",null,"Dunbarton",null,"Epsom",null,"Franklin",null,"Henniker",null,"Hill",null,"Hooksett",null,"Hopkinton",null,"Loudon",null,"Newbury",null,"New London",null,"Northfield",null,"Pembroke",null,"Pittsfield",null,"Salisbury",null,"Sutton",null,"Warner",null,"Webster",null,"Wilmot"]
[null,null,"Estimate","Margin Of Error","Estimate","Margin Of Error","Estimate","Margin Of Error","Estimate","Margin Of Error","Estimate","Margin Of Error","Estimate","Margin Of Error","Estimate","Margin Of Error","Estimate","Margin Of Error","Estimate","Margin Of Error","Estimate","Margin Of Error","Estimate","Margin Of Error","Estimate","Margin Of Error","Estimate","Margin Of Error","Estimate","Margin Of Error","Estimate","Margin Of Error","Estimate","Margin Of Error","Estimate","Margin Of Error","Estimate","Margin Of Error","Estimate","Margin Of Error","Estimate","Margin Of Error","Estimate","Margin Of Error","Estimate","Margin Of Error","Estimate","Margin Of Error","Estimate","Margin Of Error","Estimate","Margin Of Error","Estimate","Margin Of Error","Estimate","Margin Of Error"]
[null,"Total:",34.700000000000003,3,42.6,6.2,42.1,3.4,44.4,1.6,49.5,2.5,43.2,1.5,40.700000000000003,3.8,38.299999999999997,1,40.200000000000003,4.8,42.8,1.6,37.700000000000003,3.2,38.700000000000003,3.1,35,4.7,39.5,6.2,37.1,1.5,45.4,3,41.3,2.5,41.4,4.0999999999999996,44.7,6.7,36.9,2.6,37.700000000000003,3.6,39,3.5,42.7,3.4,44.6,4.2,42.9,5.2,43.7,1.8,48.5,3.6]
[null,"Male:",33,4.0999999999999996,40.299999999999997,5.2,40.200000000000003,6.5,42.8,2,51.3,3,40.299999999999997,6.1,40,3.3,36.1,1.4,39.9,8.8000000000000007,42,2.4,33.299999999999997,8.4,37.6,3.3,32.6,6.3,39.200000000000003,10,36.700000000000003,2.1,45.1,3,39.5,4.9000000000000004,40.9,6.9,46.3,4.5,38.299999999999997,3.9,38,3.4,38.9,3.1,41.4,3.6,46.5,2.4,42.2,6.4,43.2,2,49.4,6.3]
[null,"Female:",39.200000000000003,2.7,45.9,4.5999999999999996,45,7.3,46.1,1.8,48.4,3.9,44,1.6,42.5,4.4000000000000004,40.5,1.3,40.9,6.4,43.2,1.7,40.700000000000003,3.8,40.6,4.3,38.200000000000003,5.3,39.799999999999997,4.2,37.4,1.9,46.1,4.9000000000000004,42.7,3.2,41.9,3.9,43.5,10.3,35.200000000000003,3.4,36.9,6.5,40.4,4.7,44.5,3.2,40.200000000000003,13.3,43.7,7.9,44.3,3.2,48.2,4.8]

{"sheet":"ACS_Tbl_B11001_B11002_B25010","index":21,"n_rows":202,"n_cols":56,"rows_kept":202,"cut":false,"hidden":true,"merged":[]}
[null,"B11001. HOUSEHOLD TYPE (INCLUDING LIVING ALONE)"]
[null,"Universe:  HOUSEHOLDS"]
[null,"Data Set: 2015-2019 American Community Survey 5-Year Estimates"]
[]
[null,null,"Allenstown",null,"Andover",null,"Boscawen",null,"Bow",null,"Bradford",null,"Canterbury",null,"Chichester",null,"Concord",null,"Danbury",null,"Dunbarton",null,"Epsom",null,"Franklin",null,"Henniker",null,"Hill",null,"Hooksett",null,"Hopkinton",null,"Loudon",null,"Newbury",null,"New London",null,"Northfield",null,"Pembroke",null,"Pittsfield",null,"Salisbury",null,"Sutton",null,"Warner",null,"Webster",null,"Wilmot"]
[null,null,"Estimate","Margin Of Error","Estimate","Margin Of Error","Estimate","Margin Of Error","Estimate","Margin Of Error","Estimate","Margin Of Error","Estimate","Margin Of Error","Estimate","Margin Of Error","Estimate","Margin Of Error","Estimate","Margin Of Error","Estimate","Margin Of Error","Estimate","Margin Of Error","Estimate","Margin Of Error","Estimate","Margin Of Error","Estimate","Margin Of Error","Estimate","Margin Of Error","Estimate","Margin Of Error","Estimate","Margin Of Error","Estimate","Margin Of Error","Estimate","Margin Of Error","Estimate","Margin Of Error","Estimate","Margin Of Error","Estimate","Margin Of Error","Estimate","Margin Of Error","Estimate","Margin Of Error","Estimate","Margin Of Error","Estimate","Margin Of Error","Estimate","Margin Of Error"]
[null,"Total:",1788,107,1054,90,1374,112,2715,130,647,67,970,60,969,55,17530,366,481,65,938,45,1787,124,3909,223,1805,127,373,48,5252,190,2193,126,2050,174,910,86,1551,161,1860,118,2690,164,1675,159,554,65,769,91,1144,96,760,72,704,71]
[null,"Family households:",1160,82,718,92,847,104,2273,100,416,59,617,61,776,46,10213,376,311,54,801,37,1301,112,2245,164,1184,113,252,44,3688,195,1715,125,1515,148,671,80,953,86,1365,120,1976,170,993,110,432,58,555,86,748,90,559,62,494,68]
[null,"Married-couple family",866,108,608,92,677,105,2110,109,355,55,531,67,647,53,7661,343,264,53,746,45,1084,116,1592,143,924,122,211,38,3220,223,1450,147,1393,137,582,79,846,97,883,105,1450,171,795,159,373,51,481,81,589,82,465,59,428,67]
[null,"Other family:",294,84,110,54,170,88,163,69,61,31,86,34,129,46,2552,317,47,18,55,29,217,77,653,154,260,109,41,26,468,118,265,135,122,93,89,46,107,59,482,110,526,166,198,100,59,24,74,36,159,58,94,34,66,28]
[null,"Male householder, no spouse present",66,57,44,26,50,35,54,37,14,9,39,25,41,27,666,147,18,12,25,18,82,56,128,63,124,87,19,12,186,76,66,54,55,54,33,36,31,32,243,118,166,103,126,85,34,22,11,13,31,18,58,29,29,22]
[null,"Female householder, no husband present",228,67,66,48,120,86,109,55,47,30,47,25,88,50,1886,269,29,13,30,22,135,59,525,150,136,72,22,23,282,86,199,131,67,72,56,31,76,47,239,95,360,140,72,52,25,13,63,33,128,55,36,19,37,24]
[null,"Nonfamily households:",628,124,336,85,527,125,442,90,231,49,353,63,193,60,7317,423,170,54,137,42,486,125,1664,284,621,153,121,33,1564,229,478,140,535,149,239,57,598,157,495,133,714,150,682,161,122,38,214,64,396,91,201,47,210,54]
[null,"Householder living alone",544,118,247,77,360,107,406,84,197,43,312,63,128,55,5789,414,127,41,93,32,313,101,1355,289,455,139,79,28,989,213,346,116,367,135,173,46,535,140,415,126,448,160,553,157,80,35,180,60,295,81,152,38,181,54]
[null,"Householder not living alone",84,51,89,51,167,83,36,30,34,24,41,26,65,40,1528,225,43,28,44,24,173,65,309,101,166,100,42,19,575,182,132,92,168,103,66,36,63,41,80,57,266,123,129,72,42,21,34,22,101,54,49,25,29,19]
[]
[]
[]
[]
[]
[]
[]
[]
[]
[]
[]
[]
[]
[]
[]
[]
[]
[null,"B11002. HOUSEHOLD TYPE BY RELATIVES AND NONRELATIVES FOR POPULATION IN HOUSEHOLDS "]
[null,"Universe:  POPULATION IN HOUSEHOLDS"]
[null,"Data Set: 2015-2019 American Community Survey 5-Year Estimates"]
[]
[null,null,{"$f":"C5","v":"Allenstown"},null,"Andover",null,"Boscawen",null,"Bow",null,"Bradford",null,"Canterbury",null,"Chichester",null,"Concord",null,"Danbury",null,"Dunbarton",null,"Epsom",null,"Franklin",null,"Henniker",null,"Hill",null,"Hooksett",null,"Hopkinton",null,"Loudon",null,"Newbury",null,"New London",null,"Northfield",null,"Pembroke",null,"Pittsfield",null,"Salisbury",null,"Sutton",null,"Warner",null,"Webster",null,"Wilmot"]
[null,null,"Estimate","Margin Of Error","Estimate","Margin Of Error","Estimate","Margin Of Error","Estimate","Margin Of Error","Estimate","Margin Of Error","Estimate","Margin Of Error","Estimate","Margin Of Error","Estimate","Margin Of Error","Estimate","Margin Of Error","Estimate","Margin Of Error","Estimate","Margin Of Error","Estimate","Margin Of Error","Estimate","Margin Of Error","Estimate","Margin Of Error","Estimate","Margin Of Error","Estimate","Margin Of Error","Estimate","Margin Of Error","Estimate","Margin Of Error","Estimate","Margin Of Error","Estimate","Margin Of Error","Estimate","Margin Of Error","Estimate","Margin Of Error","Estimate","Margin Of Error","Estimate","Margin Of Error","Estimate","Margin Of Error","Estimate","Margin Of Error","Estimate","Margin Of Error"]
[null,"Total:",4355,34,2700,281,3483,160,7862,25,1587,214,2344,148,2653,29,40170,489,1129,165,2827,19,4612,122,8388,103,4473,142,920,148,13443,170,5691,29,5534,19,2096,214,3363,191,4834,79,7187,32,4095,24,1422,182,1905,279,2765,118,1741,176,1632,216]
[null,"In family households:",3653,151,2162,273,2709,280,7379,106,1312,223,1947,160,2396,95,30977,749,915,166,2642,65,3939,223,6409,309,3585,319,753,153,11089,482,5049,226,4827,215,1789,219,2700,206,4247,197,6059,320,3294,188,1255,183,1658,291,2251,176,1495,177,1382,221]
[null,"In married-couple family:",2771,309,1813,262,2230,307,6877,239,1077,198,1654,205,1944,182,23395,879,753,163,2397,125,3295,304,4434,428,2874,382,598,117,9619,564,4227,383,4450,321,1569,236,2402,246,2864,319,4477,530,2552,419,1060,161,1443,285,1785,235,1232,168,1209,225]
[null,"Relatives",2697,305,1806,261,2197,301,6830,239,1065,197,1583,194,1919,183,23265,872,742,159,2363,126,3267,305,4412,422,2829,372,590,117,9560,560,4214,381,4275,337,1569,236,2402,246,2763,292,4438,522,2552,419,1050,161,1438,283,1763,235,1225,165,1205,225]
[null,"Nonrelatives",74,77,7,10,33,38,47,37,12,17,71,48,25,22,130,62,11,16,34,40,28,34,22,24,45,49,8,7,59,49,13,22,175,134,0,11,0,11,101,77,39,46,0,11,10,11,5,8,22,18,7,7,4,6]
[null,"In male householder, no spouse present, family:",158,126,145,83,137,97,169,115,37,24,141,97,149,106,2227,494,62,39,104,69,242,166,364,189,297,207,59,34,572,254,275,231,173,171,69,65,99,95,672,344,513,305,518,395,106,71,41,50,92,58,154,71,76,53]
[null,"Relatives",138,116,123,70,117,84,161,111,33,21,115,79,125,86,1715,370,54,34,87,59,221,150,347,181,293,206,48,28,496,223,219,191,156,155,69,65,99,95,546,250,424,240,286,186,102,71,22,24,79,47,148,69,69,50]
[null,"Nonrelatives",20,23,22,18,20,23,8,12,4,6,26,22,24,22,512,175,8,8,17,18,21,28,17,23,4,8,11,12,76,72,56,88,17,27,0,11,0,11,126,115,89,80,232,246,4,6,19,26,13,16,6,7,7,8]
[null,"In female householder, no husband present, family:",724,240,204,163,342,250,333,169,198,150,152,81,303,179,5355,725,100,52,141,91,402,187,1611,434,414,243,96,103,898,305,547,337,204,228,151,78,199,122,711,310,1069,420,224,158,89,49,174,88,374,166,109,61,97,60]
[null,"Relatives",677,225,172,133,319,248,325,163,185,143,134,70,268,151,5054,676,94,50,96,65,378,165,1429,383,371,214,78,86,784,255,468,299,146,154,140,76,176,108,684,298,882,349,224,158,72,39,171,87,334,142,96,51,92,58]
[null,"Nonrelatives",47,49,32,32,23,24,8,13,13,15,18,17,35,36,301,99,6,7,45,30,24,67,182,105,43,43,18,19,114,74,79,89,58,96,11,7,23,28,27,33,187,181,0,11,17,12,3,5,40,30,13,13,5,6]
[null,"In nonfamily households",702,146,538,211,774,242,483,107,275,71,397,76,257,87,9193,535,214,74,185,61,673,174,1979,312,888,270,167,47,2354,469,642,223,707,219,307,85,663,182,587,168,1128,322,801,190,167,53,247,73,514,136,246,62,250,66]
[]
[]
[]
[null,"Calculated Average  Household Size by Household Type"]
[null,"Universe:  POPULATION IN HOUSEHOLDS"]
[null,"Data Set: 2015-2019 American Community Survey 5-Year Estimates"]
[]
[null,null,"Allenstown",null,"Andover",null,"Boscawen",null,"Bow",null,"Bradford",null,"Canterbury",null,"Chichester",null,"Concord",null,"Danbury",null,"Dunbarton",null,"Epsom",null,"Franklin",null,"Henniker",null,"Hill",null,"Hooksett",null,"Hopkinton",null,"Loudon",null,"Newbury",null,"New London",null,"Northfield",null,"Pembroke",null,"Pittsfield",null,"Salisbury",null,"Sutton",null,"Warner",null,"Webster",null,"Wilmot"]
[null," ","Estimate","Margin of Error","Estimate","Margin of Error","Estimate","Margin of Error","Estimate","Margin of Error","Estimate","Margin of Error","Estimate","Margin of Error","Estimate","Margin of Error","Estimate","Margin of Error","Estimate","Margin of Error","Estimate","Margin of Error","Estimate","Margin of Error","Estimate","Margin of Error","Estimate","Margin of Error","Estimate","Margin of Error","Estimate","Margin of Error","Estimate","Margin of Error","Estimate","Margin of Error","Estimate","Margin of Error","Estimate","Margin of Error","Estimate","Margin of Error","Estimate","Margin of Error","Estimate","Margin of Error","Estimate","Margin of Error","Estimate","Margin of Error","Estimate","Margin of Error","Estimate","Margin of Error","Estimate","Margin of Error"]
[null,"Total:",{"$f":"C39/C7","v":2.4356823266219241},{"$f":"D73","v":0.15},{"$f":"E39/E7","v":2.5616698292220113},{"$f":"(SQRT((F$39^2)+((E$39^2)/(E$7^2))*(F$7^2)))/E$7","v":0.34485340856781155},{"$f":"G39/G7","v":2.534934497816594},{"$f":"(SQRT((H$39^2)+((G$39^2)/(G$7^2))*(H$7^2)))/G$7","v":0.23718576057764487},{"$f":"I39/I7","v":2.8957642725598527},{"$f":"(SQRT((J$39^2)+((I$39^2)/(I$7^2))*(J$7^2)))/I$7","v":0.13896079820142426},{"$f":"K39/K7","v":2.4528593508500771},{"$f":"(SQRT((L$39^2)+((K$39^2)/(K$7^2))*(L$7^2)))/K$7","v":0.41703624204102113},{"$f":"M39/M7","v":2.4164948453608246},{"$f":"(SQRT((N$39^2)+((M$39^2)/(M$7^2))*(N$7^2)))/M$7","v":0.21359374432206227},{"$f":"O39/O7","v":2.7378740970072237},{"$f":"(SQRT((P$39^2)+((O$39^2)/(O$7^2))*(P$7^2)))/O$7","v":0.15825606880611937},{"$f":"Q39/Q7","v":2.2915002852253279},{"$f":"(SQRT((R$39^2)+((Q$39^2)/(Q$7^2))*(R$7^2)))/Q$7","v":5.5381340875417476E-2},{"$f":"S39/S7","v":2.3471933471933473},{"$f":"(SQRT((T$39^2)+((S$39^2)/(S$7^2))*(T$7^2)))/S$7","v":0.46720622639986414},{"$f":"U39/U7","v":3.0138592750533051},{"$f":"(SQRT((V$39^2)+((U$39^2)/(U$7^2))*(V$7^2)))/U$7","v":0.14600009516353599},{"$f":"W39/W7","v":2.5808617795187465},{"$f":"(SQRT((X$39^2)+((W$39^2)/(W$7^2))*(X$7^2)))/W$7","v":0.1916578709083602},{"$f":"Y39/Y7","v":2.1458173445894091},{"$f":"(SQRT((Z$39^2)+((Y$39^2)/(Y$7^2))*(Z$7^2)))/Y$7","v":0.12521796955751649},{"$f":"AA39/AA7","v":2.4781163434903046},{"$f":"(SQRT((AB$39^2)+((AA$39^2)/(AA$7^2))*(AB$7^2)))/AA$7","v":0.19128675763739653},{"$f":"AC39/AC7","v":2.4664879356568363},{"$f":"(SQRT((AD$39^2)+((AC$39^2)/(AC$7^2))*(AD$7^2)))/AC$7","v":0.50811559847808963},{"$f":"AE39/AE7","v":2.5595963442498095},{"$f":"(SQRT((AF$39^2)+((AE$39^2)/(AE$7^2))*(AF$7^2)))/AE$7","v":9.8092141506637615E-2},{"$f":"AG39/AG7","v":2.5950752393980849},{"$f":"(SQRT((AH$39^2)+((AG$39^2)/(AG$7^2))*(AH$7^2)))/AG$7","v":0.14968671889272067},{"$f":"AI39/AI7","v":2.6995121951219514},{"$f":"(SQRT((AJ$39^2)+((AI$39^2)/(AI$7^2))*(AJ$7^2)))/AI$7","v":0.22931670261598308},{"$f":"AK39/AK7","v":2.3032967032967031},{"$f":"(SQRT((AL$39^2)+((AK$39^2)/(AK$7^2))*(AL$7^2)))/AK$7","v":0.3204443078050096},{"$f":"AM39/AM7","v":2.1682785299806575},{"$f":"(SQRT((AN$39^2)+((AM$39^2)/(AM$7^2))*(AN$7^2)))/AM$7","v":0.25656231520250633},{"$f":"AO39/AO7","v":2.5989247311827959},{"$f":"(SQRT((AP$39^2)+((AO$39^2)/(AO$7^2))*(AP$7^2)))/AO$7","v":0.17026076308681848},{"$f":"AQ39/AQ7","v":2.6717472118959109},{"$f":"(SQRT((AR$39^2)+((AQ$39^2)/(AQ$7^2))*(AR$7^2)))/AQ$7","v":0.16332100158685878},{"$f":"AS39/AS7","v":2.4447761194029849},{"$f":"(SQRT((AT$39^2)+((AS$39^2)/(AS$7^2))*(AT$7^2)))/AS$7","v":0.23251318960344391},{"$f":"AU39/AU7","v":2.5667870036101084},{"$f":"(SQRT((AV$39^2)+((AU$39^2)/(AU$7^2))*(AV$7^2)))/AU$7","v":0.44566918993899896},{"$f":"AW39/AW7","v":2.4772431729518858},{"$f":"(SQRT((AX$39^2)+((AW$39^2)/(AW$7^2))*(AX$7^2)))/AW$7","v":0.46643833769814957},{"$f":"AY39/AY7","v":2.4169580419580421},{"$f":"(SQRT((AZ$39^2)+((AY$39^2)/(AY$7^2))*(AZ$7^2)))/AY$7","v":0.22754317522814424},{"$f":"BA39/BA7","v":2.2907894736842107},{"$f":"(SQRT((BB$39^2)+((BA$39^2)/(BA$7^2))*(BB$7^2)))/BA$7","v":0.31737584514876499},{"$f":"BC39/BC7","v":2.3181818181818183},{"$f":"(SQRT((BD$39^2)+((BC$39^2)/(BC$7^2))*(BD$7^2)))/BC$7","v":0.38574212459885954}]
[null,"In family households:",{"$f":"C40/C8","v":3.1491379310344829},{"$f":"(SQRT((D$40^2)+((C$40^2)/(C$8^2))*(D$8^2)))/C$8","v":0.25787734654857719},{"$f":"E40/E8","v":3.0111420612813369},{"$f":"(SQRT((F$40^2)+((E$40^2)/(E$8^2))*(F$8^2)))/E$8","v":0.54169480566293093},{"$f":"G40/G8","v":3.1983471074380163},{"$f":"(SQRT((H$40^2)+((G$40^2)/(G$8^2))*(H$8^2)))/G$8","v":0.51332818714876871},{"$f":"I40/I8","v":3.2463704355477341},{"$f":"(SQRT((J$40^2)+((I$40^2)/(I$8^2))*(J$8^2)))/I$8","v":0.15024387763490146},{"$f":"K40/K8","v":3.1538461538461537},{"$f":"(SQRT((L$40^2)+((K$40^2)/(K$8^2))*(L$8^2)))/K$8","v":0.69816574261194764},{"$f":"M40/M8","v":3.1555915721231766},{"$f":"(SQRT((N$40^2)+((M$40^2)/(M$8^2))*(N$8^2)))/M$8","v":0.4056814419813719},{"$f":"O40/O8","v":3.0876288659793816},{"$f":"(SQRT((P$40^2)+((O$40^2)/(O$8^2))*(P$8^2)))/O$8","v":0.22019792790557738},{"$f":"Q40/Q8","v":3.0330950749045336},{"$f":"(SQRT((R$40^2)+((Q$40^2)/(Q$8^2))*(R$8^2)))/Q$8","v":0.13359535641347578},{"$f":"S40/S8","v":2.942122186495177},{"$f":"(SQRT((T$40^2)+((S$40^2)/(S$8^2))*(T$8^2)))/S$8","v":0.7388304757485451},{"$f":"U40/U8","v":3.2983770287141074},{"$f":"(SQRT((V$40^2)+((U$40^2)/(U$8^2))*(V$8^2)))/U$8","v":0.17262242941476719},{"$f":"W40/W8","v":3.0276710222905456},{"$f":"(SQRT((X$40^2)+((W$40^2)/(W$8^2))*(X$8^2)))/W$8","v":0.31195519852147041},{"$f":"Y40/Y8","v":2.8547884187082406},{"$f":"(SQRT((Z$40^2)+((Y$40^2)/(Y$8^2))*(Z$8^2)))/Y$8","v":0.24987175872117906},{"$f":"AA40/AA8","v":3.0278716216216215},{"$f":"(SQRT((AB$40^2)+((AA$40^2)/(AA$8^2))*(AB$8^2)))/AA$8","v":0.39509271729633694},{"$f":"AC40/AC8","v":2.9880952380952381},{"$f":"(SQRT((AD$40^2)+((AC$40^2)/(AC$8^2))*(AD$8^2)))/AC$8","v":0.80051583133407356},{"$f":"AE40/AE8","v":3.0067787418655096},{"$f":"(SQRT((AF$40^2)+((AE$40^2)/(AE$8^2))*(AF$8^2)))/AE$8","v":0.20580551765309862},{"$f":"AG40/AG8","v":2.9440233236151605},{"$f":"(SQRT((AH$40^2)+((AG$40^2)/(AG$8^2))*(AH$8^2)))/AG$8","v":0.2518127941662171},{"$f":"AI40/AI8","v":3.1861386138613863},{"$f":"(SQRT((AJ$40^2)+((AI$40^2)/(AI$8^2))*(AJ$8^2)))/AI$8","v":0.34207916930303833},{"$f":"AK40/AK8","v":2.6661698956780926},{"$f":"(SQRT((AL$40^2)+((AK$40^2)/(AK$8^2))*(AL$8^2)))/AK$8","v":0.45559517264803273},{"$f":"AM40/AM8","v":2.8331584470094437},{"$f":"(SQRT((AN$40^2)+((AM$40^2)/(AM$8^2))*(AN$8^2)))/AM$8","v":0.3348000390058099},{"$f":"AO40/AO8","v":3.1113553113553114},{"$f":"(SQRT((AP$40^2)+((AO$40^2)/(AO$8^2))*(AP$8^2)))/AO$8","v":0.30926569551122673},{"$f":"AQ40/AQ8","v":3.0662955465587043},{"$f":"(SQRT((AR$40^2)+((AQ$40^2)/(AQ$8^2))*(AR$8^2)))/AQ$8","v":0.30954234622236376},{"$f":"AS40/AS8","v":3.3172205438066467},{"$f":"(SQRT((AT$40^2)+((AS$40^2)/(AS$8^2))*(AT$8^2)))/AS$8","v":0.41337115023772414},{"$f":"AU40/AU8","v":2.9050925925925926},{"$f":"(SQRT((AV$40^2)+((AU$40^2)/(AU$8^2))*(AV$8^2)))/AU$8","v":0.57582473616570906},{"$f":"AW40/AW8","v":2.9873873873873875},{"$f":"(SQRT((AX$40^2)+((AW$40^2)/(AW$8^2))*(AX$8^2)))/AW$8","v":0.69942984477542658},{"$f":"AY40/AY8","v":3.0093582887700534},{"$f":"(SQRT((AZ$40^2)+((AY$40^2)/(AY$8^2))*(AZ$8^2)))/AY$8","v":0.43182340151091725},{"$f":"BA40/BA8","v":2.6744186046511627},{"$f":"(SQRT((BB$40^2)+((BA$40^2)/(BA$8^2))*(BB$8^2)))/BA$8","v":0.43387313848561659},{"$f":"BC40/BC8","v":2.7975708502024292},{"$f":"(SQRT((BD$40^2)+((BC$40^2)/(BC$8^2))*(BD$8^2)))/BC$8","v":0.59028244943580699}]
[null,"In nonfamily households",{"$f":"C50/C13","v":1.1178343949044587},{"$f":"(SQRT((D$50^2)+((C$50^2)/(C$13^2))*(D$13^2)))/C$13","v":0.32057085899609483},{"$f":"E50/E13","v":1.6011904761904763},{"$f":"(SQRT((F$50^2)+((E$50^2)/(E$13^2))*(F$13^2)))/E$13","v":0.74728186380113315},{"$f":"G50/G13","v":1.4686907020872866},{"$f":"(SQRT((H$50^2)+((G$50^2)/(G$13^2))*(H$13^2)))/G$13","v":0.57638783352200373},{"$f":"I50/I13","v":1.092760180995475},{"$f":"(SQRT((J$50^2)+((I$50^2)/(I$13^2))*(J$13^2)))/I$13","v":0.32880559147476351},{"$f":"K50/K13","v":1.1904761904761905},{"$f":"(SQRT((L$50^2)+((K$50^2)/(K$13^2))*(L$13^2)))/K$13","v":0.3977923415342931},{"$f":"M50/M13","v":1.1246458923512748},{"$f":"(SQRT((N$50^2)+((M$50^2)/(M$13^2))*(N$13^2)))/M$13","v":0.29434646293627204},{"$f":"O50/O13","v":1.3316062176165804},{"$f":"(SQRT((P$50^2)+((O$50^2)/(O$13^2))*(P$13^2)))/O$13","v":0.61202283151711134},{"$f":"Q50/Q13","v":1.2563892305589723},{"$f":"(SQRT((R$50^2)+((Q$50^2)/(Q$13^2))*(R$13^2)))/Q$13","v":0.10306137331439187},{"$f":"S50/S13","v":1.2588235294117647},{"$f":"(SQRT((T$50^2)+((S$50^2)/(S$13^2))*(T$13^2)))/S$13","v":0.59107551241054768},{"$f":"U50/U13","v":1.3503649635036497},{"$f":"(SQRT((V$50^2)+((U$50^2)/(U$13^2))*(V$13^2)))/U$13","v":0.60797392354582958},{"$f":"W50/W13","v":1.3847736625514404},{"$f":"(SQRT((X$50^2)+((W$50^2)/(W$13^2))*(X$13^2)))/W$13","v":0.50501083732444463},{"$f":"Y50/Y13","v":1.1893028846153846},{"$f":"(SQRT((Z$50^2)+((Y$50^2)/(Y$13^2))*(Z$13^2)))/Y$13","v":0.27632939638266324},{"$f":"AA50/AA13","v":1.4299516908212559},{"$f":"(SQRT((AB$50^2)+((AA$50^2)/(AA$13^2))*(AB$13^2)))/AA$13","v":0.55960351643944961},{"$f":"AC50/AC13","v":1.3801652892561984},{"$f":"(SQRT((AD$50^2)+((AC$50^2)/(AC$13^2))*(AD$13^2)))/AC$13","v":0.54088926150143923},{"$f":"AE50/AE13","v":1.5051150895140666},{"$f":"(SQRT((AF$50^2)+((AE$50^2)/(AE$13^2))*(AF$13^2)))/AE$13","v":0.37214217574739084},{"$f":"AG50/AG13","v":1.3430962343096233},{"$f":"(SQRT((AH$50^2)+((AG$50^2)/(AG$13^2))*(AH$13^2)))/AG$13","v":0.6102392010994212},{"$f":"AI50/AI13","v":1.3214953271028038},{"$f":"(SQRT((AJ$50^2)+((AI$50^2)/(AI$13^2))*(AJ$13^2)))/AI$13","v":0.55047193600378097},{"$f":"AK50/AK13","v":1.2845188284518829},{"$f":"(SQRT((AL$50^2)+((AK$50^2)/(AK$13^2))*(AL$13^2)))/AK$13","v":0.46939962347764369},{"$f":"AM50/AM13","v":1.1086956521739131},{"$f":"(SQRT((AN$50^2)+((AM$50^2)/(AM$13^2))*(AN$13^2)))/AM$13","v":0.42113484720227917},{"$f":"AO50/AO13","v":1.1858585858585859},{"$f":"(SQRT((AP$50^2)+((AO$50^2)/(AO$13^2))*(AP$13^2)))/AO$13","v":0.46552110696406629},{"$f":"AQ50/AQ13","v":1.5798319327731092},{"$f":"(SQRT((AR$50^2)+((AQ$50^2)/(AQ$13^2))*(AR$13^2)))/AQ$13","v":0.55994574852923229},{"$f":"AS50/AS13","v":1.1744868035190617},{"$f":"(SQRT((AT$50^2)+((AS$50^2)/(AS$13^2))*(AT$13^2)))/AS$13","v":0.39304920469499122},{"$f":"AU50/AU13","v":1.3688524590163935},{"$f":"(SQRT((AV$50^2)+((AU$50^2)/(AU$13^2))*(AV$13^2)))/AU$13","v":0.60869722163885542},{"$f":"AW50/AW13","v":1.1542056074766356},{"$f":"(SQRT((AX$50^2)+((AW$50^2)/(AW$13^2))*(AX$13^2)))/AW$13","v":0.48529905006421115},{"$f":"AY50/AY13","v":1.297979797979798},{"$f":"(SQRT((AZ$50^2)+((AY$50^2)/(AY$13^2))*(AZ$13^2)))/AY$13","v":0.45487801831716745},{"$f":"BA50/BA13","v":1.2238805970149254},{"$f":"(SQRT((BB$50^2)+((BA$50^2)/(BA$13^2))*(BB$13^2)))/BA$13","v":0.42076804133932466},{"$f":"BC50/BC13","v":1.1904761904761905},{"$f":"(SQRT((BD$50^2)+((BC$50^2)/(BC$13^2))*(BD$13^2)))/BC$13","v":0.43873279336441728}]
[]
[]
[]
[null,"B25010. AVERAGE HOUSEHOLD SIZE OF OCCUPIED HOUSING UNITS BY TENURE"]
[null,"Universe:  OCCUPIED HOUSING UNITS"]
[null,"Data Set: 2015-2019 American Community Survey 5-Year Estimates"]
[]
[null,null,"Allenstown",null,"Andover",null,"Boscawen",null,"Bow",null,"Bradford",null,"Canterbury",null,"Chichester",null,"Concord",null,"Danbury",null,"Dunbarton",null,"Epsom",null,"Franklin",null,"Henniker",null,"Hill",null,"Hooksett",null,"Hopkinton",null,"Loudon",null,"Newbury",null,"New London",null,"Northfield",null,"Pembroke",null,"Pittsfield",null,"Salisbury",null,"Sutton",null,"Warner",null,"Webster",null,"Wilmot"]
[null," ","Estimate","Margin of Error","Estimate","Margin of Error","Estimate","Margin of Error","Estimate","Margin of Error","Estimate","Margin of Error","Estimate","Margin of Error","Estimate","Margin of Error","Estimate","Margin of Error","Estimate","Margin of Error","Estimate","Margin of Error","Estimate","Margin of Error","Estimate","Margin of Error","Estimate","Margin of Error","Estimate","Margin of Error","Estimate","Margin of Error","Estimate","Margin of Error","Estimate","Margin of Error","Estimate","Margin of Error","Estimate","Margin of Error","Estimate","Margin of Error","Estimate","Margin of Error","Estimate","Margin of Error","Estimate","Margin of Error","Estimate","Margin of Error","Estimate","Margin of Error","Estimate","Margin of Error","Estimate","Margin of Error"]
[null,"Average household size --"]
[null,"Total:",2.44,0.15,2.56,0.24,2.5299999999999998,0.19,2.9,0.14000000000000001,2.4500000000000002,0.21,2.42,0.13,2.74,0.16,2.29,0.04,2.35,0.22,3.01,0.14000000000000001,2.58,0.18,2.15,0.12,2.48,0.17,2.4700000000000002,0.28000000000000003,2.56,0.09,2.6,0.15,2.7,0.23,2.2999999999999998,0.15,2.17,0.16,2.6,0.15,2.67,0.16,2.44,0.23,2.57,0.23,2.48,0.25,2.42,0.19,2.29,0.17,2.3199999999999998,0.18]
[null,"In family households:",2.65,0.17,2.5499999999999998,0.2,2.7,0.26,2.95,0.15,2.4900000000000002,0.22,2.52,0.15,2.64,0.18,2.58,7.0000000000000007E-2,2.35,0.24,3.03,0.14000000000000001,2.65,0.2,2.2200000000000002,0.15,2.67,0.18,2.5299999999999998,0.28999999999999998,2.67,0.1,2.59,0.14000000000000001,2.84,0.25,2.38,0.17,2.29,0.19,2.79,0.19,2.77,0.16,2.66,0.38,2.5099999999999998,0.2,2.48,0.24,2.54,0.17,2.38,0.18,2.33,0.23]
[null,"In nonfamily households",1.7,0.38,2.62,1.23,1.92,0.54,2.46,0.71,2.15,0.72,1.27,0.33,3.7,0.67,1.96,7.0000000000000007E-2,2.29,0.57999999999999996,2.82,0.59,2.2200000000000002,0.4,2.0099999999999998,0.21,1.91,0.34,1.73,0.68,2.23,0.26,2.61,0.74,1.86,0.28999999999999998,1.3,0.23,1.64,0.32,2.02,0.41,2.3199999999999998,0.39,2.06,0.48,3.33,1.28,2.42,1.21,2.19,0.54,1.22,0.28000000000000003,2.2599999999999998,0.45]
[]
[]
[]
[]
[]
[]
[null,"B11001. HOUSEHOLD TYPE (INCLUDING LIVING ALONE)"]
[null,"Universe:  HOUSEHOLDS"]
[null,"Data Set: 2010-2014 American Community Survey 5-Year Estimates"]
[]
[null,null,"Allenstown",null,"Andover",null,"Boscawen",null,"Bow",null,"Bradford",null,"Canterbury",null,"Chichester",null,"Concord",null,"Danbury",null,"Dunbarton",null,"Epsom",null,"Franklin",null,"Henniker",null,"Hill",null,"Hooksett",null,"Hopkinton",null,"Loudon",null,"Newbury",null,"New London",null,"Northfield",null,"Pembroke",null,"Pittsfield",null,"Salisbury",null,"Sutton",null,"Warner",null,"Webster",null,"Wilmot"]
[null,null,"Estimate","Margin Of Error","Estimate","Margin Of Error","Estimate","Margin Of Error","Estimate","Margin Of Error","Estimate","Margin Of Error","Estimate","Margin Of Error","Estimate","Margin Of Error","Estimate","Margin Of Error","Estimate","Margin Of Error","Estimate","Margin Of Error","Estimate","Margin Of Error","Estimate","Margin Of Error","Estimate","Margin Of Error","Estimate","Margin Of Error","Estimate","Margin Of Error","Estimate","Margin Of Error","Estimate","Margin Of Error","Estimate","Margin Of Error","Estimate","Margin Of Error","Estimate","Margin Of Error","Estimate","Margin Of Error","Estimate","Margin Of Error","Estimate","Margin Of Error","Estimate","Margin Of Error","Estimate","Margin Of Error","Estimate","Margin Of Error","Estimate","Margin Of Error"]
[null,"Total:",1787,88,975,87,1270,147,2777,133,684,77,894,64,996,62,17141,334,533,70,1053,59,1809,122,3379,195,1598,145,445,57,5216,237,2122,112,2013,139,756,95,1734,157,1729,104,2787,148,1525,127,553,62,786,99,1123,84,767,66,588,67]
[null,"Family households:",1182,89,640,92,962,135,2343,113,498,68,666,68,698,71,9845,358,348,64,800,74,1266,86,2046,145,1063,98,329,55,3649,182,1642,117,1469,112,508,73,1085,103,1338,105,1925,152,963,90,388,50,605,94,771,57,520,65,358,56]
[null,"Married-couple family",902,101,572,84,639,120,2026,131,449,65,567,66,614,82,7103,411,235,51,755,72,1098,101,1381,192,878,121,283,55,3071,213,1537,109,1231,129,447,73,972,112,1100,109,1416,174,689,108,321,45,534,85,660,78,389,52,311,52]
[null,"Other family:",280,80,68,31,323,103,317,110,49,25,99,42,84,47,2742,312,113,50,45,21,168,77,665,158,185,95,46,16,578,163,105,77,238,86,61,30,113,58,238,70,509,145,274,79,67,31,71,40,111,44,131,48,47,28]
[null,"Male householder, no spouse present",104,56,10,11,78,44,82,54,32,23,53,28,51,37,739,182,56,32,19,14,90,58,240,119,27,24,16,12,201,134,9,16,67,47,18,14,0,11,110,50,248,106,35,31,11,9,37,30,44,33,36,27,0,11]
[null,"Female householder, no husband present",176,67,58,30,245,95,235,93,17,11,46,33,33,24,2003,261,57,32,26,18,78,48,425,139,158,88,30,14,377,129,96,76,171,75,43,27,113,58,128,58,261,94,239,79,56,28,34,26,67,26,95,39,47,28]
[null,"Nonfamily households:",605,123,335,82,308,98,434,110,186,44,228,55,298,85,7296,404,185,42,253,62,543,138,1333,231,535,125,116,38,1567,272,480,145,544,170,248,64,649,149,391,109,862,173,562,113,165,47,181,49,352,93,247,52,230,53]
[null,"Householder living alone",478,111,282,75,224,95,405,103,147,40,152,43,216,67,5794,408,147,40,200,54,456,119,1053,214,344,113,96,36,1262,230,311,124,413,157,223,63,569,145,217,88,772,175,420,101,119,42,135,38,285,91,190,52,163,48]
[null,"Householder not living alone",127,64,53,40,84,47,29,28,39,22,76,32,82,49,1502,260,38,21,53,38,87,49,280,120,191,92,20,15,305,117,169,102,131,61,25,19,80,53,174,78,90,63,142,63,46,23,46,29,67,31,57,26,67,34]
[]
[]
[]
[]
[]
[]
[]
[]
[]
[]
[]
[]
[]
[]
[]
[]
[]
[null,"B11002. HOUSEHOLD TYPE BY RELATIVES AND NONRELATIVES FOR POPULATION IN HOUSEHOLDS "]
[null,"Universe:  POPULATION IN HOUSEHOLDS"]
[null,"Data Set: 2010-2014 American Community Survey 5-Year Estimates"]
[]
[null,null,"Allenstown",null,"Andover",null,"Boscawen",null,"Bow",null,"Bradford",null,"Canterbury",null,"Chichester",null,"Concord",null,"Danbury",null,"Dunbarton",null,"Epsom",null,"Franklin",null,"Henniker",null,"Hill",null,"Hooksett",null,"Hopkinton",null,"Loudon",null,"Newbury",null,"New London",null,"Northfield",null,"Pembroke",null,"Pittsfield",null,"Salisbury",null,"Sutton",null,"Warner",null,"Webster",null,"Wilmot"]
[null,null,"Estimate","Margin Of Error","Estimate","Margin Of Error","Estimate","Margin Of Error","Estimate","Margin Of Error","Estimate","Margin Of Error","Estimate","Margin Of Error","Estimate","Margin Of Error","Estimate","Margin Of Error","Estimate","Margin Of Error","Estimate","Margin Of Error","Estimate","Margin Of Error","Estimate","Margin Of Error","Estimate","Margin Of Error","Estimate","Margin Of Error","Estimate","Margin Of Error","Estimate","Margin Of Error","Estimate","Margin Of Error","Estimate","Margin Of Error","Estimate","Margin Of Error","Estimate","Margin Of Error","Estimate","Margin Of Error","Estimate","Margin Of Error","Estimate","Margin Of Error","Estimate","Margin Of Error","Estimate","Margin Of Error","Estimate","Margin Of Error","Estimate","Margin Of Error"]
[null,"Total:",4276,42,2311,254,3446,335,7611,29,1706,205,2280,202,2544,18,39758,440,1243,186,2779,17,4493,92,8248,114,4212,168,1164,184,12879,153,5591,23,5342,18,1749,234,3547,199,4770,59,7121,29,4041,32,1406,161,2012,287,2724,44,1891,199,1358,180]
[null,"In family households:",3507,175,1855,261,3030,341,7138,137,1467,210,1961,225,2131,154,30587,722,1015,194,2382,184,3830,198,6524,368,3431,234,1025,190,10971,370,4929,227,4648,211,1474,226,2794,217,4154,202,6133,211,3321,156,1162,147,1775,281,2300,117,1572,213,1044,177]
[null,"In married-couple family:",2714,271,1639,262,2006,381,6273,341,1340,204,1654,215,1829,209,21599,1177,638,143,2238,191,3305,341,4179,637,2872,332,891,190,9334,628,4636,280,3780,370,1285,224,2490,273,3342,280,4598,467,2267,381,969,152,1565,261,1919,189,1130,151,889,156]
[null,"Relatives",2694,264,1613,253,1992,379,6229,347,1319,204,1624,208,1773,216,21453,1177,638,143,2226,187,3304,342,4130,632,2864,330,864,179,9291,628,4611,277,3718,359,1285,224,2477,271,3302,270,4479,464,2242,382,962,151,1565,261,1857,201,1130,151,885,156]
[null,"Nonrelatives",20,29,26,30,14,16,44,53,21,17,30,32,56,47,146,60,0,11,12,19,1,9,49,47,8,14,27,24,43,55,25,28,62,59,0,11,13,20,40,51,119,104,25,28,7,8,0,11,62,68,0,11,4,5]
[null,"In male householder, no spouse present, family:",283,154,22,25,174,99,176,114,76,51,161,86,142,101,2298,567,203,128,51,40,300,197,877,439,64,58,50,38,634,473,17,30,339,236,52,41,0,11,419,216,738,341,124,110,36,30,112,86,169,149,125,95,0,11]
[null,"Relatives",219,116,22,25,166,95,176,114,73,51,139,76,107,77,2013,509,183,121,51,40,258,179,727,381,64,58,37,27,625,474,17,30,284,211,47,37,0,11,349,174,574,265,108,98,29,24,94,77,148,126,114,92,0,11]
[null,"Nonrelatives",64,66,0,11,8,19,0,15,3,6,22,16,35,30,285,120,20,19,0,11,42,29,150,88,0,11,13,12,9,15,0,15,55,61,5,7,0,11,70,53,164,180,16,23,7,7,18,17,21,25,11,12,0,11]
[null,"In female householder, no husband present, family:",510,191,194,100,850,340,689,293,51,34,146,119,160,138,6690,993,174,99,93,66,225,148,1468,484,495,290,84,42,1003,350,276,228,529,227,137,85,304,162,393,194,797,309,930,373,157,79,98,77,212,88,317,139,155,95]
[null,"Relatives",462,179,173,93,786,319,625,257,51,34,146,119,139,115,5961,865,147,82,71,48,189,126,1319,428,476,284,76,38,973,346,230,171,529,227,113,67,272,136,346,165,716,269,782,301,154,79,98,77,178,72,290,132,120,71]
[null,"Nonrelatives",48,41,21,16,64,48,64,55,0,11,0,11,21,24,729,270,27,24,22,24,36,34,149,94,19,24,8,8,30,35,46,71,0,15,24,27,32,36,47,37,81,71,148,123,3,4,0,11,34,24,27,19,35,33]
[null,"In nonfamily households",769,171,456,160,416,133,473,131,239,63,319,90,413,153,9171,595,228,54,397,186,663,183,1724,357,781,200,139,44,1908,358,662,226,694,212,275,71,753,189,616,196,988,209,720,156,244,88,237,80,424,104,319,74,314,82]
[]
[]
[]
[null,"Calculated Average  Household Size by Household Type"]
[null,"Universe:  POPULATION IN HOUSEHOLDS"]
[null,"Data Set: 2010-2014 American Community Survey 5-Year Estimates"]
[]
[null,null,"Allenstown",null,"Andover",null,"Boscawen",null,"Bow",null,"Bradford",null,"Canterbury",null,"Chichester",null,"Concord",null,"Danbury",null,"Dunbarton",null,"Epsom",null,"Franklin",null,"Henniker",null,"Hill",null,"Hooksett",null,"Hopkinton",null,"Loudon",null,"Newbury",null,"New London",null,"Northfield",null,"Pembroke",null,"Pittsfield",null,"Salisbury",null,"Sutton",null,"Warner",null,"Webster",null,"Wilmot"]
[null," ","Estimate","Margin of Error","Estimate","Margin of Error","Estimate","Margin of Error","Estimate","Margin of Error","Estimate","Margin of Error","Estimate","Margin of Error","Estimate","Margin of Error","Estimate","Margin of Error","Estimate","Margin of Error","Estimate","Margin of Error","Estimate","Margin of Error","Estimate","Margin of Error","Estimate","Margin of Error","Estimate","Margin of Error","Estimate","Margin of Error","Estimate","Margin of Error","Estimate","Margin of Error","Estimate","Margin of Error","Estimate","Margin of Error","Estimate","Margin of Error","Estimate","Margin of Error","Estimate","Margin of Error","Estimate","Margin of Error","Estimate","Margin of Error","Estimate","Margin of Error","Estimate","Margin of Error","Estimate","Margin of Error"]
[null,"Total:",2.3928371572467824,0.12,2.3702564102564101,0.33555788803071118,2.7133858267716535,0.4101451190986376,2.7407274036730285,0.13167753230125798,2.4941520467836256,0.41068105066435912,2.5503355704697985,0.29049466901048104,2.5542168674698793,0.16002122402656932,2.3194679423604225,5.1976789004203043E-2,2.3320825515947465,0.4643107765638495,2.6391263057929724,0.14874997089218558,2.4836926478717523,0.1750520578897318,2.4409588635691031,0.14485003387986017,2.6357947434292868,0.2612544330337041,2.6157303370786518,0.5321897028099204,2.4691334355828221,0.11596153975168665,2.6347785108388311,0.13948640764791459,2.6537506209637356,0.183462619327558,2.3134920634920637,0.42464235237830156,2.0455594002306805,0.21788330900847216,2.7588201272411799,0.16941624887909582,2.5550771438823108,0.13608244548306006,2.6498360655737705,0.22167027547495297,2.5424954792043399,0.40745268877180552,2.559796437659033,0.48711392335662712,2.4256455921638467,0.18561969742923459,2.4654498044328554,0.33514702598494833,2.3095238095238093,0.40368818784912891]
[null,"In family households:",2.967005076142132,0.26800997818607214,2.8984375,0.58301679492465319,3.1496881496881497,0.56658314634230356,3.046521553563807,0.15813727595370344,2.9457831325301207,0.58276330363579198,2.9444444444444446,0.45223355356481887,3.0530085959885387,0.38094462326802625,3.1068562722194009,0.13469218481863854,2.9166666666666665,0.77362621882939653,2.9775,0.35882514941341903,3.0252764612954186,0.2582520384300015,3.1886608015640272,0.28882152776157494,3.2276575729068675,0.37013815033845054,3.115501519756839,0.77767433769086225,3.0065771444231295,0.18102184488316408,3.0018270401948843,0.25468129728674116,3.1640571817562968,0.28075868075432497,2.9015748031496065,0.60973302070824542,2.5751152073732717,0.31584756621935589,3.1046337817638268,0.28662082861103488,3.1859740259740259,0.27440992176753093,3.4485981308411215,0.36071949810737125,2.9948453608247423,0.54081811738451713,2.9338842975206614,0.65078314871369725,2.9831387808041505,0.26770827387582663,3.023076923076923,0.5572984351835093,2.9162011173184359,0.67270470178612352]
[null,"In nonfamily households",1.2710743801652893,0.38297155938367283,1.3611940298507463,0.58234634926964246,1.3506493506493507,0.60922391653601016,1.0898617511520738,0.40916211898720656,1.2849462365591398,0.45510376706208672,1.3991228070175439,0.51935403963025129,1.3859060402684564,0.64797531928039964,1.2569901315789473,0.10721585938684818,1.2324324324324325,0.40433449299620761,1.5691699604743083,0.82967298078827945,1.2209944751381216,0.45811703642111207,1.2933233308327081,0.3492243147247196,1.4598130841121495,0.50604770341603567,1.1982758620689655,0.54585980351757801,1.2176132737715379,0.31123169401680051,1.3791666666666667,0.62869624763569931,1.275735294117647,0.55750002189601977,1.1088709677419355,0.40478369203131892,1.1602465331278891,0.39466771459095362,1.5754475703324808,0.66646033349928335,1.1461716937354989,0.33421750944290846,1.2811387900355873,0.37869004315553434,1.4787878787878788,0.67961722120422574,1.3093922651933703,0.56657543303324254,1.2045454545454546,0.4342512516368805,1.2914979757085021,0.40457850302280879,1.3652173913043477,0.47547541104281882]
[]
[]
[]
[null,"B25010. AVERAGE HOUSEHOLD SIZE OF OCCUPIED HOUSING UNITS BY TENURE"]
[null,"Universe:  OCCUPIED HOUSING UNITS"]
[null,"Data Set: 2010-2014 American Community Survey 5-Year Estimates"]
[]
[null,null,"Allenstown",null,"Andover",null,"Boscawen",null,"Bow",null,"Bradford",null,"Canterbury",null,"Chichester",null,"Concord",null,"Danbury",null,"Dunbarton",null,"Epsom",null,"Franklin",null,"Henniker",null,"Hill",null,"Hooksett",null,"Hopkinton",null,"Loudon",null,"Newbury",null,"New London",null,"Northfield",null,"Pembroke",null,"Pittsfield",null,"Salisbury",null,"Sutton",null,"Warner",null,"Webster",null,"Wilmot"]
[null," ","Estimate","Margin of Error","Estimate","Margin of Error","Estimate","Margin of Error","Estimate","Margin of Error","Estimate","Margin of Error","Estimate","Margin of Error","Estimate","Margin of Error","Estimate","Margin of Error","Estimate","Margin of Error","Estimate","Margin of Error","Estimate","Margin of Error","Estimate","Margin of Error","Estimate","Margin of Error","Estimate","Margin of Error","Estimate","Margin of Error","Estimate","Margin of Error","Estimate","Margin of Error","Estimate","Margin of Error","Estimate","Margin of Error","Estimate","Margin of Error","Estimate","Margin of Error","Estimate","Margin of Error","Estimate","Margin of Error","Estimate","Margin of Error","Estimate","Margin of Error","Estimate","Margin of Error","Estimate","Margin of Error"]
[null,"Average household size --"]
[null,"Total:",2.39,0.12,2.37,0.2,2.71,0.2,2.74,0.13,2.4900000000000002,0.19,2.5499999999999998,0.18,2.5499999999999998,0.16,2.3199999999999998,0.04,2.33,0.23,2.64,0.15,2.48,0.15,2.44,0.14000000000000001,2.64,0.2,2.62,0.27,2.4700000000000002,0.11,2.63,0.14000000000000001,2.65,0.18,2.31,0.17,2.0499999999999998,0.14000000000000001,2.76,0.16,2.56,0.14000000000000001,2.65,0.22,2.54,0.22,2.56,0.19,2.4300000000000002,0.18,2.4700000000000002,0.19,2.31,0.19]
[null,"Owner occupied",2.4900000000000002,0.18,2.35,0.21,2.6,0.28000000000000003,2.82,0.13,2.4300000000000002,0.17,2.6,0.18,2.63,0.18,2.5499999999999998,7.0000000000000007E-2,2.2200000000000002,0.22,2.65,0.14000000000000001,2.5,0.18,2.5499999999999998,0.16,2.84,0.23,2.62,0.28999999999999998,2.56,0.12,2.72,0.13,2.7,0.18,2.2799999999999998,0.16,2.17,0.14000000000000001,2.68,0.15,2.8,0.18,2.89,0.3,2.54,0.22,2.62,0.21,2.71,0.17,2.46,0.18,2.31,0.21]
[null,"Renter occupied",2.17,0.28999999999999998,2.48,0.67,2.97,0.41,2.16,0.44,3,0.99,1.45,0.31,1.89,0.36,2.04,7.0000000000000007E-2,2.83,0.89,2.59,0.87,2.37,0.76,2.2799999999999998,0.27,2.21,0.48,2.63,0.46,1.9,0.3,2.0699999999999998,0.49,2.42,0.55000000000000004,2.95,1.05,1.59,0.28000000000000003,3,0.56999999999999995,1.94,0.3,2.2999999999999998,0.49,2.63,1.04,2.14,0.39,1.44,0.24,2.5099999999999998,0.73,2.3199999999999998,0.36]
[]
[]
[]
[]
[]
[]
[null,"B11001. HOUSEHOLD TYPE (INCLUDING LIVING ALONE)"]
[null,"Universe:  HOUSEHOLDS"]
[null,"Data Set: 2005-2009 American Community Survey 5-Year Estimates"]
[]
[null,null,"Allenstown",null,"Andover",null,"Boscawen",null,"Bow",null,"Bradford",null,"Canterbury",null,"Chichester",null,"Concord",null,"Danbury",null,"Dunbarton",null,"Epsom",null,"Franklin",null,"Henniker",null,"Hill",null,"Hooksett",null,"Hopkinton",null,"Loudon",null,"Newbury",null,"New London",null,"Northfield",null,"Pembroke",null,"Pittsfield",null,"Salisbury",null,"Sutton",null,"Warner",null,"Webster",null,"Wilmot"]
[null," ","Estimate","Margin of Error","Estimate","Margin of Error","Estimate","Margin of Error","Estimate","Margin of Error","Estimate","Margin of Error","Estimate","Margin of Error","Estimate","Margin of Error","Estimate","Margin of Error","Estimate","Margin of Error","Estimate","Margin of Error","Estimate","Margin of Error","Estimate","Margin of Error","Estimate","Margin of Error","Estimate","Margin of Error","Estimate","Margin of Error","Estimate","Margin of Error","Estimate","Margin of Error","Estimate","Margin of Error","Estimate","Margin of Error","Estimate","Margin of Error","Estimate","Margin of Error","Estimate","Margin of Error","Estimate","Margin of Error","Estimate","Margin of Error","Estimate","Margin of Error","Estimate","Margin of Error","Estimate","Margin of Error"]
[null,"Total:",1824,124,947,86,1317,163,2845,132,510,73,896,50,918,51,17349,501,528,75,960,53,1445,110,3300,222,1776,167,392,48,4638,239,2237,119,1751,105,821,88,1564,226,1884,138,2907,166,1652,109,438,49,680,92,1010,162,669,56,502,64]
[null,"Family households:",1259,92,691,84,901,122,2360,123,383,63,648,58,738,42,10033,472,332,63,751,57,1184,92,2186,142,1152,142,284,40,3523,170,1620,132,1425,119,630,85,962,160,1396,105,1991,165,1069,114,340,37,463,88,709,116,548,54,391,66]
[null,"Married-couple family",1004,123,608,91,659,127,2033,166,363,64,555,54,622,65,7482,407,291,59,711,65,969,107,1514,157,1000,142,234,38,3027,192,1522,134,1062,137,524,89,866,159,1085,138,1482,171,915,98,293,36,422,87,608,104,493,55,358,65]
[null,"Other family:",255,96,83,53,242,96,327,123,20,11,93,36,116,50,2551,297,41,28,40,30,215,89,672,154,152,82,50,27,496,133,98,65,363,108,106,45,96,65,311,100,509,156,154,92,47,22,41,19,101,42,55,21,33,21]
[null,"Male householder, no spouse present",56,41,21,19,101,81,62,45,3,4,30,23,31,20,597,174,21,19,12,14,58,62,236,97,55,48,27,22,116,89,43,44,134,80,24,22,8,15,156,83,123,64,73,59,4,6,26,14,14,17,32,17,3,4]
[null,"Female householder, no husband present",199,94,62,48,141,66,265,122,17,11,63,30,85,46,1954,281,20,20,28,21,157,73,436,128,97,57,23,17,380,133,55,49,229,83,82,41,88,64,155,65,386,157,81,73,43,22,15,13,87,42,23,14,30,20]
[null,"Nonfamily households:",565,133,256,71,416,125,485,142,127,39,248,60,180,52,7316,521,196,60,209,58,261,84,1114,190,624,142,108,35,1115,200,617,170,326,98,191,61,602,179,488,129,916,212,583,134,98,38,217,64,301,90,121,36,111,38]
[null,"Householder living alone",478,127,199,63,296,100,404,126,92,32,193,56,138,48,5720,467,153,56,143,50,236,82,896,179,503,142,69,22,831,202,467,160,182,72,142,48,535,174,387,120,671,195,370,109,81,37,170,60,216,78,102,34,78,34]
[null,"Householder not living alone",87,52,57,35,120,72,81,57,35,21,55,32,42,24,1596,276,43,28,66,29,25,27,218,91,121,78,39,30,284,134,150,108,144,79,49,35,67,45,101,65,245,143,213,102,17,11,47,24,85,44,19,12,33,23]
[]
[]
[]
[null,"Calculated Average  Household Size by Household Type"]
[null,"Universe:  POPULATION IN HOUSEHOLDS"]
[null,"Data Set: 2005-2007 American Community Survey 5-Year Estimates"]
[]
[null,null,"Allenstown",null,"Andover",null,"Boscawen",null,"Bow",null,"Bradford",null,"Canterbury",null,"Chichester",null,"Concord",null,"Danbury",null,"Dunbarton",null,"Epsom",null,"Franklin",null,"Henniker",null,"Hill",null,"Hooksett",null,"Hopkinton",null,"Loudon",null,"Newbury",null,"New London",null,"Northfield",null,"Pembroke",null,"Pittsfield",null,"Salisbury",null,"Sutton",null,"Warner",null,"Webster",null,"Wilmot"]
[null," ","Estimate","Margin of Error","Estimate","Margin of Error","Estimate","Margin of Error","Estimate","Margin of Error","Estimate","Margin of Error","Estimate","Margin of Error","Estimate","Margin of Error","Estimate","Margin of Error","Estimate","Margin of Error","Estimate","Margin of Error","Estimate","Margin of Error","Estimate","Margin of Error","Estimate","Margin of Error","Estimate","Margin of Error","Estimate","Margin of Error","Estimate","Margin of Error","Estimate","Margin of Error","Estimate","Margin of Error","Estimate","Margin of Error","Estimate","Margin of Error","Estimate","Margin of Error","Estimate","Margin of Error","Estimate","Margin of Error","Estimate","Margin of Error","Estimate","Margin of Error","Estimate","Margin of Error","Estimate","Margin of Error"]
[null,"Total:",2.7171052631578947,0.18,2.4065469904963042,0.31134658324590081,2.689445709946849,0.36908355071191212,2.8305799648506151,0.13190589402290007,2.4254901960784312,0.49228777784547784,2.6194196428571428,0.23774521549835165,2.7592592592592591,0.15629718240318158,2.2758084039425905,7.8758960385388876E-2,2.5587121212121211,0.58941365265070533,2.7333333333333334,0.16414218009242421,3.0878892733564012,0.26411175878383625,2.5718181818181818,0.19600993113652274,2.3986486486486487,0.30513903292753575,2.9948979591836733,0.59968803367371759,2.7078482104355324,0.16105451194973691,2.5046937863209657,0.13370816928777041,2.9360365505425472,0.1763290724773828,2.7929354445797809,0.46674904793977962,2.3529411764705883,0.41715120220228696,2.7075371549893843,0.19873149104548979,2.5232198142414859,0.14474032520121594,2.5944309927360774,0.18891229513599447,2.7465753424657535,0.42091173577464758,2.5,0.55942112010486089,2.5277227722772277,0.52257342458223233,2.7010463378176381,0.31527977840331539,2.5239043824701195,0.47881709909002118]
[null,"In family households:",3.3582208101667992,0.29494474476547644,2.8306801736613605,0.46978475407440101,3.2996670366259711,0.53369210074315343,3.1644067796610171,0.1829717694814261,2.804177545691906,0.65479510416032449,3.1265432098765431,0.40755941006479163,3.1178861788617884,0.20448237327555624,2.9882388119206618,0.1737822065969975,3.3343373493975905,0.97206392799155505,3.114513981358189,0.2746398858480873,3.5261824324324325,0.31252859962728446,3.2493138151875574,0.26631567347464347,2.9869791666666665,0.501938145768142,3.5774647887323945,0.7878296432659615,3.1507238149304571,0.19267912344441221,2.973456790123457,0.28593598900066425,3.2056140350877191,0.3192958461937016,3.2253968253968255,0.64041080550229657,2.9085239085239087,0.66502438699927391,3.2148997134670485,0.27336671238647037,3.0949271722752387,0.30135680672985893,3.2039289055191769,0.42712658471564235,3.1735294117647057,0.50441471909203817,3.0928725701943844,0.8909857316284544,3.0126939351198874,0.64051715475084448,3.0364963503649633,0.41049238318208364,2.867007672634271,0.68219435557689911]
[null,"In nonfamily households",1.288495575221239,0.47155320965641617,1.26171875,0.5215383621819949,1.3677884615384615,0.62160671596718076,1.2061855670103092,0.52133674401504726,1.2834645669291338,0.58557032577227996,1.2943548387096775,0.47933485362718786,1.288888888888889,0.54242762137657696,1.2987971569163477,0.14332485355135877,1.2448979591836735,0.54732736689635497,1.3636363636363635,0.53486685332398309,1.0996168582375478,0.50767098163921465,1.2423698384201076,0.30864538675614051,1.3125,0.45719904195593147,1.462962962962963,0.81053269123950789,1.3085201793721972,0.35300908979387741,1.2739059967585089,0.52754949875405488,1.7576687116564418,0.92623099838209733,1.3664921465968587,0.68159870864853356,1.4651162790697674,0.70410560603684158,1.2561475409836065,0.4887324916342401,1.2805676855895196,0.44985793975264626,1.4768439108061751,0.55501311130558284,1.2653061224489797,0.6719868808484869,1.2350230414746544,0.51173978611070003,1.3853820598006645,0.62531938800685971,1.1818181818181819,0.49992251994994197,1.3153153153153154,0.6563110069793493]
[]
[]
[]
[null,"B25010. AVERAGE HOUSEHOLD SIZE OF OCCUPIED HOUSING UNITS BY TENURE"]
[null,"Universe:  OCCUPIED HOUSING UNITS"]
[null,"Data Set: 2005-2007 American Community Survey 5-Year Estimates"]
[]
[null,null,"Allenstown",null,"Andover",null,"Boscawen",null,"Bow",null,"Bradford",null,"Canterbury",null,"Chichester",null,"Concord",null,"Danbury",null,"Dunbarton",null,"Epsom",null,"Franklin",null,"Henniker",null,"Hill",null,"Hooksett",null,"Hopkinton",null,"Loudon",null,"Newbury",null,"New London",null,"Northfield",null,"Pembroke",null,"Pittsfield",null,"Salisbury",null,"Sutton",null,"Warner",null,"Webster",null,"Wilmot"]
[null," ","Estimate","Margin of Error","Estimate","Margin of Error","Estimate","Margin of Error","Estimate","Margin of Error","Estimate","Margin of Error","Estimate","Margin of Error","Estimate","Margin of Error","Estimate","Margin of Error","Estimate","Margin of Error","Estimate","Margin of Error","Estimate","Margin of Error","Estimate","Margin of Error","Estimate","Margin of Error","Estimate","Margin of Error","Estimate","Margin of Error","Estimate","Margin of Error","Estimate","Margin of Error","Estimate","Margin of Error","Estimate","Margin of Error","Estimate","Margin of Error","Estimate","Margin of Error","Estimate","Margin of Error","Estimate","Margin of Error","Estimate","Margin of Error","Estimate","Margin of Error","Estimate","Margin of Error","Estimate","Margin of Error"]
[null,"Average household size --"]
[null,"Total:",2.72,0.18,2.41,0.14000000000000001,2.69,0.28999999999999998,2.83,0.13,2.4300000000000002,0.2,2.62,0.17,2.76,0.15,2.2799999999999998,0.05,2.56,0.33,2.73,0.13,3.09,0.2,2.57,0.14000000000000001,2.4,0.17,2.99,0.3,2.71,0.11,2.5,0.13,2.94,0.18,2.79,0.19,2.35,0.25,2.71,0.2,2.52,0.14000000000000001,2.59,0.16,2.75,0.22,2.5,0.24,2.5299999999999998,0.19,2.7,0.18,2.52,0.22]
[null,"Owner occupied",2.84,0.24,2.4,0.14000000000000001,2.87,0.34,2.97,0.15,2.4500000000000002,0.21,2.71,0.2,2.77,0.16,2.5299999999999998,7.0000000000000007E-2,2.5099999999999998,0.36,2.74,0.13,3.12,0.22,2.64,0.17,2.74,0.22,2.82,0.3,2.8,0.11,2.54,0.13,2.9,0.17,2.84,0.2,2.4700000000000002,0.28000000000000003,2.78,0.21,2.67,0.19,2.67,0.23,2.76,0.23,2.54,0.26,2.64,0.21,2.81,0.18,2.58,0.23]
[null,"Renter occupied",2.5,0.42,2.4500000000000002,0.42,1.84,0.28999999999999998,1.5,0.27,2.31,0.47,1.88,0.61,2,0.65,1.97,0.09,2.84,0.86,2.6,1.1499999999999999,2.91,0.7,2.4700000000000002,0.28999999999999998,1.59,0.26,3.76,0.87,2.14,0.36,2.02,0.84,3.24,0.83,2.17,0.55000000000000004,1.62,0.6,2.48,0.56000000000000005,2.16,0.38,2.42,0.44,2.5299999999999998,0.69,2.09,0.59,2.12,0.43,1.63,0.55000000000000004,1.24,0.36]

{"sheet":"ACS_Table_B19001","index":22,"n_rows":162,"n_cols":56,"rows_kept":162,"cut":false,"hidden":true,"merged":[]}
[null,"B19001. HOUSEHOLD INCOME IN THE PAST 12 MONTHS (IN 2019 INFLATION-ADJUSTED DOLLARS)",null,null,null,null,null,null,null,null,null,null,null,null,{"$f":"B1","v":"B19001. HOUSEHOLD INCOME IN THE PAST 12 MONTHS (IN 2019 INFLATION-ADJUSTED DOLLARS)"}]
[null,"Universe:  HOUSEHOLDS",null,null,null,null,null,null,null,null,null,null,null,null,{"$f":"B3","v":"Data Set: 2015-2019 American Community Survey 5-Year Estimates"}]
[null,"Data Set: 2015-2019 American Community Survey 5-Year Estimates"]
[]
[null,null,"Allenstown",null,"Andover",null,"Boscawen",null,"Bow",null,"Bradford",null,"Canterbury",null,"Chichester",null,"Concord",null,"Danbury",null,"Dunbarton",null,"Epsom",null,"Franklin",null,"Henniker",null,"Hill",null,"Hooksett",null,"Hopkinton",null,"Loudon",null,"Newbury",null,"New London",null,"Northfield",null,"Pembroke",null,"Pittsfield",null,"Salisbury",null,"Sutton",null,"Warner",null,"Webster",null,"Wilmot"]
[null,null,"Estimate","Margin Of Error","Estimate","Margin Of Error","Estimate","Margin Of Error","Estimate","Margin Of Error","Estimate","Margin Of Error","Estimate","Margin Of Error","Estimate","Margin Of Error","Estimate","Margin Of Error","Estimate","Margin Of Error","Estimate","Margin Of Error","Estimate","Margin Of Error","Estimate","Margin Of Error","Estimate","Margin Of Error","Estimate","Margin Of Error","Estimate","Margin Of Error","Estimate","Margin Of Error","Estimate","Margin Of Error","Estimate","Margin Of Error","Estimate","Margin Of Error","Estimate","Margin Of Error","Estimate","Margin Of Error","Estimate","Margin Of Error","Estimate","Margin Of Error","Estimate","Margin Of Error","Estimate","Margin Of Error","Estimate","Margin Of Error","Estimate","Margin Of Error"]
[null,"Total Households",1788,107,1054,90,1374,112,2715,130,647,67,970,60,969,55,17530,366,481,65,938,45,1787,124,3909,223,1805,127,373,48,5252,190,2193,126,2050,174,910,86,1551,161,1860,118,2690,164,1675,159,554,65,769,91,1144,96,760,72,704,71]
[null,"Households With"]
[null,"Income Less than $10,000 ",98,66,39,42,31,28,52,45,8,8,18,12,12,12,940,216,3,4,3,7,8,14,174,77,107,68,10,15,167,94,29,35,130,102,6,9,32,26,9,13,90,94,83,108,9,8,10,18,59,32,27,20,23,24]
[null,"Income $10,000 to $14,999 ",160,84,23,31,48,41,19,20,13,11,40,31,8,9,792,180,21,20,5,7,43,36,191,87,98,86,7,7,82,45,19,29,19,30,12,13,65,44,22,20,11,19,165,104,4,6,8,10,24,17,11,8,3,6]
[null,"Income $15,000 to $19,999 ",69,48,0,11,78,59,56,37,12,10,53,43,15,13,556,132,4,6,4,6,75,39,301,158,111,74,4,5,126,77,0,16,22,34,36,18,42,36,40,37,17,26,98,65,15,10,27,31,71,52,15,12,10,13]
[null,"Income $20,000 to $24,999 ",25,24,48,43,27,30,75,38,31,24,41,39,29,19,783,178,24,23,8,9,56,42,200,80,51,50,11,9,132,67,68,55,84,71,15,13,37,36,33,31,112,70,25,23,30,24,28,28,62,44,7,9,32,25]
[null,"Income $25,000 to $29,999 ",95,61,19,15,56,42,47,34,56,30,17,17,15,14,835,199,15,13,12,10,109,45,195,87,44,40,7,7,55,37,41,41,72,61,24,18,33,27,174,110,60,50,46,34,10,8,24,19,61,38,21,16,26,15]
[null,"Income $30,000 to $34,999 ",118,75,67,44,66,53,32,25,36,25,46,25,42,24,763,202,37,19,13,11,43,26,291,114,55,49,7,9,183,102,46,45,88,78,19,14,49,36,109,62,164,123,90,69,7,7,19,17,18,13,10,8,5,6]
[null,"Income $35,000 to $39,999 ",92,72,49,38,52,37,42,28,23,15,6,11,21,21,727,184,43,29,21,16,41,34,109,75,8,12,16,19,205,139,89,69,117,78,0,11,23,28,113,73,34,47,16,20,15,11,7,8,51,29,30,17,12,10]
[null,"Income $40,000 to $44,999 ",77,45,36,32,11,19,50,38,27,24,34,22,27,19,685,146,27,15,22,16,43,31,209,93,65,53,28,21,220,80,43,50,84,67,18,15,65,54,75,59,57,53,82,52,31,21,17,14,23,14,15,12,18,11]
[null,"Income $45,000 to $49,999 ",40,29,42,41,53,46,26,22,32,22,6,10,68,41,721,155,18,14,54,21,51,35,174,87,68,58,13,16,191,87,59,48,26,33,14,13,43,23,120,65,128,99,52,33,16,15,50,31,21,11,36,25,38,30]
[null,"Income $50,000 to $59,999 ",185,90,61,33,78,47,100,50,55,25,54,31,54,30,1183,203,47,28,29,15,175,82,413,137,57,42,21,12,281,105,331,152,132,79,57,26,114,67,177,83,202,105,296,114,36,21,32,23,78,42,44,18,74,37]
[null,"Income $60,000 to $74,999 ",174,70,122,43,210,102,179,68,41,18,113,54,57,28,1581,253,43,24,53,21,216,98,364,132,176,66,44,18,546,148,230,97,269,141,68,28,206,83,259,87,208,96,148,75,71,26,96,37,123,57,70,26,96,38]
[null,"Income $75,000 to $99,999 ",320,99,172,61,184,86,293,98,93,29,138,48,155,55,2641,319,100,36,163,46,233,98,503,148,297,106,93,33,1000,182,226,106,334,134,169,54,130,53,238,75,597,171,296,102,118,36,90,42,173,49,181,57,72,37]
[null,"Income $100,000 to $124,999 ",100,61,136,56,294,128,459,105,72,24,77,35,186,57,1729,232,60,30,93,37,161,74,496,145,201,90,41,22,594,151,201,96,306,143,136,48,146,58,179,77,310,132,97,60,79,34,114,40,71,28,121,35,59,37]
[null,"Income $125,000 to $149,999 ",87,45,100,51,87,39,276,88,43,26,160,44,99,48,914,158,7,7,154,44,220,101,73,45,146,77,46,16,449,138,251,110,116,70,67,33,159,60,111,53,276,113,104,77,51,24,92,44,137,61,80,24,54,30]
[null,"Income $150,000 to $199,999 ",128,62,100,41,7,12,569,105,51,25,87,30,110,42,1453,184,11,8,129,44,155,67,97,60,191,82,11,9,441,124,296,107,115,88,114,49,155,62,112,53,255,86,28,25,29,17,84,37,109,41,74,30,76,27]
[null,"Income $200,000 or more ",20,20,40,20,92,65,440,104,54,35,80,31,71,37,1227,172,21,19,175,50,158,114,119,71,130,67,14,12,580,150,264,112,136,70,155,60,252,86,89,55,169,86,49,34,33,18,71,30,63,30,18,11,106,35]
[]
[]
[]
[]
[null,"Calculated B19001. HOUSEHOLD INCOME IN THE PAST 12 MONTHS (IN 2019 INFLATION-ADJUSTED DOLLARS)"]
[null,"Universe:  HOUSEHOLDS"]
[null,"Data Set: 2015-2019 American Community Survey 5-Year Estimates"]
[null,null,"Allenstown",null,"Andover",null,"Boscawen",null,"Bow",null,"Bradford",null,"Canterbury",null,"Chichester",null,"Concord",null,"Danbury",null,"Dunbarton",null,"Epsom",null,"Franklin",null,"Henniker",null,"Hill",null,"Hooksett",null,"Hopkinton",null,"Loudon",null,"Newbury",null,"New London",null,"Northfield",null,"Pembroke",null,"Pittsfield",null,"Salisbury",null,"Sutton",null,"Warner",null,"Webster",null,"Wilmot"]
[null,null,"Estimate","Margin Of Error","Estimate","Margin Of Error","Estimate","Margin Of Error","Estimate","Margin Of Error","Estimate","Margin Of Error","Estimate","Margin Of Error","Estimate","Margin Of Error","Estimate","Margin Of Error","Estimate","Margin Of Error","Estimate","Margin Of Error","Estimate","Margin Of Error","Estimate","Margin Of Error","Estimate","Margin Of Error","Estimate","Margin Of Error","Estimate","Margin Of Error","Estimate","Margin Of Error","Estimate","Margin Of Error","Estimate","Margin Of Error","Estimate","Margin Of Error","Estimate","Margin Of Error","Estimate","Margin Of Error","Estimate","Margin Of Error","Estimate","Margin Of Error","Estimate","Margin Of Error","Estimate","Margin Of Error","Estimate","Margin Of Error","Estimate","Margin Of Error"]
[null,"Total Households",{"$f":"$C$7","v":1788},{"$f":"$D$7","v":107},{"$f":"$E$7","v":1054},{"$f":"$F$7","v":90},{"$f":"$G$7","v":1374},{"$f":"$H$7","v":112},{"$f":"$I$7","v":2715},{"$f":"$J$7","v":130},{"$f":"$K$7","v":647},{"$f":"$L$7","v":67},{"$f":"$M$7","v":970},{"$f":"$N$7","v":60},{"$f":"$O$7","v":969},{"$f":"$P$7","v":55},{"$f":"$Q$7","v":17530},{"$f":"R7","v":366},481,65,938,45,1787,124,{"$f":"Y7","v":3909},223,1805,127,373,48,5252,190,2193,126,2050,174,910,86,1551,161,{"$f":"AO7","v":1860},118,2690,164,1675,159,554,65,769,91,1144,96,760,72,704,{"$f":"BD7","v":71}]
[null,"Households With"]
[null,"Income Less than $10,000 ",{"$f":"$C$9","v":98},{"$f":"$D$9","v":66},{"$f":"$E$9","v":39},{"$f":"$F$9","v":42},{"$f":"$G$9","v":31},{"$f":"$H$9","v":28},{"$f":"$I$9","v":52},{"$f":"$J$9","v":45},{"$f":"$K$9","v":8},{"$f":"$L$9","v":8},{"$f":"$M$9","v":18},{"$f":"$N$9","v":12},{"$f":"$O$9","v":12},{"$f":"$P$9","v":12},{"$f":"$Q$9","v":940},{"$f":"R9","v":216},3,4,3,7,8,14,{"$f":"Y9","v":174},77,107,68,10,15,167,94,29,35,130,102,6,9,32,26,{"$f":"AO9","v":9},13,90,94,83,108,9,8,10,18,59,32,27,20,23,{"$f":"BD9","v":24}]
[null,"Income $10,000 to $14,999 ",{"$f":"$C$10","v":160},{"$f":"$D$10","v":84},{"$f":"$E$10","v":23},{"$f":"$F$10","v":31},{"$f":"$G$10","v":48},{"$f":"$H$10","v":41},{"$f":"$I$10","v":19},{"$f":"$J$10","v":20},{"$f":"$K$10","v":13},{"$f":"$L$10","v":11},{"$f":"$M$10","v":40},{"$f":"$N$10","v":31},{"$f":"$O$10","v":8},{"$f":"$P$10","v":9},{"$f":"$Q$10","v":792},180,21,20,5,7,43,36,{"$f":"Y10","v":191},87,98,86,7,7,82,45,19,29,19,30,12,13,65,44,{"$f":"AO10","v":22},20,11,19,165,104,4,6,8,10,24,17,11,8,3,{"$f":"BD10","v":6}]
[null,"Income $15,000 to $24,999 ",{"$f":"$C$11+$C$12","v":94},{"$f":"SQRT(($D$11^2)+($D$12^2))","v":53.665631459994955},{"$f":"$E$11+$E$12","v":48},{"$f":"SQRT(($F$11^2)+($F$12^2))","v":44.384682042344295},{"$f":"$G$11+$G$12","v":105},{"$f":"SQRT(($H$11^2)+($H$12^2))","v":66.189122973491649},{"$f":"$I$11+$I$12","v":131},{"$f":"SQRT(($J$11^2)+($J$12^2))","v":53.037722424704477},{"$f":"$K$11+$K$12","v":43},{"$f":"SQRT(($L$11^2)+($L$12^2))","v":26},{"$f":"$M$11+$M$12","v":94},{"$f":"SQRT(($N$11^2)+($N$12^2))","v":58.051701094799967},{"$f":"$O$11+$O$12","v":44},{"$f":"SQRT(($P$11^2)+($P$12^2))","v":23.021728866442675},{"$f":"Q11+Q12","v":1339},{"$f":"SQRT((R11^2)+(R12^2))","v":221.60324907365415},{"$f":"S11+S12","v":28},{"$f":"SQRT((T11^2)+(T12^2))","v":23.769728648009426},{"$f":"U11+U12","v":12},{"$f":"SQRT((V11^2)+(V12^2))","v":10.816653826391969},{"$f":"W11+W12","v":131},{"$f":"SQRT((X11^2)+(X12^2))","v":57.314919523628397},{"$f":"Y11+Y12","v":501},{"$f":"SQRT((Z11^2)+(Z12^2))","v":177.09884245810304},{"$f":"AA11+AA12","v":162},{"$f":"SQRT((AB11^2)+(AB12^2))","v":89.308454247064432},{"$f":"AC11+AC12","v":15},{"$f":"SQRT((AD11^2)+(AD12^2))","v":10.295630140987001},{"$f":"AE11+AE12","v":258},{"$f":"SQRT((AF11^2)+(AF12^2))","v":102.06860437960343},{"$f":"AG11+AG12","v":68},{"$f":"SQRT((AH11^2)+(AH12^2))","v":57.280013966478741},{"$f":"AI11+AI12","v":106},{"$f":"SQRT((AJ11^2)+(AJ12^2))","v":78.721026416072604},{"$f":"AK11+AK12","v":51},{"$f":"SQRT((AL11^2)+(AL12^2))","v":22.203603311174518},{"$f":"AM11+AM12","v":79},{"$f":"SQRT((AN11^2)+(AN12^2))","v":50.911688245431421},{"$f":"AO11+AO12","v":73},{"$f":"SQRT((AP11^2)+(AP12^2))","v":48.270073544588683},{"$f":"AQ11+AQ12","v":129},{"$f":"SQRT((AR11^2)+(AR12^2))","v":74.672618810377884},{"$f":"AS11+AS12","v":123},{"$f":"SQRT((AT11^2)+(AT12^2))","v":68.949256703752795},{"$f":"AU11+AU12","v":45},{"$f":"SQRT((AV11^2)+(AV12^2))","v":26},{"$f":"AW11+AW12","v":55},{"$f":"SQRT((AX11^2)+(AX12^2))","v":41.773197148410844},{"$f":"AY11+AY12","v":133},{"$f":"SQRT((AZ11^2)+(AZ12^2))","v":68.117545463705611},{"$f":"BA11+BA12","v":22},{"$f":"SQRT((BB11^2)+(BB12^2))","v":15},{"$f":"BC11+BC12","v":42},{"$f":"SQRT((BD11^2)+(BD12^2))","v":28.178005607210743}]
[null,"Income $25,000 to $34,999 ",{"$f":"$C$13+$C$14","v":213},{"$f":"SQRT(($D$13^2)+($D$14^2))","v":96.674712308855618},{"$f":"$E$13+$E$14","v":86},{"$f":"SQRT(($F$13^2)+($F$14^2))","v":46.486557196677836},{"$f":"$G$13+$G$14","v":122},{"$f":"SQRT(($H$13^2)+($H$14^2))","v":67.623960250786851},{"$f":"$I$13+$I$14","v":79},{"$f":"SQRT(($J$13^2)+($J$14^2))","v":42.201895692018383},{"$f":"$K$13+$K$14","v":92},{"$f":"SQRT(($L$13^2)+($L$14^2))","v":39.05124837953327},{"$f":"$M$13+$M$14","v":63},{"$f":"SQRT(($N$13^2)+($N$14^2))","v":30.232432915661949},{"$f":"$O$13+$O$14","v":57},{"$f":"SQRT(($P$13^2)+($P$14^2))","v":27.784887978899608},{"$f":"Q13+Q14","v":1598},{"$f":"SQRT((R13^2)+(R14^2))","v":283.55775425828159},{"$f":"S13+S14","v":52},{"$f":"SQRT((T13^2)+(T14^2))","v":23.021728866442675},{"$f":"U13+U14","v":25},{"$f":"SQRT((V13^2)+(V14^2))","v":14.866068747318506},{"$f":"W13+W14","v":152},{"$f":"SQRT((X13^2)+(X14^2))","v":51.97114584074513},{"$f":"Y13+Y14","v":486},{"$f":"SQRT((Z13^2)+(Z14^2))","v":143.40502083260543},{"$f":"AA13+AA14","v":99},{"$f":"SQRT((AB13^2)+(AB14^2))","v":63.253458403473878},{"$f":"AC13+AC14","v":14},{"$f":"SQRT((AD13^2)+(AD14^2))","v":11.401754250991379},{"$f":"AE13+AE14","v":238},{"$f":"SQRT((AF13^2)+(AF14^2))","v":108.50345616615168},{"$f":"AG13+AG14","v":87},{"$f":"SQRT((AH13^2)+(AH14^2))","v":60.876925020897694},{"$f":"AI13+AI14","v":160},{"$f":"SQRT((AJ13^2)+(AJ14^2))","v":99.02019995940222},{"$f":"AK13+AK14","v":43},{"$f":"SQRT((AL13^2)+(AL14^2))","v":22.803508501982758},{"$f":"AM13+AM14","v":82},{"$f":"SQRT((AN13^2)+(AN14^2))","v":45},{"$f":"AO13+AO14","v":283},{"$f":"SQRT((AP13^2)+(AP14^2))","v":126.26955294131677},{"$f":"AQ13+AQ14","v":224},{"$f":"SQRT((AR13^2)+(AR14^2))","v":132.77424449041311},{"$f":"AS13+AS14","v":136},{"$f":"SQRT((AT13^2)+(AT14^2))","v":76.922038454528746},{"$f":"AU13+AU14","v":17},{"$f":"SQRT((AV13^2)+(AV14^2))","v":10.63014581273465},{"$f":"AW13+AW14","v":43},{"$f":"SQRT((AX13^2)+(AX14^2))","v":25.495097567963924},{"$f":"AY13+AY14","v":79},{"$f":"SQRT((AZ13^2)+(AZ14^2))","v":40.162171256046406},{"$f":"BA13+BA14","v":31},{"$f":"SQRT((BB13^2)+(BB14^2))","v":17.888543819998318},{"$f":"BC13+BC14","v":31},{"$f":"SQRT((BD13^2)+(BD14^2))","v":16.15549442140351}]
[null,"Income $35,000 to $49,999 ",{"$f":"$C$15+$C$16+$C$17","v":209},{"$f":"SQRT(($D$15^2)+($D$16^2)+($D$17^2))","v":89.721792224631798},{"$f":"$E$15+$E$16+$E$17","v":127},{"$f":"SQRT(($F$15^2)+($F$16^2)+($F$17^2))","v":64.41273166075166},{"$f":"$G$15+$G$16+$G$17","v":116},{"$f":"SQRT(($H$15^2)+($H$16^2)+($H$17^2))","v":62.016126934854611},{"$f":"$I$15+$I$16+$I$17","v":118},{"$f":"SQRT(($J$15^2)+($J$16^2)+($J$17^2))","v":52.076866265166146},{"$f":"$K$15+$K$16+$K$17","v":82},{"$f":"SQRT(($L$15^2)+($L$16^2)+($L$17^2))","v":35.846896657869841},{"$f":"$M$15+$M$16+$M$17","v":46},{"$f":"SQRT(($N$15^2)+($N$16^2)+($N$17^2))","v":26.551836094703507},{"$f":"$O$15+$O$16+$O$17","v":116},{"$f":"SQRT(($P$15^2)+($P$16^2)+($P$17^2))","v":49.829710013203972},{"$f":"Q15+Q16+Q17","v":2133},{"$f":"SQRT((R15^2)+(R16^2)+(R17^2))","v":281.41961552102225},{"$f":"S15+S16+S17","v":88},{"$f":"SQRT((T15^2)+(T16^2)+(T17^2))","v":35.52463933666322},{"$f":"U15+U16+U17","v":97},{"$f":"SQRT((V15^2)+(V16^2)+(V17^2))","v":30.870698080866262},{"$f":"W15+W16+W17","v":135},{"$f":"SQRT((X15^2)+(X16^2)+(X17^2))","v":57.810033731178535},{"$f":"Y15+Y16+Y17","v":492},{"$f":"SQRT((Z15^2)+(Z16^2)+(Z17^2))","v":147.79377524104322},{"$f":"AA15+AA16+AA17","v":141},{"$f":"SQRT((AB15^2)+(AB16^2)+(AB17^2))","v":79.479557120054466},{"$f":"AC15+AC16+AC17","v":57},{"$f":"SQRT((AD15^2)+(AD16^2)+(AD17^2))","v":32.526911934581186},{"$f":"AE15+AE16+AE17","v":616},{"$f":"SQRT((AF15^2)+(AF16^2)+(AF17^2))","v":182.45547402037573},{"$f":"AG15+AG16+AG17","v":191},{"$f":"SQRT((AH15^2)+(AH16^2)+(AH17^2))","v":97.8008179924892},{"$f":"AI15+AI16+AI17","v":227},{"$f":"SQRT((AJ15^2)+(AJ16^2)+(AJ17^2))","v":107.99074034379059},{"$f":"AK15+AK16+AK17","v":32},{"$f":"SQRT((AL15^2)+(AL16^2)+(AL17^2))","v":22.693611435820433},{"$f":"AM15+AM16+AM17","v":131},{"$f":"SQRT((AN15^2)+(AN16^2)+(AN17^2))","v":65.030761951556428},{"$f":"AO15+AO16+AO17","v":308},{"$f":"SQRT((AP15^2)+(AP16^2)+(AP17^2))","v":114.17092449481173},{"$f":"AQ15+AQ16+AQ17","v":219},{"$f":"SQRT((AR15^2)+(AR16^2)+(AR17^2))","v":121.73331507849443},{"$f":"AS15+AS16+AS17","v":150},{"$f":"SQRT((AT15^2)+(AT16^2)+(AT17^2))","v":64.753378290248307},{"$f":"AU15+AU16+AU17","v":62},{"$f":"SQRT((AV15^2)+(AV16^2)+(AV17^2))","v":28.053520278211074},{"$f":"AW15+AW16+AW17","v":74},{"$f":"SQRT((AX15^2)+(AX16^2)+(AX17^2))","v":34.942810419312295},{"$f":"AY15+AY16+AY17","v":95},{"$f":"SQRT((AZ15^2)+(AZ16^2)+(AZ17^2))","v":34.02939905434711},{"$f":"BA15+BA16+BA17","v":81},{"$f":"SQRT((BB15^2)+(BB16^2)+(BB17^2))","v":32.526911934581186},{"$f":"BC15+BC16+BC17","v":68},{"$f":"SQRT((BD15^2)+(BD16^2)+(BD17^2))","v":33.481338085566414}]
[null,"Income $50,000 to $74,999 ",{"$f":"$C$18+$C$19","v":359},{"$f":"SQRT(($D$18^2)+($D$19^2))","v":114.0175425099138},{"$f":"$E$18+$E$19","v":183},{"$f":"SQRT(($F$18^2)+($F$19^2))","v":54.203320931470607},{"$f":"$G$18+$G$19","v":288},{"$f":"SQRT(($H$18^2)+($H$19^2))","v":112.30761327710601},{"$f":"$I$18+$I$19","v":279},{"$f":"SQRT(($J$18^2)+($J$19^2))","v":84.403791384036765},{"$f":"$K$18+$K$19","v":96},{"$f":"SQRT(($L$18^2)+($L$19^2))","v":30.805843601498726},{"$f":"$M$18+$M$19","v":167},{"$f":"SQRT(($N$18^2)+($N$19^2))","v":62.265560304232388},{"$f":"$O$18+$O$19","v":111},{"$f":"SQRT(($P$18^2)+($P$19^2))","v":41.036569057366385},{"$f":"Q18+Q19","v":2764},{"$f":"SQRT((R18^2)+(R19^2))","v":324.37324180641042},{"$f":"S18+S19","v":90},{"$f":"SQRT((T18^2)+(T19^2))","v":36.878177829171548},{"$f":"U18+U19","v":82},{"$f":"SQRT((V18^2)+(V19^2))","v":25.80697580112788},{"$f":"W18+W19","v":391},{"$f":"SQRT((X18^2)+(X19^2))","v":127.7810627597063},{"$f":"Y18+Y19","v":777},{"$f":"SQRT((Z18^2)+(Z19^2))","v":190.24457942343588},{"$f":"AA18+AA19","v":233},{"$f":"SQRT((AB18^2)+(AB19^2))","v":78.230428862431779},{"$f":"AC18+AC19","v":65},{"$f":"SQRT((AD18^2)+(AD19^2))","v":21.633307652783937},{"$f":"AE18+AE19","v":827},{"$f":"SQRT((AF18^2)+(AF19^2))","v":181.46349495146399},{"$f":"AG18+AG19","v":561},{"$f":"SQRT((AH18^2)+(AH19^2))","v":180.31361568112376},{"$f":"AI18+AI19","v":401},{"$f":"SQRT((AJ18^2)+(AJ19^2))","v":161.62301816263673},{"$f":"AK18+AK19","v":125},{"$f":"SQRT((AL18^2)+(AL19^2))","v":38.209946349085598},{"$f":"AM18+AM19","v":320},{"$f":"SQRT((AN18^2)+(AN19^2))","v":106.66770832824712},{"$f":"AO18+AO19","v":436},{"$f":"SQRT((AP18^2)+(AP19^2))","v":120.24142381059865},{"$f":"AQ18+AQ19","v":410},{"$f":"SQRT((AR18^2)+(AR19^2))","v":142.2708684165525},{"$f":"AS18+AS19","v":444},{"$f":"SQRT((AT18^2)+(AT19^2))","v":136.45878498652991},{"$f":"AU18+AU19","v":107},{"$f":"SQRT((AV18^2)+(AV19^2))","v":33.421549934136806},{"$f":"AW18+AW19","v":128},{"$f":"SQRT((AX18^2)+(AX19^2))","v":43.56604182158393},{"$f":"AY18+AY19","v":201},{"$f":"SQRT((AZ18^2)+(AZ19^2))","v":70.802542327235685},{"$f":"BA18+BA19","v":114},{"$f":"SQRT((BB18^2)+(BB19^2))","v":31.622776601683793},{"$f":"BC18+BC19","v":170},{"$f":"SQRT((BD18^2)+(BD19^2))","v":53.037722424704477}]
[null,"Income $75,000 to $99,999 ",{"$f":"$C$20","v":320},{"$f":"$D$20","v":99},{"$f":"$E$20","v":172},{"$f":"$F$20","v":61},{"$f":"$G$20","v":184},{"$f":"$H$20","v":86},{"$f":"$I$20","v":293},{"$f":"$J$20","v":98},{"$f":"$K$20","v":93},{"$f":"$L$20","v":29},{"$f":"$M$20","v":138},{"$f":"$N$20","v":48},{"$f":"$O$20","v":155},{"$f":"$P$20","v":55},{"$f":"Q20","v":2641},319,100,36,163,46,233,98,{"$f":"Y20","v":503},148,297,106,93,33,1000,182,226,106,334,134,169,54,130,53,{"$f":"AO20","v":238},75,597,171,296,102,118,36,90,42,173,49,181,57,72,{"$f":"BD20","v":37}]
[null,"Income $100,000 to $149,999 ",{"$f":"$C$21+$C$22","v":187},{"$f":"SQRT(($D$21^2)+($D$22^2))","v":75.802374632988901},{"$f":"$E$21+$E$22","v":236},{"$f":"SQRT(($F$21^2)+($F$22^2))","v":75.742986473996396},{"$f":"$G$21+$G$22","v":381},{"$f":"SQRT(($H$21^2)+($H$22^2))","v":133.80956617521784},{"$f":"$I$21+$I$22","v":735},{"$f":"SQRT(($J$21^2)+($J$22^2))","v":137},{"$f":"$K$21+$K$22","v":115},{"$f":"SQRT(($L$21^2)+($L$22^2))","v":35.383612025908263},{"$f":"$M$21+$M$22","v":237},{"$f":"SQRT(($N$21^2)+($N$22^2))","v":56.222771187482387},{"$f":"$O$21+$O$22","v":285},{"$f":"SQRT(($P$21^2)+($P$22^2))","v":74.518454090245328},{"$f":"Q21+Q22","v":2643},{"$f":"SQRT((R21^2)+(R22^2))","v":280.6920020235703},{"$f":"S21+S22","v":67},{"$f":"SQRT((T21^2)+(T22^2))","v":30.805843601498726},{"$f":"U21+U22","v":247},{"$f":"SQRT((V21^2)+(V22^2))","v":57.489129407219238},{"$f":"W21+W22","v":381},{"$f":"SQRT((X21^2)+(X22^2))","v":125.2078272313676},{"$f":"Y21+Y22","v":569},{"$f":"SQRT((Z21^2)+(Z22^2))","v":151.82226450688975},{"$f":"AA21+AA22","v":347},{"$f":"SQRT((AB21^2)+(AB22^2))","v":118.44407963254221},{"$f":"AC21+AC22","v":87},{"$f":"SQRT((AD21^2)+(AD22^2))","v":27.202941017470888},{"$f":"AE21+AE22","v":1043},{"$f":"SQRT((AF21^2)+(AF22^2))","v":204.56050449683585},{"$f":"AG21+AG22","v":452},{"$f":"SQRT((AH21^2)+(AH22^2))","v":146},{"$f":"AI21+AI22","v":422},{"$f":"SQRT((AJ21^2)+(AJ22^2))","v":159.21369287847074},{"$f":"AK21+AK22","v":203},{"$f":"SQRT((AL21^2)+(AL22^2))","v":58.249463516842795},{"$f":"AM21+AM22","v":305},{"$f":"SQRT((AN21^2)+(AN22^2))","v":83.450584180100265},{"$f":"AO21+AO22","v":290},{"$f":"SQRT((AP21^2)+(AP22^2))","v":93.477269964414347},{"$f":"AQ21+AQ22","v":586},{"$f":"SQRT((AR21^2)+(AR22^2))","v":173.76133056580801},{"$f":"AS21+AS22","v":201},{"$f":"SQRT((AT21^2)+(AT22^2))","v":97.616596949494195},{"$f":"AU21+AU22","v":130},{"$f":"SQRT((AV21^2)+(AV22^2))","v":41.617304093369626},{"$f":"AW21+AW22","v":206},{"$f":"SQRT((AX21^2)+(AX22^2))","v":59.464274989274024},{"$f":"AY21+AY22","v":208},{"$f":"SQRT((AZ21^2)+(AZ22^2))","v":67.119296778199342},{"$f":"BA21+BA22","v":201},{"$f":"SQRT((BB21^2)+(BB22^2))","v":42.43819034784589},{"$f":"BC21+BC22","v":113},{"$f":"SQRT((BD21^2)+(BD22^2))","v":47.634021455258214}]
[null,"Income $150,000 to $199,999 ",{"$f":"$C$23","v":128},{"$f":"$D$23","v":62},{"$f":"$E$23","v":100},{"$f":"$F$23","v":41},{"$f":"$G$23","v":7},{"$f":"$H$23","v":12},{"$f":"$I$23","v":569},{"$f":"$J$23","v":105},{"$f":"$K$23","v":51},{"$f":"$L$23","v":25},{"$f":"$M$23","v":87},{"$f":"$N$23","v":30},{"$f":"$O$23","v":110},{"$f":"$P$23","v":42},{"$f":"Q23","v":1453},184,11,8,129,44,155,67,{"$f":"Y23","v":97},60,191,82,11,9,441,124,296,107,115,88,114,49,155,62,{"$f":"AO23","v":112},53,255,86,28,25,29,17,84,37,109,41,74,30,76,{"$f":"BD23","v":27}]
[null,"Income $200,000 or more ",{"$f":"$C$24","v":20},{"$f":"$D$24","v":20},{"$f":"$E$24","v":40},{"$f":"$F$24","v":20},{"$f":"$G$24","v":92},{"$f":"$H$24","v":65},{"$f":"$I$24","v":440},{"$f":"$J$24","v":104},{"$f":"$K$24","v":54},{"$f":"$L$24","v":35},{"$f":"$M$24","v":80},{"$f":"$N$24","v":31},{"$f":"$O$24","v":71},{"$f":"$P$24","v":37},1227,172,21,19,175,50,158,114,{"$f":"Y24","v":119},71,130,67,14,12,580,150,264,112,136,70,155,60,252,86,{"$f":"AO24","v":89},55,169,86,49,34,33,18,71,30,63,30,18,11,106,{"$f":"BD24","v":35}]
[]
[]
[]
[]
[]
[]
[]
[]
[]
[]
[]
[]
[]
[]
[]
[]
[]
[]
[]
[]
[]
[]
[]
[]
[null,"B19001. HOUSEHOLD INCOME IN THE PAST 12 MONTHS (IN 2014 INFLATION-ADJUSTED DOLLARS)",null,null,null,null,null,null,null,null,null,null,null,null,{"$f":"B70","v":"B19001. HOUSEHOLD INCOME IN THE PAST 12 MONTHS (IN 2014 INFLATION-ADJUSTED DOLLARS)"}]
[null,"Universe:  HOUSEHOLDS",null,null,null,null,null,null,null,null,null,null,null,null,{"$f":"B72","v":"Data Set: 2010-2014 American Community Survey 5-Year Estimates"}]
[null,"Data Set: 2010-2014 American Community Survey 5-Year Estimates"]
[]
[null,null,"Allenstown",null,"Andover",null,"Boscawen",null,"Bow",null,"Bradford",null,"Canterbury",null,"Chichester",null,"Concord",null,"Danbury",null,"Dunbarton",null,"Epsom",null,"Franklin",null,"Henniker",null,"Hill",null,"Hooksett",null,"Hopkinton",null,"Loudon",null,"Newbury",null,"New London",null,"Northfield",null,"Pembroke",null,"Pittsfield",null,"Salisbury",null,"Sutton",null,"Warner",null,"Webster",null,"Wilmot"]
[null,null,"Estimate","Margin Of Error","Estimate","Margin Of Error","Estimate","Margin Of Error","Estimate","Margin Of Error","Estimate","Margin Of Error","Estimate","Margin Of Error","Estimate","Margin Of Error","Estimate","Margin Of Error","Estimate","Margin Of Error","Estimate","Margin Of Error","Estimate","Margin Of Error","Estimate","Margin Of Error","Estimate","Margin Of Error","Estimate","Margin Of Error","Estimate","Margin Of Error","Estimate","Margin Of Error","Estimate","Margin Of Error","Estimate","Margin Of Error","Estimate","Margin Of Error","Estimate","Margin Of Error","Estimate","Margin Of Error","Estimate","Margin Of Error","Estimate","Margin Of Error","Estimate","Margin Of Error","Estimate","Margin Of Error","Estimate","Margin Of Error","Estimate","Margin Of Error"]
[null,"Total Households",1787,88,975,87,1270,147,2777,133,684,77,894,64,996,62,17141,334,533,70,1053,59,1809,122,3379,195,1598,145,445,57,5216,237,2122,112,2013,139,756,95,1734,157,1729,104,2787,148,1525,127,553,62,786,99,1123,84,767,66,588,67]
[null,"Households With"]
[null,"Income Less than $10,000 ",100,102,53,38,76,42,30,28,41,24,10,11,28,29,982,193,13,9,20,15,48,37,259,89,79,64,11,14,87,53,28,32,73,47,21,15,91,56,11,16,163,108,180,84,6,6,12,15,37,38,21,17,8,6]
[null,"Income $10,000 to $14,999 ",105,75,41,35,79,66,82,60,38,16,15,12,29,31,882,189,11,10,7,10,150,102,227,111,158,76,16,17,195,100,13,22,79,59,9,9,75,51,45,37,134,96,114,72,29,23,14,16,14,23,25,18,16,12]
[null,"Income $15,000 to $19,999 ",42,31,15,12,67,47,71,49,21,12,28,17,33,26,651,158,34,28,10,11,41,45,270,99,32,28,6,6,103,56,54,47,32,26,27,33,54,49,110,72,108,76,40,28,14,10,4,5,51,42,46,32,12,8]
[null,"Income $20,000 to $24,999 ",161,83,41,19,57,48,107,60,13,10,16,14,47,35,916,213,47,29,21,17,72,39,200,94,33,23,21,18,191,69,22,25,121,89,22,16,127,47,93,64,104,63,69,48,16,17,30,22,53,41,24,13,23,24]
[null,"Income $25,000 to $29,999 ",77,61,68,40,47,42,30,25,23,19,17,15,21,16,932,207,19,18,75,43,43,32,281,111,29,27,37,23,265,96,25,29,34,33,21,19,45,31,64,49,124,73,109,66,13,9,36,25,26,17,15,11,26,14]
[null,"Income $30,000 to $34,999 ",106,59,32,23,61,39,36,28,37,28,14,11,40,30,1120,220,22,19,34,24,101,66,121,62,94,65,30,16,128,69,58,46,110,72,78,48,70,50,20,20,127,97,90,42,19,18,31,20,23,17,44,31,42,27]
[null,"Income $35,000 to $39,999 ",106,61,67,40,41,25,72,46,37,21,23,18,26,19,757,169,41,28,27,20,47,38,184,103,22,28,15,11,192,92,102,75,93,74,23,18,63,48,123,60,113,78,57,45,30,22,46,29,45,30,21,10,24,24]
[null,"Income $40,000 to $44,999 ",92,43,36,31,9,14,161,84,24,14,17,14,36,23,924,212,25,11,34,27,67,57,311,110,28,24,29,22,178,87,54,44,0,15,39,29,68,35,82,41,56,64,58,53,36,21,47,30,77,35,71,31,45,23]
[null,"Income $45,000 to $49,999 ",71,43,46,36,104,63,73,43,28,13,42,32,26,28,765,162,13,9,27,29,18,15,54,35,32,39,18,11,131,83,79,87,91,72,32,23,31,27,88,55,42,41,71,50,11,8,37,24,52,35,32,19,30,24]
[null,"Income $50,000 to $59,999 ",166,71,45,22,125,63,108,61,93,36,84,42,75,49,1349,216,53,36,70,40,136,69,224,88,65,46,39,24,219,94,176,105,204,92,86,28,159,62,144,66,178,99,40,30,51,27,77,37,107,52,51,25,53,29]
[null,"Income $60,000 to $74,999 ",178,77,94,46,173,74,153,70,84,37,76,33,120,42,1688,259,99,39,79,33,223,100,378,127,304,110,54,22,584,163,195,116,292,95,57,26,144,62,195,80,313,145,117,58,116,38,91,43,95,42,76,26,46,23]
[null,"Income $75,000 to $99,999 ",245,85,196,61,202,80,418,99,94,28,199,52,200,54,2373,313,78,31,163,45,240,89,560,114,232,89,95,34,1052,199,453,159,346,102,115,40,195,67,363,101,487,155,286,98,65,23,149,57,143,46,143,36,81,32]
[null,"Income $100,000 to $124,999 ",183,72,120,51,69,46,341,99,64,24,141,46,100,37,1384,208,43,29,172,61,231,88,172,66,152,79,29,17,709,169,335,124,146,82,88,44,249,85,228,80,329,137,87,44,79,24,67,33,144,51,81,28,83,33]
[null,"Income $125,000 to $149,999 ",85,48,25,17,74,41,397,111,34,22,111,42,103,50,799,165,22,16,97,35,166,62,99,59,149,74,28,16,554,169,114,76,189,79,58,33,122,46,104,43,197,115,74,47,28,17,51,30,71,32,63,28,56,28]
[null,"Income $150,000 to $199,999 ",70,42,72,49,41,32,375,119,17,11,36,19,77,36,937,151,13,15,134,45,133,67,39,26,110,63,15,16,391,129,212,102,144,94,38,22,178,64,27,25,207,82,102,63,23,13,46,30,88,44,32,14,21,10]
[null,"Income $200,000 or more ",0,11,24,14,45,43,323,89,36,24,65,29,35,23,682,155,0,11,83,25,93,51,0,15,79,36,2,4,237,135,202,79,59,57,42,21,63,43,32,40,105,65,31,25,17,17,48,26,97,48,22,17,22,21]
[]
[]
[]
[]
[null,"Calculated B19001. HOUSEHOLD INCOME IN THE PAST 12 MONTHS (IN 2014 INFLATION-ADJUSTED DOLLARS)"]
[null,"Universe:  HOUSEHOLDS"]
[null,"Data Set: 2010-2014 American Community Survey 5-Year Estimates"]
[null,null,"Allenstown",null,"Andover",null,"Boscawen",null,"Bow",null,"Bradford",null,"Canterbury",null,"Chichester",null,"Concord",null,"Danbury",null,"Dunbarton",null,"Epsom",null,"Franklin",null,"Henniker",null,"Hill",null,"Hooksett",null,"Hopkinton",null,"Loudon",null,"Newbury",null,"New London",null,"Northfield",null,"Pembroke",null,"Pittsfield",null,"Salisbury",null,"Sutton",null,"Warner",null,"Webster",null,"Wilmot"]
[null,null,"Estimate","Margin Of Error","Estimate","Margin Of Error","Estimate","Margin Of Error","Estimate","Margin Of Error","Estimate","Margin Of Error","Estimate","Margin Of Error","Estimate","Margin Of Error","Estimate","Margin Of Error","Estimate","Margin Of Error","Estimate","Margin Of Error","Estimate","Margin Of Error","Estimate","Margin Of Error","Estimate","Margin Of Error","Estimate","Margin Of Error","Estimate","Margin Of Error","Estimate","Margin Of Error","Estimate","Margin Of Error","Estimate","Margin Of Error","Estimate","Margin Of Error","Estimate","Margin Of Error","Estimate","Margin Of Error","Estimate","Margin Of Error","Estimate","Margin Of Error","Estimate","Margin Of Error","Estimate","Margin Of Error","Estimate","Margin Of Error","Estimate","Margin Of Error"]
[null,"Total Households",{"$f":"$C$7","v":1788},{"$f":"$D$7","v":107},{"$f":"$E$7","v":1054},{"$f":"$F$7","v":90},{"$f":"$G$7","v":1374},{"$f":"$H$7","v":112},{"$f":"$I$7","v":2715},{"$f":"$J$7","v":130},{"$f":"$K$7","v":647},{"$f":"$L$7","v":67},{"$f":"$M$7","v":970},{"$f":"$N$7","v":60},{"$f":"$O$7","v":969},{"$f":"$P$7","v":55},{"$f":"$Q$7","v":17530},{"$f":"R76","v":334},533,70,1053,59,1809,122,3379,195,1598,145,445,57,5216,237,2122,112,2013,139,756,95,1734,157,1729,104,2787,148,1525,127,553,62,786,99,1123,84,767,66,588,{"$f":"BD76","v":67}]
[null,"Households With"]
[null,"Income Less than $10,000 ",{"$f":"$C$9","v":98},{"$f":"$D$9","v":66},{"$f":"$E$9","v":39},{"$f":"$F$9","v":42},{"$f":"$G$9","v":31},{"$f":"$H$9","v":28},{"$f":"$I$9","v":52},{"$f":"$J$9","v":45},{"$f":"$K$9","v":8},{"$f":"$L$9","v":8},{"$f":"$M$9","v":18},{"$f":"$N$9","v":12},{"$f":"$O$9","v":12},{"$f":"$P$9","v":12},{"$f":"$Q$9","v":940},{"$f":"R78","v":193},13,9,20,15,48,37,259,89,79,64,11,14,87,53,28,32,73,47,21,15,91,56,11,16,163,108,180,84,6,6,12,15,37,38,21,17,8,{"$f":"BD78","v":6}]
[null,"Income $10,000 to $14,999 ",{"$f":"$C$10","v":160},{"$f":"$D$10","v":84},{"$f":"$E$10","v":23},{"$f":"$F$10","v":31},{"$f":"$G$10","v":48},{"$f":"$H$10","v":41},{"$f":"$I$10","v":19},{"$f":"$J$10","v":20},{"$f":"$K$10","v":13},{"$f":"$L$10","v":11},{"$f":"$M$10","v":40},{"$f":"$N$10","v":31},{"$f":"$O$10","v":8},{"$f":"$P$10","v":9},{"$f":"$Q$10","v":792},189,11,10,7,10,150,102,227,111,158,76,16,17,195,100,13,22,79,59,9,9,75,51,45,37,134,96,114,72,29,23,14,16,14,23,25,18,16,{"$f":"BD79","v":12}]
[null,"Income $15,000 to $24,999 ",{"$f":"$C$11+$C$12","v":94},{"$f":"SQRT(($D$11^2)+($D$12^2))","v":53.665631459994955},{"$f":"$E$11+$E$12","v":48},{"$f":"SQRT(($F$11^2)+($F$12^2))","v":44.384682042344295},{"$f":"$G$11+$G$12","v":105},{"$f":"SQRT(($H$11^2)+($H$12^2))","v":66.189122973491649},{"$f":"$I$11+$I$12","v":131},{"$f":"SQRT(($J$11^2)+($J$12^2))","v":53.037722424704477},{"$f":"$K$11+$K$12","v":43},{"$f":"SQRT(($L$11^2)+($L$12^2))","v":26},{"$f":"$M$11+$M$12","v":94},{"$f":"SQRT(($N$11^2)+($N$12^2))","v":58.051701094799967},{"$f":"$O$11+$O$12","v":44},{"$f":"SQRT(($P$11^2)+($P$12^2))","v":23.021728866442675},{"$f":"Q80+Q81","v":1567},{"$f":"SQRT((R80^2)+(R81^2))","v":265.20369529853838},{"$f":"S80+S81","v":81},{"$f":"SQRT((T80^2)+(T81^2))","v":40.311288741492746},{"$f":"U80+U81","v":31},{"$f":"SQRT((V80^2)+(V81^2))","v":20.248456731316587},{"$f":"W80+W81","v":113},{"$f":"SQRT((X80^2)+(X81^2))","v":59.548299723837623},{"$f":"Y80+Y81","v":470},{"$f":"SQRT((Z80^2)+(Z81^2))","v":136.517398158623},{"$f":"AA80+AA81","v":65},{"$f":"SQRT((AB80^2)+(AB81^2))","v":36.235341863986875},{"$f":"AC80+AC81","v":27},{"$f":"SQRT((AD80^2)+(AD81^2))","v":18.973665961010276},{"$f":"AE80+AE81","v":294},{"$f":"SQRT((AF80^2)+(AF81^2))","v":88.865066252155572},{"$f":"AG80+AG81","v":76},{"$f":"SQRT((AH80^2)+(AH81^2))","v":53.235326616824658},{"$f":"AI80+AI81","v":153},{"$f":"SQRT((AJ80^2)+(AJ81^2))","v":92.720008628127289},{"$f":"AK80+AK81","v":49},{"$f":"SQRT((AL80^2)+(AL81^2))","v":36.674241641784498},{"$f":"AM80+AM81","v":181},{"$f":"SQRT((AN80^2)+(AN81^2))","v":67.896980787071826},{"$f":"AO80+AO81","v":203},{"$f":"SQRT((AP80^2)+(AP81^2))","v":96.332756630338366},{"$f":"AQ80+AQ81","v":212},{"$f":"SQRT((AR80^2)+(AR81^2))","v":98.716766559688324},{"$f":"AS80+AS81","v":109},{"$f":"SQRT((AT80^2)+(AT81^2))","v":55.569775957799216},{"$f":"AU80+AU81","v":30},{"$f":"SQRT((AV80^2)+(AV81^2))","v":19.723082923316021},{"$f":"AW80+AW81","v":34},{"$f":"SQRT((AX80^2)+(AX81^2))","v":22.561028345356956},{"$f":"AY80+AY81","v":104},{"$f":"SQRT((AZ80^2)+(AZ81^2))","v":58.694122363316758},{"$f":"BA80+BA81","v":70},{"$f":"SQRT((BB80^2)+(BB81^2))","v":34.539832078341085},{"$f":"BC80+BC81","v":35},{"$f":"SQRT((BD80^2)+(BD81^2))","v":25.298221281347036}]
[null,"Income $25,000 to $34,999 ",{"$f":"$C$13+$C$14","v":213},{"$f":"SQRT(($D$13^2)+($D$14^2))","v":96.674712308855618},{"$f":"$E$13+$E$14","v":86},{"$f":"SQRT(($F$13^2)+($F$14^2))","v":46.486557196677836},{"$f":"$G$13+$G$14","v":122},{"$f":"SQRT(($H$13^2)+($H$14^2))","v":67.623960250786851},{"$f":"$I$13+$I$14","v":79},{"$f":"SQRT(($J$13^2)+($J$14^2))","v":42.201895692018383},{"$f":"$K$13+$K$14","v":92},{"$f":"SQRT(($L$13^2)+($L$14^2))","v":39.05124837953327},{"$f":"$M$13+$M$14","v":63},{"$f":"SQRT(($N$13^2)+($N$14^2))","v":30.232432915661949},{"$f":"$O$13+$O$14","v":57},{"$f":"SQRT(($P$13^2)+($P$14^2))","v":27.784887978899608},{"$f":"Q82+Q83","v":2052},{"$f":"SQRT((R82^2)+(R83^2))","v":302.07449412355226},{"$f":"S82+S83","v":41},{"$f":"SQRT((T82^2)+(T83^2))","v":26.172504656604801},{"$f":"U82+U83","v":109},{"$f":"SQRT((V82^2)+(V83^2))","v":49.244289008980523},{"$f":"W82+W83","v":144},{"$f":"SQRT((X82^2)+(X83^2))","v":73.348483283568996},{"$f":"Y82+Y83","v":402},{"$f":"SQRT((Z82^2)+(Z83^2))","v":127.1416532848303},{"$f":"AA82+AA83","v":123},{"$f":"SQRT((AB82^2)+(AB83^2))","v":70.384657419071104},{"$f":"AC82+AC83","v":67},{"$f":"SQRT((AD82^2)+(AD83^2))","v":28.0178514522438},{"$f":"AE82+AE83","v":393},{"$f":"SQRT((AF82^2)+(AF83^2))","v":118.22436297142819},{"$f":"AG82+AG83","v":83},{"$f":"SQRT((AH82^2)+(AH83^2))","v":54.378304497290095},{"$f":"AI82+AI83","v":144},{"$f":"SQRT((AJ82^2)+(AJ83^2))","v":79.202272694664515},{"$f":"AK82+AK83","v":99},{"$f":"SQRT((AL82^2)+(AL83^2))","v":51.623637996561229},{"$f":"AM82+AM83","v":115},{"$f":"SQRT((AN82^2)+(AN83^2))","v":58.830264320330912},{"$f":"AO82+AO83","v":84},{"$f":"SQRT((AP82^2)+(AP83^2))","v":52.924474489596967},{"$f":"AQ82+AQ83","v":251},{"$f":"SQRT((AR82^2)+(AR83^2))","v":121.40016474453401},{"$f":"AS82+AS83","v":199},{"$f":"SQRT((AT82^2)+(AT83^2))","v":78.230428862431779},{"$f":"AU82+AU83","v":32},{"$f":"SQRT((AV82^2)+(AV83^2))","v":20.124611797498108},{"$f":"AW82+AW83","v":67},{"$f":"SQRT((AX82^2)+(AX83^2))","v":32.015621187164243},{"$f":"AY82+AY83","v":49},{"$f":"SQRT((AZ82^2)+(AZ83^2))","v":24.041630560342615},{"$f":"BA82+BA83","v":59},{"$f":"SQRT((BB82^2)+(BB83^2))","v":32.893768406797051},{"$f":"BC82+BC83","v":68},{"$f":"SQRT((BD82^2)+(BD83^2))","v":30.413812651491099}]
[null,"Income $35,000 to $49,999 ",{"$f":"$C$15+$C$16+$C$17","v":209},{"$f":"SQRT(($D$15^2)+($D$16^2)+($D$17^2))","v":89.721792224631798},{"$f":"$E$15+$E$16+$E$17","v":127},{"$f":"SQRT(($F$15^2)+($F$16^2)+($F$17^2))","v":64.41273166075166},{"$f":"$G$15+$G$16+$G$17","v":116},{"$f":"SQRT(($H$15^2)+($H$16^2)+($H$17^2))","v":62.016126934854611},{"$f":"$I$15+$I$16+$I$17","v":118},{"$f":"SQRT(($J$15^2)+($J$16^2)+($J$17^2))","v":52.076866265166146},{"$f":"$K$15+$K$16+$K$17","v":82},{"$f":"SQRT(($L$15^2)+($L$16^2)+($L$17^2))","v":35.846896657869841},{"$f":"$M$15+$M$16+$M$17","v":46},{"$f":"SQRT(($N$15^2)+($N$16^2)+($N$17^2))","v":26.551836094703507},{"$f":"$O$15+$O$16+$O$17","v":116},{"$f":"SQRT(($P$15^2)+($P$16^2)+($P$17^2))","v":49.829710013203972},{"$f":"Q84+Q85+Q86","v":2446},{"$f":"SQRT((R84^2)+(R85^2)+(R86^2))","v":315.83065082414026},{"$f":"S84+S85+S86","v":79},{"$f":"SQRT((T84^2)+(T85^2)+(T86^2))","v":31.400636936215164},{"$f":"U84+U85+U86","v":88},{"$f":"SQRT((V84^2)+(V85^2)+(V86^2))","v":44.384682042344295},{"$f":"W84+W85+W86","v":132},{"$f":"SQRT((X84^2)+(X85^2)+(X86^2))","v":70.128453569146956},{"$f":"Y84+Y85+Y86","v":549},{"$f":"SQRT((Z84^2)+(Z85^2)+(Z86^2))","v":154.70617311536085},{"$f":"AA84+AA85+AA86","v":82},{"$f":"SQRT((AB84^2)+(AB85^2)+(AB86^2))","v":53.674947601278568},{"$f":"AC84+AC85+AC86","v":62},{"$f":"SQRT((AD84^2)+(AD85^2)+(AD86^2))","v":26.944387170614959},{"$f":"AE84+AE85+AE86","v":501},{"$f":"SQRT((AF84^2)+(AF85^2)+(AF86^2))","v":151.40013210033868},{"$f":"AG84+AG85+AG86","v":235},{"$f":"SQRT((AH84^2)+(AH85^2)+(AH86^2))","v":123.00406497347964},{"$f":"AI84+AI85+AI86","v":184},{"$f":"SQRT((AJ84^2)+(AJ85^2)+(AJ86^2))","v":104.33120338613946},{"$f":"AK84+AK85+AK86","v":94},{"$f":"SQRT((AL84^2)+(AL85^2)+(AL86^2))","v":41.158231254513353},{"$f":"AM84+AM85+AM86","v":162},{"$f":"SQRT((AN84^2)+(AN85^2)+(AN86^2))","v":65.253352404301808},{"$f":"AO84+AO85+AO86","v":293},{"$f":"SQRT((AP84^2)+(AP85^2)+(AP86^2))","v":91.13725912051558},{"$f":"AQ84+AQ85+AQ86","v":211},{"$f":"SQRT((AR84^2)+(AR85^2)+(AR86^2))","v":108.90821823902914},{"$f":"AS84+AS85+AS86","v":186},{"$f":"SQRT((AT84^2)+(AT85^2)+(AT86^2))","v":85.638776264026561},{"$f":"AU84+AU85+AU86","v":77},{"$f":"SQRT((AV84^2)+(AV85^2)+(AV86^2))","v":31.448370387032774},{"$f":"AW84+AW85+AW86","v":130},{"$f":"SQRT((AX84^2)+(AX85^2)+(AX86^2))","v":48.135226186234959},{"$f":"AY84+AY85+AY86","v":174},{"$f":"SQRT((AZ84^2)+(AZ85^2)+(AZ86^2))","v":57.879184513951124},{"$f":"BA84+BA85+BA86","v":124},{"$f":"SQRT((BB84^2)+(BB85^2)+(BB86^2))","v":37.709415269929607},{"$f":"BC84+BC85+BC86","v":99},{"$f":"SQRT((BD84^2)+(BD85^2)+(BD86^2))","v":41}]
[null,"Income $50,000 to $74,999 ",{"$f":"$C$18+$C$19","v":359},{"$f":"SQRT(($D$18^2)+($D$19^2))","v":114.0175425099138},{"$f":"$E$18+$E$19","v":183},{"$f":"SQRT(($F$18^2)+($F$19^2))","v":54.203320931470607},{"$f":"$G$18+$G$19","v":288},{"$f":"SQRT(($H$18^2)+($H$19^2))","v":112.30761327710601},{"$f":"$I$18+$I$19","v":279},{"$f":"SQRT(($J$18^2)+($J$19^2))","v":84.403791384036765},{"$f":"$K$18+$K$19","v":96},{"$f":"SQRT(($L$18^2)+($L$19^2))","v":30.805843601498726},{"$f":"$M$18+$M$19","v":167},{"$f":"SQRT(($N$18^2)+($N$19^2))","v":62.265560304232388},{"$f":"$O$18+$O$19","v":111},{"$f":"SQRT(($P$18^2)+($P$19^2))","v":41.036569057366385},{"$f":"Q87+Q88","v":3037},{"$f":"SQRT((R87^2)+(R88^2))","v":337.24916604789405},{"$f":"S87+S88","v":152},{"$f":"SQRT((T87^2)+(T88^2))","v":53.075418038862395},{"$f":"U87+U88","v":149},{"$f":"SQRT((V87^2)+(V88^2))","v":51.855568649856693},{"$f":"W87+W88","v":359},{"$f":"SQRT((X87^2)+(X88^2))","v":121.49485585818027},{"$f":"Y87+Y88","v":602},{"$f":"SQRT((Z87^2)+(Z88^2))","v":154.50889942006577},{"$f":"AA87+AA88","v":369},{"$f":"SQRT((AB87^2)+(AB88^2))","v":119.23086848631104},{"$f":"AC87+AC88","v":93},{"$f":"SQRT((AD87^2)+(AD88^2))","v":32.557641192199412},{"$f":"AE87+AE88","v":803},{"$f":"SQRT((AF87^2)+(AF88^2))","v":188.16216410320115},{"$f":"AG87+AG88","v":371},{"$f":"SQRT((AH87^2)+(AH88^2))","v":156.46405337968207},{"$f":"AI87+AI88","v":496},{"$f":"SQRT((AJ87^2)+(AJ88^2))","v":132.24598292575845},{"$f":"AK87+AK88","v":143},{"$f":"SQRT((AL87^2)+(AL88^2))","v":38.209946349085598},{"$f":"AM87+AM88","v":303},{"$f":"SQRT((AN87^2)+(AN88^2))","v":87.681240867131891},{"$f":"AO87+AO88","v":339},{"$f":"SQRT((AP87^2)+(AP88^2))","v":103.71113729971339},{"$f":"AQ87+AQ88","v":491},{"$f":"SQRT((AR87^2)+(AR88^2))","v":175.57334649655681},{"$f":"AS87+AS88","v":157},{"$f":"SQRT((AT87^2)+(AT88^2))","v":65.299310869258036},{"$f":"AU87+AU88","v":167},{"$f":"SQRT((AV87^2)+(AV88^2))","v":46.61544808322666},{"$f":"AW87+AW88","v":168},{"$f":"SQRT((AX87^2)+(AX88^2))","v":56.727418414731339},{"$f":"AY87+AY88","v":202},{"$f":"SQRT((AZ87^2)+(AZ88^2))","v":66.843099868273612},{"$f":"BA87+BA88","v":127},{"$f":"SQRT((BB87^2)+(BB88^2))","v":36.069377593742864},{"$f":"BC87+BC88","v":99},{"$f":"SQRT((BD87^2)+(BD88^2))","v":37.013511046643494}]
[null,"Income $75,000 to $99,999 ",{"$f":"$C$20","v":320},{"$f":"$D$20","v":99},{"$f":"$E$20","v":172},{"$f":"$F$20","v":61},{"$f":"$G$20","v":184},{"$f":"$H$20","v":86},{"$f":"$I$20","v":293},{"$f":"$J$20","v":98},{"$f":"$K$20","v":93},{"$f":"$L$20","v":29},{"$f":"$M$20","v":138},{"$f":"$N$20","v":48},{"$f":"$O$20","v":155},{"$f":"$P$20","v":55},{"$f":"Q89","v":2373},313,78,31,163,45,240,89,560,114,232,89,95,34,1052,199,453,159,346,102,115,40,195,67,363,101,487,155,286,98,65,23,149,57,143,46,143,36,81,{"$f":"BD89","v":32}]
[null,"Income $100,000 to $149,999 ",{"$f":"$C$21+$C$22","v":187},{"$f":"SQRT(($D$21^2)+($D$22^2))","v":75.802374632988901},{"$f":"$E$21+$E$22","v":236},{"$f":"SQRT(($F$21^2)+($F$22^2))","v":75.742986473996396},{"$f":"$G$21+$G$22","v":381},{"$f":"SQRT(($H$21^2)+($H$22^2))","v":133.80956617521784},{"$f":"$I$21+$I$22","v":735},{"$f":"SQRT(($J$21^2)+($J$22^2))","v":137},{"$f":"$K$21+$K$22","v":115},{"$f":"SQRT(($L$21^2)+($L$22^2))","v":35.383612025908263},{"$f":"$M$21+$M$22","v":237},{"$f":"SQRT(($N$21^2)+($N$22^2))","v":56.222771187482387},{"$f":"$O$21+$O$22","v":285},{"$f":"SQRT(($P$21^2)+($P$22^2))","v":74.518454090245328},{"$f":"Q90+Q91","v":2183},{"$f":"SQRT((R90^2)+(R91^2))","v":265.49764594059963},{"$f":"S90+S91","v":65},{"$f":"SQRT((T90^2)+(T91^2))","v":33.120990323358392},{"$f":"U90+U91","v":269},{"$f":"SQRT((V90^2)+(V91^2))","v":70.327803890068964},{"$f":"W90+W91","v":397},{"$f":"SQRT((X90^2)+(X91^2))","v":107.64757312638311},{"$f":"Y90+Y91","v":271},{"$f":"SQRT((Z90^2)+(Z91^2))","v":88.526832090615329},{"$f":"AA90+AA91","v":301},{"$f":"SQRT((AB90^2)+(AB91^2))","v":108.2450922675019},{"$f":"AC90+AC91","v":57},{"$f":"SQRT((AD90^2)+(AD91^2))","v":23.345235059857504},{"$f":"AE90+AE91","v":1263},{"$f":"SQRT((AF90^2)+(AF91^2))","v":239.00209204105306},{"$f":"AG90+AG91","v":449},{"$f":"SQRT((AH90^2)+(AH91^2))","v":145.43727170158274},{"$f":"AI90+AI91","v":335},{"$f":"SQRT((AJ90^2)+(AJ91^2))","v":113.86395390991831},{"$f":"AK90+AK91","v":146},{"$f":"SQRT((AL90^2)+(AL91^2))","v":55},{"$f":"AM90+AM91","v":371},{"$f":"SQRT((AN90^2)+(AN91^2))","v":96.648848932617923},{"$f":"AO90+AO91","v":332},{"$f":"SQRT((AP90^2)+(AP91^2))","v":90.824005637276315},{"$f":"AQ90+AQ91","v":526},{"$f":"SQRT((AR90^2)+(AR91^2))","v":178.86866690396056},{"$f":"AS90+AS91","v":161},{"$f":"SQRT((AT90^2)+(AT91^2))","v":64.381674411279491},{"$f":"AU90+AU91","v":107},{"$f":"SQRT((AV90^2)+(AV91^2))","v":29.410882339705484},{"$f":"AW90+AW91","v":118},{"$f":"SQRT((AX90^2)+(AX91^2))","v":44.598206241955516},{"$f":"AY90+AY91","v":215},{"$f":"SQRT((AZ90^2)+(AZ91^2))","v":60.207972893961475},{"$f":"BA90+BA91","v":144},{"$f":"SQRT((BB90^2)+(BB91^2))","v":39.597979746446661},{"$f":"BC90+BC91","v":139},{"$f":"SQRT((BD90^2)+(BD91^2))","v":43.278170016764804}]
[null,"Income $150,000 to $199,999 ",{"$f":"$C$23","v":128},{"$f":"$D$23","v":62},{"$f":"$E$23","v":100},{"$f":"$F$23","v":41},{"$f":"$G$23","v":7},{"$f":"$H$23","v":12},{"$f":"$I$23","v":569},{"$f":"$J$23","v":105},{"$f":"$K$23","v":51},{"$f":"$L$23","v":25},{"$f":"$M$23","v":87},{"$f":"$N$23","v":30},{"$f":"$O$23","v":110},{"$f":"$P$23","v":42},{"$f":"Q92","v":937},151,13,15,134,45,133,67,39,26,110,63,15,16,391,129,212,102,144,94,38,22,178,64,27,25,207,82,102,63,23,13,46,30,88,44,32,14,21,{"$f":"BD92","v":10}]
[null,"Income $200,000 or more ",{"$f":"$C$24","v":20},{"$f":"$D$24","v":20},{"$f":"$E$24","v":40},{"$f":"$F$24","v":20},{"$f":"$G$24","v":92},{"$f":"$H$24","v":65},{"$f":"$I$24","v":440},{"$f":"$J$24","v":104},{"$f":"$K$24","v":54},{"$f":"$L$24","v":35},{"$f":"$M$24","v":80},{"$f":"$N$24","v":31},{"$f":"$O$24","v":71},{"$f":"$P$24","v":37},682,155,0,11,83,25,93,51,0,15,79,36,2,4,237,135,202,79,59,57,42,21,63,43,32,40,105,65,31,25,17,17,48,26,97,48,22,17,22,{"$f":"BD93","v":21}]
[]
[]
[]
[null,"B19001. HOUSEHOLD INCOME IN THE PAST 12 MONTHS (IN 2009 INFLATION-ADJUSTED DOLLARS)",null,null,null,null,null,null,null,null,null,null,null,null,{"$f":"B118","v":"B19001. HOUSEHOLD INCOME IN THE PAST 12 MONTHS (IN 2009 INFLATION-ADJUSTED DOLLARS)"}]
[null,"Universe:  HOUSEHOLDS",null,null,null,null,null,null,null,null,null,null,null,null,{"$f":"B120","v":"Data Set: 2005-2009 American Community Survey 5-Year Estimates"}]
[null,"Data Set: 2005-2009 American Community Survey 5-Year Estimates"]
[]
[null,null,"Allenstown",null,"Andover",null,"Boscawen",null,"Bow",null,"Bradford",null,"Canterbury",null,"Chichester",null,"Concord",null,"Danbury",null,"Dunbarton",null,"Epsom",null,"Franklin",null,"Henniker",null,"Hill",null,"Hooksett",null,"Hopkinton",null,"Loudon",null,"Newbury",null,"New London",null,"Northfield",null,"Pembroke",null,"Pittsfield",null,"Salisbury",null,"Sutton",null,"Warner",null,"Webster",null,"Wilmot"]
[null,null,"Estimate","Margin Of Error","Estimate","Margin Of Error","Estimate","Margin Of Error","Estimate","Margin Of Error","Estimate","Margin Of Error","Estimate","Margin Of Error","Estimate","Margin Of Error","Estimate","Margin Of Error","Estimate","Margin Of Error","Estimate","Margin Of Error","Estimate","Margin Of Error","Estimate","Margin Of Error","Estimate","Margin Of Error","Estimate","Margin Of Error","Estimate","Margin Of Error","Estimate","Margin Of Error","Estimate","Margin Of Error","Estimate","Margin Of Error","Estimate","Margin Of Error","Estimate","Margin Of Error","Estimate","Margin Of Error","Estimate","Margin Of Error","Estimate","Margin Of Error","Estimate","Margin Of Error","Estimate","Margin Of Error","Estimate","Margin Of Error","Estimate","Margin Of Error"]
[null,"Total Households",1824,124,947,86,1317,163,2845,132,510,73,896,50,918,51,17349,501,528,75,960,53,1445,110,3300,222,1776,167,392,48,4638,239,2237,119,1751,105,821,88,1564,226,1884,138,2907,166,1652,109,438,49,680,92,1010,162,669,56,502,64]
[null,"Households With"]
[null,"Income Less than $10,000 ",89,67,6,9,56,33,38,59,23,22,21,15,7,10,1127,242,58,36,21,18,0,114,243,98,67,47,7,7,72,53,30,36,47,47,22,15,186,123,60,44,18,30,32,30,5,7,27,26,52,42,12,10,50,31]
[null,"Income $10,000 to $14,999 ",105,51,36,33,62,35,110,76,9,7,35,22,23,29,934,259,14,11,14,15,55,54,323,95,70,90,18,11,114,61,0,114,26,27,8,9,51,47,46,36,306,147,79,46,10,11,24,38,24,19,23,17,39,47]
[null,"Income $15,000 to $19,999 ",77,64,34,31,48,33,87,55,16,15,11,12,16,15,787,194,18,14,14,16,53,36,148,65,65,64,28,15,83,47,53,44,24,23,11,11,66,59,26,28,59,54,113,60,7,9,24,20,27,18,20,19,0,114]
[null,"Income $20,000 to $24,999 ",152,97,37,37,88,57,55,43,29,17,20,19,52,41,973,200,46,41,29,24,69,47,248,104,100,66,25,18,85,61,40,41,40,32,41,24,47,53,81,59,51,42,46,37,21,18,20,18,22,21,19,14,18,13]
[null,"Income $25,000 to $29,999 ",45,38,20,18,52,40,130,91,21,13,52,32,54,41,1021,190,17,14,14,19,101,52,127,65,62,51,20,16,186,87,7,15,61,42,15,12,33,29,143,76,305,140,36,29,9,8,30,23,40,23,18,16,29,42]
[null,"Income $30,000 to $34,999 ",155,65,33,23,57,49,29,32,22,18,46,27,14,16,818,207,28,20,5,7,96,51,215,89,55,39,18,13,165,70,78,52,77,65,19,19,107,80,55,44,125,70,68,41,0,114,22,19,83,39,23,17,16,17]
[null,"Income $35,000 to $39,999 ",8,13,97,57,87,76,70,60,10,8,59,34,38,33,888,202,40,26,27,21,38,28,182,69,56,53,10,8,194,79,96,58,95,64,39,25,74,60,37,30,154,112,205,112,17,11,12,9,60,38,42,20,13,11]
[null,"Income $40,000 to $44,999 ",77,50,71,46,53,47,0,114,34,20,19,16,46,28,950,172,38,25,22,18,27,38,116,54,85,77,21,17,193,74,69,50,48,39,78,78,43,34,105,62,108,66,112,59,32,16,30,21,72,33,31,18,25,19]
[null,"Income $45,000 to $49,999 ",48,52,28,29,41,40,119,66,20,11,42,27,50,39,916,211,13,13,37,24,13,20,214,71,119,73,31,14,183,94,95,66,97,71,25,20,18,24,121,80,154,97,8,13,29,19,25,18,31,18,17,10,3,5]
[null,"Income $50,000 to $59,999 ",253,115,125,49,181,81,182,105,64,31,54,27,69,34,1402,222,38,27,51,27,70,44,272,86,175,82,26,19,328,104,173,67,136,67,131,45,68,61,314,116,241,145,189,78,69,28,49,26,106,51,94,46,26,21]
[null,"Income $60,000 to $74,999 ",171,73,143,51,182,78,233,101,51,23,110,38,147,50,1810,257,77,37,135,47,239,100,431,118,155,86,75,30,501,124,243,113,245,84,80,39,90,61,259,98,323,107,243,82,63,26,85,33,147,53,94,30,60,29]
[null,"Income $75,000 to $99,999 ",352,112,97,46,106,52,414,114,99,41,189,49,187,54,2585,332,91,38,140,48,251,103,383,117,257,105,43,21,1058,205,561,151,376,98,159,51,110,56,335,92,345,116,309,110,88,27,99,38,158,51,139,35,79,25]
[null,"Income $100,000 to $124,999 ",194,92,86,47,176,73,418,137,36,19,107,44,58,34,1298,189,27,21,157,46,258,81,262,96,300,111,39,20,606,143,199,83,225,81,51,28,170,109,220,101,334,105,77,53,56,21,62,28,115,45,82,31,61,34]
[null,"Income $125,000 to $149,999 ",65,53,87,58,57,49,303,111,31,21,50,27,53,30,799,148,4,7,116,57,111,70,52,39,53,44,10,8,290,114,256,122,82,45,48,23,112,64,39,34,129,76,77,65,6,7,54,26,16,14,27,13,19,15]
[null,"Income $150,000 to $199,999 ",8,12,42,25,51,47,388,135,39,19,57,34,61,41,537,130,9,9,96,35,47,32,42,38,112,55,12,13,359,131,118,71,127,67,53,35,216,95,34,33,142,82,33,26,11,11,32,22,36,20,18,17,25,24]
[null,"Income $200,000 or more ",25,40,5,8,20,25,269,103,6,6,24,18,43,26,504,115,10,11,82,51,17,19,42,33,45,44,9,6,221,106,219,75,45,29,41,22,173,72,9,14,113,89,25,41,15,11,85,84,21,19,10,9,39,19]
[]
[]
[]
[]
[null,"Calculated B19001. HOUSEHOLD INCOME IN THE PAST 12 MONTHS (IN 2009 INFLATION-ADJUSTED DOLLARS)"]
[null,"Universe:  HOUSEHOLDS"]
[null,"Data Set: 2005-2009 American Community Survey 5-Year Estimates"]
[null,null,"Allenstown",null,"Andover",null,"Boscawen",null,"Bow",null,"Bradford",null,"Canterbury",null,"Chichester",null,"Concord",null,"Danbury",null,"Dunbarton",null,"Epsom",null,"Franklin",null,"Henniker",null,"Hill",null,"Hooksett",null,"Hopkinton",null,"Loudon",null,"Newbury",null,"New London",null,"Northfield",null,"Pembroke",null,"Pittsfield",null,"Salisbury",null,"Sutton",null,"Warner",null,"Webster",null,"Wilmot"]
[null,null,"Estimate","Margin Of Error","Estimate","Margin Of Error","Estimate","Margin Of Error","Estimate","Margin Of Error","Estimate","Margin Of Error","Estimate","Margin Of Error","Estimate","Margin Of Error","Estimate","Margin Of Error","Estimate","Margin Of Error","Estimate","Margin Of Error","Estimate","Margin Of Error","Estimate","Margin Of Error","Estimate","Margin Of Error","Estimate","Margin Of Error","Estimate","Margin Of Error","Estimate","Margin Of Error","Estimate","Margin Of Error","Estimate","Margin Of Error","Estimate","Margin Of Error","Estimate","Margin Of Error","Estimate","Margin Of Error","Estimate","Margin Of Error","Estimate","Margin Of Error","Estimate","Margin Of Error","Estimate","Margin Of Error","Estimate","Margin Of Error","Estimate","Margin Of Error"]
[null,"Total Households",1824,124,947,86,1317,163,2845,132,510,73,896,50,918,51,17349,501,528,75,960,53,1445,110,3300,222,1776,167,392,48,4638,239,2237,119,1751,105,821,88,1564,226,1884,138,2907,166,1652,109,438,49,680,92,1010,162,669,56,502,64]
[null,"Households With"]
[null,"Income Less than $10,000 ",89,67,6,9,56,33,38,59,23,22,21,15,7,10,1127,242,58,36,21,18,0,114,243,98,67,47,7,7,72,53,30,36,47,47,22,15,186,123,60,44,18,30,32,30,5,7,27,26,52,42,12,10,50,31]
[null,"Income $10,000 to $14,999 ",105,51,36,33,62,35,110,76,9,7,35,22,23,29,934,259,14,11,14,15,55,54,323,95,70,90,18,11,114,61,0,114,26,27,8,9,51,47,46,36,306,147,79,46,10,11,24,38,24,19,23,17,39,47]
[null,"Income $15,000 to $24,999 ",229,116.21101496846157,71,48.270073544588683,136,65.863495200300449,142,69.814038702828242,45,22.671568097509269,31,22.472205054244231,68,43.657759905886145,1760,278.63237428554493,64,43.324358044868937,43,28.844410203711913,122,59.203040462462738,396,122.64175471673585,165,91.934759476489631,53,23.430749027719962,168,77.006493232713822,93,60.141499815019579,64,39.408120990476064,52,26.40075756488817,113,79.309520235593411,107,65.30696746902278,110,68.410525505948286,159,70.49113419430843,28,20.124611797498108,44,26.90724809414742,49,27.658633371878661,39,23.600847442411894,18,114.73883387938018]
[null,"Income $25,000 to $34,999 ",200,75.292761936324268,53,29.206163733020468,109,63.253458403473878,159,96.462427918853464,43,22.203603311174518,98,41.868842830916641,68,44.011362169330773,1839,280.97864687552328,45,24.413111231467404,19,20.248456731316587,197,72.835430938520574,342,110.20889256316842,117,64.202803677098089,38,20.615528128088304,351,111.66467659918243,85,54.120236510939236,138,77.388629655783419,34,22.472205054244231,140,85.094065598019228,198,87.817993600400598,430,156.52475842498527,104,50.219518117958877,9,114.28035701729323,52,29.832867780352597,123,45.276925690687087,41,23.345235059857504,45,45.310043036836767]
[null,"Income $35,000 to $49,999 ",133,73.300750337223704,196,78.778169564924525,181,97.903013232484327,189,144.74805698177784,64,24.186773244895647,120,46.270941205037097,134,58.258046654518033,2754,338.98230042289816,91,38.340579025361627,86,36.61966684720111,78,51.264022471905186,512,112.77411050414008,260,118.60438440462477,62,23.430749027719962,570,143.36317518805168,260,101.09401564880089,240,103.23759005323593,142,84.314885992925355,135,73.020545054114734,263,105.56514576317318,416,162.2004932174992,325,127.25564820470642,78,27.166155414412248,67,29.086079144497972,163,53.450912059571067,90,28.705400188814647,41,22.516660498395403]
[null,"Income $50,000 to $74,999 ",424,136.21306838919679,268,70.724818840347695,363,112.44998888394787,415,145.69145479402695,115,38.600518131237564,164,46.61544808322666,216,60.464865831323898,3212,339.60712595586097,115,45.803929962395145,186,54.203320931470607,309,109.2520022699813,703,146.01369798755184,330,118.82760622010359,101,35.510561809129406,829,161.83942659315127,416,131.36970731489052,381,107.44766167767449,211,59.548299723837623,158,86.267027304758798,573,151.85519418182574,564,180.20543831971332,432,113.17243480636087,132,38.209946349085598,134,42.01190307520001,253,73.552702193733168,188,54.918120870983927,86,35.805027579936315]
[null,"Income $75,000 to $99,999 ",352,112,97,46,106,52,414,114,99,41,189,49,187,54,2585,332,91,38,140,48,251,103,383,117,257,105,43,21,1058,205,561,151,376,98,159,51,110,56,335,92,345,116,309,110,88,27,99,38,158,51,139,35,79,25]
[null,"Income $100,000 to $149,999 ",259,106.17438485811914,173,74.652528423356159,233,87.920418561333065,721,176.32356620712955,67,28.319604517012593,157,51.623637996561229,111,45.343136195018538,2097,240.05207768315609,31,22.135943621178654,273,73.246160308919954,369,107.05606008068857,314,103.61949623502326,353,119.4026800369238,49,21.540659228538015,896,182.87974190707948,455,147.55676873664589,307,92.660671268883007,99,36.235341863986875,282,126.40015822774906,259,106.56922632730333,463,129.61867149450345,154,83.868945385047027,62,22.135943621178654,116,38.209946349085598,131,47.127486671792717,109,33.61547262794322,80,37.161808352124091]
[null,"Income $150,000 to $199,999 ",8,12,42,25,51,47,388,135,39,19,57,34,61,41,537,130,9,9,96,35,47,32,42,38,112,55,12,13,359,131,118,71,127,67,53,35,216,95,34,33,142,82,33,26,11,11,32,22,36,20,18,17,25,24]
[null,"Income $200,000 or more ",25,40,5,8,20,25,269,103,6,6,24,18,43,26,504,115,10,11,82,51,17,19,42,33,45,44,9,6,221,106,219,75,45,29,41,22,173,72,9,14,113,89,25,41,15,11,85,84,21,19,10,9,39,19]

{"sheet":"ACS_Table_B19037","index":23,"n_rows":253,"n_cols":56,"rows_kept":253,"cut":false,"hidden":true,"merged":[]}
[null,"B19037. AGE OF HOUSEHOLDER BY HOUSEHOLD INCOME IN THE PAST 12 MONTHS (IN 2019 INFLATION-ADJUSTED DOLLARS)"]
[null,"Universe:  HOUSEHOLDS"]
[null,"Data Set: 2015-2019 American Community Survey 5-Year Estimates"]
[]
[null,null,"Allenstown",null,"Andover",null,"Boscawen",null,"Bow",null,"Bradford",null,"Canterbury",null,"Chichester",null,"Concord",null,"Danbury",null,"Dunbarton",null,"Epsom",null,"Franklin",null,"Henniker",null,"Hill",null,"Hooksett",null,"Hopkinton",null,"Loudon",null,"Newbury",null,"New London",null,"Northfield",null,"Pembroke",null,"Pittsfield",null,"Salisbury",null,"Sutton",null,"Warner",null,"Webster",null,"Wilmot"]
[null,null,"Estimate","Margin Of Error","Estimate","Margin Of Error","Estimate","Margin Of Error","Estimate","Margin Of Error","Estimate","Margin Of Error","Estimate","Margin Of Error","Estimate","Margin Of Error","Estimate","Margin Of Error","Estimate","Margin Of Error","Estimate","Margin Of Error","Estimate","Margin Of Error","Estimate","Margin Of Error","Estimate","Margin Of Error","Estimate","Margin Of Error","Estimate","Margin Of Error","Estimate","Margin Of Error","Estimate","Margin Of Error","Estimate","Margin Of Error","Estimate","Margin Of Error","Estimate","Margin Of Error","Estimate","Margin Of Error","Estimate","Margin Of Error","Estimate","Margin Of Error","Estimate","Margin Of Error","Estimate","Margin Of Error","Estimate","Margin Of Error","Estimate","Margin Of Error"]
[null,"Total:",1788,107,1054,90,1374,112,2715,130,647,67,970,60,969,55,17530,366,481,65,938,45,1787,124,3909,223,1805,127,373,48,5252,190,2193,126,2050,174,910,86,1551,161,1860,118,2690,164,1675,159,554,65,769,91,1144,96,760,72,704,71]
[null,"Householder under 25 years:",105,86,74,63,0,11,0,16,21,21,6,9,38,40,851,236,5,7,5,8,51,60,205,122,126,88,0,11,201,141,10,17,0,16,31,38,42,45,94,105,47,55,39,49,0,11,4,7,47,36,18,22,15,17]
[null,"Less than $10,000",12,20,26,40,0,11,0,16,0,11,0,11,0,11,274,172,0,11,0,11,0,11,0,16,45,55,0,11,16,26,0,16,0,16,0,11,0,11,0,11,0,16,0,11,0,11,0,11,8,11,0,11,0,11]
[null,"$10,000 to $14,999",0,11,0,11,0,11,0,16,0,11,0,11,0,11,0,24,0,11,0,11,0,11,14,21,45,54,0,11,10,21,0,16,0,16,0,11,0,11,0,11,0,16,0,11,0,11,0,11,0,11,0,11,0,11]
[null,"$15,000 to $19,999",0,11,0,11,0,11,0,16,0,11,0,11,0,11,6,10,0,11,0,11,0,11,0,16,36,53,0,11,0,18,0,16,0,16,0,11,0,11,0,11,0,16,0,11,0,11,0,11,0,11,0,11,0,11]
[null,"$20,000 to $24,999",0,11,0,11,0,11,0,16,0,11,0,11,0,11,0,24,0,11,0,11,0,11,11,18,0,11,0,11,0,18,0,16,0,16,0,11,0,11,0,11,0,16,0,11,0,11,0,11,0,11,0,11,0,11]
[null,"$25,000 to $29,999",0,11,0,11,0,11,0,16,0,11,0,11,0,11,144,88,0,11,0,11,0,11,16,24,0,11,0,11,0,18,0,16,0,16,0,11,0,11,74,105,0,16,0,11,0,11,0,11,22,32,0,11,0,11]
[null,"$30,000 to $34,999",0,11,0,11,0,11,0,16,0,11,0,11,0,11,80,72,0,11,0,11,0,11,0,16,0,11,0,11,20,30,0,16,0,16,0,11,0,11,0,11,0,16,0,11,0,11,0,11,0,11,0,11,0,11]
[null,"$35,000 to $39,999",0,11,0,11,0,11,0,16,0,11,0,11,0,11,45,41,0,11,0,11,0,11,21,33,0,11,0,11,88,126,0,16,0,16,0,11,0,11,0,11,0,16,0,11,0,11,0,11,0,11,0,11,0,11]
[null,"$40,000 to $44,999",0,11,0,11,0,11,0,16,0,11,0,11,0,11,37,35,0,11,5,8,0,11,18,28,0,11,0,11,16,25,0,16,0,16,0,11,22,35,0,11,0,16,0,11,0,11,0,11,0,11,0,11,0,11]
[null,"$45,000 to $49,999",0,11,24,38,0,11,0,16,12,19,0,11,0,11,51,41,0,11,0,11,0,11,13,23,0,11,0,11,13,21,0,16,0,16,8,11,0,11,0,11,0,16,12,19,0,11,0,11,0,11,0,11,0,11]
[null,"$50,000 to $59,999",14,23,0,11,0,11,0,16,0,11,0,11,0,11,70,54,0,11,0,11,0,11,48,73,0,11,0,11,0,18,10,17,0,16,0,11,0,11,0,11,22,37,27,44,0,11,0,11,17,17,0,11,9,15]
[null,"$60,000 to $74,999",11,16,0,11,0,11,0,16,5,7,0,11,0,11,78,61,0,11,0,11,17,29,7,16,0,11,0,11,23,39,0,16,0,16,0,11,0,11,20,33,0,16,0,11,0,11,0,11,0,11,0,11,6,8]
[null,"$75,000 to $99,999",68,77,24,37,0,11,0,16,0,11,6,9,29,39,50,42,5,7,0,11,0,11,57,62,0,11,0,11,15,24,0,16,0,16,0,11,0,11,0,11,0,16,0,11,0,11,0,11,0,11,18,22,0,11]
[null,"$100,000 to $124,999",0,11,0,11,0,11,0,16,4,6,0,11,0,11,6,9,0,11,0,11,0,11,0,16,0,11,0,11,0,18,0,16,0,16,0,11,0,11,0,11,25,41,0,11,0,11,4,7,0,11,0,11,0,11]
[null,"$125,000 to $149,999",0,11,0,11,0,11,0,16,0,11,0,11,0,11,0,24,0,11,0,11,34,54,0,16,0,11,0,11,0,18,0,16,0,16,0,11,0,11,0,11,0,16,0,11,0,11,0,11,0,11,0,11,0,11]
[null,"$150,000 to $199,999",0,11,0,11,0,11,0,16,0,11,0,11,0,11,10,17,0,11,0,11,0,11,0,16,0,11,0,11,0,18,0,16,0,16,0,11,0,11,0,11,0,16,0,11,0,11,0,11,0,11,0,11,0,11]
[null,"$200,000 or more",0,11,0,11,0,11,0,16,0,11,0,11,9,14,0,24,0,11,0,11,0,11,0,16,0,11,0,11,0,18,0,16,0,16,23,35,20,29,0,11,0,16,0,11,0,11,0,11,0,11,0,11,0,11]
[null,"Householder 25 to 44 years:",486,107,297,69,389,63,642,92,121,36,265,55,257,71,5493,326,110,31,205,54,439,126,872,155,480,104,79,22,1592,201,483,79,379,112,160,50,277,62,521,105,828,154,441,93,125,39,194,47,280,62,173,35,146,50]
[null,"Less than $10,000",65,58,0,11,0,11,0,16,0,11,6,9,12,12,234,89,3,4,0,11,0,11,18,27,0,11,0,11,27,42,0,16,0,16,6,9,0,11,9,13,17,28,83,108,3,5,0,11,5,7,7,8,13,23]
[null,"$10,000 to $14,999",30,43,0,11,0,11,0,16,0,11,0,11,0,11,275,140,0,11,0,11,0,11,0,16,46,53,0,11,0,18,0,16,0,16,0,11,0,11,0,11,0,16,18,20,0,11,0,11,0,11,2,5,0,11]
[null,"$15,000 to $19,999",0,11,0,11,0,11,0,16,4,6,24,37,0,11,128,78,0,11,0,11,10,15,0,16,12,15,0,11,15,16,0,16,0,16,0,11,0,11,0,11,0,16,9,13,0,11,4,6,0,11,0,11,0,11]
[null,"$20,000 to $24,999",10,14,19,30,0,11,13,20,0,11,21,34,0,11,220,85,0,11,0,11,12,19,12,19,0,11,0,11,33,44,0,16,0,16,5,7,0,11,0,11,59,55,9,14,0,11,4,5,9,14,2,5,0,11]
[null,"$25,000 to $29,999",5,9,4,6,0,11,0,16,0,11,0,11,0,11,152,61,2,5,0,11,0,11,87,82,19,30,4,5,0,18,0,16,0,16,6,9,0,11,47,57,19,33,0,11,2,3,0,11,8,8,0,11,0,11]
[null,"$30,000 to $34,999",36,27,26,31,0,11,0,16,9,15,13,14,0,11,166,83,8,8,5,9,8,13,37,36,0,11,0,11,9,14,13,21,49,61,0,11,0,11,20,22,0,16,0,11,0,11,0,11,0,11,0,11,0,11]
[null,"$35,000 to $39,999",49,53,0,11,14,24,0,16,11,10,0,11,12,19,149,67,14,18,8,11,19,25,48,46,0,11,0,11,52,41,8,19,0,16,0,11,0,11,34,42,20,32,8,14,4,7,0,11,15,22,0,11,0,11]
[null,"$40,000 to $44,999",59,39,0,11,0,11,12,19,10,10,0,11,11,12,278,113,7,7,0,11,19,21,33,31,38,42,0,11,22,31,0,16,64,72,0,11,0,11,12,20,0,16,21,36,11,17,3,5,10,9,0,11,8,7]
[null,"$45,000 to $49,999",0,11,8,11,26,33,0,16,5,6,0,11,29,36,241,122,0,11,0,11,0,11,11,18,35,41,0,11,28,25,0,16,9,15,0,11,7,11,49,47,39,42,8,13,0,11,11,18,0,11,14,10,16,19]
[null,"$50,000 to $59,999",37,40,16,13,0,11,36,33,14,9,8,11,17,14,405,117,7,7,0,11,75,60,107,77,4,9,4,5,112,76,30,35,0,16,0,11,0,11,61,47,44,70,111,68,17,18,0,11,19,22,8,9,12,17]
[null,"$60,000 to $74,999",58,43,36,20,88,82,11,16,10,8,26,33,16,14,453,122,24,23,7,10,68,37,161,93,42,41,16,12,201,97,53,40,110,104,16,13,27,32,82,58,84,67,41,29,9,9,39,25,40,35,19,11,38,27]
[null,"$75,000 to $99,999",50,35,62,33,90,72,81,59,18,12,36,21,56,31,966,151,25,14,38,29,99,67,126,89,28,27,13,10,379,128,96,72,62,51,48,30,59,38,103,48,236,114,73,54,38,23,40,28,53,34,39,24,15,12]
[null,"$100,000 to $124,999",30,29,48,32,147,86,151,81,15,12,15,17,64,34,712,192,14,11,14,14,42,31,153,82,109,69,16,12,181,87,55,49,38,39,20,15,52,38,37,27,110,94,17,18,18,13,34,25,26,19,36,17,13,11]
[null,"$125,000 to $149,999",8,13,52,36,12,21,107,55,7,8,69,30,37,26,305,104,0,11,30,20,62,42,44,38,77,54,22,12,231,105,29,34,24,32,24,25,64,32,40,39,62,45,39,65,16,12,20,19,56,52,30,14,23,18]
[null,"$150,000 to $199,999",37,32,20,17,0,11,131,54,18,18,40,22,3,5,464,150,0,11,49,28,11,19,25,27,27,35,4,5,148,77,104,68,23,35,9,9,12,18,21,27,81,53,0,11,7,7,28,21,39,32,16,18,8,8]
[null,"$200,000 or more",12,15,6,8,12,18,100,53,0,11,7,10,0,11,345,111,6,6,54,44,14,24,10,17,43,41,0,11,154,91,95,61,0,16,26,27,56,42,6,12,57,47,4,9,0,11,11,11,0,11,0,11,0,11]
[null,"Householder 45 to 64 years:",737,100,411,66,628,89,1301,110,246,47,434,53,459,61,6765,309,270,49,544,62,818,88,1679,186,721,117,197,45,2218,165,1018,144,959,165,386,69,381,78,897,133,1184,170,809,170,252,42,330,71,484,73,370,46,313,52]
[null,"Less than $10,000",2,7,13,14,13,20,24,36,4,6,6,8,0,11,285,97,0,11,3,7,8,14,99,65,49,38,10,15,89,69,12,19,36,43,0,11,9,14,0,11,54,84,0,11,0,11,10,18,41,31,0,11,4,5]
[null,"$10,000 to $14,999",25,27,4,6,0,11,0,16,3,5,8,9,0,11,234,100,18,20,5,7,17,26,108,70,7,12,3,5,8,12,19,29,19,30,0,11,0,11,7,11,11,19,103,95,4,6,3,6,10,11,3,5,0,11]
[null,"$15,000 to $19,999",0,11,0,11,52,55,8,13,0,11,23,21,5,8,144,65,0,11,0,11,10,15,165,120,33,39,4,5,28,30,0,16,0,16,0,11,0,11,19,30,0,16,34,44,7,7,23,31,18,22,3,5,10,13]
[null,"$20,000 to $24,999",15,19,29,32,15,24,11,18,3,6,9,12,13,13,128,93,4,5,5,7,25,28,66,59,30,36,4,5,30,27,36,42,16,26,6,9,6,9,7,11,0,16,0,11,0,11,11,18,16,20,3,5,27,24]
[null,"$25,000 to $29,999",46,34,5,8,37,37,0,16,10,9,10,13,6,10,190,69,10,9,0,11,20,23,20,23,0,11,3,5,9,14,0,16,49,47,12,12,8,13,36,41,41,37,17,19,0,11,11,11,12,13,15,16,4,6]
[null,"$30,000 to $34,999",63,64,10,10,37,43,8,12,12,11,16,14,4,7,218,102,22,16,4,6,20,19,77,66,35,36,7,9,37,45,18,28,13,21,11,10,16,23,58,49,133,118,76,65,0,11,19,17,10,10,3,6,0,11]
[null,"$35,000 to $39,999",43,49,6,10,11,20,0,16,8,8,0,11,0,11,256,102,25,23,5,7,13,16,40,36,8,12,16,19,9,13,70,61,14,21,0,11,7,11,79,64,0,16,8,14,3,6,4,6,24,19,8,8,0,11]
[null,"$40,000 to $44,999",9,14,5,8,0,11,19,23,3,6,18,16,6,10,180,75,16,11,5,8,0,11,109,90,19,31,21,21,130,76,21,34,0,16,0,11,0,11,48,58,21,34,46,35,12,10,4,5,9,9,9,10,4,6]
[null,"$45,000 to $49,999",31,24,5,8,27,30,9,13,11,8,0,11,26,20,219,80,15,13,26,15,14,22,50,42,33,40,0,11,37,41,0,16,17,30,0,11,6,10,48,51,0,16,12,19,9,13,6,9,6,8,19,20,13,17]
[null,"$50,000 to $59,999",80,44,29,27,35,34,30,26,25,15,24,17,33,25,449,124,36,27,19,15,67,42,136,86,27,32,13,10,50,37,120,94,74,55,40,22,36,36,71,49,74,58,91,58,16,10,0,11,16,24,24,14,25,20]
[null,"$60,000 to $74,999",62,41,67,35,87,53,73,48,7,8,71,49,6,9,606,158,13,10,31,18,108,79,82,57,45,35,16,10,214,103,32,37,95,92,24,15,11,17,80,42,71,61,80,69,19,14,24,18,61,35,29,14,39,22]
[null,"$75,000 to $99,999",157,66,60,30,85,47,125,65,45,27,36,20,56,28,1083,208,46,23,91,33,100,56,244,97,132,85,49,23,359,126,90,70,254,134,66,41,23,24,109,61,270,127,194,88,45,19,21,16,57,22,86,37,35,28]
[null,"$100,000 to $124,999",61,48,50,36,88,59,236,74,23,13,57,28,107,41,777,141,46,28,64,30,112,64,303,121,66,47,22,16,336,131,134,84,143,86,59,28,39,33,135,69,78,59,56,49,61,31,48,28,24,16,67,29,27,22]
[null,"$125,000 to $149,999",52,30,41,34,54,37,96,54,21,14,64,28,58,40,509,112,7,7,104,39,64,45,22,22,57,49,16,11,209,79,155,72,92,62,22,13,66,45,57,44,193,102,39,32,24,21,47,37,65,32,45,21,21,19]
[null,"$150,000 to $199,999",83,51,60,35,7,12,379,97,27,16,33,17,84,36,728,140,8,7,69,32,137,66,72,54,124,70,3,4,264,95,164,70,70,65,86,41,72,43,70,43,161,70,19,21,22,16,39,26,65,25,49,24,46,23]
[null,"$200,000 or more",8,14,27,16,80,62,283,82,44,34,59,25,55,32,759,127,4,6,113,31,103,79,86,63,56,42,10,11,409,116,147,88,67,54,60,36,82,54,73,53,77,57,34,29,30,17,60,28,50,25,7,7,58,25]
[null,"Householder 65 years and over:",460,106,272,73,357,55,772,89,259,49,265,46,215,38,4421,280,96,37,184,30,479,87,1153,172,478,92,97,30,1241,171,682,114,712,154,333,61,851,142,348,72,631,137,386,92,177,40,241,59,333,63,199,41,230,52]
[null,"Less than $10,000",19,21,0,11,18,20,28,26,4,6,6,10,0,11,147,62,0,11,0,11,0,11,57,41,13,22,0,11,35,36,17,28,94,93,0,11,23,21,0,11,19,31,0,11,6,7,0,11,5,7,20,19,6,7]
[null,"$10,000 to $14,999",105,75,19,30,48,41,19,20,10,10,32,30,8,9,283,127,3,4,0,11,26,24,69,55,0,11,4,5,64,35,0,16,0,16,12,13,65,44,15,17,0,16,44,46,0,11,5,7,14,13,6,6,3,6]
[null,"$15,000 to $19,999",69,48,0,11,26,30,48,35,8,8,6,10,10,10,278,94,4,6,4,6,55,34,136,80,30,27,0,11,83,80,0,16,22,34,36,18,42,36,21,21,17,26,55,48,8,8,0,11,53,47,12,12,0,11]
[null,"$20,000 to $24,999",0,11,0,11,12,18,51,32,28,23,11,12,16,14,435,120,20,22,3,6,19,23,111,52,21,34,7,7,69,46,32,37,68,65,4,7,31,35,26,27,53,44,16,18,30,24,13,22,37,35,2,4,5,6]
[null,"$25,000 to $29,999",44,53,10,11,19,22,47,34,46,27,7,11,9,10,349,144,3,4,12,10,89,49,72,60,25,29,0,11,46,35,41,41,23,38,6,8,25,23,17,18,0,16,29,28,8,8,13,15,19,15,6,6,22,14]
[null,"$30,000 to $34,999",19,21,31,28,29,26,24,23,15,12,17,15,38,23,299,123,7,8,4,6,15,15,177,81,20,32,0,11,117,84,15,25,26,42,8,10,33,27,31,30,31,34,14,24,7,7,0,11,8,8,7,6,5,6]
[null,"$35,000 to $39,999",0,11,43,37,27,23,42,28,4,5,6,11,9,11,277,113,4,6,8,9,9,14,0,16,0,11,0,11,56,33,11,19,103,74,0,11,16,26,0,11,14,23,0,11,8,8,3,4,12,11,22,15,12,10]
[null,"$40,000 to $44,999",9,13,31,31,11,19,19,23,14,22,16,15,10,11,190,80,4,5,12,10,24,19,49,39,8,12,7,7,52,34,22,37,20,27,18,15,43,41,15,18,36,43,15,17,8,8,10,11,4,6,6,6,6,6]
[null,"$45,000 to $49,999",9,15,5,7,0,11,17,18,4,5,6,10,13,11,210,79,3,4,28,15,37,26,100,59,0,11,13,16,113,71,59,48,0,16,6,8,30,16,23,22,89,89,20,21,7,7,33,31,15,8,3,5,9,14]
[null,"$50,000 to $59,999",54,53,16,13,43,33,34,30,16,12,22,21,4,6,259,101,4,5,10,10,33,33,122,68,26,28,4,5,119,66,171,112,58,63,17,14,78,52,45,47,62,43,67,56,3,5,32,23,26,19,12,9,28,21]
[null,"$60,000 to $74,999",43,27,19,16,35,32,95,44,19,12,16,14,35,23,444,111,6,6,15,11,23,25,114,69,89,54,12,10,108,62,145,80,64,73,28,18,168,73,77,37,53,40,27,26,43,21,33,22,22,14,22,17,13,10]
[null,"$75,000 to $99,999",45,31,26,34,9,14,87,42,30,15,60,35,14,15,542,159,24,20,34,16,34,26,76,44,137,78,31,23,247,91,40,40,18,30,55,29,48,29,26,24,91,56,29,27,35,24,29,21,63,34,38,21,22,20]
[null,"$100,000 to $124,999",9,15,38,23,59,62,72,34,30,17,5,7,15,13,234,64,0,11,15,12,7,12,40,28,26,29,3,5,77,43,12,21,125,88,57,40,55,36,7,12,97,64,24,27,0,11,28,19,21,12,18,11,19,19]
[null,"$125,000 to $149,999",27,32,7,10,21,24,73,41,15,20,27,22,4,7,100,41,0,11,20,16,60,37,7,11,12,20,8,8,9,13,67,65,0,16,21,16,29,27,14,16,21,24,26,40,11,10,25,20,16,13,5,5,10,15]
[null,"$150,000 to $199,999",8,14,20,25,0,11,59,36,6,6,14,14,23,17,251,100,3,4,11,11,7,11,0,16,40,34,4,5,29,24,28,33,22,35,19,29,71,42,21,22,13,21,9,13,0,11,17,17,5,7,9,7,22,12]
[null,"$200,000 or more",0,11,7,10,0,11,57,31,10,8,14,12,7,12,123,50,11,16,8,8,41,55,23,26,31,34,4,6,17,21,22,27,69,57,46,27,94,45,10,16,35,39,11,17,3,6,0,11,13,11,11,8,48,29]
[]
[]
[]
[]
[]
[]
[]
[]
[]
[]
[]
[]
[]
[]
[null,"B19037. AGE OF HOUSEHOLDER BY HOUSEHOLD INCOME IN THE PAST 12 MONTHS (IN 2014 INFLATION-ADJUSTED DOLLARS)"]
[null,"Universe:  HOUSEHOLDS"]
[null,"Data Set: 2010-2014 American Community Survey 5-Year Estimates"]
[]
[null,null,"Allenstown",null,"Andover",null,"Boscawen",null,"Bow",null,"Bradford",null,"Canterbury",null,"Chichester",null,"Concord",null,"Danbury",null,"Dunbarton",null,"Epsom",null,"Franklin",null,"Henniker",null,"Hill",null,"Hooksett",null,"Hopkinton",null,"Loudon",null,"Newbury",null,"New London",null,"Northfield",null,"Pembroke",null,"Pittsfield",null,"Salisbury",null,"Sutton",null,"Warner",null,"Webster",null,"Wilmot"]
[null,null,"Estimate","Margin Of Error","Estimate","Margin Of Error","Estimate","Margin Of Error","Estimate","Margin Of Error","Estimate","Margin Of Error","Estimate","Margin Of Error","Estimate","Margin Of Error","Estimate","Margin Of Error","Estimate","Margin Of Error","Estimate","Margin Of Error","Estimate","Margin Of Error","Estimate","Margin Of Error","Estimate","Margin Of Error","Estimate","Margin Of Error","Estimate","Margin Of Error","Estimate","Margin Of Error","Estimate","Margin Of Error","Estimate","Margin Of Error","Estimate","Margin Of Error","Estimate","Margin Of Error","Estimate","Margin Of Error","Estimate","Margin Of Error","Estimate","Margin Of Error","Estimate","Margin Of Error","Estimate","Margin Of Error","Estimate","Margin Of Error","Estimate","Margin Of Error"]
[null,"Total:",1787,88,975,87,1270,147,2777,133,684,77,894,64,996,62,17141,334,533,70,1053,59,1809,122,3379,195,1598,145,445,57,5216,237,2122,112,2013,139,756,95,1734,157,1729,104,2787,148,1525,127,553,62,786,99,1123,84,767,66,588,67]
[null,"Householder under 25 years:",71,44,9,9,7,11,12,20,9,7,6,8,0,11,606,205,0,11,28,34,0,11,73,54,64,58,0,11,51,54,92,82,10,18,0,11,55,47,25,31,0,15,92,65,14,16,0,11,30,33,0,11,22,23]
[null,"Less than $10,000",0,11,0,11,7,11,0,15,0,11,0,11,0,11,81,57,0,11,0,11,0,11,13,24,24,38,0,11,0,17,0,15,0,15,0,11,9,16,0,11,0,15,35,43,0,11,0,11,0,11,0,11,0,11]
[null,"$10,000 to $14,999",11,18,6,8,0,11,12,20,0,11,0,11,0,11,36,40,0,11,0,11,0,11,0,15,26,43,0,11,0,17,0,15,0,15,0,11,0,11,0,11,0,15,34,52,10,15,0,11,0,11,0,11,0,11]
[null,"$15,000 to $19,999",0,11,0,11,0,11,0,15,0,11,0,11,0,11,28,32,0,11,0,11,0,11,0,15,0,11,0,11,8,13,0,15,0,15,0,11,9,14,25,31,0,15,0,11,0,11,0,11,0,11,0,11,0,11]
[null,"$20,000 to $24,999",8,14,0,11,0,11,0,15,0,11,0,11,0,11,161,139,0,11,0,11,0,11,0,15,0,11,0,11,0,17,0,15,0,15,0,11,0,11,0,11,0,15,0,11,0,11,0,11,19,30,0,11,0,11]
[null,"$25,000 to $29,999",0,11,0,11,0,11,0,15,0,11,0,11,0,11,92,80,0,11,5,8,0,11,0,15,0,11,0,11,0,17,0,15,10,18,0,11,0,11,0,11,0,15,7,13,0,11,0,11,0,11,0,11,0,11]
[null,"$30,000 to $34,999",8,13,0,11,0,11,0,15,0,11,0,11,0,11,53,47,0,11,0,11,0,11,0,15,14,17,0,11,0,17,0,15,0,15,0,11,13,22,0,11,0,15,7,12,0,11,0,11,0,11,0,11,10,16]
[null,"$35,000 to $39,999",0,11,0,11,0,11,0,15,3,5,0,11,0,11,67,75,0,11,0,11,0,11,12,18,0,11,0,11,0,17,54,64,0,15,0,11,0,11,0,11,0,15,0,11,0,11,0,11,11,13,0,11,0,11]
[null,"$40,000 to $44,999",0,11,0,11,0,11,0,15,4,6,0,11,0,11,27,30,0,11,0,11,0,11,38,58,0,11,0,11,0,17,0,15,0,15,0,11,0,11,0,11,0,15,9,13,4,6,0,11,0,11,0,11,0,11]
[null,"$45,000 to $49,999",0,11,0,11,0,11,0,15,0,11,6,8,0,11,28,32,0,11,0,11,0,11,0,15,0,11,0,11,0,17,0,15,0,15,0,11,0,11,0,11,0,15,0,11,0,11,0,11,0,11,0,11,0,11]
[null,"$50,000 to $59,999",0,11,3,4,0,11,0,15,0,11,0,11,0,11,16,18,0,11,0,11,0,11,0,15,0,11,0,11,13,19,0,15,0,15,0,11,0,11,0,11,0,15,0,11,0,11,0,11,0,11,0,11,0,11]
[null,"$60,000 to $74,999",29,39,0,11,0,11,0,15,0,11,0,11,0,11,10,25,0,11,0,11,0,11,10,14,0,11,0,11,0,17,0,15,0,15,0,11,0,11,0,11,0,15,0,11,0,11,0,11,0,11,0,11,0,11]
[null,"$75,000 to $99,999",15,24,0,11,0,11,0,15,0,11,0,11,0,11,7,10,0,11,0,11,0,11,0,15,0,11,0,11,30,47,0,15,0,15,0,11,0,11,0,11,0,15,0,11,0,11,0,11,0,11,0,11,12,17]
[null,"$100,000 to $124,999",0,11,0,11,0,11,0,15,0,11,0,11,0,11,0,23,0,11,0,11,0,11,0,15,0,11,0,11,0,17,38,60,0,15,0,11,24,35,0,11,0,15,0,11,0,11,0,11,0,11,0,11,0,11]
[null,"$125,000 to $149,999",0,11,0,11,0,11,0,15,0,11,0,11,0,11,0,23,0,11,0,11,0,11,0,15,0,11,0,11,0,17,0,15,0,15,0,11,0,11,0,11,0,15,0,11,0,11,0,11,0,11,0,11,0,11]
[null,"$150,000 to $199,999",0,11,0,11,0,11,0,15,2,3,0,11,0,11,0,23,0,11,23,32,0,11,0,15,0,11,0,11,0,17,0,15,0,15,0,11,0,11,0,11,0,15,0,11,0,11,0,11,0,11,0,11,0,11]
[null,"$200,000 or more",0,11,0,11,0,11,0,15,0,11,0,11,0,11,0,23,0,11,0,11,0,11,0,15,0,11,0,11,0,17,0,15,0,15,0,11,0,11,0,11,0,15,0,11,0,11,0,11,0,11,0,11,0,11]
[null,"Householder 25 to 44 years:",554,98,192,55,417,111,526,98,164,45,178,42,243,51,5590,327,160,46,271,50,502,78,993,115,552,88,71,22,1662,160,450,105,457,96,111,40,230,86,488,90,889,133,531,77,108,39,237,62,313,61,250,55,162,51]
[null,"Less than $10,000",51,75,0,11,22,24,9,13,4,7,0,11,0,11,321,112,6,7,4,7,10,15,46,44,36,46,0,11,0,17,0,15,16,25,0,11,0,11,11,16,27,33,58,54,0,11,0,11,27,36,8,14,0,11]
[null,"$10,000 to $14,999",0,11,0,11,64,61,20,31,0,11,0,11,0,11,311,120,5,8,0,11,0,11,11,16,32,49,0,11,56,86,0,15,23,36,0,11,0,11,10,16,0,15,0,11,0,11,10,14,0,11,0,11,4,7]
[null,"$15,000 to $19,999",0,11,0,11,0,11,8,20,0,11,5,7,15,23,93,53,4,6,0,11,0,11,84,84,0,11,0,11,0,17,0,15,9,14,0,11,0,11,31,46,0,15,0,11,0,11,0,11,29,39,10,15,0,11]
[null,"$20,000 to $24,999",71,65,10,10,0,11,0,15,0,11,0,11,8,12,163,92,9,9,0,11,5,8,76,57,0,11,0,11,48,46,0,15,8,14,5,8,10,15,0,11,0,15,26,30,0,11,12,18,0,11,0,11,3,5]
[null,"$25,000 to $29,999",8,14,12,12,25,33,0,15,0,11,0,11,0,11,172,113,0,11,19,29,5,9,150,90,8,12,4,5,67,65,11,22,0,15,0,11,0,11,17,18,40,51,66,65,0,11,0,11,6,8,0,11,5,8]
[null,"$30,000 to $34,999",31,31,0,11,22,25,5,9,14,18,9,11,0,11,462,153,3,5,5,6,0,11,32,30,65,60,4,6,35,43,17,27,28,33,0,11,16,25,8,13,36,53,24,28,4,6,13,16,19,16,13,19,0,11]
[null,"$35,000 to $39,999",32,38,27,25,0,11,19,22,23,19,15,13,9,11,178,80,14,19,0,11,13,20,72,70,22,28,0,11,5,10,9,16,42,62,4,6,31,40,9,13,0,15,32,36,12,15,22,19,0,11,4,7,0,11]
[null,"$40,000 to $44,999",13,15,6,8,0,11,78,69,0,11,0,11,4,6,277,108,4,6,19,20,8,13,69,59,0,11,0,11,19,22,9,16,0,15,16,24,0,11,29,26,56,64,12,19,0,11,11,18,23,25,34,27,26,22]
[null,"$45,000 to $49,999",6,10,0,11,60,47,5,10,6,5,6,8,3,7,282,117,0,11,0,11,0,11,7,13,23,36,7,8,27,23,52,82,0,15,0,11,0,11,8,12,0,15,26,39,0,11,4,5,12,13,10,9,10,15]
[null,"$50,000 to $59,999",80,49,7,9,10,16,0,15,3,4,11,11,30,35,601,141,24,24,17,23,70,51,97,76,0,11,8,11,72,51,46,66,57,50,14,15,56,50,19,21,31,35,0,11,19,19,19,19,12,14,22,19,10,15]
[null,"$60,000 to $74,999",87,58,25,20,32,30,25,29,15,15,12,13,38,30,741,201,44,29,19,18,38,34,63,40,132,80,5,7,162,100,59,73,78,53,9,10,0,11,42,40,206,117,58,43,19,12,35,29,10,12,21,13,13,10]
[null,"$75,000 to $99,999",86,44,78,41,72,65,92,54,30,17,59,29,36,32,887,199,32,21,51,24,146,77,234,92,63,45,32,13,372,132,99,80,91,58,11,11,37,30,167,72,136,92,154,74,21,13,49,29,42,23,55,26,40,20]
[null,"$100,000 to $124,999",58,34,21,26,38,37,64,42,35,19,20,18,52,29,540,133,11,17,38,23,113,49,29,27,34,34,0,11,325,120,41,39,40,36,20,23,42,28,68,43,203,127,35,31,6,6,15,12,65,41,49,23,21,18]
[null,"$125,000 to $149,999",17,19,0,11,36,29,60,49,21,20,22,17,29,26,176,84,4,6,37,20,30,29,23,28,61,52,11,11,229,115,26,31,39,42,5,7,18,24,40,28,97,93,9,13,11,10,16,16,25,22,7,8,12,18]
[null,"$150,000 to $199,999",14,20,6,9,0,11,93,54,0,11,14,13,19,17,225,90,0,11,47,30,57,39,0,15,53,51,0,11,127,68,65,55,26,36,18,15,20,22,6,12,28,34,31,28,7,7,10,16,31,31,4,5,7,7]
[null,"$200,000 or more",0,11,0,11,36,39,48,47,13,17,5,7,0,11,161,81,0,11,15,15,7,12,0,15,23,22,0,11,118,132,16,30,0,15,9,9,0,11,23,38,29,33,0,11,9,14,21,19,12,16,13,15,11,18]
[null,"Householder 45 to 64 years:",792,89,485,72,591,103,1540,119,366,54,495,53,538,68,7337,334,273,56,580,54,915,103,1599,166,772,154,277,39,2320,191,964,112,1111,96,392,75,468,88,904,130,1382,162,642,102,333,58,326,56,527,76,375,56,212,45]
[null,"Less than $10,000",40,46,24,30,31,25,14,21,25,19,5,7,16,26,381,149,4,5,16,14,29,30,116,57,10,16,9,14,42,40,15,23,42,31,21,15,48,43,0,11,114,114,79,66,3,4,12,15,10,13,4,5,3,4]
[null,"$10,000 to $14,999",43,44,5,7,15,17,0,15,26,14,5,8,19,29,324,124,6,7,7,10,50,54,169,104,65,64,14,17,58,36,13,22,34,37,0,11,0,11,22,26,95,88,31,27,15,16,4,5,0,11,16,18,0,11]
[null,"$15,000 to $19,999",8,13,0,11,34,38,0,15,4,6,0,11,12,10,222,107,3,4,10,11,25,41,133,70,10,17,0,11,0,17,29,34,15,19,0,11,28,43,29,26,39,38,18,20,7,7,0,11,4,7,16,20,4,5]
[null,"$20,000 to $24,999",18,20,22,16,16,18,33,42,6,7,6,9,34,31,229,101,27,27,9,10,6,10,70,65,17,18,2,4,62,38,0,15,11,17,11,13,22,25,63,57,31,36,35,41,13,16,12,12,23,25,11,10,9,16]
[null,"$25,000 to $29,999",18,19,26,25,10,16,11,11,10,16,12,12,12,12,199,83,16,17,25,21,7,13,74,55,10,16,26,22,46,46,0,15,14,21,0,11,0,11,39,41,48,39,22,20,7,6,18,16,5,8,15,11,3,4]
[null,"$30,000 to $34,999",23,28,14,12,0,11,11,16,13,15,5,7,30,28,355,106,14,17,14,15,93,64,46,32,0,11,10,8,62,48,0,15,64,58,20,31,17,25,0,11,48,74,39,37,4,6,5,8,0,11,22,20,3,4]
[null,"$35,000 to $39,999",59,40,11,11,13,16,33,32,8,10,0,11,0,11,296,84,25,20,14,14,12,20,73,53,0,11,10,11,99,64,16,25,24,29,14,16,0,11,60,47,79,64,19,21,16,17,0,11,18,16,7,7,24,24]
[null,"$40,000 to $44,999",59,37,25,26,9,14,60,40,16,11,0,11,22,17,399,145,16,10,15,15,33,43,121,46,9,14,26,21,80,77,0,15,0,15,6,8,0,11,20,23,0,15,31,39,20,19,24,19,39,28,25,10,9,9]
[null,"$45,000 to $49,999",51,42,42,36,44,41,21,24,6,6,30,29,6,9,292,102,3,4,0,11,9,15,36,30,9,16,6,6,72,74,15,24,77,72,6,9,5,9,20,21,25,30,23,24,3,4,8,9,30,32,19,14,4,5]
[null,"$50,000 to $59,999",86,47,18,14,90,54,101,62,67,33,60,38,24,19,503,133,12,15,40,26,66,46,76,52,53,42,25,17,72,65,95,77,76,54,62,23,12,14,109,56,79,80,22,24,20,18,25,18,61,43,20,16,26,22]
[null,"$60,000 to $74,999",50,44,34,27,133,68,49,41,61,30,38,22,61,31,734,147,50,26,51,26,121,86,193,96,137,76,45,22,303,142,47,39,197,78,31,19,42,36,134,70,70,53,43,31,83,34,42,29,58,35,37,19,11,8]
[null,"$75,000 to $99,999",126,69,93,40,109,64,211,59,59,23,99,32,117,40,1075,214,39,23,82,32,76,42,299,93,161,81,48,20,499,124,237,121,202,77,98,36,53,35,171,53,315,102,116,64,34,22,59,34,79,38,75,25,21,14]
[null,"$100,000 to $124,999",112,63,80,41,22,22,224,74,29,14,96,35,38,21,705,117,27,23,134,54,109,63,127,55,118,71,27,17,297,116,141,80,106,72,58,35,70,43,155,72,126,62,52,33,70,22,52,31,75,37,27,14,32,19]
[null,"$125,000 to $149,999",47,41,20,15,38,30,296,95,6,7,75,37,74,42,540,117,18,16,44,26,128,59,47,40,82,57,14,10,283,120,75,61,98,52,40,24,49,32,64,34,80,56,51,42,17,12,17,13,30,19,49,27,44,23]
[null,"$150,000 to $199,999",52,32,47,38,27,27,217,65,15,10,16,15,38,24,601,121,13,15,59,29,65,46,19,18,49,33,13,16,251,106,119,72,118,83,14,11,97,47,9,14,170,72,45,46,13,10,30,23,51,32,23,12,11,8]
[null,"$200,000 or more",0,11,24,14,0,11,259,85,15,15,48,24,35,23,482,120,0,11,60,24,86,49,0,15,42,36,2,4,94,62,162,66,33,50,11,11,25,25,9,13,63,46,16,18,8,8,18,12,44,27,9,7,8,8]
[null,"Householder 65 years and over:",370,62,289,61,255,78,699,91,145,39,215,36,215,46,3608,274,100,30,174,39,392,95,714,105,210,66,97,35,1183,134,616,109,435,106,253,55,981,128,312,81,516,95,260,55,98,31,223,54,253,55,142,34,192,43]
[null,"Less than $10,000",9,13,29,24,16,18,7,11,12,14,5,8,12,12,199,80,3,5,0,11,9,15,84,50,9,13,2,3,45,35,13,21,15,23,0,11,34,31,0,11,22,35,8,12,3,4,0,11,0,11,9,8,5,5]
[null,"$10,000 to $14,999",51,56,30,33,0,11,50,43,12,10,10,11,10,12,211,70,0,11,0,11,100,79,47,40,35,33,2,4,81,48,0,15,22,27,9,9,75,51,13,15,39,42,49,44,4,5,0,11,14,23,9,9,12,12]
[null,"$15,000 to $19,999",34,27,15,12,33,29,63,42,17,11,23,16,6,9,308,96,27,27,0,11,16,19,53,40,22,21,6,6,95,55,25,29,8,13,27,33,17,19,25,24,69,64,22,20,7,7,4,5,18,14,20,19,8,7]
[null,"$20,000 to $24,999",64,49,9,10,41,44,74,45,7,7,10,11,5,9,363,115,11,8,12,14,61,36,54,46,16,14,19,18,81,54,22,25,102,87,6,8,95,41,30,28,73,49,8,13,3,5,6,6,11,12,13,10,11,17]
[null,"$25,000 to $29,999",51,54,30,26,12,17,19,22,13,10,5,8,9,9,469,96,3,4,26,25,31,28,57,42,11,18,7,7,152,77,14,21,10,16,21,19,45,31,8,12,36,39,14,15,6,6,18,20,15,13,0,11,18,11]
[null,"$30,000 to $34,999",44,30,18,23,39,26,20,21,10,15,0,11,10,10,250,84,5,7,15,15,8,13,43,35,15,18,16,11,31,27,41,38,18,20,58,36,24,28,12,14,43,48,20,19,11,16,13,12,4,5,9,8,29,21]
[null,"$35,000 to $39,999",15,18,29,29,28,20,20,22,3,4,8,11,17,16,216,82,2,4,13,14,22,25,27,30,0,11,5,5,88,60,23,25,27,25,5,7,32,25,54,51,34,38,6,11,2,4,24,23,16,23,10,8,0,11]
[null,"$40,000 to $44,999",20,17,5,7,0,11,23,26,4,6,17,14,10,10,221,83,5,5,0,11,26,24,83,47,19,19,3,4,79,46,45,41,0,15,17,14,68,35,33,23,0,15,6,10,12,9,12,15,15,13,12,9,10,8]
[null,"$45,000 to $49,999",14,16,4,7,0,11,47,32,16,11,0,11,17,25,163,69,10,8,27,29,9,14,11,13,0,11,5,5,32,31,12,19,14,22,26,19,26,26,60,52,17,28,22,21,8,7,25,22,10,8,3,6,16,17]
[null,"$50,000 to $59,999",0,11,17,13,25,21,7,12,23,13,13,15,21,17,229,82,17,15,13,13,0,11,51,39,12,19,6,10,62,45,35,31,71,47,10,12,91,43,16,16,68,48,18,17,12,8,33,26,34,34,9,9,17,14]
[null,"$60,000 to $74,999",12,14,35,31,8,13,79,52,8,8,26,17,21,15,203,87,5,6,9,9,64,38,112,58,35,46,4,5,119,59,89,70,17,17,17,14,102,48,19,18,37,42,16,18,14,12,14,10,27,21,18,11,22,19]
[null,"$75,000 to $99,999",18,22,25,16,21,24,115,65,5,7,41,24,47,26,404,101,7,8,30,21,18,21,27,30,8,13,15,20,151,87,117,68,53,37,6,8,105,54,25,22,36,42,16,19,10,9,41,30,22,14,13,9,8,7]
[null,"$100,000 to $124,999",13,16,19,15,9,15,53,35,0,11,25,27,10,16,139,62,5,5,0,11,9,13,16,25,0,11,2,4,87,68,115,85,0,15,10,10,113,55,5,8,0,15,0,11,3,4,0,11,4,7,5,5,30,19]
[null,"$125,000 to $149,999",21,21,5,7,0,11,41,33,7,7,14,13,0,11,83,40,0,11,16,13,8,11,29,33,6,9,3,5,42,27,13,21,52,39,13,20,55,28,0,11,20,32,14,18,0,11,18,23,16,13,7,7,0,11]
[null,"$150,000 to $199,999",4,7,19,20,14,16,65,78,0,11,6,8,20,15,111,67,0,11,5,8,11,16,20,24,8,14,2,4,13,17,28,33,0,15,6,9,61,45,12,17,9,14,26,31,3,4,6,8,6,7,5,5,3,4]
[null,"$200,000 or more",0,11,0,11,9,13,16,18,8,8,12,14,0,11,39,33,0,11,8,9,0,11,0,15,14,16,0,11,25,23,24,27,26,29,22,15,38,34,0,11,13,20,15,17,0,11,9,13,41,38,0,11,3,4]
[]
[]
[]
[]
[]
[]
[]
[]
[]
[]
[]
[]
[]
[]
[null,"B19037. AGE OF HOUSEHOLDER BY HOUSEHOLD INCOME IN THE PAST 12 MONTHS (IN 2009 INFLATION-ADJUSTED DOLLARS)"]
[null,"Universe:  HOUSEHOLDS"]
[null,"Data Set: 2005-2009 American Community Survey 5-Year Estimates"]
[]
[null,null,"Allenstown",null,"Andover",null,"Boscawen",null,"Bow",null,"Bradford",null,"Canterbury",null,"Chichester",null,"Concord",null,"Danbury",null,"Dunbarton",null,"Epsom",null,"Franklin",null,"Henniker",null,"Hill",null,"Hooksett",null,"Hopkinton",null,"Loudon",null,"Newbury",null,"New London",null,"Northfield",null,"Pembroke",null,"Pittsfield",null,"Salisbury",null,"Sutton",null,"Warner",null,"Webster",null,"Wilmot"]
[null,null,"Estimate","Margin Of Error","Estimate","Margin Of Error","Estimate","Margin Of Error","Estimate","Margin Of Error","Estimate","Margin Of Error","Estimate","Margin Of Error","Estimate","Margin Of Error","Estimate","Margin Of Error","Estimate","Margin Of Error","Estimate","Margin Of Error","Estimate","Margin Of Error","Estimate","Margin Of Error","Estimate","Margin Of Error","Estimate","Margin Of Error","Estimate","Margin Of Error","Estimate","Margin Of Error","Estimate","Margin Of Error","Estimate","Margin Of Error","Estimate","Margin Of Error","Estimate","Margin Of Error","Estimate","Margin Of Error","Estimate","Margin Of Error","Estimate","Margin Of Error","Estimate","Margin Of Error","Estimate","Margin Of Error","Estimate","Margin Of Error","Estimate","Margin Of Error"]
[null,"Total:",1824,124,947,86,1317,163,2845,132,510,73,896,50,918,51,17349,501,528,75,960,53,1445,110,3300,222,1776,167,392,48,4638,239,2237,119,1751,105,821,88,1564,226,1884,138,2907,166,1652,109,438,49,680,92,1010,162,669,56,502,64]
[null,"Householder under 25 years:",75,67,23,29,9,15,0,114,12,12,7,9,0,114,996,235,19,18,13,17,30,47,66,57,178,94,5,6,88,71,17,28,9,14,5,8,35,38,50,62,205,122,36,43,0,114,11,10,15,18,14,15,17,16]
[null,"Less than $10,000",8,14,0,114,0,114,0,114,0,114,0,114,0,114,237,126,0,114,0,114,0,114,0,114,16,25,0,114,0,114,0,114,0,114,0,114,0,114,0,114,0,114,0,114,0,114,0,114,0,114,0,114,0,114]
[null,"$10,000 to $14,999",0,114,0,114,0,114,0,114,0,114,0,114,0,114,41,38,0,114,0,114,0,114,19,23,0,114,0,114,0,114,0,114,0,114,0,114,17,29,0,114,16,27,0,114,0,114,0,114,0,114,0,114,5,8]
[null,"$15,000 to $19,999",0,114,6,8,0,114,0,114,0,114,0,114,0,114,65,69,0,114,0,114,0,114,0,114,65,64,0,114,0,114,0,114,0,114,0,114,0,114,0,114,0,114,0,114,0,114,0,114,0,114,0,114,0,114]
[null,"$20,000 to $24,999",0,114,0,114,0,114,0,114,0,114,0,114,0,114,42,38,0,114,0,114,0,114,0,114,0,114,0,114,0,114,0,114,0,114,0,114,0,114,0,114,0,114,0,114,0,114,0,114,0,114,0,114,4,7]
[null,"$25,000 to $29,999",0,114,0,114,0,114,0,114,0,114,0,114,0,114,41,41,0,114,8,15,0,114,0,114,20,31,0,114,0,114,0,114,9,14,0,114,0,114,0,114,67,77,0,114,0,114,0,114,0,114,0,114,0,114]
[null,"$30,000 to $34,999",0,114,0,114,0,114,0,114,0,114,0,114,0,114,131,77,0,114,5,7,0,114,0,114,0,114,0,114,0,114,0,114,0,114,0,114,0,114,0,114,0,114,0,114,0,114,0,114,0,114,8,13,0,114]
[null,"$35,000 to $39,999",0,114,0,114,0,114,0,114,0,114,0,114,0,114,142,100,0,114,0,114,0,114,8,14,26,42,0,114,9,15,0,114,0,114,0,114,0,114,0,114,55,89,0,114,0,114,0,114,0,114,2,4,0,114]
[null,"$40,000 to $44,999",0,114,0,114,9,15,0,114,0,114,0,114,0,114,0,114,14,17,0,114,0,114,0,114,0,114,2,3,0,114,0,114,0,114,0,114,0,114,38,59,0,114,0,114,0,114,0,114,0,114,0,114,4,7]
[null,"$45,000 to $49,999",0,114,0,114,0,114,0,114,0,114,0,114,0,114,78,46,0,114,0,114,0,114,0,114,0,114,0,114,0,114,0,114,0,114,0,114,18,24,12,19,0,114,0,114,0,114,3,5,4,6,4,6,0,114]
[null,"$50,000 to $59,999",0,114,0,114,0,114,0,114,0,114,0,114,0,114,138,111,5,7,0,114,0,114,0,114,0,114,0,114,21,33,17,28,0,114,0,114,0,114,0,114,67,106,23,37,0,114,0,114,0,114,0,114,0,114]
[null,"$60,000 to $74,999",10,16,0,114,0,114,0,114,3,4,7,9,0,114,49,61,0,114,0,114,0,114,9,14,26,40,0,114,58,62,0,114,0,114,5,8,0,114,0,114,0,114,13,22,0,114,8,8,0,114,0,114,4,8]
[null,"$75,000 to $99,999",57,63,0,114,0,114,0,114,9,11,0,114,0,114,32,34,0,114,0,114,30,47,30,48,25,42,3,5,0,114,0,114,0,114,0,114,0,114,0,114,0,114,0,114,0,114,0,114,11,17,0,114,0,114]
[null,"$100,000 to $124,999",0,114,17,28,0,114,0,114,0,114,0,114,0,114,0,114,0,114,0,114,0,114,0,114,0,114,0,114,0,114,0,114,0,114,0,114,0,114,0,114,0,114,0,114,0,114,0,114,0,114,0,114,0,114]
[null,"$125,000 to $149,999",0,114,0,114,0,114,0,114,0,114,0,114,0,114,0,114,0,114,0,114,0,114,0,114,0,114,0,114,0,114,0,114,0,114,0,114,0,114,0,114,0,114,0,114,0,114,0,114,0,114,0,114,0,114]
[null,"$150,000 to $199,999",0,114,0,114,0,114,0,114,0,114,0,114,0,114,0,114,0,114,0,114,0,114,0,114,0,114,0,114,0,114,0,114,0,114,0,114,0,114,0,114,0,114,0,114,0,114,0,114,0,114,0,114,0,114]
[null,"$200,000 or more",0,114,0,114,0,114,0,114,0,114,0,114,0,114,0,114,0,114,0,114,0,114,0,114,0,114,0,114,0,114,0,114,0,114,0,114,0,114,0,114,0,114,0,114,0,114,0,114,0,114,0,114,0,114]
[null,"Householder 25 to 44 years:",693,117,294,64,466,95,626,89,96,36,285,55,317,60,6229,367,163,51,317,40,508,87,1283,146,474,106,138,32,1619,182,632,127,567,83,276,79,296,109,782,101,1144,171,675,121,105,25,214,93,288,54,238,45,102,28]
[null,"Less than $10,000",31,39,0,114,8,14,0,114,0,114,0,114,0,114,294,117,11,16,0,114,0,114,130,71,24,28,0,114,0,114,0,114,0,114,0,114,28,43,11,17,0,114,0,114,0,114,9,13,14,22,0,114,0,114]
[null,"$10,000 to $14,999",0,114,7,12,14,23,0,114,0,114,5,8,0,114,170,121,0,114,14,15,0,114,105,78,0,114,0,114,14,22,0,114,0,114,2,5,18,28,15,25,191,142,0,114,0,114,0,114,0,114,7,8,0,114]
[null,"$15,000 to $19,999",0,114,16,24,0,114,0,114,0,114,0,114,0,114,197,89,11,12,0,114,0,114,28,26,0,114,0,114,0,114,0,114,7,12,0,114,0,114,0,114,28,39,0,114,0,114,0,114,5,7,14,17,0,114]
[null,"$20,000 to $24,999",110,91,0,114,0,114,0,114,6,6,0,114,0,114,321,134,4,8,6,10,14,21,61,51,15,24,2,4,45,50,0,114,21,24,0,114,0,114,31,50,10,17,0,114,0,114,13,16,10,14,0,114,3,6]
[null,"$25,000 to $29,999",13,24,0,114,10,17,14,23,10,10,25,21,20,29,490,160,7,8,0,114,42,38,52,47,0,114,14,17,80,70,0,114,42,33,0,114,0,114,95,68,89,110,0,114,0,114,0,114,22,21,9,14,0,114]
[null,"$30,000 to $34,999",49,53,12,15,15,27,0,114,2,5,0,114,0,114,225,99,14,15,0,114,12,20,89,64,0,114,3,5,55,42,17,26,37,53,0,114,0,114,9,14,40,43,8,14,0,114,4,6,15,15,2,3,0,114]
[null,"$35,000 to $39,999",0,114,26,30,7,13,9,15,0,114,24,26,20,31,255,102,31,27,18,16,0,114,98,53,0,114,4,5,35,45,13,20,85,62,8,9,17,28,11,18,35,42,155,101,5,6,0,114,0,114,16,15,0,114]
[null,"$40,000 to $44,999",32,37,0,114,32,34,0,114,2,5,0,114,17,18,304,109,3,5,5,8,27,38,50,32,0,114,10,14,61,44,0,114,26,31,59,78,22,25,13,21,43,46,44,39,6,7,7,9,6,9,13,13,3,5]
[null,"$45,000 to $49,999",0,114,23,29,14,22,48,49,2,3,14,17,32,35,446,162,7,11,8,12,0,114,72,43,71,61,8,9,60,76,0,114,44,43,2,4,0,114,46,54,39,63,0,114,8,8,5,7,8,9,7,6,0,114]
[null,"$50,000 to $59,999",94,57,43,22,70,67,54,39,24,20,9,9,13,14,473,141,23,21,13,14,21,26,159,71,43,42,17,18,118,77,26,30,20,24,35,22,8,15,124,67,46,49,70,45,16,10,13,15,21,16,23,15,3,6]
[null,"$60,000 to $74,999",46,41,60,29,105,56,28,31,6,6,45,27,63,36,875,185,16,15,43,29,118,83,212,85,58,56,50,26,120,70,116,68,41,49,39,35,0,114,103,67,179,81,91,50,21,18,17,13,69,32,42,15,14,16]
[null,"$75,000 to $99,999",162,91,32,32,60,42,110,58,34,24,73,32,56,27,1055,207,28,18,58,28,74,61,104,56,89,67,19,12,431,114,197,93,136,78,96,42,11,18,156,68,161,79,180,78,32,17,25,17,54,33,72,28,33,18]
[null,"$100,000 to $124,999",103,79,42,23,112,64,148,78,0,114,33,31,38,32,486,136,0,114,59,29,119,59,94,62,126,89,8,8,283,100,34,29,97,66,19,16,75,86,142,88,107,62,43,37,13,11,18,15,34,25,17,10,28,22]
[null,"$125,000 to $149,999",28,41,22,31,9,15,92,48,4,6,12,10,26,21,286,95,4,7,50,40,60,58,29,27,23,30,0,114,79,50,97,87,0,114,6,7,0,114,14,21,42,38,49,61,0,114,18,14,10,11,6,7,0,114]
[null,"$150,000 to $199,999",0,114,6,10,10,17,78,59,3,5,31,29,18,19,184,87,4,5,18,16,21,24,0,114,0,114,0,114,144,72,43,43,11,17,7,11,77,55,12,19,70,56,10,16,0,114,20,19,15,12,8,7,0,114]
[null,"$200,000 or more",25,40,5,8,0,114,45,38,3,4,14,14,14,15,168,75,0,114,25,27,0,114,0,114,25,38,3,4,94,83,89,60,0,114,3,5,40,48,0,114,64,79,25,41,4,5,65,85,5,8,2,3,18,12]
[null,"Householder 45 to 64 years:",748,106,413,87,580,108,1622,115,319,56,414,69,456,77,6554,340,272,72,504,56,635,94,1340,182,858,150,167,33,2109,215,993,150,830,102,367,70,392,107,824,129,1180,164,707,113,240,47,258,55,515,111,302,51,300,63]
[null,"Less than $10,000",22,26,0,114,29,29,0,114,14,14,3,6,7,10,294,119,26,25,14,16,0,114,67,52,7,11,7,7,42,44,0,114,36,43,9,11,30,49,40,37,18,30,13,20,0,114,18,17,19,14,6,7,23,20]
[null,"$10,000 to $14,999",18,20,24,30,20,20,43,39,3,4,15,14,23,29,190,97,7,9,0,114,14,15,57,39,0,114,6,7,49,40,0,114,0,114,0,114,0,114,0,114,50,44,46,36,7,10,0,114,0,114,0,114,34,46]
[null,"$15,000 to $19,999",38,55,0,114,12,19,0,114,0,114,0,114,10,11,269,136,4,7,0,114,29,23,59,40,0,114,16,10,0,114,0,114,0,114,3,4,0,114,0,114,19,30,73,54,5,8,12,14,9,10,0,114,0,114]
[null,"$20,000 to $24,999",31,31,18,21,49,51,0,114,20,15,0,114,5,9,226,82,34,39,23,21,36,44,115,81,38,49,14,16,9,14,21,34,8,13,17,18,0,114,11,17,28,38,22,26,0,114,4,7,0,114,16,13,4,8]
[null,"$25,000 to $29,999",16,18,8,12,12,20,79,75,5,6,13,14,29,27,104,49,10,11,6,11,18,21,55,46,23,35,0,114,30,35,0,114,10,16,7,8,9,15,23,24,119,112,29,27,0,114,16,15,12,12,3,4,29,42]
[null,"$30,000 to $34,999",66,54,8,11,32,32,14,22,17,16,24,19,0,114,376,145,5,7,0,114,64,40,86,52,47,37,9,10,38,33,45,36,30,28,19,19,32,52,25,28,70,55,60,39,0,114,0,114,48,30,10,10,4,7]
[null,"$35,000 to $39,999",8,13,53,43,36,55,46,52,10,8,26,20,10,11,338,119,5,7,0,114,17,19,41,35,30,31,3,4,91,73,38,36,0,114,25,21,0,114,9,15,34,38,50,60,7,7,6,6,48,34,12,9,3,5]
[null,"$40,000 to $44,999",20,22,66,45,12,22,0,114,26,19,7,11,18,17,402,113,15,16,10,12,0,114,40,37,50,62,6,6,113,62,47,44,4,8,9,13,21,24,51,38,30,33,54,42,18,12,19,18,40,23,6,6,13,14]
[null,"$45,000 to $49,999",48,52,0,114,12,18,46,44,15,9,28,21,11,12,229,133,3,4,20,15,13,20,114,65,48,41,6,6,112,68,37,59,43,48,23,19,0,114,55,60,68,47,8,13,18,19,14,13,19,16,3,4,3,5]
[null,"$50,000 to $59,999",122,101,47,38,111,70,103,91,33,19,23,15,46,28,560,122,10,16,26,19,28,26,95,46,123,68,9,8,131,68,72,46,79,53,58,31,13,19,179,80,85,69,71,48,37,24,18,15,78,47,66,43,23,19]
[null,"$60,000 to $74,999",102,56,58,36,55,42,152,92,33,20,30,16,74,35,613,146,48,30,85,33,97,50,176,61,62,44,25,13,218,75,58,52,131,55,10,11,28,35,147,69,110,59,111,54,33,20,23,19,61,39,37,21,34,21]
[null,"$75,000 to $99,999",133,70,36,23,35,34,229,93,47,26,107,38,109,52,1179,211,63,34,75,41,120,55,198,72,123,66,15,14,507,155,311,132,207,57,63,27,16,21,167,63,143,58,100,69,50,25,50,29,81,36,49,19,37,21]
[null,"$100,000 to $124,999",79,52,17,26,64,50,223,110,36,19,74,34,20,16,741,157,27,21,85,34,105,64,139,72,164,75,28,18,288,96,80,59,86,42,22,18,16,19,61,49,227,86,27,32,40,18,33,22,64,31,61,28,33,26]
[null,"$125,000 to $149,999",270,80,13,16,516,144,10,8,64,37,7,7,39,20,151,58,18,17,14,15,7,7,14,22,161,65,282,91,174,74,33,19,764,164,35,22,442,98,194,77,82,24,1151,204,48,40,46,44,208,83,110,58,4,5]
[null,"$150,000 to $199,999",328,85,12,12,561,119,9,8,138,61,34,17,32,14,259,96,20,14,16,15,31,19,10,16,225,88,427,141,169,69,9,8,696,162,31,14,752,185,185,90,58,21,1337,202,108,58,90,49,191,70,36,40,8,9]
[null,"$200,000 or more",462,114,14,15,815,175,5,7,53,35,11,10,25,13,76,53,19,14,0,114,32,17,0,114,362,123,313,123,84,53,2,4,620,183,14,10,281,81,113,69,33,14,751,183,89,49,14,23,135,67,95,59,8,5]
[null,"Householder 65 years and over:",709,119,197,43,1289,156,66,20,193,35,153,45,128,29,1096,155,84,23,217,60,258,36,475,103,506,102,1242,116,295,65,116,39,7647,404,85,30,1333,131,815,133,117,24,6450,368,196,44,171,63,662,119,759,102,48,24]
[null,"Less than $10,000",68,46,29,29,16,23,7,7,0,114,13,16,3,5,66,42,7,7,7,10,15,10,25,31,18,27,12,20,0,114,8,13,862,181,9,9,37,33,22,26,0,114,431,123,8,12,0,114,11,18,69,56,0,114]
[null,"$10,000 to $14,999",34,31,18,17,105,61,6,7,0,114,33,25,4,5,171,99,6,7,57,26,21,17,0,114,19,31,67,53,13,21,10,14,785,154,0,114,63,68,48,48,0,114,668,167,0,114,0,114,65,63,73,64,0,114]
[null,"$15,000 to $19,999",59,73,18,16,65,57,3,4,10,17,12,11,10,9,37,30,3,5,30,19,31,18,31,35,16,26,151,81,8,14,16,16,834,184,4,6,94,55,107,58,3,4,656,174,10,15,17,27,103,48,33,37,0,114]
[null,"$20,000 to $24,999",15,25,12,14,51,43,7,8,0,114,11,11,16,12,152,82,13,14,49,43,13,9,60,41,25,22,114,60,23,23,9,8,852,146,4,6,66,46,121,57,3,4,468,98,10,15,35,36,38,34,94,57,3,5]
[null,"$25,000 to $29,999",35,55,6,9,27,32,0,114,21,22,15,11,3,5,129,61,6,7,0,114,16,11,67,62,0,114,67,49,12,19,0,114,597,159,4,6,146,75,93,57,3,4,536,136,12,19,16,24,21,29,51,51,5,6]
[null,"$30,000 to $34,999",33,32,12,12,79,53,13,10,13,19,7,7,3,4,51,41,4,6,36,34,12,15,33,29,45,48,108,67,8,13,0,114,503,147,8,8,101,62,90,50,6,6,465,134,0,114,33,34,11,17,39,45,4,8]
[null,"$35,000 to $39,999",39,32,4,7,84,54,4,5,20,24,6,6,7,7,76,48,4,5,6,9,10,8,56,41,36,38,74,50,27,25,16,17,426,104,0,114,80,47,24,24,12,8,393,123,0,114,16,26,53,37,0,114,0,114]
[null,"$40,000 to $44,999",12,19,6,9,60,47,0,114,0,114,9,15,12,9,69,45,13,14,11,12,16,8,15,23,57,38,96,54,21,24,24,19,352,83,14,18,76,46,15,17,2,4,317,92,18,20,15,22,42,33,16,25,0,114]
[null,"$45,000 to $49,999",24,28,7,10,54,48,0,114,0,114,28,24,0,114,59,39,3,5,0,114,18,16,35,32,0,114,67,44,35,33,3,4,122,59,14,10,67,43,48,36,13,10,397,131,8,12,0,114,11,17,21,24,0,114]
[null,"$50,000 to $59,999",65,50,15,15,163,70,4,5,10,15,6,6,14,16,102,50,0,114,7,11,12,9,67,67,57,51,190,74,50,37,2,4,608,137,7,8,114,62,44,36,6,10,501,111,19,21,0,114,73,42,44,40,3,5]
[null,"$60,000 to $74,999",44,28,35,25,92,59,6,6,22,22,6,7,19,12,50,42,4,5,9,13,18,12,27,41,31,36,136,73,48,41,7,8,637,142,10,9,143,78,29,26,33,18,543,146,30,46,16,26,74,62,92,52,8,8]
[null,"$75,000 to $99,999",110,67,5,9,105,54,10,9,30,25,7,7,7,7,86,52,13,12,0,114,21,12,32,30,113,67,73,51,18,20,21,20,490,122,0,114,167,82,118,59,14,8,482,128,54,34,12,17,78,48,74,53,8,8]
[null,"$100,000 to $124,999",46,37,24,19,146,67,3,5,35,30,0,114,7,7,9,16,4,5,0,114,15,10,16,25,0,114,49,44,20,22,0,114,225,78,7,8,91,59,13,20,11,8,218,84,19,21,0,114,21,22,66,44,6,8]
[null,"$125,000 to $149,999",58,53,6,9,104,62,0,114,11,16,0,114,11,9,13,21,4,6,0,114,9,8,0,114,42,42,13,21,0,114,0,114,147,79,0,114,43,39,37,31,6,6,155,70,0,114,0,114,28,28,23,25,3,5]
[null,"$150,000 to $199,999",54,44,0,114,35,31,3,4,21,23,0,114,0,114,12,19,0,114,0,114,6,6,0,114,0,114,0,114,12,18,0,114,138,69,0,114,45,41,0,114,0,114,105,47,0,114,0,114,18,21,15,23,8,14]
[null,"$200,000 or more",13,20,0,114,103,54,0,114,0,114,0,114,12,11,14,23,0,114,5,8,25,11,11,21,47,38,25,28,0,114,0,114,69,41,4,6,0,114,6,9,5,8,115,101,8,14,11,18,15,18,49,43,0,114]

{"sheet":"DisabilityByAge","index":24,"n_rows":72,"n_cols":15,"rows_kept":72,"cut":false,"hidden":true,"merged":[[51,13,51,14],[28,3,28,4],[28,5,28,6],[28,7,28,8],[28,9,28,10],[28,11,28,12],[28,13,28,14],[51,3,51,4],[51,5,51,6],[51,7,51,8],[51,9,51,10],[51,11,51,12]]}
[]
[]
[]
[]
[null,{"$f":"CntyDataLink!A20","v":"Allenstown"}]
[null,"SOCIAL CHARACTERISTICS"]
[]
[null,"Disabilities By Age"]
[null,null,"Universe: Civilian Non-institutionalized Population"]
[]
[]
[]
[]
[]
[]
[]
[]
[]
[]
[]
[]
[]
[]
[]
[]
[]
[]
[]
[null,null,null,"Under 5",null,"5 to 17 years",null,"18 to 34 years",null,"35 to 64 years",null,"65 to 74 years",null,"75 years and older"]
[null,null,null,"Estimate","Margin of Error","Estimate","Margin of Error","Estimate","Margin of Error","Estimate","Margin of Error","Estimate","Margin of Error","Estimate","Margin of Error"]
[null,"Total ",null,{"$f":"CntyDataLink!D112","v":228},{"$f":"CntyDataLink!E112","v":96.79876032264049},{"$f":"CntyDataLink!J112","v":593},{"$f":"CntyDataLink!K112","v":118.56221995222593},{"$f":"CntyDataLink!P112","v":922},{"$f":"CntyDataLink!Q112","v":152.83978539634239},{"$f":"CntyDataLink!V112","v":1972},{"$f":"CntyDataLink!W112","v":145.7737973711325},{"$f":"CntyDataLink!AB112","v":322},{"$f":"CntyDataLink!AC112","v":78.230428862431779},{"$f":"CntyDataLink!AH112","v":310},{"$f":"CntyDataLink!AI112","v":92.962357973536797}]
[]
[null,"With a disability:",null,{"$f":"CntyDataLink!F112","v":0},{"$f":"CntyDataLink!G112","v":15.556349186104045},{"$f":"CntyDataLink!L112","v":87},{"$f":"CntyDataLink!M112","v":50.990195135927848},{"$f":"CntyDataLink!R112","v":149},{"$f":"CntyDataLink!S112","v":79.649231006959511},{"$f":"CntyDataLink!X112","v":287},{"$f":"CntyDataLink!Y112","v":90.801982357215081},{"$f":"CntyDataLink!AD112","v":111},{"$f":"CntyDataLink!AE112","v":45.276925690687087},{"$f":"CntyDataLink!AJ112","v":176},{"$f":"CntyDataLink!AK112","v":73}]
[]
[]
[]
[null,"Type of disability"]
[null,null,"Hearing disability",{"$f":"CntyDataLink!AN112","v":0},{"$f":"CntyDataLink!AO112","v":15.556349186104045},{"$f":"CntyDataLink!AP112","v":9},{"$f":"CntyDataLink!AQ112","v":19.416487838947599},{"$f":"CntyDataLink!AR112","v":17},{"$f":"CntyDataLink!AS112","v":21.95449840010015},{"$f":"CntyDataLink!AT112","v":12},{"$f":"CntyDataLink!AU112","v":19.416487838947599},{"$f":"CntyDataLink!AV112","v":48},{"$f":"CntyDataLink!AW112","v":27.202941017470888},{"$f":"CntyDataLink!AX112","v":61},{"$f":"CntyDataLink!AY112","v":36.878177829171548}]
[null,null,"Visual disability",{"$f":"CntyDataLink!AZ112","v":0},{"$f":"CntyDataLink!BA112","v":15.556349186104045},{"$f":"CntyDataLink!BB112","v":0},{"$f":"CntyDataLink!BC112","v":15.556349186104045},{"$f":"CntyDataLink!BD112","v":0},{"$f":"CntyDataLink!BE112","v":15.556349186104045},{"$f":"CntyDataLink!BF112","v":29},{"$f":"CntyDataLink!BG112","v":32.649655434629018},{"$f":"CntyDataLink!BH112","v":0},{"$f":"CntyDataLink!BI112","v":15.556349186104045},{"$f":"CntyDataLink!BJ112","v":26},{"$f":"CntyDataLink!BK112","v":42.449970553582247}]
[null,null,"Cognitive disability","NA","NA",{"$f":"CntyDataLink!BL112","v":126},{"$f":"CntyDataLink!BM112","v":89.442719099991592},{"$f":"CntyDataLink!BN112","v":38},{"$f":"CntyDataLink!BO112","v":30.528675044947494},{"$f":"CntyDataLink!BP112","v":162},{"$f":"CntyDataLink!BQ112","v":99.403219263764285},{"$f":"CntyDataLink!BR112","v":46},{"$f":"CntyDataLink!BS112","v":51.244511901275828},{"$f":"CntyDataLink!BT112","v":28},{"$f":"CntyDataLink!BU112","v":30.413812651491099}]
[null,null,"Ambulatory disability","NA","NA",{"$f":"CntyDataLink!BV112","v":0},{"$f":"CntyDataLink!BW112","v":15.556349186104045},{"$f":"CntyDataLink!BX112","v":30},{"$f":"CntyDataLink!BY112","v":50.219518117958877},{"$f":"CntyDataLink!BZ112","v":146},{"$f":"CntyDataLink!CA112","v":63.63961030678928},{"$f":"CntyDataLink!CB112","v":82},{"$f":"CntyDataLink!CC112","v":41.773197148410844},{"$f":"CntyDataLink!CD112","v":95},{"$f":"CntyDataLink!CE112","v":48.846698967279252}]
[null,null,"Self-care disability","NA","NA",{"$f":"CntyDataLink!CF112","v":37},{"$f":"CntyDataLink!CG112","v":47.296934361541872},{"$f":"CntyDataLink!CH112","v":0},{"$f":"CntyDataLink!CI112","v":15.556349186104045},{"$f":"CntyDataLink!CJ112","v":22},{"$f":"CntyDataLink!CK112","v":26.40075756488817},{"$f":"CntyDataLink!CL112","v":8},{"$f":"CntyDataLink!CM112","v":17.029386365926403},{"$f":"CntyDataLink!CN112","v":56},{"$f":"CntyDataLink!CO112","v":46.141087980237309}]
[null,null,"Independent living disability","NA","NA","NA","NA",{"$f":"CntyDataLink!CP112","v":67},{"$f":"CntyDataLink!CQ112","v":57.314919523628397},{"$f":"CntyDataLink!CR112","v":69},{"$f":"CntyDataLink!CS112","v":46.61544808322666},{"$f":"CntyDataLink!CT112","v":50},{"$f":"CntyDataLink!CU112","v":31.384709652950431},{"$f":"CntyDataLink!CV112","v":43},{"$f":"CntyDataLink!CW112","v":55.036351623268054}]
[]
[]
[]
[null,"No disability",null,{"$f":"CntyDataLink!H112","v":228},{"$f":"CntyDataLink!I112","v":96.79876032264049},{"$f":"CntyDataLink!N112","v":506},{"$f":"CntyDataLink!O112","v":113.56936206565572},{"$f":"CntyDataLink!T112","v":773},{"$f":"CntyDataLink!U112","v":141.22676800097071},{"$f":"CntyDataLink!Z112","v":1685},{"$f":"CntyDataLink!AA112","v":155.62133529821674},{"$f":"CntyDataLink!AF112","v":211},{"$f":"CntyDataLink!AG112","v":76.026311234992846},{"$f":"CntyDataLink!AL112","v":134},{"$f":"CntyDataLink!AM112","v":58.668560575490517}]
[null,"Source: 2015-2019 American Community Survey Tables B18101;  B18102; B18103; B18104; B18105; B18106; and B18107"]
[null,"NA indicates that the American Community Survey does not calculate the number for that disability."]
[null,"Percent of Population with Disabilities"]
[]
[null,null,null,"Under 5",null,"5 to 17 years",null,"18 to 34 years",null,"35 to 64 years",null,"65 to 74 years",null,"75 years and older"]
[]
[null,"With a disability:",null,{"$f":"D33/D$31","v":0},null,{"$f":"F33/F$31","v":0.14671163575042159},null,{"$f":"H33/H$31","v":0.1616052060737527},null,{"$f":"J33/J$31","v":0.14553752535496958},null,{"$f":"L33/L$31","v":0.34472049689440992},null,{"$f":"N33/N$31","v":0.56774193548387097}]
[]
[null,"Type of disability"]
[null,null,"Hearing disability",{"$f":"D38/D$31","v":0},null,{"$f":"F38/F$31","v":1.5177065767284991E-2},null,{"$f":"H38/H$31","v":1.843817787418655E-2},null,{"$f":"J38/J$31","v":6.0851926977687626E-3},null,{"$f":"L38/L$31","v":0.14906832298136646},null,{"$f":"N38/N$31","v":0.1967741935483871}]
[null,null,"Visual disability",{"$f":"D39/D$31","v":0},null,{"$f":"F39/F$31","v":0},null,0,null,1.4705882352941176E-2,null,0,null,8.387096774193549E-2]
[null,null,"Cognitive disability","NA",null,{"$f":"F40/F$31","v":0.21247892074198987},null,4.1214750542299353E-2,null,8.2150101419878302E-2,null,0.14285714285714285,null,9.0322580645161285E-2]
[null,null,"Ambulatory disability","NA",null,{"$f":"F41/F$31","v":0},null,3.2537960954446853E-2,null,7.4036511156186618E-2,null,0.25465838509316768,null,0.30645161290322581]
[null,null,"Self-care disability","NA",null,{"$f":"F42/F$31","v":6.2394603709949412E-2},null,0,null,1.1156186612576065E-2,null,2.4844720496894408E-2,null,0.18064516129032257]
[null,null,"Independent living disability","NA",null,"NA",null,7.2668112798264642E-2,null,3.4989858012170388E-2,null,0.15527950310559005,null,0.13870967741935483]
[]
[]
[]
[null,"No disability",null,{"$f":"D47/D$31","v":1},null,{"$f":"F47/F$31","v":0.85328836424957843},null,{"$f":"H47/H$31","v":0.83839479392624727},null,{"$f":"J47/J$31","v":0.85446247464503045},null,{"$f":"L47/L$31","v":0.65527950310559002},null,{"$f":"N47/N$31","v":0.43225806451612903}]
[]
[]
[null,"Source: 2015-2019 American Community Survey Tables B18101;  B18102; B18103; B18104; B18105; B18106; and B18107"]
[null,"NA indicates that the American Community Survey does not calculate the number for that disability."]
[]
[null,"Data from the American Community Survey are estimates."]

{"sheet":"DisabilityByAgePrior5YearEst","index":25,"n_rows":72,"n_cols":15,"rows_kept":72,"cut":false,"hidden":true,"merged":[[51,13,51,14],[28,3,28,4],[28,5,28,6],[28,7,28,8],[28,9,28,10],[28,11,28,12],[28,13,28,14],[51,3,51,4],[51,5,51,6],[51,7,51,8],[51,9,51,10],[51,11,51,12]]}
[]
[]
[]
[]
[null,{"$f":"CntyDataLink!A20","v":"Allenstown"}]
[null,"SOCIAL CHARACTERISTICS"]
[]
[null,"Disabilities By Age"]
[null,null,"Universe: Civilian Non-institutionalized Population"]
[]
[]
[]
[]
[]
[]
[]
[]
[]
[]
[]
[]
[]
[]
[]
[]
[]
[]
[]
[null,null,null,"Under 5",null,"5 to 17 years",null,"18 to 34 years",null,"35 to 64 years",null,"65 to 74 years",null,"75 years and older"]
[null,null,null,"Estimate","Margin of Error","Estimate","Margin of Error","Estimate","Margin of Error","Estimate","Margin of Error","Estimate","Margin of Error","Estimate","Margin of Error"]
[null,"Total ",null,{"$f":"CntyDataLinkPrior5YearEstimates!D112","v":298},{"$f":"CntyDataLinkPrior5YearEstimates!E112","v":111.89280584559492},{"$f":"CntyDataLinkPrior5YearEstimates!J112","v":538},{"$f":"CntyDataLinkPrior5YearEstimates!K112","v":119.75391434103521},{"$f":"CntyDataLinkPrior5YearEstimates!P112","v":856},{"$f":"CntyDataLinkPrior5YearEstimates!Q112","v":121.69634341261039},{"$f":"CntyDataLinkPrior5YearEstimates!V112","v":2019},{"$f":"CntyDataLinkPrior5YearEstimates!W112","v":169.70562748477141},{"$f":"CntyDataLinkPrior5YearEstimates!AB112","v":315},{"$f":"CntyDataLinkPrior5YearEstimates!AC112","v":86.284413424441851},{"$f":"CntyDataLinkPrior5YearEstimates!AH112","v":257},{"$f":"CntyDataLinkPrior5YearEstimates!AI112","v":84.504437753291981}]
[]
[null,"With a disability:",null,{"$f":"CntyDataLinkPrior5YearEstimates!F112","v":0},{"$f":"CntyDataLinkPrior5YearEstimates!G112","v":15.556349186104045},{"$f":"CntyDataLinkPrior5YearEstimates!L112","v":126},{"$f":"CntyDataLinkPrior5YearEstimates!M112","v":89.442719099991592},{"$f":"CntyDataLinkPrior5YearEstimates!R112","v":64},{"$f":"CntyDataLinkPrior5YearEstimates!S112","v":38.013155617496423},{"$f":"CntyDataLinkPrior5YearEstimates!X112","v":396},{"$f":"CntyDataLinkPrior5YearEstimates!Y112","v":124.01612798341996},{"$f":"CntyDataLinkPrior5YearEstimates!AD112","v":121},{"$f":"CntyDataLinkPrior5YearEstimates!AE112","v":69.462219947249025},{"$f":"CntyDataLinkPrior5YearEstimates!AJ112","v":162},{"$f":"CntyDataLinkPrior5YearEstimates!AK112","v":66.603303221386852}]
[]
[null,"With one disability:",null,{"$f":"CntyDataLinkPrior5YearEstimates!CX112","v":0},{"$f":"CntyDataLinkPrior5YearEstimates!CY112","v":15},{"$f":"CntyDataLinkPrior5YearEstimates!DB112","v":56},{"$f":"CntyDataLinkPrior5YearEstimates!DC112","v":46},{"$f":"CntyDataLinkPrior5YearEstimates!DF112","v":88},{"$f":"CntyDataLinkPrior5YearEstimates!DG112","v":53},{"$f":"CntyDataLinkPrior5YearEstimates!DJ112","v":0},{"$f":"CntyDataLinkPrior5YearEstimates!DK112","v":0},{"$f":"CntyDataLinkPrior5YearEstimates!DN112","v":0},{"$f":"CntyDataLinkPrior5YearEstimates!DO112","v":0},{"$f":"CntyDataLinkPrior5YearEstimates!DR112","v":0},{"$f":"CntyDataLinkPrior5YearEstimates!DS112","v":0}]
[]
[null,"Type of disability"]
[null,null,"Hearing disability",{"$f":"CntyDataLinkPrior5YearEstimates!AN112","v":0},{"$f":"CntyDataLinkPrior5YearEstimates!AO112","v":15.556349186104045},{"$f":"CntyDataLinkPrior5YearEstimates!AP112","v":25},{"$f":"CntyDataLinkPrior5YearEstimates!AQ112","v":38.600518131237564},{"$f":"CntyDataLinkPrior5YearEstimates!AR112","v":0},{"$f":"CntyDataLinkPrior5YearEstimates!AS112","v":15.556349186104045},{"$f":"CntyDataLinkPrior5YearEstimates!AT112","v":134},{"$f":"CntyDataLinkPrior5YearEstimates!AU112","v":72.006944109578768},{"$f":"CntyDataLinkPrior5YearEstimates!AV112","v":27},{"$f":"CntyDataLinkPrior5YearEstimates!AW112","v":22.360679774997898},{"$f":"CntyDataLinkPrior5YearEstimates!AX112","v":58},{"$f":"CntyDataLinkPrior5YearEstimates!AY112","v":42.5205832509386}]
[null,null,"Visual disability",{"$f":"CntyDataLinkPrior5YearEstimates!AZ112","v":0},{"$f":"CntyDataLinkPrior5YearEstimates!BA112","v":15.556349186104045},{"$f":"CntyDataLinkPrior5YearEstimates!BB112","v":26},{"$f":"CntyDataLinkPrior5YearEstimates!BC112","v":42.449970553582247},{"$f":"CntyDataLinkPrior5YearEstimates!BD112","v":0},{"$f":"CntyDataLinkPrior5YearEstimates!BE112","v":15.556349186104045},{"$f":"CntyDataLinkPrior5YearEstimates!BF112","v":113},{"$f":"CntyDataLinkPrior5YearEstimates!BG112","v":89.067390216621931},{"$f":"CntyDataLinkPrior5YearEstimates!BH112","v":10},{"$f":"CntyDataLinkPrior5YearEstimates!BI112","v":19.416487838947599},{"$f":"CntyDataLinkPrior5YearEstimates!BJ112","v":64},{"$f":"CntyDataLinkPrior5YearEstimates!BK112","v":53.075418038862395}]
[null,null,"Cognitive disability","NA","NA",{"$f":"CntyDataLinkPrior5YearEstimates!BL112","v":97},{"$f":"CntyDataLinkPrior5YearEstimates!BM112","v":81.394102980498531},{"$f":"CntyDataLinkPrior5YearEstimates!BN112","v":33},{"$f":"CntyDataLinkPrior5YearEstimates!BO112","v":29.732137494637012},{"$f":"CntyDataLinkPrior5YearEstimates!BP112","v":174},{"$f":"CntyDataLinkPrior5YearEstimates!BQ112","v":96.519428096109237},{"$f":"CntyDataLinkPrior5YearEstimates!BR112","v":27},{"$f":"CntyDataLinkPrior5YearEstimates!BS112","v":45.354161881794269},{"$f":"CntyDataLinkPrior5YearEstimates!BT112","v":46},{"$f":"CntyDataLinkPrior5YearEstimates!BU112","v":39.357337308308857}]
[null,null,"Ambulatory disability","NA","NA",{"$f":"CntyDataLinkPrior5YearEstimates!BV112","v":34},{"$f":"CntyDataLinkPrior5YearEstimates!BW112","v":43.416586692184822},{"$f":"CntyDataLinkPrior5YearEstimates!BX112","v":13},{"$f":"CntyDataLinkPrior5YearEstimates!BY112","v":16.492422502470642},{"$f":"CntyDataLinkPrior5YearEstimates!BZ112","v":187},{"$f":"CntyDataLinkPrior5YearEstimates!CA112","v":74.625732827222535},{"$f":"CntyDataLinkPrior5YearEstimates!CB112","v":57},{"$f":"CntyDataLinkPrior5YearEstimates!CC112","v":41.182520563948003},{"$f":"CntyDataLinkPrior5YearEstimates!CD112","v":122},{"$f":"CntyDataLinkPrior5YearEstimates!CE112","v":51.61395160225576}]
[null,null,"Self-care disability","NA","NA",{"$f":"CntyDataLinkPrior5YearEstimates!CF112","v":26},{"$f":"CntyDataLinkPrior5YearEstimates!CG112","v":42.449970553582247},{"$f":"CntyDataLinkPrior5YearEstimates!CH112","v":0},{"$f":"CntyDataLinkPrior5YearEstimates!CI112","v":15.556349186104045},{"$f":"CntyDataLinkPrior5YearEstimates!CJ112","v":29},{"$f":"CntyDataLinkPrior5YearEstimates!CK112","v":40.521599178709621},{"$f":"CntyDataLinkPrior5YearEstimates!CL112","v":19},{"$f":"CntyDataLinkPrior5YearEstimates!CM112","v":19.849433241279208},{"$f":"CntyDataLinkPrior5YearEstimates!CN112","v":35},{"$f":"CntyDataLinkPrior5YearEstimates!CO112","v":32.557641192199412}]
[null,null,"Independent living disability","NA","NA","NA","NA",{"$f":"CntyDataLinkPrior5YearEstimates!CP112","v":51},{"$f":"CntyDataLinkPrior5YearEstimates!CQ112","v":34},{"$f":"CntyDataLinkPrior5YearEstimates!CR112","v":161},{"$f":"CntyDataLinkPrior5YearEstimates!CS112","v":100},{"$f":"CntyDataLinkPrior5YearEstimates!CT112","v":40},{"$f":"CntyDataLinkPrior5YearEstimates!CU112","v":29.732137494637012},{"$f":"CntyDataLinkPrior5YearEstimates!CV112","v":76},{"$f":"CntyDataLinkPrior5YearEstimates!CW112","v":47.423622805517503}]
[]
[null,"With two or more types of disability:",null,{"$f":"CntyDataLinkPrior5YearEstimates!CZ112","v":11},{"$f":"CntyDataLinkPrior5YearEstimates!DA112","v":18},{"$f":"CntyDataLinkPrior5YearEstimates!DD112","v":89},{"$f":"CntyDataLinkPrior5YearEstimates!DE112","v":65},{"$f":"CntyDataLinkPrior5YearEstimates!DH112","v":77},{"$f":"CntyDataLinkPrior5YearEstimates!DI112","v":56},{"$f":"CntyDataLinkPrior5YearEstimates!DL112","v":0},{"$f":"CntyDataLinkPrior5YearEstimates!DM112","v":0},{"$f":"CntyDataLinkPrior5YearEstimates!DP112","v":0},{"$f":"CntyDataLinkPrior5YearEstimates!DQ112","v":0},{"$f":"CntyDataLinkPrior5YearEstimates!DT112","v":0},{"$f":"CntyDataLinkPrior5YearEstimates!DU112","v":0}]
[]
[null,"No disability",null,{"$f":"CntyDataLinkPrior5YearEstimates!H112","v":298},{"$f":"CntyDataLinkPrior5YearEstimates!I112","v":111.89280584559492},{"$f":"CntyDataLinkPrior5YearEstimates!N112","v":412},{"$f":"CntyDataLinkPrior5YearEstimates!O112","v":99.488692824863264},{"$f":"CntyDataLinkPrior5YearEstimates!T112","v":792},{"$f":"CntyDataLinkPrior5YearEstimates!U112","v":123.10970717209915},{"$f":"CntyDataLinkPrior5YearEstimates!Z112","v":1623},{"$f":"CntyDataLinkPrior5YearEstimates!AA112","v":172.07265907168403},{"$f":"CntyDataLinkPrior5YearEstimates!AF112","v":194},{"$f":"CntyDataLinkPrior5YearEstimates!AG112","v":57.688820407423826},{"$f":"CntyDataLinkPrior5YearEstimates!AL112","v":95},{"$f":"CntyDataLinkPrior5YearEstimates!AM112","v":57.008771254956898}]
[null,"Source: 2010-2014 American Community Survey Tables B18101;  B18102; B18103; B18104; B18105; B18106;  and B18107"]
[null,"NA indicates that the American Community Survey does not calculate the number for that disability."]
[null,"Percent of Population with Disabilities"]
[]
[null,null,null,"Under 5",null,"5 to 17 years",null,"18 to 34 years",null,"35 to 64 years",null,"65 to 74 years",null,"75 years and older"]
[]
[null,"With one disability:",null,{"$f":"D33/D$31","v":0},null,{"$f":"F33/F$31","v":0.2342007434944238},null,{"$f":"H33/H$31","v":7.476635514018691E-2},null,{"$f":"J33/J$31","v":0.19613670133729569},null,{"$f":"L33/L$31","v":0.38412698412698415},null,{"$f":"N33/N$31","v":0.63035019455252916}]
[]
[null,"Type of disability"]
[null,null,"Hearing disability",{"$f":"D38/D$31","v":0},null,{"$f":"F38/F$31","v":4.6468401486988845E-2},null,{"$f":"H38/H$31","v":0},null,{"$f":"J38/J$31","v":6.6369489846458643E-2},null,{"$f":"L38/L$31","v":8.5714285714285715E-2},null,{"$f":"N38/N$31","v":0.22568093385214008}]
[null,null,"Visual disability",{"$f":"D39/D$31","v":0},null,{"$f":"F39/F$31","v":4.8327137546468404E-2},null,0,null,5.5968301139177813E-2,null,3.1746031746031744E-2,null,0.24902723735408561]
[null,null,"Cognitive disability","NA",null,{"$f":"F40/F$31","v":0.18029739776951673},null,3.8551401869158876E-2,null,8.6181277860326894E-2,null,8.5714285714285715E-2,null,0.17898832684824903]
[null,null,"Ambulatory disability","NA",null,{"$f":"F41/F$31","v":6.3197026022304828E-2},null,1.5186915887850467E-2,null,9.262010896483408E-2,null,0.18095238095238095,null,0.47470817120622566]
[null,null,"Self-care disability","NA",null,{"$f":"F42/F$31","v":4.8327137546468404E-2},null,0,null,1.4363546310054482E-2,null,6.0317460317460318E-2,null,0.13618677042801555]
[null,null,"Independent living disability","NA",null,"NA",null,5.9579439252336448E-2,null,7.9742446755819707E-2,null,0.12698412698412698,null,0.29571984435797666]
[]
[]
[]
[null,"No disability",null,{"$f":"D47/D$31","v":1},null,{"$f":"F47/F$31","v":0.76579925650557623},null,{"$f":"H47/H$31","v":0.92523364485981308},null,{"$f":"J47/J$31","v":0.80386329866270434},null,{"$f":"L47/L$31","v":0.61587301587301591},null,{"$f":"N47/N$31","v":0.36964980544747084}]
[]
[]
[null,"Source: 2010-2014 American Community Survey Tables B18101;  B18102; B18103; B18104; B18105; B18106;  and B18107"]
[null,"NA indicates that the American Community Survey does not calculate the number for that disability."]
[]
[null,"Data from the American Community Survey are estimates."]

{"sheet":"ACS_Table_B18101","index":26,"n_rows":125,"n_cols":56,"rows_kept":125,"cut":false,"hidden":true,"merged":[]}
["B18101. SEX BY AGE BY DISABILITY STATUS\n"]
["Universe:  Civilian non-institutionalized population"]
["Data Set: 2015-2019 American Community Survey 5-Year Estimates"]
[]
[null,null,"Allenstown",null,"Andover",null,"Boscawen",null,"Bow",null,"Bradford",null,"Canterbury",null,"Chichester",null,"Concord",null,"Danbury",null,"Dunbarton",null,"Epsom",null,"Franklin",null,"Henniker",null,"Hill",null,"Hooksett",null,"Hopkinton",null,"Loudon",null,"Newbury",null,"New London",null,"Northfield",null,"Pembroke",null,"Pittsfield",null,"Salisbury",null,"Sutton",null,"Warner",null,"Webster",null,"Wilmot"]
[null,null,"Estimate","Margin Of Error","Estimate","Margin Of Error","Estimate","Margin Of Error","Estimate","Margin Of Error","Estimate","Margin Of Error","Estimate","Margin Of Error","Estimate","Margin Of Error","Estimate","Margin Of Error","Estimate","Margin Of Error","Estimate","Margin Of Error","Estimate","Margin Of Error","Estimate","Margin Of Error","Estimate","Margin Of Error","Estimate","Margin Of Error","Estimate","Margin Of Error","Estimate","Margin Of Error","Estimate","Margin Of Error","Estimate","Margin Of Error","Estimate","Margin Of Error","Estimate","Margin Of Error","Estimate","Margin Of Error","Estimate","Margin Of Error","Estimate","Margin Of Error","Estimate","Margin Of Error","Estimate","Margin Of Error","Estimate","Margin Of Error","Estimate","Margin Of Error"]
[null,"Total",4360,35,2782,321,3472,160,7862,25,1582,212,2357,148,2656,29,40939,267,1129,165,2819,24,4612,122,8461,50,4962,17,920,148,14197,139,5691,29,5534,19,2096,214,4296,79,4834,79,7165,50,4117,16,1418,183,1905,279,2834,117,1759,180,1643,215]
[null,"Male:",2219,138,1493,284,1593,149,4040,168,797,129,1157,102,1329,84,19808,424,554,89,1420,74,2325,156,3990,213,2590,175,473,84,6801,256,2793,159,2394,351,1056,123,1915,159,2335,143,3445,215,2133,164,727,100,942,158,1313,96,900,106,779,125]
[null,"Under 5 years:",125,82,20,17,93,71,244,78,16,12,56,27,101,48,1140,193,43,24,62,43,172,92,168,85,172,67,31,19,222,90,158,88,77,75,29,16,104,71,187,97,159,87,68,77,17,14,36,26,66,38,29,15,19,23]
[null,"With a disability",0,11,0,11,0,11,0,16,0,11,0,11,0,11,43,57,0,11,0,11,56,65,0,16,0,11,0,11,0,18,0,16,0,16,0,11,0,11,0,11,0,16,0,11,0,11,0,11,0,11,0,11,0,11]
[null,"No disability",125,82,20,17,93,71,244,78,16,12,56,27,101,48,1097,194,43,24,62,43,116,64,168,85,172,67,31,19,222,90,158,88,77,75,29,16,104,71,187,97,159,87,68,77,17,14,36,26,66,38,29,15,19,23]
[null,"5 to 17 years:",286,78,309,113,304,86,867,148,169,61,78,31,258,69,3143,291,49,23,282,52,346,106,671,148,406,146,65,33,995,220,417,145,249,123,105,43,188,84,273,88,386,116,482,140,89,37,231,87,194,62,129,43,92,60]
[null,"With a disability",63,49,16,23,30,35,42,38,0,11,0,11,8,12,85,48,12,14,7,11,23,27,136,98,7,10,0,11,96,59,28,34,0,16,0,11,7,12,62,54,53,50,56,55,0,11,6,9,26,19,11,9,22,34]
[null,"No disability",223,64,293,99,274,87,825,141,169,61,78,31,250,70,3058,295,37,16,275,52,323,106,535,143,399,146,65,33,899,217,389,130,249,123,105,43,181,82,211,76,333,116,426,156,89,37,225,86,168,58,118,40,70,44]
[null,"18 to 34 years:",529,113,339,125,188,88,677,145,147,65,225,53,220,48,5116,328,94,28,229,54,475,123,732,180,746,180,78,31,1791,260,355,99,299,164,201,73,565,124,540,140,825,221,320,121,168,50,134,46,304,76,148,50,147,46]
[null,"With a disability",56,51,8,11,0,11,0,16,12,12,27,13,35,24,592,154,0,11,27,20,21,34,45,45,53,43,8,7,82,53,0,16,0,16,18,15,25,31,105,115,115,100,68,56,25,17,18,17,50,41,37,32,23,16]
[null,"No disability",473,111,331,125,188,88,677,145,135,65,198,54,185,42,4524,370,94,28,202,52,454,128,687,176,693,167,70,30,1709,256,355,99,299,164,183,70,540,126,435,127,710,186,252,109,143,47,116,40,254,73,111,37,124,43]
[null,"35 to 64 years:",1007,112,625,201,744,119,1677,99,298,47,571,71,551,51,7646,355,277,54,666,60,930,114,1679,176,901,119,217,38,2812,191,1407,121,1241,199,451,68,493,79,1068,127,1553,195,941,152,300,49,353,70,509,62,469,60,342,59]
[null,"With a disability",197,84,131,175,160,81,61,46,30,19,109,55,34,30,1164,240,27,21,35,21,186,99,291,94,69,48,33,19,254,94,141,118,142,100,33,29,50,35,207,88,130,96,235,112,27,13,3,5,114,49,66,30,44,29]
[null,"No disability",810,129,494,97,584,107,1616,106,268,47,462,78,517,54,6482,337,250,52,631,61,744,130,1388,185,832,111,184,36,2558,199,1266,156,1099,198,418,69,443,83,861,129,1423,207,706,153,273,50,350,70,395,73,403,53,298,55]
[null,"65 to 74 years:",155,70,93,41,184,64,338,70,125,35,169,40,159,37,1636,164,54,30,141,30,293,88,485,119,257,84,50,24,666,125,294,83,398,152,188,48,235,73,216,71,372,99,207,84,117,34,96,37,181,44,106,26,103,33]
[null,"With a disability",59,37,28,28,52,34,77,38,31,20,52,27,39,29,437,119,13,10,15,10,50,35,122,52,46,39,12,10,158,57,56,44,130,94,17,26,6,9,79,35,88,59,56,64,25,16,17,19,64,31,23,12,14,12]
[null,"No disability",96,64,65,32,132,66,261,65,94,30,117,32,120,32,1199,146,41,29,126,31,243,89,363,113,211,83,38,22,508,116,238,88,268,127,171,46,229,72,137,69,284,84,151,64,92,30,79,32,117,40,83,24,89,32]
[null,"75 years and over:",117,46,107,48,80,50,237,64,42,20,58,31,40,19,1127,177,37,20,40,15,109,49,255,70,108,50,32,24,315,95,162,78,130,79,82,32,330,96,51,26,150,69,115,59,36,17,92,38,59,26,19,11,76,34]
[null,"With a disability",57,30,62,37,64,50,117,45,13,10,28,28,14,11,533,127,27,20,20,13,54,31,148,55,20,24,4,5,124,57,138,75,69,58,35,24,148,59,25,17,46,41,81,54,8,9,17,10,29,15,11,10,28,17]
[null,"No disability",60,34,45,31,16,17,120,48,29,18,30,18,26,15,594,142,10,8,20,11,55,42,107,48,88,43,28,24,191,73,24,29,61,59,47,22,182,70,26,21,104,57,34,22,28,15,75,37,30,22,8,7,48,29]
[null,"Female:",2141,147,1289,134,1879,142,3822,172,785,111,1200,95,1327,81,21131,401,575,96,1399,74,2287,145,4471,210,2372,172,447,73,7396,298,2898,158,3140,353,1040,122,2381,157,2499,150,3720,221,1984,165,691,100,963,148,1521,93,859,102,864,117]
[null,"Under 5 years:",111,77,60,40,88,57,237,113,28,16,68,36,100,44,949,187,49,24,61,31,47,39,54,39,116,71,21,16,343,145,160,82,159,89,26,18,123,60,161,70,184,96,111,119,22,21,58,32,92,51,34,20,58,31]
[null,"With a disability",0,11,0,11,0,11,0,16,0,11,0,11,0,11,0,24,0,11,0,11,0,11,0,16,0,11,0,11,0,18,0,16,0,16,0,11,0,11,0,11,0,16,0,11,0,11,0,11,0,11,0,11,0,11]
[null,"No disability",111,77,60,40,88,57,237,113,28,16,68,36,100,44,949,187,49,24,61,31,47,39,54,39,116,71,21,16,343,145,160,82,159,89,26,18,123,60,161,70,184,96,111,119,22,21,58,32,92,51,34,20,58,31]
[null,"5 to 17 years:",266,77,206,65,270,126,711,105,130,45,159,40,132,39,2702,286,106,39,328,62,397,109,536,134,227,95,44,27,1128,189,455,134,435,176,149,52,212,88,391,82,798,209,324,139,125,52,130,61,242,69,71,29,96,36]
[null,"With a disability",20,21,7,10,26,40,7,11,12,10,1,3,0,11,106,66,5,9,6,10,7,12,57,40,0,11,0,11,26,39,29,31,18,29,0,11,0,11,52,56,75,87,41,52,0,11,0,11,6,9,0,11,0,11]
[null,"No disability",246,74,199,64,244,121,704,106,118,43,158,40,132,39,2596,299,101,35,322,63,390,107,479,126,227,95,44,27,1102,186,426,125,417,174,149,52,212,88,339,84,723,182,283,132,125,52,130,61,236,70,71,29,96,36]
[null,"18 to 34 years:",459,148,201,78,349,101,399,104,105,52,231,58,275,63,5038,280,76,32,175,58,419,102,898,186,804,194,59,30,1894,260,375,141,521,182,121,45,787,158,694,118,577,154,269,91,74,29,107,36,353,84,155,52,151,53]
[null,"With a disability",91,57,30,37,37,44,22,25,3,4,0,11,16,16,609,182,4,6,30,29,0,11,27,31,43,44,2,4,142,82,27,41,0,16,0,11,45,35,81,68,58,46,42,42,4,7,0,11,31,42,0,11,1,4]
[null,"No disability",368,144,171,73,312,111,377,102,102,52,231,58,259,63,4429,295,72,31,145,51,419,102,871,187,761,191,57,29,1752,236,348,130,521,182,121,45,742,141,613,144,519,158,227,89,70,28,107,36,322,83,155,52,150,53]
[null,"35 to 64 years:",884,98,550,86,901,85,1719,102,330,56,544,61,614,60,8612,314,276,51,685,60,1016,132,2001,174,819,93,235,44,2811,171,1281,132,1396,143,456,67,594,87,994,109,1586,165,981,169,325,50,469,84,571,58,429,61,370,62]
[null,"With a disability",204,77,33,28,191,106,56,41,15,11,73,34,61,30,1283,262,54,30,37,26,83,52,415,148,87,57,44,25,357,130,108,73,115,68,44,26,27,24,170,76,127,94,367,136,25,16,19,24,49,23,55,23,22,16]
[null,"No disability",680,107,517,85,710,129,1663,106,315,54,471,62,553,63,7329,340,222,45,648,61,933,142,1586,183,732,120,191,40,2454,200,1173,141,1281,151,412,65,567,79,824,117,1459,152,614,153,300,52,450,81,522,57,374,55,348,65]
[null,"65 to 74 years:",172,62,139,50,143,49,408,75,123,30,102,35,127,28,1995,192,42,23,98,22,285,81,620,125,322,90,68,29,720,109,400,101,454,135,200,46,323,88,194,58,396,127,175,75,87,26,140,47,147,51,128,36,85,28]
[null,"With a disability",58,47,15,18,16,18,65,36,11,9,11,13,20,15,635,148,3,5,10,11,126,70,235,109,7,10,22,16,184,60,113,97,84,71,28,20,24,29,23,21,143,100,68,55,10,9,21,17,46,43,5,6,9,9]
[null,"No disability",114,57,124,50,127,48,343,78,112,29,91,33,107,25,1360,152,39,23,88,21,159,51,385,96,315,91,46,25,536,110,287,92,370,134,172,45,299,85,171,53,253,86,107,52,77,27,119,42,101,36,123,36,76,28]
[null,"75 years and over:",249,109,133,61,128,55,348,75,69,37,96,31,79,32,1835,196,26,15,52,20,123,60,362,119,84,49,20,20,500,130,227,92,175,97,88,36,342,88,65,34,179,82,124,79,58,29,59,33,116,45,42,18,104,42]
[null,"With a disability",141,87,61,36,72,44,150,55,16,20,24,18,26,20,872,169,6,7,30,17,59,39,170,98,12,20,16,19,292,99,82,60,116,79,44,24,121,56,31,27,69,54,49,36,37,24,0,11,47,38,22,13,35,27]
[null,"No disability",108,60,72,48,56,36,198,61,53,31,72,27,53,27,963,162,20,12,22,13,64,47,192,81,72,44,4,6,208,91,145,77,59,60,44,34,221,80,34,31,110,73,75,72,21,13,59,33,69,31,20,12,69,31]
[]
[]
[{"$f":"A1& \"-Calculated\"","v":"B18101. SEX BY AGE BY DISABILITY STATUS\n-Calculated"}]
[{"$f":"A2","v":"Universe:  Civilian non-institutionalized population"}]
[{"$f":"A3","v":"Data Set: 2015-2019 American Community Survey 5-Year Estimates"}]
[]
[]
[null,null,"Allenstown",null,"Andover",null,"Boscawen",null,"Bow",null,"Bradford",null,"Canterbury",null,"Chichester",null,"Concord",null,"Danbury",null,"Dunbarton",null,"Epsom",null,"Franklin",null,"Henniker",null,"Hill",null,"Hooksett",null,"Hopkinton",null,"Loudon",null,"Newbury",null,"New London",null,"Northfield",null,"Pembroke",null,"Pittsfield",null,"Salisbury",null,"Sutton",null,"Warner",null,"Webster",null,"Wilmot"]
[null,null,"Estimate","Margin Of Error","Estimate","Margin Of Error","Estimate","Margin Of Error","Estimate","Margin Of Error","Estimate","Margin Of Error","Estimate","Margin Of Error","Estimate","Margin Of Error","Estimate","Margin Of Error","Estimate","Margin Of Error","Estimate","Margin Of Error","Estimate","Margin Of Error","Estimate","Margin Of Error","Estimate","Margin Of Error","Estimate","Margin Of Error","Estimate","Margin Of Error","Estimate","Margin Of Error","Estimate","Margin Of Error","Estimate","Margin Of Error","Estimate","Margin Of Error","Estimate","Margin Of Error","Estimate","Margin Of Error","Estimate","Margin Of Error","Estimate","Margin Of Error","Estimate","Margin Of Error","Estimate","Margin Of Error","Estimate","Margin Of Error","Estimate","Margin Of Error"]
[null,"Total",{"$f":"C7","v":4360},35,2782,321,3472,160,7862,25,1582,212,2357,148,2656,29,40939,267,1129,165,2819,24,4612,122,{"$f":"Y7","v":8461},50,4962,17,920,148,14197,139,5691,29,5534,19,2096,214,4296,79,4834,79,7165,50,4117,16,1418,183,1905,279,2834,117,1759,180,1643,215]
[null,"Under 5 years:",{"$f":"C28+C9","v":236},{"$f":"SQRT((D28^2)+(D9^2))","v":112.48555462813881},{"$f":"E28+E9","v":80},{"$f":"SQRT((F28^2)+(F9^2))","v":43.46262762420146},{"$f":"G28+G9","v":181},{"$f":"SQRT((H28^2)+(H9^2))","v":91.049437120720299},{"$f":"I28+I9","v":481},{"$f":"SQRT((J28^2)+(J9^2))","v":137.30622709840949},{"$f":"K28+K9","v":44},{"$f":"SQRT((L28^2)+(L9^2))","v":20},{"$f":"M28+M9","v":124},{"$f":"SQRT((N28^2)+(N9^2))","v":45},{"$f":"O28+O9","v":201},{"$f":"SQRT((P28^2)+(P9^2))","v":65.115282384398824},{"$f":"Q28+Q9","v":2089},{"$f":"SQRT((R28^2)+(R9^2))","v":268.73406929527937},{"$f":"S28+S9","v":92},{"$f":"SQRT((T28^2)+(T9^2))","v":33.941125496954278},{"$f":"U28+U9","v":123},{"$f":"SQRT((V28^2)+(V9^2))","v":53.009433122794285},{"$f":"W28+W9","v":219},{"$f":"SQRT((X28^2)+(X9^2))","v":99.924971853886447},222,93.520051325905499,{"$f":"AA28+AA9","v":288},{"$f":"SQRT((AB28^2)+(AB9^2))","v":97.621718894926246},{"$f":"AC28+AC9","v":52},{"$f":"SQRT((AD28^2)+(AD9^2))","v":24.839484696748443},{"$f":"AE28+AE9","v":565},{"$f":"SQRT((AF28^2)+(AF9^2))","v":170.66048165876012},{"$f":"AG28+AG9","v":318},{"$f":"SQRT((AH28^2)+(AH9^2))","v":120.28299963003916},{"$f":"AI28+AI9","v":236},{"$f":"SQRT((AJ28^2)+(AJ9^2))","v":116.38728452885221},{"$f":"AK28+AK9","v":55},{"$f":"SQRT((AL28^2)+(AL9^2))","v":24.083189157584592},{"$f":"AM28+AM9","v":227},{"$f":"SQRT((AN28^2)+(AN9^2))","v":92.956979296876895},{"$f":"AO28+AO9","v":348},{"$f":"SQRT((AP28^2)+(AP9^2))","v":119.6202324023825},{"$f":"AQ28+AQ9","v":343},{"$f":"SQRT((AR28^2)+(AR9^2))","v":129.5569372901351},{"$f":"AS28+AS9","v":179},{"$f":"SQRT((AT28^2)+(AT9^2))","v":141.7391971192161},{"$f":"AU28+AU9","v":39},{"$f":"SQRT((AV28^2)+(AV9^2))","v":25.238858928247925},{"$f":"AW28+AW9","v":94},{"$f":"SQRT((AX28^2)+(AX9^2))","v":41.231056256176608},{"$f":"AY28+AY9","v":158},{"$f":"SQRT((AZ28^2)+(AZ9^2))","v":63.600314464631381},{"$f":"BA28+BA9","v":63},{"$f":"SQRT((BB28^2)+(BB9^2))","v":25},{"$f":"BC28+BC9","v":77},{"$f":"SQRT((BD28^2)+(BD9^2))","v":38.600518131237564}]
[null,"With a disability",{"$f":"C29+C10","v":0},{"$f":"SQRT((D29^2)+(D10^2))","v":15.556349186104045},{"$f":"E29+E10","v":0},{"$f":"SQRT((F29^2)+(F10^2))","v":15.556349186104045},{"$f":"G29+G10","v":0},{"$f":"SQRT((H29^2)+(H10^2))","v":15.556349186104045},{"$f":"I29+I10","v":0},{"$f":"SQRT((J29^2)+(J10^2))","v":22.627416997969522},{"$f":"K29+K10","v":0},{"$f":"SQRT((L29^2)+(L10^2))","v":15.556349186104045},{"$f":"M29+M10","v":0},{"$f":"SQRT((N29^2)+(N10^2))","v":15.556349186104045},{"$f":"O29+O10","v":0},{"$f":"SQRT((P29^2)+(P10^2))","v":15.556349186104045},{"$f":"Q29+Q10","v":43},{"$f":"SQRT((R29^2)+(R10^2))","v":61.846584384264908},{"$f":"S29+S10","v":0},{"$f":"SQRT((T29^2)+(T10^2))","v":15.556349186104045},{"$f":"U29+U10","v":0},{"$f":"SQRT((V29^2)+(V10^2))","v":15.556349186104045},56,65.924198895398035,0,22.627416997969522,0,15.556349186104045,0,15.556349186104045,0,25.45584412271571,0,22.627416997969522,0,22.627416997969522,0,15.556349186104045,0,15.556349186104045,0,15.556349186104045,0,22.627416997969522,0,15.556349186104045,0,15.556349186104045,0,15.556349186104045,0,15.556349186104045,0,15.556349186104045,0,15.556349186104045]
[null,"No disability",{"$f":"C30+C11","v":236},112.48555462813881,80,43.46262762420146,181,91.049437120720299,481,137.30622709840949,44,20,124,45,201,65.115282384398824,2046,269.45314991664134,92,33.941125496954278,123,53.009433122794285,163,74.94664769020693,222,93.520051325905499,288,97.621718894926246,52,24.839484696748443,565,170.66048165876012,318,120.28299963003916,236,116.38728452885221,55,24.083189157584592,227,92.956979296876895,348,119.6202324023825,343,129.5569372901351,179,141.7391971192161,39,25.238858928247925,94,41.231056256176608,158,63.600314464631381,63,25,77,38.600518131237564]
[null,"5 to 17 years:",552,109.60383204979651,515,130.36103712382777,574,152.55163060419906,1578,181.46349495146399,299,75.802374632988901,237,50.606323715519977,390,79.259068881737434,5845,408.0159310615212,155,45.276925690687087,610,80.919713296575637,743,152.04275714416653,1207,199.64969321288726,633,174.18668146560461,109,42.638011210655684,2123,290.0362046365936,872,197.43606560099397,684,214.72074888095935,254,67.475921631349351,400,121.6552506059644,664,120.28299963003916,1184,239.03347045968269,806,197.28405916343064,214,63.820059542435402,361,106.25441167311595,436,92.763139231054481,200,51.86520991955976,188,69.971422738143602]
[null,"With a disability",83,53.310411741047361,23,25.079872407968907,56,53.150729063673246,49,39.560080889704963,12,14.866068747318506,1,11.401754250991379,8,16.278820596099706,191,81.60882305241266,17,16.643316977093239,13,14.866068747318506,30,29.546573405388315,193,105.84894897919393,7,14.866068747318506,0,15.556349186104045,122,70.724818840347695,57,46.010868281309364,18,33.120990323358392,0,15.556349186104045,7,16.278820596099706,114,77.794601355106892,128,100.34440691936945,97,75.690157880665041,0,15.556349186104045,6,14.212670403551895,32,21.023796041628639,11,14.212670403551895,22,35.735136770411273]
[null,"No disability",469,97.836598469080073,492,117.88553770501282,518,149.03019828209315,1529,176.40011337864837,287,74.632432628181164,236,50.606323715519977,382,80.131142510262507,5654,420.03095124050083,138,38.483762809787713,597,81.688432473637292,713,150.61540425866141,1014,190.59118552545917,626,174.18668146560461,109,42.638011210655684,2001,285.80587817607949,815,180.34688796871433,666,213.08449028495716,254,67.475921631349351,393,120.28299963003916,550,113.27841806805037,1056,215.82400237230334,709,204.35263639111682,214,63.820059542435402,355,105.43718509140881,404,90.906545418908095,189,49.406477308142499,166,56.850681614207581]
[null,"18 to 34 years:",988,186.20687420178666,540,147.33974345029924,537,133.9589489358587,1076,178.44046626256053,252,83.240615086627031,456,78.568441501661468,495,79.202272694664515,10154,431.25862310219372,170,42.5205832509386,404,79.246451024635803,894,159.7904878270293,1630,258.83585532147589,1550,264.64315596667149,137,43.139309220245984,3685,367.69552621700473,730,172.28464818433474,820,244.98979570586201,322,85.755466298073387,1352,200.84820138602188,1234,183.09560344257315,1402,269.36406590337918,589,151.40013210033868,242,57.801384066473702,241,58.412327466040935,657,113.27841806805037,303,72.138755187485728,298,70.178344238091]
[null,"With a disability",147,76.485292703891773,38,38.600518131237564,37,45.354161881794269,22,29.681644159311659,15,12.649110640673518,27,17.029386365926403,51,28.844410203711913,1201,238.41140912296962,4,12.529964086141668,57,35.227829907617071,21,35.735136770411273,72,54.644304369257,96,61.522353661088097,10,8.0622577482985491,224,97.637083119069061,27,44.011362169330773,0,22.627416997969522,18,18.601075237738275,70,46.75467891024384,186,133.60014970051492,173,110.07270324653611,110,70,29,18.384776310850235,18,20.248456731316587,81,58.694122363316758,37,33.837848631377263,24,16.492422502470642]
[null,"No disability",841,181.81584089402111,502,144.75496537252184,500,141.65097952361643,1054,177.28226081590904,237,83.240615086627031,429,79.246451024635803,444,75.716576784743779,8953,473.20714280323369,166,41.773197148410844,347,72.835430938520574,873,163.67040050051813,1558,256.79758565843252,1454,253.71243564319033,127,41.725292090050132,3461,348.18385947657021,703,163.40440630533806,820,244.98979570586201,304,83.21658488546619,1282,189.09521411183309,1048,192.00260414900626,1229,244.0491753725056,479,140.71957930579526,213,54.708317466359723,223,53.814496188294839,576,110.53506231056279,266,63.820059542435402,274,68.249542123006222]
[null,"35 to 64 years:",1891,148.82204137828509,1175,218.62525014279572,1645,146.23952953972466,3396,142.1442928857856,628,73.109506905736964,1115,93.605555390692487,1165,78.746428490440124,16258,473.94197957133952,553,74.276510418839678,1351,84.852813742385706,1946,174.41330224498358,3680,247.4914139924858,1720,151.02979838429235,452,58.137767414994535,5623,256.36302385484532,2688,179.06702655709677,2637,245.05101509685693,907,95.462034338264544,1087,117.51595636338071,2062,167.36188335460378,3139,255.44079548889601,1922,227.29936207565564,625,70.007142492748557,822,109.34349546269316,1080,84.899941107164494,898,85.562842402528915,712,85.586213843118443]
[null,"With a disability",401,113.95174417269794,164,177.22584461641028,351,133.40539719216761,117,61.619802012015583,45,21.95449840010015,182,64.660652641308843,95,42.426406871192853,2447,355.30831681794336,81,36.61966684720111,72,33.421549934136806,269,111.82575731914361,706,175.32826355154492,156,74.518454090245328,77,31.400636936215164,611,160.42443704124381,249,138.75518008348374,257,120.9297316626478,77,38.948684188300895,77,42.43819034784589,377,116.27553482998907,257,134.35773144854747,602,176.18172436436191,52,20.615528128088304,22,24.515301344262525,163,54.12947441089743,121,37.802116342871599,66,33.120990323358392]
[null,"No disability",1490,167.60071598892409,1011,128.97286536322281,1294,167.60071598892409,3279,149.90663761154806,583,71.589105316381762,933,99.639349656649202,1070,82.97590011563598,13811,478.715990959149,472,68.767724987816777,1279,86.267027304758798,1677,192.52012881774206,2974,260.21913841990948,1564,163.46559270990332,375,53.814496188294839,5012,282.1364917907643,2439,210.27838690650069,2380,249.00803199896987,830,94.794514609232536,1010,114.58621208504974,1685,174.1551032843999,2882,256.81316165648519,1320,216.37467504308356,573,72.138755187485728,800,107.05606008068857,917,92.617492948146676,777,76.380625815713245,646,85.14693182963201]
[null,"65 to 74 years:",327,93.509357820487679,232,64.660652641308843,327,80.603970125546539,746,102.59142264341595,248,46.097722286464439,271,53.150729063673246,286,46.400431032480725,3631,252.50742563338608,96,37.802116342871599,239,37.20215047547655,578,119.60351165413162,1105,172.58621034138272,579,123.10970717209915,118,37.643060449437421,1386,165.8493292117879,694,130.728726758888,852,203.29535164385831,388,66.483080554378645,558,114.33722053644648,410,91.678787077491378,768,161.02794788483146,382,112.60994627474076,204,42.80186911806539,236,59.816385714952723,328,67.357256476195644,234,44.407206622349037,188,43.278170016764804]
[null,"With a disability",117,59.816385714952723,43,33.286633954186478,68,38.470768123342687,142,52.345009313209601,42,21.931712199461309,63,29.966648127543394,59,32.649655434629018,1072,189.90787240133042,16,11.180339887498949,25,14.866068747318506,176,78.262379212492633,357,120.76837334335509,53,40.26164427839479,34,18.867962264113206,342,82.758685344802331,169,106.51291001564083,214,117.80067911519016,45,32.802438933713454,30,30.364452901377952,102,40.8166632639171,231,116.1077086157504,124,84.38601779915912,35,18.357559750685819,38,25.495097567963924,110,53.009433122794285,28,13.416407864998739,23,15]
[null,"No disability",210,85.702975444263316,189,59.363288318623319,259,81.60882305241266,604,101.53324578678651,206,41.725292090050132,208,45.967379738244816,227,40.607881008493905,2559,210.76052761368766,80,37.013511046643494,214,37.443290453698111,402,102.57680049601859,748,148.27339613025663,526,123.16655390161731,84,33.301651610693426,1044,159.86244086714052,525,127.31064370271639,638,184.6212338816963,343,64.350602172784676,528,111.39569111954016,308,87.005746936624831,537,120.21647141718975,258,82.462112512353215,169,40.36087214122113,198,52.801515129776341,218,53.814496188294839,206,43.266615305567875,165,42.5205832509386]
[null,"75 years and over:",366,118.30891766895681,240,77.620873481300123,208,74.330343736592525,585,98.595131725658746,111,42.059481689626182,154,43.840620433565945,119,37.215588131856791,2962,264.09278672466615,63,25,92,25,232,77.466121627457255,617,138.06158046321215,192,70.007142492748557,52,31.240998703626616,815,161.01242188104618,389,120.61509026651682,305,125.09996003196804,170,48.166378315169183,672,130.23056476879765,116,42.80186911806539,329,107.16809226630845,239,98.600202839547947,94,33.61547262794322,151,50.328918128646478,175,51.97114584074513,61,21.095023109728988,180,54.037024344425184]
[null,"With a disability",198,92.027169901067808,123,51.623637996561229,136,66.603303221386852,267,71.06335201775947,29,22.360679774997898,52,33.286633954186478,40,22.825424421026653,1405,211.4000946073582,33,21.189620100417091,50,21.400934559032695,113,49.819674828324601,318,112.37882362794157,32,31.240998703626616,20,19.646882704388499,416,114.23659658795863,220,96.046863561492728,185,98.005101908012932,79,33.941125496954278,269,81.344944526380985,56,31.906112267087632,115,67.801179930735714,130,64.899922958351809,45,25.632011235952593,17,14.866068747318506,76,40.853396431630991,33,16.401219466856727,63,31.906112267087632]
[null,"No disability",168,68.963758598266665,117,57.140178508646613,72,39.812058474788763,318,77.620873481300123,82,35.846896657869841,102,32.449961479175904,79,30.886890422961002,1557,215.42516101885593,30,14.422205101855956,42,17.029386365926403,119,63.031738037277698,299,94.154128958851288,160,61.522353661088097,32,24.738633753705962,399,116.66190466471906,169,82.28000972289685,120,84.148677945645701,91,40.496913462633174,403,106.30145812734649,60,37.443290453698111,214,92.617492948146676,109,75.286120898874842,49,19.849433241279208,134,49.578221024962161,99,38.013155617496423,28,13.892443989449804,117,42.449970553582247]
[]
[]
[]
[]
[]
[]
[]
[]
[]
[]
[]
[]
[]
[]
[]
[]
[]
[]
[]
[]
[]
[]
[]
[]
[]
[]
["B18101. SEX BY AGE BY DISABILITY STATUS\n-Calculated"]
["Universe:  Civilian non-institutionalized population"]
["Data Set: 2010-2014 American Community Survey 5-Year Estimates"]
[]
[]
[null,null,"Allenstown",null,"Andover",null,"Boscawen",null,"Bow",null,"Bradford",null,"Canterbury",null,"Chichester",null,"Concord",null,"Danbury",null,"Dunbarton",null,"Epsom",null,"Franklin",null,"Henniker",null,"Hill",null,"Hooksett",null,"Hopkinton",null,"Loudon",null,"Newbury",null,"New London",null,"Northfield",null,"Pembroke",null,"Pittsfield",null,"Salisbury",null,"Sutton",null,"Warner",null,"Webster",null,"Wilmot"]
[null,null,"Estimate","Margin Of Error","Estimate","Margin Of Error","Estimate","Margin Of Error","Estimate","Margin Of Error","Estimate","Margin Of Error","Estimate","Margin Of Error","Estimate","Margin Of Error","Estimate","Margin Of Error","Estimate","Margin Of Error","Estimate","Margin Of Error","Estimate","Margin Of Error","Estimate","Margin Of Error","Estimate","Margin Of Error","Estimate","Margin Of Error","Estimate","Margin Of Error","Estimate","Margin Of Error","Estimate","Margin Of Error","Estimate","Margin Of Error","Estimate","Margin Of Error","Estimate","Margin Of Error","Estimate","Margin Of Error","Estimate","Margin Of Error","Estimate","Margin Of Error","Estimate","Margin Of Error","Estimate","Margin Of Error","Estimate","Margin Of Error","Estimate"]
[null,"Total",4283,41,2421,253,3446,335,7611,29,1706,205,2291,204,2551,18,40333,422,1243,186,2779,17,4490,91,8322,73,4822,22,1164,184,13669,50,5591,23,5332,24,1749,234,4465,78,4772,59,7121,29,4078,30,1402,161,2014,287,2846,21,1891,199,1367,181]
[null,"Under 5 years:",298,111.89280584559492,59,33.286633954186478,276,112.36102527122117,163,75.166481891864535,52,19.209372712298546,124,44.687805943008662,78,42.01190307520001,2294,306.2058131388103,67,44.204072210600685,144,48.60041152089147,177,83.240615086627031,594,166.17159805454119,358,127.31457104353767,44,21.213203435596427,685,193.04144632694815,180,101.25709851659784,207,97.04638066409278,55,35.440090293338699,28,33.837848631377263,379,144.31216164966833,228,114.40279716860073,327,106.66770832824712,65,37.215588131856791,117,69.835521047673154,101,53.254107822777392,70,31.76476034853718,44,23.323807579381203]
[null,"With a disability",0,15.556349186104045,0,15.556349186104045,0,15.556349186104045,0,21.213203435596427,0,15.556349186104045,16,27.313000567495326,0,15.556349186104045,27,30.413812651491099,0,15.556349186104045,0,15.556349186104045,0,15.556349186104045,10,22.671568097509269,0,15.556349186104045,0,15.556349186104045,14,29.410882339705484,0,21.213203435596427,0,21.213203435596427,0,15.556349186104045,0,15.556349186104045,0,15.556349186104045,0,21.213203435596427,0,15.556349186104045,4,12.083045973594572,0,15.556349186104045,0,15.556349186104045,2,12.083045973594572,0,15.556349186104045]
[null,"No disability",298,111.89280584559492,59,33.286633954186478,276,112.36102527122117,163,75.166481891864535,52,19.209372712298546,108,42.201895692018383,78,42.01190307520001,2267,304.61122763286318,67,44.204072210600685,144,48.60041152089147,177,83.240615086627031,584,167.58579892103029,358,127.31457104353767,44,21.213203435596427,671,193.82982226685345,180,101.25709851659784,207,97.04638066409278,55,35.440090293338699,28,33.837848631377263,379,144.31216164966833,228,114.40279716860073,327,106.66770832824712,61,36.235341863986875,117,69.835521047673154,101,53.254107822777392,68,31.76476034853718,44,23.323807579381203]
[null,"5 to 17 years:",538,119.75391434103521,363,91.285267157411553,564,184.80530295421721,1742,177.34147850968199,265,70.604532432415411,339,87.664131775772461,396,74.518454090245328,6346,403.86260039770951,195,62.289646009589745,452,67.178865724273734,722,162.43152403397562,1378,254.84897488512681,810,185.39687160251654,207,63.702433234531945,1919,267.30132809247317,1077,221.32555207205516,970,172.03778654702577,260,61.032778078668514,383,107.61505470890214,757,159.84054554461454,1364,207.45360927204905,609,117.38824472663352,223,59.548299723837623,351,93.861600242058515,431,105.20931517693668,362,78.746428490440124,209,59.405386961116584]
[null,"With a disability",126,89.442719099991592,0,15.556349186104045,6,15.556349186104045,61,51.884487084291386,5,12.529964086141668,11,11.401754250991379,44,45.354161881794269,498,128.80993750483694,10,12.649110640673518,29,27.313000567495326,29,35.735136770411273,116,85.164546614186818,74,62.968245965724662,15,15.264337522473747,126,86.58521813797087,69,49.203658400570177,66,54.708317466359723,6,14.212670403551895,30,32.893768406797051,37,29.832867780352597,114,85.088189544730596,55,39.357337308308857,11,14.212670403551895,4,12.083045973594572,14,15.264337522473747,15,17.029386365926403,0,15.556349186104045]
[null,"No disability",412,99.488692824863264,363,91.285267157411553,558,184.80530295421721,1681,192.42660938653989,260,69.404610797842537,328,84.380092438915952,352,80.802227692063042,5848,396.9647339500072,185,59.548299723837623,423,64.443773942872099,693,161.20794025109308,1262,247.12952069714376,736,181.37254478007415,192,59.396969619669989,1793,255.87692353942353,1008,217.09214633422371,904,178.1937148162078,254,59.405386961116584,353,107.61505470890214,720,156.47363995254921,1250,229.38177782901587,554,117.5925167687128,212,58.051701094799967,347,94.641428560646744,417,105.60303025955268,347,78.746428490440124,209,59.405386961116584]
[null,"18 to 34 years:",856,121.69634341261039,334,106.94391053257777,777,163.3431969810803,880,159.96249560443849,268,49.819674828324601,296,63.7808748764079,401,86.683331731077345,9635,474.69147875225229,257,64.381674411279491,452,108.97706180660222,588,142.30249470757707,1549,211.92923347193044,1432,224.16288720481811,173,43.863424398922618,3252,363.68805314444961,963,193.04144632694815,823,158.54967675779096,188,66.068146636635717,1481,221.14474897677312,832,140.12137595670404,1409,263.3040068058213,897,181.46625030566977,255,58.796258384356399,293,81.320354155647891,472,101.9803902718557,303,70.936591403872796,228,78.10249675906654]
[null,"With a disability",64,38.013155617496423,25,25.96150997149434,30,29.529646120466801,40,33.286633954186478,14,9.8994949366116654,8,17.029386365926403,31,32.893768406797051,791,195.88006534611938,0,15.556349186104045,29,24.596747752497688,16,22.825424421026653,240,116.18089343777659,11,18.601075237738275,33,25.632011235952593,110,78.492037812761623,13,27.459060435491963,60,62.769419305900861,5,13.038404810405298,45,31.384709652950431,67,33.61547262794322,58,60.406953242155822,59,54.708317466359723,9,15.556349186104045,14,16.492422502470642,51,30.413812651491099,18,21.95449840010015,20,18.439088914585774]
[null,"No disability",792,123.10970717209915,309,105.19030373565806,747,163.3431969810803,840,163.3431969810803,254,49.819674828324601,288,63.031738037277698,370,83.240615086627031,8844,474.11812874008518,257,64.381674411279491,423,106.7941945987702,572,141.4814475470194,1309,216.0208323287363,1421,223.45021816950637,140,38.288379438153292,3142,365.32998781923175,950,197.31446981911895,763,157.72444325468391,183,65.436992595931542,1436,221.50395030337495,765,138.65785228395831,1351,260.51679408437377,838,173.87639287723908,246,57.489129407219238,279,77.233412458598508,421,101.31633629380802,285,66.483080554378645,208,75.927597090912869]
[null,"35 to 64 years:",2019,169.70562748477141,1150,144.61673485458036,1351,143.68368035375485,3751,150.80119362922829,856,94.921019800674287,1171,90.553851381374173,1330,80.156097709406993,16834,457.20017497809425,550,79.208585393251411,1441,75.166481891864535,2336,152.76125163142649,3653,233.30880823492285,1923,221.14474897677312,581,60.307545133258408,6034,306.77679182102418,2404,147.92227688891217,2615,162.00308639035245,835,95.587656106842587,1088,120.21647141718975,2250,154.98709623707387,3308,251.46172671005024,1759,146.98639392814562,696,79.906195003891909,827,98.412397592986224,1368,98.081598681913832,921,87.692645073575008,580,72.835430938520574]
[null,"With a disability",396,124.01612798341996,224,88.836929258051242,217,75.604232685743199,209,81.6333265278342,88,35.227829907617071,77,39.698866482558415,152,57.801384066473702,2272,258.25762331439512,117,42.449970553582247,61,26.90724809414742,328,127.6401190848708,832,179.61069010501575,285,115.25623627379127,73,34.205262752974143,470,140.75865870347016,177,92.130342450248165,289,128.70120434556935,30,19.723082923316021,177,73.756355658343097,278,87.418533504057365,398,136.48443134658254,275,96.400207468656419,107,38.832975677895199,92,43.046486500061768,152,60.802960454241045,58,25.079872407968907,14,10]
[null,"No disability",1623,172.07265907168403,926,114.03946685248927,1134,141.11342955225771,3542,167.91962362987834,768,90.027773492406226,1094,82.879430499973878,1178,92.617492948146676,14562,493.36092265196686,433,70.007142492748557,1380,77.233412458598508,2008,180.16103907338012,2821,222.27235545609355,1638,185.97042775667319,508,58.412327466040935,5564,325.62708732536362,2227,164.45364088398895,2326,162.65915283192643,805,94.847245611035007,911,113.84638773364749,1972,161.72198366332265,2910,259.78645076292952,1484,145.69145479402695,589,76.419892698171196,735,96.176920308356728,1216,100.41912168506553,863,85.562842402528915,566,72.180329730474355]
[null,"65 to 74 years:",315,86.284413424441851,322,78.87331614684399,273,94.873600121424715,697,112.80514172678478,145,42.426406871192853,246,46.861498055439924,265,54.488530903301111,2747,238.09661904361431,109,33.120990323358392,225,45.221676218380054,433,118.06777714516353,573,120.20815280171308,105,45.276925690687087,113,38.948684188300895,1138,165.07574019219177,705,135.5912976558599,409,95.482982777037293,223,50.328918128646478,654,116.82465493208187,316,77.89736837660179,467,126.65701717630967,302,67.623960250786851,110,31.906112267087632,260,72.801098892805186,262,72.180329730474355,164,31.144823004794873,162,38.013155617496423]
[null,"With a disability",121,69.462219947249025,117,55.072679252057455,127,76.216796049164913,112,54.451813560247928,50,27.802877548915689,22,19.723082923316021,28,20.591260281974002,663,152.3975065412817,37,20.124611797498108,50,25.298221281347036,77,61.032778078668514,179,66.528189513919585,28,22.627416997969522,31,18.601075237738275,200,77.077882690172544,138,69.641941385920603,119,57.428216061444921,35,23.853720883753127,59,46.957427527495582,40,40.80441152620633,87,61.911226768656427,72,37.536648758246919,9,8.0622577482985491,35,28.284271247461902,48,34.176014981270121,31,12.206555615733702,23,19.235384061671343]
[null,"No disability",194,57.688820407423826,205,58.258046654518033,146,52.009614495783374,585,114.63420083029322,95,32.015621187164243,224,43.185645763378368,237,50.209560842532767,2084,221.46105752479374,72,28.844410203711913,175,45.221676218380054,356,108.04628637764465,394,104.6900186264192,77,39.698866482558415,82,33.97057550292606,938,155.56670594957006,567,124.48293055676348,290,83.096329642168911,188,45.254833995939045,595,113.22985472038724,276,75.663729752107784,380,109.62207806824317,230,60.605280298007038,101,31.384709652950431,225,67.742158217759794,214,63.820059542435402,133,28.319604517012593,139,38.013155617496423]
[null,"75 years and over:",257,84.504437753291981,193,69.06518659932803,205,79.309520235593411,378,97.836598469080073,120,34.985711369071801,115,38.897300677553446,81,38.275318418009277,2477,245.81497106563708,65,21.633307652783937,65,30.675723300355934,234,75.927597090912869,575,113.35784048754634,194,66.370174024180471,46,25.495097567963924,641,135.6244815658294,262,74.966659255965254,308,104.44615837837216,188,59.640590204993778,831,142.05632685663809,238,70.178344238091,345,97.8008179924892,184,67.201190465645766,53,19.849433241279208,166,48.270073544588683,212,58.137767414994535,71,30.413812651491099,144,43.278170016764804]
[null,"With a disability",162,66.603303221386852,134,67.424031324150292,112,59.413803110051795,202,79.93122043357026,58,27.294688127912362,39,22.022715545545239,44,31.016124838541646,1280,193.03885619221847,43,18.384776310850235,29,18.384776310850235,145,61.554853586049575,222,81.006172604314543,76,43.416586692184822,26,18.788294228055936,351,96.208107766445551,94,49.396356140913873,202,97.24710792614863,92,49.929950931279713,342,94.047860156411858,120,53.254107822777392,190,84.053554356731397,110,56.603886792339623,29,14.866068747318506,68,32.015621187164243,109,50,35,22.825424421026653,73,31.89043743820395]
[null,"No disability",95,57.008771254956898,59,24.413111231467404,93,57.489129407219238,176,65.36818798161687,62,20.518284528683193,76,33.97057550292606,37,21.633307652783937,1197,216.88937272259329,22,12.041594578792296,36,25.298221281347036,89,45.803929962395145,353,96.176920308356728,118,56.938563381947034,20,20.248456731316587,290,102.04410811016969,168,63.7808748764079,106,52.801515129776341,96,37.20215047547655,489,114.05700329221349,118,48.466483264210538,155,72.006944109578768,74,33.97057550292606,24,13.892443989449804,98,39.204591567825318,103,52.345009313209601,36,18.384776310850235,71,26.90724809414742]

{"sheet":"ACS_Table_B18102","index":27,"n_rows":125,"n_cols":56,"rows_kept":125,"cut":false,"hidden":true,"merged":[]}
["B18102. SEX BY AGE BY HEARING DIFFICULTY\n\n"]
["Universe:  Civilian non-institutionalized population"]
["Data Set: 2015-2019 American Community Survey 5-Year Estimates"]
[]
[null,null,"Allenstown",null,"Andover",null,"Boscawen",null,"Bow",null,"Bradford",null,"Canterbury",null,"Chichester",null,"Concord",null,"Danbury",null,"Dunbarton",null,"Epsom",null,"Franklin",null,"Henniker",null,"Hill",null,"Hooksett",null,"Hopkinton",null,"Loudon",null,"Newbury",null,"New London",null,"Northfield",null,"Pembroke",null,"Pittsfield",null,"Salisbury",null,"Sutton",null,"Warner",null,"Webster",null,"Wilmot"]
[null,null,"Estimate","Margin Of Error","Estimate","Margin Of Error","Estimate","Margin Of Error","Estimate","Margin Of Error","Estimate","Margin Of Error","Estimate","Margin Of Error","Estimate","Margin Of Error","Estimate","Margin Of Error","Estimate","Margin Of Error","Estimate","Margin Of Error","Estimate","Margin Of Error","Estimate","Margin Of Error","Estimate","Margin Of Error","Estimate","Margin Of Error","Estimate","Margin Of Error","Estimate","Margin Of Error","Estimate","Margin Of Error","Estimate","Margin Of Error","Estimate","Margin Of Error","Estimate","Margin Of Error","Estimate","Margin Of Error","Estimate","Margin Of Error","Estimate","Margin Of Error","Estimate","Margin Of Error","Estimate","Margin Of Error","Estimate","Margin Of Error","Estimate","Margin Of Error"]
[null,"Total:",4360,35,2782,321,3472,160,7862,25,1582,212,2357,148,2656,29,40939,267,1129,165,2819,24,4612,122,8461,50,4962,17,920,148,14197,139,5691,29,5534,19,2096,214,4296,79,4834,79,7165,50,4117,16,1418,183,1905,279,2834,117,1759,180,1643,215]
[null,"Male:",2219,138,1493,284,1593,149,4040,168,797,129,1157,102,1329,84,19808,424,554,89,1420,74,2325,156,3990,213,2590,175,473,84,6801,256,2793,159,2394,351,1056,123,1915,159,2335,143,3445,215,2133,164,727,100,942,158,1313,96,900,106,779,125]
[null,"Under 5 years:",125,82,20,17,93,71,244,78,16,12,56,27,101,48,1140,193,43,24,62,43,172,92,168,85,172,67,31,19,222,90,158,88,77,75,29,16,104,71,187,97,159,87,68,77,17,14,36,26,66,38,29,15,19,23]
[null,"With hearing difficulty",0,11,0,11,0,11,0,16,0,11,0,11,0,11,43,57,0,11,0,11,56,65,0,16,0,11,0,11,0,18,0,16,0,16,0,11,0,11,0,11,0,16,0,11,0,11,0,11,0,11,0,11,0,11]
[null,"With no hearing difficulty",125,82,20,17,93,71,244,78,16,12,56,27,101,48,1097,194,43,24,62,43,116,64,168,85,172,67,31,19,222,90,158,88,77,75,29,16,104,71,187,97,159,87,68,77,17,14,36,26,66,38,29,15,19,23]
[null,"5 to 17  years:",286,78,309,113,304,86,867,148,169,61,78,31,258,69,3143,291,49,23,282,52,346,106,671,148,406,146,65,33,995,220,417,145,249,123,105,43,188,84,273,88,386,116,482,140,89,37,231,87,194,62,129,43,92,60]
[null,"With hearing difficulty",0,11,0,11,0,11,0,16,0,11,0,11,0,11,14,19,3,5,0,11,0,11,0,16,0,11,0,11,0,18,24,36,0,16,0,11,0,11,0,11,0,16,0,11,0,11,0,11,0,11,3,4,0,11]
[null,"With no hearing difficulty",286,78,309,113,304,86,867,148,169,61,78,31,258,69,3129,293,46,21,282,52,346,106,671,148,406,146,65,33,995,220,393,130,249,123,105,43,188,84,273,88,386,116,482,140,89,37,231,87,194,62,126,43,92,60]
[null,"18 to 34  years:",529,113,339,125,188,88,677,145,147,65,225,53,220,48,5116,328,94,28,229,54,475,123,732,180,746,180,78,31,1791,260,355,99,299,164,201,73,565,124,540,140,825,221,320,121,168,50,134,46,304,76,148,50,147,46]
[null,"With hearing difficulty",0,11,0,11,0,11,0,16,0,11,0,11,0,11,63,56,0,11,8,8,0,11,15,24,6,13,4,5,22,28,0,16,0,16,6,9,2,7,0,11,0,16,0,11,0,11,0,11,38,40,4,7,17,15]
[null,"With no hearing difficulty",529,113,339,125,188,88,677,145,147,65,225,53,220,48,5053,331,94,28,221,54,475,123,717,178,740,175,74,31,1769,267,355,99,299,164,195,75,563,125,540,140,825,221,320,121,168,50,134,46,266,72,144,49,130,43]
[null,"35 to 64  years:",1007,112,625,201,744,119,1677,99,298,47,571,71,551,51,7646,355,277,54,666,60,930,114,1679,176,901,119,217,38,2812,191,1407,121,1241,199,451,68,493,79,1068,127,1553,195,941,152,300,49,353,70,509,62,469,60,342,59]
[null,"With hearing difficulty",43,55,23,21,77,59,26,28,3,4,43,44,23,27,357,108,3,5,28,20,22,24,89,55,51,40,18,18,79,39,124,112,64,51,11,12,27,29,43,48,40,41,70,76,7,8,0,11,42,26,13,12,4,6]
[null,"With no hearing difficulty",964,126,602,203,667,115,1651,102,295,47,528,72,528,53,7289,342,274,55,638,61,908,115,1590,182,850,112,199,35,2733,194,1283,154,1177,190,440,67,466,86,1025,142,1513,197,871,182,293,50,353,70,467,68,456,58,338,60]
[null,"65 to 74  years:",155,70,93,41,184,64,338,70,125,35,169,40,159,37,1636,164,54,30,141,30,293,88,485,119,257,84,50,24,666,125,294,83,398,152,188,48,235,73,216,71,372,99,207,84,117,34,96,37,181,44,106,26,103,33]
[null,"With hearing difficulty",48,34,17,26,44,31,59,33,24,19,40,23,35,29,174,84,6,6,11,9,38,28,81,43,46,39,12,10,95,44,35,33,58,59,17,26,0,11,31,24,31,35,31,49,18,14,3,5,36,24,21,13,8,8]
[null,"With no hearing difficulty",107,64,76,34,140,63,279,63,101,30,129,36,124,33,1462,159,48,29,130,32,255,92,404,118,211,83,38,22,571,124,259,89,340,141,171,46,235,73,185,70,341,89,176,75,99,31,93,36,145,39,85,25,95,33]
[null,"75  years and Older:",117,46,107,48,80,50,237,64,42,20,58,31,40,19,1127,177,37,20,40,15,109,49,255,70,108,50,32,24,315,95,162,78,130,79,82,32,330,96,51,26,150,69,115,59,36,17,92,38,59,26,19,11,76,34]
[null,"With hearing difficulty",38,24,40,29,11,17,46,31,10,8,10,10,9,9,251,83,11,16,12,10,23,20,94,51,6,10,4,5,99,53,61,51,42,45,11,11,70,49,25,17,27,31,30,26,8,9,17,10,13,11,4,5,25,17]
[null,"With no hearing difficulty",79,39,67,40,69,49,191,59,32,20,48,31,31,15,876,165,26,13,28,13,86,48,161,58,102,49,28,24,216,76,101,77,88,70,71,30,260,81,26,21,123,63,85,50,28,15,75,37,46,25,15,10,51,30]
[null,"Female:",2141,147,1289,134,1879,142,3822,172,785,111,1200,95,1327,81,21131,401,575,96,1399,74,2287,145,4471,210,2372,172,447,73,7396,298,2898,158,3140,353,1040,122,2381,157,2499,150,3720,221,1984,165,691,100,963,148,1521,93,859,102,864,117]
[null,"Under 5 years:",111,77,60,40,88,57,237,113,28,16,68,36,100,44,949,187,49,24,61,31,47,39,54,39,116,71,21,16,343,145,160,82,159,89,26,18,123,60,161,70,184,96,111,119,22,21,58,32,92,51,34,20,58,31]
[null,"With hearing difficulty",0,11,0,11,0,11,0,16,0,11,0,11,0,11,0,24,0,11,0,11,0,11,0,16,0,11,0,11,0,18,0,16,0,16,0,11,0,11,0,11,0,16,0,11,0,11,0,11,0,11,0,11,0,11]
[null,"With no hearing difficulty",111,77,60,40,88,57,237,113,28,16,68,36,100,44,949,187,49,24,61,31,47,39,54,39,116,71,21,16,343,145,160,82,159,89,26,18,123,60,161,70,184,96,111,119,22,21,58,32,92,51,34,20,58,31]
[null,"5 to 17  years:",266,77,206,65,270,126,711,105,130,45,159,40,132,39,2702,286,106,39,328,62,397,109,536,134,227,95,44,27,1128,189,455,134,435,176,149,52,212,88,391,82,798,209,324,139,125,52,130,61,242,69,71,29,96,36]
[null,"With hearing difficulty",10,16,0,11,0,11,7,11,0,11,0,11,0,11,0,24,0,11,0,11,0,11,12,19,0,11,0,11,13,20,0,16,0,16,0,11,0,11,33,48,0,16,0,11,0,11,0,11,0,11,0,11,0,11]
[null,"With no hearing difficulty",256,75,206,65,270,126,704,106,130,45,159,40,132,39,2702,286,106,39,328,62,397,109,524,129,227,95,44,27,1115,186,455,134,435,176,149,52,212,88,358,86,798,209,324,139,125,52,130,61,242,69,71,29,96,36]
[null,"18 to 34  years:",459,148,201,78,349,101,399,104,105,52,231,58,275,63,5038,280,76,32,175,58,419,102,898,186,804,194,59,30,1894,260,375,141,521,182,121,45,787,158,694,118,577,154,269,91,74,29,107,36,353,84,155,52,151,53]
[null,"With hearing difficulty",22,24,0,11,0,11,0,16,0,11,0,11,2,5,24,29,0,11,0,11,0,11,0,16,0,11,0,11,81,67,27,41,0,16,0,11,0,11,0,11,0,16,2,5,0,11,0,11,0,11,0,11,0,11]
[null,"With no hearing difficulty",437,152,201,78,349,101,399,104,105,52,231,58,273,63,5014,280,76,32,175,58,419,102,898,186,804,194,59,30,1813,251,348,130,521,182,121,45,787,158,694,118,577,154,267,90,74,29,107,36,353,84,155,52,151,53]
[null,"35 to 64  years:",884,98,550,86,901,85,1719,102,330,56,544,61,614,60,8612,314,276,51,685,60,1016,132,2001,174,819,93,235,44,2811,171,1281,132,1396,143,456,67,594,87,994,109,1586,165,981,169,325,50,469,84,571,58,429,61,370,62]
[null,"With hearing difficulty",16,23,12,12,29,47,24,24,11,11,53,34,0,11,209,84,28,25,8,9,6,12,17,24,49,49,15,18,72,55,8,15,0,16,5,7,0,11,34,38,0,16,27,20,5,7,0,11,11,11,25,18,7,7]
[null,"With no hearing difficulty",868,105,538,86,872,83,1695,103,319,54,491,62,614,60,8403,322,248,47,677,60,1010,133,1984,179,770,119,220,42,2739,172,1273,132,1396,143,451,68,594,87,960,109,1586,165,954,172,320,51,469,84,560,57,404,58,363,63]
[null,"65 to 74  years:",172,62,139,50,143,49,408,75,123,30,102,35,127,28,1995,192,42,23,98,22,285,81,620,125,322,90,68,29,720,109,400,101,454,135,200,46,323,88,194,58,396,127,175,75,87,26,140,47,147,51,128,36,85,28]
[null,"With hearing difficulty",19,22,0,11,0,11,38,29,5,7,0,11,15,13,208,77,0,11,7,9,72,61,87,61,7,10,0,11,70,44,0,16,25,40,11,11,0,11,15,17,53,45,12,18,3,5,12,15,4,6,3,4,0,11]
[null,"With no hearing difficulty",153,61,139,50,143,49,370,74,118,30,102,35,112,24,1787,191,42,23,91,21,213,60,533,122,315,91,68,29,650,112,400,101,429,132,189,47,323,88,179,56,343,123,163,72,84,26,128,44,143,51,125,36,85,28]
[null,"75  years and Older:",249,109,133,61,128,55,348,75,69,37,96,31,79,32,1835,196,26,15,52,20,123,60,362,119,84,49,20,20,500,130,227,92,175,97,88,36,342,88,65,34,179,82,124,79,58,29,59,33,116,45,42,18,104,42]
[null,"With hearing difficulty",56,52,14,15,32,30,68,38,12,20,15,14,7,12,370,106,0,11,14,13,27,25,33,30,12,20,5,7,153,82,46,43,20,31,13,14,44,35,31,27,69,54,20,23,0,11,0,11,47,38,19,12,15,12]
[null,"With no hearing difficulty",193,95,119,62,96,50,280,76,57,31,81,28,72,30,1465,209,26,15,38,16,96,54,329,116,72,44,15,19,347,109,181,84,155,93,75,38,298,86,34,31,110,73,104,76,58,29,59,33,69,31,23,13,89,38]
[]
[]
[{"$f":"A1& \"-Calculated\"","v":"B18102. SEX BY AGE BY HEARING DIFFICULTY\n\n-Calculated"}]
[{"$f":"A2","v":"Universe:  Civilian non-institutionalized population"}]
[{"$f":"A3","v":"Data Set: 2015-2019 American Community Survey 5-Year Estimates"}]
[]
[]
[null,null,"Allenstown",null,"Andover",null,"Boscawen",null,"Bow",null,"Bradford",null,"Canterbury",null,"Chichester",null,"Concord",null,"Danbury",null,"Dunbarton",null,"Epsom",null,"Franklin",null,"Henniker",null,"Hill",null,"Hooksett",null,"Hopkinton",null,"Loudon",null,"Newbury",null,"New London",null,"Northfield",null,"Pembroke",null,"Pittsfield",null,"Salisbury",null,"Sutton",null,"Warner",null,"Webster",null,"Wilmot"]
[null,null,"Estimate","Margin Of Error","Estimate","Margin Of Error","Estimate","Margin Of Error","Estimate","Margin Of Error","Estimate","Margin Of Error","Estimate","Margin Of Error","Estimate","Margin Of Error","Estimate","Margin Of Error","Estimate","Margin Of Error","Estimate","Margin Of Error","Estimate","Margin Of Error","Estimate","Margin Of Error","Estimate","Margin Of Error","Estimate","Margin Of Error","Estimate","Margin Of Error","Estimate","Margin Of Error","Estimate","Margin Of Error","Estimate","Margin Of Error","Estimate","Margin Of Error","Estimate","Margin Of Error","Estimate","Margin Of Error","Estimate","Margin Of Error","Estimate","Margin Of Error","Estimate","Margin Of Error","Estimate","Margin Of Error","Estimate","Margin Of Error","Estimate","Margin Of Error"]
[null,"Total",{"$f":"C7","v":4360},35,2782,321,3472,160,7862,25,1582,212,2357,148,2656,29,40939,267,1129,165,2819,24,4612,122,{"$f":"Y7","v":8461},50,4962,17,920,148,14197,139,5691,29,5534,19,2096,214,4296,79,4834,79,7165,50,4117,16,1418,183,1905,279,2834,117,1759,180,1643,215]
[null,"Under 5 years:",{"$f":"C28+C9","v":236},{"$f":"SQRT((D28^2)+(D9^2))","v":112.48555462813881},{"$f":"E28+E9","v":80},{"$f":"SQRT((F28^2)+(F9^2))","v":43.46262762420146},{"$f":"G28+G9","v":181},{"$f":"SQRT((H28^2)+(H9^2))","v":91.049437120720299},{"$f":"I28+I9","v":481},{"$f":"SQRT((J28^2)+(J9^2))","v":137.30622709840949},{"$f":"K28+K9","v":44},{"$f":"SQRT((L28^2)+(L9^2))","v":20},{"$f":"M28+M9","v":124},{"$f":"SQRT((N28^2)+(N9^2))","v":45},{"$f":"O28+O9","v":201},{"$f":"SQRT((P28^2)+(P9^2))","v":65.115282384398824},{"$f":"Q28+Q9","v":2089},{"$f":"SQRT((R28^2)+(R9^2))","v":268.73406929527937},{"$f":"S28+S9","v":92},{"$f":"SQRT((T28^2)+(T9^2))","v":33.941125496954278},{"$f":"U28+U9","v":123},{"$f":"SQRT((V28^2)+(V9^2))","v":53.009433122794285},{"$f":"W28+W9","v":219},{"$f":"SQRT((X28^2)+(X9^2))","v":99.924971853886447},{"$f":"Y28+Y9","v":222},{"$f":"SQRT((Z28^2)+(Z9^2))","v":93.520051325905499},{"$f":"AA28+AA9","v":288},{"$f":"SQRT((AB28^2)+(AB9^2))","v":97.621718894926246},{"$f":"AC28+AC9","v":52},{"$f":"SQRT((AD28^2)+(AD9^2))","v":24.839484696748443},{"$f":"AE28+AE9","v":565},{"$f":"SQRT((AF28^2)+(AF9^2))","v":170.66048165876012},{"$f":"AG28+AG9","v":318},{"$f":"SQRT((AH28^2)+(AH9^2))","v":120.28299963003916},{"$f":"AI28+AI9","v":236},{"$f":"SQRT((AJ28^2)+(AJ9^2))","v":116.38728452885221},{"$f":"AK28+AK9","v":55},{"$f":"SQRT((AL28^2)+(AL9^2))","v":24.083189157584592},{"$f":"AM28+AM9","v":227},{"$f":"SQRT((AN28^2)+(AN9^2))","v":92.956979296876895},{"$f":"AO28+AO9","v":348},{"$f":"SQRT((AP28^2)+(AP9^2))","v":119.6202324023825},{"$f":"AQ28+AQ9","v":343},{"$f":"SQRT((AR28^2)+(AR9^2))","v":129.5569372901351},{"$f":"AS28+AS9","v":179},{"$f":"SQRT((AT28^2)+(AT9^2))","v":141.7391971192161},{"$f":"AU28+AU9","v":39},{"$f":"SQRT((AV28^2)+(AV9^2))","v":25.238858928247925},{"$f":"AW28+AW9","v":94},{"$f":"SQRT((AX28^2)+(AX9^2))","v":41.231056256176608},{"$f":"AY28+AY9","v":158},{"$f":"SQRT((AZ28^2)+(AZ9^2))","v":63.600314464631381},{"$f":"BA28+BA9","v":63},{"$f":"SQRT((BB28^2)+(BB9^2))","v":25},{"$f":"BC28+BC9","v":77},{"$f":"SQRT((BD28^2)+(BD9^2))","v":38.600518131237564}]
[null,"With hearing difficulty",{"$f":"C29+C10","v":0},{"$f":"SQRT((D29^2)+(D10^2))","v":15.556349186104045},{"$f":"E29+E10","v":0},{"$f":"SQRT((F29^2)+(F10^2))","v":15.556349186104045},{"$f":"G29+G10","v":0},{"$f":"SQRT((H29^2)+(H10^2))","v":15.556349186104045},{"$f":"I29+I10","v":0},{"$f":"SQRT((J29^2)+(J10^2))","v":22.627416997969522},{"$f":"K29+K10","v":0},{"$f":"SQRT((L29^2)+(L10^2))","v":15.556349186104045},{"$f":"M29+M10","v":0},{"$f":"SQRT((N29^2)+(N10^2))","v":15.556349186104045},{"$f":"O29+O10","v":0},{"$f":"SQRT((P29^2)+(P10^2))","v":15.556349186104045},{"$f":"Q29+Q10","v":43},{"$f":"SQRT((R29^2)+(R10^2))","v":61.846584384264908},{"$f":"S29+S10","v":0},{"$f":"SQRT((T29^2)+(T10^2))","v":15.556349186104045},{"$f":"U29+U10","v":0},{"$f":"SQRT((V29^2)+(V10^2))","v":15.556349186104045},56,65.924198895398035,0,{"$f":"SQRT((Z29^2)+(Z10^2))","v":22.627416997969522},0,{"$f":"SQRT((AB29^2)+(AB10^2))","v":15.556349186104045},0,{"$f":"SQRT((AD29^2)+(AD10^2))","v":15.556349186104045},0,{"$f":"SQRT((AF29^2)+(AF10^2))","v":25.45584412271571},0,{"$f":"SQRT((AH29^2)+(AH10^2))","v":22.627416997969522},0,{"$f":"SQRT((AJ29^2)+(AJ10^2))","v":22.627416997969522},0,{"$f":"SQRT((AL29^2)+(AL10^2))","v":15.556349186104045},0,{"$f":"SQRT((AN29^2)+(AN10^2))","v":15.556349186104045},0,{"$f":"SQRT((AP29^2)+(AP10^2))","v":15.556349186104045},0,{"$f":"SQRT((AR29^2)+(AR10^2))","v":22.627416997969522},0,{"$f":"SQRT((AT29^2)+(AT10^2))","v":15.556349186104045},0,{"$f":"SQRT((AV29^2)+(AV10^2))","v":15.556349186104045},0,{"$f":"SQRT((AX29^2)+(AX10^2))","v":15.556349186104045},0,{"$f":"SQRT((AZ29^2)+(AZ10^2))","v":15.556349186104045},0,{"$f":"SQRT((BB29^2)+(BB10^2))","v":15.556349186104045},0,{"$f":"SQRT((BD29^2)+(BD10^2))","v":15.556349186104045}]
[null,"With no hearing difficulty",236,112.48555462813881,80,43.46262762420146,181,91.049437120720299,481,137.30622709840949,44,20,124,45,201,65.115282384398824,2046,269.45314991664134,92,33.941125496954278,123,53.009433122794285,163,74.94664769020693,222,{"$f":"SQRT((Z30^2)+(Z11^2))","v":93.520051325905499},288,97.621718894926246,52,24.839484696748443,565,170.66048165876012,318,120.28299963003916,236,116.38728452885221,55,24.083189157584592,227,92.956979296876895,348,119.6202324023825,343,129.5569372901351,179,141.7391971192161,39,25.238858928247925,94,41.231056256176608,158,63.600314464631381,63,25,77,38.600518131237564]
[null,"5 to 17 years:",552,109.60383204979651,515,130.36103712382777,574,152.55163060419906,1578,181.46349495146399,299,75.802374632988901,237,50.606323715519977,390,79.259068881737434,5845,408.0159310615212,155,45.276925690687087,610,80.919713296575637,743,152.04275714416653,1207,199.64969321288726,633,174.18668146560461,109,42.638011210655684,2123,290.0362046365936,872,197.43606560099397,684,214.72074888095935,254,67.475921631349351,400,121.6552506059644,664,120.28299963003916,1184,239.03347045968269,806,197.28405916343064,214,63.820059542435402,361,106.25441167311595,436,92.763139231054481,200,51.86520991955976,188,69.971422738143602]
[null,"With hearing difficulty",10,19.416487838947599,0,15.556349186104045,0,15.556349186104045,7,19.416487838947599,0,15.556349186104045,0,15.556349186104045,0,15.556349186104045,14,30.610455730027933,3,12.083045973594572,0,15.556349186104045,0,15.556349186104045,12,24.839484696748443,0,15.556349186104045,0,15.556349186104045,13,26.90724809414742,24,39.395431207184416,0,22.627416997969522,0,15.556349186104045,0,15.556349186104045,33,49.244289008980523,0,22.627416997969522,0,15.556349186104045,0,15.556349186104045,0,15.556349186104045,0,15.556349186104045,3,11.704699910719626,0,15.556349186104045]
[null,"With no hearing difficulty",542,108.2081327812286,515,130.36103712382777,574,152.55163060419906,1571,182.04395073717774,299,75.802374632988901,237,50.606323715519977,390,79.259068881737434,5831,409.44474596702298,152,44.294469180700204,610,80.919713296575637,743,152.04275714416653,1195,196.32880583347927,633,174.18668146560461,109,42.638011210655684,2110,288.09026363277189,848,186.69761648183942,684,214.72074888095935,254,67.475921631349351,400,121.6552506059644,631,123.04470732217619,1184,239.03347045968269,806,197.28405916343064,214,63.820059542435402,361,106.25441167311595,436,92.763139231054481,197,51.86520991955976,188,69.971422738143602]
[null,"18 to 34 years:",988,186.20687420178666,540,147.33974345029924,537,133.9589489358587,1076,178.44046626256053,252,83.240615086627031,456,78.568441501661468,495,79.202272694664515,10154,431.25862310219372,170,42.5205832509386,404,79.246451024635803,894,159.7904878270293,1630,258.83585532147589,1550,264.64315596667149,137,43.139309220245984,3685,367.69552621700473,730,172.28464818433474,820,244.98979570586201,322,85.755466298073387,1352,200.84820138602188,1234,183.09560344257315,1402,269.36406590337918,589,151.40013210033868,242,57.801384066473702,241,58.412327466040935,657,113.27841806805037,303,72.138755187485728,298,70.178344238091]
[null,"With hearing difficulty",22,26.40075756488817,0,15.556349186104045,0,15.556349186104045,0,22.627416997969522,0,15.556349186104045,0,15.556349186104045,2,12.083045973594572,87,63.063460101710248,0,15.556349186104045,8,13.601470508735444,0,15.556349186104045,15,28.844410203711913,6,17.029386365926403,4,12.083045973594572,103,72.615425358528341,27,44.011362169330773,0,22.627416997969522,6,14.212670403551895,2,13.038404810405298,0,15.556349186104045,0,22.627416997969522,2,12.083045973594572,0,15.556349186104045,0,15.556349186104045,38,41.484937025383083,4,13.038404810405298,17,18.601075237738275]
[null,"With no hearing difficulty",966,189.40168953839878,540,147.33974345029924,537,133.9589489358587,1076,178.44046626256053,252,83.240615086627031,456,78.568441501661468,493,79.202272694664515,10067,433.54469204454574,170,42.5205832509386,396,79.246451024635803,894,159.7904878270293,1615,257.44902408049637,1544,261.26806157661139,133,43.139309220245984,3582,366.45600008732288,703,163.40440630533806,820,244.98979570586201,316,87.464278422679513,1350,201.46711890529431,1234,183.09560344257315,1402,269.36406590337918,587,150.80119362922829,242,57.801384066473702,241,58.412327466040935,619,110.63453348751464,299,71.449282711584999,281,68.249542123006222]
[null,"35 to 64 years:",1891,148.82204137828509,1175,218.62525014279572,1645,146.23952953972466,3396,142.1442928857856,628,73.109506905736964,1115,93.605555390692487,1165,78.746428490440124,16258,473.94197957133952,553,74.276510418839678,1351,84.852813742385706,1946,174.41330224498358,3680,247.4914139924858,1720,151.02979838429235,452,58.137767414994535,5623,256.36302385484532,2688,179.06702655709677,2637,245.05101509685693,907,95.462034338264544,1087,117.51595636338071,2062,167.36188335460378,3139,255.44079548889601,1922,227.29936207565564,625,70.007142492748557,822,109.34349546269316,1080,84.899941107164494,898,85.562842402528915,712,85.586213843118443]
[null,"With hearing difficulty",59,59.615434243155519,35,24.186773244895647,106,75.432088662584434,50,36.878177829171548,14,11.704699910719626,96,55.605755097831377,23,29.154759474226502,566,136.82105101189657,31,25.495097567963924,36,21.931712199461309,28,26.832815729997478,106,60.00833275470999,100,63.253458403473878,33,25.45584412271571,151,67.424031324150292,132,113,64,53.450912059571067,16,13.892443989449804,27,31.016124838541646,77,61.220911460055866,40,44.011362169330773,97,78.587530817553997,12,10.63014581273465,0,15.556349186104045,53,28.231188426986208,38,21.633307652783937,11,9.2195444572928871]
[null,"With no hearing difficulty",1832,164.01524319403975,1140,220.4654167891191,1539,141.8238343861849,3346,144.95861478366851,614,71.589105316381762,1019,95.015788161757627,1142,80.05623023850174,15692,469.73183839292818,522,72.346388990743691,1315,85.562842402528915,1918,175.82377541163197,3574,255.27436220662662,1620,163.41664541900252,419,54.671747731346578,5472,259.26820090400599,2556,202.82997806044352,2573,237.80033641691932,891,95.462034338264544,1060,122.3315167894194,1985,179.0111728356641,3099,256.97081546354639,1825,250.4156544627352,613,71.421285342676384,822,109.34349546269316,1027,88.729927307532492,860,82.024386617639507,701,87]
[null,"65 to 74 years:",327,93.509357820487679,232,64.660652641308843,327,80.603970125546539,746,102.59142264341595,248,46.097722286464439,271,53.150729063673246,286,46.400431032480725,3631,252.50742563338608,96,37.802116342871599,239,37.20215047547655,578,119.60351165413162,1105,172.58621034138272,579,123.10970717209915,118,37.643060449437421,1386,165.8493292117879,694,130.728726758888,852,203.29535164385831,388,66.483080554378645,558,114.33722053644648,410,91.678787077491378,768,161.02794788483146,382,112.60994627474076,204,42.80186911806539,236,59.816385714952723,328,67.357256476195644,234,44.407206622349037,188,43.278170016764804]
[null,"With hearing difficulty",67,40.496913462633174,17,28.231188426986208,44,32.893768406797051,97,43.931765272977593,29,20.248456731316587,40,25.495097567963924,50,31.780497164141408,382,113.95174417269794,6,12.529964086141668,18,12.727922061357855,110,67.119296778199342,168,74.632432628181164,53,40.26164427839479,12,14.866068747318506,165,62.22539674441618,35,36.674241641784498,83,71.28113354878694,28,28.231188426986208,0,15.556349186104045,46,29.410882339705484,84,57.008771254956898,43,52.201532544552748,21,14.866068747318506,15,15.811388300841896,40,24.738633753705962,24,13.601470508735444,8,13.601470508735444]
[null,"With no hearing difficulty",260,88.41379982785493,215,60.464865831323898,283,79.81227975693966,649,97.185389848474657,219,42.426406871192853,231,50.209560842532767,236,40.80441152620633,3249,248.51961693194363,90,37.013511046643494,221,38.275318418009277,468,109.83624174196785,937,169.72919607421701,526,123.16655390161731,106,36.400549446402593,1221,167.09278859364338,659,134.61797799699713,769,193.14502323383846,360,65.76473218982953,558,114.33722053644648,364,89.643739324059879,684,151.82226450688975,339,103.96634070698073,183,40.459856648287818,221,56.850681614207581,288,64.202803677098089,210,43.829214001622255,180,43.278170016764804]
[null,"75 years and over:",366,118.30891766895681,240,77.620873481300123,208,74.330343736592525,585,98.595131725658746,111,42.059481689626182,154,43.840620433565945,119,37.215588131856791,2962,264.09278672466615,63,25,92,25,232,77.466121627457255,617,138.06158046321215,192,70.007142492748557,52,31.240998703626616,815,161.01242188104618,389,120.61509026651682,305,125.09996003196804,170,48.166378315169183,672,130.23056476879765,116,42.80186911806539,329,107.16809226630845,239,98.600202839547947,94,33.61547262794322,151,50.328918128646478,175,51.97114584074513,61,21.095023109728988,180,54.037024344425184]
[null,"With hearing difficulty",94,57.271284253105414,54,32.649655434629018,43,34.481879299133332,114,49.040799340956916,22,21.540659228538015,25,17.204650534085253,16,15,621,134.6291201783626,11,19.416487838947599,26,16.401219466856727,50,32.015621187164243,127,59.169248769948062,18,22.360679774997898,9,8.6023252670426267,252,97.637083119069061,107,66.708320320631671,62,54.644304369257,24,17.804493814764857,114,60.21627686929839,56,31.906112267087632,96,62.265560304232388,50,34.713109915419565,8,14.212670403551895,17,14.866068747318506,60,39.560080889704963,23,13,40,20.808652046684813]
[null,"With no hearing difficulty",272,102.69371937952194,186,73.783466982786862,165,70.007142492748557,471,96.213304693269947,89,36.891733491393431,129,41.773197148410844,103,33.541019662496844,2341,266.28180561202447,52,19.849433241279208,66,20.615528128088304,182,72.249567472753768,490,129.6919426949878,174,65.855903304107827,43,30.610455730027933,563,132.87964479181903,282,113.95174417269794,243,116.40017182117903,146,48.414873747640819,558,118.1397477566293,60,37.443290453698111,233,96.426137535421375,189,90.972523324353276,86,32.649655434629018,134,49.578221024962161,115,39.824615503479755,38,16.401219466856727,140,{"$f":"SQRT((BD45^2)+(BD26^2))","v":48.414873747640819}]
[]
[]
[]
[]
[]
[]
[]
[]
[]
[]
[]
[]
[]
[]
[]
[]
[]
[]
[]
[]
[]
[]
[]
[]
[]
[]
["B18102. SEX BY AGE BY HEARING DIFFICULTY\n\n-Calculated"]
["Universe:  Civilian non-institutionalized population"]
["Data Set: 2010-2014 American Community Survey 5-Year Estimates"]
[]
[]
[null,null,"Allenstown",null,"Andover",null,"Boscawen",null,"Bow",null,"Bradford",null,"Canterbury",null,"Chichester",null,"Concord",null,"Danbury",null,"Dunbarton",null,"Epsom",null,"Franklin",null,"Henniker",null,"Hill",null,"Hooksett",null,"Hopkinton",null,"Loudon",null,"Newbury",null,"New London",null,"Northfield",null,"Pembroke",null,"Pittsfield",null,"Salisbury",null,"Sutton",null,"Warner",null,"Webster",null,"Wilmot"]
[null,null,"Estimate","Margin Of Error","Estimate","Margin Of Error","Estimate","Margin Of Error","Estimate","Margin Of Error","Estimate","Margin Of Error","Estimate","Margin Of Error","Estimate","Margin Of Error","Estimate","Margin Of Error","Estimate","Margin Of Error","Estimate","Margin Of Error","Estimate","Margin Of Error","Estimate","Margin Of Error","Estimate","Margin Of Error","Estimate","Margin Of Error","Estimate","Margin Of Error","Estimate","Margin Of Error","Estimate","Margin Of Error","Estimate","Margin Of Error","Estimate","Margin Of Error","Estimate","Margin Of Error","Estimate","Margin Of Error","Estimate","Margin Of Error","Estimate","Margin Of Error","Estimate","Margin Of Error","Estimate","Margin Of Error","Estimate","Margin Of Error","Estimate"]
[null,"Total",4283,41,2421,253,3446,335,7611,29,1706,205,2291,204,2551,18,40333,422,1243,186,2779,17,4490,91,8322,73,4822,22,1164,184,13669,50,5591,23,5332,24,1749,234,4465,78,4772,59,7121,29,4078,30,1402,161,2014,287,2846,21,1891,199,1367,181]
[null,"Under 5 years:",298,111.89280584559492,59,33.286633954186478,276,112.36102527122117,163,75.166481891864535,52,19.209372712298546,124,44.687805943008662,78,42.01190307520001,2294,306.2058131388103,67,44.204072210600685,144,48.60041152089147,177,83.240615086627031,594,166.17159805454119,358,127.31457104353767,44,21.213203435596427,685,193.04144632694815,180,101.25709851659784,207,97.04638066409278,55,35.440090293338699,28,33.837848631377263,379,144.31216164966833,228,114.40279716860073,327,106.66770832824712,65,37.215588131856791,117,69.835521047673154,101,53.254107822777392,70,31.76476034853718,44,23.323807579381203]
[null,"With hearing difficulty",0,15.556349186104045,0,15.556349186104045,0,15.556349186104045,0,21.213203435596427,0,15.556349186104045,16,27.313000567495326,0,15.556349186104045,16,34.713109915419565,0,15.556349186104045,0,15.556349186104045,0,15.556349186104045,10,22.671568097509269,0,15.556349186104045,0,15.556349186104045,0,24.041630560342615,0,21.213203435596427,0,21.213203435596427,0,15.556349186104045,0,15.556349186104045,0,15.556349186104045,0,21.213203435596427,0,15.556349186104045,0,15.556349186104045,0,15.556349186104045,0,15.556349186104045,2,12.083045973594572,0,15.556349186104045]
[null,"With no hearing difficulty",298,111.89280584559492,59,33.286633954186478,276,112.36102527122117,163,75.166481891864535,52,19.209372712298546,108,42.201895692018383,78,42.01190307520001,2278,303.19960422137757,67,44.204072210600685,144,48.60041152089147,177,83.240615086627031,584,167.58579892103029,358,127.31457104353767,44,21.213203435596427,685,193.04144632694815,180,101.25709851659784,207,97.04638066409278,55,35.440090293338699,28,33.837848631377263,379,144.31216164966833,228,114.40279716860073,327,106.66770832824712,65,37.215588131856791,117,69.835521047673154,101,53.254107822777392,68,31.76476034853718,44,23.323807579381203]
[null,"5 to 17 years:",538,119.75391434103521,363,91.285267157411553,564,184.80530295421721,1742,177.34147850968199,265,70.604532432415411,339,87.664131775772461,396,74.518454090245328,6346,403.86260039770951,195,62.289646009589745,452,67.178865724273734,722,162.43152403397562,1378,254.84897488512681,810,185.39687160251654,207,63.702433234531945,1919,267.30132809247317,1077,221.32555207205516,970,172.03778654702577,260,61.032778078668514,383,107.61505470890214,757,159.84054554461454,1364,207.45360927204905,609,117.38824472663352,223,59.548299723837623,351,93.861600242058515,431,105.20931517693668,362,78.746428490440124,209,59.405386961116584]
[null,"With hearing difficulty",25,38.600518131237564,0,15.556349186104045,0,15.556349186104045,0,21.213203435596427,0,15.556349186104045,0,15.556349186104045,0,15.556349186104045,16,28.600699292150182,0,15.556349186104045,0,15.556349186104045,0,15.556349186104045,0,21.213203435596427,0,15.556349186104045,5,13.601470508735444,0,24.041630560342615,0,21.213203435596427,0,21.213203435596427,0,15.556349186104045,0,15.556349186104045,0,15.556349186104045,20,36.249137920783717,0,15.556349186104045,0,15.556349186104045,0,15.556349186104045,0,15.556349186104045,4,13.038404810405298,0,15.556349186104045]
[null,"With no hearing difficulty",513,107.56393447619885,363,91.285267157411553,564,184.80530295421721,1742,177.34147850968199,265,70.604532432415411,339,87.664131775772461,396,74.518454090245328,6330,403.86260039770951,195,62.289646009589745,452,67.178865724273734,722,162.43152403397562,1378,254.84897488512681,810,185.39687160251654,202,63.031738037277698,1919,267.30132809247317,1077,221.32555207205516,970,172.03778654702577,260,61.032778078668514,383,107.61505470890214,757,159.84054554461454,1344,204.50183373260984,609,117.38824472663352,223,59.548299723837623,351,93.861600242058515,431,105.20931517693668,358,77.987178433380961,209,59.405386961116584]
[null,"18 to 34 years:",856,121.69634341261039,334,106.94391053257777,777,163.3431969810803,880,159.96249560443849,268,49.819674828324601,296,63.7808748764079,401,86.683331731077345,9635,474.69147875225229,257,64.381674411279491,452,108.97706180660222,588,142.30249470757707,1549,211.92923347193044,1432,224.16288720481811,173,43.863424398922618,3252,363.68805314444961,963,193.04144632694815,823,158.54967675779096,188,66.068146636635717,1481,221.14474897677312,832,140.12137595670404,1409,263.3040068058213,897,181.46625030566977,255,58.796258384356399,293,81.320354155647891,472,101.9803902718557,303,70.936591403872796,228,78.10249675906654]
[null,"With hearing difficulty",0,15.556349186104045,0,15.556349186104045,9,18.601075237738275,21,24.698178070456937,8,7.810249675906654,8,17.029386365926403,0,15.556349186104045,96,71.449282711584999,0,15.556349186104045,5,13.601470508735444,11,21.095023109728988,54,66.708320320631671,9,18.601075237738275,0,15.556349186104045,5,20.248456731316587,0,21.213203435596427,2,15.811388300841896,0,15.556349186104045,19,21.95449840010015,0,15.556349186104045,0,21.213203435596427,0,15.556349186104045,7,14.212670403551895,0,15.556349186104045,0,15.556349186104045,0,15.556349186104045,3,11.704699910719626]
[null,"With no hearing difficulty",856,121.69634341261039,334,106.94391053257777,768,163.3431969810803,859,164.05486887014357,260,49.040799340956916,288,63.031738037277698,401,86.683331731077345,9539,468.87524993328446,257,64.381674411279491,447,108.97706180660222,577,141.4814475470194,1495,214.46211786700232,1423,223.45021816950637,173,43.863424398922618,3247,364.44478319767455,963,193.04144632694815,821,159.2262541165872,188,66.068146636635717,1462,221.50395030337495,832,140.12137595670404,1409,263.3040068058213,897,181.46625030566977,248,56.850681614207581,293,81.320354155647891,472,101.9803902718557,303,70.936591403872796,225,77.466121627457255]
[null,"35 to 64 years:",2019,169.70562748477141,1150,144.61673485458036,1351,143.68368035375485,3751,150.80119362922829,856,94.921019800674287,1171,90.553851381374173,1330,80.156097709406993,16834,457.20017497809425,550,79.208585393251411,1441,75.166481891864535,2336,152.76125163142649,3653,233.30880823492285,1923,221.14474897677312,581,60.307545133258408,6034,306.77679182102418,2404,147.92227688891217,2615,162.00308639035245,835,95.587656106842587,1088,120.21647141718975,2250,154.98709623707387,3308,251.46172671005024,1759,146.98639392814562,696,79.906195003891909,827,98.412397592986224,1368,98.081598681913832,921,87.692645073575008,580,72.835430938520574]
[null,"With hearing difficulty",134,72.006944109578768,35,34.785054261852174,40,28.42534080710379,52,33.120990323358392,23,15.652475842498529,26,21.095023109728988,55,35.468295701936398,553,140.75865870347016,53,30.232432915661949,30,20.124611797498108,98,68.680419334771102,190,76.419892698171196,37,31.953090617340916,17,13.416407864998739,103,84.480767041972342,0,21.213203435596427,69,45.541190146942803,18,14.866068747318506,52,43.68065933568311,38,32.893768406797051,81,56.727418414731339,46,42.544094772365298,40,21.189620100417091,28,27.313000567495326,29,22.825424421026653,23,18.384776310850235,7,8.4852813742385695]
[null,"With no hearing difficulty",1885,176.08236708995025,1115,144.03124660989366,1311,145.04137340772803,3699,152.43359209832983,833,95.671312314611839,1145,89.872131386765275,1275,84.403791384036765,16281,464.46205442425543,497,74.966659255965254,1411,77.336925203941234,2238,162.73291000900832,3463,235.84740829612693,1886,218.03669415949233,564,60.959002616512684,5931,305.88396492787916,2404,147.92227688891217,2546,169.72919607421701,817,95.524865872714003,1036,116.69190203266035,2212,154.98709623707387,3227,256.84431081883048,1713,158.80806024884254,656,79.906195003891909,799,95.482982777037293,1339,97.948966303887048,898,86.977008456258133,573,72.862884927787476]
[null,"65 to 74 years:",315,86.284413424441851,322,78.87331614684399,273,94.873600121424715,697,112.80514172678478,145,42.426406871192853,246,46.861498055439924,265,54.488530903301111,2747,238.09661904361431,109,33.120990323358392,225,45.221676218380054,433,118.06777714516353,573,120.20815280171308,105,45.276925690687087,113,38.948684188300895,1138,165.07574019219177,705,135.5912976558599,409,95.482982777037293,223,50.328918128646478,654,116.82465493208187,316,77.89736837660179,467,126.65701717630967,302,67.623960250786851,110,31.906112267087632,260,72.801098892805186,262,72.180329730474355,164,31.144823004794873,162,38.013155617496423]
[null,"With hearing difficulty",27,22.360679774997898,35,25.495097567963924,14,20.248456731316587,43,36.878177829171548,28,21.189620100417091,11,11.401754250991379,15,18.601075237738275,172,70.007142492748557,22,12.727922061357855,40,23.409399821439251,33,31.016124838541646,61,45.486261662176638,6,14.212670403551895,21,15.811388300841896,99,53.488316481265329,47,36.715119501371639,24,26.419689627245813,0,15.556349186104045,30,31.780497164141408,34,39.849717690342551,48,46.486557196677836,28,23.259406699226016,5,12.083045973594572,35,28.284271247461902,25,16.278820596099706,16,10,5,5]
[null,"With no hearing difficulty",288,83.86298349093002,287,73.593477971896391,259,94.031909477581067,654,115.42096863222038,117,37.536648758246919,235,44.598206241955516,250,52.32590180780452,2575,222.14634815814551,87,32.756678708318397,185,46.043457732885351,400,114.06138698087096,512,116.77756633874505,99,44.598206241955516,92,35.383612025908263,1039,167.04789732289359,658,138.68309197591464,385,92.021736562618727,223,50.328918128646478,624,116.03878661895772,282,75.663729752107784,419,116.04309544302927,274,68.007352543677214,105,31.384709652950431,225,67.742158217759794,237,70.767224051816527,148,30.413812651491099,157,38.013155617496423]
[null,"75 years and over:",257,84.504437753291981,193,69.06518659932803,205,79.309520235593411,378,97.836598469080073,120,34.985711369071801,115,38.897300677553446,81,38.275318418009277,2477,245.81497106563708,65,21.633307652783937,65,30.675723300355934,234,75.927597090912869,575,113.35784048754634,194,66.370174024180471,46,25.495097567963924,641,135.6244815658294,262,74.966659255965254,308,104.44615837837216,188,59.640590204993778,831,142.05632685663809,238,70.178344238091,345,97.8008179924892,184,67.201190465645766,53,19.849433241279208,166,48.270073544588683,212,58.137767414994535,71,30.413812651491099,144,43.278170016764804]
[null,"With hearing difficulty",58,42.5205832509386,57,39.824615503479755,30,27.294688127912362,161,70.434366611761334,46,25.495097567963924,31,19.104973174542799,25,30.083217912982647,609,155.03870484495155,12,10.295630140987001,12,17.029386365926403,40,31.144823004794873,89,46.324939287601879,23,22.022715545545239,8,7.2111025509279782,175,70.292247083159893,69,42.154477816715982,91,51.224993899462788,65,46.872166581031863,169,80.156097709406993,45,40.521599178709621,54,48.270073544588683,39,29.546573405388315,12,14.212670403551895,41,25,78,44.598206241955516,24,13.038404810405298,35,23.086792761230392]
[null,"With no hearing difficulty",199,82.37718130647589,136,60.21627686929839,175,74.202425836356596,217,70.661163307718056,74,23.430749027719962,84,36.069377593742864,56,27.658633371878661,1868,250.45957757690161,53,21.095023109728988,53,28.792360097775937,194,75.432088662584434,486,103.24727599312246,171,66.241980646716783,38,24.758836806279895,466,128.89142717807107,193,68.680419334771102,217,100.62305898749054,123,40,662,127.02755606560333,193,59.481089431852205,291,92.913938674452936,145,61.911226768656427,41,18.384776310850235,125,45.343136195018538,134,54.451813560247928,47,26.248809496813376,109,39.66106403010388]

{"sheet":"ACS_Table_B18103","index":28,"n_rows":125,"n_cols":56,"rows_kept":125,"cut":false,"hidden":true,"merged":[]}
["B18103. SEX BY AGE BY VISION DIFFICULTY\n\n\n"]
["Universe:  Civilian non-institutionalized population"]
["Data Set: 2015-2019 American Community Survey 5-Year Estimates"]
[]
[null,null,"Allenstown",null,"Andover",null,"Boscawen",null,"Bow",null,"Bradford",null,"Canterbury",null,"Chichester",null,"Concord",null,"Danbury",null,"Dunbarton",null,"Epsom",null,"Franklin",null,"Henniker",null,"Hill",null,"Hooksett",null,"Hopkinton",null,"Loudon",null,"Newbury",null,"New London",null,"Northfield",null,"Pembroke",null,"Pittsfield",null,"Salisbury",null,"Sutton",null,"Warner",null,"Webster",null,"Wilmot"]
[null,null,"Estimate","Margin Of Error","Estimate","Margin Of Error","Estimate","Margin Of Error","Estimate","Margin Of Error","Estimate","Margin Of Error","Estimate","Margin Of Error","Estimate","Margin Of Error","Estimate","Margin Of Error","Estimate","Margin Of Error","Estimate","Margin Of Error","Estimate","Margin Of Error","Estimate","Margin Of Error","Estimate","Margin Of Error","Estimate","Margin Of Error","Estimate","Margin Of Error","Estimate","Margin Of Error","Estimate","Margin Of Error","Estimate","Margin Of Error","Estimate","Margin Of Error","Estimate","Margin Of Error","Estimate","Margin Of Error","Estimate","Margin Of Error","Estimate","Margin Of Error","Estimate","Margin Of Error","Estimate","Margin Of Error","Estimate","Margin Of Error","Estimate","Margin Of Error"]
[null,"Total:",4360,35,2782,321,3472,160,7862,25,1582,212,2357,148,2656,29,40939,267,1129,165,2819,24,4612,122,8461,50,4962,17,920,148,14197,139,5691,29,5534,19,2096,214,4296,79,4834,79,7165,50,4117,16,1418,183,1905,279,2834,117,1759,180,1643,215]
[null,"Male:",2219,138,1493,284,1593,149,4040,168,797,129,1157,102,1329,84,19808,424,554,89,1420,74,2325,156,3990,213,2590,175,473,84,6801,256,2793,159,2394,351,1056,123,1915,159,2335,143,3445,215,2133,164,727,100,942,158,1313,96,900,106,779,125]
[null,"Under 5 years:",125,82,20,17,93,71,244,78,16,12,56,27,101,48,1140,193,43,24,62,43,172,92,168,85,172,67,31,19,222,90,158,88,77,75,29,16,104,71,187,97,159,87,68,77,17,14,36,26,66,38,29,15,19,23]
[null,"With vision difficulty",0,11,0,11,0,11,0,16,0,11,0,11,0,11,43,57,0,11,0,11,56,65,0,16,0,11,0,11,0,18,0,16,0,16,0,11,0,11,0,11,0,16,0,11,0,11,0,11,0,11,0,11,0,11]
[null,"With no vision difficulty",125,82,20,17,93,71,244,78,16,12,56,27,101,48,1097,194,43,24,62,43,116,64,168,85,172,67,31,19,222,90,158,88,77,75,29,16,104,71,187,97,159,87,68,77,17,14,36,26,66,38,29,15,19,23]
[null,"5 to 17  years:",286,78,309,113,304,86,867,148,169,61,78,31,258,69,3143,291,49,23,282,52,346,106,671,148,406,146,65,33,995,220,417,145,249,123,105,43,188,84,273,88,386,116,482,140,89,37,231,87,194,62,129,43,92,60]
[null,"With vision difficulty",0,11,16,23,0,11,0,16,0,11,0,11,0,11,3,7,3,5,0,11,17,26,15,24,7,10,0,11,0,18,0,16,0,16,0,11,0,11,11,19,0,16,0,11,0,11,0,11,0,11,0,11,11,17]
[null,"With no vision difficulty",286,78,293,99,304,86,867,148,169,61,78,31,258,69,3140,291,46,21,282,52,329,102,656,147,399,146,65,33,995,220,417,145,249,123,105,43,188,84,262,89,386,116,482,140,89,37,231,87,194,62,129,43,81,49]
[null,"18 to 34  years:",529,113,339,125,188,88,677,145,147,65,225,53,220,48,5116,328,94,28,229,54,475,123,732,180,746,180,78,31,1791,260,355,99,299,164,201,73,565,124,540,140,825,221,320,121,168,50,134,46,304,76,148,50,147,46]
[null,"With vision difficulty",0,11,0,11,0,11,0,16,0,11,5,7,5,8,60,40,0,11,7,9,0,11,0,16,10,16,0,11,0,18,0,16,0,16,5,8,0,11,0,11,17,26,0,11,6,8,0,11,0,11,0,11,0,11]
[null,"With no vision difficulty",529,113,339,125,188,88,677,145,147,65,220,55,215,49,5056,327,94,28,222,54,475,123,732,180,736,180,78,31,1791,260,355,99,299,164,196,71,565,124,540,140,808,219,320,121,162,49,134,46,304,76,148,50,147,46]
[null,"35 to 64  years:",1007,112,625,201,744,119,1677,99,298,47,571,71,551,51,7646,355,277,54,666,60,930,114,1679,176,901,119,217,38,2812,191,1407,121,1241,199,451,68,493,79,1068,127,1553,195,941,152,300,49,353,70,509,62,469,60,342,59]
[null,"With vision difficulty",12,17,15,14,17,26,19,21,3,6,5,7,6,8,221,104,7,7,3,5,14,21,59,53,0,11,11,17,21,24,0,16,31,29,21,27,23,27,23,26,37,43,12,17,12,10,0,11,42,34,15,18,11,17]
[null,"With no vision difficulty",995,108,610,202,727,118,1658,99,295,45,566,72,545,51,7425,318,270,55,663,60,916,118,1620,175,901,119,206,36,2791,187,1407,121,1210,199,430,68,470,77,1045,127,1516,198,929,153,288,49,353,70,467,65,454,58,331,59]
[null,"65 to 74  years:",155,70,93,41,184,64,338,70,125,35,169,40,159,37,1636,164,54,30,141,30,293,88,485,119,257,84,50,24,666,125,294,83,398,152,188,48,235,73,216,71,372,99,207,84,117,34,96,37,181,44,106,26,103,33]
[null,"With vision difficulty",10,15,0,11,8,13,18,18,3,5,0,11,0,11,32,33,0,11,0,11,0,11,19,21,0,11,4,6,13,20,0,16,0,16,17,26,0,11,27,24,25,26,25,40,10,9,3,5,11,17,0,11,3,5]
[null,"With no vision difficulty",145,66,93,41,176,66,320,68,122,35,169,40,159,37,1604,164,54,30,141,30,293,88,466,119,257,84,46,23,653,126,294,83,398,152,171,46,235,73,189,68,347,98,182,73,107,32,93,36,170,41,106,26,100,33]
[null,"75  years and Older:",117,46,107,48,80,50,237,64,42,20,58,31,40,19,1127,177,37,20,40,15,109,49,255,70,108,50,32,24,315,95,162,78,130,79,82,32,330,96,51,26,150,69,115,59,36,17,92,38,59,26,19,11,76,34]
[null,"With vision difficulty",0,11,0,11,16,18,16,18,10,9,0,11,5,7,111,59,3,4,4,6,8,12,47,34,0,11,4,5,23,37,22,33,0,16,5,8,0,11,0,11,19,30,18,19,0,11,4,5,0,11,4,7,0,11]
[null,"With no vision difficulty",117,46,107,48,64,49,221,62,32,19,58,31,35,19,1016,164,34,19,36,15,101,48,208,64,108,50,28,24,292,86,140,77,130,79,77,34,330,96,51,26,131,65,97,54,36,17,88,39,59,26,15,9,76,34]
[null,"Female:",2141,147,1289,134,1879,142,3822,172,785,111,1200,95,1327,81,21131,401,575,96,1399,74,2287,145,4471,210,2372,172,447,73,7396,298,2898,158,3140,353,1040,122,2381,157,2499,150,3720,221,1984,165,691,100,963,148,1521,93,859,102,864,117]
[null,"Under 5 years:",111,77,60,40,88,57,237,113,28,16,68,36,100,44,949,187,49,24,61,31,47,39,54,39,116,71,21,16,343,145,160,82,159,89,26,18,123,60,161,70,184,96,111,119,22,21,58,32,92,51,34,20,58,31]
[null,"With vision difficulty",0,11,0,11,0,11,0,16,0,11,0,11,0,11,0,24,0,11,0,11,0,11,0,16,0,11,0,11,0,18,0,16,0,16,0,11,0,11,0,11,0,16,0,11,0,11,0,11,0,11,0,11,0,11]
[null,"With no vision difficulty",111,77,60,40,88,57,237,113,28,16,68,36,100,44,949,187,49,24,61,31,47,39,54,39,116,71,21,16,343,145,160,82,159,89,26,18,123,60,161,70,184,96,111,119,22,21,58,32,92,51,34,20,58,31]
[null,"5 to 17  years:",266,77,206,65,270,126,711,105,130,45,159,40,132,39,2702,286,106,39,328,62,397,109,536,134,227,95,44,27,1128,189,455,134,435,176,149,52,212,88,391,82,798,209,324,139,125,52,130,61,242,69,71,29,96,36]
[null,"With vision difficulty",0,11,0,11,0,11,0,16,0,11,0,11,0,11,64,55,5,9,0,11,0,11,19,29,0,11,0,11,0,18,19,26,0,16,0,11,0,11,19,30,0,16,0,11,0,11,0,11,0,11,0,11,0,11]
[null,"With no vision difficulty",266,77,206,65,270,126,711,105,130,45,159,40,132,39,2638,288,101,35,328,62,397,109,517,130,227,95,44,27,1128,189,436,128,435,176,149,52,212,88,372,80,798,209,324,139,125,52,130,61,242,69,71,29,96,36]
[null,"18 to 34  years:",459,148,201,78,349,101,399,104,105,52,231,58,275,63,5038,280,76,32,175,58,419,102,898,186,804,194,59,30,1894,260,375,141,521,182,121,45,787,158,694,118,577,154,269,91,74,29,107,36,353,84,155,52,151,53]
[null,"With vision difficulty",0,11,0,11,0,11,14,22,0,11,0,11,2,5,56,42,0,11,18,29,0,11,0,16,8,12,0,11,39,43,0,16,0,16,0,11,0,11,11,17,58,46,2,5,0,11,0,11,0,11,0,11,0,11]
[null,"With no vision difficulty",459,148,201,78,349,101,385,101,105,52,231,58,273,63,4982,283,76,32,157,52,419,102,898,186,796,195,59,30,1855,255,375,141,521,182,121,45,787,158,683,121,519,158,267,90,74,29,107,36,353,84,155,52,151,53]
[null,"35 to 64  years:",884,98,550,86,901,85,1719,102,330,56,544,61,614,60,8612,314,276,51,685,60,1016,132,2001,174,819,93,235,44,2811,171,1281,132,1396,143,456,67,594,87,994,109,1586,165,981,169,325,50,469,84,571,58,429,61,370,62]
[null,"With vision difficulty",49,50,0,11,28,37,7,12,0,11,0,11,17,14,147,82,14,17,4,6,8,12,31,28,0,11,0,11,36,34,0,16,42,44,12,13,0,11,8,14,58,55,58,63,0,11,0,11,5,8,6,8,0,11]
[null,"With no vision difficulty",835,105,550,86,873,90,1712,102,330,56,544,61,597,60,8465,307,262,48,681,60,1008,132,1970,176,819,93,235,44,2775,175,1281,132,1354,145,444,66,594,87,986,108,1528,160,923,165,325,50,469,84,566,57,423,62,370,62]
[null,"65 to 74  years:",172,62,139,50,143,49,408,75,123,30,102,35,127,28,1995,192,42,23,98,22,285,81,620,125,322,90,68,29,720,109,400,101,454,135,200,46,323,88,194,58,396,127,175,75,87,26,140,47,147,51,128,36,85,28]
[null,"With vision difficulty",21,32,0,11,0,11,16,17,0,11,0,11,0,11,81,49,0,11,0,11,18,21,16,21,0,11,8,8,15,16,17,24,0,16,0,11,0,11,0,11,72,89,0,11,3,5,8,6,4,6,0,11,0,11]
[null,"With no vision difficulty",151,57,139,50,143,49,392,74,123,30,102,35,127,28,1914,181,42,23,98,22,267,81,604,122,322,90,60,28,705,111,383,102,454,135,200,46,323,88,194,58,324,95,175,75,84,26,132,47,143,50,128,36,85,28]
[null,"75  years and Older:",249,109,133,61,128,55,348,75,69,37,96,31,79,32,1835,196,26,15,52,20,123,60,362,119,84,49,20,20,500,130,227,92,175,97,88,36,342,88,65,34,179,82,124,79,58,29,59,33,116,45,42,18,104,42]
[null,"With vision difficulty",0,11,16,19,13,21,24,26,0,11,9,11,0,11,108,56,0,11,0,11,0,11,54,57,0,11,0,11,31,38,0,16,26,41,12,13,17,27,0,11,13,21,10,16,9,9,0,11,0,11,3,5,10,9]
[null,"With no vision difficulty",249,109,117,60,115,54,324,72,69,37,87,30,79,32,1727,205,26,15,52,20,123,60,308,100,84,49,20,20,469,137,227,92,149,89,76,35,325,83,65,34,166,79,114,77,49,29,59,33,116,45,39,18,94,41]
[]
[]
[{"$f":"A1& \"-Calculated\"","v":"B18103. SEX BY AGE BY VISION DIFFICULTY\n\n\n-Calculated"}]
[{"$f":"A2","v":"Universe:  Civilian non-institutionalized population"}]
[{"$f":"A3","v":"Data Set: 2015-2019 American Community Survey 5-Year Estimates"}]
[]
[]
[null,null,"Allenstown",null,"Andover",null,"Boscawen",null,"Bow",null,"Bradford",null,"Canterbury",null,"Chichester",null,"Concord",null,"Danbury",null,"Dunbarton",null,"Epsom",null,"Franklin",null,"Henniker",null,"Hill",null,"Hooksett",null,"Hopkinton",null,"Loudon",null,"Newbury",null,"New London",null,"Northfield",null,"Pembroke",null,"Pittsfield",null,"Salisbury",null,"Sutton",null,"Warner",null,"Webster",null,"Wilmot"]
[null,null,"Estimate","Margin Of Error","Estimate","Margin Of Error","Estimate","Margin Of Error","Estimate","Margin Of Error","Estimate","Margin Of Error","Estimate","Margin Of Error","Estimate","Margin Of Error","Estimate","Margin Of Error","Estimate","Margin Of Error","Estimate","Margin Of Error","Estimate","Margin Of Error","Estimate","Margin Of Error","Estimate","Margin Of Error","Estimate","Margin Of Error","Estimate","Margin Of Error","Estimate","Margin Of Error","Estimate","Margin Of Error","Estimate","Margin Of Error","Estimate","Margin Of Error","Estimate","Margin Of Error","Estimate","Margin Of Error","Estimate","Margin Of Error","Estimate","Margin Of Error","Estimate","Margin Of Error","Estimate","Margin Of Error","Estimate","Margin Of Error","Estimate","Margin Of Error"]
[null,"Total",{"$f":"C7","v":4360},35,2782,321,3472,160,7862,25,1582,212,2357,148,2656,29,40939,267,1129,165,2819,24,4612,122,8461,50,4962,17,920,148,14197,139,5691,29,5534,19,2096,214,4296,79,4834,79,7165,50,4117,16,1418,183,1905,279,2834,117,1759,180,1643,215]
[null,"Under 5 years:",{"$f":"C28+C9","v":236},{"$f":"SQRT((D28^2)+(D9^2))","v":112.48555462813881},{"$f":"E28+E9","v":80},{"$f":"SQRT((F28^2)+(F9^2))","v":43.46262762420146},{"$f":"G28+G9","v":181},{"$f":"SQRT((H28^2)+(H9^2))","v":91.049437120720299},{"$f":"I28+I9","v":481},{"$f":"SQRT((J28^2)+(J9^2))","v":137.30622709840949},{"$f":"K28+K9","v":44},{"$f":"SQRT((L28^2)+(L9^2))","v":20},{"$f":"M28+M9","v":124},{"$f":"SQRT((N28^2)+(N9^2))","v":45},{"$f":"O28+O9","v":201},{"$f":"SQRT((P28^2)+(P9^2))","v":65.115282384398824},{"$f":"Q28+Q9","v":2089},{"$f":"SQRT((R28^2)+(R9^2))","v":268.73406929527937},{"$f":"S28+S9","v":92},{"$f":"SQRT((T28^2)+(T9^2))","v":33.941125496954278},{"$f":"U28+U9","v":123},{"$f":"SQRT((V28^2)+(V9^2))","v":53.009433122794285},{"$f":"W28+W9","v":219},{"$f":"SQRT((X28^2)+(X9^2))","v":99.924971853886447},{"$f":"Y28+Y9","v":222},{"$f":"SQRT((Z28^2)+(Z9^2))","v":93.520051325905499},{"$f":"AA28+AA9","v":288},{"$f":"SQRT((AB28^2)+(AB9^2))","v":97.621718894926246},{"$f":"AC28+AC9","v":52},{"$f":"SQRT((AD28^2)+(AD9^2))","v":24.839484696748443},{"$f":"AE28+AE9","v":565},{"$f":"SQRT((AF28^2)+(AF9^2))","v":170.66048165876012},{"$f":"AG28+AG9","v":318},{"$f":"SQRT((AH28^2)+(AH9^2))","v":120.28299963003916},{"$f":"AI28+AI9","v":236},{"$f":"SQRT((AJ28^2)+(AJ9^2))","v":116.38728452885221},{"$f":"AK28+AK9","v":55},{"$f":"SQRT((AL28^2)+(AL9^2))","v":24.083189157584592},{"$f":"AM28+AM9","v":227},{"$f":"SQRT((AN28^2)+(AN9^2))","v":92.956979296876895},{"$f":"AO28+AO9","v":348},{"$f":"SQRT((AP28^2)+(AP9^2))","v":119.6202324023825},{"$f":"AQ28+AQ9","v":343},{"$f":"SQRT((AR28^2)+(AR9^2))","v":129.5569372901351},{"$f":"AS28+AS9","v":179},{"$f":"SQRT((AT28^2)+(AT9^2))","v":141.7391971192161},{"$f":"AU28+AU9","v":39},{"$f":"SQRT((AV28^2)+(AV9^2))","v":25.238858928247925},{"$f":"AW28+AW9","v":94},{"$f":"SQRT((AX28^2)+(AX9^2))","v":41.231056256176608},{"$f":"AY28+AY9","v":158},{"$f":"SQRT((AZ28^2)+(AZ9^2))","v":63.600314464631381},{"$f":"BA28+BA9","v":63},{"$f":"SQRT((BB28^2)+(BB9^2))","v":25},{"$f":"BC28+BC9","v":77},{"$f":"SQRT((BD28^2)+(BD9^2))","v":38.600518131237564}]
[null,"With vision difficulty",{"$f":"C29+C10","v":0},{"$f":"SQRT((D29^2)+(D10^2))","v":15.556349186104045},{"$f":"E29+E10","v":0},{"$f":"SQRT((F29^2)+(F10^2))","v":15.556349186104045},{"$f":"G29+G10","v":0},{"$f":"SQRT((H29^2)+(H10^2))","v":15.556349186104045},{"$f":"I29+I10","v":0},{"$f":"SQRT((J29^2)+(J10^2))","v":22.627416997969522},{"$f":"K29+K10","v":0},{"$f":"SQRT((L29^2)+(L10^2))","v":15.556349186104045},{"$f":"M29+M10","v":0},{"$f":"SQRT((N29^2)+(N10^2))","v":15.556349186104045},{"$f":"O29+O10","v":0},{"$f":"SQRT((P29^2)+(P10^2))","v":15.556349186104045},{"$f":"Q29+Q10","v":43},{"$f":"SQRT((R29^2)+(R10^2))","v":61.846584384264908},{"$f":"S29+S10","v":0},{"$f":"SQRT((T29^2)+(T10^2))","v":15.556349186104045},{"$f":"U29+U10","v":0},{"$f":"SQRT((V29^2)+(V10^2))","v":15.556349186104045},56,65.924198895398035,0,{"$f":"SQRT((Z29^2)+(Z10^2))","v":22.627416997969522},0,{"$f":"SQRT((AB29^2)+(AB10^2))","v":15.556349186104045},0,{"$f":"SQRT((AD29^2)+(AD10^2))","v":15.556349186104045},0,{"$f":"SQRT((AF29^2)+(AF10^2))","v":25.45584412271571},0,{"$f":"SQRT((AH29^2)+(AH10^2))","v":22.627416997969522},0,{"$f":"SQRT((AJ29^2)+(AJ10^2))","v":22.627416997969522},0,{"$f":"SQRT((AL29^2)+(AL10^2))","v":15.556349186104045},0,{"$f":"SQRT((AN29^2)+(AN10^2))","v":15.556349186104045},0,{"$f":"SQRT((AP29^2)+(AP10^2))","v":15.556349186104045},0,{"$f":"SQRT((AR29^2)+(AR10^2))","v":22.627416997969522},0,{"$f":"SQRT((AT29^2)+(AT10^2))","v":15.556349186104045},0,{"$f":"SQRT((AV29^2)+(AV10^2))","v":15.556349186104045},0,{"$f":"SQRT((AX29^2)+(AX10^2))","v":15.556349186104045},0,{"$f":"SQRT((AZ29^2)+(AZ10^2))","v":15.556349186104045},0,{"$f":"SQRT((BB29^2)+(BB10^2))","v":15.556349186104045},0,{"$f":"SQRT((BD29^2)+(BD10^2))","v":15.556349186104045}]
[null,"With no vision difficulty",236,112.48555462813881,80,43.46262762420146,181,91.049437120720299,481,137.30622709840949,44,20,124,45,201,65.115282384398824,2046,269.45314991664134,92,33.941125496954278,123,53.009433122794285,163,74.94664769020693,222,{"$f":"SQRT((Z30^2)+(Z11^2))","v":93.520051325905499},288,97.621718894926246,52,24.839484696748443,565,170.66048165876012,318,120.28299963003916,236,116.38728452885221,55,24.083189157584592,227,92.956979296876895,348,119.6202324023825,343,129.5569372901351,179,141.7391971192161,39,25.238858928247925,94,41.231056256176608,158,63.600314464631381,63,25,77,38.600518131237564]
[null,"5 to 17 years:",552,109.60383204979651,515,130.36103712382777,574,152.55163060419906,1578,181.46349495146399,299,75.802374632988901,237,50.606323715519977,390,79.259068881737434,5845,408.0159310615212,155,45.276925690687087,610,80.919713296575637,743,152.04275714416653,1207,199.64969321288726,633,174.18668146560461,109,42.638011210655684,2123,290.0362046365936,872,197.43606560099397,684,214.72074888095935,254,67.475921631349351,400,121.6552506059644,664,120.28299963003916,1184,239.03347045968269,806,197.28405916343064,214,63.820059542435402,361,106.25441167311595,436,92.763139231054481,200,51.86520991955976,188,69.971422738143602]
[null,"With vision difficulty",0,15.556349186104045,16,25.495097567963924,0,15.556349186104045,0,22.627416997969522,0,15.556349186104045,0,15.556349186104045,0,15.556349186104045,67,55.443665102516448,8,10.295630140987001,0,15.556349186104045,17,28.231188426986208,34,37.643060449437421,7,14.866068747318506,0,15.556349186104045,0,25.45584412271571,19,30.528675044947494,0,22.627416997969522,0,15.556349186104045,0,15.556349186104045,30,35.510561809129406,0,22.627416997969522,0,15.556349186104045,0,15.556349186104045,0,15.556349186104045,0,15.556349186104045,0,15.556349186104045,11,20.248456731316587]
[null,"With no vision difficulty",552,109.60383204979651,499,118.43141475132347,574,152.55163060419906,1578,181.46349495146399,299,75.802374632988901,237,50.606323715519977,390,79.259068881737434,5778,409.42032191868543,147,40.8166632639171,610,80.919713296575637,726,149.28161306738349,1173,196.23710148695125,626,174.18668146560461,109,42.638011210655684,2123,290.0362046365936,853,193.41406360448559,684,214.72074888095935,254,67.475921631349351,400,121.6552506059644,634,119.67038062946069,1184,239.03347045968269,806,197.28405916343064,214,63.820059542435402,361,106.25441167311595,436,92.763139231054481,200,51.86520991955976,177,60.802960454241045]
[null,"18 to 34 years:",988,186.20687420178666,540,147.33974345029924,537,133.9589489358587,1076,178.44046626256053,252,83.240615086627031,456,78.568441501661468,495,79.202272694664515,10154,431.25862310219372,170,42.5205832509386,404,79.246451024635803,894,159.7904878270293,1630,258.83585532147589,1550,264.64315596667149,137,43.139309220245984,3685,367.69552621700473,730,172.28464818433474,820,244.98979570586201,322,85.755466298073387,1352,200.84820138602188,1234,183.09560344257315,1402,269.36406590337918,589,151.40013210033868,242,57.801384066473702,241,58.412327466040935,657,113.27841806805037,303,72.138755187485728,298,70.178344238091]
[null,"With vision difficulty",0,15.556349186104045,0,15.556349186104045,0,15.556349186104045,14,27.202941017470888,0,15.556349186104045,5,13.038404810405298,7,9.4339811320566032,116,58,0,15.556349186104045,25,30.364452901377952,0,15.556349186104045,0,22.627416997969522,18,20,0,15.556349186104045,39,46.61544808322666,0,22.627416997969522,0,22.627416997969522,5,13.601470508735444,0,15.556349186104045,11,20.248456731316587,75,52.839379254491625,2,12.083045973594572,6,13.601470508735444,0,15.556349186104045,0,15.556349186104045,0,15.556349186104045,0,15.556349186104045]
[null,"With no vision difficulty",988,186.20687420178666,540,147.33974345029924,537,133.9589489358587,1062,176.70880000724355,252,83.240615086627031,451,79.93122043357026,488,79.81227975693966,10038,432.45577808603736,170,42.5205832509386,379,74.966659255965254,894,159.7904878270293,1630,258.83585532147589,1532,265.37709019431196,137,43.139309220245984,3646,364.17715469260287,730,172.28464818433474,820,244.98979570586201,317,84.059502734670033,1352,200.84820138602188,1223,185.04323819042943,1327,270.04629232781554,587,150.80119362922829,236,56.938563381947034,241,58.412327466040935,657,113.27841806805037,303,72.138755187485728,298,70.178344238091]
[null,"35 to 64 years:",1891,148.82204137828509,1175,218.62525014279572,1645,146.23952953972466,3396,142.1442928857856,628,73.109506905736964,1115,93.605555390692487,1165,78.746428490440124,16258,473.94197957133952,553,74.276510418839678,1351,84.852813742385706,1946,174.41330224498358,3680,247.4914139924858,1720,151.02979838429235,452,58.137767414994535,5623,256.36302385484532,2688,179.06702655709677,2637,245.05101509685693,907,95.462034338264544,1087,117.51595636338071,2062,167.36188335460378,3139,255.44079548889601,1922,227.29936207565564,625,70.007142492748557,822,109.34349546269316,1080,84.899941107164494,898,85.562842402528915,712,85.586213843118443]
[null,"With vision difficulty",61,52.810983706043572,15,17.804493814764857,45,45.221676218380054,26,24.186773244895647,3,12.529964086141668,5,13.038404810405298,23,16.124515496597098,368,132.43866504914644,21,18.384776310850235,7,7.810249675906654,22,24.186773244895647,90,59.941638282582836,0,15.556349186104045,11,20.248456731316587,57,41.617304093369626,0,22.627416997969522,73,52.697248505021591,33,29.966648127543394,23,29.154759474226502,31,29.529646120466801,95,69.814038702828242,70,65.253352404301808,12,14.866068747318506,0,15.556349186104045,47,34.928498393145958,21,19.697715603592208,11,20.248456731316587]
[null,"With no vision difficulty",1830,150.6286825275983,1160,219.5449840010015,1600,148.40485167271319,3370,142.1442928857856,625,71.840100222647237,1110,94.36630754670864,1142,78.746428490440124,15890,442.01018087822365,532,73,1344,84.852813742385706,1924,177.05366418123066,3590,248.1954874690513,1720,151.02979838429235,441,56.850681614207581,5566,256.11325619733157,2688,179.06702655709677,2564,246.22347572885897,874,94.762861923857074,1064,116.18089343777659,2031,166.71232707871366,3044,254.56629784792801,1852,225.01999911119012,613,70.007142492748557,822,109.34349546269316,1033,86.452298986203942,877,84.899941107164494,701,85.586213843118443]
[null,"65 to 74 years:",327,93.509357820487679,232,64.660652641308843,327,80.603970125546539,746,102.59142264341595,248,46.097722286464439,271,53.150729063673246,286,46.400431032480725,3631,252.50742563338608,96,37.802116342871599,239,37.20215047547655,578,119.60351165413162,1105,172.58621034138272,579,123.10970717209915,118,37.643060449437421,1386,165.8493292117879,694,130.728726758888,852,203.29535164385831,388,66.483080554378645,558,114.33722053644648,410,91.678787077491378,768,161.02794788483146,382,112.60994627474076,204,42.80186911806539,236,59.816385714952723,328,67.357256476195644,234,44.407206622349037,188,43.278170016764804]
[null,"With vision difficulty",31,35.341194094144583,0,15.556349186104045,8,17.029386365926403,34,24.758836806279895,3,12.083045973594572,0,15.556349186104045,0,15.556349186104045,113,59.076221950967721,0,15.556349186104045,0,15.556349186104045,18,23.706539182259394,35,29.698484809834994,0,15.556349186104045,12,10,28,25.612496949731394,17,28.844410203711913,0,22.627416997969522,17,28.231188426986208,0,15.556349186104045,27,26.40075756488817,97,92.720008628127289,25,41.484937025383083,13,10.295630140987001,11,7.810249675906654,15,18.027756377319946,0,15.556349186104045,3,12.083045973594572]
[null,"With no vision difficulty",296,87.206651122491792,232,64.660652641308843,319,82.200973230248309,712,100.4987562112089,245,46.097722286464439,271,53.150729063673246,286,46.400431032480725,3518,244.24782496472716,96,37.802116342871599,239,37.20215047547655,560,119.60351165413162,1070,170.42593699317015,579,123.10970717209915,106,36.235341863986875,1358,167.91962362987834,677,131.50285168010618,852,203.29535164385831,371,65.053823869162372,558,114.33722053644648,383,89.375611886017325,671,136.48809471891678,357,104.66135867644753,191,41.231056256176608,225,59.203040462462738,313,64.660652641308843,234,44.407206622349037,185,43.278170016764804]
[null,"75 years and over:",366,118.30891766895681,240,77.620873481300123,208,74.330343736592525,585,98.595131725658746,111,42.059481689626182,154,43.840620433565945,119,37.215588131856791,2962,264.09278672466615,63,25,92,25,232,77.466121627457255,617,138.06158046321215,192,70.007142492748557,52,31.240998703626616,815,161.01242188104618,389,120.61509026651682,305,125.09996003196804,170,48.166378315169183,672,130.23056476879765,116,42.80186911806539,329,107.16809226630845,239,98.600202839547947,94,33.61547262794322,151,50.328918128646478,175,51.97114584074513,61,21.095023109728988,180,54.037024344425184]
[null,"With vision difficulty",0,15.556349186104045,16,21.95449840010015,29,27.658633371878661,40,31.622776601683793,10,14.212670403551895,9,15.556349186104045,5,13.038404810405298,219,81.344944526380985,3,11.704699910719626,4,12.529964086141668,8,16.278820596099706,101,66.370174024180471,0,15.556349186104045,4,12.083045973594572,54,53.037722424704477,22,36.674241641784498,26,44.011362169330773,17,15.264337522473747,17,29.154759474226502,0,15.556349186104045,32,36.61966684720111,28,24.839484696748443,9,14.212670403551895,4,12.083045973594572,0,15.556349186104045,7,8.6023252670426267,10,14.212670403551895]
[null,"With no vision difficulty",366,118.30891766895681,224,76.837490849194182,179,72.917761896536561,545,95.015788161757627,101,41.593268686170845,145,43.139309220245984,114,37.215588131856791,2743,262.52809373474679,60,24.207436873820409,88,25,224,76.837490849194182,516,118.72657663724664,192,70.007142492748557,48,31.240998703626616,761,161.75598906995685,367,119.97082978791136,279,119.00420160649792,153,48.795491595023407,655,126.90547663517127,116,42.80186911806539,297,102.30347012687302,211,94.047860156411858,85,33.61547262794322,147,51.088159097779204,175,51.97114584074513,54,20.124611797498108,170,{"$f":"SQRT((BD45^2)+(BD26^2))","v":53.263495942343098}]
[]
[]
[]
[]
[]
[]
[]
[]
[]
[]
[]
[]
[]
[]
[]
[]
[]
[]
[]
[]
[]
[]
[]
[]
[]
[]
["B18103. SEX BY AGE BY VISION DIFFICULTY\n\n\n-Calculated"]
["Universe:  Civilian non-institutionalized population"]
["Data Set: 2010-2014 American Community Survey 5-Year Estimates"]
[]
[]
[null,null,"Allenstown",null,"Andover",null,"Boscawen",null,"Bow",null,"Bradford",null,"Canterbury",null,"Chichester",null,"Concord",null,"Danbury",null,"Dunbarton",null,"Epsom",null,"Franklin",null,"Henniker",null,"Hill",null,"Hooksett",null,"Hopkinton",null,"Loudon",null,"Newbury",null,"New London",null,"Northfield",null,"Pembroke",null,"Pittsfield",null,"Salisbury",null,"Sutton",null,"Warner",null,"Webster",null,"Wilmot"]
[null,null,"Estimate","Margin Of Error","Estimate","Margin Of Error","Estimate","Margin Of Error","Estimate","Margin Of Error","Estimate","Margin Of Error","Estimate","Margin Of Error","Estimate","Margin Of Error","Estimate","Margin Of Error","Estimate","Margin Of Error","Estimate","Margin Of Error","Estimate","Margin Of Error","Estimate","Margin Of Error","Estimate","Margin Of Error","Estimate","Margin Of Error","Estimate","Margin Of Error","Estimate","Margin Of Error","Estimate","Margin Of Error","Estimate","Margin Of Error","Estimate","Margin Of Error","Estimate","Margin Of Error","Estimate","Margin Of Error","Estimate","Margin Of Error","Estimate","Margin Of Error","Estimate","Margin Of Error","Estimate","Margin Of Error","Estimate","Margin Of Error","Estimate"]
[null,"Total",4283,41,2421,253,3446,335,7611,29,1706,205,2291,204,2551,18,40333,422,1243,186,2779,17,4490,91,8322,73,4822,22,1164,184,13669,50,5591,23,5332,24,1749,234,4465,78,4772,59,7121,29,4078,30,1402,161,2014,287,2846,21,1891,199,1367,181]
[null,"Under 5 years:",298,111.89280584559492,59,33.286633954186478,276,112.36102527122117,163,75.166481891864535,52,19.209372712298546,124,44.687805943008662,78,42.01190307520001,2294,306.2058131388103,67,44.204072210600685,144,48.60041152089147,177,83.240615086627031,594,166.17159805454119,358,127.31457104353767,44,21.213203435596427,685,193.04144632694815,180,101.25709851659784,207,97.04638066409278,55,35.440090293338699,28,33.837848631377263,379,144.31216164966833,228,114.40279716860073,327,106.66770832824712,65,37.215588131856791,117,69.835521047673154,101,53.254107822777392,70,31.76476034853718,44,23.323807579381203]
[null,"With vision difficulty",0,15.556349186104045,0,15.556349186104045,0,15.556349186104045,0,21.213203435596427,0,15.556349186104045,0,15.556349186104045,0,15.556349186104045,11,16.763054614240211,0,15.556349186104045,0,15.556349186104045,0,15.556349186104045,0,21.213203435596427,0,15.556349186104045,0,15.556349186104045,14,29.410882339705484,0,21.213203435596427,0,21.213203435596427,0,15.556349186104045,0,15.556349186104045,0,15.556349186104045,0,21.213203435596427,0,15.556349186104045,4,12.083045973594572,0,15.556349186104045,0,15.556349186104045,0,15.556349186104045,0,15.556349186104045]
[null,"With no vision difficulty",298,111.89280584559492,59,33.286633954186478,276,112.36102527122117,163,75.166481891864535,52,19.209372712298546,124,44.687805943008662,78,42.01190307520001,2283,308.37152916571273,67,44.204072210600685,144,48.60041152089147,177,83.240615086627031,594,166.17159805454119,358,127.31457104353767,44,21.213203435596427,671,193.82982226685345,180,101.25709851659784,207,97.04638066409278,55,35.440090293338699,28,33.837848631377263,379,144.31216164966833,228,114.40279716860073,327,106.66770832824712,61,36.235341863986875,117,69.835521047673154,101,53.254107822777392,70,31.76476034853718,44,23.323807579381203]
[null,"5 to 17 years:",538,119.75391434103521,363,91.285267157411553,564,184.80530295421721,1742,177.34147850968199,265,70.604532432415411,339,87.664131775772461,396,74.518454090245328,6346,403.86260039770951,195,62.289646009589745,452,67.178865724273734,722,162.43152403397562,1378,254.84897488512681,810,185.39687160251654,207,63.702433234531945,1919,267.30132809247317,1077,221.32555207205516,970,172.03778654702577,260,61.032778078668514,383,107.61505470890214,757,159.84054554461454,1364,207.45360927204905,609,117.38824472663352,223,59.548299723837623,351,93.861600242058515,431,105.20931517693668,362,78.746428490440124,209,59.405386961116584]
[null,"With vision difficulty",26,42.449970553582247,0,15.556349186104045,0,15.556349186104045,0,21.213203435596427,0,15.556349186104045,0,15.556349186104045,0,15.556349186104045,47,36.76955262170047,0,15.556349186104045,0,15.556349186104045,0,15.556349186104045,0,21.213203435596427,0,15.556349186104045,0,15.556349186104045,0,24.041630560342615,0,21.213203435596427,33,47.434164902525687,0,15.556349186104045,18,28.231188426986208,9,17.804493814764857,20,36.249137920783717,6,14.866068747318506,0,15.556349186104045,4,12.083045973594572,0,15.556349186104045,5,13.038404810405298,0,15.556349186104045]
[null,"With no vision difficulty",512,114.58621208504974,363,91.285267157411553,564,184.80530295421721,1742,177.34147850968199,265,70.604532432415411,339,87.664131775772461,396,74.518454090245328,6299,401.69889220658797,195,62.289646009589745,452,67.178865724273734,722,162.43152403397562,1378,254.84897488512681,810,185.39687160251654,207,63.702433234531945,1919,267.30132809247317,1077,221.32555207205516,937,172.03778654702577,260,61.032778078668514,365,108.40664186294121,748,159.84054554461454,1344,204.50183373260984,603,116.69190203266035,223,59.548299723837623,347,94.641428560646744,431,105.20931517693668,357,77.987178433380961,209,59.405386961116584]
[null,"18 to 34 years:",856,121.69634341261039,334,106.94391053257777,777,163.3431969810803,880,159.96249560443849,268,49.819674828324601,296,63.7808748764079,401,86.683331731077345,9635,474.69147875225229,257,64.381674411279491,452,108.97706180660222,588,142.30249470757707,1549,211.92923347193044,1432,224.16288720481811,173,43.863424398922618,3252,363.68805314444961,963,193.04144632694815,823,158.54967675779096,188,66.068146636635717,1481,221.14474897677312,832,140.12137595670404,1409,263.3040068058213,897,181.46625030566977,255,58.796258384356399,293,81.320354155647891,472,101.9803902718557,303,70.936591403872796,228,78.10249675906654]
[null,"With vision difficulty",0,15.556349186104045,0,15.556349186104045,0,15.556349186104045,0,21.213203435596427,0,15.556349186104045,0,15.556349186104045,0,15.556349186104045,133,98.493654617949886,0,15.556349186104045,0,15.556349186104045,0,15.556349186104045,23,29.732137494637012,0,15.556349186104045,2,12.083045973594572,43,49.040799340956916,0,21.213203435596427,0,21.213203435596427,0,15.556349186104045,0,15.556349186104045,8,17.804493814764857,0,21.213203435596427,0,15.556349186104045,0,15.556349186104045,0,15.556349186104045,12,19.416487838947599,11,20.248456731316587,0,15.556349186104045]
[null,"With no vision difficulty",856,121.69634341261039,334,106.94391053257777,777,163.3431969810803,880,159.96249560443849,268,49.819674828324601,296,63.7808748764079,401,86.683331731077345,9502,461.89717470450063,257,64.381674411279491,452,108.97706180660222,588,142.30249470757707,1526,215.23010941780427,1432,224.16288720481811,171,43.139309220245984,3209,366.31816771762766,963,193.04144632694815,823,158.54967675779096,188,66.068146636635717,1481,221.14474897677312,824,140.80127840328723,1409,263.3040068058213,897,181.46625030566977,255,58.796258384356399,293,81.320354155647891,460,101.31633629380802,292,67.94115100585212,228,78.10249675906654]
[null,"35 to 64 years:",2019,169.70562748477141,1150,144.61673485458036,1351,143.68368035375485,3751,150.80119362922829,856,94.921019800674287,1171,90.553851381374173,1330,80.156097709406993,16834,457.20017497809425,550,79.208585393251411,1441,75.166481891864535,2336,152.76125163142649,3653,233.30880823492285,1923,221.14474897677312,581,60.307545133258408,6034,306.77679182102418,2404,147.92227688891217,2615,162.00308639035245,835,95.587656106842587,1088,120.21647141718975,2250,154.98709623707387,3308,251.46172671005024,1759,146.98639392814562,696,79.906195003891909,827,98.412397592986224,1368,98.081598681913832,921,87.692645073575008,580,72.835430938520574]
[null,"With vision difficulty",113,89.067390216621931,12,19.416487838947599,21,22.803508501982758,68,59.093146810776631,24,17.088007490635061,20,26.683328128252668,6,14.212670403551895,435,164.26807358704855,8,14.212670403551895,9,17.029386365926403,12,21.095023109728988,136,60.959002616512684,50,54.561891462814962,9,14.212670403551895,16,16.970562748477139,8,20.518284528683193,0,21.213203435596427,13,13.45362404707371,27,23.853720883753127,17,19.416487838947599,56,48.414873747640819,0,15.556349186104045,15,19.416487838947599,11,21.95449840010015,15,14.212670403551895,7,13.038404810405298,3,12.529964086141668]
[null,"With no vision difficulty",1906,159.36436239009021,1138,142.30249470757707,1330,144.42298985964803,3683,160.70469812671936,832,92.314679222754165,1151,88.41379982785493,1324,80.156097709406993,16399,465.40842278583659,542,79.208585393251411,1432,76.694197955256044,2324,151.32745950421557,3517,232.55106965997814,1873,216.640254800441,572,60.307545133258408,6018,306.77679182102418,2396,147.92227688891217,2615,162.00308639035245,822,95.524865872714003,1061,118.80235687897779,2233,154.20765220960988,3252,252.87348615463821,1759,146.98639392814562,681,78.492037812761623,816,95.482982777037293,1353,98.858484714262133,914,86.313382508160345,577,72.138755187485728]
[null,"65 to 74 years:",315,86.284413424441851,322,78.87331614684399,273,94.873600121424715,697,112.80514172678478,145,42.426406871192853,246,46.861498055439924,265,54.488530903301111,2747,238.09661904361431,109,33.120990323358392,225,45.221676218380054,433,118.06777714516353,573,120.20815280171308,105,45.276925690687087,113,38.948684188300895,1138,165.07574019219177,705,135.5912976558599,409,95.482982777037293,223,50.328918128646478,654,116.82465493208187,316,77.89736837660179,467,126.65701717630967,302,67.623960250786851,110,31.906112267087632,260,72.801098892805186,262,72.180329730474355,164,31.144823004794873,162,38.013155617496423]
[null,"With vision difficulty",10,19.416487838947599,16,15.811388300841896,59,68.658575575087482,23,26.90724809414742,8,17.029386365926403,0,15.556349186104045,2,11.704699910719626,121,61.400325732035007,16,20.248456731316587,0,15.556349186104045,0,15.556349186104045,17,29.154759474226502,6,14.866068747318506,5,13.038404810405298,19,21.023796041628639,38,34.985711369071801,0,21.213203435596427,0,15.556349186104045,18,31.016124838541646,0,15.556349186104045,21,35.341194094144583,29,27.459060435491963,0,15.556349186104045,0,15.556349186104045,0,15.556349186104045,2,12.083045973594572,0,15.556349186104045]
[null,"With no vision difficulty",305,84.599054368237475,306,74.411020689142546,214,60.307545133258408,674,115.36463929644994,137,41.725292090050132,246,46.861498055439924,263,53.758720222862451,2626,235.59286916203556,93,28.844410203711913,225,45.221676218380054,433,118.06777714516353,556,120.91732712891069,99,43.840620433565945,108,38.288379438153292,1119,165.65325230734229,667,133.41664064126334,409,95.482982777037293,223,50.328918128646478,636,116.03878661895772,316,77.89736837660179,446,124.80785231707178,273,65,110,31.906112267087632,260,72.801098892805186,262,72.180329730474355,162,31.144823004794873,162,38.013155617496423]
[null,"75 years and over:",257,84.504437753291981,193,69.06518659932803,205,79.309520235593411,378,97.836598469080073,120,34.985711369071801,115,38.897300677553446,81,38.275318418009277,2477,245.81497106563708,65,21.633307652783937,65,30.675723300355934,234,75.927597090912869,575,113.35784048754634,194,66.370174024180471,46,25.495097567963924,641,135.6244815658294,262,74.966659255965254,308,104.44615837837216,188,59.640590204993778,831,142.05632685663809,238,70.178344238091,345,97.8008179924892,184,67.201190465645766,53,19.849433241279208,166,48.270073544588683,212,58.137767414994535,71,30.413812651491099,144,43.278170016764804]
[null,"With vision difficulty",64,53.075418038862395,0,15.556349186104045,23,22.825424421026653,38,33.015148038438355,3,12.083045973594572,5,13.601470508735444,30,30.083217912982647,194,79.981247802219244,8,6.7082039324993694,12,17.029386365926403,19,25.495097567963924,49,36.138621999185304,7,16.278820596099706,2,11.704699910719626,19,25.495097567963924,0,21.213203435596427,0,21.213203435596427,19,26.40075756488817,45,36.891733491393431,37,39.812058474788763,44,50.289163842720633,35,27.202941017470888,3,11.704699910719626,4,12.083045973594572,27,28.861739379323623,0,15.556349186104045,8,14.866068747318506]
[null,"With no vision difficulty",193,67.675697262754525,193,69.06518659932803,182,75.742986473996396,340,90.443352436760108,117,34.132096331752024,110,38.183766184073569,51,26.40075756488817,2283,246.91699009991191,57,21.95449840010015,53,28.792360097775937,215,78.243210568074218,526,104.66135867644753,187,66.370174024180471,44,25.495097567963924,622,134.79243302203577,262,74.966659255965254,308,104.44615837837216,169,56.400354608814297,786,144.84474446799925,201,59.941638282582836,301,100.20977996183805,149,59.076221950967721,50,19.209372712298546,162,49.040799340956916,185,56.568542494923804,71,30.413812651491099,136,43.278170016764804]

{"sheet":"ACS_Table_B18104","index":29,"n_rows":122,"n_cols":56,"rows_kept":122,"cut":false,"hidden":true,"merged":[]}
["B18104. SEX BY AGE BY COGNITIVE DIFFICULTY\n\n"]
["Universe:  Civilian non-institutionalized population 5 years and over"]
["Data Set: 2015-2019 American Community Survey 5-Year Estimates"]
[]
[null,null,"Allenstown",null,"Andover",null,"Boscawen",null,"Bow",null,"Bradford",null,"Canterbury",null,"Chichester",null,"Concord",null,"Danbury",null,"Dunbarton",null,"Epsom",null,"Franklin",null,"Henniker",null,"Hill",null,"Hooksett",null,"Hopkinton",null,"Loudon",null,"Newbury",null,"New London",null,"Northfield",null,"Pembroke",null,"Pittsfield",null,"Salisbury",null,"Sutton",null,"Warner",null,"Webster",null,"Wilmot"]
[null,null,"Estimate","Margin Of Error","Estimate","Margin Of Error","Estimate","Margin Of Error","Estimate","Margin Of Error","Estimate","Margin Of Error","Estimate","Margin Of Error","Estimate","Margin Of Error","Estimate","Margin Of Error","Estimate","Margin Of Error","Estimate","Margin Of Error","Estimate","Margin Of Error","Estimate","Margin Of Error","Estimate","Margin Of Error","Estimate","Margin Of Error","Estimate","Margin Of Error","Estimate","Margin Of Error","Estimate","Margin Of Error","Estimate","Margin Of Error","Estimate","Margin Of Error","Estimate","Margin Of Error","Estimate","Margin Of Error","Estimate","Margin Of Error","Estimate","Margin Of Error","Estimate","Margin Of Error","Estimate","Margin Of Error","Estimate","Margin Of Error","Estimate","Margin Of Error"]
[null,"Total:",4124,118,2702,315,3291,164,7381,145,1538,204,2233,149,2455,69,38850,340,1037,142,2696,60,4393,143,8239,99,4674,121,868,137,13632,221,5373,118,5298,110,2041,209,4069,121,4486,143,6822,146,3938,191,1379,176,1811,261,2676,124,1696,172,1566,191]
[null,"Male:",2094,127,1473,284,1500,124,3796,181,781,125,1101,105,1228,86,18668,394,511,79,1358,76,2153,149,3822,195,2418,187,442,77,6579,266,2635,178,2317,352,1027,118,1811,150,2148,164,3286,220,2065,197,710,98,906,154,1247,103,871,100,760,113]
[null,"5 to 17  years:",286,78,309,113,304,86,867,148,169,61,78,31,258,69,3143,291,49,23,282,52,346,106,671,148,406,146,65,33,995,220,417,145,249,123,105,43,188,84,273,88,386,116,482,140,89,37,231,87,194,62,129,43,92,60]
[null,"With cognitive difficulty",63,49,0,11,30,35,24,25,0,11,0,11,8,12,70,41,6,9,7,11,23,27,136,98,7,10,0,11,86,61,4,10,0,16,0,11,7,12,7,10,53,50,56,55,0,11,6,9,21,17,3,4,11,17]
[null,"With no cognitive difficulty",223,64,309,113,274,87,843,141,169,61,78,31,250,70,3073,293,43,20,275,52,323,106,535,143,399,146,65,33,909,214,413,146,249,123,105,43,181,82,266,88,333,116,426,156,89,37,225,86,173,59,126,43,81,50]
[null,"18 to 34  years:",529,113,339,125,188,88,677,145,147,65,225,53,220,48,5116,328,94,28,229,54,475,123,732,180,746,180,78,31,1791,260,355,99,299,164,201,73,565,124,540,140,825,221,320,121,168,50,134,46,304,76,148,50,147,46]
[null,"With cognitive difficulty",56,51,8,11,0,11,0,16,6,8,22,12,30,23,475,140,0,11,10,10,21,34,30,38,37,39,4,5,36,34,0,16,0,16,12,12,7,12,105,115,84,65,68,56,19,16,18,17,6,9,30,33,4,5]
[null,"With no cognitive difficulty",473,111,331,125,188,88,677,145,141,65,203,52,190,41,4641,367,94,28,219,52,454,128,702,178,709,173,74,30,1755,249,355,99,299,164,189,68,558,124,435,127,741,198,252,109,149,48,116,40,298,77,118,39,143,46]
[null,"35 to 64  years:",1007,112,625,201,744,119,1677,99,298,47,571,71,551,51,7646,355,277,54,666,60,930,114,1679,176,901,119,217,38,2812,191,1407,121,1241,199,451,68,493,79,1068,127,1553,195,941,152,300,49,353,70,509,62,469,60,342,59]
[null,"With cognitive difficulty",100,59,88,174,25,30,25,23,18,15,40,36,0,11,502,147,8,8,7,8,66,74,85,47,0,11,12,10,67,60,17,27,33,34,6,8,9,14,25,27,72,85,114,78,4,6,3,5,11,13,26,20,3,5]
[null,"With no cognitive difficulty",907,120,537,92,719,118,1652,99,280,50,531,73,551,51,7144,345,269,54,659,60,864,120,1594,183,901,119,205,39,2745,194,1390,121,1208,200,445,69,484,79,1043,133,1481,203,827,144,296,49,350,70,498,64,443,59,339,59]
[null,"65 to 74  years:",155,70,93,41,184,64,338,70,125,35,169,40,159,37,1636,164,54,30,141,30,293,88,485,119,257,84,50,24,666,125,294,83,398,152,188,48,235,73,216,71,372,99,207,84,117,34,96,37,181,44,106,26,103,33]
[null,"With cognitive difficulty",11,16,0,11,9,14,0,16,4,5,11,12,4,6,121,72,3,5,8,8,8,12,23,22,0,11,0,11,51,35,0,16,72,76,0,11,0,11,0,11,30,33,0,11,4,5,0,11,4,6,0,11,3,6]
[null,"With no cognitive difficulty",144,66,93,41,175,64,338,70,121,35,158,36,155,37,1515,167,51,30,133,30,285,88,462,119,257,84,50,24,615,121,294,83,326,140,188,48,235,73,216,71,342,97,207,84,113,34,96,37,177,44,106,26,100,32]
[null,"75  years and Older:",117,46,107,48,80,50,237,64,42,20,58,31,40,19,1127,177,37,20,40,15,109,49,255,70,108,50,32,24,315,95,162,78,130,79,82,32,330,96,51,26,150,69,115,59,36,17,92,38,59,26,19,11,76,34]
[null,"With cognitive difficulty",1,2,0,11,0,11,13,16,4,5,0,11,4,7,167,78,0,11,4,6,23,21,37,30,14,22,0,11,35,38,0,16,24,31,5,8,20,22,0,11,0,16,0,11,0,11,0,11,9,9,3,4,0,11]
[null,"With no cognitive difficulty",116,45,107,48,80,50,224,62,38,20,58,31,36,17,960,166,37,20,36,15,86,49,218,70,94,44,32,24,280,87,162,78,106,76,77,30,310,100,51,26,150,69,115,59,36,17,92,38,50,25,16,10,76,34]
[null,"Female:",2030,119,1229,125,1791,140,3585,164,757,107,1132,98,1227,71,20182,381,526,84,1338,71,2240,139,4417,205,2256,170,426,69,7053,289,2738,158,2981,298,1014,118,2258,159,2338,152,3536,222,1873,189,669,93,905,138,1429,91,825,98,806,108]
[null,"5 to 17  years:",266,77,206,65,270,126,711,105,130,45,159,40,132,39,2702,286,106,39,328,62,397,109,536,134,227,95,44,27,1128,189,455,134,435,176,149,52,212,88,391,82,798,209,324,139,125,52,130,61,242,69,71,29,96,36]
[null,"With cognitive difficulty",20,21,7,10,26,40,0,16,12,10,1,3,0,11,56,43,0,11,6,10,7,12,26,21,0,11,0,11,26,39,10,18,18,29,0,11,0,11,0,11,75,87,41,52,0,11,0,11,6,9,0,11,0,11]
[null,"With no cognitive difficulty",246,74,199,64,244,121,711,105,118,43,158,40,132,39,2646,299,106,39,322,63,390,107,510,135,227,95,44,27,1102,186,445,131,417,174,149,52,212,88,391,82,723,182,283,132,125,52,130,61,236,70,71,29,96,36]
[null,"18 to 34  years:",459,148,201,78,349,101,399,104,105,52,231,58,275,63,5038,280,76,32,175,58,419,102,898,186,804,194,59,30,1894,260,375,141,521,182,121,45,787,158,694,118,577,154,269,91,74,29,107,36,353,84,155,52,151,53]
[null,"With cognitive difficulty",57,39,30,37,37,44,8,12,3,4,0,11,16,16,306,142,4,6,22,27,0,11,23,28,23,37,0,11,89,64,0,16,0,16,0,11,23,26,68,64,35,43,32,39,4,7,0,11,5,7,0,11,0,11]
[null,"With no cognitive difficulty",402,152,171,73,312,111,391,105,102,52,231,58,259,63,4732,284,72,31,153,52,419,102,875,188,781,192,59,30,1805,243,375,141,521,182,121,45,764,146,626,143,542,158,237,87,70,28,107,36,348,84,155,52,151,53]
[null,"35 to 64  years:",884,98,550,86,901,85,1719,102,330,56,544,61,614,60,8612,314,276,51,685,60,1016,132,2001,174,819,93,235,44,2811,171,1281,132,1396,143,456,67,594,87,994,109,1586,165,981,169,325,50,469,84,571,58,429,61,370,62]
[null,"With cognitive difficulty",131,71,6,8,50,60,17,21,4,6,16,12,23,18,593,207,10,11,9,10,29,26,241,104,20,25,13,10,91,73,66,60,26,29,22,16,20,19,25,26,55,50,75,45,3,5,14,19,27,15,30,19,4,5]
[null,"With no cognitive difficulty",753,101,544,86,851,107,1702,100,326,56,528,62,591,61,8019,331,266,51,676,62,987,129,1760,190,799,93,222,44,2720,184,1215,136,1370,146,434,67,574,83,969,112,1531,168,906,173,322,50,455,81,544,60,399,56,366,63]
[null,"65 to 74  years:",172,62,139,50,143,49,408,75,123,30,102,35,127,28,1995,192,42,23,98,22,285,81,620,125,322,90,68,29,720,109,400,101,454,135,200,46,323,88,194,58,396,127,175,75,87,26,140,47,147,51,128,36,85,28]
[null,"With cognitive difficulty",18,22,0,11,0,11,0,16,0,11,0,11,0,11,108,66,0,11,0,11,12,19,9,14,0,11,7,7,44,37,30,35,21,35,0,11,7,11,0,11,11,20,9,13,0,11,0,11,0,11,0,11,0,11]
[null,"With no cognitive difficulty",154,61,139,50,143,49,408,75,123,30,102,35,127,28,1887,188,42,23,98,22,273,81,611,127,322,90,61,26,676,105,370,103,433,136,200,46,316,88,194,58,385,125,166,73,87,26,140,47,147,51,128,36,85,28]
[null,"75  years and Older:",249,109,133,61,128,55,348,75,69,37,96,31,79,32,1835,196,26,15,52,20,123,60,362,119,84,49,20,20,500,130,227,92,175,97,88,36,342,88,65,34,179,82,124,79,58,29,59,33,116,45,42,18,104,42]
[null,"With cognitive difficulty",19,22,13,14,11,19,44,32,0,11,0,11,8,11,242,113,0,11,18,14,9,14,35,30,0,11,0,11,80,64,38,43,26,42,20,17,34,26,10,15,0,16,6,12,7,8,0,11,0,11,4,6,5,7]
[null,"With no cognitive difficulty",230,107,120,62,117,56,304,79,69,37,96,31,71,31,1593,199,26,15,34,16,114,55,327,118,84,49,20,20,420,116,189,84,149,89,68,36,308,91,55,31,179,82,118,79,51,28,59,33,116,45,38,18,99,42]
[]
[]
["B18104. SEX BY AGE BY COGNITIVE DIFFICULTY\n\n-Calculated"]
["Universe:  Civilian non-institutionalized population 5 years and over"]
["Data Set: 2010-2014 American Community Survey 5-Year Estimates"]
[]
[]
[null,null,"Allenstown",null,"Andover",null,"Boscawen",null,"Bow",null,"Bradford",null,"Canterbury",null,"Chichester",null,"Concord",null,"Danbury",null,"Dunbarton",null,"Epsom",null,"Franklin",null,"Henniker",null,"Hill",null,"Hooksett",null,"Hopkinton",null,"Loudon",null,"Newbury",null,"New London",null,"Northfield",null,"Pembroke",null,"Pittsfield",null,"Salisbury",null,"Sutton",null,"Warner",null,"Webster",null,"Wilmot"]
[null,null,"Estimate","Margin Of Error","Estimate","Margin Of Error","Estimate","Margin Of Error","Estimate","Margin Of Error","Estimate","Margin Of Error","Estimate","Margin Of Error","Estimate","Margin Of Error","Estimate","Margin Of Error","Estimate","Margin Of Error","Estimate","Margin Of Error","Estimate","Margin Of Error","Estimate","Margin Of Error","Estimate","Margin Of Error","Estimate","Margin Of Error","Estimate","Margin Of Error","Estimate","Margin Of Error","Estimate","Margin Of Error","Estimate","Margin Of Error","Estimate","Margin Of Error","Estimate","Margin Of Error","Estimate","Margin Of Error","Estimate","Margin Of Error","Estimate","Margin Of Error","Estimate","Margin Of Error","Estimate","Margin Of Error","Estimate","Margin Of Error","Estimate"]
[null,"Total:",3985,113,2362,246,3170,341,7448,80,1654,200,2167,184,2473,50,38039,484,1176,171,2635,56,4313,123,7728,218,4464,128,1120,176,12984,210,5411,111,5125,104,1694,220,4437,82,4393,154,6893,106,3751,129,1337,147,1897,263,2745,51,1821,194,1323,175]
[null,"5 to 17  years:",538,119.75391434103521,363,91.285267157411553,564,184.80530295421721,1742,177.34147850968199,265,70.604532432415411,339,87.664131775772461,396,74.518454090245328,6346,403.86260039770951,195,62.289646009589745,452,67.178865724273734,722,162.43152403397562,1378,254.84897488512681,810,185.39687160251654,207,63.702433234531945,1919,267.30132809247317,1077,221.32555207205516,970,172.03778654702577,260,61.032778078668514,383,107.61505470890214,757,159.84054554461454,1364,207.45360927204905,609,117.38824472663352,223,59.548299723837623,351,93.861600242058515,431,105.20931517693668,362,78.746428490440124,209,59.405386961116584]
[null,"With cognitive difficulty",126,89.442719099991592,0,15.556349186104045,6,15.556349186104045,41,34.409301068170507,5,12.529964086141668,11,11.401754250991379,44,45.354161881794269,409,117.17508267545622,10,12.649110640673518,14,19.416487838947599,29,35.735136770411273,116,85.164546614186818,74,62.968245965724662,10,17.029386365926403,69,47.853944456021594,69,49.203658400570177,66,54.708317466359723,0,15.556349186104045,30,32.893768406797051,28,26.419689627245813,114,85.088189544730596,49,37.696153649941529,8,13.601470508735444,0,15.556349186104045,14,15.264337522473747,6,13.038404810405298,0,15.556349186104045]
[null,"With no cognitive difficulty",412,99.488692824863264,363,91.285267157411553,558,184.80530295421721,1701,183.50476833041697,260,69.404610797842537,328,84.380092438915952,352,80.802227692063042,5937,397.75620673975664,185,59.548299723837623,438,65.115282384398824,693,161.20794025109308,1262,247.12952069714376,736,181.37254478007415,197,60.108235708594876,1850,265.96616326141941,1008,217.09214633422371,904,178.1937148162078,260,61.032778078668514,353,107.61505470890214,729,156.47363995254921,1250,229.38177782901587,560,118.25819210524064,215,58.051701094799967,351,93.861600242058515,417,105.60303025955268,356,78.746428490440124,209,59.405386961116584]
[null,"18 to 34  years:",856,121.69634341261039,334,106.94391053257777,777,163.3431969810803,880,159.96249560443849,268,49.819674828324601,296,63.7808748764079,401,86.683331731077345,9635,474.69147875225229,257,64.381674411279491,452,108.97706180660222,588,142.30249470757707,1549,211.92923347193044,1432,224.16288720481811,173,43.863424398922618,3252,363.68805314444961,963,193.04144632694815,823,158.54967675779096,188,66.068146636635717,1481,221.14474897677312,832,140.12137595670404,1409,263.3040068058213,897,181.46625030566977,255,58.796258384356399,293,81.320354155647891,472,101.9803902718557,303,70.936591403872796,228,78.10249675906654]
[null,"With cognitive difficulty",38,30.528675044947494,25,25.96150997149434,30,29.529646120466801,19,21.633307652783937,10,9.2195444572928871,0,15.556349186104045,30,32.280024783137947,535,154.20116731075677,0,15.556349186104045,24,23.706539182259394,5,13.038404810405298,88,62.81719509815764,2,11.704699910719626,27,25.632011235952593,62,61.294371682887821,13,27.459060435491963,58,63.28506932918696,0,15.556349186104045,26,22.360679774997898,51,33.61547262794322,58,60.406953242155822,59,54.708317466359723,2,12.083045973594572,14,16.492422502470642,33,24.698178070456937,7,13.601470508735444,14,20.248456731316587]
[null,"With no cognitive difficulty",818,124.57929201917949,309,105.19030373565806,747,163.3431969810803,861,159.90622251807463,258,49.819674828324601,296,63.7808748764079,371,84.02380615040002,9100,478.68152251784278,257,64.381674411279491,428,106.07544484940895,583,141.4814475470194,1461,207.80038498520642,1430,224.16288720481811,146,38.948684188300895,3190,361.91297296449596,950,197.31446981911895,765,157.0350279396288,188,66.068146636635717,1455,223.55536227073597,781,138.65785228395831,1351,260.51679408437377,838,173.87639287723908,253,59.464274989274024,279,77.233412458598508,439,101.9803902718557,296,68.680419334771102,214,77.336925203941234]
[null,"35 to 64  years:",2019,169.70562748477141,1150,144.61673485458036,1351,143.68368035375485,3751,150.80119362922829,856,94.921019800674287,1171,90.553851381374173,1330,80.156097709406993,16834,457.20017497809425,550,79.208585393251411,1441,75.166481891864535,2336,152.76125163142649,3653,233.30880823492285,1923,221.14474897677312,581,60.307545133258408,6034,306.77679182102418,2404,147.92227688891217,2615,162.00308639035245,835,95.587656106842587,1088,120.21647141718975,2250,154.98709623707387,3308,251.46172671005024,1759,146.98639392814562,696,79.906195003891909,827,98.412397592986224,1368,98.081598681913832,921,87.692645073575008,580,72.835430938520574]
[null,"With cognitive difficulty",162,99.403219263764285,89,57.697486947006624,48,37.336309405188942,95,63.071388124885914,19,10.295630140987001,3,12.529964086141668,42,37.947331922020552,1008,200.11246837716035,19,12.806248474865697,3,12.083045973594572,137,87.321245982864909,333,129.07362240210043,59,52.55473337388365,12,15.556349186104045,106,63.28506932918696,59,47.381430961928537,144,113.21660655575224,7,14.866068747318506,81,40.024992192379003,60,42.449970553582247,106,66.573267908372955,108,76.216796049164913,15,11.661903789690601,17,20.615528128088304,60,44.77722635447622,23,12.649110640673518,2,11.704699910719626]
[null,"With no cognitive difficulty",1857,166.6433316997713,1061,134.1118935814419,1303,138.03260484392808,3656,160.86329600005092,837,94.921019800674287,1168,89.872131386765275,1288,83.737685661833282,15826,498.35930813018831,531,79.93122043357026,1438,75.166481891864535,2199,173.21951391226105,3320,231.04112188093271,1864,208.19462048765814,569,59.665735560705194,5928,309.69824022748338,2345,156.20499351813308,2471,152.16109883935513,828,94.260277954183863,1007,120.93386622447825,2190,158.90248582070703,3202,246.56439321199645,1651,128.72451204024819,681,80.610173055266415,810,96.938124595021947,1308,93.434469014384618,898,86.977008456258133,578,72.835430938520574]
[null,"65 to 74  years:",315,86.284413424441851,322,78.87331614684399,273,94.873600121424715,697,112.80514172678478,145,42.426406871192853,246,46.861498055439924,265,54.488530903301111,2747,238.09661904361431,109,33.120990323358392,225,45.221676218380054,433,118.06777714516353,573,120.20815280171308,105,45.276925690687087,113,38.948684188300895,1138,165.07574019219177,705,135.5912976558599,409,95.482982777037293,223,50.328918128646478,654,116.82465493208187,316,77.89736837660179,467,126.65701717630967,302,67.623960250786851,110,31.906112267087632,260,72.801098892805186,262,72.180329730474355,164,31.144823004794873,162,38.013155617496423]
[null,"With cognitive difficulty",46,51.244511901275828,29,29.832867780352597,14,19.416487838947599,28,29.732137494637012,3,11.704699910719626,0,15.556349186104045,2,11.704699910719626,146,78.492037812761623,10,8.9442719099991592,6,14.866068747318506,0,15.556349186104045,48,34.205262752974143,0,15.556349186104045,2,11.704699910719626,25,26.870057685088806,11,23.430749027719962,23,26.419689627245813,0,15.556349186104045,18,31.016124838541646,0,15.556349186104045,14,26.627053911388696,29,27.459060435491963,0,15.556349186104045,0,15.556349186104045,23,31.016124838541646,5,6.4031242374328485,0,15.556349186104045]
[null,"With no cognitive difficulty",269,74.625732827222535,293,69.296464556281663,259,93.813645062965122,669,116.84605256490268,142,41.725292090050132,246,46.861498055439924,263,53.758720222862451,2601,228.87769659798658,99,32.249030993194197,219,44.407206622349037,433,118.06777714516353,525,119.50313803411188,105,45.276925690687087,111,38.288379438153292,1113,162.80663377147749,694,137.90576492663388,386,91.285267157411553,223,50.328918128646478,636,116.03878661895772,316,77.89736837660179,453,126.65701717630967,273,65,110,31.906112267087632,260,72.801098892805186,239,65.215028942721474,159,30.413812651491099,162,38.013155617496423]
[null,"75  years and Older:",257,84.504437753291981,193,69.06518659932803,205,79.309520235593411,378,97.836598469080073,120,34.985711369071801,115,38.897300677553446,81,38.275318418009277,2477,245.81497106563708,65,21.633307652783937,65,30.675723300355934,234,75.927597090912869,575,113.35784048754634,194,66.370174024180471,46,25.495097567963924,641,135.6244815658294,262,74.966659255965254,308,104.44615837837216,188,59.640590204993778,831,142.05632685663809,238,70.178344238091,345,97.8008179924892,184,67.201190465645766,53,19.849433241279208,166,48.270073544588683,212,58.137767414994535,71,30.413812651491099,144,43.278170016764804]
[null,"With cognitive difficulty",28,30.413812651491099,70,53.225933528685054,15,17.204650534085253,83,60.307545133258408,27,22.360679774997898,0,15.556349186104045,27,28.284271247461902,359,112.80514172678478,10,16.278820596099706,0,15.556349186104045,10,19.416487838947599,36,29.410882339705484,36,36.687872655688281,2,11.704699910719626,77,62.425956140054431,49,38.275318418009277,54,42.43819034784589,8,14.212670403551895,80,41.593268686170845,47,28.319604517012593,32,37.161808352124091,12,21.095023109728988,3,12.083045973594572,12,18.601075237738275,41,36.687872655688281,5,5.8309518948453007,2,11.704699910719626]
[null,"With no cognitive difficulty",229,79.511005527536881,123,48.104053883222775,190,75.822160349069449,295,82.619610262939389,93,24.758836806279895,115,38.897300677553446,54,27.658633371878661,2118,238.07561823924769,55,18.439088914585774,65,30.675723300355934,224,75.286120898874842,539,109.78615577567146,158,62.968245965724662,44,25.495097567963924,564,122.29881438509533,213,69.296464556281663,254,101.96568050084302,180,58.821764679410968,751,139.26952286842948,191,64.536811201050213,313,93.861600242058515,172,64.899922958351809,50,18.601075237738275,154,48.270073544588683,171,55.172456896534889,66,29,142,44.045431091090478]
[]
[]
[]
[]
[]
[]
[]
[]
[]
[]
[]
[]
[]
[]
[]
[]
[]
[]
[]
[]
[]
[]
[]
[]
[]
[]
[]
[]
[]
[]
[]
[]
[]
[]
[]
["B18104. SEX BY AGE BY COGNITIVE DIFFICULTY\n\n-Calculated"]
["Universe:  Civilian non-institutionalized population 5 years and over"]
["Data Set:  2009-2013 American Community Survey 5-Year Estimates"]
[]
[]
[null,null,"Allenstown",null,"Andover",null,"Boscawen",null,"Bow",null,"Bradford",null,"Canterbury",null,"Chichester",null,"Concord",null,"Danbury",null,"Dunbarton",null,"Epsom",null,"Franklin",null,"Henniker",null,"Hill",null,"Hooksett",null,"Hopkinton",null,"Loudon",null,"Newbury",null,"New London",null,"Northfield",null,"Pembroke",null,"Pittsfield",null,"Salisbury",null,"Sutton",null,"Warner",null,"Webster",null,"Wilmot"]
[null,null,"Estimate","Margin Of Error","Estimate","Margin Of Error","Estimate","Margin Of Error","Estimate","Margin Of Error","Estimate","Margin Of Error","Estimate","Margin Of Error","Estimate","Margin Of Error","Estimate","Margin Of Error","Estimate","Margin Of Error","Estimate","Margin Of Error","Estimate","Margin Of Error","Estimate","Margin Of Error","Estimate","Margin Of Error","Estimate","Margin Of Error","Estimate","Margin Of Error","Estimate","Margin Of Error","Estimate","Margin Of Error","Estimate","Margin Of Error","Estimate","Margin Of Error","Estimate","Margin Of Error","Estimate","Margin Of Error","Estimate","Margin Of Error","Estimate","Margin Of Error","Estimate","Margin Of Error","Estimate","Margin Of Error","Estimate","Margin Of Error","Estimate","Margin Of Error"]
[null,"Total:",4035,132,2348,239,3171,228,7416,87,1489,194,2137,150,2430,53,37972,412,1248,202,2608,58,4286,121,7953,148,4427,144,1145,186,12932,177,5408,110,5010,129,1840,206,4365,78,4411,150,6814,137,3721,120,1339,165,1794,195,2728,53,1716,178,1322,180]
[null,"5 to 17  years:",624,177.74701122663075,345,93.509357820487679,480,169.00887550658396,1838,178.2133552795637,251,82.680106434377549,356,81.400245699874887,394,80,6074,418.6096033298806,249,79.906195003891909,513,83.438600180012614,698,139.62807740565648,1582,284.19183661745109,915,175.54771431152272,268,78.568441501661468,2058,241.14933132812124,993,188.83061192507955,991,170.20575783445165,258,66.068146636635717,410,112.04463396343441,907,210.52315787105226,1314,218.21319850091561,565,107.80074211247342,233,74.330343736592525,359,86.977008456258133,415,93.509357820487679,305,61.073725938409879,257,69.426219830839131]
[null,"With cognitive difficulty",97,81.394102980498531,0,15.556349186104045,19,20.248456731316587,29,26.40075756488817,9,13.601470508735444,11,12.206555615733702,26,31.016124838541646,301,120.8056290079233,10,11.180339887498949,23,22.825424421026653,28,32.893768406797051,128,94.831429389206193,63,55.108982933819419,8,15.556349186104045,86,63.324560795950255,64,46.227697325304881,60,46.61544808322666,0,15.556349186104045,7,17.029386365926403,32,30.413812651491099,117,84.693565280958623,74,50.537115073973112,6,13.038404810405298,0,15.556349186104045,0,15.556349186104045,4,12.529964086141668,0,15.556349186104045]
[null,"With no cognitive difficulty",527,173.96838793298051,345,93.509357820487679,461,169.00887550658396,1809,182.52123164169149,242,81.123362849428275,345,81.400245699874887,368,75.286120898874842,5773,410.96593532797823,239,78.492037812761623,490,78.644770964127048,670,140.24621207005913,1454,285.71664284741973,852,173.66634676873929,260,79.309520235593411,1972,249.7298540423231,929,188.80942773071476,931,169.75276139138356,258,66.068146636635717,403,111.28791488746656,875,207.87015177749788,1197,218.21548982599745,491,116.67476162392619,227,74.330343736592525,359,86.977008456258133,415,93.509357820487679,301,61.846584384264908,257,69.426219830839131]
[null,"18 to 34  years:",1018,175.07141400011596,327,109.12378292562992,808,171.17242768623689,825,149.93665329064805,261,58.694122363316758,264,70.767224051816527,386,82.97590011563598,9507,454.57782612001654,245,65.299310869258036,376,103.32473082471591,671,135.47324459095236,1510,225.81629702038779,1399,219.57231155134292,144,37.536648758246919,3133,343.66553507734812,926,216.39085008382401,920,181.01104938649465,245,77.665951355790398,1314,231.71750041807374,809,154.45711378890906,1594,216.30071659613151,800,175.41379649275024,253,63.411355449950761,265,66.400301204136113,451,93.407708461347028,285,57.384666941614292,171,57.008771254956898]
[null,"With cognitive difficulty",33,29.732137494637012,27,32.893768406797051,20,22.803508501982758,33,36.674241641784498,11,10,0,15.556349186104045,12,12.529964086141668,722,208.20182516010757,0,15.556349186104045,4,12.529964086141668,38,51.195702944680818,80,68.425141578224014,1,11.401754250991379,15,16.763054614240211,73,56.920997883030829,0,22.627416997969522,20,34.885527085024819,7,15.556349186104045,36,26.92582403567252,29,23.259406699226016,55,52.924474489596967,54,64.76109943476871,2,11.401754250991379,17,18.027756377319946,29,22.472205054244231,7,13.601470508735444,14,20.248456731316587]
[null,"With no cognitive difficulty",985,180.69310999592651,300,104.65180361560904,788,170.44940598312451,792,149.93665329064805,250,58,264,70.767224051816527,374,84.38601779915912,8785,459.37022106357745,245,65.299310869258036,372,102.6498904042279,633,140.08925726121899,1430,226.63186007267382,1398,219.57231155134292,129,31.89043743820395,3060,338,926,216.39085008382401,900,181.01104938649465,238,76.843997813752509,1278,227.92323269030737,780,153.05227865013967,1539,224.4014260204244,746,167.73789077009405,251,62.801273872430329,248,65.80273550544841,422,92.005434622091755,278,58.051701094799967,157,54.644304369257]
[null,"35 to 64  years:",1978,225.70112981551509,1152,143.05593311708537,1306,166.35203635663737,3791,150.07331541616585,789,86.371291526756735,1181,84.219950130595535,1349,78.517513969814402,16964,532.55703919861958,593,84.172442046075858,1489,86.683331731077345,2310,156.31058825300352,3872,239.71858501167571,1864,186.35718392377581,576,76.05918747922567,5923,279.37966998334008,2490,172.74258305351347,2467,164.14627622946554,935,102.94173109094289,1173,150.41608956491322,2242,184.76471524617463,3177,246.78938388836744,1865,151.9802618763371,692,77.89736837660179,804,92.655275079188016,1398,108.93117092916977,893,86.267027304758798,633,87.692645073575008]
[null,"With cognitive difficulty",174,96.519428096109237,87,59.481089431852205,49,34.014702703389901,115,79.649231006959511,15,9.4339811320566032,12,13.341664064126334,46,26.419689627245813,973,273.8923146055763,12,10.816653826391969,3,12.083045973594572,138,82.462112512353215,321,128.08200498118384,43,46.173585522460783,10,9.2195444572928871,105,58.728187440104094,56,46.861498055439924,107,51.739733281106119,4,13.601470508735444,68,37.643060449437421,47,35.383612025908263,52,43.185645763378368,142,93.477269964414347,27,19.924858845171276,7,13.038404810405298,30,31.240998703626616,22,15.231546211727817,3,12.083045973594572]
[null,"With no cognitive difficulty",1804,203.147729497526,1065,139.84634424967999,1257,164.26807358704855,3676,149.28161306738349,774,87.783825389418979,1169,84.291162051546067,1303,81.320354155647891,15991,486.78537365044156,581,84.172442046075858,1486,86.683331731077345,2172,163.35544068074378,3551,256.53459805648049,1821,175.38529014715002,566,74.652528423356159,5818,285.28056365620142,2434,167.17057157286985,2360,162.68988905276197,931,102.94173109094289,1105,151.26797413861269,2195,182.33211456021672,3125,241.83465425782137,1723,131.79529581893277,665,78.746428490440124,797,91.934759476489631,1368,105.3612832116238,871,84.852813742385706,630,86.977008456258133]
[null,"65 to 74  years:",206,75.591004755857028,342,76.419892698171196,299,104.62313319720452,666,115.43396380615195,91,31.89043743820395,237,45.221676218380054,225,54.451813560247928,2713,207.06037766796427,111,33.837848631377263,176,38.948684188300895,414,99.126182212370111,455,95.015788161757627,88,43.829214001622255,105,33.600595232822883,1161,162.64070831129578,702,144.80676779764127,386,85.912746434973201,207,50.931326312987373,620,110.63453348751464,274,90.271811768680038,400,123.98790263570072,300,78.492037812761623,101,28.42534080710379,236,60.141499815019579,215,65.79513659838392,155,35.383612025908263,152,40.80441152620633]
[null,"With cognitive difficulty",27,45.354161881794269,21,28.231188426986208,10,19.416487838947599,0,22.627416997969522,0,15.556349186104045,0,15.556349186104045,1,11.704699910719626,105,53.600373133029585,8,14.212670403551895,7,15.556349186104045,16,25.495097567963924,45,32.572994949804659,0,15.556349186104045,3,11.704699910719626,15,31.622776601683793,25,27.018512172212592,25,28.635642126552707,0,15.556349186104045,13,24.596747752497688,0,15.556349186104045,12,25.612496949731394,32,29.410882339705484,0,15.556349186104045,0,15.556349186104045,28,31.016124838541646,6,5.6568542494923806,0,15.556349186104045]
[null,"With no cognitive difficulty",179,65.192024052026483,321,71.449282711584999,289,103.46980235798269,666,115.43396380615195,91,31.89043743820395,237,45.221676218380054,224,54.451813560247928,2608,210.75341041131458,103,33.015148038438355,169,37.483329627982627,398,97.616596949494195,410,96.426137535421375,88,43.829214001622255,102,33.015148038438355,1146,162.64070831129578,677,139.80700983856281,361,83.240615086627031,207,50.931326312987373,607,108.70602559196064,274,90.271811768680038,388,122.494897852931,268,76.419892698171196,101,28.42534080710379,236,60.141499815019579,187,59.405386961116584,149,34.713109915419565,152,40.80441152620633]
[null,"75  years and Older:",209,80.05623023850174,182,59.405386961116584,278,90.271811768680038,296,94.260277954183863,97,27.018512172212592,99,36.878177829171548,76,40.8166632639171,2714,228.32652057962954,50,17.029386365926403,54,31.780497164141408,193,70.092795635500224,534,111.39569111954016,161,59.506302187247357,52,23.345235059857504,657,122.44998979175131,297,82.758685344802331,246,71.028163428319047,195,70.767224051816527,848,139.05394636614957,179,60.827625302982199,329,106.78014796768171,191,70.455659815234142,60,20,130,48.166378315169183,249,70.035705179572517,78,29.698484809834994,109,32.202484376209235]
[null,"With cognitive difficulty",46,39.357337308308857,62,46.529560496527367,37,30.528675044947494,57,43.266615305567875,20,18.384776310850235,0,15.556349186104045,24,31.256999216175569,292,92.005434622091755,7,8.0622577482985491,0,15.556349186104045,10,18.601075237738275,37,32.984845004941285,32,32.893768406797051,4,12.529964086141668,31,30.232432915661949,59,39.824615503479755,52,39.623225512317902,12,17.029386365926403,81,48.104053883222775,19,21.213203435596427,36,41.231056256176608,21,23.021728866442675,6,6.4031242374328485,3,12.083045973594572,42,31.048349392520048,7,7.2111025509279782,3,11.704699910719626]
[null,"With no cognitive difficulty",163,68.600291544569984,120,44.598206241955516,241,87.321245982864909,239,87.045964869142551,77,23.430749027719962,99,36.878177829171548,52,24.186773244895647,2422,222.27235545609355,43,15.556349186104045,54,31.780497164141408,183,68.622153857191051,497,101.40019723846694,129,54.120236510939236,48,24.041630560342615,626,117.13667231059623,238,77.103826104804938,194,64.899922958351809,183,70.767224051816527,767,134.01492454200763,160,57.314919523628397,293,96.213304693269947,170,68.796802251267465,54,19.416487838947599,127,48.918299234540036,207,69.296464556281663,71,29,106,32.202484376209235]

{"sheet":"ACS_Table_B18105","index":30,"n_rows":122,"n_cols":56,"rows_kept":122,"cut":false,"hidden":true,"merged":[]}
["B18105. SEX BY AGE BY AMBULATORY DIFFICULTY\n\n"]
["Universe:  Civilian non-institutionalized population 5 years and over"]
["Data Set: 2015-2019 American Community Survey 5-Year Estimates"]
[]
[null,null,"Allenstown",null,"Andover",null,"Boscawen",null,"Bow",null,"Bradford",null,"Canterbury",null,"Chichester",null,"Concord",null,"Danbury",null,"Dunbarton",null,"Epsom",null,"Franklin",null,"Henniker",null,"Hill",null,"Hooksett",null,"Hopkinton",null,"Loudon",null,"Newbury",null,"New London",null,"Northfield",null,"Pembroke",null,"Pittsfield",null,"Salisbury",null,"Sutton",null,"Warner",null,"Webster",null,"Wilmot"]
[null,null,"Estimate","Margin Of Error","Estimate","Margin Of Error","Estimate","Margin Of Error","Estimate","Margin Of Error","Estimate","Margin Of Error","Estimate","Margin Of Error","Estimate","Margin Of Error","Estimate","Margin Of Error","Estimate","Margin Of Error","Estimate","Margin Of Error","Estimate","Margin Of Error","Estimate","Margin Of Error","Estimate","Margin Of Error","Estimate","Margin Of Error","Estimate","Margin Of Error","Estimate","Margin Of Error","Estimate","Margin Of Error","Estimate","Margin Of Error","Estimate","Margin Of Error","Estimate","Margin Of Error","Estimate","Margin Of Error","Estimate","Margin Of Error","Estimate","Margin Of Error","Estimate","Margin Of Error","Estimate","Margin Of Error","Estimate","Margin Of Error","Estimate"]
[null,"Total:",4124,118,2702,315,3291,164,7381,145,1538,204,2233,149,2455,69,38850,340,1037,142,2696,60,4393,143,8239,99,4674,121,868,137,13632,221,5373,118,5298,110,2041,209,4069,121,4486,143,6822,146,3938,191,1379,176,1811,261,2676,124,1696,172,1566,191]
[null,"Male:",2094,127,1473,284,1500,124,3796,181,781,125,1101,105,1228,86,18668,394,511,79,1358,76,2153,149,3822,195,2418,187,442,77,6579,266,2635,178,2317,352,1027,118,1811,150,2148,164,3286,220,2065,197,710,98,906,154,1247,103,871,100,760,113]
[null,"5 to 17  years:",286,78,309,113,304,86,867,148,169,61,78,31,258,69,3143,291,49,23,282,52,346,106,671,148,406,146,65,33,995,220,417,145,249,123,105,43,188,84,273,88,386,116,482,140,89,37,231,87,194,62,129,43,92,60]
[null,"With ambulatory difficulty",0,11,0,11,0,11,8,12,0,11,0,11,0,11,3,7,0,11,0,11,0,11,15,24,7,10,0,11,0,18,0,16,0,16,0,11,0,11,44,50,0,16,0,11,0,11,0,11,5,7,4,6,0,11]
[null,"With no ambulatory difficulty",286,78,309,113,304,86,859,147,169,61,78,31,258,69,3140,291,49,23,282,52,346,106,656,147,399,146,65,33,995,220,417,145,249,123,105,43,188,84,229,75,386,116,482,140,89,37,231,87,189,61,125,42,92,60]
[null,"18 to 34  years:",529,113,339,125,188,88,677,145,147,65,225,53,220,48,5116,328,94,28,229,54,475,123,732,180,746,180,78,31,1791,260,355,99,299,164,201,73,565,124,540,140,825,221,320,121,168,50,134,46,304,76,148,50,147,46]
[null,"With ambulatory difficulty",0,11,0,11,0,11,0,16,0,11,0,11,7,10,41,32,0,11,4,6,0,11,36,41,0,11,0,11,0,18,0,16,0,16,0,11,0,11,39,58,31,48,0,11,6,8,0,11,0,11,0,11,0,11]
[null,"With no ambulatory difficulty",529,113,339,125,188,88,677,145,147,65,225,53,213,48,5075,326,94,28,225,54,475,123,696,178,746,180,78,31,1791,260,355,99,299,164,201,73,565,124,501,124,794,201,320,121,162,49,134,46,304,76,148,50,147,46]
[null,"35 to 64  years:",1007,112,625,201,744,119,1677,99,298,47,571,71,551,51,7646,355,277,54,666,60,930,114,1679,176,901,119,217,38,2812,191,1407,121,1241,199,451,68,493,79,1068,127,1553,195,941,152,300,49,353,70,509,62,469,60,342,59]
[null,"With ambulatory difficulty",68,47,19,15,75,55,9,14,13,15,58,45,5,7,523,159,16,20,8,10,106,63,135,75,8,14,15,17,115,68,0,16,120,93,0,11,0,11,132,76,91,91,107,76,12,10,0,11,51,38,32,22,26,22]
[null,"With no ambulatory difficulty",939,120,606,202,669,112,1668,96,285,46,513,76,546,50,7123,368,261,52,658,61,824,116,1544,173,893,116,202,36,2697,204,1407,121,1121,197,451,68,493,79,936,117,1462,203,834,137,288,49,353,70,458,67,437,60,316,54]
[null,"65 to 74  years:",155,70,93,41,184,64,338,70,125,35,169,40,159,37,1636,164,54,30,141,30,293,88,485,119,257,84,50,24,666,125,294,83,398,152,188,48,235,73,216,71,372,99,207,84,117,34,96,37,181,44,106,26,103,33]
[null,"With ambulatory difficulty",58,36,11,12,0,11,15,17,3,5,5,8,4,6,265,97,10,8,8,8,35,30,53,38,0,11,3,5,98,52,21,26,46,67,0,11,6,9,37,23,30,33,0,11,7,8,14,18,36,28,2,4,0,11]
[null,"With no ambulatory difficulty",97,63,82,40,184,64,323,69,122,35,164,38,155,37,1371,147,44,30,133,30,258,85,432,119,257,84,47,23,568,123,273,80,352,139,188,48,229,72,179,69,342,97,207,84,110,32,82,32,145,41,104,26,103,33]
[null,"75  years and Older:",117,46,107,48,80,50,237,64,42,20,58,31,40,19,1127,177,37,20,40,15,109,49,255,70,108,50,32,24,315,95,162,78,130,79,82,32,330,96,51,26,150,69,115,59,36,17,92,38,59,26,19,11,76,34]
[null,"With ambulatory difficulty",20,19,37,26,56,49,82,39,7,7,23,28,5,7,296,101,13,10,11,9,32,25,83,42,0,11,0,11,78,49,110,73,45,45,24,21,57,43,15,16,0,16,43,45,3,4,0,11,25,14,5,6,6,6]
[null,"With no ambulatory difficulty",97,43,70,41,24,21,155,52,35,19,35,18,35,17,831,166,24,19,29,13,77,43,172,62,108,50,32,24,237,81,52,38,85,66,58,24,273,83,36,26,150,69,72,39,33,17,92,38,34,22,14,9,70,34]
[null,"Female:",2030,119,1229,125,1791,140,3585,164,757,107,1132,98,1227,71,20182,381,526,84,1338,71,2240,139,4417,205,2256,170,426,69,7053,289,2738,158,2981,298,1014,118,2258,159,2338,152,3536,222,1873,189,669,93,905,138,1429,91,825,98,806,108]
[null,"5 to 17  years:",266,77,206,65,270,126,711,105,130,45,159,40,132,39,2702,286,106,39,328,62,397,109,536,134,227,95,44,27,1128,189,455,134,435,176,149,52,212,88,391,82,798,209,324,139,125,52,130,61,242,69,71,29,96,36]
[null,"With ambulatory difficulty",0,11,0,11,0,11,0,16,0,11,0,11,0,11,22,33,0,11,0,11,0,11,10,15,0,11,0,11,0,18,0,16,0,16,0,11,0,11,0,11,0,16,0,11,0,11,0,11,0,11,0,11,0,11]
[null,"With no ambulatory difficulty",266,77,206,65,270,126,711,105,130,45,159,40,132,39,2680,285,106,39,328,62,397,109,526,134,227,95,44,27,1128,189,455,134,435,176,149,52,212,88,391,82,798,209,324,139,125,52,130,61,242,69,71,29,96,36]
[null,"18 to 34  years:",459,148,201,78,349,101,399,104,105,52,231,58,275,63,5038,280,76,32,175,58,419,102,898,186,804,194,59,30,1894,260,375,141,521,182,121,45,787,158,694,118,577,154,269,91,74,29,107,36,353,84,155,52,151,53]
[null,"With ambulatory difficulty",28,43,0,11,16,24,0,16,0,11,0,11,2,5,133,86,0,11,0,11,0,11,0,16,3,6,0,11,48,44,0,16,0,16,0,11,21,23,0,11,0,16,13,16,0,11,0,11,26,41,0,11,0,11]
[null,"With no ambulatory difficulty",431,141,201,78,333,104,399,104,105,52,231,58,273,63,4905,282,76,32,175,58,419,102,898,186,801,195,59,30,1846,253,375,141,521,182,121,45,766,154,694,118,577,154,256,92,74,29,107,36,327,84,155,52,151,53]
[null,"35 to 64  years:",884,98,550,86,901,85,1719,102,330,56,544,61,614,60,8612,314,276,51,685,60,1016,132,2001,174,819,93,235,44,2811,171,1281,132,1396,143,456,67,594,87,994,109,1586,165,981,169,325,50,469,84,571,58,429,61,370,62]
[null,"With ambulatory difficulty",117,62,21,25,113,62,39,30,4,6,30,19,28,21,495,91,12,9,14,13,66,48,214,102,28,27,31,22,201,103,33,37,73,53,15,13,0,11,120,57,51,49,243,105,9,10,5,9,17,15,15,10,11,11]
[null,"With no ambulatory difficulty",767,110,529,84,788,96,1680,104,326,56,514,62,586,62,8117,306,264,51,671,59,950,141,1787,171,791,95,204,40,2610,195,1248,139,1323,149,441,65,594,87,874,115,1535,149,738,157,316,50,464,84,554,56,414,60,359,63]
[null,"65 to 74  years:",172,62,139,50,143,49,408,75,123,30,102,35,127,28,1995,192,42,23,98,22,285,81,620,125,322,90,68,29,720,109,400,101,454,135,200,46,323,88,194,58,396,127,175,75,87,26,140,47,147,51,128,36,85,28]
[null,"With ambulatory difficulty",18,22,10,17,7,11,27,22,6,6,11,13,5,7,386,122,3,5,3,5,47,35,152,94,0,11,7,8,106,53,96,95,59,60,17,14,0,11,16,19,29,30,40,33,7,7,5,8,33,42,2,5,9,9]
[null,"With no ambulatory difficulty",154,61,129,50,136,48,381,76,117,29,91,33,122,29,1609,164,39,23,95,22,238,77,468,102,322,90,61,26,614,111,304,92,395,137,183,44,323,88,178,54,367,124,135,66,80,27,135,46,114,38,126,36,76,28]
[null,"75  years and Older:",249,109,133,61,128,55,348,75,69,37,96,31,79,32,1835,196,26,15,52,20,123,60,362,119,84,49,20,20,500,130,227,92,175,97,88,36,342,88,65,34,179,82,124,79,58,29,59,33,116,45,42,18,104,42]
[null,"With ambulatory difficulty",40,48,49,33,27,31,120,55,4,6,11,12,16,12,533,152,6,7,16,12,59,39,132,92,0,11,16,19,193,71,55,52,90,70,44,24,34,27,0,11,32,36,33,29,25,23,0,11,38,41,13,10,20,22]
[null,"With no ambulatory difficulty",209,99,84,50,101,49,228,57,65,36,85,30,63,29,1302,187,20,12,36,17,64,47,230,82,84,49,4,6,307,131,172,79,85,75,44,34,308,87,65,34,147,81,91,74,33,15,59,33,78,31,29,15,84,35]
[]
[]
[{"$f":"A1& \"-Calculated\"","v":"B18105. SEX BY AGE BY AMBULATORY DIFFICULTY\n\n-Calculated"}]
[{"$f":"A2","v":"Universe:  Civilian non-institutionalized population 5 years and over"}]
[{"$f":"A3","v":"Data Set: 2015-2019 American Community Survey 5-Year Estimates"}]
[]
[]
[null,null,"Allenstown",null,"Andover",null,"Boscawen",null,"Bow",null,"Bradford",null,"Canterbury",null,"Chichester",null,"Concord",null,"Danbury",null,"Dunbarton",null,"Epsom",null,"Franklin",null,"Henniker",null,"Hill",null,"Hooksett",null,"Hopkinton",null,"Loudon",null,"Newbury",null,"New London",null,"Northfield",null,"Pembroke",null,"Pittsfield",null,"Salisbury",null,"Sutton",null,"Warner",null,"Webster",null,"Wilmot"]
[null,null,"Estimate","Margin Of Error","Estimate","Margin Of Error","Estimate","Margin Of Error","Estimate","Margin Of Error","Estimate","Margin Of Error","Estimate","Margin Of Error","Estimate","Margin Of Error","Estimate","Margin Of Error","Estimate","Margin Of Error","Estimate","Margin Of Error","Estimate","Margin Of Error","Estimate","Margin Of Error","Estimate","Margin Of Error","Estimate","Margin Of Error","Estimate","Margin Of Error","Estimate","Margin Of Error","Estimate","Margin Of Error","Estimate","Margin Of Error","Estimate","Margin Of Error","Estimate","Margin Of Error","Estimate","Margin Of Error","Estimate","Margin Of Error","Estimate","Margin Of Error","Estimate","Margin Of Error","Estimate","Margin Of Error","Estimate","Margin Of Error","Estimate","Margin Of Error"]
[null,"Total:",{"$f":"C7","v":4124},118,2702,315,3291,164,7381,145,1538,204,2233,149,2455,69,38850,340,1037,142,2696,60,4393,143,{"$f":"Y7","v":8239},99,4674,121,868,137,13632,221,5373,118,5298,110,2041,209,4069,121,4486,143,6822,146,3938,191,1379,176,1811,261,2676,124,1696,172,1566,191]
[null,"5 to 17  years:",{"$f":"C25+C9","v":552},{"$f":"SQRT((D25^2)+(D9^2))","v":109.60383204979651},{"$f":"E25+E9","v":515},{"$f":"SQRT((F25^2)+(F9^2))","v":130.36103712382777},{"$f":"G25+G9","v":574},{"$f":"SQRT((H25^2)+(H9^2))","v":152.55163060419906},{"$f":"I25+I9","v":1578},{"$f":"SQRT((J25^2)+(J9^2))","v":181.46349495146399},{"$f":"K25+K9","v":299},{"$f":"SQRT((L25^2)+(L9^2))","v":75.802374632988901},{"$f":"M25+M9","v":237},{"$f":"SQRT((N25^2)+(N9^2))","v":50.606323715519977},{"$f":"O25+O9","v":390},{"$f":"SQRT((P25^2)+(P9^2))","v":79.259068881737434},{"$f":"Q25+Q9","v":5845},{"$f":"SQRT((R25^2)+(R9^2))","v":408.0159310615212},{"$f":"S25+S9","v":155},{"$f":"SQRT((T25^2)+(T9^2))","v":45.276925690687087},{"$f":"U25+U9","v":610},{"$f":"SQRT((V25^2)+(V9^2))","v":80.919713296575637},{"$f":"W25+W9","v":743},{"$f":"SQRT((X25^2)+(X9^2))","v":152.04275714416653},{"$f":"Y25+Y9","v":1207},{"$f":"SQRT((Z25^2)+(Z9^2))","v":199.64969321288726},{"$f":"AA25+AA9","v":633},{"$f":"SQRT((AB25^2)+(AB9^2))","v":174.18668146560461},{"$f":"AC25+AC9","v":109},{"$f":"SQRT((AD25^2)+(AD9^2))","v":42.638011210655684},{"$f":"AE25+AE9","v":2123},{"$f":"SQRT((AF25^2)+(AF9^2))","v":290.0362046365936},{"$f":"AG25+AG9","v":872},{"$f":"SQRT((AH25^2)+(AH9^2))","v":197.43606560099397},{"$f":"AI25+AI9","v":684},{"$f":"SQRT((AJ25^2)+(AJ9^2))","v":214.72074888095935},{"$f":"AK25+AK9","v":254},{"$f":"SQRT((AL25^2)+(AL9^2))","v":67.475921631349351},{"$f":"AM25+AM9","v":400},{"$f":"SQRT((AN25^2)+(AN9^2))","v":121.6552506059644},{"$f":"AO25+AO9","v":664},120.28299963003916,{"$f":"AQ25+AQ9","v":1184},239.03347045968269,{"$f":"AS25+AS9","v":806},197.28405916343064,{"$f":"AU25+AU9","v":214},63.820059542435402,{"$f":"AW25+AW9","v":361},106.25441167311595,{"$f":"AY25+AY9","v":436},92.763139231054481,{"$f":"BA25+BA9","v":200},51.86520991955976,{"$f":"BC25+BC9","v":188},69.971422738143602]
[null,"With ambulatory difficulty",0,15.556349186104045,0,15.556349186104045,0,15.556349186104045,8,20,0,15.556349186104045,0,15.556349186104045,0,15.556349186104045,25,33.734255586865999,0,15.556349186104045,0,15.556349186104045,0,15.556349186104045,25,28.301943396169811,7,14.866068747318506,0,15.556349186104045,0,25.45584412271571,0,22.627416997969522,0,22.627416997969522,0,15.556349186104045,0,15.556349186104045,44,51.195702944680818,0,22.627416997969522,0,15.556349186104045,0,15.556349186104045,0,15.556349186104045,5,13.038404810405298,4,12.529964086141668,0,15.556349186104045]
[null,"With no ambulatory difficulty",552,109.60383204979651,515,130.36103712382777,574,152.55163060419906,1570,180.64883060789515,299,75.802374632988901,237,50.606323715519977,390,79.259068881737434,5820,407.31560245097415,155,45.276925690687087,610,80.919713296575637,743,152.04275714416653,1182,198.90952717253137,626,174.18668146560461,109,42.638011210655684,2123,290.0362046365936,872,197.43606560099397,684,214.72074888095935,254,67.475921631349351,400,121.6552506059644,620,111.12605455067681,1184,239.03347045968269,806,197.28405916343064,214,63.820059542435402,361,106.25441167311595,431,92.097774131626011,196,51.039200620699383,188,69.971422738143602]
[null,"18 to 34  years:",988,186.20687420178666,540,147.33974345029924,537,133.9589489358587,1076,178.44046626256053,252,83.240615086627031,456,78.568441501661468,495,79.202272694664515,10154,431.25862310219372,170,42.5205832509386,404,79.246451024635803,894,159.7904878270293,1630,258.83585532147589,1550,264.64315596667149,137,43.139309220245984,3685,367.69552621700473,730,172.28464818433474,820,244.98979570586201,322,85.755466298073387,1352,200.84820138602188,1234,183.09560344257315,1402,269.36406590337918,589,151.40013210033868,242,57.801384066473702,241,58.412327466040935,657,113.27841806805037,303,72.138755187485728,298,70.178344238091]
[null,"With ambulatory difficulty",28,44.384682042344295,0,15.556349186104045,16,26.40075756488817,0,22.627416997969522,0,15.556349186104045,0,15.556349186104045,9,11.180339887498949,174,91.760557975635692,0,15.556349186104045,4,12.529964086141668,0,15.556349186104045,36,44.011362169330773,3,12.529964086141668,0,15.556349186104045,48,47.539457296018853,0,22.627416997969522,0,22.627416997969522,0,15.556349186104045,21,25.495097567963924,39,59.033888572581766,31,50.596442562694072,13,19.416487838947599,6,13.601470508735444,0,15.556349186104045,26,42.449970553582247,0,15.556349186104045,0,15.556349186104045]
[null,"With no ambulatory difficulty",960,180.69310999592651,540,147.33974345029924,521,136.23509092741122,1076,178.44046626256053,252,83.240615086627031,456,78.568441501661468,486,79.202272694664515,9980,431.0452412450461,170,42.5205832509386,400,79.246451024635803,894,159.7904878270293,1594,257.44902408049637,1547,265.37709019431196,137,43.139309220245984,3637,362.7795473838072,730,172.28464818433474,820,244.98979570586201,322,85.755466298073387,1331,197.71696942852427,1195,171.17242768623689,1371,253.21334877924585,576,152.00328943809077,236,56.938563381947034,241,58.412327466040935,631,113.27841806805037,303,72.138755187485728,298,70.178344238091]
[null,"35 to 64  years:",1891,148.82204137828509,1175,218.62525014279572,1645,146.23952953972466,3396,142.1442928857856,628,73.109506905736964,1115,93.605555390692487,1165,78.746428490440124,16258,473.94197957133952,553,74.276510418839678,1351,84.852813742385706,1946,174.41330224498358,3680,247.4914139924858,1720,151.02979838429235,452,58.137767414994535,5623,256.36302385484532,2688,179.06702655709677,2637,245.05101509685693,907,95.462034338264544,1087,117.51595636338071,2062,167.36188335460378,3139,255.44079548889601,1922,227.29936207565564,625,70.007142492748557,822,109.34349546269316,1080,84.899941107164494,898,85.562842402528915,712,85.586213843118443]
[null,"With ambulatory difficulty",185,77.801028270839709,40,29.154759474226502,188,82.879430499973878,48,33.105890714493697,17,16.15549442140351,88,48.846698967279252,33,22.135943621178654,1018,183.19934497699495,28,21.931712199461309,22,16.401219466856727,172,79.202272694664515,349,126.60568707605516,36,30.413812651491099,46,27.802877548915689,316,123.42204017111368,33,40.311288741492746,193,107.0420478129973,15,17.029386365926403,0,15.556349186104045,252,95,142,103.35376142163381,350,129.61867149450345,21,14.142135623730951,5,14.212670403551895,68,40.853396431630991,47,24.166091947189145,37,24.596747752497688]
[null,"With no ambulatory difficulty",1706,162.78820596099706,1135,218.76928486421488,1457,147.51271131668619,3348,141.53444810363305,611,72.47068372797375,1027,98.081598681913832,1132,79.649231006959511,15240,478.60213121130164,525,72.835430938520574,1329,84.864598037108507,1774,182.58422713914803,3331,243.24884377936928,1684,149.93665329064805,406,53.814496188294839,5307,282.20737056285401,2655,184.28781837115551,2444,247.00202428320299,892,94.069123520951337,1087,117.51595636338071,1810,164.05486887014357,2997,251.81342299408902,1572,208.36986346398561,604,70.007142492748557,817,109.34349546269316,1012,87.321245982864909,851,84.852813742385706,675,82.97590011563598]
[null,"65 to 74  years:",327,93.509357820487679,232,64.660652641308843,327,80.603970125546539,746,102.59142264341595,248,46.097722286464439,271,53.150729063673246,286,46.400431032480725,3631,252.50742563338608,96,37.802116342871599,239,37.20215047547655,578,119.60351165413162,1105,172.58621034138272,579,123.10970717209915,118,37.643060449437421,1386,165.8493292117879,694,130.728726758888,852,203.29535164385831,388,66.483080554378645,558,114.33722053644648,410,91.678787077491378,768,161.02794788483146,382,112.60994627474076,204,42.80186911806539,236,59.816385714952723,328,67.357256476195644,234,44.407206622349037,188,43.278170016764804]
[null,"With ambulatory difficulty",76,42.190046219457976,21,20.808652046684813,7,15.556349186104045,42,27.802877548915689,9,7.810249675906654,16,15.264337522473747,9,9.2195444572928871,651,155.86211855354719,13,9.4339811320566032,11,9.4339811320566032,82,46.097722286464439,205,101.39033484509261,0,15.556349186104045,10,9.4339811320566032,204,74.249579123386283,117,98.493654617949886,105,89.938868127189593,17,17.804493814764857,6,14.212670403551895,53,29.832867780352597,59,44.598206241955516,40,34.785054261852174,14,10.63014581273465,19,19.697715603592208,69,50.47771785649585,4,6.4031242374328485,9,14.212670403551895]
[null,"With no ambulatory difficulty",251,87.692645073575008,211,64.031242374328485,320,80,704,102.6498904042279,239,45.453272709454048,255,50.328918128646478,277,47.010637094172637,2980,220.23850707812201,83,37.802116342871599,228,37.20215047547655,496,114.69088891450794,900,156.73225577397909,579,123.10970717209915,108,34.713109915419565,1182,165.6804152578089,577,121.91800523302537,747,195.16659550240661,371,65.115282384398824,552,113.70136322841516,357,87.618491199061395,709,157.4325252290644,342,106.82696288858914,190,41.868842830916641,217,56.0357029044876,259,55.901699437494742,230,44.407206622349037,179,43.278170016764804]
[null,"75  years and Older:",366,118.30891766895681,240,77.620873481300123,208,74.330343736592525,585,98.595131725658746,111,42.059481689626182,154,43.840620433565945,119,37.215588131856791,2962,264.09278672466615,63,25,92,25,232,77.466121627457255,617,138.06158046321215,192,70.007142492748557,52,31.240998703626616,815,161.01242188104618,389,120.61509026651682,305,125.09996003196804,170,48.166378315169183,672,130.23056476879765,116,42.80186911806539,329,107.16809226630845,239,98.600202839547947,94,33.61547262794322,151,50.328918128646478,175,51.97114584074513,61,21.095023109728988,180,54.037024344425184]
[null,"With ambulatory difficulty",60,51.623637996561229,86,42.01190307520001,83,57.982756057296896,202,67.424031324150292,11,9.2195444572928871,34,30.463092423455635,21,13.892443989449804,829,182.49657531033287,19,12.206555615733702,27,15,91,46.324939287601879,215,101.13357503816425,0,15.556349186104045,16,21.95449840010015,271,86.267027304758798,165,89.627004859026727,135,83.21658488546619,68,31.89043743820395,91,50.774009099144415,15,19.416487838947599,32,39.395431207184416,76,53.535035257296691,28,23.345235059857504,0,15.556349186104045,63,43.324358044868937,18,11.661903789690601,26,22.803508501982758]
[null,"With no ambulatory difficulty",306,107.93516572461452,154,64.660652641308843,125,53.310411741047361,383,77.155686763841331,100,40.70626487409524,120,34.985711369071801,98,33.61547262794322,2133,250.04999500099976,44,22.472205054244231,65,21.400934559032695,141,63.702433234531945,402,102.80077820717118,192,70.007142492748557,36,24.738633753705962,544,154.01947928752389,224,87.664131775772461,170,99.904954832080278,102,41.617304093369626,581,120.24142381059865,101,42.80186911806539,297,106.40488710580919,163,83.648072302952684,66,22.671568097509269,151,50.328918128646478,112,38.013155617496423,43,17.4928556845359,154,48.795491595023407]
[]
[]
[]
[]
[]
[]
[]
[]
[]
[]
[]
[]
[]
[]
[]
[]
[]
[]
[]
[]
[]
[]
[]
[]
[]
[]
[]
[]
[]
[]
[]
[]
[]
[]
[]
["B18105. SEX BY AGE BY AMBULATORY DIFFICULTY\n\n-Calculated"]
["Universe:  Civilian non-institutionalized population 5 years and over"]
["Data Set: 2010-2014 American Community Survey 5-Year Estimates"]
[]
[]
[null,null,"Allenstown",null,"Andover",null,"Boscawen",null,"Bow",null,"Bradford",null,"Canterbury",null,"Chichester",null,"Concord",null,"Danbury",null,"Dunbarton",null,"Epsom",null,"Franklin",null,"Henniker",null,"Hill",null,"Hooksett",null,"Hopkinton",null,"Loudon",null,"Newbury",null,"New London",null,"Northfield",null,"Pembroke",null,"Pittsfield",null,"Salisbury",null,"Sutton",null,"Warner",null,"Webster",null,"Wilmot"]
[null,null,"Estimate","Margin Of Error","Estimate","Margin Of Error","Estimate","Margin Of Error","Estimate","Margin Of Error","Estimate","Margin Of Error","Estimate","Margin Of Error","Estimate","Margin Of Error","Estimate","Margin Of Error","Estimate","Margin Of Error","Estimate","Margin Of Error","Estimate","Margin Of Error","Estimate","Margin Of Error","Estimate","Margin Of Error","Estimate","Margin Of Error","Estimate","Margin Of Error","Estimate","Margin Of Error","Estimate","Margin Of Error","Estimate","Margin Of Error","Estimate","Margin Of Error","Estimate","Margin Of Error","Estimate","Margin Of Error","Estimate","Margin Of Error","Estimate","Margin Of Error","Estimate","Margin Of Error","Estimate","Margin Of Error","Estimate","Margin Of Error","Estimate"]
[null,"Total:",3985,113,2362,246,3170,341,7448,80,1654,200,2167,184,2473,50,38039,484,1176,171,2635,56,4313,123,7728,218,4464,128,1120,176,12984,210,5411,111,5125,104,1694,220,4437,82,4393,154,6893,106,3751,129,1337,147,1897,263,2745,51,1821,194,1323,175]
[null,"5 to 17  years:",538,119.75391434103521,363,91.285267157411553,564,184.80530295421721,1742,177.34147850968199,265,70.604532432415411,339,87.664131775772461,396,74.518454090245328,6346,403.86260039770951,195,62.289646009589745,452,67.178865724273734,722,162.43152403397562,1378,254.84897488512681,810,185.39687160251654,207,63.702433234531945,1919,267.30132809247317,1077,221.32555207205516,970,172.03778654702577,260,61.032778078668514,383,107.61505470890214,757,159.84054554461454,1364,207.45360927204905,609,117.38824472663352,223,59.548299723837623,351,93.861600242058515,431,105.20931517693668,362,78.746428490440124,209,59.405386961116584]
[null,"With ambulatory difficulty",34,43.416586692184822,0,15.556349186104045,0,15.556349186104045,13,25,0,15.556349186104045,4,13.038404810405298,0,15.556349186104045,20,29.832867780352597,0,15.556349186104045,15,24.596747752497688,0,15.556349186104045,18,35.341194094144583,0,15.556349186104045,0,15.556349186104045,22,38.910152916687437,15,27.459060435491963,0,21.213203435596427,6,14.212670403551895,18,28.231188426986208,0,15.556349186104045,0,21.213203435596427,0,15.556349186104045,0,15.556349186104045,0,15.556349186104045,0,15.556349186104045,0,15.556349186104045,0,15.556349186104045]
[null,"With no ambulatory difficulty",504,114.58621208504974,363,91.285267157411553,564,184.80530295421721,1729,181.9505427307102,265,70.604532432415411,335,85.982556370463882,396,74.518454090245328,6326,402.48354003611126,195,62.289646009589745,437,67.882250993908556,722,162.43152403397562,1360,249.73586046060746,810,185.39687160251654,207,63.702433234531945,1897,266.60270066148991,1062,217.83020910791964,970,172.03778654702577,254,59.405386961116584,365,108.40664186294121,757,159.84054554461454,1364,207.45360927204905,609,117.38824472663352,223,59.548299723837623,351,93.861600242058515,431,105.20931517693668,362,78.746428490440124,209,59.405386961116584]
[null,"18 to 34  years:",856,121.69634341261039,334,106.94391053257777,777,163.3431969810803,880,159.96249560443849,268,49.819674828324601,296,63.7808748764079,401,86.683331731077345,9635,474.69147875225229,257,64.381674411279491,452,108.97706180660222,588,142.30249470757707,1549,211.92923347193044,1432,224.16288720481811,173,43.863424398922618,3252,363.68805314444961,963,193.04144632694815,823,158.54967675779096,188,66.068146636635717,1481,221.14474897677312,832,140.12137595670404,1409,263.3040068058213,897,181.46625030566977,255,58.796258384356399,293,81.320354155647891,472,101.9803902718557,303,70.936591403872796,228,78.10249675906654]
[null,"With ambulatory difficulty",13,16.492422502470642,0,15.556349186104045,9,17.804493814764857,7,19.849433241279208,0,15.556349186104045,0,15.556349186104045,1,11.704699910719626,300,147.59742545180114,0,15.556349186104045,0,15.556349186104045,0,15.556349186104045,91,76.922038454528746,0,15.556349186104045,12,21.095023109728988,58,64.350602172784676,0,21.213203435596427,0,21.213203435596427,0,15.556349186104045,12,21.095023109728988,16,21.095023109728988,0,21.213203435596427,0,15.556349186104045,2,12.083045973594572,0,15.556349186104045,6,14.212670403551895,4,12.529964086141668,3,12.083045973594572]
[null,"With no ambulatory difficulty",843,119.55333537798099,334,106.94391053257777,768,163.3431969810803,873,159.2262541165872,268,49.819674828324601,296,63.7808748764079,400,85.912746434973201,9335,466.69904649570475,257,64.381674411279491,452,108.97706180660222,588,142.30249470757707,1458,215.10230124292022,1432,224.16288720481811,161,40.36087214122113,3194,359.92221381848606,963,193.04144632694815,823,158.54967675779096,188,66.068146636635717,1469,220.51757299589528,816,140.80127840328723,1409,263.3040068058213,897,181.46625030566977,253,59.464274989274024,293,81.320354155647891,466,101.9803902718557,299,69.426219830839131,225,78.10249675906654]
[null,"35 to 64  years:",2019,169.70562748477141,1150,144.61673485458036,1351,143.68368035375485,3751,150.80119362922829,856,94.921019800674287,1171,90.553851381374173,1330,80.156097709406993,16834,457.20017497809425,550,79.208585393251411,1441,75.166481891864535,2336,152.76125163142649,3653,233.30880823492285,1923,221.14474897677312,581,60.307545133258408,6034,306.77679182102418,2404,147.92227688891217,2615,162.00308639035245,835,95.587656106842587,1088,120.21647141718975,2250,154.98709623707387,3308,251.46172671005024,1759,146.98639392814562,696,79.906195003891909,827,98.412397592986224,1368,98.081598681913832,921,87.692645073575008,580,72.835430938520574]
[null,"With ambulatory difficulty",187,74.625732827222535,115,53.740115370177612,131,59.682493245507096,97,60.415229867972862,50,26.40075756488817,42,28.0178514522438,73,42.579337712087536,1047,185.85209172887994,58,30.016662039607269,37,21.2602916254693,109,72.47068372797375,408,125.31959144523253,245,111.60645142642964,45,28.284271247461902,289,102.08329931972223,94,74.632432628181164,165,111.66467659918243,0,15.556349186104045,70,53.254107822777392,192,67.601775124622279,247,117.34564329364768,131,64.560049566275893,75,34.828149534535996,29,22.825424421026653,74,38.288379438153292,22,13.416407864998739,7,12.529964086141668]
[null,"With no ambulatory difficulty",1832,181.76083186429358,1035,122.28654872879518,1220,143.17821063276352,3654,156.08331108738051,806,93.434469014384618,1129,83.737685661833282,1257,84.958813551037778,15787,497.90862615544228,492,74.411020689142546,1404,75.166481891864535,2227,156.40012787718558,3245,221.92341021172146,1678,186.6815470259447,536,58.412327466040935,5745,328.05487345869443,2310,153.80832227158581,2450,160.55217220579732,835,95.587656106842587,1018,118.0889495253472,2058,163.02760502442524,3061,259.58620918685182,1628,157.8131806916013,621,76.419892698171196,798,99.085821387320593,1294,102.59142264341595,899,88.391176030189797,573,72.138755187485728]
[null,"65 to 74  years:",315,86.284413424441851,322,78.87331614684399,273,94.873600121424715,697,112.80514172678478,145,42.426406871192853,246,46.861498055439924,265,54.488530903301111,2747,238.09661904361431,109,33.120990323358392,225,45.221676218380054,433,118.06777714516353,573,120.20815280171308,105,45.276925690687087,113,38.948684188300895,1138,165.07574019219177,705,135.5912976558599,409,95.482982777037293,223,50.328918128646478,654,116.82465493208187,316,77.89736837660179,467,126.65701717630967,302,67.623960250786851,110,31.906112267087632,260,72.801098892805186,262,72.180329730474355,164,31.144823004794873,162,38.013155617496423]
[null,"With ambulatory difficulty",57,41.182520563948003,57,42.43819034784589,89,72.780491891715045,53,32.449961479175904,25,21.2602916254693,17,18.788294228055936,16,14.866068747318506,387,108.18964830333815,18,17.464249196572979,15,17.804493814764857,44,53.450912059571067,114,54.708317466359723,8,17.029386365926403,19,13.892443989449804,119,59.539902586416787,65,62.641839053463301,110,56.612719418872643,29,22.203603311174518,47,44.944410108488462,36,40.26164427839479,32,39,43,29.732137494637012,6,7.2111025509279782,0,15.556349186104045,22,31.016124838541646,14,9.8994949366116654,18,21.95449840010015]
[null,"With no ambulatory difficulty",258,71.344235926947874,265,66.468037431535464,184,61.400325732035007,644,112.04463396343441,120,38.209946349085598,229,43.185645763378368,249,53.075418038862395,2360,237.53947040439405,91,28.653097563788805,210,44.407206622349037,389,113.25193155085701,459,111.03603018840326,97,44.553338819890925,94,36.796738985948195,1019,153.22206107476822,640,128.14444974324874,299,83.737685661833282,194,45.967379738244816,607,113.22985472038724,280,75.663729752107784,435,122.0245876862528,259,61.400325732035007,104,31.384709652950431,260,72.801098892805186,240,65.215028942721474,150,30.413812651491099,144,38.013155617496423]
[null,"75  years and Older:",257,84.504437753291981,193,69.06518659932803,205,79.309520235593411,378,97.836598469080073,120,34.985711369071801,115,38.897300677553446,81,38.275318418009277,2477,245.81497106563708,65,21.633307652783937,65,30.675723300355934,234,75.927597090912869,575,113.35784048754634,194,66.370174024180471,46,25.495097567963924,641,135.6244815658294,262,74.966659255965254,308,104.44615837837216,188,59.640590204993778,831,142.05632685663809,238,70.178344238091,345,97.8008179924892,184,67.201190465645766,53,19.849433241279208,166,48.270073544588683,212,58.137767414994535,71,30.413812651491099,144,43.278170016764804]
[null,"With ambulatory difficulty",122,51.61395160225576,79,56.639209034025185,90,55.226805085936306,97,57.974132162542979,24,20.615528128088304,21,15,39,31.016124838541646,762,146.01369798755184,38,17.464249196572979,23,16.552945357246848,92,50.24937810560445,162,74.625732827222535,42,34.928498393145958,23,18.384776310850235,216,79.511005527536881,25,32.649655434629018,161,93.477269964414347,67,38.897300677553446,199,71.28113354878694,85,40.311288741492746,134,78.390050389064044,83,54.203320931470607,14,10.295630140987001,33,25.612496949731394,80,45.276925690687087,18,20.615528128088304,38,23.706539182259394]
[null,"With no ambulatory difficulty",135,68.680419334771102,114,43.829214001622255,115,62.289646009589745,281,93.380940239430018,96,28.0178514522438,94,37.483329627982627,42,22.803508501982758,1715,215.52262062252305,27,12.727922061357855,42,27.202941017470888,142,60,413,103.58571330062848,152,61.911226768656427,23,21.095023109728988,425,113.53413583587978,237,71.449282711584999,147,61.522353661088097,121,49.193495504995376,632,127.02755606560333,153,60.207972893961475,211,80.709355095924295,101,42.638011210655684,39,17.029386365926403,133,43.266615305567875,132,53.037722424704477,53,21.931712199461309,106,33.600595232822883]

{"sheet":"ACS_Table_B18106","index":31,"n_rows":122,"n_cols":56,"rows_kept":122,"cut":false,"hidden":true,"merged":[]}
["B18106. SEX BY AGE BY SELF-CARE DIFFICULTY\n\n\n\n"]
["Universe:  Civilian non-institutionalized population 5 years and over"]
["Data Set: 2015-2019 American Community Survey 5-Year Estimates"]
[]
[null,null,"Allenstown",null,"Andover",null,"Boscawen",null,"Bow",null,"Bradford",null,"Canterbury",null,"Chichester",null,"Concord",null,"Danbury",null,"Dunbarton",null,"Epsom",null,"Franklin",null,"Henniker",null,"Hill",null,"Hooksett",null,"Hopkinton",null,"Loudon",null,"Newbury",null,"New London",null,"Northfield",null,"Pembroke",null,"Pittsfield",null,"Salisbury",null,"Sutton",null,"Warner",null,"Webster",null,"Wilmot"]
[null,null,"Estimate","Margin Of Error","Estimate","Margin Of Error","Estimate","Margin Of Error","Estimate","Margin Of Error","Estimate","Margin Of Error","Estimate","Margin Of Error","Estimate","Margin Of Error","Estimate","Margin Of Error","Estimate","Margin Of Error","Estimate","Margin Of Error","Estimate","Margin Of Error","Estimate","Margin Of Error","Estimate","Margin Of Error","Estimate","Margin Of Error","Estimate","Margin Of Error","Estimate","Margin Of Error","Estimate","Margin Of Error","Estimate","Margin Of Error","Estimate","Margin Of Error","Estimate","Margin Of Error","Estimate","Margin Of Error","Estimate","Margin Of Error","Estimate","Margin Of Error","Estimate","Margin Of Error","Estimate","Margin Of Error","Estimate","Margin Of Error","Estimate"]
[null,"Total:",4124,118,2702,315,3291,164,7381,145,1538,204,2233,149,2455,69,38850,340,1037,142,2696,60,4393,143,8239,99,4674,121,868,137,13632,221,5373,118,5298,110,2041,209,4069,121,4486,143,6822,146,3938,191,1379,176,1811,261,2676,124,1696,172,1566,191]
[null,"Male:",2094,127,1473,284,1500,124,3796,181,781,125,1101,105,1228,86,18668,394,511,79,1358,76,2153,149,3822,195,2418,187,442,77,6579,266,2635,178,2317,352,1027,118,1811,150,2148,164,3286,220,2065,197,710,98,906,154,1247,103,871,100,760,113]
[null,"5 to 17  years:",286,78,309,113,304,86,867,148,169,61,78,31,258,69,3143,291,49,23,282,52,346,106,671,148,406,146,65,33,995,220,417,145,249,123,105,43,188,84,273,88,386,116,482,140,89,37,231,87,194,62,129,43,92,60]
[null,"With self care difficulty",0,11,0,11,15,27,8,12,0,11,0,11,0,11,0,24,0,11,7,11,0,11,15,24,7,10,0,11,13,19,4,10,0,16,0,11,7,12,0,11,0,16,0,11,0,11,0,11,4,6,4,6,0,11]
[null,"With no self care difficulty",286,78,309,113,289,89,859,147,169,61,78,31,258,69,3143,291,49,23,275,52,346,106,656,147,399,146,65,33,982,220,413,146,249,123,105,43,181,82,273,88,386,116,482,140,89,37,231,87,190,63,125,42,92,60]
[null,"18 to 34  years:",529,113,339,125,188,88,677,145,147,65,225,53,220,48,5116,328,94,28,229,54,475,123,732,180,746,180,78,31,1791,260,355,99,299,164,201,73,565,124,540,140,825,221,320,121,168,50,134,46,304,76,148,50,147,46]
[null,"With self care difficulty",0,11,0,11,0,11,0,16,0,11,8,12,7,10,56,42,0,11,4,6,0,11,0,16,21,33,0,11,12,17,0,16,0,16,5,8,0,11,39,58,31,48,0,11,6,8,0,11,0,11,0,11,0,11]
[null,"With no self care difficulty",529,113,339,125,188,88,677,145,147,65,217,54,213,48,5060,329,94,28,225,54,475,123,732,180,725,172,78,31,1779,262,355,99,299,164,196,71,565,124,501,124,794,201,320,121,162,49,134,46,304,76,148,50,147,46]
[null,"35 to 64  years:",1007,112,625,201,744,119,1677,99,298,47,571,71,551,51,7646,355,277,54,666,60,930,114,1679,176,901,119,217,38,2812,191,1407,121,1241,199,451,68,493,79,1068,127,1553,195,941,152,300,49,353,70,509,62,469,60,342,59]
[null,"With self care difficulty",0,11,24,17,25,39,9,14,10,13,0,11,0,11,134,71,4,5,8,10,33,36,36,33,0,11,14,18,51,48,0,16,7,16,0,11,0,11,41,38,19,29,13,18,0,11,0,11,29,28,3,6,11,17]
[null,"With no self care difficulty",1007,112,601,202,719,112,1668,96,288,47,571,71,551,51,7512,365,273,53,658,61,897,113,1643,174,901,119,203,36,2761,191,1407,121,1234,200,451,68,493,79,1027,129,1534,194,928,152,300,49,353,70,480,64,466,59,331,56]
[null,"65 to 74  years:",155,70,93,41,184,64,338,70,125,35,169,40,159,37,1636,164,54,30,141,30,293,88,485,119,257,84,50,24,666,125,294,83,398,152,188,48,235,73,216,71,372,99,207,84,117,34,96,37,181,44,106,26,103,33]
[null,"With self care difficulty",28,19,0,11,0,11,7,12,0,11,5,8,0,11,60,49,3,5,0,11,16,19,7,10,0,11,0,11,40,32,0,16,0,16,0,11,0,11,7,11,14,21,0,11,3,5,5,9,11,17,0,11,0,11]
[null,"With no self care difficulty",127,70,93,41,184,64,331,69,125,35,164,38,159,37,1576,155,51,30,141,30,277,88,478,121,257,84,50,24,626,123,294,83,398,152,188,48,235,73,209,71,358,100,207,84,114,33,91,36,170,41,106,26,103,33]
[null,"75  years and Older:",117,46,107,48,80,50,237,64,42,20,58,31,40,19,1127,177,37,20,40,15,109,49,255,70,108,50,32,24,315,95,162,78,130,79,82,32,330,96,51,26,150,69,115,59,36,17,92,38,59,26,19,11,76,34]
[null,"With self care difficulty",2,3,0,11,8,13,15,17,4,5,0,11,5,7,98,52,3,4,3,5,8,13,9,15,0,11,0,11,14,16,0,16,0,16,10,11,15,20,0,11,0,16,0,11,0,11,0,11,5,7,3,4,0,11]
[null,"With no self care difficulty",115,46,107,48,72,49,222,62,38,20,58,31,35,17,1029,181,34,20,37,15,101,48,246,68,108,50,32,24,301,96,162,78,130,79,72,33,315,94,51,26,150,69,115,59,36,17,92,38,54,26,16,10,76,34]
[null,"Female:",2030,119,1229,125,1791,140,3585,164,757,107,1132,98,1227,71,20182,381,526,84,1338,71,2240,139,4417,205,2256,170,426,69,7053,289,2738,158,2981,298,1014,118,2258,159,2338,152,3536,222,1873,189,669,93,905,138,1429,91,825,98,806,108]
[null,"5 to 17  years:",266,77,206,65,270,126,711,105,130,45,159,40,132,39,2702,286,106,39,328,62,397,109,536,134,227,95,44,27,1128,189,455,134,435,176,149,52,212,88,391,82,798,209,324,139,125,52,130,61,242,69,71,29,96,36]
[null,"With self care difficulty",0,11,0,11,0,11,0,16,0,11,0,11,0,11,12,19,0,11,0,11,0,11,26,21,0,11,0,11,13,19,0,16,0,16,0,11,0,11,0,11,0,16,0,11,0,11,0,11,6,9,0,11,0,11]
[null,"With no self care difficulty",266,77,206,65,270,126,711,105,130,45,159,40,132,39,2690,285,106,39,328,62,397,109,510,135,227,95,44,27,1115,186,455,134,435,176,149,52,212,88,391,82,798,209,324,139,125,52,130,61,236,70,71,29,96,36]
[null,"18 to 34  years:",459,148,201,78,349,101,399,104,105,52,231,58,275,63,5038,280,76,32,175,58,419,102,898,186,804,194,59,30,1894,260,375,141,521,182,121,45,787,158,694,118,577,154,269,91,74,29,107,36,353,84,155,52,151,53]
[null,"With self care difficulty",28,43,0,11,37,44,0,16,0,11,0,11,2,5,7,17,0,11,0,11,0,11,0,16,0,11,0,11,9,16,0,16,0,16,0,11,0,11,0,11,0,16,4,9,0,11,0,11,0,11,0,11,0,11]
[null,"With no self care difficulty",431,141,201,78,312,111,399,104,105,52,231,58,273,63,5031,279,76,32,175,58,419,102,898,186,804,194,59,30,1885,258,375,141,521,182,121,45,787,158,694,118,577,154,265,90,74,29,107,36,353,84,155,52,151,53]
[null,"35 to 64  years:",884,98,550,86,901,85,1719,102,330,56,544,61,614,60,8612,314,276,51,685,60,1016,132,2001,174,819,93,235,44,2811,171,1281,132,1396,143,456,67,594,87,994,109,1586,165,981,169,325,50,469,84,571,58,429,61,370,62]
[null,"With self care difficulty",41,49,6,8,12,20,11,15,0,11,0,11,17,15,143,68,4,5,4,6,11,17,41,62,10,17,12,18,34,40,0,16,0,16,5,8,0,11,26,26,18,29,49,48,0,11,0,11,7,10,9,11,4,5]
[null,"With no self care difficulty",843,112,544,86,889,86,1708,105,330,56,544,61,597,61,8469,314,272,51,681,60,1005,132,1960,165,809,93,223,41,2777,176,1281,132,1396,143,451,66,594,87,968,114,1568,161,932,162,325,50,469,84,564,57,420,59,366,63]
[null,"65 to 74  years:",172,62,139,50,143,49,408,75,123,30,102,35,127,28,1995,192,42,23,98,22,285,81,620,125,322,90,68,29,720,109,400,101,454,135,200,46,323,88,194,58,396,127,175,75,87,26,140,47,147,51,128,36,85,28]
[null,"With self care difficulty",0,11,0,11,0,11,7,10,0,11,0,11,0,11,99,51,0,11,0,11,23,26,38,48,0,11,0,11,40,34,11,20,21,35,6,8,17,27,0,11,0,16,10,16,3,5,0,11,0,11,0,11,0,11]
[null,"With no self care difficulty",172,62,139,50,143,49,401,75,123,30,102,35,127,28,1896,195,42,23,98,22,262,79,582,119,322,90,68,29,680,110,389,99,433,136,194,46,306,85,194,58,396,127,165,72,84,26,140,47,147,51,128,36,85,28]
[null,"75  years and Older:",249,109,133,61,128,55,348,75,69,37,96,31,79,32,1835,196,26,15,52,20,123,60,362,119,84,49,20,20,500,130,227,92,175,97,88,36,342,88,65,34,179,82,124,79,58,29,59,33,116,45,42,18,104,42]
[null,"With self care difficulty",0,11,26,27,11,19,32,27,0,11,4,7,6,9,247,87,0,11,0,11,27,32,37,28,0,11,0,11,53,47,23,36,0,16,20,17,16,17,0,11,0,16,16,21,8,9,0,11,0,11,4,6,20,22]
[null,"With no self care difficulty",249,109,107,55,117,56,316,74,69,37,92,30,73,31,1588,220,26,15,52,20,96,52,325,114,84,49,20,20,447,137,204,85,175,97,68,33,326,89,65,34,179,82,108,77,50,28,59,33,116,45,38,18,84,35]
[]
[]
[{"$f":"A1& \"-Calculated\"","v":"B18106. SEX BY AGE BY SELF-CARE DIFFICULTY\n\n\n\n-Calculated"}]
[{"$f":"A2","v":"Universe:  Civilian non-institutionalized population 5 years and over"}]
[{"$f":"A3","v":"Data Set: 2015-2019 American Community Survey 5-Year Estimates"}]
[]
[]
[null,null,"Allenstown",null,"Andover",null,"Boscawen",null,"Bow",null,"Bradford",null,"Canterbury",null,"Chichester",null,"Concord",null,"Danbury",null,"Dunbarton",null,"Epsom",null,"Franklin",null,"Henniker",null,"Hill",null,"Hooksett",null,"Hopkinton",null,"Loudon",null,"Newbury",null,"New London",null,"Northfield",null,"Pembroke",null,"Pittsfield",null,"Salisbury",null,"Sutton",null,"Warner",null,"Webster",null,"Wilmot"]
[null,null,"Estimate","Margin Of Error","Estimate","Margin Of Error","Estimate","Margin Of Error","Estimate","Margin Of Error","Estimate","Margin Of Error","Estimate","Margin Of Error","Estimate","Margin Of Error","Estimate","Margin Of Error","Estimate","Margin Of Error","Estimate","Margin Of Error","Estimate","Margin Of Error","Estimate","Margin Of Error","Estimate","Margin Of Error","Estimate","Margin Of Error","Estimate","Margin Of Error","Estimate","Margin Of Error","Estimate","Margin Of Error","Estimate","Margin Of Error","Estimate","Margin Of Error","Estimate","Margin Of Error","Estimate","Margin Of Error","Estimate","Margin Of Error","Estimate","Margin Of Error","Estimate","Margin Of Error","Estimate","Margin Of Error","Estimate","Margin Of Error","Estimate","Margin Of Error"]
[null,"Total:",4113,97,2370,240,3287,211,7362,99,1415,201,2272,134,2434,46,38112,389,1185,216,2670,45,4239,106,7917,164,4515,126,1147,180,12763,180,5343,106,4987,114,1982,242,4239,86,4404,145,6622,148,3759,104,1221,171,1673,221,2677,69,1685,150,1354,197]
[null,"5 to 17  years:",698,172.7917822120022,298,79.05694150420949,580,206.64946164943183,1791,192.4162155328911,203,73.23933369440222,395,96.607453128627711,447,84.876380695691779,6260,422.40383520986171,249,76.380625815713245,535,82.134036793524274,754,168.21712160181556,1558,304.90162347878703,798,185.69868066305693,275,73.23933369440222,2087,263.88254963146011,963,192.4162155328911,1112,221.00904958847272,307,84.811555816409836,547,112.4144118874444,932,207.20038610002638,1195,218.55205329623422,538,130.09611831257686,246,70.178344238091,356,90.520715861066847,411,99.724620831567975,317,68.8839603971781,259,73.661387442811588]
[null,"With self care difficulty",37,47.296934361541872,0,15.556349186104045,0,15.556349186104045,15,28.844410203711913,0,15.556349186104045,5,13.601470508735444,0,15.556349186104045,43,40.36087214122113,0,15.556349186104045,0,15.556349186104045,0,15.556349186104045,44,53.450912059571067,26,33.837848631377263,0,15.556349186104045,14,28.42534080710379,7,19.416487838947599,20,28.844410203711913,4,12.529964086141668,0,15.556349186104045,8,17.804493814764857,23,39.395431207184416,0,15.556349186104045,4,12.529964086141668,0,15.556349186104045,0,15.556349186104045,0,15.556349186104045,0,15.556349186104045]
[null,"With no self care difficulty",661,172.30786401090347,298,79.05694150420949,580,206.64946164943183,1776,187.3846311734236,203,73.23933369440222,390,96.607453128627711,447,84.876380695691779,6217,415.24571039325622,249,76.380625815713245,535,82.134036793524274,754,168.21712160181556,1514,307.09281984442424,772,182.70194306574848,275,73.23933369440222,2073,262.7279962242319,956,191.73158320944412,1092,219.40145851839728,303,84.02380615040002,547,112.4144118874444,924,206.00970850908945,1172,209.48030933717851,538,130.09611831257686,242,69.426219830839131,356,90.520715861066847,411,99.724620831567975,317,68.8839603971781,259,73.661387442811588]
[null,"18 to 34  years:",1008,159.17600321656528,413,110.27692415006868,672,167.62159765376299,776,158.61904047118682,213,56.080299571239813,332,69.426219830839131,336,67.357256476195644,9580,403.78831087588458,239,70.767224051816527,349,94.175368329515976,745,152.64337522473747,1662,247.4914139924858,1422,221.77466041006579,171,44.553338819890925,3029,310.48510431259018,786,184.1738309315414,866,186.93581786270923,276,71.847059786744225,1146,197.85348114198041,834,147.8681845428556,1497,243.47895186237352,844,157.76247969653622,211,43.185645763378368,234,65.76473218982953,451,92.617492948146676,241,56.400354608814297,171,63.007936008093459]
[null,"With self care difficulty",0,15.556349186104045,0,15.556349186104045,0,15.556349186104045,8,20.615528128088304,0,15.556349186104045,0,15.556349186104045,0,15.556349186104045,180,98.655967888415148,3,12.529964086141668,0,15.556349186104045,0,15.556349186104045,70,69.231495722683903,0,15.556349186104045,9,18.601075237738275,39,42.047592083257278,0,22.627416997969522,0,22.627416997969522,0,15.556349186104045,0,15.556349186104045,0,15.556349186104045,14,28.0178514522438,15,27.313000567495326,3,12.083045973594572,0,15.556349186104045,0,15.556349186104045,3,12.083045973594572,0,15.556349186104045]
[null,"With no self care difficulty",1008,159.17600321656528,413,110.27692415006868,672,167.62159765376299,768,158.61904047118682,213,56.080299571239813,332,69.426219830839131,336,67.357256476195644,9400,407.33278777923096,236,70.767224051816527,349,94.175368329515976,745,152.64337522473747,1592,237.92856070678022,1422,221.77466041006579,162,43.863424398922618,2990,306.89737698455491,786,184.1738309315414,866,186.93581786270923,276,71.847059786744225,1146,197.85348114198041,834,147.8681845428556,1483,246.61102976144437,829,155.72411502397438,208,43.863424398922618,234,65.76473218982953,451,92.617492948146676,238,55.803225713214822,171,63.007936008093459]
[null,"35 to 64  years:",1926,185.26737435393204,1179,140.60227594174995,1557,164.20109622045769,3790,142.89856542317,820,91.967385523347346,1237,82.024386617639507,1415,68.593002558570063,16930,419.56167603821967,547,81.467785044151043,1562,75.073297516493838,2159,118.1397477566293,3710,247.22661669003199,2026,185.53975315279473,588,74.411020689142546,5898,262.68041419184647,2609,152.02960238058901,2431,149.91330828182001,984,119.67038062946069,1162,134.23859355639868,2059,194.60986614249546,3168,233.96153530014288,1953,168.60011862392031,610,72.862884927787476,733,92.097774131626011,1394,105.38026380684383,923,74.518454090245328,664,89.10667763978185]
[null,"With self care difficulty",22,26.40075756488817,50,37.802116342871599,39,52.172789842982326,24,32.249030993194197,22,19.416487838947599,16,19.416487838947599,51,38.418745424597091,140,71.700767080973407,12,15.556349186104045,9,17.804493814764857,39,47.296934361541872,110,51.400389103585589,76,71.217975259059429,7,13.601470508735444,78,45.486261662176638,0,22.627416997969522,9,10,4,12.529964086141668,25,37.643060449437421,57,64.443773942872099,42,41.231056256176608,43,40.521599178709621,7,7.810249675906654,13,21.095023109728988,28,30.479501308256342,3,12.529964086141668,1,11.704699910719626]
[null,"With no self care difficulty",1904,189.58902921846507,1129,140.41723540933285,1518,173.25414857947845,3766,142.89856542317,798,87.965902484996988,1221,80.622577482985491,1364,81.320354155647891,16790,424.60334431089916,535,81.467785044151043,1553,75.073297516493838,2120,128.68954891520912,3600,240.36014644695155,1950,184.62935844550833,581,75.073297516493838,5820,265.50517885721177,2609,152.02960238058901,2422,150.6286825275983,980,119.67038062946069,1137,136.69308687713507,2002,205.91503102007877,3126,237.7666923688009,1910,171.35343591536179,603,72.862884927787476,720,91.438503924769023,1366,109.71326264403953,920,74.518454090245328,663,88.41379982785493]
[null,"65 to 74  years:",233,69.202601107183824,330,79.208585393251411,231,87.321245982864909,652,111.73182178770737,76,25.80697580112788,185,36.069377593742864,164,41.725292090050132,2640,197.29419656948858,107,30.232432915661949,169,40.36087214122113,430,108.22661410207751,497,110.34491379306978,106,49.929950931279713,76,23.345235059857504,1151,143.83671297690307,649,137.55726080436466,378,89.10667763978185,219,57.314919523628397,503,105.11898020814318,319,106.21675950620975,369,102.7277956543408,245,72.945184899347538,102,30,227,58.694122363316758,199,52.630789467763066,134,29.832867780352597,145,48.918299234540036]
[null,"With self care difficulty",8,17.029386365926403,12,14.212670403551895,0,15.556349186104045,9,21.2602916254693,0,15.556349186104045,0,15.556349186104045,4,13.038404810405298,69,42.01190307520001,6,13.038404810405298,11,16.278820596099706,0,15.556349186104045,56,41.048751503547585,0,15.556349186104045,5,13.601470508735444,8,21.633307652783937,14,28.0178514522438,8,20,19,22.825424421026653,0,15.556349186104045,0,15.556349186104045,16,30.528675044947494,12,18.601075237738275,0,15.556349186104045,0,15.556349186104045,0,15.556349186104045,3,11.704699910719626,0,15.556349186104045]
[null,"With no self care difficulty",225,71.61005515987263,318,77.794601355106892,231,87.321245982864909,643,112.44998888394787,76,25.80697580112788,185,36.069377593742864,160,41.725292090050132,2571,203.69094236121546,101,30.232432915661949,158,39.623225512317902,430,108.22661410207751,441,109.65856099730654,106,49.929950931279713,71,22.022715545545239,1143,145.16542288024377,635,138.42326394071193,370,89.10667763978185,200,52.40229002629561,503,105.11898020814318,319,106.21675950620975,353,99.76472322419383,233,71.344235926947874,102,30,227,58.694122363316758,199,52.630789467763066,131,29.068883707497267,145,48.918299234540036]
[null,"75  years and Older:",248,83.600239234107462,150,66.037867924396224,247,76.576758876306585,353,97,103,34.655446902326915,123,41.773197148410844,72,36.878177829171548,2702,254.42091109026396,43,16.278820596099706,55,32.202484376209235,151,60.605280298007038,490,109.55363982999378,163,66.887966032762577,37,17.720045146669349,598,129.00387591076478,336,88.865066252155572,200,64.660652641308843,196,69.426219830839131,881,135.28118864054971,260,91.35097153287424,393,106.82696288858914,179,75.663729752107784,52,18.439088914585774,123,47.634021455258214,222,69.31089380465383,70,29.732137494637012,115,38.013155617496423]
[null,"With self care difficulty",56,46.141087980237309,16,27.513632984395208,31,31.016124838541646,84,52.801515129776341,15,18.601075237738275,1,11.401754250991379,11,14.7648230602334,270,86.977008456258133,12,10.295630140987001,0,15.556349186104045,54,43.863424398922618,49,51.855568649856693,27,35.735136770411273,3,11.704699910719626,95,62.032249677083293,24,34,10,14.317821063276353,27,28.635642126552707,26,27.459060435491963,28,24.839484696748443,43,46.818799642878503,15,16.643316977093239,6,6.4031242374328485,8,7.810249675906654,26,27.459060435491963,11,20.248456731316587,3,12.083045973594572]
[null,"With no self care difficulty",192,77.801028270839709,134,59.363288318623319,216,72.138755187485728,269,85.586213843118443,88,31.240998703626616,122,41.773197148410844,61,34.828149534535996,2432,256.08787554275193,31,14.212670403551895,55,32.202484376209235,97,46.75467891024384,441,98.473346647709704,136,60.21627686929839,34,18.681541692269406,503,118.22436297142819,312,86.556340033529608,190,62.968245965724662,169,63.411355449950761,855,136.78084661238211,232,87.783825389418979,350,97.672923576598237,164,70.724818840347695,46,17.804493814764857,115,47.634021455258214,196,63.655321851358195,59,23.323807579381203,112,38.013155617496423]
[]
[]
[]
[]
[]
[]
[]
[]
[]
[]
[]
[]
[]
[]
[]
[]
[]
[]
[]
[]
[]
[]
[]
[]
[]
[]
[]
[]
[]
[]
[]
[]
[]
[]
[]
["B18106. SEX BY AGE BY SELF-CARE DIFFICULTY\n\n\n\n-Calculated"]
["Universe:  Civilian non-institutionalized population 5 years and over"]
["Data Set: 2010-2014 American Community Survey 5-Year Estimates"]
[]
[]
[null,null,"Allenstown",null,"Andover",null,"Boscawen",null,"Bow",null,"Bradford",null,"Canterbury",null,"Chichester",null,"Concord",null,"Danbury",null,"Dunbarton",null,"Epsom",null,"Franklin",null,"Henniker",null,"Hill",null,"Hooksett",null,"Hopkinton",null,"Loudon",null,"Newbury",null,"New London",null,"Northfield",null,"Pembroke",null,"Pittsfield",null,"Salisbury",null,"Sutton",null,"Warner",null,"Webster",null,"Wilmot"]
[null,null,"Estimate","Margin Of Error","Estimate","Margin Of Error","Estimate","Margin Of Error","Estimate","Margin Of Error","Estimate","Margin Of Error","Estimate","Margin Of Error","Estimate","Margin Of Error","Estimate","Margin Of Error","Estimate","Margin Of Error","Estimate","Margin Of Error","Estimate","Margin Of Error","Estimate","Margin Of Error","Estimate","Margin Of Error","Estimate","Margin Of Error","Estimate","Margin Of Error","Estimate","Margin Of Error","Estimate","Margin Of Error","Estimate","Margin Of Error","Estimate","Margin Of Error","Estimate","Margin Of Error","Estimate","Margin Of Error","Estimate","Margin Of Error","Estimate","Margin Of Error","Estimate","Margin Of Error","Estimate","Margin Of Error","Estimate","Margin Of Error","Estimate"]
[null,"Total:",3985,113,2362,246,3170,341,7448,80,1654,200,2167,184,2473,50,38039,484,1176,171,2635,56,4313,123,7728,218,4464,128,1120,176,12984,210,5411,111,5125,104,1694,220,4437,82,4393,154,6893,106,3751,129,1337,147,1897,263,2745,51,1821,194,1323,175]
[null,"5 to 17  years:",538,119.75391434103521,363,91.285267157411553,564,184.80530295421721,1742,177.34147850968199,265,70.604532432415411,339,87.664131775772461,396,74.518454090245328,6346,403.86260039770951,195,62.289646009589745,452,67.178865724273734,722,162.43152403397562,1378,254.84897488512681,810,185.39687160251654,207,63.702433234531945,1919,267.30132809247317,1077,221.32555207205516,970,172.03778654702577,260,61.032778078668514,383,107.61505470890214,757,159.84054554461454,1364,207.45360927204905,609,117.38824472663352,223,59.548299723837623,351,93.861600242058515,431,105.20931517693668,362,78.746428490440124,209,59.405386961116584]
[null,"With self care difficulty",26,42.449970553582247,0,15.556349186104045,0,15.556349186104045,0,21.213203435596427,0,15.556349186104045,4,13.038404810405298,0,15.556349186104045,57,36.674241641784498,0,15.556349186104045,0,15.556349186104045,0,15.556349186104045,18,35.341194094144583,13,24.596747752497688,0,15.556349186104045,39,47.169905660283021,38,37.013511046643494,33,47.434164902525687,6,14.212670403551895,18,28.231188426986208,0,15.556349186104045,20,36.249137920783717,0,15.556349186104045,3,12.529964086141668,0,15.556349186104045,0,15.556349186104045,0,15.556349186104045,0,15.556349186104045]
[null,"With no self care difficulty",512,114.58621208504974,363,91.285267157411553,564,184.80530295421721,1742,177.34147850968199,265,70.604532432415411,335,85.982556370463882,396,74.518454090245328,6289,401.03491119851401,195,62.289646009589745,452,67.178865724273734,722,162.43152403397562,1360,249.73586046060746,797,184.71870506258969,207,63.702433234531945,1880,259.04825805243314,1039,218.55205329623422,937,172.03778654702577,254,59.405386961116584,365,108.40664186294121,757,159.84054554461454,1344,204.50183373260984,609,117.38824472663352,220,59.548299723837623,351,93.861600242058515,431,105.20931517693668,362,78.746428490440124,209,59.405386961116584]
[null,"18 to 34  years:",856,121.69634341261039,334,106.94391053257777,777,163.3431969810803,880,159.96249560443849,268,49.819674828324601,296,63.7808748764079,401,86.683331731077345,9635,474.69147875225229,257,64.381674411279491,452,108.97706180660222,588,142.30249470757707,1549,211.92923347193044,1432,224.16288720481811,173,43.863424398922618,3252,363.68805314444961,963,193.04144632694815,823,158.54967675779096,188,66.068146636635717,1481,221.14474897677312,832,140.12137595670404,1409,263.3040068058213,897,181.46625030566977,255,58.796258384356399,293,81.320354155647891,472,101.9803902718557,303,70.936591403872796,228,78.10249675906654]
[null,"With self care difficulty",0,15.556349186104045,0,15.556349186104045,0,15.556349186104045,7,19.849433241279208,0,15.556349186104045,0,15.556349186104045,0,15.556349186104045,245,136.12494260788506,0,15.556349186104045,0,15.556349186104045,0,15.556349186104045,23,38.078865529319543,0,15.556349186104045,12,21.095023109728988,68,65.459911396212561,0,21.213203435596427,0,21.213203435596427,0,15.556349186104045,12,21.095023109728988,0,15.556349186104045,0,21.213203435596427,0,15.556349186104045,2,12.083045973594572,0,15.556349186104045,6,14.212670403551895,4,12.529964086141668,0,15.556349186104045]
[null,"With no self care difficulty",856,121.69634341261039,334,106.94391053257777,777,163.3431969810803,873,159.2262541165872,268,49.819674828324601,296,63.7808748764079,401,86.683331731077345,9390,460.44869421033218,257,64.381674411279491,452,108.97706180660222,588,142.30249470757707,1526,212.70872102478543,1432,224.16288720481811,161,40.36087214122113,3184,361.24783736376884,963,193.04144632694815,823,158.54967675779096,188,66.068146636635717,1469,220.51757299589528,832,140.12137595670404,1409,263.3040068058213,897,181.46625030566977,253,59.464274989274024,293,81.320354155647891,466,101.9803902718557,299,69.426219830839131,228,78.10249675906654]
[null,"35 to 64  years:",2019,169.70562748477141,1150,144.61673485458036,1351,143.68368035375485,3751,150.80119362922829,856,94.921019800674287,1171,90.553851381374173,1330,80.156097709406993,16834,457.20017497809425,550,79.208585393251411,1441,75.166481891864535,2336,152.76125163142649,3653,233.30880823492285,1923,221.14474897677312,581,60.307545133258408,6034,306.77679182102418,2404,147.92227688891217,2615,162.00308639035245,835,95.587656106842587,1088,120.21647141718975,2250,154.98709623707387,3308,251.46172671005024,1759,146.98639392814562,696,79.906195003891909,827,98.412397592986224,1368,98.081598681913832,921,87.692645073575008,580,72.835430938520574]
[null,"With self care difficulty",29,40.521599178709621,34,27.202941017470888,31,31.780497164141408,26,23.706539182259394,15,12.041594578792296,20,23.706539182259394,35,36.496575181789318,207,93.380940239430018,10,8.9442719099991592,0,15.556349186104045,32,43.416586692184822,155,60.21627686929839,103,71.217975259059429,7,14.212670403551895,45,35.846896657869841,0,21.213203435596427,40,49.648766349225639,5,13.601470508735444,48,48.764741360946438,23,28.231188426986208,63,55.21775076911409,46,37.589892258425003,7,13.038404810405298,13,22.825424421026653,11,16.278820596099706,0,15.556349186104045,2,11.401754250991379]
[null,"With no self care difficulty",1990,171.84004189943624,1116,147.20054347725758,1320,140.07141035914503,3725,151.02979838429235,841,95.587656106842587,1151,85.912746434973201,1295,82.134036793524274,16627,464.84405987384628,540,79.93122043357026,1441,75.166481891864535,2304,152.76125163142649,3498,225.21989254948153,1820,200.0099997500125,574,59.665735560705194,5989,307.19700519373555,2404,147.92227688891217,2575,152.10851389715174,830,95.587656106842587,1040,119.5198728245642,2227,154.31137352768266,3245,252.79438284898657,1713,149.93665329064805,689,79.906195003891909,814,99.904954832080278,1357,98.081598681913832,921,87.692645073575008,578,72.835430938520574]
[null,"65 to 74  years:",315,86.284413424441851,322,78.87331614684399,273,94.873600121424715,697,112.80514172678478,145,42.426406871192853,246,46.861498055439924,265,54.488530903301111,2747,238.09661904361431,109,33.120990323358392,225,45.221676218380054,433,118.06777714516353,573,120.20815280171308,105,45.276925690687087,113,38.948684188300895,1138,165.07574019219177,705,135.5912976558599,409,95.482982777037293,223,50.328918128646478,654,116.82465493208187,316,77.89736837660179,467,126.65701717630967,302,67.623960250786851,110,31.906112267087632,260,72.801098892805186,262,72.180329730474355,164,31.144823004794873,162,38.013155617496423]
[null,"With self care difficulty",19,19.849433241279208,11,15.264337522473747,7,16.278820596099706,35,31.76476034853718,3,11.704699910719626,6,14.212670403551895,5,13.038404810405298,125,62.128898268036266,4,12.529964086141668,5,13.038404810405298,0,15.556349186104045,38,32.695565448543633,0,15.556349186104045,7,7.6157731058639087,54,38.288379438153292,0,21.213203435596427,21,28.301943396169811,11,20.248456731316587,18,31.016124838541646,6,14.866068747318506,14,26.627053911388696,15,21.95449840010015,0,15.556349186104045,0,15.556349186104045,12,29.154759474226502,3,11.704699910719626,11,20.248456731316587]
[null,"With no self care difficulty",296,82.365041127896006,311,74.411020689142546,266,94.339811320566042,662,112.04463396343441,142,41.725292090050132,240,44.598206241955516,260,54.488530903301111,2622,238.42189496772312,105,32.649655434629018,220,44.407206622349037,433,118.06777714516353,535,115.31261856362468,105,45.276925690687087,106,37.536648758246919,1084,159.5054857990784,705,135.5912976558599,388,91.241437954473298,212,46.669047558312137,636,116.03878661895772,310,77.89736837660179,453,126.65701717630967,287,65.80273550544841,110,31.906112267087632,260,72.801098892805186,250,65.80273550544841,161,31.144823004794873,151,38.832975677895199]
[null,"75  years and Older:",257,84.504437753291981,193,69.06518659932803,205,79.309520235593411,378,97.836598469080073,120,34.985711369071801,115,38.897300677553446,81,38.275318418009277,2477,245.81497106563708,65,21.633307652783937,65,30.675723300355934,234,75.927597090912869,575,113.35784048754634,194,66.370174024180471,46,25.495097567963924,641,135.6244815658294,262,74.966659255965254,308,104.44615837837216,188,59.640590204993778,831,142.05632685663809,238,70.178344238091,345,97.8008179924892,184,67.201190465645766,53,19.849433241279208,166,48.270073544588683,212,58.137767414994535,71,30.413812651491099,144,43.278170016764804]
[null,"With self care difficulty",35,32.557641192199412,41,42.80186911806539,22,34.785054261852174,50,40.853396431630991,11,20.248456731316587,1,11.401754250991379,20,16.278820596099706,251,86.05230967266364,18,14.317821063276353,6,13.601470508735444,37,30.413812651491099,66,60.440052945046304,18,29.154759474226502,2,11.704699910719626,128,71.421285342676384,25,32.649655434629018,25,27.166155414412248,20,25.709920264364882,64,41.146081222881968,47,29.410882339705484,50,45.541190146942803,13,14.866068747318506,6,7.0710678118654755,8,7.810249675906654,30,32.893768406797051,11,21.95449840010015,6,12.529964086141668]
[null,"With no self care difficulty",222,80.280757345705197,152,56.612719418872643,183,74.249579123386283,328,99.35793878699377,109,30.805843601498726,114,38.897300677553446,61,33.286633954186478,2226,235.54405108174564,47,18.027756377319946,59,29.732137494637012,197,69.634761434214738,509,105.38026380684383,176,65.513357416636794,44,25.495097567963924,513,121.43310915891102,237,71.449282711584999,283,102.57680049601859,168,55.009090157900268,767,142.30249470757707,191,65.855903304107827,295,89.274856482662571,171,65.299310869258036,47,18.601075237738275,158,47.634021455258214,182,55.172456896534889,60,23.259406699226016,138,43.278170016764804]

{"sheet":"ACS_Table_B18107","index":32,"n_rows":119,"n_cols":56,"rows_kept":119,"cut":false,"hidden":true,"merged":[]}
["B18107. SEX BY AGE BY INDEPENDENT LIVING DIFFICULTY\n\n\n"]
["Universe:  Civilian non-institutionalized population 18 years and over"]
["Data Set: 2015-2019 American Community Survey 5-Year Estimates"]
[]
[null,null,"Allenstown",null,"Andover",null,"Boscawen",null,"Bow",null,"Bradford",null,"Canterbury",null,"Chichester",null,"Concord",null,"Danbury",null,"Dunbarton",null,"Epsom",null,"Franklin",null,"Henniker",null,"Hill",null,"Hooksett",null,"Hopkinton",null,"Loudon",null,"Newbury",null,"New London",null,"Northfield",null,"Pembroke",null,"Pittsfield",null,"Salisbury",null,"Sutton",null,"Warner",null,"Webster",null,"Wilmot"]
[null,null,"Estimate","Margin Of Error","Estimate","Margin Of Error","Estimate","Margin Of Error","Estimate","Margin Of Error","Estimate","Margin Of Error","Estimate","Margin Of Error","Estimate","Margin Of Error","Estimate","Margin Of Error","Estimate","Margin Of Error","Estimate","Margin Of Error","Estimate","Margin Of Error","Estimate","Margin Of Error","Estimate","Margin Of Error","Estimate","Margin Of Error","Estimate","Margin Of Error","Estimate","Margin Of Error","Estimate","Margin Of Error","Estimate","Margin Of Error","Estimate","Margin Of Error","Estimate","Margin Of Error","Estimate","Margin Of Error","Estimate","Margin Of Error","Estimate","Margin Of Error","Estimate","Margin Of Error","Estimate","Margin Of Error","Estimate","Margin Of Error","Estimate"]
[null,"Total:",3572,115,2187,242,2717,148,5803,158,1239,162,1996,138,2065,66,33005,395,882,123,2086,69,3650,137,7032,206,4041,161,759,110,11509,239,4501,133,4614,207,1787,170,3669,159,3822,120,5638,197,3132,181,1165,134,1450,183,2240,105,1496,144,1378,158]
[null,"Male:",1808,115,1164,229,1196,134,2929,152,612,97,1023,99,970,66,15525,387,462,70,1076,59,1807,117,3151,204,2012,177,377,58,5584,214,2218,124,2068,336,922,106,1623,165,1875,127,2900,197,1583,155,621,85,675,101,1053,78,742,85,668,85]
[null,"18 to 34  years:",529,113,339,125,188,88,677,145,147,65,225,53,220,48,5116,328,94,28,229,54,475,123,732,180,746,180,78,31,1791,260,355,99,299,164,201,73,565,124,540,140,825,221,320,121,168,50,134,46,304,76,148,50,147,46]
[null,"With independent living difficulty",0,11,0,11,0,11,0,16,6,8,27,13,22,20,226,81,0,11,14,16,0,11,9,19,37,39,0,11,30,28,0,16,0,16,5,8,23,30,73,79,19,32,41,37,12,12,6,10,6,13,3,5,2,4]
[null,"With no independent living difficulty",529,113,339,125,188,88,677,145,141,65,198,54,198,43,4890,336,94,28,215,56,475,123,723,178,709,173,78,31,1761,258,355,99,299,164,196,71,542,125,467,120,806,220,279,115,156,48,128,44,298,77,145,51,145,47]
[null,"35 to 64  years:",1007,112,625,201,744,119,1677,99,298,47,571,71,551,51,7646,355,277,54,666,60,930,114,1679,176,901,119,217,38,2812,191,1407,121,1241,199,451,68,493,79,1068,127,1553,195,941,152,300,49,353,70,509,62,469,60,342,59]
[null,"With independent living difficulty",37,29,24,17,48,46,25,23,10,12,15,21,0,11,353,144,4,5,12,13,41,31,108,72,10,17,0,11,80,56,0,16,49,43,0,11,9,14,36,35,36,40,99,71,0,11,0,11,11,13,17,18,11,17]
[null,"With no independent living difficulty",970,118,601,202,696,113,1652,99,288,48,556,68,551,51,7293,344,273,53,654,61,889,110,1571,186,891,120,217,38,2732,191,1407,121,1192,205,451,68,484,79,1032,129,1517,194,842,148,300,49,353,70,498,64,452,58,331,59]
[null,"65 to 74  years:",155,70,93,41,184,64,338,70,125,35,169,40,159,37,1636,164,54,30,141,30,293,88,485,119,257,84,50,24,666,125,294,83,398,152,188,48,235,73,216,71,372,99,207,84,117,34,96,37,181,44,106,26,103,33]
[null,"With independent living difficulty",20,21,0,11,0,11,10,15,0,11,5,8,0,11,138,80,6,6,4,6,8,12,10,12,0,11,0,11,67,44,0,16,0,16,0,11,0,11,16,17,46,40,0,11,3,5,5,9,14,18,0,11,3,6]
[null,"With no independent living difficulty",135,70,93,41,184,64,328,72,125,35,164,38,159,37,1498,158,48,29,137,31,285,88,475,121,257,84,50,24,599,123,294,83,398,152,188,48,235,73,200,73,326,95,207,84,114,33,91,36,167,41,106,26,100,32]
[null,"75  years and Older:",117,46,107,48,80,50,237,64,42,20,58,31,40,19,1127,177,37,20,40,15,109,49,255,70,108,50,32,24,315,95,162,78,130,79,82,32,330,96,51,26,150,69,115,59,36,17,92,38,59,26,19,11,76,34]
[null,"With independent living difficulty",12,15,0,11,8,13,19,21,4,5,18,27,0,11,257,78,3,4,7,8,23,21,57,36,0,11,0,11,39,29,0,16,0,16,10,11,43,35,10,16,0,16,8,12,0,11,0,11,5,7,3,4,6,6]
[null,"With no independent living difficulty",105,43,107,48,72,49,218,59,38,20,40,19,40,19,870,167,34,20,33,14,86,49,198,67,108,50,32,24,276,88,162,78,130,79,72,33,287,90,41,26,150,69,107,57,36,17,92,38,54,26,16,10,70,34]
[null,"Female:",1764,104,1023,105,1521,137,2874,140,627,90,973,87,1095,58,17480,323,420,66,1010,55,1843,122,3881,211,2029,154,382,61,5925,279,2283,128,2546,224,865,92,2046,138,1947,112,2738,200,1549,141,544,64,775,104,1187,77,754,85,710,97]
[null,"18 to 34  years:",459,148,201,78,349,101,399,104,105,52,231,58,275,63,5038,280,76,32,175,58,419,102,898,186,804,194,59,30,1894,260,375,141,521,182,121,45,787,158,694,118,577,154,269,91,74,29,107,36,353,84,155,52,151,53]
[null,"With independent living difficulty",56,49,0,11,37,44,0,16,0,11,0,11,2,5,280,132,0,11,8,10,0,11,9,18,40,44,2,4,50,44,0,16,0,16,0,11,11,13,24,27,19,33,21,21,4,7,0,11,5,7,0,11,1,4]
[null,"With no independent living difficulty",403,144,201,78,312,111,399,104,105,52,231,58,273,63,4758,296,76,32,167,57,419,102,889,186,764,190,57,29,1844,253,375,141,521,182,121,45,776,154,670,121,558,159,248,90,70,28,107,36,348,84,155,52,150,53]
[null,"35 to 64  years:",884,98,550,86,901,85,1719,102,330,56,544,61,614,60,8612,314,276,51,685,60,1016,132,2001,174,819,93,235,44,2811,171,1281,132,1396,143,456,67,594,87,994,109,1586,165,981,169,325,50,469,84,571,58,429,61,370,62]
[null,"With independent living difficulty",76,61,6,8,88,53,19,20,0,11,30,17,18,15,502,211,18,18,23,23,34,39,213,119,20,25,4,5,98,75,25,28,21,29,21,18,14,17,59,49,36,41,199,121,12,11,14,19,23,18,2,5,4,5]
[null,"With no independent living difficulty",808,113,544,86,813,102,1700,107,330,56,514,62,596,60,8110,319,258,49,662,62,982,135,1788,200,799,93,231,44,2713,188,1256,131,1375,144,435,66,580,82,935,120,1550,160,782,171,313,51,455,81,548,57,427,61,366,62]
[null,"65 to 74  years:",172,62,139,50,143,49,408,75,123,30,102,35,127,28,1995,192,42,23,98,22,285,81,620,125,322,90,68,29,720,109,400,101,454,135,200,46,323,88,194,58,396,127,175,75,87,26,140,47,147,51,128,36,85,28]
[null,"With independent living difficulty",0,11,15,18,9,14,7,10,0,11,5,9,0,11,172,60,0,11,0,11,19,24,90,81,0,11,7,7,64,43,30,35,21,35,10,11,17,27,0,11,11,20,38,47,3,5,5,8,5,7,0,11,0,11]
[null,"With no independent living difficulty",172,62,124,50,134,48,401,75,123,30,97,35,127,28,1823,185,42,23,98,22,266,80,530,109,322,90,61,26,656,107,370,103,433,136,190,46,306,85,194,58,385,125,137,60,84,26,135,46,142,50,128,36,85,28]
[null,"75  years and Older:",249,109,133,61,128,55,348,75,69,37,96,31,79,32,1835,196,26,15,52,20,123,60,362,119,84,49,20,20,500,130,227,92,175,97,88,36,342,88,65,34,179,82,124,79,58,29,59,33,116,45,42,18,104,42]
[null,"With independent living difficulty",48,61,38,30,11,19,96,44,0,11,9,11,17,13,473,151,3,6,26,16,18,28,91,74,0,11,5,7,108,59,51,48,68,62,19,16,49,36,0,11,28,31,26,26,20,14,0,11,22,32,10,9,5,7]
[null,"With no independent living difficulty",201,93,95,53,117,56,252,70,69,37,87,30,62,29,1362,186,23,13,26,15,105,54,271,105,84,49,15,19,392,134,176,84,107,78,69,34,293,84,65,34,151,77,98,75,38,27,59,33,94,38,32,16,99,42]
[]
[]
[{"$f":"A1& \"-Calculated\"","v":"B18107. SEX BY AGE BY INDEPENDENT LIVING DIFFICULTY\n\n\n-Calculated"}]
[{"$f":"A2","v":"Universe:  Civilian non-institutionalized population 18 years and over"}]
[{"$f":"A3","v":"Data Set: 2015-2019 American Community Survey 5-Year Estimates"}]
[]
[]
[null,null,"Allenstown",null,"Andover",null,"Boscawen",null,"Bow",null,"Bradford",null,"Canterbury",null,"Chichester",null,"Concord",null,"Danbury",null,"Dunbarton",null,"Epsom",null,"Franklin",null,"Henniker",null,"Hill",null,"Hooksett",null,"Hopkinton",null,"Loudon",null,"Newbury",null,"New London",null,"Northfield",null,"Pembroke",null,"Pittsfield",null,"Salisbury",null,"Sutton",null,"Warner",null,"Webster",null,"Wilmot"]
[null,null,"Estimate","Margin Of Error","Estimate","Margin Of Error","Estimate","Margin Of Error","Estimate","Margin Of Error","Estimate","Margin Of Error","Estimate","Margin Of Error","Estimate","Margin Of Error","Estimate","Margin Of Error","Estimate","Margin Of Error","Estimate","Margin Of Error","Estimate","Margin Of Error","Estimate","Margin Of Error","Estimate","Margin Of Error","Estimate","Margin Of Error","Estimate","Margin Of Error","Estimate","Margin Of Error","Estimate","Margin Of Error","Estimate","Margin Of Error","Estimate","Margin Of Error","Estimate","Margin Of Error","Estimate","Margin Of Error","Estimate","Margin Of Error","Estimate","Margin Of Error","Estimate","Margin Of Error","Estimate","Margin Of Error","Estimate","Margin Of Error","Estimate"]
[null,"Total:",{"$f":"C7","v":3572},115,2187,242,2717,148,5803,158,1239,162,1996,138,2065,66,33005,395,882,123,2086,69,3650,137,{"$f":"Y7","v":7032},206,4041,161,759,110,11509,239,4501,133,4614,207,1787,170,3669,159,3822,120,5638,197,3132,181,1165,134,1450,183,2240,105,1496,144,1378,158]
[null,"18 to 34  years:",{"$f":"C22+C9","v":988},{"$f":"SQRT((D22^2)+(D9^2))","v":186.20687420178666},{"$f":"E22+E9","v":540},{"$f":"SQRT((F22^2)+(F9^2))","v":147.33974345029924},{"$f":"G22+G9","v":537},{"$f":"SQRT((H22^2)+(H9^2))","v":133.9589489358587},{"$f":"I22+I9","v":1076},{"$f":"SQRT((J22^2)+(J9^2))","v":178.44046626256053},{"$f":"K22+K9","v":252},{"$f":"SQRT((L22^2)+(L9^2))","v":83.240615086627031},{"$f":"M22+M9","v":456},{"$f":"SQRT((N22^2)+(N9^2))","v":78.568441501661468},{"$f":"O22+O9","v":495},{"$f":"SQRT((P22^2)+(P9^2))","v":79.202272694664515},{"$f":"Q22+Q9","v":10154},{"$f":"SQRT((R22^2)+(R9^2))","v":431.25862310219372},{"$f":"S22+S9","v":170},{"$f":"SQRT((T22^2)+(T9^2))","v":42.5205832509386},{"$f":"U22+U9","v":404},{"$f":"SQRT((V22^2)+(V9^2))","v":79.246451024635803},{"$f":"W22+W9","v":894},{"$f":"SQRT((X22^2)+(X9^2))","v":159.7904878270293},{"$f":"Y22+Y9","v":1630},{"$f":"SQRT((Z22^2)+(Z9^2))","v":258.83585532147589},{"$f":"AA22+AA9","v":1550},{"$f":"SQRT((AB22^2)+(AB9^2))","v":264.64315596667149},{"$f":"AC22+AC9","v":137},{"$f":"SQRT((AD22^2)+(AD9^2))","v":43.139309220245984},{"$f":"AE22+AE9","v":3685},{"$f":"SQRT((AF22^2)+(AF9^2))","v":367.69552621700473},{"$f":"AG22+AG9","v":730},{"$f":"SQRT((AH22^2)+(AH9^2))","v":172.28464818433474},{"$f":"AI22+AI9","v":820},{"$f":"SQRT((AJ22^2)+(AJ9^2))","v":244.98979570586201},{"$f":"AK22+AK9","v":322},{"$f":"SQRT((AL22^2)+(AL9^2))","v":85.755466298073387},{"$f":"AM22+AM9","v":1352},{"$f":"SQRT((AN22^2)+(AN9^2))","v":200.84820138602188},{"$f":"AO22+AO9","v":1234},{"$f":"SQRT((AP22^2)+(AP9^2))","v":183.09560344257315},{"$f":"AQ22+AQ9","v":1402},{"$f":"SQRT((AR22^2)+(AR9^2))","v":269.36406590337918},{"$f":"AS22+AS9","v":589},{"$f":"SQRT((AT22^2)+(AT9^2))","v":151.40013210033868},{"$f":"AU22+AU9","v":242},{"$f":"SQRT((AV22^2)+(AV9^2))","v":57.801384066473702},{"$f":"AW22+AW9","v":241},{"$f":"SQRT((AX22^2)+(AX9^2))","v":58.412327466040935},{"$f":"AY22+AY9","v":657},{"$f":"SQRT((AZ22^2)+(AZ9^2))","v":113.27841806805037},{"$f":"BA22+BA9","v":303},{"$f":"SQRT((BB22^2)+(BB9^2))","v":72.138755187485728},{"$f":"BC22+BC9","v":298},{"$f":"SQRT((BD22^2)+(BD9^2))","v":70.178344238091}]
[null,"With independent living difficulty",{"$f":"C23+C10","v":56},{"$f":"SQRT((D23^2)+(D10^2))","v":50.219518117958877},0,15.556349186104045,37,45.354161881794269,0,22.627416997969522,6,13.601470508735444,27,17.029386365926403,24,20.615528128088304,506,154.87091398968369,0,15.556349186104045,22,18.867962264113206,0,15.556349186104045,18,26.172504656604801,77,58.796258384356399,2,11.704699910719626,80,52.153619241621193,0,22.627416997969522,0,22.627416997969522,5,13.601470508735444,34,32.695565448543633,97,83.486525858967212,38,45.967379738244816,62,42.544094772365298,16,13.892443989449804,6,14.866068747318506,11,14.7648230602334,3,12.083045973594572,3,5.6568542494923806]
[null,"With no independent living difficulty",932,183.04371062672436,540,147.33974345029924,500,141.65097952361643,1076,178.44046626256053,246,83.240615086627031,429,79.246451024635803,471,76.275815302099531,9648,447.78566301300896,170,42.5205832509386,382,79.906195003891909,894,159.7904878270293,1612,257.44902408049637,1473,256.96108654813867,135,42.449970553582247,3605,361.34886190494638,730,172.28464818433474,820,244.98979570586201,317,84.059502734670033,1318,198.3456578803781,1137,170.41420128616042,1364,271.44244325455077,527,146.03081866510234,226,55.569775957799216,235,56.850681614207581,646,113.95174417269794,300,72.835430938520574,295,70.837842993699354]
[null,"35 to 64  years:",1891,148.82204137828509,1175,218.62525014279572,1645,146.23952953972466,3396,142.1442928857856,628,73.109506905736964,1115,93.605555390692487,1165,78.746428490440124,16258,473.94197957133952,553,74.276510418839678,1351,84.852813742385706,1946,174.41330224498358,3680,247.4914139924858,1720,151.02979838429235,452,58.137767414994535,5623,256.36302385484532,2688,179.06702655709677,2637,245.05101509685693,907,95.462034338264544,1087,117.51595636338071,2062,167.36188335460378,3139,255.44079548889601,1922,227.29936207565564,625,70.007142492748557,822,109.34349546269316,1080,84.899941107164494,898,85.562842402528915,712,85.586213843118443]
[null,"With independent living difficulty",113,67.542579163073128,30,18.788294228055936,136,70.178344238091,44,30.479501308256342,10,16.278820596099706,45,27.018512172212592,18,18.601075237738275,855,255.45449692655637,22,18.681541692269406,35,26.419689627245813,75,49.819674828324601,321,139.08630414242805,30,30.232432915661949,4,12.083045973594572,178,93.60021367496978,25,32.249030993194197,70,51.86520991955976,21,21.095023109728988,23,22.022715545545239,95,60.21627686929839,72,57.280013966478741,298,140.29255147726127,12,15.556349186104045,14,21.95449840010015,34,22.203603311174518,19,18.681541692269406,15,17.720045146669349]
[null,"With no independent living difficulty",1778,163.37992532744039,1145,219.5449840010015,1509,152.22680447279973,3352,145.7737973711325,618,73.756355658343097,1070,92.021736562618727,1147,78.746428490440124,15403,469.14496693452867,531,72.180329730474355,1316,86.977008456258133,1871,174.14074767267999,3359,273.12268305653413,1690,151.81897114655993,448,58.137767414994535,5445,268.00186566514793,2663,178.33115263464205,2567,250.52145616693193,886,94.762861923857074,1064,113.86395390991831,1967,176.18456232031227,3067,251.46769176178478,1624,226.15260334561705,613,70.724818840347695,808,107.05606008068857,1046,85.702975444263316,879,84.172442046075858,697,85.586213843118443]
[null,"65 to 74  years:",327,93.509357820487679,232,64.660652641308843,327,80.603970125546539,746,102.59142264341595,248,46.097722286464439,271,53.150729063673246,286,46.400431032480725,3631,252.50742563338608,96,37.802116342871599,239,37.20215047547655,578,119.60351165413162,1105,172.58621034138272,579,123.10970717209915,118,37.643060449437421,1386,165.8493292117879,694,130.728726758888,852,203.29535164385831,388,66.483080554378645,558,114.33722053644648,410,91.678787077491378,768,161.02794788483146,382,112.60994627474076,204,42.80186911806539,236,59.816385714952723,328,67.357256476195644,234,44.407206622349037,188,43.278170016764804]
[null,"With independent living difficulty",20,23.706539182259394,15,21.095023109728988,9,17.804493814764857,17,18.027756377319946,0,15.556349186104045,10,12.041594578792296,0,15.556349186104045,310,100,6,12.529964086141668,4,12.529964086141668,27,26.832815729997478,100,81.884064383737083,0,15.556349186104045,7,13.038404810405298,131,61.522353661088097,30,38.483762809787713,21,38.483762809787713,10,15.556349186104045,17,29.154759474226502,16,20.248456731316587,57,44.721359549995796,38,48.270073544588683,6,7.0710678118654755,10,12.041594578792296,19,19.313207915827967,0,15.556349186104045,3,12.529964086141668]
[null,"With no independent living difficulty",307,93.509357820487679,217,64.660652641308843,318,80,729,103.96634070698073,248,46.097722286464439,261,51.662365412357957,286,46.400431032480725,3321,243.28789530101986,90,37.013511046643494,235,38.013155617496423,551,118.92854997854805,1005,162.85576440519384,579,123.10970717209915,111,35.383612025908263,1255,163.02760502442524,664,132.28000604777731,831,203.96078054371139,378,66.483080554378645,541,112.04463396343441,394,93.23625904121208,711,157.00318468107582,344,103.22790320451152,198,42.01190307520001,226,58.412327466040935,309,64.660652641308843,234,44.407206622349037,185,42.5205832509386]
[null,"75  years and Older:",366,118.30891766895681,240,77.620873481300123,208,74.330343736592525,585,98.595131725658746,111,42.059481689626182,154,43.840620433565945,119,37.215588131856791,2962,264.09278672466615,63,25,92,25,232,77.466121627457255,617,138.06158046321215,192,70.007142492748557,52,31.240998703626616,815,161.01242188104618,389,120.61509026651682,305,125.09996003196804,170,48.166378315169183,672,130.23056476879765,116,42.80186911806539,329,107.16809226630845,239,98.600202839547947,94,33.61547262794322,151,50.328918128646478,175,51.97114584074513,61,21.095023109728988,180,54.037024344425184]
[null,"With independent living difficulty",60,62.81719509815764,38,31.953090617340916,19,23.021728866442675,115,48.754486972995622,4,12.083045973594572,27,29.154759474226502,17,17.029386365926403,730,169.95587662684687,6,7.2111025509279782,33,17.888543819998318,41,35,148,82.292162445763935,0,15.556349186104045,5,13.038404810405298,147,65.741919655574407,51,50.596442562694072,68,64.031242374328485,29,19.416487838947599,92,50.209560842532767,10,19.416487838947599,28,34.885527085024819,34,28.635642126552707,20,17.804493814764857,0,15.556349186104045,27,32.756678708318397,13,9.8488578017961039,11,9.2195444572928871]
[null,"With no independent living difficulty",{"$f":"C33+C20","v":306},102.45974819410792,202,71.505244562899023,189,74.411020689142546,470,91.547801721286575,107,42.059481689626182,127,35.510561809129406,102,34.669871646719429,2232,249.96999819978396,57,23.853720883753127,59,20.518284528683193,191,72.917761896536561,469,124.55520864259351,192,70.007142492748557,47,30.610455730027933,668,160.31219541881399,338,114.62983904725679,237,111.01801655587259,141,47.381430961928537,580,123.10970717209915,106,42.80186911806539,301,103.39245620450265,205,94.201910808645493,74,31.906112267087632,151,50.328918128646478,148,46.043457732885351,48,18.867962264113206,169,54.037024344425184]
[]
[]
[]
[]
[]
[]
[]
[]
[]
[]
[]
[]
[]
[]
[]
[]
[]
[]
[]
[]
[]
[]
[]
[]
[]
[]
[]
[]
[]
[]
[]
[]
[]
[]
[]
[]
[]
[]
[]
[]
[]
[]
[]
[]
["B18107. SEX BY AGE BY INDEPENDENT LIVING DIFFICULTY\n\n\n-Calculated"]
["Universe:  Civilian non-institutionalized population 18 years and over"]
["Data Set: 2010-2014 American Community Survey 5-Year Estimates"]
[]
[]
[null,null,"Allenstown",null,"Andover",null,"Boscawen",null,"Bow",null,"Bradford",null,"Canterbury",null,"Chichester",null,"Concord",null,"Danbury",null,"Dunbarton",null,"Epsom",null,"Franklin",null,"Henniker",null,"Hill",null,"Hooksett",null,"Hopkinton",null,"Loudon",null,"Newbury",null,"New London",null,"Northfield",null,"Pembroke",null,"Pittsfield",null,"Salisbury",null,"Sutton",null,"Warner",null,"Webster",null,"Wilmot"]
[null,null,"Estimate","Margin Of Error","Estimate","Margin Of Error","Estimate","Margin Of Error","Estimate","Margin Of Error","Estimate","Margin Of Error","Estimate","Margin Of Error","Estimate","Margin Of Error","Estimate","Margin Of Error","Estimate","Margin Of Error","Estimate","Margin Of Error","Estimate","Margin Of Error","Estimate","Margin Of Error","Estimate","Margin Of Error","Estimate","Margin Of Error","Estimate","Margin Of Error","Estimate","Margin Of Error","Estimate","Margin Of Error","Estimate","Margin Of Error","Estimate","Margin Of Error","Estimate","Margin Of Error","Estimate","Margin Of Error","Estimate","Margin Of Error","Estimate","Margin Of Error","Estimate","Margin Of Error","Estimate","Margin Of Error","Estimate","Margin Of Error","Estimate"]
[null,"Total:",3447,110,1999,205,2606,275,5706,119,1389,158,1828,133,2077,62,31693,515,981,130,2183,66,3591,127,6350,210,3654,238,913,126,11065,216,4334,157,4155,149,1434,178,4054,143,3636,152,5529,158,3142,147,1114,120,1546,210,2314,104,1459,141,1114,136]
[null,"18 to 34  years:",856,121.69634341261039,334,106.94391053257777,777,163.3431969810803,880,159.96249560443849,268,49.819674828324601,296,63.7808748764079,401,86.683331731077345,9635,474.69147875225229,257,64.381674411279491,452,108.97706180660222,588,142.30249470757707,1549,211.92923347193044,1432,224.16288720481811,173,43.863424398922618,3252,363.68805314444961,963,193.04144632694815,823,158.54967675779096,188,66.068146636635717,1481,221.14474897677312,832,140.12137595670404,1409,263.3040068058213,897,181.46625030566977,255,58.796258384356399,293,81.320354155647891,472,101.9803902718557,303,70.936591403872796,228,78.10249675906654]
[null,"With independent living difficulty",51,34,5,13.601470508735444,9,17.804493814764857,29,27.658633371878661,3,12.529964086141668,0,15.556349186104045,1,11.704699910719626,398,138.2931668593933,0,15.556349186104045,20,22.825424421026653,0,15.556349186104045,38,37.947331922020552,0,15.556349186104045,21,21.023796041628639,58,64.350602172784676,13,27.459060435491963,36,56.044625076808217,5,13.038404810405298,36,31.016124838541646,41,27.313000567495326,20,25,29,30.083217912982647,2,12.083045973594572,3,11.704699910719626,30,23.600847442411894,7,13.601470508735444,10,19.416487838947599]
[null,"With no independent living difficulty",805,124.57929201917949,329,106.06601717798213,768,163.3431969810803,851,163.3431969810803,265,49.819674828324601,296,63.7808748764079,400,85.912746434973201,9237,462.52567496302299,257,64.381674411279491,432,106.7941945987702,588,142.30249470757707,1511,214.11445537375565,1432,224.16288720481811,152,39.623225512317902,3194,359.92221381848606,950,197.31446981911895,787,156.34896865665601,183,65.436992595931542,1445,223.0425968284982,791,142.1724305201258,1389,261.33503400807172,868,176.9547964876906,253,59.464274989274024,290,81.320354155647891,442,102.6498904042279,296,68.680419334771102,218,77.336925203941234]
[null,"35 to 64  years:",2019,169.70562748477141,1150,144.61673485458036,1351,143.68368035375485,3751,150.80119362922829,856,94.921019800674287,1171,90.553851381374173,1330,80.156097709406993,16834,457.20017497809425,550,79.208585393251411,1441,75.166481891864535,2336,152.76125163142649,3653,233.30880823492285,1923,221.14474897677312,581,60.307545133258408,6034,306.77679182102418,2404,147.92227688891217,2615,162.00308639035245,835,95.587656106842587,1088,120.21647141718975,2250,154.98709623707387,3308,251.46172671005024,1759,146.98639392814562,696,79.906195003891909,827,98.412397592986224,1368,98.081598681913832,921,87.692645073575008,580,72.835430938520574]
[null,"With independent living difficulty",161,100,75,50.119856344566671,69,42.544094772365298,68,57.070132293521098,21,11.401754250991379,22,18.357559750685819,49,39,671,154.56390264224049,13,10,11,11.313708498984761,36,44.271887242357309,286,108.40664186294121,93,68.8839603971781,37,28.231188426986208,90,50.606323715519977,30,38.078865529319543,115,97.529482721892876,7,14.866068747318506,55,47.927027865287037,81,46.097722286464439,111,66.483080554378645,52,39.357337308308857,8,13.601470508735444,23,22.360679774997898,59,41.146081222881968,11,14.212670403551895,2,11.704699910719626]
[null,"With no independent living difficulty",1858,165.55663683464942,1075,137.84411485442533,1282,140.12137595670404,3683,157.38487856207789,835,96.332756630338366,1149,87.045964869142551,1281,85.912746434973201,16163,492.30986177406601,537,79.93122043357026,1430,75.822160349069449,2300,147.8681845428556,3367,224.24317157942625,1830,204.60694025374605,544,58.412327466040935,5944,308.91422757781811,2374,150.89400253157845,2500,161.94134740701648,828,94.847245611035007,1033,115.31261856362468,2169,151.74320413119,3197,253.24296633865274,1707,150.57224179774968,688,80.610173055266415,804,99.904954832080278,1309,96.260064408871031,910,88.391176030189797,578,72.835430938520574]
[null,"65 to 74  years:",315,86.284413424441851,322,78.87331614684399,273,94.873600121424715,697,112.80514172678478,145,42.426406871192853,246,46.861498055439924,265,54.488530903301111,2747,238.09661904361431,109,33.120990323358392,225,45.221676218380054,433,118.06777714516353,573,120.20815280171308,105,45.276925690687087,113,38.948684188300895,1138,165.07574019219177,705,135.5912976558599,409,95.482982777037293,223,50.328918128646478,654,116.82465493208187,316,77.89736837660179,467,126.65701717630967,302,67.623960250786851,110,31.906112267087632,260,72.801098892805186,262,72.180329730474355,164,31.144823004794873,162,38.013155617496423]
[null,"With independent living difficulty",40,29.732137494637012,47,39.05124837953327,28,23.706539182259394,36,32.557641192199412,11,13.601470508735444,6,14.212670403551895,0,15.556349186104045,268,108.55873986004075,16,17.088007490635061,0,15.556349186104045,0,15.556349186104045,53,37.336309405188942,8,17.804493814764857,8,8.6023252670426267,60,42.426406871192853,26,29.206163733020468,21,28.301943396169811,29,21.540659228538015,18,31.016124838541646,0,15.556349186104045,14,26.627053911388696,35,29.832867780352597,2,11.704699910719626,0,15.556349186104045,18,30.083217912982647,4,13.601470508735444,11,20.248456731316587]
[null,"With no independent living difficulty",275,80.062475604992386,275,67.896980787071826,245,92.784697014108957,661,116.84605256490268,134,41.012193308819754,240,44.598206241955516,265,54.488530903301111,2479,240.01041644062033,93,29.154759474226502,225,45.221676218380054,433,118.06777714516353,520,117.38824472663352,97,43.278170016764804,105,37.536648758246919,1078,161.47135968957468,679,133.41664064126334,388,91.241437954473298,194,46.690470119715009,636,116.03878661895772,316,77.89736837660179,453,126.65701717630967,267,65,108,31.906112267087632,260,72.801098892805186,244,65.80273550544841,160,31.827660925679098,151,38.832975677895199]
[null,"75  years and Older:",257,84.504437753291981,193,69.06518659932803,205,79.309520235593411,378,97.836598469080073,120,34.985711369071801,115,38.897300677553446,81,38.275318418009277,2477,245.81497106563708,65,21.633307652783937,65,30.675723300355934,234,75.927597090912869,575,113.35784048754634,194,66.370174024180471,46,25.495097567963924,641,135.6244815658294,262,74.966659255965254,308,104.44615837837216,188,59.640590204993778,831,142.05632685663809,238,70.178344238091,345,97.8008179924892,184,67.201190465645766,53,19.849433241279208,166,48.270073544588683,212,58.137767414994535,71,30.413812651491099,144,43.278170016764804]
[null,"With independent living difficulty",76,47.423622805517503,47,34.713109915419565,50,42.43819034784589,79,48.301138702933287,26,25.495097567963924,1,11.401754250991379,32,29.274562336608895,631,137.30622709840949,24,15.652475842498529,11,10.63014581273465,49,35.846896657869841,100,64.637450444769243,43,37.643060449437421,5,5.6568542494923806,155,77.155686763841331,36,35.341194094144583,74,46.400431032480725,50,43.011626335213137,112,51.623637996561229,60,31.89043743820395,126,66.708320320631671,25,22.825424421026653,9,8.6023252670426267,8,7.810249675906654,32,34.785054261852174,4,5.8309518948453007,10,7.2111025509279782]
[null,"With no independent living difficulty",181,73,146,62.128898268036266,155,69.296464556281663,299,91.400218818118816,94,24.758836806279895,114,38.897300677553446,49,25.238858928247925,1846,224.83994307062079,41,18.027756377319946,54,29.120439557122072,185,67.955868032128024,475,103.9471019317037,151,62.128898268036266,41,25.495097567963924,486,121.70866854912184,226,71.449282711584999,234,101.07423014794622,138,45.486261662176638,719,141.73566946961517,178,63.702433234531945,219,88.526832090615329,159,62.801273872430329,44,17.4928556845359,158,47.634021455258214,180,54.451813560247928,67,29.698484809834994,134,43.278170016764804]

{"sheet":"ACS_Table_C18108","index":33,"n_rows":118,"n_cols":390,"rows_kept":118,"cut":false,"hidden":true,"merged":[]}
["B18108. AGE BY NUMBER OF DISABILITIES\n\n"]
["Universe:  Civilian non-institutionalized population"]
["Data Set: 2015-2019 American Community Survey 5-Year Estimates"]
[]
[null,null,"Allenstown",null,"Andover",null,"Boscawen",null,"Bow",null,"Bradford",null,"Canterbury",null,"Chichester",null,"Concord",null,"Danbury",null,"Dunbarton",null,"Epsom",null,"Franklin",null,"Henniker",null,"Hill",null,"Hooksett",null,"Hopkinton",null,"Loudon",null,"Newbury",null,"New London",null,"Northfield",null,"Pembroke",null,"Pittsfield",null,"Salisbury",null,"Sutton",null,"Warner",null,"Webster",null,"Wilmot"]
[null,null,"Estimate","Margin Of Error","Estimate","Margin Of Error","Estimate","Margin Of Error","Estimate","Margin Of Error","Estimate","Margin Of Error","Estimate","Margin Of Error","Estimate","Margin Of Error","Estimate","Margin Of Error","Estimate","Margin Of Error","Estimate","Margin Of Error","Estimate","Margin Of Error","Estimate","Margin Of Error","Estimate","Margin Of Error","Estimate","Margin Of Error","Estimate","Margin Of Error","Estimate","Margin Of Error","Estimate","Margin Of Error","Estimate","Margin Of Error","Estimate","Margin Of Error","Estimate","Margin Of Error","Estimate","Margin Of Error","Estimate","Margin Of Error","Estimate","Margin Of Error","Estimate","Margin Of Error","Estimate","Margin Of Error","Estimate","Margin Of Error","Estimate","Margin Of Error"]
[null,"Total:",4360,35,2782,321,3472,160,7862,25,1582,212,2357,148,2656,29,40939,267,1129,165,2819,24,4612,122,8461,50,4962,17,920,148,14197,139,5691,29,5534,19,2096,214,4296,79,4834,79,7165,50,4117,16,1418,183,1905,279,2834,117,1759,180,1643,215]
[null,"Under 18 years:",788,109,595,150,755,99,2059,155,343,85,361,48,591,61,7934,365,247,70,733,64,962,114,1429,205,921,159,161,71,2688,218,1190,130,920,208,309,87,627,136,1012,106,1527,197,985,179,253,81,455,148,594,75,263,66,265,110]
[null,"With one type of disability",66,48,23,25,41,45,41,39,12,10,1,3,8,12,111,59,17,17,6,10,13,24,152,95,0,11,0,11,72,50,43,37,18,29,0,11,0,11,114,80,128,107,97,104,0,11,6,9,22,18,8,8,22,34]
[null,"With two or more types of disability",17,20,0,11,15,27,8,12,0,11,0,11,0,11,123,84,0,11,7,11,73,68,41,31,7,10,0,11,50,42,14,21,0,16,0,11,7,12,0,11,0,16,0,11,0,11,0,11,10,15,3,4,0,11]
[null,"No disability",705,116,572,139,699,103,2010,150,331,85,360,48,583,61,7700,406,230,62,720,64,876,136,1236,197,914,158,161,71,2566,228,1133,123,902,206,309,87,620,134,898,125,1399,181,888,214,253,81,449,147,562,77,252,63,243,96]
[null,"18 to 64  years:",2879,152,1715,266,2182,126,4472,160,880,150,1571,136,1660,66,26412,427,723,116,1755,63,2840,169,5310,225,3270,212,589,109,9308,250,3418,136,3457,242,1229,150,2439,152,3296,130,4541,207,2511,235,867,122,1063,160,1737,100,1201,137,1010,149]
[null,"With one type of disability",348,127,172,184,169,83,85,51,43,22,106,50,104,40,2088,285,60,30,86,34,176,101,359,120,164,71,53,24,561,132,252,142,136,90,64,33,119,47,362,153,182,94,370,138,53,27,20,17,167,76,96,47,60,27]
[null,"With two or more types of disability",200,89,30,21,219,101,54,32,17,15,103,53,42,28,1560,341,25,20,43,30,114,58,419,148,88,59,34,26,274,108,24,27,121,73,31,21,28,29,201,108,248,140,342,137,28,16,20,21,77,35,62,32,30,26]
[null,"No disability",2331,214,1513,203,1794,182,4333,162,820,152,1362,138,1514,75,22764,530,638,109,1626,80,2550,164,4532,280,3018,236,502,98,8473,294,3142,207,3200,232,1134,148,2292,154,2733,236,4111,242,1799,267,786,125,1023,155,1493,109,1043,119,920,141]
[null,"65 years and over:",693,150,472,113,535,70,1331,114,359,61,425,64,405,40,6593,352,159,55,331,46,810,132,1722,214,771,129,170,54,2201,225,1083,136,1157,217,558,94,1230,166,526,93,1097,174,621,132,298,62,387,91,503,76,295,51,368,82]
[null,"With one type of disability",213,97,86,45,157,64,207,80,58,30,67,31,70,31,1111,181,37,21,34,18,150,73,293,100,85,59,31,20,336,97,249,116,240,125,54,32,198,75,83,33,258,112,179,101,40,27,34,23,120,57,43,16,57,27]
[null,"With two or more types of disability",102,48,80,40,47,33,202,59,13,8,48,28,29,17,1366,235,12,10,41,19,139,66,382,136,0,11,23,13,422,99,140,80,159,93,70,41,101,49,75,35,88,55,75,41,40,21,21,15,66,45,18,11,29,23]
[null,"No disability",378,97,306,83,331,77,922,141,288,57,310,57,306,43,4116,280,110,43,256,42,521,111,1047,193,686,125,116,47,1443,190,694,145,758,225,434,87,931,168,368,94,751,145,367,110,218,52,332,85,317,71,234,48,282,69]
[]
[]
[]
[]
[]
[]
[]
[]
[]
[]
[]
[]
[]
[]
[]
[]
[]
[]
[]
[]
[]
[]
[]
[]
[]
[]
[]
[]
[]
[]
[]
[]
[]
[]
[]
[]
[]
[]
[]
[]
[]
[]
[]
[]
[]
[]
[]
[]
[]
[]
[]
[]
[]
[]
[]
[]
[]
[]
[]
[]
[]
[]
[]
[]
[]
[]
[]
[]
[]
[]
[]
[]
[]
[]
[]
[]
[]
[]
[]
[]
["B18108. AGE BY NUMBER OF DISABILITIES\n\n"]
["Universe:  Civilian non-institutionalized population"]
["Data Set: 2010-2014 American Community Survey 5-Year Estimates"]
[]
[null,null,"Allenstown",null,"Andover",null,"Boscawen",null,"Bow",null,"Bradford",null,"Canterbury",null,"Chichester",null,"Concord",null,"Danbury",null,"Dunbarton",null,"Epsom",null,"Franklin",null,"Henniker",null,"Hill",null,"Hooksett",null,"Hopkinton",null,"Loudon",null,"Newbury",null,"New London",null,"Northfield",null,"Pembroke",null,"Pittsfield",null,"Salisbury",null,"Sutton",null,"Warner",null,"Webster",null,"Wilmot"]
[null,null,"Estimate","Margin Of Error","Estimate","Margin Of Error","Estimate","Margin Of Error","Estimate","Margin Of Error","Estimate","Margin Of Error","Estimate","Margin Of Error","Estimate","Margin Of Error","Estimate","Margin Of Error","Estimate","Margin Of Error","Estimate","Margin Of Error","Estimate","Margin Of Error","Estimate","Margin Of Error","Estimate","Margin Of Error","Estimate","Margin Of Error","Estimate","Margin Of Error","Estimate","Margin Of Error","Estimate","Margin Of Error","Estimate","Margin Of Error","Estimate","Margin Of Error","Estimate","Margin Of Error","Estimate","Margin Of Error","Estimate","Margin Of Error","Estimate","Margin Of Error","Estimate","Margin Of Error","Estimate","Margin Of Error","Estimate","Margin Of Error","Estimate"]
[null,"Total:",5264,21,4605,19,7313,27,1012,145,7125,41,3778,15,15560,162,6262,56,2266,140,2977,25,3362,141,800,176,2767,20,786,200,393,96,9930,71,348,65,1362,168,1195,152,137,41,41,24,1032,242,2507,18,4032,19,4136,113,1484,191,2851,19,2256,298,5046,37,6103,76,1922,228,3601,19,1642,213,2454,210,610,88,911,121,3995,20,5341,85,22848,164,1834,236,753,140,606,108,1089,203,5933,42,236,46,1124,173,741,133,828,107,7255,32,2262,263,3704,33,1919,197,4239,44,0,11,0,11,0,11,8671,580,17,16,991,165,0,11,315,75,2340,210,726,132,0,11,0,11,933,154,0,11,13,9,348,76,301,70,0,11,2765,15,8,17,0,11,902,89,0,11,3338,89,0,11,0,11,1307,85,20,16,2179,180,0,11,8,6,875,130,424,74,9,12,0,11,358,66,490,94,712,123,705,127,0,11,0,11,62,33,2081,219,1829,203,2066,318,872,125,378,116,2537,19,1092,143,3054,16,3317,18,3910,23,318,60,243,45,61,33,4565,17,1099,166,1278,210,637,117,11167,53,4432,123,578,189,2080,249,416,52,13336,56,1309,266,1557,149,5937,21,0,11,608,97,1733,148,906,130,308,65,1572,257,754,98,6853,74,1649,314,618,125,2490,22,726,135,260,110,896,163,1137,211,11234,20,2622,21,20924,226,1357,201,5051,28,1772,184,1551,143,17288,167,1416,119,2374,215,1805,142,5950,49,7721,27,24453,72,8329,16,1633,171,108437,353,1329,102,25521,45,14974,135,2508,187,86197,162,5381,27,5119,14,13032,19,6216,91,320,61,1594,295,8849,40,3679,17,259,66,4283,41,2421,253,3446,335,7611,29,1706,205,2291,204,2551,18,40333,422,1243,186,2779,17,4490,91,8322,73,4822,22,1164,184,13669,50,5591,23,5332,24,1749,234,4465,78,4772,59,7121,29,4078,30,1402,161,2014,287,2846,21,1891,199,1367,181]
[null,"Under 18 years:",928,236,866,192,1853,218,140,60,1328,249,818,139,3312,302,1340,190,455,78,509,85,649,146,215,88,360,139,188,88,84,37,2002,278,28,18,218,65,210,60,3,6,3,5,182,105,445,111,631,131,948,182,327,96,191,104,520,175,714,181,1035,248,449,110,709,192,314,104,468,114,60,28,128,45,759,97,1177,178,3609,321,359,126,165,64,101,38,206,79,1226,146,45,17,226,72,154,52,81,31,1392,289,470,135,928,138,474,103,991,131,0,11,0,11,0,11,1623,193,0,11,214,95,0,11,53,29,398,80,131,46,0,11,0,11,138,61,0,11,0,11,75,35,20,17,0,11,568,71,0,11,0,11,125,30,0,11,747,94,0,11,0,11,207,32,7,9,457,100,0,11,0,11,82,37,59,27,0,11,0,11,55,31,94,42,74,45,161,56,0,11,0,11,4,6,369,83,486,83,391,146,130,48,125,67,621,111,126,59,704,114,501,147,801,119,23,15,30,19,4,9,792,155,156,53,251,96,81,42,1441,200,813,112,96,36,424,105,62,25,2600,244,276,113,321,70,1176,201,0,11,106,44,396,52,199,66,53,24,347,85,129,41,812,138,316,131,110,57,348,95,134,40,49,41,144,56,207,93,3104,246,546,80,5892,292,370,111,1370,122,300,63,256,53,3157,262,290,44,532,142,380,60,1659,215,1771,130,5956,318,2293,150,350,83,22211,627,354,106,5619,252,3546,163,683,101,19093,643,1292,122,1523,227,3275,185,980,178,33,16,337,132,2406,208,829,103,37,22,836,110,422,110,840,192,1905,116,317,85,463,111,474,60,8640,396,262,90,596,63,899,106,1972,193,1168,233,251,82,2604,208,1257,157,1177,151,315,82,411,124,1136,153,1592,156,936,147,288,75,468,124,532,108,432,95,253,75]
[null,"With one type of disability",0,15,76,66,126,87,5,7,19,27,34,36,202,100,65,56,20,23,0,11,15,22,0,11,0,11,8,9,4,5,51,38,0,11,13,10,14,12,0,11,0,11,0,11,25,26,0,11,30,26,4,8,0,11,36,32,16,23,0,15,5,6,16,25,20,16,5,9,0,11,0,11,61,60,41,48,145,78,0,11,10,10,15,20,13,11,8,12,3,5,11,11,2,3,0,11,64,61,16,20,34,41,11,13,44,46,0,11,0,11,0,11,78,48,0,11,32,38,0,11,3,4,26,22,4,6,0,11,0,11,10,13,0,11,0,11,0,11,0,11,0,11,56,39,0,11,0,11,0,11,0,11,0,11,0,11,0,11,3,4,0,11,50,31,0,11,0,11,6,8,2,3,0,11,0,11,2,3,2,3,0,11,35,27,0,11,0,11,0,11,30,31,29,15,17,26,0,11,4,7,26,31,7,10,103,77,8,14,26,40,5,6,3,4,0,11,0,11,9,10,12,15,5,7,52,50,21,23,0,11,0,11,0,11,197,177,18,18,26,24,65,59,0,11,0,11,2,3,6,9,0,11,11,17,2,3,0,15,18,17,3,5,3,5,8,6,0,11,6,6,15,19,64,57,11,15,149,69,8,8,25,24,6,7,7,11,88,57,15,10,15,14,10,9,148,95,0,15,293,171,128,160,8,11,915,203,6,7,120,59,118,70,0,11,694,207,31,29,80,91,35,46,19,30,0,11,11,14,84,70,13,15,0,11,67,43,0,11,6,11,47,36,3,5,16,25,25,24,437,123,7,12,15,22,29,34,108,80,61,58,15,16,118,85,31,30,33,44,0,11,12,20,37,29,94,80,51,39,15,11,4,5,14,15,17,16,0,11]
[null,"With two or more types of disability",11,18,0,11,70,86,0,11,43,46,0,11,17,21,0,15,4,6,11,12,0,11,0,11,0,11,0,11,2,3,23,26,0,11,4,5,10,12,0,11,0,11,0,11,6,10,31,37,29,45,0,11,0,11,0,11,16,24,18,18,10,9,0,11,0,11,0,11,0,11,0,11,0,11,0,15,19,23,0,11,0,11,0,11,6,7,17,22,0,11,0,11,3,5,0,11,0,15,0,11,27,41,3,7,0,11,0,11,0,11,0,11,96,57,0,11,8,13,0,11,0,11,0,11,7,8,0,11,0,11,2,3,0,11,0,11,0,11,0,11,0,11,16,18,0,11,0,11,0,11,0,11,35,39,0,11,0,11,0,11,0,11,43,30,0,11,0,11,0,11,0,11,0,11,0,11,0,11,2,4,0,11,0,11,0,11,0,11,0,11,0,11,3,4,0,11,0,11,0,11,30,47,0,11,22,34,0,11,6,13,0,11,0,11,0,11,23,40,0,11,0,11,0,11,11,18,29,36,0,11,0,11,0,11,36,43,0,11,0,11,27,31,0,11,0,11,0,11,0,11,0,11,19,17,2,3,0,15,0,11,7,11,0,11,0,11,0,11,1,2,0,11,8,14,0,11,9,14,0,11,0,15,4,5,0,11,25,28,2,5,0,11,3,5,44,66,14,24,46,42,29,33,0,11,416,168,0,11,101,68,36,34,0,11,304,156,20,22,0,15,12,20,0,15,0,11,0,11,16,25,45,35,0,11,59,57,0,11,0,11,14,21,2,3,11,11,19,22,88,48,3,4,14,16,0,11,18,32,13,22,0,11,22,35,38,49,33,45,6,9,18,26,0,11,20,33,4,8,0,11,0,11,0,11,0,11,0,11]
[null,"No disability",917,233,790,173,1657,254,135,60,1266,260,784,132,3093,274,1275,202,431,74,498,86,634,147,215,88,360,139,180,86,78,37,1928,269,28,18,201,63,186,50,3,6,3,5,182,105,414,121,600,139,889,190,323,93,191,104,484,167,682,184,1017,247,434,109,693,192,294,99,463,113,60,28,128,45,698,97,1136,180,3445,329,359,126,155,59,86,34,187,75,1201,145,42,16,215,73,149,52,81,31,1328,276,454,133,867,138,460,101,947,147,0,11,0,11,0,11,1449,203,0,11,174,70,0,11,50,28,372,81,120,44,0,11,0,11,126,56,0,11,0,11,75,35,20,17,0,11,496,63,0,11,0,11,125,30,0,11,712,85,0,11,0,11,204,31,7,9,364,89,0,11,0,11,76,35,57,28,0,11,0,11,53,30,90,41,74,45,126,43,0,11,0,11,4,6,339,77,454,78,374,135,130,48,121,66,565,100,119,57,579,144,493,148,769,115,18,11,27,18,4,9,769,159,147,51,239,94,76,45,1378,200,763,113,96,36,424,105,62,25,2367,263,258,105,295,60,1084,204,0,11,106,44,394,52,193,63,53,24,317,83,125,41,812,138,298,131,100,51,345,95,126,39,49,41,137,56,192,91,3032,232,535,81,5734,297,362,111,1345,120,290,64,249,53,3044,259,273,46,517,144,367,59,1467,220,1757,133,5617,351,2136,180,342,80,20880,600,348,105,5398,250,3392,176,683,101,18095,638,1241,124,1443,217,3228,192,961,174,33,16,326,129,2306,205,771,109,37,22,710,138,422,110,834,194,1844,129,312,83,436,100,430,51,8115,399,252,89,567,66,870,110,1846,218,1094,237,236,76,2464,233,1188,155,1111,167,309,83,381,128,1099,150,1478,157,881,135,273,73,464,124,518,115,415,96,253,75]
[null,"18 to 64 years:",3420,262,3031,196,4556,223,659,96,4325,281,2308,156,9731,292,3388,181,1449,141,1912,109,2187,179,451,102,1776,191,419,108,246,64,6283,344,222,53,907,127,605,98,40,20,33,20,493,142,1642,98,2358,194,2438,152,788,134,2085,189,1229,195,3328,252,3120,264,1165,162,2185,175,1016,155,1576,154,460,73,564,91,2467,165,3143,202,15963,365,1163,164,440,87,402,82,747,140,4071,182,152,37,688,140,473,93,573,81,4912,229,1486,197,2201,143,1155,139,2691,132,0,11,0,11,0,11,5252,380,12,12,575,107,0,11,181,49,1435,144,431,94,0,11,0,11,550,112,0,11,13,9,191,45,186,51,0,11,1724,107,8,17,0,11,594,63,0,11,2043,114,0,11,0,11,880,71,13,9,1358,131,0,11,8,6,554,97,238,53,9,12,0,11,215,43,286,65,401,91,377,78,0,11,0,11,44,28,1376,148,1045,139,1267,224,476,76,200,57,1574,107,693,110,1744,175,2193,221,2517,117,228,46,147,35,40,24,2832,204,638,119,830,134,454,92,8476,311,2867,156,339,180,1361,176,263,39,8757,322,774,174,1036,117,3619,190,0,11,392,65,997,117,537,84,186,45,953,202,458,59,5429,213,1064,203,379,82,1685,124,465,95,145,72,553,114,743,149,6584,207,1601,97,12376,322,822,125,3300,124,1241,128,1075,123,11975,333,939,97,1568,163,1022,92,3510,171,4780,153,15584,332,5177,214,1017,119,73135,709,844,75,16831,313,9425,329,1481,141,56287,696,3680,130,3096,183,8296,192,3891,218,213,52,1001,207,5895,212,2344,136,188,54,2875,127,1484,199,2128,231,4631,109,1124,146,1467,124,1731,63,26469,530,807,126,1893,101,2924,143,5202,201,3355,232,754,105,9286,229,3367,173,3438,136,1023,148,2569,170,3082,129,4717,168,2656,148,951,114,1120,179,1840,106,1224,126,808,119]
[null,"With one type of disability",56,46,217,87,248,137,44,28,241,141,94,52,670,176,202,82,75,36,79,30,163,80,8,7,250,130,14,15,11,14,394,160,21,18,48,20,75,38,3,5,0,11,20,21,147,74,67,50,174,83,27,13,328,171,53,32,318,161,192,124,88,40,89,75,39,27,105,52,37,16,17,15,260,97,147,83,663,179,102,66,46,17,15,11,58,31,138,59,5,7,37,21,40,19,24,13,273,114,64,38,113,58,52,25,153,66,0,11,0,11,0,11,465,121,0,11,69,58,0,11,15,14,103,37,21,13,0,11,0,11,53,36,0,11,3,4,13,13,16,13,0,11,162,71,4,9,0,11,51,22,0,11,201,73,0,11,0,11,57,20,0,11,168,75,0,11,1,4,39,18,11,9,0,11,0,11,15,11,19,13,47,32,49,25,0,11,0,11,3,3,142,62,87,32,79,36,24,12,19,15,163,71,34,24,77,52,139,91,105,76,19,14,8,7,3,6,101,68,22,19,70,29,41,21,175,83,114,69,23,35,35,35,21,12,676,229,74,41,70,30,155,105,0,11,25,11,40,16,26,12,8,9,31,14,27,16,188,105,90,48,20,20,85,41,22,12,0,11,43,20,28,20,229,92,89,43,230,102,42,22,107,60,94,27,37,16,708,223,55,29,145,70,28,19,184,136,224,114,544,181,161,84,54,28,4630,419,35,18,592,155,630,203,45,24,3398,404,149,75,86,59,241,77,141,61,3,5,70,37,351,148,105,55,10,9,237,88,151,77,139,73,148,64,59,30,48,32,131,83,1590,263,99,44,50,24,255,127,610,149,153,88,52,37,390,152,163,98,185,95,22,15,111,52,224,78,264,124,245,127,84,41,74,35,104,42,44,23,17,13]
[null,"With two or more types of disability",89,65,77,56,244,140,14,16,55,43,159,84,675,198,120,66,53,34,56,35,116,67,22,14,16,19,21,15,16,17,339,150,2,5,76,30,15,12,2,5,0,11,12,15,33,26,133,78,218,129,28,17,202,111,34,29,297,157,140,91,56,45,66,76,16,27,43,27,11,9,0,11,239,134,153,78,684,177,39,34,35,21,7,5,18,18,77,38,6,8,22,16,15,13,0,11,232,96,129,70,125,60,10,13,126,75,0,11,0,11,0,11,523,149,0,11,17,14,0,11,31,21,77,41,44,27,0,11,0,11,34,22,0,11,2,4,6,8,11,9,0,11,39,27,4,9,0,11,45,23,0,11,160,98,0,11,0,11,33,14,0,11,75,37,0,11,2,4,28,22,12,11,0,11,0,11,11,7,16,11,72,34,40,18,0,11,0,11,0,11,65,51,74,35,80,65,23,13,9,7,104,55,34,31,72,57,85,51,171,83,17,12,2,5,0,11,102,57,21,18,81,47,22,16,86,42,171,100,13,16,46,36,10,5,507,192,89,53,114,55,207,127,0,11,2,3,14,25,20,15,1,3,14,14,20,11,118,98,44,29,9,12,75,34,36,17,4,8,29,16,34,27,120,57,82,42,134,83,30,18,83,55,50,39,16,14,256,92,49,24,95,47,28,20,117,70,68,78,501,138,165,74,37,23,3688,349,15,10,420,158,279,130,25,18,2551,370,39,37,35,39,166,90,56,66,8,9,37,61,84,70,105,72,7,7,223,111,98,48,108,59,101,66,43,19,37,26,52,38,1473,265,18,12,40,27,89,90,462,132,143,106,54,30,190,108,27,32,164,115,13,13,111,58,121,50,192,96,89,52,32,16,32,28,99,55,32,18,17,17]
[null,"No disability",3275,267,2737,195,4064,274,601,95,4029,283,2055,165,8386,423,3066,202,1321,128,1777,112,1908,177,421,102,1510,213,384,105,219,56,5550,366,199,51,783,124,515,90,35,18,33,20,461,135,1462,121,2158,180,2046,216,733,128,1555,222,1142,185,2713,317,2788,272,1021,149,2030,180,961,141,1428,155,412,75,547,90,1968,199,2843,216,14616,412,1022,161,359,74,380,80,671,137,3856,190,141,32,629,139,418,88,549,80,4407,241,1293,201,1963,149,1093,135,2412,145,0,11,0,11,0,11,4264,361,12,12,489,117,0,11,135,36,1255,134,366,88,0,11,0,11,463,104,0,11,8,8,172,39,159,47,0,11,1523,134,0,11,0,11,498,59,0,11,1682,136,0,11,0,11,790,67,13,9,1115,124,0,11,5,9,487,92,215,47,9,12,0,11,189,42,251,65,282,75,288,64,0,11,0,11,41,28,1169,132,884,118,1108,215,429,74,172,50,1307,123,625,93,1595,163,1969,262,2241,173,192,39,137,35,37,21,2629,212,595,113,679,121,391,79,8215,321,2582,181,303,146,1280,168,232,35,7574,411,611,159,852,85,3257,217,0,11,365,66,943,114,491,86,177,43,908,204,411,57,5123,219,930,187,350,72,1525,122,407,90,141,72,481,110,681,144,6235,220,1430,107,12012,322,750,120,3110,143,1097,128,1022,120,11011,400,835,92,1328,169,966,86,3209,242,4488,191,14539,352,4851,227,926,112,64817,843,794,74,15819,388,8516,363,1411,142,50338,818,3492,147,2975,190,7889,191,3694,245,202,50,894,187,5460,234,2134,147,171,53,2415,156,1235,175,1881,234,4382,147,1022,142,1382,114,1548,100,23406,548,690,118,1803,103,2580,165,4130,238,3059,207,648,91,8706,311,3177,175,3089,195,988,148,2347,162,2737,130,4261,207,2322,150,835,113,1014,171,1637,124,1148,128,774,113]
[null,"65 years and over:",916,224,708,172,904,177,213,50,1472,223,652,121,2517,217,1534,200,362,114,556,81,526,104,134,39,631,193,179,72,63,22,1645,309,98,30,237,54,380,73,94,30,5,7,357,103,420,104,1043,172,750,171,369,82,575,182,507,135,1004,262,1948,296,308,70,707,178,312,73,410,95,90,27,219,55,769,152,1021,173,3276,248,312,58,148,46,103,29,136,36,636,130,39,14,210,61,114,33,174,41,951,167,306,81,575,83,290,71,557,89,0,11,0,11,0,11,1796,164,5,7,202,57,0,11,81,29,507,98,164,43,0,11,0,11,245,39,0,11,0,11,82,26,95,33,0,11,473,99,0,11,0,11,183,30,0,11,548,84,0,11,0,11,220,47,0,11,364,69,0,11,0,11,239,58,127,30,0,11,0,11,88,23,110,30,237,72,167,39,0,11,0,11,14,12,336,76,298,64,408,105,266,57,53,18,342,86,273,67,606,152,623,212,592,91,67,25,66,17,17,12,941,203,305,75,197,53,102,39,1250,231,752,116,143,38,295,76,91,23,1979,284,259,70,200,36,1142,233,0,11,110,27,340,62,170,34,69,25,272,66,167,36,612,147,269,69,129,35,457,113,127,33,66,39,199,42,187,50,1546,145,475,95,2656,209,165,55,381,71,231,65,220,38,2156,223,187,39,274,43,403,56,781,170,1170,106,2913,246,859,173,266,50,13091,465,131,22,3071,227,2003,244,344,61,10817,454,409,93,500,143,1461,136,1345,205,74,27,256,74,548,97,506,96,34,27,572,76,515,107,478,129,1075,111,265,65,361,55,346,55,5224,343,174,38,290,54,667,126,1148,145,299,77,159,59,1779,172,967,146,717,125,411,81,1485,180,554,116,812,123,486,73,163,49,426,108,474,90,235,46,306,65]
[null,"With one type of disability",88,53,158,74,152,82,51,22,150,67,54,29,336,94,232,81,42,17,92,41,62,39,41,22,141,84,16,21,9,10,319,126,18,11,33,19,77,22,16,14,2,3,46,30,76,49,140,71,169,82,67,27,138,89,57,39,223,133,285,123,68,29,88,49,23,13,66,32,20,14,21,19,189,97,349,140,637,165,72,27,32,21,27,13,51,21,87,45,1,3,23,18,12,9,9,8,187,89,58,39,49,37,22,15,83,42,0,11,0,11,0,11,304,98,0,11,22,15,0,11,28,18,85,48,18,13,0,11,0,11,45,18,0,11,0,11,11,10,30,17,0,11,156,72,0,11,0,11,11,9,0,11,63,40,0,11,0,11,57,24,0,11,94,36,0,11,0,11,43,26,14,10,0,11,0,11,20,11,18,13,63,30,46,20,0,11,0,11,0,11,61,30,52,34,70,30,52,22,4,5,36,34,48,20,173,81,109,75,81,53,13,7,8,5,3,4,49,59,22,16,20,12,14,16,213,84,121,48,13,8,50,28,13,9,330,112,63,27,18,9,210,111,0,11,16,11,32,13,18,10,12,10,39,21,22,12,111,70,54,31,23,12,92,40,18,10,9,14,64,21,52,27,244,82,79,44,319,124,25,19,34,17,38,21,38,16,254,92,28,13,59,30,41,21,107,81,190,100,503,131,80,63,31,14,2260,274,32,14,460,133,439,123,36,21,1750,252,45,36,76,56,283,86,129,69,4,6,27,19,78,56,113,66,0,11,127,76,123,62,89,41,141,67,61,32,36,20,26,24,866,178,23,16,46,21,166,87,183,79,61,36,36,22,285,76,159,70,204,105,34,20,221,88,26,15,152,69,96,49,25,15,80,37,55,29,40,14,71,33]
[null,"With two or more types of disability",77,56,93,43,88,44,9,8,160,91,79,49,459,126,181,77,106,96,92,43,78,53,21,16,56,53,19,20,10,7,294,127,10,7,36,17,55,26,5,7,3,6,11,14,62,31,65,35,167,74,29,17,47,37,63,31,187,118,199,159,16,11,120,88,50,42,60,35,8,6,16,11,172,81,145,106,609,161,40,23,12,7,5,6,18,11,153,78,9,7,9,10,15,8,16,11,194,82,52,37,149,68,42,25,134,60,0,11,0,11,0,11,388,93,5,7,22,16,0,11,15,13,73,26,17,10,0,11,0,11,52,25,0,11,0,11,3,5,11,11,0,11,107,52,0,11,0,11,25,13,0,11,116,64,0,11,0,11,52,24,0,11,85,38,0,11,0,11,46,26,16,8,0,11,0,11,16,10,26,16,37,26,45,24,0,11,0,11,11,12,130,67,64,27,85,52,29,19,7,4,66,39,46,24,85,66,61,45,181,57,16,12,2,3,4,7,101,67,42,29,26,12,18,10,196,95,193,59,23,15,10,11,14,7,289,98,49,28,38,14,228,104,0,11,22,13,52,23,27,13,5,5,42,26,34,14,181,72,47,23,32,23,80,53,30,14,4,5,29,16,23,15,250,88,39,27,372,100,17,8,19,21,35,16,9,8,533,153,31,21,39,20,49,19,115,69,63,59,549,194,133,92,22,12,2638,296,7,7,365,131,283,99,9,10,1835,269,39,35,63,56,277,98,160,98,9,9,14,22,51,52,38,35,0,11,156,56,128,86,150,82,173,84,47,28,25,17,46,29,1077,205,57,25,33,18,56,37,218,99,43,36,21,16,266,84,73,48,117,59,93,47,180,76,134,82,125,73,86,43,13,9,23,15,102,61,26,24,25,20]
[null,"No disability",751,211,457,131,664,155,153,41,1162,165,519,117,1722,199,1121,173,214,45,372,62,386,98,72,30,434,159,144,58,44,19,1032,215,70,29,168,47,248,63,73,28,0,11,300,89,282,83,838,164,414,121,273,63,390,174,387,122,594,212,1464,259,224,62,499,152,239,64,284,86,62,22,182,51,408,151,527,117,2030,216,200,50,104,39,71,22,67,24,396,111,29,12,178,53,87,27,149,41,570,131,196,67,377,72,226,61,340,79,0,11,0,11,0,11,1104,155,0,11,158,49,0,11,38,20,349,86,129,39,0,11,0,11,148,34,0,11,0,11,68,24,54,26,0,11,210,71,0,11,0,11,147,28,0,11,369,77,0,11,0,11,111,38,0,11,185,44,0,11,0,11,150,39,97,26,0,11,0,11,52,17,66,20,137,52,76,27,0,11,0,11,3,5,145,44,182,40,253,82,185,47,42,16,240,75,179,56,348,108,453,197,330,68,38,21,56,17,10,10,791,197,241,57,151,52,70,34,841,194,438,98,107,35,235,72,64,18,1360,291,147,53,144,30,704,176,0,11,72,21,256,56,125,32,52,26,191,46,111,30,320,104,168,54,74,21,285,78,79,30,53,29,106,31,112,33,1052,148,357,91,1965,202,123,46,328,68,158,57,173,34,1369,250,128,31,176,49,313,51,559,193,917,130,1861,208,646,129,213,52,8193,516,92,20,2246,227,1281,203,299,62,7232,427,325,102,361,105,901,141,1056,216,61,23,215,64,419,112,355,91,34,27,289,79,264,77,239,86,761,124,157,41,300,52,274,53,3281,283,94,34,211,54,445,117,747,132,195,65,102,45,1228,161,735,154,396,71,284,63,1084,171,394,84,535,112,304,67,125,41,323,86,317,97,169,38,210,52]

{"sheet":"ACS_TableB19201_ACS_Tbl_B19202","index":34,"n_rows":117,"n_cols":56,"rows_kept":117,"cut":false,"hidden":true,"merged":[]}
[null,"B19102. NON-FAMILY INCOME IN THE PAST 12 MONTHS (IN 2019 INFLATION-ADJUSTED DOLLARS)"]
[null,"Universe:  FAMILIES"]
[null,"Data Set: 2015-2019 American Community Survey 5-Year Estimates"]
[]
[null,null,"Allenstown",null,"Andover",null,"Boscawen",null,"Bow",null,"Bradford",null,"Canterbury",null,"Chichester",null,"Concord",null,"Danbury",null,"Dunbarton",null,"Epsom",null,"Franklin",null,"Henniker",null,"Hill",null,"Hooksett",null,"Hopkinton",null,"Loudon",null,"Newbury",null,"New London",null,"Northfield",null,"Pembroke",null,"Pittsfield",null,"Salisbury",null,"Sutton",null,"Warner",null,"Webster",null,"Wilmot"]
[null,null,"Estimate","Margin Of Error","Estimate","Margin Of Error","Estimate","Margin Of Error","Estimate","Margin Of Error","Estimate","Margin Of Error","Estimate","Margin Of Error","Estimate","Margin Of Error","Estimate","Margin Of Error","Estimate","Margin Of Error","Estimate","Margin Of Error","Estimate","Margin Of Error","Estimate","Margin Of Error","Estimate","Margin Of Error","Estimate","Margin Of Error","Estimate","Margin Of Error","Estimate","Margin Of Error","Estimate","Margin Of Error","Estimate","Margin Of Error","Estimate","Margin Of Error","Estimate","Margin Of Error","Estimate","Margin Of Error","Estimate","Margin Of Error","Estimate","Margin Of Error","Estimate","Margin Of Error","Estimate","Margin Of Error","Estimate","Margin Of Error","Estimate","Margin Of Error"]
[null,"Total:",628,124,328,74,527,125,469,102,231,49,265,52,193,60,7171,442,170,54,214,57,486,125,1360,223,621,153,81,30,1564,229,556,147,535,149,219,72,598,157,409,118,714,150,545,111,122,38,225,61,396,91,192,46,210,54]
[null,"Less than $10,000",40,36,26,27,31,28,6,10,8,8,14,13,6,8,740,169,0,11,4,7,0,11,174,72,100,70,11,15,151,92,12,19,93,89,4,8,32,26,0,11,17,28,89,65,0,11,10,15,33,28,11,8,23,24]
[null,"$10,000 to $14,999",105,75,33,36,48,41,51,43,13,11,20,14,3,5,618,164,18,20,5,7,35,33,194,106,98,86,3,4,82,45,26,30,19,30,9,13,65,44,22,22,0,16,95,64,4,6,3,7,20,17,12,15,3,6]
[null,"$15,000 to $19,999",59,46,21,16,67,62,45,39,8,8,27,18,5,8,465,110,4,6,0,11,44,26,236,104,111,74,0,11,79,79,37,35,22,34,6,9,42,36,42,34,17,26,17,17,11,8,8,8,71,52,21,17,0,11]
[null,"$20,000 to $24,999",19,21,27,17,27,30,59,37,15,18,28,29,17,15,621,129,21,22,15,15,35,33,74,33,31,39,8,8,49,42,12,19,68,65,0,11,21,26,32,31,46,43,36,33,21,22,33,26,62,44,16,11,27,24]
[null,"$25,000 to $29,999",49,33,21,18,45,39,49,34,39,26,11,11,4,6,481,129,6,7,27,26,75,45,105,74,10,17,6,7,25,24,12,20,39,45,6,9,33,27,15,19,34,41,52,40,6,6,26,22,51,37,4,6,22,14]
[null,"$30,000 to $34,999",71,58,29,26,0,11,9,15,15,13,5,7,19,17,708,167,21,17,16,14,22,21,30,24,30,35,16,15,102,76,40,38,26,42,22,26,33,31,40,48,79,102,47,39,0,11,9,10,4,7,25,21,0,11]
[null,"$35,000 to $39,999",18,21,35,29,27,23,31,30,14,12,14,10,0,11,464,114,35,27,11,12,26,28,48,34,0,11,0,11,145,133,26,30,58,54,5,9,16,26,52,46,34,47,29,29,7,8,21,17,9,10,7,9,8,8]
[null,"$40,000 to $44,999",30,28,35,31,11,19,36,26,27,24,9,10,4,7,465,165,11,9,9,10,19,23,90,55,58,51,6,6,101,55,30,34,6,13,6,8,56,52,19,23,57,53,13,17,8,8,15,12,9,9,30,19,3,5]
[null,"$45,000 to $49,999",18,21,15,15,27,30,23,22,16,20,10,15,12,12,324,102,5,8,17,27,34,31,29,24,0,11,3,4,57,45,60,70,9,15,16,12,23,21,36,43,31,35,76,51,13,14,0,11,14,10,4,6,12,15]
[null,"$50,000 to $59,999",80,44,22,17,0,11,33,37,20,13,37,30,24,24,513,129,15,19,21,15,58,48,77,57,4,9,8,8,142,73,73,66,51,50,41,23,64,49,56,52,80,60,11,14,3,5,21,20,41,33,11,15,18,11]
[null,"$60,000 to $74,999",48,35,4,7,71,55,37,31,9,9,36,25,11,11,589,190,6,8,16,14,54,38,196,115,55,42,3,4,184,87,76,71,0,16,17,11,98,54,31,28,109,75,21,24,26,22,22,21,10,10,19,12,28,22]
[null,"$75,000 to $99,999",55,38,21,16,78,62,34,34,15,11,20,16,25,26,595,157,25,23,10,11,27,30,52,42,42,40,14,10,313,122,45,37,45,45,30,29,25,23,37,31,84,53,53,45,17,12,32,25,28,22,19,13,14,17]
[null,"$100,000 to $124,999",9,13,28,25,74,67,15,18,12,10,18,14,39,37,258,92,3,5,14,12,12,20,17,19,26,29,0,11,56,37,31,51,83,76,3,6,7,13,7,12,109,95,0,11,2,4,9,15,8,11,6,7,16,18]
[null,"$125,000 to $149,999",9,15,5,7,21,25,18,21,16,20,12,13,0,11,114,62,0,11,8,9,24,22,31,37,0,11,3,4,10,17,0,15,16,24,19,25,31,29,20,16,0,16,0,11,4,6,16,16,9,10,4,6,13,16]
[null,"$150,000 to $199,999",18,17,6,8,0,11,12,19,0,11,4,6,15,21,126,90,0,11,17,24,21,29,7,12,49,52,0,11,18,31,28,45,0,16,0,11,28,32,0,11,0,16,0,11,0,11,0,11,23,26,0,11,16,19]
[null,"$200,000 or more",0,11,0,11,0,11,11,18,4,6,0,11,9,14,90,52,0,11,24,16,0,11,0,15,7,17,0,11,50,43,48,56,0,16,35,33,24,28,0,11,17,28,6,11,0,11,0,11,4,6,3,5,7,7]
[]
[]
[null,"B19112. MEDIAN NON-FAMILY INCOME IN THE PAST 12 MONTHS (IN 2018 INFLATION-ADJUSTED DOLLARS)"]
[null,"Universe:  FAMILIES"]
[null,"Data Set: 2015-2019 American Community Survey 5-Year Estimates"]
[]
[null,null,"Allenstown",null,"Andover",null,"Boscawen",null,"Bow",null,"Bradford",null,"Canterbury",null,"Chichester",null,"Concord",null,"Danbury",null,"Dunbarton",null,"Epsom",null,"Franklin",null,"Henniker",null,"Hill",null,"Hooksett",null,"Hopkinton",null,"Loudon",null,"Newbury",null,"New London",null,"Northfield",null,"Pembroke",null,"Pittsfield",null,"Salisbury",null,"Sutton",null,"Warner",null,"Webster",null,"Wilmot"]
[null,null,"Estimate","Margin Of Error","Estimate","Margin Of Error","Estimate","Margin Of Error","Estimate","Margin Of Error","Estimate","Margin Of Error","Estimate","Margin Of Error","Estimate","Margin Of Error","Estimate","Margin Of Error","Estimate","Margin Of Error","Estimate","Margin Of Error","Estimate","Margin Of Error","Estimate","Margin Of Error","Estimate","Margin Of Error","Estimate","Margin Of Error","Estimate","Margin Of Error","Estimate","Margin Of Error","Estimate","Margin Of Error","Estimate","Margin Of Error","Estimate","Margin Of Error","Estimate","Margin Of Error","Estimate","Margin Of Error","Estimate","Margin Of Error","Estimate","Margin Of Error","Estimate","Margin Of Error","Estimate","Margin Of Error","Estimate","Margin Of Error","Estimate","Margin Of Error"]
[null,"Median family income in the past 12 months",33831,4790,37667,7071,46563,24096,38063,14212,40625,9757,47708,16944,63542,26206,34486,2850,36500,4700,53750,17568,43289,13162,25075,5450,20375,14761,33906,9065,48875,12898,51307,11218,35030,15516,57083,13288,45156,9414,42697,9646,55417,16274,27276,7586,48269,19090,40417,14766,27622,5180,40000,6486,55750,14272]
[]
[]
[]
[]
[]
[]
[]
[]
[]
[]
[]
[]
[]
[]
[]
[]
[]
[null,"B19102. NON-FAMILY INCOME IN THE PAST 12 MONTHS (IN 2014 INFLATION-ADJUSTED DOLLARS)"]
[null,"Universe:  FAMILIES"]
[null,"Data Set: 2010-2014 American Community Survey 5-Year Estimates"]
[]
[null,null,"Allenstown",null,"Andover",null,"Boscawen",null,"Bow",null,"Bradford",null,"Canterbury",null,"Chichester",null,"Concord",null,"Danbury",null,"Dunbarton",null,"Epsom",null,"Franklin",null,"Henniker",null,"Hill",null,"Hooksett",null,"Hopkinton",null,"Loudon",null,"Newbury",null,"New London",null,"Northfield",null,"Pembroke",null,"Pittsfield",null,"Salisbury",null,"Sutton",null,"Warner",null,"Webster",null,"Wilmot"]
[null,null,"Estimate","Margin Of Error","Estimate","Margin Of Error","Estimate","Margin Of Error","Estimate","Margin Of Error","Estimate","Margin Of Error","Estimate","Margin Of Error","Estimate","Margin Of Error","Estimate","Margin Of Error","Estimate","Margin Of Error","Estimate","Margin Of Error","Estimate","Margin Of Error","Estimate","Margin Of Error","Estimate","Margin Of Error","Estimate","Margin Of Error","Estimate","Margin Of Error","Estimate","Margin Of Error","Estimate","Margin Of Error","Estimate","Margin Of Error","Estimate","Margin Of Error","Estimate","Margin Of Error","Estimate","Margin Of Error","Estimate","Margin Of Error","Estimate","Margin Of Error","Estimate","Margin Of Error","Estimate","Margin Of Error","Estimate","Margin Of Error","Estimate","Margin Of Error"]
[null,"Total:",605,123,335,82,308,98,434,110,186,44,228,55,298,85,7296,404,185,42,253,62,543,138,1333,231,535,125,116,38,1567,272,480,145,544,170,248,64,649,149,391,109,862,173,562,113,165,47,181,49,352,93,247,52,230,53]
[null,"Less than $10,000",64,77,49,37,57,34,7,11,37,24,10,11,28,29,663,159,10,8,6,9,20,23,192,72,79,64,11,14,76,49,15,23,39,38,5,7,60,41,0,11,148,108,95,66,6,6,9,14,37,38,13,11,6,6]
[null,"$10,000 to $14,999",94,74,36,34,7,11,62,47,21,13,15,12,29,31,618,158,11,10,7,10,142,101,180,106,126,78,16,17,186,102,13,22,56,46,9,9,75,51,35,34,134,96,103,70,23,22,4,5,14,23,21,16,12,12]
[null,"$15,000 to $19,999",32,32,15,12,33,29,25,26,14,10,15,15,6,9,489,132,34,28,6,9,41,45,177,69,32,28,6,6,96,56,37,29,17,18,27,33,26,25,41,35,91,69,34,23,14,10,4,5,37,40,30,25,6,6]
[null,"$20,000 to $24,999",58,45,25,17,32,42,50,36,7,7,16,14,21,19,639,167,27,19,16,15,24,24,77,50,9,14,7,7,120,58,11,17,83,83,7,11,65,33,30,28,93,59,51,44,16,17,18,13,30,32,16,11,20,24]
[null,"$25,000 to $29,999",60,57,21,17,0,11,30,25,6,7,7,10,9,9,591,150,19,18,37,33,19,21,64,48,21,24,30,22,151,83,0,15,34,33,6,8,37,28,14,15,34,41,53,38,4,6,27,21,16,14,8,8,15,10]
[null,"$30,000 to $34,999",51,41,9,11,23,21,9,14,13,15,5,7,6,9,741,180,14,18,29,22,98,66,64,43,31,24,9,8,80,55,14,23,0,15,41,39,24,28,8,13,48,74,44,34,9,15,8,9,5,8,25,22,16,16]
[null,"$35,000 to $39,999",21,26,31,26,17,20,31,30,13,12,14,14,10,10,420,127,2,4,15,15,0,11,85,58,0,11,0,11,133,84,38,34,42,62,5,7,30,39,64,47,51,47,34,37,8,8,19,16,11,13,14,10,22,24]
[null,"$40,000 to $44,999",62,40,21,25,0,11,30,29,8,8,11,11,18,16,507,159,15,10,3,5,33,26,104,42,16,19,13,16,126,79,23,33,0,15,5,8,33,26,15,19,0,15,28,29,17,19,13,12,28,21,49,27,34,21]
[null,"$45,000 to $49,999",22,34,42,36,9,14,25,22,10,9,11,11,6,9,267,120,0,11,17,27,9,15,36,32,9,16,3,4,36,35,52,82,25,30,15,13,26,26,36,34,17,28,17,21,3,4,0,11,36,33,5,6,20,18]
[null,"$50,000 to $59,999",44,36,22,16,32,28,32,33,28,16,37,34,32,41,516,131,24,22,27,20,37,44,96,71,11,17,2,4,111,69,95,76,9,15,42,24,99,61,55,50,73,55,6,10,18,16,29,25,26,20,17,18,43,28]
[null,"$60,000 to $74,999",34,27,5,7,11,17,39,32,10,9,30,21,43,30,711,174,9,11,22,18,68,41,133,82,106,57,2,3,54,46,52,62,100,69,21,15,55,41,30,28,31,39,20,24,17,19,16,15,12,12,15,11,2,5]
[null,"$75,000 to $99,999",9,15,16,13,44,61,45,46,3,6,23,18,43,35,582,150,15,13,12,15,9,15,94,63,28,44,13,10,317,139,51,44,59,70,31,28,9,14,32,28,70,57,59,51,10,12,21,22,39,25,18,10,25,20]
[null,"$100,000 to $124,999",42,46,19,22,32,36,7,13,4,6,17,15,7,9,255,86,0,11,0,11,15,20,17,19,18,21,0,11,54,38,38,60,35,32,0,11,65,48,8,13,24,28,0,11,6,6,10,15,4,7,9,10,3,5]
[null,"$125,000 to $149,999",12,18,5,8,11,16,10,17,3,6,6,9,24,30,120,65,5,7,9,12,15,18,10,19,18,21,4,5,0,17,10,18,31,33,28,25,9,15,23,24,48,82,0,11,7,7,3,5,6,8,4,6,6,8]
[null,"$150,000 to $199,999",0,11,19,30,0,11,10,15,0,11,5,7,11,11,116,76,0,11,29,34,13,20,4,7,31,47,0,11,20,21,17,28,0,15,0,11,19,25,0,11,0,15,11,17,7,7,0,11,25,19,0,11,0,11]
[null,"$200,000 or more",0,11,0,11,0,11,22,26,9,16,6,9,5,10,61,45,0,11,18,12,0,11,0,15,0,11,0,11,7,12,14,22,14,20,6,9,17,27,0,11,0,15,7,11,0,11,0,11,26,29,3,4,0,11]
[]
[]
[null,"B19112. MEDIAN NON-FAMILY INCOME IN THE PAST 12 MONTHS (IN 2014 INFLATION-ADJUSTED DOLLARS)"]
[null,"Universe:  FAMILIES"]
[null,"Data Set: 2010-2014 American Community Survey 5-Year Estimates"]
[]
[null,null,"Allenstown",null,"Andover",null,"Boscawen",null,"Bow",null,"Bradford",null,"Canterbury",null,"Chichester",null,"Concord",null,"Danbury",null,"Dunbarton",null,"Epsom",null,"Franklin",null,"Henniker",null,"Hill",null,"Hooksett",null,"Hopkinton",null,"Loudon",null,"Newbury",null,"New London",null,"Northfield",null,"Pembroke",null,"Pittsfield",null,"Salisbury",null,"Sutton",null,"Warner",null,"Webster",null,"Wilmot"]
[null,null,"Estimate","Margin Of Error","Estimate","Margin Of Error","Estimate","Margin Of Error","Estimate","Margin Of Error","Estimate","Margin Of Error","Estimate","Margin Of Error","Estimate","Margin Of Error","Estimate","Margin Of Error","Estimate","Margin Of Error","Estimate","Margin Of Error","Estimate","Margin Of Error","Estimate","Margin Of Error","Estimate","Margin Of Error","Estimate","Margin Of Error","Estimate","Margin Of Error","Estimate","Margin Of Error","Estimate","Margin Of Error","Estimate","Margin Of Error","Estimate","Margin Of Error","Estimate","Margin Of Error","Estimate","Margin Of Error","Estimate","Margin Of Error","Estimate","Margin Of Error","Estimate","Margin Of Error","Estimate","Margin Of Error","Estimate","Margin Of Error","Estimate","Margin Of Error"]
[null,"Median family income in the past 12 months",29236,6507,38287,11752,35294,21685,41071,10791,32500,9630,55455,11164,51481,14159,34339,1767,26382,9557,46103,17666,30787,4490,27902,7838,30046,21609,27045,3488,37483,5091,51745,8397,45278,29281,50833,10357,41172,10490,43083,8924,22813,9241,24737,6170,40568,11422,40288,11185,44643,6455,38750,7292,43667,4303]
[]
[]
[]
[]
[null,"B19102. NON-FAMILY INCOME IN THE PAST 12 MONTHS (IN 2009 INFLATION-ADJUSTED DOLLARS)"]
[null,"Universe:  FAMILIES"]
[null,"Data Set: 2005-2009 American Community Survey 5-Year Estimates"]
[]
[null,null,"Allenstown",null,"Andover",null,"Boscawen",null,"Bow",null,"Bradford",null,"Canterbury",null,"Chichester",null,"Concord",null,"Danbury",null,"Dunbarton",null,"Epsom",null,"Franklin",null,"Henniker",null,"Hill",null,"Hooksett",null,"Hopkinton",null,"Loudon",null,"Newbury",null,"New London",null,"Northfield",null,"Pembroke",null,"Pittsfield",null,"Salisbury",null,"Sutton",null,"Warner",null,"Webster",null,"Wilmot"]
[null,null,"Estimate","Margin Of Error","Estimate","Margin Of Error","Estimate","Margin Of Error","Estimate","Margin Of Error","Estimate","Margin Of Error","Estimate","Margin Of Error","Estimate","Margin Of Error","Estimate","Margin Of Error","Estimate","Margin Of Error","Estimate","Margin Of Error","Estimate","Margin Of Error","Estimate","Margin Of Error","Estimate","Margin Of Error","Estimate","Margin Of Error","Estimate","Margin Of Error","Estimate","Margin Of Error","Estimate","Margin Of Error","Estimate","Margin Of Error","Estimate","Margin Of Error","Estimate","Margin Of Error","Estimate","Margin Of Error","Estimate","Margin Of Error","Estimate","Margin Of Error","Estimate","Margin Of Error","Estimate","Margin Of Error","Estimate","Margin Of Error","Estimate","Margin Of Error"]
[null,"Total:",565,133,256,71,416,125,485,142,127,39,248,60,180,52,7316,521,196,60,209,58,261,84,1114,190,624,142,108,35,1115,200,617,170,326,98,191,61,602,179,488,129,916,212,583,134,98,38,217,64,301,90,121,36,111,38]
[null,"Less than $10,000",57,47,6,9,48,29,38,59,23,22,21,15,7,10,896,201,50,35,7,11,0,114,158,78,60,46,3,5,72,53,30,36,11,18,19,15,158,115,38,37,18,30,19,23,0,114,21,24,38,34,12,10,30,23]
[null,"$10,000 to $14,999",97,50,19,17,48,25,67,62,9,7,16,17,6,10,728,234,11,11,7,11,55,54,176,71,70,90,18,11,82,53,0,114,26,27,8,9,16,24,31,25,101,65,34,33,7,10,24,38,24,19,13,15,8,9]
[null,"$15,000 to $19,999",77,64,18,15,25,28,63,49,0,114,7,10,6,10,498,157,4,7,9,13,44,37,90,48,39,51,6,6,83,47,44,42,17,19,9,10,21,17,10,16,12,21,73,55,0,114,24,20,4,7,11,17,0,114]
[null,"$20,000 to $24,999",66,66,10,17,29,28,40,37,15,10,18,19,26,21,706,175,33,39,23,21,36,44,129,72,63,63,20,17,9,14,31,37,18,20,19,14,47,53,56,58,28,38,18,23,15,17,10,9,22,21,0,114,11,9]
[null,"$25,000 to $29,999",45,38,6,9,10,16,101,79,7,8,38,26,5,9,496,136,5,8,14,19,21,23,116,67,30,34,3,4,98,54,0,114,30,26,8,9,0,114,50,37,184,112,20,22,3,5,13,15,11,11,3,4,0,114]
[null,"$30,000 to $34,999",69,46,13,13,46,44,0,114,9,15,35,27,9,14,464,144,23,18,0,114,38,33,86,56,39,37,6,6,65,42,61,44,19,22,0,114,78,73,23,26,76,57,51,38,0,114,9,10,14,14,7,7,8,10]
[null,"$35,000 to $39,999",8,13,34,31,39,50,0,114,0,114,34,29,8,12,455,143,25,17,0,114,11,16,37,31,35,45,3,4,33,32,40,37,18,23,3,4,62,58,9,15,125,107,73,80,3,4,9,8,18,17,17,16,4,7]
[null,"$40,000 to $44,999",46,41,26,19,13,22,0,114,12,9,7,11,23,20,551,127,14,18,7,11,0,114,71,37,35,45,5,6,48,38,20,33,13,17,11,13,11,18,60,55,37,40,64,46,11,9,22,18,25,19,6,6,0,114]
[null,"$45,000 to $49,999",0,114,0,114,20,23,11,19,6,7,11,13,32,35,335,137,0,114,5,8,0,114,43,32,55,57,14,10,85,81,29,32,17,20,17,15,18,24,30,28,72,73,0,114,18,19,15,12,14,14,4,6,0,114]
[null,"$50,000 to $59,999",40,43,56,37,29,30,77,71,3,4,4,6,10,11,555,154,10,15,10,11,23,26,44,27,32,26,6,6,106,76,48,36,27,26,42,32,51,55,81,50,102,113,34,42,18,15,10,12,31,27,13,9,5,7]
[null,"$60,000 to $74,999",41,34,12,14,47,50,15,24,5,6,13,14,18,16,510,157,0,114,41,25,0,114,86,44,64,48,8,12,161,79,35,43,19,21,11,11,41,35,49,53,68,62,81,49,7,8,8,9,40,37,17,12,22,19]
[null,"$75,000 to $99,999",10,15,5,7,12,18,27,32,23,19,15,13,17,15,658,164,11,11,24,20,16,23,78,61,85,62,0,114,202,104,107,69,55,52,5,6,40,35,51,48,13,21,63,64,6,6,9,9,42,34,14,15,9,14]
[null,"$100,000 to $124,999",9,14,17,28,24,27,0,114,6,7,29,26,6,10,227,123,0,114,5,8,9,14,0,114,11,18,13,16,42,40,59,54,42,48,5,8,11,18,0,114,32,37,8,13,3,5,8,9,7,10,3,5,9,14]
[null,"$125,000 to $149,999",0,114,29,33,14,22,12,20,3,5,0,114,0,114,145,65,0,114,15,16,8,11,0,114,0,114,0,114,9,15,98,110,8,13,9,13,18,29,0,114,13,22,37,57,3,5,31,21,0,114,1,4,0,114]
[null,"$150,000 to $199,999",0,114,0,114,0,114,0,114,6,6,0,114,7,11,54,46,5,8,33,22,0,114,0,114,6,10,3,4,11,17,0,114,6,11,22,26,12,19,0,114,35,41,8,13,0,114,4,5,7,10,0,114,0,114]
[null,"$200,000 or more",0,114,5,8,12,21,34,39,0,114,0,114,0,114,38,32,5,7,9,16,0,114,0,114,0,114,0,114,9,13,15,24,0,114,3,4,18,24,0,114,0,114,0,114,4,5,0,114,4,7,0,114,5,7]
[]
[]
[null,"B19112. MEDIAN NON-FAMILY INCOME IN THE PAST 12 MONTHS (IN 2009 INFLATION-ADJUSTED DOLLARS)"]
[null,"Universe:  FAMILIES"]
[null,"Data Set: 2005-2009 American Community Survey 5-Year Estimates"]
[]
[null,null,"Allenstown",null,"Andover",null,"Boscawen",null,"Bow",null,"Bradford",null,"Canterbury",null,"Chichester",null,"Concord",null,"Danbury",null,"Dunbarton",null,"Epsom",null,"Franklin",null,"Henniker",null,"Hill",null,"Hooksett",null,"Hopkinton",null,"Loudon",null,"Newbury",null,"New London",null,"Northfield",null,"Pembroke",null,"Pittsfield",null,"Salisbury",null,"Sutton",null,"Warner",null,"Webster",null,"Wilmot"]
[null,null,"Estimate","Margin Of Error","Estimate","Margin Of Error","Estimate","Margin Of Error","Estimate","Margin Of Error","Estimate","Margin Of Error","Estimate","Margin Of Error","Estimate","Margin Of Error","Estimate","Margin Of Error","Estimate","Margin Of Error","Estimate","Margin Of Error","Estimate","Margin Of Error","Estimate","Margin Of Error","Estimate","Margin Of Error","Estimate","Margin Of Error","Estimate","Margin Of Error","Estimate","Margin Of Error","Estimate","Margin Of Error","Estimate","Margin Of Error","Estimate","Margin Of Error","Estimate","Margin Of Error","Estimate","Margin Of Error","Estimate","Margin Of Error","Estimate","Margin Of Error","Estimate","Margin Of Error","Estimate","Margin Of Error","Estimate","Margin Of Error","Estimate","Margin Of Error"]
[null,"Median family income in the past 12 months",22868,6598,44500,15058,35128,6582,25948,3343,40417,25300,34052,3207,45000,7747,32538,3206,26250,9748,65809,8349,22188,10238,25333,5688,37692,14054,31667,19021,49271,8673,68482,29300,49118,16574,50750,7797,33967,7419,41378,10569,36711,5723,40250,6353,48571,5888,39375,15246,44276,7359,37917,9770,34531,39964]

{"sheet":"ACS_Table_B19049","index":35,"n_rows":56,"n_cols":56,"rows_kept":56,"cut":false,"hidden":true,"merged":[]}
[null,"B19049. MEDIAN HOUSEHOLD INCOME IN THE PAST 12 MONTHS (IN 2019 INFLATION-ADJUSTED DOLLARS) BY AGE OF HOUSEHOLDER "]
[null,"Universe:  HOUSEHOLDS"]
[null,"Data Set: 2015-2019 American Community Survey 5-Year Estimates"]
[]
[null,null,"Allenstown",null,"Andover",null,"Boscawen",null,"Bow",null,"Bradford",null,"Canterbury",null,"Chichester",null,"Concord",null,"Danbury",null,"Dunbarton",null,"Epsom",null,"Franklin",null,"Henniker",null,"Hill",null,"Hooksett",null,"Hopkinton",null,"Loudon",null,"Newbury",null,"New London",null,"Northfield",null,"Pembroke",null,"Pittsfield",null,"Salisbury",null,"Sutton",null,"Warner",null,"Webster",null,"Wilmot"]
[null,null,"Estimate","Margin Of Error","Estimate","Margin Of Error","Estimate","Margin Of Error","Estimate","Margin Of Error","Estimate","Margin Of Error","Estimate","Margin Of Error","Estimate","Margin Of Error","Estimate","Margin Of Error","Estimate","Margin Of Error","Estimate","Margin Of Error","Estimate","Margin Of Error","Estimate","Margin Of Error","Estimate","Margin Of Error","Estimate","Margin Of Error","Estimate","Margin Of Error","Estimate","Margin Of Error","Estimate","Margin Of Error","Estimate","Margin Of Error","Estimate","Margin Of Error","Estimate","Margin Of Error","Estimate","Margin Of Error","Estimate","Margin Of Error","Estimate","Margin Of Error","Estimate","Margin Of Error","Estimate","Margin Of Error","Estimate","Margin Of Error","Estimate","Margin Of Error"]
[null,"Median household income in the past 12 months"]
[null,"Total:",56721,6427,77283,10116,74500,7673,122230,7093,71458,16796,84000,11336,95398,11556,66719,4222,61250,15093,121500,18962,78622,10274,52795,4627,79867,11106,80292,4286,84568,9816,88854,19997,72311,10279,102361,8184,90846,20734,61859,8116,82808,7021,55532,3732,84844,6404,93352,11416,72841,8796,86645,4514,81250,19306]
[null,"Householder under 25 years",80731,21838,"-","**","-","**","-","**",49688,37154,"-","**","-","**",30094,6595,"-","**","-","**","-","**",52995,15769,11000,3565,"-","**",39048,2950,"-","**","-","**","-","**","-","**","-","**","-","**","-","**","-","**","-","**",29261,27272,"-","**","-","**"]
[null,"Householder 25 to 44 years",44083,22713,86583,18496,90481,20468,127125,11339,71875,25586,97031,33331,84732,15028,77188,8030,68750,8924,155096,39356,81250,23550,70938,10268,112564,44834,110625,29414,96914,6929,121563,41716,68682,14567,99844,26339,121023,28726,61619,10673,85109,11473,56401,4762,91528,12965,94167,16268,86250,26662,94583,20004,69412,11326]
[null,"Householder 45 to 64 years",72917,15004,83125,12001,75000,12423,151198,11098,98947,11927,93333,35546,120417,12865,84386,4356,56700,15312,129444,13970,100583,26442,58267,23025,87072,15118,76250,14049,109500,8243,108442,23854,97779,6463,106739,19194,132596,22500,73875,24084,87941,17809,63839,19941,112768,14839,115227,22180,85500,18626,98300,12003,89550,24921]
[null,"Householder 65 years and over",29602,16692,46000,23399,39954,20636,67500,13139,45313,18158,61458,25469,47708,17321,43254,6785,48750,36783,71591,17818,45313,11908,33839,5011,77938,15188,75938,18038,47179,8753,57197,7993,47500,27249,88405,10027,63787,8005,51444,12014,59402,19248,48750,13877,62569,19566,66058,12631,49844,15900,60795,14928,81875,33738]
[]
[]
[]
[]
[]
[]
[]
[]
[]
[]
[]
[]
[]
[]
[]
[]
[]
[null,"B19049. MEDIAN HOUSEHOLD INCOME IN THE PAST 12 MONTHS (IN 2014 INFLATION-ADJUSTED DOLLARS) BY AGE OF HOUSEHOLDER "]
[null,"Universe:  HOUSEHOLDS"]
[null,"Data Set: 2010-2014 American Community Survey 5-Year Estimates"]
[]
[null,null,"Allenstown",null,"Andover",null,"Boscawen",null,"Bow",null,"Bradford",null,"Canterbury",null,"Chichester",null,"Concord",null,"Danbury",null,"Dunbarton",null,"Epsom",null,"Franklin",null,"Henniker",null,"Hill",null,"Hooksett",null,"Hopkinton",null,"Loudon",null,"Newbury",null,"New London",null,"Northfield",null,"Pembroke",null,"Pittsfield",null,"Salisbury",null,"Sutton",null,"Warner",null,"Webster",null,"Wilmot"]
[null,null,"Estimate","Margin Of Error","Estimate","Margin Of Error","Estimate","Margin Of Error","Estimate","Margin Of Error","Estimate","Margin Of Error","Estimate","Margin Of Error","Estimate","Margin Of Error","Estimate","Margin Of Error","Estimate","Margin Of Error","Estimate","Margin Of Error","Estimate","Margin Of Error","Estimate","Margin Of Error","Estimate","Margin Of Error","Estimate","Margin Of Error","Estimate","Margin Of Error","Estimate","Margin Of Error","Estimate","Margin Of Error","Estimate","Margin Of Error","Estimate","Margin Of Error","Estimate","Margin Of Error","Estimate","Margin Of Error","Estimate","Margin Of Error","Estimate","Margin Of Error","Estimate","Margin Of Error","Estimate","Margin Of Error","Estimate","Margin Of Error","Estimate","Margin Of Error"]
[null,"Median household income in the past 12 months"]
[null,"Total:",52750,5886,70025,16113,54623,9551,105266,11179,58452,5011,86797,5928,75988,7536,54182,1844,58563,7487,94417,8913,71852,5921,42742,2733,65867,9377,60250,15563,82725,3791,87545,7899,68503,5351,64107,14630,67500,8906,65368,9154,67264,15663,48672,12868,67208,5002,68295,9793,73348,8379,66042,7119,66125,10585]
[null,"Householder under 25 years",63233,36657,"-","**","-","**","-","**",40938,74298,"-","**","-","**",24911,4569,"-","**","-","**","-","**",43257,13838,13269,9512,"-","**",97875,77938,38667,129459,"-","**","-","**",34327,113574,"-","**","-","**",13309,7465,"-","**","-","**",24474,18161,"-","**","-","**"]
[null,"Householder 25 to 44 years",54949,12248,80526,14090,66058,34534,105333,26979,77361,15349,85208,7702,87760,16341,57336,6720,65500,13616,100536,30931,97708,13154,41063,11702,63452,14828,81750,12537,97217,13012,85690,29771,69097,19134,86042,38142,80385,52717,83793,9985,77974,26770,65781,31724,73750,27533,68558,20890,92750,34992,78036,21261,79000,11817]
[null,"Householder 45 to 64 years",59224,18732,79803,14365,62539,8417,125066,9964,60172,3752,92361,16185,76919,13196,70713,5150,61641,6157,101750,8919,75813,10039,44936,9856,82606,9679,64028,17996,87162,7798,105156,22486,75250,15285,79722,20686,104250,22060,68676,10322,80833,13546,62794,31262,71417,5079,77500,10351,76250,10281,70417,15489,81250,28541]
[null,"Householder 65 years and over",26607,5381,36534,12542,32891,5071,68107,18596,38750,20393,73417,10271,52750,22314,35106,3872,38750,21342,48500,14739,26136,10175,38182,10184,34063,23706,32404,12918,40746,4936,69083,14579,50250,25540,40114,11740,57708,9238,41750,5880,32065,8138,41250,18548,45313,9507,51696,7425,54219,22381,40278,9009,45750,11798]
[]
[]
[]
[null,"B19049. MEDIAN HOUSEHOLD INCOME IN THE PAST 12 MONTHS (IN 2009 INFLATION-ADJUSTED DOLLARS) BY AGE OF HOUSEHOLDER "]
[null,"Universe:  HOUSEHOLDS"]
[null,"Data Set: 2005-2009 American Community Survey 5-Year Estimates"]
[]
[null,null,"Allenstown",null,"Andover",null,"Boscawen",null,"Bow",null,"Bradford",null,"Canterbury",null,"Chichester",null,"Concord",null,"Danbury",null,"Dunbarton",null,"Epsom",null,"Franklin",null,"Henniker",null,"Hill",null,"Hooksett",null,"Hopkinton",null,"Loudon",null,"Newbury",null,"New London",null,"Northfield",null,"Pembroke",null,"Pittsfield",null,"Salisbury",null,"Sutton",null,"Warner",null,"Webster",null,"Wilmot"]
[null,null,"Estimate","Margin Of Error","Estimate","Margin Of Error","Estimate","Margin Of Error","Estimate","Margin Of Error","Estimate","Margin Of Error","Estimate","Margin Of Error","Estimate","Margin Of Error","Estimate","Margin Of Error","Estimate","Margin Of Error","Estimate","Margin Of Error","Estimate","Margin Of Error","Estimate","Margin Of Error","Estimate","Margin Of Error","Estimate","Margin Of Error","Estimate","Margin Of Error","Estimate","Margin Of Error","Estimate","Margin Of Error","Estimate","Margin Of Error","Estimate","Margin Of Error","Estimate","Margin Of Error","Estimate","Margin Of Error","Estimate","Margin Of Error","Estimate","Margin Of Error","Estimate","Margin Of Error","Estimate","Margin Of Error","Estimate","Margin Of Error","Estimate","Margin Of Error"]
[null,"Median household income in the past 12 months"]
[null,"Total:",55752,4919,58313,7369,56635,3723,97028,8864,61591,12387,72368,7912,70214,7367,52592,3007,48000,15264,92625,16453,71555,7932,46644,4770,64207,11463,53958,14130,80919,3446,82408,4860,73719,11315,61453,6936,74911,25005,58955,3250,57837,6565,56463,6079,64219,7855,74512,6236,58889,6793,65096,7831,68704,11039]
[null,"Householder under 25 years",76037,3653,103309,93750,"-","**","-","**",75833,7871,"-","**","-","**",32400,4344,44196,7949,29531,1892,"-","**",71667,69199,26000,25771,77917,58462,70000,15521,"-","**","-","**","-","**",47569,83902,41645,4410,38386,17259,56957,9479,"-","**",64063,15942,80795,37734,32188,16778,24688,46610]
[null,"Householder 25 to 44 years",64625,26980,62500,13082,67250,9654,117937,23189,68750,29018,82321,14081,73839,17243,58935,4444,47679,20039,95179,27019,90714,30800,46583,7703,83214,30072,65208,9633,89743,9655,86875,16608,65125,31484,62500,27475,109091,46570,72736,17226,62757,8545,64129,21617,70313,22022,119792,72510,71964,7024,69643,8624,98438,28143]
[null,"Householder 45 to 64 years",58500,9117,56188,17652,56379,8572,107813,17018,68875,14813,80781,8889,73864,14192,67260,6700,70446,16838,94231,20775,77768,15258,53047,8036,75156,11939,63906,13562,85182,6890,85904,8606,85074,6714,80337,29807,142552,42529,61131,5099,70227,16388,47031,15835,71875,22590,74773,9905,58565,8635,72500,17414,68750,16823]
[null,"Householder 65 years and over",20000,13131,55347,15249,26125,8078,32417,25100,31250,28891,34405,8367,37656,13726,28944,3842,24000,21184,74286,47172,31375,12971,23565,8117,24524,17341,31667,15094,41184,19505,58359,12993,61940,12555,52865,8527,50493,32929,25900,5320,45391,5854,25357,31960,41250,17204,59028,19327,35417,8617,41528,8165,34063,8054]

{"sheet":"ACS_Table_B25118","index":36,"n_rows":191,"n_cols":56,"rows_kept":191,"cut":false,"hidden":true,"merged":[]}
[null,"B25118. TENURE BY HOUSEHOLD INCOME IN THE PAST 12 MONTHS (IN 2019 INFLATION-ADJUSTED DOLLARS) "]
[null,"Universe:  OCCUPIED HOUSING UNITS"]
[null,"Data Set: 2015-2019 American Community Survey 5-Year Estimates"]
[]
[null,null,"Allenstown",null,"Andover",null,"Boscawen",null,"Bow",null,"Bradford",null,"Canterbury",null,"Chichester",null,"Concord",null,"Danbury",null,"Dunbarton",null,"Epsom",null,"Franklin",null,"Henniker",null,"Hill",null,"Hooksett",null,"Hopkinton",null,"Loudon",null,"Newbury",null,"New London",null,"Northfield",null,"Pembroke",null,"Pittsfield",null,"Salisbury",null,"Sutton",null,"Warner",null,"Webster",null,"Wilmot"]
[null,null,"Estimate","Margin Of Error","Estimate","Margin Of Error","Estimate","Margin Of Error","Estimate","Margin Of Error","Estimate","Margin Of Error","Estimate","Margin Of Error","Estimate","Margin Of Error","Estimate","Margin Of Error","Estimate","Margin Of Error","Estimate","Margin Of Error","Estimate","Margin Of Error","Estimate","Margin Of Error","Estimate","Margin Of Error","Estimate","Margin Of Error","Estimate","Margin Of Error","Estimate","Margin Of Error","Estimate","Margin Of Error","Estimate","Margin Of Error","Estimate","Margin Of Error","Estimate","Margin Of Error","Estimate","Margin Of Error","Estimate","Margin Of Error","Estimate","Margin Of Error","Estimate","Margin Of Error","Estimate","Margin Of Error","Estimate","Margin Of Error","Estimate","Margin Of Error"]
[null,"Total:",1788,107,1054,90,1374,112,2715,130,647,67,970,60,969,55,17530,366,481,65,938,45,1787,124,3909,223,1805,127,373,48,5252,190,2193,126,2050,174,910,86,1551,161,1860,118,2690,164,1675,159,554,65,769,91,1144,96,760,72,704,71]
[null,"Owner occupied:",1379,114,900,95,1086,143,2427,129,574,66,892,67,882,80,9252,428,439,66,878,53,1505,107,2480,205,1356,138,343,47,3968,225,1950,130,1759,181,846,86,1256,148,1390,132,2108,223,1076,143,515,64,679,82,757,99,701,70,555,76]
[null,"Less than $5,000",35,33,6,8,22,25,17,18,0,11,18,12,6,9,142,65,0,11,3,7,8,14,69,55,26,24,0,11,25,28,0,16,24,38,6,9,8,13,0,11,0,16,0,11,3,5,0,11,5,7,3,5,17,23]
[null,"$5,000 to $9,999",49,52,7,11,0,11,0,16,8,8,0,11,6,8,49,51,3,4,0,11,0,11,37,35,23,28,0,11,30,44,17,28,25,37,0,11,7,11,0,11,19,31,0,11,6,7,0,11,10,10,9,10,3,6]
[null,"$10,000 to $14,999",38,32,23,31,8,14,19,20,10,9,40,31,8,9,94,67,18,20,5,7,43,36,57,40,0,11,7,7,34,25,0,16,19,30,0,11,58,43,15,17,11,19,0,11,4,6,5,7,18,14,8,8,3,6]
[null,"$15,000 to $19,999",19,20,0,11,29,47,17,19,12,10,25,23,10,10,183,68,4,6,0,11,16,13,81,75,60,56,4,5,101,71,0,16,0,16,16,13,25,24,21,21,17,26,27,21,15,10,23,30,0,11,15,12,10,13]
[null,"$20,000 to $24,999",15,19,29,32,12,18,24,26,28,23,11,12,29,19,290,94,21,22,3,6,33,31,142,71,0,11,7,7,42,29,68,55,42,48,10,12,15,24,33,31,39,39,16,18,25,23,13,22,19,22,7,9,24,24]
[null,"$25,000 to $34,999",184,91,56,34,111,67,53,35,73,28,51,25,57,31,442,129,42,20,21,15,122,48,223,92,70,57,10,11,138,87,62,50,160,101,38,22,72,40,116,66,192,120,62,42,17,11,39,25,51,36,18,12,26,14]
[null,"$35,000 to $49,999",139,58,98,51,104,58,87,43,53,27,46,26,67,28,938,136,84,34,85,27,86,46,307,102,74,59,54,32,379,122,183,91,196,103,27,18,69,37,146,61,139,102,121,60,51,22,68,34,59,24,76,28,40,23]
[null,"$50,000 to $74,999",271,93,172,52,213,82,234,71,84,29,167,64,102,40,1281,188,79,31,75,26,297,105,500,139,193,67,60,21,599,144,438,147,363,142,114,38,247,96,358,110,269,100,350,122,89,38,111,36,165,61,111,32,108,39]
[null,"$75,000 to $99,999",303,100,160,58,135,78,283,97,93,29,138,48,155,55,1391,232,100,36,147,44,218,95,372,122,281,104,93,33,716,134,170,93,334,134,163,54,94,46,225,75,464,152,234,91,118,36,85,41,141,50,164,55,69,36]
[null,"$100,000 to $149,999",178,68,220,60,353,137,692,120,108,32,237,51,270,61,2044,217,56,26,247,51,369,118,476,137,321,99,87,28,953,165,452,124,345,130,203,58,291,78,275,93,534,140,189,90,125,39,185,54,144,50,198,41,81,39]
[null,"$150,000 or more",148,61,129,44,99,67,1001,128,105,36,159,44,172,56,2398,219,32,20,292,68,313,114,216,93,308,93,21,13,951,199,560,152,251,117,269,77,370,89,201,72,424,117,77,40,62,25,150,44,145,42,92,33,174,43]
[null,"Renter occupied:",409,114,154,72,288,107,288,76,73,31,78,40,87,53,8278,412,42,17,60,26,282,82,1429,186,449,115,30,21,1284,204,243,100,291,138,64,26,295,90,470,109,582,186,599,147,39,26,90,36,387,91,59,29,149,52]
[null,"Less than $5,000",14,21,0,11,0,11,35,40,0,11,0,11,0,11,294,114,0,11,0,11,0,11,20,24,9,14,0,11,93,73,0,16,63,79,0,11,8,12,9,13,0,16,0,11,0,11,10,18,19,16,11,17,0,11]
[null,"$5,000 to $9,999",0,11,26,40,9,14,0,16,0,11,0,11,0,11,455,195,0,11,0,11,0,11,48,46,49,59,10,15,19,31,12,19,18,32,0,11,9,14,0,11,71,89,83,108,0,11,0,11,25,28,4,6,3,4]
[null,"$10,000 to $14,999",122,76,0,11,40,40,0,16,3,5,0,11,0,11,698,174,3,4,0,11,0,11,134,79,98,86,0,11,48,37,19,29,0,16,12,13,7,12,7,11,0,16,165,104,0,11,3,6,6,10,3,4,0,11]
[null,"$15,000 to $19,999",50,47,0,11,49,40,39,34,0,11,28,38,5,7,373,114,0,11,4,6,59,37,220,133,51,43,0,11,25,27,0,16,22,34,20,15,17,27,19,30,0,16,71,63,0,11,4,7,71,52,0,11,0,11]
[null,"$20,000 to $24,999",10,14,19,30,15,24,51,28,3,6,30,36,0,11,493,139,3,5,5,7,23,27,58,42,51,50,4,5,90,58,0,16,42,48,5,7,22,27,0,11,73,60,9,14,5,9,15,19,43,39,0,11,8,8]
[null,"$25,000 to $34,999",29,27,30,31,11,18,26,25,19,18,12,13,0,11,1156,247,10,9,4,6,30,25,263,99,29,34,4,5,100,65,25,30,0,16,5,7,10,16,167,104,32,35,74,67,0,11,4,5,28,17,13,18,5,8]
[null,"$35,000 to $49,999",70,58,29,39,12,20,31,27,29,22,0,11,49,44,1195,214,4,5,12,12,49,32,185,99,67,52,3,5,237,127,8,19,31,36,5,7,62,54,162,85,80,63,29,28,11,17,6,10,36,27,5,8,28,23]
[null,"$50,000 to $74,999",88,55,11,11,75,79,45,31,12,11,0,11,9,13,1483,254,11,16,7,10,94,62,277,124,40,39,5,8,228,106,123,86,38,35,11,11,73,57,78,43,141,79,94,54,18,18,17,19,36,29,3,4,62,36]
[null,"$75,000 to $99,999",17,19,12,13,49,38,10,17,0,11,0,11,0,11,1250,236,0,11,16,15,15,21,131,76,16,20,0,11,284,134,56,62,0,16,6,9,36,29,13,19,133,70,62,64,0,11,5,8,32,26,17,17,3,5]
[null,"$100,000 to $149,999",9,18,16,24,28,30,43,36,7,8,0,11,15,17,599,166,11,17,0,11,12,25,93,77,26,41,0,11,90,56,0,16,77,76,0,11,14,21,15,18,52,80,12,18,5,7,21,22,64,49,3,4,32,27]
[null,"$150,000 or more",0,11,11,13,0,11,8,13,0,11,8,11,9,14,282,101,0,11,12,11,0,11,0,16,13,27,4,5,70,57,0,16,0,16,0,11,37,30,0,11,0,16,0,11,0,11,5,8,27,25,0,11,8,7]
[]
[]
[]
[]
[]
[null,"Calculated B25118. TENURE BY HOUSEHOLD INCOME IN THE PAST 12 MONTHS (IN 2019 INFLATION-ADJUSTED DOLLARS) "]
[null,"Universe:  OCCUPIED HOUSING UNITS"]
[null,"Data Set: 2015-2019 American Community Survey 5-Year Estimates"]
[null,null,"Allenstown",null,"Andover",null,"Boscawen",null,"Bow",null,"Bradford",null,"Canterbury",null,"Chichester",null,"Concord",null,"Danbury",null,"Dunbarton",null,"Epsom",null,"Franklin",null,"Henniker",null,"Hill",null,"Hooksett",null,"Hopkinton",null,"Loudon",null,"Newbury",null,"New London",null,"Northfield",null,"Pembroke",null,"Pittsfield",null,"Salisbury",null,"Sutton",null,"Warner",null,"Webster",null,"Wilmot"]
[null,null,"Estimate","Margin Of Error","Estimate","Margin Of Error","Estimate","Margin Of Error","Estimate","Margin Of Error","Estimate","Margin Of Error","Estimate","Margin Of Error","Estimate","Margin Of Error","Estimate","Margin Of Error","Estimate","Margin Of Error","Estimate","Margin Of Error","Estimate","Margin Of Error","Estimate","Margin Of Error","Estimate","Margin Of Error","Estimate","Margin Of Error","Estimate","Margin Of Error","Estimate","Margin Of Error","Estimate","Margin Of Error","Estimate","Margin Of Error","Estimate","Margin Of Error","Estimate","Margin Of Error","Estimate","Margin Of Error","Estimate","Margin Of Error","Estimate","Margin Of Error","Estimate","Margin Of Error","Estimate","Margin Of Error","Estimate","Margin Of Error","Estimate","Margin Of Error"]
[null,{"$f":"B7","v":"Total:"},1788,107,1054,90,1374,112,2715,130,647,67,970,60,969,55,17530,366,481,65,938,45,1787,124,{"$f":"Y7","v":3909},223,1805,127,373,48,5252,190,2193,126,2050,174,910,86,1551,161,{"$f":"AO7","v":1860},118,2690,164,1675,159,554,65,769,91,1144,96,760,72,704,71]
[null,"Less than $5,000",{"$f":"C9+C21","v":49},{"$f":"SQRT((D9^2)+(D21^2))","v":39.11521443121589},{"$f":"E9+E21","v":6},{"$f":"SQRT((F9^2)+(F21^2))","v":13.601470508735444},{"$f":"G9+G21","v":22},{"$f":"SQRT((H9^2)+(H21^2))","v":27.313000567495326},{"$f":"I9+I21","v":52},{"$f":"SQRT((J9^2)+(J21^2))","v":43.863424398922618},{"$f":"K9+K21","v":0},{"$f":"SQRT((L9^2)+(L21^2))","v":15.556349186104045},{"$f":"M9+M21","v":18},{"$f":"SQRT((N9^2)+(N21^2))","v":16.278820596099706},{"$f":"O9+O21","v":6},{"$f":"SQRT((P9^2)+(P21^2))","v":14.212670403551895},{"$f":"Q9+Q21","v":436},{"$f":"SQRT((R9^2)+(R21^2))","v":131.22880781291889},{"$f":"S9+S21","v":0},{"$f":"SQRT((T9^2)+(T21^2))","v":15.556349186104045},{"$f":"U9+U21","v":3},{"$f":"SQRT((V9^2)+(V21^2))","v":13.038404810405298},{"$f":"W9+W21","v":8},{"$f":"SQRT((X9^2)+(X21^2))","v":17.804493814764857},{"$f":"Y9+Y21","v":89},{"$f":"SQRT((Z9^2)+(Z21^2))","v":60.00833275470999},{"$f":"AA9+AA21","v":35},{"$f":"SQRT((AB9^2)+(AB21^2))","v":27.784887978899608},{"$f":"AC9+AC21","v":0},{"$f":"SQRT((AD9^2)+(AD21^2))","v":15.556349186104045},{"$f":"AE9+AE21","v":118},{"$f":"SQRT((AF9^2)+(AF21^2))","v":78.185676437567508},{"$f":"AG9+AG21","v":0},{"$f":"SQRT((AH9^2)+(AH21^2))","v":22.627416997969522},{"$f":"AI9+AI21","v":87},{"$f":"SQRT((AJ9^2)+(AJ21^2))","v":87.664131775772461},{"$f":"AK9+AK21","v":6},{"$f":"SQRT((AL9^2)+(AL21^2))","v":14.212670403551895},{"$f":"AM9+AM21","v":16},{"$f":"SQRT((AN9^2)+(AN21^2))","v":17.691806012954132},9,17.029386365926403,{"$f":"AQ9+AQ21","v":0},{"$f":"SQRT((AR9^2)+(AR21^2))","v":22.627416997969522},{"$f":"AS9+AS21","v":0},{"$f":"SQRT((AT9^2)+(AT21^2))","v":15.556349186104045},{"$f":"AU9+AU21","v":3},{"$f":"SQRT((AV9^2)+(AV21^2))","v":12.083045973594572},{"$f":"AW9+AW21","v":10},{"$f":"SQRT((AX9^2)+(AX21^2))","v":21.095023109728988},{"$f":"AY9+AY21","v":24},{"$f":"SQRT((AZ9^2)+(AZ21^2))","v":17.464249196572979},{"$f":"BA9+BA21","v":14},{"$f":"SQRT((BB9^2)+(BB21^2))","v":17.720045146669349},{"$f":"BC9+BC21","v":17},{"$f":"SQRT((BD9^2)+(BD21^2))","v":25.495097567963924}]
[null,"$5,000 to $9,999",{"$f":"C10+C22","v":49},{"$f":"SQRT((D10^2)+(D22^2))","v":53.150729063673246},{"$f":"E10+E22","v":33},41.484937025383083,{"$f":"G10+G22","v":9},17.804493814764857,{"$f":"I10+I22","v":0},22.627416997969522,{"$f":"K10+K22","v":8},13.601470508735444,{"$f":"M10+M22","v":0},15.556349186104045,{"$f":"O10+O22","v":6},13.601470508735444,{"$f":"Q10+Q22","v":504},201.55892438688991,3,11.704699910719626,0,15.556349186104045,0,15.556349186104045,85,57.801384066473702,72,65.30696746902278,10,18.601075237738275,49,53.823786563191554,29,33.837848631377263,43,48.918299234540036,0,15.556349186104045,16,17.804493814764857,0,15.556349186104045,90,94.244363226667303,83,108.55873986004075,6,13.038404810405298,0,15.556349186104045,35,29.732137494637012,13,11.661903789690601,6,7.2111025509279782]
[null,"$10,000 to $14,999",{"$f":"C11+C23","v":160},82.462112512353215,{"$f":"E11+E23","v":23},32.893768406797051,{"$f":"G11+G23","v":48},42.379240200834182,{"$f":"I11+I23","v":19},25.612496949731394,{"$f":"K11+K23","v":13},10.295630140987001,{"$f":"M11+M23","v":40},32.893768406797051,{"$f":"O11+O23","v":8},14.212670403551895,{"$f":"Q11+Q23","v":792},186.45374761586316,21,20.396078054371138,5,13.038404810405298,43,37.643060449437421,191,88.549421229051518,98,86.700634369074834,7,13.038404810405298,82,44.654227123532216,19,33.120990323358392,19,34,12,17.029386365926403,65,44.643028571099428,22,20.248456731316587,11,24.839484696748443,165,104.58011283222064,4,12.529964086141668,8,9.2195444572928871,24,17.204650534085253,11,8.9442719099991592,3,12.529964086141668]
[null,"$15,000 to $19,999",{"$f":"C12+C24","v":69},51.078371156488537,0,15.556349186104045,78,61.71709649683789,56,38.948684188300895,12,14.866068747318506,53,44.418464629025621,15,12.206555615733702,556,132.74034804836094,4,12.529964086141668,4,12.529964086141668,75,39.217343102255157,301,152.68922686293229,111,70.604532432415411,4,12.083045973594572,126,75.960516059331766,0,22.627416997969522,22,37.576588456111871,36,19.849433241279208,42,36.124783736376884,40,36.61966684720111,17,30.528675044947494,98,66.407830863535963,15,14.866068747318506,27,30.805843601498726,71,53.150729063673246,15,16.278820596099706,10,17.029386365926403]
[null,"$20,000 to $24,999",25,23.600847442411894,48,43.863424398922618,27,30,75,38.209946349085598,31,23.769728648009426,41,37.947331922020552,29,21.95449840010015,783,167.80047675736802,24,22.561028345356956,8,9.2195444572928871,56,41.109609582188931,200,82.492423894561369,51,51.195702944680818,11,8.6023252670426267,132,64.845971347493901,68,57.280013966478741,84,67.882250993908556,15,13.892443989449804,37,36.124783736376884,33,32.893768406797051,112,71.56116265125938,25,22.803508501982758,30,24.698178070456937,28,29.068883707497267,62,44.77722635447622,7,14.212670403551895,32,25.298221281347036]
[null,"$25,000 to $34,999",213,94.921019800674287,86,46.010868281309364,122,69.375788283809797,79,43.011626335213137,92,33.286633954186478,63,28.178005607210743,57,32.893768406797051,1598,278.65749586185547,52,21.931712199461309,25,16.15549442140351,152,54.120236510939236,486,135.14806694880988,99,66.370174024180471,14,12.083045973594572,238,108.60018416190647,87,58.309518948453004,160,102.25947388873072,43,23.086792761230392,82,43.08131845707603,283,123.17467272130257,224,125,136,79.075912893876861,17,15.556349186104045,43,25.495097567963924,79,39.812058474788763,31,21.633307652783937,31,16.124515496597098]
[null,"$35,000 to $49,999",209,82.024386617639507,127,64.202803677098089,116,61.351446600711867,118,50.774009099144415,82,34.828149534535996,46,28.231188426986208,116,52.153619241621193,2133,253.55867171130237,88,34.365680554879162,97,29.546573405388315,135,56.0357029044876,492,142.1442928857856,141,78.644770964127048,57,32.388269481403292,616,176.10508226624239,191,92.962357973536797,227,109.11003620199197,32,19.313207915827967,131,65.459911396212561,308,104.62313319720452,219,119.88744721612851,150,66.211781428987393,62,27.802877548915689,74,35.440090293338699,95,36.124783736376884,81,29.120439557122072,68,32.526911934581186]
[null,"$50,000 to $74,999",359,108.04628637764465,183,53.150729063673246,288,113.86395390991831,279,77.472575792986262,96,31.016124838541646,167,64.938432380216881,111,42.059481689626182,2764,316.00632905054289,90,34.885527085024819,82,27.856776554368238,391,121.93850909372314,777,186.27130750601393,233,77.52418977325722,65,22.472205054244231,827,178.80715869338118,561,170.30854353202602,401,146.24978632463024,125,39.560080889704963,320,111.64676439557037,436,118.10588469674151,410,127.4401820463232,444,133.41664064126334,107,42.047592083257278,128,40.70626487409524,201,67.542579163073128,114,32.249030993194197,170,53.075418038862395]
[null,"$75,000 to $99,999",320,101.78899744078434,172,59.439044406854322,184,86.764047853935452,293,98.478424032881435,93,31.016124838541646,138,49.244289008980523,155,56.089214649520635,2641,330.93806066996888,100,37.643060449437421,163,46.486557196677836,233,97.293370791642332,503,143.73586887064761,297,105.90561835898981,93,34.785054261852174,1000,189.50461735799473,226,111.77208953938367,334,134.9518432626987,169,54.74486277268398,130,54.378304497290095,238,77.369244535538797,597,167.34395716607159,296,111.25196627475849,118,37.643060449437421,90,41.773197148410844,173,56.356011214421486,181,57.56735185849702,72,36.345563690772494]
[null,"$100,000 to $149,999",187,70.342021580275897,236,64.621977685614041,381,140.24621207005913,735,125.2836781069266,115,32.984845004941285,237,52.172789842982326,285,63.324560795950255,2643,273.21237160860778,67,31.064449134018133,247,52.172789842982326,381,120.61923561356207,569,157.15597347857954,347,107.15409464878138,87,30.083217912982647,1043,174.24408167854654,452,125.02799686470227,422,150.58552387264854,203,59.033888572581766,305,80.777472107017559,290,94.725920423081661,586,161.24515496597098,201,91.782351244670124,130,39.623225512317902,206,58.309518948453004,208,70.007142492748557,201,41.194659848091959,113,47.434164902525687]
[null,"$150,000 or more",148,61.98386886924694,{"$f":"E19+E31","v":140},45.880278987817846,99,67.896980787071826,1009,128.65846260545786,105,37.643060449437421,167,45.354161881794269,181,57.723478758647246,2680,241.16799124261908,32,22.825424421026653,304,68.8839603971781,313,114.52947218947619,216,94.36630754670864,321,96.84007434941384,25,13.928388277184119,1021,207.0024154448445,560,152.83978539634239,251,118.0889495253472,269,77.781745930520231,407,93.920178875468508,201,72.835430938520574,424,118.0889495253472,77,41.484937025383083,62,27.313000567495326,155,44.721359549995796,172,48.877397639399746,92,34.785054261852174,182,43.56604182158393]
[]
[]
[]
[]
[]
[]
[]
[]
[]
[]
[]
[]
[]
[]
[]
[]
[null,"B25118. TENURE BY HOUSEHOLD INCOME IN THE PAST 12 MONTHS (IN 2014 INFLATION-ADJUSTED DOLLARS) "]
[null,"Universe:  OCCUPIED HOUSING UNITS"]
[null,"Data Set: 2010-2014 American Community Survey 5-Year Estimates"]
[]
[null,null,"Allenstown",null,"Andover",null,"Boscawen",null,"Bow",null,"Bradford",null,"Canterbury",null,"Chichester",null,"Concord",null,"Danbury",null,"Dunbarton",null,"Epsom",null,"Franklin",null,"Henniker",null,"Hill",null,"Hooksett",null,"Hopkinton",null,"Loudon",null,"Newbury",null,"New London",null,"Northfield",null,"Pembroke",null,"Pittsfield",null,"Salisbury",null,"Sutton",null,"Warner",null,"Webster",null,"Wilmot"]
[null,null,"Estimate","Margin Of Error","Estimate","Margin Of Error","Estimate","Margin Of Error","Estimate","Margin Of Error","Estimate","Margin Of Error","Estimate","Margin Of Error","Estimate","Margin Of Error","Estimate","Margin Of Error","Estimate","Margin Of Error","Estimate","Margin Of Error","Estimate","Margin Of Error","Estimate","Margin Of Error","Estimate","Margin Of Error","Estimate","Margin Of Error","Estimate","Margin Of Error","Estimate","Margin Of Error","Estimate","Margin Of Error","Estimate","Margin Of Error","Estimate","Margin Of Error","Estimate","Margin Of Error","Estimate","Margin Of Error","Estimate","Margin Of Error","Estimate","Margin Of Error","Estimate","Margin Of Error","Estimate","Margin Of Error","Estimate","Margin Of Error","Estimate","Margin Of Error"]
[null,"Total:",1787,88,975,87,1270,147,2777,133,684,77,894,64,996,62,17141,334,533,70,1053,59,1809,122,3379,195,1598,145,445,57,5216,237,2122,112,2013,139,756,95,1734,157,1729,104,2787,148,1525,127,553,62,786,99,1123,84,767,66,588,67]
[null,"Owner occupied:",1252,116,839,98,884,148,2460,156,605,75,854,63,898,73,9376,354,438,65,917,86,1523,136,2015,220,1071,155,413,56,4473,271,1846,116,1693,133,716,95,1365,137,1313,123,1986,184,901,126,512,61,694,97,871,62,670,58,478,60]
[null,"Less than $5,000",0,11,45,37,7,12,9,13,13,16,5,7,7,10,108,50,7,7,5,8,10,15,42,36,36,46,9,14,54,36,28,32,40,38,16,13,31,39,0,11,15,24,8,12,3,4,0,11,10,13,19,17,6,6]
[null,"$5,000 to $9,999",49,47,4,6,28,26,7,11,15,11,5,8,21,27,84,50,0,11,10,11,18,26,49,40,0,11,2,3,6,9,0,15,6,11,5,6,35,30,0,11,43,70,0,11,3,4,3,4,0,11,2,3,2,3]
[null,"$10,000 to $14,999",31,29,20,24,0,11,27,33,30,15,5,8,29,31,117,72,11,10,7,10,91,87,27,25,9,14,13,17,95,88,13,22,35,38,9,9,16,18,13,15,33,37,18,18,16,16,14,16,0,11,15,12,9,11]
[null,"$15,000 to $19,999",35,30,4,6,43,36,45,35,17,11,10,11,33,26,210,82,31,28,10,11,34,43,60,40,8,13,6,6,70,45,54,47,23,23,27,33,17,19,85,61,42,43,22,18,14,10,4,5,20,14,26,21,12,8]
[null,"$20,000 to $24,999",71,51,30,16,16,19,87,56,6,7,16,14,39,33,298,102,47,29,21,17,51,32,48,42,8,13,21,18,81,51,22,25,121,89,22,16,96,41,27,27,50,49,40,43,6,6,26,23,29,26,20,13,20,24]
[null,"$25,000 to $34,999",71,46,74,37,34,27,27,24,38,26,31,19,44,25,788,144,32,24,59,36,87,49,170,80,34,27,63,27,308,112,66,48,106,70,99,49,78,47,30,25,112,66,76,36,28,18,54,29,28,18,46,27,46,22]
[null,"$35,000 to $49,999",236,82,131,57,115,63,204,78,83,31,82,41,80,41,1073,172,62,25,73,37,111,66,324,111,50,39,56,26,433,147,97,60,97,53,90,43,142,58,250,86,121,68,123,72,74,29,119,44,137,51,101,33,78,34]
[null,"$50,000 to $74,999",258,83,123,47,272,95,239,85,165,46,160,52,174,59,1668,225,92,35,124,47,316,114,505,143,283,102,76,26,675,172,325,144,467,112,126,39,222,72,247,91,375,161,130,53,161,45,143,47,169,60,116,34,80,30]
[null,"$75,000 to $99,999",201,82,196,61,161,75,387,99,89,28,187,49,195,53,1686,262,78,31,158,46,231,87,480,104,199,72,93,34,918,176,442,156,280,85,110,39,188,68,317,85,405,122,225,90,62,22,133,55,104,41,131,32,65,25]
[null,"$100,000 to $149,999",230,74,116,42,128,60,730,133,96,36,252,58,164,48,1936,225,65,33,263,59,348,90,271,79,293,107,57,22,1256,214,399,145,315,101,132,53,313,79,285,85,478,157,137,52,105,31,108,46,209,60,140,35,131,43]
[null,"$150,000 or more",70,42,96,50,80,49,698,146,53,25,101,35,112,44,1408,188,13,15,187,49,226,81,39,26,151,55,17,16,577,147,400,116,203,110,80,30,227,67,59,48,312,108,122,66,40,22,90,39,165,56,54,22,29,13]
[null,"Renter occupied:",535,128,136,60,386,104,317,80,79,33,40,21,98,50,7765,311,95,43,136,55,286,108,1364,180,527,116,32,23,743,144,276,113,320,119,40,29,369,114,416,87,801,168,624,113,41,25,92,38,252,84,97,46,110,42]
[null,"Less than $5,000",51,75,0,11,21,20,0,15,4,7,0,11,0,11,292,95,3,5,0,11,0,11,59,44,9,13,0,11,9,16,0,15,15,23,0,11,17,21,0,11,66,91,26,39,0,11,9,14,0,11,0,11,0,11]
[null,"$5,000 to $9,999",0,11,4,7,20,24,14,21,9,13,0,11,0,11,498,142,3,5,5,8,20,23,109,60,34,41,0,11,18,29,0,15,12,19,0,11,8,12,11,16,39,44,146,74,0,11,0,11,27,36,0,11,0,11]
[null,"$10,000 to $14,999",74,70,21,25,79,66,55,46,8,8,10,8,0,11,765,183,0,11,0,11,59,56,200,106,149,74,3,4,100,55,0,15,44,43,0,11,59,49,32,30,101,91,96,68,13,16,0,11,14,23,10,16,7,8]
[null,"$15,000 to $19,999",7,11,11,11,24,28,26,31,4,6,18,13,0,11,441,134,3,4,0,11,7,11,210,99,24,25,0,11,33,34,0,15,9,14,0,11,37,45,25,31,66,57,18,19,0,11,0,11,31,39,20,22,0,11]
[null,"$20,000 to $24,999",90,66,11,12,41,44,20,22,7,7,0,11,8,12,618,183,0,11,0,11,21,21,152,78,25,20,0,11,110,58,0,15,0,15,0,11,31,25,66,58,54,41,29,31,10,15,4,8,24,31,4,6,3,5]
[null,"$25,000 to $34,999",112,72,26,26,74,49,39,32,22,23,0,11,17,23,1264,264,9,9,50,35,57,56,232,106,89,65,4,6,85,55,17,27,38,37,0,11,37,34,54,45,139,106,123,78,4,6,13,16,21,17,13,19,22,20]
[null,"$35,000 to $49,999",33,35,18,29,39,37,102,72,6,7,0,11,8,9,1373,236,17,19,15,14,21,24,225,104,32,38,6,8,68,40,138,109,87,79,4,6,20,35,43,31,90,88,63,45,3,5,11,18,37,34,23,19,21,21]
[null,"$50,000 to $74,999",86,58,16,13,26,25,22,24,12,12,0,11,21,26,1369,241,60,36,25,20,43,38,97,64,86,72,17,20,128,66,46,66,29,34,17,16,81,62,92,52,116,86,27,26,6,6,25,21,33,29,11,9,19,20]
[null,"$75,000 to $99,999",44,30,0,11,41,56,31,32,5,7,12,15,5,7,687,154,0,11,5,8,9,14,80,56,33,47,2,5,134,79,11,18,66,61,5,7,7,12,46,45,82,79,61,54,3,6,16,16,39,28,12,10,16,18]
[null,"$100,000 to $149,999",38,44,29,31,15,24,8,11,2,4,0,11,39,35,247,116,0,11,6,8,49,66,0,15,8,14,0,11,7,10,50,62,20,32,14,23,58,47,47,37,48,82,24,34,2,3,10,15,6,9,4,6,8,12]
[null,"$150,000 or more",0,11,0,11,6,11,0,15,0,11,0,11,0,11,211,100,0,11,30,34,0,11,0,15,38,48,0,11,51,65,14,22,0,15,0,11,14,23,0,11,0,15,11,17,0,11,4,7,20,27,0,11,14,18]
[]
[]
[]
[]
[]
[null,"Calculated B25118. TENURE BY HOUSEHOLD INCOME IN THE PAST 12 MONTHS (IN 2009 INFLATION-ADJUSTED DOLLARS) "]
[null,"Universe:  OCCUPIED HOUSING UNITS"]
[null,"Data Set: 2010-2014 American Community Survey 5-Year Estimates"]
[null,null,"Allenstown",null,"Andover",null,"Boscawen",null,"Bow",null,"Bradford",null,"Canterbury",null,"Chichester",null,"Concord",null,"Danbury",null,"Dunbarton",null,"Epsom",null,"Franklin",null,"Henniker",null,"Hill",null,"Hooksett",null,"Hopkinton",null,"Loudon",null,"Newbury",null,"New London",null,"Northfield",null,"Pembroke",null,"Pittsfield",null,"Salisbury",null,"Sutton",null,"Warner",null,"Webster",null,"Wilmot"]
[null,null,"Estimate","Margin Of Error","Estimate","Margin Of Error","Estimate","Margin Of Error","Estimate","Margin Of Error","Estimate","Margin Of Error","Estimate","Margin Of Error","Estimate","Margin Of Error","Estimate","Margin Of Error","Estimate","Margin Of Error","Estimate","Margin Of Error","Estimate","Margin Of Error","Estimate","Margin Of Error","Estimate","Margin Of Error","Estimate","Margin Of Error","Estimate","Margin Of Error","Estimate","Margin Of Error","Estimate","Margin Of Error","Estimate","Margin Of Error","Estimate","Margin Of Error","Estimate","Margin Of Error","Estimate","Margin Of Error","Estimate","Margin Of Error","Estimate","Margin Of Error","Estimate","Margin Of Error","Estimate","Margin Of Error","Estimate","Margin Of Error","Estimate","Margin Of Error"]
[null,{"$f":"B76","v":"Total:"},1787,88,975,87,1270,147,2777,133,684,77,894,64,996,62,17141,334,533,70,1053,59,1809,122,3379,195,1598,145,445,57,5216,237,2122,112,2013,139,756,95,1734,157,1729,104,2787,148,1525,127,553,62,786,99,1123,84,767,66,588,67]
[null,"Less than $5,000",{"$f":"C78+C90","v":51},{"$f":"SQRT((D78^2)+(D90^2))","v":75.802374632988901},{"$f":"E78+E90","v":45},{"$f":"SQRT((F78^2)+(F90^2))","v":38.600518131237564},{"$f":"G78+G90","v":28},{"$f":"SQRT((H78^2)+(H90^2))","v":23.323807579381203},{"$f":"I78+I90","v":9},{"$f":"SQRT((J78^2)+(J90^2))","v":19.849433241279208},{"$f":"K78+K90","v":17},{"$f":"SQRT((L78^2)+(L90^2))","v":17.464249196572979},{"$f":"M78+M90","v":5},{"$f":"SQRT((N78^2)+(N90^2))","v":13.038404810405298},{"$f":"O78+O90","v":7},{"$f":"SQRT((P78^2)+(P90^2))","v":14.866068747318506},{"$f":"Q78+Q90","v":400},{"$f":"SQRT((R78^2)+(R90^2))","v":107.35455276791944},{"$f":"S78+S90","v":10},{"$f":"SQRT((T78^2)+(T90^2))","v":8.6023252670426267},{"$f":"U78+U90","v":5},{"$f":"SQRT((V78^2)+(V90^2))","v":13.601470508735444},{"$f":"W78+W90","v":10},{"$f":"SQRT((X78^2)+(X90^2))","v":18.601075237738275},{"$f":"Y78+Y90","v":101},{"$f":"SQRT((Z78^2)+(Z90^2))","v":56.850681614207581},{"$f":"AA78+AA90","v":45},{"$f":"SQRT((AB78^2)+(AB90^2))","v":47.801673610868477},{"$f":"AC78+AC90","v":9},{"$f":"SQRT((AD78^2)+(AD90^2))","v":17.804493814764857},{"$f":"AE78+AE90","v":63},{"$f":"SQRT((AF78^2)+(AF90^2))","v":39.395431207184416},{"$f":"AG78+AG90","v":28},{"$f":"SQRT((AH78^2)+(AH90^2))","v":35.341194094144583},{"$f":"AI78+AI90","v":55},{"$f":"SQRT((AJ78^2)+(AJ90^2))","v":44.418464629025621},{"$f":"AK78+AK90","v":16},{"$f":"SQRT((AL78^2)+(AL90^2))","v":17.029386365926403},{"$f":"AM78+AM90","v":48},{"$f":"SQRT((AN78^2)+(AN90^2))","v":44.294469180700204},0,15.556349186104045,{"$f":"AQ78+AQ90","v":81},{"$f":"SQRT((AR78^2)+(AR90^2))","v":94.111635837445732},{"$f":"AS78+AS90","v":34},{"$f":"SQRT((AT78^2)+(AT90^2))","v":40.80441152620633},{"$f":"AU78+AU90","v":3},{"$f":"SQRT((AV78^2)+(AV90^2))","v":11.704699910719626},{"$f":"AW78+AW90","v":9},{"$f":"SQRT((AX78^2)+(AX90^2))","v":17.804493814764857},{"$f":"AY78+AY90","v":10},{"$f":"SQRT((AZ78^2)+(AZ90^2))","v":17.029386365926403},{"$f":"BA78+BA90","v":19},{"$f":"SQRT((BB78^2)+(BB90^2))","v":20.248456731316587},{"$f":"BC78+BC90","v":6},{"$f":"SQRT((BD78^2)+(BD90^2))","v":12.529964086141668}]
[null,"$5,000 to $9,999",{"$f":"C79+C91","v":49},{"$f":"SQRT((D79^2)+(D91^2))","v":48.270073544588683},{"$f":"E79+E91","v":8},9.2195444572928871,{"$f":"G79+G91","v":48},35.383612025908263,{"$f":"I79+I91","v":21},23.706539182259394,{"$f":"K79+K91","v":24},17.029386365926403,{"$f":"M79+M91","v":5},13.601470508735444,{"$f":"O79+O91","v":21},29.154759474226502,{"$f":"Q79+Q91","v":582},150.54567413247051,3,12.083045973594572,15,13.601470508735444,38,34.713109915419565,158,72.111025509279784,34,42.449970553582247,2,11.401754250991379,24,30.364452901377952,0,21.213203435596427,18,21.95449840010015,5,12.529964086141668,43,32.310988842807021,11,19.416487838947599,82,82.680106434377549,146,74.813100457072352,3,11.704699910719626,3,11.704699910719626,27,37.643060449437421,2,11.401754250991379,2,11.401754250991379]
[null,"$10,000 to $14,999",{"$f":"C80+C92","v":105},75.769386958058462,{"$f":"E80+E92","v":41},34.655446902326915,{"$f":"G80+G92","v":79},66.91038783328041,{"$f":"I80+I92","v":82},56.612719418872643,{"$f":"K80+K92","v":38},17,{"$f":"M80+M92","v":15},11.313708498984761,{"$f":"O80+O92","v":29},32.893768406797051,{"$f":"Q80+Q92","v":882},196.65451939886864,11,14.866068747318506,7,14.866068747318506,150,103.46496991735899,227,108.90821823902914,158,75.312681535050928,16,17.464249196572979,195,103.77379245262264,13,26.627053911388696,79,57.384666941614292,9,14.212670403551895,75,52.201532544552748,45,33.541019662496844,134,98.2344135219425,114,70.342021580275897,29,22.627416997969522,14,19.416487838947599,14,25.495097567963924,25,20,16,13.601470508735444]
[null,"$15,000 to $19,999",{"$f":"C81+C93","v":42},31.953090617340916,15,12.529964086141668,67,45.607017003965517,71,46.75467891024384,21,12.529964086141668,28,17.029386365926403,33,28.231188426986208,651,157.09869509324386,34,28.284271247461902,10,15.556349186104045,41,44.384682042344295,270,106.77546534667971,32,28.178005607210743,6,12.529964086141668,103,56.400354608814297,54,49.33558553417604,32,26.92582403567252,27,34.785054261852174,54,48.846698967279252,110,68.425141578224014,108,71.400280111495363,40,26.172504656604801,14,14.866068747318506,4,12.083045973594572,51,41.43669871020132,46,30.413812651491099,12,13.601470508735444]
[null,"$20,000 to $24,999",161,83.408632646747066,41,20,57,47.927027865287037,107,60.166435825965294,13,9.8994949366116654,16,17.804493814764857,47,35.114099732158877,916,209.50656314301946,47,31.016124838541646,21,20.248456731316587,72,38.275318418009277,200,88.588938361400409,33,23.853720883753127,21,21.095023109728988,191,77.233412458598508,22,29.154759474226502,121,90.255193756370602,22,19.416487838947599,127,48.020828814171878,93,63.976558206893252,104,63.890531379853151,69,53.009433122794285,16,16.15549442140351,30,24.351591323771842,53,40.459856648287818,24,14.317821063276353,23,24.515301344262525]
[null,"$25,000 to $34,999",183,85.440037453175307,100,45.221676218380054,108,55.946402922797461,66,40,60,34.713109915419565,31,21.95449840010015,61,33.97057550292606,2052,300.71913806740002,41,25.632011235952593,109,50.209560842532767,144,74.411020689142546,402,132.80060240827223,123,70.384657419071104,67,27.658633371878661,393,124.77579893553076,83,55.072679252057455,144,79.177016867270268,99,50.219518117958877,115,58.008620049092706,84,51.478150704935004,251,124.86793023030373,199,85.906926379658117,32,18.973665961010276,67,33.120990323358392,49,24.758836806279895,59,33.015148038438355,68,29.732137494637012]
[null,"$35,000 to $49,999",269,89.157164602739584,149,63.953107821277925,154,73.061617830431317,306,106.15083607772479,89,31.780497164141408,82,42.449970553582247,88,41.976183723630712,2446,292.02739597510367,79,31.400636936215164,88,39.560080889704963,132,70.228199464317754,549,152.10851389715174,82,54.451813560247928,62,27.202941017470888,501,152.34500319997372,235,124.42266674525185,184,95.131487952202235,94,43.416586692184822,162,67.742158217759794,293,91.4166286842826,211,111.21151019566275,186,84.905830188509441,77,29.427877939124322,130,47.539457296018853,174,61.294371682887821,124,38.078865529319543,99,39.962482405376171]
[null,"$50,000 to $74,999",344,101.25709851659784,139,48.764741360946438,298,98.2344135219425,261,88.323269867006175,177,47.539457296018853,160,53.150729063673246,195,64.474801279259481,3037,329.70592957967864,152,50.209560842532767,149,51.078371156488537,359,120.16655108639841,602,156.66843970627906,369,124.85191228010886,93,32.802438933713454,803,184.22811946062956,371,158.40454538932903,496,117.04699910719626,143,42.154477816715982,303,95.015788161757627,339,104.80935072788114,491,182.52944967867515,157,59.033888572581766,167,45.398237851264668,168,51.478150704935004,202,66.640828326184547,127,35.171010790137949,99,36.055512754639892]
[null,"$75,000 to $99,999",245,87.31551981177229,196,61.98386886924694,202,93.60021367496978,418,104.04326023342406,94,28.861739379323623,199,51.244511901275828,200,53.460265618494638,2373,303.90788077968625,78,32.893768406797051,163,46.690470119715009,240,88.11923740024082,560,118.1185844818672,232,85.982556370463882,95,34.365680554879162,1052,192.91708063310517,453,157.0350279396288,346,104.62313319720452,115,39.623225512317902,195,69.050706006528273,363,96.176920308356728,487,145.34441853748632,286,104.95713410721541,65,22.803508501982758,149,57.280013966478741,143,49.648766349225639,143,33.526109228480422,81,30.805843601498726]
[null,"$100,000 to $149,999",268,86.092973000123536,145,52.201532544552748,143,64.621977685614041,738,133.45411196362591,98,36.221540552549669,252,59.033888572581766,203,59.405386961116584,2183,253.14225249847169,65,34.785054261852174,269,59.539902586416787,397,111.60645142642964,271,80.411441971898498,301,107.91200118615167,57,24.596747752497688,1263,214.23351745233518,449,157.69908052997647,335,105.94810050208545,146,57.77542730261716,371,91.923881554251182,332,92.70382947861431,526,177.12425017484196,161,62.128898268036266,107,31.144823004794873,118,48.383881613611777,215,60.671245248470051,144,35.510561809129406,139,44.643028571099428]
[null,"$150,000 or more",70,43.416586692184822,{"$f":"E88+E100","v":96},51.195702944680818,86,50.219518117958877,698,146.76852523616907,53,27.313000567495326,101,36.687872655688281,112,45.354161881794269,1619,212.94130646729863,13,18.601075237738275,217,59.640590204993778,226,81.743501270743224,39,30.016662039607269,189,73,17,19.416487838947599,628,160.72958657322553,414,118.06777714516353,203,111.01801655587259,80,31.953090617340916,241,70.837842993699354,59,49.244289008980523,312,109.03669107231748,133,68.154236845554948,40,24.596747752497688,94,39.623225512317902,185,62.169124169478209,54,24.596747752497688,43,22.203603311174518]
[]
[]
[]
[]
[]
[]
[]
[]
[]
[]
[]
[]
[]
[]
[]
[]
[null,"B25118. TENURE BY HOUSEHOLD INCOME IN THE PAST 12 MONTHS (IN 2009 INFLATION-ADJUSTED DOLLARS) "]
[null,"Universe:  OCCUPIED HOUSING UNITS"]
[null,"Data Set: 2005-2009 American Community Survey 5-Year Estimates"]
[]
[null,null,"Allenstown",null,"Andover",null,"Boscawen",null,"Bow",null,"Bradford",null,"Canterbury",null,"Chichester",null,"Concord",null,"Danbury",null,"Dunbarton",null,"Epsom",null,"Franklin",null,"Henniker",null,"Hill",null,"Hooksett",null,"Hopkinton",null,"Loudon",null,"Newbury",null,"New London",null,"Northfield",null,"Pembroke",null,"Pittsfield",null,"Salisbury",null,"Sutton",null,"Warner",null,"Webster",null,"Wilmot"]
[null,null,"Estimate","Margin Of Error","Estimate","Margin Of Error","Estimate","Margin Of Error","Estimate","Margin Of Error","Estimate","Margin Of Error","Estimate","Margin Of Error","Estimate","Margin Of Error","Estimate","Margin Of Error","Estimate","Margin Of Error","Estimate","Margin Of Error","Estimate","Margin Of Error","Estimate","Margin Of Error","Estimate","Margin Of Error","Estimate","Margin Of Error","Estimate","Margin Of Error","Estimate","Margin Of Error","Estimate","Margin Of Error","Estimate","Margin Of Error","Estimate","Margin Of Error","Estimate","Margin Of Error","Estimate","Margin Of Error","Estimate","Margin Of Error","Estimate","Margin Of Error","Estimate","Margin Of Error","Estimate","Margin Of Error","Estimate","Margin Of Error","Estimate","Margin Of Error"]
[null,"Total:",1824,124,947,86,1317,163,2845,132,510,73,896,50,918,51,17349,501,528,75,960,53,1445,110,3300,222,1776,167,392,48,4638,239,2237,119,1751,105,821,88,1564,226,1884,138,2907,166,1652,109,438,49,680,92,1010,162,669,56,502,64]
[null,"Less than $5,000",34,38.626415831655933,6,114.35471131527551,28,117.15374513859982,0,161.22034611053283,20,19.849433241279208,3,114.15778554264269,7,114.43775600735974,497,153.76930773076921,29,25.612496949731394,7,114.52947218947619,0,161.22034611053283,58,39.395431207184416,47,38.600518131237564,2,114.0701538527936,17,115.7410903698423,0,161.22034611053283,37,122.19656296312102,16,114.85643212288984,102,87.091905479212016,11,115.26057435220423,0,161.22034611053283,21,116.49892703368559,0,161.22034611053283,6,114.35471131527551,28,116.70903992407786,6,114.21471008587291,26,115.91807451816995]
[null,"$5,000 to $9,999",55,52.55473337388365,0,161.22034611053283,28,116.29703349613007,38,128.36276718737409,3,114.0701538527936,18,114.9826073804208,0,161.22034611053283,630,193.58202395883765,29,26.40075756488817,14,114.85643212288984,0,161.22034611053283,185,97.324200484771509,20,116.10340218959993,5,114.15778554264269,55,124.48293055676348,30,119.54915307102765,10,115.11733144926528,6,114.15778554264269,84,72.124891681027847,49,39.623225512317902,18,117.881296226331,11,115.41230437002807,5,114.21471008587291,21,19.849433241279208,24,118.1397477566293,6,114.15778554264269,24,21.213203435596427]
[null,"$10,000 to $14,999",105,51.429563482495162,36,33.241540277189323,62,39.812058474788763,110,77.987178433380961,9,8.6023252670426267,35,21.840329667841555,23,117.63077828527702,934,255.3605294480727,14,114.52947218947619,14,14.866068747318506,55,53.160135440008048,323,99.31767214348109,70,82.969874050766165,18,114.52947218947619,114,59.941638282582836,0,161.22034611053283,26,25.942243542145693,8,7.810249675906654,51,47.507894080878813,46,39.924929555354261,306,145.66056432679369,79,50,10,114.52947218947619,24,120.16655108639841,24,19.235384061671343,23,17.464249196572979,39,46.872166581031863]
[null,"$15,000 to $19,999",77,64.327288144301562,34,31.048349392520048,48,36.400549446402593,87,56.435804238089851,16,114.9826073804208,11,114.62983904725679,16,114.9826073804208,787,191.54111830100607,18,15,14,15.264337522473747,53,36.235341863986875,148,63.007936008093459,65,130.73637596323374,28,14.560219778561036,83,47.539457296018853,53,122.19656296312102,24,22.472205054244231,11,114.52947218947619,66,128.36276718737409,26,117.38824472663352,59,53.310411741047361,113,63.63961030678928,7,8.9442719099991592,24,115.7410903698423,27,18.384776310850235,20,18.788294228055936,0,161.22034611053283]
[null,"$20,000 to $24,999",152,98.716766559688324,37,119.85407794480753,88,57.008771254956898,55,43.011626335213137,29,16.552945357246848,20,19.209372712298546,52,121.14866899805379,973,204.12986062798359,46,41.109609582188931,29,116.49892703368559,69,46.957427527495582,248,105.89145385724005,100,70.51950084905593,25,17.720045146669349,85,61.684682053164543,40,40.496913462633174,40,118.40608092492548,41,23.53720459187964,47,125.7179382586272,81,62.968245965724662,51,43.600458713183279,46,36.069377593742864,21,115.41230437002807,20,18.681541692269406,22,19.209372712298546,19,14.560219778561036,18,13.038404810405298]
[null,"$25,000 to $34,999",200,88.617154095581284,53,118.1397477566293,109,64.474801279259481,159,91.678787077491378,43,21.95449840010015,98,42.201895692018383,68,121.8400590938793,1839,290.61658589970392,45,23.259406699226016,19,115.7410903698423,197,70.263788682364691,342,113.74093370462545,117,62.169124169478209,38,21.213203435596427,351,104.70912090166739,85,53.712196007983138,138,74.793047805260613,34,116.10340218959993,140,82.462112512353215,198,87.005746936624831,430,157.15597347857954,104,51.86520991955976,9,114.28035701729323,52,117.881296226331,123,48.020828814171878,41,116.29703349613007,45,122.19656296312102]
[null,"$35,000 to $49,999",133,72.862884927787476,196,74.625732827222535,181,95.880133500115647,189,83.234608186739251,64,24.738633753705962,120,49.497474683058329,134,124.88794977899188,2754,346.30189141845585,91,35.846896657869841,86,33.61547262794322,78,53.450912059571067,512,104.7377677822093,260,122.64175471673585,62,23.345235059857504,570,142.76203977248295,260,147.75655653811103,240,98.792712281827747,142,83.096329642168911,135,76.026311234992846,263,122.96747537458837,416,154.93547043850222,325,129.9576854210631,78,117.15374513859982,67,29.681644159311659,163,55.226805085936306,90,27.784887978899608,41,115.7410903698423]
[null,"$50,000 to $74,999",424,122.5275479229059,268,69.778220097678044,363,108.30050784737807,415,140.91841611372163,115,35.693136595149497,164,48.703182647543684,216,129.76902558006668,3212,349.65697476240911,115,44.384682042344295,186,124.48293055676348,309,100.89598604503551,703,138.95682782792647,330,111.83022847155415,101,36.124783736376884,829,132.59336333316233,416,124.77579893553076,381,101.24228365658294,211,63.890531379853151,158,82.419657849326214,573,130.77079184588584,564,175.3681841155915,432,105.39449701004318,132,39,134,42.426406871192853,253,78.294316524253531,188,51.623637996561229,86,119.85407794480753]
[null,"$75,000 to $99,999",352,133.68993978605869,97,47.201694884823787,106,125.29964086141668,414,161.22034611053283,99,39.05124837953327,189,124.08464852672147,187,54.341512676774101,2585,324.0061727807049,91,120.16655108639841,140,48.270073544588683,251,102.57680049601859,383,118.43141475132347,257,111.01801655587259,43,115.91807451816995,1058,198.15398053029367,561,161.96913286178943,376,97.324200484771509,159,53.600373133029585,110,127.01181047445942,335,90.470989825468365,345,115.95257651298655,309,107.62899237658968,88,117.15374513859982,99,120.16655108639841,158,50.990195135927848,139,34.539832078341085,79,116.70903992407786]
[null,"$100,000 to $149,999",259,101.55294185792945,173,72.801098892805186,233,141.60508465447137,721,195.64508682816444,67,28.160255680657446,157,125.29964086141668,111,121.14866899805379,2097,255.97070144842749,31,116.29703349613007,273,132.74034804836094,369,150.98675438593943,314,110.42191811411355,353,161.22034611053283,49,21.587033144922902,896,207.18349355100662,455,175.17134468856486,307,146.49232061783991,99,33.955853692699293,282,165.51737068960466,259,154.98709623707387,463,170.66048165876012,154,138.69751259485514,62,115.91807451816995,116,39.623225512317902,131,45.354161881794269,109,32.388269481403292,80,118.68024266911489]
[null,"$150,000 or more",33,121.49074038789952,47,116.92732785794773,71,124.88794977899188,657,190.80094339389416,45,115.91807451816995,81,37.107950630558946,104,40.521599178709621,1041,154.95160534825058,19,114.85643212288984,178,60.373835392494321,64,119.54915307102765,84,123.30855606972291,157,132.23085872821065,21,114.9826073804208,580,158.68522300453813,337,149.03690818049066,172,77.077882690172544,94,121.8400590938793,389,120.93386622447825,43,120.48651376813922,255,161.22034611053283,58,49.648766349225639,26,115.11733144926528,117,139.84634424967999,57,117.38824472663352,28,115.57248807566617,64,116.70903992407786]
[null,"$150,000 or more",33,42,47,26,71,51,657,153,45,21,74,36,97,39,961,147,19,14,150,54,64,36,84,47,157,67,21,15,500,134,337,96,135,55,94,43,379,120,43,39,255,114,48,47,26,16,117,81,57,28,28,19,64,25]
[null,"Renter occupied:",648,178,157,72,231,85,266,84,84,34,98,41,17,19,7820,437,82,34,75,37,242,82,1316,169,526,139,74,34,636,116,138,75,168,84,53,26,221,123,441,105,849,136,526,110,17,17,55,30,212,67,60,30,21,21]
[null,"Less than $5,000",9,14,0,114,0,114,0,114,9,15,0,114,0,114,424,142,11,16,0,114,0,114,48,36,40,37,0,114,17,20,0,114,0,114,0,114,30,49,0,114,0,114,0,114,0,114,6,9,0,114,0,114,0,114]
[null,"$5,000 to $9,999",44,49,0,114,28,23,0,114,3,4,18,15,0,114,540,185,8,11,0,114,0,114,166,96,20,22,0,114,55,50,0,114,0,114,0,114,44,51,25,27,18,30,11,18,0,114,9,13,0,114,0,114,9,15]
[null,"$10,000 to $14,999",80,46,7,12,51,36,57,59,3,5,4,6,0,114,686,228,0,114,7,10,41,51,215,90,19,22,0,114,23,28,0,114,6,12,2,5,35,41,37,37,194,119,50,40,0,114,0,114,19,17,3,4,8,9]
[null,"$15,000 to $19,999",69,63,28,30,14,22,63,49,0,114,0,114,0,114,555,168,11,12,5,8,24,28,57,37,65,64,3,4,12,18,0,114,7,12,0,114,0,114,26,28,47,49,29,45,5,8,0,114,5,7,11,17,0,114]
[null,"$20,000 to $24,999",132,96,0,114,9,15,33,35,7,7,10,15,0,114,623,170,13,13,0,114,14,21,145,82,79,67,4,5,11,18,21,34,0,114,3,5,0,114,40,53,29,35,21,25,0,114,17,18,12,15,3,4,4,7]
[null,"$25,000 to $34,999",85,58,0,114,22,26,42,41,12,11,38,25,0,114,1206,253,10,10,19,20,24,29,202,96,81,56,11,15,83,50,17,26,41,37,0,114,32,52,100,69,269,137,33,29,0,114,0,114,35,25,0,114,0,114]
[null,"$35,000 to $49,999",51,53,37,40,35,27,41,48,5,6,4,7,0,114,1394,258,19,18,9,13,11,16,159,71,72,71,16,16,166,91,0,114,45,52,2,4,40,34,127,105,115,106,169,100,0,114,15,16,55,29,19,14,0,114]
[null,"$50,000 to $74,999",38,33,28,30,72,52,30,33,9,7,17,16,0,114,1319,258,10,11,0,114,82,64,168,78,79,65,37,27,125,66,57,55,19,29,30,19,30,48,49,35,154,125,90,58,12,15,4,6,46,37,10,8,0,114]
[null,"$75,000 to $99,999",80,73,18,28,0,114,0,114,31,25,0,114,10,12,794,196,0,114,7,11,46,51,88,65,71,65,0,114,64,49,43,47,13,16,11,13,0,114,37,36,23,26,113,80,0,114,0,114,29,22,11,13,0,114]
[null,"$100,000 to $149,999",60,43,39,44,0,114,0,114,5,8,0,114,0,114,199,89,0,114,0,114,0,114,68,68,0,114,3,5,0,114,0,114,0,114,5,8,0,114,0,114,0,114,0,114,0,114,4,7,11,11,3,5,0,114]
[null,"$150,000 or more",0,114,0,114,0,114,0,114,0,114,7,9,7,11,80,49,0,114,28,27,0,114,0,114,0,114,0,114,80,85,0,114,37,54,0,114,10,15,0,114,0,114,10,16,0,114,0,114,0,114,0,114,0,114]
[]
[]
[]
[]
[]
[null,"Calculated B25118. TENURE BY HOUSEHOLD INCOME IN THE PAST 12 MONTHS (IN 2009 INFLATION-ADJUSTED DOLLARS) "]
[null,"Universe:  OCCUPIED HOUSING UNITS"]
[null,"Data Set: 2005-2009 American Community Survey 5-Year Estimates"]
[null,null,"Allenstown",null,"Andover",null,"Boscawen",null,"Bow",null,"Bradford",null,"Canterbury",null,"Chichester",null,"Concord",null,"Danbury",null,"Dunbarton",null,"Epsom",null,"Franklin",null,"Henniker",null,"Hill",null,"Hooksett",null,"Hopkinton",null,"Loudon",null,"Newbury",null,"New London",null,"Northfield",null,"Pembroke",null,"Pittsfield",null,"Salisbury",null,"Sutton",null,"Warner",null,"Webster",null,"Wilmot"]
[null,null,"Estimate","Margin Of Error","Estimate","Margin Of Error","Estimate","Margin Of Error","Estimate","Margin Of Error","Estimate","Margin Of Error","Estimate","Margin Of Error","Estimate","Margin Of Error","Estimate","Margin Of Error","Estimate","Margin Of Error","Estimate","Margin Of Error","Estimate","Margin Of Error","Estimate","Margin Of Error","Estimate","Margin Of Error","Estimate","Margin Of Error","Estimate","Margin Of Error","Estimate","Margin Of Error","Estimate","Margin Of Error","Estimate","Margin Of Error","Estimate","Margin Of Error","Estimate","Margin Of Error","Estimate","Margin Of Error","Estimate","Margin Of Error","Estimate","Margin Of Error","Estimate","Margin Of Error","Estimate","Margin Of Error","Estimate","Margin Of Error","Estimate","Margin Of Error"]
[null,"Total:",1824,124,947,86,1317,163,2845,132,510,73,896,50,918,51,17349,501,528,75,960,53,1445,110,3300,222,1776,167,392,48,4638,239,2237,119,1751,105,821,88,1564,226,1884,138,2907,166,1652,109,438,49,680,92,1010,162,669,56,502,64]
[null,"Less than $5,000",34,38.626415831655933,6,114.35471131527551,28,117.15374513859982,0,161.22034611053283,20,19.849433241279208,3,114.15778554264269,7,114.43775600735974,497,153.76930773076921,29,25.612496949731394,7,114.52947218947619,0,161.22034611053283,58,39.395431207184416,47,38.600518131237564,2,114.0701538527936,17,115.7410903698423,0,161.22034611053283,37,122.19656296312102,16,114.85643212288984,102,87.091905479212016,11,115.26057435220423,0,161.22034611053283,21,116.49892703368559,0,161.22034611053283,6,114.35471131527551,28,116.70903992407786,6,114.21471008587291,26,115.91807451816995]
[null,"$5,000 to $9,999",55,52.55473337388365,0,161.22034611053283,28,116.29703349613007,38,128.36276718737409,3,114.0701538527936,18,114.9826073804208,0,161.22034611053283,630,193.58202395883765,29,26.40075756488817,14,114.85643212288984,0,161.22034611053283,185,97.324200484771509,20,116.10340218959993,5,114.15778554264269,55,124.48293055676348,30,119.54915307102765,10,115.11733144926528,6,114.15778554264269,84,72.124891681027847,49,39.623225512317902,18,117.881296226331,11,115.41230437002807,5,114.21471008587291,21,19.849433241279208,24,118.1397477566293,6,114.15778554264269,24,21.213203435596427]
[null,"$10,000 to $14,999",105,51.429563482495162,36,33.241540277189323,62,39.812058474788763,110,77.987178433380961,9,8.6023252670426267,35,21.840329667841555,23,117.63077828527702,934,255.3605294480727,14,114.52947218947619,14,14.866068747318506,55,53.160135440008048,323,99.31767214348109,70,82.969874050766165,18,114.52947218947619,114,59.941638282582836,0,161.22034611053283,26,25.942243542145693,8,7.810249675906654,51,47.507894080878813,46,39.924929555354261,306,145.66056432679369,79,50,10,114.52947218947619,24,120.16655108639841,24,19.235384061671343,23,17.464249196572979,39,46.872166581031863]
[null,"$15,000 to $19,999",77,64.327288144301562,34,31.048349392520048,48,36.400549446402593,87,56.435804238089851,16,114.9826073804208,11,114.62983904725679,16,114.9826073804208,787,191.54111830100607,18,15,14,15.264337522473747,53,36.235341863986875,148,63.007936008093459,65,130.73637596323374,28,14.560219778561036,83,47.539457296018853,53,122.19656296312102,24,22.472205054244231,11,114.52947218947619,66,128.36276718737409,26,117.38824472663352,59,53.310411741047361,113,63.63961030678928,7,8.9442719099991592,24,115.7410903698423,27,18.384776310850235,20,18.788294228055936,0,161.22034611053283]
[null,"$20,000 to $24,999",152,98.716766559688324,37,119.85407794480753,88,57.008771254956898,55,43.011626335213137,29,16.552945357246848,20,19.209372712298546,52,121.14866899805379,973,204.12986062798359,46,41.109609582188931,29,116.49892703368559,69,46.957427527495582,248,105.89145385724005,100,70.51950084905593,25,17.720045146669349,85,61.684682053164543,40,40.496913462633174,40,118.40608092492548,41,23.53720459187964,47,125.7179382586272,81,62.968245965724662,51,43.600458713183279,46,36.069377593742864,21,115.41230437002807,20,18.681541692269406,22,19.209372712298546,19,14.560219778561036,18,13.038404810405298]
[null,"$25,000 to $34,999",200,88.617154095581284,53,118.1397477566293,109,64.474801279259481,159,91.678787077491378,43,21.95449840010015,98,42.201895692018383,68,121.8400590938793,1839,290.61658589970392,45,23.259406699226016,19,115.7410903698423,197,70.263788682364691,342,113.74093370462545,117,62.169124169478209,38,21.213203435596427,351,104.70912090166739,85,53.712196007983138,138,74.793047805260613,34,116.10340218959993,140,82.462112512353215,198,87.005746936624831,430,157.15597347857954,104,51.86520991955976,9,114.28035701729323,52,117.881296226331,123,48.020828814171878,41,116.29703349613007,45,122.19656296312102]
[null,"$35,000 to $49,999",133,72.862884927787476,196,74.625732827222535,181,95.880133500115647,189,83.234608186739251,64,24.738633753705962,120,49.497474683058329,134,124.88794977899188,2754,346.30189141845585,91,35.846896657869841,86,33.61547262794322,78,53.450912059571067,512,104.7377677822093,260,122.64175471673585,62,23.345235059857504,570,142.76203977248295,260,147.75655653811103,240,98.792712281827747,142,83.096329642168911,135,76.026311234992846,263,122.96747537458837,416,154.93547043850222,325,129.9576854210631,78,117.15374513859982,67,29.681644159311659,163,55.226805085936306,90,27.784887978899608,41,115.7410903698423]
[null,"$50,000 to $74,999",424,122.5275479229059,268,69.778220097678044,363,108.30050784737807,415,140.91841611372163,115,35.693136595149497,164,48.703182647543684,216,129.76902558006668,3212,349.65697476240911,115,44.384682042344295,186,124.48293055676348,309,100.89598604503551,703,138.95682782792647,330,111.83022847155415,101,36.124783736376884,829,132.59336333316233,416,124.77579893553076,381,101.24228365658294,211,63.890531379853151,158,82.419657849326214,573,130.77079184588584,564,175.3681841155915,432,105.39449701004318,132,39,134,42.426406871192853,253,78.294316524253531,188,51.623637996561229,86,119.85407794480753]
[null,"$75,000 to $99,999",352,133.68993978605869,97,47.201694884823787,106,125.29964086141668,414,161.22034611053283,99,39.05124837953327,189,124.08464852672147,187,54.341512676774101,2585,324.0061727807049,91,120.16655108639841,140,48.270073544588683,251,102.57680049601859,383,118.43141475132347,257,111.01801655587259,43,115.91807451816995,1058,198.15398053029367,561,161.96913286178943,376,97.324200484771509,159,53.600373133029585,110,127.01181047445942,335,90.470989825468365,345,115.95257651298655,309,107.62899237658968,88,117.15374513859982,99,120.16655108639841,158,50.990195135927848,139,34.539832078341085,79,116.70903992407786]
[null,"$100,000 to $149,999",259,101.55294185792945,173,72.801098892805186,233,141.60508465447137,721,195.64508682816444,67,28.160255680657446,157,125.29964086141668,111,121.14866899805379,2097,255.97070144842749,31,116.29703349613007,273,132.74034804836094,369,150.98675438593943,314,110.42191811411355,353,161.22034611053283,49,21.587033144922902,896,207.18349355100662,455,175.17134468856486,307,146.49232061783991,99,33.955853692699293,282,165.51737068960466,259,154.98709623707387,463,170.66048165876012,154,138.69751259485514,62,115.91807451816995,116,39.623225512317902,131,45.354161881794269,109,32.388269481403292,80,118.68024266911489]
[null,"$150,000 or more",33,121.49074038789952,47,116.92732785794773,71,124.88794977899188,657,190.80094339389416,45,115.91807451816995,81,37.107950630558946,104,40.521599178709621,1041,154.95160534825058,19,114.85643212288984,178,60.373835392494321,64,119.54915307102765,84,123.30855606972291,157,132.23085872821065,21,114.9826073804208,580,158.68522300453813,337,149.03690818049066,172,77.077882690172544,94,121.8400590938793,389,120.93386622447825,43,120.48651376813922,255,161.22034611053283,58,49.648766349225639,26,115.11733144926528,117,139.84634424967999,57,117.38824472663352,28,115.57248807566617,64,116.70903992407786]

{"sheet":"ACS_TableB19101_ACS_Tbl_B19113","index":37,"n_rows":130,"n_cols":56,"rows_kept":130,"cut":false,"hidden":true,"merged":[]}
[null,"B19101. FAMILY INCOME IN THE PAST 12 MONTHS (IN 2019 INFLATION-ADJUSTED DOLLARS)"]
[null,"Universe:  FAMILIES"]
[null,"Data Set: 2015-2019 American Community Survey 5-Year Estimates"]
[]
[null,null,"Allenstown",null,"Andover",null,"Boscawen",null,"Bow",null,"Bradford",null,"Canterbury",null,"Chichester",null,"Concord",null,"Danbury",null,"Dunbarton",null,"Epsom",null,"Franklin",null,"Henniker",null,"Hill",null,"Hooksett",null,"Hopkinton",null,"Loudon",null,"Newbury",null,"New London",null,"Northfield",null,"Pembroke",null,"Pittsfield",null,"Salisbury",null,"Sutton",null,"Warner",null,"Webster",null,"Wilmot"]
[null,null,"Estimate","Margin Of Error","Estimate","Margin Of Error","Estimate","Margin Of Error","Estimate","Margin Of Error","Estimate","Margin Of Error","Estimate","Margin Of Error","Estimate","Margin Of Error","Estimate","Margin Of Error","Estimate","Margin Of Error","Estimate","Margin Of Error","Estimate","Margin Of Error","Estimate","Margin Of Error","Estimate","Margin Of Error","Estimate","Margin Of Error","Estimate","Margin Of Error","Estimate","Margin Of Error","Estimate","Margin Of Error","Estimate","Margin Of Error","Estimate","Margin Of Error","Estimate","Margin Of Error","Estimate","Margin Of Error","Estimate","Margin Of Error","Estimate","Margin Of Error","Estimate","Margin Of Error","Estimate","Margin Of Error","Estimate","Margin Of Error","Estimate","Margin Of Error"]
[null,"Total Families",1160,82,718,92,847,104,2273,100,416,59,617,61,776,46,10213,376,311,54,801,37,1301,112,2245,164,1184,113,252,44,3688,195,1715,125,1515,148,671,80,953,86,1365,120,1976,170,993,110,432,58,555,86,748,90,559,62,494,68]
[null,"Less than $10,000",58,53,12,10,0,11,24,36,0,11,0,11,35,41,295,162,7,6,0,11,8,14,89,65,32,39,0,11,22,24,0,16,53,49,0,11,0,11,0,11,73,89,73,105,9,8,0,11,26,18,7,8,0,11]
[null,"$10,000 to $14,999",55,43,4,6,0,11,0,16,9,15,4,6,5,8,195,88,3,4,0,11,8,14,0,16,0,11,4,5,0,18,0,16,0,16,0,11,18,28,81,106,11,19,9,14,0,11,0,11,4,6,2,5,0,11]
[null,"$15,000 to $19,999",15,17,0,11,11,17,25,24,4,5,0,11,10,10,102,58,0,11,0,11,35,29,39,31,0,11,3,6,47,39,30,31,0,16,6,8,0,11,30,34,0,16,54,60,8,8,19,29,0,11,6,6,10,13]
[null,"$20,000 to $24,999",16,19,22,27,0,11,11,18,16,17,4,6,12,12,228,72,3,4,3,6,21,24,99,66,20,30,0,11,77,56,39,43,0,16,15,13,16,25,8,13,110,82,9,14,9,12,0,11,21,26,0,11,5,6]
[null,"$25,000 to $29,999",41,53,4,6,11,18,9,15,17,11,7,10,23,23,308,123,9,10,15,13,34,31,63,56,34,38,17,21,30,29,15,24,33,39,6,8,0,11,111,73,26,29,0,11,4,5,8,10,10,10,7,7,4,6]
[null,"$30,000 to $34,999",37,36,38,34,66,53,8,13,12,11,26,17,23,17,235,113,12,11,9,10,21,17,113,75,25,34,7,9,81,70,0,16,62,65,6,8,16,19,67,52,105,71,29,33,11,8,11,17,14,11,2,4,5,6]
[null,"$35,000 to $39,999",80,70,28,28,25,31,34,26,9,10,6,11,9,11,280,121,11,10,12,14,15,20,61,53,8,12,4,5,60,38,60,60,59,58,0,11,7,11,20,30,0,16,0,11,8,9,8,10,48,29,20,14,4,6]
[null,"$40,000 to $44,999",47,34,0,11,0,11,43,35,3,4,10,11,32,18,321,104,16,11,8,8,24,25,135,96,7,12,7,7,141,73,22,37,106,74,6,8,9,14,19,23,51,78,46,42,23,19,14,16,14,11,9,8,15,10]
[null,"$45,000 to $49,999",16,23,32,39,26,33,26,22,16,10,6,10,56,41,342,91,13,12,46,19,17,13,121,64,43,43,13,16,148,80,29,34,17,30,19,15,20,18,66,49,97,91,28,25,3,5,26,24,7,7,23,20,29,26]
[null,"$50,000 to $59,999",113,71,26,17,89,50,81,48,35,19,40,27,35,21,661,155,35,20,25,13,123,64,321,128,53,41,3,5,148,72,227,124,107,85,39,22,50,40,105,70,89,56,143,91,32,20,27,21,31,24,35,16,60,35]
[null,"$60,000 to $74,999",136,66,76,34,139,86,150,57,32,16,47,24,46,27,911,209,31,23,48,24,174,97,259,96,121,60,23,12,377,131,158,108,269,141,52,25,90,46,169,62,117,68,106,56,48,22,57,28,97,47,46,18,64,30]
[null,"$75,000 to $99,999",279,101,149,59,118,60,230,80,82,29,132,42,92,33,1957,283,75,30,142,41,211,94,307,109,298,112,78,29,722,138,216,105,289,125,141,53,112,46,208,75,434,145,243,92,111,33,81,42,155,45,137,53,55,32]
[null,"$100,000 to $124,999",59,43,114,53,208,82,421,104,64,24,55,29,142,44,1436,216,57,30,73,31,134,67,408,134,136,68,32,18,530,139,170,93,169,93,109,39,132,58,182,78,223,106,88,57,73,34,94,37,68,29,110,33,43,29]
[null,"$125,000 to $149,999",78,42,100,51,66,38,258,82,23,16,133,45,99,48,759,141,7,7,147,42,195,96,46,35,142,78,40,16,363,120,224,112,112,70,56,31,128,54,105,56,276,113,104,77,34,22,63,36,123,63,73,23,45,26]
[null,"$150,000 to $199,999",110,60,73,36,19,21,527,111,44,24,71,30,100,33,1176,169,11,8,111,41,123,58,78,56,142,62,7,7,420,118,296,107,115,88,101,47,127,58,127,53,254,91,19,21,26,16,86,39,76,28,68,30,56,23]
[null,"$200,000 or more",20,20,40,20,69,57,426,107,50,35,76,31,57,34,1007,156,21,19,162,50,158,114,106,69,123,67,14,12,522,142,229,88,124,71,115,52,228,80,67,49,110,69,42,34,33,18,61,29,54,28,14,10,99,35]
[]
[]
[null,"B19113. MEDIAN FAMILY INCOME IN THE PAST 12 MONTHS (IN 2019 INFLATION-ADJUSTED DOLLARS)"]
[null,"Universe:  FAMILIES"]
[null,"Data Set: 2015-2019 American Community Survey 5-Year Estimates"]
[]
[null,null,"Allenstown",null,"Andover",null,"Boscawen",null,"Bow",null,"Bradford",null,"Canterbury",null,"Chichester",null,"Concord",null,"Danbury",null,"Dunbarton",null,"Epsom",null,"Franklin",null,"Henniker",null,"Hill",null,"Hooksett",null,"Hopkinton",null,"Loudon",null,"Newbury",null,"New London",null,"Northfield",null,"Pembroke",null,"Pittsfield",null,"Salisbury",null,"Sutton",null,"Warner",null,"Webster",null,"Wilmot"]
[null,null,"Estimate","Margin Of Error","Estimate","Margin Of Error","Estimate","Margin Of Error","Estimate","Margin Of Error","Estimate","Margin Of Error","Estimate","Margin Of Error","Estimate","Margin Of Error","Estimate","Margin Of Error","Estimate","Margin Of Error","Estimate","Margin Of Error","Estimate","Margin Of Error","Estimate","Margin Of Error","Estimate","Margin Of Error","Estimate","Margin Of Error","Estimate","Margin Of Error","Estimate","Margin Of Error","Estimate","Margin Of Error","Estimate","Margin Of Error","Estimate","Margin Of Error","Estimate","Margin Of Error","Estimate","Margin Of Error","Estimate","Margin Of Error","Estimate","Margin Of Error","Estimate","Margin Of Error","Estimate","Margin Of Error","Estimate","Margin Of Error","Estimate","Margin Of Error"]
[null,"Median family income in the past 12 months",71012,11596,92083,14462,82330,21601,132543,10727,94643,12531,109250,18408,102083,12344,89433,3368,76761,6307,130221,13678,95475,17455,67993,9865,92308,10402,85250,7838,99773,8755,105221,22994,78090,10614,105444,7800,126250,15249,78274,17120,91453,10995,74861,14342,87500,8324,103750,11363,89038,10363,97868,9059,94375,16827]
[]
[]
[]
[]
[]
[]
[]
[]
[]
[]
[]
[]
[]
[]
[]
[]
[]
[null,"B19101. FAMILY INCOME IN THE PAST 12 MONTHS (IN 2014 INFLATION-ADJUSTED DOLLARS)"]
[null,"Universe:  FAMILIES"]
[null,"Data Set: 2010-2014 American Community Survey 5-Year Estimates"]
[]
[null,null,"Allenstown",null,"Andover",null,"Boscawen",null,"Bow",null,"Bradford",null,"Canterbury",null,"Chichester",null,"Concord",null,"Danbury",null,"Dunbarton",null,"Epsom",null,"Franklin",null,"Henniker",null,"Hill",null,"Hooksett",null,"Hopkinton",null,"Loudon",null,"Newbury",null,"New London",null,"Northfield",null,"Pembroke",null,"Pittsfield",null,"Salisbury",null,"Sutton",null,"Warner",null,"Webster",null,"Wilmot"]
[null,null,"Estimate","Margin Of Error","Estimate","Margin Of Error","Estimate","Margin Of Error","Estimate","Margin Of Error","Estimate","Margin Of Error","Estimate","Margin Of Error","Estimate","Margin Of Error","Estimate","Margin Of Error","Estimate","Margin Of Error","Estimate","Margin Of Error","Estimate","Margin Of Error","Estimate","Margin Of Error","Estimate","Margin Of Error","Estimate","Margin Of Error","Estimate","Margin Of Error","Estimate","Margin Of Error","Estimate","Margin Of Error","Estimate","Margin Of Error","Estimate","Margin Of Error","Estimate","Margin Of Error","Estimate","Margin Of Error","Estimate","Margin Of Error","Estimate","Margin Of Error","Estimate","Margin Of Error","Estimate","Margin Of Error","Estimate","Margin Of Error","Estimate","Margin Of Error"]
[null,null,1182,89,640,92,962,135,2343,113,498,68,666,68,698,71,9845,358,348,64,800,74,1266,86,2046,145,1063,98,329,55,3649,182,1642,117,1469,112,508,73,1085,103,1338,105,1925,152,963,90,388,50,605,94,771,57,520,65,358,56]
[null,"Less than $10,000",48,47,4,6,19,22,23,26,4,5,0,11,15,23,388,136,14,17,19,15,28,30,181,100,0,11,0,11,11,18,13,21,51,43,39,28,31,39,28,32,15,24,145,70,0,11,3,4,4,7,8,14,2,3]
[null,"$10,000 to $14,999",11,18,5,7,72,62,49,49,17,12,0,11,0,11,280,102,0,11,0,11,8,14,57,39,32,49,0,11,9,13,39,61,23,36,0,11,0,11,25,24,0,15,11,15,6,7,10,14,0,11,4,6,4,7]
[null,"$15,000 to $19,999",10,17,7,10,34,38,46,41,7,5,19,17,19,15,246,96,5,6,4,7,0,11,48,48,0,11,4,5,7,12,17,26,15,19,0,11,45,49,44,49,17,28,6,10,0,11,0,11,10,8,16,20,6,6]
[null,"$20,000 to $24,999",103,74,16,14,25,23,57,48,6,7,0,11,26,28,276,139,30,23,16,19,48,32,171,86,46,37,14,17,71,52,11,18,38,34,15,12,62,33,56,56,11,20,18,28,0,11,12,18,23,25,8,8,14,19]
[null,"$25,000 to $29,999",17,19,40,34,47,42,0,15,17,18,10,11,5,7,385,155,0,11,36,30,24,24,199,100,8,12,11,10,114,81,25,29,0,15,15,17,8,12,50,46,90,59,73,59,9,8,9,14,10,10,7,7,11,10]
[null,"$30,000 to $34,999",67,55,23,24,38,32,27,25,24,24,9,11,34,28,419,142,8,8,5,6,3,6,47,35,63,61,25,16,48,45,44,40,110,72,37,28,29,33,20,20,79,63,46,35,10,9,23,18,33,29,19,20,26,20]
[null,"$35,000 to $39,999",78,42,36,31,32,21,41,33,24,18,9,10,16,14,371,135,39,27,12,13,56,41,99,76,0,11,15,11,59,41,25,30,34,30,18,17,33,29,76,48,73,67,23,23,22,21,27,25,46,31,9,8,5,6]
[null,"$40,000 to $44,999",42,29,20,14,22,22,102,61,16,11,6,9,18,15,414,139,21,19,20,16,34,44,123,53,12,14,16,13,52,39,31,29,0,15,18,14,35,29,57,34,56,64,6,10,19,12,34,27,30,27,30,21,14,10]
[null,"$45,000 to $49,999",63,37,4,7,87,60,65,42,18,11,25,29,38,33,512,126,10,8,10,11,29,33,34,38,23,36,12,10,95,74,27,31,66,69,17,15,5,9,64,50,25,30,54,46,12,9,37,24,16,12,27,17,10,15]
[null,"$50,000 to $59,999",108,56,23,15,84,56,88,55,68,35,47,25,43,27,798,185,16,15,43,33,70,51,139,63,54,44,36,23,126,85,81,72,212,93,37,19,60,37,89,43,105,89,34,28,33,22,48,26,81,52,45,23,10,10]
[null,"$60,000 to $74,999",155,64,88,44,175,78,119,62,74,36,46,22,98,36,940,183,69,30,54,26,155,86,219,83,198,98,52,22,535,149,143,95,192,65,36,22,97,46,185,81,297,138,102,51,99,34,81,39,90,41,61,25,41,22]
[null,"$75,000 to $99,999",210,82,192,61,175,68,344,93,88,28,176,46,140,53,1643,255,63,29,156,44,254,92,462,115,204,73,74,32,759,174,402,157,281,88,84,33,178,64,316,98,414,152,206,78,51,19,125,53,104,37,108,32,61,28]
[null,"$100,000 to $124,999",136,54,95,42,37,28,341,96,60,24,137,45,78,32,1073,204,45,30,167,60,203,93,143,70,134,77,29,17,649,164,307,113,111,69,88,44,184,68,203,77,302,137,74,44,76,23,54,28,125,50,68,24,72,29]
[null,"$125,000 to $149,999",64,41,20,15,35,28,387,109,34,22,92,39,72,37,675,138,17,15,88,33,160,63,100,55,131,73,24,15,537,167,94,66,147,72,30,20,113,44,72,43,129,76,50,34,21,14,48,29,65,31,59,28,50,27]
[null,"$150,000 to $199,999",70,42,43,36,35,31,353,116,20,14,36,21,66,36,830,148,11,14,105,41,101,59,24,22,86,46,15,16,347,119,206,100,144,94,38,22,159,56,21,24,207,82,91,60,16,11,46,30,63,40,32,14,21,10]
[null,"$200,000 or more",0,11,24,14,45,43,301,86,21,14,54,25,30,20,595,156,0,11,65,26,93,51,0,15,72,36,2,4,230,135,177,75,45,54,36,19,46,33,32,40,105,65,24,23,14,16,48,26,71,40,19,16,11,9]
[]
[]
[null,"B19113. MEDIAN FAMILY INCOME IN THE PAST 12 MONTHS (IN 2014 INFLATION-ADJUSTED DOLLARS)"]
[null,"Universe:  FAMILIES"]
[null,"Data Set: 2010-2014 American Community Survey 5-Year Estimates"]
[]
[null,null,"Allenstown",null,"Andover",null,"Boscawen",null,"Bow",null,"Bradford",null,"Canterbury",null,"Chichester",null,"Concord",null,"Danbury",null,"Dunbarton",null,"Epsom",null,"Franklin",null,"Henniker",null,"Hill",null,"Hooksett",null,"Hopkinton",null,"Loudon",null,"Newbury",null,"New London",null,"Northfield",null,"Pembroke",null,"Pittsfield",null,"Salisbury",null,"Sutton",null,"Warner",null,"Webster",null,"Wilmot"]
[null,null,"Estimate","Margin Of Error","Estimate","Margin Of Error","Estimate","Margin Of Error","Estimate","Margin Of Error","Estimate","Margin Of Error","Estimate","Margin Of Error","Estimate","Margin Of Error","Estimate","Margin Of Error","Estimate","Margin Of Error","Estimate","Margin Of Error","Estimate","Margin Of Error","Estimate","Margin Of Error","Estimate","Margin Of Error","Estimate","Margin Of Error","Estimate","Margin Of Error","Estimate","Margin Of Error","Estimate","Margin Of Error","Estimate","Margin Of Error","Estimate","Margin Of Error","Estimate","Margin Of Error","Estimate","Margin Of Error","Estimate","Margin Of Error","Estimate","Margin Of Error","Estimate","Margin Of Error","Estimate","Margin Of Error","Estimate","Margin Of Error","Estimate","Margin Of Error"]
[null,"Median family income in the past 12 months",64167,6154,82500,6334,60972,7536,113447,8501,70556,14291,95313,10833,86579,12470,72464,6466,64583,8263,103091,5357,93333,10346,53625,11106,83608,12419,71563,6871,97520,7607,97798,16529,73984,13809,80000,17226,95972,9267,72197,9484,89129,15416,71520,10750,73095,3683,80446,10826,86012,14080,80556,9482,88750,16014]
[]
[]
[]
[]
[]
[]
[]
[]
[]
[]
[]
[]
[]
[]
[]
[]
[]
[null,"B19101. FAMILY INCOME IN THE PAST 12 MONTHS (IN 2009 INFLATION-ADJUSTED DOLLARS)"]
[null,"Universe:  FAMILIES"]
[null,"Data Set: 2005-2009 American Community Survey 5-Year Estimates"]
[]
[null,null,"Allenstown",null,"Andover",null,"Boscawen",null,"Bow",null,"Bradford",null,"Canterbury",null,"Chichester",null,"Concord",null,"Danbury",null,"Dunbarton",null,"Epsom",null,"Franklin",null,"Henniker",null,"Hill",null,"Hooksett",null,"Hopkinton",null,"Loudon",null,"Newbury",null,"New London",null,"Northfield",null,"Pembroke",null,"Pittsfield",null,"Salisbury",null,"Sutton",null,"Warner",null,"Webster",null,"Wilmot"]
[null,null,"Estimate","Margin Of Error","Estimate","Margin Of Error","Estimate","Margin Of Error","Estimate","Margin Of Error","Estimate","Margin Of Error","Estimate","Margin Of Error","Estimate","Margin Of Error","Estimate","Margin Of Error","Estimate","Margin Of Error","Estimate","Margin Of Error","Estimate","Margin Of Error","Estimate","Margin Of Error","Estimate","Margin Of Error","Estimate","Margin Of Error","Estimate","Margin Of Error","Estimate","Margin Of Error","Estimate","Margin Of Error","Estimate","Margin Of Error","Estimate","Margin Of Error","Estimate","Margin Of Error","Estimate","Margin Of Error","Estimate","Margin Of Error","Estimate","Margin Of Error","Estimate","Margin Of Error","Estimate","Margin Of Error","Estimate","Margin Of Error","Estimate","Margin Of Error"]
[null,null,1259,92,691,84,901,122,2360,123,383,63,648,58,738,42,10033,472,332,63,751,57,1184,92,2186,142,1152,142,284,40,3523,170,1620,132,1425,119,630,85,962,160,1396,105,1991,165,1069,114,340,37,463,88,709,116,548,54,391,66]
[null,"Less than $10,000",32,38,0,114,8,14,0,114,0,114,0,114,0,114,335,134,10,13,14,14,0,114,96,63,7,11,15,15,0,114,0,114,36,43,3,5,28,43,51,54,22,32,13,20,5,7,6,9,14,22,0,114,20,19]
[null,"$10,000 to $14,999",8,14,17,28,14,23,43,39,0,114,19,15,17,28,192,85,3,4,7,10,0,114,150,73,0,114,0,114,32,29,0,114,0,114,7,9,35,41,15,25,205,143,45,39,3,5,0,114,0,114,10,9,31,46]
[null,"$15,000 to $19,999",0,114,24,27,23,24,40,41,16,15,4,7,10,11,342,124,14,13,5,8,23,24,58,43,26,42,22,14,0,114,9,15,7,12,25,31,45,56,48,43,47,49,89,80,7,9,0,114,23,17,9,8,0,114]
[null,"$20,000 to $24,999",86,69,27,33,59,48,15,22,14,14,2,4,26,32,293,113,13,13,6,10,19,21,124,78,37,32,5,7,85,61,9,16,22,24,22,20,0,114,25,24,23,27,28,28,8,8,10,15,0,114,21,16,7,9]
[null,"$25,000 to $29,999",0,114,20,18,66,47,29,32,14,10,14,19,56,41,503,183,16,14,0,114,80,43,26,27,51,47,8,8,105,76,7,15,31,27,19,16,33,29,76,57,121,91,16,19,6,6,17,15,29,19,25,21,29,42]
[null,"$30,000 to $34,999",86,60,12,15,11,17,39,35,13,10,18,15,9,11,381,138,5,7,5,7,58,39,143,78,16,18,10,8,100,50,17,26,58,60,19,19,29,33,11,17,49,48,17,20,3,5,17,17,73,35,17,15,8,11]
[null,"$35,000 to $39,999",9,15,63,52,48,56,79,61,10,8,24,17,30,33,427,131,12,14,27,21,27,24,186,75,21,27,7,7,152,74,56,43,86,65,36,25,12,18,17,18,29,32,83,60,18,10,3,4,61,36,25,13,9,8]
[null,"$40,000 to $44,999",55,42,45,42,40,37,0,114,29,20,12,12,23,19,423,118,24,17,15,14,27,38,57,37,50,62,25,22,145,69,49,39,35,35,60,78,32,29,88,70,73,58,48,39,21,13,8,10,41,25,20,13,25,19]
[null,"$45,000 to $49,999",48,52,35,31,7,13,108,62,14,10,50,21,11,11,566,188,13,13,32,23,50,51,171,72,45,47,17,10,98,65,66,57,88,69,8,11,0,114,91,75,92,63,8,13,9,8,10,9,17,12,11,8,3,5]
[null,"$50,000 to $59,999",246,117,69,36,152,73,89,59,57,30,53,30,59,31,863,169,28,23,47,27,72,53,201,77,143,77,11,9,238,82,125,60,109,58,77,38,17,22,234,97,149,92,167,75,51,24,42,24,75,45,79,46,21,19]
[null,"$60,000 to $74,999",112,62,125,51,125,61,209,95,46,21,90,34,129,48,1273,226,74,36,94,40,239,100,360,106,105,64,67,28,348,91,208,102,229,82,46,22,49,42,166,62,231,87,169,71,52,26,73,32,90,40,75,28,38,23]
[null,"$75,000 to $99,999",322,105,85,45,102,53,381,115,76,35,164,47,176,52,1930,306,80,35,116,41,207,89,251,90,172,88,43,21,835,168,454,139,311,85,154,51,70,41,272,80,322,120,227,92,82,27,87,36,116,37,124,31,70,23]
[null,"$100,000 to $124,999",193,89,69,38,152,69,468,127,27,18,69,35,52,31,991,171,27,21,146,43,223,76,227,86,289,109,29,13,590,159,140,78,173,74,52,26,159,108,220,101,292,99,69,51,50,20,54,27,108,42,80,31,52,32]
[null,"$125,000 to $149,999",29,31,58,47,35,36,287,107,28,21,56,29,43,26,595,136,4,7,101,55,95,69,52,39,44,37,7,6,249,84,158,73,74,43,33,18,94,59,39,34,116,70,40,35,3,5,23,14,16,14,24,14,19,15]
[null,"$150,000 to $199,999",8,12,42,25,51,47,338,120,33,18,49,33,54,39,473,117,4,5,63,27,47,32,42,38,101,53,9,14,334,128,118,71,121,67,31,22,204,93,34,33,107,71,25,27,11,11,28,21,29,17,18,17,25,24]
[null,"$200,000 or more",25,40,0,114,8,13,235,93,6,6,24,18,43,26,446,114,5,8,73,49,17,19,42,33,45,44,9,6,212,105,204,75,45,29,38,23,155,72,9,14,113,89,25,41,11,9,85,84,17,16,10,9,34,19]
[]
[]
[null,"B19113. MEDIAN FAMILY INCOME IN THE PAST 12 MONTHS (IN 2009 INFLATION-ADJUSTED DOLLARS)"]
[null,"Universe:  FAMILIES"]
[null,"Data Set: 2005-2009 American Community Survey 5-Year Estimates"]
[]
[null,null,"Allenstown",null,"Andover",null,"Boscawen",null,"Bow",null,"Bradford",null,"Canterbury",null,"Chichester",null,"Concord",null,"Danbury",null,"Dunbarton",null,"Epsom",null,"Franklin",null,"Henniker",null,"Hill",null,"Hooksett",null,"Hopkinton",null,"Loudon",null,"Newbury",null,"New London",null,"Northfield",null,"Pembroke",null,"Pittsfield",null,"Salisbury",null,"Sutton",null,"Warner",null,"Webster",null,"Wilmot"]
[null,null,"Estimate","Margin Of Error","Estimate","Margin Of Error","Estimate","Margin Of Error","Estimate","Margin Of Error","Estimate","Margin Of Error","Estimate","Margin Of Error","Estimate","Margin Of Error","Estimate","Margin Of Error","Estimate","Margin Of Error","Estimate","Margin Of Error","Estimate","Margin Of Error","Estimate","Margin Of Error","Estimate","Margin Of Error","Estimate","Margin Of Error","Estimate","Margin Of Error","Estimate","Margin Of Error","Estimate","Margin Of Error","Estimate","Margin Of Error","Estimate","Margin Of Error","Estimate","Margin Of Error","Estimate","Margin Of Error","Estimate","Margin Of Error","Estimate","Margin Of Error","Estimate","Margin Of Error","Estimate","Margin Of Error","Estimate","Margin Of Error","Estimate","Margin Of Error"]
[null,"Median family income in the past 12 months",68007,15536,64306,10597,62009,11209,106458,8028,69018,12777,78804,5467,74900,6806,68440,2493,70125,5568,101172,14283,74674,10517,53734,4088,83553,16708,65250,7587,89216,4458,85275,4759,76438,12234,72813,19741,112200,26441,65568,12019,70775,10534,61314,8510,69667,12038,80268,14271,67788,13995,71458,9208,78092,18186]

{"sheet":"ACS_Table_B25119","index":38,"n_rows":68,"n_cols":56,"rows_kept":68,"cut":false,"hidden":true,"merged":[[44,2,44,3],[44,4,44,5],[44,6,44,7],[44,8,44,9],[44,10,44,11],[44,12,44,13],[44,14,44,15],[44,16,44,17],[44,18,44,19],[15,2,15,3],[15,4,15,5],[15,6,15,7],[15,8,15,9],[15,10,15,11],[15,12,15,13],[15,14,15,15],[15,16,15,17],[15,18,15,19],[15,20,15,21],[15,22,15,23],[21,2,21,3],[21,4,21,5],[21,6,21,7],[21,8,21,9],[21,10,21,11],[21,12,21,13],[21,14,21,15],[21,16,21,17],[21,18,21,19],[21,20,21,21],[21,22,21,23],[27,2,27,3],[27,4,27,5],[27,6,27,7],[27,8,27,9],[27,10,27,11],[27,12,27,13],[27,14,27,15],[27,16,27,17],[27,18,27,19],[27,20,27,21],[27,22,27,23],[44,20,44,21],[44,22,44,23],[69,2,69,3],[69,4,69,5],[69,6,69,7],[69,8,69,9],[69,10,69,11],[69,12,69,13],[69,14,69,15],[69,16,69,17],[69,18,69,19],[69,20,69,21],[69,22,69,23],[75,2,75,3],[75,4,75,5],[75,6,75,7],[75,8,75,9],[75,10,75,11],[75,12,75,13],[75,14,75,15],[75,16,75,17],[75,18,75,19],[75,20,75,21],[75,22,75,23],[81,2,81,3],[81,4,81,5],[81,6,81,7],[81,8,81,9],[81,10,81,11],[81,12,81,13],[81,14,81,15],[81,16,81,17],[81,18,81,19],[81,20,81,21],[81,22,81,23],[87,2,87,3],[87,4,87,5],[87,6,87,7],[87,8,87,9],[87,10,87,11],[87,12,87,13],[87,14,87,15],[87,16,87,17],[87,18,87,19],[87,20,87,21],[87,22,87,23],[93,2,93,3],[93,4,93,5],[93,6,93,7],[93,8,93,9],[93,10,93,11],[93,12,93,13],[93,14,93,15],[93,16,93,17],[93,18,93,19],[93,20,93,21],[93,22,93,23],[99,2,99,3],[99,4,99,5],[99,6,99,7],[99,8,99,9],[99,10,99,11],[99,12,99,13],[99,14,99,15],[99,16,99,17],[99,18,99,19],[99,20,99,21],[99,22,99,23],[105,2,105,3],[105,4,105,5],[105,6,105,7],[105,8,105,9],[105,10,105,11],[105,12,105,13],[105,14,105,15],[105,16,105,17],[105,18,105,19],[105,20,105,21],[105,22,105,23],[111,2,111,3],[111,4,111,5],[111,6,111,7],[111,8,111,9],[111,10,111,11],[111,12,111,13],[111,14,111,15],[111,16,111,17],[111,18,111,19],[111,20,111,21],[111,22,111,23],[117,2,117,3],[117,4,117,5],[117,6,117,7],[117,8,117,9],[117,10,117,11],[117,12,117,13],[117,14,117,15],[117,16,117,17],[117,18,117,19],[117,20,117,21],[117,22,117,23],[123,2,123,3],[123,4,123,5],[123,6,123,7],[123,8,123,9],[123,10,123,11],[123,12,123,13],[123,14,123,15],[123,16,123,17],[123,18,123,19],[123,20,123,21],[123,22,123,23],[129,2,129,3],[129,4,129,5],[129,6,129,7],[129,8,129,9],[129,10,129,11],[129,12,129,13],[129,14,129,15],[129,16,129,17],[129,18,129,19],[129,20,129,21],[129,22,129,23],[135,2,135,3],[135,4,135,5],[135,6,135,7],[135,8,135,9],[135,10,135,11],[135,12,135,13],[135,14,135,15],[135,16,135,17],[135,18,135,19],[135,20,135,21],[135,22,135,23],[141,2,141,3],[141,4,141,5],[141,6,141,7],[141,8,141,9],[141,10,141,11],[141,12,141,13],[141,14,141,15],[141,16,141,17],[141,18,141,19],[141,20,141,21],[141,22,141,23],[147,2,147,3],[147,4,147,5],[147,6,147,7],[147,8,147,9],[147,10,147,11],[147,12,147,13],[147,14,147,15],[147,16,147,17],[147,18,147,19],[147,20,147,21],[147,22,147,23],[153,2,153,3],[153,4,153,5],[153,6,153,7],[153,8,153,9],[153,10,153,11],[153,12,153,13],[153,14,153,15],[153,16,153,17],[153,18,153,19],[153,20,153,21],[153,22,153,23],[159,2,159,3],[159,4,159,5],[159,6,159,7],[159,8,159,9],[159,10,159,11],[159,12,159,13],[159,14,159,15],[159,16,159,17],[159,18,159,19],[159,20,159,21],[159,22,159,23],[165,2,165,3],[165,4,165,5],[165,6,165,7],[165,8,165,9],[165,10,165,11],[165,12,165,13],[165,14,165,15],[165,16,165,17],[165,18,165,19],[165,20,165,21],[165,22,165,23],[171,2,171,3],[171,4,171,5],[171,6,171,7],[171,8,171,9],[171,10,171,11],[171,12,171,13],[171,14,171,15],[171,16,171,17],[171,18,171,19],[171,20,171,21],[171,22,171,23],[177,2,177,3],[177,4,177,5],[177,6,177,7],[177,8,177,9],[177,10,177,11],[177,12,177,13],[177,14,177,15],[177,16,177,17],[177,18,177,19],[177,20,177,21],[177,22,177,23],[183,2,183,3],[183,4,183,5],[183,6,183,7],[183,8,183,9],[183,10,183,11],[183,12,183,13],[183,14,183,15],[183,16,183,17],[183,18,183,19],[183,20,183,21],[183,22,183,23],[189,2,189,3],[189,4,189,5],[189,6,189,7],[189,8,189,9],[189,10,189,11],[189,12,189,13],[189,14,189,15],[189,16,189,17],[189,18,189,19],[189,20,189,21],[189,22,189,23],[195,2,195,3],[195,4,195,5],[195,6,195,7],[195,8,195,9],[195,10,195,11],[195,12,195,13],[195,14,195,15],[195,16,195,17],[195,18,195,19],[195,20,195,21],[195,22,195,23],[201,2,201,3],[201,4,201,5],[201,6,201,7],[201,8,201,9],[201,10,201,11],[201,12,201,13],[201,14,201,15],[201,16,201,17],[201,18,201,19],[201,20,201,21],[201,22,201,23],[207,2,207,3],[207,4,207,5],[207,6,207,7],[207,8,207,9],[207,10,207,11],[207,12,207,13],[207,14,207,15],[207,16,207,17],[207,18,207,19],[207,20,207,21],[207,22,207,23],[213,2,213,3],[213,4,213,5],[213,6,213,7],[213,8,213,9],[213,10,213,11],[213,12,213,13],[213,14,213,15],[213,16,213,17],[213,18,213,19],[213,20,213,21],[213,22,213,23],[219,2,219,3],[219,4,219,5],[219,6,219,7],[219,8,219,9],[219,10,219,11],[219,12,219,13],[219,14,219,15],[219,16,219,17],[219,18,219,19],[219,20,219,21],[219,22,219,23],[225,2,225,3],[225,4,225,5],[225,6,225,7],[225,8,225,9],[225,10,225,11],[225,12,225,13],[225,14,225,15],[225,16,225,17],[225,18,225,19],[225,20,225,21],[225,22,225,23],[231,2,231,3],[231,4,231,5],[231,6,231,7],[231,8,231,9],[231,10,231,11],[231,12,231,13],[231,14,231,15],[231,16,231,17],[231,18,231,19],[231,20,231,21],[231,22,231,23],[237,2,237,3],[237,4,237,5],[237,6,237,7],[237,8,237,9],[237,10,237,11],[237,12,237,13],[237,14,237,15],[237,16,237,17],[237,18,237,19],[237,20,237,21],[237,22,237,23],[243,2,243,3],[243,4,243,5],[243,6,243,7],[243,8,243,9],[243,10,243,11],[243,12,243,13],[243,14,243,15],[243,16,243,17],[243,18,243,19],[243,20,243,21],[243,22,243,23],[249,2,249,3],[249,4,249,5],[249,6,249,7],[249,8,249,9],[249,10,249,11],[249,12,249,13],[249,14,249,15],[249,16,249,17],[249,18,249,19],[249,20,249,21],[249,22,249,23],[255,2,255,3],[255,4,255,5],[255,6,255,7],[255,8,255,9],[255,10,255,11],[255,12,255,13],[255,14,255,15],[255,16,255,17],[255,18,255,19],[255,20,255,21],[255,22,255,23],[261,2,261,3],[261,4,261,5],[261,6,261,7],[261,8,261,9],[261,10,261,11],[261,12,261,13],[261,14,261,15],[261,16,261,17],[261,18,261,19],[261,20,261,21],[261,22,261,23],[267,2,267,3],[267,4,267,5],[267,6,267,7],[267,8,267,9],[267,10,267,11],[267,12,267,13],[267,14,267,15],[267,16,267,17],[267,18,267,19],[267,20,267,21],[267,22,267,23],[273,2,273,3],[273,4,273,5],[273,6,273,7],[273,8,273,9],[273,10,273,11],[273,12,273,13],[273,14,273,15],[273,16,273,17],[273,18,273,19],[273,20,273,21],[273,22,273,23],[279,2,279,3],[279,4,279,5],[279,6,279,7],[279,8,279,9],[279,10,279,11],[279,12,279,13],[279,14,279,15],[279,16,279,17],[279,18,279,19],[279,20,279,21],[279,22,279,23],[285,2,285,3],[285,4,285,5],[285,6,285,7],[285,8,285,9],[285,10,285,11],[285,12,285,13],[285,14,285,15],[285,16,285,17],[285,18,285,19],[285,20,285,21],[285,22,285,23],[291,2,291,3],[291,4,291,5],[291,6,291,7],[291,8,291,9],[291,10,291,11],[291,12,291,13],[291,14,291,15],[291,16,291,17],[291,18,291,19],[291,20,291,21],[291,22,291,23],[297,2,297,3],[297,4,297,5],[297,6,297,7],[297,8,297,9],[297,10,297,11],[297,12,297,13],[297,14,297,15],[297,16,297,17],[297,18,297,19],[297,20,297,21],[297,22,297,23],[303,2,303,3],[303,4,303,5],[303,6,303,7],[303,8,303,9],[303,10,303,11],[303,12,303,13],[303,14,303,15],[303,16,303,17],[303,18,303,19],[303,20,303,21],[303,22,303,23],[309,2,309,3],[309,4,309,5],[309,6,309,7],[309,8,309,9],[309,10,309,11],[309,12,309,13],[309,14,309,15],[309,16,309,17],[309,18,309,19],[309,20,309,21],[309,22,309,23],[315,2,315,3],[315,4,315,5],[315,6,315,7],[315,8,315,9],[315,10,315,11],[315,12,315,13],[315,14,315,15],[315,16,315,17],[315,18,315,19],[315,20,315,21],[315,22,315,23],[321,2,321,3],[321,4,321,5],[321,6,321,7],[321,8,321,9],[321,10,321,11],[321,12,321,13],[321,14,321,15],[321,16,321,17],[321,18,321,19],[321,20,321,21],[321,22,321,23],[327,2,327,3],[327,4,327,5],[327,6,327,7],[327,8,327,9],[327,10,327,11],[327,12,327,13],[327,14,327,15],[327,16,327,17],[327,18,327,19],[327,20,327,21],[327,22,327,23],[333,2,333,3],[333,4,333,5],[333,6,333,7],[333,8,333,9],[333,10,333,11],[333,12,333,13],[333,14,333,15],[333,16,333,17],[333,18,333,19],[333,20,333,21],[333,22,333,23],[339,2,339,3],[339,4,339,5],[339,6,339,7],[339,8,339,9],[339,10,339,11],[339,12,339,13],[339,14,339,15],[339,16,339,17],[339,18,339,19],[339,20,339,21],[339,22,339,23],[345,2,345,3],[345,4,345,5],[345,6,345,7],[345,8,345,9],[345,10,345,11],[345,12,345,13],[345,14,345,15],[345,16,345,17],[345,18,345,19],[345,20,345,21],[345,22,345,23],[351,2,351,3],[351,4,351,5],[351,6,351,7],[351,8,351,9],[351,10,351,11],[351,12,351,13],[351,14,351,15],[351,16,351,17],[351,18,351,19],[351,20,351,21],[351,22,351,23],[357,2,357,3],[357,4,357,5],[357,6,357,7],[357,8,357,9],[357,10,357,11],[357,12,357,13],[357,14,357,15],[357,16,357,17],[357,18,357,19],[357,20,357,21],[357,22,357,23],[363,2,363,3],[363,4,363,5],[363,6,363,7],[363,8,363,9],[363,10,363,11],[363,12,363,13],[363,14,363,15],[363,16,363,17],[363,18,363,19],[363,20,363,21],[363,22,363,23],[369,2,369,3],[369,4,369,5],[369,6,369,7],[369,8,369,9],[369,10,369,11],[369,12,369,13],[369,14,369,15],[369,16,369,17],[369,18,369,19],[369,20,369,21],[369,22,369,23],[375,2,375,3],[375,4,375,5],[375,6,375,7],[375,8,375,9],[375,10,375,11],[375,12,375,13],[375,14,375,15],[375,16,375,17],[375,18,375,19],[375,20,375,21],[375,22,375,23],[381,2,381,3],[381,4,381,5],[381,6,381,7],[381,8,381,9],[381,10,381,11],[381,12,381,13],[381,14,381,15],[381,16,381,17],[381,18,381,19],[381,20,381,21],[381,22,381,23],[387,2,387,3],[387,4,387,5],[387,6,387,7],[387,8,387,9],[387,10,387,11],[387,12,387,13],[387,14,387,15],[387,16,387,17],[387,18,387,19],[387,20,387,21],[387,22,387,23],[393,2,393,3],[393,4,393,5],[393,6,393,7],[393,8,393,9],[393,10,393,11],[393,12,393,13],[393,14,393,15],[393,16,393,17],[393,18,393,19],[393,20,393,21],[393,22,393,23],[399,2,399,3],[399,4,399,5],[399,6,399,7],[399,8,399,9],[399,10,399,11],[399,12,399,13],[399,14,399,15],[399,16,399,17],[399,18,399,19],[399,20,399,21],[399,22,399,23],[405,2,405,3],[405,4,405,5],[405,6,405,7],[405,8,405,9],[405,10,405,11],[405,12,405,13],[405,14,405,15],[405,16,405,17],[405,18,405,19],[405,20,405,21],[405,22,405,23],[411,2,411,3],[411,4,411,5],[411,6,411,7],[411,8,411,9],[411,10,411,11],[411,12,411,13],[411,14,411,15],[411,16,411,17],[411,18,411,19],[411,20,411,21],[411,22,411,23],[417,2,417,3],[417,4,417,5],[417,6,417,7],[417,8,417,9],[417,10,417,11],[417,12,417,13],[417,14,417,15],[417,16,417,17],[417,18,417,19],[417,20,417,21],[417,22,417,23],[423,2,423,3],[423,4,423,5],[423,6,423,7],[423,8,423,9],[423,10,423,11],[423,12,423,13],[423,14,423,15],[423,16,423,17],[423,18,423,19],[423,20,423,21],[423,22,423,23],[429,2,429,3],[429,4,429,5],[429,6,429,7],[429,8,429,9],[429,10,429,11],[429,12,429,13],[429,14,429,15],[429,16,429,17],[429,18,429,19],[429,20,429,21],[429,22,429,23],[435,2,435,3],[435,4,435,5],[435,6,435,7],[435,8,435,9],[435,10,435,11],[435,12,435,13],[435,14,435,15],[435,16,435,17],[435,18,435,19],[435,20,435,21],[435,22,435,23],[441,2,441,3],[441,4,441,5],[441,6,441,7],[441,8,441,9],[441,10,441,11],[441,12,441,13],[441,14,441,15],[441,16,441,17],[441,18,441,19],[441,20,441,21],[441,22,441,23],[447,2,447,3],[447,4,447,5],[447,6,447,7],[447,8,447,9],[447,10,447,11],[447,12,447,13],[447,14,447,15],[447,16,447,17],[447,18,447,19],[447,20,447,21],[447,22,447,23],[453,2,453,3],[453,4,453,5],[453,6,453,7],[453,8,453,9],[453,10,453,11],[453,12,453,13],[453,14,453,15],[453,16,453,17],[453,18,453,19],[453,20,453,21],[453,22,453,23],[459,2,459,3],[459,4,459,5],[459,6,459,7],[459,8,459,9],[459,10,459,11],[459,12,459,13],[459,14,459,15],[459,16,459,17],[459,18,459,19],[459,20,459,21],[459,22,459,23],[465,2,465,3],[465,4,465,5],[465,6,465,7],[465,8,465,9],[465,10,465,11],[465,12,465,13],[465,14,465,15],[465,16,465,17],[465,18,465,19],[465,20,465,21],[465,22,465,23],[471,2,471,3],[471,4,471,5],[471,6,471,7],[471,8,471,9],[471,10,471,11],[471,12,471,13],[471,14,471,15],[471,16,471,17],[471,18,471,19],[471,20,471,21],[471,22,471,23],[477,2,477,3],[477,4,477,5],[477,6,477,7],[477,8,477,9],[477,10,477,11],[477,12,477,13],[477,14,477,15],[477,16,477,17],[477,18,477,19],[477,20,477,21],[477,22,477,23],[483,2,483,3],[483,4,483,5],[483,6,483,7],[483,8,483,9],[483,10,483,11],[483,12,483,13],[483,14,483,15],[483,16,483,17],[483,18,483,19],[483,20,483,21],[483,22,483,23],[489,2,489,3],[489,4,489,5],[489,6,489,7],[489,8,489,9],[489,10,489,11],[489,12,489,13],[489,14,489,15],[489,16,489,17],[489,18,489,19],[489,20,489,21],[489,22,489,23],[495,2,495,3],[495,4,495,5],[495,6,495,7],[495,8,495,9],[495,10,495,11],[495,12,495,13],[495,14,495,15],[495,16,495,17],[495,18,495,19],[495,20,495,21],[495,22,495,23],[501,2,501,3],[501,4,501,5],[501,6,501,7],[501,8,501,9],[501,10,501,11],[501,12,501,13],[501,14,501,15],[501,16,501,17],[501,18,501,19],[501,20,501,21],[501,22,501,23],[507,2,507,3],[507,4,507,5],[507,6,507,7],[507,8,507,9],[507,10,507,11],[507,12,507,13],[507,14,507,15],[507,16,507,17],[507,18,507,19],[507,20,507,21],[507,22,507,23],[513,2,513,3],[513,4,513,5],[513,6,513,7],[513,8,513,9],[513,10,513,11],[513,12,513,13],[513,14,513,15],[513,16,513,17],[513,18,513,19],[513,20,513,21],[513,22,513,23],[519,2,519,3],[519,4,519,5],[519,6,519,7],[519,8,519,9],[519,10,519,11],[519,12,519,13],[519,14,519,15],[519,16,519,17],[519,18,519,19],[519,20,519,21],[519,22,519,23],[525,2,525,3],[525,4,525,5],[525,6,525,7],[525,8,525,9],[525,10,525,11],[525,12,525,13],[525,14,525,15],[525,16,525,17],[525,18,525,19],[525,20,525,21],[525,22,525,23],[531,2,531,3],[531,4,531,5],[531,6,531,7],[531,8,531,9],[531,10,531,11],[531,12,531,13],[531,14,531,15],[531,16,531,17],[531,18,531,19],[531,20,531,21],[531,22,531,23],[537,2,537,3],[537,4,537,5],[537,6,537,7],[537,8,537,9],[537,10,537,11],[537,12,537,13],[537,14,537,15],[537,16,537,17],[537,18,537,19],[537,20,537,21],[537,22,537,23],[543,2,543,3],[543,4,543,5],[543,6,543,7],[543,8,543,9],[543,10,543,11],[543,12,543,13],[543,14,543,15],[543,16,543,17],[543,18,543,19],[543,20,543,21],[543,22,543,23],[549,2,549,3],[549,4,549,5],[549,6,549,7],[549,8,549,9],[549,10,549,11],[549,12,549,13],[549,14,549,15],[549,16,549,17],[549,18,549,19],[549,20,549,21],[549,22,549,23],[555,2,555,3],[555,4,555,5],[555,6,555,7],[555,8,555,9],[555,10,555,11],[555,12,555,13],[555,14,555,15],[555,16,555,17],[555,18,555,19],[555,20,555,21],[555,22,555,23],[561,2,561,3],[561,4,561,5],[561,6,561,7],[561,8,561,9],[561,10,561,11],[561,12,561,13],[561,14,561,15],[561,16,561,17],[561,18,561,19],[561,20,561,21],[561,22,561,23],[567,2,567,3],[567,4,567,5],[567,6,567,7],[567,8,567,9],[567,10,567,11],[567,12,567,13],[567,14,567,15],[567,16,567,17],[567,18,567,19],[567,20,567,21],[567,22,567,23],[573,2,573,3],[573,4,573,5],[573,6,573,7],[573,8,573,9],[573,10,573,11],[573,12,573,13],[573,14,573,15],[573,16,573,17],[573,18,573,19],[573,20,573,21],[573,22,573,23],[579,2,579,3],[579,4,579,5],[579,6,579,7],[579,8,579,9],[579,10,579,11],[579,12,579,13],[579,14,579,15],[579,16,579,17],[579,18,579,19],[579,20,579,21],[579,22,579,23],[585,2,585,3],[585,4,585,5],[585,6,585,7],[585,8,585,9],[585,10,585,11],[585,12,585,13],[585,14,585,15],[585,16,585,17],[585,18,585,19],[585,20,585,21]],"merged_total":89485,"flags":["merged_cut"]}
[null,"B25119. MEDIAN HOUSEHOLD INCOME THE PAST 12 MONTHS (IN 2019 INFLATION-ADJUSTED DOLLARS) BY TENURE"]
[null," Universe:  OCCUPIED HOUSING UNITS"]
[null,"Data Set: 2015-2019 American Community Survey 5-Year Estimates"]
[]
[null,null,"Allenstown",null,"Andover",null,"Boscawen",null,"Bow",null,"Bradford",null,"Canterbury",null,"Chichester",null,"Concord",null,"Danbury",null,"Dunbarton",null,"Epsom",null,"Franklin",null,"Henniker",null,"Hill",null,"Hooksett",null,"Hopkinton",null,"Loudon",null,"Newbury",null,"New London",null,"Northfield",null,"Pembroke",null,"Pittsfield",null,"Salisbury",null,"Sutton",null,"Warner",null,"Webster",null,"Wilmot"]
[null,null,"Estimate","Margin Of Error","Estimate","Margin Of Error","Estimate","Margin Of Error","Estimate","Margin Of Error","Estimate","Margin Of Error","Estimate","Margin Of Error","Estimate","Margin Of Error","Estimate","Margin Of Error","Estimate","Margin Of Error","Estimate","Margin Of Error","Estimate","Margin Of Error","Estimate","Margin Of Error","Estimate","Margin Of Error","Estimate","Margin Of Error","Estimate","Margin Of Error","Estimate","Margin Of Error","Estimate","Margin Of Error","Estimate","Margin Of Error","Estimate","Margin Of Error","Estimate","Margin Of Error","Estimate","Margin Of Error","Estimate","Margin Of Error","Estimate","Margin Of Error","Estimate","Margin Of Error","Estimate","Margin Of Error","Estimate","Margin Of Error","Estimate","Margin Of Error"]
[null,"Median household income in the past 12 months"]
[null,"Total:",56721,6427,77283,10116,74500,7673,122230,7093,71458,16796,84000,11336,95398,11556,66719,4222,61250,15093,121500,18962,78622,10274,52795,4627,79867,11106,80292,4286,84568,9816,88854,19997,72311,10279,102361,8184,90846,20734,61859,8116,82808,7021,55532,3732,84844,6404,93352,11416,72841,8796,86645,4514,81250,19306]
[null,"Owner occupied (dollars)",67474,10815,83415,6484,80000,14382,128533,10437,84063,12426,89531,9335,100139,12049,95598,5083,66023,12899,128261,14571,92417,15966,65643,13080,93482,9894,81208,2837,98802,3546,102011,16042,78021,12940,105726,9467,106964,19658,76667,13425,92108,8918,71349,9948,86406,6122,98393,13730,85089,9494,89519,9681,89550,11556]
[null,"Renter occupied (dollars)",29861,22436,45172,26424,61429,56293,31471,15004,46250,14378,20917,4182,48859,6423,43506,3511,55227,46010,71786,22361,43816,14097,32407,10096,21458,9560,"-","**",52273,21763,55057,7653,"-","**",21250,10056,54338,16572,36557,6186,51989,9867,19214,13768,57188,36395,63333,52072,35750,19209,"-","**",60893,7184]
[]
[]
[]
[]
[]
[]
[]
[]
[]
[]
[]
[]
[]
[]
[]
[]
[]
[]
[]
[null,"B25119. MEDIAN HOUSEHOLD INCOME THE PAST 12 MONTHS (IN 2014 INFLATION-ADJUSTED DOLLARS) BY TENURE"]
[null," Universe:  OCCUPIED HOUSING UNITS"]
[null,"Data Set: 2010-2014 American Community Survey 5-Year Estimates"]
[]
[null,null,"Allenstown",null,"Andover",null,"Boscawen",null,"Bow",null,"Bradford",null,"Canterbury",null,"Chichester",null,"Concord",null,"Danbury",null,"Dunbarton",null,"Epsom",null,"Franklin",null,"Henniker",null,"Hill",null,"Hooksett",null,"Hopkinton",null,"Loudon",null,"Newbury",null,"New London",null,"Northfield",null,"Pembroke",null,"Pittsfield",null,"Salisbury",null,"Sutton",null,"Warner",null,"Webster",null,"Wilmot"]
[null,null,"Estimate","Margin Of Error","Estimate","Margin Of Error","Estimate","Margin Of Error","Estimate","Margin Of Error","Estimate","Margin Of Error","Estimate","Margin Of Error","Estimate","Margin Of Error","Estimate","Margin Of Error","Estimate","Margin Of Error","Estimate","Margin Of Error","Estimate","Margin Of Error","Estimate","Margin Of Error","Estimate","Margin Of Error","Estimate","Margin Of Error","Estimate","Margin Of Error","Estimate","Margin Of Error","Estimate","Margin Of Error","Estimate","Margin Of Error","Estimate","Margin Of Error","Estimate","Margin Of Error","Estimate","Margin Of Error","Estimate","Margin Of Error","Estimate","Margin Of Error","Estimate","Margin Of Error","Estimate","Margin Of Error","Estimate","Margin Of Error","Estimate"]
[null,"Median household income in the past 12 months"]
[null,"Total:",52750,5886,70025,16113,54623,9551,105266,11179,58452,5011,86797,5928,75988,7536,54182,1844,58563,7487,94417,8913,71852,5921,42742,2733,65867,9377,60250,15563,82725,3791,87545,7899,68503,5351,64107,14630,67500,8906,65368,9154,67264,15663,48672,12868,67208,5002,68295,9793,73348,8379,66042,7119,66125,10585]
[null,"Owner occupied (dollars)",58488,8511,71799,11912,67411,8384,112016,7049,60647,4281,88125,6349,76279,8134,79679,2627,60341,5605,98988,6629,78398,10021,64225,5417,84410,14950,58438,13986,88705,5499,90779,8865,70409,6609,63393,15790,78380,8422,75173,9717,84355,15702,79297,9974,69643,5099,72647,13633,85536,13504,70000,12203,70000,11595]
[null,"Renter occupied (dollars)",27275,9184,29519,9684,26667,9898,36250,15672,30852,4175,16923,23368,61719,72001,35041,2484,52734,9014,41875,44256,31406,9346,23333,4336,30417,14032,64375,33736,38491,15805,46683,7544,43750,15969,69500,42432,34135,19804,39792,20987,30580,7651,24318,10191,24375,19837,58750,20317,45385,28874,40375,20103,53056,20136]
[]
[]
[]
[]
[]
[]
[]
[]
[]
[]
[]
[]
[]
[]
[]
[]
[]
[]
[]
[null,"B25119. MEDIAN HOUSEHOLD INCOME THE PAST 12 MONTHS (IN 2009 INFLATION-ADJUSTED DOLLARS) BY TENURE"]
[null," Universe:  OCCUPIED HOUSING UNITS"]
[null,"Data Set: 2005-2009 American Community Survey 5-Year Estimates"]
[]
[null,null,"Allenstown",null,"Andover",null,"Boscawen",null,"Bow",null,"Bradford",null,"Canterbury",null,"Chichester",null,"Concord",null,"Danbury",null,"Dunbarton",null,"Epsom",null,"Franklin",null,"Henniker",null,"Hill",null,"Hooksett",null,"Hopkinton",null,"Loudon",null,"Newbury",null,"New London",null,"Northfield",null,"Pembroke",null,"Pittsfield",null,"Salisbury",null,"Sutton",null,"Warner",null,"Webster",null,"Wilmot"]
[null,null,"Estimate","Margin Of Error","Estimate","Margin Of Error","Estimate","Margin Of Error","Estimate","Margin Of Error","Estimate","Margin Of Error","Estimate","Margin Of Error","Estimate","Margin Of Error","Estimate","Margin Of Error","Estimate","Margin Of Error","Estimate","Margin Of Error","Estimate","Margin Of Error","Estimate","Margin Of Error","Estimate","Margin Of Error","Estimate","Margin Of Error","Estimate","Margin Of Error","Estimate","Margin Of Error","Estimate","Margin Of Error","Estimate","Margin Of Error","Estimate","Margin Of Error","Estimate","Margin Of Error","Estimate","Margin Of Error","Estimate","Margin Of Error","Estimate","Margin Of Error","Estimate","Margin Of Error","Estimate","Margin Of Error","Estimate","Margin Of Error","Estimate"]
[null,"Median household income in the past 12 months"]
[null,"Total:",55752,4919,58313,7369,56635,3723,97028,8864,61591,12387,72368,7912,70214,7367,52592,3007,48000,15264,92625,16453,71555,7932,46644,4770,64207,11463,53958,14130,80919,3446,82408,4860,73719,11315,61453,6936,74911,25005,58955,3250,57837,6565,56463,6079,64219,7855,74512,6236,58889,6793,65096,7831,68704,11039]
[null,"Owner occupied (dollars)",64773,14181,60769,6777,61173,6317,103964,6838,61591,14358,77019,5849,69236,7745,73540,3166,58214,18900,93173,18382,79567,9897,58750,8288,83583,15584,58333,17156,84204,4741,84245,5903,76688,10858,61413,11550,96890,26426,68750,9298,75550,10062,62955,7054,63672,9666,77153,6615,61765,9549,67596,8051,69676,10691]
[null,"Renter occupied (dollars)",24632,6501,51625,17009,29034,19340,20985,4966,57500,39452,27500,3438,94250,133100,33517,3118,23750,14150,46806,134628,54091,40637,27965,7880,27326,15498,53333,18977,48388,5179,71667,25509,36667,17065,61518,4115,30117,39495,31161,18524,28082,4518,39939,6200,68594,39393,21838,29943,42143,10855,42857,11842,10750,3145]

{"sheet":"ACS_Table_B25001","index":39,"n_rows":29,"n_cols":56,"rows_kept":29,"cut":false,"hidden":true,"merged":[]}
[null,"B25001. HOUSING UNITS"]
[null,"Universe:  HOUSING UNITS"]
[null,"Data Set: 2015-2019 American Community Survey 5-Year Estimates"]
[]
[null,null,"Allenstown",null,"Andover",null,"Boscawen",null,"Bow",null,"Bradford",null,"Canterbury",null,"Chichester",null,"Concord",null,"Danbury",null,"Dunbarton",null,"Epsom",null,"Franklin",null,"Henniker",null,"Hill",null,"Hooksett",null,"Hopkinton",null,"Loudon",null,"Newbury",null,"New London",null,"Northfield",null,"Pembroke",null,"Pittsfield",null,"Salisbury",null,"Sutton",null,"Warner",null,"Webster",null,"Wilmot"]
[null,null,"Estimate","Margin Of Error","Estimate","Margin Of Error","Estimate","Margin Of Error","Estimate","Margin Of Error","Estimate","Margin Of Error","Estimate","Margin Of Error","Estimate","Margin Of Error","Estimate","Margin Of Error","Estimate","Margin Of Error","Estimate","Margin Of Error","Estimate","Margin Of Error","Estimate","Margin Of Error","Estimate","Margin Of Error","Estimate","Margin Of Error","Estimate","Margin Of Error","Estimate","Margin Of Error","Estimate","Margin Of Error","Estimate","Margin Of Error","Estimate","Margin Of Error","Estimate","Margin Of Error","Estimate","Margin Of Error","Estimate","Margin Of Error","Estimate","Margin Of Error","Estimate","Margin Of Error","Estimate","Margin Of Error","Estimate","Margin Of Error","Estimate","Margin Of Error"]
[null,"Total",1858,120,1227,85,1513,108,2817,143,859,87,1060,48,981,55,18663,406,614,69,1001,50,2044,125,4401,264,2011,143,506,60,5298,192,2409,125,2203,195,1736,110,2298,195,1953,122,2925,215,1822,168,632,70,1031,93,1414,109,875,69,809,73]
[]
[]
[]
[]
[null,"B25001. HOUSING UNITS"]
[null,"Universe:  HOUSING UNITS"]
[null,"Data Set: 2010-2014 American Community Survey 5-Year Estimates"]
[]
[null,null,"Allenstown",null,"Andover",null,"Boscawen",null,"Bow",null,"Bradford",null,"Canterbury",null,"Chichester",null,"Concord",null,"Danbury",null,"Dunbarton",null,"Epsom",null,"Franklin",null,"Henniker",null,"Hill",null,"Hooksett",null,"Hopkinton",null,"Loudon",null,"Newbury",null,"New London",null,"Northfield",null,"Pembroke",null,"Pittsfield",null,"Salisbury",null,"Sutton",null,"Warner",null,"Webster",null,"Wilmot"]
[null,null,"Estimate","Margin Of Error","Estimate","Margin Of Error","Estimate","Margin Of Error","Estimate","Margin Of Error","Estimate","Margin Of Error","Estimate","Margin Of Error","Estimate","Margin Of Error","Estimate","Margin Of Error","Estimate","Margin Of Error","Estimate","Margin Of Error","Estimate","Margin Of Error","Estimate","Margin Of Error","Estimate","Margin Of Error","Estimate","Margin Of Error","Estimate","Margin Of Error","Estimate","Margin Of Error","Estimate","Margin Of Error","Estimate","Margin Of Error","Estimate","Margin Of Error","Estimate","Margin Of Error","Estimate","Margin Of Error","Estimate","Margin Of Error","Estimate","Margin Of Error","Estimate","Margin Of Error","Estimate","Margin Of Error","Estimate","Margin Of Error","Estimate","Margin Of Error"]
[null,"Total",1812,101,1174,79,1400,158,2818,133,879,94,1045,46,1075,67,18272,372,696,69,1141,65,1850,125,4046,258,1992,181,532,61,5289,235,2360,146,2139,157,1620,120,2338,185,1759,115,3085,220,1642,135,633,66,1014,103,1393,110,877,71,708,65]
[]
[]
[]
[]
[null,"B25001. HOUSING UNITS"]
[null,"Universe:  HOUSING UNITS"]
[null,"Data Set: 2005-2009 American Community Survey 5-Year Estimates"]
[]
[null,null,"Allenstown",null,"Andover",null,"Boscawen",null,"Bow",null,"Bradford",null,"Canterbury",null,"Chichester",null,"Concord",null,"Danbury",null,"Dunbarton",null,"Epsom",null,"Franklin",null,"Henniker",null,"Hill",null,"Hooksett",null,"Hopkinton",null,"Loudon",null,"Newbury",null,"New London",null,"Northfield",null,"Pembroke",null,"Pittsfield",null,"Salisbury",null,"Sutton",null,"Warner",null,"Webster",null,"Wilmot"]
[null,null,"Estimate","Margin Of Error","Estimate","Margin Of Error","Estimate","Margin Of Error","Estimate","Margin Of Error","Estimate","Margin Of Error","Estimate","Margin Of Error","Estimate","Margin Of Error","Estimate","Margin Of Error","Estimate","Margin Of Error","Estimate","Margin Of Error","Estimate","Margin Of Error","Estimate","Margin Of Error","Estimate","Margin Of Error","Estimate","Margin Of Error","Estimate","Margin Of Error","Estimate","Margin Of Error","Estimate","Margin Of Error","Estimate","Margin Of Error","Estimate","Margin Of Error","Estimate","Margin Of Error","Estimate","Margin Of Error","Estimate","Margin Of Error","Estimate","Margin Of Error","Estimate","Margin Of Error","Estimate","Margin Of Error","Estimate","Margin Of Error","Estimate","Margin Of Error"]
[null,"Total",1897,142,1104,73,1469,209,2886,136,761,83,959,32,925,52,18440,496,688,63,1048,54,1750,128,3659,258,1970,182,449,47,4761,270,2473,135,1855,115,1353,93,2194,254,2023,175,3072,183,1745,112,495,51,949,88,1288,174,778,61,583,65]

{"sheet":"ACS_Table_B25003","index":40,"n_rows":42,"n_cols":56,"rows_kept":42,"cut":false,"hidden":true,"merged":[]}
[null,"B25003. TENURE"]
[null,"Universe:  OCCUPIED HOUSING UNITS"]
[null,"Data Set: 2015-2019 American Community Survey 5-Year Estimates"]
[]
[null,null,"Allenstown",null,"Andover",null,"Boscawen",null,"Bow",null,"Bradford",null,"Canterbury",null,"Chichester",null,"Concord",null,"Danbury",null,"Dunbarton",null,"Epsom",null,"Franklin",null,"Henniker",null,"Hill",null,"Hooksett",null,"Hopkinton",null,"Loudon",null,"Newbury",null,"New London",null,"Northfield",null,"Pembroke",null,"Pittsfield",null,"Salisbury",null,"Sutton",null,"Warner",null,"Webster",null,"Wilmot"]
[null,null,"Estimate","Margin Of Error","Estimate","Margin Of Error","Estimate","Margin Of Error","Estimate","Margin Of Error","Estimate","Margin Of Error","Estimate","Margin Of Error","Estimate","Margin Of Error","Estimate","Margin Of Error","Estimate","Margin Of Error","Estimate","Margin Of Error","Estimate","Margin Of Error","Estimate","Margin Of Error","Estimate","Margin Of Error","Estimate","Margin Of Error","Estimate","Margin Of Error","Estimate","Margin Of Error","Estimate","Margin Of Error","Estimate","Margin Of Error","Estimate","Margin Of Error","Estimate","Margin Of Error","Estimate","Margin Of Error","Estimate","Margin Of Error","Estimate","Margin Of Error","Estimate","Margin Of Error","Estimate","Margin Of Error","Estimate","Margin Of Error","Estimate","Margin Of Error"]
[null,"Total:",1788,107,1054,90,1374,112,2715,130,647,67,970,60,969,55,17530,366,481,65,938,45,1787,124,3909,223,1805,127,373,48,5252,190,2193,126,2050,174,910,86,1551,161,1860,118,2690,164,1675,159,554,65,769,91,1144,96,760,72,704,71]
[null,"Owner occupied",1379,114,900,95,1086,143,2427,129,574,66,892,67,882,80,9252,428,439,66,878,53,1505,107,2480,205,1356,138,343,47,3968,225,1950,130,1759,181,846,86,1256,148,1390,132,2108,223,1076,143,515,64,679,82,757,99,701,70,555,76]
[null,"Renter occupied",409,114,154,72,288,107,288,76,73,31,78,40,87,53,8278,412,42,17,60,26,282,82,1429,186,449,115,30,21,1284,204,243,100,291,138,64,26,295,90,470,109,582,186,599,147,39,26,90,36,387,91,59,29,149,52]
[]
[]
[]
[]
[]
[]
[]
[]
[]
[]
[]
[]
[null,"B25003. TENURE"]
[null,"Universe:  OCCUPIED HOUSING UNITS"]
[null,"Data Set: 2010-2014 American Community Survey 5-Year Estimates"]
[]
[null,null,"Allenstown",null,"Andover",null,"Boscawen",null,"Bow",null,"Bradford",null,"Canterbury",null,"Chichester",null,"Concord",null,"Danbury",null,"Dunbarton",null,"Epsom",null,"Franklin",null,"Henniker",null,"Hill",null,"Hooksett",null,"Hopkinton",null,"Loudon",null,"Newbury",null,"New London",null,"Northfield",null,"Pembroke",null,"Pittsfield",null,"Salisbury",null,"Sutton",null,"Warner",null,"Webster",null,"Wilmot"]
[null,null,"Estimate","Margin Of Error","Estimate","Margin Of Error","Estimate","Margin Of Error","Estimate","Margin Of Error","Estimate","Margin Of Error","Estimate","Margin Of Error","Estimate","Margin Of Error","Estimate","Margin Of Error","Estimate","Margin Of Error","Estimate","Margin Of Error","Estimate","Margin Of Error","Estimate","Margin Of Error","Estimate","Margin Of Error","Estimate","Margin Of Error","Estimate","Margin Of Error","Estimate","Margin Of Error","Estimate","Margin Of Error","Estimate","Margin Of Error","Estimate","Margin Of Error","Estimate","Margin Of Error","Estimate","Margin Of Error","Estimate","Margin Of Error","Estimate","Margin Of Error","Estimate","Margin Of Error","Estimate","Margin Of Error","Estimate","Margin Of Error","Estimate","Margin Of Error"]
[null,"Total:",1787,88,975,87,1270,147,2777,133,684,77,894,64,996,62,17141,334,533,70,1053,59,1809,122,3379,195,1598,145,445,57,5216,237,2122,112,2013,139,756,95,1734,157,1729,104,2787,148,1525,127,553,62,786,99,1123,84,767,66,588,67]
[null,"Owner occupied",1252,116,839,98,884,148,2460,156,605,75,854,63,898,73,9376,354,438,65,917,86,1523,136,2015,220,1071,155,413,56,4473,271,1846,116,1693,133,716,95,1365,137,1313,123,1986,184,901,126,512,61,694,97,871,62,670,58,478,60]
[null,"Renter occupied",535,128,136,60,386,104,317,80,79,33,40,21,98,50,7765,311,95,43,136,55,286,108,1364,180,527,116,32,23,743,144,276,113,320,119,40,29,369,114,416,87,801,168,624,113,41,25,92,38,252,84,97,46,110,42]
[]
[]
[]
[null,"B25003. TENURE"]
[null,"Universe:  OCCUPIED HOUSING UNITS"]
[null,"Data Set: 2005-2009 American Community Survey 5-Year Estimates"]
[]
[null,null,"Allenstown",null,"Andover",null,"Boscawen",null,"Bow",null,"Bradford",null,"Canterbury",null,"Chichester",null,"Concord",null,"Danbury",null,"Dunbarton",null,"Epsom",null,"Franklin",null,"Henniker",null,"Hill",null,"Hooksett",null,"Hopkinton",null,"Loudon",null,"Newbury",null,"New London",null,"Northfield",null,"Pembroke",null,"Pittsfield",null,"Salisbury",null,"Sutton",null,"Warner",null,"Webster",null,"Wilmot"]
[null,null,"Estimate","Margin Of Error","Estimate","Margin Of Error","Estimate","Margin Of Error","Estimate","Margin Of Error","Estimate","Margin Of Error","Estimate","Margin Of Error","Estimate","Margin Of Error","Estimate","Margin Of Error","Estimate","Margin Of Error","Estimate","Margin Of Error","Estimate","Margin Of Error","Estimate","Margin Of Error","Estimate","Margin Of Error","Estimate","Margin Of Error","Estimate","Margin Of Error","Estimate","Margin Of Error","Estimate","Margin Of Error","Estimate","Margin Of Error","Estimate","Margin Of Error","Estimate","Margin Of Error","Estimate","Margin Of Error","Estimate","Margin Of Error","Estimate","Margin Of Error","Estimate","Margin Of Error","Estimate","Margin Of Error","Estimate","Margin Of Error","Estimate","Margin Of Error"]
[null,"Total:",1824,124,947,86,1317,163,2845,132,510,73,896,50,918,51,17349,501,528,75,960,53,1445,110,3300,222,1776,167,392,48,4638,239,2237,119,1751,105,821,88,1564,226,1884,138,2907,166,1652,109,438,49,680,92,1010,162,669,56,502,64]
[null,"Owner occupied",1176,172,790,93,1086,141,2579,139,426,68,798,59,901,53,9529,368,446,70,885,60,1203,113,1984,199,1250,163,318,44,4002,224,2099,128,1583,130,768,90,1343,183,1443,150,2058,183,1126,119,421,46,625,93,798,137,609,57,481,65]
[null,"Renter occupied",648,178,157,72,231,85,266,84,84,34,98,41,17,19,7820,437,82,34,75,37,242,82,1316,169,526,139,74,34,636,116,138,75,168,84,53,26,221,123,441,105,849,136,526,110,17,17,55,30,212,67,60,30,21,21]

{"sheet":"ACS_Table_B25004","index":41,"n_rows":56,"n_cols":56,"rows_kept":56,"cut":false,"hidden":true,"merged":[]}
[null,"B25004. VACANCY STATUS"]
[null,"Universe:  VACANT HOUSING UNITS"]
[null,"Data Set: 2015-2019 American Community Survey 5-Year Estimates"]
[]
[null,null,"Allenstown",null,"Andover",null,"Boscawen",null,"Bow",null,"Bradford",null,"Canterbury",null,"Chichester",null,"Concord",null,"Danbury",null,"Dunbarton",null,"Epsom",null,"Franklin",null,"Henniker",null,"Hill",null,"Hooksett",null,"Hopkinton",null,"Loudon",null,"Newbury",null,"New London",null,"Northfield",null,"Pembroke",null,"Pittsfield",null,"Salisbury",null,"Sutton",null,"Warner",null,"Webster",null,"Wilmot"]
[null,null,"Estimate","Margin Of Error","Estimate","Margin Of Error","Estimate","Margin Of Error","Estimate","Margin Of Error","Estimate","Margin Of Error","Estimate","Margin Of Error","Estimate","Margin Of Error","Estimate","Margin Of Error","Estimate","Margin Of Error","Estimate","Margin Of Error","Estimate","Margin Of Error","Estimate","Margin Of Error","Estimate","Margin Of Error","Estimate","Margin Of Error","Estimate","Margin Of Error","Estimate","Margin Of Error","Estimate","Margin Of Error","Estimate","Margin Of Error","Estimate","Margin Of Error","Estimate","Margin Of Error","Estimate","Margin Of Error","Estimate","Margin Of Error","Estimate","Margin Of Error","Estimate","Margin Of Error","Estimate","Margin Of Error","Estimate","Margin Of Error","Estimate","Margin Of Error"]
[null,"Total:",70,62,173,63,139,72,102,72,212,53,90,57,12,12,1133,227,133,54,63,34,257,97,492,153,206,82,133,48,46,52,216,105,153,117,826,106,747,126,93,66,235,148,147,91,78,38,262,56,270,71,115,39,105,42]
[null,"For rent",0,11,0,11,0,11,0,16,0,11,0,11,0,11,232,119,0,11,0,11,0,11,81,69,23,38,0,11,0,18,0,16,0,16,30,33,35,39,0,11,23,36,44,51,12,18,0,11,31,30,0,11,10,15]
[null,"Rented, not occupied",9,15,0,11,26,39,0,16,0,11,0,11,0,11,54,60,0,11,0,11,0,11,26,39,21,33,0,11,15,24,0,16,0,16,0,11,15,24,0,11,0,16,0,11,0,11,0,11,0,11,0,11,0,11]
[null,"For sale only",37,45,6,8,0,11,0,16,6,6,0,11,0,11,64,41,0,11,0,11,122,93,27,44,0,11,0,11,0,18,36,56,0,16,23,27,32,35,8,14,0,16,22,34,0,11,8,12,49,38,3,4,0,11]
[null,"Sold, not occupied",0,11,0,11,11,16,23,37,0,11,38,42,0,11,67,60,0,11,0,11,0,11,17,29,0,11,0,11,0,18,0,16,16,28,14,23,16,26,0,11,0,16,0,11,0,11,9,15,0,11,0,11,8,13]
[null,"For seasonal, recreational, or occasional use",0,11,151,58,37,48,0,16,169,48,52,41,12,12,199,90,86,42,63,34,85,62,131,101,104,60,114,44,0,18,140,72,61,90,705,95,591,111,0,11,109,114,46,54,66,35,212,60,110,50,75,33,60,38]
[null,"For migrant workers",0,11,0,11,0,11,0,16,0,11,0,11,0,11,0,24,0,11,0,11,0,11,0,16,0,11,0,11,0,18,0,16,0,16,0,11,0,11,0,11,0,16,0,11,0,11,0,11,0,11,0,11,0,11]
[null,"Other vacant",24,37,16,25,65,57,79,59,37,27,0,11,0,11,517,154,47,33,0,11,50,55,210,124,58,52,19,21,31,46,40,64,76,98,54,40,58,56,85,65,103,108,35,41,0,11,33,25,80,47,37,25,27,24]
[]
[]
[]
[]
[]
[]
[]
[null,"B25004. VACANCY STATUS"]
[null,"Universe:  VACANT HOUSING UNITS"]
[null,"Data Set: 2010-2014 American Community Survey 5-Year Estimates"]
[]
[null,null,"Allenstown",null,"Andover",null,"Boscawen",null,"Bow",null,"Bradford",null,"Canterbury",null,"Chichester",null,"Concord",null,"Danbury",null,"Dunbarton",null,"Epsom",null,"Franklin",null,"Henniker",null,"Hill",null,"Hooksett",null,"Hopkinton",null,"Loudon",null,"Newbury",null,"New London",null,"Northfield",null,"Pembroke",null,"Pittsfield",null,"Salisbury",null,"Sutton",null,"Warner",null,"Webster",null,"Wilmot"]
[null,null,"Estimate","Margin Of Error","Estimate","Margin Of Error","Estimate","Margin Of Error","Estimate","Margin Of Error","Estimate","Margin Of Error","Estimate","Margin Of Error","Estimate","Margin Of Error","Estimate","Margin Of Error","Estimate","Margin Of Error","Estimate","Margin Of Error","Estimate","Margin Of Error","Estimate","Margin Of Error","Estimate","Margin Of Error","Estimate","Margin Of Error","Estimate","Margin Of Error","Estimate","Margin Of Error","Estimate","Margin Of Error","Estimate","Margin Of Error","Estimate","Margin Of Error","Estimate","Margin Of Error","Estimate","Margin Of Error","Estimate","Margin Of Error","Estimate","Margin Of Error","Estimate","Margin Of Error","Estimate","Margin Of Error","Estimate","Margin Of Error","Estimate","Margin Of Error"]
[null,"Total:",25,39,199,66,130,65,41,46,195,52,151,56,79,40,1131,245,163,50,88,53,41,46,667,166,394,128,87,32,73,72,238,129,126,71,864,116,604,110,30,46,298,169,117,81,80,35,228,63,270,87,110,35,120,43]
[null,"For rent",0,11,0,11,19,29,0,15,0,11,0,11,10,15,363,146,0,11,0,11,16,25,225,133,51,57,0,11,23,36,0,15,38,57,13,21,0,11,0,11,0,15,25,41,0,11,9,14,0,11,0,11,5,7]
[null,"Rented, not occupied",0,11,0,11,0,11,0,15,0,11,0,11,16,25,173,93,0,11,0,11,0,11,0,15,66,62,0,11,0,17,0,15,0,15,0,11,0,11,0,11,29,44,23,37,0,11,8,13,0,11,0,11,0,11]
[null,"For sale only",0,11,13,19,0,11,0,15,12,15,33,29,23,27,78,89,14,16,37,37,0,11,35,43,0,11,16,19,36,57,39,61,0,15,46,40,78,41,0,11,11,18,26,42,0,11,28,26,33,36,0,11,4,8]
[null,"Sold, not occupied",0,11,0,11,28,43,23,38,9,14,0,11,0,11,22,35,9,14,0,11,0,11,0,15,0,11,0,11,0,17,41,67,0,15,0,11,26,29,0,11,40,59,0,11,0,11,8,13,0,11,0,11,0,11]
[null,"For seasonal, recreational, or occasional use",0,11,157,65,19,27,0,15,136,40,80,41,16,25,87,56,140,49,23,26,25,40,215,103,208,91,52,23,0,17,122,92,56,37,780,109,500,102,30,46,0,15,17,19,80,35,130,49,199,74,93,36,107,43]
[null,"For migrant workers",0,11,0,11,23,35,0,15,0,11,0,11,0,11,0,23,0,11,0,11,0,11,0,15,0,11,0,11,0,17,0,15,0,15,0,11,0,11,0,11,0,15,0,11,0,11,0,11,0,11,0,11,0,11]
[null,"Other vacant",25,39,29,31,41,43,18,28,38,28,38,35,14,21,408,171,0,11,28,37,0,11,192,106,69,61,19,18,14,16,36,59,32,37,25,22,0,11,0,11,218,157,26,40,0,11,45,27,38,37,17,17,4,7]
[]
[]
[]
[]
[]
[]
[]
[null,"B25004. VACANCY STATUS"]
[null,"Universe:  VACANT HOUSING UNITS"]
[null,"Data Set: 2005-2009 American Community Survey 5-Year Estimates"]
[]
[null,null,"Allenstown",null,"Andover",null,"Boscawen",null,"Bow",null,"Bradford",null,"Canterbury",null,"Chichester",null,"Concord",null,"Danbury",null,"Dunbarton",null,"Epsom",null,"Franklin",null,"Henniker",null,"Hill",null,"Hooksett",null,"Hopkinton",null,"Loudon",null,"Newbury",null,"New London",null,"Northfield",null,"Pembroke",null,"Pittsfield",null,"Salisbury",null,"Sutton",null,"Warner",null,"Webster",null,"Wilmot"]
[null,null,"Estimate","Margin Of Error","Estimate","Margin Of Error","Estimate","Margin Of Error","Estimate","Margin Of Error","Estimate","Margin Of Error","Estimate","Margin Of Error","Estimate","Margin Of Error","Estimate","Margin Of Error","Estimate","Margin Of Error","Estimate","Margin Of Error","Estimate","Margin Of Error","Estimate","Margin Of Error","Estimate","Margin Of Error","Estimate","Margin Of Error","Estimate","Margin Of Error","Estimate","Margin Of Error","Estimate","Margin Of Error","Estimate","Margin Of Error","Estimate","Margin Of Error","Estimate","Margin Of Error","Estimate","Margin Of Error","Estimate","Margin Of Error","Estimate","Margin Of Error","Estimate","Margin Of Error","Estimate","Margin Of Error","Estimate","Margin Of Error","Estimate","Margin Of Error"]
[null,"Total:",318,73,476,99,116,31,60,27,382,88,400,79,1037,146,972,117,516,111,95,26,101,38,39,19,302,165,282,72,282,55,182,39,255,109,436,109,369,66,727,106,77,32,342,171,1920,111,125,44,390,161,0,114,102,35]
[null,"For rent",0,114,21,33,65,92,0,114,0,114,0,114,0,114,473,165,0,114,0,114,0,114,12,19,25,39,0,114,46,72,0,114,0,114,5,7,0,114,46,55,0,114,28,45,0,114,4,8,19,29,0,114,0,114]
[null,"Rented, not occupied",38,59,0,114,0,114,0,114,0,114,0,114,0,114,80,78,0,114,0,114,13,21,29,46,0,114,0,114,0,114,0,114,0,114,0,114,0,114,0,114,0,114,0,114,0,114,5,8,11,17,8,14,0,114]
[null,"For sale only",35,56,0,114,0,114,0,114,19,15,0,114,0,114,70,75,13,13,0,114,72,80,71,58,0,114,10,15,45,71,53,82,0,114,19,29,20,33,0,114,96,101,0,114,7,7,16,19,7,10,0,114,3,6]
[null,"Sold, not occupied",0,114,0,114,0,114,13,22,9,15,0,114,0,114,67,61,0,114,0,114,0,114,30,43,0,114,0,114,0,114,0,114,10,16,5,7,43,50,0,114,0,114,38,55,0,114,19,18,7,10,0,114,0,114]
[null,"For seasonal, recreational, or occasional use",0,114,103,57,0,114,0,114,188,44,50,43,7,12,212,189,119,36,73,45,73,66,120,90,118,86,32,24,0,114,136,118,57,46,471,78,548,148,65,72,36,50,0,114,45,28,187,53,197,83,64,29,73,28]
[null,"For migrant workers",0,114,0,114,0,114,0,114,0,114,0,114,0,114,0,114,0,114,0,114,0,114,0,114,0,114,0,114,0,114,0,114,0,114,0,114,0,114,0,114,0,114,0,114,0,114,0,114,0,114,0,114,0,114]
[null,"Other vacant",0,114,33,34,87,70,28,41,35,22,13,20,0,114,189,108,28,24,15,16,147,106,97,81,51,59,15,17,32,50,47,67,37,48,32,26,19,31,28,43,33,50,27,44,5,9,38,26,37,40,37,28,5,8]

{"sheet":"ACS_Table_B25008","index":42,"n_rows":51,"n_cols":56,"rows_kept":51,"cut":false,"hidden":true,"merged":[]}
[null,"B25008. TOTAL POPULATION IN OCCUPIED HOUSING UNITS BY TENURE"]
[null,"Universe:  TOTAL POPULATION IN OCCUPIED HOUSING UNITS"]
[null,"Data Set: 2015-2019 American Community Survey 5-Year Estimates"]
[]
[null,null,"Allenstown",null,"Andover",null,"Boscawen",null,"Bow",null,"Bradford",null,"Canterbury",null,"Chichester",null,"Concord",null,"Danbury",null,"Dunbarton",null,"Epsom",null,"Franklin",null,"Henniker",null,"Hill",null,"Hooksett",null,"Hopkinton",null,"Loudon",null,"Newbury",null,"New London",null,"Northfield",null,"Pembroke",null,"Pittsfield",null,"Salisbury",null,"Sutton",null,"Warner",null,"Webster",null,"Wilmot"]
[null,null,"Estimate","Margin Of Error","Estimate","Margin Of Error","Estimate","Margin Of Error","Estimate","Margin Of Error","Estimate","Margin Of Error","Estimate","Margin Of Error","Estimate","Margin Of Error","Estimate","Margin Of Error","Estimate","Margin Of Error","Estimate","Margin Of Error","Estimate","Margin Of Error","Estimate","Margin Of Error","Estimate","Margin Of Error","Estimate","Margin Of Error","Estimate","Margin Of Error","Estimate","Margin Of Error","Estimate","Margin Of Error","Estimate","Margin Of Error","Estimate","Margin Of Error","Estimate","Margin Of Error","Estimate","Margin Of Error","Estimate","Margin Of Error","Estimate","Margin Of Error","Estimate","Margin Of Error","Estimate","Margin Of Error","Estimate","Margin Of Error","Estimate","Margin Of Error"]
[null,"Total:",4355,34,2700,281,3483,160,7862,25,1587,214,2344,148,2653,29,40170,489,1129,165,2827,19,4612,122,8388,103,4473,142,920,148,13443,170,5691,29,5534,19,2096,214,3363,191,4834,79,7187,32,4095,24,1422,182,1905,279,2765,118,1741,176,1632,216]
[null,"Owner occupied",3659,241,2297,238,2931,354,7154,315,1430,202,2245,157,2331,192,23909,957,1033,165,2658,84,3987,233,5516,383,3616,301,868,149,10585,565,5056,300,4993,270,2013,214,2879,239,3884,310,5837,490,2860,448,1292,162,1687,259,1919,260,1669,172,1295,225]
[null,"Renter occupied",696,237,403,231,552,290,708,312,157,86,99,54,322,189,16261,887,96,40,169,80,625,204,2872,378,857,266,52,33,2858,556,635,295,541,273,83,37,484,152,950,307,1350,490,1235,450,130,108,218,127,846,246,72,39,337,137]
[]
[]
[]
[]
[]
[]
[]
[]
[]
[]
[]
[]
[null,"B25008. TOTAL POPULATION IN OCCUPIED HOUSING UNITS BY TENURE"]
[null,"Universe:  TOTAL POPULATION IN OCCUPIED HOUSING UNITS"]
[null,"Data Set: 2010-2014 American Community Survey 5-Year Estimates"]
[]
[null,null,"Allenstown",null,"Andover",null,"Boscawen",null,"Bow",null,"Bradford",null,"Canterbury",null,"Chichester",null,"Concord",null,"Danbury",null,"Dunbarton",null,"Epsom",null,"Franklin",null,"Henniker",null,"Hill",null,"Hooksett",null,"Hopkinton",null,"Loudon",null,"Newbury",null,"New London",null,"Northfield",null,"Pembroke",null,"Pittsfield",null,"Salisbury",null,"Sutton",null,"Warner",null,"Webster",null,"Wilmot"]
[null,null,"Estimate","Margin Of Error","Estimate","Margin Of Error","Estimate","Margin Of Error","Estimate","Margin Of Error","Estimate","Margin Of Error","Estimate","Margin Of Error","Estimate","Margin Of Error","Estimate","Margin Of Error","Estimate","Margin Of Error","Estimate","Margin Of Error","Estimate","Margin Of Error","Estimate","Margin Of Error","Estimate","Margin Of Error","Estimate","Margin Of Error","Estimate","Margin Of Error","Estimate","Margin Of Error","Estimate","Margin Of Error","Estimate","Margin Of Error","Estimate","Margin Of Error","Estimate","Margin Of Error","Estimate","Margin Of Error","Estimate","Margin Of Error","Estimate","Margin Of Error","Estimate","Margin Of Error","Estimate","Margin Of Error","Estimate","Margin Of Error","Estimate","Margin Of Error"]
[null,"Total:",4276,42,2311,254,3446,335,7611,29,1706,205,2280,202,2544,18,39758,440,1243,186,2779,17,4493,92,8248,114,4212,168,1164,184,12879,153,5591,23,5342,18,1749,234,3547,199,4770,59,7121,29,4041,32,1406,161,2012,287,2724,44,1891,199,1358,180]
[null,"Owner occupied",3114,293,1974,268,2301,405,6926,258,1469,188,2222,203,2359,98,23939,808,974,153,2427,199,3815,355,5136,522,3045,379,1080,185,11465,423,5021,255,4567,304,1631,228,2960,263,3522,333,5565,405,2604,334,1298,155,1815,277,2361,122,1648,160,1103,157]
[null,"Renter occupied",1162,288,337,187,1145,362,685,256,237,109,58,35,185,97,15819,800,269,147,352,198,678,344,3112,528,1167,344,84,61,1414,402,570,254,775,305,118,105,587,203,1248,332,1556,404,1437,334,108,80,197,88,363,114,243,127,255,107]
[]
[]
[]
[]
[]
[]
[]
[]
[]
[]
[]
[]
[null,"B25008. TOTAL POPULATION IN OCCUPIED HOUSING UNITS BY TENURE"]
[null,"Universe:  TOTAL POPULATION IN OCCUPIED HOUSING UNITS"]
[null,"Data Set: 2005-2009 American Community Survey 5-Year Estimates"]
[]
[null,null,"Allenstown",null,"Andover",null,"Boscawen",null,"Bow",null,"Bradford",null,"Canterbury",null,"Chichester",null,"Concord",null,"Danbury",null,"Dunbarton",null,"Epsom",null,"Franklin",null,"Henniker",null,"Hill",null,"Hooksett",null,"Hopkinton",null,"Loudon",null,"Newbury",null,"New London",null,"Northfield",null,"Pembroke",null,"Pittsfield",null,"Salisbury",null,"Sutton",null,"Warner",null,"Webster",null,"Wilmot"]
[null,null,"Estimate","Margin Of Error","Estimate","Margin Of Error","Estimate","Margin Of Error","Estimate","Margin Of Error","Estimate","Margin Of Error","Estimate","Margin Of Error","Estimate","Margin Of Error","Estimate","Margin Of Error","Estimate","Margin Of Error","Estimate","Margin Of Error","Estimate","Margin Of Error","Estimate","Margin Of Error","Estimate","Margin Of Error","Estimate","Margin Of Error","Estimate","Margin Of Error","Estimate","Margin Of Error","Estimate","Margin Of Error","Estimate","Margin Of Error","Estimate","Margin Of Error","Estimate","Margin Of Error","Estimate","Margin Of Error","Estimate","Margin Of Error","Estimate","Margin Of Error","Estimate","Margin Of Error","Estimate","Margin Of Error","Estimate","Margin Of Error","Estimate","Margin Of Error"]
[null,"Total:",4956,29,2279,210,3542,210,8053,35,1237,178,2347,168,2533,28,39483,753,1351,245,2624,62,4462,174,8487,304,4260,365,1174,186,12559,373,5603,25,5141,17,2293,294,3680,378,5101,24,7335,40,4286,132,1203,126,1700,303,2553,333,1807,147,1267,178]
[null,"Owner occupied",3337,535,1894,194,3118,259,7654,171,1043,172,2163,191,2499,43,24104,849,1118,212,2429,130,3758,325,5232,562,3426,412,896,144,11201,463,5324,203,4596,318,2178,296,3322,381,4008,346,5499,432,3012,340,1160,119,1585,305,2103,299,1709,149,1241,180]
[null,"Renter occupied",1619,534,385,194,424,172,399,164,194,85,184,96,34,36,15379,894,233,129,195,117,704,282,3255,569,834,269,278,148,1358,331,279,203,545,318,115,61,358,211,1093,347,1836,432,1274,342,43,41,115,69,450,165,98,54,26,27]

{"sheet":"ACS_Table_B25024","index":43,"n_rows":78,"n_cols":56,"rows_kept":78,"cut":false,"hidden":true,"merged":[]}
[null,"B25024. UNITS IN STRUCTURE "]
[null,"Universe:  HOUSING UNITS"]
[null,"Data Set: 2015-2019 American Community Survey 5-Year Estimates"]
[]
[null,null,"Allenstown",null,"Andover",null,"Boscawen",null,"Bow",null,"Bradford",null,"Canterbury",null,"Chichester",null,"Concord",null,"Danbury",null,"Dunbarton",null,"Epsom",null,"Franklin",null,"Henniker",null,"Hill",null,"Hooksett",null,"Hopkinton",null,"Loudon",null,"Newbury",null,"New London",null,"Northfield",null,"Pembroke",null,"Pittsfield",null,"Salisbury",null,"Sutton",null,"Warner",null,"Webster",null,"Wilmot"]
[null,null,"Estimate","Margin Of Error","Estimate","Margin Of Error","Estimate","Margin Of Error","Estimate","Margin Of Error","Estimate","Margin Of Error","Estimate","Margin Of Error","Estimate","Margin Of Error","Estimate","Margin Of Error","Estimate","Margin Of Error","Estimate","Margin Of Error","Estimate","Margin Of Error","Estimate","Margin Of Error","Estimate","Margin Of Error","Estimate","Margin Of Error","Estimate","Margin Of Error","Estimate","Margin Of Error","Estimate","Margin Of Error","Estimate","Margin Of Error","Estimate","Margin Of Error","Estimate","Margin Of Error","Estimate","Margin Of Error","Estimate","Margin Of Error","Estimate","Margin Of Error","Estimate","Margin Of Error","Estimate","Margin Of Error","Estimate","Margin Of Error","Estimate","Margin Of Error"]
[null,"Total:",1858,120,1227,85,1513,108,2817,143,859,87,1060,48,981,55,18663,406,614,69,1001,50,2044,125,4401,264,2011,143,506,60,5298,192,2409,125,2203,195,1736,110,2298,195,1953,122,2925,215,1822,168,632,70,1031,93,1414,109,875,69,809,73]
[null,"1, detached",701,117,1086,95,1005,154,2520,128,802,87,913,69,852,73,7798,329,553,67,950,54,1435,155,2613,199,1317,147,426,55,3284,213,2005,142,1864,189,1636,116,1731,167,1270,133,1764,243,1145,175,603,73,988,88,1044,110,830,71,721,74]
[null,"1, attached",119,58,19,20,9,14,102,48,7,7,39,41,16,18,1247,190,3,5,25,18,78,37,25,27,98,52,3,4,650,130,83,49,51,58,14,12,197,76,34,40,154,115,90,109,0,11,0,11,22,22,3,4,4,6]
[null,2,115,77,47,47,110,81,0,16,12,19,63,48,31,23,1457,188,4,5,10,10,106,65,392,142,154,79,7,7,159,72,54,48,51,75,29,26,55,46,27,24,343,159,25,19,0,11,38,22,43,32,0,11,34,21]
[null,"3 or 4",96,58,28,26,73,46,18,23,16,13,0,11,24,22,1606,213,3,4,12,13,41,31,470,154,63,46,0,11,247,130,51,61,12,19,6,8,113,61,91,64,232,127,219,104,4,5,5,8,106,57,0,11,4,5]
[null,"5 to 9",185,85,0,11,104,95,28,42,0,11,0,11,0,11,1270,224,0,11,4,6,35,40,391,121,201,105,0,11,207,76,71,73,0,16,7,11,32,33,129,77,205,140,174,85,0,11,0,11,78,50,0,11,30,19]
[null,"10 to 19",34,54,11,13,30,35,0,16,5,7,0,11,0,11,1496,252,0,11,0,11,0,11,141,80,71,59,0,11,77,69,0,16,0,16,0,11,0,11,67,60,0,16,17,14,0,11,0,11,35,35,15,18,0,11]
[null,"20 to 49",47,25,0,11,36,44,52,37,0,11,0,11,0,11,1844,290,0,11,0,11,0,11,103,58,0,11,0,11,348,92,0,16,57,44,21,13,160,58,123,111,0,16,56,63,0,11,0,11,15,16,0,11,0,11]
[null,"50 or more",2,7,0,11,0,11,89,38,0,11,0,11,0,11,994,192,0,11,0,11,20,16,76,64,0,11,0,11,146,80,0,16,0,16,0,11,0,11,0,11,76,52,17,14,0,11,0,11,0,11,0,11,0,11]
[null,"Mobile home",559,107,36,22,146,70,8,13,17,16,45,30,58,51,951,155,51,25,0,11,329,105,190,91,107,66,70,35,180,65,145,55,168,84,23,28,10,17,203,85,151,107,79,44,25,21,0,11,71,40,27,19,16,20]
[null,"Boat, RV, van, etc.",0,11,0,11,0,11,0,16,0,11,0,11,0,11,0,24,0,11,0,11,0,11,0,16,0,11,0,11,0,18,0,16,0,16,0,11,0,11,9,13,0,16,0,11,0,11,0,11,0,11,0,11,0,11]
[]
[null,"Calculated B25024. UNITS IN STRUCTURE "]
[null,"Universe:  HOUSING UNITS"]
[null,"Data Set: 2015-2019 American Community Survey 5-Year Estimates"]
[]
[null,null,"Alton",null,"Barnstead",null,"Belmont",null,"Center Harbor",null,"Gilford",null,"Gilmanton",null,"Laconia",null,"Meredith",null,"New Hampton",null,"Sanbornton",null,"Tilton"]
[null," ","Estimate","Margin of Error","Estimate","Margin of Error","Estimate","Margin of Error","Estimate","Margin of Error","Estimate","Margin of Error","Estimate","Margin of Error","Estimate","Margin of Error","Estimate","Margin of Error","Estimate","Margin of Error","Estimate","Margin of Error","Estimate","Margin of Error"]
[null,"Total:",{"$f":"C6","v":"Estimate"},"Margin Of Error","Estimate","Margin Of Error","Estimate","Margin Of Error","Estimate","Margin Of Error","Estimate","Margin Of Error","Estimate","Margin Of Error","Estimate","Margin Of Error","Estimate","Margin Of Error","Estimate","Margin Of Error","Estimate","Margin Of Error","Estimate","Margin Of Error"]
[null,"Single Family",1858,120,1227,85,1513,108,2817,143,859,87,1060,48,981,55,18663,406,614,69,1001,50,2044,125]
[null,"Multi-Family",{"$f":"C8+C9+C10+C11+C12+C13+C14","v":1297},{"$f":"SQRT((D8^2)+(D9^2)+(D10^2)+(D11^2)+(D12^2)+(D13^2)+(D14^2))","v":192.64475077198443},{"$f":"E8+E9+E10+E11+E12+E13+E14","v":1191},{"$f":"SQRT((F8^2)+(F9^2)+(F10^2)+(F11^2)+(F12^2)+(F13^2)+(F14^2))","v":112.78741064498288},{"$f":"G8+G9+G10+G11+G12+G13+G14","v":1367},{"$f":"SQRT((H8^2)+(H9^2)+(H10^2)+(H11^2)+(H12^2)+(H13^2)+(H14^2))","v":211.60103969498826},{"$f":"I8+I9+I10+I11+I12+I13+I14","v":2720},{"$f":"SQRT((J8^2)+(J9^2)+(J10^2)+(J11^2)+(J12^2)+(J13^2)+(J14^2))","v":151.20185184051152},{"$f":"K8+K9+K10+K11+K12+K13+K14","v":842},{"$f":"SQRT((L8^2)+(L9^2)+(L10^2)+(L11^2)+(L12^2)+(L13^2)+(L14^2))","v":91.864029957323339},{"$f":"M8+M9+M10+M11+M12+M13+M14","v":1015},{"$f":"SQRT((N8^2)+(N9^2)+(N10^2)+(N11^2)+(N12^2)+(N13^2)+(N14^2))","v":96.072888995803595},{"$f":"O8+O9+O10+O11+O12+O13+O14","v":923},{"$f":"SQRT((P8^2)+(P9^2)+(P10^2)+(P11^2)+(P12^2)+(P13^2)+(P14^2))","v":83.839131674892727},{"$f":"Q8+Q9+Q10+Q11+Q12+Q13+Q14","v":16718},{"$f":"SQRT((R8^2)+(R9^2)+(R10^2)+(R11^2)+(R12^2)+(R13^2)+(R14^2))","v":650.25687232046994},{"$f":"S8+S9+S10+S11+S12+S13+S14","v":563},{"$f":"SQRT((T8^2)+(T9^2)+(T10^2)+(T11^2)+(T12^2)+(T13^2)+(T14^2))","v":70.128453569146956},{"$f":"U8+U9+U10+U11+U12+U13+U14","v":1001},{"$f":"SQRT((V8^2)+(V9^2)+(V10^2)+(V11^2)+(V12^2)+(V13^2)+(V14^2))","v":61.538605769061746},{"$f":"W8+W9+W10+W11+W12+W13+W14","v":1695},{"$f":"SQRT((X8^2)+(X9^2)+(X10^2)+(X11^2)+(X12^2)+(X13^2)+(X14^2))","v":180.06110074083185}]
[null,"Mobile Home & Other",{"$f":"C15+C16","v":561},{"$f":"SQRT((D15^2)+(D16^2))","v":107.22872749408155},{"$f":"E15+E16","v":36},{"$f":"SQRT((F15^2)+(F16^2))","v":24.596747752497688},{"$f":"G15+G16","v":146},{"$f":"SQRT((H15^2)+(H16^2))","v":70.859014952227497},{"$f":"I15+I16","v":97},{"$f":"SQRT((J15^2)+(J16^2))","v":40.162171256046406},{"$f":"K15+K16","v":17},{"$f":"SQRT((L15^2)+(L16^2))","v":19.416487838947599},{"$f":"M15+M16","v":45},{"$f":"SQRT((N15^2)+(N16^2))","v":31.953090617340916},{"$f":"O15+O16","v":58},{"$f":"SQRT((P15^2)+(P16^2))","v":52.172789842982326},{"$f":"Q15+Q16","v":1945},{"$f":"SQRT((R15^2)+(R16^2))","v":246.75696545386515},{"$f":"S15+S16","v":51},{"$f":"SQRT((T15^2)+(T16^2))","v":27.313000567495326},{"$f":"U15+U16","v":0},{"$f":"SQRT((V15^2)+(V16^2))","v":15.556349186104045},{"$f":"W15+W16","v":349},{"$f":"SQRT((X15^2)+(X16^2))","v":106.21205204683694}]
[]
[]
[]
[]
[]
[]
[]
[]
[]
[]
[]
[]
[]
[]
[]
[]
[]
[]
[]
[]
[]
[]
[]
[]
[]
[]
[]
[]
[null,"Calculated B25024. UNITS IN STRUCTURE "]
[null,"Universe:  HOUSING UNITS"]
[null,"Data Set: 2010-2014 American Community Survey 5-Year Estimates"]
[]
[null,null,"Allenstown",null,"Andover",null,"Boscawen",null,"Bow",null,"Bradford",null,"Canterbury",null,"Chichester",null,"Concord",null,"Danbury",null,"Dunbarton",null,"Epsom",null,"Franklin",null,"Henniker",null,"Hill",null,"Hooksett",null,"Hopkinton",null,"Loudon",null,"Newbury",null,"New London",null,"Northfield",null,"Pembroke",null,"Pittsfield",null,"Salisbury",null,"Sutton",null,"Warner",null,"Webster",null,"Wilmot"]
[null,null,"Estimate","Margin Of Error","Estimate","Margin Of Error","Estimate","Margin Of Error","Estimate","Margin Of Error","Estimate","Margin Of Error","Estimate","Margin Of Error","Estimate","Margin Of Error","Estimate","Margin Of Error","Estimate","Margin Of Error","Estimate","Margin Of Error","Estimate","Margin Of Error","Estimate","Margin Of Error","Estimate","Margin Of Error","Estimate","Margin Of Error","Estimate","Margin Of Error","Estimate","Margin Of Error","Estimate","Margin Of Error","Estimate","Margin Of Error","Estimate","Margin Of Error","Estimate","Margin Of Error","Estimate","Margin Of Error","Estimate","Margin Of Error","Estimate","Margin Of Error","Estimate","Margin Of Error","Estimate","Margin Of Error","Estimate","Margin Of Error","Estimate","Margin Of Error"]
[null,"Total:",1812,101,1174,79,1400,158,2818,133,879,94,1045,46,1075,67,18272,372,696,69,1141,65,1850,125,4046,258,1992,181,532,61,5289,235,2360,146,2139,157,1620,120,2338,185,1759,115,3085,220,1642,135,633,66,1014,103,1393,110,877,71,708,65]
[null,"Single Family",741,108,1044,88,875,151,2599,130,803,93,992,50,896,91,7862,312,528,69,1067,74,1310,132,2311,242,1290,159,431,54,3656,243,1950,183,1700,143,1552,118,1815,159,1161,126,2007,186,950,140,613,66,982,101,1055,99,802,74,608,73]
[null,"Multi-Family",570,154.83216720048841,74,49.839743177508446,303,114.69960767151734,212,68.745908969188847,43,35.91656999213594,47,33.600595232822883,143,72.166474210674863,9405,598.76957170517608,31,34.899856733230294,59,39.344631145812002,122,57.991378669591917,1611,266.93819509392057,516,160.10309178776029,35,30.805843601498726,1423,243.6657546722559,287,147.94931564559533,206,113.81564040148436,57,37.483329627982627,512,119.4361754243663,416,112.34767465328332,1031,243.61034460794147,603,150.36954478883015,6,25.416530054277668,32,33.837848631377263,256,90.879040487892482,42,31.22498999199199,54,35]
[null,"Mobile Home & Other",501,93.648278147545241,56,36.687872655688281,222,68.8839603971781,7,19.849433241279208,33,20.248456731316587,6,14.866068747318506,36,31.953090617340916,1005,121.2023102090055,137,48.270073544588683,15,16.278820596099706,418,101.59724405711013,124,57.974132162542979,186,76.791926658991954,66,36.687872655688281,210,85.702975444263316,123,78.447434629820748,233,95.189285111298105,11,15.556349186104045,11,22.825424421026653,182,72.835430938520574,47,39.924929555354261,89,55.108982933819419,14,14.866068747318506,0,15.556349186104045,82,48.270073544588683,33,25.495097567963924,46,35.735136770411273]
[]
[]
[null,"Calculated B25024. UNITS IN STRUCTURE "]
[null,"Universe:  HOUSING UNITS"]
[null,"Data Set: 2005-2009 American Community Survey 5-Year Estimates"]
[]
[null,null,"Allenstown",null,"Andover",null,"Boscawen",null,"Bow",null,"Bradford",null,"Canterbury",null,"Chichester",null,"Concord",null,"Danbury",null,"Dunbarton",null,"Epsom",null,"Franklin",null,"Henniker",null,"Hill",null,"Hooksett",null,"Hopkinton",null,"Loudon",null,"Newbury",null,"New London",null,"Northfield",null,"Pembroke",null,"Pittsfield",null,"Salisbury",null,"Sutton",null,"Warner",null,"Webster",null,"Wilmot"]
[null,null,"Estimate","Margin Of Error","Estimate","Margin Of Error","Estimate","Margin Of Error","Estimate","Margin Of Error","Estimate","Margin Of Error","Estimate","Margin Of Error","Estimate","Margin Of Error","Estimate","Margin Of Error","Estimate","Margin Of Error","Estimate","Margin Of Error","Estimate","Margin Of Error","Estimate","Margin Of Error","Estimate","Margin Of Error","Estimate","Margin Of Error","Estimate","Margin Of Error","Estimate","Margin Of Error","Estimate","Margin Of Error","Estimate","Margin Of Error","Estimate","Margin Of Error","Estimate","Margin Of Error","Estimate","Margin Of Error","Estimate","Margin Of Error","Estimate","Margin Of Error","Estimate","Margin Of Error","Estimate","Margin Of Error","Estimate","Margin Of Error","Estimate","Margin Of Error"]
[null,"Total:",1897,142,1104,73,1469,209,2886,136,761,83,959,32,925,52,18440,496,688,63,1048,54,1750,128,3659,258,1970,182,449,47,4761,270,2473,135,1855,115,1353,93,2194,254,2023,175,3072,183,1745,112,495,51,949,88,1288,174,778,61,583,65]
[null,"Single Family",896,146,969,91,1075,179,2698,143,679,76,840,48,789,77,7749,370,602,67,966,66,1169,137,1972,212,1374,176,381,47,3043,228,2151,217,1534,138,1270,103,1656,211,1430,187,1917,204,1009,131,436,49,874,92,970,154,751,63,534,67]
[null,"Multi-Family",701,207.10383868967759,72,232.96995514443489,221,143.00349646075091,188,212.68991513468615,45,199.090431713832,85,257.74017925034508,73,231.66786570433112,9732,668.41304595287488,22,228.70942263055102,69,165.36323654307205,198,149.54597955144098,1508,253.51725779520416,440,211.04738804353869,13,255.24302145210552,1514,248.60209170479641,246,270.9594065538231,94,238.70064934976611,75,231.79516819813134,538,200.48191938426766,487,183.34939323597447,1068,305.50450078517667,604,201.4025819099646,17,255.48385467578964,75,165.5294535724685,221,133.10522153544539,10,255.18032839543099,38,199.33389074615485]
[null,"Mobile Home & Other",300,141.01418368376991,63,120.48651376813922,173,130.24976007655445,0,161.22034611053283,37,115.91807451816995,34,115.91807451816995,63,122.19656296312102,959,198.90952717253137,64,117.15374513859982,13,114.85643212288984,383,152.30561381643159,179,132.74034804836094,156,69.231495722683903,55,117.38824472663352,204,130.24976007655445,76,124.08464852672147,227,137.56816492197603,8,114.35471131527551,0,161.22034611053283,106,124.88794977899188,87,137.56816492197603,132,126.57408897558773,42,117.38824472663352,0,161.22034611053283,97,124.88794977899188,17,114.52947218947619,11,9.4339811320566032]

{"sheet":"ACS_Table_B25032","index":44,"n_rows":119,"n_cols":56,"rows_kept":119,"cut":false,"hidden":true,"merged":[]}
[null,"B25032. TENURE BY UNITS IN STRUCTURE "]
[null,"Universe:  OCCUPIED HOUSING UNITS"]
[null,"Data Set: 2015-2019 American Community Survey 5-Year Estimates"]
[]
[null,null,"Allenstown",null,"Andover",null,"Boscawen",null,"Bow",null,"Bradford",null,"Canterbury",null,"Chichester",null,"Concord",null,"Danbury",null,"Dunbarton",null,"Epsom",null,"Franklin",null,"Henniker",null,"Hill",null,"Hooksett",null,"Hopkinton",null,"Loudon",null,"Newbury",null,"New London",null,"Northfield",null,"Pembroke",null,"Pittsfield",null,"Salisbury",null,"Sutton",null,"Warner",null,"Webster",null,"Wilmot"]
[null,null,"Estimate","Margin Of Error","Estimate","Margin Of Error","Estimate","Margin Of Error","Estimate","Margin Of Error","Estimate","Margin Of Error","Estimate","Margin Of Error","Estimate","Margin Of Error","Estimate","Margin Of Error","Estimate","Margin Of Error","Estimate","Margin Of Error","Estimate","Margin Of Error","Estimate","Margin Of Error","Estimate","Margin Of Error","Estimate","Margin Of Error","Estimate","Margin Of Error","Estimate","Margin Of Error","Estimate","Margin Of Error","Estimate","Margin Of Error","Estimate","Margin Of Error","Estimate","Margin Of Error","Estimate","Margin Of Error","Estimate","Margin Of Error","Estimate","Margin Of Error","Estimate","Margin Of Error","Estimate","Margin Of Error","Estimate","Margin Of Error","Estimate","Margin Of Error"]
[null,"Total:",1788,107,1054,90,1374,112,2715,130,647,67,970,60,969,55,17530,366,481,65,938,45,1787,124,3909,223,1805,127,373,48,5252,190,2193,126,2050,174,910,86,1551,161,1860,118,2690,164,1675,159,554,65,769,91,1144,96,760,72,704,71]
[null,"Owner-occupied housing units:",1379,114,900,95,1086,143,2427,129,574,66,892,67,882,80,9252,428,439,66,878,53,1505,107,2480,205,1356,138,343,47,3968,225,1950,130,1759,181,846,86,1256,148,1390,132,2108,223,1076,143,515,64,679,82,757,99,701,70,555,76]
[null,"1, detached",620,107,852,98,890,148,2362,130,556,65,820,74,826,74,6957,321,391,60,850,51,1212,127,2169,185,1196,135,290,42,3145,225,1723,132,1559,165,809,85,1005,122,1177,116,1626,213,980,136,496,62,657,82,703,95,685,69,544,77]
[null,"1, attached",57,38,11,17,0,11,48,33,4,5,18,16,10,15,741,153,3,5,25,18,43,31,10,15,78,48,3,4,369,99,83,49,41,52,14,12,144,59,11,17,131,97,17,20,0,11,0,11,5,7,3,4,4,6]
[null,2,115,77,5,7,61,64,0,16,0,11,25,18,11,14,412,96,0,11,3,6,0,11,125,72,23,37,3,5,62,40,11,19,0,16,10,12,7,11,0,11,149,110,9,13,0,11,22,12,10,10,0,11,4,6]
[null,"3 or 4",9,14,0,11,0,11,9,16,6,7,0,11,0,11,106,44,0,11,0,11,0,11,16,25,0,11,0,11,112,100,0,16,12,19,6,8,45,42,10,15,35,40,0,11,4,5,0,11,0,11,0,11,0,11]
[null,"5 to 9",48,33,0,11,0,11,0,16,0,11,0,11,0,11,70,47,0,11,0,11,0,11,48,35,0,11,0,11,12,19,0,16,0,16,0,11,8,12,30,44,0,16,0,11,0,11,0,11,0,11,0,11,0,11]
[null,"10 to 19",0,11,0,11,0,11,0,16,0,11,0,11,0,11,82,80,0,11,0,11,0,11,0,16,0,11,0,11,20,30,0,16,0,16,0,11,0,11,0,11,0,16,0,11,0,11,0,11,0,11,0,11,0,11]
[null,"20 to 49",9,15,0,11,0,11,0,16,0,11,0,11,0,11,31,29,0,11,0,11,0,11,0,16,0,11,0,11,54,40,0,16,0,16,0,11,47,30,0,11,0,16,0,11,0,11,0,11,0,11,0,11,0,11]
[null,"50 or more",0,11,0,11,0,11,0,16,0,11,0,11,0,11,52,42,0,11,0,11,0,11,0,16,0,11,0,11,21,28,0,16,0,16,0,11,0,11,0,11,56,54,0,11,0,11,0,11,0,11,0,11,0,11]
[null,"Mobile home",521,101,32,21,135,65,8,13,8,8,29,25,35,40,801,132,45,24,0,11,250,93,112,54,59,48,47,29,173,63,133,52,147,83,7,10,0,11,162,78,111,97,70,38,15,13,0,11,39,23,13,9,3,4]
[null,"Boat, RV, van, etc.",0,11,0,11,0,11,0,16,0,11,0,11,0,11,0,24,0,11,0,11,0,11,0,16,0,11,0,11,0,18,0,16,0,16,0,11,0,11,0,11,0,16,0,11,0,11,0,11,0,11,0,11,0,11]
[null,"Renter-occupied housing units:",409,114,154,72,288,107,288,76,73,31,78,40,87,53,8278,412,42,17,60,26,282,82,1429,186,449,115,30,21,1284,204,243,100,291,138,64,26,295,90,470,109,582,186,599,147,39,26,90,36,387,91,59,29,149,52]
[null,"1, detached",48,41,77,54,27,28,84,51,43,23,19,18,26,21,542,146,29,18,37,19,62,43,241,97,29,34,26,20,108,69,66,43,152,96,37,22,120,54,47,40,52,55,42,34,29,22,79,34,146,54,30,22,90,44]
[null,"1, attached",62,48,8,11,9,14,54,33,3,6,21,34,6,9,428,118,0,11,0,11,35,25,5,12,20,20,0,11,281,121,0,16,10,17,0,11,22,35,0,11,23,36,73,105,0,11,0,11,17,21,0,11,0,11]
[null,2,0,11,26,40,23,26,0,16,12,19,38,39,14,16,888,156,4,5,7,7,84,57,225,126,92,69,4,5,97,65,43,45,51,75,6,9,9,14,27,24,194,117,16,18,0,11,11,18,6,9,0,11,21,15]
[null,"3 or 4",77,54,28,26,73,46,9,15,10,12,0,11,18,21,1366,216,3,4,12,13,41,31,396,132,53,43,0,11,135,90,51,61,0,16,0,11,23,25,81,62,140,84,219,104,0,11,0,11,96,56,0,11,4,5]
[null,"5 to 9",137,79,0,11,104,95,0,16,0,11,0,11,0,11,1081,209,0,11,4,6,13,22,343,124,178,97,0,11,195,73,71,73,0,16,0,11,24,30,99,67,136,107,150,83,0,11,0,11,67,49,0,11,21,16]
[null,"10 to 19",34,54,11,13,30,35,0,16,5,7,0,11,0,11,1368,228,0,11,0,11,0,11,81,57,50,50,0,11,57,56,0,16,0,16,0,11,0,11,67,60,0,16,17,14,0,11,0,11,35,35,15,18,0,11]
[null,"20 to 49",38,21,0,11,11,18,52,37,0,11,0,11,0,11,1734,274,0,11,0,11,0,11,92,53,0,11,0,11,279,88,0,16,57,44,21,13,97,57,123,111,0,16,56,63,0,11,0,11,15,16,0,11,0,11]
[null,"50 or more",2,7,0,11,0,11,89,38,0,11,0,11,0,11,813,177,0,11,0,11,20,16,46,41,0,11,0,11,125,78,0,16,0,16,0,11,0,11,0,11,20,31,17,14,0,11,0,11,0,11,0,11,0,11]
[null,"Mobile home",11,16,4,6,11,18,0,16,0,11,0,11,23,35,58,45,6,8,0,11,27,19,0,16,27,33,0,11,7,11,12,19,21,34,0,11,0,11,17,20,17,28,9,14,10,16,0,11,5,7,14,16,13,20]
[null,"Boat, RV, van, etc.",0,11,0,11,0,11,0,16,0,11,0,11,0,11,0,24,0,11,0,11,0,11,0,16,0,11,0,11,0,18,0,16,0,16,0,11,0,11,9,13,0,16,0,11,0,11,0,11,0,11,0,11,0,11]
[]
[]
[null,"Calculated B25032. TENURE BY UNITS IN STRUCTURE "]
[null,"Universe:  OCCUPIED HOUSING UNITS"]
[null,"Data Set: 2015-2019 American Community Survey 5-Year Estimates"]
[]
[null,null,"Allenstown",null,"Andover",null,"Boscawen",null,"Bow",null,"Bradford",null,"Canterbury",null,"Chichester",null,"Concord",null,"Danbury",null,"Dunbarton",null,"Epsom",null,"Franklin",null,"Henniker",null,"Hill",null,"Hooksett",null,"Hopkinton",null,"Loudon",null,"Newbury",null,"New London",null,"Northfield",null,"Pembroke",null,"Pittsfield",null,"Salisbury",null,"Sutton",null,"Warner",null,"Webster",null,"Wilmot"]
[null,null,"Estimate","Margin Of Error","Estimate","Margin Of Error","Estimate","Margin Of Error","Estimate","Margin Of Error","Estimate","Margin Of Error","Estimate","Margin Of Error","Estimate","Margin Of Error","Estimate","Margin Of Error","Estimate","Margin Of Error","Estimate","Margin Of Error","Estimate","Margin Of Error","Estimate","Margin Of Error","Estimate","Margin Of Error","Estimate","Margin Of Error","Estimate","Margin Of Error","Estimate","Margin Of Error","Estimate","Margin Of Error","Estimate","Margin Of Error","Estimate","Margin Of Error","Estimate","Margin Of Error","Estimate","Margin Of Error","Estimate","Margin Of Error","Estimate","Margin Of Error","Estimate","Margin Of Error","Estimate","Margin Of Error","Estimate","Margin Of Error","Estimate","Margin Of Error"]
[null,"Total:",{"$f":"C7","v":1788},107,{"$f":"E7","v":1054},90,1374,112,2715,130,647,67,970,60,969,55,17530,366,481,65,938,45,1787,124,3909,223,1805,127,373,48,5252,190,2193,126,2050,174,910,86,1551,161,1860,118,2690,164,1675,159,554,65,769,91,1144,96,760,72,704,71]
[null,"Owner-occupied housing units:",1379,114,{"$f":"E8","v":900},95,1086,143,2427,129,574,66,892,67,882,80,9252,428,439,66,878,53,1505,107,2480,205,1356,138,343,47,3968,225,1950,130,1759,181,846,86,1256,148,1390,132,2108,223,1076,143,515,64,679,82,757,99,701,70,555,76]
[null,"Single Family",{"$f":"C9","v":620},107,852,{"$f":"F9","v":98},890,148,2362,130,556,65,820,74,826,74,6957,321,391,60,850,51,1212,127,2169,185,1196,135,290,42,3145,225,1723,132,1559,165,809,85,1005,122,1177,116,1626,213,980,136,496,62,657,82,703,95,685,69,544,77]
[null,"Multi-Family",{"$f":"C10+C11+C12+C13+C14+C15+C16","v":238},{"$f":"SQRT((D10^2)+(D11^2)+(D12^2)+(D13^2)+(D14^2)+(D15^2)+(D16^2))","v":95.524865872714003},{"$f":"E10+E11+E12+E13+E14+E15+E16","v":16},{"$f":"SQRT((F10^2)+(F11^2)+(F12^2)+(F13^2)+(F14^2)+(F15^2)+(F16^2))","v":30.708305065568176},{"$f":"G10+G11+G12+G13+G14+G15+G16","v":61},{"$f":"SQRT((H10^2)+(H11^2)+(H12^2)+(H13^2)+(H14^2)+(H15^2)+(H16^2))","v":69.44062211702888},{"$f":"I10+I11+I12+I13+I14+I15+I16","v":57},{"$f":"SQRT((J10^2)+(J11^2)+(J12^2)+(J13^2)+(J14^2)+(J15^2)+(J16^2))","v":51.234753829797995},{"$f":"K10+K11+K12+K13+K14+K15+K16","v":10},{"$f":"SQRT((L10^2)+(L11^2)+(L12^2)+(L13^2)+(L14^2)+(L15^2)+(L16^2))","v":26.057628441590765},{"$f":"M10+M11+M12+M13+M14+M15+M16","v":43},{"$f":"SQRT((N10^2)+(N11^2)+(N12^2)+(N13^2)+(N14^2)+(N15^2)+(N16^2))","v":34.423828956117013},{"$f":"O10+O11+O12+O13+O14+O15+O16","v":21},{"$f":"SQRT((P10^2)+(P11^2)+(P12^2)+(P13^2)+(P14^2)+(P15^2)+(P16^2))","v":32.03123475609393},{"$f":"Q10+Q11+Q12+Q13+Q14+Q15+Q16","v":1494},{"$f":"SQRT((R10^2)+(R11^2)+(R12^2)+(R13^2)+(R14^2)+(R15^2)+(R16^2))","v":213.95092895334668},{"$f":"S10+S11+S12+S13+S14+S15+S16","v":3},{"$f":"SQRT((T10^2)+(T11^2)+(T12^2)+(T13^2)+(T14^2)+(T15^2)+(T16^2))","v":27.404379212089442},{"$f":"U10+U11+U12+U13+U14+U15+U16","v":28},{"$f":"SQRT((V10^2)+(V11^2)+(V12^2)+(V13^2)+(V14^2)+(V15^2)+(V16^2))","v":31.064449134018133},{"$f":"W10+W11+W12+W13+W14+W15+W16","v":43},{"$f":"SQRT((X10^2)+(X11^2)+(X12^2)+(X13^2)+(X14^2)+(X15^2)+(X16^2))","v":41.073105555825698},{"$f":"Y10+Y11+Y12+Y13+Y14+Y15+Y16","v":199},{"$f":"SQRT((Z10^2)+(Z11^2)+(Z12^2)+(Z13^2)+(Z14^2)+(Z15^2)+(Z16^2))","v":89.593526551866461},{"$f":"AA10+AA11+AA12+AA13+AA14+AA15+AA16","v":101},{"$f":"SQRT((AB10^2)+(AB11^2)+(AB12^2)+(AB13^2)+(AB14^2)+(AB15^2)+(AB16^2))","v":65.406421703071331},{"$f":"AC10+AC11+AC12+AC13+AC14+AC15+AC16","v":6},{"$f":"SQRT((AD10^2)+(AD11^2)+(AD12^2)+(AD13^2)+(AD14^2)+(AD15^2)+(AD16^2))","v":25.416530054277668},{"$f":"AE10+AE11+AE12+AE13+AE14+AE15+AE16","v":650},{"$f":"SQRT((AF10^2)+(AF11^2)+(AF12^2)+(AF13^2)+(AF14^2)+(AF15^2)+(AF16^2))","v":158.25928092848142},{"$f":"AG10+AG11+AG12+AG13+AG14+AG15+AG16","v":94},{"$f":"SQRT((AH10^2)+(AH11^2)+(AH12^2)+(AH13^2)+(AH14^2)+(AH15^2)+(AH16^2))","v":63.576725301009333},{"$f":"AI10+AI11+AI12+AI13+AI14+AI15+AI16","v":53},{"$f":"SQRT((AJ10^2)+(AJ11^2)+(AJ12^2)+(AJ13^2)+(AJ14^2)+(AJ15^2)+(AJ16^2))","v":65.916613990707987},{"$f":"AK10+AK11+AK12+AK13+AK14+AK15+AK16","v":30},{"$f":"SQRT((AL10^2)+(AL11^2)+(AL12^2)+(AL13^2)+(AL14^2)+(AL15^2)+(AL16^2))","v":28.913664589601922},{"$f":"AM10+AM11+AM12+AM13+AM14+AM15+AM16","v":251},{"$f":"SQRT((AN10^2)+(AN11^2)+(AN12^2)+(AN13^2)+(AN14^2)+(AN15^2)+(AN16^2))","v":81.559794016414727},{"$f":"AO10+AO11+AO12+AO13+AO14+AO15+AO16","v":51},{"$f":"SQRT((AP10^2)+(AP11^2)+(AP12^2)+(AP13^2)+(AP14^2)+(AP15^2)+(AP16^2))","v":54.166410255803363},{"$f":"AQ10+AQ11+AQ12+AQ13+AQ14+AQ15+AQ16","v":371},{"$f":"SQRT((AR10^2)+(AR11^2)+(AR12^2)+(AR13^2)+(AR14^2)+(AR15^2)+(AR16^2))","v":163.68567438844488},{"$f":"AS10+AS11+AS12+AS13+AS14+AS15+AS16","v":26},{"$f":"SQRT((AT10^2)+(AT11^2)+(AT12^2)+(AT13^2)+(AT14^2)+(AT15^2)+(AT16^2))","v":34.26368339802363},{"$f":"AU10+AU11+AU12+AU13+AU14+AU15+AU16","v":4},{"$f":"SQRT((AV10^2)+(AV11^2)+(AV12^2)+(AV13^2)+(AV14^2)+(AV15^2)+(AV16^2))","v":27.404379212089442},{"$f":"AW10+AW11+AW12+AW13+AW14+AW15+AW16","v":22},{"$f":"SQRT((AX10^2)+(AX11^2)+(AX12^2)+(AX13^2)+(AX14^2)+(AX15^2)+(AX16^2))","v":29.49576240750525},{"$f":"AY10+AY11+AY12+AY13+AY14+AY15+AY16","v":15},{"$f":"SQRT((AZ10^2)+(AZ11^2)+(AZ12^2)+(AZ13^2)+(AZ14^2)+(AZ15^2)+(AZ16^2))","v":27.459060435491963},{"$f":"BA10+BA11+BA12+BA13+BA14+BA15+BA16","v":3},{"$f":"SQRT((BB10^2)+(BB11^2)+(BB12^2)+(BB13^2)+(BB14^2)+(BB15^2)+(BB16^2))","v":27.239676943752471},{"$f":"BC10+BC11+BC12+BC13+BC14+BC15+BC16","v":8},{"$f":"SQRT((BD10^2)+(BD11^2)+(BD12^2)+(BD13^2)+(BD14^2)+(BD15^2)+(BD16^2))","v":26.019223662515376}]
[null,"Mobile Home & Other",{"$f":"C17+C18","v":521},{"$f":"SQRT((D17^2)+(D18^2))","v":101.59724405711013},{"$f":"E17+E18","v":32},{"$f":"SQRT((F17^2)+(F18^2))","v":23.706539182259394},{"$f":"G17+G18","v":135},{"$f":"SQRT((H17^2)+(H18^2))","v":65.924198895398035},{"$f":"I17+I18","v":8},{"$f":"SQRT((J17^2)+(J18^2))","v":20.615528128088304},{"$f":"K17+K18","v":8},{"$f":"SQRT((L17^2)+(L18^2))","v":13.601470508735444},{"$f":"M17+M18","v":29},{"$f":"SQRT((N17^2)+(N18^2))","v":27.313000567495326},{"$f":"O17+O18","v":35},{"$f":"SQRT((P17^2)+(P18^2))","v":41.484937025383083},{"$f":"Q17+Q18","v":801},{"$f":"SQRT((R17^2)+(R18^2))","v":134.16407864998737},{"$f":"S17+S18","v":45},{"$f":"SQRT((T17^2)+(T18^2))","v":26.40075756488817},{"$f":"U17+U18","v":0},{"$f":"SQRT((V17^2)+(V18^2))","v":15.556349186104045},{"$f":"W17+W18","v":250},{"$f":"SQRT((X17^2)+(X18^2))","v":93.648278147545241},{"$f":"Y17+Y18","v":112},{"$f":"SQRT((Z17^2)+(Z18^2))","v":56.320511361314892},{"$f":"AA17+AA18","v":59},{"$f":"SQRT((AB17^2)+(AB18^2))","v":49.244289008980523},{"$f":"AC17+AC18","v":47},{"$f":"SQRT((AD17^2)+(AD18^2))","v":31.016124838541646},{"$f":"AE17+AE18","v":173},{"$f":"SQRT((AF17^2)+(AF18^2))","v":65.520989003524662},{"$f":"AG17+AG18","v":133},{"$f":"SQRT((AH17^2)+(AH18^2))","v":54.405882034941776},{"$f":"AI17+AI18","v":147},{"$f":"SQRT((AJ17^2)+(AJ18^2))","v":84.528101836016646},{"$f":"AK17+AK18","v":7},{"$f":"SQRT((AL17^2)+(AL18^2))","v":14.866068747318506},{"$f":"AM17+AM18","v":0},{"$f":"SQRT((AN17^2)+(AN18^2))","v":15.556349186104045},{"$f":"AO17+AO18","v":162},{"$f":"SQRT((AP17^2)+(AP18^2))","v":78.771822373231913},{"$f":"AQ17+AQ18","v":111},{"$f":"SQRT((AR17^2)+(AR18^2))","v":98.310731865854805},{"$f":"AS17+AS18","v":70},{"$f":"SQRT((AT17^2)+(AT18^2))","v":39.560080889704963},{"$f":"AU17+AU18","v":15},{"$f":"SQRT((AV17^2)+(AV18^2))","v":17.029386365926403},{"$f":"AW17+AW18","v":0},{"$f":"SQRT((AX17^2)+(AX18^2))","v":15.556349186104045},{"$f":"AY17+AY18","v":39},{"$f":"SQRT((AZ17^2)+(AZ18^2))","v":25.495097567963924},{"$f":"BA17+BA18","v":13},{"$f":"SQRT((BB17^2)+(BB18^2))","v":14.212670403551895},{"$f":"BC17+BC18","v":3},{"$f":"SQRT((BD17^2)+(BD18^2))","v":11.704699910719626}]
[null,"Renter-occupied housing units:",{"$f":"C19","v":409},{"$f":"D19","v":114},{"$f":"E19","v":154},72,288,107,288,76,73,31,78,40,87,53,8278,412,42,17,60,26,282,82,1429,186,449,115,30,21,1284,204,243,100,291,138,64,26,295,90,470,109,582,186,599,147,39,26,90,36,387,91,59,29,149,52]
[null,"Single Family",{"$f":"C20","v":48},{"$f":"D20","v":41},{"$f":"E20","v":77},54,27,28,84,51,43,23,19,18,26,21,542,146,29,18,37,19,62,43,241,97,29,34,26,20,108,69,66,43,152,96,37,22,120,54,47,40,52,55,42,34,29,22,79,34,146,54,30,22,90,44]
[null,"Multi-Family",{"$f":"C21+C22+C23+C24+C25+C26+C27","v":350},{"$f":"SQRT((D21^2)+(D22^2)+(D23^2)+(D24^2)+(D25^2)+(D26^2)+(D27^2))","v":122.42548754242313},{"$f":"E21+E22+E23+E24+E25+E26+E27","v":73},{"$f":"SQRT((F21^2)+(F22^2)+(F23^2)+(F24^2)+(F25^2)+(F26^2)+(F27^2))","v":54.120236510939236},{"$f":"G21+G22+G23+G24+G25+G26+G27","v":250},{"$f":"SQRT((H21^2)+(H22^2)+(H23^2)+(H24^2)+(H25^2)+(H26^2)+(H27^2))","v":116.97435616407556},{"$f":"I21+I22+I23+I24+I25+I26+I27","v":204},{"$f":"SQRT((J21^2)+(J22^2)+(J23^2)+(J24^2)+(J25^2)+(J26^2)+(J27^2))","v":69.964276598847221},{"$f":"K21+K22+K23+K24+K25+K26+K27","v":30},{"$f":"SQRT((L21^2)+(L22^2)+(L23^2)+(L24^2)+(L25^2)+(L26^2)+(L27^2))","v":30.870698080866262},{"$f":"M21+M22+M23+M24+M25+M26+M27","v":59},{"$f":"SQRT((N21^2)+(N22^2)+(N23^2)+(N24^2)+(N25^2)+(N26^2)+(N27^2))","v":57.288742349610018},{"$f":"O21+O22+O23+O24+O25+O26+O27","v":38},{"$f":"SQRT((P21^2)+(P22^2)+(P23^2)+(P24^2)+(P25^2)+(P26^2)+(P27^2))","v":35.52463933666322},{"$f":"Q21+Q22+Q23+Q24+Q25+Q26+Q27","v":7678},{"$f":"SQRT((R21^2)+(R22^2)+(R23^2)+(R24^2)+(R25^2)+(R26^2)+(R27^2))","v":535.71074284542772},{"$f":"S21+S22+S23+S24+S25+S26+S27","v":7},{"$f":"SQRT((T21^2)+(T22^2)+(T23^2)+(T24^2)+(T25^2)+(T26^2)+(T27^2))","v":25.416530054277668},{"$f":"U21+U22+U23+U24+U25+U26+U27","v":23},{"$f":"SQRT((V21^2)+(V22^2)+(V23^2)+(V24^2)+(V25^2)+(V26^2)+(V27^2))","v":27.166155414412248},{"$f":"W21+W22+W23+W24+W25+W26+W27","v":193},{"$f":"SQRT((X21^2)+(X22^2)+(X23^2)+(X24^2)+(X25^2)+(X26^2)+(X27^2))","v":76.26925986267338},{"$f":"Y21+Y22+Y23+Y24+Y25+Y26+Y27","v":1188},{"$f":"SQRT((Z21^2)+(Z22^2)+(Z23^2)+(Z24^2)+(Z25^2)+(Z26^2)+(Z27^2))","v":237.82136153003583},{"$f":"AA21+AA22+AA23+AA24+AA25+AA26+AA27","v":393},{"$f":"SQRT((AB21^2)+(AB22^2)+(AB23^2)+(AB24^2)+(AB25^2)+(AB26^2)+(AB27^2))","v":138.42326394071193},{"$f":"AC21+AC22+AC23+AC24+AC25+AC26+AC27","v":4},{"$f":"SQRT((AD21^2)+(AD22^2)+(AD23^2)+(AD24^2)+(AD25^2)+(AD26^2)+(AD27^2))","v":27.404379212089442},{"$f":"AE21+AE22+AE23+AE24+AE25+AE26+AE27","v":1169},{"$f":"SQRT((AF21^2)+(AF22^2)+(AF23^2)+(AF24^2)+(AF25^2)+(AF26^2)+(AF27^2))","v":221.94368655134122},{"$f":"AG21+AG22+AG23+AG24+AG25+AG26+AG27","v":165},{"$f":"SQRT((AH21^2)+(AH22^2)+(AH23^2)+(AH24^2)+(AH25^2)+(AH26^2)+(AH27^2))","v":109.99545445153632},{"$f":"AI21+AI22+AI23+AI24+AI25+AI26+AI27","v":118},{"$f":"SQRT((AJ21^2)+(AJ22^2)+(AJ23^2)+(AJ24^2)+(AJ25^2)+(AJ26^2)+(AJ27^2))","v":94.201910808645493},{"$f":"AK21+AK22+AK23+AK24+AK25+AK26+AK27","v":27},{"$f":"SQRT((AL21^2)+(AL22^2)+(AL23^2)+(AL24^2)+(AL25^2)+(AL26^2)+(AL27^2))","v":29.240383034426891},{"$f":"AM21+AM22+AM23+AM24+AM25+AM26+AM27","v":175},{"$f":"SQRT((AN21^2)+(AN22^2)+(AN23^2)+(AN24^2)+(AN25^2)+(AN26^2)+(AN27^2))","v":80.230916734136841},{"$f":"AO21+AO22+AO23+AO24+AO25+AO26+AO27","v":397},{"$f":"SQRT((AP21^2)+(AP22^2)+(AP23^2)+(AP24^2)+(AP25^2)+(AP26^2)+(AP27^2))","v":158.3414033031159},{"$f":"AQ21+AQ22+AQ23+AQ24+AQ25+AQ26+AQ27","v":513},{"$f":"SQRT((AR21^2)+(AR22^2)+(AR23^2)+(AR24^2)+(AR25^2)+(AR26^2)+(AR27^2))","v":186.98395653103503},{"$f":"AS21+AS22+AS23+AS24+AS25+AS26+AS27","v":548},{"$f":"SQRT((AT21^2)+(AT22^2)+(AT23^2)+(AT24^2)+(AT25^2)+(AT26^2)+(AT27^2))","v":182.79770239256291},{"$f":"AU21+AU22+AU23+AU24+AU25+AU26+AU27","v":0},{"$f":"SQRT((AV21^2)+(AV22^2)+(AV23^2)+(AV24^2)+(AV25^2)+(AV26^2)+(AV27^2))","v":29.103264421710495},{"$f":"AW21+AW22+AW23+AW24+AW25+AW26+AW27","v":11},{"$f":"SQRT((AX21^2)+(AX22^2)+(AX23^2)+(AX24^2)+(AX25^2)+(AX26^2)+(AX27^2))","v":32.403703492039298},{"$f":"AY21+AY22+AY23+AY24+AY25+AY26+AY27","v":236},{"$f":"SQRT((AZ21^2)+(AZ22^2)+(AZ23^2)+(AZ24^2)+(AZ25^2)+(AZ26^2)+(AZ27^2))","v":87.52713864853574},{"$f":"BA21+BA22+BA23+BA24+BA25+BA26+BA27","v":15},{"$f":"SQRT((BB21^2)+(BB22^2)+(BB23^2)+(BB24^2)+(BB25^2)+(BB26^2)+(BB27^2))","v":32.403703492039298},{"$f":"BC21+BC22+BC23+BC24+BC25+BC26+BC27","v":46},{"$f":"SQRT((BD21^2)+(BD22^2)+(BD23^2)+(BD24^2)+(BD25^2)+(BD26^2)+(BD27^2))","v":31.464265445104548}]
[null,"Mobile Home & Other",{"$f":"C28+C29","v":11},{"$f":"SQRT((D28^2)+(D29^2))","v":19.416487838947599},{"$f":"E28+E29","v":4},{"$f":"SQRT((F28^2)+(F29^2))","v":12.529964086141668},{"$f":"G28+G29","v":11},{"$f":"SQRT((H28^2)+(H29^2))","v":21.095023109728988},{"$f":"I28+I29","v":0},{"$f":"SQRT((J28^2)+(J29^2))","v":22.627416997969522},{"$f":"K28+K29","v":0},{"$f":"SQRT((L28^2)+(L29^2))","v":15.556349186104045},{"$f":"M28+M29","v":0},{"$f":"SQRT((N28^2)+(N29^2))","v":15.556349186104045},{"$f":"O28+O29","v":23},{"$f":"SQRT((P28^2)+(P29^2))","v":36.687872655688281},{"$f":"Q28+Q29","v":58},{"$f":"SQRT((R28^2)+(R29^2))","v":51},{"$f":"S28+S29","v":6},{"$f":"SQRT((T28^2)+(T29^2))","v":13.601470508735444},{"$f":"U28+U29","v":0},{"$f":"SQRT((V28^2)+(V29^2))","v":15.556349186104045},{"$f":"W28+W29","v":27},{"$f":"SQRT((X28^2)+(X29^2))","v":21.95449840010015},{"$f":"Y28+Y29","v":0},{"$f":"SQRT((Z28^2)+(Z29^2))","v":22.627416997969522},{"$f":"AA28+AA29","v":27},{"$f":"SQRT((AB28^2)+(AB29^2))","v":34.785054261852174},{"$f":"AC28+AC29","v":0},{"$f":"SQRT((AD28^2)+(AD29^2))","v":15.556349186104045},{"$f":"AE28+AE29","v":7},{"$f":"SQRT((AF28^2)+(AF29^2))","v":21.095023109728988},{"$f":"AG28+AG29","v":12},{"$f":"SQRT((AH28^2)+(AH29^2))","v":24.839484696748443},{"$f":"AI28+AI29","v":21},{"$f":"SQRT((AJ28^2)+(AJ29^2))","v":37.576588456111871},{"$f":"AK28+AK29","v":0},{"$f":"SQRT((AL28^2)+(AL29^2))","v":15.556349186104045},{"$f":"AM28+AM29","v":0},{"$f":"SQRT((AN28^2)+(AN29^2))","v":15.556349186104045},{"$f":"AO28+AO29","v":26},{"$f":"SQRT((AP28^2)+(AP29^2))","v":23.853720883753127},{"$f":"AQ28+AQ29","v":17},{"$f":"SQRT((AR28^2)+(AR29^2))","v":32.249030993194197},{"$f":"AS28+AS29","v":9},{"$f":"SQRT((AT28^2)+(AT29^2))","v":17.804493814764857},{"$f":"AU28+AU29","v":10},{"$f":"SQRT((AV28^2)+(AV29^2))","v":19.416487838947599},{"$f":"AW28+AW29","v":0},{"$f":"SQRT((AX28^2)+(AX29^2))","v":15.556349186104045},{"$f":"AY28+AY29","v":5},{"$f":"SQRT((AZ28^2)+(AZ29^2))","v":13.038404810405298},{"$f":"BA28+BA29","v":14},{"$f":"SQRT((BB28^2)+(BB29^2))","v":19.416487838947599},{"$f":"BC28+BC29","v":13},{"$f":"SQRT((BD28^2)+(BD29^2))","v":22.825424421026653}]
[]
[]
[]
[]
[]
[]
[]
[]
[]
[]
[]
[]
[]
[]
[]
[]
[]
[]
[]
[]
[]
[]
[]
[]
[]
[]
[]
[]
[]
[]
[]
[]
[]
[]
[]
[]
[]
[]
[]
[]
[null,"Calculated B25032. TENURE BY UNITS IN STRUCTURE "]
[null,"Universe:  OCCUPIED HOUSING UNITS"]
[null,"Data Set: 2010-2014 American Community Survey 5-Year Estimates"]
[]
[null,null,"Allenstown",null,"Andover",null,"Boscawen",null,"Bow",null,"Bradford",null,"Canterbury",null,"Chichester",null,"Concord",null,"Danbury",null,"Dunbarton",null,"Epsom",null,"Franklin",null,"Henniker",null,"Hill",null,"Hooksett",null,"Hopkinton",null,"Loudon",null,"Newbury",null,"New London",null,"Northfield",null,"Pembroke",null,"Pittsfield",null,"Salisbury",null,"Sutton",null,"Warner",null,"Webster",null,"Wilmot"]
[null,null,"Estimate","Margin Of Error","Estimate","Margin Of Error","Estimate","Margin Of Error","Estimate","Margin Of Error","Estimate","Margin Of Error","Estimate","Margin Of Error","Estimate","Margin Of Error","Estimate","Margin Of Error","Estimate","Margin Of Error","Estimate","Margin Of Error","Estimate","Margin Of Error","Estimate","Margin Of Error","Estimate","Margin Of Error","Estimate","Margin Of Error","Estimate","Margin Of Error","Estimate","Margin Of Error","Estimate","Margin Of Error","Estimate","Margin Of Error","Estimate","Margin Of Error","Estimate","Margin Of Error","Estimate","Margin Of Error","Estimate","Margin Of Error","Estimate","Margin Of Error","Estimate","Margin Of Error","Estimate","Margin Of Error","Estimate","Margin Of Error","Estimate","Margin Of Error"]
[null,"Total:",1787,88,975,87,1270,147,2777,133,684,77,894,64,996,62,17141,334,533,70,1053,59,1809,122,3379,195,1598,145,445,57,5216,237,2122,112,2013,139,756,95,1734,157,1729,104,2787,148,1525,127,553,62,786,99,1123,84,767,66,588,67]
[null,"Owner-occupied housing units:",1252,116,839,98,884,148,2460,156,605,75,854,63,898,73,9376,354,438,65,917,86,1523,136,2015,220,1071,155,413,56,4473,271,1846,116,1693,133,716,95,1365,137,1313,123,1986,184,901,126,512,61,694,97,871,62,670,58,478,60]
[null,"Single Family",634,90,795,96,702,136,2423,163,583,76,842,65,798,83,6913,293,372,64,887,88,1099,139,1748,228,969,147,353,48,3485,250,1649,136,1452,141,690,94,1127,127,1069,108,1700,172,840,123,495,60,681,95,798,59,621,61,456,64]
[null,"Multi-Family",182,78.943017423962203,4,27.604347483684521,12,32.403703492039298,30,43.347433603386484,6,27.838821814150108,12,30.364452901377952,71,49.295030175464952,1605,225.61471583210169,16,31.859064644147981,20,30.182776545573141,37,33.555923471125034,166,73.491496106692509,29,36.249137920783717,14,31.859064644147981,801,197.14715316230158,99,80.249610590955513,8,38.652296180175377,15,28.24889378365107,227,67,73,44.799553569204235,239,110.39474625180313,18,32.093613071762427,3,27.239676943752471,13,28.930952282978865,37,43.886216514983381,16,25.632011235952593,10,25.80697580112788]
[null,"Mobile Home & Other",436,75.802374632988901,40,32.893768406797051,170,62.968245965724662,7,19.849433241279208,16,15.556349186104045,0,15.556349186104045,29,30.083217912982647,858,126.11502686040232,50,27.313000567495326,10,15.556349186104045,387,93.648278147545241,101,52.201532544552748,73,37.643060449437421,46,28.231188426986208,187,79.831071645068121,98,70.611613775638915,233,95.189285111298105,11,15.556349186104045,11,22.825424421026653,171,66.91038783328041,47,39.924929555354261,43,29.154759474226502,14,14.866068747318506,0,15.556349186104045,36,21.95449840010015,33,25.495097567963924,12,21.095023109728988]
[null,"Renter-occupied housing units:",535,128,136,60,386,104,317,80,79,33,40,21,98,50,7765,311,95,43,136,55,286,108,1364,180,527,116,32,23,743,144,276,113,320,119,40,29,369,114,416,87,801,168,624,113,41,25,92,38,252,84,97,46,110,42]
[null,"Single Family",82,61,66,42,87,45,135,67,51,22,5,7,45,31,769,171,19,18,92,43,170,97,206,87,130,70,10,9,134,88,124,89,172,100,40,29,138,75,62,34,160,97,67,59,38,25,82,36,14,12,71,37,37,27]
[null,"Multi-Family",388,136.90872872099865,70,49.325449820554098,266,111.83917024012652,182,64.498061986388393,28,34.205262752974143,35,29.546573405388315,46,48.342527861087284,6873,543.59083877490059,15,32.403703492039298,39,37.215588131856791,85,54.221766846903833,1135,214.69047487021868,347,133.13526955694348,9,23.685438564654021,586,134.89996293550269,152,115.27792503337315,148,96.772930099279307,0,29.103264421710495,231,92.649878575203758,343,107.25203960764568,641,214.39682833474939,511,139.398708745813,3,27.404379212089442,10,30.838287890218549,208,83.024092888751269,26,30.413812651491099,39,32.848135411313685]
[null,"Mobile Home & Other",65,77.781745930520231,0,15.556349186104045,33,33.837848631377263,0,21.213203435596427,0,15.556349186104045,0,15.556349186104045,7,13.038404810405298,123,81.320354155647891,61,37.643060449437421,5,13.601470508735444,31,31.953090617340916,23,29.154759474226502,50,51.195702944680818,13,21.95449840010015,23,31.064449134018133,0,21.213203435596427,0,21.213203435596427,0,15.556349186104045,0,15.556349186104045,11,20.248456731316587,0,21.213203435596427,46,46.324939287601879,0,15.556349186104045,0,15.556349186104045,30,38.600518131237564,0,15.556349186104045,34,30.083217912982647]
[]
[]
[]
[null,"Calculated B25032. TENURE BY UNITS IN STRUCTURE "]
[null,"Universe:  OCCUPIED HOUSING UNITS"]
[null,"Data Set: 2005-2009 American Community Survey 5-Year Estimates"]
[]
[null,null,"Allenstown",null,"Andover",null,"Boscawen",null,"Bow",null,"Bradford",null,"Canterbury",null,"Chichester",null,"Concord",null,"Danbury",null,"Dunbarton",null,"Epsom",null,"Franklin",null,"Henniker",null,"Hill",null,"Hooksett",null,"Hopkinton",null,"Loudon",null,"Newbury",null,"New London",null,"Northfield",null,"Pembroke",null,"Pittsfield",null,"Salisbury",null,"Sutton",null,"Warner",null,"Webster",null,"Wilmot"]
[null,null,"Estimate","Margin Of Error","Estimate","Margin Of Error","Estimate","Margin Of Error","Estimate","Margin Of Error","Estimate","Margin Of Error","Estimate","Margin Of Error","Estimate","Margin Of Error","Estimate","Margin Of Error","Estimate","Margin Of Error","Estimate","Margin Of Error","Estimate","Margin Of Error","Estimate","Margin Of Error","Estimate","Margin Of Error","Estimate","Margin Of Error","Estimate","Margin Of Error","Estimate","Margin Of Error","Estimate","Margin Of Error","Estimate","Margin Of Error","Estimate","Margin Of Error","Estimate","Margin Of Error","Estimate","Margin Of Error","Estimate","Margin Of Error","Estimate","Margin Of Error","Estimate","Margin Of Error","Estimate","Margin Of Error","Estimate","Margin Of Error","Estimate","Margin Of Error"]
[null,"Total:",1824,124,947,86,1317,163,2845,132,510,73,896,50,918,51,17349,501,528,75,960,53,1445,110,3300,222,1776,167,392,48,4638,239,2237,119,1751,105,821,88,1564,226,1884,138,2907,166,1652,109,438,49,680,92,1010,162,669,56,502,64]
[null,"Owner-occupied housing units:",1176,172,790,93,1086,141,2579,139,426,68,798,59,901,53,9529,368,446,70,885,60,1203,113,1984,199,1250,163,318,44,4002,224,2099,128,1583,130,768,90,1343,183,1443,150,2058,183,1126,119,421,46,625,93,798,137,609,57,481,65]
[null,"Single Family",803,149,742,94,924,131,2548,137,394,62,752,62,779,77,7038,308,418,72,818,69,990,99,1673,186,1102,157,291,42,2902,203,1835,165,1401,131,768,90,1081,155,1228,150,1710,168,971,124,379,45,586,93,731,130,592,57,450,65]
[null,"Multi-Family",112,207.27517941133232,7,279.38682860865151,36,280.95729212818094,31,257.26445537617514,21,228.65038814749474,19,255.85347369148616,66,231.44113722499722,1591,243.08229059312404,4,279.3564031841762,54,230.24334952393303,24,280.95729212818094,169,239.10248848558643,37,229.97825984209899,2,279.28659115682586,906,232.22187666109323,188,267.4658856751642,32,281.95212359547855,0,301.61564946136332,262,154.63505424062166,109,263.67593746870421,277,220.47902394558989,42,230.67292862405853,4,279.30628349537716,39,256.32401370140877,32,229.6627962905616,7,279.45840477609545,20,255.65015157437321]
[null,"Mobile Home & Other",261,143.40502083260543,41,116.49892703368559,126,127.01181047445942,0,161.22034611053283,11,114.43775600735974,27,115.91807451816995,56,121.8400590938793,900,197.27392123643713,24,115.26057435220423,13,114.85643212288984,189,129.76902558006668,142,123.69316876852982,111,126.57408897558773,25,115.57248807566617,194,129.76902558006668,76,124.08464852672147,150,128.82546332150332,0,161.22034611053283,0,161.22034611053283,106,124.88794977899188,71,135.36986370680884,113,124.48293055676348,38,117.15374513859982,0,161.22034611053283,35,114.85643212288984,10,114.28035701729323,11,9.4339811320566032]
[null,"Renter-occupied housing units:",648,178,157,72,231,85,266,84,84,34,98,41,17,19,7820,437,82,34,75,37,242,82,1316,169,526,139,74,34,636,116,138,75,168,84,53,26,221,123,441,105,849,136,526,110,17,17,55,30,212,67,60,30,21,21]
[null,"Single Family",58,56,70,54,54,46,109,66,47,23,32,21,10,12,401,152,39,26,60,30,46,57,158,75,103,58,43,25,109,83,80,61,39,33,31,21,91,71,109,72,132,122,0,114,0,114,28,17,47,36,50,27,3,4]
[null,"Multi-Family",551,197.81304304822774,65,232.84758963751375,130,169.64669168598601,157,264.62048295625192,24,228.77718417709403,66,281.1849924871525,0,301.61564946136332,7360,585.63469842556287,18,255.42122073155943,15,255.54842985234717,161,145.31001341958509,1150,217.046078057172,378,239.16521486202797,11,279.49955277245078,517,139.28388277184121,58,284.41518946779195,62,235.61409125941512,19,255.38598238744427,130,245.08161905781512,332,166.03614064413807,701,296.82654867784316,507,227.14752915231105,13,279.69983911328944,27,229.23132421202823,141,123.74974747448982,3,279.27047821064082,18,228.74002710500844]
[null,"Mobile Home & Other",39,117.881296226331,22,117.63077828527702,47,118.96217886370441,0,161.22034611053283,13,115.11733144926528,0,161.22034611053283,7,114.52947218947619,59,123.30855606972291,25,115.26057435220423,0,161.22034611053283,35,117.63077828527702,8,114.73883387938018,45,44.922154890432402,20,115.57248807566617,10,115.11733144926528,0,161.22034611053283,67,126.57408897558773,3,114.10959644131601,0,161.22034611053283,0,161.22034611053283,16,116.92732785794773,19,116.29703349613007,4,114.15778554264269,0,161.22034611053283,24,115.91807451816995,7,114.21471008587291,0,161.22034611053283]

{"sheet":"ACS_Table_B25034","index":45,"n_rows":58,"n_cols":56,"rows_kept":58,"cut":false,"hidden":true,"merged":[]}
[null,"B25034. YEAR STRUCTURE BUILT"]
[null,"Universe:  HOUSING UNITS"]
[null,"Data Set: 2015-2019 American Community Survey 5-Year Estimates"]
[]
[null,null,"Allenstown",null,"Andover",null,"Boscawen",null,"Bow",null,"Bradford",null,"Canterbury",null,"Chichester",null,"Concord",null,"Danbury",null,"Dunbarton",null,"Epsom",null,"Franklin",null,"Henniker",null,"Hill",null,"Hooksett",null,"Hopkinton",null,"Loudon",null,"Newbury",null,"New London",null,"Northfield",null,"Pembroke",null,"Pittsfield",null,"Salisbury",null,"Sutton",null,"Warner",null,"Webster",null,"Wilmot"]
[null,null,"Estimate","Margin Of Error","Estimate","Margin Of Error","Estimate","Margin Of Error","Estimate","Margin Of Error","Estimate","Margin Of Error","Estimate","Margin Of Error","Estimate","Margin Of Error","Estimate","Margin Of Error","Estimate","Margin Of Error","Estimate","Margin Of Error","Estimate","Margin Of Error","Estimate","Margin Of Error","Estimate","Margin Of Error","Estimate","Margin Of Error","Estimate","Margin Of Error","Estimate","Margin Of Error","Estimate","Margin Of Error","Estimate","Margin Of Error","Estimate","Margin Of Error","Estimate","Margin Of Error","Estimate","Margin Of Error","Estimate","Margin Of Error","Estimate","Margin Of Error","Estimate","Margin Of Error","Estimate","Margin Of Error","Estimate","Margin Of Error","Estimate","Margin Of Error"]
[null,"Total:",1858,120,1227,85,1513,108,2817,143,859,87,1060,48,981,55,18663,406,614,69,1001,50,2044,125,4401,264,2011,143,506,60,5298,192,2409,125,2203,195,1736,110,2298,195,1953,122,2925,215,1822,168,632,70,1031,93,1414,109,875,69,809,73]
[null,"Built 2014 or later",67,51,7,9,22,26,61,45,18,18,7,11,37,26,163,64,3,4,18,13,8,12,139,78,18,26,12,15,148,76,25,40,58,45,35,26,122,69,6,10,54,51,0,11,8,8,12,15,9,10,9,8,0,11]
[null,"Built 2010 or 2013",17,19,20,14,36,32,107,45,17,18,13,15,35,25,164,87,9,10,9,10,18,28,26,29,82,54,7,7,307,107,17,25,83,69,82,46,15,23,9,15,0,16,0,11,5,6,36,27,42,29,12,10,17,20]
[null,"Built 2000 to 2009",197,65,164,56,96,49,363,91,139,44,150,36,187,52,1876,265,104,42,239,58,399,103,361,99,202,88,87,30,782,174,207,128,317,138,388,93,270,73,271,100,212,79,200,91,70,30,158,54,198,70,136,32,160,45]
[null,"Built 1990 to 1999",139,64,137,52,189,95,554,125,38,24,169,63,114,41,1594,248,47,24,205,46,350,107,248,107,118,68,64,26,798,156,317,106,176,122,241,77,315,95,114,46,89,88,205,95,64,30,64,32,190,59,136,42,90,33]
[null,"Built 1980 to 1989",337,101,171,58,139,69,587,95,118,32,223,63,192,58,3687,320,166,48,211,47,356,108,396,146,464,126,68,33,1148,188,439,140,643,201,321,71,405,118,464,124,747,193,222,80,155,38,212,56,212,68,174,42,101,34]
[null,"Built 1970 to 1979",417,109,164,61,309,106,495,106,143,48,172,51,132,48,2546,347,97,35,122,45,525,116,563,166,322,93,68,33,879,159,298,111,269,108,179,68,284,86,346,123,374,138,200,92,57,29,143,51,157,53,134,40,127,46]
[null,"Built 1960 to 1969",131,50,49,30,139,68,279,74,64,24,12,14,36,20,1146,242,40,27,60,26,71,45,242,99,111,78,18,12,464,143,312,109,123,102,89,43,176,69,202,119,334,142,65,49,32,22,33,24,102,55,102,28,43,27]
[null,"Built 1950 to 1959",183,89,69,42,173,90,79,47,38,27,76,46,49,34,912,158,23,18,70,31,57,40,446,132,65,52,12,9,272,97,165,80,76,63,107,60,119,67,103,65,289,125,103,73,8,9,98,46,63,39,62,31,53,32]
[null,"Built 1940 to 1949",146,95,22,16,47,47,58,50,42,20,25,22,17,14,676,134,21,24,4,7,8,13,274,115,65,49,84,29,48,33,12,19,12,19,0,11,143,72,81,73,81,62,93,60,30,23,9,15,29,23,3,4,28,18]
[null,"Built 1939 or earlier",224,95,424,94,363,133,234,65,242,65,213,61,182,48,5899,303,104,35,63,25,252,108,1706,221,564,134,86,34,452,121,617,152,446,159,294,79,449,114,357,96,745,200,734,135,203,52,266,70,412,79,107,35,190,51]
[]
[]
[]
[]
[null,"B25034. YEAR STRUCTURE BUILT"]
[null,"Universe:  HOUSING UNITS"]
[null,"Data Set: 2010-2014 American Community Survey 5-Year Estimates"]
[]
[null,null,"Allenstown",null,"Andover",null,"Boscawen",null,"Bow",null,"Bradford",null,"Canterbury",null,"Chichester",null,"Concord",null,"Danbury",null,"Dunbarton",null,"Epsom",null,"Franklin",null,"Henniker",null,"Hill",null,"Hooksett",null,"Hopkinton",null,"Loudon",null,"Newbury",null,"New London",null,"Northfield",null,"Pembroke",null,"Pittsfield",null,"Salisbury",null,"Sutton",null,"Warner",null,"Webster",null,"Wilmot"]
[null,null,"Estimate","Margin Of Error","Estimate","Margin Of Error","Estimate","Margin Of Error","Estimate","Margin Of Error","Estimate","Margin Of Error","Estimate","Margin Of Error","Estimate","Margin Of Error","Estimate","Margin Of Error","Estimate","Margin Of Error","Estimate","Margin Of Error","Estimate","Margin Of Error","Estimate","Margin Of Error","Estimate","Margin Of Error","Estimate","Margin Of Error","Estimate","Margin Of Error","Estimate","Margin Of Error","Estimate","Margin Of Error","Estimate","Margin Of Error","Estimate","Margin Of Error","Estimate","Margin Of Error","Estimate","Margin Of Error","Estimate","Margin Of Error","Estimate","Margin Of Error","Estimate","Margin Of Error","Estimate","Margin Of Error","Estimate","Margin Of Error","Estimate","Margin Of Error"]
[null,"Total:",1812,101,1174,79,1400,158,2818,133,879,94,1045,46,1075,67,18272,372,696,69,1141,65,1850,125,4046,258,1992,181,532,61,5289,235,2360,146,2139,157,1620,120,2338,185,1759,115,3085,220,1642,135,633,66,1014,103,1393,110,877,71,708,65]
[null,"Built 2010 or later",27,42,0,11,0,11,20,18,0,11,6,8,11,11,198,91,0,11,15,22,18,21,0,15,0,11,4,5,66,49,11,18,61,56,0,11,0,11,0,11,15,24,0,11,3,4,4,6,9,9,12,9,3,5]
[null,"Built 2000 to 2009",149,67,129,52,99,56,441,121,123,37,169,50,133,41,1836,239,165,50,160,43,397,127,367,132,198,85,50,24,1126,231,290,87,414,121,240,63,204,80,229,91,361,108,167,66,85,31,166,54,167,63,149,34,167,52]
[null,"Built 1990 to 1999",174,63,109,47,112,56,481,97,63,24,146,50,141,49,1601,251,68,33,183,59,319,115,233,103,113,79,83,29,659,181,249,108,326,94,232,58,340,95,127,61,155,109,73,49,69,35,48,29,132,54,108,34,87,29]
[null,"Built 1980 to 1989",332,78,159,38,197,88,671,101,139,49,223,61,273,65,3586,342,108,36,273,67,262,94,623,149,500,142,118,38,1317,208,384,108,634,146,240,76,411,98,485,119,722,165,324,90,170,42,228,55,208,57,153,46,147,43]
[null,"Built 1970 to 1979",382,104,113,46,253,101,669,133,91,32,128,42,132,43,2082,252,130,49,93,35,400,115,257,104,353,107,95,34,672,171,249,101,331,110,256,73,500,114,348,106,346,114,221,93,101,28,112,42,146,57,116,31,71,35]
[null,"Built 1960 to 1969",152,76,136,59,185,77,216,94,59,26,104,41,32,21,831,203,44,25,81,37,70,55,246,97,108,60,17,12,590,148,339,111,97,55,140,61,277,83,106,51,203,81,102,46,31,13,27,18,69,50,143,42,36,21]
[null,"Built 1950 to 1959",203,99,146,62,65,49,75,45,82,32,48,32,84,54,1235,198,24,19,140,52,122,61,330,111,96,63,44,22,261,104,186,92,32,26,85,49,179,67,93,54,364,170,94,60,27,18,28,20,64,48,56,32,31,21]
[null,"Built 1940 to 1949",57,48,74,47,76,43,47,38,33,16,29,29,5,8,716,170,20,17,9,10,69,74,219,102,67,62,60,28,111,63,85,68,37,42,86,53,75,45,45,29,123,90,22,20,3,5,88,48,59,30,13,8,28,19]
[null,"Built 1939 or earlier",336,106,308,69,413,107,198,73,289,54,192,56,264,75,6187,374,137,41,187,58,193,81,1771,236,557,106,61,27,487,120,567,162,207,91,341,102,352,113,326,100,796,240,639,140,144,41,313,58,539,105,127,46,138,37]
[]
[]
[]
[]
[]
[null,"B25034. YEAR STRUCTURE BUILT"]
[null,"Universe:  HOUSING UNITS"]
[null,"Data Set: 2005-2009 American Community Survey 5-Year Estimates"]
[]
[null,null,"Allenstown",null,"Andover",null,"Boscawen",null,"Bow",null,"Bradford",null,"Canterbury",null,"Chichester",null,"Concord",null,"Danbury",null,"Dunbarton",null,"Epsom",null,"Franklin",null,"Henniker",null,"Hill",null,"Hooksett",null,"Hopkinton",null,"Loudon",null,"Newbury",null,"New London",null,"Northfield",null,"Pembroke",null,"Pittsfield",null,"Salisbury",null,"Sutton",null,"Warner",null,"Webster",null,"Wilmot"]
[null,null,"Estimate","Margin Of Error","Estimate","Margin Of Error","Estimate","Margin Of Error","Estimate","Margin Of Error","Estimate","Margin Of Error","Estimate","Margin Of Error","Estimate","Margin Of Error","Estimate","Margin Of Error","Estimate","Margin Of Error","Estimate","Margin Of Error","Estimate","Margin Of Error","Estimate","Margin Of Error","Estimate","Margin Of Error","Estimate","Margin Of Error","Estimate","Margin Of Error","Estimate","Margin Of Error","Estimate","Margin Of Error","Estimate","Margin Of Error","Estimate","Margin Of Error","Estimate","Margin Of Error","Estimate","Margin Of Error","Estimate","Margin Of Error","Estimate","Margin Of Error","Estimate","Margin Of Error","Estimate","Margin Of Error","Estimate","Margin Of Error","Estimate","Margin Of Error"]
[null,"Total:",1897,142,1104,73,1469,209,2886,136,761,83,959,32,925,52,18440,496,688,63,1048,54,1750,128,3659,258,1970,182,449,47,4761,270,2473,135,1855,115,1353,93,2194,254,2023,175,3072,183,1745,112,495,51,949,88,1288,174,778,61,583,65]
[null,"Built 2005 or later",134,91,46,42,48,40,54,46,14,13,10,15,13,15,366,137,5,8,29,23,47,47,28,27,87,82,16,10,159,84,60,46,33,26,65,40,83,69,52,58,52,30,32,32,0,114,9,12,21,11,15,9,9,14]
[null,"Built 2000 to 2004",57,44,87,55,58,43,392,131,13,16,95,48,97,44,1061,178,64,31,158,50,208,72,173,73,192,87,24,15,661,165,104,62,120,61,65,28,123,82,56,41,224,102,133,64,40,23,12,10,48,29,112,32,25,17]
[null,"Built 1990 to 1999",75,40,125,54,151,84,409,141,42,24,156,46,175,55,1754,307,124,42,266,69,281,84,132,55,110,60,54,24,853,159,194,87,311,92,241,84,278,105,197,82,179,86,183,74,61,23,67,34,107,36,128,35,61,30]
[null,"Built 1980 to 1989",552,134,192,74,212,83,831,132,100,30,210,50,161,44,3563,349,173,60,176,50,315,97,474,146,486,149,78,29,1000,176,453,136,557,91,175,56,513,161,475,115,516,142,256,94,123,32,164,43,272,93,151,55,133,56]
[null,"Built 1970 to 1979",414,119,124,63,217,78,486,115,143,38,229,62,239,59,2661,366,81,33,99,40,337,124,465,143,381,109,81,35,787,171,461,137,230,68,224,59,256,106,423,97,380,155,141,73,58,28,134,42,173,73,91,25,57,26]
[null,"Built 1960 to 1969",140,76,72,47,69,35,352,108,68,33,42,25,42,24,1282,294,28,17,63,25,176,103,322,123,126,82,37,23,501,123,265,104,194,78,111,50,309,126,107,57,201,104,84,44,38,17,65,32,83,53,104,36,43,20]
[null,"Built 1950 to 1959",112,105,30,24,122,74,150,74,61,28,44,43,12,14,1094,232,33,21,114,44,145,83,355,95,47,33,36,20,279,90,205,102,50,37,81,41,64,51,121,90,271,102,85,49,26,20,134,81,77,45,59,29,25,19]
[null,"Built 1940 to 1949",9,14,84,41,79,71,48,67,26,13,17,18,22,16,632,142,14,16,6,8,68,37,321,106,10,17,55,21,122,77,64,65,38,47,30,26,83,64,86,52,166,99,33,27,20,19,27,23,51,30,14,12,21,15]
[null,"Built 1939 or earlier",404,132,344,84,513,157,164,78,294,67,156,39,164,52,6027,369,166,46,137,47,173,72,1389,239,531,154,68,24,399,138,667,170,322,123,361,79,485,139,506,132,1083,177,798,147,129,36,337,61,456,99,104,31,209,67]

{"sheet":"ACS_Table_B25041","index":46,"n_rows":73,"n_cols":56,"rows_kept":73,"cut":false,"hidden":true,"merged":[]}
[null,"B25041. BEDROOMS "]
[null,"Universe:  HOUSING UNITS"]
[null,"Data Set: 2015-2019 American Community Survey 5-Year Estimates"]
[]
[null,null,"Allenstown",null,"Andover",null,"Boscawen",null,"Bow",null,"Bradford",null,"Canterbury",null,"Chichester",null,"Concord",null,"Danbury",null,"Dunbarton",null,"Epsom",null,"Franklin",null,"Henniker",null,"Hill",null,"Hooksett",null,"Hopkinton",null,"Loudon",null,"Newbury",null,"New London",null,"Northfield",null,"Pembroke",null,"Pittsfield",null,"Salisbury",null,"Sutton",null,"Warner",null,"Webster",null,"Wilmot"]
[null,null,"Estimate","Margin Of Error","Estimate","Margin Of Error","Estimate","Margin Of Error","Estimate","Margin Of Error","Estimate","Margin Of Error","Estimate","Margin Of Error","Estimate","Margin Of Error","Estimate","Margin Of Error","Estimate","Margin Of Error","Estimate","Margin Of Error","Estimate","Margin Of Error","Estimate","Margin Of Error","Estimate","Margin Of Error","Estimate","Margin Of Error","Estimate","Margin Of Error","Estimate","Margin Of Error","Estimate","Margin Of Error","Estimate","Margin Of Error","Estimate","Margin Of Error","Estimate","Margin Of Error","Estimate","Margin Of Error","Estimate","Margin Of Error","Estimate","Margin Of Error","Estimate","Margin Of Error","Estimate","Margin Of Error","Estimate","Margin Of Error","Estimate","Margin Of Error"]
[null,"Total:",1858,120,1227,85,1513,108,2817,143,859,87,1060,48,981,55,18663,406,614,69,1001,50,2044,125,4401,264,2011,143,506,60,5298,192,2409,125,2203,195,1736,110,2298,195,1953,122,2925,215,1822,168,632,70,1031,93,1414,109,875,69,809,73]
[null,"No bedroom",38,21,15,15,66,62,9,16,21,21,0,11,10,14,884,252,7,9,4,6,20,25,116,80,62,48,5,8,52,51,56,68,11,17,34,28,70,54,9,13,57,88,25,40,5,8,12,11,62,51,15,18,28,17]
[null,"1 bedroom",259,108,57,34,125,66,88,38,46,27,80,50,18,15,2850,356,43,30,40,20,123,55,859,208,210,89,38,23,405,126,80,63,83,53,51,25,158,77,179,88,268,119,265,92,26,18,103,41,175,68,69,29,51,24]
[null,"2 bedrooms",592,125,334,92,537,120,332,102,247,62,260,69,237,63,6882,364,196,48,153,43,677,137,1059,205,612,158,119,37,1690,244,525,173,725,180,396,98,478,110,711,131,927,247,624,178,171,50,223,66,434,96,239,46,198,53]
[null,"3 bedrooms",790,119,522,103,584,142,1371,138,373,58,439,78,589,79,4994,291,260,61,522,61,933,139,1789,238,769,152,238,53,2439,240,1023,185,801,196,817,121,909,149,810,129,1167,183,667,151,321,57,449,66,573,98,444,73,376,64]
[null,"4 bedrooms",169,75,248,69,143,63,862,130,131,50,211,62,119,39,2456,255,90,38,247,55,262,81,485,123,327,109,94,40,616,127,552,141,407,179,366,98,442,118,221,77,429,138,187,103,66,30,193,56,109,35,95,36,109,38]
[null,"5 or more bedrooms",10,14,51,37,58,49,155,75,41,25,70,29,8,12,597,146,18,19,35,21,29,32,93,68,31,29,12,16,96,67,173,89,176,111,72,46,241,64,23,21,77,52,54,32,43,18,51,28,61,31,13,8,47,29]
[]
[]
[null,"Calculated B25041. BEDROOMS "]
[null,"Universe:  HOUSING UNITS"]
[null,"Data Set: 2015-2019 American Community Survey 5-Year Estimates"]
[]
[null,null,"Allenstown",null,"Andover",null,"Boscawen",null,"Bow",null,"Bradford",null,"Canterbury",null,"Chichester",null,"Concord",null,"Danbury",null,"Dunbarton",null,"Epsom",null,"Franklin",null,"Henniker",null,"Hill",null,"Hooksett",null,"Hopkinton",null,"Loudon",null,"Newbury",null,"New London",null,"Northfield",null,"Pembroke",null,"Pittsfield",null,"Salisbury",null,"Sutton",null,"Warner",null,"Webster",null,"Wilmot"]
[null,null,"Estimate","Margin Of Error","Estimate","Margin Of Error","Estimate","Margin Of Error","Estimate","Margin Of Error","Estimate","Margin Of Error","Estimate","Margin Of Error","Estimate","Margin Of Error","Estimate","Margin Of Error","Estimate","Margin Of Error","Estimate","Margin Of Error","Estimate","Margin Of Error","Estimate","Margin Of Error","Estimate","Margin Of Error","Estimate","Margin Of Error","Estimate","Margin Of Error","Estimate","Margin Of Error","Estimate","Margin Of Error","Estimate","Margin Of Error","Estimate","Margin Of Error","Estimate","Margin Of Error","Estimate","Margin Of Error","Estimate","Margin Of Error","Estimate","Margin Of Error","Estimate","Margin Of Error","Estimate","Margin Of Error","Estimate","Margin Of Error","Estimate","Margin Of Error"]
[null,"Total:",{"$f":"C7","v":1858},{"$f":"D7","v":120},1227,85,1513,108,2817,143,859,87,1060,48,981,55,18663,406,614,69,1001,50,2044,125,{"$f":"Y7","v":4401},264,2011,143,506,60,5298,192,2409,125,2203,195,1736,110,2298,195,{"$f":"AO7","v":1953},122,2925,215,1822,168,632,70,1031,93,1414,109,875,69,809,73]
[null,"No bedroom",{"$f":"C8","v":38},21,15,15,66,62,9,16,21,21,0,11,10,14,884,252,7,9,4,6,20,25,{"$f":"Y8","v":116},80,62,48,5,8,52,51,56,68,11,17,34,28,70,54,{"$f":"AO8","v":9},13,57,88,25,40,5,8,12,11,62,51,15,18,28,17]
[null,"1 bedroom",{"$f":"C9","v":259},{"$f":"D9","v":108},57,34,125,66,88,38,46,27,80,50,18,15,2850,356,43,30,40,20,123,55,{"$f":"Y9","v":859},208,210,89,38,23,405,126,80,63,83,53,51,25,158,77,{"$f":"AO9","v":179},88,268,119,265,92,26,18,103,41,175,68,69,29,51,24]
[null,"2 bedrooms",{"$f":"C10","v":592},125,334,92,537,120,332,102,247,62,260,69,237,63,6882,364,196,48,153,43,677,137,{"$f":"Y10","v":1059},205,612,158,119,37,1690,244,525,173,725,180,396,98,478,110,{"$f":"AO10","v":711},131,927,247,624,178,171,50,223,66,434,96,239,46,198,53]
[null,"3 bedrooms",{"$f":"C11","v":790},119,522,103,584,142,1371,138,373,58,439,78,589,79,4994,291,260,61,522,61,933,139,{"$f":"Y11","v":1789},238,769,152,238,53,2439,240,1023,185,801,196,817,121,909,149,{"$f":"AO11","v":810},129,1167,183,667,151,321,57,449,66,573,98,444,73,376,64]
[null,"4 + bedrooms",{"$f":"C12+C13","v":179},{"$f":"SQRT((D12^2)+(D13^2))","v":76.295478240849903},{"$f":"E12+E13","v":299},{"$f":"SQRT((F12^2)+(F13^2))","v":78.294316524253531},{"$f":"G12+G13","v":201},{"$f":"SQRT((H12^2)+(H13^2))","v":79.81227975693966},{"$f":"I12+I13","v":1017},{"$f":"SQRT((J12^2)+(J13^2))","v":150.08331019803634},{"$f":"K12+K13","v":172},{"$f":"SQRT((L12^2)+(L13^2))","v":55.901699437494742},{"$f":"M12+M13","v":281},{"$f":"SQRT((N12^2)+(N13^2))","v":68.447059834590405},{"$f":"O12+O13","v":127},{"$f":"SQRT((P12^2)+(P13^2))","v":40.80441152620633},{"$f":"Q12+Q13","v":3053},{"$f":"SQRT((R12^2)+(R13^2))","v":293.83839095666173},{"$f":"S12+S13","v":108},{"$f":"SQRT((T12^2)+(T13^2))","v":42.485291572496003},{"$f":"U12+U13","v":282},{"$f":"SQRT((V12^2)+(V13^2))","v":58.872744118140105},{"$f":"W12+W13","v":291},{"$f":"SQRT((X12^2)+(X13^2))","v":87.091905479212016},{"$f":"Y12+Y13","v":578},{"$f":"SQRT((Z12^2)+(Z13^2))","v":140.54536634126364},{"$f":"AA12+AA13","v":358},{"$f":"SQRT((AB12^2)+(AB13^2))","v":112.79184367674819},{"$f":"AC12+AC13","v":106},{"$f":"SQRT((AD12^2)+(AD13^2))","v":43.08131845707603},{"$f":"AE12+AE13","v":712},{"$f":"SQRT((AF12^2)+(AF13^2))","v":143.58969322343438},{"$f":"AG12+AG13","v":725},{"$f":"SQRT((AH12^2)+(AH13^2))","v":166.73931749890306},{"$f":"AI12+AI13","v":583},{"$f":"SQRT((AJ12^2)+(AJ13^2))","v":210.62288574606512},{"$f":"AK12+AK13","v":438},{"$f":"SQRT((AL12^2)+(AL13^2))","v":108.25894882179486},{"$f":"AM12+AM13","v":683},{"$f":"SQRT((AN12^2)+(AN13^2))","v":134.23859355639868},{"$f":"AO12+AO13","v":244},{"$f":"SQRT((AP12^2)+(AP13^2))","v":79.81227975693966},{"$f":"AQ12+AQ13","v":506},{"$f":"SQRT((AR12^2)+(AR13^2))","v":147.47203124660621},{"$f":"AS12+AS13","v":241},{"$f":"SQRT((AT12^2)+(AT13^2))","v":107.8563859954523},{"$f":"AU12+AU13","v":109},{"$f":"SQRT((AV12^2)+(AV13^2))","v":34.985711369071801},{"$f":"AW12+AW13","v":244},{"$f":"SQRT((AX12^2)+(AX13^2))","v":62.609903369994115},{"$f":"AY12+AY13","v":170},{"$f":"SQRT((AZ12^2)+(AZ13^2))","v":46.75467891024384},{"$f":"BA12+BA13","v":108},{"$f":"SQRT((BB12^2)+(BB13^2))","v":36.878177829171548},{"$f":"BC12+BC13","v":156},{"$f":"SQRT((BD12^2)+(BD13^2))","v":47.801673610868477}]
[]
[]
[]
[]
[]
[]
[]
[]
[]
[]
[]
[]
[]
[]
[]
[]
[]
[]
[]
[null,"Calculated B25041. BEDROOMS "]
[null,"Universe:  HOUSING UNITS"]
[null,"Data Set: 2010-2014 American Community Survey 5-Year Estimates"]
[]
[null,null,"Allenstown",null,"Andover",null,"Boscawen",null,"Bow",null,"Bradford",null,"Canterbury",null,"Chichester",null,"Concord",null,"Danbury",null,"Dunbarton",null,"Epsom",null,"Franklin",null,"Henniker",null,"Hill",null,"Hooksett",null,"Hopkinton",null,"Loudon",null,"Newbury",null,"New London",null,"Northfield",null,"Pembroke",null,"Pittsfield",null,"Salisbury",null,"Sutton",null,"Warner",null,"Webster",null,"Wilmot"]
[null,null,"Estimate","Margin Of Error","Estimate","Margin Of Error","Estimate","Margin Of Error","Estimate","Margin Of Error","Estimate","Margin Of Error","Estimate","Margin Of Error","Estimate","Margin Of Error","Estimate","Margin Of Error","Estimate","Margin Of Error","Estimate","Margin Of Error","Estimate","Margin Of Error","Estimate","Margin Of Error","Estimate","Margin Of Error","Estimate","Margin Of Error","Estimate","Margin Of Error","Estimate","Margin Of Error","Estimate","Margin Of Error","Estimate","Margin Of Error","Estimate","Margin Of Error","Estimate","Margin Of Error","Estimate","Margin Of Error","Estimate","Margin Of Error","Estimate","Margin Of Error","Estimate","Margin Of Error","Estimate","Margin Of Error","Estimate","Margin Of Error","Estimate","Margin Of Error"]
[null,"Total:",1812,101,1174,79,1400,158,2818,133,879,94,1045,46,1075,67,18272,372,696,69,1141,65,1850,125,4046,258,1992,181,532,61,5289,235,2360,146,2139,157,1620,120,2338,185,1759,115,3085,220,1642,135,633,66,1014,103,1393,110,877,71,708,65]
[null,"No bedroom",56,75,0,11,50,53,0,15,21,18,0,11,11,18,466,116,38,25,0,11,25,40,9,14,0,11,0,11,32,35,23,37,29,29,9,10,27,30,12,19,35,41,11,13,13,15,21,17,58,53,20,23,3,4]
[null,"1 bedroom",266,100,111,53,102,42,106,46,55,28,40,25,85,57,3140,323,60,32,58,35,139,74,806,200,254,101,58,27,434,112,147,87,105,81,82,48,114,61,90,54,473,167,316,109,21,17,61,27,155,63,79,33,36,24]
[null,"2 bedrooms",610,120,403,96,474,133,393,104,233,56,387,69,227,62,6339,424,263,57,261,64,575,116,983,186,695,157,140,41,1414,225,558,140,607,178,412,96,521,106,624,122,674,203,513,127,200,47,229,56,391,93,223,56,209,57]
[null,"3 bedrooms",696,113,424,87,536,124,1303,150,422,65,405,69,570,93,5952,359,227,60,549,79,846,141,1479,214,637,148,243,51,2609,246,859,162,1011,155,724,120,1139,148,754,132,1340,227,562,127,259,60,464,77,561,89,419,62,353,67]
[null,"4 + bedrooms",184,73.23933369440222,236,69.06518659932803,238,80.049984384758005,1016,153.02614155757831,148,38.013155617496423,213,58.591808301161009,182,52,2375,254.59379411132551,108,36.235341863986875,273,62.641839053463301,265,83.648072302952684,769,161.0372627685903,406,117.99152511939153,91,34.409301068170507,800,171.2337583538947,773,186.77526602845464,387,122.56018929489298,393,95.425363504678359,537,125.67020331009256,279,90.824005637276315,563,164.98484778912274,240,80.777472107017559,140,40.718546143004666,239,57.30619512757761,228,61.684682053164543,136,39.05124837953327,107,39.05124837953327]
[]
[]
[]
[null,"Calculated B25041. BEDROOMS "]
[null,"Universe:  HOUSING UNITS"]
[null,"Data Set: 2005-2009 American Community Survey 5-Year Estimates"]
[]
[null,null,"Allenstown",null,"Andover",null,"Boscawen",null,"Bow",null,"Bradford",null,"Canterbury",null,"Chichester",null,"Concord",null,"Danbury",null,"Dunbarton",null,"Epsom",null,"Franklin",null,"Henniker",null,"Hill",null,"Hooksett",null,"Hopkinton",null,"Loudon",null,"Newbury",null,"New London",null,"Northfield",null,"Pembroke",null,"Pittsfield",null,"Salisbury",null,"Sutton",null,"Warner",null,"Webster",null,"Wilmot"]
[null,null,"Estimate","Margin Of Error","Estimate","Margin Of Error","Estimate","Margin Of Error","Estimate","Margin Of Error","Estimate","Margin Of Error","Estimate","Margin Of Error","Estimate","Margin Of Error","Estimate","Margin Of Error","Estimate","Margin Of Error","Estimate","Margin Of Error","Estimate","Margin Of Error","Estimate","Margin Of Error","Estimate","Margin Of Error","Estimate","Margin Of Error","Estimate","Margin Of Error","Estimate","Margin Of Error","Estimate","Margin Of Error","Estimate","Margin Of Error","Estimate","Margin Of Error","Estimate","Margin Of Error","Estimate","Margin Of Error","Estimate","Margin Of Error","Estimate","Margin Of Error","Estimate","Margin Of Error","Estimate","Margin Of Error","Estimate","Margin Of Error","Estimate","Margin Of Error"]
[null,"Total:",1897,142,1104,73,1469,209,2886,136,761,83,959,32,925,52,18440,496,688,63,1048,54,1750,128,3659,258,1970,182,449,47,4761,270,2473,135,1855,115,1353,93,2194,254,2023,175,3072,183,1745,112,495,51,949,88,1288,174,778,61,583,65]
[null,"No bedroom",106,84,0,114,9,15,0,114,0,114,0,114,0,114,165,84,5,7,0,114,38,58,95,75,64,57,3,4,78,65,0,114,28,46,0,114,0,114,0,114,19,30,18,21,3,5,19,17,11,17,0,114,0,114]
[null,"1 bedroom",325,108,97,52,72,40,98,50,54,24,41,28,11,12,3398,388,78,32,85,43,131,79,657,147,353,123,37,16,233,96,132,86,47,37,67,33,120,85,282,92,481,166,243,111,4,6,92,35,234,77,85,35,25,16]
[null,"2 bedrooms",451,151,386,98,422,141,437,141,210,50,278,69,152,55,6862,458,242,69,201,53,680,136,1049,157,551,130,101,30,1639,229,324,130,376,113,331,77,496,160,539,126,961,190,606,142,164,43,236,42,450,122,184,45,146,61]
[null,"3 bedrooms",705,154,489,87,596,156,1412,178,308,57,463,73,563,64,5399,343,266,61,506,72,733,105,1302,200,726,153,226,44,2077,210,1151,201,1041,141,602,82,1074,196,938,106,999,187,551,105,252,47,410,89,438,100,386,67,258,56]
[null,"4 + bedrooms",310,140.24621207005913,132,50.606323715519977,370,138.92443989449805,939,181.24568960391858,189,50.990195135927848,177,51.039200620699383,199,57.706152185014034,2616,295.70593500976605,97,38.418745424597091,256,66.400301204136113,168,61.684682053164543,556,127.91403363196706,276,102.55242561733974,82,30.528675044947494,734,150.88074761214565,866,190.93978108293726,363,103.76897416858277,353,103.4456378974,504,128.89142717807107,264,106.10372283760829,612,147.49237268414933,327,90.426765949026404,72,26.476404589747453,192,56.515484603779164,155,45.188494110780013,123,38.275318418009277,154,51.264022471905186]

{"sheet":"PovertyCharacteristics","index":47,"n_rows":82,"n_cols":17,"rows_kept":82,"cut":false,"hidden":true,"merged":[[77,2,78,3],[77,6,78,9],[77,11,78,13],[21,15,21,16],[49,15,49,16],[64,15,64,16],[21,11,21,13],[30,2,31,4],[30,7,31,9],[30,11,31,13],[49,11,49,14],[21,3,21,5],[21,7,21,9],[64,3,64,5],[64,7,64,9],[64,11,64,14]]}
[]
[null,null,{"$f":"CntyDataLink!A86","v":"Allenstown"}]
[null,null,"POVERTY CHARACTERISTICS"]
[]
[]
[]
[]
[]
[]
[]
[]
[]
[]
[]
[]
[]
[]
[null,null,null,null,null,null,null,null,null,null,null,null,"2009 Income (2005-2009 ACS)"]
[null,null,null,null,null,null,null,null,null,null,null,null,"2014 Income (2010-2014 ACS)"]
[null,null,null,null,null,null,null,null,null,null,null,null,"2019 Income (2015-2019 ACS)"]
[]
[null,null,null,"2009 Inc below Poverty Level",null,null,null,"2014 Inc below Poverty Level",null,null,null,"2019 Inc below Poverty Level",null,null,null,"Statistically Significant Change"]
[null,null,"Population","Estimate","Margin of Error","% of Population in Poverty",null,"Estimate","Margin of Error","% of Population in Poverty",null,"Estimate","Margin of Error","% of Population in Poverty",null,"2009-2019","2014-2019"]
[null,null," Total Individuals living Poverty",{"$f":"CntyDataLinkPrior10YearEstimate!$D$124","v":276},{"$f":"CntyDataLinkPrior10YearEstimate!$E$124","v":272},{"$f":"D24/CntyDataLinkPrior10YearEstimate!$B$124","v":5.6499488229273288E-2},null,{"$f":"CntyDataLinkPrior5YearEstimates!$D$124","v":375},{"$f":"CntyDataLinkPrior5YearEstimates!$E$124","v":189},{"$f":"H24/CntyDataLinkPrior5YearEstimates!$B$124","v":8.8276836158192096E-2},null,{"$f":"CntyDataLink!$D$124","v":401},{"$f":"CntyDataLink!$E$124","v":147},{"$f":"L24/CntyDataLink!$B$124","v":9.4131455399061037E-2},null,{"$f":"StatisticallySignificantCalcs!$A112","v":"N"},{"$f":"StatisticallySignificantCalcs!$J$112","v":"N"}]
[null,null,"Under 5 yrs.",{"$f":"CntyDataLinkPrior10YearEstimate!$F$124","v":21},{"$f":"CntyDataLinkPrior10YearEstimate!$G$124","v":42.190046219457976},{"$f":"D25/(CntyDataLinkPrior10YearEstimate!$F$124+CntyDataLinkPrior10YearEstimate!$R$124)","v":8.5714285714285715E-2},null,{"$f":"CntyDataLinkPrior5YearEstimates!$F$124","v":43},{"$f":"CntyDataLinkPrior5YearEstimates!$G$124","v":49.040799340956916},{"$f":"H25/(CntyDataLinkPrior5YearEstimates!$F$124+CntyDataLinkPrior5YearEstimates!$R$124)","v":0.14429530201342283},null,{"$f":"CntyDataLink!$F$124","v":12},{"$f":"CntyDataLink!$G$124","v":27.202941017470888},{"$f":"L25/(CntyDataLink!$F$124+CntyDataLink!$R$124)","v":6.7796610169491525E-2},null,{"$f":"StatisticallySignificantCalcs!$A113","v":"N"},{"$f":"StatisticallySignificantCalcs!$J$113","v":"N"}]
[null,null,"5 to 17 yrs.",{"$f":"CntyDataLinkPrior10YearEstimate!$H$124","v":102},{"$f":"CntyDataLinkPrior10YearEstimate!$I$124","v":292.54572292207587},{"$f":"D26/(CntyDataLinkPrior10YearEstimate!$H$124+CntyDataLinkPrior10YearEstimate!$T$124)","v":0.10461538461538461},null,{"$f":"CntyDataLinkPrior5YearEstimates!$H$124","v":42},{"$f":"CntyDataLinkPrior5YearEstimates!$I$124","v":41.509035161034518},{"$f":"H26/(CntyDataLinkPrior5YearEstimates!$H$124+CntyDataLinkPrior5YearEstimates!$T$124)","v":8.3499005964214709E-2},null,{"$f":"CntyDataLink!$H$124","v":117},{"$f":"CntyDataLink!$I$124","v":69.957129729570809},{"$f":"L26/(CntyDataLink!$H$124+CntyDataLink!$T$124)","v":0.21005385996409337},null,{"$f":"StatisticallySignificantCalcs!$A114","v":"N"},{"$f":"StatisticallySignificantCalcs!$J$114","v":"N"}]
[null,null,"18 to 64 yrs.",{"$f":"CntyDataLinkPrior10YearEstimate!$J$124","v":113},{"$f":"CntyDataLinkPrior10YearEstimate!$K$124","v":208.56653614614211},{"$f":"D27/(CntyDataLinkPrior10YearEstimate!$J$124+CntyDataLinkPrior10YearEstimate!$V$124)","v":3.5224438902743141E-2},null,{"$f":"CntyDataLinkPrior5YearEstimates!$J$124","v":272},{"$f":"CntyDataLinkPrior5YearEstimates!$K$124","v":119.06720791217035},{"$f":"H27/(CntyDataLinkPrior5YearEstimates!$J$124+CntyDataLinkPrior5YearEstimates!$V$124)","v":9.4608695652173919E-2},null,{"$f":"CntyDataLink!$J$124","v":247},{"$f":"CntyDataLink!$K$124","v":97.123632551506233},{"$f":"L27/(CntyDataLink!$J$124+CntyDataLink!$V$124)","v":8.5348997926744996E-2},null,{"$f":"StatisticallySignificantCalcs!$A115","v":"N"},{"$f":"StatisticallySignificantCalcs!$J$115","v":"N"}]
[null,null,"65 to 74 yrs.",{"$f":"CntyDataLinkPrior10YearEstimate!$L$124","v":24},{"$f":"CntyDataLinkPrior10YearEstimate!$M$124","v":27.586228448267445},{"$f":"D28/(CntyDataLinkPrior10YearEstimate!$L$124+CntyDataLinkPrior10YearEstimate!$X$124)","v":9.125475285171103E-2},null,{"$f":"CntyDataLinkPrior5YearEstimates!$L$124","v":0},{"$f":"CntyDataLinkPrior5YearEstimates!$M$124","v":15.556349186104045},{"$f":"H28/(CntyDataLinkPrior5YearEstimates!$L$124+CntyDataLinkPrior5YearEstimates!$X$124)","v":0},null,{"$f":"CntyDataLink!$L$124","v":0},{"$f":"CntyDataLink!$M$124","v":15.556349186104045},{"$f":"L28/(CntyDataLink!$L$124+CntyDataLink!$X$124)","v":0},null,{"$f":"StatisticallySignificantCalcs!$A116","v":"N"},{"$f":"StatisticallySignificantCalcs!$J$116","v":"N"}]
[null,null,"75 yrs. & Over",{"$f":"CntyDataLinkPrior10YearEstimate!$N$124","v":16},{"$f":"CntyDataLinkPrior10YearEstimate!$O$124","v":117.38824472663352},{"$f":"D29/(CntyDataLinkPrior10YearEstimate!$N$124+CntyDataLinkPrior10YearEstimate!$Z$124)","v":8.247422680412371E-2},null,{"$f":"CntyDataLinkPrior5YearEstimates!$N$124","v":18},{"$f":"CntyDataLinkPrior5YearEstimates!$O$124","v":18.384776310850235},{"$f":"H29/(CntyDataLinkPrior5YearEstimates!$N$124+CntyDataLinkPrior5YearEstimates!$Z$124)","v":7.0038910505836577E-2},null,{"$f":"CntyDataLink!$N$124","v":25},{"$f":"CntyDataLink!$O$124","v":23.706539182259394},{"$f":"L29/(CntyDataLink!$N$124+CntyDataLink!$Z$124)","v":8.0645161290322578E-2},null,{"$f":"StatisticallySignificantCalcs!$A117","v":"N"},{"$f":"StatisticallySignificantCalcs!$J$117","v":"N"}]
[]
[null,null,"Source: 2005-2009 American Community Survey  Table B1701",null,null,null,null,"Source: 2015-2019 American Community Survey  Table B1701",null,null,null,"Source: 2015-2019 American Community Survey  Table B1701"]
[]
[]
[]
[]
[]
[]
[]
[]
[]
[]
[]
[]
[]
[]
[]
[]
[]
[]
[null,null,null,{"$f":"D22","v":"2009 Inc below Poverty Level"},null,null,null,{"$f":"H22","v":"2014 Inc below Poverty Level"},null,null,null,{"$f":"L22","v":"2019 Inc below Poverty Level"},null,null,null,"Statistically Significant Change"]
[null,null,null,"Estimate","Margin of Error","% of Family Type in Poverty",null,"Estimate","Margin of Error ","% of Family Type in Poverty",null,"Estimate","Margin of Error ","% of Family Type in Poverty",null,"2009-2019","2014-2019"]
[]
[]
[null,null,"Total Households",{"$f":"CntyDataLinkPrior10YearEstimate!$AD$124","v":32},{"$f":"CntyDataLinkPrior10YearEstimate!$AE$124","v":38},{"$f":"$D54/($D54+$D68)","v":1.8223234624145785E-2},null,{"$f":"CntyDataLinkPrior5YearEstimates!$AD$124","v":76},{"$f":"CntyDataLinkPrior5YearEstimates!$AE$124","v":56},{"$f":"$H54/($H54+$H68)","v":4.5130641330166268E-2},null,{"$f":"CntyDataLink!$AD$124","v":99},{"$f":"CntyDataLink!$AE$124","v":58},{"$f":"$L54/($L54+$L68)","v":5.7759626604434074E-2},null,{"$f":"StatisticallySignificantCalcs!$A$94","v":"N"},{"$f":"StatisticallySignificantCalcs!$J$94","v":"N"}]
[null,null,"Family Households",{"$f":"CntyDataLinkPrior10YearEstimate!$AF$124","v":12},{"$f":"CntyDataLinkPrior10YearEstimate!$AG$124","v":20},{"$f":"$D55/($D55+$D69)","v":9.6852300242130755E-3},null,{"$f":"CntyDataLinkPrior5YearEstimates!$AF$124","v":64},{"$f":"CntyDataLinkPrior5YearEstimates!$AG$124","v":53},{"$f":"$H55/($H55+$H69)","v":5.4700854700854701E-2},null,{"$f":"CntyDataLink!$AF$124","v":13},{"$f":"CntyDataLink!$AG$124","v":17},{"$f":"$L55/($L55+$L69)","v":1.2252591894439209E-2},null,{"$f":"StatisticallySignificantCalcs!$A$95","v":"N"},{"$f":"StatisticallySignificantCalcs!$J$95","v":"N"}]
[null,null,"Married Couple Fam HH",{"$f":"CntyDataLinkPrior10YearEstimate!$AH$124","v":0},{"$f":"CntyDataLinkPrior10YearEstimate!$AI$124","v":0},{"$f":"$D56/($D56+$D70)","v":0},null,{"$f":"CntyDataLinkPrior5YearEstimates!$AH$124","v":11},{"$f":"CntyDataLinkPrior5YearEstimates!$AI$124","v":18},1.2956419316843345E-2,null,{"$f":"CntyDataLink!$AH$124","v":13},{"$f":"CntyDataLink!$AI$124","v":17},1.4976958525345621E-2,null,{"$f":"StatisticallySignificantCalcs!$A$96","v":"N"},{"$f":"StatisticallySignificantCalcs!$J$96","v":"N"}]
[null,null,"M C Fam HH w/Children",{"$f":"CntyDataLinkPrior10YearEstimate!$BN$124","v":0},{"$f":"CntyDataLinkPrior10YearEstimate!$BO$124","v":0},0,null,{"$f":"CntyDataLinkPrior5YearEstimates!$BN$124","v":17},{"$f":"CntyDataLinkPrior5YearEstimates!$BO$124","v":26},5.4140127388535034E-2,null,{"$f":"CntyDataLink!$BN$124","v":6},{"$f":"CntyDataLink!$BO$124","v":14},1.6901408450704224E-2,null,{"$f":"StatisticallySignificantCalcs!$A$97","v":"N"},{"$f":"StatisticallySignificantCalcs!$J$97","v":"N"}]
[null,null,"Male Head of Family HH ",{"$f":"CntyDataLinkPrior10YearEstimate!$AL$124","v":0},{"$f":"CntyDataLinkPrior10YearEstimate!$AM$124","v":114},0,null,{"$f":"CntyDataLinkPrior5YearEstimates!$AL$124","v":0},{"$f":"CntyDataLinkPrior5YearEstimates!$AM$124","v":11},0,null,{"$f":"CntyDataLink!$AL$124","v":0},{"$f":"CntyDataLink!$AM$124","v":11},0,null,{"$f":"StatisticallySignificantCalcs!$A$98","v":"N"},{"$f":"StatisticallySignificantCalcs!$J$98","v":"N"}]
[null,null,"Male Head of HH w/Children",{"$f":"CntyDataLinkPrior10YearEstimate!$BP$124","v":32},{"$f":"CntyDataLinkPrior10YearEstimate!$BQ$124","v":38},2.5416997617156472E-2,null,{"$f":"CntyDataLinkPrior5YearEstimates!$BP$124","v":0},{"$f":"CntyDataLinkPrior5YearEstimates!$BQ$124","v":11},0,null,{"$f":"CntyDataLink!$BP$124","v":0},{"$f":"CntyDataLink!$BQ$124","v":11},0,null,{"$f":"StatisticallySignificantCalcs!$A$99","v":"N"},{"$f":"StatisticallySignificantCalcs!$J$99","v":"N"}]
[null,null,"Female Head of Family HH ",{"$f":"CntyDataLinkPrior10YearEstimate!$AN$124","v":20},{"$f":"CntyDataLinkPrior10YearEstimate!$AO$124","v":33},0.10050251256281408,null,{"$f":"CntyDataLinkPrior5YearEstimates!$AN$124","v":12},{"$f":"CntyDataLinkPrior5YearEstimates!$AO$124","v":20},6.8181818181818177E-2,null,{"$f":"CntyDataLink!$AN$124","v":86},{"$f":"CntyDataLink!$AO$124","v":55},0.40375586854460094,null,{"$f":"StatisticallySignificantCalcs!$A$100","v":"Y"},{"$f":"StatisticallySignificantCalcs!$J$100","v":"Y"}]
[null,null,"Female Head of HH w/Children",{"$f":"CntyDataLinkPrior10YearEstimate!$BR$124","v":12},{"$f":"CntyDataLinkPrior10YearEstimate!$BS$124","v":20},2.4144869215291749E-2,null,{"$f":"CntyDataLinkPrior5YearEstimates!$BR$124","v":12},{"$f":"CntyDataLinkPrior5YearEstimates!$BS$124","v":20},8.8888888888888892E-2,null,{"$f":"CntyDataLink!$BR$124","v":71},{"$f":"CntyDataLink!$BS$124","v":50},0.67619047619047623,null,{"$f":"StatisticallySignificantCalcs!$A$101","v":"Y"},{"$f":"StatisticallySignificantCalcs!$J$101","v":"Y"}]
[null,null,"Non-Family HH ",{"$f":"CntyDataLinkPrior10YearEstimate!$AP$124","v":68},{"$f":"CntyDataLinkPrior10YearEstimate!$AQ$124","v":53},0.21587301587301588,null,{"$f":"CntyDataLinkPrior5YearEstimates!$AP$124","v":103},{"$f":"CntyDataLinkPrior5YearEstimates!$AQ$124","v":91},0.17024793388429751,null,{"$f":"CntyDataLink!$AP$124","v":95},{"$f":"CntyDataLink!$AQ$124","v":65},0.14350453172205438,null,{"$f":"StatisticallySignificantCalcs!$A$102","v":"N"},{"$f":"StatisticallySignificantCalcs!$J$102","v":"N"}]
[]
[null,"Data from the American Community Survey are estimates."]
[null,null,null,"2009  Inc at or Above Poverty Level",null,null,null,"2014 Inc at or Above Poverty Level",null,null,null,"2019 Inc at or above Poverty Level",null,null,null,"Statistically Significant Change"]
[null,null,"Households","Estimate","Margin of Error",null,null,"Estimate","Margin of Error",null,null,"Estimate","Margin of Error",null,null,"2009-2019","2014-2019"]
[]
[null,null,"Total Households",{"$f":"CntyDataLinkPrior10YearEstimate!$AV$124","v":1724},{"$f":"CntyDataLinkPrior10YearEstimate!$AW$124","v":135},{"$f":"$D68/($D68+$D54)","v":0.98177676537585423},null,{"$f":"CntyDataLinkPrior5YearEstimates!$AV$124","v":1608},{"$f":"CntyDataLinkPrior5YearEstimates!$AW$124","v":131},{"$f":"$H68/($H68+$H54)","v":0.95486935866983369},null,{"$f":"CntyDataLink!$AV$124","v":1615},{"$f":"CntyDataLink!$AW$124","v":124},{"$f":"$L68/($L68+$L54)","v":0.94224037339556588},null,{"$f":"StatisticallySignificantCalcs!$A$103","v":"N"},{"$f":"StatisticallySignificantCalcs!$J$103","v":"N"}]
[null,null,"Family Households",{"$f":"CntyDataLinkPrior10YearEstimate!$AX$124","v":1227},{"$f":"CntyDataLinkPrior10YearEstimate!$AY$124","v":107},{"$f":"$D69/($D69+$D55)","v":0.99031476997578693},null,{"$f":"CntyDataLinkPrior5YearEstimates!$AX$124","v":1106},{"$f":"CntyDataLinkPrior5YearEstimates!$AY$124","v":106},{"$f":"$H69/($H69+$H55)","v":0.94529914529914527},null,{"$f":"CntyDataLink!$AX$124","v":1048},{"$f":"CntyDataLink!$AY$124","v":92},{"$f":"$L69/($L69+$L55)","v":0.98774740810556083},null,{"$f":"StatisticallySignificantCalcs!$A$104","v":"Y"},{"$f":"StatisticallySignificantCalcs!$J$104","v":"N"}]
[null,null,"Married Couple Fam HH",{"$f":"CntyDataLinkPrior10YearEstimate!$AZ$124","v":1074},{"$f":"CntyDataLinkPrior10YearEstimate!$BA$124","v":172},{"$f":"$D70/($D70+$D56)","v":1},null,{"$f":"CntyDataLinkPrior5YearEstimates!$AZ$124","v":838},{"$f":"CntyDataLinkPrior5YearEstimates!$BA$124","v":113},{"$f":"$H70/($H70+$H56)","v":0.98704358068315667},null,{"$f":"CntyDataLink!$AZ$124","v":855},{"$f":"CntyDataLink!$BA$124","v":107},0.98502304147465436,null,{"$f":"StatisticallySignificantCalcs!$A$105","v":"Y"},{"$f":"StatisticallySignificantCalcs!$J$105","v":"N"}]
[null,null,"M C Fam HH w/Children",{"$f":"CntyDataLinkPrior10YearEstimate!$BT$124","v":297},{"$f":"CntyDataLinkPrior10YearEstimate!$BU$124","v":68},1,null,{"$f":"CntyDataLinkPrior5YearEstimates!$BT$124","v":297},{"$f":"CntyDataLinkPrior5YearEstimates!$BU$124","v":68},0.94585987261146498,null,{"$f":"CntyDataLink!$BT$124","v":349},{"$f":"CntyDataLink!$BU$124","v":88},0.9830985915492958,null,{"$f":"StatisticallySignificantCalcs!$A$106","v":"N"},{"$f":"StatisticallySignificantCalcs!$J$106","v":"N"}]
[null,null,"Male Head of Family HH ",{"$f":"CntyDataLinkPrior10YearEstimate!$BD$124","v":56},{"$f":"CntyDataLinkPrior10YearEstimate!$BE$124","v":41},1,null,{"$f":"CntyDataLinkPrior5YearEstimates!$BD$124","v":104},{"$f":"CntyDataLinkPrior5YearEstimates!$BE$124","v":56},1,null,{"$f":"CntyDataLink!$BD$124","v":66},{"$f":"CntyDataLink!$BE$124","v":52},1,null,{"$f":"StatisticallySignificantCalcs!$A$107","v":"N"},{"$f":"StatisticallySignificantCalcs!$J$107","v":"N"}]
[null,null,"Male Head of HH w/Children",{"$f":"CntyDataLinkPrior10YearEstimate!$BV$124","v":1227},{"$f":"CntyDataLinkPrior10YearEstimate!$BW$124","v":107},0.97458300238284357,null,{"$f":"CntyDataLinkPrior5YearEstimates!$BV$124","v":60},{"$f":"CntyDataLinkPrior5YearEstimates!$BW$124","v":45},1,null,{"$f":"CntyDataLink!$BV$124","v":44},{"$f":"CntyDataLink!$BW$124","v":49},1,null,{"$f":"StatisticallySignificantCalcs!$A$108","v":"Y"},{"$f":"StatisticallySignificantCalcs!$J$108","v":"N"}]
[null,null,"Female Head of Family HH ",{"$f":"CntyDataLinkPrior10YearEstimate!$BF$124","v":179},{"$f":"CntyDataLinkPrior10YearEstimate!$BG$124","v":89},0.89949748743718594,null,{"$f":"CntyDataLinkPrior5YearEstimates!$BF$124","v":164},{"$f":"CntyDataLinkPrior5YearEstimates!$BG$124","v":65},0.93181818181818177,null,{"$f":"CntyDataLink!$BF$124","v":127},{"$f":"CntyDataLink!$BG$124","v":58},0.59624413145539901,null,{"$f":"StatisticallySignificantCalcs!$A$109","v":"N"},{"$f":"StatisticallySignificantCalcs!$J$109","v":"N"}]
[null,null,"Female Head of HH w/Children",{"$f":"CntyDataLinkPrior10YearEstimate!$BX$124","v":485},{"$f":"CntyDataLinkPrior10YearEstimate!$BY$124","v":95},0.9758551307847082,null,{"$f":"CntyDataLinkPrior5YearEstimates!$BX$124","v":123},{"$f":"CntyDataLinkPrior5YearEstimates!$BY$124","v":61},0.91111111111111109,null,{"$f":"CntyDataLink!$BX$124","v":34},{"$f":"CntyDataLink!$BY$124","v":28},0.32380952380952382,null,{"$f":"StatisticallySignificantCalcs!$A$110","v":"Y"},{"$f":"StatisticallySignificantCalcs!$J$110","v":"Y"}]
[null,null,"Non-Family HH ",{"$f":"CntyDataLinkPrior10YearEstimate!$BH$124","v":247},{"$f":"CntyDataLinkPrior10YearEstimate!$BI$124","v":90},0.78412698412698412,null,{"$f":"CntyDataLinkPrior5YearEstimates!$BH$124","v":502},{"$f":"CntyDataLinkPrior5YearEstimates!$BI$124","v":116},0.82975206611570251,null,{"$f":"CntyDataLink!$BH$124","v":567},{"$f":"CntyDataLink!$BI$124","v":118},0.85649546827794565,null,{"$f":"StatisticallySignificantCalcs!$A$111","v":"Y"},{"$f":"StatisticallySignificantCalcs!$J$111","v":"N"}]
[]
[null,null,"Source: 2005-2009 American Community Survey ",null,null,null,"Source: 2010-2014 American Community Survey",null,null,null,null,"Source: 2015-2019 American Community Survey"]
[]
[null,null,"Tables B17010; and B17017",null,null,null,"Tables B17010; and B17017",null,null,null,null,"Tables B17010; and B17017"]
[]
[null,null,"Data from the American Community Survey are estimates."]

{"sheet":"ACS_Table_ B17001","index":48,"n_rows":209,"n_cols":56,"rows_kept":209,"cut":false,"hidden":true,"merged":[]}
[null,"B17001. POVERTY STATUS IN THE PAST 12 MONTHS BY SEX BY AGE"]
[null,"Universe:  POPULATION FOR WHOM POVERTY STATUS IS DETERMINED"]
[null,"Data Set: 2015-2019 American Community Survey 5-Year Estimates"]
[]
[null,null,"Allenstown",null,"Andover",null,"Boscawen",null,"Bow",null,"Bradford",null,"Canterbury",null,"Chichester",null,"Concord",null,"Danbury",null,"Dunbarton",null,"Epsom",null,"Franklin",null,"Henniker",null,"Hill",null,"Hooksett",null,"Hopkinton",null,"Loudon",null,"Newbury",null,"New London",null,"Northfield",null,"Pembroke",null,"Pittsfield",null,"Salisbury",null,"Sutton",null,"Warner",null,"Webster",null,"Wilmot"]
[null,null,"Estimate","Margin Of Error","Estimate","Margin Of Error","Estimate","Margin Of Error","Estimate","Margin Of Error","Estimate","Margin Of Error","Estimate","Margin Of Error","Estimate","Margin Of Error","Estimate","Margin Of Error","Estimate","Margin Of Error","Estimate","Margin Of Error","Estimate","Margin Of Error","Estimate","Margin Of Error","Estimate","Margin Of Error","Estimate","Margin Of Error","Estimate","Margin Of Error","Estimate","Margin Of Error","Estimate","Margin Of Error","Estimate","Margin Of Error","Estimate","Margin Of Error","Estimate","Margin Of Error","Estimate","Margin Of Error","Estimate","Margin Of Error","Estimate","Margin Of Error","Estimate","Margin Of Error","Estimate","Margin Of Error","Estimate","Margin Of Error","Estimate","Margin Of Error"]
[null,"Total:",4316,79,2782,321,3389,190,7854,28,1584,214,2348,146,2662,29,40547,270,1118,162,2813,27,4612,122,8461,50,4473,142,916,148,13427,171,5614,85,5505,51,2096,214,3363,191,4809,89,7084,108,3923,256,1422,182,1897,279,2741,119,1759,180,1628,215]
[null,"Income in the past 12 months below poverty level:",464,247,298,230,117,69,174,111,53,58,82,36,147,122,3668,571,71,44,31,22,175,120,754,292,443,222,88,83,534,201,210,119,377,236,18,16,128,76,277,196,304,200,514,434,63,38,30,20,199,67,103,56,26,24]
[null,"Male:",187,141,220,228,56,55,77,71,30,42,25,18,30,36,1449,290,21,17,12,11,75,60,219,146,180,118,47,40,287,150,47,40,220,127,12,12,53,45,157,190,101,91,324,323,35,25,12,10,108,49,41,29,6,7]
[null,"Under 5 years",2,5,0,11,0,11,9,13,0,11,0,11,23,31,133,86,7,7,0,11,13,22,19,28,26,40,0,11,0,18,0,16,0,16,0,11,18,28,59,86,0,16,10,15,0,11,0,11,6,9,10,10,0,11]
[null,"5 years",6,13,0,11,0,11,0,16,9,14,0,11,0,11,24,29,0,11,0,11,13,20,0,16,0,11,0,11,0,18,0,16,0,16,0,11,0,11,0,11,0,16,74,105,0,11,0,11,0,11,0,11,0,11]
[null,"6 to 11 years",16,22,7,10,0,11,26,30,9,14,0,11,0,11,67,47,4,5,0,11,8,14,34,46,0,11,13,18,15,17,0,16,0,16,0,11,0,11,0,11,0,16,75,105,6,10,0,11,0,11,7,11,0,11]
[null,"12 to 14 years",0,11,10,10,0,11,0,16,9,14,0,11,0,11,24,26,0,11,0,11,0,11,34,46,0,11,0,11,0,18,13,21,0,16,0,11,0,11,0,11,0,16,0,11,0,11,0,11,0,11,0,11,0,11]
[null,"15 years",0,11,0,11,0,11,5,9,0,11,0,11,0,11,14,18,0,11,0,11,0,11,0,16,7,10,0,11,0,18,0,16,0,16,0,11,0,11,0,11,0,16,0,11,0,11,0,11,0,11,0,11,0,11]
[null,"16 and 17 years",6,10,58,79,0,11,10,16,0,11,0,11,0,11,0,24,0,11,0,11,7,25,0,16,0,11,0,11,10,15,0,16,0,16,0,11,0,11,0,11,0,16,0,11,4,6,0,11,5,7,0,11,0,11]
[null,"18 to 24 years",61,65,48,69,19,31,0,16,0,11,2,4,0,11,247,113,0,11,0,11,0,11,38,33,98,107,0,11,104,127,0,16,0,16,0,11,0,11,74,105,0,16,0,11,0,11,0,11,30,33,0,11,0,11]
[null,"25 to 34 years",2,5,0,11,0,11,0,16,0,11,9,9,0,11,263,93,4,5,0,11,11,17,17,20,0,11,13,21,10,17,21,30,38,65,6,9,0,11,0,11,0,16,83,106,4,6,4,5,11,10,3,4,0,11]
[null,"35 to 44 years",67,61,0,11,0,11,0,16,0,11,7,10,0,11,63,55,3,4,4,6,0,11,20,39,0,11,0,11,0,18,13,21,0,16,6,8,0,11,9,13,0,16,0,11,3,5,0,11,5,7,0,11,0,11]
[null,"45 to 54 years",17,21,82,174,0,11,10,15,3,5,0,11,2,4,236,114,3,6,0,11,0,11,19,25,8,14,10,15,46,48,0,16,18,28,0,11,0,11,0,11,0,16,1,2,4,6,0,11,14,21,13,20,0,11]
[null,"55 to 64 years",0,11,0,11,0,11,8,13,0,11,7,8,0,11,216,83,0,11,8,9,0,11,20,23,41,38,7,7,67,55,0,16,43,47,0,11,9,14,0,11,72,88,81,70,8,8,3,6,33,29,0,11,0,11]
[null,"65 to 74 years",0,11,15,24,8,14,0,16,0,11,0,11,5,8,115,58,0,11,0,11,8,14,18,20,0,11,0,11,35,31,0,16,103,96,0,11,26,32,7,11,29,28,0,11,6,7,5,7,0,11,8,8,3,6]
[null,"75 years and over",10,14,0,11,29,45,9,14,0,11,0,11,0,11,47,44,0,11,0,11,15,17,0,16,0,11,4,5,0,18,0,16,18,32,0,11,0,11,8,13,0,16,0,11,0,11,0,11,4,6,0,11,3,4]
[null,"Female:",277,136,78,49,61,41,97,78,23,19,57,30,117,90,2219,431,50,31,19,18,100,68,535,214,263,185,41,45,247,117,163,105,157,124,6,10,75,46,120,77,203,135,190,126,28,17,18,20,91,44,62,32,20,23]
[null,"Under 5 years",2,5,0,11,0,11,0,16,0,11,0,11,39,41,63,56,0,11,0,11,0,11,33,37,0,11,0,11,0,18,0,16,0,16,0,11,0,11,0,11,0,16,0,11,0,11,0,11,0,11,0,11,0,11]
[null,"5 years",0,11,0,11,0,11,0,16,0,11,0,11,0,11,86,72,0,11,0,11,0,11,0,16,0,11,0,11,0,18,0,16,0,16,0,11,0,11,0,11,0,16,0,11,0,11,0,11,5,7,0,11,0,11]
[null,"6 to 11 years",31,47,0,11,0,11,0,16,0,11,0,11,0,11,125,92,19,16,0,11,21,26,17,27,0,11,0,11,10,14,37,52,0,16,0,11,0,11,0,11,0,16,9,14,0,11,0,11,6,8,2,3,0,11]
[null,"12 to 14 years",10,19,12,10,0,11,0,16,0,11,0,11,0,11,36,37,3,4,0,11,0,11,54,56,26,39,0,11,0,18,0,16,17,28,0,11,0,11,0,11,0,16,0,11,0,11,0,11,0,11,0,11,0,11]
[null,"15 years",5,10,0,11,0,11,0,16,0,11,0,11,0,11,0,24,0,11,0,11,0,11,0,16,0,11,0,11,15,22,0,16,0,16,0,11,0,11,0,11,0,16,15,26,3,6,0,11,0,11,0,11,0,11]
[null,"16 and 17 years",16,21,0,11,0,11,25,38,0,11,1,3,0,11,34,44,0,11,0,11,0,11,30,47,0,11,0,11,0,18,0,16,18,29,0,11,0,11,9,15,56,83,0,11,0,11,5,8,0,11,4,6,0,11]
[null,"18 to 24 years",26,36,26,40,0,11,0,16,0,11,0,11,29,39,446,193,0,11,11,13,0,11,56,43,159,168,17,24,30,35,29,43,0,16,0,11,0,11,10,16,0,16,20,31,0,11,0,11,17,18,4,8,0,11]
[null,"25 to 34 years",52,48,0,11,0,11,8,12,9,15,9,13,27,23,467,171,3,4,4,6,26,27,28,31,23,37,4,6,40,46,19,29,36,62,0,11,18,28,42,49,50,61,13,16,0,11,0,11,9,10,10,9,0,11]
[null,"35 to 44 years",65,55,5,8,9,15,0,16,0,11,11,14,6,8,347,145,4,5,0,11,0,11,64,63,25,37,0,11,9,13,13,21,0,16,0,11,0,11,26,41,17,28,82,106,3,5,0,11,10,10,17,21,13,23]
[null,"45 to 54 years",25,26,17,15,9,14,35,39,0,11,12,15,0,11,149,105,11,19,4,6,8,14,23,26,17,21,17,21,61,54,0,16,0,16,0,11,16,23,10,15,0,16,0,11,4,6,10,18,13,13,4,6,4,5]
[null,"55 to 64 years",14,22,12,12,25,28,0,16,7,8,18,14,11,12,226,77,10,10,0,11,16,24,142,84,0,11,3,6,30,33,31,35,11,18,0,11,0,11,16,17,61,79,35,27,11,9,3,6,16,21,3,5,0,11]
[null,"65 to 74 years",11,16,6,10,18,20,8,12,3,5,6,10,5,7,183,88,0,11,0,11,9,14,46,50,0,11,0,11,0,18,17,24,75,85,0,11,15,16,7,12,19,31,0,11,3,5,0,11,0,11,14,17,3,6]
[null,"75 years and over",20,23,0,11,0,11,21,24,4,6,0,11,0,11,57,44,0,11,0,11,20,21,42,35,13,22,0,11,52,43,17,28,0,16,6,10,26,25,0,11,0,16,16,20,4,6,0,11,15,14,4,6,0,11]
[null,"Income in the past 12 months at or above poverty level:",3852,249,2484,241,3272,197,7680,113,1531,203,2266,146,2515,123,36879,651,1047,167,2782,37,4437,167,7707,294,4030,254,828,119,12893,266,5404,182,5128,239,2078,215,3235,205,4532,219,6780,267,3409,457,1359,183,1867,277,2542,134,1656,164,1602,213]
[null,"Male:",2004,197,1273,153,1534,158,3955,165,769,124,1132,106,1305,97,18138,480,530,91,1413,74,2250,163,3771,206,2181,186,426,69,6245,250,2729,169,2174,355,1044,125,1531,155,2153,215,3342,231,1717,266,696,102,922,157,1156,99,859,97,768,127]
[null,"Under 5 years",95,70,20,17,93,71,235,77,13,11,56,27,78,46,948,176,36,25,62,43,159,93,149,84,146,71,31,19,222,90,158,88,77,75,29,16,86,67,128,74,159,87,16,27,17,14,36,26,60,37,19,12,19,23]
[null,"5 years",23,24,18,27,32,31,39,34,13,19,8,12,16,14,330,113,4,6,27,21,20,26,33,36,60,55,4,5,15,23,82,70,27,31,0,11,11,16,5,9,0,16,0,11,3,6,26,26,5,7,7,7,3,5]
[null,"6 to 11 years",126,63,69,37,70,49,399,113,46,24,29,21,128,55,1206,203,23,14,117,43,153,73,333,125,160,97,30,21,442,136,171,80,28,32,39,29,90,50,134,62,178,87,187,120,25,15,82,42,93,33,51,20,71,57]
[null,"12 to 14 years",59,61,49,32,133,93,113,70,21,13,6,9,64,25,668,155,12,8,64,36,83,50,155,71,104,65,0,11,221,94,63,48,63,54,38,31,22,24,56,50,132,76,43,49,25,22,61,34,25,15,27,26,4,6]
[null,"15 years",19,26,26,26,10,16,72,46,11,8,12,13,24,18,444,110,3,5,20,14,3,6,24,25,0,11,8,8,89,54,48,51,16,26,20,16,37,32,19,32,35,39,16,26,9,11,30,24,5,7,7,7,0,11]
[null,"16 and 17 years",31,26,72,51,45,38,195,76,51,27,23,18,26,19,366,138,0,11,51,29,59,46,58,54,75,56,10,8,203,96,23,35,115,103,8,9,28,26,34,33,17,26,37,33,17,13,24,21,42,28,30,20,14,16]
[null,"18 to 24 years",189,87,125,58,28,34,414,121,87,49,93,39,56,33,1456,235,28,18,105,44,185,92,219,130,157,95,23,15,678,257,164,88,111,107,101,53,64,57,175,97,328,167,125,75,75,39,52,33,54,35,88,43,59,34]
[null,"25 to 34 years",277,99,166,66,141,83,263,92,60,29,121,37,164,40,2978,247,62,25,124,51,279,97,458,139,262,136,42,19,730,170,170,74,150,104,94,56,158,67,291,116,497,163,112,52,93,38,78,35,179,60,57,25,83,34]
[null,"35 to 44 years",266,80,199,65,238,93,472,95,80,30,174,52,130,43,2008,238,59,23,156,46,264,81,374,124,252,81,45,16,795,115,352,81,387,115,99,39,154,45,323,84,444,103,290,89,68,28,111,45,138,41,129,37,67,33]
[null,"45 to 54 years",339,101,126,41,273,64,519,99,76,23,136,41,249,54,2707,266,97,33,277,51,387,97,729,137,249,79,59,23,1043,145,587,129,210,96,128,41,116,58,329,96,462,167,319,102,77,24,73,32,143,45,95,34,127,37]
[null,"55 to 64 years",318,96,218,58,244,78,668,87,144,44,247,53,176,49,2426,226,115,37,229,41,279,91,517,157,351,101,96,28,861,172,455,124,583,188,218,55,226,67,407,92,597,149,250,86,140,40,166,58,176,38,232,47,148,44]
[null,"65 to 74 years",155,70,78,35,176,61,338,70,125,35,169,40,154,36,1521,157,54,30,141,30,285,88,467,122,257,84,50,24,631,119,294,83,295,115,188,48,209,67,209,71,343,99,207,84,111,32,91,35,181,44,98,25,100,32]
[null,"75 years and over",107,44,107,48,51,31,228,61,42,20,58,31,40,19,1080,172,37,20,40,15,94,48,255,70,108,50,28,24,315,95,162,78,112,72,82,32,330,96,43,25,150,69,115,59,36,17,92,38,55,26,19,11,73,33]
[null,"Female:",1848,171,1211,138,1738,146,3725,179,762,107,1134,94,1210,94,18741,523,517,97,1369,74,2187,152,3936,250,1849,182,402,62,6648,317,2675,193,2954,373,1034,122,1704,169,2379,169,3438,269,1692,252,663,99,945,147,1386,103,797,94,834,110]
[null,"Under 5 years",94,73,60,40,88,57,237,113,28,16,59,36,61,34,879,179,41,22,57,30,47,39,21,25,116,71,21,16,327,144,119,81,159,89,26,18,123,60,161,70,184,96,9,15,22,21,58,32,92,51,34,20,54,31]
[null,"5 years",11,17,6,8,0,11,38,28,3,4,8,13,19,16,148,74,3,4,22,14,31,46,0,16,0,11,0,11,118,99,131,86,0,16,5,7,23,27,41,47,78,91,0,11,0,11,17,17,29,18,3,6,18,22]
[null,"6 to 11 years",70,42,110,52,121,62,279,81,51,25,63,30,39,27,1098,189,32,20,175,53,174,77,237,105,148,69,18,17,386,126,162,95,126,63,52,35,111,61,170,73,290,122,93,91,70,43,51,29,102,42,37,22,38,26]
[null,"12 to 14 years",82,49,46,28,17,20,165,65,33,20,49,27,37,20,441,123,9,9,65,27,33,29,93,68,20,23,11,9,285,112,52,58,136,132,40,28,78,61,83,52,147,123,150,100,29,17,23,23,76,37,7,8,0,11]
[null,"15 years",23,24,21,17,0,11,61,42,13,11,0,11,22,18,214,95,24,21,22,20,40,35,54,41,0,11,0,11,120,67,0,16,0,16,13,13,0,11,19,30,41,49,23,40,12,14,9,10,0,11,8,8,15,12]
[null,"16 and 17 years",17,19,11,11,52,57,143,66,30,21,38,23,15,14,493,134,16,12,37,22,98,62,51,43,33,38,11,9,185,70,54,50,109,93,39,29,0,11,69,54,107,68,34,31,11,11,25,26,19,20,10,8,25,20]
[null,"18 to 24 years",193,123,87,59,185,109,87,60,32,22,124,50,85,46,1404,251,25,17,73,38,112,71,444,205,86,67,7,8,349,112,98,70,352,206,49,33,48,42,286,113,161,111,77,48,9,13,17,14,76,67,47,28,48,34]
[null,"25 to 34 years",188,72,88,38,164,73,304,88,64,32,98,39,134,52,2575,262,48,27,87,45,281,80,370,122,276,100,31,15,999,191,229,99,133,100,72,34,119,52,356,100,366,122,159,81,65,25,90,34,212,48,94,31,97,38]
[null,"35 to 44 years",179,67,169,54,311,63,445,81,71,26,113,33,148,36,2235,194,49,19,202,47,255,94,431,109,217,80,54,18,734,132,293,78,460,137,114,40,145,47,142,70,526,140,181,94,62,24,129,45,113,35,79,21,73,37]
[null,"45 to 54 years",332,86,208,56,251,65,583,114,120,34,169,52,239,58,2982,239,82,36,259,43,345,92,675,145,203,81,61,23,1001,138,440,108,279,111,119,47,190,61,345,103,523,128,365,138,110,32,107,45,198,54,143,40,133,40]
[null,"55 to 64 years",269,67,139,50,296,83,656,120,132,41,221,46,210,46,2682,220,120,41,220,39,392,116,666,163,357,98,100,33,976,150,504,130,646,148,223,57,243,81,455,101,459,133,318,85,135,39,220,59,221,47,183,38,147,43]
[null,"65 to 74 years",161,58,133,50,125,48,400,74,120,29,96,34,122,29,1812,167,42,23,98,22,276,83,574,118,322,90,68,29,720,109,383,102,379,117,200,46,308,88,187,58,377,126,175,75,84,25,140,47,147,51,114,34,82,27]
[null,"75 years and over",229,110,133,61,128,55,327,78,65,36,96,31,79,32,1778,204,26,15,52,20,103,52,320,116,71,47,20,20,448,129,210,88,175,97,82,36,316,82,65,34,179,82,108,77,54,29,59,33,101,42,38,18,104,42]
[]
[]
[]
[null,"Calculated Table B17001. POVERTY STATUS IN THE PAST 12 MONTHS BY SEX BY AGE"]
[null,"Universe:  POPULATION FOR WHOM POVERTY STATUS IS DETERMINED"]
[null,"Data Set: 2015-2019 American Community Survey 5-Year Estimates"]
[]
[null,null,"Allenstown",null,"Andover",null,"Boscawen",null,"Bow",null,"Bradford",null,"Canterbury",null,"Chichester",null,"Concord",null,"Danbury",null,"Dunbarton",null,"Epsom",null,"Franklin",null,"Henniker",null,"Hill",null,"Hooksett",null,"Hopkinton",null,"Loudon",null,"Newbury",null,"New London",null,"Northfield",null,"Pembroke",null,"Pittsfield",null,"Salisbury",null,"Sutton",null,"Warner",null,"Webster",null,"Wilmot"]
[null,null,"Estimate","Margin Of Error","Estimate","Margin Of Error","Estimate","Margin Of Error","Estimate","Margin Of Error","Estimate","Margin Of Error","Estimate","Margin Of Error","Estimate","Margin Of Error","Estimate","Margin Of Error","Estimate","Margin Of Error","Estimate","Margin Of Error","Estimate","Margin Of Error","Estimate","Margin Of Error","Estimate","Margin Of Error","Estimate","Margin Of Error","Estimate","Margin Of Error","Estimate","Margin Of Error","Estimate","Margin Of Error","Estimate","Margin Of Error","Estimate","Margin Of Error","Estimate","Margin Of Error","Estimate","Margin Of Error","Estimate","Margin Of Error","Estimate","Margin Of Error","Estimate","Margin Of Error","Estimate","Margin Of Error","Estimate","Margin Of Error","Estimate","Margin Of Error"]
[null,"Total:",{"$f":"C7","v":4316},{"$f":"D7","v":79},2782,321,3389,190,7854,28,1584,214,2348,146,2662,29,40547,270,1118,162,2813,27,4612,122,{"$f":"Y7","v":8461},50,4473,142,916,148,13427,171,5614,85,5505,51,2096,214,3363,191,{"$f":"AO7","v":4809},89,7084,108,3923,256,1422,182,1897,279,2741,119,1759,180,1628,215]
[null,"Income in the past 12 months below poverty level:",{"$f":"C8","v":464},{"$f":"D8","v":247},298,230,117,69,174,111,53,58,82,36,147,122,3668,571,71,44,31,22,175,120,{"$f":"Y8","v":754},292,443,222,88,83,534,201,210,119,377,236,18,16,128,76,{"$f":"AO8","v":277},196,304,200,514,434,63,38,30,20,199,67,103,56,26,24]
[null,"Under 5 years",{"$f":"C10+C24","v":4},{"$f":"SQRT(((D10^2))+((D34^2)))","v":22.561028345356956},{"$f":"E10+E24","v":0},{"$f":"SQRT(((F10^2))+((F34^2)))","v":16.278820596099706},{"$f":"G10+G24","v":0},{"$f":"SQRT(((H10^2))+((H34^2)))","v":30.083217912982647},{"$f":"I10+I24","v":9},{"$f":"SQRT(((J10^2))+((J34^2)))","v":20.615528128088304},{"$f":"K10+K24","v":0},{"$f":"SQRT(((L10^2))+((L34^2)))","v":13.601470508735444},{"$f":"M10+M24","v":0},{"$f":"SQRT(((N10^2))+((N34^2)))","v":17.804493814764857},{"$f":"O10+O24","v":62},{"$f":"SQRT(((P10^2))+((P34^2)))","v":33.241540277189323},{"$f":"Q10+Q24","v":196},{"$f":"SQRT(((R10^2))+((R34^2)))","v":115.43396380615195},{"$f":"S10+S24","v":7},{"$f":"SQRT(((T10^2))+((T34^2)))","v":12.206555615733702},{"$f":"U10+U24","v":0},{"$f":"SQRT(((V10^2))+((V34^2)))","v":15.556349186104045},{"$f":"W10+W24","v":13},{"$f":"SQRT(((X10^2))+((X34^2)))","v":32.557641192199412},{"$f":"Y10+Y24","v":52},{"$f":"SQRT(((Z10^2))+((Z34^2)))","v":88.543774484714618},{"$f":"AA10+AA24","v":26},{"$f":"SQRT(((AB10^2))+((AB34^2)))","v":41.484937025383083},{"$f":"AC10+AC24","v":0},{"$f":"SQRT(((AD10^2))+((AD34^2)))","v":12.529964086141668},{"$f":"AE10+AE24","v":0},{"$f":"SQRT(((AF10^2))+((AF34^2)))","v":37.589892258425003},{"$f":"AG10+AG24","v":0},{"$f":"SQRT(((AH10^2))+((AH34^2)))","v":38.483762809787713},{"$f":"AI10+AI24","v":0},{"$f":"SQRT(((AJ10^2))+((AJ34^2)))","v":24.083189157584592},{"$f":"AK10+AK24","v":0},{"$f":"SQRT(((AL10^2))+((AL34^2)))","v":15.556349186104045},{"$f":"AM10+AM24","v":18},{"$f":"SQRT(((AN10^2))+((AN34^2)))","v":30.083217912982647},{"$f":"AO10+AO24","v":59},{"$f":"SQRT(((AP10^2))+((AP34^2)))","v":87.664131775772461},{"$f":"AQ10+AQ24","v":0},{"$f":"SQRT(((AR10^2))+((AR34^2)))","v":80.603970125546539},{"$f":"AS10+AS24","v":10},{"$f":"SQRT(((AT10^2))+((AT34^2)))","v":30.886890422961002},{"$f":"AU10+AU24","v":0},{"$f":"SQRT(((AV10^2))+((AV34^2)))","v":14.212670403551895},{"$f":"AW10+AW24","v":0},{"$f":"SQRT(((AX10^2))+((AX34^2)))","v":12.529964086141668},{"$f":"AY10+AY24","v":6},{"$f":"SQRT(((AZ10^2))+((AZ34^2)))","v":22.847319317591726},{"$f":"BA10+BA24","v":10},{"$f":"SQRT(((BB10^2))+((BB34^2)))","v":11.180339887498949},{"$f":"BC10+BC24","v":0},{"$f":"SQRT(((BD10^2))+((BD34^2)))","v":15.556349186104045}]
[null,"5 to 17 years",{"$f":"C11+C12+C13+C14+C15+C25+C26+C27+C28+C29","v":90},{"$f":"SQRT((D11^2)+(D12^2)+(D13^2)+(D14^2)+(D15^2)+(D25^2)+(D26^2)+(D27^2)+(D28)+(D29^2))","v":64.319514923544006},{"$f":"E11+E12+E13+E14+E15+E25+E26+E27+E28+E29","v":87},{"$f":"SQRT((F11^2)+(F12^2)+(F13^2)+(F14^2)+(F15^2)+(F25^2)+(F26^2)+(F27^2)+(F28)+(F29^2))","v":84.599054368237475},{"$f":"G11+G12+G13+G14+G15+G25+G26+G27+G28+G29","v":0},{"$f":"SQRT((H11^2)+(H12^2)+(H13^2)+(H14^2)+(H15^2)+(H25^2)+(H26^2)+(H27^2)+(H28)+(H29^2))","v":33.166247903554002},{"$f":"I11+I12+I13+I14+I15+I25+I26+I27+I28+I29","v":66},{"$f":"SQRT((J11^2)+(J12^2)+(J13^2)+(J14^2)+(J15^2)+(J25^2)+(J26^2)+(J27^2)+(J28)+(J29^2))","v":63.063460101710248},{"$f":"K11+K12+K13+K14+K15+K25+K26+K27+K28+K29","v":27},{"$f":"SQRT((L11^2)+(L12^2)+(L13^2)+(L14^2)+(L15^2)+(L25^2)+(L26^2)+(L27^2)+(L28)+(L29^2))","v":36.400549446402593},{"$f":"M11+M12+M13+M14+M15+M25+M26+M27+M28+M29","v":1},{"$f":"SQRT((N11^2)+(N12^2)+(N13^2)+(N14^2)+(N15^2)+(N25^2)+(N26^2)+(N27^2)+(N28)+(N29^2))","v":31.432467291003423},{"$f":"O11+O12+O13+O14+O15+O25+O26+O27+O28+O29","v":0},{"$f":"SQRT((P11^2)+(P12^2)+(P13^2)+(P14^2)+(P15^2)+(P25^2)+(P26^2)+(P27^2)+(P28)+(P29^2))","v":33.166247903554002},{"$f":"Q11+Q12+Q13+Q14+Q15+Q25+Q26+Q27+Q28+Q29","v":410},{"$f":"SQRT((R11^2)+(R12^2)+(R13^2)+(R14^2)+(R15^2)+(R25^2)+(R26^2)+(R27^2)+(R28)+(R29^2))","v":146.97959041989469},{"$f":"S11+S12+S13+S14+S15+S25+S26+S27+S28+S29","v":26},{"$f":"SQRT((T11^2)+(T12^2)+(T13^2)+(T14^2)+(T15^2)+(T25^2)+(T26^2)+(T27^2)+(T28)+(T29^2))","v":32.155870381627054},{"$f":"U11+U12+U13+U14+U15+U25+U26+U27+U28+U29","v":0},{"$f":"SQRT((V11^2)+(V12^2)+(V13^2)+(V14^2)+(V15^2)+(V25^2)+(V26^2)+(V27^2)+(V28)+(V29^2))","v":33.166247903554002},{"$f":"W11+W12+W13+W14+W15+W25+W26+W27+W28+W29","v":49},{"$f":"SQRT((X11^2)+(X12^2)+(X13^2)+(X14^2)+(X15^2)+(X25^2)+(X26^2)+(X27^2)+(X28)+(X29^2))","v":50.129831437977131},{"$f":"Y11+Y12+Y13+Y14+Y15+Y25+Y26+Y27+Y28+Y29","v":169},{"$f":"SQRT((Z11^2)+(Z12^2)+(Z13^2)+(Z14^2)+(Z15^2)+(Z25^2)+(Z26^2)+(Z27^2)+(Z28)+(Z29^2))","v":106.51760417883985},{"$f":"AA11+AA12+AA13+AA14+AA15+AA25+AA26+AA27+AA28+AA29","v":33},{"$f":"SQRT((AB11^2)+(AB12^2)+(AB13^2)+(AB14^2)+(AB15^2)+(AB25^2)+(AB26^2)+(AB27^2)+(AB28)+(AB29^2))","v":49.789557138018409},{"$f":"AC11+AC12+AC13+AC14+AC15+AC25+AC26+AC27+AC28+AC29","v":13},{"$f":"SQRT((AD11^2)+(AD12^2)+(AD13^2)+(AD14^2)+(AD15^2)+(AD25^2)+(AD26^2)+(AD27^2)+(AD28)+(AD29^2))","v":36.097091295560091},{"$f":"AE11+AE12+AE13+AE14+AE15+AE25+AE26+AE27+AE28+AE29","v":50},{"$f":"SQRT((AF11^2)+(AF12^2)+(AF13^2)+(AF14^2)+(AF15^2)+(AF25^2)+(AF26^2)+(AF27^2)+(AF28)+(AF29^2))","v":51.730068625510249},{"$f":"AG11+AG12+AG13+AG14+AG15+AG25+AG26+AG27+AG28+AG29","v":50},{"$f":"SQRT((AH11^2)+(AH12^2)+(AH13^2)+(AH14^2)+(AH15^2)+(AH25^2)+(AH26^2)+(AH27^2)+(AH28)+(AH29^2))","v":70.377553239651633},{"$f":"AI11+AI12+AI13+AI14+AI15+AI25+AI26+AI27+AI28+AI29","v":35},{"$f":"SQRT((AJ11^2)+(AJ12^2)+(AJ13^2)+(AJ14^2)+(AJ15^2)+(AJ25^2)+(AJ26^2)+(AJ27^2)+(AJ28)+(AJ29^2))","v":58.591808301161009},{"$f":"AK11+AK12+AK13+AK14+AK15+AK25+AK26+AK27+AK28+AK29","v":0},{"$f":"SQRT((AL11^2)+(AL12^2)+(AL13^2)+(AL14^2)+(AL15^2)+(AL25^2)+(AL26^2)+(AL27^2)+(AL28)+(AL29^2))","v":33.166247903554002},{"$f":"AM11+AM12+AM13+AM14+AM15+AM25+AM26+AM27+AM28+AM29","v":0},{"$f":"SQRT((AN11^2)+(AN12^2)+(AN13^2)+(AN14^2)+(AN15^2)+(AN25^2)+(AN26^2)+(AN27^2)+(AN28)+(AN29^2))","v":33.166247903554002},{"$f":"AO11+AO12+AO13+AO14+AO15+AO25+AO26+AO27+AO28+AO29","v":9},{"$f":"SQRT((AP11^2)+(AP12^2)+(AP13^2)+(AP14^2)+(AP15^2)+(AP25^2)+(AP26^2)+(AP27^2)+(AP28)+(AP29^2))","v":34.698703145794944},{"$f":"AQ11+AQ12+AQ13+AQ14+AQ15+AQ25+AQ26+AQ27+AQ28+AQ29","v":56},{"$f":"SQRT((AR11^2)+(AR12^2)+(AR13^2)+(AR14^2)+(AR15^2)+(AR25^2)+(AR26^2)+(AR27^2)+(AR28)+(AR29^2))","v":94.62029380635002},{"$f":"AS11+AS12+AS13+AS14+AS15+AS25+AS26+AS27+AS28+AS29","v":173},{"$f":"SQRT((AT11^2)+(AT12^2)+(AT13^2)+(AT14^2)+(AT15^2)+(AT25^2)+(AT26^2)+(AT27^2)+(AT28)+(AT29^2))","v":151.65091493294725},{"$f":"AU11+AU12+AU13+AU14+AU15+AU25+AU26+AU27+AU28+AU29","v":13},{"$f":"SQRT((AV11^2)+(AV12^2)+(AV13^2)+(AV14^2)+(AV15^2)+(AV25^2)+(AV26^2)+(AV27^2)+(AV28)+(AV29^2))","v":31.448370387032774},{"$f":"AW11+AW12+AW13+AW14+AW15+AW25+AW26+AW27+AW28+AW29","v":5},{"$f":"SQRT((AX11^2)+(AX12^2)+(AX13^2)+(AX14^2)+(AX15^2)+(AX25^2)+(AX26^2)+(AX27^2)+(AX28)+(AX29^2))","v":32.295510523910288},{"$f":"AY11+AY12+AY13+AY14+AY15+AY25+AY26+AY27+AY28+AY29","v":16},{"$f":"SQRT((AZ11^2)+(AZ12^2)+(AZ13^2)+(AZ14^2)+(AZ15^2)+(AZ25^2)+(AZ26^2)+(AZ27^2)+(AZ28)+(AZ29^2))","v":29.983328701129899},{"$f":"BA11+BA12+BA13+BA14+BA15+BA25+BA26+BA27+BA28+BA29","v":13},{"$f":"SQRT((BB11^2)+(BB12^2)+(BB13^2)+(BB14^2)+(BB15^2)+(BB25^2)+(BB26^2)+(BB27^2)+(BB28)+(BB29^2))","v":30.04995840263344},{"$f":"BC11+BC12+BC13+BC14+BC15+BC25+BC26+BC27+BC28+BC29","v":0},{"$f":"SQRT((BD11^2)+(BD12^2)+(BD13^2)+(BD14^2)+(BD15^2)+(BD25^2)+(BD26^2)+(BD27^2)+(BD28)+(BD29^2))","v":33.166247903554002}]
[null,"18 to 64 years",{"$f":"C16+C17+C18+C19+C20+C30+C31+C32+C33+C34","v":329},{"$f":"SQRT((D16^2)+(D17^2)+(D18^2)+(D19^2)+(D20^2)+(D30^2)+(D31^2)+(D32^2)+(D33^2)+(D34^2))","v":127.74192733789482},{"$f":"E16+E17+E18+E19+E20+E30+E31+E32+E33+E34","v":190},{"$f":"SQRT((F16^2)+(F17^2)+(F18^2)+(F19^2)+(F20^2)+(F30^2)+(F31^2)+(F32^2)+(F33^2)+(F34^2))","v":193.78854455307723},{"$f":"G16+G17+G18+G19+G20+G30+G31+G32+G33+G34","v":62},{"$f":"SQRT((H16^2)+(H17^2)+(H18^2)+(H19^2)+(H20^2)+(H30^2)+(H31^2)+(H32^2)+(H33^2)+(H34^2))","v":53.777318638995006},{"$f":"I16+I17+I18+I19+I20+I30+I31+I32+I33+I34","v":61},{"$f":"SQRT((J16^2)+(J17^2)+(J18^2)+(J19^2)+(J20^2)+(J30^2)+(J31^2)+(J32^2)+(J33^2)+(J34^2))","v":59.958318855685071},{"$f":"K16+K17+K18+K19+K20+K30+K31+K32+K33+K34","v":19},{"$f":"SQRT((L16^2)+(L17^2)+(L18^2)+(L19^2)+(L20^2)+(L30^2)+(L31^2)+(L32^2)+(L33^2)+(L34^2))","v":34.073450074801642},{"$f":"M16+M17+M18+M19+M20+M30+M31+M32+M33+M34","v":75},{"$f":"SQRT((N16^2)+(N17^2)+(N18^2)+(N19^2)+(N20^2)+(N30^2)+(N31^2)+(N32^2)+(N33^2)+(N34^2))","v":35.902646142032481},{"$f":"O16+O17+O18+O19+O20+O30+O31+O32+O33+O34","v":75},{"$f":"SQRT((P16^2)+(P17^2)+(P18^2)+(P19^2)+(P20^2)+(P30^2)+(P31^2)+(P32^2)+(P33^2)+(P34^2))","v":53.656313701185248},{"$f":"Q16+Q17+Q18+Q19+Q20+Q30+Q31+Q32+Q33+Q34","v":2660},{"$f":"SQRT((R16^2)+(R17^2)+(R18^2)+(R19^2)+(R20^2)+(R30^2)+(R31^2)+(R32^2)+(R33^2)+(R34^2))","v":385.74214185126311},{"$f":"S16+S17+S18+S19+S20+S30+S31+S32+S33+S34","v":38},{"$f":"SQRT((T16^2)+(T17^2)+(T18^2)+(T19^2)+(T20^2)+(T30^2)+(T31^2)+(T32^2)+(T33^2)+(T34^2))","v":30.692018506445613},{"$f":"U16+U17+U18+U19+U20+U30+U31+U32+U33+U34","v":31},{"$f":"SQRT((V16^2)+(V17^2)+(V18^2)+(V19^2)+(V20^2)+(V30^2)+(V31^2)+(V32^2)+(V33^2)+(V34^2))","v":31.0322412983658},{"$f":"W16+W17+W18+W19+W20+W30+W31+W32+W33+W34","v":61},{"$f":"SQRT((X16^2)+(X17^2)+(X18^2)+(X19^2)+(X20^2)+(X30^2)+(X31^2)+(X32^2)+(X33^2)+(X34^2))","v":50.159744815937813},{"$f":"Y16+Y17+Y18+Y19+Y20+Y30+Y31+Y32+Y33+Y34","v":427},{"$f":"SQRT((Z16^2)+(Z17^2)+(Z18^2)+(Z19^2)+(Z20^2)+(Z30^2)+(Z31^2)+(Z32^2)+(Z33^2)+(Z34^2))","v":136.65650368716447},{"$f":"AA16+AA17+AA18+AA19+AA20+AA30+AA31+AA32+AA33+AA34","v":371},{"$f":"SQRT((AB16^2)+(AB17^2)+(AB18^2)+(AB19^2)+(AB20^2)+(AB30^2)+(AB31^2)+(AB32^2)+(AB33^2)+(AB34^2))","v":211.78999032060037},{"$f":"AC16+AC17+AC18+AC19+AC20+AC30+AC31+AC32+AC33+AC34","v":71},{"$f":"SQRT((AD16^2)+(AD17^2)+(AD18^2)+(AD19^2)+(AD20^2)+(AD30^2)+(AD31^2)+(AD32^2)+(AD33^2)+(AD34^2))","v":46.551047249229526},{"$f":"AE16+AE17+AE18+AE19+AE20+AE30+AE31+AE32+AE33+AE34","v":397},{"$f":"SQRT((AF16^2)+(AF17^2)+(AF18^2)+(AF19^2)+(AF20^2)+(AF30^2)+(AF31^2)+(AF32^2)+(AF33^2)+(AF34^2))","v":172.00581385522992},{"$f":"AG16+AG17+AG18+AG19+AG20+AG30+AG31+AG32+AG33+AG34","v":126},{"$f":"SQRT((AH16^2)+(AH17^2)+(AH18^2)+(AH19^2)+(AH20^2)+(AH30^2)+(AH31^2)+(AH32^2)+(AH33^2)+(AH34^2))","v":81.981705276238301},{"$f":"AI16+AI17+AI18+AI19+AI20+AI30+AI31+AI32+AI33+AI34","v":146},{"$f":"SQRT((AJ16^2)+(AJ17^2)+(AJ18^2)+(AJ19^2)+(AJ20^2)+(AJ30^2)+(AJ31^2)+(AJ32^2)+(AJ33^2)+(AJ34^2))","v":112.5433249908674},{"$f":"AK16+AK17+AK18+AK19+AK20+AK30+AK31+AK32+AK33+AK34","v":12},{"$f":"SQRT((AL16^2)+(AL17^2)+(AL18^2)+(AL19^2)+(AL20^2)+(AL30^2)+(AL31^2)+(AL32^2)+(AL33^2)+(AL34^2))","v":33.361654635224554},{"$f":"AM16+AM17+AM18+AM19+AM20+AM30+AM31+AM32+AM33+AM34","v":43},{"$f":"SQRT((AN16^2)+(AN17^2)+(AN18^2)+(AN19^2)+(AN20^2)+(AN30^2)+(AN31^2)+(AN32^2)+(AN33^2)+(AN34^2))","v":48.538644398046387},{"$f":"AO16+AO17+AO18+AO19+AO20+AO30+AO31+AO32+AO33+AO34","v":187},{"$f":"SQRT((AP16^2)+(AP17^2)+(AP18^2)+(AP19^2)+(AP20^2)+(AP30^2)+(AP31^2)+(AP32^2)+(AP33^2)+(AP34^2))","v":128.09761902549164},{"$f":"AQ16+AQ17+AQ18+AQ19+AQ20+AQ30+AQ31+AQ32+AQ33+AQ34","v":200},{"$f":"SQRT((AR16^2)+(AR17^2)+(AR18^2)+(AR19^2)+(AR20^2)+(AR30^2)+(AR31^2)+(AR32^2)+(AR33^2)+(AR34^2))","v":141.5132502630054},{"$f":"AS16+AS17+AS18+AS19+AS20+AS30+AS31+AS32+AS33+AS34","v":315},{"$f":"SQRT((AT16^2)+(AT17^2)+(AT18^2)+(AT19^2)+(AT20^2)+(AT30^2)+(AT31^2)+(AT32^2)+(AT33^2)+(AT34^2))","v":172.29335448588839},{"$f":"AU16+AU17+AU18+AU19+AU20+AU30+AU31+AU32+AU33+AU34","v":37},{"$f":"SQRT((AV16^2)+(AV17^2)+(AV18^2)+(AV19^2)+(AV20^2)+(AV30^2)+(AV31^2)+(AV32^2)+(AV33^2)+(AV34^2))","v":25.80697580112788},{"$f":"AW16+AW17+AW18+AW19+AW20+AW30+AW31+AW32+AW33+AW34","v":20},{"$f":"SQRT((AX16^2)+(AX17^2)+(AX18^2)+(AX19^2)+(AX20^2)+(AX30^2)+(AX31^2)+(AX32^2)+(AX33^2)+(AX34^2))","v":33.867388443752198},{"$f":"AY16+AY17+AY18+AY19+AY20+AY30+AY31+AY32+AY33+AY34","v":158},{"$f":"SQRT((AZ16^2)+(AZ17^2)+(AZ18^2)+(AZ19^2)+(AZ20^2)+(AZ30^2)+(AZ31^2)+(AZ32^2)+(AZ33^2)+(AZ34^2))","v":60.448325038829651},{"$f":"BA16+BA17+BA18+BA19+BA20+BA30+BA31+BA32+BA33+BA34","v":54},{"$f":"SQRT((BB16^2)+(BB17^2)+(BB18^2)+(BB19^2)+(BB20^2)+(BB30^2)+(BB31^2)+(BB32^2)+(BB33^2)+(BB34^2))","v":37.76241517699841},{"$f":"BC16+BC17+BC18+BC19+BC20+BC30+BC31+BC32+BC33+BC34","v":17},{"$f":"SQRT((BD16^2)+(BD17^2)+(BD18^2)+(BD19^2)+(BD20^2)+(BD30^2)+(BD31^2)+(BD32^2)+(BD33^2)+(BD34^2))","v":39.012818406262319}]
[null,"65 to 74 years",{"$f":"C21+C35","v":11},{"$f":"SQRT((D21^2)+(D35^2))","v":19.416487838947599},{"$f":"E21+E35","v":21},{"$f":"SQRT((F21^2)+(F35^2))","v":26},{"$f":"G21+G35","v":26},{"$f":"SQRT((H21^2)+(H35^2))","v":24.413111231467404},{"$f":"I21+I35","v":8},{"$f":"SQRT((J21^2)+(J35^2))","v":20},{"$f":"K21+K35","v":3},{"$f":"SQRT((L21^2)+(L35^2))","v":12.083045973594572},{"$f":"M21+M35","v":6},{"$f":"SQRT((N21^2)+(N35^2))","v":14.866068747318506},{"$f":"O21+O35","v":10},{"$f":"SQRT((P21^2)+(P35^2))","v":10.63014581273465},{"$f":"Q21+Q35","v":298},{"$f":"SQRT((R21^2)+(R35^2))","v":105.39449701004318},{"$f":"S21+S35","v":0},{"$f":"SQRT((T21^2)+(T35^2))","v":15.556349186104045},{"$f":"U21+U35","v":0},{"$f":"SQRT((V21^2)+(V35^2))","v":15.556349186104045},{"$f":"W21+W35","v":17},{"$f":"SQRT((X21^2)+(X35^2))","v":19.798989873223331},{"$f":"Y21+Y35","v":64},{"$f":"SQRT((Z21^2)+(Z35^2))","v":53.851648071345039},{"$f":"AA21+AA35","v":0},{"$f":"SQRT((AB21^2)+(AB35^2))","v":15.556349186104045},{"$f":"AC21+AC35","v":0},{"$f":"SQRT((AD21^2)+(AD35^2))","v":15.556349186104045},{"$f":"AE21+AE35","v":35},{"$f":"SQRT((AF21^2)+(AF35^2))","v":35.846896657869841},{"$f":"AG21+AG35","v":17},{"$f":"SQRT((AH21^2)+(AH35^2))","v":28.844410203711913},{"$f":"AI21+AI35","v":178},{"$f":"SQRT((AJ21^2)+(AJ35^2))","v":128.22246293064254},{"$f":"AK21+AK35","v":0},{"$f":"SQRT((AL21^2)+(AL35^2))","v":15.556349186104045},{"$f":"AM21+AM35","v":41},{"$f":"SQRT((AN21^2)+(AN35^2))","v":35.777087639996637},{"$f":"AO21+AO35","v":14},{"$f":"SQRT((AP21^2)+(AP35^2))","v":16.278820596099706},{"$f":"AQ21+AQ35","v":48},{"$f":"SQRT((AR21^2)+(AR35^2))","v":41.773197148410844},{"$f":"AS21+AS35","v":0},{"$f":"SQRT((AT21^2)+(AT35^2))","v":15.556349186104045},{"$f":"AU21+AU35","v":9},{"$f":"SQRT((AV21^2)+(AV35^2))","v":8.6023252670426267},{"$f":"AW21+AW35","v":5},{"$f":"SQRT((AX21^2)+(AX35^2))","v":13.038404810405298},{"$f":"AY21+AY35","v":0},{"$f":"SQRT((AZ21^2)+(AZ35^2))","v":15.556349186104045},{"$f":"BA21+BA35","v":22},{"$f":"SQRT((BB21^2)+(BB35^2))","v":18.788294228055936},{"$f":"BC21+BC35","v":6},{"$f":"SQRT((BD21^2)+(BD35^2))","v":8.4852813742385695}]
[null,"75 years and over",{"$f":"C22+C36","v":30},{"$f":"SQRT((D22^2)+(D36^2))","v":26.92582403567252},{"$f":"E22+E36","v":0},{"$f":"SQRT((F22^2)+(F36^2))","v":15.556349186104045},{"$f":"G22+G36","v":29},{"$f":"SQRT((H22^2)+(H36^2))","v":46.324939287601879},{"$f":"I22+I36","v":30},{"$f":"SQRT((J22^2)+(J36^2))","v":27.784887978899608},{"$f":"K22+K36","v":4},{"$f":"SQRT((L22^2)+(L36^2))","v":12.529964086141668},{"$f":"M22+M36","v":0},{"$f":"SQRT((N22^2)+(N36^2))","v":15.556349186104045},{"$f":"O22+O36","v":0},{"$f":"SQRT((P22^2)+(P36^2))","v":15.556349186104045},{"$f":"Q22+Q36","v":104},{"$f":"SQRT((R22^2)+(R36^2))","v":62.22539674441618},{"$f":"S22+S36","v":0},{"$f":"SQRT((T22^2)+(T36^2))","v":15.556349186104045},{"$f":"U22+U36","v":0},{"$f":"SQRT((V22^2)+(V36^2))","v":15.556349186104045},{"$f":"W22+W36","v":35},{"$f":"SQRT((X22^2)+(X36^2))","v":27.018512172212592},{"$f":"Y22+Y36","v":42},{"$f":"SQRT((Z22^2)+(Z36^2))","v":38.483762809787713},{"$f":"AA22+AA36","v":13},{"$f":"SQRT((AB22^2)+(AB36^2))","v":24.596747752497688},{"$f":"AC22+AC36","v":4},{"$f":"SQRT((AD22^2)+(AD36^2))","v":12.083045973594572},{"$f":"AE22+AE36","v":52},{"$f":"SQRT((AF22^2)+(AF36^2))","v":46.61544808322666},{"$f":"AG22+AG36","v":17},{"$f":"SQRT((AH22^2)+(AH36^2))","v":32.249030993194197},{"$f":"AI22+AI36","v":18},{"$f":"SQRT((AJ22^2)+(AJ36^2))","v":35.777087639996637},{"$f":"AK22+AK36","v":6},{"$f":"SQRT((AL22^2)+(AL36^2))","v":14.866068747318506},{"$f":"AM22+AM36","v":26},{"$f":"SQRT((AN22^2)+(AN36^2))","v":27.313000567495326},{"$f":"AO22+AO36","v":8},{"$f":"SQRT((AP22^2)+(AP36^2))","v":17.029386365926403},{"$f":"AQ22+AQ36","v":0},{"$f":"SQRT((AR22^2)+(AR36^2))","v":22.627416997969522},{"$f":"AS22+AS36","v":16},{"$f":"SQRT((AT22^2)+(AT36^2))","v":22.825424421026653},{"$f":"AU22+AU36","v":4},{"$f":"SQRT((AV22^2)+(AV36^2))","v":12.529964086141668},{"$f":"AW22+AW36","v":0},{"$f":"SQRT((AX22^2)+(AX36^2))","v":15.556349186104045},{"$f":"AY22+AY36","v":19},{"$f":"SQRT((AZ22^2)+(AZ36^2))","v":15.231546211727817},{"$f":"BA22+BA36","v":4},{"$f":"SQRT((BB22^2)+(BB36^2))","v":12.529964086141668},{"$f":"BC22+BC36","v":3},{"$f":"SQRT((BD22^2)+(BD36^2))","v":11.704699910719626}]
[null," Income in the past 12 months at or above poverty level ",{"$f":"C37","v":3852},249,2484,241,3272,197,7680,113,1531,203,2266,146,2515,123,36879,651,1047,167,2782,37,4437,167,{"$f":"Y37","v":7707},294,4030,254,828,119,12893,266,5404,182,5128,239,2078,215,3235,205,{"$f":"AO37","v":4532},219,6780,267,3409,457,1359,183,1867,277,2542,134,1656,164,1602,213]
[null,"Under 5 years",{"$f":"C39+C53","v":189},{"$f":"SQRT(((D39))^2+((D53))^2)","v":101.13851887386922},{"$f":"E39+E53","v":80},{"$f":"SQRT(((F39))^2+((F53))^2)","v":43.46262762420146},{"$f":"G39+G53","v":181},{"$f":"SQRT(((H39))^2+((H53))^2)","v":91.049437120720299},{"$f":"I39+I53","v":472},{"$f":"SQRT(((J39))^2+((J53))^2)","v":136.74063039199433},{"$f":"K39+K53","v":41},{"$f":"SQRT(((L39))^2+((L53))^2)","v":19.416487838947599},{"$f":"M39+M53","v":115},{"$f":"SQRT(((N39))^2+((N53))^2)","v":45},{"$f":"O39+O53","v":139},{"$f":"SQRT(((P39))^2+((P53))^2)","v":57.201398584300364},{"$f":"Q39+Q53","v":1827},{"$f":"SQRT(((R39))^2+((R53))^2)","v":251.03187048659777},{"$f":"S39+S53","v":77},{"$f":"SQRT(((T39))^2+((T53))^2)","v":33.301651610693426},{"$f":"U39+U53","v":119},{"$f":"SQRT(((V39))^2+((V53))^2)","v":52.430906915673319},{"$f":"W39+W53","v":206},{"$f":"SQRT(((X39))^2+((X53))^2)","v":100.84641788382967},{"$f":"Y39+Y53","v":170},{"$f":"SQRT(((Z39))^2+((Z53))^2)","v":87.641314458421945},{"$f":"AA39+AA53","v":262},{"$f":"SQRT(((AB39))^2+((AB53))^2)","v":100.40916292848975},{"$f":"AC39+AC53","v":52},{"$f":"SQRT(((AD39))^2+((AD53))^2)","v":24.839484696748443},{"$f":"AE39+AE53","v":549},{"$f":"SQRT(((AF39))^2+((AF53))^2)","v":169.81166037701888},{"$f":"AG39+AG53","v":277},{"$f":"SQRT(((AH39))^2+((AH53))^2)","v":119.60351165413162},{"$f":"AI39+AI53","v":236},{"$f":"SQRT(((AJ39))^2+((AJ53))^2)","v":116.38728452885221},{"$f":"AK39+AK53","v":55},{"$f":"SQRT(((AL39))^2+((AL53))^2)","v":24.083189157584592},{"$f":"AM39+AM53","v":209},{"$f":"SQRT(((AN39))^2+((AN53))^2)","v":89.938868127189593},{"$f":"AO39+AO53","v":289},{"$f":"SQRT(((AP39))^2+((AP53))^2)","v":101.86265262597475},{"$f":"AQ39+AQ53","v":343},{"$f":"SQRT(((AR39))^2+((AR53))^2)","v":129.5569372901351},{"$f":"AS39+AS53","v":25},{"$f":"SQRT(((AT39))^2+((AT53))^2)","v":30.886890422961002},{"$f":"AU39+AU53","v":39},{"$f":"SQRT(((AV39))^2+((AV53))^2)","v":25.238858928247925},{"$f":"AW39+AW53","v":94},{"$f":"SQRT(((AX39))^2+((AX53))^2)","v":41.231056256176608},{"$f":"AY39+AY53","v":152},{"$f":"SQRT(((AZ39))^2+((AZ53))^2)","v":63.007936008093459},{"$f":"BA39+BA53","v":53},{"$f":"SQRT(((BB39))^2+((BB53))^2)","v":23.323807579381203},{"$f":"BC39+BC53","v":73},{"$f":"SQRT(((BD39))^2+((BD53))^2)","v":38.600518131237564}]
[null,"5 to 17 years",{"$f":"((C40)+(C41)+(C42)+(C43)+(C44)+(C54)+(C55)+(C56)+(C57)+(C58))","v":461},{"$f":"SQRT((D40^2)+(D41^2)+(D42^2)+(D43^2)+(D44^2)+(D54^2)+(D55^2)+(D56^2)+(D57^2)+(D58^2))","v":122.51122397560152},{"$f":"((E40)+(E41)+(E42)+(E43)+(E44)+(E54)+(E55)+(E56)+(E57)+(E58))","v":428},{"$f":"SQRT((F40^2)+(F41^2)+(F42^2)+(F43^2)+(F44^2)+(F54^2)+(F55^2)+(F56^2)+(F57^2)+(F58^2))","v":101.78899744078434},{"$f":"((G40)+(G41)+(G42)+(G43)+(G44)+(G54)+(G55)+(G56)+(G57)+(G58))","v":480},{"$f":"SQRT((H40^2)+(H41^2)+(H42^2)+(H43^2)+(H44^2)+(H54^2)+(H55^2)+(H56^2)+(H57^2)+(H58^2))","v":146.44452874723589},{"$f":"((I40)+(I41)+(I42)+(I43)+(I44)+(I54)+(I55)+(I56)+(I57)+(I58))","v":1504},{"$f":"SQRT((J40^2)+(J41^2)+(J42^2)+(J43^2)+(J44^2)+(J54^2)+(J55^2)+(J56^2)+(J57^2)+(J58^2))","v":210.72968466734818},{"$f":"((K40)+(K41)+(K42)+(K43)+(K44)+(K54)+(K55)+(K56)+(K57)+(K58))","v":272},{"$f":"SQRT((L40^2)+(L41^2)+(L42^2)+(L43^2)+(L44^2)+(L54^2)+(L55^2)+(L56^2)+(L57^2)+(L58^2))","v":59.177698502053964},{"$f":"((M40)+(M41)+(M42)+(M43)+(M44)+(M54)+(M55)+(M56)+(M57)+(M58))","v":236},{"$f":"SQRT((N40^2)+(N41^2)+(N42^2)+(N43^2)+(N44^2)+(N54^2)+(N55^2)+(N56^2)+(N57^2)+(N58^2))","v":60.058305004387194},{"$f":"((O40)+(O41)+(O42)+(O43)+(O44)+(O54)+(O55)+(O56)+(O57)+(O58))","v":390},{"$f":"SQRT((P40^2)+(P41^2)+(P42^2)+(P43^2)+(P44^2)+(P54^2)+(P55^2)+(P56^2)+(P57^2)+(P58^2))","v":80.224684480526321},{"$f":"((Q40)+(Q41)+(Q42)+(Q43)+(Q44)+(Q54)+(Q55)+(Q56)+(Q57)+(Q58))","v":5408},{"$f":"SQRT((R40^2)+(R41^2)+(R42^2)+(R43^2)+(R44^2)+(R54^2)+(R55^2)+(R56^2)+(R57^2)+(R58^2))","v":438.69579437236462},{"$f":"((S40)+(S41)+(S42)+(S43)+(S44)+(S54)+(S55)+(S56)+(S57)+(S58))","v":126},{"$f":"SQRT((T40^2)+(T41^2)+(T42^2)+(T43^2)+(T44^2)+(T54^2)+(T55^2)+(T56^2)+(T57^2)+(T58^2))","v":39.038442591886273},{"$f":"((U40)+(U41)+(U42)+(U43)+(U44)+(U54)+(U55)+(U56)+(U57)+(U58))","v":600},{"$f":"SQRT((V40^2)+(V41^2)+(V42^2)+(V43^2)+(V44^2)+(V54^2)+(V55^2)+(V56^2)+(V57^2)+(V58^2))","v":96.13012014972206},{"$f":"((W40)+(W41)+(W42)+(W43)+(W44)+(W54)+(W55)+(W56)+(W57)+(W58))","v":694},{"$f":"SQRT((X40^2)+(X41^2)+(X42^2)+(X43^2)+(X44^2)+(X54^2)+(X55^2)+(X56^2)+(X57^2)+(X58^2))","v":156.88212135230705},{"$f":"((Y40)+(Y41)+(Y42)+(Y43)+(Y44)+(Y54)+(Y55)+(Y56)+(Y57)+(Y58))","v":1038},{"$f":"SQRT((Z40^2)+(Z41^2)+(Z42^2)+(Z43^2)+(Z44^2)+(Z54^2)+(Z55^2)+(Z56^2)+(Z57^2)+(Z58^2))","v":211.9858485842864},{"$f":"((AA40)+(AA41)+(AA42)+(AA43)+(AA44)+(AA54)+(AA55)+(AA56)+(AA57)+(AA58))","v":600},{"$f":"SQRT((AB40^2)+(AB41^2)+(AB42^2)+(AB43^2)+(AB44^2)+(AB54^2)+(AB55^2)+(AB56^2)+(AB57^2)+(AB58^2))","v":163.98780442459739},{"$f":"((AC40)+(AC41)+(AC42)+(AC43)+(AC44)+(AC54)+(AC55)+(AC56)+(AC57)+(AC58))","v":92},{"$f":"SQRT((AD40^2)+(AD41^2)+(AD42^2)+(AD43^2)+(AD44^2)+(AD54^2)+(AD55^2)+(AD56^2)+(AD57^2)+(AD58^2))","v":37.523326078587438},{"$f":"((AE40)+(AE41)+(AE42)+(AE43)+(AE44)+(AE54)+(AE55)+(AE56)+(AE57)+(AE58))","v":2064},{"$f":"SQRT((AF40^2)+(AF41^2)+(AF42^2)+(AF43^2)+(AF44^2)+(AF54^2)+(AF55^2)+(AF56^2)+(AF57^2)+(AF58^2))","v":295.97803972592288},{"$f":"((AG40)+(AG41)+(AG42)+(AG43)+(AG44)+(AG54)+(AG55)+(AG56)+(AG57)+(AG58))","v":786},{"$f":"SQRT((AH40^2)+(AH41^2)+(AH42^2)+(AH43^2)+(AH44^2)+(AH54^2)+(AH55^2)+(AH56^2)+(AH57^2)+(AH58^2))","v":199.92748685460936},{"$f":"((AI40)+(AI41)+(AI42)+(AI43)+(AI44)+(AI54)+(AI55)+(AI56)+(AI57)+(AI58))","v":620},{"$f":"SQRT((AJ40^2)+(AJ41^2)+(AJ42^2)+(AJ43^2)+(AJ44^2)+(AJ54^2)+(AJ55^2)+(AJ56^2)+(AJ57^2)+(AJ58^2))","v":216.19435700313736},{"$f":"((AK40)+(AK41)+(AK42)+(AK43)+(AK44)+(AK54)+(AK55)+(AK56)+(AK57)+(AK58))","v":254},{"$f":"SQRT((AL40^2)+(AL41^2)+(AL42^2)+(AL43^2)+(AL44^2)+(AL54^2)+(AL55^2)+(AL56^2)+(AL57^2)+(AL58^2))","v":72.993150363578636},{"$f":"((AM40)+(AM41)+(AM42)+(AM43)+(AM44)+(AM54)+(AM55)+(AM56)+(AM57)+(AM58))","v":400},{"$f":"SQRT((AN40^2)+(AN41^2)+(AN42^2)+(AN43^2)+(AN44^2)+(AN54^2)+(AN55^2)+(AN56^2)+(AN57^2)+(AN58^2))","v":115.95257651298655},{"$f":"((AO40)+(AO41)+(AO42)+(AO43)+(AO44)+(AO54)+(AO55)+(AO56)+(AO57)+(AO58))","v":630},{"$f":"SQRT((AP40^2)+(AP41^2)+(AP42^2)+(AP43^2)+(AP44^2)+(AP54^2)+(AP55^2)+(AP56^2)+(AP57^2)+(AP58^2))","v":150.31965939290842},{"$f":"((AQ40)+(AQ41)+(AQ42)+(AQ43)+(AQ44)+(AQ54)+(AQ55)+(AQ56)+(AQ57)+(AQ58))","v":1025},{"$f":"SQRT((AR40^2)+(AR41^2)+(AR42^2)+(AR43^2)+(AR44^2)+(AR54^2)+(AR55^2)+(AR56^2)+(AR57^2)+(AR58^2))","v":247.21852681382921},{"$f":"((AS40)+(AS41)+(AS42)+(AS43)+(AS44)+(AS54)+(AS55)+(AS56)+(AS57)+(AS58))","v":583},{"$f":"SQRT((AT40^2)+(AT41^2)+(AT42^2)+(AT43^2)+(AT44^2)+(AT54^2)+(AT55^2)+(AT56^2)+(AT57^2)+(AT58^2))","v":199.12307751739877},{"$f":"((AU40)+(AU41)+(AU42)+(AU43)+(AU44)+(AU54)+(AU55)+(AU56)+(AU57)+(AU58))","v":201},{"$f":"SQRT((AV40^2)+(AV41^2)+(AV42^2)+(AV43^2)+(AV44^2)+(AV54^2)+(AV55^2)+(AV56^2)+(AV57^2)+(AV58^2))","v":60.091596750294464},{"$f":"((AW40)+(AW41)+(AW42)+(AW43)+(AW44)+(AW54)+(AW55)+(AW56)+(AW57)+(AW58))","v":348},{"$f":"SQRT((AX40^2)+(AX41^2)+(AX42^2)+(AX43^2)+(AX44^2)+(AX54^2)+(AX55^2)+(AX56^2)+(AX57^2)+(AX58^2))","v":83.952367447261423},{"$f":"((AY40)+(AY41)+(AY42)+(AY43)+(AY44)+(AY54)+(AY55)+(AY56)+(AY57)+(AY58))","v":396},{"$f":"SQRT((AZ40^2)+(AZ41^2)+(AZ42^2)+(AZ43^2)+(AZ44^2)+(AZ54^2)+(AZ55^2)+(AZ56^2)+(AZ57^2)+(AZ58^2))","v":78.574805122252769},{"$f":"((BA40)+(BA41)+(BA42)+(BA43)+(BA44)+(BA54)+(BA55)+(BA56)+(BA57)+(BA58))","v":187},{"$f":"SQRT((BB40^2)+(BB41^2)+(BB42^2)+(BB43^2)+(BB44^2)+(BB54^2)+(BB55^2)+(BB56^2)+(BB57^2)+(BB58^2))","v":47.81213235152768},{"$f":"((BC40)+(BC41)+(BC42)+(BC43)+(BC44)+(BC54)+(BC55)+(BC56)+(BC57)+(BC58))","v":188},{"$f":"SQRT((BD40^2)+(BD41^2)+(BD42^2)+(BD43^2)+(BD44^2)+(BD54^2)+(BD55^2)+(BD56^2)+(BD57^2)+(BD58^2))","v":74.242844773082339}]
[null,"18 to 64 years",{"$f":"((C45)+(C46)+(C47)+(C48)+(C49)+(C59)+(C60)+(C61)+(C62)+(C63))","v":2550},{"$f":"SQRT((D45^2)+(D46^2)+(D47^2)+(D48^2)+(D49^2)+(D59^2)+(D60^2)+(D61^2)+(D62^2)+(D63^2))","v":282.61988606607287},{"$f":"((E45)+(E46)+(E47)+(E48)+(E49)+(E59)+(E60)+(E61)+(E62)+(E63))","v":1525},{"$f":"SQRT((F45^2)+(F46^2)+(F47^2)+(F48^2)+(F49^2)+(F59^2)+(F60^2)+(F61^2)+(F62^2)+(F63^2))","v":174.54798767101269},{"$f":"((G45)+(G46)+(G47)+(G48)+(G49)+(G59)+(G60)+(G61)+(G62)+(G63))","v":2131},{"$f":"SQRT((H45^2)+(H46^2)+(H47^2)+(H48^2)+(H49^2)+(H59^2)+(H60^2)+(H61^2)+(H62^2)+(H63^2))","v":243.24267717651853},{"$f":"((I45)+(I46)+(I47)+(I48)+(I49)+(I59)+(I60)+(I61)+(I62)+(I63))","v":4411},{"$f":"SQRT((J45^2)+(J46^2)+(J47^2)+(J48^2)+(J49^2)+(J59^2)+(J60^2)+(J61^2)+(J62^2)+(J63^2))","v":307.89771028703672},{"$f":"((K45)+(K46)+(K47)+(K48)+(K49)+(K59)+(K60)+(K61)+(K62)+(K63))","v":866},{"$f":"SQRT((L45^2)+(L46^2)+(L47^2)+(L48^2)+(L49^2)+(L59^2)+(L60^2)+(L61^2)+(L62^2)+(L63^2))","v":107.83320453366856},{"$f":"((M45)+(M46)+(M47)+(M48)+(M49)+(M59)+(M60)+(M61)+(M62)+(M63))","v":1496},{"$f":"SQRT((N45^2)+(N46^2)+(N47^2)+(N48^2)+(N49^2)+(N59^2)+(N60^2)+(N61^2)+(N62^2)+(N63^2))","v":141.47084505296488},{"$f":"((O45)+(O46)+(O47)+(O48)+(O49)+(O59)+(O60)+(O61)+(O62)+(O63))","v":1591},{"$f":"SQRT((P45^2)+(P46^2)+(P47^2)+(P48^2)+(P49^2)+(P59^2)+(P60^2)+(P61^2)+(P62^2)+(P63^2))","v":146.46159906268946},{"$f":"((Q45)+(Q46)+(Q47)+(Q48)+(Q49)+(Q59)+(Q60)+(Q61)+(Q62)+(Q63))","v":23453},{"$f":"SQRT((R45^2)+(R46^2)+(R47^2)+(R48^2)+(R49^2)+(R59^2)+(R60^2)+(R61^2)+(R62^2)+(R63^2))","v":754.66018842920289},{"$f":"((S45)+(S46)+(S47)+(S48)+(S49)+(S59)+(S60)+(S61)+(S62)+(S63))","v":685},{"$f":"SQRT((T45^2)+(T46^2)+(T47^2)+(T48^2)+(T49^2)+(T59^2)+(T60^2)+(T61^2)+(T62^2)+(T63^2))","v":91.06041950265768},{"$f":"((U45)+(U46)+(U47)+(U48)+(U49)+(U59)+(U60)+(U61)+(U62)+(U63))","v":1732},{"$f":"SQRT((V45^2)+(V46^2)+(V47^2)+(V48^2)+(V49^2)+(V59^2)+(V60^2)+(V61^2)+(V62^2)+(V63^2))","v":141.36123938336138},{"$f":"((W45)+(W46)+(W47)+(W48)+(W49)+(W59)+(W60)+(W61)+(W62)+(W63))","v":2779},{"$f":"SQRT((X45^2)+(X46^2)+(X47^2)+(X48^2)+(X49^2)+(X59^2)+(X60^2)+(X61^2)+(X62^2)+(X63^2))","v":290.38078448823023},{"$f":"((Y45)+(Y46)+(Y47)+(Y48)+(Y49)+(Y59)+(Y60)+(Y61)+(Y62)+(Y63))","v":4883},{"$f":"SQRT((Z45^2)+(Z46^2)+(Z47^2)+(Z48^2)+(Z49^2)+(Z59^2)+(Z60^2)+(Z61^2)+(Z62^2)+(Z63^2))","v":459.78146983104921},{"$f":"((AA45)+(AA46)+(AA47)+(AA48)+(AA49)+(AA59)+(AA60)+(AA61)+(AA62)+(AA63))","v":2410},{"$f":"SQRT((AB45^2)+(AB46^2)+(AB47^2)+(AB48^2)+(AB49^2)+(AB59^2)+(AB60^2)+(AB61^2)+(AB62^2)+(AB63^2))","v":295.93580384941595},{"$f":"((AC45)+(AC46)+(AC47)+(AC48)+(AC49)+(AC59)+(AC60)+(AC61)+(AC62)+(AC63))","v":518},{"$f":"SQRT((AD45^2)+(AD46^2)+(AD47^2)+(AD48^2)+(AD49^2)+(AD59^2)+(AD60^2)+(AD61^2)+(AD62^2)+(AD63^2))","v":66.226882759193799},{"$f":"((AE45)+(AE46)+(AE47)+(AE48)+(AE49)+(AE59)+(AE60)+(AE61)+(AE62)+(AE63))","v":8166},{"$f":"SQRT((AF45^2)+(AF46^2)+(AF47^2)+(AF48^2)+(AF49^2)+(AF59^2)+(AF60^2)+(AF61^2)+(AF62^2)+(AF63^2))","v":516.50363019053407},{"$f":"((AG45)+(AG46)+(AG47)+(AG48)+(AG49)+(AG59)+(AG60)+(AG61)+(AG62)+(AG63))","v":3292},{"$f":"SQRT((AH45^2)+(AH46^2)+(AH47^2)+(AH48^2)+(AH49^2)+(AH59^2)+(AH60^2)+(AH61^2)+(AH62^2)+(AH63^2))","v":318.03616146595658},{"$f":"((AI45)+(AI46)+(AI47)+(AI48)+(AI49)+(AI59)+(AI60)+(AI61)+(AI62)+(AI63))","v":3311},{"$f":"SQRT((AJ45^2)+(AJ46^2)+(AJ47^2)+(AJ48^2)+(AJ49^2)+(AJ59^2)+(AJ60^2)+(AJ61^2)+(AJ62^2)+(AJ63^2))","v":430.67389054828942},{"$f":"((AK45)+(AK46)+(AK47)+(AK48)+(AK49)+(AK59)+(AK60)+(AK61)+(AK62)+(AK63))","v":1217},{"$f":"SQRT((AL45^2)+(AL46^2)+(AL47^2)+(AL48^2)+(AL49^2)+(AL59^2)+(AL60^2)+(AL61^2)+(AL62^2)+(AL63^2))","v":146.54350889752845},{"$f":"((AM45)+(AM46)+(AM47)+(AM48)+(AM49)+(AM59)+(AM60)+(AM61)+(AM62)+(AM63))","v":1463},{"$f":"SQRT((AN45^2)+(AN46^2)+(AN47^2)+(AN48^2)+(AN49^2)+(AN59^2)+(AN60^2)+(AN61^2)+(AN62^2)+(AN63^2))","v":185.94353981787052},{"$f":"((AO45)+(AO46)+(AO47)+(AO48)+(AO49)+(AO59)+(AO60)+(AO61)+(AO62)+(AO63))","v":3109},{"$f":"SQRT((AP45^2)+(AP46^2)+(AP47^2)+(AP48^2)+(AP49^2)+(AP59^2)+(AP60^2)+(AP61^2)+(AP62^2)+(AP63^2))","v":309.96774025694998},{"$f":"((AQ45)+(AQ46)+(AQ47)+(AQ48)+(AQ49)+(AQ59)+(AQ60)+(AQ61)+(AQ62)+(AQ63))","v":4363},{"$f":"SQRT((AR45^2)+(AR46^2)+(AR47^2)+(AR48^2)+(AR49^2)+(AR59^2)+(AR60^2)+(AR61^2)+(AR62^2)+(AR63^2))","v":442.75839912981888},{"$f":"((AS45)+(AS46)+(AS47)+(AS48)+(AS49)+(AS59)+(AS60)+(AS61)+(AS62)+(AS63))","v":2196},{"$f":"SQRT((AT45^2)+(AT46^2)+(AT47^2)+(AT48^2)+(AT49^2)+(AT59^2)+(AT60^2)+(AT61^2)+(AT62^2)+(AT63^2))","v":279.32060432413505},{"$f":"((AU45)+(AU46)+(AU47)+(AU48)+(AU49)+(AU59)+(AU60)+(AU61)+(AU62)+(AU63))","v":834},{"$f":"SQRT((AV45^2)+(AV46^2)+(AV47^2)+(AV48^2)+(AV49^2)+(AV59^2)+(AV60^2)+(AV61^2)+(AV62^2)+(AV63^2))","v":99.196774141097961},{"$f":"((AW45)+(AW46)+(AW47)+(AW48)+(AW49)+(AW59)+(AW60)+(AW61)+(AW62)+(AW63))","v":1043},{"$f":"SQRT((AX45^2)+(AX46^2)+(AX47^2)+(AX48^2)+(AX49^2)+(AX59^2)+(AX60^2)+(AX61^2)+(AX62^2)+(AX63^2))","v":132.70267518026907},{"$f":"((AY45)+(AY46)+(AY47)+(AY48)+(AY49)+(AY59)+(AY60)+(AY61)+(AY62)+(AY63))","v":1510},{"$f":"SQRT((AZ45^2)+(AZ46^2)+(AZ47^2)+(AZ48^2)+(AZ49^2)+(AZ59^2)+(AZ60^2)+(AZ61^2)+(AZ62^2)+(AZ63^2))","v":152.04604565722846},{"$f":"((BA45)+(BA46)+(BA47)+(BA48)+(BA49)+(BA59)+(BA60)+(BA61)+(BA62)+(BA63))","v":1147},{"$f":"SQRT((BB45^2)+(BB46^2)+(BB47^2)+(BB48^2)+(BB49^2)+(BB59^2)+(BB60^2)+(BB61^2)+(BB62^2)+(BB63^2))","v":111.52578177264664},{"$f":"((BC45)+(BC46)+(BC47)+(BC48)+(BC49)+(BC59)+(BC60)+(BC61)+(BC62)+(BC63))","v":982},{"$f":"SQRT((BD45^2)+(BD46^2)+(BD47^2)+(BD48^2)+(BD49^2)+(BD59^2)+(BD60^2)+(BD61^2)+(BD62^2)+(BD63^2))","v":118.84443613396463}]
[null,"65 to 74 years",{"$f":"((C50)+(C64))","v":316},{"$f":"SQRT((D50^2)+(D64^2))","v":90.906545418908095},{"$f":"((E50)+(E64))","v":211},{"$f":"SQRT((F50^2)+(F64^2))","v":61.032778078668514},{"$f":"((G50)+(G64))","v":301},{"$f":"SQRT((H50^2)+(H64^2))","v":77.620873481300123},{"$f":"((I50)+(I64))","v":738},{"$f":"SQRT((J50^2)+(J64^2))","v":101.86265262597475},{"$f":"((K50)+(K64))","v":245},{"$f":"SQRT((L50^2)+(L64^2))","v":45.453272709454048},{"$f":"((M50)+(M64))","v":265},{"$f":"SQRT((N50^2)+(N64^2))","v":52.497618993626752},{"$f":"((O50)+(O64))","v":276},{"$f":"SQRT((P50^2)+(P64^2))","v":46.227697325304881},{"$f":"((Q50)+(Q64))","v":3333},{"$f":"SQRT((R50^2)+(R64^2))","v":229.21169254643183},{"$f":"((S50)+(S64))","v":96},{"$f":"SQRT((T50^2)+(T64^2))","v":37.802116342871599},{"$f":"((U50)+(U64))","v":239},{"$f":"SQRT((V50^2)+(V64^2))","v":37.20215047547655},{"$f":"((W50)+(W64))","v":561},{"$f":"SQRT((X50^2)+(X64^2))","v":120.96693763173474},{"$f":"((Y50)+(Y64))","v":1041},{"$f":"SQRT((Z50^2)+(Z64^2))","v":169.72919607421701},{"$f":"((AA50)+(AA64))","v":579},{"$f":"SQRT((AB50^2)+(AB64^2))","v":123.10970717209915},{"$f":"((AC50)+(AC64))","v":118},{"$f":"SQRT((AD50^2)+(AD64^2))","v":37.643060449437421},{"$f":"((AE50)+(AE64))","v":1351},{"$f":"SQRT((AF50^2)+(AF64^2))","v":161.37533888422976},{"$f":"((AG50)+(AG64))","v":677},{"$f":"SQRT((AH50^2)+(AH64^2))","v":131.50285168010618},{"$f":"((AI50)+(AI64))","v":674},{"$f":"SQRT((AJ50^2)+(AJ64^2))","v":164.05486887014357},{"$f":"((AK50)+(AK64))","v":388},{"$f":"SQRT((AL50^2)+(AL64^2))","v":66.483080554378645},{"$f":"((AM50)+(AM64))","v":517},{"$f":"SQRT((AN50^2)+(AN64^2))","v":110.60289327137876},{"$f":"((AO50)+(AO64))","v":396},{"$f":"SQRT((AP50^2)+(AP64^2))","v":91.678787077491378},{"$f":"((AQ50)+(AQ64))","v":720},{"$f":"SQRT((AR50^2)+(AR64^2))","v":160.2404443328837},{"$f":"((AS50)+(AS64))","v":382},{"$f":"SQRT((AT50^2)+(AT64^2))","v":112.60994627474076},{"$f":"((AU50)+(AU64))","v":195},{"$f":"SQRT((AV50^2)+(AV64^2))","v":40.607881008493905},{"$f":"((AW50)+(AW64))","v":231},{"$f":"SQRT((AX50^2)+(AX64^2))","v":58.600341295934449},{"$f":"((AY50)+(AY64))","v":328},{"$f":"SQRT((AZ50^2)+(AZ64^2))","v":67.357256476195644},{"$f":"((BA50)+(BA64))","v":212},{"$f":"SQRT((BB50^2)+(BB64^2))","v":42.201895692018383},{"$f":"((BC50)+(BC64))","v":182},{"$f":"SQRT((BD50^2)+(BD64^2))","v":41.868842830916641}]
[null,"75 years and over",{"$f":"((C51)+(C65))","v":336},{"$f":"SQRT((D51^2)+(D65^2))","v":118.47362575695909},{"$f":"((E51)+(E65))","v":240},{"$f":"SQRT((F51^2)+(F65^2))","v":77.620873481300123},{"$f":"((G51)+(G65))","v":179},{"$f":"SQRT((H51^2)+(H65^2))","v":63.134776470658387},{"$f":"((I51)+(I65))","v":555},{"$f":"SQRT((J51^2)+(J65^2))","v":99.02019995940222},{"$f":"((K51)+(K65))","v":107},{"$f":"SQRT((L51^2)+(L65^2))","v":41.182520563948003},{"$f":"((M51)+(M65))","v":154},{"$f":"SQRT((N51^2)+(N65^2))","v":43.840620433565945},{"$f":"((O51)+(O65))","v":119},{"$f":"SQRT((P51^2)+(P65^2))","v":37.215588131856791},{"$f":"((Q51)+(Q65))","v":2858},{"$f":"SQRT((R51^2)+(R65^2))","v":266.83328128252668},{"$f":"((S51)+(S65))","v":63},{"$f":"SQRT((T51^2)+(T65^2))","v":25},{"$f":"((U51)+(U65))","v":92},{"$f":"SQRT((V51^2)+(V65^2))","v":25},{"$f":"((W51)+(W65))","v":197},{"$f":"SQRT((X51^2)+(X65^2))","v":70.767224051816527},{"$f":"((Y51)+(Y65))","v":575},{"$f":"SQRT((Z51^2)+(Z65^2))","v":135.48431643551959},{"$f":"((AA51)+(AA65))","v":179},{"$f":"SQRT((AB51^2)+(AB65^2))","v":68.622153857191051},{"$f":"((AC51)+(AC65))","v":48},{"$f":"SQRT((AD51^2)+(AD65^2))","v":31.240998703626616},{"$f":"((AE51)+(AE65))","v":763},{"$f":"SQRT((AF51^2)+(AF65^2))","v":160.20611723651504},{"$f":"((AG51)+(AG65))","v":372},{"$f":"SQRT((AH51^2)+(AH65^2))","v":117.5925167687128},{"$f":"((AI51)+(AI65))","v":287},{"$f":"SQRT((AJ51^2)+(AJ65^2))","v":120.80149005703531},{"$f":"((AK51)+(AK65))","v":164},{"$f":"SQRT((AL51^2)+(AL65^2))","v":48.166378315169183},{"$f":"((AM51)+(AM65))","v":646},{"$f":"SQRT((AN51^2)+(AN65^2))","v":126.25371281669304},{"$f":"((AO51)+(AO65))","v":108},{"$f":"SQRT((AP51^2)+(AP65^2))","v":42.201895692018383},{"$f":"((AQ51)+(AQ65))","v":329},{"$f":"SQRT((AR51^2)+(AR65^2))","v":107.16809226630845},{"$f":"((AS51)+(AS65))","v":223},{"$f":"SQRT((AT51^2)+(AT65^2))","v":97.005154502222197},{"$f":"((AU51)+(AU65))","v":90},{"$f":"SQRT((AV51^2)+(AV65^2))","v":33.61547262794322},{"$f":"((AW51)+(AW65))","v":151},{"$f":"SQRT((AX51^2)+(AX65^2))","v":50.328918128646478},{"$f":"((AY51)+(AY65))","v":156},{"$f":"SQRT((AZ51^2)+(AZ65^2))","v":49.396356140913873},{"$f":"((BA51)+(BA65))","v":57},{"$f":"SQRT((BB51^2)+(BB65^2))","v":21.095023109728988},{"$f":"((BC51)+(BC65))","v":177},{"$f":"SQRT((BD51^2)+(BD65^2))","v":53.413481444294568}]
[]
[]
[]
[]
[]
[]
[]
[]
[]
[]
[]
[]
[]
[]
[]
[]
[]
[]
[]
[]
[]
[]
[]
[]
[]
[]
[]
[]
[]
[]
[]
[]
[]
[]
[]
[]
[]
[]
[]
[]
[]
[]
[null,"Calculated Table B17001. POVERTY STATUS IN THE PAST 12 MONTHS BY SEX BY AGE"]
[null,"Universe:  POPULATION FOR WHOM POVERTY STATUS IS DETERMINED"]
[null,"Data Set: 2010-2014 American Community Survey 5-Year Estimates"]
[]
[null,null,"Allenstown",null,"Andover",null,"Boscawen",null,"Bow",null,"Bradford",null,"Canterbury",null,"Chichester",null,"Concord",null,"Danbury",null,"Dunbarton",null,"Epsom",null,"Franklin",null,"Henniker",null,"Hill",null,"Hooksett",null,"Hopkinton",null,"Loudon",null,"Newbury",null,"New London",null,"Northfield",null,"Pembroke",null,"Pittsfield",null,"Salisbury",null,"Sutton",null,"Warner",null,"Webster",null,"Wilmot"]
[null,null,"Estimate","Margin Of Error","Estimate","Margin Of Error","Estimate","Margin Of Error","Estimate","Margin Of Error","Estimate","Margin Of Error","Estimate","Margin Of Error","Estimate","Margin Of Error","Estimate","Margin Of Error","Estimate","Margin Of Error","Estimate","Margin Of Error","Estimate","Margin Of Error","Estimate","Margin Of Error","Estimate","Margin Of Error","Estimate","Margin Of Error","Estimate","Margin Of Error","Estimate","Margin Of Error","Estimate","Margin Of Error","Estimate","Margin Of Error","Estimate","Margin Of Error","Estimate","Margin Of Error","Estimate","Margin Of Error","Estimate","Margin Of Error","Estimate","Margin Of Error","Estimate","Margin Of Error","Estimate","Margin Of Error","Estimate","Margin Of Error","Estimate","Margin Of Error"]
[null,"Total:",4248,51,2401,255,3440,334,7611,29,1692,206,2291,204,2507,41,39686,468,1238,188,2769,20,4481,94,8282,84,4186,177,1161,183,12880,153,5584,25,5343,19,1749,234,3555,196,4760,62,7121,29,4069,35,1385,151,2003,286,2765,43,1868,196,1358,180]
[null,"Income in the past 12 months below poverty level:",375,189,256,95,544,281,286,175,109,40,93,59,170,74,4659,784,63,51,164,99,151,92,1985,518,389,250,46,31,382,169,203,177,453,200,110,65,370,176,586,224,608,257,744,271,54,33,123,99,199,86,154,93,115,62]
[null,"Under 5 years",43,49.040799340956916,0,13.038404810405298,77,21.95449840010015,0,21.213203435596427,0,24.596747752497688,5,15.556349186104045,0,20.248456731316587,260,129.00387591076478,0,13.038404810405298,5,13.601470508735444,0,15.556349186104045,231,133.5440002396214,31,15.556349186104045,0,15.556349186104045,21,45.310043036836767,52,62.032249677083293,0,45.541190146942803,0,13.601470508735444,0,48.270073544588683,144,94.641428560646744,0,69.634761434214738,102,68.796802251267465,0,12.083045973594572,0,15.556349186104045,0,13.038404810405298,0,14.212670403551895,4,11.704699910719626]
[null,"5 to 17 years",42,41.509035161034518,35,32.817678162843876,189,116.87172455303293,131,80.018747803249212,7,32.062439083762797,23,32.572994949804659,32,41.364235759892871,858,215.81473536345936,27,37.416573867739416,51,40.024992192379003,22,40.049968789001575,499,158.71042813879623,89,81.449370777188946,0,33.166247903554002,60,56.894639466297704,24,50.596442562694072,122,72.408563029520209,29,40.037482438335203,44,55.272054421741913,77,84.846920981258947,55,68.782265156070579,162,87.321245982864909,9,31.685959035509718,55,48.703182647543684,20,29.8496231131986,30,34.190641994557517,24,24.979991993593593]
[null,"18 to 64 years",272,119.06720791217035,159,91.39474820797966,254,92.541882410074194,138,75.511588514611446,72,35.62302626111375,58,38.065732621348559,114,59.523104757732519,3190,429.66382207488681,33,32.434549480453711,108,52.057660339281483,104,58.463663928973865,1034,232.95278491574209,241,150.98344280085814,44,38.052595180880893,255,93.89355675444402,114,85.965109201349819,307,126.11502686040232,71,38.40572873934304,284,119.49895397031725,356,131.24404748406687,499,215.85180101171267,453,145.78408692309321,42,29.223278392404914,63,41.47288270665544,161,71.533209071032175,97,50.149775672479336,66,42.988370520409354]
[null,"65 to 74 years",0,15.556349186104045,23,27.892651361962706,9,19.416487838947599,10,21.213203435596427,10,13.601470508735444,5,13.601470508735444,17,14.560219778561036,177,69.814038702828242,3,12.083045973594572,0,15.556349186104045,0,15.556349186104045,53,42.190046219457976,8,17.804493814764857,2,11.401754250991379,6,19.235384061671343,13,25.80697580112788,23,26.419689627245813,6,13.601470508735444,10,20.248456731316587,0,15.556349186104045,54,50.774009099144415,27,21.2602916254693,0,15.556349186104045,3,12.083045973594572,11,26.40075756488817,11,9.2195444572928871,9,9.4868329805051381]
[null,"75 years and over",18,18.384776310850235,39,41.43669871020132,15,17.029386365926403,7,18.601075237738275,20,13.416407864998739,2,11.704699910719626,7,14.866068747318506,174,83.93449827097318,0,15.556349186104045,0,15.556349186104045,25,25.238858928247925,168,86.400231481171389,20,22.825424421026653,0,15.556349186104045,40,32.572994949804659,0,21.213203435596427,1,15.297058540778355,4,12.529964086141668,32,31.953090617340916,9,11.704699910719626,0,21.213203435596427,0,15.556349186104045,3,11.704699910719626,2,12.083045973594572,7,20.248456731316587,16,21.95449840010015,12,11.180339887498949]
[null," Income in the past 12 months at or above poverty level ",3873,198,2145,240,2896,371,7325,176,1583,206,2198,192,2337,86,35027,935,1175,182,2605,101,4330,136,6297,505,3797,277,1115,175,12498,234,5381,179,4890,201,1639,234,3185,257,4174,229,6513,263,3325,272,1331,147,1880,274,2566,104,1714,183,1243,166]
[null,"Under 5 years",255,101.35580891098448,59,33.286633954186478,199,87,163,75.166481891864535,52,19.209372712298546,119,43.185645763378368,72,43.278170016764804,1885,268.71546289709494,67,44.204072210600685,139,48.60041152089147,177,83.240615086627031,333,117.2006825918689,327,117.61802582937702,44,21.213203435596427,664,189.40168953839878,128,81.055536516637773,207,97.04638066409278,55,35.440090293338699,28,33.837848631377263,235,113.87712676389407,228,114.40279716860073,216,91.263355187062899,44,22.472205054244231,109,68.095521144932874,88,50.606323715519977,70,31.76476034853718,40,22.360679774997898]
[null,"5 to 17 years",461,122.43365550370535,301,85.72630868059116,369,124.76778430348116,1611,237.38576199932464,244,61.838499334961227,316,79.511005527536881,326,84.474848327771497,5296,414.72762145774664,163,53.310411741047361,391,77.537087899920508,688,159.8718236588299,869,186.257885739101,692,175.50783458296101,204,60.506198029623377,1859,299.39939879699159,1046,235.2254237959834,848,189.60221517693299,231,60.033324079214538,339,99.669453695703581,668,129.25556080881009,1309,269.76100533620496,447,125.37942414925983,214,58.591808301161009,293,67.631353675643666,411,90.895544445258707,309,62.81719509815764,185,55.389529696504916]
[null,"18 to 64 years",2603,251.90474390134062,1332,165.71662559924397,1874,244.25191913268563,4493,308.24827655641485,1052,111.69153951844338,1409,128.76334882255898,1617,154.97096502248414,22973,765.12351943983526,774,105.44192714475585,1785,162.13266173106516,2823,280.57262874343252,4168,341.40591676185107,2507,281.6611439300778,710,83.994047408134819,8242,561.36173720694569,3253,326.84093990808435,3142,309.34931711578093,952,121.65936051122412,1375,188.25249002337259,2726,267.49579435946276,4218,390.7172890978847,2203,266.48076853686837,913,104.85704554296768,1057,130.02307487519283,1611,164.21936548409874,1127,104.91901638883201,733,101.59724405711013]
[null,"65 to 74 years",315,86.284413424441851,299,72.862884927787476,264,93.1933474020544,687,113.45483682946268,135,41.012193308819754,241,46.227697325304881,248,52.40229002629561,2570,238.02730935756091,106,32.249030993194197,225,45.221676218380054,433,118.06777714516353,520,117.41379816699569,97,43.278170016764804,111,38.948684188300895,1132,165.89454481688057,692,137.90576492663388,386,91.285267157411553,217,49.578221024962161,644,116.03878661895772,316,77.89736837660179,413,122.41323457861898,275,65.215028942721474,110,31.906112267087632,257,72.201108024738787,251,70.007142492748557,153,30.413812651491099,153,37.013511046643494]
[null,"75 years and over",239,80.808415403347695,154,55.865910893853687,190,77.987178433380961,371,97.836598469080073,100,33.286633954186478,113,37.536648758246919,74,36.715119501371639,2303,232.74449510138794,65,21.633307652783937,65,30.675723300355934,209,78.409183135650636,407,90.027773492406226,174,64.660652641308843,46,25.495097567963924,601,128.4562182223967,262,74.966659255965254,307,103.58571330062848,184,59.640590204993778,799,141.24092891226678,229,69.426219830839131,345,97.8008179924892,184,67.201190465645766,50,18.601075237738275,164,48.270073544588683,205,57.384666941614292,55,23.259406699226016,132,42.638011210655684]
[]
[]
[]
[]
[]
[]
[]
[]
[]
[]
[]
[]
[]
[]
[]
[]
[]
[]
[]
[]
[]
[]
[]
[]
[]
[]
[]
[]
[]
[]
[]
[]
[]
[]
[]
[]
[]
[]
[]
[]
[]
[]
[null,"Calculated Table B17001. POVERTY STATUS IN THE PAST 12 MONTHS BY SEX BY AGE"]
[null,"Universe:  POPULATION FOR WHOM POVERTY STATUS IS DETERMINED"]
[null,"Data Set: 2005-2009 American Community Survey 5-Year Estimates"]
[]
[null,null,"Allenstown",null,"Andover",null,"Boscawen",null,"Bow",null,"Bradford",null,"Canterbury",null,"Chichester",null,"Concord",null,"Danbury",null,"Dunbarton",null,"Epsom",null,"Franklin",null,"Henniker",null,"Hill",null,"Hooksett",null,"Hopkinton",null,"Loudon",null,"Newbury",null,"New London",null,"Northfield",null,"Pembroke",null,"Pittsfield",null,"Salisbury",null,"Sutton",null,"Warner",null,"Webster",null,"Wilmot"]
[null,null,"Estimate","Margin Of Error","Estimate","Margin Of Error","Estimate","Margin Of Error","Estimate","Margin Of Error","Estimate","Margin Of Error","Estimate","Margin Of Error","Estimate","Margin Of Error","Estimate","Margin Of Error","Estimate","Margin Of Error","Estimate","Margin Of Error","Estimate","Margin Of Error","Estimate","Margin Of Error","Estimate","Margin Of Error","Estimate","Margin Of Error","Estimate","Margin Of Error","Estimate","Margin Of Error","Estimate","Margin Of Error","Estimate","Margin Of Error","Estimate","Margin Of Error","Estimate","Margin Of Error","Estimate","Margin Of Error","Estimate","Margin Of Error","Estimate","Margin Of Error","Estimate","Margin Of Error","Estimate","Margin Of Error","Estimate","Margin Of Error","Estimate","Margin Of Error"]
[null,"Total:",4885,102,2279,210,3529,210,8053,35,1227,178,2333,166,2533,28,39794,661,1345,243,2624,62,4444,177,8578,221,4251,364,1174,186,12550,374,5603,25,5088,62,2289,293,3680,378,5058,66,7324,44,4272,133,1197,125,1696,303,2699,203,1794,144,1267,178]
[null,"Income in the past 12 months below poverty level:",276,272,70,63,278,199,178,101,26,23,102,62,92,71,4392,756,193,109,122,69,258,225,1296,361,103,55,100,68,350,266,40,39,266,195,195,169,423,244,382,205,808,374,406,214,30,21,49,39,299,269,79,41,155,92]
[null,"Under 5 years",21,42.190046219457976,0,114.43775600735974,0,114.9826073804208,0,117.15374513859982,0,161.22034611053283,0,114.73883387938018,0,161.22034611053283,308,131.24404748406687,3,114.28035701729323,0,161.22034611053283,13,115.91807451816995,103,76.53757247260981,6,161.22034611053283,0,115.57248807566617,60,77.077882690172544,0,161.22034611053283,0,121.14866899805379,5,114.35471131527551,37,64.536811201050213,0,117.38824472663352,101,73.006848993775918,64,35,2,114.10959644131601,0,114.0701538527936,26,125.7179382586272,10,9.4339811320566032,0,114.0701538527936]
[null,"5 to 17 years",102,292.54572292207587,24,324.20055521235616,141,252.82998239923998,51,283.78336808206359,0,342.16662607565922,25,280.36939918614513,10,322.96594247691195,916,241.39594031383379,58,229.60182926100566,22,302.34252099233413,134,245.50560075077718,272,145.75321608801639,0,342.16662607565922,48,231.51889771679546,65,284.23757668541998,0,342.16662607565922,126,293.90134399148297,113,261.0019157017818,113,240.90869639761866,132,249.95399576722113,174,275.36158047193146,62,286.55017012732691,10,279.58004220616323,0,342.16662607565922,0,342.16662607565922,12,255.27827953039795,0,342.16662607565922]
[null,"18 to 64 years",113,208.56653614614211,40,281.37697133916271,118,238.8158286211364,89,261.53776018005505,17,301.95529470436514,46,199.23604091629608,76,282.99293277394753,2730,421.13774468693731,111,202.51172805543879,87,231.30283180281214,111,285.48905408088768,821,231.83183560503505,68,232.55751976661602,52,163.45029825607537,158,243.79909761933081,0,360.49965325919527,129,177.46830702973418,64,231.35254483147577,133,268.89960951998427,241,151.02317702922289,533,201.61597158955439,247,235.45487890464278,7,342.09355445550273,49,230.06303484045409,163,179.19821427681694,44,162.62533627943711,128,209.04544960366871]
[null,"65 to 74 years",24,27.586228448267445,0,161.22034611053283,9,114.9826073804208,0,161.22034611053283,0,161.22034611053283,13,115.7410903698423,6,114.28035701729323,167,81.541400527584756,18,19.798989873223331,6,114.35471131527551,0,161.22034611053283,56,32.695565448543633,9,114.9826073804208,0,161.22034611053283,20,116.49892703368559,40,38.832975677895199,0,161.22034611053283,6,114.15778554264269,12,115.7410903698423,0,161.22034611053283,0,161.22034611053283,25,24.186773244895647,0,161.22034611053283,0,161.22034611053283,7,114.73883387938018,4,114.15778554264269,13,14.866068747318506]
[null,"75 years and over",16,117.38824472663352,6,114.35471131527551,10,114.9826073804208,38,128.36276718737409,9,114.9826073804208,18,114.9826073804208,0,161.22034611053283,271,106.04244433244644,3,114.10959644131601,7,114.35471131527551,0,161.22034611053283,44,32.756678708318397,20,116.10340218959993,0,161.22034611053283,47,32.802438933713454,0,161.22034611053283,11,115.41230437002807,7,114.35471131527551,128,92.439169187092972,9,114.9826073804208,0,161.22034611053283,8,114.73883387938018,11,9.2195444572928871,0,161.22034611053283,103,99.403219263764285,9,7.2111025509279782,14,115.26057435220423]
[null," Income in the past 12 months at or above poverty level ",4609,288,2209,214,3251,272,7875,105,1201,179,2231,174,2441,71,35402,999,1152,227,2502,88,4186,275,7282,423,4148,378,1074,171,12200,445,5563,45,4822,213,2094,276,3257,397,4676,211,6516,378,3866,234,1167,123,1647,308,2400,326,1715,138,1112,174]
[null,"Under 5 years",224,102.00490184299969,158,60.141499815019579,207,115.31695452100702,319,110.8873302050329,50,23.430749027719962,165,55.036351623268054,76,35.846896657869841,1973,332.94594155808539,56,25.495097567963924,94,50.695167422546305,234,113.54734695271397,395,124.47088012864695,215,90.906545418908095,57,33.955853692699293,661,176.24131184259835,304,119.6202324023825,237,102.34256201600583,135,76.026311234992846,361,203.24615617521528,242,101.83319694480774,389,141.85203558638133,188,92.309262807152777,63,26.40075756488817,135,78.160092118676531,131,48.548944375753422,82,27.586228448267445,30,20.615528128088304]
[null,"5 to 17 years",873,237.14341652257605,320,178.70086737338463,555,224.08926792686881,1722,277.13895431714394,152,45.541190146942803,363,80.851716122788631,586,113.84638773364749,5323,434.61017015251724,236,134.10816529950739,524,159.22939427128398,859,188.42505141302203,1211,229.88692872801619,721,222.84075031286355,272,58.770741019660456,1997,296.45067043270456,979,247.88505400689249,833,181.55439956112329,342,109.98636279102969,330,99.969995498649496,1072,221.12439937736406,1030,258.29827719131231,458,205.30952242894142,197,43.81780460041329,296,148.59340496805368,372,84.338603260903014,241,52.163205422979907,241,127.7145254072535]
[null,"18 to 64 years",3095,347.20743079605887,1358,165.23014252853503,2047,269.33250824956127,4868,366.02458933792957,859,96.772930099279307,1432,141.98591479439079,1537,159.51488958714793,23304,789.70690765625193,752,112.02231920470135,1692,133.70489893792225,2637,259.80377210502547,4891,388.87658710701521,2878,342.2367601529678,593,78.025636812524638,8136,486.9537965762255,3408,326.4751139060985,3248,302.7622829878253,1304,175.9857948812915,1433,260.40161289823072,3025,300.77898862786276,4413,409.54975277736406,2899,306.47838422962229,768,89.760793222876543,921,153.62291495737216,1630,170.75420931854066,1185,114.14464507807627,727,106.25911725588539]
[null,"65 to 74 years",239,70.767224051816527,266,73.409808608931812,176,78.492037812761623,569,108.46658471621571,91,31.11269837220809,171,45.276925690687087,170,62.241465278381739,2329,246.44674881198981,71,31.906112267087632,144,31.827660925679098,377,76.380625815713245,440,87.206651122491792,119,59.908263203000637,94,26.172504656604801,849,125.60254774486066,505,108.57716150277645,332,79.246451024635803,205,49.51767361255979,405,117.41379816699569,242,71.61005515987263,315,95.587656106842587,188,61.400325732035007,85,24.041630560342615,146,47.381430961928537,130,44.10215414239989,118,34.409301068170507,58,24.839484696748443]
[null,"75 years and over",178,70.724818840347695,107,59.682493245507096,266,81.884064383737083,397,107.61505470890214,49,19.209372712298546,100,38.897300677553446,72,34.058772731852805,2473,243.402958075698,37,21.633307652783937,48,29.832867780352597,79,48.332183894378289,345,86.977008456258133,215,100.46392387319938,58,25.553864678361276,557,118.2285921425101,367,97.744565066299216,172,71.867934435323804,108,43.863424398922618,728,157.68639763784319,95,42.5205832509386,369,113.17685275708986,133,49.203658400570177,54,23.706539182259394,149,53.009433122794285,137,44.654227123532216,89,27.784887978899608,56,29.732137494637012]

{"sheet":"ACS_Table_B17010","index":49,"n_rows":165,"n_cols":56,"rows_kept":165,"cut":false,"hidden":true,"merged":[]}
[null,"B17010. POVERTY STATUS IN THE PAST 12 MONTHS OF FAMILIES BY FAMILY TYPE BY PRESENCE OF RELATED CHILDREN UNDER 18 YEARS"]
[null,"Universe: FAMILIES"]
[null,"Data Set: 2015-2019 American Community Survey 5-Year Estimates"]
[]
[null,null,"Allenstown",null,"Andover",null,"Boscawen",null,"Bow",null,"Bradford",null,"Canterbury",null,"Chichester",null,"Concord",null,"Danbury",null,"Dunbarton",null,"Epsom",null,"Franklin",null,"Henniker",null,"Hill",null,"Hooksett",null,"Hopkinton",null,"Loudon",null,"Newbury",null,"New London",null,"Northfield",null,"Pembroke",null,"Pittsfield",null,"Salisbury",null,"Sutton",null,"Warner",null,"Webster",null,"Wilmot"]
[null,null,"Estimate","Margin Of Error","Estimate","Margin Of Error","Estimate","Margin Of Error","Estimate","Margin Of Error","Estimate","Margin Of Error","Estimate","Margin Of Error","Estimate","Margin Of Error","Estimate","Margin Of Error","Estimate","Margin Of Error","Estimate","Margin Of Error","Estimate","Margin Of Error","Estimate","Margin Of Error","Estimate","Margin Of Error","Estimate","Margin Of Error","Estimate","Margin Of Error","Estimate","Margin Of Error","Estimate","Margin Of Error","Estimate","Margin Of Error","Estimate","Margin Of Error","Estimate","Margin Of Error","Estimate","Margin Of Error","Estimate","Margin Of Error","Estimate","Margin Of Error","Estimate","Margin Of Error","Estimate","Margin Of Error","Estimate","Margin Of Error","Estimate","Margin Of Error"]
[null,"Total:",1160,82,718,92,847,104,2273,100,416,59,617,61,776,46,10213,376,311,54,801,37,1301,112,2245,164,1184,113,252,44,3688,195,1715,125,1515,148,671,80,953,86,1365,120,1976,170,993,110,432,58,555,86,748,90,559,62,494,68]
[null,"Income in the past 12 months below poverty level:",124,77,16,12,0,11,43,39,9,15,4,6,40,45,626,197,13,9,0,11,28,29,123,78,32,39,17,21,48,39,30,31,53,49,0,11,18,28,89,106,84,86,82,106,13,10,0,11,35,19,16,11,0,11]
[null,"Married-couple family:",53,56,0,11,0,11,11,18,0,11,4,6,5,8,151,71,6,7,0,11,8,14,0,16,0,11,4,5,17,26,13,21,37,42,0,11,0,11,7,12,84,86,73,105,9,8,0,11,17,14,7,7,0,11]
[null,"With related children under 18 years:",8,15,0,11,0,11,11,18,0,11,0,11,0,11,47,39,3,6,0,11,0,11,0,16,0,11,0,11,0,18,13,21,0,16,0,11,0,11,0,11,0,16,73,105,3,5,0,11,0,11,4,6,0,11]
[null,"Under 5 years only",0,11,0,11,0,11,0,16,0,11,0,11,0,11,25,28,0,11,0,11,0,11,0,16,0,11,0,11,0,18,0,16,0,16,0,11,0,11,0,11,0,16,0,11,0,11,0,11,0,11,0,11,0,11]
[null,"Under 5 years and 5 to 17 years",2,5,0,11,0,11,0,16,0,11,0,11,0,11,7,12,0,11,0,11,0,11,0,16,0,11,0,11,0,18,0,16,0,16,0,11,0,11,0,11,0,16,0,11,0,11,0,11,0,11,0,11,0,11]
[null,"5 to 17 years only",6,13,0,11,0,11,11,18,0,11,0,11,0,11,15,25,3,6,0,11,0,11,0,16,0,11,0,11,0,18,13,21,0,16,0,11,0,11,0,11,0,16,73,105,3,5,0,11,0,11,4,6,0,11]
[null,"No related children under 18 years",45,50,0,11,0,11,0,16,0,11,4,6,5,8,104,60,3,4,0,11,8,14,0,16,0,11,4,5,17,26,0,16,37,42,0,11,0,11,7,12,84,86,0,11,6,7,0,11,17,14,3,4,0,11]
[null,"Other family:",71,50,16,12,0,11,32,37,9,15,0,11,35,41,475,185,7,6,0,11,20,25,123,78,32,39,13,20,31,28,17,24,16,26,0,11,18,28,82,105,0,16,9,14,4,6,0,11,18,15,9,10,0,11]
[null,"Male householder, no spouse present:",0,11,0,11,0,11,0,16,0,11,0,11,0,11,22,20,4,5,0,11,0,11,10,15,0,11,0,11,6,10,0,16,16,26,0,11,0,11,82,105,0,16,0,11,4,6,0,11,0,11,0,11,0,11]
[null,"With related children under 18 years:",0,11,0,11,0,11,0,16,0,11,0,11,0,11,16,18,4,5,0,11,0,11,0,16,0,11,0,11,6,10,0,16,16,26,0,11,0,11,82,105,0,16,0,11,0,11,0,11,0,11,0,11,0,11]
[null,"Under 5 years only",0,11,0,11,0,11,0,16,0,11,0,11,0,11,7,12,0,11,0,11,0,11,0,16,0,11,0,11,0,18,0,16,0,16,0,11,0,11,74,105,0,16,0,11,0,11,0,11,0,11,0,11,0,11]
[null,"Under 5 years and 5 to 17 years",0,11,0,11,0,11,0,16,0,11,0,11,0,11,0,24,4,5,0,11,0,11,0,16,0,11,0,11,0,18,0,16,0,16,0,11,0,11,0,11,0,16,0,11,0,11,0,11,0,11,0,11,0,11]
[null,"5 to 17 years only",0,11,0,11,0,11,0,16,0,11,0,11,0,11,9,13,0,11,0,11,0,11,0,16,0,11,0,11,6,10,0,16,16,26,0,11,0,11,8,13,0,16,0,11,0,11,0,11,0,11,0,11,0,11]
[null,"No related children under 18 years",0,11,0,11,0,11,0,16,0,11,0,11,0,11,6,9,0,11,0,11,0,11,10,15,0,11,0,11,0,18,0,16,0,16,0,11,0,11,0,11,0,16,0,11,4,6,0,11,0,11,0,11,0,11]
[null,"Female householder, no spouse present:",71,50,16,12,0,11,32,37,9,15,0,11,35,41,453,179,3,4,0,11,20,25,113,77,32,39,13,20,25,28,17,24,0,16,0,11,18,28,0,11,0,16,9,14,0,11,0,11,18,15,9,10,0,11]
[null,"With related children under 18 years:",57,45,16,12,0,11,32,37,9,15,0,11,35,41,434,176,3,4,0,11,20,25,113,77,32,39,13,20,25,28,17,24,0,16,0,11,18,28,0,11,0,16,9,14,0,11,0,11,11,12,9,10,0,11]
[null,"Under 5 years only",0,11,0,11,0,11,0,16,0,11,0,11,35,41,79,82,0,11,0,11,0,11,34,35,0,11,0,11,0,18,0,16,0,16,0,11,18,28,0,11,0,16,0,11,0,11,0,11,6,10,7,8,0,11]
[null,"Under 5 years and 5 to 17 years",0,11,0,11,0,11,8,12,0,11,0,11,0,11,63,43,3,4,0,11,12,19,0,16,25,37,0,11,0,18,0,16,0,16,0,11,0,11,0,11,0,16,9,14,0,11,0,11,0,11,2,5,0,11]
[null,"5 to 17 years only",57,45,16,12,0,11,24,36,9,15,0,11,0,11,292,149,0,11,0,11,8,14,79,68,7,11,13,20,25,28,17,24,0,16,0,11,0,11,0,11,0,16,0,11,0,11,0,11,5,7,0,11,0,11]
[null,"No related children under 18 years",14,22,0,11,0,11,0,16,0,11,0,11,0,11,19,30,0,11,0,11,0,11,0,16,0,11,0,11,0,18,0,16,0,16,0,11,0,11,0,11,0,16,0,11,0,11,0,11,7,10,0,11,0,11]
[null,"Income in the past 12 months at or above poverty level:",1036,92,702,94,847,104,2230,94,407,57,613,62,736,56,9587,384,298,54,801,37,1273,115,2122,157,1152,114,235,42,3640,200,1685,128,1462,156,671,80,935,90,1276,131,1892,171,911,130,419,60,555,86,713,86,543,60,494,68]
[null,"Married-couple family:",813,117,608,92,677,105,2099,107,355,55,527,68,642,55,7510,360,258,52,746,45,1076,117,1592,143,924,122,207,38,3203,223,1437,147,1356,135,582,79,846,97,876,105,1366,161,722,162,364,52,481,81,572,80,458,57,428,67]
[null,"With related children under 18 years:",345,105,239,45,321,80,938,97,115,35,161,38,260,54,2985,234,102,39,328,37,363,74,474,115,372,90,58,22,1413,155,466,106,394,88,171,56,285,53,312,63,512,100,226,96,105,32,179,57,210,57,113,32,115,41]
[null,"Under 5 years only",76,74,20,17,86,67,131,75,18,13,30,21,35,23,595,164,33,23,17,15,84,61,48,36,50,48,17,11,291,112,29,30,137,79,30,16,69,41,54,46,106,72,20,34,9,10,6,7,72,52,21,16,13,10]
[null,"Under 5 years and 5 to 17 years",32,29,27,27,19,24,197,56,7,7,34,23,36,23,526,153,18,13,65,39,29,27,64,48,97,56,7,7,123,63,184,75,13,22,5,7,66,37,72,44,77,55,8,13,17,17,31,23,28,18,17,13,21,21]
[null,"5 to 17 years only",237,94,192,37,216,71,610,103,90,30,97,34,189,54,1864,212,51,27,246,47,250,76,362,114,225,93,34,18,999,164,253,110,244,96,136,53,150,63,186,66,329,88,198,84,79,29,142,50,110,37,75,29,81,33]
[null,"No related children under 18 years",468,97,369,80,356,102,1161,120,240,44,366,61,382,50,4525,329,156,38,418,52,713,122,1118,166,552,99,149,35,1790,191,971,160,962,173,411,75,561,100,564,93,854,150,496,132,259,49,302,71,362,66,345,58,313,59]
[null,"Other family:",223,81,94,53,170,88,131,53,52,26,86,34,94,34,2077,291,40,17,55,29,197,77,530,137,228,105,28,16,437,119,248,134,106,89,89,46,89,52,400,107,526,166,189,99,55,24,74,36,141,56,85,33,66,28]
[null,"Male householder, no spouse present:",66,57,44,26,50,35,54,37,14,9,39,25,41,27,644,148,14,10,25,18,82,56,118,62,124,87,19,12,180,75,66,54,39,47,33,36,31,32,161,79,166,103,126,85,30,23,11,13,31,18,58,29,29,22]
[null,"With related children under 18 years:",41,52,8,11,38,32,22,24,7,6,15,14,29,23,395,120,6,7,19,16,82,56,70,52,61,48,9,8,74,54,58,50,0,16,10,10,6,10,100,69,83,81,31,30,19,19,8,13,20,17,28,19,3,5]
[null,"Under 5 years only",31,50,0,11,0,11,0,16,0,11,6,9,5,7,103,67,0,11,0,11,9,13,0,16,4,8,4,5,0,18,17,27,0,16,4,6,0,11,27,44,11,18,0,11,4,7,8,13,0,11,0,11,0,11]
[null,"Under 5 years and 5 to 17 years",0,11,0,11,0,11,0,16,0,11,0,11,20,22,16,17,0,11,4,6,12,25,18,27,0,11,0,11,0,18,0,16,0,16,0,11,0,11,0,11,0,16,0,11,0,11,0,11,0,11,0,11,0,11]
[null,"5 to 17 years only",10,15,8,11,38,32,22,24,7,6,9,12,4,8,276,103,6,7,15,16,61,47,52,43,57,47,5,6,74,54,41,43,0,16,6,8,6,10,73,56,72,80,31,30,15,18,0,11,20,17,28,19,3,5]
[null,"No related children under 18 years",25,23,36,26,12,21,32,28,7,7,24,19,12,12,249,92,8,8,6,8,0,11,48,32,63,71,10,8,106,63,8,15,39,47,23,35,25,31,61,41,83,60,95,81,11,11,3,5,11,11,30,25,26,22]
[null,"Female householder, no spouse present:",157,62,50,47,120,86,77,39,38,25,47,25,53,26,1433,233,26,13,30,22,115,56,412,136,104,65,9,10,257,86,182,128,67,72,56,31,58,38,239,95,360,140,63,50,25,13,63,33,110,53,27,15,37,24]
[null,"With related children under 18 years:",46,38,45,46,95,84,38,32,30,24,28,21,31,21,810,163,14,10,19,16,64,44,167,96,47,44,3,6,106,58,51,47,57,68,28,15,7,11,175,90,218,109,51,46,17,11,36,27,77,43,15,11,17,14]
[null,"Under 5 years only",11,20,0,11,11,19,0,16,4,6,6,10,0,11,66,44,4,5,0,11,23,26,5,9,0,11,3,6,10,16,0,16,31,51,6,9,0,11,84,71,40,41,0,11,0,11,15,17,16,25,0,11,0,11]
[null,"Under 5 years and 5 to 17 years",18,24,0,11,0,11,0,16,0,11,0,11,0,11,113,60,0,11,12,14,0,11,29,45,19,30,0,11,0,18,0,16,0,16,5,7,0,11,6,12,21,33,0,11,4,5,6,9,5,7,6,6,9,14]
[null,"5 to 17 years only",17,22,45,46,84,78,38,32,26,23,22,18,31,21,631,150,10,8,7,10,41,36,133,93,28,32,0,11,96,56,51,47,26,44,17,14,7,11,85,59,157,97,51,46,13,9,15,19,56,35,9,8,8,8]
[null,"No related children under 18 years",111,65,5,7,25,29,39,32,8,8,19,13,22,17,623,155,12,9,11,14,51,40,245,130,57,43,6,7,151,64,131,112,10,17,28,26,51,37,64,44,142,88,12,19,8,8,27,20,33,29,12,9,20,16]
[]
[]
[]
[]
[]
[]
[]
[]
[]
[]
[]
[]
[null,"B17010. POVERTY STATUS IN THE PAST 12 MONTHS OF FAMILIES BY FAMILY TYPE BY PRESENCE OF RELATED CHILDREN UNDER 18 YEARS"]
[null,"Universe: FAMILIES"]
[null,"Data Set: 2010-2014 American Community Survey 5-Year Estimates"]
[]
[null,null,"Allenstown",null,"Andover",null,"Boscawen",null,"Bow",null,"Bradford",null,"Canterbury",null,"Chichester",null,"Concord",null,"Danbury",null,"Dunbarton",null,"Epsom",null,"Franklin",null,"Henniker",null,"Hill",null,"Hooksett",null,"Hopkinton",null,"Loudon",null,"Newbury",null,"New London",null,"Northfield",null,"Pembroke",null,"Pittsfield",null,"Salisbury",null,"Sutton",null,"Warner",null,"Webster",null,"Wilmot"]
[null,null,"Estimate","Margin Of Error","Estimate","Margin Of Error","Estimate","Margin Of Error","Estimate","Margin Of Error","Estimate","Margin Of Error","Estimate","Margin Of Error","Estimate","Margin Of Error","Estimate","Margin Of Error","Estimate","Margin Of Error","Estimate","Margin Of Error","Estimate","Margin Of Error","Estimate","Margin Of Error","Estimate","Margin Of Error","Estimate","Margin Of Error","Estimate","Margin Of Error","Estimate","Margin Of Error","Estimate","Margin Of Error","Estimate","Margin Of Error","Estimate","Margin Of Error","Estimate","Margin Of Error","Estimate","Margin Of Error","Estimate","Margin Of Error","Estimate","Margin Of Error","Estimate","Margin Of Error","Estimate","Margin Of Error","Estimate","Margin Of Error","Estimate","Margin Of Error"]
[null,"Total:",1182,89,640,92,962,135,2343,113,498,68,666,68,698,71,9845,358,348,64,800,74,1266,86,2046,145,1063,98,329,55,3649,182,1642,117,1469,112,508,73,1085,103,1338,105,1925,152,963,90,388,50,605,94,771,57,520,65,358,56]
[null,"Income in the past 12 months below poverty level:",76,56,21,15,116,65,80,58,21,13,4,8,27,24,773,183,14,17,34,23,41,34,379,132,32,49,0,11,44,35,63,68,89,60,39,28,76,61,126,62,15,24,156,72,6,7,25,23,9,11,28,25,14,12]
[null,"Married-couple family:",64,53,14,12,8,16,20,31,9,10,4,8,12,10,256,120,0,11,25,21,23,22,125,83,0,11,0,11,42,34,24,33,20,23,11,11,36,45,91,53,15,24,38,49,3,5,12,18,5,9,4,6,10,10]
[null,"With related children under 18 years:",17,26,5,8,8,16,20,31,0,11,4,8,0,11,105,71,0,11,15,19,5,8,79,72,0,11,0,11,24,27,11,22,12,19,0,11,0,11,73,50,0,15,6,11,0,11,12,18,5,9,4,6,8,10]
[null,"Under 5 years only",0,11,0,11,0,11,0,15,0,11,0,11,0,11,12,20,0,11,0,11,0,11,0,15,0,11,0,11,0,17,0,15,0,15,0,11,0,11,39,47,0,15,0,11,0,11,0,11,0,11,0,11,0,11]
[null,"Under 5 years and 5 to 17 years",17,26,0,11,0,11,0,15,0,11,4,8,0,11,63,61,0,11,0,11,0,11,39,39,0,11,0,11,16,24,11,22,0,15,0,11,0,11,34,50,0,15,6,11,0,11,0,11,0,11,0,11,3,5]
[null,"5 to 17 years only",0,11,5,8,8,16,20,31,0,11,0,11,0,11,30,27,0,11,15,19,5,8,40,59,0,11,0,11,8,14,0,15,12,19,0,11,0,11,0,11,0,15,0,11,0,11,12,18,5,9,4,6,5,8]
[null,"No related children under 18 years",47,47,9,10,0,11,0,15,9,10,0,11,12,10,151,92,0,11,10,11,18,21,46,39,0,11,0,11,18,21,13,21,8,13,11,11,36,45,18,19,15,24,32,46,3,5,0,11,0,11,0,11,2,3]
[null,"Other family:",12,20,7,10,108,63,60,51,12,10,0,11,15,23,517,155,14,17,9,10,18,26,254,107,32,49,0,11,2,9,39,61,69,53,28,27,40,43,35,34,0,15,118,63,3,5,13,15,4,7,24,24,4,7]
[null,"Male householder, no spouse present:",0,11,0,11,15,17,14,21,4,5,0,11,15,23,73,52,0,11,4,7,0,11,74,64,0,11,0,11,2,9,0,15,17,26,5,7,0,11,0,11,0,15,7,13,0,11,0,11,0,11,12,19,0,11]
[null,"With related children under 18 years:",0,11,0,11,8,13,14,21,4,5,0,11,15,23,31,28,0,11,4,7,0,11,58,61,0,11,0,11,2,9,0,15,17,26,0,11,0,11,0,11,0,15,7,13,0,11,0,11,0,11,0,11,0,11]
[null,"Under 5 years only",0,11,0,11,0,11,0,15,0,11,0,11,0,11,0,23,0,11,0,11,0,11,38,58,0,11,0,11,0,17,0,15,0,15,0,11,0,11,0,11,0,15,0,11,0,11,0,11,0,11,0,11,0,11]
[null,"Under 5 years and 5 to 17 years",0,11,0,11,0,11,0,15,0,11,0,11,0,11,0,23,0,11,0,11,0,11,0,15,0,11,0,11,2,9,0,15,0,15,0,11,0,11,0,11,0,15,7,13,0,11,0,11,0,11,0,11,0,11]
[null,"5 to 17 years only",0,11,0,11,8,13,14,21,4,5,0,11,15,23,31,28,0,11,4,7,0,11,20,21,0,11,0,11,0,17,0,15,17,26,0,11,0,11,0,11,0,15,0,11,0,11,0,11,0,11,0,11,0,11]
[null,"No related children under 18 years",0,11,0,11,7,12,0,15,0,11,0,11,0,11,42,43,0,11,0,11,0,11,16,24,0,11,0,11,0,17,0,15,0,15,5,7,0,11,0,11,0,15,0,11,0,11,0,11,0,11,12,19,0,11]
[null,"Female householder, no spouse present:",12,20,7,10,93,64,46,45,8,8,0,11,0,11,444,147,14,17,5,8,18,26,180,103,32,49,0,11,0,17,39,61,52,47,23,27,40,43,35,34,0,15,111,63,3,5,13,15,4,7,12,15,4,7]
[null,"With related children under 18 years:",12,20,7,10,93,64,46,45,3,5,0,11,0,11,408,157,14,17,5,8,18,26,165,103,32,49,0,11,0,17,39,61,52,47,23,27,40,43,25,31,0,15,87,53,3,5,10,14,4,7,12,15,4,7]
[null,"Under 5 years only",0,11,0,11,0,11,0,15,0,11,0,11,0,11,64,45,0,11,5,8,0,11,62,60,0,11,0,11,0,17,39,61,0,15,0,11,0,11,25,31,0,15,21,35,0,11,0,11,0,11,0,11,0,11]
[null,"Under 5 years and 5 to 17 years",12,20,0,11,47,51,0,15,0,11,0,11,0,11,110,75,0,11,0,11,0,11,0,15,32,49,0,11,0,17,0,15,0,15,0,11,0,11,0,11,0,15,40,40,0,11,0,11,0,11,0,11,0,11]
[null,"5 to 17 years only",0,11,7,10,46,47,46,45,3,5,0,11,0,11,234,119,14,17,0,11,18,26,103,84,0,11,0,11,0,17,0,15,52,47,23,27,40,43,0,11,0,15,26,41,3,5,10,14,4,7,12,15,4,7]
[null,"No related children under 18 years",0,11,0,11,0,11,0,15,5,7,0,11,0,11,36,39,0,11,0,11,0,11,15,17,0,11,0,11,0,17,0,15,0,15,0,11,0,11,10,16,0,15,24,38,0,11,3,4,0,11,0,11,0,11]
[null,"Income in the past 12 months at or above poverty level:",1106,106,619,92,846,139,2263,130,477,67,662,67,671,71,9072,391,334,62,766,78,1225,90,1667,193,1031,112,329,55,3605,185,1579,124,1380,106,469,74,1009,112,1212,115,1910,152,807,100,382,51,580,90,762,59,492,64,344,55]
[null,"Married-couple family:",838,113,558,84,631,120,2006,131,440,63,563,66,602,83,6847,419,235,51,730,75,1075,98,1256,183,878,121,283,55,3029,219,1513,116,1211,130,436,72,936,112,1009,115,1401,171,651,99,318,45,522,84,655,78,385,52,301,52]
[null,"With related children under 18 years:",297,68,159,49,193,73,921,97,134,41,205,47,213,54,2893,290,49,24,297,50,389,78,424,110,417,72,112,33,1253,177,580,109,397,97,131,46,174,58,377,84,610,121,273,77,106,30,170,49,235,56,138,35,129,35]
[null,"Under 5 years only",98,46,17,15,68,60,73,44,15,10,26,19,25,19,760,206,10,9,87,44,48,36,85,57,73,58,15,12,337,143,62,50,60,57,28,26,8,12,83,62,43,37,55,50,22,14,47,30,45,26,5,6,8,8]
[null,"Under 5 years and 5 to 17 years",42,30,33,29,49,36,75,51,20,13,17,16,18,20,450,101,10,15,32,19,60,51,121,75,99,70,11,15,129,70,37,39,36,30,0,11,0,11,56,51,130,81,55,40,11,10,19,16,20,17,45,20,15,10]
[null,"5 to 17 years only",157,62,109,39,76,49,773,105,99,35,162,44,170,63,1683,178,29,15,178,41,281,76,218,89,245,90,86,30,787,182,481,128,301,89,103,33,166,54,238,87,437,151,163,68,73,27,104,36,170,57,88,31,106,32]
[null,"No related children under 18 years",541,119,399,78,438,112,1085,129,306,57,358,57,389,70,3954,324,186,50,433,59,686,95,832,146,461,117,171,42,1776,204,933,134,814,129,305,61,762,122,632,111,791,154,378,89,212,38,352,77,420,77,247,44,172,38]
[null,"Other family:",268,79,61,31,215,86,257,91,37,25,99,42,69,41,2225,304,99,46,36,18,150,70,411,147,153,86,46,16,576,164,66,43,169,75,33,22,73,54,203,64,509,145,156,64,64,31,58,37,107,43,107,39,43,27]
[null,"Male householder, no spouse present:",104,56,10,11,63,40,68,50,28,23,53,28,36,29,666,177,56,32,15,13,90,58,166,99,27,24,16,12,199,134,9,16,50,42,13,13,0,11,110,50,248,106,28,27,11,9,37,30,44,33,24,15,0,11]
[null,"With related children under 18 years:",60,45,0,11,19,22,27,29,4,5,27,21,7,13,340,124,43,29,15,13,55,35,100,85,19,22,7,7,155,129,0,15,50,42,13,13,0,11,73,42,147,90,5,10,7,7,34,30,15,22,11,10,0,11]
[null,"Under 5 years only",45,39,0,11,0,11,0,15,4,5,17,15,7,13,34,35,25,26,6,8,0,11,56,67,9,15,4,5,8,13,0,15,0,15,9,10,0,11,10,16,46,53,0,11,4,5,0,11,0,11,4,5,0,11]
[null,"Under 5 years and 5 to 17 years",0,11,0,11,0,11,0,15,0,11,5,7,0,11,25,25,2,3,0,11,20,30,11,17,0,11,0,11,76,109,0,15,15,21,0,11,0,11,0,11,0,15,0,11,0,11,0,11,0,11,0,11,0,11]
[null,"5 to 17 years only",15,19,0,11,19,22,27,29,0,11,5,8,0,11,281,124,16,17,9,10,35,29,33,39,10,17,3,5,71,68,0,15,35,40,4,7,0,11,63,40,101,86,5,10,3,5,34,30,15,22,7,9,0,11]
[null,"No related children under 18 years",44,36,10,11,44,33,41,32,24,23,26,19,29,27,326,129,13,11,0,11,35,45,66,49,8,13,9,10,44,35,9,16,0,15,0,11,0,11,37,26,101,65,23,25,4,6,3,5,29,25,13,10,0,11]
[null,"Female householder, no spouse present:",164,65,51,29,152,75,189,76,9,9,46,33,33,24,1559,226,43,28,21,16,60,39,245,109,126,80,30,14,377,129,57,41,119,63,20,17,73,54,93,48,261,94,128,60,53,28,21,20,63,25,83,36,43,27]
[null,"With related children under 18 years:",123,61,19,23,88,53,90,55,6,8,30,29,21,22,975,195,25,22,18,14,34,31,138,74,97,72,8,9,198,100,30,29,66,46,10,14,20,25,40,34,215,85,97,56,17,18,9,13,37,22,55,34,24,24]
[null,"Under 5 years only",13,22,0,11,26,32,0,15,0,11,22,27,0,11,146,84,3,4,0,11,9,15,0,15,50,48,3,5,0,17,0,15,28,33,0,11,13,22,0,11,0,15,46,42,0,11,0,11,0,11,4,6,11,18]
[null,"Under 5 years and 5 to 17 years",9,14,4,7,0,11,0,15,0,11,0,11,18,21,51,38,0,11,0,11,9,15,27,30,0,11,0,11,27,48,0,15,0,15,0,11,0,11,0,11,0,15,18,28,0,11,0,11,0,11,4,6,3,5]
[null,"5 to 17 years only",101,52,15,22,62,45,90,55,6,8,8,10,3,6,778,183,22,22,18,14,16,24,111,73,47,46,5,7,171,100,30,29,38,38,10,14,7,12,40,34,215,85,33,47,17,18,9,13,37,22,47,34,10,15]
[null,"No related children under 18 years",41,33,32,18,64,51,99,53,3,4,16,14,12,12,584,150,18,17,3,5,26,24,107,67,29,45,22,11,179,89,27,31,53,51,10,10,53,44,53,32,46,42,31,26,36,22,12,16,26,15,28,14,19,16]
[]
[]
[]
[]
[]
[]
[]
[]
[]
[]
[]
[]
[null,"B17010. POVERTY STATUS IN THE PAST 12 MONTHS OF FAMILIES BY FAMILY TYPE BY PRESENCE OF RELATED CHILDREN UNDER 18 YEARS"]
[null,"Universe: FAMILIES"]
[null,"Data Set: 2005-2009 American Community Survey 5-Year Estimates"]
[]
[null,null,"Allenstown",null,"Andover",null,"Boscawen",null,"Bow",null,"Bradford",null,"Canterbury",null,"Chichester",null,"Concord",null,"Danbury",null,"Dunbarton",null,"Epsom",null,"Franklin",null,"Henniker",null,"Hill",null,"Hooksett",null,"Hopkinton",null,"Loudon",null,"Newbury",null,"New London",null,"Northfield",null,"Pembroke",null,"Pittsfield",null,"Salisbury",null,"Sutton",null,"Warner",null,"Webster",null,"Wilmot"]
[null,null,"Estimate","Margin Of Error","Estimate","Margin Of Error","Estimate","Margin Of Error","Estimate","Margin Of Error","Estimate","Margin Of Error","Estimate","Margin Of Error","Estimate","Margin Of Error","Estimate","Margin Of Error","Estimate","Margin Of Error","Estimate","Margin Of Error","Estimate","Margin Of Error","Estimate","Margin Of Error","Estimate","Margin Of Error","Estimate","Margin Of Error","Estimate","Margin Of Error","Estimate","Margin Of Error","Estimate","Margin Of Error","Estimate","Margin Of Error","Estimate","Margin Of Error","Estimate","Margin Of Error","Estimate","Margin Of Error","Estimate","Margin Of Error","Estimate","Margin Of Error","Estimate","Margin Of Error","Estimate","Margin Of Error","Estimate","Margin Of Error","Estimate","Margin Of Error"]
[null,"Total:",1259,92,691,84,901,122,2360,123,383,63,648,58,738,42,10033,472,332,63,751,57,1184,92,2186,142,1152,142,284,40,3523,170,1620,132,1425,119,630,85,962,160,1396,105,1991,165,1069,114,340,37,463,88,709,116,548,54,391,66]
[null,"Income in the past 12 months below poverty level:",32,38,17,28,63,55,43,39,0,114,9,9,27,30,721,176,25,22,27,19,28,29,245,84,7,11,15,15,49,45,0,114,56,52,33,34,63,57,66,60,239,140,109,82,8,8,6,9,14,22,13,10,51,43]
[null,"Married-couple family:",12,20,0,114,0,114,16,26,0,114,5,8,22,29,120,61,15,17,13,13,14,21,85,53,0,114,0,114,35,40,0,114,39,45,3,5,18,28,22,24,61,70,60,45,5,7,0,114,14,22,4,7,51,43]
[null,"With related children under 18 years:",0,114,0,114,0,114,0,114,0,114,5,8,0,114,79,58,15,17,6,10,14,21,44,46,0,114,0,114,17,27,0,114,13,20,3,5,18,28,11,17,61,70,9,15,0,114,0,114,14,22,4,7,0,114]
[null,"Under 5 years only",0,114,0,114,0,114,0,114,0,114,0,114,0,114,17,28,0,114,0,114,0,114,36,44,0,114,0,114,0,114,0,114,0,114,0,114,0,114,0,114,0,114,0,114,0,114,0,114,14,22,4,7,0,114]
[null,"Under 5 years and 5 to 17 years",0,114,0,114,0,114,0,114,0,114,0,114,0,114,33,32,0,114,0,114,14,21,0,114,0,114,0,114,17,27,0,114,0,114,0,114,18,28,0,114,0,114,9,15,0,114,0,114,0,114,0,114,0,114]
[null,"5 to 17 years only",0,114,0,114,0,114,0,114,0,114,5,8,0,114,29,35,15,17,6,10,0,114,8,14,0,114,0,114,0,114,0,114,13,20,3,5,0,114,11,17,61,70,0,114,0,114,0,114,0,114,0,114,0,114]
[null,"No related children under 18 years",12,20,0,114,0,114,16,26,0,114,0,114,22,29,41,36,0,114,7,9,0,114,41,28,0,114,0,114,18,20,0,114,26,41,0,114,0,114,11,17,0,114,51,42,5,7,0,114,0,114,0,114,51,43]
[null,"Other family:",20,33,17,28,63,55,27,32,0,114,4,6,5,8,601,168,10,13,14,14,14,21,160,85,7,11,15,15,14,22,0,114,17,20,30,33,45,52,44,49,178,122,49,67,3,5,6,9,0,114,9,8,0,114]
[null,"Male householder, no spouse present:",0,114,0,114,29,46,11,18,0,114,0,114,0,114,157,90,0,114,0,114,0,114,50,56,7,11,2,4,0,114,0,114,10,16,0,114,0,114,29,42,0,114,0,114,0,114,6,9,0,114,9,8,0,114]
[null,"With related children under 18 years:",0,114,0,114,29,46,11,18,0,114,0,114,0,114,157,90,0,114,0,114,0,114,50,56,7,11,0,114,0,114,0,114,10,16,0,114,0,114,29,42,0,114,0,114,0,114,0,114,0,114,6,6,0,114]
[null,"Under 5 years only",0,114,0,114,0,114,0,114,0,114,0,114,0,114,38,59,0,114,0,114,0,114,33,52,7,11,0,114,0,114,0,114,0,114,0,114,0,114,0,114,0,114,0,114,0,114,0,114,0,114,0,114,0,114]
[null,"Under 5 years and 5 to 17 years",0,114,0,114,0,114,0,114,0,114,0,114,0,114,27,32,0,114,0,114,0,114,0,114,0,114,0,114,0,114,0,114,0,114,0,114,0,114,0,114,0,114,0,114,0,114,0,114,0,114,0,114,0,114]
[null,"5 to 17 years only",0,114,0,114,29,46,11,18,0,114,0,114,0,114,92,63,0,114,0,114,0,114,17,21,0,114,0,114,0,114,0,114,10,16,0,114,0,114,29,42,0,114,0,114,0,114,0,114,0,114,6,6,0,114]
[null,"No related children under 18 years",0,114,0,114,0,114,0,114,0,114,0,114,0,114,0,114,0,114,0,114,0,114,0,114,0,114,2,4,0,114,0,114,0,114,0,114,0,114,0,114,0,114,0,114,0,114,6,9,0,114,3,4,0,114]
[null,"Female householder, no spouse present:",20,33,17,28,34,32,16,25,0,114,4,6,5,8,444,140,10,13,14,14,14,21,110,65,0,114,13,15,14,22,0,114,7,12,30,33,45,52,15,25,178,122,49,67,3,5,0,114,0,114,0,114,0,114]
[null,"With related children under 18 years:",20,33,17,28,34,32,16,25,0,114,0,114,5,8,391,141,10,13,7,10,14,21,100,64,0,114,13,15,14,22,0,114,7,12,30,33,45,52,15,25,160,121,49,67,3,5,0,114,0,114,0,114,0,114]
[null,"Under 5 years only",0,114,0,114,0,114,0,114,0,114,0,114,0,114,113,85,0,114,0,114,0,114,0,114,0,114,0,114,0,114,0,114,0,114,7,9,17,29,0,114,110,116,0,114,0,114,0,114,0,114,0,114,0,114]
[null,"Under 5 years and 5 to 17 years",20,33,0,114,0,114,0,114,0,114,0,114,0,114,82,70,2,4,0,114,0,114,25,27,0,114,0,114,14,22,0,114,0,114,0,114,0,114,0,114,0,114,49,67,3,5,0,114,0,114,0,114,0,114]
[null,"5 to 17 years only",0,114,17,28,34,32,16,25,0,114,0,114,5,8,196,79,8,12,7,10,14,21,75,56,0,114,13,15,0,114,0,114,7,12,23,31,28,43,15,25,50,45,0,114,0,114,0,114,0,114,0,114,0,114]
[null,"No related children under 18 years",0,114,0,114,0,114,0,114,0,114,4,6,0,114,53,42,0,114,7,11,0,114,10,16,0,114,0,114,0,114,0,114,0,114,0,114,0,114,0,114,18,30,0,114,0,114,0,114,0,114,0,114,0,114]
[null,"Income in the past 12 months at or above poverty level:",1227,107,674,88,838,129,2317,124,383,63,639,59,711,49,9312,481,307,62,724,59,1156,103,1941,167,1145,142,269,40,3474,180,1620,132,1369,121,597,88,899,152,1330,120,1752,160,960,101,332,36,457,88,695,116,535,54,340,54]
[null,"Married-couple family:",992,124,608,91,659,127,2017,167,363,64,550,55,600,69,7362,425,276,58,698,67,955,110,1429,169,1000,142,234,38,2992,198,1522,134,1023,142,521,90,848,157,1063,139,1421,172,855,96,288,36,422,87,594,104,489,55,307,53]
[null,"With related children under 18 years:",507,100,240,57,248,60,968,124,117,46,195,42,301,55,3118,279,112,41,298,37,426,74,641,117,379,90,119,29,1292,124,617,78,423,92,208,77,319,101,529,98,590,121,346,86,125,31,203,80,252,42,182,35,159,46]
[null,"Under 5 years only",28,26,74,41,65,42,168,80,20,14,56,29,33,21,705,206,9,9,32,23,75,54,173,97,69,47,11,10,284,122,122,72,39,34,20,13,140,104,139,83,202,89,80,67,23,18,16,12,60,28,35,19,19,19]
[null,"Under 5 years and 5 to 17 years",144,87,44,33,43,45,73,47,9,8,27,16,39,22,543,148,29,19,46,29,53,38,83,45,100,63,22,15,252,88,58,46,100,61,44,33,55,26,107,55,52,54,56,40,23,15,91,77,43,24,35,17,10,11]
[null,"5 to 17 years only",335,110,122,41,140,59,727,136,88,41,112,34,229,67,1870,221,74,38,220,46,298,86,385,111,210,79,86,29,756,124,437,94,284,81,144,75,124,59,283,82,336,122,210,81,79,28,96,37,149,43,112,30,130,45]
[null,"No related children under 18 years",485,95,368,85,411,102,1049,150,246,51,355,47,299,71,4244,373,164,47,400,63,529,94,788,139,621,125,115,25,1700,176,905,159,600,103,313,61,529,136,534,106,831,129,509,105,163,36,219,57,342,89,307,51,148,51]
[null,"Other family:",235,92,66,42,179,93,300,112,20,11,89,35,111,49,1950,260,31,24,26,27,201,88,512,139,145,79,35,24,482,133,98,65,346,103,76,36,51,33,267,102,331,111,105,66,44,21,35,17,101,42,46,20,33,21]
[null,"Male householder, no spouse present:",56,41,21,19,72,70,51,40,3,4,30,23,31,20,440,143,21,19,12,14,58,62,186,91,48,46,25,22,116,89,43,44,124,79,24,22,8,15,127,82,123,64,73,59,4,6,20,11,14,17,23,18,3,4]
[null,"With related children under 18 years:",37,37,13,15,64,67,13,19,0,114,24,22,12,13,184,88,9,10,6,9,21,24,91,65,48,46,25,22,0,114,16,27,74,59,19,20,8,15,120,81,82,54,20,22,4,6,14,10,8,14,11,14,3,4]
[null,"Under 5 years only",28,41,6,10,0,114,0,114,0,114,6,9,7,10,50,50,6,8,0,114,0,114,26,28,0,114,3,5,0,114,0,114,24,28,10,16,0,114,0,114,0,114,0,114,0,114,11,10,0,114,8,13,0,114]
[null,"Under 5 years and 5 to 17 years",0,114,0,114,28,40,0,114,0,114,9,14,0,114,25,35,0,114,0,114,0,114,29,46,0,114,9,14,0,114,0,114,0,114,0,114,0,114,0,114,0,114,12,18,0,114,0,114,0,114,0,114,0,114]
[null,"5 to 17 years only",9,15,7,11,36,55,13,19,0,114,9,13,5,8,109,69,3,4,6,9,21,24,36,45,48,46,13,15,0,114,16,27,50,51,9,9,8,15,120,81,82,54,8,13,4,6,3,4,8,14,3,7,3,4]
[null,"No related children under 18 years",19,18,8,11,8,14,38,35,3,4,6,9,19,18,256,122,12,16,6,10,37,57,95,67,0,114,0,114,116,89,27,35,50,52,5,6,0,114,7,11,41,37,53,53,0,114,6,6,6,9,12,11,0,114]
[null,"Female householder, no spouse present:",179,89,45,37,107,65,249,109,17,11,59,29,80,45,1510,241,10,15,14,16,143,71,326,112,97,57,10,9,366,133,55,49,222,82,52,32,43,30,140,67,208,101,32,31,40,21,15,13,87,42,23,14,30,20]
[null,"With related children under 18 years:",171,92,45,37,46,38,203,105,10,8,33,22,76,44,1041,207,0,114,9,14,76,54,243,103,69,49,7,8,236,104,17,26,106,58,34,25,7,12,95,61,176,97,32,31,17,13,15,13,43,29,8,10,17,16]
[null,"Under 5 years only",18,21,0,114,10,18,0,114,0,114,7,10,0,114,167,113,0,114,0,114,30,47,43,51,0,114,0,114,25,29,0,114,8,13,3,5,0,114,0,114,16,27,0,114,4,6,0,114,4,7,0,114,0,114]
[null,"Under 5 years and 5 to 17 years",0,114,16,24,0,114,49,73,3,4,15,14,0,114,134,97,0,114,0,114,7,12,15,22,21,35,0,114,7,11,0,114,7,13,12,17,0,114,0,114,60,70,9,15,0,114,0,114,0,114,2,4,0,114]
[null,"5 to 17 years only",153,89,29,29,36,32,154,76,7,7,11,13,76,44,740,184,0,114,9,14,39,28,185,97,48,46,7,8,204,101,17,26,91,56,19,16,7,12,95,61,100,58,23,28,13,12,15,13,39,28,6,8,17,16]
[null,"No related children under 18 years",8,14,0,114,61,51,46,41,7,7,26,18,4,7,469,141,10,15,5,7,67,48,83,41,28,27,3,4,130,69,38,44,116,66,18,16,36,25,45,36,32,33,0,114,23,16,0,114,44,27,15,11,13,14]

{"sheet":"ACS_Table_B17017","index":50,"n_rows":213,"n_cols":56,"rows_kept":213,"cut":false,"hidden":true,"merged":[]}
[null,"B17017. POVERTY STATUS IN THE PAST 12 MONTHS BY HOUSEHOLD TYPE BY AGE OF HOUSEHOLDER"]
[null,"Universe: HOUSEHOLDS",null,null,null,null,null,null,null,null,null,null,null,"B19001. HOUSEHOLD INCOME IN THE PAST 12 MONTHS (IN 2007 INFLATION-ADJUSTED DOLLARS) - Universe:  HOUSEHOLDS"]
[null,"Data Set: 2015-2019 American Community Survey 5-Year Estimates",null,null,null,null,null,null,null,null,null,null,null,"Data Set: 2006-2008 American Community Survey 3-Year Estimates"]
[]
[null,null,"Allenstown",null,"Andover",null,"Boscawen",null,"Bow",null,"Bradford",null,"Canterbury",null,"Chichester",null,"Concord",null,"Danbury",null,"Dunbarton",null,"Epsom",null,"Franklin",null,"Henniker",null,"Hill",null,"Hooksett",null,"Hopkinton",null,"Loudon",null,"Newbury",null,"New London",null,"Northfield",null,"Pembroke",null,"Pittsfield",null,"Salisbury",null,"Sutton",null,"Warner",null,"Webster",null,"Wilmot"]
[null,null,"Estimate","Margin Of Error","Estimate","Margin Of Error","Estimate","Margin Of Error","Estimate","Margin Of Error","Estimate","Margin Of Error","Estimate","Margin Of Error","Estimate","Margin Of Error","Estimate","Margin Of Error","Estimate","Margin Of Error","Estimate","Margin Of Error","Estimate","Margin Of Error","Estimate","Margin Of Error","Estimate","Margin Of Error","Estimate","Margin Of Error","Estimate","Margin Of Error","Estimate","Margin Of Error","Estimate","Margin Of Error","Estimate","Margin Of Error","Estimate","Margin Of Error","Estimate","Margin Of Error","Estimate","Margin Of Error","Estimate","Margin Of Error","Estimate","Margin Of Error","Estimate","Margin Of Error","Estimate","Margin Of Error","Estimate","Margin Of Error","Estimate","Margin Of Error"]
[null,"Total:",1788,107,1054,90,1374,112,2715,130,647,67,970,60,969,55,17530,366,481,65,938,45,1787,124,3909,223,1805,127,373,48,5252,190,2193,126,2050,174,910,86,1551,161,1860,118,2690,164,1675,159,554,65,769,91,1144,96,760,72,704,71]
[null,"Income in the past 12 months below poverty level:",190,98,63,48,68,53,81,49,26,19,32,17,46,48,1782,266,17,10,12,11,56,37,390,122,207,93,27,25,351,168,99,63,172,109,12,14,94,55,105,106,101,93,201,132,21,13,22,17,108,48,39,23,26,24]
[null,"Family households:",124,77,16,12,0,11,43,39,9,15,4,6,40,45,626,197,13,9,0,11,28,29,123,78,32,39,17,21,48,39,30,31,53,49,0,11,18,28,89,106,84,86,82,106,13,10,0,11,35,19,16,11,0,11]
[null,"Married-couple family:",53,56,0,11,0,11,11,18,0,11,4,6,5,8,151,71,6,7,0,11,8,14,0,16,0,11,4,5,17,26,13,21,37,42,0,11,0,11,7,12,84,86,73,105,9,8,0,11,17,14,7,7,0,11]
[null,"Householder under 25 years",0,11,0,11,0,11,0,16,0,11,0,11,0,11,15,25,0,11,0,11,0,11,0,16,0,11,0,11,0,18,0,16,0,16,0,11,0,11,0,11,0,16,0,11,0,11,0,11,8,11,0,11,0,11]
[null,"Householder 25 to 44 years",38,50,0,11,0,11,0,16,0,11,0,11,0,11,45,36,0,11,0,11,0,11,0,16,0,11,0,11,0,18,13,21,0,16,0,11,0,11,0,11,0,16,73,105,3,5,0,11,0,11,0,11,0,11]
[null,"Householder 45 to 64 years",6,13,0,11,0,11,11,18,0,11,4,6,0,11,23,25,6,7,0,11,0,11,0,16,0,11,0,11,17,26,0,16,12,20,0,11,0,11,0,11,65,84,0,11,0,11,0,11,5,7,4,6,0,11]
[null,"Householder 65 years and over",9,13,0,11,0,11,0,16,0,11,0,11,5,8,68,51,0,11,0,11,8,14,0,16,0,11,4,5,0,18,0,16,25,37,0,11,0,11,7,12,19,31,0,11,6,7,0,11,4,6,3,4,0,11]
[null,"Other family:",71,50,16,12,0,11,32,37,9,15,0,11,35,41,475,185,7,6,0,11,20,25,123,78,32,39,13,20,31,28,17,24,16,26,0,11,18,28,82,105,0,16,9,14,4,6,0,11,18,15,9,10,0,11]
[null,"Male householder, no spouse present:",0,11,0,11,0,11,0,16,0,11,0,11,0,11,22,20,4,5,0,11,0,11,10,15,0,11,0,11,6,10,0,16,16,26,0,11,0,11,82,105,0,16,0,11,4,6,0,11,0,11,0,11,0,11]
[null,"Householder under 25 years",0,11,0,11,0,11,0,16,0,11,0,11,0,11,7,12,0,11,0,11,0,11,0,16,0,11,0,11,0,18,0,16,0,16,0,11,0,11,74,105,0,16,0,11,0,11,0,11,0,11,0,11,0,11]
[null,"Householder 25 to 44 years",0,11,0,11,0,11,0,16,0,11,0,11,0,11,9,13,4,5,0,11,0,11,0,16,0,11,0,11,0,18,0,16,0,16,0,11,0,11,0,11,0,16,0,11,0,11,0,11,0,11,0,11,0,11]
[null,"Householder 45 to 64 years",0,11,0,11,0,11,0,16,0,11,0,11,0,11,0,24,0,11,0,11,0,11,0,16,0,11,0,11,6,10,0,16,16,26,0,11,0,11,0,11,0,16,0,11,4,6,0,11,0,11,0,11,0,11]
[null,"Householder 65 years and over",0,11,0,11,0,11,0,16,0,11,0,11,0,11,6,9,0,11,0,11,0,11,10,15,0,11,0,11,0,18,0,16,0,16,0,11,0,11,8,13,0,16,0,11,0,11,0,11,0,11,0,11,0,11]
[null,"Female householder, no husband present:",71,50,16,12,0,11,32,37,9,15,0,11,35,41,453,179,3,4,0,11,20,25,113,77,32,39,13,20,25,28,17,24,0,16,0,11,18,28,0,11,0,16,9,14,0,11,0,11,18,15,9,10,0,11]
[null,"Householder under 25 years",0,11,0,11,0,11,0,16,0,11,0,11,29,39,183,163,0,11,0,11,0,11,34,35,0,11,0,11,0,18,0,16,0,16,0,11,0,11,0,11,0,16,0,11,0,11,0,11,0,11,0,11,0,11]
[null,"Householder 25 to 44 years",46,50,5,8,0,11,8,12,9,15,0,11,6,9,224,104,3,4,0,11,12,19,52,53,25,37,0,11,9,13,0,16,0,16,0,11,18,28,0,11,0,16,9,14,0,11,0,11,5,7,9,10,0,11]
[null,"Householder 45 to 64 years",25,27,11,12,0,11,24,36,0,11,0,11,0,11,46,42,0,11,0,11,8,14,27,42,7,11,13,20,16,23,0,16,0,16,0,11,0,11,0,11,0,16,0,11,0,11,0,11,13,13,0,11,0,11]
[null,"Householder 65 years and over",0,11,0,11,0,11,0,16,0,11,0,11,0,11,0,24,0,11,0,11,0,11,0,16,0,11,0,11,0,18,17,24,0,16,0,11,0,11,0,11,0,16,0,11,0,11,0,11,0,11,0,11,0,11]
[null,"Nonfamily households:",66,52,47,47,68,53,38,29,17,11,28,16,6,8,1156,198,4,5,12,11,28,25,267,98,175,89,10,15,303,165,69,55,119,101,12,14,76,49,16,17,17,28,119,73,8,7,22,17,73,47,23,20,26,24]
[null,"Male householder:",16,25,15,24,37,47,9,14,3,5,6,9,0,11,503,162,0,11,12,11,8,12,52,37,94,68,10,15,159,138,21,30,68,67,6,9,35,35,9,13,0,16,82,70,4,5,9,9,50,42,5,5,6,7]
[null,"Householder under 25 years",0,11,0,11,0,11,0,16,0,11,0,11,0,11,77,72,0,11,0,11,0,11,14,21,45,54,0,11,104,127,0,16,0,16,0,11,0,11,0,11,0,16,0,11,0,11,0,11,22,32,0,11,0,11]
[null,"Householder 25 to 44 years",16,25,0,11,0,11,0,16,0,11,6,9,0,11,107,61,0,11,4,6,0,11,0,16,0,11,0,11,0,18,21,30,0,16,6,9,0,11,9,13,0,16,10,16,0,11,4,5,5,7,0,11,0,11]
[null,"Householder 45 to 64 years",0,11,0,11,0,11,0,16,3,5,0,11,0,11,261,120,0,11,8,9,0,11,30,27,49,41,10,15,38,45,0,16,24,38,0,11,9,14,0,11,0,16,72,68,4,5,0,11,23,27,0,11,0,11]
[null,"Householder 65 years and over",0,11,15,24,37,47,9,14,0,11,0,11,0,11,58,35,0,11,0,11,8,12,8,13,0,11,0,11,17,19,0,16,44,53,0,11,26,32,0,11,0,16,0,11,0,11,5,7,0,11,5,5,6,7]
[null,"Female householder:",50,45,32,41,31,28,29,26,14,10,22,16,6,8,653,158,4,5,0,11,20,21,215,91,81,67,0,11,144,94,48,44,51,75,6,10,41,30,7,11,17,28,37,30,4,6,13,19,23,23,18,18,20,23]
[null,"Householder under 25 years",26,36,26,40,0,11,0,16,0,11,0,11,0,11,102,55,0,11,0,11,0,11,11,18,45,55,0,11,30,35,0,16,0,16,0,11,0,11,0,11,0,16,0,11,0,11,0,11,0,11,0,11,0,11]
[null,"Householder 25 to 44 years",12,17,0,11,0,11,0,16,0,11,0,11,6,8,257,114,0,11,0,11,0,11,0,16,23,37,0,11,27,42,0,16,0,16,0,11,0,11,0,11,17,28,9,14,0,11,0,11,0,11,3,5,13,23]
[null,"Householder 45 to 64 years",2,7,6,8,13,20,0,16,7,8,16,13,0,11,165,76,4,5,0,11,0,11,127,75,0,11,0,11,43,50,31,35,0,16,0,11,0,11,7,11,0,16,18,20,4,6,13,19,12,19,0,11,4,5]
[null,"Householder 65 years and over",10,16,0,11,18,20,29,26,7,7,6,10,0,11,129,65,0,11,0,11,20,21,77,54,13,22,0,11,44,45,17,28,51,75,6,10,41,30,0,11,0,16,10,16,0,11,0,11,11,13,15,18,3,6]
[null,"Income in the past 12 months at or above poverty level:",1598,134,991,92,1306,114,2634,126,621,65,938,63,923,62,15748,398,464,66,926,47,1731,115,3519,224,1598,135,346,46,4901,251,2094,129,1878,189,898,88,1457,164,1755,171,2589,165,1474,173,533,65,747,91,1036,107,721,71,678,68]
[null,"Family households:",1036,92,702,94,847,104,2230,94,407,57,613,62,736,56,9587,384,298,54,801,37,1273,115,2122,157,1152,114,235,42,3640,200,1685,128,1462,156,671,80,935,90,1276,131,1892,171,911,130,419,60,555,86,713,86,543,60,494,68]
[null,"Married-couple family:",813,117,608,92,677,105,2099,107,355,55,527,68,642,55,7510,360,258,52,746,45,1076,117,1592,143,924,122,207,38,3203,223,1437,147,1356,135,582,79,846,97,876,105,1366,161,722,162,364,52,481,81,572,80,458,57,428,67]
[null,"Householder under 25 years",53,72,0,11,0,11,0,16,4,6,0,11,0,11,48,59,0,11,0,11,34,54,0,16,0,11,0,11,16,25,0,16,0,16,8,11,0,11,0,11,0,16,0,11,0,11,0,11,9,12,0,11,0,11]
[null,"Householder 25 to 44 years",209,63,226,61,148,64,558,98,70,27,135,39,178,61,2507,246,73,29,164,49,256,92,425,115,223,79,51,17,1056,146,410,91,331,109,119,46,225,57,231,71,400,109,178,79,80,30,124,42,155,64,130,34,104,35]
[null,"Householder 45 to 64 years",380,79,252,66,340,71,1059,93,175,40,234,52,322,52,3463,297,129,37,448,58,521,101,721,142,426,97,98,30,1447,169,654,110,700,154,256,53,309,73,469,92,672,138,393,115,190,43,221,59,257,52,245,42,191,43]
[null,"Householder 65 years and over",171,70,130,49,189,51,482,72,106,31,158,41,142,31,1492,192,56,28,134,29,265,85,446,99,275,66,58,28,684,117,373,95,325,125,199,59,312,70,176,46,294,109,151,73,94,28,136,44,151,38,83,26,133,41]
[null,"Other family:",223,81,94,53,170,88,131,53,52,26,86,34,94,34,2077,291,40,17,55,29,197,77,530,137,228,105,28,16,437,119,248,134,106,89,89,46,89,52,400,107,526,166,189,99,55,24,74,36,141,56,85,33,66,28]
[null,"Male householder, no spouse present:",66,57,44,26,50,35,54,37,14,9,39,25,41,27,644,148,14,10,25,18,82,56,118,62,124,87,19,12,180,75,66,54,39,47,33,36,31,32,161,79,166,103,126,85,30,23,11,13,31,18,58,29,29,22]
[null,"Householder under 25 years",0,11,0,11,0,11,0,16,0,11,0,11,0,11,38,37,0,11,0,11,0,11,28,37,0,11,0,11,0,18,0,16,0,16,23,35,20,29,0,11,0,16,0,11,0,11,0,11,0,11,13,21,9,15]
[null,"Householder 25 to 44 years",31,50,16,16,26,30,22,24,0,11,15,14,35,26,363,126,4,5,5,9,43,43,27,36,23,28,11,9,22,24,17,27,0,16,0,11,0,11,89,63,33,42,54,61,21,20,8,13,10,11,6,6,13,15]
[null,"Householder 45 to 64 years",7,12,22,19,24,24,20,22,11,8,21,19,6,8,159,70,7,7,18,14,39,35,45,40,101,81,5,7,150,76,49,47,39,47,10,10,0,11,66,47,102,90,25,21,5,7,0,11,21,14,32,22,4,5]
[null,"Householder 65 years and over",28,25,6,9,0,11,12,19,3,5,3,5,0,11,84,39,3,6,2,5,0,11,18,20,0,11,3,5,8,13,0,16,0,16,0,11,11,13,6,10,31,34,47,51,4,7,3,5,0,11,7,8,3,5]
[null,"Female householder, no husband present:",157,62,50,47,120,86,77,39,38,25,47,25,53,26,1433,233,26,13,30,22,115,56,412,136,104,65,9,10,257,86,182,128,67,72,56,31,58,38,239,95,360,140,63,50,25,13,63,33,110,53,27,15,37,24]
[null,"Householder under 25 years",0,11,24,37,0,11,0,16,0,11,0,11,0,11,67,52,0,11,0,11,0,11,48,73,0,11,0,11,0,18,0,16,0,16,0,11,0,11,20,33,0,16,0,11,0,11,4,7,0,11,0,11,0,11]
[null,"Householder 25 to 44 years",4,16,4,6,84,82,16,22,8,8,9,13,15,14,400,129,0,11,22,19,29,28,135,63,52,44,3,6,84,53,5,11,31,51,17,14,0,11,107,69,168,95,13,20,10,9,9,14,41,33,3,4,13,15]
[null,"Householder 45 to 64 years",119,58,17,25,36,34,45,32,22,22,35,21,21,17,783,179,23,12,0,11,72,46,189,93,37,34,3,5,118,63,89,60,26,44,28,26,13,15,104,62,130,81,38,46,15,11,34,24,47,29,10,9,14,15]
[null,"Householder 65 years and over",34,50,5,7,0,11,16,23,8,8,3,7,17,13,183,68,3,4,8,10,14,20,40,28,15,22,3,5,55,32,88,98,10,17,11,12,45,35,8,13,62,49,12,19,0,11,16,18,22,25,14,9,10,10]
[null,"Nonfamily households:",562,122,289,83,459,121,404,87,214,50,325,64,187,59,6161,405,166,54,125,40,458,122,1397,268,446,130,111,30,1261,222,409,125,416,132,227,59,522,151,479,133,697,147,563,153,114,38,192,61,323,87,178,45,184,48]
[null,"Male householder:",256,86,110,42,247,103,113,49,110,37,220,66,100,53,2915,282,120,51,68,28,234,91,641,180,229,104,35,14,491,149,171,93,113,65,129,49,210,95,243,100,456,132,317,132,52,26,79,35,148,58,74,28,107,44]
[null,"Householder under 25 years",0,11,0,11,0,11,0,16,17,20,6,9,0,11,157,77,5,7,5,8,0,11,0,16,36,53,0,11,36,44,0,16,0,16,0,11,0,11,0,11,47,55,39,49,0,11,0,11,8,12,0,11,6,8]
[null,"Householder 25 to 44 years",90,47,39,35,118,74,27,22,25,16,84,47,17,23,944,183,26,20,10,12,63,50,142,97,66,54,3,4,156,85,10,18,17,22,13,13,18,20,57,50,145,88,35,30,4,6,35,28,50,36,22,14,0,11]
[null,"Householder 45 to 64 years",132,71,48,23,100,61,41,32,10,9,88,49,63,40,1039,195,62,37,41,21,107,64,278,118,62,51,21,11,153,82,102,84,48,41,79,35,24,26,135,73,134,112,141,96,18,13,22,21,54,33,40,23,66,34]
[null,"Householder 65 years and over",34,32,23,17,29,28,45,34,58,28,42,32,20,14,775,184,27,22,12,11,64,44,221,86,65,55,11,10,146,80,59,45,48,47,37,29,168,83,51,49,130,63,102,56,30,20,22,13,36,15,12,8,35,23]
[null,"Female householder:",306,89,179,70,212,83,291,74,104,41,105,41,87,36,3246,328,46,29,57,25,224,84,756,195,217,82,76,27,770,176,238,104,303,117,98,42,312,101,236,83,241,108,246,78,62,29,113,52,175,60,104,35,77,30]
[null,"Householder under 25 years",26,29,24,38,0,11,0,16,0,11,0,11,9,14,157,77,0,11,0,11,17,29,70,69,0,11,0,11,15,24,10,17,0,16,0,11,22,35,0,11,0,16,0,11,0,11,0,11,0,11,5,7,0,11]
[null,"Householder 25 to 44 years",40,34,7,10,13,20,11,17,9,9,16,13,0,11,637,152,0,11,0,11,36,33,91,75,68,58,11,9,238,97,7,15,0,16,5,7,16,18,28,34,65,63,60,31,7,8,14,18,14,21,0,11,3,5]
[null,"Householder 45 to 64 years",66,41,55,31,115,73,101,54,18,12,36,24,47,30,826,158,39,27,29,18,71,40,262,120,39,36,47,25,230,107,93,67,94,56,13,15,26,27,116,60,81,60,122,71,12,12,40,27,52,28,39,17,34,19]
[null,"Householder 65 years and over",174,74,93,55,84,41,179,56,77,37,53,27,31,22,1626,240,7,9,28,16,100,43,333,115,110,59,18,11,287,113,128,68,209,104,80,39,248,86,92,40,95,57,64,34,43,25,59,37,109,47,60,29,40,22]
[]
[]
[]
[]
[]
[]
[]
[]
[]
[null,"B17017. POVERTY STATUS IN THE PAST 12 MONTHS BY HOUSEHOLD TYPE BY AGE OF HOUSEHOLDER"]
[null,"Universe: HOUSEHOLDS"]
[null,"Data Set: 2010-2014 American Community Survey 5-Year Estimates"]
[]
[null,null,"Allenstown",null,"Andover",null,"Boscawen",null,"Bow",null,"Bradford",null,"Canterbury",null,"Chichester",null,"Concord",null,"Danbury",null,"Dunbarton",null,"Epsom",null,"Franklin",null,"Henniker",null,"Hill",null,"Hooksett",null,"Hopkinton",null,"Loudon",null,"Newbury",null,"New London",null,"Northfield",null,"Pembroke",null,"Pittsfield",null,"Salisbury",null,"Sutton",null,"Warner",null,"Webster",null,"Wilmot"]
[null,null,"Estimate","Margin Of Error","Estimate","Margin Of Error","Estimate","Margin Of Error","Estimate","Margin Of Error","Estimate","Margin Of Error","Estimate","Margin Of Error","Estimate","Margin Of Error","Estimate","Margin Of Error","Estimate","Margin Of Error","Estimate","Margin Of Error","Estimate","Margin Of Error","Estimate","Margin Of Error","Estimate","Margin Of Error","Estimate","Margin Of Error","Estimate","Margin Of Error","Estimate","Margin Of Error","Estimate","Margin Of Error","Estimate","Margin Of Error","Estimate","Margin Of Error","Estimate","Margin Of Error","Estimate","Margin Of Error","Estimate","Margin Of Error","Estimate","Margin Of Error","Estimate","Margin Of Error","Estimate","Margin Of Error","Estimate","Margin Of Error","Estimate","Margin Of Error"]
[null,"Total:",1787,88,975,87,1270,147,2777,133,684,77,894,64,996,62,17141,334,533,70,1053,59,1809,122,3379,195,1598,145,445,57,5216,237,2122,112,2013,139,756,95,1734,157,1729,104,2787,148,1525,127,553,62,786,99,1123,84,767,66,588,67]
[null,"Income in the past 12 months below poverty level:",179,112,76,40,188,81,99,66,73,29,20,16,84,46,1955,297,33,20,70,41,61,42,697,155,195,90,23,20,176,72,78,75,168,81,54,32,169,78,150,66,257,123,282,91,22,18,41,28,46,40,61,32,38,20]
[null,"Family households:",76,56,21,15,116,65,80,58,21,13,4,8,27,24,773,183,14,17,34,23,41,34,379,132,32,49,0,11,44,35,63,68,89,60,39,28,76,61,126,62,15,24,156,72,6,7,25,23,9,11,28,25,14,12]
[null,"Married-couple family:",64,53,14,12,8,16,20,31,9,10,4,8,12,10,256,120,0,11,25,21,23,22,125,83,0,11,0,11,42,34,24,33,20,23,11,11,36,45,91,53,15,24,38,49,3,5,12,18,5,9,4,6,10,10]
[null,"Householder under 25 years",11,18,0,11,0,11,0,15,0,11,0,11,0,11,0,23,0,11,0,11,0,11,0,15,0,11,0,11,0,17,0,15,0,15,0,11,0,11,0,11,0,15,0,11,0,11,0,11,0,11,0,11,0,11]
[null,"Householder 25 to 44 years",17,26,5,8,0,11,20,31,0,11,4,8,0,11,109,78,0,11,11,17,15,16,79,72,0,11,0,11,16,24,11,22,0,15,0,11,0,11,50,50,0,15,0,11,0,11,12,18,5,9,0,11,8,10]
[null,"Householder 45 to 64 years",27,42,5,7,8,16,0,15,3,5,0,11,12,10,133,93,0,11,14,13,0,11,14,21,0,11,0,11,26,24,0,15,20,23,11,11,36,45,41,51,15,24,32,46,3,5,0,11,0,11,4,6,0,11]
[null,"Householder 65 years and over",9,13,4,6,0,11,0,15,6,7,0,11,0,11,14,19,0,11,0,11,8,14,32,36,0,11,0,11,0,17,13,21,0,15,0,11,0,11,0,11,0,15,6,11,0,11,0,11,0,11,0,11,2,3]
[null,"Other family:",12,20,7,10,108,63,60,51,12,10,0,11,15,23,517,155,14,17,9,10,18,26,254,107,32,49,0,11,2,9,39,61,69,53,28,27,40,43,35,34,0,15,118,63,3,5,13,15,4,7,24,24,4,7]
[null,"Male householder, no spouse present:",0,11,0,11,15,17,14,21,4,5,0,11,15,23,73,52,0,11,4,7,0,11,74,64,0,11,0,11,2,9,0,15,17,26,5,7,0,11,0,11,0,15,7,13,0,11,0,11,0,11,12,19,0,11]
[null,"Householder under 25 years",0,11,0,11,0,11,0,15,0,11,0,11,0,11,14,22,0,11,0,11,0,11,38,58,0,11,0,11,0,17,0,15,0,15,0,11,0,11,0,11,0,15,7,13,0,11,0,11,0,11,0,11,0,11]
[null,"Householder 25 to 44 years",0,11,0,11,0,11,0,15,0,11,0,11,15,23,37,46,0,11,4,7,0,11,10,17,0,11,0,11,0,17,0,15,0,15,0,11,0,11,0,11,0,15,0,11,0,11,0,11,0,11,0,11,0,11]
[null,"Householder 45 to 64 years",0,11,0,11,15,17,14,21,4,5,0,11,0,11,22,25,0,11,0,11,0,11,26,27,0,11,0,11,2,9,0,15,17,26,5,7,0,11,0,11,0,15,0,11,0,11,0,11,0,11,12,19,0,11]
[null,"Householder 65 years and over",0,11,0,11,0,11,0,15,0,11,0,11,0,11,0,23,0,11,0,11,0,11,0,15,0,11,0,11,0,17,0,15,0,15,0,11,0,11,0,11,0,15,0,11,0,11,0,11,0,11,0,11,0,11]
[null,"Female householder, no husband present:",12,20,7,10,93,64,46,45,8,8,0,11,0,11,444,147,14,17,5,8,18,26,180,103,32,49,0,11,0,17,39,61,52,47,23,27,40,43,35,34,0,15,111,63,3,5,13,15,4,7,12,15,4,7]
[null,"Householder under 25 years",0,11,0,11,0,11,0,15,0,11,0,11,0,11,37,33,0,11,5,8,0,11,0,15,0,11,0,11,0,17,39,61,0,15,0,11,0,11,25,31,0,15,0,11,0,11,0,11,0,11,0,11,0,11]
[null,"Householder 25 to 44 years",12,20,7,10,76,61,46,45,0,11,0,11,0,11,349,122,14,17,0,11,0,11,158,103,32,49,0,11,0,17,0,15,39,42,23,27,0,11,10,16,0,15,87,53,0,11,10,14,0,11,8,14,4,7]
[null,"Householder 45 to 64 years",0,11,0,11,17,27,0,15,5,7,0,11,0,11,58,55,0,11,0,11,18,26,14,18,0,11,0,11,0,17,0,15,13,18,0,11,40,43,0,11,0,15,24,38,3,5,3,4,4,7,4,6,0,11]
[null,"Householder 65 years and over",0,11,0,11,0,11,0,15,3,5,0,11,0,11,0,23,0,11,0,11,0,11,8,13,0,11,0,11,0,17,0,15,0,15,0,11,0,11,0,11,0,15,0,11,0,11,0,11,0,11,0,11,0,11]
[null,"Nonfamily households:",103,91,55,37,72,36,19,23,52,27,16,14,57,42,1182,231,19,13,36,35,20,23,318,114,163,83,23,20,132,69,15,23,79,54,15,10,93,56,24,21,242,122,126,67,16,16,16,16,37,38,33,20,24,18]
[null,"Male householder:",8,13,26,31,25,22,12,20,7,9,5,8,42,40,502,152,12,11,13,13,0,11,131,72,36,46,20,20,50,43,15,23,40,41,11,10,33,38,0,11,132,118,33,29,10,15,16,16,16,16,17,15,3,4]
[null,"Householder under 25 years",0,11,0,11,7,11,12,20,0,11,0,11,0,11,45,37,0,11,0,11,0,11,25,30,0,11,0,11,0,17,0,15,10,18,0,11,33,38,0,11,0,15,9,16,0,11,0,11,0,11,0,11,0,11]
[null,"Householder 25 to 44 years",8,13,0,11,10,15,0,15,4,7,0,11,0,11,160,91,12,11,0,11,0,11,57,53,36,46,0,11,0,17,0,15,0,15,0,11,0,11,0,11,10,18,8,13,0,11,0,11,6,9,0,11,0,11]
[null,"Householder 45 to 64 years",0,11,20,30,0,11,0,15,3,5,0,11,35,38,238,111,0,11,13,13,0,11,36,32,0,11,18,19,44,43,15,23,30,34,5,7,0,11,0,11,122,118,8,14,10,15,13,15,10,13,12,17,0,11]
[null,"Householder 65 years and over",0,11,6,8,8,13,0,15,0,11,5,8,7,10,59,39,0,11,0,11,0,11,13,22,0,11,2,3,6,10,0,15,0,15,6,8,0,11,0,11,0,15,8,12,0,11,3,5,0,11,5,7,3,4]
[null,"Female householder:",95,90,29,24,47,29,7,11,45,26,11,11,15,14,680,165,7,7,23,32,20,23,187,101,127,73,3,4,82,53,0,15,39,38,4,6,60,39,24,21,110,78,93,61,6,6,0,11,21,34,16,11,21,18]
[null,"Householder under 25 years",0,11,6,8,0,11,0,15,0,11,0,11,0,11,69,54,0,11,23,32,0,11,0,15,59,58,0,11,8,13,0,15,0,15,0,11,9,14,0,11,0,15,33,42,0,11,0,11,0,11,0,11,10,16]
[null,"Householder 25 to 44 years",51,75,0,11,0,11,0,15,0,11,0,11,0,11,138,71,0,11,0,11,0,11,0,15,0,11,0,11,0,17,0,15,0,15,0,11,0,11,0,11,17,27,0,11,0,11,0,11,21,34,0,11,0,11]
[null,"Householder 45 to 64 years",44,43,4,7,31,24,0,15,33,21,11,11,0,11,275,121,4,5,0,11,11,17,134,84,42,49,3,4,35,36,0,15,24,29,0,11,17,18,17,18,71,64,60,45,3,4,0,11,0,11,7,7,3,4]
[null,"Householder 65 years and over",0,11,19,22,16,18,7,11,12,14,0,11,15,14,198,80,3,5,0,11,9,15,53,41,26,24,0,11,39,33,0,15,15,23,4,6,34,31,7,11,22,35,0,11,3,4,0,11,0,11,9,8,8,9]
[null,"Income in the past 12 months at or above poverty level:",1608,131,899,89,1082,158,2678,147,611,74,874,64,912,73,15186,473,500,70,983,86,1748,121,2682,246,1403,165,422,58,5040,234,2044,134,1845,142,702,97,1565,168,1579,115,2530,191,1243,139,531,58,745,96,1077,75,706,63,550,67]
[null,"Family households:",1106,106,619,92,846,139,2263,130,477,67,662,67,671,71,9072,391,334,62,766,78,1225,90,1667,193,1031,112,329,55,3605,185,1579,124,1380,106,469,74,1009,112,1212,115,1910,152,807,100,382,51,580,90,762,59,492,64,344,55]
[null,"Married-couple family:",838,113,558,84,631,120,2006,131,440,63,563,66,602,83,6847,419,235,51,730,75,1075,98,1256,183,878,121,283,55,3029,219,1513,116,1211,130,436,72,936,112,1009,115,1401,171,651,99,318,45,522,84,655,78,385,52,301,52]
[null,"Householder under 25 years",44,36,3,4,0,11,0,15,2,3,0,11,0,11,93,106,0,11,0,11,0,11,0,15,0,11,0,11,30,47,0,15,0,15,0,11,0,11,0,11,0,15,0,11,0,11,0,11,0,11,0,11,0,11]
[null,"Householder 25 to 44 years",289,89,132,54,169,75,412,98,126,42,113,36,135,40,2315,260,54,30,223,47,358,80,335,97,336,83,52,20,1089,195,322,84,273,81,67,29,120,46,297,86,522,112,265,65,70,27,121,43,188,48,133,32,87,32]
[null,"Householder 45 to 64 years",367,81,244,54,344,99,1211,102,244,45,330,54,339,60,3241,232,147,48,408,42,538,93,631,130,461,111,177,38,1315,152,803,110,721,114,230,46,300,68,573,106,706,101,279,70,184,40,227,50,313,64,202,39,132,28]
[null,"Householder 65 years and over",138,41,179,51,118,52,383,75,68,22,120,33,128,35,1198,149,34,13,99,32,179,52,290,76,81,41,54,32,595,102,388,86,217,60,139,45,516,91,139,55,173,83,107,34,64,21,174,51,154,48,50,17,82,30]
[null,"Other family:",268,79,61,31,215,86,257,91,37,25,99,42,69,41,2225,304,99,46,36,18,150,70,411,147,153,86,46,16,576,164,66,43,169,75,33,22,73,54,203,64,509,145,156,64,64,31,58,37,107,43,107,39,43,27]
[null,"Male householder, no spouse present:",104,56,10,11,63,40,68,50,28,23,53,28,36,29,666,177,56,32,15,13,90,58,166,99,27,24,16,12,199,134,9,16,50,42,13,13,0,11,110,50,248,106,28,27,11,9,37,30,44,33,24,15,0,11]
[null,"Householder under 25 years",0,11,0,11,0,11,0,15,0,11,6,8,0,11,71,72,0,11,0,11,0,11,0,15,0,11,0,11,0,17,0,15,0,15,0,11,0,11,0,11,0,15,0,11,4,6,0,11,0,11,0,11,0,11]
[null,"Householder 25 to 44 years",57,41,0,11,23,26,19,27,4,6,21,14,7,13,272,114,31,27,6,8,55,35,97,79,0,11,11,10,140,119,0,15,0,15,9,10,0,11,53,40,78,56,5,10,7,7,31,29,15,22,4,5,0,11]
[null,"Householder 45 to 64 years",33,30,5,8,32,28,29,28,20,22,18,15,29,27,261,111,25,19,9,10,27,43,53,49,27,24,5,7,59,57,9,16,50,42,4,7,0,11,48,31,131,84,12,18,0,11,6,7,22,25,17,12,0,11]
[null,"Householder 65 years and over",14,18,5,7,8,12,20,20,4,5,8,12,0,11,62,45,0,11,0,11,8,14,16,26,0,11,0,11,0,17,0,15,0,15,0,11,0,11,9,14,39,43,11,17,0,11,0,11,7,9,3,5,0,11]
[null,"Female householder, no husband present:",164,65,51,29,152,75,189,76,9,9,46,33,33,24,1559,226,43,28,21,16,60,39,245,109,126,80,30,14,377,129,57,41,119,63,20,17,73,54,93,48,261,94,128,60,53,28,21,20,63,25,83,36,43,27]
[null,"Householder under 25 years",8,13,0,11,0,11,0,15,0,11,0,11,0,11,52,63,0,11,0,11,0,11,0,15,0,11,0,11,0,17,0,15,0,15,0,11,13,22,0,11,0,15,0,11,0,11,0,11,0,11,0,11,0,11]
[null,"Householder 25 to 44 years",67,43,4,7,58,46,10,14,3,6,5,7,3,6,544,145,18,18,5,8,44,34,82,69,73,58,5,7,97,76,9,16,52,45,0,11,0,11,29,30,154,76,59,50,14,17,0,11,25,19,35,32,24,24]
[null,"Householder 45 to 64 years",73,47,42,28,77,55,155,73,3,5,25,28,24,22,767,193,25,21,16,16,16,19,103,62,53,51,17,11,252,114,36,31,6,11,14,15,29,31,32,26,107,52,55,44,39,23,9,13,31,18,35,15,3,4]
[null,"Householder 65 years and over",16,18,5,7,17,18,24,20,3,4,16,14,6,8,196,76,0,11,0,11,0,11,60,43,0,11,8,7,28,25,12,19,61,53,6,8,31,26,32,25,0,15,14,18,0,11,12,16,7,8,13,8,16,15]
[null,"Nonfamily households:",502,116,280,77,236,91,415,107,134,36,212,54,241,77,6114,431,166,40,217,56,523,138,1015,203,372,117,93,33,1435,257,465,143,465,162,233,64,556,134,367,104,620,182,436,106,149,43,165,47,315,82,214,51,206,53]
[null,"Male householder:",183,73,150,61,108,62,134,62,60,27,73,33,153,64,2689,296,104,34,132,40,223,83,475,148,203,92,56,29,578,174,277,134,269,134,96,38,189,75,243,94,300,142,238,89,84,32,76,27,166,62,136,41,84,38]
[null,"Householder under 25 years",0,11,0,11,0,11,0,15,4,6,0,11,0,11,152,86,0,11,0,11,0,11,10,14,5,9,0,11,0,17,53,64,0,15,0,11,0,11,0,11,0,15,9,13,0,11,0,11,25,32,0,11,12,17]
[null,"Householder 25 to 44 years",35,32,39,27,37,34,19,20,10,8,11,11,76,54,895,184,20,15,0,11,13,23,97,62,59,53,3,4,147,102,56,68,76,71,12,13,73,54,20,20,96,97,86,64,14,10,40,22,33,36,62,34,26,23]
[null,"Householder 45 to 64 years",127,66,92,47,31,27,55,39,33,22,51,31,61,32,1046,204,43,26,83,28,166,74,296,124,115,70,44,29,328,124,70,49,88,46,65,28,21,25,152,69,72,44,89,68,55,31,22,18,54,32,43,25,30,25]
[null,"Householder 65 years and over",21,24,19,24,40,44,60,39,13,10,11,12,16,14,596,136,41,19,49,33,44,31,72,50,24,22,9,7,103,57,98,72,105,89,19,21,95,51,71,43,132,82,54,30,15,9,14,17,54,39,31,21,16,11]
[null,"Female householder:",319,97,130,45,128,78,281,94,74,27,139,44,88,36,3425,307,62,32,85,42,300,118,540,132,169,85,37,14,857,170,188,104,196,76,137,57,367,110,124,62,320,137,198,84,65,32,89,37,149,47,78,24,122,38]
[null,"Householder under 25 years",8,14,0,11,0,11,0,15,3,5,0,11,0,11,73,55,0,11,0,11,0,11,0,15,0,11,0,11,13,19,0,15,0,15,0,11,0,11,0,11,0,15,34,52,10,15,0,11,5,8,0,11,0,11]
[null,"Householder 25 to 44 years",18,19,5,8,44,61,0,15,17,18,24,14,7,8,771,165,11,17,22,29,17,20,78,70,16,17,0,11,173,85,52,82,17,20,0,11,37,42,29,26,12,20,21,24,3,4,23,23,20,18,8,9,13,16]
[null,"Householder 45 to 64 years",121,54,73,40,36,30,76,50,18,13,60,27,38,22,1296,192,29,20,37,21,139,71,292,91,74,56,13,8,259,87,31,36,142,74,58,45,25,23,41,29,158,115,83,44,36,21,46,28,93,36,39,19,44,25]
[null,"Householder 65 years and over",172,76,52,27,48,33,205,75,36,17,55,29,43,24,1285,177,22,19,26,19,144,81,170,75,79,57,24,13,412,122,105,51,37,32,79,43,305,95,54,49,150,67,60,46,16,18,20,18,31,15,31,14,65,27]
[]
[]
[]
[]
[]
[]
[]
[]
[]
[null,"B17017. POVERTY STATUS IN THE PAST 12 MONTHS BY HOUSEHOLD TYPE BY AGE OF HOUSEHOLDER"]
[null,"Universe: HOUSEHOLDS"]
[null,"Data Set: 2005-2009 American Community Survey 5-Year Estimates"]
[]
[null,null,"Allenstown",null,"Andover",null,"Boscawen",null,"Bow",null,"Bradford",null,"Canterbury",null,"Chichester",null,"Concord",null,"Danbury",null,"Dunbarton",null,"Epsom",null,"Franklin",null,"Henniker",null,"Hill",null,"Hooksett",null,"Hopkinton",null,"Loudon",null,"Newbury",null,"New London",null,"Northfield",null,"Pembroke",null,"Pittsfield",null,"Salisbury",null,"Sutton",null,"Warner",null,"Webster",null,"Wilmot"]
[null,null,"Estimate","Margin Of Error","Estimate","Margin Of Error","Estimate","Margin Of Error","Estimate","Margin Of Error","Estimate","Margin Of Error","Estimate","Margin Of Error","Estimate","Margin Of Error","Estimate","Margin Of Error","Estimate","Margin Of Error","Estimate","Margin Of Error","Estimate","Margin Of Error","Estimate","Margin Of Error","Estimate","Margin Of Error","Estimate","Margin Of Error","Estimate","Margin Of Error","Estimate","Margin Of Error","Estimate","Margin Of Error","Estimate","Margin Of Error","Estimate","Margin Of Error","Estimate","Margin Of Error","Estimate","Margin Of Error","Estimate","Margin Of Error","Estimate","Margin Of Error","Estimate","Margin Of Error","Estimate","Margin Of Error","Estimate","Margin Of Error","Estimate","Margin Of Error"]
[null,"Total:",1824,124,947,86,1317,163,2845,132,510,73,896,50,918,51,17349,501,528,75,960,53,1445,110,3300,222,1776,167,392,48,4638,239,2237,119,1751,105,821,88,1564,226,1884,138,2907,166,1652,109,438,49,680,92,1010,162,669,56,502,64]
[null,"Income in the past 12 months below poverty level:",100,74,30,32,126,67,99,66,23,22,46,26,34,31,1993,308,78,42,41,27,28,29,489,111,76,49,21,17,121,70,30,36,67,55,58,41,221,133,104,69,272,145,157,92,12,10,31,27,63,42,25,14,89,51]
[null,"Family households:",32,38,17,28,63,55,43,39,0,114,9,9,27,30,721,176,25,22,27,19,28,29,245,84,7,11,15,15,49,45,0,114,56,52,33,34,63,57,66,60,239,140,109,82,8,8,6,9,14,22,13,10,51,43]
[null,"Married-couple family:",12,20,0,114,0,114,16,26,0,114,5,8,22,29,120,61,15,17,13,13,14,21,85,53,0,114,0,114,35,40,0,114,39,45,3,5,18,28,22,24,61,70,60,45,5,7,0,114,14,22,4,7,51,43]
[null,"Householder under 25 years",0,114,0,114,0,114,0,114,0,114,0,114,0,114,0,114,0,114,0,114,0,114,8,15,0,114,0,114,0,114,0,114,0,114,0,114,0,114,0,114,0,114,0,114,0,114,0,114,0,114,0,114,0,114]
[null,"Householder 25 to 44 years",0,114,0,114,0,114,0,114,0,114,5,8,0,114,72,56,6,9,6,10,14,21,36,45,0,114,0,114,0,114,0,114,13,20,0,114,18,28,11,17,61,70,0,114,0,114,0,114,14,22,4,7,0,114]
[null,"Householder 45 to 64 years",0,114,0,114,0,114,16,26,0,114,0,114,22,29,27,27,9,11,0,114,0,114,25,24,0,114,0,114,17,27,0,114,26,41,3,5,0,114,11,17,0,114,53,42,0,114,0,114,0,114,0,114,51,43]
[null,"Householder 65 years and over",12,20,0,114,0,114,0,114,0,114,0,114,0,114,21,23,0,114,7,9,0,114,16,18,0,114,0,114,18,20,0,114,0,114,0,114,0,114,0,114,0,114,7,11,5,7,0,114,0,114,0,114,0,114]
[null,"Other family:",20,33,17,28,63,55,27,32,0,114,4,6,5,8,601,168,10,13,14,14,14,21,160,85,7,11,15,15,14,22,0,114,17,20,30,33,45,52,44,49,178,122,49,67,3,5,6,9,0,114,9,8,0,114]
[null,"Male householder, no spouse present:",0,114,0,114,29,46,11,18,0,114,0,114,0,114,157,90,0,114,0,114,0,114,50,56,7,11,2,4,0,114,0,114,10,16,0,114,0,114,29,42,0,114,0,114,0,114,6,9,0,114,9,8,0,114]
[null,"Householder under 25 years",0,114,0,114,0,114,0,114,0,114,0,114,0,114,0,114,0,114,0,114,0,114,0,114,0,114,0,114,0,114,0,114,0,114,0,114,0,114,0,114,0,114,0,114,0,114,0,114,0,114,0,114,0,114]
[null,"Householder 25 to 44 years",0,114,0,114,0,114,0,114,0,114,0,114,0,114,95,78,0,114,0,114,0,114,50,56,0,114,0,114,0,114,0,114,0,114,0,114,0,114,29,42,0,114,0,114,0,114,0,114,0,114,6,6,0,114]
[null,"Householder 45 to 64 years",0,114,0,114,29,46,11,18,0,114,0,114,0,114,62,54,0,114,0,114,0,114,0,114,7,11,2,4,0,114,0,114,10,16,0,114,0,114,0,114,0,114,0,114,0,114,6,9,0,114,0,114,0,114]
[null,"Householder 65 years and over",0,114,0,114,0,114,0,114,0,114,0,114,0,114,0,114,0,114,0,114,0,114,0,114,0,114,0,114,0,114,0,114,0,114,0,114,0,114,0,114,0,114,0,114,0,114,0,114,0,114,3,4,0,114]
[null,"Female householder, no husband present:",20,33,17,28,34,32,16,25,0,114,4,6,5,8,444,140,10,13,14,14,14,21,110,65,0,114,13,15,14,22,0,114,7,12,30,33,45,52,15,25,178,122,49,67,3,5,0,114,0,114,0,114,0,114]
[null,"Householder under 25 years",0,114,0,114,0,114,0,114,0,114,0,114,0,114,117,87,0,114,0,114,0,114,0,114,0,114,0,114,0,114,0,114,0,114,0,114,17,29,0,114,0,114,0,114,0,114,0,114,0,114,0,114,0,114]
[null,"Householder 25 to 44 years",20,33,0,114,22,27,0,114,0,114,0,114,0,114,197,86,2,4,7,10,14,21,100,64,0,114,11,15,14,22,0,114,7,12,30,33,28,43,15,25,160,121,49,67,0,114,0,114,0,114,0,114,0,114]
[null,"Householder 45 to 64 years",0,114,17,28,12,19,16,25,0,114,4,6,5,8,101,71,8,12,7,11,0,114,10,16,0,114,2,3,0,114,0,114,0,114,0,114,0,114,0,114,18,30,0,114,3,5,0,114,0,114,0,114,0,114]
[null,"Householder 65 years and over",0,114,0,114,0,114,0,114,0,114,0,114,0,114,29,43,0,114,0,114,0,114,0,114,0,114,0,114,0,114,0,114,0,114,0,114,0,114,0,114,0,114,0,114,0,114,0,114,0,114,0,114,0,114]
[null,"Nonfamily households:",68,53,13,14,63,38,56,65,23,22,37,24,7,10,1272,251,53,36,14,16,0,114,244,83,69,48,6,7,72,53,30,36,11,18,25,17,158,115,38,37,33,37,48,47,4,6,25,25,49,35,12,10,38,25]
[null,"Male householder:",21,28,0,114,24,32,0,114,15,18,8,12,0,114,537,197,33,29,7,11,0,114,86,62,9,15,0,114,9,15,20,32,0,114,6,10,30,48,15,23,15,23,11,18,0,114,9,13,40,34,3,4,12,10]
[null,"Householder under 25 years",8,14,0,114,0,114,0,114,0,114,0,114,0,114,104,93,0,114,0,114,0,114,11,18,0,114,0,114,0,114,0,114,0,114,0,114,0,114,0,114,0,114,0,114,0,114,0,114,0,114,0,114,5,8]
[null,"Householder 25 to 44 years",0,114,0,114,15,27,0,114,0,114,0,114,0,114,148,113,11,16,0,114,0,114,35,44,0,114,0,114,0,114,0,114,0,114,0,114,0,114,0,114,0,114,0,114,0,114,9,13,0,114,0,114,0,114]
[null,"Householder 45 to 64 years",13,22,0,114,9,17,0,114,6,6,8,12,0,114,229,128,13,19,7,11,0,114,31,39,0,114,0,114,9,15,0,114,0,114,6,10,0,114,15,23,15,23,0,114,0,114,0,114,21,14,3,4,3,5]
[null,"Householder 65 years and over",0,114,0,114,0,114,0,114,9,15,0,114,0,114,56,37,9,14,0,114,0,114,9,14,9,15,0,114,0,114,20,32,0,114,0,114,30,48,0,114,0,114,11,18,0,114,0,114,19,30,0,114,4,5]
[null,"Female householder:",47,40,13,14,39,27,56,65,8,12,29,21,7,10,735,187,20,18,7,11,0,114,158,57,60,46,6,7,63,57,10,16,11,18,19,14,128,103,23,25,18,30,37,52,4,6,16,17,9,11,9,9,26,23]
[null,"Householder under 25 years",0,114,0,114,0,114,0,114,0,114,0,114,0,114,163,108,0,114,0,114,0,114,0,114,16,25,0,114,0,114,0,114,0,114,0,114,0,114,0,114,0,114,0,114,0,114,0,114,0,114,0,114,0,114]
[null,"Householder 25 to 44 years",11,19,7,12,0,114,0,114,0,114,0,114,0,114,168,90,0,114,7,11,0,114,44,47,24,28,3,4,0,114,0,114,0,114,0,114,0,114,0,114,0,114,0,114,0,114,0,114,0,114,0,114,3,6]
[null,"Householder 45 to 64 years",20,22,0,114,20,23,18,29,8,12,11,13,7,10,105,59,8,11,0,114,0,114,77,56,0,114,3,5,33,49,0,114,0,114,6,9,30,49,14,21,18,30,29,45,4,6,16,17,9,11,3,6,0,114]
[null,"Householder 65 years and over",16,28,6,9,19,22,38,59,0,114,18,15,0,114,299,116,12,14,0,114,0,114,37,33,20,22,0,114,30,29,10,16,11,18,13,11,98,80,9,15,0,114,8,13,0,114,0,114,0,114,6,6,23,22]
[null,"Income in the past 12 months at or above poverty level:",1724,135,917,90,1191,164,2746,138,487,71,850,52,884,57,15356,528,450,70,919,59,1417,119,2811,211,1700,175,371,47,4517,239,2207,118,1684,110,763,86,1343,202,1780,156,2635,205,1495,129,426,47,649,95,947,158,644,56,413,55]
[null,"Family households:",1227,107,674,88,838,129,2317,124,383,63,639,59,711,49,9312,481,307,62,724,59,1156,103,1941,167,1145,142,269,40,3474,180,1620,132,1369,121,597,88,899,152,1330,120,1752,160,960,101,332,36,457,88,695,116,535,54,340,54]
[null,"Married-couple family:",992,124,608,91,659,127,2017,167,363,64,550,55,600,69,7362,425,276,58,698,67,955,110,1429,169,1000,142,234,38,2992,198,1522,134,1023,142,521,90,848,157,1063,139,1421,172,855,96,288,36,422,87,594,104,489,55,307,53]
[null,"Householder under 25 years",47,61,0,114,9,15,0,114,0,114,7,9,0,114,97,67,8,9,0,114,0,114,9,14,26,42,0,114,21,33,17,28,9,14,0,114,0,114,0,114,0,114,0,114,0,114,0,114,4,6,2,4,4,7]
[null,"Householder 25 to 44 years",310,111,217,59,281,88,531,87,80,36,192,54,196,48,2993,290,79,30,271,45,342,82,552,112,286,91,90,25,1197,147,458,89,303,90,203,80,211,104,464,115,518,107,345,84,92,25,171,89,201,39,169,37,87,26]
[null,"Householder 45 to 64 years",535,78,250,72,279,78,1187,128,227,48,244,53,346,80,3101,275,159,51,332,48,444,93,682,119,602,115,106,29,1309,163,702,148,579,99,210,50,257,75,505,98,663,110,418,90,149,32,138,43,309,81,248,48,184,50]
[null,"Householder 65 years and over",100,46,141,55,90,47,299,73,56,25,107,35,58,40,1171,153,30,20,95,31,169,47,186,54,86,42,38,18,465,70,345,84,132,47,108,35,380,113,94,41,240,67,92,45,47,16,113,42,80,33,70,25,32,17]
[null,"Other family:",235,92,66,42,179,93,300,112,20,11,89,35,111,49,1950,260,31,24,26,27,201,88,512,139,145,79,35,24,482,133,98,65,346,103,76,36,51,33,267,102,331,111,105,66,44,21,35,17,101,42,46,20,33,21]
[null,"Male householder, no spouse present:",56,41,21,19,72,70,51,40,3,4,30,23,31,20,440,143,21,19,12,14,58,62,186,91,48,46,25,22,116,89,43,44,124,79,24,22,8,15,127,82,123,64,73,59,4,6,20,11,14,17,23,18,3,4]
[null,"Householder under 25 years",0,114,0,114,0,114,0,114,0,114,0,114,0,114,72,59,0,114,0,114,0,114,0,114,0,114,3,5,0,114,0,114,0,114,0,114,0,114,0,114,0,114,0,114,0,114,4,6,0,114,8,13,0,114]
[null,"Householder 25 to 44 years",47,41,6,10,28,40,27,30,3,4,9,13,6,11,233,102,21,19,0,114,58,62,100,67,25,30,19,21,29,32,0,114,96,74,3,6,0,114,67,65,55,45,58,54,0,114,0,114,0,114,0,114,0,114]
[null,"Householder 45 to 64 years",9,14,15,16,36,55,24,27,0,114,21,18,20,14,114,65,0,114,12,14,0,114,39,45,23,35,3,4,87,87,16,27,28,26,18,18,8,15,39,35,58,43,8,13,4,6,10,8,14,17,15,12,3,4]
[null,"Householder 65 years and over",0,114,0,114,8,14,0,114,0,114,0,114,5,8,21,23,0,114,0,114,0,114,47,47,0,114,0,114,0,114,27,35,0,114,3,4,0,114,21,33,10,18,7,13,0,114,6,6,0,114,0,114,0,114]
[null,"Female householder, no husband present:",179,89,45,37,107,65,249,109,17,11,59,29,80,45,1510,241,10,15,14,16,143,71,326,112,97,57,10,9,366,133,55,49,222,82,52,32,43,30,140,67,208,101,32,31,40,21,15,13,87,42,23,14,30,20]
[null,"Householder under 25 years",0,114,0,114,0,114,0,114,0,114,0,114,0,114,28,30,0,114,5,7,30,47,0,114,0,114,0,114,9,15,0,114,0,114,0,114,0,114,0,114,66,76,0,114,0,114,0,114,0,114,0,114,0,114]
[null,"Householder 25 to 44 years",171,92,21,24,61,52,58,44,3,4,22,18,66,42,695,179,0,114,0,114,63,44,111,58,60,46,7,8,92,58,17,26,64,53,19,18,0,114,68,55,43,36,32,31,6,7,10,15,30,25,13,12,3,4]
[null,"Householder 45 to 64 years",0,114,24,28,23,27,176,99,14,11,31,20,14,14,668,169,10,15,9,14,41,30,165,88,37,30,0,114,237,104,38,44,51,30,28,23,34,24,69,45,82,57,0,114,28,19,5,8,38,29,9,7,27,20]
[null,"Householder 65 years and over",8,14,0,114,23,28,15,23,0,114,6,10,0,114,119,68,0,114,0,114,9,14,50,33,0,114,3,4,28,31,0,114,107,59,5,8,9,14,3,9,17,25,0,114,6,7,0,114,19,17,1,4,0,114]
[null,"Nonfamily households:",497,123,243,69,353,114,429,136,104,33,211,60,173,53,6044,476,143,50,195,57,261,84,870,165,555,137,102,34,1043,192,587,168,315,95,166,57,444,146,450,124,883,212,535,136,94,37,192,63,252,80,109,35,73,33]
[null,"Male householder:",247,90,107,57,116,66,167,81,43,19,89,40,98,42,2390,323,69,30,90,33,68,37,430,122,331,125,60,28,463,154,301,118,192,71,76,39,182,85,236,88,457,182,294,128,53,27,93,34,119,55,43,25,34,24]
[null,"Householder under 25 years",10,16,0,114,0,114,0,114,0,114,0,114,0,114,227,148,11,16,8,15,0,114,30,48,39,51,0,114,44,62,0,114,0,114,5,8,0,114,38,59,67,106,13,22,0,114,3,5,0,114,4,6,0,114]
[null,"Householder 25 to 44 years",126,77,28,34,30,31,10,16,2,4,11,13,33,30,757,163,26,21,12,13,17,19,150,70,51,51,8,12,175,126,123,103,67,51,19,15,22,25,55,37,214,136,161,103,7,7,15,12,34,31,29,22,9,14]
[null,"Householder 45 to 64 years",87,45,62,42,86,54,61,51,38,19,58,30,36,23,920,193,22,16,70,28,40,30,162,78,129,76,29,19,176,80,119,73,97,49,45,38,45,55,99,57,176,131,84,71,41,25,61,31,78,40,10,9,17,17]
[null,"Householder 65 years and over",24,24,17,15,0,114,96,64,3,4,20,22,29,19,486,138,10,7,0,114,11,18,88,53,112,95,23,14,68,42,59,48,28,27,7,7,115,57,44,33,0,114,36,34,5,7,14,9,7,10,0,114,8,9]
[null,"Female householder:",250,79,136,50,237,95,262,104,61,22,122,51,75,36,3654,354,74,45,105,42,193,75,440,122,224,87,42,19,580,158,286,121,123,65,90,42,262,109,214,99,426,135,241,84,41,22,99,48,133,52,66,27,39,23]
[null,"Householder under 25 years",10,15,23,29,0,114,0,114,12,12,0,114,0,114,188,102,0,114,0,114,0,114,8,14,97,76,2,3,14,21,0,114,0,114,0,114,18,24,12,19,72,94,23,37,0,114,4,6,11,17,0,114,8,11]
[null,"Householder 25 to 44 years",8,12,15,13,29,39,0,114,8,9,46,30,16,17,871,237,18,16,14,16,0,114,105,60,28,33,0,114,112,65,34,40,17,20,2,5,17,28,73,60,93,62,30,30,0,114,9,12,9,10,17,15,0,114]
[null,"Householder 45 to 64 years",84,57,45,28,86,49,113,90,26,17,37,30,6,10,1227,169,43,41,67,35,110,54,149,74,60,35,22,17,241,119,118,75,39,30,51,32,18,29,72,61,150,65,115,52,11,10,22,16,46,27,14,9,15,17]
[null,"Householder 65 years and over",148,59,53,34,122,63,149,56,15,10,39,26,53,30,1368,219,13,12,24,20,83,52,178,66,39,32,18,10,213,78,134,81,67,56,37,23,209,97,57,39,111,65,73,42,30,18,64,44,67,33,35,21,16,12]

{"sheet":"ACS_Table_B03002","index":51,"n_rows":108,"n_cols":56,"rows_kept":108,"cut":false,"hidden":true,"merged":[]}
[null,"B03002. HISPANIC OR LATINO ORIGIN BY RACE"]
[null,"Universe:  TOTAL POPULATION"]
[null,"Data Set: 2015-2019 American Community Survey 5-Year Estimates"]
[]
[null,null,"Allenstown",null,"Andover",null,"Boscawen",null,"Bow",null,"Bradford",null,"Canterbury",null,"Chichester",null,"Concord",null,"Danbury",null,"Dunbarton",null,"Epsom",null,"Franklin",null,"Henniker",null,"Hill",null,"Hooksett",null,"Hopkinton",null,"Loudon",null,"Newbury",null,"New London",null,"Northfield",null,"Pembroke",null,"Pittsfield",null,"Salisbury",null,"Sutton",null,"Warner",null,"Webster",null,"Wilmot"]
[null,null,"Estimate","Margin Of Error","Estimate","Margin Of Error","Estimate","Margin Of Error","Estimate","Margin Of Error","Estimate","Margin Of Error","Estimate","Margin Of Error","Estimate","Margin Of Error","Estimate","Margin Of Error","Estimate","Margin Of Error","Estimate","Margin Of Error","Estimate","Margin Of Error","Estimate","Margin Of Error","Estimate","Margin Of Error","Estimate","Margin Of Error","Estimate","Margin Of Error","Estimate","Margin Of Error","Estimate","Margin Of Error","Estimate","Margin Of Error","Estimate","Margin Of Error","Estimate","Margin Of Error","Estimate","Margin Of Error","Estimate","Margin Of Error","Estimate","Margin Of Error","Estimate","Margin Of Error","Estimate","Margin Of Error","Estimate","Margin Of Error","Estimate","Margin Of Error"]
[null,"Total:",4390,22,2782,321,4004,15,7862,25,1587,214,2357,148,2662,29,43244,42,1129,165,2827,19,4722,18,8623,31,4962,17,920,148,14289,30,5691,29,5534,19,2096,214,4390,16,4881,26,7187,32,4117,16,1422,182,1905,279,2910,20,1781,185,1643,215]
[null,"Not Hispanic or Latino:",4367,42,2768,323,3971,36,7643,137,1579,213,2226,166,2615,50,41967,287,1122,164,2751,52,4651,101,8399,112,4861,82,906,148,13885,181,5665,63,5534,19,2082,213,4315,61,4802,77,7027,118,4008,129,1422,182,1887,278,2823,67,1772,185,1636,216]
[null,"White alone",4094,146,2713,316,3923,41,7474,142,1557,208,2160,171,2459,108,37229,468,1093,161,2687,77,4469,179,8175,181,4694,122,906,148,13159,326,5558,106,5484,74,2016,211,4164,98,4516,169,6798,166,3963,134,1403,181,1807,281,2719,83,1749,182,1591,209]
[null,"Black or African American alone",36,48,0,11,9,14,16,24,2,4,31,24,0,11,1456,301,7,10,25,33,0,11,12,18,77,54,0,11,201,137,19,30,0,16,0,11,47,36,37,40,14,23,0,11,0,11,4,6,47,36,0,11,0,11]
[null,"American Indian and Alaska Native alone",1,3,0,11,4,8,0,16,12,19,0,11,5,7,252,108,14,18,2,4,0,11,0,16,0,11,0,11,35,56,0,16,0,16,0,11,0,11,26,41,0,16,0,11,0,11,14,20,9,13,0,11,0,11]
[null,"Asian alone",48,53,38,33,20,23,113,78,5,7,20,21,61,42,2030,378,5,7,28,33,35,43,73,89,31,32,0,11,273,239,0,16,0,16,36,43,83,59,115,95,20,29,30,36,6,9,29,31,12,17,0,11,24,25]
[null,"Native Hawaiian and Other Pacific Islander alone",0,11,0,11,0,11,0,16,0,11,0,11,0,11,0,24,0,11,0,11,0,11,0,16,0,11,0,11,0,18,0,16,0,16,0,11,0,11,0,11,15,21,0,11,0,11,0,11,0,11,0,11,0,11]
[null,"Some other race alone",9,14,12,17,0,11,0,16,0,11,6,8,0,11,211,197,0,11,0,11,5,14,0,16,0,11,0,11,0,18,0,16,0,16,0,11,0,11,0,11,0,16,0,11,0,11,0,11,8,12,0,11,0,11]
[null,"Two or more races:",179,121,5,9,15,22,40,30,3,5,9,11,90,67,789,232,3,5,9,10,142,143,139,136,59,49,0,11,217,139,88,67,50,72,30,28,21,25,108,115,180,121,15,19,13,20,33,24,28,27,23,27,21,26]
[null,"Two races including Some other race",0,11,0,11,0,11,0,16,0,11,0,11,16,26,6,12,0,11,0,11,0,11,0,16,0,11,0,11,0,18,0,16,0,16,0,11,16,24,0,11,0,16,0,11,0,11,0,11,0,11,0,11,8,10]
[null,"Two races excluding Some other race, and three or more races",179,121,5,9,15,22,40,30,3,5,9,11,74,62,783,228,3,5,9,10,142,143,139,136,59,49,0,11,217,139,88,67,50,72,30,28,5,9,108,115,180,121,15,19,13,20,33,24,28,27,23,27,13,23]
[null,"Hispanic or Latino:",23,36,14,22,33,30,219,137,8,9,131,104,47,44,1277,277,7,10,76,58,71,101,224,107,101,82,14,16,404,179,26,59,0,16,14,17,75,58,79,72,160,115,109,127,0,11,18,22,87,61,9,11,7,9]
[null,"White alone",23,36,14,22,17,26,139,119,0,11,131,104,39,42,877,251,0,11,61,52,71,101,210,108,85,78,14,16,266,114,0,16,0,16,14,17,64,56,62,68,146,111,109,127,0,11,18,22,81,58,9,11,7,9]
[null,"Black or African American alone",0,11,0,11,0,11,0,16,0,11,0,11,0,11,44,37,7,10,0,11,0,11,0,16,15,28,0,11,21,22,0,16,0,16,0,11,6,11,0,11,0,16,0,11,0,11,0,11,6,12,0,11,0,11]
[null,"American Indian and Alaska Native alone",0,11,0,11,0,11,18,29,5,7,0,11,0,11,13,17,0,11,0,11,0,11,0,16,0,11,0,11,0,18,0,16,0,16,0,11,0,11,17,27,0,16,0,11,0,11,0,11,0,11,0,11,0,11]
[null,"Asian alone",0,11,0,11,0,11,0,16,0,11,0,11,0,11,0,24,0,11,0,11,0,11,0,16,0,11,0,11,0,18,0,16,0,16,0,11,0,11,0,11,0,16,0,11,0,11,0,11,0,11,0,11,0,11]
[null,"Native Hawaiian and Other Pacific Islander alone",0,11,0,11,0,11,0,16,0,11,0,11,0,11,0,24,0,11,0,11,0,11,0,16,0,11,0,11,0,18,0,16,0,16,0,11,0,11,0,11,0,16,0,11,0,11,0,11,0,11,0,11,0,11]
[null,"Some other race alone",0,11,0,11,16,20,43,46,3,6,0,11,0,11,145,81,0,11,0,11,0,11,14,21,1,3,0,11,103,109,0,16,0,16,0,11,0,11,0,11,0,16,0,11,0,11,0,11,0,11,0,11,0,11]
[null,"Two or more races:",0,11,0,11,0,11,19,29,0,11,0,11,8,12,198,167,0,11,15,22,0,11,0,16,0,11,0,11,14,22,26,59,0,16,0,11,5,10,0,11,14,23,0,11,0,11,0,11,0,11,0,11,0,11]
[null,"Two races including Some other race",0,11,0,11,0,11,19,29,0,11,0,11,0,11,24,25,0,11,15,22,0,11,0,16,0,11,0,11,14,22,0,16,0,16,0,11,0,11,0,11,0,16,0,11,0,11,0,11,0,11,0,11,0,11]
[null,"Two races excluding Some other race, and three or more races",0,11,0,11,0,11,0,16,0,11,0,11,8,12,174,164,0,11,0,11,0,11,0,16,0,11,0,11,0,18,26,59,0,16,0,11,5,10,0,11,14,23,0,11,0,11,0,11,0,11,0,11,0,11]
[]
["Calculated B03002. HISPANIC OR LATINO ORIGIN BY RACE"]
[]
[null,null,"Allenstown",null,"Andover",null,"Boscawen",null,"Bow",null,"Bradford",null,"Canterbury",null,"Chichester",null,"Concord",null,"Danbury",null,"Dunbarton",null,"Epsom",null,"Franklin",null,"Henniker",null,"Hill",null,"Hooksett",null,"Hopkinton",null,"Loudon",null,"Newbury",null,"New London",null,"Northfield",null,"Pembroke",null,"Pittsfield",null,"Salisbury",null,"Sutton",null,"Warner",null,"Webster",null,"Wilmot"]
[null,null,"Estimate","Margin Of Error","Estimate","Margin Of Error","Estimate","Margin Of Error","Estimate","Margin Of Error","Estimate","Margin Of Error","Estimate","Margin Of Error","Estimate","Margin Of Error","Estimate","Margin Of Error","Estimate","Margin Of Error","Estimate","Margin Of Error","Estimate","Margin Of Error","Estimate","Margin Of Error","Estimate","Margin Of Error","Estimate","Margin Of Error","Estimate","Margin Of Error","Estimate","Margin Of Error","Estimate","Margin Of Error","Estimate","Margin Of Error","Estimate","Margin Of Error","Estimate","Margin Of Error","Estimate","Margin Of Error","Estimate","Margin Of Error","Estimate","Margin Of Error","Estimate","Margin Of Error","Estimate","Margin Of Error","Estimate","Margin Of Error","Estimate","Margin Of Error"]
[null,"Total:",4364,28,2503,234,3969,17,7571,34,1466,204,2419,143,2532,16,42767,36,1218,225,2756,18,4572,18,8499,24,4839,14,1210,201,13469,37,5608,16,5307,16,2103,252,4410,16,4848,31,7140,24,4104,33,1289,174,1794,251,2846,19,1749,161,1390,196]
[null,"Not Hispanic or Latino:",4172,134,2486,232,3950,26,7514,77,1466,204,2349,159,2521,20,41820,198,1218,225,2731,28,4563,26,8453,51,4734,85,1210,201,13053,177,5588,31,5286,29,2085,255,4367,45,4788,67,6917,158,4063,55,1280,173,1785,247,2806,40,1746,160,1383,195]
[null,"White",4093,142,2399,228,3887,61,7353,137,1402,188,2334,158,2462,68,39083,463,1197,227,2609,83,4506,65,8050,268,4630,119,1195,193,12529,292,5449,117,5098,134,2026,252,4232,90,4426,322,6736,203,3856,171,1234,170,1669,239,2752,58,1738,159,1318,170]
[null,"Black",15,18,0,11,33,38,0,16,0,11,4,7,0,11,1050,213,0,11,0,11,0,11,118,104,56,73,0,11,78,68,0,16,6,13,0,11,22,21,14,22,0,16,79,104,9,13,1,3,0,11,0,11,0,11]
[null,"American Indian",0,11,0,11,3,7,0,16,4,5,0,11,5,8,49,35,2,3,10,11,0,11,0,16,19,25,7,15,3,6,0,16,0,16,0,11,26,28,0,11,0,16,0,11,0,11,0,11,16,24,0,11,0,11]
[null,"Asian &Pacific Is.",14,24.596747752497688,0,15.556349186104045,0,15.556349186104045,103,107.35455276791944,33,49.244289008980523,11,19.416487838947599,0,15.556349186104045,1008,348.82660448996717,0,15.556349186104045,26,27.313000567495326,0,15.556349186104045,196,213.60009363293827,21,29.154759474226502,0,15.556349186104045,354,250.64716236175505,61,75.709972922990801,0,22.627416997969522,0,15.556349186104045,0,15.556349186104045,240,305.19829619445778,40,52.497618993626752,86,133.45411196362591,0,15.556349186104045,54,42.059481689626182,0,15.556349186104045,0,15.556349186104045,22,26.40075756488817]
[null,"Other*",50,47.296934361541872,87,61.98386886924694,27,27.313000567495326,58,63.063460101710248,27,24.596747752497688,0,15.556349186104045,54,64.938432380216881,630,234.88720697390056,19,21.587033144922902,86,67.623960250786851,57,59.033888572581766,89,61.1310068623117,8,18.601075237738275,8,18.601075237738275,89,64.560049566275893,78,91.411159056211517,182,128.00390619039717,59,46.324939287601879,87,78.771822373231913,108,103.58571330062848,141,130.98091464026353,42,30.083217912982647,37,33.837848631377263,61,41.773197148410844,38,37.643060449437421,8,17.029386365926403,43,42.449970553582247]
[null,"Hispanic or Latino:",192,131,17,24,19,20,57,64,0,11,70,56,11,16,947,192,0,11,25,23,9,19,46,47,105,88,0,11,416,176,20,25,21,20,18,19,43,40,60,61,223,155,41,47,9,11,9,17,40,37,3,5,7,11]
[]
[]
[]
[]
[]
[]
[]
[]
[]
[]
[]
[]
[]
[]
[]
[]
[]
[]
[]
[]
[]
[]
[]
[]
[]
[]
[]
[]
[]
[]
[]
[]
[]
[]
[]
[]
[]
[null,"Calculated B03002. HISPANIC OR LATINO ORIGIN BY RACE"]
[null,"Universe:  TOTAL POPULATION"]
[null,"Data Set: 2010-2014 American Community Survey 5-Year Estimates"]
[]
[null,null,"Allenstown",null,"Andover",null,"Boscawen",null,"Bow",null,"Bradford",null,"Canterbury",null,"Chichester",null,"Concord",null,"Danbury",null,"Dunbarton",null,"Epsom",null,"Franklin",null,"Henniker",null,"Hill",null,"Hooksett",null,"Hopkinton",null,"Loudon",null,"Newbury",null,"New London",null,"Northfield",null,"Pembroke",null,"Pittsfield",null,"Salisbury",null,"Sutton",null,"Warner",null,"Webster",null,"Wilmot"]
[null,null,"Estimate","Margin Of Error","Estimate","Margin Of Error","Estimate","Margin Of Error","Estimate","Margin Of Error","Estimate","Margin Of Error","Estimate","Margin Of Error","Estimate","Margin Of Error","Estimate","Margin Of Error","Estimate","Margin Of Error","Estimate","Margin Of Error","Estimate","Margin Of Error","Estimate","Margin Of Error","Estimate","Margin Of Error","Estimate","Margin Of Error","Estimate","Margin Of Error","Estimate","Margin Of Error","Estimate","Margin Of Error","Estimate","Margin Of Error","Estimate","Margin Of Error","Estimate","Margin Of Error","Estimate","Margin Of Error","Estimate","Margin Of Error","Estimate","Margin Of Error","Estimate","Margin Of Error","Estimate","Margin Of Error","Estimate","Margin Of Error","Estimate","Margin Of Error"]
[null,"Total:",4303,22,2428,252,3962,17,7611,29,1706,205,2291,204,2552,18,42514,41,1243,186,2779,17,4597,18,8462,36,4822,22,1164,184,13669,50,5591,23,5343,19,1749,234,4539,17,4823,17,7121,29,4082,28,1406,161,2014,287,2851,20,1891,199,1367,181]
[null,"Not Hispanic or Latino:",4227,77,2410,250,3912,52,7487,120,1690,201,2256,209,2540,26,41726,196,1243,186,2760,29,4595,25,8269,117,4705,90,1164,184,13059,234,5565,37,5323,30,1737,231,4421,60,4730,72,6948,120,4020,58,1400,162,2006,285,2802,38,1886,198,1367,181]
[null,"White",4154,91,2312,238,3858,57,7264,164,1637,197,2244,208,2475,66,38376,349,1227,186,2658,77,4554,45,7893,220,4635,106,1144,180,12551,346,5374,128,5122,154,1699,230,4236,84,4504,218,6785,136,3814,162,1332,145,1928,277,2769,55,1825,174,1330,180]
[null,"Black",36,33,5,11,9,12,0,15,4,6,12,14,6,11,992,228,4,7,10,20,0,11,159,135,24,24,0,11,83,84,29,46,0,15,0,11,51,41,30,49,0,15,63,84,9,15,11,19,0,11,0,11,7,11]
[null,"American Indian",0,11,0,11,0,11,0,15,2,3,0,11,3,6,20,19,0,11,14,15,0,11,0,15,18,26,6,9,4,7,0,15,0,15,0,11,14,20,0,11,0,15,0,11,0,11,0,11,7,9,1,3,0,11]
[null,"Asian &Pacific Is.",18,27.313000567495326,36,39.560080889704963,0,15.556349186104045,110,75.584389922787622,33,38.600518131237564,0,15.556349186104045,0,15.556349186104045,1396,268.98512970050967,0,15.556349186104045,17,19.416487838947599,0,15.556349186104045,92,115.97413504743201,10,17.029386365926403,0,15.556349186104045,261,201.71762441591463,45,71.589105316381762,0,21.213203435596427,0,15.556349186104045,57,50.219518117958877,132,189.31983519959022,142,106.06601717798213,103,124.48694710691559,0,15.556349186104045,41,34.058772731852805,0,15.556349186104045,0,15.556349186104045,17,23.706539182259394]
[null,"Other*",19,15,57,41.484937025383083,45,41.484937025383083,113,81.394102980498531,14,18.601075237738275,0,15.556349186104045,56,61.98386886924694,942,300.98671067008922,12,14.866068747318506,61,51.61395160225576,41,38.013155617496423,125,77.103826104804938,18,20.518284528683193,14,16.124515496597098,160,87.664131775772461,117,99.141313285632847,201,150.74813431681335,38,35.735136770411273,63,50.219518117958877,64,74.813100457072352,21,32.649655434629018,40,47.296934361541872,59,51.195702944680818,26,26.40075756488817,26,33.837848631377263,60,67.896980787071826,13,18.601075237738275]
[null,"Hispanic or Latino:",76,73,18,22,50,46,124,115,16,17,35,38,12,19,788,187,0,11,19,23,2,17,193,111,117,91,0,11,610,237,26,33,20,24,12,13,118,61,93,71,173,116,62,53,6,7,8,13,49,36,5,7,0,11]
[]
[]
[]
[null,"Calculated B03002. HISPANIC OR LATINO ORIGIN BY RACE"]
[null,"Universe:  TOTAL POPULATION"]
[null,"Data Set: 2005-2009 American Community Survey 5-Year Estimates"]
[]
[null,null,"Allenstown",null,"Andover",null,"Boscawen",null,"Bow",null,"Bradford",null,"Canterbury",null,"Chichester",null,"Concord",null,"Danbury",null,"Dunbarton",null,"Epsom",null,"Franklin",null,"Henniker",null,"Hill",null,"Hooksett",null,"Hopkinton",null,"Loudon",null,"Newbury",null,"New London",null,"Northfield",null,"Pembroke",null,"Pittsfield",null,"Salisbury",null,"Sutton",null,"Warner",null,"Webster",null,"Wilmot"]
[null,null,"Estimate","Margin Of Error","Estimate","Margin Of Error","Estimate","Margin Of Error","Estimate","Margin Of Error","Estimate","Margin Of Error","Estimate","Margin Of Error","Estimate","Margin Of Error","Estimate","Margin Of Error","Estimate","Margin Of Error","Estimate","Margin Of Error","Estimate","Margin Of Error","Estimate","Margin Of Error","Estimate","Margin Of Error","Estimate","Margin Of Error","Estimate","Margin Of Error","Estimate","Margin Of Error","Estimate","Margin Of Error","Estimate","Margin Of Error","Estimate","Margin Of Error","Estimate","Margin Of Error","Estimate","Margin Of Error","Estimate","Margin Of Error","Estimate","Margin Of Error","Estimate","Margin Of Error","Estimate","Margin Of Error","Estimate","Margin Of Error","Estimate","Margin Of Error"]
[null,"Total:",4956,29,2279,210,3931,25,8053,35,1237,178,2347,168,2533,28,42397,26,1351,245,2624,62,4563,45,8748,25,5015,42,1174,186,13724,19,5603,25,5141,17,2293,294,4447,22,5101,24,7335,40,4367,25,1203,126,1700,303,2960,17,1807,147,1267,178]
[null,"Not Hispanic or Latino:",4608,162,2253,211,3931,25,8053,35,1223,177,2315,173,2529,28,41504,234,1351,245,2597,70,4563,45,8700,68,4921,77,1168,186,13593,81,5552,69,5128,26,2278,295,4447,22,5059,60,7091,202,4367,25,1198,126,1683,303,2878,61,1807,147,1250,179]
[null,"White",4401,199,2183,199,3916,35,7972,82,1166,168,2249,178,2517,31,39289,367,1249,221,2534,95,4533,55,8458,155,4799,110,1151,185,12984,301,5510,84,5008,122,2149,283,4406,55,4912,128,6748,289,4289,79,1165,123,1610,308,2804,86,1799,149,1224,170]
[null,"Black",0,114,0,114,15,27,0,114,0,114,0,114,0,114,758,214,0,114,0,114,0,114,66,68,49,58,0,114,189,179,0,114,21,26,0,114,0,114,21,32,37,58,0,114,0,114,0,114,0,114,0,114,0,114]
[null,"American Indian",47,61,0,114,0,114,0,114,4,5,25,43,0,114,87,52,4,7,0,114,0,114,22,37,28,38,0,114,13,21,0,114,0,114,0,114,0,114,0,114,0,114,0,114,0,114,11,14,48,54,0,114,0,114]
[null,"Asian &Pacific Is.",96,89.560035730229586,29,123.30855606972291,0,161.22034611053283,81,133.77593206552515,9,114.73883387938018,17,115.91807451816995,6,114.43775600735974,983,253.12447530809817,54,134.83323032546539,18,116.29703349613007,0,161.22034611053283,129,166.24379687675568,45,122.93087488503447,0,161.22034611053283,351,266.60270066148991,24,122.93087488503447,0,161.22034611053283,0,161.22034611053283,0,161.22034611053283,7,114.73883387938018,49,138.13037319865606,0,161.22034611053283,6,114.43775600735974,25,118.68024266911489,0,161.22034611053283,0,161.22034611053283,5,114.43775600735974]
[null,"Other*",64,126.14277624977183,41,120.16655108639841,0,161.22034611053283,0,161.22034611053283,44,121.14866899805379,24,18.439088914585774,6,114.35471131527551,387,208.0192298803166,44,122.19656296312102,45,123.30855606972291,30,34.014702703389901,25,117.38824472663352,0,161.22034611053283,17,18.788294228055936,56,53.225933528685054,18,116.92732785794773,99,154.31137352768266,129,139.26952286842948,41,124.08464852672147,119,154.31137352768266,257,213.06337085477645,78,134.83323032546539,27,24.738633753705962,37,29.120439557122072,26,119.25183436744275,8,114.35471131527551,21,116.10340218959993]
[null,"Hispanic or Latino:",348,164,26,28,0,114,0,114,14,14,32,30,4,8,893,231,0,114,27,24,0,114,48,63,94,62,6,9,131,75,51,66,13,20,15,16,0,114,42,54,244,196,0,114,5,9,17,26,82,58,0,114,17,19]

{"sheet":"RentalHousingCost","index":52,"n_rows":124,"n_cols":21,"rows_kept":124,"cut":false,"hidden":true,"merged":[]}
[]
[null,null,"HIDE THIS COLUMN",{"$f":"CntyDataLink!A70","v":"Allenstown"}]
[]
[null,null,null,"RENTAL HOUSING COST CHARACTERISTICS"]
[]
[]
[]
[]
[]
[]
[]
[]
[]
[]
[]
[]
[]
[]
[]
[]
[]
[]
[]
[]
[]
[]
[]
[]
[]
[]
[]
[]
[]
[]
[]
[]
[]
[]
[null,null,null,"Source:  2015-2019 American Community Survey Table B25074"]
[]
[null,null,null,"Income in 2019 Inflation Adjusted Dollars"]
[null,null,null,"Data from the American Community Survey are estimates"]
[null,null,null,{"$f":"CntyDataLink!A70","v":"Allenstown"}]
[]
[null,null,null,{"$f":"D4","v":"RENTAL HOUSING COST CHARACTERISTICS"}]
[]
[null,null,null,"Renter Households by "]
[null,null,null,"Gross Rent as a Percent of 2018 Household Income"]
[null,null,null,null,null,null,"By Household Income"]
[null,null,{"$f":"CntyDataLink!AO$69","v":"H73RenterOccHU"},null,"Specified Renter Occ Housing Units",{"$f":"\"Margin of Error Renter Occupied Units\"","v":"Margin of Error Renter Occupied Units"},null,"Less than $10,000",{"$f":"\"Margin of Error \"&H50","v":"Margin of Error Less than $10,000"},"$10,000 to $19,999",{"$f":"\"Margin of Error \"&J50","v":"Margin of Error $10,000 to $19,999"},"$20,000 to $34,999",{"$f":"\"Margin of Error \"&L50","v":"Margin of Error $20,000 to $34,999"},"$35,000 to $49,999",{"$f":"\"Margin of Error \"&N50","v":"Margin of Error $35,000 to $49,999"},"$50,000 to $74,999",{"$f":"\"Margin of Error \"&P50","v":"Margin of Error $50,000 to $74,999"},"$75,000 to $99,999",{"$f":"\"Margin of Error \"&R50","v":"Margin of Error $75,000 to $99,999"},"$100,000 or More",{"$f":"\"Margin of Error \"&T50","v":"Margin of Error $100,000 or More"}]
[]
[null,null,null,"All Renter Households",{"$f":"CntyDataLink!$B$156","v":476},{"$f":"CntyDataLink!$C$156","v":112},null,{"$f":"CntyDataLink!$BH$148","v":16},{"$f":"CntyDataLink!$BI$148","v":20},{"$f":"CntyDataLink!$BZ$148","v":164},{"$f":"CntyDataLink!$CA$148","v":67},{"$f":"CntyDataLink!$CR$148","v":46},{"$f":"CntyDataLink!$CS$148","v":31},{"$f":"CntyDataLink!$DJ$148","v":81},{"$f":"CntyDataLink!$DK$148","v":56},{"$f":"CntyDataLink!$EB$148","v":109},{"$f":"CntyDataLink!$EC$148","v":61},{"$f":"CntyDataLink!$ET$148","v":25},{"$f":"CntyDataLink!$EU$148","v":23},{"$f":"CntyDataLink!$FL$148","v":35},{"$f":"CntyDataLink!$FM$148","v":40}]
[null,null,null,"Rent Less than 20% of HH Income",{"$f":"CntyDataLink!$D$156","v":111},{"$f":"CntyDataLink!$E$156","v":70.242437315343778},null,{"$f":"CntyDataLink!$BJ$148","v":0},{"$f":"CntyDataLink!$BK$148","v":11},{"$f":"CntyDataLink!$CB$148","v":30},{"$f":"CntyDataLink!$CC$148","v":49},{"$f":"CntyDataLink!$CT$148","v":0},{"$f":"CntyDataLink!$CU$148","v":11},{"$f":"CntyDataLink!$DL$148","v":0},{"$f":"CntyDataLink!$DM$148","v":11},{"$f":"CntyDataLink!$ED$148","v":46},{"$f":"CntyDataLink!$EE$148","v":32},{"$f":"CntyDataLink!$EV$148","v":0},{"$f":"CntyDataLink!$EW$148","v":11},{"$f":"CntyDataLink!$FN$148","v":35},{"$f":"CntyDataLink!$FO$148","v":40}]
[null,null,null,"Rent 20% to 24.9% of HH Income",{"$f":"CntyDataLink!$F$156","v":51},{"$f":"CntyDataLink!$G$156","v":39},null,{"$f":"CntyDataLink!$BL$148","v":0},{"$f":"CntyDataLink!$BM$148","v":11},{"$f":"CntyDataLink!$CD$148","v":20},{"$f":"CntyDataLink!$CE$148","v":24},{"$f":"CntyDataLink!$CV$148","v":0},{"$f":"CntyDataLink!$CW$148","v":11},{"$f":"CntyDataLink!$DN$148","v":15},{"$f":"CntyDataLink!$DO$148","v":23},{"$f":"CntyDataLink!$EF$148","v":10},{"$f":"CntyDataLink!$EG$148","v":15},{"$f":"CntyDataLink!$EX$148","v":6},{"$f":"CntyDataLink!$EY$148","v":9},{"$f":"CntyDataLink!$FP$148","v":0},{"$f":"CntyDataLink!$FQ$148","v":11}]
[null,null,null,"Rent 25% to 29.9% of HH Income",{"$f":"CntyDataLink!$H$156","v":45},{"$f":"CntyDataLink!$I$156","v":33},null,{"$f":"CntyDataLink!$BN$148","v":0},{"$f":"CntyDataLink!$BO$148","v":11},{"$f":"CntyDataLink!$CF$148","v":11},{"$f":"CntyDataLink!$CG$148","v":17},{"$f":"CntyDataLink!$CX$148","v":11},{"$f":"CntyDataLink!$CY$148","v":16},{"$f":"CntyDataLink!$DP$148","v":15},{"$f":"CntyDataLink!$DQ$148","v":18},{"$f":"CntyDataLink!$EH$148","v":0},{"$f":"CntyDataLink!$EI$148","v":11},{"$f":"CntyDataLink!$EZ$148","v":8},{"$f":"CntyDataLink!$FA$148","v":13},{"$f":"CntyDataLink!$FR$148","v":0},{"$f":"CntyDataLink!$FS$148","v":11}]
[null,null,null,"Rent Less Than 30% of HH Income",{"$f":"CntyDataLink!$J$156","v":207},{"$f":"CntyDataLink!$K$156","v":86.856203002433858},null,{"$f":"SUM(H53:H55)","v":0},{"$f":"SQRT((I53^2)+(I54^2)+(I55^2))","v":19.05255888325765},{"$f":"SUM(J53:J55)","v":61},{"$f":"SQRT((K53^2)+(K54^2)+(K55^2))","v":57.148928248918196},{"$f":"SUM(L53:L55)","v":11},{"$f":"SQRT((M53^2)+(M54^2)+(M55^2))","v":22.315913604421397},{"$f":"SUM(N53:N55)","v":30},{"$f":"SQRT((O53^2)+(O54^2)+(O55^2))","v":31.208973068654469},{"$f":"SUM(P53:P55)","v":56},{"$f":"SQRT((Q53^2)+(Q54^2)+(Q55^2))","v":37.013511046643494},{"$f":"SUM(R53:R55)","v":14},{"$f":"SQRT((S53^2)+(S54^2)+(S55^2))","v":19.261360284258224},{"$f":"SUM(T53:T55)","v":35},{"$f":"SQRT((U53^2)+(U54^2)+(U55^2))","v":42.918527467749868}]
[null,null,null,"Rent 30% or More of HH Income",{"$f":"CntyDataLink!$L$156","v":248},{"$f":"CntyDataLink!$M$156","v":99.679486355016891},null,{"$f":"H60+H58","v":16},{"$f":"SQRT((I58^2)+(I60^2))","v":27.622454633866266},{"$f":"J60+J58","v":103},{"$f":"SQRT((K58^2)+(K60^2))","v":64.861390672726102},{"$f":"L60+L58","v":35},{"$f":"SQRT((M58^2)+(M60^2))","v":28.530685235374211},{"$f":"N60+N58","v":41},{"$f":"SQRT((O58^2)+(O60^2))","v":52.57375771237966},53,{"$f":"SQRT((Q58^2)+(Q60^2))","v":54.690035655501269},{"$f":"R60+R58","v":0},{"$f":"SQRT((S58^2)+(S60^2))","v":22},0,{"$f":"SQRT((U58^2)+(U60^2))","v":22}]
[null,null,null,"Rent 30% to 34.9% of HH Income",{"$f":"CntyDataLink!$N$156","v":24},{"$f":"CntyDataLink!$O$156","v":30},null,{"$f":"CntyDataLink!$BP$148","v":0},{"$f":"CntyDataLink!$BQ$148","v":11},{"$f":"CntyDataLink!$CH$148","v":0},{"$f":"CntyDataLink!$CI$148","v":11},{"$f":"CntyDataLink!$CZ$148","v":0},{"$f":"CntyDataLink!$DA$148","v":11},{"$f":"CntyDataLink!$DR$148","v":0},{"$f":"CntyDataLink!$DS$148","v":11},{"$f":"CntyDataLink!$EJ$148","v":24},{"$f":"CntyDataLink!$EK$148","v":30},{"$f":"CntyDataLink!$FB$148","v":0},{"$f":"CntyDataLink!$FC$148","v":11},{"$f":"CntyDataLink!$FT$148","v":0},{"$f":"CntyDataLink!$FU$148","v":11}]
[null,null,null,"Rent Less Than 35% of HH Income",{"$f":"CntyDataLink!$P$156","v":231},{"$f":"CntyDataLink!$Q$156","v":91.891240061281138},null,{"$f":"SUM(H56,H58)","v":0},{"$f":"SQRT((I56^2)+(I58^2))","v":22},{"$f":"SUM(J56,J58)","v":61},{"$f":"SQRT((K56^2)+(K58^2))","v":58.197938107805847},{"$f":"SUM(L56,L58)","v":11},{"$f":"SQRT((M56^2)+(M58^2))","v":24.879710609249457},30,42.208973068654473,80,{"$f":"SQRT((Q58^2)+(Q56^2))","v":47.644516998286385},{"$f":"SUM(R56,R58)","v":14},{"$f":"SQRT((S58^2)+(S56^2))","v":22.181073012818835},35,{"$f":"SQRT((U58^2)+(U56^2))","v":44.305755833751441}]
[null,null,null,"Rent 35% or More of HH Income",{"$f":"CntyDataLink!$R$156","v":224},{"$f":"CntyDataLink!$S$156","v":95.057877106529162},null,{"$f":"CntyDataLink!$BR$148+CntyDataLink!$BT$148+CntyDataLink!$BV$148","v":16},{"$f":"SQRT((CntyDataLink!$BS$148^2)+(CntyDataLink!$BU$148^2)+(CntyDataLink!$BW$148^2))","v":25.337718918639855},{"$f":"CntyDataLink!$CJ$148+CntyDataLink!$CL$148+CntyDataLink!$CN$148","v":103},{"$f":"SQRT((CntyDataLink!$CK$148^2)+(CntyDataLink!$CM$148^2)+(CntyDataLink!$CO$148^2))","v":63.921827257987552},{"$f":"CntyDataLink!$DB$148+CntyDataLink!$DD$148+CntyDataLink!$DF$148","v":35},{"$f":"SQRT((CntyDataLink!$DC$148^2)+(CntyDataLink!$DE$148^2)+(CntyDataLink!$DG$148^2))","v":26.324893162176366},{"$f":"CntyDataLink!$DT$148+CntyDataLink!$DV$148+CntyDataLink!$DX$148","v":41},{"$f":"SQRT((CntyDataLink!$DU$148^2)+(CntyDataLink!$DW$148^2)+(CntyDataLink!$DY$148^2))","v":51.410115736107812},{"$f":"CntyDataLink!$EL$148+CntyDataLink!$EN$148+CntyDataLink!$EP$148","v":29},{"$f":"SQRT((CntyDataLink!$EM$148^2)+(CntyDataLink!$EO$148^2)+(CntyDataLink!$EQ$148^2))","v":45.727453460694704},{"$f":"CntyDataLink!$FD$148+CntyDataLink!$FF$148+CntyDataLink!$FH$148","v":0},{"$f":"SQRT((CntyDataLink!$FE$148^2)+(CntyDataLink!$FG$148^2)+(CntyDataLink!$FI$148^2))","v":19.05255888325765},{"$f":"CntyDataLink!$FV$148+CntyDataLink!$FX$148+CntyDataLink!$FZ$148","v":0},{"$f":"SQRT((CntyDataLink!$FW$148^2)+(CntyDataLink!$FY$148^2)+(CntyDataLink!$GA$148^2))","v":19.05255888325765}]
[null,null,null,"Rent 50% or More of HH Income",{"$f":"CntyDataLink!$T$156","v":127},{"$f":"CntyDataLink!$U$156","v":66},null,{"$f":"CntyDataLink!$BV$148","v":16},{"$f":"CntyDataLink!$BW$148","v":20},{"$f":"CntyDataLink!$CN$148","v":103},{"$f":"CntyDataLink!$CO$148","v":62},{"$f":"CntyDataLink!$DF$148","v":8},{"$f":"CntyDataLink!$DG$148","v":12},{"$f":"CntyDataLink!$DX$148","v":0},{"$f":"CntyDataLink!$DY$148","v":11},{"$f":"CntyDataLink!$EP$148","v":0},{"$f":"CntyDataLink!$EQ$148","v":11},{"$f":"CntyDataLink!$FH$148","v":0},{"$f":"CntyDataLink!$FI$148","v":11},{"$f":"CntyDataLink!$FZ$148","v":0},{"$f":"CntyDataLink!$GA$148","v":11}]
[null,null,null,"Percent not computed",{"$f":"CntyDataLink!$V$156","v":21},{"$f":"CntyDataLink!$W$156","v":23},null,{"$f":"CntyDataLink!$BX$148","v":0},{"$f":"CntyDataLink!$BY$148","v":11},{"$f":"CntyDataLink!$CP$148","v":0},{"$f":"CntyDataLink!$CQ$148","v":11},{"$f":"CntyDataLink!$DH$148","v":0},{"$f":"CntyDataLink!$DI$148","v":11},{"$f":"CntyDataLink!$DZ$148","v":10},{"$f":"CntyDataLink!$EA$148","v":15},{"$f":"CntyDataLink!$ER$148","v":0},{"$f":"CntyDataLink!$ES$148","v":11},{"$f":"CntyDataLink!$FJ$148","v":11},{"$f":"CntyDataLink!$FK$148","v":17},{"$f":"CntyDataLink!$GB$148","v":0},{"$f":"CntyDataLink!$GC148","v":11}]
[]
[]
[]
[null,null,null,"Percent of Households Paying ",null,null,null,"By Household Income"]
[null,null,null,{"$f":"D56","v":"Rent Less Than 30% of HH Income"},{"$f":"E56/E$52","v":0.43487394957983194},null,null,{"$f":"H56/H$52","v":0},null,{"$f":"J56/J$52","v":0.37195121951219512},null,{"$f":"L56/L$52","v":0.2391304347826087},null,{"$f":"N56/N$52","v":0.37037037037037035},null,{"$f":"P56/P$52","v":0.51376146788990829},null,{"$f":"R56/R$52","v":0.56000000000000005},null,{"$f":"T56/T$52","v":1}]
[null,null,null,{"$f":"D57","v":"Rent 30% or More of HH Income"},{"$f":"E57/E$52","v":0.52100840336134457},null,null,{"$f":"H57/H$52","v":1},null,{"$f":"J57/J$52","v":0.62804878048780488},null,{"$f":"L57/L$52","v":0.76086956521739135},null,{"$f":"N57/N$52","v":0.50617283950617287},null,{"$f":"P57/P$52","v":0.48623853211009177},null,{"$f":"R57/R$52","v":0},null,{"$f":"T57/T$52","v":0}]
[null,null,null,{"$f":"D59","v":"Rent Less Than 35% of HH Income"},{"$f":"E59/E$52","v":0.48529411764705882},null,null,{"$f":"H59/H$52","v":0},null,{"$f":"J59/J$52","v":0.37195121951219512},null,{"$f":"L59/L$52","v":0.2391304347826087},null,{"$f":"N59/N$52","v":0.37037037037037035},null,{"$f":"P59/P$52","v":0.73394495412844041},null,{"$f":"R59/R$52","v":0.56000000000000005},null,{"$f":"T59/T$52","v":1}]
[null,null,null,{"$f":"D60","v":"Rent 35% or More of HH Income"},{"$f":"E60/E$52","v":0.47058823529411764},null,null,{"$f":"H60/H$52","v":1},null,{"$f":"J60/J$52","v":0.62804878048780488},null,{"$f":"L60/L$52","v":0.76086956521739135},null,{"$f":"N60/N$52","v":0.50617283950617287},null,{"$f":"P60/P$52","v":0.26605504587155965},null,{"$f":"R60/R$52","v":0},null,{"$f":"T60/T$52","v":0}]
[null,null,null,"Rent 50% or More of HH Income",{"$f":"E61/E$52","v":0.26680672268907563},null,null,{"$f":"H61/H$52","v":1},null,{"$f":"J61/J$52","v":0.62804878048780488},null,{"$f":"L61/L$52","v":0.17391304347826086},null,{"$f":"N61/N$52","v":0},null,{"$f":"P61/P$52","v":0},null,{"$f":"R61/R$52","v":0},null,{"$f":"T61/T$52","v":0}]
[null,null,null,"Percent not computed",{"$f":"E62/E$52","v":4.4117647058823532E-2},null,null,{"$f":"H62/H$52","v":0},null,{"$f":"J62/J$52","v":0},null,{"$f":"L62/L$52","v":0},null,{"$f":"N62/N$52","v":0.12345679012345678},null,{"$f":"P62/P$52","v":0},null,{"$f":"R62/R$52","v":0.44},null,{"$f":"T62/T$52","v":0}]
[]
[]
[null,null,null,"Source:  2015-2019 American Community Survey Table B25070; B25074"]
[]
[null,null,null,{"$f":"D41","v":"Income in 2019 Inflation Adjusted Dollars"}]
[null,null,null,"Data from the American Community Survey are estimates"]
[]
[null,null,null,{"$f":"CntyDataLink!A70","v":"Allenstown"}]
[null,null,null,{"$f":"D4","v":"RENTAL HOUSING COST CHARACTERISTICS"}]
[]
[null,null,null,"Rental Housing Costs"]
[]
[null,null,null,"Renter Occupied Housing Units By Gross Rent "]
[]
[null,null,null,null,"Units","Margin of Error"]
[null,null,{"$f":"CntyDataLink!E$69","v":"H62RntrOccHU"},"Specified Renter Occ Housing Units",{"$f":"CntyDataLink!$B$148","v":476},{"$f":"CntyDataLink!$C$148","v":112}]
[null,null,{"$f":"CntyDataLink!F$69","v":"H62RntrOccHUwRent"},"Renter Occ. Housing Units w/ Cash Rent",{"$f":"CntyDataLink!$D$148","v":455},{"$f":"CntyDataLink!$E$148","v":110}]
[]
[null,null,{"$f":"CntyDataLink!G$69","v":"H62ROHUGRent<100"},"Gross Rent","Units","Margin of Error 2015-2019"]
[null,null,{"$f":"CntyDataLink!H$69","v":"H62ROHUGRent100to149"},"Less than $100",{"$f":"CntyDataLink!$F$148","v":0},{"$f":"CntyDataLink!$G$148","v":11}]
[null,null,{"$f":"CntyDataLink!I$69","v":"H62ROHUGRent150to199"},"$100 to $149",{"$f":"CntyDataLink!$H$148","v":0},{"$f":"CntyDataLink!$I$148","v":11}]
[null,null,{"$f":"CntyDataLink!J$69","v":"H62ROHUGRent200to249"},"$150 to $199",{"$f":"CntyDataLink!J$148","v":30},{"$f":"CntyDataLink!$K$148","v":49}]
[null,null,{"$f":"CntyDataLink!K$69","v":"H62ROHUGRent250to299"},"$200 to $249",{"$f":"CntyDataLink!$L$148","v":13},{"$f":"CntyDataLink!$M$148","v":20}]
[null,null,{"$f":"CntyDataLink!L$69","v":"H62ROHUGRent300to349"},"$250 to $299",{"$f":"CntyDataLink!$N$148","v":11},{"$f":"CntyDataLink!$O$148","v":17}]
[null,null,{"$f":"CntyDataLink!M$69","v":"H62ROHUGRent350to399"},"$300 to $349",{"$f":"CntyDataLink!$P$148","v":3},{"$f":"CntyDataLink!$Q$148","v":7}]
[null,null,{"$f":"CntyDataLink!N$69","v":"H62ROHUGRent400to449"},"$350 to $399",{"$f":"CntyDataLink!$R$148","v":7},{"$f":"CntyDataLink!$S$148","v":12}]
[null,null,{"$f":"CntyDataLink!O$69","v":"H62ROHUGRent450to499"},"$400 to $449",{"$f":"CntyDataLink!$T$148","v":0},{"$f":"CntyDataLink!$U$148","v":11}]
[null,null,{"$f":"CntyDataLink!P$69","v":"H62ROHUGRent500to549"},"$450 to $499",{"$f":"CntyDataLink!$V$148","v":0},{"$f":"CntyDataLink!$W$148","v":11}]
[null,null,{"$f":"CntyDataLink!Q$69","v":"H62ROHUGRent550to599"},"$500 to $549",{"$f":"CntyDataLink!$X$148","v":0},{"$f":"CntyDataLink!$Y$148","v":11}]
[null,null,{"$f":"CntyDataLink!R$69","v":"H62ROHUGRent600to649"},"$550 to $599",{"$f":"CntyDataLink!$Z$148","v":30},{"$f":"CntyDataLink!$AA$148","v":47}]
[null,null,{"$f":"CntyDataLink!S$69","v":"H62ROHUGRent650to699"},"$600 to $649",{"$f":"CntyDataLink!$AB$148","v":15},{"$f":"CntyDataLink!$AC$148","v":23}]
[null,null,{"$f":"CntyDataLink!T$69","v":"H62ROHUGRent700to749"},"$650 to $699",{"$f":"CntyDataLink!$AD$148","v":13},{"$f":"CntyDataLink!$AE$148","v":20}]
[null,null,{"$f":"CntyDataLink!U$69","v":"H62ROHUGRent750to799"},"$700 to $749",{"$f":"CntyDataLink!$AF$148","v":45},{"$f":"CntyDataLink!$AG$148","v":27}]
[null,null,{"$f":"CntyDataLink!V$69","v":"H62ROHUGRent800to899"},"$750 to $799",{"$f":"CntyDataLink!$AH$148","v":31},{"$f":"CntyDataLink!$AI$148","v":48}]
[null,null,{"$f":"CntyDataLink!W$69","v":"H62ROHUGRent900to999"},"$800 to $899",{"$f":"CntyDataLink!$AJ$148","v":35},{"$f":"CntyDataLink!$AK$148","v":30}]
[null,null,{"$f":"CntyDataLink!X$69","v":"H62ROHUGRent1000to1249"},"$900 to $999",{"$f":"CntyDataLink!$AL$148","v":10},{"$f":"CntyDataLink!$AM$148","v":15}]
[null,null,{"$f":"CntyDataLink!Y$69","v":"H62ROHUGRent1250to1499"},"$1000 to $1249",{"$f":"CntyDataLink!$AN$148","v":91},{"$f":"CntyDataLink!$AO$148","v":74}]
[null,null,{"$f":"CntyDataLink!Z$69","v":"H62ROHUGRent1500to1999"},"$1250 to $1499",{"$f":"CntyDataLink!$AP$148","v":78},{"$f":"CntyDataLink!$AQ$148","v":57}]
[null,null,{"$f":"CntyDataLink!AA$69","v":"H62ROHUGRent2000>"},"$1500 to $1999",{"$f":"CntyDataLink!$AR$148","v":43},{"$f":"CntyDataLink!$AS$148","v":48}]
[null,null,{"$f":"CntyDataLink!AB$69","v":"H62ROHUNoGRent"},"$2,000 to $2,499",{"$f":"CntyDataLink!$AT$148","v":0},{"$f":"CntyDataLink!$AU$148","v":11}]
[null,null,{"$f":"CntyDataLink!AC$69","v":"H63MedianGrossRnt"},"$2,500 to $2,999",{"$f":"CntyDataLink!$AV$148","v":0},{"$f":"CntyDataLink!$AW$148","v":11}]
[null,null,null,"$3,000 to $3,499",{"$f":"CntyDataLink!$AX$148","v":0},{"$f":"CntyDataLink!$AY$148","v":11}]
[null,null,null,"$3,500 or more",{"$f":"CntyDataLink!$AZ$148","v":0},{"$f":"CntyDataLink!$BA$148","v":11}]
[null,null,null,"Renter Occ. Housing Units w/ No Cash Rent",{"$f":"CntyDataLink!$BB$148","v":21},{"$f":"CntyDataLink!$BC$148","v":23}]
[]
[null,null,null,"Median Gross Rent",{"$f":"CntyDataLink!$BD$148","v":884},{"$f":"CntyDataLink!$BE$148","v":295}]
[]
[]
[]
[]
[null,null,null,"Source: 2015-2019 American Community Survey Table B25063; B25064"]
[null,null,null,"Data from the American Community Survey are estimates"]

{"sheet":"RentalHousingCost-Prior5Yr","index":53,"n_rows":76,"n_cols":21,"rows_kept":76,"cut":false,"hidden":true,"merged":[]}
[]
[null,null,"HIDE THIS COLUMN",{"$f":"CntyDataLink!A70","v":"Allenstown"}]
[]
[null,null,null,"RENTAL HOUSING COST CHARACTERISTICS"]
[]
[]
[]
[]
[]
[]
[]
[]
[]
[]
[]
[]
[]
[]
[]
[]
[]
[]
[]
[]
[]
[]
[]
[]
[]
[]
[]
[]
[]
[]
[]
[]
[]
[]
[null,null,null,"Source:  2010-2014 American Community Survey Table B25074"]
[]
[null,null,null,"Income in 2014 Inflation Adjusted Dollars"]
[null,null,null,"Data from the American Community Survey are estimates"]
[null,null,null,{"$f":"CntyDataLinkPrior5YearEstimates!A120","v":"Allenstown"}]
[]
[null,null,null,{"$f":"D4","v":"RENTAL HOUSING COST CHARACTERISTICS"}]
[]
[null,null,null,"Renter Households by "]
[null,null,null,"Gross Rent as a Percent of 2014 Household Income"]
[null,null,null,null,null,null,"By Household Income"]
[null,null,{"$f":"CntyDataLinkPrior5YearEstimates!AO$69","v":0},null,"Specified Renter Occ Housing Units",{"$f":"\"Margin of Error Renter Occupied Units\"","v":"Margin of Error Renter Occupied Units"},null,"Less than $10,000",{"$f":"\"Margin of Error \"&H50","v":"Margin of Error Less than $10,000"},"$10,000 to $19,999",{"$f":"\"Margin of Error \"&J50","v":"Margin of Error $10,000 to $19,999"},"$20,000 to $34,999",{"$f":"\"Margin of Error \"&L50","v":"Margin of Error $20,000 to $34,999"},"$35,000 to $49,999",{"$f":"\"Margin of Error \"&N50","v":"Margin of Error $35,000 to $49,999"},"$50,000 to $74,999",{"$f":"\"Margin of Error \"&P50","v":"Margin of Error $50,000 to $74,999"},"$75,000 to $99,999",{"$f":"\"Margin of Error \"&R50","v":"Margin of Error $75,000 to $99,999"},"$100,000 or More",{"$f":"\"Margin of Error \"&T50","v":"Margin of Error $100,000 or More"}]
[]
[null,null,null,"All Renter Households",{"$f":"CntyDataLinkPrior5YearEstimates!$B$156","v":535},{"$f":"CntyDataLinkPrior5YearEstimates!$C$156","v":128},null,{"$f":"CntyDataLinkPrior5YearEstimates!$BB$148","v":51},{"$f":"CntyDataLinkPrior5YearEstimates!$BC$148","v":75},{"$f":"CntyDataLinkPrior5YearEstimates!$BT$148","v":81},{"$f":"CntyDataLinkPrior5YearEstimates!$BU$148","v":67},{"$f":"CntyDataLinkPrior5YearEstimates!$CL$148","v":202},{"$f":"CntyDataLinkPrior5YearEstimates!$CM$148","v":101},{"$f":"CntyDataLinkPrior5YearEstimates!$DD$148","v":33},{"$f":"CntyDataLinkPrior5YearEstimates!$DE$148","v":35},{"$f":"CntyDataLinkPrior5YearEstimates!$DV$148","v":86},{"$f":"CntyDataLinkPrior5YearEstimates!$DW$148","v":58},{"$f":"CntyDataLinkPrior5YearEstimates!$EN$148","v":44},{"$f":"CntyDataLinkPrior5YearEstimates!$EO$148","v":30},{"$f":"CntyDataLinkPrior5YearEstimates!$FF$148","v":38},{"$f":"CntyDataLinkPrior5YearEstimates!$FG$148","v":44}]
[null,null,null,"Rent Less than 20% of HH Income",{"$f":"CntyDataLinkPrior5YearEstimates!$D$156","v":17},{"$f":"CntyDataLinkPrior5YearEstimates!$E$156","v":20},null,{"$f":"CntyDataLinkPrior5YearEstimates!$BD$148","v":0},{"$f":"CntyDataLinkPrior5YearEstimates!$BE$148","v":11},{"$f":"CntyDataLinkPrior5YearEstimates!$BV$148","v":0},{"$f":"CntyDataLinkPrior5YearEstimates!$BW$148","v":11},{"$f":"CntyDataLinkPrior5YearEstimates!$CN$148","v":53},{"$f":"CntyDataLinkPrior5YearEstimates!$CO$148","v":54},{"$f":"CntyDataLinkPrior5YearEstimates!$DF$148","v":5},{"$f":"CntyDataLinkPrior5YearEstimates!$DG$148","v":8},{"$f":"CntyDataLinkPrior5YearEstimates!$DX$148","v":43},{"$f":"CntyDataLinkPrior5YearEstimates!$DY$148","v":43},{"$f":"CntyDataLinkPrior5YearEstimates!$EP$148","v":11},{"$f":"CntyDataLinkPrior5YearEstimates!$EQ$148","v":13},{"$f":"CntyDataLinkPrior5YearEstimates!$FH$148","v":38},{"$f":"CntyDataLinkPrior5YearEstimates!$FI$148","v":44}]
[null,null,null,"Rent 20% to 24.9% of HH Income",{"$f":"CntyDataLinkPrior5YearEstimates!$F$156","v":29},{"$f":"CntyDataLinkPrior5YearEstimates!$G$156","v":39},null,{"$f":"CntyDataLinkPrior5YearEstimates!$BF$148","v":0},{"$f":"CntyDataLinkPrior5YearEstimates!$BG$148","v":11},{"$f":"CntyDataLinkPrior5YearEstimates!$BX$148","v":0},{"$f":"CntyDataLinkPrior5YearEstimates!$BY$148","v":11},{"$f":"CntyDataLinkPrior5YearEstimates!$CP$148","v":14},{"$f":"CntyDataLinkPrior5YearEstimates!$CQ$148","v":24},{"$f":"CntyDataLinkPrior5YearEstimates!$DH$148","v":0},{"$f":"CntyDataLinkPrior5YearEstimates!$DI$148","v":11},{"$f":"CntyDataLinkPrior5YearEstimates!$DZ$148","v":0},{"$f":"CntyDataLinkPrior5YearEstimates!$EA$148","v":11},{"$f":"CntyDataLinkPrior5YearEstimates!$ER$148","v":20},{"$f":"CntyDataLinkPrior5YearEstimates!$ES$148","v":21},{"$f":"CntyDataLinkPrior5YearEstimates!$FJ$148","v":0},{"$f":"CntyDataLinkPrior5YearEstimates!$FK$148","v":11}]
[null,null,null,"Rent 25% to 29.9% of HH Income",{"$f":"CntyDataLinkPrior5YearEstimates!$H$156","v":104},{"$f":"CntyDataLinkPrior5YearEstimates!$I$156","v":68},null,{"$f":"CntyDataLinkPrior5YearEstimates!$BH$148","v":0},{"$f":"CntyDataLinkPrior5YearEstimates!$BI$148","v":11},{"$f":"CntyDataLinkPrior5YearEstimates!$BZ$148","v":18},{"$f":"CntyDataLinkPrior5YearEstimates!$CA$148","v":20},{"$f":"CntyDataLinkPrior5YearEstimates!$CR$148","v":0},{"$f":"CntyDataLinkPrior5YearEstimates!$CS$148","v":11},{"$f":"CntyDataLinkPrior5YearEstimates!$DJ$148","v":6},{"$f":"CntyDataLinkPrior5YearEstimates!$DK$148","v":10},{"$f":"CntyDataLinkPrior5YearEstimates!$EB$148","v":6},{"$f":"CntyDataLinkPrior5YearEstimates!$EC$148","v":10},{"$f":"CntyDataLinkPrior5YearEstimates!$ET$148","v":13},{"$f":"CntyDataLinkPrior5YearEstimates!$EU$148","v":14},{"$f":"CntyDataLinkPrior5YearEstimates!$FL$148","v":0},{"$f":"CntyDataLinkPrior5YearEstimates!$FM$148","v":11}]
[null,null,null,"Rent Less Than 30% of HH Income",{"$f":"CntyDataLinkPrior5YearEstimates!$J$156","v":34},{"$f":"CntyDataLinkPrior5YearEstimates!$K$156","v":33},null,{"$f":"SUM(H53:H55)","v":0},{"$f":"SQRT((I53^2)+(I54^2)+(I55^2))","v":19.05255888325765},{"$f":"SUM(J53:J55)","v":18},{"$f":"SQRT((K53^2)+(K54^2)+(K55^2))","v":25.337718918639855},{"$f":"SUM(L53:L55)","v":67},{"$f":"SQRT((M53^2)+(M54^2)+(M55^2))","v":60.108235708594876},{"$f":"SUM(N53:N55)","v":11},{"$f":"SQRT((O53^2)+(O54^2)+(O55^2))","v":16.881943016134134},{"$f":"SUM(P53:P55)","v":49},{"$f":"SQRT((Q53^2)+(Q54^2)+(Q55^2))","v":45.4972526643093},{"$f":"SUM(R53:R55)","v":44},{"$f":"SQRT((S53^2)+(S54^2)+(S55^2))","v":28.390139133156779},{"$f":"SUM(T53:T55)","v":38},{"$f":"SQRT((U53^2)+(U54^2)+(U55^2))","v":46.669047558312137}]
[null,null,null,"Rent 30% or More of HH Income",{"$f":"CntyDataLinkPrior5YearEstimates!$L$156","v":43},{"$f":"CntyDataLinkPrior5YearEstimates!$M$156","v":27},null,{"$f":"H60+H58","v":0},{"$f":"SQRT((I58^2)+(I60^2))","v":22},{"$f":"J60+J58","v":63},{"$f":"SQRT((K58^2)+(K60^2))","v":63.906181234681831},{"$f":"L60+L58","v":135},{"$f":"SQRT((M58^2)+(M60^2))","v":91.093358704133863},{"$f":"N60+N58","v":22},{"$f":"SQRT((O58^2)+(O60^2))","v":38.974350539810153},37,{"$f":"SQRT((Q58^2)+(Q60^2))","v":44.305755833751441},{"$f":"R60+R58","v":0},{"$f":"SQRT((S58^2)+(S60^2))","v":22},0,{"$f":"SQRT((U58^2)+(U60^2))","v":22}]
[null,null,null,"Rent 30% to 34.9% of HH Income",{"$f":"CntyDataLinkPrior5YearEstimates!$N$156","v":47},{"$f":"CntyDataLinkPrior5YearEstimates!$O$156","v":45},null,{"$f":"CntyDataLinkPrior5YearEstimates!$BJ$148","v":0},{"$f":"CntyDataLinkPrior5YearEstimates!$BK$148","v":11},{"$f":"CntyDataLinkPrior5YearEstimates!$CB$148","v":0},{"$f":"CntyDataLinkPrior5YearEstimates!$CC$148","v":11},{"$f":"CntyDataLinkPrior5YearEstimates!$CT$148","v":18},{"$f":"CntyDataLinkPrior5YearEstimates!$CU$148","v":25},{"$f":"CntyDataLinkPrior5YearEstimates!$DL$148","v":22},{"$f":"CntyDataLinkPrior5YearEstimates!$DM$148","v":34},{"$f":"CntyDataLinkPrior5YearEstimates!$ED$148","v":7},{"$f":"CntyDataLinkPrior5YearEstimates!$EE$148","v":11},{"$f":"CntyDataLinkPrior5YearEstimates!$EV$148","v":0},{"$f":"CntyDataLinkPrior5YearEstimates!$EW$148","v":11},{"$f":"CntyDataLinkPrior5YearEstimates!$FN$148","v":0},{"$f":"CntyDataLinkPrior5YearEstimates!$FO$148","v":11}]
[null,null,null,"Rent Less Than 35% of HH Income",{"$f":"CntyDataLinkPrior5YearEstimates!$P$156","v":78},{"$f":"CntyDataLinkPrior5YearEstimates!$Q$156","v":86},null,{"$f":"SUM(H56,H58)","v":0},{"$f":"SQRT((I56^2)+(I58^2))","v":22},{"$f":"SUM(J56,J58)","v":18},{"$f":"SQRT((K56^2)+(K58^2))","v":27.622454633866266},{"$f":"SUM(L56,L58)","v":85},{"$f":"SQRT((M56^2)+(M58^2))","v":65.099923195039182},33,50.88194301613413,56,{"$f":"SQRT((Q58^2)+(Q56^2))","v":46.808118953873802},{"$f":"SUM(R56,R58)","v":44},{"$f":"SQRT((S58^2)+(S56^2))","v":30.446674695276659},38,{"$f":"SQRT((U58^2)+(U56^2))","v":47.947888378947411}]
[null,null,null,"Rent 35% or More of HH Income",{"$f":"CntyDataLinkPrior5YearEstimates!$R$156","v":52},{"$f":"CntyDataLinkPrior5YearEstimates!$S$156","v":39},null,{"$f":"CntyDataLinkPrior5YearEstimates!$BL$148+CntyDataLinkPrior5YearEstimates!$BN$148+CntyDataLinkPrior5YearEstimates!$BP$148","v":0},{"$f":"SQRT((CntyDataLinkPrior5YearEstimates!$BM$148^2)+(CntyDataLinkPrior5YearEstimates!$BO$148^2)+(CntyDataLinkPrior5YearEstimates!$BQ$148^2))","v":19.05255888325765},{"$f":"CntyDataLinkPrior5YearEstimates!$CD$148+CntyDataLinkPrior5YearEstimates!$CF$148+CntyDataLinkPrior5YearEstimates!$CH$148","v":63},{"$f":"SQRT((CntyDataLinkPrior5YearEstimates!$CE$148^2)+(CntyDataLinkPrior5YearEstimates!$CG$148^2)+(CntyDataLinkPrior5YearEstimates!$CI$148^2))","v":62.952362942148568},{"$f":"CntyDataLinkPrior5YearEstimates!$CV$148+CntyDataLinkPrior5YearEstimates!$CX$148+CntyDataLinkPrior5YearEstimates!$CZ$148","v":117},{"$f":"SQRT((CntyDataLinkPrior5YearEstimates!$CW$148^2)+(CntyDataLinkPrior5YearEstimates!$CY$148^2)+(CntyDataLinkPrior5YearEstimates!$DA$148^2))","v":87.595661993046207},{"$f":"CntyDataLinkPrior5YearEstimates!$DN$148+CntyDataLinkPrior5YearEstimates!$DP$148+CntyDataLinkPrior5YearEstimates!$DR$148","v":0},{"$f":"SQRT((CntyDataLinkPrior5YearEstimates!$DO$148^2)+(CntyDataLinkPrior5YearEstimates!$DQ$148^2)+(CntyDataLinkPrior5YearEstimates!$DS$148^2))","v":19.05255888325765},{"$f":"CntyDataLinkPrior5YearEstimates!$EF$148+CntyDataLinkPrior5YearEstimates!$EH$148+CntyDataLinkPrior5YearEstimates!$EJ$148","v":30},{"$f":"SQRT((CntyDataLinkPrior5YearEstimates!$EG$148^2)+(CntyDataLinkPrior5YearEstimates!$EI$148^2)+(CntyDataLinkPrior5YearEstimates!$EK$148^2))","v":42.918527467749868},{"$f":"CntyDataLinkPrior5YearEstimates!$EX$148+CntyDataLinkPrior5YearEstimates!$EZ$148+CntyDataLinkPrior5YearEstimates!$FB$148","v":0},{"$f":"SQRT((CntyDataLinkPrior5YearEstimates!$EY$148^2)+(CntyDataLinkPrior5YearEstimates!$FA$148^2)+(CntyDataLinkPrior5YearEstimates!$FC$148^2))","v":19.05255888325765},{"$f":"CntyDataLinkPrior5YearEstimates!$FP$148+CntyDataLinkPrior5YearEstimates!$FR$148+CntyDataLinkPrior5YearEstimates!$FT$148","v":0},{"$f":"SQRT((CntyDataLinkPrior5YearEstimates!$FQ$148^2)+(CntyDataLinkPrior5YearEstimates!$FS$148^2)+(CntyDataLinkPrior5YearEstimates!$FU$148^2))","v":19.05255888325765}]
[null,null,null,"Percent not computed",{"$f":"CntyDataLinkPrior5YearEstimates!$V$156","v":51},{"$f":"CntyDataLinkPrior5YearEstimates!$W$156","v":75},null,{"$f":"CntyDataLinkPrior5YearEstimates!$BR$148","v":51},{"$f":"CntyDataLinkPrior5YearEstimates!$BS$148","v":75},{"$f":"CntyDataLinkPrior5YearEstimates!$CJ$148","v":0},{"$f":"CntyDataLinkPrior5YearEstimates!$CK$148","v":11},{"$f":"CntyDataLinkPrior5YearEstimates!$DB$148","v":0},{"$f":"CntyDataLinkPrior5YearEstimates!$DC$148","v":11},{"$f":"CntyDataLinkPrior5YearEstimates!$DT$148","v":0},{"$f":"CntyDataLinkPrior5YearEstimates!$DU$148","v":11},{"$f":"CntyDataLinkPrior5YearEstimates!$EL$148","v":0},{"$f":"CntyDataLinkPrior5YearEstimates!$EM$148","v":11},{"$f":"CntyDataLinkPrior5YearEstimates!$FD$148","v":0},{"$f":"CntyDataLinkPrior5YearEstimates!$FE$148","v":11},{"$f":"CntyDataLinkPrior5YearEstimates!$FV$148","v":0},{"$f":"CntyDataLinkPrior5YearEstimates!$FW149","v":0}]
[]
[]
[]
[null,null,null,"Percent of Households Paying ",null,null,null,"By Household Income"]
[null,null,null,{"$f":"D56","v":"Rent Less Than 30% of HH Income"},{"$f":"E56/E$52","v":6.3551401869158877E-2},null,null,{"$f":"H56/H$52","v":0},null,{"$f":"J56/J$52","v":0.22222222222222221},null,{"$f":"L56/L$52","v":0.3316831683168317},null,{"$f":"N56/N$52","v":0.33333333333333331},null,{"$f":"P56/P$52","v":0.56976744186046513},null,{"$f":"R56/R$52","v":1},null,{"$f":"T56/T$52","v":1}]
[null,null,null,{"$f":"D57","v":"Rent 30% or More of HH Income"},{"$f":"E57/E$52","v":8.0373831775700941E-2},null,null,{"$f":"H57/H$52","v":0},null,{"$f":"J57/J$52","v":0.77777777777777779},null,{"$f":"L57/L$52","v":0.66831683168316836},null,{"$f":"N57/N$52","v":0.66666666666666663},null,{"$f":"P57/P$52","v":0.43023255813953487},null,{"$f":"R57/R$52","v":0},null,{"$f":"T57/T$52","v":0}]
[null,null,null,{"$f":"D59","v":"Rent Less Than 35% of HH Income"},{"$f":"E59/E$52","v":0.14579439252336449},null,null,{"$f":"H59/H$52","v":0},null,{"$f":"J59/J$52","v":0.22222222222222221},null,{"$f":"L59/L$52","v":0.42079207920792078},null,{"$f":"N59/N$52","v":1},null,{"$f":"P59/P$52","v":0.65116279069767447},null,{"$f":"R59/R$52","v":1},null,{"$f":"T59/T$52","v":1}]
[null,null,null,{"$f":"D60","v":"Rent 35% or More of HH Income"},{"$f":"E60/E$52","v":9.719626168224299E-2},null,null,{"$f":"H60/H$52","v":0},null,{"$f":"J60/J$52","v":0.77777777777777779},null,{"$f":"L60/L$52","v":0.57920792079207917},null,{"$f":"N60/N$52","v":0},null,{"$f":"P60/P$52","v":0.34883720930232559},null,{"$f":"R60/R$52","v":0},null,{"$f":"T60/T$52","v":0}]
[null,null,null,"Percent not computed",{"$f":"E61/E$52","v":9.5327102803738323E-2},null,null,{"$f":"H61/H$52","v":1},null,{"$f":"J61/J$52","v":0},null,{"$f":"L61/L$52","v":0},null,{"$f":"N61/N$52","v":0},null,{"$f":"P61/P$52","v":0},null,{"$f":"R61/R$52","v":0},null,{"$f":"T61/T$52","v":0}]
[]
[]
[null,null,null,"Source:  2010-2014 American Community Survey Table B25070; B25074"]
[]
[null,null,null,{"$f":"D41","v":"Income in 2014 Inflation Adjusted Dollars"}]
[null,null,null,"Data from the American Community Survey are estimates"]

{"sheet":"ACS_Table_B25063_&_B25064","index":54,"n_rows":181,"n_cols":56,"rows_kept":181,"cut":false,"hidden":true,"merged":[]}
[null,"B25063. GROSS RENT"]
[null,"Universe:  RENTER-OCCUPIED HOUSING UNITS"]
[null,"Data Set: 2015-2019 American Community Survey 5-Year Estimates"]
[]
[null,null,"Allenstown",null,"Andover",null,"Boscawen",null,"Bow",null,"Bradford",null,"Canterbury",null,"Chichester",null,"Concord",null,"Danbury",null,"Dunbarton",null,"Epsom",null,"Franklin",null,"Henniker",null,"Hill",null,"Hooksett",null,"Hopkinton",null,"Loudon",null,"Newbury",null,"New London",null,"Northfield",null,"Pembroke",null,"Pittsfield",null,"Salisbury",null,"Sutton",null,"Warner",null,"Webster",null,"Wilmot"]
[null,null,"Estimate","Margin Of Error","Estimate","Margin Of Error","Estimate","Margin Of Error","Estimate","Margin Of Error","Estimate","Margin Of Error","Estimate","Margin Of Error","Estimate","Margin Of Error","Estimate","Margin Of Error","Estimate","Margin Of Error","Estimate","Margin Of Error","Estimate","Margin Of Error","Estimate","Margin Of Error","Estimate","Margin Of Error","Estimate","Margin Of Error","Estimate","Margin Of Error","Estimate","Margin Of Error","Estimate","Margin Of Error","Estimate","Margin Of Error","Estimate","Margin Of Error","Estimate","Margin Of Error","Estimate","Margin Of Error","Estimate","Margin Of Error","Estimate","Margin Of Error","Estimate","Margin Of Error","Estimate","Margin Of Error","Estimate","Margin Of Error","Estimate","Margin Of Error"]
[null,"Total:",409,114,154,72,288,107,288,76,73,31,78,40,87,53,8278,412,42,17,60,26,282,82,1429,186,449,115,30,21,1284,204,243,100,291,138,64,26,295,90,470,109,582,186,599,147,39,26,90,36,387,91,59,29,149,52]
[null,"With cash rent:",389,111,88,49,279,105,258,71,73,31,49,41,87,53,8103,399,38,19,52,26,262,80,1345,182,439,113,23,19,1207,193,198,98,253,124,53,21,245,80,453,110,582,186,589,146,39,26,72,36,348,88,45,28,137,50]
[null,"Less than $100",0,11,0,11,0,11,0,16,0,11,0,11,0,11,28,35,0,11,0,11,0,11,0,16,0,11,0,11,0,18,0,16,0,16,0,11,0,11,0,11,0,16,0,11,0,11,0,11,0,11,0,11,0,11]
[null,"$100 to $149",0,11,0,11,14,22,0,16,0,11,0,11,0,11,0,24,0,11,0,11,0,11,18,27,0,11,0,11,0,18,0,16,0,16,0,11,0,11,0,11,0,16,0,11,0,11,0,11,0,11,0,11,0,11]
[null,"$150 to $199",28,43,0,11,29,45,0,16,0,11,0,11,0,11,34,39,0,11,0,11,0,11,9,14,0,11,0,11,0,18,0,16,0,16,0,11,0,11,0,11,0,16,0,11,0,11,0,11,0,11,0,11,0,11]
[null,"$200 to $249",12,19,0,11,0,11,0,16,0,11,0,11,0,11,163,96,0,11,0,11,0,11,37,36,60,38,0,11,0,18,0,16,18,32,0,11,0,11,0,11,0,16,73,105,0,11,0,11,6,10,2,4,0,11]
[null,"$250 to $299",11,17,0,11,0,11,0,16,0,11,0,11,0,11,236,158,0,11,0,11,0,11,44,56,0,11,0,11,14,22,0,16,0,16,0,11,0,11,0,11,0,16,19,21,0,11,0,11,0,11,0,11,0,11]
[null,"$300 to $349",2,7,0,11,11,17,0,16,3,5,0,11,0,11,173,119,0,11,0,11,0,11,0,16,35,52,0,11,0,18,0,16,0,16,6,8,0,11,0,11,0,16,29,47,0,11,0,11,0,11,0,11,0,11]
[null,"$350 to $399",10,16,0,11,11,18,0,16,0,11,0,11,0,11,49,43,0,11,0,11,10,17,12,18,0,11,0,11,6,10,0,16,0,16,15,12,7,12,0,11,15,24,9,14,0,11,0,11,0,11,0,11,0,11]
[null,"$400 to $449",44,50,0,11,0,11,11,17,0,11,9,12,0,11,46,51,0,11,0,11,6,14,44,35,0,11,0,11,41,41,0,16,0,16,0,11,0,11,0,11,0,16,0,11,0,11,0,11,56,38,4,6,0,11]
[null,"$450 to $499",0,11,0,11,38,44,10,16,0,11,0,11,0,11,77,63,0,11,0,11,11,18,25,23,21,34,0,11,19,31,0,16,18,29,0,11,0,11,0,11,0,16,0,11,0,11,0,11,16,24,0,11,0,11]
[null,"$500 to $549",0,11,0,11,0,11,0,16,0,11,0,11,0,11,108,88,0,11,0,11,0,11,49,65,22,36,0,11,34,35,0,16,21,35,0,11,17,27,0,11,0,16,0,11,0,11,0,11,5,8,11,18,0,11]
[null,"$550 to $599",28,43,0,11,0,11,0,16,0,11,0,11,0,11,72,37,0,11,0,11,0,11,61,80,18,26,0,11,24,26,0,16,0,16,0,11,0,11,0,11,0,16,25,40,0,11,0,11,0,11,0,11,0,11]
[null,"$600 to $649",0,11,0,11,0,11,0,16,0,11,0,11,0,11,166,88,0,11,0,11,11,16,81,74,55,61,0,11,0,18,0,16,0,16,0,11,0,11,9,15,22,37,17,18,0,11,0,11,4,6,0,11,0,11]
[null,"$650 to $699",0,11,24,38,0,11,0,16,0,11,24,37,0,11,197,86,0,11,0,11,0,11,23,27,7,12,0,11,0,18,0,16,0,16,0,11,38,44,37,35,38,44,37,49,0,11,0,11,11,13,3,4,3,5]
[null,"$700 to $749",51,31,0,11,0,11,0,16,0,11,0,11,0,11,170,79,3,4,8,9,29,26,74,66,0,11,0,11,16,26,0,16,0,16,0,11,0,11,8,13,0,16,5,9,0,11,0,11,11,11,9,14,0,11]
[null,"$750 to $799",41,48,0,11,0,11,0,16,12,19,5,8,0,11,173,94,0,11,4,6,17,29,81,67,24,38,0,11,30,44,0,16,0,16,0,11,9,14,27,26,94,96,69,67,0,11,0,11,0,11,0,11,9,9]
[null,"$800 to $899",38,32,9,10,29,32,31,19,6,8,0,11,9,14,581,150,0,11,0,11,13,22,243,111,56,51,10,15,72,64,44,67,0,16,5,7,21,25,204,123,55,52,45,48,0,11,10,18,0,11,11,17,3,5]
[null,"$900 to $999",9,14,23,29,12,20,9,16,17,16,0,11,17,19,988,190,0,11,4,6,31,31,144,78,17,22,0,11,55,47,39,35,16,26,6,9,18,28,70,69,0,16,106,78,9,10,0,11,21,17,0,11,34,26]
[null,"$1,000 to $1,249",57,57,8,11,95,86,102,45,7,7,0,11,29,36,2376,332,32,18,9,9,82,54,235,105,53,39,5,8,240,82,29,34,106,91,5,7,9,14,61,40,183,92,110,71,15,17,20,23,120,54,0,11,19,15]
[null,"$1,250 to $1,499",25,21,6,10,0,11,11,16,18,11,4,7,23,20,1445,236,0,11,23,19,48,34,96,77,46,51,4,5,160,97,43,59,59,63,5,7,65,39,29,25,47,45,18,21,11,17,13,15,42,43,0,11,52,35]
[null,"$1,500 to $1,999",33,37,12,12,27,29,27,26,3,6,7,11,9,13,796,176,3,5,0,11,0,11,59,44,15,17,4,5,443,126,43,45,15,26,11,11,37,31,8,13,92,98,27,29,4,6,29,23,32,27,5,7,17,16]
[null,"$2,000 to $2,499",0,11,6,9,13,20,41,35,7,8,0,11,0,11,143,71,0,11,4,6,4,14,10,16,10,17,0,11,53,51,0,16,0,16,0,11,0,11,0,11,36,42,0,11,0,11,0,11,18,24,0,11,0,11]
[null,"$2,500 to $2,999",0,11,0,11,0,11,16,19,0,11,0,11,0,11,37,34,0,11,0,11,0,11,0,16,0,11,0,11,0,18,0,16,0,16,0,11,24,29,0,11,0,16,0,11,0,11,0,11,6,8,0,11,0,11]
[null,"$3,000 to $3,499",0,11,0,11,0,11,0,16,0,11,0,11,0,11,37,59,0,11,0,11,0,11,0,16,0,11,0,11,0,18,0,16,0,16,0,11,0,11,0,11,0,16,0,11,0,11,0,11,0,11,0,11,0,11]
[null,"$3,500 or more",0,11,0,11,0,11,0,16,0,11,0,11,0,11,8,13,0,11,0,11,0,11,0,16,0,11,0,11,0,18,0,16,0,16,0,11,0,11,0,11,0,16,0,11,0,11,0,11,0,11,0,11,0,11]
[null,"No cash rent",20,22,66,54,9,14,30,26,0,11,29,36,0,11,175,90,4,5,8,9,20,23,84,66,10,15,7,7,77,55,45,33,38,46,11,14,50,43,17,18,0,16,10,16,0,11,18,18,39,31,14,12,12,13]
[]
[]
[]
[null,"B25064. MEDIAN GROSS RENT (DOLLARS)"]
[null,"Universe:  RENTER-OCCUPIED HOUSING UNITS PAYING CASH RENT"]
[null,"Data Set: 2015-2019 American Community Survey 5-Year Estimates"]
[null,{"$f":"RentalHousingCost!D41","v":"Income in 2019 Inflation Adjusted Dollars"}]
[null,null,"Allenstown",null,"Andover",null,"Boscawen",null,"Bow",null,"Bradford",null,"Canterbury",null,"Chichester",null,"Concord",null,"Danbury",null,"Dunbarton",null,"Epsom",null,"Franklin",null,"Henniker",null,"Hill",null,"Hooksett",null,"Hopkinton",null,"Loudon",null,"Newbury",null,"New London",null,"Northfield",null,"Pembroke",null,"Pittsfield",null,"Salisbury",null,"Sutton",null,"Warner",null,"Webster",null,"Wilmot"]
[null,null,"Estimate","Margin Of Error","Estimate","Margin Of Error","Estimate","Margin Of Error","Estimate","Margin Of Error","Estimate","Margin Of Error","Estimate","Margin Of Error","Estimate","Margin Of Error","Estimate","Margin Of Error","Estimate","Margin Of Error","Estimate","Margin Of Error","Estimate","Margin Of Error","Estimate","Margin Of Error","Estimate","Margin Of Error","Estimate","Margin Of Error","Estimate","Margin Of Error","Estimate","Margin Of Error","Estimate","Margin Of Error","Estimate","Margin Of Error","Estimate","Margin Of Error","Estimate","Margin Of Error","Estimate","Margin Of Error","Estimate","Margin Of Error","Estimate","Margin Of Error","Estimate","Margin Of Error","Estimate","Margin Of Error","Estimate","Margin Of Error","Estimate","Margin Of Error"]
[null,"Median gross rent",760,71,948,202,963,248,1167,72,991,195,682,251,1151,169,1083,29,1125,27,1261,218,1009,122,847,61,753,264,1075,480,1332,154,1138,388,1126,117,908,400,1263,487,871,37,1092,117,826,169,1175,209,1365,350,1092,75,714,273,1252,207]
[]
[]
[]
[]
[]
[]
[]
[]
[]
[]
[]
[]
[]
[]
[]
[]
[]
[]
[]
[]
[]
[]
[]
[]
[]
[]
[null,"B25063. GROSS RENT"]
[null,"Universe:  RENTER-OCCUPIED HOUSING UNITS"]
[null,"Data Set: 2010-2014 American Community Survey 5-Year Estimates"]
[]
[null,null,"Allenstown",null,"Andover",null,"Boscawen",null,"Bow",null,"Bradford",null,"Canterbury",null,"Chichester",null,"Concord",null,"Danbury",null,"Dunbarton",null,"Epsom",null,"Franklin",null,"Henniker",null,"Hill",null,"Hooksett",null,"Hopkinton",null,"Loudon",null,"Newbury",null,"New London",null,"Northfield",null,"Pembroke",null,"Pittsfield",null,"Salisbury",null,"Sutton",null,"Warner",null,"Webster",null,"Wilmot"]
[null,null,"Estimate","Margin Of Error","Estimate","Margin Of Error","Estimate","Margin Of Error","Estimate","Margin Of Error","Estimate","Margin Of Error","Estimate","Margin Of Error","Estimate","Margin Of Error","Estimate","Margin Of Error","Estimate","Margin Of Error","Estimate","Margin Of Error","Estimate","Margin Of Error","Estimate","Margin Of Error","Estimate","Margin Of Error","Estimate","Margin Of Error","Estimate","Margin Of Error","Estimate","Margin Of Error","Estimate","Margin Of Error","Estimate","Margin Of Error","Estimate","Margin Of Error","Estimate","Margin Of Error","Estimate","Margin Of Error","Estimate","Margin Of Error","Estimate","Margin Of Error","Estimate","Margin Of Error","Estimate","Margin Of Error","Estimate","Margin Of Error","Estimate","Margin Of Error"]
[null,"Total:",535,128,136,60,386,104,317,80,79,33,40,21,98,50,7765,311,95,43,136,55,286,108,1364,180,527,116,32,23,743,144,276,113,320,119,40,29,369,114,416,87,801,168,624,113,41,25,92,38,252,84,97,46,110,42]
[null,"With cash rent:",535,128,107,54,373,104,288,73,72,33,35,17,85,50,7560,328,86,42,103,42,254,97,1281,188,502,120,28,22,710,141,276,113,307,117,26,19,316,100,407,84,765,169,597,113,35,25,75,38,248,83,97,46,107,42]
[null,"Less than $100",0,11,0,11,0,11,0,15,0,11,0,11,0,11,12,20,0,11,0,11,0,11,0,15,0,11,0,11,0,17,0,15,27,44,0,11,0,11,0,11,0,15,37,44,0,11,0,11,5,8,0,11,0,11]
[null,"$100 to $149",0,11,0,11,0,11,0,15,0,11,0,11,0,11,12,20,0,11,0,11,0,11,0,15,0,11,0,11,0,17,0,15,0,15,0,11,0,11,0,11,30,43,0,11,0,11,0,11,0,11,0,11,0,11]
[null,"$150 to $199",0,11,3,4,0,11,0,15,0,11,5,8,0,11,97,67,0,11,0,11,0,11,21,27,0,11,0,11,0,17,0,15,0,15,0,11,0,11,0,11,0,15,26,39,0,11,0,11,0,11,0,11,0,11]
[null,"$200 to $249",0,11,0,11,0,11,0,15,0,11,0,11,0,11,169,86,0,11,0,11,5,8,54,38,59,54,3,4,0,17,0,15,15,23,0,11,49,33,0,11,18,29,9,14,0,11,0,11,0,11,0,11,0,11]
[null,"$250 to $299",5,8,0,11,21,18,0,15,0,11,0,11,0,11,55,49,0,11,0,11,0,11,34,34,17,21,0,11,25,29,0,15,6,11,0,11,0,11,0,11,0,15,0,11,0,11,0,11,5,7,0,11,0,11]
[null,"$300 to $349",18,16,0,11,0,11,0,15,0,11,8,12,0,11,229,116,0,11,4,6,0,11,67,39,24,40,0,11,9,14,0,15,0,15,0,11,0,11,0,11,0,15,44,46,0,11,0,11,16,24,0,11,0,11]
[null,"$350 to $399",33,50,0,11,7,11,11,18,0,11,0,11,0,11,117,94,0,11,0,11,18,20,23,29,0,11,0,11,19,30,0,15,0,15,0,11,8,13,0,11,26,29,0,11,0,11,0,11,0,11,0,11,0,11]
[null,"$400 to $449",7,11,0,11,0,11,0,15,5,7,5,9,0,11,47,33,0,11,0,11,0,11,15,16,7,12,0,11,43,36,0,15,0,15,0,11,0,11,0,11,0,15,18,28,0,11,0,11,0,11,0,11,0,11]
[null,"$450 to $499",13,22,0,11,0,11,0,15,0,11,0,11,0,11,33,34,0,11,0,11,0,11,40,43,0,11,0,11,0,17,0,15,0,15,0,11,0,11,0,11,20,31,0,11,0,11,0,11,0,11,0,11,0,11]
[null,"$500 to $549",11,18,0,11,0,11,0,15,3,5,0,11,0,11,158,71,0,11,0,11,0,11,9,19,0,11,0,11,18,29,0,15,23,36,0,11,0,11,0,11,0,15,17,20,0,11,0,11,5,8,13,17,0,11]
[null,"$550 to $599",0,11,6,10,7,10,0,15,0,11,0,11,0,11,71,54,14,19,0,11,0,11,102,85,0,11,0,11,0,17,0,15,0,15,0,11,0,11,19,23,29,38,3,5,0,11,0,11,0,11,10,15,0,11]
[null,"$600 to $649",23,29,0,11,7,11,12,20,0,11,0,11,0,11,67,41,0,11,0,11,11,17,29,29,9,14,0,11,10,16,0,15,0,15,0,11,0,11,0,11,0,15,28,27,0,11,0,11,24,38,0,11,0,11]
[null,"$650 to $699",51,75,38,38,25,42,0,15,0,11,0,11,0,11,205,85,0,11,0,11,10,17,73,63,39,50,0,11,0,17,0,15,0,15,0,11,0,11,0,11,16,25,8,12,3,5,0,11,35,40,0,11,0,11]
[null,"$700 to $749",48,74,0,11,16,18,0,15,0,11,0,11,0,11,302,117,0,11,0,11,25,40,85,77,6,10,0,11,0,17,56,70,0,15,0,11,36,34,9,16,104,98,104,79,0,11,3,6,0,11,6,8,0,11]
[null,"$750 to $799",39,41,6,8,37,31,37,36,0,11,0,11,16,24,431,110,0,11,25,29,9,14,115,68,9,15,0,11,32,32,52,82,0,15,0,11,58,53,26,24,111,112,51,33,0,11,0,11,24,26,0,11,0,11]
[null,"$800 to $899",27,25,5,7,109,65,39,33,0,11,12,13,5,7,997,205,23,22,13,13,17,19,95,51,50,52,0,11,82,41,45,38,42,62,0,11,70,59,35,28,83,62,152,76,3,5,0,11,43,45,0,11,3,5]
[null,"$900 to $999",41,36,6,8,8,11,29,28,18,16,0,11,15,19,1267,255,41,30,5,7,0,11,98,61,14,18,0,11,96,57,0,15,38,39,4,6,9,14,89,49,91,83,9,14,10,15,0,11,17,15,10,16,21,23]
[null,"$1,000 to $1,249",90,68,14,22,98,78,21,18,35,25,5,7,27,30,1876,254,8,9,17,14,64,58,181,106,139,92,8,8,95,55,86,80,71,73,5,8,25,24,22,21,174,100,80,62,15,18,38,28,48,36,46,33,31,26]
[null,"$1,250 to $1,499",76,57,13,12,8,16,65,45,0,11,0,11,22,25,618,138,0,11,14,15,0,11,126,74,44,41,17,20,145,67,12,20,20,32,17,15,35,39,170,84,0,15,11,17,0,11,21,22,13,17,4,6,36,28]
[null,"$1,500 to $1,999",53,43,16,25,22,28,74,66,11,12,0,11,0,11,539,163,0,11,13,18,75,67,114,77,85,69,0,11,94,62,11,18,65,50,0,11,19,29,37,32,63,59,0,11,4,6,13,16,7,9,4,5,3,5]
[null,"$2,000 or more",0,11,0,11,8,12,0,15,0,11,0,11,0,11,258,114,0,11,12,13,20,30,0,15,0,11,0,11,42,64,14,22,0,15,0,11,7,12,0,11,0,15,0,11,0,11,0,11,6,8,4,6,13,14]
[null,"No cash rent",0,11,29,24,13,16,29,41,7,8,5,7,13,15,205,138,9,8,33,34,32,42,83,57,25,28,4,6,33,31,0,15,13,21,14,23,53,50,9,13,36,39,27,40,6,6,17,17,4,7,0,11,3,4]
[]
[]
[]
[]
[]
[]
[null,"B25064. MEDIAN GROSS RENT (DOLLARS)"]
[null,"Universe:  RENTER-OCCUPIED HOUSING UNITS PAYING CASH RENT"]
[null,"Data Set: 2010-2014 American Community Survey 5-Year Estimates"]
[null,"Income in 2014 Inflation Adjusted Dollars"]
[null,null,"Allenstown",null,"Andover",null,"Boscawen",null,"Bow",null,"Bradford",null,"Canterbury",null,"Chichester",null,"Concord",null,"Danbury",null,"Dunbarton",null,"Epsom",null,"Franklin",null,"Henniker",null,"Hill",null,"Hooksett",null,"Hopkinton",null,"Loudon",null,"Newbury",null,"New London",null,"Northfield",null,"Pembroke",null,"Pittsfield",null,"Salisbury",null,"Sutton",null,"Warner",null,"Webster",null,"Wilmot"]
[null,null,"Estimate","Margin Of Error","Estimate","Margin Of Error","Estimate","Margin Of Error","Estimate","Margin Of Error","Estimate","Margin Of Error","Estimate","Margin Of Error","Estimate","Margin Of Error","Estimate","Margin Of Error","Estimate","Margin Of Error","Estimate","Margin Of Error","Estimate","Margin Of Error","Estimate","Margin Of Error","Estimate","Margin Of Error","Estimate","Margin Of Error","Estimate","Margin Of Error","Estimate","Margin Of Error","Estimate","Margin Of Error","Estimate","Margin Of Error","Estimate","Margin Of Error","Estimate","Margin Of Error","Estimate","Margin Of Error","Estimate","Margin Of Error","Estimate","Margin Of Error","Estimate","Margin Of Error","Estimate","Margin Of Error","Estimate","Margin Of Error","Estimate","Margin Of Error"]
[null,"Median gross rent",872,211,810,362,861,48,1190,448,1071,84,445,702,1060,197,961,20,915,51,1066,323,1125,255,788,63,1031,186,1294,173,1055,168,867,265,1009,198,1309,147,810,59,1255,388,834,121,754,66,1025,145,1227,131,823,87,1052,115,1238,163]
[]
[]
[]
[]
[]
[]
[]
[]
[]
[]
[]
[]
[]
[]
[]
[]
[]
[]
[]
[]
[]
[]
[]
[]
[]
[]
[null,"B25063. GROSS RENT"]
[null,"Universe:  RENTER-OCCUPIED HOUSING UNITS"]
[null,"Data Set: 2005-2009 American Community Survey 5-Year Estimates"]
[]
[null,null,"Allenstown",null,"Andover",null,"Boscawen",null,"Bow",null,"Bradford",null,"Canterbury",null,"Chichester",null,"Concord",null,"Danbury",null,"Dunbarton",null,"Epsom",null,"Franklin",null,"Henniker",null,"Hill",null,"Hooksett",null,"Hopkinton",null,"Loudon",null,"Newbury",null,"New London",null,"Northfield",null,"Pembroke",null,"Pittsfield",null,"Salisbury",null,"Sutton",null,"Warner",null,"Webster",null,"Wilmot"]
[null,null,"Estimate","Margin Of Error","Estimate","Margin Of Error","Estimate","Margin Of Error","Estimate","Margin Of Error","Estimate","Margin Of Error","Estimate","Margin Of Error","Estimate","Margin Of Error","Estimate","Margin Of Error","Estimate","Margin Of Error","Estimate","Margin Of Error","Estimate","Margin Of Error","Estimate","Margin Of Error","Estimate","Margin Of Error","Estimate","Margin Of Error","Estimate","Margin Of Error","Estimate","Margin Of Error","Estimate","Margin Of Error","Estimate","Margin Of Error","Estimate","Margin Of Error","Estimate","Margin Of Error","Estimate","Margin Of Error","Estimate","Margin Of Error","Estimate","Margin Of Error","Estimate","Margin Of Error","Estimate","Margin Of Error","Estimate","Margin Of Error","Estimate","Margin Of Error"]
[null,"Total:",648,178,157,72,231,85,266,84,84,34,98,41,17,19,7820,437,82,34,75,37,242,82,1316,169,526,139,74,34,636,116,138,75,168,84,53,26,221,123,441,105,849,136,526,110,17,17,55,30,212,67,60,30,21,21]
[null,"With cash rent:",598,165,73,54,208,80,266,84,72,30,86,37,17,19,7635,443,82,34,75,37,205,78,1291,164,506,140,61,31,620,119,118,68,102,64,48,26,221,123,422,107,839,133,526,110,17,17,55,30,176,57,50,27,21,21]
[null,"Less than $100",0,114,0,114,0,114,0,114,0,114,0,114,0,114,87,82,0,114,0,114,0,114,17,21,0,114,0,114,0,114,0,114,0,114,0,114,0,114,0,114,20,33,15,23,0,114,0,114,0,114,0,114,0,114]
[null,"$100 to $149",0,114,0,114,0,114,0,114,0,114,0,114,0,114,68,42,0,114,0,114,0,114,0,114,0,114,0,114,0,114,0,114,0,114,0,114,0,114,0,114,0,114,0,114,0,114,0,114,0,114,0,114,0,114]
[null,"$150 to $199",49,38,0,114,20,22,0,114,0,114,0,114,0,114,242,128,0,114,0,114,0,114,118,74,30,23,0,114,0,114,0,114,0,114,0,114,0,114,14,21,18,30,9,15,0,114,0,114,0,114,0,114,0,114]
[null,"$200 to $249",26,32,0,114,0,114,0,114,0,114,0,114,0,114,205,120,5,7,0,114,0,114,10,15,9,15,0,114,46,54,0,114,0,114,0,114,0,114,12,20,19,30,0,114,0,114,0,114,0,114,0,114,0,114]
[null,"$250 to $299",26,41,0,114,19,17,0,114,0,114,9,13,0,114,104,92,0,114,0,114,42,43,91,71,0,114,0,114,18,20,0,114,0,114,0,114,22,34,0,114,0,114,0,114,0,114,0,114,19,16,0,114,0,114]
[null,"$300 to $349",0,114,0,114,0,114,0,114,3,4,0,114,0,114,177,123,0,114,0,114,0,114,54,48,0,114,0,114,11,18,0,114,0,114,0,114,0,114,0,114,0,114,0,114,0,114,0,114,0,114,0,114,0,114]
[null,"$350 to $399",0,114,0,114,0,114,0,114,0,114,13,16,0,114,80,60,0,114,0,114,12,20,46,36,0,114,0,114,0,114,0,114,0,114,0,114,0,114,10,16,0,114,0,114,0,114,0,114,0,114,0,114,0,114]
[null,"$400 to $449",12,19,0,114,0,114,0,114,0,114,25,21,0,114,37,34,4,8,0,114,11,18,7,11,20,25,0,114,15,24,0,114,0,114,7,10,0,114,0,114,67,75,0,114,0,114,8,13,0,114,0,114,0,114]
[null,"$450 to $499",20,22,0,114,0,114,0,114,0,114,18,19,0,114,67,54,4,7,0,114,0,114,35,44,39,40,0,114,0,114,0,114,6,12,0,114,0,114,0,114,10,17,11,18,0,114,0,114,0,114,0,114,0,114]
[null,"$500 to $549",39,50,0,114,0,114,0,114,3,5,0,114,0,114,182,103,0,114,0,114,0,114,26,22,0,114,3,5,0,114,0,114,0,114,0,114,0,114,0,114,0,114,0,114,0,114,0,114,0,114,0,114,0,114]
[null,"$550 to $599",8,13,0,114,0,114,0,114,0,114,0,114,0,114,123,89,5,7,0,114,0,114,110,83,63,56,0,114,23,25,0,114,0,114,8,12,32,52,0,114,19,30,19,20,0,114,0,114,0,114,0,114,0,114]
[null,"$600 to $649",61,59,0,114,9,15,49,38,0,114,0,114,0,114,224,115,0,114,0,114,0,114,78,58,10,15,0,114,11,17,0,114,0,114,0,114,0,114,0,114,63,102,13,19,5,8,3,4,0,114,3,4,0,114]
[null,"$650 to $699",54,60,0,114,9,15,42,53,0,114,9,9,0,114,252,115,5,7,0,114,0,114,8,13,11,17,0,114,0,114,0,114,0,114,4,7,11,18,0,114,18,27,33,36,0,114,0,114,0,114,13,13,5,8]
[null,"$700 to $749",29,27,6,8,35,42,9,17,0,114,0,114,0,114,532,175,0,114,8,15,0,114,58,51,8,13,8,12,0,114,0,114,0,114,2,4,0,114,77,67,208,158,48,61,0,114,0,114,17,15,0,114,0,114]
[null,"$750 to $799",50,51,4,8,22,26,0,114,0,114,0,114,0,114,352,129,0,114,0,114,0,114,9,14,43,54,0,114,25,23,17,26,7,12,8,10,0,114,49,62,80,98,28,31,0,114,0,114,16,13,0,114,0,114]
[null,"$800 to $899",94,77,28,36,25,27,0,114,16,13,3,4,5,8,841,209,18,14,0,114,26,30,156,88,120,78,8,11,89,83,11,19,0,114,0,114,45,38,15,25,142,105,108,77,0,114,9,10,7,10,3,4,0,114]
[null,"$900 to $999",37,45,16,24,33,29,36,32,12,16,0,114,0,114,1195,270,10,15,0,114,26,27,19,21,52,60,11,15,41,42,21,34,8,14,5,6,0,114,11,17,16,26,122,87,8,14,9,13,41,32,8,12,9,15]
[null,"$1,000 to $1,249",47,61,0,114,28,29,84,60,26,19,0,114,7,11,1689,233,16,19,19,14,69,54,299,106,35,48,19,16,215,100,0,114,57,52,8,9,11,17,131,77,92,83,120,76,4,6,2,5,55,32,12,9,4,7]
[null,"$1,250 to $1,499",27,41,19,31,0,114,30,47,9,11,0,114,5,8,644,194,15,17,0,114,12,20,129,82,35,45,0,114,111,53,57,55,8,14,6,10,0,114,103,56,28,39,0,114,0,114,24,20,0,114,11,17,0,114]
[null,"$1,500 to $1,999",19,23,0,114,8,14,0,114,0,114,9,13,0,114,333,100,0,114,40,24,0,114,21,24,31,49,12,15,0,114,12,29,11,19,0,114,52,60,0,114,39,40,0,114,0,114,0,114,16,19,0,114,3,4]
[null,"$2,000 or more",0,114,0,114,0,114,16,25,3,4,0,114,0,114,201,89,0,114,8,13,7,12,0,114,0,114,0,114,15,23,0,114,5,8,0,114,48,56,0,114,0,114,0,114,0,114,0,114,5,7,0,114,0,114]
[null,"No cash rent",50,51,84,55,23,26,0,114,12,15,12,12,0,114,185,88,0,114,0,114,37,57,25,24,20,23,13,15,16,23,20,31,66,60,5,8,0,114,19,21,10,17,0,114,0,114,0,114,36,34,10,9,0,114]
[]
[]
[]
[]
[]
[]
[null,"B25064. MEDIAN GROSS RENT (DOLLARS)"]
[null,"Universe:  RENTER-OCCUPIED HOUSING UNITS PAYING CASH RENT"]
[null,"Data Set: 2005-2009 American Community Survey 5-Year Estimates"]
[null,"Income in 2009 Inflation Adjusted Dollars"]
[null,null,"Allenstown",null,"Andover",null,"Boscawen",null,"Bow",null,"Bradford",null,"Canterbury",null,"Chichester",null,"Concord",null,"Danbury",null,"Dunbarton",null,"Epsom",null,"Franklin",null,"Henniker",null,"Hill",null,"Hooksett",null,"Hopkinton",null,"Loudon",null,"Newbury",null,"New London",null,"Northfield",null,"Pembroke",null,"Pittsfield",null,"Salisbury",null,"Sutton",null,"Warner",null,"Webster",null,"Wilmot"]
[null,null,"Estimate","Margin Of Error","Estimate","Margin Of Error","Estimate","Margin Of Error","Estimate","Margin Of Error","Estimate","Margin Of Error","Estimate","Margin Of Error","Estimate","Margin Of Error","Estimate","Margin Of Error","Estimate","Margin Of Error","Estimate","Margin Of Error","Estimate","Margin Of Error","Estimate","Margin Of Error","Estimate","Margin Of Error","Estimate","Margin Of Error","Estimate","Margin Of Error","Estimate","Margin Of Error","Estimate","Margin Of Error","Estimate","Margin Of Error","Estimate","Margin Of Error","Estimate","Margin Of Error","Estimate","Margin Of Error","Estimate","Margin Of Error","Estimate","Margin Of Error","Estimate","Margin Of Error","Estimate","Margin Of Error","Estimate","Margin Of Error","Estimate","Margin Of Error"]
[null,"Median gross rent",707,103,895,225,777,98,992,186,1019,130,442,34,1125,255,920,27,900,156,1631,162,944,157,739,166,817,75,1007,164,1036,79,1294,509,1132,65,769,218,1011,1009,1044,165,745,45,881,75,944,262,983,472,971,63,975,242,961,192]

{"sheet":"ACS_Table_B25070","index":55,"n_rows":192,"n_cols":56,"rows_kept":192,"cut":false,"hidden":true,"merged":[]}
[null,"B25070. GROSS RENT AS A PERCENTAGE OF HOUSEHOLD INCOME IN THE PAST 12 MONTHS"]
[null,"Universe:  RENTER-OCCUPIED HOUSING UNITS"]
[null,"Data Set: 2015-2019 American Community Survey 5-Year Estimates"]
[]
[null,null,"Allenstown",null,"Andover",null,"Boscawen",null,"Bow",null,"Bradford",null,"Canterbury",null,"Chichester",null,"Concord",null,"Danbury",null,"Dunbarton",null,"Epsom",null,"Franklin",null,"Henniker",null,"Hill",null,"Hooksett",null,"Hopkinton",null,"Loudon",null,"Newbury",null,"New London",null,"Northfield",null,"Pembroke",null,"Pittsfield",null,"Salisbury",null,"Sutton",null,"Warner",null,"Webster",null,"Wilmot"]
[null,null,"Estimate","Margin Of Error","Estimate","Margin Of Error","Estimate","Margin Of Error","Estimate","Margin Of Error","Estimate","Margin Of Error","Estimate","Margin Of Error","Estimate","Margin Of Error","Estimate","Margin Of Error","Estimate","Margin Of Error","Estimate","Margin Of Error","Estimate","Margin Of Error","Estimate","Margin Of Error","Estimate","Margin Of Error","Estimate","Margin Of Error","Estimate","Margin Of Error","Estimate","Margin Of Error","Estimate","Margin Of Error","Estimate","Margin Of Error","Estimate","Margin Of Error","Estimate","Margin Of Error","Estimate","Margin Of Error","Estimate","Margin Of Error","Estimate","Margin Of Error","Estimate","Margin Of Error","Estimate","Margin Of Error","Estimate","Margin Of Error","Estimate","Margin Of Error"]
[null,"Total:",409,114,154,72,288,107,288,76,73,31,78,40,87,53,8278,412,42,17,60,26,282,82,1429,186,449,115,30,21,1284,204,243,100,291,138,64,26,295,90,470,109,582,186,599,147,39,26,90,36,387,91,59,29,149,52]
[null,"Less than 10.0 percent",0,11,6,9,14,22,0,16,0,11,0,11,9,14,256,108,0,11,0,11,0,11,71,67,13,27,0,11,40,58,0,16,18,29,0,11,15,24,0,11,0,16,0,11,0,11,0,11,0,11,5,7,4,5]
[null,"10.0 to 14.9 percent",17,19,0,11,28,31,0,16,3,5,0,11,9,14,727,205,11,17,0,11,45,39,181,124,8,12,4,5,66,59,0,16,0,16,6,9,15,16,15,17,83,64,16,17,5,7,26,24,52,48,9,14,36,27]
[null,"15.0 to 19.9 percent",60,50,24,38,113,94,28,36,8,9,0,11,6,9,1138,198,0,11,11,9,22,23,154,108,77,60,0,11,108,55,87,87,49,59,0,11,72,52,41,35,105,95,71,64,14,17,0,11,59,42,0,11,3,5]
[null,"20.0 to 24.9 percent",48,40,22,17,24,26,28,24,16,20,0,11,0,11,1178,227,0,11,24,19,52,51,173,104,55,47,5,8,198,119,36,38,10,17,6,8,33,32,72,44,75,63,66,53,0,11,5,8,54,40,16,19,26,18]
[null,"25.0 to 29.9 percent",50,38,0,11,63,51,26,24,14,9,9,12,12,19,1039,192,11,16,0,11,40,34,193,77,77,45,0,11,235,102,0,16,18,32,20,15,16,18,110,75,106,80,121,109,0,11,9,14,40,28,0,11,31,24]
[null,"30.0 to 34.9 percent",7,10,6,9,11,18,25,25,12,16,5,8,29,36,582,138,4,5,4,6,13,20,124,66,48,55,0,11,143,58,8,19,37,44,5,7,31,31,28,33,50,47,90,72,0,11,0,11,63,50,0,11,19,19]
[null,"35.0 to 39.9 percent",73,63,22,29,0,11,39,28,10,12,0,11,17,17,498,187,0,11,4,6,24,23,35,55,22,36,0,11,23,27,22,34,0,16,5,7,22,27,56,58,20,32,0,11,11,17,0,11,15,22,0,11,10,16]
[null,"40.0 to 49.9 percent",44,56,8,11,26,29,28,20,0,11,0,11,0,11,834,199,6,8,0,11,36,28,166,113,24,31,0,11,57,35,33,37,0,16,6,8,6,9,124,106,13,20,46,52,9,11,0,11,5,7,0,11,0,11]
[null,"50.0 percent or more",90,69,0,11,0,11,73,50,10,9,35,39,5,7,1728,237,6,6,9,9,30,24,248,121,115,76,14,16,307,141,12,19,121,96,5,7,35,33,7,11,130,105,179,99,0,11,32,27,54,34,4,6,8,8]
[null,"Not computed",20,22,66,54,9,14,41,32,0,11,29,36,0,11,298,125,4,5,8,9,20,23,84,66,10,15,7,7,107,69,45,33,38,46,11,14,50,43,17,18,0,16,10,16,0,11,18,18,45,32,25,20,12,13]
[]
[]
[]
[]
[]
[]
[]
[]
[]
[]
[]
[]
[]
[]
[]
[]
[]
[null,"Calculated B25070. GROSS RENT AS A PERCENTAGE OF HOUSEHOLD INCOME IN THE PAST 12 MONTHS"]
[null,"Universe:  RENTER-OCCUPIED HOUSING UNITS"]
[null,"Data Set: 2015-2019 American Community Survey 5-Year Estimates"]
[]
[null,null,"Allenstown",null,"Andover",null,"Boscawen",null,"Bow",null,"Bradford",null,"Canterbury",null,"Chichester",null,"Concord",null,"Danbury",null,"Dunbarton",null,"Epsom",null,"Franklin",null,"Henniker",null,"Hill",null,"Hooksett",null,"Hopkinton",null,"Loudon",null,"Newbury",null,"New London",null,"Northfield",null,"Pembroke",null,"Pittsfield",null,"Salisbury",null,"Sutton",null,"Warner",null,"Webster",null,"Wilmot"]
[null,null,"Estimate","Margin Of Error","Estimate","Margin Of Error","Estimate","Margin Of Error","Estimate","Margin Of Error","Estimate","Margin Of Error","Estimate","Margin Of Error","Estimate","Margin Of Error","Estimate","Margin Of Error","Estimate","Margin Of Error","Estimate","Margin Of Error","Estimate","Margin Of Error","Estimate","Margin Of Error","Estimate","Margin Of Error","Estimate","Margin Of Error","Estimate","Margin Of Error","Estimate","Margin Of Error","Estimate","Margin Of Error","Estimate","Margin Of Error","Estimate","Margin Of Error","Estimate","Margin Of Error","Estimate","Margin Of Error","Estimate","Margin Of Error","Estimate","Margin Of Error","Estimate","Margin Of Error","Estimate","Margin Of Error","Estimate","Margin Of Error","Estimate","Margin Of Error"]
[null,{"$f":"B7","v":"Total:"},{"$f":"C7","v":409},{"$f":"D7","v":114},{"$f":"E7","v":154},72,288,107,288,76,73,31,78,40,87,53,8278,412,42,17,60,26,282,82,1429,186,449,115,30,21,1284,204,243,100,291,138,64,26,295,90,470,109,582,186,599,147,39,26,90,36,387,91,59,29,149,52]
[null,"Less than 20% of HH Income",{"$f":"C8+C9+C10","v":77},{"$f":"SQRT((D8^2)+(D9^2)+(D10^2))","v":54.607691765904185},{"$f":"E8+E9+E10","v":30},{"$f":"SQRT((F8^2)+(F9^2)+(F10^2))","v":40.570925550201586},{"$f":"G8+G9+G10","v":155},{"$f":"SQRT((H8^2)+(H9^2)+(H10^2))","v":101.39526616169022},{"$f":"I8+I9+I10","v":28},{"$f":"SQRT((J8^2)+(J9^2)+(J10^2))","v":42.5205832509386},{"$f":"K8+K9+K10","v":11},{"$f":"SQRT((L8^2)+(L9^2)+(L10^2))","v":15.066519173319364},{"$f":"M8+M9+M10","v":0},{"$f":"SQRT((N8^2)+(N9^2)+(N10^2))","v":19.05255888325765},{"$f":"O8+O9+O10","v":24},{"$f":"SQRT((P8^2)+(P9^2)+(P10^2))","v":21.748563170931547},{"$f":"Q8+Q9+Q10","v":2121},{"$f":"SQRT((R8^2)+(R9^2)+(R10^2))","v":304.78352973873115},{"$f":"S8+S9+S10","v":11},{"$f":"SQRT((T8^2)+(T9^2)+(T10^2))","v":23.043437243605826},{"$f":"U8+U9+U10","v":11},{"$f":"SQRT((V8^2)+(V9^2)+(V10^2))","v":17.972200755611428},{"$f":"W8+W9+W10","v":67},{"$f":"SQRT((X8^2)+(X9^2)+(X10^2))","v":46.593991028886975},{"$f":"Y8+Y9+Y10","v":406},{"$f":"SQRT((Z8^2)+(Z9^2)+(Z10^2))","v":177.56407294269863},{"$f":"AA8+AA9+AA10","v":98},{"$f":"SQRT((AB8^2)+(AB9^2)+(AB10^2))","v":66.880490428823862},{"$f":"AC8+AC9+AC10","v":4},{"$f":"SQRT((AD8^2)+(AD9^2)+(AD10^2))","v":16.340134638368191},{"$f":"AE8+AE9+AE10","v":214},{"$f":"SQRT((AF8^2)+(AF9^2)+(AF10^2))","v":99.347873656158342},{"$f":"AG8+AG9+AG10","v":87},{"$f":"SQRT((AH8^2)+(AH9^2)+(AH10^2))","v":89.894382471876412},{"$f":"AI8+AI9+AI10","v":67},{"$f":"SQRT((AJ8^2)+(AJ9^2)+(AJ10^2))","v":67.660919296149089},{"$f":"AK8+AK9+AK10","v":6},{"$f":"SQRT((AL8^2)+(AL9^2)+(AL10^2))","v":17.972200755611428},{"$f":"AM8+AM9+AM10","v":102},{"$f":"SQRT((AN8^2)+(AN9^2)+(AN10^2))","v":59.464274989274024},{"$f":"AO8+AO9+AO10","v":56},{"$f":"SQRT((AP8^2)+(AP9^2)+(AP10^2))","v":40.435133238311458},{"$f":"AQ8+AQ9+AQ10","v":188},{"$f":"SQRT((AR8^2)+(AR9^2)+(AR10^2))","v":115.65898149300814},{"$f":"AS8+AS9+AS10","v":87},{"$f":"SQRT((AT8^2)+(AT9^2)+(AT10^2))","v":67.126745787353642},{"$f":"AU8+AU9+AU10","v":19},{"$f":"SQRT((AV8^2)+(AV9^2)+(AV10^2))","v":21.42428528562855},{"$f":"AW8+AW9+AW10","v":26},{"$f":"SQRT((AX8^2)+(AX9^2)+(AX10^2))","v":28.600699292150182},{"$f":"AY8+AY9+AY10","v":111},{"$f":"SQRT((AZ8^2)+(AZ9^2)+(AZ10^2))","v":64.722484501137629},{"$f":"BA8+BA9+BA10","v":14},{"$f":"SQRT((BB8^2)+(BB9^2)+(BB10^2))","v":19.131126469708992},{"$f":"BC8+BC9+BC10","v":43},{"$f":"SQRT((BD8^2)+(BD9^2)+(BD10^2))","v":27.910571473905726}]
[null," 20% to 24.9% of HH Income",{"$f":"C11","v":48},{"$f":"D11","v":40},{"$f":"E11","v":22},17,24,26,28,24,16,20,0,11,0,11,1178,227,0,11,24,19,52,51,173,104,55,47,5,8,198,119,36,38,10,17,6,8,33,32,72,44,75,63,66,53,0,11,5,8,54,40,16,19,26,18]
[null," 25% to 29.9% of HH Income",{"$f":"C12","v":50},{"$f":"D12","v":38},0,11,63,51,26,24,14,9,9,12,12,19,1039,192,11,16,0,11,40,34,193,77,77,45,0,11,235,102,0,16,18,32,20,15,16,18,110,75,106,80,121,109,0,11,9,14,40,28,0,11,31,24]
[null," Less Than 30% of HH Income",{"$f":"C12+C11+C10+C9+C8","v":175},{"$f":"SQRT((D12^2)+(D11^2)+(D10^2)+(D9^2)+(D8^2))","v":77.627314780301404},{"$f":"E12+E11+E10+E9+E8","v":52},{"$f":"SQRT((F12^2)+(F11^2)+(F10^2)+(F9^2)+(F8^2))","v":45.343136195018538},{"$f":"G12+G11+G10+G9+G8","v":242},{"$f":"SQRT((H12^2)+(H11^2)+(H10^2)+(H9^2)+(H8^2))","v":116.43882514007088},{"$f":"I12+I11+I10+I9+I8","v":82},{"$f":"SQRT((J12^2)+(J11^2)+(J10^2)+(J9^2)+(J8^2))","v":54.405882034941776},{"$f":"K12+K11+K10+K9+K8","v":41},{"$f":"SQRT((L12^2)+(L11^2)+(L10^2)+(L9^2)+(L8^2))","v":26.608269391300141},{"$f":"M12+M11+M10+M9+M8","v":9},{"$f":"SQRT((N12^2)+(N11^2)+(N10^2)+(N9^2)+(N8^2))","v":25.059928172283335},{"$f":"O12+O11+O10+O9+O8","v":36},{"$f":"SQRT((P12^2)+(P11^2)+(P10^2)+(P9^2)+(P8^2))","v":30.903074280724887},{"$f":"Q12+Q11+Q10+Q9+Q8","v":4338},{"$f":"SQRT((R12^2)+(R11^2)+(R10^2)+(R9^2)+(R8^2))","v":425.77693690476002},{"$f":"S12+S11+S10+S9+S8","v":22},{"$f":"SQRT((T12^2)+(T11^2)+(T10^2)+(T9^2)+(T8^2))","v":30.133038346638727},{"$f":"U12+U11+U10+U9+U8","v":35},{"$f":"SQRT((V12^2)+(V11^2)+(V10^2)+(V9^2)+(V8^2))","v":28.372521918222215},{"$f":"W12+W11+W10+W9+W8","v":159},{"$f":"SQRT((X12^2)+(X11^2)+(X10^2)+(X9^2)+(X8^2))","v":76.993506219680626},{"$f":"Y12+Y11+Y10+Y9+Y8","v":772},{"$f":"SQRT((Z12^2)+(Z11^2)+(Z10^2)+(Z9^2)+(Z8^2))","v":219.71344974762013},{"$f":"AA12+AA11+AA10+AA9+AA8","v":230},{"$f":"SQRT((AB12^2)+(AB11^2)+(AB10^2)+(AB9^2)+(AB8^2))","v":93.311306924723752},{"$f":"AC12+AC11+AC10+AC9+AC8","v":9},{"$f":"SQRT((AD12^2)+(AD11^2)+(AD10^2)+(AD9^2)+(AD8^2))","v":21.2602916254693},{"$f":"AE12+AE11+AE10+AE9+AE8","v":647},{"$f":"SQRT((AF12^2)+(AF11^2)+(AF10^2)+(AF9^2)+(AF8^2))","v":185.5666995988235},{"$f":"AG12+AG11+AG10+AG9+AG8","v":123},{"$f":"SQRT((AH12^2)+(AH11^2)+(AH10^2)+(AH9^2)+(AH8^2))","v":98.89893831583835},{"$f":"AI12+AI11+AI10+AI9+AI8","v":95},{"$f":"SQRT((AJ12^2)+(AJ11^2)+(AJ10^2)+(AJ9^2)+(AJ8^2))","v":76.752850109947062},{"$f":"AK12+AK11+AK10+AK9+AK8","v":32},{"$f":"SQRT((AL12^2)+(AL11^2)+(AL10^2)+(AL9^2)+(AL8^2))","v":24.738633753705962},{"$f":"AM12+AM11+AM10+AM9+AM8","v":151},{"$f":"SQRT((AN12^2)+(AN11^2)+(AN10^2)+(AN9^2)+(AN8^2))","v":69.88562083862459},{"$f":"AO12+AO11+AO10+AO9+AO8","v":238},{"$f":"SQRT((AP12^2)+(AP11^2)+(AP10^2)+(AP9^2)+(AP8^2))","v":95.895776757894822},{"$f":"AQ12+AQ11+AQ10+AQ9+AQ8","v":369},{"$f":"SQRT((AR12^2)+(AR11^2)+(AR10^2)+(AR9^2)+(AR8^2))","v":154.09737181405788},{"$f":"AS12+AS11+AS10+AS9+AS8","v":274},{"$f":"SQRT((AT12^2)+(AT11^2)+(AT10^2)+(AT9^2)+(AT8^2))","v":138.54963009694396},{"$f":"AU12+AU11+AU10+AU9+AU8","v":19},{"$f":"SQRT((AV12^2)+(AV11^2)+(AV10^2)+(AV9^2)+(AV8^2))","v":26.476404589747453},{"$f":"AW12+AW11+AW10+AW9+AW8","v":40},{"$f":"SQRT((AX12^2)+(AX11^2)+(AX10^2)+(AX9^2)+(AX8^2))","v":32.832910318764007},{"$f":"AY12+AY11+AY10+AY9+AY8","v":205},{"$f":"SQRT((AZ12^2)+(AZ11^2)+(AZ10^2)+(AZ9^2)+(AZ8^2))","v":81.074040234837199},{"$f":"BA12+BA11+BA10+BA9+BA8","v":30},{"$f":"SQRT((BB12^2)+(BB11^2)+(BB10^2)+(BB9^2)+(BB8^2))","v":29.120439557122072},{"$f":"BC12+BC11+BC10+BC9+BC8","v":100},{"$f":"SQRT((BD12^2)+(BD11^2)+(BD10^2)+(BD9^2)+(BD8^2))","v":40.975602497095757}]
[null," 30% or More of HH Income",{"$f":"C13+C14+C15+C16","v":214},{"$f":"SQRT((D13^2)+(D14^2)+(D15^2)+(D16^2))","v":109.38921336219582},{"$f":"E13+E14+E15+E16","v":36},{"$f":"SQRT((F13^2)+(F14^2)+(F15^2)+(F16^2))","v":34.117444218463959},{"$f":"G13+G14+G15+G16","v":37},{"$f":"SQRT((H13^2)+(H14^2)+(H15^2)+(H16^2))","v":37.509998667022103},{"$f":"I13+I14+I15+I16","v":165},{"$f":"SQRT((J13^2)+(J14^2)+(J15^2)+(J16^2))","v":65.642973729105236},{"$f":"K13+K14+K15+K16","v":32},{"$f":"SQRT((L13^2)+(L14^2)+(L15^2)+(L16^2))","v":24.535688292770594},{"$f":"M13+M14+M15+M16","v":40},{"$f":"SQRT((N13^2)+(N14^2)+(N15^2)+(N16^2))","v":42.743420546325019},{"$f":"O13+O14+O15+O16","v":51},{"$f":"SQRT((P13^2)+(P14^2)+(P15^2)+(P16^2))","v":41.892720131306824},{"$f":"Q13+Q14+Q15+Q16","v":3642},{"$f":"SQRT((R13^2)+(R14^2)+(R15^2)+(R16^2))","v":387.01808743261597},{"$f":"S13+S14+S15+S16","v":16},{"$f":"SQRT((T13^2)+(T14^2)+(T15^2)+(T16^2))","v":15.684387141358123},{"$f":"U13+U14+U15+U16","v":17},{"$f":"SQRT((V13^2)+(V14^2)+(V15^2)+(V16^2))","v":16.552945357246848},{"$f":"W13+W14+W15+W16","v":103},{"$f":"SQRT((X13^2)+(X14^2)+(X15^2)+(X16^2))","v":47.843494855622744},{"$f":"Y13+Y14+Y15+Y16","v":573},{"$f":"SQRT((Z13^2)+(Z14^2)+(Z15^2)+(Z16^2))","v":186.52345696989428},{"$f":"AA13+AA14+AA15+AA16","v":209},{"$f":"SQRT((AB13^2)+(AB14^2)+(AB15^2)+(AB16^2))","v":105.15702544290609},{"$f":"AC13+AC14+AC15+AC16","v":14},{"$f":"SQRT((AD13^2)+(AD14^2)+(AD15^2)+(AD16^2))","v":24.879710609249457},{"$f":"AE13+AE14+AE15+AE16","v":530},{"$f":"SQRT((AF13^2)+(AF14^2)+(AF15^2)+(AF16^2))","v":158.74192892868601},{"$f":"AG13+AG14+AG15+AG16","v":75},{"$f":"SQRT((AH13^2)+(AH14^2)+(AH15^2)+(AH16^2))","v":56.982453439633503},{"$f":"AI13+AI14+AI15+AI16","v":158},{"$f":"SQRT((AJ13^2)+(AJ14^2)+(AJ15^2)+(AJ16^2))","v":108},{"$f":"AK13+AK14+AK15+AK16","v":21},{"$f":"SQRT((AL13^2)+(AL14^2)+(AL15^2)+(AL16^2))","v":14.52583904633395},{"$f":"AM13+AM14+AM15+AM16","v":94},{"$f":"SQRT((AN13^2)+(AN14^2)+(AN15^2)+(AN16^2))","v":53.478967828483754},{"$f":"AO13+AO14+AO15+AO16","v":215},{"$f":"SQRT((AP13^2)+(AP14^2)+(AP15^2)+(AP16^2))","v":125.73782247199925},{"$f":"AQ13+AQ14+AQ15+AQ16","v":213},{"$f":"SQRT((AR13^2)+(AR14^2)+(AR15^2)+(AR16^2))","v":121.07022755409358},{"$f":"AS13+AS14+AS15+AS16","v":315},{"$f":"SQRT((AT13^2)+(AT14^2)+(AT15^2)+(AT16^2))","v":133.45411196362591},{"$f":"AU13+AU14+AU15+AU16","v":20},{"$f":"SQRT((AV13^2)+(AV14^2)+(AV15^2)+(AV16^2))","v":25.534290669607408},{"$f":"AW13+AW14+AW15+AW16","v":32},{"$f":"SQRT((AX13^2)+(AX14^2)+(AX15^2)+(AX16^2))","v":33.045423283716609},{"$f":"AY13+AY14+AY15+AY16","v":137},{"$f":"SQRT((AZ13^2)+(AZ14^2)+(AZ15^2)+(AZ16^2))","v":64.722484501137629},{"$f":"BA13+BA14+BA15+BA16","v":4},{"$f":"SQRT((BB13^2)+(BB14^2)+(BB15^2)+(BB16^2))","v":19.974984355438178},{"$f":"BC13+BC14+BC15+BC16","v":37},{"$f":"SQRT((BD13^2)+(BD14^2)+(BD15^2)+(BD16^2))","v":28.319604517012593}]
[null," 30% to 34.9% of HH Income",{"$f":"C13","v":7},{"$f":"D13","v":10},{"$f":"E13","v":6},9,11,18,25,25,12,16,5,8,29,36,582,138,4,5,4,6,13,20,124,66,48,55,0,11,143,58,8,19,37,44,5,7,31,31,28,33,50,47,90,72,0,11,0,11,63,50,0,11,19,19]
[null," Less Than 35% of HH Income",{"$f":"C13+C12+C11+C10+C9+C8","v":182},{"$f":"SQRT((D13^2)+(D12^2)+(D11^2)+(D10^2)+(D9^2)+(D8^2))","v":78.268767717397978},{"$f":"E13+E12+E11+E10+E9+E8","v":58},{"$f":"SQRT((F13^2)+(F12^2)+(F11^2)+(F10^2)+(F9^2)+(F8^2))","v":46.227697325304881},{"$f":"G13+G12+G11+G10+G9+G8","v":253},{"$f":"SQRT((H13^2)+(H12^2)+(H11^2)+(H10^2)+(H9^2)+(H8^2))","v":117.82189949241184},{"$f":"I13+I12+I11+I10+I9+I8","v":107},{"$f":"SQRT((J13^2)+(J12^2)+(J11^2)+(J10^2)+(J9^2)+(J8^2))","v":59.874869519690812},{"$f":"K13+K12+K11+K10+K9+K8","v":53},{"$f":"SQRT((L13^2)+(L12^2)+(L11^2)+(L10^2)+(L9^2)+(L8^2))","v":31.048349392520048},{"$f":"M13+M12+M11+M10+M9+M8","v":14},{"$f":"SQRT((N13^2)+(N12^2)+(N11^2)+(N10^2)+(N9^2)+(N8^2))","v":26.305892875931811},{"$f":"O13+O12+O11+O10+O9+O8","v":65},{"$f":"SQRT((P13^2)+(P12^2)+(P11^2)+(P10^2)+(P9^2)+(P8^2))","v":47.444704657105831},{"$f":"Q13+Q12+Q11+Q10+Q9+Q8","v":4920},{"$f":"SQRT((R13^2)+(R12^2)+(R11^2)+(R10^2)+(R9^2)+(R8^2))","v":447.58239464929807},{"$f":"S13+S12+S11+S10+S9+S8","v":26},{"$f":"SQRT((T13^2)+(T12^2)+(T11^2)+(T10^2)+(T9^2)+(T8^2))","v":30.545048698602528},{"$f":"U13+U12+U11+U10+U9+U8","v":39},{"$f":"SQRT((V13^2)+(V12^2)+(V11^2)+(V10^2)+(V9^2)+(V8^2))","v":29},{"$f":"W13+W12+W11+W10+W9+W8","v":172},{"$f":"SQRT((X13^2)+(X12^2)+(X11^2)+(X10^2)+(X9^2)+(X8^2))","v":79.54872720540537},{"$f":"Y13+Y12+Y11+Y10+Y9+Y8","v":896},{"$f":"SQRT((Z13^2)+(Z12^2)+(Z11^2)+(Z10^2)+(Z9^2)+(Z8^2))","v":229.41229260874405},{"$f":"AA13+AA12+AA11+AA10+AA9+AA8","v":278},{"$f":"SQRT((AB13^2)+(AB12^2)+(AB11^2)+(AB10^2)+(AB9^2)+(AB8^2))","v":108.31435731240803},{"$f":"AC13+AC12+AC11+AC10+AC9+AC8","v":9},{"$f":"SQRT((AD13^2)+(AD12^2)+(AD11^2)+(AD10^2)+(AD9^2)+(AD8^2))","v":23.937418407171648},{"$f":"AE13+AE12+AE11+AE10+AE9+AE8","v":790},{"$f":"SQRT((AF13^2)+(AF12^2)+(AF11^2)+(AF10^2)+(AF9^2)+(AF8^2))","v":194.41964921272748},{"$f":"AG13+AG12+AG11+AG10+AG9+AG8","v":131},{"$f":"SQRT((AH13^2)+(AH12^2)+(AH11^2)+(AH10^2)+(AH9^2)+(AH8^2))","v":100.70749723828906},{"$f":"AI13+AI12+AI11+AI10+AI9+AI8","v":132},{"$f":"SQRT((AJ13^2)+(AJ12^2)+(AJ11^2)+(AJ10^2)+(AJ9^2)+(AJ8^2))","v":88.470334010898824},{"$f":"AK13+AK12+AK11+AK10+AK9+AK8","v":37},{"$f":"SQRT((AL13^2)+(AL12^2)+(AL11^2)+(AL10^2)+(AL9^2)+(AL8^2))","v":25.709920264364882},{"$f":"AM13+AM12+AM11+AM10+AM9+AM8","v":182},{"$f":"SQRT((AN13^2)+(AN12^2)+(AN11^2)+(AN10^2)+(AN9^2)+(AN8^2))","v":76.452599694189601},{"$f":"AO13+AO12+AO11+AO10+AO9+AO8","v":266},{"$f":"SQRT((AP13^2)+(AP12^2)+(AP11^2)+(AP10^2)+(AP9^2)+(AP8^2))","v":101.41498903022176},{"$f":"AQ13+AQ12+AQ11+AQ10+AQ9+AQ8","v":419},{"$f":"SQRT((AR13^2)+(AR12^2)+(AR11^2)+(AR10^2)+(AR9^2)+(AR8^2))","v":161.1055554597668},{"$f":"AS13+AS12+AS11+AS10+AS9+AS8","v":364},{"$f":"SQRT((AT13^2)+(AT12^2)+(AT11^2)+(AT10^2)+(AT9^2)+(AT8^2))","v":156.14096195425466},{"$f":"AU13+AU12+AU11+AU10+AU9+AU8","v":19},{"$f":"SQRT((AV13^2)+(AV12^2)+(AV11^2)+(AV10^2)+(AV9^2)+(AV8^2))","v":28.670542373662901},{"$f":"AW13+AW12+AW11+AW10+AW9+AW8","v":40},{"$f":"SQRT((AX13^2)+(AX12^2)+(AX11^2)+(AX10^2)+(AX9^2)+(AX8^2))","v":34.62657938636157},{"$f":"AY13+AY12+AY11+AY10+AY9+AY8","v":268},{"$f":"SQRT((AZ13^2)+(AZ12^2)+(AZ11^2)+(AZ10^2)+(AZ9^2)+(AZ8^2))","v":95.252296560240481},{"$f":"BA13+BA12+BA11+BA10+BA9+BA8","v":30},{"$f":"SQRT((BB13^2)+(BB12^2)+(BB11^2)+(BB10^2)+(BB9^2)+(BB8^2))","v":31.128764832546761},{"$f":"BC13+BC12+BC11+BC10+BC9+BC8","v":119},{"$f":"SQRT((BD13^2)+(BD12^2)+(BD11^2)+(BD10^2)+(BD9^2)+(BD8^2))","v":45.166359162544857}]
[null," 35% or More of HH Income",{"$f":"C14+C15+C16","v":207},{"$f":"SQRT((D14^2)+(D15^2)+(D16^2))","v":108.93117092916977},{"$f":"E14+E15+E16","v":30},{"$f":"SQRT((F14^2)+(F15^2)+(F16^2))","v":32.908965343808667},{"$f":"G14+G15+G16","v":26},{"$f":"SQRT((H14^2)+(H15^2)+(H16^2))","v":32.908965343808667},{"$f":"I14+I15+I16","v":140},{"$f":"SQRT((J14^2)+(J15^2)+(J16^2))","v":60.695963621974073},{"$f":"K14+K15+K16","v":20},{"$f":"SQRT((L14^2)+(L15^2)+(L16^2))","v":18.601075237738275},{"$f":"M14+M15+M16","v":35},{"$f":"SQRT((N14^2)+(N15^2)+(N16^2))","v":41.98809355043403},{"$f":"O14+O15+O16","v":22},{"$f":"SQRT((P14^2)+(P15^2)+(P16^2))","v":21.42428528562855},{"$f":"Q14+Q15+Q16","v":3060},{"$f":"SQRT((R14^2)+(R15^2)+(R16^2))","v":361.57848387314198},{"$f":"S14+S15+S16","v":12},{"$f":"SQRT((T14^2)+(T15^2)+(T16^2))","v":14.866068747318506},{"$f":"U14+U15+U16","v":13},{"$f":"SQRT((V14^2)+(V15^2)+(V16^2))","v":15.427248620541512},{"$f":"W14+W15+W16","v":90},{"$f":"SQRT((X14^2)+(X15^2)+(X16^2))","v":43.46262762420146},{"$f":"Y14+Y15+Y16","v":449},{"$f":"SQRT((Z14^2)+(Z15^2)+(Z16^2))","v":174.45629825259965},{"$f":"AA14+AA15+AA16","v":161},{"$f":"SQRT((AB14^2)+(AB15^2)+(AB16^2))","v":89.627004859026727},{"$f":"AC14+AC15+AC16","v":14},{"$f":"SQRT((AD14^2)+(AD15^2)+(AD16^2))","v":22.315913604421397},{"$f":"AE14+AE15+AE16","v":387},{"$f":"SQRT((AF14^2)+(AF15^2)+(AF16^2))","v":147.76670802315385},{"$f":"AG14+AG15+AG16","v":67},{"$f":"SQRT((AH14^2)+(AH15^2)+(AH16^2))","v":53.721504074253168},{"$f":"AI14+AI15+AI16","v":121},{"$f":"SQRT((AJ14^2)+(AJ15^2)+(AJ16^2))","v":98.630624047503616},{"$f":"AK14+AK15+AK16","v":16},{"$f":"SQRT((AL14^2)+(AL15^2)+(AL16^2))","v":12.727922061357855},{"$f":"AM14+AM15+AM16","v":63},{"$f":"SQRT((AN14^2)+(AN15^2)+(AN16^2))","v":43.577517139001849},{"$f":"AO14+AO15+AO16","v":187},{"$f":"SQRT((AP14^2)+(AP15^2)+(AP16^2))","v":121.33012816279393},{"$f":"AQ14+AQ15+AQ16","v":163},{"$f":"SQRT((AR14^2)+(AR15^2)+(AR16^2))","v":111.57508682497182},{"$f":"AS14+AS15+AS16","v":225},{"$f":"SQRT((AT14^2)+(AT15^2)+(AT16^2))","v":112.36547512470189},{"$f":"AU14+AU15+AU16","v":20},{"$f":"SQRT((AV14^2)+(AV15^2)+(AV16^2))","v":23.043437243605826},{"$f":"AW14+AW15+AW16","v":32},{"$f":"SQRT((AX14^2)+(AX15^2)+(AX16^2))","v":31.160872901765767},{"$f":"AY14+AY15+AY16","v":74},{"$f":"SQRT((AZ14^2)+(AZ15^2)+(AZ16^2))","v":41.097445176069037},{"$f":"BA14+BA15+BA16","v":4},{"$f":"SQRT((BB14^2)+(BB15^2)+(BB16^2))","v":16.673332000533065},{"$f":"BC14+BC15+BC16","v":18},{"$f":"SQRT((BD14^2)+(BD15^2)+(BD16^2))","v":21}]
[null," 50% or More of HH Income",{"$f":"C16","v":90},{"$f":"D16","v":69},{"$f":"E16","v":0},11,0,11,73,50,10,9,35,39,5,7,1728,237,6,6,9,9,30,24,248,121,115,76,14,16,307,141,12,19,121,96,5,7,35,33,7,11,130,105,179,99,0,11,32,27,54,34,4,6,8,8]
[null,"Not computed",{"$f":"C17","v":20},{"$f":"D17","v":22},66,54,9,14,41,32,0,11,29,36,0,11,298,125,4,5,8,9,20,23,84,66,10,15,7,7,107,69,45,33,38,46,11,14,50,43,17,18,0,16,10,16,0,11,18,18,45,32,25,20,12,13]
[]
[]
[]
[]
[]
[]
[]
[]
[]
[]
[]
[]
[]
[]
[]
[]
[]
[]
[]
[]
[]
[]
[]
[]
[]
[]
[]
[]
[]
[]
[]
[]
[]
[]
[]
[]
[]
[]
[]
[]
[]
[]
[]
[]
[]
[]
[]
[]
[]
[]
[]
[]
[null,"B25070. GROSS RENT AS A PERCENTAGE OF HOUSEHOLD INCOME IN THE PAST 12 MONTHS"]
[null,"Universe:  RENTER-OCCUPIED HOUSING UNITS"]
[null,"Data Set: 2010-2014 American Community Survey 5-Year Estimates"]
[]
[null,null,"Allenstown",null,"Andover",null,"Boscawen",null,"Bow",null,"Bradford",null,"Canterbury",null,"Chichester",null,"Concord",null,"Danbury",null,"Dunbarton",null,"Epsom",null,"Franklin",null,"Henniker",null,"Hill",null,"Hooksett",null,"Hopkinton",null,"Loudon",null,"Newbury",null,"New London",null,"Northfield",null,"Pembroke",null,"Pittsfield",null,"Salisbury",null,"Sutton",null,"Warner",null,"Webster",null,"Wilmot"]
[null,null,"Estimate","Margin Of Error","Estimate","Margin Of Error","Estimate","Margin Of Error","Estimate","Margin Of Error","Estimate","Margin Of Error","Estimate","Margin Of Error","Estimate","Margin Of Error","Estimate","Margin Of Error","Estimate","Margin Of Error","Estimate","Margin Of Error","Estimate","Margin Of Error","Estimate","Margin Of Error","Estimate","Margin Of Error","Estimate","Margin Of Error","Estimate","Margin Of Error","Estimate","Margin Of Error","Estimate","Margin Of Error","Estimate","Margin Of Error","Estimate","Margin Of Error","Estimate","Margin Of Error","Estimate","Margin Of Error","Estimate","Margin Of Error","Estimate","Margin Of Error","Estimate","Margin Of Error","Estimate","Margin Of Error","Estimate","Margin Of Error","Estimate","Margin Of Error"]
[null,"Total:",535,128,136,60,386,104,317,80,79,33,40,21,98,50,7765,311,95,43,136,55,286,108,1364,180,527,116,32,23,743,144,276,113,320,119,40,29,369,114,416,87,801,168,624,113,41,25,92,38,252,84,97,46,110,42]
[null,"Less than 10.0 percent",17,20,3,4,0,11,0,15,0,11,0,11,30,34,224,102,0,11,17,14,0,11,31,34,31,47,0,11,51,65,0,15,27,44,0,11,40,40,10,16,91,99,61,53,0,11,4,7,21,27,0,11,14,18]
[null,"10.0 to 14.9 percent",29,39,0,11,15,24,18,26,3,6,7,10,9,9,412,130,0,11,0,11,14,13,89,68,44,50,0,11,0,17,50,62,20,32,0,11,32,37,8,13,10,20,29,36,0,11,10,15,39,28,7,8,8,12]
[null,"15.0 to 19.9 percent",104,68,16,25,41,56,8,11,2,3,5,8,21,25,934,199,33,27,3,5,0,11,52,33,75,69,2,5,110,69,53,68,0,15,0,11,59,55,108,54,89,79,58,44,6,7,0,11,27,29,14,11,22,23]
[null,"20.0 to 24.9 percent",34,33,28,31,20,29,24,28,8,8,8,12,5,7,1252,242,44,32,13,12,49,66,105,64,30,28,17,20,167,86,82,89,15,24,10,10,30,33,73,59,125,92,82,53,2,5,25,21,12,11,4,6,4,5]
[null,"25.0 to 29.9 percent",43,27,3,5,39,27,17,23,6,6,5,9,0,11,913,185,0,11,15,17,8,13,155,66,55,54,5,6,63,45,43,41,88,74,12,14,0,11,16,19,52,49,60,46,0,11,26,24,37,36,12,9,9,15]
[null,"30.0 to 34.9 percent",47,45,6,10,41,33,32,27,5,7,0,11,3,6,735,176,0,11,29,30,35,24,125,68,94,61,0,11,53,38,39,61,45,66,4,6,50,36,0,11,100,96,56,45,0,11,0,11,32,33,23,22,11,15]
[null,"35.0 to 39.9 percent",78,86,5,7,32,35,19,25,14,16,0,11,0,11,423,140,0,11,0,11,41,40,56,57,5,9,0,11,26,30,9,16,28,33,0,11,8,12,9,16,0,15,16,18,0,11,0,11,13,14,10,16,0,11]
[null,"40.0 to 49.9 percent",52,39,19,23,41,43,63,51,14,18,0,11,17,23,920,209,6,9,16,16,26,43,171,92,40,45,0,11,95,56,0,15,23,36,0,11,35,39,44,33,16,25,63,63,0,11,0,11,40,40,13,19,10,15]
[null,"50.0 percent or more",80,65,27,22,137,74,107,63,20,17,10,10,0,11,1618,227,3,5,10,11,81,51,469,144,128,87,4,6,145,66,0,15,46,38,0,11,62,45,139,73,282,116,172,87,27,23,10,15,27,36,14,17,29,22]
[null,"Not computed",51,75,29,24,20,20,29,41,7,8,5,7,13,15,334,161,9,8,33,34,32,42,111,64,25,28,4,6,33,31,0,15,28,31,14,23,53,50,9,13,36,39,27,40,6,6,17,17,4,7,0,11,3,4]
[]
[]
[]
[]
[]
[]
[]
[]
[]
[]
[]
[]
[]
[]
[]
[]
[]
[null,"Calculated B25070. GROSS RENT AS A PERCENTAGE OF HOUSEHOLD INCOME IN THE PAST 12 MONTHS"]
[null,"Universe:  RENTER-OCCUPIED HOUSING UNITS"]
[null,"Data Set: 2010-2014 American Community Survey 5-Year Estimates"]
[]
[null,null,"Allenstown",null,"Andover",null,"Boscawen",null,"Bow",null,"Bradford",null,"Canterbury",null,"Chichester",null,"Concord",null,"Danbury",null,"Dunbarton",null,"Epsom",null,"Franklin",null,"Henniker",null,"Hill",null,"Hooksett",null,"Hopkinton",null,"Loudon",null,"Newbury",null,"New London",null,"Northfield",null,"Pembroke",null,"Pittsfield",null,"Salisbury",null,"Sutton",null,"Warner",null,"Webster",null,"Wilmot"]
[null," ","Estimate","Margin of Error","Estimate","Margin of Error","Estimate","Margin of Error","Estimate","Margin of Error","Estimate","Margin of Error","Estimate","Margin of Error","Estimate","Margin of Error","Estimate","Margin of Error","Estimate","Margin of Error","Estimate","Margin of Error","Estimate","Margin of Error","Estimate","Margin of Error","Estimate","Margin of Error","Estimate","Margin of Error","Estimate","Margin of Error","Estimate","Margin of Error","Estimate","Margin of Error","Estimate","Margin of Error","Estimate","Margin of Error","Estimate","Margin of Error","Estimate","Margin of Error","Estimate","Margin of Error","Estimate","Margin of Error","Estimate","Margin of Error","Estimate","Margin of Error","Estimate","Margin of Error","Estimate","Margin of Error"]
[null,"Total:",535,128,136,60,386,104,317,80,79,33,40,21,98,50,7765,311,95,43,136,55,286,108,1364,180,527,116,32,23,743,144,276,113,320,119,40,29,369,114,416,87,801,168,624,113,41,25,92,38,252,84,97,46,110,42]
[null,"Less than 20% of HH Income",150,80.901174280723509,19,27.604347483684521,56,61.911226768656427,26,31.968734726291562,5,12.884098726725126,12,16.881943016134134,60,43.150898020782833,1570,258.6600085053737,33,31.160872901765767,20,18.493242008906929,14,20.273134932713294,172,82.879430499973878,150,97.313925005622906,2,16.340134638368191,161,96.306801421291112,103,93.23625904121208,47,56.435804238089851,0,19.05255888325765,131,77.420927403383644,126,57.801384066473702,190,128.22636234409833,148,77.72387020729218,6,17.058722109231979,14,19.874606914351791,87,48.518037882832814,21,17.4928556845359,44,31.575306807693888]
[null," 20% to 24.9% of HH Income",34,33,28,31,20,29,24,28,8,8,8,12,5,7,1252,242,44,32,13,12,49,66,105,64,30,28,17,20,167,86,82,89,15,24,10,10,30,33,73,59,125,92,82,53,2,5,25,21,12,11,4,6,4,5]
[null," 25% to 29.9% of HH Income",43,27,3,5,39,27,17,23,6,6,5,9,0,11,913,185,0,11,15,17,8,13,155,66,55,54,5,6,63,45,43,41,88,74,12,14,0,11,16,19,52,49,60,46,0,11,26,24,37,36,12,9,9,15]
[null," Less Than 30% of HH Income",227,91.449439582755232,50,41.809089920733747,115,73.505101863748209,67,48.321837713398274,19,16.30950643030009,25,22.583179581272429,65,45.077710678338576,3735,399.61731694209647,77,46,48,27.838821814150108,71,70.256672281001187,432,123.77802712921223,235,114.76062042355818,24,26.514147167125703,391,136.73331708109768,228,135.25901079040909,150,96.109312764164528,22,25.670995305986871,161,84.876380695691779,215,84.752581081640216,367,165.24829802451825,290,104.71867073258713,8,20.904544960366874,65,37.576588456111871,136,61.40846847137616,37,20.566963801203133,57,35.312887166019152]
[null," 30% or More of HH Income",257,123.15437466854354,57,34.08812109811862,251,98.178409031721429,221,89.016852337071541,53,30.298514815086232,10,21.517434791350013,20,28.407745422683583,3696,381.81932900260563,9,18.654758106177631,55,37.389838191679836,183,81.400245699874887,821,192.54350157821477,267,115.7410903698423,4,19.974984355438178,319,99.176610145739502,48,66.53570470055908,142,90.470989825468365,4,19.974984355438178,155,70.611613775638915,192,82.431789984204514,398,153.36883646947317,307,117.84311604841413,27,29.866369046136157,10,24.248711305964282,112,64.660652641308843,60,37.282703764614496,50,32.480763537823428]
[null," 30% to 34.9% of HH Income",47,45,6,10,41,33,32,27,5,7,0,11,3,6,735,176,0,11,29,30,35,24,125,68,94,61,0,11,53,38,39,61,45,66,4,6,50,36,0,11,100,96,56,45,0,11,0,11,32,33,23,22,11,15]
[null," Less Than 35% of HH Income",274,101.92153844992725,56,42.988370520409354,156,80.572948313934745,99,55.353410012392189,24,17.748239349298849,25,25.119713374160941,68,45.475268003608292,4470,436.6577607234297,77,47.296934361541872,77,40.926763859362246,106,74.242844773082339,557,141.22676800097071,329,129.96538000559994,24,28.705400188814647,444,141.91546779685433,267,148.37789592793126,195,116.58902178164118,26,26.362852652928137,211,92.195444572928878,215,85.463442476885987,467,191.10991601693513,346,113.97806806574675,8,23.622023622035432,65,39.153543900903784,168,69.713700231733498,60,30.116440692751194,68,38.366652186501753]
[null," 35% or More of HH Income",210,114.63856244737195,51,32.58834147360065,210,92.466210044534648,189,84.823345842993007,48,29.478805945967352,10,18.493242008906929,17,27.766886753829642,2961,338.83624363400088,9,15.066519173319364,26,22.315913604421397,148,77.781745930520231,696,180.13605968822566,173,98.361577864530005,4,16.673332000533065,266,91.60785992479029,9,26.570660511172846,97,61.878914017619927,0,19.05255888325765,105,60.745370193949761,192,81.694553062000409,298,119.60769206033531,251,108.91280916402809,27,27.766886753829642,10,21.61018278497431,80,55.605755097831377,37,30.099833886584822,39,28.809720581775867]
[null," 50% or More of HH Income",80,65,27,22,137,74,107,63,20,17,10,10,0,11,1618,227,3,5,10,11,81,51,469,144,128,87,4,6,145,66,0,15,46,38,0,11,62,45,139,73,282,116,172,87,27,23,10,15,27,36,14,17,29,22]
[null,"Not computed",51,75,29,24,20,20,29,41,7,8,5,7,13,15,334,161,9,8,33,34,32,42,111,64,25,28,4,6,33,31,0,15,28,31,14,23,53,50,9,13,36,39,27,40,6,6,17,17,4,7,0,11,3,4]
[]
[]
[]
[null,"B25070. GROSS RENT AS A PERCENTAGE OF HOUSEHOLD INCOME IN THE PAST 12 MONTHS"]
[null,"Universe:  RENTER-OCCUPIED HOUSING UNITS"]
[null,"Data Set: 2005-2009 American Community Survey 3-Year Estimates"]
[]
[null,null,"Allenstown",null,"Andover",null,"Boscawen",null,"Bow",null,"Bradford",null,"Canterbury",null,"Chichester",null,"Concord",null,"Danbury",null,"Dunbarton",null,"Epsom",null,"Franklin",null,"Henniker",null,"Hill",null,"Hooksett",null,"Hopkinton",null,"Loudon",null,"Newbury",null,"New London",null,"Northfield",null,"Pembroke",null,"Pittsfield",null,"Salisbury",null,"Sutton",null,"Warner",null,"Webster",null,"Wilmot"]
[null,null,"Estimate","Margin Of Error","Estimate","Margin Of Error","Estimate","Margin Of Error","Estimate","Margin Of Error","Estimate","Margin Of Error","Estimate","Margin Of Error","Estimate","Margin Of Error","Estimate","Margin Of Error","Estimate","Margin Of Error","Estimate","Margin Of Error","Estimate","Margin Of Error","Estimate","Margin Of Error","Estimate","Margin Of Error","Estimate","Margin Of Error","Estimate","Margin Of Error","Estimate","Margin Of Error","Estimate","Margin Of Error","Estimate","Margin Of Error","Estimate","Margin Of Error","Estimate","Margin Of Error","Estimate","Margin Of Error","Estimate","Margin Of Error","Estimate","Margin Of Error","Estimate","Margin Of Error","Estimate","Margin Of Error","Estimate","Margin Of Error","Estimate","Margin Of Error"]
[null,"Total:",648,178,157,72,231,85,266,84,84,34,98,41,17,19,7820,437,82,34,75,37,242,82,1316,169,526,139,74,34,636,116,138,75,168,84,53,26,221,123,441,105,849,136,526,110,17,17,55,30,212,67,60,30,21,21]
[null,"Less than 10.0 percent",41,33,22,35,0,114,0,114,8,9,4,7,7,11,122,57,5,7,0,114,0,114,17,21,9,15,0,114,64,82,0,114,0,114,15,16,10,15,0,114,20,33,25,28,0,114,0,114,6,10,3,5,0,114]
[null,"10.0 to 14.9 percent",69,68,0,114,0,114,16,23,9,15,0,114,5,8,508,157,5,7,14,21,0,114,118,88,46,55,11,13,0,114,11,19,0,114,17,14,0,114,0,114,13,22,74,64,0,114,12,15,23,20,8,12,0,114]
[null,"15.0 to 19.9 percent",89,67,4,8,62,53,0,114,10,15,21,24,0,114,1118,286,5,8,14,17,77,61,186,84,61,59,11,12,103,75,0,114,0,114,5,6,18,24,23,29,139,122,115,72,12,15,0,114,29,25,10,12,0,114]
[null,"20.0 to 24.9 percent",19,22,6,8,23,25,14,20,20,14,15,20,5,8,1368,273,3,7,7,11,19,22,228,100,104,68,12,15,132,88,40,48,16,21,0,114,43,55,64,75,89,94,106,67,0,114,5,8,16,17,3,5,0,114]
[null,"25.0 to 29.9 percent",74,50,0,114,35,34,20,24,3,4,10,15,0,114,699,168,21,19,9,13,12,20,210,87,58,41,0,114,124,83,29,40,0,114,6,10,0,114,106,68,198,137,109,73,0,114,4,6,40,22,10,9,0,114]
[null,"30.0 to 34.9 percent",82,73,0,114,26,27,0,114,0,114,23,21,0,114,762,176,0,114,8,15,37,50,174,86,52,58,0,114,35,33,17,28,31,47,0,114,11,17,93,68,133,122,0,114,0,114,2,5,14,15,0,114,0,114]
[null,"35.0 to 39.9 percent",44,41,19,31,19,22,42,49,8,9,0,114,0,114,582,184,0,114,0,114,22,24,59,53,11,17,0,114,57,50,0,114,36,32,0,114,0,114,23,26,0,114,10,14,0,114,3,4,8,11,0,114,0,114]
[null,"40.0 to 49.9 percent",105,90,6,8,12,20,27,32,7,9,0,114,0,114,720,201,4,8,5,7,24,29,23,25,86,72,20,20,52,44,0,114,0,114,0,114,30,48,60,64,104,110,9,16,5,8,4,7,24,16,2,3,0,114]
[null,"50.0 percent or more",66,56,16,24,31,32,147,63,7,7,13,15,0,114,1655,225,28,22,18,17,14,21,276,97,79,70,7,7,53,37,21,34,19,22,5,6,109,93,53,44,143,96,78,53,0,114,25,23,16,19,14,18,21,21]
[null,"Not computed",59,53,84,55,23,26,0,114,12,15,12,12,0,114,286,127,11,16,0,114,37,57,25,24,20,23,13,15,16,23,20,31,66,60,5,8,0,114,19,21,10,17,0,114,0,114,0,114,36,34,10,9,0,114]
[]
[null,"Calculated B25070. GROSS RENT AS A PERCENTAGE OF HOUSEHOLD INCOME IN THE PAST 12 MONTHS"]
[null,"Universe:  RENTER-OCCUPIED HOUSING UNITS"]
[null,"Data Set: 2005-2009 American Community Survey 3-Year Estimates"]
[]
[null,null,"Allenstown",null,"Andover",null,"Boscawen",null,"Bow",null,"Bradford",null,"Canterbury",null,"Chichester",null,"Concord",null,"Danbury",null,"Dunbarton",null,"Epsom",null,"Franklin",null,"Henniker",null,"Hill",null,"Hooksett",null,"Hopkinton",null,"Loudon",null,"Newbury",null,"New London",null,"Northfield",null,"Pembroke",null,"Pittsfield",null,"Salisbury",null,"Sutton",null,"Warner",null,"Webster",null,"Wilmot"]
[null," ","Estimate","Margin of Error","Estimate","Margin of Error","Estimate","Margin of Error","Estimate","Margin of Error","Estimate","Margin of Error","Estimate","Margin of Error","Estimate","Margin of Error","Estimate","Margin of Error","Estimate","Margin of Error","Estimate","Margin of Error","Estimate","Margin of Error","Estimate","Margin of Error","Estimate","Margin of Error","Estimate","Margin of Error","Estimate","Margin of Error","Estimate","Margin of Error","Estimate","Margin of Error","Estimate","Margin of Error","Estimate","Margin of Error","Estimate","Margin of Error","Estimate","Margin of Error","Estimate","Margin of Error","Estimate","Margin of Error","Estimate","Margin of Error","Estimate","Margin of Error","Estimate","Margin of Error","Estimate","Margin of Error"]
[null,{"$f":"B148","v":" Less Than 30% of HH Income"},{"$f":"C148","v":227},{"$f":"D148","v":91.449439582755232},{"$f":"E148","v":50},41.809089920733747,115,73.505101863748209,67,48.321837713398274,19,16.30950643030009,25,22.583179581272429,65,45.077710678338576,3735,399.61731694209647,77,46,48,27.838821814150108,71,70.256672281001187,432,123.77802712921223,235,114.76062042355818,24,26.514147167125703,391,136.73331708109768,228,135.25901079040909,150,96.109312764164528,22,25.670995305986871,161,84.876380695691779,215,84.752581081640216,367,165.24829802451825,290,104.71867073258713,8,20.904544960366874,65,37.576588456111871,136,61.40846847137616,37,20.566963801203133,57,35.312887166019152]
[null,"Less than 20% of HH Income",{"$f":"C149+C150+C151","v":578},{"$f":"SQRT((D149^2)+(D150^2)+(D151^2))","v":166.07227342335023},{"$f":"E149+E150+E151","v":119},{"$f":"SQRT((F149^2)+(F150^2)+(F151^2))","v":55.767373974394744},{"$f":"G149+G150+G151","v":448},{"$f":"SQRT((H149^2)+(H150^2)+(H151^2))","v":131.22499761859399},{"$f":"I149+I150+I151","v":352},{"$f":"SQRT((J149^2)+(J150^2)+(J151^2))","v":108.2450922675019},{"$f":"K149+K150+K151","v":82},{"$f":"SQRT((L149^2)+(L150^2)+(L151^2))","v":35.805027579936315},{"$f":"M149+M150+M151","v":35},{"$f":"SQRT((N149^2)+(N150^2)+(N151^2))","v":34.856850115866749},{"$f":"O149+O150+O151","v":91},{"$f":"SQRT((P149^2)+(P150^2)+(P151^2))","v":53.953683840864841},{"$f":"Q149+Q150+Q151","v":8901},{"$f":"SQRT((R149^2)+(R150^2)+(R151^2))","v":606.1616945997165},{"$f":"S149+S150+S151","v":86},{"$f":"SQRT((T149^2)+(T150^2)+(T151^2))","v":52.019227214559812},{"$f":"U149+U150+U151","v":161},{"$f":"SQRT((V149^2)+(V150^2)+(V151^2))","v":63.031738037277698},{"$f":"W149+W150+W151","v":324},{"$f":"SQRT((X149^2)+(X150^2)+(X151^2))","v":112.75637454263949},{"$f":"Y149+Y150+Y151","v":1503},{"$f":"SQRT((Z149^2)+(Z150^2)+(Z151^2))","v":248.27806991355479},{"$f":"AA149+AA150+AA151","v":690},{"$f":"SQRT((AB149^2)+(AB150^2)+(AB151^2))","v":184.4125809157282},{"$f":"AC149+AC150+AC151","v":28},{"$f":"SQRT((AD149^2)+(AD150^2)+(AD151^2))","v":36.660605559646719},{"$f":"AE149+AE150+AE151","v":816},{"$f":"SQRT((AF149^2)+(AF150^2)+(AF151^2))","v":177.25687574816385},{"$f":"AG149+AG150+AG151","v":354},{"$f":"SQRT((AH149^2)+(AH150^2)+(AH151^2))","v":173.67786272291585},{"$f":"AI149+AI150+AI151","v":382},{"$f":"SQRT((AJ149^2)+(AJ150^2)+(AJ151^2))","v":161.66013732519221},{"$f":"AK149+AK150+AK151","v":34},{"$f":"SQRT((AL149^2)+(AL150^2)+(AL151^2))","v":33.61547262794322},{"$f":"AM149+AM150+AM151","v":416},{"$f":"SQRT((AN149^2)+(AN150^2)+(AN151^2))","v":121.58124855420756},{"$f":"AO149+AO150+AO151","v":407},{"$f":"SQRT((AP149^2)+(AP150^2)+(AP151^2))","v":119.24764148611074},{"$f":"AQ149+AQ150+AQ151","v":965},{"$f":"SQRT((AR149^2)+(AR150^2)+(AR151^2))","v":263.17484682241195},{"$f":"AS149+AS150+AS151","v":709},{"$f":"SQRT((AT149^2)+(AT150^2)+(AT151^2))","v":170.00882330043933},{"$f":"AU149+AU150+AU151","v":35},{"$f":"SQRT((AV149^2)+(AV150^2)+(AV151^2))","v":39.635842365212831},{"$f":"AW149+AW150+AW151","v":75},{"$f":"SQRT((AX149^2)+(AX150^2)+(AX151^2))","v":47.349762407006857},{"$f":"AY149+AY150+AY151","v":312},{"$f":"SQRT((AZ149^2)+(AZ150^2)+(AZ151^2))","v":100.64790112068906},{"$f":"BA149+BA150+BA151","v":143},{"$f":"SQRT((BB149^2)+(BB150^2)+(BB151^2))","v":52.735187493740838},{"$f":"BC149+BC150+BC151","v":129},{"$f":"SQRT((BD149^2)+(BD150^2)+(BD151^2))","v":52.459508194416003}]
[null," 20% to 24.9% of HH Income",{"$f":"C152","v":210},{"$f":"D152","v":114.63856244737195},{"$f":"E152","v":51},32.58834147360065,210,92.466210044534648,189,84.823345842993007,48,29.478805945967352,10,18.493242008906929,17,27.766886753829642,2961,338.83624363400088,9,15.066519173319364,26,22.315913604421397,148,77.781745930520231,696,180.13605968822566,173,98.361577864530005,4,16.673332000533065,266,91.60785992479029,9,26.570660511172846,97,61.878914017619927,0,19.05255888325765,105,60.745370193949761,192,81.694553062000409,298,119.60769206033531,251,108.91280916402809,27,27.766886753829642,10,21.61018278497431,80,55.605755097831377,37,30.099833886584822,39,28.809720581775867]
[null," 25% to 29.9% of HH Income",{"$f":"C153","v":80},{"$f":"D153","v":65},27,22,137,74,107,63,20,17,10,10,0,11,1618,227,3,5,10,11,81,51,469,144,128,87,4,6,145,66,0,15,46,38,0,11,62,45,139,73,282,116,172,87,27,23,10,15,27,36,14,17,29,22]
[null," Less Than 30% of HH Income",{"$f":"C153+C152+C151+C150+C149","v":868},{"$f":"SQRT((D153^2)+(D152^2)+(D151^2)+(D150^2)+(D149^2))","v":212.0070753536306},{"$f":"E153+E152+E151+E150+E149","v":197},{"$f":"SQRT((F153^2)+(F152^2)+(F151^2)+(F150^2)+(F149^2))","v":68.234888436927918},{"$f":"G153+G152+G151+G150+G149","v":795},{"$f":"SQRT((H153^2)+(H152^2)+(H151^2)+(H150^2)+(H149^2))","v":176.76538122607604},{"$f":"I153+I152+I151+I150+I149","v":648},{"$f":"SQRT((J153^2)+(J152^2)+(J151^2)+(J150^2)+(J149^2))","v":151.26466871017831},{"$f":"K153+K152+K151+K150+K149","v":150},{"$f":"SQRT((L153^2)+(L152^2)+(L151^2)+(L150^2)+(L149^2))","v":49.396356140913873},{"$f":"M153+M152+M151+M150+M149","v":55},{"$f":"SQRT((N153^2)+(N152^2)+(N151^2)+(N150^2)+(N149^2))","v":40.70626487409524},{"$f":"O153+O152+O151+O150+O149","v":108},{"$f":"SQRT((P153^2)+(P152^2)+(P151^2)+(P150^2)+(P149^2))","v":61.668468442146349},{"$f":"Q153+Q152+Q151+Q150+Q149","v":13480},{"$f":"SQRT((R153^2)+(R152^2)+(R151^2)+(R150^2)+(R149^2))","v":730.59633177288811},{"$f":"S153+S152+S151+S150+S149","v":98},{"$f":"SQRT((T153^2)+(T152^2)+(T151^2)+(T150^2)+(T149^2))","v":54.387498563548597},{"$f":"U153+U152+U151+U150+U149","v":197},{"$f":"SQRT((V153^2)+(V152^2)+(V151^2)+(V150^2)+(V149^2))","v":67.764297384389664},{"$f":"W153+W152+W151+W150+W149","v":553},{"$f":"SQRT((X153^2)+(X152^2)+(X151^2)+(X150^2)+(X149^2))","v":146.16771189288008},{"$f":"Y153+Y152+Y151+Y150+Y149","v":2668},{"$f":"SQRT((Z153^2)+(Z152^2)+(Z151^2)+(Z150^2)+(Z149^2))","v":338.86132856966725},{"$f":"AA153+AA152+AA151+AA150+AA149","v":991},{"$f":"SQRT((AB153^2)+(AB152^2)+(AB151^2)+(AB150^2)+(AB149^2))","v":226.38904567138403},{"$f":"AC153+AC152+AC151+AC150+AC149","v":36},{"$f":"SQRT((AD153^2)+(AD152^2)+(AD151^2)+(AD150^2)+(AD149^2))","v":40.718546143004666},{"$f":"AE153+AE152+AE151+AE150+AE149","v":1227},{"$f":"SQRT((AF153^2)+(AF152^2)+(AF151^2)+(AF150^2)+(AF149^2))","v":210.16184239771025},{"$f":"AG153+AG152+AG151+AG150+AG149","v":363},{"$f":"SQRT((AH153^2)+(AH152^2)+(AH151^2)+(AH150^2)+(AH149^2))","v":176.33774411622713},{"$f":"AI153+AI152+AI151+AI150+AI149","v":525},{"$f":"SQRT((AJ153^2)+(AJ152^2)+(AJ151^2)+(AJ150^2)+(AJ149^2))","v":177.22020200868749},{"$f":"AK153+AK152+AK151+AK150+AK149","v":34},{"$f":"SQRT((AL153^2)+(AL152^2)+(AL151^2)+(AL150^2)+(AL149^2))","v":40.174618853201331},{"$f":"AM153+AM152+AM151+AM150+AM149","v":583},{"$f":"SQRT((AN153^2)+(AN152^2)+(AN151^2)+(AN150^2)+(AN149^2))","v":143.16773379501402},{"$f":"AO153+AO152+AO151+AO150+AO149","v":738},{"$f":"SQRT((AP153^2)+(AP152^2)+(AP151^2)+(AP150^2)+(AP149^2))","v":161.93517221406842},{"$f":"AQ153+AQ152+AQ151+AQ150+AQ149","v":1545},{"$f":"SQRT((AR153^2)+(AR152^2)+(AR151^2)+(AR150^2)+(AR149^2))","v":311.48515213409451},{"$f":"AS153+AS152+AS151+AS150+AS149","v":1132},{"$f":"SQRT((AT153^2)+(AT152^2)+(AT151^2)+(AT150^2)+(AT149^2))","v":219.84994882874091},{"$f":"AU153+AU152+AU151+AU150+AU149","v":89},{"$f":"SQRT((AV153^2)+(AV152^2)+(AV151^2)+(AV150^2)+(AV149^2))","v":53.581713298475258},{"$f":"AW153+AW152+AW151+AW150+AW149","v":95},{"$f":"SQRT((AX153^2)+(AX152^2)+(AX151^2)+(AX150^2)+(AX149^2))","v":54.166410255803363},{"$f":"AY153+AY152+AY151+AY150+AY149","v":419},{"$f":"SQRT((AZ153^2)+(AZ152^2)+(AZ151^2)+(AZ150^2)+(AZ149^2))","v":120.49066353871572},{"$f":"BA153+BA152+BA151+BA150+BA149","v":194},{"$f":"SQRT((BB153^2)+(BB152^2)+(BB151^2)+(BB150^2)+(BB149^2))","v":63.055531081737783},{"$f":"BC153+BC152+BC151+BC150+BC149","v":197},{"$f":"SQRT((BD153^2)+(BD152^2)+(BD151^2)+(BD150^2)+(BD149^2))","v":63.765194267719437}]
[null," 30% or More of HH Income",{"$f":"C154+C155+C156+C157","v":51},{"$f":"SQRT((D154^2)+(D155^2)+(D156^2)+(D157^2))","v":75},{"$f":"E154+E155+E156+E157","v":29},{"$f":"SQRT((F154^2)+(F155^2)+(F156^2)+(F157^2))","v":24},{"$f":"G154+G155+G156+G157","v":20},{"$f":"SQRT((H154^2)+(H155^2)+(H156^2)+(H157^2))","v":20},{"$f":"I154+I155+I156+I157","v":29},{"$f":"SQRT((J154^2)+(J155^2)+(J156^2)+(J157^2))","v":41},{"$f":"K154+K155+K156+K157","v":7},{"$f":"SQRT((L154^2)+(L155^2)+(L156^2)+(L157^2))","v":8},{"$f":"M154+M155+M156+M157","v":5},{"$f":"SQRT((N154^2)+(N155^2)+(N156^2)+(N157^2))","v":7},{"$f":"O154+O155+O156+O157","v":13},{"$f":"SQRT((P154^2)+(P155^2)+(P156^2)+(P157^2))","v":15},{"$f":"Q154+Q155+Q156+Q157","v":334},{"$f":"SQRT((R154^2)+(R155^2)+(R156^2)+(R157^2))","v":161},{"$f":"S154+S155+S156+S157","v":9},{"$f":"SQRT((T154^2)+(T155^2)+(T156^2)+(T157^2))","v":8},{"$f":"U154+U155+U156+U157","v":33},{"$f":"SQRT((V154^2)+(V155^2)+(V156^2)+(V157^2))","v":34},{"$f":"W154+W155+W156+W157","v":32},{"$f":"SQRT((X154^2)+(X155^2)+(X156^2)+(X157^2))","v":42},{"$f":"Y154+Y155+Y156+Y157","v":111},{"$f":"SQRT((Z154^2)+(Z155^2)+(Z156^2)+(Z157^2))","v":64},{"$f":"AA154+AA155+AA156+AA157","v":25},{"$f":"SQRT((AB154^2)+(AB155^2)+(AB156^2)+(AB157^2))","v":28},{"$f":"AC154+AC155+AC156+AC157","v":4},{"$f":"SQRT((AD154^2)+(AD155^2)+(AD156^2)+(AD157^2))","v":6},{"$f":"AE154+AE155+AE156+AE157","v":33},{"$f":"SQRT((AF154^2)+(AF155^2)+(AF156^2)+(AF157^2))","v":31},{"$f":"AG154+AG155+AG156+AG157","v":0},{"$f":"SQRT((AH154^2)+(AH155^2)+(AH156^2)+(AH157^2))","v":15},{"$f":"AI154+AI155+AI156+AI157","v":28},{"$f":"SQRT((AJ154^2)+(AJ155^2)+(AJ156^2)+(AJ157^2))","v":31},{"$f":"AK154+AK155+AK156+AK157","v":14},{"$f":"SQRT((AL154^2)+(AL155^2)+(AL156^2)+(AL157^2))","v":23},{"$f":"AM154+AM155+AM156+AM157","v":53},{"$f":"SQRT((AN154^2)+(AN155^2)+(AN156^2)+(AN157^2))","v":50},{"$f":"AO154+AO155+AO156+AO157","v":9},{"$f":"SQRT((AP154^2)+(AP155^2)+(AP156^2)+(AP157^2))","v":13},{"$f":"AQ154+AQ155+AQ156+AQ157","v":36},{"$f":"SQRT((AR154^2)+(AR155^2)+(AR156^2)+(AR157^2))","v":39},{"$f":"AS154+AS155+AS156+AS157","v":27},{"$f":"SQRT((AT154^2)+(AT155^2)+(AT156^2)+(AT157^2))","v":40},{"$f":"AU154+AU155+AU156+AU157","v":6},{"$f":"SQRT((AV154^2)+(AV155^2)+(AV156^2)+(AV157^2))","v":6},{"$f":"AW154+AW155+AW156+AW157","v":17},{"$f":"SQRT((AX154^2)+(AX155^2)+(AX156^2)+(AX157^2))","v":17},{"$f":"AY154+AY155+AY156+AY157","v":4},{"$f":"SQRT((AZ154^2)+(AZ155^2)+(AZ156^2)+(AZ157^2))","v":7},{"$f":"BA154+BA155+BA156+BA157","v":0},{"$f":"SQRT((BB154^2)+(BB155^2)+(BB156^2)+(BB157^2))","v":11},{"$f":"BC154+BC155+BC156+BC157","v":3},{"$f":"SQRT((BD154^2)+(BD155^2)+(BD156^2)+(BD157^2))","v":4}]
[null," 30% to 34.9% of HH Income",{"$f":"C154","v":51},{"$f":"D154","v":75},{"$f":"E154","v":29},24,20,20,29,41,7,8,5,7,13,15,334,161,9,8,33,34,32,42,111,64,25,28,4,6,33,31,0,15,28,31,14,23,53,50,9,13,36,39,27,40,6,6,17,17,4,7,0,11,3,4]
[null," Less Than 35% of HH Income",{"$f":"C154+C153+C152+C151+C150+C149","v":919},{"$f":"SQRT((D154^2)+(D153^2)+(D152^2)+(D151^2)+(D150^2)+(D149^2))","v":224.88219138028694},{"$f":"E154+E153+E152+E151+E150+E149","v":226},{"$f":"SQRT((F154^2)+(F153^2)+(F152^2)+(F151^2)+(F150^2)+(F149^2))","v":72.332565280100496},{"$f":"G154+G153+G152+G151+G150+G149","v":815},{"$f":"SQRT((H154^2)+(H153^2)+(H152^2)+(H151^2)+(H150^2)+(H149^2))","v":177.89322640280602},{"$f":"I154+I153+I152+I151+I150+I149","v":677},{"$f":"SQRT((J154^2)+(J153^2)+(J152^2)+(J151^2)+(J150^2)+(J149^2))","v":156.72268502038881},{"$f":"K154+K153+K152+K151+K150+K149","v":157},{"$f":"SQRT((L154^2)+(L153^2)+(L152^2)+(L151^2)+(L150^2)+(L149^2))","v":50.039984012787215},{"$f":"M154+M153+M152+M151+M150+M149","v":60},{"$f":"SQRT((N154^2)+(N153^2)+(N152^2)+(N151^2)+(N150^2)+(N149^2))","v":41.303752856126764},{"$f":"O154+O153+O152+O151+O150+O149","v":121},{"$f":"SQRT((P154^2)+(P153^2)+(P152^2)+(P151^2)+(P150^2)+(P149^2))","v":63.466526610489723},{"$f":"Q154+Q153+Q152+Q151+Q150+Q149","v":13814},{"$f":"SQRT((R154^2)+(R153^2)+(R152^2)+(R151^2)+(R150^2)+(R149^2))","v":748.12565789444761},{"$f":"S154+S153+S152+S151+S150+S149","v":107},{"$f":"SQRT((T154^2)+(T153^2)+(T152^2)+(T151^2)+(T150^2)+(T149^2))","v":54.972720507539016},{"$f":"U154+U153+U152+U151+U150+U149","v":230},{"$f":"SQRT((V154^2)+(V153^2)+(V152^2)+(V151^2)+(V150^2)+(V149^2))","v":75.815565684099468},{"$f":"W154+W153+W152+W151+W150+W149","v":585},{"$f":"SQRT((X154^2)+(X153^2)+(X152^2)+(X151^2)+(X150^2)+(X149^2))","v":152.08221460775746},{"$f":"Y154+Y153+Y152+Y151+Y150+Y149","v":2779},{"$f":"SQRT((Z154^2)+(Z153^2)+(Z152^2)+(Z151^2)+(Z150^2)+(Z149^2))","v":344.85214222910082},{"$f":"AA154+AA153+AA152+AA151+AA150+AA149","v":1016},{"$f":"SQRT((AB154^2)+(AB153^2)+(AB152^2)+(AB151^2)+(AB150^2)+(AB149^2))","v":228.11400658442699},{"$f":"AC154+AC153+AC152+AC151+AC150+AC149","v":40},{"$f":"SQRT((AD154^2)+(AD153^2)+(AD152^2)+(AD151^2)+(AD150^2)+(AD149^2))","v":41.158231254513353},{"$f":"AE154+AE153+AE152+AE151+AE150+AE149","v":1260},{"$f":"SQRT((AF154^2)+(AF153^2)+(AF152^2)+(AF151^2)+(AF150^2)+(AF149^2))","v":212.43587267690924},{"$f":"AG154+AG153+AG152+AG151+AG150+AG149","v":363},{"$f":"SQRT((AH154^2)+(AH153^2)+(AH152^2)+(AH151^2)+(AH150^2)+(AH149^2))","v":176.97457444503152},{"$f":"AI154+AI153+AI152+AI151+AI150+AI149","v":553},{"$f":"SQRT((AJ154^2)+(AJ153^2)+(AJ152^2)+(AJ151^2)+(AJ150^2)+(AJ149^2))","v":179.91108915239215},{"$f":"AK154+AK153+AK152+AK151+AK150+AK149","v":48},{"$f":"SQRT((AL154^2)+(AL153^2)+(AL152^2)+(AL151^2)+(AL150^2)+(AL149^2))","v":46.292547996410825},{"$f":"AM154+AM153+AM152+AM151+AM150+AM149","v":636},{"$f":"SQRT((AN154^2)+(AN153^2)+(AN152^2)+(AN151^2)+(AN150^2)+(AN149^2))","v":151.64761785138597},{"$f":"AO154+AO153+AO152+AO151+AO150+AO149","v":747},{"$f":"SQRT((AP154^2)+(AP153^2)+(AP152^2)+(AP151^2)+(AP150^2)+(AP149^2))","v":162.4561479292181},{"$f":"AQ154+AQ153+AQ152+AQ151+AQ150+AQ149","v":1581},{"$f":"SQRT((AR154^2)+(AR153^2)+(AR152^2)+(AR151^2)+(AR150^2)+(AR149^2))","v":313.91718653173484},{"$f":"AS154+AS153+AS152+AS151+AS150+AS149","v":1159},{"$f":"SQRT((AT154^2)+(AT153^2)+(AT152^2)+(AT151^2)+(AT150^2)+(AT149^2))","v":223.45916852973386},{"$f":"AU154+AU153+AU152+AU151+AU150+AU149","v":95},{"$f":"SQRT((AV154^2)+(AV153^2)+(AV152^2)+(AV151^2)+(AV150^2)+(AV149^2))","v":53.916602266834282},{"$f":"AW154+AW153+AW152+AW151+AW150+AW149","v":112},{"$f":"SQRT((AX154^2)+(AX153^2)+(AX152^2)+(AX151^2)+(AX150^2)+(AX149^2))","v":56.771471708949029},{"$f":"AY154+AY153+AY152+AY151+AY150+AY149","v":423},{"$f":"SQRT((AZ154^2)+(AZ153^2)+(AZ152^2)+(AZ151^2)+(AZ150^2)+(AZ149^2))","v":120.69382751408624},{"$f":"BA154+BA153+BA152+BA151+BA150+BA149","v":194},{"$f":"SQRT((BB154^2)+(BB153^2)+(BB152^2)+(BB151^2)+(BB150^2)+(BB149^2))","v":64.007812023221035},{"$f":"BC154+BC153+BC152+BC151+BC150+BC149","v":200},{"$f":"SQRT((BD154^2)+(BD153^2)+(BD152^2)+(BD151^2)+(BD150^2)+(BD149^2))","v":63.890531379853151}]
[null," 35% or More of HH Income",{"$f":"C155+C156+C157","v":0},{"$f":"SQRT((D155^2)+(D156^2)+(D157^2))","v":0},{"$f":"E155+E156+E157","v":0},{"$f":"SQRT((F155^2)+(F156^2)+(F157^2))","v":0},{"$f":"G155+G156+G157","v":0},{"$f":"SQRT((H155^2)+(H156^2)+(H157^2))","v":0},{"$f":"I155+I156+I157","v":0},{"$f":"SQRT((J155^2)+(J156^2)+(J157^2))","v":0},{"$f":"K155+K156+K157","v":0},{"$f":"SQRT((L155^2)+(L156^2)+(L157^2))","v":0},{"$f":"M155+M156+M157","v":0},{"$f":"SQRT((N155^2)+(N156^2)+(N157^2))","v":0},{"$f":"O155+O156+O157","v":0},{"$f":"SQRT((P155^2)+(P156^2)+(P157^2))","v":0},{"$f":"Q155+Q156+Q157","v":0},{"$f":"SQRT((R155^2)+(R156^2)+(R157^2))","v":0},{"$f":"S155+S156+S157","v":0},{"$f":"SQRT((T155^2)+(T156^2)+(T157^2))","v":0},{"$f":"U155+U156+U157","v":0},{"$f":"SQRT((V155^2)+(V156^2)+(V157^2))","v":0},{"$f":"W155+W156+W157","v":0},{"$f":"SQRT((X155^2)+(X156^2)+(X157^2))","v":0},{"$f":"Y155+Y156+Y157","v":0},{"$f":"SQRT((Z155^2)+(Z156^2)+(Z157^2))","v":0},{"$f":"AA155+AA156+AA157","v":0},{"$f":"SQRT((AB155^2)+(AB156^2)+(AB157^2))","v":0},{"$f":"AC155+AC156+AC157","v":0},{"$f":"SQRT((AD155^2)+(AD156^2)+(AD157^2))","v":0},{"$f":"AE155+AE156+AE157","v":0},{"$f":"SQRT((AF155^2)+(AF156^2)+(AF157^2))","v":0},{"$f":"AG155+AG156+AG157","v":0},{"$f":"SQRT((AH155^2)+(AH156^2)+(AH157^2))","v":0},{"$f":"AI155+AI156+AI157","v":0},{"$f":"SQRT((AJ155^2)+(AJ156^2)+(AJ157^2))","v":0},{"$f":"AK155+AK156+AK157","v":0},{"$f":"SQRT((AL155^2)+(AL156^2)+(AL157^2))","v":0},{"$f":"AM155+AM156+AM157","v":0},{"$f":"SQRT((AN155^2)+(AN156^2)+(AN157^2))","v":0},{"$f":"AO155+AO156+AO157","v":0},{"$f":"SQRT((AP155^2)+(AP156^2)+(AP157^2))","v":0},{"$f":"AQ155+AQ156+AQ157","v":0},{"$f":"SQRT((AR155^2)+(AR156^2)+(AR157^2))","v":0},{"$f":"AS155+AS156+AS157","v":0},{"$f":"SQRT((AT155^2)+(AT156^2)+(AT157^2))","v":0},{"$f":"AU155+AU156+AU157","v":0},{"$f":"SQRT((AV155^2)+(AV156^2)+(AV157^2))","v":0},{"$f":"AW155+AW156+AW157","v":0},{"$f":"SQRT((AX155^2)+(AX156^2)+(AX157^2))","v":0},{"$f":"AY155+AY156+AY157","v":0},{"$f":"SQRT((AZ155^2)+(AZ156^2)+(AZ157^2))","v":0},{"$f":"BA155+BA156+BA157","v":0},{"$f":"SQRT((BB155^2)+(BB156^2)+(BB157^2))","v":0},{"$f":"BC155+BC156+BC157","v":0},{"$f":"SQRT((BD155^2)+(BD156^2)+(BD157^2))","v":0}]
[null," 50% or More of HH Income",{"$f":"C157","v":0},{"$f":"D157","v":0},{"$f":"E157","v":0},0,0,0,0,0,0,0,0,0,0,0,0,0,0,0,0,0,0,0,0,0,0,0,0,0,0,0,0,0,0,0,0,0,0,0,0,0,0,0,0,0,0,0,0,0,0,0,0,0,0,0]
[null,"Not computed",{"$f":"C158","v":0},{"$f":"D158","v":0},0,0,0,0,0,0,0,0,0,0,0,0,0,0,0,0,0,0,0,0,0,0,0,0,0,0,0,0,0,0,0,0,0,0,0,0,0,0,0,0,0,0,0,0,0,0,0,0,0,0,0,0]

{"sheet":"ACS_Table_B25074","index":56,"n_rows":464,"n_cols":56,"rows_kept":464,"cut":false,"hidden":true,"merged":[]}
[null,"B25074. HOUSEHOLD INCOME BY GROSS RENT AS A PERCENTAGE OF HOUSEHOLD INCOME IN THE PAST 12 MONTHS"]
[null,"Universe:  RENTER-OCCUPIED HOUSING UNITS",null,null,null,{"$f":"RentalHousingCost!D41","v":"Income in 2019 Inflation Adjusted Dollars"}]
[null,"Data Set: 2015-2019 American Community Survey 5-Year Estimates"]
[]
[null,null,"Allenstown",null,"Andover",null,"Boscawen",null,"Bow",null,"Bradford",null,"Canterbury",null,"Chichester",null,"Concord",null,"Danbury",null,"Dunbarton",null,"Epsom",null,"Franklin",null,"Henniker",null,"Hill",null,"Hooksett",null,"Hopkinton",null,"Loudon",null,"Newbury",null,"New London",null,"Northfield",null,"Pembroke",null,"Pittsfield",null,"Salisbury",null,"Sutton",null,"Warner",null,"Webster",null,"Wilmot"]
[null,null,"Estimate","Margin Of Error","Estimate","Margin Of Error","Estimate","Margin Of Error","Estimate","Margin Of Error","Estimate","Margin Of Error","Estimate","Margin Of Error","Estimate","Margin Of Error","Estimate","Margin Of Error","Estimate","Margin Of Error","Estimate","Margin Of Error","Estimate","Margin Of Error","Estimate","Margin Of Error","Estimate","Margin Of Error","Estimate","Margin Of Error","Estimate","Margin Of Error","Estimate","Margin Of Error","Estimate","Margin Of Error","Estimate","Margin Of Error","Estimate","Margin Of Error","Estimate","Margin Of Error","Estimate","Margin Of Error","Estimate","Margin Of Error","Estimate","Margin Of Error","Estimate","Margin Of Error","Estimate","Margin Of Error","Estimate","Margin Of Error","Estimate","Margin Of Error"]
[null,"Total:",409,114,154,72,288,107,288,76,73,31,78,40,87,53,8278,412,42,17,60,26,282,82,1429,186,449,115,30,21,1284,204,243,100,291,138,64,26,295,90,470,109,582,186,599,147,39,26,90,36,387,91,59,29,149,52]
[null,"Less than $10,000:",14,21,26,40,9,14,35,40,0,11,0,11,0,11,749,211,0,11,0,11,0,11,68,57,58,59,10,15,112,79,12,19,81,86,0,11,17,19,9,13,71,89,83,108,0,11,10,18,44,32,15,18,3,4]
[null,"Less than 20.0 percent",0,11,0,11,0,11,0,16,0,11,0,11,0,11,0,24,0,11,0,11,0,11,0,16,0,11,0,11,0,18,0,16,0,16,0,11,0,11,0,11,0,16,0,11,0,11,0,11,0,11,0,11,0,11]
[null,"20.0 to 24.9 percent",0,11,0,11,0,11,0,16,0,11,0,11,0,11,0,24,0,11,0,11,0,11,0,16,0,11,0,11,0,18,0,16,0,16,0,11,0,11,0,11,0,16,0,11,0,11,0,11,0,11,0,11,0,11]
[null,"25.0 to 29.9 percent",0,11,0,11,0,11,0,16,0,11,0,11,0,11,25,36,0,11,0,11,0,11,40,44,0,11,0,11,0,18,0,16,18,32,0,11,0,11,0,11,0,16,73,105,0,11,0,11,0,11,0,11,0,11]
[null,"30.0 to 34.9 percent",0,11,0,11,0,11,0,16,0,11,0,11,0,11,8,12,0,11,0,11,0,11,0,16,13,22,0,11,0,18,0,16,0,16,0,11,0,11,0,11,0,16,0,11,0,11,0,11,0,11,0,11,0,11]
[null,"35.0 to 39.9 percent",0,11,0,11,0,11,0,16,0,11,0,11,0,11,158,146,0,11,0,11,0,11,0,16,0,11,0,11,0,18,0,16,0,16,0,11,0,11,0,11,0,16,0,11,0,11,0,11,0,11,0,11,0,11]
[null,"40.0 to 49.9 percent",0,11,0,11,0,11,0,16,0,11,0,11,0,11,0,24,0,11,0,11,0,11,0,16,0,11,0,11,0,18,0,16,0,16,0,11,0,11,0,11,0,16,0,11,0,11,0,11,0,11,0,11,0,11]
[null,"50.0 percent or more",14,21,0,11,0,11,24,36,0,11,0,11,0,11,435,139,0,11,0,11,0,11,18,21,45,55,10,15,82,66,12,19,63,79,0,11,9,14,0,11,71,89,0,11,0,11,10,18,15,14,4,6,3,4]
[null,"Not computed",0,11,26,40,9,14,11,18,0,11,0,11,0,11,123,74,0,11,0,11,0,11,10,17,0,11,0,11,30,44,0,16,0,16,0,11,8,12,9,13,0,16,10,16,0,11,0,11,29,29,11,17,0,11]
[null,"$10,000 to $19,999:",172,80,0,11,89,50,39,34,3,5,28,38,5,7,1071,207,3,4,4,6,59,37,354,140,149,94,0,11,73,43,19,29,22,34,32,19,24,29,26,33,0,16,236,100,0,11,7,9,77,50,3,4,0,11]
[null,"Less than 20.0 percent",28,43,0,11,29,45,0,16,0,11,0,11,0,11,16,20,0,11,0,11,0,11,9,14,17,18,0,11,0,18,0,16,0,16,0,11,0,11,0,11,0,16,0,11,0,11,0,11,0,11,0,11,0,11]
[null,"20.0 to 24.9 percent",22,26,0,11,11,17,0,16,0,11,0,11,0,11,114,85,0,11,0,11,0,11,0,16,7,12,0,11,14,22,0,16,0,16,6,8,0,11,0,11,0,16,0,11,0,11,0,11,0,11,0,11,0,11]
[null,"25.0 to 29.9 percent",21,24,0,11,38,44,0,16,0,11,0,11,0,11,151,105,0,11,0,11,0,11,46,29,23,37,0,11,0,18,0,16,0,16,15,13,0,11,0,11,0,16,19,21,0,11,0,11,6,10,0,11,0,11]
[null,"30.0 to 34.9 percent",0,11,0,11,11,18,0,16,0,11,0,11,0,11,49,44,0,11,0,11,0,11,50,55,35,52,0,11,0,18,0,16,0,16,0,11,24,29,0,11,0,16,9,14,0,11,0,11,44,47,0,11,0,11]
[null,"35.0 to 39.9 percent",0,11,0,11,0,11,11,17,0,11,0,11,0,11,8,13,0,11,0,11,0,11,0,16,22,36,0,11,0,18,0,16,0,16,0,11,0,11,0,11,0,16,0,11,0,11,0,11,0,11,0,11,0,11]
[null,"40.0 to 49.9 percent",34,54,0,11,0,11,0,16,0,11,0,11,0,11,42,27,0,11,0,11,29,26,87,87,5,8,0,11,21,24,0,16,0,16,0,11,0,11,19,30,0,16,29,47,0,11,0,11,0,11,0,11,0,11]
[null,"50.0 percent or more",67,64,0,11,0,11,28,28,3,5,28,38,5,7,646,198,3,4,4,6,18,14,162,92,40,43,0,11,16,27,0,16,22,34,0,11,0,11,7,11,0,16,179,99,0,11,3,6,23,22,0,11,0,11]
[null,"Not computed",0,11,0,11,0,11,0,16,0,11,0,11,0,11,45,42,0,11,0,11,12,19,0,16,0,11,0,11,22,26,19,29,0,16,11,14,0,11,0,11,0,16,0,11,0,11,4,7,4,7,3,4,0,11]
[null,"$20,000 to $34,999:",39,31,49,44,26,29,77,41,22,19,42,38,0,11,1649,258,13,11,9,9,53,41,321,108,80,60,8,7,190,89,25,30,42,48,10,11,32,31,167,104,105,70,83,68,5,9,19,20,71,41,13,18,13,11]
[null,"Less than 20.0 percent",0,11,0,11,0,11,0,16,3,5,0,11,0,11,81,61,0,11,0,11,0,11,52,50,0,11,0,11,6,10,0,16,0,16,0,11,0,11,0,11,0,16,0,11,0,11,0,11,6,8,2,4,0,11]
[null,"20.0 to 24.9 percent",0,11,0,11,0,11,0,16,0,11,0,11,0,11,48,53,0,11,0,11,0,11,11,18,0,11,0,11,7,13,0,16,0,16,0,11,0,11,0,11,15,24,0,11,0,11,0,11,22,32,11,18,0,11]
[null,"25.0 to 29.9 percent",11,19,0,11,0,11,10,16,0,11,9,12,0,11,178,98,0,11,0,11,11,18,28,26,21,34,0,11,28,32,0,16,0,16,0,11,0,11,18,21,0,16,0,11,0,11,0,11,9,10,0,11,0,11]
[null,"30.0 to 34.9 percent",0,11,0,11,0,11,0,16,9,15,5,8,0,11,118,66,0,11,0,11,0,11,35,32,0,11,0,11,0,18,0,16,21,35,5,7,0,11,8,13,31,34,66,65,0,11,0,11,12,14,0,11,3,5]
[null,"35.0 to 39.9 percent",9,14,22,29,0,11,18,23,3,6,0,11,0,11,151,59,0,11,4,6,15,18,35,55,0,11,0,11,8,12,0,16,0,16,0,11,0,11,44,56,0,16,0,11,0,11,0,11,0,11,0,11,0,11]
[null,"40.0 to 49.9 percent",10,14,8,11,26,29,28,20,0,11,0,11,0,11,564,163,6,8,0,11,7,11,79,69,19,30,0,11,22,25,12,21,0,16,0,11,6,9,97,105,0,16,17,19,5,9,0,11,0,11,0,11,0,11]
[null,"50.0 percent or more",9,13,0,11,0,11,13,20,7,7,7,11,0,11,496,157,3,5,5,7,12,19,57,53,30,36,4,5,108,73,0,16,21,34,5,7,26,30,0,11,59,57,0,11,0,11,19,20,16,18,0,11,5,6]
[null,"Not computed",0,11,19,30,0,11,8,14,0,11,21,34,0,11,13,18,4,5,0,11,8,12,24,27,10,15,4,5,11,19,13,21,0,16,0,11,0,11,0,11,0,16,0,11,0,11,0,11,6,8,0,11,5,8]
[null,"$35,000 to $49,999:",70,58,29,39,12,20,31,27,29,22,0,11,49,44,1195,214,4,5,12,12,49,32,185,99,67,52,3,5,237,127,8,19,31,36,5,7,62,54,162,85,80,63,29,28,11,17,6,10,36,27,5,8,28,23]
[null,"Less than 20.0 percent",0,11,24,38,0,11,0,16,0,11,0,11,0,11,111,75,0,11,4,6,27,28,57,79,19,31,0,11,14,20,0,16,0,16,0,11,22,35,9,15,21,34,9,14,0,11,0,11,0,11,0,11,0,11]
[null,"20.0 to 24.9 percent",0,11,5,8,0,11,0,16,12,19,0,11,0,11,108,68,0,11,4,6,0,11,48,41,31,40,0,11,9,16,0,16,0,16,0,11,16,26,29,32,20,30,0,11,0,11,0,11,5,8,0,11,14,16]
[null,"25.0 to 29.9 percent",18,20,0,11,12,20,0,16,7,5,0,11,12,19,324,109,0,11,0,11,13,22,50,45,17,20,0,11,16,25,0,16,0,16,0,11,0,11,84,71,0,16,20,23,0,11,0,11,4,6,0,11,0,11]
[null,"30.0 to 34.9 percent",0,11,0,11,0,11,21,24,3,4,0,11,29,36,222,75,4,5,4,6,0,11,11,18,0,11,0,11,70,40,8,19,16,26,0,11,0,11,20,30,19,28,0,11,0,11,0,11,7,10,0,11,4,5]
[null,"35.0 to 39.9 percent",42,52,0,11,0,11,10,14,7,11,0,11,8,11,145,92,0,11,0,11,9,14,0,16,0,11,0,11,13,21,0,16,0,16,5,7,7,11,12,20,20,32,0,11,11,17,0,11,15,22,0,11,10,16]
[null,"40.0 to 49.9 percent",0,11,0,11,0,11,0,16,0,11,0,11,0,11,217,93,0,11,0,11,0,11,0,16,0,11,0,11,14,22,0,16,0,16,0,11,0,11,8,13,0,16,0,11,0,11,0,11,5,7,0,11,0,11]
[null,"50.0 percent or more",0,11,0,11,0,11,0,16,0,11,0,11,0,11,49,36,0,11,0,11,0,11,11,18,0,11,0,11,101,128,0,16,15,26,0,11,0,11,0,11,0,16,0,11,0,11,0,11,0,11,0,11,0,11]
[null,"Not computed",10,15,0,11,0,11,0,16,0,11,0,11,0,11,19,27,0,11,0,11,0,11,8,12,0,11,3,5,0,18,0,16,0,16,0,11,17,28,0,11,0,16,0,11,0,11,6,10,0,11,5,8,0,11]
[null,"$50,000 to $74,999:",88,55,11,11,75,79,45,31,12,11,0,11,9,13,1483,254,11,16,7,10,94,62,277,124,40,39,5,8,228,106,123,86,38,35,11,11,73,57,78,43,141,79,94,54,18,18,17,19,36,29,3,4,62,36]
[null,"Less than 20.0 percent",40,29,0,11,75,79,0,16,5,7,0,11,0,11,277,113,0,11,0,11,17,29,92,82,23,35,0,11,10,16,44,67,18,29,0,11,18,28,29,29,22,37,16,17,14,17,0,11,0,11,0,11,7,7]
[null,"20.0 to 24.9 percent",26,26,5,7,0,11,11,16,0,11,0,11,0,11,549,151,0,11,7,10,52,51,96,83,17,18,5,8,49,48,36,38,10,17,0,11,0,11,41,29,23,41,54,50,0,11,0,11,15,15,0,11,8,8]
[null,"25.0 to 29.9 percent",0,11,0,11,0,11,11,16,7,7,0,11,0,11,276,92,11,16,0,11,12,20,29,45,0,11,0,11,93,74,0,16,0,16,5,7,16,18,8,12,83,80,9,14,0,11,9,14,21,23,0,11,28,24]
[null,"30.0 to 34.9 percent",0,11,6,9,0,11,4,8,0,11,0,11,0,11,185,85,0,11,0,11,13,20,18,25,0,11,0,11,53,45,0,16,0,16,0,11,7,11,0,11,0,16,15,25,0,11,0,11,0,11,0,11,12,17]
[null,"35.0 to 39.9 percent",22,34,0,11,0,11,0,16,0,11,0,11,9,13,36,34,0,11,0,11,0,11,0,16,0,11,0,11,2,5,22,34,0,16,0,11,15,24,0,11,0,16,0,11,0,11,0,11,0,11,0,11,0,11]
[null,"40.0 to 49.9 percent",0,11,0,11,0,11,0,16,0,11,0,11,0,11,11,18,0,11,0,11,0,11,0,16,0,11,0,11,0,18,21,30,0,16,6,8,0,11,0,11,13,20,0,11,4,6,0,11,0,11,0,11,0,11]
[null,"50.0 percent or more",0,11,0,11,0,11,8,13,0,11,0,11,0,11,102,94,0,11,0,11,0,11,0,16,0,11,0,11,0,18,0,16,0,16,0,11,0,11,0,11,0,16,0,11,0,11,0,11,0,11,0,11,0,11]
[null,"Not computed",0,11,0,11,0,11,11,17,0,11,0,11,0,11,47,60,0,11,0,11,0,11,42,56,0,11,0,11,21,27,0,16,10,17,0,11,17,27,0,11,0,16,0,11,0,11,8,13,0,11,3,4,7,9]
[null,"$75,000 to $99,999:",17,19,12,13,49,38,10,17,0,11,0,11,0,11,1250,236,0,11,16,15,15,21,131,76,16,20,0,11,284,134,56,62,0,16,6,9,36,29,13,19,133,70,62,64,0,11,5,8,32,26,17,17,3,5]
[null,"Less than 20.0 percent",0,11,0,11,23,26,0,16,0,11,0,11,0,11,838,180,0,11,3,5,11,16,103,70,0,11,0,11,68,54,43,59,0,16,6,9,27,25,11,18,93,62,62,64,0,11,0,11,20,23,9,14,0,11]
[null,"20.0 to 24.9 percent",0,11,12,13,13,20,10,17,0,11,0,11,0,11,308,142,0,11,13,15,0,11,18,29,0,11,0,11,119,106,0,16,0,16,0,11,9,13,2,7,17,28,0,11,0,11,5,8,6,8,5,7,0,11]
[null,"25.0 to 29.9 percent",0,11,0,11,13,20,0,16,0,11,0,11,0,11,79,54,0,11,0,11,4,14,0,16,16,20,0,11,69,49,0,16,0,16,0,11,0,11,0,11,23,36,0,11,0,11,0,11,0,11,0,11,3,5]
[null,"30.0 to 34.9 percent",7,10,0,11,0,11,0,16,0,11,0,11,0,11,0,24,0,11,0,11,0,11,10,16,0,11,0,11,20,22,0,16,0,16,0,11,0,11,0,11,0,16,0,11,0,11,0,11,0,11,0,11,0,11]
[null,"35.0 to 39.9 percent",0,11,0,11,0,11,0,16,0,11,0,11,0,11,0,24,0,11,0,11,0,11,0,16,0,11,0,11,0,18,0,16,0,16,0,11,0,11,0,11,0,16,0,11,0,11,0,11,0,11,0,11,0,11]
[null,"40.0 to 49.9 percent",0,11,0,11,0,11,0,16,0,11,0,11,0,11,0,24,0,11,0,11,0,11,0,16,0,11,0,11,0,18,0,16,0,16,0,11,0,11,0,11,0,16,0,11,0,11,0,11,0,11,0,11,0,11]
[null,"50.0 percent or more",0,11,0,11,0,11,0,16,0,11,0,11,0,11,0,24,0,11,0,11,0,11,0,16,0,11,0,11,0,18,0,16,0,16,0,11,0,11,0,11,0,16,0,11,0,11,0,11,0,11,0,11,0,11]
[null,"Not computed",10,15,0,11,0,11,0,16,0,11,0,11,0,11,25,26,0,11,0,11,0,11,0,16,0,11,0,11,8,13,13,20,0,16,0,11,0,11,0,11,0,16,0,11,0,11,0,11,6,8,3,5,0,11]
[null,"$100,000 or more:",9,18,27,27,28,30,51,44,7,8,8,11,24,22,881,184,11,17,12,11,12,25,93,77,39,46,4,5,160,95,0,16,77,76,0,11,51,35,15,18,52,80,12,18,5,7,26,24,91,53,3,4,40,29]
[null,"Less than 20.0 percent",9,18,6,9,28,30,28,36,3,6,0,11,24,22,798,173,11,17,4,6,12,25,93,77,39,46,4,5,116,63,0,16,49,59,0,11,35,32,7,11,52,80,0,11,5,7,26,24,85,53,3,4,36,27]
[null,"20.0 to 24.9 percent",0,11,0,11,0,11,7,11,4,5,0,11,0,11,51,42,0,11,0,11,0,11,0,16,0,11,0,11,0,18,0,16,0,16,0,11,8,13,0,11,0,16,12,18,0,11,0,11,6,8,0,11,4,6]
[null,"25.0 to 29.9 percent",0,11,0,11,0,11,5,10,0,11,0,11,0,11,6,9,0,11,0,11,0,11,0,16,0,11,0,11,29,46,0,16,0,16,0,11,0,11,0,11,0,16,0,11,0,11,0,11,0,11,0,11,0,11]
[null,"30.0 to 34.9 percent",0,11,0,11,0,11,0,16,0,11,0,11,0,11,0,24,0,11,0,11,0,11,0,16,0,11,0,11,0,18,0,16,0,16,0,11,0,11,0,11,0,16,0,11,0,11,0,11,0,11,0,11,0,11]
[null,"35.0 to 39.9 percent",0,11,0,11,0,11,0,16,0,11,0,11,0,11,0,24,0,11,0,11,0,11,0,16,0,11,0,11,0,18,0,16,0,16,0,11,0,11,0,11,0,16,0,11,0,11,0,11,0,11,0,11,0,11]
[null,"40.0 to 49.9 percent",0,11,0,11,0,11,0,16,0,11,0,11,0,11,0,24,0,11,0,11,0,11,0,16,0,11,0,11,0,18,0,16,0,16,0,11,0,11,0,11,0,16,0,11,0,11,0,11,0,11,0,11,0,11]
[null,"50.0 percent or more",0,11,0,11,0,11,0,16,0,11,0,11,0,11,0,24,0,11,0,11,0,11,0,16,0,11,0,11,0,18,0,16,0,16,0,11,0,11,0,11,0,16,0,11,0,11,0,11,0,11,0,11,0,11]
[null,"Not computed",0,11,21,26,0,11,11,16,0,11,8,11,0,11,26,29,0,11,8,9,0,11,0,16,0,11,0,11,15,23,0,16,28,42,0,11,8,12,8,14,0,16,0,11,0,11,0,11,0,11,0,11,0,11]
[]
[]
[]
[]
[]
[]
[]
[]
[]
[]
[]
[]
[]
[]
[]
[null,"Calculated B25074. HOUSEHOLD INCOME BY GROSS RENT AS A PERCENTAGE OF HOUSEHOLD INCOME IN THE PAST 12 MONTHS"]
[null,"Universe:  RENTER-OCCUPIED HOUSING UNITS"]
[null,"Data Set: 2015-2019 American Community Survey 5-Year Estimates"]
[]
[null,null,"Allenstown",null,"Andover",null,"Boscawen",null,"Bow",null,"Bradford",null,"Canterbury",null,"Chichester",null,"Concord",null,"Danbury",null,"Dunbarton",null,"Epsom",null,"Franklin",null,"Henniker",null,"Hill",null,"Hooksett",null,"Hopkinton",null,"Loudon",null,"Newbury",null,"New London",null,"Northfield",null,"Pembroke",null,"Pittsfield",null,"Salisbury",null,"Sutton",null,"Warner",null,"Webster",null,"Wilmot"]
[null,null,"Estimate","Margin Of Error","Estimate","Margin Of Error","Estimate","Margin Of Error","Estimate","Margin Of Error","Estimate","Margin Of Error","Estimate","Margin Of Error","Estimate","Margin Of Error","Estimate","Margin Of Error","Estimate","Margin Of Error","Estimate","Margin Of Error","Estimate","Margin Of Error","Estimate","Margin Of Error","Estimate","Margin Of Error","Estimate","Margin Of Error","Estimate","Margin Of Error","Estimate","Margin Of Error","Estimate","Margin Of Error","Estimate","Margin Of Error","Estimate","Margin Of Error","Estimate","Margin Of Error","Estimate","Margin Of Error","Estimate","Margin Of Error","Estimate","Margin Of Error","Estimate","Margin Of Error","Estimate","Margin Of Error","Estimate","Margin Of Error","Estimate","Margin Of Error"]
[null,"Total:",{"$f":"C7","v":409},114,154,72,288,107,288,76,73,31,78,40,87,53,8278,412,{"$f":"S7","v":42},17,60,26,282,82,1429,186,449,115,30,21,1284,204,243,100,291,138,64,26,295,90,470,109,582,186,599,147,39,26,90,36,387,91,59,29,149,52]
[null,"Less than $10,000:",14,21,26,40,9,14,35,40,0,11,0,11,0,11,749,211,0,11,0,11,0,11,68,57,58,59,10,15,112,79,12,19,81,86,0,11,17,19,9,13,71,89,83,108,0,11,10,18,44,32,15,18,3,4]
[null,"Less than 30.0 percent",{"$f":"C9+C10+C11","v":0},{"$f":"SQRT((D9^2)+(D10^2)+(D11^2))","v":19.05255888325765},{"$f":"E9+E10+E11","v":0},{"$f":"SQRT((F9^2)+(F10^2)+(F11^2))","v":19.05255888325765},{"$f":"G9+G10+G11","v":0},{"$f":"SQRT((H9^2)+(H10^2)+(H11^2))","v":19.05255888325765},{"$f":"I9+I10+I11","v":0},{"$f":"SQRT((J9^2)+(J10^2)+(J11^2))","v":27.712812921102035},{"$f":"K9+K10+K11","v":0},{"$f":"SQRT((L9^2)+(L10^2)+(L11^2))","v":19.05255888325765},{"$f":"M9+M10+M11","v":0},{"$f":"SQRT((N9^2)+(N10^2)+(N11^2))","v":19.05255888325765},{"$f":"O9+O10+O11","v":0},{"$f":"SQRT((P9^2)+(P10^2)+(P11^2))","v":19.05255888325765},{"$f":"Q9+Q10+Q11","v":25},{"$f":"SQRT((R9^2)+(R10^2)+(R11^2))","v":49.477267507411923},{"$f":"S9+S10+S11","v":0},{"$f":"SQRT((T9^2)+(T10^2)+(T11^2))","v":19.05255888325765},{"$f":"U9+U10+U11","v":0},{"$f":"SQRT((V9^2)+(V10^2)+(V11^2))","v":19.05255888325765},{"$f":"W9+W10+W11","v":0},{"$f":"SQRT((X9^2)+(X10^2)+(X11^2))","v":19.05255888325765},{"$f":"Y9+Y10+Y11","v":40},{"$f":"SQRT((Z9^2)+(Z10^2)+(Z11^2))","v":49.477267507411923},{"$f":"AA9+AA10+AA11","v":0},{"$f":"SQRT((AB9^2)+(AB10^2)+(AB11^2))","v":19.05255888325765},{"$f":"AC9+AC10+AC11","v":0},{"$f":"SQRT((AD9^2)+(AD10^2)+(AD11^2))","v":19.05255888325765},{"$f":"AE9+AE10+AE11","v":0},{"$f":"SQRT((AF9^2)+(AF10^2)+(AF11^2))","v":31.176914536239792},{"$f":"AG9+AG10+AG11","v":0},{"$f":"SQRT((AH9^2)+(AH10^2)+(AH11^2))","v":27.712812921102035},{"$f":"AI9+AI10+AI11","v":18},{"$f":"SQRT((AJ9^2)+(AJ10^2)+(AJ11^2))","v":39.191835884530846},{"$f":"AK9+AK10+AK11","v":0},{"$f":"SQRT((AL9^2)+(AL10^2)+(AL11^2))","v":19.05255888325765},{"$f":"AM9+AM10+AM11","v":0},{"$f":"SQRT((AN9^2)+(AN10^2)+(AN11^2))","v":19.05255888325765},{"$f":"AO9+AO10+AO11","v":0},{"$f":"SQRT((AP9^2)+(AP10^2)+(AP11^2))","v":19.05255888325765},{"$f":"AQ9+AQ10+AQ11","v":0},{"$f":"SQRT((AR9^2)+(AR10^2)+(AR11^2))","v":27.712812921102035},{"$f":"AS9+AS10+AS11","v":73},{"$f":"SQRT((AT9^2)+(AT10^2)+(AT11^2))","v":106.14612569472331},{"$f":"AU9+AU10+AU11","v":0},{"$f":"SQRT((AV9^2)+(AV10^2)+(AV11^2))","v":19.05255888325765},{"$f":"AW9+AW10+AW11","v":0},{"$f":"SQRT((AX9^2)+(AX10^2)+(AX11^2))","v":19.05255888325765},{"$f":"AY9+AY10+AY11","v":0},{"$f":"SQRT((AZ9^2)+(AZ10^2)+(AZ11^2))","v":19.05255888325765},{"$f":"BA9+BA10+BA11","v":0},{"$f":"SQRT((BB9^2)+(BB10^2)+(BB11^2))","v":19.05255888325765},{"$f":"BC9+BC10+BC11","v":0},{"$f":"SQRT((BD9^2)+(BD10^2)+(BD11^2))","v":19.05255888325765}]
[null,"More than 30.0 percent",{"$f":"C12+C13+C14+C15","v":14},{"$f":"SQRT((D12^2)+(D13^2)+(D14^2)+(D15^2))","v":28.354893757515651},{"$f":"E12+E13+E14+E15","v":0},{"$f":"SQRT((F12^2)+(F13^2)+(F14^2)+(F15^2))","v":22},{"$f":"G12+G13+G14+G15","v":0},{"$f":"SQRT((H12^2)+(H13^2)+(H14^2)+(H15^2))","v":22},{"$f":"I12+I13+I14+I15","v":24},{"$f":"SQRT((J12^2)+(J13^2)+(J14^2)+(J15^2))","v":45.431266766402189},{"$f":"K12+K13+K14+K15","v":0},{"$f":"SQRT((L12^2)+(L13^2)+(L14^2)+(L15^2))","v":22},{"$f":"M12+M13+M14+M15","v":0},{"$f":"SQRT((N12^2)+(N13^2)+(N14^2)+(N15^2))","v":22},{"$f":"O12+O13+O14+O15","v":0},{"$f":"SQRT((P12^2)+(P13^2)+(P14^2)+(P15^2))","v":22},{"$f":"Q12+Q13+Q14+Q15","v":601},{"$f":"SQRT((R12^2)+(R13^2)+(R14^2)+(R15^2))","v":203.36420530663699},{"$f":"S12+S13+S14+S15","v":0},{"$f":"SQRT((T12^2)+(T13^2)+(T14^2)+(T15^2))","v":22},{"$f":"U12+U13+U14+U15","v":0},{"$f":"SQRT((V12^2)+(V13^2)+(V14^2)+(V15^2))","v":22},{"$f":"W12+W13+W14+W15","v":0},{"$f":"SQRT((X12^2)+(X13^2)+(X14^2)+(X15^2))","v":22},{"$f":"Y12+Y13+Y14+Y15","v":18},{"$f":"SQRT((Z12^2)+(Z13^2)+(Z14^2)+(Z15^2))","v":34.770677301427419},{"$f":"AA12+AA13+AA14+AA15","v":58},{"$f":"SQRT((AB12^2)+(AB13^2)+(AB14^2)+(AB15^2))","v":61.245407991130243},{"$f":"AC12+AC13+AC14+AC15","v":10},{"$f":"SQRT((AD12^2)+(AD13^2)+(AD14^2)+(AD15^2))","v":24.248711305964282},{"$f":"AE12+AE13+AE14+AE15","v":82},{"$f":"SQRT((AF12^2)+(AF13^2)+(AF14^2)+(AF15^2))","v":72.993150363578636},{"$f":"AG12+AG13+AG14+AG15","v":12},{"$f":"SQRT((AH12^2)+(AH13^2)+(AH14^2)+(AH15^2))","v":33.600595232822883},{"$f":"AI12+AI13+AI14+AI15","v":63},{"$f":"SQRT((AJ12^2)+(AJ13^2)+(AJ14^2)+(AJ15^2))","v":83.719770663804383},{"$f":"AK12+AK13+AK14+AK15","v":0},{"$f":"SQRT((AL12^2)+(AL13^2)+(AL14^2)+(AL15^2))","v":22},{"$f":"AM12+AM13+AM14+AM15","v":9},{"$f":"SQRT((AN12^2)+(AN13^2)+(AN14^2)+(AN15^2))","v":23.643180835073778},{"$f":"AO12+AO13+AO14+AO15","v":0},{"$f":"SQRT((AP12^2)+(AP13^2)+(AP14^2)+(AP15^2))","v":22},{"$f":"AQ12+AQ13+AQ14+AQ15","v":71},{"$f":"SQRT((AR12^2)+(AR13^2)+(AR14^2)+(AR15^2))","v":93.214805690941603},{"$f":"AS12+AS13+AS14+AS15","v":0},{"$f":"SQRT((AT12^2)+(AT13^2)+(AT14^2)+(AT15^2))","v":22},{"$f":"AU12+AU13+AU14+AU15","v":0},{"$f":"SQRT((AV12^2)+(AV13^2)+(AV14^2)+(AV15^2))","v":22},{"$f":"AW12+AW13+AW14+AW15","v":10},{"$f":"SQRT((AX12^2)+(AX13^2)+(AX14^2)+(AX15^2))","v":26.210684844162312},{"$f":"AY12+AY13+AY14+AY15","v":15},{"$f":"SQRT((AZ12^2)+(AZ13^2)+(AZ14^2)+(AZ15^2))","v":23.643180835073778},{"$f":"BA12+BA13+BA14+BA15","v":4},{"$f":"SQRT((BB12^2)+(BB13^2)+(BB14^2)+(BB15^2))","v":19.974984355438178},{"$f":"BC12+BC13+BC14+BC15","v":3},{"$f":"SQRT((BD12^2)+(BD13^2)+(BD14^2)+(BD15^2))","v":19.467922333931785}]
[null,"Less Than 35% of HH Income",{"$f":"C9+C10+C11+C12","v":0},{"$f":"SQRT((D9^2)+(D10^2)+(D11^2)+(D12^2))","v":22},{"$f":"E9+E10+E11+E12","v":0},{"$f":"SQRT((F9^2)+(F10^2)+(F11^2)+(F12^2))","v":22},{"$f":"G9+G10+G11+G12","v":0},{"$f":"SQRT((H9^2)+(H10^2)+(H11^2)+(H12^2))","v":22},{"$f":"I9+I10+I11+I12","v":0},{"$f":"SQRT((J9^2)+(J10^2)+(J11^2)+(J12^2))","v":32},{"$f":"K9+K10+K11+K12","v":0},{"$f":"SQRT((L9^2)+(L10^2)+(L11^2)+(L12^2))","v":22},{"$f":"M9+M10+M11+M12","v":0},{"$f":"SQRT((N9^2)+(N10^2)+(N11^2)+(N12^2))","v":22},{"$f":"O9+O10+O11+O12","v":0},{"$f":"SQRT((P9^2)+(P10^2)+(P11^2)+(P12^2))","v":22},{"$f":"Q9+Q10+Q11+Q12","v":33},{"$f":"SQRT((R9^2)+(R10^2)+(R11^2)+(R12^2))","v":50.911688245431421},{"$f":"S9+S10+S11+S12","v":0},{"$f":"SQRT((T9^2)+(T10^2)+(T11^2)+(T12^2))","v":22},{"$f":"U9+U10+U11+U12","v":0},{"$f":"SQRT((V9^2)+(V10^2)+(V11^2)+(V12^2))","v":22},{"$f":"W9+W10+W11+W12","v":0},{"$f":"SQRT((X9^2)+(X10^2)+(X11^2)+(X12^2))","v":22},{"$f":"Y9+Y10+Y11+Y12","v":40},{"$f":"SQRT((Z9^2)+(Z10^2)+(Z11^2)+(Z12^2))","v":52},{"$f":"AA9+AA10+AA11+AA12","v":13},{"$f":"SQRT((AB9^2)+(AB10^2)+(AB11^2)+(AB12^2))","v":29.103264421710495},{"$f":"AC9+AC10+AC11+AC12","v":0},{"$f":"SQRT((AD9^2)+(AD10^2)+(AD11^2)+(AD12^2))","v":22},{"$f":"AE9+AE10+AE11+AE12","v":0},{"$f":"SQRT((AF9^2)+(AF10^2)+(AF11^2)+(AF12^2))","v":36},{"$f":"AG9+AG10+AG11+AG12","v":0},{"$f":"SQRT((AH9^2)+(AH10^2)+(AH11^2)+(AH12^2))","v":32},{"$f":"AI9+AI10+AI11+AI12","v":18},{"$f":"SQRT((AJ9^2)+(AJ10^2)+(AJ11^2)+(AJ12^2))","v":42.332020977033451},{"$f":"AK9+AK10+AK11+AK12","v":0},{"$f":"SQRT((AL9^2)+(AL10^2)+(AL11^2)+(AL12^2))","v":22},{"$f":"AM9+AM10+AM11+AM12","v":0},{"$f":"SQRT((AN9^2)+(AN10^2)+(AN11^2)+(AN12^2))","v":22},{"$f":"AO9+AO10+AO11+AO12","v":0},{"$f":"SQRT((AP9^2)+(AP10^2)+(AP11^2)+(AP12^2))","v":22},{"$f":"AQ9+AQ10+AQ11+AQ12","v":0},{"$f":"SQRT((AR9^2)+(AR10^2)+(AR11^2)+(AR12^2))","v":32},{"$f":"AS9+AS10+AS11+AS12","v":73},{"$f":"SQRT((AT9^2)+(AT10^2)+(AT11^2)+(AT12^2))","v":106.7145725756328},{"$f":"AU9+AU10+AU11+AU12","v":0},{"$f":"SQRT((AV9^2)+(AV10^2)+(AV11^2)+(AV12^2))","v":22},{"$f":"AW9+AW10+AW11+AW12","v":0},{"$f":"SQRT((AX9^2)+(AX10^2)+(AX11^2)+(AX12^2))","v":22},{"$f":"AY9+AY10+AY11+AY12","v":0},{"$f":"SQRT((AZ9^2)+(AZ10^2)+(AZ11^2)+(AZ12^2))","v":22},{"$f":"BA9+BA10+BA11+BA12","v":0},{"$f":"SQRT((BB9^2)+(BB10^2)+(BB11^2)+(BB12^2))","v":22},{"$f":"BC9+BC10+BC11+BC12","v":0},{"$f":"SQRT((BD9^2)+(BD10^2)+(BD11^2)+(BD12^2))","v":22}]
[null,"35.0 percent or more",{"$f":"C13+C14++C15","v":14},{"$f":"SQRT((D13^2)+(D14^2)+(D15^2))","v":26.134268690743959},{"$f":"E13+E14++E15","v":0},{"$f":"SQRT((F13^2)+(F14^2)+(F15^2))","v":19.05255888325765},{"$f":"G13+G14++G15","v":0},{"$f":"SQRT((H13^2)+(H14^2)+(H15^2))","v":19.05255888325765},{"$f":"I13+I14++I15","v":24},{"$f":"SQRT((J13^2)+(J14^2)+(J15^2))","v":42.5205832509386},{"$f":"K13+K14++K15","v":0},{"$f":"SQRT((L13^2)+(L14^2)+(L15^2))","v":19.05255888325765},{"$f":"M13+M14++M15","v":0},{"$f":"SQRT((N13^2)+(N14^2)+(N15^2))","v":19.05255888325765},{"$f":"O13+O14++O15","v":0},{"$f":"SQRT((P13^2)+(P14^2)+(P15^2))","v":19.05255888325765},{"$f":"Q13+Q14++Q15","v":593},{"$f":"SQRT((R13^2)+(R14^2)+(R15^2))","v":203.00985197768111},{"$f":"S13+S14++S15","v":0},{"$f":"SQRT((T13^2)+(T14^2)+(T15^2))","v":19.05255888325765},{"$f":"U13+U14++U15","v":0},{"$f":"SQRT((V13^2)+(V14^2)+(V15^2))","v":19.05255888325765},{"$f":"W13+W14++W15","v":0},{"$f":"SQRT((X13^2)+(X14^2)+(X15^2))","v":19.05255888325765},{"$f":"Y13+Y14++Y15","v":18},{"$f":"SQRT((Z13^2)+(Z14^2)+(Z15^2))","v":30.870698080866262},{"$f":"AA13+AA14++AA15","v":45},{"$f":"SQRT((AB13^2)+(AB14^2)+(AB15^2))","v":57.157676649772952},{"$f":"AC13+AC14++AC15","v":10},{"$f":"SQRT((AD13^2)+(AD14^2)+(AD15^2))","v":21.61018278497431},{"$f":"AE13+AE14++AE15","v":82},{"$f":"SQRT((AF13^2)+(AF14^2)+(AF15^2))","v":70.738956735309571},{"$f":"AG13+AG14++AG15","v":12},{"$f":"SQRT((AH13^2)+(AH14^2)+(AH15^2))","v":29.546573405388315},{"$f":"AI13+AI14++AI15","v":63},{"$f":"SQRT((AJ13^2)+(AJ14^2)+(AJ15^2))","v":82.176639016207034},{"$f":"AK13+AK14++AK15","v":0},{"$f":"SQRT((AL13^2)+(AL14^2)+(AL15^2))","v":19.05255888325765},{"$f":"AM13+AM14++AM15","v":9},{"$f":"SQRT((AN13^2)+(AN14^2)+(AN15^2))","v":20.928449536456348},{"$f":"AO13+AO14++AO15","v":0},{"$f":"SQRT((AP13^2)+(AP14^2)+(AP15^2))","v":19.05255888325765},{"$f":"AQ13+AQ14++AQ15","v":71},{"$f":"SQRT((AR13^2)+(AR14^2)+(AR15^2))","v":91.831367190083796},{"$f":"AS13+AS14++AS15","v":0},{"$f":"SQRT((AT13^2)+(AT14^2)+(AT15^2))","v":19.05255888325765},{"$f":"AU13+AU14++AU15","v":0},{"$f":"SQRT((AV13^2)+(AV14^2)+(AV15^2))","v":19.05255888325765},{"$f":"AW13+AW14++AW15","v":10},{"$f":"SQRT((AX13^2)+(AX14^2)+(AX15^2))","v":23.790754506740637},{"$f":"AY13+AY14++AY15","v":15},{"$f":"SQRT((AZ13^2)+(AZ14^2)+(AZ15^2))","v":20.928449536456348},{"$f":"BA13+BA14++BA15","v":4},{"$f":"SQRT((BB13^2)+(BB14^2)+(BB15^2))","v":16.673332000533065},{"$f":"BC13+BC14++BC15","v":3},{"$f":"SQRT((BD13^2)+(BD14^2)+(BD15^2))","v":16.06237840420901}]
[null,"50.0 percent or more",{"$f":"C15","v":14},21,0,11,0,11,24,36,0,11,0,11,0,11,435,139,0,11,0,11,0,11,18,21,45,55,10,15,82,66,12,19,{"$f":"AI15","v":63},79,0,11,9,14,0,11,71,89,0,11,0,11,10,18,15,14,4,6,3,4]
[null,"Not Computed",{"$f":"C16","v":0},11,26,40,9,14,11,18,0,11,0,11,0,11,123,74,0,11,0,11,0,11,10,17,0,11,0,11,30,44,0,16,{"$f":"AI16","v":0},16,0,11,8,12,9,13,0,16,10,16,0,11,0,11,29,29,11,17,0,11]
[null,"$10,000 to $19,999:",{"$f":"C17","v":172},80,0,11,89,50,39,34,3,5,28,38,5,7,1071,207,3,4,4,6,59,37,354,140,149,94,0,11,73,43,19,29,22,34,32,19,24,29,26,33,0,16,236,100,0,11,7,9,77,50,3,4,0,11]
[null,"Less than 30.0 percent",{"$f":"C18+C19+C20","v":71},{"$f":"SQRT((D18^2)+(D19^2)+(D20^2))","v":55.686623169303417},{"$f":"E18+E19+E20","v":0},{"$f":"SQRT((F18^2)+(F19^2)+(F20^2))","v":19.05255888325765},{"$f":"G18+G19+G20","v":78},{"$f":"SQRT((H18^2)+(H19^2)+(H20^2))","v":65.192024052026483},{"$f":"I18+I19+I20","v":0},{"$f":"SQRT((J18^2)+(J19^2)+(J20^2))","v":27.712812921102035},{"$f":"K18+K19+K20","v":0},{"$f":"SQRT((L18^2)+(L19^2)+(L20^2))","v":19.05255888325765},{"$f":"M18+M19+M20","v":0},{"$f":"SQRT((N18^2)+(N19^2)+(N20^2))","v":19.05255888325765},{"$f":"O18+O19+O20","v":0},{"$f":"SQRT((P18^2)+(P19^2)+(P20^2))","v":19.05255888325765},{"$f":"Q18+Q19+Q20","v":281},{"$f":"SQRT((R18^2)+(R19^2)+(R20^2))","v":136.56500283747664},{"$f":"S18+S19+S20","v":0},{"$f":"SQRT((T18^2)+(T19^2)+(T20^2))","v":19.05255888325765},{"$f":"U18+U19+U20","v":0},{"$f":"SQRT((V18^2)+(V19^2)+(V20^2))","v":19.05255888325765},{"$f":"W18+W19+W20","v":0},{"$f":"SQRT((X18^2)+(X19^2)+(X20^2))","v":19.05255888325765},{"$f":"Y18+Y19+Y20","v":55},{"$f":"SQRT((Z18^2)+(Z19^2)+(Z20^2))","v":35.958309192730404},{"$f":"AA18+AA19+AA20","v":47},{"$f":"SQRT((AB18^2)+(AB19^2)+(AB20^2))","v":42.860237983473681},{"$f":"AC18+AC19+AC20","v":0},{"$f":"SQRT((AD18^2)+(AD19^2)+(AD20^2))","v":19.05255888325765},{"$f":"AE18+AE19+AE20","v":14},{"$f":"SQRT((AF18^2)+(AF19^2)+(AF20^2))","v":33.645207682521445},{"$f":"AG18+AG19+AG20","v":0},{"$f":"SQRT((AH18^2)+(AH19^2)+(AH20^2))","v":27.712812921102035},{"$f":"AI18+AI19+AI20","v":0},{"$f":"SQRT((AJ18^2)+(AJ19^2)+(AJ20^2))","v":27.712812921102035},{"$f":"AK18+AK19+AK20","v":21},{"$f":"SQRT((AL18^2)+(AL19^2)+(AL20^2))","v":18.814887722226779},{"$f":"AM18+AM19+AM20","v":0},{"$f":"SQRT((AN18^2)+(AN19^2)+(AN20^2))","v":19.05255888325765},{"$f":"AO18+AO19+AO20","v":0},{"$f":"SQRT((AP18^2)+(AP19^2)+(AP20^2))","v":19.05255888325765},{"$f":"AQ18+AQ19+AQ20","v":0},{"$f":"SQRT((AR18^2)+(AR19^2)+(AR20^2))","v":27.712812921102035},{"$f":"AS18+AS19+AS20","v":19},{"$f":"SQRT((AT18^2)+(AT19^2)+(AT20^2))","v":26.134268690743959},{"$f":"AU18+AU19+AU20","v":0},{"$f":"SQRT((AV18^2)+(AV19^2)+(AV20^2))","v":19.05255888325765},{"$f":"AW18+AW19+AW20","v":0},{"$f":"SQRT((AX18^2)+(AX19^2)+(AX20^2))","v":19.05255888325765},{"$f":"AY18+AY19+AY20","v":6},{"$f":"SQRT((AZ18^2)+(AZ19^2)+(AZ20^2))","v":18.493242008906929},{"$f":"BA18+BA19+BA20","v":0},{"$f":"SQRT((BB18^2)+(BB19^2)+(BB20^2))","v":19.05255888325765},{"$f":"BC18+BC19+BC20","v":0},{"$f":"SQRT((BD18^2)+(BD19^2)+(BD20^2))","v":19.05255888325765}]
[null,"More than 30.0 percent",{"$f":"C21+C22+C23+C24","v":101},{"$f":"SQRT((D21^2)+(D22^2)+(D23^2)+(D24^2))","v":85.170417399470338},{"$f":"E21+E22+E23+E24","v":0},{"$f":"SQRT((F21^2)+(F22^2)+(F23^2)+(F24^2))","v":22},{"$f":"G21+G22+G23+G24","v":11},{"$f":"SQRT((H21^2)+(H22^2)+(H23^2)+(H24^2))","v":26.210684844162312},{"$f":"I21+I22+I23+I24","v":39},{"$f":"SQRT((J21^2)+(J22^2)+(J23^2)+(J24^2))","v":39.812058474788763},{"$f":"K21+K22+K23+K24","v":3},{"$f":"SQRT((L21^2)+(L22^2)+(L23^2)+(L24^2))","v":19.697715603592208},{"$f":"M21+M22+M23+M24","v":28},{"$f":"SQRT((N21^2)+(N22^2)+(N23^2)+(N24^2))","v":42.508822613664563},{"$f":"O21+O22+O23+O24","v":5},{"$f":"SQRT((P21^2)+(P22^2)+(P23^2)+(P24^2))","v":20.297783130184438},{"$f":"Q21+Q22+Q23+Q24","v":745},{"$f":"SQRT((R21^2)+(R22^2)+(R23^2)+(R24^2))","v":205.03170486536953},{"$f":"S21+S22+S23+S24","v":3},{"$f":"SQRT((T21^2)+(T22^2)+(T23^2)+(T24^2))","v":19.467922333931785},{"$f":"U21+U22+U23+U24","v":4},{"$f":"SQRT((V21^2)+(V22^2)+(V23^2)+(V24^2))","v":19.974984355438178},{"$f":"W21+W22+W23+W24","v":47},{"$f":"SQRT((X21^2)+(X22^2)+(X23^2)+(X24^2))","v":33.376638536557273},{"$f":"Y21+Y22+Y23+Y24","v":299},{"$f":"SQRT((Z21^2)+(Z22^2)+(Z23^2)+(Z24^2))","v":138.97481786280562},{"$f":"AA21+AA22+AA23+AA24","v":102},{"$f":"SQRT((AB21^2)+(AB22^2)+(AB23^2)+(AB24^2))","v":76.896033707857782},{"$f":"AC21+AC22+AC23+AC24","v":0},{"$f":"SQRT((AD21^2)+(AD22^2)+(AD23^2)+(AD24^2))","v":22},{"$f":"AE21+AE22+AE23+AE24","v":37},{"$f":"SQRT((AF21^2)+(AF22^2)+(AF23^2)+(AF24^2))","v":44.192759587968709},{"$f":"AG21+AG22+AG23+AG24","v":0},{"$f":"SQRT((AH21^2)+(AH22^2)+(AH23^2)+(AH24^2))","v":32},{"$f":"AI21+AI22+AI23+AI24","v":22},{"$f":"SQRT((AJ21^2)+(AJ22^2)+(AJ23^2)+(AJ24^2))","v":43.863424398922618},{"$f":"AK21+AK22+AK23+AK24","v":0},{"$f":"SQRT((AL21^2)+(AL22^2)+(AL23^2)+(AL24^2))","v":22},{"$f":"AM21+AM22+AM23+AM24","v":24},{"$f":"SQRT((AN21^2)+(AN22^2)+(AN23^2)+(AN24^2))","v":34.698703145794944},{"$f":"AO21+AO22+AO23+AO24","v":26},{"$f":"SQRT((AP21^2)+(AP22^2)+(AP23^2)+(AP24^2))","v":35.538711287833721},{"$f":"AQ21+AQ22+AQ23+AQ24","v":0},{"$f":"SQRT((AR21^2)+(AR22^2)+(AR23^2)+(AR24^2))","v":32},{"$f":"AS21+AS22+AS23+AS24","v":217},{"$f":"SQRT((AT21^2)+(AT22^2)+(AT23^2)+(AT24^2))","v":111.02702373746672},{"$f":"AU21+AU22+AU23+AU24","v":0},{"$f":"SQRT((AV21^2)+(AV22^2)+(AV23^2)+(AV24^2))","v":22},{"$f":"AW21+AW22+AW23+AW24","v":3},{"$f":"SQRT((AX21^2)+(AX22^2)+(AX23^2)+(AX24^2))","v":19.974984355438178},{"$f":"AY21+AY22+AY23+AY24","v":67},{"$f":"SQRT((AZ21^2)+(AZ22^2)+(AZ23^2)+(AZ24^2))","v":54.17564028232615},{"$f":"BA21+BA22+BA23+BA24","v":0},{"$f":"SQRT((BB21^2)+(BB22^2)+(BB23^2)+(BB24^2))","v":22},{"$f":"BC21+BC22+BC23+BC24","v":0},{"$f":"SQRT((BD21^2)+(BD22^2)+(BD23^2)+(BD24^2))","v":22}]
[null,"Less Than 35% of HH Income",{"$f":"C18+C19+C20+C21","v":71},{"$f":"SQRT((D18^2)+(D19^2)+(D20^2)+(D21^2))","v":56.762663785273503},{"$f":"E18+E19+E20+E21","v":0},{"$f":"SQRT((F18^2)+(F19^2)+(F20^2)+(F21^2))","v":22},{"$f":"G18+G19+G20+G21","v":89},{"$f":"SQRT((H18^2)+(H19^2)+(H20^2)+(H21^2))","v":67.631353675643666},{"$f":"I18+I19+I20+I21","v":0},{"$f":"SQRT((J18^2)+(J19^2)+(J20^2)+(J21^2))","v":32},{"$f":"K18+K19+K20+K21","v":0},{"$f":"SQRT((L18^2)+(L19^2)+(L20^2)+(L21^2))","v":22},{"$f":"M18+M19+M20+M21","v":0},{"$f":"SQRT((N18^2)+(N19^2)+(N20^2)+(N21^2))","v":22},{"$f":"O18+O19+O20+O21","v":0},{"$f":"SQRT((P18^2)+(P19^2)+(P20^2)+(P21^2))","v":22},{"$f":"Q18+Q19+Q20+Q21","v":330},{"$f":"SQRT((R18^2)+(R19^2)+(R20^2)+(R21^2))","v":143.47822134386809},{"$f":"S18+S19+S20+S21","v":0},{"$f":"SQRT((T18^2)+(T19^2)+(T20^2)+(T21^2))","v":22},{"$f":"U18+U19+U20+U21","v":0},{"$f":"SQRT((V18^2)+(V19^2)+(V20^2)+(V21^2))","v":22},{"$f":"W18+W19+W20+W21","v":0},{"$f":"SQRT((X18^2)+(X19^2)+(X20^2)+(X21^2))","v":22},{"$f":"Y18+Y19+Y20+Y21","v":105},{"$f":"SQRT((Z18^2)+(Z19^2)+(Z20^2)+(Z21^2))","v":65.711490623786645},{"$f":"AA18+AA19+AA20+AA21","v":82},{"$f":"SQRT((AB18^2)+(AB19^2)+(AB20^2)+(AB21^2))","v":67.386942355325786},{"$f":"AC18+AC19+AC20+AC21","v":0},{"$f":"SQRT((AD18^2)+(AD19^2)+(AD20^2)+(AD21^2))","v":22},{"$f":"AE18+AE19+AE20+AE21","v":14},{"$f":"SQRT((AF18^2)+(AF19^2)+(AF20^2)+(AF21^2))","v":38.157568056677825},{"$f":"AG18+AG19+AG20+AG21","v":0},{"$f":"SQRT((AH18^2)+(AH19^2)+(AH20^2)+(AH21^2))","v":32},{"$f":"AI18+AI19+AI20+AI21","v":0},{"$f":"SQRT((AJ18^2)+(AJ19^2)+(AJ20^2)+(AJ21^2))","v":32},{"$f":"AK18+AK19+AK20+AK21","v":21},{"$f":"SQRT((AL18^2)+(AL19^2)+(AL20^2)+(AL21^2))","v":21.794494717703369},{"$f":"AM18+AM19+AM20+AM21","v":24},{"$f":"SQRT((AN18^2)+(AN19^2)+(AN20^2)+(AN21^2))","v":34.698703145794944},{"$f":"AO18+AO19+AO20+AO21","v":0},{"$f":"SQRT((AP18^2)+(AP19^2)+(AP20^2)+(AP21^2))","v":22},{"$f":"AQ18+AQ19+AQ20+AQ21","v":0},{"$f":"SQRT((AR18^2)+(AR19^2)+(AR20^2)+(AR21^2))","v":32},{"$f":"AS18+AS19+AS20+AS21","v":28},{"$f":"SQRT((AT18^2)+(AT19^2)+(AT20^2)+(AT21^2))","v":29.647934160747187},{"$f":"AU18+AU19+AU20+AU21","v":0},{"$f":"SQRT((AV18^2)+(AV19^2)+(AV20^2)+(AV21^2))","v":22},{"$f":"AW18+AW19+AW20+AW21","v":0},{"$f":"SQRT((AX18^2)+(AX19^2)+(AX20^2)+(AX21^2))","v":22},{"$f":"AY18+AY19+AY20+AY21","v":50},{"$f":"SQRT((AZ18^2)+(AZ19^2)+(AZ20^2)+(AZ21^2))","v":50.507425196697561},{"$f":"BA18+BA19+BA20+BA21","v":0},{"$f":"SQRT((BB18^2)+(BB19^2)+(BB20^2)+(BB21^2))","v":22},{"$f":"BC18+BC19+BC20+BC21","v":0},{"$f":"SQRT((BD18^2)+(BD19^2)+(BD20^2)+(BD21^2))","v":22}]
[null,"35.0 percent or more",{"$f":"C22+C23++C24","v":101},{"$f":"SQRT((D22^2)+(D23^2)+(D24^2))","v":84.457089696484331},{"$f":"E22+E23++E24","v":0},{"$f":"SQRT((F22^2)+(F23^2)+(F24^2))","v":19.05255888325765},{"$f":"G22+G23++G24","v":0},{"$f":"SQRT((H22^2)+(H23^2)+(H24^2))","v":19.05255888325765},{"$f":"I22+I23++I24","v":39},{"$f":"SQRT((J22^2)+(J23^2)+(J24^2))","v":36.455452267116371},{"$f":"K22+K23++K24","v":3},{"$f":"SQRT((L22^2)+(L23^2)+(L24^2))","v":16.340134638368191},{"$f":"M22+M23++M24","v":28},{"$f":"SQRT((N22^2)+(N23^2)+(N24^2))","v":41.060930335295616},{"$f":"O22+O23++O24","v":5},{"$f":"SQRT((P22^2)+(P23^2)+(P24^2))","v":17.058722109231979},{"$f":"Q22+Q23++Q24","v":696},{"$f":"SQRT((R22^2)+(R23^2)+(R24^2))","v":200.25483764443743},{"$f":"S22+S23++S24","v":3},{"$f":"SQRT((T22^2)+(T23^2)+(T24^2))","v":16.06237840420901},{"$f":"U22+U23++U24","v":4},{"$f":"SQRT((V22^2)+(V23^2)+(V24^2))","v":16.673332000533065},{"$f":"W22+W23++W24","v":47},{"$f":"SQRT((X22^2)+(X23^2)+(X24^2))","v":31.511902513177461},{"$f":"Y22+Y23++Y24","v":249},{"$f":"SQRT((Z22^2)+(Z23^2)+(Z24^2))","v":127.62836675285006},{"$f":"AA22+AA23++AA24","v":67},{"$f":"SQRT((AB22^2)+(AB23^2)+(AB24^2))","v":56.648036153074187},{"$f":"AC22+AC23++AC24","v":0},{"$f":"SQRT((AD22^2)+(AD23^2)+(AD24^2))","v":19.05255888325765},{"$f":"AE22+AE23++AE24","v":37},{"$f":"SQRT((AF22^2)+(AF23^2)+(AF24^2))","v":40.36087214122113},{"$f":"AG22+AG23++AG24","v":0},{"$f":"SQRT((AH22^2)+(AH23^2)+(AH24^2))","v":27.712812921102035},{"$f":"AI22+AI23++AI24","v":22},{"$f":"SQRT((AJ22^2)+(AJ23^2)+(AJ24^2))","v":40.841155713324277},{"$f":"AK22+AK23++AK24","v":0},{"$f":"SQRT((AL22^2)+(AL23^2)+(AL24^2))","v":19.05255888325765},{"$f":"AM22+AM23++AM24","v":0},{"$f":"SQRT((AN22^2)+(AN23^2)+(AN24^2))","v":19.05255888325765},{"$f":"AO22+AO23++AO24","v":26},{"$f":"SQRT((AP22^2)+(AP23^2)+(AP24^2))","v":33.793490497431605},{"$f":"AQ22+AQ23++AQ24","v":0},{"$f":"SQRT((AR22^2)+(AR23^2)+(AR24^2))","v":27.712812921102035},{"$f":"AS22+AS23++AS24","v":208},{"$f":"SQRT((AT22^2)+(AT23^2)+(AT24^2))","v":110.14081895464551},{"$f":"AU22+AU23++AU24","v":0},{"$f":"SQRT((AV22^2)+(AV23^2)+(AV24^2))","v":19.05255888325765},{"$f":"AW22+AW23++AW24","v":3},{"$f":"SQRT((AX22^2)+(AX23^2)+(AX24^2))","v":16.673332000533065},{"$f":"AY22+AY23++AY24","v":23},{"$f":"SQRT((AZ22^2)+(AZ23^2)+(AZ24^2))","v":26.944387170614959},{"$f":"BA22+BA23++BA24","v":0},{"$f":"SQRT((BB22^2)+(BB23^2)+(BB24^2))","v":19.05255888325765},{"$f":"BC22+BC23++BC24","v":0},{"$f":"SQRT((BD22^2)+(BD23^2)+(BD24^2))","v":19.05255888325765}]
[null,"50.0 percent or more",{"$f":"C24","v":67},{"$f":"D24","v":64},{"$f":"E24","v":0},{"$f":"F24","v":11},{"$f":"G24","v":0},11,{"$f":"I24","v":28},28,{"$f":"K24","v":3},5,{"$f":"M24","v":28},38,{"$f":"O24","v":5},7,{"$f":"Q24","v":646},198,{"$f":"S24","v":3},4,{"$f":"U24","v":4},6,{"$f":"W24","v":18},14,{"$f":"Y24","v":162},92,{"$f":"AA24","v":40},43,{"$f":"AC24","v":0},11,{"$f":"AE24","v":16},27,{"$f":"AG24","v":0},16,{"$f":"AI24","v":22},34,{"$f":"AK24","v":0},11,{"$f":"AM24","v":0},11,{"$f":"AO24","v":7},11,{"$f":"AQ24","v":0},16,{"$f":"AS24","v":179},99,{"$f":"AU24","v":0},11,{"$f":"AW24","v":3},6,{"$f":"AY24","v":23},22,{"$f":"BA24","v":0},11,{"$f":"BC24","v":0},11]
[null,"Not Computed",{"$f":"C25","v":0},11,0,11,0,11,0,16,0,11,0,11,0,11,45,42,{"$f":"S25","v":0},11,0,11,12,19,0,16,0,11,0,11,22,26,19,29,0,16,11,14,0,11,0,11,0,16,0,11,0,11,4,7,4,7,3,4,0,11]
[null,"$20,000 to $34,999:",39,31,49,44,26,29,77,41,22,19,42,38,0,11,1649,258,13,11,9,9,53,41,321,108,80,60,8,7,190,89,25,30,42,48,10,11,32,31,167,104,105,70,83,68,5,9,19,20,71,41,13,18,13,11]
[null,"Less than 30.0 percent",{"$f":"C27+C28+C29","v":11},{"$f":"SQRT((D27^2)+(D28^2)+(D29^2))","v":24.556058315617349},{"$f":"E27+E28+E29","v":0},{"$f":"SQRT((F27^2)+(F28^2)+(F29^2))","v":19.05255888325765},{"$f":"G27+G28+G29","v":0},{"$f":"SQRT((H27^2)+(H28^2)+(H29^2))","v":19.05255888325765},{"$f":"I27+I28+I29","v":10},{"$f":"SQRT((J27^2)+(J28^2)+(J29^2))","v":27.712812921102035},{"$f":"K27+K28+K29","v":3},{"$f":"SQRT((L27^2)+(L28^2)+(L29^2))","v":16.340134638368191},{"$f":"M27+M28+M29","v":9},{"$f":"SQRT((N27^2)+(N28^2)+(N29^2))","v":19.646882704388499},{"$f":"O27+O28+O29","v":0},{"$f":"SQRT((P27^2)+(P28^2)+(P29^2))","v":19.05255888325765},{"$f":"Q27+Q28+Q29","v":307},{"$f":"SQRT((R27^2)+(R28^2)+(R29^2))","v":127.0196835140129},{"$f":"S27+S28+S29","v":0},{"$f":"SQRT((T27^2)+(T28^2)+(T29^2))","v":19.05255888325765},{"$f":"U27+U28+U29","v":0},{"$f":"SQRT((V27^2)+(V28^2)+(V29^2))","v":19.05255888325765},{"$f":"W27+W28+W29","v":11},{"$f":"SQRT((X27^2)+(X28^2)+(X29^2))","v":23.790754506740637},{"$f":"Y27+Y28+Y29","v":91},{"$f":"SQRT((Z27^2)+(Z28^2)+(Z29^2))","v":59.16079783099616},{"$f":"AA27+AA28+AA29","v":21},{"$f":"SQRT((AB27^2)+(AB28^2)+(AB29^2))","v":37.389838191679836},{"$f":"AC27+AC28+AC29","v":0},{"$f":"SQRT((AD27^2)+(AD28^2)+(AD29^2))","v":19.05255888325765},{"$f":"AE27+AE28+AE29","v":41},{"$f":"SQRT((AF27^2)+(AF28^2)+(AF29^2))","v":35.958309192730404},{"$f":"AG27+AG28+AG29","v":0},{"$f":"SQRT((AH27^2)+(AH28^2)+(AH29^2))","v":27.712812921102035},{"$f":"AI27+AI28+AI29","v":0},{"$f":"SQRT((AJ27^2)+(AJ28^2)+(AJ29^2))","v":27.712812921102035},{"$f":"AK27+AK28+AK29","v":0},{"$f":"SQRT((AL27^2)+(AL28^2)+(AL29^2))","v":19.05255888325765},{"$f":"AM27+AM28+AM29","v":0},{"$f":"SQRT((AN27^2)+(AN28^2)+(AN29^2))","v":19.05255888325765},{"$f":"AO27+AO28+AO29","v":18},{"$f":"SQRT((AP27^2)+(AP28^2)+(AP29^2))","v":26.134268690743959},{"$f":"AQ27+AQ28+AQ29","v":15},{"$f":"SQRT((AR27^2)+(AR28^2)+(AR29^2))","v":32.984845004941285},{"$f":"AS27+AS28+AS29","v":0},{"$f":"SQRT((AT27^2)+(AT28^2)+(AT29^2))","v":19.05255888325765},{"$f":"AU27+AU28+AU29","v":0},{"$f":"SQRT((AV27^2)+(AV28^2)+(AV29^2))","v":19.05255888325765},{"$f":"AW27+AW28+AW29","v":0},{"$f":"SQRT((AX27^2)+(AX28^2)+(AX29^2))","v":19.05255888325765},{"$f":"AY27+AY28+AY29","v":37},{"$f":"SQRT((AZ27^2)+(AZ28^2)+(AZ29^2))","v":34.467375879228172},{"$f":"BA27+BA28+BA29","v":13},{"$f":"SQRT((BB27^2)+(BB28^2)+(BB29^2))","v":21.470910553583888},{"$f":"BC27+BC28+BC29","v":0},{"$f":"SQRT((BD27^2)+(BD28^2)+(BD29^2))","v":19.05255888325765}]
[null,"More than 30.0 percent",{"$f":"C30+C31+C32+C33","v":28},{"$f":"SQRT((D30^2)+(D31^2)+(D32^2)+(D33^2))","v":26.115129714401192},{"$f":"E30+E31+E32+E33","v":30},{"$f":"SQRT((F30^2)+(F31^2)+(F32^2)+(F33^2))","v":34.698703145794944},{"$f":"G30+G31+G32+G33","v":26},{"$f":"SQRT((H30^2)+(H31^2)+(H32^2)+(H33^2))","v":34.698703145794944},{"$f":"I30+I31+I32+I33","v":59},{"$f":"SQRT((J30^2)+(J31^2)+(J32^2)+(J33^2))","v":39.812058474788763},{"$f":"K30+K31+K32+K33","v":19},{"$f":"SQRT((L30^2)+(L31^2)+(L32^2)+(L33^2))","v":20.760539492026695},{"$f":"M30+M31+M32+M33","v":12},{"$f":"SQRT((N30^2)+(N31^2)+(N32^2)+(N33^2))","v":20.663978319771825},{"$f":"O30+O31+O32+O33","v":0},{"$f":"SQRT((P30^2)+(P31^2)+(P32^2)+(P33^2))","v":22},{"$f":"Q30+Q31+Q32+Q33","v":1329},{"$f":"SQRT((R30^2)+(R31^2)+(R32^2)+(R33^2))","v":243.01234536541554},{"$f":"S30+S31+S32+S33","v":9},{"$f":"SQRT((T30^2)+(T31^2)+(T32^2)+(T33^2))","v":18.193405398660254},{"$f":"U30+U31+U32+U33","v":9},{"$f":"SQRT((V30^2)+(V31^2)+(V32^2)+(V33^2))","v":18.083141320025124},{"$f":"W30+W31+W32+W33","v":34},{"$f":"SQRT((X30^2)+(X31^2)+(X32^2)+(X33^2))","v":30.446674695276659},{"$f":"Y30+Y31+Y32+Y33","v":206},{"$f":"SQRT((Z30^2)+(Z31^2)+(Z32^2)+(Z33^2))","v":107.79146533933009},{"$f":"AA30+AA31+AA32+AA33","v":49},{"$f":"SQRT((AB30^2)+(AB31^2)+(AB32^2)+(AB33^2))","v":49.376107582514038},{"$f":"AC30+AC31+AC32+AC33","v":4},{"$f":"SQRT((AD30^2)+(AD31^2)+(AD32^2)+(AD33^2))","v":19.697715603592208},{"$f":"AE30+AE31+AE32+AE33","v":138},{"$f":"SQRT((AF30^2)+(AF31^2)+(AF32^2)+(AF33^2))","v":80.137382038596698},{"$f":"AG30+AG31+AG32+AG33","v":12},{"$f":"SQRT((AH30^2)+(AH31^2)+(AH32^2)+(AH33^2))","v":34.770677301427419},{"$f":"AI30+AI31+AI32+AI33","v":42},{"$f":"SQRT((AJ30^2)+(AJ31^2)+(AJ32^2)+(AJ33^2))","v":53.786615435440815},{"$f":"AK30+AK31+AK32+AK33","v":10},{"$f":"SQRT((AL30^2)+(AL31^2)+(AL32^2)+(AL33^2))","v":18.439088914585774},{"$f":"AM30+AM31+AM32+AM33","v":32},{"$f":"SQRT((AN30^2)+(AN31^2)+(AN32^2)+(AN33^2))","v":34.97141690009142},{"$f":"AO30+AO31+AO32+AO33","v":149},{"$f":"SQRT((AP30^2)+(AP31^2)+(AP32^2)+(AP33^2))","v":120.21231218140677},{"$f":"AQ30+AQ31+AQ32+AQ33","v":90},{"$f":"SQRT((AR30^2)+(AR31^2)+(AR32^2)+(AR33^2))","v":70.121323433032842},{"$f":"AS30+AS31+AS32+AS33","v":83},{"$f":"SQRT((AT30^2)+(AT31^2)+(AT32^2)+(AT33^2))","v":69.483811064160832},{"$f":"AU30+AU31+AU32+AU33","v":5},{"$f":"SQRT((AV30^2)+(AV31^2)+(AV32^2)+(AV33^2))","v":21.071307505705477},{"$f":"AW30+AW31+AW32+AW33","v":19},{"$f":"SQRT((AX30^2)+(AX31^2)+(AX32^2)+(AX33^2))","v":27.622454633866266},{"$f":"AY30+AY31+AY32+AY33","v":28},{"$f":"SQRT((AZ30^2)+(AZ31^2)+(AZ32^2)+(AZ33^2))","v":27.604347483684521},{"$f":"BA30+BA31+BA32+BA33","v":0},{"$f":"SQRT((BB30^2)+(BB31^2)+(BB32^2)+(BB33^2))","v":22},{"$f":"BC30+BC31+BC32+BC33","v":8},{"$f":"SQRT((BD30^2)+(BD31^2)+(BD32^2)+(BD33^2))","v":17.406895185529212}]
[null,"Less Than 35% of HH Income",{"$f":"C27+C28+C29+C30","v":11},{"$f":"SQRT((D27^2)+(D28^2)+(D29^2)+(D30^2))","v":26.90724809414742},{"$f":"E27+E28+E29+E30","v":0},{"$f":"SQRT((F27^2)+(F28^2)+(F29^2)+(F30^2))","v":22},{"$f":"G27+G28+G29+G30","v":0},{"$f":"SQRT((H27^2)+(H28^2)+(H29^2)+(H30^2))","v":22},{"$f":"I27+I28+I29+I30","v":10},{"$f":"SQRT((J27^2)+(J28^2)+(J29^2)+(J30^2))","v":32},{"$f":"K27+K28+K29+K30","v":12},{"$f":"SQRT((L27^2)+(L28^2)+(L29^2)+(L30^2))","v":22.181073012818835},{"$f":"M27+M28+M29+M30","v":14},{"$f":"SQRT((N27^2)+(N28^2)+(N29^2)+(N30^2))","v":21.213203435596427},{"$f":"O27+O28+O29+O30","v":0},{"$f":"SQRT((P27^2)+(P28^2)+(P29^2)+(P30^2))","v":22},{"$f":"Q27+Q28+Q29+Q30","v":425},{"$f":"SQRT((R27^2)+(R28^2)+(R29^2)+(R30^2))","v":143.14328485821471},{"$f":"S27+S28+S29+S30","v":0},{"$f":"SQRT((T27^2)+(T28^2)+(T29^2)+(T30^2))","v":22},{"$f":"U27+U28+U29+U30","v":0},{"$f":"SQRT((V27^2)+(V28^2)+(V29^2)+(V30^2))","v":22},{"$f":"W27+W28+W29+W30","v":11},{"$f":"SQRT((X27^2)+(X28^2)+(X29^2)+(X30^2))","v":26.210684844162312},{"$f":"Y27+Y28+Y29+Y30","v":126},{"$f":"SQRT((Z27^2)+(Z28^2)+(Z29^2)+(Z30^2))","v":67.260686883200947},{"$f":"AA27+AA28+AA29+AA30","v":21},{"$f":"SQRT((AB27^2)+(AB28^2)+(AB29^2)+(AB30^2))","v":38.974350539810153},{"$f":"AC27+AC28+AC29+AC30","v":0},{"$f":"SQRT((AD27^2)+(AD28^2)+(AD29^2)+(AD30^2))","v":22},{"$f":"AE27+AE28+AE29+AE30","v":41},{"$f":"SQRT((AF27^2)+(AF28^2)+(AF29^2)+(AF30^2))","v":40.2119385257662},{"$f":"AG27+AG28+AG29+AG30","v":0},{"$f":"SQRT((AH27^2)+(AH28^2)+(AH29^2)+(AH30^2))","v":32},{"$f":"AI27+AI28+AI29+AI30","v":21},{"$f":"SQRT((AJ27^2)+(AJ28^2)+(AJ29^2)+(AJ30^2))","v":44.643028571099428},{"$f":"AK27+AK28+AK29+AK30","v":5},{"$f":"SQRT((AL27^2)+(AL28^2)+(AL29^2)+(AL30^2))","v":20.297783130184438},{"$f":"AM27+AM28+AM29+AM30","v":0},{"$f":"SQRT((AN27^2)+(AN28^2)+(AN29^2)+(AN30^2))","v":22},{"$f":"AO27+AO28+AO29+AO30","v":26},{"$f":"SQRT((AP27^2)+(AP28^2)+(AP29^2)+(AP30^2))","v":29.189039038652847},{"$f":"AQ27+AQ28+AQ29+AQ30","v":46},{"$f":"SQRT((AR27^2)+(AR28^2)+(AR29^2)+(AR30^2))","v":47.370877129308042},{"$f":"AS27+AS28+AS29+AS30","v":66},{"$f":"SQRT((AT27^2)+(AT28^2)+(AT29^2)+(AT30^2))","v":67.734776887504395},{"$f":"AU27+AU28+AU29+AU30","v":0},{"$f":"SQRT((AV27^2)+(AV28^2)+(AV29^2)+(AV30^2))","v":22},{"$f":"AW27+AW28+AW29+AW30","v":0},{"$f":"SQRT((AX27^2)+(AX28^2)+(AX29^2)+(AX30^2))","v":22},{"$f":"AY27+AY28+AY29+AY30","v":49},{"$f":"SQRT((AZ27^2)+(AZ28^2)+(AZ29^2)+(AZ30^2))","v":37.20215047547655},{"$f":"BA27+BA28+BA29+BA30","v":13},{"$f":"SQRT((BB27^2)+(BB28^2)+(BB29^2)+(BB30^2))","v":24.124676163629637},{"$f":"BC27+BC28+BC29+BC30","v":3},{"$f":"SQRT((BD27^2)+(BD28^2)+(BD29^2)+(BD30^2))","v":19.697715603592208}]
[null,"35.0 percent or more",{"$f":"C31+C32+C33","v":28},{"$f":"SQRT((D31^2)+(D32^2)+(D33^2))","v":23.685438564654021},{"$f":"E31+E32+E33","v":30},{"$f":"SQRT((F31^2)+(F32^2)+(F33^2))","v":32.908965343808667},{"$f":"G31+G32+G33","v":26},{"$f":"SQRT((H31^2)+(H32^2)+(H33^2))","v":32.908965343808667},{"$f":"I31+I32+I33","v":59},{"$f":"SQRT((J31^2)+(J32^2)+(J33^2))","v":36.455452267116371},{"$f":"K31+K32+K33","v":10},{"$f":"SQRT((L31^2)+(L32^2)+(L33^2))","v":14.352700094407323},{"$f":"M31+M32+M33","v":7},{"$f":"SQRT((N31^2)+(N32^2)+(N33^2))","v":19.05255888325765},{"$f":"O31+O32+O33","v":0},{"$f":"SQRT((P31^2)+(P32^2)+(P33^2))","v":19.05255888325765},{"$f":"Q31+Q32+Q33","v":1211},{"$f":"SQRT((R31^2)+(R32^2)+(R33^2))","v":233.87817341513508},{"$f":"S31+S32+S33","v":9},{"$f":"SQRT((T31^2)+(T32^2)+(T33^2))","v":14.491376746189438},{"$f":"U31+U32+U33","v":9},{"$f":"SQRT((V31^2)+(V32^2)+(V33^2))","v":14.352700094407323},{"$f":"W31+W32+W33","v":34},{"$f":"SQRT((X31^2)+(X32^2)+(X33^2))","v":28.390139133156779},{"$f":"Y31+Y32+Y33","v":171},{"$f":"SQRT((Z31^2)+(Z32^2)+(Z33^2))","v":102.93201639917486},{"$f":"AA31+AA32+AA33","v":49},{"$f":"SQRT((AB31^2)+(AB32^2)+(AB33^2))","v":48.135226186234959},{"$f":"AC31+AC32+AC33","v":4},{"$f":"SQRT((AD31^2)+(AD32^2)+(AD33^2))","v":16.340134638368191},{"$f":"AE31+AE32+AE33","v":138},{"$f":"SQRT((AF31^2)+(AF32^2)+(AF33^2))","v":78.089692021418557},{"$f":"AG31+AG32+AG33","v":12},{"$f":"SQRT((AH31^2)+(AH32^2)+(AH33^2))","v":30.870698080866262},{"$f":"AI31+AI32+AI33","v":21},{"$f":"SQRT((AJ31^2)+(AJ32^2)+(AJ33^2))","v":40.841155713324277},{"$f":"AK31+AK32+AK33","v":5},{"$f":"SQRT((AL31^2)+(AL32^2)+(AL33^2))","v":17.058722109231979},{"$f":"AM31+AM32+AM33","v":32},{"$f":"SQRT((AN31^2)+(AN32^2)+(AN33^2))","v":33.196385345395662},{"$f":"AO31+AO32+AO33","v":141},{"$f":"SQRT((AP31^2)+(AP32^2)+(AP33^2))","v":119.50732195141852},{"$f":"AQ31+AQ32+AQ33","v":59},{"$f":"SQRT((AR31^2)+(AR32^2)+(AR33^2))","v":61.326992425847855},{"$f":"AS31+AS32+AS33","v":17},{"$f":"SQRT((AT31^2)+(AT32^2)+(AT33^2))","v":24.556058315617349},{"$f":"AU31+AU32+AU33","v":5},{"$f":"SQRT((AV31^2)+(AV32^2)+(AV33^2))","v":17.972200755611428},{"$f":"AW31+AW32+AW33","v":19},{"$f":"SQRT((AX31^2)+(AX32^2)+(AX33^2))","v":25.337718918639855},{"$f":"AY31+AY32+AY33","v":16},{"$f":"SQRT((AZ31^2)+(AZ32^2)+(AZ33^2))","v":23.790754506740637},{"$f":"BA31+BA32+BA33","v":0},{"$f":"SQRT((BB31^2)+(BB32^2)+(BB33^2))","v":19.05255888325765},{"$f":"BC31+BC32+BC33","v":5},{"$f":"SQRT((BD31^2)+(BD32^2)+(BD33^2))","v":16.673332000533065}]
[null,"50.0 percent or more",{"$f":"C33","v":9},13,0,11,0,11,13,20,7,7,7,11,0,11,496,157,{"$f":"S33","v":3},5,5,7,12,19,57,53,30,36,4,5,108,73,0,16,21,34,5,7,26,30,0,11,59,57,0,11,0,11,19,20,16,18,0,11,5,6]
[null,"Not Computed",0,11,19,30,0,11,8,14,0,11,21,34,0,11,13,18,4,5,0,11,8,12,24,27,10,15,4,5,11,19,13,21,0,16,0,11,0,11,0,11,0,16,0,11,0,11,0,11,6,8,0,11,5,8]
[null,"$35,000 to $49,999:",70,58,29,39,12,20,31,27,29,22,0,11,49,44,1195,214,4,5,12,12,49,32,185,99,67,52,3,5,237,127,8,19,31,36,5,7,62,54,162,85,80,63,29,28,11,17,6,10,36,27,5,8,28,23]
[null,"Less than 30.0 percent",{"$f":"C36+C37+C38","v":18},{"$f":"SQRT((D36^2)+(D37^2)+(D38^2))","v":25.337718918639855},{"$f":"E36+E37+E38","v":29},{"$f":"SQRT((F36^2)+(F37^2)+(F38^2))","v":40.36087214122113},{"$f":"G36+G37+G38","v":12},{"$f":"SQRT((H36^2)+(H37^2)+(H38^2))","v":25.337718918639855},{"$f":"I36+I37+I38","v":0},{"$f":"SQRT((J36^2)+(J37^2)+(J38^2))","v":27.712812921102035},{"$f":"K36+K37+K38","v":19},{"$f":"SQRT((L36^2)+(L37^2)+(L38^2))","v":22.516660498395403},{"$f":"M36+M37+M38","v":0},{"$f":"SQRT((N36^2)+(N37^2)+(N38^2))","v":19.05255888325765},{"$f":"O36+O37+O38","v":12},{"$f":"SQRT((P36^2)+(P37^2)+(P38^2))","v":24.556058315617349},{"$f":"Q36+Q37+Q38","v":543},{"$f":"SQRT((R36^2)+(R37^2)+(R38^2))","v":148.7615541731129},{"$f":"S36+S37+S38","v":0},{"$f":"SQRT((T36^2)+(T37^2)+(T38^2))","v":19.05255888325765},{"$f":"U36+U37+U38","v":8},{"$f":"SQRT((V36^2)+(V37^2)+(V38^2))","v":13.892443989449804},{"$f":"W36+W37+W38","v":40},{"$f":"SQRT((X36^2)+(X37^2)+(X38^2))","v":37.269290307168447},{"$f":"Y36+Y37+Y38","v":155},{"$f":"SQRT((Z36^2)+(Z37^2)+(Z38^2))","v":99.734647941425052},{"$f":"AA36+AA37+AA38","v":67},{"$f":"SQRT((AB36^2)+(AB37^2)+(AB38^2))","v":54.415071441651165},{"$f":"AC36+AC37+AC38","v":0},{"$f":"SQRT((AD36^2)+(AD37^2)+(AD38^2))","v":19.05255888325765},{"$f":"AE36+AE37+AE38","v":39},{"$f":"SQRT((AF36^2)+(AF37^2)+(AF38^2))","v":35.791060336346561},{"$f":"AG36+AG37+AG38","v":0},{"$f":"SQRT((AH36^2)+(AH37^2)+(AH38^2))","v":27.712812921102035},{"$f":"AI36+AI37+AI38","v":0},{"$f":"SQRT((AJ36^2)+(AJ37^2)+(AJ38^2))","v":27.712812921102035},{"$f":"AK36+AK37+AK38","v":0},{"$f":"SQRT((AL36^2)+(AL37^2)+(AL38^2))","v":19.05255888325765},{"$f":"AM36+AM37+AM38","v":38},{"$f":"SQRT((AN36^2)+(AN37^2)+(AN38^2))","v":44.966654311834233},{"$f":"AO36+AO37+AO38","v":122},{"$f":"SQRT((AP36^2)+(AP37^2)+(AP38^2))","v":79.309520235593411},{"$f":"AQ36+AQ37+AQ38","v":41},{"$f":"SQRT((AR36^2)+(AR37^2)+(AR38^2))","v":48.083261120685229},{"$f":"AS36+AS37+AS38","v":29},{"$f":"SQRT((AT36^2)+(AT37^2)+(AT38^2))","v":29.086079144497972},{"$f":"AU36+AU37+AU38","v":0},{"$f":"SQRT((AV36^2)+(AV37^2)+(AV38^2))","v":19.05255888325765},{"$f":"AW36+AW37+AW38","v":0},{"$f":"SQRT((AX36^2)+(AX37^2)+(AX38^2))","v":19.05255888325765},{"$f":"AY36+AY37+AY38","v":9},{"$f":"SQRT((AZ36^2)+(AZ37^2)+(AZ38^2))","v":14.866068747318506},{"$f":"BA36+BA37+BA38","v":0},{"$f":"SQRT((BB36^2)+(BB37^2)+(BB38^2))","v":19.05255888325765},{"$f":"BC36+BC37+BC38","v":14},{"$f":"SQRT((BD36^2)+(BD37^2)+(BD38^2))","v":22.315913604421397}]
[null,"More than 30.0 percent",{"$f":"C39+C40+C41+C42","v":42},{"$f":"SQRT((D39^2)+(D40^2)+(D41^2)+(D42^2))","v":55.380501984001555},{"$f":"E39+E40+E41+E42","v":0},{"$f":"SQRT((F39^2)+(F40^2)+(F41^2)+(F42^2))","v":22},{"$f":"G39+G40+G41+G42","v":0},{"$f":"SQRT((H39^2)+(H40^2)+(H41^2)+(H42^2))","v":22},{"$f":"I39+I40+I41+I42","v":31},{"$f":"SQRT((J39^2)+(J40^2)+(J41^2)+(J42^2))","v":35.832945734337834},{"$f":"K39+K40+K41+K42","v":10},{"$f":"SQRT((L39^2)+(L40^2)+(L41^2)+(L42^2))","v":19.467922333931785},{"$f":"M39+M40+M41+M42","v":0},{"$f":"SQRT((N39^2)+(N40^2)+(N41^2)+(N42^2))","v":22},{"$f":"O39+O40+O41+O42","v":37},{"$f":"SQRT((P39^2)+(P40^2)+(P41^2)+(P42^2))","v":40.730823708832602},{"$f":"Q39+Q40+Q41+Q42","v":633},{"$f":"SQRT((R39^2)+(R40^2)+(R41^2)+(R42^2))","v":155.02902953963169},{"$f":"S39+S40+S41+S42","v":4},{"$f":"SQRT((T39^2)+(T40^2)+(T41^2)+(T42^2))","v":19.697715603592208},{"$f":"U39+U40+U41+U42","v":4},{"$f":"SQRT((V39^2)+(V40^2)+(V41^2)+(V42^2))","v":19.974984355438178},{"$f":"W39+W40+W41+W42","v":9},{"$f":"SQRT((X39^2)+(X40^2)+(X41^2)+(X42^2))","v":23.643180835073778},{"$f":"Y39+Y40+Y41+Y42","v":22},{"$f":"SQRT((Z39^2)+(Z40^2)+(Z41^2)+(Z42^2))","v":34.058772731852805},{"$f":"AA39+AA40+AA41+AA42","v":0},{"$f":"SQRT((AB39^2)+(AB40^2)+(AB41^2)+(AB42^2))","v":22},{"$f":"AC39+AC40+AC41+AC42","v":0},{"$f":"SQRT((AD39^2)+(AD40^2)+(AD41^2)+(AD42^2))","v":22},{"$f":"AE39+AE40+AE41+AE42","v":198},{"$f":"SQRT((AF39^2)+(AF40^2)+(AF41^2)+(AF42^2))","v":137.50999963639009},{"$f":"AG39+AG40+AG41+AG42","v":8},{"$f":"SQRT((AH39^2)+(AH40^2)+(AH41^2)+(AH42^2))","v":33.600595232822883},{"$f":"AI39+AI40+AI41+AI42","v":31},{"$f":"SQRT((AJ39^2)+(AJ40^2)+(AJ41^2)+(AJ42^2))","v":43.174066289845804},{"$f":"AK39+AK40+AK41+AK42","v":5},{"$f":"SQRT((AL39^2)+(AL40^2)+(AL41^2)+(AL42^2))","v":20.297783130184438},{"$f":"AM39+AM40+AM41+AM42","v":7},{"$f":"SQRT((AN39^2)+(AN40^2)+(AN41^2)+(AN42^2))","v":22},{"$f":"AO39+AO40+AO41+AO42","v":40},{"$f":"SQRT((AP39^2)+(AP40^2)+(AP41^2)+(AP42^2))","v":39.874804074753769},{"$f":"AQ39+AQ40+AQ41+AQ42","v":39},{"$f":"SQRT((AR39^2)+(AR40^2)+(AR41^2)+(AR42^2))","v":48.166378315169183},{"$f":"AS39+AS40+AS41+AS42","v":0},{"$f":"SQRT((AT39^2)+(AT40^2)+(AT41^2)+(AT42^2))","v":22},{"$f":"AU39+AU40+AU41+AU42","v":11},{"$f":"SQRT((AV39^2)+(AV40^2)+(AV41^2)+(AV42^2))","v":25.534290669607408},{"$f":"AW39+AW40+AW41+AW42","v":0},{"$f":"SQRT((AX39^2)+(AX40^2)+(AX41^2)+(AX42^2))","v":22},{"$f":"AY39+AY40+AY41+AY42","v":27},{"$f":"SQRT((AZ39^2)+(AZ40^2)+(AZ41^2)+(AZ42^2))","v":27.459060435491963},{"$f":"BA39+BA40+BA41+BA42","v":0},{"$f":"SQRT((BB39^2)+(BB40^2)+(BB41^2)+(BB42^2))","v":22},{"$f":"BC39+BC40+BC41+BC42","v":14},{"$f":"SQRT((BD39^2)+(BD40^2)+(BD41^2)+(BD42^2))","v":22.869193252058544}]
[null,"Less Than 35% of HH Income",{"$f":"C36+C37+C38+C39","v":18},{"$f":"SQRT((D36^2)+(D37^2)+(D38^2)+(D39^2))","v":27.622454633866266},{"$f":"E36+E37+E38+E39","v":29},{"$f":"SQRT((F36^2)+(F37^2)+(F38^2)+(F39^2))","v":41.83300132670378},{"$f":"G36+G37+G38+G39","v":12},{"$f":"SQRT((H36^2)+(H37^2)+(H38^2)+(H39^2))","v":27.622454633866266},{"$f":"I36+I37+I38+I39","v":21},{"$f":"SQRT((J36^2)+(J37^2)+(J38^2)+(J39^2))","v":36.660605559646719},{"$f":"K36+K37+K38+K39","v":22},{"$f":"SQRT((L36^2)+(L37^2)+(L38^2)+(L39^2))","v":22.869193252058544},{"$f":"M36+M37+M38+M39","v":0},{"$f":"SQRT((N36^2)+(N37^2)+(N38^2)+(N39^2))","v":22},{"$f":"O36+O37+O38+O39","v":41},{"$f":"SQRT((P36^2)+(P37^2)+(P38^2)+(P39^2))","v":43.577517139001849},{"$f":"Q36+Q37+Q38+Q39","v":765},{"$f":"SQRT((R36^2)+(R37^2)+(R38^2)+(R39^2))","v":166.59831931925365},{"$f":"S36+S37+S38+S39","v":4},{"$f":"SQRT((T36^2)+(T37^2)+(T38^2)+(T39^2))","v":19.697715603592208},{"$f":"U36+U37+U38+U39","v":12},{"$f":"SQRT((V36^2)+(V37^2)+(V38^2)+(V39^2))","v":15.132745950421556},{"$f":"W36+W37+W38+W39","v":40},{"$f":"SQRT((X36^2)+(X37^2)+(X38^2)+(X39^2))","v":38.858718455450898},{"$f":"Y36+Y37+Y38+Y39","v":166},{"$f":"SQRT((Z36^2)+(Z37^2)+(Z38^2)+(Z39^2))","v":101.34594219799824},{"$f":"AA36+AA37+AA38+AA39","v":67},{"$f":"SQRT((AB36^2)+(AB37^2)+(AB38^2)+(AB39^2))","v":55.515763527128037},{"$f":"AC36+AC37+AC38+AC39","v":0},{"$f":"SQRT((AD36^2)+(AD37^2)+(AD38^2)+(AD39^2))","v":22},{"$f":"AE36+AE37+AE38+AE39","v":109},{"$f":"SQRT((AF36^2)+(AF37^2)+(AF38^2)+(AF39^2))","v":53.674947601278568},{"$f":"AG36+AG37+AG38+AG39","v":8},{"$f":"SQRT((AH36^2)+(AH37^2)+(AH38^2)+(AH39^2))","v":33.600595232822883},{"$f":"AI36+AI37+AI38+AI39","v":16},{"$f":"SQRT((AJ36^2)+(AJ37^2)+(AJ38^2)+(AJ39^2))","v":38},{"$f":"AK36+AK37+AK38+AK39","v":0},{"$f":"SQRT((AL36^2)+(AL37^2)+(AL38^2)+(AL39^2))","v":22},{"$f":"AM36+AM37+AM38+AM39","v":38},{"$f":"SQRT((AN36^2)+(AN37^2)+(AN38^2)+(AN39^2))","v":46.292547996410825},{"$f":"AO36+AO37+AO38+AO39","v":142},{"$f":"SQRT((AP36^2)+(AP37^2)+(AP38^2)+(AP39^2))","v":84.793867702800299},{"$f":"AQ36+AQ37+AQ38+AQ39","v":60},{"$f":"SQRT((AR36^2)+(AR37^2)+(AR38^2)+(AR39^2))","v":55.641710972974224},{"$f":"AS36+AS37+AS38+AS39","v":29},{"$f":"SQRT((AT36^2)+(AT37^2)+(AT38^2)+(AT39^2))","v":31.096623610932426},{"$f":"AU36+AU37+AU38+AU39","v":0},{"$f":"SQRT((AV36^2)+(AV37^2)+(AV38^2)+(AV39^2))","v":22},{"$f":"AW36+AW37+AW38+AW39","v":0},{"$f":"SQRT((AX36^2)+(AX37^2)+(AX38^2)+(AX39^2))","v":22},{"$f":"AY36+AY37+AY38+AY39","v":16},{"$f":"SQRT((AZ36^2)+(AZ37^2)+(AZ38^2)+(AZ39^2))","v":17.916472867168917},{"$f":"BA36+BA37+BA38+BA39","v":0},{"$f":"SQRT((BB36^2)+(BB37^2)+(BB38^2)+(BB39^2))","v":22},{"$f":"BC36+BC37+BC38+BC39","v":18},{"$f":"SQRT((BD36^2)+(BD37^2)+(BD38^2)+(BD39^2))","v":22.869193252058544}]
[null,"35.0 percent or more",{"$f":"C40+C41+C42","v":42},{"$f":"SQRT((D40^2)+(D41^2)+(D42^2))","v":54.277066980447643},{"$f":"E40+E41+E42","v":0},{"$f":"SQRT((F40^2)+(F41^2)+(F42^2))","v":19.05255888325765},{"$f":"G40+G41+G42","v":0},{"$f":"SQRT((H40^2)+(H41^2)+(H42^2))","v":19.05255888325765},{"$f":"I40+I41+I42","v":10},{"$f":"SQRT((J40^2)+(J41^2)+(J42^2))","v":26.608269391300141},{"$f":"K40+K41+K42","v":7},{"$f":"SQRT((L40^2)+(L41^2)+(L42^2))","v":19.05255888325765},{"$f":"M40+M41+M42","v":0},{"$f":"SQRT((N40^2)+(N41^2)+(N42^2))","v":19.05255888325765},{"$f":"O40+O41+O42","v":8},{"$f":"SQRT((P40^2)+(P41^2)+(P42^2))","v":19.05255888325765},{"$f":"Q40+Q41+Q42","v":411},{"$f":"SQRT((R40^2)+(R41^2)+(R42^2))","v":135.67977004697494},{"$f":"S40+S41+S42","v":0},{"$f":"SQRT((T40^2)+(T41^2)+(T42^2))","v":19.05255888325765},{"$f":"U40+U41+U42","v":0},{"$f":"SQRT((V40^2)+(V41^2)+(V42^2))","v":19.05255888325765},{"$f":"W40+W41+W42","v":9},{"$f":"SQRT((X40^2)+(X41^2)+(X42^2))","v":20.928449536456348},{"$f":"Y40+Y41+Y42","v":11},{"$f":"SQRT((Z40^2)+(Z41^2)+(Z42^2))","v":28.913664589601922},{"$f":"AA40+AA41+AA42","v":0},{"$f":"SQRT((AB40^2)+(AB41^2)+(AB42^2))","v":19.05255888325765},{"$f":"AC40+AC41+AC42","v":0},{"$f":"SQRT((AD40^2)+(AD41^2)+(AD42^2))","v":19.05255888325765},{"$f":"AE40+AE41+AE42","v":128},{"$f":"SQRT((AF40^2)+(AF41^2)+(AF42^2))","v":131.56367279762298},{"$f":"AG40+AG41+AG42","v":0},{"$f":"SQRT((AH40^2)+(AH41^2)+(AH42^2))","v":27.712812921102035},{"$f":"AI40+AI41+AI42","v":15},{"$f":"SQRT((AJ40^2)+(AJ41^2)+(AJ42^2))","v":34.467375879228172},{"$f":"AK40+AK41+AK42","v":5},{"$f":"SQRT((AL40^2)+(AL41^2)+(AL42^2))","v":17.058722109231979},{"$f":"AM40+AM41+AM42","v":7},{"$f":"SQRT((AN40^2)+(AN41^2)+(AN42^2))","v":19.05255888325765},{"$f":"AO40+AO41+AO42","v":20},{"$f":"SQRT((AP40^2)+(AP41^2)+(AP42^2))","v":26.267851073127396},{"$f":"AQ40+AQ41+AQ42","v":20},{"$f":"SQRT((AR40^2)+(AR41^2)+(AR42^2))","v":39.191835884530846},{"$f":"AS40+AS41+AS42","v":0},{"$f":"SQRT((AT40^2)+(AT41^2)+(AT42^2))","v":19.05255888325765},{"$f":"AU40+AU41+AU42","v":11},{"$f":"SQRT((AV40^2)+(AV41^2)+(AV42^2))","v":23.043437243605826},{"$f":"AW40+AW41+AW42","v":0},{"$f":"SQRT((AX40^2)+(AX41^2)+(AX42^2))","v":19.05255888325765},{"$f":"AY40+AY41+AY42","v":20},{"$f":"SQRT((AZ40^2)+(AZ41^2)+(AZ42^2))","v":25.573423705088842},{"$f":"BA40+BA41+BA42","v":0},{"$f":"SQRT((BB40^2)+(BB41^2)+(BB42^2))","v":19.05255888325765},{"$f":"BC40+BC41+BC42","v":10},{"$f":"SQRT((BD40^2)+(BD41^2)+(BD42^2))","v":22.315913604421397}]
[null,"50.0 percent or more",{"$f":"C42","v":0},11,0,{"$f":"F42","v":11},{"$f":"G42","v":0},11,{"$f":"I42","v":0},16,{"$f":"K42","v":0},11,{"$f":"M42","v":0},11,{"$f":"O42","v":0},11,{"$f":"Q42","v":49},36,{"$f":"S42","v":0},11,{"$f":"U42","v":0},11,{"$f":"W42","v":0},11,{"$f":"Y42","v":11},18,{"$f":"AA42","v":0},11,{"$f":"AC42","v":0},11,{"$f":"AE42","v":101},128,{"$f":"AG42","v":0},16,{"$f":"AI42","v":15},26,{"$f":"AK42","v":0},11,{"$f":"AM42","v":0},11,{"$f":"AO42","v":0},11,{"$f":"AQ42","v":0},16,{"$f":"AS42","v":0},11,{"$f":"AU42","v":0},11,{"$f":"AW42","v":0},11,{"$f":"AY42","v":0},11,{"$f":"BA42","v":0},11,{"$f":"BC42","v":0},11]
[null,"Not Computed",10,15,0,11,{"$f":"G43","v":0},11,{"$f":"I43","v":0},16,{"$f":"K43","v":0},11,{"$f":"M43","v":0},11,{"$f":"O43","v":0},11,{"$f":"Q43","v":19},27,{"$f":"S43","v":0},11,{"$f":"U43","v":0},11,{"$f":"W43","v":0},11,{"$f":"Y43","v":8},12,{"$f":"AA43","v":0},11,{"$f":"AC43","v":3},5,{"$f":"AE43","v":0},18,{"$f":"AG43","v":0},16,{"$f":"AI43","v":0},16,{"$f":"AK43","v":0},11,{"$f":"AM43","v":17},28,{"$f":"AO43","v":0},11,{"$f":"AQ43","v":0},16,{"$f":"AS43","v":0},11,{"$f":"AU43","v":0},11,{"$f":"AW43","v":6},10,{"$f":"AY43","v":0},11,{"$f":"BA43","v":5},8,{"$f":"BC43","v":0},11]
[null,"$50,000 to $74,999:",{"$f":"C44","v":88},55,11,11,75,79,45,31,12,11,0,11,9,13,1483,254,11,16,7,10,94,62,277,124,40,39,5,8,228,106,123,86,38,35,11,11,73,57,78,43,141,79,94,54,18,18,17,19,36,29,3,4,62,36]
[null,"Less than 30.0 percent",{"$f":"C45+C46+C47","v":66},{"$f":"SQRT((D45^2)+(D46^2)+(D47^2))","v":40.472212689696121},{"$f":"E45+E46+E47","v":5},{"$f":"SQRT((F45^2)+(F46^2)+(F47^2))","v":17.058722109231979},{"$f":"G45+G46+G47","v":75},{"$f":"SQRT((H45^2)+(H46^2)+(H47^2))","v":80.517078933602647},{"$f":"I45+I46+I47","v":22},{"$f":"SQRT((J45^2)+(J46^2)+(J47^2))","v":27.712812921102035},{"$f":"K45+K46+K47","v":12},{"$f":"SQRT((L45^2)+(L46^2)+(L47^2))","v":14.798648586948742},{"$f":"M45+M46+M47","v":0},{"$f":"SQRT((N45^2)+(N46^2)+(N47^2))","v":19.05255888325765},{"$f":"O45+O46+O47","v":0},{"$f":"SQRT((P45^2)+(P46^2)+(P47^2))","v":19.05255888325765},{"$f":"Q45+Q46+Q47","v":1102},{"$f":"SQRT((R45^2)+(R46^2)+(R47^2))","v":209.84279830387317},{"$f":"S45+S46+S47","v":11},{"$f":"SQRT((T45^2)+(T46^2)+(T47^2))","v":22.315913604421397},{"$f":"U45+U46+U47","v":7},{"$f":"SQRT((V45^2)+(V46^2)+(V47^2))","v":18.493242008906929},{"$f":"W45+W46+W47","v":81},{"$f":"SQRT((X45^2)+(X46^2)+(X47^2))","v":61.98386886924694},{"$f":"Y45+Y46+Y47","v":217},{"$f":"SQRT((Z45^2)+(Z46^2)+(Z47^2))","v":125.05198918849712},{"$f":"AA45+AA46+AA47","v":40},{"$f":"SQRT((AB45^2)+(AB46^2)+(AB47^2))","v":40.865633483405098},{"$f":"AC45+AC46+AC47","v":5},{"$f":"SQRT((AD45^2)+(AD46^2)+(AD47^2))","v":17.4928556845359},{"$f":"AE45+AE46+AE47","v":152},{"$f":"SQRT((AF45^2)+(AF46^2)+(AF47^2))","v":89.643739324059879},{"$f":"AG45+AG46+AG47","v":80},{"$f":"SQRT((AH45^2)+(AH46^2)+(AH47^2))","v":78.670197660867743},{"$f":"AI45+AI46+AI47","v":28},{"$f":"SQRT((AJ45^2)+(AJ46^2)+(AJ47^2))","v":37.229020937972571},{"$f":"AK45+AK46+AK47","v":5},{"$f":"SQRT((AL45^2)+(AL46^2)+(AL47^2))","v":17.058722109231979},{"$f":"AM45+AM46+AM47","v":34},{"$f":"SQRT((AN45^2)+(AN46^2)+(AN47^2))","v":35.057096285916209},{"$f":"AO45+AO46+AO47","v":78},{"$f":"SQRT((AP45^2)+(AP46^2)+(AP47^2))","v":42.731721238442994},{"$f":"AQ45+AQ46+AQ47","v":128},{"$f":"SQRT((AR45^2)+(AR46^2)+(AR47^2))","v":97.211110476117909},{"$f":"AS45+AS46+AS47","v":79},{"$f":"SQRT((AT45^2)+(AT46^2)+(AT47^2))","v":54.63515351859094},{"$f":"AU45+AU46+AU47","v":14},{"$f":"SQRT((AV45^2)+(AV46^2)+(AV47^2))","v":23.043437243605826},{"$f":"AW45+AW46+AW47","v":9},{"$f":"SQRT((AX45^2)+(AX46^2)+(AX47^2))","v":20.928449536456348},{"$f":"AY45+AY46+AY47","v":36},{"$f":"SQRT((AZ45^2)+(AZ46^2)+(AZ47^2))","v":29.58039891549808},{"$f":"BA45+BA46+BA47","v":0},{"$f":"SQRT((BB45^2)+(BB46^2)+(BB47^2))","v":19.05255888325765},{"$f":"BC45+BC46+BC47","v":43},{"$f":"SQRT((BD45^2)+(BD46^2)+(BD47^2))","v":26.248809496813376}]
[null,"More than 30.0 percent",{"$f":"C48+C49+C50+C51","v":22},{"$f":"SQRT((D48^2)+(D49^2)+(D50^2)+(D51^2))","v":38.974350539810153},{"$f":"E48+E49+E50+E51","v":6},{"$f":"SQRT((F48^2)+(F49^2)+(F50^2)+(F51^2))","v":21.071307505705477},{"$f":"G48+G49+G50+G51","v":0},{"$f":"SQRT((H48^2)+(H49^2)+(H50^2)+(H51^2))","v":22},{"$f":"I48+I49+I50+I51","v":12},{"$f":"SQRT((J48^2)+(J49^2)+(J50^2)+(J51^2))","v":27.294688127912362},{"$f":"K48+K49+K50+K51","v":0},{"$f":"SQRT((L48^2)+(L49^2)+(L50^2)+(L51^2))","v":22},{"$f":"M48+M49+M50+M51","v":0},{"$f":"SQRT((N48^2)+(N49^2)+(N50^2)+(N51^2))","v":22},{"$f":"O48+O49+O50+O51","v":9},{"$f":"SQRT((P48^2)+(P49^2)+(P50^2)+(P51^2))","v":23.065125189341593},{"$f":"Q48+Q49+Q50+Q51","v":334},{"$f":"SQRT((R48^2)+(R49^2)+(R50^2)+(R51^2))","v":132.44244032786469},{"$f":"S48+S49+S50+S51","v":0},{"$f":"SQRT((T48^2)+(T49^2)+(T50^2)+(T51^2))","v":22},{"$f":"U48+U49+U50+U51","v":0},{"$f":"SQRT((V48^2)+(V49^2)+(V50^2)+(V51^2))","v":22},{"$f":"W48+W49+W50+W51","v":13},{"$f":"SQRT((X48^2)+(X49^2)+(X50^2)+(X51^2))","v":27.622454633866266},{"$f":"Y48+Y49+Y50+Y51","v":18},{"$f":"SQRT((Z48^2)+(Z49^2)+(Z50^2)+(Z51^2))","v":37.322915213043046},{"$f":"AA48+AA49+AA50+AA51","v":0},{"$f":"SQRT((AB48^2)+(AB49^2)+(AB50^2)+(AB51^2))","v":22},{"$f":"AC48+AC49+AC50+AC51","v":0},{"$f":"SQRT((AD48^2)+(AD49^2)+(AD50^2)+(AD51^2))","v":22},{"$f":"AE48+AE49+AE50+AE51","v":55},{"$f":"SQRT((AF48^2)+(AF49^2)+(AF50^2)+(AF51^2))","v":51.942275652882209},{"$f":"AG48+AG49+AG50+AG51","v":43},{"$f":"SQRT((AH48^2)+(AH49^2)+(AH50^2)+(AH51^2))","v":50.675437837279709},{"$f":"AI48+AI49+AI50+AI51","v":0},{"$f":"SQRT((AJ48^2)+(AJ49^2)+(AJ50^2)+(AJ51^2))","v":32},{"$f":"AK48+AK49+AK50+AK51","v":6},{"$f":"SQRT((AL48^2)+(AL49^2)+(AL50^2)+(AL51^2))","v":20.663978319771825},{"$f":"AM48+AM49+AM50+AM51","v":22},{"$f":"SQRT((AN48^2)+(AN49^2)+(AN50^2)+(AN51^2))","v":30.643106892089126},{"$f":"AO48+AO49+AO50+AO51","v":0},{"$f":"SQRT((AP48^2)+(AP49^2)+(AP50^2)+(AP51^2))","v":22},{"$f":"AQ48+AQ49+AQ50+AQ51","v":13},{"$f":"SQRT((AR48^2)+(AR49^2)+(AR50^2)+(AR51^2))","v":34.176014981270121},{"$f":"AS48+AS49+AS50+AS51","v":15},{"$f":"SQRT((AT48^2)+(AT49^2)+(AT50^2)+(AT51^2))","v":31.432467291003423},{"$f":"AU48+AU49+AU50+AU51","v":4},{"$f":"SQRT((AV48^2)+(AV49^2)+(AV50^2)+(AV51^2))","v":19.974984355438178},{"$f":"AW48+AW49+AW50+AW51","v":0},{"$f":"SQRT((AX48^2)+(AX49^2)+(AX50^2)+(AX51^2))","v":22},{"$f":"AY48+AY49+AY50+AY51","v":0},{"$f":"SQRT((AZ48^2)+(AZ49^2)+(AZ50^2)+(AZ51^2))","v":22},{"$f":"BA48+BA49+BA50+BA51","v":0},{"$f":"SQRT((BB48^2)+(BB49^2)+(BB50^2)+(BB51^2))","v":22},{"$f":"BC48+BC49+BC50+BC51","v":12},{"$f":"SQRT((BD48^2)+(BD49^2)+(BD50^2)+(BD51^2))","v":25.534290669607408}]
[null,"Less Than 35% of HH Income",{"$f":"C48+C47+C46+C45","v":66},{"$f":"SQRT((D48^2)+(D47^2)+(D46^2)+(D45^2))","v":41.940433951021539},{"$f":"E48+E47+E46+E45","v":11},{"$f":"SQRT((F48^2)+(F47^2)+(F46^2)+(F45^2))","v":19.28730152198591},{"$f":"G48+G47+G46+G45","v":75},{"$f":"SQRT((H48^2)+(H47^2)+(H46^2)+(H45^2))","v":81.264998615640181},{"$f":"I48+I47+I46+I45","v":26},{"$f":"SQRT((J48^2)+(J47^2)+(J46^2)+(J45^2))","v":28.844410203711913},{"$f":"K48+K47+K46+K45","v":12},{"$f":"SQRT((L48^2)+(L47^2)+(L46^2)+(L45^2))","v":18.439088914585774},{"$f":"M48+M47+M46+M45","v":0},{"$f":"SQRT((N48^2)+(N47^2)+(N46^2)+(N45^2))","v":22},{"$f":"O48+O47+O46+O45","v":0},{"$f":"SQRT((P48^2)+(P47^2)+(P46^2)+(P45^2))","v":22},{"$f":"Q48+Q47+Q46+Q45","v":1287},{"$f":"SQRT((R48^2)+(R47^2)+(R46^2)+(R45^2))","v":226.40450525552711},{"$f":"S48+S47+S46+S45","v":11},{"$f":"SQRT((T48^2)+(T47^2)+(T46^2)+(T45^2))","v":24.879710609249457},{"$f":"U48+U47+U46+U45","v":7},{"$f":"SQRT((V48^2)+(V47^2)+(V46^2)+(V45^2))","v":21.517434791350013},{"$f":"W48+W47+W46+W45","v":94},{"$f":"SQRT((X48^2)+(X47^2)+(X46^2)+(X45^2))","v":65.130637951735125},{"$f":"Y48+Y47+Y46+Y45","v":235},{"$f":"SQRT((Z48^2)+(Z47^2)+(Z46^2)+(Z45^2))","v":127.5264678409937},{"$f":"AA48+AA47+AA46+AA45","v":40},{"$f":"SQRT((AB48^2)+(AB47^2)+(AB46^2)+(AB45^2))","v":42.320207938997655},{"$f":"AC48+AC47+AC46+AC45","v":5},{"$f":"SQRT((AD48^2)+(AD47^2)+(AD46^2)+(AD45^2))","v":20.663978319771825},{"$f":"AE48+AE47+AE46+AE45","v":205},{"$f":"SQRT((AF48^2)+(AF47^2)+(AF46^2)+(AF45^2))","v":100.30453628824571},{"$f":"AG48+AG47+AG46+AG45","v":80},{"$f":"SQRT((AH48^2)+(AH47^2)+(AH46^2)+(AH45^2))","v":80.280757345705197},{"$f":"AI48+AI47+AI46+AI45","v":28},{"$f":"SQRT((AJ48^2)+(AJ47^2)+(AJ46^2)+(AJ45^2))","v":40.521599178709621},{"$f":"AK48+AK47+AK46+AK45","v":5},{"$f":"SQRT((AL48^2)+(AL47^2)+(AL46^2)+(AL45^2))","v":20.297783130184438},{"$f":"AM48+AM47+AM46+AM45","v":41},{"$f":"SQRT((AN48^2)+(AN47^2)+(AN46^2)+(AN45^2))","v":36.742346141747674},{"$f":"AO48+AO47+AO46+AO45","v":78},{"$f":"SQRT((AP48^2)+(AP47^2)+(AP46^2)+(AP45^2))","v":44.124822945820419},{"$f":"AQ48+AQ47+AQ46+AQ45","v":128},{"$f":"SQRT((AR48^2)+(AR47^2)+(AR46^2)+(AR45^2))","v":98.519033694002502},{"$f":"AS48+AS47+AS46+AS45","v":94},{"$f":"SQRT((AT48^2)+(AT47^2)+(AT46^2)+(AT45^2))","v":60.083275543199207},{"$f":"AU48+AU47+AU46+AU45","v":14},{"$f":"SQRT((AV48^2)+(AV47^2)+(AV46^2)+(AV45^2))","v":25.534290669607408},{"$f":"AW48+AW47+AW46+AW45","v":9},{"$f":"SQRT((AX48^2)+(AX47^2)+(AX46^2)+(AX45^2))","v":23.643180835073778},{"$f":"AY48+AY47+AY46+AY45","v":36},{"$f":"SQRT((AZ48^2)+(AZ47^2)+(AZ46^2)+(AZ45^2))","v":31.559467676118999},{"$f":"BA48+BA47+BA46+BA45","v":0},{"$f":"SQRT((BB48^2)+(BB47^2)+(BB46^2)+(BB45^2))","v":22},{"$f":"BC48+BC47+BC46+BC45","v":55},{"$f":"SQRT((BD48^2)+(BD47^2)+(BD46^2)+(BD45^2))","v":31.272991542223778}]
[null,"35.0 percent or more",{"$f":"C49+C50+C51","v":22},{"$f":"SQRT((D49^2)+(D50^2)+(D51^2))","v":37.389838191679836},{"$f":"E49+E50+E51","v":0},{"$f":"SQRT((F49^2)+(F50^2)+(F51^2))","v":19.05255888325765},{"$f":"G49+G50+G51","v":0},{"$f":"SQRT((H49^2)+(H50^2)+(H51^2))","v":19.05255888325765},{"$f":"I49+I50+I51","v":8},{"$f":"SQRT((J49^2)+(J50^2)+(J51^2))","v":26.095976701399778},{"$f":"K49+K50+K51","v":0},{"$f":"SQRT((L49^2)+(L50^2)+(L51^2))","v":19.05255888325765},{"$f":"M49+M50+M51","v":0},{"$f":"SQRT((N49^2)+(N50^2)+(N51^2))","v":19.05255888325765},{"$f":"O49+O50+O51","v":9},{"$f":"SQRT((P49^2)+(P50^2)+(P51^2))","v":20.273134932713294},{"$f":"Q49+Q50+Q51","v":149},{"$f":"SQRT((R49^2)+(R50^2)+(R51^2))","v":101.56771140475698},{"$f":"S49+S50+S51","v":0},{"$f":"SQRT((T49^2)+(T50^2)+(T51^2))","v":19.05255888325765},{"$f":"U49+U50+U51","v":0},{"$f":"SQRT((V49^2)+(V50^2)+(V51^2))","v":19.05255888325765},{"$f":"W49+W50+W51","v":0},{"$f":"SQRT((X49^2)+(X50^2)+(X51^2))","v":19.05255888325765},{"$f":"Y49+Y50+Y51","v":0},{"$f":"SQRT((Z49^2)+(Z50^2)+(Z51^2))","v":27.712812921102035},{"$f":"AA49+AA50+AA51","v":0},{"$f":"SQRT((AB49^2)+(AB50^2)+(AB51^2))","v":19.05255888325765},{"$f":"AC49+AC50+AC51","v":0},{"$f":"SQRT((AD49^2)+(AD50^2)+(AD51^2))","v":19.05255888325765},{"$f":"AE49+AE50+AE51","v":2},{"$f":"SQRT((AF49^2)+(AF50^2)+(AF51^2))","v":25.942243542145693},{"$f":"AG49+AG50+AG51","v":43},{"$f":"SQRT((AH49^2)+(AH50^2)+(AH51^2))","v":48.083261120685229},{"$f":"AI49+AI50+AI51","v":0},{"$f":"SQRT((AJ49^2)+(AJ50^2)+(AJ51^2))","v":27.712812921102035},{"$f":"AK49+AK50+AK51","v":6},{"$f":"SQRT((AL49^2)+(AL50^2)+(AL51^2))","v":17.4928556845359},{"$f":"AM49+AM50+AM51","v":15},{"$f":"SQRT((AN49^2)+(AN50^2)+(AN51^2))","v":28.600699292150182},{"$f":"AO49+AO50+AO51","v":0},{"$f":"SQRT((AP49^2)+(AP50^2)+(AP51^2))","v":19.05255888325765},{"$f":"AQ49+AQ50+AQ51","v":13},{"$f":"SQRT((AR49^2)+(AR50^2)+(AR51^2))","v":30.199337741082999},{"$f":"AS49+AS50+AS51","v":0},{"$f":"SQRT((AT49^2)+(AT50^2)+(AT51^2))","v":19.05255888325765},{"$f":"AU49+AU50+AU51","v":4},{"$f":"SQRT((AV49^2)+(AV50^2)+(AV51^2))","v":16.673332000533065},{"$f":"AW49+AW50+AW51","v":0},{"$f":"SQRT((AX49^2)+(AX50^2)+(AX51^2))","v":19.05255888325765},{"$f":"AY49+AY50+AY51","v":0},{"$f":"SQRT((AZ49^2)+(AZ50^2)+(AZ51^2))","v":19.05255888325765},{"$f":"BA49+BA50+BA51","v":0},{"$f":"SQRT((BB49^2)+(BB50^2)+(BB51^2))","v":19.05255888325765},{"$f":"BC49+BC50+BC51","v":0},{"$f":"SQRT((BD49^2)+(BD50^2)+(BD51^2))","v":19.05255888325765}]
[null,"50.0 percent or more",{"$f":"C51","v":0},11,0,{"$f":"F51","v":11},{"$f":"G51","v":0},11,{"$f":"I51","v":8},13,{"$f":"K51","v":0},11,{"$f":"M51","v":0},11,{"$f":"O51","v":0},11,{"$f":"Q51","v":102},94,{"$f":"S51","v":0},11,{"$f":"U51","v":0},11,{"$f":"W51","v":0},11,{"$f":"Y51","v":0},16,{"$f":"AA51","v":0},11,{"$f":"AC51","v":0},11,{"$f":"AE51","v":0},18,{"$f":"AG51","v":0},16,{"$f":"AI51","v":0},16,{"$f":"AK51","v":0},11,{"$f":"AM51","v":0},11,{"$f":"AO51","v":0},11,{"$f":"AQ51","v":0},16,{"$f":"AS51","v":0},11,{"$f":"AU51","v":0},11,{"$f":"AW51","v":0},11,{"$f":"AY51","v":0},11,{"$f":"BA51","v":0},11,{"$f":"BC51","v":0},11]
[null,"Not Computed",0,11,0,11,{"$f":"G52","v":0},11,{"$f":"I52","v":11},17,{"$f":"K52","v":0},11,{"$f":"M52","v":0},11,{"$f":"O52","v":0},11,{"$f":"Q52","v":47},60,{"$f":"S52","v":0},11,{"$f":"U52","v":0},11,{"$f":"W52","v":0},11,{"$f":"Y52","v":42},56,{"$f":"AA52","v":0},11,{"$f":"AC52","v":0},11,{"$f":"AE52","v":21},27,{"$f":"AG52","v":0},16,{"$f":"AI52","v":10},17,{"$f":"AK52","v":0},11,{"$f":"AM52","v":17},27,{"$f":"AO52","v":0},11,{"$f":"AQ52","v":0},16,{"$f":"AS52","v":0},11,{"$f":"AU52","v":0},11,{"$f":"AW52","v":8},13,{"$f":"AY52","v":0},11,{"$f":"BA52","v":3},4,{"$f":"BC52","v":7},9]
[null,"$75,000 to $99,999:",17,19,12,13,{"$f":"G53","v":49},38,{"$f":"I53","v":10},17,{"$f":"K53","v":0},11,{"$f":"M53","v":0},11,{"$f":"O53","v":0},11,{"$f":"Q53","v":1250},236,{"$f":"S53","v":0},11,{"$f":"U53","v":16},15,{"$f":"W53","v":15},21,{"$f":"Y53","v":131},76,{"$f":"AA53","v":16},20,{"$f":"AC53","v":0},11,{"$f":"AE53","v":284},134,{"$f":"AG53","v":56},62,{"$f":"AI53","v":0},16,{"$f":"AK53","v":6},9,{"$f":"AM53","v":36},29,{"$f":"AO53","v":13},19,{"$f":"AQ53","v":133},70,{"$f":"AS53","v":62},64,{"$f":"AU53","v":0},11,{"$f":"AW53","v":5},8,{"$f":"AY53","v":32},26,{"$f":"BA53","v":17},17,{"$f":"BC53","v":3},5]
[null,"Less than 30.0 percent",{"$f":"C54+C55+C56","v":0},{"$f":"SQRT((D54^2)+(D55^2)+(D56^2))","v":19.05255888325765},{"$f":"E54+E55+E56","v":12},{"$f":"SQRT((F54^2)+(F55^2)+(F56^2))","v":20.273134932713294},{"$f":"G54+G55+G56","v":49},{"$f":"SQRT((H54^2)+(H55^2)+(H56^2))","v":38.418745424597091},{"$f":"I54+I55+I56","v":10},{"$f":"SQRT((J54^2)+(J55^2)+(J56^2))","v":28.301943396169811},{"$f":"K54+K55+K56","v":0},{"$f":"SQRT((L54^2)+(L55^2)+(L56^2))","v":19.05255888325765},{"$f":"M54+M55+M56","v":0},{"$f":"SQRT((N54^2)+(N55^2)+(N56^2))","v":19.05255888325765},{"$f":"O54+O55+O56","v":0},{"$f":"SQRT((P54^2)+(P55^2)+(P56^2))","v":19.05255888325765},{"$f":"Q54+Q55+Q56","v":1225},{"$f":"SQRT((R54^2)+(R55^2)+(R56^2))","v":235.54192832699658},{"$f":"S54+S55+S56","v":0},{"$f":"SQRT((T54^2)+(T55^2)+(T56^2))","v":19.05255888325765},{"$f":"U54+U55+U56","v":16},{"$f":"SQRT((V54^2)+(V55^2)+(V56^2))","v":19.261360284258224},{"$f":"W54+W55+W56","v":15},{"$f":"SQRT((X54^2)+(X55^2)+(X56^2))","v":23.937418407171648},{"$f":"Y54+Y55+Y56","v":121},{"$f":"SQRT((Z54^2)+(Z55^2)+(Z56^2))","v":77.440299586197369},{"$f":"AA54+AA55+AA56","v":16},{"$f":"SQRT((AB54^2)+(AB55^2)+(AB56^2))","v":25.337718918639855},{"$f":"AC54+AC55+AC56","v":0},{"$f":"SQRT((AD54^2)+(AD55^2)+(AD56^2))","v":19.05255888325765},{"$f":"AE54+AE55+AE56","v":256},{"$f":"SQRT((AF54^2)+(AF55^2)+(AF56^2))","v":128.65846260545786},{"$f":"AG54+AG55+AG56","v":43},{"$f":"SQRT((AH54^2)+(AH55^2)+(AH56^2))","v":63.190189111918315},{"$f":"AI54+AI55+AI56","v":0},{"$f":"SQRT((AJ54^2)+(AJ55^2)+(AJ56^2))","v":27.712812921102035},{"$f":"AK54+AK55+AK56","v":6},{"$f":"SQRT((AL54^2)+(AL55^2)+(AL56^2))","v":17.972200755611428},{"$f":"AM54+AM55+AM56","v":36},{"$f":"SQRT((AN54^2)+(AN55^2)+(AN56^2))","v":30.248966924508348},{"$f":"AO54+AO55+AO56","v":13},{"$f":"SQRT((AP54^2)+(AP55^2)+(AP56^2))","v":22.22611077089287},{"$f":"AQ54+AQ55+AQ56","v":133},{"$f":"SQRT((AR54^2)+(AR55^2)+(AR56^2))","v":76.967525619575426},{"$f":"AS54+AS55+AS56","v":62},{"$f":"SQRT((AT54^2)+(AT55^2)+(AT56^2))","v":65.863495200300449},{"$f":"AU54+AU55+AU56","v":0},{"$f":"SQRT((AV54^2)+(AV55^2)+(AV56^2))","v":19.05255888325765},{"$f":"AW54+AW55+AW56","v":5},{"$f":"SQRT((AX54^2)+(AX55^2)+(AX56^2))","v":17.4928556845359},{"$f":"AY54+AY55+AY56","v":26},{"$f":"SQRT((AZ54^2)+(AZ55^2)+(AZ56^2))","v":26.720778431774775},{"$f":"BA54+BA55+BA56","v":14},{"$f":"SQRT((BB54^2)+(BB55^2)+(BB56^2))","v":19.131126469708992},{"$f":"BC54+BC55+BC56","v":3},{"$f":"SQRT((BD54^2)+(BD55^2)+(BD56^2))","v":16.340134638368191}]
[null,"More than 30.0 percent",{"$f":"C57+C58+C59+C60","v":7},{"$f":"SQRT((D57^2)+(D58^2)+(D59^2)+(D60^2))","v":21.517434791350013},{"$f":"E57+E58+E59+E60","v":0},{"$f":"SQRT((F57^2)+(F58^2)+(F59^2)+(F60^2))","v":22},{"$f":"G57+G58+G59+G60","v":0},{"$f":"SQRT((H57^2)+(H58^2)+(H59^2)+(H60^2))","v":22},{"$f":"I57+I58+I59+I60","v":0},{"$f":"SQRT((J57^2)+(J58^2)+(J59^2)+(J60^2))","v":32},{"$f":"K57+K58+K59+K60","v":0},{"$f":"SQRT((L57^2)+(L58^2)+(L59^2)+(L60^2))","v":22},{"$f":"M57+M58+M59+M60","v":0},{"$f":"SQRT((N57^2)+(N58^2)+(N59^2)+(N60^2))","v":22},{"$f":"O57+O58+O59+O60","v":0},{"$f":"SQRT((P57^2)+(P58^2)+(P59^2)+(P60^2))","v":22},{"$f":"Q57+Q58+Q59+Q60","v":0},{"$f":"SQRT((R57^2)+(R58^2)+(R59^2)+(R60^2))","v":48},{"$f":"S57+S58+S59+S60","v":0},{"$f":"SQRT((T57^2)+(T58^2)+(T59^2)+(T60^2))","v":22},{"$f":"U57+U58+U59+U60","v":0},{"$f":"SQRT((V57^2)+(V58^2)+(V59^2)+(V60^2))","v":22},{"$f":"W57+W58+W59+W60","v":0},{"$f":"SQRT((X57^2)+(X58^2)+(X59^2)+(X60^2))","v":22},{"$f":"Y57+Y58+Y59+Y60","v":10},{"$f":"SQRT((Z57^2)+(Z58^2)+(Z59^2)+(Z60^2))","v":32},{"$f":"AA57+AA58+AA59+AA60","v":0},{"$f":"SQRT((AB57^2)+(AB58^2)+(AB59^2)+(AB60^2))","v":22},{"$f":"AC57+AC58+AC59+AC60","v":0},{"$f":"SQRT((AD57^2)+(AD58^2)+(AD59^2)+(AD60^2))","v":22},{"$f":"AE57+AE58+AE59+AE60","v":20},{"$f":"SQRT((AF57^2)+(AF58^2)+(AF59^2)+(AF60^2))","v":38.157568056677825},{"$f":"AG57+AG58+AG59+AG60","v":0},{"$f":"SQRT((AH57^2)+(AH58^2)+(AH59^2)+(AH60^2))","v":32},{"$f":"AI57+AI58+AI59+AI60","v":0},{"$f":"SQRT((AJ57^2)+(AJ58^2)+(AJ59^2)+(AJ60^2))","v":32},{"$f":"AK57+AK58+AK59+AK60","v":0},{"$f":"SQRT((AL57^2)+(AL58^2)+(AL59^2)+(AL60^2))","v":22},{"$f":"AM57+AM58+AM59+AM60","v":0},{"$f":"SQRT((AN57^2)+(AN58^2)+(AN59^2)+(AN60^2))","v":22},{"$f":"AO57+AO58+AO59+AO60","v":0},{"$f":"SQRT((AP57^2)+(AP58^2)+(AP59^2)+(AP60^2))","v":22},{"$f":"AQ57+AQ58+AQ59+AQ60","v":0},{"$f":"SQRT((AR57^2)+(AR58^2)+(AR59^2)+(AR60^2))","v":32},{"$f":"AS57+AS58+AS59+AS60","v":0},{"$f":"SQRT((AT57^2)+(AT58^2)+(AT59^2)+(AT60^2))","v":22},{"$f":"AU57+AU58+AU59+AU60","v":0},{"$f":"SQRT((AV57^2)+(AV58^2)+(AV59^2)+(AV60^2))","v":22},{"$f":"AW57+AW58+AW59+AW60","v":0},{"$f":"SQRT((AX57^2)+(AX58^2)+(AX59^2)+(AX60^2))","v":22},{"$f":"AY57+AY58+AY59+AY60","v":0},{"$f":"SQRT((AZ57^2)+(AZ58^2)+(AZ59^2)+(AZ60^2))","v":22},{"$f":"BA57+BA58+BA59+BA60","v":0},{"$f":"SQRT((BB57^2)+(BB58^2)+(BB59^2)+(BB60^2))","v":22},{"$f":"BC57+BC58+BC59+BC60","v":0},{"$f":"SQRT((BD57^2)+(BD58^2)+(BD59^2)+(BD60^2))","v":22}]
[null,"Less Than 35% of HH Income",{"$f":"C54+C55+C56+C57","v":7},{"$f":"SQRT((D54^2)+(D55^2)+(D56^2)+(D57^2))","v":21.517434791350013},{"$f":"E54+E55+E56+E57","v":12},{"$f":"SQRT((F54^2)+(F55^2)+(F56^2)+(F57^2))","v":23.065125189341593},{"$f":"G54+G55+G56+G57","v":49},{"$f":"SQRT((H54^2)+(H55^2)+(H56^2)+(H57^2))","v":39.962482405376171},{"$f":"I54+I55+I56+I57","v":10},{"$f":"SQRT((J54^2)+(J55^2)+(J56^2)+(J57^2))","v":32.511536414017719},{"$f":"K54+K55+K56+K57","v":0},{"$f":"SQRT((L54^2)+(L55^2)+(L56^2)+(L57^2))","v":22},{"$f":"M54+M55+M56+M57","v":0},{"$f":"SQRT((N54^2)+(N55^2)+(N56^2)+(N57^2))","v":22},{"$f":"O54+O55+O56+O57","v":0},{"$f":"SQRT((P54^2)+(P55^2)+(P56^2)+(P57^2))","v":22},{"$f":"Q54+Q55+Q56+Q57","v":1225},{"$f":"SQRT((R54^2)+(R55^2)+(R56^2)+(R57^2))","v":236.76148335402868},{"$f":"S54+S55+S56+S57","v":0},{"$f":"SQRT((T54^2)+(T55^2)+(T56^2)+(T57^2))","v":22},{"$f":"U54+U55+U56+U57","v":16},{"$f":"SQRT((V54^2)+(V55^2)+(V56^2)+(V57^2))","v":22.181073012818835},{"$f":"W54+W55+W56+W57","v":15},{"$f":"SQRT((X54^2)+(X55^2)+(X56^2)+(X57^2))","v":26.343879744638983},{"$f":"Y54+Y55+Y56+Y57","v":131},{"$f":"SQRT((Z54^2)+(Z55^2)+(Z56^2)+(Z57^2))","v":79.075912893876861},{"$f":"AA54+AA55+AA56+AA57","v":16},{"$f":"SQRT((AB54^2)+(AB55^2)+(AB56^2)+(AB57^2))","v":27.622454633866266},{"$f":"AC54+AC55+AC56+AC57","v":0},{"$f":"SQRT((AD54^2)+(AD55^2)+(AD56^2)+(AD57^2))","v":22},{"$f":"AE54+AE55+AE56+AE57","v":276},{"$f":"SQRT((AF54^2)+(AF55^2)+(AF56^2)+(AF57^2))","v":130.52585950684255},{"$f":"AG54+AG55+AG56+AG57","v":43},{"$f":"SQRT((AH54^2)+(AH55^2)+(AH56^2)+(AH57^2))","v":65.184353950929051},{"$f":"AI54+AI55+AI56+AI57","v":0},{"$f":"SQRT((AJ54^2)+(AJ55^2)+(AJ56^2)+(AJ57^2))","v":32},{"$f":"AK54+AK55+AK56+AK57","v":6},{"$f":"SQRT((AL54^2)+(AL55^2)+(AL56^2)+(AL57^2))","v":21.071307505705477},{"$f":"AM54+AM55+AM56+AM57","v":36},{"$f":"SQRT((AN54^2)+(AN55^2)+(AN56^2)+(AN57^2))","v":32.186953878862163},{"$f":"AO54+AO55+AO56+AO57","v":13},{"$f":"SQRT((AP54^2)+(AP55^2)+(AP56^2)+(AP57^2))","v":24.79919353527449},{"$f":"AQ54+AQ55+AQ56+AQ57","v":133},{"$f":"SQRT((AR54^2)+(AR55^2)+(AR56^2)+(AR57^2))","v":78.612976028134185},{"$f":"AS54+AS55+AS56+AS57","v":62},{"$f":"SQRT((AT54^2)+(AT55^2)+(AT56^2)+(AT57^2))","v":66.775744099186198},{"$f":"AU54+AU55+AU56+AU57","v":0},{"$f":"SQRT((AV54^2)+(AV55^2)+(AV56^2)+(AV57^2))","v":22},{"$f":"AW54+AW55+AW56+AW57","v":5},{"$f":"SQRT((AX54^2)+(AX55^2)+(AX56^2)+(AX57^2))","v":20.663978319771825},{"$f":"AY54+AY55+AY56+AY57","v":26},{"$f":"SQRT((AZ54^2)+(AZ55^2)+(AZ56^2)+(AZ57^2))","v":28.89636655359978},{"$f":"BA54+BA55+BA56+BA57","v":14},{"$f":"SQRT((BB54^2)+(BB55^2)+(BB56^2)+(BB57^2))","v":22.06807649071391},{"$f":"BC54+BC55+BC56+BC57","v":3},{"$f":"SQRT((BD54^2)+(BD55^2)+(BD56^2)+(BD57^2))","v":19.697715603592208}]
[null,"35.0 percent or more",{"$f":"C58+C59+C60","v":0},{"$f":"SQRT((D58^2)+(D59^2)+(D60^2))","v":19.05255888325765},{"$f":"E58+E59+E60","v":0},{"$f":"SQRT((F58^2)+(F59^2)+(F60^2))","v":19.05255888325765},{"$f":"G58+G59+G60","v":0},{"$f":"SQRT((H58^2)+(H59^2)+(H60^2))","v":19.05255888325765},{"$f":"I58+I59+I60","v":0},{"$f":"SQRT((J58^2)+(J59^2)+(J60^2))","v":27.712812921102035},{"$f":"K58+K59+K60","v":0},{"$f":"SQRT((L58^2)+(L59^2)+(L60^2))","v":19.05255888325765},{"$f":"M58+M59+M60","v":0},{"$f":"SQRT((N58^2)+(N59^2)+(N60^2))","v":19.05255888325765},{"$f":"O58+O59+O60","v":0},{"$f":"SQRT((P58^2)+(P59^2)+(P60^2))","v":19.05255888325765},{"$f":"Q58+Q59+Q60","v":0},{"$f":"SQRT((R58^2)+(R59^2)+(R60^2))","v":41.569219381653056},{"$f":"S58+S59+S60","v":0},{"$f":"SQRT((T58^2)+(T59^2)+(T60^2))","v":19.05255888325765},{"$f":"U58+U59+U60","v":0},{"$f":"SQRT((V58^2)+(V59^2)+(V60^2))","v":19.05255888325765},{"$f":"W58+W59+W60","v":0},{"$f":"SQRT((X58^2)+(X59^2)+(X60^2))","v":19.05255888325765},{"$f":"Y58+Y59+Y60","v":0},{"$f":"SQRT((Z58^2)+(Z59^2)+(Z60^2))","v":27.712812921102035},{"$f":"AA58+AA59+AA60","v":0},{"$f":"SQRT((AB58^2)+(AB59^2)+(AB60^2))","v":19.05255888325765},{"$f":"AC58+AC59+AC60","v":0},{"$f":"SQRT((AD58^2)+(AD59^2)+(AD60^2))","v":19.05255888325765},{"$f":"AE58+AE59+AE60","v":0},{"$f":"SQRT((AF58^2)+(AF59^2)+(AF60^2))","v":31.176914536239792},{"$f":"AG58+AG59+AG60","v":0},{"$f":"SQRT((AH58^2)+(AH59^2)+(AH60^2))","v":27.712812921102035},{"$f":"AI58+AI59+AI60","v":0},{"$f":"SQRT((AJ58^2)+(AJ59^2)+(AJ60^2))","v":27.712812921102035},{"$f":"AK58+AK59+AK60","v":0},{"$f":"SQRT((AL58^2)+(AL59^2)+(AL60^2))","v":19.05255888325765},{"$f":"AM58+AM59+AM60","v":0},{"$f":"SQRT((AN58^2)+(AN59^2)+(AN60^2))","v":19.05255888325765},{"$f":"AO58+AO59+AO60","v":0},{"$f":"SQRT((AP58^2)+(AP59^2)+(AP60^2))","v":19.05255888325765},{"$f":"AQ58+AQ59+AQ60","v":0},{"$f":"SQRT((AR58^2)+(AR59^2)+(AR60^2))","v":27.712812921102035},{"$f":"AS58+AS59+AS60","v":0},{"$f":"SQRT((AT58^2)+(AT59^2)+(AT60^2))","v":19.05255888325765},{"$f":"AU58+AU59+AU60","v":0},{"$f":"SQRT((AV58^2)+(AV59^2)+(AV60^2))","v":19.05255888325765},{"$f":"AW58+AW59+AW60","v":0},{"$f":"SQRT((AX58^2)+(AX59^2)+(AX60^2))","v":19.05255888325765},{"$f":"AY58+AY59+AY60","v":0},{"$f":"SQRT((AZ58^2)+(AZ59^2)+(AZ60^2))","v":19.05255888325765},{"$f":"BA58+BA59+BA60","v":0},{"$f":"SQRT((BB58^2)+(BB59^2)+(BB60^2))","v":19.05255888325765},{"$f":"BC58+BC59+BC60","v":0},{"$f":"SQRT((BD58^2)+(BD59^2)+(BD60^2))","v":19.05255888325765}]
[null,"50.0 percent or more",{"$f":"C60","v":0},11,0,11,0,11,0,16,0,11,0,11,0,11,0,24,{"$f":"S60","v":0},11,0,11,0,11,0,16,0,11,0,11,0,18,0,16,0,16,0,11,0,11,0,11,0,16,0,11,0,11,0,11,0,11,0,11,0,11]
[null,"Not Computed",10,15,0,11,0,11,0,16,0,11,0,11,0,11,25,26,0,11,0,11,0,11,0,16,0,11,0,11,8,13,13,20,0,16,0,11,0,11,0,11,0,16,0,11,0,11,0,11,6,8,3,5,0,11]
[null,"$100,000 or more:",9,18,27,27,28,30,51,44,7,8,8,11,24,22,881,184,11,17,12,11,12,25,93,77,39,46,4,5,160,95,0,16,77,76,0,11,51,35,15,18,52,80,12,18,5,7,26,24,91,53,3,4,40,29]
[null,"Less than 30.0 percent",{"$f":"C63+C64+C65","v":9},{"$f":"SQRT((D63^2)+(D64^2)+(D65^2))","v":23.790754506740637},{"$f":"E63+E64+E65","v":6},{"$f":"SQRT((F63^2)+(F64^2)+(F65^2))","v":17.972200755611428},{"$f":"G63+G64+G65","v":28},{"$f":"SQRT((H63^2)+(H64^2)+(H65^2))","v":33.793490497431605},{"$f":"I63+I64+I65","v":40},{"$f":"SQRT((J63^2)+(J64^2)+(J65^2))","v":38.948684188300895},{"$f":"K63+K64+K65","v":7},{"$f":"SQRT((L63^2)+(L64^2)+(L65^2))","v":13.490737563232042},{"$f":"M63+M64+M65","v":0},{"$f":"SQRT((N63^2)+(N64^2)+(N65^2))","v":19.05255888325765},{"$f":"O63+O64+O65","v":24},{"$f":"SQRT((P63^2)+(P64^2)+(P65^2))","v":26.944387170614959},{"$f":"Q63+Q64+Q65","v":855},{"$f":"SQRT((R63^2)+(R64^2)+(R65^2))","v":178.25262971412232},{"$f":"S63+S64+S65","v":11},{"$f":"SQRT((T63^2)+(T64^2)+(T65^2))","v":23.043437243605826},{"$f":"U63+U64+U65","v":4},{"$f":"SQRT((V63^2)+(V64^2)+(V65^2))","v":16.673332000533065},{"$f":"W63+W64+W65","v":12},{"$f":"SQRT((X63^2)+(X64^2)+(X65^2))","v":29.444863728670914},{"$f":"Y63+Y64+Y65","v":93},{"$f":"SQRT((Z63^2)+(Z64^2)+(Z65^2))","v":80.255840908933223},{"$f":"AA63+AA64+AA65","v":39},{"$f":"SQRT((AB63^2)+(AB64^2)+(AB65^2))","v":48.559242168715933},{"$f":"AC63+AC64+AC65","v":4},{"$f":"SQRT((AD63^2)+(AD64^2)+(AD65^2))","v":16.340134638368191},{"$f":"AE63+AE64+AE65","v":145},{"$f":"SQRT((AF63^2)+(AF64^2)+(AF65^2))","v":80.05623023850174},{"$f":"AG63+AG64+AG65","v":0},{"$f":"SQRT((AH63^2)+(AH64^2)+(AH65^2))","v":27.712812921102035},{"$f":"AI63+AI64+AI65","v":49},{"$f":"SQRT((AJ63^2)+(AJ64^2)+(AJ65^2))","v":63.190189111918315},{"$f":"AK63+AK64+AK65","v":0},{"$f":"SQRT((AL63^2)+(AL64^2)+(AL65^2))","v":19.05255888325765},{"$f":"AM63+AM64+AM65","v":43},{"$f":"SQRT((AN63^2)+(AN64^2)+(AN65^2))","v":36.249137920783717},{"$f":"AO63+AO64+AO65","v":7},{"$f":"SQRT((AP63^2)+(AP64^2)+(AP65^2))","v":19.05255888325765},{"$f":"AQ63+AQ64+AQ65","v":52},{"$f":"SQRT((AR63^2)+(AR64^2)+(AR65^2))","v":83.138438763306112},{"$f":"AS63+AS64+AS65","v":12},{"$f":"SQRT((AT63^2)+(AT64^2)+(AT65^2))","v":23.790754506740637},{"$f":"AU63+AU64+AU65","v":5},{"$f":"SQRT((AV63^2)+(AV64^2)+(AV65^2))","v":17.058722109231979},{"$f":"AW63+AW64+AW65","v":26},{"$f":"SQRT((AX63^2)+(AX64^2)+(AX65^2))","v":28.600699292150182},{"$f":"AY63+AY64+AY65","v":91},{"$f":"SQRT((AZ63^2)+(AZ64^2)+(AZ65^2))","v":54.717456081217811},{"$f":"BA63+BA64+BA65","v":3},{"$f":"SQRT((BB63^2)+(BB64^2)+(BB65^2))","v":16.06237840420901},{"$f":"BC63+BC64+BC65","v":40},{"$f":"SQRT((BD63^2)+(BD64^2)+(BD65^2))","v":29.765752132274432}]
[null,"More than 30.0 percent",{"$f":"C66+C67+C68+C69","v":0},{"$f":"SQRT((D66^2)+(D67^2)+(D68^2)+(D69^2))","v":22},{"$f":"E66+E67+E68+E69","v":0},{"$f":"SQRT((F66^2)+(F67^2)+(F68^2)+(F69^2))","v":22},{"$f":"G66+G67+G68+G69","v":0},{"$f":"SQRT((H66^2)+(H67^2)+(H68^2)+(H69^2))","v":22},{"$f":"I66+I67+I68+I69","v":0},{"$f":"SQRT((J66^2)+(J67^2)+(J68^2)+(J69^2))","v":32},{"$f":"K66+K67+K68+K69","v":0},{"$f":"SQRT((L66^2)+(L67^2)+(L68^2)+(L69^2))","v":22},{"$f":"M66+M67+M68+M69","v":0},{"$f":"SQRT((N66^2)+(N67^2)+(N68^2)+(N69^2))","v":22},{"$f":"O66+O67+O68+O69","v":0},{"$f":"SQRT((P66^2)+(P67^2)+(P68^2)+(P69^2))","v":22},{"$f":"Q66+Q67+Q68+Q69","v":0},{"$f":"SQRT((R66^2)+(R67^2)+(R68^2)+(R69^2))","v":48},{"$f":"S66+S67+S68+S69","v":0},{"$f":"SQRT((T66^2)+(T67^2)+(T68^2)+(T69^2))","v":22},{"$f":"U66+U67+U68+U69","v":0},{"$f":"SQRT((V66^2)+(V67^2)+(V68^2)+(V69^2))","v":22},{"$f":"W66+W67+W68+W69","v":0},{"$f":"SQRT((X66^2)+(X67^2)+(X68^2)+(X69^2))","v":22},{"$f":"Y66+Y67+Y68+Y69","v":0},{"$f":"SQRT((Z66^2)+(Z67^2)+(Z68^2)+(Z69^2))","v":32},{"$f":"AA66+AA67+AA68+AA69","v":0},{"$f":"SQRT((AB66^2)+(AB67^2)+(AB68^2)+(AB69^2))","v":22},{"$f":"AC66+AC67+AC68+AC69","v":0},{"$f":"SQRT((AD66^2)+(AD67^2)+(AD68^2)+(AD69^2))","v":22},{"$f":"AE66+AE67+AE68+AE69","v":0},{"$f":"SQRT((AF66^2)+(AF67^2)+(AF68^2)+(AF69^2))","v":36},{"$f":"AG66+AG67+AG68+AG69","v":0},{"$f":"SQRT((AH66^2)+(AH67^2)+(AH68^2)+(AH69^2))","v":32},{"$f":"AI66+AI67+AI68+AI69","v":0},{"$f":"SQRT((AJ66^2)+(AJ67^2)+(AJ68^2)+(AJ69^2))","v":32},{"$f":"AK66+AK67+AK68+AK69","v":0},{"$f":"SQRT((AL66^2)+(AL67^2)+(AL68^2)+(AL69^2))","v":22},{"$f":"AM66+AM67+AM68+AM69","v":0},{"$f":"SQRT((AN66^2)+(AN67^2)+(AN68^2)+(AN69^2))","v":22},{"$f":"AO66+AO67+AO68+AO69","v":0},{"$f":"SQRT((AP66^2)+(AP67^2)+(AP68^2)+(AP69^2))","v":22},{"$f":"AQ66+AQ67+AQ68+AQ69","v":0},{"$f":"SQRT((AR66^2)+(AR67^2)+(AR68^2)+(AR69^2))","v":32},{"$f":"AS66+AS67+AS68+AS69","v":0},{"$f":"SQRT((AT66^2)+(AT67^2)+(AT68^2)+(AT69^2))","v":22},{"$f":"AU66+AU67+AU68+AU69","v":0},{"$f":"SQRT((AV66^2)+(AV67^2)+(AV68^2)+(AV69^2))","v":22},{"$f":"AW66+AW67+AW68+AW69","v":0},{"$f":"SQRT((AX66^2)+(AX67^2)+(AX68^2)+(AX69^2))","v":22},{"$f":"AY66+AY67+AY68+AY69","v":0},{"$f":"SQRT((AZ66^2)+(AZ67^2)+(AZ68^2)+(AZ69^2))","v":22},{"$f":"BA66+BA67+BA68+BA69","v":0},{"$f":"SQRT((BB66^2)+(BB67^2)+(BB68^2)+(BB69^2))","v":22},{"$f":"BC66+BC67+BC68+BC69","v":0},{"$f":"SQRT((BD66^2)+(BD67^2)+(BD68^2)+(BD69^2))","v":22}]
[null,"Less Than 35% of HH Income",{"$f":"C63+C64+C65+C66","v":9},{"$f":"SQRT(((D63^2)+(D64^2)+(D65^2)+(D66^2)))","v":26.210684844162312},{"$f":"E63+E64+E65+E66","v":6},{"$f":"SQRT(((F63^2)+(F64^2)+(F65^2)+(F66^2)))","v":21.071307505705477},{"$f":"G63+G64+G65+G66","v":28},{"$f":"SQRT(((H63^2)+(H64^2)+(H65^2)+(H66^2)))","v":35.538711287833721},{"$f":"I63+I64+I65+I66","v":40},{"$f":"SQRT(((J63^2)+(J64^2)+(J65^2)+(J66^2)))","v":42.107006542854599},{"$f":"K63+K64+K65+K66","v":7},{"$f":"SQRT(((L63^2)+(L64^2)+(L65^2)+(L66^2)))","v":17.406895185529212},{"$f":"M63+M64+M65+M66","v":0},{"$f":"SQRT(((N63^2)+(N64^2)+(N65^2)+(N66^2)))","v":22},{"$f":"O63+O64+O65+O66","v":24},{"$f":"SQRT(((P63^2)+(P64^2)+(P65^2)+(P66^2)))","v":29.103264421710495},{"$f":"Q63+Q64+Q65+Q66","v":855},{"$f":"SQRT(((R63^2)+(R64^2)+(R65^2)+(R66^2)))","v":179.8610574860495},{"$f":"S63+S64+S65+S66","v":11},{"$f":"SQRT(((T63^2)+(T64^2)+(T65^2)+(T66^2)))","v":25.534290669607408},{"$f":"U63+U64+U65+U66","v":4},{"$f":"SQRT(((V63^2)+(V64^2)+(V65^2)+(V66^2)))","v":19.974984355438178},{"$f":"W63+W64+W65+W66","v":12},{"$f":"SQRT(((X63^2)+(X64^2)+(X65^2)+(X66^2)))","v":31.432467291003423},{"$f":"Y63+Y64+Y65+Y66","v":93},{"$f":"SQRT(((Z63^2)+(Z64^2)+(Z65^2)+(Z66^2)))","v":81.835200250259064},{"$f":"AA63+AA64+AA65+AA66","v":39},{"$f":"SQRT(((AB63^2)+(AB64^2)+(AB65^2)+(AB66^2)))","v":49.789557138018409},{"$f":"AC63+AC64+AC65+AC66","v":4},{"$f":"SQRT(((AD63^2)+(AD64^2)+(AD65^2)+(AD66^2)))","v":19.697715603592208},{"$f":"AE63+AE64+AE65+AE66","v":145},{"$f":"SQRT(((AF63^2)+(AF64^2)+(AF65^2)+(AF66^2)))","v":82.054859697643749},{"$f":"AG63+AG64+AG65+AG66","v":0},{"$f":"SQRT(((AH63^2)+(AH64^2)+(AH65^2)+(AH66^2)))","v":32},{"$f":"AI63+AI64+AI65+AI66","v":49},{"$f":"SQRT(((AJ63^2)+(AJ64^2)+(AJ65^2)+(AJ66^2)))","v":65.184353950929051},{"$f":"AK63+AK64+AK65+AK66","v":0},{"$f":"SQRT(((AL63^2)+(AL64^2)+(AL65^2)+(AL66^2)))","v":22},{"$f":"AM63+AM64+AM65+AM66","v":43},{"$f":"SQRT(((AN63^2)+(AN64^2)+(AN65^2)+(AN66^2)))","v":37.881393849751625},{"$f":"AO63+AO64+AO65+AO66","v":7},{"$f":"SQRT(((AP63^2)+(AP64^2)+(AP65^2)+(AP66^2)))","v":22},{"$f":"AQ63+AQ64+AQ65+AQ66","v":52},{"$f":"SQRT(((AR63^2)+(AR64^2)+(AR65^2)+(AR66^2)))","v":84.664041954066903},{"$f":"AS63+AS64+AS65+AS66","v":12},{"$f":"SQRT(((AT63^2)+(AT64^2)+(AT65^2)+(AT66^2)))","v":26.210684844162312},{"$f":"AU63+AU64+AU65+AU66","v":5},{"$f":"SQRT(((AV63^2)+(AV64^2)+(AV65^2)+(AV66^2)))","v":20.297783130184438},{"$f":"AW63+AW64+AW65+AW66","v":26},{"$f":"SQRT(((AX63^2)+(AX64^2)+(AX65^2)+(AX66^2)))","v":30.643106892089126},{"$f":"AY63+AY64+AY65+AY66","v":91},{"$f":"SQRT(((AZ63^2)+(AZ64^2)+(AZ65^2)+(AZ66^2)))","v":55.812185049503306},{"$f":"BA63+BA64+BA65+BA66","v":3},{"$f":"SQRT(((BB63^2)+(BB64^2)+(BB65^2)+(BB66^2)))","v":19.467922333931785},{"$f":"BC63+BC64+BC65+BC66","v":40},{"$f":"SQRT(((BD63^2)+(BD64^2)+(BD65^2)+(BD66^2)))","v":31.733263305244861}]
[null,"35.0 percent or more",{"$f":"C67+C68+C69","v":0},{"$f":"SQRT((D67^2)+(D68^2)+(D69^2))","v":19.05255888325765},{"$f":"E67+E68+E69","v":0},{"$f":"SQRT((F67^2)+(F68^2)+(F69^2))","v":19.05255888325765},{"$f":"G67+G68+G69","v":0},{"$f":"SQRT((H67^2)+(H68^2)+(H69^2))","v":19.05255888325765},{"$f":"I67+I68+I69","v":0},{"$f":"SQRT((J67^2)+(J68^2)+(J69^2))","v":27.712812921102035},{"$f":"K67+K68+K69","v":0},{"$f":"SQRT((L67^2)+(L68^2)+(L69^2))","v":19.05255888325765},{"$f":"M67+M68+M69","v":0},{"$f":"SQRT((N67^2)+(N68^2)+(N69^2))","v":19.05255888325765},{"$f":"O67+O68+O69","v":0},{"$f":"SQRT((P67^2)+(P68^2)+(P69^2))","v":19.05255888325765},{"$f":"Q67+Q68+Q69","v":0},{"$f":"SQRT((R67^2)+(R68^2)+(R69^2))","v":41.569219381653056},{"$f":"S67+S68+S69","v":0},{"$f":"SQRT((T67^2)+(T68^2)+(T69^2))","v":19.05255888325765},{"$f":"U67+U68+U69","v":0},{"$f":"SQRT((V67^2)+(V68^2)+(V69^2))","v":19.05255888325765},{"$f":"W67+W68+W69","v":0},{"$f":"SQRT((X67^2)+(X68^2)+(X69^2))","v":19.05255888325765},{"$f":"Y67+Y68+Y69","v":0},{"$f":"SQRT((Z67^2)+(Z68^2)+(Z69^2))","v":27.712812921102035},{"$f":"AA67+AA68+AA69","v":0},{"$f":"SQRT((AB67^2)+(AB68^2)+(AB69^2))","v":19.05255888325765},{"$f":"AC67+AC68+AC69","v":0},{"$f":"SQRT((AD67^2)+(AD68^2)+(AD69^2))","v":19.05255888325765},{"$f":"AE67+AE68+AE69","v":0},{"$f":"SQRT((AF67^2)+(AF68^2)+(AF69^2))","v":31.176914536239792},{"$f":"AG67+AG68+AG69","v":0},{"$f":"SQRT((AH67^2)+(AH68^2)+(AH69^2))","v":27.712812921102035},{"$f":"AI67+AI68+AI69","v":0},{"$f":"SQRT((AJ67^2)+(AJ68^2)+(AJ69^2))","v":27.712812921102035},{"$f":"AK67+AK68+AK69","v":0},{"$f":"SQRT((AL67^2)+(AL68^2)+(AL69^2))","v":19.05255888325765},{"$f":"AM67+AM68+AM69","v":0},{"$f":"SQRT((AN67^2)+(AN68^2)+(AN69^2))","v":19.05255888325765},{"$f":"AO67+AO68+AO69","v":0},{"$f":"SQRT((AP67^2)+(AP68^2)+(AP69^2))","v":19.05255888325765},{"$f":"AQ67+AQ68+AQ69","v":0},{"$f":"SQRT((AR67^2)+(AR68^2)+(AR69^2))","v":27.712812921102035},{"$f":"AS67+AS68+AS69","v":0},{"$f":"SQRT((AT67^2)+(AT68^2)+(AT69^2))","v":19.05255888325765},{"$f":"AU67+AU68+AU69","v":0},{"$f":"SQRT((AV67^2)+(AV68^2)+(AV69^2))","v":19.05255888325765},{"$f":"AW67+AW68+AW69","v":0},{"$f":"SQRT((AX67^2)+(AX68^2)+(AX69^2))","v":19.05255888325765},{"$f":"AY67+AY68+AY69","v":0},{"$f":"SQRT((AZ67^2)+(AZ68^2)+(AZ69^2))","v":19.05255888325765},{"$f":"BA67+BA68+BA69","v":0},{"$f":"SQRT((BB67^2)+(BB68^2)+(BB69^2))","v":19.05255888325765},{"$f":"BC67+BC68+BC69","v":0},{"$f":"SQRT((BD67^2)+(BD68^2)+(BD69^2))","v":19.05255888325765}]
[null,"50.0 percent or more",{"$f":"C69","v":0},11,0,{"$f":"F69","v":11},{"$f":"G69","v":0},11,{"$f":"I69","v":0},16,{"$f":"K69","v":0},11,{"$f":"M69","v":0},11,{"$f":"O69","v":0},11,{"$f":"Q69","v":0},24,{"$f":"S69","v":0},11,{"$f":"U69","v":0},11,{"$f":"W69","v":0},11,{"$f":"Y69","v":0},16,{"$f":"AA69","v":0},11,{"$f":"AC69","v":0},11,{"$f":"AE69","v":0},18,{"$f":"AG69","v":0},16,{"$f":"AI69","v":0},16,{"$f":"AK69","v":0},11,{"$f":"AM69","v":0},11,{"$f":"AO69","v":0},11,{"$f":"AQ69","v":0},16,{"$f":"AS69","v":0},11,{"$f":"AU69","v":0},11,{"$f":"AW69","v":0},11,{"$f":"AY69","v":0},11,{"$f":"BA69","v":0},11,{"$f":"BC69","v":0},11]
[null,"Not Computed",0,11,21,26,{"$f":"G70","v":0},11,{"$f":"I70","v":11},16,{"$f":"K70","v":0},11,{"$f":"M70","v":8},11,{"$f":"O70","v":0},11,{"$f":"Q70","v":26},29,{"$f":"S70","v":0},11,{"$f":"U70","v":8},9,{"$f":"W70","v":0},11,{"$f":"Y70","v":0},16,{"$f":"AA70","v":0},11,{"$f":"AC70","v":0},11,{"$f":"AE70","v":15},23,{"$f":"AG70","v":0},16,{"$f":"AI70","v":28},42,{"$f":"AK70","v":0},11,{"$f":"AM70","v":8},12,{"$f":"AO70","v":8},14,{"$f":"AQ70","v":0},16,{"$f":"AS70","v":0},11,{"$f":"AU70","v":0},11,{"$f":"AW70","v":0},11,{"$f":"AY70","v":0},11,{"$f":"BA70","v":0},11,{"$f":"BC70","v":0},11]
[]
[]
[null,"Calculated GROSS RENT AS A PERCENTAGE OF HOUSEHOLD INCOME IN THE PAST 12 MONTHS"]
[null,"Universe:  RENTER-OCCUPIED HOUSING UNITS"]
[null,"Data Set: 2015-2019 American Community Survey 5-Year Estimates"]
[]
[null,null,"Allenstown",null,"Andover",null,"Boscawen",null,"Bow",null,"Bradford",null,"Canterbury",null,"Chichester",null,"Concord",null,"Danbury",null,"Dunbarton",null,"Epsom",null,"Franklin",null,"Henniker",null,"Hill",null,"Hooksett",null,"Hopkinton",null,"Loudon",null,"Newbury",null,"New London",null,"Northfield",null,"Pembroke",null,"Pittsfield",null,"Salisbury",null,"Sutton",null,"Warner",null,"Webster",null,"Wilmot"]
[null,null,"Estimate","Margin Of Error","Estimate","Margin Of Error","Estimate","Margin Of Error","Estimate","Margin Of Error","Estimate","Margin Of Error","Estimate","Margin Of Error","Estimate","Margin Of Error","Estimate","Margin Of Error","Estimate","Margin Of Error","Estimate","Margin Of Error","Estimate","Margin Of Error","Estimate","Margin Of Error","Estimate","Margin Of Error","Estimate","Margin Of Error","Estimate","Margin Of Error","Estimate","Margin Of Error","Estimate","Margin Of Error","Estimate","Margin Of Error","Estimate","Margin Of Error","Estimate","Margin Of Error","Estimate","Margin Of Error","Estimate","Margin Of Error","Estimate","Margin Of Error","Estimate","Margin Of Error","Estimate","Margin Of Error","Estimate","Margin Of Error","Estimate","Margin Of Error"]
[null,{"$f":"B92","v":"Total:"},409,114,154,72,288,107,288,76,73,31,78,40,87,53,8278,412,42,17,60,26,282,82,1429,186,449,115,30,21,1284,204,243,100,291,138,64,26,295,90,470,109,582,186,599,147,39,26,90,36,387,91,59,29,149,52]
[null,"Less than 30.0 percent",{"$f":"C136+C129+C122+C115+C108+C101+C94","v":175},{"$f":"SQRT((D136^2)+(D129^2)+(D122^2)+(D115^2)+(D108^2)+(D101^2)+(D94^2))","v":85.299472448544492},{"$f":"E136+E129+E122+E115+E108+E101+E94","v":52},{"$f":"SQRT((F136^2)+(F129^2)+(F122^2)+(F115^2)+(F108^2)+(F101^2)+(F94^2))","v":61.180062111769715},{"$f":"G136+G129+G122+G115+G108+G101+G94","v":242},{"$f":"SQRT((H136^2)+(H129^2)+(H122^2)+(H115^2)+(H108^2)+(H101^2)+(H94^2))","v":121.32188590687173},{"$f":"I136+I129+I122+I115+I108+I101+I94","v":82},{"$f":"SQRT((J136^2)+(J129^2)+(J122^2)+(J115^2)+(J108^2)+(J101^2)+(J94^2))","v":78.4729252672538},{"$f":"K136+K129+K122+K115+K108+K101+K94","v":41},{"$f":"SQRT((L136^2)+(L129^2)+(L122^2)+(L115^2)+(L108^2)+(L101^2)+(L94^2))","v":47.581509013481273},{"$f":"M136+M129+M122+M115+M108+M101+M94","v":9},{"$f":"SQRT((N136^2)+(N129^2)+(N122^2)+(N115^2)+(N108^2)+(N101^2)+(N94^2))","v":50.635955604688654},{"$f":"O136+O129+O122+O115+O108+O101+O94","v":36},{"$f":"SQRT((P136^2)+(P129^2)+(P122^2)+(P115^2)+(P108^2)+(P101^2)+(P94^2))","v":56.071383075504748},{"$f":"Q136+Q129+Q122+Q115+Q108+Q101+Q94","v":4338},{"$f":"SQRT((R136^2)+(R129^2)+(R122^2)+(R115^2)+(R108^2)+(R101^2)+(R94^2))","v":436.63485889241599},{"$f":"S136+S129+S122+S115+S108+S101+S94","v":22},{"$f":"SQRT((T136^2)+(T129^2)+(T122^2)+(T115^2)+(T108^2)+(T101^2)+(T94^2))","v":53.329166503893532},{"$f":"U136+U129+U122+U115+U108+U101+U94","v":35},{"$f":"SQRT((V136^2)+(V129^2)+(V122^2)+(V115^2)+(V108^2)+(V101^2)+(V94^2))","v":47.675989764240867},{"$f":"W136+W129+W122+W115+W108+W101+W94","v":159},{"$f":"SQRT((X136^2)+(X129^2)+(X122^2)+(X115^2)+(X108^2)+(X101^2)+(X94^2))","v":89.235643102966435},{"$f":"Y136+Y129+Y122+Y115+Y108+Y101+Y94","v":772},{"$f":"SQRT((Z136^2)+(Z129^2)+(Z122^2)+(Z115^2)+(Z108^2)+(Z101^2)+(Z94^2))","v":212.7533783515552},{"$f":"AA136+AA129+AA122+AA115+AA108+AA101+AA94","v":230},{"$f":"SQRT((AB136^2)+(AB129^2)+(AB122^2)+(AB115^2)+(AB108^2)+(AB101^2)+(AB94^2))","v":105.9669759878048},{"$f":"AC136+AC129+AC122+AC115+AC108+AC101+AC94","v":9},{"$f":"SQRT((AD136^2)+(AD129^2)+(AD122^2)+(AD115^2)+(AD108^2)+(AD101^2)+(AD94^2))","v":48.867166891482462},{"$f":"AE136+AE129+AE122+AE115+AE108+AE101+AE94","v":647},{"$f":"SQRT((AF136^2)+(AF129^2)+(AF122^2)+(AF115^2)+(AF108^2)+(AF101^2)+(AF94^2))","v":188.8809148643663},{"$f":"AG136+AG129+AG122+AG115+AG108+AG101+AG94","v":123},{"$f":"SQRT((AH136^2)+(AH129^2)+(AH122^2)+(AH115^2)+(AH108^2)+(AH101^2)+(AH94^2))","v":118.41452613594331},{"$f":"AI136+AI129+AI122+AI115+AI108+AI101+AI94","v":95},{"$f":"SQRT((AJ136^2)+(AJ129^2)+(AJ122^2)+(AJ115^2)+(AJ108^2)+(AJ101^2)+(AJ94^2))","v":99.934978861257576},{"$f":"AK136+AK129+AK122+AK115+AK108+AK101+AK94","v":32},{"$f":"SQRT((AL136^2)+(AL129^2)+(AL122^2)+(AL115^2)+(AL108^2)+(AL101^2)+(AL94^2))","v":49.193495504995376},{"$f":"AM136+AM129+AM122+AM115+AM108+AM101+AM94","v":151},{"$f":"SQRT((AN136^2)+(AN129^2)+(AN122^2)+(AN115^2)+(AN108^2)+(AN101^2)+(AN94^2))","v":81.049367671808525},{"$f":"AO136+AO129+AO122+AO115+AO108+AO101+AO94","v":238},{"$f":"SQRT((AP136^2)+(AP129^2)+(AP122^2)+(AP115^2)+(AP108^2)+(AP101^2)+(AP94^2))","v":101.89209979188769},{"$f":"AQ136+AQ129+AQ122+AQ115+AQ108+AQ101+AQ94","v":369},{"$f":"SQRT((AR136^2)+(AR129^2)+(AR122^2)+(AR115^2)+(AR108^2)+(AR101^2)+(AR94^2))","v":164.99090884045702},{"$f":"AS136+AS129+AS122+AS115+AS108+AS101+AS94","v":274},{"$f":"SQRT((AT136^2)+(AT129^2)+(AT122^2)+(AT115^2)+(AT108^2)+(AT101^2)+(AT94^2))","v":145.07928866657707},{"$f":"AU136+AU129+AU122+AU115+AU108+AU101+AU94","v":19},{"$f":"SQRT((AV136^2)+(AV129^2)+(AV122^2)+(AV115^2)+(AV108^2)+(AV101^2)+(AV94^2))","v":51.35172830587107},{"$f":"AW136+AW129+AW122+AW115+AW108+AW101+AW94","v":40},{"$f":"SQRT((AX136^2)+(AX129^2)+(AX122^2)+(AX115^2)+(AX108^2)+(AX101^2)+(AX94^2))","v":54.899908925243217},{"$f":"AY136+AY129+AY122+AY115+AY108+AY101+AY94","v":205},{"$f":"SQRT((AZ136^2)+(AZ129^2)+(AZ122^2)+(AZ115^2)+(AZ108^2)+(AZ101^2)+(AZ94^2))","v":81.835200250259064},{"$f":"BA136+BA129+BA122+BA115+BA108+BA101+BA94","v":30},{"$f":"SQRT((BB136^2)+(BB129^2)+(BB122^2)+(BB115^2)+(BB108^2)+(BB101^2)+(BB94^2))","v":50.368641037852115},{"$f":"BC136+BC129+BC122+BC115+BC108+BC101+BC94","v":100},{"$f":"SQRT((BD136^2)+(BD129^2)+(BD122^2)+(BD115^2)+(BD108^2)+(BD101^2)+(BD94^2))","v":58.557663887829406}]
[null,"More than 30.0 percent",{"$f":"C137+C130+C123+C116+C109+C102+C95","v":214},{"$f":"SQRT((D137^2)+(D130^2)+(D123^2)+(D116^2)+(D109^2)+(D102^2)+(D95^2))","v":119.46966142079754},{"$f":"E137+E130+E123+E116+E109+E102+E95","v":36},{"$f":"SQRT((F137^2)+(F130^2)+(F123^2)+(F116^2)+(F109^2)+(F102^2)+(F95^2))","v":63.7808748764079},{"$f":"G137+G130+G123+G116+G109+G102+G95","v":37},{"$f":"SQRT((H137^2)+(H130^2)+(H123^2)+(H116^2)+(H109^2)+(H102^2)+(H95^2))","v":65.658205884717873},{"$f":"I137+I130+I123+I116+I109+I102+I95","v":165},{"$f":"SQRT((J137^2)+(J130^2)+(J123^2)+(J116^2)+(J109^2)+(J102^2)+(J95^2))","v":96.493523098703363},{"$f":"K137+K130+K123+K116+K109+K102+K95","v":32},{"$f":"SQRT((L137^2)+(L130^2)+(L123^2)+(L116^2)+(L109^2)+(L102^2)+(L95^2))","v":55.982140009113621},{"$f":"M137+M130+M123+M116+M109+M102+M95","v":40},{"$f":"SQRT((N137^2)+(N130^2)+(N123^2)+(N116^2)+(N109^2)+(N102^2)+(N95^2))","v":68.220231603242155},{"$f":"O137+O130+O123+O116+O109+O102+O95","v":51},{"$f":"SQRT((P137^2)+(P130^2)+(P123^2)+(P116^2)+(P109^2)+(P102^2)+(P95^2))","v":67.372101050805895},{"$f":"Q137+Q130+Q123+Q116+Q109+Q102+Q95","v":3642},{"$f":"SQRT((R137^2)+(R130^2)+(R123^2)+(R116^2)+(R109^2)+(R102^2)+(R95^2))","v":434.31900718250864},{"$f":"S137+S130+S123+S116+S109+S102+S95","v":16},{"$f":"SQRT((T137^2)+(T130^2)+(T123^2)+(T116^2)+(T109^2)+(T102^2)+(T95^2))","v":55.081757415681643},{"$f":"U137+U130+U123+U116+U109+U102+U95","v":17},{"$f":"SQRT((V137^2)+(V130^2)+(V123^2)+(V116^2)+(V109^2)+(V102^2)+(V95^2))","v":55.326304774492215},{"$f":"W137+W130+W123+W116+W109+W102+W95","v":103},{"$f":"SQRT((X137^2)+(X130^2)+(X123^2)+(X116^2)+(X109^2)+(X102^2)+(X95^2))","v":69.390201037322271},{"$f":"Y137+Y130+Y123+Y116+Y109+Y102+Y95","v":573},{"$f":"SQRT((Z137^2)+(Z130^2)+(Z123^2)+(Z116^2)+(Z109^2)+(Z102^2)+(Z95^2))","v":191.68463683874094},{"$f":"AA137+AA130+AA123+AA116+AA109+AA102+AA95","v":209},{"$f":"SQRT((AB137^2)+(AB130^2)+(AB123^2)+(AB116^2)+(AB109^2)+(AB102^2)+(AB95^2))","v":118.48206615349008},{"$f":"AC137+AC130+AC123+AC116+AC109+AC102+AC95","v":14},{"$f":"SQRT((AD137^2)+(AD130^2)+(AD123^2)+(AD116^2)+(AD109^2)+(AD102^2)+(AD95^2))","v":58.27520913733386},{"$f":"AE137+AE130+AE123+AE116+AE109+AE102+AE95","v":530},{"$f":"SQRT((AF137^2)+(AF130^2)+(AF123^2)+(AF116^2)+(AF109^2)+(AF102^2)+(AF95^2))","v":195.09484872748433},{"$f":"AG137+AG130+AG123+AG116+AG109+AG102+AG95","v":75},{"$f":"SQRT((AH137^2)+(AH130^2)+(AH123^2)+(AH116^2)+(AH109^2)+(AH102^2)+(AH95^2))","v":95.430603057928963},{"$f":"AI137+AI130+AI123+AI116+AI109+AI102+AI95","v":158},{"$f":"SQRT((AJ137^2)+(AJ130^2)+(AJ123^2)+(AJ116^2)+(AJ109^2)+(AJ102^2)+(AJ95^2))","v":129.46814279968643},{"$f":"AK137+AK130+AK123+AK116+AK109+AK102+AK95","v":21},{"$f":"SQRT((AL137^2)+(AL130^2)+(AL123^2)+(AL116^2)+(AL109^2)+(AL102^2)+(AL95^2))","v":55.812185049503306},{"$f":"AM137+AM130+AM123+AM116+AM109+AM102+AM95","v":94},{"$f":"SQRT((AN137^2)+(AN130^2)+(AN123^2)+(AN116^2)+(AN109^2)+(AN102^2)+(AN95^2))","v":73.328030111274643},{"$f":"AO137+AO130+AO123+AO116+AO109+AO102+AO95","v":215},{"$f":"SQRT((AP137^2)+(AP130^2)+(AP123^2)+(AP116^2)+(AP109^2)+(AP102^2)+(AP95^2))","v":138.70832707519762},{"$f":"AQ137+AQ130+AQ123+AQ116+AQ109+AQ102+AQ95","v":213},{"$f":"SQRT((AR137^2)+(AR130^2)+(AR123^2)+(AR116^2)+(AR109^2)+(AR102^2)+(AR95^2))","v":142.00704207890536},{"$f":"AS137+AS130+AS123+AS116+AS109+AS102+AS95","v":315},{"$f":"SQRT((AT137^2)+(AT130^2)+(AT123^2)+(AT116^2)+(AT109^2)+(AT102^2)+(AT95^2))","v":141.70038814343451},{"$f":"AU137+AU130+AU123+AU116+AU109+AU102+AU95","v":20},{"$f":"SQRT((AV137^2)+(AV130^2)+(AV123^2)+(AV116^2)+(AV109^2)+(AV102^2)+(AV95^2))","v":58.57473858242988},{"$f":"AW137+AW130+AW123+AW116+AW109+AW102+AW95","v":32},{"$f":"SQRT((AX137^2)+(AX130^2)+(AX123^2)+(AX116^2)+(AX109^2)+(AX102^2)+(AX95^2))","v":61.522353661088097},{"$f":"AY137+AY130+AY123+AY116+AY109+AY102+AY95","v":137},{"$f":"SQRT((AZ137^2)+(AZ130^2)+(AZ123^2)+(AZ116^2)+(AZ109^2)+(AZ102^2)+(AZ95^2))","v":80.386566041845569},{"$f":"BA137+BA130+BA123+BA116+BA109+BA102+BA95","v":4},{"$f":"SQRT((BB137^2)+(BB130^2)+(BB123^2)+(BB116^2)+(BB109^2)+(BB102^2)+(BB95^2))","v":57.471732182004047},{"$f":"BC137+BC130+BC123+BC116+BC109+BC102+BC95","v":37},{"$f":"SQRT((BD137^2)+(BD130^2)+(BD123^2)+(BD116^2)+(BD109^2)+(BD102^2)+(BD95^2))","v":57.523908073078623}]
[null,"Less Than 35% of HH Income",{"$f":"C138+C131+C124+C117+C110+C103+C96","v":182},{"$f":"SQRT((D138^2)+(D131^2)+(D124^2)+(D117^2)+(D110^2)+(D103^2)+(D96^2))","v":90.011110425324716},{"$f":"E138+E131+E124+E117+E110+E103+E96","v":58},{"$f":"SQRT((F138^2)+(F131^2)+(F124^2)+(F117^2)+(F110^2)+(F103^2)+(F96^2))","v":67.453687816160212},{"$f":"G138+G131+G124+G117+G110+G103+G96","v":253},{"$f":"SQRT((H138^2)+(H131^2)+(H124^2)+(H117^2)+(H110^2)+(H103^2)+(H96^2))","v":125.57467897629681},{"$f":"I138+I131+I124+I117+I110+I103+I96","v":107},{"$f":"SQRT((J138^2)+(J131^2)+(J124^2)+(J117^2)+(J110^2)+(J103^2)+(J96^2))","v":89.877694674485284},{"$f":"K138+K131+K124+K117+K110+K103+K96","v":53},{"$f":"SQRT((L138^2)+(L131^2)+(L124^2)+(L117^2)+(L110^2)+(L103^2)+(L96^2))","v":55.767373974394744},{"$f":"M138+M131+M124+M117+M110+M103+M96","v":14},{"$f":"SQRT((N138^2)+(N131^2)+(N124^2)+(N117^2)+(N110^2)+(N103^2)+(N96^2))","v":57.913728942281033},{"$f":"O138+O131+O124+O117+O110+O103+O96","v":65},{"$f":"SQRT((P138^2)+(P131^2)+(P124^2)+(P117^2)+(P110^2)+(P103^2)+(P96^2))","v":71.874891304265631},{"$f":"Q138+Q131+Q124+Q117+Q110+Q103+Q96","v":4920},{"$f":"SQRT((R138^2)+(R131^2)+(R124^2)+(R117^2)+(R110^2)+(R103^2)+(R96^2))","v":459.44314120465441},{"$f":"S138+S131+S124+S117+S110+S103+S96","v":26},{"$f":"SQRT((T138^2)+(T131^2)+(T124^2)+(T117^2)+(T110^2)+(T103^2)+(T96^2))","v":59.958318855685071},{"$f":"U138+U131+U124+U117+U110+U103+U96","v":39},{"$f":"SQRT((V138^2)+(V131^2)+(V124^2)+(V117^2)+(V110^2)+(V103^2)+(V96^2))","v":55.090834083357279},{"$f":"W138+W131+W124+W117+W110+W103+W96","v":172},{"$f":"SQRT((X138^2)+(X131^2)+(X124^2)+(X117^2)+(X110^2)+(X103^2)+(X96^2))","v":95.336247041720711},{"$f":"Y138+Y131+Y124+Y117+Y110+Y103+Y96","v":896},{"$f":"SQRT((Z138^2)+(Z131^2)+(Z124^2)+(Z117^2)+(Z110^2)+(Z103^2)+(Z96^2))","v":225.89820716420039},{"$f":"AA138+AA131+AA124+AA117+AA110+AA103+AA96","v":278},{"$f":"SQRT((AB138^2)+(AB131^2)+(AB124^2)+(AB117^2)+(AB110^2)+(AB103^2)+(AB96^2))","v":122.56426885516024},{"$f":"AC138+AC131+AC124+AC117+AC110+AC103+AC96","v":9},{"$f":"SQRT((AD138^2)+(AD131^2)+(AD124^2)+(AD117^2)+(AD110^2)+(AD103^2)+(AD96^2))","v":56.877060402239493},{"$f":"AE138+AE131+AE124+AE117+AE110+AE103+AE96","v":790},{"$f":"SQRT((AF138^2)+(AF131^2)+(AF124^2)+(AF117^2)+(AF110^2)+(AF103^2)+(AF96^2))","v":202.68448386593386},{"$f":"AG138+AG131+AG124+AG117+AG110+AG103+AG96","v":131},{"$f":"SQRT((AH138^2)+(AH131^2)+(AH124^2)+(AH117^2)+(AH110^2)+(AH103^2)+(AH96^2))","v":126.17051953606278},{"$f":"AI138+AI131+AI124+AI117+AI110+AI103+AI96","v":132},{"$f":"SQRT((AJ138^2)+(AJ131^2)+(AJ124^2)+(AJ117^2)+(AJ110^2)+(AJ103^2)+(AJ96^2))","v":114.75190630224841},{"$f":"AK138+AK131+AK124+AK117+AK110+AK103+AK96","v":37},{"$f":"SQRT((AL138^2)+(AL131^2)+(AL124^2)+(AL117^2)+(AL110^2)+(AL103^2)+(AL96^2))","v":56.524331044250317},{"$f":"AM138+AM131+AM124+AM117+AM110+AM103+AM96","v":182},{"$f":"SQRT((AN138^2)+(AN131^2)+(AN124^2)+(AN117^2)+(AN110^2)+(AN103^2)+(AN96^2))","v":90.199778270237445},{"$f":"AO138+AO131+AO124+AO117+AO110+AO103+AO96","v":266},{"$f":"SQRT((AP138^2)+(AP131^2)+(AP124^2)+(AP117^2)+(AP110^2)+(AP103^2)+(AP96^2))","v":109.79981785048643},{"$f":"AQ138+AQ131+AQ124+AQ117+AQ110+AQ103+AQ96","v":419},{"$f":"SQRT((AR138^2)+(AR131^2)+(AR124^2)+(AR117^2)+(AR110^2)+(AR103^2)+(AR96^2))","v":174.47635943015317},{"$f":"AS138+AS131+AS124+AS117+AS110+AS103+AS96","v":364},{"$f":"SQRT((AT138^2)+(AT131^2)+(AT124^2)+(AT117^2)+(AT110^2)+(AT103^2)+(AT96^2))","v":163.02760502442524},{"$f":"AU138+AU131+AU124+AU117+AU110+AU103+AU96","v":19},{"$f":"SQRT((AV138^2)+(AV131^2)+(AV124^2)+(AV117^2)+(AV110^2)+(AV103^2)+(AV96^2))","v":59.025418253494827},{"$f":"AW138+AW131+AW124+AW117+AW110+AW103+AW96","v":40},{"$f":"SQRT((AX138^2)+(AX131^2)+(AX124^2)+(AX117^2)+(AX110^2)+(AX103^2)+(AX96^2))","v":62.136945531623937},{"$f":"AY138+AY131+AY124+AY117+AY110+AY103+AY96","v":268},{"$f":"SQRT((AZ138^2)+(AZ131^2)+(AZ124^2)+(AZ117^2)+(AZ110^2)+(AZ103^2)+(AZ96^2))","v":98.41747812253675},{"$f":"BA138+BA131+BA124+BA117+BA110+BA103+BA96","v":30},{"$f":"SQRT((BB138^2)+(BB131^2)+(BB124^2)+(BB117^2)+(BB110^2)+(BB103^2)+(BB96^2))","v":58.172158288995945},{"$f":"BC138+BC131+BC124+BC117+BC110+BC103+BC96","v":119},{"$f":"SQRT((BD138^2)+(BD131^2)+(BD124^2)+(BD117^2)+(BD110^2)+(BD103^2)+(BD96^2))","v":65.207361547604421}]
[null,"35.0 percent or more",{"$f":"C139+C132+C125+C118+C111+C104+C97","v":207},{"$f":"SQRT((D139^2)+(D132^2)+(D125^2)+(D118^2)+(D111^2)+(D104^2)+(D97^2))","v":115.96120040772259},{"$f":"E139+E132+E125+E118+E111+E104+E97","v":30},{"$f":"SQRT((F139^2)+(F132^2)+(F125^2)+(F118^2)+(F111^2)+(F104^2)+(F97^2))","v":57.105166141076936},{"$f":"G139+G132+G125+G118+G111+G104+G97","v":26},{"$f":"SQRT((H139^2)+(H132^2)+(H125^2)+(H118^2)+(H111^2)+(H104^2)+(H97^2))","v":57.105166141076936},{"$f":"I139+I132+I125+I118+I111+I104+I97","v":140},{"$f":"SQRT((J139^2)+(J132^2)+(J125^2)+(J118^2)+(J111^2)+(J104^2)+(J97^2))","v":85.9709253178073},{"$f":"K139+K132+K125+K118+K111+K104+K97","v":20},{"$f":"SQRT((L139^2)+(L132^2)+(L125^2)+(L118^2)+(L111^2)+(L104^2)+(L97^2))","v":47.833042972405593},{"$f":"M139+M132+M125+M118+M111+M104+M97","v":35},{"$f":"SQRT((N139^2)+(N132^2)+(N125^2)+(N118^2)+(N111^2)+(N104^2)+(N97^2))","v":62.161081071680215},{"$f":"O139+O132+O125+O118+O111+O104+O97","v":22},{"$f":"SQRT((P139^2)+(P132^2)+(P125^2)+(P118^2)+(P111^2)+(P104^2)+(P97^2))","v":50.169711978443729},{"$f":"Q139+Q132+Q125+Q118+Q111+Q104+Q97","v":3060},{"$f":"SQRT((R139^2)+(R132^2)+(R125^2)+(R118^2)+(R111^2)+(R104^2)+(R97^2))","v":410.1158372947819},{"$f":"S139+S132+S125+S118+S111+S104+S97","v":12},{"$f":"SQRT((T139^2)+(T132^2)+(T125^2)+(T118^2)+(T111^2)+(T104^2)+(T97^2))","v":47.780749261601159},{"$f":"U139+U132+U125+U118+U111+U104+U97","v":13},{"$f":"SQRT((V139^2)+(V132^2)+(V125^2)+(V118^2)+(V111^2)+(V104^2)+(V97^2))","v":47.947888378947411},{"$f":"W139+W132+W125+W118+W111+W104+W97","v":90},{"$f":"SQRT((X139^2)+(X132^2)+(X125^2)+(X118^2)+(X111^2)+(X104^2)+(X97^2))","v":60.737138556240858},{"$f":"Y139+Y132+Y125+Y118+Y111+Y104+Y97","v":449},{"$f":"SQRT((Z139^2)+(Z132^2)+(Z125^2)+(Z118^2)+(Z111^2)+(Z104^2)+(Z97^2))","v":176.00284088616297},{"$f":"AA139+AA132+AA125+AA118+AA111+AA104+AA97","v":161},{"$f":"SQRT((AB139^2)+(AB132^2)+(AB125^2)+(AB118^2)+(AB111^2)+(AB104^2)+(AB97^2))","v":101.21758740456127},{"$f":"AC139+AC132+AC125+AC118+AC111+AC104+AC97","v":14},{"$f":"SQRT((AD139^2)+(AD132^2)+(AD125^2)+(AD118^2)+(AD111^2)+(AD104^2)+(AD97^2))","v":50.487622245457352},{"$f":"AE139+AE132+AE125+AE118+AE111+AE104+AE97","v":387},{"$f":"SQRT((AF139^2)+(AF132^2)+(AF125^2)+(AF118^2)+(AF111^2)+(AF104^2)+(AF97^2))","v":180.71247881648904},{"$f":"AG139+AG132+AG125+AG118+AG111+AG104+AG97","v":67},{"$f":"SQRT((AH139^2)+(AH132^2)+(AH125^2)+(AH118^2)+(AH111^2)+(AH104^2)+(AH97^2))","v":84.91171886141511},{"$f":"AI139+AI132+AI125+AI118+AI111+AI104+AI97","v":121},{"$f":"SQRT((AJ139^2)+(AJ132^2)+(AJ125^2)+(AJ118^2)+(AJ111^2)+(AJ104^2)+(AJ97^2))","v":116.53754759733019},{"$f":"AK139+AK132+AK125+AK118+AK111+AK104+AK97","v":16},{"$f":"SQRT((AL139^2)+(AL132^2)+(AL125^2)+(AL118^2)+(AL111^2)+(AL104^2)+(AL97^2))","v":48.373546489791295},{"$f":"AM139+AM132+AM125+AM118+AM111+AM104+AM97","v":63},{"$f":"SQRT((AN139^2)+(AN132^2)+(AN125^2)+(AN118^2)+(AN111^2)+(AN104^2)+(AN97^2))","v":61.725197448043858},{"$f":"AO139+AO132+AO125+AO118+AO111+AO104+AO97","v":187},{"$f":"SQRT((AP139^2)+(AP132^2)+(AP125^2)+(AP118^2)+(AP111^2)+(AP104^2)+(AP97^2))","v":132.53678734600442},{"$f":"AQ139+AQ132+AQ125+AQ118+AQ111+AQ104+AQ97","v":163},{"$f":"SQRT((AR139^2)+(AR132^2)+(AR125^2)+(AR118^2)+(AR111^2)+(AR104^2)+(AR97^2))","v":130.17680284904833},{"$f":"AS139+AS132+AS125+AS118+AS111+AS104+AS97","v":225},{"$f":"SQRT((AT139^2)+(AT132^2)+(AT125^2)+(AT118^2)+(AT111^2)+(AT104^2)+(AT97^2))","v":120.61923561356207},{"$f":"AU139+AU132+AU125+AU118+AU111+AU104+AU97","v":20},{"$f":"SQRT((AV139^2)+(AV132^2)+(AV125^2)+(AV118^2)+(AV111^2)+(AV104^2)+(AV97^2))","v":50.833060108555337},{"$f":"AW139+AW132+AW125+AW118+AW111+AW104+AW97","v":32},{"$f":"SQRT((AX139^2)+(AX132^2)+(AX125^2)+(AX118^2)+(AX111^2)+(AX104^2)+(AX97^2))","v":54.203320931470607},{"$f":"AY139+AY132+AY125+AY118+AY111+AY104+AY97","v":74},{"$f":"SQRT((AZ139^2)+(AZ132^2)+(AZ125^2)+(AZ118^2)+(AZ111^2)+(AZ104^2)+(AZ97^2))","v":58.932164392630277},{"$f":"BA139+BA132+BA125+BA118+BA111+BA104+BA97","v":4},{"$f":"SQRT((BB139^2)+(BB132^2)+(BB125^2)+(BB118^2)+(BB111^2)+(BB104^2)+(BB97^2))","v":49.558046773455466},{"$f":"BC139+BC132+BC125+BC118+BC111+BC104+BC97","v":18},{"$f":"SQRT((BD139^2)+(BD132^2)+(BD125^2)+(BD118^2)+(BD111^2)+(BD104^2)+(BD97^2))","v":49.859803449271638}]
[null,"50.0 percent or more",{"$f":"C140+C133+C126+C119+C112+C105+C98","v":90},{"$f":"SQRT((D140^2)+(D133^2)+(D126^2)+(D119^2)+(D112^2)+(D105^2)+(D98^2))","v":72.041654617311508},{"$f":"E140+E133+E126+E119+E112+E105+E98","v":0},{"$f":"SQRT((F140^2)+(F133^2)+(F126^2)+(F119^2)+(F112^2)+(F105^2)+(F98^2))","v":29.103264421710495},{"$f":"G140+G133+G126+G119+G112+G105+G98","v":0},{"$f":"SQRT((H140^2)+(H133^2)+(H126^2)+(H119^2)+(H112^2)+(H105^2)+(H98^2))","v":29.103264421710495},{"$f":"I140+I133+I126+I119+I112+I105+I98","v":73},{"$f":"SQRT((J140^2)+(J133^2)+(J126^2)+(J119^2)+(J112^2)+(J105^2)+(J98^2))","v":58.455110982701932},{"$f":"K140+K133+K126+K119+K112+K105+K98","v":10},{"$f":"SQRT((L140^2)+(L133^2)+(L126^2)+(L119^2)+(L112^2)+(L105^2)+(L98^2))","v":26.057628441590765},{"$f":"M140+M133+M126+M119+M112+M105+M98","v":35},{"$f":"SQRT((N140^2)+(N133^2)+(N126^2)+(N119^2)+(N112^2)+(N105^2)+(N98^2))","v":46.583258795408462},{"$f":"O140+O133+O126+O119+O112+O105+O98","v":5},{"$f":"SQRT((P140^2)+(P133^2)+(P126^2)+(P119^2)+(P112^2)+(P105^2)+(P98^2))","v":27.838821814150108},{"$f":"Q140+Q133+Q126+Q119+Q112+Q105+Q98","v":1728},{"$f":"SQRT((R140^2)+(R133^2)+(R126^2)+(R119^2)+(R112^2)+(R105^2)+(R98^2))","v":307.34020238166045},{"$f":"S140+S133+S126+S119+S112+S105+S98","v":6},{"$f":"SQRT((T140^2)+(T133^2)+(T126^2)+(T119^2)+(T112^2)+(T105^2)+(T98^2))","v":25.416530054277668},{"$f":"U140+U133+U126+U119+U112+U105+U98","v":9},{"$f":"SQRT((V140^2)+(V133^2)+(V126^2)+(V119^2)+(V112^2)+(V105^2)+(V98^2))","v":26.267851073127396},{"$f":"W140+W133+W126+W119+W112+W105+W98","v":30},{"$f":"SQRT((X140^2)+(X133^2)+(X126^2)+(X119^2)+(X112^2)+(X105^2)+(X98^2))","v":34.08812109811862},{"$f":"Y140+Y133+Y126+Y119+Y112+Y105+Y98","v":248},{"$f":"SQRT((Z140^2)+(Z133^2)+(Z126^2)+(Z119^2)+(Z112^2)+(Z105^2)+(Z98^2))","v":113.16359838746733},{"$f":"AA140+AA133+AA126+AA119+AA112+AA105+AA98","v":115},{"$f":"SQRT((AB140^2)+(AB133^2)+(AB126^2)+(AB119^2)+(AB112^2)+(AB105^2)+(AB98^2))","v":81.57205403813245},{"$f":"AC140+AC133+AC126+AC119+AC112+AC105+AC98","v":14},{"$f":"SQRT((AD140^2)+(AD133^2)+(AD126^2)+(AD119^2)+(AD112^2)+(AD105^2)+(AD98^2))","v":29.240383034426891},{"$f":"AE140+AE133+AE126+AE119+AE112+AE105+AE98","v":307},{"$f":"SQRT((AF140^2)+(AF133^2)+(AF126^2)+(AF119^2)+(AF112^2)+(AF105^2)+(AF98^2))","v":166.6433316997713},{"$f":"AG140+AG133+AG126+AG119+AG112+AG105+AG98","v":12},{"$f":"SQRT((AH140^2)+(AH133^2)+(AH126^2)+(AH119^2)+(AH112^2)+(AH105^2)+(AH98^2))","v":43.554563480765133},{"$f":"AI140+AI133+AI126+AI119+AI112+AI105+AI98","v":121},{"$f":"SQRT((AJ140^2)+(AJ133^2)+(AJ126^2)+(AJ119^2)+(AJ112^2)+(AJ105^2)+(AJ98^2))","v":99.98499887483122},{"$f":"AK140+AK133+AK126+AK119+AK112+AK105+AK98","v":5},{"$f":"SQRT((AL140^2)+(AL133^2)+(AL126^2)+(AL119^2)+(AL112^2)+(AL105^2)+(AL98^2))","v":27.838821814150108},{"$f":"AM140+AM133+AM126+AM119+AM112+AM105+AM98","v":35},{"$f":"SQRT((AN140^2)+(AN133^2)+(AN126^2)+(AN119^2)+(AN112^2)+(AN105^2)+(AN98^2))","v":41.243181254602561},{"$f":"AO140+AO133+AO126+AO119+AO112+AO105+AO98","v":7},{"$f":"SQRT((AP140^2)+(AP133^2)+(AP126^2)+(AP119^2)+(AP112^2)+(AP105^2)+(AP98^2))","v":29.103264421710495},{"$f":"AQ140+AQ133+AQ126+AQ119+AQ112+AQ105+AQ98","v":130},{"$f":"SQRT((AR140^2)+(AR133^2)+(AR126^2)+(AR119^2)+(AR112^2)+(AR105^2)+(AR98^2))","v":111.57956802210698},{"$f":"AS140+AS133+AS126+AS119+AS112+AS105+AS98","v":179},{"$f":"SQRT((AT140^2)+(AT133^2)+(AT126^2)+(AT119^2)+(AT112^2)+(AT105^2)+(AT98^2))","v":102.60116958397697},{"$f":"AU140+AU133+AU126+AU119+AU112+AU105+AU98","v":0},{"$f":"SQRT((AV140^2)+(AV133^2)+(AV126^2)+(AV119^2)+(AV112^2)+(AV105^2)+(AV98^2))","v":29.103264421710495},{"$f":"AW140+AW133+AW126+AW119+AW112+AW105+AW98","v":32},{"$f":"SQRT((AX140^2)+(AX133^2)+(AX126^2)+(AX119^2)+(AX112^2)+(AX105^2)+(AX98^2))","v":35.270384177096794},{"$f":"AY140+AY133+AY126+AY119+AY112+AY105+AY98","v":54},{"$f":"SQRT((AZ140^2)+(AZ133^2)+(AZ126^2)+(AZ119^2)+(AZ112^2)+(AZ105^2)+(AZ98^2))","v":38.57460304397182},{"$f":"BA140+BA133+BA126+BA119+BA112+BA105+BA98","v":4},{"$f":"SQRT((BB140^2)+(BB133^2)+(BB126^2)+(BB119^2)+(BB112^2)+(BB105^2)+(BB98^2))","v":27.604347483684521},{"$f":"BC140+BC133+BC126+BC119+BC112+BC105+BC98","v":8},{"$f":"SQRT((BD140^2)+(BD133^2)+(BD126^2)+(BD119^2)+(BD112^2)+(BD105^2)+(BD98^2))","v":25.632011235952593}]
[null,"Not Computed",{"$f":"C140+C134+C127+C120+C113+C106+C99","v":20},{"$f":"SQRT((D140^2)+(D134^2)+(D127^2)+(D120^2)+(D113^2)+(D106^2)+(D99^2))","v":32.480763537823428},{"$f":"E140+E134+E127+E120+E113+E106+E99","v":45},{"$f":"SQRT((F140^2)+(F134^2)+(F127^2)+(F120^2)+(F113^2)+(F106^2)+(F99^2))","v":55.722526863020128},{"$f":"G140+G134+G127+G120+G113+G106+G99","v":9},{"$f":"SQRT((H140^2)+(H134^2)+(H127^2)+(H120^2)+(H113^2)+(H106^2)+(H99^2))","v":30.364452901377952},{"$f":"I140+I134+I127+I120+I113+I106+I99","v":30},{"$f":"SQRT((J140^2)+(J134^2)+(J127^2)+(J120^2)+(J113^2)+(J106^2)+(J99^2))","v":42.813549257215293},{"$f":"K140+K134+K127+K120+K113+K106+K99","v":0},{"$f":"SQRT((L140^2)+(L134^2)+(L127^2)+(L120^2)+(L113^2)+(L106^2)+(L99^2))","v":29.103264421710495},{"$f":"M140+M134+M127+M120+M113+M106+M99","v":21},{"$f":"SQRT((N140^2)+(N134^2)+(N127^2)+(N120^2)+(N113^2)+(N106^2)+(N99^2))","v":43.382023926967726},{"$f":"O140+O134+O127+O120+O113+O106+O99","v":0},{"$f":"SQRT((P140^2)+(P134^2)+(P127^2)+(P120^2)+(P113^2)+(P106^2)+(P99^2))","v":29.103264421710495},{"$f":"Q140+Q134+Q127+Q120+Q113+Q106+Q99","v":272},{"$f":"SQRT((R140^2)+(R134^2)+(R127^2)+(R120^2)+(R113^2)+(R106^2)+(R99^2))","v":114.65164630305141},{"$f":"S140+S134+S127+S120+S113+S106+S99","v":4},{"$f":"SQRT((T140^2)+(T134^2)+(T127^2)+(T120^2)+(T113^2)+(T106^2)+(T99^2))","v":27.404379212089442},{"$f":"U140+U134+U127+U120+U113+U106+U99","v":0},{"$f":"SQRT((V140^2)+(V134^2)+(V127^2)+(V120^2)+(V113^2)+(V106^2)+(V99^2))","v":29.103264421710495},{"$f":"W140+W134+W127+W120+W113+W106+W99","v":20},{"$f":"SQRT((X140^2)+(X134^2)+(X127^2)+(X120^2)+(X113^2)+(X106^2)+(X99^2))","v":33.316662497915367},{"$f":"Y140+Y134+Y127+Y120+Y113+Y106+Y99","v":84},{"$f":"SQRT((Z140^2)+(Z134^2)+(Z127^2)+(Z120^2)+(Z113^2)+(Z106^2)+(Z99^2))","v":71.175838597096984},{"$f":"AA140+AA134+AA127+AA120+AA113+AA106+AA99","v":10},{"$f":"SQRT((AB140^2)+(AB134^2)+(AB127^2)+(AB120^2)+(AB113^2)+(AB106^2)+(AB99^2))","v":30.838287890218549},{"$f":"AC140+AC134+AC127+AC120+AC113+AC106+AC99","v":7},{"$f":"SQRT((AD140^2)+(AD134^2)+(AD127^2)+(AD120^2)+(AD113^2)+(AD106^2)+(AD99^2))","v":25.592967784139454},{"$f":"AE140+AE134+AE127+AE120+AE113+AE106+AE99","v":92},{"$f":"SQRT((AF140^2)+(AF134^2)+(AF127^2)+(AF120^2)+(AF113^2)+(AF106^2)+(AF99^2))","v":67.223507793033235},{"$f":"AG140+AG134+AG127+AG120+AG113+AG106+AG99","v":45},{"$f":"SQRT((AH140^2)+(AH134^2)+(AH127^2)+(AH120^2)+(AH113^2)+(AH106^2)+(AH99^2))","v":52.019227214559812},{"$f":"AI140+AI134+AI127+AI120+AI113+AI106+AI99","v":10},{"$f":"SQRT((AJ140^2)+(AJ134^2)+(AJ127^2)+(AJ120^2)+(AJ113^2)+(AJ106^2)+(AJ99^2))","v":42.720018726587654},{"$f":"AK140+AK134+AK127+AK120+AK113+AK106+AK99","v":11},{"$f":"SQRT((AL140^2)+(AL134^2)+(AL127^2)+(AL120^2)+(AL113^2)+(AL106^2)+(AL99^2))","v":30.364452901377952},{"$f":"AM140+AM134+AM127+AM120+AM113+AM106+AM99","v":42},{"$f":"SQRT((AN140^2)+(AN134^2)+(AN127^2)+(AN120^2)+(AN113^2)+(AN106^2)+(AN99^2))","v":46.270941205037097},{"$f":"AO140+AO134+AO127+AO120+AO113+AO106+AO99","v":9},{"$f":"SQRT((AP140^2)+(AP134^2)+(AP127^2)+(AP120^2)+(AP113^2)+(AP106^2)+(AP99^2))","v":29.916550603303182},{"$f":"AQ140+AQ134+AQ127+AQ120+AQ113+AQ106+AQ99","v":0},{"$f":"SQRT((AR140^2)+(AR134^2)+(AR127^2)+(AR120^2)+(AR113^2)+(AR106^2)+(AR99^2))","v":42.332020977033451},{"$f":"AS140+AS134+AS127+AS120+AS113+AS106+AS99","v":10},{"$f":"SQRT((AT140^2)+(AT134^2)+(AT127^2)+(AT120^2)+(AT113^2)+(AT106^2)+(AT99^2))","v":31.336879231984796},{"$f":"AU140+AU134+AU127+AU120+AU113+AU106+AU99","v":0},{"$f":"SQRT((AV140^2)+(AV134^2)+(AV127^2)+(AV120^2)+(AV113^2)+(AV106^2)+(AV99^2))","v":29.103264421710495},{"$f":"AW140+AW134+AW127+AW120+AW113+AW106+AW99","v":18},{"$f":"SQRT((AX140^2)+(AX134^2)+(AX127^2)+(AX120^2)+(AX113^2)+(AX106^2)+(AX99^2))","v":28.319604517012593},{"$f":"AY140+AY134+AY127+AY120+AY113+AY106+AY99","v":45},{"$f":"SQRT((AZ140^2)+(AZ134^2)+(AZ127^2)+(AZ120^2)+(AZ113^2)+(AZ106^2)+(AZ99^2))","v":37.161808352124091},{"$f":"BA140+BA134+BA127+BA120+BA113+BA106+BA99","v":25},{"$f":"SQRT((BB140^2)+(BB134^2)+(BB127^2)+(BB120^2)+(BB113^2)+(BB106^2)+(BB99^2))","v":25.534290669607408},{"$f":"BC140+BC134+BC127+BC120+BC113+BC106+BC99","v":12},{"$f":"SQRT((BD140^2)+(BD134^2)+(BD127^2)+(BD120^2)+(BD113^2)+(BD106^2)+(BD99^2))","v":27.386127875258307}]
[]
[]
[]
[]
[]
[]
[]
[]
[]
[]
[]
[null,"B25074. HOUSEHOLD INCOME BY GROSS RENT AS A PERCENTAGE OF HOUSEHOLD INCOME IN THE PAST 12 MONTHS"]
[null,"Universe:  RENTER-OCCUPIED HOUSING UNITS",null,null,null,"Income in 2014 Inflation Adjusted Dollars"]
[null,"Data Set: 2010-2014 American Community Survey 5-Year Estimates"]
[]
[null,null,"Allenstown",null,"Andover",null,"Boscawen",null,"Bow",null,"Bradford",null,"Canterbury",null,"Chichester",null,"Concord",null,"Danbury",null,"Dunbarton",null,"Epsom",null,"Franklin",null,"Henniker",null,"Hill",null,"Hooksett",null,"Hopkinton",null,"Loudon",null,"Newbury",null,"New London",null,"Northfield",null,"Pembroke",null,"Pittsfield",null,"Salisbury",null,"Sutton",null,"Warner",null,"Webster",null,"Wilmot"]
[null,null,"Estimate","Margin Of Error","Estimate","Margin Of Error","Estimate","Margin Of Error","Estimate","Margin Of Error","Estimate","Margin Of Error","Estimate","Margin Of Error","Estimate","Margin Of Error","Estimate","Margin Of Error","Estimate","Margin Of Error","Estimate","Margin Of Error","Estimate","Margin Of Error","Estimate","Margin Of Error","Estimate","Margin Of Error","Estimate","Margin Of Error","Estimate","Margin Of Error","Estimate","Margin Of Error","Estimate","Margin Of Error","Estimate","Margin Of Error","Estimate","Margin Of Error","Estimate","Margin Of Error","Estimate","Margin Of Error","Estimate","Margin Of Error","Estimate","Margin Of Error","Estimate","Margin Of Error","Estimate","Margin Of Error","Estimate","Margin Of Error","Estimate","Margin Of Error"]
[null,"Total:",535,128,136,60,386,104,317,80,79,33,40,21,98,50,7765,311,95,43,136,55,286,108,1364,180,527,116,32,23,743,144,276,113,320,119,40,29,369,114,416,87,801,168,624,113,41,25,92,38,252,84,97,46,110,42]
[null,"Less than $10,000:",51,75,4,7,41,31,14,21,13,15,0,11,0,11,790,174,6,7,5,8,20,23,168,73,43,43,0,11,27,35,0,15,27,30,0,11,25,25,11,16,105,85,172,84,0,11,9,14,27,36,0,11,0,11]
[null,"Less than 20.0 percent",0,11,0,11,0,11,0,15,0,11,0,11,0,11,12,20,0,11,0,11,0,11,0,15,0,11,0,11,0,17,0,15,0,15,0,11,0,11,0,11,0,15,26,41,0,11,0,11,0,11,0,11,0,11]
[null,"20.0 to 24.9 percent",0,11,0,11,0,11,0,15,0,11,0,11,0,11,18,20,0,11,0,11,0,11,12,19,0,11,0,11,0,17,0,15,0,15,0,11,0,11,0,11,0,15,0,11,0,11,0,11,0,11,0,11,0,11]
[null,"25.0 to 29.9 percent",0,11,0,11,0,11,0,15,0,11,0,11,0,11,42,34,0,11,0,11,0,11,20,24,0,11,0,11,0,17,0,15,0,15,0,11,0,11,0,11,0,15,0,11,0,11,0,11,0,11,0,11,0,11]
[null,"30.0 to 34.9 percent",0,11,0,11,0,11,0,15,0,11,0,11,0,11,44,43,0,11,0,11,0,11,18,21,10,16,0,11,0,17,0,15,0,15,0,11,8,12,0,11,0,15,0,11,0,11,0,11,0,11,0,11,0,11]
[null,"35.0 to 39.9 percent",0,11,0,11,0,11,0,15,0,11,0,11,0,11,11,17,0,11,0,11,0,11,0,15,0,11,0,11,0,17,0,15,0,15,0,11,0,11,0,11,0,15,0,11,0,11,0,11,0,11,0,11,0,11]
[null,"40.0 to 49.9 percent",0,11,0,11,0,11,0,15,0,11,0,11,0,11,0,23,0,11,0,11,0,11,13,24,0,11,0,11,0,17,0,15,0,15,0,11,0,11,0,11,0,15,26,41,0,11,0,11,0,11,0,11,0,11]
[null,"50.0 percent or more",0,11,0,11,34,28,14,21,13,15,0,11,0,11,534,150,3,5,5,8,20,23,77,45,33,40,0,11,27,35,0,15,12,19,0,11,17,21,11,16,105,85,120,70,0,11,0,11,27,36,0,11,0,11]
[null,"Not computed",51,75,4,7,7,11,0,15,0,11,0,11,0,11,129,78,3,5,0,11,0,11,28,33,0,11,0,11,0,17,0,15,15,23,0,11,0,11,0,11,0,15,0,11,0,11,9,14,0,11,0,11,0,11]
[null,"$10,000 to $19,999:",81,67,32,23,103,66,81,58,12,10,28,13,0,11,1206,216,3,4,0,11,66,57,410,134,173,77,3,4,133,67,0,15,53,45,0,11,96,65,57,42,167,102,114,69,13,16,0,11,45,35,30,28,7,8]
[null,"Less than 20.0 percent",0,11,0,11,0,11,0,15,0,11,5,8,0,11,34,31,0,11,0,11,0,11,0,15,32,49,0,11,0,17,0,15,0,15,0,11,19,31,0,11,18,29,0,11,0,11,0,11,5,7,0,11,0,11]
[null,"20.0 to 24.9 percent",0,11,0,11,0,11,11,18,0,11,8,12,0,11,85,63,0,11,0,11,0,11,9,14,10,17,0,11,19,30,0,15,0,15,0,11,8,12,0,11,0,15,9,14,0,11,0,11,2,4,0,11,0,11]
[null,"25.0 to 29.9 percent",18,20,0,11,9,14,0,15,0,11,5,9,0,11,180,81,0,11,0,11,0,11,21,26,32,43,3,4,16,25,0,15,6,11,0,11,0,11,0,11,13,20,18,21,0,11,0,11,14,23,0,11,0,11]
[null,"30.0 to 34.9 percent",0,11,0,11,0,11,0,15,5,7,0,11,0,11,20,18,0,11,0,11,9,14,39,38,7,12,0,11,9,14,0,15,0,15,0,11,0,11,0,11,0,15,0,11,0,11,0,11,0,11,10,15,0,11]
[null,"35.0 to 39.9 percent",0,11,0,11,7,10,0,15,0,11,0,11,0,11,7,11,0,11,0,11,0,11,9,19,0,11,0,11,9,14,0,15,0,15,0,11,0,11,0,11,0,15,0,11,0,11,0,11,0,11,10,16,0,11]
[null,"40.0 to 49.9 percent",0,11,0,11,0,11,0,15,0,11,0,11,0,11,172,108,0,11,0,11,0,11,53,59,0,11,0,11,0,17,0,15,23,36,0,11,0,11,0,11,16,25,8,12,0,11,0,11,24,38,0,11,0,11]
[null,"50.0 percent or more",63,61,27,22,87,65,70,52,0,11,10,10,0,11,686,154,0,11,0,11,32,41,211,116,67,65,0,11,59,45,0,15,24,28,0,11,45,46,57,42,120,93,52,55,13,16,0,11,0,11,10,16,7,8]
[null,"Not computed",0,11,5,7,0,11,0,15,7,8,0,11,0,11,22,34,3,4,0,11,25,40,68,53,25,28,0,11,21,26,0,15,0,15,0,11,24,35,0,11,0,15,27,40,0,11,0,11,0,11,0,11,0,11]
[null,"$20,000 to $34,999:",202,101,37,29,115,66,59,36,29,24,0,11,25,26,1882,302,9,9,50,35,78,60,384,138,114,66,4,6,195,75,17,27,38,37,0,11,68,47,120,72,193,108,152,77,14,16,17,17,45,37,17,20,25,20]
[null,"Less than 20.0 percent",53,54,0,11,0,11,0,15,0,11,0,11,0,11,134,97,0,11,0,11,5,8,15,23,7,12,0,11,16,24,0,15,0,15,0,11,0,11,0,11,30,43,0,11,0,11,0,11,5,8,0,11,0,11]
[null,"20.0 to 24.9 percent",14,24,0,11,0,11,0,15,0,11,0,11,0,11,94,73,0,11,0,11,0,11,10,16,0,11,0,11,0,17,0,15,0,15,0,11,0,11,7,11,0,15,28,27,0,11,0,11,0,11,0,11,0,11]
[null,"25.0 to 29.9 percent",0,11,0,11,0,11,0,15,3,5,0,11,0,11,121,53,0,11,0,11,0,11,32,41,6,10,0,11,24,32,17,27,0,15,0,11,0,11,0,11,39,45,35,35,0,11,3,6,5,8,0,11,0,11]
[null,"30.0 to 34.9 percent",18,25,6,10,34,31,11,17,0,11,0,11,0,11,307,115,0,11,24,29,19,22,67,49,28,26,0,11,12,17,0,15,0,15,0,11,16,25,0,11,48,74,44,42,0,11,0,11,19,30,0,11,0,11]
[null,"35.0 to 39.9 percent",48,74,5,7,25,33,5,9,8,13,0,11,0,11,287,117,0,11,0,11,19,31,11,17,5,9,0,11,17,27,0,15,28,33,0,11,8,12,9,16,0,15,16,18,0,11,0,11,5,8,0,11,0,11]
[null,"40.0 to 49.9 percent",52,39,19,23,41,43,20,24,14,18,0,11,17,23,594,186,6,9,16,16,26,43,53,44,40,45,0,11,55,45,0,15,0,15,0,11,35,39,33,29,0,15,29,46,0,11,0,11,11,12,13,19,0,11]
[null,"50.0 percent or more",17,26,0,11,8,16,23,16,4,6,0,11,0,11,323,111,0,11,5,7,9,12,181,109,28,42,4,6,59,47,0,15,10,18,0,11,0,11,71,63,57,58,0,11,14,16,10,15,0,11,4,6,22,20]
[null,"Not computed",0,11,7,10,7,11,0,15,0,11,0,11,8,12,22,27,3,4,5,8,0,11,15,22,0,11,0,11,12,15,0,15,0,15,0,11,9,14,0,11,19,28,0,11,0,11,4,8,0,11,0,11,3,4]
[null,"$35,000 to $49,999:",33,35,18,29,39,37,102,72,6,7,0,11,8,9,1373,236,17,19,15,14,21,24,225,104,32,38,6,8,68,40,138,109,87,79,4,6,20,35,43,31,90,88,63,45,3,5,11,18,37,34,23,19,21,21]
[null,"Less than 20.0 percent",5,8,0,11,0,11,0,15,0,11,0,11,0,11,14,17,0,11,0,11,0,11,30,28,0,11,0,11,10,16,0,15,0,15,0,11,0,11,12,19,0,15,9,15,3,5,0,11,0,11,6,8,0,11]
[null,"20.0 to 24.9 percent",0,11,18,29,20,29,0,15,0,11,0,11,5,7,322,111,17,19,3,5,0,11,55,52,0,11,0,11,0,17,75,87,0,15,0,11,0,11,0,11,49,56,35,42,0,11,0,11,6,8,0,11,0,11]
[null,"25.0 to 29.9 percent",6,10,0,11,11,13,11,18,3,4,0,11,0,11,378,134,0,11,7,11,8,13,51,42,9,14,2,5,0,17,15,24,42,62,0,11,0,11,11,17,0,15,7,12,0,11,11,18,18,28,4,5,0,11]
[null,"30.0 to 34.9 percent",22,34,0,11,0,11,5,8,0,11,0,11,3,6,264,108,0,11,5,8,0,11,1,9,23,36,0,11,18,20,39,61,45,66,4,6,0,11,0,11,41,61,12,18,0,11,0,11,0,11,13,17,11,15]
[null,"35.0 to 39.9 percent",0,11,0,11,0,11,14,22,0,11,0,11,0,11,109,72,0,11,0,11,13,20,36,52,0,11,0,11,0,17,9,16,0,15,0,11,0,11,0,11,0,15,0,11,0,11,0,11,8,11,0,11,0,11]
[null,"40.0 to 49.9 percent",0,11,0,11,0,11,43,53,0,11,0,11,0,11,128,82,0,11,0,11,0,11,52,58,0,11,0,11,40,30,0,15,0,15,0,11,0,11,11,16,0,15,0,11,0,11,0,11,5,8,0,11,10,15]
[null,"50.0 percent or more",0,11,0,11,8,12,0,15,3,5,0,11,0,11,54,57,0,11,0,11,0,11,0,15,0,11,0,11,0,17,0,15,0,15,0,11,0,11,0,11,0,15,0,11,0,11,0,11,0,11,0,11,0,11]
[null,"Not computed",0,11,0,11,0,11,29,41,0,11,0,11,0,11,104,103,0,11,0,11,0,11,0,15,0,11,4,6,0,17,0,15,0,15,0,11,20,35,9,13,0,15,0,11,0,11,0,11,0,11,0,11,0,11]
[null,"$50,000 to $74,999:",86,58,16,13,26,25,22,24,12,12,0,11,21,26,1369,241,60,36,25,20,43,38,97,64,86,72,17,20,128,66,46,66,29,34,17,16,81,62,92,52,116,86,27,26,6,6,25,21,33,29,11,9,19,20]
[null,"Less than 20.0 percent",43,43,3,4,0,11,0,15,0,11,0,11,16,24,475,152,33,27,7,8,0,11,55,47,37,49,0,11,39,42,39,64,0,15,0,11,40,45,31,26,28,34,17,19,0,11,0,11,22,28,3,5,10,15]
[null,"20.0 to 24.9 percent",0,11,10,14,0,11,0,15,6,7,0,11,0,11,605,170,27,25,10,12,0,11,11,17,15,21,17,20,60,40,7,13,0,15,5,8,22,30,56,56,60,71,10,17,2,5,13,15,4,6,4,6,0,11]
[null,"25.0 to 29.9 percent",6,10,3,5,19,21,6,13,0,11,0,11,0,11,115,60,0,11,8,13,0,11,31,37,8,14,0,11,15,17,0,15,16,26,12,14,0,11,5,9,0,15,0,11,0,11,12,15,0,11,4,6,9,15]
[null,"30.0 to 34.9 percent",7,11,0,11,7,12,16,19,0,11,0,11,0,11,84,48,0,11,0,11,7,11,0,15,26,42,0,11,14,23,0,15,0,15,0,11,19,29,0,11,11,19,0,11,0,11,0,11,7,9,0,11,0,11]
[null,"35.0 to 39.9 percent",30,40,0,11,0,11,0,15,6,10,0,11,0,11,9,13,0,11,0,11,9,15,0,15,0,11,0,11,0,17,0,15,0,15,0,11,0,11,0,11,0,15,0,11,0,11,0,11,0,11,0,11,0,11]
[null,"40.0 to 49.9 percent",0,11,0,11,0,11,0,15,0,11,0,11,0,11,26,30,0,11,0,11,0,11,0,15,0,11,0,11,0,17,0,15,0,15,0,11,0,11,0,11,0,15,0,11,0,11,0,11,0,11,0,11,0,11]
[null,"50.0 percent or more",0,11,0,11,0,11,0,15,0,11,0,11,0,11,21,27,0,11,0,11,20,30,0,15,0,11,0,11,0,17,0,15,0,15,0,11,0,11,0,11,0,15,0,11,0,11,0,11,0,11,0,11,0,11]
[null,"Not computed",0,11,0,11,0,11,0,15,0,11,0,11,5,9,34,44,0,11,0,11,7,13,0,15,0,11,0,11,0,17,0,15,13,21,0,11,0,11,0,11,17,28,0,11,4,5,0,11,0,11,0,11,0,11]
[null,"$75,000 to $99,999:",44,30,0,11,41,56,31,32,5,7,12,15,5,7,687,154,0,11,5,8,9,14,80,56,33,47,2,5,134,79,11,18,66,61,5,7,7,12,46,45,82,79,61,54,3,6,16,16,39,28,12,10,16,18]
[null,"Less than 20.0 percent",11,13,0,11,41,56,18,26,5,7,7,10,5,7,453,127,0,11,0,11,9,14,72,55,28,44,2,5,38,49,0,15,27,44,0,11,0,11,36,44,66,74,61,54,3,6,0,11,33,27,8,8,12,17]
[null,"20.0 to 24.9 percent",20,21,0,11,0,11,13,21,0,11,0,11,0,11,118,71,0,11,0,11,0,11,8,17,5,10,0,11,88,64,0,15,15,24,5,7,0,11,10,15,16,27,0,11,0,11,12,16,0,11,0,11,4,5]
[null,"25.0 to 29.9 percent",13,14,0,11,0,11,0,15,0,11,0,11,0,11,77,56,0,11,0,11,0,11,0,15,0,11,0,11,8,13,11,18,24,35,0,11,0,11,0,11,0,15,0,11,0,11,0,11,0,11,4,5,0,11]
[null,"30.0 to 34.9 percent",0,11,0,11,0,11,0,15,0,11,0,11,0,11,16,26,0,11,0,11,0,11,0,15,0,11,0,11,0,17,0,15,0,15,0,11,7,12,0,11,0,15,0,11,0,11,0,11,6,8,0,11,0,11]
[null,"35.0 to 39.9 percent",0,11,0,11,0,11,0,15,0,11,0,11,0,11,0,23,0,11,0,11,0,11,0,15,0,11,0,11,0,17,0,15,0,15,0,11,0,11,0,11,0,15,0,11,0,11,0,11,0,11,0,11,0,11]
[null,"40.0 to 49.9 percent",0,11,0,11,0,11,0,15,0,11,0,11,0,11,0,23,0,11,0,11,0,11,0,15,0,11,0,11,0,17,0,15,0,15,0,11,0,11,0,11,0,15,0,11,0,11,0,11,0,11,0,11,0,11]
[null,"50.0 percent or more",0,11,0,11,0,11,0,15,0,11,0,11,0,11,0,23,0,11,0,11,0,11,0,15,0,11,0,11,0,17,0,15,0,15,0,11,0,11,0,11,0,15,0,11,0,11,0,11,0,11,0,11,0,11]
[null,"Not computed",0,11,0,11,0,11,0,15,0,11,5,7,0,11,23,25,0,11,5,8,0,11,0,15,0,11,0,11,0,17,0,15,0,15,0,11,0,11,0,11,0,15,0,11,0,11,4,5,0,11,0,11,0,11]
[null,"$100,000 or more:",38,44,29,31,21,27,8,11,2,4,0,11,39,35,458,139,0,11,36,34,49,66,0,15,46,51,0,11,58,66,64,65,20,32,14,23,72,52,47,37,48,82,35,36,2,3,14,17,26,28,4,6,22,21]
[null,"Less than 20.0 percent",38,44,16,25,15,24,8,11,0,11,0,11,39,35,448,138,0,11,13,13,0,11,0,15,46,51,0,11,58,66,64,65,20,32,0,11,72,52,47,37,48,82,35,36,0,11,14,17,22,27,4,6,22,21]
[null,"20.0 to 24.9 percent",0,11,0,11,0,11,0,15,2,4,0,11,0,11,10,16,0,11,0,11,49,66,0,15,0,11,0,11,0,17,0,15,0,15,0,11,0,11,0,11,0,15,0,11,0,11,0,11,0,11,0,11,0,11]
[null,"25.0 to 29.9 percent",0,11,0,11,0,11,0,15,0,11,0,11,0,11,0,23,0,11,0,11,0,11,0,15,0,11,0,11,0,17,0,15,0,15,0,11,0,11,0,11,0,15,0,11,0,11,0,11,0,11,0,11,0,11]
[null,"30.0 to 34.9 percent",0,11,0,11,0,11,0,15,0,11,0,11,0,11,0,23,0,11,0,11,0,11,0,15,0,11,0,11,0,17,0,15,0,15,0,11,0,11,0,11,0,15,0,11,0,11,0,11,0,11,0,11,0,11]
[null,"35.0 to 39.9 percent",0,11,0,11,0,11,0,15,0,11,0,11,0,11,0,23,0,11,0,11,0,11,0,15,0,11,0,11,0,17,0,15,0,15,0,11,0,11,0,11,0,15,0,11,0,11,0,11,0,11,0,11,0,11]
[null,"40.0 to 49.9 percent",0,11,0,11,0,11,0,15,0,11,0,11,0,11,0,23,0,11,0,11,0,11,0,15,0,11,0,11,0,17,0,15,0,15,0,11,0,11,0,11,0,15,0,11,0,11,0,11,0,11,0,11,0,11]
[null,"50.0 percent or more",0,11,0,11,0,11,0,15,0,11,0,11,0,11,0,23,0,11,0,11,0,11,0,15,0,11,0,11,0,17,0,15,0,15,0,11,0,11,0,11,0,15,0,11,0,11,0,11,0,11,0,11,0,11]
[null,"Not computed",0,11,13,19,6,11,0,15,0,11,0,11,0,11,0,23,0,11,23,32,0,11,0,15,0,11,0,11,0,17,0,15,0,15,14,23,0,11,0,11,0,15,0,11,2,3,0,11,4,7,0,11,0,11]
[]
[]
[]
[]
[]
[]
[]
[]
[]
[]
[]
[]
[]
[]
[]
[null,"Calculated B25074. HOUSEHOLD INCOME BY GROSS RENT AS A PERCENTAGE OF HOUSEHOLD INCOME IN THE PAST 12 MONTHS"]
[null,"Universe:  RENTER-OCCUPIED HOUSING UNITS"]
[null,"Data Set: 2010-2014 American Community Survey 5-Year Estimates"]
[]
[null,null,"Allenstown",null,"Andover",null,"Boscawen",null,"Bow",null,"Bradford",null,"Canterbury",null,"Chichester",null,"Concord",null,"Danbury",null,"Dunbarton",null,"Epsom",null,"Franklin",null,"Henniker",null,"Hill",null,"Hooksett",null,"Hopkinton",null,"Loudon",null,"Newbury",null,"New London",null,"Northfield",null,"Pembroke",null,"Pittsfield",null,"Salisbury",null,"Sutton",null,"Warner",null,"Webster",null,"Wilmot"]
[null,null,"Estimate","Margin Of Error","Estimate","Margin Of Error","Estimate","Margin Of Error","Estimate","Margin Of Error","Estimate","Margin Of Error","Estimate","Margin Of Error","Estimate","Margin Of Error","Estimate","Margin Of Error","Estimate","Margin Of Error","Estimate","Margin Of Error","Estimate","Margin Of Error","Estimate","Margin Of Error","Estimate","Margin Of Error","Estimate","Margin Of Error","Estimate","Margin Of Error","Estimate","Margin Of Error","Estimate","Margin Of Error","Estimate","Margin Of Error","Estimate","Margin Of Error","Estimate","Margin Of Error","Estimate","Margin Of Error","Estimate","Margin Of Error","Estimate","Margin Of Error","Estimate","Margin Of Error","Estimate","Margin Of Error","Estimate","Margin Of Error","Estimate","Margin Of Error"]
[null,"Total:",{"$f":"C174","v":535},128,136,60,386,104,317,80,79,33,40,21,98,50,7765,311,95,43,136,55,286,108,1364,180,527,116,32,23,743,144,276,113,320,119,40,29,369,114,416,87,801,168,624,113,41,25,92,38,252,84,97,46,110,42]
[null,"Less than $10,000:",51,75,4,7,41,31,14,21,13,15,0,11,0,11,790,174,6,7,5,8,20,23,168,73,43,43,0,11,27,35,0,15,27,30,0,11,25,25,11,16,105,85,172,84,0,11,9,14,27,36,0,11,0,11]
[null,"Less than 30.0 percent",{"$f":"C176+C177+C178","v":0},{"$f":"SQRT((D176^2)+(D177^2)+(D178^2))","v":19.05255888325765},{"$f":"E176+E177+E178","v":0},{"$f":"SQRT((F176^2)+(F177^2)+(F178^2))","v":19.05255888325765},{"$f":"G176+G177+G178","v":0},{"$f":"SQRT((H176^2)+(H177^2)+(H178^2))","v":19.05255888325765},{"$f":"I176+I177+I178","v":0},{"$f":"SQRT((J176^2)+(J177^2)+(J178^2))","v":25.98076211353316},{"$f":"K176+K177+K178","v":0},{"$f":"SQRT((L176^2)+(L177^2)+(L178^2))","v":19.05255888325765},{"$f":"M176+M177+M178","v":0},{"$f":"SQRT((N176^2)+(N177^2)+(N178^2))","v":19.05255888325765},{"$f":"O176+O177+O178","v":0},{"$f":"SQRT((P176^2)+(P177^2)+(P178^2))","v":19.05255888325765},{"$f":"Q176+Q177+Q178","v":72},{"$f":"SQRT((R176^2)+(R177^2)+(R178^2))","v":44.226688774991963},{"$f":"S176+S177+S178","v":0},{"$f":"SQRT((T176^2)+(T177^2)+(T178^2))","v":19.05255888325765},{"$f":"U176+U177+U178","v":0},{"$f":"SQRT((V176^2)+(V177^2)+(V178^2))","v":19.05255888325765},{"$f":"W176+W177+W178","v":0},{"$f":"SQRT((X176^2)+(X177^2)+(X178^2))","v":19.05255888325765},{"$f":"Y176+Y177+Y178","v":32},{"$f":"SQRT((Z176^2)+(Z177^2)+(Z178^2))","v":34.08812109811862},{"$f":"AA176+AA177+AA178","v":0},{"$f":"SQRT((AB176^2)+(AB177^2)+(AB178^2))","v":19.05255888325765},{"$f":"AC176+AC177+AC178","v":0},{"$f":"SQRT((AD176^2)+(AD177^2)+(AD178^2))","v":19.05255888325765},{"$f":"AE176+AE177+AE178","v":0},{"$f":"SQRT((AF176^2)+(AF177^2)+(AF178^2))","v":29.444863728670914},{"$f":"AG176+AG177+AG178","v":0},{"$f":"SQRT((AH176^2)+(AH177^2)+(AH178^2))","v":25.98076211353316},{"$f":"AI176+AI177+AI178","v":0},{"$f":"SQRT((AJ176^2)+(AJ177^2)+(AJ178^2))","v":25.98076211353316},{"$f":"AK176+AK177+AK178","v":0},{"$f":"SQRT((AL176^2)+(AL177^2)+(AL178^2))","v":19.05255888325765},{"$f":"AM176+AM177+AM178","v":0},{"$f":"SQRT((AN176^2)+(AN177^2)+(AN178^2))","v":19.05255888325765},{"$f":"AO176+AO177+AO178","v":0},{"$f":"SQRT((AP176^2)+(AP177^2)+(AP178^2))","v":19.05255888325765},{"$f":"AQ176+AQ177+AQ178","v":0},{"$f":"SQRT((AR176^2)+(AR177^2)+(AR178^2))","v":25.98076211353316},{"$f":"AS176+AS177+AS178","v":26},{"$f":"SQRT((AT176^2)+(AT177^2)+(AT178^2))","v":43.852023898561399},{"$f":"AU176+AU177+AU178","v":0},{"$f":"SQRT((AV176^2)+(AV177^2)+(AV178^2))","v":19.05255888325765},{"$f":"AW176+AW177+AW178","v":0},{"$f":"SQRT((AX176^2)+(AX177^2)+(AX178^2))","v":19.05255888325765},{"$f":"AY176+AY177+AY178","v":0},{"$f":"SQRT((AZ176^2)+(AZ177^2)+(AZ178^2))","v":19.05255888325765},{"$f":"BA176+BA177+BA178","v":0},{"$f":"SQRT((BB176^2)+(BB177^2)+(BB178^2))","v":19.05255888325765},{"$f":"BC176+BC177+BC178","v":0},{"$f":"SQRT((BD176^2)+(BD177^2)+(BD178^2))","v":19.05255888325765}]
[null,"More than 30.0 percent",{"$f":"C179+C180+C181+C182","v":0},{"$f":"SQRT((D179^2)+(D180^2)+(D181^2)+(D182^2))","v":22},{"$f":"E179+E180+E181+E182","v":0},{"$f":"SQRT((F179^2)+(F180^2)+(F181^2)+(F182^2))","v":22},{"$f":"G179+G180+G181+G182","v":34},{"$f":"SQRT((H179^2)+(H180^2)+(H181^2)+(H182^2))","v":33.867388443752198},{"$f":"I179+I180+I181+I182","v":14},{"$f":"SQRT((J179^2)+(J180^2)+(J181^2)+(J182^2))","v":33.406586176980134},{"$f":"K179+K180+K181+K182","v":13},{"$f":"SQRT((L179^2)+(L180^2)+(L181^2)+(L182^2))","v":24.248711305964282},{"$f":"M179+M180+M181+M182","v":0},{"$f":"SQRT((N179^2)+(N180^2)+(N181^2)+(N182^2))","v":22},{"$f":"O179+O180+O181+O182","v":0},{"$f":"SQRT((P179^2)+(P180^2)+(P181^2)+(P182^2))","v":22},{"$f":"Q179+Q180+Q181+Q182","v":589},{"$f":"SQRT((R179^2)+(R180^2)+(R181^2)+(R182^2))","v":158.64110438344787},{"$f":"S179+S180+S181+S182","v":3},{"$f":"SQRT((T179^2)+(T180^2)+(T181^2)+(T182^2))","v":19.697715603592208},{"$f":"U179+U180+U181+U182","v":5},{"$f":"SQRT((V179^2)+(V180^2)+(V181^2)+(V182^2))","v":20.663978319771825},{"$f":"W179+W180+W181+W182","v":20},{"$f":"SQRT((X179^2)+(X180^2)+(X181^2)+(X182^2))","v":29.866369046136157},{"$f":"Y179+Y180+Y181+Y182","v":108},{"$f":"SQRT((Z179^2)+(Z180^2)+(Z181^2)+(Z182^2))","v":57.157676649772952},{"$f":"AA179+AA180+AA181+AA182","v":43},{"$f":"SQRT((AB179^2)+(AB180^2)+(AB181^2)+(AB182^2))","v":45.803929962395145},{"$f":"AC179+AC180+AC181+AC182","v":0},{"$f":"SQRT((AD179^2)+(AD180^2)+(AD181^2)+(AD182^2))","v":22},{"$f":"AE179+AE180+AE181+AE182","v":27},{"$f":"SQRT((AF179^2)+(AF180^2)+(AF181^2)+(AF182^2))","v":45.738386504117088},{"$f":"AG179+AG180+AG181+AG182","v":0},{"$f":"SQRT((AH179^2)+(AH180^2)+(AH181^2)+(AH182^2))","v":30},{"$f":"AI179+AI180+AI181+AI182","v":12},{"$f":"SQRT((AJ179^2)+(AJ180^2)+(AJ181^2)+(AJ182^2))","v":32.186953878862163},{"$f":"AK179+AK180+AK181+AK182","v":0},{"$f":"SQRT((AL179^2)+(AL180^2)+(AL181^2)+(AL182^2))","v":22},{"$f":"AM179+AM180+AM181+AM182","v":25},{"$f":"SQRT((AN179^2)+(AN180^2)+(AN181^2)+(AN182^2))","v":28.757607689096812},{"$f":"AO179+AO180+AO181+AO182","v":11},{"$f":"SQRT((AP179^2)+(AP180^2)+(AP181^2)+(AP182^2))","v":24.879710609249457},{"$f":"AQ179+AQ180+AQ181+AQ182","v":105},{"$f":"SQRT((AR179^2)+(AR180^2)+(AR181^2)+(AR182^2))","v":88.881944173155887},{"$f":"AS179+AS180+AS181+AS182","v":146},{"$f":"SQRT((AT179^2)+(AT180^2)+(AT181^2)+(AT182^2))","v":82.601452771727935},{"$f":"AU179+AU180+AU181+AU182","v":0},{"$f":"SQRT((AV179^2)+(AV180^2)+(AV181^2)+(AV182^2))","v":22},{"$f":"AW179+AW180+AW181+AW182","v":0},{"$f":"SQRT((AX179^2)+(AX180^2)+(AX181^2)+(AX182^2))","v":22},{"$f":"AY179+AY180+AY181+AY182","v":27},{"$f":"SQRT((AZ179^2)+(AZ180^2)+(AZ181^2)+(AZ182^2))","v":40.730823708832602},{"$f":"BA179+BA180+BA181+BA182","v":0},{"$f":"SQRT((BB179^2)+(BB180^2)+(BB181^2)+(BB182^2))","v":22},{"$f":"BC179+BC180+BC181+BC182","v":0},{"$f":"SQRT((BD179^2)+(BD180^2)+(BD181^2)+(BD182^2))","v":22}]
[null,"Less Than 35% of HH Income",{"$f":"C176+C177+C178+C179","v":0},{"$f":"SQRT((D176^2)+(D177^2)+(D178^2)+(D179^2))","v":22},{"$f":"E176+E177+E178+E179","v":0},{"$f":"SQRT((F176^2)+(F177^2)+(F178^2)+(F179^2))","v":22},{"$f":"G176+G177+G178+G179","v":0},{"$f":"SQRT((H176^2)+(H177^2)+(H178^2)+(H179^2))","v":22},{"$f":"I176+I177+I178+I179","v":0},{"$f":"SQRT((J176^2)+(J177^2)+(J178^2)+(J179^2))","v":30},{"$f":"K176+K177+K178+K179","v":0},{"$f":"SQRT((L176^2)+(L177^2)+(L178^2)+(L179^2))","v":22},{"$f":"M176+M177+M178+M179","v":0},{"$f":"SQRT((N176^2)+(N177^2)+(N178^2)+(N179^2))","v":22},{"$f":"O176+O177+O178+O179","v":0},{"$f":"SQRT((P176^2)+(P177^2)+(P178^2)+(P179^2))","v":22},{"$f":"Q176+Q177+Q178+Q179","v":116},{"$f":"SQRT((R176^2)+(R177^2)+(R178^2)+(R179^2))","v":61.684682053164543},{"$f":"S176+S177+S178+S179","v":0},{"$f":"SQRT((T176^2)+(T177^2)+(T178^2)+(T179^2))","v":22},{"$f":"U176+U177+U178+U179","v":0},{"$f":"SQRT((V176^2)+(V177^2)+(V178^2)+(V179^2))","v":22},{"$f":"W176+W177+W178+W179","v":0},{"$f":"SQRT((X176^2)+(X177^2)+(X178^2)+(X179^2))","v":22},{"$f":"Y176+Y177+Y178+Y179","v":50},{"$f":"SQRT((Z176^2)+(Z177^2)+(Z178^2)+(Z179^2))","v":40.037482438335203},{"$f":"AA176+AA177+AA178+AA179","v":10},{"$f":"SQRT((AB176^2)+(AB177^2)+(AB178^2)+(AB179^2))","v":24.879710609249457},{"$f":"AC176+AC177+AC178+AC179","v":0},{"$f":"SQRT((AD176^2)+(AD177^2)+(AD178^2)+(AD179^2))","v":22},{"$f":"AE176+AE177+AE178+AE179","v":0},{"$f":"SQRT((AF176^2)+(AF177^2)+(AF178^2)+(AF179^2))","v":34},{"$f":"AG176+AG177+AG178+AG179","v":0},{"$f":"SQRT((AH176^2)+(AH177^2)+(AH178^2)+(AH179^2))","v":30},{"$f":"AI176+AI177+AI178+AI179","v":0},{"$f":"SQRT((AJ176^2)+(AJ177^2)+(AJ178^2)+(AJ179^2))","v":30},{"$f":"AK176+AK177+AK178+AK179","v":0},{"$f":"SQRT((AL176^2)+(AL177^2)+(AL178^2)+(AL179^2))","v":22},{"$f":"AM176+AM177+AM178+AM179","v":8},{"$f":"SQRT((AN176^2)+(AN177^2)+(AN178^2)+(AN179^2))","v":22.516660498395403},{"$f":"AO176+AO177+AO178+AO179","v":0},{"$f":"SQRT((AP176^2)+(AP177^2)+(AP178^2)+(AP179^2))","v":22},{"$f":"AQ176+AQ177+AQ178+AQ179","v":0},{"$f":"SQRT((AR176^2)+(AR177^2)+(AR178^2)+(AR179^2))","v":30},{"$f":"AS176+AS177+AS178+AS179","v":26},{"$f":"SQRT((AT176^2)+(AT177^2)+(AT178^2)+(AT179^2))","v":45.210618221829257},{"$f":"AU176+AU177+AU178+AU179","v":0},{"$f":"SQRT((AV176^2)+(AV177^2)+(AV178^2)+(AV179^2))","v":22},{"$f":"AW176+AW177+AW178+AW179","v":0},{"$f":"SQRT((AX176^2)+(AX177^2)+(AX178^2)+(AX179^2))","v":22},{"$f":"AY176+AY177+AY178+AY179","v":0},{"$f":"SQRT((AZ176^2)+(AZ177^2)+(AZ178^2)+(AZ179^2))","v":22},{"$f":"BA176+BA177+BA178+BA179","v":0},{"$f":"SQRT((BB176^2)+(BB177^2)+(BB178^2)+(BB179^2))","v":22},{"$f":"BC176+BC177+BC178+BC179","v":0},{"$f":"SQRT((BD176^2)+(BD177^2)+(BD178^2)+(BD179^2))","v":22}]
[null,"35.0 percent or more",{"$f":"C180+C181++C182","v":0},{"$f":"SQRT((D180^2)+(D181^2)+(D182^2))","v":19.05255888325765},{"$f":"E180+E181++E182","v":0},{"$f":"SQRT((F180^2)+(F181^2)+(F182^2))","v":19.05255888325765},{"$f":"G180+G181++G182","v":34},{"$f":"SQRT((H180^2)+(H181^2)+(H182^2))","v":32.03123475609393},{"$f":"I180+I181++I182","v":14},{"$f":"SQRT((J180^2)+(J181^2)+(J182^2))","v":29.8496231131986},{"$f":"K180+K181++K182","v":13},{"$f":"SQRT((L180^2)+(L181^2)+(L182^2))","v":21.61018278497431},{"$f":"M180+M181++M182","v":0},{"$f":"SQRT((N180^2)+(N181^2)+(N182^2))","v":19.05255888325765},{"$f":"O180+O181++O182","v":0},{"$f":"SQRT((P180^2)+(P181^2)+(P182^2))","v":19.05255888325765},{"$f":"Q180+Q181++Q182","v":545},{"$f":"SQRT((R180^2)+(R181^2)+(R182^2))","v":152.70232480221119},{"$f":"S180+S181++S182","v":3},{"$f":"SQRT((T180^2)+(T181^2)+(T182^2))","v":16.340134638368191},{"$f":"U180+U181++U182","v":5},{"$f":"SQRT((V180^2)+(V181^2)+(V182^2))","v":17.4928556845359},{"$f":"W180+W181++W182","v":20},{"$f":"SQRT((X180^2)+(X181^2)+(X182^2))","v":27.766886753829642},{"$f":"Y180+Y181++Y182","v":90},{"$f":"SQRT((Z180^2)+(Z181^2)+(Z182^2))","v":53.160135440008048},{"$f":"AA180+AA181++AA182","v":33},{"$f":"SQRT((AB180^2)+(AB181^2)+(AB182^2))","v":42.918527467749868},{"$f":"AC180+AC181++AC182","v":0},{"$f":"SQRT((AD180^2)+(AD181^2)+(AD182^2))","v":19.05255888325765},{"$f":"AE180+AE181++AE182","v":27},{"$f":"SQRT((AF180^2)+(AF181^2)+(AF182^2))","v":42.461747491124292},{"$f":"AG180+AG181++AG182","v":0},{"$f":"SQRT((AH180^2)+(AH181^2)+(AH182^2))","v":25.98076211353316},{"$f":"AI180+AI181++AI182","v":12},{"$f":"SQRT((AJ180^2)+(AJ181^2)+(AJ182^2))","v":28.478061731796284},{"$f":"AK180+AK181++AK182","v":0},{"$f":"SQRT((AL180^2)+(AL181^2)+(AL182^2))","v":19.05255888325765},{"$f":"AM180+AM181++AM182","v":17},{"$f":"SQRT((AN180^2)+(AN181^2)+(AN182^2))","v":26.134268690743959},{"$f":"AO180+AO181++AO182","v":11},{"$f":"SQRT((AP180^2)+(AP181^2)+(AP182^2))","v":22.315913604421397},{"$f":"AQ180+AQ181++AQ182","v":105},{"$f":"SQRT((AR180^2)+(AR181^2)+(AR182^2))","v":87.607077339676152},{"$f":"AS180+AS181++AS182","v":146},{"$f":"SQRT((AT180^2)+(AT181^2)+(AT182^2))","v":81.865743751583906},{"$f":"AU180+AU181++AU182","v":0},{"$f":"SQRT((AV180^2)+(AV181^2)+(AV182^2))","v":19.05255888325765},{"$f":"AW180+AW181++AW182","v":0},{"$f":"SQRT((AX180^2)+(AX181^2)+(AX182^2))","v":19.05255888325765},{"$f":"AY180+AY181++AY182","v":27},{"$f":"SQRT((AZ180^2)+(AZ181^2)+(AZ182^2))","v":39.217343102255157},{"$f":"BA180+BA181++BA182","v":0},{"$f":"SQRT((BB180^2)+(BB181^2)+(BB182^2))","v":19.05255888325765},{"$f":"BC180+BC181++BC182","v":0},{"$f":"SQRT((BD180^2)+(BD181^2)+(BD182^2))","v":19.05255888325765}]
[null,"50.0 percent or more",{"$f":"C182","v":0},11,0,11,34,28,14,21,13,15,0,11,0,11,534,150,3,5,5,8,20,23,77,45,33,40,0,11,27,35,0,15,12,19,0,11,17,21,11,16,105,85,120,70,0,11,0,11,27,36,0,11,0,11]
[null,"Not Computed",51,75,4,7,7,11,0,15,0,11,0,11,0,11,129,78,3,5,0,11,0,11,28,33,0,11,0,11,0,17,0,15,15,23,0,11,0,11,0,11,0,15,0,11,0,11,9,14,0,11,0,11,0,11]
[null,"$10,000 to $19,999:",81,67,32,23,103,66,81,58,12,10,28,13,0,11,1206,216,3,4,0,11,66,57,410,134,173,77,3,4,133,67,0,15,53,45,0,11,96,65,57,42,167,102,114,69,13,16,0,11,45,35,30,28,7,8]
[null,"Less than 30.0 percent",{"$f":"C185+C186+C187","v":18},{"$f":"SQRT((D185^2)+(D186^2)+(D187^2))","v":25.337718918639855},{"$f":"E185+E186+E187","v":0},{"$f":"SQRT((F185^2)+(F186^2)+(F187^2))","v":19.05255888325765},{"$f":"G185+G186+G187","v":9},{"$f":"SQRT((H185^2)+(H186^2)+(H187^2))","v":20.928449536456348},{"$f":"I185+I186+I187","v":11},{"$f":"SQRT((J185^2)+(J186^2)+(J187^2))","v":27.820855486487112},{"$f":"K185+K186+K187","v":0},{"$f":"SQRT((L185^2)+(L186^2)+(L187^2))","v":19.05255888325765},{"$f":"M185+M186+M187","v":18},{"$f":"SQRT((N185^2)+(N186^2)+(N187^2))","v":17},{"$f":"O185+O186+O187","v":0},{"$f":"SQRT((P185^2)+(P186^2)+(P187^2))","v":19.05255888325765},{"$f":"Q185+Q186+Q187","v":299},{"$f":"SQRT((R185^2)+(R186^2)+(R187^2))","v":107.19608201795437},{"$f":"S185+S186+S187","v":0},{"$f":"SQRT((T185^2)+(T186^2)+(T187^2))","v":19.05255888325765},{"$f":"U185+U186+U187","v":0},{"$f":"SQRT((V185^2)+(V186^2)+(V187^2))","v":19.05255888325765},{"$f":"W185+W186+W187","v":0},{"$f":"SQRT((X185^2)+(X186^2)+(X187^2))","v":19.05255888325765},{"$f":"Y185+Y186+Y187","v":30},{"$f":"SQRT((Z185^2)+(Z186^2)+(Z187^2))","v":33.120990323358392},{"$f":"AA185+AA186+AA187","v":74},{"$f":"SQRT((AB185^2)+(AB186^2)+(AB187^2))","v":67.372101050805895},{"$f":"AC185+AC186+AC187","v":3},{"$f":"SQRT((AD185^2)+(AD186^2)+(AD187^2))","v":16.06237840420901},{"$f":"AE185+AE186+AE187","v":35},{"$f":"SQRT((AF185^2)+(AF186^2)+(AF187^2))","v":42.591078878093711},{"$f":"AG185+AG186+AG187","v":0},{"$f":"SQRT((AH185^2)+(AH186^2)+(AH187^2))","v":25.98076211353316},{"$f":"AI185+AI186+AI187","v":6},{"$f":"SQRT((AJ185^2)+(AJ186^2)+(AJ187^2))","v":23.895606290697042},{"$f":"AK185+AK186+AK187","v":0},{"$f":"SQRT((AL185^2)+(AL186^2)+(AL187^2))","v":19.05255888325765},{"$f":"AM185+AM186+AM187","v":27},{"$f":"SQRT((AN185^2)+(AN186^2)+(AN187^2))","v":35.014282800023196},{"$f":"AO185+AO186+AO187","v":0},{"$f":"SQRT((AP185^2)+(AP186^2)+(AP187^2))","v":19.05255888325765},{"$f":"AQ185+AQ186+AQ187","v":31},{"$f":"SQRT((AR185^2)+(AR186^2)+(AR187^2))","v":38.288379438153292},{"$f":"AS185+AS186+AS187","v":27},{"$f":"SQRT((AT185^2)+(AT186^2)+(AT187^2))","v":27.531799795872409},{"$f":"AU185+AU186+AU187","v":0},{"$f":"SQRT((AV185^2)+(AV186^2)+(AV187^2))","v":19.05255888325765},{"$f":"AW185+AW186+AW187","v":0},{"$f":"SQRT((AX185^2)+(AX186^2)+(AX187^2))","v":19.05255888325765},{"$f":"AY185+AY186+AY187","v":21},{"$f":"SQRT((AZ185^2)+(AZ186^2)+(AZ187^2))","v":24.372115213907882},{"$f":"BA185+BA186+BA187","v":0},{"$f":"SQRT((BB185^2)+(BB186^2)+(BB187^2))","v":19.05255888325765},{"$f":"BC185+BC186+BC187","v":0},{"$f":"SQRT((BD185^2)+(BD186^2)+(BD187^2))","v":19.05255888325765}]
[null,"More than 30.0 percent",{"$f":"C188+C189+C190+C191","v":63},{"$f":"SQRT((D188^2)+(D189^2)+(D190^2)+(D191^2))","v":63.906181234681831},{"$f":"E188+E189+E190+E191","v":27},{"$f":"SQRT((F188^2)+(F189^2)+(F190^2)+(F191^2))","v":29.103264421710495},{"$f":"G188+G189+G190+G191","v":94},{"$f":"SQRT((H188^2)+(H189^2)+(H190^2)+(H191^2))","v":67.57958271549181},{"$f":"I188+I189+I190+I191","v":70},{"$f":"SQRT((J188^2)+(J189^2)+(J190^2)+(J191^2))","v":58.129166517334482},{"$f":"K188+K189+K190+K191","v":5},{"$f":"SQRT((L188^2)+(L189^2)+(L190^2)+(L191^2))","v":20.297783130184438},{"$f":"M188+M189+M190+M191","v":10},{"$f":"SQRT((N188^2)+(N189^2)+(N190^2)+(N191^2))","v":21.517434791350013},{"$f":"O188+O189+O190+O191","v":0},{"$f":"SQRT((P188^2)+(P189^2)+(P190^2)+(P191^2))","v":22},{"$f":"Q188+Q189+Q190+Q191","v":885},{"$f":"SQRT((R188^2)+(R189^2)+(R190^2)+(R191^2))","v":189.274932307477},{"$f":"S188+S189+S190+S191","v":0},{"$f":"SQRT((T188^2)+(T189^2)+(T190^2)+(T191^2))","v":22},{"$f":"U188+U189+U190+U191","v":0},{"$f":"SQRT((V188^2)+(V189^2)+(V190^2)+(V191^2))","v":22},{"$f":"W188+W189+W190+W191","v":41},{"$f":"SQRT((X188^2)+(X189^2)+(X190^2)+(X191^2))","v":46.032597145935618},{"$f":"Y188+Y189+Y190+Y191","v":312},{"$f":"SQRT((Z188^2)+(Z189^2)+(Z190^2)+(Z191^2))","v":136.90142438996023},{"$f":"AA188+AA189+AA190+AA191","v":74},{"$f":"SQRT((AB188^2)+(AB189^2)+(AB190^2)+(AB191^2))","v":67.904344485459845},{"$f":"AC188+AC189+AC190+AC191","v":0},{"$f":"SQRT((AD188^2)+(AD189^2)+(AD190^2)+(AD191^2))","v":22},{"$f":"AE188+AE189+AE190+AE191","v":77},{"$f":"SQRT((AF188^2)+(AF189^2)+(AF190^2)+(AF191^2))","v":52.019227214559812},{"$f":"AG188+AG189+AG190+AG191","v":0},{"$f":"SQRT((AH188^2)+(AH189^2)+(AH190^2)+(AH191^2))","v":30},{"$f":"AI188+AI189+AI190+AI191","v":47},{"$f":"SQRT((AJ188^2)+(AJ189^2)+(AJ190^2)+(AJ191^2))","v":50.299105359837164},{"$f":"AK188+AK189+AK190+AK191","v":0},{"$f":"SQRT((AL188^2)+(AL189^2)+(AL190^2)+(AL191^2))","v":22},{"$f":"AM188+AM189+AM190+AM191","v":45},{"$f":"SQRT((AN188^2)+(AN189^2)+(AN190^2)+(AN191^2))","v":49.789557138018409},{"$f":"AO188+AO189+AO190+AO191","v":57},{"$f":"SQRT((AP188^2)+(AP189^2)+(AP190^2)+(AP191^2))","v":46.119410230400824},{"$f":"AQ188+AQ189+AQ190+AQ191","v":136},{"$f":"SQRT((AR188^2)+(AR189^2)+(AR190^2)+(AR191^2))","v":98.610344284968406},{"$f":"AS188+AS189+AS190+AS191","v":60},{"$f":"SQRT((AT188^2)+(AT189^2)+(AT190^2)+(AT191^2))","v":58.403767001795352},{"$f":"AU188+AU189+AU190+AU191","v":13},{"$f":"SQRT((AV188^2)+(AV189^2)+(AV190^2)+(AV191^2))","v":24.879710609249457},{"$f":"AW188+AW189+AW190+AW191","v":0},{"$f":"SQRT((AX188^2)+(AX189^2)+(AX190^2)+(AX191^2))","v":22},{"$f":"AY188+AY189+AY190+AY191","v":24},{"$f":"SQRT((AZ188^2)+(AZ189^2)+(AZ190^2)+(AZ191^2))","v":42.508822613664563},{"$f":"BA188+BA189+BA190+BA191","v":30},{"$f":"SQRT((BB188^2)+(BB189^2)+(BB190^2)+(BB191^2))","v":29.29163703175362},{"$f":"BC188+BC189+BC190+BC191","v":7},{"$f":"SQRT((BD188^2)+(BD189^2)+(BD190^2)+(BD191^2))","v":20.663978319771825}]
[null,"Less Than 35% of HH Income",{"$f":"C185+C186+C187+C188","v":18},{"$f":"SQRT((D185^2)+(D186^2)+(D187^2)+(D188^2))","v":27.622454633866266},{"$f":"E185+E186+E187+E188","v":0},{"$f":"SQRT((F185^2)+(F186^2)+(F187^2)+(F188^2))","v":22},{"$f":"G185+G186+G187+G188","v":9},{"$f":"SQRT((H185^2)+(H186^2)+(H187^2)+(H188^2))","v":23.643180835073778},{"$f":"I185+I186+I187+I188","v":11},{"$f":"SQRT((J185^2)+(J186^2)+(J187^2)+(J188^2))","v":31.606961258558215},{"$f":"K185+K186+K187+K188","v":5},{"$f":"SQRT((L185^2)+(L186^2)+(L187^2)+(L188^2))","v":20.297783130184438},{"$f":"M185+M186+M187+M188","v":18},{"$f":"SQRT((N185^2)+(N186^2)+(N187^2)+(N188^2))","v":20.248456731316587},{"$f":"O185+O186+O187+O188","v":0},{"$f":"SQRT((P185^2)+(P186^2)+(P187^2)+(P188^2))","v":22},{"$f":"Q185+Q186+Q187+Q188","v":319},{"$f":"SQRT((R185^2)+(R186^2)+(R187^2)+(R188^2))","v":108.69682608061746},{"$f":"S185+S186+S187+S188","v":0},{"$f":"SQRT((T185^2)+(T186^2)+(T187^2)+(T188^2))","v":22},{"$f":"U185+U186+U187+U188","v":0},{"$f":"SQRT((V185^2)+(V186^2)+(V187^2)+(V188^2))","v":22},{"$f":"W185+W186+W187+W188","v":9},{"$f":"SQRT((X185^2)+(X186^2)+(X187^2)+(X188^2))","v":23.643180835073778},{"$f":"Y185+Y186+Y187+Y188","v":69},{"$f":"SQRT((Z185^2)+(Z186^2)+(Z187^2)+(Z188^2))","v":50.408332644514239},{"$f":"AA185+AA186+AA187+AA188","v":81},{"$f":"SQRT((AB185^2)+(AB186^2)+(AB187^2)+(AB188^2))","v":68.432448443702498},{"$f":"AC185+AC186+AC187+AC188","v":3},{"$f":"SQRT((AD185^2)+(AD186^2)+(AD187^2)+(AD188^2))","v":19.467922333931785},{"$f":"AE185+AE186+AE187+AE188","v":44},{"$f":"SQRT((AF185^2)+(AF186^2)+(AF187^2)+(AF188^2))","v":44.83302354291979},{"$f":"AG185+AG186+AG187+AG188","v":0},{"$f":"SQRT((AH185^2)+(AH186^2)+(AH187^2)+(AH188^2))","v":30},{"$f":"AI185+AI186+AI187+AI188","v":6},{"$f":"SQRT((AJ185^2)+(AJ186^2)+(AJ187^2)+(AJ188^2))","v":28.21347195933177},{"$f":"AK185+AK186+AK187+AK188","v":0},{"$f":"SQRT((AL185^2)+(AL186^2)+(AL187^2)+(AL188^2))","v":22},{"$f":"AM185+AM186+AM187+AM188","v":27},{"$f":"SQRT((AN185^2)+(AN186^2)+(AN187^2)+(AN188^2))","v":36.701498607005135},{"$f":"AO185+AO186+AO187+AO188","v":0},{"$f":"SQRT((AP185^2)+(AP186^2)+(AP187^2)+(AP188^2))","v":22},{"$f":"AQ185+AQ186+AQ187+AQ188","v":31},{"$f":"SQRT((AR185^2)+(AR186^2)+(AR187^2)+(AR188^2))","v":41.121770389904178},{"$f":"AS185+AS186+AS187+AS188","v":27},{"$f":"SQRT((AT185^2)+(AT186^2)+(AT187^2)+(AT188^2))","v":29.647934160747187},{"$f":"AU185+AU186+AU187+AU188","v":0},{"$f":"SQRT((AV185^2)+(AV186^2)+(AV187^2)+(AV188^2))","v":22},{"$f":"AW185+AW186+AW187+AW188","v":0},{"$f":"SQRT((AX185^2)+(AX186^2)+(AX187^2)+(AX188^2))","v":22},{"$f":"AY185+AY186+AY187+AY188","v":21},{"$f":"SQRT((AZ185^2)+(AZ186^2)+(AZ187^2)+(AZ188^2))","v":26.739483914241877},{"$f":"BA185+BA186+BA187+BA188","v":10},{"$f":"SQRT((BB185^2)+(BB186^2)+(BB187^2)+(BB188^2))","v":24.248711305964282},{"$f":"BC185+BC186+BC187+BC188","v":0},{"$f":"SQRT((BD185^2)+(BD186^2)+(BD187^2)+(BD188^2))","v":22}]
[null,"35.0 percent or more",{"$f":"C189+C190++C191","v":63},{"$f":"SQRT((D189^2)+(D190^2)+(D191^2))","v":62.952362942148568},{"$f":"E189+E190++E191","v":27},{"$f":"SQRT((F189^2)+(F190^2)+(F191^2))","v":26.944387170614959},{"$f":"G189+G190++G191","v":94},{"$f":"SQRT((H189^2)+(H190^2)+(H191^2))","v":66.678332312678606},{"$f":"I189+I190++I191","v":70},{"$f":"SQRT((J189^2)+(J190^2)+(J191^2))","v":56.160484328395889},{"$f":"K189+K190++K191","v":0},{"$f":"SQRT((L189^2)+(L190^2)+(L191^2))","v":19.05255888325765},{"$f":"M189+M190++M191","v":10},{"$f":"SQRT((N189^2)+(N190^2)+(N191^2))","v":18.493242008906929},{"$f":"O189+O190++O191","v":0},{"$f":"SQRT((P189^2)+(P190^2)+(P191^2))","v":19.05255888325765},{"$f":"Q189+Q190++Q191","v":865},{"$f":"SQRT((R189^2)+(R190^2)+(R191^2))","v":188.41709051994195},{"$f":"S189+S190++S191","v":0},{"$f":"SQRT((T189^2)+(T190^2)+(T191^2))","v":19.05255888325765},{"$f":"U189+U190++U191","v":0},{"$f":"SQRT((V189^2)+(V190^2)+(V191^2))","v":19.05255888325765},{"$f":"W189+W190++W191","v":32},{"$f":"SQRT((X189^2)+(X190^2)+(X191^2))","v":43.852023898561399},{"$f":"Y189+Y190++Y191","v":273},{"$f":"SQRT((Z189^2)+(Z190^2)+(Z191^2))","v":131.52186130069785},{"$f":"AA189+AA190++AA191","v":67},{"$f":"SQRT((AB189^2)+(AB190^2)+(AB191^2))","v":66.83561924602779},{"$f":"AC189+AC190++AC191","v":0},{"$f":"SQRT((AD189^2)+(AD190^2)+(AD191^2))","v":19.05255888325765},{"$f":"AE189+AE190++AE191","v":68},{"$f":"SQRT((AF189^2)+(AF190^2)+(AF191^2))","v":50.099900199501398},{"$f":"AG189+AG190++AG191","v":0},{"$f":"SQRT((AH189^2)+(AH190^2)+(AH191^2))","v":25.98076211353316},{"$f":"AI189+AI190++AI191","v":47},{"$f":"SQRT((AJ189^2)+(AJ190^2)+(AJ191^2))","v":48.010415536631214},{"$f":"AK189+AK190++AK191","v":0},{"$f":"SQRT((AL189^2)+(AL190^2)+(AL191^2))","v":19.05255888325765},{"$f":"AM189+AM190++AM191","v":45},{"$f":"SQRT((AN189^2)+(AN190^2)+(AN191^2))","v":48.559242168715933},{"$f":"AO189+AO190++AO191","v":57},{"$f":"SQRT((AP189^2)+(AP190^2)+(AP191^2))","v":44.788391353117383},{"$f":"AQ189+AQ190++AQ191","v":136},{"$f":"SQRT((AR189^2)+(AR190^2)+(AR191^2))","v":97.462813421324952},{"$f":"AS189+AS190++AS191","v":60},{"$f":"SQRT((AT189^2)+(AT190^2)+(AT191^2))","v":57.358521598799946},{"$f":"AU189+AU190++AU191","v":13},{"$f":"SQRT((AV189^2)+(AV190^2)+(AV191^2))","v":22.315913604421397},{"$f":"AW189+AW190++AW191","v":0},{"$f":"SQRT((AX189^2)+(AX190^2)+(AX191^2))","v":19.05255888325765},{"$f":"AY189+AY190++AY191","v":24},{"$f":"SQRT((AZ189^2)+(AZ190^2)+(AZ191^2))","v":41.060930335295616},{"$f":"BA189+BA190++BA191","v":20},{"$f":"SQRT((BB189^2)+(BB190^2)+(BB191^2))","v":25.159491250818249},{"$f":"BC189+BC190++BC191","v":7},{"$f":"SQRT((BD189^2)+(BD190^2)+(BD191^2))","v":17.4928556845359}]
[null,"50.0 percent or more",{"$f":"C191","v":63},{"$f":"D191","v":61},{"$f":"E191","v":27},{"$f":"F191","v":22},{"$f":"G191","v":87},65,{"$f":"I191","v":70},52,{"$f":"K191","v":0},11,{"$f":"M191","v":10},10,{"$f":"O191","v":0},11,{"$f":"Q191","v":686},154,{"$f":"S191","v":0},11,{"$f":"U191","v":0},11,{"$f":"W191","v":32},41,{"$f":"Y191","v":211},116,{"$f":"AA191","v":67},65,{"$f":"AC191","v":0},11,{"$f":"AE191","v":59},45,{"$f":"AG191","v":0},15,{"$f":"AI191","v":24},28,{"$f":"AK191","v":0},11,{"$f":"AM191","v":45},46,{"$f":"AO191","v":57},42,{"$f":"AQ191","v":120},93,{"$f":"AS191","v":52},55,{"$f":"AU191","v":13},16,{"$f":"AW191","v":0},11,{"$f":"AY191","v":0},11,{"$f":"BA191","v":10},16,{"$f":"BC191","v":7},8]
[null,"Not Computed",{"$f":"C192","v":0},11,5,7,0,11,0,15,7,8,0,11,0,11,22,34,3,4,0,11,25,40,68,53,25,28,0,11,21,26,0,15,0,15,0,11,24,35,0,11,0,15,27,40,0,11,0,11,0,11,0,11,0,11]
[null,"$20,000 to $34,999:",202,101,37,29,115,66,59,36,29,24,0,11,25,26,1882,302,9,9,50,35,78,60,384,138,114,66,4,6,195,75,17,27,38,37,0,11,68,47,120,72,193,108,152,77,14,16,17,17,45,37,17,20,25,20]
[null,"Less than 30.0 percent",{"$f":"C194+C195+C196","v":67},{"$f":"SQRT((D194^2)+(D195^2)+(D196^2))","v":60.108235708594876},{"$f":"E194+E195+E196","v":0},{"$f":"SQRT((F194^2)+(F195^2)+(F196^2))","v":19.05255888325765},{"$f":"G194+G195+G196","v":0},{"$f":"SQRT((H194^2)+(H195^2)+(H196^2))","v":19.05255888325765},{"$f":"I194+I195+I196","v":0},{"$f":"SQRT((J194^2)+(J195^2)+(J196^2))","v":25.98076211353316},{"$f":"K194+K195+K196","v":3},{"$f":"SQRT((L194^2)+(L195^2)+(L196^2))","v":16.340134638368191},{"$f":"M194+M195+M196","v":0},{"$f":"SQRT((N194^2)+(N195^2)+(N196^2))","v":19.05255888325765},{"$f":"O194+O195+O196","v":0},{"$f":"SQRT((P194^2)+(P195^2)+(P196^2))","v":19.05255888325765},{"$f":"Q194+Q195+Q196","v":349},{"$f":"SQRT((R194^2)+(R195^2)+(R196^2))","v":132.46508974065583},{"$f":"S194+S195+S196","v":0},{"$f":"SQRT((T194^2)+(T195^2)+(T196^2))","v":19.05255888325765},{"$f":"U194+U195+U196","v":0},{"$f":"SQRT((V194^2)+(V195^2)+(V196^2))","v":19.05255888325765},{"$f":"W194+W195+W196","v":5},{"$f":"SQRT((X194^2)+(X195^2)+(X196^2))","v":17.4928556845359},{"$f":"Y194+Y195+Y196","v":57},{"$f":"SQRT((Z194^2)+(Z195^2)+(Z196^2))","v":49.658836071740545},{"$f":"AA194+AA195+AA196","v":13},{"$f":"SQRT((AB194^2)+(AB195^2)+(AB196^2))","v":19.104973174542799},{"$f":"AC194+AC195+AC196","v":0},{"$f":"SQRT((AD194^2)+(AD195^2)+(AD196^2))","v":19.05255888325765},{"$f":"AE194+AE195+AE196","v":40},{"$f":"SQRT((AF194^2)+(AF195^2)+(AF196^2))","v":43.46262762420146},{"$f":"AG194+AG195+AG196","v":17},{"$f":"SQRT((AH194^2)+(AH195^2)+(AH196^2))","v":34.336569426778794},{"$f":"AI194+AI195+AI196","v":0},{"$f":"SQRT((AJ194^2)+(AJ195^2)+(AJ196^2))","v":25.98076211353316},{"$f":"AK194+AK195+AK196","v":0},{"$f":"SQRT((AL194^2)+(AL195^2)+(AL196^2))","v":19.05255888325765},{"$f":"AM194+AM195+AM196","v":0},{"$f":"SQRT((AN194^2)+(AN195^2)+(AN196^2))","v":19.05255888325765},{"$f":"AO194+AO195+AO196","v":7},{"$f":"SQRT((AP194^2)+(AP195^2)+(AP196^2))","v":19.05255888325765},{"$f":"AQ194+AQ195+AQ196","v":69},{"$f":"SQRT((AR194^2)+(AR195^2)+(AR196^2))","v":64.023433210036458},{"$f":"AS194+AS195+AS196","v":63},{"$f":"SQRT((AT194^2)+(AT195^2)+(AT196^2))","v":45.552167895721496},{"$f":"AU194+AU195+AU196","v":0},{"$f":"SQRT((AV194^2)+(AV195^2)+(AV196^2))","v":19.05255888325765},{"$f":"AW194+AW195+AW196","v":3},{"$f":"SQRT((AX194^2)+(AX195^2)+(AX196^2))","v":16.673332000533065},{"$f":"AY194+AY195+AY196","v":10},{"$f":"SQRT((AZ194^2)+(AZ195^2)+(AZ196^2))","v":15.779733838059499},{"$f":"BA194+BA195+BA196","v":0},{"$f":"SQRT((BB194^2)+(BB195^2)+(BB196^2))","v":19.05255888325765},{"$f":"BC194+BC195+BC196","v":0},{"$f":"SQRT((BD194^2)+(BD195^2)+(BD196^2))","v":19.05255888325765}]
[null,"More than 30.0 percent",{"$f":"C197+C198+C199+C200","v":135},{"$f":"SQRT((D197^2)+(D198^2)+(D199^2)+(D200^2))","v":91.093358704133863},{"$f":"E197+E198+E199+E200","v":30},{"$f":"SQRT((F197^2)+(F198^2)+(F199^2)+(F200^2))","v":28.26658805020514},{"$f":"G197+G198+G199+G200","v":108},{"$f":"SQRT((H197^2)+(H198^2)+(H199^2)+(H200^2))","v":64.459289477933282},{"$f":"I197+I198+I199+I200","v":59},{"$f":"SQRT((J197^2)+(J198^2)+(J199^2)+(J200^2))","v":34.669871646719429},{"$f":"K197+K198+K199+K200","v":26},{"$f":"SQRT((L197^2)+(L198^2)+(L199^2)+(L200^2))","v":25.495097567963924},{"$f":"M197+M198+M199+M200","v":0},{"$f":"SQRT((N197^2)+(N198^2)+(N199^2)+(N200^2))","v":22},{"$f":"O197+O198+O199+O200","v":17},{"$f":"SQRT((P197^2)+(P198^2)+(P199^2)+(P200^2))","v":29.866369046136157},{"$f":"Q197+Q198+Q199+Q200","v":1511},{"$f":"SQRT((R197^2)+(R198^2)+(R199^2)+(R200^2))","v":271.71860444216918},{"$f":"S197+S198+S199+S200","v":6},{"$f":"SQRT((T197^2)+(T198^2)+(T199^2)+(T200^2))","v":21.071307505705477},{"$f":"U197+U198+U199+U200","v":45},{"$f":"SQRT((V197^2)+(V198^2)+(V199^2)+(V200^2))","v":35.594943461115371},{"$f":"W197+W198+W199+W200","v":73},{"$f":"SQRT((X197^2)+(X198^2)+(X199^2)+(X200^2))","v":58.634460857076192},{"$f":"Y197+Y198+Y199+Y200","v":312},{"$f":"SQRT((Z197^2)+(Z198^2)+(Z199^2)+(Z200^2))","v":128.47957036042735},{"$f":"AA197+AA198+AA199+AA200","v":101},{"$f":"SQRT((AB197^2)+(AB198^2)+(AB199^2)+(AB200^2))","v":67.424031324150292},{"$f":"AC197+AC198+AC199+AC200","v":4},{"$f":"SQRT((AD197^2)+(AD198^2)+(AD199^2)+(AD200^2))","v":19.974984355438178},{"$f":"AE197+AE198+AE199+AE200","v":143},{"$f":"SQRT((AF197^2)+(AF198^2)+(AF199^2)+(AF200^2))","v":72.47068372797375},{"$f":"AG197+AG198+AG199+AG200","v":0},{"$f":"SQRT((AH197^2)+(AH198^2)+(AH199^2)+(AH200^2))","v":30},{"$f":"AI197+AI198+AI199+AI200","v":38},{"$f":"SQRT((AJ197^2)+(AJ198^2)+(AJ199^2)+(AJ200^2))","v":43.162483709814474},{"$f":"AK197+AK198+AK199+AK200","v":0},{"$f":"SQRT((AL197^2)+(AL198^2)+(AL199^2)+(AL200^2))","v":22},{"$f":"AM197+AM198+AM199+AM200","v":59},{"$f":"SQRT((AN197^2)+(AN198^2)+(AN199^2)+(AN200^2))","v":49.101934788763671},{"$f":"AO197+AO198+AO199+AO200","v":113},{"$f":"SQRT((AP197^2)+(AP198^2)+(AP199^2)+(AP200^2))","v":72.020830320123352},{"$f":"AQ197+AQ198+AQ199+AQ200","v":105},{"$f":"SQRT((AR197^2)+(AR198^2)+(AR199^2)+(AR200^2))","v":96.384646080171919},{"$f":"AS197+AS198+AS199+AS200","v":89},{"$f":"SQRT((AT197^2)+(AT198^2)+(AT199^2)+(AT200^2))","v":65.76473218982953},{"$f":"AU197+AU198+AU199+AU200","v":14},{"$f":"SQRT((AV197^2)+(AV198^2)+(AV199^2)+(AV200^2))","v":24.879710609249457},{"$f":"AW197+AW198+AW199+AW200","v":10},{"$f":"SQRT((AX197^2)+(AX198^2)+(AX199^2)+(AX200^2))","v":24.248711305964282},{"$f":"AY197+AY198+AY199+AY200","v":35},{"$f":"SQRT((AZ197^2)+(AZ198^2)+(AZ199^2)+(AZ200^2))","v":35.057096285916209},{"$f":"BA197+BA198+BA199+BA200","v":17},{"$f":"SQRT((BB197^2)+(BB198^2)+(BB199^2)+(BB200^2))","v":25.278449319529077},{"$f":"BC197+BC198+BC199+BC200","v":22},{"$f":"SQRT((BD197^2)+(BD198^2)+(BD199^2)+(BD200^2))","v":27.622454633866266}]
[null,"Less Than 35% of HH Income",{"$f":"C194+C195+C196+C197","v":85},{"$f":"SQRT((D194^2)+(D195^2)+(D196^2)+(D197^2))","v":65.099923195039182},{"$f":"E194+E195+E196+E197","v":6},{"$f":"SQRT((F194^2)+(F195^2)+(F196^2)+(F197^2))","v":21.517434791350013},{"$f":"G194+G195+G196+G197","v":34},{"$f":"SQRT((H194^2)+(H195^2)+(H196^2)+(H197^2))","v":36.386810797320507},{"$f":"I194+I195+I196+I197","v":11},{"$f":"SQRT((J194^2)+(J195^2)+(J196^2)+(J197^2))","v":31.048349392520048},{"$f":"K194+K195+K196+K197","v":3},{"$f":"SQRT((L194^2)+(L195^2)+(L196^2)+(L197^2))","v":19.697715603592208},{"$f":"M194+M195+M196+M197","v":0},{"$f":"SQRT((N194^2)+(N195^2)+(N196^2)+(N197^2))","v":22},{"$f":"O194+O195+O196+O197","v":0},{"$f":"SQRT((P194^2)+(P195^2)+(P196^2)+(P197^2))","v":22},{"$f":"Q194+Q195+Q196+Q197","v":656},{"$f":"SQRT((R194^2)+(R195^2)+(R196^2)+(R197^2))","v":175.41949720598336},{"$f":"S194+S195+S196+S197","v":0},{"$f":"SQRT((T194^2)+(T195^2)+(T196^2)+(T197^2))","v":22},{"$f":"U194+U195+U196+U197","v":24},{"$f":"SQRT((V194^2)+(V195^2)+(V196^2)+(V197^2))","v":34.698703145794944},{"$f":"W194+W195+W196+W197","v":24},{"$f":"SQRT((X194^2)+(X195^2)+(X196^2)+(X197^2))","v":28.106938645110393},{"$f":"Y194+Y195+Y196+Y197","v":124},{"$f":"SQRT((Z194^2)+(Z195^2)+(Z196^2)+(Z197^2))","v":69.763887506359623},{"$f":"AA194+AA195+AA196+AA197","v":41},{"$f":"SQRT((AB194^2)+(AB195^2)+(AB196^2)+(AB197^2))","v":32.264531609803356},{"$f":"AC194+AC195+AC196+AC197","v":0},{"$f":"SQRT((AD194^2)+(AD195^2)+(AD196^2)+(AD197^2))","v":22},{"$f":"AE194+AE195+AE196+AE197","v":52},{"$f":"SQRT((AF194^2)+(AF195^2)+(AF196^2)+(AF197^2))","v":46.669047558312137},{"$f":"AG194+AG195+AG196+AG197","v":17},{"$f":"SQRT((AH194^2)+(AH195^2)+(AH196^2)+(AH197^2))","v":37.469987990390386},{"$f":"AI194+AI195+AI196+AI197","v":0},{"$f":"SQRT((AJ194^2)+(AJ195^2)+(AJ196^2)+(AJ197^2))","v":30},{"$f":"AK194+AK195+AK196+AK197","v":0},{"$f":"SQRT((AL194^2)+(AL195^2)+(AL196^2)+(AL197^2))","v":22},{"$f":"AM194+AM195+AM196+AM197","v":16},{"$f":"SQRT((AN194^2)+(AN195^2)+(AN196^2)+(AN197^2))","v":31.432467291003423},{"$f":"AO194+AO195+AO196+AO197","v":7},{"$f":"SQRT((AP194^2)+(AP195^2)+(AP196^2)+(AP197^2))","v":22},{"$f":"AQ194+AQ195+AQ196+AQ197","v":117},{"$f":"SQRT((AR194^2)+(AR195^2)+(AR196^2)+(AR197^2))","v":97.851928953904633},{"$f":"AS194+AS195+AS196+AS197","v":107},{"$f":"SQRT((AT194^2)+(AT195^2)+(AT196^2)+(AT197^2))","v":61.959664298638678},{"$f":"AU194+AU195+AU196+AU197","v":0},{"$f":"SQRT((AV194^2)+(AV195^2)+(AV196^2)+(AV197^2))","v":22},{"$f":"AW194+AW195+AW196+AW197","v":3},{"$f":"SQRT((AX194^2)+(AX195^2)+(AX196^2)+(AX197^2))","v":19.974984355438178},{"$f":"AY194+AY195+AY196+AY197","v":29},{"$f":"SQRT((AZ194^2)+(AZ195^2)+(AZ196^2)+(AZ197^2))","v":33.896902513356586},{"$f":"BA194+BA195+BA196+BA197","v":0},{"$f":"SQRT((BB194^2)+(BB195^2)+(BB196^2)+(BB197^2))","v":22},{"$f":"BC194+BC195+BC196+BC197","v":0},{"$f":"SQRT((BD194^2)+(BD195^2)+(BD196^2)+(BD197^2))","v":22}]
[null,"35.0 percent or more",{"$f":"C198+C199+C200","v":117},{"$f":"SQRT((D198^2)+(D199^2)+(D200^2))","v":87.595661993046207},{"$f":"E198+E199+E200","v":24},{"$f":"SQRT((F198^2)+(F199^2)+(F200^2))","v":26.438608132804571},{"$f":"G198+G199+G200","v":74},{"$f":"SQRT((H198^2)+(H199^2)+(H200^2))","v":56.515484603779164},{"$f":"I198+I199+I200","v":48},{"$f":"SQRT((J198^2)+(J199^2)+(J200^2))","v":30.215889859476256},{"$f":"K198+K199+K200","v":26},{"$f":"SQRT((L198^2)+(L199^2)+(L200^2))","v":23},{"$f":"M198+M199+M200","v":0},{"$f":"SQRT((N198^2)+(N199^2)+(N200^2))","v":19.05255888325765},{"$f":"O198+O199+O200","v":17},{"$f":"SQRT((P198^2)+(P199^2)+(P200^2))","v":27.766886753829642},{"$f":"Q198+Q199+Q200","v":1204},{"$f":"SQRT((R198^2)+(R199^2)+(R200^2))","v":246.18285886714372},{"$f":"S198+S199+S200","v":6},{"$f":"SQRT((T198^2)+(T199^2)+(T200^2))","v":17.972200755611428},{"$f":"U198+U199+U200","v":21},{"$f":"SQRT((V198^2)+(V199^2)+(V200^2))","v":20.639767440550294},{"$f":"W198+W199+W200","v":54},{"$f":"SQRT((X198^2)+(X199^2)+(X200^2))","v":54.350712966804771},{"$f":"Y198+Y199+Y200","v":245},{"$f":"SQRT((Z198^2)+(Z199^2)+(Z200^2))","v":118.76868274086398},{"$f":"AA198+AA199+AA200","v":73},{"$f":"SQRT((AB198^2)+(AB199^2)+(AB200^2))","v":62.20932405998316},{"$f":"AC198+AC199+AC200","v":4},{"$f":"SQRT((AD198^2)+(AD199^2)+(AD200^2))","v":16.673332000533065},{"$f":"AE198+AE199+AE200","v":131},{"$f":"SQRT((AF198^2)+(AF199^2)+(AF200^2))","v":70.448562795844168},{"$f":"AG198+AG199+AG200","v":0},{"$f":"SQRT((AH198^2)+(AH199^2)+(AH200^2))","v":25.98076211353316},{"$f":"AI198+AI199+AI200","v":38},{"$f":"SQRT((AJ198^2)+(AJ199^2)+(AJ200^2))","v":40.472212689696121},{"$f":"AK198+AK199+AK200","v":0},{"$f":"SQRT((AL198^2)+(AL199^2)+(AL200^2))","v":19.05255888325765},{"$f":"AM198+AM199+AM200","v":43},{"$f":"SQRT((AN198^2)+(AN199^2)+(AN200^2))","v":42.261093218230876},{"$f":"AO198+AO199+AO200","v":113},{"$f":"SQRT((AP198^2)+(AP199^2)+(AP200^2))","v":71.175838597096984},{"$f":"AQ198+AQ199+AQ200","v":57},{"$f":"SQRT((AR198^2)+(AR199^2)+(AR200^2))","v":61.757590626578043},{"$f":"AS198+AS199+AS200","v":45},{"$f":"SQRT((AT198^2)+(AT199^2)+(AT200^2))","v":50.606323715519977},{"$f":"AU198+AU199+AU200","v":14},{"$f":"SQRT((AV198^2)+(AV199^2)+(AV200^2))","v":22.315913604421397},{"$f":"AW198+AW199+AW200","v":10},{"$f":"SQRT((AX198^2)+(AX199^2)+(AX200^2))","v":21.61018278497431},{"$f":"AY198+AY199+AY200","v":16},{"$f":"SQRT((AZ198^2)+(AZ199^2)+(AZ200^2))","v":18.138357147217054},{"$f":"BA198+BA199+BA200","v":17},{"$f":"SQRT((BB198^2)+(BB199^2)+(BB200^2))","v":22.759613353482084},{"$f":"BC198+BC199+BC200","v":22},{"$f":"SQRT((BD198^2)+(BD199^2)+(BD200^2))","v":25.337718918639855}]
[null,"50.0 percent or more",{"$f":"C200","v":17},26,0,11,8,16,23,16,4,6,0,11,0,11,323,111,0,11,5,7,9,12,181,109,28,42,4,6,59,47,0,15,10,18,0,11,0,11,71,63,57,58,0,11,14,16,10,15,0,11,4,6,22,20]
[null,"Not Computed",0,11,7,10,7,11,0,15,0,11,0,11,8,12,22,27,3,4,5,8,0,11,15,22,0,11,0,11,12,15,0,15,0,15,0,11,9,14,0,11,19,28,0,11,0,11,4,8,0,11,0,11,3,4]
[null,"$35,000 to $49,999:",33,35,18,29,39,37,102,72,6,7,0,11,8,9,1373,236,17,19,15,14,21,24,225,104,32,38,6,8,68,40,138,109,87,79,4,6,20,35,43,31,90,88,63,45,3,5,11,18,37,34,23,19,21,21]
[null,"Less than 30.0 percent",{"$f":"C203+C204+C205","v":11},{"$f":"SQRT((D203^2)+(D204^2)+(D205^2))","v":16.881943016134134},{"$f":"E203+E204+E205","v":18},{"$f":"SQRT((F203^2)+(F204^2)+(F205^2))","v":32.908965343808667},{"$f":"G203+G204+G205","v":31},{"$f":"SQRT((H203^2)+(H204^2)+(H205^2))","v":33.630343441600473},{"$f":"I203+I204+I205","v":11},{"$f":"SQRT((J203^2)+(J204^2)+(J205^2))","v":27.820855486487112},{"$f":"K203+K204+K205","v":3},{"$f":"SQRT((L203^2)+(L204^2)+(L205^2))","v":16.06237840420901},{"$f":"M203+M204+M205","v":0},{"$f":"SQRT((N203^2)+(N204^2)+(N205^2))","v":19.05255888325765},{"$f":"O203+O204+O205","v":5},{"$f":"SQRT((P203^2)+(P204^2)+(P205^2))","v":17.058722109231979},{"$f":"Q203+Q204+Q205","v":714},{"$f":"SQRT((R203^2)+(R204^2)+(R205^2))","v":174.83134730362286},{"$f":"S203+S204+S205","v":17},{"$f":"SQRT((T203^2)+(T204^2)+(T205^2))","v":24.556058315617349},{"$f":"U203+U204+U205","v":10},{"$f":"SQRT((V203^2)+(V204^2)+(V205^2))","v":16.340134638368191},{"$f":"W203+W204+W205","v":8},{"$f":"SQRT((X203^2)+(X204^2)+(X205^2))","v":20.273134932713294},{"$f":"Y203+Y204+Y205","v":136},{"$f":"SQRT((Z203^2)+(Z204^2)+(Z205^2))","v":72.47068372797375},{"$f":"AA203+AA204+AA205","v":9},{"$f":"SQRT((AB203^2)+(AB204^2)+(AB205^2))","v":20.928449536456348},{"$f":"AC203+AC204+AC205","v":2},{"$f":"SQRT((AD203^2)+(AD204^2)+(AD205^2))","v":16.340134638368191},{"$f":"AE203+AE204+AE205","v":10},{"$f":"SQRT((AF203^2)+(AF204^2)+(AF205^2))","v":28.879058156387302},{"$f":"AG203+AG204+AG205","v":90},{"$f":"SQRT((AH203^2)+(AH204^2)+(AH205^2))","v":91.487704091861431},{"$f":"AI203+AI204+AI205","v":42},{"$f":"SQRT((AJ203^2)+(AJ204^2)+(AJ205^2))","v":65.528619701623498},{"$f":"AK203+AK204+AK205","v":0},{"$f":"SQRT((AL203^2)+(AL204^2)+(AL205^2))","v":19.05255888325765},{"$f":"AM203+AM204+AM205","v":0},{"$f":"SQRT((AN203^2)+(AN204^2)+(AN205^2))","v":19.05255888325765},{"$f":"AO203+AO204+AO205","v":23},{"$f":"SQRT((AP203^2)+(AP204^2)+(AP205^2))","v":27.766886753829642},{"$f":"AQ203+AQ204+AQ205","v":49},{"$f":"SQRT((AR203^2)+(AR204^2)+(AR205^2))","v":59.883219686319471},{"$f":"AS203+AS204+AS205","v":51},{"$f":"SQRT((AT203^2)+(AT204^2)+(AT205^2))","v":46.184412955021955},{"$f":"AU203+AU204+AU205","v":3},{"$f":"SQRT((AV203^2)+(AV204^2)+(AV205^2))","v":16.340134638368191},{"$f":"AW203+AW204+AW205","v":11},{"$f":"SQRT((AX203^2)+(AX204^2)+(AX205^2))","v":23.790754506740637},{"$f":"AY203+AY204+AY205","v":24},{"$f":"SQRT((AZ203^2)+(AZ204^2)+(AZ205^2))","v":31.128764832546761},{"$f":"BA203+BA204+BA205","v":10},{"$f":"SQRT((BB203^2)+(BB204^2)+(BB205^2))","v":14.491376746189438},{"$f":"BC203+BC204+BC205","v":0},{"$f":"SQRT((BD203^2)+(BD204^2)+(BD205^2))","v":19.05255888325765}]
[null,"More than 30.0 percent",{"$f":"C206+C207+C208+C209","v":22},{"$f":"SQRT((D206^2)+(D207^2)+(D208^2)+(D209^2))","v":38.974350539810153},{"$f":"E206+E207+E208+E209","v":0},{"$f":"SQRT((F206^2)+(F207^2)+(F208^2)+(F209^2))","v":22},{"$f":"G206+G207+G208+G209","v":8},{"$f":"SQRT((H206^2)+(H207^2)+(H208^2)+(H209^2))","v":22.516660498395403},{"$f":"I206+I207+I208+I209","v":62},{"$f":"SQRT((J206^2)+(J207^2)+(J208^2)+(J209^2))","v":59.849812029780011},{"$f":"K206+K207+K208+K209","v":3},{"$f":"SQRT((L206^2)+(L207^2)+(L208^2)+(L209^2))","v":19.697715603592208},{"$f":"M206+M207+M208+M209","v":0},{"$f":"SQRT((N206^2)+(N207^2)+(N208^2)+(N209^2))","v":22},{"$f":"O206+O207+O208+O209","v":3},{"$f":"SQRT((P206^2)+(P207^2)+(P208^2)+(P209^2))","v":19.974984355438178},{"$f":"Q206+Q207+Q208+Q209","v":555},{"$f":"SQRT((R206^2)+(R207^2)+(R208^2)+(R209^2))","v":163.77118183612157},{"$f":"S206+S207+S208+S209","v":0},{"$f":"SQRT((T206^2)+(T207^2)+(T208^2)+(T209^2))","v":22},{"$f":"U206+U207+U208+U209","v":5},{"$f":"SQRT((V206^2)+(V207^2)+(V208^2)+(V209^2))","v":20.663978319771825},{"$f":"W206+W207+W208+W209","v":13},{"$f":"SQRT((X206^2)+(X207^2)+(X208^2)+(X209^2))","v":27.622454633866266},{"$f":"Y206+Y207+Y208+Y209","v":89},{"$f":"SQRT((Z206^2)+(Z207^2)+(Z208^2)+(Z209^2))","v":79.837334624848296},{"$f":"AA206+AA207+AA208+AA209","v":23},{"$f":"SQRT((AB206^2)+(AB207^2)+(AB208^2)+(AB209^2))","v":40.730823708832602},{"$f":"AC206+AC207+AC208+AC209","v":0},{"$f":"SQRT((AD206^2)+(AD207^2)+(AD208^2)+(AD209^2))","v":22},{"$f":"AE206+AE207+AE208+AE209","v":58},{"$f":"SQRT((AF206^2)+(AF207^2)+(AF208^2)+(AF209^2))","v":43.335897360040903},{"$f":"AG206+AG207+AG208+AG209","v":48},{"$f":"SQRT((AH206^2)+(AH207^2)+(AH208^2)+(AH209^2))","v":66.53570470055908},{"$f":"AI206+AI207+AI208+AI209","v":45},{"$f":"SQRT((AJ206^2)+(AJ207^2)+(AJ208^2)+(AJ209^2))","v":70.929542505221335},{"$f":"AK206+AK207+AK208+AK209","v":4},{"$f":"SQRT((AL206^2)+(AL207^2)+(AL208^2)+(AL209^2))","v":19.974984355438178},{"$f":"AM206+AM207+AM208+AM209","v":0},{"$f":"SQRT((AN206^2)+(AN207^2)+(AN208^2)+(AN209^2))","v":22},{"$f":"AO206+AO207+AO208+AO209","v":11},{"$f":"SQRT((AP206^2)+(AP207^2)+(AP208^2)+(AP209^2))","v":24.879710609249457},{"$f":"AQ206+AQ207+AQ208+AQ209","v":41},{"$f":"SQRT((AR206^2)+(AR207^2)+(AR208^2)+(AR209^2))","v":66.302337817003107},{"$f":"AS206+AS207+AS208+AS209","v":12},{"$f":"SQRT((AT206^2)+(AT207^2)+(AT208^2)+(AT209^2))","v":26.210684844162312},{"$f":"AU206+AU207+AU208+AU209","v":0},{"$f":"SQRT((AV206^2)+(AV207^2)+(AV208^2)+(AV209^2))","v":22},{"$f":"AW206+AW207+AW208+AW209","v":0},{"$f":"SQRT((AX206^2)+(AX207^2)+(AX208^2)+(AX209^2))","v":22},{"$f":"AY206+AY207+AY208+AY209","v":13},{"$f":"SQRT((AZ206^2)+(AZ207^2)+(AZ208^2)+(AZ209^2))","v":20.663978319771825},{"$f":"BA206+BA207+BA208+BA209","v":13},{"$f":"SQRT((BB206^2)+(BB207^2)+(BB208^2)+(BB209^2))","v":25.534290669607408},{"$f":"BC206+BC207+BC208+BC209","v":21},{"$f":"SQRT((BD206^2)+(BD207^2)+(BD208^2)+(BD209^2))","v":26.305892875931811}]
[null,"Less Than 35% of HH Income",{"$f":"C203+C204+C205+C206","v":33},{"$f":"SQRT((D203^2)+(D204^2)+(D205^2)+(D206^2))","v":37.960505792204614},{"$f":"E203+E204+E205+E206","v":18},{"$f":"SQRT((F203^2)+(F204^2)+(F205^2)+(F206^2))","v":34.698703145794944},{"$f":"G203+G204+G205+G206","v":31},{"$f":"SQRT((H203^2)+(H204^2)+(H205^2)+(H206^2))","v":35.383612025908263},{"$f":"I203+I204+I205+I206","v":16},{"$f":"SQRT((J203^2)+(J204^2)+(J205^2)+(J206^2))","v":28.948229652260256},{"$f":"K203+K204+K205+K206","v":3},{"$f":"SQRT((L203^2)+(L204^2)+(L205^2)+(L206^2))","v":19.467922333931785},{"$f":"M203+M204+M205+M206","v":0},{"$f":"SQRT((N203^2)+(N204^2)+(N205^2)+(N206^2))","v":22},{"$f":"O203+O204+O205+O206","v":8},{"$f":"SQRT((P203^2)+(P204^2)+(P205^2)+(P206^2))","v":18.083141320025124},{"$f":"Q203+Q204+Q205+Q206","v":978},{"$f":"SQRT((R203^2)+(R204^2)+(R205^2)+(R206^2))","v":205.49939172659367},{"$f":"S203+S204+S205+S206","v":17},{"$f":"SQRT((T203^2)+(T204^2)+(T205^2)+(T206^2))","v":26.90724809414742},{"$f":"U203+U204+U205+U206","v":15},{"$f":"SQRT((V203^2)+(V204^2)+(V205^2)+(V206^2))","v":18.193405398660254},{"$f":"W203+W204+W205+W206","v":8},{"$f":"SQRT((X203^2)+(X204^2)+(X205^2)+(X206^2))","v":23.065125189341593},{"$f":"Y203+Y204+Y205+Y206","v":137},{"$f":"SQRT((Z203^2)+(Z204^2)+(Z205^2)+(Z206^2))","v":73.027392121039071},{"$f":"AA203+AA204+AA205+AA206","v":32},{"$f":"SQRT((AB203^2)+(AB204^2)+(AB205^2)+(AB206^2))","v":41.641325627314025},{"$f":"AC203+AC204+AC205+AC206","v":2},{"$f":"SQRT((AD203^2)+(AD204^2)+(AD205^2)+(AD206^2))","v":19.697715603592208},{"$f":"AE203+AE204+AE205+AE206","v":28},{"$f":"SQRT((AF203^2)+(AF204^2)+(AF205^2)+(AF206^2))","v":35.128336140500593},{"$f":"AG203+AG204+AG205+AG206","v":129},{"$f":"SQRT((AH203^2)+(AH204^2)+(AH205^2)+(AH206^2))","v":109.95908329919816},{"$f":"AI203+AI204+AI205+AI206","v":87},{"$f":"SQRT((AJ203^2)+(AJ204^2)+(AJ205^2)+(AJ206^2))","v":93.005376188691372},{"$f":"AK203+AK204+AK205+AK206","v":4},{"$f":"SQRT((AL203^2)+(AL204^2)+(AL205^2)+(AL206^2))","v":19.974984355438178},{"$f":"AM203+AM204+AM205+AM206","v":0},{"$f":"SQRT((AN203^2)+(AN204^2)+(AN205^2)+(AN206^2))","v":22},{"$f":"AO203+AO204+AO205+AO206","v":23},{"$f":"SQRT((AP203^2)+(AP204^2)+(AP205^2)+(AP206^2))","v":29.866369046136157},{"$f":"AQ203+AQ204+AQ205+AQ206","v":90},{"$f":"SQRT((AR203^2)+(AR204^2)+(AR205^2)+(AR206^2))","v":85.480992039166225},{"$f":"AS203+AS204+AS205+AS206","v":63},{"$f":"SQRT((AT203^2)+(AT204^2)+(AT205^2)+(AT206^2))","v":49.568134925574917},{"$f":"AU203+AU204+AU205+AU206","v":3},{"$f":"SQRT((AV203^2)+(AV204^2)+(AV205^2)+(AV206^2))","v":19.697715603592208},{"$f":"AW203+AW204+AW205+AW206","v":11},{"$f":"SQRT((AX203^2)+(AX204^2)+(AX205^2)+(AX206^2))","v":26.210684844162312},{"$f":"AY203+AY204+AY205+AY206","v":24},{"$f":"SQRT((AZ203^2)+(AZ204^2)+(AZ205^2)+(AZ206^2))","v":33.015148038438355},{"$f":"BA203+BA204+BA205+BA206","v":23},{"$f":"SQRT((BB203^2)+(BB204^2)+(BB205^2)+(BB206^2))","v":22.338307903688676},{"$f":"BC203+BC204+BC205+BC206","v":11},{"$f":"SQRT((BD203^2)+(BD204^2)+(BD205^2)+(BD206^2))","v":24.248711305964282}]
[null,"35.0 percent or more",{"$f":"C207+C208+C209","v":0},{"$f":"SQRT((D207^2)+(D208^2)+(D209^2))","v":19.05255888325765},{"$f":"E207+E208+E209","v":0},{"$f":"SQRT((F207^2)+(F208^2)+(F209^2))","v":19.05255888325765},{"$f":"G207+G208+G209","v":8},{"$f":"SQRT((H207^2)+(H208^2)+(H209^2))","v":19.646882704388499},{"$f":"I207+I208+I209","v":57},{"$f":"SQRT((J207^2)+(J208^2)+(J209^2))","v":59.312730505347666},{"$f":"K207+K208+K209","v":3},{"$f":"SQRT((L207^2)+(L208^2)+(L209^2))","v":16.340134638368191},{"$f":"M207+M208+M209","v":0},{"$f":"SQRT((N207^2)+(N208^2)+(N209^2))","v":19.05255888325765},{"$f":"O207+O208+O209","v":0},{"$f":"SQRT((P207^2)+(P208^2)+(P209^2))","v":19.05255888325765},{"$f":"Q207+Q208+Q209","v":291},{"$f":"SQRT((R207^2)+(R208^2)+(R209^2))","v":123.1137685232647},{"$f":"S207+S208+S209","v":0},{"$f":"SQRT((T207^2)+(T208^2)+(T209^2))","v":19.05255888325765},{"$f":"U207+U208+U209","v":0},{"$f":"SQRT((V207^2)+(V208^2)+(V209^2))","v":19.05255888325765},{"$f":"W207+W208+W209","v":13},{"$f":"SQRT((X207^2)+(X208^2)+(X209^2))","v":25.337718918639855},{"$f":"Y207+Y208+Y209","v":88},{"$f":"SQRT((Z207^2)+(Z208^2)+(Z209^2))","v":79.328431221095002},{"$f":"AA207+AA208+AA209","v":0},{"$f":"SQRT((AB207^2)+(AB208^2)+(AB209^2))","v":19.05255888325765},{"$f":"AC207+AC208+AC209","v":0},{"$f":"SQRT((AD207^2)+(AD208^2)+(AD209^2))","v":19.05255888325765},{"$f":"AE207+AE208+AE209","v":40},{"$f":"SQRT((AF207^2)+(AF208^2)+(AF209^2))","v":38.444765573482172},{"$f":"AG207+AG208+AG209","v":9},{"$f":"SQRT((AH207^2)+(AH208^2)+(AH209^2))","v":26.570660511172846},{"$f":"AI207+AI208+AI209","v":0},{"$f":"SQRT((AJ207^2)+(AJ208^2)+(AJ209^2))","v":25.98076211353316},{"$f":"AK207+AK208+AK209","v":0},{"$f":"SQRT((AL207^2)+(AL208^2)+(AL209^2))","v":19.05255888325765},{"$f":"AM207+AM208+AM209","v":0},{"$f":"SQRT((AN207^2)+(AN208^2)+(AN209^2))","v":19.05255888325765},{"$f":"AO207+AO208+AO209","v":11},{"$f":"SQRT((AP207^2)+(AP208^2)+(AP209^2))","v":22.315913604421397},{"$f":"AQ207+AQ208+AQ209","v":0},{"$f":"SQRT((AR207^2)+(AR208^2)+(AR209^2))","v":25.98076211353316},{"$f":"AS207+AS208+AS209","v":0},{"$f":"SQRT((AT207^2)+(AT208^2)+(AT209^2))","v":19.05255888325765},{"$f":"AU207+AU208+AU209","v":0},{"$f":"SQRT((AV207^2)+(AV208^2)+(AV209^2))","v":19.05255888325765},{"$f":"AW207+AW208+AW209","v":0},{"$f":"SQRT((AX207^2)+(AX208^2)+(AX209^2))","v":19.05255888325765},{"$f":"AY207+AY208+AY209","v":13},{"$f":"SQRT((AZ207^2)+(AZ208^2)+(AZ209^2))","v":17.4928556845359},{"$f":"BA207+BA208+BA209","v":0},{"$f":"SQRT((BB207^2)+(BB208^2)+(BB209^2))","v":19.05255888325765},{"$f":"BC207+BC208+BC209","v":10},{"$f":"SQRT((BD207^2)+(BD208^2)+(BD209^2))","v":21.61018278497431}]
[null,"50.0 percent or more",{"$f":"C209","v":0},{"$f":"D209","v":11},{"$f":"E209","v":0},{"$f":"F209","v":11},{"$f":"G209","v":8},12,{"$f":"I209","v":0},15,{"$f":"K209","v":3},5,{"$f":"M209","v":0},11,{"$f":"O209","v":0},11,{"$f":"Q209","v":54},57,{"$f":"S209","v":0},11,{"$f":"U209","v":0},11,{"$f":"W209","v":0},11,{"$f":"Y209","v":0},15,{"$f":"AA209","v":0},11,{"$f":"AC209","v":0},11,{"$f":"AE209","v":0},17,{"$f":"AG209","v":0},15,{"$f":"AI209","v":0},15,{"$f":"AK209","v":0},11,{"$f":"AM209","v":0},11,{"$f":"AO209","v":0},11,{"$f":"AQ209","v":0},15,{"$f":"AS209","v":0},11,{"$f":"AU209","v":0},11,{"$f":"AW209","v":0},11,{"$f":"AY209","v":0},11,{"$f":"BA209","v":0},11,{"$f":"BC209","v":0},11]
[null,"Not Computed",{"$f":"C210","v":0},11,{"$f":"E210","v":0},11,{"$f":"G210","v":0},11,{"$f":"I210","v":29},41,{"$f":"K210","v":0},11,{"$f":"M210","v":0},11,{"$f":"O210","v":0},11,{"$f":"Q210","v":104},103,{"$f":"S210","v":0},11,{"$f":"U210","v":0},11,{"$f":"W210","v":0},11,{"$f":"Y210","v":0},15,{"$f":"AA210","v":0},11,{"$f":"AC210","v":4},6,{"$f":"AE210","v":0},17,{"$f":"AG210","v":0},15,{"$f":"AI210","v":0},15,{"$f":"AK210","v":0},11,{"$f":"AM210","v":20},35,{"$f":"AO210","v":9},13,{"$f":"AQ210","v":0},15,{"$f":"AS210","v":0},11,{"$f":"AU210","v":0},11,{"$f":"AW210","v":0},11,{"$f":"AY210","v":0},11,{"$f":"BA210","v":0},11,{"$f":"BC210","v":0},11]
[null,"$50,000 to $74,999:",{"$f":"C211","v":86},58,16,13,26,25,22,24,12,12,0,11,21,26,1369,241,60,36,25,20,43,38,97,64,86,72,17,20,128,66,46,66,29,34,17,16,81,62,92,52,116,86,27,26,6,6,25,21,33,29,11,9,19,20]
[null,"Less than 30.0 percent",{"$f":"C212+C213+C214","v":49},{"$f":"SQRT((D212^2)+(D213^2)+(D214^2))","v":45.4972526643093},{"$f":"E212+E213+E214","v":16},{"$f":"SQRT((F212^2)+(F213^2)+(F214^2))","v":15.394804318340652},{"$f":"G212+G213+G214","v":19},{"$f":"SQRT((H212^2)+(H213^2)+(H214^2))","v":26.134268690743959},{"$f":"I212+I213+I214","v":6},{"$f":"SQRT((J212^2)+(J213^2)+(J214^2))","v":24.879710609249457},{"$f":"K212+K213+K214","v":6},{"$f":"SQRT((L212^2)+(L213^2)+(L214^2))","v":17.058722109231979},{"$f":"M212+M213+M214","v":0},{"$f":"SQRT((N212^2)+(N213^2)+(N214^2))","v":19.05255888325765},{"$f":"O212+O213+O214","v":16},{"$f":"SQRT((P212^2)+(P213^2)+(P214^2))","v":28.600699292150182},{"$f":"Q212+Q213+Q214","v":1195},{"$f":"SQRT((R212^2)+(R213^2)+(R214^2))","v":235.80500418778223},{"$f":"S212+S213+S214","v":60},{"$f":"SQRT((T212^2)+(T213^2)+(T214^2))","v":38.40572873934304},{"$f":"U212+U213+U214","v":25},{"$f":"SQRT((V212^2)+(V213^2)+(V214^2))","v":19.416487838947599},{"$f":"W212+W213+W214","v":0},{"$f":"SQRT((X212^2)+(X213^2)+(X214^2))","v":19.05255888325765},{"$f":"Y212+Y213+Y214","v":97},{"$f":"SQRT((Z212^2)+(Z213^2)+(Z214^2))","v":62.185207244167003},{"$f":"AA212+AA213+AA214","v":60},{"$f":"SQRT((AB212^2)+(AB213^2)+(AB214^2))","v":55.11805511808268},{"$f":"AC212+AC213+AC214","v":17},{"$f":"SQRT((AD212^2)+(AD213^2)+(AD214^2))","v":25.337718918639855},{"$f":"AE212+AE213+AE214","v":114},{"$f":"SQRT((AF212^2)+(AF213^2)+(AF214^2))","v":60.440052945046304},{"$f":"AG212+AG213+AG214","v":46},{"$f":"SQRT((AH212^2)+(AH213^2)+(AH214^2))","v":67.007462271003817},{"$f":"AI212+AI213+AI214","v":16},{"$f":"SQRT((AJ212^2)+(AJ213^2)+(AJ214^2))","v":33.555923471125034},{"$f":"AK212+AK213+AK214","v":17},{"$f":"SQRT((AL212^2)+(AL213^2)+(AL214^2))","v":19.519221295943137},{"$f":"AM212+AM213+AM214","v":62},{"$f":"SQRT((AN212^2)+(AN213^2)+(AN214^2))","v":55.190578906186516},{"$f":"AO212+AO213+AO214","v":92},{"$f":"SQRT((AP212^2)+(AP213^2)+(AP214^2))","v":62.393909959225986},{"$f":"AQ212+AQ213+AQ214","v":88},{"$f":"SQRT((AR212^2)+(AR213^2)+(AR214^2))","v":80.137382038596698},{"$f":"AS212+AS213+AS214","v":27},{"$f":"SQRT((AT212^2)+(AT213^2)+(AT214^2))","v":27.766886753829642},{"$f":"AU212+AU213+AU214","v":2},{"$f":"SQRT((AV212^2)+(AV213^2)+(AV214^2))","v":16.340134638368191},{"$f":"AW212+AW213+AW214","v":25},{"$f":"SQRT((AX212^2)+(AX213^2)+(AX214^2))","v":23.895606290697042},{"$f":"AY212+AY213+AY214","v":26},{"$f":"SQRT((AZ212^2)+(AZ213^2)+(AZ214^2))","v":30.675723300355934},{"$f":"BA212+BA213+BA214","v":11},{"$f":"SQRT((BB212^2)+(BB213^2)+(BB214^2))","v":9.8488578017961039},{"$f":"BC212+BC213+BC214","v":19},{"$f":"SQRT((BD212^2)+(BD213^2)+(BD214^2))","v":23.895606290697042}]
[null,"More than 30.0 percent",{"$f":"C215+C216+C217+C218","v":37},{"$f":"SQRT((D215^2)+(D216^2)+(D217^2)+(D218^2))","v":44.305755833751441},{"$f":"E215+E216+E217+E218","v":0},{"$f":"SQRT((F215^2)+(F216^2)+(F217^2)+(F218^2))","v":22},{"$f":"G215+G216+G217+G218","v":7},{"$f":"SQRT((H215^2)+(H216^2)+(H217^2)+(H218^2))","v":22.516660498395403},{"$f":"I215+I216+I217+I218","v":16},{"$f":"SQRT((J215^2)+(J216^2)+(J217^2)+(J218^2))","v":32.186953878862163},{"$f":"K215+K216+K217+K218","v":6},{"$f":"SQRT((L215^2)+(L216^2)+(L217^2)+(L218^2))","v":21.517434791350013},{"$f":"M215+M216+M217+M218","v":0},{"$f":"SQRT((N215^2)+(N216^2)+(N217^2)+(N218^2))","v":22},{"$f":"O215+O216+O217+O218","v":0},{"$f":"SQRT((P215^2)+(P216^2)+(P217^2)+(P218^2))","v":22},{"$f":"Q215+Q216+Q217+Q218","v":140},{"$f":"SQRT((R215^2)+(R216^2)+(R217^2)+(R218^2))","v":64.046857846423663},{"$f":"S215+S216+S217+S218","v":0},{"$f":"SQRT((T215^2)+(T216^2)+(T217^2)+(T218^2))","v":22},{"$f":"U215+U216+U217+U218","v":0},{"$f":"SQRT((V215^2)+(V216^2)+(V217^2)+(V218^2))","v":22},{"$f":"W215+W216+W217+W218","v":36},{"$f":"SQRT((X215^2)+(X216^2)+(X217^2)+(X218^2))","v":36.972963094672302},{"$f":"Y215+Y216+Y217+Y218","v":0},{"$f":"SQRT((Z215^2)+(Z216^2)+(Z217^2)+(Z218^2))","v":30},{"$f":"AA215+AA216+AA217+AA218","v":26},{"$f":"SQRT((AB215^2)+(AB216^2)+(AB217^2)+(AB218^2))","v":46.119410230400824},{"$f":"AC215+AC216+AC217+AC218","v":0},{"$f":"SQRT((AD215^2)+(AD216^2)+(AD217^2)+(AD218^2))","v":22},{"$f":"AE215+AE216+AE217+AE218","v":14},{"$f":"SQRT((AF215^2)+(AF216^2)+(AF217^2)+(AF218^2))","v":37.363083384538811},{"$f":"AG215+AG216+AG217+AG218","v":0},{"$f":"SQRT((AH215^2)+(AH216^2)+(AH217^2)+(AH218^2))","v":30},{"$f":"AI215+AI216+AI217+AI218","v":0},{"$f":"SQRT((AJ215^2)+(AJ216^2)+(AJ217^2)+(AJ218^2))","v":30},{"$f":"AK215+AK216+AK217+AK218","v":0},{"$f":"SQRT((AL215^2)+(AL216^2)+(AL217^2)+(AL218^2))","v":22},{"$f":"AM215+AM216+AM217+AM218","v":19},{"$f":"SQRT((AN215^2)+(AN216^2)+(AN217^2)+(AN218^2))","v":34.698703145794944},{"$f":"AO215+AO216+AO217+AO218","v":0},{"$f":"SQRT((AP215^2)+(AP216^2)+(AP217^2)+(AP218^2))","v":22},{"$f":"AQ215+AQ216+AQ217+AQ218","v":11},{"$f":"SQRT((AR215^2)+(AR216^2)+(AR217^2)+(AR218^2))","v":32.186953878862163},{"$f":"AS215+AS216+AS217+AS218","v":0},{"$f":"SQRT((AT215^2)+(AT216^2)+(AT217^2)+(AT218^2))","v":22},{"$f":"AU215+AU216+AU217+AU218","v":0},{"$f":"SQRT((AV215^2)+(AV216^2)+(AV217^2)+(AV218^2))","v":22},{"$f":"AW215+AW216+AW217+AW218","v":0},{"$f":"SQRT((AX215^2)+(AX216^2)+(AX217^2)+(AX218^2))","v":22},{"$f":"AY215+AY216+AY217+AY218","v":7},{"$f":"SQRT((AZ215^2)+(AZ216^2)+(AZ217^2)+(AZ218^2))","v":21.071307505705477},{"$f":"BA215+BA216+BA217+BA218","v":0},{"$f":"SQRT((BB215^2)+(BB216^2)+(BB217^2)+(BB218^2))","v":22},{"$f":"BC215+BC216+BC217+BC218","v":0},{"$f":"SQRT((BD215^2)+(BD216^2)+(BD217^2)+(BD218^2))","v":22}]
[null,"Less Than 35% of HH Income",{"$f":"C215+C214+C213+C212","v":56},{"$f":"SQRT((D215^2)+(D214^2)+(D213^2)+(D212^2))","v":46.808118953873802},{"$f":"E215+E214+E213+E212","v":16},{"$f":"SQRT((F215^2)+(F214^2)+(F213^2)+(F212^2))","v":18.920887928424502},{"$f":"G215+G214+G213+G212","v":26},{"$f":"SQRT((H215^2)+(H214^2)+(H213^2)+(H212^2))","v":28.757607689096812},{"$f":"I215+I214+I213+I212","v":22},{"$f":"SQRT((J215^2)+(J214^2)+(J213^2)+(J212^2))","v":31.304951684997057},{"$f":"K215+K214+K213+K212","v":6},{"$f":"SQRT((L215^2)+(L214^2)+(L213^2)+(L212^2))","v":20.297783130184438},{"$f":"M215+M214+M213+M212","v":0},{"$f":"SQRT((N215^2)+(N214^2)+(N213^2)+(N212^2))","v":22},{"$f":"O215+O214+O213+O212","v":16},{"$f":"SQRT((P215^2)+(P214^2)+(P213^2)+(P212^2))","v":30.643106892089126},{"$f":"Q215+Q214+Q213+Q212","v":1279},{"$f":"SQRT((R215^2)+(R214^2)+(R213^2)+(R212^2))","v":240.6408111688456},{"$f":"S215+S214+S213+S212","v":60},{"$f":"SQRT((T215^2)+(T214^2)+(T213^2)+(T212^2))","v":39.949968710876355},{"$f":"U215+U214+U213+U212","v":25},{"$f":"SQRT((V215^2)+(V214^2)+(V213^2)+(V212^2))","v":22.315913604421397},{"$f":"W215+W214+W213+W212","v":7},{"$f":"SQRT((X215^2)+(X214^2)+(X213^2)+(X212^2))","v":22},{"$f":"Y215+Y214+Y213+Y212","v":97},{"$f":"SQRT((Z215^2)+(Z214^2)+(Z213^2)+(Z212^2))","v":63.968742366877905},{"$f":"AA215+AA214+AA213+AA212","v":86},{"$f":"SQRT((AB215^2)+(AB214^2)+(AB213^2)+(AB212^2))","v":69.296464556281663},{"$f":"AC215+AC214+AC213+AC212","v":17},{"$f":"SQRT((AD215^2)+(AD214^2)+(AD213^2)+(AD212^2))","v":27.622454633866266},{"$f":"AE215+AE214+AE213+AE212","v":128},{"$f":"SQRT((AF215^2)+(AF214^2)+(AF213^2)+(AF212^2))","v":64.668384856898967},{"$f":"AG215+AG214+AG213+AG212","v":46},{"$f":"SQRT((AH215^2)+(AH214^2)+(AH213^2)+(AH212^2))","v":68.66585760041157},{"$f":"AI215+AI214+AI213+AI212","v":16},{"$f":"SQRT((AJ215^2)+(AJ214^2)+(AJ213^2)+(AJ212^2))","v":36.755951898978211},{"$f":"AK215+AK214+AK213+AK212","v":17},{"$f":"SQRT((AL215^2)+(AL214^2)+(AL213^2)+(AL212^2))","v":22.405356502408079},{"$f":"AM215+AM214+AM213+AM212","v":81},{"$f":"SQRT((AN215^2)+(AN214^2)+(AN213^2)+(AN212^2))","v":62.345809803065357},{"$f":"AO215+AO214+AO213+AO212","v":92},{"$f":"SQRT((AP215^2)+(AP214^2)+(AP213^2)+(AP212^2))","v":63.35613624582863},{"$f":"AQ215+AQ214+AQ213+AQ212","v":99},{"$f":"SQRT((AR215^2)+(AR214^2)+(AR213^2)+(AR212^2))","v":82.35897036753191},{"$f":"AS215+AS214+AS213+AS212","v":27},{"$f":"SQRT((AT215^2)+(AT214^2)+(AT213^2)+(AT212^2))","v":29.866369046136157},{"$f":"AU215+AU214+AU213+AU212","v":2},{"$f":"SQRT((AV215^2)+(AV214^2)+(AV213^2)+(AV212^2))","v":19.697715603592208},{"$f":"AW215+AW214+AW213+AW212","v":25},{"$f":"SQRT((AX215^2)+(AX214^2)+(AX213^2)+(AX212^2))","v":26.305892875931811},{"$f":"AY215+AY214+AY213+AY212","v":33},{"$f":"SQRT((AZ215^2)+(AZ214^2)+(AZ213^2)+(AZ212^2))","v":31.968734726291562},{"$f":"BA215+BA214+BA213+BA212","v":11},{"$f":"SQRT((BB215^2)+(BB214^2)+(BB213^2)+(BB212^2))","v":14.7648230602334},{"$f":"BC215+BC214+BC213+BC212","v":19},{"$f":"SQRT((BD215^2)+(BD214^2)+(BD213^2)+(BD212^2))","v":26.305892875931811}]
[null,"35.0 percent or more",{"$f":"C216+C217+C218","v":30},{"$f":"SQRT((D216^2)+(D217^2)+(D218^2))","v":42.918527467749868},{"$f":"E216+E217+E218","v":0},{"$f":"SQRT((F216^2)+(F217^2)+(F218^2))","v":19.05255888325765},{"$f":"G216+G217+G218","v":0},{"$f":"SQRT((H216^2)+(H217^2)+(H218^2))","v":19.05255888325765},{"$f":"I216+I217+I218","v":0},{"$f":"SQRT((J216^2)+(J217^2)+(J218^2))","v":25.98076211353316},{"$f":"K216+K217+K218","v":6},{"$f":"SQRT((L216^2)+(L217^2)+(L218^2))","v":18.493242008906929},{"$f":"M216+M217+M218","v":0},{"$f":"SQRT((N216^2)+(N217^2)+(N218^2))","v":19.05255888325765},{"$f":"O216+O217+O218","v":0},{"$f":"SQRT((P216^2)+(P217^2)+(P218^2))","v":19.05255888325765},{"$f":"Q216+Q217+Q218","v":56},{"$f":"SQRT((R216^2)+(R217^2)+(R218^2))","v":42.402830094228378},{"$f":"S216+S217+S218","v":0},{"$f":"SQRT((T216^2)+(T217^2)+(T218^2))","v":19.05255888325765},{"$f":"U216+U217+U218","v":0},{"$f":"SQRT((V216^2)+(V217^2)+(V218^2))","v":19.05255888325765},{"$f":"W216+W217+W218","v":29},{"$f":"SQRT((X216^2)+(X217^2)+(X218^2))","v":35.298725189445584},{"$f":"Y216+Y217+Y218","v":0},{"$f":"SQRT((Z216^2)+(Z217^2)+(Z218^2))","v":25.98076211353316},{"$f":"AA216+AA217+AA218","v":0},{"$f":"SQRT((AB216^2)+(AB217^2)+(AB218^2))","v":19.05255888325765},{"$f":"AC216+AC217+AC218","v":0},{"$f":"SQRT((AD216^2)+(AD217^2)+(AD218^2))","v":19.05255888325765},{"$f":"AE216+AE217+AE218","v":0},{"$f":"SQRT((AF216^2)+(AF217^2)+(AF218^2))","v":29.444863728670914},{"$f":"AG216+AG217+AG218","v":0},{"$f":"SQRT((AH216^2)+(AH217^2)+(AH218^2))","v":25.98076211353316},{"$f":"AI216+AI217+AI218","v":0},{"$f":"SQRT((AJ216^2)+(AJ217^2)+(AJ218^2))","v":25.98076211353316},{"$f":"AK216+AK217+AK218","v":0},{"$f":"SQRT((AL216^2)+(AL217^2)+(AL218^2))","v":19.05255888325765},{"$f":"AM216+AM217+AM218","v":0},{"$f":"SQRT((AN216^2)+(AN217^2)+(AN218^2))","v":19.05255888325765},{"$f":"AO216+AO217+AO218","v":0},{"$f":"SQRT((AP216^2)+(AP217^2)+(AP218^2))","v":19.05255888325765},{"$f":"AQ216+AQ217+AQ218","v":0},{"$f":"SQRT((AR216^2)+(AR217^2)+(AR218^2))","v":25.98076211353316},{"$f":"AS216+AS217+AS218","v":0},{"$f":"SQRT((AT216^2)+(AT217^2)+(AT218^2))","v":19.05255888325765},{"$f":"AU216+AU217+AU218","v":0},{"$f":"SQRT((AV216^2)+(AV217^2)+(AV218^2))","v":19.05255888325765},{"$f":"AW216+AW217+AW218","v":0},{"$f":"SQRT((AX216^2)+(AX217^2)+(AX218^2))","v":19.05255888325765},{"$f":"AY216+AY217+AY218","v":0},{"$f":"SQRT((AZ216^2)+(AZ217^2)+(AZ218^2))","v":19.05255888325765},{"$f":"BA216+BA217+BA218","v":0},{"$f":"SQRT((BB216^2)+(BB217^2)+(BB218^2))","v":19.05255888325765},{"$f":"BC216+BC217+BC218","v":0},{"$f":"SQRT((BD216^2)+(BD217^2)+(BD218^2))","v":19.05255888325765}]
[null,"50.0 percent or more",{"$f":"C218","v":0},{"$f":"D218","v":11},{"$f":"E218","v":0},{"$f":"F218","v":11},{"$f":"G218","v":0},11,{"$f":"I218","v":0},15,{"$f":"K218","v":0},11,{"$f":"M218","v":0},11,{"$f":"O218","v":0},11,{"$f":"Q218","v":21},27,{"$f":"S218","v":0},11,{"$f":"U218","v":0},11,{"$f":"W218","v":20},30,{"$f":"Y218","v":0},15,{"$f":"AA218","v":0},11,{"$f":"AC218","v":0},11,{"$f":"AE218","v":0},17,{"$f":"AG218","v":0},15,{"$f":"AI218","v":0},15,{"$f":"AK218","v":0},11,{"$f":"AM218","v":0},11,{"$f":"AO218","v":0},11,{"$f":"AQ218","v":0},15,{"$f":"AS218","v":0},11,{"$f":"AU218","v":0},11,{"$f":"AW218","v":0},11,{"$f":"AY218","v":0},11,{"$f":"BA218","v":0},11,{"$f":"BC218","v":0},11]
[null,"Not Computed",{"$f":"C219","v":0},11,{"$f":"E219","v":0},11,{"$f":"G219","v":0},11,{"$f":"I219","v":0},15,{"$f":"K219","v":0},11,{"$f":"M219","v":0},11,{"$f":"O219","v":5},9,{"$f":"Q219","v":34},44,{"$f":"S219","v":0},11,{"$f":"U219","v":0},11,{"$f":"W219","v":7},13,{"$f":"Y219","v":0},15,{"$f":"AA219","v":0},11,{"$f":"AC219","v":0},11,{"$f":"AE219","v":0},17,{"$f":"AG219","v":0},15,{"$f":"AI219","v":13},21,{"$f":"AK219","v":0},11,{"$f":"AM219","v":0},11,{"$f":"AO219","v":0},11,{"$f":"AQ219","v":17},28,{"$f":"AS219","v":0},11,{"$f":"AU219","v":4},5,{"$f":"AW219","v":0},11,{"$f":"AY219","v":0},11,{"$f":"BA219","v":0},11,{"$f":"BC219","v":0},11]
[null,"$75,000 to $99,999:",{"$f":"C220","v":44},30,{"$f":"E220","v":0},11,{"$f":"G220","v":41},56,{"$f":"I220","v":31},32,{"$f":"K220","v":5},7,{"$f":"M220","v":12},15,{"$f":"O220","v":5},7,{"$f":"Q220","v":687},154,{"$f":"S220","v":0},11,{"$f":"U220","v":5},8,{"$f":"W220","v":9},14,{"$f":"Y220","v":80},56,{"$f":"AA220","v":33},47,{"$f":"AC220","v":2},5,{"$f":"AE220","v":134},79,{"$f":"AG220","v":11},18,{"$f":"AI220","v":66},61,{"$f":"AK220","v":5},7,{"$f":"AM220","v":7},12,{"$f":"AO220","v":46},45,{"$f":"AQ220","v":82},79,{"$f":"AS220","v":61},54,{"$f":"AU220","v":3},6,{"$f":"AW220","v":16},16,{"$f":"AY220","v":39},28,{"$f":"BA220","v":12},10,{"$f":"BC220","v":16},18]
[null,"Less than 30.0 percent",{"$f":"C221+C222+C223","v":44},{"$f":"SQRT((D221^2)+(D222^2)+(D223^2))","v":28.390139133156779},{"$f":"E221+E222+E223","v":0},{"$f":"SQRT((F221^2)+(F222^2)+(F223^2))","v":19.05255888325765},{"$f":"G221+G222+G223","v":41},{"$f":"SQRT((H221^2)+(H222^2)+(H223^2))","v":58.120564346881558},{"$f":"I221+I222+I223","v":31},{"$f":"SQRT((J221^2)+(J222^2)+(J223^2))","v":36.633318168028403},{"$f":"K221+K222+K223","v":5},{"$f":"SQRT((L221^2)+(L222^2)+(L223^2))","v":17.058722109231979},{"$f":"M221+M222+M223","v":7},{"$f":"SQRT((N221^2)+(N222^2)+(N223^2))","v":18.493242008906929},{"$f":"O221+O222+O223","v":5},{"$f":"SQRT((P221^2)+(P222^2)+(P223^2))","v":17.058722109231979},{"$f":"Q221+Q222+Q223","v":648},{"$f":"SQRT((R221^2)+(R222^2)+(R223^2))","v":155.90381650235506},{"$f":"S221+S222+S223","v":0},{"$f":"SQRT((T221^2)+(T222^2)+(T223^2))","v":19.05255888325765},{"$f":"U221+U222+U223","v":0},{"$f":"SQRT((V221^2)+(V222^2)+(V223^2))","v":19.05255888325765},{"$f":"W221+W222+W223","v":9},{"$f":"SQRT((X221^2)+(X222^2)+(X223^2))","v":20.928449536456348},{"$f":"Y221+Y222+Y223","v":80},{"$f":"SQRT((Z221^2)+(Z222^2)+(Z223^2))","v":59.489494870943389},{"$f":"AA221+AA222+AA223","v":33},{"$f":"SQRT((AB221^2)+(AB222^2)+(AB223^2))","v":46.443514078932488},{"$f":"AC221+AC222+AC223","v":2},{"$f":"SQRT((AD221^2)+(AD222^2)+(AD223^2))","v":16.340134638368191},{"$f":"AE221+AE222+AE223","v":134},{"$f":"SQRT((AF221^2)+(AF222^2)+(AF223^2))","v":81.645575507800785},{"$f":"AG221+AG222+AG223","v":11},{"$f":"SQRT((AH221^2)+(AH222^2)+(AH223^2))","v":27.820855486487112},{"$f":"AI221+AI222+AI223","v":66},{"$f":"SQRT((AJ221^2)+(AJ222^2)+(AJ223^2))","v":61.1310068623117},{"$f":"AK221+AK222+AK223","v":5},{"$f":"SQRT((AL221^2)+(AL222^2)+(AL223^2))","v":17.058722109231979},{"$f":"AM221+AM222+AM223","v":0},{"$f":"SQRT((AN221^2)+(AN222^2)+(AN223^2))","v":19.05255888325765},{"$f":"AO221+AO222+AO223","v":46},{"$f":"SQRT((AP221^2)+(AP222^2)+(AP223^2))","v":47.770283649984748},{"$f":"AQ221+AQ222+AQ223","v":82},{"$f":"SQRT((AR221^2)+(AR222^2)+(AR223^2))","v":80.187280786917825},{"$f":"AS221+AS222+AS223","v":61},{"$f":"SQRT((AT221^2)+(AT222^2)+(AT223^2))","v":56.196085272908469},{"$f":"AU221+AU222+AU223","v":3},{"$f":"SQRT((AV221^2)+(AV222^2)+(AV223^2))","v":16.673332000533065},{"$f":"AW221+AW222+AW223","v":12},{"$f":"SQRT((AX221^2)+(AX222^2)+(AX223^2))","v":22.315913604421397},{"$f":"AY221+AY222+AY223","v":33},{"$f":"SQRT((AZ221^2)+(AZ222^2)+(AZ223^2))","v":31.160872901765767},{"$f":"BA221+BA222+BA223","v":12},{"$f":"SQRT((BB221^2)+(BB222^2)+(BB223^2))","v":14.491376746189438},{"$f":"BC221+BC222+BC223","v":16},{"$f":"SQRT((BD221^2)+(BD222^2)+(BD223^2))","v":20.85665361461421}]
[null,"More than 30.0 percent",{"$f":"C224+C225+C226+C227","v":0},{"$f":"SQRT((D224^2)+(D225^2)+(D226^2)+(D227^2))","v":22},{"$f":"E224+E225+E226+E227","v":0},{"$f":"SQRT((F224^2)+(F225^2)+(F226^2)+(F227^2))","v":22},{"$f":"G224+G225+G226+G227","v":0},{"$f":"SQRT((H224^2)+(H225^2)+(H226^2)+(H227^2))","v":22},{"$f":"I224+I225+I226+I227","v":0},{"$f":"SQRT((J224^2)+(J225^2)+(J226^2)+(J227^2))","v":30},{"$f":"K224+K225+K226+K227","v":0},{"$f":"SQRT((L224^2)+(L225^2)+(L226^2)+(L227^2))","v":22},{"$f":"M224+M225+M226+M227","v":0},{"$f":"SQRT((N224^2)+(N225^2)+(N226^2)+(N227^2))","v":22},{"$f":"O224+O225+O226+O227","v":0},{"$f":"SQRT((P224^2)+(P225^2)+(P226^2)+(P227^2))","v":22},{"$f":"Q224+Q225+Q226+Q227","v":16},{"$f":"SQRT((R224^2)+(R225^2)+(R226^2)+(R227^2))","v":47.570999569065187},{"$f":"S224+S225+S226+S227","v":0},{"$f":"SQRT((T224^2)+(T225^2)+(T226^2)+(T227^2))","v":22},{"$f":"U224+U225+U226+U227","v":0},{"$f":"SQRT((V224^2)+(V225^2)+(V226^2)+(V227^2))","v":22},{"$f":"W224+W225+W226+W227","v":0},{"$f":"SQRT((X224^2)+(X225^2)+(X226^2)+(X227^2))","v":22},{"$f":"Y224+Y225+Y226+Y227","v":0},{"$f":"SQRT((Z224^2)+(Z225^2)+(Z226^2)+(Z227^2))","v":30},{"$f":"AA224+AA225+AA226+AA227","v":0},{"$f":"SQRT((AB224^2)+(AB225^2)+(AB226^2)+(AB227^2))","v":22},{"$f":"AC224+AC225+AC226+AC227","v":0},{"$f":"SQRT((AD224^2)+(AD225^2)+(AD226^2)+(AD227^2))","v":22},{"$f":"AE224+AE225+AE226+AE227","v":0},{"$f":"SQRT((AF224^2)+(AF225^2)+(AF226^2)+(AF227^2))","v":34},{"$f":"AG224+AG225+AG226+AG227","v":0},{"$f":"SQRT((AH224^2)+(AH225^2)+(AH226^2)+(AH227^2))","v":30},{"$f":"AI224+AI225+AI226+AI227","v":0},{"$f":"SQRT((AJ224^2)+(AJ225^2)+(AJ226^2)+(AJ227^2))","v":30},{"$f":"AK224+AK225+AK226+AK227","v":0},{"$f":"SQRT((AL224^2)+(AL225^2)+(AL226^2)+(AL227^2))","v":22},{"$f":"AM224+AM225+AM226+AM227","v":7},{"$f":"SQRT((AN224^2)+(AN225^2)+(AN226^2)+(AN227^2))","v":22.516660498395403},{"$f":"AO224+AO225+AO226+AO227","v":0},{"$f":"SQRT((AP224^2)+(AP225^2)+(AP226^2)+(AP227^2))","v":22},{"$f":"AQ224+AQ225+AQ226+AQ227","v":0},{"$f":"SQRT((AR224^2)+(AR225^2)+(AR226^2)+(AR227^2))","v":30},{"$f":"AS224+AS225+AS226+AS227","v":0},{"$f":"SQRT((AT224^2)+(AT225^2)+(AT226^2)+(AT227^2))","v":22},{"$f":"AU224+AU225+AU226+AU227","v":0},{"$f":"SQRT((AV224^2)+(AV225^2)+(AV226^2)+(AV227^2))","v":22},{"$f":"AW224+AW225+AW226+AW227","v":0},{"$f":"SQRT((AX224^2)+(AX225^2)+(AX226^2)+(AX227^2))","v":22},{"$f":"AY224+AY225+AY226+AY227","v":6},{"$f":"SQRT((AZ224^2)+(AZ225^2)+(AZ226^2)+(AZ227^2))","v":20.663978319771825},{"$f":"BA224+BA225+BA226+BA227","v":0},{"$f":"SQRT((BB224^2)+(BB225^2)+(BB226^2)+(BB227^2))","v":22},{"$f":"BC224+BC225+BC226+BC227","v":0},{"$f":"SQRT((BD224^2)+(BD225^2)+(BD226^2)+(BD227^2))","v":22}]
[null,"Less Than 35% of HH Income",{"$f":"C221+C222+C223+C224","v":44},{"$f":"SQRT((D221^2)+(D222^2)+(D223^2)+(D224^2))","v":30.446674695276659},{"$f":"E221+E222+E223+E224","v":0},{"$f":"SQRT((F221^2)+(F222^2)+(F223^2)+(F224^2))","v":22},{"$f":"G221+G222+G223+G224","v":41},{"$f":"SQRT((H221^2)+(H222^2)+(H223^2)+(H224^2))","v":59.152345684681009},{"$f":"I221+I222+I223+I224","v":31},{"$f":"SQRT((J221^2)+(J222^2)+(J223^2)+(J224^2))","v":39.585350825778974},{"$f":"K221+K222+K223+K224","v":5},{"$f":"SQRT((L221^2)+(L222^2)+(L223^2)+(L224^2))","v":20.297783130184438},{"$f":"M221+M222+M223+M224","v":7},{"$f":"SQRT((N221^2)+(N222^2)+(N223^2)+(N224^2))","v":21.517434791350013},{"$f":"O221+O222+O223+O224","v":5},{"$f":"SQRT((P221^2)+(P222^2)+(P223^2)+(P224^2))","v":20.297783130184438},{"$f":"Q221+Q222+Q223+Q224","v":664},{"$f":"SQRT((R221^2)+(R222^2)+(R223^2)+(R224^2))","v":158.05695176106619},{"$f":"S221+S222+S223+S224","v":0},{"$f":"SQRT((T221^2)+(T222^2)+(T223^2)+(T224^2))","v":22},{"$f":"U221+U222+U223+U224","v":0},{"$f":"SQRT((V221^2)+(V222^2)+(V223^2)+(V224^2))","v":22},{"$f":"W221+W222+W223+W224","v":9},{"$f":"SQRT((X221^2)+(X222^2)+(X223^2)+(X224^2))","v":23.643180835073778},{"$f":"Y221+Y222+Y223+Y224","v":80},{"$f":"SQRT((Z221^2)+(Z222^2)+(Z223^2)+(Z224^2))","v":61.351446600711867},{"$f":"AA221+AA222+AA223+AA224","v":33},{"$f":"SQRT((AB221^2)+(AB222^2)+(AB223^2)+(AB224^2))","v":47.728398255126898},{"$f":"AC221+AC222+AC223+AC224","v":2},{"$f":"SQRT((AD221^2)+(AD222^2)+(AD223^2)+(AD224^2))","v":19.697715603592208},{"$f":"AE221+AE222+AE223+AE224","v":134},{"$f":"SQRT((AF221^2)+(AF222^2)+(AF223^2)+(AF224^2))","v":83.396642618273304},{"$f":"AG221+AG222+AG223+AG224","v":11},{"$f":"SQRT((AH221^2)+(AH222^2)+(AH223^2)+(AH224^2))","v":31.606961258558215},{"$f":"AI221+AI222+AI223+AI224","v":66},{"$f":"SQRT((AJ221^2)+(AJ222^2)+(AJ223^2)+(AJ224^2))","v":62.94441992742486},{"$f":"AK221+AK222+AK223+AK224","v":5},{"$f":"SQRT((AL221^2)+(AL222^2)+(AL223^2)+(AL224^2))","v":20.297783130184438},{"$f":"AM221+AM222+AM223+AM224","v":7},{"$f":"SQRT((AN221^2)+(AN222^2)+(AN223^2)+(AN224^2))","v":22.516660498395403},{"$f":"AO221+AO222+AO223+AO224","v":46},{"$f":"SQRT((AP221^2)+(AP222^2)+(AP223^2)+(AP224^2))","v":49.020403915104573},{"$f":"AQ221+AQ222+AQ223+AQ224","v":82},{"$f":"SQRT((AR221^2)+(AR222^2)+(AR223^2)+(AR224^2))","v":81.578183358052286},{"$f":"AS221+AS222+AS223+AS224","v":61},{"$f":"SQRT((AT221^2)+(AT222^2)+(AT223^2)+(AT224^2))","v":57.262553208881634},{"$f":"AU221+AU222+AU223+AU224","v":3},{"$f":"SQRT((AV221^2)+(AV222^2)+(AV223^2)+(AV224^2))","v":19.974984355438178},{"$f":"AW221+AW222+AW223+AW224","v":12},{"$f":"SQRT((AX221^2)+(AX222^2)+(AX223^2)+(AX224^2))","v":24.879710609249457},{"$f":"AY221+AY222+AY223+AY224","v":39},{"$f":"SQRT((AZ221^2)+(AZ222^2)+(AZ223^2)+(AZ224^2))","v":32.171415884290823},{"$f":"BA221+BA222+BA223+BA224","v":12},{"$f":"SQRT((BB221^2)+(BB222^2)+(BB223^2)+(BB224^2))","v":18.193405398660254},{"$f":"BC221+BC222+BC223+BC224","v":16},{"$f":"SQRT((BD221^2)+(BD222^2)+(BD223^2)+(BD224^2))","v":23.57965224510319}]
[null,"35.0 percent or more",{"$f":"C225+C226+C227","v":0},{"$f":"SQRT((D225^2)+(D226^2)+(D227^2))","v":19.05255888325765},{"$f":"E225+E226+E227","v":0},{"$f":"SQRT((F225^2)+(F226^2)+(F227^2))","v":19.05255888325765},{"$f":"G225+G226+G227","v":0},{"$f":"SQRT((H225^2)+(H226^2)+(H227^2))","v":19.05255888325765},{"$f":"I225+I226+I227","v":0},{"$f":"SQRT((J225^2)+(J226^2)+(J227^2))","v":25.98076211353316},{"$f":"K225+K226+K227","v":0},{"$f":"SQRT((L225^2)+(L226^2)+(L227^2))","v":19.05255888325765},{"$f":"M225+M226+M227","v":0},{"$f":"SQRT((N225^2)+(N226^2)+(N227^2))","v":19.05255888325765},{"$f":"O225+O226+O227","v":0},{"$f":"SQRT((P225^2)+(P226^2)+(P227^2))","v":19.05255888325765},{"$f":"Q225+Q226+Q227","v":0},{"$f":"SQRT((R225^2)+(R226^2)+(R227^2))","v":39.837168574084181},{"$f":"S225+S226+S227","v":0},{"$f":"SQRT((T225^2)+(T226^2)+(T227^2))","v":19.05255888325765},{"$f":"U225+U226+U227","v":0},{"$f":"SQRT((V225^2)+(V226^2)+(V227^2))","v":19.05255888325765},{"$f":"W225+W226+W227","v":0},{"$f":"SQRT((X225^2)+(X226^2)+(X227^2))","v":19.05255888325765},{"$f":"Y225+Y226+Y227","v":0},{"$f":"SQRT((Z225^2)+(Z226^2)+(Z227^2))","v":25.98076211353316},{"$f":"AA225+AA226+AA227","v":0},{"$f":"SQRT((AB225^2)+(AB226^2)+(AB227^2))","v":19.05255888325765},{"$f":"AC225+AC226+AC227","v":0},{"$f":"SQRT((AD225^2)+(AD226^2)+(AD227^2))","v":19.05255888325765},{"$f":"AE225+AE226+AE227","v":0},{"$f":"SQRT((AF225^2)+(AF226^2)+(AF227^2))","v":29.444863728670914},{"$f":"AG225+AG226+AG227","v":0},{"$f":"SQRT((AH225^2)+(AH226^2)+(AH227^2))","v":25.98076211353316},{"$f":"AI225+AI226+AI227","v":0},{"$f":"SQRT((AJ225^2)+(AJ226^2)+(AJ227^2))","v":25.98076211353316},{"$f":"AK225+AK226+AK227","v":0},{"$f":"SQRT((AL225^2)+(AL226^2)+(AL227^2))","v":19.05255888325765},{"$f":"AM225+AM226+AM227","v":0},{"$f":"SQRT((AN225^2)+(AN226^2)+(AN227^2))","v":19.05255888325765},{"$f":"AO225+AO226+AO227","v":0},{"$f":"SQRT((AP225^2)+(AP226^2)+(AP227^2))","v":19.05255888325765},{"$f":"AQ225+AQ226+AQ227","v":0},{"$f":"SQRT((AR225^2)+(AR226^2)+(AR227^2))","v":25.98076211353316},{"$f":"AS225+AS226+AS227","v":0},{"$f":"SQRT((AT225^2)+(AT226^2)+(AT227^2))","v":19.05255888325765},{"$f":"AU225+AU226+AU227","v":0},{"$f":"SQRT((AV225^2)+(AV226^2)+(AV227^2))","v":19.05255888325765},{"$f":"AW225+AW226+AW227","v":0},{"$f":"SQRT((AX225^2)+(AX226^2)+(AX227^2))","v":19.05255888325765},{"$f":"AY225+AY226+AY227","v":0},{"$f":"SQRT((AZ225^2)+(AZ226^2)+(AZ227^2))","v":19.05255888325765},{"$f":"BA225+BA226+BA227","v":0},{"$f":"SQRT((BB225^2)+(BB226^2)+(BB227^2))","v":19.05255888325765},{"$f":"BC225+BC226+BC227","v":0},{"$f":"SQRT((BD225^2)+(BD226^2)+(BD227^2))","v":19.05255888325765}]
[null,"50.0 percent or more",{"$f":"C227","v":0},11,0,11,0,11,0,15,0,11,0,11,0,11,0,23,0,11,0,11,0,11,0,15,0,11,0,11,0,17,0,15,0,15,0,11,0,11,0,11,0,15,0,11,0,11,0,11,0,11,0,11,0,11]
[null,"Not Computed",0,11,0,11,0,11,0,15,0,11,5,7,0,11,23,25,0,11,5,8,0,11,0,15,0,11,0,11,0,17,0,15,0,15,0,11,0,11,0,11,0,15,0,11,0,11,4,5,0,11,0,11,0,11]
[null,"$100,000 or more:",38,44,29,31,21,27,8,11,2,4,0,11,39,35,458,139,0,11,36,34,49,66,0,15,46,51,0,11,58,66,64,65,20,32,14,23,72,52,47,37,48,82,35,36,2,3,14,17,26,28,4,6,22,21]
[null,"Less than 30.0 percent",{"$f":"C230+C231+C232","v":38},{"$f":"SQRT((D230^2)+(D231^2)+(D232^2))","v":46.669047558312137},{"$f":"E230+E231+E232","v":16},{"$f":"SQRT((F230^2)+(F231^2)+(F232^2))","v":29.444863728670914},{"$f":"G230+G231+G232","v":15},{"$f":"SQRT((H230^2)+(H231^2)+(H232^2))","v":28.600699292150182},{"$f":"I230+I231+I232","v":8},{"$f":"SQRT((J230^2)+(J231^2)+(J232^2))","v":23.895606290697042},{"$f":"K230+K231+K232","v":2},{"$f":"SQRT((L230^2)+(L231^2)+(L232^2))","v":16.06237840420901},{"$f":"M230+M231+M232","v":0},{"$f":"SQRT((N230^2)+(N231^2)+(N232^2))","v":19.05255888325765},{"$f":"O230+O231+O232","v":39},{"$f":"SQRT((P230^2)+(P231^2)+(P232^2))","v":38.301436004411116},{"$f":"Q230+Q231+Q232","v":458},{"$f":"SQRT((R230^2)+(R231^2)+(R232^2))","v":140.81548210335396},{"$f":"S230+S231+S232","v":0},{"$f":"SQRT((T230^2)+(T231^2)+(T232^2))","v":19.05255888325765},{"$f":"U230+U231+U232","v":13},{"$f":"SQRT((V230^2)+(V231^2)+(V232^2))","v":20.273134932713294},{"$f":"W230+W231+W232","v":49},{"$f":"SQRT((X230^2)+(X231^2)+(X232^2))","v":67.808554032658748},{"$f":"Y230+Y231+Y232","v":0},{"$f":"SQRT((Z230^2)+(Z231^2)+(Z232^2))","v":25.98076211353316},{"$f":"AA230+AA231+AA232","v":46},{"$f":"SQRT((AB230^2)+(AB231^2)+(AB232^2))","v":53.319789947073126},{"$f":"AC230+AC231+AC232","v":0},{"$f":"SQRT((AD230^2)+(AD231^2)+(AD232^2))","v":19.05255888325765},{"$f":"AE230+AE231+AE232","v":58},{"$f":"SQRT((AF230^2)+(AF231^2)+(AF232^2))","v":70.242437315343778},{"$f":"AG230+AG231+AG232","v":64},{"$f":"SQRT((AH230^2)+(AH231^2)+(AH232^2))","v":68.37397165588672},{"$f":"AI230+AI231+AI232","v":20},{"$f":"SQRT((AJ230^2)+(AJ231^2)+(AJ232^2))","v":38.392707640904931},{"$f":"AK230+AK231+AK232","v":0},{"$f":"SQRT((AL230^2)+(AL231^2)+(AL232^2))","v":19.05255888325765},{"$f":"AM230+AM231+AM232","v":72},{"$f":"SQRT((AN230^2)+(AN231^2)+(AN232^2))","v":54.277066980447643},{"$f":"AO230+AO231+AO232","v":47},{"$f":"SQRT((AP230^2)+(AP231^2)+(AP232^2))","v":40.137264480778953},{"$f":"AQ230+AQ231+AQ232","v":48},{"$f":"SQRT((AR230^2)+(AR231^2)+(AR232^2))","v":84.699468711438797},{"$f":"AS230+AS231+AS232","v":35},{"$f":"SQRT((AT230^2)+(AT231^2)+(AT232^2))","v":39.217343102255157},{"$f":"AU230+AU231+AU232","v":0},{"$f":"SQRT((AV230^2)+(AV231^2)+(AV232^2))","v":19.05255888325765},{"$f":"AW230+AW231+AW232","v":14},{"$f":"SQRT((AX230^2)+(AX231^2)+(AX232^2))","v":23.043437243605826},{"$f":"AY230+AY231+AY232","v":22},{"$f":"SQRT((AZ230^2)+(AZ231^2)+(AZ232^2))","v":31.160872901765767},{"$f":"BA230+BA231+BA232","v":4},{"$f":"SQRT((BB230^2)+(BB231^2)+(BB232^2))","v":16.673332000533065},{"$f":"BC230+BC231+BC232","v":22},{"$f":"SQRT((BD230^2)+(BD231^2)+(BD232^2))","v":26.134268690743959}]
[null,"More than 30.0 percent",{"$f":"C233+C234+C235+C236","v":0},{"$f":"SQRT((D233^2)+(D234^2)+(D235^2)+(D236^2))","v":22},{"$f":"E233+E234+E235+E236","v":0},{"$f":"SQRT((F233^2)+(F234^2)+(F235^2)+(F236^2))","v":22},{"$f":"G233+G234+G235+G236","v":0},{"$f":"SQRT((H233^2)+(H234^2)+(H235^2)+(H236^2))","v":22},{"$f":"I233+I234+I235+I236","v":0},{"$f":"SQRT((J233^2)+(J234^2)+(J235^2)+(J236^2))","v":30},{"$f":"K233+K234+K235+K236","v":0},{"$f":"SQRT((L233^2)+(L234^2)+(L235^2)+(L236^2))","v":22},{"$f":"M233+M234+M235+M236","v":0},{"$f":"SQRT((N233^2)+(N234^2)+(N235^2)+(N236^2))","v":22},{"$f":"O233+O234+O235+O236","v":0},{"$f":"SQRT((P233^2)+(P234^2)+(P235^2)+(P236^2))","v":22},{"$f":"Q233+Q234+Q235+Q236","v":0},{"$f":"SQRT((R233^2)+(R234^2)+(R235^2)+(R236^2))","v":46},{"$f":"S233+S234+S235+S236","v":0},{"$f":"SQRT((T233^2)+(T234^2)+(T235^2)+(T236^2))","v":22},{"$f":"U233+U234+U235+U236","v":0},{"$f":"SQRT((V233^2)+(V234^2)+(V235^2)+(V236^2))","v":22},{"$f":"W233+W234+W235+W236","v":0},{"$f":"SQRT((X233^2)+(X234^2)+(X235^2)+(X236^2))","v":22},{"$f":"Y233+Y234+Y235+Y236","v":0},{"$f":"SQRT((Z233^2)+(Z234^2)+(Z235^2)+(Z236^2))","v":30},{"$f":"AA233+AA234+AA235+AA236","v":0},{"$f":"SQRT((AB233^2)+(AB234^2)+(AB235^2)+(AB236^2))","v":22},{"$f":"AC233+AC234+AC235+AC236","v":0},{"$f":"SQRT((AD233^2)+(AD234^2)+(AD235^2)+(AD236^2))","v":22},{"$f":"AE233+AE234+AE235+AE236","v":0},{"$f":"SQRT((AF233^2)+(AF234^2)+(AF235^2)+(AF236^2))","v":34},{"$f":"AG233+AG234+AG235+AG236","v":0},{"$f":"SQRT((AH233^2)+(AH234^2)+(AH235^2)+(AH236^2))","v":30},{"$f":"AI233+AI234+AI235+AI236","v":0},{"$f":"SQRT((AJ233^2)+(AJ234^2)+(AJ235^2)+(AJ236^2))","v":30},{"$f":"AK233+AK234+AK235+AK236","v":0},{"$f":"SQRT((AL233^2)+(AL234^2)+(AL235^2)+(AL236^2))","v":22},{"$f":"AM233+AM234+AM235+AM236","v":0},{"$f":"SQRT((AN233^2)+(AN234^2)+(AN235^2)+(AN236^2))","v":22},{"$f":"AO233+AO234+AO235+AO236","v":0},{"$f":"SQRT((AP233^2)+(AP234^2)+(AP235^2)+(AP236^2))","v":22},{"$f":"AQ233+AQ234+AQ235+AQ236","v":0},{"$f":"SQRT((AR233^2)+(AR234^2)+(AR235^2)+(AR236^2))","v":30},{"$f":"AS233+AS234+AS235+AS236","v":0},{"$f":"SQRT((AT233^2)+(AT234^2)+(AT235^2)+(AT236^2))","v":22},{"$f":"AU233+AU234+AU235+AU236","v":0},{"$f":"SQRT((AV233^2)+(AV234^2)+(AV235^2)+(AV236^2))","v":22},{"$f":"AW233+AW234+AW235+AW236","v":0},{"$f":"SQRT((AX233^2)+(AX234^2)+(AX235^2)+(AX236^2))","v":22},{"$f":"AY233+AY234+AY235+AY236","v":0},{"$f":"SQRT((AZ233^2)+(AZ234^2)+(AZ235^2)+(AZ236^2))","v":22},{"$f":"BA233+BA234+BA235+BA236","v":0},{"$f":"SQRT((BB233^2)+(BB234^2)+(BB235^2)+(BB236^2))","v":22},{"$f":"BC233+BC234+BC235+BC236","v":0},{"$f":"SQRT((BD233^2)+(BD234^2)+(BD235^2)+(BD236^2))","v":22}]
[null,"Less Than 35% of HH Income",{"$f":"C230+C231+C232+C233","v":38},{"$f":"SQRT(((D230^2)+(D231^2)+(D232^2)+(D233^2)))","v":47.947888378947411},{"$f":"E230+E231+E232+E233","v":16},{"$f":"SQRT(((F230^2)+(F231^2)+(F232^2)+(F233^2)))","v":31.432467291003423},{"$f":"G230+G231+G232+G233","v":15},{"$f":"SQRT(((H230^2)+(H231^2)+(H232^2)+(H233^2)))","v":30.643106892089126},{"$f":"I230+I231+I232+I233","v":8},{"$f":"SQRT(((J230^2)+(J231^2)+(J232^2)+(J233^2)))","v":28.21347195933177},{"$f":"K230+K231+K232+K233","v":2},{"$f":"SQRT(((L230^2)+(L231^2)+(L232^2)+(L233^2)))","v":19.467922333931785},{"$f":"M230+M231+M232+M233","v":0},{"$f":"SQRT(((N230^2)+(N231^2)+(N232^2)+(N233^2)))","v":22},{"$f":"O230+O231+O232+O233","v":39},{"$f":"SQRT(((P230^2)+(P231^2)+(P232^2)+(P233^2)))","v":39.849717690342551},{"$f":"Q230+Q231+Q232+Q233","v":458},{"$f":"SQRT(((R230^2)+(R231^2)+(R232^2)+(R233^2)))","v":142.68146340712937},{"$f":"S230+S231+S232+S233","v":0},{"$f":"SQRT(((T230^2)+(T231^2)+(T232^2)+(T233^2)))","v":22},{"$f":"U230+U231+U232+U233","v":13},{"$f":"SQRT(((V230^2)+(V231^2)+(V232^2)+(V233^2)))","v":23.065125189341593},{"$f":"W230+W231+W232+W233","v":49},{"$f":"SQRT(((X230^2)+(X231^2)+(X232^2)+(X233^2)))","v":68.694977982382383},{"$f":"Y230+Y231+Y232+Y233","v":0},{"$f":"SQRT(((Z230^2)+(Z231^2)+(Z232^2)+(Z233^2)))","v":30},{"$f":"AA230+AA231+AA232+AA233","v":46},{"$f":"SQRT(((AB230^2)+(AB231^2)+(AB232^2)+(AB233^2)))","v":54.442630355264797},{"$f":"AC230+AC231+AC232+AC233","v":0},{"$f":"SQRT(((AD230^2)+(AD231^2)+(AD232^2)+(AD233^2)))","v":22},{"$f":"AE230+AE231+AE232+AE233","v":58},{"$f":"SQRT(((AF230^2)+(AF231^2)+(AF232^2)+(AF233^2)))","v":72.270325860618613},{"$f":"AG230+AG231+AG232+AG233","v":64},{"$f":"SQRT(((AH230^2)+(AH231^2)+(AH232^2)+(AH233^2)))","v":70},{"$f":"AI230+AI231+AI232+AI233","v":20},{"$f":"SQRT(((AJ230^2)+(AJ231^2)+(AJ232^2)+(AJ233^2)))","v":41.218927691049899},{"$f":"AK230+AK231+AK232+AK233","v":0},{"$f":"SQRT(((AL230^2)+(AL231^2)+(AL232^2)+(AL233^2)))","v":22},{"$f":"AM230+AM231+AM232+AM233","v":72},{"$f":"SQRT(((AN230^2)+(AN231^2)+(AN232^2)+(AN233^2)))","v":55.380501984001555},{"$f":"AO230+AO231+AO232+AO233","v":47},{"$f":"SQRT(((AP230^2)+(AP231^2)+(AP232^2)+(AP233^2)))","v":41.617304093369626},{"$f":"AQ230+AQ231+AQ232+AQ233","v":48},{"$f":"SQRT(((AR230^2)+(AR231^2)+(AR232^2)+(AR233^2)))","v":86.017440092111556},{"$f":"AS230+AS231+AS232+AS233","v":35},{"$f":"SQRT(((AT230^2)+(AT231^2)+(AT232^2)+(AT233^2)))","v":40.730823708832602},{"$f":"AU230+AU231+AU232+AU233","v":0},{"$f":"SQRT(((AV230^2)+(AV231^2)+(AV232^2)+(AV233^2)))","v":22},{"$f":"AW230+AW231+AW232+AW233","v":14},{"$f":"SQRT(((AX230^2)+(AX231^2)+(AX232^2)+(AX233^2)))","v":25.534290669607408},{"$f":"AY230+AY231+AY232+AY233","v":22},{"$f":"SQRT(((AZ230^2)+(AZ231^2)+(AZ232^2)+(AZ233^2)))","v":33.045423283716609},{"$f":"BA230+BA231+BA232+BA233","v":4},{"$f":"SQRT(((BB230^2)+(BB231^2)+(BB232^2)+(BB233^2)))","v":19.974984355438178},{"$f":"BC230+BC231+BC232+BC233","v":22},{"$f":"SQRT(((BD230^2)+(BD231^2)+(BD232^2)+(BD233^2)))","v":28.354893757515651}]
[null,"35.0 percent or more",{"$f":"C234+C235+C236","v":0},{"$f":"SQRT((D234^2)+(D235^2)+(D236^2))","v":19.05255888325765},{"$f":"E234+E235+E236","v":0},{"$f":"SQRT((F234^2)+(F235^2)+(F236^2))","v":19.05255888325765},{"$f":"G234+G235+G236","v":0},{"$f":"SQRT((H234^2)+(H235^2)+(H236^2))","v":19.05255888325765},{"$f":"I234+I235+I236","v":0},{"$f":"SQRT((J234^2)+(J235^2)+(J236^2))","v":25.98076211353316},{"$f":"K234+K235+K236","v":0},{"$f":"SQRT((L234^2)+(L235^2)+(L236^2))","v":19.05255888325765},{"$f":"M234+M235+M236","v":0},{"$f":"SQRT((N234^2)+(N235^2)+(N236^2))","v":19.05255888325765},{"$f":"O234+O235+O236","v":0},{"$f":"SQRT((P234^2)+(P235^2)+(P236^2))","v":19.05255888325765},{"$f":"Q234+Q235+Q236","v":0},{"$f":"SQRT((R234^2)+(R235^2)+(R236^2))","v":39.837168574084181},{"$f":"S234+S235+S236","v":0},{"$f":"SQRT((T234^2)+(T235^2)+(T236^2))","v":19.05255888325765},{"$f":"U234+U235+U236","v":0},{"$f":"SQRT((V234^2)+(V235^2)+(V236^2))","v":19.05255888325765},{"$f":"W234+W235+W236","v":0},{"$f":"SQRT((X234^2)+(X235^2)+(X236^2))","v":19.05255888325765},{"$f":"Y234+Y235+Y236","v":0},{"$f":"SQRT((Z234^2)+(Z235^2)+(Z236^2))","v":25.98076211353316},{"$f":"AA234+AA235+AA236","v":0},{"$f":"SQRT((AB234^2)+(AB235^2)+(AB236^2))","v":19.05255888325765},{"$f":"AC234+AC235+AC236","v":0},{"$f":"SQRT((AD234^2)+(AD235^2)+(AD236^2))","v":19.05255888325765},{"$f":"AE234+AE235+AE236","v":0},{"$f":"SQRT((AF234^2)+(AF235^2)+(AF236^2))","v":29.444863728670914},{"$f":"AG234+AG235+AG236","v":0},{"$f":"SQRT((AH234^2)+(AH235^2)+(AH236^2))","v":25.98076211353316},{"$f":"AI234+AI235+AI236","v":0},{"$f":"SQRT((AJ234^2)+(AJ235^2)+(AJ236^2))","v":25.98076211353316},{"$f":"AK234+AK235+AK236","v":0},{"$f":"SQRT((AL234^2)+(AL235^2)+(AL236^2))","v":19.05255888325765},{"$f":"AM234+AM235+AM236","v":0},{"$f":"SQRT((AN234^2)+(AN235^2)+(AN236^2))","v":19.05255888325765},{"$f":"AO234+AO235+AO236","v":0},{"$f":"SQRT((AP234^2)+(AP235^2)+(AP236^2))","v":19.05255888325765},{"$f":"AQ234+AQ235+AQ236","v":0},{"$f":"SQRT((AR234^2)+(AR235^2)+(AR236^2))","v":25.98076211353316},{"$f":"AS234+AS235+AS236","v":0},{"$f":"SQRT((AT234^2)+(AT235^2)+(AT236^2))","v":19.05255888325765},{"$f":"AU234+AU235+AU236","v":0},{"$f":"SQRT((AV234^2)+(AV235^2)+(AV236^2))","v":19.05255888325765},{"$f":"AW234+AW235+AW236","v":0},{"$f":"SQRT((AX234^2)+(AX235^2)+(AX236^2))","v":19.05255888325765},{"$f":"AY234+AY235+AY236","v":0},{"$f":"SQRT((AZ234^2)+(AZ235^2)+(AZ236^2))","v":19.05255888325765},{"$f":"BA234+BA235+BA236","v":0},{"$f":"SQRT((BB234^2)+(BB235^2)+(BB236^2))","v":19.05255888325765},{"$f":"BC234+BC235+BC236","v":0},{"$f":"SQRT((BD234^2)+(BD235^2)+(BD236^2))","v":19.05255888325765}]
[null,"50.0 percent or more",{"$f":"C236","v":0},{"$f":"D236","v":11},{"$f":"E236","v":0},{"$f":"F236","v":11},{"$f":"G236","v":0},11,{"$f":"I236","v":0},15,{"$f":"K236","v":0},11,{"$f":"M236","v":0},11,{"$f":"O236","v":0},11,{"$f":"Q236","v":0},23,{"$f":"S236","v":0},11,{"$f":"U236","v":0},11,{"$f":"W236","v":0},11,{"$f":"Y236","v":0},15,{"$f":"AA236","v":0},11,{"$f":"AC236","v":0},11,{"$f":"AE236","v":0},17,{"$f":"AG236","v":0},15,{"$f":"AI236","v":0},15,{"$f":"AK236","v":0},11,{"$f":"AM236","v":0},11,{"$f":"AO236","v":0},11,{"$f":"AQ236","v":0},15,{"$f":"AS236","v":0},11,{"$f":"AU236","v":0},11,{"$f":"AW236","v":0},11,{"$f":"AY236","v":0},11,{"$f":"BA236","v":0},11,{"$f":"BC236","v":0},11]
[null,"Not Computed",{"$f":"C237","v":0},11,{"$f":"E237","v":13},19,{"$f":"G237","v":6},11,{"$f":"I237","v":0},15,{"$f":"K237","v":0},11,{"$f":"M237","v":0},11,{"$f":"O237","v":0},11,{"$f":"Q237","v":0},23,{"$f":"S237","v":0},11,{"$f":"U237","v":23},32,{"$f":"W237","v":0},11,{"$f":"Y237","v":0},15,{"$f":"AA237","v":0},11,{"$f":"AC237","v":0},11,{"$f":"AE237","v":0},17,{"$f":"AG237","v":0},15,{"$f":"AI237","v":0},15,{"$f":"AK237","v":14},23,{"$f":"AM237","v":0},11,{"$f":"AO237","v":0},11,{"$f":"AQ237","v":0},15,{"$f":"AS237","v":0},11,{"$f":"AU237","v":2},3,{"$f":"AW237","v":0},11,{"$f":"AY237","v":4},7,{"$f":"BA237","v":0},11,{"$f":"BC237","v":0},11]
[]
[]
[null,"Calculated GROSS RENT AS A PERCENTAGE OF HOUSEHOLD INCOME IN THE PAST 12 MONTHS"]
[null,"Universe:  RENTER-OCCUPIED HOUSING UNITS"]
[null,"Data Set: 2010-2014 American Community Survey 5-Year Estimates"]
[]
[null,null,"Allenstown",null,"Andover",null,"Boscawen",null,"Bow",null,"Bradford",null,"Canterbury",null,"Chichester",null,"Concord",null,"Danbury",null,"Dunbarton",null,"Epsom",null,"Franklin",null,"Henniker",null,"Hill",null,"Hooksett",null,"Hopkinton",null,"Loudon",null,"Newbury",null,"New London",null,"Northfield",null,"Pembroke",null,"Pittsfield",null,"Salisbury",null,"Sutton",null,"Warner",null,"Webster",null,"Wilmot"]
[null,null,"Estimate","Margin Of Error","Estimate","Margin Of Error","Estimate","Margin Of Error","Estimate","Margin Of Error","Estimate","Margin Of Error","Estimate","Margin Of Error","Estimate","Margin Of Error","Estimate","Margin Of Error","Estimate","Margin Of Error","Estimate","Margin Of Error","Estimate","Margin Of Error","Estimate","Margin Of Error","Estimate","Margin Of Error","Estimate","Margin Of Error","Estimate","Margin Of Error","Estimate","Margin Of Error","Estimate","Margin Of Error","Estimate","Margin Of Error","Estimate","Margin Of Error","Estimate","Margin Of Error","Estimate","Margin Of Error","Estimate","Margin Of Error","Estimate","Margin Of Error","Estimate","Margin Of Error","Estimate","Margin Of Error","Estimate","Margin Of Error","Estimate","Margin Of Error"]
[null,{"$f":"B259","v":"Total:"},535,128,136,60,386,104,317,80,79,33,40,21,98,50,7765,311,95,43,136,55,286,108,1364,180,527,116,32,23,743,144,276,113,320,119,40,29,369,114,416,87,801,168,624,113,41,25,92,38,252,84,97,46,110,42]
[null,"Less than 30.0 percent",{"$f":"C303+C296+C289+C282+C275+C268+C261","v":227},{"$f":"SQRT((D303^2)+(D296^2)+(D289^2)+(D282^2)+(D275^2)+(D268^2)+(D261^2))","v":99.784768376741752},{"$f":"E303+E296+E289+E282+E275+E268+E261","v":50},{"$f":"SQRT((F303^2)+(F296^2)+(F289^2)+(F282^2)+(F275^2)+(F268^2)+(F261^2))","v":60.32412452742269},{"$f":"G303+G296+G289+G282+G275+G268+G261","v":115},{"$f":"SQRT((H303^2)+(H296^2)+(H289^2)+(H282^2)+(H275^2)+(H268^2)+(H261^2))","v":84.699468711438797},{"$f":"I303+I296+I289+I282+I275+I268+I261","v":67},{"$f":"SQRT((J303^2)+(J296^2)+(J289^2)+(J282^2)+(J275^2)+(J268^2)+(J261^2))","v":73.688533707762161},{"$f":"K303+K296+K289+K282+K275+K268+K261","v":19},{"$f":"SQRT((L303^2)+(L296^2)+(L289^2)+(L282^2)+(L275^2)+(L268^2)+(L261^2))","v":45.727453460694704},{"$f":"M303+M296+M289+M282+M275+M268+M261","v":25},{"$f":"SQRT((N303^2)+(N296^2)+(N289^2)+(N282^2)+(N275^2)+(N268^2)+(N261^2))","v":49.457052075512955},{"$f":"O303+O296+O289+O282+O275+O268+O261","v":65},{"$f":"SQRT((P303^2)+(P296^2)+(P289^2)+(P282^2)+(P275^2)+(P268^2)+(P261^2))","v":62.896740774065549},{"$f":"Q303+Q296+Q289+Q282+Q275+Q268+Q261","v":3735},{"$f":"SQRT((R303^2)+(R296^2)+(R289^2)+(R282^2)+(R275^2)+(R268^2)+(R261^2))","v":401.62046760592267},{"$f":"S303+S296+S289+S282+S275+S268+S261","v":77},{"$f":"SQRT((T303^2)+(T296^2)+(T289^2)+(T282^2)+(T275^2)+(T268^2)+(T261^2))","v":62.393909959225986},{"$f":"U303+U296+U289+U282+U275+U268+U261","v":48},{"$f":"SQRT((V303^2)+(V296^2)+(V289^2)+(V282^2)+(V275^2)+(V268^2)+(V261^2))","v":50.069951068480187},{"$f":"W303+W296+W289+W282+W275+W268+W261","v":71},{"$f":"SQRT((X303^2)+(X296^2)+(X289^2)+(X282^2)+(X275^2)+(X268^2)+(X261^2))","v":82.716382899640877},{"$f":"Y303+Y296+Y289+Y282+Y275+Y268+Y261","v":432},{"$f":"SQRT((Z303^2)+(Z296^2)+(Z289^2)+(Z282^2)+(Z275^2)+(Z268^2)+(Z261^2))","v":134.38005804433931},{"$f":"AA303+AA296+AA289+AA282+AA275+AA268+AA261","v":235},{"$f":"SQRT((AB303^2)+(AB296^2)+(AB289^2)+(AB282^2)+(AB275^2)+(AB268^2)+(AB261^2))","v":117.23054209547954},{"$f":"AC303+AC296+AC289+AC282+AC275+AC268+AC261","v":24},{"$f":"SQRT((AD303^2)+(AD296^2)+(AD289^2)+(AD282^2)+(AD275^2)+(AD268^2)+(AD261^2))","v":50.229473419497438},{"$f":"AE303+AE296+AE289+AE282+AE275+AE268+AE261","v":391},{"$f":"SQRT((AF303^2)+(AF296^2)+(AF289^2)+(AF282^2)+(AF275^2)+(AF268^2)+(AF261^2))","v":143.72543268329375},{"$f":"AG303+AG296+AG289+AG282+AG275+AG268+AG261","v":228},{"$f":"SQRT((AH303^2)+(AH296^2)+(AH289^2)+(AH282^2)+(AH275^2)+(AH268^2)+(AH261^2))","v":144.35373219975992},{"$f":"AI303+AI296+AI289+AI282+AI275+AI268+AI261","v":150},{"$f":"SQRT((AJ303^2)+(AJ296^2)+(AJ289^2)+(AJ282^2)+(AJ275^2)+(AJ268^2)+(AJ261^2))","v":112.03570859328734},{"$f":"AK303+AK296+AK289+AK282+AK275+AK268+AK261","v":22},{"$f":"SQRT((AL303^2)+(AL296^2)+(AL289^2)+(AL282^2)+(AL275^2)+(AL268^2)+(AL261^2))","v":49.869830559166729},{"$f":"AM303+AM296+AM289+AM282+AM275+AM268+AM261","v":161},{"$f":"SQRT((AN303^2)+(AN296^2)+(AN289^2)+(AN282^2)+(AN275^2)+(AN268^2)+(AN261^2))","v":93.112834775878241},{"$f":"AO303+AO296+AO289+AO282+AO275+AO268+AO261","v":215},{"$f":"SQRT((AP303^2)+(AP296^2)+(AP289^2)+(AP282^2)+(AP275^2)+(AP268^2)+(AP261^2))","v":98.21405194777374},{"$f":"AQ303+AQ296+AQ289+AQ282+AQ275+AQ268+AQ261","v":367},{"$f":"SQRT((AR303^2)+(AR296^2)+(AR289^2)+(AR282^2)+(AR275^2)+(AR268^2)+(AR261^2))","v":172.77731332556365},{"$f":"AS303+AS296+AS289+AS282+AS275+AS268+AS261","v":290},{"$f":"SQRT((AT303^2)+(AT296^2)+(AT289^2)+(AT282^2)+(AT275^2)+(AT268^2)+(AT261^2))","v":111.15754585272202},{"$f":"AU303+AU296+AU289+AU282+AU275+AU268+AU261","v":8},{"$f":"SQRT((AV303^2)+(AV296^2)+(AV289^2)+(AV282^2)+(AV275^2)+(AV268^2)+(AV261^2))","v":47.581509013481273},{"$f":"AW303+AW296+AW289+AW282+AW275+AW268+AW261","v":65},{"$f":"SQRT((AX303^2)+(AX296^2)+(AX289^2)+(AX282^2)+(AX275^2)+(AX268^2)+(AX261^2))","v":56.302753041036986},{"$f":"AY303+AY296+AY289+AY282+AY275+AY268+AY261","v":136},{"$f":"SQRT((AZ303^2)+(AZ296^2)+(AZ289^2)+(AZ282^2)+(AZ275^2)+(AZ268^2)+(AZ261^2))","v":71.119617546778187},{"$f":"BA303+BA296+BA289+BA282+BA275+BA268+BA261","v":37},{"$f":"SQRT((BB303^2)+(BB296^2)+(BB289^2)+(BB282^2)+(BB275^2)+(BB268^2)+(BB261^2))","v":43.405068828421413},{"$f":"BC303+BC296+BC289+BC282+BC275+BC268+BC261","v":57},{"$f":"SQRT((BD303^2)+(BD296^2)+(BD289^2)+(BD282^2)+(BD275^2)+(BD268^2)+(BD261^2))","v":56.044625076808217}]
[null,"More than 30.0 percent",{"$f":"C304+C297+C290+C283+C276+C269+C262","v":257},{"$f":"SQRT((D304^2)+(D297^2)+(D290^2)+(D283^2)+(D276^2)+(D269^2)+(D262^2))","v":131.59027319676784},{"$f":"E304+E297+E290+E283+E276+E269+E262","v":57},{"$f":"SQRT((F304^2)+(F297^2)+(F290^2)+(F283^2)+(F276^2)+(F269^2)+(F262^2))","v":63.765194267719437},{"$f":"G304+G297+G290+G283+G276+G269+G262","v":251},{"$f":"SQRT((H304^2)+(H297^2)+(H290^2)+(H283^2)+(H276^2)+(H269^2)+(H262^2))","v":108.8622983406101},{"$f":"I304+I297+I290+I283+I276+I269+I262","v":221},{"$f":"SQRT((J304^2)+(J297^2)+(J290^2)+(J283^2)+(J276^2)+(J269^2)+(J262^2))","v":110.06816070054046},{"$f":"K304+K297+K290+K283+K276+K269+K262","v":53},{"$f":"SQRT((L304^2)+(L297^2)+(L290^2)+(L283^2)+(L276^2)+(L269^2)+(L262^2))","v":58.898217290508889},{"$f":"M304+M297+M290+M283+M276+M269+M262","v":10},{"$f":"SQRT((N304^2)+(N297^2)+(N290^2)+(N283^2)+(N276^2)+(N269^2)+(N262^2))","v":58.025856305616031},{"$f":"O304+O297+O290+O283+O276+O269+O262","v":20},{"$f":"SQRT((P304^2)+(P297^2)+(P290^2)+(P283^2)+(P276^2)+(P269^2)+(P262^2))","v":60.917977642072131},{"$f":"Q304+Q297+Q290+Q283+Q276+Q269+Q262","v":3696},{"$f":"SQRT((R304^2)+(R297^2)+(R290^2)+(R283^2)+(R276^2)+(R269^2)+(R262^2))","v":412.46211947280688},{"$f":"S304+S297+S290+S283+S276+S269+S262","v":9},{"$f":"SQRT((T304^2)+(T297^2)+(T290^2)+(T283^2)+(T276^2)+(T269^2)+(T262^2))","v":57.02630971753301},{"$f":"U304+U297+U290+U283+U276+U269+U262","v":55},{"$f":"SQRT((V304^2)+(V297^2)+(V290^2)+(V283^2)+(V276^2)+(V269^2)+(V262^2))","v":63.694583757176716},{"$f":"W304+W297+W290+W283+W276+W269+W262","v":183},{"$f":"SQRT((X304^2)+(X297^2)+(X290^2)+(X283^2)+(X276^2)+(X269^2)+(X262^2))","v":97.708750887522868},{"$f":"Y304+Y297+Y290+Y283+Y276+Y269+Y262","v":821},{"$f":"SQRT((Z304^2)+(Z297^2)+(Z290^2)+(Z283^2)+(Z276^2)+(Z269^2)+(Z262^2))","v":218.15132362651389},{"$f":"AA304+AA297+AA290+AA283+AA276+AA269+AA262","v":267},{"$f":"SQRT((AB304^2)+(AB297^2)+(AB290^2)+(AB283^2)+(AB276^2)+(AB269^2)+(AB262^2))","v":126.52667702899653},{"$f":"AC304+AC297+AC290+AC283+AC276+AC269+AC262","v":4},{"$f":"SQRT((AD304^2)+(AD297^2)+(AD290^2)+(AD283^2)+(AD276^2)+(AD269^2)+(AD262^2))","v":57.471732182004047},{"$f":"AE304+AE297+AE290+AE283+AE276+AE269+AE262","v":319},{"$f":"SQRT((AF304^2)+(AF297^2)+(AF290^2)+(AF283^2)+(AF276^2)+(AF269^2)+(AF262^2))","v":125.04399225872469},{"$f":"AG304+AG297+AG290+AG283+AG276+AG269+AG262","v":48},{"$f":"SQRT((AH304^2)+(AH297^2)+(AH290^2)+(AH283^2)+(AH276^2)+(AH269^2)+(AH262^2))","v":99.131226160075315},{"$f":"AI304+AI297+AI290+AI283+AI276+AI269+AI262","v":142},{"$f":"SQRT((AJ304^2)+(AJ297^2)+(AJ290^2)+(AJ283^2)+(AJ276^2)+(AJ269^2)+(AJ262^2))","v":114.71704319759989},{"$f":"AK304+AK297+AK290+AK283+AK276+AK269+AK262","v":4},{"$f":"SQRT((AL304^2)+(AL297^2)+(AL290^2)+(AL283^2)+(AL276^2)+(AL269^2)+(AL262^2))","v":57.471732182004047},{"$f":"AM304+AM297+AM290+AM283+AM276+AM269+AM262","v":155},{"$f":"SQRT((AN304^2)+(AN297^2)+(AN290^2)+(AN283^2)+(AN276^2)+(AN269^2)+(AN262^2))","v":91.629689511642454},{"$f":"AO304+AO297+AO290+AO283+AO276+AO269+AO262","v":192},{"$f":"SQRT((AP304^2)+(AP297^2)+(AP290^2)+(AP283^2)+(AP276^2)+(AP269^2)+(AP262^2))","v":100.01999800039989},{"$f":"AQ304+AQ297+AQ290+AQ283+AQ276+AQ269+AQ262","v":398},{"$f":"SQRT((AR304^2)+(AR297^2)+(AR290^2)+(AR283^2)+(AR276^2)+(AR269^2)+(AR262^2))","v":184.78636313321391},{"$f":"AS304+AS297+AS290+AS283+AS276+AS269+AS262","v":307},{"$f":"SQRT((AT304^2)+(AT297^2)+(AT290^2)+(AT283^2)+(AT276^2)+(AT269^2)+(AT262^2))","v":129.22074136917803},{"$f":"AU304+AU297+AU290+AU283+AU276+AU269+AU262","v":27},{"$f":"SQRT((AV304^2)+(AV297^2)+(AV290^2)+(AV283^2)+(AV276^2)+(AV269^2)+(AV262^2))","v":60.481402100149765},{"$f":"AW304+AW297+AW290+AW283+AW276+AW269+AW262","v":10},{"$f":"SQRT((AX304^2)+(AX297^2)+(AX290^2)+(AX283^2)+(AX276^2)+(AX269^2)+(AX262^2))","v":59.093146810776631},{"$f":"AY304+AY297+AY290+AY283+AY276+AY269+AY262","v":112},{"$f":"SQRT((AZ304^2)+(AZ297^2)+(AZ290^2)+(AZ283^2)+(AZ276^2)+(AZ269^2)+(AZ262^2))","v":80.479811132979179},{"$f":"BA304+BA297+BA290+BA283+BA276+BA269+BA262","v":60},{"$f":"SQRT((BB304^2)+(BB297^2)+(BB290^2)+(BB283^2)+(BB276^2)+(BB269^2)+(BB262^2))","v":63.914004725099176},{"$f":"BC304+BC297+BC290+BC283+BC276+BC269+BC262","v":50},{"$f":"SQRT((BD304^2)+(BD297^2)+(BD290^2)+(BD283^2)+(BD276^2)+(BD269^2)+(BD262^2))","v":61.789966823101629}]
[null,"Less Than 35% of HH Income",{"$f":"C305+C298+C291+C284+C277+C270+C263","v":274},{"$f":"SQRT((D305^2)+(D298^2)+(D291^2)+(D284^2)+(D277^2)+(D270^2)+(D263^2))","v":111.09905490147069},{"$f":"E305+E298+E291+E284+E277+E270+E263","v":56},{"$f":"SQRT((F305^2)+(F298^2)+(F291^2)+(F284^2)+(F277^2)+(F270^2)+(F263^2))","v":66.820655489152458},{"$f":"G305+G298+G291+G284+G277+G270+G263","v":156},{"$f":"SQRT((H305^2)+(H298^2)+(H291^2)+(H284^2)+(H277^2)+(H270^2)+(H263^2))","v":94.254973343585434},{"$f":"I305+I298+I291+I284+I277+I270+I263","v":99},{"$f":"SQRT((J305^2)+(J298^2)+(J291^2)+(J284^2)+(J277^2)+(J270^2)+(J263^2))","v":83.928541033429141},{"$f":"K305+K298+K291+K284+K277+K270+K263","v":24},{"$f":"SQRT((L305^2)+(L298^2)+(L291^2)+(L284^2)+(L277^2)+(L270^2)+(L263^2))","v":53.535035257296691},{"$f":"M305+M298+M291+M284+M277+M270+M263","v":25},{"$f":"SQRT((N305^2)+(N298^2)+(N291^2)+(N284^2)+(N277^2)+(N270^2)+(N263^2))","v":57.384666941614292},{"$f":"O305+O298+O291+O284+O277+O270+O263","v":68},{"$f":"SQRT((P305^2)+(P298^2)+(P291^2)+(P284^2)+(P277^2)+(P270^2)+(P263^2))","v":68.687699044297588},{"$f":"Q305+Q298+Q291+Q284+Q277+Q270+Q263","v":4470},{"$f":"SQRT((R305^2)+(R298^2)+(R291^2)+(R284^2)+(R277^2)+(R270^2)+(R263^2))","v":438.02967935974385},{"$f":"S305+S298+S291+S284+S277+S270+S263","v":77},{"$f":"SQRT((T305^2)+(T298^2)+(T291^2)+(T284^2)+(T277^2)+(T270^2)+(T263^2))","v":68.847657912234027},{"$f":"U305+U298+U291+U284+U277+U270+U263","v":77},{"$f":"SQRT((V305^2)+(V298^2)+(V291^2)+(V284^2)+(V277^2)+(V270^2)+(V263^2))","v":63.3798075099633},{"$f":"W305+W298+W291+W284+W277+W270+W263","v":106},{"$f":"SQRT((X305^2)+(X298^2)+(X291^2)+(X284^2)+(X277^2)+(X270^2)+(X263^2))","v":90.149875207900322},{"$f":"Y305+Y298+Y291+Y284+Y277+Y270+Y263","v":557},{"$f":"SQRT((Z305^2)+(Z298^2)+(Z291^2)+(Z284^2)+(Z277^2)+(Z270^2)+(Z263^2))","v":151.98684153570665},{"$f":"AA305+AA298+AA291+AA284+AA277+AA270+AA263","v":329},{"$f":"SQRT((AB305^2)+(AB298^2)+(AB291^2)+(AB284^2)+(AB277^2)+(AB270^2)+(AB263^2))","v":134.61426373159719},{"$f":"AC305+AC298+AC291+AC284+AC277+AC270+AC263","v":24},{"$f":"SQRT((AD305^2)+(AD298^2)+(AD291^2)+(AD284^2)+(AD277^2)+(AD270^2)+(AD263^2))","v":58.051701094799967},{"$f":"AE305+AE298+AE291+AE284+AE277+AE270+AE263","v":444},{"$f":"SQRT((AF305^2)+(AF298^2)+(AF291^2)+(AF284^2)+(AF277^2)+(AF270^2)+(AF263^2))","v":151.45296299511608},{"$f":"AG305+AG298+AG291+AG284+AG277+AG270+AG263","v":267},{"$f":"SQRT((AH305^2)+(AH298^2)+(AH291^2)+(AH284^2)+(AH277^2)+(AH270^2)+(AH263^2))","v":160.96272860510285},{"$f":"AI305+AI298+AI291+AI284+AI277+AI270+AI263","v":195},{"$f":"SQRT((AJ305^2)+(AJ298^2)+(AJ291^2)+(AJ284^2)+(AJ277^2)+(AJ270^2)+(AJ263^2))","v":135.12216694532395},{"$f":"AK305+AK298+AK291+AK284+AK277+AK270+AK263","v":26},{"$f":"SQRT((AL305^2)+(AL298^2)+(AL291^2)+(AL284^2)+(AL277^2)+(AL270^2)+(AL263^2))","v":57},{"$f":"AM305+AM298+AM291+AM284+AM277+AM270+AM263","v":211},{"$f":"SQRT((AN305^2)+(AN298^2)+(AN291^2)+(AN284^2)+(AN277^2)+(AN270^2)+(AN263^2))","v":103.860483341837},{"$f":"AO305+AO298+AO291+AO284+AO277+AO270+AO263","v":215},{"$f":"SQRT((AP305^2)+(AP298^2)+(AP291^2)+(AP284^2)+(AP277^2)+(AP270^2)+(AP263^2))","v":102.43534546239398},{"$f":"AQ305+AQ298+AQ291+AQ284+AQ277+AQ270+AQ263","v":467},{"$f":"SQRT((AR305^2)+(AR298^2)+(AR291^2)+(AR284^2)+(AR277^2)+(AR270^2)+(AR263^2))","v":200.77350422802309},{"$f":"AS305+AS298+AS291+AS284+AS277+AS270+AS263","v":346},{"$f":"SQRT((AT305^2)+(AT298^2)+(AT291^2)+(AT284^2)+(AT277^2)+(AT270^2)+(AT263^2))","v":122.67436570041843},{"$f":"AU305+AU298+AU291+AU284+AU277+AU270+AU263","v":8},{"$f":"SQRT((AV305^2)+(AV298^2)+(AV291^2)+(AV284^2)+(AV277^2)+(AV270^2)+(AV263^2))","v":55.776339069537364},{"$f":"AW305+AW298+AW291+AW284+AW277+AW270+AW263","v":65},{"$f":"SQRT((AX305^2)+(AX298^2)+(AX291^2)+(AX284^2)+(AX277^2)+(AX270^2)+(AX263^2))","v":63.3798075099633},{"$f":"AY305+AY298+AY291+AY284+AY277+AY270+AY263","v":168},{"$f":"SQRT((AZ305^2)+(AZ298^2)+(AZ291^2)+(AZ284^2)+(AZ277^2)+(AZ270^2)+(AZ263^2))","v":81.16033513977132},{"$f":"BA305+BA298+BA291+BA284+BA277+BA270+BA263","v":60},{"$f":"SQRT((BB305^2)+(BB298^2)+(BB291^2)+(BB284^2)+(BB277^2)+(BB270^2)+(BB263^2))","v":54.799635035281028},{"$f":"BC305+BC298+BC291+BC284+BC277+BC270+BC263","v":68},{"$f":"SQRT((BD305^2)+(BD298^2)+(BD291^2)+(BD284^2)+(BD277^2)+(BD270^2)+(BD263^2))","v":63.968742366877905}]
[null,"35.0 percent or more",{"$f":"C306+C299+C292+C285+C278+C271+C264","v":210},{"$f":"SQRT((D306^2)+(D299^2)+(D292^2)+(D285^2)+(D278^2)+(D271^2)+(D264^2))","v":122.18837915284743},{"$f":"E306+E299+E292+E285+E278+E271+E264","v":51},{"$f":"SQRT((F306^2)+(F299^2)+(F292^2)+(F285^2)+(F278^2)+(F271^2)+(F264^2))","v":56.920997883030829},{"$f":"G306+G299+G292+G285+G278+G271+G264","v":210},{"$f":"SQRT((H306^2)+(H299^2)+(H292^2)+(H285^2)+(H278^2)+(H271^2)+(H264^2))","v":100.70253224224304},{"$f":"I306+I299+I292+I285+I278+I271+I264","v":189},{"$f":"SQRT((J306^2)+(J299^2)+(J292^2)+(J285^2)+(J278^2)+(J271^2)+(J264^2))","v":102.47438704378767},{"$f":"K306+K299+K292+K285+K278+K271+K264","v":48},{"$f":"SQRT((L306^2)+(L299^2)+(L292^2)+(L285^2)+(L278^2)+(L271^2)+(L264^2))","v":51.903757089443921},{"$f":"M306+M299+M292+M285+M278+M271+M264","v":10},{"$f":"SQRT((N306^2)+(N299^2)+(N292^2)+(N285^2)+(N278^2)+(N271^2)+(N264^2))","v":50.19960159204453},{"$f":"O306+O299+O292+O285+O278+O271+O264","v":17},{"$f":"SQRT((P306^2)+(P299^2)+(P292^2)+(P285^2)+(P278^2)+(P271^2)+(P264^2))","v":54.304695929541857},{"$f":"Q306+Q299+Q292+Q285+Q278+Q271+Q264","v":2961},{"$f":"SQRT((R306^2)+(R299^2)+(R292^2)+(R285^2)+(R278^2)+(R271^2)+(R264^2))","v":373.56927068483566},{"$f":"S306+S299+S292+S285+S278+S271+S264","v":9},{"$f":"SQRT((T306^2)+(T299^2)+(T292^2)+(T285^2)+(T278^2)+(T271^2)+(T264^2))","v":49.040799340956916},{"$f":"U306+U299+U292+U285+U278+U271+U264","v":26},{"$f":"SQRT((V306^2)+(V299^2)+(V292^2)+(V285^2)+(V278^2)+(V271^2)+(V264^2))","v":50.467811523782167},{"$f":"W306+W299+W292+W285+W278+W271+W264","v":148},{"$f":"SQRT((X306^2)+(X299^2)+(X292^2)+(X285^2)+(X278^2)+(X271^2)+(X264^2))","v":90.895544445258707},{"$f":"Y306+Y299+Y292+Y285+Y278+Y271+Y264","v":696},{"$f":"SQRT((Z306^2)+(Z299^2)+(Z292^2)+(Z285^2)+(Z278^2)+(Z271^2)+(Z264^2))","v":206.27166552873908},{"$f":"AA306+AA299+AA292+AA285+AA278+AA271+AA264","v":173},{"$f":"SQRT((AB306^2)+(AB299^2)+(AB292^2)+(AB285^2)+(AB278^2)+(AB271^2)+(AB264^2))","v":107.84711400867434},{"$f":"AC306+AC299+AC292+AC285+AC278+AC271+AC264","v":4},{"$f":"SQRT((AD306^2)+(AD299^2)+(AD292^2)+(AD285^2)+(AD278^2)+(AD271^2)+(AD264^2))","v":49.558046773455466},{"$f":"AE306+AE299+AE292+AE285+AE278+AE271+AE264","v":266},{"$f":"SQRT((AF306^2)+(AF299^2)+(AF292^2)+(AF285^2)+(AF278^2)+(AF271^2)+(AF264^2))","v":115.56383517346592},{"$f":"AG306+AG299+AG292+AG285+AG278+AG271+AG264","v":9},{"$f":"SQRT((AH306^2)+(AH299^2)+(AH292^2)+(AH285^2)+(AH278^2)+(AH271^2)+(AH264^2))","v":68.963758598266665},{"$f":"AI306+AI299+AI292+AI285+AI278+AI271+AI264","v":97},{"$f":"SQRT((AJ306^2)+(AJ299^2)+(AJ292^2)+(AJ285^2)+(AJ278^2)+(AJ271^2)+(AJ264^2))","v":86.336550776597505},{"$f":"AK306+AK299+AK292+AK285+AK278+AK271+AK264","v":0},{"$f":"SQRT((AL306^2)+(AL299^2)+(AL292^2)+(AL285^2)+(AL278^2)+(AL271^2)+(AL264^2))","v":50.408332644514239},{"$f":"AM306+AM299+AM292+AM285+AM278+AM271+AM264","v":105},{"$f":"SQRT((AN306^2)+(AN299^2)+(AN292^2)+(AN285^2)+(AN278^2)+(AN271^2)+(AN264^2))","v":79.240141342630125},{"$f":"AO306+AO299+AO292+AO285+AO278+AO271+AO264","v":192},{"$f":"SQRT((AP306^2)+(AP299^2)+(AP292^2)+(AP285^2)+(AP278^2)+(AP271^2)+(AP264^2))","v":95.692214939356489},{"$f":"AQ306+AQ299+AQ292+AQ285+AQ278+AQ271+AQ264","v":298},{"$f":"SQRT((AR306^2)+(AR299^2)+(AR292^2)+(AR285^2)+(AR278^2)+(AR271^2)+(AR264^2))","v":153.90906406056791},{"$f":"AS306+AS299+AS292+AS285+AS278+AS271+AS264","v":251},{"$f":"SQRT((AT306^2)+(AT299^2)+(AT292^2)+(AT285^2)+(AT278^2)+(AT271^2)+(AT264^2))","v":118.34272263219231},{"$f":"AU306+AU299+AU292+AU285+AU278+AU271+AU264","v":27},{"$f":"SQRT((AV306^2)+(AV299^2)+(AV292^2)+(AV285^2)+(AV278^2)+(AV271^2)+(AV264^2))","v":53.018864567246254},{"$f":"AW306+AW299+AW292+AW285+AW278+AW271+AW264","v":10},{"$f":"SQRT((AX306^2)+(AX299^2)+(AX292^2)+(AX285^2)+(AX278^2)+(AX271^2)+(AX264^2))","v":51.429563482495162},{"$f":"AY306+AY299+AY292+AY285+AY278+AY271+AY264","v":80},{"$f":"SQRT((AZ306^2)+(AZ299^2)+(AZ292^2)+(AZ285^2)+(AZ278^2)+(AZ271^2)+(AZ264^2))","v":70.342021580275897},{"$f":"BA306+BA299+BA292+BA285+BA278+BA271+BA264","v":37},{"$f":"SQRT((BB306^2)+(BB299^2)+(BB292^2)+(BB285^2)+(BB278^2)+(BB271^2)+(BB264^2))","v":54.460995216760409},{"$f":"BC306+BC299+BC292+BC285+BC278+BC271+BC264","v":39},{"$f":"SQRT((BD306^2)+(BD299^2)+(BD292^2)+(BD285^2)+(BD278^2)+(BD271^2)+(BD264^2))","v":53.54437412091022}]
[null,"50.0 percent or more",{"$f":"C307+C300+C293+C286+C279+C272+C265","v":80},{"$f":"SQRT((D307^2)+(D300^2)+(D293^2)+(D286^2)+(D279^2)+(D272^2)+(D265^2))","v":70.724818840347695},{"$f":"E307+E300+E293+E286+E279+E272+E265","v":27},{"$f":"SQRT((F307^2)+(F300^2)+(F293^2)+(F286^2)+(F279^2)+(F272^2)+(F265^2))","v":34.785054261852174},{"$f":"G307+G300+G293+G286+G279+G272+G265","v":137},{"$f":"SQRT((H307^2)+(H300^2)+(H293^2)+(H286^2)+(H279^2)+(H272^2)+(H265^2))","v":75.973679652890311},{"$f":"I307+I300+I293+I286+I279+I272+I265","v":107},{"$f":"SQRT((J307^2)+(J300^2)+(J293^2)+(J286^2)+(J279^2)+(J272^2)+(J265^2))","v":65.582009728278379},{"$f":"K307+K300+K293+K286+K279+K272+K265","v":20},{"$f":"SQRT((L307^2)+(L300^2)+(L293^2)+(L286^2)+(L279^2)+(L272^2)+(L265^2))","v":27.748873851023216},{"$f":"M307+M300+M293+M286+M279+M272+M265","v":10},{"$f":"SQRT((N307^2)+(N300^2)+(N293^2)+(N286^2)+(N279^2)+(N272^2)+(N265^2))","v":28.740215726399828},{"$f":"O307+O300+O293+O286+O279+O272+O265","v":0},{"$f":"SQRT((P307^2)+(P300^2)+(P293^2)+(P286^2)+(P279^2)+(P272^2)+(P265^2))","v":29.103264421710495},{"$f":"Q307+Q300+Q293+Q286+Q279+Q272+Q265","v":1618},{"$f":"SQRT((R307^2)+(R300^2)+(R293^2)+(R286^2)+(R279^2)+(R272^2)+(R265^2))","v":252.13686759377336},{"$f":"S307+S300+S293+S286+S279+S272+S265","v":3},{"$f":"SQRT((T307^2)+(T300^2)+(T293^2)+(T286^2)+(T279^2)+(T272^2)+(T265^2))","v":27.404379212089442},{"$f":"U307+U300+U293+U286+U279+U272+U265","v":10},{"$f":"SQRT((V307^2)+(V300^2)+(V293^2)+(V286^2)+(V279^2)+(V272^2)+(V265^2))","v":26.795522013948524},{"$f":"W307+W300+W293+W286+W279+W272+W265","v":81},{"$f":"SQRT((X307^2)+(X300^2)+(X293^2)+(X286^2)+(X279^2)+(X272^2)+(X265^2))","v":60.141499815019579},{"$f":"Y307+Y300+Y293+Y286+Y279+Y272+Y265","v":469},{"$f":"SQRT((Z307^2)+(Z300^2)+(Z293^2)+(Z286^2)+(Z279^2)+(Z272^2)+(Z265^2))","v":168.11305719663775},{"$f":"AA307+AA300+AA293+AA286+AA279+AA272+AA265","v":128},{"$f":"SQRT((AB307^2)+(AB300^2)+(AB293^2)+(AB286^2)+(AB279^2)+(AB272^2)+(AB265^2))","v":89.849874791231628},{"$f":"AC307+AC300+AC293+AC286+AC279+AC272+AC265","v":4},{"$f":"SQRT((AD307^2)+(AD300^2)+(AD293^2)+(AD286^2)+(AD279^2)+(AD272^2)+(AD265^2))","v":27.604347483684521},{"$f":"AE307+AE300+AE293+AE286+AE279+AE272+AE265","v":145},{"$f":"SQRT((AF307^2)+(AF300^2)+(AF293^2)+(AF286^2)+(AF279^2)+(AF272^2)+(AF265^2))","v":81.332650270355757},{"$f":"AG307+AG300+AG293+AG286+AG279+AG272+AG265","v":0},{"$f":"SQRT((AH307^2)+(AH300^2)+(AH293^2)+(AH286^2)+(AH279^2)+(AH272^2)+(AH265^2))","v":39.686269665968858},{"$f":"AI307+AI300+AI293+AI286+AI279+AI272+AI265","v":46},{"$f":"SQRT((AJ307^2)+(AJ300^2)+(AJ293^2)+(AJ286^2)+(AJ279^2)+(AJ272^2)+(AJ265^2))","v":48.672374094551827},{"$f":"AK307+AK300+AK293+AK286+AK279+AK272+AK265","v":0},{"$f":"SQRT((AL307^2)+(AL300^2)+(AL293^2)+(AL286^2)+(AL279^2)+(AL272^2)+(AL265^2))","v":29.103264421710495},{"$f":"AM307+AM300+AM293+AM286+AM279+AM272+AM265","v":62},{"$f":"SQRT((AN307^2)+(AN300^2)+(AN293^2)+(AN286^2)+(AN279^2)+(AN272^2)+(AN265^2))","v":56.231663678038196},{"$f":"AO307+AO300+AO293+AO286+AO279+AO272+AO265","v":139},{"$f":"SQRT((AP307^2)+(AP300^2)+(AP293^2)+(AP286^2)+(AP279^2)+(AP272^2)+(AP265^2))","v":80.454956342042721},{"$f":"AQ307+AQ300+AQ293+AQ286+AQ279+AQ272+AQ265","v":282},{"$f":"SQRT((AR307^2)+(AR300^2)+(AR293^2)+(AR286^2)+(AR279^2)+(AR272^2)+(AR265^2))","v":141.90842117365693},{"$f":"AS307+AS300+AS293+AS286+AS279+AS272+AS265","v":172},{"$f":"SQRT((AT307^2)+(AT300^2)+(AT293^2)+(AT286^2)+(AT279^2)+(AT272^2)+(AT265^2))","v":92.357999112150537},{"$f":"AU307+AU300+AU293+AU286+AU279+AU272+AU265","v":27},{"$f":"SQRT((AV307^2)+(AV300^2)+(AV293^2)+(AV286^2)+(AV279^2)+(AV272^2)+(AV265^2))","v":33.421549934136806},{"$f":"AW307+AW300+AW293+AW286+AW279+AW272+AW265","v":10},{"$f":"SQRT((AX307^2)+(AX300^2)+(AX293^2)+(AX286^2)+(AX279^2)+(AX272^2)+(AX265^2))","v":30.838287890218549},{"$f":"AY307+AY300+AY293+AY286+AY279+AY272+AY265","v":27},{"$f":"SQRT((AZ307^2)+(AZ300^2)+(AZ293^2)+(AZ286^2)+(AZ279^2)+(AZ272^2)+(AZ265^2))","v":44.966654311834233},{"$f":"BA307+BA300+BA293+BA286+BA279+BA272+BA265","v":14},{"$f":"SQRT((BB307^2)+(BB300^2)+(BB293^2)+(BB286^2)+(BB279^2)+(BB272^2)+(BB265^2))","v":29.949958263743873},{"$f":"BC307+BC300+BC293+BC286+BC279+BC272+BC265","v":29},{"$f":"SQRT((BD307^2)+(BD300^2)+(BD293^2)+(BD286^2)+(BD279^2)+(BD272^2)+(BD265^2))","v":32.695565448543633}]
[null,"Not Computed",{"$f":"C307+C301+C294+C287+C280+C273+C266","v":51},{"$f":"SQRT((D307^2)+(D301^2)+(D294^2)+(D287^2)+(D280^2)+(D273^2)+(D266^2))","v":79.693161563587125},{"$f":"E307+E301+E294+E287+E280+E273+E266","v":16},{"$f":"SQRT((F307^2)+(F301^2)+(F294^2)+(F287^2)+(F280^2)+(F273^2)+(F266^2))","v":26.115129714401192},{"$f":"G307+G301+G294+G287+G280+G273+G266","v":14},{"$f":"SQRT((H307^2)+(H301^2)+(H294^2)+(H287^2)+(H280^2)+(H273^2)+(H266^2))","v":29.103264421710495},{"$f":"I307+I301+I294+I287+I280+I273+I266","v":29},{"$f":"SQRT((J307^2)+(J301^2)+(J294^2)+(J287^2)+(J280^2)+(J273^2)+(J266^2))","v":55.054518434003214},{"$f":"K307+K301+K294+K287+K280+K273+K266","v":7},{"$f":"SQRT((L307^2)+(L301^2)+(L294^2)+(L287^2)+(L280^2)+(L273^2)+(L266^2))","v":28.106938645110393},{"$f":"M307+M301+M294+M287+M280+M273+M266","v":5},{"$f":"SQRT((N307^2)+(N301^2)+(N294^2)+(N287^2)+(N280^2)+(N273^2)+(N266^2))","v":27.838821814150108},{"$f":"O307+O301+O294+O287+O280+O273+O266","v":13},{"$f":"SQRT((P307^2)+(P301^2)+(P294^2)+(P287^2)+(P280^2)+(P273^2)+(P266^2))","v":28.809720581775867},{"$f":"Q307+Q301+Q294+Q287+Q280+Q273+Q266","v":334},{"$f":"SQRT((R307^2)+(R301^2)+(R294^2)+(R287^2)+(R280^2)+(R273^2)+(R266^2))","v":147.20054347725758},{"$f":"S307+S301+S294+S287+S280+S273+S266","v":9},{"$f":"SQRT((T307^2)+(T301^2)+(T294^2)+(T287^2)+(T280^2)+(T273^2)+(T266^2))","v":23.259406699226016},{"$f":"U307+U301+U294+U287+U280+U273+U266","v":10},{"$f":"SQRT((V307^2)+(V301^2)+(V294^2)+(V287^2)+(V280^2)+(V273^2)+(V266^2))","v":27.073972741361768},{"$f":"W307+W301+W294+W287+W280+W273+W266","v":32},{"$f":"SQRT((X307^2)+(X301^2)+(X294^2)+(X287^2)+(X280^2)+(X273^2)+(X266^2))","v":48.723710860319329},{"$f":"Y307+Y301+Y294+Y287+Y280+Y273+Y266","v":111},{"$f":"SQRT((Z307^2)+(Z301^2)+(Z294^2)+(Z287^2)+(Z280^2)+(Z273^2)+(Z266^2))","v":72.677369242426494},{"$f":"AA307+AA301+AA294+AA287+AA280+AA273+AA266","v":25},{"$f":"SQRT((AB307^2)+(AB301^2)+(AB294^2)+(AB287^2)+(AB280^2)+(AB273^2)+(AB266^2))","v":38.858718455450898},{"$f":"AC307+AC301+AC294+AC287+AC280+AC273+AC266","v":4},{"$f":"SQRT((AD307^2)+(AD301^2)+(AD294^2)+(AD287^2)+(AD280^2)+(AD273^2)+(AD266^2))","v":27.604347483684521},{"$f":"AE307+AE301+AE294+AE287+AE280+AE273+AE266","v":33},{"$f":"SQRT((AF307^2)+(AF301^2)+(AF294^2)+(AF287^2)+(AF280^2)+(AF273^2)+(AF266^2))","v":48.435524153249339},{"$f":"AG307+AG301+AG294+AG287+AG280+AG273+AG266","v":0},{"$f":"SQRT((AH307^2)+(AH301^2)+(AH294^2)+(AH287^2)+(AH280^2)+(AH273^2)+(AH266^2))","v":39.686269665968858},{"$f":"AI307+AI301+AI294+AI287+AI280+AI273+AI266","v":28},{"$f":"SQRT((AJ307^2)+(AJ301^2)+(AJ294^2)+(AJ287^2)+(AJ280^2)+(AJ273^2)+(AJ266^2))","v":45.77116996538323},{"$f":"AK307+AK301+AK294+AK287+AK280+AK273+AK266","v":0},{"$f":"SQRT((AL307^2)+(AL301^2)+(AL294^2)+(AL287^2)+(AL280^2)+(AL273^2)+(AL266^2))","v":29.103264421710495},{"$f":"AM307+AM301+AM294+AM287+AM280+AM273+AM266","v":53},{"$f":"SQRT((AN307^2)+(AN301^2)+(AN294^2)+(AN287^2)+(AN280^2)+(AN273^2)+(AN266^2))","v":55.946402922797461},{"$f":"AO307+AO301+AO294+AO287+AO280+AO273+AO266","v":9},{"$f":"SQRT((AP307^2)+(AP301^2)+(AP294^2)+(AP287^2)+(AP280^2)+(AP273^2)+(AP266^2))","v":29.916550603303182},{"$f":"AQ307+AQ301+AQ294+AQ287+AQ280+AQ273+AQ266","v":36},{"$f":"SQRT((AR307^2)+(AR301^2)+(AR294^2)+(AR287^2)+(AR280^2)+(AR273^2)+(AR266^2))","v":51.894122981316485},{"$f":"AS307+AS301+AS294+AS287+AS280+AS273+AS266","v":27},{"$f":"SQRT((AT307^2)+(AT301^2)+(AT294^2)+(AT287^2)+(AT280^2)+(AT273^2)+(AT266^2))","v":48.228622207149975},{"$f":"AU307+AU301+AU294+AU287+AU280+AU273+AU266","v":4},{"$f":"SQRT((AV307^2)+(AV301^2)+(AV294^2)+(AV287^2)+(AV280^2)+(AV273^2)+(AV266^2))","v":27.404379212089442},{"$f":"AW307+AW301+AW294+AW287+AW280+AW273+AW266","v":17},{"$f":"SQRT((AX307^2)+(AX301^2)+(AX294^2)+(AX287^2)+(AX280^2)+(AX273^2)+(AX266^2))","v":27.730849247724095},{"$f":"AY307+AY301+AY294+AY287+AY280+AY273+AY266","v":0},{"$f":"SQRT((AZ307^2)+(AZ301^2)+(AZ294^2)+(AZ287^2)+(AZ280^2)+(AZ273^2)+(AZ266^2))","v":29.103264421710495},{"$f":"BA307+BA301+BA294+BA287+BA280+BA273+BA266","v":0},{"$f":"SQRT((BB307^2)+(BB301^2)+(BB294^2)+(BB287^2)+(BB280^2)+(BB273^2)+(BB266^2))","v":29.103264421710495},{"$f":"BC307+BC301+BC294+BC287+BC280+BC273+BC266","v":3},{"$f":"SQRT((BD307^2)+(BD301^2)+(BD294^2)+(BD287^2)+(BD280^2)+(BD273^2)+(BD266^2))","v":27.239676943752471}]
[]
[]
[]
[]
[]
[]
[]
[]
[]
[]
[]
[null,"B25074. HOUSEHOLD INCOME BY GROSS RENT AS A PERCENTAGE OF HOUSEHOLD INCOME IN THE PAST 12 MONTHS"]
[null,"Universe:  RENTER OCCUPIED HOUSING UNITS"]
[null,"Data Set: 2005-2009 American Community Survey 5-Year Estimates",null,null,null,null,null,"Income in 2009 Inflation Adjusted Dollars"]
[]
[null,null,"Allenstown",null,"Andover",null,"Boscawen",null,"Bow",null,"Bradford",null,"Canterbury",null,"Chichester",null,"Concord",null,"Danbury",null,"Dunbarton",null,"Epsom",null,"Franklin",null,"Henniker",null,"Hill",null,"Hooksett",null,"Hopkinton",null,"Loudon",null,"Newbury",null,"New London",null,"Northfield",null,"Pembroke",null,"Pittsfield",null,"Salisbury",null,"Sutton",null,"Warner",null,"Webster",null,"Wilmot"]
[null,null,"Estimate","Margin Of Error","Estimate","Margin Of Error","Estimate","Margin Of Error","Estimate","Margin Of Error","Estimate","Margin Of Error","Estimate","Margin Of Error","Estimate","Margin Of Error","Estimate","Margin Of Error","Estimate","Margin Of Error","Estimate","Margin Of Error","Estimate","Margin Of Error","Estimate","Margin Of Error","Estimate","Margin Of Error","Estimate","Margin Of Error","Estimate","Margin Of Error","Estimate","Margin Of Error","Estimate","Margin Of Error","Estimate","Margin Of Error","Estimate","Margin Of Error","Estimate","Margin Of Error","Estimate","Margin Of Error","Estimate","Margin Of Error","Estimate","Margin Of Error","Estimate","Margin Of Error","Estimate","Margin Of Error","Estimate","Margin Of Error","Estimate","Margin Of Error"]
[null,"Total:",648,178,157,72,231,85,266,84,84,34,98,41,17,19,7820,437,82,34,75,37,242,82,1316,169,526,139,74,34,636,116,138,75,168,84,53,26,221,123,441,105,849,136,526,110,17,17,55,30,212,67,60,30,21,21]
[null,"Less than $10,000:",53,51,0,114,28,23,0,114,12,15,18,15,0,114,964,217,19,17,0,114,0,114,214,93,60,46,0,114,72,53,0,114,0,114,0,114,74,82,25,27,18,30,11,18,0,114,15,16,0,114,0,114,9,15]
[null,"Less than 20.0 percent",0,114,0,114,0,114,0,114,0,114,0,114,0,114,86,54,0,114,0,114,0,114,9,16,0,114,0,114,0,114,0,114,0,114,0,114,0,114,0,114,0,114,0,114,0,114,0,114,0,114,0,114,0,114]
[null,"20.0 to 24.9 percent",0,114,0,114,0,114,0,114,0,114,0,114,0,114,16,19,0,114,0,114,0,114,0,114,10,16,0,114,0,114,0,114,0,114,0,114,0,114,0,114,0,114,0,114,0,114,0,114,0,114,0,114,0,114]
[null,"25.0 to 29.9 percent",0,114,0,114,11,17,0,114,0,114,0,114,0,114,75,81,0,114,0,114,0,114,68,52,10,15,0,114,33,49,0,114,0,114,0,114,0,114,14,21,18,30,0,114,0,114,0,114,0,114,0,114,0,114]
[null,"30.0 to 34.9 percent",0,114,0,114,0,114,0,114,0,114,9,13,0,114,39,38,0,114,0,114,0,114,33,52,0,114,0,114,13,21,0,114,0,114,0,114,0,114,0,114,0,114,0,114,0,114,0,114,0,114,0,114,0,114]
[null,"35.0 percent or more",44,49,0,114,17,21,0,114,0,114,9,14,0,114,647,151,8,11,0,114,0,114,104,56,26,31,0,114,26,25,0,114,0,114,0,114,74,82,11,17,0,114,11,18,0,114,15,16,0,114,0,114,9,15]
[null,"Not computed",9,14,0,114,0,114,0,114,12,15,0,114,0,114,101,88,11,16,0,114,0,114,0,114,14,22,0,114,0,114,0,114,0,114,0,114,0,114,0,114,0,114,0,114,0,114,0,114,0,114,0,114,0,114]
[null,"$10,000 to $19,999:",149,72,35,31,65,41,120,69,3,5,4,6,0,114,1241,238,11,12,12,14,65,47,272,94,84,67,3,4,35,33,0,114,13,17,2,5,35,41,63,47,241,125,79,60,5,8,0,114,24,19,14,18,8,9]
[null,"Less than 20.0 percent",32,31,0,114,9,14,0,114,0,114,0,114,0,114,42,31,0,114,0,114,12,19,16,19,0,114,0,114,0,114,0,114,0,114,0,114,0,114,0,114,39,44,24,28,0,114,0,114,0,114,0,114,0,114]
[null,"20.0 to 24.9 percent",10,16,0,114,0,114,0,114,0,114,0,114,0,114,279,159,0,114,0,114,0,114,19,21,10,17,0,114,0,114,0,114,0,114,0,114,0,114,0,114,0,114,0,114,0,114,0,114,0,114,0,114,0,114]
[null,"25.0 to 29.9 percent",26,41,0,114,10,15,0,114,0,114,0,114,0,114,70,83,0,114,0,114,12,20,53,37,20,22,0,114,8,13,0,114,0,114,0,114,0,114,22,26,0,114,0,114,0,114,0,114,6,9,0,114,0,114]
[null,"30.0 to 34.9 percent",12,19,0,114,9,15,0,114,0,114,0,114,0,114,90,62,0,114,0,114,30,48,71,63,0,114,0,114,0,114,0,114,0,114,0,114,0,114,0,114,13,20,0,114,0,114,0,114,7,10,0,114,0,114]
[null,"35.0 percent or more",69,59,22,29,14,23,120,69,3,5,4,6,0,114,740,196,11,12,12,14,11,18,113,65,54,62,3,4,27,30,0,114,13,17,2,5,35,41,31,34,189,125,55,54,5,8,0,114,0,114,14,18,8,9]
[null,"Not computed",0,114,13,15,23,26,0,114,0,114,0,114,0,114,20,23,0,114,0,114,0,114,0,114,0,114,0,114,0,114,0,114,0,114,0,114,0,114,10,16,0,114,0,114,0,114,0,114,11,12,0,114,0,114]
[null,"$20,000 to $34,999:",217,113,0,114,31,31,75,52,19,13,48,30,0,114,1829,319,23,17,19,20,38,35,347,120,160,82,15,18,94,52,38,43,41,37,3,5,32,52,140,81,298,135,54,37,0,114,17,18,47,28,3,4,4,7]
[null,"Less than 20.0 percent",8,15,0,114,0,114,0,114,0,114,21,24,0,114,123,101,5,7,0,114,0,114,31,47,10,17,0,114,11,18,0,114,0,114,0,114,0,114,0,114,0,114,0,114,0,114,0,114,0,114,0,114,0,114]
[null,"20.0 to 24.9 percent",0,114,0,114,0,114,0,114,0,114,12,19,0,114,25,33,0,114,0,114,0,114,92,70,10,16,0,114,23,25,0,114,0,114,0,114,32,52,0,114,0,114,0,114,0,114,0,114,0,114,0,114,0,114]
[null,"25.0 to 29.9 percent",39,32,0,114,0,114,10,17,0,114,10,15,0,114,136,71,5,7,0,114,0,114,77,64,18,20,0,114,6,12,17,26,0,114,0,114,0,114,0,114,157,123,23,26,0,114,0,114,0,114,0,114,0,114]
[null,"30.0 to 34.9 percent",60,69,0,114,0,114,0,114,0,114,5,8,0,114,244,106,0,114,8,15,0,114,15,22,26,41,0,114,10,15,0,114,0,114,0,114,0,114,46,49,83,107,0,114,0,114,0,114,7,10,0,114,0,114]
[null,"35.0 percent or more",102,81,0,114,31,31,65,51,19,13,0,114,0,114,1270,287,13,13,11,13,38,35,107,73,96,70,15,18,44,43,21,34,12,19,3,5,0,114,85,69,58,72,31,25,0,114,17,18,40,26,0,114,4,7]
[null,"Not computed",8,12,0,114,0,114,0,114,0,114,0,114,0,114,31,36,0,114,0,114,0,114,25,24,0,114,0,114,0,114,0,114,29,27,0,114,0,114,9,14,0,114,0,114,0,114,0,114,0,114,3,4,0,114]
[null,"$35,000 to $49,999:",51,53,37,40,35,27,41,48,5,6,4,7,0,114,1394,258,19,18,9,13,11,16,159,71,72,71,16,16,166,91,0,114,45,52,2,4,40,34,127,105,115,106,169,100,0,114,15,16,55,29,19,14,0,114]
[null,"Less than 20.0 percent",42,50,0,114,0,114,0,114,3,4,4,7,0,114,138,78,0,114,0,114,0,114,27,27,46,55,3,5,0,114,0,114,0,114,2,4,18,24,0,114,0,114,0,114,0,114,8,13,6,10,7,11,0,114]
[null,"20.0 to 24.9 percent",0,114,0,114,12,18,0,114,2,5,0,114,0,114,375,154,3,7,0,114,0,114,43,46,0,114,0,114,58,76,0,114,0,114,0,114,11,18,38,59,55,89,83,70,0,114,5,8,12,13,3,5,0,114]
[null,"25.0 to 29.9 percent",0,114,0,114,14,20,10,16,0,114,0,114,0,114,350,131,16,17,9,13,0,114,0,114,0,114,0,114,43,36,0,114,0,114,0,114,0,114,46,57,23,37,86,74,0,114,0,114,23,16,3,4,0,114]
[null,"30.0 to 34.9 percent",0,114,0,114,9,15,0,114,0,114,0,114,0,114,270,104,0,114,0,114,0,114,55,54,26,42,0,114,0,114,0,114,31,47,0,114,11,17,34,49,37,43,0,114,0,114,2,5,0,114,0,114,0,114]
[null,"35.0 percent or more",0,114,19,31,0,114,31,46,0,114,0,114,0,114,230,107,0,114,0,114,11,16,34,30,0,114,0,114,65,52,0,114,14,22,0,114,0,114,9,14,0,114,0,114,0,114,0,114,8,11,2,3,0,114]
[null,"Not computed",9,17,18,28,0,114,0,114,0,114,0,114,0,114,31,30,0,114,0,114,0,114,0,114,0,114,13,15,0,114,0,114,0,114,0,114,0,114,0,114,0,114,0,114,0,114,0,114,6,9,4,6,0,114]
[null,"$50,000 to $74,999:",38,33,28,30,72,52,30,33,9,7,17,16,0,114,1319,258,10,11,0,114,82,64,168,78,79,65,37,27,125,66,57,55,19,29,30,19,30,48,49,35,154,125,90,58,12,15,4,6,46,37,10,8,0,114]
[null,"Less than 20.0 percent",10,17,4,8,53,46,16,23,0,114,0,114,0,114,558,142,10,11,0,114,26,30,82,57,26,40,16,16,44,62,0,114,0,114,19,15,0,114,0,114,133,123,67,49,12,15,0,114,23,23,3,4,0,114]
[null,"20.0 to 24.9 percent",9,15,6,8,11,18,14,20,9,7,3,4,0,114,502,174,0,114,0,114,19,22,74,52,43,48,12,15,35,38,40,48,8,14,0,114,0,114,12,19,21,34,23,27,0,114,0,114,4,7,0,114,0,114]
[null,"25.0 to 29.9 percent",9,15,0,114,0,114,0,114,0,114,0,114,0,114,36,26,0,114,0,114,0,114,12,20,10,15,0,114,34,41,0,114,0,114,6,10,0,114,24,28,0,114,0,114,0,114,4,6,0,114,7,7,0,114]
[null,"30.0 to 34.9 percent",10,17,0,114,8,14,0,114,0,114,9,13,0,114,106,86,0,114,0,114,0,114,0,114,0,114,0,114,12,19,17,28,0,114,0,114,0,114,13,21,0,114,0,114,0,114,0,114,0,114,0,114,0,114]
[null,"35.0 percent or more",0,114,0,114,0,114,0,114,0,114,0,114,0,114,41,35,0,114,0,114,0,114,0,114,0,114,9,14,0,114,0,114,11,19,0,114,30,48,0,114,0,114,0,114,0,114,0,114,0,114,0,114,0,114]
[null,"Not computed",0,114,18,28,0,114,0,114,0,114,5,7,0,114,76,57,0,114,0,114,37,57,0,114,0,114,0,114,0,114,0,114,0,114,5,8,0,114,0,114,0,114,0,114,0,114,0,114,19,30,0,114,0,114]
[null,"$75,000 to $99,999:",80,73,18,28,0,114,0,114,31,25,0,114,10,12,794,196,0,114,7,11,46,51,88,65,71,65,0,114,64,49,43,47,13,16,11,13,0,114,37,36,23,26,113,80,0,114,0,114,29,22,11,13,0,114]
[null,"Less than 20.0 percent",47,61,0,114,0,114,0,114,19,22,0,114,5,8,570,162,0,114,0,114,39,50,88,65,34,45,0,114,48,39,11,19,0,114,11,13,0,114,23,29,0,114,113,80,0,114,0,114,23,21,8,12,0,114]
[null,"20.0 to 24.9 percent",0,114,0,114,0,114,0,114,9,11,0,114,5,8,142,93,0,114,7,11,0,114,0,114,31,49,0,114,16,26,0,114,8,14,0,114,0,114,14,22,13,20,0,114,0,114,0,114,0,114,0,114,0,114]
[null,"25.0 to 29.9 percent",0,114,0,114,0,114,0,114,3,4,0,114,0,114,23,27,0,114,0,114,0,114,0,114,0,114,0,114,0,114,12,29,0,114,0,114,0,114,0,114,0,114,0,114,0,114,0,114,6,10,0,114,0,114]
[null,"30.0 to 34.9 percent",0,114,0,114,0,114,0,114,0,114,0,114,0,114,13,20,0,114,0,114,7,12,0,114,0,114,0,114,0,114,0,114,0,114,0,114,0,114,0,114,0,114,0,114,0,114,0,114,0,114,0,114,0,114]
[null,"35.0 percent or more",0,114,0,114,0,114,0,114,0,114,0,114,0,114,29,33,0,114,0,114,0,114,0,114,0,114,0,114,0,114,0,114,5,8,0,114,0,114,0,114,0,114,0,114,0,114,0,114,0,114,0,114,0,114]
[null,"Not computed",33,48,18,28,0,114,0,114,0,114,0,114,0,114,17,28,0,114,0,114,0,114,0,114,6,9,0,114,0,114,20,31,0,114,0,114,0,114,0,114,10,17,0,114,0,114,0,114,0,114,3,4,0,114]
[null,"$100,000 or more:",60,43,39,44,0,114,0,114,5,8,7,9,7,11,279,105,0,114,28,27,0,114,68,68,0,114,3,5,80,85,0,114,37,54,5,8,10,15,0,114,0,114,10,16,0,114,4,7,11,11,3,5,0,114]
[null,"Less than 20.0 percent",60,43,22,35,0,114,0,114,5,8,0,114,7,11,231,96,0,114,28,27,0,114,68,68,0,114,3,5,64,82,0,114,0,114,5,8,10,15,0,114,0,114,10,16,0,114,4,7,6,8,3,5,0,114]
[null,"20.0 to 24.9 percent",0,114,0,114,0,114,0,114,0,114,0,114,0,114,29,36,0,114,0,114,0,114,0,114,0,114,0,114,0,114,0,114,0,114,0,114,0,114,0,114,0,114,0,114,0,114,0,114,0,114,0,114,0,114]
[null,"25.0 to 29.9 percent",0,114,0,114,0,114,0,114,0,114,0,114,0,114,9,14,0,114,0,114,0,114,0,114,0,114,0,114,0,114,0,114,0,114,0,114,0,114,0,114,0,114,0,114,0,114,0,114,5,7,0,114,0,114]
[null,"30.0 to 34.9 percent",0,114,0,114,0,114,0,114,0,114,0,114,0,114,0,114,0,114,0,114,0,114,0,114,0,114,0,114,0,114,0,114,0,114,0,114,0,114,0,114,0,114,0,114,0,114,0,114,0,114,0,114,0,114]
[null,"35.0 percent or more",0,114,0,114,0,114,0,114,0,114,0,114,0,114,0,114,0,114,0,114,0,114,0,114,0,114,0,114,0,114,0,114,0,114,0,114,0,114,0,114,0,114,0,114,0,114,0,114,0,114,0,114,0,114]
[null,"Not computed",0,114,17,28,0,114,0,114,0,114,7,9,0,114,10,18,0,114,0,114,0,114,0,114,0,114,0,114,16,23,0,114,37,54,0,114,0,114,0,114,0,114,0,114,0,114,0,114,0,114,0,114,0,114]
[]
[]
[]
[]
[]
[]
[]
[]
[]
[]
[]
[null,"Calculated B25074. HOUSEHOLD INCOME BY GROSS RENT AS A PERCENTAGE OF HOUSEHOLD INCOME IN THE PAST 12 MONTHS"]
[null,"Universe:  RENTER OCCUPIED HOUSING UNITS"]
[null,"Data Set: 2005-2009 American Community Survey 5-Year Estimates",null,null,null,null,null,"Income in 2009 Inflation Adjusted Dollars"]
[]
[null,null,"Allenstown",null,"Andover",null,"Boscawen",null,"Bow",null,"Bradford",null,"Canterbury",null,"Chichester",null,"Concord",null,"Danbury",null,"Dunbarton",null,"Epsom",null,"Franklin",null,"Henniker",null,"Hill",null,"Hooksett",null,"Hopkinton",null,"Loudon",null,"Newbury",null,"New London",null,"Northfield",null,"Pembroke",null,"Pittsfield",null,"Salisbury",null,"Sutton",null,"Warner",null,"Webster",null,"Wilmot"]
[null,null,"Estimate","Margin Of Error","Estimate","Margin Of Error","Estimate","Margin Of Error","Estimate","Margin Of Error","Estimate","Margin Of Error","Estimate","Margin Of Error","Estimate","Margin Of Error","Estimate","Margin Of Error","Estimate","Margin Of Error","Estimate","Margin Of Error","Estimate","Margin Of Error","Estimate","Margin Of Error","Estimate","Margin Of Error","Estimate","Margin Of Error","Estimate","Margin Of Error","Estimate","Margin Of Error","Estimate","Margin Of Error","Estimate","Margin Of Error","Estimate","Margin Of Error","Estimate","Margin Of Error","Estimate","Margin Of Error","Estimate","Margin Of Error","Estimate","Margin Of Error","Estimate","Margin Of Error","Estimate","Margin Of Error","Estimate","Margin Of Error","Estimate","Margin Of Error"]
[null,"Total:",{"$f":"C341","v":648},{"$f":"D341","v":178},157,72,231,85,266,84,84,34,98,41,17,19,7820,437,82,34,75,37,242,82,1316,169,526,139,74,34,636,116,138,75,168,84,53,26,221,123,441,105,849,136,526,110,17,17,55,30,212,67,60,30,21,21]
[null,"Less than $10,000:",53,51,0,114,28,23,0,114,12,15,18,15,0,114,964,217,19,17,0,114,0,114,214,93,60,46,0,114,72,53,0,114,0,114,0,114,74,82,25,27,18,30,11,18,0,114,15,16,0,114,0,114,9,15]
[null,"Less than 30.0 percent",{"$f":"C343+C344+C345","v":0},{"$f":"SQRT((D343^2)+(D344^2)+(D345^2))","v":197.45379206285202},{"$f":"E343+E344+E345","v":0},{"$f":"SQRT((F343^2)+(F344^2)+(F345^2))","v":197.45379206285202},{"$f":"G343+G344+G345","v":11},{"$f":"SQRT((H343^2)+(H344^2)+(H345^2))","v":162.11415730897781},{"$f":"I343+I344+I345","v":0},{"$f":"SQRT((J343^2)+(J344^2)+(J345^2))","v":197.45379206285202},{"$f":"K343+K344+K345","v":0},{"$f":"SQRT((L343^2)+(L344^2)+(L345^2))","v":197.45379206285202},{"$f":"M343+M344+M345","v":0},{"$f":"SQRT((N343^2)+(N344^2)+(N345^2))","v":197.45379206285202},{"$f":"O343+O344+O345","v":0},{"$f":"SQRT((P343^2)+(P344^2)+(P345^2))","v":197.45379206285202},{"$f":"Q343+Q344+Q345","v":177},{"$f":"SQRT((R343^2)+(R344^2)+(R345^2))","v":99.186692655819513},{"$f":"S343+S344+S345","v":0},{"$f":"SQRT((T343^2)+(T344^2)+(T345^2))","v":197.45379206285202},{"$f":"U343+U344+U345","v":0},{"$f":"SQRT((V343^2)+(V344^2)+(V345^2))","v":197.45379206285202},{"$f":"W343+W344+W345","v":0},{"$f":"SQRT((X343^2)+(X344^2)+(X345^2))","v":197.45379206285202},{"$f":"Y343+Y344+Y345","v":77},{"$f":"SQRT((Z343^2)+(Z344^2)+(Z345^2))","v":126.31706139710502},{"$f":"AA343+AA344+AA345","v":20},{"$f":"SQRT((AB343^2)+(AB344^2)+(AB345^2))","v":116.09048195265622},{"$f":"AC343+AC344+AC345","v":0},{"$f":"SQRT((AD343^2)+(AD344^2)+(AD345^2))","v":197.45379206285202},{"$f":"AE343+AE344+AE345","v":33},{"$f":"SQRT((AF343^2)+(AF344^2)+(AF345^2))","v":168.50222550459088},{"$f":"AG343+AG344+AG345","v":0},{"$f":"SQRT((AH343^2)+(AH344^2)+(AH345^2))","v":197.45379206285202},{"$f":"AI343+AI344+AI345","v":0},{"$f":"SQRT((AJ343^2)+(AJ344^2)+(AJ345^2))","v":197.45379206285202},{"$f":"AK343+AK344+AK345","v":0},{"$f":"SQRT((AL343^2)+(AL344^2)+(AL345^2))","v":197.45379206285202},{"$f":"AM343+AM344+AM345","v":0},{"$f":"SQRT((AN343^2)+(AN344^2)+(AN345^2))","v":197.45379206285202},{"$f":"AO343+AO344+AO345","v":14},{"$f":"SQRT((AP343^2)+(AP344^2)+(AP345^2))","v":162.58228685807074},{"$f":"AQ343+AQ344+AQ345","v":18},{"$f":"SQRT((AR343^2)+(AR344^2)+(AR345^2))","v":163.98780442459739},{"$f":"AS343+AS344+AS345","v":0},{"$f":"SQRT((AT343^2)+(AT344^2)+(AT345^2))","v":197.45379206285202},{"$f":"AU343+AU344+AU345","v":0},{"$f":"SQRT((AV343^2)+(AV344^2)+(AV345^2))","v":197.45379206285202},{"$f":"AW343+AW344+AW345","v":0},{"$f":"SQRT((AX343^2)+(AX344^2)+(AX345^2))","v":197.45379206285202},{"$f":"AY343+AY344+AY345","v":0},{"$f":"SQRT((AZ343^2)+(AZ344^2)+(AZ345^2))","v":197.45379206285202},{"$f":"BA343+BA344+BA345","v":0},{"$f":"SQRT((BB343^2)+(BB344^2)+(BB345^2))","v":197.45379206285202},{"$f":"BC343+BC344+BC345","v":0},{"$f":"SQRT((BD343^2)+(BD344^2)+(BD345^2))","v":197.45379206285202}]
[null,"More than 30.0 percent",{"$f":"C347+C346","v":44},{"$f":"SQRT((D347^2)+(D346^2))","v":124.08464852672147},{"$f":"E347+E346","v":0},{"$f":"SQRT((F347^2)+(F346^2))","v":161.22034611053283},{"$f":"G347+G346","v":17},{"$f":"SQRT((H347^2)+(H346^2))","v":115.91807451816995},{"$f":"I347+I346","v":0},{"$f":"SQRT((J347^2)+(J346^2))","v":161.22034611053283},{"$f":"K347+K346","v":0},{"$f":"SQRT((L347^2)+(L346^2))","v":161.22034611053283},{"$f":"M347+M346","v":18},{"$f":"SQRT((N347^2)+(N346^2))","v":19.104973174542799},{"$f":"O347+O346","v":0},{"$f":"SQRT((P347^2)+(P346^2))","v":161.22034611053283},{"$f":"Q347+Q346","v":686},{"$f":"SQRT((R347^2)+(R346^2))","v":155.70806016388491},{"$f":"S347+S346","v":8},{"$f":"SQRT((T347^2)+(T346^2))","v":114.52947218947619},{"$f":"U347+U346","v":0},{"$f":"SQRT((V347^2)+(V346^2))","v":161.22034611053283},{"$f":"W347+W346","v":0},{"$f":"SQRT((X347^2)+(X346^2))","v":161.22034611053283},{"$f":"Y347+Y346","v":137},{"$f":"SQRT((Z347^2)+(Z346^2))","v":76.419892698171196},{"$f":"AA347+AA346","v":26},{"$f":"SQRT((AB347^2)+(AB346^2))","v":118.1397477566293},{"$f":"AC347+AC346","v":0},{"$f":"SQRT((AD347^2)+(AD346^2))","v":161.22034611053283},{"$f":"AE347+AE346","v":39},{"$f":"SQRT((AF347^2)+(AF346^2))","v":32.649655434629018},{"$f":"AG347+AG346","v":0},{"$f":"SQRT((AH347^2)+(AH346^2))","v":161.22034611053283},{"$f":"AI347+AI346","v":0},{"$f":"SQRT((AJ347^2)+(AJ346^2))","v":161.22034611053283},{"$f":"AK347+AK346","v":0},{"$f":"SQRT((AL347^2)+(AL346^2))","v":161.22034611053283},{"$f":"AM347+AM346","v":74},{"$f":"SQRT((AN347^2)+(AN346^2))","v":140.42791745233566},{"$f":"AO347+AO346","v":11},{"$f":"SQRT((AP347^2)+(AP346^2))","v":115.26057435220423},{"$f":"AQ347+AQ346","v":0},{"$f":"SQRT((AR347^2)+(AR346^2))","v":161.22034611053283},{"$f":"AS347+AS346","v":11},{"$f":"SQRT((AT347^2)+(AT346^2))","v":115.41230437002807},{"$f":"AU347+AU346","v":0},{"$f":"SQRT((AV347^2)+(AV346^2))","v":161.22034611053283},{"$f":"AW347+AW346","v":15},{"$f":"SQRT((AX347^2)+(AX346^2))","v":115.11733144926528},{"$f":"AY347+AY346","v":0},{"$f":"SQRT((AZ347^2)+(AZ346^2))","v":161.22034611053283},{"$f":"BA347+BA346","v":0},{"$f":"SQRT((BB347^2)+(BB346^2))","v":161.22034611053283},{"$f":"BC347+BC346","v":9},{"$f":"SQRT((BD347^2)+(BD346^2))","v":114.9826073804208}]
[null,"Less Than 35% of HH Income",{"$f":"C343+C344+C345+C346","v":0},{"$f":"SQRT((D343^2)+(D344^2)+(D345^2)+(D346^2))","v":228},{"$f":"E343+E344+E345+E346","v":0},{"$f":"SQRT((F343^2)+(F344^2)+(F345^2)+(F346^2))","v":228},{"$f":"G343+G344+G345+G346","v":11},{"$f":"SQRT((H343^2)+(H344^2)+(H345^2)+(H346^2))","v":198.18425769974769},{"$f":"I343+I344+I345+I346","v":0},{"$f":"SQRT((J343^2)+(J344^2)+(J345^2)+(J346^2))","v":228},{"$f":"K343+K344+K345+K346","v":0},{"$f":"SQRT((L343^2)+(L344^2)+(L345^2)+(L346^2))","v":228},{"$f":"M343+M344+M345+M346","v":9},{"$f":"SQRT((N343^2)+(N344^2)+(N345^2)+(N346^2))","v":197.88127753782064},{"$f":"O343+O344+O345+O346","v":0},{"$f":"SQRT((P343^2)+(P344^2)+(P345^2)+(P346^2))","v":228},{"$f":"Q343+Q344+Q345+Q346","v":216},{"$f":"SQRT((R343^2)+(R344^2)+(R345^2)+(R346^2))","v":106.21675950620975},{"$f":"S343+S344+S345+S346","v":0},{"$f":"SQRT((T343^2)+(T344^2)+(T345^2)+(T346^2))","v":228},{"$f":"U343+U344+U345+U346","v":0},{"$f":"SQRT((V343^2)+(V344^2)+(V345^2)+(V346^2))","v":228},{"$f":"W343+W344+W345+W346","v":0},{"$f":"SQRT((X343^2)+(X344^2)+(X345^2)+(X346^2))","v":228},{"$f":"Y343+Y344+Y345+Y346","v":110},{"$f":"SQRT((Z343^2)+(Z344^2)+(Z345^2)+(Z346^2))","v":136.60161053223348},{"$f":"AA343+AA344+AA345+AA346","v":20},{"$f":"SQRT((AB343^2)+(AB344^2)+(AB345^2)+(AB346^2))","v":162.70525498581785},{"$f":"AC343+AC344+AC345+AC346","v":0},{"$f":"SQRT((AD343^2)+(AD344^2)+(AD345^2)+(AD346^2))","v":228},{"$f":"AE343+AE344+AE345+AE346","v":46},{"$f":"SQRT((AF343^2)+(AF344^2)+(AF345^2)+(AF346^2))","v":169.80577139779436},{"$f":"AG343+AG344+AG345+AG346","v":0},{"$f":"SQRT((AH343^2)+(AH344^2)+(AH345^2)+(AH346^2))","v":228},{"$f":"AI343+AI344+AI345+AI346","v":0},{"$f":"SQRT((AJ343^2)+(AJ344^2)+(AJ345^2)+(AJ346^2))","v":228},{"$f":"AK343+AK344+AK345+AK346","v":0},{"$f":"SQRT((AL343^2)+(AL344^2)+(AL345^2)+(AL346^2))","v":228},{"$f":"AM343+AM344+AM345+AM346","v":0},{"$f":"SQRT((AN343^2)+(AN344^2)+(AN345^2)+(AN346^2))","v":228},{"$f":"AO343+AO344+AO345+AO346","v":14},{"$f":"SQRT((AP343^2)+(AP344^2)+(AP345^2)+(AP346^2))","v":198.56736892047493},{"$f":"AQ343+AQ344+AQ345+AQ346","v":18},{"$f":"SQRT((AR343^2)+(AR344^2)+(AR345^2)+(AR346^2))","v":199.71980372511885},{"$f":"AS343+AS344+AS345+AS346","v":0},{"$f":"SQRT((AT343^2)+(AT344^2)+(AT345^2)+(AT346^2))","v":228},{"$f":"AU343+AU344+AU345+AU346","v":0},{"$f":"SQRT((AV343^2)+(AV344^2)+(AV345^2)+(AV346^2))","v":228},{"$f":"AW343+AW344+AW345+AW346","v":0},{"$f":"SQRT((AX343^2)+(AX344^2)+(AX345^2)+(AX346^2))","v":228},{"$f":"AY343+AY344+AY345+AY346","v":0},{"$f":"SQRT((AZ343^2)+(AZ344^2)+(AZ345^2)+(AZ346^2))","v":228},{"$f":"BA343+BA344+BA345+BA346","v":0},{"$f":"SQRT((BB343^2)+(BB344^2)+(BB345^2)+(BB346^2))","v":228},{"$f":"BC343+BC344+BC345+BC346","v":0},{"$f":"SQRT((BD343^2)+(BD344^2)+(BD345^2)+(BD346^2))","v":228}]
[null,"35.0 percent or more",{"$f":"C347","v":44},{"$f":"D347","v":49},{"$f":"E347","v":0},{"$f":"F347","v":114},{"$f":"G347","v":17},{"$f":"H347","v":21},{"$f":"I347","v":0},{"$f":"J347","v":114},{"$f":"K347","v":0},{"$f":"L347","v":114},{"$f":"M347","v":9},{"$f":"N347","v":14},0,114,647,151,8,11,0,114,0,114,104,56,26,31,0,114,26,25,0,114,0,114,0,114,74,82,11,17,0,114,11,18,0,114,15,16,0,114,0,114,9,15]
[null,"Not Computed",9,14,0,114,0,114,0,114,12,15,0,114,0,114,101,88,11,16,0,114,0,114,0,114,14,22,0,114,0,114,0,114,0,114,0,114,0,114,0,114,0,114,0,114,0,114,0,114,0,114,0,114,0,114]
[null,"$10,000 to $19,999:",149,72,35,31,65,41,120,69,3,5,4,6,0,114,1241,238,11,12,12,14,65,47,272,94,84,67,3,4,35,33,0,114,13,17,2,5,35,41,63,47,241,125,79,60,5,8,0,114,24,19,14,18,8,9]
[null,"Less than 30.0 percent",{"$f":"C350+C351+C352","v":68},{"$f":"SQRT((D350^2)+(D351^2)+(D352^2))","v":53.833075334779082},{"$f":"E350+E351+E352","v":0},{"$f":"SQRT((F350^2)+(F351^2)+(F352^2))","v":197.45379206285202},{"$f":"G350+G351+G352","v":19},{"$f":"SQRT((H350^2)+(H351^2)+(H352^2))","v":115.83177456984762},{"$f":"I350+I351+I352","v":0},{"$f":"SQRT((J350^2)+(J351^2)+(J352^2))","v":197.45379206285202},{"$f":"K350+K351+K352","v":0},{"$f":"SQRT((L350^2)+(L351^2)+(L352^2))","v":197.45379206285202},{"$f":"M350+M351+M352","v":0},{"$f":"SQRT((N350^2)+(N351^2)+(N352^2))","v":197.45379206285202},{"$f":"O350+O351+O352","v":0},{"$f":"SQRT((P350^2)+(P351^2)+(P352^2))","v":197.45379206285202},{"$f":"Q350+Q351+Q352","v":391},{"$f":"SQRT((R350^2)+(R351^2)+(R352^2))","v":182.01922975334227},{"$f":"S350+S351+S352","v":0},{"$f":"SQRT((T350^2)+(T351^2)+(T352^2))","v":197.45379206285202},{"$f":"U350+U351+U352","v":0},{"$f":"SQRT((V350^2)+(V351^2)+(V352^2))","v":197.45379206285202},{"$f":"W350+W351+W352","v":24},{"$f":"SQRT((X350^2)+(X351^2)+(X352^2))","v":117.29023829799307},{"$f":"Y350+Y351+Y352","v":88},{"$f":"SQRT((Z350^2)+(Z351^2)+(Z352^2))","v":46.593991028886975},{"$f":"AA350+AA351+AA352","v":30},{"$f":"SQRT((AB350^2)+(AB351^2)+(AB352^2))","v":117.34138229968147},{"$f":"AC350+AC351+AC352","v":0},{"$f":"SQRT((AD350^2)+(AD351^2)+(AD352^2))","v":197.45379206285202},{"$f":"AE350+AE351+AE352","v":8},{"$f":"SQRT((AF350^2)+(AF351^2)+(AF352^2))","v":161.74362429474616},{"$f":"AG350+AG351+AG352","v":0},{"$f":"SQRT((AH350^2)+(AH351^2)+(AH352^2))","v":197.45379206285202},{"$f":"AI350+AI351+AI352","v":0},{"$f":"SQRT((AJ350^2)+(AJ351^2)+(AJ352^2))","v":197.45379206285202},{"$f":"AK350+AK351+AK352","v":0},{"$f":"SQRT((AL350^2)+(AL351^2)+(AL352^2))","v":197.45379206285202},{"$f":"AM350+AM351+AM352","v":0},{"$f":"SQRT((AN350^2)+(AN351^2)+(AN352^2))","v":197.45379206285202},{"$f":"AO350+AO351+AO352","v":22},{"$f":"SQRT((AP350^2)+(AP351^2)+(AP352^2))","v":163.30339861742007},{"$f":"AQ350+AQ351+AQ352","v":39},{"$f":"SQRT((AR350^2)+(AR351^2)+(AR352^2))","v":167.11672567400308},{"$f":"AS350+AS351+AS352","v":24},{"$f":"SQRT((AT350^2)+(AT351^2)+(AT352^2))","v":163.63373735266208},{"$f":"AU350+AU351+AU352","v":0},{"$f":"SQRT((AV350^2)+(AV351^2)+(AV352^2))","v":197.45379206285202},{"$f":"AW350+AW351+AW352","v":0},{"$f":"SQRT((AX350^2)+(AX351^2)+(AX352^2))","v":197.45379206285202},{"$f":"AY350+AY351+AY352","v":6},{"$f":"SQRT((AZ350^2)+(AZ351^2)+(AZ352^2))","v":161.47135968957468},{"$f":"BA350+BA351+BA352","v":0},{"$f":"SQRT((BB350^2)+(BB351^2)+(BB352^2))","v":197.45379206285202},{"$f":"BC350+BC351+BC352","v":0},{"$f":"SQRT((BD350^2)+(BD351^2)+(BD352^2))","v":197.45379206285202}]
[null,"More than 30.0 percent",{"$f":"C353+C354","v":81},{"$f":"SQRT((D353^2)+(D354^2))","v":61.98386886924694},{"$f":"E353+E354","v":22},{"$f":"SQRT((F353^2)+(F354^2))","v":117.63077828527702},{"$f":"G353+G354","v":23},{"$f":"SQRT((H353^2)+(H354^2))","v":27.459060435491963},{"$f":"I353+I354","v":120},{"$f":"SQRT((J353^2)+(J354^2))","v":133.25539388707685},{"$f":"K353+K354","v":3},{"$f":"SQRT((L353^2)+(L354^2))","v":114.10959644131601},{"$f":"M353+M354","v":4},{"$f":"SQRT((N353^2)+(N354^2))","v":114.15778554264269},{"$f":"O353+O354","v":0},{"$f":"SQRT((P353^2)+(P354^2))","v":161.22034611053283},{"$f":"Q353+Q354","v":830},{"$f":"SQRT((R353^2)+(R354^2))","v":205.5723716845238},{"$f":"S353+S354","v":11},{"$f":"SQRT((T353^2)+(T354^2))","v":114.62983904725679},{"$f":"U353+U354","v":12},{"$f":"SQRT((V353^2)+(V354^2))","v":114.85643212288984},{"$f":"W353+W354","v":41},{"$f":"SQRT((X353^2)+(X354^2))","v":51.264022471905186},{"$f":"Y353+Y354","v":184},{"$f":"SQRT((Z353^2)+(Z354^2))","v":90.520715861066847},{"$f":"AA353+AA354","v":54},{"$f":"SQRT((AB353^2)+(AB354^2))","v":129.76902558006668},{"$f":"AC353+AC354","v":3},{"$f":"SQRT((AD353^2)+(AD354^2))","v":114.0701538527936},{"$f":"AE353+AE354","v":27},{"$f":"SQRT((AF353^2)+(AF354^2))","v":117.881296226331},{"$f":"AG353+AG354","v":0},{"$f":"SQRT((AH353^2)+(AH354^2))","v":161.22034611053283},{"$f":"AI353+AI354","v":13},{"$f":"SQRT((AJ353^2)+(AJ354^2))","v":115.26057435220423},{"$f":"AK353+AK354","v":2},{"$f":"SQRT((AL353^2)+(AL354^2))","v":114.10959644131601},{"$f":"AM353+AM354","v":35},{"$f":"SQRT((AN353^2)+(AN354^2))","v":121.14866899805379},{"$f":"AO353+AO354","v":31},{"$f":"SQRT((AP353^2)+(AP354^2))","v":118.96217886370441},{"$f":"AQ353+AQ354","v":202},{"$f":"SQRT((AR353^2)+(AR354^2))","v":126.58988901172162},{"$f":"AS353+AS354","v":55},{"$f":"SQRT((AT353^2)+(AT354^2))","v":126.14277624977183},{"$f":"AU353+AU354","v":5},{"$f":"SQRT((AV353^2)+(AV354^2))","v":114.28035701729323},{"$f":"AW353+AW354","v":0},{"$f":"SQRT((AX353^2)+(AX354^2))","v":161.22034611053283},{"$f":"AY353+AY354","v":7},{"$f":"SQRT((AZ353^2)+(AZ354^2))","v":114.43775600735974},{"$f":"BA353+BA354","v":14},{"$f":"SQRT((BB353^2)+(BB354^2))","v":115.41230437002807},{"$f":"BC353+BC354","v":8},{"$f":"SQRT((BD353^2)+(BD354^2))","v":114.35471131527551}]
[null,"Less Than 35% of HH Income",{"$f":"C350+C351+C352+C353","v":80},{"$f":"SQRT((D350^2)+(D351^2)+(D352^2)+(D353^2))","v":57.087651904768336},{"$f":"E350+E351+E352+E353","v":0},{"$f":"SQRT((F350^2)+(F351^2)+(F352^2)+(F353^2))","v":228},{"$f":"G350+G351+G352+G353","v":28},{"$f":"SQRT((H350^2)+(H351^2)+(H352^2)+(H353^2))","v":116.79897259822108},{"$f":"I350+I351+I352+I353","v":0},{"$f":"SQRT((J350^2)+(J351^2)+(J352^2)+(J353^2))","v":228},{"$f":"K350+K351+K352+K353","v":0},{"$f":"SQRT((L350^2)+(L351^2)+(L352^2)+(L353^2))","v":228},{"$f":"M350+M351+M352+M353","v":0},{"$f":"SQRT((N350^2)+(N351^2)+(N352^2)+(N353^2))","v":228},{"$f":"O350+O351+O352+O353","v":0},{"$f":"SQRT((P350^2)+(P351^2)+(P352^2)+(P353^2))","v":228},{"$f":"Q350+Q351+Q352+Q353","v":481},{"$f":"SQRT((R350^2)+(R351^2)+(R352^2)+(R353^2))","v":192.2888452302941},{"$f":"S350+S351+S352+S353","v":0},{"$f":"SQRT((T350^2)+(T351^2)+(T352^2)+(T353^2))","v":228},{"$f":"U350+U351+U352+U353","v":0},{"$f":"SQRT((V350^2)+(V351^2)+(V352^2)+(V353^2))","v":228},{"$f":"W350+W351+W352+W353","v":54},{"$f":"SQRT((X350^2)+(X351^2)+(X352^2)+(X353^2))","v":126.73200069437868},{"$f":"Y350+Y351+Y352+Y353","v":159},{"$f":"SQRT((Z350^2)+(Z351^2)+(Z352^2)+(Z353^2))","v":78.358152096638932},{"$f":"AA350+AA351+AA352+AA353","v":30},{"$f":"SQRT((AB350^2)+(AB351^2)+(AB352^2)+(AB353^2))","v":163.60012224934309},{"$f":"AC350+AC351+AC352+AC353","v":0},{"$f":"SQRT((AD350^2)+(AD351^2)+(AD352^2)+(AD353^2))","v":228},{"$f":"AE350+AE351+AE352+AE353","v":8},{"$f":"SQRT((AF350^2)+(AF351^2)+(AF352^2)+(AF353^2))","v":197.88127753782064},{"$f":"AG350+AG351+AG352+AG353","v":0},{"$f":"SQRT((AH350^2)+(AH351^2)+(AH352^2)+(AH353^2))","v":228},{"$f":"AI350+AI351+AI352+AI353","v":0},{"$f":"SQRT((AJ350^2)+(AJ351^2)+(AJ352^2)+(AJ353^2))","v":228},{"$f":"AK350+AK351+AK352+AK353","v":0},{"$f":"SQRT((AL350^2)+(AL351^2)+(AL352^2)+(AL353^2))","v":228},{"$f":"AM350+AM351+AM352+AM353","v":0},{"$f":"SQRT((AN350^2)+(AN351^2)+(AN352^2)+(AN353^2))","v":228},{"$f":"AO350+AO351+AO352+AO353","v":22},{"$f":"SQRT((AP350^2)+(AP351^2)+(AP352^2)+(AP353^2))","v":199.15822855207364},{"$f":"AQ350+AQ351+AQ352+AQ353","v":52},{"$f":"SQRT((AR350^2)+(AR351^2)+(AR352^2)+(AR353^2))","v":168.30923919975396},{"$f":"AS350+AS351+AS352+AS353","v":24},{"$f":"SQRT((AT350^2)+(AT351^2)+(AT352^2)+(AT353^2))","v":199.42918542680758},{"$f":"AU350+AU351+AU352+AU353","v":0},{"$f":"SQRT((AV350^2)+(AV351^2)+(AV352^2)+(AV353^2))","v":228},{"$f":"AW350+AW351+AW352+AW353","v":0},{"$f":"SQRT((AX350^2)+(AX351^2)+(AX352^2)+(AX353^2))","v":228},{"$f":"AY350+AY351+AY352+AY353","v":13},{"$f":"SQRT((AZ350^2)+(AZ351^2)+(AZ352^2)+(AZ353^2))","v":161.78071578528758},{"$f":"BA350+BA351+BA352+BA353","v":0},{"$f":"SQRT((BB350^2)+(BB351^2)+(BB352^2)+(BB353^2))","v":228},{"$f":"BC350+BC351+BC352+BC353","v":0},{"$f":"SQRT((BD350^2)+(BD351^2)+(BD352^2)+(BD353^2))","v":228}]
[null,"35.0 percent or more",{"$f":"C354","v":69},59,22,29,14,23,120,69,3,5,4,6,0,114,740,196,11,12,12,14,11,18,113,65,54,62,3,4,27,30,0,114,13,17,2,5,35,41,31,34,189,125,55,54,5,8,0,114,0,114,14,18,8,9]
[null,"Not Computed",0,114,13,15,23,26,0,114,0,114,0,114,0,114,20,23,0,114,0,114,0,114,0,114,0,114,0,114,0,114,0,114,0,114,0,114,0,114,10,16,0,114,0,114,0,114,0,114,11,12,0,114,0,114]
[null,"$20,000 to $34,999:",217,113,0,114,31,31,75,52,19,13,48,30,0,114,1829,319,23,17,19,20,38,35,347,120,160,82,15,18,94,52,38,43,41,37,3,5,32,52,140,81,298,135,54,37,0,114,17,18,47,28,3,4,4,7]
[null,"Less than 30.0 percent",{"$f":"C357+C358+C359","v":47},{"$f":"SQRT((D357^2)+(D358^2)+(D359^2))","v":119.35241933031773},{"$f":"E357+E358+E359","v":0},{"$f":"SQRT((F357^2)+(F358^2)+(F359^2))","v":197.45379206285202},{"$f":"G357+G358+G359","v":0},{"$f":"SQRT((H357^2)+(H358^2)+(H359^2))","v":197.45379206285202},{"$f":"I357+I358+I359","v":10},{"$f":"SQRT((J357^2)+(J358^2)+(J359^2))","v":162.11415730897781},{"$f":"K357+K358+K359","v":0},{"$f":"SQRT((L357^2)+(L358^2)+(L359^2))","v":197.45379206285202},{"$f":"M357+M358+M359","v":43},{"$f":"SQRT((N357^2)+(N358^2)+(N359^2))","v":34.08812109811862},{"$f":"O357+O358+O359","v":0},{"$f":"SQRT((P357^2)+(P358^2)+(P359^2))","v":197.45379206285202},{"$f":"Q357+Q358+Q359","v":284},{"$f":"SQRT((R357^2)+(R358^2)+(R359^2))","v":127.79280104919839},{"$f":"S357+S358+S359","v":10},{"$f":"SQRT((T357^2)+(T358^2)+(T359^2))","v":114.42901729893515},{"$f":"U357+U358+U359","v":0},{"$f":"SQRT((V357^2)+(V358^2)+(V359^2))","v":197.45379206285202},{"$f":"W357+W358+W359","v":0},{"$f":"SQRT((X357^2)+(X358^2)+(X359^2))","v":197.45379206285202},{"$f":"Y357+Y358+Y359","v":200},{"$f":"SQRT((Z357^2)+(Z358^2)+(Z359^2))","v":105.8536725862641},{"$f":"AA357+AA358+AA359","v":38},{"$f":"SQRT((AB357^2)+(AB358^2)+(AB359^2))","v":30.740852297878796},{"$f":"AC357+AC358+AC359","v":0},{"$f":"SQRT((AD357^2)+(AD358^2)+(AD359^2))","v":197.45379206285202},{"$f":"AE357+AE358+AE359","v":40},{"$f":"SQRT((AF357^2)+(AF358^2)+(AF359^2))","v":33.060550509633082},{"$f":"AG357+AG358+AG359","v":17},{"$f":"SQRT((AH357^2)+(AH358^2)+(AH359^2))","v":163.30339861742007},{"$f":"AI357+AI358+AI359","v":0},{"$f":"SQRT((AJ357^2)+(AJ358^2)+(AJ359^2))","v":197.45379206285202},{"$f":"AK357+AK358+AK359","v":0},{"$f":"SQRT((AL357^2)+(AL358^2)+(AL359^2))","v":197.45379206285202},{"$f":"AM357+AM358+AM359","v":32},{"$f":"SQRT((AN357^2)+(AN358^2)+(AN359^2))","v":169.39893742287759},{"$f":"AO357+AO358+AO359","v":0},{"$f":"SQRT((AP357^2)+(AP358^2)+(AP359^2))","v":197.45379206285202},{"$f":"AQ357+AQ358+AQ359","v":157},{"$f":"SQRT((AR357^2)+(AR358^2)+(AR359^2))","v":202.78313539345424},{"$f":"AS357+AS358+AS359","v":23},{"$f":"SQRT((AT357^2)+(AT358^2)+(AT359^2))","v":163.30339861742007},{"$f":"AU357+AU358+AU359","v":0},{"$f":"SQRT((AV357^2)+(AV358^2)+(AV359^2))","v":197.45379206285202},{"$f":"AW357+AW358+AW359","v":0},{"$f":"SQRT((AX357^2)+(AX358^2)+(AX359^2))","v":197.45379206285202},{"$f":"AY357+AY358+AY359","v":0},{"$f":"SQRT((AZ357^2)+(AZ358^2)+(AZ359^2))","v":197.45379206285202},{"$f":"BA357+BA358+BA359","v":0},{"$f":"SQRT((BB357^2)+(BB358^2)+(BB359^2))","v":197.45379206285202},{"$f":"BC357+BC358+BC359","v":0},{"$f":"SQRT((BD357^2)+(BD358^2)+(BD359^2))","v":197.45379206285202}]
[null,"More than 30.0 percent",{"$f":"C360+C361","v":162},{"$f":"SQRT((D360^2)+(D361^2))","v":106.40488710580919},{"$f":"E360+E361","v":0},{"$f":"SQRT((F360^2)+(F361^2))","v":161.22034611053283},{"$f":"G360+G361","v":31},{"$f":"SQRT((H360^2)+(H361^2))","v":118.1397477566293},{"$f":"I360+I361","v":65},{"$f":"SQRT((J360^2)+(J361^2))","v":124.88794977899188},{"$f":"K360+K361","v":19},{"$f":"SQRT((L360^2)+(L361^2))","v":114.73883387938018},{"$f":"M360+M361","v":5},{"$f":"SQRT((N360^2)+(N361^2))","v":114.28035701729323},{"$f":"O360+O361","v":0},{"$f":"SQRT((P360^2)+(P361^2))","v":161.22034611053283},{"$f":"Q360+Q361","v":1514},{"$f":"SQRT((R360^2)+(R361^2))","v":305.94934221207274},{"$f":"S360+S361","v":13},{"$f":"SQRT((T360^2)+(T361^2))","v":114.73883387938018},{"$f":"U360+U361","v":19},{"$f":"SQRT((V360^2)+(V361^2))","v":19.849433241279208},{"$f":"W360+W361","v":38},{"$f":"SQRT((X360^2)+(X361^2))","v":119.25183436744275},{"$f":"Y360+Y361","v":122},{"$f":"SQRT((Z360^2)+(Z361^2))","v":76.243032468547582},{"$f":"AA360+AA361","v":122},{"$f":"SQRT((AB360^2)+(AB361^2))","v":81.123362849428275},{"$f":"AC360+AC361","v":15},{"$f":"SQRT((AD360^2)+(AD361^2))","v":115.41230437002807},{"$f":"AE360+AE361","v":54},{"$f":"SQRT((AF360^2)+(AF361^2))","v":45.541190146942803},{"$f":"AG360+AG361","v":21},{"$f":"SQRT((AH360^2)+(AH361^2))","v":118.96217886370441},{"$f":"AI360+AI361","v":12},{"$f":"SQRT((AJ360^2)+(AJ361^2))","v":115.57248807566617},{"$f":"AK360+AK361","v":3},{"$f":"SQRT((AL360^2)+(AL361^2))","v":114.10959644131601},{"$f":"AM360+AM361","v":0},{"$f":"SQRT((AN360^2)+(AN361^2))","v":161.22034611053283},{"$f":"AO360+AO361","v":131},{"$f":"SQRT((AP360^2)+(AP361^2))","v":84.628600366542756},{"$f":"AQ360+AQ361","v":141},{"$f":"SQRT((AR360^2)+(AR361^2))","v":128.96898852049665},{"$f":"AS360+AS361","v":31},{"$f":"SQRT((AT360^2)+(AT361^2))","v":116.70903992407786},{"$f":"AU360+AU361","v":0},{"$f":"SQRT((AV360^2)+(AV361^2))","v":161.22034611053283},{"$f":"AW360+AW361","v":17},{"$f":"SQRT((AX360^2)+(AX361^2))","v":115.41230437002807},{"$f":"AY360+AY361","v":47},{"$f":"SQRT((AZ360^2)+(AZ361^2))","v":27.856776554368238},{"$f":"BA360+BA361","v":0},{"$f":"SQRT((BB360^2)+(BB361^2))","v":161.22034611053283},{"$f":"BC360+BC361","v":4},{"$f":"SQRT((BD360^2)+(BD361^2))","v":114.21471008587291}]
[null,"Less Than 35% of HH Income",{"$f":"C357+C358+C359+C360","v":107},{"$f":"SQRT((D360^2)+(D357^2)+(D358^2)+(D359^2))","v":137.86225009044355},{"$f":"E357+E358+E359+E360","v":0},{"$f":"SQRT((F360^2)+(F357^2)+(F358^2)+(F359^2))","v":228},{"$f":"G357+G358+G359+G360","v":0},{"$f":"SQRT((H360^2)+(H357^2)+(H358^2)+(H359^2))","v":228},{"$f":"I357+I358+I359+I360","v":10},{"$f":"SQRT((J360^2)+(J357^2)+(J358^2)+(J359^2))","v":198.18425769974769},{"$f":"K357+K358+K359+K360","v":0},{"$f":"SQRT((L360^2)+(L357^2)+(L358^2)+(L359^2))","v":228},{"$f":"M357+M358+M359+M360","v":48},{"$f":"SQRT((N360^2)+(N357^2)+(N358^2)+(N359^2))","v":35.014282800023196},{"$f":"O357+O358+O359+O360","v":0},{"$f":"SQRT((P360^2)+(P357^2)+(P358^2)+(P359^2))","v":228},{"$f":"Q357+Q358+Q359+Q360","v":528},{"$f":"SQRT((R360^2)+(R357^2)+(R358^2)+(R359^2))","v":166.03312922426053},{"$f":"S357+S358+S359+S360","v":10},{"$f":"SQRT((T360^2)+(T357^2)+(T358^2)+(T359^2))","v":161.52399202595259},{"$f":"U357+U358+U359+U360","v":8},{"$f":"SQRT((V360^2)+(V357^2)+(V358^2)+(V359^2))","v":198.022725968511},{"$f":"W357+W358+W359+W360","v":0},{"$f":"SQRT((X360^2)+(X357^2)+(X358^2)+(X359^2))","v":228},{"$f":"Y357+Y358+Y359+Y360","v":215},{"$f":"SQRT((Z360^2)+(Z357^2)+(Z358^2)+(Z359^2))","v":108.11567878897121},{"$f":"AA357+AA358+AA359+AA360","v":64},{"$f":"SQRT((AB360^2)+(AB357^2)+(AB358^2)+(AB359^2))","v":51.244511901275828},{"$f":"AC357+AC358+AC359+AC360","v":0},{"$f":"SQRT((AD360^2)+(AD357^2)+(AD358^2)+(AD359^2))","v":228},{"$f":"AE357+AE358+AE359+AE360","v":50},{"$f":"SQRT((AF360^2)+(AF357^2)+(AF358^2)+(AF359^2))","v":36.304269721342692},{"$f":"AG357+AG358+AG359+AG360","v":17},{"$f":"SQRT((AH360^2)+(AH357^2)+(AH358^2)+(AH359^2))","v":199.15822855207364},{"$f":"AI357+AI358+AI359+AI360","v":0},{"$f":"SQRT((AJ360^2)+(AJ357^2)+(AJ358^2)+(AJ359^2))","v":228},{"$f":"AK357+AK358+AK359+AK360","v":0},{"$f":"SQRT((AL360^2)+(AL357^2)+(AL358^2)+(AL359^2))","v":228},{"$f":"AM357+AM358+AM359+AM360","v":32},{"$f":"SQRT((AN360^2)+(AN357^2)+(AN358^2)+(AN359^2))","v":204.1861895427798},{"$f":"AO357+AO358+AO359+AO360","v":46},{"$f":"SQRT((AP360^2)+(AP357^2)+(AP358^2)+(AP359^2))","v":203.44286667268528},{"$f":"AQ357+AQ358+AQ359+AQ360","v":240},{"$f":"SQRT((AR360^2)+(AR357^2)+(AR358^2)+(AR359^2))","v":229.28148638736621},{"$f":"AS357+AS358+AS359+AS360","v":23},{"$f":"SQRT((AT360^2)+(AT357^2)+(AT358^2)+(AT359^2))","v":199.15822855207364},{"$f":"AU357+AU358+AU359+AU360","v":0},{"$f":"SQRT((AV360^2)+(AV357^2)+(AV358^2)+(AV359^2))","v":228},{"$f":"AW357+AW358+AW359+AW360","v":0},{"$f":"SQRT((AX360^2)+(AX357^2)+(AX358^2)+(AX359^2))","v":228},{"$f":"AY357+AY358+AY359+AY360","v":7},{"$f":"SQRT((AZ360^2)+(AZ357^2)+(AZ358^2)+(AZ359^2))","v":197.70685370011836},{"$f":"BA357+BA358+BA359+BA360","v":0},{"$f":"SQRT((BB360^2)+(BB357^2)+(BB358^2)+(BB359^2))","v":228},{"$f":"BC357+BC358+BC359+BC360","v":0},{"$f":"SQRT((BD360^2)+(BD357^2)+(BD358^2)+(BD359^2))","v":228}]
[null,"35.0 percent or more",{"$f":"C361","v":102},81,0,114,31,31,65,51,19,13,0,114,0,114,1270,287,13,13,11,13,38,35,107,73,96,70,15,18,44,43,21,34,12,19,3,5,0,114,85,69,58,72,31,25,0,114,17,18,40,26,0,114,4,7]
[null,"Not Computed",8,12,0,114,0,114,0,114,0,114,0,114,0,114,31,36,0,114,0,114,0,114,25,24,0,114,0,114,0,114,0,114,29,27,0,114,0,114,9,14,0,114,0,114,0,114,0,114,0,114,3,4,0,114]
[null,"$35,000 to $49,999:",51,53,37,40,35,27,41,48,5,6,4,7,0,114,1394,258,19,18,9,13,11,16,159,71,72,71,16,16,166,91,0,114,45,52,2,4,40,34,127,105,115,106,169,100,0,114,15,16,55,29,19,14,0,114]
[null,"Less than 30.0 percent",{"$f":"C364+C365+C366","v":42},{"$f":"SQRT((D364^2)+(D365^2)+(D367^2))","v":168.79573454326385},{"$f":"E364+E365+E366","v":0},{"$f":"SQRT((F364^2)+(F365^2)+(F367^2))","v":197.45379206285202},{"$f":"G364+G365+G366","v":26},{"$f":"SQRT((H364^2)+(H365^2)+(H367^2))","v":116.38298844762494},{"$f":"I364+I365+I366","v":10},{"$f":"SQRT((J364^2)+(J365^2)+(J367^2))","v":197.45379206285202},{"$f":"K364+K365+K366","v":5},{"$f":"SQRT((L364^2)+(L365^2)+(L367^2))","v":114.17968295629481},{"$f":"M364+M365+M366","v":4},{"$f":"SQRT((N364^2)+(N365^2)+(N367^2))","v":161.37224048763778},{"$f":"O364+O365+O366","v":0},{"$f":"SQRT((P364^2)+(P365^2)+(P367^2))","v":197.45379206285202},{"$f":"Q364+Q365+Q366","v":863},{"$f":"SQRT((R364^2)+(R365^2)+(R367^2))","v":201.53411621856981},{"$f":"S364+S365+S366","v":19},{"$f":"SQRT((T364^2)+(T365^2)+(T367^2))","v":161.37224048763778},{"$f":"U364+U365+U366","v":9},{"$f":"SQRT((V364^2)+(V365^2)+(V367^2))","v":197.45379206285202},{"$f":"W364+W365+W366","v":0},{"$f":"SQRT((X364^2)+(X365^2)+(X367^2))","v":197.45379206285202},{"$f":"Y364+Y365+Y366","v":70},{"$f":"SQRT((Z364^2)+(Z365^2)+(Z367^2))","v":75.901251636583694},{"$f":"AA364+AA365+AA366","v":46},{"$f":"SQRT((AB364^2)+(AB365^2)+(AB367^2))","v":133.3604139165742},{"$f":"AC364+AC365+AC366","v":3},{"$f":"SQRT((AD364^2)+(AD365^2)+(AD367^2))","v":161.29786111415117},{"$f":"AE364+AE365+AE366","v":101},{"$f":"SQRT((AF364^2)+(AF365^2)+(AF367^2))","v":178.23579887329032},{"$f":"AG364+AG365+AG366","v":0},{"$f":"SQRT((AH364^2)+(AH365^2)+(AH367^2))","v":197.45379206285202},{"$f":"AI364+AI365+AI366","v":0},{"$f":"SQRT((AJ364^2)+(AJ365^2)+(AJ367^2))","v":167.93153366774212},{"$f":"AK364+AK365+AK366","v":2},{"$f":"SQRT((AL364^2)+(AL365^2)+(AL367^2))","v":161.26996000495566},{"$f":"AM364+AM365+AM366","v":29},{"$f":"SQRT((AN364^2)+(AN365^2)+(AN367^2))","v":34.481879299133332},{"$f":"AO364+AO365+AO366","v":84},{"$f":"SQRT((AP364^2)+(AP365^2)+(AP367^2))","v":137.39723432442153},{"$f":"AQ364+AQ365+AQ366","v":78},{"$f":"SQRT((AR364^2)+(AR365^2)+(AR367^2))","v":150.88406145116852},{"$f":"AS364+AS365+AS366","v":169},{"$f":"SQRT((AT364^2)+(AT365^2)+(AT367^2))","v":175.76120163449042},{"$f":"AU364+AU365+AU366","v":0},{"$f":"SQRT((AV364^2)+(AV365^2)+(AV367^2))","v":197.45379206285202},{"$f":"AW364+AW365+AW366","v":13},{"$f":"SQRT((AX364^2)+(AX365^2)+(AX367^2))","v":16.06237840420901},{"$f":"AY364+AY365+AY366","v":41},{"$f":"SQRT((AZ364^2)+(AZ365^2)+(AZ367^2))","v":115.17378173872733},{"$f":"BA364+BA365+BA366","v":13},{"$f":"SQRT((BB364^2)+(BB365^2)+(BB367^2))","v":114.63856244737195},{"$f":"BC364+BC365+BC366","v":0},{"$f":"SQRT((BD364^2)+(BD365^2)+(BD367^2))","v":197.45379206285202}]
[null,"More than 30.0 percent",{"$f":"C367+C368","v":0},{"$f":"SQRT((D367^2)+(D368^2))","v":161.22034611053283},{"$f":"E367+E368","v":19},{"$f":"SQRT((F367^2)+(F368^2))","v":118.1397477566293},{"$f":"G367+G368","v":9},{"$f":"SQRT((H367^2)+(H368^2))","v":114.9826073804208},{"$f":"I367+I368","v":31},{"$f":"SQRT((J367^2)+(J368^2))","v":122.93087488503447},{"$f":"K367+K368","v":0},{"$f":"SQRT((L367^2)+(L368^2))","v":161.22034611053283},{"$f":"M367+M368","v":0},{"$f":"SQRT((N367^2)+(N368^2))","v":161.22034611053283},{"$f":"O367+O368","v":0},{"$f":"SQRT((P367^2)+(P368^2))","v":161.22034611053283},{"$f":"Q367+Q368","v":500},{"$f":"SQRT((R367^2)+(R368^2))","v":149.21461054467824},{"$f":"S367+S368","v":0},{"$f":"SQRT((T367^2)+(T368^2))","v":161.22034611053283},{"$f":"U367+U368","v":0},{"$f":"SQRT((V367^2)+(V368^2))","v":161.22034611053283},{"$f":"W367+W368","v":11},{"$f":"SQRT((X367^2)+(X368^2))","v":115.11733144926528},{"$f":"Y367+Y368","v":89},{"$f":"SQRT((Z367^2)+(Z368^2))","v":61.773780845922005},{"$f":"AA367+AA368","v":26},{"$f":"SQRT((AB367^2)+(AB368^2))","v":121.49074038789952},{"$f":"AC367+AC368","v":0},{"$f":"SQRT((AD367^2)+(AD368^2))","v":161.22034611053283},{"$f":"AE367+AE368","v":65},{"$f":"SQRT((AF367^2)+(AF368^2))","v":125.29964086141668},{"$f":"AG367+AG368","v":0},{"$f":"SQRT((AH367^2)+(AH368^2))","v":161.22034611053283},{"$f":"AI367+AI368","v":45},{"$f":"SQRT((AJ367^2)+(AJ368^2))","v":51.894122981316485},{"$f":"AK367+AK368","v":0},{"$f":"SQRT((AL367^2)+(AL368^2))","v":161.22034611053283},{"$f":"AM367+AM368","v":11},{"$f":"SQRT((AN367^2)+(AN368^2))","v":115.26057435220423},{"$f":"AO367+AO368","v":43},{"$f":"SQRT((AP367^2)+(AP368^2))","v":50.960769224963627},{"$f":"AQ367+AQ368","v":37},{"$f":"SQRT((AR367^2)+(AR368^2))","v":121.8400590938793},{"$f":"AS367+AS368","v":0},{"$f":"SQRT((AT367^2)+(AT368^2))","v":161.22034611053283},{"$f":"AU367+AU368","v":0},{"$f":"SQRT((AV367^2)+(AV368^2))","v":161.22034611053283},{"$f":"AW367+AW368","v":2},{"$f":"SQRT((AX367^2)+(AX368^2))","v":114.10959644131601},{"$f":"AY367+AY368","v":8},{"$f":"SQRT((AZ367^2)+(AZ368^2))","v":114.52947218947619},{"$f":"BA367+BA368","v":2},{"$f":"SQRT((BB367^2)+(BB368^2))","v":114.03946685248927},{"$f":"BC367+BC368","v":0},{"$f":"SQRT((BD367^2)+(BD368^2))","v":161.22034611053283}]
[null,"Less Than 35% of HH Income",{"$f":"C364+C365+C366+C367","v":42},{"$f":"SQRT((D366^2)+(D367^2)+(D364^2)+(D365^2))","v":203.68603290358425},{"$f":"E364+E365+E366+E367","v":0},{"$f":"SQRT((F366^2)+(F367^2)+(F364^2)+(F365^2))","v":228},{"$f":"G364+G365+G366+G367","v":35},{"$f":"SQRT((H366^2)+(H367^2)+(H364^2)+(H365^2))","v":118.0889495253472},{"$f":"I364+I365+I366+I367","v":10},{"$f":"SQRT((J366^2)+(J367^2)+(J364^2)+(J365^2))","v":198.10098434889213},{"$f":"K364+K365+K366+K367","v":5},{"$f":"SQRT((L366^2)+(L367^2)+(L364^2)+(L365^2))","v":161.34745117292681},{"$f":"M364+M365+M366+M367","v":4},{"$f":"SQRT((N366^2)+(N367^2)+(N364^2)+(N365^2))","v":197.57783276471073},{"$f":"O364+O365+O366+O367","v":0},{"$f":"SQRT((P366^2)+(P367^2)+(P364^2)+(P365^2))","v":228},{"$f":"Q364+Q365+Q366+Q367","v":1133},{"$f":"SQRT((R366^2)+(R367^2)+(R364^2)+(R365^2))","v":240.36846714991549},{"$f":"S364+S365+S366+S367","v":19},{"$f":"SQRT((T366^2)+(T367^2)+(T364^2)+(T365^2))","v":162.265215003093},{"$f":"U364+U365+U366+U367","v":9},{"$f":"SQRT((V366^2)+(V367^2)+(V364^2)+(V365^2))","v":197.88127753782064},{"$f":"W364+W365+W366+W367","v":0},{"$f":"SQRT((X366^2)+(X367^2)+(X364^2)+(X365^2))","v":228},{"$f":"Y364+Y365+Y366+Y367","v":125},{"$f":"SQRT((Z366^2)+(Z367^2)+(Z364^2)+(Z365^2))","v":136.95619737711763},{"$f":"AA364+AA365+AA366+AA367","v":72},{"$f":"SQRT((AB366^2)+(AB367^2)+(AB364^2)+(AB365^2))","v":175.44514812328097},{"$f":"AC364+AC365+AC366+AC367","v":3},{"$f":"SQRT((AD366^2)+(AD367^2)+(AD364^2)+(AD365^2))","v":197.51708786836647},{"$f":"AE364+AE365+AE366+AE367","v":101},{"$f":"SQRT((AF366^2)+(AF367^2)+(AF364^2)+(AF365^2))","v":181.8350901228913},{"$f":"AG364+AG365+AG366+AG367","v":0},{"$f":"SQRT((AH366^2)+(AH367^2)+(AH364^2)+(AH365^2))","v":228},{"$f":"AI364+AI365+AI366+AI367","v":31},{"$f":"SQRT((AJ366^2)+(AJ367^2)+(AJ364^2)+(AJ365^2))","v":202.97044119772713},{"$f":"AK364+AK365+AK366+AK367","v":2},{"$f":"SQRT((AL366^2)+(AL367^2)+(AL364^2)+(AL365^2))","v":197.49430371532239},{"$f":"AM364+AM365+AM366+AM367","v":40},{"$f":"SQRT((AN366^2)+(AN367^2)+(AN364^2)+(AN365^2))","v":119.10079764636339},{"$f":"AO364+AO365+AO366+AO367","v":118},{"$f":"SQRT((AP366^2)+(AP367^2)+(AP364^2)+(AP365^2))","v":148.75147058096601},{"$f":"AQ364+AQ365+AQ366+AQ367","v":115},{"$f":"SQRT((AR366^2)+(AR367^2)+(AR364^2)+(AR365^2))","v":155.35443347391151},{"$f":"AS364+AS365+AS366+AS367","v":169},{"$f":"SQRT((AT366^2)+(AT367^2)+(AT364^2)+(AT365^2))","v":190.70395905696347},{"$f":"AU364+AU365+AU366+AU367","v":0},{"$f":"SQRT((AV366^2)+(AV367^2)+(AV364^2)+(AV365^2))","v":228},{"$f":"AW364+AW365+AW366+AW367","v":15},{"$f":"SQRT((AX366^2)+(AX367^2)+(AX364^2)+(AX365^2))","v":115.12601791080937},{"$f":"AY364+AY365+AY366+AY367","v":41},{"$f":"SQRT((AZ366^2)+(AZ367^2)+(AZ364^2)+(AZ365^2))","v":116.27983488120371},{"$f":"BA364+BA365+BA366+BA367","v":13},{"$f":"SQRT((BB366^2)+(BB367^2)+(BB364^2)+(BB365^2))","v":114.70832576583096},{"$f":"BC364+BC365+BC366+BC367","v":0},{"$f":"SQRT((BD366^2)+(BD367^2)+(BD364^2)+(BD365^2))","v":228}]
[null,"35.0 percent or more",{"$f":"C368","v":0},{"$f":"D368","v":114},{"$f":"E368","v":19},{"$f":"F368","v":31},{"$f":"G368","v":0},{"$f":"H368","v":114},{"$f":"I368","v":31},{"$f":"J368","v":46},{"$f":"K368","v":0},{"$f":"L368","v":114},{"$f":"M368","v":0},{"$f":"N368","v":114},0,114,230,107,0,114,0,114,11,16,34,30,0,114,0,114,65,52,0,114,14,22,0,114,0,114,9,14,0,114,0,114,0,114,0,114,8,11,2,3,0,114]
[null,"Not Computed",9,17,18,28,0,114,0,114,0,114,0,114,0,114,31,30,0,114,0,114,0,114,0,114,0,114,13,15,0,114,0,114,0,114,0,114,0,114,0,114,0,114,0,114,0,114,0,114,6,9,4,6,0,114]
[null,"$50,000 to $74,999:",38,33,28,30,72,52,30,33,9,7,17,16,0,114,1319,258,10,11,0,114,82,64,168,78,79,65,37,27,125,66,57,55,19,29,30,19,30,48,49,35,154,125,90,58,12,15,4,6,46,37,10,8,0,114]
[null,"Less than 30.0 percent",{"$f":"C371+C372+C373","v":28},{"$f":"SQRT((D371^2)+(D372^2)+(D373^2))","v":27.184554438136374},{"$f":"E371+E372+E373","v":10},{"$f":"SQRT((F371^2)+(F372^2)+(F373^2))","v":114.56002793295748},{"$f":"G371+G372+G373","v":64},{"$f":"SQRT((H371^2)+(H372^2)+(H373^2))","v":124.24169992397883},{"$f":"I371+I372+I373","v":30},{"$f":"SQRT((J371^2)+(J372^2)+(J373^2))","v":118.00423721205946},{"$f":"K371+K372+K373","v":9},{"$f":"SQRT((L371^2)+(L372^2)+(L373^2))","v":161.37224048763778},{"$f":"M371+M372+M373","v":3},{"$f":"SQRT((N371^2)+(N372^2)+(N373^2))","v":161.26996000495566},{"$f":"O371+O372+O373","v":0},{"$f":"SQRT((P371^2)+(P372^2)+(P373^2))","v":197.45379206285202},{"$f":"Q371+Q372+Q373","v":1096},{"$f":"SQRT((R371^2)+(R372^2)+(R373^2))","v":226.08847825574836},{"$f":"S371+S372+S373","v":10},{"$f":"SQRT((T371^2)+(T372^2)+(T373^2))","v":161.59517319524119},{"$f":"U371+U372+U373","v":0},{"$f":"SQRT((V371^2)+(V372^2)+(V373^2))","v":197.45379206285202},{"$f":"W371+W372+W373","v":45},{"$f":"SQRT((X371^2)+(X372^2)+(X373^2))","v":119.91663771137014},{"$f":"Y371+Y372+Y373","v":168},{"$f":"SQRT((Z371^2)+(Z372^2)+(Z373^2))","v":79.705708703956702},{"$f":"AA371+AA372+AA373","v":79},{"$f":"SQRT((AB371^2)+(AB372^2)+(AB373^2))","v":64.257295305669373},{"$f":"AC371+AC372+AC373","v":28},{"$f":"SQRT((AD371^2)+(AD372^2)+(AD373^2))","v":116.09048195265622},{"$f":"AE371+AE372+AE373","v":113},{"$f":"SQRT((AF371^2)+(AF372^2)+(AF373^2))","v":83.480536653761391},{"$f":"AG371+AG372+AG373","v":40},{"$f":"SQRT((AH371^2)+(AH372^2)+(AH373^2))","v":168.21414922651422},{"$f":"AI371+AI372+AI373","v":8},{"$f":"SQRT((AJ371^2)+(AJ372^2)+(AJ373^2))","v":161.8270681931796},{"$f":"AK371+AK372+AK373","v":25},{"$f":"SQRT((AL371^2)+(AL372^2)+(AL373^2))","v":115.41663658242689},{"$f":"AM371+AM372+AM373","v":0},{"$f":"SQRT((AN371^2)+(AN372^2)+(AN373^2))","v":197.45379206285202},{"$f":"AO371+AO372+AO373","v":36},{"$f":"SQRT((AP371^2)+(AP372^2)+(AP373^2))","v":118.91593669479293},{"$f":"AQ371+AQ372+AQ373","v":154},{"$f":"SQRT((AR371^2)+(AR372^2)+(AR373^2))","v":171.11691909334974},{"$f":"AS371+AS372+AS373","v":90},{"$f":"SQRT((AT371^2)+(AT372^2)+(AT373^2))","v":126.98818842711317},{"$f":"AU371+AU372+AU373","v":12},{"$f":"SQRT((AV371^2)+(AV372^2)+(AV373^2))","v":161.91664522216362},{"$f":"AW371+AW372+AW373","v":4},{"$f":"SQRT((AX371^2)+(AX372^2)+(AX373^2))","v":161.33195591698504},{"$f":"AY371+AY372+AY373","v":27},{"$f":"SQRT((AZ371^2)+(AZ372^2)+(AZ373^2))","v":116.50751048752178},{"$f":"BA371+BA372+BA373","v":10},{"$f":"SQRT((BB371^2)+(BB372^2)+(BB373^2))","v":114.28473213863697},{"$f":"BC371+BC372+BC373","v":0},{"$f":"SQRT((BD371^2)+(BD372^2)+(BD373^2))","v":197.45379206285202}]
[null,"More than 30.0 percent",{"$f":"C374+C375","v":10},{"$f":"SQRT((D374^2)+(D375^2))","v":115.26057435220423},{"$f":"E374+E375","v":0},{"$f":"SQRT((F374^2)+(F375^2))","v":161.22034611053283},{"$f":"G374+G375","v":8},{"$f":"SQRT((H374^2)+(H375^2))","v":114.85643212288984},{"$f":"I374+I375","v":0},{"$f":"SQRT((J374^2)+(J375^2))","v":161.22034611053283},{"$f":"K374+K375","v":0},{"$f":"SQRT((L374^2)+(L375^2))","v":161.22034611053283},{"$f":"M374+M375","v":9},{"$f":"SQRT((N374^2)+(N375^2))","v":114.73883387938018},{"$f":"O374+O375","v":0},{"$f":"SQRT((P374^2)+(P375^2))","v":161.22034611053283},{"$f":"Q374+Q375","v":147},{"$f":"SQRT((R374^2)+(R375^2))","v":92.849340331528467},{"$f":"S374+S375","v":0},{"$f":"SQRT((T374^2)+(T375^2))","v":161.22034611053283},{"$f":"U374+U375","v":0},{"$f":"SQRT((V374^2)+(V375^2))","v":161.22034611053283},{"$f":"W374+W375","v":0},{"$f":"SQRT((X374^2)+(X375^2))","v":161.22034611053283},{"$f":"Y374+Y375","v":0},{"$f":"SQRT((Z374^2)+(Z375^2))","v":161.22034611053283},{"$f":"AA374+AA375","v":0},{"$f":"SQRT((AB374^2)+(AB375^2))","v":161.22034611053283},{"$f":"AC374+AC375","v":9},{"$f":"SQRT((AD374^2)+(AD375^2))","v":114.85643212288984},{"$f":"AE374+AE375","v":12},{"$f":"SQRT((AF374^2)+(AF375^2))","v":115.57248807566617},{"$f":"AG374+AG375","v":17},{"$f":"SQRT((AH374^2)+(AH375^2))","v":117.38824472663352},{"$f":"AI374+AI375","v":11},{"$f":"SQRT((AJ374^2)+(AJ375^2))","v":115.57248807566617},{"$f":"AK374+AK375","v":0},{"$f":"SQRT((AL374^2)+(AL375^2))","v":161.22034611053283},{"$f":"AM374+AM375","v":30},{"$f":"SQRT((AN374^2)+(AN375^2))","v":123.69316876852982},{"$f":"AO374+AO375","v":13},{"$f":"SQRT((AP374^2)+(AP375^2))","v":115.91807451816995},{"$f":"AQ374+AQ375","v":0},{"$f":"SQRT((AR374^2)+(AR375^2))","v":161.22034611053283},{"$f":"AS374+AS375","v":0},{"$f":"SQRT((AT374^2)+(AT375^2))","v":161.22034611053283},{"$f":"AU374+AU375","v":0},{"$f":"SQRT((AV374^2)+(AV375^2))","v":161.22034611053283},{"$f":"AW374+AW375","v":0},{"$f":"SQRT((AX374^2)+(AX375^2))","v":161.22034611053283},{"$f":"AY374+AY375","v":0},{"$f":"SQRT((AZ374^2)+(AZ375^2))","v":161.22034611053283},{"$f":"BA374+BA375","v":0},{"$f":"SQRT((BB374^2)+(BB375^2))","v":161.22034611053283},{"$f":"BC374+BC375","v":0},{"$f":"SQRT((BD374^2)+(BD375^2))","v":161.22034611053283}]
[null,"Less Than 35% of HH Income",{"$f":"C374+C373+C372+C371","v":38},{"$f":"SQRT((D374^2)+(D373^2)+(D372^2)+(D371^2))","v":32.062439083762797},{"$f":"E374+E373+E372+E371","v":10},{"$f":"SQRT((F374^2)+(F373^2)+(F372^2)+(F371^2))","v":161.61683080669539},{"$f":"G374+G373+G372+G371","v":72},{"$f":"SQRT((H374^2)+(H373^2)+(H372^2)+(H371^2))","v":125.02799686470227},{"$f":"I374+I373+I372+I371","v":30},{"$f":"SQRT((J374^2)+(J373^2)+(J372^2)+(J371^2))","v":164.07620180879371},{"$f":"K374+K373+K372+K371","v":9},{"$f":"SQRT((L374^2)+(L373^2)+(L372^2)+(L371^2))","v":197.57783276471073},{"$f":"M374+M373+M372+M371","v":12},{"$f":"SQRT((N374^2)+(N373^2)+(N372^2)+(N371^2))","v":161.7930777258409},{"$f":"O374+O373+O372+O371","v":0},{"$f":"SQRT((P374^2)+(P373^2)+(P372^2)+(P371^2))","v":228},{"$f":"Q374+Q373+Q372+Q371","v":1202},{"$f":"SQRT((R374^2)+(R373^2)+(R372^2)+(R371^2))","v":241.89253812385365},{"$f":"S374+S373+S372+S371","v":10},{"$f":"SQRT((T374^2)+(T373^2)+(T372^2)+(T371^2))","v":197.75995550161312},{"$f":"U374+U373+U372+U371","v":0},{"$f":"SQRT((V374^2)+(V373^2)+(V372^2)+(V371^2))","v":228},{"$f":"W374+W373+W372+W371","v":45},{"$f":"SQRT((X374^2)+(X373^2)+(X372^2)+(X371^2))","v":165.45694303957148},{"$f":"Y374+Y373+Y372+Y371","v":168},{"$f":"SQRT((Z374^2)+(Z373^2)+(Z372^2)+(Z371^2))","v":139.10068296022129},{"$f":"AA374+AA373+AA372+AA371","v":79},{"$f":"SQRT((AB374^2)+(AB373^2)+(AB372^2)+(AB371^2))","v":130.86252328302402},{"$f":"AC374+AC373+AC372+AC371","v":28},{"$f":"SQRT((AD374^2)+(AD373^2)+(AD372^2)+(AD371^2))","v":162.70525498581785},{"$f":"AE374+AE373+AE372+AE371","v":125},{"$f":"SQRT((AF374^2)+(AF373^2)+(AF372^2)+(AF371^2))","v":85.615419172015976},{"$f":"AG374+AG373+AG372+AG371","v":57},{"$f":"SQRT((AH374^2)+(AH373^2)+(AH372^2)+(AH371^2))","v":170.52858997833766},{"$f":"AI374+AI373+AI372+AI371","v":8},{"$f":"SQRT((AJ374^2)+(AJ373^2)+(AJ372^2)+(AJ371^2))","v":197.94948850653796},{"$f":"AK374+AK373+AK372+AK371","v":25},{"$f":"SQRT((AL374^2)+(AL373^2)+(AL372^2)+(AL371^2))","v":162.22515218054195},{"$f":"AM374+AM373+AM372+AM371","v":0},{"$f":"SQRT((AN374^2)+(AN373^2)+(AN372^2)+(AN371^2))","v":228},{"$f":"AO374+AO373+AO372+AO371","v":49},{"$f":"SQRT((AP374^2)+(AP373^2)+(AP372^2)+(AP371^2))","v":120.75595223424807},{"$f":"AQ374+AQ373+AQ372+AQ371","v":154},{"$f":"SQRT((AR374^2)+(AR373^2)+(AR372^2)+(AR371^2))","v":205.61371549582969},{"$f":"AS374+AS373+AS372+AS371","v":90},{"$f":"SQRT((AT374^2)+(AT373^2)+(AT372^2)+(AT371^2))","v":170.65169205138284},{"$f":"AU374+AU373+AU372+AU371","v":12},{"$f":"SQRT((AV374^2)+(AV373^2)+(AV372^2)+(AV371^2))","v":198.022725968511},{"$f":"AW374+AW373+AW372+AW371","v":4},{"$f":"SQRT((AX374^2)+(AX373^2)+(AX372^2)+(AX371^2))","v":197.54493159785193},{"$f":"AY374+AY373+AY372+AY371","v":27},{"$f":"SQRT((AZ374^2)+(AZ373^2)+(AZ372^2)+(AZ371^2))","v":163.00306745579974},{"$f":"BA374+BA373+BA372+BA371","v":10},{"$f":"SQRT((BB374^2)+(BB373^2)+(BB372^2)+(BB371^2))","v":161.42180769648195},{"$f":"BC374+BC373+BC372+BC371","v":0},{"$f":"SQRT((BD374^2)+(BD373^2)+(BD372^2)+(BD371^2))","v":228}]
[null,"35.0 percent or more",{"$f":"C375","v":0},{"$f":"D375","v":114},{"$f":"E375","v":0},{"$f":"F375","v":114},{"$f":"G375","v":0},{"$f":"H375","v":114},{"$f":"I375","v":0},{"$f":"J375","v":114},{"$f":"K375","v":0},{"$f":"L375","v":114},{"$f":"M375","v":0},{"$f":"N375","v":114},0,114,41,35,0,114,0,114,0,114,0,114,0,114,9,14,0,114,0,114,11,19,0,114,30,48,0,114,0,114,0,114,0,114,0,114,0,114,0,114,0,114]
[null,"Not Computed",{"$f":"C376","v":0},114,{"$f":"E376","v":18},28,{"$f":"G376","v":0},114,{"$f":"I376","v":0},114,{"$f":"K376","v":0},114,{"$f":"M376","v":5},7,0,114,76,57,0,114,0,114,37,57,0,114,0,114,0,114,0,114,0,114,0,114,5,8,0,114,0,114,0,114,0,114,0,114,0,114,19,30,0,114,0,114]
[null,"$75,000 to $99,999:",80,73,18,28,0,114,0,114,31,25,0,114,10,12,794,196,0,114,7,11,46,51,88,65,71,65,0,114,64,49,43,47,13,16,11,13,0,114,37,36,23,26,113,80,0,114,0,114,29,22,11,13,0,114]
[null,"Less than 30.0 percent",{"$f":"C378+C379+C380","v":47},{"$f":"SQRT((D378^2)+(D379^2)+(D380^2))","v":172.37459209523891},{"$f":"E378+E379+E380","v":0},{"$f":"SQRT((F378^2)+(F379^2)+(F380^2))","v":197.45379206285202},{"$f":"G378+G379+G380","v":0},{"$f":"SQRT((H378^2)+(H379^2)+(H380^2))","v":197.45379206285202},{"$f":"I378+I379+I380","v":0},{"$f":"SQRT((J378^2)+(J379^2)+(J380^2))","v":197.45379206285202},{"$f":"K378+K379+K380","v":31},{"$f":"SQRT((L378^2)+(L379^2)+(L380^2))","v":24.919871588754223},{"$f":"M378+M379+M380","v":0},{"$f":"SQRT((N378^2)+(N379^2)+(N380^2))","v":197.45379206285202},{"$f":"O378+O379+O380","v":10},{"$f":"SQRT((P378^2)+(P379^2)+(P380^2))","v":114.56002793295748},{"$f":"Q378+Q379+Q380","v":735},{"$f":"SQRT((R378^2)+(R379^2)+(R380^2))","v":188.73791352030995},{"$f":"S378+S379+S380","v":0},{"$f":"SQRT((T378^2)+(T379^2)+(T380^2))","v":197.45379206285202},{"$f":"U378+U379+U380","v":7},{"$f":"SQRT((V378^2)+(V379^2)+(V380^2))","v":161.59517319524119},{"$f":"W378+W379+W380","v":39},{"$f":"SQRT((X378^2)+(X379^2)+(X380^2))","v":168.79573454326385},{"$f":"Y378+Y379+Y380","v":88},{"$f":"SQRT((Z378^2)+(Z379^2)+(Z380^2))","v":173.83037709215267},{"$f":"AA378+AA379+AA380","v":65},{"$f":"SQRT((AB378^2)+(AB379^2)+(AB380^2))","v":131.99242402501744},{"$f":"AC378+AC379+AC380","v":0},{"$f":"SQRT((AD378^2)+(AD379^2)+(AD380^2))","v":197.45379206285202},{"$f":"AE378+AE379+AE380","v":64},{"$f":"SQRT((AF378^2)+(AF379^2)+(AF380^2))","v":123.25988804148737},{"$f":"AG378+AG379+AG380","v":23},{"$f":"SQRT((AH378^2)+(AH379^2)+(AH380^2))","v":119.15536076903967},{"$f":"AI378+AI379+AI380","v":8},{"$f":"SQRT((AJ378^2)+(AJ379^2)+(AJ380^2))","v":161.8270681931796},{"$f":"AK378+AK379+AK380","v":11},{"$f":"SQRT((AL378^2)+(AL379^2)+(AL380^2))","v":161.74362429474616},{"$f":"AM378+AM379+AM380","v":0},{"$f":"SQRT((AN378^2)+(AN379^2)+(AN380^2))","v":197.45379206285202},{"$f":"AO378+AO379+AO380","v":37},{"$f":"SQRT((AP378^2)+(AP379^2)+(AP380^2))","v":119.67038062946069},{"$f":"AQ378+AQ379+AQ380","v":13},{"$f":"SQRT((AR378^2)+(AR379^2)+(AR380^2))","v":162.4561479292181},{"$f":"AS378+AS379+AS380","v":113},{"$f":"SQRT((AT378^2)+(AT379^2)+(AT380^2))","v":179.97777640586628},{"$f":"AU378+AU379+AU380","v":0},{"$f":"SQRT((AV378^2)+(AV379^2)+(AV380^2))","v":197.45379206285202},{"$f":"AW378+AW379+AW380","v":0},{"$f":"SQRT((AX378^2)+(AX379^2)+(AX380^2))","v":197.45379206285202},{"$f":"AY378+AY379+AY380","v":29},{"$f":"SQRT((AZ378^2)+(AZ379^2)+(AZ380^2))","v":116.3486140871476},{"$f":"BA378+BA379+BA380","v":8},{"$f":"SQRT((BB378^2)+(BB379^2)+(BB380^2))","v":161.66632302368976},{"$f":"BC378+BC379+BC380","v":0},{"$f":"SQRT((BD378^2)+(BD379^2)+(BD380^2))","v":197.45379206285202}]
[null,"More than 30.0 percent",{"$f":"C381+C382","v":0},{"$f":"SQRT((D381^2)+(D382^2))","v":161.22034611053283},{"$f":"E381+E382","v":0},{"$f":"SQRT((F381^2)+(F382^2))","v":161.22034611053283},{"$f":"G381+G382","v":0},{"$f":"SQRT((H381^2)+(H382^2))","v":161.22034611053283},{"$f":"I381+I382","v":0},{"$f":"SQRT((J381^2)+(J382^2))","v":161.22034611053283},{"$f":"K381+K382","v":0},{"$f":"SQRT((L381^2)+(L382^2))","v":161.22034611053283},{"$f":"M381+M382","v":0},{"$f":"SQRT((N381^2)+(N382^2))","v":161.22034611053283},{"$f":"O381+O382","v":0},{"$f":"SQRT((P381^2)+(P382^2))","v":161.22034611053283},{"$f":"Q381+Q382","v":42},{"$f":"SQRT((R381^2)+(R382^2))","v":38.587562763149478},{"$f":"S381+S382","v":0},{"$f":"SQRT((T381^2)+(T382^2))","v":161.22034611053283},{"$f":"U381+U382","v":0},{"$f":"SQRT((V381^2)+(V382^2))","v":161.22034611053283},{"$f":"W381+W382","v":7},{"$f":"SQRT((X381^2)+(X382^2))","v":114.62983904725679},{"$f":"Y381+Y382","v":0},{"$f":"SQRT((Z381^2)+(Z382^2))","v":161.22034611053283},{"$f":"AA381+AA382","v":0},{"$f":"SQRT((AB381^2)+(AB382^2))","v":161.22034611053283},{"$f":"AC381+AC382","v":0},{"$f":"SQRT((AD381^2)+(AD382^2))","v":161.22034611053283},{"$f":"AE381+AE382","v":0},{"$f":"SQRT((AF381^2)+(AF382^2))","v":161.22034611053283},{"$f":"AG381+AG382","v":0},{"$f":"SQRT((AH381^2)+(AH382^2))","v":161.22034611053283},{"$f":"AI381+AI382","v":5},{"$f":"SQRT((AJ381^2)+(AJ382^2))","v":114.28035701729323},{"$f":"AK381+AK382","v":0},{"$f":"SQRT((AL381^2)+(AL382^2))","v":161.22034611053283},{"$f":"AM381+AM382","v":0},{"$f":"SQRT((AN381^2)+(AN382^2))","v":161.22034611053283},{"$f":"AO381+AO382","v":0},{"$f":"SQRT((AP381^2)+(AP382^2))","v":161.22034611053283},{"$f":"AQ381+AQ382","v":0},{"$f":"SQRT((AR381^2)+(AR382^2))","v":161.22034611053283},{"$f":"AS381+AS382","v":0},{"$f":"SQRT((AT381^2)+(AT382^2))","v":161.22034611053283},{"$f":"AU381+AU382","v":0},{"$f":"SQRT((AV381^2)+(AV382^2))","v":161.22034611053283},{"$f":"AW381+AW382","v":0},{"$f":"SQRT((AX381^2)+(AX382^2))","v":161.22034611053283},{"$f":"AY381+AY382","v":0},{"$f":"SQRT((AZ381^2)+(AZ382^2))","v":161.22034611053283},{"$f":"BA381+BA382","v":0},{"$f":"SQRT((BB381^2)+(BB382^2))","v":161.22034611053283},{"$f":"BC381+BC382","v":0},{"$f":"SQRT((BD381^2)+(BD382^2))","v":161.22034611053283}]
[null,"Less Than 35% of HH Income",{"$f":"C381+C380+C379+C378","v":47},{"$f":"SQRT((D381^2)+(D380^2)+(D379^2)+(D378^2))","v":206.66155907667007},{"$f":"E381+E380+E379+E378","v":0},{"$f":"SQRT((F381^2)+(F380^2)+(F379^2)+(F378^2))","v":228},{"$f":"G381+G380+G379+G378","v":0},{"$f":"SQRT((H381^2)+(H380^2)+(H379^2)+(H378^2))","v":228},{"$f":"I381+I380+I379+I378","v":0},{"$f":"SQRT((J381^2)+(J380^2)+(J379^2)+(J378^2))","v":228},{"$f":"K381+K380+K379+K378","v":31},{"$f":"SQRT((L381^2)+(L380^2)+(L379^2)+(L378^2))","v":116.69190203266035},{"$f":"M381+M380+M379+M378","v":0},{"$f":"SQRT((N381^2)+(N380^2)+(N379^2)+(N378^2))","v":228},{"$f":"O381+O380+O379+O378","v":10},{"$f":"SQRT((P381^2)+(P380^2)+(P379^2)+(P378^2))","v":161.61683080669539},{"$f":"Q381+Q380+Q379+Q378","v":748},{"$f":"SQRT((R381^2)+(R380^2)+(R379^2)+(R378^2))","v":189.79462584593907},{"$f":"S381+S380+S379+S378","v":0},{"$f":"SQRT((T381^2)+(T380^2)+(T379^2)+(T378^2))","v":228},{"$f":"U381+U380+U379+U378","v":7},{"$f":"SQRT((V381^2)+(V380^2)+(V379^2)+(V378^2))","v":197.75995550161312},{"$f":"W381+W380+W379+W378","v":46},{"$f":"SQRT((X381^2)+(X380^2)+(X379^2)+(X378^2))","v":169.22174801130026},{"$f":"Y381+Y380+Y379+Y378","v":88},{"$f":"SQRT((Z381^2)+(Z380^2)+(Z379^2)+(Z378^2))","v":207.8773676954757},{"$f":"AA381+AA380+AA379+AA378","v":65},{"$f":"SQRT((AB381^2)+(AB380^2)+(AB379^2)+(AB378^2))","v":174.40756864310677},{"$f":"AC381+AC380+AC379+AC378","v":0},{"$f":"SQRT((AD381^2)+(AD380^2)+(AD379^2)+(AD378^2))","v":228},{"$f":"AE381+AE380+AE379+AE378","v":64},{"$f":"SQRT((AF381^2)+(AF380^2)+(AF379^2)+(AF378^2))","v":167.89580101956093},{"$f":"AG381+AG380+AG379+AG378","v":23},{"$f":"SQRT((AH381^2)+(AH380^2)+(AH379^2)+(AH378^2))","v":164.90603384958357},{"$f":"AI381+AI380+AI379+AI378","v":8},{"$f":"SQRT((AJ381^2)+(AJ380^2)+(AJ379^2)+(AJ378^2))","v":197.94948850653796},{"$f":"AK381+AK380+AK379+AK378","v":11},{"$f":"SQRT((AL381^2)+(AL380^2)+(AL379^2)+(AL378^2))","v":197.88127753782064},{"$f":"AM381+AM380+AM379+AM378","v":0},{"$f":"SQRT((AN381^2)+(AN380^2)+(AN379^2)+(AN378^2))","v":228},{"$f":"AO381+AO380+AO379+AO378","v":37},{"$f":"SQRT((AP381^2)+(AP380^2)+(AP379^2)+(AP378^2))","v":165.2785527526182},{"$f":"AQ381+AQ380+AQ379+AQ378","v":13},{"$f":"SQRT((AR381^2)+(AR380^2)+(AR379^2)+(AR378^2))","v":198.4641025475388},{"$f":"AS381+AS380+AS379+AS378","v":113},{"$f":"SQRT((AT381^2)+(AT380^2)+(AT379^2)+(AT378^2))","v":213.04459627035837},{"$f":"AU381+AU380+AU379+AU378","v":0},{"$f":"SQRT((AV381^2)+(AV380^2)+(AV379^2)+(AV378^2))","v":228},{"$f":"AW381+AW380+AW379+AW378","v":0},{"$f":"SQRT((AX381^2)+(AX380^2)+(AX379^2)+(AX378^2))","v":228},{"$f":"AY381+AY380+AY379+AY378","v":29},{"$f":"SQRT((AZ381^2)+(AZ380^2)+(AZ379^2)+(AZ378^2))","v":162.88953311984167},{"$f":"BA381+BA380+BA379+BA378","v":8},{"$f":"SQRT((BB381^2)+(BB380^2)+(BB379^2)+(BB378^2))","v":197.81809826201444},{"$f":"BC381+BC380+BC379+BC378","v":0},{"$f":"SQRT((BD381^2)+(BD380^2)+(BD379^2)+(BD378^2))","v":228}]
[null,"35.0 percent or more",{"$f":"C382","v":0},{"$f":"D382","v":114},{"$f":"E382","v":0},{"$f":"F382","v":114},{"$f":"G382","v":0},{"$f":"H382","v":114},{"$f":"I382","v":0},{"$f":"J382","v":114},{"$f":"K382","v":0},{"$f":"L382","v":114},{"$f":"M382","v":0},{"$f":"N382","v":114},0,114,29,33,0,114,0,114,0,114,0,114,0,114,0,114,0,114,0,114,5,8,0,114,0,114,0,114,0,114,0,114,0,114,0,114,0,114,0,114,0,114]
[null,"Not Computed",33,48,18,28,0,114,0,114,0,114,0,114,0,114,17,28,0,114,0,114,0,114,0,114,6,9,0,114,0,114,20,31,0,114,0,114,0,114,0,114,10,17,0,114,0,114,0,114,0,114,3,4,0,114]
[null,"$100,000 or more:",60,43,39,44,0,114,0,114,5,8,7,9,7,11,279,105,0,114,28,27,0,114,68,68,0,114,3,5,80,85,0,114,37,54,5,8,10,15,0,114,0,114,10,16,0,114,4,7,11,11,3,5,0,114]
[null,"Less than 30.0 percent",{"$f":"C385+C386+C387","v":60},{"$f":"SQRT((D385^2)+(D386^2)+(D387^2))","v":166.85622553563891},{"$f":"E385+E386+E387","v":22},{"$f":"SQRT((F385^2)+(F386^2)+(F387^2))","v":164.97575579460153},{"$f":"G385+G386+G387","v":0},{"$f":"SQRT((H385^2)+(H386^2)+(H387^2))","v":197.45379206285202},{"$f":"I385+I386+I387","v":0},{"$f":"SQRT((J385^2)+(J386^2)+(J387^2))","v":197.45379206285202},{"$f":"K385+K386+K387","v":5},{"$f":"SQRT((L385^2)+(L386^2)+(L387^2))","v":161.41871019184859},{"$f":"M385+M386+M387","v":0},{"$f":"SQRT((N385^2)+(N386^2)+(N387^2))","v":197.45379206285202},{"$f":"O385+O386+O387","v":7},{"$f":"SQRT((P385^2)+(P386^2)+(P387^2))","v":161.59517319524119},{"$f":"Q385+Q386+Q387","v":269},{"$f":"SQRT((R385^2)+(R386^2)+(R387^2))","v":103.47946656221224},{"$f":"S385+S386+S387","v":0},{"$f":"SQRT((T385^2)+(T386^2)+(T387^2))","v":197.45379206285202},{"$f":"U385+U386+U387","v":28},{"$f":"SQRT((V385^2)+(V386^2)+(V387^2))","v":163.46559270990332},{"$f":"W385+W386+W387","v":0},{"$f":"SQRT((X385^2)+(X386^2)+(X387^2))","v":197.45379206285202},{"$f":"Y385+Y386+Y387","v":68},{"$f":"SQRT((Z385^2)+(Z386^2)+(Z387^2))","v":174.97428382479524},{"$f":"AA385+AA386+AA387","v":0},{"$f":"SQRT((AB385^2)+(AB386^2)+(AB387^2))","v":197.45379206285202},{"$f":"AC385+AC386+AC387","v":3},{"$f":"SQRT((AD385^2)+(AD386^2)+(AD387^2))","v":161.29786111415117},{"$f":"AE385+AE386+AE387","v":64},{"$f":"SQRT((AF385^2)+(AF386^2)+(AF387^2))","v":180.87564789103038},{"$f":"AG385+AG386+AG387","v":0},{"$f":"SQRT((AH385^2)+(AH386^2)+(AH387^2))","v":197.45379206285202},{"$f":"AI385+AI386+AI387","v":0},{"$f":"SQRT((AJ385^2)+(AJ386^2)+(AJ387^2))","v":197.45379206285202},{"$f":"AK385+AK386+AK387","v":5},{"$f":"SQRT((AL385^2)+(AL386^2)+(AL387^2))","v":161.41871019184859},{"$f":"AM385+AM386+AM387","v":10},{"$f":"SQRT((AN385^2)+(AN386^2)+(AN387^2))","v":161.91664522216362},{"$f":"AO385+AO386+AO387","v":0},{"$f":"SQRT((AP385^2)+(AP386^2)+(AP387^2))","v":197.45379206285202},{"$f":"AQ385+AQ386+AQ387","v":0},{"$f":"SQRT((AR385^2)+(AR386^2)+(AR387^2))","v":197.45379206285202},{"$f":"AS385+AS386+AS387","v":10},{"$f":"SQRT((AT385^2)+(AT386^2)+(AT387^2))","v":162.01234520862909},{"$f":"AU385+AU386+AU387","v":0},{"$f":"SQRT((AV385^2)+(AV386^2)+(AV387^2))","v":197.45379206285202},{"$f":"AW385+AW386+AW387","v":4},{"$f":"SQRT((AX385^2)+(AX386^2)+(AX387^2))","v":161.37224048763778},{"$f":"AY385+AY386+AY387","v":11},{"$f":"SQRT((AZ385^2)+(AZ386^2)+(AZ387^2))","v":114.49454135459908},{"$f":"BA385+BA386+BA387","v":3},{"$f":"SQRT((BB385^2)+(BB386^2)+(BB387^2))","v":161.29786111415117},{"$f":"BC385+BC386+BC387","v":0},{"$f":"SQRT((BD385^2)+(BD386^2)+(BD387^2))","v":197.45379206285202}]
[null,"More than 30.0 percent",{"$f":"C388+C389","v":0},{"$f":"SQRT((D388^2)+(D389^2))","v":161.22034611053283},{"$f":"E388+E389","v":0},{"$f":"SQRT((F388^2)+(F389^2))","v":161.22034611053283},{"$f":"G388+G389","v":0},{"$f":"SQRT((H388^2)+(H389^2))","v":161.22034611053283},{"$f":"I388+I389","v":0},{"$f":"SQRT((J388^2)+(J389^2))","v":161.22034611053283},{"$f":"K388+K389","v":0},{"$f":"SQRT((L388^2)+(L389^2))","v":161.22034611053283},{"$f":"M388+M389","v":0},{"$f":"SQRT((N388^2)+(N389^2))","v":161.22034611053283},{"$f":"O388+O389","v":0},{"$f":"SQRT((P388^2)+(P389^2))","v":161.22034611053283},{"$f":"Q388+Q389","v":0},{"$f":"SQRT((R388^2)+(R389^2))","v":161.22034611053283},{"$f":"S388+S389","v":0},{"$f":"SQRT((T388^2)+(T389^2))","v":161.22034611053283},{"$f":"U388+U389","v":0},{"$f":"SQRT((V388^2)+(V389^2))","v":161.22034611053283},{"$f":"W388+W389","v":0},{"$f":"SQRT((X388^2)+(X389^2))","v":161.22034611053283},{"$f":"Y388+Y389","v":0},{"$f":"SQRT((Z388^2)+(Z389^2))","v":161.22034611053283},{"$f":"AA388+AA389","v":0},{"$f":"SQRT((AB388^2)+(AB389^2))","v":161.22034611053283},{"$f":"AC388+AC389","v":0},{"$f":"SQRT((AD388^2)+(AD389^2))","v":161.22034611053283},{"$f":"AE388+AE389","v":0},{"$f":"SQRT((AF388^2)+(AF389^2))","v":161.22034611053283},{"$f":"AG388+AG389","v":0},{"$f":"SQRT((AH388^2)+(AH389^2))","v":161.22034611053283},{"$f":"AI388+AI389","v":0},{"$f":"SQRT((AJ388^2)+(AJ389^2))","v":161.22034611053283},{"$f":"AK388+AK389","v":0},{"$f":"SQRT((AL388^2)+(AL389^2))","v":161.22034611053283},{"$f":"AM388+AM389","v":0},{"$f":"SQRT((AN388^2)+(AN389^2))","v":161.22034611053283},{"$f":"AO388+AO389","v":0},{"$f":"SQRT((AP388^2)+(AP389^2))","v":161.22034611053283},{"$f":"AQ388+AQ389","v":0},{"$f":"SQRT((AR388^2)+(AR389^2))","v":161.22034611053283},{"$f":"AS388+AS389","v":0},{"$f":"SQRT((AT388^2)+(AT389^2))","v":161.22034611053283},{"$f":"AU388+AU389","v":0},{"$f":"SQRT((AV388^2)+(AV389^2))","v":161.22034611053283},{"$f":"AW388+AW389","v":0},{"$f":"SQRT((AX388^2)+(AX389^2))","v":161.22034611053283},{"$f":"AY388+AY389","v":0},{"$f":"SQRT((AZ388^2)+(AZ389^2))","v":161.22034611053283},{"$f":"BA388+BA389","v":0},{"$f":"SQRT((BB388^2)+(BB389^2))","v":161.22034611053283},{"$f":"BC388+BC389","v":0},{"$f":"SQRT((BD388^2)+(BD389^2))","v":161.22034611053283}]
[null,"Less Than 35% of HH Income",{"$f":"C385+C386+C387+C388","v":60},{"$f":"SQRT((D385^2)+(D386^2)+(D387^2)+(D388^2))","v":202.08166665979377},{"$f":"E385+E386+E387+E388","v":22},{"$f":"SQRT((F385^2)+(F386^2)+(F387^2)+(F388^2))","v":200.53179299053804},{"$f":"G385+G386+G387+G388","v":0},{"$f":"SQRT((H385^2)+(H386^2)+(H387^2)+(H388^2))","v":228},{"$f":"I385+I386+I387+I388","v":0},{"$f":"SQRT((J385^2)+(J386^2)+(J387^2)+(J388^2))","v":228},{"$f":"K385+K386+K387+K388","v":5},{"$f":"SQRT((L385^2)+(L386^2)+(L387^2)+(L388^2))","v":197.61578884289585},{"$f":"M385+M386+M387+M388","v":0},{"$f":"SQRT((N385^2)+(N386^2)+(N387^2)+(N388^2))","v":228},{"$f":"O385+O386+O387+O388","v":7},{"$f":"SQRT((P385^2)+(P386^2)+(P387^2)+(P388^2))","v":197.75995550161312},{"$f":"Q385+Q386+Q387+Q388","v":269},{"$f":"SQRT((R385^2)+(R386^2)+(R387^2)+(R388^2))","v":153.96103403134185},{"$f":"S385+S386+S387+S388","v":0},{"$f":"SQRT((T385^2)+(T386^2)+(T387^2)+(T388^2))","v":228},{"$f":"U385+U386+U387+U388","v":28},{"$f":"SQRT((V385^2)+(V386^2)+(V387^2)+(V388^2))","v":199.29124416290847},{"$f":"W385+W386+W387+W388","v":0},{"$f":"SQRT((X385^2)+(X386^2)+(X387^2)+(X388^2))","v":228},{"$f":"Y385+Y386+Y387+Y388","v":68},{"$f":"SQRT((Z385^2)+(Z386^2)+(Z387^2)+(Z388^2))","v":208.83486298987532},{"$f":"AA385+AA386+AA387+AA388","v":0},{"$f":"SQRT((AB385^2)+(AB386^2)+(AB387^2)+(AB388^2))","v":228},{"$f":"AC385+AC386+AC387+AC388","v":3},{"$f":"SQRT((AD385^2)+(AD386^2)+(AD387^2)+(AD388^2))","v":197.51708786836647},{"$f":"AE385+AE386+AE387+AE388","v":64},{"$f":"SQRT((AF385^2)+(AF386^2)+(AF387^2)+(AF388^2))","v":213.80364823828427},{"$f":"AG385+AG386+AG387+AG388","v":0},{"$f":"SQRT((AH385^2)+(AH386^2)+(AH387^2)+(AH388^2))","v":228},{"$f":"AI385+AI386+AI387+AI388","v":0},{"$f":"SQRT((AJ385^2)+(AJ386^2)+(AJ387^2)+(AJ388^2))","v":228},{"$f":"AK385+AK386+AK387+AK388","v":5},{"$f":"SQRT((AL385^2)+(AL386^2)+(AL387^2)+(AL388^2))","v":197.61578884289585},{"$f":"AM385+AM386+AM387+AM388","v":10},{"$f":"SQRT((AN385^2)+(AN386^2)+(AN387^2)+(AN388^2))","v":198.022725968511},{"$f":"AO385+AO386+AO387+AO388","v":0},{"$f":"SQRT((AP385^2)+(AP386^2)+(AP387^2)+(AP388^2))","v":228},{"$f":"AQ385+AQ386+AQ387+AQ388","v":0},{"$f":"SQRT((AR385^2)+(AR386^2)+(AR387^2)+(AR388^2))","v":228},{"$f":"AS385+AS386+AS387+AS388","v":10},{"$f":"SQRT((AT385^2)+(AT386^2)+(AT387^2)+(AT388^2))","v":198.10098434889213},{"$f":"AU385+AU386+AU387+AU388","v":0},{"$f":"SQRT((AV385^2)+(AV386^2)+(AV387^2)+(AV388^2))","v":228},{"$f":"AW385+AW386+AW387+AW388","v":4},{"$f":"SQRT((AX385^2)+(AX386^2)+(AX387^2)+(AX388^2))","v":197.57783276471073},{"$f":"AY385+AY386+AY387+AY388","v":11},{"$f":"SQRT((AZ385^2)+(AZ386^2)+(AZ387^2)+(AZ388^2))","v":161.57041808449961},{"$f":"BA385+BA386+BA387+BA388","v":3},{"$f":"SQRT((BB385^2)+(BB386^2)+(BB387^2)+(BB388^2))","v":197.51708786836647},{"$f":"BC385+BC386+BC387+BC388","v":0},{"$f":"SQRT((BD385^2)+(BD386^2)+(BD387^2)+(BD388^2))","v":228}]
[null,"35.0 percent or more",{"$f":"C389","v":0},114,0,114,0,114,0,114,0,114,0,114,0,114,0,114,0,114,0,114,0,114,0,114,0,114,0,114,0,114,0,114,0,114,0,114,0,114,0,114,0,114,0,114,0,114,0,114,0,114,0,114,0,114]
[null,"Not Computed",0,114,17,28,0,114,0,114,0,114,7,9,0,114,10,18,0,114,0,114,0,114,0,114,0,114,0,114,16,23,0,114,37,54,0,114,0,114,0,114,0,114,0,114,0,114,0,114,0,114,0,114,0,114]
[]
[]
[null,"Calculated GROSS RENT AS A PERCENTAGE OF HOUSEHOLD INCOME IN THE PAST 12 MONTHS"]
[null,"Universe:  RENTER OCCUPIED HOUSING UNITS"]
[null,"Data Set: 2005-2009 American Community Survey 5-Year Estimates"]
[]
[null,null,"Allenstown",null,"Andover",null,"Boscawen",null,"Bow",null,"Bradford",null,"Canterbury",null,"Chichester",null,"Concord",null,"Danbury",null,"Dunbarton",null,"Epsom",null,"Franklin",null,"Henniker",null,"Hill",null,"Hooksett",null,"Hopkinton",null,"Loudon",null,"Newbury",null,"New London",null,"Northfield",null,"Pembroke",null,"Pittsfield",null,"Salisbury",null,"Sutton",null,"Warner",null,"Webster",null,"Wilmot"]
[null,null,"Estimate","Margin Of Error","Estimate","Margin Of Error","Estimate","Margin Of Error","Estimate","Margin Of Error","Estimate","Margin Of Error","Estimate","Margin Of Error","Estimate","Margin Of Error","Estimate","Margin Of Error","Estimate","Margin Of Error","Estimate","Margin Of Error","Estimate","Margin Of Error","Estimate","Margin Of Error","Estimate","Margin Of Error","Estimate","Margin Of Error","Estimate","Margin Of Error","Estimate","Margin Of Error","Estimate","Margin Of Error","Estimate","Margin Of Error","Estimate","Margin Of Error","Estimate","Margin Of Error","Estimate","Margin Of Error","Estimate","Margin Of Error","Estimate","Margin Of Error","Estimate","Margin Of Error","Estimate","Margin Of Error","Estimate","Margin Of Error","Estimate","Margin Of Error"]
[null,"Total:",{"$f":"C408","v":648},178,157,72,231,85,266,84,84,34,98,41,17,19,7820,437,82,34,75,37,242,82,1316,169,526,139,74,34,636,116,138,75,168,84,53,26,221,123,441,105,849,136,526,110,17,17,55,30,212,67,60,30,21,21]
[null,"Less than 30.0 percent",{"$f":"C446+C440+C434+C428+C422+C416+C410","v":292},{"$f":"SQRT((D446^2)+(D440^2)+(D434^2)+(D428^2)+(D422^2)+(D416^2)+(D410^2))","v":378.04232567266854},{"$f":"E446+E440+E434+E428+E422+E416+E410","v":32},{"$f":"SQRT((F446^2)+(F440^2)+(F434^2)+(F428^2)+(F422^2)+(F416^2)+(F410^2))","v":485.05772852311094},{"$f":"G446+G440+G434+G428+G422+G416+G410","v":120},{"$f":"SQRT((H446^2)+(H440^2)+(H434^2)+(H428^2)+(H422^2)+(H416^2)+(H410^2))","v":430.86308730268365},{"$f":"I446+I440+I434+I428+I422+I416+I410","v":50},{"$f":"SQRT((J446^2)+(J440^2)+(J434^2)+(J428^2)+(J422^2)+(J416^2)+(J410^2))","v":484.91854986172677},{"$f":"K446+K440+K434+K428+K422+K416+K410","v":50},{"$f":"SQRT((L446^2)+(L440^2)+(L434^2)+(L428^2)+(L422^2)+(L416^2)+(L410^2))","v":427.45643052830542},{"$f":"M446+M440+M434+M428+M422+M416+M410","v":50},{"$f":"SQRT((N446^2)+(N440^2)+(N434^2)+(N428^2)+(N422^2)+(N416^2)+(N410^2))","v":457.34341582666303},{"$f":"O446+O440+O434+O428+O422+O416+O410","v":17},{"$f":"SQRT((P446^2)+(P440^2)+(P434^2)+(P428^2)+(P422^2)+(P416^2)+(P410^2))","v":483.91838154796312},{"$f":"Q446+Q440+Q434+Q428+Q422+Q416+Q410","v":3815},{"$f":"SQRT((R446^2)+(R440^2)+(R434^2)+(R428^2)+(R422^2)+(R416^2)+(R410^2))","v":444.25443160423282},{"$f":"S446+S440+S434+S428+S422+S416+S410","v":39},{"$f":"SQRT((T446^2)+(T440^2)+(T434^2)+(T428^2)+(T422^2)+(T416^2)+(T410^2))","v":470.31904065219391},{"$f":"U446+U440+U434+U428+U422+U416+U410","v":44},{"$f":"SQRT((V446^2)+(V440^2)+(V434^2)+(V428^2)+(V422^2)+(V416^2)+(V410^2))","v":497.76902274046745},{"$f":"W446+W440+W434+W428+W422+W416+W410","v":108},{"$f":"SQRT((X446^2)+(X440^2)+(X434^2)+(X428^2)+(X422^2)+(X416^2)+(X410^2))","v":461.06507132941658},{"$f":"Y446+Y440+Y434+Y428+Y422+Y416+Y410","v":759},{"$f":"SQRT((Z446^2)+(Z440^2)+(Z434^2)+(Z428^2)+(Z422^2)+(Z416^2)+(Z410^2))","v":319.81088161599507},{"$f":"AA446+AA440+AA434+AA428+AA422+AA416+AA410","v":278},{"$f":"SQRT((AB446^2)+(AB440^2)+(AB434^2)+(AB428^2)+(AB422^2)+(AB416^2)+(AB410^2))","v":326.36635856043739},{"$f":"AC446+AC440+AC434+AC428+AC422+AC416+AC410","v":34},{"$f":"SQRT((AD446^2)+(AD440^2)+(AD434^2)+(AD428^2)+(AD422^2)+(AD416^2)+(AD410^2))","v":470.59855503390571},{"$f":"AE446+AE440+AE434+AE428+AE422+AE416+AE410","v":423},{"$f":"SQRT((AF446^2)+(AF440^2)+(AF434^2)+(AF428^2)+(AF422^2)+(AF416^2)+(AF410^2))","v":377.21744392326292},{"$f":"AG446+AG440+AG434+AG428+AG422+AG416+AG410","v":80},{"$f":"SQRT((AH446^2)+(AH440^2)+(AH434^2)+(AH428^2)+(AH422^2)+(AH416^2)+(AH410^2))","v":474.46180035910163},{"$f":"AI446+AI440+AI434+AI428+AI422+AI416+AI410","v":16},{"$f":"SQRT((AJ446^2)+(AJ440^2)+(AJ434^2)+(AJ428^2)+(AJ422^2)+(AJ416^2)+(AJ410^2))","v":486.3424719269334},{"$f":"AK446+AK440+AK434+AK428+AK422+AK416+AK410","v":43},{"$f":"SQRT((AL446^2)+(AL440^2)+(AL434^2)+(AL428^2)+(AL422^2)+(AL416^2)+(AL410^2))","v":456.62895221393921},{"$f":"AM446+AM440+AM434+AM428+AM422+AM416+AM410","v":71},{"$f":"SQRT((AN446^2)+(AN440^2)+(AN434^2)+(AN428^2)+(AN422^2)+(AN416^2)+(AN410^2))","v":460.49321384793501},{"$f":"AO446+AO440+AO434+AO428+AO422+AO416+AO410","v":193},{"$f":"SQRT((AP446^2)+(AP440^2)+(AP434^2)+(AP428^2)+(AP422^2)+(AP416^2)+(AP410^2))","v":422.3943654927229},{"$f":"AQ446+AQ440+AQ434+AQ428+AQ422+AQ416+AQ410","v":459},{"$f":"SQRT((AR446^2)+(AR440^2)+(AR434^2)+(AR428^2)+(AR422^2)+(AR416^2)+(AR410^2))","v":461.91774159475625},{"$f":"AS446+AS440+AS434+AS428+AS422+AS416+AS410","v":429},{"$f":"SQRT((AT446^2)+(AT440^2)+(AT434^2)+(AT428^2)+(AT422^2)+(AT416^2)+(AT410^2))","v":445.07302771567726},{"$f":"AU446+AU440+AU434+AU428+AU422+AU416+AU410","v":12},{"$f":"SQRT((AV446^2)+(AV440^2)+(AV434^2)+(AV428^2)+(AV422^2)+(AV416^2)+(AV410^2))","v":510.04411573902115},{"$f":"AW446+AW440+AW434+AW428+AW422+AW416+AW410","v":21},{"$f":"SQRT((AX446^2)+(AX440^2)+(AX434^2)+(AX428^2)+(AX422^2)+(AX416^2)+(AX410^2))","v":456.37594152189922},{"$f":"AY446+AY440+AY434+AY428+AY422+AY416+AY410","v":114},{"$f":"SQRT((AZ446^2)+(AZ440^2)+(AZ434^2)+(AZ428^2)+(AZ422^2)+(AZ416^2)+(AZ410^2))","v":396.90553032176308},{"$f":"BA446+BA440+BA434+BA428+BA422+BA416+BA410","v":34},{"$f":"SQRT((BB446^2)+(BB440^2)+(BB434^2)+(BB428^2)+(BB422^2)+(BB416^2)+(BB410^2))","v":441.95022344150931},{"$f":"BC446+BC440+BC434+BC428+BC422+BC416+BC410","v":0},{"$f":"SQRT((BD446^2)+(BD440^2)+(BD434^2)+(BD428^2)+(BD422^2)+(BD416^2)+(BD410^2))","v":522.4136292249658}]
[null,"More than 30.0 percent",{"$f":"C447+C441+C435+C429+C423+C417+C411","v":297},{"$f":"SQRT((D447^2)+(D441^2)+(D435^2)+(D429^2)+(D423^2)+(D417^2)+(D411^2))","v":349.0300846631992},41,397.18257766422738,88,326.41231594411386,216,390.42797030950538,22,395.15313487305144,36,342.92564791802903,0,426.54894209222931,3719,467.41523295673625,32,378.66872065170634,31,378.87464945546304,97,348.16231846654512,532,318.80872008149339,228,360.71318245941609,27,378.80337907679757,197,313.17247644069874,38,397.35626332046155,86,328.23162553294588,5,394.97088500293285,150,375.44373746275221,229,320.33888305979968,380,389.19275430048799,97,383.17228501028097,5,411.11069069047574,34,378.89444440371517,62,361.87981430303626,16,395.32897692934171,21,378.56439346562956]
[null,"Less Than 35% of HH Income",{"$f":"C448+C442+C436+C430+C424+C418+C412","v":374},{"$f":"SQRT((D448^2)+(D442^2)+(D436^2)+(D430^2)+(D424^2)+(D418^2)+(D412^2))","v":447.56116900374633},32,571.18560906241328,146,488.31137607063795,50,559.801750622486,50,523.15485279217285,73,511.41861522631342,17,570.21837921975123,4577,501.83563046081133,39,547.23395362495557,52,559.59628304698379,145,529.15876634522465,933,401.77107909853345,330,431.47653470380055,34,558.95885358405405,458,428.49037328742872,97,551.24767573206145,47,572.27703081636957,43,547.2494860664558,82,550.47797412793909,286,486.30443140074306,592,527.79730958010771,429,530.60531471141519,12,592.55126360509939,23,547.03838987771235,128,458.22920029173173,34,522.79250185900719,0,603.23129892272664]
[null,"35.0 percent or more",{"$f":"C449+C443+C437+C431+C425+C419+C413","v":215},{"$f":"SQRT((D449^2)+(D443^2)+(D437^2)+(D431^2)+(D425^2)+(D419^2)+(D413^2))","v":253.82474268676015},41,258.42213527482511,62,232.1960378645596,216,247.91530811952697,22,255.29198969023685,13,255.36640342848548,0,301.61564946136332,2957,412.72872446681004,32,228.94977615188881,23,255.6266809235687,60,231.92455669894036,358,229.29893152825636,176,248.37270381424767,27,229.17242417009948,162,212.28754084966928,21,281.30410590675706,55,165.98493907580891,5,255.0098037331114,139,250.38570246721358,136,213.04929007157006,247,292.89759302527563,97,236.32393023136697,5,279.3564031841762,32,256.04687070925121,48,256.47027118167125,16,255.56408198336479,21,228.77718417709403]
[null,"Not Computed",{"$f":"C450+C444+C438+C432+C426+C420+C414","v":59},{"$f":"SQRT((D450^2)+(D444^2)+(D438^2)+(D432^2)+(D426^2)+(D420^2)+(D414^2))","v":204.74618433563055},84,171.32717239247253,23,280.44963897284663,0,301.61564946136332,12,279.64441707282481,12,255.16661223600551,0,301.61564946136332,286,121.76206305742359,11,279.69983911328944,0,301.61564946136332,37,285,25,280.27129713903992,20,256.01757752154441,13,279.64441707282481,16,280.18743726298652,20,280.95729212818094,66,261.96373794859471,5,279.3564031841762,0,301.61564946136332,19,255.79679435051565,10,279.75882470442286,0,301.61564946136332,0,301.61564946136332,0,301.61564946136332,36,230.45389994530359,10,228.14907407219516,0,301.61564946136332]

{"sheet":"OwnerHousingCost","index":57,"n_rows":112,"n_cols":17,"rows_kept":112,"cut":false,"hidden":true,"merged":[]}
[]
[null,null,"HIDE THIS COLUMN",{"$f":"DropDownList!$B$47","v":"Allenstown"}]
[null,null,null,"OWNER HOUSING COST CHARACTERISTICS"]
[]
[]
[]
[]
[]
[]
[]
[]
[]
[]
[]
[]
[]
[]
[]
[]
[]
[]
[]
[]
[]
[]
[]
[]
[]
[]
[]
[]
[]
[]
[]
[]
[]
[null,null,null,"Income in 2019 Inflation Adjusted Dollars"]
[null,null,null,"Source: 2015-2019 American Community Survey Table B25106"]
[null,null,null,"Data from the American Community Survey are estimates."]
[]
[]
[null,null,null,{"$f":"CntyDataLink!A$35","v":"Allenstown"}]
[]
[null,null,null,{"$f":"D3","v":"OWNER HOUSING COST CHARACTERISTICS"}]
[]
[null,null,null,"Owner Households by "]
[null,null,null,"Selected Monthly Housing Costs as a Percent of 2019 Household Income",null,null,null,"By Household Income"]
[null,null,"H73RenterOccHU",null,"Specified Owner Occ Housing Units","Margin of Error Owner Occ Housing Units",null,"Less than $20,000",{"$f":"\"Margin of Error \"&H48","v":"Margin of Error Less than $20,000"},"$20,000 to $34,999",{"$f":"\"Margin of Error \"&J48","v":"Margin of Error $20,000 to $34,999"},"$35,000 to $49,999",{"$f":"\"Margin of Error \"&L48","v":"Margin of Error $35,000 to $49,999"},"$50,000 to $74,999",{"$f":"\"Margin of Error \"&N48","v":"Margin of Error $50,000 to $74,999"},"$75,000 or More",{"$f":"\"Margin of Error \"&P48","v":"Margin of Error $75,000 or More"}]
[]
[null,null,null,"Total Households",{"$f":"CntyDataLink!$BF144","v":1163},{"$f":"CntyDataLink!$BG$144","v":163},null,{"$f":"CntyDataLink!$BZ$144","v":62},{"$f":"CntyDataLink!$CA$144","v":44},{"$f":"CntyDataLink!$CH$144","v":222},{"$f":"CntyDataLink!$CI$144","v":95},{"$f":"CntyDataLink!$CP$144","v":162},{"$f":"CntyDataLink!$CQ$144","v":66},{"$f":"CntyDataLink!$CX$144","v":303},{"$f":"CntyDataLink!$CY$144","v":96},{"$f":"CntyDataLink!$DF$144","v":552},{"$f":"CntyDataLink!$DG$144","v":104}]
[null,null,null,"Monthly Costs Less than 20% of HH Income",{"$f":"CntyDataLink!$BH$144","v":332},{"$f":"CntyDataLink!$BI$144","v":89.727364833700534},null,{"$f":"CntyDataLink!$CB$144","v":12},{"$f":"CntyDataLink!$CC$144","v":18},{"$f":"CntyDataLink!CJ$144","v":78},{"$f":"CntyDataLink!CK$144","v":66},{"$f":"CntyDataLink!CR$144","v":18},{"$f":"CntyDataLink!CS$144","v":16},{"$f":"CntyDataLink!CZ$144","v":131},{"$f":"CntyDataLink!DA$144","v":62},{"$f":"CntyDataLink!DH$144","v":340},{"$f":"CntyDataLink!DI$144","v":88}]
[null,null,null,"Monthly Costs 20% to 29.9% of HH Income",{"$f":"CntyDataLink!$BJ$144","v":414},{"$f":"CntyDataLink!$BK$144","v":122.74770873625299},null,{"$f":"CntyDataLink!$CD$144","v":0},{"$f":"CntyDataLink!$CE$144","v":11},{"$f":"CntyDataLink!CL$144","v":25},{"$f":"CntyDataLink!CM$144","v":34},{"$f":"CntyDataLink!CT$144","v":41},{"$f":"CntyDataLink!CU$144","v":27},{"$f":"CntyDataLink!DB$144","v":48},{"$f":"CntyDataLink!DC$144","v":32},{"$f":"CntyDataLink!DJ$144","v":123},{"$f":"CntyDataLink!DK$144","v":54}]
[null,null,null,"Monthly Costs Less Than 30% of HH Income",{"$f":"CntyDataLink!$BL$144","v":746},{"$f":"CntyDataLink!$BM$144","v":152.04604565722846},null,{"$f":"H52+H51","v":12},{"$f":"SQRT((I52^2)+(I51^2))","v":21.095023109728988},{"$f":"J52+J51","v":103},{"$f":"SQRT((K52^2)+(K51^2))","v":74.242844773082339},{"$f":"L52+L51","v":59},{"$f":"SQRT((M52^2)+(M51^2))","v":31.384709652950431},{"$f":"N52+N51","v":179},{"$f":"SQRT((O52^2)+(O51^2))","v":69.771054170049638},{"$f":"P52+P51","v":463},{"$f":"SQRT((Q52^2)+(Q51^2))","v":103.24727599312246}]
[null,null,null,"Monthly Costs 30% or More of HH Income",{"$f":"CntyDataLink!$BN$144","v":417},{"$f":"CntyDataLink!$BO$144","v":115.98275733918383},null,{"$f":"CntyDataLink!$CF$144","v":50},{"$f":"CntyDataLink!$CG$144","v":36},{"$f":"CntyDataLink!CN$144","v":119},{"$f":"CntyDataLink!CO$144","v":67},{"$f":"CntyDataLink!CV$144","v":103},{"$f":"CntyDataLink!CW$144","v":56},{"$f":"CntyDataLink!DD$144","v":124},{"$f":"CntyDataLink!DE$144","v":64},{"$f":"CntyDataLink!$DL$144","v":89},{"$f":"CntyDataLink!$DM$144","v":55}]
[]
[null,null,null,"Monthly Costs 35% or More of HH Income",{"$f":"CntyDataLink!$BT$144","v":337},{"$f":"CntyDataLink!$BU$144","v":106.42837967384452},null,"NA","NA","NA","NA","NA","NA","NA","NA","NA","NA"]
[null,null,null,"Monthly Costs 50% or More of HH Income",{"$f":"CntyDataLink!$BV$144","v":211},{"$f":"CntyDataLink!$BW$144","v":84.899941107164494},null,"NA","NA","NA","NA","NA","NA","NA","NA","NA","NA"]
[null,null,null,"Percent not computed",{"$f":"CntyDataLink!$BX$144","v":0},{"$f":"CntyDataLink!$BY$144","v":15.556349186104045},null,"NA","NA","NA","NA","NA","NA","NA","NA","NA","NA"]
[]
[null,null,null,"Percent of Owner Households Paying ",null,null,null,"By Household Income"]
[null,null,null,{"$f":"D53","v":"Monthly Costs Less Than 30% of HH Income"},{"$f":"E53/E$50","v":0.64144453998280304},null,null,{"$f":"H53/H$50","v":0.19354838709677419},null,{"$f":"J53/J$50","v":0.46396396396396394},null,{"$f":"L53/L$50","v":0.36419753086419754},null,{"$f":"N53/N$50","v":0.5907590759075908},null,{"$f":"P53/P$50","v":0.83876811594202894}]
[null,null,null,{"$f":"D54","v":"Monthly Costs 30% or More of HH Income"},{"$f":"E54/E$50","v":0.3585554600171969},null,null,{"$f":"H54/H50","v":0.80645161290322576},null,{"$f":"J54/J50","v":0.536036036036036},null,{"$f":"L54/L50","v":0.63580246913580252},null,{"$f":"N54/N50","v":0.40924092409240925},null,{"$f":"P54/P50","v":0.16123188405797101}]
[]
[null,null,null,"Monthly Costs 35% or More of HH Income",{"$f":"E56/E$50","v":0.28976784178847809},null,null,"NA","NA","NA","NA","NA","NA","NA","NA","NA","NA"]
[null,null,null,"Monthly Costs 50% or More of HH Income",{"$f":"E57/E$50","v":0.18142734307824593},null,null,"NA","NA","NA","NA","NA","NA","NA","NA","NA","NA"]
[null,null,null,"Percent not computed",{"$f":"E58/$E$50","v":0},null,null,"NA","NA","NA","NA","NA","NA","NA","NA","NA","NA"]
[]
[null,null,null,{"$f":"D37","v":"Income in 2019 Inflation Adjusted Dollars"}]
[null,null,null,"Source: 2015-2019 American Community Survey Table B25091; B25106",null,null,null,"NA indicates that the American Community Survey does not provide that data."]
[null,null,null,"Data from the American Community Survey are estimates."]
[]
[null,null,null,{"$f":"D2","v":"Allenstown"}]
[null,null,"H62ROHUGRent250to299",{"$f":"D3","v":"OWNER HOUSING COST CHARACTERISTICS"}]
[null,null,"H62ROHUGRent300to349"]
[null,null,"H62ROHUGRent350to399","Value of Owner Occupied Housing Units"]
[null,null,"H62ROHUGRent400to449"]
[null,null,"H62ROHUGRent450to499","Owner Occupied Housing Units",{"$f":"CntyDataLink!$B$144","v":1333},{"$f":"CntyDataLink!$C$144","v":125}]
[null,null,"H62ROHUGRent500to549"]
[null,null,"H62ROHUGRent550to599","Value","Housing Units","Margin of Error"]
[null,null,"H62ROHUGRent600to649","Less than $10,000",{"$f":"CntyDataLink!$D$144","v":38},{"$f":"CntyDataLink!$E$144","v":26}]
[null,null,"H62ROHUGRent650to699","$10,000 to $14,999",{"$f":"CntyDataLink!$F$144","v":46},{"$f":"CntyDataLink!$G$144","v":47}]
[null,null,"H62ROHUGRent700to749","$15,000 to $19,999",{"$f":"CntyDataLink!$H$144","v":52},{"$f":"CntyDataLink!$I$144","v":55}]
[null,null,"H62ROHUGRent750to799","$20,000 to $24,999",{"$f":"CntyDataLink!$J$144","v":33},{"$f":"CntyDataLink!$K$144","v":31}]
[null,null,"H62ROHUGRent800to899","$25,000 to $29,999",{"$f":"CntyDataLink!$L$144","v":14},{"$f":"CntyDataLink!$M$144","v":17}]
[null,null,"H62ROHUGRent900to999","$30,000 to $34,999",{"$f":"CntyDataLink!$N$144","v":9},{"$f":"CntyDataLink!$O$144","v":14}]
[null,null,"H62ROHUGRent1000to1249","$35,000 to $39,999",{"$f":"CntyDataLink!$P$144","v":43},{"$f":"CntyDataLink!$Q$144","v":50}]
[null,null,"H62ROHUGRent1250to1499","$40,000 to $49,999",{"$f":"CntyDataLink!$R$144","v":67},{"$f":"CntyDataLink!$S$144","v":49}]
[null,null,"H62ROHUGRent1500to1999","$50,000 to $59,999",{"$f":"CntyDataLink!$T$144","v":43},{"$f":"CntyDataLink!$U$144","v":25}]
[null,null,"H62ROHUGRent2000>","$60,000 to $69,999",{"$f":"CntyDataLink!$V$144","v":93},{"$f":"CntyDataLink!$W$144","v":45}]
[null,null,"H62ROHUNoGRent","$70,000 to $79,999",{"$f":"CntyDataLink!$X$144","v":47},{"$f":"CntyDataLink!$Y$144","v":35}]
[null,null,"H63MedianGrossRnt","$80,000 to $89,999",{"$f":"CntyDataLink!$Z$144","v":35},{"$f":"CntyDataLink!$AA$144","v":30}]
[null,null,null,"$90,000 to $99,999",{"$f":"CntyDataLink!$AB$144","v":33},{"$f":"CntyDataLink!$AC$144","v":29}]
[null,null,null,"$100,000 to $124,999",{"$f":"CntyDataLink!$AD$144","v":43},{"$f":"CntyDataLink!$AE$144","v":25}]
[null,null,null,"$125,000 to $149,999",{"$f":"CntyDataLink!$AF$144","v":50},{"$f":"CntyDataLink!$AG$144","v":32}]
[null,null,null,"$150,000 to $174,999",{"$f":"CntyDataLink!$AH$144","v":159},{"$f":"CntyDataLink!$AI$144","v":66}]
[null,null,null,"$175,000 to $199,999",{"$f":"CntyDataLink!$AJ$144","v":99},{"$f":"CntyDataLink!$AK$144","v":55}]
[null,null,null,"$200,000 to $249,999",{"$f":"CntyDataLink!$AL$144","v":283},{"$f":"CntyDataLink!$AM$144","v":100}]
[null,null,null,"$250,000 to $299,999",{"$f":"CntyDataLink!$AN$144","v":113},{"$f":"CntyDataLink!$AO$144","v":73}]
[null,null,null,"$300,000 to $399,999",{"$f":"CntyDataLink!$AP$144","v":23},{"$f":"CntyDataLink!$AQ$144","v":21}]
[null,null,null,"$400,000 to $499,999",{"$f":"CntyDataLink!$AR$144","v":0},{"$f":"CntyDataLink!$AS$144","v":11}]
[null,null,null,"$500,000 to $749,999",{"$f":"CntyDataLink!$AT$144","v":0},{"$f":"CntyDataLink!$AU$144","v":11}]
[null,null,null,"$750,000 to $999,999",{"$f":"CntyDataLink!$AV$144","v":0},{"$f":"CntyDataLink!$AW$144","v":11}]
[null,null,null,"$1,000,000 to $1,499,999",{"$f":"CntyDataLink!$AX$144","v":10},{"$f":"CntyDataLink!$AY$144","v":15}]
[null,null,null,"$1,500,000 to $1,999,999",{"$f":"CntyDataLink!$AZ$144","v":0},{"$f":"CntyDataLink!$BA$144","v":11}]
[null,null,null,"$2,000,000 or more",{"$f":"CntyDataLink!$BB$144","v":0},{"$f":"CntyDataLink!$BC$144","v":11}]
[]
[null,null,null,"Median Value",{"$f":"CntyDataLink!$BD$144","v":153200},{"$f":"CntyDataLink!$BE$144","v":21957}]
[]
[]
[]
[null,null,null,"Source: 2015-2019 American Community Survey Tables B25075 and B25077"]
[null,null,null,"Data from the American Community Survey are estimates."]

{"sheet":"OwnerHousingCostPrior5Year","index":58,"n_rows":70,"n_cols":17,"rows_kept":70,"cut":false,"hidden":true,"merged":[]}
[]
[null,null,"HIDE THIS COLUMN",{"$f":"DropDownList!$B$47","v":"Allenstown"}]
[null,null,null,"OWNER HOUSING COST CHARACTERISTICS"]
[]
[]
[]
[]
[]
[]
[]
[]
[]
[]
[]
[]
[]
[]
[]
[]
[]
[]
[]
[]
[]
[]
[]
[]
[]
[]
[]
[]
[]
[]
[]
[]
[]
[null,null,null,"Income in 2014 Inflation Adjusted Dollars"]
[null,null,null,"Source: 2010-2014 American Community Survey Table B25106"]
[null,null,null,"Data from the American Community Survey are estimates."]
[]
[]
[null,null,null,{"$f":"CntyDataLinkPrior5YearEstimates!$A$108","v":"Allenstown"}]
[]
[null,null,null,{"$f":"D3","v":"OWNER HOUSING COST CHARACTERISTICS"}]
[]
[null,null,null,"Owner Households by "]
[null,null,null,"Selected Monthly Housing Costs as a Percent of 2014 Household Income",null,null,null,"By Household Income"]
[null,null,"H73RenterOccHU",null,"Specified Owner Occ Housing Units","Margin of Error Owner Occ Housing Units",null,"Less than $20,000",{"$f":"\"Margin of Error \"&H48","v":"Margin of Error Less than $20,000"},"$20,000 to $34,999",{"$f":"\"Margin of Error \"&J48","v":"Margin of Error $20,000 to $34,999"},"$35,000 to $49,999",{"$f":"\"Margin of Error \"&L48","v":"Margin of Error $35,000 to $49,999"},"$50,000 to $74,999",{"$f":"\"Margin of Error \"&N48","v":"Margin of Error $50,000 to $74,999"},"$75,000 or More",{"$f":"\"Margin of Error \"&P48","v":"Margin of Error $75,000 or More"}]
[]
[null,null,null,"Total Households",{"$f":"CntyDataLinkPrior5YearEstimates!$BF144","v":"Estimate"},{"$f":"CntyDataLinkPrior5YearEstimates!$BG$144","v":"Margin Of Error"},null,{"$f":"CntyDataLinkPrior5YearEstimates!$BZ$144","v":115},{"$f":"CntyDataLinkPrior5YearEstimates!$CA$144","v":63},{"$f":"CntyDataLinkPrior5YearEstimates!$CH$144","v":142},{"$f":"CntyDataLinkPrior5YearEstimates!$CI$144","v":71},{"$f":"CntyDataLinkPrior5YearEstimates!$CP$144","v":236},{"$f":"CntyDataLinkPrior5YearEstimates!$CQ$144","v":82},{"$f":"CntyDataLinkPrior5YearEstimates!$CX$144","v":258},{"$f":"CntyDataLinkPrior5YearEstimates!$CY$144","v":83},{"$f":"CntyDataLinkPrior5YearEstimates!$DF$144","v":501},{"$f":"CntyDataLinkPrior5YearEstimates!$DG$144","v":95}]
[null,null,null,"Monthly Costs Less than 20% of HH Income",{"$f":"CntyDataLinkPrior5YearEstimates!$BH$144","v":1252},{"$f":"CntyDataLinkPrior5YearEstimates!$BI$144","v":116},null,{"$f":"CntyDataLinkPrior5YearEstimates!$CB$144","v":0},{"$f":"CntyDataLinkPrior5YearEstimates!$CC$144","v":11},{"$f":"CntyDataLinkPrior5YearEstimates!CJ$144","v":31},{"$f":"CntyDataLinkPrior5YearEstimates!CK$144","v":37},{"$f":"CntyDataLinkPrior5YearEstimates!CR$144","v":76},{"$f":"CntyDataLinkPrior5YearEstimates!CS$144","v":45},{"$f":"CntyDataLinkPrior5YearEstimates!CZ$144","v":53},{"$f":"CntyDataLinkPrior5YearEstimates!DA$144","v":35},{"$f":"CntyDataLinkPrior5YearEstimates!DH$144","v":285},{"$f":"CntyDataLinkPrior5YearEstimates!DI$144","v":66}]
[null,null,null,"Monthly Costs 20% to 29.9% of HH Income",{"$f":"CntyDataLinkPrior5YearEstimates!$BJ$144","v":88},{"$f":"CntyDataLinkPrior5YearEstimates!$BK$144","v":48.507731342539614},null,{"$f":"CntyDataLinkPrior5YearEstimates!$CD$144","v":0},{"$f":"CntyDataLinkPrior5YearEstimates!$CE$144","v":11},{"$f":"CntyDataLinkPrior5YearEstimates!CL$144","v":35},{"$f":"CntyDataLinkPrior5YearEstimates!CM$144","v":35},{"$f":"CntyDataLinkPrior5YearEstimates!CT$144","v":52},{"$f":"CntyDataLinkPrior5YearEstimates!CU$144","v":31},{"$f":"CntyDataLinkPrior5YearEstimates!DB$144","v":106},{"$f":"CntyDataLinkPrior5YearEstimates!DC$144","v":53},{"$f":"CntyDataLinkPrior5YearEstimates!DJ$144","v":151},{"$f":"CntyDataLinkPrior5YearEstimates!DK$144","v":52}]
[null,null,null,"Monthly Costs Less Than 30% of HH Income",{"$f":"CntyDataLinkPrior5YearEstimates!$BL$144","v":125},{"$f":"CntyDataLinkPrior5YearEstimates!$BM$144","v":59.481089431852205},null,{"$f":"H52+H51","v":0},{"$f":"SQRT((I52^2)+(I51^2))","v":15.556349186104045},{"$f":"J52+J51","v":66},{"$f":"SQRT((K52^2)+(K51^2))","v":50.931326312987373},{"$f":"L52+L51","v":128},{"$f":"SQRT((M52^2)+(M51^2))","v":54.644304369257},{"$f":"N52+N51","v":159},{"$f":"SQRT((O52^2)+(O51^2))","v":63.513778032801667},{"$f":"P52+P51","v":436},{"$f":"SQRT((Q52^2)+(Q51^2))","v":84.02380615040002}]
[null,null,null,"Monthly Costs 30% or More of HH Income",{"$f":"CntyDataLinkPrior5YearEstimates!$BN$144","v":232},{"$f":"CntyDataLinkPrior5YearEstimates!$BO$144","v":69.641941385920603},null,{"$f":"CntyDataLinkPrior5YearEstimates!$CF$144","v":115},{"$f":"CntyDataLinkPrior5YearEstimates!$CG$144","v":63},{"$f":"CntyDataLinkPrior5YearEstimates!CN$144","v":76},{"$f":"CntyDataLinkPrior5YearEstimates!CO$144","v":49},{"$f":"CntyDataLinkPrior5YearEstimates!CV$144","v":108},{"$f":"CntyDataLinkPrior5YearEstimates!CW$144","v":61},{"$f":"CntyDataLinkPrior5YearEstimates!DD$144","v":99},{"$f":"CntyDataLinkPrior5YearEstimates!DE$144","v":54},{"$f":"CntyDataLinkPrior5YearEstimates!$DL$144","v":65},{"$f":"CntyDataLinkPrior5YearEstimates!$DM$144","v":60}]
[]
[null,null,null,"Monthly Costs 35% or More of HH Income",{"$f":"CntyDataLinkPrior5YearEstimates!$BT$144","v":130},{"$f":"CntyDataLinkPrior5YearEstimates!$BU$144","v":72.069410986909006},null,"NA","NA","NA","NA","NA","NA","NA","NA","NA","NA"]
[null,null,null,"Monthly Costs 50% or More of HH Income",{"$f":"CntyDataLinkPrior5YearEstimates!$BV$144","v":65},{"$f":"CntyDataLinkPrior5YearEstimates!$BW$144","v":41.036569057366385},null,"NA","NA","NA","NA","NA","NA","NA","NA","NA","NA"]
[null,null,null,"Percent not computed",{"$f":"CntyDataLinkPrior5YearEstimates!$BX$144","v":69},{"$f":"CntyDataLinkPrior5YearEstimates!$BY$144","v":52.345009313209601},null,"NA","NA","NA","NA","NA","NA","NA","NA","NA","NA"]
[]
[null,null,null,"Percent of Owner Households Paying ",null,null,null,"By Household Income"]
[null,null,null,{"$f":"D53","v":"Monthly Costs Less Than 30% of HH Income"},{"$f":"E53/E$50","v":{"$error":"#VALUE!"}},null,null,{"$f":"H53/H$50","v":0},null,{"$f":"J53/J$50","v":0.46478873239436619},null,{"$f":"L53/L$50","v":0.5423728813559322},null,{"$f":"N53/N$50","v":0.61627906976744184},null,{"$f":"P53/P$50","v":0.87025948103792417}]
[null,null,null,{"$f":"D54","v":"Monthly Costs 30% or More of HH Income"},{"$f":"E54/E$50","v":{"$error":"#VALUE!"}},null,null,{"$f":"H54/H50","v":1},null,{"$f":"J54/J50","v":0.53521126760563376},null,{"$f":"L54/L50","v":0.4576271186440678},null,{"$f":"N54/N50","v":0.38372093023255816},null,{"$f":"P54/P50","v":0.12974051896207583}]
[]
[null,null,null,"Monthly Costs 35% or More of HH Income",{"$f":"E56/E$50","v":{"$error":"#VALUE!"}},null,null,"NA","NA","NA","NA","NA","NA","NA","NA","NA","NA"]
[null,null,null,"Monthly Costs 50% or More of HH Income",{"$f":"E57/E$50","v":{"$error":"#VALUE!"}},null,null,"NA","NA","NA","NA","NA","NA","NA","NA","NA","NA"]
[null,null,null,"Percent not computed",{"$f":"E58/$E$50","v":{"$error":"#VALUE!"}},null,null,"NA","NA","NA","NA","NA","NA","NA","NA","NA","NA"]
[]
[null,null,"H62ROHUGRent200to249",{"$f":"D37","v":"Income in 2014 Inflation Adjusted Dollars"}]
[null,null,null,"Source: 2010-2014 American Community Survey Table B25091; B25106",null,null,null,null,"NA indicates that the American Community Survey does not provide that data."]
[null,null,null,"Data from the American Community Survey are estimates."]

{"sheet":"ACS_Table_B25075_&_B25077","index":59,"n_rows":181,"n_cols":56,"rows_kept":181,"cut":false,"hidden":true,"merged":[]}
[null,"B25075. VALUE"]
[null,"Universe:  OWNER-OCCUPIED HOUSING UNITS"]
[null,"Data Set: 2015-2019 American Community Survey 5-Year Estimates"]
[]
[null,null,"Allenstown",null,"Andover",null,"Boscawen",null,"Bow",null,"Bradford",null,"Canterbury",null,"Chichester",null,"Concord",null,"Danbury",null,"Dunbarton",null,"Epsom",null,"Franklin",null,"Henniker",null,"Hill",null,"Hooksett",null,"Hopkinton",null,"Loudon",null,"Newbury",null,"New London",null,"Northfield",null,"Pembroke",null,"Pittsfield",null,"Salisbury",null,"Sutton",null,"Warner",null,"Webster",null,"Wilmot"]
[null,null,"Estimate","Margin of Error","Estimate","Margin of Error","Estimate","Margin of Error","Estimate","Margin of Error","Estimate","Margin of Error","Estimate","Margin of Error","Estimate","Margin of Error","Estimate","Margin of Error","Estimate","Margin of Error","Estimate","Margin of Error","Estimate","Margin of Error","Estimate","Margin of Error","Estimate","Margin of Error","Estimate","Margin of Error","Estimate","Margin of Error","Estimate","Margin of Error","Estimate","Margin of Error","Estimate","Margin of Error","Estimate","Margin of Error","Estimate","Margin of Error","Estimate","Margin of Error","Estimate","Margin of Error","Estimate","Margin of Error","Estimate","Margin of Error","Estimate","Margin of Error","Estimate","Margin of Error","Estimate","Margin of Error"]
[null,"Total:",1379,114,900,95,1086,143,2427,129,574,66,892,67,882,80,9252,428,439,66,878,53,1505,107,2480,205,1356,138,343,47,3968,225,1950,130,1759,181,846,86,1256,148,1390,132,2108,223,1076,143,515,64,679,82,757,99,701,70,555,76]
[null,"Less than $10,000",29,32,0,11,14,24,0,16,0,11,0,11,5,8,137,84,4,6,0,11,8,13,18,20,0,11,3,4,15,18,11,20,35,49,0,11,10,15,0,11,29,32,0,11,0,11,3,4,5,7,4,6,0,11]
[null,"$10,000 to $14,999",42,46,0,11,14,27,0,16,0,11,0,11,0,11,40,39,3,5,0,11,0,11,13,20,0,11,0,11,13,20,0,16,24,38,0,11,0,11,31,28,0,16,0,11,0,11,0,11,5,7,0,11,0,11]
[null,"$15,000 to $19,999",40,49,9,14,28,28,0,16,4,5,0,11,35,39,80,43,4,6,0,11,7,11,0,16,20,32,17,21,25,28,0,16,0,16,0,11,0,11,11,15,19,30,7,12,0,11,0,11,0,11,0,11,0,11]
[null,"$20,000 to $24,999",63,58,7,10,23,19,0,16,0,11,5,7,0,11,81,46,0,11,3,6,28,31,31,25,0,11,4,5,12,20,0,16,0,16,0,11,0,11,0,11,30,36,9,15,0,11,0,11,9,10,0,11,0,11]
[null,"$25,000 to $29,999",27,24,0,11,8,14,0,16,4,6,0,11,4,6,69,42,3,5,0,11,22,16,0,16,8,12,0,11,7,12,0,16,0,16,5,7,0,11,12,18,0,16,14,21,0,11,0,11,5,7,0,11,0,11]
[null,"$30,000 to $34,999",8,12,0,11,0,11,0,16,0,11,0,11,6,8,94,44,0,11,0,11,0,11,8,14,16,24,9,13,21,23,0,16,31,51,6,9,0,11,0,11,0,16,10,15,0,11,0,11,0,11,0,11,0,11]
[null,"$35,000 to $39,999",42,29,5,8,18,22,6,10,0,11,0,11,0,11,47,34,12,19,0,11,14,17,32,30,0,11,0,11,30,44,0,16,0,16,0,11,0,11,0,11,0,16,0,11,3,5,0,11,0,11,0,11,0,11]
[null,"$40,000 to $49,999",73,50,0,11,0,11,0,16,3,5,8,12,0,11,127,68,0,11,0,11,38,47,0,16,0,11,0,11,5,9,13,23,0,16,0,11,0,11,0,11,0,16,0,11,0,11,0,11,0,11,0,11,0,11]
[null,"$50,000 to $59,999",38,29,0,11,0,11,8,13,0,11,6,9,0,11,61,51,0,11,0,11,61,72,11,19,8,13,3,5,36,35,22,35,0,16,5,7,0,11,38,44,62,100,0,11,4,6,0,11,6,8,0,11,4,5]
[null,"$60,000 to $69,999",109,61,0,11,29,30,0,16,0,11,0,11,0,11,85,57,10,15,0,11,25,30,21,33,0,11,7,8,21,25,5,11,54,73,0,11,0,11,0,11,0,16,30,28,0,11,0,11,16,20,0,11,3,4]
[null,"$70,000 to $79,999",20,23,0,11,0,11,0,16,3,6,6,9,0,11,63,46,14,21,4,6,18,20,19,21,0,11,9,8,63,42,49,41,67,73,0,11,0,11,0,11,17,27,26,23,0,11,0,11,0,11,3,5,0,11]
[null,"$80,000 to $89,999",72,57,5,8,0,11,0,16,12,15,7,11,0,11,73,51,3,4,0,11,25,28,60,44,0,11,22,19,69,74,0,16,0,16,6,9,16,23,45,45,18,29,0,11,0,11,0,11,16,20,2,5,0,11]
[null,"$90,000 to $99,999",31,28,0,11,0,11,0,16,5,8,0,11,0,11,109,62,7,7,0,11,13,20,43,35,0,11,4,5,29,27,28,30,0,16,0,11,0,11,21,25,17,28,0,11,4,6,0,11,5,7,0,11,3,5]
[null,"$100,000 to $124,999",56,40,46,36,26,33,0,16,11,9,42,45,5,8,321,85,50,29,10,10,11,17,329,124,31,33,19,17,74,46,101,95,75,60,0,11,13,15,91,54,141,79,110,64,28,20,10,15,10,11,7,7,4,6]
[null,"$125,000 to $149,999",46,30,92,49,82,44,0,16,16,12,42,27,32,21,431,92,61,30,31,17,12,19,328,124,42,45,10,8,81,54,41,46,50,76,10,10,24,23,92,48,111,80,55,39,24,22,76,43,22,15,35,19,7,8]
[null,"$150,000 to $174,999",173,70,106,46,168,87,18,21,59,32,49,25,91,47,751,126,73,24,22,17,90,53,554,153,87,60,45,20,270,99,83,71,178,108,29,19,58,39,208,86,163,91,149,75,58,27,32,25,84,44,57,24,16,14]
[null,"$175,000 to $199,999",81,50,68,37,112,74,78,53,56,23,81,44,75,41,969,180,61,26,15,12,55,34,249,94,145,83,54,19,262,86,160,77,73,53,60,40,87,56,248,102,184,80,151,74,84,33,77,37,67,34,78,26,59,24]
[null,"$200,000 to $249,999",275,104,167,60,317,115,264,74,127,33,147,40,167,42,1799,200,70,35,131,34,479,102,251,72,391,122,57,21,898,177,320,107,361,112,188,64,99,57,257,86,632,173,210,86,140,41,136,46,106,40,178,41,86,35]
[null,"$250,000 to $299,999",121,67,67,37,97,49,651,122,78,28,181,49,211,51,1755,223,17,8,170,43,305,100,239,95,219,98,26,18,645,155,317,124,234,86,141,45,136,62,223,83,288,120,178,79,68,29,135,43,170,45,135,32,135,48]
[null,"$300,000 to $399,999",24,24,219,63,75,67,979,130,130,41,215,53,170,51,1175,191,11,11,301,56,175,83,183,95,259,80,48,25,1020,175,485,147,468,145,222,68,259,78,96,56,297,123,72,54,51,20,97,39,150,50,146,45,124,39]
[null,"$400,000 to $499,999",0,11,47,30,52,29,277,72,32,22,53,25,44,25,540,113,33,22,119,34,43,34,40,35,12,21,0,11,300,123,195,79,102,93,73,34,242,74,0,11,39,42,26,23,29,16,76,27,42,23,36,18,45,28]
[null,"$500,000 to $749,999",0,11,46,25,9,15,120,58,13,11,31,19,29,18,320,86,3,5,59,23,62,59,23,24,105,63,3,6,72,69,102,61,7,27,44,30,155,69,7,12,44,40,18,21,18,12,16,16,31,24,13,9,59,32]
[null,"$750,000 to $999,999",0,11,0,11,0,11,26,24,6,9,10,10,0,11,77,59,0,11,13,11,0,11,9,13,13,21,0,11,0,18,18,29,0,16,45,32,29,24,0,11,0,16,0,11,0,11,0,11,4,6,7,8,6,7]
[null,"$1,000,000 to $1,499,999",9,14,0,11,14,21,0,16,12,9,9,13,0,11,23,24,0,11,0,11,0,11,0,16,0,11,0,11,0,18,0,16,0,16,6,9,29,26,0,11,0,16,11,17,0,11,21,23,4,6,0,11,4,5]
[null,"$1,500,000 to $1,999,999",0,11,0,11,0,11,0,16,0,11,0,11,3,5,6,11,0,11,0,11,0,11,9,16,0,11,0,11,0,18,0,16,0,16,0,11,43,40,0,11,0,16,0,11,0,11,0,11,0,11,0,11,0,11]
[null,"$2,000,000 or more",0,11,16,26,0,11,0,16,3,5,0,11,5,8,19,31,0,11,0,11,14,22,10,16,0,11,3,5,0,18,0,16,0,16,6,10,56,40,10,15,17,26,0,11,4,6,0,11,0,11,0,11,0,11]
[]
[]
[null,"B25077. MEDIAN VALUE (Dollars)"]
[null,"Universe:  OWNER-OCCUPIED HOUSING UNITS"]
[null,"Data Set: 2015-2019 American Community Survey 5-Year Estimates"]
[]
[null,null,"Allenstown",null,"Andover",null,"Boscawen",null,"Bow",null,"Bradford",null,"Canterbury",null,"Chichester",null,"Concord",null,"Danbury",null,"Dunbarton",null,"Epsom",null,"Franklin",null,"Henniker",null,"Hill",null,"Hooksett",null,"Hopkinton",null,"Loudon",null,"Newbury",null,"New London",null,"Northfield",null,"Pembroke",null,"Pittsfield",null,"Salisbury",null,"Sutton",null,"Warner",null,"Webster",null,"Wilmot"]
[null,null,"Estimate","Margin of Error","Estimate","Margin of Error","Estimate","Margin of Error","Estimate","Margin of Error","Estimate","Margin of Error","Estimate","Margin of Error","Estimate","Margin of Error","Estimate","Margin of Error","Estimate","Margin of Error","Estimate","Margin of Error","Estimate","Margin of Error","Estimate","Margin of Error","Estimate","Margin of Error","Estimate","Margin of Error","Estimate","Margin of Error","Estimate","Margin of Error","Estimate","Margin of Error","Estimate","Margin of Error","Estimate","Margin of Error","Estimate","Margin of Error","Estimate","Margin of Error","Estimate","Margin of Error","Estimate","Margin of Error","Estimate","Margin of Error","Estimate","Margin of Error","Estimate","Margin of Error","Estimate","Margin of Error"]
[]
[null,"Median value (dollars)",146500,43753,233500,19735,203300,20525,319300,11077,244900,16371,264600,15279,255000,14294,230200,6732,166600,13299,317600,15918,234000,9730,164800,6081,241000,13210,184000,14066,254100,13040,272400,20571,240500,17822,290400,21398,371400,31123,189700,10620,220800,9414,196200,16504,218800,11547,252000,16802,256600,15665,246200,11891,285400,13575]
[]
[]
[]
[]
[]
[]
[]
[]
[]
[]
[]
[]
[]
[]
[]
[]
[]
[]
[]
[]
[]
[]
[]
[]
[]
[]
[null,"B25075. VALUE"]
[null,"Universe:  OWNER-OCCUPIED HOUSING UNITS"]
[null,"Data Set: 2010-2014 American Community Survey 5-Year Estimates"]
[]
[null,null,"Allenstown",null,"Andover",null,"Boscawen",null,"Bow",null,"Bradford",null,"Canterbury",null,"Chichester",null,"Concord",null,"Danbury",null,"Dunbarton",null,"Epsom",null,"Franklin",null,"Henniker",null,"Hill",null,"Hooksett",null,"Hopkinton",null,"Loudon",null,"Newbury",null,"New London",null,"Northfield",null,"Pembroke",null,"Pittsfield",null,"Salisbury",null,"Sutton",null,"Warner",null,"Webster",null,"Wilmot"]
[null,null,"Estimate","Margin Of Error","Estimate","Margin Of Error","Estimate","Margin Of Error","Estimate","Margin Of Error","Estimate","Margin Of Error","Estimate","Margin Of Error","Estimate","Margin Of Error","Estimate","Margin Of Error","Estimate","Margin Of Error","Estimate","Margin Of Error","Estimate","Margin Of Error","Estimate","Margin Of Error","Estimate","Margin Of Error","Estimate","Margin Of Error","Estimate","Margin Of Error","Estimate","Margin Of Error","Estimate","Margin Of Error","Estimate","Margin Of Error","Estimate","Margin Of Error","Estimate","Margin Of Error","Estimate","Margin Of Error","Estimate","Margin Of Error","Estimate","Margin Of Error","Estimate","Margin Of Error","Estimate","Margin Of Error","Estimate","Margin Of Error","Estimate","Margin Of Error"]
[null,null,1252,116,839,98,884,148,2460,156,605,75,854,63,898,73,9376,354,438,65,917,86,1523,136,2015,220,1071,155,413,56,4473,271,1846,116,1693,133,716,95,1365,137,1313,123,1986,184,901,126,512,61,694,97,871,62,670,58,478,60]
[null,"Less than $10,000",87,51,4,6,9,14,11,18,2,4,0,11,9,10,136,59,0,11,0,11,8,14,8,13,8,13,3,4,45,51,29,33,21,20,10,11,24,23,2,5,0,15,9,15,0,11,0,11,6,9,9,7,3,4]
[null,"$10,000 to $14,999",10,15,5,8,17,20,5,9,0,11,0,11,0,11,165,85,14,16,0,11,13,20,25,23,0,11,7,6,18,29,17,27,20,33,0,11,0,11,6,10,17,28,0,11,4,6,0,11,13,18,0,11,0,11]
[null,"$15,000 to $19,999",90,52,0,11,17,19,0,15,0,11,0,11,0,11,87,48,2,4,0,11,51,36,10,16,0,11,0,11,16,26,0,15,0,15,0,11,0,11,9,14,50,48,7,11,0,11,3,4,4,7,12,19,3,5]
[null,"$20,000 to $24,999",22,24,17,26,17,29,0,15,3,5,0,11,0,11,63,39,0,11,5,9,59,48,45,39,39,29,0,11,20,17,12,19,56,51,5,8,0,11,0,11,17,28,0,11,0,11,0,11,0,11,6,8,0,11]
[null,"$25,000 to $29,999",49,37,0,11,0,11,0,15,0,11,5,8,5,9,70,43,0,11,0,11,32,25,8,13,0,11,0,11,9,15,0,15,0,15,0,11,0,11,0,11,15,26,0,11,0,11,0,11,0,11,0,11,0,11]
[null,"$30,000 to $34,999",51,33,0,11,0,11,0,15,0,11,0,11,0,11,78,45,0,11,0,11,0,11,11,18,0,11,0,11,34,31,0,15,0,15,0,11,0,11,10,16,0,15,0,11,0,11,0,11,0,11,0,11,0,11]
[null,"$35,000 to $39,999",37,41,5,8,9,14,7,13,0,11,0,11,0,11,52,34,0,11,0,11,22,24,12,14,0,11,0,11,0,17,0,15,11,17,0,11,0,11,13,21,0,15,8,13,0,11,0,11,0,11,4,6,0,11]
[null,"$40,000 to $49,999",24,23,4,7,34,35,0,15,0,11,0,11,0,11,163,82,0,11,0,11,39,52,18,25,8,12,0,11,6,11,0,15,6,11,0,11,0,11,8,14,0,15,6,9,0,11,0,11,6,8,0,11,0,11]
[null,"$50,000 to $59,999",35,44,0,11,60,47,0,15,0,11,4,7,0,11,46,33,11,17,0,11,0,11,24,21,0,11,7,9,64,66,13,21,10,15,0,11,0,11,21,21,0,15,7,13,0,11,0,11,6,10,6,7,0,11]
[null,"$60,000 to $69,999",20,22,0,11,0,11,0,15,0,11,0,11,0,11,58,41,0,11,0,11,0,11,13,13,0,11,2,4,17,20,82,70,0,15,5,6,0,11,48,49,43,70,0,11,0,11,0,11,0,11,0,11,0,11]
[null,"$70,000 to $79,999",29,25,5,8,16,19,0,15,9,14,8,12,4,7,77,44,10,10,12,12,27,30,14,17,0,11,17,17,137,104,11,17,57,79,0,11,0,11,9,13,16,27,19,20,3,5,4,5,0,11,0,11,0,11]
[null,"$80,000 to $89,999",35,41,26,27,14,15,0,15,6,6,0,11,40,39,104,66,13,15,0,11,20,23,11,16,0,11,29,21,30,32,0,15,14,22,6,9,0,11,0,11,0,15,7,11,0,11,0,11,6,8,6,7,8,9]
[null,"$90,000 to $99,999",20,24,0,11,15,19,0,15,3,6,7,10,0,11,65,44,11,10,12,13,35,41,52,35,26,41,12,12,10,11,12,19,24,29,6,9,0,11,29,26,0,15,0,11,0,11,5,7,0,11,2,4,0,11]
[null,"$100,000 to $124,999",53,35,72,37,17,26,0,15,34,26,11,12,5,8,508,118,77,39,22,15,80,58,304,105,20,19,29,14,41,30,0,15,104,66,0,11,54,42,181,69,35,40,138,76,12,10,26,19,23,27,35,24,8,7]
[null,"$125,000 to $149,999",87,48,83,32,67,55,23,26,43,23,40,24,7,11,486,133,44,27,19,16,91,68,211,74,18,20,42,25,27,27,63,65,0,15,24,23,9,11,94,47,46,45,59,45,44,22,32,24,41,25,26,14,9,10]
[null,"$150,000 to $174,999",84,47,76,43,102,49,69,38,65,38,57,33,38,23,857,180,58,25,24,19,110,54,410,125,66,39,57,27,365,113,40,36,118,68,83,44,69,38,193,74,65,47,95,46,95,36,38,24,51,26,95,28,49,29]
[null,"$175,000 to $199,999",126,53,105,50,105,60,120,60,41,17,33,20,104,35,1219,215,38,22,20,15,202,75,171,65,147,61,55,23,592,161,247,109,193,66,70,30,21,19,161,54,221,97,117,61,60,28,86,37,141,44,95,32,47,34]
[null,"$200,000 to $249,999",204,82,140,47,163,61,310,75,136,36,234,62,190,53,2110,240,113,40,197,59,300,93,272,95,349,120,79,22,1061,223,256,102,345,87,56,24,186,66,286,81,748,182,238,82,105,35,121,42,169,50,163,40,117,42]
[null,"$250,000 to $299,999",124,62,126,50,121,75,702,109,83,28,167,45,229,65,1426,214,25,18,262,59,209,73,209,99,185,72,48,24,751,169,359,141,313,111,173,53,146,66,161,78,434,157,81,46,111,31,120,39,177,53,109,37,53,22]
[null,"$300,000 to $399,999",57,39,99,36,84,43,706,114,139,47,189,46,187,52,1035,155,13,10,233,62,171,80,136,72,142,76,22,17,1072,177,442,119,231,90,121,56,334,85,59,47,212,87,83,45,53,22,116,37,141,62,87,28,105,33]
[null,"$400,000 to $499,999",0,11,21,16,0,11,350,111,27,13,34,18,53,36,249,78,5,7,83,38,14,16,32,30,9,15,4,7,62,61,158,70,132,76,35,23,169,56,0,11,12,20,7,11,9,7,68,35,49,35,13,11,21,11]
[null,"$500,000 to $749,999",0,11,46,22,17,19,109,46,7,9,33,21,15,17,186,62,4,5,24,19,13,21,19,21,44,28,0,11,62,55,92,60,0,15,46,27,214,85,9,13,10,18,20,19,7,8,66,32,38,35,0,11,44,25]
[null,"$750,000 to $999,999",0,11,0,11,0,11,48,46,3,5,14,16,6,8,99,50,0,11,0,11,12,20,0,15,0,11,0,11,6,10,0,15,12,19,29,18,41,26,0,11,45,45,0,11,0,11,9,13,0,11,2,3,5,5]
[null,"$1,000,000 or more",8,13,5,7,0,11,0,15,4,5,18,16,6,9,37,30,0,11,4,7,15,16,0,15,10,16,0,11,28,32,13,22,26,29,47,36,98,50,14,17,0,15,0,11,9,14,0,11,0,11,0,11,6,7]
[]
[]
[]
[]
[null,"B25077. MEDIAN VALUE (Dollars)"]
[null,"Universe:  OWNER-OCCUPIED HOUSING UNITS"]
[null,"Data Set: 2010-2014 American Community Survey 5-Year Estimates"]
[]
[null,null,"Allenstown",null,"Andover",null,"Boscawen",null,"Bow",null,"Bradford",null,"Canterbury",null,"Chichester",null,"Concord",null,"Danbury",null,"Dunbarton",null,"Epsom",null,"Franklin",null,"Henniker",null,"Hill",null,"Hooksett",null,"Hopkinton",null,"Loudon",null,"Newbury",null,"New London",null,"Northfield",null,"Pembroke",null,"Pittsfield",null,"Salisbury",null,"Sutton",null,"Warner",null,"Webster",null,"Wilmot"]
[null,null,"Estimate","Margin Of Error","Estimate","Margin Of Error","Estimate","Margin Of Error","Estimate","Margin Of Error","Estimate","Margin Of Error","Estimate","Margin Of Error","Estimate","Margin Of Error","Estimate","Margin Of Error","Estimate","Margin Of Error","Estimate","Margin Of Error","Estimate","Margin Of Error","Estimate","Margin Of Error","Estimate","Margin Of Error","Estimate","Margin Of Error","Estimate","Margin Of Error","Estimate","Margin Of Error","Estimate","Margin Of Error","Estimate","Margin Of Error","Estimate","Margin Of Error","Estimate","Margin Of Error","Estimate","Margin Of Error","Estimate","Margin Of Error","Estimate","Margin Of Error","Estimate","Margin Of Error","Estimate","Margin Of Error","Estimate","Margin Of Error","Estimate","Margin Of Error"]
[]
[null,"Median value (dollars)",145800,24883,206300,18491,186400,19742,298800,9324,235500,15690,258400,17226,260300,12276,210800,5453,165900,18803,278100,10155,196600,11708,164700,6771,229200,10984,175700,14428,238000,9846,270900,17336,230800,17241,276900,15890,351900,23669,180200,16664,231300,7343,195400,17159,218100,15696,263300,18521,241000,18133,212000,11974,247900,22426]
[]
[]
[]
[]
[]
[]
[]
[]
[]
[]
[]
[]
[]
[]
[]
[]
[]
[]
[]
[]
[]
[]
[]
[]
[]
[]
[null,"B25075. VALUE"]
[null,"Universe:  OWNER-OCCUPIED HOUSING UNITS"]
[null,"Data Set: 2005-2009 American Community Survey 5-Year Estimates"]
[]
[null,null,"Allenstown",null,"Andover",null,"Boscawen",null,"Bow",null,"Bradford",null,"Canterbury",null,"Chichester",null,"Concord",null,"Danbury",null,"Dunbarton",null,"Epsom",null,"Franklin",null,"Henniker",null,"Hill",null,"Hooksett",null,"Hopkinton",null,"Loudon",null,"Newbury",null,"New London",null,"Northfield",null,"Pembroke",null,"Pittsfield",null,"Salisbury",null,"Sutton",null,"Warner",null,"Webster",null,"Wilmot"]
[null,null,"Estimate","Margin Of Error","Estimate","Margin Of Error","Estimate","Margin Of Error","Estimate","Margin Of Error","Estimate","Margin Of Error","Estimate","Margin Of Error","Estimate","Margin Of Error","Estimate","Margin Of Error","Estimate","Margin Of Error","Estimate","Margin Of Error","Estimate","Margin Of Error","Estimate","Margin Of Error","Estimate","Margin Of Error","Estimate","Margin Of Error","Estimate","Margin Of Error","Estimate","Margin Of Error","Estimate","Margin Of Error","Estimate","Margin Of Error","Estimate","Margin Of Error","Estimate","Margin Of Error","Estimate","Margin Of Error","Estimate","Margin Of Error","Estimate","Margin Of Error","Estimate","Margin Of Error","Estimate","Margin Of Error","Estimate","Margin Of Error","Estimate","Margin Of Error"]
[null,null,1176,172,790,93,1086,141,2579,139,426,68,798,59,901,53,9529,368,446,70,885,60,1203,113,1984,199,1250,163,318,44,4002,224,2099,128,1583,130,768,90,1343,183,1443,150,2058,183,1126,119,421,46,625,93,798,137,609,57,481,65]
[null,"Less than $10,000",0,114,0,114,12,19,0,114,0,114,0,114,0,114,15,23,0,114,0,114,0,114,0,114,0,114,3,4,13,20,0,114,11,16,0,114,0,114,0,114,0,114,0,114,0,114,0,114,0,114,0,114,0,114]
[null,"$10,000 to $14,999",35,33,0,114,0,114,0,114,0,114,0,114,5,9,64,46,0,114,7,11,12,19,9,15,0,114,0,114,11,17,0,114,0,114,0,114,0,114,0,114,0,114,0,114,0,114,0,114,7,11,0,114,0,114]
[null,"$15,000 to $19,999",17,18,0,114,10,16,0,114,0,114,0,114,0,114,88,54,0,114,0,114,20,22,30,25,8,12,0,114,12,18,15,25,0,114,5,8,0,114,0,114,0,114,24,27,0,114,0,114,0,114,0,114,0,114]
[null,"$20,000 to $24,999",34,42,0,114,0,114,0,114,0,114,0,114,0,114,79,46,0,114,0,114,18,18,27,23,0,114,0,114,0,114,0,114,8,13,0,114,0,114,0,114,0,114,9,15,0,114,0,114,11,13,6,7,0,114]
[null,"$25,000 to $29,999",62,57,0,114,9,17,0,114,0,114,0,114,0,114,131,72,0,114,0,114,41,44,9,14,35,34,0,114,0,114,0,114,0,114,0,114,0,114,0,114,39,63,21,30,0,114,0,114,7,10,0,114,0,114]
[null,"$30,000 to $34,999",25,31,0,114,22,26,26,30,4,6,11,12,0,114,131,85,0,114,0,114,10,16,0,114,0,114,0,114,0,114,0,114,8,14,0,114,0,114,0,114,0,114,0,114,0,114,0,114,0,114,3,4,0,114]
[null,"$35,000 to $39,999",22,25,0,114,17,20,0,114,0,114,0,114,0,114,112,51,0,114,0,114,0,114,10,17,0,114,0,114,0,114,0,114,8,13,0,114,0,114,0,114,0,114,0,114,0,114,0,114,0,114,0,114,0,114]
[null,"$40,000 to $49,999",21,24,0,114,10,18,0,114,0,114,0,114,6,10,109,60,2,4,0,114,20,23,17,21,0,114,3,5,13,21,0,114,0,114,0,114,0,114,0,114,0,114,11,18,0,114,0,114,4,7,0,114,0,114]
[null,"$50,000 to $59,999",29,30,6,9,12,19,0,114,0,114,0,114,5,8,176,103,5,8,0,114,7,12,20,22,0,114,10,12,44,37,8,14,11,17,0,114,0,114,0,114,0,114,0,114,0,114,0,114,0,114,0,114,4,5]
[null,"$60,000 to $69,999",74,66,15,16,10,15,0,114,0,114,0,114,0,114,66,45,16,16,0,114,0,114,0,114,0,114,0,114,34,46,0,114,9,15,0,114,0,114,30,27,0,114,0,114,0,114,0,114,0,114,0,114,0,114]
[null,"$70,000 to $79,999",0,114,0,114,23,25,0,114,4,6,0,114,10,11,65,72,3,4,0,114,30,28,0,114,0,114,0,114,39,36,0,114,11,18,8,14,0,114,7,11,18,28,12,20,0,114,0,114,0,114,0,114,0,114]
[null,"$80,000 to $89,999",74,73,6,9,0,114,0,114,9,14,0,114,20,31,55,48,0,114,6,10,13,21,28,24,21,23,0,114,13,21,0,114,18,19,7,9,0,114,33,33,19,29,7,11,3,5,0,114,0,114,3,4,2,5]
[null,"$90,000 to $99,999",0,114,0,114,9,15,0,114,3,4,0,114,0,114,85,65,5,7,0,114,13,15,23,30,0,114,3,5,26,25,15,24,17,20,0,114,0,114,30,30,0,114,0,114,4,6,0,114,6,9,3,4,0,114]
[null,"$100,000 to $124,999",33,26,23,17,25,30,77,81,4,6,14,15,22,29,286,98,63,44,6,10,46,27,253,77,59,57,65,27,62,42,156,69,121,80,6,9,35,32,92,55,56,44,53,37,19,12,19,17,7,10,23,12,0,114]
[null,"$125,000 to $149,999",22,34,51,37,61,38,29,30,28,18,11,11,18,19,371,124,21,19,0,114,43,41,92,47,33,32,15,11,111,62,58,39,0,114,19,14,0,114,123,63,59,47,137,70,24,21,17,11,24,19,18,10,3,6]
[null,"$150,000 to $174,999",142,100,53,25,67,46,79,50,41,22,47,33,38,25,732,161,49,29,59,39,61,42,367,94,100,69,45,23,295,101,51,42,114,51,16,12,45,57,249,102,86,62,112,58,45,18,42,28,58,34,60,25,47,29]
[null,"$175,000 to $199,999",107,57,147,64,155,84,29,32,37,22,80,33,97,46,933,204,43,24,69,46,74,47,293,93,70,50,59,28,385,129,74,47,66,36,17,13,31,24,155,60,356,110,137,67,41,18,38,20,64,35,69,25,15,12]
[null,"$200,000 to $249,999",253,83,117,43,306,128,364,115,94,31,140,48,182,61,2215,232,58,29,157,46,241,65,345,100,470,122,52,19,945,186,427,142,446,109,141,46,123,62,321,98,652,151,272,105,122,37,137,79,164,49,140,30,78,46]
[null,"$250,000 to $299,999",108,62,170,64,186,81,498,137,59,27,184,53,180,59,1456,216,93,38,112,47,324,94,252,87,133,56,26,16,624,149,257,97,218,67,127,42,171,101,264,112,382,119,143,64,45,17,122,52,177,69,77,29,49,26]
[null,"$300,000 to $399,999",107,71,116,63,61,45,840,148,49,26,171,50,241,69,1372,189,21,17,340,66,168,59,91,44,238,80,14,9,893,147,645,177,343,101,217,79,194,90,116,54,224,89,138,68,84,27,138,41,168,56,163,50,125,46]
[null,"$400,000 to $499,999",0,114,24,29,69,56,321,106,39,19,76,37,22,17,564,118,8,8,70,33,40,29,75,54,29,26,14,10,247,99,264,82,57,40,60,28,203,84,11,16,106,68,11,18,13,9,57,29,58,40,29,14,34,21]
[null,"$500,000 to $749,999",11,17,54,28,8,13,270,94,39,28,41,32,55,39,237,85,41,29,59,29,22,25,32,32,44,38,6,7,207,94,101,60,27,21,79,38,383,134,12,19,48,39,24,19,21,12,45,23,29,16,2,3,115,55]
[null,"$750,000 to $999,999",0,114,8,11,0,114,46,42,0,114,9,10,0,114,108,60,18,19,0,114,0,114,0,114,0,114,0,114,0,114,28,31,19,23,8,9,43,35,0,114,13,21,15,24,0,114,5,7,14,16,0,114,9,14]
[null,"$1,000,000 or more",0,114,0,114,14,22,0,114,16,15,14,14,0,114,79,67,0,114,0,114,0,114,11,18,10,16,3,4,28,25,0,114,71,51,58,35,115,68,0,114,0,114,0,114,0,114,5,8,0,114,13,11,0,114]
[]
[]
[]
[]
[null,"B25077.MEDIAN VALUE (Dollars)"]
[null,"Universe:  OWNER-OCCUPIED HOUSING UNITS"]
[null,"Data Set: 2005-2009 American Community Survey 5-Year Estimates"]
[]
[null,null,"Allenstown",null,"Andover",null,"Boscawen",null,"Bow",null,"Bradford",null,"Canterbury",null,"Chichester",null,"Concord",null,"Danbury",null,"Dunbarton",null,"Epsom",null,"Franklin",null,"Henniker",null,"Hill",null,"Hooksett",null,"Hopkinton",null,"Loudon",null,"Newbury",null,"New London",null,"Northfield",null,"Pembroke",null,"Pittsfield",null,"Salisbury",null,"Sutton",null,"Warner",null,"Webster",null,"Wilmot"]
[null,null,"Estimate","Margin Of Error","Estimate","Margin Of Error","Estimate","Margin Of Error","Estimate","Margin Of Error","Estimate","Margin Of Error","Estimate","Margin Of Error","Estimate","Margin Of Error","Estimate","Margin Of Error","Estimate","Margin Of Error","Estimate","Margin Of Error","Estimate","Margin Of Error","Estimate","Margin Of Error","Estimate","Margin Of Error","Estimate","Margin Of Error","Estimate","Margin Of Error","Estimate","Margin Of Error","Estimate","Margin Of Error","Estimate","Margin Of Error","Estimate","Margin Of Error","Estimate","Margin Of Error","Estimate","Margin Of Error","Estimate","Margin Of Error","Estimate","Margin Of Error","Estimate","Margin Of Error","Estimate","Margin Of Error","Estimate","Margin Of Error","Estimate","Margin Of Error"]
[]
[null,"Median value (dollars)",174600,17690,240200,28112,216500,13494,322300,16283,244100,22833,276100,14219,263200,20644,228600,5491,213800,36273,307800,16303,240100,16761,184100,8924,231800,9656,181400,13137,249900,13046,297800,24993,243700,12279,317500,26054,435700,62786,200400,15541,230400,9020,207400,16260,230500,10971,274400,23479,263300,14649,242700,15629,334000,38694]

{"sheet":"ACS_Table_B25088","index":60,"n_rows":88,"n_cols":56,"rows_kept":88,"cut":false,"hidden":true,"merged":[]}
[null,"B25088. MEDIAN SELECTED MONTHLY OWNER COSTS (DOLLARS) BY MORTGAGE STATUS"]
[null,"Universe:  OWNER-OCCUPIED HOUSING UNITS"]
[null,"Data Set: 2015-2019 American Community Survey 5-Year Estimates"]
[]
[null,null,"Allenstown",null,"Andover",null,"Boscawen",null,"Bow",null,"Bradford",null,"Canterbury",null,"Chichester",null,"Concord",null,"Danbury",null,"Dunbarton",null,"Epsom",null,"Franklin",null,"Henniker",null,"Hill",null,"Hooksett",null,"Hopkinton",null,"Loudon",null,"Newbury",null,"New London",null,"Northfield",null,"Pembroke",null,"Pittsfield",null,"Salisbury",null,"Sutton",null,"Warner",null,"Webster",null,"Wilmot"]
[null,null,"Estimate","Margin Of Error","Estimate","Margin Of Error","Estimate","Margin Of Error","Estimate","Margin Of Error","Estimate","Margin Of Error","Estimate","Margin Of Error","Estimate","Margin Of Error","Estimate","Margin Of Error","Estimate","Margin Of Error","Estimate","Margin Of Error","Estimate","Margin Of Error","Estimate","Margin Of Error","Estimate","Margin Of Error","Estimate","Margin Of Error","Estimate","Margin Of Error","Estimate","Margin Of Error","Estimate","Margin Of Error","Estimate","Margin Of Error","Estimate","Margin Of Error","Estimate","Margin Of Error","Estimate","Margin Of Error","Estimate","Margin Of Error","Estimate","Margin Of Error","Estimate","Margin Of Error","Estimate","Margin Of Error","Estimate","Margin Of Error","Estimate","Margin Of Error"]
[]
[null,"Total:",1240,182,1350,112,1603,150,2000,138,1393,168,1439,273,1723,155,1521,66,1049,182,1778,145,1467,178,1174,90,1564,125,1226,157,1620,96,1543,178,1290,260,1336,107,1619,188,1236,161,1508,159,1550,178,1491,127,1375,196,1688,205,1376,132,1656,211]
[null,"Housing units with a mortgage (dollars)",1832,153,1576,131,1765,119,2320,94,1746,150,1957,123,2015,96,1893,57,1442,74,2150,96,1844,90,1527,135,1931,198,1522,91,2057,166,2234,129,1734,119,1769,166,2234,155,1584,101,1795,110,1798,106,1683,104,1753,206,1984,128,1774,88,1978,142]
[null,"Housing units without a mortgage (dollars)",754,45,828,113,826,82,1052,50,760,58,860,131,796,88,835,28,586,65,876,103,708,127,741,69,1008,92,591,102,858,43,1059,209,801,97,731,73,1011,107,679,105,845,141,820,88,761,119,815,120,908,73,785,57,860,41]
[]
[]
[]
[]
[]
[]
[]
[]
[]
[]
[]
[]
[]
[]
[]
[]
[]
[]
[]
[]
[]
[]
[]
[]
[]
[]
[]
[]
[]
[null,"B25088. MEDIAN SELECTED MONTHLY OWNER COSTS (DOLLARS) BY MORTGAGE STATUS"]
[null,"Universe:  OWNER-OCCUPIED HOUSING UNITS"]
[null,"Data Set: 2010-2014 American Community Survey 5-Year Estimates"]
[]
[null,null,"Allenstown",null,"Andover",null,"Boscawen",null,"Bow",null,"Bradford",null,"Canterbury",null,"Chichester",null,"Concord",null,"Danbury",null,"Dunbarton",null,"Epsom",null,"Franklin",null,"Henniker",null,"Hill",null,"Hooksett",null,"Hopkinton",null,"Loudon",null,"Newbury",null,"New London",null,"Northfield",null,"Pembroke",null,"Pittsfield",null,"Salisbury",null,"Sutton",null,"Warner",null,"Webster",null,"Wilmot"]
[null,null,"Estimate","Margin Of Error","Estimate","Margin Of Error","Estimate","Margin Of Error","Estimate","Margin Of Error","Estimate","Margin Of Error","Estimate","Margin Of Error","Estimate","Margin Of Error","Estimate","Margin Of Error","Estimate","Margin Of Error","Estimate","Margin Of Error","Estimate","Margin Of Error","Estimate","Margin Of Error","Estimate","Margin Of Error","Estimate","Margin Of Error","Estimate","Margin Of Error","Estimate","Margin Of Error","Estimate","Margin Of Error","Estimate","Margin Of Error","Estimate","Margin Of Error","Estimate","Margin Of Error","Estimate","Margin Of Error","Estimate","Margin Of Error","Estimate","Margin Of Error","Estimate","Margin Of Error","Estimate","Margin Of Error","Estimate","Margin Of Error","Estimate","Margin Of Error"]
[]
[null,"Total:",1270,158,1150,114,1189,328,2171,119,1179,114,1623,112,1470,143,1448,47,1057,128,1846,203,1421,226,1207,131,1771,191,1298,149,1746,116,1698,209,1402,94,1493,219,1380,127,1342,103,1745,122,1737,208,1583,163,1593,202,1446,194,1402,80,1553,126]
[null,"Housing units with a mortgage (dollars)",1737,166,1595,153,1640,162,2457,118,1560,140,1991,147,1846,164,1767,51,1346,134,2141,83,1902,151,1617,103,2012,185,1429,99,2122,100,2136,218,1725,138,1854,92,2299,196,1637,157,1981,127,2018,156,1742,130,1908,86,1751,112,1617,132,1721,115]
[null,"Housing units without a mortgage (dollars)",797,67,539,66,578,45,789,90,771,79,774,59,735,63,733,29,612,96,763,135,778,57,641,68,722,71,607,81,776,66,"1,000+","***",761,73,589,108,"1,000+","***",588,135,772,85,770,86,718,113,736,66,796,107,700,97,811,284]
[]
[]
[]
[]
[]
[]
[]
[]
[]
[]
[]
[]
[]
[]
[]
[]
[]
[]
[]
[]
[]
[]
[]
[]
[]
[]
[]
[]
[]
[null,"B25088. MEDIAN SELECTED MONTHLY OWNER COSTS (DOLLARS) BY MORTGAGE STATUS"]
[null,"Universe:  OWNER-OCCUPIED HOUSING UNITS"]
[null,"Data Set: 2005-2009 American Community Survey 5-Year Estimates"]
[]
[null,null,"Allenstown",null,"Andover",null,"Boscawen",null,"Bow",null,"Bradford",null,"Canterbury",null,"Chichester",null,"Concord",null,"Danbury",null,"Dunbarton",null,"Epsom",null,"Franklin",null,"Henniker",null,"Hill",null,"Hooksett",null,"Hopkinton",null,"Loudon",null,"Newbury",null,"New London",null,"Northfield",null,"Pembroke",null,"Pittsfield",null,"Salisbury",null,"Sutton",null,"Warner",null,"Webster",null,"Wilmot"]
[null,null,"Estimate","Margin Of Error","Estimate","Margin Of Error","Estimate","Margin Of Error","Estimate","Margin Of Error","Estimate","Margin Of Error","Estimate","Margin Of Error","Estimate","Margin Of Error","Estimate","Margin Of Error","Estimate","Margin Of Error","Estimate","Margin Of Error","Estimate","Margin Of Error","Estimate","Margin Of Error","Estimate","Margin Of Error","Estimate","Margin Of Error","Estimate","Margin Of Error","Estimate","Margin Of Error","Estimate","Margin Of Error","Estimate","Margin Of Error","Estimate","Margin Of Error","Estimate","Margin Of Error","Estimate","Margin Of Error","Estimate","Margin Of Error","Estimate","Margin Of Error","Estimate","Margin Of Error","Estimate","Margin Of Error","Estimate","Margin Of Error","Estimate","Margin Of Error"]
[null,"Median selected monthly owner costs (dollars)"]
[null,"Total:",1426,227,1147,167,1487,227,1960,145,1294,140,1541,144,1808,236,1480,65,1086,89,1813,96,1593,91,1185,67,1603,131,1116,148,1704,124,1718,222,1314,141,1563,181,1389,114,1434,130,1670,150,1480,165,1261,229,1394,370,1368,161,1334,143,1438,374]
[null,"Housing units with a mortgage (dollars)",1830,174,1450,105,1824,163,2281,152,1512,164,1813,113,2132,145,1799,51,1321,141,1931,85,1738,120,1424,92,1803,167,1393,107,2048,109,2178,156,1529,188,1797,153,1933,469,1567,43,1942,139,1828,97,1594,121,1728,145,1856,162,1516,156,1794,394]
[null,"Housing units without a mortgage (dollars)",727,85,478,52,568,148,707,62,597,152,736,41,730,68,682,31,479,51,586,104,669,49,621,68,679,174,488,63,725,54,843,69,652,37,607,109,894,111,609,68,691,71,742,102,584,54,641,35,740,50,674,100,567,175]

{"sheet":"ACS_Table_B25091","index":61,"n_rows":240,"n_cols":56,"rows_kept":240,"cut":false,"hidden":true,"merged":[]}
[null,"B25091. MORTGAGE STATUS BY SELECTED MONTHLY OWNER COSTS AS A PERCENTAGE OF HOUSEHOLD INCOME IN THE PAST 12 MONTHS "]
[null,"Universe:  OWNER-OCCUPIED HOUSING UNITS"]
[null,"Data Set: 2015-2019 American Community Survey 5-Year Estimates"]
[]
[null,null,"Allenstown",null,"Andover",null,"Boscawen",null,"Bow",null,"Bradford",null,"Canterbury",null,"Chichester",null,"Concord",null,"Danbury",null,"Dunbarton",null,"Epsom",null,"Franklin",null,"Henniker",null,"Hill",null,"Hooksett",null,"Hopkinton",null,"Loudon",null,"Newbury",null,"New London",null,"Northfield",null,"Pembroke",null,"Pittsfield",null,"Salisbury",null,"Sutton",null,"Warner",null,"Webster",null,"Wilmot"]
[null,null,"Estimate","Margin of Error","Estimate","Margin of Error","Estimate","Margin of Error","Estimate","Margin of Error","Estimate","Margin of Error","Estimate","Margin of Error","Estimate","Margin of Error","Estimate","Margin of Error","Estimate","Margin of Error","Estimate","Margin of Error","Estimate","Margin of Error","Estimate","Margin of Error","Estimate","Margin of Error","Estimate","Margin of Error","Estimate","Margin of Error","Estimate","Margin of Error","Estimate","Margin of Error","Estimate","Margin of Error","Estimate","Margin of Error","Estimate","Margin of Error","Estimate","Margin of Error","Estimate","Margin of Error","Estimate","Margin of Error","Estimate","Margin of Error","Estimate","Margin of Error","Estimate","Margin of Error","Estimate","Margin of Error"]
[null,null,1379,114,900,95,1086,143,2427,129,574,66,892,67,882,80,9252,428,439,66,878,53,1505,107,2480,205,1356,138,343,47,3968,225,1950,130,1759,181,846,86,1256,148,1390,132,2108,223,1076,143,515,64,679,82,757,99,701,70,555,76]
[null,"Housing units with a mortgage:",773,136,644,81,850,150,1733,134,380,52,557,74,594,74,6247,336,253,52,609,60,901,130,1531,211,860,118,219,40,2677,231,1127,164,1008,181,518,85,712,111,811,122,1466,202,758,116,389,55,477,65,494,68,425,62,385,65]
[null,"Less than 10.0 percent",0,11,25,17,21,22,83,51,14,10,10,11,28,18,357,91,10,8,48,20,73,75,103,63,44,41,11,10,115,63,78,66,48,53,72,45,41,27,33,31,108,61,26,25,12,11,35,29,15,14,12,8,7,7]
[null,"10.0 to 14.9 percent",114,54,139,63,112,57,330,86,53,27,76,33,71,31,819,145,14,10,124,51,162,68,114,63,135,79,17,11,384,117,66,59,59,52,58,41,63,42,93,52,253,104,47,34,62,30,57,35,17,14,74,29,76,27]
[null,"15.0 to 19.9 percent",123,66,107,42,146,72,430,121,67,29,131,43,144,54,1610,209,49,24,174,45,118,78,262,108,186,94,80,28,670,142,230,102,203,106,145,42,146,55,152,70,371,124,131,80,85,33,122,43,122,36,79,25,96,36]
[null,"20.0 to 24.9 percent",99,42,98,41,253,102,365,96,61,26,138,59,121,40,1290,248,35,25,53,25,246,97,177,83,178,92,40,21,540,149,198,98,192,94,107,43,171,76,212,84,248,98,101,59,59,21,94,38,91,36,59,26,15,11]
[null,"25.0 to 29.9 percent",37,31,121,50,49,38,145,58,32,17,25,17,65,31,547,115,41,23,91,32,72,45,340,140,145,74,37,19,302,115,195,77,197,94,62,35,66,37,137,66,152,82,86,61,51,24,82,48,72,35,53,30,26,15]
[null,"30.0 to 34.9 percent",161,97,43,23,72,50,156,77,28,22,64,36,27,21,524,154,40,24,37,23,58,40,55,36,43,37,8,7,145,79,135,72,150,110,11,11,67,39,48,45,144,95,129,84,21,13,16,11,69,46,46,26,53,27]
[null,"35.0 to 39.9 percent",90,52,34,20,25,29,64,39,17,12,6,11,39,21,333,95,4,5,28,19,91,57,127,69,35,34,7,7,122,72,81,59,7,15,16,14,0,11,13,16,55,51,79,45,8,8,17,13,34,25,32,19,23,17]
[null,"40.0 to 49.9 percent",44,39,11,11,70,48,71,45,29,21,47,39,39,34,305,106,22,12,18,14,20,22,131,70,39,41,12,10,154,61,80,69,11,17,11,11,33,30,46,39,70,79,66,51,54,31,34,26,19,13,28,15,26,22]
[null,"50.0 percent or more",89,61,66,44,89,76,89,49,79,28,54,34,54,25,453,124,38,20,36,19,61,37,202,105,36,36,7,8,245,113,64,56,117,68,36,21,117,55,77,58,65,52,93,55,37,17,20,15,55,33,42,20,50,27]
[null,"Not computed",16,25,0,11,13,20,0,16,0,11,6,10,6,9,9,14,0,11,0,11,0,11,20,23,19,27,0,11,0,18,0,16,24,38,0,11,8,13,0,11,0,16,0,11,0,11,0,11,0,11,0,11,13,23]
[null,"Housing units without a mortgage:",606,121,256,79,236,73,694,106,194,48,335,60,288,65,3005,268,186,46,269,49,604,115,949,158,496,127,124,37,1291,185,823,166,751,201,328,70,544,123,579,128,642,176,318,95,126,37,202,65,263,57,276,57,170,49]
[null,"Less than 10.0 percent",105,68,45,31,42,34,305,94,65,32,64,35,121,54,790,138,68,33,114,31,244,103,190,78,128,62,35,20,335,99,288,124,197,119,158,61,233,85,247,87,107,55,45,29,28,16,56,30,59,33,87,28,51,30]
[null,"10.0 to 14.9 percent",98,47,47,30,16,20,100,41,27,15,81,34,36,25,587,118,47,26,75,29,114,41,142,60,81,62,32,20,373,136,174,95,197,95,78,35,56,40,167,82,237,129,111,67,26,21,34,28,51,34,86,39,21,19]
[null,"15.0 to 19.9 percent",126,73,64,46,43,32,54,35,19,13,80,30,6,9,505,120,14,18,15,11,63,49,186,87,76,51,32,23,121,53,48,44,111,89,36,23,27,24,57,47,100,65,81,43,34,13,39,24,66,27,46,19,36,20]
[null,"20.0 to 24.9 percent",27,25,23,18,9,14,80,45,12,10,26,19,34,21,188,68,22,14,11,10,47,38,119,73,33,30,11,9,138,59,71,59,34,38,6,9,48,32,30,23,79,88,9,15,7,7,11,17,23,15,9,8,30,19]
[null,"25.0 to 29.9 percent",41,33,40,38,31,30,44,31,31,30,12,14,44,26,134,59,18,22,26,17,0,11,76,49,40,42,0,11,80,68,91,67,119,90,23,16,52,32,9,15,29,34,55,35,4,6,17,23,23,15,15,13,4,6]
[null,"30.0 to 34.9 percent",48,36,6,10,36,30,12,13,10,9,0,11,12,14,161,97,3,4,5,7,41,38,53,37,8,12,4,6,53,56,12,19,47,48,6,8,30,30,24,27,17,26,9,14,13,21,0,11,10,10,10,9,0,11]
[null,"35.0 to 39.9 percent",26,34,11,12,23,25,18,19,7,7,12,18,18,15,195,87,4,6,11,10,16,17,23,24,0,11,3,5,36,27,36,44,23,38,11,11,8,13,27,39,14,23,8,12,0,11,0,11,0,11,6,7,3,4]
[null,"40.0 to 49.9 percent",36,27,16,13,18,21,17,19,4,5,23,18,8,8,134,68,7,8,5,7,46,43,8,13,0,11,3,6,43,40,43,50,23,38,0,11,39,34,10,17,11,19,0,11,0,11,41,34,5,7,3,5,10,15]
[null,"50.0 percent or more",80,60,4,6,18,20,55,33,19,14,31,20,9,11,251,72,3,6,4,5,33,26,130,71,130,80,4,5,112,62,60,58,0,16,4,7,51,31,8,13,48,44,0,11,11,9,4,6,26,15,14,12,15,10]
[null,"Not computed",19,21,0,11,0,11,9,14,0,11,6,9,0,11,60,42,0,11,3,7,0,11,22,25,0,11,0,11,0,18,0,16,0,16,6,9,0,11,0,11,0,16,0,11,3,5,0,11,0,11,0,11,0,11]
[]
[]
[]
[null,"Calculated B25091. MORTGAGE STATUS BY SELECTED MONTHLY OWNER COSTS AS A PERCENTAGE OF HOUSEHOLD INCOME IN THE PAST 12 MONTHS "]
[null,"Universe:  OWNER-OCCUPIED HOUSING UNITS"]
[null,"Data Set: 2015-2019 American Community Survey 5-Year Estimates"]
[]
[null,null,"Allenstown",null,"Andover",null,"Boscawen",null,"Bow",null,"Bradford",null,"Canterbury",null,"Chichester",null,"Concord",null,"Danbury",null,"Dunbarton",null,"Epsom",null,"Franklin",null,"Henniker",null,"Hill",null,"Hooksett",null,"Hopkinton",null,"Loudon",null,"Newbury",null,"New London",null,"Northfield",null,"Pembroke",null,"Pittsfield",null,"Salisbury",null,"Sutton",null,"Warner",null,"Webster",null,"Wilmot"]
[null,null,"Estimate","Margin of Error","Estimate","Margin of Error","Estimate","Margin of Error","Estimate","Margin of Error","Estimate","Margin of Error","Estimate","Margin of Error","Estimate","Margin of Error","Estimate","Margin of Error","Estimate","Margin of Error","Estimate","Margin of Error","Estimate","Margin of Error","Estimate","Margin of Error","Estimate","Margin of Error","Estimate","Margin of Error","Estimate","Margin of Error","Estimate","Margin of Error","Estimate","Margin of Error","Estimate","Margin of Error","Estimate","Margin of Error","Estimate","Margin of Error","Estimate","Margin of Error","Estimate","Margin of Error","Estimate","Margin of Error","Estimate","Margin of Error","Estimate","Margin of Error","Estimate","Margin of Error","Estimate","Margin of Error"]
[null,"Total:",1163,163,832,72,978,136,2413,132,524,68,838,59,886,73,9353,394,437,61,899,77,1542,85,2121,191,1004,124,422,61,4476,230,1885,126,1662,130,773,93,1344,132,1304,161,2007,178,1015,126,486,58,670,86,867,74,648,57,485,63]
[null,"Less than 10.0 percent",72,43.56604182158393,183,68.47627326307996,148,82.346827504160714,313,114.0175425099138,41,24.698178070456937,88,31.906112267087632,95,49.040799340956916,753,138.94603268895446,45,23.769728648009426,105,54.78138369920935,108,62.177166226839255,190,69.856996786291916,104,54.42425929675111,48,25.80697580112788,252,98.005101908012932,177,77.935871073594853,170,79.93122043357026,60,34,225,68.680419334771102,151,61,151,94.873600121424715,69,47.010637094172637,28,19.313207915827967,72,31.400636936215164,124,54.037024344425184,50,19.416487838947599,18,13.038404810405298]
[null,"10.0 to 14.9 percent",73,47.201694884823787,109,46.227697325304881,122,69.641941385920603,244,81.271151093115449,86,37.20215047547655,142,46.227697325304881,91,32.526911934581186,1371,208.75104790156144,48,24.839484696748443,106,38.183766184073569,243,89.888820216976924,192,73.661387442811588,130,71.06335201775947,34,15.811388300841896,574,156.34896865665601,306,120.93386622447825,276,94.175368329515976,41,21.470910553583888,138,58.523499553598128,235,92.195444572928878,258,92.455394650609762,44,31.016124838541646,57,25.238858928247925,115,45.254833995939045,135,48.60041152089147,74,29.966648127543394,80,33.941125496954278]
[null,"15.0 to 19.9 percent",187,62.649820430708338,109,39.11521443121589,160,61.522353661088097,419,104.38869670610895,65,26.92582403567252,153,47.853944456021594,134,45.486261662176638,1591,208.39625716408634,58,31.32091952673165,118,37.20215047547655,270,99.085821387320593,287,94.826156729037578,169,80.324342512092812,37,20.248456731316587,648,165.61400906928134,222,83.486525858967212,242,93.295230317524812,118,48.010415536631214,154,63.126856408346519,120,58.180752831155424,246,93.477269964414347,126,59.481089431852205,69,24.186773244895647,97,39.698866482558415,118,49.819674828324601,61,23.409399821439251,48,23.430749027719962]
[null,"20.0 to 24.9 percent",267,109.65856099730654,77,36.235341863986875,136,70.576199954375554,382,120.81390648431164,49,20.615528128088304,169,48.764741360946438,112,37.443290453698111,1396,195.13328778042973,96,38.013155617496423,157,48.507731342539614,229,71.840100222647237,331,114.94781424629178,140,75.927597090912869,86,34.885527085024819,817,202.60799589354809,261,105.38026380684383,194,75.769386958058462,144,46.400431032480725,259,78.568441501661468,226,90.553851381374173,392,149.09057649630307,117,65.80273550544841,74,24.166091947189145,100,36.878177829171548,120,49.929950931279713,114,34.539832078341085,67,27.313000567495326]
[null,"25.0 to 29.9 percent",147,55.154328932550705,121,47.127486671792717,54,34.014702703389901,424,107.93516572461452,87,32.280024783137947,35,20.248456731316587,120,44.944410108488462,1202,177.00282483621552,33,20.248456731316587,155,63.953107821277925,138,67.424031324150292,214,85.796270315206598,192,75.690157880665041,53,21.095023109728988,663,194.36306233438492,331,133.5440002396214,212,95.210293561148106,131,47.127486671792717,122,54.918120870983927,196,75.690157880665041,237,93.059120993054734,191,82.28000972289685,60,27.294688127912362,74,37.363083384538811,112,45.453272709454048,113,41.303752856126764,84,36.715119501371639]
[null,"30.0 to 34.9 percent",80,46.097722286464439,77,49.193495504995376,62,54.644304369257,140,74.148499647666512,48,19.723082923316021,58,31.016124838541646,51,30.083217912982647,728,176.08236708995025,30,20.248456731316587,96,33.526109228480422,140,70.455659815234142,293,99.724620831567975,64,54.12947441089743,45,24.738633753705962,504,132.98120167903431,252,118.92854997854805,80,44.384682042344295,41,24.596747752497688,120,63.158530698552511,43,45.276925690687087,192,123.2233744059949,110,56.797887284651708,42,28.284271247461902,35,19.104973174542799,60,29.732137494637012,59,23.769728648009426,52,43.185645763378368]
[null,"35.0 to 39.9 percent",55,39.05124837953327,36,24.596747752497688,65,40.853396431630991,68,55.362442142665635,37,23.021728866442675,41,27.856776554368238,84,47.539457296018853,626,163.98170629676957,38,19.697715603592208,21,17.804493814764857,89,65.069193939989759,182,86.377080293327808,48,50.219518117958877,15,10.816653826391969,245,109.07795377618706,103,56.320511361314892,109,57.9396237474839,56,36.687872655688281,74,40.607881008493905,87,51.623637996561229,63,48.918299234540036,53,36.138621999185304,50,28.442925306655784,49,37.576588456111871,17,14.142135623730951,47,22.803508501982758,25,18.681541692269406]
[null,"40.0 to 49.9 percent",71,50.931326312987373,52,29.154759474226502,84,57.974132162542979,199,82.764726786234249,38,26.172504656604801,37,24.351591323771842,81,52.630789467763066,626,135.9779393872403,45,24.351591323771842,45,35.735136770411273,114,61.684682053164543,156,65,100,51.86520991955976,51,35.735136770411273,304,127.4401820463232,107,65,182,81.884064383737083,76,46.324939287601879,76,42.5205832509386,91,45.354161881794269,232,107.33592129385204,141,58.694122363316758,43,28.231188426986208,45,30.805843601498726,84,50.219518117958877,71,25.709920264364882,49,26.248809496813376]
[null,"50.0 percent or more",211,84.899941107164494,40,22.627416997969522,147,81.412529748190479,218,89.050547443572739,73,31.304951684997057,115,47.434164902525687,118,47.010637094172637,1030,228.46443924602357,34,19.313207915827967,87,32.557641192199412,211,95.801878895979911,259,96.30160954002794,33,27.313000567495326,53,25.709920264364882,463,156.46724896923317,126,68.622153857191051,174,75.471849056452825,99,49.648766349225639,165,60,155,74.94664769020693,222,111.13955191559843,164,72.801098892805186,63,30.265491900843113,83,39.698866482558415,97,39.357337308308857,51,21.095023109728988,58,28.42534080710379]
[null,"Not computed",0,15.556349186104045,28,30.805843601498726,0,15.556349186104045,6,18.357559750685819,0,15.556349186104045,0,15.556349186104045,0,15.556349186104045,30,28.319604517012593,10,18.601075237738275,9,17.029386365926403,0,15.556349186104045,17,30.528675044947494,24,40.521599178709621,0,15.556349186104045,6,20.591260281974002,0,22.627416997969522,23,31.384709652950431,7,14.866068747318506,11,19.416487838947599,0,15.556349186104045,14,26.40075756488817,0,15.556349186104045,0,15.556349186104045,0,15.556349186104045,0,15.556349186104045,8,17.029386365926403,4,12.083045973594572]
[]
[]
[]
[]
[null,"Calculated MONTHLY OWNER COSTS AS A PERCENTAGE OF HOUSEHOLD INCOME IN THE PAST 12 MONTHS "]
[null,"Universe:  OWNER-OCCUPIED HOUSING UNITS"]
[null,"Data Set: 2015-2019 American Community Survey 5-Year Estimates"]
[null,null,"Allenstown",null,"Andover",null,"Boscawen",null,"Bow",null,"Bradford",null,"Canterbury",null,"Chichester",null,"Concord",null,"Danbury",null,"Dunbarton",null,"Epsom",null,"Franklin",null,"Henniker",null,"Hill",null,"Hooksett",null,"Hopkinton",null,"Loudon",null,"Newbury",null,"New London",null,"Northfield",null,"Pembroke",null,"Pittsfield",null,"Salisbury",null,"Sutton",null,"Warner",null,"Webster",null,"Wilmot"]
[null,null,"Estimate","Margin of Error","Estimate","Margin of Error","Estimate","Margin of Error","Estimate","Margin of Error","Estimate","Margin of Error","Estimate","Margin of Error","Estimate","Margin of Error","Estimate","Margin of Error","Estimate","Margin of Error","Estimate","Margin of Error","Estimate","Margin of Error","Estimate","Margin of Error","Estimate","Margin of Error","Estimate","Margin of Error","Estimate","Margin of Error","Estimate","Margin of Error","Estimate","Margin of Error","Estimate","Margin of Error","Estimate","Margin of Error","Estimate","Margin of Error","Estimate","Margin of Error","Estimate","Margin of Error","Estimate","Margin of Error","Estimate","Margin of Error","Estimate","Margin of Error","Estimate","Margin of Error","Estimate","Margin of Error"]
[null,"Total:",{"$f":"C39","v":1163},{"$f":"D39","v":163},832,72,978,136,2413,132,524,68,838,59,886,73,9353,394,437,61,899,77,1542,85,{"$f":"Y39","v":2121},191,1004,124,422,61,4476,230,1885,126,1662,130,773,93,1344,132,{"$f":"AO39","v":1304},161,2007,178,1015,126,486,58,670,86,867,74,648,57,485,63]
[null,"Less than 20% of HH Income",{"$f":"C40+C41+C42","v":332},{"$f":"SQRT((D40^2)+(D41^2)+(D42^2))","v":89.727364833700534},{"$f":"E40+E41+E42","v":401},{"$f":"SQRT((F40^2)+(F41^2)+(F42^2))","v":91.411159056211503},{"$f":"G40+G41+G42","v":430},{"$f":"SQRT((H40^2)+(H41^2)+(H42^2))","v":124.16118556135005},{"$f":"I40+I41+I42","v":976},{"$f":"SQRT((J40^2)+(J41^2)+(J42^2))","v":174.64821785520743},{"$f":"K40+K41+K42","v":192},{"$f":"SQRT((L40^2)+(L41^2)+(L42^2))","v":52.14403129793476},{"$f":"M40+M41+M42","v":383},{"$f":"SQRT((N40^2)+(N41^2)+(N42^2))","v":73.79024325749306},{"$f":"O40+O41+O42","v":320},{"$f":"SQRT((P40^2)+(P41^2)+(P42^2))","v":74.377415927148206},{"$f":"Q40+Q41+Q42","v":3715},{"$f":"SQRT((R40^2)+(R41^2)+(R42^2))","v":326.05521004885048},{"$f":"S40+S41+S42","v":151},{"$f":"SQRT((T40^2)+(T41^2)+(T42^2))","v":46.508063816933941},{"$f":"U40+U41+U42","v":329},{"$f":"SQRT((V40^2)+(V41^2)+(V42^2))","v":76.439518575145414},{"$f":"W40+W41+W42","v":621},{"$f":"SQRT((X40^2)+(X41^2)+(X42^2))","v":147.52626884728022},{"$f":"Y40+Y41+Y42","v":669},{"$f":"SQRT((Z40^2)+(Z41^2)+(Z42^2))","v":138.91724155050014},{"$f":"AA40+AA41+AA42","v":403},{"$f":"SQRT((AB40^2)+(AB41^2)+(AB42^2))","v":120.26637102698326},{"$f":"AC40+AC41+AC42","v":119},{"$f":"SQRT((AD40^2)+(AD41^2)+(AD42^2))","v":36.414282912066248},{"$f":"AE40+AE41+AE42","v":1474},{"$f":"SQRT((AF40^2)+(AF41^2)+(AF42^2))","v":247.94757510409332},{"$f":"AG40+AG41+AG42","v":705},{"$f":"SQRT((AH40^2)+(AH41^2)+(AH42^2))","v":166.34001322592229},{"$f":"AI40+AI41+AI42","v":688},{"$f":"SQRT((AJ40^2)+(AJ41^2)+(AJ42^2))","v":154.79664079042541},{"$f":"AK40+AK41+AK42","v":219},{"$f":"SQRT((AL40^2)+(AL41^2)+(AL42^2))","v":62.625873247404705},{"$f":"AM40+AM41+AM42","v":517},{"$f":"SQRT((AN40^2)+(AN41^2)+(AN42^2))","v":110.12265888544464},{"$f":"AO40+AO41+AO42","v":506},{"$f":"SQRT((AP40^2)+(AP41^2)+(AP42^2))","v":124.92397688194208},{"$f":"AQ40+AQ41+AQ42","v":655},{"$f":"SQRT((AR40^2)+(AR41^2)+(AR42^2))","v":162.13266173106516},{"$f":"AS40+AS41+AS42","v":239},{"$f":"SQRT((AT40^2)+(AT41^2)+(AT42^2))","v":81.914589665089579},{"$f":"AU40+AU41+AU42","v":154},{"$f":"SQRT((AV40^2)+(AV41^2)+(AV42^2))","v":39.937451095431719},{"$f":"AW40+AW41+AW42","v":284},{"$f":"SQRT((AX40^2)+(AX41^2)+(AX42^2))","v":67.896980787071826},{"$f":"AY40+AY41+AY42","v":377},{"$f":"SQRT((AZ40^2)+(AZ41^2)+(AZ42^2))","v":88.11356308764276},{"$f":"BA40+BA41+BA42","v":185},{"$f":"SQRT((BB40^2)+(BB41^2)+(BB42^2))","v":42.696604080418389},{"$f":"BC40+BC41+BC42","v":146},{"$f":"SQRT((BD40^2)+(BD41^2)+(BD42^2))","v":43.255057507764334}]
[null," 20% to 29.9% of HH Income",{"$f":"C43+C44","v":414},{"$f":"SQRT((D43^2)+(D44^2))","v":122.74770873625299},{"$f":"E43+E44","v":198},{"$f":"SQRT((F43^2)+(F44^2))","v":59.447455790807396},{"$f":"G43+G44","v":190},{"$f":"SQRT((H43^2)+(H44^2))","v":78.345389143203576},{"$f":"I43+I44","v":806},{"$f":"SQRT((J43^2)+(J44^2))","v":162.00617272190587},{"$f":"K43+K44","v":136},{"$f":"SQRT((L43^2)+(L44^2))","v":38.301436004411116},{"$f":"M43+M44","v":204},{"$f":"SQRT((N43^2)+(N44^2))","v":52.801515129776348},{"$f":"O43+O44","v":232},{"$f":"SQRT((P43^2)+(P44^2))","v":58.497863208838666},{"$f":"Q43+Q44","v":2598},{"$f":"SQRT((R43^2)+(R44^2))","v":263.45208292970472},{"$f":"S43+S44","v":129},{"$f":"SQRT((T43^2)+(T44^2))","v":43.069710934716056},{"$f":"U43+U44","v":312},{"$f":"SQRT((V43^2)+(V44^2))","v":80.268300094121841},{"$f":"W43+W44","v":367},{"$f":"SQRT((X43^2)+(X44^2))","v":98.524108724717735},{"$f":"Y43+Y44","v":545},{"$f":"SQRT((Z43^2)+(Z44^2))","v":143.43639705458304},{"$f":"AA43+AA44","v":332},{"$f":"SQRT((AB43^2)+(AB44^2))","v":107.21007415350481},{"$f":"AC43+AC44","v":139},{"$f":"SQRT((AD43^2)+(AD44^2))","v":40.767634221279017},{"$f":"AE43+AE44","v":1480},{"$f":"SQRT((AF43^2)+(AF44^2))","v":280.76146459227624},{"$f":"AG43+AG44","v":592},{"$f":"SQRT((AH43^2)+(AH44^2))","v":170.11466721009097},{"$f":"AI43+AI44","v":406},{"$f":"SQRT((AJ43^2)+(AJ44^2))","v":121.67990795525776},{"$f":"AK43+AK44","v":275},{"$f":"SQRT((AL43^2)+(AL44^2))","v":66.136223055145805},{"$f":"AM43+AM44","v":381},{"$f":"SQRT((AN43^2)+(AN44^2))","v":95.859271852022744},{"$f":"AO43+AO44","v":422},{"$f":"SQRT((AP43^2)+(AP44^2))","v":118.02118453904791},{"$f":"AQ43+AQ44","v":629},{"$f":"SQRT((AR43^2)+(AR44^2))","v":175.74982219052171},{"$f":"AS43+AS44","v":308},{"$f":"SQRT((AT43^2)+(AT44^2))","v":105.35653752852738},{"$f":"AU43+AU44","v":134},{"$f":"SQRT((AV43^2)+(AV44^2))","v":36.455452267116371},{"$f":"AW43+AW44","v":174},{"$f":"SQRT((AX43^2)+(AX44^2))","v":52.497618993626752},{"$f":"AY43+AY44","v":232},{"$f":"SQRT((AZ43^2)+(AZ44^2))","v":67.520367297579185},{"$f":"BA43+BA44","v":227},{"$f":"SQRT((BB43^2)+(BB44^2))","v":53.842362503887209},{"$f":"BC43+BC44","v":151},{"$f":"SQRT((BD43^2)+(BD44^2))","v":45.760244754590204}]
[null," Less Than 30% of HH Income",{"$f":"C40+C41+C42+C43+C44","v":746},{"$f":"SQRT((D40^2)+(D41^2)+(D42^2)+(D43^2)+(D44^2))","v":152.04604565722846},{"$f":"E40+E41+E42+E43+E44","v":599},{"$f":"SQRT((F40^2)+(F41^2)+(F42^2)+(F43^2)+(F44^2))","v":109.04127658827183},{"$f":"G40+G41+G42+G43+G44","v":620},{"$f":"SQRT((H40^2)+(H41^2)+(H42^2)+(H43^2)+(H44^2))","v":146.81280598094978},{"$f":"I40+I41+I42+I43+I44","v":1782},{"$f":"SQRT((J40^2)+(J41^2)+(J42^2)+(J43^2)+(J44^2))","v":238.21838719964504},{"$f":"K40+K41+K42+K43+K44","v":328},{"$f":"SQRT((L40^2)+(L41^2)+(L42^2)+(L43^2)+(L44^2))","v":64.69930447848725},{"$f":"M40+M41+M42+M43+M44","v":587},{"$f":"SQRT((N40^2)+(N41^2)+(N42^2)+(N43^2)+(N44^2))","v":90.735880444287304},{"$f":"O40+O41+O42+O43+O44","v":552},{"$f":"SQRT((P40^2)+(P41^2)+(P42^2)+(P43^2)+(P44^2))","v":94.62557793746889},{"$f":"Q40+Q41+Q42+Q43+Q44","v":6313},{"$f":"SQRT((R40^2)+(R41^2)+(R42^2)+(R43^2)+(R44^2))","v":419.18850175070406},{"$f":"S40+S41+S42+S43+S44","v":280},{"$f":"SQRT((T40^2)+(T41^2)+(T42^2)+(T43^2)+(T44^2))","v":63.387695966961914},{"$f":"U40+U41+U42+U43+U44","v":641},{"$f":"SQRT((V40^2)+(V41^2)+(V42^2)+(V43^2)+(V44^2))","v":110.84223021935277},{"$f":"W40+W41+W42+W43+W44","v":988},{"$f":"SQRT((X40^2)+(X41^2)+(X42^2)+(X43^2)+(X44^2))","v":177.40067643613989},{"$f":"Y40+Y41+Y42+Y43+Y44","v":1214},{"$f":"SQRT((Z40^2)+(Z41^2)+(Z42^2)+(Z43^2)+(Z44^2))","v":199.67974358957895},{"$f":"AA40+AA41+AA42+AA43+AA44","v":735},{"$f":"SQRT((AB40^2)+(AB41^2)+(AB42^2)+(AB43^2)+(AB44^2))","v":161.11486585663039},{"$f":"AC40+AC41+AC42+AC43+AC44","v":258},{"$f":"SQRT((AD40^2)+(AD41^2)+(AD42^2)+(AD43^2)+(AD44^2))","v":54.662601474865795},{"$f":"AE40+AE41+AE42+AE43+AE44","v":2954},{"$f":"SQRT((AF40^2)+(AF41^2)+(AF42^2)+(AF43^2)+(AF44^2))","v":374.57309033084584},{"$f":"AG40+AG41+AG42+AG43+AG44","v":1297},{"$f":"SQRT((AH40^2)+(AH41^2)+(AH42^2)+(AH43^2)+(AH44^2))","v":237.92435772740882},{"$f":"AI40+AI41+AI42+AI43+AI44","v":1094},{"$f":"SQRT((AJ40^2)+(AJ41^2)+(AJ42^2)+(AJ43^2)+(AJ44^2))","v":196.89591158782349},{"$f":"AK40+AK41+AK42+AK43+AK44","v":494},{"$f":"SQRT((AL40^2)+(AL41^2)+(AL42^2)+(AL43^2)+(AL44^2))","v":91.082380293885606},{"$f":"AM40+AM41+AM42+AM43+AM44","v":898},{"$f":"SQRT((AN40^2)+(AN41^2)+(AN42^2)+(AN43^2)+(AN44^2))","v":146},{"$f":"AO40+AO41+AO42+AO43+AO44","v":928},{"$f":"SQRT((AP40^2)+(AP41^2)+(AP42^2)+(AP43^2)+(AP44^2))","v":171.85749910900017},{"$f":"AQ40+AQ41+AQ42+AQ43+AQ44","v":1284},{"$f":"SQRT((AR40^2)+(AR41^2)+(AR42^2)+(AR43^2)+(AR44^2))","v":239.11294402436687},{"$f":"AS40+AS41+AS42+AS43+AS44","v":547},{"$f":"SQRT((AT40^2)+(AT41^2)+(AT42^2)+(AT43^2)+(AT44^2))","v":133.45411196362591},{"$f":"AU40+AU41+AU42+AU43+AU44","v":288},{"$f":"SQRT((AV40^2)+(AV41^2)+(AV42^2)+(AV43^2)+(AV44^2))","v":54.0740233383831},{"$f":"AW40+AW41+AW42+AW43+AW44","v":458},{"$f":"SQRT((AX40^2)+(AX41^2)+(AX42^2)+(AX43^2)+(AX44^2))","v":85.825404164501322},{"$f":"AY40+AY41+AY42+AY43+AY44","v":609},{"$f":"SQRT((AZ40^2)+(AZ41^2)+(AZ42^2)+(AZ43^2)+(AZ44^2))","v":111.00900864344298},{"$f":"BA40+BA41+BA42+BA43+BA44","v":412},{"$f":"SQRT((BB40^2)+(BB41^2)+(BB42^2)+(BB43^2)+(BB44^2))","v":68.716810170437924},{"$f":"BC40+BC41+BC42+BC43+BC44","v":297},{"$f":"SQRT((BD40^2)+(BD41^2)+(BD42^2)+(BD43^2)+(BD44^2))","v":62.968245965724655}]
[null," 30% or More of HH Income",{"$f":"C45+C46+C47+C48","v":417},{"$f":"SQRT((D45^2)+(D46^2)+(D47^2)+(D48^2))","v":115.98275733918383},{"$f":"E45+E46+E47+E48","v":205},{"$f":"SQRT((F45^2)+(F46^2)+(F47^2)+(F48^2))","v":66.234432133143571},{"$f":"G45+G46+G47+G48","v":358},{"$f":"SQRT((H45^2)+(H46^2)+(H47^2)+(H48^2))","v":121.01239605924675},{"$f":"I45+I46+I47+I48","v":625},{"$f":"SQRT((J45^2)+(J46^2)+(J47^2)+(J48^2))","v":152.78416148279246},{"$f":"K45+K46+K47+K48","v":196},{"$f":"SQRT((L45^2)+(L46^2)+(L47^2)+(L48^2))","v":50.833060108555337},{"$f":"M45+M46+M47+M48","v":251},{"$f":"SQRT((N45^2)+(N46^2)+(N47^2)+(N48^2))","v":67.683085036070864},{"$f":"O45+O46+O47+O48","v":334},{"$f":"SQRT((P45^2)+(P46^2)+(P47^2)+(P48^2))","v":90.249653738947941},{"$f":"Q45+Q46+Q47+Q48","v":3010},{"$f":"SQRT((R45^2)+(R46^2)+(R47^2)+(R48^2))","v":358.58192927140095},{"$f":"S45+S46+S47+S48","v":147},{"$f":"SQRT((T45^2)+(T46^2)+(T47^2)+(T48^2))","v":42},{"$f":"U45+U46+U47+U48","v":249},{"$f":"SQRT((V45^2)+(V46^2)+(V47^2)+(V48^2))","v":61.465437442517235},{"$f":"W45+W46+W47+W48","v":554},{"$f":"SQRT((X45^2)+(X46^2)+(X47^2)+(X48^2))","v":148.93287078412206},{"$f":"Y45+Y46+Y47+Y48","v":890},{"$f":"SQRT((Z45^2)+(Z46^2)+(Z47^2)+(Z48^2))","v":175.79817974029197},{"$f":"AA45+AA46+AA47+AA48","v":245},{"$f":"SQRT((AB45^2)+(AB46^2)+(AB47^2)+(AB48^2))","v":94.276189995141408},{"$f":"AC45+AC46+AC47+AC48","v":164},{"$f":"SQRT((AD45^2)+(AD46^2)+(AD47^2)+(AD48^2))","v":51.643005334701421},{"$f":"AE45+AE46+AE47+AE48","v":1516},{"$f":"SQRT((AF45^2)+(AF46^2)+(AF47^2)+(AF48^2))","v":265.15090043218788},{"$f":"AG45+AG46+AG47+AG48","v":588},{"$f":"SQRT((AH45^2)+(AH46^2)+(AH47^2)+(AH48^2))","v":162.01851746019651},{"$f":"AI45+AI46+AI47+AI48","v":545},{"$f":"SQRT((AJ45^2)+(AJ46^2)+(AJ47^2)+(AJ48^2))","v":133.14653581674591},{"$f":"AK45+AK46+AK47+AK48","v":272},{"$f":"SQRT((AL45^2)+(AL46^2)+(AL47^2)+(AL48^2))","v":81.006172604314543},{"$f":"AM45+AM46+AM47+AM48","v":435},{"$f":"SQRT((AN45^2)+(AN46^2)+(AN47^2)+(AN48^2))","v":105.09995242624994},{"$f":"AO45+AO46+AO47+AO48","v":376},{"$f":"SQRT((AP45^2)+(AP46^2)+(AP47^2)+(AP48^2))","v":111.30588483993108},{"$f":"AQ45+AQ46+AQ47+AQ48","v":709},{"$f":"SQRT((AR45^2)+(AR46^2)+(AR47^2)+(AR48^2))","v":203.59273071502332},{"$f":"AS45+AS46+AS47+AS48","v":468},{"$f":"SQRT((AT45^2)+(AT46^2)+(AT47^2)+(AT48^2))","v":115.22586515188333},{"$f":"AU45+AU46+AU47+AU48","v":198},{"$f":"SQRT((AV45^2)+(AV46^2)+(AV47^2)+(AV48^2))","v":57.636793803958248},{"$f":"AW45+AW46+AW47+AW48","v":212},{"$f":"SQRT((AX45^2)+(AX46^2)+(AX47^2)+(AX48^2))","v":65.589633327226338},{"$f":"AY45+AY46+AY47+AY48","v":258},{"$f":"SQRT((AZ45^2)+(AZ46^2)+(AZ47^2)+(AZ48^2))","v":71.798328671355577},{"$f":"BA45+BA46+BA47+BA48","v":228},{"$f":"SQRT((BB45^2)+(BB46^2)+(BB47^2)+(BB48^2))","v":46.808118953873802},{"$f":"BC45+BC46+BC47+BC48","v":184},{"$f":"SQRT((BD45^2)+(BD46^2)+(BD47^2)+(BD48^2))","v":60.917977642072131}]
[null," 30% to 34.9% of HH Income",{"$f":"C45","v":80},{"$f":"D45","v":46.097722286464439},{"$f":"E45","v":77},49.193495504995376,62,54.644304369257,140,74.148499647666512,48,19.723082923316021,58,31.016124838541646,51,30.083217912982647,728,176.08236708995025,30,20.248456731316587,96,33.526109228480422,140,70.455659815234142,{"$f":"Y45","v":293},99.724620831567975,64,54.12947441089743,45,24.738633753705962,504,132.98120167903431,252,118.92854997854805,80,44.384682042344295,41,24.596747752497688,120,63.158530698552511,{"$f":"AO45","v":43},45.276925690687087,192,123.2233744059949,110,56.797887284651708,42,28.284271247461902,35,19.104973174542799,60,29.732137494637012,59,23.769728648009426,52,43.185645763378368]
[null," Less Than 35% of HH Income",{"$f":"C40+C41+C42+C43+C44+C45","v":826},{"$f":"SQRT((D40^2)+(D41^2)+(D42^2)+(D43^2)+(D44^2)+(D45^2))","v":158.88045820679145},{"$f":"E40+E41+E42+E43+E44+E45","v":676},{"$f":"SQRT((F40^2)+(F41^2)+(F42^2)+(F43^2)+(F44^2)+(F45^2))","v":119.62441222426131},{"$f":"G40+G41+G42+G43+G44+G45","v":682},{"$f":"SQRT((H40^2)+(H41^2)+(H42^2)+(H43^2)+(H44^2)+(H45^2))","v":156.65248162732692},{"$f":"I40+I41+I42+I43+I44+I45","v":1922},{"$f":"SQRT((J40^2)+(J41^2)+(J42^2)+(J43^2)+(J44^2)+(J45^2))","v":249.49148282055643},{"$f":"K40+K41+K42+K43+K44+K45","v":376},{"$f":"SQRT((L40^2)+(L41^2)+(L42^2)+(L43^2)+(L44^2)+(L45^2))","v":67.638746292343413},{"$f":"M40+M41+M42+M43+M44+M45","v":645},{"$f":"SQRT((N40^2)+(N41^2)+(N42^2)+(N43^2)+(N44^2)+(N45^2))","v":95.890562622189265},{"$f":"O40+O41+O42+O43+O44+O45","v":603},{"$f":"SQRT((P40^2)+(P41^2)+(P42^2)+(P43^2)+(P44^2)+(P45^2))","v":99.292497198932409},{"$f":"Q40+Q41+Q42+Q43+Q44+Q45","v":7041},{"$f":"SQRT((R40^2)+(R41^2)+(R42^2)+(R43^2)+(R44^2)+(R45^2))","v":454.66911045286548},{"$f":"S40+S41+S42+S43+S44+S45","v":310},{"$f":"SQRT((T40^2)+(T41^2)+(T42^2)+(T43^2)+(T44^2)+(T45^2))","v":66.543219038456499},{"$f":"U40+U41+U42+U43+U44+U45","v":737},{"$f":"SQRT((V40^2)+(V41^2)+(V42^2)+(V43^2)+(V44^2)+(V45^2))","v":115.80155439371269},{"$f":"W40+W41+W42+W43+W44+W45","v":1128},{"$f":"SQRT((X40^2)+(X41^2)+(X42^2)+(X43^2)+(X44^2)+(X45^2))","v":190.87954316793616},{"$f":"Y40+Y41+Y42+Y43+Y44+Y45","v":1507},{"$f":"SQRT((Z40^2)+(Z41^2)+(Z42^2)+(Z43^2)+(Z44^2)+(Z45^2))","v":223.19722220493696},{"$f":"AA40+AA41+AA42+AA43+AA44+AA45","v":799},{"$f":"SQRT((AB40^2)+(AB41^2)+(AB42^2)+(AB43^2)+(AB44^2)+(AB45^2))","v":169.96470221784287},{"$f":"AC40+AC41+AC42+AC43+AC44+AC45","v":303},{"$f":"SQRT((AD40^2)+(AD41^2)+(AD42^2)+(AD43^2)+(AD44^2)+(AD45^2))","v":60},{"$f":"AE40+AE41+AE42+AE43+AE44+AE45","v":3458},{"$f":"SQRT((AF40^2)+(AF41^2)+(AF42^2)+(AF43^2)+(AF44^2)+(AF45^2))","v":397.47830129454866},{"$f":"AG40+AG41+AG42+AG43+AG44+AG45","v":1549},{"$f":"SQRT((AH40^2)+(AH41^2)+(AH42^2)+(AH43^2)+(AH44^2)+(AH45^2))","v":265.99248109674079},{"$f":"AI40+AI41+AI42+AI43+AI44+AI45","v":1174},{"$f":"SQRT((AJ40^2)+(AJ41^2)+(AJ42^2)+(AJ43^2)+(AJ44^2)+(AJ45^2))","v":201.83656754909404},{"$f":"AK40+AK41+AK42+AK43+AK44+AK45","v":535},{"$f":"SQRT((AL40^2)+(AL41^2)+(AL42^2)+(AL43^2)+(AL44^2)+(AL45^2))","v":94.34511116109833},{"$f":"AM40+AM41+AM42+AM43+AM44+AM45","v":1018},{"$f":"SQRT((AN40^2)+(AN41^2)+(AN42^2)+(AN43^2)+(AN44^2)+(AN45^2))","v":159.07545379473225},{"$f":"AO40+AO41+AO42+AO43+AO44+AO45","v":971},{"$f":"SQRT((AP40^2)+(AP41^2)+(AP42^2)+(AP43^2)+(AP44^2)+(AP45^2))","v":177.72169254201918},{"$f":"AQ40+AQ41+AQ42+AQ43+AQ44+AQ45","v":1476},{"$f":"SQRT((AR40^2)+(AR41^2)+(AR42^2)+(AR43^2)+(AR44^2)+(AR45^2))","v":268.99628250219371},{"$f":"AS40+AS41+AS42+AS43+AS44+AS45","v":657},{"$f":"SQRT((AT40^2)+(AT41^2)+(AT42^2)+(AT43^2)+(AT44^2)+(AT45^2))","v":145.03792607452715},{"$f":"AU40+AU41+AU42+AU43+AU44+AU45","v":330},{"$f":"SQRT((AV40^2)+(AV41^2)+(AV42^2)+(AV43^2)+(AV44^2)+(AV45^2))","v":61.02458520956943},{"$f":"AW40+AW41+AW42+AW43+AW44+AW45","v":493},{"$f":"SQRT((AX40^2)+(AX41^2)+(AX42^2)+(AX43^2)+(AX44^2)+(AX45^2))","v":87.926105338517075},{"$f":"AY40+AY41+AY42+AY43+AY44+AY45","v":669},{"$f":"SQRT((AZ40^2)+(AZ41^2)+(AZ42^2)+(AZ43^2)+(AZ44^2)+(AZ45^2))","v":114.92171248288984},{"$f":"BA40+BA41+BA42+BA43+BA44+BA45","v":471},{"$f":"SQRT((BB40^2)+(BB41^2)+(BB42^2)+(BB43^2)+(BB44^2)+(BB45^2))","v":72.711759709141958},{"$f":"BC40+BC41+BC42+BC43+BC44+BC45","v":349},{"$f":"SQRT((BD40^2)+(BD41^2)+(BD42^2)+(BD43^2)+(BD44^2)+(BD45^2))","v":76.354436675284305}]
[null," 35% or More of HH Income",{"$f":"C46+C47+C48","v":337},{"$f":"SQRT((D46^2)+(D47^2)+(D48^2))","v":106.42837967384452},{"$f":"E46+E47+E48","v":128},{"$f":"SQRT((F46^2)+(F47^2)+(F48^2))","v":44.35087372307337},{"$f":"G46+G47+G48","v":296},{"$f":"SQRT((H46^2)+(H47^2)+(H48^2))","v":107.97221864905805},{"$f":"I46+I47+I48","v":485},{"$f":"SQRT((J46^2)+(J47^2)+(J48^2))","v":133.58517881860996},{"$f":"K46+K47+K48","v":148},{"$f":"SQRT((L46^2)+(L47^2)+(L48^2))","v":46.850827100489916},{"$f":"M46+M47+M48","v":193},{"$f":"SQRT((N46^2)+(N47^2)+(N48^2))","v":60.158124970780129},{"$f":"O46+O47+O48","v":283},{"$f":"SQRT((P46^2)+(P47^2)+(P48^2))","v":85.088189544730596},{"$f":"Q46+Q47+Q48","v":2282},{"$f":"SQRT((R46^2)+(R47^2)+(R48^2))","v":312.37157361066005},{"$f":"S46+S47+S48","v":117},{"$f":"SQRT((T46^2)+(T47^2)+(T48^2))","v":36.796738985948195},{"$f":"U46+U47+U48","v":153},{"$f":"SQRT((V46^2)+(V47^2)+(V48^2))","v":51.516987489565032},{"$f":"W46+W47+W48","v":414},{"$f":"SQRT((X46^2)+(X47^2)+(X48^2))","v":131.21356637177422},{"$f":"Y46+Y47+Y48","v":597},{"$f":"SQRT((Z46^2)+(Z47^2)+(Z48^2))","v":144.77568856683087},{"$f":"AA46+AA47+AA48","v":181},{"$f":"SQRT((AB46^2)+(AB47^2)+(AB48^2))","v":77.188081981611646},{"$f":"AC46+AC47+AC48","v":119},{"$f":"SQRT((AD46^2)+(AD47^2)+(AD48^2))","v":45.332107826572546},{"$f":"AE46+AE47+AE48","v":1012},{"$f":"SQRT((AF46^2)+(AF47^2)+(AF48^2))","v":229.39267643061319},{"$f":"AG46+AG47+AG48","v":336},{"$f":"SQRT((AH46^2)+(AH47^2)+(AH48^2))","v":110.02726934719411},{"$f":"AI46+AI47+AI48","v":465},{"$f":"SQRT((AJ46^2)+(AJ47^2)+(AJ48^2))","v":125.53087269671951},{"$f":"AK46+AK47+AK48","v":231},{"$f":"SQRT((AL46^2)+(AL47^2)+(AL48^2))","v":77.181604025829884},{"$f":"AM46+AM47+AM48","v":315},{"$f":"SQRT((AN46^2)+(AN47^2)+(AN48^2))","v":84.005952170069477},{"$f":"AO46+AO47+AO48","v":333},{"$f":"SQRT((AP46^2)+(AP47^2)+(AP48^2))","v":101.68087332433765},{"$f":"AQ46+AQ47+AQ48","v":517},{"$f":"SQRT((AR46^2)+(AR47^2)+(AR48^2))","v":162.06788701035131},{"$f":"AS46+AS47+AS48","v":358},{"$f":"SQRT((AT46^2)+(AT47^2)+(AT48^2))","v":100.25467570143549},{"$f":"AU46+AU47+AU48","v":156},{"$f":"SQRT((AV46^2)+(AV47^2)+(AV48^2))","v":50.219518117958877},{"$f":"AW46+AW47+AW48","v":177},{"$f":"SQRT((AX46^2)+(AX47^2)+(AX48^2))","v":62.745517768203968},{"$f":"AY46+AY47+AY48","v":198},{"$f":"SQRT((AZ46^2)+(AZ47^2)+(AZ48^2))","v":65.352888229978021},{"$f":"BA46+BA47+BA48","v":169},{"$f":"SQRT((BB46^2)+(BB47^2)+(BB48^2))","v":40.323690307311907},{"$f":"BC46+BC47+BC48","v":132},{"$f":"SQRT((BD46^2)+(BD47^2)+(BD48^2))","v":42.965102117881671}]
[null," 50% or More of HH Income",{"$f":"C48","v":211},{"$f":"D48","v":84.899941107164494},{"$f":"E48","v":40},22.627416997969522,147,81.412529748190479,218,89.050547443572739,73,31.304951684997057,115,47.434164902525687,118,47.010637094172637,1030,228.46443924602357,34,19.313207915827967,87,32.557641192199412,211,95.801878895979911,{"$f":"Y48","v":259},96.30160954002794,33,27.313000567495326,53,25.709920264364882,463,156.46724896923317,126,68.622153857191051,174,75.471849056452825,99,49.648766349225639,165,60,{"$f":"AO48","v":155},74.94664769020693,222,111.13955191559843,164,72.801098892805186,63,30.265491900843113,83,39.698866482558415,97,39.357337308308857,51,21.095023109728988,58,28.42534080710379]
[null,"Not computed",{"$f":"C49","v":0},{"$f":"D49","v":15.556349186104045},{"$f":"E49","v":28},30.805843601498726,0,15.556349186104045,6,18.357559750685819,0,15.556349186104045,0,15.556349186104045,0,15.556349186104045,30,28.319604517012593,10,18.601075237738275,9,17.029386365926403,0,15.556349186104045,{"$f":"Y49","v":17},30.528675044947494,24,40.521599178709621,0,15.556349186104045,6,20.591260281974002,0,22.627416997969522,23,31.384709652950431,7,14.866068747318506,11,19.416487838947599,{"$f":"AO49","v":0},15.556349186104045,14,26.40075756488817,0,15.556349186104045,0,15.556349186104045,0,15.556349186104045,0,15.556349186104045,8,17.029386365926403,4,12.083045973594572]
[]
[]
[]
[null,"B25091. MORTGAGE STATUS BY SELECTED MONTHLY OWNER COSTS AS A PERCENTAGE OF HOUSEHOLD INCOME IN THE PAST 12 MONTHS "]
[null,"Universe:  OWNER-OCCUPIED HOUSING UNITS"]
[null,"Data Set: 2010-2014 American Community Survey 5-Year Estimates"]
[]
[null,null,"Allenstown",null,"Andover",null,"Boscawen",null,"Bow",null,"Bradford",null,"Canterbury",null,"Chichester",null,"Concord",null,"Danbury",null,"Dunbarton",null,"Epsom",null,"Franklin",null,"Henniker",null,"Hill",null,"Hooksett",null,"Hopkinton",null,"Loudon",null,"Newbury",null,"New London",null,"Northfield",null,"Pembroke",null,"Pittsfield",null,"Salisbury",null,"Sutton",null,"Warner",null,"Webster",null,"Wilmot"]
[null,null,"Estimate","Margin Of Error","Estimate","Margin Of Error","Estimate","Margin Of Error","Estimate","Margin Of Error","Estimate","Margin Of Error","Estimate","Margin Of Error","Estimate","Margin Of Error","Estimate","Margin Of Error","Estimate","Margin Of Error","Estimate","Margin Of Error","Estimate","Margin Of Error","Estimate","Margin Of Error","Estimate","Margin Of Error","Estimate","Margin Of Error","Estimate","Margin Of Error","Estimate","Margin Of Error","Estimate","Margin Of Error","Estimate","Margin Of Error","Estimate","Margin Of Error","Estimate","Margin Of Error","Estimate","Margin Of Error","Estimate","Margin Of Error","Estimate","Margin Of Error","Estimate","Margin Of Error","Estimate","Margin Of Error","Estimate","Margin Of Error","Estimate","Margin Of Error"]
[null,null,1252,116,839,98,884,148,2460,156,605,75,854,63,898,73,9376,354,438,65,917,86,1523,136,2015,220,1071,155,413,56,4473,271,1846,116,1693,133,716,95,1365,137,1313,123,1986,184,901,126,512,61,694,97,871,62,670,58,478,60]
[null,"Housing units with a mortgage:",709,111,546,80,594,134,1878,157,395,62,601,78,579,71,6547,339,280,55,702,75,985,135,1263,173,834,134,328,47,3247,226,1186,161,1065,145,498,82,616,106,900,116,1448,189,695,110,411,64,466,81,561,60,508,51,352,59]
[null,"Less than 10.0 percent",4,7,30,29,20,30,47,36,35,20,23,18,6,8,260,95,5,7,11,11,51,35,17,19,7,11,21,16,83,46,54,45,83,68,36,20,8,13,12,18,48,39,26,24,17,21,3,5,71,46,12,9,0,11]
[null,"10.0 to 14.9 percent",30,27,87,45,85,57,216,76,43,26,61,31,41,24,931,165,20,16,77,37,149,75,85,47,92,63,20,11,256,139,170,96,103,72,15,13,45,31,122,62,143,75,9,15,29,14,61,27,93,44,46,28,43,22]
[null,"15.0 to 19.9 percent",182,59,98,46,144,62,305,92,54,26,105,42,94,36,1106,189,58,36,112,39,154,70,198,82,132,67,23,13,486,130,93,53,224,85,60,30,82,44,116,46,282,109,124,64,52,24,41,25,97,32,48,19,47,20]
[null,"20.0 to 24.9 percent",105,55,60,35,57,42,343,119,38,21,126,42,117,41,1024,185,57,23,132,48,203,85,199,82,113,64,80,31,687,177,200,88,95,57,105,43,159,54,136,64,267,131,80,52,51,23,105,39,80,38,109,35,71,33]
[null,"25.0 to 29.9 percent",115,43,92,43,44,36,353,99,62,18,46,28,69,33,872,163,34,23,159,58,130,62,125,53,205,71,45,18,451,147,263,118,120,62,81,47,87,50,175,65,147,62,158,76,68,28,80,41,57,30,101,37,48,25]
[null,"30.0 to 34.9 percent",83,63,40,34,74,67,161,72,50,22,54,26,66,32,529,118,13,10,56,29,96,64,176,82,86,63,30,21,522,134,180,114,86,55,25,20,61,34,52,45,178,108,55,38,41,25,15,12,21,16,48,26,31,18]
[null,"35.0 to 39.9 percent",35,30,26,18,53,36,72,51,21,13,45,25,36,24,413,130,28,20,34,26,62,46,160,78,41,41,9,7,174,106,119,60,134,70,31,20,47,32,66,43,47,41,60,49,35,25,35,28,7,9,27,16,32,20]
[null,"40.0 to 49.9 percent",38,36,55,30,67,51,190,66,27,20,40,22,39,37,615,151,32,19,29,27,66,48,114,62,113,61,49,29,291,144,48,41,96,57,52,26,24,22,97,45,136,102,78,47,46,27,54,29,61,27,68,23,40,25]
[null,"50.0 percent or more",117,64,38,20,50,37,182,79,65,30,101,40,111,55,783,178,33,18,92,36,74,47,189,86,17,21,51,26,286,136,59,45,98,58,87,52,103,59,124,67,185,114,105,61,69,32,72,34,74,32,41,17,40,26]
[null,"Not computed",0,11,20,30,0,11,9,13,0,11,0,11,0,11,14,21,0,11,0,11,0,11,0,15,28,45,0,11,11,18,0,15,26,29,6,8,0,11,0,11,15,24,0,11,3,4,0,11,0,11,8,14,0,11]
[null,"Housing units without a mortgage:",543,106,293,69,290,87,582,101,210,49,253,58,319,64,2829,249,158,47,215,54,538,99,752,149,237,88,85,39,1226,224,660,149,628,120,218,60,749,122,413,106,538,137,206,48,101,30,228,57,310,77,162,30,126,35]
[null,"Less than 10.0 percent",84,48,101,50,96,62,214,80,11,10,67,30,90,46,575,112,52,33,50,24,75,53,237,92,102,63,28,22,224,91,159,72,122,68,48,29,176,64,162,57,94,66,37,35,19,17,43,24,88,46,50,19,9,8]
[null,"10.0 to 14.9 percent",95,53,51,31,45,34,88,44,70,33,100,41,66,28,534,121,10,10,78,37,106,50,144,64,53,34,9,9,298,117,124,77,160,71,26,18,117,53,134,67,158,78,54,30,29,16,44,26,25,17,13,11,24,20]
[null,"15.0 to 19.9 percent",50,37,29,17,66,45,79,37,26,14,37,23,27,20,471,100,16,14,38,23,88,78,95,56,25,22,14,15,205,104,84,54,44,42,71,40,62,33,9,14,66,54,19,17,23,12,62,30,61,39,13,9,21,15]
[null,"20.0 to 24.9 percent",67,44,35,26,32,22,7,11,13,10,13,15,44,26,355,94,23,19,15,14,35,30,44,44,22,23,12,16,82,41,93,71,62,56,27,26,81,49,48,35,11,18,21,18,20,11,14,9,59,42,16,12,12,10]
[null,"25.0 to 29.9 percent",57,38,11,11,16,19,73,33,16,9,4,6,38,26,273,104,9,7,6,10,25,38,113,78,7,12,7,8,139,80,45,36,58,48,25,16,38,33,17,19,58,51,20,20,3,5,16,13,31,27,16,11,19,18]
[null,"30.0 to 34.9 percent",47,35,24,24,0,11,15,18,11,10,6,9,0,11,164,78,17,16,9,9,60,35,23,21,11,18,5,6,52,38,30,33,7,12,12,12,65,43,2,5,17,27,12,15,0,11,12,15,12,12,8,8,3,4]
[null,"35.0 to 39.9 percent",30,28,8,10,9,14,0,15,20,19,5,9,16,26,156,65,0,11,0,11,12,19,23,23,0,11,6,6,103,68,13,20,7,12,4,6,42,26,5,8,34,40,6,9,4,6,12,15,13,12,15,20,6,6]
[null,"40.0 to 49.9 percent",31,38,0,11,0,11,51,30,13,17,11,12,4,6,66,33,8,9,15,23,36,30,6,10,8,13,0,11,41,39,26,28,55,42,0,11,49,33,0,11,36,39,23,18,0,11,7,7,0,11,10,8,6,5]
[null,"50.0 percent or more",82,53,21,15,26,25,55,45,30,16,10,11,34,19,214,78,23,19,4,7,101,81,50,36,9,14,4,6,72,39,86,58,113,92,5,7,111,50,36,29,64,77,14,16,3,5,18,19,21,18,21,13,23,14]
[null,"Not computed",0,11,13,21,0,11,0,15,0,11,0,11,0,11,21,22,0,11,0,11,0,11,17,27,0,11,0,11,10,12,0,15,0,15,0,11,8,13,0,11,0,15,0,11,0,11,0,11,0,11,0,11,3,4]
[]
[]
[]
[]
[]
[]
[]
[]
[]
[]
[]
[]
[]
[]
[]
[]
[]
[]
[]
[]
[]
[]
[]
[]
[]
[]
[]
[]
[]
[]
[]
[]
[]
[null,"Calculated B25091. MORTGAGE STATUS BY SELECTED MONTHLY OWNER COSTS AS A PERCENTAGE OF HOUSEHOLD INCOME IN THE PAST 12 MONTHS "]
[null,"Universe:  OWNER-OCCUPIED HOUSING UNITS"]
[null,"Data Set: 2010-2014 American Community Survey 5-Year Estimates"]
[]
[null,null,"Allenstown",null,"Andover",null,"Boscawen",null,"Bow",null,"Bradford",null,"Canterbury",null,"Chichester",null,"Concord",null,"Danbury",null,"Dunbarton",null,"Epsom",null,"Franklin",null,"Henniker",null,"Hill",null,"Hooksett",null,"Hopkinton",null,"Loudon",null,"Newbury",null,"New London",null,"Northfield",null,"Pembroke",null,"Pittsfield",null,"Salisbury",null,"Sutton",null,"Warner",null,"Webster",null,"Wilmot"]
[null,null,"Estimate","Margin Of Error","Estimate","Margin Of Error","Estimate","Margin Of Error","Estimate","Margin Of Error","Estimate","Margin Of Error","Estimate","Margin Of Error","Estimate","Margin Of Error","Estimate","Margin Of Error","Estimate","Margin Of Error","Estimate","Margin Of Error","Estimate","Margin Of Error","Estimate","Margin Of Error","Estimate","Margin Of Error","Estimate","Margin Of Error","Estimate","Margin Of Error","Estimate","Margin Of Error","Estimate","Margin Of Error","Estimate","Margin Of Error","Estimate","Margin Of Error","Estimate","Margin Of Error","Estimate","Margin Of Error","Estimate","Margin Of Error","Estimate","Margin Of Error","Estimate","Margin Of Error","Estimate","Margin Of Error","Estimate","Margin Of Error","Estimate","Margin Of Error"]
[null,"Total:",1252,116,839,98,884,148,2460,156,605,75,854,63,898,73,9376,354,438,65,917,86,1523,136,2015,220,1071,155,413,56,4473,271,1846,116,1693,133,716,95,1365,137,1313,123,1986,184,901,126,512,61,694,97,871,62,670,58,478,60]
[null,"Less than 10.0 percent",88,48.507731342539614,131,57.801384066473702,116,68.87670143089025,261,87.726848797845236,46,22.360679774997898,90,34.985711369071801,96,46.690470119715009,835,146.86388255796589,57,33.734255586865999,61,26.40075756488817,126,63.513778032801667,254,93.941471140279674,109,63.953107821277925,49,27.202941017470888,307,101.96568050084302,213,84.905830188509441,205,96.166522241370458,84,35.227829907617071,184,65.30696746902278,174,59.774576535513823,142,76.661594035083823,63,42.43819034784589,36,27.018512172212592,46,24.515301344262525,159,65.053823869162372,62,21.023796041628639,9,13.601470508735444]
[null,"10.0 to 14.9 percent",125,59.481089431852205,138,54.644304369257,130,66.370174024180471,304,87.817993600400598,113,42.01190307520001,161,51.400389103585589,107,36.878177829171548,1465,204.61182761512103,30,18.867962264113206,155,52.32590180780452,255,90.13878188659973,229,79.404030124421269,145,71.589105316381762,29,14.212670403551895,554,181.68654325513489,294,123.06502346320826,263,101.11874208078342,41,22.203603311174518,162,61.400325732035007,256,91.285267157411553,301,108.2081327812286,63,33.541019662496844,58,21.2602916254693,105,37.483329627982627,118,47.169905660283021,59,30.083217912982647,67,29.732137494637012]
[null,"15.0 to 19.9 percent",232,69.641941385920603,127,49.040799340956916,210,76.609398901179219,384,99.161484458432753,80,29.529646120466801,142,47.885279575251516,121,41.182520563948003,1577,213.82469455140114,74,38.626415831655933,150,45.276925690687087,242,104.80458005259122,293,99.297532698451278,157,70.51950084905593,37,19.849433241279208,691,166.48123017325406,177,75.663729752107784,268,94.810336989170125,131,50,144,55,125,48.083261120685229,348,121.64292005702592,143,66.219332524573218,75,26.832815729997478,103,39.05124837953327,158,50.447993022517757,61,21.023796041628639,68,25]
[null,"20.0 to 24.9 percent",172,70.434366611761334,95,43.600458713183279,89,47.413078364518789,350,119.50732195141852,51,23.259406699226016,139,44.598206241955516,161,48.548944375753422,1379,207.51144546747295,80,29.832867780352597,147,50,238,90.13878188659973,243,93.059120993054734,135,68.007352543677214,92,34.885527085024819,769,181.68654325513489,293,113.07077429645558,157,79.906195003891909,132,50.24937810560445,240,72.917761896536561,184,72.945184899347538,278,132.23085872821065,101,55.027265968790417,71,25.495097567963924,119,40.024992192379003,139,56.639209034025185,125,37,83,34.481879299133332]
[null,"25.0 to 29.9 percent",172,57.384666941614292,103,44.384682042344295,60,40.70626487409524,426,104.35516278555652,78,20.124611797498108,50,28.635642126552707,107,42.01190307520001,1145,193.35201059208046,43,24.041630560342615,165,58.855755878248644,155,72.718635850791372,238,94.30270409696638,212,72.006944109578768,52,19.697715603592208,590,167.35889578985635,308,123.36936410632909,178,78.409183135650636,106,49.648766349225639,125,59.908263203000637,192,67.720011813348052,205,80.280757345705197,178,78.587530817553997,71,28.442925306655784,96,43.011626335213137,88,40.36087214122113,117,38.600518131237564,67,30.805843601498726]
[null,"30.0 to 34.9 percent",130,72.069410986909006,64,41.617304093369626,74,67.896980787071826,176,74.215901261117892,61,24.166091947189145,60,27.513632984395208,66,33.837848631377263,693,141.44963768069539,30,18.867962264113206,65,30.364452901377952,156,72.945184899347538,199,84.64632301523794,97,65.520989003524662,35,21.840329667841555,574,139.28388277184121,210,118.68024266911489,93,56.293871780150276,37,23.323807579381203,126,54.817880294662984,54,45.276925690687087,195,111.32385189167684,67,40.853396431630991,41,27.313000567495326,27,19.209372712298546,33,20,56,27.202941017470888,34,18.439088914585774]
[null,"35.0 to 39.9 percent",65,41.036569057366385,34,20.591260281974002,62,38.626415831655933,72,53.160135440008048,41,23.021728866442675,50,26.570660511172846,52,35.383612025908263,569,145.34441853748632,28,22.825424421026653,34,28.231188426986208,74,49.769468552517218,183,81.320354155647891,41,42.449970553582247,15,9.2195444572928871,277,125.93649193144932,132,63.245553203367585,141,71.021123618258812,35,20.880613017821101,89,41.231056256176608,71,43.737855457258078,81,57.280013966478741,66,49.819674828324601,39,25.709920264364882,47,31.76476034853718,20,15,42,25.612496949731394,38,20.880613017821101]
[null,"40.0 to 49.9 percent",69,52.345009313209601,55,31.953090617340916,67,52.172789842982326,241,72.498275841567434,40,26.248809496813376,51,25.059928172283335,43,37.483329627982627,681,154.56390264224049,40,21.023796041628639,44,35.468295701936398,102,56.603886792339623,120,62.801273872430329,121,62.369864518050704,49,31.016124838541646,332,149.18780110987626,74,49.648766349225639,151,70.802542327235685,52,28.231188426986208,73,39.66106403010388,97,46.324939287601879,172,109.20164833920778,101,50.328918128646478,46,29.154759474226502,61,29.832867780352597,61,29.154759474226502,78,24.351591323771842,46,25.495097567963924]
[null,"50.0 percent or more",199,83.096329642168911,59,25,76,44.654227123532216,237,90.917545061445651,95,34,111,41.484937025383083,145,58.189346103904619,997,194.33990840792325,56,26.172504656604801,96,36.674241641784498,175,93.648278147545241,239,93.23089616645332,26,25.238858928247925,55,26.683328128252668,358,141.4814475470194,145,73.409808608931812,211,108.75660899458019,92,52.469038489379621,214,77.336925203941234,160,73.006848993775918,249,137.56816492197603,119,63.063460101710248,72,32.388269481403292,90,38.948684188300895,95,36.715119501371639,62,21.400934559032695,63,29.529646120466801]
[null,"Not computed",0,15.556349186104045,33,36.61966684720111,0,15.556349186104045,9,19.849433241279208,0,15.556349186104045,0,15.556349186104045,0,15.556349186104045,35,30.413812651491099,0,15.556349186104045,0,15.556349186104045,0,15.556349186104045,17,30.886890422961002,28,46.324939287601879,0,15.556349186104045,21,21.633307652783937,0,21.213203435596427,26,32.649655434629018,6,13.601470508735444,8,17.029386365926403,0,15.556349186104045,15,28.301943396169811,0,15.556349186104045,3,11.704699910719626,0,15.556349186104045,0,15.556349186104045,8,17.804493814764857,3,11.704699910719626]
[]
[]
[]
[]
[null,"Calculated MONTHLY OWNER COSTS AS A PERCENTAGE OF HOUSEHOLD INCOME IN THE PAST 12 MONTHS "]
[null,"Universe:  OWNER-OCCUPIED HOUSING UNITS"]
[null,"Data Set: 2010-2014 American Community Survey 5-Year Estimates"]
[null,null,"Allenstown",null,"Andover",null,"Boscawen",null,"Bow",null,"Bradford",null,"Canterbury",null,"Chichester",null,"Concord",null,"Danbury",null,"Dunbarton",null,"Epsom",null,"Franklin",null,"Henniker",null,"Hill",null,"Hooksett",null,"Hopkinton",null,"Loudon",null,"Newbury",null,"New London",null,"Northfield",null,"Pembroke",null,"Pittsfield",null,"Salisbury",null,"Sutton",null,"Warner",null,"Webster",null,"Wilmot"]
[null,null,"Estimate","Margin Of Error","Estimate","Margin Of Error","Estimate","Margin Of Error","Estimate","Margin Of Error","Estimate","Margin Of Error","Estimate","Margin Of Error","Estimate","Margin Of Error","Estimate","Margin Of Error","Estimate","Margin Of Error","Estimate","Margin Of Error","Estimate","Margin Of Error","Estimate","Margin Of Error","Estimate","Margin Of Error","Estimate","Margin Of Error","Estimate","Margin Of Error","Estimate","Margin Of Error","Estimate","Margin Of Error","Estimate","Margin Of Error","Estimate","Margin Of Error","Estimate","Margin Of Error","Estimate","Margin Of Error","Estimate","Margin Of Error","Estimate","Margin Of Error","Estimate","Margin Of Error","Estimate","Margin Of Error","Estimate","Margin Of Error","Estimate","Margin Of Error"]
[null,"Total:",1252,116,839,98,884,148,2460,156,605,75,854,63,898,73,9376,354,438,65,917,86,1523,136,2015,220,1071,155,413,56,4473,271,1846,116,1693,133,716,95,1365,137,1313,123,1986,184,901,126,512,61,694,97,871,62,670,58,478,60]
[null,"Less than 20% of HH Income",445,103.63879582472966,396,93.445171089789326,456,122.54794979925205,949,158.8741640418605,239,56.008927859761783,393,78.47929663293371,324,72.360210060502169,3877,330.38765110094533,161,54.644304369257,366,74.060785845142107,623,152.12823538054991,776,158.08225706890701,411,119.11339135462477,115,36.551333764994133,1552,266.68895740168921,684,167.56789668668637,736,168.70684633410701,256,65.069193939989759,490,105.16653460107925,555,119.23925528113634,791,179.95277158187923,269,85.5043858524228,169,43.611924974713048,254,59.422218066982317,435,94.878870145043365,182,42.296571965113202,144,41.15823125451336]
[null," 20% to 29.9% of HH Income",344,90.851527229871039,198,62.217360921209121,149,62.489999199871974,776,158.65686244219,129,30.757112998459402,189,53,268,64.202803677098089,2524,283.63004072206456,123,38.314488121336034,312,77.226938305231286,393,115.81450686334593,481,132.48773528142144,347,99.045444115315064,144,40.06245124802026,1359,247.02024208554246,601,167.34694499751109,335,111.95088208674373,238,70.639932049797437,365,94.371605899232208,376,99.53391381835641,483,154.69324484281788,279,95.937479641691652,142,38.196858509568557,215,58.753723286273527,227,69.548544197560318,242,53.469617541179403,150,46.238512086787566]
[null," Less Than 30% of HH Income",789,137.82234942127494,594,112.26308386998818,605,137.56089560627322,1725,224.52839464085605,368,63.898356786383793,582,94.699524814013714,592,96.736756199492234,6401,435.43311771154936,284,66.738294853854342,678,107,1016,191.19623427254001,1257,206.25954523366912,758,154.91287874156882,259,54.230987451824994,2911,363.51341103183523,1285,236.82060721145024,1071,202.47222031676347,494,96.041657628343756,855,141.30109695257147,931,155.32224567009067,1274,237.30360300678117,548,128.51069994362337,311,57.974132162542979,469,83.564346464266691,662,117.6392791545409,424,68.17624219623724,294,61.903150162168643]
[null," 30% or More of HH Income",463,128.5418219880207,212,61.660360037871982,279,104.0096149401583,726,147.83774890061062,237,54.396691075836586,272,61.741396161732524,306,84.782073576906569,2940,320.61035541604082,154,44.766058571198784,239,65.741919655574407,507,140.61294392764842,741,162.52384440444425,285,103.06308747558458,154,47.286361670147556,1541,278.4492772481193,561,161.05589091989154,596,158.28455388950621,216,67.305274681855366,502,110.72036849649662,382,106.95326081985533,697,215.69422801734868,353,103.25211862233142,198,57.497826045860201,225,61.522353661088097,209,53.131911315140925,238,49.467160824126545,181,47.937459256827538]
[null," 30% to 34.9% of HH Income",130,72.069410986909006,64,41.617304093369626,74,67.896980787071826,176,74.215901261117892,61,24.166091947189145,60,27.513632984395208,66,33.837848631377263,693,141.44963768069539,30,18.867962264113206,65,30.364452901377952,156,72.945184899347538,199,84.64632301523794,97,65.520989003524662,35,21.840329667841555,574,139.28388277184121,210,118.68024266911489,93,56.293871780150276,37,23.323807579381203,126,54.817880294662984,54,45.276925690687087,195,111.32385189167684,67,40.853396431630991,41,27.313000567495326,27,19.209372712298546,33,20,56,27.202941017470888,34,18.439088914585774]
[null," Less Than 35% of HH Income",919,155.52813250341561,658,119.72886034703579,679,153.40469353966978,1901,236.47621444872632,429,68.315444813014281,642,98.615414616580097,658,102.48414511523234,7094,457.83184686083166,314,69.354163537598808,743,111.22499719037982,1172,204.63870601623731,1456,222.95290982626801,855,168.19928656210169,294,58.463663928973865,3485,389.28395805632681,1495,264.89431854986998,1164,210.15232570685484,531,98.833192804846689,981,151.56186855538567,985,161.78689687363436,1469,262.11829390563338,615,134.84806264830058,352,64.085879880048466,496,85.743804440904071,695,119.32728103832753,480,73.40299721401027,328,64.591021047820576]
[null," 35% or More of HH Income",333,106.4377752492037,148,45.4972526643093,205,78.790862414368831,550,127.85929766739687,176,48.733971724044821,212,55.272054421741913,240,77.736735202862747,2247,287.72035034039561,124,40.595566260368876,174,58.309518948453004,351,120.21231218140677,542,138.74076545846214,188,79.555012412795207,119,41.940433951021539,967,241.10993343286378,351,108.87607634370372,503,147.93579688500009,179,63.134776470658387,376,96.1977130705299,328,96.896852374058057,502,184.74577126418887,286,94.826156729037578,157,50.596442562694072,198,58.446556784809829,176,49.223977896955873,182,41.315856520227193,147,44.24929377967517]
[null," 50% or More of HH Income",199,83.096329642168911,59,25,76,44.654227123532216,237,90.917545061445651,95,34,111,41.484937025383083,145,58.189346103904619,997,194.33990840792325,56,26.172504656604801,96,36.674241641784498,175,93.648278147545241,239,93.23089616645332,26,25.238858928247925,55,26.683328128252668,358,141.4814475470194,145,73.409808608931812,211,108.75660899458019,92,52.469038489379621,214,77.336925203941234,160,73.006848993775918,249,137.56816492197603,119,63.063460101710248,72,32.388269481403292,90,38.948684188300895,95,36.715119501371639,62,21.400934559032695,63,29.529646120466801]
[null,"Not computed",0,15.556349186104045,33,36.61966684720111,0,15.556349186104045,9,19.849433241279208,0,15.556349186104045,0,15.556349186104045,0,15.556349186104045,35,30.413812651491099,0,15.556349186104045,0,15.556349186104045,0,15.556349186104045,17,30.886890422961002,28,46.324939287601879,0,15.556349186104045,21,21.633307652783937,0,21.213203435596427,26,32.649655434629018,6,13.601470508735444,8,17.029386365926403,0,15.556349186104045,15,28.301943396169811,0,15.556349186104045,3,11.704699910719626,0,15.556349186104045,0,15.556349186104045,8,17.804493814764857,3,11.704699910719626]
[]
[]
[]
[null,"B25091. MORTGAGE STATUS BY SELECTED MONTHLY OWNER COSTS AS A PERCENTAGE OF HOUSEHOLD INCOME IN THE PAST 12 MONTHS "]
[null,"Universe:  OWNER-OCCUPIED HOUSING UNITS"]
[null,"Data Set: 2005-2009 American Community Survey 5-Year Estimates"]
[]
[null,null,"Allenstown",null,"Andover",null,"Boscawen",null,"Bow",null,"Bradford",null,"Canterbury",null,"Chichester",null,"Concord",null,"Danbury",null,"Dunbarton",null,"Epsom",null,"Franklin",null,"Henniker",null,"Hill",null,"Hooksett",null,"Hopkinton",null,"Loudon",null,"Newbury",null,"New London",null,"Northfield",null,"Pembroke",null,"Pittsfield",null,"Salisbury",null,"Sutton",null,"Warner",null,"Webster",null,"Wilmot"]
[null,null,"Estimate","Margin Of Error","Estimate","Margin Of Error","Estimate","Margin Of Error","Estimate","Margin Of Error","Estimate","Margin Of Error","Estimate","Margin Of Error","Estimate","Margin Of Error","Estimate","Margin Of Error","Estimate","Margin Of Error","Estimate","Margin Of Error","Estimate","Margin Of Error","Estimate","Margin Of Error","Estimate","Margin Of Error","Estimate","Margin Of Error","Estimate","Margin Of Error","Estimate","Margin Of Error","Estimate","Margin Of Error","Estimate","Margin Of Error","Estimate","Margin Of Error","Estimate","Margin Of Error","Estimate","Margin Of Error","Estimate","Margin Of Error","Estimate","Margin Of Error","Estimate","Margin Of Error","Estimate","Margin Of Error","Estimate","Margin Of Error","Estimate","Margin Of Error"]
[null,null,1176,172,790,93,1086,141,2579,139,426,68,798,59,901,53,9529,368,446,70,885,60,1203,113,1984,199,1250,163,318,44,4002,224,2099,128,1583,130,768,90,1343,183,1443,150,2058,183,1126,119,421,46,625,93,798,137,609,57,481,65]
[null,"Housing units with a mortgage:",768,171,534,74,797,123,1904,181,310,65,576,67,692,57,6942,321,271,60,740,71,940,121,1411,179,939,138,213,36,2944,204,1402,143,1176,118,586,95,627,144,1149,144,1666,163,778,117,306,44,422,88,518,99,488,56,377,59]
[null,"Less than 10.0 percent",11,17,31,30,0,114,90,57,8,12,14,15,11,13,230,80,16,14,32,30,17,20,51,48,46,33,0,114,130,78,67,46,83,60,18,16,66,62,0,114,99,87,19,29,3,6,77,73,5,7,8,7,15,17]
[null,"10.0 to 14.9 percent",41,45,37,21,101,51,202,92,58,30,59,32,44,24,560,156,11,12,68,33,71,33,132,75,85,66,51,25,212,79,117,66,151,57,40,25,86,62,93,58,74,56,54,51,21,15,56,27,30,21,45,26,55,26]
[null,"15.0 to 19.9 percent",73,42,61,33,111,54,377,137,47,25,104,45,52,26,1142,157,27,21,148,60,200,90,218,78,130,80,30,15,343,98,217,114,151,66,87,31,135,97,181,91,275,109,101,73,76,31,41,23,38,17,63,25,54,25]
[null,"20.0 to 24.9 percent",249,128,91,36,132,65,334,103,27,17,122,41,77,38,1217,216,37,26,90,38,199,71,211,76,214,95,24,15,549,118,194,88,260,103,66,31,52,35,271,87,272,107,62,46,46,18,83,36,103,47,79,26,31,20]
[null,"25.0 to 29.9 percent",52,38,63,29,56,42,254,101,48,27,31,21,133,52,1091,181,27,24,80,39,84,48,155,68,121,66,24,13,560,160,243,93,196,90,114,48,66,48,183,72,204,93,100,57,61,24,50,26,65,30,97,50,59,27]
[null,"30.0 to 34.9 percent",108,79,49,41,122,86,179,93,19,12,99,40,43,23,686,167,37,23,106,48,89,44,169,74,100,60,48,23,275,99,110,68,53,33,49,36,88,59,130,79,158,78,134,62,55,30,25,18,54,26,55,22,57,39]
[null,"35.0 to 39.9 percent",132,80,30,20,49,47,160,100,13,10,33,24,111,55,492,128,3,4,68,34,75,57,77,44,93,69,8,7,293,107,78,54,95,59,35,28,9,14,152,76,139,69,14,21,14,14,29,22,54,38,45,24,26,20]
[null,"40.0 to 49.9 percent",51,42,54,32,100,65,191,85,32,22,36,25,107,55,680,163,50,28,43,26,84,48,162,60,120,79,12,9,193,82,199,114,86,44,67,46,27,27,61,33,187,89,121,67,9,8,21,14,89,52,39,20,15,12]
[null,"50.0 percent or more",51,44,118,58,126,67,117,68,50,23,78,37,114,54,816,176,63,45,105,41,121,55,236,83,30,28,16,12,389,147,177,86,101,63,101,80,98,65,78,44,258,112,173,65,21,13,40,25,66,27,57,26,65,48]
[null,"Not computed",0,114,0,114,0,114,0,114,8,12,0,114,0,114,28,33,0,114,0,114,0,114,0,114,0,114,0,114,0,114,0,114,0,114,9,11,0,114,0,114,0,114,0,114,0,114,0,114,14,22,0,114,0,114]
[null,"Housing units without a mortgage:",408,131,256,71,289,88,675,167,116,41,222,57,209,55,2587,266,175,53,145,54,263,77,573,115,311,121,105,30,1058,184,697,142,407,113,182,43,716,162,294,73,392,105,348,92,115,27,203,60,280,70,121,34,104,52]
[null,"Less than 10.0 percent",30,39,146,55,56,37,234,103,37,24,34,21,24,19,494,145,54,28,65,41,48,28,157,66,37,34,18,11,211,97,185,78,110,40,33,19,191,91,113,50,29,35,30,28,39,18,63,29,37,22,22,17,9,10]
[null,"10.0 to 14.9 percent",61,43,32,32,66,44,188,106,19,12,38,24,35,22,389,116,40,30,41,24,61,41,89,41,33,31,19,11,283,73,127,71,51,35,48,20,102,76,40,33,162,77,63,47,28,15,52,26,103,47,40,18,19,19]
[null,"15.0 to 19.9 percent",49,32,23,17,42,49,10,16,12,11,52,26,36,23,421,108,23,19,17,16,19,20,46,29,72,49,22,18,180,65,121,66,67,39,16,13,72,54,78,53,67,50,65,41,6,6,13,10,13,12,16,11,3,5]
[null,"20.0 to 24.9 percent",128,91,0,114,0,114,23,27,20,12,22,22,45,23,262,91,17,14,6,10,10,15,69,45,9,14,6,7,139,64,98,66,29,27,30,21,98,73,0,114,8,14,37,33,14,9,12,15,18,16,9,10,40,42]
[null,"25.0 to 29.9 percent",60,56,6,9,14,22,30,31,3,4,21,15,12,12,279,99,3,4,0,114,26,21,24,27,45,37,15,10,61,61,39,40,55,58,14,15,21,25,0,114,44,40,31,31,7,9,9,13,14,14,3,5,0,114]
[null,"30.0 to 34.9 percent",8,13,12,14,30,43,30,34,3,4,6,9,11,12,196,80,0,114,0,114,9,14,26,25,9,15,2,5,46,40,60,46,20,16,16,15,39,36,6,11,15,23,10,17,4,8,7,8,21,15,0,114,0,114]
[null,"35.0 to 39.9 percent",0,114,25,32,19,23,12,18,0,114,10,12,7,10,111,53,7,7,0,114,52,50,26,21,48,49,12,14,38,48,0,114,27,28,0,114,12,19,20,16,0,114,7,12,6,6,3,5,20,17,6,6,0,114]
[null,"40.0 to 49.9 percent",11,17,6,9,21,23,50,47,12,15,4,7,16,14,104,54,3,4,0,114,8,14,29,27,0,114,0,114,71,41,13,22,0,114,2,5,0,114,0,114,51,46,28,27,0,114,0,114,6,8,3,5,6,10]
[null,"50.0 percent or more",61,46,6,8,32,31,98,86,10,8,35,24,23,31,321,114,18,23,9,13,30,28,107,64,58,81,11,10,29,28,54,42,48,47,23,15,181,110,37,33,16,26,77,44,11,10,44,43,41,35,22,17,27,23]
[null,"Not computed",0,114,0,114,9,15,0,114,0,114,0,114,0,114,10,15,10,16,7,11,0,114,0,114,0,114,0,114,0,114,0,114,0,114,0,114,0,114,0,114,0,114,0,114,0,114,0,114,7,10,0,114,0,114]
[]
[]
[]
[null,"Calculated B25091. MORTGAGE STATUS BY SELECTED MONTHLY OWNER COSTS AS A PERCENTAGE OF HOUSEHOLD INCOME IN THE PAST 12 MONTHS "]
[null,"Universe:  OWNER-OCCUPIED HOUSING UNITS"]
[null,"Data Set: 2005-2009 American Community Survey 5-Year Estimates"]
[]
[null,null,"Allenstown",null,"Andover",null,"Boscawen",null,"Bow",null,"Bradford",null,"Canterbury",null,"Chichester",null,"Concord",null,"Danbury",null,"Dunbarton",null,"Epsom",null,"Franklin",null,"Henniker",null,"Hill",null,"Hooksett",null,"Hopkinton",null,"Loudon",null,"Newbury",null,"New London",null,"Northfield",null,"Pembroke",null,"Pittsfield",null,"Salisbury",null,"Sutton",null,"Warner",null,"Webster",null,"Wilmot"]
[null,null,"Estimate","Margin Of Error","Estimate","Margin Of Error","Estimate","Margin Of Error","Estimate","Margin Of Error","Estimate","Margin Of Error","Estimate","Margin Of Error","Estimate","Margin Of Error","Estimate","Margin Of Error","Estimate","Margin Of Error","Estimate","Margin Of Error","Estimate","Margin Of Error","Estimate","Margin Of Error","Estimate","Margin Of Error","Estimate","Margin Of Error","Estimate","Margin Of Error","Estimate","Margin Of Error","Estimate","Margin Of Error","Estimate","Margin Of Error","Estimate","Margin Of Error","Estimate","Margin Of Error","Estimate","Margin Of Error","Estimate","Margin Of Error","Estimate","Margin Of Error","Estimate","Margin Of Error","Estimate","Margin Of Error","Estimate","Margin Of Error","Estimate","Margin Of Error"]
[null,"Total:",{"$f":"C179","v":1176},{"$f":"D179","v":172},{"$f":"E179","v":790},93,1086,141,2579,139,426,68,798,59,901,53,9529,368,446,70,885,60,1203,113,1984,199,1250,163,318,44,4002,224,2099,128,1583,130,768,90,1343,183,1443,150,2058,183,1126,119,421,46,625,93,798,137,609,57,481,65]
[null,"Less than 10.0 percent",{"$f":"C181+C192","v":41},{"$f":"SQRT((D181^2)+(D192^2))","v":42.544094772365298},{"$f":"E181+E192","v":177},{"$f":"SQRT((F181^2)+(F192^2))","v":62.649820430708338},{"$f":"G181+G192","v":56},{"$f":"SQRT((H181^2)+(H192^2))","v":119.85407794480753},{"$f":"I181+I192","v":324},{"$f":"SQRT((J181^2)+(J192^2))","v":117.72000679578642},{"$f":"K181+K192","v":45},{"$f":"SQRT((L181^2)+(L192^2))","v":26.832815729997478},{"$f":"M181+M192","v":48},{"$f":"SQRT((N181^2)+(N192^2))","v":25.80697580112788},{"$f":"O181+O192","v":35},{"$f":"SQRT((P181^2)+(P192^2))","v":23.021728866442675},{"$f":"Q181+Q192","v":724},{"$f":"SQRT((R181^2)+(R192^2))","v":165.60495161679194},{"$f":"S181+S192","v":70},{"$f":"SQRT((T181^2)+(T192^2))","v":31.304951684997057},{"$f":"U181+U192","v":97},{"$f":"SQRT((V181^2)+(V192^2))","v":50.803543183522152},{"$f":"W181+W192","v":65},{"$f":"SQRT((X181^2)+(X192^2))","v":34.409301068170507},208,{"$f":"SQRT((Z181^2)+(Z192^2))","v":81.60882305241266},{"$f":"AA181+AA192","v":83},{"$f":"SQRT((AB181^2)+(AB192^2))","v":47.381430961928537},{"$f":"AC181+AC192","v":18},{"$f":"SQRT((AD181^2)+(AD192^2))","v":114.52947218947619},{"$f":"AE181+AE192","v":341},{"$f":"SQRT((AF181^2)+(AF192^2))","v":124.47088012864695},{"$f":"AG181+AG192","v":252},{"$f":"SQRT((AH181^2)+(AH192^2))","v":90.553851381374173},{"$f":"AI181+AI192","v":193},{"$f":"SQRT((AJ181^2)+(AJ192^2))","v":72.111025509279784},{"$f":"AK181+AK192","v":51},{"$f":"SQRT((AL181^2)+(AL192^2))","v":24.839484696748443},{"$f":"AM181+AM192","v":257},{"$f":"SQRT((AN181^2)+(AN192^2))","v":110.11357772772621},113,124.48293055676348,{"$f":"AQ181+AQ192","v":128},{"$f":"SQRT((AR181^2)+(AR192^2))","v":93.776329636001435},{"$f":"AS181+AS192","v":49},{"$f":"SQRT((AT181^2)+(AT192^2))","v":40.311288741492746},{"$f":"AU181+AU192","v":42},{"$f":"SQRT((AV181^2)+(AV192^2))","v":18.973665961010276},{"$f":"AW181+AW192","v":140},{"$f":"SQRT((AX181^2)+(AX192^2))","v":78.549347546621931},{"$f":"AY181+AY192","v":42},{"$f":"SQRT((AZ181^2)+(AZ192^2))","v":23.086792761230392},{"$f":"BA181+BA192","v":30},{"$f":"SQRT((BB181^2)+(BB192^2))","v":18.384776310850235},{"$f":"BC181+BC192","v":24},{"$f":"SQRT((BD181^2)+(BD192^2))","v":19.723082923316021}]
[null,"10.0 to 14.9 percent",102,62.241465278381739,69,38.275318418009277,167,67.357256476195644,390,140.356688476182,77,32.310988842807021,97,40,79,32.557641192199412,949,194.40164608356588,51,32.310988842807021,109,40.80441152620633,132,{"$f":"SQRT((X182^2)+(X193^2))","v":52.630789467763066},221,85.475142585432408,118,72.917761896536561,70,27.313000567495326,495,107.56393447619885,244,96.938124595021947,202,66.887966032762577,88,32.015621187164243,188,98.081598681913832,133,66.730802482811484,236,95.210293561148106,117,69.354163537598808,49,21.213203435596427,108,37.483329627982627,133,51.478150704935004,85,31.622776601683793,74,32.202484376209235]
[null,"15.0 to 19.9 percent",122,52.801515129776341,84,37.12142238654117,153,72.917761896536561,387,137.93114224133723,59,27.313000567495326,156,51.97114584074513,88,34.713109915419565,1563,190.55970193091719,50,28.319604517012593,165,62.096698785040097,219,92.195444572928878,264,83.21658488546619,202,93.813645062965122,52,23.430749027719962,523,117.5967686630887,338,131.7269904006009,218,76.661594035083823,103,33.61547262794322,207,111.01801655587259,259,105.30906893520614,342,119.92080720208649,166,83.725742755737912,82,31.575306807693888,54,25.079872407968907,51,20.808652046684813,79,27.313000567495326,57,25.495097567963924]
[null,"20.0 to 24.9 percent",377,157.05094714773293,91,119.54915307102765,132,131.22880781291889,357,106.48004507887852,47,20.808652046684813,144,46.529560496527367,122,44.418464629025621,1479,234.38643305447522,54,29.529646120466801,96,39.293765408776999,209,72.567210226106937,280,88.323269867006175,223,96.026038135497402,30,16.552945357246848,688,134.23859355639868,292,110,289,106.48004507887852,96,37.443290453698111,150,80.956778592036386,271,143.40502083260543,280,107.91200118615167,99,56.612719418872643,60,20.124611797498108,95,39,121,49.648766349225639,88,27.856776554368238,71,46.518813398452032]
[null,"25.0 to 29.9 percent",112,67.675697262754525,69,30.364452901377952,70,47.413078364518789,284,105.65036677645753,51,27.294688127912362,52,25.80697580112788,145,53.366656256505337,1370,206.30559856678636,30,24.331050121192877,80,120.48651376813922,110,52.392747589718944,179,73.16419889536138,166,75.663729752107784,39,16.401219466856727,621,171.2337583538947,282,101.23734488813898,251,107.07007051459338,128,50.289163842720633,87,54.120236510939236,183,134.83323032546539,248,101.23734488813898,131,64.884512790033341,68,25.632011235952593,59,29.068883707497267,79,33.105890714493697,100,50.24937810560445,59,117.15374513859982]
[null,"30.0 to 34.9 percent",116,80.062475604992386,61,43.324358044868937,152,96.150923032490951,209,99.02019995940222,22,12.649110640673518,105,41,54,25.942243542145693,882,185.17289218457435,37,116.29703349613007,106,123.69316876852982,98,46.173585522460783,195,78.108898340714035,109,61.846584384264908,50,23.53720459187964,321,106.77546534667971,170,82.09750300709517,73,36.674241641784498,65,39,127,69.115844782509896,136,79.762146410437069,173,81.320354155647891,144,64.288412641781719,59,31.048349392520048,32,19.697715603592208,75,30.016662039607269,55,116.10340218959993,57,120.48651376813922]
[null,"35.0 to 39.9 percent",132,139.26952286842948,55,37.735924528226413,68,52.32590180780452,172,101.6070863670443,13,114.43775600735974,43,26.832815729997478,118,55.901699437494742,603,138.53880322855397,10,8.0622577482985491,68,118.96217886370441,127,75.822160349069449,103,48.754486972995622,141,84.628600366542756,20,15.652475842498529,331,117.27318534089538,78,126.14277624977183,122,65.30696746902278,35,117.38824472663352,21,23.600847442411894,172,77.665951355790398,139,133.25539388707685,21,24.186773244895647,20,15.231546211727817,32,22.561028345356956,74,41.629316592997299,51,24.738633753705962,26,115.7410903698423]
[null,"40.0 to 49.9 percent",62,45.310043036836767,60,33.241540277189323,121,68.949256703752795,241,97.128780492704635,44,26.627053911388696,40,25.96150997149434,123,56.753854494650845,784,171.71196813268432,53,28.284271247461902,43,116.92732785794773,92,50,191,65.79513659838392,120,138.69751259485514,12,114.35471131527551,264,91.678787077491378,212,116.10340218959993,86,122.19656296312102,69,46.270941205037097,27,117.15374513859982,61,118.68024266911489,238,100.18482919085105,149,72.235725233432802,9,114.28035701729323,21,114.85643212288984,95,52.611785751863621,42,20.615528128088304,21,15.620499351813308]
[null,"50.0 percent or more",112,63.655321851358195,124,58.54912467321779,158,73.824115301166998,215,109.63576058932597,60,24.351591323771842,113,44.10215414239989,137,62.265560304232388,1137,209.69501663129716,81,50.537115073973112,114,43.011626335213137,151,61.71709649683789,343,104.80935072788114,88,85.702975444263316,27,15.620499351813308,418,149.64290828502365,231,95.707888912043188,149,78.600254452514335,124,81.394102980498531,279,127.76932339180638,115,55,274,114.97825881443848,250,78.492037812761623,32,16.401219466856727,84,49.739320461783549,107,44.204072210600685,79,31.064449134018133,92,53.225933528685054]
[null,"Not computed",0,161.22034611053283,0,161.22034611053283,9,114.9826073804208,0,161.22034611053283,8,114.62983904725679,0,161.22034611053283,0,161.22034611053283,38,36.249137920783717,10,115.11733144926528,7,114.52947218947619,0,161.22034611053283,0,161.22034611053283,0,161.22034611053283,0,161.22034611053283,0,161.22034611053283,0,161.22034611053283,0,161.22034611053283,9,114.52947218947619,0,161.22034611053283,0,161.22034611053283,0,161.22034611053283,0,161.22034611053283,0,161.22034611053283,0,161.22034611053283,21,24.166091947189145,0,161.22034611053283,0,161.22034611053283]
[]
[]
[]
[]
[null,"Calculated MONTHLY OWNER COSTS AS A PERCENTAGE OF HOUSEHOLD INCOME IN THE PAST 12 MONTHS "]
[null,"Universe:  OWNER-OCCUPIED HOUSING UNITS"]
[null,"Data Set: 2005-2009 American Community Survey 5-Year Estimates"]
[null,null,"Allenstown",null,"Andover",null,"Boscawen",null,"Bow",null,"Bradford",null,"Canterbury",null,"Chichester",null,"Concord",null,"Danbury",null,"Dunbarton",null,"Epsom",null,"Franklin",null,"Henniker",null,"Hill",null,"Hooksett",null,"Hopkinton",null,"Loudon",null,"Newbury",null,"New London",null,"Northfield",null,"Pembroke",null,"Pittsfield",null,"Salisbury",null,"Sutton",null,"Warner",null,"Webster",null,"Wilmot"]
[null,null,"Estimate","Margin Of Error","Estimate","Margin Of Error","Estimate","Margin Of Error","Estimate","Margin Of Error","Estimate","Margin Of Error","Estimate","Margin Of Error","Estimate","Margin Of Error","Estimate","Margin Of Error","Estimate","Margin Of Error","Estimate","Margin Of Error","Estimate","Margin Of Error","Estimate","Margin Of Error","Estimate","Margin Of Error","Estimate","Margin Of Error","Estimate","Margin Of Error","Estimate","Margin Of Error","Estimate","Margin Of Error","Estimate","Margin Of Error","Estimate","Margin Of Error","Estimate","Margin Of Error","Estimate","Margin Of Error","Estimate","Margin Of Error","Estimate","Margin Of Error","Estimate","Margin Of Error","Estimate","Margin Of Error","Estimate","Margin Of Error","Estimate","Margin Of Error"]
[null,"Total:",{"$f":"C211","v":1176},{"$f":"D211","v":172},790,93,1086,141,2579,139,426,68,798,59,901,53,9529,368,446,70,885,60,1203,113,1984,199,1250,163,318,44,4002,224,2099,128,1583,130,768,90,1343,183,1443,150,2058,183,1126,119,421,46,625,93,798,137,609,57,481,65]
[null,"Less than 20% of HH Income",{"$f":"C212+C213+C214","v":265},{"$f":"SQRT((D212^2)+(D213^2)+(D214^2))","v":92.043467992030813},{"$f":"E212+E213+E214","v":330},{"$f":"SQRT((F212^2)+(F213^2)+(F214^2))","v":82.267855204812534},{"$f":"G212+G213+G214","v":376},{"$f":"SQRT((H212^2)+(H213^2)+(H214^2))","v":155.62454819211524},{"$f":"I212+I213+I214","v":1101},{"$f":"SQRT((J212^2)+(J213^2)+(J214^2))","v":229.30983406735962},{"$f":"K212+K213+K214","v":181},{"$f":"SQRT((L212^2)+(L213^2)+(L214^2))","v":50.099900199501398},{"$f":"M212+M213+M214","v":301},{"$f":"SQRT((N212^2)+(N213^2)+(N214^2))","v":70.476946585390607},{"$f":"O212+O213+O214","v":202},{"$f":"SQRT((P212^2)+(P213^2)+(P214^2))","v":52.867759551545213},{"$f":"Q212+Q213+Q214","v":3236},{"$f":"SQRT((R212^2)+(R213^2)+(R214^2))","v":318.6377253245447},{"$f":"S212+S213+S214","v":171},{"$f":"SQRT((T212^2)+(T213^2)+(T214^2))","v":53.160135440008048},{"$f":"U212+U213+U214","v":371},{"$f":"SQRT((V212^2)+(V213^2)+(V214^2))","v":90.011110425324716},{"$f":"W212+W213+W214","v":416},{"$f":"SQRT((X212^2)+(X213^2)+(X214^2))","v":111.59749101122301},{"$f":"Y212+Y213+Y214","v":693},{"$f":"SQRT((Z212^2)+(Z213^2)+(Z214^2))","v":144.53719244540486},{"$f":"AA212+AA213+AA214","v":403},{"$f":"SQRT((AB212^2)+(AB213^2)+(AB214^2))","v":127.91794244749249},{"$f":"AC212+AC213+AC214","v":140},{"$f":"SQRT((AD212^2)+(AD213^2)+(AD214^2))","v":120.04998958767136},{"$f":"AE212+AE213+AE214","v":1359},{"$f":"SQRT((AF212^2)+(AF213^2)+(AF214^2))","v":202.21770446723997},{"$f":"AG212+AG213+AG214","v":834},{"$f":"SQRT((AH212^2)+(AH213^2)+(AH214^2))","v":186.94651641579205},{"$f":"AI212+AI213+AI214","v":613},{"$f":"SQRT((AJ212^2)+(AJ213^2)+(AJ214^2))","v":124.70364870363657},{"$f":"AK212+AK213+AK214","v":242},{"$f":"SQRT((AL212^2)+(AL213^2)+(AL214^2))","v":52.649786324352732},{"$f":"AM212+AM213+AM214","v":652},{"$f":"SQRT((AN212^2)+(AN213^2)+(AN214^2))","v":184.58060569843192},{"$f":"AO212+AO213+AO214","v":505},{"$f":"SQRT((AP212^2)+(AP213^2)+(AP214^2))","v":176.17888636269669},{"$f":"AQ212+AQ213+AQ214","v":706},{"$f":"SQRT((AR212^2)+(AR213^2)+(AR214^2))","v":179.55500549970753},{"$f":"AS212+AS213+AS214","v":332},{"$f":"SQRT((AT212^2)+(AT213^2)+(AT214^2))","v":115.95257651298655},{"$f":"AU212+AU213+AU214","v":173},{"$f":"SQRT((AV212^2)+(AV213^2)+(AV214^2))","v":42.508822613664563},{"$f":"AW212+AW213+AW214","v":302},{"$f":"SQRT((AX212^2)+(AX213^2)+(AX214^2))","v":90.575934993794036},{"$f":"AY212+AY213+AY214","v":226},{"$f":"SQRT((AZ212^2)+(AZ213^2)+(AZ214^2))","v":60.13318551349164},{"$f":"BA212+BA213+BA214","v":194},{"$f":"SQRT((BB212^2)+(BB213^2)+(BB214^2))","v":45.650848842053307},{"$f":"BC212+BC213+BC214","v":155},{"$f":"SQRT((BD212^2)+(BD213^2)+(BD214^2))","v":45.563142999578069}]
[null," 20% to 29.9% of HH Income",{"$f":"C215+C216","v":489},{"$f":"SQRT((D215^2)+(D216^2))","v":171.011695506477},{"$f":"E215+E216","v":160},{"$f":"SQRT((F215^2)+(F216^2))","v":123.34504448902679},{"$f":"G215+G216","v":202},{"$f":"SQRT((H215^2)+(H216^2))","v":139.53135848260061},{"$f":"I215+I216","v":641},{"$f":"SQRT((J215^2)+(J216^2))","v":150},{"$f":"K215+K216","v":98},{"$f":"SQRT((L215^2)+(L216^2))","v":34.322004603461032},{"$f":"M215+M216","v":196},{"$f":"SQRT((N215^2)+(N216^2))","v":53.207142377692115},{"$f":"O215+O216","v":267},{"$f":"SQRT((P215^2)+(P216^2))","v":69.433421347359797},{"$f":"Q215+Q216","v":2849},{"$f":"SQRT((R215^2)+(R216^2))","v":312.24829863427601},{"$f":"S215+S216","v":84},{"$f":"SQRT((T215^2)+(T216^2))","v":38.262252939417984},{"$f":"U215+U216","v":176},{"$f":"SQRT((V215^2)+(V216^2))","v":126.7320006943787},{"$f":"W215+W216","v":319},{"$f":"SQRT((X215^2)+(X216^2))","v":89.504189846062502},{"$f":"Y215+Y216","v":459},{"$f":"SQRT((Z215^2)+(Z216^2))","v":114.69088891450794},{"$f":"AA215+AA216","v":389},{"$f":"SQRT((AB215^2)+(AB216^2))","v":122.25383429569808},{"$f":"AC215+AC216","v":69},{"$f":"SQRT((AD215^2)+(AD216^2))","v":23.302360395462088},{"$f":"AE215+AE216","v":1309},{"$f":"SQRT((AF215^2)+(AF216^2))","v":217.57987039246072},{"$f":"AG215+AG216","v":574},{"$f":"SQRT((AH215^2)+(AH216^2))","v":149.49581933953871},{"$f":"AI215+AI216","v":540},{"$f":"SQRT((AJ215^2)+(AJ216^2))","v":151.00331122197287},{"$f":"AK215+AK216","v":224},{"$f":"SQRT((AL215^2)+(AL216^2))","v":62.697687357668947},{"$f":"AM215+AM216","v":237},{"$f":"SQRT((AN215^2)+(AN216^2))","v":97.380696239039082},{"$f":"AO215+AO216","v":454},{"$f":"SQRT((AP215^2)+(AP216^2))","v":196.83749642789098},{"$f":"AQ215+AQ216","v":528},{"$f":"SQRT((AR215^2)+(AR216^2))","v":147.96621235944374},{"$f":"AS215+AS216","v":230},{"$f":"SQRT((AT215^2)+(AT216^2))","v":86.110394262249201},{"$f":"AU215+AU216","v":128},{"$f":"SQRT((AV215^2)+(AV216^2))","v":32.58834147360065},{"$f":"AW215+AW216","v":154},{"$f":"SQRT((AX215^2)+(AX216^2))","v":48.641546028061235},{"$f":"AY215+AY216","v":200},{"$f":"SQRT((AZ215^2)+(AZ216^2))","v":59.674114991342769},{"$f":"BA215+BA216","v":188},{"$f":"SQRT((BB215^2)+(BB216^2))","v":57.454329688892898},{"$f":"BC215+BC216","v":130},{"$f":"SQRT((BD215^2)+(BD216^2))","v":126.05157674539419}]
[null," Less Than 30% of HH Income",{"$f":"C212+C213+C214+C215+C216","v":754},{"$f":"SQRT((D212^2)+(D213^2)+(D214^2)+(D215^2)+(D216^2))","v":194.20865068271289},{"$f":"E212+E213+E214+E215+E216","v":490},{"$f":"SQRT((F212^2)+(F213^2)+(F214^2)+(F215^2)+(F216^2))","v":148.26327933780502},{"$f":"G212+G213+G214+G215+G216","v":578},{"$f":"SQRT((H212^2)+(H213^2)+(H214^2)+(H215^2)+(H216^2))","v":209.01674574062241},{"$f":"I212+I213+I214+I215+I216","v":1742},{"$f":"SQRT((J212^2)+(J213^2)+(J214^2)+(J215^2)+(J216^2))","v":274.01277342488982},{"$f":"K212+K213+K214+K215+K216","v":279},{"$f":"SQRT((L212^2)+(L213^2)+(L214^2)+(L215^2)+(L216^2))","v":60.728905802755904},{"$f":"M212+M213+M214+M215+M216","v":497},{"$f":"SQRT((N212^2)+(N213^2)+(N214^2)+(N215^2)+(N216^2))","v":88.306285167025337},{"$f":"O212+O213+O214+O215+O216","v":469},{"$f":"SQRT((P212^2)+(P213^2)+(P214^2)+(P215^2)+(P216^2))","v":87.26969691708571},{"$f":"Q212+Q213+Q214+Q215+Q216","v":6085},{"$f":"SQRT((R212^2)+(R213^2)+(R214^2)+(R215^2)+(R216^2))","v":446.12666362816736},{"$f":"S212+S213+S214+S215+S216","v":255},{"$f":"SQRT((T212^2)+(T213^2)+(T214^2)+(T215^2)+(T216^2))","v":65.498091575251266},{"$f":"U212+U213+U214+U215+U216","v":547},{"$f":"SQRT((V212^2)+(V213^2)+(V214^2)+(V215^2)+(V216^2))","v":155.4445238662334},{"$f":"W212+W213+W214+W215+W216","v":735},{"$f":"SQRT((X212^2)+(X213^2)+(X214^2)+(X215^2)+(X216^2))","v":143.05593311708537},{"$f":"Y212+Y213+Y214+Y215+Y216","v":1152},{"$f":"SQRT((Z212^2)+(Z213^2)+(Z214^2)+(Z215^2)+(Z216^2))","v":184.51287217969374},{"$f":"AA212+AA213+AA214+AA215+AA216","v":792},{"$f":"SQRT((AB212^2)+(AB213^2)+(AB214^2)+(AB215^2)+(AB216^2))","v":176.94349380522584},{"$f":"AC212+AC213+AC214+AC215+AC216","v":209},{"$f":"SQRT((AD212^2)+(AD213^2)+(AD214^2)+(AD215^2)+(AD216^2))","v":122.29063741758812},{"$f":"AE212+AE213+AE214+AE215+AE216","v":2668},{"$f":"SQRT((AF212^2)+(AF213^2)+(AF214^2)+(AF215^2)+(AF216^2))","v":297.04040129248409},{"$f":"AG212+AG213+AG214+AG215+AG216","v":1408},{"$f":"SQRT((AH212^2)+(AH213^2)+(AH214^2)+(AH215^2)+(AH216^2))","v":239.370006475331},{"$f":"AI212+AI213+AI214+AI215+AI216","v":1153},{"$f":"SQRT((AJ212^2)+(AJ213^2)+(AJ214^2)+(AJ215^2)+(AJ216^2))","v":195.83921976968762},{"$f":"AK212+AK213+AK214+AK215+AK216","v":466},{"$f":"SQRT((AL212^2)+(AL213^2)+(AL214^2)+(AL215^2)+(AL216^2))","v":81.871851084484462},{"$f":"AM212+AM213+AM214+AM215+AM216","v":889},{"$f":"SQRT((AN212^2)+(AN213^2)+(AN214^2)+(AN215^2)+(AN216^2))","v":208.69355524308841},{"$f":"AO212+AO213+AO214+AO215+AO216","v":959},{"$f":"SQRT((AP212^2)+(AP213^2)+(AP214^2)+(AP215^2)+(AP216^2))","v":264.16661409042587},{"$f":"AQ212+AQ213+AQ214+AQ215+AQ216","v":1234},{"$f":"SQRT((AR212^2)+(AR213^2)+(AR214^2)+(AR215^2)+(AR216^2))","v":232.66714422109538},{"$f":"AS212+AS213+AS214+AS215+AS216","v":562},{"$f":"SQRT((AT212^2)+(AT213^2)+(AT214^2)+(AT215^2)+(AT216^2))","v":144.42991379904649},{"$f":"AU212+AU213+AU214+AU215+AU216","v":301},{"$f":"SQRT((AV212^2)+(AV213^2)+(AV214^2)+(AV215^2)+(AV216^2))","v":53.563046963368315},{"$f":"AW212+AW213+AW214+AW215+AW216","v":456},{"$f":"SQRT((AX212^2)+(AX213^2)+(AX214^2)+(AX215^2)+(AX216^2))","v":102.81050529979902},{"$f":"AY212+AY213+AY214+AY215+AY216","v":426},{"$f":"SQRT((AZ212^2)+(AZ213^2)+(AZ214^2)+(AZ215^2)+(AZ216^2))","v":84.717176534631989},{"$f":"BA212+BA213+BA214+BA215+BA216","v":382},{"$f":"SQRT((BB212^2)+(BB213^2)+(BB214^2)+(BB215^2)+(BB216^2))","v":73.382559235829333},{"$f":"BC212+BC213+BC214+BC215+BC216","v":285},{"$f":"SQRT((BD212^2)+(BD213^2)+(BD214^2)+(BD215^2)+(BD216^2))","v":134.03357788255897}]
[null," 30% or More of HH Income",{"$f":"C217+C218+C219+C220","v":422},{"$f":"SQRT((D217^2)+(D218^2)+(D219^2)+(D220^2))","v":178.63650242881494},{"$f":"E217+E218+E219+E220","v":300},{"$f":"SQRT((F217^2)+(F218^2)+(F219^2)+(F220^2))","v":88.509886453435243},{"$f":"G217+G218+G219+G220","v":499},{"$f":"SQRT((H217^2)+(H218^2)+(H219^2)+(H220^2))","v":148.95301272549005},{"$f":"I217+I218+I219+I220","v":837},{"$f":"SQRT((J217^2)+(J218^2)+(J219^2)+(J220^2))","v":203.91910160649493},{"$f":"K217+K218+K219+K220","v":139},{"$f":"SQRT((L217^2)+(L218^2)+(L219^2)+(L220^2))","v":120.65653732807021},{"$f":"M217+M218+M219+M220","v":301},{"$f":"SQRT((N217^2)+(N218^2)+(N219^2)+(N220^2))","v":70.851958335673402},{"$f":"O217+O218+O219+O220","v":432},{"$f":"SQRT((P217^2)+(P218^2)+(P219^2)+(P220^2))","v":104.38390680559911},{"$f":"Q217+Q218+Q219+Q220","v":3406},{"$f":"SQRT((R217^2)+(R218^2)+(R219^2)+(R220^2))","v":356.28499828087064},{"$f":"S217+S218+S219+S220","v":181},{"$f":"SQRT((T217^2)+(T218^2)+(T219^2)+(T220^2))","v":130.16912076218384},{"$f":"U217+U218+U219+U220","v":331},{"$f":"SQRT((V217^2)+(V218^2)+(V219^2)+(V220^2))","v":212.07074291377393},{"$f":"W217+W218+W219+W220","v":468},{"$f":"SQRT((X217^2)+(X218^2)+(X219^2)+(X220^2))","v":119.12178642045291},{"$f":"Y217+Y218+Y219+Y220","v":832},{"$f":"SQRT((Z217^2)+(Z218^2)+(Z219^2)+(Z220^2))","v":154.24655587727074},{"$f":"AA217+AA218+AA219+AA220","v":458},{"$f":"SQRT((AB217^2)+(AB218^2)+(AB219^2)+(AB220^2))","v":193.82724266727834},{"$f":"AC217+AC218+AC219+AC220","v":109},{"$f":"SQRT((AD217^2)+(AD218^2)+(AD219^2)+(AD220^2))","v":118.82760622010359},{"$f":"AE217+AE218+AE219+AE220","v":1334},{"$f":"SQRT((AF217^2)+(AF218^2)+(AF219^2)+(AF220^2))","v":236.5417510715603},{"$f":"AG217+AG218+AG219+AG220","v":691},{"$f":"SQRT((AH217^2)+(AH218^2)+(AH219^2)+(AH220^2))","v":212.81917206868371},{"$f":"AI217+AI218+AI219+AI220","v":430},{"$f":"SQRT((AJ217^2)+(AJ218^2)+(AJ219^2)+(AJ220^2))","v":163.46253393362039},{"$f":"AK217+AK218+AK219+AK220","v":293},{"$f":"SQRT((AL217^2)+(AL218^2)+(AL219^2)+(AL220^2))","v":155.13542471015444},{"$f":"AM217+AM218+AM219+AM220","v":454},{"$f":"SQRT((AN217^2)+(AN218^2)+(AN219^2)+(AN220^2))","v":188.10635289643994},{"$f":"AO217+AO218+AO219+AO220","v":484},{"$f":"SQRT((AP217^2)+(AP218^2)+(AP219^2)+(AP220^2))","v":171.7672844286711},{"$f":"AQ217+AQ218+AQ219+AQ220","v":824},{"$f":"SQRT((AR217^2)+(AR218^2)+(AR219^2)+(AR220^2))","v":218.23611066915575},{"$f":"AS217+AS218+AS219+AS220","v":564},{"$f":"SQRT((AT217^2)+(AT218^2)+(AT219^2)+(AT220^2))","v":126.87395319765204},{"$f":"AU217+AU218+AU219+AU220","v":120},{"$f":"SQRT((AV217^2)+(AV218^2)+(AV219^2)+(AV220^2))","v":120.51970793193951},{"$f":"AW217+AW218+AW219+AW220","v":169},{"$f":"SQRT((AX217^2)+(AX218^2)+(AX219^2)+(AX220^2))","v":128.69731931940152},{"$f":"AY217+AY218+AY219+AY220","v":351},{"$f":"SQRT((AZ217^2)+(AZ218^2)+(AZ219^2)+(AZ220^2))","v":85.767126569566273},{"$f":"BA217+BA218+BA219+BA220","v":227},{"$f":"SQRT((BB217^2)+(BB218^2)+(BB219^2)+(BB220^2))","v":124.42668524074729},{"$f":"BC217+BC218+BC219+BC220","v":196},{"$f":"SQRT((BD217^2)+(BD218^2)+(BD219^2)+(BD220^2))","v":176.03976823433962}]
[null," 30% to 34.9% of HH Income",{"$f":"C217","v":116},{"$f":"D217","v":80.062475604992386},{"$f":"E217","v":61},43.324358044868937,152,96.150923032490951,209,99.02019995940222,22,12.649110640673518,105,41,54,25.942243542145693,882,185.17289218457435,37,116.29703349613007,106,123.69316876852982,98,46.173585522460783,195,78.108898340714035,109,61.846584384264908,50,23.53720459187964,321,106.77546534667971,170,82.09750300709517,73,36.674241641784498,65,39,127,69.115844782509896,136,79.762146410437069,173,81.320354155647891,144,64.288412641781719,59,31.048349392520048,32,19.697715603592208,75,30.016662039607269,55,116.10340218959993,57,120.48651376813922]
[null," Less Than 35% of HH Income",{"$f":"C212+C213+C214+C215+C216+C217","v":870},{"$f":"SQRT((D212^2)+(D213^2)+(D214^2)+(D215^2)+(D216^2)+(D217^2))","v":210.06427587764657},{"$f":"E212+E213+E214+E215+E216+E217","v":551},{"$f":"SQRT((F212^2)+(F213^2)+(F214^2)+(F215^2)+(F216^2)+(F217^2))","v":154.463587942272},{"$f":"G212+G213+G214+G215+G216+G217","v":730},{"$f":"SQRT((H212^2)+(H213^2)+(H214^2)+(H215^2)+(H216^2)+(H217^2))","v":230.07172794587345},{"$f":"I212+I213+I214+I215+I216+I217","v":1951},{"$f":"SQRT((J212^2)+(J213^2)+(J214^2)+(J215^2)+(J216^2)+(J217^2))","v":291.35545301229564},{"$f":"K212+K213+K214+K215+K216+K217","v":301},{"$f":"SQRT((L212^2)+(L213^2)+(L214^2)+(L215^2)+(L216^2)+(L217^2))","v":62.032249677083293},{"$f":"M212+M213+M214+M215+M216+M217","v":602},{"$f":"SQRT((N212^2)+(N213^2)+(N214^2)+(N215^2)+(N216^2)+(N217^2))","v":97.360156121485346},{"$f":"O212+O213+O214+O215+O216+O217","v":523},{"$f":"SQRT((P212^2)+(P213^2)+(P214^2)+(P215^2)+(P216^2)+(P217^2))","v":91.04394543296111},{"$f":"Q212+Q213+Q214+Q215+Q216+Q217","v":6967},{"$f":"SQRT((R212^2)+(R213^2)+(R214^2)+(R215^2)+(R216^2)+(R217^2))","v":483.03001977102832},{"$f":"S212+S213+S214+S215+S216+S217","v":292},{"$f":"SQRT((T212^2)+(T213^2)+(T214^2)+(T215^2)+(T216^2)+(T217^2))","v":133.47284367990366},{"$f":"U212+U213+U214+U215+U216+U217","v":653},{"$f":"SQRT((V212^2)+(V213^2)+(V214^2)+(V215^2)+(V216^2)+(V217^2))","v":198.65296373324009},{"$f":"W212+W213+W214+W215+W216+W217","v":833},{"$f":"SQRT((X212^2)+(X213^2)+(X214^2)+(X215^2)+(X216^2)+(X217^2))","v":150.32298560100514},{"$f":"Y212+Y213+Y214+Y215+Y216+Y217","v":1347},{"$f":"SQRT((Z212^2)+(Z213^2)+(Z214^2)+(Z215^2)+(Z216^2)+(Z217^2))","v":200.36466754395596},{"$f":"AA212+AA213+AA214+AA215+AA216+AA217","v":901},{"$f":"SQRT((AB212^2)+(AB213^2)+(AB214^2)+(AB215^2)+(AB216^2)+(AB217^2))","v":187.44065727584291},{"$f":"AC212+AC213+AC214+AC215+AC216+AC217","v":259},{"$f":"SQRT((AD212^2)+(AD213^2)+(AD214^2)+(AD215^2)+(AD216^2)+(AD217^2))","v":124.53513560437473},{"$f":"AE212+AE213+AE214+AE215+AE216+AE217","v":2989},{"$f":"SQRT((AF212^2)+(AF213^2)+(AF214^2)+(AF215^2)+(AF216^2)+(AF217^2))","v":315.64853872622314},{"$f":"AG212+AG213+AG214+AG215+AG216+AG217","v":1578},{"$f":"SQRT((AH212^2)+(AH213^2)+(AH214^2)+(AH215^2)+(AH216^2)+(AH217^2))","v":253.05730576294374},{"$f":"AI212+AI213+AI214+AI215+AI216+AI217","v":1226},{"$f":"SQRT((AJ212^2)+(AJ213^2)+(AJ214^2)+(AJ215^2)+(AJ216^2)+(AJ217^2))","v":199.24356953236909},{"$f":"AK212+AK213+AK214+AK215+AK216+AK217","v":531},{"$f":"SQRT((AL212^2)+(AL213^2)+(AL214^2)+(AL215^2)+(AL216^2)+(AL217^2))","v":90.686272390037075},{"$f":"AM212+AM213+AM214+AM215+AM216+AM217","v":1016},{"$f":"SQRT((AN212^2)+(AN213^2)+(AN214^2)+(AN215^2)+(AN216^2)+(AN217^2))","v":219.84085152673512},{"$f":"AO212+AO213+AO214+AO215+AO216+AO217","v":1095},{"$f":"SQRT((AP212^2)+(AP213^2)+(AP214^2)+(AP215^2)+(AP216^2)+(AP217^2))","v":275.94564682197836},{"$f":"AQ212+AQ213+AQ214+AQ215+AQ216+AQ217","v":1407},{"$f":"SQRT((AR212^2)+(AR213^2)+(AR214^2)+(AR215^2)+(AR216^2)+(AR217^2))","v":246.46906499599498},{"$f":"AS212+AS213+AS214+AS215+AS216+AS217","v":706},{"$f":"SQRT((AT212^2)+(AT213^2)+(AT214^2)+(AT215^2)+(AT216^2)+(AT217^2))","v":158.09174551506476},{"$f":"AU212+AU213+AU214+AU215+AU216+AU217","v":360},{"$f":"SQRT((AV212^2)+(AV213^2)+(AV214^2)+(AV215^2)+(AV216^2)+(AV217^2))","v":61.911226768656427},{"$f":"AW212+AW213+AW214+AW215+AW216+AW217","v":488},{"$f":"SQRT((AX212^2)+(AX213^2)+(AX214^2)+(AX215^2)+(AX216^2)+(AX217^2))","v":104.68046618161385},{"$f":"AY212+AY213+AY214+AY215+AY216+AY217","v":501},{"$f":"SQRT((AZ212^2)+(AZ213^2)+(AZ214^2)+(AZ215^2)+(AZ216^2)+(AZ217^2))","v":89.877694674485284},{"$f":"BA212+BA213+BA214+BA215+BA216+BA217","v":437},{"$f":"SQRT((BB212^2)+(BB213^2)+(BB214^2)+(BB215^2)+(BB216^2)+(BB217^2))","v":137.34991809244008},{"$f":"BC212+BC213+BC214+BC215+BC216+BC217","v":342},{"$f":"SQRT((BD212^2)+(BD213^2)+(BD214^2)+(BD215^2)+(BD216^2)+(BD217^2))","v":180.22763384120648}]
[null," 35% or More of HH Income",{"$f":"C218+C219+C220","v":306},{"$f":"SQRT((D218^2)+(D219^2)+(D220^2))","v":159.69032531747189},{"$f":"E218+E219+E220","v":239},{"$f":"SQRT((F218^2)+(F219^2)+(F220^2))","v":77.181604025829884},{"$f":"G218+G219+G220","v":347},{"$f":"SQRT((H218^2)+(H219^2)+(H220^2))","v":113.76291135515125},{"$f":"I218+I219+I220","v":628},{"$f":"SQRT((J218^2)+(J219^2)+(J220^2))","v":178.2638493918495},{"$f":"K218+K219+K220","v":117},{"$f":"SQRT((L218^2)+(L219^2)+(L220^2))","v":119.99166637729472},{"$f":"M218+M219+M220","v":196},{"$f":"SQRT((N218^2)+(N219^2)+(N220^2))","v":57.784080852774665},{"$f":"O218+O219+O220","v":378},{"$f":"SQRT((P218^2)+(P219^2)+(P220^2))","v":101.10885223361998},{"$f":"Q218+Q219+Q220","v":2524},{"$f":"SQRT((R218^2)+(R219^2)+(R220^2))","v":304.38462510448846},{"$f":"S218+S219+S220","v":144},{"$f":"SQRT((T218^2)+(T219^2)+(T220^2))","v":58.472215624174879},{"$f":"U218+U219+U220","v":225},{"$f":"SQRT((V218^2)+(V219^2)+(V220^2))","v":172.2614292289484},{"$f":"W218+W219+W220","v":370},{"$f":"SQRT((X218^2)+(X219^2)+(X220^2))","v":109.80892495603443},{"$f":"Y218+Y219+Y220","v":637},{"$f":"SQRT((Z218^2)+(Z219^2)+(Z220^2))","v":133.007518584477},{"$f":"AA218+AA219+AA220","v":349},{"$f":"SQRT((AB218^2)+(AB219^2)+(AB220^2))","v":183.69540005128056},{"$f":"AC218+AC219+AC220","v":59},{"$f":"SQRT((AD218^2)+(AD219^2)+(AD220^2))","v":116.47317287684749},{"$f":"AE218+AE219+AE220","v":1013},{"$f":"SQRT((AF218^2)+(AF219^2)+(AF220^2))","v":211.07107807560939},{"$f":"AG218+AG219+AG220","v":521},{"$f":"SQRT((AH218^2)+(AH219^2)+(AH220^2))","v":196.34663226039808},{"$f":"AI218+AI219+AI220","v":357},{"$f":"SQRT((AJ218^2)+(AJ219^2)+(AJ220^2))","v":159.2953232207399},{"$f":"AK218+AK219+AK220","v":228},{"$f":"SQRT((AL218^2)+(AL219^2)+(AL220^2))","v":150.15325504297269},{"$f":"AM218+AM219+AM220","v":327},{"$f":"SQRT((AN218^2)+(AN219^2)+(AN220^2))","v":174.94856386949851},{"$f":"AO218+AO219+AO220","v":348},{"$f":"SQRT((AP218^2)+(AP219^2)+(AP220^2))","v":152.12494864419841},{"$f":"AQ218+AQ219+AQ220","v":651},{"$f":"SQRT((AR218^2)+(AR219^2)+(AR220^2))","v":202.51913489840905},{"$f":"AS218+AS219+AS220","v":420},{"$f":"SQRT((AT218^2)+(AT219^2)+(AT220^2))","v":109.38007131100254},{"$f":"AU218+AU219+AU220","v":61},{"$f":"SQRT((AV218^2)+(AV219^2)+(AV220^2))","v":116.45170672858342},{"$f":"AW218+AW219+AW220","v":137},{"$f":"SQRT((AX218^2)+(AX219^2)+(AX220^2))","v":127.18097341976905},{"$f":"AY218+AY219+AY220","v":276},{"$f":"SQRT((AZ218^2)+(AZ219^2)+(AZ220^2))","v":80.343014631018178},{"$f":"BA218+BA219+BA220","v":172},{"$f":"SQRT((BB218^2)+(BB219^2)+(BB220^2))","v":44.743714642394188},{"$f":"BC218+BC219+BC220","v":139},{"$f":"SQRT((BD218^2)+(BD219^2)+(BD220^2))","v":128.34718539960275}]
[null," 50% or More of HH Income",{"$f":"C220","v":112},{"$f":"D220","v":63.655321851358195},{"$f":"E220","v":124},58.54912467321779,158,73.824115301166998,215,109.63576058932597,60,24.351591323771842,113,44.10215414239989,137,62.265560304232388,1137,209.69501663129716,81,50.537115073973112,114,43.011626335213137,151,61.71709649683789,343,104.80935072788114,88,85.702975444263316,27,15.620499351813308,418,149.64290828502365,231,95.707888912043188,149,78.600254452514335,124,81.394102980498531,279,127.76932339180638,115,55,274,114.97825881443848,250,78.492037812761623,32,16.401219466856727,84,49.739320461783549,107,44.204072210600685,79,31.064449134018133,92,53.225933528685054]
[null,"Not computed",{"$f":"C221","v":0},{"$f":"D221","v":161.22034611053283},0,161.22034611053283,9,114.9826073804208,0,161.22034611053283,8,114.62983904725679,0,161.22034611053283,0,161.22034611053283,38,36.249137920783717,10,115.11733144926528,7,114.52947218947619,0,161.22034611053283,0,161.22034611053283,0,161.22034611053283,0,161.22034611053283,0,161.22034611053283,0,161.22034611053283,0,161.22034611053283,9,114.52947218947619,0,161.22034611053283,0,161.22034611053283,0,161.22034611053283,0,161.22034611053283,0,161.22034611053283,0,161.22034611053283,21,24.166091947189145,0,161.22034611053283,0,161.22034611053283]

{"sheet":"ACS_Table_B25106","index":62,"n_rows":175,"n_cols":56,"rows_kept":175,"cut":false,"hidden":true,"merged":[]}
[null,"B25106. TENURE BY HOUSING COSTS AS A PERCENTAGE OF HOUSEHOLD INCOME IN THE PAST 12 MONTHS"]
[null,"Universe:  OCCUPIED HOUSING UNITS"]
[null,"Data Set: 2015-2019 American Community Survey 5-Year Estimates"]
[]
[null,null,"Allenstown",null,"Andover",null,"Boscawen",null,"Bow",null,"Bradford",null,"Canterbury",null,"Chichester",null,"Concord",null,"Danbury",null,"Dunbarton",null,"Epsom",null,"Franklin",null,"Henniker",null,"Hill",null,"Hooksett",null,"Hopkinton",null,"Loudon",null,"Newbury",null,"New London",null,"Northfield",null,"Pembroke",null,"Pittsfield",null,"Salisbury",null,"Sutton",null,"Warner",null,"Webster",null,"Wilmot"]
[null,null,"Estimate","Margin of Error","Estimate","Margin of Error","Estimate","Margin of Error","Estimate","Margin of Error","Estimate","Margin of Error","Estimate","Margin of Error","Estimate","Margin of Error","Estimate","Margin of Error","Estimate","Margin of Error","Estimate","Margin of Error","Estimate","Margin of Error","Estimate","Margin of Error","Estimate","Margin of Error","Estimate","Margin of Error","Estimate","Margin of Error","Estimate","Margin of Error","Estimate","Margin of Error","Estimate","Margin of Error","Estimate","Margin of Error","Estimate","Margin of Error","Estimate","Margin of Error","Estimate","Margin of Error","Estimate","Margin of Error","Estimate","Margin of Error","Estimate","Margin of Error","Estimate","Margin of Error","Estimate","Margin of Error"]
[null,"Total:",1788,107,1054,90,1374,112,2715,130,647,67,970,60,969,55,17530,366,481,65,938,45,1787,124,3909,223,1805,127,373,48,5252,190,2193,126,2050,174,910,86,1551,161,1860,118,2690,164,1675,159,554,65,769,91,1144,96,760,72,704,71]
[null,"Owner occupied housing units:",1379,114,900,95,1086,143,2427,129,574,66,892,67,882,80,9252,428,439,66,878,53,1505,107,2480,205,1356,138,343,47,3968,225,1950,130,1759,181,846,86,1256,148,1390,132,2108,223,1076,143,515,64,679,82,757,99,701,70,555,76]
[null,"Less than $20,000:",106,63,36,34,46,51,44,31,30,16,71,39,24,16,399,104,25,21,5,7,67,42,202,98,90,64,11,9,190,91,17,28,44,47,16,13,90,49,36,26,47,39,27,21,25,13,28,31,33,18,35,17,20,13]
[null,"Less than 20 percent",13,19,0,11,0,11,0,16,0,11,0,11,5,8,31,24,12,19,0,11,8,13,0,16,0,11,4,5,0,18,0,16,0,16,0,11,0,11,21,21,0,16,0,11,0,11,0,11,0,11,0,11,0,11]
[null,"20 to 29 percent",0,11,0,11,0,11,0,16,0,11,7,11,0,11,16,20,3,4,0,11,0,11,0,16,0,11,0,11,5,9,0,16,0,16,5,7,0,11,0,11,0,16,9,15,0,11,0,11,0,11,0,11,0,11]
[null,"30 percent or more",93,62,36,34,46,51,44,31,30,16,64,38,19,14,352,98,10,9,5,7,59,41,202,98,90,64,7,7,185,90,17,28,44,47,11,11,90,49,15,17,47,39,18,15,25,13,28,31,33,18,35,17,20,13]
[null,"$20,000 to $34,999:",199,91,85,32,123,74,77,42,101,38,62,29,86,34,732,160,63,29,24,16,155,54,365,122,70,57,17,13,180,90,130,78,202,108,48,24,87,46,149,75,231,131,78,46,42,28,52,33,70,43,25,16,50,30]
[null,"Less than 20 percent",10,16,5,8,0,11,0,16,3,5,0,11,0,11,23,21,0,11,4,6,20,23,10,16,20,32,0,11,10,16,22,34,26,42,14,14,0,11,38,45,79,102,14,24,0,11,3,4,12,19,3,5,0,11]
[null,"20 to 29 percent",26,29,20,25,0,11,8,13,20,20,16,16,36,21,74,36,21,22,0,11,11,17,126,70,0,11,4,6,54,63,0,16,80,71,0,11,40,34,24,21,14,23,16,18,4,6,17,23,9,9,3,4,8,7]
[null,"30 percent or more",163,82,60,33,123,74,69,41,78,33,46,26,50,29,635,150,42,17,20,14,124,54,229,96,50,46,13,12,116,67,108,71,96,74,34,19,47,32,87,58,138,98,48,34,38,27,32,25,49,35,19,15,42,27]
[null,"$35,000 to $49,999:",139,58,98,51,104,58,87,43,53,27,46,26,67,28,938,136,84,34,85,27,86,46,307,102,74,59,54,32,379,122,183,91,196,103,27,18,69,37,146,61,139,102,121,60,51,22,68,34,59,24,76,28,40,23]
[null,"Less than 20 percent",56,53,33,29,11,20,8,12,0,11,12,13,13,13,133,60,29,22,17,12,25,23,69,64,0,11,30,25,46,56,0,16,66,74,6,8,0,11,63,59,21,24,27,25,16,11,20,23,10,10,21,18,4,6]
[null,"20 to 29 percent",15,18,59,42,45,38,35,27,24,23,10,12,28,19,272,76,13,11,28,17,30,30,94,49,31,39,12,18,122,55,66,59,25,32,15,14,7,11,23,22,91,95,20,21,7,8,20,22,30,16,18,14,6,6]
[null,"30 percent or more",68,44,6,9,48,40,44,34,29,15,24,19,26,18,533,116,42,26,40,19,31,25,144,61,43,44,12,9,211,87,117,72,105,72,6,8,62,37,60,51,27,32,74,48,28,16,28,15,19,14,37,17,30,22]
[null,"$50,000 to $74,999:",271,93,172,52,213,82,234,71,84,29,167,64,102,40,1281,188,79,31,75,26,297,105,500,139,193,67,60,21,599,144,438,147,363,142,114,38,247,96,358,110,269,100,350,122,89,38,111,36,165,61,111,32,108,39]
[null,"Less than 20 percent",88,60,37,24,67,37,35,25,31,17,60,30,25,22,474,128,29,22,32,20,170,91,228,90,68,50,18,12,221,93,135,99,162,106,52,25,81,55,139,64,74,52,129,71,33,25,43,26,56,30,54,21,20,12]
[null,"20 to 29 percent",45,32,74,40,46,39,50,32,13,11,34,41,24,18,377,120,36,26,29,16,38,36,205,100,59,38,30,14,130,75,127,77,89,71,33,20,75,35,128,69,88,63,58,43,23,13,44,23,31,19,12,8,30,23]
[null,"30 percent or more",138,71,61,25,100,63,149,59,40,20,73,47,53,28,430,119,14,9,14,12,89,52,67,38,66,43,12,10,248,94,176,86,112,101,29,20,91,48,91,55,107,70,163,93,33,22,24,15,78,51,45,19,58,31]
[null,"$75,000 or more:",629,119,509,74,587,142,1976,132,306,52,534,69,597,70,5833,340,188,45,686,51,900,121,1064,183,910,136,201,42,2620,203,1182,172,930,151,635,87,755,96,701,117,1422,157,500,106,305,53,420,77,430,79,454,63,324,66]
[null,"Less than 20 percent",399,84,352,77,302,92,1259,154,211,50,370,60,363,69,4007,319,132,35,497,69,551,121,690,154,562,111,155,34,1721,236,727,180,561,175,475,82,485,101,488,101,1002,157,271,85,198,49,277,71,252,54,306,46,263,62]
[null,"20 to 29 percent",118,46,129,42,251,104,541,115,79,31,134,41,176,52,1420,225,43,23,124,38,286,97,287,135,306,108,42,20,749,167,362,107,348,111,145,50,215,81,213,86,315,105,148,76,87,28,123,51,139,45,103,41,31,17]
[null,"30 percent or more",112,78,28,17,34,31,176,83,16,9,30,22,58,36,406,125,13,10,65,28,63,43,87,57,42,36,4,5,150,80,93,58,21,29,15,15,55,36,0,11,105,90,81,44,20,21,20,16,39,28,45,28,30,20]
[null,"Zero or negative income",35,33,0,11,13,20,9,14,0,11,12,9,6,9,69,43,0,11,3,7,0,11,42,33,19,27,0,11,0,18,0,16,24,38,6,9,8,13,0,11,0,16,0,11,3,5,0,11,0,11,0,11,13,23]
[null,"Renter occupied housing units:",409,114,154,72,288,107,288,76,73,31,78,40,87,53,8278,412,42,17,60,26,282,82,1429,186,449,115,30,21,1284,204,243,100,291,138,64,26,295,90,470,109,582,186,599,147,39,26,90,36,387,91,59,29,149,52]
[null,"Less than $20,000:",186,81,0,11,89,50,63,47,3,5,28,38,5,7,1652,254,3,4,4,6,47,31,412,151,207,99,10,15,133,70,12,19,103,92,21,13,33,32,26,33,71,89,309,141,0,11,13,19,88,49,4,6,3,4]
[null,"Less than 20 percent",28,43,0,11,29,45,0,16,0,11,0,11,0,11,16,20,0,11,0,11,0,11,9,14,17,18,0,11,0,18,0,16,0,16,0,11,0,11,0,11,0,16,0,11,0,11,0,11,0,11,0,11,0,11]
[null,"20 to 29 percent",43,33,0,11,49,40,0,16,0,11,0,11,0,11,290,145,0,11,0,11,0,11,86,52,30,33,0,11,14,22,0,16,18,32,21,13,0,11,0,11,0,16,92,107,0,11,0,11,6,10,0,11,0,11]
[null,"30 percent or more",115,82,0,11,11,18,63,47,3,5,28,38,5,7,1346,252,3,4,4,6,47,31,317,139,160,98,10,15,119,76,12,19,85,85,0,11,33,32,26,33,71,89,217,101,0,11,13,19,82,50,4,6,3,4]
[null,"$20,000 to $34,999:",39,31,30,31,26,29,69,35,22,19,21,16,0,11,1636,258,9,10,9,9,45,39,297,106,70,58,4,5,179,86,12,21,42,48,10,11,32,31,167,104,105,70,83,68,5,9,19,20,65,40,13,18,8,8]
[null,"Less than 20 percent",0,11,0,11,0,11,0,16,3,5,0,11,0,11,81,61,0,11,0,11,0,11,52,50,0,11,0,11,6,10,0,16,0,16,0,11,0,11,0,11,0,16,0,11,0,11,0,11,6,8,2,4,0,11]
[null,"20 to 29 percent",11,19,0,11,0,11,10,16,0,11,9,12,0,11,226,115,0,11,0,11,11,18,39,32,21,34,0,11,35,35,0,16,0,16,0,11,0,11,18,21,15,24,0,11,0,11,0,11,31,34,11,18,0,11]
[null,"30 percent or more",28,24,30,31,26,29,59,32,19,18,12,13,0,11,1329,220,9,10,9,9,34,34,206,105,49,47,4,5,138,82,12,21,42,48,10,11,32,31,149,102,90,66,83,68,5,9,19,20,28,20,0,11,8,8]
[null,"$35,000 to $49,999:",60,55,29,39,12,20,31,27,29,22,0,11,49,44,1176,210,4,5,12,12,49,32,177,98,67,52,0,11,237,127,8,19,31,36,5,7,45,46,162,85,80,63,29,28,11,17,0,11,36,27,0,11,28,23]
[null,"Less than 20 percent",0,11,24,38,0,11,0,16,0,11,0,11,0,11,111,75,0,11,4,6,27,28,57,79,19,31,0,11,14,20,0,16,0,16,0,11,22,35,9,15,21,34,9,14,0,11,0,11,0,11,0,11,0,11]
[null,"20 to 29 percent",18,20,5,8,12,20,0,16,19,20,0,11,12,19,432,133,0,11,4,6,13,22,98,63,48,44,0,11,25,29,0,16,0,16,0,11,16,26,113,79,20,30,20,23,0,11,0,11,9,10,0,11,14,16]
[null,"30 percent or more",42,52,0,11,0,11,31,27,10,12,0,11,37,38,633,159,4,5,4,6,9,14,22,25,0,11,0,11,198,123,8,19,31,36,5,7,7,11,40,38,39,43,0,11,11,17,0,11,27,26,0,11,14,16]
[null,"$50,000 to $74,999:",88,55,11,11,75,79,34,27,12,11,0,11,9,13,1436,244,11,16,7,10,94,62,235,110,40,39,5,8,207,100,123,86,28,33,11,11,56,49,78,43,141,79,94,54,18,18,9,14,36,29,0,11,55,33]
[null,"Less than 20 percent",40,29,0,11,75,79,0,16,5,7,0,11,0,11,277,113,0,11,0,11,17,29,92,82,23,35,0,11,10,16,44,67,18,29,0,11,18,28,29,29,22,37,16,17,14,17,0,11,0,11,0,11,7,7]
[null,"20 to 29 percent",26,26,5,7,0,11,22,23,7,7,0,11,0,11,825,186,11,16,7,10,64,55,125,93,17,18,5,8,142,90,36,38,10,17,5,7,16,18,49,32,106,72,63,52,0,11,9,14,36,29,0,11,36,25]
[null,"30 percent or more",22,34,6,9,0,11,12,16,0,11,0,11,9,13,334,137,0,11,0,11,13,20,18,25,0,11,0,11,55,45,43,45,0,16,6,8,22,27,0,11,13,20,15,25,4,6,0,11,0,11,0,11,12,17]
[null,"$75,000 or more:",16,21,18,16,77,46,50,42,7,8,0,11,24,22,2080,291,11,17,20,17,27,35,224,101,55,49,4,5,421,162,43,59,49,59,6,9,79,43,20,23,185,102,74,68,5,7,31,25,117,59,17,17,43,30]
[null,"Less than 20 percent",9,18,6,9,51,38,28,36,3,6,0,11,24,22,1636,234,11,17,7,7,23,33,196,96,39,46,4,5,184,85,43,59,49,59,6,9,62,40,18,22,145,101,62,64,5,7,26,24,105,59,12,15,36,27]
[null,"20 to 29 percent",0,11,12,13,26,28,22,20,4,5,0,11,0,11,444,156,0,11,13,15,4,14,18,29,16,20,0,11,217,118,0,16,0,16,0,11,17,19,2,7,40,45,12,18,0,11,5,8,12,12,5,7,7,7]
[null,"30 percent or more",7,10,0,11,0,11,0,16,0,11,0,11,0,11,0,24,0,11,0,11,0,11,10,16,0,11,0,11,20,22,0,16,0,16,0,11,0,11,0,11,0,16,0,11,0,11,0,11,0,11,0,11,0,11]
[null,"Zero or negative income",0,11,0,11,0,11,11,18,0,11,0,11,0,11,123,74,0,11,0,11,0,11,0,16,0,11,0,11,30,44,0,16,0,16,0,11,0,11,0,11,0,16,0,11,0,11,0,11,6,10,11,17,0,11]
[null,"No cash rent",20,22,66,54,9,14,30,26,0,11,29,36,0,11,175,90,4,5,8,9,20,23,84,66,10,15,7,7,77,55,45,33,38,46,11,14,50,43,17,18,0,16,10,16,0,11,18,18,39,31,14,12,12,13]
[]
[]
[]
[]
[]
[]
[null,"Calculated B25106. TENURE BY HOUSING COSTS AS A PERCENTAGE OF HOUSEHOLD INCOME IN THE PAST 12 MONTHS"]
[null,"Universe:  OCCUPIED HOUSING UNITS"]
[null,"Data Set: 2015-2019 American Community Survey 5-Year Estimates"]
[]
[null,null,"Allenstown",null,"Andover",null,"Boscawen",null,"Bow",null,"Bradford",null,"Canterbury",null,"Chichester",null,"Concord",null,"Danbury",null,"Dunbarton",null,"Epsom",null,"Franklin",null,"Henniker",null,"Hill",null,"Hooksett",null,"Hopkinton",null,"Loudon",null,"Newbury",null,"New London",null,"Northfield",null,"Pembroke",null,"Pittsfield",null,"Salisbury",null,"Sutton",null,"Warner",null,"Webster",null,"Wilmot"]
[null,null,"Estimate","Margin of Error","Estimate","Margin of Error","Estimate","Margin of Error","Estimate","Margin of Error","Estimate","Margin of Error","Estimate","Margin of Error","Estimate","Margin of Error","Estimate","Margin of Error","Estimate","Margin of Error","Estimate","Margin of Error","Estimate","Margin of Error","Estimate","Margin of Error","Estimate","Margin of Error","Estimate","Margin of Error","Estimate","Margin of Error","Estimate","Margin of Error","Estimate","Margin of Error","Estimate","Margin of Error","Estimate","Margin of Error","Estimate","Margin of Error","Estimate","Margin of Error","Estimate","Margin of Error","Estimate","Margin of Error","Estimate","Margin of Error","Estimate","Margin of Error","Estimate","Margin of Error","Estimate","Margin of Error"]
[null,{"$f":"B7","v":"Total:"},1788,107,1054,90,1374,112,2715,130,647,67,970,60,969,55,17530,366,481,65,938,45,1787,124,{"$f":"Y7","v":3909},223,1805,127,373,48,5252,190,2193,126,2050,174,910,86,1551,161,1860,118,2690,164,1675,159,554,65,769,91,1144,96,760,72,704,71]
[null,"Owner occupied housing units:",1379,114,900,95,1086,143,2427,129,574,66,892,67,882,80,9252,428,439,66,878,53,1505,107,{"$f":"Y8","v":2480},205,1356,138,343,47,3968,225,1950,130,1759,181,846,86,1256,148,1390,132,2108,223,1076,143,515,64,679,82,757,99,701,70,555,76]
[null,"Less than 20 percent",{"$f":"C10+C14+C18+C22+C26","v":566},{"$f":"SQRT((D10^2)+(D14^2)+(D18^2)+(D22^2)+(D26^2))","v":118.66760299256069},{"$f":"SQRT((E10^2)+(E14^2)+(E18^2)+(E22^2)+(E26^2))","v":355.50949354412467},86.781334398590573,309.53836595808281,102.34744745229361,1259.5118101867881,158.10439589081639,213.28619270829512,55.281099844341014,375.02533247768741,70.078527381787922,364.1263516967702,74.82646590612174,4037.3139585620538,350.37408579973493,138.74436925511608,51.720402163943,498.33522853597253,73.905344867607511,577.57250627085773,155.3994851986325,{"$f":"SQRT((Y10^2)+(Y14^2)+(Y18^2)+(Y22^2)+(Y26^2))","v":730.03082126715719},190.85072700935672,566.45211624637784,126.83453788302302,158.94967757123635,45.508241011931013,1735.7701460734943,260.88503215017914,739.75536496871723,209.44927786936864,588.21509671207866,222.16435357635572,478.08053714829259,87.920418561333065,491.71739851260094,116.57186624567696,513.14617800388999,142.28141129465928,1008.0486099390247,196.44083078627008,301.67366474387518,116.56757696718243,201.36782265297501,58.215118311311535,281.04625953746478,79.893679349495471,258.61941149109435,66.317418526357017,311.4514408378937,55.018178813915675,263.78968895694163,65.31462317123173]
[null,"20 to 29 percent",{"$f":"C11+C15+C19+C23+C27","v":204},{"$f":"SQRT((D11^2)+(D15^2)+(D19^2)+(D23^2)+(D27^2))","v":66.528189513919585},161.23895310997278,76.642025025438883,259.11773385856861,118.41874851559612,544.49058761378046,124.1088232157569,85.941840799461588,46.173585522460783,139.70325694127536,62.313722405261586,183.39029418156241,62.856980519270891,1496.0765354753746,269.25266943894911,61.351446600711867,42.731721238442994,130.38788287260439,47.233462714478172,290.27745348200915,109.61295543867067,{"$f":"SQRT((Y11^2)+(Y15^2)+(Y19^2)+(Y23^2)+(Y27^2))","v":386.1424607576846},189.16130682568252,313.17407300094305,121.94670967270909,53.141321022345693,32.817678162843876,771.83288346636277,201.46711890529431,389.26726037518233,146.18823482072693,368.84956283015981,153.89281984550158,149.54597955144098,57.148928248918196,231.29850842580026,95.833188405687508,250.7149776140229,114.90430801323335,339.77345393658993,157.49285698088025,161.26065856246527,92.817024300502112,90.349322078253579,34.26368339802363,133.24413683160697,65.299310869258036,145.81838018576397,53.329166503893532,105.29007550571896,45.585085280165927,44.283179650969061,32]
[null,"30 percent or more",{"$f":"C12+C16+C20+C24+C28","v":574},{"$f":"SQRT((D12^2)+(D16^2)+(D20^2)+(D24^2)+(D28^2))","v":153.71727293964071},97.144222679477963,56.920997883030829,175.22842235208304,120.85942247090212,248.61617002922395,119.02940813093208,98.392072851424373,45.287967496897011,114.09206808538444,71.930522033417773,98.539332248600104,58.660037504249857,1077.4757537875273,274.49225854293229,63.190189111918315,35.028559776273987,80.286985246676196,39.166312055132281,178.06740296865118,98.868599666425936,{"$f":"SQRT((Y12^2)+(Y16^2)+(Y20^2)+(Y24^2)+(Y28^2))","v":355.01971776226742},165.02727047370081,136.26811806141598,106.268527796333,22.847319317591726,19.974984355438178,419.76898408529422,188.13293172647897,255.47406913422739,147.54321400864222,187.51533270642165,154.63182078731401,48.774993593028796,34.219877264537345,159.55876660340542,91.618775368370862,140.26760139105536,96.95359714832658,210.84591530309521,158.58436240689053,203.0615670184784,119.45710527214361,65.89385403814228,45.596052460711988,59.732738092272314,47.874836814343297,107.03270528207722,71.62401831787993,83.695878034703711,44.13615298142782,85.603738236130781,52.373657500693994]
[null,"Zero or negative income",{"$f":"C29","v":35},{"$f":"D29","v":33},{"$f":"E29","v":0},11,13,20,9,14,0,11,12,9,6,9,69,43,0,11,3,7,0,11,{"$f":"Y29","v":42},33,19,27,0,11,0,18,0,16,24,38,6,9,8,13,0,11,0,16,0,11,3,5,0,11,0,11,0,11,13,23]
[null,"Renter occupied housing units:",{"$f":"C30","v":409},{"$f":"D30","v":114},154,72,288,107,288,76,73,31,78,40,87,53,8278,412,42,17,60,26,282,82,{"$f":"Y30","v":1429},186,449,115,30,21,1284,204,243,100,291,138,64,26,295,90,470,109,582,186,599,147,39,26,90,36,387,91,59,29,149,52]
[null,"Less than 20 percent",{"$f":"C32+C36+C40+C44+C48","v":77},{"$f":"SQRT((D32^2)+(D36^2)+(D40^2)+(D44^2)+(D48^2))","v":57.061370470748422},{"$f":"SQRT((E32^2)+(E36^2)+(E40^2)+(E44^2)+(E48^2))","v":24.738633753705962},43.451121964800862,95.220796047922221,99.75971130671941,28,48.166378315169183,6.5574385243020004,18.761663039293719,0,24.596747752497688,24,31.11269837220809,1665.0414409257207,277.97661772170693,11,27.802877548915689,8.0622577482985491,21.166010488516726,39.331920878594275,54.369108876272747,{"$f":"SQRT((Y32^2)+(Y36^2)+(Y40^2)+(Y44^2)+(Y48^2))","v":230.03043276923165},157.72444325468391,51.96152422706632,68.898476035395731,4,22.561028345356956,184.89997295835389,91.131772724994221,61.522353661088097,93.477269964414347,52.201532544552748,71.344235926947874,6,23.769728648009426,68.205571619919738,62.056425936400814,35.298725189445584,42.332020977033451,148.15532390029054,115.05650785592269,64.660652641308843,69.447822140078657,14.866068747318506,26.476404589747453,26,32.557641192199412,105.17128885774862,62.513998432351137,12.165525060596439,24.576411454889016,36.674241641784498,33.77869150810907]
[null,"20 to 29 percent",{"$f":"C33+C37+C41+C45+C49","v":98},{"$f":"SQRT((D33^2)+(D37^2)+(D41^2)+(D45^2)+(D49^2))","v":51.44900387762624},13.928388277184119,22.891046284519195,56.753854494650845,55.009090157900268,32.680269276736382,41.194659848091959,20.639767440550294,26.758176320519304,9,25.059928172283335,12,29.068883707497267,1095.2447215120465,332.97297187609689,11,27.202941017470888,15.297058540778355,24.556058315617349,66.347569661593482,64.420493633625625,{"$f":"SQRT((Y33^2)+(Y37^2)+(Y41^2)+(Y45^2)+(Y49^2))","v":185.66098136118961},131.0991990822217,64.730209330729039,70.035705179572517,5,23.409399821439251,263.24703227197074,156.760964528801,36,49.678969393496885,20.591260281974002,45.617978911828175,21.587033144922902,24.103941586387901,28.301943396169811,40.037482438335203,124.49096352747857,88.746830929335161,116.02154972245458,94.556861200020805,113.91663618629195,122.99186964998947,0,24.596747752497688,10.295630140987001,24.959967948697368,50.179677161177509,48.383881613611777,12.083045973594572,27.129319932501073,39.255572852781043,34.23448553724738]
[null,"30 percent or more",{"$f":"C34+C38+C42+C46+C50","v":214},{"$f":"SQRT((D34^2)+(D38^2)+(D42^2)+(D46^2)+(D50^2))","v":106.11314715905847},30.594117081556711,37.483329627982627,28.231188426986208,39.08964057138413,92.493242996448117,66.887966032762577,21.679483388678801,27.110883423451916,30.463092423455635,44.45222154178574,38.40572873934304,43.634848458542855,2022.424782284869,395.6387240905521,10.295630140987001,19.570385790780925,10.63014581273465,19.874606914351791,60.124870062229654,53.235326616824658,{"$f":"SQRT((Y34^2)+(Y38^2)+(Y42^2)+(Y46^2)+(Y50^2))","v":379.25321356581804},178.47128620593287,167.3349933516597,110.34491379306978,10.770329614269007,24.758836806279895,275.37973781671013,173.60299536586342,46.914816422959603,58.68560300448484,99.749686716300019,106.47534925981694,12.68857754044952,21.817424229271428,51.43928459844674,54.369108876272747,156.45127036876372,114.79982578383994,121.78259317324459,121.58124855420756,232.81537749899599,125.26771331831678,12.727922061357855,25.45584412271571,23.021728866442675,33.526109228480422,90.757919764613376,61.789966823101629,4,22.803508501982758,20.322401432901575,27.313000567495326]
[null,"Zero or negative income",{"$f":"C51","v":0},{"$f":"D51","v":11},{"$f":"E51","v":0},11,0,11,11,18,0,11,0,11,0,11,123,74,0,11,0,11,0,11,{"$f":"Y51","v":0},16,0,11,0,11,30,44,0,16,0,16,0,11,0,11,0,11,0,16,0,11,0,11,0,11,6,10,11,17,0,11]
[null,"No cash rent",{"$f":"C52","v":20},{"$f":"D52","v":22},66,54,9,14,30,26,0,11,29,36,0,11,175,90,4,5,8,9,20,23,{"$f":"Y52","v":84},66,10,15,7,7,77,55,45,33,38,46,11,14,50,43,17,18,0,16,10,16,0,11,18,18,39,31,14,12,12,13]
[]
[]
[]
[]
[]
[]
[]
[]
[]
[]
[]
[]
[]
[]
[]
[]
[]
[]
[]
[]
[]
[]
[]
[null,"B25106. TENURE BY HOUSING COSTS AS A PERCENTAGE OF HOUSEHOLD INCOME IN THE PAST 12 MONTHS"]
[null,"Universe:  OCCUPIED HOUSING UNITS"]
[null,"Data Set: 2010-2014 American Community Survey 5-Year Estimates"]
[]
[null,null,"Allenstown",null,"Andover",null,"Boscawen",null,"Bow",null,"Bradford",null,"Canterbury",null,"Chichester",null,"Concord",null,"Danbury",null,"Dunbarton",null,"Epsom",null,"Franklin",null,"Henniker",null,"Hill",null,"Hooksett",null,"Hopkinton",null,"Loudon",null,"Newbury",null,"New London",null,"Northfield",null,"Pembroke",null,"Pittsfield",null,"Salisbury",null,"Sutton",null,"Warner",null,"Webster",null,"Wilmot"]
[null,null,"Estimate","Margin of Error","Estimate","Margin of Error","Estimate","Margin of Error","Estimate","Margin of Error","Estimate","Margin of Error","Estimate","Margin of Error","Estimate","Margin of Error","Estimate","Margin of Error","Estimate","Margin of Error","Estimate","Margin of Error","Estimate","Margin of Error","Estimate","Margin of Error","Estimate","Margin of Error","Estimate","Margin of Error","Estimate","Margin of Error","Estimate","Margin of Error","Estimate","Margin of Error","Estimate","Margin of Error","Estimate","Margin of Error","Estimate","Margin of Error","Estimate","Margin of Error","Estimate","Margin of Error","Estimate","Margin of Error","Estimate","Margin of Error","Estimate","Margin of Error","Estimate","Margin of Error","Estimate","Margin of Error"]
[null,"Total:",1787,88,975,87,1270,147,2777,133,684,77,894,64,996,62,17141,334,533,70,1053,59,1809,122,3379,195,1598,145,445,57,5216,237,2122,112,2013,139,756,95,1734,157,1729,104,2787,148,1525,127,553,62,786,99,1123,84,767,66,588,67]
[null,"Owner occupied housing units:",1252,116,839,98,884,148,2460,156,605,75,854,63,898,73,9376,354,438,65,917,86,1523,136,2015,220,1071,155,413,56,4473,271,1846,116,1693,133,716,95,1365,137,1313,123,1986,184,901,126,512,61,694,97,871,62,670,58,478,60]
[null,"Less than $20,000:",115,63,40,31,78,46,79,51,75,28,25,18,90,47,484,141,49,31,32,20,153,103,161,72,25,23,30,23,204,97,95,63,78,52,51,35,91,50,98,63,118,89,48,27,33,18,21,18,30,19,54,24,26,15]
[null,"Less than 20 percent",0,11,0,11,0,11,0,15,0,11,0,11,5,8,42,31,0,11,0,11,0,11,0,15,0,11,0,11,0,17,13,21,0,15,0,11,0,11,0,11,0,15,0,11,0,11,0,11,0,11,0,11,0,11]
[null,"20 to 29 percent",0,11,0,11,9,14,0,15,0,11,0,11,0,11,0,23,0,11,0,11,42,43,16,24,8,13,0,11,39,31,0,15,0,15,0,11,0,11,13,17,0,15,0,11,0,11,0,11,0,11,0,11,0,11]
[null,"30 percent or more",115,63,40,31,69,44,79,51,75,28,25,18,85,47,442,141,49,31,32,20,111,83,145,69,17,19,30,23,165,87,82,57,78,52,51,35,91,50,85,62,118,89,48,27,33,18,21,18,30,19,54,24,26,15]
[null,"$20,000 to $34,999:",142,71,104,41,50,35,114,59,44,27,47,24,83,43,1086,177,79,36,80,39,138,52,218,83,42,30,84,31,389,133,88,51,227,108,121,52,174,67,57,38,162,71,116,56,34,19,80,35,57,33,66,30,66,26]
[null,"Less than 20 percent",31,37,39,28,0,11,14,13,0,11,5,8,11,12,66,42,2,4,14,15,23,26,42,41,0,11,0,11,32,29,11,18,0,15,35,27,26,35,11,14,36,42,17,20,0,11,16,17,0,11,0,11,6,7]
[null,"20 to 29 percent",35,35,28,25,32,27,22,26,3,4,5,7,20,15,335,104,35,26,12,14,0,11,62,43,15,18,25,19,52,65,11,17,96,66,52,42,0,11,13,21,41,43,15,17,9,7,10,9,0,11,15,12,19,19]
[null,"30 percent or more",76,49,37,21,18,19,78,51,41,26,37,21,52,37,685,137,42,22,54,35,115,53,114,66,27,24,59,27,305,125,66,48,131,93,34,22,148,58,33,25,85,56,84,56,25,18,54,32,57,33,51,26,41,24]
[null,"$35,000 to $49,999:",236,82,131,57,115,63,204,78,83,31,82,41,80,41,1073,172,62,25,73,37,111,66,324,111,50,39,56,26,433,147,97,60,97,53,90,43,142,58,250,86,121,68,123,72,74,29,119,44,137,51,101,33,78,34]
[null,"Less than 20 percent",76,45,24,27,51,44,12,20,12,11,6,8,0,11,258,78,8,7,40,31,9,14,51,39,13,16,12,9,135,99,12,19,0,15,43,26,26,24,73,53,31,37,22,24,16,10,33,23,19,24,15,10,13,16]
[null,"20 to 29 percent",52,31,56,36,16,17,58,30,24,13,0,11,30,22,290,83,13,9,5,7,10,16,139,83,6,10,4,5,119,55,45,37,24,27,6,8,52,37,51,42,17,27,20,18,14,9,35,24,51,30,29,23,17,19]
[null,"30 percent or more",108,61,51,28,48,36,134,58,47,26,76,40,50,37,525,148,41,22,28,21,92,64,134,61,31,32,40,23,179,96,40,41,73,47,41,34,64,42,126,68,73,51,81,64,44,27,51,30,67,34,57,21,48,27]
[null,"$50,000 to $74,999:",258,83,123,47,272,95,239,85,165,46,160,52,174,59,1668,225,92,35,124,47,316,114,505,143,283,102,76,26,675,172,325,144,467,112,126,39,222,72,247,91,375,161,130,53,161,45,143,47,169,60,116,34,80,30]
[null,"Less than 20 percent",53,35,62,40,175,80,50,37,95,36,66,31,45,25,400,97,44,27,26,19,144,90,221,95,67,54,27,18,122,54,86,66,197,89,46,26,44,29,108,59,83,59,23,23,47,26,34,20,72,39,28,16,23,17]
[null,"20 to 29 percent",106,53,17,13,19,22,45,40,42,16,28,27,61,34,574,136,29,18,32,20,88,56,92,55,27,28,29,16,179,79,124,73,77,48,45,24,51,31,68,48,30,35,42,30,51,29,47,29,56,43,50,25,16,16]
[null,"30 percent or more",99,54,44,23,78,53,144,74,28,18,66,31,68,39,694,156,19,13,66,38,84,55,192,92,189,85,20,16,374,151,115,88,193,80,35,21,127,57,71,39,262,143,65,41,63,38,62,37,41,22,38,19,41,21]
[null,"$75,000 or more:",501,95,408,79,369,104,1815,161,238,48,540,70,471,60,5030,321,156,46,608,70,805,117,790,134,643,116,167,42,2751,235,1241,166,798,127,322,74,728,107,661,109,1195,148,484,101,207,41,331,65,478,68,325,49,225,44]
[null,"Less than 20 percent",285,66,271,70,230,85,873,148,132,41,316,61,263,70,3111,244,107,43,286,58,447,105,462,109,331,95,76,29,1263,243,562,131,539,126,132,48,394,89,363,86,641,138,207,74,106,34,171,43,344,68,139,37,102,27]
[null,"20 to 29 percent",151,52,97,43,73,43,651,129,60,24,156,50,157,47,1325,179,46,23,263,71,253,81,172,65,291,85,86,33,970,206,421,130,138,63,135,45,262,65,231,79,395,146,202,79,68,25,123,46,120,44,148,40,98,37]
[null,"30 percent or more",65,60,40,32,66,67,291,89,46,21,68,26,51,24,594,148,3,4,59,34,105,64,156,75,21,24,5,6,518,148,258,111,121,63,55,26,72,35,67,38,159,90,75,44,33,16,37,24,14,12,38,16,25,18]
[null,"Zero or negative income",0,11,33,36,0,11,9,13,0,11,0,11,0,11,35,31,0,11,0,11,0,11,17,27,28,45,0,11,21,22,0,15,26,29,6,8,8,13,0,11,15,24,0,11,3,4,0,11,0,11,8,14,3,4]
[null,"Renter occupied housing units:",535,128,136,60,386,104,317,80,79,33,40,21,98,50,7765,311,95,43,136,55,286,108,1364,180,527,116,32,23,743,144,276,113,320,119,40,29,369,114,416,87,801,168,624,113,41,25,92,38,252,84,97,46,110,42]
[null,"Less than $20,000:",81,67,27,22,137,71,95,66,18,16,28,13,0,11,1845,261,3,5,5,8,61,41,482,133,191,79,3,4,139,65,0,15,65,50,0,11,97,49,68,46,272,112,259,95,13,16,0,11,72,50,30,28,7,8]
[null,"Less than 20 percent",0,11,0,11,0,11,0,15,0,11,5,8,0,11,46,35,0,11,0,11,0,11,0,15,32,49,0,11,0,17,0,15,0,15,0,11,19,31,0,11,18,29,26,41,0,11,0,11,5,7,0,11,0,11]
[null,"20 to 29 percent",18,20,0,11,9,14,11,18,0,11,13,11,0,11,325,102,0,11,0,11,0,11,62,45,42,46,3,4,35,38,0,15,6,11,0,11,8,12,0,11,13,20,27,25,0,11,0,11,16,24,0,11,0,11]
[null,"30 percent or more",63,61,27,22,128,72,84,60,18,16,10,10,0,11,1474,248,3,5,5,8,61,41,420,137,117,74,0,11,104,52,0,15,59,48,0,11,70,46,68,46,241,109,206,87,13,16,0,11,51,49,30,28,7,8]
[null,"$20,000 to $34,999:",202,101,30,26,108,66,59,36,29,24,0,11,17,23,1860,305,6,9,45,35,78,60,369,137,114,66,4,6,183,72,17,27,38,37,0,11,59,48,120,72,174,113,152,77,14,16,13,16,45,37,17,20,22,20]
[null,"Less than 20 percent",53,54,0,11,0,11,0,15,0,11,0,11,0,11,134,97,0,11,0,11,5,8,15,23,7,12,0,11,16,24,0,15,0,15,0,11,0,11,0,11,30,43,0,11,0,11,0,11,5,8,0,11,0,11]
[null,"20 to 29 percent",14,24,0,11,0,11,0,15,3,5,0,11,0,11,215,89,0,11,0,11,0,11,42,42,6,10,0,11,24,32,17,27,0,15,0,11,0,11,7,11,39,45,63,44,0,11,3,6,5,8,0,11,0,11]
[null,"30 percent or more",135,79,30,26,108,66,59,36,26,23,0,11,17,23,1511,265,6,9,45,35,73,60,312,124,101,65,4,6,143,66,0,15,38,37,0,11,59,48,113,72,105,97,89,64,14,16,10,15,35,35,17,20,22,20]
[null,"$35,000 to $49,999:",33,35,18,29,39,37,73,61,6,7,0,11,8,9,1269,230,17,19,15,14,21,24,225,104,32,38,2,5,68,40,138,109,87,79,4,6,0,11,34,31,90,88,63,45,3,5,11,18,37,34,23,19,21,21]
[null,"Less than 20 percent",5,8,0,11,0,11,0,15,0,11,0,11,0,11,14,17,0,11,0,11,0,11,30,28,0,11,0,11,10,16,0,15,0,15,0,11,0,11,12,19,0,15,9,15,3,5,0,11,0,11,6,8,0,11]
[null,"20 to 29 percent",6,10,18,29,31,33,11,18,3,4,0,11,5,7,700,169,17,19,10,12,8,13,106,68,9,14,2,5,0,17,90,92,42,62,0,11,0,11,11,17,49,56,42,45,0,11,11,18,24,30,4,5,0,11]
[null,"30 percent or more",22,34,0,11,8,12,62,56,3,5,0,11,3,6,555,161,0,11,5,8,13,20,89,80,23,36,0,11,58,36,48,63,45,66,4,6,0,11,11,16,41,61,12,18,0,11,0,11,13,17,13,17,21,21]
[null,"$50,000 to $74,999:",86,58,16,13,26,25,22,24,12,12,0,11,16,24,1335,232,60,36,25,20,36,35,97,64,86,72,17,20,128,66,46,66,16,26,17,16,81,62,92,52,99,82,27,26,2,5,25,21,33,29,11,9,19,20]
[null,"Less than 20 percent",43,43,3,4,0,11,0,15,0,11,0,11,16,24,475,152,33,27,7,8,0,11,55,47,37,49,0,11,39,42,39,64,0,15,0,11,40,45,31,26,28,34,17,19,0,11,0,11,22,28,3,5,10,15]
[null,"20 to 29 percent",6,10,13,12,19,21,6,13,6,7,0,11,0,11,720,176,27,25,18,18,0,11,42,41,23,25,17,20,75,44,7,13,16,26,17,16,22,30,61,57,60,71,10,17,2,5,25,21,4,6,8,8,9,15]
[null,"30 percent or more",37,43,0,11,7,12,16,19,6,10,0,11,0,11,140,65,0,11,0,11,36,35,0,15,26,42,0,11,14,23,0,15,0,15,0,11,19,29,0,11,11,19,0,11,0,11,0,11,7,9,0,11,0,11]
[null,"$75,000 or more:",82,51,16,25,56,58,39,33,7,7,7,10,44,36,1122,209,0,11,13,13,58,66,80,56,79,71,2,5,192,103,75,67,86,67,5,7,79,53,93,54,130,112,96,67,3,6,26,21,61,38,16,11,38,27]
[null,"Less than 20 percent",49,44,16,25,56,58,26,27,5,7,7,10,44,36,901,191,0,11,13,13,9,14,72,55,74,71,2,5,96,81,64,65,47,53,0,11,72,52,83,55,114,108,96,67,3,6,14,17,55,37,12,10,34,26]
[null,"20 to 29 percent",33,26,0,11,0,11,13,21,2,4,0,11,0,11,205,87,0,11,0,11,49,66,8,17,5,10,0,11,96,66,11,18,39,42,5,7,0,11,10,15,16,27,0,11,0,11,12,16,0,11,4,5,4,5]
[null,"30 percent or more",0,11,0,11,0,11,0,15,0,11,0,11,0,11,16,26,0,11,0,11,0,11,0,15,0,11,0,11,0,17,0,15,0,15,0,11,7,12,0,11,0,15,0,11,0,11,0,11,6,8,0,11,0,11]
[null,"Zero or negative income",51,75,0,11,7,11,0,15,0,11,0,11,0,11,129,78,0,11,0,11,0,11,28,33,0,11,0,11,0,17,0,15,15,23,0,11,0,11,0,11,0,15,0,11,0,11,0,11,0,11,0,11,0,11]
[null,"No cash rent",0,11,29,24,13,16,29,41,7,8,5,7,13,15,205,138,9,8,33,34,32,42,83,57,25,28,4,6,33,31,0,15,13,21,14,23,53,50,9,13,36,39,27,40,6,6,17,17,4,7,0,11,3,4]
[]
[]
[]
[]
[]
[]
[null,"Calculated B25106. TENURE BY HOUSING COSTS AS A PERCENTAGE OF HOUSEHOLD INCOME IN THE PAST 12 MONTHS"]
[null,"Universe:  OCCUPIED HOUSING UNITS"]
[null,"Data Set: 2010-2014 American Community Survey 5-Year Estimates"]
[]
[null,null,"Allenstown",null,"Andover",null,"Boscawen",null,"Bow",null,"Bradford",null,"Canterbury",null,"Chichester",null,"Concord",null,"Danbury",null,"Dunbarton",null,"Epsom",null,"Franklin",null,"Henniker",null,"Hill",null,"Hooksett",null,"Hopkinton",null,"Loudon",null,"Newbury",null,"New London",null,"Northfield",null,"Pembroke",null,"Pittsfield",null,"Salisbury",null,"Sutton",null,"Warner",null,"Webster",null,"Wilmot"]
[null,null,"Estimate","Margin of Error","Estimate","Margin of Error","Estimate","Margin of Error","Estimate","Margin of Error","Estimate","Margin of Error","Estimate","Margin of Error","Estimate","Margin of Error","Estimate","Margin of Error","Estimate","Margin of Error","Estimate","Margin of Error","Estimate","Margin of Error","Estimate","Margin of Error","Estimate","Margin of Error","Estimate","Margin of Error","Estimate","Margin of Error","Estimate","Margin of Error","Estimate","Margin of Error","Estimate","Margin of Error","Estimate","Margin of Error","Estimate","Margin of Error","Estimate","Margin of Error","Estimate","Margin of Error","Estimate","Margin of Error","Estimate","Margin of Error","Estimate","Margin of Error","Estimate","Margin of Error","Estimate","Margin of Error"]
[null,{"$f":"B106","v":"Total:"},1787,88,975,87,1270,147,2777,133,684,77,894,64,996,62,17141,334,533,70,1053,59,1809,122,3379,195,1598,145,445,57,5216,237,2122,112,2013,139,756,95,1734,157,1729,104,2787,148,1525,127,553,62,786,99,1123,84,767,66,588,67]
[null,"Owner occupied housing units:",1252,116,839,98,884,148,2460,156,605,75,854,63,898,73,9376,354,438,65,917,86,1523,136,2015,220,1071,155,413,56,4473,271,1846,116,1693,133,716,95,1365,137,1313,123,1986,184,901,126,512,61,694,97,871,62,670,58,478,60]
[null,"Less than 20 percent",{"$f":"C109+C113+C117+C121+C125","v":445},{"$f":"SQRT((D109^2)+(D113^2)+(D117^2)+(D121^2)+(D125^2))","v":95.372952140530913},{"$f":"SQRT((E109^2)+(E113^2)+(E117^2)+(E121^2)+(E125^2))","v":281.74811445686731},90.188691087075881,293.47231555974747,125.70998369262483,874.62506252679498,155.13542471015444,163.07360301409912,57.79273310719956,322.91330105772971,70.221079456243046,267.09548854295537,76.511437053554289,3148.1748680783285,278.8440424323245,115.987068244697,52.57375771237966,290.28951066133959,70.936591403872796,470.27119835261016,141.83793568717786,516.38164181155787,155.99038431903423,337.96301572805271,111.53026495081951,81.541400527584756,38.57460304397182,1276.4411463126687,269.99259249097929,568.92354495134055,150.47591169353319,573.87280820753301,156.43529013620935,150.37951988219672,67.126745787353642,398.15072522852449,103.3634364753804,385.85359917979252,118.33427229674419,648.09490045825851,160.88194429456649,210.12139348481392,84.273364712701479,117.05127081753534,46.626172907499068,178.16284685646443,56.462376853972415,351.96732802917944,83.444592395193595,142.5833089811006,44.35087372307337,105.53672346628922,38]
[null,"20 to 29 percent",{"$f":"C110+C114+C118+C122+C126","v":344},{"$f":"SQRT((D110^2)+(D114^2)+(D118^2)+(D122^2)+(D126^2))","v":88.430763877736581},116.69618674146983,63.718129288295962,83.970232820922917,59.556695677312391,655.49523262949822,141.56977078458522,77.129760793094647,33.734255586865999,158.57175032142391,59.329587896765304,172.24981857755321,64.768819658845104,1510.4390090301561,262.24225441373858,65.962110336161928,41.605288125429439,265.25836461834712,76.203674452089246,271.32452893168357,109.19249058428881,247.92942544199951,128.70120434556935,292.80539612513974,92.746967605415549,94.223139408533825,43.034869582700026,995.65405638705658,238.51205420271739,441.31961207270177,155.28039155025337,186.45374761586316,107.62434668791258,151.62453627299243,67.453687816160212,271.93565415369864,82.443920333763842,246.82787524912985,105.06664551607233,398.61635691476584,159.19798993705919,207.8292568432077,88.741196746494239,86.614086614129917,41.43669871020132,136.61259092777649,61.11464636239009,141.90489773083945,70.192592201741633,159.59323293924464,54.945427471264615,102.51829105091443,49.678969393496885]
[null,"30 percent or more",{"$f":"C111+C115+C119+C123+C127","v":463},{"$f":"SQRT((D111^2)+(D115^2)+(D119^2)+(D123^2)+(D127^2))","v":128.86814967244621},95.425363504678359,61.147362984841791,133.52527850560733,104.3599540053559,368.37209449142591,148.19919028118878,111.42261888862602,53.860932037980923,129.42179105544784,63.26136261573884,140.19272449025306,83.928541033429141,1332.173412135222,326.79351278750931,78.8416133777081,45.978255730290599,112.07586716149021,68.308125431752259,228.23452850083837,144.62019222777985,336.4178948867019,164.09448497740561,195.29720940146584,98.802833967452571,80.037491215054956,45.596052460711988,748.65946865046726,277.69587681490697,304.0871585582002,165.22409025320732,283.66177042386238,154.69647701224486,98.427638394914254,63.103090257133999,235.78379927382628,110.00909053346456,183.63006289820848,109.80892495603443,346.991354359154,205.44342286868178,160.53348560347152,107.60111523585617,93.316665178305641,55.470712993434653,105.69295151522641,64.753378290248307,102.5426740435415,56.868268832451726,107.95369377654477,48.062459362791664,83.46855695410099,47.90615826801394]
[null,"Zero or negative income",{"$f":"C128","v":0},{"$f":"D128","v":11},{"$f":"E128","v":33},36,0,11,9,13,0,11,0,11,0,11,35,31,0,11,0,11,0,11,17,27,28,45,0,11,21,22,0,15,26,29,6,8,8,13,0,11,15,24,0,11,3,4,0,11,0,11,8,14,3,4]
[null,"Renter occupied housing units:",{"$f":"C129","v":535},{"$f":"D129","v":128},136,60,386,104,317,80,79,33,40,21,98,50,7765,311,95,43,136,55,286,108,1364,180,527,116,32,23,743,144,276,113,320,119,40,29,369,114,416,87,801,168,624,113,41,25,92,38,252,84,97,46,110,42]
[null,"Less than 20 percent",{"$f":"C131+C135+C139+C143+C147","v":150},{"$f":"SQRT((D131^2)+(D135^2)+(D139^2)+(D143^2)+(D147^2))","v":82.98192574289898},{"$f":"SQRT((E131^2)+(E135^2)+(E139^2)+(E143^2)+(E147^2))","v":16.278820596099706},31.685959035509718,56,62.032249677083293,26,40.36087214122113,5,23.086792761230392,8.6023252670426267,22.956480566497994,46.818799642878503,47.275786614291256,1028.442511762325,265.5334253912302,33,34.828149534535996,14.7648230602334,24.413111231467404,10.295630140987001,24.959967948697368,96.612628574115504,82.292162445763935,88.983144471298601,100.53854982045445,2,22.561028345356956,105.32331175955302,97.190534518542492,74.94664769020693,94.847245611035007,47,60.901559914340453,0,24.596747752497688,84.528101836016646,77.019478055878821,89.409171789028449,65.604877867426907,122.49081598226049,125.43922831395288,101.3015300970326,82.927679335671755,4.2426406871192848,20.591260281974002,14,27.802877548915689,59.657354953098618,48.856934001224431,13.74772708486752,20.760539492026695,35.440090293338699,35.552777669262355]
[null,"20 to 29 percent",{"$f":"C132+C136+C140+C144+C148","v":77},{"$f":"SQRT((D132^2)+(D136^2)+(D140^2)+(D144^2)+(D148^2))","v":43.034869582700026},22.203603311174518,36.715119501371639,37.456641600656084,44.362146025637671,21.142374511865974,38.509739027939411,7.6157731058639087,15.066519173319364,13,24.596747752497688,5,23.086792761230392,1096.4830140043209,292.28581901967124,31.906112267087632,36.728735344413913,20.591260281974002,28.827070610799147,49.648766349225639,69.914233171794137,136.64552682030978,101.89700682551965,49.345719165901315,56.008927859761783,17.378147196982766,26.134268690743959,129.00387591076478,95.12623192369179,92.514863670655643,99.554005444281344,59.808026217222718,81.424811943289129,17.720045146669349,25.845695966640172,23.409399821439251,37.509998667022103,63.174361888348344,63.28506932918696,89.145947748621751,106.44716999526104,81.006172604314543,70.682388188289167,2,22.561028345356956,29.983328701129899,34.322004603461025,29.546573405388315,41.194659848091959,9.7979589711327115,18.867962264113206,9.8488578017961039,24.758836806279895]
[null,"30 percent or more",{"$f":"C133+C137+C141+C145+C149","v":257},{"$f":"SQRT((D133^2)+(D137^2)+(D141^2)+(D145^2)+(D149^2))","v":114.40279716860073},40.36087214122113,39.025632602175712,167.81239525136397,99.744674043279119,120.98346994527806,92.833183722201412,32.326459750489228,32.109188716004645,10,24.166091947189145,17.262676501632068,30.463092423455635,2187.1620881864242,403.17614016704908,6.7082039324993694,21.656407827707714,45.552167895721496,39.937451095431719,102.5426740435415,83.827203221865872,530.72120741496656,202.47222031676347,158.41401453154327,113.49889867307083,4,22.803508501982758,186.61457606521523,95.781000203589443,48,69.778220097678044,83.366660002665327,92.081485652654408,4,22.803508501982758,93.760332763914619,74.337070160183202,132.34047000067667,88.306285167025337,266.28556100547399,159.99062472532572,224.72427550222517,110.59385154700057,19.104973174542799,29.58039891549808,10,26.627053911388696,63.874877690685246,63.718129288295962,36.851051545376556,41.41255848169731,31.208973068654469,33.867388443752198]
[null,"Zero or negative income",{"$f":"C150","v":51},{"$f":"D150","v":75},{"$f":"E150","v":0},11,7,11,0,15,0,11,0,11,0,11,129,78,0,11,0,11,0,11,28,33,0,11,0,11,0,17,0,15,15,23,0,11,0,11,0,11,0,15,0,11,0,11,0,11,0,11,0,11,0,11]
[null,"No cash rent",{"$f":"C151","v":0},{"$f":"D151","v":11},29,24,13,16,29,41,7,8,5,7,13,15,205,138,9,8,33,34,32,42,83,57,25,28,4,6,33,31,0,15,13,21,14,23,53,50,9,13,36,39,27,40,6,6,17,17,4,7,0,11,3,4]

{"sheet":"PlaceOfBirthAndPriorRes","index":63,"n_rows":57,"n_cols":16,"rows_kept":57,"cut":false,"hidden":true,"merged":[[40,11,40,13],[53,2,54,14],[4,3,4,5],[4,7,4,9],[40,3,40,5],[40,7,40,9],[4,11,4,13],[4,14,4,15],[40,14,40,15]]}
[]
[null,null,{"$f":"CntyDataLink!A50","v":"Allenstown"}]
[null,null,"SOCIAL CHARACTERISTICS"]
[]
[null,null,"Place of Birth","2005-2009",null,null,null,"2009-2013",null,null,null,"2015-2019",null,null,"Statistically Significant Change "]
[null,null,"Universe: Total Population","Estimate","Margin of Error",null,null,"Estimate","Margin of Error",null,null,"Estimate","Margin of Error",null,"2009-2019","2014-2019"]
[null,null,"  Total:",{"$f":"CntyDataLinkPrior10YearEstimate!$B$136","v":4956},{"$f":"CntyDataLinkPrior10YearEstimate!$C$136","v":29},null,null,{"$f":"CntyDataLinkPrior5YearEstimates!$B$136","v":4303},{"$f":"CntyDataLinkPrior5YearEstimates!$C$136","v":22},null,null,{"$f":"CntyDataLink!$B$136","v":4370},{"$f":"CntyDataLink!$C$136","v":26}]
[null,null,"   United States Native",{"$f":"CntyDataLinkPrior10YearEstimate!$D$136","v":4749},{"$f":"CntyDataLinkPrior10YearEstimate!$E$136","v":114},{"$f":"D8/$D$7","v":0.95823244552058107},null,{"$f":"CntyDataLinkPrior5YearEstimates!$D$136","v":4062},{"$f":"CntyDataLinkPrior5YearEstimates!$E$136","v":120},{"$f":"H8/$H$7","v":0.94399256332791071},null,{"$f":"CntyDataLink!$D$136","v":4094},{"$f":"CntyDataLink!$E$136","v":112},{"$f":"L8/$L$7","v":0.93684210526315792},{"$f":"StatisticallySignificantCalcs!A26","v":"Y"},{"$f":"StatisticallySignificantCalcs!J26","v":"N"}]
[null,null,"      New Hampshire Native",{"$f":"CntyDataLinkPrior10YearEstimate!$F$136","v":2802},{"$f":"CntyDataLinkPrior10YearEstimate!$G$136","v":336},{"$f":"D9/$D$7","v":0.56537530266343827},null,{"$f":"CntyDataLinkPrior5YearEstimates!$F$136","v":2510},{"$f":"CntyDataLinkPrior5YearEstimates!$G$136","v":260},{"$f":"H9/$H$7","v":0.58331396699976756},null,{"$f":"CntyDataLink!$F$136","v":2897},{"$f":"CntyDataLink!$G$136","v":207},{"$f":"L9/$L$7","v":0.66292906178489708},{"$f":"StatisticallySignificantCalcs!A27","v":"N"},{"$f":"StatisticallySignificantCalcs!J27","v":"Y"}]
[null,null,"      Born in Different State",{"$f":"CntyDataLinkPrior10YearEstimate!$H$136","v":1931},{"$f":"CntyDataLinkPrior10YearEstimate!$I$136","v":332},0.38962873284907185,null,{"$f":"CntyDataLinkPrior5YearEstimates!$H$136","v":1515},{"$f":"CntyDataLinkPrior5YearEstimates!$I$136","v":251},0.35207994422495931,null,{"$f":"CntyDataLink!$H$136","v":1190},{"$f":"CntyDataLink!$I$136","v":195},0.27231121281464532,{"$f":"StatisticallySignificantCalcs!A28","v":"Y"},{"$f":"StatisticallySignificantCalcs!J28","v":"Y"}]
[null,null,"          Northeast",{"$f":"CntyDataLinkPrior10YearEstimate!$J$136","v":1449},{"$f":"CntyDataLinkPrior10YearEstimate!$K$136","v":386},0.2923728813559322,null,{"$f":"CntyDataLinkPrior5YearEstimates!$J$136","v":1340},{"$f":"CntyDataLinkPrior5YearEstimates!$K$136","v":256},0.31141064373692773,null,{"$f":"CntyDataLink!$J$136","v":967},{"$f":"CntyDataLink!$K$136","v":168},0.22128146453089245,{"$f":"StatisticallySignificantCalcs!A29","v":"Y"},{"$f":"StatisticallySignificantCalcs!J29","v":"Y"}]
[null,null,"          Midwest",{"$f":"CntyDataLinkPrior10YearEstimate!$L$136","v":148},{"$f":"CntyDataLinkPrior10YearEstimate!$M$136","v":119},2.9862792574656981E-2,null,{"$f":"CntyDataLinkPrior5YearEstimates!$L$136","v":35},{"$f":"CntyDataLinkPrior5YearEstimates!$M$136","v":29},8.133860097606322E-3,null,{"$f":"CntyDataLink!$L$136","v":52},{"$f":"CntyDataLink!$M$136","v":54},1.1899313501144164E-2,{"$f":"StatisticallySignificantCalcs!A30","v":"N"},{"$f":"StatisticallySignificantCalcs!J30","v":"N"}]
[null,null,"          South",{"$f":"CntyDataLinkPrior10YearEstimate!$N$136","v":264},{"$f":"CntyDataLinkPrior10YearEstimate!$O$136","v":269},5.3268765133171914E-2,null,{"$f":"CntyDataLinkPrior5YearEstimates!$N$136","v":68},{"$f":"CntyDataLinkPrior5YearEstimates!$O$136","v":45},1.5802928189635138E-2,null,{"$f":"CntyDataLink!$N$136","v":129},{"$f":"CntyDataLink!$O$136","v":106},2.9519450800915333E-2,{"$f":"StatisticallySignificantCalcs!A31","v":"N"},{"$f":"StatisticallySignificantCalcs!J31","v":"N"}]
[null,null,"          West",{"$f":"CntyDataLinkPrior10YearEstimate!$P$136","v":70},{"$f":"CntyDataLinkPrior10YearEstimate!$Q$136","v":62},1.4124293785310734E-2,null,{"$f":"CntyDataLinkPrior5YearEstimates!$P$136","v":72},{"$f":"CntyDataLinkPrior5YearEstimates!$Q$136","v":54},1.6732512200790146E-2,null,{"$f":"CntyDataLink!$P$136","v":42},{"$f":"CntyDataLink!$Q$136","v":35},9.6109839816933638E-3,{"$f":"StatisticallySignificantCalcs!A32","v":"N"},{"$f":"StatisticallySignificantCalcs!J32","v":"N"}]
[null,null,"      Native Born Outside US",{"$f":"CntyDataLinkPrior10YearEstimate!$R136","v":16},{"$f":"CntyDataLinkPrior10YearEstimate!$S$136","v":24},3.2284100080710249E-3,null,{"$f":"CntyDataLinkPrior5YearEstimates!$R136","v":37},{"$f":"CntyDataLinkPrior5YearEstimates!$S$136","v":32},8.5986521031838261E-3,null,{"$f":"CntyDataLink!$R136","v":7},{"$f":"CntyDataLink!$S$136","v":11},1.6018306636155606E-3,{"$f":"StatisticallySignificantCalcs!A33","v":"N"},{"$f":"StatisticallySignificantCalcs!J33","v":"N"}]
[null,null,"   Foreign Born",{"$f":"CntyDataLinkPrior10YearEstimate!$Z136","v":207},{"$f":"CntyDataLinkPrior10YearEstimate!$AA$136","v":112},4.1767554479418885E-2,null,{"$f":"CntyDataLinkPrior5YearEstimates!$Z136","v":241},{"$f":"CntyDataLinkPrior5YearEstimates!$AA$136","v":119},5.6007436672089239E-2,null,{"$f":"CntyDataLink!$Z136","v":276},{"$f":"CntyDataLink!$AA$136","v":114},6.3157894736842107E-2,{"$f":"StatisticallySignificantCalcs!A34","v":"N"},{"$f":"StatisticallySignificantCalcs!J34","v":"N"}]
[null,null,"      Naturalized Citizen",{"$f":"CntyDataLinkPrior10YearEstimate!$AB136","v":129},{"$f":"CntyDataLinkPrior10YearEstimate!$AC$136","v":91},{"$f":"D17/$L$7","v":2.9519450800915333E-2},null,{"$f":"CntyDataLinkPrior5YearEstimates!$AB136","v":116},{"$f":"CntyDataLinkPrior5YearEstimates!$AC$136","v":75},2.6957936323495236E-2,null,{"$f":"CntyDataLink!$AB136","v":248},{"$f":"CntyDataLink!$AC$136","v":116},5.6750572082379866E-2,{"$f":"StatisticallySignificantCalcs!A35","v":"N"},{"$f":"StatisticallySignificantCalcs!J35","v":"N"}]
[null,null,"      Not a Citizen",{"$f":"CntyDataLinkPrior10YearEstimate!$AD$136","v":78},{"$f":"CntyDataLinkPrior10YearEstimate!$AE$136","v":53},{"$f":"D18/$L$7","v":1.7848970251716247E-2},null,{"$f":"CntyDataLinkPrior5YearEstimates!$AD$136","v":125},{"$f":"CntyDataLinkPrior5YearEstimates!$AE$136","v":104},2.9049500348594003E-2,null,{"$f":"CntyDataLink!$AD$136","v":28},{"$f":"CntyDataLink!$AE$136","v":26},6.4073226544622422E-3,{"$f":"StatisticallySignificantCalcs!A36","v":"N"},{"$f":"StatisticallySignificantCalcs!J36","v":"N"}]
[null,null,null,{"$f":"\"Source: \"&D41&\", \"&H41&\" and \"&L41& \" American Community Survey Table B05002.\"","v":"Source: 2005-2009, 2010-2014 and 2015-2019 American Community Survey Table B05002."}]
[]
[]
[]
[]
[]
[]
[]
[]
[]
[]
[]
[]
[]
[]
[]
[]
[]
[]
[]
[]
[null,null,"Place of Residence Prior year for Population"]
[null,null,"Universe: Population","2005-2009",null,null,null,"2010-2014",null,null,null,"2015-2019",null,null,"Statistically Significant Change "]
[null,null,null,"Estimate","Margin of Error",null,null,"Estimate","Margin of Error",null,null,"Estimate","Margin of Error",null,"2009-2019","2014-2019"]
[null,null,"  Total:",{"$f":"CntyDataLinkPrior10YearEstimate!$AF$136","v":4917},{"$f":"CntyDataLinkPrior10YearEstimate!$AG$136","v":54},null,null,{"$f":"CntyDataLinkPrior5YearEstimates!$AF$136","v":4249},{"$f":"CntyDataLinkPrior5YearEstimates!$AG$136","v":53},null,null,{"$f":"CntyDataLink!$AF$136","v":4309},{"$f":"CntyDataLink!$AG$136","v":50},null,{"$f":"StatisticallySignificantCalcs!$A37","v":"Y"},{"$f":"StatisticallySignificantCalcs!$J37","v":"N"}]
["Same House",null,"    Same House ",{"$f":"CntyDataLinkPrior10YearEstimate!$AH$136","v":4009},{"$f":"CntyDataLinkPrior10YearEstimate!$AI$136","v":434},{"$f":"IF($D$44=\"-\",\"-\",VALUE(D44/$D$43))","v":0.81533455358958717},null,{"$f":"CntyDataLinkPrior5YearEstimates!$AH$136","v":3494},{"$f":"CntyDataLinkPrior5YearEstimates!$AI$136","v":234},{"$f":"IF($H$44=\"-\",\"-\",VALUE($H$44/$H$43))","v":0.82231113203106609},null,{"$f":"CntyDataLink!$AH$136","v":3885},{"$f":"CntyDataLink!$AI$136","v":158},{"$f":"IF($L$44=\"-\",\"-\",VALUE($L$44/$L$43))","v":0.90160129960547686},{"$f":"StatisticallySignificantCalcs!$A38","v":"Y"},{"$f":"StatisticallySignificantCalcs!$J38","v":"N"}]
["Different House",null,"    Different House 1  ",{"$f":"CntyDataLinkPrior10YearEstimate!$AJ$136","v":908},{"$f":"CntyDataLinkPrior10YearEstimate!$AK$136","v":451.83293372661535},{"$f":"IF($D$45=\"-\",\"-\",VALUE(D45/$D$43))","v":0.18466544641041285},null,{"$f":"CntyDataLinkPrior5YearEstimates!$AJ$136","v":755},{"$f":"CntyDataLinkPrior5YearEstimates!$AK$136","v":248.39887278327171},{"$f":"IF($H$45=\"-\",\"-\",VALUE($H$45/$H$43))","v":0.17768886796893388},null,{"$f":"CntyDataLink!$AJ$136","v":424},{"$f":"CntyDataLink!$AK$136","v":166.35504200354134},{"$f":"IF($L$45=\"-\",\"-\",VALUE($L$45/$L$43))","v":9.8398700394523086E-2},{"$f":"StatisticallySignificantCalcs!$A39","v":"N"},{"$f":"StatisticallySignificantCalcs!$J39","v":"Y"}]
[null,null,"      in New Hampshire",{"$f":"CntyDataLinkPrior10YearEstimate!$AL$136","v":856},{"$f":"CntyDataLinkPrior10YearEstimate!$AM$136","v":449.36065693382636},{"$f":"IF($D$46=\"-\",\"-\",VALUE(D46/$D$43))","v":0.17408989221069757},null,{"$f":"CntyDataLinkPrior5YearEstimates!$AL$136","v":699},{"$f":"CntyDataLinkPrior5YearEstimates!$AM$136","v":242.4396832203837},{"$f":"IF($H$46=\"-\",\"-\",VALUE($H$46/$H$43))","v":0.16450929630501293},null,{"$f":"CntyDataLink!$AL$136","v":347},{"$f":"CntyDataLink!$AM$136","v":154.76756766196203},{"$f":"IF($L$46=\"-\",\"-\",VALUE($L$46/$L$43))","v":8.0529125087027156E-2},{"$f":"StatisticallySignificantCalcs!$A40","v":"N"},{"$f":"StatisticallySignificantCalcs!$J40","v":"Y"}]
[null,null,"          Same county",{"$f":"CntyDataLinkPrior10YearEstimate!$AN$136","v":493},{"$f":"CntyDataLinkPrior10YearEstimate!$AO$136","v":330},{"$f":"IF($D$47=\"-\",\"-\",VALUE(D47/$D$43))","v":0.10026438885499288},null,{"$f":"CntyDataLinkPrior5YearEstimates!$AN$136","v":441},{"$f":"CntyDataLinkPrior5YearEstimates!$AO$136","v":204},{"$f":"IF($H$47=\"-\",\"-\",VALUE($H$47/$H$43))","v":0.10378912685337727},null,{"$f":"CntyDataLink!$AN$136","v":135},{"$f":"CntyDataLink!$AO$136","v":87},{"$f":"IF($L$47=\"-\",\"-\",VALUE($L$47/$L$43))","v":3.1329774889765606E-2},{"$f":"StatisticallySignificantCalcs!$A41","v":"N"},{"$f":"StatisticallySignificantCalcs!$J41","v":"Y"}]
[null,null,"          Different county",{"$f":"CntyDataLinkPrior10YearEstimate!$AP$136","v":363},{"$f":"CntyDataLinkPrior10YearEstimate!$AQ$136","v":305},{"$f":"IF($D$48=\"-\",\"-\",VALUE(D48/$D$43))","v":7.3825503355704702E-2},null,{"$f":"CntyDataLinkPrior5YearEstimates!$AP$136","v":258},{"$f":"CntyDataLinkPrior5YearEstimates!$AQ$136","v":131},{"$f":"IF($H$48=\"-\",\"-\",VALUE($H$48/$H$43))","v":6.0720169451635678E-2},null,{"$f":"CntyDataLink!$AP$136","v":212},{"$f":"CntyDataLink!$AQ$136","v":128},{"$f":"IF($L$48=\"-\",\"-\",VALUE($L$48/$L$43))","v":4.9199350197261543E-2},{"$f":"StatisticallySignificantCalcs!$A42","v":"N"},{"$f":"StatisticallySignificantCalcs!$J42","v":"N"}]
["Different State",null,"      in Different state",{"$f":"CntyDataLinkPrior10YearEstimate!$AR$136","v":20},{"$f":"CntyDataLinkPrior10YearEstimate!$AS$136","v":28},{"$f":"IF($D$49=\"-\",\"-\",VALUE(D49/$D$43))","v":4.067520846044336E-3},null,{"$f":"CntyDataLinkPrior5YearEstimates!$AR$136","v":44},{"$f":"CntyDataLinkPrior5YearEstimates!$AS$136","v":51},{"$f":"IF($H$49=\"-\",\"-\",VALUE($H$49/$H$43))","v":1.0355377735937867E-2},null,{"$f":"CntyDataLink!$AR$136","v":77},{"$f":"CntyDataLink!$AS$136","v":60},{"$f":"IF($L$49=\"-\",\"-\",VALUE($L$49/$L$43))","v":1.7869575307495937E-2},{"$f":"StatisticallySignificantCalcs!$A43","v":"N"},{"$f":"StatisticallySignificantCalcs!$J43","v":"N"}]
["Eleswhere",null,"       Elsewhere",{"$f":"CntyDataLinkPrior10YearEstimate!$AT$136","v":32},{"$f":"CntyDataLinkPrior10YearEstimate!$AU$136","v":38},{"$f":"IF($D$50=\"-\",\"-\",VALUE(D50/$D$43))","v":6.5080333536709379E-3},null,{"$f":"CntyDataLinkPrior5YearEstimates!$AT$136","v":12},{"$f":"CntyDataLinkPrior5YearEstimates!$AU$136","v":18},{"$f":"IF($H$50=\"-\",\"-\",VALUE($H$50/$H$43))","v":2.824193927983055E-3},null,{"$f":"CntyDataLink!$AT$136","v":0},{"$f":"CntyDataLink!$AU$136","v":11},{"$f":"IF($L$50=\"-\",\"-\",VALUE($L$50/$L$43))","v":0},{"$f":"StatisticallySignificantCalcs!$A44","v":"N"},{"$f":"StatisticallySignificantCalcs!$J44","v":"N"}]
[]
[null,null,"Data from the American Community Survey are estimates"]
[]
[null,null,"1   The number for Different House was calculated by adding In New Hampshire, In Different State, and Elsewhere totals. The number is not located in the source Table B07003."]
[]
[]
[null,null,{"$f":"\"Source: \"&D41&\", \"&H41&\" and \"&L41& \" American Community Survey Table B07003.\"","v":"Source: 2005-2009, 2010-2014 and 2015-2019 American Community Survey Table B07003."}]

{"sheet":"ACS_Table_B05002","index":64,"n_rows":84,"n_cols":56,"rows_kept":84,"cut":false,"hidden":true,"merged":[]}
[null,"B05002. PLACE OF BIRTH BY CITIZENSHIP STATUS"]
[null,"Universe: TOTAL POPULATION"]
[null,"Data Set: 2015-2019 American Community Survey 5-Year Estimates"]
[]
[null,null,"Allenstown",null,"Andover",null,"Boscawen",null,"Bow",null,"Bradford",null,"Canterbury",null,"Chichester",null,"Concord",null,"Danbury",null,"Dunbarton",null,"Epsom",null,"Franklin",null,"Henniker",null,"Hill",null,"Hooksett",null,"Hopkinton",null,"Loudon",null,"Newbury",null,"New London",null,"Northfield",null,"Pembroke",null,"Pittsfield",null,"Salisbury",null,"Sutton",null,"Warner",null,"Webster",null,"Wilmot"]
[null,null,"Estimate","Margin Of Error","Estimate","Margin Of Error","Estimate","Margin Of Error","Estimate","Margin Of Error","Estimate","Margin Of Error","Estimate","Margin Of Error","Estimate","Margin Of Error","Estimate","Margin Of Error","Estimate","Margin Of Error","Estimate","Margin Of Error","Estimate","Margin Of Error","Estimate","Margin Of Error","Estimate","Margin Of Error","Estimate","Margin Of Error","Estimate","Margin Of Error","Estimate","Margin Of Error","Estimate","Margin Of Error","Estimate","Margin Of Error","Estimate","Margin Of Error","Estimate","Margin Of Error","Estimate","Margin Of Error","Estimate","Margin Of Error","Estimate","Margin Of Error","Estimate","Margin Of Error","Estimate","Margin Of Error","Estimate","Margin Of Error","Estimate","Margin Of Error"]
[null,"Total:",4390,22,2782,321,4004,15,7862,25,1587,214,2357,148,2662,29,43244,42,1129,165,2827,19,4722,18,8623,31,4962,17,920,148,14289,30,5691,29,5534,19,2096,214,4390,16,4881,26,7187,32,4117,16,1422,182,1905,279,2910,20,1781,185,1643,215]
[null,"Native:",4175,106,2716,313,3930,58,7368,211,1563,215,2252,147,2567,53,39140,521,1114,163,2769,34,4623,65,8427,135,4841,71,904,148,13495,222,5598,90,5455,99,2016,214,4139,104,4711,106,6941,123,4054,46,1381,179,1844,281,2806,54,1738,176,1563,205]
[null,"Born in state of residence",2735,223,1404,205,2686,194,3722,277,713,121,1139,136,1667,88,22084,781,544,106,1479,115,2786,256,5386,393,2226,301,432,98,7702,488,2575,337,3666,290,647,138,1054,161,3184,329,4549,359,2422,269,796,156,863,227,1468,194,1066,132,710,142]
[null,"Born in other state in the United States:",1431,213,1301,216,1201,187,3569,283,833,140,1078,127,895,99,16549,767,538,91,1269,119,1837,266,2965,399,2541,285,463,105,5702,477,2939,329,1739,294,1364,193,3030,189,1485,334,2370,343,1612,259,574,104,945,135,1325,180,655,94,807,116]
[null,"Northeast",1165,194,923,213,945,179,2694,240,646,131,804,114,735,94,11540,580,409,78,886,110,1211,170,2193,333,1892,294,343,103,4638,468,2122,327,1361,300,1119,170,2161,201,1294,332,2060,345,1187,258,484,93,617,120,964,153,472,79,632,111]
[null,"Midwest",86,77,127,59,69,72,344,109,43,18,70,31,48,30,1880,364,57,39,120,51,214,147,113,83,207,95,55,19,363,134,315,142,98,88,105,65,382,147,29,26,125,55,161,76,41,27,130,49,96,33,74,31,62,35]
[null,"South",122,106,90,49,142,82,334,167,99,37,103,46,52,26,2113,269,69,44,157,58,232,115,455,197,242,94,24,15,537,201,405,184,198,120,63,31,296,112,117,78,103,67,188,93,24,15,94,40,207,84,98,37,84,32]
[null,"West",58,42,161,96,45,35,197,62,45,20,101,50,60,35,1016,172,3,4,106,59,180,90,204,128,200,100,41,19,164,86,97,71,82,72,77,35,191,71,45,36,82,66,76,49,25,22,104,53,58,35,11,10,29,15]
[null,"Born outside the United States:",9,14,11,14,43,39,77,52,17,18,35,28,5,8,507,142,32,25,21,14,0,11,76,58,74,77,9,11,91,63,84,60,50,61,5,8,55,39,42,52,22,26,20,23,11,8,36,34,13,12,17,14,46,35]
[null,"Puerto Rico",0,11,0,11,16,20,0,16,0,11,0,11,0,11,44,33,0,11,0,11,0,11,13,20,26,37,0,11,39,34,0,16,0,16,0,11,17,26,0,11,0,16,0,11,0,11,0,11,0,11,0,11,1,4]
[null,"U.S. Island Areas",0,11,0,11,0,11,0,16,0,11,0,11,0,11,45,51,0,11,0,11,0,11,0,16,0,11,0,11,0,18,0,16,0,16,0,11,0,11,0,11,15,21,0,11,0,11,0,11,0,11,0,11,0,11]
[null,"Born abroad of American parent(s)",9,14,11,14,27,32,77,52,17,18,35,28,5,8,418,135,32,25,21,14,0,11,63,54,48,44,9,11,52,53,84,60,50,61,5,8,38,29,42,52,7,15,20,23,11,8,36,34,13,12,17,14,45,34]
[null,"Foreign born:",215,105,66,41,74,56,494,208,24,14,105,39,95,42,4104,514,15,12,58,29,99,63,196,128,121,70,16,11,794,222,93,85,79,97,80,62,251,102,170,104,246,116,63,45,41,23,61,40,104,48,43,27,80,45]
[null,"Naturalized U.S. citizen",190,104,46,35,38,41,349,163,20,13,82,38,68,36,1837,325,8,8,45,27,62,47,105,78,34,26,8,10,613,213,76,80,79,97,44,42,140,80,136,112,133,88,36,33,27,14,46,31,88,52,28,22,35,22]
[null,"Europe",71,66,0,11,0,11,45,41,7,8,21,15,8,10,388,129,0,11,23,18,20,18,0,16,2,4,8,10,195,116,57,58,15,26,5,7,89,68,18,21,65,75,17,16,10,8,9,15,39,26,6,7,6,8]
[null,"Asia",48,53,21,25,30,40,58,45,5,7,28,28,51,36,696,247,5,7,16,19,35,43,57,67,3,8,0,11,172,150,0,16,0,16,23,40,21,29,88,107,20,29,19,30,6,9,20,20,12,17,0,11,16,19]
[null,"Africa",0,11,8,11,0,11,0,16,5,6,0,11,0,11,308,162,0,11,6,8,0,11,0,16,7,11,0,11,86,79,19,30,0,16,0,11,4,8,0,11,0,16,0,11,0,11,2,3,4,8,0,11,0,11]
[null,"Oceania",0,11,0,11,0,11,108,123,0,11,0,11,0,11,0,24,0,11,0,11,0,11,0,16,0,11,0,11,0,18,0,16,0,16,0,11,13,14,0,11,0,16,0,11,0,11,0,11,0,11,0,11,0,11]
[null,"Latin America",30,45,17,25,0,11,92,69,3,6,33,28,4,7,252,119,0,11,0,11,0,11,17,27,7,10,0,11,62,54,0,16,0,16,0,11,4,9,22,22,0,16,0,11,0,11,15,17,28,41,0,11,6,9]
[null,"Northern America",41,39,0,11,8,19,46,51,0,11,0,11,5,7,193,92,3,6,0,11,7,11,31,30,15,26,0,11,98,56,0,16,64,96,16,11,9,12,8,12,48,41,0,11,11,8,0,11,5,7,22,20,7,7]
[null,"Not a U.S. citizen",25,25,20,23,36,33,145,79,4,6,23,17,27,19,2267,371,7,8,13,12,37,36,91,82,87,66,8,10,181,76,17,29,0,16,36,50,111,55,34,38,113,78,27,29,14,16,15,17,16,23,15,15,45,40]
[null,"Europe",9,16,0,11,0,11,8,13,4,6,19,16,0,11,155,77,0,11,6,9,0,11,27,25,4,9,5,8,85,54,0,16,0,16,5,8,28,29,2,4,24,37,9,13,0,11,0,11,0,11,4,5,11,10]
[null,"Asia",0,11,0,11,12,19,65,57,0,11,0,11,10,14,1420,301,0,11,4,6,0,11,16,24,17,24,0,11,68,42,0,16,0,16,0,11,62,48,27,37,0,16,11,18,0,11,9,13,0,11,0,11,0,11]
[null,"Africa",0,11,0,11,0,11,39,40,0,11,0,11,0,11,451,182,0,11,0,11,0,11,0,16,7,14,3,5,5,10,0,16,0,16,0,11,5,8,0,11,0,16,0,11,0,11,0,11,8,16,0,11,0,11]
[null,"Oceania",0,11,0,11,0,11,33,50,0,11,0,11,0,11,0,24,0,11,0,11,0,11,0,16,0,11,0,11,0,18,17,29,0,16,0,11,0,11,0,11,0,16,0,11,0,11,0,11,0,11,0,11,0,11]
[null,"Latin America",0,11,14,22,0,11,0,16,0,11,4,6,0,11,169,101,0,11,0,11,5,14,41,75,31,33,0,11,19,24,0,16,0,16,0,11,16,21,5,8,22,35,0,11,0,11,0,11,0,11,6,10,0,11]
[null,"Northern America",16,19,6,8,24,26,0,16,0,11,0,11,17,15,72,55,7,8,3,6,32,31,7,10,28,32,0,11,4,9,0,16,0,16,31,49,0,11,0,11,67,81,7,12,14,16,6,10,8,11,5,7,34,39]
[]
[]
[]
[]
[]
[]
[null,"B05002. PLACE OF BIRTH BY CITIZENSHIP STATUS"]
[null,"Universe: TOTAL POPULATION"]
[null,"Data Set: 2010-2014 American Community Survey 5-Year Estimates"]
[]
[null,null,"Allenstown",null,"Andover",null,"Boscawen",null,"Bow",null,"Bradford",null,"Canterbury",null,"Chichester",null,"Concord",null,"Danbury",null,"Dunbarton",null,"Epsom",null,"Franklin",null,"Henniker",null,"Hill",null,"Hooksett",null,"Hopkinton",null,"Loudon",null,"Newbury",null,"New London",null,"Northfield",null,"Pembroke",null,"Pittsfield",null,"Salisbury",null,"Sutton",null,"Warner",null,"Webster",null,"Wilmot"]
[null,null,"Estimate","Margin Of Error","Estimate","Margin Of Error","Estimate","Margin Of Error","Estimate","Margin Of Error","Estimate","Margin Of Error","Estimate","Margin Of Error","Estimate","Margin Of Error","Estimate","Margin Of Error","Estimate","Margin Of Error","Estimate","Margin Of Error","Estimate","Margin Of Error","Estimate","Margin Of Error","Estimate","Margin Of Error","Estimate","Margin Of Error","Estimate","Margin Of Error","Estimate","Margin Of Error","Estimate","Margin Of Error","Estimate","Margin Of Error","Estimate","Margin Of Error","Estimate","Margin Of Error","Estimate","Margin Of Error","Estimate","Margin Of Error","Estimate","Margin Of Error","Estimate","Margin Of Error","Estimate","Margin Of Error","Estimate","Margin Of Error","Estimate"]
[null,"Total:",4303,22,2428,252,3962,17,7611,29,1706,205,2291,204,2552,18,42514,41,1243,186,2779,17,4597,18,8462,36,4822,22,1164,184,13669,50,5591,23,5343,19,1749,234,4539,17,4823,17,7121,29,4082,28,1406,161,2014,287,2851,20,1891,199,1367,181]
[null,"Native:",4062,120,2334,255,3893,50,7252,155,1679,203,2224,187,2488,46,39800,398,1239,186,2717,38,4503,69,8174,171,4709,58,1159,184,13145,188,5458,96,5320,28,1708,231,4266,92,4683,108,6884,111,3949,86,1384,160,1931,280,2819,26,1875,199,1298,166]
[null,"Born in state of residence",2510,260,1338,189,2638,194,3772,311,647,113,973,118,1505,142,22096,734,605,137,1519,136,2513,327,5169,339,2396,239,713,133,7183,484,2746,356,3506,280,713,175,1004,168,2786,261,4224,347,2430,216,826,123,763,158,1327,141,1154,154,628,135]
[null,"Born in other state in the United States:",1515,251,967,198,1237,191,3408,285,990,155,1193,149,953,140,17336,701,632,147,1183,134,1981,321,2962,320,2272,240,444,101,5857,527,2678,333,1774,279,986,163,3200,189,1861,228,2527,337,1470,218,558,104,1165,198,1443,137,698,117,659,97]
[null,"Northeast",1340,256,670,149,775,167,2489,263,741,120,784,133,751,117,12432,627,521,133,858,141,1657,311,2231,336,1740,227,402,97,4511,477,1969,317,1223,237,739,135,2596,184,1246,166,1858,323,1065,206,424,91,771,138,1151,140,522,77,522,90]
[null,"Midwest",35,29,140,108,120,59,503,182,74,44,174,56,45,23,1709,245,56,31,144,53,131,65,193,80,246,103,16,13,325,119,199,101,163,104,66,36,243,85,135,75,222,130,115,78,53,29,133,55,76,34,53,29,64,25]
[null,"South",68,45,124,49,168,82,251,81,106,69,130,70,103,56,2252,304,29,16,102,61,82,42,422,175,157,70,20,16,784,291,264,93,289,132,113,46,269,88,301,106,192,115,208,95,50,32,167,72,129,50,103,78,52,26]
[null,"West",72,54,33,30,174,145,165,67,69,29,105,53,54,34,943,268,26,29,79,43,111,90,116,66,129,71,6,7,237,131,246,158,99,53,68,35,92,54,179,89,255,115,82,49,31,31,94,53,87,48,20,19,21,16]
[null,"Born outside the United States:",37,32,29,30,18,18,72,50,42,24,58,43,30,29,368,108,2,4,15,21,9,17,43,27,41,33,2,4,105,71,34,40,40,42,9,14,62,42,36,45,133,78,49,41,0,11,3,4,49,30,23,15,11,8]
[null,"Puerto Rico",11,17,6,8,0,11,0,15,0,11,0,11,0,11,33,29,0,11,0,11,0,11,12,15,0,11,0,11,19,30,0,15,11,18,0,11,5,11,0,11,0,15,0,11,0,11,0,11,0,11,4,6,0,11]
[null,"U.S. Island Areas",0,11,0,11,0,11,12,23,3,5,0,11,0,11,0,23,0,11,0,11,0,11,8,14,0,11,0,11,0,17,0,15,0,15,0,11,0,11,0,11,0,15,0,11,0,11,0,11,0,11,0,11,0,11]
[null,"Born abroad of American parent(s)",26,27,23,29,18,18,60,45,39,25,58,43,30,29,335,110,2,4,15,21,9,17,23,19,41,33,2,4,86,65,34,40,29,39,9,14,57,40,36,45,133,78,49,41,0,11,3,4,49,30,19,14,11,8]
[null,"Foreign born:",241,119,94,77,69,45,359,152,27,20,67,41,64,43,2714,397,4,7,62,31,94,68,288,170,113,56,5,6,524,183,133,97,23,21,41,24,273,93,140,107,237,108,133,83,22,13,83,55,32,22,16,12,69,43]
[null,"Naturalized U.S. citizen",116,75,36,25,38,27,235,103,19,18,23,22,35,39,987,222,0,11,44,25,86,67,108,74,21,24,2,4,310,127,116,95,16,18,37,23,158,74,80,60,91,69,28,30,19,13,56,39,32,22,10,9,32,20]
[null,"Not a U.S. citizen",125,104,58,69,31,27,124,90,8,8,44,36,29,25,1727,386,4,7,18,16,8,13,180,128,92,52,3,4,214,125,17,26,7,11,4,5,115,56,60,57,146,107,105,77,3,4,27,32,0,11,6,6,37,39]
[]
[]
[]
[null,"B05002. PLACE OF BIRTH BY CITIZENSHIP STATUS"]
[null,"Universe: TOTAL POPULATION"]
[null,"Data Set: 2005-2009 American Community Survey 5-Year Estimates"]
[]
[null,null,"Allenstown",null,"Andover",null,"Boscawen",null,"Bow",null,"Bradford",null,"Canterbury",null,"Chichester",null,"Concord",null,"Danbury",null,"Dunbarton",null,"Epsom",null,"Franklin",null,"Henniker",null,"Hill",null,"Hooksett",null,"Hopkinton",null,"Loudon",null,"Newbury",null,"New London",null,"Northfield",null,"Pembroke",null,"Pittsfield",null,"Salisbury",null,"Sutton",null,"Warner",null,"Webster",null,"Wilmot"]
[null,null,"Estimate","Margin Of Error","Estimate","Margin Of Error","Estimate","Margin Of Error","Estimate","Margin Of Error","Estimate","Margin Of Error","Estimate","Margin Of Error","Estimate","Margin Of Error","Estimate","Margin Of Error","Estimate","Margin Of Error","Estimate","Margin Of Error","Estimate","Margin Of Error","Estimate","Margin Of Error","Estimate","Margin Of Error","Estimate","Margin Of Error","Estimate","Margin Of Error","Estimate","Margin Of Error","Estimate","Margin Of Error","Estimate","Margin Of Error","Estimate","Margin Of Error","Estimate","Margin Of Error","Estimate","Margin Of Error","Estimate","Margin Of Error","Estimate","Margin Of Error","Estimate","Margin Of Error","Estimate","Margin Of Error","Estimate","Margin Of Error","Estimate","Margin Of Error"]
[null,"Total:",4956,29,2279,210,3931,25,8053,35,1237,178,2347,168,2533,28,42397,26,1351,245,2624,62,4563,45,8748,25,5015,42,1174,186,13724,19,5603,25,5141,17,2293,294,4447,22,5101,24,7335,40,4367,25,1203,126,1700,303,2960,17,1807,147,1267,178]
[null,"Native:",4749,114,2214,201,3861,62,7876,94,1212,176,2276,165,2464,56,40506,305,1347,245,2546,90,4474,78,8551,121,4847,106,1169,187,12646,335,5473,72,5020,86,2262,295,4224,151,5003,78,7154,106,4348,34,1185,125,1640,308,2911,38,1780,146,1230,179]
[null,"Born in state of residence",2802,336,1308,223,2355,292,4207,426,414,95,1262,139,1568,143,21711,848,792,187,1346,136,2784,204,5285,390,2111,343,639,143,7278,419,2457,332,3154,278,866,138,1179,273,3066,264,4695,337,2625,237,765,104,709,245,1271,213,1027,137,357,90]
[null,"Born in other state in the United States:",1931,332,906,176,1486,275,3610,432,786,130,982,116,877,151,18381,846,546,125,1185,139,1666,196,3201,369,2707,320,527,122,5252,401,2945,326,1866,275,1388,224,3000,259,1931,254,2353,312,1685,242,410,68,921,134,1623,200,745,101,867,146]
[null,"Northeast",1449,386,696,148,1054,244,2548,337,651,115,808,112,672,138,13447,852,438,114,910,142,1212,193,2367,315,1950,265,400,111,4054,404,2289,326,1524,257,1059,171,2386,302,1574,237,1965,293,1228,245,347,68,709,130,1227,163,611,95,630,92]
[null,"Midwest",148,119,81,30,54,40,587,345,28,18,54,29,45,30,1925,321,45,30,69,40,126,109,221,116,188,86,38,18,515,207,263,92,120,57,129,46,263,140,76,46,105,66,35,28,19,13,56,28,111,52,54,22,99,61]
[null,"South",264,269,72,43,254,173,248,127,78,31,64,35,99,55,1746,278,45,36,132,52,269,126,244,122,316,166,68,65,381,136,339,143,175,72,152,97,310,139,146,90,200,106,244,132,34,21,96,38,129,74,61,28,111,65]
[null,"West",70,62,57,48,124,82,227,95,29,22,56,34,61,33,1263,257,18,24,74,29,59,38,369,197,253,109,21,19,302,126,54,54,47,39,48,37,41,36,135,91,83,58,178,87,10,10,60,39,156,84,19,16,27,17]
[null,"Born outside the United States:",16,24,0,114,20,24,59,55,12,9,32,27,19,19,414,135,9,10,15,16,24,26,65,44,29,36,3,5,116,67,71,75,0,114,8,10,45,39,6,11,106,67,38,38,10,12,10,11,17,14,8,8,6,9]
[null,"Puerto Rico",0,114,0,114,0,114,29,34,0,114,0,114,0,114,145,82,0,114,0,114,0,114,0,114,0,114,0,114,0,114,0,114,0,114,0,114,0,114,0,114,17,28,0,114,0,114,0,114,0,114,0,114,0,114]
[null,"U.S. Island Areas",0,114,0,114,0,114,0,114,0,114,0,114,0,114,0,114,0,114,0,114,0,114,0,114,0,114,0,114,9,15,0,114,0,114,0,114,0,114,0,114,0,114,0,114,0,114,0,114,5,7,0,114,0,114]
[null,"Born abroad of American parent(s)",16,24,0,114,20,24,30,42,12,9,32,27,19,19,269,98,9,10,15,16,24,26,65,44,29,36,3,5,107,68,71,75,0,114,8,10,45,39,6,11,89,60,38,38,10,12,10,11,12,12,8,8,6,9]
[null,"Foreign born:",207,112,65,52,70,55,177,85,25,18,71,34,69,45,1891,300,4,5,78,57,89,66,197,120,168,93,5,5,1078,334,130,76,121,86,31,23,223,148,98,72,181,101,19,21,18,11,60,46,49,33,27,16,37,26]
[null,"Naturalized U.S. citizen",129,91,34,30,11,19,177,85,22,17,46,27,38,32,843,204,4,5,49,36,54,41,65,53,43,46,3,4,663,269,75,45,28,27,23,19,140,87,27,28,89,76,19,21,9,9,36,33,49,33,15,11,13,15]
[null,"Not a U.S. citizen",78,53,31,27,59,52,0,114,3,5,25,18,31,34,1048,212,0,114,29,31,35,38,132,104,125,82,2,3,415,159,55,59,93,77,8,13,83,85,71,69,92,69,0,114,9,8,24,28,0,114,12,11,24,23]

{"sheet":"ACS_Table_B07003","index":65,"n_rows":89,"n_cols":56,"rows_kept":89,"cut":false,"hidden":true,"merged":[]}
[null,"B07003. GEOGRAPHICAL MOBILITY IN THE PAST YEAR BY SEX FOR CURRENT RESIDENCE IN THE UNITED STATES - Universe:  POPULATION 1 YEAR AND OVER IN THE UNITED STATES"]
[null,"Data Set: 2015-2019 American Community Survey 5-Year Estimates"]
[null,"Survey: American Community Survey"]
[]
[null,null,"Allenstown",null,"Andover",null,"Boscawen",null,"Bow",null,"Bradford",null,"Canterbury",null,"Chichester",null,"Concord",null,"Danbury",null,"Dunbarton",null,"Epsom",null,"Franklin",null,"Henniker",null,"Hill",null,"Hooksett",null,"Hopkinton",null,"Loudon",null,"Newbury",null,"New London",null,"Northfield",null,"Pembroke",null,"Pittsfield",null,"Salisbury",null,"Sutton",null,"Warner",null,"Webster",null,"Wilmot"]
[null,null,"Estimate","Margin Of Error","Estimate","Margin Of Error","Estimate","Margin Of Error","Estimate","Margin Of Error","Estimate","Margin Of Error","Estimate","Margin Of Error","Estimate","Margin Of Error","Estimate","Margin Of Error","Estimate","Margin Of Error","Estimate","Margin Of Error","Estimate","Margin Of Error","Estimate","Margin Of Error","Estimate","Margin Of Error","Estimate","Margin Of Error","Estimate","Margin Of Error","Estimate","Margin Of Error","Estimate","Margin Of Error","Estimate","Margin Of Error","Estimate","Margin Of Error","Estimate","Margin Of Error","Estimate","Margin Of Error","Estimate","Margin Of Error","Estimate","Margin Of Error","Estimate","Margin Of Error","Estimate","Margin Of Error","Estimate","Margin Of Error","Estimate","Margin Of Error"]
[null,"Total:",4357,39,2768,321,3990,26,7782,70,1576,211,2346,148,2603,49,42745,147,1122,162,2818,21,4626,77,8543,66,4962,17,905,144,14162,86,5629,57,5534,19,2082,215,4356,34,4843,46,7075,83,4075,73,1419,182,1883,275,2892,31,1764,185,1603,195]
[null,"Male",2233,149,1479,284,1837,140,4020,166,802,130,1157,102,1312,83,21494,406,551,87,1428,73,2275,147,3986,203,2590,175,462,81,6827,290,2780,160,2394,351,1051,123,1924,159,2353,145,3467,220,2091,189,728,99,942,158,1324,89,904,108,764,113]
[null,"Female",2124,144,1289,134,2153,139,3762,173,774,108,1189,95,1291,81,21251,394,571,96,1390,72,2351,147,4557,201,2372,172,443,72,7335,296,2849,164,3140,353,1031,122,2432,160,2490,147,3608,208,1984,165,691,100,941,146,1568,92,860,103,839,112]
[null,"Same house 1 year ago:",3812,237,2176,225,3484,185,7312,158,1450,201,2176,159,2483,72,36500,652,1017,162,2634,115,4128,210,7327,326,4380,225,845,144,12446,416,5205,196,4932,297,1874,197,3736,184,4206,267,6513,280,3690,179,1325,161,1665,238,2551,142,1626,175,1411,187]
[null,"Male",2045,192,1108,161,1625,137,3822,177,716,122,1075,108,1283,84,18322,522,500,85,1336,90,2028,175,3401,254,2229,210,430,81,5818,351,2571,179,2181,366,929,108,1679,165,2047,205,3121,258,1878,194,682,88,837,136,1150,103,842,106,657,103]
[null,"Female",1767,137,1068,126,1859,197,3490,174,734,107,1101,98,1200,82,18178,456,517,96,1298,91,2100,167,3926,262,2151,205,415,72,6628,296,2634,188,2751,235,945,120,2057,169,2159,191,3392,238,1812,188,643,88,828,127,1401,106,784,94,754,110]
[null,"Moved within same county:",130,83,294,171,211,109,206,122,73,61,45,32,12,14,3047,473,90,50,69,62,186,100,627,264,134,141,36,28,315,223,132,104,301,210,39,31,103,80,360,193,218,129,190,167,78,64,124,84,213,125,108,53,116,92]
[null,"Male",51,44,155,108,108,62,58,50,56,45,24,15,0,11,1434,262,38,23,36,34,97,55,317,183,83,79,26,21,181,138,73,61,161,113,22,17,31,30,168,112,91,65,88,81,33,27,65,52,102,50,51,29,59,53]
[null,"Female",79,63,139,78,103,65,148,97,17,17,21,22,12,14,1613,267,52,30,33,31,89,64,310,120,51,69,10,8,134,94,59,48,140,103,17,15,72,63,192,93,127,80,102,88,45,40,59,50,111,83,57,30,57,42]
[null,"Moved from different county within same state:",314,219,186,197,247,164,171,115,25,16,58,35,58,42,1769,348,10,11,54,33,288,166,321,162,212,145,21,19,926,362,120,124,301,220,85,56,222,129,154,88,285,250,151,97,16,21,84,80,44,29,15,12,35,22]
[null,"Male",122,74,156,194,88,45,75,52,13,13,21,19,8,9,1059,227,10,11,21,16,142,101,143,104,125,90,6,8,568,365,59,68,52,60,55,40,80,51,67,43,216,187,108,75,13,20,40,32,28,20,7,7,35,22]
[null,"Female",192,151,30,24,159,164,96,69,12,9,37,22,50,39,710,176,0,11,33,21,146,78,178,110,87,67,15,13,358,130,61,64,249,202,30,23,142,96,87,56,69,82,43,35,3,5,44,57,16,16,8,8,0,11]
[null,"Moved from different state:",92,69,77,66,36,37,56,42,28,22,67,55,50,49,1058,255,5,10,52,57,24,41,258,143,225,113,3,5,413,138,130,111,0,16,84,50,279,125,123,115,59,68,44,43,0,11,10,16,84,49,8,9,39,22]
[null,"Male",6,9,49,39,4,8,48,35,17,14,37,32,21,23,597,145,3,5,30,33,8,14,115,76,146,78,0,11,241,107,56,65,0,16,45,29,126,72,71,65,39,42,17,19,0,11,0,11,44,31,0,11,13,11]
[null,"Female",86,69,28,30,32,36,8,12,11,9,30,28,29,26,461,146,2,6,22,24,16,27,143,128,79,46,3,5,172,76,74,58,0,16,39,24,153,75,52,59,20,32,27,26,0,11,10,16,40,33,8,9,26,16]
[null,"Moved from abroad:",9,14,35,34,12,19,37,35,0,11,0,11,0,11,371,276,0,11,9,13,0,11,10,16,11,16,0,11,62,55,42,64,0,16,0,11,16,25,0,11,0,16,0,11,0,11,0,11,0,11,7,7,2,4]
[null,"Male",9,14,11,10,12,19,17,29,0,11,0,11,0,11,82,65,0,11,5,7,0,11,10,16,7,14,0,11,19,25,21,32,0,16,0,11,8,18,0,11,0,16,0,11,0,11,0,11,0,11,4,5,0,11]
[null,"Female",0,11,24,25,0,11,20,20,0,11,0,11,0,11,289,230,0,11,4,6,0,11,0,16,4,9,0,11,43,41,21,32,0,16,0,11,8,17,0,11,0,16,0,11,0,11,0,11,0,11,3,4,2,4]
[]
[null,"Calculated B07003. GEOGRAPHICAL MOBILITY IN THE PAST YEAR BY SEX FOR CURRENT RESIDENCE IN THE UNITED STATES "]
[null,null,"Allenstown",null,"Andover",null,"Boscawen",null,"Bow",null,"Bradford",null,"Canterbury",null,"Chichester",null,"Concord",null,"Danbury",null,"Dunbarton",null,"Epsom",null,"Franklin",null,"Henniker",null,"Hill",null,"Hooksett",null,"Hopkinton",null,"Loudon",null,"Newbury",null,"New London",null,"Northfield",null,"Pembroke",null,"Pittsfield",null,"Salisbury",null,"Sutton",null,"Warner",null,"Webster",null,"Wilmot"]
[null,null,{"$f":"C6","v":"Estimate"},{"$f":"D6","v":"Margin Of Error"},{"$f":"E6","v":"Estimate"},"Margin Of Error","Estimate","Margin Of Error","Estimate","Margin Of Error","Estimate","Margin Of Error","Estimate","Margin Of Error","Estimate","Margin Of Error","Estimate","Margin Of Error","Estimate","Margin Of Error","Estimate","Margin Of Error","Estimate","Margin Of Error","Estimate","Margin Of Error","Estimate","Margin Of Error","Estimate","Margin Of Error","Estimate","Margin Of Error","Estimate","Margin Of Error","Estimate","Margin Of Error","Estimate","Margin Of Error","Estimate","Margin Of Error","Estimate","Margin Of Error","Estimate","Margin Of Error","Estimate","Margin Of Error","Estimate","Margin Of Error","Estimate","Margin Of Error","Estimate","Margin Of Error","Estimate","Margin Of Error","Estimate","Margin Of Error"]
[]
[null,"  Total:",{"$f":"C7","v":4357},{"$f":"D7","v":39},{"$f":"E7","v":2768},321,3990,26,7782,70,1576,211,2346,148,2603,49,42745,147,1122,162,2818,21,4626,77,8543,66,4962,17,905,144,14162,86,5629,57,5534,19,2082,215,4356,34,4843,46,7075,83,4075,73,1419,182,1883,275,2892,31,1764,185,1603,195]
[null,"    Same house ",{"$f":"C10","v":3812},{"$f":"D10","v":237},{"$f":"E10","v":2176},225,3484,185,7312,158,1450,201,2176,159,2483,72,36500,652,1017,162,2634,115,4128,210,7327,326,4380,225,845,144,12446,416,5205,196,4932,297,1874,197,3736,184,4206,267,6513,280,3690,179,1325,161,1665,238,2551,142,1626,175,1411,187]
[null,"    Different house 2",{"$f":"C13+C16+C19+C22","v":545},{"$f":"SQRT((D13^2)+(D16^2)+(D19^2)+(D22^2))","v":244.55469735828015},{"$f":"E13+E16+E19+E22","v":592},{"$f":"SQRT((F13^2)+(F16^2)+(F19^2)+(F22^2))","v":271.22315535366812},{"$f":"G13+G16+G19+G22","v":506},{"$f":"SQRT((H13^2)+(H16^2)+(H19^2)+(H22^2))","v":201.26350886338039},{"$f":"I13+I16+I19+I22","v":470},{"$f":"SQRT((J13^2)+(J16^2)+(J19^2)+(J22^2))","v":176.34625031454453},{"$f":"K13+K16+K19+K22","v":126},{"$f":"SQRT((L13^2)+(L16^2)+(L19^2)+(L22^2))","v":67.690472003081794},{"$f":"M13+M16+M19+M22","v":170},{"$f":"SQRT((N13^2)+(N16^2)+(N19^2)+(N22^2))","v":73.450663713815416},{"$f":"O13+O16+O19+O22","v":120},{"$f":"SQRT((P13^2)+(P16^2)+(P19^2)+(P22^2))","v":66.94774081326419},{"$f":"Q13+Q16+Q19+Q22","v":6245},{"$f":"SQRT((R13^2)+(R16^2)+(R19^2)+(R22^2))","v":697.16138734155379},{"$f":"S13+S16+S19+S22","v":105},{"$f":"SQRT((T13^2)+(T16^2)+(T19^2)+(T22^2))","v":53.310411741047361},{"$f":"U13+U16+U19+U22","v":184},{"$f":"SQRT((V13^2)+(V16^2)+(V19^2)+(V22^2))","v":91.383806005221729},{"$f":"W13+W16+W19+W22","v":498},{"$f":"SQRT((X13^2)+(X16^2)+(X19^2)+(X22^2))","v":198.3885077316728},{"$f":"Y13+Y16+Y19+Y22","v":1216},{"$f":"SQRT((Z13^2)+(Z16^2)+(Z19^2)+(Z22^2))","v":341.5333073069155},{"$f":"AA13+AA16+AA19+AA22","v":582},{"$f":"SQRT((AB13^2)+(AB16^2)+(AB19^2)+(AB22^2))","v":232.23048895440064},{"$f":"AC13+AC16+AC19+AC22","v":60},{"$f":"SQRT((AD13^2)+(AD16^2)+(AD19^2)+(AD22^2))","v":35.930488446443363},{"$f":"AE13+AE16+AE19+AE22","v":1716},{"$f":"SQRT((AF13^2)+(AF16^2)+(AF19^2)+(AF22^2))","v":450.37983969089913},{"$f":"AG13+AG16+AG19+AG22","v":424},{"$f":"SQRT((AH13^2)+(AH16^2)+(AH19^2)+(AH22^2))","v":206.41947582532032},{"$f":"AI13+AI16+AI19+AI22","v":602},{"$f":"SQRT((AJ13^2)+(AJ16^2)+(AJ19^2)+(AJ22^2))","v":304.97868777998241},{"$f":"AK13+AK16+AK19+AK22","v":208},{"$f":"SQRT((AL13^2)+(AL16^2)+(AL19^2)+(AL22^2))","v":81.963406468984687},{"$f":"AM13+AM16+AM19+AM22","v":620},{"$f":"SQRT((AN13^2)+(AN16^2)+(AN19^2)+(AN22^2))","v":198.21957521899799},{"$f":"AO13+AO16+AO19+AO22","v":637},{"$f":"SQRT((AP13^2)+(AP16^2)+(AP19^2)+(AP22^2))","v":241.53467659944815},{"$f":"AQ13+AQ16+AQ19+AQ22","v":562},{"$f":"SQRT((AR13^2)+(AR16^2)+(AR19^2)+(AR22^2))","v":289.86376110165963},{"$f":"AS13+AS16+AS19+AS22","v":385},{"$f":"SQRT((AT13^2)+(AT16^2)+(AT19^2)+(AT22^2))","v":198.16155025635018},{"$f":"AU13+AU16+AU19+AU22","v":94},{"$f":"SQRT((AV13^2)+(AV16^2)+(AV19^2)+(AV22^2))","v":69.130311730817468},{"$f":"AW13+AW16+AW19+AW22","v":218},{"$f":"SQRT((AX13^2)+(AX16^2)+(AX19^2)+(AX22^2))","v":117.61377470347595},{"$f":"AY13+AY16+AY19+AY22","v":341},{"$f":"SQRT((AZ13^2)+(AZ16^2)+(AZ19^2)+(AZ22^2))","v":137.79695207079146},{"$f":"BA13+BA16+BA19+BA22","v":138},{"$f":"SQRT((BB13^2)+(BB16^2)+(BB19^2)+(BB22^2))","v":55.524769247606962},{"$f":"BC13+BC16+BC19+BC22","v":192},{"$f":"SQRT((BD13^2)+(BD16^2)+(BD19^2)+(BD22^2))","v":97.20082304178294}]
[null,"      in New Hampshire",{"$f":"C16+C13","v":444},{"$f":"SQRT((D16^2)+(D13^2))","v":234.20076857260739},{"$f":"E16+E13","v":480},{"$f":"SQRT((F16^2)+(F13^2))","v":260.86394921491166},{"$f":"G16+G13","v":458},{"$f":"SQRT((H16^2)+(H13^2))","v":196.91876497682998},{"$f":"I16+I13","v":377},{"$f":"SQRT((J16^2)+(J13^2))","v":167.65738874263789},{"$f":"K16+K13","v":98},{"$f":"SQRT((L16^2)+(L13^2))","v":63.063460101710248},{"$f":"M16+M13","v":103},{"$f":"SQRT((N16^2)+(N13^2))","v":47.423622805517503},{"$f":"O16+O13","v":70},{"$f":"SQRT((P16^2)+(P13^2))","v":44.271887242357309},{"$f":"Q16+Q13","v":4816},{"$f":"SQRT((R16^2)+(R13^2))","v":587.22482917533387},{"$f":"S16+S13","v":100},{"$f":"SQRT((T16^2)+(T13^2))","v":51.195702944680818},{"$f":"U16+U13","v":123},{"$f":"SQRT((V16^2)+(V13^2))","v":70.235318750611498},{"$f":"W16+W13","v":474},{"$f":"SQRT((X16^2)+(X13^2))","v":193.79370474811611},{"$f":"Y16+Y13","v":948},{"$f":"SQRT((Z16^2)+(Z13^2))","v":309.74182797936737},{"$f":"AA16+AA13","v":346},{"$f":"SQRT((AB16^2)+(AB13^2))","v":202.25231766286387},{"$f":"AC16+AC13","v":57},{"$f":"SQRT((AD16^2)+(AD13^2))","v":33.837848631377263},{"$f":"AE16+AE13","v":1241},{"$f":"SQRT((AF16^2)+(AF13^2))","v":425.1740819946578},{"$f":"AG16+AG13","v":252},{"$f":"SQRT((AH16^2)+(AH13^2))","v":161.83942659315127},{"$f":"AI16+AI13","v":602},{"$f":"SQRT((AJ16^2)+(AJ13^2))","v":304.13812651491099},{"$f":"AK16+AK13","v":124},{"$f":"SQRT((AL16^2)+(AL13^2))","v":64.007812023221035},{"$f":"AM16+AM13","v":325},{"$f":"SQRT((AN16^2)+(AN13^2))","v":151.79262169156971},{"$f":"AO16+AO13","v":514},{"$f":"SQRT((AP16^2)+(AP13^2))","v":212.11553455605272},{"$f":"AQ16+AQ13","v":503},{"$f":"SQRT((AR16^2)+(AR13^2))","v":281.32010237450152},{"$f":"AS16+AS13","v":341},{"$f":"SQRT((AT16^2)+(AT13^2))","v":193.12690128513947},{"$f":"AU16+AU13","v":94},{"$f":"SQRT((AV16^2)+(AV13^2))","v":67.357256476195644},{"$f":"AW16+AW13","v":208},{"$f":"SQRT((AX16^2)+(AX13^2))","v":116},{"$f":"AY16+AY13","v":257},{"$f":"SQRT((AZ16^2)+(AZ13^2))","v":128.31991271817481},{"$f":"BA16+BA13","v":123},{"$f":"SQRT((BB16^2)+(BB13^2))","v":54.341512676774101},{"$f":"BC16+BC13","v":151},{"$f":"SQRT((BD16^2)+(BD13^2))","v":94.593868723083744}]
[null,"          Same county",{"$f":"C13","v":130},{"$f":"D13","v":83},{"$f":"E13","v":294},171,211,109,206,122,73,61,45,32,12,14,3047,473,90,50,69,62,186,100,627,264,134,141,36,28,315,223,132,104,301,210,39,31,103,80,360,193,218,129,190,167,78,64,124,84,213,125,108,53,116,92]
[null,"          Different county",{"$f":"C16","v":314},{"$f":"D16","v":219},{"$f":"E16","v":186},197,247,164,171,115,25,16,58,35,58,42,1769,348,10,11,54,33,288,166,321,162,212,145,21,19,926,362,120,124,301,220,85,56,222,129,154,88,285,250,151,97,16,21,84,80,44,29,15,12,35,22]
[null,"      in Different state",{"$f":"C19","v":92},{"$f":"D19","v":69},{"$f":"E19","v":77},66,36,37,56,42,28,22,67,55,50,49,1058,255,5,10,52,57,24,41,258,143,225,113,3,5,413,138,130,111,0,16,84,50,279,125,123,115,59,68,44,43,0,11,10,16,84,49,8,9,39,22]
[null,"       Elsewhere",{"$f":"C22","v":9},{"$f":"D22","v":14},{"$f":"E22","v":35},34,12,19,37,35,0,11,0,11,0,11,371,276,0,11,9,13,0,11,10,16,11,16,0,11,62,55,42,64,0,16,0,11,16,25,0,11,0,16,0,11,0,11,0,11,0,11,7,7,2,4]
[]
[]
[]
[]
[]
[]
[]
[]
[]
[]
[]
[]
[]
[]
[]
[]
[]
[]
[]
[]
[]
[]
[null,"Calculated GEOGRAPHICAL MOBILITY IN THE PAST YEAR BY SEX FOR CURRENT RESIDENCE IN THE UNITED STATES"]
[null,"Universe:  POPULATION 1 YEAR AND OVER IN THE UNITED STATES"]
[null,"Data Set: 2010-2014 American Community Survey 5-Year Estimates"]
[null,null,"Allenstown",null,"Andover",null,"Boscawen",null,"Bow",null,"Bradford",null,"Canterbury",null,"Chichester",null,"Concord",null,"Danbury",null,"Dunbarton",null,"Epsom",null,"Franklin",null,"Henniker",null,"Hill",null,"Hooksett",null,"Hopkinton",null,"Loudon",null,"Newbury",null,"New London",null,"Northfield",null,"Pembroke",null,"Pittsfield",null,"Salisbury",null,"Sutton",null,"Warner",null,"Webster",null,"Wilmot"]
[null,null,"Estimate","Margin Of Error","Estimate","Margin Of Error","Estimate","Margin Of Error","Estimate","Margin Of Error","Estimate","Margin Of Error","Estimate","Margin Of Error","Estimate","Margin Of Error","Estimate","Margin Of Error","Estimate","Margin Of Error","Estimate","Margin Of Error","Estimate","Margin Of Error","Estimate","Margin Of Error","Estimate","Margin Of Error","Estimate","Margin Of Error","Estimate","Margin Of Error","Estimate","Margin Of Error","Estimate","Margin Of Error","Estimate","Margin Of Error","Estimate","Margin Of Error","Estimate","Margin Of Error","Estimate","Margin Of Error","Estimate","Margin Of Error","Estimate","Margin Of Error","Estimate","Margin Of Error","Estimate","Margin Of Error","Estimate","Margin Of Error","Estimate","Margin Of Error"]
[]
[null,"  Total:",4249,53,2417,251,3874,58,7611,29,1695,204,2285,206,2541,23,42121,132,1234,186,2765,23,4597,18,8383,71,4779,41,1164,184,13561,83,5559,41,5317,35,1749,234,4533,20,4754,46,7105,39,4000,69,1388,156,1995,283,2833,29,1883,197,1350,179]
[null,"    Same house ",3494,234,2231,254,3148,268,7134,208,1542,198,2140,199,2298,164,34434,910,1130,184,2644,93,4231,168,7466,335,3878,304,1124,176,11970,350,5136,203,4805,201,1650,229,3683,213,4165,232,6154,345,3333,254,1337,156,1923,285,2481,158,1631,165,1222,166]
[null,"    Different house 2",755,248.39887278327171,186,115.06085346459064,726,261.43832924802746,477,204.1910869749216,153,57.576036681939129,145,57.445626465380286,243,162.79434879626504,7687,888.532497998807,104,64.513564465157245,121,81.510735489259332,366,186.27936010197158,917,335.93600581063055,901,317.80969148218247,40,28.879058156387302,1591,430.46370346406678,423,210.98815132608749,512,219.57914290751751,99,58.025856305616031,850,220.04999431947277,589,244.24168358410896,951,358.30852627309889,667,253.4225720017852,51,36.755951898978211,72,45.420259796703057,352,158.83954167649819,252,130.13454575937936,128,68.190908484929281]
[null,"      in New Hampshire",699,242.4396832203837,108,71.344235926947874,657,250.50548896181897,342,189.00264548413071,111,48.918299234540036,112,51.478150704935004,243,162.04937519163718,6281,810.81748871123887,97,62.425956140054431,74,71.119617546778187,309,177.63445611704955,816,326.49655434629017,611,229.94129685639334,28,21.377558326431949,1238,341.47035010378278,292,189.76301009416983,377,170.13524032369074,58,51.195702944680818,483,189.64440408301004,481,229.0785891348207,744,309.09545451203257,553,240.84227203711561,26,26.476404589747453,53,40.224370722237531,333,157.64834283937145,236,128.79829191413992,98,57.77542730261716]
[null,"          Same county",441,204,77,61,579,233,122,99,69,37,84,47,242,162,4049,703,53,51,45,63,298,177,542,250,310,168,3,4,275,141,247,181,289,145,58,50,319,171,306,149,568,284,282,153,4,5,29,33,304,153,171,110,75,53]
[null,"          Different county",258,131,31,37,78,92,220,161,42,32,28,21,1,4,2232,404,44,36,29,33,11,15,274,210,301,157,25,21,963,311,45,57,88,89,0,11,164,82,175,174,176,122,271,186,22,26,24,23,29,38,65,67,23,23]
[null,"      in Different state",44,51,41,57,69,74,126,76,32,29,14,17,0,11,1026,241,7,12,36,35,57,55,90,77,283,219,12,16,330,261,131,91,135,138,31,25,346,109,108,84,168,173,103,77,25,23,19,18,19,16,16,15,28,36]
[null,"       Elsewhere",12,18,37,70,0,11,9,14,10,9,19,19,0,11,380,272,0,11,11,19,0,11,11,18,7,13,0,11,23,24,0,15,0,15,10,11,21,24,0,11,39,54,11,17,0,11,0,11,0,11,0,11,2,4]
[]
[]
[]
[null,"Calculated GEOGRAPHICAL MOBILITY IN THE PAST YEAR BY SEX FOR CURRENT RESIDENCE IN THE UNITED STATES"]
[null,"Universe:  POPULATION 1 YEAR AND OVER IN THE UNITED STATES"]
[null,"Data Set: 2005-2009 American Community Survey5-Year Estimates"]
[null,null,"Allenstown",null,"Andover",null,"Boscawen",null,"Bow",null,"Bradford",null,"Canterbury",null,"Chichester",null,"Concord",null,"Danbury",null,"Dunbarton",null,"Epsom",null,"Franklin",null,"Henniker",null,"Hill",null,"Hooksett",null,"Hopkinton",null,"Loudon",null,"Newbury",null,"New London",null,"Northfield",null,"Pembroke",null,"Pittsfield",null,"Salisbury",null,"Sutton",null,"Warner",null,"Webster",null,"Wilmot"]
[null,null,"Estimate","Margin Of Error","Estimate","Margin Of Error","Estimate","Margin Of Error","Estimate","Margin Of Error","Estimate","Margin Of Error","Estimate","Margin Of Error","Estimate","Margin Of Error","Estimate","Margin Of Error","Estimate","Margin Of Error","Estimate","Margin Of Error","Estimate","Margin Of Error","Estimate","Margin Of Error","Estimate","Margin Of Error","Estimate","Margin Of Error","Estimate","Margin Of Error","Estimate","Margin Of Error","Estimate","Margin Of Error","Estimate","Margin Of Error","Estimate","Margin Of Error","Estimate","Margin Of Error","Estimate","Margin Of Error","Estimate","Margin Of Error","Estimate","Margin Of Error","Estimate","Margin Of Error","Estimate","Margin Of Error","Estimate","Margin Of Error","Estimate","Margin Of Error"]
[null,"Total",4917,54,2260,204,3909,34,7962,81,1226,178,2317,167,2533,28,42128,118,1334,243,2612,62,4546,49,8709,42,5001,47,1168,186,13633,62,5543,73,5059,49,2275,292,4409,46,5083,30,7280,65,4327,59,1178,121,1677,304,2942,19,1790,146,1267,178]
[null,"    Same house ",4009,434,2069,201,3378,307,7537,185,1162,173,2187,171,2336,126,33955,1075,1225,226,2346,123,3772,344,6904,519,4304,345,1084,176,11706,506,5016,329,4617,257,2017,281,3567,343,4380,314,6484,350,3475,300,1098,121,1549,308,2589,137,1555,145,1162,171]
[null,"    Different house ",908,451.83293372661535,191,122.32334200797492,531,316.10124960208555,425,211.25813593800359,64,119.72886034703579,130,84.124907132192419,197,117.49893616539683,8173,1079.8680474946927,109,127.59310326189265,266,104.56576877735849,774,410.29014124153656,1805,539.63135564939148,697,260.76426135496405,84,133.40539719216761,1927,531.583483565846,527,297.16157221282833,442,293.79074185549143,258,216.98387036828336,842,282.76668827851699,703,368.71804946327217,796,357.37515302550059,852,335.13877722519663,80,124.25779653607253,128,134.38749941865873,353,186.61725536509212,235,151.8617792599573,105,126.64912159190051]
[null,"      in New Hampshire",856,449.36065693382636,152,117.51595636338071,465,290.55808369412131,278,155.12897859523216,34,24.698178070456937,124,83.815273071201048,186,116.72617529928752,6641,991.39548112748628,92,54.405882034941776,125,66.068146636635717,735,392.57738090725502,1373,473.0010570812712,328,149.40214188558343,29,21.095023109728988,1280,472.69863549623244,275,227.51703232945002,310,224.08257406590099,235,182.78402556022229,582,254.03149411047443,676,349.36656966573088,796,318.94356867634121,786,305.85290582239037,74,48.414873747640819,82,58.855755878248644,251,136.31214179228496,187,93.648278147545241,57,33.286633954186478]
[null,"          Same county",493,330,142,117,397,282,195,116,28,23,76,68,167,115,4634,868,10,16,57,42,445,321,1080,437,99,64,19,18,505,270,235,220,139,97,194,179,282,194,261,149,509,246,559,285,31,30,71,58,221,134,176,93,43,28]
[null,"          Different county",363,305,10,11,68,70,83,103,6,9,48,49,19,20,2007,479,82,52,68,51,290,226,293,181,229,135,10,11,775,388,40,58,171,202,41,37,300,164,415,316,287,203,227,111,43,38,11,10,30,25,11,11,14,18]
[null,"      in Different state",20,28,34,33,66,50,147,87,30,27,3,4,5,9,1279,395,17,18,132,80,39,35,393,256,348,211,55,66,528,231,238,190,132,152,23,26,223,121,27,30,0,114,66,76,6,10,46,40,102,57,48,36,48,44]
[null,"       Elsewhere",32,38,5,8,0,114,0,114,0,114,3,6,6,10,253,165,0,114,9,13,0,114,39,44,21,34,0,114,119,76,14,21,0,114,0,114,37,28,0,114,0,114,0,114,0,114,0,114,0,114,0,114,0,114]

{"sheet":"ACS_Table_B14001","index":66,"n_rows":98,"n_cols":56,"rows_kept":98,"cut":false,"hidden":true,"merged":[]}
[null,"B14001. SCHOOL ENROLLMENT BY LEVEL OF SCHOOL FOR THE POPULATION 3 YEARS AND OVER"]
[null,"Universe: POPULATION 3 YEARS AND OVER"]
[null,"Data Set: 2015-2019 American Community Survey 5-Year Estimates"]
[]
[null,null,"Allenstown",null,"Andover",null,"Boscawen",null,"Bow",null,"Bradford",null,"Canterbury",null,"Chichester",null,"Concord",null,"Danbury",null,"Dunbarton",null,"Epsom",null,"Franklin",null,"Henniker",null,"Hill",null,"Hooksett",null,"Hopkinton",null,"Loudon",null,"Newbury",null,"New London",null,"Northfield",null,"Pembroke",null,"Pittsfield",null,"Salisbury",null,"Sutton",null,"Warner",null,"Webster",null,"Wilmot"]
[null,null,"Estimate","Margin Of Error","Estimate","Margin Of Error","Estimate","Margin Of Error","Estimate","Margin Of Error","Estimate","Margin Of Error","Estimate","Margin Of Error","Estimate","Margin Of Error","Estimate","Margin Of Error","Estimate","Margin Of Error","Estimate","Margin Of Error","Estimate","Margin Of Error","Estimate","Margin Of Error","Estimate","Margin Of Error","Estimate","Margin Of Error","Estimate","Margin Of Error","Estimate","Margin Of Error","Estimate","Margin Of Error","Estimate","Margin Of Error","Estimate","Margin Of Error","Estimate","Margin Of Error","Estimate","Margin Of Error","Estimate","Margin Of Error","Estimate","Margin Of Error","Estimate","Margin Of Error","Estimate","Margin Of Error","Estimate","Margin Of Error","Estimate","Margin Of Error"]
[null,"Total:",4236,94,2733,320,3876,75,7654,92,1562,209,2321,146,2540,55,41829,240,1095,155,2777,38,4535,96,8468,84,4846,89,889,142,13932,156,5575,72,5399,98,2060,213,4273,70,4684,117,7028,91,3954,188,1403,181,1853,268,2823,59,1739,181,1592,193]
[null,"Enrolled in school:",779,138,800,217,759,121,2327,213,366,84,524,81,492,71,9271,499,186,55,885,85,1054,206,1728,268,1549,231,148,60,4090,515,1198,170,947,216,348,103,1428,226,1058,147,1693,252,901,137,279,83,475,139,621,91,299,77,280,86]
[null,"Enrolled in nursery school, preschool",62,58,18,28,58,58,284,79,6,7,58,36,19,19,501,145,15,10,60,43,31,46,57,51,114,84,6,7,208,89,205,98,12,26,7,9,43,35,152,81,226,119,16,27,8,10,49,34,43,34,26,15,24,20]
[null,"Enrolled in kindergarten",45,31,62,59,12,19,73,37,25,24,33,32,14,12,509,128,14,10,33,21,40,33,84,58,40,45,4,5,161,109,140,76,27,31,11,11,15,17,68,50,24,32,74,105,3,6,38,25,22,19,0,11,33,27]
[null,"Enrolled in grade 1 to grade 4",94,49,88,42,200,77,520,116,79,41,75,31,106,52,1782,238,42,20,221,62,206,72,404,161,134,68,43,25,489,143,195,86,30,36,52,34,112,66,230,110,443,149,159,78,85,46,89,42,117,38,58,22,81,61]
[null,"Enrolled in grade 5 to grade 8",260,93,140,45,208,81,364,97,82,32,40,24,137,51,1446,233,47,19,212,71,222,84,424,125,256,104,33,25,785,176,240,110,326,152,78,40,182,86,189,81,334,126,375,70,67,33,87,45,146,56,61,31,15,11]
[null,"Enrolled in grade 9 to grade 12",157,60,255,142,158,87,637,150,124,46,130,41,106,38,2352,273,62,31,150,38,251,95,377,117,137,78,38,22,684,127,170,89,301,160,113,44,89,52,236,106,436,147,237,115,70,34,142,64,94,45,83,33,66,33]
[null,"Enrolled in college, undergraduate years",118,66,179,62,123,62,361,160,34,18,173,68,87,41,2126,282,6,9,150,48,222,108,255,107,783,230,17,12,1630,466,190,93,213,161,87,47,971,170,130,84,194,134,12,20,38,21,32,21,172,59,60,26,32,16]
[null,"Graduate or professional school",43,34,58,34,0,11,88,60,16,10,15,14,23,21,555,145,0,11,59,46,82,61,127,82,85,55,7,6,133,57,58,44,38,60,0,11,16,22,53,53,36,38,28,30,8,7,38,23,27,19,11,10,29,18]
[null,"Not enrolled in school",3457,139,1933,222,3117,114,5327,218,1196,162,1797,132,2048,61,32558,498,909,132,1892,83,3481,173,6740,278,3297,230,741,110,9842,487,4377,188,4452,209,1712,171,2845,225,3626,135,5335,243,3053,191,1124,132,1378,174,2202,105,1440,145,1312,154]
[]
[]
[]
[null,"B14001. Calculated  SCHOOL ENROLLMENT BY LEVEL OF SCHOOL FOR THE POPULATION 3 YEARS AND OVER "]
[null,"Universe: POPULATION 3 YEARS AND OVER"]
[null,"Data Set: 2015-2019 American Community Survey 5-Year Estimates"]
[]
[null,null,"Allenstown",null,"Andover",null,"Boscawen",null,"Bow",null,"Bradford",null,"Canterbury",null,"Chichester",null,"Concord",null,"Danbury",null,"Dunbarton",null,"Epsom",null,"Franklin",null,"Henniker",null,"Hill",null,"Hooksett",null,"Hopkinton",null,"Loudon",null,"Newbury",null,"New London",null,"Northfield",null,"Pembroke",null,"Pittsfield",null,"Salisbury",null,"Sutton",null,"Warner",null,"Webster",null,"Wilmot"]
[null,null,"Estimate","Margin Of Error","Estimate","Margin Of Error","Estimate","Margin Of Error","Estimate","Margin Of Error","Estimate","Margin Of Error","Estimate","Margin Of Error","Estimate","Margin Of Error","Estimate","Margin Of Error","Estimate","Margin Of Error","Estimate","Margin Of Error","Estimate","Margin Of Error","Estimate","Margin Of Error","Estimate","Margin Of Error","Estimate","Margin Of Error","Estimate","Margin Of Error","Estimate","Margin Of Error","Estimate","Margin Of Error","Estimate","Margin Of Error","Estimate","Margin Of Error","Estimate","Margin Of Error","Estimate","Margin Of Error","Estimate","Margin Of Error","Estimate","Margin Of Error","Estimate","Margin Of Error","Estimate","Margin Of Error","Estimate","Margin Of Error","Estimate","Margin Of Error"]
[null,"Total:",{"$f":"C7","v":4236},94,2733,320,3876,75,7654,92,1562,209,2321,146,2540,55,41829,240,1095,155,2777,38,4535,96,{"$f":"Y7","v":8468},84,4846,89,889,142,13932,156,5575,72,5399,98,2060,213,4273,70,{"$f":"AO7","v":4684},117,7028,91,3954,188,1403,181,{"$f":"AW7","v":1853},268,2823,59,1739,181,1592,193]
[null,"Enrolled in school:",{"$f":"C8","v":779},138,800,217,759,121,2327,213,366,84,524,81,492,71,9271,499,186,55,885,85,1054,206,{"$f":"Y8","v":1728},268,1549,231,148,60,4090,515,1198,170,947,216,348,103,1428,226,{"$f":"AO8","v":1058},147,1693,252,901,137,279,83,{"$f":"AW8","v":475},139,621,91,299,77,280,86]
[null,"Enrolled in nursery school, preschool, and Kindergarten",{"$f":"C9+C10","v":107},{"$f":"SQRT((D9^2)+(D10^2))","v":65.76473218982953},{"$f":"E9+E10","v":80},{"$f":"SQRT((F9^2)+(F10^2))","v":65.30696746902278},{"$f":"G9+G10","v":70},{"$f":"SQRT((H9^2)+(H10^2))","v":61.032778078668514},{"$f":"I9+I10","v":357},{"$f":"SQRT((J9^2)+(J10^2))","v":87.235313950257549},{"$f":"K9+K10","v":31},{"$f":"SQRT((L9^2)+(L10^2))","v":25},{"$f":"M9+M10","v":91},{"$f":"SQRT((N9^2)+(N10^2))","v":48.166378315169183},{"$f":"O9+O10","v":33},{"$f":"SQRT((P9^2)+(P10^2))","v":22.472205054244231},{"$f":"Q9+Q10","v":1010},{"$f":"SQRT((R9^2)+(R10^2))","v":193.41406360448559},{"$f":"S9+S10","v":29},{"$f":"SQRT((T9^2)+(T10^2))","v":14.142135623730951},{"$f":"U9+U10","v":93},{"$f":"SQRT((V9^2)+(V10^2))","v":47.853944456021594},{"$f":"W9+W10","v":71},{"$f":"SQRT((X9^2)+(X10^2))","v":56.612719418872643},{"$f":"Y9+Y10","v":141},{"$f":"SQRT((Z9^2)+(Z10^2))","v":77.233412458598508},{"$f":"AA9+AA10","v":154},{"$f":"SQRT((AB9^2)+(AB10^2))","v":95.294281045611541},{"$f":"AC9+AC10","v":10},{"$f":"SQRT((AD9^2)+(AD10^2))","v":8.6023252670426267},{"$f":"AE9+AE10","v":369},{"$f":"SQRT((AF9^2)+(AF10^2))","v":140.71957930579526},{"$f":"AG9+AG10","v":345},{"$f":"SQRT((AH9^2)+(AH10^2))","v":124.01612798341996},{"$f":"AI9+AI10","v":39},{"$f":"SQRT((AJ9^2)+(AJ10^2))","v":40.459856648287818},{"$f":"AK9+AK10","v":18},{"$f":"SQRT((AL9^2)+(AL10^2))","v":14.212670403551895},{"$f":"AM9+AM10","v":58},{"$f":"SQRT((AN9^2)+(AN10^2))","v":38.910152916687437},{"$f":"AO9+AO10","v":220},{"$f":"SQRT((AP9^2)+(AP10^2))","v":95.189285111298105},{"$f":"AQ9+AQ10","v":250},{"$f":"SQRT((AR9^2)+(AR10^2))","v":123.22743201089601},{"$f":"AS9+AS10","v":90},{"$f":"SQRT((AT9^2)+(AT10^2))","v":108.41586599755591},{"$f":"AU9+AU10","v":11},{"$f":"SQRT((AV9^2)+(AV10^2))","v":11.661903789690601},{"$f":"AW9+AW10","v":87},{"$f":"SQRT((AX9^2)+(AX10^2))","v":42.201895692018383},{"$f":"AY9+AY10","v":65},{"$f":"SQRT((AZ9^2)+(AZ10^2))","v":38.948684188300895},{"$f":"BA9+BA10","v":26},{"$f":"SQRT((BB9^2)+(BB10^2))","v":18.601075237738275},{"$f":"BC9+BC10","v":57},{"$f":"SQRT((BD9^2)+(BD10^2))","v":33.600595232822883}]
[null,{"$f":"B9","v":"Enrolled in nursery school, preschool"},{"$f":"C9","v":62},58,18,28,58,58,284,79,6,7,58,36,19,19,501,145,15,10,60,43,31,46,57,51,114,84,6,7,208,89,205,98,12,26,7,9,43,35,152,81,226,119,16,27,8,10,{"$f":"AW9","v":49},34,43,34,26,15,24,20]
[null,"Enrolled in kindergarten",{"$f":"C10","v":45},31,62,59,12,19,73,37,25,24,33,32,14,12,509,128,14,10,33,21,40,33,84,58,40,45,4,5,161,109,140,76,27,31,11,11,15,17,68,50,24,32,74,105,3,6,{"$f":"AW10","v":38},25,22,19,0,11,33,27]
[null,"Enrolled in grade Elementary School (grade 1 to grade 8)",{"$f":"C11+C12","v":354},{"$f":"SQRT((D11^2)+(D12^2))","v":105.11898020814318},{"$f":"E11+E12","v":228},{"$f":"SQRT((F11^2)+(F12^2))","v":61.554853586049575},{"$f":"G11+G12","v":408},{"$f":"SQRT((H11^2)+(H12^2))","v":111.75866856758807},{"$f":"I11+I12","v":884},{"$f":"SQRT((J11^2)+(J12^2))","v":151.21177202850313},{"$f":"K11+K12","v":161},{"$f":"SQRT((L11^2)+(L12^2))","v":52.009614495783374},{"$f":"M11+M12","v":115},{"$f":"SQRT((N11^2)+(N12^2))","v":39.204591567825318},{"$f":"O11+O12","v":243},{"$f":"SQRT((P11^2)+(P12^2))","v":72.835430938520574},{"$f":"Q11+Q12","v":3228},{"$f":"SQRT((R11^2)+(R12^2))","v":333.06605951372467},{"$f":"S11+S12","v":89},{"$f":"SQRT((T11^2)+(T12^2))","v":27.586228448267445},{"$f":"U11+U12","v":433},{"$f":"SQRT((V11^2)+(V12^2))","v":94.260277954183863},{"$f":"W11+W12","v":428},{"$f":"SQRT((X11^2)+(X12^2))","v":110.63453348751464},{"$f":"Y11+Y12","v":828},{"$f":"SQRT((Z11^2)+(Z12^2))","v":203.82835916525454},{"$f":"AA11+AA12","v":390},{"$f":"SQRT((AB11^2)+(AB12^2))","v":124.25779653607253},{"$f":"AC11+AC12","v":76},{"$f":"SQRT((AD11^2)+(AD12^2))","v":35.355339059327378},{"$f":"AE11+AE12","v":1274},{"$f":"SQRT((AF11^2)+(AF12^2))","v":226.77080940897133},{"$f":"AG11+AG12","v":435},{"$f":"SQRT((AH11^2)+(AH12^2))","v":139.62807740565648},{"$f":"AI11+AI12","v":356},{"$f":"SQRT((AJ11^2)+(AJ12^2))","v":156.20499351813308},{"$f":"AK11+AK12","v":130},{"$f":"SQRT((AL11^2)+(AL12^2))","v":52.497618993626752},{"$f":"AM11+AM12","v":294},{"$f":"SQRT((AN11^2)+(AN12^2))","v":108.40664186294121},{"$f":"AO11+AO12","v":419},{"$f":"SQRT((AP11^2)+(AP12^2))","v":136.60527076214885},{"$f":"AQ11+AQ12","v":777},{"$f":"SQRT((AR11^2)+(AR12^2))","v":195.13328778042973},{"$f":"AS11+AS12","v":534},{"$f":"SQRT((AT11^2)+(AT12^2))","v":104.80458005259122},{"$f":"AU11+AU12","v":152},{"$f":"SQRT((AV11^2)+(AV12^2))","v":56.612719418872643},{"$f":"AW11+AW12","v":176},{"$f":"SQRT((AX11^2)+(AX12^2))","v":61.554853586049575},{"$f":"AY11+AY12","v":263},{"$f":"SQRT((AZ11^2)+(AZ12^2))","v":67.675697262754525},{"$f":"BA11+BA12","v":119},{"$f":"SQRT((BB11^2)+(BB12^2))","v":38.013155617496423},{"$f":"BC11+BC12","v":96},{"$f":"SQRT((BD11^2)+(BD12^2))","v":61.98386886924694}]
[null,"Enrolled in grade 9 to grade 12",{"$f":"C13","v":157},60,255,142,158,87,637,150,124,46,130,41,106,38,2352,273,62,31,150,38,251,95,{"$f":"Y13","v":377},117,137,78,38,22,684,127,170,89,301,160,113,44,89,52,{"$f":"AO13","v":236},106,436,147,237,115,70,34,{"$f":"AW13","v":142},64,94,45,83,33,66,33]
[null,"Enrolled in Elementary and High School",{"$f":"C11+C12+C13","v":511},{"$f":"SQRT((D11^2)+(D12^2)+(D13^2))","v":121.03718436910205},{"$f":"E11+E12+E13","v":483},{"$f":"SQRT((F11^2)+(F12^2)+(F13^2))","v":154.76756766196203},{"$f":"G11+G12+G13","v":566},{"$f":"SQRT((H11^2)+(H12^2)+(H13^2))","v":141.62979912433681},{"$f":"I11+I12+I13","v":1521},{"$f":"SQRT((J11^2)+(J12^2)+(J13^2))","v":212.99061012166709},{"$f":"K11+K12+K13","v":285},{"$f":"SQRT((L11^2)+(L12^2)+(L13^2))","v":69.433421347359797},{"$f":"M11+M12+M13","v":245},{"$f":"SQRT((N11^2)+(N12^2)+(N13^2))","v":56.727418414731339},{"$f":"O11+O12+O13","v":349},{"$f":"SQRT((P11^2)+(P12^2)+(P13^2))","v":82.152297594163485},{"$f":"Q11+Q12+Q13","v":5580},{"$f":"SQRT((R11^2)+(R12^2)+(R13^2))","v":430.65299255897435},{"$f":"S11+S12+S13","v":151},{"$f":"SQRT((T11^2)+(T12^2)+(T13^2))","v":41.496987842492857},{"$f":"U11+U12+U13","v":583},{"$f":"SQRT((V11^2)+(V12^2)+(V13^2))","v":101.63168797181321},{"$f":"W11+W12+W13","v":679},{"$f":"SQRT((X11^2)+(X12^2)+(X13^2))","v":145.82523787054146},{"$f":"Y11+Y12+Y13","v":1205},{"$f":"SQRT((Z11^2)+(Z12^2)+(Z13^2))","v":235.02127563265415},{"$f":"AA11+AA12+AA13","v":527},{"$f":"SQRT((AB11^2)+(AB12^2)+(AB13^2))","v":146.71059948074645},{"$f":"AC11+AC12+AC13","v":114},{"$f":"SQRT((AD11^2)+(AD12^2)+(AD13^2))","v":41.641325627314025},{"$f":"AE11+AE12+AE13","v":1958},{"$f":"SQRT((AF11^2)+(AF12^2)+(AF13^2))","v":259.91152340748573},{"$f":"AG11+AG12+AG13","v":605},{"$f":"SQRT((AH11^2)+(AH12^2)+(AH13^2))","v":165.58079598794058},{"$f":"AI11+AI12+AI13","v":657},{"$f":"SQRT((AJ11^2)+(AJ12^2)+(AJ13^2))","v":223.60679774997897},{"$f":"AK11+AK12+AK13","v":243},{"$f":"SQRT((AL11^2)+(AL12^2)+(AL13^2))","v":68.498175158174831},{"$f":"AM11+AM12+AM13","v":383},{"$f":"SQRT((AN11^2)+(AN12^2)+(AN13^2))","v":120.2331069215131},{"$f":"AO11+AO12+AO13","v":655},{"$f":"SQRT((AP11^2)+(AP12^2)+(AP13^2))","v":172.907489716322},{"$f":"AQ11+AQ12+AQ13","v":1213},{"$f":"SQRT((AR11^2)+(AR12^2)+(AR13^2))","v":244.30718368480285},{"$f":"AS11+AS12+AS13","v":771},{"$f":"SQRT((AT11^2)+(AT12^2)+(AT13^2))","v":155.59241626763176},{"$f":"AU11+AU12+AU13","v":222},{"$f":"SQRT((AV11^2)+(AV12^2)+(AV13^2))","v":66.037867924396224},{"$f":"AW11+AW12+AW13","v":318},{"$f":"SQRT((AX11^2)+(AX12^2)+(AX13^2))","v":88.797522487961345},{"$f":"AY11+AY12+AY13","v":357},{"$f":"SQRT((AZ11^2)+(AZ12^2)+(AZ13^2))","v":81.271151093115449},{"$f":"BA11+BA12+BA13","v":202},{"$f":"SQRT((BB11^2)+(BB12^2)+(BB13^2))","v":50.338851794612879},{"$f":"BC11+BC12+BC13","v":162},{"$f":"SQRT((BD11^2)+(BD12^2)+(BD13^2))","v":70.221079456243046}]
[null,"Enrolled in College or Graduate School",{"$f":"C14+C15","v":161},{"$f":"SQRT((D14^2)+(D15^2))","v":74.242844773082339},{"$f":"E14+E15","v":237},{"$f":"SQRT((F14^2)+(F15^2))","v":70.710678118654755},{"$f":"G14+G15","v":123},{"$f":"SQRT((H14^2)+(H15^2))","v":62.968245965724662},{"$f":"I14+I15","v":449},{"$f":"SQRT((J14^2)+(J15^2))","v":170.88007490635061},{"$f":"K14+K15","v":50},{"$f":"SQRT((L14^2)+(L15^2))","v":20.591260281974002},{"$f":"M14+M15","v":188},{"$f":"SQRT((N14^2)+(N15^2))","v":69.426219830839131},{"$f":"O14+O15","v":110},{"$f":"SQRT((P14^2)+(P15^2))","v":46.065171225124082},{"$f":"Q14+Q15","v":2681},{"$f":"SQRT((R14^2)+(R15^2))","v":317.09462310168556},{"$f":"S14+S15","v":6},{"$f":"SQRT((T14^2)+(T15^2))","v":14.212670403551895},{"$f":"U14+U15","v":209},{"$f":"SQRT((V14^2)+(V15^2))","v":66.483080554378645},{"$f":"W14+W15","v":304},{"$f":"SQRT((X14^2)+(X15^2))","v":124.03628501370073},{"$f":"Y14+Y15","v":382},{"$f":"SQRT((Z14^2)+(Z15^2))","v":134.80726983364065},{"$f":"AA14+AA15","v":868},{"$f":"SQRT((AB14^2)+(AB15^2))","v":236.48467180770933},{"$f":"AC14+AC15","v":24},{"$f":"SQRT((AD14^2)+(AD15^2))","v":13.416407864998739},{"$f":"AE14+AE15","v":1763},{"$f":"SQRT((AF14^2)+(AF15^2))","v":469.47310892105418},{"$f":"AG14+AG15","v":248},{"$f":"SQRT((AH14^2)+(AH15^2))","v":102.88342918079665},{"$f":"AI14+AI15","v":251},{"$f":"SQRT((AJ14^2)+(AJ15^2))","v":171.81676286090365},{"$f":"AK14+AK15","v":87},{"$f":"SQRT((AL14^2)+(AL15^2))","v":48.270073544588683},{"$f":"AM14+AM15","v":987},{"$f":"SQRT((AN14^2)+(AN15^2))","v":171.41761869772895},{"$f":"AO14+AO15","v":183},{"$f":"SQRT((AP14^2)+(AP15^2))","v":99.322706366671255},{"$f":"AQ14+AQ15","v":230},{"$f":"SQRT((AR14^2)+(AR15^2))","v":139.28388277184121},{"$f":"AS14+AS15","v":40},{"$f":"SQRT((AT14^2)+(AT15^2))","v":36.055512754639892},{"$f":"AU14+AU15","v":46},{"$f":"SQRT((AV14^2)+(AV15^2))","v":22.135943621178654},{"$f":"AW14+AW15","v":70},{"$f":"SQRT((AX14^2)+(AX15^2))","v":31.144823004794873},{"$f":"AY14+AY15","v":199},{"$f":"SQRT((AZ14^2)+(AZ15^2))","v":61.98386886924694},{"$f":"BA14+BA15","v":71},{"$f":"SQRT((BB14^2)+(BB15^2))","v":27.856776554368238},{"$f":"BC14+BC15","v":61},{"$f":"SQRT((BD14^2)+(BD15^2))","v":24.083189157584592}]
[null,"Not enrolled in school",{"$f":"C16","v":3457},139,1933,222,3117,114,5327,218,1196,162,1797,132,2048,61,32558,498,909,132,1892,83,3481,173,{"$f":"Y16","v":6740},278,3297,230,741,110,9842,487,4377,188,4452,209,1712,171,2845,225,{"$f":"AO16","v":3626},135,5335,243,3053,191,1124,132,{"$f":"AW16","v":1378},174,2202,105,1440,145,1312,154]
[]
[]
[null,"B14001. Calculated  SCHOOL ENROLLMENT BY LEVEL OF SCHOOL FOR THE POPULATION 3 YEARS AND OVER "]
[null,"Universe: POPULATION 3 YEARS AND OVER"]
[null,"Data Set: 2010-2014 American Community Survey 5-Year Estimates"]
[]
[null,null,"Allenstown",null,"Andover",null,"Boscawen",null,"Bow",null,"Bradford",null,"Canterbury",null,"Chichester",null,"Concord",null,"Danbury",null,"Dunbarton",null,"Epsom",null,"Franklin",null,"Henniker",null,"Hill",null,"Hooksett",null,"Hopkinton",null,"Loudon",null,"Newbury",null,"New London",null,"Northfield",null,"Pembroke",null,"Pittsfield",null,"Salisbury",null,"Sutton",null,"Warner",null,"Webster",null,"Wilmot"]
[null,null,"Estimate","Margin Of Error","Estimate","Margin Of Error","Estimate","Margin Of Error","Estimate","Margin Of Error","Estimate","Margin Of Error","Estimate","Margin Of Error","Estimate","Margin Of Error","Estimate","Margin Of Error","Estimate","Margin Of Error","Estimate","Margin Of Error","Estimate","Margin Of Error","Estimate","Margin Of Error","Estimate","Margin Of Error","Estimate","Margin Of Error","Estimate","Margin Of Error","Estimate","Margin Of Error","Estimate","Margin Of Error","Estimate","Margin Of Error","Estimate","Margin Of Error","Estimate","Margin Of Error","Estimate","Margin Of Error","Estimate","Margin Of Error","Estimate","Margin Of Error","Estimate","Margin Of Error","Estimate","Margin Of Error","Estimate","Margin Of Error","Estimate","Margin Of Error"]
[null,"Total:",4192,56,2412,250,3794,81,7535,67,1676,203,2226,192,2494,38,41124,243,1208,176,2699,50,4507,46,8199,113,4632,78,1154,183,13261,184,5488,78,5215,69,1712,224,4533,20,4558,130,7036,63,3891,107,1359,149,1960,275,2773,49,1856,196,1347,179]
[null,"Enrolled in school:",850,152,521,156,766,201,2222,171,359,103,495,119,561,74,10227,452,262,95,607,94,899,102,1655,334,1841,235,269,91,3608,284,1442,212,1282,217,347,90,1579,195,1072,202,1930,208,816,187,292,71,502,124,601,125,463,102,304,82]
[null,"Enrolled in nursery school, preschool, and Kindergarten",55,39.66106403010388,60,33.837848631377263,82,48.414873747640819,173,71.421285342676384,67,29.068883707497267,59,33.955853692699293,35,26.248809496813376,1302,240.48284762119729,27,26.248809496813376,70,37.483329627982627,78,47.507894080878813,166,79.202272694664515,178,91.241437954473298,10,18.601075237738275,365,159.90622251807463,98,66.708320320631671,72,51.623637996561229,24,18.384776310850235,29,29.546573405388315,123,73.552702193733168,219,123.16655390161731,83,59.665735560705194,20,14.212670403551895,78,41.617304093369626,32,21.400934559032695,58,27.202941017470888,34,22.135943621178654]
[null,"Enrolled in nursery school, preschool",32,33,30,28,48,38,74,50,29,19,54,33,20,20,706,174,14,20,41,27,40,31,80,63,106,63,0,11,188,117,49,51,23,37,19,17,22,27,66,53,126,91,60,46,10,9,49,34,11,13,26,16,28,21]
[null,"Enrolled in kindergarten",23,22,30,19,34,30,99,51,38,22,5,8,15,17,596,166,13,17,29,26,38,36,86,48,72,66,10,15,177,109,49,43,49,36,5,7,7,12,57,51,93,83,23,38,10,11,29,24,21,17,32,22,6,7]
[null,"Enrolled in grade Elementary School (grade 1 to grade 8)",382,96.829747495281637,174,72.201108024738787,386,133.2066064427737,996,175.42234749312871,163,55.443665102516448,227,60.811183182043088,212,76.576758876306585,3584,325.37977810552394,129,56.859475903318,249,54.037024344425184,461,116.72617529928752,762,191.65855055279948,523,168.3864602632884,103,44.407206622349037,1093,236.45718428502019,707,159.66527487215245,561,140.03570973148243,153,48.918299234540036,274,88.459030064770658,460,128.80993750483694,927,208.65521800328887,381,122.87391912037315,146,55.605755097831377,208,64.350602172784676,217,63.820059542435402,205,51.86520991955976,128,41.773197148410844]
[null,"Enrolled in grade 9 to grade 12",164,55,135,55,131,67,657,183,52,25,122,51,167,54,2276,314,62,30,196,65,222,81,423,112,240,80,113,49,638,182,338,104,357,132,110,49,138,73,315,101,438,144,231,94,78,41,118,52,204,56,128,63,61,29]
[null,"Enrolled in Elementary and High School",546,111.35977729862789,309,90.763428758503835,517,149.10734388352574,1653,253.49950690287349,215,60.819404798139878,349,79.36623967405788,379,93.701654200979831,5860,452.18137953701722,191,64.288412641781719,445,84.528101836016646,683,142.07744367069671,1185,221.98423367437607,763,186.42424734996251,216,66.128662469461759,1731,298.38900784043636,1045,190.5492062434268,918,192.4421991144354,263,69.238717492455038,412,114.69088891450794,775,163.68567438844488,1365,253.52120226915935,612,154.70617311536085,224,69.086901797663501,326,82.734515167492219,421,84.905830188509441,333,81.602696033893395,189,50.852728540364481]
[null,"Enrolled in College or Graduate School",249,101.53324578678651,152,99.458534073250846,167,98.371743910535614,396,135.55810562264435,77,43.011626335213137,87,34.885527085024819,147,59.640590204993778,3065,347.47661791838601,44,28.160255680657446,92,46.065171225124082,138,76.485292703891773,304,133.9589489358587,900,179.02513789968157,43,28.460498941515414,1512,220.14540649307222,299,100.16985574512923,292,123.49089035228469,60,40.26164427839479,1138,180.82588310305579,174,78.892331693264083,346,141.87318280774559,121,70.859014952227497,48,23.409399821439251,98,44.77722635447622,148,44.271887242357309,72,28.301943396169811,81,45.891175622335062]
[null,"Not enrolled in school",3342,145,1891,207,3028,204,5313,166,1317,151,1731,125,1933,75,30897,507,946,123,2092,85,3608,102,6544,286,2791,242,885,126,9653,282,4046,203,3933,206,1365,170,2954,196,3486,154,5106,196,3075,181,1067,117,1458,196,2172,117,1393,130,1043,128]
[]
[]
[]
[]
[]
[]
[]
[]
[]
[]
[]
[]
[]
[]
[]
[]
[]
[]
[]
[]
[]
[]
[]
[]
[]
[]
[]
[]
[]
[null,"B14001.Calculated  SCHOOL ENROLLMENT BY LEVEL OF SCHOOL FOR THE POPULATION 3 YEARS AND OVER "]
[null,"Universe: POPULATION 3 YEARS AND OVER"]
[null,"Data Set: 2005-2009 American Community Survey 5-Year Estimates"]
[]
[null,null,"Allenstown",null,"Andover",null,"Boscawen",null,"Bow",null,"Bradford",null,"Canterbury",null,"Chichester",null,"Concord",null,"Danbury",null,"Dunbarton",null,"Epsom",null,"Franklin",null,"Henniker",null,"Hill",null,"Hooksett",null,"Hopkinton",null,"Loudon",null,"Newbury",null,"New London",null,"Northfield",null,"Pembroke",null,"Pittsfield",null,"Salisbury",null,"Sutton",null,"Warner",null,"Webster",null,"Wilmot"]
[null,null,"Estimate","Margin Of Error","Estimate","Margin Of Error","Estimate","Margin Of Error","Estimate","Margin Of Error","Estimate","Margin Of Error","Estimate","Margin Of Error","Estimate","Margin Of Error","Estimate","Margin Of Error","Estimate","Margin Of Error","Estimate","Margin Of Error","Estimate","Margin Of Error","Estimate","Margin Of Error","Estimate","Margin Of Error","Estimate","Margin Of Error","Estimate","Margin Of Error","Estimate","Margin Of Error","Estimate","Margin Of Error","Estimate","Margin Of Error","Estimate","Margin Of Error","Estimate","Margin Of Error","Estimate","Margin Of Error","Estimate","Margin Of Error","Estimate","Margin Of Error","Estimate","Margin Of Error","Estimate","Margin Of Error","Estimate","Margin Of Error","Estimate","Margin Of Error"]
[null,"Total:",4878,65,2197,195,3829,57,7870,99,1197,173,2242,160,2499,31,41096,252,1308,236,2589,65,4451,70,8492,103,4866,93,1152,180,13324,110,5471,78,4976,78,2223,283,4195,169,4960,81,7116,115,4184,86,1163,121,1601,247,2864,36,1741,140,1260,177]
[null,"Enrolled in school:",1291,215,478,94,815,187,2304,242,201,65,579,99,809,94,9906,585,339,115,708,81,1207,189,1967,249,1752,315,360,97,4404,391,1278,193,1255,191,631,131,1264,315,1548,238,2009,328,756,140,249,52,368,108,795,196,345,78,332,96]
[null,"Enrolled in nursery school, preschool, and Kindergarten",158,94.339811320566042,102,44.721359549995796,114,95.425363504678359,187,77.006493232713822,20,14.866068747318506,73,28.231188426986208,81,46.324939287601879,1164,254.00787389370433,36,25.079872407968907,54,43.600458713183279,68,43.863424398922618,307,105.55093557141026,201,96.829747495281637,12,114.52947218947619,517,135.91173606425605,162,81.939001702485982,140,72.862884927787476,69,36.61966684720111,163,108.93117092916977,181,81.271151093115449,334,152.26949793047851,97,75.312681535050928,20,12.727922061357855,98,86.58521813797087,84,41.340053217188775,39,22.472205054244231,20,16.401219466856727]
[null,"Enrolled in nursery school, preschool",59,50,71,40,61,75,113,61,10,11,60,26,33,25,633,154,8,10,31,35,35,32,244,95,91,60,0,114,229,74,133,75,57,50,39,30,112,105,77,46,138,95,9,14,10,9,31,21,35,22,11,12,10,13]
[null,"Enrolled in kindergarten",99,80,31,20,53,59,74,47,10,10,13,11,48,39,531,202,28,23,23,26,33,30,63,46,110,76,12,11,288,114,29,33,83,53,30,21,51,29,104,67,196,119,88,74,10,9,67,84,49,35,28,19,10,10]
[null,"Enrolled in grade Elementary School (grade 1 to grade 8)",630,222.28360263411244,155,58.137767414994535,470,156.97452022541748,1042,180.32470712578461,66,30.886890422961002,250,62.008063991709982,390,88.526832090615329,3926,458.42338509286367,186,66.400301204136113,377,96.896852374058057,628,142.21462653327893,987,197.75237040298657,340,106.77546534667971,212,59.033888572581766,1196,199.06029237394384,608,153.63918770938616,594,158.60012610335465,221,63.411355449950761,192,94.111635837445732,690,250.3797116381437,697,180.81205712009361,260,83.438600180012614,84,27.459060435491963,165,54.561891462814962,199,63.158530698552511,130,35.383612025908263,133,43.46262762420146]
[null,"Enrolled in grade 9 to grade 12",281,159,125,52,101,64,668,156,73,37,159,49,173,53,2051,252,73,33,159,59,356,94,435,122,273,131,101,48,590,152,344,121,306,104,228,91,182,86,447,134,414,147,245,121,101,33,66,31,167,65,97,39,93,38]
[null,"Enrolled in Elementary and High School",911,273.2965422393778,280,78,571,169.51991033504001,1710,238.4386713601634,139,48.19751030914356,409,79.031639233916948,563,103.17945531936094,5977,523.12140082393876,259,74.148499647666512,536,113.44602240713422,984,170.47287174210447,1422,232.35748320206949,613,169.00295855398508,313,76.085478246509041,1786,250.45758123881976,952,195.56584568886257,900,189.65758619153624,449,110.91438139393827,374,127.4872542648872,1137,283.98239382046205,1111,233.02789532586007,505,146.97959041989469,185,42.930175867331364,231,62.753485958948929,366,90.631120482977593,227,52.659282182726344,226,57.732140095444237]
[null,"Enrolled in College or Graduate School",222,90.354855984612144,96,54.561891462814962,130,139.26952286842948,407,144.62710672622887,42,18.439088914585774,97,37.643060449437421,165,76.661594035083823,2765,413.90457837525787,44,28.284271247461902,118,50.447993022517757,155,70.263788682364691,238,107.83784122468327,938,340.35863438437991,35,24.207436873820409,2101,432.38061936215411,164,90.426765949026404,215,89.537701556383496,113,65.391130897087265,727,319.99531246566721,230,107.5174404457249,564,203.96078054371139,154,67.416615162732697,44,26.683328128252668,39,27.459060435491963,345,209.23909768492121,79,29.206163733020468,86,38.897300677553446]
[null,"Not enrolled in school",3587,216,1719,174,3014,193,5566,230,996,145,1663,111,1690,97,31190,560,969,153,1881,91,3244,173,6525,231,3114,304,792,119,8920,357,4193,154,3721,201,1592,190,2931,283,3412,226,5107,289,3428,159,914,100,1233,181,2069,190,1396,120,928,131]

{"sheet":"ACS_Table_B15002","index":67,"n_rows":141,"n_cols":56,"rows_kept":141,"cut":false,"hidden":true,"merged":[]}
[null,"B15002. SEX BY EDUCATIONAL ATTAINMENT FOR THE POPULATION 25 YEARS AND OVER"]
[null,"Universe: Population 25 years an over"]
[null,"Data Set: 2015-2019 American Community Survey 5-Year Estimates"]
[]
[null,null,"Allenstown",null,"Andover",null,"Boscawen",null,"Bow",null,"Bradford",null,"Canterbury",null,"Chichester",null,"Concord",null,"Danbury",null,"Dunbarton",null,"Epsom",null,"Franklin",null,"Henniker",null,"Hill",null,"Hooksett",null,"Hopkinton",null,"Loudon",null,"Newbury",null,"New London",null,"Northfield",null,"Pembroke",null,"Pittsfield",null,"Salisbury",null,"Sutton",null,"Warner",null,"Webster",null,"Wilmot"]
[null,null,"Estimate","Margin Of Error","Estimate","Margin Of Error","Estimate","Margin Of Error","Estimate","Margin Of Error","Estimate","Margin Of Error","Estimate","Margin Of Error","Estimate","Margin Of Error","Estimate","Margin Of Error","Estimate","Margin Of Error","Estimate","Margin Of Error","Estimate","Margin Of Error","Estimate","Margin Of Error","Estimate","Margin Of Error","Estimate","Margin Of Error","Estimate","Margin Of Error","Estimate","Margin Of Error","Estimate","Margin Of Error","Estimate","Margin Of Error","Estimate","Margin Of Error","Estimate","Margin Of Error","Estimate","Margin Of Error","Estimate","Margin Of Error","Estimate","Margin Of Error","Estimate","Margin Of Error","Estimate","Margin Of Error","Estimate","Margin Of Error","Estimate","Margin Of Error"]
[null,"Total:",3103,178,1901,225,2968,136,5302,189,1125,139,1777,124,1901,76,31266,481,829,116,1905,74,3463,161,6437,276,3076,207,712,94,9620,404,4210,156,4151,276,1637,157,2729,206,3277,243,5171,258,2910,172,1085,123,1381,171,2070,99,1379,136,1262,144]
[null,"Male:",1558,126,991,204,1366,145,2515,124,530,76,928,78,920,58,15419,413,434,68,979,54,1657,103,2957,207,1547,156,354,55,4534,232,2054,124,1957,267,821,85,1252,143,1626,168,2594,188,1458,139,550,80,623,84,950,59,663,71,604,78]
[null,"No schooling completed",0,11,0,11,17,21,9,14,0,11,4,6,0,11,71,43,0,11,4,6,5,10,37,35,10,16,0,11,43,36,0,16,0,16,5,8,0,11,38,34,0,16,12,17,5,7,0,11,4,6,0,11,7,8]
[null,"Nursery to 4th grade",0,11,0,11,25,32,0,16,0,11,0,11,0,11,32,44,0,11,0,11,0,11,10,16,0,11,0,11,14,20,0,16,23,38,0,11,0,11,19,30,0,16,0,11,0,11,0,11,0,11,2,5,0,11]
[null,"5th and 6th grade",0,11,0,11,0,11,0,16,0,11,0,11,0,11,65,41,0,11,0,11,0,11,0,16,0,11,0,11,0,18,0,16,0,16,0,11,0,11,0,11,0,16,0,11,0,11,0,11,0,11,0,11,0,11]
[null,"7th and 8th grade",31,37,7,10,47,49,19,19,0,11,23,28,12,20,260,136,0,11,4,6,37,34,82,62,0,11,7,7,62,42,40,44,38,51,0,11,0,11,7,12,100,105,40,50,16,13,0,11,33,26,0,11,3,6]
[null,"9th grade",56,47,82,174,0,11,0,16,8,8,0,11,4,7,127,61,16,19,4,5,8,12,21,18,0,11,3,4,5,8,0,16,0,16,0,11,0,11,33,51,0,16,46,46,0,11,0,11,0,11,12,19,3,5]
[null,"10th grade",100,73,4,7,46,41,8,13,13,15,0,11,26,27,277,111,9,9,11,11,38,42,47,32,13,21,22,18,23,19,0,16,0,16,16,26,0,11,33,30,19,31,79,54,4,5,17,19,3,6,4,5,4,6]
[null,"11th grade",45,54,9,14,66,63,9,13,6,7,1,4,14,15,384,115,12,10,8,9,30,26,31,27,25,39,9,9,105,70,71,100,29,33,0,11,0,11,70,47,38,38,66,60,11,10,0,11,17,19,16,19,4,5]
[null,"12th grade, no diploma",78,53,7,10,7,13,43,32,27,17,10,16,11,12,166,71,11,17,0,11,28,27,87,74,0,11,10,9,63,41,8,15,20,23,15,12,19,22,29,24,82,54,0,11,3,6,0,11,33,26,5,7,4,6]
[null,"High school graduate, GED, or alternative",578,112,299,98,667,130,372,82,140,33,167,65,303,65,4314,407,186,50,325,64,661,103,1258,199,403,114,152,49,1196,198,296,121,726,189,128,38,195,85,679,139,884,192,751,186,216,54,168,50,237,67,247,49,112,37]
[null,"Some college, less than 1 year",142,60,17,14,79,48,113,58,37,21,44,42,73,32,600,140,28,18,39,25,99,58,118,62,57,42,30,16,265,101,76,56,175,99,21,16,54,43,89,44,108,76,43,28,29,15,31,21,60,31,43,22,17,12]
[null,"Some college, 1 or more years, no degree",99,56,164,77,124,75,209,68,55,19,127,52,107,43,2011,255,43,29,112,44,197,86,350,112,229,119,23,21,624,186,261,116,152,98,80,40,111,53,227,94,480,206,146,62,58,28,64,33,139,47,90,36,46,23]
[null,"Associate's degree",182,78,41,35,56,34,237,87,66,28,90,33,162,60,1519,208,38,18,154,43,93,51,418,141,210,97,19,14,515,137,247,99,350,160,40,22,65,45,124,61,289,119,120,74,72,34,81,38,110,38,75,26,82,37]
[null,"Bachelor's degree",214,90,230,61,142,62,847,121,120,54,270,64,154,45,2981,297,30,14,159,39,250,90,392,112,348,96,33,17,1037,213,440,140,284,127,345,83,363,86,198,85,475,156,70,40,84,29,133,44,164,47,112,28,148,40]
[null,"Master's degree",33,31,80,41,60,41,450,101,45,21,166,49,40,24,1669,214,44,26,100,36,93,54,75,51,189,82,35,21,489,148,388,125,95,66,125,58,262,71,36,31,86,60,63,46,24,19,82,32,107,45,49,26,139,45]
[null,"Professional school degree",0,11,18,27,30,29,149,61,6,7,26,22,8,12,672,146,10,9,59,40,110,120,10,16,30,36,3,5,66,63,160,82,38,44,21,15,144,50,37,47,14,23,7,12,24,19,23,22,15,12,6,6,23,19]
[null,"Doctorate degree",0,11,33,20,0,11,50,31,7,7,0,11,6,9,271,101,7,7,0,11,8,12,21,23,33,38,8,8,27,27,67,55,27,43,25,15,39,25,7,12,19,29,15,19,4,5,24,17,28,18,2,4,12,10]
[null,"Female:",1545,123,910,97,1602,106,2787,127,595,82,849,84,981,59,15847,403,395,62,926,46,1806,135,3480,197,1529,133,358,48,5086,255,2156,123,2194,129,816,92,1477,127,1651,139,2577,201,1452,129,535,62,758,104,1120,98,716,79,658,84]
[null,"No schooling completed",12,17,0,11,0,11,0,16,0,11,0,11,11,14,219,105,0,11,5,7,0,11,11,16,10,16,0,11,44,36,0,16,0,16,0,11,0,11,0,11,50,61,0,11,8,8,0,11,0,11,1,3,0,11]
[null,"Nursery to 4th grade",0,11,0,11,0,11,0,16,0,11,0,11,0,11,25,23,0,11,5,8,0,11,0,16,0,11,0,11,0,18,0,16,0,16,0,11,3,6,0,11,0,16,0,11,0,11,0,11,10,13,6,8,0,11]
[null,"5th and 6th grade",0,11,0,11,0,11,0,16,0,11,0,11,0,11,62,61,0,11,0,11,0,11,0,16,0,11,0,11,9,15,0,16,0,16,0,11,0,11,0,11,0,16,0,11,0,11,0,11,0,11,0,11,0,11]
[null,"7th and 8th grade",11,16,0,11,0,11,13,17,0,11,0,11,0,11,298,160,5,7,4,6,26,21,43,38,0,11,0,11,45,39,0,16,0,16,0,11,16,25,0,11,0,16,9,14,0,11,0,11,6,10,2,5,0,11]
[null,"9th grade",62,56,7,10,9,19,7,11,0,11,10,12,15,17,50,42,19,20,0,11,33,46,26,26,21,34,0,11,28,34,11,20,30,46,0,11,4,8,29,33,15,24,0,11,4,6,0,11,5,12,0,11,0,11]
[null,"10th grade",51,49,0,11,17,27,0,16,12,10,21,20,13,18,91,56,11,17,0,11,0,11,93,65,0,11,4,6,43,52,17,28,0,16,0,11,0,11,26,28,36,41,24,36,11,9,4,6,0,11,0,11,0,11]
[null,"11th grade",11,14,0,11,16,21,23,24,6,7,6,9,0,11,260,125,0,11,7,8,22,21,11,18,18,26,0,11,30,33,0,16,9,14,0,11,12,16,54,40,0,16,0,11,0,11,0,11,17,20,4,6,10,16]
[null,"12th grade, no diploma",19,23,6,8,70,64,0,16,0,11,0,11,7,10,60,35,4,5,4,6,17,21,62,57,0,11,12,14,24,24,0,16,25,30,7,10,0,11,28,31,26,30,47,34,8,9,0,11,8,10,7,7,0,11]
[null,"High school graduate, GED, or alternative",536,118,167,54,583,146,554,109,132,55,112,40,325,65,3419,406,117,34,189,43,504,136,1451,234,269,115,96,31,1287,199,525,179,750,185,93,40,113,50,456,124,707,188,567,116,194,58,109,48,308,91,211,40,107,36]
[null,"Some college, less than 1 year",106,52,43,37,149,79,126,56,46,27,61,31,44,25,834,165,30,21,66,28,119,64,330,107,133,66,38,21,204,83,124,66,111,92,73,31,36,21,133,55,291,121,66,54,21,12,10,13,48,32,31,17,32,34]
[null,"Some college, 1 or more years, no degree",287,109,133,57,298,109,258,83,55,25,108,44,85,42,2407,332,101,38,128,45,194,91,291,98,133,65,57,33,663,180,140,79,569,216,107,47,194,71,216,93,355,145,195,85,78,31,112,45,124,52,84,35,70,34]
[null,"Associate's degree",200,88,132,50,140,68,363,109,69,31,74,29,147,43,1865,319,34,23,109,33,227,78,524,142,156,81,46,19,629,153,256,111,328,155,76,35,207,91,318,118,263,95,175,86,42,20,151,50,184,68,132,40,34,22]
[null,"Bachelor's degree",168,73,207,66,234,77,876,134,172,42,241,60,216,52,3729,351,45,25,207,45,370,97,502,135,390,116,55,21,1027,203,570,142,274,147,247,67,489,96,288,95,440,144,260,99,106,34,164,51,208,53,105,31,211,59]
[null,"Master's degree",82,46,202,63,65,43,424,111,87,33,164,50,102,42,1874,242,18,12,172,52,221,90,84,59,310,114,38,19,934,218,449,134,98,58,154,57,333,83,90,50,312,108,89,58,53,25,169,59,169,59,101,31,144,47]
[null,"Professional school degree",0,11,13,14,0,11,112,61,7,8,39,23,16,17,499,109,11,18,27,19,73,61,35,41,71,53,4,5,105,69,49,43,0,16,43,27,28,25,6,12,0,16,20,24,10,11,21,18,21,16,26,13,9,9]
[null,"Doctorate degree",0,11,0,11,21,26,31,27,9,9,13,14,0,11,155,72,0,11,3,5,0,11,17,27,18,25,8,8,14,21,15,23,0,16,16,13,42,37,7,11,82,62,0,11,0,11,18,21,12,8,6,7,41,27]
[]
[]
[]
[]
[]
[]
[]
[]
[null,"Calculated B15002. SEX BY EDUCATIONAL ATTAINMENT FOR THE POPULATION 25 YEARS AND OVER"]
[]
[null,null,"Allenstown",null,"Andover",null,"Boscawen",null,"Bow",null,"Bradford",null,"Canterbury",null,"Chichester",null,"Concord",null,"Danbury",null,"Dunbarton",null,"Epsom",null,"Franklin",null,"Henniker",null,"Hill",null,"Hooksett",null,"Hopkinton",null,"Loudon",null,"Newbury",null,"New London",null,"Northfield",null,"Pembroke",null,"Pittsfield",null,"Salisbury",null,"Sutton",null,"Warner",null,"Webster",null,"Wilmot"]
[null,null,"Estimate","Margin Of Error","Estimate","Margin Of Error","Estimate","Margin Of Error","Estimate","Margin Of Error","Estimate","Margin Of Error","Estimate","Margin Of Error","Estimate","Margin Of Error","Estimate","Margin Of Error","Estimate","Margin Of Error","Estimate","Margin Of Error","Estimate","Margin Of Error","Estimate","Margin Of Error","Estimate","Margin Of Error","Estimate","Margin Of Error","Estimate","Margin Of Error","Estimate","Margin Of Error","Estimate","Margin Of Error","Estimate","Margin Of Error","Estimate","Margin Of Error","Estimate","Margin Of Error","Estimate","Margin Of Error","Estimate","Margin Of Error","Estimate","Margin Of Error","Estimate","Margin Of Error","Estimate","Margin Of Error","Estimate","Margin Of Error","Estimate","Margin Of Error"]
[null,"Total:",{"$f":"C7","v":3103},{"$f":"D7","v":178},{"$f":"E7","v":1901},{"$f":"F7","v":225},{"$f":"G7","v":2968},136,5302,189,1125,139,1777,124,1901,76,31266,481,829,116,1905,74,3463,161,6437,276,3076,207,712,94,9620,404,4210,156,4151,276,1637,157,2729,206,{"$f":"AO7","v":3277},243,5171,258,2910,172,1085,123,1381,171,2070,99,1379,136,1262,{"$f":"BD7","v":144}]
[null,"Less than 9th grade",{"$f":"(C12+C11+C10)+(C27+C28+C29)","v":42},{"$f":"SQRT((D12^2)+(D11^2)+(D10^2)+(D27^2)+(D28^2)+(D29^2))","v":45.923850012820139},{"$f":"(E12+E11+E10)+(E27+E28+E29)","v":7},{"$f":"SQRT((F12^2)+(F11^2)+(F10^2)+(F27^2)+(F28^2)+(F29^2))","v":26.551836094703507},{"$f":"(G12+G11+G10)+(G27+G28+G29)","v":72},{"$f":"SQRT((H12^2)+(H11^2)+(H10^2)+(H27^2)+(H28^2)+(H29^2))","v":62.521996129362343},{"$f":"(I12+I11+I10)+(I27+I28+I29)","v":32},{"$f":"SQRT((J12^2)+(J11^2)+(J10^2)+(J27^2)+(J28^2)+(J29^2))","v":40.914545090957567},{"$f":"(K12+K11+K10)+(K27+K28+K29)","v":0},{"$f":"SQRT((L12^2)+(L11^2)+(L10^2)+(L27^2)+(L28^2)+(L29^2))","v":26.944387170614959},{"$f":"(M12+M11+M10)+(M27+M28+M29)","v":23},{"$f":"SQRT((N12^2)+(N11^2)+(N10^2)+(N27^2)+(N28^2)+(N29^2))","v":37.269290307168447},{"$f":"(O12+O11+O10)+(O27+O28+O29)","v":12},{"$f":"SQRT((P12^2)+(P11^2)+(P10^2)+(P27^2)+(P28^2)+(P29^2))","v":31.701734968294716},{"$f":"(Q12+Q11+Q10)+(Q27+Q28+Q29)","v":742},{"$f":"SQRT((R12^2)+(R11^2)+(R10^2)+(R27^2)+(R28^2)+(R29^2))","v":227.95394271650579},{"$f":"(S12+S11+S10)+(S27+S28+S29)","v":5},{"$f":"SQRT((T12^2)+(T11^2)+(T10^2)+(T27^2)+(T28^2)+(T29^2))","v":25.573423705088842},{"$f":"(U12+U11+U10)+(U27+U28+U29)","v":13},{"$f":"SQRT((V12^2)+(V11^2)+(V10^2)+(V27^2)+(V28^2)+(V29^2))","v":22.338307903688676},{"$f":"(W12+W11+W10)+(W27+W28+W29)","v":63},{"$f":"SQRT((X12^2)+(X11^2)+(X10^2)+(X27^2)+(X28^2)+(X29^2))","v":45.617978911828175},{"$f":"(Y12+Y11+Y10)+(Y27+Y28+Y29)","v":135},{"$f":"SQRT((Z12^2)+(Z11^2)+(Z10^2)+(Z27^2)+(Z28^2)+(Z29^2))","v":79.448096264164818},{"$f":"(AA12+AA11+AA10)+(AA27+AA28+AA29)","v":0},{"$f":"SQRT((AB12^2)+(AB11^2)+(AB10^2)+(AB27^2)+(AB28^2)+(AB29^2))","v":26.944387170614959},{"$f":"(AC12+AC11+AC10)+(AC27+AC28+AC29)","v":7},{"$f":"SQRT((AD12^2)+(AD11^2)+(AD10^2)+(AD27^2)+(AD28^2)+(AD29^2))","v":25.573423705088842},{"$f":"(AE12+AE11+AE10)+(AE27+AE28+AE29)","v":130},{"$f":"SQRT((AF12^2)+(AF11^2)+(AF10^2)+(AF27^2)+(AF28^2)+(AF29^2))","v":67.512961718472994},{"$f":"(AG12+AG11+AG10)+(AG27+AG28+AG29)","v":40},{"$f":"SQRT((AH12^2)+(AH11^2)+(AH10^2)+(AH27^2)+(AH28^2)+(AH29^2))","v":56.709787515031302},{"$f":"(AI12+AI11+AI10)+(AI27+AI28+AI29)","v":61},{"$f":"SQRT((AJ12^2)+(AJ11^2)+(AJ10^2)+(AJ27^2)+(AJ28^2)+(AJ29^2))","v":71.196910045310247},{"$f":"(AK12+AK11+AK10)+(AK27+AK28+AK29)","v":0},{"$f":"SQRT((AL12^2)+(AL11^2)+(AL10^2)+(AL27^2)+(AL28^2)+(AL29^2))","v":26.944387170614959},{"$f":"(AM12+AM11+AM10)+(AM27+AM28+AM29)","v":19},{"$f":"SQRT((AN12^2)+(AN11^2)+(AN10^2)+(AN27^2)+(AN28^2)+(AN29^2))","v":33.837848631377263},{"$f":"(AO12+AO11+AO10)+(AO27+AO28+AO29)","v":26},{"$f":"SQRT((AP12^2)+(AP11^2)+(AP10^2)+(AP27^2)+(AP28^2)+(AP29^2))","v":39.08964057138413},{"$f":"(AQ12+AQ11+AQ10)+(AQ27+AQ28+AQ29)","v":100},{"$f":"SQRT((AR12^2)+(AR11^2)+(AR10^2)+(AR27^2)+(AR28^2)+(AR29^2))","v":110.92790451459904},{"$f":"(AS12+AS11+AS10)+(AS27+AS28+AS29)","v":49},{"$f":"SQRT((AT12^2)+(AT11^2)+(AT10^2)+(AT27^2)+(AT28^2)+(AT29^2))","v":56.391488719486738},{"$f":"(AU12+AU11+AU10)+(AU27+AU28+AU29)","v":16},{"$f":"SQRT((AV12^2)+(AV11^2)+(AV10^2)+(AV27^2)+(AV28^2)+(AV29^2))","v":27.820855486487112},{"$f":"(AW12+AW11+AW10)+(AW27+AW28+AW29)","v":0},{"$f":"SQRT((AX12^2)+(AX11^2)+(AX10^2)+(AX27^2)+(AX28^2)+(AX29^2))","v":26.944387170614959},{"$f":"(AY12+AY11+AY10)+(AY27+AY28+AY29)","v":49},{"$f":"SQRT((AZ12^2)+(AZ11^2)+(AZ10^2)+(AZ27^2)+(AZ28^2)+(AZ29^2))","v":36.166282640050248},{"$f":"(BA12+BA11+BA10)+(BA27+BA28+BA29)","v":10},{"$f":"SQRT((BB12^2)+(BB11^2)+(BB10^2)+(BB27^2)+(BB28^2)+(BB29^2))","v":21.840329667841555},{"$f":"(BC12+BC11+BC10)+(BC27+BC28+BC29)","v":3},{"$f":"SQRT((BD12^2)+(BD11^2)+(BD10^2)+(BD27^2)+(BD28^2)+(BD29^2))","v":25.317977802344327}]
[null,"9th to 12th grade, no diploma",{"$f":"(C13+C14+C15+C16)+(C30+C31+C32+C33)","v":422},{"$f":"SQRT((D13^2)+(D14^2)+(D15^2)+(D16^2)+(D30^2)+(D31^2)+(D32^2)+(D33^2))","v":139.73188612482122},{"$f":"(E13+E14+E15+E16)+(E30+E31+E32+E33)","v":115},{"$f":"SQRT((F13^2)+(F14^2)+(F15^2)+(F16^2)+(F30^2)+(F31^2)+(F32^2)+(F33^2))","v":176.14482677615032},{"$f":"(G13+G14+G15+G16)+(G30+G31+G32+G33)","v":231},{"$f":"SQRT((H13^2)+(H14^2)+(H15^2)+(H16^2)+(H30^2)+(H31^2)+(H32^2)+(H33^2))","v":107.54998837749821},{"$f":"(I13+I14+I15+I16)+(I30+I31+I32+I33)","v":90},{"$f":"SQRT((J13^2)+(J14^2)+(J15^2)+(J16^2)+(J30^2)+(J31^2)+(J32^2)+(J33^2))","v":53.169540152233779},{"$f":"(K13+K14+K15+K16)+(K30+K31+K32+K33)","v":72},{"$f":"SQRT((L13^2)+(L14^2)+(L15^2)+(L16^2)+(L30^2)+(L31^2)+(L32^2)+(L33^2))","v":31.906112267087632},{"$f":"(M13+M14+M15+M16)+(M30+M31+M32+M33)","v":48},{"$f":"SQRT((N13^2)+(N14^2)+(N15^2)+(N16^2)+(N30^2)+(N31^2)+(N32^2)+(N33^2))","v":35.496478698597699},{"$f":"(O13+O14+O15+O16)+(O30+O31+O32+O33)","v":90},{"$f":"SQRT((P13^2)+(P14^2)+(P15^2)+(P16^2)+(P30^2)+(P31^2)+(P32^2)+(P33^2))","v":44.50842616853577},{"$f":"(Q13+Q14+Q15+Q16)+(Q30+Q31+Q32+Q33)","v":1415},{"$f":"SQRT((R13^2)+(R14^2)+(R15^2)+(R16^2)+(R30^2)+(R31^2)+(R32^2)+(R33^2))","v":236.76570697632712},{"$f":"(S13+S14+S15+S16)+(S30+S31+S32+S33)","v":82},{"$f":"SQRT((T13^2)+(T14^2)+(T15^2)+(T16^2)+(T30^2)+(T31^2)+(T32^2)+(T33^2))","v":40.8166632639171},{"$f":"(U13+U14+U15+U16)+(U30+U31+U32+U33)","v":34},{"$f":"SQRT((V13^2)+(V14^2)+(V15^2)+(V16^2)+(V30^2)+(V31^2)+(V32^2)+(V33^2))","v":26.267851073127396},{"$f":"(W13+W14+W15+W16)+(W30+W31+W32+W33)","v":176},{"$f":"SQRT((X13^2)+(X14^2)+(X15^2)+(X16^2)+(X30^2)+(X31^2)+(X32^2)+(X33^2))","v":80.199750623053689},{"$f":"(Y13+Y14+Y15+Y16)+(Y30+Y31+Y32+Y33)","v":378},{"$f":"SQRT((Z13^2)+(Z14^2)+(Z15^2)+(Z16^2)+(Z30^2)+(Z31^2)+(Z32^2)+(Z33^2))","v":126.5977882903173},{"$f":"(AA13+AA14+AA15+AA16)+(AA30+AA31+AA32+AA33)","v":77},{"$f":"SQRT((AB13^2)+(AB14^2)+(AB15^2)+(AB16^2)+(AB30^2)+(AB31^2)+(AB32^2)+(AB33^2))","v":65.406421703071331},{"$f":"(AC13+AC14+AC15+AC16)+(AC30+AC31+AC32+AC33)","v":60},{"$f":"SQRT((AD13^2)+(AD14^2)+(AD15^2)+(AD16^2)+(AD30^2)+(AD31^2)+(AD32^2)+(AD33^2))","v":31.240998703626616},{"$f":"(AE13+AE14+AE15+AE16)+(AE30+AE31+AE32+AE33)","v":321},{"$f":"SQRT((AF13^2)+(AF14^2)+(AF15^2)+(AF16^2)+(AF30^2)+(AF31^2)+(AF32^2)+(AF33^2))","v":111.94194924156002},{"$f":"(AG13+AG14+AG15+AG16)+(AG30+AG31+AG32+AG33)","v":107},{"$f":"SQRT((AH13^2)+(AH14^2)+(AH15^2)+(AH16^2)+(AH30^2)+(AH31^2)+(AH32^2)+(AH33^2))","v":111.50336317797773},{"$f":"(AI13+AI14+AI15+AI16)+(AI30+AI31+AI32+AI33)","v":113},{"$f":"SQRT((AJ13^2)+(AJ14^2)+(AJ15^2)+(AJ16^2)+(AJ30^2)+(AJ31^2)+(AJ32^2)+(AJ33^2))","v":74.819783480039561},{"$f":"(AK13+AK14+AK15+AK16)+(AK30+AK31+AK32+AK33)","v":38},{"$f":"SQRT((AL13^2)+(AL14^2)+(AL15^2)+(AL16^2)+(AL30^2)+(AL31^2)+(AL32^2)+(AL33^2))","v":39.05124837953327},{"$f":"(AM13+AM14+AM15+AM16)+(AM30+AM31+AM32+AM33)","v":35},{"$f":"SQRT((AN13^2)+(AN14^2)+(AN15^2)+(AN16^2)+(AN30^2)+(AN31^2)+(AN32^2)+(AN33^2))","v":37.536648758246919},{"$f":"(AO13+AO14+AO15+AO16)+(AO30+AO31+AO32+AO33)","v":302},{"$f":"SQRT((AP13^2)+(AP14^2)+(AP15^2)+(AP16^2)+(AP30^2)+(AP31^2)+(AP32^2)+(AP33^2))","v":103.53743284435828},{"$f":"(AQ13+AQ14+AQ15+AQ16)+(AQ30+AQ31+AQ32+AQ33)","v":216},{"$f":"SQRT((AR13^2)+(AR14^2)+(AR15^2)+(AR16^2)+(AR30^2)+(AR31^2)+(AR32^2)+(AR33^2))","v":94.815610529068465},{"$f":"(AS13+AS14+AS15+AS16)+(AS30+AS31+AS32+AS33)","v":262},{"$f":"SQRT((AT13^2)+(AT14^2)+(AT15^2)+(AT16^2)+(AT30^2)+(AT31^2)+(AT32^2)+(AT33^2))","v":106.99065379742288},{"$f":"(AU13+AU14+AU15+AU16)+(AU30+AU31+AU32+AU33)","v":41},{"$f":"SQRT((AV13^2)+(AV14^2)+(AV15^2)+(AV16^2)+(AV30^2)+(AV31^2)+(AV32^2)+(AV33^2))","v":24.515301344262525},{"$f":"(AW13+AW14+AW15+AW16)+(AW30+AW31+AW32+AW33)","v":21},{"$f":"SQRT((AX13^2)+(AX14^2)+(AX15^2)+(AX16^2)+(AX30^2)+(AX31^2)+(AX32^2)+(AX33^2))","v":33.511192160232078},{"$f":"(AY13+AY14+AY15+AY16)+(AY30+AY31+AY32+AY33)","v":83},{"$f":"SQRT((AZ13^2)+(AZ14^2)+(AZ15^2)+(AZ16^2)+(AZ30^2)+(AZ31^2)+(AZ32^2)+(AZ33^2))","v":44.260591952661457},{"$f":"(BA13+BA14+BA15+BA16)+(BA30+BA31+BA32+BA33)","v":48},{"$f":"SQRT((BB13^2)+(BB14^2)+(BB15^2)+(BB16^2)+(BB30^2)+(BB31^2)+(BB32^2)+(BB33^2))","v":33.511192160232078},{"$f":"(BC13+BC14+BC15+BC16)+(BC30+BC31+BC32+BC33)","v":25},{"$f":"SQRT((BD13^2)+(BD14^2)+(BD15^2)+(BD16^2)+(BD30^2)+(BD31^2)+(BD32^2)+(BD33^2))","v":27.221315177632398}]
[null,"High school graduate (includes equivalency)",{"$f":"C17+C34","v":1114},{"$f":"SQRT((D17^2)+(D34^2))","v":162.68988905276197},{"$f":"E17+E34","v":466},{"$f":"SQRT((F17^2)+(F34^2))","v":111.89280584559492},{"$f":"G17+G34","v":1250},{"$f":"SQRT((H17^2)+(H34^2))","v":195.48913013259843},{"$f":"I17+I34","v":926},{"$f":"SQRT((J17^2)+(J34^2))","v":136.40014662748717},{"$f":"K17+K34","v":272},{"$f":"SQRT((L17^2)+(L34^2))","v":64.140470843298303},{"$f":"M17+M34","v":279},{"$f":"SQRT((N17^2)+(N34^2))","v":76.321687612368734},{"$f":"O17+O34","v":628},{"$f":"SQRT((P17^2)+(P34^2))","v":91.923881554251182},{"$f":"Q17+Q34","v":7733},{"$f":"SQRT((R17^2)+(R34^2))","v":574.87824797951782},{"$f":"S17+S34","v":303},{"$f":"SQRT((T17^2)+(T34^2))","v":60.464865831323898},{"$f":"U17+U34","v":514},{"$f":"SQRT((V17^2)+(V34^2))","v":77.103826104804938},{"$f":"W17+W34","v":1165},{"$f":"SQRT((X17^2)+(X34^2))","v":170.60187572239644},{"$f":"Y17+Y34","v":2709},{"$f":"SQRT((Z17^2)+(Z34^2))","v":307.17584540454999},{"$f":"AA17+AA34","v":672},{"$f":"SQRT((AB17^2)+(AB34^2))","v":161.92899678562824},{"$f":"AC17+AC34","v":248},{"$f":"SQRT((AD17^2)+(AD34^2))","v":57.982756057296896},{"$f":"AE17+AE34","v":2483},{"$f":"SQRT((AF17^2)+(AF34^2))","v":280.72228269234347},{"$f":"AG17+AG34","v":821},{"$f":"SQRT((AH17^2)+(AH34^2))","v":216.06017680266763},{"$f":"AI17+AI34","v":1476},{"$f":"SQRT((AJ17^2)+(AJ34^2))","v":264.47306101000157},{"$f":"AK17+AK34","v":221},{"$f":"SQRT((AL17^2)+(AL34^2))","v":55.172456896534889},{"$f":"AM17+AM34","v":308},{"$f":"SQRT((AN17^2)+(AN34^2))","v":98.615414616580097},{"$f":"AO17+AO34","v":1135},{"$f":"SQRT((AP17^2)+(AP34^2))","v":186.27130750601393},{"$f":"AQ17+AQ34","v":1591},{"$f":"SQRT((AR17^2)+(AR34^2))","v":268.71546289709494},{"$f":"AS17+AS34","v":1318},{"$f":"SQRT((AT17^2)+(AT34^2))","v":219.20766409959302},{"$f":"AU17+AU34","v":410},{"$f":"SQRT((AV17^2)+(AV34^2))","v":79.246451024635803},{"$f":"AW17+AW34","v":277},{"$f":"SQRT((AX17^2)+(AX34^2))","v":69.31089380465383},{"$f":"AY17+AY34","v":545},{"$f":"SQRT((AZ17^2)+(AZ34^2))","v":113.00442469213318},{"$f":"BA17+BA34","v":458},{"$f":"SQRT((BB17^2)+(BB34^2))","v":63.253458403473878},{"$f":"BC17+BC34","v":219},{"$f":"SQRT((BD17^2)+(BD34^2))","v":51.623637996561229}]
[null,"Some college, no degree",{"$f":"(C18+C19)+(C35+C36)","v":634},{"$f":"SQRT((D18^2)+(D19^2)+(D35^2)+(D36^2))","v":146.01712228365548},{"$f":"(E18+E19)+(E35+E36)","v":357},{"$f":"SQRT((F18^2)+(F19^2)+(F35^2)+(F36^2))","v":103.64844427197158},{"$f":"(G18+G19)+(G35+G36)","v":650},{"$f":"SQRT((H18^2)+(H19^2)+(H35^2)+(H36^2))","v":161.4032217770141},{"$f":"(I18+I19)+(I35+I36)","v":706},{"$f":"SQRT((J18^2)+(J19^2)+(J35^2)+(J36^2))","v":134.21251804507656},{"$f":"(K18+K19)+(K35+K36)","v":193},{"$f":"SQRT((L18^2)+(L19^2)+(L35^2)+(L36^2))","v":46.432747064975601},{"$f":"(M18+M19)+(M35+M36)","v":340},{"$f":"SQRT((N18^2)+(N19^2)+(N35^2)+(N36^2))","v":85.819578185866192},{"$f":"(O18+O19)+(O35+O36)","v":309},{"$f":"SQRT((P18^2)+(P19^2)+(P35^2)+(P36^2))","v":72.539644333288535},{"$f":"(Q18+Q19)+(Q35+Q36)","v":5852},{"$f":"SQRT((R18^2)+(R19^2)+(R35^2)+(R36^2))","v":471.2472811592657},{"$f":"(S18+S19)+(S35+S36)","v":202},{"$f":"SQRT((T18^2)+(T19^2)+(T35^2)+(T36^2))","v":55.226805085936306},{"$f":"(U18+U19)+(U35+U36)","v":345},{"$f":"SQRT((V18^2)+(V19^2)+(V35^2)+(V36^2))","v":73.280283842245041},{"$f":"(W18+W19)+(W35+W36)","v":609},{"$f":"SQRT((X18^2)+(X19^2)+(X35^2)+(X36^2))","v":152.10851389715174},{"$f":"(Y18+Y19)+(Y35+Y36)","v":1089},{"$f":"SQRT((Z18^2)+(Z19^2)+(Z35^2)+(Z36^2))","v":193.49676999888138},{"$f":"(AA18+AA19)+(AA35+AA36)","v":552},{"$f":"SQRT((AB18^2)+(AB19^2)+(AB35^2)+(AB36^2))","v":156.54392354863219},{"$f":"(AC18+AC19)+(AC35+AC36)","v":148},{"$f":"SQRT((AD18^2)+(AD19^2)+(AD35^2)+(AD36^2))","v":47.191100855987671},{"$f":"(AE18+AE19)+(AE35+AE36)","v":1756},{"$f":"SQRT((AF18^2)+(AF19^2)+(AF35^2)+(AF36^2))","v":289.97586106433067},{"$f":"(AG18+AG19)+(AG35+AG36)","v":601},{"$f":"SQRT((AH18^2)+(AH19^2)+(AH35^2)+(AH36^2))","v":164.89087300393555},{"$f":"(AI18+AI19)+(AI35+AI36)","v":1007},{"$f":"SQRT((AJ18^2)+(AJ19^2)+(AJ35^2)+(AJ36^2))","v":272.99267389437392},{"$f":"(AK18+AK19)+(AK35+AK36)","v":281},{"$f":"SQRT((AL18^2)+(AL19^2)+(AL35^2)+(AL36^2))","v":70.894287499064404},{"$f":"(AM18+AM19)+(AM35+AM36)","v":395},{"$f":"SQRT((AN18^2)+(AN19^2)+(AN35^2)+(AN36^2))","v":100.69756700139284},{"$f":"(AO18+AO19)+(AO35+AO36)","v":665},{"$f":"SQRT((AP18^2)+(AP19^2)+(AP35^2)+(AP36^2))","v":149.81989187020528},{"$f":"(AQ18+AQ19)+(AQ35+AQ36)","v":1234},{"$f":"SQRT((AR18^2)+(AR19^2)+(AR35^2)+(AR36^2))","v":289.61698845198981},{"$f":"(AS18+AS19)+(AS35+AS36)","v":450},{"$f":"SQRT((AT18^2)+(AT19^2)+(AT35^2)+(AT36^2))","v":121.52777460317456},{"$f":"(AU18+AU19)+(AU35+AU36)","v":186},{"$f":"SQRT((AV18^2)+(AV19^2)+(AV35^2)+(AV36^2))","v":45.978255730290599},{"$f":"(AW18+AW19)+(AW35+AW36)","v":217},{"$f":"SQRT((AX18^2)+(AX19^2)+(AX35^2)+(AX36^2))","v":61.02458520956943},{"$f":"(AY18+AY19)+(AY35+AY36)","v":371},{"$f":"SQRT((AZ18^2)+(AZ19^2)+(AZ35^2)+(AZ36^2))","v":83.054199171384468},{"$f":"(BA18+BA19)+(BA35+BA36)","v":248},{"$f":"SQRT((BB18^2)+(BB19^2)+(BB35^2)+(BB36^2))","v":57.393379409126972},{"$f":"(BC18+BC19)+(BC35+BC36)","v":165},{"$f":"SQRT((BD18^2)+(BD19^2)+(BD35^2)+(BD36^2))","v":54.63515351859094}]
[null,"Associate's degree",{"$f":"C20+C37","v":382},{"$f":"SQRT((D20^2)+(D37^2))","v":117.5925167687128},{"$f":"E20+E37","v":173},{"$f":"SQRT((F20^2)+(F37^2))","v":61.032778078668514},{"$f":"G20+G37","v":196},{"$f":"SQRT((H20^2)+(H37^2))","v":76.026311234992846},{"$f":"I20+I37","v":600},{"$f":"SQRT((J20^2)+(J37^2))","v":139.46325680981354},{"$f":"K20+K37","v":135},{"$f":"SQRT((L20^2)+(L37^2))","v":41.773197148410844},{"$f":"M20+M37","v":164},{"$f":"SQRT((N20^2)+(N37^2))","v":43.931765272977593},{"$f":"O20+O37","v":309},{"$f":"SQRT((P20^2)+(P37^2))","v":73.81734213584231},{"$f":"Q20+Q37","v":3384},{"$f":"SQRT((R20^2)+(R37^2))","v":380.82148048659229},{"$f":"S20+S37","v":72},{"$f":"SQRT((T20^2)+(T37^2))","v":29.206163733020468},{"$f":"U20+U37","v":263},{"$f":"SQRT((V20^2)+(V37^2))","v":54.203320931470607},{"$f":"W20+W37","v":320},{"$f":"SQRT((X20^2)+(X37^2))","v":93.1933474020544},{"$f":"Y20+Y37","v":942},{"$f":"SQRT((Z20^2)+(Z37^2))","v":200.11246837716035},{"$f":"AA20+AA37","v":366},{"$f":"SQRT((AB20^2)+(AB37^2))","v":126.37246535539299},{"$f":"AC20+AC37","v":65},{"$f":"SQRT((AD20^2)+(AD37^2))","v":23.600847442411894},{"$f":"AE20+AE37","v":1144},{"$f":"SQRT((AF20^2)+(AF37^2))","v":205.37283169883986},{"$f":"AG20+AG37","v":503},{"$f":"SQRT((AH20^2)+(AH37^2))","v":148.73466307488647},{"$f":"AI20+AI37","v":678},{"$f":"SQRT((AJ20^2)+(AJ37^2))","v":222.76669409945464},{"$f":"AK20+AK37","v":116},{"$f":"SQRT((AL20^2)+(AL37^2))","v":41.340053217188775},{"$f":"AM20+AM37","v":272},{"$f":"SQRT((AN20^2)+(AN37^2))","v":101.51847122568385},{"$f":"AO20+AO37","v":442},{"$f":"SQRT((AP20^2)+(AP37^2))","v":132.83448347473634},{"$f":"AQ20+AQ37","v":552},{"$f":"SQRT((AR20^2)+(AR37^2))","v":152.26949793047851},{"$f":"AS20+AS37","v":295},{"$f":"SQRT((AT20^2)+(AT37^2))","v":113.45483682946268},{"$f":"AU20+AU37","v":114},{"$f":"SQRT((AV20^2)+(AV37^2))","v":39.446165846632042},{"$f":"AW20+AW37","v":232},{"$f":"SQRT((AX20^2)+(AX37^2))","v":62.801273872430329},{"$f":"AY20+AY37","v":294},{"$f":"SQRT((AZ20^2)+(AZ37^2))","v":77.89736837660179},{"$f":"BA20+BA37","v":207},{"$f":"SQRT((BB20^2)+(BB37^2))","v":47.707441767506253},{"$f":"BC20+BC37","v":116},{"$f":"SQRT((BD20^2)+(BD37^2))","v":43.046486500061768}]
[null,"Bachelor's degree",{"$f":"C21+C38","v":382},{"$f":"SQRT((D21^2)+(D38^2))","v":115.88356225108029},{"$f":"E21+E38","v":437},{"$f":"SQRT((F21^2)+(F38^2))","v":89.872131386765275},{"$f":"G21+G38","v":376},{"$f":"SQRT((H21^2)+(H38^2))","v":98.858484714262133},{"$f":"I21+I38","v":1723},{"$f":"SQRT((J21^2)+(J38^2))","v":180.54639292990598},{"$f":"K21+K38","v":292},{"$f":"SQRT((L21^2)+(L38^2))","v":68.410525505948286},{"$f":"M21+M38","v":511},{"$f":"SQRT((N21^2)+(N38^2))","v":87.726848797845236},{"$f":"O21+O38","v":370},{"$f":"SQRT((P21^2)+(P38^2))","v":68.767724987816777},{"$f":"Q21+Q38","v":6710},{"$f":"SQRT((R21^2)+(R38^2))","v":459.7934318800128},{"$f":"S21+S38","v":75},{"$f":"SQRT((T21^2)+(T38^2))","v":28.653097563788805},{"$f":"U21+U38","v":366},{"$f":"SQRT((V21^2)+(V38^2))","v":59.548299723837623},{"$f":"W21+W38","v":620},{"$f":"SQRT((X21^2)+(X38^2))","v":132.32157798333574},{"$f":"Y21+Y38","v":894},{"$f":"SQRT((Z21^2)+(Z38^2))","v":175.410946066658},{"$f":"AA21+AA38","v":738},{"$f":"SQRT((AB21^2)+(AB38^2))","v":150.57224179774968},{"$f":"AC21+AC38","v":88},{"$f":"SQRT((AD21^2)+(AD38^2))","v":27.018512172212592},{"$f":"AE21+AE38","v":2064},{"$f":"SQRT((AF21^2)+(AF38^2))","v":294.24139749532185},{"$f":"AG21+AG38","v":1010},{"$f":"SQRT((AH21^2)+(AH38^2))","v":199.40912717325654},{"$f":"AI21+AI38","v":558},{"$f":"SQRT((AJ21^2)+(AJ38^2))","v":194.26270872197782},{"$f":"AK21+AK38","v":592},{"$f":"SQRT((AL21^2)+(AL38^2))","v":106.66770832824712},{"$f":"AM21+AM38","v":852},{"$f":"SQRT((AN21^2)+(AN38^2))","v":128.8875478857442},{"$f":"AO21+AO38","v":486},{"$f":"SQRT((AP21^2)+(AP38^2))","v":127.47548783981962},{"$f":"AQ21+AQ38","v":915},{"$f":"SQRT((AR21^2)+(AR38^2))","v":212.30167215544958},{"$f":"AS21+AS38","v":330},{"$f":"SQRT((AT21^2)+(AT38^2))","v":106.77546534667971},{"$f":"AU21+AU38","v":190},{"$f":"SQRT((AV21^2)+(AV38^2))","v":44.687805943008662},{"$f":"AW21+AW38","v":297},{"$f":"SQRT((AX21^2)+(AX38^2))","v":67.357256476195644},{"$f":"AY21+AY38","v":372},{"$f":"SQRT((AZ21^2)+(AZ38^2))","v":70.837842993699354},{"$f":"BA21+BA38","v":217},{"$f":"SQRT((BB21^2)+(BB38^2))","v":41.773197148410844},{"$f":"BC21+BC38","v":359},{"$f":"SQRT((BD21^2)+(BD38^2))","v":71.28113354878694}]
[null,"Graduate or professional degree",{"$f":"(C22+C23+C24)+(C39+C40+C41)","v":115},{"$f":"SQRT((D22^2)+(D23^2)+(D24^2)+(D39^2)+(D41^2)+(D40^2))","v":59.674114991342769},{"$f":"(E22+E23+E24)+(E39+E40+E41)","v":346},{"$f":"SQRT((F22^2)+(F23^2)+(F24^2)+(F39^2)+(F41^2)+(F40^2))","v":84.237758754610752},{"$f":"(G22+G23+G24)+(G39+G40+G41)","v":176},{"$f":"SQRT((H22^2)+(H23^2)+(H24^2)+(H39^2)+(H41^2)+(H40^2))","v":72.725511342306831},{"$f":"(I22+I23+I24)+(I39+I40+I41)","v":1216},{"$f":"SQRT((J22^2)+(J23^2)+(J24^2)+(J39^2)+(J41^2)+(J40^2))","v":177.91571037994368},{"$f":"(K22+K23+K24)+(K39+K40+K41)","v":161},{"$f":"SQRT((L22^2)+(L23^2)+(L24^2)+(L39^2)+(L41^2)+(L40^2))","v":42.107006542854599},{"$f":"(M22+M23+M24)+(M39+M40+M41)","v":408},{"$f":"SQRT((N22^2)+(N23^2)+(N24^2)+(N39^2)+(N41^2)+(N40^2))","v":78.93668348746354},{"$f":"(O22+O23+O24)+(O39+O40+O41)","v":172},{"$f":"SQRT((P22^2)+(P23^2)+(P24^2)+(P39^2)+(P41^2)+(P40^2))","v":54.543560573178574},{"$f":"(Q22+Q23+Q24)+(Q39+Q40+Q41)","v":5140},{"$f":"SQRT((R22^2)+(R23^2)+(R24^2)+(R39^2)+(R41^2)+(R40^2))","v":391.07799733556988},{"$f":"(S22+S23+S24)+(S39+S40+S41)","v":90},{"$f":"SQRT((T22^2)+(T23^2)+(T24^2)+(T39^2)+(T41^2)+(T40^2))","v":37.349698793966198},{"$f":"(U22+U23+U24)+(U39+U40+U41)","v":361},{"$f":"SQRT((V22^2)+(V23^2)+(V24^2)+(V39^2)+(V41^2)+(V40^2))","v":78.14729681825213},{"$f":"(W22+W23+W24)+(W39+W40+W41)","v":505},{"$f":"SQRT((X22^2)+(X23^2)+(X24^2)+(X39^2)+(X41^2)+(X40^2))","v":171.47011401407536},{"$f":"(Y22+Y23+Y24)+(Y39+Y40+Y41)","v":242},{"$f":"SQRT((Z22^2)+(Z23^2)+(Z24^2)+(Z39^2)+(Z41^2)+(Z40^2))","v":96.317184344227996},{"$f":"(AA22+AA23+AA24)+(AA39+AA40+AA41)","v":651},{"$f":"SQRT((AB22^2)+(AB23^2)+(AB24^2)+(AB39^2)+(AB41^2)+(AB40^2))","v":160.91612722160573},{"$f":"(AC22+AC23+AC24)+(AC39+AC40+AC41)","v":96},{"$f":"SQRT((AD22^2)+(AD23^2)+(AD24^2)+(AD39^2)+(AD41^2)+(AD40^2))","v":31.304951684997057},{"$f":"(AE22+AE23+AE24)+(AE39+AE40+AE41)","v":1635},{"$f":"SQRT((AF22^2)+(AF23^2)+(AF24^2)+(AF39^2)+(AF41^2)+(AF40^2))","v":281.65226787654314},{"$f":"(AG22+AG23+AG24)+(AG39+AG40+AG41)","v":1128},{"$f":"SQRT((AH22^2)+(AH23^2)+(AH24^2)+(AH39^2)+(AH41^2)+(AH40^2))","v":213.79429365630881},{"$f":"(AI22+AI23+AI24)+(AI39+AI40+AI41)","v":258},{"$f":"SQRT((AJ22^2)+(AJ23^2)+(AJ24^2)+(AJ39^2)+(AJ41^2)+(AJ40^2))","v":109.62207806824317},{"$f":"(AK22+AK23+AK24)+(AK39+AK40+AK41)","v":384},{"$f":"SQRT((AL22^2)+(AL23^2)+(AL24^2)+(AL39^2)+(AL41^2)+(AL40^2))","v":89.224436114777433},{"$f":"(AM22+AM23+AM24)+(AM39+AM40+AM41)","v":848},{"$f":"SQRT((AN22^2)+(AN23^2)+(AN24^2)+(AN39^2)+(AN41^2)+(AN40^2))","v":130.57181931795236},{"$f":"(AO22+AO23+AO24)+(AO39+AO40+AO41)","v":183},{"$f":"SQRT((AP22^2)+(AP23^2)+(AP24^2)+(AP39^2)+(AP41^2)+(AP40^2))","v":77.967942130083188},{"$f":"(AQ22+AQ23+AQ24)+(AQ39+AQ40+AQ41)","v":513},{"$f":"SQRT((AR22^2)+(AR23^2)+(AR24^2)+(AR39^2)+(AR41^2)+(AR40^2))","v":143.9930553880985},{"$f":"(AS22+AS23+AS24)+(AS39+AS40+AS41)","v":194},{"$f":"SQRT((AT22^2)+(AT23^2)+(AT24^2)+(AT39^2)+(AT41^2)+(AT40^2))","v":81.743501270743224},{"$f":"(AU22+AU23+AU24)+(AU39+AU40+AU41)","v":115},{"$f":"SQRT((AV22^2)+(AV23^2)+(AV24^2)+(AV39^2)+(AV41^2)+(AV40^2))","v":40.174618853201331},{"$f":"(AW22+AW23+AW24)+(AW39+AW40+AW41)","v":337},{"$f":"SQRT((AX22^2)+(AX23^2)+(AX24^2)+(AX39^2)+(AX41^2)+(AX40^2))","v":77.736735202862747},{"$f":"(AY22+AY23+AY24)+(AY39+AY40+AY41)","v":352},{"$f":"SQRT((AZ22^2)+(AZ23^2)+(AZ24^2)+(AZ39^2)+(AZ41^2)+(AZ40^2))","v":79.334733881194808},{"$f":"(BA22+BA23+BA24)+(BA39+BA40+BA41)","v":190},{"$f":"SQRT((BB22^2)+(BB23^2)+(BB24^2)+(BB39^2)+(BB41^2)+(BB40^2))","v":43.669211121796096},{"$f":"(BC22+BC23+BC24)+(BC39+BC40+BC41)","v":368},{"$f":"SQRT((BD22^2)+(BD23^2)+(BD24^2)+(BD39^2)+(BD41^2)+(BD40^2))","v":74.195687206198173}]
[]
[]
[]
[]
[]
[]
[]
[]
[]
[]
[]
[]
[]
[]
[]
[]
[]
[]
[]
[]
[]
[]
[]
[]
[]
[]
[]
[null,"Calculated B15002. SEX BY EDUCATIONAL ATTAINMENT FOR THE POPULATION 25 YEARS AND OVER"]
[null,"Universe: Population 25 years an over"]
[null,"Data Set: 2010-2014 American Community Survey 5-Year Estimates"]
[null,null,"Allenstown",null,"Andover",null,"Boscawen",null,"Bow",null,"Bradford",null,"Canterbury",null,"Chichester",null,"Concord",null,"Danbury",null,"Dunbarton",null,"Epsom",null,"Franklin",null,"Henniker",null,"Hill",null,"Hooksett",null,"Hopkinton",null,"Loudon",null,"Newbury",null,"New London",null,"Northfield",null,"Pembroke",null,"Pittsfield",null,"Salisbury",null,"Sutton",null,"Warner",null,"Webster",null,"Wilmot"]
[null,null,"Estimate","Margin Of Error","Estimate","Margin Of Error","Estimate","Margin Of Error","Estimate","Margin Of Error","Estimate","Margin Of Error","Estimate","Margin Of Error","Estimate","Margin Of Error","Estimate","Margin Of Error","Estimate","Margin Of Error","Estimate","Margin Of Error","Estimate","Margin Of Error","Estimate","Margin Of Error","Estimate","Margin Of Error","Estimate","Margin Of Error","Estimate","Margin Of Error","Estimate","Margin Of Error","Estimate","Margin Of Error","Estimate","Margin Of Error","Estimate","Margin Of Error","Estimate","Margin Of Error","Estimate","Margin Of Error","Estimate","Margin Of Error","Estimate","Margin Of Error","Estimate","Margin Of Error","Estimate","Margin Of Error","Estimate","Margin Of Error","Estimate","Margin Of Error"]
[null,"Total:",3074,145,1837,194,2896,203,5223,170,1312,150,1683,117,1914,78,29845,489,936,120,2016,67,3554,113,5925,238,2680,255,833,115,9320,323,3749,188,3780,166,1343,171,2852,202,3353,189,4782,248,2726,160,991,113,1465,196,2072,104,1342,114,986,114]
[null,"Less than 9th grade",92,63.678881899731877,8,23.853720883753127,77,49.28488612140643,17,37.322915213043046,21,33,5,25.865034312755125,39,39.749213828703581,409,129.08524315350689,15,27.367864366808018,15,24.433583445741231,69,56.462376853972415,114,66.075714146727165,36,39.408120990476064,4,22.715633383201094,158,89.089842294169543,10,37.161808352124091,68,72.090221250874237,6,25.865034312755125,42,66.962676171132827,22,32.449961479175904,51,56.621550667568265,98,63.150613615387776,0,26.944387170614959,7,23.345235059857504,18,29.274562336608895,26,33.181320046074113,3,24.919871588754223]
[null,"9th to 12th grade, no diploma",145,62.489999199871974,140,60.091596750294464,216,80.55432949258531,249,124.63145670335399,86,31.984371183438952,47,29.410882339705484,109,57.105166141076936,1780,287.56216719172221,111,48.093658625644196,18,29.120439557122072,220,85.170417399470338,663,184.0950841277409,137,85.632937588290176,50,25.436194683953808,395,110.34944494649713,72,82.213137636268328,97,60.605280298007038,45,42.249260348555218,62,45.409250158970913,393,111.9866063420086,276,119.65366688906779,278,98.010203550446732,21,24.839484696748443,54,38.118237105091836,78,46.303347611160902,63,25.436194683953808,36,27.404379212089442]
[null,"High school graduate (includes equivalency)",1543,191.00261778310789,717,120.43255373859678,1243,216.40009242142204,1057,182.45273360517237,388,74.276510418839678,328,68.767724987816777,528,102.55242561733974,7646,444.79770682862113,293,55.901699437494742,553,113.17243480636087,1259,194.7331507473753,2223,237.07593720156419,544,141.48498153514387,416,69.31089380465383,2683,318.24675960644123,749,167.60966559241146,1691,245.45875417267155,325,74.886580907396223,258,84.291162051546067,1196,181.3201588351389,1569,239.71024175032656,970,209.6115454835444,395,76.400261779656233,243,55.172456896534889,489,109.85900054160332,403,67.268120235368556,215,47.434164902525687]
[null,"Some college, no degree",583,134.20134127496641,265,71.679843749829701,649,178.13197354770423,770,150.55895855112706,257,60.049979184009715,254,64.598761598036845,310,77.52418977325722,6471,520.40561103815935,241,60.158124970780129,411,79.429213769242352,666,170.10291002801804,1221,227.52582271030249,426,135.16656391282572,174,39.166312055132281,1802,279.2095986888703,467,140.67338056647392,725,155.01290268877619,209,49.132473986152988,425,105.00952337764419,586,127.80845042484475,1005,235.82408698010474,571,152.76452467768817,233,48.641546028061235,214,61.237243569579455,436,98,299,50.34878350069642,204,57.982756057296896]
[null,"Associate's degree",312,107.20074626605917,159,63.505905237229712,264,112.0044641967453,563,132.24598292575845,102,35.341194094144583,192,53.263495942343098,256,77.801028270839709,2911,328.42198464780034,90,34.409301068170507,229,65.069193939989759,421,123.06502346320826,572,155.65667348366404,282,105.152270541344,61,26.92582403567252,985,210.63950246807934,345,137.00364958642524,275,108.70602559196064,174,69.814038702828242,206,79.630396206473819,471,123.04470732217619,543,167.59773268156107,231,85.702975444263316,95,32.015621187164243,141,48.764741360946438,249,76.576758876306585,156,42.638011210655684,95,38.209946349085598]
[null,"Bachelor's degree",275,86.95401083331349,308,85.562842402528915,286,90.785461391128038,1486,188.95766721676048,285,58.821764679410968,493,83.450584180100265,471,87.045964869142551,6158,429.21439864012018,120,46.400431032480725,491,86.95401083331349,662,132.43866504914644,731,151.42654985173505,626,145.7737973711325,70,25.942243542145693,2372,310.0096772683072,1297,217.0829334609241,670,143.53396810511441,343,76.419892698171196,1009,147.92227688891217,481,119.80818002123227,829,182.43903091169938,404,127.20062892926276,156,37.735924528226413,459,88.865066252155572,535,92.633687176966021,295,55.317266743757322,212,48.795491595023407]
[null,"Graduate or professional degree",115,59.38013135721409,235,81.627201348570068,144,70.306471963824208,1081,183.86408023319834,173,41.689327171351664,359,69.907081186386264,193,52.583267300539625,4287,366.49010900705082,58,27.784887978899608,290,66.098411478642959,233,94.419277692640719,302,106.13199329137279,592,157.13051899615172,43,28.965496715920477,910,229.77162575043943,809,165.64419700067975,224,99.146356463563507,236,58.625932828399414,850,141.7709420156331,198,79.705708703956702,492,173.78434912269861,174,65.261014396038931,88,32.233522922572398,344,82.09750300709517,255,61.147362984841791,97,32.969683043669072,221,54.571054598569013]
[]
[]
[]
[null,"Calculated B15002. SEX BY EDUCATIONAL ATTAINMENT FOR THE POPULATION 25 YEARS AND OVER"]
[null,"Universe:  POPULATION 25 YEARS AND OVER"]
[null,"Data Set: 2005-2009 American Community Survey 5-Year Estimates"]
[null,null,"Allenstown",null,"Andover",null,"Boscawen",null,"Bow",null,"Bradford",null,"Canterbury",null,"Chichester",null,"Concord",null,"Danbury",null,"Dunbarton",null,"Epsom",null,"Franklin",null,"Henniker",null,"Hill",null,"Hooksett",null,"Hopkinton",null,"Loudon",null,"Newbury",null,"New London",null,"Northfield",null,"Pembroke",null,"Pittsfield",null,"Salisbury",null,"Sutton",null,"Warner",null,"Webster",null,"Wilmot"]
[null,null,"Estimate","Margin Of Error","Estimate","Margin Of Error","Estimate","Margin Of Error","Estimate","Margin Of Error","Estimate","Margin Of Error","Estimate","Margin Of Error","Estimate","Margin Of Error","Estimate","Margin Of Error","Estimate","Margin Of Error","Estimate","Margin Of Error","Estimate","Margin Of Error","Estimate","Margin Of Error","Estimate","Margin Of Error","Estimate","Margin Of Error","Estimate","Margin Of Error","Estimate","Margin Of Error","Estimate","Margin Of Error","Estimate","Margin Of Error","Estimate","Margin Of Error","Estimate","Margin Of Error","Estimate","Margin Of Error","Estimate","Margin Of Error","Estimate","Margin Of Error","Estimate","Margin Of Error","Estimate","Margin Of Error","Estimate","Margin Of Error","Estimate","Margin Of Error"]
[null,"Total:",3243,175,1682,167,2855,198,5413,241,926,130,1666,103,1721,85,29547,548,913,139,1856,80,2836,182,5999,233,2970,321,753,108,8601,384,3982,158,3497,180,1547,179,2896,255,3280,204,4748,313,3087,232,833,89,1213,181,1995,178,1328,107,928,130]
[null,"Less than 9th grade",97,171.66828478201791,33,257.16920499935446,116,234.35443243088022,15,255.85933635495891,16,228.71160880025309,46,229.68892006363737,31,162.62533627943711,605,168.80758276807353,14,228.37250272307304,20,198.27253970229967,78,202.89159667172024,194,151.90457530963312,32,256.55603676390075,26,198.82907232092595,248,218.83555469804261,35,258.68127106537884,65,235.39116381036905,35,230.93289068471819,37,262.10875605366562,54,201.10942295178512,91,209.26777104943801,77,205.65748223684935,11,197.70938268074178,9,228.21262015935929,38,200.94028963848936,31,228.84929538890873,4,254.96078129783021]
[null,"9th to 12th grade, no diploma",355,176.62106329653889,130,207.93989516203956,218,140.68759717899798,148,178.25262971412232,34,198.3885077316728,66,164.28937884111681,92,167.26326554267678,1847,292.13695418416341,81,164.62988793047271,44,229.46677319385481,267,141.74977954127476,769,192.66032284827097,39,230.1347431397528,110,39.560080889704963,451,136.3084736911099,132,172.75416058665562,219,249.22680433693324,30,229.1222381175603,42,257.66839154230775,305,119.95415791042844,478,163.16249569064578,576,246.46095025378767,70,117.43934604722558,54,117.18788333270638,97,122.06555615733703,65,26.92582403567252,12,279.44945875775102]
[null,"High school graduate (includes equivalency)",1096,200.11246837716035,453,107.29864864013899,1125,185.39687160251654,987,256.33766793040775,299,54.817880294662984,377,78.243210568074218,611,89.872131386765275,7948,534.17600095848559,321,62.369864518050704,469,95.131487952202235,1026,149.4824404403407,2405,287.43347056318964,645,175.17134468856486,262,51.86520991955976,2524,279.12183719659055,929,180.38015411901608,1286,178.28067758453241,367,74.330343736592525,440,172.28464818433474,1194,189.52572384771415,1452,240.68236329236922,1196,200.82330542046159,298,54.488530903301111,244,56.850681614207581,511,94.111635837445732,543,85.586213843118443,173,38.209946349085598]
[null,"Some college, no degree",884,178.70926109186397,258,76.177424477334498,424,118.28355760628779,789,198.90198591266,171,44.24929377967517,355,79.617837197452175,283,79.523581408284173,5517,454.11121985698611,201,67.992646661238297,331,82.012194215250702,635,156.20819440733575,1171,209.34899092185756,460,141.21260566960729,126,34.014702703389901,1714,251.5770259781286,584,169.69973482595663,688,149.24141516348604,364,114.69524837585905,528,162.84348313641539,678,169.0266251216062,1198,242.04751599634315,434,116.16367762773353,144,40.26164427839479,242,104.7377677822093,454,88.442071436618903,212,41.856899072912697,213,89.050547443572739]
[null,"Associate's degree",276,108.46658471621571,232,81.835200250259064,452,156.60459763365824,507,137.13132391981054,70,28.0178514522438,198,69.31089380465383,159,54.918120870983927,2551,342.28642976314444,82,41.109609582188931,240,64.443773942872099,281,89.140338792266206,562,116.72617529928752,218,94.413982015377357,92,32.802438933713454,783,168.07736313971611,276,104.86181383134664,479,135.83077707206124,179,56.859475903318,320,134.61426373159719,388,109.22453936730518,549,146.38647478507022,252,98.407316801140354,83,31.064449134018133,173,81.492330927517344,226,66.603303221386852,140,37.215588131856791,90,36.715119501371639]
[null,"Bachelor's degree",412,151.48927354766738,349,86.977008456258133,443,129.8345100502944,1654,223.46364357541475,229,45.967379738244816,379,68.593002558570063,424,82.758685344802331,6776,480.93450697574195,144,53.823786563191554,472,79.906195003891909,339,96.426137535421375,581,124.32618388738553,900,208.21623375712088,82,29.206163733020468,1665,260.59930928534709,1192,205.526154053444,485,112.48555462813881,360,91.241437954473298,997,192.33824372703418,474,132.13629327327143,622,154.30165261590687,414,124.61942063739504,146,34.409301068170507,308,56.727418414731339,432,87.321245982864909,242,53.150729063673246,239,73.600271738628791]
[null,"Graduate or professional degree",73,170.49633427144408,86,120.48651376813922,22,199.15822855207364,815,189.31719414781111,56,25.357444666211933,142,50.497524691810391,31,162.58536219475602,2524,321.61778557785016,28,162.73291000900832,117,44.034077712607996,134,140.89002803605371,172,141.92603707565431,330,128.79052760199409,39,115.95688854052612,669,208.18501386987489,506,130.02307487519283,162,57.30619512757761,114,37.549966711037172,227,81.712912076366493,99,54.38749856354859,204,98.219142737044905,39,200.89051744669283,33,16.217274740226856,99,34.785054261852174,114,52.602281319349636,46,115.42096863222038,86,119.01680553602503]
[]
[]
[]
[]
[]
[]
[]
[]
[]
[]
[]
[null,"Calculated B15002. SEX BY EDUCATIONAL ATTAINMENT FOR THE POPULATION 25 YEARS AND OVER"]
[null,"Universe: Population 25 years an over"]
[null,"Data Set: 2005-2009 American Community Survey 5-Year Estimates"]
[null,null,"Allenstown",null,"Andover",null,"Boscawen",null,"Bow",null,"Bradford",null,"Canterbury",null,"Chichester",null,"Concord",null,"Danbury",null,"Dunbarton",null,"Epsom",null,"Franklin",null,"Henniker",null,"Hill",null,"Hooksett",null,"Hopkinton",null,"Loudon",null,"Newbury",null,"New London",null,"Northfield",null,"Pembroke",null,"Pittsfield",null,"Salisbury",null,"Sutton",null,"Warner",null,"Webster",null,"Wilmot"]
[null,null,"Esitimate","Margin Of Error","Esitimate","Margin Of Error","Esitimate","Margin Of Error","Esitimate","Margin Of Error","Esitimate","Margin Of Error","Esitimate","Margin Of Error","Esitimate","Margin Of Error","Esitimate","Margin Of Error","Esitimate","Margin Of Error","Esitimate","Margin Of Error","Esitimate","Margin Of Error","Esitimate","Margin Of Error","Esitimate","Margin Of Error","Esitimate","Margin Of Error","Esitimate","Margin Of Error","Esitimate","Margin Of Error","Esitimate","Margin Of Error","Esitimate","Margin Of Error","Esitimate","Margin Of Error","Esitimate","Margin Of Error","Esitimate","Margin Of Error","Esitimate","Margin Of Error","Esitimate","Margin Of Error","Esitimate","Margin Of Error","Esitimate","Margin Of Error","Esitimate","Margin Of Error","Esitimate","Margin Of Error"]
[null,"Total:",3243,175,1682,167,2855,198,5413,241,926,130,1666,103,1721,85,29547,548,913,139,1856,80,2836,182,5999,233,2970,321,753,108,8601,384,3982,158,3497,180,1547,179,2896,255,3280,204,4748,313,3087,232,833,89,1213,181,1995,178,1328,107,928,130]
[null,"Less than 9th grade",97,171.66828478201791,33,257.16920499935446,116,234.35443243088022,15,255.85933635495891,16,228.71160880025309,46,229.68892006363737,31,162.62533627943711,605,168.80758276807353,14,228.37250272307304,20,198.27253970229967,78,202.89159667172024,194,151.90457530963312,32,256.55603676390075,26,198.82907232092595,248,218.83555469804261,35,258.68127106537884,65,235.39116381036905,35,230.93289068471819,37,262.10875605366562,54,201.10942295178512,91,209.26777104943801,77,205.65748223684935,11,197.70938268074178,9,228.21262015935929,38,200.94028963848936,31,228.84929538890873,4,254.96078129783021]
[null,"9th to 12th grade, no diploma",355,176.62106329653889,130,207.93989516203956,218,140.68759717899798,148,178.25262971412232,34,198.3885077316728,66,164.28937884111681,92,167.26326554267678,1847,292.13695418416341,81,164.62988793047271,44,229.46677319385481,267,141.74977954127476,769,192.66032284827097,39,230.1347431397528,110,39.560080889704963,451,136.3084736911099,132,172.75416058665562,219,249.22680433693324,30,229.1222381175603,42,257.66839154230775,305,119.95415791042844,478,163.16249569064578,576,246.46095025378767,70,117.43934604722558,54,117.18788333270638,97,122.06555615733703,65,26.92582403567252,12,279.44945875775102]
[null,"High school graduate (includes equivalency)",1096,200.11246837716035,453,107.29864864013899,1125,185.39687160251654,987,256.33766793040775,299,54.817880294662984,377,78.243210568074218,611,89.872131386765275,7948,534.17600095848559,321,62.369864518050704,469,95.131487952202235,1026,149.4824404403407,2405,287.43347056318964,645,175.17134468856486,262,51.86520991955976,2524,279.12183719659055,929,180.38015411901608,1286,178.28067758453241,367,74.330343736592525,440,172.28464818433474,1194,189.52572384771415,1452,240.68236329236922,1196,200.82330542046159,298,54.488530903301111,244,56.850681614207581,511,94.111635837445732,543,85.586213843118443,173,38.209946349085598]
[null,"Some college, no degree",884,178.70926109186397,258,76.177424477334498,424,118.28355760628779,789,198.90198591266,171,44.24929377967517,355,79.617837197452175,283,79.523581408284173,5517,454.11121985698611,201,67.992646661238297,331,82.012194215250702,635,156.20819440733575,1171,209.34899092185756,460,141.21260566960729,126,34.014702703389901,1714,251.5770259781286,584,169.69973482595663,688,149.24141516348604,364,114.69524837585905,528,162.84348313641539,678,169.0266251216062,1198,242.04751599634315,434,116.16367762773353,144,40.26164427839479,242,104.7377677822093,454,88.442071436618903,212,41.856899072912697,213,89.050547443572739]
[null,"Associate's degree",276,108.46658471621571,232,81.835200250259064,452,156.60459763365824,507,137.13132391981054,70,28.0178514522438,198,69.31089380465383,159,54.918120870983927,2551,342.28642976314444,82,41.109609582188931,240,64.443773942872099,281,89.140338792266206,562,116.72617529928752,218,94.413982015377357,92,32.802438933713454,783,168.07736313971611,276,104.86181383134664,479,135.83077707206124,179,56.859475903318,320,134.61426373159719,388,109.22453936730518,549,146.38647478507022,252,98.407316801140354,83,31.064449134018133,173,81.492330927517344,226,66.603303221386852,140,37.215588131856791,90,36.715119501371639]
[null,"Bachelor's degree",412,151.48927354766738,349,86.977008456258133,443,129.8345100502944,1654,223.46364357541475,229,45.967379738244816,379,68.593002558570063,424,82.758685344802331,6776,480.93450697574195,144,53.823786563191554,472,79.906195003891909,339,96.426137535421375,581,124.32618388738553,900,208.21623375712088,82,29.206163733020468,1665,260.59930928534709,1192,205.526154053444,485,112.48555462813881,360,91.241437954473298,997,192.33824372703418,474,132.13629327327143,622,154.30165261590687,414,124.61942063739504,146,34.409301068170507,308,56.727418414731339,432,87.321245982864909,242,53.150729063673246,239,73.600271738628791]
[null,"Graduate or professional degree",73,170.49633427144408,86,120.48651376813922,22,199.15822855207364,815,189.31719414781111,56,25.357444666211933,142,50.497524691810391,31,162.58536219475602,2524,321.61778557785016,28,162.73291000900832,117,44.034077712607996,134,140.89002803605371,172,141.92603707565431,330,128.79052760199409,39,115.95688854052612,669,208.18501386987489,506,130.02307487519283,162,57.30619512757761,114,37.549966711037172,227,81.712912076366493,99,54.38749856354859,204,98.219142737044905,39,200.89051744669283,33,16.217274740226856,99,34.785054261852174,114,52.602281319349636,46,115.42096863222038,86,119.01680553602503]

{"sheet":"PopComparison","index":68,"n_rows":61,"n_cols":14,"rows_kept":61,"cut":false,"hidden":true,"merged":[[54,1,54,2],[55,1,55,2],[58,1,58,2],[48,1,48,2],[49,1,49,2],[50,1,50,2],[51,1,51,2],[52,1,52,2],[53,1,53,2],[47,1,47,2],[36,1,36,2],[37,1,37,2],[38,1,38,2],[39,1,39,2],[40,1,40,2],[41,1,41,2],[42,1,42,2],[43,1,43,2],[44,1,44,2],[45,1,45,2],[46,1,46,2],[35,1,35,2],[26,13,26,14],[27,3,27,4],[27,5,27,6],[27,7,27,8],[27,9,27,10],[29,1,29,2],[30,1,30,2],[31,1,31,2],[32,1,32,2],[33,1,33,2],[34,1,34,2]]}
[]
[]
[]
[]
[]
[]
[]
[]
[]
[]
[]
[]
[]
[]
[]
[]
[]
[]
[]
[]
[]
[]
[]
[]
[]
[]
[]
[null,null,null,2000,null,2010,null,2020,null,2030,null,null,"2000-2010","2010-2030"]
[null,null,null,"#","%","#","%","#","%","#","%",null,"% Change","% Change"]
[null,"Allenstown",null,{"$f":"CntyQuery!$G118","v":4843},{"$f":"D30/$D$59","v":3.5551477335290876E-2},{"$f":"CntyQuery!H118","v":4322},{"$f":"F30/$F$59","v":2.9512786370309671E-2},{"$f":"CntyQuery!$I118","v":3623},{"$f":"H30/$H$59","v":2.3472170932861688E-2},{"$f":"CntyQuery!J118","v":3697},{"$f":"J30/J$59","v":2.3473612028241986E-2},null,{"$f":"(F30-D30)/D30","v":-0.10757794755316952},{"$f":"(J30-F30)/F30","v":-0.14460897732531236}]
[null,"Andover",null,{"$f":"CntyQuery!$G119","v":2109},1.5481739768764911E-2,{"$f":"CntyQuery!H119","v":2371},1.6190378640445219E-2,{"$f":"CntyQuery!$I119","v":2608},1.6896335024262566E-2,{"$f":"CntyQuery!J119","v":2662},{"$f":"J31/J$59","v":1.6902016559150707E-2},null,{"$f":"(F31-D31)/D31","v":0.12422949265054528},{"$f":"(J31-F31)/F31","v":0.12273302404048925}]
[null,"Boscawen",null,{"$f":"CntyQuery!$G120","v":3672},2.6955404661405762E-2,{"$f":"CntyQuery!H120","v":3965},2.7075011096316024E-2,{"$f":"CntyQuery!$I120","v":4198},2.7197398171723258E-2,{"$f":"CntyQuery!J120","v":4283},2.7194341443592219E-2,null,7.979302832244009E-2,8.0201765447667092E-2]
[null,"Bow",null,{"$f":"CntyQuery!$G121","v":7138},5.2398605248669482E-2,{"$f":"CntyQuery!H121","v":7519},5.1343507801563729E-2,{"$f":"CntyQuery!$I121","v":7762},5.0287328396597407E-2,{"$f":"CntyQuery!J121","v":7920},5.0286991415655E-2,null,5.3376295881199215E-2,5.3331560047878708E-2]
[null,"Bradford",null,{"$f":"CntyQuery!$G122","v":1454},1.0673518076711323E-2,{"$f":"CntyQuery!H122","v":1650},1.1267028577281573E-2,{"$f":"CntyQuery!$I122","v":1831},1.1862419259748758E-2,{"$f":"CntyQuery!J122","v":1868},1.1860618682379235E-2,null,0.13480055020632736,0.13212121212121211]
[null,"Canterbury",null,{"$f":"CntyQuery!$G123","v":1979},1.4527436226830611E-2,{"$f":"CntyQuery!H123","v":2352},1.6060637099252279E-2,{"$f":"CntyQuery!$I123","v":2716},1.7596029879561784E-2,{"$f":"CntyQuery!J123","v":2771},1.7594097627876264E-2,null,0.18847902981303688,0.17814625850340135]
[null,"Chichester",null,{"$f":"CntyQuery!$G124","v":2236},1.6414020921269958E-2,{"$f":"CntyQuery!H124","v":2523},1.7228310969988732E-2,{"$f":"CntyQuery!$I124","v":2785},1.8043057148225173E-2,{"$f":"CntyQuery!J124","v":2842},1.8044902727688321E-2,null,0.12835420393559929,0.12643678160919541]
[null,"Concord",null,{"$f":"CntyQuery!$G125","v":40687},0.29867498623600663,{"$f":"CntyQuery!H125","v":42695},0.29154290006487077,{"$f":"CntyQuery!$I125","v":43900},0.28441300136699643,{"$f":"CntyQuery!J125","v":44793},0.28440722304058513,null,4.9352372993830954E-2,4.9139243471132452E-2]
[null,"Danbury",null,{"$f":"CntyQuery!$G126","v":1071},7.8619930262433472E-3,{"$f":"CntyQuery!H126","v":1164},7.9483765236095464E-3,{"$f":"CntyQuery!$I126","v":1240},8.0335335238058223E-3,{"$f":"CntyQuery!J126","v":1265},8.0319500177782298E-3,null,8.683473389355742E-2,8.6769759450171818E-2]
[null,"Dunbarton",null,{"$f":"CntyQuery!$G127","v":2226},1.6340612956505782E-2,{"$f":"CntyQuery!H127","v":2758},1.8833008979480349E-2,{"$f":"CntyQuery!$I127","v":3292},2.1327735774490941E-2,{"$f":"CntyQuery!J127","v":3359},2.1327525778432468E-2,null,0.2389937106918239,0.21791153009427122]
[null,"Epsom",null,{"$f":"CntyQuery!$G128","v":4021},2.9517342631675537E-2,{"$f":"CntyQuery!H128","v":4566},3.1178940899313737E-2,{"$f":"CntyQuery!$I128","v":5069},3.284030760659009E-2,{"$f":"CntyQuery!J128","v":5172},3.2838929242647433E-2,null,0.13553842327779159,0.13272010512483573]
[null,"Franklin",null,{"$f":"CntyQuery!$G129","v":8405},6.1699394384290694E-2,{"$f":"CntyQuery!H129","v":8477},5.7885212878555088E-2,{"$f":"CntyQuery!$I129","v":8346},5.4070863540067252E-2,{"$f":"CntyQuery!J129","v":8516},5.4071214507035101E-2,null,8.5663295657346823E-3,4.6006842043175653E-3]
[null,"Henniker",null,{"$f":"CntyQuery!$G130","v":4433},3.2541750779959626E-2,{"$f":"CntyQuery!H130","v":4836},3.3022636484687083E-2,{"$f":"CntyQuery!$I130","v":5171},3.3501130525483792E-2,{"$f":"CntyQuery!J130","v":5277},3.3505612840961041E-2,null,{"$f":"(F42-D42)/D42","v":9.0909090909090912E-2},{"$f":"(J42-F42)/F42","v":9.1191066997518611E-2}]
[null,"Hill",null,{"$f":"CntyQuery!$G131","v":992},7.2820701046063495E-3,{"$f":"CntyQuery!H131","v":1089},7.4362388610058382E-3,{"$f":"CntyQuery!$I131","v":1172},7.5929849112100186E-3,{"$f":"CntyQuery!J131","v":1195},7.587494285569157E-3,null,{"$f":"(F43-D43)/D43","v":9.7782258064516125E-2},{"$f":"(J43-F43)/F43","v":9.7337006427915512E-2}]
[null,"Hooksett",null,{"$f":"CntyQuery!$G132","v":11721},8.6041475500091766E-2,{"$f":"CntyQuery!H132","v":13451},9.1850182662433E-2,{"$f":"CntyQuery!$I132","v":15074},9.7659261562781416E-2,{"$f":"CntyQuery!J132","v":15381},9.7659623101539084E-2,null,0.14759832778773141,0.14348375585458331]
[null,"Hopkinton",null,{"$f":"CntyQuery!$G133","v":5399},3.9632960176179115E-2,{"$f":"CntyQuery!H133","v":5589},3.8164498617228308E-2,{"$f":"CntyQuery!$I133","v":5664},3.6695107966803364E-2,{"$f":"CntyQuery!J133","v":5779},3.6692995377660388E-2,null,3.5191702167067976E-2,3.3995348005009841E-2]
[null,"Loudon",null,{"$f":"CntyQuery!$G134","v":4481},3.2894109010827677E-2,{"$f":"CntyQuery!H134","v":5317},3.6307146027518861E-2,{"$f":"CntyQuery!$I134","v":6131},3.9720640350365717E-2,{"$f":"CntyQuery!J134","v":6256},3.9721643724285063E-2,null,0.1865654987725954,0.17660334775249201]
[null,"Newbury",null,{"$f":"CntyQuery!$G135","v":4116},3.0214718296935218E-2,{"$f":"CntyQuery!H135","v":4397},3.0024924032913382E-2,{"$f":"CntyQuery!$I135","v":4605},2.9834211191230493E-2,{"$f":"CntyQuery!J135","v":4699},2.9835678366434703E-2,null,6.827016520894072E-2,6.8683193086195138E-2]
[null,"New London",null,{"$f":"CntyQuery!$G136","v":1702},1.2494035602862911E-2,{"$f":"CntyQuery!H136","v":2072},1.4148656492198436E-2,{"$f":"CntyQuery!$I136","v":2439},1.5801442148840644E-2,{"$f":"CntyQuery!J136","v":2489},1.5803575963834002E-2,null,0.21739130434782608,0.20125482625482624]
[null,"Northfield",null,{"$f":"CntyQuery!$G137","v":4548},3.3385942374747658E-2,{"$f":"CntyQuery!H137","v":4829},3.2974836969510736E-2,{"$f":"CntyQuery!$I137","v":5026},3.2561725395683916E-2,{"$f":"CntyQuery!J137","v":5129},3.2565906435719001E-2,null,6.1785400175901492E-2,6.2124663491406086E-2]
[null,"Pembroke",null,{"$f":"CntyQuery!$G138","v":6897},5.062947329785282E-2,{"$f":"CntyQuery!H138","v":7115},4.8584792925671756E-2,{"$f":"CntyQuery!$I138","v":7184},4.6542665189533081E-2,{"$f":"CntyQuery!J138","v":7330},4.6540864529892825E-2,null,3.1607945483543572E-2,3.0217849613492623E-2]
[null,"Pittsfield",null,{"$f":"CntyQuery!$G139","v":3931},2.8856670948797944E-2,{"$f":"CntyQuery!H139","v":4106},2.8037829902010994E-2,{"$f":"CntyQuery!$I139","v":4201},2.7216834139926014E-2,{"$f":"CntyQuery!J139","v":4287},2.7219738914004164E-2,null,4.4517934367845333E-2,4.4081831466147102E-2]
[null,"Salisbury",null,{"$f":"CntyQuery!$G140","v":1137},8.3464855936869146E-3,{"$f":"CntyQuery!H140","v":1382},9.4369899962443229E-3,{"$f":"CntyQuery!$I140","v":1625},1.0527816109826178E-2,{"$f":"CntyQuery!J140","v":1658},1.052725148575202E-2,null,0.21547933157431839,0.19971056439942114]
[null,"Sutton",null,{"$f":"CntyQuery!$G141","v":1544},1.1334189759588916E-2,{"$f":"CntyQuery!H141","v":1837},1.2543958482706818E-2,{"$f":"CntyQuery!$I141","v":2123},1.3754186831483677E-2,{"$f":"CntyQuery!J141","v":2166},1.3752730228069285E-2,null,0.18976683937823835,0.17909635274904737]
[null,"Warner",null,{"$f":"CntyQuery!$G142","v":2760},2.0260598274912826E-2,{"$f":"CntyQuery!H142","v":2833},1.934514664208406E-2,{"$f":"CntyQuery!$I142","v":2845},1.8431776512280292E-2,{"$f":"CntyQuery!J142","v":2903},1.8432214151470512E-2,null,2.6449275362318839E-2,2.4708789269325803E-2]
[null,"Webster",null,{"$f":"CntyQuery!$G143","v":1579},1.1591117636263535E-2,{"$f":"CntyQuery!H143","v":1872},1.2782956058588549E-2,{"$f":"CntyQuery!$I143","v":2157},1.3974461137781578E-2,{"$f":"CntyQuery!J143","v":2201},1.3974958094173821E-2,null,0.18556048131728942,0.17574786324786323]
[null,"Wilmot",null,{"$f":"CntyQuery!$G144","v":1144},8.3978711690218394E-3,{"$f":"CntyQuery!H144","v":1358},9.2731059442111366E-3,{"$f":"CntyQuery!$I144","v":1566},1.0145575401838643E-2,{"$f":"CntyQuery!J144","v":1598},1.0146289429572814E-2,null,0.18706293706293706,0.17673048600883653]
[]
[]
[null,"Merrimack County",null,{"$f":"SUM(D30:D58)","v":136225},null,{"$f":"SUM(F30:F58)","v":146445},null,{"$f":"SUM(H30:H58)","v":154353},null,{"$f":"SUM(J30:J58)","v":157496},null,null,{"$f":"(H59-F59)/F59","v":5.3999795144934956E-2},{"$f":"(J59-F59)/F59","v":7.5461777459114338E-2}]
[]
[null,"Source: US Census and NH Office of Strategic Initiatives"]

{"sheet":"HousingComparison","index":69,"n_rows":64,"n_cols":15,"rows_kept":64,"cut":false,"hidden":true,"merged":[[28,3,28,4],[28,5,28,8],[28,9,28,14],[29,5,29,6],[29,7,29,8],[29,9,29,10],[29,11,29,12],[29,13,29,14]]}
[]
[]
[]
[]
[]
[]
[]
[]
[]
[]
[]
[]
[]
[]
[]
[]
[]
[]
[]
[]
[]
[]
[]
[]
[]
[]
[]
[null,"Housing Units",null,"In 2019"]
[null,null,null,"Total Units",null,"Occupied Units",null,null,null,"Vacant Units"]
[null,null,null,null,null,"Owner",null,"Renter",null,"For Sale",null,"For Rent",null,"Seasonal"]
[null,null,null,"#","%","#","%","#","%","#","%","#","%","#","%"]
[]
[null,"Allenstown",null,{"$f":"ACS_Table_B25001!$C$7","v":1858},{"$f":"D33/D$61","v":2.8602216748768474E-2},{"$f":"ACS_Table_B25003!$C$8","v":1379},{"$f":"F33/$F$61","v":3.2870116559006506E-2},{"$f":"ACS_Table_B25003!$C$9","v":409},{"$f":"H33/$H$61","v":2.4789381174616643E-2},{"$f":"ACS_Table_B25004!$C$10","v":37},{"$f":"J33/$J$61","v":8.35214446952596E-2},{"$f":"ACS_Table_B25004!$C$8","v":0},{"$f":"L33/$L$61","v":0},{"$f":"ACS_Table_B25004!$C$12","v":0},{"$f":"N33/$N$61","v":0}]
[null,"Andover",null,{"$f":"ACS_Table_B25001!$E$7","v":1227},1.8888546798029558E-2,{"$f":"ACS_Table_B25003!$E$8","v":900},2.1452577884775819E-2,{"$f":"ACS_Table_B25003!$E$9","v":154},9.3338990241832835E-3,{"$f":"ACS_Table_B25004!$E$10","v":6},1.3544018058690745E-2,{"$f":"ACS_Table_B25004!$E$8","v":0},0,{"$f":"ACS_Table_B25004!$E$12","v":151},4.4701006512729423E-2]
[null,"Boscawen",null,{"$f":"ACS_Table_B25001!$G$7","v":1513},2.3291256157635467E-2,{"$f":"ACS_Table_B25003!$G$8","v":1086},2.5886110647629489E-2,{"$f":"ACS_Table_B25003!$G$9","v":288},1.7455603369901207E-2,{"$f":"ACS_Table_B25004!$G$10","v":0},0,{"$f":"ACS_Table_B25004!$G$8","v":0},0,{"$f":"ACS_Table_B25004!$G$12","v":37},1.0953226761397277E-2]
[null,"Bow",null,{"$f":"ACS_Table_B25001!$I$7","v":2817},4.3365147783251234E-2,{"$f":"ACS_Table_B25003!$I$8","v":2427},5.7850451695945465E-2,{"$f":"ACS_Table_B25003!$I$9","v":288},1.7455603369901207E-2,{"$f":"ACS_Table_B25004!$I$10","v":0},0,{"$f":"ACS_Table_B25004!$I$8","v":0},0,{"$f":"ACS_Table_B25004!$I$12","v":0},0]
[null,"Bradford",null,{"$f":"ACS_Table_B25001!$K$7","v":859},1.3223522167487685E-2,{"$f":"ACS_Table_B25003!$K$8","v":574},1.3681977450957023E-2,{"$f":"ACS_Table_B25003!$K$9","v":73},4.4245105763985699E-3,{"$f":"ACS_Table_B25004!$K$10","v":6},1.3544018058690745E-2,{"$f":"ACS_Table_B25004!$K$8","v":0},0,{"$f":"ACS_Table_B25004!$K$12","v":169},5.0029603315571346E-2]
[null,"Canterbury",null,{"$f":"ACS_Table_B25001!$M$7","v":1060},1.6317733990147784E-2,{"$f":"ACS_Table_B25003!$M$8","v":892},2.1261888303577812E-2,{"$f":"ACS_Table_B25003!$M$9","v":78},4.7275592460149099E-3,{"$f":"ACS_Table_B25004!$M$10","v":0},0,{"$f":"ACS_Table_B25004!$M$8","v":0},0,{"$f":"ACS_Table_B25004!$M$12","v":52},1.5393724097098875E-2]
[null,"Chichester",null,{"$f":"ACS_Table_B25001!$O$7","v":981},1.5101600985221675E-2,{"$f":"ACS_Table_B25003!$O$8","v":882},2.1023526327080305E-2,{"$f":"ACS_Table_B25003!$O$9","v":87},5.2730468513243227E-3,{"$f":"ACS_Table_B25004!$O$10","v":0},0,{"$f":"ACS_Table_B25004!$O$8","v":0},0,{"$f":"ACS_Table_B25004!$O$12","v":12},3.552397868561279E-3]
[null,"Concord",null,{"$f":"ACS_Table_B25001!$Q$7","v":18663},0.28729987684729064,{"$f":"ACS_Table_B25003!$Q$8","v":9252},0.22053250065549543,{"$f":"ACS_Table_B25003!$Q$9","v":8278},0.50172737741681317,{"$f":"ACS_Table_B25004!$Q$10","v":64},0.14446952595936793,{"$f":"ACS_Table_B25004!$Q$8","v":232},0.44529750479846447,{"$f":"ACS_Table_B25004!$Q$12","v":199},5.8910597986974539E-2]
[null,"Danbury",null,{"$f":"ACS_Table_B25001!$S$7","v":614},9.4519704433497533E-3,{"$f":"ACS_Table_B25003!$S$8","v":439},1.046409076824065E-2,{"$f":"ACS_Table_B25003!$S$9","v":42},2.5456088247772591E-3,{"$f":"ACS_Table_B25004!$S$10","v":0},0,{"$f":"ACS_Table_B25004!$S$8","v":0},0,{"$f":"ACS_Table_B25004!$S$12","v":86},2.5458851391355831E-2]
[null,"Dunbarton",null,{"$f":"ACS_Table_B25001!$U$7","v":1001},1.5409482758620689E-2,{"$f":"ACS_Table_B25003!$U$8","v":878},2.0928181536481301E-2,{"$f":"ACS_Table_B25003!$U$9","v":60},3.6365840353960845E-3,{"$f":"ACS_Table_B25004!$U$10","v":0},0,{"$f":"ACS_Table_B25004!$U$8","v":0},0,{"$f":"ACS_Table_B25004!$U$12","v":63},1.8650088809946713E-2]
[null,"Epsom",null,{"$f":"ACS_Table_B25001!$W$7","v":2044},3.1465517241379311E-2,{"$f":"ACS_Table_B25003!$W$8","v":1505},3.5873477462875121E-2,{"$f":"ACS_Table_B25003!$W$9","v":282},1.7091944966361596E-2,{"$f":"ACS_Table_B25004!$W$10","v":122},0.27539503386004516,{"$f":"ACS_Table_B25004!$W$8","v":0},0,{"$f":"ACS_Table_B25004!$W$12","v":85},2.5162818235642391E-2]
[null,"Franklin",null,{"$f":"ACS_Table_B25001!$Y$7","v":4401},6.77493842364532E-2,{"$f":"ACS_Table_B25003!$Y$8","v":2480},5.9113770171382259E-2,{"$f":"ACS_Table_B25003!$Y$9","v":1429},8.6611309776350079E-2,{"$f":"ACS_Table_B25004!$Y$10","v":27},6.0948081264108354E-2,{"$f":"ACS_Table_B25004!$Y$8","v":81},0.15547024952015356,{"$f":"ACS_Table_B25004!$Y$12","v":131},3.8780343398460627E-2]
[null,"Henniker",null,{"$f":"ACS_Table_B25001!$AA$7","v":2011},3.0957512315270937E-2,{"$f":"ACS_Table_B25003!$AA$8","v":1356},3.2321884013062234E-2,{"$f":"ACS_Table_B25003!$AA$9","v":449},2.7213770531547367E-2,{"$f":"ACS_Table_B25004!$AA$10","v":0},0,{"$f":"ACS_Table_B25004!$AA$8","v":23},4.4145873320537425E-2,{"$f":"ACS_Table_B25004!$AA$12","v":104},3.078744819419775E-2]
[null,"Hill",null,{"$f":"ACS_Table_B25001!$AC$7","v":506},7.7894088669950741E-3,{"$f":"ACS_Table_B25003!$AC$8","v":343},8.1758157938645621E-3,{"$f":"ACS_Table_B25003!$AC$9","v":30},1.8182920176980422E-3,{"$f":"ACS_Table_B25004!$AC$10","v":0},0,{"$f":"ACS_Table_B25004!$AC$8","v":0},0,{"$f":"ACS_Table_B25004!$AC$12","v":114},3.3747779751332148E-2]
[null,"Hooksett",null,{"$f":"ACS_Table_B25001!$AE$7","v":5298},8.155788177339901E-2,{"$f":"ACS_Table_B25003!$AE$8","v":3968},9.4582032274211622E-2,{"$f":"ACS_Table_B25003!$AE$9","v":1284},7.7822898357476217E-2,{"$f":"ACS_Table_B25004!$AE$10","v":0},0,{"$f":"ACS_Table_B25004!$AE$8","v":0},0,{"$f":"ACS_Table_B25004!$AE$12","v":0},0]
[null,"Hopkinton",null,{"$f":"ACS_Table_B25001!$AG$7","v":2409},3.7084359605911332E-2,{"$f":"ACS_Table_B25003!$AG$8","v":1950},4.6480585417014275E-2,{"$f":"ACS_Table_B25003!$AG$9","v":243},1.4728165343354143E-2,{"$f":"ACS_Table_B25004!$AG$10","v":36},8.1264108352144468E-2,{"$f":"ACS_Table_B25004!$AG$8","v":0},0,{"$f":"ACS_Table_B25004!$AG$12","v":140},4.1444641799881589E-2]
[null,"Loudon",null,{"$f":"ACS_Table_B25001!$AI$7","v":2203},3.3913177339901478E-2,{"$f":"ACS_Table_B25003!$AI$8","v":1759},4.1927871665911852E-2,{"$f":"ACS_Table_B25003!$AI$9","v":291},1.7637432571671011E-2,{"$f":"ACS_Table_B25004!$AI$10","v":0},0,{"$f":"ACS_Table_B25004!$AI$8","v":0},0,{"$f":"ACS_Table_B25004!$AI$12","v":61},1.8058022498519833E-2]
[null,"Newbury",null,{"$f":"ACS_Table_B25001!$AK$7","v":1736},2.6724137931034484E-2,{"$f":"ACS_Table_B25003!$AK$8","v":846},2.0165423211689272E-2,{"$f":"ACS_Table_B25003!$AK$9","v":64},3.8790229710891568E-3,{"$f":"ACS_Table_B25004!$AK$10","v":23},5.1918735891647853E-2,{"$f":"ACS_Table_B25004!$AK$8","v":30},5.7581573896353169E-2,{"$f":"ACS_Table_B25004!$AK$12","v":705},0.20870337477797513]
[null,"New London",null,{"$f":"ACS_Table_B25001!$AM$7","v":2298},3.5375615763546801E-2,{"$f":"ACS_Table_B25003!$AM$8","v":1256},2.9938264248087144E-2,{"$f":"ACS_Table_B25003!$AM$9","v":295},1.7879871507364083E-2,{"$f":"ACS_Table_B25004!$AM$10","v":32},7.2234762979683967E-2,{"$f":"ACS_Table_B25004!$AM$8","v":35},6.71785028790787E-2,{"$f":"ACS_Table_B25004!$AM$12","v":591},0.17495559502664298]
[null,"Northfield",null,{"$f":"ACS_Table_B25001!$AO$7","v":1953},3.0064655172413794E-2,{"$f":"ACS_Table_B25003!$AO$8","v":1390},3.313231473315377E-2,{"$f":"ACS_Table_B25003!$AO$9","v":470},2.8486574943935996E-2,{"$f":"ACS_Table_B25004!$AO$10","v":8},1.8058690744920992E-2,{"$f":"ACS_Table_B25004!$AO$8","v":0},0,{"$f":"ACS_Table_B25004!$AO$12","v":0},0]
[null,"Pembroke",null,{"$f":"ACS_Table_B25001!$AQ$7","v":2925},4.5027709359605914E-2,{"$f":"ACS_Table_B25003!$AQ$8","v":2108},5.0246704645674919E-2,{"$f":"ACS_Table_B25003!$AQ$9","v":582},3.5274865143342021E-2,{"$f":"ACS_Table_B25004!$AQ$10","v":0},0,{"$f":"ACS_Table_B25004!$AQ$8","v":23},4.4145873320537425E-2,{"$f":"ACS_Table_B25004!$AQ$12","v":109},3.2267613972764952E-2]
[null,"Pittsfield",null,{"$f":"ACS_Table_B25001!$AS$7","v":1822},2.8048029556650245E-2,{"$f":"ACS_Table_B25003!$AS$8","v":1076},2.5647748671131981E-2,{"$f":"ACS_Table_B25003!$AS$9","v":599},3.6305230620037578E-2,{"$f":"ACS_Table_B25004!$AS$10","v":22},4.9661399548532728E-2,{"$f":"ACS_Table_B25004!$AS$8","v":44},8.4452975047984644E-2,{"$f":"ACS_Table_B25004!$AS$12","v":46},1.3617525162818236E-2]
[null,"Salisbury",null,{"$f":"ACS_Table_B25001!$AU$7","v":632},9.7290640394088676E-3,{"$f":"ACS_Table_B25003!$AU$8","v":515},1.2275641789621719E-2,{"$f":"ACS_Table_B25003!$AU$9","v":39},2.363779623007455E-3,{"$f":"ACS_Table_B25004!$AU$10","v":0},0,{"$f":"ACS_Table_B25004!$AU$8","v":12},2.3032629558541268E-2,{"$f":"ACS_Table_B25004!$AU$12","v":66},1.9538188277087035E-2]
[null,"Sutton",null,{"$f":"ACS_Table_B25001!$AW$7","v":1031},1.5871305418719211E-2,{"$f":"ACS_Table_B25003!$AW$8","v":679},1.618477820418087E-2,{"$f":"ACS_Table_B25003!$AW$9","v":90},5.4548760530941272E-3,{"$f":"ACS_Table_B25004!$AW$10","v":8},1.8058690744920992E-2,{"$f":"ACS_Table_B25004!$AW$8","v":0},0,{"$f":"ACS_Table_B25004!$AW$12","v":212},6.2759029011249259E-2]
[null,"Warner",null,{"$f":"ACS_Table_B25001!$AY$7","v":1414},2.1767241379310343E-2,{"$f":"ACS_Table_B25003!$AY$8","v":757},1.8044001620861439E-2,{"$f":"ACS_Table_B25003!$AY$9","v":387},2.3455967028304745E-2,{"$f":"ACS_Table_B25004!$AY$10","v":49},0.11060948081264109,{"$f":"ACS_Table_B25004!$AY$8","v":31},5.9500959692898273E-2,{"$f":"ACS_Table_B25004!$AY$12","v":110},3.2563647128478389E-2]
[null,"Webster",null,{"$f":"ACS_Table_B25001!$BA$7","v":875},1.3469827586206896E-2,{"$f":"ACS_Table_B25003!$BA$8","v":701},1.6709174552475389E-2,{"$f":"ACS_Table_B25003!$BA$9","v":59},3.5759743014728163E-3,{"$f":"ACS_Table_B25004!$BA$10","v":3},6.7720090293453723E-3,{"$f":"ACS_Table_B25004!$BA$8","v":0},0,{"$f":"ACS_Table_B25004!$BA$12","v":75},2.2202486678507993E-2]
[null,"Wilmot",null,{"$f":"ACS_Table_B25001!$BC$7","v":809},1.2453817733990147E-2,{"$f":"ACS_Table_B25003!$BC$8","v":555},1.3229089695611757E-2,{"$f":"ACS_Table_B25003!$BC$9","v":149},9.0308503545669435E-3,{"$f":"ACS_Table_B25004!$BC$10","v":0},0,{"$f":"ACS_Table_B25004!$BC$8","v":10},1.9193857965451054E-2,{"$f":"ACS_Table_B25004!$BC$12","v":60},1.7761989342806393E-2]
[]
[null,"Merrimack County",null,{"$f":"SUM(D33:D60)","v":64960},null,{"$f":"SUM(F33:F60)","v":41953},null,{"$f":"SUM(H33:H60)","v":16499},null,{"$f":"SUM(J33:J60)","v":443},null,{"$f":"SUM(L33:L60)","v":521},null,{"$f":"SUM(N33:N60)","v":3378}]
[]
[null,"Source: 2015-2019 American Community Survey Tables B25001; B25003; and B25004"]
[null,"Margin of error is not displayed.  The American Community Survey data are estimates only."]

{"sheet":"Housing_EmploymentComparison","index":70,"n_rows":66,"n_cols":11,"rows_kept":66,"cut":false,"hidden":true,"merged":[[54,1,54,2],[55,1,55,2],[56,1,56,2],[57,1,57,2],[58,1,58,2],[49,1,49,2],[50,1,50,2],[51,1,51,2],[52,1,52,2],[53,1,53,2],[44,1,44,2],[45,1,45,2],[46,1,46,2],[47,1,47,2],[48,1,48,2],[39,1,39,2],[40,1,40,2],[41,1,41,2],[42,1,42,2],[43,1,43,2],[63,2,63,13],[64,2,64,13],[65,2,65,13],[28,3,28,4],[28,5,28,10],[29,3,29,4],[29,5,29,6],[29,7,29,8],[29,9,29,10],[32,1,32,2],[33,1,33,2],[34,1,34,2],[35,1,35,2],[36,1,36,2],[37,1,37,2],[38,1,38,2]]}
[]
[]
[]
[]
[]
[]
[]
[]
[]
[]
[]
[]
[]
[]
[]
[]
[]
[]
[]
[]
[]
[]
[]
[]
[]
[]
[]
[null,null,null,"In 2019"]
[null,null,null,"Total Units",null,"Employment"]
[null,null,null,null,null,"Total Private",null,"Goods Producing",null,"Service Providing"]
[null,null,null,"#","%","#","%","#","%","#","%"]
[]
[null,"Allenstown",null,{"$f":"ACS_Table_B25001!$C$7","v":1858},{"$f":"D33/D$61","v":2.8602216748768474E-2},{"$f":"CntyQuery!$ER$171","v":394},{"$f":"IF(F33=\"n\",\"n\",F33/$F$61)","v":6.4027561102444099E-3},{"$f":"CntyQuery!$ET$171","v":117},{"$f":"IF(H33=\"n\",\"n\",H33/$H$61)","v":1.1344904489479299E-2},{"$f":"CntyQuery!$EU$171","v":277},{"$f":"IF(J33=\"n\",\"n\",J33/$J$61)","v":5.4078325719417435E-3}]
[null,"Andover",null,{"$f":"ACS_Table_B25001!$E$7","v":1227},1.8888546798029558E-2,{"$f":"CntyQuery!$ER$172","v":508},{"$f":"IF(F34=\"n\",\"n\",F34/$F$61)","v":8.2553302132085289E-3},{"$f":"CntyQuery!$ET$172","v":107},{"$f":"IF(H34=\"n\",\"n\",H34/$H$61)","v":1.0375254533113547E-2},{"$f":"CntyQuery!$EU$172","v":401},{"$f":"IF(J34=\"n\",\"n\",J34/$J$61)","v":7.8286673694896725E-3}]
[null,"Boscawen",null,{"$f":"ACS_Table_B25001!$G$7","v":1513},2.3291256157635467E-2,{"$f":"CntyQuery!$ER$173","v":635},1.031916276651066E-2,{"$f":"CntyQuery!$ET$173","v":294},2.8507708717153107E-2,{"$f":"CntyQuery!$EU$173","v":342},6.6768185545273513E-3]
[null,"Bow",null,{"$f":"ACS_Table_B25001!$I$7","v":2817},4.3365147783251234E-2,{"$f":"CntyQuery!$ER$174","v":3566},5.7949817992719706E-2,{"$f":"CntyQuery!$ET$174","v":1316},0.12760593425773295,{"$f":"CntyQuery!$EU$174","v":2250},4.3926437858732577E-2]
[null,"Bradford",null,{"$f":"ACS_Table_B25001!$K$7","v":859},1.3223522167487685E-2,{"$f":"CntyQuery!$ER$175","v":317},5.1514560582423298E-3,{"$f":"CntyQuery!$ET$175","v":48},4.6543197905556093E-3,{"$f":"CntyQuery!$EU$175","v":270},5.2711725430479089E-3]
[null,"Canterbury",null,{"$f":"ACS_Table_B25001!$M$7","v":1060},1.6317733990147784E-2,{"$f":"CntyQuery!$ER$176","v":255},4.1439157566302651E-3,{"$f":"CntyQuery!$ET$176","v":56},5.4300397556482109E-3,{"$f":"CntyQuery!$EU$176","v":200},3.9045722541095622E-3]
[null,"Chichester",null,{"$f":"ACS_Table_B25001!$O$7","v":981},1.5101600985221675E-2,{"$f":"CntyQuery!$ER$177","v":707},1.1489209568382735E-2,{"$f":"CntyQuery!$ET$177","v":"n"},"n",{"$f":"CntyQuery!$EU$177","v":0},0]
[null,"Concord",null,{"$f":"ACS_Table_B25001!$Q$7","v":18663},0.28729987684729064,{"$f":"CntyQuery!$ER$178","v":29393},0.47765535621424859,{"$f":"CntyQuery!$ET$178","v":1650},0.15999224280034907,{"$f":"CntyQuery!$EU$178","v":27742},0.54160321736753736]
[null,"Danbury",null,{"$f":"ACS_Table_B25001!$S$7","v":614},9.4519704433497533E-3,{"$f":"CntyQuery!$ER$179","v":177},2.876365054602184E-3,{"$f":"CntyQuery!$ET$179","v":73},7.0784446814699895E-3,{"$f":"CntyQuery!$EU$179","v":105},2.0499004334075203E-3]
[null,"Dunbarton",null,{"$f":"ACS_Table_B25001!$U$7","v":1001},1.5409482758620689E-2,{"$f":"CntyQuery!$ER$180","v":299},4.8589443577743106E-3,{"$f":"CntyQuery!$ET$180","v":141},1.3672064384757102E-2,{"$f":"CntyQuery!$EU$180","v":158},3.084612080746554E-3]
[null,"Epsom",null,{"$f":"ACS_Table_B25001!$W$7","v":2044},3.1465517241379311E-2,{"$f":"CntyQuery!$ER$181","v":1096},1.781071242849714E-2,{"$f":"CntyQuery!$ET$181","v":170},1.6484049258217785E-2,{"$f":"CntyQuery!$EU$181","v":926},1.8078169536527272E-2]
[null,"Franklin",null,{"$f":"ACS_Table_B25001!$Y$7","v":4401},6.77493842364532E-2,{"$f":"CntyQuery!$ER$182","v":2171},3.5280161206448259E-2,{"$f":"CntyQuery!$ET$182","v":796},7.7184136526713853E-2,{"$f":"CntyQuery!$EU$182","v":1375},2.6843934247003241E-2]
[null,"Henniker",null,{"$f":"ACS_Table_B25001!$AA$7","v":2011},3.0957512315270937E-2,{"$f":"CntyQuery!$ER$183","v":1416},2.3010920436817472E-2,{"$f":"CntyQuery!$ET$183","v":293},2.8410743721516533E-2,{"$f":"CntyQuery!$EU$183","v":1123},2.1924173206825191E-2]
[null,"Hill",null,{"$f":"ACS_Table_B25001!$AC$7","v":506},7.7894088669950741E-3,{"$f":"CntyQuery!$ER$184","v":18},2.9251170046801873E-4,{"$f":"CntyQuery!$ET$184","v":"n"},"n",{"$f":"CntyQuery!$EU$184","v":"n"},"n"]
[null,"Hooksett",null,{"$f":"ACS_Table_B25001!$AE$7","v":5298},8.155788177339901E-2,{"$f":"CntyQuery!$ER$185","v":9805},0.15933762350494018,{"$f":"CntyQuery!$ET$185","v":2081},0.20178415591971299,{"$f":"CntyQuery!$EU$185","v":7724},0.1507945804537113]
[null,"Hopkinton",null,{"$f":"ACS_Table_B25001!$AG$7","v":2409},3.7084359605911332E-2,{"$f":"CntyQuery!$ER$186","v":1454},2.3628445137805511E-2,{"$f":"CntyQuery!$ET$186","v":373},3.616794337244255E-2,{"$f":"CntyQuery!$EU$186","v":1080},2.1084690172191636E-2]
[null,"Loudon",null,{"$f":"ACS_Table_B25001!$AI$7","v":2203},3.3913177339901478E-2,{"$f":"CntyQuery!$ER$187","v":860},1.3975559022360895E-2,{"$f":"CntyQuery!$ET$187","v":392},3.8010278289537479E-2,{"$f":"CntyQuery!$EU$187","v":468},9.1366990746163754E-3]
[null,"Newbury",null,{"$f":"ACS_Table_B25001!$AK$7","v":1736},2.6724137931034484E-2,{"$f":"CntyQuery!$ER$188","v":2506},4.0724128965158604E-2,{"$f":"CntyQuery!$ET$188","v":153},1.4835644332396005E-2,{"$f":"CntyQuery!$EU$188","v":2354},4.5956815430869546E-2]
[null,"New London",null,{"$f":"ACS_Table_B25001!$AM$7","v":2298},3.5375615763546801E-2,{"$f":"CntyQuery!$ER$189","v":498},8.0928237129485187E-3,{"$f":"CntyQuery!$ET$189","v":"n"},"n",{"$f":"CntyQuery!$EU$189","v":"n"},"n"]
[null,"Northfield",null,{"$f":"ACS_Table_B25001!$AO$7","v":1953},3.0064655172413794E-2,{"$f":"CntyQuery!$ER$190","v":1266},2.0573322932917318E-2,{"$f":"CntyQuery!$ET$190","v":"n"},"n",{"$f":"CntyQuery!$EU$190","v":"n"},"n"]
[null,"Pembroke",null,{"$f":"ACS_Table_B25001!$AQ$7","v":2925},4.5027709359605914E-2,{"$f":"CntyQuery!$ER$191","v":1844},2.9966198647945919E-2,{"$f":"CntyQuery!$ET$191","v":369},3.5780083389896244E-2,{"$f":"CntyQuery!$EU$191","v":1474},2.8776697512787473E-2]
[null,"Pittsfield",null,{"$f":"ACS_Table_B25001!$AS$7","v":1822},2.8048029556650245E-2,{"$f":"CntyQuery!$ER$192","v":1020},1.6575663026521061E-2,{"$f":"CntyQuery!$ET$192","v":544},5.2748957626296909E-2,{"$f":"CntyQuery!$EU$192","v":475},9.2733591035102109E-3]
[null,"Salisbury",null,{"$f":"ACS_Table_B25001!$AU$7","v":632},9.7290640394088676E-3,{"$f":"CntyQuery!$ER$193","v":85},1.3813052522100883E-3,{"$f":"CntyQuery!$ET$193","v":32},3.1028798603704062E-3,{"$f":"CntyQuery!$EU$193","v":54},1.0542345086095818E-3]
[null,"Sutton",null,{"$f":"ACS_Table_B25001!$AW$7","v":1031},1.5871305418719211E-2,{"$f":"CntyQuery!$ER$194","v":200},3.2501300052002078E-3,{"$f":"CntyQuery!$ET$194","v":"n"},"n",{"$f":"CntyQuery!$EU$194","v":"n"},"n"]
[null,"Warner",null,{"$f":"ACS_Table_B25001!$AY$7","v":1414},2.1767241379310343E-2,{"$f":"CntyQuery!$ER$195","v":801},1.3016770670826834E-2,{"$f":"CntyQuery!$ET$195","v":173},1.6774944245127509E-2,{"$f":"CntyQuery!$EU$195","v":627},1.2240834016633478E-2]
[null,"Webster",null,{"$f":"ACS_Table_B25001!$BA$7","v":875},1.3469827586206896E-2,{"$f":"CntyQuery!$ER$196","v":105},1.7063182527301093E-3,{"$f":"CntyQuery!$ET$196","v":49},4.7512847861921849E-3,{"$f":"CntyQuery!$EU$196","v":56},1.0932802311506775E-3]
[null,"Wilmot",null,{"$f":"ACS_Table_B25001!$BC$7","v":809},1.2453817733990147E-2,{"$f":"CntyQuery!$ER$197","v":140},2.2750910036401454E-3,{"$f":"CntyQuery!$ET$197","v":39},3.7816348298264327E-3,{"$f":"CntyQuery!$EU$197","v":101},1.9718089883253289E-3]
[]
[null,"Merrimack County",null,{"$f":"SUM(D33:D60)","v":64960},null,{"$f":"CntyQuery!$ER$241","v":61536},null,{"$f":"CntyQuery!$ET$241","v":10313},null,{"$f":"CntyQuery!$EU$241","v":51222}]
[]
[null,"Source: ","2015-2019 American Community Survey Table B25001"]
[null,null,"Employment data provided by NH Department of Employment Security 2019 Covered Private Employment."]
[null,null,"Margin of error is not displayed.  The American Community Survey data are estimates only. Total Employment "]
[null,null,"at the county level is the number provided by NH Department of Employment Security."]

{"sheet":"DropDownList","index":71,"n_rows":47,"n_cols":3,"rows_kept":47,"cut":false,"hidden":true,"merged":[]}
["List Range for Combo Box on Start Page"]
["Allenstown"]
["Andover"]
["Boscawen"]
["Bow"]
["Bradford"]
["Canterbury"]
["Chichester"]
["Concord"]
["Danbury"]
["Dunbarton"]
["Epsom"]
["Franklin"]
["Henniker"]
["Hill"]
["Hooksett"]
["Hopkinton"]
["Loudon"]
["Newbury"]
["New London"]
["Northfield"]
["Pembroke"]
["Pittsfield"]
["Salisbury"]
["Sutton"]
["Warner"]
["Webster"]
["Wilmot"]
[]
[]
[]
[]
[]
[]
[]
[]
[]
[]
[]
[]
[]
[]
[]
[]
[]
[]
[{"$f":"B47","v":"Allenstown"},"Allenstown","Allenstown"]

{"sheet":"CntyQryCensus","index":72,"n_rows":568,"n_cols":216,"rows_kept":568,"cut":false,"hidden":true,"merged":[]}
[]
["Census 2000 SF1   -           Query Name:  TownAllQuery3"]
["NAME","COUNTY","LOGRECNO","COUSUB","TRACT","AREALAND","AREAWATR","POP100","HU100","P01TotalPopulation","P03PopOfOneRace","P03PopWhite","P03PopBlack","P03PopAmIndian","P03PopAsian","P03PopHawaiian","P03PopOtherRace","P03Pop2orMoreRaces","P04PopHispanicLatino","P04PopNotHispanicLatino","P12PopMale","P12PopMale<15","P12PopMale15to24","P12PopMale25to34","P12PopMale35to44","P12PopMale45to54","P12PopMale55to64","P12PopMale65to74","P12PopMale75to84","P12PopMale85andOver","P12PopFemale","P12PopFemale<15","P12PopFemale15to24","P12PopFemale25to34","P12PopFemale35t44","P12PopFemale45to54","P12PopFemale55to64","P12PopFemale65to74","P12PopFemale75to84","P12PopFemale85andOver","P15Households2000","P16PopInHH","P17AvgHHSize","P18HHs1Person","P18HHs2orMorePerson","P18HHsFamily","P18HHMarriedCoupleFam","P18HHSingleParentFam","P18HHsNonFamily","P31Families","P32PopInFam","P33AvgFamSize","H01TotHsUnits","H04OccHsUnits","H04OwnerOccHU","H04RenterOccHU","H05VctHsUnits","H05VctHUForRent","H05VctHUForSale","H05VctHUSeasonal","H10PopInOccHU","H11PopInOwnOccHU","H11PopInRntOccHU","H12AvgHHSize2","H12AvgHHSizOwnOcc","H12AvgHHSizRntOcc","H14OwnOccWhtHsHldr","H14OwnOccBlkHsHldr","H14OwnOccAmIHsHldr","H14OwnOccAsnHsHldr","H14OwnOccPIsHsHldr","H14OwnOccORHsHldr","H14OwnOcc2RcHsHldr","H14RntOccWhtHsHldr","H14RntOccBlkHsHldr","H14RntOccAmIHsHldr","H14RntOccAsnHsHldr","H14RntOccPIsHsHldr","H14RntOccORHsHldr","H14RntOcc2RcHsHldr","H16OwnOccHH15to24","H16OwnOccHH25to34","H16OwnOccHH35to44","H16OwnOccHH45to54","H16OwnOccHH55to64","H16OwnOccHH65to74","H16OwnOccHH75to84","H16OwnOccHH85Over","H16RntOccHH15to24","H16RntOccHH25to34","H16RntOccHH35to44","H16RntOccHH45to54","H16RntOccHH55to64","H16RntOccHH65to74","H16RntOccHH75to84","H16RntOccHH85Over","P27TotalPop","P27PopInHseHlds","P27PopInGrpQtrs","P13MedianPopTotal","P13MedianPopMale","P13MedianPopFemale"]
["Allenstown","013","0022469","00660","","      53161407","        277792",4843,1962,4843,4804,4738,24,11,18,0,13,39,57,4786,2343,565,266,347,477,318,192,109,62,7,2500,563,251,387,450,313,201,153,127,55,1902,4808,2.5299999999999998,517,1385,1254,965,289,131,1254,3831,3.06,1962,1902,1356,546,60,6,7,23,4808,3736,1072,2.5299999999999998,2.76,1.96,1335,2,3,4,0,3,9,532,4,2,4,0,0,4,27,225,393,294,188,143,68,18,37,133,127,66,43,40,76,24,4843,4808,35,35.5,34.9,36.200000000000003]
["Andover","013","0022558","01460","","     104799192","       2246186",2109,1038,2109,2085,2071,8,3,1,1,1,24,4,2105,1057,218,117,121,166,180,125,81,32,17,1052,206,102,122,186,193,106,75,52,10,823,2095,2.5499999999999998,169,654,609,508,101,45,609,1768,2.9,1038,823,685,138,215,4,12,176,2095,1782,313,2.5499999999999998,2.6,2.27,675,2,0,1,0,0,7,135,0,2,0,0,0,1,9,70,154,183,117,88,46,18,13,37,32,26,15,6,7,2,2109,2095,14,40.1,40,40.200000000000003]
["Boscawen","013","0022713","06260","","      64042395","       1752758",3672,1295,3672,3644,3589,21,11,17,0,6,28,30,3642,1761,343,239,228,333,240,157,118,71,32,1911,358,183,205,306,241,158,156,151,153,1260,3239,2.57,268,992,913,693,220,79,913,2715,2.97,1295,1260,946,314,35,8,3,12,3239,2531,708,2.57,2.68,2.25,929,5,3,1,0,1,7,310,0,1,1,0,0,2,8,95,259,228,153,121,61,21,39,81,73,36,33,24,22,6,3672,3239,433,39.4,37.1,42.1]
["Bow","013","0022817","06500","","      72699841","       1035729",7138,2330,7138,7091,6980,9,7,74,0,21,47,35,7103,3560,993,381,225,670,672,341,186,78,14,3578,909,359,281,775,638,291,196,104,25,2304,7138,3.1,197,2107,2045,1866,179,62,2045,6714,3.28,2330,2304,2195,109,26,0,9,3,7138,6817,321,3.1,3.11,2.94,2168,1,1,15,0,4,6,105,0,1,1,0,1,1,8,165,659,686,344,207,104,22,2,26,39,22,10,4,6,0,7138,7138,0,38.6,38.5,38.6]
["Bradford","013","0022973","06980","","      91472455","       1805381",1454,762,1454,1429,1414,4,5,2,0,4,25,16,1438,726,161,92,70,118,136,66,63,17,3,728,137,81,85,119,135,70,61,30,10,559,1433,2.56,113,446,403,322,81,43,403,1192,2.96,762,559,444,115,203,2,9,183,1433,1175,258,2.56,2.65,2.2400000000000002,439,1,1,0,0,0,3,113,1,0,0,0,0,1,5,38,95,140,60,74,22,10,10,26,27,27,14,3,7,1,1454,1433,21,40.299999999999997,39,41.1]
["Canterbury","013","0023094","09860","","     113551281","       2045384",1979,838,1979,1964,1951,5,0,5,1,2,15,10,1969,955,194,88,79,150,233,115,60,34,2,1024,200,98,81,196,228,112,52,42,15,749,1976,2.64,113,636,590,502,88,46,590,1719,2.91,838,749,674,75,89,2,2,77,1976,1813,163,2.64,2.69,2.17,664,2,0,1,1,1,5,74,0,0,0,0,0,1,4,55,156,240,120,57,40,2,4,10,17,15,7,7,13,2,1979,1976,3,42.4,43.1,41.9]
["Chichester","013","0023228","12420","","      54577768","        277045",2236,849,2236,2214,2195,4,8,3,0,4,22,15,2221,1128,249,101,143,225,201,98,73,31,7,1108,242,106,149,224,178,97,69,32,11,823,2228,2.71,141,682,638,556,82,44,638,1937,3.04,849,823,728,95,26,1,4,10,2228,2014,214,2.71,2.77,2.25,723,0,1,0,0,0,4,93,1,1,0,0,0,0,1,105,201,204,94,79,34,10,8,23,21,17,7,14,2,3,2236,2228,8,38,38.200000000000003,37.799999999999997]
["Concord","013","0023305","14200","","     166511646","       8376307",40687,16881,40687,40154,38863,421,120,598,13,139,533,591,40096,20149,4031,2655,3258,3752,2926,1545,983,721,278,20538,3725,2341,2918,3483,2891,1598,1372,1365,845,16281,37420,2.2999999999999998,5324,10957,9630,7215,2415,1327,9630,28362,2.95,16881,16281,8373,7908,600,237,65,126,37420,21935,15485,2.2999999999999998,2.62,1.96,8235,26,13,43,2,11,43,7486,98,23,181,1,24,95,75,923,2058,2150,1236,1009,724,198,755,2094,1791,1188,671,487,599,323,40687,37420,3267,37,35.4,38.700000000000003]
["Danbury","013","0024146","16980","","      96984343","        735597",1071,596,1071,1069,1066,2,1,0,0,0,2,5,1066,546,95,72,43,117,90,61,46,16,6,525,103,49,61,108,77,58,42,16,11,435,1071,2.46,91,344,310,251,59,34,310,879,2.84,596,435,375,60,161,1,15,121,1071,918,153,2.46,2.4500000000000002,2.5499999999999998,373,1,1,0,0,0,0,60,0,0,0,0,0,0,6,32,101,90,67,49,19,11,6,18,18,10,3,2,3,0,1071,1071,0,41.1,41.2,40.9]
["Dunbarton","013","0024242","19460","","      79999416","       1228113",2226,858,2226,2214,2191,2,10,10,0,1,12,7,2219,1126,272,79,115,263,206,108,63,17,3,1100,261,89,162,235,188,90,48,22,5,814,2226,2.73,115,699,649,601,48,50,649,1965,3.03,858,814,729,85,44,1,3,33,2226,2005,221,2.73,2.75,2.6,720,1,2,2,0,0,4,84,0,1,0,0,0,0,3,92,238,198,109,61,25,3,3,27,26,15,4,7,1,2,2226,2226,0,37.6,38.299999999999997,36.799999999999997]
["Epsom","013","0024318","24900","","      88491778","        521203",4021,1592,4021,3991,3966,4,4,13,0,4,30,18,4003,1928,415,182,247,352,305,198,136,64,29,2093,422,177,268,374,310,207,139,116,80,1491,3904,2.62,294,1197,1104,954,150,93,1104,3327,3.01,1592,1491,1209,282,101,3,7,65,3904,3286,618,2.62,2.72,2.19,1195,1,2,3,0,0,8,275,2,0,1,0,0,4,5,170,308,308,199,135,64,20,19,67,72,30,29,28,29,8,4021,3904,117,38.9,38.4,39.700000000000003]
["Franklin","013","0024443","27380","","      71396822","       4118207",8405,3676,8405,8289,8161,32,23,43,1,29,116,100,8305,4074,970,542,493,675,559,357,272,162,44,4331,815,551,534,682,580,414,336,261,158,3319,8188,2.4700000000000002,896,2423,2195,1538,657,228,2195,6486,2.95,3676,3319,1911,1408,357,63,23,215,8188,5020,3168,2.4700000000000002,2.63,2.25,1890,2,4,3,0,2,10,1364,6,2,7,0,7,22,23,189,454,437,316,276,171,45,183,346,299,199,138,119,94,30,8405,8188,217,37.299999999999997,35.5,38.9]
["Henniker","013","0024673","35540","","     114298938","       1769144",4433,1679,4433,4374,4284,20,8,44,1,17,59,37,4396,2253,480,490,250,395,363,141,82,37,15,2180,427,452,230,405,314,134,106,93,19,1585,4003,2.5299999999999998,416,1169,1019,798,221,150,1019,3153,3.09,1679,1585,1083,502,94,16,7,54,4003,3029,974,2.5299999999999998,2.8,1.94,1066,2,3,3,0,1,8,490,0,0,2,0,1,9,9,106,326,334,143,99,50,16,84,125,114,75,24,28,43,9,4433,4003,430,33.1,31.4,34.4]
["Hill","013","0024861","35860","","      69188101","        405005",992,436,992,989,982,1,1,4,1,0,3,2,990,502,114,57,48,95,90,48,36,9,5,490,99,56,69,98,75,42,21,21,9,382,992,2.6,81,301,272,221,51,29,272,820,3.01,436,382,332,50,54,0,3,47,992,848,144,2.6,2.5499999999999998,2.88,331,1,0,0,0,0,0,50,0,0,0,0,0,0,7,31,86,92,51,37,20,8,6,18,17,5,1,2,1,0,992,992,0,38.700000000000003,39.5,36.799999999999997]
["Hooksett","013","0024909","37300","","      93819360","       2730459",11721,4307,11721,11634,11305,80,28,195,3,23,87,170,11551,5858,1255,1002,735,1123,803,481,273,165,21,5863,1188,839,774,1131,860,468,335,226,42,4147,10897,2.63,812,3335,3033,2514,519,302,3033,9221,3.04,4307,4147,3304,843,160,39,41,17,10897,8996,1901,2.63,2.72,2.2599999999999998,3243,14,5,25,0,6,11,769,16,4,35,0,4,15,22,443,976,791,507,330,204,31,90,215,210,139,63,43,69,14,11721,10897,824,35.299999999999997,34.4,36.1]
["Hopkinton","013","0025155","37540","","     112122752","       4666017",5399,2210,5399,5357,5316,7,14,14,4,2,42,27,5372,2613,615,236,210,424,511,294,185,115,23,2786,565,245,235,501,544,299,210,142,45,2084,5399,2.59,424,1660,1545,1356,189,115,1545,4657,3.01,2210,2084,1799,285,126,7,19,77,5399,4853,546,2.59,2.7,1.92,1785,0,3,3,2,0,6,273,2,2,2,1,1,4,6,133,405,530,321,216,153,35,15,58,69,54,21,27,24,17,5399,5399,0,41.8,41.2,42.3]
["Loudon","013","0025367","43380","","     121237000","       1747027",4481,1684,4481,4447,4402,11,9,20,0,5,34,27,4454,2227,533,246,239,462,378,189,134,42,4,2254,506,245,305,460,364,179,111,59,25,1611,4479,2.78,245,1366,1257,1046,211,109,1257,3869,3.08,1684,1611,1448,163,73,3,9,47,4479,4058,421,2.78,2.8,2.58,1425,1,2,5,0,2,13,163,0,0,0,0,0,0,20,171,445,393,207,137,63,12,12,48,49,30,10,8,4,2,4481,4479,2,36.9,37.1,36.700000000000003]
["New London","013","0025671","52100","","      58291290","       7983338",4116,2085,4116,4098,4048,9,2,30,1,8,18,26,4090,1808,258,329,96,177,225,210,250,197,66,2308,225,532,114,211,258,253,322,250,143,1574,3403,2.16,462,1112,1052,954,98,60,1052,2766,2.63,2085,1574,1297,277,511,17,21,418,3403,2891,512,2.16,2.23,1.85,1288,3,0,2,1,0,3,273,0,0,4,0,0,0,5,39,142,220,235,308,270,78,30,50,53,49,21,25,31,18,4116,3403,713,47.3,46.8,47.8]
["Newbury","013","0025542","50900","","      92724515","       5929456",1702,1311,1702,1689,1674,7,1,2,0,5,13,20,1682,863,172,83,79,147,158,84,88,44,8,839,134,80,94,161,132,102,78,44,14,691,1702,2.46,143,548,508,439,69,40,508,1441,2.84,1311,691,602,89,620,5,10,585,1702,1497,205,2.46,2.4900000000000002,2.2999999999999998,598,1,0,0,0,0,3,86,0,0,1,0,0,2,3,51,143,140,99,93,58,15,9,24,17,21,9,5,4,0,1702,1702,0,42.1,42.1,42]
["Northfield","013","0025821","54260","","      74566902","        675060",4548,1782,4548,4505,4465,6,8,19,0,7,43,42,4506,2261,540,285,291,427,361,181,100,61,15,2287,496,301,274,464,348,183,118,75,28,1706,4489,2.63,345,1361,1212,914,298,149,1212,3671,3.03,1782,1706,1159,547,76,7,9,41,4489,3219,1270,2.63,2.78,2.3199999999999998,1151,1,2,1,0,0,4,532,2,2,3,0,1,7,16,133,338,322,177,98,64,11,68,144,123,87,33,43,32,17,4548,4489,59,36,35.299999999999997,36.6]
["Pembroke","013","0025918","60020","","      59125411","        409204",6897,2734,6897,6820,6748,26,18,26,0,2,77,30,6867,3419,786,423,427,704,508,276,179,96,20,3478,724,403,467,688,524,287,209,130,46,2661,6897,2.59,611,2050,1876,1482,394,174,1876,5742,3.06,2734,2661,1807,854,73,9,11,16,6897,5054,1843,2.59,2.8,2.16,1790,7,2,2,0,0,6,828,6,1,4,0,1,14,13,205,511,460,274,197,115,32,71,236,231,138,65,50,49,14,6897,6897,0,36.700000000000003,36.200000000000003,37.200000000000003]
["Pittsfield","013","0026053","61940","","      61041186","        777055",3931,1569,3931,3862,3828,15,5,4,0,10,69,45,3886,1898,454,239,243,363,271,151,114,53,10,2033,476,258,284,378,245,161,133,76,22,1498,3925,2.62,338,1160,1056,779,277,104,1056,3226,3.05,1569,1498,915,583,71,15,10,16,3925,2590,1335,2.62,2.83,2.29,901,2,0,0,0,2,10,568,3,1,1,0,3,7,13,111,262,211,130,110,66,12,73,147,153,84,47,37,27,15,3931,3925,6,35.1,35.4,34.9]
["Salisbury","013","0026152","66980","","     103492290","        663666",1137,514,1137,1126,1112,8,0,3,1,2,11,8,1129,578,122,69,51,93,113,76,33,16,5,559,92,65,67,110,98,67,35,18,7,435,1137,2.61,74,361,325,300,25,36,325,974,3,514,435,401,34,79,2,4,69,1137,1051,86,2.61,2.62,2.5299999999999998,397,1,0,0,0,0,3,33,1,0,0,0,0,0,4,43,92,113,81,39,20,9,4,8,14,4,3,1,0,0,1137,1137,0,40.4,40,40.799999999999997]
["Sutton","013","0026232","75460","","     109660228","       2069258",1544,826,1544,1526,1506,1,5,7,1,6,18,15,1529,752,135,77,63,124,154,95,72,29,3,792,133,77,60,162,125,95,82,39,19,621,1531,2.4700000000000002,130,491,457,404,53,34,457,1314,2.88,826,621,527,94,205,3,10,172,1531,1316,215,2.4700000000000002,2.5,2.29,517,0,1,2,0,2,5,92,0,0,0,0,0,2,5,32,117,146,95,83,43,6,3,20,29,20,11,7,3,1,1544,1531,13,43.2,43.7,42.8]
["Warner","013","0026361","78580","","     144138480","        633413",2760,1228,2760,2731,2714,1,7,6,0,3,29,20,2740,1371,303,174,134,236,253,132,79,41,19,1389,250,166,142,285,210,137,95,62,42,1048,2633,2.5099999999999998,263,785,728,593,135,57,728,2190,3.01,1228,1048,797,251,180,8,11,152,2633,2135,498,2.5099999999999998,2.68,1.98,792,0,0,0,0,1,4,246,0,1,1,0,0,3,5,74,206,236,124,91,43,18,16,53,62,42,34,17,20,7,2760,2633,127,39.5,38.299999999999997,40.6]
["Webster","013","0026528","80020","","      72263550","       1698357",1579,672,1579,1570,1561,1,1,6,0,1,9,2,1577,765,168,67,104,144,142,74,44,15,7,814,163,93,95,158,135,90,41,31,8,581,1575,2.71,84,497,464,397,67,33,464,1386,2.99,672,581,531,50,91,0,3,81,1575,1438,137,2.71,2.71,2.74,524,0,1,3,0,0,3,49,0,0,0,0,0,1,9,66,139,146,87,50,24,10,4,15,18,6,3,3,1,0,1579,1575,4,38.700000000000003,38.4,39.200000000000003]
["Wilmot","013","0026592","84900","","      76504652","        559995",1144,530,1144,1134,1124,1,1,7,1,0,10,3,1141,553,123,42,51,91,103,63,47,25,8,591,124,58,49,118,97,75,46,18,6,459,1144,2.4900000000000002,103,356,329,278,51,27,329,963,2.93,530,459,392,67,71,1,5,56,1144,1008,136,2.4900000000000002,2.57,2.0299999999999998,385,1,1,0,1,0,4,67,0,0,0,0,0,0,4,26,100,103,72,49,29,9,3,19,12,16,10,5,0,2,1144,1144,0,41.6,42,41.2]
[]
[]
[]
[]
[]
[]
[]
[]
[]
[]
[]
[]
[]
[]
[]
[]
[]
[]
[]
[]
["Census 2000 DemoProfile Sample Data Tables 2&3   -  DPTab23TownQry"]
[]
["TOWN_NAME","COUSUB","AREANAME","PopInSchool","Preschool","Kindergarten","Elementary","HighSchool","College","Pop25andOver","HighSchoolGrad","SomeCollege","AssocDegree","BachelDegree","GradDegree","HSGradorHigher","CollegeGradorHigher","Pop5to20yrs","Pop5to20wDis","Pop21to64","Pop21to64wDis","Pop65over","Pop65overwDis","Pop5yrsOver","SameHUin95","DiffHUinUSin95","HUinSameCountyin95","HUinSameStatein95","TotalPop","NativePop","NatPopBornUS","NatPopBornInStatRes","NatPopBornDiffState","NatPopBornOutUS","FornBornPop","FornPopEnt90to00","FornPopNatCit","FornPopNotCit","Households","HHIncLessThn10k","HHInc10to15K","HHInc15to25K","HHInc25to35K","HHInc35to50K","HHInc50to75K","HHInc75to100K","HHInc100to150K","HHInc150to200K","HHIncOver200K","MedianHHInc","HHwithPubAssistInc","MeanPubAssist","FamilyHH","FHHIncLessThn10k","FHHInc10to15K","FHHInc15to25K","FHHInc25to35K","FHHInc35to50K","FHHInc50to75K","FHHInc75to100K","FHHInc100to150K","FHHInc150to200K","FHHIncOver200K","MedianFHHInc","PerCapitaInc","PovStatFamilies","PovStatFHHwChilUnd18","PovStatFHHwChilUnd5","PovStFmalHH","DP3088","DP3089","PovStatIndiv","PovStatIndiv18yrOver","PovStatIndiv65yrOver","DP3093","DP3094","DP3095","CNTY_NAME"]
["Allenstown","00660","Allenstown town, Merrimack County, New Hampshire",1228,89,44,682,302,111,3202,1283,755,207,219,92,2556,311,1138,140,2853,577,506,219,4524,2494,1996,875,1121,4843,4727,4689,2983,1706,38,116,24,72,44,1901,121,100,208,292,381,497,182,114,6,0,41958,61,1997,1277,5,48,116,195,240,413,165,89,6,0,51659,18851,28,28,8,11,11,0,184,129,24,47,40,94,"Merrimack"]
["Andover","01460","Andover town, Merrimack County, New Hampshire",487,42,14,228,134,69,1468,496,289,108,222,145,1260,367,451,32,1255,168,269,109,1978,1250,706,450,256,2109,2062,2054,1190,864,8,47,6,23,24,814,42,26,95,112,159,225,66,66,17,6,47093,23,1478,600,21,6,49,69,132,181,57,62,17,6,52212,21627,27,19,3,16,14,3,119,80,17,38,35,36,"Merrimack"]
["Boscawen","06260","Boscawen town, Merrimack County, New Hampshire",753,21,53,453,103,123,2549,956,438,226,327,68,2015,395,748,85,1911,370,375,165,3464,2077,1312,842,470,3672,3538,3505,2232,1273,33,134,86,37,97,1251,75,31,196,223,225,290,138,52,16,5,42524,57,2386,908,41,19,85,158,206,214,123,47,10,5,45850,18732,49,44,19,13,13,7,241,159,40,82,68,68,"Merrimack"]
["Bow","06500","Bow town, Merrimack County, New Hampshire",2347,230,79,1233,572,233,4556,945,873,420,1378,692,4308,2070,2064,129,4019,300,599,235,6682,4390,2271,1206,1065,7138,6971,6904,3630,3274,67,167,39,124,43,2291,46,61,82,71,180,604,457,551,136,103,79329,7,1400,2044,13,37,39,75,122,536,467,516,136,103,83567,29557,40,8,8,8,8,8,129,107,25,14,6,43,"Merrimack"]
["Bradford","06980","Bradford town, Merrimack County, New Hampshire",377,22,23,189,85,58,978,286,216,86,209,107,904,316,335,30,862,150,177,62,1375,822,542,281,261,1454,1422,1413,630,783,9,32,14,7,25,557,24,21,67,75,97,158,56,44,12,3,49018,7,1429,407,8,6,36,52,75,121,52,44,10,3,57083,22240,10,6,2,6,4,2,60,48,11,8,4,36,"Merrimack"]
["Canterbury","09860","Canterbury town, Merrimack County, New Hampshire",489,30,19,239,128,73,1402,335,262,110,333,276,1316,609,427,32,1244,131,202,64,1873,1339,532,275,257,1979,1939,1923,983,940,16,40,5,21,19,750,20,20,38,79,131,184,124,114,15,25,58026,10,770,595,7,11,20,56,91,170,108,100,15,17,62583,27374,12,7,0,4,4,0,49,35,4,8,8,21,"Merrimack"]
["Chichester","12420","Chichester town, Merrimack County, New Hampshire",550,33,25,281,135,76,1538,549,275,179,244,143,1390,387,509,32,1355,171,227,52,2099,1380,717,392,325,2236,2214,2194,1435,759,20,22,0,10,12,827,19,29,63,105,120,254,114,83,30,10,56741,10,2070,640,11,12,29,69,104,215,95,65,30,10,60333,24115,15,12,4,8,8,4,67,49,12,18,14,26,"Merrimack"]
["Concord","14200","Concord city, New Hampshire",10525,716,474,4437,2388,2510,27940,7845,6151,2182,5090,3487,24755,8577,8266,835,22423,3864,4826,2007,38356,18332,19530,11077,8453,40687,38950,38575,22061,16514,375,1737,672,787,950,16325,1198,998,2017,2191,3183,3552,1788,899,251,248,42447,564,2322,9748,402,427,814,970,1850,2585,1476,766,244,214,52418,21976,603,523,296,378,341,195,2980,2118,262,845,495,1311,"Merrimack"]
["Danbury","16980","Danbury town, Merrimack County, New Hampshire",254,7,25,103,88,31,750,306,142,40,97,37,622,134,243,23,643,114,140,50,1026,633,387,161,226,1071,1058,1054,610,444,4,13,0,9,4,435,32,28,51,77,88,91,49,13,4,2,38312,17,2665,313,19,13,27,61,69,73,38,9,2,2,40809,18339,28,17,10,11,9,7,118,87,13,28,15,39,"Merrimack"]
["Dunbarton","19460","Dunbarton town, Merrimack County, New Hampshire",523,44,22,282,94,81,1545,385,335,152,372,215,1459,587,465,30,1419,161,163,50,2049,1159,877,303,574,2226,2151,2131,1145,986,20,75,20,49,26,822,26,19,48,48,136,221,158,112,29,25,65081,5,4460,657,12,5,18,52,98,196,134,91,29,22,67448,27892,15,9,3,0,0,0,61,43,8,14,8,21,"Merrimack"]
["Epsom","24900","Epsom town, Merrimack County, New Hampshire",931,65,42,491,209,124,2822,967,548,342,493,140,2490,633,826,90,2394,504,442,189,3780,2349,1427,845,582,4021,3932,3932,2473,1459,0,89,5,61,28,1486,40,39,219,161,264,335,284,113,16,15,50685,56,2652,1098,21,0,132,120,167,287,254,92,10,15,56875,22026,21,16,4,11,11,4,121,81,14,33,29,50,"Merrimack"]
["Franklin","27380","Franklin city, New Hampshire",2020,163,133,961,541,222,5497,2017,1182,464,564,186,4413,750,1921,270,4696,1136,1150,492,7844,3981,3790,2033,1757,8405,8187,8126,5320,2806,61,218,89,127,91,3334,425,205,595,453,572,679,271,100,11,23,34613,240,2513,2213,110,59,451,325,344,601,230,70,0,23,41698,17155,198,165,80,125,118,52,1058,670,112,371,280,366,"Merrimack"]
["Henniker","35540","Henniker town, Merrimack County, New Hampshire",1765,49,85,553,278,800,2577,548,474,215,771,331,2339,1102,1288,127,2571,327,350,148,4209,2137,2015,777,1238,4433,4347,4269,1953,2316,78,86,18,56,30,1586,114,87,198,167,215,361,240,117,32,55,50288,20,695,1034,7,27,81,95,158,278,217,104,17,50,59527,24530,21,13,0,7,7,0,281,259,36,22,22,228,"Merrimack"]
["Hill","35860","Hill town, Merrimack County, New Hampshire",241,13,21,128,60,19,683,299,147,54,66,19,585,85,244,13,599,87,100,35,943,578,363,129,234,992,991,978,557,421,13,1,0,1,0,388,15,17,50,45,85,87,62,15,7,5,48333,11,900,278,8,0,26,35,70,68,50,11,8,2,50000,21004,8,3,0,3,3,0,41,35,0,3,3,26,"Merrimack"]
["Hooksett","37300","Hooksett town, Merrimack County, New Hampshire",3712,205,146,1400,620,1341,7484,2182,1390,858,1520,678,6628,2198,3009,247,6930,927,1053,499,10992,5797,5116,1366,3750,11721,11145,11081,6463,4618,64,576,186,403,173,4140,159,98,309,373,621,1022,822,594,102,40,61491,53,1278,3072,87,59,96,217,421,865,700,496,102,29,68673,24629,97,73,27,48,48,19,437,267,81,170,119,147,"Merrimack"]
["Hopkinton","37540","Hopkinton town, Merrimack County, New Hampshire",1457,97,50,765,297,248,3736,775,684,342,1008,749,3558,1757,1255,32,3138,430,717,256,5116,2909,2096,1127,969,5399,5210,5172,2324,2848,38,189,92,67,122,2084,60,68,165,157,385,491,300,251,85,122,59583,33,568,1560,7,23,56,115,280,406,275,210,78,110,69737,30753,11,11,7,11,11,7,97,55,17,25,21,61,"Merrimack"]
["Loudon","43380","Loudon town, Merrimack County, New Hampshire",1249,63,87,605,272,222,2952,1041,699,285,416,242,2683,658,1086,121,2716,334,374,150,4176,2868,1282,727,555,4481,4416,4408,2719,1689,8,65,25,33,32,1618,50,55,114,151,324,485,267,111,18,43,55185,15,1100,1277,32,27,63,104,246,423,237,95,13,37,59096,24673,53,47,5,35,35,5,270,155,26,110,104,67,"Merrimack"]
["New London","52100","New London town, Merrimack County, New Hampshire",1265,67,35,265,189,709,2770,313,512,185,1080,574,2664,1654,944,35,1839,158,1167,226,4008,2148,1813,440,1373,4116,3954,3942,1159,2783,12,162,29,84,78,1585,40,79,138,179,204,239,227,233,105,141,61520,30,2584,1095,10,11,44,101,131,184,188,201,90,135,82201,37556,16,5,0,5,5,0,81,67,17,14,14,36,"Merrimack"]
["Newbury","50900","Newbury town, Merrimack County, New Hampshire",432,19,13,219,97,84,1228,288,250,103,350,155,1146,505,357,29,984,86,285,79,1626,1035,562,194,368,1705,1597,1596,639,957,1,108,57,40,68,690,15,18,60,85,119,178,88,84,22,21,58026,2,200,492,0,4,34,51,87,144,79,61,17,15,61389,29521,0,0,0,0,0,0,30,30,0,0,0,30,"Merrimack"]
["Northfield","54260","Northfield town, Merrimack County, New Hampshire",1298,73,68,676,285,196,2923,1073,619,251,327,116,2386,443,1103,70,2721,449,402,146,4285,2397,1874,800,1074,4548,4463,4421,2838,1583,42,85,15,45,40,1704,111,56,194,261,369,430,189,82,0,12,44333,55,6688,1211,11,28,114,183,286,338,170,69,0,12,48787,18466,11,6,6,6,6,6,175,164,30,5,0,151,"Merrimack"]
["Pembroke","60020","Pembroke town, Merrimack County, New Hampshire",1951,121,79,922,459,370,4523,1562,933,481,689,275,3940,964,1674,254,4104,682,677,244,6455,3948,2459,1313,1146,6897,6837,6822,4124,2698,15,60,0,50,10,2660,208,83,239,364,452,652,455,174,16,17,49494,61,3035,1885,48,34,165,195,336,516,391,167,16,17,57106,20800,57,40,22,22,22,13,372,314,74,58,36,234,"Merrimack"]
["Pittsfield","61940","Pittsfield town, Merrimack County, New Hampshire",1008,82,75,553,203,95,2497,925,468,248,244,82,1967,326,988,132,2259,431,410,191,3664,2250,1363,779,584,3931,3818,3794,2411,1383,24,113,51,41,72,1496,146,107,201,221,302,256,165,52,19,27,38833,80,2626,1061,48,46,117,177,217,218,154,45,19,20,44233,21082,72,66,40,31,31,18,344,208,27,124,65,114,"Merrimack"]
["Salisbury","66980","Salisbury town, Merrimack County, New Hampshire",277,20,13,135,71,38,792,255,193,70,135,60,713,195,243,25,717,100,109,37,1069,727,332,229,103,1137,1121,1117,667,450,4,16,0,12,4,434,19,11,30,40,104,110,67,42,9,2,55000,7,2271,325,0,4,17,26,82,101,50,35,8,2,62321,23112,2,2,0,2,2,0,22,20,5,2,2,17,"Merrimack"]
["Sutton","75460","Sutton town, Merrimack County, New Hampshire",392,21,17,165,104,85,1113,283,255,102,225,146,1011,371,338,19,906,161,232,77,1478,1014,464,181,283,1541,1493,1471,681,790,22,48,8,24,24,613,30,13,54,83,118,159,83,51,20,2,50924,13,2185,461,8,7,33,60,81,142,69,43,18,0,56685,24432,13,11,5,8,8,5,77,50,11,27,22,30,"Merrimack"]
["Warner","78580","Warner town, Merrimack County, New Hampshire",767,40,41,350,132,204,1865,512,351,158,364,221,1606,585,628,52,1644,259,336,113,2610,1626,925,435,490,2760,2662,2651,1274,1377,11,98,32,48,50,1057,55,52,115,160,221,231,104,87,20,12,44142,28,2132,742,23,16,63,101,158,190,91,79,13,8,50926,21587,37,30,18,24,21,15,179,103,14,74,47,47,"Merrimack"]
["Webster","80020","Webster town, Merrimack County, New Hampshire",364,8,19,193,86,58,1092,433,229,94,189,66,1011,255,340,48,979,151,149,46,1475,997,478,351,127,1579,1559,1549,1028,521,10,20,5,15,5,590,26,18,51,58,101,197,92,35,7,5,54052,15,967,467,10,11,26,51,84,165,79,31,5,5,57396,20852,17,6,6,3,0,0,78,57,8,19,9,24,"Merrimack"]
["Wilmot","84900","Wilmot town, Merrimack County, New Hampshire",295,21,6,151,81,36,796,185,153,67,194,145,744,339,268,17,667,61,144,38,1079,653,424,210,214,1144,1110,1098,476,622,12,34,7,12,22,454,10,24,37,77,82,110,45,45,11,13,49605,8,150,326,3,6,16,55,57,85,40,40,11,13,57143,25629,6,6,6,3,3,3,50,32,2,17,7,20,"Merrimack"]
[]
[]
[]
[]
[]
[]
[]
[]
[]
[]
[]
[]
[]
[]
[]
[]
[]
[]
[]
[]
["Census 2000 DemoProfile Sample Data Table 4   -  DPTab4TownQry"]
[]
["TOWN_NAME","COUSUB","TotHousingUnits","1UnitDet","1UnitAtt","2Units","3to4Units","5to9Units","10to19Units","20orMoreUnits","MobileHomes","BoatRvVan","SingleFamilyUnits","MultiFamUnits","MobileHomeUnits","YearBuilt99to00","YearBuilt95to98","YearBUilt90to94","YearBuilt80to89","YearBuilt70to79","YearBuilt60to69","YearBuilt40to59","YearBuilt39orEarlier","Rooms1","Rooms2","Rooms3","Rooms4","Rooms5","Rooms6","Rooms7","Rooms8","Rooms9orMore","MedianRooms","OccHU1","YrHHMvdIn99to00","YrHHMvdIn95to98","YrHHMvdIn90to94","YrHHMvdIn80to89","YrHHMvdIn70to79","YrHHMvdIn69orBefore","HeatFuelNatGas","HeatFuelBotGas","HeatFuelElectric","HeatFuelOil","HeatFuelCoal","HeatFuelWood","HeatFuelSolar","HeatFuelOther","HeatFuelNone","LackCompPlumb","LackCompKit","NoTelephone","OccHU","OccPerRm1orLess","OccPerRm1to1_5","OccPerRm1_5orMore","SpecOwnOccUnits","Value<50K","Value50to100K","Value100to150K","Value150to200K","Value200to300K","Value300to500K","Value500Kto1mil","Value1MilorMore","MedianValue","WithMortg","MnthOwnCst<300","MnthOwnCst300to500","MnthOwnCst500to700","MnthOwnCst700to1000","MnthOwnCst1000to1500","MnthOwnCst1500to2000","MnthOwnCst2000orMore","MediMnthOwnCst","NotMrtg","NotMrtgMediMnthOwnCst","OwnCst%HHInc<15","OwnCst%HHInc15to20","OwnCst%HHInc20to25","OwnCst%HHInc25to30","OwnCst%HHInc30to35","OwnCst%HHInc35orMor","NotComputed","SpecRntOccUnits","Rnt<200","Rnt200to300","Rnt300to500","Rnt500to750","Rnt750to1000","Rnt1000to1500","Rnt1500orMore","NoRent","MedianRent","Rnt%HHInc<15","Rnt%HHInc15to20","Rnt%HHInc20to25","Rnt%HHInc25to30","Rnt%HHInc30to35","Rnt%HHInc35orMore","Rnt%NotCompute","CNTY_NAME"]
["Allenstown","00660",1962,829,42,136,116,193,6,14,626,0,829,507,626,81,159,75,338,596,258,196,259,0,73,162,419,634,336,197,51,90,5,1902,432,448,247,389,213,173,254,192,161,1233,6,56,0,0,0,15,8,15,1902,1850,45,7,735,14,390,247,63,21,0,0,0,97900,510,0,7,41,179,250,26,7,1041,225,409,201,214,125,63,48,84,0,536,33,14,101,232,91,43,0,22,597,88,89,91,36,69,141,22,"Merrimack"]
["Andover","01460",1038,871,12,25,25,9,2,0,92,2,871,73,94,14,45,54,166,131,78,178,372,15,16,46,180,221,209,170,83,98,5.7,823,67,238,122,192,113,91,2,107,0,595,0,119,0,0,0,9,7,7,823,815,6,2,445,3,199,170,47,22,4,0,0,105500,317,0,7,20,131,122,33,4,1002,128,355,132,79,72,52,20,86,4,123,0,0,22,56,13,12,0,20,590,24,18,11,21,6,23,20,"Merrimack"]
["Boscawen","06260",1295,775,18,87,131,32,26,0,226,0,775,294,226,9,99,70,233,219,177,144,344,0,47,95,280,293,248,148,103,81,5.3,1260,193,341,198,238,135,155,169,167,113,757,7,47,0,0,0,0,0,7,1260,1235,19,6,643,24,289,283,41,6,0,0,0,101100,454,9,0,43,169,182,45,6,1013,189,352,177,116,119,93,35,103,0,312,0,23,56,171,34,10,9,9,567,46,28,61,19,46,103,9,"Merrimack"]
["Bow","06500",2330,2301,11,0,12,0,0,0,6,0,2301,23,6,34,214,163,666,549,367,164,173,0,6,10,77,189,415,655,443,535,7.2,2304,144,666,423,560,331,180,353,240,156,1483,0,72,0,0,0,0,0,12,2304,2298,6,0,2053,0,128,585,635,581,124,0,0,169400,1633,0,11,17,195,669,529,212,1451,420,411,648,427,404,282,74,208,10,110,0,0,0,74,36,0,0,0,720,36,30,0,15,0,29,0,"Merrimack"]
["Bradford","06980",762,673,7,15,24,12,9,0,22,0,673,67,22,3,19,40,96,117,99,96,292,13,13,53,153,146,146,82,82,74,5.5,559,73,158,76,146,67,39,4,106,27,339,2,79,2,0,0,7,2,2,559,554,3,2,283,19,95,100,48,16,5,0,0,110600,208,0,10,9,70,91,24,4,1075,75,427,72,64,40,39,16,47,5,99,0,0,27,37,28,5,0,2,634,16,14,13,9,11,31,5,"Merrimack"]
["Canterbury","09860",838,793,7,23,0,3,0,0,12,0,793,33,12,11,41,64,206,135,112,98,171,0,22,22,83,186,172,147,101,105,6.1,749,65,155,156,224,93,56,22,125,24,460,0,108,10,0,0,2,2,4,749,743,6,0,397,4,81,180,92,40,0,0,0,132900,309,0,4,18,94,129,48,16,1117,88,383,127,92,86,34,16,42,0,55,2,7,7,14,7,2,5,11,617,0,6,14,7,7,8,13,"Merrimack"]
["Chichester","12420",849,707,15,26,19,0,0,0,82,0,707,60,82,32,49,59,208,159,61,58,223,0,14,25,104,173,222,132,89,90,6,823,112,194,147,183,101,86,2,99,18,617,0,79,6,2,0,9,7,0,823,815,8,0,500,6,143,226,95,24,6,0,0,120000,375,0,7,30,115,172,47,4,1079,125,401,163,105,109,37,26,60,0,81,0,0,14,47,2,8,0,10,575,29,9,15,6,6,6,10,"Merrimack"]
["Concord","14200",16881,6874,662,1720,1621,1506,1231,2200,1067,0,6874,8940,1067,153,402,927,3529,2385,1606,1945,5934,310,595,2216,3896,3134,2648,1960,1066,1056,5,16281,3627,5455,2540,2169,1163,1327,7425,764,2861,4765,0,166,0,269,31,37,110,231,16281,16026,160,95,6068,79,2257,2416,741,400,151,24,0,112300,4338,7,49,290,1098,1993,574,327,1150,1730,464,1891,1191,1063,718,430,747,28,7872,321,406,1292,3411,1761,390,125,166,647,1346,1502,1310,891,564,2018,241,"Merrimack"]
["Danbury","16980",596,494,7,6,19,0,0,0,64,6,494,32,70,11,31,32,148,117,74,57,126,9,22,31,99,171,154,33,61,16,5.3,435,59,118,62,112,37,47,3,101,5,251,0,75,0,0,0,12,5,14,435,430,3,2,237,17,157,54,9,0,0,0,0,85300,165,0,8,39,62,45,9,2,926,72,332,70,51,47,22,8,34,5,50,0,3,13,14,12,2,0,6,650,7,6,6,0,5,20,6,"Merrimack"]
["Dunbarton","19460",858,801,15,9,17,0,0,0,16,0,801,41,16,22,124,77,163,138,61,99,174,3,8,23,80,136,221,186,109,92,6.3,814,97,270,141,180,63,63,0,99,17,610,0,88,0,0,0,2,2,2,814,808,6,0,517,2,95,169,177,60,14,0,0,148300,414,0,10,27,89,203,66,19,1159,103,386,182,104,72,57,45,57,0,53,0,0,10,24,2,9,0,8,709,10,9,19,2,2,3,8,"Merrimack"]
["Epsom","24900",1592,1069,25,92,29,8,20,13,326,10,1069,187,336,67,101,129,424,370,112,128,261,23,30,107,318,325,300,254,126,109,5.5,1491,211,490,252,320,177,41,0,254,72,1061,0,96,0,8,0,6,0,21,1491,1484,7,0,807,23,213,427,109,28,0,7,0,115400,653,0,21,58,234,266,67,7,1025,154,353,279,113,220,106,33,51,5,264,28,8,54,98,40,28,0,8,594,65,33,66,21,21,50,8,"Merrimack"]
["Franklin","27380",3676,2090,51,394,321,233,236,176,175,0,2090,1411,175,70,35,124,483,394,305,753,1512,6,131,529,715,613,748,408,243,283,5.2,3319,651,1029,478,547,228,386,774,249,271,1960,0,45,0,11,9,54,27,126,3319,3224,88,7,1587,99,1147,287,45,9,0,0,0,82900,1112,0,17,104,506,414,71,0,967,475,385,427,334,305,173,96,252,0,1390,131,196,289,552,148,37,0,37,524,225,217,147,222,78,435,66,"Merrimack"]
["Henniker","35540",1679,1064,60,98,143,156,41,16,94,7,1064,514,101,20,65,115,417,345,105,111,501,18,74,168,271,322,264,280,121,161,5.5,1585,268,423,258,336,206,94,36,362,124,816,10,232,0,0,5,27,7,18,1585,1557,22,6,708,16,250,243,151,19,22,7,0,113300,591,0,0,38,94,306,110,43,1211,117,497,168,118,110,151,47,101,13,464,38,16,102,161,69,51,0,27,588,72,67,85,95,31,81,33,"Merrimack"]
["Hill","35860",436,364,17,5,0,0,0,0,50,0,364,22,50,8,17,31,68,79,34,93,106,0,2,27,83,76,112,66,25,45,5.8,382,53,78,69,96,55,31,0,41,3,271,0,67,0,0,0,7,0,8,382,374,6,2,212,6,135,54,11,2,2,2,0,88500,165,0,12,36,63,47,5,2,827,47,316,72,39,26,24,9,40,2,37,0,0,0,11,7,3,0,16,696,4,0,11,0,6,0,16,"Merrimack"]
["Hooksett","37300",4307,2641,431,274,245,81,17,352,266,0,2641,1400,266,127,341,346,1232,790,520,455,496,17,111,209,632,934,966,789,503,146,5.8,4147,637,1390,656,780,370,314,1161,284,191,2375,9,67,0,35,25,41,8,9,4147,4093,39,15,2658,6,449,1155,672,343,26,7,0,135700,2128,0,14,93,376,1097,402,146,1227,530,440,836,587,403,414,160,250,8,841,26,22,84,455,125,81,0,48,643,170,153,146,42,44,227,59,"Merrimack"]
["Hopkinton","37540",2210,1829,44,96,34,49,0,35,123,0,1829,258,123,60,193,140,465,343,209,228,572,0,29,93,163,335,550,355,298,387,6.4,2084,259,595,314,517,249,150,18,394,103,1457,0,100,0,12,0,7,12,0,2084,2078,6,0,1350,26,255,423,256,271,113,6,0,146400,965,0,7,34,210,331,227,156,1372,385,517,463,227,202,165,71,215,7,264,0,25,60,84,48,25,6,16,621,80,17,32,36,10,73,16,"Merrimack"]
["Loudon","43380",1684,1306,13,53,29,13,0,0,270,0,1306,108,270,55,103,150,536,227,131,146,336,0,8,72,188,473,367,263,160,153,5.8,1611,179,343,325,462,159,143,59,336,27,1025,6,152,0,6,0,0,0,0,1611,1605,6,0,922,6,311,469,104,32,0,0,0,114800,732,0,6,64,257,332,66,7,1039,190,362,256,183,217,80,59,120,7,138,0,0,20,59,18,5,0,36,588,46,17,0,7,0,32,36,"Merrimack"]
["New London","52100",2085,1636,179,51,53,72,0,88,0,6,1636,443,6,67,196,127,476,279,210,270,460,6,68,114,168,309,443,403,264,310,6.4,1574,323,354,263,360,141,133,33,321,117,1033,8,62,0,0,0,0,0,6,1574,1559,0,15,979,6,21,132,284,338,112,74,12,215500,488,0,6,13,88,136,133,112,1502,491,529,370,161,137,114,16,176,5,277,8,22,61,120,17,0,9,40,546,31,49,28,61,0,68,40,"Merrimack"]
["Newbury","50900",1313,1261,30,7,4,0,0,0,11,0,1261,41,11,24,76,90,245,249,124,215,290,3,20,79,192,262,317,181,132,127,5.8,694,109,186,117,165,57,60,4,194,24,380,2,85,0,5,0,2,1,0,694,694,0,0,495,2,109,156,104,63,38,15,8,143200,354,0,6,42,93,125,58,30,1122,141,396,148,88,89,62,47,61,0,83,0,0,9,24,27,11,2,10,775,14,8,18,8,7,18,10,"Merrimack"]
["Northfield","54260",1782,1081,46,96,92,136,14,107,210,0,1081,491,210,12,60,143,481,344,144,194,404,9,49,62,507,418,347,181,98,111,5.0999999999999996,1706,373,372,266,389,216,90,261,243,126,963,0,106,0,0,7,0,6,15,1706,1667,22,17,801,14,489,258,27,7,6,0,0,93100,640,0,22,66,257,229,66,0,972,161,406,207,205,125,98,54,112,0,548,35,23,27,337,67,13,0,46,595,70,73,116,74,65,97,53,"Merrimack"]
["Pembroke","60020",2734,1578,132,225,267,260,18,108,146,0,1578,1010,146,23,46,81,638,521,260,305,860,8,95,285,391,535,429,433,275,283,5.6,2661,328,741,421,695,226,250,519,341,183,1484,8,88,0,29,9,0,0,0,2661,2615,29,17,1471,8,440,802,190,31,0,0,0,112500,1140,0,0,54,279,593,158,56,1153,331,464,351,317,292,148,120,226,17,853,38,19,197,430,122,19,0,28,562,160,102,193,88,75,207,28,"Merrimack"]
["Pittsfield","61940",1569,878,15,101,137,135,53,132,118,0,878,573,118,40,72,94,321,159,51,134,698,10,74,177,274,324,283,178,44,205,5.3,1498,258,468,228,234,142,168,105,286,42,966,0,99,0,0,0,10,10,46,1498,1474,24,0,604,26,328,183,48,12,0,7,0,92900,438,0,8,24,131,227,20,28,1089,166,468,161,121,67,50,67,138,0,573,36,34,184,224,68,7,0,20,516,74,65,84,144,19,167,20,"Merrimack"]
["Salisbury","66980",514,481,5,10,1,0,0,0,17,0,481,16,17,7,27,25,133,80,62,43,137,2,7,23,77,117,124,57,54,53,5.8,435,62,98,56,127,55,37,2,57,8,271,0,94,0,3,0,2,0,2,435,431,4,0,272,4,127,102,33,6,0,0,0,101500,223,0,9,35,72,86,21,0,984,49,320,81,52,44,33,18,42,2,14,0,0,1,4,6,0,0,3,813,3,2,0,0,2,4,3,"Merrimack"]
["Sutton","75460",824,766,13,30,2,0,0,0,13,0,766,45,13,6,13,58,180,123,75,128,241,25,16,73,106,161,161,133,70,79,5.7,618,69,112,108,200,81,48,7,150,16,340,0,101,4,0,0,11,7,4,618,609,7,2,388,9,100,145,64,43,19,8,0,122100,286,0,8,30,96,106,38,8,1032,102,448,108,60,57,61,27,75,0,81,0,2,9,27,21,12,0,10,719,11,22,7,8,2,19,12,"Merrimack"]
["Warner","78580",1228,921,8,41,58,39,12,15,134,0,921,173,134,17,58,108,207,137,114,123,464,16,34,129,235,234,235,108,113,124,5.4,1048,137,284,174,293,87,73,4,206,30,667,11,117,4,7,2,12,5,15,1048,1024,18,6,496,26,168,188,71,30,11,0,2,112700,341,0,6,39,126,116,30,24,999,155,401,177,85,74,52,30,73,5,225,17,6,54,85,22,24,0,17,573,40,35,28,27,15,63,17,"Merrimack"]
["Webster","80020",672,614,8,0,4,0,0,0,43,3,614,12,46,9,57,53,126,125,126,70,106,3,2,39,74,174,153,101,62,64,5.8,581,53,167,82,146,70,63,2,120,6,358,0,95,0,0,0,10,4,4,581,579,2,0,364,5,146,149,49,15,0,0,0,108200,276,0,3,27,93,115,36,2,1049,88,400,88,91,77,46,29,29,4,38,0,2,4,16,7,4,0,5,629,13,0,5,4,3,6,7,"Merrimack"]
["Wilmot","84900",530,470,8,17,8,12,0,0,15,0,470,45,15,6,29,46,119,69,51,43,167,10,18,26,60,78,136,78,66,58,6,459,59,119,74,124,57,26,0,110,2,317,0,30,0,0,0,5,5,4,459,458,0,1,270,2,41,114,36,59,13,5,0,141300,196,0,3,13,58,82,28,12,1122,74,446,62,55,29,30,27,67,0,56,0,0,12,26,0,10,0,8,575,11,2,3,9,6,17,8,"Merrimack"]
[]
[]
[]
[]
[]
[]
[]
[]
[]
[]
[]
[]
[]
[]
[]
[]
[]
[]
[]
[]
[]
[]
["Census 2000 SummaryFile3 Sample Data  -  SF3TownQry1SocialChar"]
[]
["TOWN_NAME","LOGRECNO","COUSUB","P01TotalPopulation","P02SampleCountOfPop","P03Pop100pctCount","P05UrbanPopulation","P05RuralPopulation","P06WhiteAlone","P06BlackOrAfAm","P06AmIndAlone","P06AsianAlone","P06HawaiianOrPI","P06OtherRace","P06TwoPlusRaces","P07NotHispanicOrLatino","P07HispanicOrLatino","P08MalePop","P08FemalePop","P09PopInHouseholds","P09PopInFamHH","P09PopInNonFamHH","P09PopInGroupQtr","P13TotalHH","P13FamilyHH","P13FamHHolder15to24yrs","P13FamHHolder25to34yrs","P13FamHHolder35to44yrs","P13FamHHolder45to54yrs","P13FamHHolder55to64yrs","P13FamHHolder65to74yrs","P13FamHHolder75to84yrs","P13FamHHolder85yrsOver","P13NonFamilyHH","P13NonFamHHolder15to24yrs","P13NonFamHHolder25to34yrs","P13NonFamHHolder35to44yrs","P13NonFamHHolder45to54yrs","P13NonFamHHolder55to64yrs","P13NonFamHHolder65to74yrs","P13NonFamHHolder75to84yrs","P13NonFamHHolder85yrsOver","P18Pop15yrsOver","P18MaritalStatNeverMarried","P18MaritalStatNowMarried","P18MaritalStatSeparated","P18MaritalStatWidowed","P18MaritalStatWidowFemale","P18MaritalStatDivorced","P18MaritalStatDivorcedFemale","P21NativeBornPop","P21NatPopBornInState","P21NatPopBornOtherState","P021005","P021006","P021007","P021008","P21NatPopBornOutUS","P21ForeignBornPop","P021014","P021015","P24Pop5YrsPlus","P24ResSameHouseIn95","P24ResDiffHouseIn95","P24ResDiffHouseInUSIn95","P24ResDiffHouseSameCountyIn95","P24ResDiffHouseDiffCountyIn95","P24ResDiffHouseDiffCntySamStIn95","P24ResDiffHouseDiffCntyDifStIn95","P24ResDiffHouseDiffCntyNEStIn95","P24ResDiffHouseDiffCntyMWStIn95","P24ResDiffHouseDiffCntySoStIn95","P24ResDiffHouseDiffCntyWstStIn95","P24ResDiffInPR","P24ResDiffElsewhereIn95","P26Workers16yrsOver","P26WorkedInState","P26WorkedInCnty","P26WorkedOutsideCnty","P26WorkedOutsideState","P30Workers16Over","P30TranspToWrkCar","P30TranspToWrkPublic","P30TranspToWrkOther","P30WrkdAtHome","P31WrkrsNotWrkAtHom","P31TravTim<5min","P31TravTim5to9Min","P31TravTim10to14Min","P31TravTim15to19Min","P31TravTim20to24Min","P31TravTim25to29Min","P31TravTim30to34Min","P31TravTim35to39Min","P31TravTim40to44Min","P31TravTim45to59Min","P31TravTim60to89Min","P31TravTim90MinMore","P31WorkAtHome","P36SchEnrlPop3yrOver","P36NurserSchEnrl","P36KinderSchEnrl","P36ElemSchEnrl","P36HighSchEnrl","P36CollGradSchEnrl","P37Pop25yrsOver","P37EduAtain<9grd","P37EduAtainHSnoDip","P37EduAtainHSgrad","P37EduAtainCollNoDeg","P37EduAtainAssocDeg","P37EduAtainBachDeg","P37EduAtainGradProfDeg","P42NIPop5to15","P42NIPop5to15wDisabl","P42NIPop16to20","P42NIPop16to20wDisab","P42NIPop16to20wDisEmp","P42NIPop16to21NoDis","P42NIPop16to21NoDisEmpl","P42NIPop21to64","P42NIPop21to64wDis","P42NIPop21to64wDisEmp","P42NIPop21to64NoDis","P42NIPop21to64NoDisEmp","P42NIPop65to74","P42NIPop65to74wDis","P42NIPop75Over","P42NIPop75OverwDis","P43Pop16YrsOver","P43Pop16OvrInLaborForce","P43Pop16OvrCivlLabFrc","P43Pop16OvrCivlLbrFrcEmp","P48Families","P48MarriedFam","P48MarrFamNoWorkers","P48MarrFam1Worker","P48MarrFam2Worker","P48MarrFamHusbWifeWorked","P48MarrFamOther","P48MarrFam3PlusWorker","P48MarrFam3WorkHsbWif","P48MarrFam3PlsWrkOther","P48OtherFam","P48MaleHHNoWif","P48MaleHHNoWifNoWorker","P48MaleHHNoWif1Worker","P48MaleHHNoWif2Worker","P48MaleHHNoWif3PlusWorker","P48FemaleHHNoHsb","P48FemaleHHNoHsbNoWorker","P48FemaleHHNoHsb1Worker","P48FemaleHHNoHsb2Worker","P48FemaleHHNoHsb3Worker","P49EmpCivPop16YrOver","P49IndustAgricult","P49IndustConst","P49IndustMnftg","P49IndustWhlslTrd","P49IndustRtlTrd","P49IndustTrspWrhsUtlt","P49IndustInfrm","P49IndustFinInsRE","P49IndustPrfsScntfMngmt","P49IndustEduHlthSocSrv","P49IndustArtsEntRec","P49IndustOthrSrvc","P49IndustPubAdm","P50OccupMngmtProfs","P50OccupService","P50OccupSalesOff","P50OccupFarmFishForest","P50OccupConstExtrctMaint","P50OccupPrdctTrnspMatMv"]
["Allenstown","0002575","00660",4843,707,4843,2951,1892,4695,44,7,0,0,16,81,4812,31,2344,2499,4808,4014,794,35,1901,1277,29,259,413,305,121,105,36,9,624,17,99,89,91,101,96,83,48,3705,820,2029,66,311,275,479,245,4727,2983,1706,1484,89,62,71,38,116,72,44,4524,2494,2030,1996,875,1121,900,221,121,16,63,21,0,34,2647,2582,1592,990,65,2647,2537,0,642,74,2573,65,113,213,366,591,167,486,80,63,226,144,59,74,4676,89,44,682,302,111,3202,323,323,1283,755,207,219,92,882,115,256,25,25,231,190,2853,577,425,2276,1964,267,99,239,120,3615,2731,2731,2664,1277,998,107,197,552,533,19,142,124,18,279,102,0,72,27,3,177,4,97,37,39,2664,21,327,506,71,470,46,52,227,191,362,112,90,189,581,376,794,8,417,488]
["Andover","0002590","01460",2109,966,2109,0,2109,2052,25,0,2,0,0,30,2090,19,1057,1052,2095,1826,269,14,814,600,5,107,144,159,94,60,27,4,214,9,13,37,52,34,34,24,11,1696,362,1053,13,88,69,180,81,2062,1190,864,655,86,83,40,8,47,23,24,1978,1250,728,706,450,256,104,152,104,0,14,34,0,22,1140,1107,871,236,33,1140,1024,4,10,62,1078,70,85,115,141,146,70,127,69,72,124,53,6,62,2025,42,14,228,134,69,1468,58,150,496,289,108,222,145,313,24,138,8,3,130,80,1255,168,105,1087,935,156,52,113,57,1665,1210,1207,1161,600,509,43,78,317,313,4,71,71,0,91,34,0,23,11,0,57,10,24,19,4,1161,11,123,150,40,138,32,20,73,67,299,78,68,62,341,169,304,8,190,149]
["Boscawen","0002596","06260",3672,553,3672,1284,2388,3588,23,0,11,25,12,13,3630,42,1731,1941,3242,2812,430,430,1251,908,21,161,243,222,142,58,37,24,343,8,27,112,36,47,61,33,19,2901,548,1657,93,261,204,342,158,3538,2232,1273,978,114,90,91,33,134,37,97,3464,2077,1387,1312,842,470,191,279,94,19,115,51,0,75,1724,1706,1479,227,18,1724,1665,0,9,40,1684,118,187,160,323,346,208,155,27,56,47,47,10,40,3527,21,53,453,103,123,2549,232,302,956,438,226,327,68,598,63,150,22,0,128,123,1911,370,222,1541,1325,207,79,168,86,2866,1776,1776,1741,908,698,37,172,408,394,14,81,73,8,210,59,6,43,10,0,151,23,68,38,22,1741,19,135,327,51,248,61,21,122,124,336,57,51,189,460,221,479,13,181,387]
["Bow","0002606","06500",7138,773,7138,2818,4320,6998,10,0,70,0,7,53,7111,27,3549,3589,7138,6822,316,0,2291,2044,0,166,722,600,344,165,34,13,247,0,9,17,91,25,73,22,10,5237,981,3793,17,235,199,211,115,6971,3630,3274,2363,292,365,254,67,167,124,43,6682,4390,2292,2271,1206,1065,432,633,328,96,59,150,0,21,3654,3492,2501,991,162,3654,3431,0,7,216,3438,21,237,652,733,621,210,349,67,75,212,173,88,216,6939,230,79,1233,572,233,4556,54,194,945,873,420,1378,692,1614,116,450,13,0,437,177,4019,300,171,3719,3261,376,99,223,136,5068,3762,3762,3717,2044,1857,103,311,1203,1102,101,240,240,0,187,45,0,28,17,0,142,24,97,8,13,3717,9,220,381,121,402,125,96,506,464,938,70,131,254,1921,259,1028,21,212,276]
["Bradford","0002617","06980",1454,711,1454,0,1454,1412,8,7,5,0,4,18,1446,8,729,725,1433,1242,191,21,557,407,8,52,105,124,43,57,13,5,150,5,18,15,38,27,31,11,5,1155,267,694,15,55,45,124,74,1422,630,783,605,67,77,34,9,32,7,25,1375,822,553,542,281,261,156,105,50,3,39,13,0,11,813,773,631,142,40,813,731,0,8,56,757,24,49,44,101,114,64,83,52,38,103,44,41,56,1409,22,23,189,85,58,978,14,60,286,216,86,209,107,247,17,88,13,9,75,49,862,150,101,712,619,122,35,55,27,1128,851,850,821,407,334,30,59,179,171,8,66,63,3,73,16,0,16,0,0,57,8,26,20,3,821,14,97,82,21,103,17,6,58,65,171,83,29,75,259,123,199,4,117,119]
["Canterbury","0002622","09860",1979,933,1979,2,1977,1950,5,2,12,0,0,10,1973,6,958,1021,1976,1772,204,3,750,595,3,57,138,217,104,44,30,2,155,2,9,34,38,34,16,18,4,1586,312,1045,25,62,55,142,74,1939,983,940,731,65,96,48,16,40,21,19,1873,1339,534,532,275,257,118,139,83,4,52,0,0,2,1119,1071,854,217,48,1119,973,2,12,113,1006,25,52,91,138,236,92,141,17,65,64,46,39,113,1901,30,19,239,128,73,1402,33,53,335,262,110,333,276,320,10,107,22,7,85,43,1244,131,79,1113,976,108,17,94,47,1553,1174,1174,1147,595,510,41,74,335,322,13,60,57,3,85,26,1,19,6,0,59,0,37,22,0,1147,35,76,122,40,106,18,30,94,138,250,54,59,125,548,127,277,8,94,93]
["Chichester","0002629","12420",2236,976,2236,0,2236,2212,0,2,3,0,0,19,2226,10,1132,1104,2228,1992,236,8,827,640,6,107,197,176,67,61,18,8,187,0,19,27,40,22,55,11,13,1740,317,1174,7,102,78,140,64,2214,1435,759,613,30,87,29,20,22,10,12,2099,1380,719,717,392,325,186,139,113,2,15,9,0,2,1262,1217,962,255,45,1262,1158,9,17,56,1206,39,88,201,176,208,77,157,38,41,107,39,35,56,2154,33,25,281,135,76,1538,29,119,549,275,179,244,143,380,19,129,13,8,116,76,1355,171,108,1184,1046,149,19,78,33,1719,1289,1289,1272,640,559,52,87,319,309,10,101,95,6,81,29,0,17,10,2,52,4,29,17,2,1272,22,120,152,61,161,41,35,107,77,228,58,75,135,430,151,383,11,157,140]
["Concord","0002635","14200",40687,5411,40687,34538,6149,38838,487,43,564,0,97,658,40334,353,20149,20538,37410,29355,8055,3277,16325,9748,303,1734,2771,2238,1156,847,547,152,6577,533,1256,1075,1085,717,694,785,432,32995,9209,16520,515,2570,2147,4181,2443,38950,22061,16514,12001,1568,1708,1237,375,1737,787,950,38356,18332,20024,19530,11077,8453,3976,4477,2547,189,1087,654,6,488,20045,19466,15864,3602,579,20045,18272,245,95,618,19427,896,3328,4223,3641,2061,789,1682,451,433,891,555,477,618,39312,716,474,4437,2388,2510,27940,1064,2121,7845,6151,2182,5090,3487,5920,509,2346,326,182,2020,1126,22423,3864,2376,18559,16070,2258,717,2568,1290,32362,21145,21118,20337,9748,7325,912,1126,4222,4095,127,1065,1021,44,2423,479,46,319,86,28,1944,220,1182,469,73,20337,86,1138,2062,736,2736,493,480,1707,1975,4930,1119,1186,1689,8010,2857,5697,8,1640,2125]
["Danbury","0002701","16980",1071,465,1071,0,1071,1059,0,0,4,0,0,8,1064,7,557,514,1071,912,159,0,435,313,12,31,94,78,44,36,13,5,122,5,11,25,24,21,16,10,10,876,186,528,8,51,42,103,45,1058,610,444,353,32,42,17,4,13,9,4,1026,633,393,387,161,226,119,107,63,2,15,27,0,6,532,503,291,212,29,532,502,0,7,18,514,10,30,43,76,66,22,75,21,28,77,32,34,18,1046,7,25,103,88,31,750,39,89,306,142,40,97,37,160,12,83,11,6,72,32,643,114,61,529,440,87,16,53,34,866,581,581,561,313,260,25,72,133,126,7,30,28,2,53,14,0,12,2,0,39,6,22,11,0,561,7,60,146,8,69,26,5,15,24,89,53,33,26,163,86,89,5,76,142]
["Dunbarton","0002706","19460",2226,963,2226,0,2226,2194,0,13,4,0,2,13,2214,12,1124,1102,2226,1997,229,0,822,657,5,100,244,141,98,57,12,0,165,2,10,33,57,26,13,18,6,1706,265,1235,16,54,43,136,80,2151,1145,986,739,95,98,54,20,75,49,26,2049,1159,890,877,303,574,410,164,85,14,30,35,0,13,1280,1201,575,626,79,1280,1180,8,2,83,1197,30,9,69,143,273,177,193,46,48,103,62,44,83,2137,44,22,282,94,81,1545,20,66,385,335,152,372,215,370,18,95,12,6,83,35,1419,161,119,1258,1098,115,31,48,19,1679,1308,1306,1282,657,614,19,131,396,377,19,68,65,3,43,16,0,13,3,0,27,0,19,2,6,1282,15,93,180,66,136,47,49,94,142,267,38,47,108,545,93,349,11,128,156]
["Epsom","0002712","24900",4021,631,4021,0,4021,3993,11,0,0,0,0,17,4021,0,1892,2129,3903,3399,504,118,1486,1098,10,198,317,249,145,120,35,24,388,18,35,78,121,54,23,45,14,3181,559,2126,14,100,86,382,199,3932,2473,1459,1090,122,151,96,0,89,61,28,3780,2349,1431,1427,845,582,287,295,57,29,128,81,0,4,2112,2040,1551,489,72,2112,2000,9,0,46,2066,63,106,174,405,370,156,266,96,98,175,99,58,46,3890,65,42,491,209,124,2822,87,245,967,548,342,493,140,653,51,173,39,28,134,61,2394,504,368,1890,1599,279,114,163,75,3127,2193,2193,2124,1098,948,111,155,548,527,21,134,131,3,150,29,0,24,0,5,121,23,57,21,20,2124,18,147,266,87,297,141,31,223,155,372,101,99,187,663,214,709,0,251,287]
["Franklin","0002721","27380",8405,957,8405,6934,1471,8042,31,61,85,0,57,129,8205,200,4131,4274,8187,6770,1417,218,3334,2213,121,390,588,519,216,228,132,19,1121,79,152,134,139,216,213,157,31,6649,1567,3426,124,536,417,996,601,8187,5320,2806,2141,162,297,206,61,218,127,91,7844,3981,3863,3790,2033,1757,1034,723,376,10,204,133,0,73,3873,3855,2603,1252,18,3873,3645,7,14,85,3788,262,759,542,392,259,300,632,130,129,149,168,66,85,8051,163,133,961,541,222,5497,405,679,2017,1182,464,564,186,1315,126,606,144,38,462,255,4696,1136,500,3560,3004,600,216,550,276,6529,4300,4300,3949,2213,1550,190,341,758,743,15,261,255,6,663,170,5,112,45,8,493,45,311,125,12,3949,36,276,950,98,629,130,56,223,146,847,224,131,203,919,575,1115,20,410,910]
["Henniker","0002743","35540",4433,624,4433,0,4433,4287,55,0,34,0,0,57,4410,23,2251,2182,3998,3245,753,435,1586,1034,37,119,300,366,118,48,38,8,552,88,53,91,89,81,45,83,22,3551,1071,1950,20,181,160,329,167,4347,1953,2316,1576,258,232,250,78,86,56,30,4209,2137,2072,2015,777,1238,557,681,375,96,107,103,0,57,2270,2232,1520,712,38,2270,1971,10,11,128,2142,246,377,183,157,171,261,235,61,129,159,93,70,128,4291,49,85,553,278,800,2577,71,167,548,474,215,771,331,747,65,541,62,51,479,219,2571,327,178,2244,1780,146,48,204,100,3462,2625,2625,2330,1034,827,27,200,472,472,0,128,110,18,207,49,7,15,27,0,158,24,82,28,24,2330,12,167,217,106,354,82,46,134,232,571,185,52,172,928,307,658,5,192,240]
["Hill","0002754","35860",992,450,992,0,992,986,4,0,2,0,0,0,989,3,502,490,992,845,147,0,388,278,0,50,72,78,42,25,8,3,110,8,6,19,26,16,16,16,3,783,171,470,10,28,17,104,67,991,557,421,322,25,45,29,13,1,1,0,943,578,365,363,129,234,186,48,28,0,10,10,0,2,549,529,312,217,20,549,526,0,5,12,537,13,27,23,75,65,35,72,22,32,99,45,29,12,969,13,21,128,60,19,683,18,80,299,147,54,66,19,176,8,68,5,5,63,42,599,87,50,512,454,56,17,44,18,767,574,574,562,278,233,21,33,149,144,5,30,30,0,45,19,0,7,12,0,26,7,16,3,0,562,17,81,128,9,69,30,2,36,42,72,30,21,25,120,78,144,2,109,109]
["Hooksett","0002759","37300",11721,1215,11721,7990,3731,11223,127,24,255,0,0,92,11671,50,5858,5863,10855,9498,1357,866,4140,3072,56,502,993,705,415,221,135,45,1068,20,150,226,275,137,150,95,15,9300,2002,5879,65,438,375,916,450,11145,6463,4618,3766,431,373,48,64,576,403,173,10992,5797,5195,5116,1366,3750,2415,1335,921,182,121,111,0,79,6285,5770,2026,3744,515,6285,5706,103,1046,224,6061,191,525,793,1053,1210,513,670,112,144,305,364,181,224,11323,205,146,1400,620,1341,7484,300,556,2182,1390,858,1520,678,1847,93,1162,154,69,1008,492,6930,927,622,6003,5072,591,229,462,270,9145,7065,7065,6442,3072,2564,198,467,1554,1497,57,345,345,0,508,136,17,84,17,18,372,19,206,118,29,6442,0,434,944,287,790,373,247,465,517,1355,425,323,282,2233,623,2133,6,650,797]
["Hopkinton","0002799","37540",5399,853,5399,0,5399,5346,5,12,6,0,0,30,5342,57,2571,2828,5399,4745,654,0,2084,1560,16,185,377,447,272,172,69,22,524,0,18,101,133,84,75,78,35,4201,675,2804,57,224,184,441,291,5210,2324,2848,2176,305,210,157,38,189,67,122,5116,2909,2207,2096,1127,969,418,551,335,50,131,35,6,105,2732,2679,2054,625,53,2732,2556,0,7,142,2590,129,244,194,418,656,170,284,67,67,165,138,58,142,5222,97,50,765,297,248,3736,37,141,775,684,342,1008,749,973,22,282,10,10,272,115,3138,430,302,2708,2245,401,109,316,147,4143,2836,2830,2750,1560,1376,152,274,803,749,54,147,134,13,184,39,0,33,6,0,145,0,87,44,14,2750,16,160,258,89,314,60,68,180,377,785,111,113,219,1347,255,725,10,215,198]
["Loudon","0002813","43380",4481,692,4481,0,4481,4430,0,5,4,0,0,42,4465,16,2207,2274,4479,4011,468,2,1618,1277,16,229,427,325,156,98,26,0,341,0,27,51,130,51,39,37,6,3450,727,2114,53,185,141,371,178,4416,2719,1689,1331,117,157,84,8,65,33,32,4176,2868,1308,1282,727,555,255,300,146,24,45,85,0,26,2436,2364,1911,453,72,2436,2220,10,7,177,2259,112,115,262,380,499,99,329,139,60,67,141,56,177,4285,63,87,605,272,222,2952,80,189,1041,699,285,416,242,807,88,279,33,18,246,157,2716,334,169,2382,2123,249,80,125,70,3369,2555,2555,2504,1277,1038,62,192,621,591,30,163,157,6,239,76,0,61,0,15,163,18,90,49,6,2504,49,233,363,103,234,165,27,168,185,456,96,148,277,993,307,545,6,292,361]
["New London","0002826","52100",4116,664,4116,0,4116,4042,0,6,36,0,8,24,4103,13,1820,2296,3406,2876,530,710,1585,1095,9,23,177,230,206,246,178,26,490,18,31,24,93,41,91,139,53,3634,866,2205,7,377,311,179,125,3954,1159,2783,2167,219,242,155,12,162,84,78,4008,2148,1860,1813,440,1373,501,872,623,50,153,46,0,47,1645,1588,1229,359,57,1645,1244,0,5,179,1466,312,327,195,99,72,64,86,56,56,123,30,46,179,4056,67,35,265,189,709,2770,30,76,313,512,185,1080,574,409,3,535,32,6,503,222,1839,158,85,1681,1285,580,90,587,136,3599,1927,1927,1699,1095,999,346,148,415,409,6,90,90,0,96,17,0,17,0,0,79,0,48,23,8,1699,25,84,107,82,203,9,81,124,173,574,141,40,56,889,223,441,11,87,48]
["Newbury","0002820","50900",1705,795,1702,0,1705,1644,4,2,7,0,28,20,1669,36,889,816,1705,1442,263,0,690,492,2,51,130,123,76,78,28,4,198,3,21,24,46,32,37,30,5,1388,266,887,14,89,74,132,74,1597,639,957,801,47,66,43,1,108,40,68,1626,1035,591,562,194,368,176,192,136,0,38,18,0,29,934,881,631,250,53,934,891,0,7,30,904,6,75,102,196,128,38,79,51,77,87,34,31,30,1657,19,13,219,97,84,1228,8,74,288,250,103,350,155,260,12,97,17,11,80,41,984,86,62,898,771,186,39,99,40,1366,979,979,952,492,432,58,84,234,230,4,56,54,2,60,19,0,11,7,1,41,0,22,16,3,952,10,122,100,32,98,28,15,45,82,257,75,49,39,368,145,214,10,138,77]
["Northfield","0002833","54260",4548,673,4548,1774,2774,4491,13,14,0,0,0,30,4538,10,2260,2288,4489,3835,654,59,1704,1211,39,190,390,291,160,70,64,7,493,41,89,63,117,43,56,72,12,3515,898,1912,57,185,163,463,242,4463,2838,1583,1321,44,151,67,42,85,45,40,4285,2397,1888,1874,800,1074,761,313,192,14,85,22,0,14,2437,2373,1228,1145,64,2437,2315,0,25,37,2400,120,252,330,296,410,251,280,37,92,129,148,55,37,4397,73,68,676,285,196,2923,157,380,1073,619,251,327,116,793,39,310,31,16,279,157,2721,449,242,2272,1967,221,44,181,102,3433,2526,2526,2465,1211,940,76,158,546,520,26,160,148,12,271,121,5,96,20,0,150,18,87,31,14,2465,6,196,593,59,403,27,31,74,114,533,192,77,160,607,426,568,6,368,490]
["Pembroke","0002848","60020",6897,760,6897,4561,2336,6771,29,17,0,0,0,80,6877,20,3435,3462,6897,5919,978,0,2660,1885,57,296,605,439,254,156,68,10,775,84,68,154,181,80,77,92,39,5392,1347,3131,36,267,197,611,329,6837,4124,2698,2196,148,249,105,15,60,50,10,6455,3948,2507,2459,1313,1146,878,268,104,0,62,102,0,48,3866,3690,2562,1128,176,3866,3633,14,30,126,3740,144,285,541,735,573,286,554,59,55,260,173,75,126,6647,121,79,922,459,370,4523,234,349,1562,933,481,689,275,1191,132,483,122,76,361,248,4104,682,434,3422,3061,390,144,287,100,5264,4041,4041,3926,1885,1529,121,188,867,841,26,353,339,14,356,160,9,107,40,4,196,32,123,27,14,3926,14,236,584,263,590,155,91,324,350,751,196,129,243,1202,454,1284,0,420,566]
["Pittsfield","0002869","61940",3931,610,3931,0,3931,3805,14,9,0,0,2,101,3876,55,1876,2055,3925,3392,533,6,1496,1061,64,175,355,219,118,84,40,6,435,26,80,37,60,65,89,53,25,3004,726,1763,111,162,133,242,134,3818,2411,1383,1031,55,114,183,24,113,41,72,3664,2250,1414,1363,779,584,301,283,193,12,30,48,0,51,2018,1991,1485,506,27,2018,1902,6,11,35,1983,93,211,185,112,186,148,383,81,167,252,113,52,35,3779,82,75,553,203,95,2497,158,372,925,468,248,244,82,727,80,261,52,37,209,128,2259,431,249,1828,1562,256,78,154,113,2937,2140,2133,2077,1061,843,64,161,515,457,58,103,103,0,218,50,7,42,0,1,168,17,104,41,6,2077,49,157,448,73,265,76,24,154,125,331,88,149,138,464,307,518,21,267,500]
["Salisbury","0002880","66980",1137,510,1137,0,1137,1125,0,2,0,0,0,10,1137,0,576,561,1137,989,148,0,434,325,6,47,90,81,68,23,10,0,109,2,3,14,34,23,19,12,2,917,148,625,4,49,41,91,39,1121,667,450,368,33,36,13,4,16,12,4,1069,727,342,332,229,103,52,51,47,0,2,2,0,10,650,620,487,133,30,650,602,2,5,25,625,11,33,65,39,60,56,149,46,31,77,31,27,25,1100,20,13,135,71,38,792,13,66,255,193,70,135,60,172,15,71,10,6,61,31,717,100,68,617,534,72,17,37,20,897,675,675,664,325,306,12,55,191,180,11,48,42,6,19,5,0,1,1,3,14,0,7,7,0,664,15,40,127,17,63,23,25,28,61,151,20,29,65,185,95,188,11,73,112]
["Sutton","0002885","75460",1541,711,1544,0,1541,1504,2,0,12,2,4,17,1521,20,757,784,1528,1347,181,13,613,461,2,41,132,116,84,63,21,2,152,2,4,27,48,30,15,24,2,1276,216,853,31,52,46,124,65,1493,681,790,580,78,76,56,22,48,24,24,1478,1014,464,464,181,283,121,162,100,21,22,19,0,0,842,783,631,152,59,842,756,10,1,56,786,15,57,118,167,81,55,59,29,49,70,52,34,56,1500,21,17,165,104,85,1113,36,66,283,255,102,225,146,213,9,125,10,7,115,68,906,161,89,745,637,135,24,97,53,1265,885,883,847,461,408,44,92,215,195,20,57,57,0,53,18,0,10,6,2,35,3,24,7,1,847,8,113,101,14,101,31,18,58,70,176,82,50,25,311,104,220,9,104,99]
["Warner","0002891","78580",2760,1211,2760,0,2760,2728,2,0,8,0,12,10,2709,51,1369,1391,2646,2280,366,114,1057,742,4,99,204,214,101,80,33,7,315,9,25,46,56,57,40,62,20,2204,503,1309,31,110,99,251,145,2662,1274,1377,1063,114,108,92,11,98,48,50,2610,1626,984,925,435,490,127,363,197,45,69,52,0,59,1349,1306,1068,238,43,1349,1221,0,5,87,1262,51,117,147,88,192,143,178,41,53,124,78,50,87,2675,40,41,350,132,204,1865,66,193,512,351,158,364,221,454,35,174,17,7,157,44,1644,259,149,1385,1115,188,62,148,51,2156,1440,1438,1377,742,616,64,112,354,339,15,86,79,7,126,32,2,14,16,0,94,12,42,33,7,1377,22,130,212,62,168,33,37,68,103,317,95,64,66,508,177,316,16,152,208]
["Webster","0002897","80020",1579,756,1579,0,1579,1538,0,2,0,0,4,35,1573,6,762,817,1575,1390,185,4,590,467,4,62,128,131,77,42,14,9,123,6,18,24,31,15,8,16,5,1246,232,837,14,54,48,109,61,1559,1028,521,422,55,36,8,10,20,15,5,1475,997,478,478,351,127,60,67,43,4,13,7,0,0,872,854,712,142,18,872,807,3,8,48,824,9,19,52,104,172,117,181,16,28,66,44,16,48,1508,8,19,193,86,58,1092,31,50,433,229,94,189,66,259,33,81,15,13,66,42,979,151,94,828,709,84,16,65,30,1216,912,905,885,467,404,36,66,242,229,13,60,56,4,63,16,0,9,7,0,47,3,9,31,4,885,25,69,113,60,98,27,25,71,50,169,42,49,87,266,132,252,19,75,141]
["Wilmot","0002902","84900",1144,511,1144,0,1144,1126,5,0,10,3,0,0,1142,2,546,598,1144,985,159,0,454,326,5,35,96,83,47,34,17,9,128,0,16,10,36,31,21,12,2,894,152,567,15,35,30,125,75,1110,476,622,488,77,33,24,12,34,12,22,1079,653,426,424,210,214,77,137,98,2,28,9,0,2,590,568,421,147,22,590,533,2,2,46,544,7,47,116,108,51,31,45,20,42,50,12,15,46,1105,21,6,151,81,36,796,14,38,185,153,67,194,145,197,12,71,5,4,66,26,667,61,32,606,502,96,18,48,20,882,613,613,595,326,273,32,51,148,139,9,42,42,0,53,23,3,14,6,0,30,0,17,11,2,595,9,90,53,11,71,12,9,45,71,143,31,31,19,238,81,131,16,84,45]
[]
[]
[]
[]
[]
[]
[]
[]
[]
[]
[]
[]
[]
[]
[]
[]
[]
[]
[]
[]
["Census 2000 SummaryFile3 Sample Data  -  SF3TownQry2aIncomeChar"]
[]
["TOWN_NAME","LOGRECNO","COUSUB","TotalPop","P52Households1","P52HHInc<10K","P52HHInc10to15K","P52HHInc15to20K","P52HHInc20to25K","P52HHInc25to30K","P52HHInc30to35K","P52HHInc35to40K","P52HHInc40to45K","P52HHInc45to50K","P52HHInc50to60K","P52HHInc60to75K","P52HHInc75to100K","P52HHInc100to125K","P52HHInc125to150K","P52HHInc150to200K","P52HHInc>200K","P53MedianHHInc","P54AggregHHInc","P55Households2","P55HHUnder25yrs","P55HH<25HHInc<10K","P55HH<25HHInc10to15K","P55HH<25HHInc15to20K","P55HH<25HHInc20to25K","P55HH<25HHInc25to30K","P55HH<25HHInc30to35K","P55HH<25HHInc35to40K","P55HH<25HHInc40to45K","P55HH<25HHInc45to50K","P55HH<25HHInc50to60K","P55HH<25HHInc60to75K","P55HH<25HHInc75to100K","P55HH<25HHInc100to125K","P55HH<25HHInc125to150K","P55HH<25HHInc150to200K","P55HH<25HHInc>200K","P55HH25to34yrs","P55HH25to34HHInc<10K","P55HH25to34HHInc10to15K","P55HH25to34HHInc15to20K","P55HH25to34HHInc20to25K","P55HH25to34HHInc25to30K","P55HH25to34HHInc30to35K","P55HH25to34HHInc35to40K","P55HH25to34HHInc40to45K","P55HH25to34HHInc45to50K","P55HH25to34HHInc50to60K","P55HH25to34HHInc60to75K","P55HH25to34HHInc75to100K","P55HH25to34HHInc100to125K","P55HH25to34HHInc125to150K","P55HH25to34HHInc150to200K","P55HH25to34HHInc>200K","P55HH35to44yrs","P55HH35to44HHInc<10K","P55HH35to44HHInc10to15K","P55HH35to44HHInc15to20K","P55HH35to44HHInc20to25K","P55HH35to44HHInc25to30K","P55HH35to44HHInc30to35K","P55HH35to44HHInc35to40K","P55HH35to44HHInc40to45K","P55HH35to44HHInc45to50K","P55HH35to44HHInc50to60K","P55HH35to44HHInc60to75K","P55HH35to44HHInc75to100K","P55HH35to44HHInc100to125K","P55HH35to44HHInc125to150K","P55HH35to44HHInc150to200K","P55HH35to44HHInc>200K","P55HH45to54yrs","P55HH45to55HHInc<10K","P55HH45to55HHInc10to15K","P55HH45to55HHInc15to20K","P55HH45to55HHInc20to25K","P55HH45to55HHInc25to30K","P55HH45to55HHInc30to35K","P55HH45to55HHInc35to40K","P55HH45to55HHInc40to45K","P55HH45to55HHInc45to50K","P55HH45to55HHInc50to60K","P55HH45to55HHInc60to75K","P55HH45to55HHInc75to100K","P55HH45to55HHInc100to125K","P55HH45to55HHInc125to150K","P55HH45to55HHInc150to200K","P55HH45to55HHInc>200K","P55HH55to64yrs","P55HH55to64HHInc<10K","P55HH55to64HHInc10to15K","P55HH55to64HHInc15to20K","P55HH55to64HHInc20to25K","P55HH55to64HHInc25to30K","P55HH55to64HHInc30to35K","P55HH55to64HHInc35to40K","P55HH55to64HHInc40to45K","P55HH55to64HHInc45to50K","P55HH55to64HHInc50to60K","P55HH55to64HHInc60to75K","P55HH55to64HHInc75to100K","P55HH55to64HHInc100to125K","P55HH55to64HHInc125to150K","P55HH55to64HHInc150to200K","P55HH55to64HHInc>200K","P55HH65to74yrs","P55HH65to74HHInc<10K","P55HH65to74HHInc10to15K","P55HH65to74HHInc15to20K","P55HH65to74HHInc20to25K","P55HH65to74HHInc25to30K","P55HH65to74HHInc30to35K","P55HH65to74HHInc35to40K","P55HH65to74HHInc40to45K","P55HH65to74HHInc45to50K","P55HH65to74HHInc50to60K","P55HH65to74HHInc60to75K","P55HH65to74HHInc75to100K","P55HH65to74HHInc100to125K","P55HH65to74HHInc125to150K","P55HH65to74HHInc150to200K","P55HH65to74HHInc>200K","P55HH>75yrs","P55HH>75HHInc<10K","P55HH>75HHInc10to15K","P55HH>75HHInc15to20K","P55HH>75HHInc20to25K","P55HH>75HHInc25to30K","P55HH>75HHInc30to35K","P55HH>75HHInc35to40K","P55HH>75HHInc40to45K","P55HH>75HHInc45to50K","P55HH>75HHInc50to60K","P55HH>75HHInc60to75K","P55HH>75HHInc75to100K","P55HH>75HHInc100to125K","P55HH>75HHInc125to150K","P55HH>75HHInc150to200K","P55HH>75HHInc>200K","P56MedHHInc","P56MedHHIncHH<25y","P56MedHHIncHH25to34y","P56MedHHIncHH35to44y","P56MedHHIncHH45to54y","P56MedHHIncHH55to64y","P56MedHHIncHH65to74y","P56MedHHIncHH>75y","P58Households3","P58HHwithEarnings","P58HHNoEarnings","P59HHwWageSalInc","P59HHNoWageSalInc","P60HHwSelfEmpInc","P60HHNoSelfEmpInc","P61HHwIndDivInc","P61HHNoIndDivInc","P62HHwSocSecInc","P62HHNoSocSecInc","P63HHwSSI","P63HHNoSSI","P64HHwPubAssInc","P64HHNoPubAssInc","P65HHwRetInc","P65HHNoRetInc","P66HHwOtherTypInc","P66HHNoOtherTypInc","P67AggregEarnings","P68AggregWageSalInc","P69AggregSelfEmpInc","P70AggregIntDivInc","P71AggregSocSecInc","P72AggregSSIInc","P73AggregPublicAssInc","P74AggregRetireInc","P76Families1","P76FamInc<10K","P76FamInc10to15K","P76FamInc15to20K","P76FamInc20to25K","P76FamInc25to30K","P76FamInc30to35K","P76FamInc35to40K","P76FamInc40to45K","P76FamInc45to50K","P76FamInc50to60K","P76FamInc60to75K","P76FamInc75to100K","P76FamInc100to125K","P76FamInc125to150K","P76FamInc150to200K","P76FamInc>200K","P77MedFamInc","P78AggregFamInc","P79NonFamHH","P79NonFamHHwInc<10K","P79NonFamHHwInc10to15K","P79NonFamHHwInc15to20K","P79NonFamHHwInc20to25K","P79NonFamHHwInc25to30K","P79NonFamHHwInc30to35K","P79NonFamHHwInc35to40K","P79NonFamHHwInc40to45K","P79NonFamHHwInc45to50K","P79NonFamHHwInc50to60K","P79NonFamHHwInc60to75K","P79NonFamHHwInc75to100K","P79NonFamHHwInc100to125K","P79NonFamHHwInc125to150K","P79NonFamHHwInc150to200K","P79NonFamHHwInc200KorMore","P80MedNonFamInc","P82PerCapitaInc"]
["Allenstown","0002575","00660",4843,1901,121,100,91,117,174,118,159,146,76,234,263,182,81,33,6,0,41958,90891700,1901,46,0,0,16,8,0,0,10,0,0,12,0,0,0,0,0,0,358,8,8,0,27,46,19,44,57,10,48,40,51,0,0,0,0,502,17,21,0,24,19,24,55,24,34,91,111,41,35,6,0,0,396,13,7,9,12,37,44,21,37,15,69,48,49,35,0,0,0,222,0,7,0,14,27,23,20,28,4,14,36,20,11,12,6,0,201,12,30,41,20,33,8,9,0,6,0,19,15,0,8,0,0,176,71,27,25,12,12,0,0,0,7,0,9,6,0,7,0,0,41958,22188,41378,52292,50395,44091,24583,12917,1901,1564,337,1512,389,198,1703,534,1367,514,1387,27,1874,61,1840,270,1631,243,1658,76573000,70553900,6019100,1634700,5806400,156000,121800,4808300,1277,5,48,44,72,101,94,92,78,70,196,217,165,56,33,6,0,51659,69787400,624,116,62,53,59,85,30,62,40,6,42,47,15,7,0,0,0,26375,18851]
["Andover","0002590","01460",2109,814,42,26,43,52,50,62,55,41,63,113,112,66,51,15,17,6,47093,44416400,814,14,0,0,2,0,3,2,3,0,4,0,0,0,0,0,0,0,120,2,0,0,9,5,12,14,8,17,25,16,7,2,3,0,0,181,6,2,13,9,10,10,4,7,18,35,35,17,5,4,4,2,211,11,2,8,11,9,8,16,7,10,23,39,31,20,4,8,4,128,4,4,6,11,9,13,3,15,12,9,16,9,11,4,2,0,94,6,8,11,4,8,13,9,4,2,13,4,2,7,0,3,0,66,13,10,3,8,6,4,6,0,0,8,2,0,6,0,0,0,47093,36250,46786,55096,60250,44750,33500,24375,814,693,121,655,159,153,661,367,447,215,599,25,789,23,791,132,682,110,704,35127400,31875300,3252100,3558500,2462300,172800,34000,2117600,600,21,6,21,28,27,42,44,32,56,94,87,57,51,11,17,6,52212,36824900,214,26,20,22,25,25,19,11,7,11,17,21,8,0,2,0,0,27059,21627]
["Boscawen","0002596","06260",3672,1251,75,31,118,78,93,130,55,98,72,161,129,138,41,11,16,5,42524,61035000,1251,29,0,0,4,6,0,14,0,0,5,0,0,0,0,0,0,0,188,7,0,17,5,16,30,18,27,5,39,11,8,0,0,0,5,355,20,0,13,31,32,36,14,36,12,49,56,35,15,0,6,0,258,0,14,25,0,15,27,8,0,25,30,28,59,22,0,5,0,189,23,11,6,12,14,5,10,13,19,14,23,30,4,0,5,0,119,13,0,19,17,10,0,5,16,6,10,11,6,0,6,0,0,113,12,6,34,7,6,18,0,6,0,19,0,0,0,5,0,0,42524,31406,40132,44438,54167,45125,37750,24107,1251,1084,167,1059,192,112,1139,459,792,339,912,71,1180,57,1194,236,1015,186,1065,50404600,49521800,882800,2087200,3627700,481200,136000,3034000,908,41,19,57,28,75,83,53,81,72,108,106,123,41,6,10,5,45850,48524600,343,51,17,66,56,29,49,7,17,0,18,12,15,0,6,0,0,22566,18732]
["Bow","0002606","06500",7138,2291,46,61,44,38,19,52,31,80,69,275,329,457,335,216,136,103,79329,210256700,2291,0,0,0,0,0,0,0,0,0,0,0,0,0,0,0,0,0,175,0,0,0,0,0,13,6,10,9,11,34,54,17,10,11,0,739,0,8,10,16,0,0,8,16,22,115,135,127,160,71,26,25,691,10,0,11,10,0,10,9,18,20,74,59,164,126,81,43,56,369,0,29,0,0,7,0,8,16,11,32,72,56,32,54,43,9,238,25,13,13,12,12,22,0,9,0,43,29,47,0,0,0,13,79,11,11,10,0,0,7,0,11,7,0,0,9,0,0,13,0,79329,0,75672,82148,93660,77877,52321,40114,2291,2073,218,2036,255,396,1895,1430,861,450,1841,64,2227,7,2284,374,1917,229,2062,181606300,170861900,10744400,14559200,5156900,434000,9800,6154500,2044,13,37,23,16,10,65,29,69,24,244,292,467,309,207,136,103,83567,198918500,247,33,24,21,22,19,0,9,11,32,31,20,0,16,9,0,0,38750,29557]
["Bradford","0002617","06980",1454,557,24,21,29,38,45,30,24,47,26,65,93,56,28,16,12,3,49018,32406000,557,13,0,2,0,0,4,0,0,0,0,5,0,2,0,0,0,0,70,0,0,0,10,6,0,4,8,1,9,21,5,4,0,2,0,120,4,2,2,6,9,12,3,11,3,14,23,20,8,3,0,0,162,8,10,6,4,11,3,7,18,14,17,25,18,9,7,5,0,70,3,2,10,7,0,3,7,5,4,8,4,4,3,4,3,3,88,5,3,4,11,13,10,3,5,0,12,11,3,4,2,2,0,34,4,2,7,0,2,2,0,0,4,0,9,4,0,0,0,0,49018,53125,58500,57000,50000,43333,34286,38750,557,467,90,440,117,131,426,268,289,153,404,19,538,7,550,99,458,76,481,26321000,23363700,2957300,2231200,1691800,114400,10000,1397500,407,8,6,15,21,30,22,21,32,22,43,78,52,28,16,10,3,57083,27100700,150,16,17,16,19,20,12,5,12,4,16,9,2,0,0,2,0,27500,22240]
["Canterbury","0002622","09860",1979,750,20,20,17,21,28,51,39,41,51,102,82,124,78,36,15,25,58026,54288700,750,5,0,0,0,0,0,0,0,2,0,3,0,0,0,0,0,0,66,3,0,0,0,3,9,3,0,10,11,8,10,2,2,3,2,172,2,3,2,4,11,9,6,8,20,21,19,35,18,8,2,4,255,2,2,5,2,0,20,6,10,11,42,33,45,35,19,6,17,138,5,3,3,7,3,5,16,11,6,15,14,24,13,7,4,2,60,2,4,3,4,4,8,4,8,2,0,7,9,5,0,0,0,54,6,8,4,4,7,0,4,2,2,10,1,1,5,0,0,0,58026,52917,51786,60000,71719,53750,41250,28750,750,678,72,633,117,192,558,438,312,149,601,21,729,10,740,111,639,115,635,46140400,40678200,5462300,3682300,1892000,157900,7700,1543300,595,7,11,12,8,25,31,31,26,34,88,82,108,72,28,15,17,62583,44912900,155,13,9,8,13,6,17,11,15,15,14,7,14,7,4,0,2,40417,27374]
["Chichester","0002629","12420",2236,827,19,29,19,44,58,47,37,48,35,110,144,114,55,28,30,10,56741,53564200,827,6,0,0,0,0,0,2,0,4,0,0,0,0,0,0,0,0,126,2,0,5,2,11,6,4,7,10,17,33,21,2,2,4,0,224,2,4,2,6,12,15,10,9,14,38,49,28,16,7,9,3,216,5,2,0,8,6,10,6,11,6,27,41,35,26,17,11,5,89,0,6,0,5,5,9,0,6,2,14,6,20,8,0,6,2,116,7,10,7,18,19,5,12,5,3,11,6,10,3,0,0,0,50,3,7,5,5,5,0,5,6,0,3,9,0,0,2,0,0,56741,41250,59583,60000,70833,56458,29250,32500,827,708,119,683,144,138,689,422,405,182,645,27,800,10,817,139,688,81,746,45587100,40588500,4998600,2607500,2253900,258500,20700,1864700,640,11,12,9,20,32,37,42,41,21,91,124,95,46,19,30,10,60333,44656500,187,10,21,13,21,33,12,0,3,14,16,20,11,7,6,0,0,29063,24115]
["Concord","0002635","14200",40687,16325,1198,998,983,1034,1095,1096,1182,1005,996,1770,1782,1788,630,269,251,248,42447,856270100,16325,836,145,88,54,89,97,71,67,63,38,81,30,6,0,7,0,0,2990,225,146,196,200,231,268,269,222,162,337,346,232,103,8,26,19,3846,250,122,147,177,175,219,315,254,319,442,500,594,144,41,85,62,3323,91,157,123,148,137,192,210,162,227,415,466,502,250,111,62,70,1873,98,82,112,104,136,122,122,111,88,212,190,294,75,52,41,34,1541,178,139,142,118,122,125,96,123,69,154,146,39,38,5,11,36,1916,211,264,209,198,197,99,103,70,93,129,104,121,20,45,26,27,42447,27885,39194,49146,54856,48036,32942,26557,16325,13162,3163,12800,3525,1840,14485,6991,9334,4299,12026,561,15764,564,15761,2755,13570,2176,14149,676812800,628275500,48537300,57425800,50249100,3869100,1309700,48662200,9748,402,427,395,419,484,486,615,621,614,1280,1305,1476,568,198,244,214,52418,608031000,6577,898,657,610,638,665,590,532,366,337,438,427,273,62,48,7,29,28380,21976]
["Danbury","0002701","16980",1071,435,32,28,29,22,48,29,43,31,14,51,40,49,11,2,4,2,38313,19494800,435,17,0,6,0,3,0,3,3,0,0,0,2,0,0,0,0,0,42,6,2,1,5,2,2,0,2,1,9,7,3,2,0,0,0,119,3,2,3,2,14,6,18,19,5,15,17,8,7,0,0,0,102,7,0,2,7,9,5,14,4,8,13,9,20,0,2,0,2,65,3,5,6,3,8,9,0,2,0,8,2,15,0,0,4,0,52,5,4,11,2,8,0,7,4,0,6,0,3,2,0,0,0,38,8,9,6,0,7,4,1,0,0,0,3,0,0,0,0,0,38313,22083,50000,42054,47500,34464,28000,16250,435,366,69,339,96,89,346,157,278,94,341,13,422,17,418,66,369,48,387,15861400,13723900,2137500,755400,1035900,115100,45300,1266700,313,19,13,13,14,36,25,31,24,14,39,34,38,7,2,2,2,40809,14777700,122,18,15,18,8,9,2,12,8,0,9,8,9,4,0,2,0,27500,18339]
["Dunbarton","0002706","19460",2226,822,26,19,18,30,22,26,23,64,49,88,133,158,82,30,29,25,65081,60590200,822,7,0,0,0,0,0,0,2,2,3,0,0,0,0,0,0,0,110,0,2,0,8,2,2,4,14,4,8,33,24,3,0,6,0,277,6,3,0,8,11,7,6,21,19,33,43,55,29,11,12,13,198,2,5,0,6,9,3,0,13,8,18,31,38,39,13,6,7,124,9,0,0,3,0,10,2,14,9,12,13,25,11,6,5,5,70,0,6,3,5,0,2,9,0,6,10,13,16,0,0,0,0,36,9,3,15,0,0,2,0,0,0,7,0,0,0,0,0,0,65081,44375,63750,67188,76324,63125,54167,16250,822,766,56,735,87,166,656,491,331,140,682,4,818,5,817,105,717,45,777,53719400,49716300,4003100,2935200,1732300,46700,22300,1580200,657,12,5,3,15,19,33,21,37,40,84,112,134,63,28,29,22,67448,51833800,165,14,14,15,15,3,4,2,23,4,9,23,20,17,2,0,0,43125,27892]
["Epsom","0002712","24900",4021,1486,40,39,104,115,60,101,82,69,113,156,179,284,54,59,16,15,50685,86789800,1486,28,0,0,8,5,10,5,0,0,0,0,0,0,0,0,0,0,233,4,0,6,11,17,0,11,4,19,42,28,69,22,0,0,0,395,10,5,16,27,16,15,23,29,34,34,61,83,4,22,16,0,370,0,0,3,9,5,29,22,30,26,52,68,66,25,29,0,6,199,5,0,17,11,12,25,0,6,18,13,22,58,3,0,0,9,143,8,15,17,28,0,17,26,0,9,15,0,8,0,0,0,0,118,13,19,37,24,0,10,0,0,7,0,0,0,0,8,0,0,50685,25500,60625,56513,63500,52292,31250,18958,1486,1277,209,1241,245,170,1316,633,853,334,1152,22,1464,56,1430,285,1201,204,1282,74854300,69005200,5849100,2188900,4456500,108300,148500,3044300,1098,21,0,55,77,42,78,41,42,84,132,155,254,50,42,10,15,56875,70023900,388,26,39,54,38,18,30,39,32,21,24,24,26,0,17,0,0,33804,22026]
["Franklin","0002721","27380",8405,3334,425,205,287,308,261,192,200,183,189,293,386,271,63,37,11,23,34613,140782100,3334,200,26,17,25,30,21,7,35,0,20,19,0,0,0,0,0,0,542,51,29,35,40,44,89,28,29,42,55,50,50,0,0,0,0,722,37,10,33,48,72,24,33,47,42,70,169,100,18,0,11,8,658,66,17,44,48,76,27,51,24,15,53,101,75,33,28,0,0,432,109,19,48,47,14,15,8,53,23,31,29,30,6,0,0,0,441,72,50,52,45,17,23,21,23,33,52,22,16,0,0,0,15,339,64,63,50,50,17,7,24,7,14,13,15,0,6,9,0,0,34613,27738,33300,51172,40000,24125,25469,17125,3334,2516,818,2463,871,310,3024,984,2350,970,2364,174,3160,240,3094,579,2755,517,2817,112054000,104456800,7597200,6223500,10685100,982700,603200,6153200,2213,110,59,254,197,202,123,116,104,124,262,339,230,50,20,0,23,41698,106458900,1121,345,151,96,94,90,78,58,60,47,8,20,33,13,17,11,0,17684,17155]
["Henniker","0002743","35540",4433,1586,114,87,108,90,87,80,96,49,70,214,147,240,89,28,32,55,50288,104703000,1586,125,35,19,8,12,12,14,0,0,9,16,0,0,0,0,0,0,172,0,0,7,16,8,13,19,15,26,16,13,20,11,0,8,0,391,8,17,13,16,23,19,19,14,11,63,57,69,35,13,0,14,455,15,0,13,20,28,21,22,8,18,71,54,104,30,9,16,26,199,12,6,6,11,16,13,6,5,6,32,23,39,13,6,0,5,93,8,14,23,8,0,0,7,7,0,8,0,8,0,0,0,10,151,36,31,38,7,0,0,23,0,0,8,0,0,0,0,8,0,50288,20208,46053,58958,62212,52875,22969,16328,1586,1373,213,1339,247,260,1326,681,905,322,1264,65,1521,20,1566,225,1361,204,1382,89185500,81951900,7233600,7661200,3433900,497100,13900,2778600,1034,7,27,51,30,67,28,77,29,52,156,122,217,76,28,17,50,59527,83055200,552,107,60,57,66,34,45,18,29,21,58,12,18,7,0,15,5,23833,24530]
["Hill","0002754","35860",992,388,15,17,24,26,15,30,19,30,36,39,48,62,15,0,7,5,48333,20962800,388,8,0,0,4,4,0,0,0,0,0,0,0,0,0,0,0,0,56,3,0,3,3,2,8,4,7,9,3,0,14,0,0,0,0,91,7,2,2,3,0,7,2,9,8,16,18,11,2,0,2,2,104,3,0,3,5,3,3,0,3,17,10,23,15,13,0,3,3,58,0,0,4,0,7,6,9,7,2,5,5,13,0,0,0,0,41,0,5,4,4,2,5,2,4,0,5,2,6,0,0,2,0,30,2,10,4,7,1,1,2,0,0,0,0,3,0,0,0,0,48333,20000,43333,52656,62727,41500,35625,16875,388,326,62,305,83,84,304,161,227,88,300,13,375,11,377,63,325,57,331,17348200,15348300,1999900,1061500,969400,47500,9900,1072800,278,8,0,13,13,15,20,16,20,34,35,33,50,11,0,8,2,50000,16310400,110,10,17,11,12,4,10,4,12,4,4,10,6,4,0,2,0,30417,21004]
["Hooksett","0002759","37300",11721,4140,159,98,132,177,133,240,193,240,188,442,580,822,349,245,102,40,61491,285213400,4140,76,0,11,9,10,9,0,10,27,0,0,0,0,0,0,0,0,652,25,0,8,41,13,49,42,52,12,65,98,165,54,18,10,0,1219,19,0,10,37,31,53,70,58,33,130,219,322,109,78,27,23,980,17,7,9,30,39,41,16,46,78,79,146,177,147,89,42,17,552,14,7,8,15,7,58,12,26,35,110,87,87,23,44,19,0,371,52,10,43,10,7,39,28,22,30,32,30,41,16,7,4,0,290,32,63,45,34,27,0,15,9,0,26,0,30,0,9,0,0,61491,27222,62262,71250,73714,57895,39583,20735,4140,3677,463,3628,512,477,3663,1785,2355,1022,3118,72,4068,53,4087,730,3410,477,3663,246250000,231587200,14662800,11153800,11678100,763100,67700,11100900,3072,87,59,47,49,61,156,141,151,129,360,505,700,293,203,102,29,68673,230483500,1068,106,60,106,113,72,95,52,45,75,82,65,112,39,35,0,11,33636,24629]
["Hopkinton","0002799","37540",5399,2084,60,68,115,50,51,106,134,120,131,215,276,300,179,72,85,122,59583,164473200,2084,16,0,0,0,7,0,0,0,0,5,4,0,0,0,0,0,0,203,0,0,14,0,0,13,0,14,26,31,29,52,15,9,0,0,478,11,4,6,5,6,22,28,42,33,70,92,63,35,11,12,38,580,7,22,53,14,21,26,31,11,16,43,75,99,59,20,51,32,356,0,13,6,7,7,0,38,40,24,38,39,32,44,25,16,27,247,13,12,13,0,6,27,27,7,18,12,24,36,20,7,6,19,204,29,17,23,17,11,18,10,6,9,17,17,18,6,0,0,6,59583,45500,63750,60857,70417,60893,50208,32083,2084,1729,355,1655,429,368,1716,1250,834,597,1487,25,2059,33,2051,428,1656,271,1813,123914200,114286100,9628000,22230400,6989800,230900,18800,7796700,1560,7,23,31,25,37,78,99,83,98,161,245,275,144,66,78,110,69737,134337700,524,60,45,84,18,19,33,39,37,39,50,32,23,20,6,7,12,35375,30753]
["Loudon","0002813","43380",4481,1618,50,55,52,62,55,96,78,135,111,230,255,267,99,12,18,43,55185,107857700,1618,16,0,0,0,0,0,0,0,5,0,11,0,0,0,0,0,0,256,20,0,4,12,0,23,15,18,37,20,42,33,20,6,6,0,478,0,5,11,11,21,20,7,24,41,111,68,115,30,0,7,7,455,18,14,18,5,12,19,28,34,24,49,49,101,49,6,5,24,207,0,0,19,15,16,8,16,16,9,26,64,18,0,0,0,0,137,12,23,0,13,6,19,6,26,0,13,19,0,0,0,0,0,69,0,13,0,6,0,7,6,12,0,0,13,0,0,0,0,12,55185,50682,49643,59091,63125,51406,34135,40521,1618,1460,158,1432,186,306,1312,734,884,301,1317,71,1547,15,1603,189,1429,198,1420,90605900,81220400,9385600,6314700,3886900,992000,16500,4488200,1277,32,27,21,42,48,56,54,99,93,190,233,237,83,12,13,37,59096,90490000,341,23,32,31,27,20,36,24,41,19,26,35,16,0,0,5,6,35625,24673]
["New London","0002826","52100",4116,1585,40,79,58,80,60,119,73,54,77,130,109,227,143,90,105,141,61520,151263800,1585,27,0,6,6,6,0,4,0,0,0,5,0,0,0,0,0,0,54,0,4,0,4,0,5,17,0,0,11,0,4,3,0,6,0,201,12,8,0,0,8,10,7,4,7,9,19,33,26,22,11,25,323,6,0,0,21,11,15,16,14,31,27,18,67,25,26,16,30,247,0,17,6,0,6,0,5,8,5,20,16,52,14,21,41,36,337,0,0,24,16,5,48,17,22,2,32,31,49,31,21,14,25,396,22,44,22,33,30,37,11,6,32,26,25,22,44,0,17,25,61520,20625,38750,86818,80332,93323,61250,37273,1585,985,600,921,664,312,1273,1128,457,737,848,28,1557,30,1555,508,1077,176,1409,84904200,76587600,8316600,38320100,9674700,160900,77500,16442600,1095,10,11,11,33,29,72,40,47,44,82,102,188,126,75,90,135,82201,128854400,490,30,68,47,59,31,55,33,12,21,48,0,39,11,15,15,6,30758,37556]
["Newbury","0002820","50900",1702,690,15,18,26,34,47,38,26,55,38,63,115,88,54,30,22,21,58026,50408600,690,5,0,0,0,0,0,2,0,0,0,1,2,0,0,0,0,0,72,2,0,2,0,6,9,7,2,5,12,15,9,3,0,0,0,154,0,0,2,7,10,2,4,20,4,10,31,32,7,14,9,2,169,2,0,5,2,7,9,6,7,9,26,39,18,23,4,5,7,108,2,0,3,4,8,9,3,9,7,3,17,14,11,8,8,2,115,2,9,7,13,14,0,6,13,8,7,8,11,5,2,0,10,67,7,9,7,8,2,7,0,4,5,4,3,4,5,2,0,0,58026,53750,52500,68750,62212,65833,42321,30625,690,565,125,533,157,146,544,322,368,215,475,8,682,2,688,149,541,63,627,35978000,31276300,4701700,8057100,2983000,38500,400,2891100,492,0,4,10,24,26,25,21,41,25,60,84,79,43,18,17,15,61389,36726300,198,15,16,18,13,21,11,5,16,8,11,27,6,8,12,5,6,40000,29521]
["Northfield","0002833","54260",4548,1704,111,56,66,128,171,90,142,100,127,216,214,189,72,10,0,12,44333,84246700,1704,80,0,8,8,14,23,0,12,0,0,8,7,0,0,0,0,0,279,8,6,11,34,26,9,49,23,16,56,24,6,11,0,0,0,453,0,0,0,26,48,14,6,33,48,98,65,99,8,8,0,0,408,25,7,6,20,19,28,53,28,21,35,87,46,26,0,0,7,203,11,10,0,7,30,12,11,11,31,19,19,27,10,0,0,5,126,36,5,15,9,5,20,4,5,5,0,5,5,10,2,0,0,155,31,20,26,18,20,7,7,0,6,0,7,6,7,0,0,0,44333,26786,39735,53688,48929,45913,23750,20114,1704,1500,204,1448,256,226,1478,540,1164,366,1338,70,1634,55,1649,281,1423,230,1474,71374100,65983700,5390500,4973300,3712800,387000,367800,2042600,1211,11,28,31,83,94,89,111,70,105,178,160,170,61,8,0,12,48787,67521200,493,106,28,42,45,86,28,40,14,11,46,28,6,13,0,0,0,26138,18466]
["Pembroke","0002848","60020",6897,2660,208,83,107,132,128,236,140,139,173,288,364,455,117,57,16,17,49494,143136300,2660,141,0,9,0,22,10,34,0,0,10,12,21,23,0,0,0,0,364,36,11,15,12,30,11,51,45,64,20,24,33,12,0,0,0,759,20,7,23,39,23,66,37,14,23,98,130,202,43,17,9,8,620,29,0,18,26,24,63,0,43,53,65,109,127,38,16,0,9,334,14,0,21,0,10,32,12,20,23,53,48,61,24,9,7,0,233,40,18,0,15,22,11,22,17,0,32,32,9,0,15,0,0,209,69,38,30,18,9,19,18,0,0,8,0,0,0,0,0,0,49494,33125,40889,63576,58382,56000,36875,14653,2660,2279,381,2194,466,350,2310,1133,1527,604,2056,123,2537,61,2599,384,2276,339,2321,122999800,116509200,6490600,4384900,6751700,952000,185100,5989100,1885,48,34,69,96,77,118,150,87,99,232,284,391,110,57,16,17,57106,115484100,775,169,49,58,36,74,133,25,52,32,38,77,25,7,0,0,0,30036,20800]
["Pittsfield","0002869","61940",3931,1496,146,107,43,158,111,110,94,123,85,139,117,165,39,13,19,27,38833,81693500,1496,90,8,5,0,31,0,14,19,0,6,0,7,0,0,0,0,0,255,7,23,14,19,16,19,22,39,30,39,5,22,0,0,0,0,392,40,7,12,35,25,37,22,20,7,24,54,81,22,6,0,0,279,30,6,0,5,28,20,0,20,26,38,21,52,13,1,11,8,183,9,26,0,23,4,14,14,26,10,24,19,2,4,0,8,0,173,24,31,9,30,17,6,11,0,6,14,11,8,0,0,0,6,124,28,9,8,15,21,0,6,18,0,0,0,0,0,6,0,13,38833,30179,41042,44286,52250,40341,24107,25833,1496,1278,218,1258,238,202,1294,399,1097,453,1043,52,1444,80,1416,225,1271,216,1280,58391200,53247500,5143700,9913600,4432500,378800,210100,6072000,1061,48,46,28,89,94,83,65,91,61,117,101,154,33,12,19,20,44233,67439200,435,98,61,31,69,31,27,15,32,18,22,18,0,6,0,0,7,22022,21082]
["Salisbury","0002880","66980",1137,434,19,11,17,13,30,10,36,22,46,31,79,67,33,9,9,2,55000,26127900,434,8,0,0,0,0,0,2,0,0,3,0,3,0,0,0,0,0,50,0,0,0,2,1,0,3,2,8,10,24,0,0,0,0,0,104,2,0,3,7,5,0,5,6,9,9,24,19,11,2,0,2,115,4,8,2,0,8,2,6,2,12,6,16,24,13,7,5,0,91,4,0,2,2,11,2,12,8,8,6,10,17,6,0,3,0,42,4,3,5,2,2,0,10,2,6,0,0,4,3,0,1,0,24,5,0,5,0,3,4,0,2,0,0,2,3,0,0,0,0,55000,49167,59167,62813,70750,47813,38438,27500,434,394,40,385,49,82,352,181,253,107,327,11,423,7,427,79,355,42,392,22500000,20828300,1671700,1288800,1055400,102500,15900,980700,325,0,4,10,7,22,4,26,17,39,27,74,50,26,9,8,2,62321,21415100,109,19,7,7,6,8,6,10,8,7,2,4,17,7,0,1,0,35536,23112]
["Sutton","0002885","75460",1544,613,30,13,20,34,36,47,37,44,37,75,84,83,36,15,20,2,50924,37236900,613,4,4,0,0,0,0,0,0,0,0,0,0,0,0,0,0,0,45,0,0,2,0,4,6,6,3,2,9,3,6,4,0,0,0,159,6,0,6,13,10,14,7,10,9,27,22,17,2,10,6,0,164,5,0,3,6,9,15,6,16,16,15,25,27,15,1,5,0,114,6,7,2,3,6,5,10,11,5,11,19,14,4,4,7,0,78,5,2,0,8,6,2,5,2,2,8,12,14,10,0,0,2,49,4,4,7,4,1,5,3,2,3,5,3,5,1,0,2,0,50924,7500,48750,51250,53000,51667,58750,34375,613,529,84,496,117,142,471,288,325,172,441,13,600,13,600,117,496,83,530,27108600,24010800,3097800,4455600,2121400,101800,28400,2544800,461,8,7,11,22,28,32,26,37,18,62,80,69,28,15,18,0,56685,28933700,152,22,6,9,12,10,19,11,7,17,11,4,12,8,0,2,2,34375,24432]
["Warner","0002891","78580",2760,1057,55,52,46,69,81,79,86,78,57,108,123,104,58,29,20,12,44142,58392800,1057,13,0,3,3,5,1,0,0,0,0,0,1,0,0,0,0,0,124,7,2,6,6,22,5,17,12,2,16,5,13,7,2,0,2,250,6,5,11,9,6,20,22,28,17,32,31,28,19,10,6,0,270,11,7,5,14,13,15,15,17,17,24,51,36,19,17,5,4,158,8,6,0,12,20,9,12,12,2,13,28,22,8,0,4,2,120,2,15,5,10,13,15,17,6,10,17,4,4,0,0,0,2,122,21,14,16,13,6,15,3,3,9,6,3,1,5,0,5,2,44142,20313,39375,50208,59063,46250,35000,23929,1057,882,175,834,223,208,849,461,596,289,768,30,1027,28,1029,164,893,139,918,46429300,40015700,6413600,3115700,3316500,216700,59700,4206400,742,23,16,25,38,46,55,56,60,42,89,101,91,52,27,13,8,50926,44329000,315,34,40,29,34,33,31,27,15,7,20,16,10,8,2,7,2,27135,21588]
["Webster","0002897","80020",1579,590,26,18,23,28,31,27,44,32,25,98,99,92,28,7,7,5,54052,33499600,590,10,0,0,0,0,2,0,0,4,2,2,0,0,0,0,0,0,80,5,0,2,0,7,3,10,2,5,12,14,10,8,0,2,0,152,3,4,4,8,6,5,10,15,5,35,28,20,5,2,2,0,162,6,2,3,5,4,4,8,7,11,24,42,34,9,0,0,3,92,4,3,0,7,8,5,8,4,0,14,7,21,6,3,0,2,50,0,2,9,8,4,5,2,0,2,11,5,2,0,0,0,0,44,8,7,5,0,0,5,6,0,0,0,3,5,0,2,3,0,54052,44375,53333,55000,63438,54688,31000,33500,590,519,71,507,83,103,487,277,313,131,459,19,571,15,575,68,522,96,494,28900600,26682100,2218500,1362000,1471100,140900,14500,1039800,467,10,11,10,16,28,23,39,26,19,82,83,79,24,7,5,5,57396,28171800,123,16,7,13,15,5,5,5,6,4,18,17,8,2,0,2,0,35625,20852]
["Wilmot","0002902","84900",1144,454,10,24,21,16,34,43,37,19,26,49,61,45,26,19,11,13,49605,28616100,454,5,0,0,0,0,0,5,0,0,0,0,0,0,0,0,0,0,51,0,0,2,2,0,3,0,8,10,7,10,5,0,0,1,3,106,0,0,3,6,8,12,16,3,0,9,24,17,2,3,3,0,119,0,4,4,2,7,12,4,3,9,11,11,14,14,11,5,8,78,8,5,4,4,8,8,4,0,2,8,14,7,4,0,0,2,55,0,5,6,2,8,0,7,2,2,14,2,2,3,2,0,0,40,2,10,2,0,3,3,6,3,3,0,0,0,3,3,2,0,49605,32917,57679,56250,63125,37500,39821,35000,454,386,68,343,111,139,315,269,185,113,341,12,442,8,446,67,387,38,416,22866500,19227800,3638700,2328900,1462500,96300,1200,1459800,326,3,6,9,7,18,37,29,13,15,35,50,40,23,17,11,13,57143,23744100,128,10,18,16,11,17,8,6,6,4,15,7,5,3,2,0,0,26500,25629]
[]
[]
[]
[]
[]
[]
[]
[]
[]
[]
[]
[]
[]
[]
[]
[]
[]
[]
[]
[]
["Census 2000 SummaryFile3 Sample Data  -  SF3TownQry2bPovertyChar"]
[]
["TOWN_NAME","LOGRECNO","COUSUB","TotalPop","P52Households1","P82PerCapitaInc","P87PopForPovStatus","P87PopWIncBelowPovStatus","P87PopUnder5yrBelowPoverty","P87Pop5yrBelowPoverty","P87Pop5to11yrBelowPoverty","P87Pop12to17yrBelowPoverty","P87Pop18to64yrBelowPoverty","P87Pop65to74yrBelowPoverty","P87PopOver75yrBelowPoverty","P87PopWIncAbovePovStatus","P87PopUnder5yrAbovePoverty","P87Pop5yrAbovePoverty","P87Pop5to11yrAbovePoverty","P87Pop12to17yrAbovePoverty","P87Pop18to64yrAbovePoverty","P87Pop65to74yrAbovePoverty","P87PopOver75yrAbovePoverty","P90Families","P90FamWIncBelowPov","P90MarCupFamWIncBelowPov","P90MCFamWRltdChld<18WIncBelowPov","P90MCFamWRltdChld<5WIncBelowPov","P90MaleHhlrWIncBelowPov","P90MaleHhlrWRltdChld<18yrWIncBelowPov","P90MaleHhlrWRltdChld<5yrWIncBelowPov","P90FemaleHhlrWIncBelowPov","P90FemaleHhlrWRltdChld<18yWIncBelowPov","P90FemaleHhlrWRltdChld<5yWIncBelowPov","P90FamWIncAbovePov","P90MarCupFamWIncAbovePov","P90MCFamWRltdChld<18WIncAbovePov","P90MCFamWRltdChld<5WIncAbovePov","P90MaleHhlrWIncAbovePov","P90MaleHhlrWRltdChld<18yrWIncAbovePov","P90MaleHhlrWRltdChld<5yrWIncAbovePov","P90FemaleHhlrWIncAbovePov","P90FemaleHhlrWRltdChld<18yWIncAbovePov","P90FemaleHhlrWRltdChld<5yWIncAbovePov","P92Households","P92HHwIncBelowPov","P92FamHHwIncBelowPov","P92MCFamHHwIncBelowPov","P92MaleFamHHwIncBelowPov","P92FemaleFamHHwIncBelowPov","P92NonFamHHwIncBelowPov","P92NonFamMaleHHwIncBelowPov","P92NonFamFemaleHHwIncBelowPov","P92HHwIncAbovePov","P92FamHHwIncAbovePov","P92MCFamHHwIncAbovePov","P92MaleFamHHwIncAbovePov","P92FemaleFamHHwIncAbovePov","P92NonFamHHwIncAbovePov","P92NonFamMaleHHwIncAbovePov","P92NonFamFemaleHHwIncAbovePov"]
["Allenstown","0002575","00660",4843,1901,18851,4772,184,7,8,19,21,105,12,12,4588,312,55,392,443,2904,255,227,1277,28,17,17,0,0,0,0,11,11,0,1249,981,475,82,102,75,23,166,114,12,1901,80,28,17,0,11,52,8,44,1821,1249,981,102,166,572,232,340]
["Andover","0002590","01460",2109,814,21627,2101,119,3,0,22,14,63,4,13,1982,125,20,147,167,1271,152,100,600,27,9,3,0,2,2,0,16,14,3,573,500,223,54,32,20,0,41,23,3,814,47,27,9,2,16,20,9,11,767,573,500,32,41,194,117,77]
["Boscawen","0002596","06260",3672,1251,18732,3232,241,14,0,19,49,119,11,29,2991,190,56,311,194,1905,196,139,908,49,19,14,0,17,17,0,13,13,7,859,679,323,94,42,15,0,138,93,16,1251,94,49,19,17,13,45,13,32,1157,859,679,42,138,298,147,151]
["Bow","0002606","06500",7138,2291,29557,7130,129,8,0,6,8,82,25,0,7001,448,78,905,866,4130,351,223,2044,40,32,0,0,0,0,0,8,8,0,2004,1825,1021,111,45,36,0,134,85,13,2291,59,40,32,0,8,19,9,10,2232,2004,1825,45,134,228,111,117]
["Bradford","0002617","06980",1454,557,22240,1453,60,4,0,2,6,37,5,6,1393,75,26,107,148,871,117,49,407,10,4,2,0,0,0,0,6,4,2,397,330,147,35,16,16,2,51,35,6,557,24,10,4,0,6,14,7,7,533,397,330,16,51,136,72,64]
["Canterbury","0002622","09860",1979,750,27374,1979,49,0,0,2,12,31,4,0,1930,106,25,172,166,1263,104,94,595,12,5,3,0,3,0,0,4,4,0,583,505,212,31,23,8,2,55,34,6,750,19,12,5,3,4,7,0,7,731,583,505,23,55,148,67,81]
["Chichester","0002629","12420",2236,827,24115,2225,67,4,0,10,4,37,7,5,2158,133,21,203,193,1393,142,73,640,15,7,4,0,0,0,0,8,8,2,625,552,263,62,29,13,9,44,37,10,827,23,15,7,0,8,8,8,0,804,625,552,29,44,179,90,89]
["Concord","0002635","14200",40687,16325,21976,37478,2980,350,60,291,161,1856,101,161,34498,1926,409,2870,3045,21684,2157,2407,9748,603,163,120,63,62,62,21,378,341,113,9145,7162,3396,602,417,227,46,1566,1148,197,16325,1396,603,163,62,378,793,364,429,14929,9145,7162,417,1566,5784,2398,3386]
["Danbury","0002701","16980",1071,435,18339,1063,118,13,4,9,5,74,7,6,945,32,17,67,91,611,80,47,313,28,17,8,3,0,0,0,11,9,4,285,243,94,9,14,10,3,28,16,0,435,47,28,17,0,11,19,9,10,388,285,243,14,28,103,72,31]
["Dunbarton","0002706","19460",2226,822,27892,2209,61,6,0,8,4,35,2,6,2148,166,37,202,161,1427,113,42,657,15,15,9,3,0,0,0,0,0,0,642,599,306,84,16,11,3,27,25,2,822,26,15,15,0,0,11,2,9,796,642,599,16,27,154,94,60]
["Epsom","0002712","24900",4021,1486,22026,3891,121,4,4,17,15,67,8,6,3770,237,36,367,297,2405,271,157,1098,21,10,5,0,0,0,0,11,11,0,1077,938,413,68,29,29,13,110,76,23,1486,48,21,10,0,11,27,13,14,1438,1077,938,29,110,361,158,203]
["Franklin","0002721","27380",8405,3334,17155,8230,1058,91,25,175,97,558,62,50,7172,442,90,477,664,4461,538,500,2213,198,44,18,0,29,29,13,125,118,21,2015,1506,650,122,141,95,26,368,252,53,3334,441,198,44,29,125,243,130,113,2893,2015,1506,141,368,878,381,497]
["Henniker","0002743","35540",4433,1586,24530,4005,281,0,0,7,15,223,0,36,3724,224,35,413,372,2366,146,168,1034,21,14,6,0,0,0,0,7,7,0,1013,813,481,82,49,21,8,151,111,0,1586,136,21,14,0,7,115,69,46,1450,1013,813,49,151,437,198,239]
["Hill","0002754","35860",992,388,21004,983,41,0,0,3,3,35,0,0,942,49,13,97,89,594,56,44,278,8,5,0,0,0,0,0,3,3,0,270,228,98,7,19,13,3,23,16,3,388,20,8,5,0,3,12,5,7,368,270,228,19,23,98,51,47]
["Hooksett","0002759","37300",11721,4140,24629,10849,437,51,31,38,50,186,33,48,10412,678,119,939,945,6759,558,414,3072,97,24,0,0,25,25,0,48,48,19,2975,2540,1252,277,111,56,15,324,204,13,4140,203,97,24,25,48,106,45,61,3937,2975,2540,111,324,962,440,522]
["Hopkinton","0002799","37540",5399,2084,30753,5393,97,4,5,16,17,38,6,11,5296,279,74,493,543,3207,395,305,1560,11,0,0,0,0,0,0,11,11,0,1549,1376,669,181,39,26,0,134,87,6,2084,44,11,0,0,11,33,0,33,2040,1549,1376,39,134,491,136,355]
["Loudon","0002813","43380",4481,1618,24673,4451,270,6,14,64,31,129,18,8,4181,299,67,383,350,2734,231,117,1277,53,18,12,0,0,0,0,35,35,0,1224,1020,537,157,76,62,7,128,80,10,1618,91,53,18,0,35,38,27,11,1527,1224,1020,76,128,303,144,159]
["New London","0002826","52100",4116,1585,37556,3443,81,0,0,14,0,50,0,17,3362,108,43,178,236,1647,580,570,1095,16,11,0,0,0,0,0,5,5,0,1079,988,247,43,17,17,0,74,40,0,1585,33,16,11,0,5,17,0,17,1552,1079,988,17,74,473,131,342]
["Newbury","0002820","50900",1702,690,29521,1700,30,0,0,0,0,30,0,0,1670,79,4,147,162,993,186,99,492,0,0,0,0,0,0,0,0,0,0,492,432,175,27,19,5,0,41,25,2,690,11,0,0,0,0,11,7,4,679,492,432,19,41,187,82,105]
["Northfield","0002833","54260",4548,1704,18466,4462,175,5,0,0,6,134,30,0,4287,252,58,390,469,2746,191,181,1211,11,0,0,0,5,0,0,6,6,6,1200,940,498,80,116,87,45,144,101,13,1704,80,11,0,5,6,69,21,48,1624,1200,940,116,144,424,200,224]
["Pembroke","0002848","60020",6897,2660,20800,6841,372,22,0,27,9,240,20,54,6469,407,44,607,683,4125,370,233,1885,57,26,9,9,9,9,0,22,22,0,1828,1503,765,129,151,122,22,174,138,26,2660,203,57,26,9,22,146,38,108,2457,1828,1503,151,174,629,361,268]
["Pittsfield","0002869","61940",3931,1496,21082,3921,344,59,0,49,28,181,11,16,3577,204,76,334,329,2251,245,138,1061,72,26,20,7,15,15,8,31,31,6,989,817,352,19,35,24,1,137,111,14,1496,142,72,26,15,31,70,40,30,1354,989,817,35,137,365,172,193]
["Salisbury","0002880","66980",1137,434,23112,1133,22,0,0,0,2,15,0,5,1111,64,16,100,91,736,72,32,325,2,0,0,0,0,0,0,2,2,0,323,306,127,14,5,2,1,12,6,0,434,19,2,0,0,2,17,3,14,415,323,306,5,12,92,45,47]
["Sutton","0002885","75460",1544,613,24432,1541,77,5,5,10,7,39,3,8,1464,58,16,102,135,932,132,89,461,13,5,3,0,0,0,0,8,8,2,448,403,156,24,18,8,0,27,18,0,613,31,13,5,0,8,18,13,5,582,448,403,18,27,134,58,76]
["Warner","0002891","78580",2760,1057,21588,2646,179,27,4,25,20,89,9,5,2467,123,31,231,216,1544,179,143,742,37,11,7,0,2,2,0,24,21,2,705,605,270,48,30,22,6,70,51,0,1057,60,37,11,2,24,23,8,15,997,705,605,30,70,292,126,166]
["Webster","0002897","80020",1579,590,20852,1558,78,10,0,9,2,49,2,6,1480,94,19,110,142,974,82,59,467,17,14,6,2,0,0,0,3,0,0,450,390,172,36,16,14,3,44,28,5,590,28,17,14,0,3,11,3,8,562,450,390,16,44,112,65,47]
["Wilmot","0002902","84900",1144,454,25629,1141,50,10,4,3,1,30,0,2,1091,54,13,102,105,675,96,46,326,6,3,3,3,0,0,0,3,3,0,320,270,120,22,23,14,2,27,23,1,454,20,6,3,0,3,14,4,10,434,320,270,23,27,114,47,67]
[]
[]
[]
[]
[]
[]
[]
[]
[]
[]
[]
[]
[]
[]
[]
[]
[]
[]
[]
[]
["Census 2000 SummaryFile3 Sample Data  -  SF3TownQry7HousingA"]
[]
["TOWN_NAME","LOGRECNO","COUSUB","TotalPop","H1HousingUnitsTotal","H2SampleHU","H2SampleOccHU","H2SampleVacHU","H3HU100pctCount","H5HUTotal","H5HUUrban","H5HUUrbanInUrbanAreas","H5HUUrbanInUrbanClusters","H5HURural","H5HURuralFarm","H5HURuralNonFarm","H7HUOcc","H7HUOwnrOcc","H7HURentrOcc","H8HUVacant","H8HUVacantForRent","H8HUVacantForSale","H8HUVacRentedorSold","H8HUVacSeasonal","H8HUVacForMigrantWrkrs","H8HUOtherVacant","H14OccHUa","H14OwnerOccHU","H14OwnOccHuHh15to24","H14OwnOccHuHh25to34","H14OwnOccHuHh35to44","H14OwnOccHuHh45to54","H14OwnOccHuHh55to59","H14OwnOccHuHh60to64","H14OwnOccHuHh65to74","H14OwnOccHuHh75to84","H14OwnOccHuHh85Over","H14RenterOccHU1","H14RntrOccHuHh15to24","H14RntrOccHuHh25to34","H14RntrOccHuHh35to44","H14RntrOccHuHh45to54","H14RntrOccHuHh55to59","H14RntrOccHuHh60to64","H14RntrOccHuHh65to74","H14RntrOccHuHh75to84","H14RntrOccHuHh85Over","H15PopInOccHU","H15PopInOwnOccHU1","H15PopInRentOccHU1","H17OccupHUb","H17OwnOccHU2","H17OwnOccHU1PersonHH","H17OwnOccHU2PersonHH","H17OwnOccHU3PersonHH","H17OwnOccHU4PersonHH","H17OwnOccHU5PersonHH","H17OwnOccHU6PersonHH","H17OwnOccHU7PlusPersonHH","H17RentOccHU2","H17RntOccHU1PersonHH","H17RntOccHU2PersonHH","H17RntOccHU3PersonHH","H17RntOccHU4PersonHH","H17RntOccHU5PersonHH","H17RntOccHU6PersonHH","H17RntOccHU7PlusPersonHH","H18AvgHHSize","H18AvgHHSizeOwnOcc","H18AvgHHSizeRentOcc","H23TotHU","H23HU1Room","H23HU2Room","H23HU3Room","H23HU4Room","H23HU5Room","H23HU6Room","H23HU7Room","H23HU8Room","H23HU9orMoreRoom","H24MedianNumRooms","H25AggregNumRooms","H30TotalHU","H30Det1HU","H30Att1HU","H30Units2","H30Units3or4","H30Units5to9","H30Units10to19","H30Units20to49","H30Units50orMore","H30UnitsMobileHome","H30UnitsBoatRv","H32OccHUcTotal","H32OwnerOccHU3","H32OwnOccHU1Det","H32OwnOccHU1Att","H32OwnOccHU2Unit","H32OwnOccHU3to4Unit","H32OwnOccHU5to9Unit","H32OwnOccHU10to19Unit","H32OwnOccHU20to49Unit","H32OwnOccHU50plusUnit","H32OwnOccHUMobHom","H32OwnOccHUBoatRVOth","H32RentrOccHU3","H32RntrOccHU1Det","H32RntrOccHU1Att","H32RntrOccHU2Unit","H32RntrOccHU3to4Unit","H32RntrOccHU5to9Unit","H32RntrOccHU10to19Unit","H32RntrOccHU20to49Unit","H32RntrOccHU50PlusUnit","H32RntrOccHUMobHom","H32RntrOccHUBoatRVOth","H33TotPopInOccHU","H33PopInOwnOccHU2","H33PopInOOHU1Det","H33PopInOOHU1Att","H33PopInOOHU2unit","H33PopInOOHU3to4Unit","H33PopInOOHU5to9Unit","H33PopInOOHU10to19Unit","H33PopInOOHU20to49Unit","H33PopInOOHU50PlusUnit","H33PopInOOHUMobilHome","H33PopInOOHUOtherUnit","H33PopInRentOccHU2","H33PopInROHU1Det","H33PopInROHU1Att","H33PopInROHU2Unit","H33PopInROHU3to4Unit","H33PopInROHU5to9Unit","H33PopInROHU10to19Unit","H33PopInROHU20to49Unit","H33PopInROHU50PlusUnit","H33PopInROHUMobilHome","H33PopInROHUOtherUnit","H36OccHousingUnitsdTotal","H36OwnerOccHU4","H36OOHUBuilt99to0300","H36OOHUBuilt95to98","H36OOHUBuilt90to94","H36OOHUBuilt80to89","H36OOHUBuilt70to79","H36OOHUBuilt60to69","H36OOHUBuilt50to59","H36OOHUBuilt40to49","H36OOHUBuilt39Earlier","H36RentOccHU4","H36ROHUBuilt99to0300","H36ROHUBuilt95to98","H36ROHUBuilt90to94","H36ROHUBuilt80to89","H36ROHUBuilt70to79","H36ROHUBuilt60to69","H36ROHUBuilt50to59","H36ROHUBuilt40to49","H36ROHUBuilt39Earlier","H40OccupHousUnitse","H40HeatFuelUtilGas","H40HeatFuelBotGas","H40HeatFuelElect","H40HeatFuelOilKero","H40HeatFuelCoal","H40HeatFuelWood","H40HeatFuelSolar","H40HeatFuelOther","H40HeatFuelNone","H41TotalHU","H41HUNoBdrm","H41HU1Bdrm","H41HU2Bdrm","H41HU3Bdrm","H41HU4Bdrm","H41HU5MoreBdrm","H42OccuHousUnitf","H42OwnerOccHU5","H42OOHUNoBdrm","H42OOHU1Bdrm","H42OOHU2Bdrm","H42OOHU3Bdrm","H42OOHU4Bdrm","H42OOHU5PlusBdrm","H42RentOccHU5","H42ROHUNoBdrm","H42ROHU1Bdrm","H42ROHU2Bdrm","H42ROHU3Bdrm","H42ROHU4Bdrm","H42ROHU5PlusBdrm","H48OccupHousUnitsg","H48OwnerOccHU6","H48OOHUwCompltPlumFacil","H48OOHULackCompltPlumFacil","H48RentOccHU6","H48ROHUwCompltPlumFacil","H48ROHULackCompltPlumFacil","H51OccupHousUnitf","H51OwnerOccHU7","H51OOHUwCompleteKitFacil","H51OOHULackCompleteKitFacil","H51RenterOccHU7","H51ROHUwCompleteKitFacil","H51ROHULackCompleteKitFacil"]
["Allenstown","0002575","00660",4843,1962,278,274,4,1962,1962,1277,0,1277,685,0,685,1902,1356,546,60,0,15,15,0,0,30,1902,1356,34,204,386,297,86,90,180,60,19,546,10,116,144,87,32,29,28,60,40,4808,3709,1099,1902,1356,276,383,301,288,84,18,6,546,243,176,31,50,28,18,0,3,3,2,1962,0,73,162,419,634,336,197,51,90,5,10181,1962,829,42,136,116,193,6,14,0,626,0,1902,1356,769,13,22,14,25,0,0,0,513,0,546,60,29,114,102,153,6,14,0,68,0,4808,3709,2157,36,56,20,25,0,0,0,1415,0,1099,178,60,223,257,239,6,13,0,123,0,1902,1356,66,114,54,200,417,209,91,52,153,546,0,30,21,138,164,49,24,14,106,1902,254,192,161,1233,6,56,0,0,0,1962,0,245,674,854,163,26,1902,1356,0,34,401,753,142,26,546,0,211,228,86,21,0,1902,1356,1349,7,546,538,8,1902,1356,1356,0,546,538,8]
["Andover","0002590","01460",2109,1038,491,382,109,1038,1038,0,0,0,1038,9,1029,823,682,141,215,2,14,11,174,0,14,823,682,2,79,148,174,64,62,90,49,14,141,10,34,45,24,7,7,8,4,2,2095,1776,319,823,682,119,283,119,109,34,10,8,141,50,29,29,29,4,0,0,3,3,2,1038,15,16,46,180,221,209,170,83,98,6,6098,1038,871,12,25,25,9,2,0,0,92,2,823,682,603,8,2,0,0,0,0,0,69,0,141,70,2,21,20,9,2,0,0,17,0,2095,1776,1603,13,2,0,0,0,0,0,158,0,319,155,5,51,52,15,2,0,0,39,0,823,682,11,36,50,142,93,52,50,42,206,141,0,2,4,17,18,11,11,17,61,823,2,107,0,595,0,119,0,0,0,1038,15,75,331,453,125,39,823,682,4,14,187,346,107,24,141,3,25,59,40,7,7,823,682,676,6,141,138,3,823,682,678,4,141,138,3]
["Boscawen","0002596","06260",3672,1295,202,200,2,1295,1295,550,0,550,745,0,745,1260,948,312,35,17,0,18,0,0,0,1260,948,11,113,271,179,66,109,104,50,45,312,18,104,66,42,31,12,25,14,0,3242,2583,659,1260,948,164,363,180,152,62,20,7,312,110,88,59,49,6,0,0,3,3,2,1295,0,47,95,280,293,248,148,103,81,5,7122,1295,775,18,87,131,32,26,0,0,226,0,1260,948,719,18,31,0,0,0,0,0,180,0,312,39,0,56,113,32,26,0,0,46,0,3242,2583,2019,28,94,0,0,0,0,0,442,0,659,102,0,133,219,80,28,0,0,97,0,1260,948,9,81,38,184,141,137,46,66,246,312,0,0,32,49,78,23,25,7,98,1260,169,167,113,757,7,47,0,0,0,1295,0,153,463,463,178,38,1260,948,0,44,288,405,173,38,312,0,74,175,58,5,0,1260,948,948,0,312,312,0,1260,948,948,0,312,312,0]
["Bow","0002606","06500",7138,2330,249,248,1,2330,2330,966,0,966,1364,9,1355,2304,2194,110,26,0,0,0,26,0,0,2304,2194,0,143,716,651,265,143,200,55,21,110,0,34,46,13,0,17,0,0,0,7138,6896,242,2304,2194,198,742,388,570,214,46,36,110,0,17,40,34,0,0,19,3,3,2,2330,0,6,10,77,189,415,655,443,535,7,17264,2330,2301,11,0,12,0,0,0,0,6,0,2304,2194,2177,11,0,0,0,0,0,0,6,0,110,98,0,0,12,0,0,0,0,0,0,7138,6896,6866,11,0,0,0,0,0,0,19,0,242,220,0,0,22,0,0,0,0,0,0,2304,2194,34,201,163,649,549,297,144,20,137,110,0,13,0,17,0,44,0,0,36,2304,353,240,156,1483,0,72,0,0,0,2330,0,16,193,1274,684,163,2304,2194,0,16,161,1189,684,144,110,0,0,32,59,0,19,2304,2194,2194,0,110,110,0,2304,2194,2194,0,110,110,0]
["Bradford","0002617","06980",1454,762,361,258,103,762,762,0,0,0,762,10,752,559,444,115,203,0,11,2,182,0,8,559,444,2,42,88,151,23,22,82,21,13,115,11,20,27,29,12,4,3,9,0,1433,1205,228,559,444,70,175,84,78,19,6,12,115,45,37,14,15,4,0,0,3,3,2,762,13,13,53,153,146,146,82,82,74,6,4386,762,673,7,15,24,12,9,0,0,22,0,559,444,422,3,3,0,0,0,0,0,16,0,115,60,0,8,24,12,9,0,0,2,0,1433,1205,1127,13,13,0,0,0,0,0,52,0,228,113,0,21,55,16,20,0,0,3,0,559,444,3,19,35,66,74,43,19,15,170,115,0,0,0,17,18,20,12,4,44,559,4,106,27,339,2,79,2,0,0,762,13,86,241,282,94,46,559,444,0,19,138,178,72,37,115,5,39,40,20,6,5,559,444,440,4,115,112,3,559,444,442,2,115,115,0]
["Canterbury","0002622","09860",1979,838,375,352,23,838,838,2,0,2,836,22,814,749,677,72,89,4,3,0,82,0,0,749,677,2,58,155,247,72,34,62,45,2,72,3,2,20,12,7,0,10,12,6,1976,1839,137,749,677,85,292,135,111,37,14,3,72,29,24,9,8,2,0,0,3,3,2,838,0,22,22,83,186,172,147,101,105,6,5291,838,793,7,23,0,3,0,0,0,12,0,749,677,667,4,2,0,0,0,0,0,4,0,72,48,0,17,0,3,0,0,0,4,0,1976,1839,1816,10,6,0,0,0,0,0,7,0,137,102,0,19,0,4,0,0,0,12,0,749,677,11,39,59,198,123,58,35,18,136,72,0,2,2,8,12,7,4,2,35,749,22,125,24,460,0,108,10,0,0,838,2,48,227,381,144,36,749,677,2,14,167,332,130,32,72,0,14,33,14,7,4,749,677,677,0,72,70,2,749,677,675,2,72,72,0]
["Chichester","0002629","12420",2236,849,374,362,12,849,849,0,0,0,849,4,845,823,729,94,26,0,4,3,10,0,9,823,729,2,111,209,210,34,35,90,23,15,94,5,28,13,18,4,0,21,0,5,2228,2019,209,823,729,115,257,149,138,56,14,0,94,30,20,25,14,0,2,3,3,3,2,849,0,14,25,104,173,222,132,89,90,6,5252,849,707,15,26,19,0,0,0,0,82,0,823,729,649,6,12,2,0,0,0,0,60,0,94,36,9,14,17,0,0,0,0,18,0,2228,2019,1829,16,25,12,0,0,0,0,137,0,209,84,19,18,48,0,0,0,0,40,0,823,729,30,49,48,193,154,50,33,20,152,94,0,0,9,11,5,2,5,0,62,823,2,99,18,617,0,79,6,2,0,849,0,43,235,455,92,24,823,729,0,27,189,408,86,19,94,0,14,37,32,6,5,823,729,722,7,94,92,2,823,729,722,7,94,94,0]
["Concord","0002635","14200",40687,16881,2267,2210,57,16881,16881,15141,0,15141,1740,36,1704,16281,8383,7898,600,306,79,63,89,15,48,16281,8383,86,836,2095,2045,731,544,1081,728,237,7898,761,2137,1739,1198,394,234,501,589,345,37410,22259,15151,16281,8383,1789,2940,1439,1409,624,153,29,7898,3529,2401,1105,593,209,42,19,2,3,2,16881,310,595,2216,3896,3134,2648,1960,1066,1056,5,88098,16881,6874,662,1720,1621,1506,1231,1539,661,1067,0,16281,8383,6054,458,502,260,123,79,11,0,896,0,7898,690,197,1145,1286,1292,1064,1451,651,122,0,37410,22259,17234,896,1240,642,285,144,9,0,1809,0,15151,1817,491,2477,2303,2430,1859,2683,826,265,0,16281,8383,133,303,422,1676,1152,671,615,444,2967,7898,20,99,481,1735,1133,863,472,354,2741,16281,7425,764,2861,4765,0,166,0,269,31,16881,421,2867,6487,5103,1613,390,16281,8383,8,241,2355,4052,1380,347,7898,403,2459,3809,971,213,43,16281,8383,8369,14,7898,7875,23,16281,8383,8375,8,7898,7796,102]
["Danbury","0002701","16980",1071,596,281,190,91,596,596,0,0,0,596,6,590,435,375,60,161,0,16,7,125,0,13,435,375,9,32,101,82,30,25,48,29,19,60,6,20,15,9,2,3,2,3,0,1071,915,156,435,375,85,157,63,46,24,0,0,60,9,19,18,9,3,2,0,2,2,3,596,9,22,31,99,171,154,33,61,16,5,3200,596,494,7,6,19,0,0,0,0,64,6,435,375,322,7,2,3,0,0,0,0,38,3,60,35,0,4,9,0,0,0,0,12,0,1071,915,790,15,3,3,0,0,0,0,102,2,156,85,0,9,18,0,0,0,0,44,0,435,375,11,30,16,95,76,35,9,17,86,60,0,0,0,7,10,16,10,0,17,435,3,101,5,251,0,75,0,0,0,596,9,65,204,250,53,15,435,375,0,23,132,159,48,13,60,0,11,21,24,4,0,435,375,363,12,60,60,0,435,375,370,5,60,60,0]
["Dunbarton","0002706","19460",2226,858,355,344,11,858,858,0,0,0,858,15,843,814,735,79,44,2,0,4,34,0,4,814,735,2,90,245,199,62,49,57,25,6,79,6,21,34,10,0,0,3,5,0,2226,2082,144,814,735,97,303,123,154,47,9,2,79,17,23,17,9,13,0,0,3,3,2,858,3,8,23,80,136,221,186,109,92,6,5508,858,801,15,9,17,0,0,0,0,16,0,814,735,709,7,3,0,0,0,0,0,16,0,79,50,8,6,15,0,0,0,0,0,0,2226,2082,2016,23,10,0,0,0,0,0,33,0,144,87,17,13,27,0,0,0,0,0,0,814,735,18,117,77,146,121,45,54,16,141,79,0,7,0,17,9,5,5,8,28,814,0,99,17,610,0,88,0,0,0,858,3,50,203,443,125,34,814,735,0,29,150,407,118,31,79,3,17,30,23,3,3,814,735,733,2,79,79,0,814,735,733,2,79,79,0]
["Epsom","0002712","24900",4021,1592,249,232,17,1592,1592,0,0,0,1592,6,1586,1491,1211,280,101,4,0,0,87,0,10,1491,1211,6,171,374,333,77,76,106,40,28,280,29,67,84,21,23,0,15,34,7,3903,3363,540,1491,1211,176,481,218,233,68,31,4,280,118,77,20,46,14,0,5,3,3,2,1592,23,30,107,318,325,300,254,126,109,6,8977,1592,1069,25,92,29,8,20,0,13,326,10,1491,1211,905,0,30,0,0,0,0,0,276,0,280,94,18,58,29,8,20,0,13,40,0,3903,3363,2691,0,111,0,0,0,0,0,561,0,540,194,59,129,32,5,22,0,13,86,0,1491,1211,34,94,121,340,314,71,54,27,156,280,33,7,8,79,30,19,21,0,83,1491,0,254,72,1061,0,96,0,8,0,1592,23,152,500,707,184,26,1491,1211,8,48,339,618,172,26,280,0,95,100,73,12,0,1491,1211,1205,6,280,280,0,1491,1211,1211,0,280,280,0]
["Franklin","0002721","27380",8405,3676,430,382,48,3676,3676,2947,0,2947,729,12,717,3319,1911,1408,357,50,36,0,237,0,34,3319,1911,19,178,507,474,119,62,305,214,33,1408,164,328,205,196,104,88,167,127,29,8187,4981,3206,3319,1911,352,724,387,241,153,21,33,1408,545,428,173,170,47,14,31,2,3,2,3676,6,131,529,715,613,748,408,243,283,5,19898,3676,2090,51,394,321,233,236,123,53,175,0,3319,1911,1680,16,54,7,15,0,0,0,139,0,1408,160,35,291,284,211,236,123,53,15,0,8187,4981,4488,42,110,34,17,0,0,0,290,0,3206,368,59,823,814,426,389,212,75,40,0,3319,1911,56,28,41,286,193,140,252,237,678,1408,14,0,70,187,185,138,94,104,616,3319,774,249,271,1960,0,45,0,11,9,3676,24,685,1117,1243,420,187,3319,1911,0,70,436,969,306,130,1408,18,566,535,177,93,19,3319,1911,1875,36,1408,1390,18,3319,1911,1902,9,1408,1390,18]
["Henniker","0002743","35540",4433,1679,257,237,20,1679,1679,0,0,0,1679,0,1679,1585,1085,500,94,18,5,14,51,0,6,1585,1085,6,82,336,323,143,62,64,55,14,500,100,99,135,79,12,10,10,45,10,3998,2882,1116,1585,1085,192,375,186,222,90,20,0,500,223,135,72,42,10,18,0,3,3,2,1679,18,74,168,271,322,264,280,121,161,6,9486,1679,1064,60,98,143,156,41,10,6,94,7,1585,1085,911,33,36,5,6,0,0,0,87,7,500,97,27,62,119,138,41,10,6,0,0,3998,2882,2457,91,75,22,4,0,0,0,220,13,1116,293,60,197,225,255,57,11,18,0,0,1585,1085,14,57,86,332,239,68,51,0,238,500,6,8,29,58,77,29,11,27,255,1585,36,362,124,816,10,232,0,0,5,1679,18,251,509,625,244,32,1585,1085,0,64,259,519,220,23,500,12,155,221,81,22,9,1585,1085,1058,27,500,500,0,1585,1085,1078,7,500,500,0]
["Hill","0002754","35860",992,436,194,167,27,436,436,0,0,0,436,5,431,382,332,50,54,0,4,0,50,0,0,382,332,3,31,91,76,27,18,48,30,8,50,4,21,17,3,0,0,0,5,0,992,896,96,382,332,79,123,50,53,17,6,4,50,5,18,8,14,5,0,0,3,3,2,436,0,2,27,83,76,112,66,25,45,6,2581,436,364,17,5,0,0,0,0,0,50,0,382,332,279,13,2,0,0,0,0,0,38,0,50,35,4,3,0,0,0,0,0,8,0,992,896,757,40,4,0,0,0,0,0,95,0,96,64,10,8,0,0,0,0,0,14,0,382,332,8,12,27,56,56,26,40,33,74,50,0,3,4,10,15,4,0,12,2,382,0,41,3,271,0,67,0,0,0,436,0,37,134,188,61,16,382,332,0,25,91,157,45,14,50,0,0,31,15,4,0,382,332,329,3,50,46,4,382,332,332,0,50,50,0]
["Hooksett","0002759","37300",11721,4307,461,453,8,4307,4307,2994,2994,0,1313,7,1306,4147,3306,841,160,48,60,0,16,0,36,4147,3306,11,379,1019,780,340,225,316,187,49,841,85,230,210,146,11,39,67,41,12,10855,9238,1617,4147,3306,491,1234,652,625,220,84,0,841,324,252,126,101,28,10,0,3,3,2,4307,17,111,209,632,934,966,789,503,146,6,24867,4307,2641,431,274,245,81,17,280,72,266,0,4147,3306,2452,404,78,111,32,11,14,0,204,0,841,137,27,136,118,49,6,234,72,62,0,10855,9238,7161,994,211,313,112,31,34,0,382,0,1617,242,89,305,173,89,17,289,286,127,0,4147,3306,127,341,227,960,621,454,227,87,262,841,0,0,103,256,169,50,80,25,158,4147,1161,284,191,2375,9,67,0,35,25,4307,17,313,1477,1996,439,65,4147,3306,0,32,958,1838,420,58,841,17,281,395,122,19,7,4147,3306,3290,16,841,816,25,4147,3306,3298,8,841,841,0]
["Hopkinton","0002799","37540",5399,2210,355,333,22,2210,2210,0,0,0,2210,20,2190,2084,1798,286,126,6,20,0,69,0,31,2084,1798,0,156,444,470,219,104,218,134,53,286,17,29,91,58,12,12,25,30,12,5399,4820,579,2084,1798,303,690,314,306,119,66,0,286,121,94,41,30,0,0,0,3,3,2,2210,0,29,93,163,335,550,355,298,387,6,14703,2210,1829,44,96,34,49,0,35,0,123,0,2084,1798,1599,33,48,0,7,0,0,0,111,0,286,114,11,48,30,36,0,35,0,12,0,5399,4820,4427,50,129,0,11,0,0,0,203,0,579,273,13,75,63,63,0,65,0,27,0,2084,1798,49,170,90,405,310,197,115,64,398,286,0,0,31,52,17,12,18,11,145,2084,18,394,103,1457,0,100,0,12,0,2210,6,144,517,1021,409,113,2084,1798,0,47,372,879,387,113,286,6,90,101,77,12,0,2084,1798,1791,7,286,286,0,2084,1798,1786,12,286,286,0]
["Loudon","0002813","43380",4481,1684,259,251,8,1684,1684,0,0,0,1684,19,1665,1611,1445,166,73,0,12,0,61,0,0,1611,1445,19,201,419,453,107,45,128,67,6,166,0,45,48,45,0,7,21,0,0,4479,4062,417,1611,1445,207,532,283,258,116,39,10,166,38,56,31,31,0,0,10,3,3,3,1684,0,8,72,188,473,367,263,160,153,6,10202,1684,1306,13,53,29,13,0,0,0,270,0,1611,1445,1185,13,14,0,0,0,0,0,233,0,166,80,0,31,29,13,0,0,0,13,0,4479,4062,3372,37,46,0,0,0,0,0,607,0,417,246,0,79,40,15,0,0,0,37,0,1611,1445,51,91,143,518,207,84,60,32,259,166,0,12,7,18,12,27,24,6,60,1611,59,336,27,1025,6,152,0,6,0,1684,0,79,412,877,264,52,1611,1445,0,32,321,819,228,45,166,0,43,51,29,36,7,1611,1445,1445,0,166,166,0,1611,1445,1445,0,166,166,0]
["New London","0002826","52100",4116,2085,355,269,86,2085,2085,0,0,0,2085,13,2072,1574,1297,277,511,4,34,19,426,0,28,1574,1297,4,23,158,234,88,84,348,304,54,277,31,45,54,56,8,15,9,28,31,3406,3038,368,1574,1297,289,677,134,124,61,6,6,277,166,57,34,11,9,0,0,2,2,1,2085,6,68,114,168,309,443,403,264,310,6,13392,2085,1636,179,51,53,72,0,88,0,0,6,1574,1297,1100,101,32,0,20,0,38,0,0,6,277,117,8,14,53,48,0,37,0,0,0,3406,3038,2667,207,51,0,57,0,44,0,0,12,368,184,5,15,57,75,0,32,0,0,0,1574,1297,62,166,91,263,208,140,91,40,236,277,0,0,0,78,22,16,27,24,110,1574,33,321,117,1033,8,62,0,0,0,2085,33,142,482,922,347,159,1574,1297,6,16,246,643,282,104,277,7,91,113,58,0,8,1574,1297,1297,0,277,277,0,1574,1297,1297,0,277,277,0]
["Newbury","0002820","50900",1702,1313,630,327,303,1311,1313,0,0,0,1313,0,1313,694,600,94,619,6,8,8,588,0,9,694,600,2,59,139,139,46,50,111,46,8,94,4,24,13,30,6,5,5,7,0,1705,1506,199,694,600,124,263,93,79,24,11,6,94,30,30,16,9,4,5,0,2,3,2,1313,3,20,79,192,262,317,181,132,127,6,7853,1313,1261,30,7,4,0,0,0,0,11,0,694,600,574,12,7,2,0,0,0,0,5,0,94,92,0,0,2,0,0,0,0,0,0,1705,1506,1458,23,16,3,0,0,0,0,6,0,199,193,0,0,6,0,0,0,0,0,0,694,600,18,41,72,156,119,56,24,12,102,94,0,3,6,18,27,7,0,13,20,694,4,194,24,380,2,85,0,5,0,1313,5,93,363,617,164,71,694,600,0,25,130,323,88,34,94,0,7,20,50,12,5,694,600,598,2,94,94,0,694,600,599,1,94,94,0]
["Northfield","0002833","54260",4548,1782,269,255,14,1782,1782,734,0,734,1048,12,1036,1706,1158,548,76,4,16,16,40,0,0,1706,1158,6,97,362,299,145,47,115,81,6,548,77,131,79,78,52,6,54,57,14,4489,3216,1273,1706,1158,191,432,208,211,76,13,27,548,149,162,131,81,18,7,0,3,3,2,1782,9,49,62,507,418,347,181,98,111,5,9654,1782,1081,46,96,92,136,14,98,9,210,0,1706,1158,914,24,30,13,14,0,6,0,157,0,548,99,22,58,79,122,14,92,9,53,0,4489,3216,2605,52,141,56,20,0,12,0,330,0,1273,259,65,104,167,308,18,178,12,162,0,1706,1158,12,52,112,310,233,95,58,41,245,548,0,8,31,159,102,49,49,22,128,1706,261,243,126,963,0,106,0,0,7,1782,9,143,679,732,173,46,1706,1158,0,52,276,636,153,41,548,9,79,385,55,20,0,1706,1158,1158,0,548,548,0,1706,1158,1152,6,548,548,0]
["Pembroke","0002848","60020",6897,2734,302,297,5,2734,2734,1924,0,1924,810,0,810,2661,1808,853,73,7,43,0,23,0,0,2661,1808,31,184,510,449,197,131,196,80,30,853,145,115,289,123,25,44,36,66,10,6897,5309,1588,2661,1808,284,559,381,390,142,26,26,853,331,284,132,78,28,0,0,3,3,2,2734,8,95,285,391,535,429,433,275,283,6,15927,2734,1578,132,225,267,260,18,44,64,146,0,2661,1808,1478,108,98,53,0,9,0,0,62,0,853,86,17,125,214,253,9,44,64,41,0,6897,5309,4547,232,236,116,0,12,0,0,166,0,1588,182,48,254,371,466,13,76,131,47,0,2661,1808,23,37,72,516,318,206,152,55,429,853,0,9,9,115,146,54,61,35,424,2661,519,341,183,1484,8,88,0,29,9,2734,8,374,876,887,482,107,2661,1808,8,35,390,813,465,97,853,0,337,415,74,17,10,2661,1808,1808,0,853,853,0,2661,1808,1808,0,853,853,0]
["Pittsfield","0002869","61940",3931,1569,231,219,12,1569,1569,0,0,0,1569,0,1569,1498,914,584,71,16,9,16,14,0,16,1498,914,11,109,250,164,97,68,128,82,5,584,77,142,126,87,19,23,53,23,34,3925,2679,1246,1498,914,120,384,143,141,75,47,4,584,219,137,114,82,32,0,0,3,3,2,1569,10,74,177,274,324,283,178,44,205,5,8751,1569,878,15,101,137,135,53,102,30,118,0,1498,914,748,15,39,5,0,0,0,0,107,0,584,86,0,62,120,131,53,102,30,0,0,3925,2679,2291,24,92,15,0,0,0,0,257,0,1246,207,0,137,236,309,103,171,83,0,0,1498,914,17,72,49,213,82,31,40,35,375,584,7,0,38,104,77,11,32,19,296,1498,105,286,42,966,0,99,0,0,0,1569,10,274,459,516,229,81,1498,914,10,26,212,399,193,74,584,0,228,227,86,36,7,1498,914,904,10,584,584,0,1498,914,904,10,584,584,0]
["Salisbury","0002880","66980",1137,514,240,196,44,514,514,0,0,0,514,2,512,435,410,25,79,2,4,2,69,0,2,435,410,8,48,86,102,57,44,38,23,4,25,0,12,8,2,0,3,0,0,0,1137,1075,62,435,410,72,183,48,64,35,6,2,25,2,10,8,3,2,0,0,3,3,2,514,2,7,23,77,117,124,57,54,53,6,3083,514,481,5,10,1,0,0,0,0,17,0,435,410,387,5,2,0,0,0,0,0,16,0,25,18,0,6,0,0,0,0,0,1,0,1137,1075,1030,13,2,0,0,0,0,0,30,0,62,40,0,17,0,0,0,0,0,5,0,435,410,7,23,25,126,68,44,16,8,93,25,0,0,0,5,2,3,0,2,13,435,2,57,8,271,0,94,0,3,0,514,2,24,156,237,73,22,435,410,0,11,106,210,68,15,25,0,0,12,7,3,3,435,410,408,2,25,25,0,435,410,410,0,25,25,0]
["Sutton","0002885","75460",1544,824,391,289,102,826,824,0,0,0,824,4,820,618,527,91,206,4,8,4,174,0,16,618,527,0,29,112,164,52,39,80,48,3,91,5,10,24,26,8,6,4,6,2,1528,1325,203,618,527,90,241,76,72,44,2,2,91,31,25,23,10,2,0,0,2,3,2,824,25,16,73,106,161,161,133,70,79,6,4752,824,766,13,30,2,0,0,0,0,13,0,618,527,506,11,2,0,0,0,0,0,8,0,91,59,2,23,2,0,0,0,0,5,0,1528,1325,1280,28,2,0,0,0,0,0,15,0,203,139,2,40,3,0,0,0,0,19,0,618,527,4,12,36,142,83,36,29,14,171,91,0,0,7,14,12,10,17,6,25,618,7,150,16,340,0,101,4,0,0,824,27,66,230,384,94,23,618,527,0,15,126,288,75,23,91,0,16,29,40,6,0,618,527,520,7,91,87,4,618,527,524,3,91,87,4]
["Warner","0002891","78580",2760,1228,547,477,70,1228,1228,0,0,0,1228,2,1226,1048,797,251,180,8,13,3,153,0,3,1048,797,4,61,183,251,88,51,101,46,12,251,16,61,48,49,14,15,19,20,9,2646,2111,535,1048,797,139,307,145,125,50,18,13,251,117,70,24,24,5,5,6,3,3,2,1228,16,34,129,235,234,235,108,113,124,5,6891,1228,921,8,41,58,39,12,15,0,134,0,1048,797,692,6,6,9,0,3,0,0,81,0,251,98,2,32,49,36,9,15,0,10,0,2646,2111,1851,9,16,21,0,12,0,0,202,0,535,262,2,70,79,61,11,22,0,28,0,1048,797,10,58,52,156,78,59,54,21,309,251,5,0,38,37,40,19,10,13,89,1048,4,206,30,667,11,117,4,7,2,1228,20,175,435,403,156,39,1048,797,4,51,244,333,134,31,251,12,88,93,36,18,4,1048,797,791,6,251,245,6,1048,797,792,5,251,251,0]
["Webster","0002897","80020",1579,672,303,273,30,672,672,0,0,0,672,6,666,581,535,46,91,0,9,3,76,0,3,581,535,8,54,142,160,43,41,47,25,15,46,1,14,10,9,2,4,4,2,0,1575,1444,131,581,535,73,218,99,102,21,16,6,46,10,16,11,9,0,0,0,3,3,3,672,3,2,39,74,174,153,101,62,64,6,4051,672,614,8,0,4,0,0,0,0,43,3,581,535,491,6,0,2,0,0,0,0,36,0,46,38,2,0,2,0,0,0,0,4,0,1575,1444,1343,11,0,7,0,0,0,0,83,0,131,95,15,0,8,0,0,0,0,13,0,581,535,6,47,45,109,103,90,34,6,95,46,0,4,5,8,13,2,7,5,2,581,2,120,6,358,0,95,0,0,0,672,3,48,193,291,105,32,581,535,0,17,145,254,90,29,46,0,10,18,15,3,0,581,535,530,5,46,41,5,581,535,533,2,46,44,2]
["Wilmot","0002902","84900",1144,530,239,206,33,530,530,0,0,0,530,11,519,459,391,68,71,0,6,2,55,0,8,459,391,3,29,81,117,37,41,49,24,10,68,3,23,10,7,8,5,12,0,0,1144,1025,119,459,391,79,162,57,62,24,7,0,68,23,26,11,5,3,0,0,2,3,2,530,10,18,26,60,78,136,78,66,58,6,3224,530,470,8,17,8,12,0,0,0,15,0,459,391,366,3,13,1,0,0,0,0,8,0,68,41,3,4,5,12,0,0,0,3,0,1144,1025,976,7,23,6,0,0,0,0,13,0,119,73,5,9,7,22,0,0,0,3,0,459,391,6,23,39,98,55,31,12,20,107,68,0,2,3,15,5,10,4,0,29,459,0,110,2,317,0,30,0,0,0,530,10,40,129,257,74,20,459,391,2,10,91,209,68,11,68,1,15,19,31,2,0,459,391,387,4,68,67,1,459,391,386,5,68,68,0]
[]
[]
[]
[]
[]
[]
[]
[]
[]
[]
[]
[]
[]
[]
[]
[]
[]
[]
[]
[]
[]
["Census 2000 SummaryFile3 Sample Data  -  SF3TownQry8HousingCostA"]
[]
["TOWN_NAME","LOGRECNO","COUSUB","TotalPop","H62RntrOccHU","H62RntrOccHUwRent","H62ROHUGRent<100","H62ROHUGRent100to149","H62ROHUGRent150to199","H62ROHUGRent200to249","H62ROHUGRent250to299","H62ROHUGRent300to349","H62ROHUGRent350to399","H62ROHUGRent400to449","H62ROHUGRent450to499","H62ROHUGRent500to549","H62ROHUGRent550to599","H62ROHUGRent600to649","H62ROHUGRent650to699","H62ROHUGRent700to749","H62ROHUGRent750to799","H62ROHUGRent800to899","H62ROHUGRent900to999","H62ROHUGRent1000to1249","H62ROHUGRent1250to1499","H62ROHUGRent1500to1999","H62ROHUGRent2000>","H62ROHUNoGRent","H63MedianGrossRnt","H69RenterOccHsU","H69GRnt<10PctHHInc","H69GRnt10to15PctHHInc","H69GRnt15to20PctHHInc","H69GRnt20to25PctHHInc","H69GRnt25to30PctHHInc","H69GRnt30to35PctHHInc","H69GRnt35to40PctHHInc","H69GRnt40to50PctHHInc","H69GRnt>50PctHHInc","H69GRntPctNotcomputed","H73RenterOccHU","H73ROHUHhInc<10k","H73ROHUHhInc<10kRnt<20pct","H73ROHUHhInc<10kRnt20to25pct","H73ROHUHhInc<10kRnt25to30pct","H73ROHUHhInc<10kRnt30to35pct","H73ROHUHhInc<10kRnt>35pct","H73ROHUHhInc<10kPctNotComput","H73ROHUHhInc10to20k","H73ROHUHhInc10to20kRnt<20pct","H73ROHUHhInc10to20kRnt20to25pct","H73ROHUHhInc10to20kRnt25to30pct","H73ROHUHhInc10to20kRnt30to35pct","H73ROHUHhInc10to20kRnt>35pct","H73ROHUHhInc10to20kRntPctNC","H73ROHUHhInc20to35k","H73ROHUHhInc20to35kRnt<20pct","H73ROHUHhInc20to35kRnt20to25pct","H73ROHUHhInc20to35kRnt25to30pct","H73ROHUHhInc20to35kRnt30to35pct","H73ROHUHhInc20to35kRnt>35pct","H73ROHUHhInc20to35kRntPctNC","H73ROHUHhInc35to40k","H73ROHUHhInc35to40kRnt<20pct","H73ROHUHhInc35to40kRnt20to25pct","H73ROHUHhInc35to40kRnt25to30pct","H73ROHUHhInc35to40kRnt30to35pct","H73ROHUHhInc35to40kRnt>35pct","H73ROHUHhInc35to40kRntPctNC","H73ROHUHhInc50to75k","H73ROHUHhInc50to75kRnt<20pct","H73ROHUHhInc50to75kRnt20to25pct","H73ROHUHhInc50to75kRnt25to30pct","H73ROHUHhInc50to75kRnt30to35pct","H73ROHUHhInc50to75kRnt>35pct","H73ROHUHhInc50to75kRntPctNC","H73ROHUHhInc75to100k","H73ROHUHhInc75to100kRnt<20pct","H73ROHUHhInc75to100kRnt20to25pct","H73ROHUHhInc75to100kRnt25to30pct","H73ROHUHhInc75to100kRnt30to35pct","H73ROHUHhInc75to100kRnt>35pct","H73ROHUHhInc75to100kRntPctNC","H73ROHUHhInc>100k","H73ROHUHhInc>100kRnt<20pct","H73ROHUHhInc>100kRnt20to25pct","H73ROHUHhInc>100kRnt25to30pct","H73ROHUHhInc>100kRnt30to35pct","H73ROHUHhInc>100kRnt>35pct","H73ROHUHhInc>100kRntPctNC"]
["Allenstown","0002575","00660",4843,536,514,12,14,7,8,6,0,24,42,35,54,58,49,18,53,46,12,33,36,7,0,0,22,597,536,35,53,89,91,36,69,36,55,50,22,536,82,12,14,0,21,28,7,70,0,0,0,6,64,0,163,17,26,36,35,49,0,104,50,32,0,7,0,15,80,61,19,0,0,0,0,21,21,0,0,0,0,0,16,16,0,0,0,0,0]
["Andover","0002590","01460",2109,123,103,0,0,0,0,0,0,4,9,9,19,13,15,7,2,2,7,4,12,0,0,0,20,590,123,7,17,18,11,21,6,4,5,14,20,123,11,0,0,0,0,9,2,18,0,0,2,4,12,0,28,0,7,15,2,2,2,36,25,0,4,0,0,7,16,5,4,0,0,0,7,10,10,0,0,0,0,0,4,2,0,0,0,0,2]
["Boscawen","0002596","06260",3672,312,303,0,0,0,18,5,0,14,34,8,53,59,27,16,16,18,16,0,0,10,9,0,9,567,312,35,11,28,61,19,46,34,0,69,9,312,50,0,0,0,0,50,0,67,5,0,14,7,32,9,110,8,46,5,39,12,0,39,15,15,0,0,9,0,6,6,0,0,0,0,0,9,9,0,0,0,0,0,31,31,0,0,0,0,0]
["Bow","0002606","06500",7138,110,110,0,0,0,0,0,0,0,0,0,0,17,12,13,32,19,0,17,0,0,0,0,0,720,110,0,36,30,0,15,0,0,17,12,0,110,0,0,0,0,0,0,0,29,0,0,0,0,29,0,15,0,0,15,0,0,0,30,30,0,0,0,0,0,0,0,0,0,0,0,0,36,36,0,0,0,0,0,0,0,0,0,0,0,0]
["Bradford","0002617","06980",1454,99,97,0,0,0,0,0,0,8,15,4,8,4,14,0,11,8,13,7,5,0,0,0,2,634,99,2,14,14,13,9,11,10,7,14,5,99,7,0,0,0,0,4,3,24,0,0,2,2,20,0,29,2,7,4,9,7,0,15,8,6,1,0,0,0,14,10,0,2,0,0,2,8,8,0,0,0,0,0,2,2,0,0,0,0,0]
["Canterbury","0002622","09860",1979,55,44,0,0,2,5,2,5,0,2,0,3,2,3,2,4,5,2,0,0,2,5,0,11,617,55,0,0,6,14,7,7,3,3,2,13,55,9,0,2,2,0,3,2,12,2,5,0,0,2,3,14,0,2,5,5,0,2,12,4,5,0,0,0,3,5,0,0,0,2,3,0,0,0,0,0,0,0,0,3,0,0,0,0,0,3]
["Chichester","0002629","12420",2236,81,71,0,0,0,0,0,0,0,3,11,18,7,4,7,11,0,2,0,8,0,0,0,10,575,81,15,14,9,15,6,6,4,0,2,10,81,7,0,0,0,0,2,5,6,0,0,0,6,0,0,24,6,8,3,0,4,3,12,5,7,0,0,0,0,13,10,0,3,0,0,0,11,9,0,0,0,0,2,8,8,0,0,0,0,0]
["Concord","0002635","14200",40687,7872,7706,15,149,157,232,174,169,178,492,453,525,630,717,777,762,658,732,371,281,109,58,67,166,647,7872,344,1002,1502,1310,891,564,245,502,1271,241,7872,1023,55,58,78,21,729,82,1442,123,97,117,170,894,41,1961,313,425,508,319,363,33,1520,696,608,135,47,16,18,1301,1107,107,39,0,16,32,412,356,0,14,7,0,35,213,198,15,0,0,0,0]
["Danbury","0002701","16980",1071,50,44,0,0,0,3,0,5,0,3,5,3,0,3,2,6,5,5,2,2,0,0,0,6,650,50,0,7,6,6,0,5,5,3,12,6,50,5,0,0,0,0,5,0,15,0,0,0,0,15,0,14,6,0,0,2,0,6,9,2,4,0,3,0,0,7,5,2,0,0,0,0,0,0,0,0,0,0,0,0,0,0,0,0,0,0]
["Dunbarton","0002706","19460",2226,53,45,0,0,0,0,0,0,0,3,7,3,2,0,5,14,0,2,0,9,0,0,0,8,709,53,0,10,9,19,2,2,3,0,0,8,53,5,0,0,0,0,0,5,6,0,0,0,0,3,3,5,0,5,0,0,0,0,24,6,14,2,2,0,0,9,9,0,0,0,0,0,4,4,0,0,0,0,0,0,0,0,0,0,0,0]
["Epsom","0002712","24900",4021,264,256,0,6,22,0,8,20,11,15,8,16,25,8,37,12,0,40,0,28,0,0,0,8,594,264,35,30,33,66,21,21,8,8,34,8,264,6,6,0,0,0,0,0,61,0,21,6,7,27,0,80,7,20,8,14,23,8,48,22,19,7,0,0,0,56,50,6,0,0,0,0,13,13,0,0,0,0,0,0,0,0,0,0,0,0]
["Franklin","0002721","27380",8405,1390,1353,0,36,95,130,66,39,66,62,122,124,182,96,82,68,63,60,25,37,0,0,0,37,524,1390,110,115,217,147,222,78,93,75,267,66,1390,337,0,18,83,19,168,49,330,48,0,51,21,200,10,367,94,73,88,38,67,7,163,133,30,0,0,0,0,118,92,26,0,0,0,0,59,59,0,0,0,0,0,16,16,0,0,0,0,0]
["Henniker","0002743","35540",4433,464,437,0,12,26,5,11,10,11,18,63,25,49,70,12,5,24,29,16,37,14,0,0,27,588,464,32,40,67,85,95,31,12,16,53,33,464,56,0,0,6,0,33,17,83,11,5,23,13,31,0,143,32,46,35,18,12,0,91,26,34,20,0,5,6,52,41,0,11,0,0,0,27,17,0,0,0,0,10,12,12,0,0,0,0,0]
["Hill","0002754","35860",992,37,21,0,0,0,0,0,0,0,0,0,0,0,4,7,0,0,4,3,3,0,0,0,16,696,37,0,4,0,11,0,6,0,0,0,16,37,9,0,0,0,0,0,9,7,0,0,0,0,0,7,7,0,4,0,3,0,0,7,0,4,0,3,0,0,7,4,3,0,0,0,0,0,0,0,0,0,0,0,0,0,0,0,0,0,0]
["Hooksett","0002759","37300",11721,841,793,0,12,14,11,11,20,15,40,9,91,84,105,104,71,11,78,36,60,21,0,0,48,643,841,57,113,153,146,42,44,72,67,88,59,841,87,0,12,0,0,64,11,117,11,0,0,20,77,9,216,23,74,0,24,86,9,189,95,45,30,0,0,19,144,117,15,12,0,0,0,43,32,0,0,0,0,11,45,45,0,0,0,0,0]
["Hopkinton","0002799","37540",5399,264,248,0,0,0,6,19,6,6,11,37,30,4,12,19,19,6,18,24,18,7,6,0,16,621,264,12,68,17,32,36,10,6,29,38,16,264,20,0,0,0,0,20,0,77,0,7,24,4,42,0,23,12,0,0,0,11,0,59,30,6,12,0,0,11,42,17,19,0,6,0,0,30,25,0,0,0,0,5,13,13,0,0,0,0,0]
["Loudon","0002813","43380",4481,138,102,0,0,0,0,0,0,0,7,13,21,13,19,0,6,0,18,0,0,5,0,0,36,588,138,25,21,17,0,7,0,19,6,7,36,138,13,0,0,0,0,0,13,34,0,0,7,0,20,7,23,11,0,0,0,12,0,16,0,0,0,0,0,16,35,35,0,0,0,0,0,6,6,0,0,0,0,0,11,11,0,0,0,0,0]
["New London","0002826","52100",4116,277,237,0,8,0,22,0,7,0,24,30,30,22,12,34,22,0,17,0,0,0,9,0,40,546,277,7,24,49,28,61,0,7,17,44,40,277,38,8,0,15,0,15,0,76,0,7,0,0,46,23,75,8,14,46,0,7,0,32,25,7,0,0,0,0,30,30,0,0,0,0,0,0,0,0,0,0,0,0,26,9,0,0,0,0,17]
["Newbury","0002820","50900",1702,83,73,0,0,0,0,0,0,2,2,5,0,6,9,5,4,7,11,9,9,2,0,2,10,775,83,2,12,8,18,8,7,1,7,10,10,83,10,0,0,0,0,10,0,5,0,0,0,2,3,0,28,3,7,6,5,5,2,9,2,5,2,0,0,0,25,13,4,0,0,0,8,2,2,0,0,0,0,0,4,2,2,0,0,0,0]
["Northfield","0002833","54260",4548,548,502,7,21,7,14,9,7,7,0,13,82,93,67,30,65,28,30,9,6,7,0,0,46,595,548,19,51,73,116,74,65,31,22,44,53,548,85,0,15,7,14,36,13,39,0,9,0,0,30,0,195,28,24,54,44,31,14,156,55,68,13,0,0,20,60,47,0,0,7,0,6,13,13,0,0,0,0,0,0,0,0,0,0,0,0]
["Pembroke","0002848","60020",6897,853,825,0,19,19,0,19,0,38,48,111,135,98,68,76,53,34,55,33,11,8,0,0,28,562,853,53,107,102,193,88,75,21,50,136,28,853,133,0,20,9,0,94,10,116,0,0,0,46,70,0,271,10,122,67,29,43,0,167,105,42,12,0,0,8,114,95,9,0,0,0,10,32,32,0,0,0,0,0,20,20,0,0,0,0,0]
["Pittsfield","0002869","61940",3931,573,553,14,22,0,22,12,31,12,71,70,69,41,50,43,21,22,39,7,7,0,0,0,20,516,573,27,47,65,84,144,19,15,35,117,20,573,123,18,11,11,0,83,0,100,0,0,24,7,69,0,165,0,45,86,12,15,7,133,75,28,23,0,0,7,38,32,0,0,0,0,6,14,14,0,0,0,0,0,0,0,0,0,0,0,0]
["Salisbury","0002880","66980",1137,14,11,0,0,0,0,0,0,0,0,1,0,0,0,2,2,0,4,2,0,0,0,0,3,813,14,0,3,2,0,0,2,2,0,2,3,14,0,0,0,0,0,0,0,2,0,0,0,0,2,0,4,0,0,0,2,2,0,1,1,0,0,0,0,0,4,4,0,0,0,0,0,3,0,0,0,0,0,3,0,0,0,0,0,0,0]
["Sutton","0002885","75460",1544,81,71,0,0,0,0,2,2,0,2,5,0,7,10,6,4,5,11,5,10,2,0,0,10,719,81,7,4,22,7,8,2,4,4,11,12,81,15,0,0,0,0,11,4,7,0,0,0,0,3,4,12,2,0,3,0,5,2,16,9,0,5,2,0,0,17,10,7,0,0,0,0,11,9,0,0,0,0,2,3,3,0,0,0,0,0]
["Warner","0002891","78580",2760,225,208,0,6,11,4,2,7,11,19,17,16,24,24,7,14,0,20,2,19,5,0,0,17,573,225,10,30,35,28,27,15,23,21,19,17,225,21,0,4,8,0,9,0,42,5,0,5,8,24,0,69,14,6,12,5,24,8,52,21,16,2,2,6,5,25,21,2,0,0,0,2,7,7,0,0,0,0,0,9,7,0,0,0,0,2]
["Webster","0002897","80020",1579,38,33,0,0,0,2,0,2,0,0,2,5,2,6,2,1,3,2,2,2,2,0,0,5,629,38,2,11,0,5,4,3,0,0,6,7,38,8,0,0,0,0,4,4,4,0,0,0,0,2,2,11,2,5,1,3,0,0,0,0,0,0,0,0,0,10,6,0,3,0,0,1,2,2,0,0,0,0,0,3,3,0,0,0,0,0]
["Wilmot","0002902","84900",1144,56,48,0,0,0,0,0,0,1,0,11,9,6,0,6,5,0,0,0,10,0,0,0,8,575,56,0,11,2,3,9,6,6,5,6,8,56,5,0,0,0,0,3,2,11,0,0,0,0,11,0,17,0,0,5,6,3,3,8,3,0,2,0,0,3,15,10,3,2,0,0,0,0,0,0,0,0,0,0,0,0,0,0,0,0,0]
[]
[]
[]
[]
[]
[]
[]
[]
[]
[]
[]
[]
[]
[]
[]
[]
[]
[]
[]
[]
[]
["Census 2000 SummaryFile3 Sample Data  -  SF3TownQry8HousingCostB"]
[]
["TOWN_NAME","LOGRECNO","COUSUB","TotalPop","H74SpecOwnerOccHU","H74OOHU<10k","H74OOHU10to15k","H74OOHU15to20k","H74OOHU20to25k","H74OOHU25to30k","H74OOHU30to35k","H74OOHU35to40k","H74OOHU40to50k","H74OOHU50to60k","H74OOHU60to70k","H74OOHU70to80k","H74OOHU80to90k","H74OOHU90to100k","H74OOHU100to125k","H74OOHU125to150k","H74OOHU150to175k","H74OOHU175to200k","H74OOHU200to250k","H74OOHU250to300k","H74OOHU300to400k","H74OOHU400to500k","H74OOHU500to750k","H74OOHU750to1000k","H74OOHU1000kmore","H76OOHUMedianVal","H84OwnerOccHU","H84AllOOHU<10k","H84AllOOHU10to15k","H84AllOOHU15to20k","H84AllOOHU20to25k","H84AllOOHU25to30k","H84AllOOHU30to35k","H84AllOOHU35to40k","H84AllOOHU40to50k","H84AllOOHU50to60k","H84AllOOHU60to70k","H84AllOOHU70to80k","H84AllOOHU80to90k","H84AllOOHU90to100k","H84AllOOHU100to125k","H84AllOOHU125to150k","H84AllOOHU150to175k","H84AllOOHU175to200k","H84AllOOHU200to250k","H84AllOOHU250to300k","H84AllOOHU300to400k","H84AllOOHU400to500k","H84AllOOHU500to750k","H84AllOOHU750to1000k","H84AllOOHU1000kmore","H85OOHUMedVal","H90SOOHU","H90HUwMorgt","H90HUwMtgHC<200","H90HUwMtgHC200to300","H90HUwMtgHC300to400","H90HUwMtgHC400to500","H90HUwMtgHC500to600","H90HUwMtgHC600to700","H90HUwMtgHC700to800","H90HUwMtgHC800to900","H90HUwMtgHC900to1000","H90HUwMtgHC1000to1250","H90HUwMtgHC1250to1500","H90HUwMtgHC1500to2000","H90HUwMtgHC2000to2500","H90HUwMtgHC2500to3000","H90HUwMtgHC3000orMore","H90HUwOutMorgt","H90HUwOutMtgHC<100","H90HUwOutMtgHC100to150","H90HUwOutMtgHC150to200","H90HUwOutMtgHC200to250","H90HUwOutMtgHC250to300","H90HUwOutMtgHC300to350","H90HUwOutMtgHC350to400","H90HUwOutMtgHC400to500","H90HUwOutMtgHC500to600","H90HUwOutMtgHC600to700","H90HUwOutMtgHC700to800","H90HUwOutMtgHC800to900","H90HUwOutMtgHC900to1000","H90HUwOutMtgHC1000orMore","H91MedianOCHUwMtg","H91MedianOCHUwOutMtg","H94SpecOOHU","H94HUwMortg","H94HUwMtgHC<10pct","H94HUwMtgHC10to15pct","H94HUwMtgHC15to20pct","H94HUwMtgHC20to25pct","H94HUwMtgHC25to30pct","H94HUwMtgHC30to35pct","H94HUwMtgHC35to40pct","H94HUwMtgHC40to50pct","H94HUwMtgHC50pctOrMore","H94HUwMtgHCpctNotComp","H94HUWOutMortg","H94HUWOutMortgHC<10pct","H94HUWOutMortgHC10to15pct","H94HUWOutMortgHC15to20pct","H94HUWOutMortgHC20to25pct","H94HUWOutMortgHC25to30pct","H94HUWOutMortgHC30to35pct","H94HUWOutMortgHC35to40pct","H94HUWOutMortgHC40to50pct","H94HUWOutMortgHC50pctOrMore","H94HUWOutMortgHCpctNotComp","H97SpecifOwnOccHU","H97SOOHUInc<10k","H97SOOHUInc<10kHC<20pct","H97SOOHUInc<10kHC20to25pct","H97SOOHUInc<10kHC25to30pct","H97SOOHUInc<10kHC30to35pct","H97SOOHUInc<10kHC>35pct","H97SOOHUInc<10kHCpctNotComput","H97SOOHUInc10to20k","H97SOOHUInc10to20kHC<20pct","H97SOOHUInc10to20kHC20to25pct","H97SOOHUInc10to20kHC25to30pct","H97SOOHUInc10to20kHC30to35pct","H97SOOHUInc10to20kHC>35pct","H97SOOHUInc10to20kHCpctNotComput","H97SOOHUInc20to35k","H97SOOHUInc20to35kRC<20pct","H97SOOHUInc20to35kRC20to25pct","H97SOOHUInc20to35kRC25to30pct","H97SOOHUInc20to35kRC30to35pct","H97SOOHUInc20to35kRC>35pct","H97SOOHUInc20to35kRCpctNotComput","H97SOOHUInc35to50k","H97SOOHUInc35to50kRC<20pct","H97SOOHUInc35to50kRC20to25pct","H97SOOHUInc35to50kRC25to30pct","H97SOOHUInc35to50kRC30to35pct","H97SOOHUInc35to50kRC>35pct","H97SOOHUInc35to50kRCpctNotCompute","H97SOOHUInc50to75k","H97SOOHUInc50to75kRC<20pct","H97SOOHUInc50to75kRC20to25pct","H97SOOHUInc50to75kRC25to30pct","H97SOOHUInc50to75kRC30to35pct","H97SOOHUInc50to75kRC>35pct","H97SOOHUInc50to75kRCpctNotComput","H97SOOHUInc75to100k","H97SOOHUInc75to100kRC<20pct","H97SOOHUInc75to100kRC20to25pct","H97SOOHUInc75to100kRC25to30pct","H97SOOHUInc75to100kRC30to35pct","H97SOOHUInc75to100kRC>35pct","H97SOOHUInc75to100kRCpctNotCompute","H97SOOHUInc100to150k","H97SOOHUInc100to150kRC<20pct","H97SOOHUInc100to150kRC20to25pct","H97SOOHUInc100to150kRC25to30pct","H97SOOHUInc100to150kRC30to35pct","H97SOOHUInc100to150kRC>35pct","H97SOOHUInc100to150kRCpctNotCompute","H97SOOHUInc>150k","H97SOOHUInc>150kRC<20pct","H97SOOHUInc>150kRC20to25pct","H97SOOHUInc>150kRC25to30pct","H97SOOHUInc>150kRC30to35pct","H97SOOHUInc>150kRC>35pct","H97SOOHUInc>150kRCpctNotCompute"]
["Allenstown","0002575","00660",4843,735,0,7,0,0,0,0,0,7,7,33,84,94,172,225,22,28,35,15,6,0,0,0,0,0,97900,1356,92,62,109,66,57,59,43,17,27,73,93,94,172,264,36,36,35,15,6,0,0,0,0,0,77800,735,510,0,0,0,7,13,28,70,60,49,170,80,26,0,7,0,225,0,0,0,0,18,33,57,48,42,15,6,6,0,0,1041,409,735,510,13,70,166,98,57,35,14,19,38,0,225,77,41,48,27,6,13,6,0,7,0,735,9,0,0,0,0,9,0,45,0,13,6,13,13,0,116,52,8,7,0,49,0,124,41,24,18,28,13,0,247,149,66,32,0,0,0,105,91,14,0,0,0,0,89,82,0,0,7,0,0,0,0,0,0,0,0,0]
["Andover","0002590","01460",2109,445,0,0,0,0,0,0,0,3,17,27,56,57,42,94,76,29,18,16,6,2,2,0,0,0,105500,682,0,0,0,5,2,10,2,17,28,54,66,79,51,120,105,48,31,22,13,14,6,4,2,3,105600,445,317,0,0,0,7,10,10,31,58,42,76,46,33,4,0,0,128,0,0,8,12,28,14,20,26,8,7,0,5,0,0,1002,355,445,317,9,42,65,61,46,20,19,23,30,2,128,62,19,14,11,6,0,0,8,6,2,445,20,0,0,2,0,14,4,30,6,4,4,0,16,0,76,18,9,6,4,39,0,78,24,22,16,8,8,0,150,77,32,24,8,9,0,44,41,3,0,0,0,0,36,34,2,0,0,0,0,11,11,0,0,0,0,0]
["Boscawen","0002596","06260",3672,643,0,0,0,6,0,0,0,18,6,26,54,109,94,192,91,32,9,0,6,0,0,0,0,0,101100,948,31,33,19,24,0,28,24,36,15,33,59,123,106,212,109,48,9,16,13,5,0,0,0,5,94600,643,454,0,9,0,0,19,24,36,48,85,113,69,45,6,0,0,189,0,0,0,29,35,29,45,40,6,5,0,0,0,0,1013,352,643,454,15,38,91,113,72,35,32,28,30,0,189,82,42,25,6,21,0,6,0,7,0,643,7,0,0,0,0,7,0,52,14,0,14,0,24,0,126,43,18,19,0,46,0,117,49,20,23,13,12,0,204,82,64,28,16,14,0,101,69,17,9,6,0,0,25,25,0,0,0,0,0,11,11,0,0,0,0,0]
["Bow","0002606","06500",7138,2053,0,0,0,0,0,0,0,0,0,29,31,0,68,225,360,405,230,440,141,99,25,0,0,0,169400,2194,0,0,0,0,0,6,0,0,0,29,31,0,68,233,378,405,247,477,187,99,34,0,0,0,171700,2053,1633,0,0,0,11,0,17,72,77,46,287,382,529,145,25,42,420,0,0,0,22,32,37,107,105,78,30,0,9,0,0,1451,411,2053,1633,116,268,395,365,262,62,78,15,72,0,420,209,55,32,39,20,12,0,11,32,10,2053,43,0,0,0,12,21,10,86,10,12,11,0,53,0,85,31,27,0,0,27,0,147,21,13,41,7,65,0,566,170,182,117,55,42,0,374,212,88,74,0,0,0,530,435,76,19,0,0,0,222,196,6,20,0,0,0]
["Bradford","0002617","06980",1454,283,0,0,3,0,0,2,5,9,11,8,15,30,31,65,35,35,13,14,2,3,2,0,0,0,110600,444,0,3,3,0,0,4,5,9,13,15,15,42,36,96,44,68,27,29,9,10,8,2,3,3,120100,283,208,0,0,2,8,5,4,17,23,30,50,41,24,2,2,0,75,0,0,0,6,12,8,6,20,11,9,0,2,1,0,1075,428,283,208,7,29,50,35,35,11,8,5,28,0,75,29,7,14,5,4,5,0,2,4,5,283,14,0,0,0,0,9,5,13,0,0,4,5,4,0,50,13,8,5,3,21,0,46,13,4,13,3,13,0,96,52,23,16,5,0,0,31,25,5,1,0,0,0,26,26,0,0,0,0,0,7,7,0,0,0,0,0]
["Canterbury","0002622","09860",1979,397,0,0,0,0,0,0,0,4,5,11,10,27,28,83,97,65,27,23,17,0,0,0,0,0,132900,677,0,0,0,0,0,2,0,4,7,11,12,43,42,117,155,98,53,46,49,26,2,8,0,2,141200,397,309,0,0,2,2,6,12,29,29,36,82,47,48,14,2,0,88,0,0,4,3,11,16,15,12,19,6,0,0,2,0,1117,383,397,309,15,49,77,80,32,16,21,6,13,0,88,51,12,15,6,2,0,2,0,0,0,397,2,0,0,0,0,2,0,11,0,4,2,0,5,0,40,15,4,0,9,12,0,63,25,11,11,3,13,0,124,59,40,13,4,8,0,81,53,18,8,0,2,0,62,53,9,0,0,0,0,14,14,0,0,0,0,0]
["Chichester","0002629","12420",2236,500,0,0,0,0,2,0,2,2,5,8,18,59,53,126,100,71,24,24,0,4,2,0,0,0,120000,729,4,7,5,0,4,3,5,7,13,23,23,77,53,158,136,100,40,44,4,11,8,0,0,4,122200,500,375,0,0,0,7,13,17,33,29,53,112,60,47,2,0,2,125,0,2,2,4,6,15,33,48,11,2,0,0,0,2,1079,401,500,375,26,60,92,87,33,22,22,17,16,0,125,40,37,13,22,4,4,2,3,0,0,500,4,0,2,0,2,0,0,23,2,2,2,0,17,0,75,16,19,8,5,27,0,75,31,7,13,15,9,0,167,82,62,12,4,7,0,75,65,8,2,0,0,0,60,51,9,0,0,0,0,21,21,0,0,0,0,0]
["Concord","0002635","14200",40687,6068,0,5,0,12,0,0,22,40,104,198,434,644,877,1414,1002,461,280,262,138,103,48,17,7,0,112300,8383,73,215,154,125,96,111,72,155,181,312,523,760,1021,1716,1183,576,354,344,185,136,48,36,7,0,105700,6068,4338,0,7,6,43,104,186,311,387,400,1206,787,574,248,51,28,1730,0,6,31,35,46,104,285,556,368,136,18,30,43,72,1150,464,6068,4338,247,665,950,888,607,377,196,189,213,6,1730,465,514,241,175,111,53,37,18,94,22,6068,116,0,0,0,0,88,28,306,23,17,56,41,169,0,708,166,155,90,72,225,0,1124,435,183,186,140,180,0,1835,890,444,295,135,71,0,999,700,176,67,42,14,0,597,511,67,19,0,0,0,383,357,21,5,0,0,0]
["Danbury","0002701","16980",1071,237,0,0,3,7,0,5,2,0,14,32,36,37,38,40,14,9,0,0,0,0,0,0,0,0,85300,375,8,0,5,10,7,8,2,7,28,39,45,52,55,59,28,9,0,4,2,5,0,0,0,2,85500,237,165,0,0,0,8,13,26,17,9,36,26,19,9,2,0,0,72,0,2,5,8,8,20,11,18,0,0,0,0,0,0,926,333,237,165,10,23,32,42,20,8,5,7,15,3,72,19,18,19,5,2,0,2,0,5,2,237,18,0,0,0,0,13,5,30,13,5,2,0,10,0,35,17,8,4,2,4,0,54,15,19,12,3,5,0,55,38,10,2,3,2,0,34,27,5,2,0,0,0,9,9,0,0,0,0,0,2,2,0,0,0,0,0]
["Dunbarton","0002706","19460",2226,517,0,0,0,0,0,0,0,2,7,8,15,29,36,60,109,113,64,42,18,12,2,0,0,0,148300,735,0,6,0,0,0,3,0,5,7,8,22,29,42,73,141,151,85,89,41,22,8,3,0,0,155200,517,414,0,0,0,10,7,20,12,16,61,127,76,66,9,2,8,103,0,0,3,7,5,19,24,16,18,6,5,0,0,0,1159,386,517,414,28,75,94,68,51,45,15,17,21,0,103,54,25,10,4,6,0,2,2,0,0,517,11,0,0,3,0,8,0,14,3,4,3,0,4,0,43,16,2,0,2,23,0,85,27,11,10,26,11,0,153,66,35,29,14,9,0,101,70,16,10,3,2,0,68,64,4,0,0,0,0,42,40,0,2,0,0,0]
["Epsom","0002712","24900",4021,807,0,0,0,0,0,8,0,15,6,22,46,36,103,272,155,104,5,14,14,0,0,0,7,0,115400,1211,29,33,18,19,31,20,24,25,37,51,59,56,117,293,189,118,27,23,20,0,7,8,7,0,107400,807,653,0,0,8,13,28,30,49,78,107,137,129,67,7,0,0,154,0,8,7,22,6,31,46,27,0,7,0,0,0,0,1025,353,807,653,58,99,100,208,99,33,24,13,14,5,154,74,48,13,12,7,0,0,0,0,0,807,5,0,0,0,0,0,5,29,0,14,7,0,8,0,92,35,12,17,6,22,0,147,56,15,41,20,15,0,215,82,100,27,0,6,0,212,119,72,14,7,0,0,82,75,7,0,0,0,0,25,25,0,0,0,0,0]
["Franklin","0002721","27380",8405,1587,0,0,8,0,18,16,0,57,82,270,246,329,220,217,70,45,0,0,9,0,0,0,0,0,82900,1911,7,9,38,0,32,34,8,74,133,270,269,338,250,247,96,70,19,0,9,0,0,0,8,0,82400,1587,1112,0,0,7,10,30,74,198,95,213,299,115,71,0,0,0,475,0,0,17,33,42,112,48,141,46,15,9,12,0,0,967,385,1587,1112,44,147,260,224,156,69,55,86,71,0,475,125,111,74,81,17,27,20,0,20,0,1587,28,0,0,0,0,28,0,162,8,49,17,27,61,0,262,65,51,15,23,108,0,370,129,73,76,37,55,0,484,294,116,65,9,0,0,198,182,16,0,0,0,0,57,57,0,0,0,0,0,26,26,0,0,0,0,0]
["Henniker","0002743","35540",4433,708,0,0,0,0,0,0,6,10,0,12,37,63,138,165,78,96,55,12,7,15,7,0,7,0,113300,1085,7,31,30,0,13,7,6,18,0,25,50,81,144,219,129,144,97,31,7,22,7,10,7,0,114900,708,591,0,0,0,0,13,25,34,27,33,194,112,110,37,6,0,117,0,6,0,6,13,7,7,20,26,6,6,13,0,7,1211,498,708,591,35,67,112,98,137,41,20,7,74,0,117,29,37,6,12,14,6,0,0,0,13,708,20,0,0,0,0,7,13,48,0,6,14,0,28,0,86,7,0,19,14,46,0,69,12,12,26,6,13,0,189,54,58,56,21,0,0,192,109,34,36,6,7,0,59,59,0,0,0,0,0,45,45,0,0,0,0,0]
["Hill","0002754","35860",992,212,0,0,0,0,0,0,2,4,10,9,36,53,27,27,27,6,5,0,2,2,0,2,0,0,88500,332,7,0,2,2,0,3,14,12,14,11,48,69,33,39,32,17,9,2,7,5,2,2,2,0,87700,212,165,0,0,0,12,22,14,27,28,8,28,19,5,2,0,0,47,0,0,0,11,10,8,6,8,2,2,0,0,0,0,827,316,212,165,11,34,33,24,19,6,7,12,19,0,47,14,13,6,2,5,3,2,0,0,2,212,7,0,0,0,0,5,2,28,4,0,7,3,14,0,30,7,2,9,0,12,0,43,17,12,3,2,9,0,62,41,12,5,4,0,0,33,33,0,0,0,0,0,9,9,0,0,0,0,0,0,0,0,0,0,0,0]
["Hooksett","0002759","37300",11721,2658,0,6,0,0,0,0,0,0,7,20,96,133,193,664,491,401,271,285,58,21,5,7,0,0,135700,3306,8,36,26,9,36,9,20,20,7,70,107,133,217,795,608,444,310,332,58,33,21,7,0,0,131600,2658,2128,0,0,0,14,67,26,138,149,89,640,457,402,105,27,14,530,0,0,8,0,16,51,97,230,112,0,0,9,0,7,1227,440,2658,2128,139,349,532,361,397,142,39,100,69,0,530,187,161,55,42,17,18,16,18,8,8,2658,60,0,0,0,0,52,8,51,8,10,0,8,25,0,227,86,32,17,26,66,0,358,95,70,55,60,78,0,770,303,139,250,49,29,0,598,401,102,78,17,0,0,469,405,50,14,0,0,0,125,125,0,0,0,0,0]
["Hopkinton","0002799","37540",5399,1350,0,0,0,0,0,0,0,26,14,26,32,115,68,222,201,135,121,208,63,75,38,6,0,0,146400,1798,0,0,0,0,0,6,7,33,40,33,77,147,74,270,274,162,172,258,75,87,49,18,16,0,144300,1350,965,0,0,0,7,6,28,52,76,82,137,194,227,97,30,29,385,0,0,21,0,21,36,31,55,76,69,25,19,14,18,1372,538,1350,965,23,157,185,189,158,71,61,43,78,0,385,183,100,42,13,7,0,20,6,7,7,1350,21,0,0,0,0,14,7,57,5,7,0,0,45,0,122,32,19,13,0,58,0,245,80,30,40,31,64,0,374,142,63,105,35,29,0,190,126,59,0,5,0,0,204,168,24,7,0,5,0,137,137,0,0,0,0,0]
["Loudon","0002813","43380",4481,922,0,0,0,0,0,6,0,0,0,25,41,117,128,243,226,78,26,14,18,0,0,0,0,0,114800,1445,0,19,18,16,31,19,12,72,26,50,54,117,165,309,281,131,68,14,30,8,5,0,0,0,110000,922,732,0,0,6,0,37,27,56,69,132,248,84,66,7,0,0,190,0,0,0,7,27,53,33,38,15,0,0,5,6,6,1039,362,922,732,34,94,157,217,74,53,6,48,42,7,190,92,36,26,0,6,6,0,12,12,0,922,26,0,0,0,0,19,7,48,0,0,6,6,36,0,99,47,0,6,12,34,0,153,25,49,19,35,25,0,317,143,125,37,6,6,0,173,136,25,12,0,0,0,64,46,18,0,0,0,0,42,42,0,0,0,0,0]
["New London","0002826","52100",4116,979,0,0,0,0,0,6,0,0,0,0,6,9,6,51,81,159,125,150,188,101,11,57,17,12,215500,1297,0,0,0,6,0,6,0,0,0,0,6,9,21,67,113,215,141,182,226,143,23,93,28,18,217700,979,488,0,0,6,0,8,5,33,34,21,57,79,133,78,22,12,491,0,0,0,0,28,11,30,120,88,57,68,38,16,35,1503,564,979,488,17,70,74,82,75,16,34,21,99,0,491,188,95,87,55,39,0,0,0,22,5,979,11,0,0,0,0,6,5,57,0,11,0,0,46,0,152,45,27,23,5,52,0,141,42,24,30,0,45,0,170,102,11,28,6,23,0,165,126,19,11,5,4,0,145,84,45,16,0,0,0,138,132,0,6,0,0,0]
["Newbury","0002820","50900",1702,495,0,0,0,0,0,0,0,2,2,11,18,38,40,84,72,75,29,30,33,31,7,13,2,8,143200,600,0,0,0,0,0,0,0,2,9,11,18,47,40,93,78,85,38,36,63,37,9,19,2,13,150600,495,354,0,0,2,4,18,24,24,26,43,74,51,58,18,6,6,141,0,0,2,20,10,22,18,29,11,8,8,4,4,5,1122,396,495,354,19,54,72,74,46,37,16,15,21,0,141,52,23,16,15,16,10,2,5,2,0,495,7,0,0,2,3,2,0,32,1,6,7,2,16,0,81,25,7,9,14,26,0,84,33,17,12,9,13,0,133,59,39,20,13,2,0,78,51,15,10,2,0,0,51,40,5,2,4,0,0,29,27,0,0,0,2,0]
["Northfield","0002833","54260",4548,801,0,0,0,0,0,0,6,8,26,85,121,108,149,153,105,7,20,0,7,6,0,0,0,0,93100,1158,0,0,7,6,12,12,25,48,95,100,141,132,186,197,120,19,27,0,7,12,6,6,0,0,90100,801,640,0,0,7,15,55,11,83,85,89,157,72,66,0,0,0,161,0,0,7,0,33,6,31,55,23,6,0,0,0,0,972,406,801,640,35,72,187,106,92,54,13,37,44,0,161,57,43,18,19,6,0,12,6,0,0,801,13,0,0,0,0,13,0,62,0,13,6,0,43,0,103,26,6,11,23,37,0,169,70,31,37,12,19,0,262,145,60,38,19,0,0,136,115,15,6,0,0,0,50,50,0,0,0,0,0,6,6,0,0,0,0,0]
["Pembroke","0002848","60020",6897,1471,0,0,0,0,0,0,0,8,14,24,72,175,155,576,226,146,44,24,7,0,0,0,0,0,112500,1808,21,16,0,0,10,15,0,16,25,24,80,184,155,642,308,184,80,24,17,7,0,0,0,0,113900,1471,1140,0,0,0,0,36,18,57,119,103,387,206,158,56,0,0,331,0,0,0,7,24,0,70,100,55,43,18,7,7,0,1153,465,1471,1140,35,181,266,238,141,93,40,68,68,10,331,85,50,51,54,7,27,0,33,17,7,1471,43,0,0,0,0,26,17,60,0,0,0,9,51,0,202,45,39,8,36,74,0,213,22,38,30,48,75,0,429,195,119,95,20,0,0,339,247,70,15,7,0,0,150,124,26,0,0,0,0,35,35,0,0,0,0,0]
["Pittsfield","0002869","61940",3931,604,0,0,0,6,0,0,10,10,46,70,64,75,73,120,63,48,0,12,0,0,0,7,0,0,92900,914,6,0,17,30,5,6,16,24,46,102,78,114,102,145,81,62,5,41,22,0,0,12,0,0,91300,604,438,0,0,6,2,0,24,24,57,50,157,70,20,14,7,7,166,0,0,15,0,0,0,32,53,24,6,22,8,0,6,1089,468,604,438,15,56,81,55,50,59,12,32,78,0,166,41,49,40,12,0,8,0,6,10,0,604,20,0,0,0,0,20,0,43,10,0,0,0,33,0,96,16,6,12,8,54,0,134,52,11,20,33,18,0,156,77,37,18,18,6,0,92,70,7,0,8,7,0,38,32,6,0,0,0,0,25,25,0,0,0,0,0]
["Salisbury","0002880","66980",1137,272,0,0,0,0,2,0,0,2,6,10,17,54,40,84,18,27,6,3,3,0,0,0,0,0,101500,410,0,5,0,0,2,0,0,4,11,16,17,57,46,98,46,43,26,16,13,4,4,2,0,0,112000,272,223,0,0,5,4,19,16,14,30,28,53,33,21,0,0,0,49,0,0,4,2,13,14,4,9,0,0,3,0,0,0,984,320,272,223,10,38,52,37,26,18,10,7,23,2,49,23,10,0,7,7,0,0,0,2,0,272,14,0,0,2,0,10,2,20,1,7,5,2,5,0,36,7,4,5,6,14,0,61,19,11,12,6,13,0,82,54,17,7,4,0,0,36,29,5,2,0,0,0,23,23,0,0,0,0,0,0,0,0,0,0,0,0]
["Sutton","0002885","75460",1544,388,0,0,0,0,0,3,0,6,8,9,15,26,42,96,49,24,40,22,21,13,6,8,0,0,122100,527,0,0,0,0,0,3,0,10,16,9,23,31,44,114,62,48,60,37,30,18,8,14,0,0,130400,388,286,0,0,0,8,12,18,39,29,28,71,35,38,8,0,0,102,0,3,6,7,4,9,12,21,20,8,4,4,0,4,1032,448,388,286,18,24,47,52,51,25,16,20,33,0,102,35,31,13,5,10,2,2,2,2,0,388,14,0,0,2,0,12,0,23,5,3,4,5,6,0,81,16,2,17,13,33,0,81,22,13,18,7,21,0,104,53,30,16,2,3,0,43,32,9,2,0,0,0,26,24,0,2,0,0,0,16,16,0,0,0,0,0]
["Warner","0002891","78580",2760,496,0,0,2,0,4,2,5,13,13,23,39,37,56,106,82,49,22,19,11,11,0,0,0,2,112700,797,10,6,13,2,10,15,7,16,29,29,43,60,81,140,102,86,35,45,28,27,2,6,0,5,113800,496,341,0,0,2,4,19,20,42,50,34,73,43,30,19,2,3,155,2,6,4,4,20,16,25,35,27,9,3,2,0,2,999,401,496,341,30,58,62,59,46,20,19,14,30,3,155,55,34,23,15,6,10,8,0,2,2,496,15,0,0,0,0,10,5,33,2,0,2,10,19,0,85,24,17,12,4,28,0,95,49,21,10,4,11,0,126,83,16,15,10,2,0,72,44,15,11,2,0,0,55,45,5,2,0,3,0,15,15,0,0,0,0,0]
["Webster","0002897","80020",1579,364,0,0,0,0,0,0,0,5,9,5,26,51,55,94,55,28,21,13,2,0,0,0,0,0,108200,535,2,0,0,0,0,0,0,11,13,11,33,75,74,119,85,38,31,29,10,2,0,2,0,0,110200,364,276,0,0,0,3,5,22,16,36,41,76,39,36,2,0,0,88,0,0,0,7,9,11,17,27,5,6,4,2,0,0,1049,400,364,276,6,39,76,60,42,24,4,13,10,2,88,31,12,15,17,4,5,2,0,0,2,364,10,0,0,0,3,3,4,15,2,9,0,0,4,0,45,13,10,4,6,12,0,69,19,9,18,15,8,0,130,67,34,22,5,2,0,67,52,13,2,0,0,0,24,22,2,0,0,0,0,4,4,0,0,0,0,0]
["Wilmot","0002902","84900",1144,270,0,0,0,0,0,0,2,0,0,4,8,17,12,51,63,25,11,38,21,13,0,4,1,0,141300,391,0,0,0,2,0,0,2,0,0,6,13,26,12,62,86,39,18,53,29,24,6,9,4,0,146100,270,196,0,0,0,3,2,11,9,35,14,49,33,28,7,4,1,74,2,0,2,0,5,6,11,24,15,1,2,4,2,0,1122,446,270,196,8,12,42,26,23,27,22,21,15,0,74,30,12,13,3,7,0,2,2,5,0,270,2,0,0,0,0,2,0,22,2,0,5,3,12,0,58,13,2,6,9,28,0,48,13,5,9,3,18,0,77,31,19,8,12,7,0,28,25,3,0,0,0,0,27,25,0,2,0,0,0,8,8,0,0,0,0,0]
[]
[]
[]
[]
[]
[]
[]
[]
[]
[]
[]
[]
[]
[]
[]
[]
[]
[]
[]
[]
[]
["Census 2000 SummaryFile3 Sample Data  -  SF3TownQry9HHIncomeByTenure"]
[]
["TOWN_NAME","LOGRECNO","COUSUB","NAME","COUNTY","TotalPop","HCT11OccHU","HCT11OwnOccHU","HCT11OOHUInc<5K","HCT11OOHUInc5to10K","HCT11OOHUInc10to15K","HCT11OOHUInc15to20K","HCT11OOHUInc20to25K","HCT11OOHUInc25to35K","HCT11OOHUInc35to50K","HCT11OOHUInc50to75K","HCT11OOHUInc75to100K","HCT11OOHUInc100to150K","HCT11OOHUInc>150K","HCT11RentOccHU","HCT11ROHUInc<5K","HCT11ROHUInc5to10K","HCT11ROHUInc10to15K","HCT11ROHUInc15to20K","HCT11ROHUInc20to25K","HCT11ROHUInc25to35K","HCT11ROHUInc35to50K","HCT11ROHUInc50to75K","HCT11ROHUInc75to100K","HCT11ROHUInc100to150K","HCT11ROHUInc>150K","HCT12MedHHInc","HCT12MedOwnOccHHInc","HCT12MedRentOccHHInc","SummaryLevel"]
["Allenstown","0002575","00660","Allenstown town","013",4843,1902,1356,6,41,59,61,57,186,278,416,141,103,8,546,7,75,44,26,64,109,104,80,21,16,0,41875,49138,28906,"060"]
["Andover","0002590","01460","Andover town","013",2109,823,682,12,18,20,30,41,90,117,212,58,65,19,141,5,9,7,13,9,19,43,19,13,2,2,47292,50956,38250,"060"]
["Boscawen","0002596","06260","Boscawen town","013",3672,1260,948,20,12,25,59,47,148,189,280,125,32,11,312,19,31,6,61,33,77,39,6,9,21,10,41850,47273,26154,"060"]
["Bow","0002606","06500","Bow town","013",7138,2304,2194,10,33,54,32,38,57,165,601,417,556,231,110,0,0,12,17,0,15,30,0,36,0,0,78752,79624,40917,"060"]
["Bradford","0002617","06980","Bradford town","013",1454,559,444,5,14,9,17,21,60,79,142,44,43,10,115,3,4,16,11,18,17,17,14,13,0,2,47788,54643,27750,"060"]
["Canterbury","0002622","09860","Canterbury town","013",1979,749,677,6,4,16,6,16,60,112,185,128,111,33,72,2,7,8,8,6,13,14,7,0,5,2,58750,61875,30278,"060",null,null,null,null,null,null,null,null,null,null,null,null,null,null,null,null,null,null,null,null,null,null,null,null,null,null,null,null,null,null,null,null,null,null,null,null,null,null,null,null,null,null,null,null,null,null,null,null,null,null,null,null,null,null,null,null,null,null,null,null,null,null,null,"PCT026097","PCT026098","PCT026099","PCT026100","PCT026101","CNTY_NAME"]
["Chichester","0002629","12420","Chichester town","013",2236,823,729,8,4,29,15,38,77,109,235,104,75,35,94,2,5,0,6,2,28,15,17,11,6,2,56394,58352,40625,"060",null,null,null,null,null,null,null,null,null,null,null,null,null,null,null,null,null,null,null,null,null,null,null,null,null,null,null,null,null,null,null,null,null,null,null,null,null,null,null,null,null,null,null,null,null,null,null,null,null,null,null,null,null,null,null,null,null,null,null,null,null,null,null,0,0,0,0,0,"Coos"]
["Concord","0002635","14200","Concord city","013",40687,16281,8383,92,132,215,297,417,867,1606,2256,1302,756,443,7898,333,690,764,678,626,1335,1529,1301,429,133,80,42190,54524,31291,"060",null,null,null,null,null,null,null,null,null,null,null,null,null,null,null,null,null,null,null,null,null,null,null,null,null,null,null,null,null,null,null,null,null,null,null,null,null,null,null,null,null,null,null,null,null,null,null,null,null,null,null,null,null,null,null,null,null,null,null,null,null,null,null,0,0,0,0,0,"Coos"]
["Danbury","0002701","16980","Danbury town","013",1071,435,375,14,14,26,23,20,59,72,83,43,15,6,60,3,2,6,9,0,17,11,10,2,0,0,37708,39297,29167,"060",null,null,null,null,null,null,null,null,null,null,null,null,null,null,null,null,null,null,null,null,null,null,null,null,null,null,null,null,null,null,null,null,null,null,null,null,null,null,null,null,null,null,null,null,null,null,null,null,null,null,null,null,null,null,null,null,null,null,null,null,null,null,null,0,0,0,0,0,"Coos"]
["Dunbarton","0002706","19460","Dunbarton town","013",2226,814,735,6,15,8,14,28,38,105,207,152,109,53,79,0,5,14,0,3,5,27,17,8,0,0,65278,67198,41094,"060",null,null,null,null,null,null,null,null,null,null,null,null,null,null,null,null,null,null,null,null,null,null,null,null,null,null,null,null,null,null,null,null,null,null,null,null,null,null,null,null,null,null,null,null,null,null,null,null,null,null,null,null,null,null,null,null,null,null,null,null,null,null,null,129,324,94,230,647,"Coos"]
["Epsom","0002712","24900","Epsom town","013",4021,1491,1211,23,12,6,63,76,109,224,286,275,106,31,280,0,6,35,34,39,49,48,56,13,0,0,50747,56701,32788,"060",null,null,null,null,null,null,null,null,null,null,null,null,null,null,null,null,null,null,null,null,null,null,null,null,null,null,null,null,null,null,null,null,null,null,null,null,null,null,null,null,null,null,null,null,null,null,null,null,null,null,null,null,null,null,null,null,null,null,null,null,null,null,null,0,0,0,0,0,"Coos"]
["Franklin","0002721","27380","Franklin city","013",8405,3319,1911,42,28,41,144,134,257,404,535,214,78,34,1408,97,240,184,146,176,201,163,126,59,16,0,33983,46121,21101,"060",null,null,null,null,null,null,null,null,null,null,null,null,null,null,null,null,null,null,null,null,null,null,null,null,null,null,null,null,null,null,null,null,null,null,null,null,null,null,null,null,null,null,null,null,null,null,null,null,null,null,null,null,null,null,null,null,null,null,null,null,null,null,null,0,14,6,8,29,"Coos"]
["Henniker","0002743","35540","Henniker town","013",4433,1585,1085,19,27,46,35,40,94,113,317,214,119,61,500,33,23,37,63,53,90,98,52,33,0,18,50517,59482,28269,"060",null,null,null,null,null,null,null,null,null,null,null,null,null,null,null,null,null,null,null,null,null,null,null,null,null,null,null,null,null,null,null,null,null,null,null,null,null,null,null,null,null,null,null,null,null,null,null,null,null,null,null,null,null,null,null,null,null,null,null,null,null,null,null,0,0,0,0,0,"Coos"]
["Hill","0002754","35860","Hill town","013",992,382,332,4,3,21,17,28,33,68,84,52,12,10,50,7,5,0,7,0,7,9,7,4,0,4,47955,48889,34375,"060",null,null,null,null,null,null,null,null,null,null,null,null,null,null,null,null,null,null,null,null,null,null,null,null,null,null,null,null,null,null,null,null,null,null,null,null,null,null,null,null,null,null,null,null,null,null,null,null,null,null,null,null,null,null,null,null,null,null,null,null,null,null,null,0,3,3,0,10,"Coos"]
["Hooksett","0002759","37300","Hooksett town","013",11721,4147,3306,16,67,64,60,68,267,439,907,753,533,132,841,35,52,35,82,124,92,189,144,43,31,14,60156,67990,35054,"060",null,null,null,null,null,null,null,null,null,null,null,null,null,null,null,null,null,null,null,null,null,null,null,null,null,null,null,null,null,null,null,null,null,null,null,null,null,null,null,null,null,null,null,null,null,null,null,null,null,null,null,null,null,null,null,null,null,null,null,null,null,null,null,2,60,8,52,109,"Coos"]
["Hopkinton","0002799","37540","Hopkinton town","013",5399,2084,1798,14,26,33,58,38,143,332,466,256,236,196,286,0,25,36,47,11,17,65,42,30,6,7,58333,62598,36591,"060",null,null,null,null,null,null,null,null,null,null,null,null,null,null,null,null,null,null,null,null,null,null,null,null,null,null,null,null,null,null,null,null,null,null,null,null,null,null,null,null,null,null,null,null,null,null,null,null,null,null,null,null,null,null,null,null,null,null,null,null,null,null,null,3,4,0,4,32,"Coos"]
["Loudon","0002813","43380","Loudon town","013",4481,1611,1445,19,25,43,31,54,137,290,424,263,102,57,166,13,0,21,20,6,17,30,42,6,6,5,53911,56175,37143,"060",null,null,null,null,null,null,null,null,null,null,null,null,null,null,null,null,null,null,null,null,null,null,null,null,null,null,null,null,null,null,null,null,null,null,null,null,null,null,null,null,null,null,null,null,null,null,null,null,null,null,null,null,null,null,null,null,null,null,null,null,null,null,null,0,0,0,0,0,"Coos"]
["New London","0002826","52100","New London town","013",4116,1574,1297,5,6,35,44,55,138,167,228,205,210,204,277,15,23,61,15,31,44,32,30,0,9,17,58226,66845,22679,"060",null,null,null,null,null,null,null,null,null,null,null,null,null,null,null,null,null,null,null,null,null,null,null,null,null,null,null,null,null,null,null,null,null,null,null,null,null,null,null,null,null,null,null,null,null,null,null,null,null,null,null,null,null,null,null,null,null,null,null,null,null,null,null,0,0,0,0,0,"Coos"]
["Newbury","0002820","50900","Newbury town","013",1702,694,600,0,7,17,20,32,62,107,152,86,78,39,94,0,10,0,5,1,30,14,25,2,7,0,56875,59079,40500,"060",null,null,null,null,null,null,null,null,null,null,null,null,null,null,null,null,null,null,null,null,null,null,null,null,null,null,null,null,null,null,null,null,null,null,null,null,null,null,null,null,null,null,null,null,null,null,null,null,null,null,null,null,null,null,null,null,null,null,null,null,null,null,null,2,25,6,19,33,"Coos"]
["Northfield","0002833","54260","Northfield town","013",4548,1706,1158,13,26,37,50,57,136,206,350,182,89,12,548,21,64,23,16,70,125,156,60,13,0,0,44222,53485,30739,"060",null,null,null,null,null,null,null,null,null,null,null,null,null,null,null,null,null,null,null,null,null,null,null,null,null,null,null,null,null,null,null,null,null,null,null,null,null,null,null,null,null,null,null,null,null,null,null,null,null,null,null,null,null,null,null,null,null,null,null,null,null,null,null,0,0,0,0,0,"Coos"]
["Pembroke","0002848","60020","Pembroke town","013",6897,2661,1808,42,25,30,44,58,195,255,536,421,167,35,853,28,105,49,67,81,190,167,114,32,20,0,49809,60640,30918,"060",null,null,null,null,null,null,null,null,null,null,null,null,null,null,null,null,null,null,null,null,null,null,null,null,null,null,null,null,null,null,null,null,null,null,null,null,null,null,null,null,null,null,null,null,null,null,null,null,null,null,null,null,null,null,null,null,null,null,null,null,null,null,null,0,0,0,0,0,"Coos"]
["Pittsfield","0002869","61940","Pittsfield town","013",3931,1498,914,10,17,49,5,75,123,179,230,128,51,47,584,43,80,71,40,89,76,133,38,14,0,0,38333,49861,23013,"060",null,null,null,null,null,null,null,null,null,null,null,null,null,null,null,null,null,null,null,null,null,null,null,null,null,null,null,null,null,null,null,null,null,null,null,null,null,null,null,null,null,null,null,null,null,null,null,null,null,null,null,null,null,null,null,null,null,null,null,null,null,null,null,0,5,3,2,14,"Coos"]
["Salisbury","0002880","66980","Salisbury town","013",1137,435,410,8,12,8,16,9,38,104,105,62,40,8,25,0,0,2,0,2,2,1,9,3,3,3,55268,53571,71875,"060",null,null,null,null,null,null,null,null,null,null,null,null,null,null,null,null,null,null,null,null,null,null,null,null,null,null,null,null,null,null,null,null,null,null,null,null,null,null,null,null,null,null,null,null,null,null,null,null,null,null,null,null,null,null,null,null,null,null,null,null,null,null,null,0,2,0,2,31,"Coos"]
["Sutton","0002885","75460","Sutton town","013",1544,618,527,3,14,11,13,29,67,99,143,75,53,20,91,4,11,2,7,4,10,20,17,13,3,0,51786,54063,39250,"060",null,null,null,null,null,null,null,null,null,null,null,null,null,null,null,null,null,null,null,null,null,null,null,null,null,null,null,null,null,null,null,null,null,null,null,null,null,null,null,null,null,null,null,null,null,null,null,null,null,null,null,null,null,null,null,null,null,null,null,null,null,null,null,0,0,0,0,0,"Coos"]
["Warner","0002891","78580","Warner town","013",2760,1048,797,11,17,27,18,42,116,154,207,95,79,31,251,5,18,24,23,29,45,60,31,7,7,2,44439,51164,30625,"060",null,null,null,null,null,null,null,null,null,null,null,null,null,null,null,null,null,null,null,null,null,null,null,null,null,null,null,null,null,null,null,null,null,null,null,null,null,null,null,null,null,null,null,null,null,null,null,null,null,null,null,null,null,null,null,null,null,null,null,null,null,null,null,0,94,34,60,166,"Coos"]
["Webster","0002897","80020","Webster town","013",1579,581,535,6,10,13,22,22,47,98,190,86,32,9,46,6,2,4,0,4,9,4,12,2,1,2,54023,54556,31667,"060",null,null,null,null,null,null,null,null,null,null,null,null,null,null,null,null,null,null,null,null,null,null,null,null,null,null,null,null,null,null,null,null,null,null,null,null,null,null,null,null,null,null,null,null,null,null,null,null,null,null,null,null,null,null,null,null,null,null,null,null,null,null,null,0,0,0,0,0,"Coos"]
["Wilmot","0002902","84900","Wilmot town","013",1144,459,391,2,4,20,16,9,65,68,96,41,45,25,68,2,3,3,8,8,11,13,17,0,3,0,49688,53594,34583,"060",null,null,null,null,null,null,null,null,null,null,null,null,null,null,null,null,null,null,null,null,null,null,null,null,null,null,null,null,null,null,null,null,null,null,null,null,null,null,null,null,null,null,null,null,null,null,null,null,null,null,null,null,null,null,null,null,null,null,null,null,null,null,null,0,0,0,0,0,"Coos"]
[]
[]
[]
[]
[]
[]
[]
[]
[]
[]
[]
[]
[]
[]
[]
[]
[]
[null,null,null,null,null,null,null,null,null,null,null,null,null,null,null,null,null,null,null,null,null,null,null,null,null,null,null,null,null,null,null,null,null,null,null,null,null,null,null,null,null,null,null,null,null,null,null,null,null,null,null,null,null,null,null,null,null,null,null,null,null,null,null,null,null,null,null,null,null,null,null,null,null,null,null,null,null,null,null,null,null,null,null,null,null,null,null,null,null,null,null,null,null,null,null,null,null,null,null,null,0,7,3,4,28,"Coos"]
[null,null,null,null,null,null,null,null,null,null,null,null,null,null,null,null,null,null,null,null,null,null,null,null,null,null,null,null,null,null,null,null,null,null,null,null,null,null,null,null,null,null,null,null,null,null,null,null,null,null,null,null,null,null,null,null,null,null,null,null,null,null,null,null,null,null,null,null,null,null,null,null,null,null,null,null,null,null,null,null,null,null,null,null,null,null,null,null,null,null,null,null,null,null,null,null,null,null,null,null,3,20,7,13,29,"Coos"]
[null,null,null,null,null,null,null,null,null,null,null,null,null,null,null,null,null,null,null,null,null,null,null,null,null,null,null,null,null,null,null,null,null,null,null,null,null,null,null,null,null,null,null,null,null,null,null,null,null,null,null,null,null,null,null,null,null,null,null,null,null,null,null,null,null,null,null,null,null,null,null,null,null,null,null,null,null,null,null,null,null,null,null,null,null,null,null,null,null,null,null,null,null,null,null,null,null,null,null,null,0,0,0,0,0,"Coos"]
[null,null,null,null,null,null,null,null,null,null,null,null,null,null,null,null,null,null,null,null,null,null,null,null,null,null,null,null,null,null,null,null,null,null,null,null,null,null,null,null,null,null,null,null,null,null,null,null,null,null,null,null,null,null,null,null,null,null,null,null,null,null,null,null,null,null,null,null,null,null,null,null,null,null,null,null,null,null,null,null,null,null,null,null,null,null,null,null,null,null,null,null,null,null,null,null,null,null,null,null,0,0,0,0,0,"Coos"]
["Census 2000 SummaryFile3 Sample Data - SF3TownQry10aDisabil",null,null,null,null,null,null,null,null,null,null,null,null,null,null,null,null,null,null,null,null,null,null,null,null,null,null,null,null,null,null,null,null,null,null,null,null,null,null,null,null,null,null,null,null,null,null,null,null,null,null,null,null,null,null,null,null,null,null,null,null,null,null,null,null,null,null,null,null,null,null,null,null,null,null,null,null,null,null,null,null,null,null,null,null,null,null,null,null,null,null,null,null,null,null,null,null,null,null,null,0,0,0,0,0,"Coos"]
[null,null,null,null,null,null,null,null,null,null,null,null,null,null,null,null,null,null,null,null,null,null,null,null,null,null,null,null,null,null,null,null,null,null,null,null,null,null,null,null,null,null,null,null,null,null,null,null,null,null,null,null,null,null,null,null,null,null,null,null,null,null,null,null,null,null,null,null,null,null,null,null,null,null,null,null,null,null,null,null,null,null,null,null,null,null,null,null,null,null,null,null,null,null,null,null,null,null,null,null,2,38,9,29,98,"Coos"]
["TOWN_NAME","LOGRECNO","COUSUB","TotalPop","PCT026001","PCT026002","PCT026003","PCT026004","PCT026005","PCT026006","PCT026007","PCT026008","PCT026009","PCT026010","PCT026011","PCT026012","PCT026013","PCT026014","PCT026015","PCT026016","PCT026017","PCT026018","PCT026019","PCT026020","PCT026021","PCT026022","PCT026023","PCT026024","PCT026025","PCT026026","PCT026027","PCT026028","PCT026029","PCT026030","PCT026031","PCT026032","PCT026033","PCT026034","PCT026035","PCT026036","PCT026037","PCT026038","PCT026039","PCT026040","PCT026041","PCT026042","PCT026043","PCT026044","PCT026045","PCT026046","PCT026047","PCT026048","PCT026049","PCT026050","PCT026051","PCT026052","PCT026053","PCT026054","PCT026055","PCT026056","PCT026057","PCT026058","PCT026059","PCT026060","PCT026061","PCT026062","PCT026063","PCT026064","PCT026065","PCT026066","PCT026067","PCT026068","PCT026069","PCT026070","PCT026071","PCT026072","PCT026073","PCT026074","PCT026075","PCT026076","PCT026077","PCT026078","PCT026079","PCT026080","PCT026081","PCT026082","PCT026083","PCT026084","PCT026085","PCT026086","PCT026087","PCT026088","PCT026089","PCT026090","PCT026091","PCT026092","PCT026093","PCT026094","PCT026095","PCT026096","PCT026097","PCT026098","PCT026099","PCT026100","PCT026101"]
["Allenstown","0002575","00660",4843,4497,2142,429,52,9,0,43,0,13,7,6,364,133,8,5,0,0,0,0,3,0,0,0,0,0,125,1401,129,30,18,0,0,0,81,165,3,162,46,116,1107,179,7,0,7,0,0,0,57,41,16,115,2355,453,39,7,0,32,0,11,5,6,403,123,17,0,6,0,0,6,5,0,0,0,0,0,106,1452,153,8,73,34,0,7,31,130,29,101,12,89,1169,327,52,6,21,0,0,25,103,26,77,172]
["Andover","0002590","01460",2109,1975,990,163,4,0,0,4,0,2,0,2,157,75,5,0,0,0,0,2,3,0,0,0,0,0,70,622,56,5,15,11,0,2,23,30,6,24,8,16,536,130,26,7,9,2,0,8,39,8,31,65,985,150,14,5,0,9,0,4,4,0,132,63,3,0,0,0,0,3,0,0,0,0,0,0,60,633,40,5,14,2,0,0,19,42,6,36,8,28,551,139,20,6,9,0,0,5,24,12,12,95]
["Boscawen","0002596","06260",3672,3034,1455,264,31,0,0,31,0,9,9,0,224,75,0,0,0,0,0,0,0,12,0,12,0,12,63,946,140,9,33,31,0,6,61,60,5,55,6,49,746,170,18,6,5,7,0,0,23,17,6,129,1579,334,23,9,0,14,0,0,0,0,311,75,10,0,0,0,0,0,10,0,0,0,0,0,65,965,80,0,34,10,0,0,36,90,14,76,13,63,795,205,51,6,27,0,0,18,73,35,38,81]
["Bow","0002606","06500",7138,6682,3300,818,69,8,0,61,0,0,0,0,749,233,13,0,0,7,0,0,6,0,0,0,0,0,220,1974,33,19,8,6,0,0,0,56,37,19,19,0,1885,275,66,31,22,0,0,13,45,13,32,164,3382,796,37,9,0,28,0,10,10,0,749,217,0,0,0,0,0,0,0,0,0,0,0,0,217,2045,111,17,36,9,12,0,37,100,60,40,0,40,1834,324,51,6,23,12,0,10,73,31,42,200]
["Bradford","0002617","06980",1454,1374,689,140,6,0,0,6,0,5,3,2,129,43,4,0,0,2,0,0,2,2,0,2,0,2,37,424,45,14,9,8,0,0,14,35,5,30,6,24,344,82,16,6,8,2,0,0,13,0,13,53,685,107,4,0,0,4,0,2,2,0,101,45,5,0,0,3,0,0,2,2,0,2,0,2,38,438,43,2,11,4,2,0,24,27,0,27,10,17,368,95,21,6,13,2,0,0,12,3,9,62]
["Canterbury","0002622","09860",1979,1873,908,159,10,2,0,8,0,0,0,0,149,52,16,0,0,14,0,0,2,0,0,0,0,0,36,603,47,12,2,8,0,5,20,12,0,12,5,7,544,94,17,3,10,0,2,2,9,2,7,68,965,161,0,0,0,0,0,0,0,0,161,55,4,0,0,4,0,0,0,2,0,2,0,2,49,641,26,7,6,2,0,0,11,46,10,36,4,32,569,108,14,2,2,0,0,10,24,5,19,70]
["Chichester","0002629","12420",2236,2091,1047,187,13,0,0,11,2,6,6,0,168,70,6,0,0,3,0,3,0,1,0,1,0,1,63,675,46,4,24,0,0,3,15,54,8,46,22,24,575,115,15,5,10,0,0,0,12,3,9,88,1044,193,0,0,0,0,0,0,0,0,193,59,6,0,0,2,0,0,4,0,0,0,0,0,53,680,37,8,14,0,0,3,12,34,10,24,11,13,609,112,10,2,6,0,0,2,15,5,10,87]
["Concord","0002635","14200",40687,35515,16795,3029,283,6,8,240,29,29,17,12,2717,1181,162,21,0,83,0,9,49,23,0,23,0,23,996,10753,1189,190,207,188,0,44,560,877,242,635,118,517,8687,1832,352,80,131,53,7,81,354,142,212,1126,18720,2891,136,8,8,120,0,61,40,21,2694,1165,41,16,0,4,0,6,15,100,20,80,0,80,1024,11670,822,100,244,36,0,16,426,976,241,735,168,567,9872,2994,636,162,333,35,8,98,665,139,526,1693]
["Danbury","0002701","16980",1071,1026,541,80,10,0,0,10,0,2,2,0,68,61,6,0,0,3,0,0,3,5,0,5,0,5,50,335,41,11,11,3,0,0,16,24,12,12,0,12,270,65,3,0,3,0,0,0,20,7,13,42,485,80,0,0,0,0,0,0,0,0,80,22,0,0,0,0,0,0,0,0,0,0,0,0,22,308,14,0,5,0,0,0,9,35,3,32,3,29,259,75,9,4,3,0,0,2,18,8,10,48]
["Dunbarton","0002706","19460",2226,2047,1032,190,17,0,0,17,0,0,0,0,173,44,5,0,0,3,0,0,2,0,0,0,0,0,39,714,72,7,8,5,0,2,50,22,2,20,9,11,620,84,18,7,8,3,0,0,9,0,9,57,1015,180,1,0,0,1,0,0,0,0,179,51,7,0,0,3,0,0,4,0,0,0,0,0,44,705,38,4,15,0,0,0,19,29,9,20,6,14,638,79,9,1,5,0,0,3,14,3,11,56]
["Epsom","0002712","24900",4021,3662,1769,321,27,9,0,18,0,6,0,6,288,86,20,0,0,9,0,6,5,12,0,12,4,8,54,1146,123,14,5,15,0,0,89,136,14,122,20,102,887,216,28,15,6,0,0,7,91,33,58,97,1893,332,0,0,0,0,0,18,0,18,314,87,0,0,0,0,0,0,0,7,0,7,7,0,80,1248,149,0,47,20,0,0,82,96,23,73,13,60,1003,226,49,14,14,0,0,21,21,6,15,156]
["Franklin","0002721","27380",8405,7767,3809,739,110,16,0,94,0,0,0,0,629,354,59,12,13,25,0,9,0,27,0,27,8,19,268,2258,234,38,84,28,0,32,52,361,77,284,73,211,1663,458,109,60,5,36,8,0,88,16,72,261,3958,576,16,8,0,8,0,0,0,0,560,252,24,0,0,24,0,0,0,34,9,25,0,25,194,2438,286,30,100,34,0,40,82,255,41,214,58,156,1897,692,175,27,95,0,0,53,120,53,67,397]
["Henniker","0002743","35540",4433,4209,2115,373,53,0,0,53,0,0,0,0,320,270,9,0,0,9,0,0,0,14,8,6,6,0,247,1337,125,31,26,30,0,0,38,51,0,51,0,51,1161,135,23,8,8,7,0,0,24,8,16,88,2094,374,6,0,0,6,0,6,6,0,362,271,39,0,16,6,5,0,12,0,0,0,0,0,232,1234,71,17,5,0,0,0,49,80,51,29,0,29,1083,215,79,0,48,0,0,31,22,8,14,114]
["Hill","0002754","35860",992,943,481,99,0,0,0,0,0,0,0,0,99,27,2,0,0,2,0,0,0,0,0,0,0,0,25,305,28,10,8,3,0,0,7,19,8,11,2,9,258,50,5,3,0,0,0,2,16,2,14,29,462,77,6,0,0,6,0,2,0,2,69,41,3,0,0,0,0,0,3,0,0,0,0,0,38,294,22,2,4,5,0,0,11,18,4,14,4,10,254,50,10,3,7,0,0,0,4,0,4,36]
["Hooksett","0002759","37300",11721,10992,5489,977,60,10,0,50,0,11,11,0,906,562,35,0,0,29,0,0,6,84,0,84,70,14,443,3483,324,50,116,19,0,18,121,233,48,185,70,115,2926,467,163,56,81,0,0,26,77,7,70,227,5503,870,22,0,0,22,0,0,0,0,848,600,18,0,0,9,0,0,9,17,0,17,17,0,565,3447,221,40,57,49,0,0,75,149,36,113,49,64,3077,586,113,34,53,0,7,19,146,52,94,327]
["Hopkinton","0002799","37540",5399,5110,2397,482,22,0,0,22,0,0,0,0,460,116,10,0,0,10,0,0,0,0,0,0,0,0,106,1477,111,13,8,7,0,0,83,81,20,61,7,54,1285,322,44,15,19,0,0,10,40,17,23,238,2713,491,0,0,0,0,0,0,0,0,491,166,0,0,0,0,0,0,0,0,0,0,0,0,166,1661,124,18,6,5,0,8,87,114,25,89,20,69,1423,395,105,21,48,7,7,22,67,6,61,223]
["Loudon","0002813","43380",4481,4176,2061,412,45,0,0,45,0,20,20,0,347,130,12,0,0,0,0,0,12,6,6,0,0,0,112,1344,91,19,26,14,0,8,24,71,12,59,0,59,1182,175,43,14,18,5,0,6,40,9,31,92,2115,395,17,0,0,17,0,6,6,0,372,149,4,0,0,4,0,0,0,11,5,6,0,6,134,1372,89,6,40,18,0,5,20,83,47,36,5,31,1200,199,25,6,13,6,0,0,42,23,19,132]
["Newbury","0002820","50900",1702,1626,848,159,7,0,0,7,0,0,0,0,152,65,10,0,0,10,0,0,0,4,0,4,0,4,51,485,22,0,4,5,0,0,13,15,2,13,0,13,448,139,25,9,8,2,0,6,14,4,10,100,778,101,2,0,0,2,0,3,3,0,96,32,3,3,0,0,0,0,0,0,0,0,0,0,29,499,32,2,12,5,0,0,13,17,4,13,4,9,450,146,27,5,20,0,0,2,13,5,8,106]
["New London","0002826","52100",4116,3950,1753,195,3,0,0,3,0,0,0,0,192,205,11,0,0,0,0,5,6,7,0,7,0,7,187,841,26,7,0,13,0,0,6,49,21,28,9,19,766,512,67,24,19,6,0,18,22,6,16,423,2197,214,0,0,0,0,0,0,0,0,214,330,14,7,0,7,0,0,0,0,0,0,0,0,316,998,38,7,13,7,0,0,11,45,6,39,11,28,915,655,69,29,23,6,0,11,68,41,27,518]
["Northfield","0002833","54260",4548,4226,2077,391,32,0,0,32,0,0,0,0,359,167,31,6,0,17,8,0,0,0,0,0,0,0,136,1339,118,12,25,8,0,0,73,100,17,83,12,71,1121,180,40,11,24,0,0,5,18,7,11,122,2149,402,7,0,0,7,0,0,0,0,395,143,0,0,0,0,0,0,0,0,0,0,0,0,143,1382,131,12,53,6,5,0,55,100,30,70,6,64,1151,222,31,6,20,5,0,0,57,11,46,134]
["Pembroke","0002848","60020",6897,6455,3191,613,93,14,0,79,0,0,0,0,520,259,92,16,0,54,0,0,22,9,9,0,0,0,158,2026,199,35,41,7,0,6,110,135,12,123,18,105,1692,293,88,11,36,9,0,32,16,6,10,189,3264,578,20,10,0,10,0,19,0,19,539,224,9,0,0,0,0,9,0,12,0,12,0,12,203,2078,198,25,85,26,0,0,62,150,51,99,31,68,1730,384,80,14,35,11,0,20,60,32,28,244]
["Pittsfield","0002869","61940",3931,3657,1736,349,24,0,0,24,0,6,0,6,319,106,5,0,0,5,0,0,0,10,0,10,0,10,91,1105,87,10,39,12,0,0,26,114,11,103,23,80,904,176,61,19,31,0,0,11,29,6,23,86,1921,378,44,13,0,31,0,6,6,0,328,155,23,0,8,2,0,0,13,14,0,14,8,6,118,1154,81,0,23,22,0,0,36,149,31,118,32,86,924,234,45,15,22,0,0,8,56,5,51,133]
["Salisbury","0002880","66980",1137,1069,532,92,10,0,0,10,0,0,0,0,82,33,6,0,0,4,0,0,2,2,0,2,0,2,25,359,28,6,8,8,0,0,6,33,6,27,8,19,298,48,4,0,0,2,0,2,12,6,6,32,537,80,5,0,0,5,0,0,0,0,75,38,2,0,0,2,0,0,0,0,0,0,0,0,36,358,27,4,11,4,0,4,4,12,2,10,4,6,319,61,10,4,2,0,0,4,11,6,5,40]
["Sutton","0002885","75460",1544,1476,714,104,7,0,0,7,0,0,0,0,97,69,10,0,0,3,0,0,7,0,0,0,0,0,59,441,49,11,8,10,0,2,18,24,4,20,3,17,368,100,21,10,9,0,0,2,10,1,9,69,762,109,2,0,0,2,0,0,0,0,107,56,0,0,0,0,0,0,0,0,0,0,0,0,56,465,50,2,12,11,0,2,23,38,14,24,4,20,377,132,26,10,8,0,0,8,20,4,16,86]
["Warner","0002891","78580",2760,2608,1278,243,20,0,0,20,0,6,6,0,217,77,4,0,0,0,0,0,4,2,0,2,2,0,71,818,80,24,13,10,0,2,31,66,9,57,10,47,672,140,25,6,14,3,0,2,29,20,9,86,1330,211,7,3,0,4,0,2,2,0,202,97,7,0,1,2,0,0,4,4,0,4,2,2,86,826,61,6,17,4,0,6,28,52,8,44,13,31,713,196,18,0,10,6,0,2,41,7,34,137]
["Webster","0002897","80020",1579,1468,693,118,17,0,0,17,0,1,0,1,100,42,6,0,0,2,0,0,4,5,1,4,2,2,31,471,42,0,0,9,0,0,33,40,6,34,7,27,389,62,12,2,5,0,0,5,10,4,6,40,775,141,14,0,6,8,0,1,0,1,126,39,4,0,0,3,0,0,1,0,0,0,0,0,35,508,56,8,12,5,0,0,31,13,0,13,5,8,439,87,14,3,11,0,0,0,10,7,3,63]
["Wilmot","0002902","84900",1144,1079,510,96,6,0,0,6,0,0,0,0,90,24,1,0,0,0,0,0,1,0,0,0,0,0,23,311,22,7,3,6,0,0,6,13,1,12,0,12,276,79,13,6,7,0,0,0,11,9,2,55,569,101,3,0,0,3,0,3,3,0,95,47,0,0,0,0,0,0,0,4,0,4,2,2,43,356,10,0,5,1,0,0,4,16,2,14,0,14,330,65,10,5,5,0,0,0,4,4,0,51]
[]
[]
[]
["2010 Census Demographic Profile Data -  QRY_CountyState"]
["TownName","LOGRECNO","COUNTY","TotalPop","TotalPop1Race","TotalPopWhite","TotalPopAfricanAmerican","TotalPopAmericanIndAlaska","TotalPopAsian","TotalPopNativeHawaiianPIsland","TotalPopSomeOtherRace","TotalPopTwoOrMoreRaces","TotalPopHispanicLatino","TotalNonHispanicLatino","TotPopUnder15yrs","TotPop15to24yrs","TotPop25to34yrs","TotPop35to44yrs","TotPop45to54yrs","TotPop55to64yrs","TotPop65to74yrs","TotPopOver74yrs","MedianAge","MedianAgeMale","MedianAgeFemale","TotalHH","TotalPopInHouseholds","TotalPopInFamilyHH","TotalPopInNonFamilyHH","AvgHHSize","TotalFamilyHH","TotalFamilyHHSpouse","TotalSingleParentHH","TotalNonFamilyHH","AvgFamilyHHSize","AvgNonFamilyHHSize","AverageHHSizeOwnerOccupied","AverageHHSizeRentalOccupied","TotalHousingUnits","TotalOccupiedHU","TotalOwnerOccupiedHUs","TotalRentalOccupiedHU","TotalVacantHU","VacantHUForRent","VacantHURentNotOccupied","VacantHUForSale","VacantHUsSoldNotOccupied","VacantHUSeasonalRecreational","VacantHUsAllOtherVacants","HomeOwnerVacancyRate","HomeRentalVacancyRate","TotalHousingUnits2010","SingFamHU2010","MultiFamHU2010","MobileHom2010"]
["Allenstown","0000153","013",4322,4245,4142,35,15,34,2,17,77,79,4243,755,513,546,604,798,582,295,229,41,39.799999999999997,42.2,1756,4299,2219,2080,2.4500000000000002,1150,846,304,606,2.93,3.4323432343234321,2.6,1.98,1881,1756,1324,432,125,43,1,32,3,14,32,2.4,9,1881,806,679,396]
["Andover","0000154","013",2371,2334,2288,11,12,21,0,2,37,21,2350,412,353,232,306,405,339,193,131,41.4,39.200000000000003,43.7,890,2202,1190,1012,2.4700000000000002,629,525,104,261,2.89,3.8773946360153255,2.52,2.21,1121,890,755,135,231,13,1,24,4,163,26,3.1,8.6999999999999993,1121,1012,59,51]
["Boscawen","0000155","013",3965,3920,3863,25,11,11,0,10,45,38,3927,623,474,482,518,667,478,260,463,43.1,39.9,46.2,1369,3429,1844,1585,2.5,952,708,244,417,2.94,3.8009592326139088,2.66,2.08,1453,1369,1000,369,84,21,2,16,3,20,22,1.6,5.4,1453,909,329,215]
["Bow","0000156","013",7519,7452,7310,7,8,104,0,23,67,105,7414,1482,965,386,942,1600,1141,520,483,44.9,44.2,45.4,2706,7519,4615,2904,2.78,2205,1926,279,501,3.09,5.7964071856287429,2.87,2,2807,2706,2414,292,101,7,0,55,3,16,20,2.2000000000000002,2.2999999999999998,2807,2631,176,0]
["Bradford","0000157","013",1650,1624,1608,2,6,4,1,3,26,22,1628,267,178,130,216,324,318,127,90,46.3,46.4,46.1,667,1650,874,776,2.4700000000000002,471,385,86,196,2.86,3.9591836734693877,2.4700000000000002,2.48,917,667,545,122,250,6,0,14,1,203,26,2.5,4.7,917,831,59,27]
["Canterbury","0000158","013",2352,2329,2294,12,6,8,2,7,23,39,2313,408,204,190,294,454,469,214,119,46.9,46.6,47.1,913,2340,1295,1045,2.56,692,600,92,221,2.87,4.7285067873303168,2.6,2.2000000000000002,1002,913,824,89,89,6,0,7,1,58,17,0.8,6.3,1002,921,63,18]
["Chichester","0000159","013",2523,2509,2493,5,0,6,0,5,14,27,2496,457,299,195,370,533,384,182,103,43.7,43.5,44,918,2516,1468,1048,2.74,715,598,117,203,3.05,5.1625615763546797,2.8,2.34,963,918,793,125,45,4,2,16,1,10,12,2,3.1,963,856,82,25]
["Concord","0000259","013",42695,41935,39208,950,134,1451,9,183,760,878,41817,7157,5652,6058,5924,6777,5242,2584,3301,39.4,37.6,41.4,17592,39792,19143,20649,2.2599999999999998,10052,7264,2788,7540,2.9,2.7385941644562335,2.5,1.99,18852,17592,9367,8225,1260,681,31,181,27,115,225,1.9,7.6,18852,8003,9949,900]
["Danbury","0000160","013",1164,1158,1149,1,2,3,0,3,6,17,1147,183,123,135,157,225,185,96,60,44,43.9,44.1,490,1164,582,582,2.38,326,258,68,164,2.79,3.5487804878048781,2.38,2.34,684,490,417,73,194,8,0,13,7,149,17,3,9.9,684,565,25,94]
["Dunbarton","0000161","013",2758,2716,2687,8,4,17,0,0,42,36,2722,557,280,235,436,584,419,159,88,42.5,42.9,42.2,1015,2758,1600,1158,2.72,803,700,103,212,2.99,5.4622641509433958,2.75,2.42,1077,1015,907,108,62,7,0,7,4,35,9,0.8,6.1,1077,999,59,19]
["Epsom","0000162","013",4566,4528,4469,18,3,26,0,12,38,28,4538,840,488,389,739,775,662,380,293,43,41.6,44.2,1706,4471,2489,1982,2.62,1267,1025,242,439,2.96,4.5148063781321186,2.67,2.37,1839,1706,1423,283,133,22,0,30,4,63,14,2.1,7.2,1839,1342,87,410]
["Franklin","0000270","013",8477,8329,8155,42,39,66,2,25,148,133,8344,1572,996,1092,1088,1307,1144,640,638,40.200000000000003,38.700000000000003,41.8,3407,8279,4212,4067,2.4300000000000002,2179,1528,651,1228,2.93,3.3118892508143323,2.56,2.23,3938,3407,2058,1349,531,152,9,54,15,193,108,2.5,10.1,3938,2334,1387,217]
["Henniker","0000163","013",4836,4781,4629,60,17,53,0,22,55,81,4755,715,1239,454,519,801,672,257,179,35.200000000000003,33.9,36.6,1780,4289,2146,2143,2.41,1124,875,249,656,2.91,3.2667682926829267,2.61,2.0099999999999998,1928,1780,1196,584,148,46,1,16,6,50,29,1.3,7.3,1928,1183,553,192]
["Hill","0000164","013",1089,1070,1063,4,1,1,0,1,19,8,1081,195,119,115,145,228,175,67,45,43.6,43.2,43.8,413,1089,601,488,2.64,302,242,60,111,2.99,4.3963963963963968,2.63,2.69,512,413,364,49,99,4,2,6,2,66,19,1.6,7.3,512,421,40,52]
["Hooksett","0000165","013",13451,13253,12728,141,23,265,7,89,198,278,13173,2482,2003,1391,1978,2303,1730,988,576,39.799999999999997,39.4,40.200000000000003,4926,12780,7103,5677,2.59,3533,2906,627,1393,3.01,4.075376884422111,2.67,2.2200000000000002,5184,4926,4073,853,258,88,6,62,23,32,47,1.5,9.3000000000000007,5184,3622,1376,186]
["Hopkinton","0000166","013",5589,5522,5459,16,7,32,3,5,67,55,5534,1034,562,399,721,1010,957,511,395,45.8,45.3,46.3,2204,5589,3129,2460,2.54,1631,1391,240,573,2.92,4.2931937172774868,2.61,2.0299999999999998,2381,2204,1910,294,177,15,2,34,8,84,34,1.7,4.8,2381,2103,213,66]
["Loudon","0000167","013",5317,5277,5226,14,14,20,0,3,40,41,5276,980,617,536,767,1026,795,369,227,41.9,41.5,42.5,1966,5317,2989,2328,2.7,1459,1218,241,507,3.05,4.5917159763313613,2.77,2.2400000000000002,2081,1966,1717,249,115,12,1,35,2,34,31,2,4.5999999999999996,2081,1706,105,270]
["New London","0000169","013",4397,4345,4241,49,2,47,2,4,52,64,4333,443,1138,186,255,500,523,570,782,48.7,49.2,48.4,1666,3485,1691,1794,2.09,1037,913,124,629,2.63,2.8521462639109698,2.17,1.77,2303,1666,1345,321,637,33,3,37,10,521,33,2.7,9.1999999999999993,2303,1848,455,0]
["Newbury","0000168","013",2072,2043,2020,4,3,6,4,6,29,25,2047,344,194,155,256,375,392,218,138,47.6,46.9,48.3,869,2072,1127,945,2.38,635,547,88,234,2.77,4.0384615384615383,2.4,2.2200000000000002,1559,869,778,91,690,8,1,19,6,636,20,2.4,8,1559,1487,66,6]
["Northfield","0000170","013",4829,4764,4664,38,15,38,0,9,65,70,4759,945,637,550,718,889,651,279,160,39.200000000000003,39.200000000000003,39.1,1843,4787,2587,2200,2.6,1309,975,334,534,2.98,4.1198501872659179,2.69,2.36,1969,1843,1306,537,126,29,0,28,9,32,28,2.1,5.0999999999999996,1969,1357,457,155]
["Pembroke","0000171","013",7115,7036,6884,43,35,45,0,29,79,116,6999,1378,853,892,1059,1298,872,416,347,39.6,39.299999999999997,39.799999999999997,2710,7062,3901,3161,2.61,1933,1488,445,777,3.02,4.0682110682110686,2.71,2.33,2872,2710,1984,726,162,67,4,22,6,14,49,1.1000000000000001,8.4,2872,1787,1042,42]
["Pittsfield","0000172","013",4106,4047,3977,25,12,24,0,9,59,76,4030,801,504,527,584,700,516,289,185,39.4,38.700000000000003,39.9,1579,4061,2148,1913,2.57,1076,804,272,503,3,3.8031809145129225,2.69,2.33,1769,1579,1056,523,190,91,3,42,2,26,26,3.8,14.7,1769,1051,548,170]
["Salisbury","0000173","013",1382,1348,1339,1,3,4,0,1,34,11,1371,282,140,147,200,225,199,131,58,41.1,40.1,42.2,513,1382,787,595,2.69,388,326,62,125,3.03,4.76,2.68,2.81,598,513,460,53,85,4,0,6,0,68,7,1.3,7,598,571,11,16]
["Sutton","0000174","013",1837,1811,1772,5,5,14,9,6,26,21,1816,317,172,179,224,331,317,179,118,45.8,46.4,45.3,757,1837,991,846,2.4300000000000002,556,482,74,201,2.78,4.2089552238805972,2.4500000000000002,2.2599999999999998,985,757,666,91,228,11,2,14,5,173,23,2,10.6,985,955,30,0]
["Warner","0000175","013",2833,2811,2774,10,12,7,0,8,22,50,2783,436,377,259,367,496,474,243,181,44.5,43.7,44.9,1116,2725,1444,1281,2.44,752,626,126,364,2.92,3.5192307692307692,2.56,2.02,1358,1116,865,251,242,20,0,17,6,175,24,1.9,7.4,1358,1004,274,80]
["Webster","0000176","013",1872,1850,1835,3,0,12,0,0,22,11,1861,329,166,208,271,365,305,154,74,43.7,42.5,45,734,1858,1012,846,2.5299999999999998,539,440,99,195,2.88,4.3384615384615381,2.57,2.2000000000000002,849,734,655,79,115,3,0,12,2,86,12,1.8,3.7,849,817,15,16]
["Wilmot","0000177","013",1358,1343,1332,1,2,6,0,2,15,9,1349,215,146,93,183,274,223,146,78,46.6,46.1,46.9,564,1358,715,643,2.41,389,327,62,175,2.84,3.6742857142857144,2.4500000000000002,2.1800000000000002,659,564,484,80,95,10,0,4,1,73,7,0.8,11.1,659,588,42,28]

{"sheet":"SmallTownEmploymentandWages","index":73,"n_rows":77,"n_cols":14,"rows_kept":77,"cut":false,"hidden":true,"merged":[[66,1,67,3],[35,1,35,2],[73,1,73,2]]}
[]
[null,{"$f":"CntyDataLink!A35","v":"Allenstown"}]
[]
[null,"EMPLOYMENT CHARACTERISTICS"]
[]
[]
[]
[]
[]
[]
[]
[]
[]
[]
[]
[]
[]
[]
[]
[]
[]
[]
[]
[]
[]
[]
[]
[]
[null,"Annual Average Covered Private Employment "]
[null,null,null,"Source: NH Department of Employment Security, Covered Private Employment by location of employment"]
[null,null,2009,{"$f":"C31+1","v":2010},{"$f":"D31+1","v":2011},2012,2013,2014,2015,2016,2017,2018,2019,"Total Change  "]
[null,"Goods Producing",{"$f":"IF((CntyDataLink!$BQ$25)=\"n\",NA(),IF(VALUE(CntyDataLink!$BQ$25)=\"\",NA(),VALUE(CntyDataLink!$BQ$25)))","v":137},{"$f":"IF((CntyDataLink!$BY$25)=\"n\",NA(),IF(VALUE(CntyDataLink!$BY$25)=\"\",NA(),VALUE(CntyDataLink!$BY$25)))","v":147},{"$f":"IF((CntyDataLink!$CG$25)=\"n\",NA(),IF(VALUE(CntyDataLink!$CG$25)=\"\",NA(),VALUE(CntyDataLink!$CG$25)))","v":147},{"$f":"IF((CntyDataLink!$CO$25)=\"n\",NA(),IF(VALUE(CntyDataLink!$CO$25)=\"\",NA(),VALUE(CntyDataLink!$CO$25)))","v":157},{"$f":"IF((CntyDataLink!$CW$25)=\"n\",NA(),IF(VALUE(CntyDataLink!$CW$25)=\"\",NA(),VALUE(CntyDataLink!$CW$25)))","v":197},{"$f":"IF((CntyDataLink!$DE$25)=\"n\",NA(),IF(VALUE(CntyDataLink!$DE$25)=\"\",NA(),VALUE(CntyDataLink!$DE$25)))","v":182},{"$f":"IF((CntyDataLink!$DM$25)=\"n\",NA(),IF(VALUE(CntyDataLink!$DM$25)=\"\",NA(),VALUE(CntyDataLink!$DM$25)))","v":170},{"$f":"IF((CntyDataLink!$DU$25)=\"n\",NA(),IF(VALUE(CntyDataLink!$DU$25)=\"\",NA(),VALUE(CntyDataLink!$DU$25)))","v":127},{"$f":"IF((CntyDataLink!$EC$25)=\"n\",NA(),IF(VALUE(CntyDataLink!$EC$25)=\"\",NA(),VALUE(CntyDataLink!$EC$25)))","v":126},{"$f":"IF((CntyDataLink!$EK$25)=\"n\",NA(),IF(VALUE(CntyDataLink!$EK$25)=\"\",NA(),VALUE(CntyDataLink!$EK$25)))","v":114},{"$f":"IF((CntyDataLink!$ET$25)=\"n\",NA(),IF(VALUE(CntyDataLink!$ET$25)=\"\",NA(),VALUE(CntyDataLink!$ET$25)))","v":117},{"$f":"$M32-C32","v":-20}]
[null,"Service Providing",{"$f":"IF((CntyDataLink!$BR$25)=\"n\",NA(),IF(VALUE(CntyDataLink!$BR$25)=\"\",NA(),VALUE(CntyDataLink!$BR$25)))","v":329},{"$f":"IF((CntyDataLink!$BZ$25)=\"n\",NA(),IF(VALUE(CntyDataLink!$BZ$25)=\"\",NA(),VALUE(CntyDataLink!$BZ$25)))","v":325},{"$f":"IF((CntyDataLink!$CH$25)=\"n\",NA(),IF(VALUE(CntyDataLink!$CH$25)=\"\",NA(),VALUE(CntyDataLink!$CH$25)))","v":341},{"$f":"IF((CntyDataLink!$CP$25)=\"n\",NA(),IF(VALUE(CntyDataLink!$CP$25)=\"\",NA(),VALUE(CntyDataLink!$CP$25)))","v":372},{"$f":"IF((CntyDataLink!$CX$25)=\"n\",NA(),IF(VALUE(CntyDataLink!$CX$25)=\"\",NA(),VALUE(CntyDataLink!$CX$25)))","v":379},{"$f":"IF((CntyDataLink!$DF$25)=\"n\",NA(),IF(VALUE(CntyDataLink!$DF$25)=\"\",NA(),VALUE(CntyDataLink!$DF$25)))","v":373},{"$f":"IF((CntyDataLink!$DN$25)=\"n\",NA(),IF(VALUE(CntyDataLink!$DN$25)=\"\",NA(),VALUE(CntyDataLink!$DN$25)))","v":310},{"$f":"IF((CntyDataLink!$DV$25)=\"n\",NA(),IF(VALUE(CntyDataLink!$DV$25)=\"\",NA(),VALUE(CntyDataLink!$DV$25)))","v":320},{"$f":"IF((CntyDataLink!$ED$25)=\"n\",NA(),IF(VALUE(CntyDataLink!$ED$25)=\"\",NA(),VALUE(CntyDataLink!$ED$25)))","v":264},{"$f":"IF((CntyDataLink!$EL$25)=\"n\",NA(),IF(VALUE(CntyDataLink!$EL$25)=\"\",NA(),VALUE(CntyDataLink!$EL$25)))","v":256},{"$f":"IF((CntyDataLink!$EU$25)=\"n\",NA(),IF(VALUE(CntyDataLink!$EU$25)=\"\",NA(),VALUE(CntyDataLink!$EU$25)))","v":277},{"$f":"$M33-C33","v":-52}]
[null,"Total Private Emp",{"$f":"IF((CntyDataLink!$BP$25)=\"n\",NA(),IF(VALUE(CntyDataLink!$BP$25)=\"\",NA(),VALUE(CntyDataLink!$BP$25)))","v":466},{"$f":"IF((CntyDataLink!$BX$25)=\"n\",NA(),IF(VALUE(CntyDataLink!$BX$25)=\"\",NA(),VALUE(CntyDataLink!$BX$25)))","v":472},{"$f":"IF((CntyDataLink!$CF$25)=\"n\",NA(),IF(VALUE(CntyDataLink!$CF$25)=\"\",NA(),VALUE(CntyDataLink!$CF$25)))","v":487},{"$f":"IF((CntyDataLink!$CN$25)=\"n\",NA(),IF(VALUE(CntyDataLink!$CN$25)=\"\",NA(),VALUE(CntyDataLink!$CN$25)))","v":528},{"$f":"IF((CntyDataLink!$CV$25)=\"n\",NA(),IF(VALUE(CntyDataLink!$CV$25)=\"\",NA(),VALUE(CntyDataLink!$CV$25)))","v":576},{"$f":"IF((CntyDataLink!$DD$25)=\"n\",NA(),IF(VALUE(CntyDataLink!$DD$25)=\"\",NA(),VALUE(CntyDataLink!$DD$25)))","v":555},{"$f":"IF((CntyDataLink!$DL$25)=\"n\",NA(),IF(VALUE(CntyDataLink!$DL$25)=\"\",NA(),VALUE(CntyDataLink!$DL$25)))","v":480},{"$f":"IF((CntyDataLink!$DT$25)=\"n\",NA(),IF(VALUE(CntyDataLink!$DT$25)=\"\",NA(),VALUE(CntyDataLink!$DT$25)))","v":447},{"$f":"IF((CntyDataLink!$EB$25)=\"n\",NA(),IF(VALUE(CntyDataLink!$EB$25)=\"\",NA(),VALUE(CntyDataLink!$EB$25)))","v":390},{"$f":"IF((CntyDataLink!$EJ$25)=\"n\",NA(),IF(VALUE(CntyDataLink!$EJ$25)=\"\",NA(),VALUE(CntyDataLink!$EJ$25)))","v":370},{"$f":"IF((CntyDataLink!$ER$25)=\"n\",NA(),IF(VALUE(CntyDataLink!$ER$25)=\"\",NA(),VALUE(CntyDataLink!$ER$25)))","v":394},{"$f":"$M34-C34","v":-72}]
[]
[null,"% Change from prior Year",null,"09-10","10-11","11-12","12-13","13-14","14-15","15-16","16-17","17-18","18-19","Total % Change"]
[null,"Goods Producing",null,{"$f":"(D32-C32)/C32","v":7.2992700729927001E-2},0,6.8027210884353748E-2,0.25477707006369427,-7.6142131979695438E-2,{"$f":"(I32-H32)/H32","v":-6.5934065934065936E-2},-0.25294117647058822,-7.874015748031496E-3,-9.5238095238095233E-2,2.6315789473684209E-2,{"$f":"N32/C32","v":-0.145985401459854}]
[null,"Service Providing",null,-1.2158054711246201E-2,4.9230769230769231E-2,9.0909090909090912E-2,{"$f":"(G33-F33)/F33","v":1.8817204301075269E-2},-1.5831134564643801E-2,-0.16890080428954424,3.2258064516129031E-2,-0.17499999999999999,-3.0303030303030304E-2,8.203125E-2,{"$f":"N33/C33","v":-0.1580547112462006}]
[null,"Total Private Emp",null,1.2875536480686695E-2,3.1779661016949151E-2,8.4188911704312114E-2,9.0909090909090912E-2,-3.6458333333333336E-2,-0.13513513513513514,-6.8750000000000006E-2,-0.12751677852348994,-5.128205128205128E-2,6.4864864864864868E-2,{"$f":"N34/C34","v":-0.15450643776824036}]
[]
[]
[null,"EMPLOYMENT CHARACTERISTICS"]
[]
[]
[]
[]
[]
[]
[]
[]
[]
[]
[]
[]
[]
[]
[]
[]
[]
[]
[]
[]
[]
[]
[]
[]
[null,"Covered Private Employment Average Wages",null,null,"Source: NH Department of Employment Security, Covered Private Employment"]
[]
[null,null,2009,{"$f":"C69+1","v":2010},{"$f":"D69+1","v":2011},{"$f":"E69+1","v":2012},2013,2014,2015,2016,2017,2018,2019,"Total $ Change"]
[null,"Goods Producing",{"$f":"IF((CntyDataLink!$BU$25)=\"n\",NA(),IF(VALUE(CntyDataLink!$BU$25)=\"\",NA(),VALUE(CntyDataLink!$BU$25)))","v":615.41999999999996},{"$f":"IF((CntyDataLink!$CC$25)=\"n\",NA(),IF(VALUE(CntyDataLink!$CC$25)=\"\",NA(),VALUE(CntyDataLink!$CC$25)))","v":630.44000000000005},{"$f":"IF((CntyDataLink!$CK$25)=\"n\",NA(),IF(VALUE(CntyDataLink!$CK$25)=\"\",NA(),VALUE(CntyDataLink!$CK$25)))","v":628.24},{"$f":"IF((CntyDataLink!$CS$25)=\"n\",NA(),IF(VALUE(CntyDataLink!$CS$25)=\"\",NA(),VALUE(CntyDataLink!$CS$25)))","v":653.44000000000005},{"$f":"IF((CntyDataLink!$DA$25)=\"n\",NA(),IF(VALUE(CntyDataLink!$DA$25)=\"\",NA(),VALUE(CntyDataLink!$DA$25)))","v":655.93},{"$f":"IF((CntyDataLink!$DI$25)=\"n\",NA(),IF(VALUE(CntyDataLink!$DI$25)=\"\",NA(),VALUE(CntyDataLink!$DI$25)))","v":730.28},{"$f":"IF((CntyDataLink!$DQ$25)=\"n\",NA(),IF(VALUE(CntyDataLink!$DQ$25)=\"\",NA(),VALUE(CntyDataLink!$DQ$25)))","v":809.33},{"$f":"IF((CntyDataLink!$DY$25)=\"n\",NA(),IF(VALUE(CntyDataLink!$DY$25)=\"\",NA(),VALUE(CntyDataLink!$DY$25)))","v":998.41},{"$f":"IF((CntyDataLink!$EG$25)=\"n\",NA(),IF(VALUE(CntyDataLink!$EG$25)=\"\",NA(),VALUE(CntyDataLink!$EG$25)))","v":985.01},{"$f":"IF((CntyDataLink!$EO$25)=\"n\",NA(),IF(VALUE(CntyDataLink!$EO$25)=\"\",NA(),VALUE(CntyDataLink!$EO$25)))","v":1084.3599999999999},{"$f":"IF((CntyDataLink!$EY$25)=\"n\",NA(),IF(VALUE(CntyDataLink!$EY$25)=\"\",NA(),VALUE(CntyDataLink!$EY$25)))","v":1054.58},{"$f":"M70-C70","v":439.15999999999997}]
[null,"Service Providing",{"$f":"IF((CntyDataLink!$BV$25)=\"n\",NA(),IF(VALUE(CntyDataLink!$BV$25)=\"\",NA(),VALUE(CntyDataLink!$BV$25)))","v":609.76},{"$f":"IF((CntyDataLink!$CD$25)=\"n\",NA(),IF(VALUE(CntyDataLink!$CD$25)=\"\",NA(),VALUE(CntyDataLink!$CD$25)))","v":627.57000000000005},{"$f":"IF((CntyDataLink!$CL$25)=\"n\",NA(),IF(VALUE(CntyDataLink!$CL$25)=\"\",NA(),VALUE(CntyDataLink!$CL$25)))","v":656.56},{"$f":"IF((CntyDataLink!$CT$25)=\"n\",NA(),IF(VALUE(CntyDataLink!$CT$25)=\"\",NA(),VALUE(CntyDataLink!$CT$25)))","v":663.82},{"$f":"IF((CntyDataLink!$DB$25)=\"n\",NA(),IF(VALUE(CntyDataLink!$DB$25)=\"\",NA(),VALUE(CntyDataLink!$DB$25)))","v":687.74},{"$f":"IF((CntyDataLink!$DJ$25)=\"n\",NA(),IF(VALUE(CntyDataLink!$DJ$25)=\"\",NA(),VALUE(CntyDataLink!$DJ$25)))","v":679.41},{"$f":"IF((CntyDataLink!$DR$25)=\"n\",NA(),IF(VALUE(CntyDataLink!$DR$25)=\"\",NA(),VALUE(CntyDataLink!$DR$25)))","v":651.65},{"$f":"IF((CntyDataLink!$DZ$25)=\"n\",NA(),IF(VALUE(CntyDataLink!$DZ$25)=\"\",NA(),VALUE(CntyDataLink!$DZ$25)))","v":662.94},{"$f":"IF((CntyDataLink!EG$25)=\"n\",NA(),IF(VALUE(CntyDataLink!$EH$25)=\"\",NA(),VALUE(CntyDataLink!$EH$25)))","v":726.91},{"$f":"IF((CntyDataLink!EO$25)=\"n\",NA(),IF(VALUE(CntyDataLink!$EP$25)=\"\",NA(),VALUE(CntyDataLink!$EP$25)))","v":785.18},{"$f":"IF((CntyDataLink!EZ$25)=\"n\",NA(),IF(VALUE(CntyDataLink!$EZ$25)=\"\",NA(),VALUE(CntyDataLink!$EZ$25)))","v":744.63},{"$f":"M71-C71","v":134.87}]
[null,"Total Private Emp",{"$f":"IF((CntyDataLink!$BT$25)=\"n\",NA(),IF(VALUE(CntyDataLink!$BT$25)=\"\",NA(),VALUE(CntyDataLink!$BT$25)))","v":611.41999999999996},{"$f":"IF((CntyDataLink!$CB$25)=\"n\",NA(),IF(VALUE(CntyDataLink!$CB$25)=\"\",NA(),VALUE(CntyDataLink!$CB$25)))","v":628.46},{"$f":"IF((CntyDataLink!$CJ$25)=\"n\",NA(),IF(VALUE(CntyDataLink!$CJ$25)=\"\",NA(),VALUE(CntyDataLink!$CJ$25)))","v":648.04999999999995},{"$f":"IF((CntyDataLink!$CR$25)=\"n\",NA(),IF(VALUE(CntyDataLink!$CR$25)=\"\",NA(),VALUE(CntyDataLink!$CR$25)))","v":660.75},{"$f":"IF((CntyDataLink!$CZ$25)=\"n\",NA(),IF(VALUE(CntyDataLink!$CZ$25)=\"\",NA(),VALUE(CntyDataLink!$CZ$25)))","v":676.87},{"$f":"IF((CntyDataLink!$DH$25)=\"n\",NA(),IF(VALUE(CntyDataLink!$DH$25)=\"\",NA(),VALUE(CntyDataLink!$DH$25)))","v":696.05},{"$f":"IF((CntyDataLink!$DP$25)=\"n\",NA(),IF(VALUE(CntyDataLink!$DP$25)=\"\",NA(),VALUE(CntyDataLink!$DP$25)))","v":707.52},{"$f":"IF((CntyDataLink!$DX$25)=\"n\",NA(),IF(VALUE(CntyDataLink!$DX$25)=\"\",NA(),VALUE(CntyDataLink!$DX$25)))","v":758.48},{"$f":"IF((CntyDataLink!$EF$25)=\"n\",NA(),IF(VALUE(CntyDataLink!$EF$25)=\"\",NA(),VALUE(CntyDataLink!$EF$25)))","v":810.13},{"$f":"IF((CntyDataLink!$EN$25)=\"n\",NA(),IF(VALUE(CntyDataLink!$EN$25)=\"\",NA(),VALUE(CntyDataLink!$EN$25)))","v":877.59},{"$f":"IF((CntyDataLink!$EW$25)=\"n\",NA(),IF(VALUE(CntyDataLink!$EW$25)=\"\",NA(),VALUE(CntyDataLink!$EW$25)))","v":836.77},{"$f":"M72-C72","v":225.35000000000002}]
[]
[null,"% Change from prior Year",null,{"$f":"D36","v":"09-10"},"10-11","11-12","12-13","13-14","14-15","15-16","16-17","17-18","18-19","Total % Change"]
[null,"Goods Producing",null,{"$f":"(D70-C70)/C70","v":2.4406096649442814E-2},-3.4896262927479938E-3,4.0112059085699807E-2,3.8106023506364706E-3,0.11335050996295341,0.10824615216081512,0.23362534442069355,-1.3421339930489455E-2,0.10086192018355135,-2.7463204101958738E-2,{"$f":"N70/C70","v":0.7135939683468201}]
[null,"Service Providing",null,2.9208213067436466E-2,4.6194050066127909E-2,1.1057633727306119E-2,3.6033864601849833E-2,-1.2112135400005875E-2,-4.0858980586096751E-2,1.7325251285199229E-2,9.6494403716776644E-2,8.0161230413668794E-2,-5.1644208971191263E-2,{"$f":"N71/C71","v":0.22118538441353977}]
[null,"Total Private Emp",null,2.7869549573124985E-2,3.1171434936193104E-2,1.9597253298356678E-2,2.4396519107075298E-2,2.8336312733611993E-2,1.6478701242726854E-2,7.2026232473993715E-2,6.8096719755300045E-2,8.3270586202214503E-2,-4.6513747877710607E-2,{"$f":"N72/C72","v":0.36856825095678919}]